{"text_format":"1","workbook":"xlsx","n_sheets":85,"sheets":["Library","data","Changes log","Read me","Test Case index","Selector","More Select","tc_template","target","C0","C1","C2","C3","C4","C5","C6","C7","C8C9C10","Test case","Add pages","SA302","Liability","CRC","Swiss Tax Credit","SA302_interface","liability_template","INC(1)","INC(2)","REL(1)","REL(2)","AOI","Multi-UK-gains","ASE","AOR","MCA","AIL","EMP","MOR","SE","LUN","PS","NI","PRO","CGT","FOR","Swiss Tax","FTCR","Multi-foreign-gains","TRU","NRD","CAL","IRCX_template","SA302_template","SA302_template (W)","TCRWS","FTCR_Calc","NS income (c1)","Savings (c2)","Divs (c3)","Status (c3a)","Deductions (c4)","Taxable (c5)","tax it (c6)","CDR (c7)","tax it (c8)","Tax adj (c9)","CRC_template","Div Cr (c10)","Tax paid (c11)","Tax due (c12)","POAs (c13)","allowances (c14c15)","Class 4 NIC (c16)","TSR (c17)","CG (c18)","RBC (c19)","RBC & Cap (C20a)","Notional (c21c23)","LLIR (c24)","Pensions (c25c26)","S loans(c27)","CBC(c28)","non-res (c91)","c99","Swiss (SW)"],"not_rendered":{"charts":0,"images":9,"macros":1,"external_links":0,"defined_names":1725,"comments":9,"pivot_tables":0},"unopened":[],"bounds":{"document_bytes":16777216,"sheet_cells":100000,"rows_first":2000,"rows_last":500,"rows_between":2000,"halvings":0,"cell_chars":16384,"cell_head_chars":4096},"cells_cut":0,"cells_raw":0,"read":"whole","date_system":"1900"}

{"sheet":"Library","index":0,"n_rows":274,"n_cols":41,"rows_kept":274,"cut":false,"hidden":true,"merged":[]}
[274,"YPD","INC-A","INC-B","INC-C","REL-A","REL-B","REL-C","SLR","CBC","WFP","MAT","FIN","AOI-A","AOI-B","AOI-C","ASE-A","ASE-B","ASE-C","AOR","MCA","AIL","Emp-A","Emp-B","MOR","SSE","FSE","LUN","SPS","FPS","NI2","NI1","NIC2Vol","NicEx","PRO","FOR","TCR","TRU","CGT","NRD","CAL"]
[1,2,2,1,1,2,1,1,1,1,2,2,1,1,1,1,1,1,1,1,1,1,1,1,1,1,1,1,1,1,1,1,1,1,2,1,1,1,1,1,1]
[2,3,3,1,1,1,1,1,1,1,3,3,1,1,1,1,1,1,1,1,1,1,3,1,1,1,1,1,1,1,1,3,1,1,3,1,1,1,1,1,3]
[3,4,4,1,1,4,4,1,1,1,1,4,4,1,1,1,1,1,1,1,1,1,4,1,1,1,4,1,1,1,4,4,1,1,1,1,1,1,1,1,4]
[4,5,5,1,1,1,1,1,5,1,1,1,1,1,1,1,1,1,1,1,1,1,5,1,1,1,1,1,1,1,1,5,1,1,1,1,1,1,1,1,1]
[5,6,6,1,1,1,1,1,1,1,1,6,1,1,1,1,1,1,1,1,1,1,1,1,1,1,6,1,1,1,6,1,1,1,1,1,1,1,1,1,1]
[6,7,7,7,1,1,1,1,1,1,1,7,1,1,1,1,1,1,1,1,1,1,1,1,1,1,1,1,1,1,1,1,1,7,1,1,1,1,1,1,1]
[7,8,1,8,1,1,1,1,1,1,1,1,1,1,1,1,1,1,1,1,8,1,8,1,1,1,1,1,1,1,1,8,1,8,1,1,1,1,1,1,1]
[8,9,9,9,1,1,9,1,1,1,1,1,1,1,1,1,1,1,1,1,9,1,1,1,1,1,9,1,1,1,1,1,1,9,1,1,1,1,1,1,1]
[9,10,10,1,10,1,10,1,10,1,1,1,1,1,1,1,1,1,1,1,1,1,1,1,1,10,1,1,1,1,10,1,10,1,10,1,1,1,1,1,1]
[10,11,11,11,1,1,11,1,1,1,1,1,1,1,1,1,1,1,1,1,1,1,1,1,1,1,1,1,1,1,1,1,1,1,1,1,1,1,1,1,1]
[11,12,12,12,1,12,12,1,1,1,1,1,1,1,1,1,1,1,1,1,1,1,12,1,1,1,1,1,1,1,1,12,1,12,12,1,1,1,1,1,1]
[12,13,13,13,13,1,1,1,1,1,1,1,1,1,1,1,1,1,1,1,1,1,1,1,1,1,1,1,1,1,1,1,1,1,1,1,1,1,1,1,1]
[13,14,14,14,14,1,14,1,1,1,1,1,14,1,1,1,1,1,1,1,14,1,14,1,1,14,14,1,1,1,1,14,1,14,14,1,1,1,1,1,14]
[14,15,15,1,1,1,1,1,15,1,1,1,1,1,1,1,1,1,1,1,1,1,15,1,1,1,1,1,1,1,1,15,1,1,1,1,1,1,1,1,1]
[15,16,16,1,1,1,1,1,16,1,1,16,1,1,1,1,1,1,1,1,1,1,1,1,1,1,16,1,1,1,16,1,1,1,1,1,1,1,1,1,1]
[16,17,17,17,1,1,1,1,1,1,1,1,1,1,1,1,1,1,1,1,1,1,1,1,1,1,1,1,1,1,1,1,1,1,17,1,1,1,1,1,1]
[17,18,18,1,1,18,1,1,18,1,1,1,1,1,1,1,1,1,1,1,1,1,18,1,1,1,1,1,1,1,1,18,1,1,18,1,1,1,1,1,18]
[18,19,19,1,1,1,1,1,1,1,1,1,1,1,1,1,1,1,1,1,1,1,19,1,1,1,1,1,1,1,1,19,1,1,1,1,1,1,1,1,19]
[19,20,20,1,1,1,20,1,1,1,1,1,1,1,1,1,1,1,1,1,1,1,20,1,1,1,1,1,1,1,1,20,1,1,1,1,1,1,1,1,1]
[20,21,21,1,1,21,1,1,1,1,1,21,1,1,1,1,1,1,1,1,1,1,21,1,1,1,1,1,1,1,1,1,1,1,1,1,1,1,1,1,1]
[21,22,22,1,1,1,1,1,22,1,1,1,1,1,1,1,1,1,1,1,1,1,22,1,1,1,1,1,1,1,1,22,1,1,1,1,1,1,1,1,1]
[22,23,23,1,23,23,23,1,1,1,1,1,1,1,1,1,1,1,1,1,1,1,23,1,1,23,1,1,1,1,23,23,1,1,23,1,1,1,1,1,1]
[23,24,24,1,1,24,1,1,1,1,1,24,1,1,1,1,1,1,1,1,1,1,24,1,1,1,24,1,1,1,24,1,1,1,24,1,1,1,1,1,24]
[24,25,25,25,25,1,1,25,1,1,1,1,1,1,1,1,1,1,1,1,1,1,1,1,1,1,1,1,1,1,1,1,1,1,1,1,1,1,1,1,1]
[25,26,26,26,26,1,1,1,1,1,1,26,1,1,1,1,1,1,1,1,1,1,26,1,1,26,26,1,1,1,26,26,1,1,26,1,1,1,1,1,1]
[26,27,27,1,1,1,27,1,1,1,1,27,1,1,1,1,1,1,1,1,1,1,27,1,1,1,1,1,1,1,1,27,1,1,1,1,1,1,1,1,1]
[27,28,28,1,1,1,28,28,1,1,1,28,1,1,1,1,1,1,1,1,1,1,28,1,1,1,28,1,1,1,28,28,1,1,28,1,1,1,1,1,1]
[28,29,29,29,1,1,29,1,1,1,1,1,1,1,1,1,1,1,1,1,1,1,1,1,1,1,1,1,1,1,1,1,1,1,1,1,1,1,1,1,1]
[29,30,30,1,30,30,1,1,30,1,1,1,1,1,1,1,1,1,1,1,1,1,30,1,1,1,1,1,1,1,1,30,1,1,1,1,1,1,1,1,1]
[30,31,31,1,1,31,1,1,1,1,1,1,1,1,1,1,1,1,1,1,1,1,31,1,1,1,31,1,1,1,31,31,1,1,1,1,1,1,1,1,31]
[31,32,1,32,1,32,1,1,32,1,1,1,1,1,1,1,1,1,1,1,1,1,32,1,1,32,1,1,1,1,32,32,1,1,1,1,1,1,1,1,1]
[32,33,33,1,1,33,33,1,33,1,1,1,1,1,1,1,1,1,1,1,1,1,33,1,1,1,33,1,1,1,33,33,1,1,1,1,1,1,1,1,1]
[33,34,34,1,1,1,1,1,34,1,1,1,1,1,1,1,1,1,1,1,1,1,34,1,1,1,34,1,1,1,34,34,1,1,34,1,1,1,1,1,1]
[34,35,35,1,1,35,1,1,1,1,1,1,1,1,1,1,1,1,1,1,1,1,35,1,1,1,1,1,1,1,1,35,1,1,1,1,1,1,1,1,35]
[35,36,36,1,36,1,1,1,1,1,1,1,1,1,1,1,1,1,1,1,1,1,36,1,1,1,36,1,1,1,36,1,1,1,1,1,1,1,1,1,1]
[36,37,37,37,1,1,1,1,1,1,1,1,1,1,1,1,1,1,1,1,37,1,1,1,1,1,37,1,1,1,1,1,1,1,37,1,1,1,1,1,1]
[37,38,38,38,38,1,38,1,1,1,1,38,1,1,1,1,1,1,1,1,1,1,1,1,1,1,1,1,1,1,1,1,1,1,38,1,1,1,1,1,1]
[38,39,39,1,1,1,1,1,1,1,1,1,39,1,1,1,1,1,1,1,1,1,39,1,1,1,39,1,1,1,39,1,1,1,1,1,1,1,1,1,1]
[39,40,40,1,1,40,1,1,1,1,1,1,1,1,1,1,1,1,1,1,1,1,40,1,1,1,1,1,1,1,1,40,1,1,40,1,1,1,1,1,1]
[40,41,41,41,1,1,41,1,1,1,1,1,1,1,1,1,1,1,1,1,1,1,41,1,1,1,1,1,1,1,1,1,1,1,1,1,1,1,1,1,1]
[41,42,42,1,42,42,1,1,42,1,1,1,1,1,42,1,1,1,1,1,1,1,42,42,1,1,1,1,1,1,1,42,1,1,42,1,1,1,1,1,1]
[42,43,43,1,1,1,1,1,1,1,1,43,1,1,1,1,1,1,1,1,1,1,43,1,1,43,1,1,1,1,43,43,43,1,1,1,1,1,1,1,1]
[43,44,44,1,1,1,1,44,1,1,1,44,1,1,1,1,1,1,1,1,1,1,44,1,1,1,1,1,1,1,1,44,1,1,1,1,1,1,44,1,1]
[44,45,1,1,1,1,1,1,45,1,1,45,1,1,1,1,1,1,1,1,1,1,1,1,1,45,45,1,1,1,45,1,1,1,1,1,1,45,1,1,1]
[45,46,1,1,1,1,1,1,1,1,1,1,1,1,46,1,1,1,1,1,46,1,1,1,1,1,1,1,1,1,1,1,1,46,46,46,46,1,1,1,1]
[46,47,47,47,1,1,1,1,1,1,1,1,1,1,1,1,1,1,1,1,1,1,1,1,1,1,1,1,1,1,1,1,1,47,1,1,1,1,1,47,1]
[47,48,48,48,1,1,1,1,1,1,1,1,1,1,1,1,1,1,1,1,1,1,48,1,1,1,1,1,1,1,1,1,1,48,48,1,1,1,48,48,1]
[48,49,49,49,1,1,1,1,1,1,1,49,1,1,1,1,1,1,1,1,1,1,1,1,1,1,1,1,1,1,1,1,1,49,49,1,1,1,1,49,1]
[49,50,1,1,1,1,1,1,1,1,1,1,50,1,1,1,50,1,1,50,1,1,50,50,1,1,1,1,1,1,1,50,1,1,1,1,1,1,1,1,50]
[50,51,51,51,1,1,51,1,1,1,1,1,1,1,1,1,1,1,1,1,1,1,51,51,1,1,1,1,1,51,51,51,51,1,51,51,51,1,51,1,1]
[51,52,1,1,1,52,1,1,52,1,1,1,1,1,1,1,1,52,1,52,1,1,52,1,1,1,1,1,52,52,52,1,1,1,1,52,52,52,52,1,1]
[52,53,53,53,53,53,53,1,1,1,1,1,53,53,53,53,53,53,53,53,53,1,53,53,1,53,1,1,53,1,53,53,53,1,53,53,53,53,53,1,1]
[53,54,54,54,54,54,54,54,54,1,1,1,1,1,1,1,54,54,1,1,1,1,54,1,1,54,54,1,1,1,54,1,1,1,1,1,1,1,1,1,1]
[54,55,55,1,1,55,1,1,55,1,1,1,1,1,1,1,1,1,1,1,1,1,55,55,1,1,1,1,1,1,1,55,1,1,1,1,1,1,1,1,1]
[55,56,56,56,1,1,56,1,1,1,1,1,1,1,1,1,1,1,1,1,1,1,56,1,1,1,1,1,1,1,1,56,1,1,1,56,56,1,56,1,1]
[56,57,57,1,1,1,1,1,1,1,1,1,1,1,57,1,1,1,1,1,1,1,57,1,1,1,1,1,1,1,1,1,1,57,1,1,1,1,1,1,1]
[57,58,58,1,1,1,58,1,1,1,1,1,1,1,1,1,1,1,1,58,1,1,58,58,1,1,1,1,1,1,58,58,1,1,1,1,1,1,1,1,1]
[58,59,1,1,1,1,1,1,1,1,1,1,1,1,1,1,1,1,1,1,1,1,59,59,1,1,1,1,1,1,59,1,1,1,1,59,59,1,1,1,1]
[59,60,60,1,1,1,1,1,1,1,1,1,1,1,1,1,1,1,1,60,1,1,1,1,1,1,1,1,1,1,1,1,1,60,60,1,1,1,1,60,1]
[60,61,61,1,1,1,61,1,1,1,1,1,1,1,61,1,1,1,1,1,1,1,1,1,1,1,1,1,1,1,1,1,1,1,1,1,1,61,1,1,1]
[61,62,62,62,1,1,1,1,1,1,1,1,1,1,62,1,1,1,1,1,1,1,62,1,1,1,1,1,1,1,1,62,1,62,1,1,1,1,1,1,1]
[62,63,63,63,1,1,63,1,1,1,1,1,1,1,1,1,1,1,1,1,63,1,1,1,1,1,1,1,1,1,1,1,1,63,1,1,1,1,1,1,1]
[63,64,64,1,1,1,1,64,1,1,1,1,64,1,64,1,1,1,1,64,1,1,64,1,1,1,1,1,1,1,1,64,1,1,1,1,1,1,1,1,1]
[64,65,65,65,1,1,65,1,1,1,1,1,1,1,1,1,1,1,1,1,1,1,65,1,1,1,1,1,1,1,1,1,1,65,65,1,1,1,65,1,1]
[65,66,66,66,66,1,1,1,1,1,1,1,1,1,1,1,1,1,1,1,1,1,1,1,1,1,1,1,1,1,1,1,1,66,1,1,1,1,1,1,1]
[66,67,67,67,67,1,67,1,1,1,1,1,1,1,1,1,1,1,1,1,1,1,1,1,1,1,1,1,1,1,1,1,1,67,1,1,1,1,1,1,1]
[67,68,68,68,68,1,1,1,1,1,1,1,1,1,1,68,1,1,1,1,1,1,68,1,1,1,1,1,1,1,1,1,1,68,1,1,1,1,1,1,1]
[68,69,69,69,1,1,1,1,1,1,1,1,1,1,1,1,1,1,1,1,1,1,1,1,1,1,1,1,1,1,1,1,1,69,1,1,1,1,69,1,1]
[69,70,70,70,70,1,70,1,1,1,1,1,1,70,1,1,1,1,1,1,1,1,1,1,1,1,1,1,1,1,1,1,1,70,1,1,1,1,70,1,1]
[70,71,71,71,1,1,1,1,1,1,71,1,1,1,1,1,71,71,1,1,1,1,1,1,1,71,1,1,1,1,1,1,1,71,71,1,1,1,1,1,1]
[71,72,72,1,1,1,1,1,1,1,1,1,1,1,1,1,1,1,1,1,72,1,1,1,1,1,1,1,1,1,1,1,1,72,1,1,1,1,1,1,1]
[72,73,73,73,73,1,1,1,1,1,1,1,1,1,1,1,1,1,1,1,73,1,1,1,1,1,1,1,1,1,1,1,1,73,73,1,1,1,1,1,1]
[73,74,74,74,1,1,74,1,1,1,1,1,1,1,1,1,1,1,1,1,74,1,1,1,1,1,74,1,1,1,1,1,1,74,1,1,1,1,1,1,1]
[74,75,75,75,1,1,75,1,1,1,1,1,1,1,1,1,1,1,1,1,1,1,1,1,1,1,1,1,1,1,1,1,1,75,1,1,1,1,1,1,1]
[75,76,76,76,1,1,1,1,1,1,1,1,1,1,1,1,1,1,1,1,76,1,1,1,1,1,1,1,1,1,1,1,1,76,1,1,1,1,1,1,1]
[76,77,77,1,1,1,77,1,1,1,1,1,1,1,1,1,1,1,1,77,1,1,1,1,1,77,77,1,1,77,77,1,1,1,77,77,77,1,1,1,1]
[77,78,1,1,1,78,1,1,1,1,1,1,1,1,78,1,1,1,1,78,1,1,1,1,1,1,1,1,1,78,1,1,1,1,78,1,1,78,1,1,1]
[78,79,1,79,1,1,79,1,1,1,1,1,1,1,1,1,1,1,1,1,1,1,79,1,1,1,79,1,1,79,1,1,1,79,79,1,1,1,79,1,1]
[79,80,1,1,1,80,1,1,1,1,1,1,1,1,1,1,1,1,1,1,1,1,80,80,1,1,1,1,1,80,1,80,1,1,1,1,1,1,1,1,1]
[80,81,81,81,1,1,1,1,1,1,1,1,1,1,1,1,1,1,1,1,81,1,81,1,1,1,81,1,1,1,1,81,1,81,1,1,1,1,1,1,1]
[81,82,82,1,1,1,82,82,1,1,1,1,1,1,1,1,1,1,1,1,1,1,1,1,1,1,1,1,1,82,1,1,1,1,1,1,1,1,1,1,1]
[82,83,83,83,83,83,83,1,1,1,1,1,1,1,1,1,1,1,1,1,1,1,83,1,1,1,83,1,1,83,1,83,1,83,83,1,1,1,1,1,1]
[83,84,84,84,1,1,84,1,1,1,84,1,1,84,1,1,1,1,1,84,1,1,1,1,1,1,1,1,84,84,1,1,1,84,84,1,1,1,1,1,1]
[84,85,85,85,1,85,85,1,1,1,1,1,1,1,85,1,1,1,1,1,1,1,85,1,1,85,1,1,1,85,1,1,1,1,85,85,85,1,85,1,1]
[85,86,86,86,1,1,1,1,1,1,1,1,86,1,1,1,1,1,1,1,1,1,1,1,1,1,86,1,1,86,1,1,1,86,1,1,1,1,1,1,1]
[86,87,87,1,1,87,87,1,1,1,1,1,1,1,1,1,1,1,1,1,1,1,1,1,1,1,87,1,1,1,87,1,1,1,1,1,1,1,1,1,1]
[87,88,1,88,88,1,88,1,1,1,1,1,1,1,1,1,1,1,1,1,1,1,1,1,1,1,88,1,1,1,1,1,1,88,1,1,1,1,1,1,1]
[88,89,89,89,1,1,89,1,1,1,1,1,1,1,1,1,1,1,1,1,1,1,89,89,1,1,89,1,1,1,1,89,1,1,89,1,1,1,1,1,1]
[89,90,1,1,1,1,1,1,1,1,1,90,1,1,1,1,1,1,1,1,1,1,90,1,1,90,90,1,1,1,90,90,90,1,1,1,1,1,1,1,1]
[90,91,91,91,91,1,1,1,1,1,1,1,1,1,1,1,1,1,1,1,1,1,1,1,1,91,91,1,1,91,1,1,1,91,1,1,1,1,1,1,1]
[91,92,1,1,1,1,92,1,1,1,1,1,1,1,1,1,1,92,1,1,1,92,92,1,1,1,1,1,1,1,92,1,1,1,92,1,1,1,92,1,1]
[92,93,93,1,1,93,93,1,1,1,1,1,1,1,1,1,1,1,1,93,1,1,1,1,1,1,93,1,1,1,93,1,1,1,93,1,1,1,1,1,1]
[93,94,94,1,1,94,94,1,1,1,1,1,1,1,1,1,1,1,1,94,1,1,1,1,1,1,94,1,1,1,94,1,1,1,94,1,1,1,1,1,1]
[94,95,95,1,95,95,95,1,1,1,1,1,95,1,95,95,1,1,1,1,1,1,1,1,95,1,1,1,1,1,1,1,1,1,95,95,95,1,95,1,95]
[95,96,1,1,1,96,1,1,1,1,1,1,1,96,1,96,1,1,1,1,1,1,1,1,1,1,96,1,1,1,96,1,1,1,1,1,1,1,1,1,1]
[96,97,97,97,1,97,97,1,1,1,1,1,1,97,1,97,1,1,97,97,1,1,97,1,1,1,97,1,1,1,97,97,1,1,97,1,1,1,1,1,1]
[97,98,1,1,98,98,98,1,1,1,1,1,98,98,1,1,1,1,1,98,1,1,1,1,1,1,1,1,98,1,98,1,1,1,1,1,1,1,1,1,1]
[98,99,99,99,99,1,1,1,1,1,1,1,1,99,99,1,1,1,1,1,1,1,1,1,1,1,1,1,99,1,99,1,99,1,1,1,1,1,1,1,1]
[99,100,100,1,1,100,100,100,1,1,1,1,1,1,100,1,1,1,1,1,1,1,1,1,1,1,1,1,1,100,100,1,1,1,1,1,1,1,1,1,1]
[100,101,101,1,1,1,101,1,1,1,1,1,1,1,1,1,1,1,1,1,1,1,1,1,1,1,1,1,1,101,101,1,1,1,101,1,1,1,1,1,1]
[101,102,102,1,1,1,102,1,1,1,1,1,1,1,102,102,1,1,1,102,1,1,102,102,1,1,1,1,1,102,102,1,1,1,102,1,1,1,102,1,1]
[102,103,103,1,1,1,103,1,103,1,1,1,1,1,1,1,1,1,1,1,1,1,103,103,1,1,1,1,1,1,1,103,1,1,103,1,1,1,1,1,103]
[103,104,1,1,1,1,104,1,1,1,1,1,1,1,104,1,1,1,1,104,1,1,1,1,1,104,104,1,1,1,104,1,1,1,104,1,1,1,104,1,1]
[104,105,1,1,1,1,105,1,1,1,1,1,1,1,105,1,1,1,1,1,1,1,105,1,1,105,1,1,105,1,105,1,1,1,1,1,1,1,1,1,1]
[105,106,106,106,1,1,1,1,1,1,1,1,1,1,106,1,1,1,1,1,1,1,106,1,1,1,1,1,1,1,1,106,1,1,1,1,1,1,1,1,1]
[106,107,107,1,1,107,107,1,1,1,1,1,1,1,107,1,1,107,1,1,1,1,107,1,1,1,1,1,1,1,1,107,1,1,1,1,1,1,1,1,107]
[107,108,108,1,1,108,1,1,1,1,1,1,1,1,108,1,1,1,1,1,1,1,1,1,1,1,1,1,108,1,108,1,1,1,1,1,1,1,108,1,1]
[108,109,1,109,1,1,1,1,1,1,1,1,1,109,109,109,1,1,1,109,1,1,1,1,1,1,1,1,1,109,1,1,1,109,1,1,1,109,1,1,1]
[109,110,110,110,1,1,1,1,1,1,1,1,1,1,1,110,1,1,1,110,1,1,110,110,1,1,1,1,1,1,1,110,1,110,110,1,1,1,1,1,1]
[110,111,1,1,1,1,1,1,111,1,1,1,1,1,1,1,1,1,1,111,1,1,1,1,1,1,111,1,1,111,111,1,1,1,111,1,1,111,111,1,1]
[111,112,1,1,1,1,1,1,1,1,1,1,1,1,1,1,1,1,1,1,1,1,112,1,1,1,1,1,1,1,1,112,1,1,1,1,1,112,1,1,112]
[112,113,113,1,1,1,1,1,1,1,1,1,1,1,1,1,1,113,1,1,1,1,113,113,1,1,1,1,1,1,1,113,1,1,113,1,1,1,1,1,113]
[113,114,114,1,114,1,114,1,1,1,1,1,1,1,1,1,1,1,1,1,1,1,1,1,1,1,1,1,114,114,114,1,1,1,114,114,114,114,114,1,1]
[114,115,1,1,1,1,1,1,1,1,1,1,1,1,1,1,115,1,1,1,1,1,1,1,1,115,1,1,1,1,115,1,1,1,1,1,1,1,1,1,1]
[115,116,116,116,1,116,1,1,1,1,1,1,1,1,1,1,1,1,116,1,116,116,116,116,1,116,1,1,116,1,116,116,1,1,1,1,1,1,1,116,1]
[116,117,117,1,1,1,1,1,1,1,1,1,1,1,1,1,1,1,117,1,1,1,117,117,1,1,1,1,1,1,1,117,1,1,1,117,117,1,1,117,1]
[117,118,118,1,118,1,1,1,1,1,1,1,1,1,118,1,1,1,1,1,1,1,1,1,1,1,1,1,1,1,1,1,1,1,1,1,1,1,1,1,1]
[118,119,119,1,1,1,119,1,1,1,1,1,1,1,1,1,1,1,1,119,1,1,119,119,1,1,119,1,1,1,1,1,1,1,119,119,119,119,119,1,1]
[119,120,120,120,1,120,1,1,1,1,1,1,1,1,1,1,1,1,120,1,120,120,120,120,1,120,1,1,120,1,120,120,1,1,1,1,1,1,1,120,1]
[120,121,121,1,1,1,1,1,1,1,1,1,1,1,1,1,1,1,121,1,1,1,121,121,1,1,1,1,1,1,1,121,1,1,1,121,121,1,1,121,1]
[121,122,122,1,1,1,1,1,122,1,1,1,1,1,1,1,1,1,1,1,1,1,122,1,1,1,1,1,122,1,122,122,1,1,1,1,1,1,1,1,122]
[122,123,1,123,1,1,1,1,1,1,1,1,1,1,1,1,123,1,1,1,1,1,123,1,1,123,1,1,1,1,1,123,1,1,1,1,1,1,1,1,1]
[123,124,124,124,1,1,124,1,1,1,1,1,1,124,1,1,1,1,1,1,1,1,1,1,1,1,1,1,124,1,1,1,1,1,124,124,124,1,124,1,1]
[124,125,125,125,1,1,1,1,1,1,1,1,1,1,1,1,1,1,1,1,1,1,125,1,1,1,1,1,1,125,1,1,1,125,125,1,1,1,1,1,1]
[125,126,126,1,126,1,126,1,1,1,1,1,1,126,1,126,1,1,1,1,126,1,126,1,1,1,1,1,1,126,1,1,1,126,126,1,1,1,126,1,1]
[126,127,1,127,1,1,1,1,1,1,1,1,1,1,1,1,1,1,1,127,1,1,127,127,1,1,1,1,1,1,127,1,1,1,1,1,1,1,1,1,1]
[127,128,128,1,1,1,1,1,1,1,1,1,1,1,1,1,1,1,1,1,1,1,128,1,128,128,128,1,1,1,1,1,1,1,1,1,1,1,1,1,1]
[128,129,129,1,1,1,129,1,1,1,1,1,1,1,1,1,1,1,1,1,1,1,1,1,129,1,1,1,1,1,1,1,1,1,129,1,1,1,1,1,1]
[129,130,130,1,130,1,1,1,1,1,1,1,1,1,1,1,1,1,1,1,1,1,1,1,130,1,1,1,1,1,1,1,1,1,1,1,1,1,1,1,1]
[130,131,1,1,1,1,1,1,1,1,1,1,1,131,1,1,1,1,1,1,1,1,131,1,1,131,1,1,1,1,1,131,1,131,1,1,1,1,131,1,1]
[131,132,1,1,132,1,1,1,1,1,1,1,1,1,1,1,1,1,1,1,1,1,132,132,1,132,1,1,1,1,132,132,132,1,132,1,1,1,132,1,1]
[132,133,133,1,1,1,1,1,1,1,1,1,1,1,1,1,1,1,1,1,1,1,1,1,1,1,133,1,1,1,133,1,1,1,1,1,1,1,1,1,1]
[133,134,1,1,1,1,1,1,1,1,1,1,1,1,1,1,1,1,1,1,1,1,134,1,1,1,134,1,1,1,134,1,134,1,1,1,1,1,134,134,1]
[134,135,135,1,135,1,1,1,1,1,1,1,135,1,1,1,1,1,1,1,1,1,135,135,1,1,1,1,1,135,135,135,1,1,135,1,1,1,1,1,1]
[135,136,1,1,1,1,1,1,1,1,1,1,1,1,1,1,1,1,1,1,1,1,136,1,1,1,136,1,1,136,1,136,1,136,1,1,1,1,1,1,1]
[136,137,1,1,1,1,1,1,1,1,1,1,1,1,137,1,1,1,1,1,1,1,137,1,1,1,1,1,137,1,1,1,1,1,137,1,1,1,1,1,1]
[137,138,138,1,1,1,1,1,138,1,1,1,1,1,1,1,1,1,1,1,1,1,138,1,1,1,1,1,138,1,1,1,1,1,1,1,1,1,1,1,1]
[138,139,139,1,1,139,1,1,139,1,1,1,1,1,1,1,1,1,1,1,1,139,139,1,1,139,1,1,1,1,1,139,1,1,1,1,1,1,1,1,1]
[139,140,140,140,140,1,1,1,1,1,1,1,1,140,1,1,1,1,1,1,1,1,140,1,1,140,140,1,140,140,140,1,1,1,1,140,140,1,140,1,1]
[140,141,141,1,1,1,141,1,1,1,1,1,1,1,1,1,1,1,1,1,1,1,141,141,1,1,1,1,1,1,141,1,141,1,141,141,141,1,1,1,1]
[141,142,1,1,1,1,1,1,1,1,1,1,1,142,1,1,1,1,1,142,1,142,142,1,1,1,1,1,142,1,1,142,1,1,142,142,142,1,1,1,1]
[142,143,143,1,1,1,1,1,1,1,1,1,1,1,1,1,1,1,1,1,1,1,143,1,1,1,1,1,1,1,1,143,1,1,143,1,1,1,143,1,1]
[143,144,144,1,144,1,1,1,1,1,1,1,1,1,1,1,1,1,1,1,1,1,1,1,1,1,1,144,1,1,144,1,1,1,144,144,144,1,144,1,1]
[144,145,145,1,1,1,145,1,1,1,1,1,1,145,1,1,1,1,1,1,1,1,145,1,1,1,1,145,145,145,145,1,1,1,1,145,145,1,145,1,1]
[145,146,146,146,1,1,1,1,1,1,1,1,1,1,1,1,1,1,1,1,1,1,146,1,1,1,146,146,1,1,1,1,1,146,1,146,146,1,1,1,146]
[146,147,147,147,1,1,1,1,1,1,1,1,1,1,147,1,1,1,1,1,1,1,147,1,1,1,147,147,1,1,1,1,1,147,147,1,1,1,147,1,147]
[147,148,148,148,1,1,148,1,1,1,1,1,1,1,1,1,1,1,1,1,1,1,1,1,1,1,1,148,148,148,148,1,1,1,148,148,148,1,148,1,148]
[148,149,149,1,1,1,1,1,1,1,1,1,1,1,1,1,1,1,1,1,1,149,149,1,1,1,1,149,149,1,1,1,1,149,149,149,149,1,149,1,1]
[149,150,150,1,1,1,1,1,150,1,1,1,1,1,1,1,1,1,1,1,1,1,1,1,1,1,1,150,1,1,150,1,1,1,1,1,1,150,150,1,1]
[150,151,151,1,1,1,151,1,1,1,1,1,1,1,1,1,1,1,1,1,1,1,1,1,1,1,1,151,151,1,151,1,1,1,1,151,151,1,151,1,1]
[151,152,152,152,1,1,1,1,1,1,1,1,1,1,1,1,1,1,1,1,1,1,152,1,1,1,152,152,1,1,152,1,1,1,1,1,1,1,152,1,1]
[152,153,1,1,1,1,153,1,1,1,1,1,1,153,153,1,1,1,1,1,1,1,153,1,1,1,1,153,1,1,153,153,1,1,152,153,153,1,153,153,1]
[153,154,154,1,154,154,1,1,1,1,1,1,1,1,1,1,1,154,1,1,1,1,154,1,1,1,1,1,1,154,154,1,1,1,1,1,1,1,154,1,1]
[154,155,155,155,155,1,155,1,1,1,1,1,1,1,1,1,1,1,1,155,155,1,155,1,155,1,1,1,155,155,1,155,1,1,1,155,155,1,155,1,1]
[155,156,156,1,156,1,156,1,1,1,1,1,1,156,1,1,1,156,1,156,1,1,156,1,1,1,1,1,1,1,1,156,1,1,1,156,156,1,156,1,1]
[156,157,157,1,1,1,1,1,1,1,1,1,1,1,1,1,1,1,1,1,1,1,157,1,1,157,1,1,1,157,157,157,157,1,1,1,1,1,157,1,1]
[157,158,158,1,1,1,1,1,1,1,1,1,1,1,1,1,1,1,1,1,1,1,1,1,1,158,1,1,1,1,158,1,158,1,1,1,1,1,158,1,1]
[158,159,159,159,159,159,159,1,1,1,1,1,1,1,1,1,1,1,1,1,1,1,159,1,1,1,159,1,1,1,159,1,1,1,159,159,159,1,159,1,1]
[159,160,160,1,1,1,1,1,1,1,1,1,1,1,1,1,1,1,1,1,1,1,1,1,1,160,1,1,1,1,160,1,160,1,1,160,160,1,160,1,1]
[160,161,161,1,1,1,1,1,1,1,1,1,1,1,1,1,1,1,1,1,1,1,161,1,1,161,161,1,1,161,161,1,1,1,1,1,1,1,161,1,1]
[161,162,162,1,1,162,1,1,1,1,1,1,1,1,1,1,1,1,1,162,1,1,162,1,1,1,162,1,162,1,162,1,162,1,1,162,162,1,162,1,1]
[162,163,163,1,1,1,163,1,1,1,1,1,1,163,1,1,1,1,163,163,1,1,163,163,1,1,163,1,163,1,1,1,1,1,1,163,163,1,163,1,1]
[163,164,164,164,164,1,164,1,1,1,1,1,1,1,1,1,1,1,1,164,1,1,164,1,1,164,1,1,1,164,164,1,1,1,1,164,164,1,164,1,1]
[164,165,1,1,165,1,1,1,1,1,1,1,1,1,165,1,1,1,1,1,1,1,1,1,1,1,1,1,1,1,1,1,1,1,1,1,1,165,165,165,1]
[165,166,166,1,166,1,166,1,1,1,1,1,1,1,1,1,1,1,1,1,1,1,166,1,1,1,166,1,1,1,1,1,1,1,1,1,1,1,166,1,1]
[166,167,1,1,1,1,1,1,1,1,1,1,1,1,167,1,1,1,1,1,1,1,167,1,1,1,1,1,1,1,1,167,1,1,1,1,1,1,167,1,1]
[167,168,168,1,1,1,168,1,1,1,1,1,1,1,168,1,1,1,1,1,1,1,168,168,1,1,168,1,1,168,1,168,1,1,1,168,168,1,168,1,1]
[168,169,169,1,1,1,1,1,1,1,1,1,1,1,1,1,1,1,1,1,1,1,169,1,1,169,1,1,169,1,1,169,1,1,1,169,169,1,169,1,1]
[169,170,170,1,1,1,1,1,1,1,1,1,1,1,1,1,1,1,1,1,1,170,170,1,1,1,1,1,1,1,1,170,1,1,1,1,1,1,1,1,1]
[170,171,1,1,1,1,1,1,1,1,1,1,1,1,171,1,1,171,1,1,1,1,171,1,1,1,1,1,1,1,1,1,1,1,1,1,1,1,1,1,171]
[171,172,1,172,1,1,172,1,1,1,1,1,1,1,172,1,1,1,1,1,1,1,1,1,1,1,1,1,1,1,1,1,1,1,1,1,1,1,1,1,1]
[172,173,173,173,1,1,1,1,1,1,1,1,1,1,1,173,1,1,1,1,1,1,1,1,1,1,1,1,1,1,1,1,1,173,173,1,1,1,1,173,1]
[173,174,174,174,1,1,1,1,1,1,1,1,1,1,1,174,1,1,1,1,1,1,1,1,1,1,1,1,1,1,1,1,1,174,174,1,1,1,1,174,1]
[174,175,175,175,1,1,1,1,1,1,1,1,1,1,1,1,1,1,1,1,1,1,1,1,1,1,1,1,1,175,1,1,1,175,175,1,1,1,1,175,1]
[175,176,176,1,1,1,1,1,1,1,1,1,1,1,176,1,1,1,1,1,1,1,176,1,1,1,1,1,1,1,1,176,1,1,1,1,1,176,1,1,1]
[176,177,177,1,1,1,1,1,1,1,1,1,1,1,1,1,1,1,1,1,1,177,1,1,1,1,1,1,1,1,1,1,1,1,177,1,1,1,1,1,1]
[177,178,178,178,178,1,1,1,1,1,1,1,1,1,1,178,1,178,1,1,1,1,178,1,1,1,1,1,1,1,1,1,1,1,1,1,1,1,1,1,178]
[178,179,179,179,179,1,179,1,1,1,1,1,1,1,1,1,1,1,1,1,1,1,179,1,1,1,1,1,1,1,1,1,1,1,1,1,1,1,1,179,1]
[179,180,180,180,180,1,1,1,1,1,1,1,1,1,1,1,1,1,1,1,1,1,180,1,1,1,1,1,1,1,1,1,1,1,1,1,1,1,1,1,1]
[180,181,181,181,181,1,181,1,1,1,1,1,1,1,1,1,1,1,1,1,1,1,181,1,1,1,1,1,1,1,1,1,1,1,1,1,1,1,1,1,1]
[181,182,182,1,1,1,182,1,182,1,1,1,182,1,1,1,1,182,1,182,1,1,182,182,1,1,1,1,1,1,1,182,1,1,1,1,1,1,182,1,182]
[182,183,183,1,1,1,1,1,1,1,1,1,1,1,1,1,1,1,1,1,1,1,183,183,1,1,183,1,1,1,1,1,1,1,1,1,1,1,1,1,1]
[183,184,184,184,1,1,1,1,1,1,1,1,1,1,184,1,1,1,1,1,1,1,1,1,1,1,1,1,1,1,1,1,1,1,184,1,1,1,1,1,1]
[184,185,185,185,1,1,1,1,1,1,1,1,1,1,1,1,1,1,1,1,1,1,185,1,1,1,1,1,1,1,1,185,1,1,185,185,185,1,1,1,1]
[185,186,186,1,1,1,1,1,186,1,1,1,1,1,186,1,1,1,1,1,1,1,1,1,1,1,1,1,1,1,1,1,1,1,186,1,1,186,1,1,1]
[186,187,187,187,1,1,1,1,1,1,1,1,1,1,1,187,1,1,1,1,1,1,1,1,1,1,1,1,1,1,1,1,1,1,1,1,1,1,1,1,1]
[187,188,188,188,1,1,1,1,1,1,1,1,1,1,1,1,1,188,1,1,1,1,188,1,1,188,1,1,1,1,1,1,1,188,1,1,1,1,1,1,1]
[188,189,189,189,189,1,1,1,1,1,1,1,1,1,189,189,1,1,1,1,1,189,1,1,1,1,189,1,1,1,1,1,1,189,189,1,1,1,1,1,1]
[189,190,190,1,1,1,1,1,1,1,1,1,1,1,1,1,1,190,1,1,1,1,190,1,1,1,1,1,1,1,1,1,1,1,1,1,1,1,190,1,190]
[190,191,191,1,191,191,191,1,1,1,1,1,1,191,1,1,1,191,1,191,1,1,191,1,1,1,1,1,191,1,191,1,1,1,1,1,1,1,1,1,1]
[191,192,1,1,192,192,192,1,1,1,1,1,1,192,192,1,1,1,1,192,1,1,192,1,1,1,1,1,192,1,192,1,1,1,1,1,1,1,1,1,1]
[192,193,193,1,1,1,1,1,1,193,1,1,1,1,1,1,1,193,1,1,1,1,193,1,1,1,193,1,1,1,193,1,1,1,1,1,1,1,1,1,1]
[193,194,194,1,1,1,1,1,1,194,1,1,1,1,1,1,1,1,1,1,1,1,194,1,1,194,1,1,1,1,194,194,1,1,1,1,1,1,1,1,1]
[194,195,195,1,1,1,1,1,1,195,1,1,1,1,1,1,1,1,1,195,1,1,195,1,1,1,1,1,1,1,1,195,1,1,1,1,1,1,1,1,1]
[195,196,1,1,1,1,196,1,1,196,1,1,1,1,1,1,1,1,1,1,1,1,196,1,1,196,1,1,1,1,196,196,1,1,1,1,1,1,1,1,1]
[196,197,197,197,1,197,1,1,1,197,1,1,1,1,1,197,1,197,1,1,1,1,197,1,1,1,1,1,1,1,1,197,1,1,1,1,1,1,1,1,197]
[197,198,198,1,198,1,198,1,1,1,1,1,1,1,1,1,1,1,1,198,1,198,198,1,1,1,1,1,1,1,1,198,1,1,1,1,1,1,1,1,1]
[198,199,199,199,1,1,199,199,1,1,1,1,1,199,1,1,1,1,1,1,1,199,199,1,1,1,1,1,1,1,1,1,1,1,1,1,1,1,1,1,1]
[199,200,200,200,1,1,1,1,200,1,1,1,1,1,200,200,1,1,1,1,1,200,1,1,1,1,200,1,1,1,1,1,1,1,1,1,1,1,200,1,1]
[200,201,201,201,201,1,1,1,1,1,1,1,201,1,1,1,1,1,1,1,1,1,201,1,1,1,1,1,1,1,1,201,1,201,1,1,1,1,1,1,1]
[201,202,202,1,202,1,1,1,1,202,1,1,1,1,202,202,1,1,1,1,1,1,202,202,1,202,1,1,1,202,202,202,1,1,202,1,1,202,1,1,1]
[202,203,1,1,1,1,1,1,1,1,1,1,1,1,1,1,1,1,1,203,1,203,203,203,1,1,203,1,1,1,1,203,1,1,203,1,1,1,1,1,1]
[203,204,204,1,1,204,204,1,1,1,1,1,1,1,1,1,1,1,1,1,1,1,1,1,1,1,1,1,1,204,204,1,204,1,1,1,1,1,1,1,1]
[204,205,205,1,1,1,1,1,1,1,1,1,1,1,1,1,1,1,205,1,1,205,205,1,1,1,1,1,205,1,205,205,205,1,1,1,1,1,1,1,1]
[205,206,1,1,1,1,1,1,1,1,1,1,1,1,1,1,1,1,1,1,1,206,206,1,1,1,1,1,206,1,206,206,206,1,1,1,1,1,1,206,1]
[206,207,1,1,1,1,1,1,1,1,1,1,1,1,1,1,1,1,1,1,1,1,207,207,1,207,207,1,207,1,207,207,1,1,207,1,1,1,207,1,1]
[207,208,1,1,1,1,1,1,1,1,1,1,1,1,1,1,1,1,1,208,1,1,1,1,1,1,208,1,1,1,208,1,1,1,1,1,1,1,1,1,208]
[208,209,209,209,1,1,1,1,1,1,1,1,1,1,209,1,1,209,1,1,1,1,209,1,1,1,1,1,1,1,1,1,1,209,209,1,1,1,1,209,1]
[209,210,1,1,1,1,1,1,1,1,1,1,1,1,1,1,1,1,1,1,1,1,1,1,1,1,1,1,1,210,210,1,1,1,1,1,1,1,1,1,1]
[210,211,211,1,1,1,1,1,1,1,1,1,1,1,1,1,1,1,211,1,1,211,211,1,1,1,1,1,1,1,1,211,1,211,211,1,1,1,1,211,1]
[211,212,212,212,1,1,1,1,1,1,1,1,1,1,1,1,1,212,1,1,1,212,212,1,1,1,1,1,1,1,1,212,1,212,212,212,1,1,212,212,212]
[212,213,213,1,1,1,213,1,1,1,1,1,1,1,1,1,1,1,1,1,1,1,1,1,1,1,1,1,1,1,1,1,1,1,1,213,213,1,1,1,1]
[213,214,214,1,1,1,1,1,1,214,1,1,1,1,1,1,1,1,1,1,1,1,214,1,1,1,214,1,1,1,1,214,1,1,1,214,214,1,214,214,1]
[214,215,215,215,1,1,215,1,1,1,1,1,1,1,1,1,1,1,1,1,1,1,215,1,1,1,215,1,1,1,1,1,1,1,1,215,215,1,215,215,1]
[215,216,1,216,1,1,1,1,1,1,1,1,1,216,1,1,1,1,1,1,1,1,1,1,1,1,216,1,1,1,1,1,1,1,1,216,216,1,216,216,1]
[216,217,1,217,1,217,1,1,1,1,1,1,1,1,1,1,1,1,1,1,1,1,217,1,1,1,217,1,1,217,1,1,1,1,1,217,217,1,217,217,1]
[217,218,218,218,1,1,218,1,1,1,1,1,1,1,1,1,1,1,1,218,1,1,218,1,1,1,218,1,218,1,1,1,1,1,1,218,218,1,218,218,1]
[218,219,219,1,1,1,1,1,1,1,1,1,1,219,1,1,1,1,1,219,1,1,1,1,1,1,1,1,1,1,1,1,1,1,1,1,1,1,1,219,1]
[219,220,220,1,1,1,220,1,1,1,1,1,1,1,1,1,1,1,1,1,1,1,220,1,1,1,220,1,1,1,220,1,1,1,1,1,1,1,1,1,1]
[220,221,221,221,1,1,221,1,1,1,1,1,1,1,1,1,1,221,1,1,1,1,221,1,1,1,1,1,1,1,1,1,1,221,1,221,221,1,221,1,1]
[221,222,222,222,1,1,1,1,1,1,1,222,1,1,1,1,1,222,1,1,1,1,222,1,1,1,1,1,1,1,1,1,1,1,1,1,1,1,1,1,1]
[222,223,223,1,1,1,1,1,1,1,1,223,1,1,1,1,223,223,1,223,1,1,223,223,1,1,1,1,1,1,1,1,1,1,223,1,1,1,1,1,1]
[223,224,224,224,1,1,1,1,1,1,1,1,1,1,1,1,1,224,1,1,1,1,1,1,1,1,1,1,1,1,1,1,1,1,224,1,1,1,224,1,1]
[224,225,225,225,1,1,1,1,1,1,1,1,1,1,1,1,1,225,1,1,1,1,225,225,1,225,1,1,1,1,1,1,1,1,225,225,225,1,1,1,1]
[225,226,226,1,1,1,1,1,1,1,1,1,1,1,1,1,1,226,1,1,1,1,1,1,1,226,1,1,1,1,1,1,1,1,1,1,1,1,1,1,1]
[226,227,227,1,1,1,227,1,1,1,1,1,1,1,1,1,1,227,1,1,1,1,1,1,1,227,1,1,227,1,1,1,1,1,1,1,1,1,1,1,1]
[227,228,228,228,1,1,1,1,1,1,1,1,1,1,1,1,1,1,1,1,1,1,1,1,1,1,228,1,1,1,228,1,1,1,1,1,1,1,1,1,228]
[228,229,229,229,1,1,229,1,1,1,1,1,1,1,1,1,229,229,1,1,1,1,229,1,1,1,1,1,1,1,1,1,1,1,1,1,1,1,1,1,1]
[229,230,230,1,1,230,1,1,1,1,1,1,1,1,1,1,1,1,1,1,1,1,230,1,1,1,1,1,230,1,1,230,1,1,1,1,1,1,1,1,1]
[230,231,231,231,1,1,231,1,1,1,1,1,1,1,1,1,1,231,1,1,1,1,231,1,1,1,1,1,1,1,1,1,1,1,231,1,1,1,1,1,1]
[231,232,232,1,1,1,232,1,1,1,1,1,1,1,232,232,1,232,1,1,1,1,232,1,1,1,1,1,1,1,1,1,1,1,1,232,232,1,232,1,1]
[232,233,233,233,1,1,1,1,1,1,1,1,1,1,1,1,1,233,1,1,1,1,1,1,1,1,1,1,1,1,1,1,1,1,1,1,1,1,1,1,1]
[233,234,234,234,234,1,234,1,1,1,1,1,1,1,1,1,1,234,1,1,1,1,234,1,1,1,1,1,1,1,1,1,1,1,1,234,234,1,1,1,1]
[234,235,235,235,1,1,235,235,1,1,1,1,1,1,1,1,1,235,1,1,1,1,235,1,1,1,1,1,1,1,1,1,1,1,1,1,1,1,1,1,1]
[235,236,236,236,1,236,236,1,1,236,1,1,1,1,1,1,1,236,1,1,1,1,236,236,1,1,1,1,236,1,1,236,1,1,1,1,1,1,1,1,1]
[236,237,237,237,237,1,237,1,1,1,1,1,1,237,1,1,1,237,1,1,1,1,237,1,1,1,1,1,1,1,1,237,1,1,237,237,237,1,237,1,1]
[237,238,238,1,1,238,1,1,1,1,1,1,1,1,1,1,1,238,1,1,1,1,238,1,1,1,1,1,1,1,1,1,1,1,1,1,1,1,1,1,1]
[238,239,239,239,1,1,1,1,1,1,1,1,1,239,1,1,1,239,1,1,1,1,239,1,1,1,1,1,1,1,1,1,1,1,1,239,239,1,239,1,1]
[239,240,240,240,240,1,1,1,1,1,1,1,1,1,1,1,1,240,1,1,1,1,240,240,1,1,1,1,1,1,1,240,1,1,240,240,240,1,1,1,1]
[240,241,241,241,1,241,1,1,1,241,1,1,1,1,241,1,1,241,1,241,1,1,241,1,1,1,1,1,1,1,1,1,1,1,241,1,1,1,1,1,1]
[241,242,242,1,1,1,1,1,1,1,1,1,1,1,1,1,1,242,1,1,1,1,242,1,1,1,1,1,1,1,1,242,1,1,1,242,1,242,242,242,1]
[242,243,243,1,243,243,243,1,1,1,1,1,1,1,1,1,243,243,1,1,1,1,243,1,1,1,243,1,1,1,1,1,1,1,1,243,243,1,1,1,1]
[243,244,244,244,1,1,1,1,1,1,1,244,1,1,244,1,1,244,1,1,1,1,244,1,1,1,1,1,1,1,1,1,1,1,1,1,1,1,1,1,1]
[244,245,245,245,1,1,1,1,1,1,1,245,1,1,1,1,1,1,1,1,1,1,1,1,1,1,1,1,1,1,1,1,1,1,1,1,1,1,1,1,1]
[245,246,246,1,1,246,246,1,1,1,1,1,1,1,1,1,1,246,1,1,1,1,246,1,1,246,1,1,1,246,246,1,246,1,246,1,1,1,1,1,1]
[246,247,247,1,1,1,1,1,1,1,1,1,1,1,1,1,1,1,1,1,1,1,1,1,1,1,1,1,1,1,1,1,1,1,247,1,1,247,1,247,1]
[247,248,1,1,1,1,1,1,1,1,1,1,1,1,1,1,1,1,1,248,1,1,1,1,1,1,1,1,1,248,248,1,1,248,1,1,1,1,1,248,1]
[248,249,249,249,1,1,1,1,1,1,1,1,1,1,249,1,1,1,1,1,1,1,1,1,1,1,1,1,1,1,1,1,1,1,1,1,1,1,1,249,1]
[249,250,250,250,1,1,1,1,1,250,1,1,1,1,1,1,1,1,1,1,1,1,250,1,1,1,1,1,1,250,1,250,1,1,250,1,1,1,250,1,1]
[250,251,251,1,1,1,1,1,1,1,1,1,1,1,1,251,1,1,1,1,1,1,1,1,1,1,1,1,1,251,251,1,1,1,251,1,1,1,251,251,1]
[251,252,252,252,1,1,1,1,1,1,1,1,1,1,1,1,1,1,1,1,1,1,252,1,1,1,252,1,1,252,1,1,1,1,252,1,1,1,252,1,1]
[252,253,253,253,1,1,1,1,1,1,1,1,1,1,1,1,1,1,1,1,1,1,1,1,1,1,1,1,1,1,1,1,1,1,253,1,1,1,253,1,1]
[253,254,254,254,254,1,254,1,1,1,1,1,1,254,1,1,1,1,1,254,1,1,254,254,1,1,254,1,254,1,1,1,1,1,254,1,1,1,254,254,1]
[254,255,255,255,255,1,255,1,1,1,1,1,1,255,1,1,1,1,1,1,1,1,255,1,255,1,255,1,1,1,1,255,1,1,1,1,1,1,255,1,1]
[255,256,256,256,1,1,256,1,1,1,1,1,1,1,1,1,1,1,1,256,1,1,256,256,1,256,256,256,256,1,256,256,1,1,256,1,1,1,256,1,1]
[256,257,257,1,1,1,1,1,1,1,1,1,1,1,1,1,257,1,1,1,1,1,257,1,1,1,1,1,1,1,1,257,1,1,1,1,1,1,257,1,1]
[257,258,258,1,1,258,1,1,1,1,1,1,1,1,258,1,1,1,1,1,1,1,1,1,1,1,258,1,1,1,258,1,1,1,1,1,1,1,1,258,258]
[258,259,259,259,1,1,259,1,1,1,1,1,1,1,259,1,1,1,1,259,1,1,259,259,1,1,259,1,1,259,259,1,1,1,1,1,1,1,259,1,1]
[259,260,260,260,1,1,1,1,1,1,1,1,1,1,260,1,1,1,1,1,1,1,1,1,1,1,1,1,1,1,1,1,1,1,1,1,1,1,1,1,1]
[260,261,261,261,1,261,261,1,1,1,1,1,1,1,1,261,1,1,1,1,1,1,261,1,1,261,1,1,1,1,261,1,261,1,1,1,1,1,261,261,1]
[261,262,1,1,1,1,1,1,262,1,1,1,1,1,1,1,1,262,1,1,1,1,262,1,1,1,1,1,1,1,1,262,1,1,262,262,262,1,1,262,1]
[262,263,263,1,1,1,263,1,1,1,1,1,1,1,1,1,1,1,1,263,1,1,263,1,1,1,1,1,1,1,1,263,1,1,1,263,263,263,1,263,1]
[263,264,264,264,1,1,1,1,1,1,1,1,1,1,264,1,1,1,1,1,1,1,1,1,1,264,1,1,1,1,264,1,264,1,264,1,1,1,264,1,1]
[264,265,265,265,265,265,265,1,1,1,1,1,1,1,1,1,1,1,1,1,1,1,265,1,1,265,265,1,1,1,1,1,1,1,265,265,265,1,265,1,1]
[265,266,266,266,1,1,1,1,1,1,1,1,1,266,1,1,1,1,266,1,1,1,1,1,1,1,1,1,1,266,266,1,1,1,266,1,1,1,266,1,1]
[266,267,267,267,267,267,267,1,1,1,1,1,267,267,267,1,1,1,1,1,1,1,267,1,1,1,1,1,1,1,1,267,1,1,1,267,267,1,267,267,1]
[267,268,268,268,1,1,268,1,1,1,1,1,1,268,1,1,1,1,1,1,1,1,268,268,1,268,268,1,1,1,1,1,1,1,268,1,1,1,268,268,1]
[268,269,269,269,1,1,269,1,1,1,1,1,1,1,1,1,1,1,1,1,1,1,269,269,1,269,269,1,269,269,269,1,1,1,269,1,1,1,269,269,1]
[269,270,270,1,270,1,1,1,1,1,1,1,1,1,1,1,1,1,1,270,1,1,1,1,1,1,1,1,1,270,270,1,270,1,1,1,1,1,270,270,1]
[270,271,271,1,1,1,271,1,1,1,1,1,1,1,1,1,1,1,1,1,1,1,271,1,1,1,1,1,1,1,1,1,1,1,1,1,1,1,1,271,1]
[271,272,272,1,1,1,272,1,1,272,1,1,1,1,1,1,1,1,1,1,1,1,272,1,1,1,1,1,1,1,1,1,1,1,1,1,1,1,1,1,1]
[272,273,273,1,1,1,273,1,1,1,1,1,1,1,1,1,1,1,1,1,1,1,273,1,1,273,1,1,1,1,1,1,1,1,1,273,273,1,1,1,1]
[273,274,274,1,1,274,274,1,1,1,1,1,1,1,1,1,274,274,1,1,1,274,274,1,1,1,1,1,1,1,1,1,1,1,274,1,1,1,274,274,1]

{"sheet":"data","index":1,"n_rows":230,"n_cols":14,"rows_kept":230,"cut":false,"hidden":true,"merged":[[0,4,0,6]]}
["NS income (c1)",null,"Overview of the tax calculation process ",null,{"$f":"\"Calculate Tax and NIC \"&tax_year","v":"Calculate Tax and NIC 2025-26"}]
["Savings (c2)",null,"The main body of the calculation is contained within stages 1 to 12. Stages 14 to 29 may be required,"]
["Divs (c3)",null,"depending on the taxpayer’s circumstances.  They are cross-referenced with various points within stages "]
["Status (c3a)",null,"1 to 12. Only the end result of processing in stages 14 to 28 (13 is not currently used) are used within "]
["Deductions (c4)",null,"stages 1 to 12 but all boxes leading to the end result need to be calculated. "]
["Taxable (c5)"]
["tax it (c6)",null,{"$f":"\"For example: \"&'Tax adj (c9)'!I51&\" requires a figure from box \"&'allowances (c14c15)'!K148&\" or \"&'allowances (c14c15)'!K164&\". To calculate box \"&'allowances (c14c15)'!K148&\" or \"&'allowances (c14c15)'!K164&\" not\"","v":"For example: c9.16 requires a figure from box c15.20 or c15.21. To calculate box c15.20 or c15.21 not"}]
["CDR (c7)",null,{"$f":"\"only requires calculating \"&'allowances (c14c15)'!K43&\" onwards but also \"&'allowances (c14c15)'!K5&\" through \"&'allowances (c14c15)'!K26&\", as these are referenced in \"&'allowances (c14c15)'!E58","v":"only requires calculating c15.1 onwards but also c14.1 through c14.6, as these are referenced in c15.6"}]
["tax it (c8)",null,{"$f":"\"and \"&'allowances (c14c15)'!E61&\".\"","v":"and c15.7."}]
["Tax adj (c9)"]
["Div Cr (c10)",null,"The annexes contain associated processing that is dependant on the calculation stages."]
["tax paid (c11)"]
["Tax due (c12)",null,"Note where a box contains all instances then the rounding should be done on each instances."]
["POAs (c13)"]
["allowances (c14c15)",null,"If NON UK RESIDENT (box NRD1 = Y)"]
["Class 4 NIC (c16)",null,"set calculation type = resident"]
["TSR (c17)",null,{"$f":"\"Calculate boxes \"&'NS income (c1)'!E5&\" through \"&'Tax due (c12)'!I5","v":"Calculate boxes c1.1 through c12.1"}]
["CG (c18)",null,{"$f":"\"resident-result (\"&'Tax due (c12)'!I14&\") = \"&'Tax due (c12)'!I5","v":"resident-result (c12.1a) = c12.1"}]
["RBC (c19)",null,"set calculation type = non-resident"]
["RBC & Cap (C20a)",null,{"$f":"\"Calculate boxes \"&'non-res (c91)'!C15&\" through \"&'non-res (c91)'!R119","v":"Calculate boxes c91.1 through c91.35"}]
["Notional (c21c23)",null,{"$f":"\"Calculate boxes \"&'Deductions (c4)'!Q23&\" through \"&'Tax due (c12)'!I5","v":"Calculate boxes c4.4 through c12.1"}]
["LLIR (c24)",null,{"$f":"\"non-resident-result (\"&'Tax due (c12)'!I18&\") = \"&'Tax due (c12)'!I5","v":"non-resident-result (c12.1b) = c12.1"}]
["Pensions (c25c26)",null,"If resident-result <= non-resident-result"]
["S loans(c27)",null,"end if"]
["CBC(c28)",null,"set calculation type = resident"]
["non-res (c91)",null,{"$f":"\"Calculate boxes c1.1 through \"&'Tax due (c12)'!I119","v":"Calculate boxes c1.1 through c12.21"}]
[null,null,"end if"]
["EMP"]
["MOR",null,"Format SA302 and view screens (see Annex A)"]
["SE"]
["LUN",null,"If a digital Marriage Allowance transfer claim is in place and they are a Transferor or a Recipient the MAT_OUT "]
["PS",null,{"$f":"\"or MAT_IN amount will be set and \"&'Deductions (c4)'!H473&\" or \"&'Tax adj (c9)'!I75&\" will be completed with the MAT amount.\"","v":"or MAT_IN amount will be set and c4.68 or c9.20 will be completed with the MAT amount."}]
["NI"]
["PRO",null,{"$f":"\"Where there is not a digital Marriage Allowance transfer claim in place and the customer completes MAT\"&'REL(2)'!C39","v":"Where there is not a digital Marriage Allowance transfer claim in place and the customer completes MAT1-5"}]
["FOR",null,"MAT_OUT amount will be set to \"Y\""]
["TRU"]
["CGT",null,{"$f":"\"For Class 2 there are no boxes on the SA Return. Pseudo Return boxes / centralised box will be required to populate \"&'Class 4 NIC (c16)'!J192&\".\"","v":"For Class 2 there are no boxes on the SA Return. Pseudo Return boxes / centralised box will be required to populate c16.32."}]
["NRD",null,"Larger of all instances (SSECL2 OR FSECL2 OR SPSCL2 OR FPSCL2) OR LUNCL2 OR Total of centralised box"]
["CAL"]
["AOI",null,"For Class 4 there are no boxes for Class 1 earnings on the Return for the Reg100 Class 4 calculation."]
["ASE",null,{"$f":"\"Pseudo Return boxes will be required to populate \"&'Class 4 NIC (c16)'!J110","v":"Pseudo Return boxes will be required to populate c16.20"}]
["AOR"]
["MCA",null,"Tax rates ",null,null,"Reviewed","Swiss Tax Credit"]
["AIL",null,"Employees' rate between threshold and upper earnings limit","NIC1_rate",0.08,null,"not for requirements"]
[null,null,"Class 4 rate between lower profits limit and upper profits limit","NIC_rate",0.06,null,null,null,null,null,"used as"]
["C0",null,"Class 4 rate above upper profits limit","NIC_supp_rate",0.02,null,"Grossing up factors",null,"D","F","*100/","P"]
["C1",null,"Student Loan deduction rate","Sloan_rate",0.09,null,"Dividend old net to gross factor","old_gross",1.11111111111112,"100/90",90,0.1]
["C2",null,"Postgraduate loan rate","PGL_rate",0.06,null,"Dividend net to gross factor","divs_gross",1.0958904109589001,"100/91.25",91.25,8.7499999999999994E-2]
["C3",null,"Starting rate for savings","SR_rate",0,null,"Savings net to gross factor","savings_gross",1.25,"100/80",80,0.2]
["C4",null,"Savings Nil rate","SNil_rate",0,null,"Non-savings net to gross factor","NS_gross",1.25,"100/80",80,0.2]
["C5",null,"Old Basic Rate","OLD_BR",0.22,null,"Higher rate net to gross factor","HR_gross",1.6666666666666701,"100/60",60,0.4,"used in calc?"]
["C6",null,"Basic rate for savings","SAVBR_rate",0.2,null,"Non-savings net to gross old factor","Gross_By_22",1.2820512820512799,"100/78",78,0.22]
["C7",null,"Higher rate for savings","SAVHR_rate",0.4,null,"Trust rate net to gross factor","trust_gross",1.8181818181818181,"100/55",55,0.45]
["C8C9C10",null,"Additional rate for savings","SAVAHR_rate",0.45,null,"Trust dividend rate net to gross factor","trust_div_gross",1.64880461665293,"100/60.65",60.65,0.39350000000000002]
[null,null,"Basic rate UK rate for England Northern Ireland","BR_rate",0.2,null,"Gift aid","gift_aid",1.25,"100/80",80,0.2]
[null,null,"Higher rate UK rate for England Northern Ireland","HR_rate",0.4,null,"Dividend old 7.5 net to gross","divs_gross_old",1.08108108108109,"100/92.5",92.5,7.4999999999999997E-2]
[null,null,"Additional Rate UK rate for England and Northern Ireland","AHR_rate",0.45]
[null,null,"Starter rate for Scotland","SSR_rate",0.19]
[null,null,"Basic rate UK rate for Scotland","SBR_rate",0.2]
[null,null,"Intermediate rate for Scotland","SIR_rate",0.21]
[null,null,"Higher rate UK rate for Scotland","SHR_rate",0.42]
[null,null,"Advanced rate for Scotland","SAR_rate",0.45]
[null,null,"Additional Rate UK rate for Scotland","SAHR_rate",0.48]
[null,null,"Basic rate for Wales","WBR_rate",0.2]
[null,null,"Higher rate for Wales","WHR_rate",0.4]
[null,null,"Additional Rate rate for Wales","WAHR_rate",0.45]
[null,null,"Old Dividend rate","Old_DIV_rate",7.4999999999999997E-2]
[null,null,"Lower Dividend rate","Ldiv_rate",0.1]
[null,null,"Dividend Nil rate","DivNil_rate",0]
[null,null,"Dividend Investment rate","DivBR_rate",8.7499999999999994E-2]
[null,null,"Dividend Higher rate","DivHR_rate",0.33750000000000002]
[null,null,"Dividend Additional rate","DivAR_rate",0.39350000000000002]
[null,null,"Venture Capital Trust shares rate","VCT_rate",0.3]
[null,null,"Enterprise Investment Scheme rate","EIS_rate",0.3]
[null,null,"Seed Enterprise Investment Scheme Relief rate","SEIS_rate",0.5]
[null,null,"Community Investment Tax Relief rate","CITR_rate",0.05]
[null,null,"Social Investment Tax Relief rate ","SITR_rate",0.3]
[null,null,"Reducing Allowances rate for MCA, Alimony etc","A_rate",0.1]
[null,null,"Capital Gains Entrepreneurs rate","ER_CGT_rate",0.14000000000000001]
[null,null,"Capital Gains Lower rate","Lower_CGT_rate",0.18]
[null,null,"Capital Gains Higher rate","Upper_CGT_rate",0.24]
[null,null,"Capital Gains Lower rate Residential Property","Lower_CGT_rate_RP",0.18]
[null,null,"Capital Gains Higher rate Residential Property","Upper_CGT_rate_RP",0.24]
[null,null,"Carried Interest","Lower_CGT_rate_CI",0.18]
[null,null,"Carried Interest","Upper_CGT_rate_CI",0.24]
[null,null,"Overpaid SEISS and CJRS charge rate","Charge_rate",1]
[null,null,"Carried Interest rate","CI_CGT_rate",0.32]
[]
[]
[]
[]
[null,null,null,null,null,null,null,null,null,{"$f":"\"06/04/\"&Tax_year_start","v":"06/04/2025"}]
[null,null,null,null,null,null,null,null,null,{"$f":"\"05/04/\"&Tax_year_end","v":"05/04/2026"}]
[null,null,null,null,null,null,null,null,null,null,{"$f":"J92-DAY(J92)+8-WEEKDAY(J92-DAY(J92))","v":"2025-04-06"},{"$f":"\"First Sunday in April \"&Tax_year_start","v":"First Sunday in April 2025"}]
[null,null,null,null,null,null,null,null,null,"week 1",{"$f":"IF(K94+0<J92+0,K94+7,K94)","v":"2025-04-06"},{"$f":"\"First Sunday after 5 April \"&Tax_year_start","v":"First Sunday after 5 April 2025"}]
[null,null,null,null,null,null,null,null,null,"week 52",{"$f":"K95+357","v":"2026-03-29"}]
[null,null,"Rate Bands",null,null,null,null,null,null,"week 53",{"$f":"K95+364","v":"2026-04-05"},{"$f":"IF(K97>K98,52,53)","v":53}]
[null,null,"Savings Starting rate band","SR_band",5000,null,null,null,null,"last day",{"$f":"J93+0","v":"2026-04-05"}]
[null,null,"Scottish starter rate band","SSR_band",2827]
[null,null,"Band between Savings rate & Basic rate","SavBR_band",32700,null,{"$f":"BR_band-SR_band","v":32700},"=BR_band-SR_band",null,1,{"$f":"K95","v":"2025-04-06"},27,{"$f":"K125+7","v":"2025-10-05"}]
[null,null,"Basic rate band","BR_band",37700,null,null,null,null,2,{"$f":"K100+7","v":"2025-04-13"},28,{"$f":"M100+7","v":"2025-10-12"}]
[null,null,"Scottish Basic rate band","SBR_band",12094,null,"Ratified rate","Announced December/Ratified March",null,3,{"$f":"K101+7","v":"2025-04-20"},29,"2025-10-19"]
[null,null,"Scottish intermediate rate band","SIR_band",16171,null,null,null,null,4,"2025-04-27",30,"2025-10-26"]
[null,null,"Band between Basic Rate & Higher rate","HR_band",87440,null,{"$f":"AHR_band-BR_band","v":87440},"=AHR_band-BR_band",null,5,"2025-05-04",31,"2025-11-02"]
[null,null,"Scottish Band between Basic Rate & Higher rate","SHR_band",31338,null,{"$f":"SAHR_band-(SBR_band+SSR_band+SIR_band+SAVR_band)","v":31338},"=SAHR_band-SBR_band",null,6,"2025-05-11",32,"2025-11-09"]
[null,null,"Scottish Advanced rate band","SAR_band",62710,null,{"$f":"SAHR_band-(SBR_band+SSR_band+SIR_band+SHR_band)","v":62710},null,null,7,"2025-05-18",33,"2025-11-16"]
[null,null,"Additional rate band","AHR_band",125140,null,null,null,null,8,"2025-05-25",34,"2025-11-23"]
[null,null,"Scottish Additional rate band","SAHR_band",125140,null,null,null,null,9,"2025-06-01",35,"2025-11-30"]
[null,null,"Class 1 Primary Threshold (employee)","Class1_PT",12570,null,"not for requirements",null,null,10,"2025-06-08",36,"2025-12-07"]
[null,null,"Class 1 Upper Earnings Limit","Class1_UEL",50270,null,"not for requirements",null,null,11,"2025-06-15",37,"2025-12-14"]
[null,null,"Class 2 amount, per week","NIC2_weekamt",3.5,null,"'Ordinary' rate",null,null,12,"2025-06-22",38,"2025-12-21"]
[null,null,"Class 2 annual limit","NIC2_annual_limit",185.5,null,{"$f":"NIC2_weekamt*53","v":185.5},"=NIC2_weekamt*53",null,13,"2025-06-29",39,"2025-12-28"]
[null,null,"Class 2 amount, per week for Share fishermen","NIC2SF_weekamt",4.1500000000000004,null,"Share Fisherman",null,null,14,"2025-07-06",40,"2026-01-04"]
[null,null,"Class 2 annual limit for Share fishermen","NIC2SF_annual_limit",219.95,null,{"$f":"NIC2SF_weekamt*53","v":219.95000000000002},"=NIC2SF_weekamt*53",null,15,"2025-07-13",41,"2026-01-11"]
[null,null,"Class 2 NIC small profit theshhold","NIC2_SPT",6845,null,null,null,null,16,"2025-07-20",42,"2026-01-18"]
[null,null,"Class 2 Lower Profit Threshold","NIC2_LPT",12570,null,null,null,null,17,"2025-07-27",43,"2026-01-25"]
[null,null,"Upper earnings limit (weekly)","NIC_UEL_Wk",967,null,"Not for requirements",null,null,18,"2025-08-03",44,"2026-02-01"]
[null,null,"Primary earnings threshold (weekly)","NIC_PT_Wk",242,null,"Not for requirements",null,null,19,"2025-08-10",45,"2026-02-08"]
[null,null,"Class 4 NIC upper profit limit","NIC_UEL",50270,null,null,null,null,20,"2025-08-17",46,"2026-02-15"]
[null,null,"Class 4 NIC lower profit limit","NIC_LEL",12570,null,null,null,null,21,"2025-08-24",47,{"$f":"M119+7","v":"2026-02-22"}]
[null,null,"NIC rate band","NIC_Band",37700,null,{"$f":"NIC_UEL-NIC_LEL","v":37700},"=NIC_UEL-NIC_LEL",null,22,"2025-08-31",48,{"$f":"M120+7","v":"2026-03-01"}]
[null,null,"Max Class 4 NIC charge","max_NIC",2262,null,{"$f":"NIC_Band*NIC_rate","v":2262},"=NIC_Band*NIC_rate",null,23,"2025-09-07",49,"2026-03-08"]
[null,null,"Count Contribution weeks","Max NIC2 weeks",{"$f":"IF(K97>K98,52,53)","v":53},"NOT FOR REQUIREMENTS",null,null,null,24,"2025-09-14",50,"2026-03-15"]
[null,null,"Student Loan Threshold Plan 1","SL_limit1",26065,null,null,null,null,25,"2025-09-21",51,{"$f":"M123+7","v":"2026-03-22"}]
[null,null,"Student Loan Threshold Plan 2","SL_limit2",28470,null,null,null,null,26,{"$f":"K124+7","v":"2025-09-28"},52,{"$f":"M124+7","v":"2026-03-29"}]
[null,null,"Student Loan Threshold Plan 4","SL_limit4",32745,null,null,null,null,null,null,53,"2026-04-05",{"$f":"IF(M126>M127,52,53)","v":53}]
[null,null,"Postgraduate Loan Threshold","PGL_limit",21000,null,null,null,null,null,null,"last day",{"$f":"K98","v":"2026-04-05"}]
[null,null,"Student Loan Unearned Income Threshold","SL_UIT",2000]
[]
[]
[null,null,"Misc",null,null,null,null,null,null,{"$f":"IF(ppr_extender<1000,ppr_extender,H132&\",\"&IF(I132<10,\"00\"&I132,IF(I132<100,\"0\"&I132,I132)))","v":0}]
["BPA claimed",null,"POA threshold","POA_limit",1000,null,"ppr",{"$f":"TRUNC(ppr_extender/1000,0)","v":0},{"$f":"ppr_extender-(H132*1000)","v":0},{"$f":"IF(gift_extender<1000,gift_extender,H133&\",\"&IF(I133<10,\"00\"&I133,IF(I133<100,\"0\"&I133,I133)))","v":0}]
[null,null,"Resident Non-domicile Lower charge","Res_non_dom_ch",30000,null,"gift aid",{"$f":"TRUNC(gift_extender/1000,0)","v":0},{"$f":"gift_extender-(H133*1000)","v":0},{"$f":"IF(extended_BR<1000,extended_BR,H134&\",\"&IF(I134<10,\"00\"&I134,IF(I134<100,\"0\"&I134,I134)))","v":"37,700"}]
[null,null,"Resident Non-domicile Higher charge","Res_non_dom_High_ch",60000,null,"extended BR",{"$f":"TRUNC(extended_BR/1000,0)","v":37},{"$f":"extended_BR-(H134*1000)","v":700},{"$f":"IF((extended_BR+SR_band)<1000,(extended_BR+SR_band),H135&\",\"&IF(I135<10,\"00\"&I135,IF(I135<100,\"0\"&I135,I135)))","v":"42,700"}]
[null,null,"Non-domicile remittance basis allowance limit","ND_limit",2000,null,"HR limit",{"$f":"TRUNC((extended_BR+SR_band)/1000,0)","v":42},{"$f":"(extended_BR+SR_band)-(H135*1000)","v":700},{"$f":"IF((SR_band)<1000,(SR_band),H136&\",\"&IF(I136<10,\"00\"&I136,IF(I136<100,\"0\"&I136,I136)))","v":"5,000"}]
[null,null,"coded out limit","coded_out_limit",3000,null,"SR band",{"$f":"TRUNC((SR_band)/1000,0)","v":5},{"$f":"(SR_band)-(H136*1000)","v":0}]
[null,null,"Child Benefit Higher Rate Threshold","CBC_HR_threshold",60000]
[null,null,"Child Benefit Taper ","CBC_taper",5.0000000000000001E-3]
[null,null,"Child Benefit rate","CBC_rate",0.01]
[null,null,"Temporary repatriation facility","TRF_rate",0.12]
[null,null,"Winter Fuel Payment Threshold","WFP_threshold",35000]
[null,null,"Winter Fuel Payment Threshold rate","WFP_rate",1]
[]
[null,null,"Allowances"]
[null,null,"Personal Allowance","P_A",12570]
[null,null,"Age Allowance Income limit","AA_limit",37700]
[null,null,"Tapered PA limit","PA_taper_limit",100000]
[null,null,"Age Allowance Income limit excess","AA_excess",0.5]
[null,null,"Personal Savings Allowance Basic Rate","PSA_BR",1000]
[null,null,"Personal Savings Allowance Higher Rate","PSA_HR",500]
[null,null,"Personal Savings Allowance Additional Higher Rate","PSA_AHR",0]
[null,null,"Dividend Allowance","DA",500]
[null,null,"Transferable personal allowance","T_P_A",1260,null,{"$f":"CEILING(P_A*10%,10)","v":1260}]
[null,null,"Minimum MCA","MCA",4360]
[null,null,"Half MCA","MCA_2",2180,null,{"$f":"MCA/2","v":2180}]
[null,null,"Higher MCA","H_MCA",11270]
[null,null,"Blind Person's Allowance","BPA",3130]
[null,null,"Maintenance & Alimony","SMP",4360,null,{"$f":"MCA","v":4360},"=MCA"]
[null,null,"Capital Gains annual exempt amount","CG_exempt",3000]
[null,null,"Deductions Cap","Dedn_cap",50000]
[null,null,"Deductions taper","Dedn_taper",0.25]
[]
[null,null,"Dates",null,null,null,null,"Date stuff",1,"January"]
[null,null,"Year MCA due","MCA_year",1935,25,null,{"$f":"NOW()","v":"2026-02-26T07:53:39.740"},2,"February"]
[null,null,"Tax year start","Tax_year_start",{"$f":"20&F164","v":"2025"},26,null,{"$f":"'Add pages'!I5","v":"00:00:00"},3,"March"]
[null,null,"Tax year end","Tax_year_end",{"$f":"20&F165","v":"2026"},27,null,{"$f":"IF(H165=0,H164,H165)","v":46079.328932175929},4,"April"]
[null,null,"BCD year","BCD_year",{"$f":"20&F166","v":"2027"},null,null,{"$f":"DAY(H166)&\" \"&VLOOKUP(MONTH(H166),I163:J174,2)&\" \"&YEAR(H166)","v":"26 February 2026"},5,"May"]
["Taxpayer Age",null,null,null,null,null,null,null,6,"June"]
[null,null,null,null,null,null,null,null,7,"July"]
[null,null,null,null,null,null,null,null,8,"August"]
[null,null,"Tax Year","Tax_year",{"$f":"Tax_year_start&\"-\"&F165","v":"2025-26"},null,null,null,9,"September"]
[null,null,"Next tax year","next_year",{"$f":"Tax_year_end&\"-\"&F166","v":"2026-27"},null,null,null,10,"October"]
["Wife's Age",null,"Last tax year","last_year",{"$f":"Tax_year_start-1&\"-\"&F164","v":"2024-25"},null,null,null,11,"November"]
[null,null,null,null,null,null,null,null,12,"December"]
[null,null,"Pension Charges"]
["MCA",null,"LTA charge - Lump sum","LTA_lump",0.55000000000000004]
[null,null,"LTA charge - Pension","LTA_pension",0.25,null,null,"Welsh Date stuff",1,"Ionawr"]
[null,null,"Annual Allowance charge threshold","Pen_AA_limit",60000,null,null,{"$f":"NOW()","v":"2026-02-26T07:53:39.770"},2,"Chwefror"]
[null,null,"Money Purchase Annual Allowance charge threshold (lower allowance)","Pen_MPAA_limit",10000,null,null,{"$f":"'Add pages'!I5","v":"00:00:00"},3,"Mawrth"]
[null,null,"Annual Allowance charge Rate","Pen_AA_rate",0.4,null,null,{"$f":"IF(H179=0,H178,H179)","v":46079.328932523145},4,"Ebrill"]
[null,null,"Unauthorised payments ","Pen_Upayts",0.4,null,null,{"$f":"DAY(H180)&\" \"&VLOOKUP(MONTH(H180),I177:J188,2)&\" \"&YEAR(H180)","v":"26 Chwefror 2026"},5,"Mai"]
[null,null,"Unauthorised payments -surcharge","Upayts_surcharge",0.55000000000000004,null,null,null,6,"Mehefin"]
[null,null,"Short service refund Lower Rate","SSR_lower_rate",0.2,null,null,null,7,"Gorffennaf"]
[null,null,"Short service refund Lower Rate band","SSR_lower_band",20000,null,null,null,8,"Awst"]
[null,1,"Short service refund charge Higher Rate","SSR_higher_rate",0.5,null,null,null,9,"Medi"]
[null,2,"Special lump sum death benefit Rate","SLSDB_rate",0.45,null,null,null,10,"Hydref"]
[null,3,"Overseas Transfer Charge","OTC_rate",0.25,null,null,null,11,"Tachwedd"]
[null,null,"Minimum relevant earnings","min_relevant_earns",3600,null,null,null,12,"Rhagfyr"]
[]
["NIC",null,"MCA Age"]
["Class 4 Exempt",1,{"$f":"\"Before 6/4/\"&MCA_year&\" (age over \"&Tax_year_start-MCA_year&\")\"","v":"Before 6/4/1935 (age over 90)"},{"$f":"tp_age_ind=1","v":false}]
[null,2,{"$f":"\"After 6/4/\"&MCA_year&\" (age \"&Tax_year_start-MCA_year&\" or under)\"","v":"After 6/4/1935 (age 90 or under)"},{"$f":"tp_age_ind=2","v":true}]
[]
["Class 2 Voluntary Deductions",null,"MCA Claim Type"]
[null,1,{"$f":"IF(MCA_claim=1,\"\",\"1) Before 6/4/\"&MCA_year)","v":""},{"$f":"Wife_age_ind=1","v":false},{"$f":"\"over \"&Tax_year_start-MCA_year","v":"over 90"}]
[null,2,{"$f":"IF(MCA_claim=1,\"\",\"2) After 5/4/\"&MCA_year&\" or not present\")","v":""},{"$f":"Wife_age_ind=2","v":true}]
[]
[null,1,"1) Not Claimed",{"$f":"MCA!F5=1","v":true}]
[null,2,{"$f":"\"2) husband / higher income partner (box \"&MCA!$C$4&\" present)\"","v":"2) husband / higher income partner (box 1 present)"},{"$f":"MCA!F5=2","v":false}]
[null,3,{"$f":"\"3) wife / lower income partner (box \"&MCA!$C$5&\" present)\"","v":"3) wife / lower income partner (box 8 present)"},{"$f":"MCA!F5=3","v":false}]
[]
[null,1,{"$f":"IF(mca_not_claimed,\"\",\"1) None to spouse/partner\")","v":""},{"$f":"MCA!F13=1","v":true}]
[null,2,{"$f":"IF(MCA_claim>1,\"2) 50% to spouse/partner (box \"&MCA!$C$12&\" ticked)\",\"\")","v":""},{"$f":"MCA!F13=2","v":false}]
[null,3,{"$f":"IF(MCA_claim>1,\"3) All to spouse/partner (box \"&MCA!$C$13&\" ticked)\",\"\")","v":""},{"$f":"MCA!F13=3","v":false}]
[]
[null,null,"Older_spouse",{"$f":"MIN(tp_age_ind,Wife_age_ind)","v":2}]
[]
[null,null,"months not married",{"$f":"months_married-1","v":0}]
[null,null,{"$f":"IF(MCA!$F$5=1,\"\",\"1) \"&'allowances (c14c15)'!C105)","v":""}]
[null,null,{"$f":"IF(MCA!$F$5=1,\"\",\"2) \"&'allowances (c14c15)'!C106)","v":""}]
[null,null,{"$f":"IF(MCA!$F$5=1,\"\",\"3) \"&'allowances (c14c15)'!C107)","v":""}]
[null,null,{"$f":"IF(MCA!$F$5=1,\"\",\"4) \"&'allowances (c14c15)'!C108)","v":""}]
[null,null,{"$f":"IF(MCA!$F$5=1,\"\",\"5) \"&'allowances (c14c15)'!C109)","v":""}]
[null,null,{"$f":"IF(MCA!$F$5=1,\"\",\"6) \"&'allowances (c14c15)'!C110)","v":""}]
[null,null,{"$f":"IF(MCA!$F$5=1,\"\",\"7) \"&'allowances (c14c15)'!C111)","v":""}]
[null,null,{"$f":"IF(MCA!$F$5=1,\"\",\"8) \"&'allowances (c14c15)'!C112)","v":""}]
[null,null,{"$f":"IF(MCA!$F$5=1,\"\",\"9) \"&'allowances (c14c15)'!C113)","v":""}]
[null,null,{"$f":"IF(MCA!$F$5=1,\"\",\"10) \"&'allowances (c14c15)'!C114)","v":""}]
[null,null,{"$f":"IF(MCA!$F$5=1,\"\",\"11) \"&'allowances (c14c15)'!C115)","v":""}]
[null,null,{"$f":"IF(MCA!$F$5=1,\"\",\"12) \"&'allowances (c14c15)'!C116)","v":""}]
[null,null,{"$f":"IF(MCA!$F$5=1,\"\",\"13) \"&'allowances (c14c15)'!C117)","v":""}]
[]
[null,null,"Class 4",{"$f":"OR(SE!L21,SE!M21,LUN!P20,PS!R20,PS!S20,NIC_ex_set)","v":false}]
[null,null,"exempt",{"$f":"NIC_x","v":false}]
[]
[null,null,"Class 2",{"$f":"IF(AND('Class 4 NIC (c16)'!H88<NIC2_SPT,OR(SE!L20,SE!M20,LUN!P19,PS!R19,PS!S19,NIC2_Vol)),\"TRUE\",\"FALSE\")","v":"FALSE"}]
[null,null,"Voluntary Class 2",{"$f":"NIC2_v","v":"FALSE"}]
[]
[null,null,{"$f":"IF(not_to_be_coded,\"Not used\",D229)","v":"On or before 31 October 2026"},{"$f":"\"On or before 31 October \"&Tax_year_end","v":"On or before 31 October 2026"}]
[null,null,{"$f":"IF(not_to_be_coded,\"\",D230)","v":"After 31 October 2026"},{"$f":"\"After 31 October \"&Tax_year_end","v":"After 31 October 2026"}]

{"sheet":"Changes log","index":2,"n_rows":342,"n_cols":4,"rows_kept":342,"cut":false,"hidden":false,"merged":[]}
["Key"]
["Version change Prime colours per change log"]
["Roll forward annual changes OE"]
["Furnished Holiday lettings Regime Repeal"]
["ORIP Repeal"]
["Non UK Domicile reform"]
["SA Data Gaps Start and End dates"]
["SA Data Gaps Dividends"]
["CGT rate changes"]
["Green First year Capital Allowances "]
["Winter Fuel Payment"]
["Pensions programme - Low Earners Anomaly"]
["SRIT"]
["WRIT"]
[]
["Change Reason","Worksheet changed","What was changed","Notes"]
["Changes v0.0.1","2025-02-13"]
["v0.0.1 created","NONE","Taken from MTR_Tester-2024-25-V-2.4.0","This is the baseline 13/01/2025"]
["roll forward","Changes Log","Version change Prime colours per change log updated"]
["roll forward","Changes Log","Previous Year PY changes removed"]
["roll forward","Test Case index","Previous Year PY changes highlighting removed"]
["roll forward","tc_template","Previous Year PY changes highlighting removed"]
["Changes v0.1.0","2025-02-18"]
["v0.0.1 created","NONE","Taken from MTR_Tester-2025-26 - V0.0.1"]
["roll forward","Data tab","Previous Year PY changes/highlighting removed "]
["roll forward","Data tab","NIC2_weekamt changed from \"3.45\" to \"3.50\""]
["roll forward","Data tab","NIC2_annual_limit changed from \"182.85\" to \"185.50\""]
["roll forward","Data tab","NIC2SF_weekamt changed from \"4.10\" to \"4.15\""]
["roll forward","Data tab","NIC2SF_annual_limit changed from \"217.30\" to \"219.95\""]
["roll forward","Data tab","NIC2_SPT changed from \"6725\" to \"6845\""]
["roll forward","Data tab","SSR_band changed from \"2,306\" to \"2,827\""]
["roll forward","Data tab","SBR_band changed from \"11,685\" to \"12,094\""]
["roll forward","Data tab","SIR_band changed from \"17,101\" to \"16,171\""]
["roll forward","Data tab","SL_limit1 changed from \"24,990\" to \"26,065\""]
["roll forward","Data tab","SL_limit1 changed from \"27,295\" to \"28,470\""]
["roll forward","Data tab","SL_limit1 changed from \"31,395\" to \"32,745\""]
["roll forward","Data tab","MCA changed from \"4,280\" to \"4,360\""]
["roll forward","Data tab","MCA_2 changed from \"2,140\" to \"2,180\""]
["roll forward","Data tab","H_MCA  changed from \"11,080\" to \"11,270\""]
["roll forward","Data tab","BPA  changed from \"3,070\" to \"3,130\""]
["roll forward","Data tab","SMP  changed from \"4,280\" to \"4,360\""]
["roll forward","Data tab","Lower_CGT_rate changed from \"10%\" to \"18%\""]
["roll forward","Data tab","Upper_CGT_rate changed from \"20%\" to \"24%\""]
["roll forward","Data tab","ER_CGT_rate changed from \"10%\" to \"14%\""]
["roll forward","Data tab","Lower_CGT_rate_CI struck through"]
["roll forward","Data tab","Upper_CGT_rate_CII struck through"]
["Changes v1.0.0","2025-07-23"]
["test case enhancements and FHL","component sheets","changes made for a large number of test cases","Furnished holiday lettings"]
["Enhancements","TSR (c17)","Formula in cell F101 (c17.21) changed to only calculate when resident"]
["Furnished Holiday lettings Regime Repeal","NS income (c1)","c1.28 changed from \"Total all instances (lower of PRO13 and PRO14)\" to \"Set to zero\""]
["Furnished Holiday lettings Regime Repeal","NS income (c1)","c1.29 changed from \"Total all instances (PRO15)\" to \"Set to zero\""]
["Furnished Holiday lettings Regime Repeal","NS income (c1)","c1.30 changed from \"c1.29 + c1.28\" to \"Set to zero\""]
["Furnished Holiday lettings Regime Repeal","NS income (c1)","c1.34 changed from \"c1.30 + c1.33\" to \"Set to zero\""]
["Furnished Holiday lettings Regime Repeal","NS income (c1)","c1.57 changed from \"c1.9 + c1.10 + c1.17 + c1.20 + c1.27 + c1.34 + c1.35a + c1.40 + c1.44 + c1.51 + c1.52 + c1.56\" to \"c1.9 + c1.10 + c1.17 + c1.20 + c1.27 + c1.33 + c1.35a + c1.40 + c1.44 + c1.51 + c1.52 + c1.56\""]
["Furnished Holiday lettings Regime Repeal","Deductions (c4)","c4.27 changed from \"from c1.28\" to \"Set to zero\""]
["Furnished Holiday lettings Regime Repeal","Deductions (c4)","c4.39 changed from \"c4.1 + c4.4 + c4.5 + c4.6 + c4.7 + c4.8 + c4.13 + c4.14 + c4.19 + c4.20 + c4.24.1 + c4.27 + c4.28 + c4.31 + c4.33 + c4.34 + c4.35 + c4.36 + c4.37 + c4.38 + c4.37.1\" to \"c4.1 + c4.4 + c4.5 + c4.6 + c4.7 + c4.8 + c4.13 + c4.14 + c4.19 + c4.20 + c4.24.1 + c4.28 + c4.31 + c4.33 + c4.34 + c4.35 + c4.36 + c4.37 + c4.38 + c4.37.1\""]
["Furnished Holiday lettings Regime Repeal","Deductions (c4)","c4.46 changed from \"c4.2 + c4.4 + c4.26 + c4.27 + c4.28 + c4.33 + c4.35 + c4.37.1\" to \"c4.2 + c4.4 + c4.26 + c4.28 + c4.33 + c4.35 + c4.37.1\""]
["Furnished Holiday lettings Regime Repeal","Deductions (c4)","c4.63b changed from \"c4.5 + c4.7 + c4.13 + c4.19 + c4.27 + c4.28 + c4.33 + c4.35\" to \"c4.5 + c4.7 + c4.13 + c4.19 + c4.28 + c4.33 + c4.35\""]
["Furnished Holiday lettings Regime Repeal","S loans (c27)","c27.15 changed from \"Total all instances of PRO15\" to \"Set to zero\""]
["Furnished Holiday lettings Regime Repeal","IRCX_template","L10 income-IFP MTR Calculation box changed from \"c1.34\" to \"c1.33\""]
["Furnished Holiday lettings Regime Repeal","component sheets","c5 boxes 5 - 19 struck through"]
["Furnished Holiday lettings Regime Repeal","target","updated"]
["Furnished Holiday lettings Regime Repeal","tc_template","updated"]
["Pensions programme - Low Earners Anomaly","NS income (c1)","c1.8.1 changed from \"Total all instances (EMP3.1)\" to \"Set to zero\""]
["Pensions programme - Low Earners Anomaly","NS income (c1)","c1.9 changed from \"(c1.4 + c1.5 + c1.8.1) minus c1.8\" to \"(c1.4 + c1.5) minus c1.8\""]
["Pensions programme - Low Earners Anomaly","NS income (c1)","c3.21.1 changed from \"(c1.57 + c1.58 + c2.19 + c3.15 + c3.18 + c3.19 + c3.20) minus c1.8.1\" to \"Set to zero\""]
["SA Data Gaps Dividends","component sheets","C2 7.1-7.5 added"]
["SA Data Gaps Start and End dates","component sheets","C3 5.1 & 6.1 added (FSE)"]
["SA Data Gaps Start and End dates","component sheets","C3 4.1 & 5.1 added (SSE)"]
["SA Data Gaps Start and End dates","component sheets","C4 2.1 & 3.1 added (FPS)"]
["SA Data Gaps Start and End dates","component sheets","C4 2.1 & 3.1 added (SPS)"]
["SA Data Gaps Dividends","component sheets","TC8 & TC21 updated "]
["Enhancements","Deductions (c4)","new box \"c4.57.1\" \"from REL1\""]
["Enhancements","Deductions (c4)","new box \"c4.57.2\" \"c1.9 + c1.10 + c1.17 + c1.20 + c1.27 + c1.53 + c1.58 + c4.40.1 + c4.40.2\""]
["Enhancements","Deductions (c4)","new box \"c4.57.3\" \"higher of min_relevant_earns (£3,600) and c4.57.2\""]
["Enhancements","Deductions (c4)","c4.58 changed from \"from REL1\" to \"lower of c4.57.1 and c4.57.4\""]
["Non UK Domicile reform","NRD","Components, input sheet, tc_template and target updated"]
["Non UK Domicile reform","FOR","Components, input sheet, tc_template and target updated"]
["Non UK Domicile reform","RBC (c19)","c19.1 changed from \n“if (box_NRD28 = Y, box_NRD29 = N, and box_NRD = N)\nand (NRD + NRD is greater than 0 (zero))\n if box_NRD = Y then c19.1 = Res_non_dom_High_ch (£60,000)\nelse\n if box_NRD = Y then c19.1 = Res_non_dom_ch (£30,000)\nelse\nc19.1 = 0 (zero)\nend if\nend if\nend if”\nto \n“Set to zero”"]
["Non UK Domicile reform","IRCX_template","L93d MTR calculation box for \"non-dom-charge-amount\" changed from \n\"c19.1\" \nto \n\"not in use\""]
["Non UK Domicile reform","Data tab","\"Res_non_dom_ch\" struck through - no longer used"]
["Non UK Domicile reform","Data tab","\"Res_non_dom_High_ch\" struck through - no longer used"]
["Non UK Domicile reform","Data tab","\"ND_limit\" struck through - no longer used"]
["Non UK Domicile reform","Data tab","TRF_rate 12% added"]
["Non UK Domicile reform","IRCX_template","L83d - TRF_amount added"]
["Non UK Domicile reform","IRCX_template","L83d - TRF_charge added"]
["Non UK Domicile reform","IRCX_template","data name non-dom-charge-amount MTR calc box changed from \n\"c19.1\"  \nto \n\"Set to zero\""]
["Non UK Domicile reform","SA302_template","L79A struck through"]
["Non UK Domicile reform","SA302_template","L83d added"]
["Non UK Domicile reform","SA302_template","L93d struck through"]
["Non UK Domicile reform","Deductions (c4)","First If above c4.64 changed from\n“if (box_NRD28 = Y and box_NRD29 = N and box_NRD16 = N)\nor (box_NRD1 = Y and box_NRD15 = N and box_NRD16 = N)\nor (Calculation type = non-resident)\nset boxes c4.64 to c4.69 to 0 (zero)\nelse”\nto\n“if (box_NRD28 = Y or box_NRD29 = Y or box_NRD40 = Y)\nor (box_NRD1 = Y and box_NRD15 = N and box_NRD16 = N)\nor (Calculation type = non-resident)\nset boxes c4.64 to c4.69 to 0 (zero)”"]
["Non UK Domicile reform","Deductions (c4)","Overarching If above c4.68 changed from\n“if (box_NRD1 = Y and box_NRD15 = Y and box_NRD16 = N)\nc4.68 = 0 (zero)\nelse”\nto\n“if (box_NRD1 = Y and box_NRD15 = Y and box_NRD16 = N)\nor (box_NRD28 = Y or box_NRD29 = Y or box_NRD40 = Y)\nc4.68 = 0 (zero)”"]
["Non UK Domicile reform","Deductions (c4)","c4.4 changed from \n“If calculation type = non-resident\nc4.4 = 0 (zero)\nelse\nc4.4 = AOR8\nend if”\nto\n“If calculation type = non-resident\nor (box_NRD28 = Y or box_NRD29 = Y or box_NRD40 = Y)\nc4.4 = 0 (zero)\nelse\nc4.4 = AOR8\nend if”"]
["Non UK Domicile reform","Tax adj (c9)","Overarching If above c9.16 changed from\n“If (box_NRD28 = Y and box_NRD29 = N and box_NRD16 = N)\nor (box_NRD1 = Y and box_NRD15 and box_NRD16 = N)\nor Calculation type = non-resident\nset boxes c9.16 to c9.17 to 0 (zero)\nelse”\nto \n“If (box_NRD28 = Y or box_NRD29 = Y or box_NRD40 = Y)\nor (box_NRD1 = Y and box_NRD15 and box_NRD16 = N)\nor Calculation type = non-resident\nset boxes c9.16 to c9.17 to 0 (zero)\nelse”\t"]
["Non UK Domicile reform","Tax adj (c9)","Overarching If above c9.20 changed from\n“If (box_NRD28 = Y and box_NRD29 = N and box_NRD16 = N)\nor (box_NRD1 = Y and box_NRD15 and box_NRD16 = N)\nor Calculation type = non-resident\nset boxes c9.16 to c9.17 to 0 (zero)\nelse”\nto \n“If (box_NRD28 = Y or box_NRD29 = Y or box_NRD40 = Y)\nor (box_NRD1 = Y and box_NRD15 and box_NRD16 = N)\nor Calculation type = non-resident\nset boxes c9.20 to c9.21 to 0 (zero)\nelse”\t"]
["Non UK Domicile reform","NS income (c1)","c1.35 changed from \n\"FOR7.2 + FOR7.4 + FOR9 + FOR13 + FOR41 + FOR42\" \nto \n\"c1.35a + c1.35b + c1.35c + c1.35d c10.3.2\""]
["Non UK Domicile reform","NS income (c1)","c1.35a changed from \n\"c1.35 + c10.3.2\" \nto \n\"from FOR7.2\""]
["Non UK Domicile reform","NS income (c1)","new box c1.35b \"from FOR4\""]
["Non UK Domicile reform","NS income (c1)","new box c1.35c \"from FOR9\""]
["Non UK Domicile reform","NS income (c1)","new box c1.35d \"from FOR13"]
["Non UK Domicile reform","NS income (c1)","c1.41 changed from \n\"from INC6\" \nto \n\"from FOR48\""]
["Non UK Domicile reform","NS income (c1)","If surrounding c1.41 to c1.43a struck though"]
["Non UK Domicile reform","NS income (c1)","c1.42 changed from \n“from FOR4” \nto \n“from FOR54”\n"]
["Non UK Domicile reform","NS income (c1)","c1.43 changed from \n“from FOR6” \nto \n“from FOR55”"]
["Non UK Domicile reform","NS income (c1)","c1.43a changed from \n“from FOR11” \nto \n“from FOR56”"]
["Non UK Domicile reform","NS income (c1)","new box c1.43b \"from FOR57\""]
["Non UK Domicile reform","NS income (c1)","new box c1.43c \"from FOR58\""]
["Non UK Domicile reform","NS income (c1)","new box c1.43d \"from FOR59\""]
["Non UK Domicile reform","NS income (c1)","new box c1.43e \"from FOR60\""]
["Non UK Domicile reform","NS income (c1)","new box c1.43f  \"from FOR61\""]
["Non UK Domicile reform","NS income (c1)","new box c1.43g \"from FOR62\""]
["Non UK Domicile reform","NS income (c1)","new box c1.43h \"from FOR63\""]
["Non UK Domicile reform","NS income (c1)","new box c1.43i \"from FOR64\""]
["Non UK Domicile reform","NS income (c1)","c1.44 changed from \n“c1.41 + c1.42 + c1.43 + c1.43a”\nto\n“c1.41 + c1.42 + c1.43 + c1.43a + c1.43b + c1.43c + c1.43d + c1.43e + c1.43f + c1.43g + c1.43h + c1.43i”"]
["Non UK Domicile reform","NS income (c1)","new box c1.51.1 \"from TRU22.1\""]
["Non UK Domicile reform","NS income (c1)","c1.57 changed from \n\"c1.9 + c1.10 + c1.17 + c1.20 + c1.27 + c1.34 + c1.35a + c1.40 + c1.44 + c1.51 + c1.52 + c1.56\" \nto \n\"c1.9 + c1.10 + c1.17 + c1.20 + c1.27 + c1.33 + c1.35 + c1.40 + c1.44 + c1.51 + c1.52 + c1.56\""]
["Non UK Domicile reform","Savings (c2)","c2.7 changed from \n“If NRD28 = N\nc2.7= FOR4\nelse c2.7 = 0\nend if”\nto\n“FOR4”"]
["Non UK Domicile reform","Savings (c2)","new box c2.7.1 \"from FOR51\""]
[null,"Savings (c2)","c2.9 changed from \n\"c2.6 + c2.7 + c2.8\" \nto \n\"c2.6 + c2.7 + c2.7.1 + c2.8\""]
["Non UK Domicile reform","Divs (c3)","If surrounding c3.2 to c3.4 struck through."]
["Non UK Domicile reform","Divs (c3)","new box c3.4.1 \"from FOR53\""]
["Non UK Domicile reform","Divs (c3)","c3.5 changed from \n“c3.2 + c3.3 + c3.4”\nto\n“c3.2 + c3.3 + c3.4 + c3.4.1”"]
["Non UK Domicile reform","Tax adj (c9)","c9.39g changed from \n\"set to zero\" \nto \n\"NRD51\""]
[null,null,"new box c9.39g1 \"from NRD53\""]
["Non UK Domicile reform","Tax adj (c9)","c9.39h changed from \n\"set to zero\" \nto \n\"(c9.39g + c9.39g1) × TRF_rate (12%)\""]
["Non UK Domicile reform","CG (18)","new box c18.4.1"]
["Non UK Domicile reform","CG (18)","new box c18.4.2"]
["Non UK Domicile reform","CG (18)","new box c18.4.3"]
["Non UK Domicile reform","CG (18)","new box c18.4.4"]
["Non UK Domicile reform","CG (18)","new box c18.4.5"]
["Non UK Domicile reform","CG (18)","new box c18.4.6"]
["Non UK Domicile reform","CG (18)","new box c18.4.7"]
["Non UK Domicile reform","CG (18)","new box c18.4.8"]
["Non UK Domicile reform","CG (18)","new box c18.4.9"]
["Non UK Domicile reform","CG (18)","new box c18.4.10"]
["Non UK Domicile reform","CG (18)","c18.5a changed from \n\"c18.5 minus c18.1\" \nto \n\"c18.5 minus c18.4.6\""]
["Non UK Domicile reform","CG (18)","c18.7 changed from \n\"c18.5 minus (c18.1 + c18.1a)\" \nto \n\"c18.5 minus (c18.4.6 + c18.4.7)\""]
["Non UK Domicile reform","CG (18)","c18.8 changed from \n\"c18.5 minus (c18.1 + c18.1a + c18.3)\" \nto \n\"c18.5 minus (c18.4.6 + c18.4.7 + c18.4.8)\""]
["Non UK Domicile reform","CG (18)","c18.9 changed from \n\"c18.1 minus c18.5\" \nto \n\"c18.4.6 minus c18.5\""]
["Non UK Domicile reform","CG (18)","c18.9a changed from \n\"c18.1a minus c18.5a\" \nto \n\"c18.4.7 minus c18.5a\""]
["Non UK Domicile reform","CG (18)","c18.11 changed from \n\"c18.3 minus c18.7\" \nto \n\"c18.4.8 minus c18.7\""]
["Non UK Domicile reform","CG (18)","c18.12 changed from \n\"c18.4 minus c18.8\" \nto \n\"c18.4.10 minus c18.8\""]
["Non UK Domicile reform","CG (18)","c18.24 changed from \n\"If (box_NRD28 = Y and box_NRD29 = N and box_NRD16 = N)\nc18.24 = 0 (zero)\nElse\nc18.24 = CG_exempt (£3,000)\nend if\" \nto \n\"If (box_NRD28 = Y or box_NRD29 = Y or box_NRD40 = Y)\nc18.24 = 0 (zero)\nElse\nc18.24 = CG_exempt (£3,000)\nend if\""]
["Non UK Domicile reform","LLIR (24)","new box c24.9.1"]
["Non UK Domicile reform","LLIR (24)","c24.15a changed from \n\"c24.1 + c24.3a + c24.4a + c24.6 + c24.9 + c24.10\" \nto \n\"c24.1 + c24.3a + c24.4a + c24.6 + c24.9 + c24.9.1 + c24.10\""]
["Non UK Domicile reform","LLIR (24)","c24.16 changed from \n\"c24.3 + c24.4 + c24.5 + c24.8 + c24.9 + c24.10\" \nto \n\"c24.3 + c24.4 + c24.5 + c24.8 + c24.9 + c24.9.1 + c24.10\""]
["Non UK Domicile reform","SA302_template","new line L27.1 added"]
["Non UK Domicile reform","SA302_template","new line L27.2 and L27.2 Or added"]
["Non UK Domicile reform","SA302_template","L85 2 new Or lines added"]
["Non UK Domicile reform","SA302_template","L85 print condition for 1st line and 1st Or updated to include TRF_charge"]
["Non UK Domicile reform","SA302_template","L94 - four new Or lines added"]
["Non UK Domicile reform","SA302_template","L94 - 1st four lines updated to include TRF_charge"]
["Non UK Domicile reform","SA302_template","L111 - four new Or lines added"]
["Non UK Domicile reform","SA302_template","L111 - 1st four Or lines updated to include TRF_charge"]
["Non UK Domicile reform","SA302_template","L120e - four new Or lines added"]
["Non UK Domicile reform","SA302_template","L120e - 1st four lines updated to include TRF_charge"]
["Non UK Domicile reform","SA302_template","L120h - four new Or lines added"]
["Non UK Domicile reform","SA302_template","L120h - 1st for lines updated to include TRF_charge"]
["Non UK Domicile reform","SA302_template","L121 - four new Or lines added"]
["Non UK Domicile reform","SA302_template","L121 - 1st four Or lines updated to include TRF_charge"]
["Non UK Domicile reform","SA302_template","L126 - two new Or lines"]
["Non UK Domicile reform","SA302_template","L126 - 1st two lines updated"]
["Non UK Domicile reform","POAs (c13)","c13.11 changed from \n\"c12.16 minus (c12.3 + c12.7 + c12.7b + c13.8 + NRD36)\" \nto \n\"c12.16 minus (c12.3 + c12.7 + c12.7b + c13.8)"]
["Non UK Domicile reform","POAs (c13)","c13.12 changed from \n\"c9.25 + c9.27 + c12.1e + c12.2 + c12.9 + c12.11 minus NRD36\" \nto \n\"c9.25 + c9.27 + c12.1e + c12.2 + c12.9 + c12.11\""]
["CGT rate changes","Data tab","\"CI_CGT_rate (32%) added"]
["CGT rate changes","CG (18)","c18.41 changed from \n\"Lower of c18.27 and c18.40\" \nto \n\"Set to zero\""]
["CGT rate changes","CG (18)","c18.42 changed from \n\"c18.41 × Lower_CGT_rate_CI (32%)\" \nto \n\"Set to zero\""]
["CGT rate changes","CG (18)","c18.43 changed from \n\"c18.27 minus c18.41\" \nto \n\"c18.27\""]
[null,null,"c18.44 changed from \n\"c18.43 × Upper_CGT_rate_CI (28%)\"\nto\n\"c18.43 × CI_CGT_rate (32%)\""]
["CGT rate changes","CG (18)","c18.45 changed from \n\"c18.40 minus c18.27\" \nto \n\"Set to zero\""]
["CGT rate changes","CG (18)","c18.45.1 changed from \n\"Lower of c18.27.1 and c18.45\" \nto \n\"Lower of c18.27.1 and c18.40\""]
["CGT rate changes","CG (18)","c18.45.5 changed from \n\"c18.45 minus c18.27.1\" \nto \n\"c18.40 minus c18.27.1\""]
["Roll forward annual changes OE","Deductions (c4)","new box c4.57.1"]
["Roll forward annual changes OE","Deductions (c4)","new box c4.57.2"]
["Non UK Domicile reform","Deductions (c4)","new box c4.47.1"]
["Non UK Domicile reform","Deductions (c4)","new box c4.47.2"]
["Non UK Domicile reform","Deductions (c4)","new box c4.47.3"]
["Non UK Domicile reform","Deductions (c4)","new box c4.47.4"]
["Non UK Domicile reform","Deductions (c4)","new box c4.47.5"]
["Non UK Domicile reform","Deductions (c4)","new box c4.47.6"]
["Non UK Domicile reform","Deductions (c4)","new box c4.47.7"]
["Non UK Domicile reform","Deductions (c4)","new box c4.47.8"]
["Non UK Domicile reform","Deductions (c4)","new box c4.47.9"]
["Non UK Domicile reform","Deductions (c4)","new box c4.47.10"]
["Non UK Domicile reform","Deductions (c4)","new box c4.47.11"]
["Non UK Domicile reform","Deductions (c4)","new box c4.47.12"]
["Non UK Domicile reform","Deductions (c4)","new box c4.47.13"]
["Non UK Domicile reform","Deductions (c4)","new box c4.47.14"]
["Non UK Domicile reform","Deductions (c4)","new box c4.47.15"]
["Non UK Domicile reform","Deductions (c4)","new box c4.47.16"]
["Non UK Domicile reform","Deductions (c4)","new box c4.47.17"]
["Non UK Domicile reform","Deductions (c4)","new box c4.47.18"]
["Non UK Domicile reform","Deductions (c4)","new box c4.47.19"]
["Non UK Domicile reform","Deductions (c4)","new box c4.47.20"]
["Non UK Domicile reform","Deductions (c4)","new box c4.47.21"]
["Non UK Domicile reform","Deductions (c4)","new box c4.47.22"]
["Non UK Domicile reform","Deductions (c4)","new box c4.47.23"]
["Non UK Domicile reform","Deductions (c4)","new box c4.47.24"]
["Non UK Domicile reform","Deductions (c4)","new box c4.47.25"]
["Non UK Domicile reform","Deductions (c4)","new box c4.47.26"]
["Non UK Domicile reform","Deductions (c4)","new box c4.47.27"]
["Non UK Domicile reform","Deductions (c4)","new box c4.47.28"]
["Non UK Domicile reform","Deductions (c4)","new box c4.47.29"]
["Non UK Domicile reform","Deductions (c4)","new box c4.47.30"]
["Non UK Domicile reform","Deductions (c4)","new box 4.57.3"]
["Non UK Domicile reform","Deductions (c4)","new box 4.57.4"]
["Non UK Domicile reform","Deductions (c4)","box 4.63b changed from \nc4.5 + c4.7 + c4.13 + c4.19 + c4.27 + c4.28 + c4.33 + c4.35 \nto\nc4.5 + c4.7 + c4.13 + c4.19 + c4.28 + c4.33 + c4.35"]
["Non UK Domicile reform","Deductions (c4)","box 4.63c changed from\nc4.63a minus c4.63b\nto\nc4.63a minus c4.47.19 + c4.47.30 +c4.63b"]
["Non UK Domicile reform","Deductions (c4)","box c4.70 changed from\nc4.47 + c4.48 + c4.49 + c4.51 + c4.54 + c4.69 \nto\nc4.47 + c4.47.19 + c4.47.23 + c4.47.27 + c4.47.30 + c4.48 + c4.49 + c4.51 + c4.54 + c4.69"]
["Non UK Domicile reform","Deductions (c4)","box 4.70a changed from\nc4.70 minus c4.63b \nto\nc4.70 minus (c4.47.19 + c4.47.23 + c4.47.27 + c4.47.30 + c4.63b)"]
["Non UK Domicile reform","Taxable (c5)","box 5.1 changed from\nc4.70 minus c4.63b \nto\nc4.70 minus (c4.47.19 + c4.47.23 + c4.47.27 + c4.47.30 + c4.63b)"]
["Non UK Domicile reform","Taxable (c5)","box 5.3 changed from\nIf calculation type = non-resident\nc5.3 = c91.6 minus c4.63b\nelse\nc5.3 = c4.63c\nend if \nto\nIf calculation type = non-resident\nc5.3 = c91.6 minus (c4.47.19 + c4.47.30 + c4.63b)\nelse\nc5.3 = c4.63c\nend if"]
["Non UK Domicile reform","Taxable (c5)","c5.11 changed from \n\"If calculation type = non-resident\nc5.11 = c91.14\nelse\nc5.11 = c2.19 minus c4.63.24\nend if\"  \nto \nIf calculation type = non-resident\nc5.11 = c91.14\nelse\nc5.11 = c2.19 minus c4.47.23"]
["Non UK Domicile reform","Taxable (c5)","c5.22 changed from \n\"If calculation type = non-resident\nc5.22 = c91.23\nelse\nc5.22 = c3.15 minus c4.63.28\nend if\"\nto\n\"If calculation type = non-resident\nc5.22 = c91.23\nelse\nc5.22 = c3.15 minus c4.47.27\nend if\""]
["Non UK Domicile reform","Taxable (c5)","c5.40 changed from \n\"If calculation type = non-resident\nc5.40 = c91.23\nelse\nc5.40 = c3.15 minus (c5.38 + c5.39 + c4.63.28)\nend if\"\nto\n\"If calculation type = non-resident\nc5.40 = c91.23\nelse\nc5.40 = c3.15 minus (c4.47.27 + c5.38 + c5.39)\nend if\""]
["Non UK Domicile reform","Taxable (c5)","c5.85 changed from  \n\"If calculation type = non-resident\nc5.85 = c91.28 minus (c4.63.19 + c4.63.24 + c4.63.28 + c4.63.31 + c4.63b)\nelse\nc5.85 = c3.21 minus (c4.63.19 + c4.63.24 + c4.63.28 + c4.63.31 + c4.63b)\nend if\"\nto\nIf calculation type = non-resident\nc5.85 = c91.28 minus (c4.47.19 + c4.47.23 + c4.47.27 + c4.47.30 + c4.63b)\nelse\nc5.85 = c3.21 minus (c4.47.19 + c4.47.23 + c4.47.27 + c4.47.30 + c4.63b)\nend if\n"]
["Non UK Domicile reform","TSR (c17)","c17.6 changed from \nc4.70 minus c4.63b \nto\nc4.70 minus (c4.47.19 + c4.47.23 + c4.47.27 + c4.47.30 + c4.63b)"]
["Non UK Domicile reform","TSR (c17)","c17.22c changed from \nc2.19 minus (c2.6 + c2.18)\nto\nc2.19 minus c2.6 + c2.18 + c4.47.23)"]
["Non UK Domicile reform","TSR (c17)","c17.22f changed from\n'from c3.15' \nto\nc3.15 minus c4.47.27"]
["Non UK Domicile reform","TSR (c17)","above c17.38.1 changed from \nc17.38.1 = c4.70 minus c4.63b\t\nset c4.41 to c3.26 + c4.40.1 + c4.40.2\t\nset c4.55 to c4.54.2 minus c4.54.3\t\nelse\t\nCalculate c17.38.1\nto \nc17.38.1 = c4.70 minus (c4.47.19 + c4.47.23 + c4.47.27 + c4.47.30 + c4.63b)\t\nset c4.41 to c3.26 + c4.40.1 + c4.40.2\t\nset c4.55 to c4.54.2 minus c4.54.3\t\nelse\t\nCalculate c17.38.1\t"]
["Enhancements","Taxable (c5)","c5.66u changed from \n“if (c5.35 minus ((c5.44 + c5.52h + c5.58.7 + c5.62 + c5.66.7) minus c5.66q)) + (c5.37 minus\n(c5.46 + c5.52l + c5.64 + c5.68a + c5.66q + c5.66t)) > c5.2a\nc5.66u = 0 (zero)\nelse\nc5.66u = lower of (c5.35 minus (c5.44 + c5.52h + c5.58.7 + c5.62 + c5.66.7)) and c5.52l\nend if”\nto\n“if (c5.35 minus ((c5.44 + c5.52h + c5.58.7 + c5.62 + c5.66.7) minus c5.66q)) + ((c5.37 + c5.41) minus\n(c5.46 + c5.52l + c5.64 + c5.68a + c5.66q + c5.66t)) > c5.2a\nc5.66u = 0 (zero)\nelse\nc5.66u = lower of (c5.35 minus (c5.44 + c5.52h + c5.58.7 + c5.62 + c5.66.7)) and c5.52l\nend if”"]
["Enhancements","Taxable (c5)","c5.58.43a changed from \"lower of (c5.36 minus (c5.58a.1b + c5.58a.40 + c5.58a.41 + c5.58a.42 + c5.58a.43)) and\n((c3a.1a + c5.2 + c3a.2a + c3a.3 + c3a.3.1) minus (c5.58a.3 + c5.58a.4 + c5.58a.21 + c5.58a.40 + c5.58a.41 + c5.58a.42 + c5.58a.43))\" \nto \n\"Set to zero\"","JIRA664"]
["Enhancements","Taxable (c5)","new box c5.58a.43a","JIRA664"]
["Winter Fuel Payment","Tax adj (c9)","c9.39i changed from \n\"c9.39 + c9.39a + c9.39b + c9.39c + c9.39d + c9.39f + c9.39h\"\nto\n\"from box WFP1\""]
["Winter Fuel Payment","Tax adj (c9)","new box c9.39j"]
["Winter Fuel Payment","Tax adj (c9)","new box c9.39k"]
["Winter Fuel Payment","Tax adj (c9)","c9.40 changed from \n\"c9.31 + c9.39i\" \nto \n\"c9.31 + c9.39k\""]
["Winter Fuel Payment","Data tab","\"WFP_threshold\" (£35,000) added"]
["Winter Fuel Payment","Data tab","\"WFP_rate\" (100%) added"]
["Winter Fuel Payment","SA302_template","L80b \"Winter Fuel Payment charge\" added"]
["Winter Fuel Payment","SA302_template","L80b Or \"Pension Age Winter Heating Payment charge\" added"]
["Winter Fuel Payment","IRCX_template","WFP_charge (c9.39j) added"]
["Winter Fuel Payment","IRCX_template","WFP_amount (c9.39i) added"]
["Changes v1.1.0","2025-08-14"]
["roll forward","Data tab","\"AA_limit\" changed from \"37,000\" to \"37,700\""]
["Changes v1.2.0","2025-08-26"]
["Non UK Domicile reform","CG (18)","c18.4.1 - £up rounding added"]
["Non UK Domicile reform","CG (18)","c18.4.2 - £up rounding added"]
["Non UK Domicile reform","CG (18)","c18.4.3 - rounding changed from \"£down\" to \"£up\""]
["Non UK Domicile reform","CG (18)","c18.4.4 - £up rounding added"]
["Non UK Domicile reform","CG (18)","c18.4.5 - £up rounding added"]
["Non UK Domicile reform","Tax adj (c9)","c9.39h - pdown rounding added"]
["Winter Fuel Payment","Tax adj (c9)","c9.39j - pdown rounding added"]
["Pensions programme - Low Earners Anomaly","S loans(c27)","c27.1a changed from \n\"(EMP1 + EMP3 + EMP3.1 + EMP12 + EMP16) minus EMP1.1\" \nto \n\"(EMP1 + EMP3 + EMP12 + EMP16) minus EMP1.1\""]
["Pensions programme - Low Earners Anomaly","target","EPM3.1 removed"]
["Pensions programme - Low Earners Anomaly","tc_template","EMP3.1 set to \"Box not in use\""]
["Pensions programme - Low Earners Anomaly","NS income (c1)","c1.9 changed from \"(c1.4 + c1.5) minus c1.8\" \nto \n\"If LEA calc\nc1.9 = (c1.4 + c1.5 + unmatched contributions) minus c1.8\nelse\nc1.9 = (c1.4 + c1.5) minus c1.8\nend if\"","CESA only"]
["Non UK Domicile reform","Taxable (c5)","c5.38 changed from \n“If calculation type = non-resident\nc5.38 = 0 (zero)\nelse\nc5.38 = c3.5\nend if”\nto \n“If calculation type = non-resident\nc5.38 = 0 (zero)\nelse\nc5.38 = (3.5 + 3.1) minus c4.47.27\nend if"]
["Non UK Domicile reform","Taxable (c5)","c5.40 changed from \n“If calculation type = non-resident\nc5.40 = c91.23\nelse\nc5.40 = c3.15 minus (c4.47.27 + c5.38 + c5.39)\nend if”\nto\nIf calculation type = non-resident\nc5.40 = c91.23\nelse\nc5.40 = c5.22 minus (c5.38 + c5.39)\nend if"]
["Changes v1.3.0","2025-09-19"]
["Non UK Domicile reform","Deductions (c4)","new box c4.47.4a"]
["Non UK Domicile reform","Deductions (c4)","c4.47.19 changed from \n“c4.47.1 + c4.47.2 + c4.47.3 + c4.47.4 + c4.47.5 + c4.47.6 + c4.47.7 + c4.47.8 + c4.47.9 + c4.47.10 + c4.47.11 + c4.47.12 + c4.47.13 + c4.47.14 + c4.47.15 + c4.47.16 + c4.47.17 + c4.47.18”\nto\n“c4.47.1 + c4.47.2 + c4.47.3 + c4.47.4 + c4.47.4a + c4.47.5 + c4.47.6 + c4.47.7 + c4.47.8 + c4.47.9 + c4.47.10 + c4.47.11 + c4.47.12 + c4.47.13 + c4.47.14 + c4.47.15 + c4.47.16 + c4.47.17 + c4.47.18“"]
["Non UK Domicile reform","Tax paid (c11)","c11.15 changed from\n“FOR3 + FOR5 + FOR7.1 + FOR7.3 + FOR8 + FOR10 + FOR12 + FOR29 + FOR40”\nto\n“FOR3 + FOR5 + FOR7.1 + FOR7.3 + FOR8 + FOR10 + FOR12 + FOR29 + FOR40 + FOR47 + FOR50 + FOR52”"]
["roll forward","SA302_template","New line L40 added"]
["roll forward","IRCX_template","ppr-claim (c4.57.1) added"]
["Non UK Domicile reform","component sheets","TC242 - C3 and C6 updated"]
["SA Data Gaps Dividends","component sheets","TC158 - C2 updated"]
["Non UK Domicile reform","component sheets","TC241 - C8C9C10 updated"]
["Changes v1.4.0","2025-10-08"]
["Non UK Domicile reform","Deductions (c4)","c4.63c changed from \n\"c4.63a minus c4.47.19 + c4.47.30 +c4.63b\" \nto \n\"c4.63a minus (c4.47.19 + c4.47.30 +c4.63b)\""]
["Winter Fuel Payment","Tax adj (c9)","c9.39i \"WFP1\" changed to \"WFHP1\""]
["Changes v1.4.1","2025-11-03"]
["CGT rate changes","SA302_template","Carried interest rate displayed changed from 18/24% to 32%"]
["Pensions programme - Low Earners Anomaly","NS income (c1)","c1.9 changed from \n“If LEA calc\nc1.9 = (c1.4 + c1.5 + unmatched contributions) minus c1.8\nelse\nc1.9 = (c1.4 + c1.5) minus c1.8\nend if\n(c1.4 + c1.5) minus c1.8”\nto\n“If LEPP calc\nc1.9 = (c1.4 + c1.5 + Total Net Pay Contribution) minus c1.8\nelse\nc1.9 = (c1.4 + c1.5) minus c1.8\nend if\n(c1.4 + c1.5) minus c1.8”"]
["Changes v1.5.0","2025-11-26"]
["Non UK Domicile reform","SA302_template","L94 and L26 changed so \"TRF charge due\" is at the end of the line"]
["SA Data Gaps Dividends","component sheets","TC116 C0 Divs updated"]
["Winter Fuel Payment","SA302_template","L80b formula updated to point to cell E21 in Status (c3a)"]
["Winter Fuel Payment","SA302_template (W)","L80b formula updated to point to cell E21 in Status (c3a)"]
["Winter Fuel Payment","component sheets","TC83 updated ","TestsL80bv2"]
["Non UK Domicile reform","Deductions (c4)","c4.47.4a changed from \"from FOR11.1\" to \"Set to zero\""]
["Non UK Domicile reform","Deductions (c4)","new box c4.47.25a \"from FOR11.1\""]
["Non UK Domicile reform","Deductions (c4)","c4.47.27 changed from \n\"c4.47.24 + c4.47.25 + c4.47.26\" \nto \n\"c4.47.24 + c4.47.25 + c4.47.25a + c4.47.26\""]
["Non UK Domicile reform","Deductions (c4)","c4.47.19 changed from \n\"c4.47.1 + c4.47.2 + c4.47.3 + c4.47.4 + c4.47.4a + c4.47.5 + c4.47.6 + c4.47.7 + c4.47.8 + c4.47.9 + c4.47.10 +\nc4.47.11 + c4.47.12 + c4.47.13 + c4.47.14 + c4.47.15 + c4.47.16 + c4.47.17 + c4.47.18\" \nto \n\"c4.47.1 + c4.47.2 + c4.47.3 + c4.47.4 + c4.47.5 + c4.47.6 + c4.47.7 + c4.47.8 + c4.47.9 + c4.47.10 +\nc4.47.11 + c4.47.12 + c4.47.13 + c4.47.14 + c4.47.15 + c4.47.16 + c4.47.17 + c4.47.18\""]
["Non UK Domicile reform","Tax adj (c9)","c9.36 changed from \"from c19.1\" to \"Set to zero\""]
["Non UK Domicile reform","Tax adj (c9)","c9.39 changed from \n\"if c9.34 > 0 (zero)\nc9.39 = c9.34 minus (c9.35 + c9.36 + c9.38)\nelse\nc9.39 = 0 (zero)\nend if\" \nto \n\"if c9.34 > 0 (zero)\nc9.39 = c9.34 minus (c9.35 + c9.38)\nelse\nc9.39 = 0 (zero)\nend if"]
["Furnished Holiday lettings Regime Repeal","S loans(c27)","c27.15 changed from \n\"c27.5 + c27.9 + c27.10 + c27.11 +\nc27.12 + c27.13 + c27.14 + c27.15 + c27.16 + c27.16a\" \nto \n\"c27.5 + c27.9 + c27.10 + c27.11 +\nc27.12 + c27.13 + c27.14 + c27.16 + c27.16a"]
["Non UK Domicile reform","TSR (c17)","If above c17.1 changed from “If boxes ((CGT6 + CGT13B + CGT13.4 + CGT17 + CGT26 + CGT34) minus ((CGT7 + CGT13.5 + CGT19 + CGT27 + CGT35) minus (CGT41 + CGT43)) + CGT52 + ((CGT52.1 + CGT52.2) minus CGT52.5) is greater than zero) or\nCGT51 is not zero or Null or CGT17 is not zero or Null”\nto\nIf above c17.1 changed from “If boxes ((CGT6 + CGT13B + CGT13.4 + CGT17 + CGT26 + CGT34) minus ((CGT7 + CGT13.5 + CGT19 + CGT27 + CGT35) minus (CGT41 + CGT43)) + CGT52 + ((CGT52.1 + CGT52.2) minus CGT52.5) is greater than zero) or\nCGT51 is not zero or Null"]
["Non UK Domicile reform","TSR (c17)","If above c17.21 changed from “If box c17.20 = 0 (zero) and\nboxes ((CGT6 + CGT13B + CGT13.4 + CGT17 + CGT26 + CGT34) minus ((CGT7 + CGT13.5 + CGT19 + CGT27 + CGT35) minus (CGT41 + CGT43)) + CGT52 + ((52.1 + 52.2) minus 52.5) <= 0 (zero)) and\n(CGT51 = 0 (zero) or null) and (box CGT18 = zero or null)) no Top Slicing relief is due\nset c17.21 to c17.22 to 1”\nto\n“If above c17.21 changed from “If box c17.20 = 0 (zero) and\nboxes ((CGT6 + CGT13B + CGT13.4 + CGT17 + CGT26 + CGT34) minus ((CGT7 + CGT13.5 + CGT19 + CGT27 + CGT35) minus (CGT41 + CGT43)) + CGT52 + ((52.1 + 52.2) minus 52.5) <= 0 (zero)) and\n(CGT51 = 0 (zero) or null)) no Top Slicing relief is due\nset c17.21 to c17.22 to 1”"]
["CGT rate changes","CG (18)","c18.50 changed from \"c18.30 + c18.42 + c18.44 + c18.45.2 + c18.45.4 + c18.47 + c18.49\" \nto \n\"c18.30 + c18.44 + c18.45.2 + c18.45.4 + c18.47 + c18.49\" "]
["Non UK Domicile reform","CG (18)","If above stage 18 changed from \"If boxes ((CGT6 + CGT13B + CGT13.4 + CGT17 + CGT26 + CGT34) minus ((CGT7 + CGT13.5 + CGT19 + CGT27 + CGT35) minus (CGT41 + CGT43)) + CGT52 + ((CGT52.1 + CGT52.2) minus CGT52.5) is greater than zero) or (box CGT51 is not zero or null) or (box CGT17 is not zero or null) or boxes CGT10 + CGT12 + CGT13.8 + CGT22 + CGT30 + CGT38 + CGT52.4 is greater than zero\nCalculate c18.1 to c18.62\" \nto \n\"If boxes ((CGT6 + CGT13B + CGT13.4 + CGT17 + CGT26 + CGT34) minus ((CGT7 + CGT13.5 + CGT19 + CGT27 + CGT35) minus (CGT41 + CGT43)) + CGT52 + ((CGT52.1 + CGT52.2) minus CGT52.5) is greater than zero) or (box CGT51 is not zero or null)  or boxes CGT10 + CGT12 + CGT13.8 + CGT22 + CGT30 + CGT38 + CGT52.4 is greater than zero\nCalculate c18.1 to c18.62"]
["Non UK Domicile reform","Tax adj (c9)","c9.39g1 changed from “from NRD53” to “from NRD52”"]
["Non UK Domicile reform","component sheets","C8C9C10 updated for TC115, TC116, TC152, RC164, TC211, TC257, TC260 and TC261"]
["Changes v1.5.1","2025-12-02"]
["test case enhancements","component sheets","C8C9C10 updated for TC159, TC262, TC263, TC268 and TC269"]
["Changes v1.5.2","2025-12-16"]
["test case enhancements","component sheets","TC41, TC84, TC104, TC141, TC158, TC161, TC168, TC187, TC190, TC216, TC217, TC251, TC249,TC255, TC267 and TC268 updated to adress missing mandatory boxes etc."]
["test case enhancements","component sheets","Target updated to fix NRD52 (TC115)"]
["test case enhancements","component sheets","c1.52 rounding fixed"]
["test case enhancements","SA302_template (W)","New lines translated"]
["test case enhancements","component sheets","TC103 C3 - box 73/76 mismatch fixed"]
["test case enhancements","component sheets","TC113 C4 - box 16/18/76 mismatch fixed"]
["test case enhancements","component sheets","TC118 C3 - box 46 mismatch fixed"]
["test case enhancements","component sheets","TC123 C6 - box 6F_4 mismatch fixed"]
["test case enhancements","MOR","MOR4.1 removed"]
["test case enhancements","component sheets","C3 - TC188 updated"]
["Changes v1.5.3","2026-02-19"]
["test case enhancements","component sheets","CGT13 entry removed from TC133, TC153 to TC158, TC160 to TC163, TC165, TC167, TC168, TC213, TC216, TC217, TC220, TC236, TC254, TC255 and TC260"]
["test case enhancements","component sheets","TC268 - CGT13B entry added"]
["test case enhancements","component sheets","SSE6Q changed to 'Y' in TC159, TC168, TC193, TC195 and TC206"]
["test case enhancements","component sheets","TC33 - updated FSE73 and FSE76 changed to zero"]
["test case enhancements","component sheets","TC115/TC118 - updated SSE21/28/31 changed to 3958"]
["test case enhancements","component sheets","TC115 - updated SPS8 changed to 18115"]
["test case enhancements","component sheets","TC121 - SPS16/18 changed to 6745, SPS20 changed to 7945"]
["test case enhancements","component sheets","TC123 - C4 updated"]
["test case enhancements","component sheets","TC124 - C4 updated - FPS17 changed to 45252.47"]
["test case enhancements","component sheets","TC103 - C3 - box FSE73/76 mismatch fixed"]
["test case enhancements","component sheets","TC130 - CGT29 changed to 29,414"]
["test case enhancements","component sheets","TC131 - CGT29 changed to 341,307"]
["test case enhancements","component sheets","TC138 - INC6 changed to 407"]
["test case enhancements","component sheets","TC156 - SS31 changed to 34,321"]
["test case enhancements","component sheets","TC83 - WHFP1 changed to 101"]
["test case enhancements","component sheets","TC1 - WHFP1 changed to 300"]
["test case enhancements","component sheets","TC2 - WHFP1 changed to 200"]
["test case enhancements","component sheets","TC70 - WHFP1 changed to 309"]
["test case enhancements","component sheets","TC153 - ASE7 changed to N"]
["test case enhancements","component sheets","TC170 - ASE7 changed to N"]
["test case enhancements","component sheets","TC222 and TC224 - ASE7 Y removed"]
["test case enhancements","component sheets","TC234 - ASE6 removed"]
["test case enhancements","component sheets","TC123 - FOR5 changed to 1470.68"]
["test case enhancements","component sheets","TC134 - INC5 changed to zero and INC4 changed to 4,912"]
["test case enhancements","component sheets","TC147 - LUN26 changed to 13,228 and LUN27 changed to 15,131"]
["test case enhancements","component sheets","TC148 - FOR4 changed to 2951"]
["test case enhancements","component sheets","TC251 - FPS76 changed to 276.00"]
["test case enhancements","component sheets","TC254 - CGT17 changed to 0.00"]
["test case enhancements","component sheets","TC251 - CGT17 changed to 58,025"]
["test case enhancements","component sheets","TC255 - SSE entries deleted"]
["test case enhancements","component sheets","TC254 - C3 FSE73 changed to 4,112087 and FSE76 changed to 4,112,087"]
["test case enhancements","component sheets","TC217 - C4 - FSE101 changed to Y"]
["test case enhancements","component sheets","TC250 - C4 - FPS26 changed to Y"]
["test case enhancements","component sheets","TC101 - C0 - INC5 changed to zero and INC4 changed to 12,750"]
["Changes v1.5.4","2026-02-25"]
["test case enhancements","component sheets","C3 - TC70 - SSE31 changed to 4153"]
["test case enhancements","component sheets","C8C9C10 - TC50/TC55/TC64 - CGT31 changed to 1"]
["test case enhancements","component sheets","TC124 - C4 updated - FPS17 changed to 45252.47"]
["test case enhancements","component sheets","C4 - TC123 - SPS3 changed to 12/04/2025"]
["test case enhancements","component sheets","C8C9C10 - TC47/TC55/TC249 - CGT3 changed to 1"]
["test case enhancements","component sheets","C2 - TC47/TC15/TC118/TC119 - EMP7 populated"]
["test case enhancements","component sheets","C3 - TC167 - FSE73 changed to 2,193"]
["test case enhancements","component sheets","C3 - TC165 - FSE16.1 entry removed"]
["test case enhancements","component sheets","C6 - TC168 FOR4 changed to 14,963"]
["test case enhancements","component sheets","C5 - TC134 - PRO20.1 entry removed"]

{"sheet":"Read me","index":3,"n_rows":551,"n_cols":9,"rows_kept":551,"cut":false,"hidden":false,"merged":[[529,3,529,5],[530,3,530,5],[531,3,531,5],[532,3,532,5]]}
[null,"The Tester",{"$f":"'Add pages'!G2","v":"Version E1.5.4"}]
[null,"The Test Case Generator (Tester) supports the testing of the tax calculation, resulting from the successful capture of "]
[null,{"$f":"\"a \"&tax_year&\" Main Tax Return (MTR), and can be used in 3 ways.\"","v":"a 2025-26 Main Tax Return (MTR), and can be used in 3 ways."}]
[]
[null,"1. As a stand-alone tax calculator. "]
[null,"Select the sheets on 'Add pages' that correspond to questions on the Return."]
[null,"The sheets for the core Return (INC(1), INC(2) and REL) are always visible, others appear when selected. "]
[null,"Enter, the sub-set of Return data required by the tax calculation and"]
[null,"press the 'Calculate Now' button on 'Add pages' to reveal the outputs (see below)."]
[null,"Note: The ‘Reset calculation’ button on the 'Add pages' sheet should used between tests to avoid residual entries "]
[null,"corrupting the expected results."]
[]
[null,"2. As a test case generator. "]
[null,"The Tester can auto-populate the input sheets from a number of pre-fabricated test components (see below). "]
[null,"These components can be selected on the 'Selector' and 'More Select' sheets, and the 'Test this case' button will "]
[null,"generate outputs (see below) based on the selection."]
[null,"The 'Clear selection' button will remove all data from the 'Selector' and 'More Select' sheets, and resets"]
[null,"input sheets and calculation."]
[]
[null,"3. As a database of business specified test cases (see below). These are pre-defined full test cases."]
[null,"Each case is numbered and can be selected by inputting the case number in the box "]
[null,"marked ‘Select test case number to be replayed’ on the 'Test Case index' sheet."]
[null,"The selected test case can be activated by pressing 'Replay selected case' button on the 'Test Case index' sheet."]
[null,"This auto-populates the input sheets from the test components that make up the test case, and generates outputs "]
[null,"(see below) based on the selection."]
[]
[null,"The 'Test case' sheet"]
[null,"When the TCG is used in modes 2 or 3 it will pull together all the data needed for a full Tax Return."]
[null,"The data appear on the 'Test case' sheet (to the right of the 'Add pages' sheet)."]
[null,"It is important to note that there are differences between the test case and the components used to create it."]
[null,"Most of the data is supplied by the test components, but some are modified, either to add boxes that are dependant "]
[null,"on other components/data selected, or remove inconstistancies in the selection."]
[null,"(See 'Adjustments made to produce more realistic cases' for more detail.)"]
[]
[null,"About test components"]
[null,"The Tester is based on a number of pre-fabricated components. "]
[null,"Each component relates to a question or part question on the Main Tax Return. "]
[null,"There are a number of instances of each component, giving a variety of valid MTR entries."]
[]
[null,"Component","Description","Instances","Worksheet"]
[null,"INC-A","Income boxes INC1 to INC6 (Interest and Dividends)",15,"C0"]
[null,"INC-B","Income boxes INC7 to INC14 (UK pensions etc. received)",11,"C0"]
[null,"INC-C","Income boxes INC15 to INC19 (Other UK income)",6,"C0"]
[null,"REL-A","Tax reliefs boxes REL1 to REL4 (Pension contributions)",7,"C0"]
[null,"REL-B","Tax reliefs boxes REL5 to REL10 (Charitable giving)",8,"C0"]
[null,"REL-C","Tax reliefs boxes REL11 to REL14 (Blind Person's Allowance)",2,"C0"]
[null,"SLR","Student Loans",6,"C0"]
[null,"CBC","Child Benefit payments",4,"C0"]
[null,"MAT","Marriage Allowance Transfer",4,"C0"]
[null,"AOI-A","Additional Information boxes AOI1 to AOI3 (Interest from UK securities)",3,"C1"]
[null,"AOI-B","Additional Information boxes AOI4 to AOI11 (Life insurance gains)",9,"C1"]
[null,"AOI-C","Additional Information boxes AOI12 to AOI15 (Stock dividends etc.)",5,"C1"]
[null,"ASE-A","Additional Information boxes ASE1 to ASE2 (Share schemes)",3,"C1"]
[null,"ASE-B","Additional Information boxes ASE3 to ASE10 (Lump sum payments)",3,"C1"]
[null,"ASE-C","Additional Information boxes ASE11 to ASE15 (Other deductions)",4,"C1"]
[null,"AOR","Additional Information boxes AOR1 to AOR10 (Other tax reliefs)",10,"C1"]
[null,"MCA","Additional Information boxes MCA1 to MCA11 (Married Couple's Allowance)",9,"C1"]
[null,"AIL","Additional Information boxes AIL1 to AIL19 (Other Information)",11,"C1"]
[null,"EMP","Employment",11,"C2"]
[null,"MOR","Ministers of religion",6,"C2"]
[null,"SSE","Short self-employment  (excluding class 4 NIC)",8,"C3"]
[null,"FSE","Full self-employment  (excluding class 4 NIC)",9,"C3"]
[null,"LUN","Lloyd's underwriters (excluding class 4 NIC)",7,"C3"]
[null,"SPS","Short partnership income (excluding class 4 NIC)",6,"C4"]
[null,"FPS","Full partnership income (excluding class 4 NIC)",8,"C4"]
[null,"PRO","Income from property",10,"C5"]
[null,"FOR",{"$f":"\"Foreign income (excluding Foreign Tax Credit Relief  - box \"&'C6'!C3&\")\"","v":"Foreign income (excluding Foreign Tax Credit Relief  - box FOR2)"},8,"C6"]
[null,"TRU","Trust income",4,"C7"]
[null,"CGT","Capital gains",9,"C8"]
[null,"NRD","Residence, Remittance Basis etc.",10,"C9"]
[null,"CAL","Tax calculation summary",18,"C8C9C10"]
[null,"NI2","Class 2 NIC",2,"C8C9C10"]
[null,"NI1","Class 1 NIC",2,"C8C9C10"]
[]
[null,"Instances of different components can be selected together to produce complete test cases."]
[null,"In addition to selecting different components, multiple instances of some components can be selected. "]
[null,"(Up to 2 employments, 2 self-employments (1 short & 1 full) and 2 partnerships  (1 short & 1 full) .) "]
[null,"Some questions on the core Tax Return and Additional Information pages would require a large number"]
[null,"of components, so have been split (into A, B & C ranges). These can be selected individually or together."]
[null,"[Whilst all the combinations of components that can be selected will be ‘valid’ in terms of the system, not all will "]
[null,"be ‘realistic’. The generator makes some adjustments to make the case more realistic, but they aren’t"]
[null," comprehensive.]"]
[null,"The components can be viewed at any time using the ‘Show/Hide Components’ button on the ‘Test’ "]
[null,"and ‘More test’ worksheets."]
[]
[null,"The business specified test cases"]
[null,{"$f":"'Add pages'!G2&\" of the \"&tax_year&\" test case generator has a built in database of \"&Last_row-1&\" test cases.\"","v":"Version E1.5.4 of the 2025-26 test case generator has a built in database of 273 test cases."}]
[null,"Details of these can be found on the ‘Test Case index’ worksheet. "]
[null,"Each case is numbered and can be selected by inputting the case number in the box marked"]
[null,"Select test case number to be replayed’. [N.B. After the case number is entered press the 'Enter' key.]"]
[null,"The selected test case can be activated by pressing 'Replay selected case' button on the 'Test case index' sheet."]
[null,"This auto-populates the input sheets from the test components that make up the test case, and generates outputs "]
[null,"(see below) based on the selection."]
[null,"Test cases 1 to 25 use identical data to STR test cases 1 to 25, and should produce identical results. "]
[]
[null,"Recording new test cases"]
[null,"New test cases can be quickly added to the existing business test cases."]
[null,"All new cases will comply with the business validation rules, but may not 'realistic' examples of actual MTRs."]
[null,"To create a new test case:"]
[null,null,"1. Select the required components on the 'Selector' and 'More Select' sheets"]
[null,null,"2. Select any required ‘case variable data’ (e.g. date of birth - see note a)."]
[null,null,"3. Press the ‘Test this case’ button."]
[null,null,"4. Press the 'Record this case' button on the 'Selector' and 'More Select' sheets"]
[]
[null,"The summary of test components and case specific data needed to re-run this case will be stored in the next "]
[null,"vacant row on the Test Case index' sheet. Once the case is stored it can be 'replayed' as any other test"]
[null,"case."]
[null,"Note a: The test case generator does not have true date processing capability. There are 5 pre-set dates of birth "]
[null,"and these are the only dates the spreadsheet will recognise."]
[]
[null,"Amending test cases"]
[null,"Test case data will remain in the input sheets until the ‘Reset calculation’ button on the ‘Add pages’ sheet is "]
[null,"pressed. That data can be amended, by going to the input sheet and over-typing the box entries."]
[null,"The 'Calculate Now' button on the 'Add pages' sheet will cause certain outputs to be regenerated using the"]
[null,"amended figures."]
[null,"Note: Where components are being used, amending the input sheets will not change the figures on the "]
[null,"component. The 'test case' sheet is generated from components and will not show the amended figures."]
[null," If the test case is recorded the original figures (not amendments) will be stored."]
[null,"'Test this case' will remove the amendments and restore the original figures."]
[]
[null,"Outputs from the Tester"]
[null,"Whatever mode the Tester is used in, the following worksheets are always produced: "]
[]
[null,"SA302 - This is the tax calculation formatted in the style of pages 3/4 of form SA302 "]
[]
[null,"Liability - SA110 boxes CAL1 to CAL8 "]
[]
[null,"Additionally, when components are used, the following worksheets appear:"]
[]
[null,"Test case - This combines all the data from the selected components into a complete 'MTR'. "]
[]
[null,"The identities of components used appear on all outputs."]
[null,"All output sheets appear between the 'Add pages' and 'INC(1)' worksheets."]
[]
[null,"Adjustments made to produce more realistic cases"]
[null,"1. On the ‘More select’ worksheet there is a tick box to indicate the taxpayer is exempt from paying Class 4 NIC. "]
[null,"This will be set to 'Y' automatically if the taxpayer is aged over 65 or is non-resident. "]
[null,"It will be ignored if no component SSE, FSE, LUN, SPS or FPS is selected."]
[null,"2. The value for box FOR2 (Foreign Tax Credit Relief) is not stored in the FOR component. It is calculated for each "]
[null,"test case that uses this component."]
[null,"3. Coded underpayment will be ignored if the is no PAYE source (EMP or MOR) selected."]
[]
[null,"Problem & query reporting"]
[null,"If you have a problem or query you want to refer to HMRC CDIO please quote the "]
[null,"case number (if it involves a business supplied test case) or the components used."]
[]
[null,"Accessing & Navigating SEES – SA Tax Calculator"]
[]
[null,"Select the 'Additional Information' and 'Additional Pages' from the Return that are required."]
[null,"Note that the National Insurance page does not equate to a Return page but should be completed"]
[null,"where Class 2 is payable or Class 1 paid affects Class 4 due"]
[]
[]
[]
[]
[]
[]
[]
[]
[]
[]
[]
[]
[]
[]
[]
[]
[]
[]
[]
[]
[]
[]
[]
[]
[]
[]
[]
[]
[null,"Insert the Return entries as shown below"]
[]
[]
[]
[]
[]
[]
[]
[]
[]
[]
[]
[]
[]
[]
[]
[]
[]
[]
[]
[]
[]
[]
[]
[]
[]
[]
[]
[]
[]
[]
[]
[]
[null,"Complete all the Return pages and select 'Add pages'"]
[]
[]
[]
[]
[]
[]
[]
[]
[]
[]
[]
[]
[]
[]
[]
[]
[]
[]
[]
[]
[]
[]
[]
[]
[]
[]
[]
[]
[]
[]
[null,"NI"]
[null,"The Class 2 Reg 21 calculation reduces Class 2 with reference to Class 1 Earnings. There are two new boxes within the 'NI' screen to help calculate the reduced amount when requested from a customer."]
[]
[null,"The deferment of Class 4 NIC has been removed from 2015-2016 onwards. There are two new boxes within the 'NI' screen in relation to Class 1 Earnings for the Reg100 Clas 4 calculation."]
[]
[null,"Class 2"]
[null,"Where a person is liable to pay Class 2 National Insurance contributions (NICs), Class 2 NICs are due for each contribution week or part of a week that a person was self-employed. "]
[null,"So, where a person was self-employed and liable to pay Class 2 NICs for part or all of one day in a week, liability arises for one week’s NICs due at the weekly flat rate. "]
[null,"A ‘contribution week’ is defined as a period of seven days beginning with midnight between Saturday and Sunday. The first day of the contribution week is Sunday and Saturday is the last. "]
[null,"The first week of the contribution year starts on the first Sunday after 5 April. Some contribution years will include 53 contribution weeks."]
[]
[null,"Class 4"]
[null,"Class 4 NI payable with income from employment and self-employment"]
[null,"Annual maximum of Class 4 contributions due under section 15 of the Act "]
[null,"100.—(1) Where for any year there are payable by or in respect of an earner Class 4 contributions under section 15 of the Act and also primary Class1 or Class2 contributions or both primary Class 1 or Class 2 contributions, "]
[null,"the liability of that earner for such Class 4 contributions for that year shall (without prejudice to his liability in the ﬁrst instance for the full amount payable apart from this regulation) not exceed such amount as, when added to"]
[null,"the amount of such other of those contributions as are ultimately payable by or in respect of him for that year, equals in value the sum of the amount which, but for the provisions of this regulation, would be payable by that earner "]
[null,"on proﬁts or gains equal to the higher of the two money sums speciﬁed in section 15(3) of the Act and, subject to the provisions of section 12 of the Act and regulations 63 to 65, 53 times the amount of a Class2 contribution payable for that year. "]
[null,"2) For the purpose only of determining the extent of an earner’s liability for Class 4 contributions under paragraph (1), the amount of any primary Class 1 contributions paid at less than the primary percentage speciﬁed in section 8(2) of the Act "]
[null,"shall be treated as equal to the amount of any primary Class 1 contributions payable at that percentage on the same amount of earnings."]
[null,"So that a person with earnings from both an employment and self-employment does not pay considerably more NI than a person who has a similar level of earnings but from only one employment, the Class 4 NI payable is sometimes restricted. "]
[null,"The objective is to limit the self-employed profits charged at the main 9% rate to the employee-only equivalent, but still leave higher earnings charged at the uncapped 2% rate."]
[]
[null,"Class 1 Earnings"]
[]
[null,"The two boxes in question are to be filled in if the customer has employment and is also self-employed. They are to be filled in as follows:"]
[]
[null,{"$f":"NI!C19&\" Earnings from PT to UEL - These are earnings that appear in the column 1c from PT to UEL on the P60 (this was Column 1c + 1d up to 2015-16).\"","v":"EMPCL1 Earnings from PT to UEL - These are earnings that appear in the column 1c from PT to UEL on the P60 (this was Column 1c + 1d up to 2015-16)."}]
[null,{"$f":"NI!C26&\" Earnings from PT to UEL - These are earnings that appear in the column 1c from PT to UEL on the P60 (this was Column 1c + 1d up to 2015-16).\"","v":"MORCL1 Earnings from PT to UEL - These are earnings that appear in the column 1c from PT to UEL on the P60 (this was Column 1c + 1d up to 2015-16)."}]
[]
[null,"From 2016-17 the P11ws and P60 were changed so that the columns for 1c and 1d are combined into one column that has earnings from PT to UEL."]
[]
[]
[null,"On NPS > Employment > P14 Summary take the figures from column 1c and 1d"]
[null,{"$f":"\"Enter the amounts in the \"&NI!C19&\"/\"&NI!C22&\" and/or \"&NI!C26&\"/\"&NI!C29&\" boxes.\"","v":"Enter the amounts in the EMPCL1/ and/or MORCL1/ boxes."}]
[]
[]
[]
[]
[]
[]
[]
[]
[]
[]
[]
[]
[]
[]
[]
[]
[]
[]
[]
[]
[]
[]
[]
[]
[]
[]
[]
[]
[]
[null,"Select the 'Calculate Now' button to reveal the SA302 tax calculation"]
[]
[]
[]
[]
[]
[]
[]
[]
[]
[]
[]
[]
[]
[]
[]
[]
[]
[]
[]
[]
[]
[]
[]
[]
[]
[]
[]
[]
[]
[]
[]
[null,"The SA302 Calculation – here you can see what the customers SA302 looks like based on the entries you have made"]
[]
[]
[]
[]
[]
[]
[]
[]
[]
[]
[]
[]
[]
[]
[]
[]
[]
[]
[]
[]
[]
[]
[]
[]
[]
[]
[]
[]
[]
[]
[]
[]
[]
[]
[]
[]
[]
[]
[]
[null,"On the 'Add pages' worksheet select the Reset calculation button to clear all entries and close pages before"]
[null,"entering the details for another case"]
[]
[null,"Things to note"]
[null,"Marriage Allowance Transfer"]
[null,"If the Transferor makes a claim on the return and not digitally, a relationship will be created on TBS, but it will not "]
[null,"trigger a digital claim.  The fact that they are a Recipient will be stored in the background and when the Recipient "]
[null,"files their SA Return the credit will be given.  "]
[]
[]
[]
[]
[]
[]
[]
[]
[]
[]
[]
[]
[]
[]
[]
[]
[]
[]
[]
[]
[]
[]
[]
[null,"FTCR - see the guidance at"]
[null,"http://bg.inrev.gov.uk/tax/actionguides/40100/tax40072_main.htm"]
[null,"http://bg.inrev.gov.uk/tax/helpcards/tax50104.pdf"]
[]
[]
[]
[]
[]
[]
[]
[]
[]
[]
[]
[]
[]
[]
[]
[]
[]
[]
[]
[null,"Non-resident calculation"]
[null,"Section 811 applies to taxpayers who are non-resident for the whole tax year.\nCertain sources of income (mostly investment income*) are ‘disregarded’. That is no more tax can be charged than has been deducted at source."]
[null,"The disregarded income is removed from the tax calculation and only the tax deducted at source added to the liability computed on the non-disregarded income."]
[null,"UK allowances are not given in the section 811 calculation, even if the taxpayer is entitled to claim them. The taxpayer can still claim tax deductions in the section 811 calculation. (Note: Maintenance and alimony payments are a deduction, not an allowance, so any relief claimed is still given in the section 811 calculation.)"]
[null,"As the use of section 811 is optional, two calculations are performed: 1) the ‘standard’ tax calculation including all income and any UK allowances due, 2) the section 811 calculation."]
[null,"The results of the two calculations are compared and the calculation that produces the better result for the taxpayer is retained."]
[]
[null,"Income Tax Relief - Losses"]
[null,"The SA tax calculator follows the steps in s23 ITA 2007. Step 1 is to identify total income. Reliefs are deductible at step 2. HMRC introduced the term \"limit on income tax reliefs\" for step 2 deductions. This includes trade and property losses but there are other reliefs and deductions."]
[null,"From 2015-16 changes were made to:"]
[null,"- calculate the limit on relief with the correct adjusted total income x 25% where more than £50,000."]
[null,"- update the SA302 so it included the reliefs, including losses, in the 'income received' section and include them as \"Income tax relief\" in the 'minus' section below that. \"Income tax relief\" replaced both \"Loan interest payments\" and \"Losses\"."]
[null,"The change to ensure adjusted total income is calculated correctly presents the total income received for the year before losses brought forward from an earlier year and before losses ocurring in the year for other income. The SA302 adds back the brought forward losses to show the total profit for the year and then deducts them as income tax relief."]
[null,"See Limit on Income Tax reliefs: HS204 Self Assessment helpsheet"]
[null,"https://www.gov.uk/government/publications/limit-on-income-tax-reliefs-hs204-self-assessment-helpsheet"]
[]
[null,"Savings Income"]
[]
[null,"From 06 April 2016 the Personal Savings Allowance (PSA) introduces a new 0% band for Income Tax on income from savings interest."]
[]
[null,"This will apply up to a maximum of "]
[]
[null,"£1000 for basic rate customers (20%)"]
[null,"£500 for higher rate customers (40%)"]
[]
[null,"- The PSA will not apply to savings income received by additional rate customers (45%)."]
[null,"- Income that is within an individual's savings allowance will still count towards their basic or higher rate limits."]
[null,"- Higher/Additional rate income is income on which tax is charged, or would be but for the dividend nil rate."]
[null,"- PSA is in addition to the starter savings rate which allows low income earners to receive up to £5,000 tax free savings interest."]
[null,"- Interest from Individual Savings Accounts (ISAs) is already tax-free so this will not count towards the Personal Savings Allowance."]
[null,"- PSA is not affected by the Scottish Rate of Income Tax and will be applied at the same rate for all taxpayers across the UK."]
[null,"- PSA is affected by the £100 rule for children's savings and investments. If a parent's gift to a child exceeds this amount in any tax year it counts toward the parent's income for tax purposes."]
[]
[null,"Dividends"]
[]
[null,"From April 2016 the Dividend Tax Credit will be abolished and a new £5,000 tax free allowance for dividend income will be introduced. This allowance will not reduce total income for tax purposes and will only apply to dividend income."]
[null,"The new rates of tax on dividend income above the allowance will be: "]
[]
[null,"7.5% for basic rate customers"]
[null,"32.5% for higher rate customers"]
[null,"38.1% for additional rate customers"]
[]
[null,"- An allowance will be introduced so that everyone can receive up to £5,000 of dividend income, on top of any dividends received on shares held in an ISA. If a customer earns less than £5,000 of dividend they will not pay any tax."]
[null,"- Dividend tax is in addition to and outside of ISA allowances."]
[null,"- Dividend tax is not affected by the Scottish Rate of Income Tax and will be applied at the same rate for all taxpayers across the UK."]
[null,"- No tax will be deducted at source; it will be paid through self-assessment."]
[]
[null,"Marriage Allowance Transfer"]
[null,"The Dividend Allowance nil rate is omitted when establishing the tax rate on income; the Personal Savings  Allowance nil rate is applied when establishing the tax rate on income"]
[]
[null,"Age related allowances"]
[]
[null,"2016/17 - The age allowance ceases to exist."]
[null,"The government froze age-related personal allowances in April 2013.In the 2015/16 tax year this was restricted to individuals born before 6 April 1938."]
[null," Individuals born on or after this date were entitled to the basic Personal Allowance instead. However, due to increases in the basic Personal Allowance, this is now the same for everyone, irrespective of when they were born."]
[]
[null,"Student Loan changes"]
[]
[null,"From 6 April 2016 there will be 2 Student Loan thresholds known as Plan 1 and Plan 2. Previously there was only 1. Each plan will have a different threshold and employers will need to deduct student loan repayments using the appropriate plan type."]
[]
[null,"2017-18"]
[]
[null,"Plan 1"]
[null,"The threshold will be £17,775 for employees who are :"]
[null,"·         Scottish and Northern Irish students"]
[null,"·         English and Welsh students who started their course before 1 September 2012"]
[]
[null,"Plan 2"]
[null,"The threshold will be £21,000 for employees who are:"]
[null,"·         English and Welsh students who started their course on or after 1 September 2012"]
[]
[null,"Capital Gains tax"]
[null,"Each year, individuals have an annual exemption amount that allows them to receive some gains tax-free. Above this, you pay capital gains tax on all gains."]
[]
[null,null,"Capital gains tax in 2017/18"]
[null,null,"Annual exemption amount","£11,300 for individuals"]
[null,null,"Standard capital gains tax rate","18% on residential property, 10% on other assets"]
[null,null,"Higher capital gains tax rate","28% on residential property, 20% on other assets"]
[]
[null,"Further Scottish Income Tax Powers"]
[null,"Who is a Scottish resident? "]
[null,"The Scottish rate is charged on the non-savings income of Scottish residents."]
[null,"A Scottish taxpayer must first be a UK resident. A non-resident can never be a Scottish taxpayer. If someone has earnings subject to UK income tax, it will be at the UK rates.  "]
[]
[null,"Every member of the Scottish Parliament, every MP who represents a Scottish constituency and every MEP who represents Scotland is automatically taxed as a Scottish taxpayer, regardless of where they live.  "]
[]
[null,"Subject to the rule for politicians, a Scottish person not living in Scotland will not pay the Scottish rates. Liability is determined by residence and not nationality.  "]
[]
[null,"Having established UK residence, the next determinant is whether the taxpayer’s sole or main residence is in Scotland. If it is, they are a Scottish taxpayer. "]
[]
[null,"Those who pay Scottish income tax"]
[null,"The UK basic, higher and additional rates, paid by Scottish taxpayers are reduced by 10% (10p in the pound). "]
[null,"The Scottish rate is then set annually by the Scottish Parliament at any value from 0% upwards in half pence units."]
[null,"Scottish income tax applies to non-savings and non-dividend income "]
[null,"The personal allowance and thresholds and taxes on savings and dividends remain a UK ‘reserved’ matter"]
[null,"Capital Gains Tax (CGT) has not been devolved (nor NIC, IHT or corporation tax) "]
[]
[null,null,"Scottish income tax rates 2017-18","Scottish income tax bands 2017-18",null,null,"UK rate paid in Scotland","Scottish rate","Total rate for Scottish taxpayers"]
[null,null,"Scottish basic rate - 20%","£11,501 - £43,000 (£31,500)",null,null,0.1,0.1,0.2]
[null,null,"Scottish higher rate - 40%","£43,001 - £150,000",null,null,0.3,0.1,0.4]
[null,null,"Scottish addittional rate - 45%","£150,001 and above",null,null,0.35,0.1,0.45]
[]
[null,"Election to reduce the personal allowance or entitlement to receive a tax reduction (Marriage Allowance transfer)"]
[null,"Calculate if, after the personal allowance is reduced or tax reduction received, you are liable to tax at a rate other than the"]
[null,"basic rate, the Scottish basic rate, the dividend nil rate, the savings nil rate, the dividend ordinary rate or the starting rate for savings"]
[]
[null,"Personal savings allowance"]
[null,"HR Case"]
[null,"s12B (8) (b) ITA 2007 - each of the following is “higher-rate income”—"]
[null,"(i) income on which income tax is charged at the higher rate or dividend upper rate,"]
[null,"(ii) income on which income tax would be charged at the higher rate but for section 12A (income charged at savings nil rate),"]
[null,"(iii) income on which income tax would be charged at the dividend upper rate but for section 13A (income charged at dividend nil rate), and"]
[null,"(iv) income of an individual who is a Scottish taxpayer or Welsh taxpayer which would, if the individual were not a Scottish taxpayer or Welsh taxpayer (as the case may be), be income on which income tax is charged at the higher rate.”"]
[]
[null,"AHR Case"]
[null,"s12B (8) (a) ITA 2007 - each of the following is “additional-rate income”—"]
[null,"(i) income on which income tax is charged at the additional rate or dividend additional rate,"]
[null,"(ii) income on which income tax would be charged at the dividend additional rate but for section 13A (income charged at dividend nil rate), and"]
[null,"(iii) income of an individual who is a Scottish taxpayer or Welsh taxpayer which would, if the individual were not a Scottish taxpayer or Welsh taxpayer (as the case may be), be income on which income tax is charged at the additional rate"]

{"sheet":"Test Case index","index":4,"n_rows":278,"n_cols":8,"rows_kept":278,"cut":false,"hidden":false,"merged":[]}
[null,null,{"$f":"\"There are \"&Last_row-1&\" stored test cases\"","v":"There are 273 stored test cases"}]
[]
[null,null,168]
[null,null,null,null,null,null,"Used for"]
[null,"Test reason",null,"Components used","Calc figure","v1.5.2","HMRC Portal","Comments"]
[1,"Scottish customer with income from property, loss b/f and LLIR reduced to zero, savings, dividends. MAT out. Allces to non-savings and dividends (STR 1) ",null,"Components: YPD INC-A REL-A MAT Emp-A PRO ",137.97999999999999,137.97999999999999,"YES"]
[2,"Basic rate employment, savings and property, loss b/f and LLIR reduced. MAT in digital claim in place, but disallowed because HR. Small Debt Coded with PAYE Tax to cover (STR 2)",null,"Components: YPD INC-A MAT Emp-A PRO CAL ",9691.1200000000008,8870.48,"YES"]
[3,"Scottish customer with Higher rate non-savings; basic rate savings; higher rate dividends; PPR; Gift Aid; Digital claim to Marriage Allowance Transfer (MAT) in place where customer is recipient, but disallowed because HR; Class 4 NIC + Class 2 NIC treated as paid (STR 3)",null,"Components: YPD INC-A REL-A REL-B MAT FIN Emp-A FSE NI2 NI1 CAL ",7461.9300000000021,6950.94,"YES"]
[4,"Welsh customer with Non-Savings, Savings and Dividends where more beneficial to have some of PA against Savings to position Savings in nil band that would otherwise be in HR, SL repayment case PT02 & PGL03 (STR 4)",null,"Components: YPD INC-A SLR Emp-A ",6990.6100000000006,6990.61,"YES"]
[5,"Scottish Customer with self employment profit, Savings starter rate,  Digital claim to Marriage Allowance Transfer (MAT) in place where customer is recipient, Class 4 NIC + Class 2 NIC treated as paid  (STR 5)",null,"Components: YPD INC-A REL-A MAT FSE NI2 ",766.23,1025.1400000000001,"YES"]
[6,"Welsh customer with Non-Savings, Savings and Dividends where more beneficial to have some of PA against Dividends before Non-Savings/Savings (STR 6)",null,"Components: YPD INC-A INC-B MAT ",6678.91,6351.66,"YES"]
[7,"Employment, RAR, Lower income spouse claiming Married Couples Allowance MCA, in year marriage (STR 7)",null,"Components: YPD INC-B REL-A MCA Emp-A CAL ",54.8,68.3,"YES"]
[8,"Self employed, state pension (DOB spouse post 1935) MCA in year marriage (STR 8)",null,"Components: YPD INC-A INC-B MCA FSE NicEx ",1041.98,1059.3800000000001,"YES"]
[9,"Scottish customer with Self employment, property, savings, dividends, gift aid. Non savings income 'covered' by PA, Savings Starting rate, PSA, Dividend Allowance (DA), Gift Aid, Landlords Loan Interest Relief LLIR reduced to max allowable, additional tax due on gift aid, Class 2 NICs, SL repayment case PT 01 & PGL 03. (STR 9)",null,"Components: YPD INC-A INC-C REL-B SLR SSE NI2 NI1 NIC2Vol NicEx PRO ",197.01999999999998,190.92,"YES"]
[10,"BR Non savings, Savings BR, Dividends HR, Gift Aid. Beneficial ordering of reliefs and allowances considered - PA set against pension in preference to dividends at HR. This introduced more savings starting rate. (STR 10)",null,"Components: YPD INC-A INC-B REL-B ",4379.99,4379.99,"YES"]
[11,"Scottish customer with Starter, basic & Intermediate rate. PA to Non savings. PSA and DA. Divs in BR, PPR, Gift Aid, LLIR, (STR11)",null,"Components: YPD INC-A INC-B REL-A REL-B Emp-A PRO CAL ",4177.3500000000004,4191.8599999999997,"YES"]
[12,"Allowances to savings, dividends and non savings. Divs in HR (STR 12)",null,"Components: YPD INC-A INC-B INC-C ",6999.9400000000005,6999.94,"YES"]
[13,"Kitchen sink with in year MCA to wife (reduced to minimum amount); NIC exempt (STR 13) ",null,"Components: YPD INC-A INC-B INC-C REL-A REL-B FIN MCA Emp-A SSE NI1 NicEx PRO CAL ",25819.78,18445.080000000002,"YES"]
[14,"Employment, savings, dividends. PA to non-savings up to basic rate limit and savings to ensure Savings in nil band would otherwise be in higher rate band. Student Loan SL repayment case Plan 02, Basic rate employment, DA, DOR, (STR 14)",null,"Components: YPD INC-A SLR Emp-A CAL ",7235.170000000001,7235.17,"YES"]
[15,"Student Loan SL repayment case Plan 01, RAR, BR self employment, SAV BR, DA, DOR, Class 4 NIC + Class 2 NIC (STR 15)",null,"Components: YPD INC-A REL-A SLR FSE NI2 ",10552.15,10878.32,"YES"]
[16,"Scottish Customer with PRO loss B/F. Reduced PA. SSR, SBR, SIR, SHR, Pension/PRO income, PSA (HR), SAV HR, DA, Dividend Upper Rate DUR, LLIR reduced",null,"Components: YPD INC-A INC-B REL-C PRO ",16020.32,16034.83,"YES"]
[17,"Welsh, Student Loan SL repayment case PGL Plan 03, PPR, BR Employment/PRO, PSA (HR), DA, DUR, LLIR to max allowable,  Small Debt Coded with PAYE Tax to cover (STR 17)",null,"Components: YPD INC-A REL-A SLR Emp-A PRO CAL ",25254.110000000004,25254.11,"YES"]
[18,"Welsh. Allcs set against NS, Sav & Div. BR Employment. Underpaid Tax for earlier years, Underpaid tax included in CY tax code. (STR 18)",null,"Components: YPD INC-A Emp-A CAL ",3236.8100000000004,3236.81,"YES"]
[19,"BR/Employment/ Pension, SAV SR, PSA (HR), SAV BR, DA, DOR, DUR, Small debt coded no PAYE Tax (STR19)",null,"Components: YPD INC-A INC-B REL-B Emp-A ",4012.7799999999988,831.33,"YES"]
[20,"SAV SR, PSA (HR), SAV BR, DA, DOR, DUR, Tax deducted on interest ( STR 20)",null,"Components: YPD INC-A REL-A MAT Emp-A ",2700.85,2700.85,"YES"]
[21,"BR employment, SAV SR, PSA (HR), SAV BR, SAV HR,  DA, DUR, Tax deducted on interest ( STR 21)",null,"Components: YPD INC-A SLR Emp-A ",15160.220000000001,15160.22,"YES"]
[22,"BR Self employment, PSA, SAV AR, DA, Class 4 NIC + Class 2 NIC, Tax deducted on interest ( STR 22)",null,"Components: YPD INC-A Emp-A SSE NI2 NI1 ",27692.709999999995,14244.81,"YES"]
[23,"Higher Rate (HR)BR employment/PRO, PSA (HR), DA, DOR, DUR,  Marriage Allowance Transfer (MAT) Digital Claim (out) not allowed as HR,  Small Debt Coded with PAYE Tax to cover (STR 23)",null,"Components: YPD INC-A REL-A MAT Emp-A FSE NI2 PRO CAL ",6818.6299999999992,6818.63,"YES"]
[24,"Scottish customer with BPR, Pension/OI, SSR, SBR, SIR, PSA (HR), DA, DOR, DUR,  Tax deducted on interest (STR 24) ",null,"Components: YPD INC-A INC-B INC-C REL-C ",2195.6699999999983,1883.01,"YES"]
[25,"BR Employment/self employment/PRO/Pension/OI, PSA (HR), DA, DOR, DUR ,LLIR reduced to max allowable, Class 4 NIC + Class 2 NIC (STR 25)",null,"Components: YPD INC-A INC-B INC-C MAT Emp-A SSE FSE NI2 NI1 PRO ",3952.09,3383.86,"YES"]
[26,"Welsh, MAT_IN with Gift Aid payments where beneficial to allocate PA £997 to dividends which is less beneficial than set against non-savings but retains MAT_IN (STR26)",null,"Components: YPD INC-A REL-B MAT Emp-A ",-652.60000000000036,-652.6,"YES"]
[27,"Scottish, PA + BPR, MAT_IN with Gift Aid payments where taxable at SIR_band rate (STR27)",null,"Components: YPD INC-A REL-B REL-C MAT Emp-A FSE PRO ",5656.82,5683.93,"YES"]
[28,"PA to non-savings and savings but no different if all PA to non-savings (STR28)",null,"Components: YPD INC-A INC-B REL-B ",7457.65,7457.65,"YES"]
[29,"Scottish Additional Rate, Top Rate customer (STR29)",null,"Components: YPD INC-A INC-C REL-A SLR Emp-A ",25941.42,25955.93,"YES"]
[30,"Welsh Additional Rate customer (STR30)",null,"Components: YPD INC-A REL-A Emp-A FSE NI2 NI1 CAL ",36014,36083,"YES"]
[31,"Scottish customer (STR31)",null,"Components: YPD INC-B REL-A SLR Emp-A SSE NI2 ",327.80000000000018,342.31,"YES"]
[32,"rUK customer with SSL",null,"Components: YPD INC-A REL-A REL-B SLR AOR Emp-A FSE NI2 NI1 ",11160.150000000001,11161.15,"YES"]
[33,"Welsh customer with SSL, PGL",null,"Components: YPD INC-A SLR Emp-A FSE NI2 PRO ",9189.7999999999993,9188.7999999999993,"YES"]
[34,"Scottish customer, Employment, Int, Divs, RAR, coded debt",null,"Components: YPD INC-A REL-A Emp-A CAL ",42682.22,42696.67,"YES"]
[35,"Employment, self-employment, other inc, savings in SR band",null,"Components: YPD INC-A INC-C AOI-B Emp-A FSE NI2 NIC2Vol ",770.3,428.45,"YES"]
[36,"Property income, savings, pension , MCA",null,"Components: YPD INC-A INC-B MCA FSE PRO ",4605.8999999999996,4651.8999999999996,"YES"]
[37,"Property income, savings dividends, pensions, MAT, gift aid charge",null,"Components: YPD INC-A INC-B INC-C REL-B MAT PRO ",344.20000000000005,344.2,"YES"]
[38,"Employment, self-employment, Div, Class 2 NICs treated as paid",null,"Components: YPD INC-A REL-B FIN Emp-A FSE NI2 ",9660.42,8882.7199999999993,"YES"]
[39,"Employment, RAR, reduced PA, SAV, DIV",null,"Components: YPD INC-A REL-A Emp-A PRO ",21131.599999999999,21146.11,"YES"]
[40,"Employment, savings, dividends,pensions, reduced PA, gift aid",null,"Components: YPD INC-A INC-B REL-B Emp-A PRO ",15728.630000000001,15728.63,"YES"]
[41,"Employment, Other income, Savings, Student Loan repayment (plan 01) SL, Chargeable Event Gains CEG, Top Slicing Relief TSR, Additional rate  ",null,"Components: YPD INC-A INC-C REL-A SLR AOI-B Emp-A Emp-B PRO ",54970.489999999991,54375,"YES"]
[42,"employment, Savings, Dividends, Losses from SSE set against other income + Marriage Allowance Transfer transferred  (MAT_OUT) Voluntary Class 2",null,"Components: YPD INC-A MAT Emp-A SSE NI2 NI1 NIC2Vol ",3915.119999999999,337.75,"YES"]
[43,"Employment income over £100,000, Savings and dividends, no PA, Blind Person Relief BPR due, CGT",null,"Components: YPD INC-A REL-C MAT Emp-A CGT ",16492.57,26797.98,"YES"]
[44,"Self employed, Trusts, Student Loan repayment SL (Plan 01), S/E Losses set against other income. CIS deductions, ",null,"Components: YPD SLR MAT SSE FSE NI2 TRU ",-965.46000000000276,-4.45,"NO"]
[45,"Property income, Relief for Finance Costs (Landlord Loan Savings Relief), UK and Foreign Chargeable Event Gains CEG, Top Slicing Relief TSR due; Notional tax; Basic  MCA , 50% to partner.",null,"Components: YPD AOI-B MCA PRO FOR ",3707.8100000000013,3711.81,"YES"]
[46,"Pension, Savings and dividends. Non-UK Resident, 'normal' s23 calculation more beneficial (s811)",null,"Components: YPD INC-A INC-B NRD ",-91.25,-91.25,"NO"]
[47,"Propert Income, Pensions, Dividends. Non-UK Resident, non resident calculation more beneficial (s811 disregarded income).Relief for Finance Costs (Landlord Loan Savings Relief)",null,"Components: YPD INC-A INC-B PRO CGT NRD ",10872.8,7189,"NO"]
[48,"Property Income, Pensions and Dividends.Non-UK Resident, non resident calculation more beneficial (s811 disregarded income); MAT_IN but removed from calculation; Relief for Finance Costs (Landlord Loan Savings Relief)",null,"Components: YPD INC-A INC-B MAT PRO NRD ",5217,5217,"NO"]
[49,"Multiple employment and share scheme. Box Fin1, CAL7/8 completed, Income over £100,000 PA reduced to Nil, Enterprise Investment Scheme relief EIS, & Social Investment Tax Relief SITR",null,"Components: YPD FIN ASE-A AOR Emp-A Emp-B CAL ",22345,22345,"YES"]
[50,"Employment, Foreign and Partnership income. Losses from FPS20 set against other income; balance BR to CGT; FPS Relief for Finance Costs (Landlord Loan Savings Relief).Voluntary Class 2, CGT.",null,"Components: YPD Emp-A Emp-B FPS NI2 NI1 NIC2Vol FOR TCR CGT ",6511.45,8826.42,"YES"]
[51,"Partnership, Foreign Income, Foreign Dividends, Trust Income, RAR, Annuities, trade union death benefit, widows and orphan relief.Class 2. FOR Relief for Finance Costs (Landlord Loan Savings Relief). ",null,"Components: YPD REL-A SLR ASE-B AOR Emp-A SPS FPS NI2 FOR TCR TRU ",47178.46,19081.830000000002,"NO"]
[52,"Kitchen sink, multiple sources, PA reduced to Nil,Losses, RAR, TRU & FOR Relief for Finance Costs (Landlord Loan Savings Relief), CEG, MCA, CGT",null,"Components: YPD INC-A INC-B INC-C REL-A REL-B FIN AOI-A AOI-B AOI-C ASE-A ASE-B ASE-C AOR MCA Emp-A Emp-B SSE SPS FPS NI2 NI1 PRO FOR TCR TRU CGT ",107225.1,102356.02,"NO"]
[53,"Self employment, Savings, Dividends, Lump Sum income. Class 2, No Class 4 due. Student Loan Undergraduate and Postgraduate Loans Plan Types 02 and 03.",null,"Components: YPD INC-A SLR ASE-B Emp-A SSE NI2 ",7036.0599999999995,7142.06,"YES"]
[54,"Higher rate Scottish taxpayer with non-savings and savings income with pension payments with relief at source increasing Scottish and English & NI basic rates",null,"Components: YPD INC-A REL-A SLR Emp-A Emp-B ",10904.970000000001,10970.49,"YES"]
[55,"Pension, savings, and dividend income with Chargeable Event Gain, Stock Dividends and taxable short service refund (overseas schemes) and Capital Gains. More beneficial to have CEG in HRNilBand than savings in BRNilBand",null,"Components: YPD INC-A INC-B REL-B AOI-B CGT ",4494.3999999999996,8660.2199999999993,"YES"]
[56,"Pay, Dividends and Chargeable Event Gains ensuring no Allcs allocated to CEG",null,"Components: YPD INC-A AOI-B Emp-A NicEx ",4.3700000000008004,4.37,"YES"]
[57,"EX121 Employment, Savings and Dividend income and Qualifying Loan Interest Payments",null,"Components: YPD INC-A REL-B AOR Emp-A Emp-B NI2 ",1681.9399999999996,1681.95,"YES"]
[58,"Self employment, Foreign income and Foreign Dividends. Class 4 and Class 2 NIC,  Reduced PA and Losses. FOR Relief for Finance Costs (Landlord Loan Savings Relief)",null,"Components: YPD FSE NI2 FOR TCR ",1790.6900000000005,34376.949999999997,"YES"]
[59,"Non-UK resident with Taxed Savings, Property income, and Venture Capital Trust subcriptions",null,"Components: YPD INC-A AOR PRO NRD ",0,0,"NO"]
[60,"Trust, Savings, Dividends and CEG,TSR not due",null,"Components: YPD INC-A REL-B AOI-B TRU ",-6310.97,-6310.97,"NO"]
[61,"Employment, Pension Savings and CEG, top slicing relief due, State pension lump sum.",null,"Components: YPD INC-A INC-B AOI-B Emp-A ",2311.5,2311.5,"YES"]
[62,"Pension Foreign Dividends and Savings. In year MCA claim and gift aid.",null,"Components: YPD INC-A INC-B REL-B MCA ",-2834.79,-2834.79,"YES"]
[63,"Employment, Savings and Dividends. PA reduced to nil BPA claim, FIN1 entry, Deficiency relief, EIS, relief for qualifying distribution.",null,"Components: YPD INC-A REL-C FIN AOI-B AOR Emp-A ",306752.65000000002,306780.01,"YES"]
[64,"Self employed, Pension and other income. Gift aid, CGT chargeable at more than one CGT rate",null,"Components: YPD INC-B INC-C REL-B COV FSE NicEx CGT ",34977.019999999997,4972,"YES"]
[65,"Pension, Other income, Savings and Dividends.",null,"Components: YPD INC-A INC-B INC-C COV ",10332.57,10332.57,"YES"]
[66,"Pension, Other income, Savings, Dividends and Gift Aid",null,"Components: YPD INC-A INC-B INC-C REL-B ",-202.13000000000011,-202.13,"YES"]
[67,"Employment, Pension, Other income, Dividends, Foreign Dividends and Savings.",null,"Components: YPD INC-A INC-B INC-C AOI-C Emp-A ",1144.8400000000001,1144.8499999999999,"YES"]
[68,"EX121 Property income, Dividends and CGT.",null,"Components: YPD INC-A PRO CGT ",3054.32,20422.48,"YES"]
[69,"Pension, Other income, Savings, Dividends, Gift Aid and CGT",null,"Components: YPD INC-A INC-B INC-C REL-B AOI-A CGT ",8646.39,4778.8500000000004,"YES"]
[70,"Self employment, Pension, Property income and Savings. MCA. Beneficial ordering",null,"Components: YPD INC-A INC-B MCA SSE NicEx PRO ",20602.25,0,"YES"]
[71,"Savings and Dividends. MCA. CGT",null,"Components: YPD INC-A MCA CGT ",-91.25,2608.75,"YES"]
[72,"Property income, Other income, Pension, Savings and Dividends. Losses and MCA reduced due to Age related income limits.",null,"Components: YPD INC-A INC-B INC-C MCA PRO ",-1996,-697.53,"YES"]
[73,"Pension, Savings, Dividends and Gift Aid, Tax due on Gift Aid more than tax paid by individual",null,"Components: YPD INC-A INC-B REL-B MCA FSE ",600,600,"YES"]
[74,"Pension and CGT including entreprenueral gains ",null,"Components: YPD INC-A INC-B REL-B CGT ",-1032.5899999999999,3167.41,"YES"]
[75,"Pension, Savings, Dividends and In year MCA claim.",null,"Components: YPD INC-A INC-B MCA ",2556.7099999999991,0,"YES"]
[76,"Employment, Savings and Dividend income and Qualifying Loan Interest Payments & Qualifying loan interest payable in the year",null,"Components: YPD INC-A REL-B AOR SSE FSE FPS NI2 PRO FOR ",157233.13,143309.56,"YES"]
[77,"Property income, Trust and CEG. Losses, Relief for Finance Costs (Landlord Loan Savings Relief) and CITR claimed.",null,"Components: YPD REL-A AOI-B AOR FPS PRO TRU ",193308.97,219033.49,"NO"]
[78,"Employment, Pension and Property income. Gift Aid including carry back gift aid, MCA and CGT.",", ","Components: YPD INC-B REL-B Emp-A FSE FPS PRO CGT ",69722.76999999999,45721.32,"YES"]
[79,"Employment income, PPR",null,"Components: YPD REL-A AIL Emp-A Emp-B FPS ",-5739.05,-8126,"YES"]
[80,"Employment, Self employment, Pension, Savings and Dividends. RAR, in year MCA reduced due to income limits.",null,"Components: YPD INC-A INC-B REL-A MCA Emp-A FSE NI1 NicEx ",352528.91,351989.01,"YES"]
[81,"Incapacity Benefit, BPA. Gift Aid with no tax paid.",null,"Components: YPD INC-A INC-B REL-B REL-C FPS ",9562.3700000000008,2146.33,"YES"]
[82,"Employment, Self employment, Pension, Property and Dividends income. In year MCA claimed reduced due to income limits and RAR. ",null,"Components: YPD INC-A INC-B INC-C REL-A REL-B FIN MCA Emp-A FSE FPS NI1 NicEx PRO ",26218.77,23825.57,"YES"]
[83,"Employment, Partnership, Pension, Property and Dividends income with state pension Lump Sum. Losses, Relief for Finance Costs (Landlord Loan Savings Relief) and Community investment relief.",null,"Components: YPD INC-A INC-B REL-B AOI-A AOR MOR SSE SPS FPS NicEx PRO CAL ",83666.83,16640.84,"NO"]
[84,"Foreign Income, Foreign Dividends, Divenden and Savings. CEG, Non-Resident, Remittance basis charge for Non Dom and TSR = 0 (previously incorrectly £0.02)",null,"Components: YPD INC-A AOI-B FOR NRD ",240580.72,67375.63,"NO"]
[85,"Partnership, Pension, Savings and Dividend income. In year Repayment results in underpaid amount on SA302. Beneficial ordering in calc with transition profit",null,"Components: YPD INC-A INC-B COV FIN FSE FPS ",14155.1,11826.75,"YES"]
[86,"Self employment, Savings and Dividends. RAR, PPR Losses, Gifts of property to charity, Disguised Remuneration DR AIL22.",null,"Components: YPD INC-A REL-A REL-B AIL FSE NI2 ",15612.560000000001,21713.96,"YES"]
[87,"Pension, Other income and State Pension lump sum. RAR, Gift Aid  and gift aid relief backdated (REL8)",null,"Components: YPD INC-B INC-C REL-A REL-B FSE ",-1433.5,1264.04,"YES"]
[88,"Employment and Dividend income. RAR and Pension taxable short service refund, stock dividends ",null,"Components: YPD REL-A AOI-C AIL Emp-A Emp-B FSE ",130349.95000000001,1287.2,"YES"]
[89,"Employment income, Self employment Losses set off against other income + no digital claim to Marriage Allowance Transfer (MAT_OUT) but MAT claimed on Return. Class 2 NIC",null,"Components: YPD MAT Emp-A SSE FSE NI2 NI1 NIC2Vol ",-1145,-1148.5,"YES"]
[90,"Self employment, Pension and other Income. State pension lump sum.",null,"Components: YPD INC-A INC-B INC-C SSE FSE FPS NicEx ",76372.690000000017,79238.16,"YES"]
[91,"Scottish, Employment and Property income. Seafarers deduction ASE11. Pension taxf charge AIL10. Relief for Finance Costs (Landlord Loan Savings Relief).",null,"Components: YPD REL-B ASE-B ASE-C AIL Emp-A PRO CGT ",2182.15,1164.1400000000001,"YES"]
[92,"Scottish Customer, Self employment, Property income, Savings and Dividends. Property losses from FL to c/f to lettings inc (PRO17), Deficiency relief on both savings and dividends.",null,"Components: YPD INC-A REL-A REL-B AOI-B AOR FSE NI2 PRO ",378949.13,372670.28,"YES"]
[93,"Self employment, Property income, Savings and Dividends. RAR, S/E Losses, Annuity, Gift Aid to charity.Deficiency relief on both savings and dividends. Class 4 and Class 2 NIC.",null,"Components: YPD INC-A REL-A REL-B AOI-B AOR FSE NI2 PRO ",373977.73000000004,368311.13,"YES"]
[94,"MOR, Property income, Foreign income, Foreign Dividends Other income, CEG, Savings and Dividens. RAR. PPR, Gift Aid. CGT. Tests TSR change",null,"Components: YPD INC-A INC-C REL-A REL-B FIN AOI-B AOI-C MOR PRO FOR TCR CGT CAL ",35703.17,40155.370000000003,"NO"]
[95,"Self employment, Savings and Dividends. RAR, S/E Losses. Cash basis adjustment FSE70 and Class 4 NIC adjustment FSE101, Class 2 NIC",null,"Components: YPD REL-A FIN AOI-A AOI-C FSE NI2 ",55924.039999999994,56857.440000000002,"YES"]
[96,"Employment, Self employment, Pension, Savings and Dividend income, RAR, Property Losses and Relief for Finance Costs (Landlord Loan Savings Relief), including AOR12. Class 2 and 4 NIC.",null,"Components: YPD INC-B REL-A REL-B FIN AOI-A AOI-C ASE-C AOR Emp-A FSE NI2 NI1 PRO ",68142.02,66520.399999999994,"YES"]
[97,"Partnership, Other income and Savings. Basis adjustment SPS9, tax deducted partnerships SPS27 and SPS29. EIS releif. Class 2 and 4 NIC.",null,"Components: YPD INC-C REL-A REL-B FIN AOI-A AOR SPS NI2 ",14601.069999999998,15534.47,"YES"]
[98,"Partnership, Other income, Pension, CEG, Savings and Dividends. State Pension Lump Sum. Voluntary Class 2 NIC",null,"Components: YPD INC-A INC-B INC-C AOI-A AOI-B SPS NI2 NIC2Vol ",22264.089999999993,913.54,"YES"]
[99,"Partnership, Intersest and Foreign Dividends. RAR, Losses from property on partnerships,  Deficiency Relief. Gift Aid to Charity and BPA.",null,"Components: YPD INC-A REL-A REL-B REL-C AOI-B FPS NI2 ",9899.52,10642.62,"YES"]
[100,"Partnership, Property and Dividend income. Partnership and Property Losses. FPS Relief for Finance Costs (Landlord Loan Savings Relief). No PA.",null,"Components: YPD INC-A REL-B FPS NI2 PRO ",92573.42,93484.92,"YES"]
[101,"Partnership, Property, Dividends and CEG. Gift Aid, Losses, FPS Relief for Finance Costs (Landlord Loan Savings Relief). Class 2 and 4 NIC. CGT.",null,"Components: YPD INC-A REL-B AOI-B AOI-C AOR FPS NI2 PRO CGT ",192490.65999999997,100804.66,"YES"]
[102,"Employment income, Savings, Divendends and Foreign Dividends. Student Loan SL (plan 1).",null,"Components: YPD INC-A REL-B SLR Emp-A Emp-B CAL ",-78471.86,-99405.84,"YES"]
[103,"Self employment, Property income and CEG. Income over £150,000, Property and S/E losses, Gift Aid.CGT, VCT, EIS and SEIS",null,"Components: YPD REL-B FIN AOI-B AOR FSE NI2 PRO CGT ",36938.080000000002,53568.34,"YES"]
[104,"Employment, Self employment, Partnership income and CEG. TSR and gift aid",null,"Components: YPD REL-B AOI-B Emp-A SSE SPS NI2 ",7102.4,7626.8,"YES"]
[105,"Employment, Pension, Property, Savings and CEG. Relief for Finance Costs (Landlord Loan Savings Relief).",null,"Components: YPD INC-A INC-B COV AOI-B Emp-A ",523.90999999999985,523.91,"YES"]
[106,"Employment income, Redundancy Lump sum, Dividends and CEG.",null,"Components: YPD INC-A AOI-B ASE-B Emp-A ",89859.84000000004,2152.5500000000002,"YES"]
[107,"Partnership, Savings, Dividends and CEG income. CGT and PPR. Class 2 and 4 NIC.",null,"Components: YPD INC-A REL-A AOI-B SPS NI2 CGT ",19066.060000000001,11328.87,"YES"]
[108,"Property income, Trust income, Pension, Savings and Dividends. Losses,  Relief for Finance Costs (Landlord Loan Savings Relief) and CITR. Test TSR change",null,"Components: YPD INC-B AOI-A AOI-B AOI-C AOR FPS NicEx TRU ",-56.050000000000182,-56.04,"NO"]
[109,"Employment, Pension, Dividends, Foreign income and Foreign dividends. Losses, Relief for Finance Costs (Landlord Loan Savings Relief) and Community investment relief.",null,"Components: YPD INC-B AOI-C AOR Emp-A Emp-B PRO FOR TCR ",3454.08,-108.15,"YES"]
[110,"Self employment, Partnership and Trust income. Student Loan (plan2) SL, CGT, Income over £100000 with losses, RAR, PPR and Gift Aid. VCT, SEISR and EIS",null,"Components: YPD REL-A REL-B SLR FIN AOR FSE FPS NI2 TRU CGT ",83535.839999999982,111349.21,"NO"]
[111,"MOR, Employments and Trusts income. ",null,"Components: YPD Emp-A MOR TRU CAL ",-1724.25,-1724.25,"NO"]
[112,"Employment income, Savings.  Relief for Finance Costs (Landlord Loan Savings Relief). Lump sum, CAL7/8, PA reduced to Nil ",null,"Components: YPD INC-A ASE-B Emp-A Emp-B PRO CAL ",22079.699999999997,22079.7,"YES"]
[113,"Partnership, Property, Trusts, Other income, Savings, Dividends, Foreign income and Foreign Dividends. Losses, PA reduced to Nil, gifts to charity,  Relief for Finance Costs (Landlord Loan Savings Relief), CGT. Class 2 and 4 NIC.",null,"Components: YPD INC-A INC-C REL-B SPS FPS NI2 PRO FOR TCR TRU CGT ",47598.32,45394.879999999997,"NO"]
[114,"Self Employment and Share Schemes. Class 2 and 4 NIC.",null,"Components: YPD ASE-A SSE NI2 ",5264.5,5802.4,"YES"]
[115,"Pension income, S/E Losses. CGT. ",null,"Components: YPD INC-B SSE FSE NI2 CGT ",20830.759999999998,13630,"NO"]
[116,"Employment income, Lloyds Underwriters, Lump Sums, savings and Dividends. Losses and Class 2 NIC.",null,"Components: YPD INC-A INC-B AOI-B ",9429.94,5021.25,"NO"]
[117,"Lloyds Underwriters, Trust and savings. Foreign tax on estates. Class 2 and 4 NIC. CIS deductions.",null,"Components: YPD INC-A INC-C AOI-B ",3004,3004,"NO"]
[118,"Foreign Tax on Estates, income from Property, Trusts, savings and Dividends. AHR and Ahdiv rates PA reduced to Nil. Relief for Finance Costs (Landlord Loan savings Relief)",null,"Components: YPD INC-A PRO TRU ",16556.759999999998,23102.83,"NO"]
[119,"savings and Dividends. Remittance basis for non-dom. BPA and MCA not due as taxpayer is Non resident",null,"Components: YPD INC-A REL-C MCA NRD ",-99048.29,59919.75,"NO"]
[120,"Employment, Dividends, Foreign Income. Remitted Basis - income less than £2000 tick box.",null,"Components: YPD INC-A Emp-A FOR TCR NRD ",-102551.16,19785.23,"NO"]
[121,"Employment, Partnership savings income. Student Loan (Plan 1) SL box EMP8 entry, eligible income below £15795",null,"Components: YPD INC-A SLR Emp-A SPS NI2 CAL ",590.5,590.5,"YES"]
[122,"Employment, Pension and Share Schemes. Student Loan (plan 1). ",null,"Components: YPD INC-B SLR ASE-A Emp-A SSE ",10206.799999999999,14512.8,"YES"]
[123,"Pension, savings and Dividends. State pension lump sum 0%. MCA claimed husband, Relief for Finance Costs (Landlord Loan savings Relief). Losses",null,"Components: YPD INC-A INC-B REL-B MCA AIL PRO ",9976.2099999999991,-3515,"YES"]
[124,"Self employment, savings, Dividends and Foreign Dividends. MCA ( half basic to wife ).",null,"Components: YPD INC-A MCA SSE NicEx ",-496.66,0,"YES"]
[125,"savings and Dividends. In year MCA claim.",null,"Components: YPD INC-A AOI-C MCA ",-2140.6799999999998,-91.25,"YES"]
[126,"Pension, Other and shares income, MCA claim with basic MCA to wife   ",null,"Components: YPD INC-B INC-C ASE-A MCA ",-76.900000000000546,-1400,"YES"]
[127,"Ministers of Religion, Employment and Self Employment.",null,"Components: YPD INC-B Emp-A MOR ",21042.05,398.6,"NO"]
[128,"Ministers of Religion employment, savings and Dividends, Gift Aid. ",null,"Components: YPD INC-A REL-B MOR ",-139.90000000000009,-102.65,"NO"]
[129,"Ministers of Religion employment, Other income and Dividends AHR.",null,"Components: YPD INC-A INC-C MOR ",326931.95999999996,326811.64,"NO"]
[130,"Employment and Self Employment. CGT",null,"Components: YPD Emp-A SSE NI1 NicEx CGT ",0,16898.400000000001,"YES"]
[131,"Employment, Other income. S/E losses reduced PA , CEG and Class 2 NIC.",null,"Components: YPD INC-C Emp-A Emp-B SSE NI2 NI1 NIC2Vol CGT ",62714.59,14029,"YES"]
[132,"Self Employment, Foreign Dividends, savings and Dividends. Class 4 and 2 NIC. ",null,"Components: YPD INC-A FSE NI2 ",573.03,781.5,"YES"]
[133,"Employment income and voluntary Class 2 NIC. CGT.",null,"Components: YPD Emp-A FSE NI2 NI1 NIC2Vol FOR CGT ",17264.32,14201.2,"YES"]
[134,"Employment, Partnership income, savings and Dividends. Losses, Class 1 NIC contributions reducing Class 4 NIC due and voluntary Class 2.",null,"Components: YPD INC-A FIN Emp-A FPS NI2 NI1 CGT ",13269.49,12597.42,"YES"]
[135,"Employment, Self employment and Partnership. Losses. PA reduced to nil.",null,"Components: YPD Emp-A FSE FPS NI1 NicEx ",38284.699999999997,37392.800000000003,"YES"]
[136,"Partnership, COV1/2, Scottish Customer, Employment, Income from Property and CEG.",null,"Components: YPD COV AOI-B Emp-A SPS PRO ",4289.7700000000004,6017,"YES"]
[137,"Partnership, COV1/2, Employment and Dividend income. Student Loan (plan 1) SL.  investment income >2000, SL repayments via empt ",null,"Components: YPD INC-A SLR COV Emp-A SPS ",5215.75,5396.49,"YES"]
[138,"Scottish Customer, Employment, and other income. Interest and dividends. Pension tax charges (AIL10)",null,"Components: YPD INC-A INC-C SLR AIL Emp-A ",52656.72,90528.13,"YES"]
[139,"Scottish Customer. Self employment. Losses, Class 2 and 4 NIC. Pension tax charges (AIL10)",null,"Components: YPD AIL FSE NI2 ",8372141.4500000002,37759.72,"YES"]
[140,"Scottish Customer. Self employment and Income from Property. Losses, Relief for Finance Costs (Landlord Loan savings Relief), Pension tax charges (AIL10) and Voluntary Class 2 NIC.",null,"Components: YPD AIL SSE NI2 NIC2Vol PRO ",67968.820000000007,4253.41,"YES"]
[141,"Scottish Customer. Employment, Foreign income and Foreign Dividends. Overseas pension charge; Relief for Finance Costs (Landlord Loan savings Relief). PA reduced to nil.",null,"Components: YPD AIL Emp-A FOR ",235781.93,227221.53,"YES"]
[142,"Scottish Customer. Employment. Reduced PA. Pension tax charges for AIL 7,8 and 9",null,"Components: YPD AIL Emp-A ",61090.32,47730.86,"YES"]
[143,"Lloyds underwriter and savings.",null,"Components: YPD INC-A LUN NI2 ",19676.580000000002,-358.5,"NO"]
[144,"Scottish Customer, Lloyds underwriter, Losses, class 4 NIC, voluntary Class 2 NIC and CGT.",null,"Components: YPD LUN NI2 CGT ",22660.120000000006,20715.91,"NO"]
[145,"Scottish customer, Lloyds underwriter. Losses, aged over 65 Nic exempt ",null,"Components: YPD LUN NicEx ",-634.98,3642.75,"NO"]
[146,"Scottish Customer. Lloyds underwriter, Pension and CEG with TSR ",null,"Components: YPD INC-B AOI-B LUN NicEx ",269.66000000000003,5133.67,"NO"]
[147,"Scottish Customer, Lloyds underwriter losses set off against income from property and Voluntary Class 2",null,"Components: YPD LUN NI2 NIC2Vol PRO ",9259.58,2486.34,"NO"]
[148,"Lloyds underwriter, Losses income with pension savings and capital gains, balance BR to gains",null,"Components: YPD AIL LUN NicEx CGT ",78967.02,5415,"NO"]
[149,"Lloyds underwriter with Trust income and Student Loan (plan 1) repayments ",null,"Components: YPD SLR LUN NI2 TRU ",-2545.0300000000007,-4976.8500000000004,"NO"]
[150,"Lloyds underwriter with Foreign Income and Foreign Dividends. Losses. Class 2 and 4 NIC",null,"Components: YPD REL-B LUN NI2 FOR TCR ",27567.34,5404.52,"NO"]
[151,"Lloyds underwriter with Self Employment Income. Losses Class 2 and 4 NIC. CGT",null,"Components: YPD FSE LUN NI2 CGT ",56500.020000000004,37997.58,"NO"]
[152,"Lloyds underwriter with employment income. Losses and voluntary Class 2 NIC.",null,"Components: YPD Emp-A LUN NI2 ",18809.669999999998,1261.2,"NO"]
[153,"Lloyds underwriter, employment income with Lump Sum , Partnership, savings, Dividends and Other Income, PA reduced to Nil. PPR  ",null,"Components: YPD INC-A INC-C REL-A ASE-B LUN FPS NI2 CGT ",2814824.04,63078.66,"NO"]
[154,"Scottish Customer, Minister of Religion, Pension income. In year marriage. ",null,"Components: YPD INC-B MCA MOR ",4736163.6399999997,1957.92,"NO"]
[155,"Scottish Customer, Employment, Other Income, savings and Foreign income.",null,"Components: YPD INC-A INC-C ASE-B AOR Emp-A ",23755.399999999994,-1538.15,"YES"]
[156,"Scottish Customer. Employment income, Partnership Foreign Income savings and other income. Reduced PA. Voluntary Class 2 NIC",null,"Components: YPD INC-A INC-C Emp-A SPS NI2 NI1 NIC2Vol ",46417.8,13947.16,"YES"]
[157,"Self employment, savings and Dividends below Personal Alowance.  CGT and Voluntary Class 2",null,"Components: YPD INC-A SSE NI2 NIC2Vol CGT ",194716.52999999997,13710.4,"YES"]
[158,"Scottish Customer. Self emaployment, Partnership, Property Income, Other income, savings and Dividends. CGT, Class 2 and 4 NIC.",null,"Components: YPD INC-A INC-C FSE SPS NI2 PRO CGT ",2297952.0300000003,32550.25,"YES"]
[159,"Employment income, savings and Dividends. Voluntary Class 2 NIC. Ent Gains plus other gains. AEA, loss and balance BR band to other gains",null,"Components: YPD INC-A SSE NI2 NIC2Vol CGT ",0,2780.4,"YES"]
[160,"Scottish Customer. Self employment, savings and Dividends. Losses. Class 2 and 4 NIC. ENT Gains plus other gains. ",null,"Components: YPD INC-A FIN SSE FSE NI2 CGT ",129074.7,70736.81,"YES"]
[161,"Partnership, Voluntary Class 2, CGT. ",null,"Components: YPD SPS NI2 NIC2Vol CGT ",4208.05,5708.75,"YES"]
[162,"Scottish customer, Partnership, Gift Aid charge. CGT.",null,"Components: YPD REL-B SPS NI2 NicEx CGT ",237807.13,4837.9399999999996,"YES"]
[163,"Scottish Customer, Partnership. Losses, FPS Relief for Finance Costs (Landlord Loan savings Relief). Class 2 and 4 NIC. CGT",null,"Components: YPD FPS NI2 CGT ",110062,92880.98,"YES"]
[164,"CEG and other income. CGT.",null,"Components: YPD INC-C AOI-B CGT ",12652.48,996,"NO"]
[165,"Employment income, CEG and CGT. Reduced PA. Ex115",null,"Components: YPD INC-A REL-B AOI-B Emp-A CGT ",215701.53,32973.25,"YES"]
[166,"Employment income. CGT with Deficiency Relief",null,"Components: YPD AOI-B Emp-A CGT ",18885.8,14743,"YES"]
[167,"Scottish Customer. Employment income. CGT with Deficiency Relief. ",null,"Components: YPD AOI-B Emp-A CGT ",139119.35999999999,14890.95,"YES"]
[168,"Scottish, Employment income, Savings income & loss relief. CGT without deficiency.",null,"Components: YPD INC-A AOR Emp-A SSE CGT ",21373.83,60075.38,"YES"]
[169,"Employment, savings and dividend income. AIL 16. ",null,"Components: YPD INC-A AIL Emp-A ",1124.6999999999998,222.95,"YES"]
[170,"Employment income including Lump Sum and Chargeable event gain.",null,"Components: YPD AOI-B ASE-B ",517057.89999999997,6185,"YES"]
[171,"Gift aid charge reduced by notional tax",null,"Components: YPD INC-B REL-A REL-B AOI-B ",-499.20000000000005,-499.2,"YES"]
[172,"Property Income, Dividends and Pension. Losses. Relief for Finance Costs (Landlord Loan savings Relief). Non Resident with AOI12 ",null,"Components: YPD INC-A INC-B AOI-C PRO NRD ",4608.68,4292.38,"NO"]
[173,"Property Income, Dividends and Pension. Losses. Relief for Finance Costs (Landlord Loan savings Relief). Non resident with AOI13",null,"Components: YPD INC-A INC-B AOI-C PRO NRD ",5217,4263.87,"NO"]
[174,"Non resident, Partnership, Pension, Property, savings and Dividend income.",null,"Components: YPD INC-A INC-B FPS NI2 NicEx PRO NRD ",23439.300000000003,19308.099999999999,"NO"]
[175,"Employment, Trust, savings and Dividend income. Test for TRU18.",null,"Components: YPD INC-A AOI-B Emp-A TRU ",12048.2,13518.06,"NO"]
[176,"Proerty Income, savings and  Dividends. AIL16 over £20,000",null,"Components: YPD INC-A AIL PRO ",77733,77733,"YES"]
[177,"Pension, Other income and savings. MCA",null,"Components: YPD INC-A INC-B INC-C AOI-C MCA CAL ",21414.06,-1400,"YES"]
[178,"Pension, Other income and savings. MCA1, half basic  to partner",null,"Components: YPD INC-A INC-B INC-C MCA ",7520,1896.04,"YES"]
[179,"Pension, Other income and savings. MCA, all basic to partner",null,"Components: YPD INC-A INC-B INC-C MCA ",9423.75,-1400,"YES"]
[180,"Pension, Other income and savings. MCA claim lower income partner",null,"Components: YPD INC-A INC-B INC-C MCA ",6412,-1156.9000000000001,"YES"]
[181,"Employment, Foreign Income and savings. Student Loan repayments (plan 1) SL, CAL7 and CAL 8 entries.",null,"Components: YPD INC-A SLR AOR Emp-A Emp-B CAL ",-2321.15,6194.4,"YES"]
[182,"Employment income, Student loan repayments (plan 1) SL, EMP8 entry, PT Teacher earnings > SL limit but PT teacher earnings on own < SL limit",null,"Components: YPD Emp-A Emp-B FSE ",463.03,2569,"YES"]
[183,"Property Income from both EEA and UK lettings. Pension CEG, savings and Dividends.",null,"Components: YPD INC-A INC-B AOI-B PRO ",2233.4699999999998,4833.47,"YES"]
[184,"Employment income, Property Income from EEA and UK lettings, Foreign land and property income and Foreign Dividends. FOR Relief for Finance Costs (Landlord Loan savings Relief). PA reduced to Nil.",null,"Components: YPD Emp-A PRO FOR TCR ",7962.01,23142.53,"YES"]
[185,"Property and Trust income, savings and Dividends, CEG. Income over £100,000 reduced PA. Student Loan repayments (plan 1)   ",null,"Components: YPD INC-A SLR AOI-B PRO TRU ",16175.88,16297.88,"NO"]
[186,"Pension, savings, Dividends and Foreign Dividends. Lifetime allowance charge (lump sum amount)",null,"Components: YPD INC-A INC-B AOI-C AIL ",-1257.95,-1187.94,"YES"]
[187,"Self employment, Pension. Lifetime allowance charge -further tax due  (lump sum and pension amounts)",null,"Components: YPD INC-B AIL SSE NI2 NicEx ",18768.29,30662.7,"YES"]
[188,"Self employment, Property Income, Other income, savings and Dividends, CRG. Annual allowance charge and unauthorised payment charge (@40% and 55%). Reduced PA",null,"Components: YPD INC-A INC-C AOI-B AOI-C AIL FSE NI2 NicEx PRO ",178656.68000000002,183329.63,"YES"]
[189,"Employment income. Small Debt coded but not enough PAYE tax to cover. CEG.",null,"Components: YPD Emp-A CGT CAL ",17358.2,7918.5,"YES"]
[190,"Partnership, Other income and savings. PPR and Gift Aid. Losses. Class 4 and Voluntary Class 2. AOR9",null,"Components: YPD INC-C REL-A REL-B AOI-A AOR SPS NI2 ",53719.77,16266.47,"YES"]
[191,"Partnership, Other income and savings. PPR and Gift Aid. Losses. Class 4 and Voluntary Class 2. EIS and AOR9.",null,"Components: YPD INC-C REL-A REL-B AOI-A AOR SPS NI2 ",42892.02,13266.47,"YES"]
[192,"Self employment adjusted loss reduced by transition profit, savings, dividneds and HICBC. Voluntary Class 2.",null,"Components: YPD INC-A CBC FSE NI2 ",21750.190000000002,8842.02,"YES"]
[193,"Employment, Self employment and savings. Losses. HICBC. Class 4 and Voluntary Class 2 NIC.",null,"Components: YPD INC-A CBC Emp-A SSE NI2 NI1 ",11630.150000000001,12117.98,"YES"]
[194,"Employment, savings and Dividends. HICBC. AOR6.1",null,"Components: YPD INC-A CBC AOR Emp-A ",13703.37000000001,13703.37,"YES"]
[195,"Employment, Self employment. Losses. HICBC. Gift Aid. Class 4 and Voluntary Class 2 NIC.",null,"Components: YPD REL-B CBC Emp-A SSE NI2 NI1 ",1097.33,2766.83,"YES"]
[196,"Employment income, savings and Dividends. PPR. HICBC.",null,"Components: YPD INC-A REL-A CBC AOI-C Emp-A CAL ",45793.16,714.47,"YES"]
[197,"Employment, Other income, savings and Dividends. PA reduced to Nil. Gift Aid to charity. Unauthorised payments charge. VCT relief maintenance payments ",null,"Components: YPD INC-A INC-C REL-B AOR AIL Emp-A ",330458.77,330458.77,"YES"]
[198,"Scottish customer with Pension, Savings, Dividends and Foreign Dividends. Overseas short service refund charge and overseas Lump sum death benefit , State Pension Lump Sum SBR20%. BPA.",null,"Components: YPD INC-A INC-B REL-C AOI-A AIL ",-309.14000000000124,-570.54,"YES"]
[199,"Pension, savings, and dividend income with Chargeable Event Gain, Stock Dividends and taxable short service refund (overseas schemes) and Capital Gains (inc Investor's Relief). More beneficial to have CEG in HRNilBand than savings in BRNilBand",null,"Components: YPD INC-A INC-B SLR AOI-B AOI-C AIL FSE CGT ",16331.86,14388.86,"YES"]
[200,"Scottish customer with Pension, Other income, State PensionLump Sum 0%",null,"Components: YPD INC-B INC-C FIN Emp-A ",23506.799999999999,-4368.6000000000004,"YES"]
[201,"Scottish customer with Employment, Self employment, Partnership, Property income, Trusts,Other income, CEG, Interst and Dividends.  PA reduced to nil. Class 4 and Voluntary Class 2. HICBC.",null,"Components: YPD INC-A INC-C CBC AOI-B AOI-C Emp-A Emp-B SSE FPS NI2 NI1 PRO TRU ",84116.01,88327.6,"NO"]
[202,"Employment and Property Income. Capped loan and losses with payroll giving. Relief for Finance Costs (Landlord Loan savings Relief).",null,"Components: YPD AOR AIL Emp-A Emp-B FSE NI2 NI1 NIC2Vol PRO ",17717.25,13426.5,"NO"]
[203,"Partnership income and savings. Partnership losses Capped.  PPR, Gift Aid and Voluntary Class 2.",null,"Components: YPD INC-A REL-A REL-B FPS NI2 NIC2Vol ",6328.7,6322.6,"YES"]
[204,"Employment income, savings and Dividends. Capped Partnership losses with pension savings charges and royalty payments. Voluntary Class 2.",null,"Components: YPD INC-A ASE-C AIL Emp-A SPS NI2 NI1 NIC2Vol ",-3641.2799999999988,-3647.38,"YES"]
[205,"Claim for remittance basis (NRD 28) resident claim for 12 of 14 years (NRD 31),Partnership Losses SPS22 reduced to maximum allowable, BR pay, CL2 NIC, remitance basis charge",null,"Components: YPD AIL Emp-A SPS NI2 NI1 NIC2Vol NRD ",-10814.5,51693.4,"NO"]
[206,"Scottish customer with multiple source losses with total exceeding £50k where 25% > £50k, AHR Pay, No PSA (AHR), SAV AHR, relief for finance costs reduced to max allowable, CG, minus tax on gains already charged",null,"Components: YPD Emp-A Emp-B SSE FSE SPS NI2 NI1 PRO CGT ",39803.739999999991,37298.26,"YES"]
[207,"Restricted loan interest (AOR 5), BPR surplus, HR profit, CL4 NIC (adjusted FSE 102), CL2 NIC",null,"Components: YPD FIN AOR FSE NI2 CAL ",29360.639999999999,30318.04,"YES"]
[208,"Non-UK resident, PRO loss B/F and set off, income excluded,  Gift Aid payments, BR pay, Tax excluded, 7.5% tax treated as paid on dividends, non-UK resident calculation used as lower.",null,"Components: YPD INC-A INC-B REL-B PRO NRD ",24840,0,"NO"]
[209,"Partnership Losses (PS 39) reduced to maximum allowable. AHR profit, CL4 NIC, CL2 NIC",null,"Components: YPD FPS NI2 ",162634.6,163568,"YES"]
[210,"Non-UK resident, income potentially excluded from  tax calc under s128 FA 1995 for Annual Allowance Charge, BR pay, pension savings charge, non-Uk resident liability accepted as lower, ",null,"Components: YPD INC-A ASE-C AIL Emp-A PRO NRD ",37682.400000000001,37682.400000000001,"NO"]
[211,"Non-UK resident, income potentially excluded from  tax calc under s128 FA 1995 for Annual Allowance Charge & for Capital Gains, BR pay, pension savings charge, non-Uk resident liability accepted as lower, CG",null,"Components: YPD INC-A ASE-C AIL Emp-A PRO CGT NRD ",104207.75,55082.400000000001,"NO"]
[212,"Resident with multiple FTCR items claimed, tax due on gift aid payments",null,"Components: YPD INC-A REL-B FOR TCR ",-192.5,-20.25,"YES"]
[213,"Claim for remittance basis (NRD 28) resident claim for 12 of 14 years (NRD 31), Gift aid 250,000 (net) , BR pay, remitance basis charge, CG, CG tax adjustment, Liability from off-shore trust",null,"Components: YPD REL-B CBC Emp-A CGT NRD ",249113.3,68243.199999999997,"NO"]
[214,"Scottish customer claiming remittance basis and unremitted income below deminimus, savings and dividend income",null,"Components: YPD INC-A INC-B FOR TCR CGT NRD ",336503.63,21384.66,"NO"]
[215,"Double taxation agreement income (NRD 20), claim for remittance basis (NRD 28) resident claim for 7 of 9 years (NRD 32), FOR prop loss offset against income, AHR pay/pension, FTCR, remitance basis charge, CG residential property, FTCR on CG",null,"Components: YPD INC-B FOR TCR CGT NRD ",109810.25,51027.199999999997,"NO","The calc figure should be test case 209 + Remittance Basis Charge RBC for 7 of 9 years"]
[216,"Double taxation agreement income (NRD 20), claim for remittance basis (NRD 28) resident claim for 12 of 14 years (NRD 31) following FB2 of 2017-18, FOR prop loss offset against income, AHR pay/pension, FTCR, remitance basis charge, CG residential property, FTCR on CG",null,"Components: YPD INC-B FOR TCR CGT NRD ",435691.12,81027.199999999997,"NO","The calc figure should be test case 209 + Remittance Basis Charge RBC for 12 of 14 years"]
[217,"Double taxation agreement income (NRD 20), deemed domicile claim (NRD 30), FOR prop loss offset against income, AHR pay/pension, FTCR, CG residential property, FTCR on CG, Test for NRD36 POA Adjustment (changed from NRD35 for 2015-16)",null,"Components: YPD INC-B FOR TCR CGT NRD ",469031.85,17334.3,"NO"]
[218,"Remittance Basis (NRD 28) - Age under 18 tick box NRD33 test. SAV SR, PSA (HR), SAV BR,SAV HR, EIS Relief, Seed EIS Relief.",null,"Components: YPD INC-A AOI-A AOR NRD ",0,0,"NO"]
[219,"Case to check CL2 and CL4 NIC calculations. SBR profit/pay, PSA (BR), Class 4 calculation taking into account Class 1 NICable earnings.",null,"Components: YPD INC-A REL-B Emp-A FSE NI2 NI1 ",13363.150000000001,13518.4,"YES"]
[220,"non-UK resident claiming PA under DTA (NRD1 = Y and NRD15 = Y) SAV SR, PSA (BR), DA, DOR, FCTR, 7.5% tax treated as paid, UK IT liability used as lower CG, CG tax adjustment, Liability from off-shore trust",null,"Components: YPD INC-A INC-B REL-B FOR TCR CGT NRD ",5719.24,3800.8,"NO"]
[221,"MAT transfer out where income greater than PA, income covered by SAV SR and DA",null,"Components: YPD INC-A INC-B MAT ",18040.5,0,"YES"]
[222,"Welsh customer Lump sum, Emp, DIVs. Tests exclusion 122",null,"Components: YPD INC-A ASE-B Emp-A Emp-B ",-11846.399999999994,55568.6,"NO"]
[223,"Scottish customer, SIR profit/pension, Savings SR PSA (BR), SAV BR, Lump sum CG",null,"Components: YPD INC-A INC-B PRO CGT ",6761.8600000000006,5397.07,"YES"]
[224,"Scottish customer profit/ pension below PA, PSA (BR), SAV BR, DA (nil rate hr), DOR, Lump sum",null,"Components: YPD INC-A INC-B SSE ",75539.930000000008,22963.55,"YES"]
[225,"Scottish customer SE DIVS Lump sum (Advanced rate)",null,"Components: YPD INC-A SSE NRD ",-6521.31,5119.3999999999996,"NO"]
[226,"Profit under losses relief of £62,547 (sps20), dividends £828,319. SAV SR, DA, DOR, DUR, DAR. No tax paid",null,"Components: YPD INC-A REL-B SSE SPS ",14965.440000000002,191768.61,"NO"]
[227,"BR pension, SAV SR, PSA (BR), SAV BR, DA, DOR. Beneficial ordering - PA allocated against pension to release SAV SR",null,"Components: YPD INC-A INC-B FSE NI2 NI1 ",14961.710000000001,13794.11,"YES"]
[228,"BR Pension, PSA (HR), SAV HR, DA, DUR. Beneficial ordering - Part PA allocated to Pension so that PSA given against SAV HR.",null,"Components: YPD INC-A INC-B ",-14565.339999999982,9013.4500000000007,"YES"]
[229,"BR employment, PSA (HR), SAV HR, DA, DUR. Beneficial ordering - Full PA allocated to employment so that PSA given against SAV HR.",null,"Components: YPD INC-A Emp-A ",22547.769999999997,13667.11,"YES"]
[230,"179,999 gift of inv and PRO to charity, No taxable income, Tax due on gift aid payments",null,"Components: YPD INC-A INC-B REL-B ",13064.650000000001,-57.75,"YES"]
[231,"No earned income, INT and gains on Life insurance,  SAV SR, PSA (HR), BR, HR, DA, DOR, DUR. TSR and notional tax. Beneficial ordering",null,"Components: YPD INC-A AOI-B ",23362.489999999998,18365.3,"YES"]
[232,"BR Employment/Pension, PSA (HR), DA, DOR, DUR. Beneficial ordering",null,"Components: YPD INC-A INC-B ASE-B ",-694.83000000000175,-700.08,"YES"]
[233,"Scottish customer, Gift aid, Int/FOR int, SAV SR, PSA (HR), SAV BR, DA, DOR, DUR. Beneficial ordering",null,"Components: YPD INC-A INC-B INC-C REL-B FOR ",30309.980000000003,6072.73,"YES"]
[234,"Scottish Customer, SIR pension, PSA (BR), SAV BR, DA, DOR. Beneficial ordering",null,"Components: YPD INC-A INC-B ",11819.86,-855.09,"YES"]
[235,"Scottish Customer with pension payments (RAS) and gift aid contributions increasing basic rate band",null,"Components: YPD INC-A INC-B REL-A REL-B Emp-A ",14760.529999999999,9880.94,"YES"]
[236,"Scottish customer, 256421 gift of inv and prop to charity, Gift aid, Int/FOR Int SAV SR, PSA (BR), DA, DOR, FTCR, CG",null,"Components: YPD INC-A INC-B INC-C REL-B AOI-A Emp-A FOR TCR CGT ",70069.679999999993,73253.03,"YES"]
[237,"Scottish customer,  PPR, SSR Employment, SAV SR, PSA (HR), SAV BR, DA, DOR, DUR. Beneficial ordering",null,"Components: YPD INC-A REL-A Emp-A ",77494.06,16732.13,"YES"]
[238,"More beneficial to set all allowances against non-savings income to reduce income in SR_band than setting allowances against savings. CGT due at 10%.",null,"Components: YPD INC-A INC-B AOI-A Emp-A FOR CGT ",55273.98,24609.43,"YES"]
[239,"Scottish customer, SHR Employment(including redundancy lump sum), SAV SR, PSA (BR) SAV BR Beneficial ordering",null,"Components: YPD INC-A ASE-B Emp-A ",342012.69,3286,"YES"]
[240,"HR redundancy lump sum, Chargeable gains, SAV SR, PSA (HR), SAV BR, SAV HR, DA, DOR. Notional tax from gains. Beneficial ordering",null,"Components: YPD INC-A INC-B CBC AOI-B ASE-B AOR ",-15362.33,-1024,"YES"]
[241,"HR employment (inc redundancy lump sum), SAV SR, PSA (HR), SAV BR, DA, DOR, DUR. Beneficial ordering",null,"Components: YPD INC-A ASE-B Emp-A ",7972.8,7958.49,"YES"]
[242,"HR OI/Employment ( inc redundancy lump sum), SAV SR, PSA (HR), BR, DA, DOR. Beneficial ordering",null,"Components: YPD INC-A INC-C ASE-B ",19702.759999999998,1117.25,"YES"]
[243,"Scottish customer, Scot SR pension, SAV SR, PSA(HR), SAV BR, SAV HR, MAT-IN relinquished as SAV HR. Beneficial ordering",null,"Components: YPD INC-A INC-B MAT ",23804,4116,"YES"]
[244,"BR pension, SAV (HR), Divs covered by PA rather than DA so MAT-IN retained as beneficial.",null,"Components: YPD INC-A INC-B MAT ",-5219.6000000000004,-5219.6000000000004,"YES"]
[245,"PTNRS loss set against other income, HR employment (inc redundancy lump sum)/PTNRS/PRO, PSA (BR), CL2 NIC",null,"Components: YPD INC-A ASE-B Emp-A FPS NI2 NIC2Vol PRO ",9828.56,8279.7999999999993,"YES"]
[246,"Non-UK resident where s399 ITTOIA 2005 applies to INC4, INC5, TRU5, TRU9 & TRU12",null,"Components: YPD INC-A PRO TRU NRD ",28708.939999999995,28708.94,"NO"]
[247,"Non-UK resident where s399 ITTOIA 2005 applies to INC4, INC5, & FPS70",null,"Components: YPD AOR FPS NicEx NRD ",35189.259999999995,35189.25,"NO"]
[248,"As a non-UK resident with Chargeable Event Gains no Top Slicing Relief due",null,"Components: YPD INC-A INC-B AOI-B NRD ",2293.9999999999991,2294,"NO"]
[249,"Pension, Property, Savings and NRCGT",null,"Components: YPD INC-A INC-B CBC Emp-A PRO CGT ",592056.56999999995,52623.35,"YES"]
[250,"Non-UK resident, Property, Savings, Dividends and NRCGT",null,"Components: YPD INC-A FPS NI2 PRO CGT NRD ",110097,118210.5,"NO"]
[251,"Pension, Property, Savings and Dividends",null,"Components: YPD INC-B PRO CGT ",37990.53,28696.12,"YES"]
[252,"Pension, Property, Savings and NRCGT",null,"Components: YPD INC-A INC-B PRO CGT ",170952.31,179428.4,"NO"]
[253,"Non-UK resident, Property, Savings and NRCGT",null,"Components: YPD INC-A PRO CGT NRD ",104576.79,3035.73,"NO"]
[254,"Scottish customer with State pension Lump sum (starter rate), Minister of Religion, CGT. Balance of Basic rate to CGT ",null,"Components: YPD INC-B Emp-A MOR CGT ",4161147.4,-1520,"NO"]
[255,"State pension Lump sum HR, Lloyds Underwriters and Self Employment , Enterprise Investment Scheme relief EISR, & Social Investment Tax Relief SITR",null,"Components: YPD INC-A INC-B REL-B AOR Emp-A Emp-B FSE LUN SPS NI2 NI1 PRO ",74249.119999999995,79388.990000000005,"NO"]
[256,"Scottish customer SSR, SBR, SIR, SHR, SAV HR , DA Nil rate, DAR, CGT.",null,"Components: YPD INC-A ASE-A Emp-A CGT ",334221.96000000002,335356.46999999997,"YES"]
[257,"Scottish customer, Self employment Deficiency Relief DR reduces dividends only. Class 4 and voluntary Class 2.",null,"Components: YPD INC-A REL-A AOI-B FSE NI2 ",358604.32,359276.23,"NO"]
[258,"Partnership and pensions. Corresponding Deficiency Relief CDR reduces dividends and savings. Class 4",null,"Components: YPD INC-A INC-B AOI-B FPS CGT ",-5526.929999999993,19188.849999999999,"YES"]
[259,"Pension, Savings and Divs. Corresponding Deficiency Relief CDR reduces dividends, no HR liability on non-savings income",null,"Components: YPD INC-A INC-B AOI-B ",316216.49,316216.49,"YES"]
[260,"Scottish customer, self employment, pensions Savings and dividends, Gift Aid. MAT_IN. Insufficient tax paid to cover tax repaid to charity.",null,"Components: YPD INC-A INC-B REL-B MAT AOI-C SSE CGT ",95122.44,591.41,"NO"]
[261,"Employment, Lump sum,  foreign income and Foreign dividends. Student Loan repayment Plan 1 SL, FOR Relief for Finance Costs (Landlord Loan Savings Relief)",null,"Components: YPD SLR ASE-B Emp-A FOR TCR ",9149.16,7898,"NO"]
[262,"Employment, Foreign income, Foreign dividends, Trust income, Savings, Dividends, VCT/Alimony claim.",null,"Components: YPD INC-A AOR Emp-A FOR TCR TRU ",-7179.4,-5073.9399999999996,"NO"]
[263,"Property income, Pension, Savings, Dividends, Chargeable Event Gains CEG with Top Slicing Relief TSR due",null,"Components: YPD INC-A INC-B AOI-B PRO ",3271.53,8407.0300000000007,"NO"]
[264,"Pension, Property, Savings and Dividends",null,"Components: YPD INC-A INC-B INC-C PRO FOR CGT ",204689.56,194169.64,"NO"]
[265,"Pension, Property, Savings and Dividends",null,"Components: YPD INC-A INC-B CGT NRD ",62935.339999999989,8521.08,"NO"]
[266,"Non-UK resident, Pension, Dividends and NRCGT",null,"Components: YPD INC-A INC-B FIN CGT NRD ",79119.69,-3107.41,"NO"]
[267,"Non-UK resident, Pension, Property, Savings and NRCGT",null,"Components: YPD INC-A INC-B PRO CGT NRD ",7715.27,4161.79,"NO"]
[268,"TRF, CGT Class 4",null,"Components: YPD INC-A INC-B SPS FPS PRO CGT NRD ",630719.09,54353.45,"NO"]
[269,"Non-UK resident Partnership and dividend income with annuity",null,"Components: YPD INC-A AOR FPS NicEx NRD ",9531.3799999999992,2250,"NO"]
[270,"Non-UK resident with s399 tax treated as paid on dividends and Gift Aid charge",null,"Components: YPD INC-A REL-B Emp-A NRD ",2513.9999999999982,2514,"NO"]
[271,"Welsh customer Employment and self-employment large dividend income with  large Gift Aid payment, Gift Aid charge and HICBC",null,"Components: YPD INC-A REL-B CBC Emp-A SSE ",22493.75,24462.75,"YES"]
[272,"UK & Foreign Dividends with tax franking Gift Aid. FTCR does not create Gift Aid charge.",null,"Components: YPD INC-A REL-B Emp-A FOR ",-6966.91,-6975.66,"YES"]
[273,"Non-UK resident with Dividends franking Gift Aid in s811 calculation.",null,"Components: YPD INC-A REL-B ASE-B ASE-C Emp-A PRO NRD ",259154.05,79543.5,"NO"]

{"sheet":"Selector","index":5,"n_rows":34,"n_cols":10,"rows_kept":34,"cut":false,"hidden":false,"merged":[]}
["-",null,null,"Select the components from the Core Tax Return and Additional Information pages to test"]
[1,null,"Core Tax Return"]
[2]
[3,null,"Taxpayer's date of birth",null,"Test case reference",168,{"$f":"'REL(2)'!C50&\" (\"&FIN&'REL(2)'!C52&\")\"","v":"Tax refunded (FIN1)"}]
[4]
[5,null,"Income"]
[6,null,"UK interest and dividends",null,"UK pensions received",null,"Other UK income"]
[7,null,{"$f":"C0!C11&\" (\"&C0!C12&\" to \"&C0!C18&\")\"","v":"INC-A (INC1 to INC7)"},null,{"$f":"C0!C20&\" (\"&C0!C21&\" to \"&C0!C28&\")\"","v":"INC-B (INC8 to INC15)"},null,{"$f":"C0!C31&\" (\"&C0!C32&\" to \"&C0!C36&\")\"","v":"INC-C (INC17 to INC21)"}]
[8]
[9,null,"Tax Reliefs"]
[10,null,"Paying personal pensions",null,"Charitable giving",null,"Blind Person's Allowance"]
[11,null,{"$f":"C0!C38&\" (\"&C0!C39&\" to \"&C0!C43&\")\"","v":"REL-A (REL1 to REL4)"},null,{"$f":"C0!C45&\" (\"&C0!C46&\" to \"&C0!C51&\")\"","v":"REL-B (REL5 to REL10)"},null,{"$f":"C0!C53&\" (\"&C0!C54&\" to \"&C0!C57&\")\"","v":"REL-C (REL13 to REL16)"},null,null,{"$f":"\" Components are currently \"&IF(A34,\"visible\",\"hidden\")","v":" Components are currently hidden"}]
[12]
[13,null,"Student Loan Repayments",null,"High Income Child Benefit Charge",null,"Marriage Allowance Transfer"]
[14,null,"Student Loan Repayments",null,"Child Benefit",null,"Allowance Transfer"]
[15,null,{"$f":"C0!C59&\" (\"&C0!C63&\" to \"&C0!C60&\")\"","v":"SLR (SLR2 to SLR1)"},null,{"$f":"C0!C66&\" (\"&C0!C67&\" to \"&C0!C69&\")\"","v":"CBC (CBC1 to CBC3)"},null,{"$f":"C0!C74&\" (\"&C0!C75&\" to \"&C0!C80&\")\"","v":"MAT (MAT1-5 to MAT5)"}]
[16]
[17]
[18,null,"Additional information"]
[19,null,"Gilt edged securities",null,"Life insurance gains",null,"Stock dividends"]
[20,null,{"$f":"'C1'!C3&\" (\"&'C1'!C4&\" to \"&'C1'!C6&\")\"","v":"AOI-A (AOI1 to AOI3)"},null,{"$f":"'C1'!C9&\" (\"&'C1'!C10&\" to \"&'C1'!C17&\")\"","v":"AOI-B (AOI4 to AOI11)"},null,{"$f":"'C1'!C20&\" (\"&'C1'!C21&\" to \"&'C1'!C25&\")\"","v":"AOI-C (AOI12 to AOI15)"}]
[]
["DoB",null,{"$f":"'C1'!C27","v":"Share schemes"},null,{"$f":"'C1'!C31","v":"Lump Sums"},null,{"$f":"'C1'!C42","v":"Other deductions"}]
[7,null,{"$f":"'C1'!C28&\" (\"&'C1'!C29&\")\"","v":"ASE-A (ASE1)"},null,{"$f":"'C1'!C32&\" (\"&'C1'!C33&\" to \"&'C1'!C40&\")\"","v":"ASE-B (ASE3 to ASE10)"},null,{"$f":"'C1'!C43&\" (\"&'C1'!C44&\" to \"&'C1'!C48&\")\"","v":"ASE-C (ASE11 to ASE15)"}]
[{"$f":"\"03/06/\"&MCA_year-1","v":"03/06/1934"}]
[{"$f":"\"22/02/\"&MCA_year+1","v":"22/02/1936"},null,{"$f":"AOR!C3","v":"Other tax reliefs"},null,{"$f":"MCA!C2","v":"Married couple's allowance"},null,{"$f":"AIL!C3","v":"Other Income Tax losses"}]
[{"$f":"\"05/03/\"&Tax_year_end-75","v":"05/03/1951"},null,{"$f":"'C1'!C50&\" (\"&'C1'!C51&\" to \"&'C1'!C60&\")\"","v":"AOR (AOR1 to AOR9)"},null,{"$f":"'C1'!C74&\" (\"&'C1'!C75&\" to \"&'C1'!C85&\")\"","v":"MCA (MCA1 to MCA11)"},null,{"$f":"'C1'!C88","v":"AIL1"}]
[{"$f":"\"03/01/\"&Tax_year_end-63","v":"03/01/1963"}]
[{"$f":"\"17/11/\"&Tax_year_end-40","v":"17/11/1986"}]
[{"$f":"\"02/05/\"&Tax_year_end-15","v":"02/05/2011"}]
["not present"]
[{"$f":"IF(A24=1,A25,IF(A24=2,A26,IF(A24=3,A27,IF(A24=4,A28,IF(A24=5,A29,IF(A24=6,A30,A31))))))","v":"not present"}]
["Components Visible"]
[false]

{"sheet":"More Select","index":6,"n_rows":25,"n_cols":11,"rows_kept":25,"cut":false,"hidden":false,"merged":[]}
["-",null,null,null,"Select the components from the additional pages to test"]
[1]
[2,null,"Employment"]
[3,null,"Employment 1",null,"Employment 2",null,null,"Ministers"]
[4,null,{"$f":"'C2'!B2","v":"selected 168"},null,"EMP-B",null,null,"of Religion"]
[5,null,{"$f":"\"(\"&'C2'!C3&\" to \"&'C2'!C29&\")\"","v":"(EMP1 to EMP20)"},null,{"$f":"\"(\"&'C2'!C3&\" to \"&'C2'!C29&\")\"","v":"(EMP1 to EMP20)"},null,null,{"$f":"\"(\"&'C2'!C61&\" to \"&'C2'!C101&\")\"","v":"(MOR1 to MOR39)"}]
[6]
[7,null,"Self Employment"]
[8,null,"Short Self Employment",null,"Full Self Employment",null,null,"Lloyds Underwriter",null,null,{"$f":"\"Components are currently \"&IF(Selector!A34,\"visible\",\"hidden\")","v":"Components are currently hidden"}]
[9,null,{"$f":"\"(\"&'C3'!C3&\" to \"&'C3'!C46&\")\"","v":"(SSE1 to SSE38)"},null,{"$f":"\"(\"&'C3'!C49&\" to \"&'C3'!C155&\")\"","v":"(FSE1 to FSE103)"}]
[10]
[11,null,"Short Partnership",null,"Full Partnership"]
[12,null,{"$f":"\"(\"&'C4'!C3&\" to \"&'C4'!C29&\")\"","v":"(SPS1 to SPS32)"},null,{"$f":"\"(\"&'C4'!C32&\" to \"&'C4'!C120&\")\"","v":"(FPS1 to FPS80)"}]
[13]
[14]
[15,null,"Income from Property",null,"Foreign income",null,null,"Trust income"]
[16,null,{"$f":"\"(\"&'C5'!C2&\" to \"&'C5'!C74&\")\"","v":"(PRO1 to PRO45)"},null,{"$f":"\"(\"&'C6'!C2&\" to \"&'C6'!#REF!&\")\"","v":{"$error":"#REF!"}},null,null,{"$f":"\"(\"&'C7'!C2&\" to \"&'C7'!C28&\")\"","v":"(TRU1 to TRU26)"}]
[17]
[18,null,"Capital Gains",null,"Residence etc.",null,null,"Tax calculation summary"]
["NIC exempt set",null,{"$f":"\"(\"&'C8C9C10'!C3&\" to \"&'C8C9C10'!C86&\")\"","v":"(CGT1 to CGT54)"},null,{"$f":"\"(\"&'C8C9C10'!C89&\" to \"&'C8C9C10'!C145&\")\"","v":"(NRD1 to NRD54)"},null,null,{"$f":"\"(\"&'C8C9C10'!C156&\" to \"&'C8C9C10'!C166&\")\"","v":"(CAL7 to CAL17)"}]
[false]
["NIC2_Vol",null,null,null,"Class 2 NIC",null,null,"Class 1 NIC"]
[false]
["Remit set"]
[false]

{"sheet":"tc_template","index":7,"n_rows":133,"n_cols":62,"rows_kept":133,"cut":false,"hidden":true,"merged":[]}
[null,{"$f":"IF(Selector!F4=\"\",\"\",\"Test case \"&Selector!F4)","v":"Test case 168"}]
[null,null,"SA100",null,null,null,null,null,"SA101",null,null,null,null,"SA102",null,null,"SA102M",null,null,"SA103S",null,null,null,"SA103F",null,null,null,null,null,"SA103L",null,null,null,null,"SA104S",null,null,null,"SA104F",null,null,null,null,"SA105",null,null,null,"SA106",null,null,null,null,"SA107",null,null,"SA108",null,null,"SA109",null,null,"SA110"]
["YPD",null,null,"REL",{"$f":"\"Selected  = \"&REL_A_IND-1&\"/\"&REL_B_IND-1&\"/\"&REL_C_IND-1","v":"Selected  = 0/0/0"},null,"AOI",{"$f":"\"Selected  = \"&AOI_A_IND-1&\"/\"&AOI_B_IND-1&\"/\"&AOI_C_IND-1","v":"Selected  = 0/0/0"},null,"MCA",{"$f":"\"Selected  = \"&MCA_IND-1","v":"Selected  = 0"},null,"EMP-A",{"$f":"\"Selected  = \"&EMP_A_IND-1","v":"Selected  = 168"},null,"MOR",{"$f":"\"Selected  = \"&MOR_IND-1","v":"Selected  = 0"},null,"SSE",{"$f":"\"Selected  = \"&SE_A_IND-1","v":"Selected  = 168"},null,"FSE",{"$f":"\"Selected  = \"&SE_B_IND-1","v":"Selected  = 0"},null,"FSE",{"$f":"\"Selected  = \"&SE_B_IND-1","v":"Selected  = 0"},null,"LUN",{"$f":"\"Selected  = \"&LUN_IND-1","v":"Selected  = 0"},null,"LUN",{"$f":"\"Selected  = \"&LUN_IND-1","v":"Selected  = 0"},null,"SPS",{"$f":"\"Selected  = \"&PS_A_IND-1","v":"Selected  = 168"},null,"FPS",{"$f":"\"Selected  = \"&PS_B_IND-1","v":"Selected  = 0"},null,"FPS",{"$f":"\"Selected  = \"&PS_B_IND-1","v":"Selected  = 0"},null,"PRO",{"$f":"\"Selected  = \"&PRO_IND-1","v":"Selected  = 0"},null,"FOR",{"$f":"\"Selected  = \"&FOR_IND-1","v":"Selected  = 168"},null,"FOR",{"$f":"\"Selected  = \"&FOR_IND-1","v":"Selected  = 168"},null,"TRU",{"$f":"\"Selected  = \"&TRU_IND-1","v":"Selected  = 0"},null,"CGT",{"$f":"\"Selected  = \"&CGT_IND-1","v":"Selected  = 168"},null,"NRD",{"$f":"\"Selected  = \"&NRD_IND-1","v":"Selected  = 0"},null,"CAL",{"$f":"\"Selected  = \"&CAL_IND-1","v":"Selected  = 0"}]
["1",{"$f":"IF(C0!B4<>\"\",C0!B4,\"\")","v":"23/04/1987"},null,"1",{"$f":"IF(C0!B39<>\"\",C0!B39,\"\")","v":""},null,"1",{"$f":"IF('C1'!B4<>\"\",'C1'!B4,\"\")","v":""},null,"1",{"$f":"IF('C1'!B75<>0,'C1'!B75,\"\")","v":""},null,"1",{"$f":"IF('C2'!B3<>0,'C2'!B3,\"\")","v":89201},null,"1",{"$f":"IF('C2'!B61<>0,'C2'!B61,\"\")","v":""},null,"1",{"$f":"IF('C3'!B3<>0,'C3'!B3,\"\")","v":"caterer"},null,"1",{"$f":"IF('C3'!B49<>0,'C3'!B49,\"\")","v":""},null,"53",{"$f":"IF('C3'!B105<>0,'C3'!B105,\"\")","v":""},null,"1",{"$f":"IF('C3'!B158<>0,'C3'!B158,\"\")","v":""},null,"51",{"$f":"IF('C3'!B205<>0,'C3'!B205,\"\")","v":""},null,"1",{"$f":"IF('C4'!B3<>0,'C4'!B3,\"\")","v":1000050020},null,"1",{"$f":"IF('C4'!B32<>0,'C4'!B32,\"\")","v":""},null,"52",{"$f":"IF('C4'!B87<>0,'C4'!B87,\"\")","v":""},null,"1",{"$f":"IF('C5'!B2<>0,'C5'!B2,\"\")","v":""},null,1,{"$f":"IF('C6'!B2<>0,'C6'!B2,\"\")","v":""},null,13.1,{"$f":"IF('C6'!B96<>0,'C6'!B96,\"\")","v":""},null,"1",{"$f":"IF('C7'!B2<>0,'C7'!B2,\"\")","v":""},null,"1",{"$f":"IF('C8C9C10'!B3<>0,'C8C9C10'!B3,\"\")","v":""},null,"1",{"$f":"IF('C8C9C10'!B89<>\"\",'C8C9C10'!B89,\"\")","v":""},null,"1",{"$f":"IF(box_18_3<0,\"\",ROUND(box_18_3,2))","v":0}]
["2",null,null,"1.1",{"$f":"IF(C0!B40<>\"\",C0!B40,\"\")","v":""},null,"2",{"$f":"IF('C1'!B5<>\"\",'C1'!B5,\"\")","v":""},null,"2",{"$f":"IF('C1'!B76<>0,'C1'!B76,\"\")","v":""},null,"1.1",{"$f":"IF('C2'!B4<>0,'C2'!B4,\"\")","v":""},null,"2",{"$f":"IF('C2'!B62<>0,'C2'!B62,\"\")","v":""},null,"2",{"$f":"IF('C3'!B4<>0,'C3'!B4,\"\")","v":""},null,"2",{"$f":"IF('C3'!B50<>0,'C3'!B50,\"\")","v":""},null,"53.1",{"$f":"IF('C3'!B106<>0,'C3'!B106,\"\")","v":""},null,"2",{"$f":"IF('C3'!B159<>0,'C3'!B159,\"\")","v":""},null,"52",{"$f":"IF('C3'!B206<>0,'C3'!B206,\"\")","v":""},null,"2",{"$f":"IF('C4'!B4<>0,'C4'!B4,\"\")","v":"trader"},null,"2",{"$f":"IF('C4'!B33<>0,'C4'!B33,\"\")","v":""},null,"53",{"$f":"IF('C4'!B88<>0,'C4'!B88,\"\")","v":""},null,"2",{"$f":"IF('C5'!B3<>0,'C5'!B3,\"\")","v":""},null,2,{"$f":"IF('C6'!B3<>0,'C6'!B3,\"\")","v":""},null,13.2,{"$f":"IF('C6'!B97<>0,'C6'!B97,\"\")","v":""},null,"2",{"$f":"IF('C7'!B3<>0,'C7'!B3,\"\")","v":""},null,"2",{"$f":"IF('C8C9C10'!B4<>0,'C8C9C10'!B4,\"\")","v":""},null,"2","Box not in use",null,"2",{"$f":"IF(box_18_3<0,-1*box_18_3,\"\")","v":""}]
["3",null,null,"2",{"$f":"IF(C0!B41<>\"\",C0!B41,\"\")","v":""},null,"3",{"$f":"IF('C1'!B6<>\"\",'C1'!B6,\"\")","v":""},null,"3",{"$f":"IF('C1'!B77<>0,'C1'!B77,\"\")","v":""},null,"2",{"$f":"IF('C2'!B5<>0,'C2'!B5,\"\")","v":14056},null,"2.1",{"$f":"IF('C2'!B63<>0,'C2'!B63,\"\")","v":""},null,"3",{"$f":"IF('C3'!B5<>0,'C3'!B5,\"\")","v":""},null,"3",{"$f":"IF('C3'!B51<>0,'C3'!B51,\"\")","v":""},null,"54",{"$f":"IF('C3'!B107<>0,'C3'!B107,\"\")","v":""},null,"2.1","Box not in use",null,"53",{"$f":"IF('C3'!B207<>0,'C3'!B207,\"\")","v":""},null,"3Q",{"$f":"IF('C4'!B5<>0,'C4'!B5,\"\")","v":"N"},null,"3Q",{"$f":"IF('C4'!B34<>0,'C4'!B34,\"\")","v":""},null,"54",{"$f":"IF('C4'!B89<>0,'C4'!B89,\"\")","v":""},null,"3",{"$f":"IF('C5'!B4<>0,'C5'!B4,\"\")","v":""},null,"A_1",{"$f":"IF('C6'!B4<>0,'C6'!B4,\"\")","v":"GGY"},null,14,{"$f":"IF('C6'!B98<>0,'C6'!B98,\"\")","v":""},null,"3",{"$f":"IF('C7'!B4<>0,'C7'!B4,\"\")","v":""},null,"3",{"$f":"IF('C8C9C10'!B5<>0,'C8C9C10'!B5,\"\")","v":1},null,"3",{"$f":"IF('C8C9C10'!B91<>\"\",'C8C9C10'!B91,\"\")","v":""},null,"3",{"$f":"IF(AND(C0!B60=\"Y\",'Tax due (c12)'!J61>0),'Tax due (c12)'!J61,\"\")","v":""}]
["4",null,null,"3",{"$f":"IF(C0!B42<>\"\",C0!B42,\"\")","v":""},null,"4",{"$f":"IF('C1'!B10<>\"\",'C1'!B10,\"\")","v":""},null,"4",{"$f":"IF('C1'!B78<>0,'C1'!B78,\"\")","v":""},null,"3",{"$f":"IF('C2'!B6<>0,'C2'!B6,\"\")","v":""},null,"3",{"$f":"IF('C2'!B64<>0,'C2'!B64,\"\")","v":""},null,"4",{"$f":"IF('C3'!B6<>0,'C3'!B6,\"\")","v":""},null,"4",{"$f":"IF('C3'!B52<>0,'C3'!B52,\"\")","v":""},null,"55",{"$f":"IF('C3'!B108<>0,'C3'!B108,\"\")","v":""},null,"3",{"$f":"IF('C3'!B160<>0,'C3'!B160,\"\")","v":""},null,"54",{"$f":"IF('C3'!B208<>0,'C3'!B208,\"\")","v":""},null,"3",{"$f":"IF('C4'!B6<>0,'C4'!B6,\"\")","v":""},null,"3",{"$f":"IF('C4'!B35<>0,'C4'!B35,\"\")","v":""},null,"55",{"$f":"IF('C4'!B90<>0,'C4'!B90,\"\")","v":""},null,"4",{"$f":"IF('C5'!B5<>0,'C5'!B5,\"\")","v":""},null,"B_1",{"$f":"IF('C6'!B5<>0,'C6'!B5,\"\")","v":698},null,14.1,{"$f":"IF('C6'!B99<>0,'C6'!B99,\"\")","v":""},null,"4",{"$f":"IF('C7'!B5<>0,'C7'!B5,\"\")","v":""},null,"4",{"$f":"IF(CGT_IND-1>0,'C8C9C10'!B6,\"\")","v":""},null,"3.1",{"$f":"IF('C8C9C10'!B92<>\"\",'C8C9C10'!B92,\"\")","v":""},null,"3.1",{"$f":"IF(AND(C0!B60=\"Y\",'Tax due (c12)'!J64>0),'Tax due (c12)'!J64,\"\")","v":""}]
["TR",{"$f":"IF(C0!B9<>\"\",C0!B9,\"\")","v":2},null,"4",{"$f":"IF(C0!B43<>\"\",C0!B43,\"\")","v":""},null,"5",{"$f":"IF('C1'!B11<>\"\",'C1'!B11,\"\")","v":""},null,"5",{"$f":"IF('C1'!B79<>0,'C1'!B79,\"\")","v":""},null,"3.1","Box not in use",null,"4",{"$f":"IF('C2'!B65<>0,'C2'!B65,\"\")","v":""},null,"5Q",{"$f":"IF('C3'!B7<>0,'C3'!B7,\"\")","v":"Y"},null,"5",{"$f":"IF('C3'!B53<>0,'C3'!B53,\"\")","v":""},null,"56",{"$f":"IF('C3'!B109<>0,'C3'!B109,\"\")","v":""},null,"3.1","Box not in use",null,"55",{"$f":"IF('C3'!B209<>0,'C3'!B209,\"\")","v":""},null,"4Q",{"$f":"IF('C4'!B7<>0,'C4'!B7,\"\")","v":"Y"},null,"4Q",{"$f":"IF('C4'!B36<>0,'C4'!B36,\"\")","v":""},null,"55.1",{"$f":"IF('C4'!B91<>0,'C4'!B91,\"\")","v":""},null,"5","Box not in use",null,"C_1",{"$f":"IF('C6'!B6<>0,'C6'!B6,\"\")","v":""},null,14.2,{"$f":"IF('C6'!B100<>\"\",'C6'!B100,\"\")","v":""},null,"5",{"$f":"IF('C7'!B6<>0,'C7'!B6,\"\")","v":""},null,"5",{"$f":"IF('C8C9C10'!B7<>0,'C8C9C10'!B7,\"\")","v":""},null,"4",{"$f":"IF('C8C9C10'!B93<>\"\",'C8C9C10'!B93,\"\")","v":""},null,"4",{"$f":"'Tax due (c12)'!J39","v":0}]
[null,null,null,"5",{"$f":"IF(C0!B46<>\"\",C0!B46,\"\")","v":""},null,"6",{"$f":"IF('C1'!B12<>\"\",'C1'!B12,\"\")","v":""},null,"6",{"$f":"IF('C1'!B80<>0,'C1'!B80,\"\")","v":""},null,"4",{"$f":"IF('C2'!B8<>0,'C2'!B8,\"\")","v":"525/444"},null,"4.1","Box not in use",null,"5",{"$f":"IF('C3'!B8<>0,'C3'!B8,\"\")","v":"25/04/2025"},null,"6Q",{"$f":"IF('C3'!B54<>0,'C3'!B54,\"\")","v":""},null,"57",{"$f":"IF('C3'!B110<>0,'C3'!B110,\"\")","v":""},null,"4",{"$f":"IF('C3'!B161<>0,'C3'!B161,\"\")","v":""},null,"56",{"$f":"IF('C3'!B210<>0,'C3'!B210,\"\")","v":""},null,"4",{"$f":"IF('C4'!B8<>0,'C4'!B8,\"\")","v":"30/03/2026"},null,"4",{"$f":"IF('C4'!B37<>0,'C4'!B37,\"\")","v":""},null,"56",{"$f":"IF('C4'!B92<>\"\",'C4'!B92,\"\")","v":""},null,"5.1","Box not in use",null,"3D_1",{"$f":"IF('C6'!B7<>0,'C6'!B7,\"\")","v":""},null,15,{"$f":"IF('C6'!B101<>0,'C6'!B101,\"\")","v":""},null,"6",{"$f":"IF('C7'!B7<>0,'C7'!B7,\"\")","v":""},null,"6",{"$f":"IF('C8C9C10'!B8<>0,'C8C9C10'!B8,\"\")","v":29077},null,"5","Box not in use",null,"4.1",{"$f":"'Tax due (c12)'!J47","v":0}]
["INC",{"$f":"\"Selected  = \"&INC_A_IND-1&\"/\"&INC_B_IND-1&\"/\"&INC_C_IND-1","v":"Selected  = 168/0/0"},null,"6",{"$f":"IF(C0!B47<>\"\",C0!B47,\"\")","v":""},null,"7",{"$f":"IF('C1'!B13<>\"\",'C1'!B13,\"\")","v":""},null,"7",{"$f":"IF('C1'!B81<>0,'C1'!B81,\"\")","v":""},null,"5",{"$f":"IF('C2'!B9<>0,'C2'!B9,\"\")","v":""},null,"5",{"$f":"IF('C2'!B67<>0,'C2'!B67,\"\")","v":""},null,"6Q",{"$f":"IF('C3'!B9<>0,'C3'!B9,\"\")","v":"Y"},null,"6",{"$f":"IF('C3'!B55<>0,'C3'!B55,\"\")","v":""},null,"58","Box not in use",null,"5",{"$f":"IF('C3'!B162<>0,'C3'!B162,\"\")","v":""},null,"57",{"$f":"IF('C3'!B211<>0,'C3'!B211,\"\")","v":""},null,"5","Box not in use",null,"5","Box not in use",null,"57",{"$f":"IF('C4'!B93<>0,'C4'!B93,\"\")","v":""},null,"5.2","Box not in use",null,"E_1",{"$f":"IF('C6'!B8<>0,'C6'!B8,\"\")","v":""},null,16,{"$f":"IF('C6'!B102<>0,'C6'!B102,\"\")","v":""},null,"7",{"$f":"IF('C7'!B8<>0,'C7'!B8,\"\")","v":""},null,"6.1",{"$f":"IF('C8C9C10'!B9<>0,'C8C9C10'!B9,\"\")","v":""},null,"6",{"$f":"IF('C8C9C10'!B95<>\"\",'C8C9C10'!B95,\"\")","v":""},null,"5",{"$f":"IF('Tax due (c12)'!J95>0,'Tax due (c12)'!J95,\"\")","v":""}]
["1",{"$f":"IF(C0!B12<>\"\",C0!B12,\"\")","v":""},null,"7",{"$f":"IF(C0!B48<>\"\",C0!B48,\"\")","v":""},null,"8",{"$f":"IF('C1'!B14<>\"\",'C1'!B14,\"\")","v":""},null,"8",{"$f":"IF('C1'!B82<>0,'C1'!B82,\"\")","v":""},null,"6",{"$f":"IF('C2'!B10<>0,'C2'!B10,\"\")","v":"Y"},null,"6",{"$f":"IF('C2'!B68<>0,'C2'!B68,\"\")","v":""},null,"6",{"$f":"IF('C3'!B10<>0,'C3'!B10,\"\")","v":"05/04/2026"},null,"7Q",{"$f":"IF('C3'!B56<>0,'C3'!B56,\"\")","v":""},null,"59",{"$f":"IF('C3'!B111<>0,'C3'!B111,\"\")","v":""},null,"6",{"$f":"IF('C3'!B163<>0,'C3'!B163,\"\")","v":""},null,"58",{"$f":"IF('C3'!B212<>0,'C3'!B212,\"\")","v":""},null,"6","Box not in use",null,"6","Box not in use",null,"58",{"$f":"IF('C4'!B94<>\"\",'C4'!B94,\"\")","v":""},null,"6","Box not in use",null,"4F_1",{"$f":"IF('C6'!B9<>0,'C6'!B9,\"\")","v":698},null,17,{"$f":"IF('C6'!B103<>0,'C6'!B103,\"\")","v":""},null,"8",{"$f":"IF('C7'!B9<>0,'C7'!B9,\"\")","v":""},null,"7",{"$f":"IF('C8C9C10'!B10<>0,'C8C9C10'!B10,\"\")","v":""},null,"7",{"$f":"IF('C8C9C10'!B96<>\"\",'C8C9C10'!B96,\"\")","v":""},null,"6",{"$f":"IF('Tax adj (c9)'!J161>0,'Tax adj (c9)'!J161,\"\")","v":""}]
["2",{"$f":"IF(C0!B13<>\"\",C0!B13,\"\")","v":""},null,"8",{"$f":"IF(C0!B49<>\"\",C0!B49,\"\")","v":""},null,"9",{"$f":"IF('C1'!B15<>\"\",'C1'!B15,\"\")","v":""},null,"9",{"$f":"IF('C1'!B83<>0,'C1'!B83,\"\")","v":""},null,"6.1",{"$f":"IF('C2'!B11<>0,'C2'!B11,\"\")","v":""},null,"7",{"$f":"IF('C2'!B69<>0,'C2'!B69,\"\")","v":""},null,"7",{"$f":"IF('C3'!B11<>0,'C3'!B11,\"\")","v":"05/04/2026"},null,"7",{"$f":"IF('C3'!B57<>0,'C3'!B57,\"\")","v":""},null,"60",{"$f":"IF('C3'!B112<>0,'C3'!B112,\"\")","v":""},null,"7",null,null,"59",{"$f":"IF('C3'!B213<>0,'C3'!B213,\"\")","v":""},null,"7","Box not in use",null,"7","Box not in use",null,"59",{"$f":"IF('C4'!B95<>0,'C4'!B95,\"\")","v":""},null,"7","Box not in use",null,"A_2",{"$f":"IF('C6'!B10<>0,'C6'!B10,\"\")","v":"IRL"},null,18,{"$f":"IF('C6'!B104<>0,'C6'!B104,\"\")","v":""},null,"9",{"$f":"IF('C7'!B10<>0,'C7'!B10,\"\")","v":""},null,"8",{"$f":"IF('C8C9C10'!B11<>0,'C8C9C10'!B11,\"\")","v":""},null,"8",{"$f":"IF('C8C9C10'!B97<>\"\",'C8C9C10'!B97,\"\")","v":""},null,"7",{"$f":"IF('C8C9C10'!B156<>0,'C8C9C10'!B156,\"\")","v":""}]
["3",{"$f":"IF(C0!B14<>\"\",C0!B14,\"\")","v":""},null,"9",{"$f":"IF(C0!B50<>\"\",C0!B50,\"\")","v":""},null,"10",{"$f":"IF('C1'!B16<>\"\",'C1'!B16,\"\")","v":""},null,"10",{"$f":"IF('C1'!B84<>0,'C1'!B84,\"\")","v":""},null,"7",{"$f":"IF('C2'!B12<>0,'C2'!B12,\"\")","v":""},null,"8",{"$f":"IF('C2'!B70<>0,'C2'!B70,\"\")","v":""},null,"8",{"$f":"IF('C3'!B12<>0,'C3'!B12,\"\")","v":"N"},null,"8",{"$f":"IF('C3'!B58<>0,'C3'!B58,\"\")","v":""},null,"61",{"$f":"IF('C3'!B113<>0,'C3'!B113,\"\")","v":""},null,"8",{"$f":"IF('C3'!B164<>0,'C3'!B164,\"\")","v":""},null,"60",{"$f":"IF('C3'!B214<>0,'C3'!B214,\"\")","v":""},null,"8",{"$f":"IF('C4'!B9<>0,'C4'!B9,\"\")","v":-1840},null,"8",{"$f":"IF('C4'!B38<>\"\",'C4'!B38,\"\")","v":""},null,"60",{"$f":"IF('C4'!B96<>0,'C4'!B96,\"\")","v":""},null,"8","Box not in use",null,"B_2",{"$f":"IF('C6'!B11<>0,'C6'!B11,\"\")","v":14265},null,19,{"$f":"IF('C6'!B105<>0,'C6'!B105,\"\")","v":""},null,"10",{"$f":"IF('C7'!B11<>0,'C7'!B11,\"\")","v":""},null,"9",{"$f":"IF('C8C9C10'!B12<>0,'C8C9C10'!B12,\"\")","v":""},null,"9",{"$f":"IF('C8C9C10'!B98<>\"\",'C8C9C10'!B98,\"\")","v":""},null,"8",{"$f":"IF('C8C9C10'!B157<>0,'C8C9C10'!B157,\"\")","v":""}]
["4",{"$f":"IF(C0!B15<>\"\",C0!B15,\"\")","v":40000},null,"10",{"$f":"IF(C0!B51<>\"\",C0!B51,\"\")","v":""},null,"11",{"$f":"IF('C1'!B17<>\"\",'C1'!B17,\"\")","v":""},null,"11",{"$f":"IF('C1'!B85<>0,'C1'!B85,\"\")","v":""},null,"7.1",{"$f":"IF('C2'!B13<>0,'C2'!B13,\"\")","v":""},null,"9",{"$f":"IF('C2'!B71<>0,'C2'!B71,\"\")","v":""},null,"9",{"$f":"IF('C3'!B13<>0,'C3'!B13,\"\")","v":27643},null,"9",{"$f":"IF('C3'!B59<>0,'C3'!B59,\"\")","v":""},null,"62",{"$f":"IF('C3'!B114<>0,'C3'!B114,\"\")","v":""},null,"9",{"$f":"IF('C3'!B165<>0,'C3'!B165,\"\")","v":""},null,"61",{"$f":"IF('C3'!B215<>0,'C3'!B215,\"\")","v":""},null,"9",{"$f":"IF('C4'!B10<>0,'C4'!B10,\"\")","v":""},null,"9",{"$f":"IF('C4'!B39<>\"\",'C4'!B39,\"\")","v":""},null,"60.1",{"$f":"IF('C4'!B97<>0,'C4'!B97,\"\")","v":""},null,"9","Box not in use",null,"C_2",{"$f":"IF('C6'!B12<>0,'C6'!B12,\"\")","v":""},null,20,{"$f":"IF('C6'!B106<>0,'C6'!B106,\"\")","v":""},null,"11",{"$f":"IF('C7'!B12<>0,'C7'!B12,\"\")","v":""},null,"10",{"$f":"IF('C8C9C10'!B13<>0,'C8C9C10'!B13,\"\")","v":""},null,"10",{"$f":"IF('C8C9C10'!B99<>\"\",'C8C9C10'!B99,\"\")","v":""},null,"9",{"$f":"IF('C8C9C10'!B158<>0,'C8C9C10'!B158,\"\")","v":""}]
["5",{"$f":"IF(C0!B16<>\"\",C0!B16,\"\")","v":""},null,"11","Box not in use",null,"12",{"$f":"IF('C1'!B21<>\"\",'C1'!B21,\"\")","v":""},null,null,null,null,"7.2",{"$f":"IF('C2'!B14<>0,'C2'!B14,\"\")","v":""},null,"10",{"$f":"IF('C2'!B72<>0,'C2'!B72,\"\")","v":""},null,"10",{"$f":"IF('C3'!B14<>0,'C3'!B14,\"\")","v":""},null,"10",{"$f":"IF('C3'!B60<>0,'C3'!B60,\"\")","v":""},null,"63",{"$f":"IF('C3'!B115<>0,'C3'!B115,\"\")","v":""},null,"10","Box not in use",null,"62",{"$f":"IF('C3'!B216<>0,'C3'!B216,\"\")","v":""},null,"9.1","Box not in use",null,"9.1","Box not in use",null,"61",{"$f":"IF('C4'!B98<>0,'C4'!B98,\"\")","v":""},null,"10","Box not in use",null,"3D_2",{"$f":"IF('C6'!B13<>0,'C6'!B13,\"\")","v":""},null,21,{"$f":"IF('C6'!B107<>0,'C6'!B107,\"\")","v":""},null,"12",{"$f":"IF('C7'!B13<>0,'C7'!B13,\"\")","v":""},null,"11",{"$f":"IF('C8C9C10'!B14<>0,'C8C9C10'!B14,\"\")","v":""},null,"11",{"$f":"IF('C8C9C10'!B100<>\"\",'C8C9C10'!B100,\"\")","v":""},null,"10",{"$f":"IF('C8C9C10'!B159<>0,'C8C9C10'!B159,\"\")","v":""}]
["6",{"$f":"IF(C0!B17<>\"\",C0!B17,\"\")","v":""},null,"12","Box not in use",null,"13",{"$f":"IF('C1'!B22<>\"\",'C1'!B22,\"\")","v":""},null,"AIL",{"$f":"\"Selected  = \"&AIL_IND-1","v":"Selected  = 0"},null,"7.3",{"$f":"IF('C2'!B15<>0,'C2'!B15,\"\")","v":""},null,"11",{"$f":"IF('C2'!B73<>0,'C2'!B73,\"\")","v":""},null,"10.1",{"$f":"IF('C3'!B15<>0,'C3'!B15,\"\")","v":""},null,"11",{"$f":"IF('C3'!B61<>0,'C3'!B61,\"\")","v":""},null,"64",{"$f":"IF('C3'!B116<>0,'C3'!B116,\"\")","v":""},null,"11",{"$f":"IF('C3'!B166<>0,'C3'!B166,\"\")","v":""},null,"63",{"$f":"IF('C3'!B217<>0,'C3'!B217,\"\")","v":""},null,"10",{"$f":"IF('C4'!B11<>0,'C4'!B11,\"\")","v":""},null,"10",{"$f":"IF('C4'!B40<>0,'C4'!B40,\"\")","v":""},null,"62",{"$f":"IF('C4'!B99<>0,'C4'!B99,\"\")","v":""},null,"11","Box not in use",null,"E_2",{"$f":"IF('C6'!B14<>0,'C6'!B14,\"\")","v":""},null,21.1,{"$f":"IF('C6'!B108<>0,'C6'!B108,\"\")","v":""},null,"13",{"$f":"IF('C7'!B14<>0,'C7'!B14,\"\")","v":""},null,"12",{"$f":"IF('C8C9C10'!B15<>0,'C8C9C10'!B15,\"\")","v":""},null,"11.1",{"$f":"IF('C8C9C10'!B101<>\"\",'C8C9C10'!B101,\"\")","v":""},null,"11",{"$f":"IF('C8C9C10'!B160<>0,'C8C9C10'!B160,\"\")","v":""}]
["7",{"$f":"IF(C0!B18<>\"\",C0!B18,\"\")","v":""},null,"13",{"$f":"IF(C0!B54<>\"\",C0!B54,\"\")","v":""},null,"13.1",{"$f":"IF('C1'!B23<>\"\",'C1'!B23,\"\")","v":""},null,"1",{"$f":"IF('C1'!B88<>0,'C1'!B88,\"\")","v":""},null,"7.4",{"$f":"IF('C2'!B16<>0,'C2'!B16,\"\")","v":""},null,"12",{"$f":"IF('C2'!B74<>0,'C2'!B74,\"\")","v":""},null,"11",{"$f":"IF('C3'!B16<>0,'C3'!B16,\"\")","v":1200},null,"12",{"$f":"IF('C3'!B62<>0,'C3'!B62,\"\")","v":""},null,"65",{"$f":"IF('C3'!B117<>0,'C3'!B117,\"\")","v":""},null,"12",{"$f":"IF('C3'!B167<>0,'C3'!B167,\"\")","v":""},null,"64",{"$f":"IF('C3'!B218<>0,'C3'!B218,\"\")","v":""},null,"11",{"$f":"IF('C4'!B12<>0,'C4'!B12,\"\")","v":""},null,"11",{"$f":"IF('C4'!B41<>\"\",'C4'!B41,\"\")","v":""},null,"63",{"$f":"IF('C4'!B100<>0,'C4'!B100,\"\")","v":""},null,"11.1","Box not in use",null,"4F_2",{"$f":"IF('C6'!B15<>0,'C6'!B15,\"\")","v":14265},null,22,"Box not in use",null,"14",{"$f":"IF('C7'!B15<>0,'C7'!B15,\"\")","v":""},null,"13",{"$f":"IF('C8C9C10'!B16<>0,'C8C9C10'!B16,\"\")","v":""},null,"12",{"$f":"IF('C8C9C10'!B102<>\"\",'C8C9C10'!B102,\"\")","v":""},null,"12",{"$f":"IF('C8C9C10'!B161<>0,'C8C9C10'!B161,\"\")","v":""}]
["8",{"$f":"IF(C0!B21<>\"\",C0!B21,\"\")","v":""},null,"14",{"$f":"IF(C0!B55<>\"\",C0!B55,\"\")","v":""},null,"14",{"$f":"IF('C1'!B24<>\"\",'C1'!B24,\"\")","v":""},null,"2",{"$f":"IF('C1'!B89<>0,'C1'!B89,\"\")","v":""},null,"8",{"$f":"IF('C2'!B17<>0,'C2'!B17,\"\")","v":""},null,"13",{"$f":"IF('C2'!B75<>0,'C2'!B75,\"\")","v":""},null,"12",{"$f":"IF('C3'!B17<>0,'C3'!B17,\"\")","v":9200},null,"13",{"$f":"IF('C3'!B63<>0,'C3'!B63,\"\")","v":""},null,"66","Box not in use",null,"13",{"$f":"IF('C3'!B168<>0,'C3'!B168,\"\")","v":""},null,"65",{"$f":"IF('C3'!B219<>0,'C3'!B219,\"\")","v":""},null,"12",{"$f":"IF('C4'!B13<>0,'C4'!B13,\"\")","v":""},null,"12",{"$f":"IF('C4'!B42<>0,'C4'!B42,\"\")","v":""},null,"63.1",{"$f":"IF('C4'!B101<>0,'C4'!B101,\"\")","v":""},null,"11.2","Box not in use",null,3,{"$f":"IF('C6'!B16<>0,'C6'!B16,\"\")","v":""},null,22.1,{"$f":"IF('C6'!B110<>0,'C6'!B110,\"\")","v":""},null,"15",{"$f":"IF('C7'!B16<>0,'C7'!B16,\"\")","v":""},null,"13A",{"$f":"IF('C8C9C10'!B17<>0,'C8C9C10'!B17,\"\")","v":""},null,"13",{"$f":"IF('C8C9C10'!B103<>\"\",'C8C9C10'!B103,\"\")","v":""},null,"13",{"$f":"IF('C8C9C10'!B162<>0,'C8C9C10'!B162,\"\")","v":""}]
["9",{"$f":"IF(C0!B22<>\"\",C0!B22,\"\")","v":""},null,"15",{"$f":"IF(C0!B56<>\"\",C0!B56,\"\")","v":""},null,"15",{"$f":"IF('C1'!B25<>\"\",'C1'!B25,\"\")","v":""},null,"3",{"$f":"IF('C1'!B90<>0,'C1'!B90,\"\")","v":""},null,"8.1","Box not in use",null,"14",{"$f":"IF('C2'!B76<>0,'C2'!B76,\"\")","v":""},null,"13",{"$f":"IF('C3'!B18<>0,'C3'!B18,\"\")","v":12500},null,"14",{"$f":"IF('C3'!B64<>0,'C3'!B64,\"\")","v":""},null,"67","Box not in use",null,"14",{"$f":"IF('C3'!B169<>0,'C3'!B169,\"\")","v":""},null,"66",{"$f":"IF('C3'!B220<>0,'C3'!B220,\"\")","v":""},null,"13","Box not in use",null,"13","Box not in use",null,"63.2",{"$f":"IF('C4'!B102<>0,'C4'!B102,\"\")","v":""},null,"12","Box not in use",null,4,{"$f":"IF('C6'!B17<>0,'C6'!B17,\"\")","v":14963},null,22.2,{"$f":"IF('C6'!B111<>0,'C6'!B111,\"\")","v":""},null,"16",{"$f":"IF('C7'!B17<>0,'C7'!B17,\"\")","v":""},null,"13B",{"$f":"IF('C8C9C10'!B18<>0,'C8C9C10'!B18,\"\")","v":""},null,"14",{"$f":"IF('C8C9C10'!B104<>\"\",'C8C9C10'!B104,\"\")","v":""},null,"14",{"$f":"IF('C8C9C10'!B163<>0,'C8C9C10'!B163,\"\")","v":""}]
["10",{"$f":"IF(C0!B23<>\"\",C0!B23,\"\")","v":""},null,"16",{"$f":"IF(C0!B57<>\"\",C0!B57,\"\")","v":""},null,null,null,null,"4",{"$f":"IF('C1'!B91<>0,'C1'!B91,\"\")","v":""},null,"9",{"$f":"IF('C2'!B18<>0,'C2'!B18,\"\")","v":""},null,"15",{"$f":"IF('C2'!B77<>0,'C2'!B77,\"\")","v":""},null,"14",{"$f":"IF('C3'!B19<>0,'C3'!B19,\"\")","v":17320},null,"15",{"$f":"IF('C3'!B65<>0,'C3'!B65,\"\")","v":""},null,"68",{"$f":"IF('C3'!B118<>0,'C3'!B118,\"\")","v":""},null,"15",{"$f":"IF('C3'!B170<>0,'C3'!B170,\"\")","v":""},null,null,null,null,"14","Box not in use",null,"14","Box not in use",null,"AF2",{"$f":"IF('C4'!B103<>0,'C4'!B103,\"\")","v":""},null,"13","Box not in use",null,4.0999999999999996,{"$f":"IF('C6'!B18<>0,'C6'!B18,\"\")","v":""},null,23,{"$f":"IF('C6'!B112<>0,'C6'!B112,\"\")","v":""},null,"17",{"$f":"IF('C7'!B18<>0,'C7'!B18,\"\")","v":""},null,"13C",{"$f":"IF('C8C9C10'!B19<>0,'C8C9C10'!B19,\"\")","v":""},null,"15",{"$f":"IF('C8C9C10'!B105<>\"\",'C8C9C10'!B105,\"\")","v":""},null,"15",{"$f":"IF('C8C9C10'!B164<>0,'C8C9C10'!B164,\"\")","v":""}]
["11",{"$f":"IF(C0!B24<>\"\",C0!B24,\"\")","v":""},null,null,null,null,"ASE",{"$f":"\"Selected  = \"&ASE_A_IND-1&\"/\"&ASE_B_IND-1&\"/\"&ASE_C_IND-1","v":"Selected  = 0/0/0"},null,"5",{"$f":"IF('C1'!B92<>0,'C1'!B92,\"\")","v":""},null,"10",{"$f":"IF('C2'!B19<>0,'C2'!B19,\"\")","v":""},null,"16",{"$f":"IF('C2'!B78<>0,'C2'!B78,\"\")","v":""},null,"15",{"$f":"IF('C3'!B20<>0,'C3'!B20,\"\")","v":11109},null,"16",{"$f":"IF('C3'!B66<>0,'C3'!B66,\"\")","v":""},null,"69","Box not in use",null,"16",{"$f":"IF('C3'!B171<>0,'C3'!B171,\"\")","v":""},null,null,null,null,"15","Box not in use",null,"15","Box not in use",null,"64","Box not in use",null,"14","Box not in use",null,"A_1",{"$f":"IF('C6'!B19<>0,'C6'!B19,\"\")","v":""},null,24,{"$f":"IF('C6'!B113<>0,'C6'!B113,\"\")","v":""},null,"18",{"$f":"IF('C7'!B19<>0,'C7'!B19,\"\")","v":""},null,"13.1",{"$f":"IF('C8C9C10'!B20<>0,'C8C9C10'!B20,\"\")","v":""},null,"16",{"$f":"IF('C8C9C10'!B106<>\"\",'C8C9C10'!B106,\"\")","v":""},null,"16",{"$f":"IF('C8C9C10'!B165<>0,'C8C9C10'!B165,\"\")","v":""}]
["12",{"$f":"IF(C0!B25<>\"\",C0!B25,\"\")","v":""},null,"FIN",null,null,"1",{"$f":"IF('C1'!B29<>0,'C1'!B29,\"\")","v":""},null,"6",{"$f":"IF('C1'!B93<>0,'C1'!B93,\"\")","v":""},null,"11",{"$f":"IF('C2'!B20<>0,'C2'!B20,\"\")","v":8303},null,"17",{"$f":"IF('C2'!B79<>0,'C2'!B79,\"\")","v":""},null,"16",{"$f":"IF('C3'!B21<>0,'C3'!B21,\"\")","v":4200},null,"16.1",{"$f":"IF('C3'!B67<>0,'C3'!B67,\"\")","v":""},null,"70","Box not in use",null,"17",{"$f":"IF('C3'!B172<>0,'C3'!B172,\"\")","v":""},null,null,null,null,"16",{"$f":"IF('C4'!B14<>0,'C4'!B14,\"\")","v":""},null,"16",{"$f":"IF('C4'!B43<>\"\",'C4'!B43,\"\")","v":""},null,"65","Box not in use",null,"15","Box not in use",null,"B_1",{"$f":"IF('C6'!B20<>0,'C6'!B20,\"\")","v":""},null,24.1,{"$f":"IF('C6'!B114<>0,'C6'!B114,\"\")","v":""},null,"18.1",{"$f":"IF('C7'!B20<>0,'C7'!B20,\"\")","v":""},null,"13.2",{"$f":"IF('C8C9C10'!B21<>0,'C8C9C10'!B21,\"\")","v":""},null,"17",{"$f":"IF('C8C9C10'!B107<>\"\",'C8C9C10'!B107,\"\")","v":""},null,"17"]
["13",{"$f":"IF(C0!B26<>\"\",C0!B26,\"\")","v":""},null,"1",{"$f":"IF(C0!B85<>\"\",C0!B85,\"\")","v":""},null,"2",null,null,"7","Box not in use",null,"12",{"$f":"IF('C2'!B21<>0,'C2'!B21,\"\")","v":""},null,"18",{"$f":"IF('C2'!B80<>0,'C2'!B80,\"\")","v":""},null,"17",{"$f":"IF('C3'!B22<>0,'C3'!B22,\"\")","v":13642},null,"17",{"$f":"IF('C3'!B68<>0,'C3'!B68,\"\")","v":""},null,"70.1","Box not in use",null,"18",{"$f":"IF('C3'!B173<>0,'C3'!B173,\"\")","v":""},null,null,null,null,"17",{"$f":"IF('C4'!B15<>0,'C4'!B15,\"\")","v":""},null,"16.1","Box not in use",null,"66","Box not in use",null,"16","Box not in use",null,"C_1",{"$f":"IF('C6'!B21<>0,'C6'!B21,\"\")","v":""},null,24.2,{"$f":"IF('C6'!B115<>0,'C6'!B115,\"\")","v":""},null,"19",{"$f":"IF('C7'!B21<>0,'C7'!B21,\"\")","v":""},null,"13.3",{"$f":"IF('C8C9C10'!B22<>0,'C8C9C10'!B22,\"\")","v":""},null,"18",{"$f":"IF('C8C9C10'!B108<>\"\",'C8C9C10'!B108,\"\")","v":""}]
["14",{"$f":"IF(C0!B27<>\"\",C0!B27,\"\")","v":""},null,"2","N",null,"3",{"$f":"IF('C1'!B33<>0,'C1'!B33,\"\")","v":""},null,"8","Box not in use",null,"13",{"$f":"IF('C2'!B22<>0,'C2'!B22,\"\")","v":""},null,"19",{"$f":"IF('C2'!B81<>0,'C2'!B81,\"\")","v":""},null,"18",{"$f":"IF('C3'!B23<>0,'C3'!B23,\"\")","v":1602},null,"18",{"$f":"IF('C3'!B69<>0,'C3'!B69,\"\")","v":""},null,"71",{"$f":"IF('C3'!B119<>0,'C3'!B119,\"\")","v":""},null,"19",null,null,null,null,null,"18",{"$f":"IF('C4'!B16<>0,'C4'!B16,\"\")","v":""},null,"16.2","Box not in use",null,"67",{"$f":"IF('C4'!B104<>0,'C4'!B104,\"\")","v":""},null,"17","Box not in use",null,"5D_1",{"$f":"IF('C6'!B22<>0,'C6'!B22,\"\")","v":""},null,"A_1",{"$f":"IF('C6'!B116<>0,'C6'!B116,\"\")","v":""},null,"22",{"$f":"IF('C7'!B22<>0,'C7'!B22,\"\")","v":""},null,"13.4",{"$f":"IF('C8C9C10'!B23<>0,'C8C9C10'!B23,\"\")","v":""},null,"19",{"$f":"IF('C8C9C10'!B109<>\"\",'C8C9C10'!B109,\"\")","v":""},null,null,"NI"]
["15",{"$f":"IF(C0!B28<>\"\",C0!B28,\"\")","v":""},null,"3","N",null,"4",{"$f":"IF('C1'!B34<>0,'C1'!B34,\"\")","v":""},null,"9","Box not in use",null,"14",{"$f":"IF('C2'!B23<>0,'C2'!B23,\"\")","v":""},null,"20",{"$f":"IF('C2'!B82<>0,'C2'!B82,\"\")","v":""},null,"19",{"$f":"IF('C3'!B24<>0,'C3'!B24,\"\")","v":777},null,"19",{"$f":"IF('C3'!B70<>0,'C3'!B70,\"\")","v":""},null,"72",{"$f":"IF('C3'!B120<>0,'C3'!B120,\"\")","v":""},null,"20",{"$f":"IF('C3'!B174<>0,'C3'!B174,\"\")","v":""},null,null,null,null,"19",{"$f":"IF('C4'!B17<>0,'C4'!B17,\"\")","v":""},null,"16.3",{"$f":"IF('C4'!B44<>\"\",'C4'!B44,\"\")","v":""},null,"68",{"$f":"IF('C4'!B105<>0,'C4'!B105,\"\")","v":""},null,"18","Box not in use",null,"E_1",{"$f":"IF('C6'!B23<>0,'C6'!B23,\"\")","v":""},null,"25B_1",{"$f":"IF('C6'!B117<>0,'C6'!B117,\"\")","v":""},null,"22.1",{"$f":"IF('C7'!B23<>0,'C7'!B23,\"\")","v":""},null,"13.5",{"$f":"IF('C8C9C10'!B24<>0,'C8C9C10'!B24,\"\")","v":""},null,"20",{"$f":"IF('C8C9C10'!B110<>\"\",'C8C9C10'!B110,\"\")","v":""},null,"Class 2",{"$f":"\"Selected  = \"&NI2_IND-1","v":"Selected  = 0"}]
["16",{"$f":"IF(C0!B29<>\"\",C0!B29,\"\")","v":""},null,"4",null,null,"5",{"$f":"IF('C1'!B35<>0,'C1'!B35,\"\")","v":""},null,"10",{"$f":"IF('C1'!B94<>0,'C1'!B94,\"\")","v":""},null,"15",{"$f":"IF('C2'!B24<>0,'C2'!B24,\"\")","v":""},null,"21",{"$f":"IF('C2'!B83<>0,'C2'!B83,\"\")","v":""},null,"20",{"$f":"IF('C3'!B25<>0,'C3'!B25,\"\")","v":71550},null,"20",{"$f":"IF('C3'!B71<>0,'C3'!B71,\"\")","v":""},null,"73",{"$f":"IF('C3'!B121<>0,'C3'!B121,\"\")","v":""},null,"21",{"$f":"IF('C3'!B175<>0,'C3'!B175,\"\")","v":""},null,null,null,null,"20",{"$f":"IF('C4'!B18<>0,'C4'!B18,\"\")","v":""},null,"16.4",{"$f":"IF('C4'!B45<>0,'C4'!B45,\"\")","v":""},null,"69",{"$f":"IF('C4'!B106<>0,'C4'!B106,\"\")","v":""},null,"19","Box not in use",null,"6F_1",{"$f":"IF('C6'!B24<>0,'C6'!B24,\"\")","v":""},null,"28C_1",{"$f":"IF('C6'!B118<>0,'C6'!B118,\"\")","v":""},null,"23",{"$f":"IF('C7'!B24<>0,'C7'!B24,\"\")","v":""},null,"13.6",{"$f":"IF('C8C9C10'!B25<>0,'C8C9C10'!B25,\"\")","v":""},null,"21",{"$f":"IF('C8C9C10'!B111<>\"\",'C8C9C10'!B111,\"\")","v":""},null,"CL2",{"$f":"IF('C8C9C10'!B170=\"\",\"\",'C8C9C10'!B170)","v":""}]
["17",{"$f":"IF(C0!B32<>\"\",C0!B32,\"\")","v":""},null,"5",null,null,"6",{"$f":"IF('C1'!B36<>0,'C1'!B36,\"\")","v":""},null,"11",{"$f":"IF('C1'!B95<>0,'C1'!B95,\"\")","v":""},null,"16",{"$f":"IF('C2'!B25<>0,'C2'!B25,\"\")","v":""},null,"22",{"$f":"IF('C2'!B84<>0,'C2'!B84,\"\")","v":""},null,"21",{"$f":"IF('C3'!B26<>0,'C3'!B26,\"\")","v":""},null,"21",{"$f":"IF('C3'!B72<>0,'C3'!B72,\"\")","v":""},null,"73.1","Box not in use",null,"22",{"$f":"IF('C3'!B176<>0,'C3'!B176,\"\")","v":""},null,null,null,null,"21",{"$f":"IF('C4'!B19<>0,'C4'!B19,\"\")","v":1844},null,"17",{"$f":"IF('C4'!B46<>0,'C4'!B46,\"\")","v":""},null,"70",{"$f":"IF('C4'!B107<>0,'C4'!B107,\"\")","v":""},null,"5","Box not in use",null,"A_2",{"$f":"IF('C6'!B25<>0,'C6'!B25,\"\")","v":""},null,"29D_1",{"$f":"IF('C6'!B119<>0,'C6'!B119,\"\")","v":""},null,"24",{"$f":"IF('C7'!B25<>0,'C7'!B25,\"\")","v":""},null,"13.7",{"$f":"IF('C8C9C10'!B26<>0,'C8C9C10'!B26,\"\")","v":""},null,"22",{"$f":"IF('C8C9C10'!B112<>\"\",'C8C9C10'!B112,\"\")","v":""},null,"CL2wkamt_Type",{"$f":"IF('C8C9C10'!B171=\"\",\"\",'C8C9C10'!B171)","v":""}]
["18",{"$f":"IF(C0!B33<>\"\",C0!B33,\"\")","v":""},null,"6",null,null,"7",{"$f":"IF('C1'!B37<>0,'C1'!B37,\"\")","v":""},null,"11.1",{"$f":"IF('C1'!B96<>0,'C1'!B96,\"\")","v":""},null,"17",{"$f":"IF('C2'!B26<>0,'C2'!B26,\"\")","v":""},null,"23",{"$f":"IF('C2'!B85<>0,'C2'!B85,\"\")","v":""},null,"22",{"$f":"IF('C3'!B27<>0,'C3'!B27,\"\")","v":43907},null,"22",{"$f":"IF('C3'!B73<>0,'C3'!B73,\"\")","v":""},null,"73.2","Box not in use",null,"23",{"$f":"IF('C3'!B177<>0,'C3'!B177,\"\")","v":""},null,null,null,null,"22",{"$f":"IF('C4'!B20<>0,'C4'!B20,\"\")","v":1844},null,"18",{"$f":"IF('C4'!B47<>\"\",'C4'!B47,\"\")","v":""},null,"70.1",{"$f":"IF('C4'!B108<>0,'C4'!B108,\"\")","v":""},null,"5.1","Box not in use",null,"B_2",{"$f":"IF('C6'!B26<>0,'C6'!B26,\"\")","v":""},null,"E_1",{"$f":"IF('C6'!B120<>0,'C6'!B120,\"\")","v":""},null,"25",{"$f":"IF('C7'!B26<>0,'C7'!B26,\"\")","v":""},null,"13.8",{"$f":"IF('C8C9C10'!B27<>0,'C8C9C10'!B27,\"\")","v":""},null,"23",{"$f":"IF('C8C9C10'!B113<>\"\",'C8C9C10'!B113,\"\")","v":""}]
["19",{"$f":"IF(C0!B34<>\"\",C0!B34,\"\")","v":""},null,"7",null,null,"8",{"$f":"IF('C1'!B38<>0,'C1'!B38,\"\")","v":""},null,"11.2",{"$f":"IF('C1'!B97<>0,'C1'!B97,\"\")","v":""},null,"18",{"$f":"IF('C2'!B27<>0,'C2'!B27,\"\")","v":""},null,"24",{"$f":"IF('C2'!B86<>0,'C2'!B86,\"\")","v":""},null,"23",{"$f":"IF('C3'!B28<>0,'C3'!B28,\"\")","v":""},null,"23",{"$f":"IF('C3'!B74<>0,'C3'!B74,\"\")","v":""},null,"73.3",{"$f":"IF('C3'!B122<>\"\",'C3'!B122,\"\")","v":""},null,"24",{"$f":"IF('C3'!B178<>0,'C3'!B178,\"\")","v":""},null,null,null,null,"23",{"$f":"IF('C4'!B21<>0,'C4'!B21,\"\")","v":""},null,"19",{"$f":"IF('C4'!B48<>0,'C4'!B48,\"\")","v":""},null,"71",{"$f":"IF('C4'!B109<>0,'C4'!B109,\"\")","v":""},null,"5.2","Box not in use",null,"C_2",{"$f":"IF('C6'!B27<>0,'C6'!B27,\"\")","v":""},null,"30F_1",{"$f":"IF('C6'!B121<>0,'C6'!B121,\"\")","v":""},null,"25.1",{"$f":"IF('C7'!B27<>0,'C7'!B27,\"\")","v":""},null,"14",{"$f":"IF('C8C9C10'!B28<>0,'C8C9C10'!B28,\"\")","v":""},null,"23.1","Box not in use",null,null,"NI"]
["20",{"$f":"IF(C0!B35<>\"\",C0!B35,\"\")","v":""},null,"8",null,null,"9",{"$f":"IF('C1'!B39<>0,'C1'!B39,\"\")","v":""},null,"12",{"$f":"IF('C1'!B98<>0,'C1'!B98,\"\")","v":""},null,"19",{"$f":"IF('C2'!B28<>0,'C2'!B28,\"\")","v":""},null,"25",{"$f":"IF('C2'!B87<>0,'C2'!B87,\"\")","v":""},null,"24",{"$f":"IF('C3'!B29<>0,'C3'!B29,\"\")","v":""},null,"24",{"$f":"IF('C3'!B75<>0,'C3'!B75,\"\")","v":""},null,"73.4",{"$f":"IF('C3'!B123<>0,'C3'!B123,\"\")","v":""},null,"25",{"$f":"IF('C3'!B179<>0,'C3'!B179,\"\")","v":""},null,null,null,null,"24",{"$f":"IF('C4'!B22<>0,'C4'!B22,\"\")","v":""},null,"20",{"$f":"IF('C4'!B49<>\"\",'C4'!B49,\"\")","v":""},null,"72",{"$f":"IF('C4'!B110<>0,'C4'!B110,\"\")","v":""},null,"6","Box not in use",null,"5D_2",{"$f":"IF('C6'!B28<>0,'C6'!B28,\"\")","v":""},null,25,{"$f":"IF('C6'!B122<>0,'C6'!B122,\"\")","v":""},null,null,null,null,"15",{"$f":"IF('C8C9C10'!B29<>0,'C8C9C10'!B29,\"\")","v":""},null,"23.2","Box not in use",null,"Class 1",{"$f":"\"Selected  = \"&NI1_IND-1","v":"Selected  = 168"}]
["21",{"$f":"IF(C0!B36<>\"\",C0!B36,\"\")","v":""},null,"9","N",null,"10",{"$f":"IF('C1'!B40<>0,'C1'!B40,\"\")","v":""},null,"13",{"$f":"IF('C1'!B99<>0,'C1'!B99,\"\")","v":""},null,"20",{"$f":"IF('C2'!B29<>0,'C2'!B29,\"\")","v":""},null,"26",{"$f":"IF('C2'!B88<>0,'C2'!B88,\"\")","v":""},null,"24.1",{"$f":"IF('C3'!B30<>0,'C3'!B30,\"\")","v":""},null,"25",{"$f":"IF('C3'!B76<>0,'C3'!B76,\"\")","v":""},null,"74",{"$f":"IF('C3'!B124<>0,'C3'!B124,\"\")","v":""},null,"26",{"$f":"IF('C3'!B180<>0,'C3'!B180,\"\")","v":""},null,null,null,null,"25",{"$f":"IF('C4'!B23<>0,'C4'!B23,\"\")","v":""},null,"20.1",{"$f":"IF('C4'!B50<>\"\",'C4'!B50,\"\")","v":""},null,"73",{"$f":"IF('C4'!B111<>0,'C4'!B111,\"\")","v":""},null,"7","Box not in use",null,"E_2",{"$f":"IF('C6'!B29<>0,'C6'!B29,\"\")","v":""},null,26,{"$f":"IF('C6'!B123<>0,'C6'!B123,\"\")","v":""},null,null,null,null,"16",{"$f":"IF('C8C9C10'!B30<>0,'C8C9C10'!B30,\"\")","v":""},null,"23.3","Box not in use",null,"Total Cl1",{"$f":"IF('C2'!B106=\"\",0,'C2'!B106)+IF('C2'!B109=\"\",0,'C2'!B109)","v":37700}]
[null,null,null,"10","N",null,"11",{"$f":"IF('C1'!B44<>0,'C1'!B44,\"\")","v":""},null,"14",{"$f":"IF('C1'!B100<>0,'C1'!B100,\"\")","v":""},null,null,null,null,"27",{"$f":"IF('C2'!B89<>0,'C2'!B89,\"\")","v":""},null,"25",{"$f":"IF('C3'!B31<>0,'C3'!B31,\"\")","v":11260},null,"26",{"$f":"IF('C3'!B77<>0,'C3'!B77,\"\")","v":""},null,"75",{"$f":"IF('C3'!B125<>0,'C3'!B125,\"\")","v":""},null,"27",{"$f":"IF('C3'!B181<>0,'C3'!B181,\"\")","v":""},null,null,null,null,"26",{"$f":"IF('C4'!B24<>0,'C4'!B24,\"\")","v":""},null,"21",{"$f":"IF('C4'!B51<>\"\",'C4'!B51,\"\")","v":""},null,"74",{"$f":"IF('C4'!B112<>0,'C4'!B112,\"\")","v":""},null,"8","Box not in use",null,"6F_2",{"$f":"IF('C6'!B30<>0,'C6'!B30,\"\")","v":""},null,27,{"$f":"IF('C6'!B124<>0,'C6'!B124,\"\")","v":""},null,null,null,null,"17",{"$f":"IF('C8C9C10'!B31<>0,'C8C9C10'!B31,\"\")","v":""},null,"24",{"$f":"IF('C8C9C10'!B117<>\"\",'C8C9C10'!B117,\"\")","v":""}]
["SLR",{"$f":"\"Selected  = \"&SLR_ind-1","v":"Selected  = 0"},null,"11","N",null,"12",{"$f":"IF('C1'!B45<>0,'C1'!B45,\"\")","v":""},null,"15",{"$f":"IF('C1'!B101<>0,'C1'!B101,\"\")","v":""},null,null,"SA102",null,"28",{"$f":"IF('C2'!B90<>0,'C2'!B90,\"\")","v":""},null,"25.1",{"$f":"IF('C3'!B32<>0,'C3'!B32,\"\")","v":""},null,"27",{"$f":"IF('C3'!B78<>0,'C3'!B78,\"\")","v":""},null,"75.1","Box not in use",null,"28",{"$f":"IF('C3'!B182<>0,'C3'!B182,\"\")","v":""},null,null,null,null,"27",{"$f":"IF('C4'!B25<>0,'C4'!B25,\"\")","v":""},null,"21.1",{"$f":"IF('C4'!B52<>\"\",'C4'!B52,\"\")","v":""},null,"75",{"$f":"IF('C4'!B113<>0,'C4'!B113,\"\")","v":""},null,"9","Box not in use",null,"A_3",{"$f":"IF('C6'!B31<>0,'C6'!B31,\"\")","v":""},null,28,{"$f":"IF('C6'!B125<>0,'C6'!B125,\"\")","v":""},null,null,null,null,"17.0",{"$f":"IF('C8C9C10'!B32<>0,'C8C9C10'!B32,\"\")","v":""},null,"25","Box not in use"]
["1",{"$f":"IF(C0!B60<>\"\",C0!B60,\"\")","v":""},null,"12",null,null,"13",{"$f":"IF('C1'!B46<>0,'C1'!B46,\"\")","v":""},null,"16",{"$f":"IF('C1'!B102<>0,'C1'!B102,\"\")","v":""},null,"EMP-B",{"$f":"\"Selected  = \"&EMP_B_IND-1","v":"Selected  = 0"},null,"29",{"$f":"IF('C2'!B91<>0,'C2'!B91,\"\")","v":""},null,"25.2",{"$f":"IF('C3'!B33<>0,'C3'!B33,\"\")","v":""},null,"28",{"$f":"IF('C3'!B79<>0,'C3'!B79,\"\")","v":""},null,"76",{"$f":"IF('C3'!B121<>0,'C3'!B126,\"\")","v":""},null,"29",{"$f":"IF('C3'!B183<>0,'C3'!B183,\"\")","v":""},null,null,null,null,"28",{"$f":"IF('C4'!B26<>0,'C4'!B26,\"\")","v":""},null,"22",{"$f":"IF('C4'!B53<>0,'C4'!B53,\"\")","v":""},null,"75.1",{"$f":"IF('C4'!B114<>0,'C4'!B114,\"\")","v":""},null,"10","Box not in use",null,"B_3",{"$f":"IF('C6'!B32<>0,'C6'!B32,\"\")","v":""},null,29,{"$f":"IF('C6'!B126<>0,'C6'!B126,\"\")","v":""},null,null,null,null,"17.1",{"$f":"IF('C8C9C10'!B33<>0,'C8C9C10'!B33,\"\")","v":""},null,"26","Box not in use"]
["PT",{"$f":"IF(C0!B61<>\"\",C0!B61,\"\")","v":""},null,"13",null,null,"14",{"$f":"IF('C1'!B47<>0,'C1'!B47,\"\")","v":""},null,"17","Box not in use",null,"1",{"$f":"IF('C2'!B32<>0,'C2'!B32,\"\")","v":""},null,"30",{"$f":"IF('C2'!B92<>0,'C2'!B92,\"\")","v":""},null,"26",{"$f":"IF('C3'!B34<>0,'C3'!B34,\"\")","v":1340},null,"29",{"$f":"IF('C3'!B80<>0,'C3'!B80,\"\")","v":""},null,"76.1",{"$f":"IF('C3'!B122<>0,'C3'!B127,\"\")","v":""},null,"30",{"$f":"IF('C3'!B184<>0,'C3'!B184,\"\")","v":""},null,null,null,null,"29","Box not in use",null,"23",{"$f":"IF('C4'!B54<>0,'C4'!B54,\"\")","v":""},null,"76",{"$f":"IF('C4'!B115<>0,'C4'!B115,\"\")","v":""},null,"11","Box not in use",null,"C_3",{"$f":"IF('C6'!B33<>0,'C6'!B33,\"\")","v":""},null,30,{"$f":"IF('C6'!B127<>0,'C6'!B127,\"\")","v":""},null,null,null,null,"17.2",{"$f":"IF('C8C9C10'!B34<>0,'C8C9C10'!B34,\"\")","v":""},null,"27","Box not in use"]
["PT",{"$f":"IF(C0!B62<>\"\",C0!B62,\"\")","v":""},null,"14",null,null,"15",{"$f":"IF('C1'!B48<>0,'C1'!B48,\"\")","v":""},null,"18",{"$f":"IF('C1'!B103<>0,'C1'!B103,\"\")","v":""},null,"1.1",{"$f":"IF('C2'!B33<>0,'C2'!B33,\"\")","v":""},null,"31",{"$f":"IF('C2'!B93<>0,'C2'!B93,\"\")","v":""},null,"27",{"$f":"IF('C3'!B35<>0,'C3'!B35,\"\")","v":""},null,"30",{"$f":"IF('C3'!B81<>0,'C3'!B81,\"\")","v":""},null,"77",{"$f":"IF('C3'!B128<>0,'C3'!B128,\"\")","v":""},null,"31",{"$f":"IF('C3'!B185<>0,'C3'!B185,\"\")","v":""},null,null,null,null,"30",{"$f":"IF('C4'!B27<>0,'C4'!B27,\"\")","v":""},null,"24",{"$f":"IF('C4'!B55<>\"\",'C4'!B55,\"\")","v":""},null,"76.1",{"$f":"IF('C4'!B116<>0,'C4'!B116,\"\")","v":""},null,"11.1","Box not in use",null,"5D_3",{"$f":"IF('C6'!B34<>0,'C6'!B34,\"\")","v":""},null,30.1,{"$f":"IF('C6'!B128<>0,'C6'!B128,\"\")","v":""},null,null,null,null,"17.3",{"$f":"IF('C8C9C10'!B35<>0,'C8C9C10'!B35,\"\")","v":""},null,"28",{"$f":"IF('C8C9C10'!B121<>\"\",'C8C9C10'!B121,\"\")","v":""}]
["2",{"$f":"IF(C0!B63<>\"\",C0!B63,\"\")","v":""},null,"15",null,null,null,null,null,"19",{"$f":"IF('C1'!B104<>0,'C1'!B104,\"\")","v":""},null,"2",{"$f":"IF('C2'!B34<>0,'C2'!B34,\"\")","v":""},null,"32",{"$f":"IF('C2'!B94<>0,'C2'!B94,\"\")","v":""},null,"27.1","Box not in use",null,"31",{"$f":"IF('C3'!B82<>0,'C3'!B82,\"\")","v":""},null,"77.1",{"$f":"IF('C3'!B129<>0,'C3'!B129,\"\")","v":""},null,"32",{"$f":"IF('C3'!B186<>0,'C3'!B186,\"\")","v":""},null,null,null,null,"31",{"$f":"IF('C4'!B28<>0,'C4'!B28,\"\")","v":""},null,"25",{"$f":"IF('C4'!B56<>0,'C4'!B56,\"\")","v":""},null,"77",{"$f":"IF('C4'!B117<>0,'C4'!B117,\"\")","v":""},null,"11.2","Box not in use",null,"E_3",{"$f":"IF('C6'!B35<>0,'C6'!B35,\"\")","v":""},null,31,{"$f":"IF('C6'!B129<>0,'C6'!B129,\"\")","v":""},null,null,null,null,"17.4",{"$f":"IF('C8C9C10'!B36<>0,'C8C9C10'!B36,\"\")","v":""},null,"29",{"$f":"IF('C8C9C10'!B122<>\"\",'C8C9C10'!B122,\"\")","v":""}]
["3",{"$f":"IF(C0!B64<>\"\",C0!B64,\"\")","v":""},null,"16",null,null,"AOR",{"$f":"\"Selected  = \"&AOR_IND-1","v":"Selected  = 0"},null,"20",{"$f":"IF('C1'!B105<>0,'C1'!B105,\"\")","v":""},null,"3",{"$f":"IF('C2'!B35<>0,'C2'!B35,\"\")","v":""},null,"33",{"$f":"IF('C2'!B95<>0,'C2'!B95,\"\")","v":""},null,"28",{"$f":"IF('C3'!B36<>0,'C3'!B36,\"\")","v":""},null,"32",{"$f":"IF('C3'!B83<>0,'C3'!B83,\"\")","v":""},null,"78",{"$f":"IF('C3'!B130<>0,'C3'!B130,\"\")","v":""},null,"33",{"$f":"IF('C3'!B187<>0,'C3'!B187,\"\")","v":""},null,null,null,null,"32",{"$f":"IF('C4'!B29<>0,'C4'!B29,\"\")","v":""},null,"26",{"$f":"IF('C4'!B57<>0,'C4'!B57,\"\")","v":""},null,"78",{"$f":"IF('C4'!B118<>0,'C4'!B118,\"\")","v":""},null,"12","Box not in use",null,"6F_3",{"$f":"IF('C6'!B36<>0,'C6'!B36,\"\")","v":""},null,32,{"$f":"IF('C6'!B130<>0,'C6'!B130,\"\")","v":""},null,null,null,null,"18","Box not in use",null,"30",{"$f":"IF('C8C9C10'!B123<>\"\",'C8C9C10'!B123,\"\")","v":""}]
[null,null,null,"17",null,null,"1",{"$f":"IF('C1'!B51<>0,'C1'!B51,\"\")","v":""},null,"21","Box not in use",null,"3.1","Box not in use",null,"34",{"$f":"IF('C2'!B96<>0,'C2'!B96,\"\")","v":""},null,"29",{"$f":"IF('C3'!B37<>0,'C3'!B37,\"\")","v":""},null,"33",{"$f":"IF('C3'!B84<>0,'C3'!B84,\"\")","v":""},null,"79",{"$f":"IF('C3'!B131<>0,'C3'!B131,\"\")","v":""},null,"34",{"$f":"IF('C3'!B188<>0,'C3'!B188,\"\")","v":""},null,null,null,null,null,null,null,"27",{"$f":"IF('C4'!B58<>0,'C4'!B58,\"\")","v":""},null,"79",{"$f":"IF('C4'!B119<>0,'C4'!B119,\"\")","v":""},null,"13","Box not in use",null,"A_4",{"$f":"IF('C6'!B37<>0,'C6'!B37,\"\")","v":""},null,"A_1",{"$f":"IF('C6'!B131<>0,'C6'!B131,\"\")","v":""},null,null,null,null,"19",{"$f":"IF('C8C9C10'!B38<>0,'C8C9C10'!B38,\"\")","v":""},null,"31","Box not in use"]
["CBC",{"$f":"\"Selected  = \"&CBC_Ind-1","v":"Selected  = 0"},null,"18",null,null,"2",{"$f":"IF('C1'!B52<>0,'C1'!B52,\"\")","v":""},null,"22","Box not in use",null,"4",{"$f":"IF('C2'!B37<>0,'C2'!B37,\"\")","v":""},null,"35",{"$f":"IF('C2'!B97<>0,'C2'!B97,\"\")","v":""},null,"30",{"$f":"IF('C3'!B38<>0,'C3'!B38,\"\")","v":""},null,"34",{"$f":"IF('C3'!B85<>0,'C3'!B85,\"\")","v":""},null,"80",{"$f":"IF('C3'!B132<>0,'C3'!B132,\"\")","v":""},null,"35",{"$f":"IF('C3'!B189<>0,'C3'!B189,\"\")","v":""},null,null,null,null,null,null,null,"28",{"$f":"IF('C4'!B59<>0,'C4'!B59,\"\")","v":""},null,"80",{"$f":"IF('C4'!B120<>0,'C4'!B120,\"\")","v":""},null,"14","Box not in use",null,"B_4",{"$f":"IF('C6'!B38<>0,'C6'!B38,\"\")","v":""},null,"C_1",{"$f":"IF('C6'!B132<>0,'C6'!B132,\"\")","v":""},null,null,null,null,"20",{"$f":"IF('C8C9C10'!B39<>0,'C8C9C10'!B39,\"\")","v":""},null,"32","Box not in use"]
["1",{"$f":"IF(C0!B67<>\"\",C0!B67,\"\")","v":""},null,"19","Andrea Gail",null,"3",{"$f":"IF('C1'!B53<>0,'C1'!B53,\"\")","v":""},null,"23","Box not in use",null,"5",{"$f":"IF('C2'!B38<>0,'C2'!B38,\"\")","v":""},null,"36",{"$f":"IF('C2'!B98<>0,'C2'!B98,\"\")","v":""},null,"31",{"$f":"IF('C3'!B39<>0,'C3'!B39,\"\")","v":""},null,"35",{"$f":"IF('C3'!B86<>0,'C3'!B86,\"\")","v":""},null,"81",{"$f":"IF('C3'!B133<>0,'C3'!B133,\"\")","v":""},null,"36",{"$f":"IF('C3'!B190<>0,'C3'!B190,\"\")","v":""},null,null,null,null,null,null,null,"29",{"$f":"IF('C4'!B60<>\"\",'C4'!B60,\"\")","v":""},null,null,null,null,"15","Box not in use",null,"C_4",{"$f":"IF('C6'!B39<>0,'C6'!B39,\"\")","v":""},null,"E_1",{"$f":"IF('C6'!B133<>0,'C6'!B133,\"\")","v":""},null,null,null,null,"21",{"$f":"IF('C8C9C10'!B40<>0,'C8C9C10'!B40,\"\")","v":""},null,"33","Box not in use"]
["2",{"$f":"IF(C0!B68<>\"\",C0!B68,\"\")","v":""},null,"20",null,null,"4",{"$f":"IF('C1'!B54<>0,'C1'!B54,\"\")","v":""},null,"24","Box not in use",null,"6",{"$f":"IF('C2'!B39<>0,'C2'!B39,\"\")","v":""},null,"37",{"$f":"IF('C2'!B99<>0,'C2'!B99,\"\")","v":""},null,"32",{"$f":"IF('C3'!B40<>0,'C3'!B40,\"\")","v":53827},null,"36",{"$f":"IF('C3'!B87<>0,'C3'!B87,\"\")","v":""},null,"82",{"$f":"IF('C3'!B134<>0,'C3'!B134,\"\")","v":""},null,"37",{"$f":"IF('C3'!B191<>0,'C3'!B191,\"\")","v":""},null,null,null,null,null,null,null,"30",{"$f":"IF('C4'!B61<>\"\",'C4'!B61,\"\")","v":""},null,null,null,null,"16","Box not in use",null,"5D_4",{"$f":"IF('C6'!B40<>0,'C6'!B40,\"\")","v":""},null,"F_1",{"$f":"IF('C6'!B134<>0,'C6'!B134,\"\")","v":""},null,null,null,null,"22",{"$f":"IF('C8C9C10'!B41<>0,'C8C9C10'!B41,\"\")","v":""},null,"34","Box not in use"]
["3",{"$f":"IF(C0!B69<>\"\",C0!B69,\"\")","v":""},null,"20.1","Box not in use",null,"5",{"$f":"IF('C1'!B55<>0,'C1'!B55,\"\")","v":""},null,null,null,null,"6.1",{"$f":"IF('C2'!B40<>0,'C2'!B40,\"\")","v":""},null,"38",{"$f":"IF('C2'!B100<>0,'C2'!B100,\"\")","v":""},null,"33",{"$f":"IF('C3'!B41<>0,'C3'!B41,\"\")","v":53827},null,"37",{"$f":"IF('C3'!B88<>0,'C3'!B88,\"\")","v":""},null,"83",{"$f":"IF('C3'!B135<>0,'C3'!B135,\"\")","v":""},null,"38",{"$f":"IF('C3'!B192<>0,'C3'!B192,\"\")","v":""},null,null,null,null,null,null,null,"31",{"$f":"IF('C4'!B62<>0,'C4'!B62,\"\")","v":""},null,null,null,null,"17","Box not in use",null,"E_4",{"$f":"IF('C6'!B41<>0,'C6'!B41,\"\")","v":""},null,"A_2",{"$f":"IF('C6'!B135<>0,'C6'!B135,\"\")","v":""},null,null,null,null,"23",{"$f":"IF('C8C9C10'!B42<>0,'C8C9C10'!B42,\"\")","v":""},null,"35","Box not in use"]
[null,null,null,"21",null,null,"6",{"$f":"IF('C1'!B56<>0,'C1'!B56,\"\")","v":""},null,null,null,null,"7",{"$f":"IF('C2'!B41<>0,'C2'!B41,\"\")","v":""},null,"39",{"$f":"IF('C2'!B101<>0,'C2'!B101,\"\")","v":""},null,"34",{"$f":"IF('C3'!B42<>0,'C3'!B42,\"\")","v":""},null,"38",{"$f":"IF('C3'!B89<>0,'C3'!B89,\"\")","v":""},null,"84",{"$f":"IF('C3'!B136<>0,'C3'!B136,\"\")","v":""},null,"39",{"$f":"IF('C3'!B193<>0,'C3'!B193,\"\")","v":""},null,null,null,null,null,null,null,"32",{"$f":"IF('C4'!B63<>\"\",'C4'!B63,\"\")","v":""},null,null,null,null,"18","Box not in use",null,"6F_4",{"$f":"IF('C6'!B42<>0,'C6'!B42,\"\")","v":""},null,"C_2",{"$f":"IF('C6'!B136<>0,'C6'!B136,\"\")","v":""},null,null,null,null,"24",{"$f":"IF('C8C9C10'!B43<>0,'C8C9C10'!B43,\"\")","v":34228},null,"36","Box not in use"]
["WFHP",{"$f":"\"Selected  = \"&WFP_Ind-1","v":"Selected  = 0"},null,"22","Y",null,6.1,{"$f":"IF('C1'!B57<>0,'C1'!B57,\"\")","v":""},null,null,null,null,"7.1",{"$f":"IF('C2'!B42<>0,'C2'!B42,\"\")","v":""},null,"CL1",{"$f":"IF('C2'!B109=\"\",\"\",'C2'!B109)","v":0},null,"35",{"$f":"IF('C3'!B43<>0,'C3'!B43,\"\")","v":""},null,"39",{"$f":"IF('C3'!B90<>0,'C3'!B90,\"\")","v":""},null,"85",{"$f":"IF('C3'!B137<>0,'C3'!B137,\"\")","v":""},null,"40",{"$f":"IF('C3'!B194<>0,'C3'!B194,\"\")","v":""},null,null,null,null,null,null,null,"33",{"$f":"IF('C4'!B64<>0,'C4'!B64,\"\")","v":""},null,null,null,null,"19","Box not in use",null,"A_5",{"$f":"IF('C6'!B43<>0,'C6'!B43,\"\")","v":""},null,"E_2",{"$f":"IF('C6'!B137<>0,'C6'!B137,\"\")","v":""},null,null,null,null,"25",{"$f":"IF('C8C9C10'!B44<>0,'C8C9C10'!B44,\"\")","v":26819},null,"37",{"$f":"IF('C8C9C10'!B130<>\"\",'C8C9C10'!B130,\"\")","v":""}]
["1",{"$f":"IF(C0!B72<>\"\",C0!B72,\"\")","v":""},null,"23",null,null,"7",{"$f":"IF('C1'!B58<>0,'C1'!B58,\"\")","v":""},null,null,null,null,"7.2",{"$f":"IF('C2'!B43<>0,'C2'!B43,\"\")","v":""},null,null,null,null,"36",{"$f":"IF('C3'!B44<>0,'C3'!B44,\"\")","v":""},null,"40",{"$f":"IF('C3'!B91<>0,'C3'!B91,\"\")","v":""},null,"86",{"$f":"IF('C3'!B138<>0,'C3'!B138,\"\")","v":""},null,"41",{"$f":"IF('C3'!B195<>0,'C3'!B195,\"\")","v":""},null,null,null,null,null,null,null,"34",{"$f":"IF('C4'!B65<>\"\",'C4'!B65,\"\")","v":""},null,null,null,null,"20",{"$f":"IF('C5'!B44<>0,'C5'!B44,\"\")","v":""},null,"B_5",{"$f":"IF('C6'!B44<>0,'C6'!B44,\"\")","v":""},null,"F_2",{"$f":"IF('C6'!B138<>0,'C6'!B138,\"\")","v":""},null,null,null,null,"26",{"$f":"IF('C8C9C10'!B45<>0,'C8C9C10'!B45,\"\")","v":7409},null,"38",{"$f":"IF('C8C9C10'!B131<>\"\",'C8C9C10'!B131,\"\")","v":""}]
[null,null,null,"24",null,null,"8",{"$f":"IF('C1'!B59<>0,'C1'!B59,\"\")","v":""},null,null,null,null,"7.3",{"$f":"IF('C2'!B44<>0,'C2'!B44,\"\")","v":""},null,null,null,null,"37",{"$f":"IF('C3'!B45<>0,'C3'!B45,\"\")","v":"N"},null,"41",{"$f":"IF('C3'!B92<>0,'C3'!B92,\"\")","v":""},null,"87",{"$f":"IF('C3'!B139<>0,'C3'!B139,\"\")","v":""},null,"42",{"$f":"IF('C3'!B196<>0,'C3'!B196,\"\")","v":""},null,null,null,null,null,null,null,"34.1","Box not in use",null,null,null,null,"20.1",{"$f":"IF('C5'!B45<>0,'C5'!B45,\"\")","v":""},null,"C_5",{"$f":"IF('C6'!B45<>0,'C6'!B45,\"\")","v":""},null,"A_3",{"$f":"IF('C6'!B139<>0,'C6'!B139,\"\")","v":""},null,null,null,null,"26.1",{"$f":"IF('C8C9C10'!B46<>0,'C8C9C10'!B46,\"\")","v":""},null,"39",{"$f":"IF('C8C9C10'!B132<>\"\",'C8C9C10'!B132,\"\")","v":""}]
["MAT",null,null,"25",null,null,"9",{"$f":"IF('C1'!B60<>0,'C1'!B60,\"\")","v":""},null,null,null,null,"7.4",{"$f":"IF('C2'!B45<>0,'C2'!B45,\"\")","v":""},null,null,null,null,"38",{"$f":"IF('C3'!B46<>0,'C3'!B46,\"\")","v":""},null,"42",{"$f":"IF('C3'!B93<>0,'C3'!B93,\"\")","v":""},null,"88",{"$f":"IF('C3'!B140<>0,'C3'!B140,\"\")","v":""},null,"43",{"$f":"IF('C3'!B197<>0,'C3'!B197,\"\")","v":""},null,null,null,null,null,null,null,"35",{"$f":"IF('C4'!B66<>\"\",'C4'!B66,\"\")","v":""},null,null,null,null,"20.2",{"$f":"IF('C5'!B46<>\"\",'C5'!B46,\"\")","v":""},null,"5D_5",{"$f":"IF('C6'!B46<>0,'C6'!B46,\"\")","v":""},null,"C_3",{"$f":"IF('C6'!B140<>0,'C6'!B140,\"\")","v":""},null,null,null,null,"27",{"$f":"IF('C8C9C10'!B47<>0,'C8C9C10'!B47,\"\")","v":""},null,"40",{"$f":"IF('C8C9C10'!B133<>\"\",'C8C9C10'!B133,\"\")","v":""}]
["0",{"$f":"IF(C0!B75<>\"\",C0!B75,\"\")","v":""},null,"26",null,null,"10",{"$f":"IF('C1'!B61<>0,'C1'!B61,\"\")","v":""},null,null,null,null,"8",{"$f":"IF('C2'!B46<>0,'C2'!B46,\"\")","v":""},null,null,null,null,null,null,null,"43",{"$f":"IF('C3'!B94<>0,'C3'!B94,\"\")","v":""},null,"89",{"$f":"IF('C3'!B141<>0,'C3'!B141,\"\")","v":""},null,"44",{"$f":"IF('C3'!B198<>0,'C3'!B198,\"\")","v":""},null,null,null,null,null,null,null,"35.1",{"$f":"IF('C4'!B67<>\"\",'C4'!B67,\"\")","v":""},null,null,null,null,"21",{"$f":"IF('C5'!B47<>0,'C5'!B47,\"\")","v":""},null,"E_5",{"$f":"IF('C6'!B47<>0,'C6'!B47,\"\")","v":""},null,"E_3",{"$f":"IF('C6'!B141<>0,'C6'!B141,\"\")","v":""},null,null,null,null,"28",{"$f":"IF('C8C9C10'!B48<>0,'C8C9C10'!B48,\"\")","v":""},null,"41",{"$f":"IF('C8C9C10'!B134<>\"\",'C8C9C10'!B134,\"\")","v":""}]
["1",{"$f":"IF(C0!B76<>\"\",C0!B76,\"\")","v":""},null,null,null,null,"11","Box not in use",null,null,null,null,"8.1","Box not in use",null,null,null,null,null,null,null,"44",{"$f":"IF('C3'!B95<>0,'C3'!B95,\"\")","v":""},null,"90",{"$f":"IF('C3'!B142<>0,'C3'!B142,\"\")","v":""},null,"45",{"$f":"IF('C3'!B199<>0,'C3'!B199,\"\")","v":""},null,null,null,null,null,null,null,"36",{"$f":"IF('C4'!B68<>\"\",'C4'!B68,\"\")","v":""},null,null,null,null,"22",{"$f":"IF('C5'!B48<>0,'C5'!B48,\"\")","v":""},null,"6F_5",{"$f":"IF('C6'!B48<>0,'C6'!B48,\"\")","v":""},null,"F_3",{"$f":"IF('C6'!B142<>0,'C6'!B142,\"\")","v":""},null,null,null,null,"29",{"$f":"IF('C8C9C10'!B49<>0,'C8C9C10'!B49,\"\")","v":""},null,"43",{"$f":"IF('C8C9C10'!B135<>\"\",'C8C9C10'!B135,\"\")","v":""}]
["2",{"$f":"IF(C0!B77<>\"\",C0!B77,\"\")","v":""},null,null,null,null,"12",{"$f":"IF('C1'!B62<>0,'C1'!B62,\"\")","v":""},null,null,null,null,"9",{"$f":"IF('C2'!B47<>0,'C2'!B47,\"\")","v":""},null,null,null,null,null,null,null,"45",{"$f":"IF('C3'!B96<>0,'C3'!B96,\"\")","v":""},null,"91",{"$f":"IF('C3'!B143<>0,'C3'!B143,\"\")","v":""},null,"46",{"$f":"IF('C3'!B200<>0,'C3'!B200,\"\")","v":""},null,null,null,null,null,null,null,"37",{"$f":"IF('C4'!B69<>\"\",'C4'!B69,\"\")","v":""},null,null,null,null,"23",{"$f":"IF('C5'!B49<>0,'C5'!B49,\"\")","v":""},null,5,{"$f":"IF('C6'!B49<>0,'C6'!B49,\"\")","v":""},null,"A_4",{"$f":"IF('C6'!B143<>0,'C6'!B143,\"\")","v":""},null,null,null,null,"30",{"$f":"IF('C8C9C10'!B50<>0,'C8C9C10'!B50,\"\")","v":""},null,"44",{"$f":"IF('C8C9C10'!B136<>\"\",'C8C9C10'!B136,\"\")","v":""}]
["3",{"$f":"IF(C0!B78<>\"\",C0!B78,\"\")","v":""},null,null,null,null,null,null,null,null,null,null,"10",{"$f":"IF('C2'!B48<>0,'C2'!B48,\"\")","v":""},null,null,null,null,null,null,null,"46",{"$f":"IF('C3'!B97<>0,'C3'!B97,\"\")","v":""},null,"92",{"$f":"IF('C3'!B144<>0,'C3'!B144,\"\")","v":""},null,"47",{"$f":"IF('C3'!B201<>0,'C3'!B201,\"\")","v":""},null,null,null,null,null,null,null,"38",{"$f":"IF('C4'!B70<>0,'C4'!B70,\"\")","v":""},null,null,null,null,"24",{"$f":"IF('C5'!B50<>0,'C5'!B50,\"\")","v":""},null,6,{"$f":"IF('C6'!B50<>0,'C6'!B50,\"\")","v":""},null,"C_4",{"$f":"IF('C6'!B144<>0,'C6'!B144,\"\")","v":""},null,null,null,null,"31",{"$f":"IF('C8C9C10'!B51<>0,'C8C9C10'!B51,\"\")","v":""},null,"46",{"$f":"IF('C8C9C10'!B137<>\"\",'C8C9C10'!B137,\"\")","v":""}]
["4",{"$f":"IF(C0!B79<>\"\",C0!B79,\"\")","v":""},null,null,null,null,null,null,null,null,null,null,"11",{"$f":"IF('C2'!B49<>0,'C2'!B49,\"\")","v":""},null,null,null,null,null,null,null,"47",{"$f":"IF('C3'!B98<>0,'C3'!B98,\"\")","v":""},null,"93",{"$f":"IF('C3'!B145<>0,'C3'!B145,\"\")","v":""},null,"48",{"$f":"IF('C3'!B202<>0,'C3'!B202,\"\")","v":""},null,null,null,null,null,null,null,"39",{"$f":"IF('C4'!B71<>0,'C4'!B71,\"\")","v":""},null,null,null,null,"25",{"$f":"IF('C5'!B51<>0,'C5'!B51,\"\")","v":""},null,6.1,{"$f":"IF('C6'!B51<>0,'C6'!B51,\"\")","v":""},null,"E_4",{"$f":"IF('C6'!B145<>0,'C6'!B145,\"\")","v":""},null,null,null,null,"32",{"$f":"IF('C8C9C10'!B52<>0,'C8C9C10'!B52,\"\")","v":""},null,"47",{"$f":"IF('C8C9C10'!B138<>\"\",'C8C9C10'!B138,\"\")","v":""}]
["5",{"$f":"IF(C0!B80<>\"\",C0!B80,\"\")","v":""},null,null,null,null,null,null,null,null,null,null,"12",{"$f":"IF('C2'!B50<>0,'C2'!B50,\"\")","v":""},null,null,null,null,null,null,null,"48",{"$f":"IF('C3'!B99<>0,'C3'!B99,\"\")","v":""},null,"94",{"$f":"IF('C3'!B146<>0,'C3'!B146,\"\")","v":""},null,"49",{"$f":"IF('C3'!B203<>0,'C3'!B203,\"\")","v":""},null,null,null,null,null,null,null,"40",{"$f":"IF('C4'!B72<>\"\",'C4'!B72,\"\")","v":""},null,null,null,null,"26",{"$f":"IF('C5'!B52<>0,'C5'!B52,\"\")","v":""},null,"A_1",{"$f":"IF('C6'!B52<>0,'C6'!B52,\"\")","v":""},null,"F_4",{"$f":"IF('C6'!B146<>0,'C6'!B146,\"\")","v":""},null,null,null,null,"33",{"$f":"IF('C8C9C10'!B53<>0,'C8C9C10'!B53,\"\")","v":""},null,"48",{"$f":"IF('C8C9C10'!B139<>\"\",'C8C9C10'!B139,\"\")","v":""}]
["-OUT",{"$f":"IF(C0!B81<>\"\",C0!B81,\"\")","v":""},null,null,null,null,null,null,null,null,null,null,"13",{"$f":"IF('C2'!B51<>0,'C2'!B51,\"\")","v":""},null,null,null,null,null,null,null,"49",{"$f":"IF('C3'!B100<>0,'C3'!B100,\"\")","v":""},null,"95",{"$f":"IF('C3'!B147<>0,'C3'!B147,\"\")","v":""},null,"50",{"$f":"IF('C3'!B204<>0,'C3'!B204,\"\")","v":""},null,null,null,null,null,null,null,"41",{"$f":"IF('C4'!B73<>\"\",'C4'!B73,\"\")","v":""},null,null,null,null,"27",{"$f":"IF('C5'!B53<>0,'C5'!B53,\"\")","v":""},null,"B_1",{"$f":"IF('C6'!B53<>0,'C6'!B53,\"\")","v":""},null,33,{"$f":"IF('C6'!B147<>0,'C6'!B147,\"\")","v":""},null,null,null,null,"34",{"$f":"IF('C8C9C10'!B54<>0,'C8C9C10'!B54,\"\")","v":""},null,"49",{"$f":"IF('C8C9C10'!B140<>\"\",'C8C9C10'!B140,\"\")","v":""}]
["-IN",{"$f":"IF(C0!B82<>\"\",C0!B82,\"\")","v":""},null,null,null,null,null,null,null,null,null,null,"14",{"$f":"IF('C2'!B52<>0,'C2'!B52,\"\")","v":""},null,null,null,null,null,null,null,"50",{"$f":"IF('C3'!B101<>0,'C3'!B101,\"\")","v":""},null,"96",{"$f":"IF('C3'!B148<>0,'C3'!B148,\"\")","v":""},null,null,null,null,null,null,null,null,null,null,"41.1",{"$f":"IF('C4'!B74<>\"\",'C4'!B74,\"\")","v":""},null,null,null,null,"28",{"$f":"IF('C5'!B54<>0,'C5'!B54,\"\")","v":""},null,"C_1",{"$f":"IF('C6'!B54<>0,'C6'!B54,\"\")","v":""},null,34,{"$f":"IF('C6'!B148<>0,'C6'!B148,\"\")","v":""},null,null,null,null,"34.1",{"$f":"IF('C8C9C10'!B55<>0,'C8C9C10'!B55,\"\")","v":""},null,"50",{"$f":"IF('C8C9C10'!B141<>\"\",'C8C9C10'!B141,\"\")","v":""}]
[null,null,null,null,null,null,null,null,null,null,null,null,"15",{"$f":"IF('C2'!B53<>0,'C2'!B53,\"\")","v":""},null,null,null,null,null,null,null,"51",{"$f":"IF('C3'!B102<>0,'C3'!B102,\"\")","v":""},null,"97",{"$f":"IF('C3'!B149<>0,'C3'!B149,\"\")","v":""},null,null,null,null,null,null,null,null,null,null,"41.2",{"$f":"IF('C4'!B75<>\"\",'C4'!B75,\"\")","v":""},null,null,null,null,"29",{"$f":"IF('C5'!B55<>0,'C5'!B55,\"\")","v":""},null,"D_1",{"$f":"IF('C6'!B55<>0,'C6'!B55,\"\")","v":""},null,35,{"$f":"IF('C6'!B149<>0,'C6'!B149,\"\")","v":""},null,null,null,null,"35",{"$f":"IF('C8C9C10'!B56<>0,'C8C9C10'!B56,\"\")","v":""},null,"51",{"$f":"IF('C8C9C10'!B142<>\"\",'C8C9C10'!B142,\"\")","v":""}]
[null,null,null,null,null,null,null,null,null,null,null,null,"16",{"$f":"IF('C2'!B54<>0,'C2'!B54,\"\")","v":""},null,null,null,null,null,null,null,"52",{"$f":"IF('C3'!B103<>0,'C3'!B103,\"\")","v":""},null,"98",{"$f":"IF('C3'!B150<>0,'C3'!B150,\"\")","v":""},null,null,null,null,null,null,null,null,null,null,"AF1",{"$f":"IF('C4'!B76<>0,'C4'!B76,\"\")","v":""},null,null,null,null,"30",{"$f":"IF('C5'!B56<>0,'C5'!B56,\"\")","v":""},null,"E_1",{"$f":"IF('C6'!B56<>0,'C6'!B56,\"\")","v":""},null,36,{"$f":"IF('C6'!B150<>0,'C6'!B150,\"\")","v":""},null,null,null,null,"36",{"$f":"IF('C8C9C10'!B57<>0,'C8C9C10'!B57,\"\")","v":""},null,"52",{"$f":"IF('C8C9C10'!B143<>\"\",'C8C9C10'!B143,\"\")","v":""}]
[null,null,null,null,null,null,null,null,null,null,null,null,"17",{"$f":"IF('C2'!B55<>0,'C2'!B55,\"\")","v":""},null,null,null,null,null,null,null,"52.1",{"$f":"IF('C3'!B104<>0,'C3'!B104,\"\")","v":""},null,"99",{"$f":"IF('C3'!B151<>0,'C3'!B151,\"\")","v":""},null,null,null,null,null,null,null,null,null,null,"42","Box not in use",null,null,null,null,"31",{"$f":"IF('C5'!B57<>0,'C5'!B57,\"\")","v":""},null,"F_1",{"$f":"IF('C6'!B57<>0,'C6'!B57,\"\")","v":""},null,37,{"$f":"IF('C6'!B151<>0,'C6'!B151,\"\")","v":""},null,null,null,null,"37",{"$f":"IF('C8C9C10'!B58<>0,'C8C9C10'!B58,\"\")","v":""},null,"53",{"$f":"IF('C8C9C10'!B144<>\"\",'C8C9C10'!B144,\"\")","v":""}]
[null,null,null,null,null,null,null,null,null,null,null,null,"18",{"$f":"IF('C2'!B56<>0,'C2'!B56,\"\")","v":""},null,null,null,null,null,null,null,null,null,null,"100",{"$f":"IF('C3'!B152<>0,'C3'!B152,\"\")","v":""},null,null,null,null,null,null,null,null,null,null,"43","Box not in use",null,null,null,null,"32",{"$f":"IF('C5'!B58<>0,'C5'!B58,\"\")","v":""},null,7.1,{"$f":"IF('C6'!B58<>0,'C6'!B58,\"\")","v":""},null,38,{"$f":"IF('C6'!B152<>0,'C6'!B152,\"\")","v":""},null,null,null,null,"38",{"$f":"IF('C8C9C10'!B59<>0,'C8C9C10'!B59,\"\")","v":""},null,"54",{"$f":"IF('C8C9C10'!B145<>\"\",'C8C9C10'!B145,\"\")","v":""}]
[null,null,null,null,null,null,null,null,null,null,null,null,"19",{"$f":"IF('C2'!B57<>0,'C2'!B57,\"\")","v":""},null,null,null,null,null,null,null,null,null,null,"101",{"$f":"IF('C3'!B153<>0,'C3'!B153,\"\")","v":""},null,null,null,null,null,null,null,null,null,null,"44","Box not in use",null,null,null,null,"33",{"$f":"IF('C5'!B59<>0,'C5'!B59,\"\")","v":""},null,7.2,{"$f":"IF('C6'!B59<>0,'C6'!B59,\"\")","v":""},null,39,{"$f":"IF('C6'!B153<>0,'C6'!B153,\"\")","v":""},null,null,null,null,"39",{"$f":"IF('C8C9C10'!B60<>0,'C8C9C10'!B60,\"\")","v":""}]
[null,null,null,null,null,null,null,null,null,null,null,null,"20",{"$f":"IF('C2'!B58<>0,'C2'!B58,\"\")","v":""},null,null,null,null,null,null,null,null,null,null,"102",{"$f":"IF('C3'!B154<>0,'C3'!B154,\"\")","v":""},null,null,null,null,null,null,null,null,null,null,"45",{"$f":"IF('C4'!B80<>0,'C4'!B80,\"\")","v":""},null,null,null,null,"33.1",{"$f":"IF('C5'!B60<>0,'C5'!B60,\"\")","v":""},null,"A_1",{"$f":"IF('C6'!B60<>0,'C6'!B60,\"\")","v":""},null,40,{"$f":"IF('C6'!B154<>0,'C6'!B154,\"\")","v":""},null,null,null,null,"40",{"$f":"IF('C8C9C10'!B61<>0,'C8C9C10'!B61,\"\")","v":""}]
[null,null,null,null,null,null,null,null,null,null,null,null,"CL1",{"$f":"IF('C2'!B106=\"\",\"\",'C2'!B106)","v":37700},null,null,null,null,null,null,null,null,null,null,"103",{"$f":"IF('C3'!B155<>0,'C3'!B155,\"\")","v":""},null,null,null,null,null,null,null,null,null,null,"46",{"$f":"IF('C4'!B81<>\"\",'C4'!B81,\"\")","v":""},null,null,null,null,"33.2",{"$f":"IF('C5'!B61<>0,'C5'!B61,\"\")","v":""},null,"B_1",{"$f":"IF('C6'!B61<>0,'C6'!B61,\"\")","v":""},null,41,"Box not in use",null,null,null,null,"41",{"$f":"IF('C8C9C10'!B62<>0,'C8C9C10'!B62,\"\")","v":""}]
[null,null,null,null,null,null,null,null,null,null,null,null,null,null,null,null,null,null,null,null,null,null,null,null,null,null,null,null,null,null,null,null,null,null,null,null,"47",{"$f":"IF('C4'!B82<>\"\",'C4'!B82,\"\")","v":""},null,null,null,null,"34","Box not in use",null,"C_1",{"$f":"IF('C6'!B62<>0,'C6'!B62,\"\")","v":""},null,42,"Box not in use",null,null,null,null,"42",{"$f":"IF('C8C9C10'!B63<>0,'C8C9C10'!B63,\"\")","v":""}]
[null,null,null,null,null,null,null,null,null,null,null,null,null,null,null,null,null,null,null,null,null,null,null,null,null,null,null,null,null,null,null,null,null,null,null,null,"48",{"$f":"IF('C4'!B83<>\"\",'C4'!B83,\"\")","v":""},null,null,null,null,"34.1",{"$f":"IF('C5'!B63<>0,'C5'!B63,\"\")","v":""},null,"D_1",{"$f":"IF('C6'!B63<>0,'C6'!B63,\"\")","v":""},null,43,{"$f":"IF('C6'!B157<>0,'C6'!B157,\"\")","v":""},null,null,null,null,"43",{"$f":"IF('C8C9C10'!B64<>0,'C8C9C10'!B64,\"\")","v":""}]
[null,null,null,null,null,null,null,null,null,null,null,null,null,null,null,null,null,null,null,null,null,null,null,null,null,null,null,null,null,null,null,null,null,null,null,null,"49",{"$f":"IF('C4'!B84<>0,'C4'!B84,\"\")","v":""},null,null,null,null,"35",{"$f":"IF('C5'!B64<>0,'C5'!B64,\"\")","v":""},null,"E_1",{"$f":"IF('C6'!B64<>0,'C6'!B64,\"\")","v":""},null,44,{"$f":"IF('C6'!B158<>0,'C6'!B158,\"\")","v":""},null,null,null,null,"44",{"$f":"IF('C8C9C10'!B65<>0,'C8C9C10'!B65,\"\")","v":""}]
[null,null,null,null,null,null,null,null,null,null,null,null,null,null,null,null,null,null,null,null,null,null,null,null,null,null,null,null,null,null,null,null,null,null,null,null,"50",{"$f":"IF('C4'!B85<>\"\",'C4'!B85,\"\")","v":""},null,null,null,null,"36",{"$f":"IF('C5'!B65<>0,'C5'!B65,\"\")","v":""},null,"F_1",{"$f":"IF('C6'!B65<>0,'C6'!B65,\"\")","v":""},null,45,{"$f":"IF('C6'!B159<>0,'C6'!B159,\"\")","v":""},null,null,null,null,"45",{"$f":"IF('C8C9C10'!B66<>0,'C8C9C10'!B66,\"\")","v":""}]
[null,null,null,null,null,null,null,null,null,null,null,null,null,null,null,null,null,null,null,null,null,null,null,null,null,null,null,null,null,null,null,null,null,null,null,null,"51",{"$f":"IF('C4'!B86<>0,'C4'!B86,\"\")","v":""},null,null,null,null,"37",{"$f":"IF('C5'!B66<>0,'C5'!B66,\"\")","v":""},null,7.3,{"$f":"IF('C6'!B66<>0,'C6'!B66,\"\")","v":""},null,46,{"$f":"IF('C6'!B160<>0,'C6'!B160,\"\")","v":""},null,null,null,null,"46",{"$f":"IF('C8C9C10'!B67<>0,'C8C9C10'!B67,\"\")","v":""}]
[null,null,null,null,null,null,null,null,null,null,null,null,null,null,null,null,null,null,null,null,null,null,null,null,null,null,null,null,null,null,null,null,null,null,null,null,null,null,null,null,null,null,"38",{"$f":"IF('C5'!B67<>0,'C5'!B67,\"\")","v":""},null,7.4,{"$f":"IF('C6'!B67<>0,'C6'!B67,\"\")","v":""},null,"A_1",{"$f":"IF('C6'!B161<>0,'C6'!B161,\"\")","v":""},null,null,null,null,"47",{"$f":"IF('C8C9C10'!B68<>0,'C8C9C10'!B68,\"\")","v":""}]
[null,null,null,null,null,null,null,null,null,null,null,null,null,null,null,null,null,null,null,null,null,null,null,null,null,null,null,null,null,null,null,null,null,null,null,null,null,null,null,null,null,null,"39",{"$f":"IF('C5'!B68<>0,'C5'!B68,\"\")","v":""},null,7.5,{"$f":"IF('C6'!B68<>0,'C6'!B68,\"\")","v":""},null,"B_1",{"$f":"IF('C6'!B162<>0,'C6'!B162,\"\")","v":""},null,null,null,null,"48",{"$f":"IF('C8C9C10'!B69<>0,'C8C9C10'!B69,\"\")","v":""}]
[null,null,null,null,null,null,null,null,null,null,null,null,null,null,null,null,null,null,null,null,null,null,null,null,null,null,null,null,null,null,null,null,null,null,null,null,null,null,null,null,null,null,"40",{"$f":"IF('C5'!B69<>0,'C5'!B69,\"\")","v":""},null,"A_1",{"$f":"IF('C6'!B69<>0,'C6'!B69,\"\")","v":""},null,"C_1",{"$f":"IF('C6'!B163<>0,'C6'!B163,\"\")","v":""},null,null,null,null,"49",{"$f":"IF('C8C9C10'!B70<>0,'C8C9C10'!B70,\"\")","v":""}]
[null,null,null,null,null,null,null,null,null,null,null,null,null,null,null,null,null,null,null,null,null,null,null,null,null,null,null,null,null,null,null,null,null,null,null,null,null,null,null,null,null,null,"41",{"$f":"IF('C5'!B70<>0,'C5'!B70,\"\")","v":""},null,"B_1",{"$f":"IF('C6'!B70<>0,'C6'!B70,\"\")","v":""},null,"D_1",{"$f":"IF('C6'!B164<>0,'C6'!B164,\"\")","v":""},null,null,null,null,"50",{"$f":"IF('C8C9C10'!B71<>0,'C8C9C10'!B71,\"\")","v":""}]
[null,null,null,null,null,null,null,null,null,null,null,null,null,null,null,null,null,null,null,null,null,null,null,null,null,null,null,null,null,null,null,null,null,null,null,null,null,null,null,null,null,null,"42",{"$f":"IF('C5'!B71<>0,'C5'!B71,\"\")","v":""},null,"C_1",{"$f":"IF('C6'!B71<>0,'C6'!B71,\"\")","v":""},null,"E_1",{"$f":"IF('C6'!B165<>0,'C6'!B165,\"\")","v":""},null,null,null,null,"50.1",{"$f":"IF('C8C9C10'!B72<>0,'C8C9C10'!B72,\"\")","v":""}]
[null,null,null,null,null,null,null,null,null,null,null,null,null,null,null,null,null,null,null,null,null,null,null,null,null,null,null,null,null,null,null,null,null,null,null,null,null,null,null,null,null,null,"43",{"$f":"IF('C5'!B72<>0,'C5'!B72,\"\")","v":""},null,"8D_1",{"$f":"IF('C6'!B72<>0,'C6'!B72,\"\")","v":""},null,"F_1",{"$f":"IF('C6'!B166<>0,'C6'!B166,\"\")","v":""},null,null,null,null,"51",{"$f":"IF('C8C9C10'!B73<>0,'C8C9C10'!B73,\"\")","v":""}]
[null,null,null,null,null,null,null,null,null,null,null,null,null,null,null,null,null,null,null,null,null,null,null,null,null,null,null,null,null,null,null,null,null,null,null,null,null,null,null,null,null,null,"44",{"$f":"IF('C5'!B73<>0,'C5'!B73,\"\")","v":""},null,"E_1",{"$f":"IF('C6'!B73<>0,'C6'!B73,\"\")","v":""},null,47,{"$f":"IF('C6'!B167<>0,'C6'!B167,\"\")","v":""},null,null,null,null,"52",{"$f":"IF('C8C9C10'!B74<>0,'C8C9C10'!B74,\"\")","v":""}]
[null,null,null,null,null,null,null,null,null,null,null,null,null,null,null,null,null,null,null,null,null,null,null,null,null,null,null,null,null,null,null,null,null,null,null,null,null,null,null,null,null,null,"45",{"$f":"IF('C5'!B74<>0,'C5'!B74,\"\")","v":""},null,"9F_1",{"$f":"IF('C6'!B74<>0,'C6'!B74,\"\")","v":""},null,48,{"$f":"IF('C6'!B168<>0,'C6'!B168,\"\")","v":""},null,null,null,null,"52.1",{"$f":"IF('C8C9C10'!B75<>0,'C8C9C10'!B75,\"\")","v":""}]
[null,null,null,null,null,null,null,null,null,null,null,null,null,null,null,null,null,null,null,null,null,null,null,null,null,null,null,null,null,null,null,null,null,null,null,null,null,null,null,null,null,null,null,null,null,8,{"$f":"IF('C6'!B75<>0,'C6'!B75,\"\")","v":""},null,48.1,{"$f":"IF('C6'!B169<>0,'C6'!B169,\"\")","v":""},null,null,null,null,"52.2",{"$f":"IF('C8C9C10'!B76<>0,'C8C9C10'!B76,\"\")","v":""}]
[null,null,null,null,null,null,null,null,null,null,null,null,null,null,null,null,null,null,null,null,null,null,null,null,null,null,null,null,null,null,null,null,null,null,null,null,null,null,null,null,null,null,null,null,null,9,{"$f":"IF('C6'!B76<>0,'C6'!B76,\"\")","v":""},null,49,{"$f":"IF('C6'!B170<>0,'C6'!B170,\"\")","v":""},null,null,null,null,"52.3",{"$f":"IF('C8C9C10'!B77<>0,'C8C9C10'!B77,\"\")","v":""}]
[null,null,null,null,null,null,null,null,null,null,null,null,null,null,null,null,null,null,null,null,null,null,null,null,null,null,null,null,null,null,null,null,null,null,null,null,null,null,null,null,null,null,null,null,null,9.1,{"$f":"IF('C6'!B77<>0,'C6'!B77,\"\")","v":""},null,49.1,{"$f":"IF('C6'!B171<>0,'C6'!B171,\"\")","v":""},null,null,null,null,"52.4",{"$f":"IF('C8C9C10'!B78<>0,'C8C9C10'!B78,\"\")","v":""}]
[null,null,null,null,null,null,null,null,null,null,null,null,null,null,null,null,null,null,null,null,null,null,null,null,null,null,null,null,null,null,null,null,null,null,null,null,null,null,null,null,null,null,null,null,null,"A_1",{"$f":"IF('C6'!B78<>0,'C6'!B78,\"\")","v":""},null,"A_1",{"$f":"IF('C6'!B172<>0,'C6'!B172,\"\")","v":""},null,null,null,null,"52.5",{"$f":"IF('C8C9C10'!B79<>0,'C8C9C10'!B79,\"\")","v":""}]
[null,null,null,null,null,null,null,null,null,null,null,null,null,null,null,null,null,null,null,null,null,null,null,null,null,null,null,null,null,null,null,null,null,null,null,null,null,null,null,null,null,null,null,null,null,"B_1",{"$f":"IF('C6'!B79<>0,'C6'!B79,\"\")","v":""},null,"B_1",{"$f":"IF('C6'!B173<>0,'C6'!B173,\"\")","v":""},null,null,null,null,"52EG",{"$f":"IF('C8C9C10'!B80<>0,'C8C9C10'!B80,\"\")","v":""}]
[null,null,null,null,null,null,null,null,null,null,null,null,null,null,null,null,null,null,null,null,null,null,null,null,null,null,null,null,null,null,null,null,null,null,null,null,null,null,null,null,null,null,null,null,null,"C_1",{"$f":"IF('C6'!B80<>0,'C6'!B80,\"\")","v":""},null,"C_1",{"$f":"IF('C6'!B174<>0,'C6'!B174,\"\")","v":""},null,null,null,null,"52EG.1",{"$f":"IF('C8C9C10'!B81<>0,'C8C9C10'!B81,\"\")","v":""}]
[null,null,null,null,null,null,null,null,null,null,null,null,null,null,null,null,null,null,null,null,null,null,null,null,null,null,null,null,null,null,null,null,null,null,null,null,null,null,null,null,null,null,null,null,null,"10D_1",{"$f":"IF('C6'!B81<>0,'C6'!B81,\"\")","v":""},null,"D_1",{"$f":"IF('C6'!B175<>0,'C6'!B175,\"\")","v":""},null,null,null,null,"52QG",{"$f":"IF('C8C9C10'!B82<>0,'C8C9C10'!B82,\"\")","v":""}]
[null,null,null,null,null,null,null,null,null,null,null,null,null,null,null,null,null,null,null,null,null,null,null,null,null,null,null,null,null,null,null,null,null,null,null,null,null,null,null,null,null,null,null,null,null,"E_1",{"$f":"IF('C6'!B82<>0,'C6'!B82,\"\")","v":""},null,"E_1",{"$f":"IF('C6'!B176<>0,'C6'!B176,\"\")","v":""},null,null,null,null,"52QG.1",{"$f":"IF('C8C9C10'!B83<>0,'C8C9C10'!B83,\"\")","v":""}]
[null,null,null,null,null,null,null,null,null,null,null,null,null,null,null,null,null,null,null,null,null,null,null,null,null,null,null,null,null,null,null,null,null,null,null,null,null,null,null,null,null,null,null,null,null,"11F_1",{"$f":"IF('C6'!B83<>0,'C6'!B83,\"\")","v":""},null,"F_1",{"$f":"IF('C6'!B177<>0,'C6'!B177,\"\")","v":""},null,null,null,null,"52QL",{"$f":"IF('C8C9C10'!B84<>0,'C8C9C10'!B84,\"\")","v":""}]
[null,null,null,null,null,null,null,null,null,null,null,null,null,null,null,null,null,null,null,null,null,null,null,null,null,null,null,null,null,null,null,null,null,null,null,null,null,null,null,null,null,null,null,null,null,10,{"$f":"IF('C6'!B84<>0,'C6'!B84,\"\")","v":""},null,50,{"$f":"IF('C6'!B178<>0,'C6'!B178,\"\")","v":""},null,null,null,null,"53",{"$f":"IF('C8C9C10'!B85<>0,'C8C9C10'!B85,\"\")","v":""}]
[null,null,null,null,null,null,null,null,null,null,null,null,null,null,null,null,null,null,null,null,null,null,null,null,null,null,null,null,null,null,null,null,null,null,null,null,null,null,null,null,null,null,null,null,null,11,{"$f":"IF('C6'!B85<>0,'C6'!B85,\"\")","v":""},null,51,{"$f":"IF('C6'!B179<>0,'C6'!B179,\"\")","v":""},null,null,null,null,"54",{"$f":"IF('C8C9C10'!B86<>0,'C8C9C10'!B86,\"\")","v":"computation"}]
[null,null,null,null,null,null,null,null,null,null,null,null,null,null,null,null,null,null,null,null,null,null,null,null,null,null,null,null,null,null,null,null,null,null,null,null,null,null,null,null,null,null,null,null,null,11.1,{"$f":"IF('C6'!B86<>0,'C6'!B86,\"\")","v":""},null,51.1,{"$f":"IF('C6'!B180<>0,'C6'!B180,\"\")","v":""}]
[null,null,null,null,null,null,null,null,null,null,null,null,null,null,null,null,null,null,null,null,null,null,null,null,null,null,null,null,null,null,null,null,null,null,null,null,null,null,null,null,null,null,null,null,null,"13A",{"$f":"IF('C6'!B87<>0,'C6'!B87,\"\")","v":""},null,"A_1",{"$f":"IF('C6'!B181<>0,'C6'!B181,\"\")","v":""}]
[null,null,null,null,null,null,null,null,null,null,null,null,null,null,null,null,null,null,null,null,null,null,null,null,null,null,null,null,null,null,null,null,null,null,null,null,null,null,null,null,null,null,null,null,null,"13B",{"$f":"IF('C6'!B88<>0,'C6'!B88,\"\")","v":""},null,"B_1",{"$f":"IF('C6'!B182<>0,'C6'!B182,\"\")","v":""}]
[null,null,null,null,null,null,null,null,null,null,null,null,null,null,null,null,null,null,null,null,null,null,null,null,null,null,null,null,null,null,null,null,null,null,null,null,null,null,null,null,null,null,null,null,null,"13C",{"$f":"IF('C6'!B89<>0,'C6'!B89,\"\")","v":""},null,"C_1",{"$f":"IF('C6'!B183<>0,'C6'!B183,\"\")","v":""}]
[null,null,null,null,null,null,null,null,null,null,null,null,null,null,null,null,null,null,null,null,null,null,null,null,null,null,null,null,null,null,null,null,null,null,null,null,null,null,null,null,null,null,null,null,null,"13D",{"$f":"IF('C6'!B90<>0,'C6'!B90,\"\")","v":""},null,"D_1",{"$f":"IF('C6'!B184<>0,'C6'!B184,\"\")","v":""}]
[null,null,null,null,null,null,null,null,null,null,null,null,null,null,null,null,null,null,null,null,null,null,null,null,null,null,null,null,null,null,null,null,null,null,null,null,null,null,null,null,null,null,null,null,null,"13E",{"$f":"IF('C6'!B91<>0,'C6'!B91,\"\")","v":""},null,"E_1",{"$f":"IF('C6'!B185<>0,'C6'!B185,\"\")","v":""}]
[null,null,null,null,null,null,null,null,null,null,null,null,null,null,null,null,null,null,null,null,null,null,null,null,null,null,null,null,null,null,null,null,null,null,null,null,null,null,null,null,null,null,null,null,null,"13F",{"$f":"IF('C6'!B92<>0,'C6'!B92,\"\")","v":""},null,"F_1",{"$f":"IF('C6'!B186<>0,'C6'!B186,\"\")","v":""}]
[null,null,null,null,null,null,null,null,null,null,null,null,null,null,null,null,null,null,null,null,null,null,null,null,null,null,null,null,null,null,null,null,null,null,null,null,null,null,null,null,null,null,null,null,null,12,{"$f":"IF('C6'!B93<>0,'C6'!B93,\"\")","v":""},null,52,{"$f":"IF('C6'!B187<>0,'C6'!B187,\"\")","v":""}]
[null,null,null,null,null,null,null,null,null,null,null,null,null,null,null,null,null,null,null,null,null,null,null,null,null,null,null,null,null,null,null,null,null,null,null,null,null,null,null,null,null,null,null,null,null,13,{"$f":"IF('C6'!B94<>0,'C6'!B94,\"\")","v":""},null,53,{"$f":"IF('C6'!B188<>0,'C6'!B188,\"\")","v":""}]
[null,null,null,null,null,null,null,null,null,null,null,null,null,null,null,null,null,null,null,null,null,null,null,null,null,null,null,null,null,null,null,null,null,null,null,null,null,null,null,null,null,null,null,null,null,13,{"$f":"IF('C6'!B95<>0,'C6'!B95,\"\")","v":""},null,53.1,{"$f":"IF('C6'!B189<>0,'C6'!B189,\"\")","v":""}]
[null,null,null,null,null,null,null,null,null,null,null,null,null,null,null,null,null,null,null,null,null,null,null,null,null,null,null,null,null,null,null,null,null,null,null,null,null,null,null,null,null,null,null,null,null,null,null,null,54,{"$f":"IF('C6'!B190<>0,'C6'!B190,\"\")","v":""}]
[null,null,null,null,null,null,null,null,null,null,null,null,null,null,null,null,null,null,null,null,null,null,null,null,null,null,null,null,null,null,null,null,null,null,null,null,null,null,null,null,null,null,null,null,null,null,null,null,54.1,{"$f":"IF('C6'!B191<>0,'C6'!B191,\"\")","v":""}]
[null,null,null,null,null,null,null,null,null,null,null,null,null,null,null,null,null,null,null,null,null,null,null,null,null,null,null,null,null,null,null,null,null,null,null,null,null,null,null,null,null,null,null,null,null,null,null,null,55,{"$f":"IF('C6'!B192<>0,'C6'!B192,\"\")","v":""}]
[null,null,null,null,null,null,null,null,null,null,null,null,null,null,null,null,null,null,null,null,null,null,null,null,null,null,null,null,null,null,null,null,null,null,null,null,null,null,null,null,null,null,null,null,null,null,null,null,55.1,{"$f":"IF('C6'!B193<>0,'C6'!B193,\"\")","v":""}]
[null,null,null,null,null,null,null,null,null,null,null,null,null,null,null,null,null,null,null,null,null,null,null,null,null,null,null,null,null,null,null,null,null,null,null,null,null,null,null,null,null,null,null,null,null,null,null,null,56,{"$f":"IF('C6'!B194<>0,'C6'!B194,\"\")","v":""}]
[null,null,null,null,null,null,null,null,null,null,null,null,null,null,null,null,null,null,null,null,null,null,null,null,null,null,null,null,null,null,null,null,null,null,null,null,null,null,null,null,null,null,null,null,null,null,null,null,56.1,{"$f":"IF('C6'!B195<>0,'C6'!B195,\"\")","v":""}]
[null,null,null,null,null,null,null,null,null,null,null,null,null,null,null,null,null,null,null,null,null,null,null,null,null,null,null,null,null,null,null,null,null,null,null,null,null,null,null,null,null,null,null,null,null,null,null,null,57,{"$f":"IF('C6'!B196<>0,'C6'!B196,\"\")","v":""}]
[null,null,null,null,null,null,null,null,null,null,null,null,null,null,null,null,null,null,null,null,null,null,null,null,null,null,null,null,null,null,null,null,null,null,null,null,null,null,null,null,null,null,null,null,null,null,null,null,57.1,{"$f":"IF('C6'!B197<>0,'C6'!B197,\"\")","v":""}]
[null,null,null,null,null,null,null,null,null,null,null,null,null,null,null,null,null,null,null,null,null,null,null,null,null,null,null,null,null,null,null,null,null,null,null,null,null,null,null,null,null,null,null,null,null,null,null,null,58,{"$f":"IF('C6'!B198<>0,'C6'!B198,\"\")","v":""}]
[null,null,null,null,null,null,null,null,null,null,null,null,null,null,null,null,null,null,null,null,null,null,null,null,null,null,null,null,null,null,null,null,null,null,null,null,null,null,null,null,null,null,null,null,null,null,null,null,58.1,{"$f":"IF('C6'!B199<>0,'C6'!B199,\"\")","v":""}]
[null,null,null,null,null,null,null,null,null,null,null,null,null,null,null,null,null,null,null,null,null,null,null,null,null,null,null,null,null,null,null,null,null,null,null,null,null,null,null,null,null,null,null,null,null,null,null,null,59,{"$f":"IF('C6'!B200<>0,'C6'!B200,\"\")","v":""}]
[null,null,null,null,null,null,null,null,null,null,null,null,null,null,null,null,null,null,null,null,null,null,null,null,null,null,null,null,null,null,null,null,null,null,null,null,null,null,null,null,null,null,null,null,null,null,null,null,59.1,{"$f":"IF('C6'!B201<>0,'C6'!B201,\"\")","v":""}]
[null,null,null,null,null,null,null,null,null,null,null,null,null,null,null,null,null,null,null,null,null,null,null,null,null,null,null,null,null,null,null,null,null,null,null,null,null,null,null,null,null,null,null,null,null,null,null,null,60,{"$f":"IF('C6'!B202<>0,'C6'!B202,\"\")","v":""}]
[null,null,null,null,null,null,null,null,null,null,null,null,null,null,null,null,null,null,null,null,null,null,null,null,null,null,null,null,null,null,null,null,null,null,null,null,null,null,null,null,null,null,null,null,null,null,null,null,60.1,{"$f":"IF('C6'!B203<>0,'C6'!B203,\"\")","v":""}]
[null,null,null,null,null,null,null,null,null,null,null,null,null,null,null,null,null,null,null,null,null,null,null,null,null,null,null,null,null,null,null,null,null,null,null,null,null,null,null,null,null,null,null,null,null,null,null,null,61,{"$f":"IF('C6'!B204<>0,'C6'!B204,\"\")","v":""}]
[null,null,null,null,null,null,null,null,null,null,null,null,null,null,null,null,null,null,null,null,null,null,null,null,null,null,null,null,null,null,null,null,null,null,null,null,null,null,null,null,null,null,null,null,null,null,null,null,61.1,{"$f":"IF('C6'!B205<>0,'C6'!B205,\"\")","v":""}]
[null,null,null,null,null,null,null,null,null,null,null,null,null,null,null,null,null,null,null,null,null,null,null,null,null,null,null,null,null,null,null,null,null,null,null,null,null,null,null,null,null,null,null,null,null,null,null,null,62,{"$f":"IF('C6'!B206<>0,'C6'!B206,\"\")","v":""}]
[null,null,null,null,null,null,null,null,null,null,null,null,null,null,null,null,null,null,null,null,null,null,null,null,null,null,null,null,null,null,null,null,null,null,null,null,null,null,null,null,null,null,null,null,null,null,null,null,62.1,{"$f":"IF('C6'!B207<>0,'C6'!B207,\"\")","v":""}]
[null,null,null,null,null,null,null,null,null,null,null,null,null,null,null,null,null,null,null,null,null,null,null,null,null,null,null,null,null,null,null,null,null,null,null,null,null,null,null,null,null,null,null,null,null,null,null,null,63,{"$f":"IF('C6'!B208<>0,'C6'!B208,\"\")","v":""}]
[null,null,null,null,null,null,null,null,null,null,null,null,null,null,null,null,null,null,null,null,null,null,null,null,null,null,null,null,null,null,null,null,null,null,null,null,null,null,null,null,null,null,null,null,null,null,null,null,63.1,{"$f":"IF('C6'!B209<>0,'C6'!B209,\"\")","v":""}]
[null,null,null,null,null,null,null,null,null,null,null,null,null,null,null,null,null,null,null,null,null,null,null,null,null,null,null,null,null,null,null,null,null,null,null,null,null,null,null,null,null,null,null,null,null,null,null,null,64,{"$f":"IF('C6'!B210<>0,'C6'!B210,\"\")","v":""}]
[null,null,null,null,null,null,null,null,null,null,null,null,null,null,null,null,null,null,null,null,null,null,null,null,null,null,null,null,null,null,null,null,null,null,null,null,null,null,null,null,null,null,null,null,null,null,null,null,64.099999999999994,{"$f":"IF('C6'!B211<>0,'C6'!B211,\"\")","v":""}]
[]
["If this goes beyond this line you will need to change the Range at the end of the 'Sub test_this_case()' as shown below"]
["'Write Test case sheet"]
["Sheets(\"tc_template\").Range(\"A1:BJ120\").Copy"]
["Worksheets(\"Test case\").Visible = True"]
["Sheets(\"Test case\").Select"]
["Range(\"A1\").Select"]
["Selection.PasteSpecial Paste:=xlValues, Operation:=xlNone, SkipBlanks:= _"]
["        False, Transpose:=False"]
["Selection.PasteSpecial Paste:=xlFormats, Operation:=xlNone, SkipBlanks:= _"]
["        False, Transpose:=False"]
["Sheets(\"Test case\").Range(\"A1\").Select"]
["Sheets(\"SA302\").Select"]
["End Sub"]

{"sheet":"target","index":8,"n_rows":175,"n_cols":75,"rows_kept":175,"cut":false,"hidden":true,"merged":[]}
[1,2,3,4,5,6,7,8,9,10,11,12,13,14,15,16,17,18,19,20,21,22,23,24,25,26,27,28,29,30,31,32,33,34,35,36,37,38,39,40,41,42,43,44,45,46,47,48,49,50,51,52,53,54,55,56,57,58,59,60,61,62,63,64,65,66,67,68,69,70,71,72,73,74,75]
["SCH D case",{"$f":"OR(A101>1,A105>1,A109>1,A113>1,A117>1)","v":true}]
["SCH E case",{"$f":"OR(A89>1,A93>1,A97>1,B16<>\"\",E16<>\"\" )","v":true}]
["Coding",false]
[169,{"$f":"YPD&'INC(1)'!C4","v":"YPD1"},{"$f":"YPD&'INC(1)'!C7","v":"YPDTR"}]
["INC(1)","I5","I8"]
[3,2,1]
[null,{"$f":"C0!B5","v":""},{"$f":"C0!B9","v":2}]
[169,{"$f":"INC&'INC(1)'!C15","v":"INC1"},{"$f":"INC&'INC(1)'!C18","v":"INC2"},{"$f":"INC&'INC(1)'!C21","v":"INC3"},{"$f":"INC&'INC(1)'!I15","v":"INC4"},{"$f":"INC&'INC(1)'!I18","v":"INC5"},{"$f":"INC&'INC(1)'!I21","v":"INC6"}]
["INC(1)","D16","D19","D22","J16","J19","J22"]
[7,"c","c","c","c","c","c"]
[null,{"$f":"C0!B12","v":""},{"$f":"C0!B13","v":""},{"$f":"C0!B14","v":""},{"$f":"C0!B15","v":40000},{"$f":"C0!B16","v":""},{"$f":"C0!B17","v":""}]
[1,{"$f":"INC&'INC(2)'!C4","v":"INC8"},{"$f":"INC&'INC(2)'!C7","v":"INC9"},{"$f":"INC&'INC(2)'!C10","v":"INC10"},{"$f":"INC&'INC(2)'!C13","v":"INC11"},{"$f":"INC&'INC(2)'!G4","v":"INC12"},{"$f":"INC&'INC(2)'!G7","v":"INC13"},{"$f":"INC&'INC(2)'!G10","v":"INC14"},{"$f":"INC&'INC(2)'!G13","v":"INC15"},{"$f":"INC&'INC(2)'!G16","v":"INC16"}]
["INC(2)","D5","D8","D11","D14","H5","H8","H11","H14","H17"]
[10,"c","c","c","c","c","c","c","c","c"]
[null,{"$f":"C0!B21","v":""},{"$f":"C0!B22","v":""},{"$f":"C0!B23","v":""},{"$f":"C0!B24","v":""},{"$f":"C0!B25","v":""},{"$f":"C0!B26","v":""},{"$f":"C0!B27","v":""},{"$f":"C0!B28","v":""},{"$f":"C0!B29","v":""}]
[1,{"$f":"INC&'INC(2)'!C22","v":"INC17"},{"$f":"INC&'INC(2)'!C25","v":"INC18"},{"$f":"INC&'INC(2)'!C28","v":"INC19"},{"$f":"INC&'INC(2)'!G22","v":"INC20"}]
["INC(2)","D23","D26","D29","H23"]
[5,"c","c","c","c"]
[null,{"$f":"C0!B32","v":""},{"$f":"C0!B33","v":""},{"$f":"C0!B34","v":""},{"$f":"C0!B35","v":""}]
[1,{"$f":"REL&'REL(1)'!C6","v":"REL1"},{"$f":"REL&'REL(1)'!C9","v":"REL2"},{"$f":"REL&'REL(1)'!H6","v":"REL3"},{"$f":"REL&'REL(1)'!H9","v":"REL4"}]
["REL(1)","D7","D10","I7","I10"]
[5,"c","c","c","c"]
[null,{"$f":"IF(C0!B39=0,\"\",C0!B39)","v":""},{"$f":"IF(C0!B41=0,\"\",C0!B41)","v":""},{"$f":"IF(C0!B42=0,\"\",C0!B42)","v":""},{"$f":"IF(C0!B43=0,\"\",C0!B43)","v":""}]
[1,{"$f":"REL&'REL(1)'!C16","v":"REL5"},{"$f":"REL&'REL(1)'!C22","v":"REL7"},{"$f":"REL&'REL(1)'!H16","v":"REL8"},{"$f":"REL&'REL(1)'!H19","v":"REL9"},{"$f":"REL&'REL(1)'!H22","v":"REL10"}]
["REL(1)","D17","D23","I17","I20","I23"]
[6,"c","c","c","c","c"]
[null,{"$f":"IF(C0!B46=0,\"\",C0!B46)","v":""},{"$f":"IF(C0!B48=0,\"\",C0!B48)","v":""},{"$f":"IF(C0!B49=0,\"\",C0!B49)","v":""},{"$f":"IF(C0!B50=0,\"\",C0!B50)","v":""},{"$f":"IF(C0!B51=0,\"\",C0!B51)","v":""}]
[1,{"$f":"REL&'REL(2)'!C4","v":"REL13"}]
["REL(2)","N5"]
[2,false]
[null,{"$f":"C0!B54=\"Y\"","v":false}]
[1,{"$f":"SLR&'REL(2)'!C11","v":"SLR1"},{"$f":"SLR&'REL(2)'!C13","v":"SLRPT"},{"$f":"SLR&'REL(2)'!G11","v":"SLR2"},{"$f":"SLR&'REL(2)'!G15","v":"SLR3"},{"$f":"PGLR&'REL(2)'!C17","v":"PGLRPT"}]
["REL(2)","N12","N13","H12","H16","N25"]
[6,false,3,"c","c",2]
[null,{"$f":"C0!B60=\"Y\"","v":false},{"$f":"C0!B61","v":""},{"$f":"C0!B63","v":""},{"$f":"C0!B64","v":""},{"$f":"C0!B62","v":""}]
[1,{"$f":"'REL(2)'!K23&'REL(2)'!C25","v":"CBC1"}]
["REL(2)","D26"]
[2,"c"]
[null,{"$f":"C0!B67","v":""}]
[1,"WFHP1"]
["REL(2)","D33"]
[2,"c"]
[null,{"$f":"C0!B72","v":""}]
[1,{"$f":"'REL(2)'!K37&'REL(2)'!C39","v":"MAT1-5"},{"$f":"'REL(2)'!K37&'REL(2)'!C45","v":"MATM_O"},{"$f":"'REL(2)'!K37&'REL(2)'!G45","v":"MATM_I"}]
["REL(2)","N51","N55","N56"]
[4,false,false,false]
[null,{"$f":"C0!B75=\"Y\"","v":false},{"$f":"C0!B81=\"Y\"","v":false},{"$f":"C0!B82=\"Y\"","v":false}]
[1,{"$f":"FIN&'REL(2)'!C52","v":"FIN1"}]
["REL(2)","D53"]
[2,"c"]
[null,{"$f":"C0!B85","v":""}]
[1,{"$f":"AOI&AOI!C5","v":"AOI2"},{"$f":"AOI&AOI!G7","v":"AOI3"}]
["AOI","D6","H8"]
[3,"c","c"]
[null,{"$f":"'C1'!B5","v":""},{"$f":"'C1'!B6","v":""}]
[1,{"$f":"AOI&AOI!C13","v":"AOI4"},{"$f":"AOI&AOI!C16","v":"AOI5"},{"$f":"AOI&AOI!C19","v":"AOI6"},{"$f":"AOI&AOI!C22","v":"AOI7"},{"$f":"AOI&AOI!G13","v":"AOI8"},{"$f":"AOI&AOI!G16","v":"AOI9"},{"$f":"AOI&AOI!G19","v":"AOI10"},{"$f":"AOI&AOI!G22","v":"AOI11"}]
["AOI","D14","D17","D20","D23","H14","H17","H20","H23"]
[9,"c","c","c","c","c","c","c","c"]
[null,{"$f":"'C1'!B10","v":""},{"$f":"'C1'!B11","v":""},{"$f":"'C1'!B12","v":""},{"$f":"'C1'!B13","v":""},{"$f":"'C1'!B14","v":""},{"$f":"'C1'!B15","v":""},{"$f":"'C1'!B16","v":""},{"$f":"'C1'!B17","v":""}]
[1,{"$f":"AOI&AOI!C28","v":"AOI12"},{"$f":"AOI&AOI!G28","v":"AOI13"},{"$f":"AOI&AOI!G31","v":"AOI13.1"}]
["AOI","D29","H29","H32"]
[4,"c","c","c"]
[null,{"$f":"'C1'!B21","v":""},{"$f":"'C1'!B22","v":""},{"$f":"'C1'!B23","v":""}]
[1,{"$f":"ASE&ASE!C5","v":"ASE1"}]
["ASE","D6"]
[2,"c"]
[null,{"$f":"'C1'!B29","v":""}]
[1,{"$f":"ASE&ASE!C8","v":"ASE3"},{"$f":"ASE&ASE!C11","v":"ASE4"},{"$f":"ASE&ASE!C14","v":"ASE5"},{"$f":"ASE&ASE!C17","v":"ASE6"}]
["ASE","D9","D12","D15","D18"]
[5,"c","c","c","c"]
[null,{"$f":"'C1'!B33","v":""},{"$f":"'C1'!B34","v":""},{"$f":"'C1'!B35","v":""},{"$f":"'C1'!B36","v":""}]
[1,{"$f":"ASE&ASE!G11","v":"ASE11"},{"$f":"ASE&ASE!G14","v":"ASE12"},{"$f":"ASE&ASE!G17","v":"ASE13"},{"$f":"ASE&ASE!G20","v":"ASE15"}]
["ASE","H12","H15","H18","H21"]
[5,"c","c","c","c"]
[null,{"$f":"'C1'!B44","v":""},{"$f":"'C1'!B45","v":""},{"$f":"'C1'!B46","v":""},{"$f":"'C1'!B48","v":""}]
[1,{"$f":"AOR&AOR!C5","v":"AOR1"},{"$f":"AOR&AOR!C8","v":"AOR2"},{"$f":"AOR&AOR!C11","v":"AOR3"},{"$f":"AOR&AOR!C14","v":"AOR4"},{"$f":"AOR&AOR!C17","v":"AOR5"},{"$f":"AOR&AOR!C20","v":"AOR6"},{"$f":"AOR&AOR!C23","v":"AOR6.1"},{"$f":"AOR&AOR!G5","v":"AOR7"},{"$f":"AOR&AOR!G8","v":"AOR8"},{"$f":"AOR&AOR!G11","v":"AOR9"},{"$f":"AOR&AOR!G14","v":"AOR10"},{"$f":"AOR&AOR!G17","v":"AOR12"}]
["AOR","D6","D9","D12","D15","D18","D21","D24","H6","H9","H12","H15","H18"]
[13,"c","c","c","c","c","c","c","c","c","c","c","c"]
[null,{"$f":"'C1'!B51","v":""},{"$f":"'C1'!B52","v":""},{"$f":"'C1'!B53","v":""},{"$f":"'C1'!B54","v":""},{"$f":"'C1'!B55","v":""},{"$f":"'C1'!B56","v":""},{"$f":"'C1'!B57","v":""},{"$f":"'C1'!B58","v":""},{"$f":"'C1'!B59","v":""},{"$f":"'C1'!B60","v":""},{"$f":"'C1'!B61","v":""},{"$f":"'C1'!B62","v":""}]
[1,{"$f":"\"MCA\"&MCA!$C$4","v":"MCA1"},{"$f":"\"MCA\"&MCA!$C$8","v":"MCA2"},{"$f":"\"MCA\"&MCA!$C$12","v":"MCA3"},{"$f":"\"MCA\"&MCA!$C$16","v":"MCA9"}]
["MCA","F5","F9","F13","F17"]
[5,1,2,1,1]
[null,{"$f":"IF(MCA_IND>1,HLOOKUP(MCA_IND-1,MCA_CONTROL_RANGE,2),\"\")","v":""},{"$f":"IF(MCA_IND>1,HLOOKUP(MCA_IND-1,MCA_CONTROL_RANGE,4),\"\")","v":""},{"$f":"IF(MCA_IND>1,HLOOKUP(MCA_IND-1,MCA_CONTROL_RANGE,6),\"\")","v":""},{"$f":"IF(MCA_IND>1,HLOOKUP(MCA_IND-1,MCA_CONTROL_RANGE,8),\"\")","v":""}]
[1,{"$f":"AIL&AIL!C5","v":"AIL1"},{"$f":"AIL&AIL!G5","v":"AIL6"},{"$f":"AIL&AIL!C11","v":"AIL10"},{"$f":"AIL&AIL!C14","v":"AIL11"},{"$f":"AIL&AIL!C17","v":"AIL11.1"},{"$f":"AIL&AIL!C20","v":"AIL11.2"},{"$f":"AIL&AIL!G11","v":"AIL13"},{"$f":"AIL&AIL!G14","v":"AIL14"},{"$f":"AIL&AIL!G17","v":"AIL15"},{"$f":"AIL&AIL!G20","v":"AIL16"},{"$f":"AIL&AIL!G23","v":"AIL18"}]
["AIL","D6","H6","D12","D15","D18","D21","H12","H15","H18","H21","H24"]
[12,"c","c","c","c","c","c","c","c","c","c","c"]
[null,{"$f":"'C1'!B88","v":""},{"$f":"'C1'!B93","v":""},{"$f":"'C1'!B94","v":""},{"$f":"'C1'!B95","v":""},{"$f":"'C1'!B96","v":""},{"$f":"'C1'!B97","v":""},{"$f":"'C1'!B99","v":""},{"$f":"'C1'!B100","v":""},{"$f":"'C1'!B101","v":""},{"$f":"'C1'!B102","v":""},{"$f":"'C1'!B103","v":""}]
[169,{"$f":"EMP&EMP!C4","v":"EMP1"},{"$f":"EMP&EMP!G4","v":"EMP1.1"},{"$f":"EMP&EMP!C7","v":"EMP2"},{"$f":"EMP&EMP!C10","v":"EMP3"},{"$f":"EMP&EMP!C16","v":"EMP9"},{"$f":"EMP&EMP!C19","v":"EMP10"},{"$f":"EMP&EMP!C22","v":"EMP11"},{"$f":"EMP&EMP!C25","v":"EMP12"},{"$f":"EMP&EMP!G16","v":"EMP13"},{"$f":"EMP&EMP!G19","v":"EMP14"},{"$f":"EMP&EMP!G22","v":"EMP15"},{"$f":"EMP&EMP!G25","v":"EMP16"},{"$f":"EMP&EMP!C30","v":"EMP17"},{"$f":"EMP&EMP!C33","v":"EMP18"},{"$f":"EMP&EMP!G30","v":"EMP19"},{"$f":"EMP&EMP!G33","v":"EMP20"}]
["EMP","D5","H5","D8","D11","D17","D20","D23","D26","H17","H20","H23","H26","D31","D34","H31","H34"]
[17,"c","c","c","c","c","c","c","c","c","c","c","c","c","c","c","c"]
[null,{"$f":"'C2'!B3","v":89201},{"$f":"'C2'!B4","v":""},{"$f":"'C2'!B5","v":14056},{"$f":"'C2'!B6","v":""},{"$f":"'C2'!B18","v":""},{"$f":"'C2'!B19","v":""},{"$f":"'C2'!B20","v":8303},{"$f":"'C2'!B21","v":""},{"$f":"'C2'!B22","v":""},{"$f":"'C2'!B23","v":""},{"$f":"'C2'!B24","v":""},{"$f":"'C2'!B25","v":""},{"$f":"'C2'!B26","v":""},{"$f":"'C2'!B27","v":""},{"$f":"'C2'!B28","v":""},{"$f":"'C2'!B29","v":""}]
[1,{"$f":"EMP&EMP!K4","v":"EMP1"},{"$f":"EMP&EMP!O4","v":"EMP1.1"},{"$f":"EMP&EMP!K7","v":"EMP2"},{"$f":"EMP&EMP!K10","v":"EMP3"},{"$f":"EMP&EMP!K16","v":"EMP9"},{"$f":"EMP&EMP!K19","v":"EMP10"},{"$f":"EMP&EMP!K22","v":"EMP11"},{"$f":"EMP&EMP!K25","v":"EMP12"},{"$f":"EMP&EMP!O16","v":"EMP13"},{"$f":"EMP&EMP!O19","v":"EMP14"},{"$f":"EMP&EMP!O22","v":"EMP15"},{"$f":"EMP&EMP!O25","v":"EMP16"},{"$f":"EMP&EMP!K30","v":"EMP17"},{"$f":"EMP&EMP!K33","v":"EMP18"},{"$f":"EMP&EMP!O30","v":"EMP19"},{"$f":"EMP&EMP!O33","v":"EMP20"}]
["EMP","L5","P5","L8","L11","L17","L20","L23","L26","P17","P20","P23","P26","L31","L34","P31","P34"]
[17,"c","c","c","c","c","c","c","c","c","c","c","c","c","c","c","c"]
[null,{"$f":"'C2'!B32","v":""},{"$f":"'C2'!B33","v":""},{"$f":"'C2'!B34","v":""},{"$f":"'C2'!B35","v":""},{"$f":"'C2'!B47","v":""},{"$f":"'C2'!B48","v":""},{"$f":"'C2'!B49","v":""},{"$f":"'C2'!B50","v":""},{"$f":"'C2'!B51","v":""},{"$f":"'C2'!B52","v":""},{"$f":"'C2'!B53","v":""},{"$f":"'C2'!B54","v":""},{"$f":"'C2'!B55","v":""},{"$f":"'C2'!B56","v":""},{"$f":"'C2'!B57","v":""},{"$f":"'C2'!B58","v":""}]
[1,{"$f":"MOR&MOR!C8","v":"MOR2.1"},{"$f":"MOR&MOR!C15","v":"MOR6"},{"$f":"MOR&MOR!C19","v":"MOR38"},{"$f":"MOR&MOR!G11","v":"MOR17"},{"$f":"MOR&MOR!G15","v":"MOR19"},{"$f":"MOR&MOR!G19","v":"MOR39"}]
["MOR","D9","D16","D20","H12","H16","H20"]
[7,"c","c","c","c","c","c"]
[null,{"$f":"'C2'!B63","v":""},{"$f":"'C2'!B68","v":""},{"$f":"'C2'!B100","v":""},{"$f":"'C2'!B79","v":""},{"$f":"'C2'!B81","v":""},{"$f":"'C2'!B101","v":""}]
[169,{"$f":"SSE&SE!C5","v":"SSE29"},{"$f":"SSE&SE!C8","v":"SSE31"},{"$f":"SSE&SE!C11","v":"SSE33"},{"$f":"SSE&SE!C14","v":"SSE36"},{"$f":"SSE&SE!C17","v":"SSE37"},{"$f":"SSE&SE!C20","v":"SSE38"}]
["SE","D6","D9","D12","L20","L21","D21"]
[7,"c","c","c",false,false,"c"]
[null,{"$f":"'C3'!B37","v":""},{"$f":"'C3'!B39","v":0},{"$f":"'C3'!B41","v":53827},{"$f":"'C3'!B44=\"Y\"","v":false},{"$f":"'C3'!B45=\"Y\"","v":false},{"$f":"'C3'!B46","v":""}]
[1,{"$f":"FSE&SE!G5","v":"FSE73.3"},{"$f":"FSE&SE!G8","v":"FSE73.4"},{"$f":"FSE&SE!G11","v":"FSE74"},{"$f":"FSE&SE!G14","v":"FSE76"},{"$f":"FSE&SE!G17","v":"FSE76.1"},{"$f":"FSE&SE!G20","v":"FSE78"},{"$f":"FSE&SE!G23","v":"FSE81"},{"$f":"FSE&SE!G26","v":"FSE82"},{"$f":"FSE&SE!G29","v":"FSE100"},{"$f":"FSE&SE!G32","v":"FSE101"},{"$f":"FSE&SE!G35","v":"FSE102"}]
["SE","H6","H9","H12","H15","H18","H21","H24","H27","M20","M21","H36"]
[12,"c","c","c","c","c","c","c","c",false,false,"c"]
[null,{"$f":"'C3'!B122","v":""},{"$f":"'C3'!B123","v":""},{"$f":"'C3'!B124","v":""},{"$f":"'C3'!B126","v":""},{"$f":"'C3'!B127","v":""},{"$f":"'C3'!B130","v":""},{"$f":"'C3'!B133","v":""},{"$f":"'C3'!B134","v":""},{"$f":"'C3'!B152=\"Y\"","v":false},{"$f":"'C3'!B153=\"Y\"","v":false},{"$f":"'C3'!B154","v":""}]
[1,{"$f":"LUN&LUN!C4","v":"LUN4"},{"$f":"LUN&LUN!C7","v":"LUN6"},{"$f":"LUN&LUN!C13","v":"LUN8"},{"$f":"LUN&LUN!C16","v":"LUN9"},{"$f":"LUN&LUN!G4","v":"LUN14"},{"$f":"LUN&LUN!G7","v":"LUN15"},{"$f":"LUN&LUN!G10","v":"LUN16"},{"$f":"LUN&LUN!G13","v":"LUN17"},{"$f":"LUN&LUN!K4","v":"LUN51"},{"$f":"LUN&LUN!K7","v":"LUN52"},{"$f":"LUN&LUN!K10","v":"LUN56"},{"$f":"LUN&LUN!K13","v":"LUN63"},{"$f":"LUN&LUN!K16","v":"LUN64"},{"$f":"LUN&LUN!K19","v":"LUN65"}]
["LUN","D5","D8","D14","D17","H5","H8","H11","H14","L5","L8","L11","P19","P20","L20"]
[15,"c","c","c","c","c","c","c","c","c","c","c",false,false,"c"]
[null,{"$f":"'C3'!B161","v":""},{"$f":"'C3'!B163","v":""},{"$f":"'C3'!B164","v":""},{"$f":"'C3'!B165","v":""},{"$f":"'C3'!B169","v":""},{"$f":"'C3'!B170","v":""},{"$f":"'C3'!B171","v":""},{"$f":"'C3'!B172","v":""},{"$f":"'C3'!B205","v":""},{"$f":"'C3'!B206","v":""},{"$f":"'C3'!B210","v":""},{"$f":"'C3'!B217=\"Y\"","v":false},{"$f":"'C3'!B218=\"Y\"","v":false},{"$f":"'C3'!B219","v":""}]
[169,{"$f":"SPS&PS!C4","v":"SPS17"},{"$f":"SPS&PS!C7","v":"SPS20"},{"$f":"SPS&PS!C10","v":"SPS22"},{"$f":"SPS&PS!C13","v":"SPS25"},{"$f":"SPS&PS!C16","v":"SPS26"},{"$f":"SPS&PS!C19","v":"SPS27"},{"$f":"SPS&PS!C22","v":"SPS28"},{"$f":"SPS&PS!C25","v":"SPS30"},{"$f":"SPS&PS!C28","v":"SPS31"}]
["PS","D5","D8","D11","R19","R20","D20","D23","D26","D29"]
[10,"c","c","c",false,false,"c","c","c","c"]
[null,{"$f":"'C4'!B15","v":""},{"$f":"'C4'!B18","v":""},{"$f":"'C4'!B20","v":1844},{"$f":"'C4'!B23=\"Y\"","v":false},{"$f":"'C4'!B24=\"Y\"","v":false},{"$f":"'C4'!B25","v":""},{"$f":"'C4'!B26","v":""},{"$f":"'C4'!B27","v":""},{"$f":"'C4'!B28","v":""}]
[1,{"$f":"FPS&PS!G4","v":"FPS16.3"},{"$f":"FPS&PS!G7","v":"FPS16.4"},{"$f":"FPS&PS!J4","v":"FPS17"},{"$f":"FPS&PS!J7","v":"FPS20"},{"$f":"FPS&PS!G11","v":"FPS22"},{"$f":"FPS&PS!G14","v":"FPS25"},{"$f":"FPS&PS!J14","v":"FPS26"},{"$f":"FPS&PS!M14","v":"FPS27"},{"$f":"FPS&PS!G17","v":"FPS35"},{"$f":"FPS&PS!J17","v":"FPS35.1"},{"$f":"FPS&PS!G20","v":"FPS38"},{"$f":"FPS&PS!J20","v":"FPS39"},"FPS41","FPS41.1","FPS41.2",{"$f":"FPS&PS!G29","v":"FPS47"},{"$f":"FPS&PS!G32","v":"FPS58"},"FPS60","FPS63.1","FPS63.2",{"$f":"FPS&PS!G42","v":"FPS70"},{"$f":"FPS&PS!J42","v":"FPS70.1"},{"$f":"FPS&PS!J52","v":"FPS73"},{"$f":"FPS&PS!G45","v":"FPS76"},{"$f":"FPS&PS!G48","v":"FPS76.1"},{"$f":"FPS&PS!G52","v":"FPS77"},{"$f":"FPS&PS!G55","v":"FPS78"},{"$f":"FPS&PS!J55","v":"FPS79"},{"$f":"FPS&PS!M26","v":"FPSAF1"},{"$f":"FPS&PS!M38","v":"FPSAF2"}]
["PS","H5","H8","K5","K8","H12","S19","S20","N15","H18","K18","H21","K21","H24","K24","N24","H30","H33","H36","K36","N36","H43","K43","K53","H46","H49","H53","H56","K56","N27","N39"]
[31,"c","c","c","c","c",false,false,"c","c","c","c","c","c","c","c","c","c","c","c","c","c","c","c","c","c","c","c","c","c","c"]
[null,{"$f":"'C4'!B44","v":""},{"$f":"'C4'!B45","v":""},{"$f":"'C4'!B46","v":""},{"$f":"'C4'!B49","v":""},{"$f":"'C4'!B53","v":""},{"$f":"'C4'!B56=\"Y\"","v":false},{"$f":"'C4'!B57=\"Y\"","v":false},{"$f":"'C4'!B58","v":""},{"$f":"'C4'!B66","v":""},{"$f":"'C4'!B67","v":""},{"$f":"'C4'!B70","v":""},{"$f":"'C4'!B71","v":""},{"$f":"'C4'!B73","v":""},{"$f":"'C4'!B74","v":""},{"$f":"'C4'!B75","v":""},{"$f":"'C4'!B82","v":""},{"$f":"'C4'!B94","v":""},{"$f":"'C4'!B96","v":""},{"$f":"'C4'!B101","v":""},{"$f":"'C4'!B102","v":""},{"$f":"'C4'!B107","v":""},{"$f":"'C4'!B108","v":""},{"$f":"'C4'!B111","v":""},{"$f":"'C4'!B115","v":""},{"$f":"'C4'!B116","v":""},{"$f":"'C4'!B117","v":""},{"$f":"'C4'!B118","v":""},{"$f":"'C4'!B119","v":""},{"$f":"'C4'!B76","v":""},{"$f":"'C4'!B103","v":""}]
[1,"CL2A","CL2amt","CL2wkamt"]
["NI","D8","D12","O23"]
[4,"c","c",2]
[null,{"$f":"'C8C9C10'!B170","v":""},{"$f":"'C8C9C10'!B170","v":""},{"$f":"'C8C9C10'!B171","v":""}]
[169,"EMPCL1","MORCL1"]
["NI","D20","D27"]
[3,"c","c"]
[null,{"$f":"'C2'!B106","v":37700},{"$f":"'C2'!B109","v":0}]
[1,"NI2_Vol"]
["NI","O24"]
[2,false]
[null,{"$f":"'C8C9C10'!B174=\"Y\"","v":false}]
[1,"NI4_Ex"]
["NI","O25"]
[2,false]
[null,{"$f":"'C8C9C10'!B177=\"Y\"","v":false}]
[1,{"$f":"PRO&PRO!C7","v":"PRO21"},{"$f":"PRO&PRO!G7","v":"PRO22"},{"$f":"PRO&PRO!G10","v":"PRO33"},{"$f":"PRO&PRO!G13","v":"PRO38"},{"$f":"PRO&PRO!G16","v":"PRO39"},{"$f":"PRO&PRO!G19","v":"PRO40"},{"$f":"PRO&PRO!G22","v":"PRO42"},{"$f":"PRO&PRO!G25","v":"PRO44"},{"$f":"PRO&PRO!G28","v":"PRO45"}]
["PRO","D8","H8","H11","H14","H17","H20","H23","H26","H29"]
[10,"c","c","c","c","c","c","c","c","c"]
[null,{"$f":"'C5'!B47","v":""},{"$f":"'C5'!B48","v":""},{"$f":"'C5'!B59","v":""},{"$f":"'C5'!B67","v":""},{"$f":"'C5'!B68","v":""},{"$f":"'C5'!B69","v":""},{"$f":"'C5'!B71","v":""},{"$f":"'C5'!B73","v":""},{"$f":"'C5'!B74","v":""}]
[169,{"$f":"FOR&FOR!C10","v":"FOR2"},{"$f":"FOR&FOR!C18","v":"FOR3"},{"$f":"FOR&FOR!G18","v":"FOR4"},{"$f":"FOR&FOR!G21","v":"FOR4.1"},{"$f":"FOR&FOR!C24","v":"FOR5"},{"$f":"FOR&FOR!G24","v":"FOR6"},{"$f":"FOR&FOR!G27","v":"FOR6.1"},{"$f":"FOR&FOR!C30","v":"FOR7.1"},{"$f":"FOR&FOR!G30","v":"FOR7.2"},{"$f":"FOR&FOR!C33","v":"FOR7.3"},{"$f":"FOR&FOR!G33","v":"FOR7.4"},{"$f":"FOR&FOR!G37","v":"FOR7.5"},{"$f":"FOR&FOR!C40","v":"FOR8"},{"$f":"FOR&FOR!G40","v":"FOR9"},{"$f":"FOR&FOR!G43","v":"FOR9.1"},{"$f":"FOR&FOR!C46","v":"FOR10"},{"$f":"FOR&FOR!G46","v":"FOR11"},{"$f":"FOR&FOR!G49","v":"FOR11.1"},{"$f":"FOR&FOR!C52","v":"FOR12"},{"$f":"FOR&FOR!G52","v":"FOR13"},{"$f":"FOR&FOR!G55&\".0\"","v":"FOR13.0"},{"$f":"FOR&FOR!C58","v":"FOR13.1"},{"$f":"FOR&FOR!G58","v":"FOR13.2"},{"$f":"FOR&FOR!K5","v":"FOR24"},{"$f":"FOR&FOR!O5","v":"FOR24.1"},{"$f":"FOR&FOR!O8","v":"FOR24.2"},{"$f":"FOR&FOR!K10","v":"FOR26"},{"$f":"FOR&FOR!O11","v":"FOR27"},{"$f":"FOR&FOR!K15","v":"FOR29"},{"$f":"FOR&FOR!O15","v":"FOR30"},{"$f":"FOR&FOR!O18","v":"FOR30.1"},{"$f":"FOR&FOR!K21","v":"FOR31"},{"$f":"FOR&FOR!O21","v":"FOR32"},{"$f":"FOR&FOR!K27","v":"FOR39"},{"$f":"FOR&FOR!O27","v":"FOR40"},{"$f":"FOR&FOR!K35","v":"FOR41"},{"$f":"FOR&FOR!K39","v":"FOR42"},{"$f":"FOR&FOR!K42","v":"FOR43"},{"$f":"FOR&FOR!O35","v":"FOR44"},{"$f":"FOR&FOR!O39","v":"FOR45"},{"$f":"FOR&FOR!K47","v":"FOR47"},{"$f":"FOR&FOR!O47","v":"FOR48"},{"$f":"FOR&FOR!O50","v":"FOR48.1"},{"$f":"FOR&FOR!K53","v":"FOR49"},{"$f":"FOR&FOR!O53","v":"FOR49.1"},{"$f":"FOR&FOR!K58","v":"FOR50"},{"$f":"FOR&FOR!O58","v":"FOR51"},{"$f":"FOR&FOR!O61","v":"FOR51.1"},{"$f":"FOR&FOR!R7","v":"FOR52"},{"$f":"FOR&FOR!V7","v":"FOR53"},{"$f":"FOR&FOR!V10","v":"FOR53.1"},{"$f":"FOR&FOR!R13","v":"FOR54"},{"$f":"FOR&FOR!V13","v":"FOR54.1"},{"$f":"FOR&FOR!R16","v":"FOR55"},{"$f":"FOR&FOR!V16","v":"FOR55.1"},{"$f":"FOR&FOR!R19","v":"FOR56"},{"$f":"FOR&FOR!V19","v":"FOR56.1"},{"$f":"FOR&FOR!R22","v":"FOR57"},{"$f":"FOR&FOR!V22","v":"FOR57.1"},{"$f":"FOR&FOR!R25","v":"FOR58"},{"$f":"FOR&FOR!V25","v":"FOR58.1"},{"$f":"FOR&FOR!R28","v":"FOR59"},{"$f":"FOR&FOR!V28","v":"FOR59.1"},{"$f":"FOR&FOR!R31","v":"FOR60"},{"$f":"FOR&FOR!V31","v":"FOR60.1"},{"$f":"FOR&FOR!R34","v":"FOR61"},{"$f":"FOR&FOR!V34","v":"FOR61.1"},{"$f":"FOR&FOR!R37","v":"FOR62"},{"$f":"FOR&FOR!V37","v":"FOR62.1"},{"$f":"FOR&FOR!R40","v":"FOR63"},{"$f":"FOR&FOR!V40","v":"FOR63.1"},{"$f":"FOR&FOR!R43","v":"FOR64"},{"$f":"FOR&FOR!V43","v":"FOR64.1"},"Swiss"]
["FOR","D11","D19","H19","H22","D25","H25","H28","D31","H31","D34","H34","H38","D41","H41","H44","D47","H47","H50","D53","H53","H56","D59","H59","L6","P6","P9","L11","P12","L16","P16","P19","L22","P22","L28","P28","L36","L40","L43","P36","P40","L48","P48","P51","L54","P54","L59","P59","P62","S8","W8","W11","S14","W14","S17","W17","S20","W20","S23","W23","S26","W26","S29","W29","S32","W32","S35","W35","S38","W38","S41","W41","S44","W44","Z20"]
[75,"c","c","c","c","c","c","c","c","c","c","c","c","c","c","c","c","c","c","c","c","c","c","c","c","c","c","c","c","c","c","c","c","c","c","c","c","c","c","c","c","c","c","c","c","c","c","c","c","c","c","c","c","c","c","c","c","c","c","c","c","c","c","c","c","c","c","c","c","c","c","c","c","c",false]
[null,{"$f":"'C6'!B3","v":""},{"$f":"'C6'!B16","v":""},{"$f":"'C6'!B17","v":14963},{"$f":"'C6'!B18","v":""},{"$f":"'C6'!B49","v":""},{"$f":"'C6'!B50","v":""},{"$f":"'C6'!B51","v":""},{"$f":"'C6'!B58","v":""},{"$f":"'C6'!B59","v":""},{"$f":"'C6'!B66","v":""},{"$f":"'C6'!B67","v":""},{"$f":"'C6'!B68","v":""},{"$f":"'C6'!B75","v":""},{"$f":"'C6'!B76","v":""},{"$f":"'C6'!B77","v":""},{"$f":"'C6'!B84","v":""},{"$f":"'C6'!B85","v":""},{"$f":"'C6'!B86","v":""},{"$f":"'C6'!B93","v":""},{"$f":"'C6'!B94","v":""},{"$f":"'C6'!B95","v":""},{"$f":"'C6'!B96","v":""},{"$f":"'C6'!B97","v":""},{"$f":"'C6'!B113","v":""},{"$f":"'C6'!B114","v":""},{"$f":"'C6'!B115","v":""},{"$f":"'C6'!B123","v":""},{"$f":"'C6'!B124","v":""},{"$f":"'C6'!B126","v":""},{"$f":"'C6'!B127","v":""},{"$f":"'C6'!B128","v":""},{"$f":"'C6'!B129","v":""},{"$f":"'C6'!B130","v":""},{"$f":"'C6'!B153","v":""},{"$f":"'C6'!B154","v":""},{"$f":"'C6'!B155","v":""},{"$f":"'C6'!B156","v":""},{"$f":"'C6'!B157","v":""},{"$f":"'C6'!B158","v":""},{"$f":"'C6'!B159","v":""},{"$f":"'C6'!B167","v":""},{"$f":"'C6'!B168","v":""},{"$f":"'C6'!B169","v":""},{"$f":"'C6'!B170","v":""},{"$f":"'C6'!B171","v":""},{"$f":"'C6'!B178","v":""},{"$f":"'C6'!B179","v":""},{"$f":"'C6'!B180","v":""},{"$f":"'C6'!B187","v":""},{"$f":"'C6'!B188","v":""},{"$f":"'C6'!B189","v":""},{"$f":"'C6'!B190","v":""},{"$f":"'C6'!B191","v":""},{"$f":"'C6'!B192","v":""},{"$f":"'C6'!B193","v":""},{"$f":"'C6'!B194","v":""},{"$f":"'C6'!B195","v":""},{"$f":"'C6'!B196","v":""},{"$f":"'C6'!B197","v":""},{"$f":"'C6'!B198","v":""},{"$f":"'C6'!B199","v":""},{"$f":"'C6'!B200","v":""},{"$f":"'C6'!B201","v":""},{"$f":"'C6'!B202","v":""},{"$f":"'C6'!B203","v":""},{"$f":"'C6'!B204","v":""},{"$f":"'C6'!B205","v":""},{"$f":"'C6'!B206","v":""},{"$f":"'C6'!B207","v":""},{"$f":"'C6'!B208","v":""},{"$f":"'C6'!B209","v":""},{"$f":"'C6'!B210","v":""},{"$f":"'C6'!B211","v":""}]
[169,"item 1 country","item 1 type","item 1 rate","item 1 inc","item 1 tax","item 1 dedn","item 1 ftcr","item 2 country","item 2 type","item 2 rate","item 2 inc","item 2 tax","item 2 dedn","item 2 ftcr","item 3 country","item 3 type","item 3 rate","item 3 inc","item 3 tax","item 3 dedn","item 3 ftcr","item 4 country","item 4 type","item 4 rate","item 4 inc","item 4 tax","item 4 dedn","item 4 ftcr","item 5 country","item 5 type","item 5 rate","item 5 inc","item 5 tax","item 5 dedn","item 5 ftcr","item 6 country","item 6 type","item 6 rate","item 6 inc","item 6 tax","item 6 dedn","item 6 ftcr","item 7 country","item 7 type","item 7 rate","item 7 inc","item 7 tax","item 7 dedn","item 7 ftcr","item 8 country","item 8 type","item 8 rate","item 8 inc","item 8 tax","item 8 dedn","item 8 ftcr","item 9 country","item 9 type","item 9 rate","item 9 inc","item 9 tax","item 9 dedn","item 9 ftcr","item 10 country","item 10 type","item 10 rate","item 10 inc","item 10 tax","item 10 dedn","item 10 ftcr"]
["FTCR","E10","R11","T11","G10","I10","M10","I12","E14","R12","T12","G14","I14","M14","I16","E18","R13","T13","G18","I18","M18","I20","E22","R14","T14","G22","I22","M22","I24","E26","R15","T15","G26","I26","M26","I28","E30","R16","T16","G30","I30","M30","I32","E34","R17","T17","G34","I34","M34","I36","E38","R18","T18","G38","I38","M38","I40","E42","R19","T19","G42","I42","M42","I44","E46","R20","T20","G46","I46","M46","I48"]
[71,"c",1,1,"c","c","c","c","c",1,1,"c","c","c","c","c",1,1,"c","c","c","c","c",1,1,"c","c","c","c","c",1,1,"c","c","c","c","c",1,1,"c","c","c","c","c",1,1,"c","c","c","c","c",1,1,"c","c","c","c","c",1,1,"c","c","c","c","c",1,1,"c","c","c","c"]
[null,{"$f":"'C6'!B220","v":""},{"$f":"'C6'!B218","v":1},{"$f":"'C6'!B219","v":1},{"$f":"'C6'!B221","v":0},{"$f":"'C6'!B222","v":0},null,null,{"$f":"'C6'!B225","v":""},{"$f":"'C6'!B223","v":1},{"$f":"'C6'!B224","v":1},{"$f":"'C6'!B226","v":0},{"$f":"'C6'!B227","v":0},null,null,{"$f":"'C6'!B230","v":""},{"$f":"'C6'!B228","v":1},{"$f":"'C6'!B229","v":1},{"$f":"'C6'!B231","v":0},{"$f":"'C6'!B232","v":0},null,null,{"$f":"'C6'!B235","v":""},{"$f":"'C6'!B233","v":1},{"$f":"'C6'!B234","v":1},{"$f":"'C6'!B236","v":0},{"$f":"'C6'!B237","v":0},null,null,{"$f":"'C6'!B240","v":""},{"$f":"'C6'!B238","v":1},{"$f":"'C6'!B239","v":1},{"$f":"'C6'!B241","v":0},{"$f":"'C6'!B242","v":0},null,null,{"$f":"'C6'!B245","v":""},{"$f":"'C6'!B243","v":1},{"$f":"'C6'!B244","v":1},{"$f":"'C6'!B246","v":0},{"$f":"'C6'!B247","v":0},null,null,{"$f":"'C6'!B250","v":""},{"$f":"'C6'!B248","v":1},{"$f":"'C6'!B249","v":1},{"$f":"'C6'!B251","v":0},{"$f":"'C6'!B252","v":0},null,null,{"$f":"'C6'!B255","v":""},{"$f":"'C6'!B253","v":1},{"$f":"'C6'!B254","v":1},{"$f":"'C6'!B256","v":0},{"$f":"'C6'!B257","v":0},null,null,{"$f":"'C6'!B260","v":""},{"$f":"'C6'!B258","v":1},{"$f":"'C6'!B259","v":1},{"$f":"'C6'!B261","v":0},{"$f":"'C6'!B262","v":0},null,null,{"$f":"'C6'!B265","v":""},{"$f":"'C6'!B263","v":1},{"$f":"'C6'!B264","v":1},{"$f":"'C6'!B266","v":0},{"$f":"'C6'!B267","v":0}]
[1,{"$f":"TRU&TRU!C6","v":"TRU1"},{"$f":"TRU&TRU!G6","v":"TRU2"},{"$f":"TRU&TRU!C11","v":"TRU3"},{"$f":"TRU&TRU!C15","v":"TRU4"},{"$f":"TRU&TRU!G11","v":"TRU5"},{"$f":"TRU&TRU!C20","v":"TRU7"},{"$f":"TRU&TRU!C24","v":"TRU8"},{"$f":"TRU&TRU!C28","v":"TRU9"},{"$f":"TRU&TRU!C32","v":"TRU10"},{"$f":"TRU&TRU!G20","v":"TRU11"},{"$f":"TRU&TRU!G24","v":"TRU12"},{"$f":"TRU&TRU!G28","v":"TRU13"},{"$f":"TRU&TRU!G32","v":"TRU14"},{"$f":"TRU&TRU!G36","v":"TRU15"},{"$f":"TRU&TRU!K6","v":"TRU16"},{"$f":"TRU&TRU!K11","v":"TRU17"},{"$f":"TRU&TRU!K15","v":"TRU18"},{"$f":"TRU&TRU!K20","v":"TRU18.1"},{"$f":"TRU&TRU!O6","v":"TRU19"},{"$f":"TRU&TRU!K24","v":"TRU22"},{"$f":"TRU&TRU!K28","v":"TRU22.1"},{"$f":"TRU&TRU!O24","v":"TRU23"},{"$f":"TRU&TRU!K35","v":"TRU24"},"TRU25","TRU25.1"]
["TRU","D7","H7","D12","D16","H12","D21","D25","D29","D33","H21","H25","H29","H33","H37","L7","L12","L16","L21","P7","L25","L29","P25","L36","L41","P44"]
[26,"c","c","c","c","c","c","c","c","c","c","c","c","c","c","c","c","c","c","c","c","c","c","c","c","c"]
[null,{"$f":"'C7'!B2","v":""},{"$f":"'C7'!B3","v":""},{"$f":"'C7'!B4","v":""},{"$f":"'C7'!B5","v":""},{"$f":"'C7'!B6","v":""},{"$f":"'C7'!B8","v":""},{"$f":"'C7'!B9","v":""},{"$f":"'C7'!B10","v":""},{"$f":"'C7'!B11","v":""},{"$f":"'C7'!B12","v":""},{"$f":"'C7'!B13","v":""},{"$f":"'C7'!B14","v":""},{"$f":"'C7'!B15","v":""},{"$f":"'C7'!B16","v":""},{"$f":"'C7'!B17","v":""},{"$f":"'C7'!B18","v":""},{"$f":"'C7'!B19","v":""},{"$f":"'C7'!B20","v":""},{"$f":"'C7'!B21","v":""},{"$f":"'C7'!B22","v":""},{"$f":"'C7'!B23","v":""},{"$f":"'C7'!B24","v":""},{"$f":"'C7'!B25","v":""},{"$f":"'C7'!B26","v":""},{"$f":"'C7'!B27","v":""}]
[169,{"$f":"CGT&CGT!C4","v":"CGT6"},{"$f":"CGT&CGT!C7","v":"CGT6.1"},{"$f":"CGT&CGT!C10","v":"CGT7"},{"$f":"CGT&CGT!G4","v":"CGT10"},{"$f":"CGT&CGT!G10","v":"CGT12"},{"$f":"CGT&CGT!C13","v":"CGT13B"},{"$f":"CGT&CGT!G13","v":"CGT13C"},{"$f":"CGT&CGT!C18","v":"CGT13.4"},{"$f":"CGT&CGT!C21","v":"CGT13.5"},{"$f":"CGT&CGT!G18","v":"CGT13.8"},{"$f":"CGT&CGT!C26","v":"CGT17"},{"$f":"CGT&CGT!C29&\".0\"","v":"CGT17.0"},{"$f":"CGT&CGT!G26","v":"CGT19"},{"$f":"CGT&CGT!G32","v":"CGT22"},{"$f":"CGT&CGT!C36","v":"CGT26"},{"$f":"CGT&CGT!C39","v":"CGT26.1"},{"$f":"CGT&CGT!G36","v":"CGT27"},{"$f":"CGT&CGT!G39","v":"CGT30"},{"$f":"CGT&CGT!C43","v":"CGT34"},{"$f":"CGT&CGT!G43","v":"CGT34.1"},{"$f":"CGT&CGT!C46","v":"CGT35"},{"$f":"CGT&CGT!G46","v":"CGT38"},{"$f":"CGT&CGT!C49","v":"CGT41"},{"$f":"CGT&CGT!C52","v":"CGT42"},{"$f":"CGT&CGT!G52","v":"CGT43"},{"$f":"CGT&CGT!L4","v":"CGT45"},{"$f":"CGT&CGT!P4","v":"CGT46"},{"$f":"CGT&CGT!P8","v":"CGT48"},{"$f":"CGT&CGT!P11","v":"CGT49"},{"$f":"CGT&CGT!P15","v":"CGT50"},{"$f":"CGT&CGT!L18","v":"CGT51"},{"$f":"CGT&CGT!P18","v":"CGT52"},{"$f":"CGT&CGT!L26","v":"CGT52.1"},{"$f":"CGT&CGT!L34","v":"CGT52.2"},{"$f":"CGT&CGT!P26","v":"CGT52.3"},{"$f":"CGT&CGT!P30","v":"CGT52.4"},{"$f":"CGT&CGT!P34","v":"CGT52.5"}]
["CGT","D5","D8","D11","H5","H11","D14","H14","D19","D22","H19","D27","D30","H27","H33","D37","D40","H37","H40","D44","H44","D47","H47","D50","D53","H53","M5","Q5","Q9","Q12","Q16","M19","Q19","M27","M35","W24","Q31","Q35"]
[38,"c","c","c","c","c","c","c","c","c","c","c","c","c","c","c","c","c","c","c","c","c","c","c","c","c","c","c","c","c","c","c","c","c","c",false,"c","c"]
[null,{"$f":"'C8C9C10'!B8","v":29077},{"$f":"'C8C9C10'!B9","v":""},{"$f":"'C8C9C10'!B10","v":""},{"$f":"'C8C9C10'!B13","v":""},{"$f":"'C8C9C10'!B15","v":""},{"$f":"'C8C9C10'!B18","v":""},{"$f":"'C8C9C10'!B19","v":""},{"$f":"'C8C9C10'!B23","v":""},{"$f":"'C8C9C10'!B24","v":""},{"$f":"'C8C9C10'!B27","v":""},{"$f":"'C8C9C10'!B31","v":""},{"$f":"'C8C9C10'!B32","v":""},{"$f":"'C8C9C10'!B38","v":""},{"$f":"'C8C9C10'!B41","v":""},{"$f":"'C8C9C10'!B45","v":7409},{"$f":"'C8C9C10'!B46","v":""},{"$f":"'C8C9C10'!B47","v":""},{"$f":"'C8C9C10'!B50","v":""},{"$f":"'C8C9C10'!B54","v":""},{"$f":"'C8C9C10'!B55","v":""},{"$f":"'C8C9C10'!B56","v":""},{"$f":"'C8C9C10'!B59","v":""},{"$f":"'C8C9C10'!B62","v":""},{"$f":"'C8C9C10'!B63","v":""},{"$f":"'C8C9C10'!B64","v":""},{"$f":"'C8C9C10'!B66","v":""},{"$f":"'C8C9C10'!B67","v":""},{"$f":"'C8C9C10'!B69","v":""},{"$f":"'C8C9C10'!B70","v":""},{"$f":"'C8C9C10'!B71","v":""},{"$f":"'C8C9C10'!B73","v":""},{"$f":"'C8C9C10'!B74","v":""},{"$f":"'C8C9C10'!B75","v":""},{"$f":"'C8C9C10'!B76","v":""},{"$f":"'C8C9C10'!B77=\"Y\"","v":false},{"$f":"'C8C9C10'!B78","v":""},{"$f":"'C8C9C10'!B79","v":""}]
[1,{"$f":"NRD&NRD!C5","v":"NRD1"},{"$f":"NRD&NRD!C9","v":"NRD15"},{"$f":"NRD&NRD!C12","v":"NRD16"},{"$f":"NRD&NRD!D16","v":"NRD20"},{"$f":"NRD&NRD!D19","v":"NRD21"},{"$f":"NRD&NRD!D22","v":"NRD22"},"NRCAL",{"$f":"NRD&NRD!H5","v":"NRD28"},{"$f":"NRD&NRD!H8","v":"NRD29"},{"$f":"NRD&NRD!H12","v":"NRD40"},{"$f":"NRD&NRD!H15","v":"NRD49"},{"$f":"NRD&NRD!H19","v":"NRD51"},{"$f":"NRD&NRD!K19","v":"NRD52"}]
["NRD","Q4","Q8","Q9","E17","E20","E23","Q6","Q10","Q11","Q18","I16","I20","L20"]
[14,false,false,false,"c","c","c",false,false,false,false,"c","c","c"]
[null,{"$f":"'C8C9C10'!B89=\"Y\"","v":false},{"$f":"'C8C9C10'!B105=\"Y\"","v":false},{"$f":"'C8C9C10'!B106=\"Y\"","v":false},{"$f":"'C8C9C10'!B110","v":""},{"$f":"'C8C9C10'!B111","v":""},{"$f":"'C8C9C10'!B112","v":""},false,{"$f":"'C8C9C10'!B121=\"Y\"","v":false},{"$f":"'C8C9C10'!B122=\"Y\"","v":false},{"$f":"'C8C9C10'!B133=\"Y\"","v":false},{"$f":"'C8C9C10'!B140","v":""},{"$f":"'C8C9C10'!B142","v":""},{"$f":"'C8C9C10'!B143","v":""}]
[1,{"$f":"CAL&CAL!C6","v":"CAL7"},{"$f":"CAL&CAL!C9","v":"CAL8"},{"$f":"CAL&CAL!G9","v":"CAL9"},{"$f":"CAL&CAL!C14","v":"CAL10"},{"$f":"CAL&CAL!G14","v":"CAL11"},{"$f":"CAL&CAL!C19","v":"CAL12"},{"$f":"CAL&CAL!G19","v":"CAL13"},{"$f":"CAL&CAL!C22","v":"CAL14"},{"$f":"CAL&CAL!G22","v":"CAL15"},{"$f":"CAL&CAL!G25","v":"CAL16"}]
["CAL","D7","D10","H10","K15","H15","D20","H20","D23","H23","H26"]
[11,"c","c","c",false,"c","c","c","c","c","c"]
[null,{"$f":"'C8C9C10'!B156","v":""},{"$f":"'C8C9C10'!B157","v":""},{"$f":"'C8C9C10'!B158","v":""},{"$f":"'C8C9C10'!B159","v":""},{"$f":"'C8C9C10'!B160","v":""},{"$f":"'C8C9C10'!B161","v":""},{"$f":"'C8C9C10'!B162","v":""},{"$f":"'C8C9C10'!B163","v":""},{"$f":"'C8C9C10'!B164","v":""},{"$f":"'C8C9C10'!B165","v":""}]
[null,null,null,null,null,null,null,null,"SA151","In-Year","EMP","MOR","SE","LUN","PS","NI","PRO","FOR","FTCR","TRU","CGT","NRD","CAL","AOI","ASE","AOR","MCA","AIL"]
["Add pages","C4","C5","C6","C7","G5","I5","I36","M24","M35","N7","N8","N9","N10","N11","N12","P7","P8","P8","P9","P10","P11","P12","R7","R8","R9","R10","R11"]
[28,"c","c","c","c","c","c","c",false,false,false,false,false,false,false,false,false,false,false,false,false,false,false,false,false,false,false,false]
[null,null,null,null,null,null,null,null,null,null,{"$f":"OR(EMP_A_IND>1, EMP_B_IND>1)","v":true},{"$f":"MOR_IND>1","v":false},{"$f":"OR(SE_A_IND>1,SE_B_IND>1)","v":true},{"$f":"LUN_IND>1","v":false},{"$f":"OR(PS_A_IND>1,PS_B_IND>1)","v":true},{"$f":"OR(NI2_IND>1,NI1_IND>1,NI2Vol_IND>1,NI4Ex_IND>1)","v":true},{"$f":"PRO_IND>1","v":false},{"$f":"FOR_IND>1","v":true},{"$f":"TCR_IND>1","v":true},{"$f":"TRU_IND>1","v":false},{"$f":"CGT_IND>1","v":true},{"$f":"NRD_IND>1","v":false},{"$f":"CAL_IND>1","v":false},{"$f":"OR(AOI_A_IND>1,AOI_B_IND> 1,AOI_C_IND> 1)","v":false},{"$f":"OR(ASE_A_IND>1,ASE_B_IND> 1,ASE_C_IND> 1)","v":false},{"$f":"AOR_IND>1","v":false},{"$f":"MCA_IND>1","v":false},{"$f":"AIL_IND>1","v":false}]
[null,"DoB","View","TC ref","FIN1"]
["Selector","A24","A34","F4","H4"]
[5,7,false,"c","c"]
[]
[null,"Nic X","NIC2 Vol"]
["More Select","A21","A23"]
[3,false,false]

{"sheet":"C0","index":9,"n_rows":110,"n_cols":280,"rows_kept":110,"cut":false,"hidden":true,"merged":[]}
[null,null,null,null,1,2,3,4,5,6,7,8,9,10,11,12,13,14,15,16,17,18,19,20,21,22,23,24,25,26,27,28,29,30,31,32,33,34,35,36,37,38,39,40,41,42,43,44,45,46,47,48,49,50,51,52,53,54,55,56,57,58,59,60,61,62,63,64,65,66,67,68,69,70,71,72,73,74,75,76,77,78,79,80,81,82,83,84,85,86,87,88,89,90,91,92,93,94,95,96,97,98,99,100,101,102,103,104,105,106,107,108,109,110,111,112,113,114,115,116,117,118,119,120,121,122,123,124,125,126,127,128,129,130,131,132,133,134,135,136,137,138,139,140,141,142,143,144,145,146,147,148,149,150,151,152,153,154,155,156,157,158,159,160,161,162,163,164,165,166,167,168,169,170,171,172,173,174,175,176,177,178,179,180,181,182,183,184,185,186,187,188,189,190,191,192,193,194,195,196,197,198,199,200,201,202,203,204,205,206,207,208,209,210,211,212,213,214,215,216,217,218,219,220,221,222,223,224,225,226,227,228,229,230,231,232,233,234,235,236,237,238,239,240,241,242,243,244,245,246,247,248,249,250,251,252,253,254,255,256,257,258,259,260,261,262,263,264,265,266,267,268,269,270,271,272,273,null," Validation","Type"]
[null,null,"Your personal details",null,null,null,null,null,null,null,null,null,null,null,null,null,null,null,null,null,null,null,null,null,null,null,null,null,null,null,null,null,null,null,null,null,null,null,null,null,null,null,null,null,null,null,null,null,null,null,null,null,null,null,null,null,null,null,null,null,null,null,null,null,null,null,null,null,null,null,null,null,null,null,null,null,null,null,null,null,null,null,null,null,null,null,null,null,null,null,null,null,null,null,null,null,null,null,null,null,null,null,null,null,null,null,null,null,null,null,null,null,null,null,null,null,null,null,null,null,null,null,null,null,null,null,null,null,null,null,null,null,null,null,null,null,null,null,null,null,null,null,null,null,null,null,null,null,null,null,null,null,null,null,null,null,null,null,null,null,null,null,null,null,null,null,null,null,null,null,null,null,null,null,null,null,null,null,null,null,null,null,null,null,null,null,null,null,null,null,null,null,null,null,null,null,null,null,null,null,null,null,null,null,null,null,null,null,null,null,null,null,null,null,null,null,null,null,null,null,null,null,null,null,null,null,null,null,null,null,null,null,null,null,null,null,null,null,null,null,null,null,null,null,null,null,null,null,null,null,null,null,null,null,null,null,null,null,null,null,null,null,null,null,null,null,null,null,null,null,null,null,null,null,null,null,null,null," Validation"]
["row",{"$f":"\"selected \"&YPD_IND-1","v":"selected 168"},"YPD",null,1,2,3,4,5,6,7,8,9,10,11,12,13,14,15,16,17,18,19,20,21,22,23,24,25,26,27,28,29,30,31,32,33,34,35,36,37,38,39,40,41,42,43,44,45,46,47,48,49,50,51,52,53,54,55,56,57,58,59,60,61,62,63,64,65,66,67,68,69,70,71,72,73,74,75,76,77,78,79,80,81,82,83,84,85,86,87,88,89,90,91,92,93,94,95,96,97,98,99,100,101,102,103,104,105,106,107,108,109,110,111,112,113,114,115,116,117,118,119,120,121,122,123,124,125,126,127,128,129,130,131,132,133,134,135,136,137,138,139,140,141,142,143,144,145,146,147,148,149,150,151,152,153,154,155,156,157,158,159,160,161,162,163,164,165,166,167,168,169,170,171,172,173,174,175,176,177,178,179,180,181,182,183,184,185,186,187,188,189,190,191,192,193,194,195,196,197,198,199,200,201,202,203,204,205,206,207,208,209,210,211,212,213,214,215,216,217,218,219,220,221,222,223,224,225,226,227,228,229,230,231,232,233,234,235,236,237,238,239,240,241,242,243,244,245,246,247,248,249,250,251,252,253,254,255,256,257,258,259,260,261,262,263,264,265,266,267,268,269,270,271,272,273,null,null,"Type"]
[2,{"$f":"IF(YPD_IND>1,IF(HLOOKUP(YPD_IND-1,YPD_RANGE,A4)=\"\",\"\",HLOOKUP(YPD_IND-1,YPD_RANGE,A4)),\"\")","v":"23/04/1987"},"YPD1","Your date of birth","not present","1948-11-17","17/11/1980","17/11/1980","17/11/1980","03/01/1957",{"$f":"\"05/03/\"&Tax_year_end-72","v":"05/03/1954"},{"$f":"\"03/06/\"&MCA_year-1","v":"03/06/1934"},"17/11/1980","17/11/1980",{"$f":"\"03/06/\"&MCA_year-1","v":"03/06/1934"},{"$f":"\"03/06/\"&MCA_year-1","v":"03/06/1934"},{"$f":"\"03/06/\"&MCA_year-1","v":"03/06/1934"},"not present","not present","17/11/1980","not present","not present","17/11/1980","17/11/1980","17/11/1980","17/11/1980","not present","not present","not present",{"$f":"\"02/05/\"&Tax_year_end-15","v":"02/05/2011"},"17/11/1980","17/11/1980",{"$f":"\"02/05/\"&Tax_year_end-15","v":"02/05/2011"},"17/11/1980","17/11/1980","17/11/1980",{"$f":"\"17/11/\"&Tax_year_end-31","v":"17/11/1995"},"17/11/1980",{"$f":"\"17/11/\"&Tax_year_end-67","v":"17/11/1959"},{"$f":"\"05/03/\"&Tax_year_end-76","v":"05/03/1950"},{"$f":"\"03/01/\"&Tax_year_end-67","v":"03/01/1959"},{"$f":"\"03/01/\"&Tax_year_end-50","v":"03/01/1976"},"03/01/1957",{"$f":"\"03/01/\"&Tax_year_end-50","v":"03/01/1976"},"not present","not present","03/01/1957","not present",{"$f":"\"03/06/\"&MCA_year-1","v":"03/06/1934"},{"$f":"\"03/06/\"&MCA_year-1","v":"03/06/1934"},"17/11/1980","17/11/1980","not present",{"$f":"\"17/09/\"&Tax_year_end-79","v":"17/09/1947"},"not present",{"$f":"\"03/01/\"&Tax_year_end-58","v":"03/01/1968"},{"$f":"\"17/11/\"&Tax_year_end-46","v":"17/11/1980"},{"$f":"\"17/11/\"&Tax_year_end-78","v":"17/11/1948"},{"$f":"\"10/09/\"&Tax_year_end-43","v":"10/09/1983"},{"$f":"\"22/02/\"&MCA_year+1","v":"22/02/1936"},{"$f":"\"22/02/\"&MCA_year+1","v":"22/02/1936"},{"$f":"\"08/06/\"&Tax_year_end-39","v":"08/06/1987"},"05/03/1945","17/11/1980",{"$f":"\"22/02/\"&Tax_year_end-80","v":"22/02/1946"},"05/03/1945","05/03/1945",{"$f":"\"18/01/\"&Tax_year_end-73","v":"18/01/1953"},{"$f":"\"03/06/\"&Tax_year_end-77","v":"03/06/1949"},{"$f":"\"03/06/\"&Tax_year_end-76","v":"03/06/1950"},{"$f":"\"07/07/\"&Tax_year_end-76","v":"07/07/1950"},{"$f":"\"28/05/\"&Tax_year_end-61","v":"28/05/1965"},"05/03/1945",{"$f":"\"03/06/\"&MCA_year-1","v":"03/06/1934"},{"$f":"\"03/06/\"&MCA_year-1","v":"03/06/1934"},{"$f":"\"03/06/\"&MCA_year-1","v":"03/06/1934"},{"$f":"\"03/06/\"&MCA_year-1","v":"03/06/1934"},"05/03/1945","05/03/1945","17/11/1980","17/11/1980",{"$f":"\"29/06/\"&Tax_year_end-71","v":"29/06/1955"},"03/01/1957",{"$f":"\"03/06/\"&MCA_year-1","v":"03/06/1934"},"17/11/1980",{"$f":"\"03/06/\"&MCA_year-1","v":"03/06/1934"},"05/03/1945",{"$f":"\"07/06/\"&Tax_year_end-76","v":"07/06/1950"},{"$f":"\"07/06/\"&Tax_year_end-65","v":"07/06/1961"},"not present",{"$f":"\"12/03/\"&Tax_year_end-79","v":"12/03/1947"},{"$f":"\"20/09/\"&Tax_year_end-79","v":"20/09/1947"},"17/11/1980",{"$f":"\"12/03/\"&Tax_year_end-77","v":"12/03/1949"},"17/11/1980","17/11/1980","17/11/1980","17/11/1980","17/11/1980",{"$f":"\"03/03/\"&Tax_year_end-58","v":"03/03/1968"},"17/11/1980",{"$f":"\"08/02/\"&Tax_year_end-77","v":"08/02/1949"},"17/11/1980","17/11/1980","17/11/1980","17/11/1980","not present",{"$f":"\"03/01/\"&Tax_year_end-59","v":"03/01/1967"},"03/01/1957",{"$f":"\"31/08/\"&Tax_year_end-57","v":"31/08/1969"},"17/11/1980","05/03/1945","05/03/1945",{"$f":"\"14/04/\"&Tax_year_end-68","v":"14/04/1958"},"03/01/1957","not present","17/11/1980","17/11/1980",{"$f":"\"19/08/\"&Tax_year_end-45","v":"19/08/1981"},"not present","03/01/1957",{"$f":"\"09/06/\"&Tax_year_end-56","v":"09/06/1970"},{"$f":"\"19/08/\"&Tax_year_end-45","v":"19/08/1981"},"not present","17/11/1980","not present",{"$f":"\"15/02/\"&Tax_year_end-61","v":"15/02/1965"},{"$f":"\"18/05/\"&Tax_year_end-48","v":"18/05/1978"},{"$f":"\"20/03/\"&Tax_year_end-15","v":"20/03/2011"},{"$f":"\"14/05/\"&Tax_year_end-43","v":"14/05/1983"},"not present","03/01/1957","not present",{"$f":"\"05/11/\"&Tax_year_end-51","v":"05/11/1975"},{"$f":"\"20/02/\"&Tax_year_end-59","v":"20/02/1967"},"not present",{"$f":"\"31/03/\"&Tax_year_end-43","v":"31/03/1983"},{"$f":"\"16/10/\"&Tax_year_end-61","v":"16/10/1965"},"05/03/1945",{"$f":"\"03/01/\"&Tax_year_end-57","v":"03/01/1969"},"17/11/1980",{"$f":"\"21/03/\"&Tax_year_end-39","v":"21/03/1987"},{"$f":"\"02/10/\"&Tax_year_end-76","v":"02/10/1950"},{"$f":"\"20/02/\"&Tax_year_end-61","v":"20/02/1965"},{"$f":"\"13/04/\"&Tax_year_end-37","v":"13/04/1989"},{"$f":"\"25/05/\"&Tax_year_end-60","v":"25/05/1966"},{"$f":"\"20/08/\"&Tax_year_end-67","v":"20/08/1959"},{"$f":"\"30/03/\"&Tax_year_end-66","v":"30/03/1960"},{"$f":"\"01/03/\"&Tax_year_end-72","v":"01/03/1954"},{"$f":"\"30/07/\"&Tax_year_end-60","v":"30/07/1966"},{"$f":"\"25/09/\"&Tax_year_end-80","v":"25/09/1946"},{"$f":"\"12/07/\"&Tax_year_end-67","v":"12/07/1959"},"not present","not present",{"$f":"\"26/05/\"&Tax_year_end-35","v":"26/05/1991"},{"$f":"\"16/06/\"&Tax_year_end-89","v":"16/06/1937"},"17/11/1980",{"$f":"\"25/09/\"&Tax_year_end-59","v":"25/09/1967"},{"$f":"\"30/03/\"&Tax_year_end-66","v":"30/03/1960"},{"$f":"\"29/11/\"&Tax_year_end-62","v":"29/11/1964"},{"$f":"\"26/01/\"&Tax_year_end-40","v":"26/01/1986"},{"$f":"\"10/05/\"&Tax_year_end-77","v":"10/05/1949"},"not present",{"$f":"\"29/11/\"&Tax_year_end-62","v":"29/11/1964"},{"$f":"\"06/01/\"&Tax_year_end-38","v":"06/01/1988"},{"$f":"\"14/11/\"&Tax_year_end-65","v":"14/11/1961"},{"$f":"\"11/01/\"&Tax_year_end-56","v":"11/01/1970"},"not present",{"$f":"\"10/04/\"&Tax_year_end-51","v":"10/04/1975"},"not present",{"$f":"\"17/03/\"&Tax_year_end-63","v":"17/03/1963"},{"$f":"\"23/04/\"&Tax_year_end-39","v":"23/04/1987"},"not present",{"$f":"\"17/08/\"&Tax_year_end-45","v":"17/08/1981"},"not present","not present","not present","05/03/1945","not present","17/11/1980","not present",{"$f":"\"03/05/\"&Tax_year_end-69","v":"03/05/1957"},"17/11/1980","not present","17/11/1980","17/11/1980","05/03/1945",{"$f":"\"19/11/\"&Tax_year_end-77","v":"19/11/1949"},"17/11/1980","03/01/1957","05/03/1945","05/03/1945","17/11/1980","17/11/1980","17/11/1980","17/11/1980","17/11/1980","17/11/1980","17/11/1980","17/11/1980","03/01/1957",{"$f":"\"03/01/\"&Tax_year_end-79","v":"03/01/1947"},"03/01/1957","05/03/1945","not present","not present","not present","not present","not present","not present","not present","not present","not present","not present","not present","not present",{"$f":"\"23/07/\"&Tax_year_end-43","v":"23/07/1983"},{"$f":"\"23/03/\"&Tax_year_end-65","v":"23/03/1961"},"03/01/1957",{"$f":"\"12/01/\"&Tax_year_end-36","v":"12/01/1990"},{"$f":"\"01/12/\"&Tax_year_end-58","v":"01/12/1968"},{"$f":"\"02/05/\"&Tax_year_end-15","v":"02/05/2011"},"not present","not present",{"$f":"\"14/08/\"&Tax_year_end-54","v":"14/08/1972"},{"$f":"\"06/11/\"&Tax_year_end-55","v":"06/11/1971"},"not present","not present","not present","not present","not present",{"$f":"\"03/07/\"&Tax_year_end-53","v":"03/07/1973"},"not present","not present","not present","not present",{"$f":"\"19/11/\"&Tax_year_end-30","v":"19/11/1996"},{"$f":"\"31/12/\"&Tax_year_end-52","v":"31/12/1974"},{"$f":"\"23/07/\"&Tax_year_end-61","v":"23/07/1965"},"not present","not present","not present","not present","not present","not present","not present","not present","not present","not present","not present","05/03/1945","05/03/1945","not present","not present","not present","not present","not present",{"$f":"\"07/02/\"&Tax_year_end-79","v":"07/02/1947"},"17/11/1980",{"$f":"\"17/11/\"&Tax_year_end-78","v":"17/11/1948"},"17/11/1980",{"$f":"\"03/01/\"&Tax_year_end-56","v":"03/01/1970"},"03/01/1957","17/11/1980","17/11/1980","03/01/1957","not present","not present","not present","not present","not present","not present","not present","05/03/1945","05/03/1945","05/03/1945","1968-05-23",null,"If present must be earlier than 6 April next after the end of the return year.","SA MTR date"]
[3,"","MCA",{"$f":"\"Before 6/4/\"&MCA_year&\" (age over \"&Tax_year_start-MCA_year&\")\"","v":"Before 6/4/1935 (age over 90)"},null,null,null,null,null,null,null,1,null,null,1,1,1,null,null,null,null,null,null,null,null,null,null,null,null,null,null,null,null,null,null,null,null,null,null,1,null,null,null,null,null,null,null,null,1,null,null,null,null,null,null,null,null,null,null,null,null,null,null,null,null,null,null,null,null,null,null,null,null,1,1,1,1,null,null,null,null,null,null,1,null,1,null,null,null,null,null,null,null,null,null,null,null,null,null,null,null,null,null,null,null,null,null,null,null,null,null,null,null,null,null,null,null,null,null,null,null,null,null,null,null,null,null,null,1,null,null,null,null,null,null,null,null,null,null,null,null,null,null,null,null,null,null,null,null,null,null,null,null,null,null,null,null,null,null,null,null,null,null,null,null,null,null,null,null,null,null,null,null,null,null,null,null,null,null,null,null,null,null,null,null,null,null,null,null,null,null,null,null,null,null,null,null,null,null,null,null,null,null,null,null,null,null,null,null,null,null,null,null,null,null,null,null,null,null,null,null,null,null,1]
[4,"","YPD2","Your name and address - date of change",null,null,null,null,null,null,null,null,null,null,null,null,null,null,null,null,null,null,null,null,null,null,null,null,null,null,null,null,null,null,null,null,null,null,null,null,null,null,null,null,null,null,null,null,null,null,null,null,null,null,null,null,null,null,null,null,null,null,null,null,null,null,null,null,null,null,null,null,null,null,null,null,null,null,null,null,null,null,null,null,null,null,null,null,null,null,null,null,null,null,null,null,null,null,null,null,null,null,null,null,null,null,null,null,null,null,null,null,null,null,null,null,null,null,null,null,null,null,null,null,null,null,null,null,null,null,null,null,null,null,null,null,null,null,null,null,null,null,null,null,null,null,null,null,null,null,null,null,null,null,null,null,null,null,null,null,null,null,null,null,null,null,null,null,null,null,null,null,null,null,null,null,null,null,null,null,null,null,null,null,null,null,null,null,null,null,null,null,null,null,null,null,null,null,null,null,null,null,null,null,null,null,null,null,null,null,null,null,null,null,null,null,null,null,null,null,null,null,null,null,null,null,null,null,null,null,null,null,null,null,null,null,null,null,null,null,null,null,null,null,null,null,null,null,null,null,null,null,null,null,null,null,null,null,null,null,null,null,null,null,null,null,null,null,null,null,null,null,null,null,null,null,null,null,"must be valid date DDMMYYYY","SA MTR date"]
[5,"","YPD3","Your phone number",null,null,null,null,null,null,null,null,null,null,null,null,null,null,null,null,null,null,null,null,null,null,null,null,null,null,null,null,null,null,null,null,null,null,null,null,null,null,null,null,null,null,null,null,null,null,null,null,null,null,null,null,null,null,null,null,null,null,null,null,null,null,null,null,null,null,null,null,null,null,null,null,null,null,null,null,null,null,null,null,null,null,null,null,null,null,null,null,null,null,null,null,null,null,null,null,null,null,null,null,null,null,null,null,null,null,null,null,null,null,null,null,null,null,null,null,null,null,null,null,null,null,null,null,null,null,null,null,null,null,null,null,null,null,null,null,null,null,null,null,null,null,null,null,null,null,null,null,null,null,null,null,null,null,null,null,null,null,null,null,null,null,null,null,null,null,null,null,null,null,null,null,null,null,null,null,null,null,null,null,null,null,null,null,null,null,null,null,null,null,null,null,null,null,null,null,null,null,null,null,null,null,null,null,null,null,null,null,null,null,null,null,null,null,null,null,null,null,null,null,null,null,null,null,null,null,null,null,null,null,null,null,null,null,null,null,null,null,null,null,null,null,null,null,null,null,null,null,null,null,null,null,null,null,null,null,null,null,null,null,null,null,null,null,null,null,null,null,null,null,null,null,null,null,"a) 0-9 and space only. b) Enter as STD CODE followed by space followed by number.","SA string"]
[6,"","YPD4","Your National Insurance number",null,null,null,null,null,null,null,null,null,null,null,null,null,null,null,null,null,null,null,null,null,null,null,null,null,null,null,null,null,null,null,null,null,null,null,null,null,null,null,null,null,null,null,null,null,null,null,null,null,null,null,null,null,null,null,null,null,null,null,null,null,null,null,null,null,null,null,null,null,null,null,null,null,null,null,null,null,null,null,null,null,null,null,null,null,null,null,null,null,null,null,null,null,null,null,null,null,null,null,null,null,null,null,null,null,null,null,null,null,null,null,null,null,null,null,null,null,null,null,null,null,null,null,null,null,null,null,null,null,null,null,null,null,null,null,null,null,null,null,null,null,null,null,null,null,null,null,null,null,null,null,null,null,null,null,null,null,null,null,null,null,null,null,null,null,null,null,null,null,null,null,null,null,null,null,null,null,null,null,null,null,null,null,null,null,null,null,null,null,null,null,null,null,null,null,null,null,null,null,null,null,null,null,null,null,null,null,null,null,null,null,null,null,null,null,null,null,null,null,null,null,null,null,null,null,null,null,null,null,null,null,null,null,null,null,null,null,null,null,null,null,null,null,null,null,null,null,null,null,null,null,null,null,null,null,null,null,null,null,null,null,null,null,null,null,null,null,null,null,null,null,null,null,null,"Must be in format AA999999A or AA999999 or 99A99999","SA string"]
[7,2,"YPDTR","Tax regime indicator (BOX NOT ON RETURN)",2,1,2,3,2,3,1,1,2,1,2,1,1,1,1,2,3,3,1,1,1,1,1,2,3,3,2,1,2,3,2,1,3,2,1,1,2,2,2,3,1,1,1,1,1,1,1,1,1,1,2,1,1,2,1,1,1,2,1,1,3,1,1,1,1,1,1,1,1,3,1,1,1,1,1,1,1,1,1,1,1,1,2,1,1,1,2,1,1,2,2,2,1,1,1,1,1,1,1,1,1,1,1,1,1,1,1,1,1,1,1,1,1,1,1,1,1,1,1,1,1,3,1,1,1,1,1,1,1,1,1,1,1,1,1,2,1,2,2,2,2,2,1,2,2,2,2,1,1,1,1,1,2,2,1,2,1,2,1,2,1,2,2,1,1,1,2,2,1,1,1,1,1,1,1,1,1,1,1,1,2,2,1,1,1,1,2,1,2,2,3,2,1,1,1,2,1,2,1,3,2,1,1,1,1,2,1,1,1,1,1,1,1,2,1,1,1,1,1,2,2,3,2,2,2,2,3,2,2,2,2,3,2,2,2,2,2,2,2,3,3,3,3,1,2,1,1,1,1,1,1,1,2,2,1,2,2,1,1,2,1,1,1,1,1,1,1,1,1,1,3,1,1,null,null,"SA string"]
[null,null,"Interest and dividends from UK banks, building societies etc."]
["row",{"$f":"\"selected \"&INC_A_IND-1","v":"selected 168"},"INC-A",null,1,2,3,4,5,6,7,8,9,10,11,12,13,14,15,16,17,18,19,20,21,22,23,24,25,26,27,28,29,30,31,32,33,34,35,36,37,38,39,40,41,42,43,44,45,46,47,48,49,50,51,52,53,54,55,56,57,58,59,60,61,62,63,64,65,66,67,68,69,70,71,72,73,74,75,76,77,78,79,80,81,82,83,84,85,86,87,88,89,90,91,92,93,94,95,96,97,98,99,100,101,102,103,104,105,106,107,108,109,110,111,112,113,114,115,116,117,118,119,120,121,122,123,124,125,126,127,128,129,130,131,132,133,134,135,136,137,138,139,140,141,142,143,144,145,146,147,148,149,150,151,152,153,154,155,156,157,158,159,160,161,162,163,164,165,166,167,168,169,170,171,172,173,174,175,176,177,178,179,180,181,182,183,184,185,186,187,188,189,190,191,192,193,194,195,196,197,198,199,200,201,202,203,204,205,206,207,208,209,210,211,212,213,214,215,216,217,218,219,220,221,222,223,224,225,226,227,228,229,230,231,232,233,234,235,236,237,238,239,240,241,242,243,244,245,246,247,248,249,250,251,252,253,254,255,256,257,258,259,260,261,262,263,264,265,266,267,268,269,270,271,272,273,null,null,"Type"]
[2,{"$f":"IF(INC_A_IND>1,IF(HLOOKUP(INC_A_IND-1,INC_A_RANGE,A12)=\"\",\"\",HLOOKUP(INC_A_IND-1,INC_A_RANGE,A12)),\"\")","v":""},"INC1","Taxed UK interest etc",null,null,null,null,null,null,null,null,365,null,null,null,13,null,null,null,null,null,null,747,null,65,null,21,null,null,null,540,null,12,null,null,null,null,null,null,null,null,null,null,22,null,null,null,null,365,null,null,null,null,null,365,707,null,null,null,null,null,100800,null,22,null,null,null,null,null,null,130,null,null,365,null,null,null,null,null,null,null,null,null,80,null,null,365,null,null,null,null,null,null,null,null,null,365,null,null,null,null,null,null,null,null,null,null,22,930,null,null,null,null,null,22,213,null,null,null,null,null,null,null,22,null,null,null,23.38,null,null,470,null,null,null,null,null,290.22000000000003,null,null,null,107,null,null,null,null,null,null,null,null,null,64036.45,134,null,null,null,null,null,null,null,45083,49201,321,49829,null,null,null,null,null,null,null,null,1039,null,null,607,6932,509,90,null,null,null,null,null,null,null,null,null,null,null,null,540,null,null,null,null,22,null,null,null,null,null,null,null,null,null,null,365,null,null,null,null,null,null,null,1010,null,517,null,null,null,null,null,null,null,null,365,null,null,null,null,null,null,747,null,null,null,2014,null,1898,17111,15624,null,null,null,null,null,null,null,null,null,null,null,null,null,null,null,null,null,null,null,null,null,null,null,null,null,null,null,null,null,null,null,236,101,null,null,null,null,"SA Monetary value (2dp) >= 0.00"]
[3,"","INC2","Untaxed UK interest etc",477,3077,678,1579,2688,30150,null,6,7283,24342,3678,39593,22,5750,31920,5783,2349,1946,3245,6065,{"$f":"BR_band+2655","v":40355},55,78,8790,678,45,125,null,525,34,null,22175,150,48950,25,14679,6739,40146,89,6710.4,2099.88,10370,10000,null,null,7283,508,null,null,2087,null,7283,5706,11998,32227,null,39150,null,null,6710.4,2099.88,2225,10120,56,45500,3678,4598,1085,3678,21005,7283,3678,3678,40783,501,24000,null,null,null,10120,12471,null,6710.4,3158.53,3815,6710.4,null,2503,null,null,null,10120,10120,7283,null,null,null,2243,2225,null,1466,56447,null,null,2099.88,4059,13070,null,569,null,null,2099.88,8109,1,null,null,{"$f":"P_A-3850","v":8720},822,null,null,2099.88,null,{"$f":"P_A-5851","v":6719},266.73,359.52,null,7118,69,10120,null,null,4598,null,808.02,null,null,6710.4,null,296102,10977,null,86,1958,9682,232.99,8687.23,46,3365,644,1088,7530,2235,14446,35572,9682,null,7282,34407,1625,null,126,180336,9255.11,null,null,null,4753,null,6003,null,null,3207,1760,2405,150,87000,500,12670,12670,600,null,3340,3678,16,6710.4,4598,3340,1029,3340,10000,600,9890,2099.88,3678,null,990,10120,null,3678,null,4103,null,87000,7283,null,null,null,null,null,87000,40000,2737,5986,null,null,null,65655,18,53726,null,600,115,2883,33529,null,10120,14324,null,5888,30700,349,837,{"$f":"BR_band-5655","v":32045},3588,183,2733,490,2545,20000,1602.39,21005,20000,50037,453,100,67,null,29,4151,54,null,511,640851,8881,2001,10120,10120,706,10120,6710.4,null,6710.4,6710.4,6719,160,11929,10693,27444.13,null,null,null,430,3238.86,null,null,"SA Monetary value (2dp) >= 0.00"]
[4,"","INC3","Untaxed foreign interest (up to £2,000)",null,null,null,null,null,null,null,null,null,null,null,null,null,null,null,null,null,null,null,null,null,null,null,null,null,null,null,null,null,null,null,null,null,null,null,null,null,null,null,null,null,null,null,null,null,null,null,null,null,null,null,null,null,null,null,null,null,null,null,null,null,null,null,null,null,null,null,null,null,null,null,null,null,null,null,null,null,null,null,null,null,null,null,null,null,null,null,null,null,null,null,null,null,null,null,null,null,null,null,null,null,null,null,null,null,null,null,null,null,null,null,null,null,null,null,null,null,null,null,null,null,null,null,null,26,null,null,null,null,null,null,null,null,null,null,null,null,null,null,null,null,null,null,null,null,null,null,null,null,null,null,null,null,null,null,null,null,null,null,null,null,null,null,null,null,null,null,null,null,null,null,null,null,null,null,null,null,null,null,null,null,null,null,null,null,null,null,null,null,null,null,null,null,null,null,null,null,null,null,null,null,null,null,null,null,null,null,null,null,null,null,null,null,null,null,null,null,null,200,null,null,null,null,null,null,null,null,null,null,null,null,null,null,null,null,null,15,null,null,null,null,null,null,null,null,null,null,19,null,null,null,null,null,null,null,null,null,null,null,null,null,null,null,null,null,null,null,null,null,null,null,null,null,null,"If present, must be less than or equal to £2000","SA Monetary value (2dp) >= 0.00"]
[5,{"$f":"IF(INC_A_IND>1,IF(HLOOKUP(INC_A_IND-1,INC_A_RANGE,A15)=\"\",\"\",HLOOKUP(INC_A_IND-1,INC_A_RANGE,A15)),\"\")","v":40000},"INC4","Dividends from UK companies",5911,9709,null,13463,null,6355,null,1237,1510,16000,null,{"$f":"DTA+2555","v":3055},2403,12750,null,null,null,11789,10001,34100,{"$f":"DTA+9238","v":9738},3513,null,11166,null,997,null,16000,21000,55000,null,7560,30,97900,null,null,10798,null,10120,2954,null,null,null,null,null,1510,null,32000,null,3468,null,1510,32139,null,null,2000,6328,null,null,5009.93,null,null,828319.1,null,3678,null,2450,35475,null,16000,1510,null,null,null,10000,20000,null,null,null,828319.1,500,null,5009.93,61861,3564,5009.93,null,null,null,42769,null,828319.1,828319.1,1510,null,null,null,17899,null,null,12750,77283,null,null,null,600,null,null,9510,null,null,null,990,null,null,null,null,1355,null,null,null,null,7101.95,1000,65,null,6719,205,828319.1,null,5151,2450,null,4912,null,null,5009.93,null,15728,93669,null,2243,295,null,1381.87,25318.17,null,58866,9790,14555,null,70755,5009.93,20600,null,2519,315000,60074,128,2519,null,24408,11212,null,null,null,null,40000,800,null,null,200,420,300,20,92000,6355,3000,3000,null,5000,null,null,2000,5009.93,2450,null,196,null,5000,null,7099,null,null,null,12098,828319.1,null,null,null,null,null,null,1510,null,null,null,6000,null,null,30,40,40,null,null,null,null,null,77850,556,null,null,null,57011,3341,238999,5999,6106,62307,{"$f":"BR_band-12000","v":25700},15,11166,{"$f":"DTA+4000","v":4500},null,65,69088,66572,42924,null,2.93,16000,10000,null,151,31922,2199,null,null,null,534873,null,null,834357.29,4698,27868,828319.1,828319.1,null,828319.1,5009.93,null,5009.93,2954,5078,68,54993,55706,9436,47222,175000,160000,8050,689813,null,null,"SA Monetary value (2dp) >= 0.00"]
[6,"","INC5","Other dividends",null,null,5500,null,null,null,null,null,null,null,12750,null,null,null,2670,23458,12623,null,null,null,null,null,11654,null,14251,null,null,null,null,null,null,null,null,null,null,null,null,10066,null,null,null,12750,12750,null,null,null,null,null,null,null,null,null,null,null,null,null,null,null,null,224.47,null,null,null,null,null,12750,null,1825,12750,null,null,12750,12750,4999,null,null,null,null,null,null,null,12750,224.47,2031,null,224.47,null,null,null,7965,null,null,null,null,null,null,null,null,null,12750,null,null,null,null,null,null,null,null,null,null,null,null,null,null,null,12750,null,null,null,12750,null,null,null,null,85,null,null,null,null,null,null,null,null,null,null,null,224.47,2831,null,null,null,2465,725,18465,483.2,null,null,null,null,null,null,1901,224.47,17395,18465,null,null,null,null,null,null,8762,null,null,null,null,null,null,null,null,null,null,null,null,null,null,null,null,null,null,null,null,12750,null,224.47,null,null,null,null,null,null,null,null,12750,null,null,null,null,12750,null,12042,null,null,null,null,null,null,null,null,null,null,null,null,2038,null,null,265,null,null,null,null,null,null,null,null,null,null,null,3459,null,null,null,null,null,null,21614,null,16393,null,null,null,null,null,null,null,998,null,null,null,13003,null,null,5226.5,604,null,null,null,118,null,224.47,null,224.47,224.47,817,null,580,15478,null,null,null,null,null,26000,null,null,"SA Monetary value (2dp) >= 0.00"]
[7,"","INC6","Foreign dividends (up to £500)",null,null,null,null,null,null,null,null,null,null,null,null,null,null,null,null,null,null,null,null,null,null,null,null,null,null,null,null,null,null,null,null,null,null,null,null,null,null,null,null,null,null,null,null,null,null,null,null,null,null,null,null,null,null,null,null,null,null,null,null,null,267,null,null,null,null,165,null,null,null,null,null,null,null,null,null,null,null,null,null,null,null,null,null,null,null,null,null,null,null,null,null,null,null,null,null,null,null,267,null,null,165,null,null,null,null,null,null,null,null,null,null,null,null,null,null,null,null,null,null,null,null,null,null,21,null,null,null,null,null,null,165,null,null,null,null,null,407,null,null,null,null,null,null,null,null,null,null,null,null,null,null,null,null,null,null,null,null,null,null,null,null,null,null,null,null,null,null,null,null,null,null,null,null,null,null,null,null,null,null,null,null,null,null,null,165,null,null,null,null,null,null,null,null,null,null,null,null,null,null,null,null,null,null,null,null,null,null,null,null,null,null,null,null,null,null,null,null,null,165,220,null,null,null,null,null,null,null,900,null,null,null,null,null,null,null,89,null,null,null,null,null,null,null,null,null,null,null,null,null,null,null,null,null,null,null,null,null,null,null,null,null,null,null,null,null,null,null,null,null,null,null,null,null,null,"SA Monetary value (2dp) >= 0.00"]
[8,"","INC7","Tax taken off foreign dividends",null,null,null,null,null,null,null,null,null,null,null,null,null,null,null,null,null,null,null,null,null,null,null,null,null,null,null,null,null,null,null,null,null,null,null,null,null,null,null,null,null,null,null,null,null,null,null,null,null,null,null,null,null,null,null,null,null,null,null,null,null,80.099999999999994,null,null,null,null,14.9,null,null,null,null,null,null,null,null,null,null,null,null,null,null,null,null,null,null,null,null,null,null,null,null,null,null,null,null,null,null,null,80.099999999999994,null,null,14.9,null,null,null,null,null,null,null,null,null,null,null,null,null,null,null,null,null,null,null,null,null,null,null,null,null,null,null,null,null,14.9,null,null,null,null,null,163,null,null,null,null,null,null,null,null,null,null,null,null,null,null,null,null,null,null,null,null,null,null,null,null,null,null,null,null,null,null,null,null,null,null,null,null,null,null,null,null,null,null,null,null,null,null,null,14.9,null,null,null,null,null,null,null,null,null,null,null,null,null,null,null,null,null,null,null,null,null,null,null,null,null,null,null,null,null,null,null,null,null,14.9,33,null,null,null,null,null,null,null,45,null,null,null,null,null,null,null,null,null,null,null,null,null,null,null,null,null,null,null,null,null,null,null,null,null,null,null,null,null,null,null,null,null,null,null,null,null,null,null,null,null,null,null,null,null,"If present, must be less than or equal to INC6 + £1","SA Monetary value (2dp) >= 0.00"]
[null,null,"UK pensions, annuities and other state benefits received"]
["row",{"$f":"\"selected \"&INC_B_IND-1","v":"selected 0"},"INC-B",null,1,2,3,4,5,6,7,8,9,10,11,12,13,14,15,16,17,18,19,20,21,22,23,24,25,26,27,28,29,30,31,32,33,34,35,36,37,38,39,40,41,42,43,44,45,46,47,48,49,50,51,52,53,54,55,56,57,58,59,60,61,62,63,64,65,66,67,68,69,70,71,72,73,74,75,76,77,78,79,80,81,82,83,84,85,86,87,88,89,90,91,92,93,94,95,96,97,98,99,100,101,102,103,104,105,106,107,108,109,110,111,112,113,114,115,116,117,118,119,120,121,122,123,124,125,126,127,128,129,130,131,132,133,134,135,136,137,138,139,140,141,142,143,144,145,146,147,148,149,150,151,152,153,154,155,156,157,158,159,160,161,162,163,164,165,166,167,168,169,170,171,172,173,174,175,176,177,178,179,180,181,182,183,184,185,186,187,188,189,190,191,192,193,194,195,196,197,198,199,200,201,202,203,204,205,206,207,208,209,210,211,212,213,214,215,216,217,218,219,220,221,222,223,224,225,226,227,228,229,230,231,232,233,234,235,236,237,238,239,240,241,242,243,244,245,246,247,248,249,250,251,252,253,254,255,256,257,258,259,260,261,262,263,264,265,266,267,268,269,270,271,272,273,null,null,"Type"]
[2,{"$f":"IF(INC_B_IND>1,IF(HLOOKUP(INC_B_IND-1,INC_B_RANGE,A21)=\"\",\"\",HLOOKUP(INC_B_IND-1,INC_B_RANGE,A21)),\"\")","v":""},"INC8","State Pension",null,null,null,null,null,6998,4289,8278,null,8239,9783,9628,8609,null,null,null,null,null,null,null,null,null,null,null,null,null,null,null,null,null,null,null,null,null,null,1568,6891,null,null,null,null,null,null,null,null,6200,9339,6200,null,11794,null,3770,null,null,null,null,null,null,null,null,1600,null,null,10581,{"$f":"P_A-1500","v":11070},6200,6200,null,8814,9821,null,6200,8052,null,11502,null,null,10102,null,6200,null,6200,9620,10090,null,null,9620,9627,null,13513,null,null,null,null,null,6221,null,7426,null,null,null,null,null,null,null,null,null,3770,null,null,null,null,null,null,null,null,null,null,null,null,null,8206,1600,2869.36,4689,null,null,null,null,null,null,null,null,null,null,null,null,null,16091,null,null,null,null,null,10430,8052,11940,null,null,null,null,10596,null,null,null,null,null,9455,null,null,null,null,null,null,null,null,null,null,null,null,3770,6200,6200,4500,null,null,8052,8052,null,null,null,null,6200,12153,null,null,8206,null,null,null,null,null,null,null,null,null,null,13399,6200,2389,null,null,null,null,null,null,null,null,null,null,null,null,null,6175,18404,null,8206,null,null,null,11502,null,null,6200,null,null,8239,null,null,null,null,null,null,null,null,15308,null,null,null,null,null,null,null,null,null,null,null,7360,null,null,6867,6394,null,null,10980,null,null,null,null,3770,null,null,null,9414,12180,null,null,5111,null,null,null,null,null,null,"If present, must be less than £99,999","SA Monetary value (2dp) > 0.00"]
[3,"","INC9","State Pension lump sum",null,null,null,null,null,null,null,null,null,null,null,null,null,null,null,null,null,null,null,null,null,null,null,null,null,null,null,null,null,null,null,null,null,null,null,null,null,null,null,null,null,null,null,null,null,null,null,null,null,null,null,null,null,null,null,null,null,null,null,null,16534,null,null,null,null,null,null,null,null,null,null,null,null,null,null,null,null,null,null,null,null,null,30275,null,null,null,27876,null,null,11263,null,null,null,null,null,null,null,90234,null,null,null,null,null,null,null,null,null,null,null,null,null,null,null,null,null,null,null,null,null,null,null,null,16534,null,null,null,null,null,null,null,null,null,null,null,null,null,null,null,null,null,null,null,null,null,null,null,null,null,null,null,null,null,null,null,null,null,null,null,null,null,null,null,null,null,null,null,null,null,null,null,null,null,null,null,null,null,null,null,null,null,null,null,null,null,null,null,null,null,null,null,null,null,null,null,null,null,null,10000,null,16534,null,null,null,null,null,null,null,null,null,null,null,null,null,null,null,null,null,null,null,null,null,null,null,null,null,null,null,null,null,null,null,null,null,null,null,null,null,null,null,null,null,null,null,null,null,null,null,null,null,null,null,null,null,null,60275,null,null,null,null,null,null,null,null,null,null,null,null,null,null,null,null,null,null,null,null,"SA Monetary value (2dp) > 0.00"]
[4,"","INC10","Tax taken off box 9",null,null,null,null,null,null,null,null,null,null,null,null,null,null,null,null,null,null,null,null,null,null,null,null,null,null,null,null,null,null,null,null,null,null,null,null,null,null,null,null,null,null,null,null,null,null,null,null,null,null,null,null,null,null,null,null,null,null,null,null,3520,null,null,null,null,null,null,null,null,null,null,null,null,null,null,null,null,null,null,null,null,null,12110,null,null,null,{"$f":"CM22*0.2","v":5575.2000000000007},null,null,2435,null,null,null,null,null,null,null,18047,null,null,null,null,null,null,null,null,null,null,null,null,null,null,null,null,null,null,null,null,null,null,null,null,3520,null,null,null,null,null,null,null,null,null,null,null,null,null,null,null,null,null,null,null,null,null,null,null,null,null,null,null,null,null,null,null,null,null,null,null,null,null,null,null,null,null,null,null,null,null,null,null,null,null,null,null,null,null,null,null,null,null,null,null,null,null,null,null,null,null,null,null,null,null,null,null,null,null,null,2000,null,null,null,null,null,null,null,null,null,null,null,null,null,null,null,null,null,null,null,null,null,null,null,null,null,null,null,null,null,null,null,null,null,null,null,null,null,null,null,null,null,null,null,null,null,null,null,null,null,null,null,null,null,null,null,null,{"$f":"IF(IY22=\"\",\"\",TRUNC(IY22*BR_rate,2))","v":12055},null,null,null,null,null,null,null,null,null,null,null,null,null,null,null,null,null,null,null,"If present, must be less than or equal to (INC9 x 45%) + £1","SA Monetary value (2dp) >= 0.00"]
[5,"","INC11","Pensions",null,null,null,null,null,12302,null,null,null,4800,null,null,79811,null,null,7943,null,null,null,null,null,null,null,42541,7431,null,null,{"$f":"BR_band+747","v":38447},null,null,null,null,null,null,null,1763,null,null,null,14473.97,null,null,null,null,null,null,null,null,null,9540,null,3121,null,null,null,null,null,null,null,null,null,14473.97,null,null,null,null,null,11048,null,null,null,null,null,40000,38502,null,null,30914,null,null,null,null,43651,34824,6891,null,35475,null,null,13804,null,null,null,null,null,4982,null,25062,null,null,null,null,null,null,14473.97,null,null,3121,null,null,null,null,null,27914,null,null,null,null,null,null,null,32650,null,4313.79,null,null,null,null,null,null,null,null,null,null,null,null,null,null,null,null,null,null,null,null,2576.83,null,null,null,null,null,null,87901,null,null,null,null,null,null,null,null,null,null,null,null,null,null,null,null,null,null,3121,null,null,null,null,null,null,null,null,null,null,null,null,10944,null,14473.97,32650,null,null,null,null,null,null,null,null,null,null,417,null,null,null,null,null,null,null,null,null,null,null,null,null,null,null,51777,31572,null,32650,null,null,null,1500,null,null,null,null,null,4800,null,null,7348,null,{"$f":"BR_band+3041","v":40741},{"$f":"P_A-5507","v":7063},null,5729,110892,null,null,null,18232.93,null,null,{"$f":"P_A+1000","v":13570},{"$f":"BR_band+P_A-151","v":50119},null,null,null,3720,null,null,2957,5200,null,null,43651,null,null,53385,14473.97,3121,null,null,14473.97,null,63257,62732,null,null,null,null,null,null,null,null,null,"SA Monetary value (2dp) > 0.00"]
[6,"","INC12","Tax taken off box 11",null,null,null,null,null,{"$f":"IF(J24=\"\",\"\",TRUNC(J24*BR_rate,2))","v":2460.4},null,null,null,{"$f":"IF(N24=\"\",\"\",TRUNC(N24*BR_rate,2))","v":960},null,null,31924.400000000001,null,null,null,null,null,null,null,null,null,null,{"$f":"IF(AB24=\"\",\"\",TRUNC(AB24*BR_rate,2))","v":8508.2000000000007},{"$f":"IF(AC24=\"\",\"\",TRUNC(AC24*BR_rate,2))","v":1486.2},null,null,null,null,null,null,{"$f":"IF(AJ24=\"\",\"\",TRUNC(AJ24*BR_rate,2))","v":""},null,null,{"$f":"IF(AM24=\"\",\"\",TRUNC(AM24*BR_rate,2))","v":""},{"$f":"IF(AN24=\"\",\"\",TRUNC(AN24*BR_rate,2))","v":352.6},{"$f":"IF(AO24=\"\",\"\",TRUNC(AO24*BR_rate,2))","v":""},null,null,{"$f":"IF(AR24=\"\",\"\",TRUNC(AR24*BR_rate,2))","v":2894.79},null,null,null,null,null,null,null,null,null,1908,null,{"$f":"IF(BD24=\"\",\"\",TRUNC(BD24*BR_rate,2))","v":624.20000000000005},null,null,null,null,null,null,null,null,null,{"$f":"IF(BN24=\"\",\"\",TRUNC(BN24*BR_rate,2))","v":2894.79},null,null,null,null,null,null,null,null,null,null,null,{"$f":"IF(BZ24=\"\",\"\",TRUNC(BZ24*BR_rate,2))","v":8000},{"$f":"IF(CA24=\"\",\"\",TRUNC(CA24*BR_rate,2))","v":7700.4},{"$f":"IF(CB24=\"\",\"\",TRUNC(CB24*BR_rate,2))","v":""},{"$f":"IF(CC24=\"\",\"\",TRUNC(CC24*BR_rate,2))","v":""},{"$f":"IF(CD24=\"\",\"\",TRUNC(CD24*BR_rate,2))","v":6182.8},null,null,null,null,{"$f":"IF(CI24=\"\",\"\",TRUNC(CI24*BR_rate,2))","v":8730.2000000000007},12169,{"$f":"IF(CK24=\"\",\"\",TRUNC(CK24*BR_rate,2))","v":1378.2},null,{"$f":"IF(CM24=\"\",\"\",TRUNC(CM24*BR_rate,2))","v":7095},null,null,{"$f":"IF(CP24=\"\",\"\",TRUNC(CP24*BR_rate,2))","v":2760.8},null,null,null,null,null,{"$f":"IF(CV24=\"\",\"\",TRUNC(CV24*BR_rate,2))","v":996.4},null,{"$f":"IF(CX24=\"\",\"\",TRUNC(CX24*BR_rate,2))","v":5012.3999999999996},null,null,null,null,null,null,{"$f":"IF(DE24=\"\",\"\",TRUNC(DE24*BR_rate,2))","v":2894.79},null,null,{"$f":"IF(DH24=\"\",\"\",TRUNC(DH24*BR_rate,2))","v":624.20000000000005},null,null,null,null,null,10837,null,{"$f":"IF(DP24=\"\",\"\",TRUNC(DP24*BR_rate,2))","v":""},null,null,null,{"$f":"IF(DT24=\"\",\"\",TRUNC(DT24*BR_rate,2))","v":""},{"$f":"IF(DU24=\"\",\"\",TRUNC(DU24*BR_rate,2))","v":""},{"$f":"IF(DV24=\"\",\"\",TRUNC(DV24*BR_rate,2))","v":6530},null,862.61,null,null,null,null,null,null,null,null,null,null,null,null,null,null,null,null,null,null,null,null,645,null,null,null,null,null,null,31767,null,null,null,null,null,null,null,null,null,null,null,null,null,null,null,null,null,null,{"$f":"IF(FS24=\"\",\"\",TRUNC(FS24*BR_rate,2))","v":624.20000000000005},null,null,null,null,null,null,null,null,null,null,null,null,2080,null,{"$f":"IF(GH24=\"\",\"\",TRUNC(GH24*BR_rate,2))","v":2894.79},{"$f":"IF(GI24=\"\",\"\",TRUNC(GI24*BR_rate,2))","v":6530},null,null,null,null,null,null,null,null,null,null,{"$f":"IF(GT24=\"\",\"\",TRUNC(GT24*BR_rate,2))","v":83.4},{"$f":"IF(GU24=\"\",\"\",TRUNC(GU24*BR_rate,2))","v":""},{"$f":"IF(GV24=\"\",\"\",TRUNC(GV24*BR_rate,2))","v":""},null,null,null,null,null,null,null,null,null,null,null,null,null,12803,{"$f":"IF(HK24=\"\",\"\",TRUNC(HK24*BR_rate,2))","v":6314.4},null,{"$f":"IF(HM24=\"\",\"\",TRUNC(HM24*BR_rate,2))","v":6530},null,null,null,null,null,{"$f":"IF(HS24=\"\",\"\",TRUNC(HS24*BR_rate,2))","v":""},null,null,null,{"$f":"IF(HW24=\"\",\"\",TRUNC(HW24*BR_rate,2))","v":960},null,null,null,null,{"$f":"IF(IB24=\"\",\"\",TRUNC(IB24*BR_rate,2))","v":8148.2},{"$f":"IF(IC24=\"\",\"\",TRUNC((IC24-5000)*BR_rate,2))","v":412.6},null,null,1112,null,null,null,7292.8,{"$f":"IF(IK24=\"\",\"\",TRUNC(IK24*BR_rate,2))","v":""},{"$f":"IF(IL24=\"\",\"\",TRUNC(IL24*BR_rate,2))","v":""},{"$f":"IF(IM24=\"\",\"\",TRUNC(IM24*BR_rate,2))","v":2714},{"$f":"IF(IN24=\"\",\"\",TRUNC((MAX(0,IN24-BR_band))*HR_rate,2)+TRUNC((MIN(IN24,BR_band))*BR_rate,2))","v":12507.6},null,null,null,null,null,null,null,null,null,null,{"$f":"IF(IY24=\"\",\"\",TRUNC(IY24*BR_rate,2))","v":8730.2000000000007},null,null,24023,{"$f":"IF(JC24=\"\",\"\",TRUNC(JC24*BR_rate,2))","v":2894.79},{"$f":"IF(JD24=\"\",\"\",TRUNC(JD24*BR_rate,2))","v":624.20000000000005},null,null,{"$f":"IF(JG24=\"\",\"\",TRUNC(JG24*BR_rate,2))","v":2894.79},null,20835,16091,null,null,null,null,null,null,{"$f":"IF(JQ24=\"\",\"\",TRUNC(JQ24*BR_rate,2))","v":""},null,"If present, must be less than or equal to INC11","SA Monetary value (2dp)"]
[7,"","INC13","Taxable Incapacity Benefit etc",null,null,null,null,null,null,null,null,null,null,null,null,null,null,null,null,null,null,null,null,null,null,null,null,null,null,null,null,null,null,500,null,null,null,null,null,null,null,null,null,null,null,null,null,null,null,null,null,null,null,null,null,null,null,null,null,null,null,null,null,null,null,null,null,null,null,null,null,null,null,null,null,null,null,null,null,null,null,null,null,null,null,null,null,null,null,null,null,null,null,null,null,null,null,null,null,null,null,null,null,null,null,null,null,null,null,null,null,null,null,null,null,null,null,null,null,null,null,null,null,null,null,null,null,null,null,null,null,null,null,null,null,null,null,null,null,null,null,null,null,null,null,null,null,null,null,null,null,null,null,null,null,null,null,null,null,null,null,null,null,null,null,null,null,null,null,null,null,null,null,null,null,null,null,null,null,null,null,null,null,null,null,null,null,null,null,null,null,null,null,null,null,null,null,null,null,null,null,null,null,null,null,null,null,null,null,null,null,null,null,null,null,null,null,null,null,null,null,null,null,null,null,null,null,null,null,null,null,null,null,null,null,null,null,null,null,null,5780,null,null,null,null,null,null,null,null,null,null,null,null,null,null,null,null,null,null,null,null,null,null,null,null,null,null,null,null,null,null,null,null,null,null,null,null,null,"SA Monetary value (2dp) > 0.00"]
[8,"","INC14","Tax taken off box 13",null,null,null,null,null,null,null,null,null,null,null,null,null,null,null,null,null,null,null,null,null,null,null,null,null,null,null,null,null,null,null,null,null,null,null,null,null,null,null,null,null,null,null,null,null,null,null,null,null,null,null,null,null,null,null,null,null,null,null,null,null,null,null,null,null,null,null,null,null,null,null,null,null,null,null,null,null,null,null,null,null,null,null,null,null,null,null,null,null,null,null,null,null,null,null,null,null,null,null,null,null,null,null,null,null,null,null,null,null,null,null,null,null,null,null,null,null,null,null,null,null,null,null,null,null,null,null,null,null,null,null,null,null,null,null,null,null,null,null,null,null,null,null,null,null,null,null,null,null,null,null,null,null,null,null,null,null,null,null,null,null,null,null,null,null,null,null,null,null,null,null,null,null,null,null,null,null,null,null,null,null,null,null,null,null,null,null,null,null,null,null,null,null,null,null,null,null,null,null,null,null,null,null,null,null,null,null,null,null,null,null,null,null,null,null,null,null,null,null,null,null,null,null,null,null,null,null,null,null,null,null,null,null,null,null,null,null,null,null,null,null,null,null,null,null,null,null,null,null,null,null,null,null,null,null,null,null,null,null,null,null,null,null,null,null,null,null,null,null,null,null,null,null,null,"If present, must be less than or equal to INC13","SA Monetary value (2dp) >= 0.00"]
[9,"","INC15","Jobseeker’s Allowance",null,null,null,null,null,null,null,null,null,null,null,null,null,null,null,null,null,null,null,null,null,null,null,null,null,null,null,null,null,null,null,null,null,null,null,null,null,null,null,null,null,null,null,null,null,null,null,null,null,null,null,null,null,null,null,null,null,null,null,null,null,null,null,null,null,null,null,null,null,null,null,null,null,null,null,null,null,null,null,null,null,null,null,null,null,null,null,null,null,null,null,null,null,null,null,null,null,null,null,null,null,null,null,null,null,null,null,null,null,null,null,null,null,null,null,null,null,null,null,null,null,null,null,null,null,null,null,null,null,null,null,null,null,null,null,null,null,null,null,null,null,null,null,null,null,null,null,null,null,null,null,null,null,null,null,null,null,null,null,null,null,null,null,null,null,null,null,null,null,null,null,null,null,null,null,null,null,null,null,null,null,null,null,null,null,null,null,null,null,null,null,null,null,null,null,null,null,null,null,null,null,null,null,null,null,null,null,null,null,null,null,null,null,null,null,null,null,null,null,null,null,null,null,null,null,null,null,null,null,null,null,null,null,230,null,null,null,null,null,null,null,null,null,null,null,null,null,null,null,null,null,null,null,null,null,null,null,null,null,null,null,null,null,null,null,null,null,null,null,null,null,null,null,null,"If present, must be less than £99,999","SA Monetary value (2dp) > 0.00"]
[10,"","INC16","Taxable State Pensions and benefits",null,null,null,null,null,null,null,null,null,null,null,null,null,null,null,null,null,null,null,null,null,null,null,null,null,null,null,null,null,null,null,null,null,null,null,758,null,null,null,1757,null,null,null,null,null,null,null,null,null,null,null,null,null,null,null,null,null,null,null,null,null,1757,null,null,null,null,null,null,null,null,null,null,null,1757,null,null,null,null,null,null,null,null,null,null,null,null,null,null,null,null,null,null,null,null,null,null,null,null,null,null,null,null,null,null,1757,null,null,null,null,null,null,null,null,null,null,null,null,null,null,null,null,null,null,null,null,null,null,null,null,null,null,null,null,null,null,null,null,null,null,null,null,null,null,null,null,null,null,null,null,null,null,null,null,null,null,null,null,null,null,null,null,null,null,null,null,null,null,null,null,null,null,null,null,null,null,null,null,null,null,null,null,null,null,null,null,1757,null,null,null,null,null,null,null,null,null,null,null,null,null,null,null,null,null,null,null,null,null,null,null,null,null,null,null,null,null,null,null,null,null,null,null,null,null,null,null,null,null,null,null,null,null,null,null,null,null,null,null,null,null,null,null,null,null,null,null,null,null,null,null,null,null,null,null,null,null,null,null,1757,1757,null,null,null,1757,null,null,null,null,null,null,null,null,null,null,null,null,"SA Monetary value (2dp) > 0.00"]
[null,null,"Other UK income not included on supplementary pages"]
["row",{"$f":"\"selected \"&INC_C_IND-1","v":"selected 0"},"INC-C",null,1,2,3,4,5,6,7,8,9,10,11,12,13,14,15,16,17,18,19,20,21,22,23,24,25,26,27,28,29,30,31,32,33,34,35,36,37,38,39,40,41,42,43,44,45,46,47,48,49,50,51,52,53,54,55,56,57,58,59,60,61,62,63,64,65,66,67,68,69,70,71,72,73,74,75,76,77,78,79,80,81,82,83,84,85,86,87,88,89,90,91,92,93,94,95,96,97,98,99,100,101,102,103,104,105,106,107,108,109,110,111,112,113,114,115,116,117,118,119,120,121,122,123,124,125,126,127,128,129,130,131,132,133,134,135,136,137,138,139,140,141,142,143,144,145,146,147,148,149,150,151,152,153,154,155,156,157,158,159,160,161,162,163,164,165,166,167,168,169,170,171,172,173,174,175,176,177,178,179,180,181,182,183,184,185,186,187,188,189,190,191,192,193,194,195,196,197,198,199,200,201,202,203,204,205,206,207,208,209,210,211,212,213,214,215,216,217,218,219,220,221,222,223,224,225,226,227,228,229,230,231,232,233,234,235,236,237,238,239,240,241,242,243,244,245,246,247,248,249,250,251,252,253,254,255,256,257,258,259,260,261,262,263,264,265,266,267,268,269,270,271,272,273,null,null,"Type"]
[2,{"$f":"IF(INC_C_IND>1,IF(HLOOKUP(INC_C_IND-1,INC_C_RANGE,A32)=\"\",\"\",HLOOKUP(INC_C_IND-1,INC_C_RANGE,A32)),\"\")","v":""},"INC17","Other taxable income",null,null,null,null,null,null,null,null,1500,null,null,376.18,1200,null,null,null,null,null,null,null,null,350,null,1800,938,null,null,null,26000,null,null,null,null,null,1890,null,2589,null,null,null,7000,null,null,null,null,null,null,null,null,null,null,8845,null,null,null,null,null,null,null,null,null,null,null,null,1500,7000,1500,null,1500,null,null,1500,null,null,null,null,null,null,null,null,null,1500,null,null,null,null,376.18,null,null,376.18,null,null,null,6020,null,null,null,16020,null,null,null,null,null,null,null,null,null,null,null,null,null,null,7460,null,null,null,4000,null,null,null,null,null,null,null,1,null,null,null,1595,null,6020,null,null,133,null,null,null,null,124464,null,null,null,10,null,null,null,null,null,null,null,null,null,6020,375432,1500,null,null,4019,null,null,null,null,17896,6020,3066,null,null,null,null,null,null,null,null,null,null,null,7000,7000,7000,7000,null,null,null,null,null,null,null,9200,null,null,null,null,null,null,null,null,null,null,null,6020,5520,null,null,null,null,null,null,null,null,null,null,null,null,null,null,null,null,null,null,null,null,null,null,null,null,null,null,null,null,null,null,null,1116,null,null,972,null,null,654830,null,null,10000,null,null,null,null,null,null,null,null,null,null,17982.77,134,null,null,null,null,null,null,null,null,null,6571,null,74,null,null,778,null,null,null,null,null,null,"SA Monetary value (2dp) > 0.00"]
[3,{"$f":"IF(INC_C_IND>1,IF(HLOOKUP(INC_C_IND-1,INC_C_RANGE,A33)=\"\",\"\",HLOOKUP(INC_C_IND-1,INC_C_RANGE,A33)),\"\")","v":""},"INC18","Total amount of allowable expenses",null,null,null,null,null,null,null,null,null,null,null,null,null,null,null,null,null,null,null,null,null,null,null,null,null,null,null,null,null,null,null,null,null,null,null,null,null,null,null,null,null,null,null,null,null,null,null,null,null,null,null,1000,null,null,null,null,null,null,null,null,null,null,null,null,null,null,null,null,null,null,null,null,null,null,null,null,null,null,null,null,null,null,null,null,null,null,null,null,null,null,null,null,null,1000,null,null,null,1000,null,null,null,null,null,null,null,null,null,null,null,null,null,null,1700,null,null,null,null,null,null,null,null,null,null,null,null,null,null,null,405,null,1000,null,null,null,null,null,null,null,null,null,null,null,null,null,null,null,null,null,null,null,null,null,1000,null,null,null,null,290,null,null,null,null,5796,1000,null,null,null,null,null,null,null,null,null,null,null,null,null,null,null,null,null,null,null,null,null,null,null,null,null,null,null,null,null,null,null,null,null,null,null,1000,null,null,null,null,null,null,null,null,null,null,null,null,null,null,null,null,null,null,null,null,null,null,null,null,null,null,null,null,null,null,null,null,null,null,null,null,null,null,null,null,null,null,null,null,null,null,null,null,null,null,null,null,null,null,null,null,null,null,null,null,null,null,null,null,null,null,null,null,null,null,null,null,null,null,null,"SA Monetary value (2dp) > 0.00"]
[4,{"$f":"IF(INC_C_IND>1,IF(HLOOKUP(INC_C_IND-1,INC_C_RANGE,A34)=\"\",\"\",HLOOKUP(INC_C_IND-1,INC_C_RANGE,A34)),\"\")","v":""},"INC19","Any tax taken off box 17",null,null,null,null,null,null,null,null,{"$f":"IF(M32=\"\",\"\",TRUNC((M32-M33)*BR_rate,2))","v":300},null,null,{"$f":"IF(P32=\"\",\"\",TRUNC((P32-P33)*BR_rate,2))","v":75.23},{"$f":"IF(Q32=\"\",\"\",TRUNC((Q32-Q33)*BR_rate,2))","v":240},null,null,null,null,null,null,null,null,null,null,{"$f":"IF(AB32=\"\",\"\",TRUNC((AB32-AB33)*BR_rate,2))","v":360},{"$f":"IF(AC32=\"\",\"\",TRUNC((AC32-AC33)*BR_rate,2))","v":187.6},null,null,null,null,null,null,null,null,null,{"$f":"IF(AM32=\"\",\"\",TRUNC((AM32-AM33)*BR_rate,2))","v":378},"",517.79999999999995,"","","",1400,null,null,null,null,null,null,null,null,null,null,0,null,null,null,null,null,null,null,null,null,null,null,{"$f":"IF(BP32=\"\",\"\",TRUNC((BP32-BP33)*BR_rate,2))","v":""},{"$f":"IF(BQ32=\"\",\"\",TRUNC((BQ32-BQ33)*BR_rate,2))","v":300},{"$f":"IF(BR32=\"\",\"\",TRUNC((BR32-BR33)*BR_rate,2))","v":1400},{"$f":"IF(BS32=\"\",\"\",TRUNC((BS32-BS33)*BR_rate,2))","v":300},null,{"$f":"IF(BU32=\"\",\"\",TRUNC((BU32-BU33)*BR_rate,2))","v":300},null,null,{"$f":"IF(BX32=\"\",\"\",TRUNC((BX32-BX33)*BR_rate,2))","v":300},null,null,null,null,null,null,null,null,null,{"$f":"IF(CH32=\"\",\"\",TRUNC((CH32-CH33)*BR_rate,2))","v":300},null,null,null,null,{"$f":"IF(CM32=\"\",\"\",TRUNC((CM32-CM33)*BR_rate,2))","v":75.23},{"$f":"IF(CN32=\"\",\"\",TRUNC((CN32-CN33)*BR_rate,2))","v":""},{"$f":"IF(CO32=\"\",\"\",TRUNC((CO32-CO33)*BR_rate,2))","v":""},{"$f":"IF(CP32=\"\",\"\",TRUNC((CP32-CP33)*BR_rate,2))","v":75.23},null,null,null,{"$f":"IF(CT32=\"\",\"\",TRUNC((CT32-CT33)*BR_rate,2))","v":1004},null,null,null,{"$f":"IF(CX32=\"\",\"\",TRUNC((CX32-CX33)*BR_rate,2))","v":3004},null,null,null,null,null,null,null,null,null,null,null,null,null,null,{"$f":"IF(DM32=\"\",\"\",TRUNC((DM32-DM33)*BR_rate,2))","v":1152},null,null,null,null,null,null,null,null,null,null,null,null,null,null,null,{"$f":"IF(EC32=\"\",\"\",TRUNC((EC32-EC33)*BR_rate,2))","v":238},null,{"$f":"IF(EE32=\"\",\"\",TRUNC((EE32-EE33)*BR_rate,2))","v":1004},null,null,null,null,null,null,null,null,null,null,null,null,null,null,null,null,null,null,null,null,null,{"$f":"IF(FA32=\"\",\"\",TRUNC((FA32-FA33)*BR_rate,2))","v":1004},null,{"$f":"IF(FC32=\"\",\"\",TRUNC((FC32-FC33)*BR_rate,2))","v":300},null,null,{"$f":"IF(FF32=\"\",\"\",TRUNC((FF32-FF33)*BR_rate,2))","v":745.8},"","","","",2420,1004,null,null,null,null,null,null,null,null,null,null,null,null,{"$f":"IF(FY32=\"\",\"\",TRUNC((FY32-FY33)*BR_rate,2))","v":1400},{"$f":"IF(FZ32=\"\",\"\",TRUNC((FZ32-FZ33)*BR_rate,2))","v":1400},{"$f":"IF(GA32=\"\",\"\",TRUNC((GA32-GA33)*BR_rate,2))","v":1400},{"$f":"IF(GB32=\"\",\"\",TRUNC((GB32-GB33)*BR_rate,2))","v":1400},null,null,null,null,null,null,null,{"$f":"IF(GJ32=\"\",\"\",TRUNC((GJ32-GJ33)*BR_rate,2))","v":1840},null,null,null,null,null,null,null,null,null,null,null,{"$f":"IF(GV32=\"\",\"\",TRUNC((GV32-GV33)*BR_rate,2))","v":1004},1050,null,null,null,null,null,null,null,null,null,null,null,null,null,null,null,null,null,null,null,null,null,null,null,null,null,null,null,null,null,null,null,{"$f":"IF(IC32=\"\",\"\",TRUNC((IC32-IC33)*BR_rate,2))","v":223.2},null,null,{"$f":"IF(IF32=\"\",\"\",TRUNC((IF32-IF33)*BR_rate,2))","v":194.4},null,null,null,null,null,{"$f":"IF(IL32=\"\",\"\",TRUNC((IL32-IL33)*BR_rate,2))","v":2000},null,null,null,null,null,null,null,null,null,null,3596.55,27,null,null,null,null,null,null,null,null,null,15,null,15,null,null,155,null,null,null,null,null,"If present, must be less than or equal to INC17","SA Monetary value (2dp) > 0.00"]
[5,{"$f":"IF(INC_C_IND>1,IF(HLOOKUP(INC_C_IND-1,INC_C_RANGE,A35)=\"\",\"\",HLOOKUP(INC_C_IND-1,INC_C_RANGE,A35)),\"\")","v":""},"INC20","Benefit from pre-owned assets",null,null,null,null,null,null,null,null,null,null,null,null,null,null,null,null,null,null,null,null,null,null,null,null,null,null,null,null,null,null,null,null,null,null,null,null,null,null,null,null,null,null,null,null,null,null,null,null,null,null,null,null,null,null,null,null,null,null,null,null,null,null,null,null,null,null,null,null,null,null,null,null,null,null,null,null,null,null,null,null,null,null,null,null,null,null,null,null,null,null,null,null,null,null,null,null,1265,null,null,null,null,null,null,null,null,null,null,null,null,null,null,null,null,null,null,null,null,null,null,null,null,null,null,null,null,null,null,null,null,null,null,null,null,null,null,null,null,null,null,null,null,null,null,null,null,null,null,null,null,null,null,null,null,null,null,null,null,null,null,null,null,null,null,null,null,null,null,null,null,null,null,null,null,null,null,null,null,null,null,null,null,null,null,null,null,null,null,null,null,1265,1265,null,null,null,null,null,1265,null,null,null,null,null,null,null,null,null,null,null,null,null,null,null,null,null,null,null,null,null,null,null,null,null,null,null,null,null,null,null,null,null,null,null,null,null,null,null,null,null,null,null,null,null,null,null,null,null,null,null,null,null,null,null,null,null,null,null,null,null,null,null,null,null,null,null,null,null,null,null,null,null,null,null,null,null,null,"SA Monetary value (2dp) > 0.00"]
[6,{"$f":"IF(INC_C_IND>1,IF(HLOOKUP(INC_C_IND-1,INC_C_RANGE,A36)=\"\",\"\",HLOOKUP(INC_C_IND-1,INC_C_RANGE,A36)),\"\")","v":""},"INC21","Description of income in boxes 17 and 20",null,null,null,null,null,null,null,null,"bee keeper",null,null,"tv extra ","Published articles",null,null,null,null,null,null,null,null,"Examiner fees",null,"bee keeper","bee keeper",null,null,null,"Writing",null,null,null,null,null,"Brewing",null,"Distilling",null,null,null,"accounts",null,null,null,null,null,null,null,null,null,null,"book sales",null,null,null,null,null,null,null,null,null,null,null,"bee keeper","bee keeper","accounts","bee keeper",null,"bee keeper",null,null,"bee keeper",null,null,null,null,null,null,null,null,null,"bee keeper",null,null,null,null,"tv extra ",null,null,"tv extra ",null,null,null,"dancing",null,null,"internet sales","dancing",null,null,null,null,null,null,null,null,null,null,null,null,null,null,"dancing",null,null,null,"Proof reading",null,null,null,null,null,null,null,null,null,null,null,"book sales",null,"dancing",null,null,null,null,null,null,null,null,null,null,null,null,null,null,null,null,null,null,null,null,null,"dancing",null,"bee keeper",null,null,"book sales",null,null,null,null,null,"dancing",null,null,null,null,null,null,null,null,null,null,null,null,"accounts","accounts","accounts","accounts",null,null,null,null,null,null,null,"accounts",null,"internet sales","internet sales",null,null,null,null,null,"internet sales",null,null,"dancing","accounts",null,null,null,null,null,null,null,null,null,null,null,null,null,null,null,null,null,null,null,null,null,null,null,null,null,null,null,null,null,null,null,"pallet furniture",null,null,"leaflet distribution",null,null,null,null,null,"financier",null,null,null,null,null,null,null,null,null,null,null,null,null,null,null,null,null,null,null,null,null,"extra",null,null,null,null,null,null,null,null,null,null,null,"SA non-empty string"]
[null,null,"Paying into registered pension schemes and overseas pension schemes"]
["row",{"$f":"\"selected \"&REL_A_IND-1","v":"selected 0"},"REL-A",null,1,2,3,4,5,6,7,8,9,10,11,12,13,14,15,16,17,18,19,20,21,22,23,24,25,26,27,28,29,30,31,32,33,34,35,36,37,38,39,40,41,42,43,44,45,46,47,48,49,50,51,52,53,54,55,56,57,58,59,60,61,62,63,64,65,66,67,68,69,70,71,72,73,74,75,76,77,78,79,80,81,82,83,84,85,86,87,88,89,90,91,92,93,94,95,96,97,98,99,100,101,102,103,104,105,106,107,108,109,110,111,112,113,114,115,116,117,118,119,120,121,122,123,124,125,126,127,128,129,130,131,132,133,134,135,136,137,138,139,140,141,142,143,144,145,146,147,148,149,150,151,152,153,154,155,156,157,158,159,160,161,162,163,164,165,166,167,168,169,170,171,172,173,174,175,176,177,178,179,180,181,182,183,184,185,186,187,188,189,190,191,192,193,194,195,196,197,198,199,200,201,202,203,204,205,206,207,208,209,210,211,212,213,214,215,216,217,218,219,220,221,222,223,224,225,226,227,228,229,230,231,232,233,234,235,236,237,238,239,240,241,242,243,244,245,246,247,248,249,250,251,252,253,254,255,256,257,258,259,260,261,262,263,264,265,266,267,268,269,270,271,272,273,null,null,"Type"]
[2,{"$f":"IF(REL_A_IND>1,IF(HLOOKUP(REL_A_IND-1,REL_A_RANGE,A39)=\"\",\"\",HLOOKUP(REL_A_IND-1,REL_A_RANGE,A39)),\"\")","v":""},"REL1","Payments to registered pension schemes - basic rate tax relief claimed",3600,null,1000,null,null,null,null,null,null,null,3450,null,null,null,null,null,4200,null,null,4000,null,7200,700,null,null,null,null,null,15000,22500,null,null,null,null,null,null,null,null,2750,null,3205,null,null,null,null,null,null,null,null,null,null,3205,null,2000,null,null,null,null,null,null,null,null,null,null,null,null,null,null,null,null,null,null,null,null,null,null,1800,null,14418,null,null,null,null,22000,null,3205,null,null,null,null,null,null,null,3205,3205,5067,1800,null,null,null,null,null,null,null,null,54000,1800,null,null,null,null,null,null,1865,null,null,null,null,null,null,null,null,null,null,null,null,null,null,null,null,null,null,null,null,null,null,null,15000,null,null,null,null,null,null,null,null,null,null,null,null,null,null,1800,null,null,null,null,null,null,null,4000,null,null,null,null,null,null,null,null,null,null,null,null,null,null,null,null,null,null,null,null,null,null,null,null,null,null,null,null,1800,1800,null,null,null,null,14418,null,null,null,null,null,null,1800,null,null,null,null,null,null,null,null,null,null,null,null,4000,null,null,null,null,null,null,null,null,null,null,null,null,4800,null,null,null,null,null,{"$f":"ABS(BR_band-(SSR_band+SBR_band+SIR_band))","v":6608},null,5190,null,null,39872.629999999997,null,23000,null,null,2000,null,null,null,null,null,null,null,null,null,null,null,null,null,null,250,null,null,null,250,null,12000,null,null,null,null,null,null,13750,null,null,"SA Monetary value (2dp) > 0.00"]
[3,{"$f":"IF(REL_A_IND>1,IF(HLOOKUP(REL_A_IND-1,REL_A_RANGE,A40)=\"\",\"\",HLOOKUP(REL_A_IND-1,REL_A_RANGE,A40)),\"\")","v":""},"REL1.1","total of any 'one off' payments in box 1",1000,null,null,null,null,null,null,null,null,null,450,null,null,null,null,null,null,null,null,null,null,null,500,null,null,null,null,null,null,null,null,null,null,null,null,null,null,null,null,null,null,null,null,null,null,null,null,null,null,null,null,null,null,null,null,null,null,null,null,null,null,null,null,null,null,null,null,null,null,null,null,null,null,null,null,null,null,null,null,null,null,null,null,22000,null,null,null,null,null,null,null,null,null,null,null,null,null,null,null,null,null,null,null,null,null,43200]
[4,{"$f":"IF(REL_A_IND>1,IF(HLOOKUP(REL_A_IND-1,REL_A_RANGE,A41)=\"\",\"\",HLOOKUP(REL_A_IND-1,REL_A_RANGE,A41)),\"\")","v":""},"REL2","Payments to a retirement annuity contract - basic rate tax relief not claimed",null,null,null,null,null,null,null,null,null,null,null,null,null,null,null,null,null,null,null,null,null,null,null,null,null,null,null,null,null,null,1700,2500,null,52500,null,null,null,null,960,null,681,null,null,null,null,null,null,null,null,null,10010,681,null,null,null,null,null,null,null,null,null,null,null,null,null,null,null,null,null,null,null,null,null,null,null,null,null,null,null,null,null,1200,null,null,null,681,null,null,null,null,null,10010,10010,681,681,213,null,null,10010,null,null,null,null,null,null,null,null,null,null,null,null,null,null,null,null,null,null,null,null,null,null,null,null,null,null,null,null,null,null,null,null,null,null,null,null,null,null,null,null,null,null,null,null,null,null,null,null,null,null,null,null,null,null,null,null,null,null,null,null,null,null,null,null,null,null,null,null,null,null,null,null,null,null,null,null,null,null,null,null,null,null,null,null,null,null,null,null,null,null,null,null,null,null,null,null,null,null,null,null,null,null,null,null,null,null,null,null,null,null,null,null,null,null,null,null,null,null,null,null,null,null,null,null,null,null,null,null,null,null,null,null,null,null,null,null,null,null,null,null,null,null,null,null,null,null,null,null,null,null,null,null,null,null,null,null,null,10010,null,null,null,null,null,null,null,null,null,null,null,null,null,null,null,null,null,null,"SA Monetary value (2dp) > 0.00"]
[5,{"$f":"IF(REL_A_IND>1,IF(HLOOKUP(REL_A_IND-1,REL_A_RANGE,A42)=\"\",\"\",HLOOKUP(REL_A_IND-1,REL_A_RANGE,A42)),\"\")","v":""},"REL3","Payments to employer’s scheme not deducted from pay before tax",null,null,null,null,null,null,null,null,null,null,null,null,null,null,null,null,null,null,null,null,null,null,null,null,null,null,null,null,null,null,null,null,null,null,null,null,null,null,null,null,null,null,null,null,null,null,null,null,null,null,null,null,null,null,null,null,null,null,null,null,null,null,null,null,null,null,null,null,null,null,null,null,null,null,null,null,null,null,null,null,null,null,null,null,null,null,null,null,null,null,null,null,null,null,null,null,null,null,null,null,null,null,null,null,null,null,null,null,null,null,null,null,null,null,null,null,null,null,null,null,null,null,null,null,null,null,null,null,null,null,null,null,null,null,null,null,null,null,null,null,null,null,null,null,null,null,null,null,null,null,null,null,null,null,null,null,null,null,null,null,null,null,null,null,null,null,null,null,null,null,null,null,null,null,null,null,null,null,null,null,null,null,null,null,null,null,null,null,null,null,null,null,null,null,null,null,null,null,null,null,null,null,null,null,null,null,null,null,null,null,null,null,null,null,null,null,null,null,null,null,null,null,null,null,null,null,null,null,null,null,null,null,null,null,null,null,null,null,null,null,null,null,null,null,null,null,null,null,null,null,null,null,null,null,null,null,null,null,null,null,null,null,null,null,null,null,null,null,null,null,null,null,null,null,null,"SA Monetary value (2dp) > 0.00"]
[6,{"$f":"IF(REL_A_IND>1,IF(HLOOKUP(REL_A_IND-1,REL_A_RANGE,A43)=\"\",\"\",HLOOKUP(REL_A_IND-1,REL_A_RANGE,A43)),\"\")","v":""},"REL4","Payments to an overseas pension scheme - eligible for tax relief not deducted from pay before tax",null,null,null,null,null,null,null,null,null,null,null,null,null,null,null,null,null,null,null,null,null,null,null,null,null,null,null,null,null,null,null,null,null,null,null,null,null,null,null,null,null,null,null,null,null,null,null,null,null,null,null,null,null,null,null,null,null,null,null,null,null,null,null,null,null,null,null,null,null,null,null,null,null,null,null,null,null,null,null,null,null,null,null,null,null,null,null,null,null,null,null,null,null,null,null,null,null,null,null,null,null,null,null,null,null,null,null,null,null,null,null,null,null,null,14054,null,null,null,14054,null,null,null,null,null,null,null,null,null,null,null,null,null,null,null,null,null,null,null,null,null,null,null,null,null,null,null,null,null,null,null,null,null,null,null,null,null,null,null,null,null,null,null,null,null,null,null,null,null,null,null,null,null,null,null,null,null,null,null,null,null,null,null,null,null,null,null,null,null,null,null,null,null,null,null,null,null,null,null,null,null,null,null,null,null,null,null,null,null,null,null,null,null,null,null,null,null,null,null,null,null,null,null,null,null,null,null,null,null,null,null,null,null,null,null,null,null,null,null,null,null,null,null,null,null,null,null,null,null,null,null,null,null,null,null,null,null,null,null,null,null,null,null,null,null,null,null,null,null,null,null,null,null,null,null,null,"SA Monetary value (2dp) > 0.00"]
[null,null,"Charitable giving"]
["row",{"$f":"\"selected \"&REL_B_IND-1","v":"selected 0"},"REL-B",null,1,2,3,4,5,6,7,8,9,10,11,12,13,14,15,16,17,18,19,20,21,22,23,24,25,26,27,28,29,30,31,32,33,34,35,36,37,38,39,40,41,42,43,44,45,46,47,48,49,50,51,52,53,54,55,56,57,58,59,60,61,62,63,64,65,66,67,68,69,70,71,72,73,74,75,76,77,78,79,80,81,82,83,84,85,86,87,88,89,90,91,92,93,94,95,96,97,98,99,100,101,102,103,104,105,106,107,108,109,110,111,112,113,114,115,116,117,118,119,120,121,122,123,124,125,126,127,128,129,130,131,132,133,134,135,136,137,138,139,140,141,142,143,144,145,146,147,148,149,150,151,152,153,154,155,156,157,158,159,160,161,162,163,164,165,166,167,168,169,170,171,172,173,174,175,176,177,178,179,180,181,182,183,184,185,186,187,188,189,190,191,192,193,194,195,196,197,198,199,200,201,202,203,204,205,206,207,208,209,210,211,212,213,214,215,216,217,218,219,220,221,222,223,224,225,226,227,228,229,230,231,232,233,234,235,236,237,238,239,240,241,242,243,244,245,246,247,248,249,250,251,252,253,254,255,256,257,258,259,260,261,262,263,264,265,266,267,268,269,270,271,272,273,null,null,"Type"]
[2,{"$f":"IF(REL_B_IND>1,IF(HLOOKUP(REL_B_IND-1,REL_B_RANGE,A46)=\"\",\"\",HLOOKUP(REL_B_IND-1,REL_B_RANGE,A46)),\"\")","v":""},"REL5","Gift Aid payments",null,null,500,null,null,null,null,150,1200,2400,2672,null,2299,null,null,null,null,null,5375,null,null,1700,null,null,null,4145,760,598,null,null,null,978,null,null,null,null,3450,null,null,50,null,null,null,null,null,null,null,null,null,480,null,3450,null,null,16437,null,null,null,null,3450,null,240,null,114,null,3450,null,null,2400,null,null,null,2400,null,null,null,null,449,null,null,7400,2400,3450,6145,null,null,1000,550,null,null,10000,240,240,3450,null,1620,1000,null,null,3450,234,null,11000,3450,null,196,null,null,null,null,null,null,null,null,null,null,null,1350,null,null,null,null,1139.2,null,600,null,null,950,null,null,null,null,null,null,null,null,null,null,null,10000,null,null,null,1291,null,null,860,null,null,15000,null,940,null,null,1291,null,null,2000,null,null,null,11350,1775,null,null,null,3000,null,null,null,500,null,null,null,null,null,null,24080,null,31250,100,null,null,null,null,null,null,null,null,1000,1000,null,null,null,11000,null,240,325,null,null,null,null,2400,null,null,null,null,null,null,null,null,240,null,5750,null,null,2600,null,null,80,null,null,null,null,null,6700,null,60,null,519,463,null,5886,351,170,27650,null,null,null,null,null,null,null,null,200,null,null,null,null,null,null,null,841610.25,942400,978,null,null,2475,null,3450,null,1500,null,10000,null,1015,5405,4842.2,null,10000,120000,879,200,null,null,"SA Monetary value (2dp) > 0.00"]
[3,{"$f":"IF(REL_B_IND>1,IF(HLOOKUP(REL_B_IND-1,REL_B_RANGE,A47)=\"\",\"\",HLOOKUP(REL_B_IND-1,REL_B_RANGE,A47)),\"\")","v":""},"REL6","Total of any ‘one-off’ payments in box 5",null,null,null,null,null,null,null,null,null,null,null,null,null,null,null,null,null,null,4500,null,null,500,null,null,null,null,null,null,null,null,null,null,null,null,null,null,3000,null,null,50,null,null,null,null,null,null,null,null,null,null,null,3000,null,null,16437,null,null,null,null,3000,null,null,null,null,null,3000,null,null,null,null,null,null,null,null,null,null,null,null,null,null,null,null,3000,null,null,null,null,null,null,null,null,null,null,3000,null,null,null,null,null,3000,5,null,null,3000,null,100,null,null,null,null,null,null,null,null,null,null,null,null,null,null,null,null,null,null,null,null,null,null,null,null,null,null,null,null,null,null,null,null,null,10000,null,null,null,null,null,null,null,null,null,null,null,700,null,null,null,null,null,2000,null,null,null,310,1775,null,null,null,null,null,null,null,null,null,null,null,null,null,null,null,null,null,null,null,null,null,null,null,null,null,null,null,null,null,null,null,null,null,null,null,null,null,null,null,null,null,null,null,null,null,null,null,null,null,null,null,null,null,null,null,null,null,null,null,null,null,null,null,null,null,null,null,219,null,null,null,null,null,null,null,null,null,null,null,null,null,null,null,null,null,null,null,null,null,828610.25,46400,null,null,null,2475,null,3000,null,null,null,null,null,675,3234,null,null,null,100000,null,null,null,"If present, must be less than or equal to REL5","SA Monetary value (2dp) > 0.00"]
[4,"","REL7","Gift Aid payments treated as made in PY",null,null,null,null,null,null,null,null,null,null,null,null,null,null,null,null,null,null,null,null,null,null,null,null,null,null,null,null,null,null,null,null,null,null,null,null,null,null,null,null,null,null,null,null,null,null,null,null,null,null,null,null,null,null,null,null,null,null,null,null,null,null,null,null,null,null,null,null,null,null,null,null,null,null,null,null,null,null,null,null,null,null,null,null,null,null,100,null,null,null,null,null,null,null,null,130,100,null,null,null,132,null,null,null,null,null,null,null,null,null,null,null,null,null,null,null,null,null,null,null,null,null,null,null,null,null,null,300,null,null,null,null,null,null,null,null,null,null,null,null,null,null,null,null,null,null,null,null,null,null,null,null,null,null,null,null,null,1500,null,null,null,null,null,null,null,null,null,null,null,null,null,null,null,null,null,null,null,null,null,null,null,null,null,null,null,null,null,null,null,100,100,null,null,null,null,null,null,null,null,null,null,null,null,null,null,null,null,null,null,null,null,null,null,null,null,null,2000,null,null,null,null,null,null,null,null,null,null,null,null,null,null,null,null,null,null,null,null,null,null,null,null,null,null,null,null,null,null,null,null,null,null,null,805110.25,896000,null,null,null,null,null,null,null,null,null,null,null,null,80,null,null,null,null,null,null,null,"If present, must be less than or equal to REL5","SA Monetary value (2dp) > 0.00"]
[5,"","REL8","Gift Aid payments treated as made in CY",null,null,null,null,null,null,null,null,null,null,null,null,null,null,null,null,null,null,null,null,null,null,null,null,null,null,null,null,null,null,null,null,null,null,null,null,null,null,null,null,null,null,null,null,null,null,null,null,null,null,null,null,null,null,null,null,null,null,null,null,null,null,null,null,null,null,null,null,null,null,null,null,null,null,null,null,null,null,null,null,null,null,null,null,null,null,200,null,null,null,null,null,null,null,null,null,200,null,null,null,null,null,null,null,null,null,null,null,null,null,null,null,null,null,null,null,null,null,null,null,null,null,null,null,null,null,null,null,null,null,null,null,null,null,null,null,null,null,null,null,null,null,null,null,null,null,null,null,null,null,null,null,null,10000,null,null,null,4820,null,null,null,null,null,null,null,null,null,null,null,null,null,null,null,null,null,null,null,null,null,null,null,null,null,null,null,null,null,null,null,200,200,null,null,null,null,null,null,null,null,null,null,null,null,null,null,null,null,null,null,null,null,null,null,200,null,null,22400,null,null,null,null,null,null,null,null,null,null,null,null,null,null,null,null,null,null,6000,null,null,null,null,null,null,null,null,null,null,null,null,null,null,null,null,255396,882500,null,null,null,null,null,null,null,null,null,null,null,null,null,null,null,null,null,null,null,null,null,"SA Monetary value (2dp) > 0.00"]
[6,"","REL9","Qualifying shares or securities gifted to charity",null,null,null,null,null,null,null,null,null,null,null,null,null,null,null,null,null,null,null,null,null,null,null,null,null,null,null,null,null,null,null,null,null,null,null,null,null,null,null,null,null,null,null,null,null,null,null,null,null,null,null,null,null,null,null,null,null,null,null,null,null,2145,null,null,null,null,null,null,null,null,null,null,null,null,null,2370,null,null,null,null,null,null,null,null,null,null,null,null,null,null,null,2145,2145,null,null,null,null,null,null,null,null,400912,null,null,null,null,null,null,null,null,null,null,null,null,null,null,null,null,null,null,null,null,null,null,null,null,null,null,null,null,null,null,null,null,null,null,null,null,null,null,null,null,null,null,null,null,null,null,null,null,null,null,null,null,null,null,null,null,null,null,null,null,null,null,null,null,null,null,null,null,null,null,null,null,null,null,null,null,null,null,null,null,null,null,null,null,null,null,null,null,null,null,null,null,null,null,2145,null,null,null,null,null,null,null,null,null,null,null,null,null,null,2145,null,null,null,null,null,null,null,null,null,null,null,null,null,206910,null,null,null,179999,null,null,null,null,null,256421,null,null,null,null,null,null,null,null,null,null,null,null,null,null,null,null,null,null,null,null,null,null,null,null,null,null,null,null,null,null,null,null,null,null,null,null,null,null,null,"SA Monetary value (2dp) > 0.00"]
[7,"","REL10","Qualifying land and buildings gifted to charity",null,null,null,null,null,null,null,null,null,null,null,null,null,null,null,null,null,null,null,null,null,null,null,null,null,null,null,null,null,null,null,null,null,null,null,null,null,null,null,null,null,null,null,null,null,null,null,null,null,null,null,null,null,null,null,null,19590,null,null,null,null,null,null,null,null,null,null,null,null,null,null,null,null,34750,null,null,null,null,null,null,null,null,null,null,null,42900,null,null,null,null,null,null,null,null,null,null,null,null,35130,null,null,null,null,null,null,null,null,null,null,null,null,null,36500,null,null,null,null,null,null,null,null,null,null,null,null,null,null,null,null,null,null,null,null,null,null,null,null,null,null,null,null,null,null,null,null,null,null,null,null,null,null,null,null,null,null,null,null,null,null,null,null,null,null,null,16965,null,null,null,null,null,null,null,null,null,null,null,null,null,null,null,null,null,null,null,null,null,null,null,null,null,null,null,null,null,null,null,null,null,null,null,null,null,null,null,null,null,null,null,null,null,null,null,null,null,null,null,null,null,73658,null,null,null,null,null,null,null,null,null,null,null,null,null,null,null,null,null,null,null,null,null,null,null,null,null,null,null,null,null,null,null,null,null,null,null,null,null,null,null,null,null,null,null,null,null,null,null,null,null,null,null,null,null,null,null,null,"SA Monetary value (2dp) > 0.00"]
[null,null,"Blind Person’s Allowance"]
["row",{"$f":"\"selected \"&REL_C_IND-1","v":"selected 0"},"REL-C",null,1,2,3,4,5,6,7,8,9,10,11,12,13,14,15,16,17,18,19,20,21,22,23,24,25,26,27,28,29,30,31,32,33,34,35,36,37,38,39,40,41,42,43,44,45,46,47,48,49,50,51,52,53,54,55,56,57,58,59,60,61,62,63,64,65,66,67,68,69,70,71,72,73,74,75,76,77,78,79,80,81,82,83,84,85,86,87,88,89,90,91,92,93,94,95,96,97,98,99,100,101,102,103,104,105,106,107,108,109,110,111,112,113,114,115,116,117,118,119,120,121,122,123,124,125,126,127,128,129,130,131,132,133,134,135,136,137,138,139,140,141,142,143,144,145,146,147,148,149,150,151,152,153,154,155,156,157,158,159,160,161,162,163,164,165,166,167,168,169,170,171,172,173,174,175,176,177,178,179,180,181,182,183,184,185,186,187,188,189,190,191,192,193,194,195,196,197,198,199,200,201,202,203,204,205,206,207,208,209,210,211,212,213,214,215,216,217,218,219,220,221,222,223,224,225,226,227,228,229,230,231,232,233,234,235,236,237,238,239,240,241,242,243,244,245,246,247,248,249,250,251,252,253,254,255,256,257,258,259,260,261,262,263,264,265,266,267,268,269,270,271,272,273,null,null,"Type"]
[2,{"$f":"IF(REL_C_IND>1,IF(HLOOKUP(REL_C_IND-1,REL_C_RANGE,A54)=\"\",\"\",HLOOKUP(REL_C_IND-1,REL_C_RANGE,A54)),\"\")","v":""},"REL13","Registered blind, or severely sight impaired",null,null,null,null,null,null,null,null,null,null,null,null,null,null,null,null,null,null,null,null,null,null,null,"Y",null,null,"Y",null,null,null,null,null,null,null,null,null,null,null,null,null,null,null,"Y",null,null,null,null,null,null,null,null,null,null,null,null,null,null,null,null,null,null,null,"Y",null,null,null,null,null,null,null,null,null,null,null,null,null,null,null,null,null,"Y",null,null,null,null,null,null,null,null,null,null,null,null,null,null,null,null,null,"Y",null,null,null,null,null,null,null,null,null,null,null,null,null,null,null,null,null,null,null,null,null,null,null,null,null,null,null,null,null,null,null,null,null,null,null,null,null,null,null,null,null,null,null,null,null,null,null,null,null,null,null,null,null,null,null,null,null,null,null,null,null,null,null,null,null,null,null,null,null,null,null,null,null,null,null,null,null,null,null,null,null,null,null,null,null,null,null,null,null,null,null,null,null,null,null,null,null,null,"Y",null,null,null,null,null,null,null,null,null,null,null,null,null,null,null,null,null,null,null,null,null,null,null,null,null,null,null,null,null,null,null,null,null,null,null,"Y",null,null,null,null,null,null,null,null,null,null,null,null,null,null,null,null,null,null,null,null,null,null,null,null,null,null,null,null,null,null,null,null,null,null,null,null,null,null,null,null,null,"\"yes\""]
[3,{"$f":"IF(REL_C_IND>1,IF(HLOOKUP(REL_C_IND-1,REL_C_RANGE,A55)=\"\",\"\",HLOOKUP(REL_C_IND-1,REL_C_RANGE,A55)),\"\")","v":""},"REL14","Name of the local authority or other register",null,null,null,null,null,null,null,null,null,null,null,null,null,null,null,null,null,null,null,null,null,null,null,"Edinburgh",null,null,"Inverness",null,null,null,null,null,null,null,null,null,null,null,null,null,null,null,"Liverpool",null,null,null,null,null,null,null,null,null,null,null,null,null,null,null,null,null,null,null,"Liverpool",null,null,null,null,null,null,null,null,null,null,null,null,null,null,null,null,null,"Liverpool",null,null,null,null,null,null,null,null,null,null,null,null,null,null,null,null,null,"Liverpool",null,null,null,null,null,null,null,null,null,null,null,null,null,null,null,null,null,null,null,null,null,null,null,null,null,null,null,null,null,null,null,null,null,null,null,null,null,null,null,null,null,null,null,null,null,null,null,null,null,null,null,null,null,null,null,null,null,null,null,null,null,null,null,null,null,null,null,null,null,null,null,null,null,null,null,null,null,null,null,null,null,null,null,null,null,null,null,null,null,null,null,null,null,null,null,null,null,null,"Liverpool",null,null,null,null,null,null,null,null,null,null,null,null,null,null,null,null,null,null,null,null,null,null,null,null,null,null,null,null,null,null,null,null,null,null,null,"Edinburgh",null,null,null,null,null,null,null,null,null,null,null,null,null,null,null,null,null,null,null,null,null,null,null,null,null,null,null,null,null,null,null,null,null,null,null,null,null,null,null,null,null,"SA non-empty string"]
[4,{"$f":"IF(REL_C_IND>1,IF(HLOOKUP(REL_C_IND-1,REL_C_RANGE,A56)=\"\",\"\",HLOOKUP(REL_C_IND-1,REL_C_RANGE,A56)),\"\")","v":""},"REL15","If you want your spouse’s, or civil partner’s, surplus allowance, put ‘X’ in the box",null,null,null,null,null,null,null,null,null,null,null,null,null,null,null,null,null,null,null,null,null,null,null,"N",null,null,"N",null,null,null,null,null,null,null,null,null,null,null,null,null,null,null,"N",null,null,null,null,null,null,null,null,null,null,null,null,null,null,null,null,null,null,null,"N",null,null,null,null,null,null,null,null,null,null,null,null,null,null,null,null,null,"N",null,null,null,null,null,null,null,null,null,null,null,null,null,null,null,null,null,"N",null,null,null,null,null,null,null,null,null,null,null,null,null,null,null,null,null,null,null,null,null,null,null,null,null,null,null,null,null,null,null,null,null,null,null,null,null,null,null,null,null,null,null,null,null,null,null,null,null,null,null,null,null,null,null,null,null,null,null,null,null,null,null,null,null,null,null,null,null,null,null,null,null,null,null,null,null,null,null,null,null,null,null,null,null,null,null,null,null,null,null,null,null,null,null,null,null,null,"N",null,null,null,null,null,null,null,null,null,null,null,null,null,null,null,null,null,null,null,null,null,null,null,null,null,null,null,null,null,null,null,null,null,null,null,"N",null,null,null,null,null,null,null,null,null,null,null,null,null,null,null,null,null,null,null,null,null,null,null,null,null,null,null,null,null,null,null,null,null,null,null,null,null,null,null,null,null,"\"yes\""]
[5,{"$f":"IF(REL_C_IND>1,IF(HLOOKUP(REL_C_IND-1,REL_C_RANGE,A57)=\"\",\"\",HLOOKUP(REL_C_IND-1,REL_C_RANGE,A57)),\"\")","v":""},"REL16","If you want your spouse, or civil partner, to have your surplus allowance, put ‘X’ in the box",null,null,null,null,null,null,null,null,null,null,null,null,null,null,null,null,null,null,null,null,null,null,null,"N",null,null,"N",null,null,null,null,null,null,null,null,null,null,null,null,null,null,null,"N",null,null,null,null,null,null,null,null,null,null,null,null,null,null,null,null,null,null,null,"N",null,null,null,null,null,null,null,null,null,null,null,null,null,null,null,null,null,"N",null,null,null,null,null,null,null,null,null,null,null,null,null,null,null,null,null,"N",null,null,null,null,null,null,null,null,null,null,null,null,null,null,null,null,null,null,null,null,null,null,null,null,null,null,null,null,null,null,null,null,null,null,null,null,null,null,null,null,null,null,null,null,null,null,null,null,null,null,null,null,null,null,null,null,null,null,null,null,null,null,null,null,null,null,null,null,null,null,null,null,null,null,null,null,null,null,null,null,null,null,null,null,null,null,null,null,null,null,null,null,null,null,null,null,null,null,"N",null,null,null,null,null,null,null,null,null,null,null,null,null,null,null,null,null,null,null,null,null,null,null,null,null,null,null,null,null,null,null,null,null,null,null,"N",null,null,null,null,null,null,null,null,null,null,null,null,null,null,null,null,null,null,null,null,null,null,null,null,null,null,null,null,null,null,null,null,null,null,null,null,null,null,null,null,null,"\"yes\""]
[null,null,"Student Loan repayments",null,"N.B. SLR2 amounts relate to EMP amounts e.g. EMP=1 relates to SLR=1 (up to EMP=11 & SLR=11)"]
["row",{"$f":"\"selected \"&SLR_ind-1","v":"selected 0"},"SLR",null,1,2,3,4,5,6,7,8,9,10,11,12,13,14,15,16,17,18,19,20,21,22,23,24,25,26,27,28,29,30,31,32,33,34,35,36,37,38,39,40,41,42,43,44,45,46,47,48,49,50,51,52,53,54,55,56,57,58,59,60,61,62,63,64,65,66,67,68,69,70,71,72,73,74,75,76,77,78,79,80,81,82,83,84,85,86,87,88,89,90,91,92,93,94,95,96,97,98,99,100,101,102,103,104,105,106,107,108,109,110,111,112,113,114,115,116,117,118,119,120,121,122,123,124,125,126,127,128,129,130,131,132,133,134,135,136,137,138,139,140,141,142,143,144,145,146,147,148,149,150,151,152,153,154,155,156,157,158,159,160,161,162,163,164,165,166,167,168,169,170,171,172,173,174,175,176,177,178,179,180,181,182,183,184,185,186,187,188,189,190,191,192,193,194,195,196,197,198,199,200,201,202,203,204,205,206,207,208,209,210,211,212,213,214,215,216,217,218,219,220,221,222,223,224,225,226,227,228,229,230,231,232,233,234,235,236,237,238,239,240,241,242,243,244,245,246,247,248,249,250,251,252,253,254,255,256,257,258,259,260,261,262,263,264,265,266,267,268,269,270,271,272,273,null,null,"Type"]
[2,{"$f":"IF(SLR_ind>1,IF(HLOOKUP(SLR_ind-1,SLR_RANGE,A60)=\"\",\"\",HLOOKUP(SLR_ind-1,SLR_RANGE,A60)),\"\")","v":""},"SLR1","Notification repayment of Student Loan began",null,null,null,"Y",null,null,null,null,"Y",null,null,null,null,"Y","Y",null,"Y",null,null,null,"Y",null,null,null,null,null,null,null,"Y",null,"Y","Y","Y",null,null,null,null,null,null,null,"Y",null,null,"Y",null,null,null,null,null,null,"Y",null,"Y","Y",null,null,null,null,null,null,null,null,null,null,null,null,null,null,null,null,null,null,null,null,null,null,null,null,null,null,null,null,null,null,null,null,null,null,null,null,null,null,null,null,null,null,null,null,null,null,null,"Y",null,null,null,null,null,null,null,"Y",null,null,null,null,null,null,null,null,null,null,"Y",null,null,null,null,null,null,null,null,null,null,null,null,null,null,null,"Y","Y",null,null,null,null,null,null,null,null,null,null,"Y",null,null,null,null,null,null,null,null,null,null,null,null,null,null,null,null,null,null,null,null,null,null,null,null,null,null,null,null,null,null,null,"Y",null,null,null,"Y",null,null,null,null,null,null,null,null,null,null,null,null,null,"Y",null,null,null,null,null,null,null,null,null,null,null,null,null,null,null,null,null,null,null,null,null,null,null,null,null,null,null,null,null,null,null,null,null,null,null,null,null,null,null,null,null,null,null,null,null,null,null,null,null,null,null,null,null,null,null,null,null,null,null,null,null,"Y",null,null,null,null,null,null,null,null,null,null,null,null,null,null,"\"yes\""]
[3,{"$f":"IF(SLR_ind>1,IF(HLOOKUP(SLR_ind-1,SLR_RANGE,A61)=\"\",\"\",HLOOKUP(SLR_ind-1,SLR_RANGE,A61)),\"\")","v":""},"SLRPT","Student Loan Plan Type (N.B. BOX NOT ON RETURN)",null,null,null,"02",null,null,null,null,"01",null,null,null,null,"02","01",null,null,null,null,null,null,null,null,null,null,null,null,null,"02",null,"04","04","04",null,null,null,null,null,null,null,"01",null,null,"01",null,null,null,null,null,null,"02",null,"02","01",null,null,null,null,null,null,null,null,null,null,null,null,null,null,null,null,null,null,null,null,null,null,null,null,null,null,null,null,null,null,null,null,null,null,null,null,null,null,null,null,null,null,null,null,null,null,null,null,null,null,null,null,null,null,null,"02",null,null,null,null,null,null,null,null,null,null,"01",null,null,null,null,null,null,null,null,null,null,null,null,null,null,null,"01","01",null,null,null,null,null,null,null,null,null,null,"01",null,null,null,null,null,null,null,null,null,null,null,null,null,null,null,null,null,null,null,null,null,null,null,null,null,null,null,null,null,null,null,"01",null,null,null,"04",null,null,null,null,null,null,null,null,null,null,null,null,null,"01",null,null,null,null,null,null,null,null,null,null,null,null,null,null,null,null,null,null,null,null,null,null,null,null,null,null,null,null,null,null,null,null,null,null,null,null,null,null,null,null,null,null,null,null,null,null,null,null,null,null,null,null,null,null,null,null,null,null,null,null,null,"01",null,null,null,null,null,null,null,null,null,null,null,null,null,null,"SA string"]
[4,{"$f":"IF(SLR_ind>1,IF(HLOOKUP(SLR_ind-1,SLR_RANGE,A62)=\"\",\"\",HLOOKUP(SLR_ind-1,SLR_RANGE,A62)),\"\")","v":""},"PGLRPT","Post Graduate Loan Plan Type (N.B. BOX NOT ON RETURN)",null,null,null,"03",null,null,null,null,"03",null,null,null,null,null,null,null,"03",null,null,null,"03",null,null,null,null,null,null,null,"03",null,null,null,"03",null,null,null,null,null,null,null,null,null,null,null,null,null,null,null,null,null,null,null,"03","03",null,null,null,null,null,null,null,null,null,null,null,null,null,null,null,null,null,null,null,null,null,null,null,null,null,null,null,null,null,null,null,null,null,null,null,null,null,null,null,null,null,null,null,null,null,null,null,"03"]
[5,{"$f":"IF(SLR_ind>1,IF(HLOOKUP(SLR_ind-1,SLR_RANGE,A63)=\"\",\"\",HLOOKUP(SLR_ind-1,SLR_RANGE,A63)),\"\")","v":""},"SLR2","Enter the amount deducted (U)",null,null,null,{"$f":"IF('C2'!$B3=\"\",0,MAX(0,('C2'!$B3-SL_limit2)*Sloan_rate))+IF('C2'!$B32=\"\",0,MAX(0,('C2'!$B32-SL_limit2)*Sloan_rate))","v":5465.79},null,null,null,null,null,null,null,null,null,{"$f":"IF('C2'!$B3=\"\",0,MAX(0,('C2'!$B3-SL_limit2)*Sloan_rate))+IF('C2'!$B32=\"\",0,MAX(0,('C2'!$B32-SL_limit2)*Sloan_rate))","v":5465.79},null,null,null,null,null,null,null,null,null,null,null,null,null,null,{"$f":"IF('C2'!$B3=\"\",0,MAX(0,('C2'!$B3-SL_limit2)*Sloan_rate))+IF('C2'!$B32=\"\",0,MAX(0,('C2'!$B32-SL_limit2)*Sloan_rate))","v":5465.79},null,{"$f":"IF('C2'!$B3=\"\",0,MAX(0,('C2'!$B3-SL_limit4)*Sloan_rate))+IF('C2'!$B32=\"\",0,MAX(0,('C2'!$B32-SL_limit4)*Sloan_rate))","v":5081.04},{"$f":"IF('C2'!$B3=\"\",0,MAX(0,('C2'!$B3-SL_limit4)*Sloan_rate))+IF('C2'!$B32=\"\",0,MAX(0,('C2'!$B32-SL_limit4)*Sloan_rate))","v":5081.04},{"$f":"IF('C2'!$B3=\"\",0,MAX(0,('C2'!$B3-SL_limit4)*Sloan_rate))+IF('C2'!$B32=\"\",0,MAX(0,('C2'!$B32-SL_limit4)*Sloan_rate))","v":5081.04},null,null,null,null,null,null,null,{"$f":"IF('C2'!$B3=\"\",0,MAX(0,('C2'!$B3-SL_limit1)*Sloan_rate))+IF('C2'!$B32=\"\",0,MAX(0,('C2'!$B32-SL_limit1)*Sloan_rate))","v":5682.24},null,null,{"$f":"IF('C2'!$B3=\"\",0,MAX(0,('C2'!$B3-SL_limit1)*Sloan_rate))+IF('C2'!$B32=\"\",0,MAX(0,('C2'!$B32-SL_limit1)*Sloan_rate))","v":5682.24},null,null,null,null,null,null,null,null,0,{"$f":"IF('C2'!$B3=\"\",0,MAX(0,('C2'!$B3-SL_limit1)*Sloan_rate))+IF('C2'!$B32=\"\",0,MAX(0,('C2'!$B32-SL_limit1)*Sloan_rate))","v":5682.24},null,null,null,null,null,null,null,null,null,null,null,null,null,null,null,null,null,null,null,null,null,null,null,null,null,null,null,null,null,null,null,null,null,null,null,null,null,null,null,null,null,null,null,null,null,null,null,null,null,null,null,null,null,null,null,{"$f":"IF('C2'!$B3=\"\",0,MAX(0,('C2'!$B3-SL_limit2)*Sloan_rate))+IF('C2'!$B32=\"\",0,MAX(0,('C2'!$B32-SL_limit2)*Sloan_rate))","v":5465.79},null,null,null,null,null,null,null,null,null,null,{"$f":"IF('C2'!$B3=\"\",0,MAX(0,('C2'!$B3-SL_limit1)*Sloan_rate))+IF('C2'!$B32=\"\",0,MAX(0,('C2'!$B32-SL_limit1)*Sloan_rate))","v":5682.24},null,null,null,null,null,null,null,null,null,null,null,null,null,null,null,{"$f":"IF('C2'!$B3=\"\",0,MAX(0,('C2'!$B3-SL_limit1)*Sloan_rate))+IF('C2'!$B32=\"\",0,MAX(0,('C2'!$B32-SL_limit1)*Sloan_rate))","v":5682.24},{"$f":"IF('C2'!$B3=\"\",0,MAX(0,('C2'!$B3-SL_limit1)*Sloan_rate))+IF('C2'!$B32=\"\",0,MAX(0,('C2'!$B32-SL_limit1)*Sloan_rate))","v":5682.24},null,null,null,null,null,null,null,null,null,null,{"$f":"IF('C2'!$B3=\"\",0,MAX(0,('C2'!$B3-SL_limit1)*Sloan_rate))+IF('C2'!$B32=\"\",0,MAX(0,('C2'!$B32-SL_limit1)*Sloan_rate))","v":5682.24},null,null,null,null,null,null,null,null,null,null,null,null,null,null,null,null,null,null,null,null,null,null,null,null,null,null,null,null,null,null,null,3279,null,null,null,{"$f":"IF('C2'!$B3=\"\",0,MAX(0,('C2'!$B3-SL_limit4)*Sloan_rate))+IF('C2'!$B32=\"\",0,MAX(0,('C2'!$B32-SL_limit4)*Sloan_rate))","v":5081.04},null,null,null,null,null,null,null,null,null,null,null,null,null,null,null,null,null,null,null,null,null,null,null,null,null,null,null,null,null,null,null,null,null,null,null,null,null,null,null,null,null,null,null,null,null,null,null,null,null,null,null,null,null,null,null,null,null,null,null,null,null,null,null,null,null,null,null,null,null,null,null,null,null,null,null,{"$f":"IF('C2'!$B3=\"\",0,MAX(0,('C2'!$B3-SL_limit1)*Sloan_rate))+IF('C2'!$B32=\"\",0,MAX(0,('C2'!$B32-SL_limit1)*Sloan_rate))","v":5682.24},null,null,null,null,null,null,null,null,null,null,null,null,null,null,"SA Monetary value (2dp) >= 0.00"]
[6,{"$f":"IF(SLR_ind>1,IF(HLOOKUP(SLR_ind-1,SLR_RANGE,A64)=\"\",\"\",HLOOKUP(SLR_ind-1,SLR_RANGE,A64)),\"\")","v":""},"SLR3","Enter the amount deducted (P)",null,null,null,{"$f":"IF('C2'!$B3=\"\",0,MAX(0,('C2'!$B3-PGL_limit)*PGL_rate))+IF('C2'!$B32=\"\",0,MAX(0,('C2'!$B32-PGL_limit)*PGL_rate))","v":4092.06},null,null,null,null,0,null,null,null,null,null,null,null,{"$f":"IF('C2'!$U3=\"\",0,MAX(0,('C2'!$U3-PGL_limit)*PGL_rate))+IF('C2'!$U32=\"\",0,MAX(0,('C2'!$U32-PGL_limit)*PGL_rate))","v":4590.24},null,null,null,null,null,null,null,null,null,null,null,7726.62,null,null,null,{"$f":"IF('C2'!$B3=\"\",0,MAX(0,('C2'!$B3-PGL_limit)*PGL_rate))+IF('C2'!$B32=\"\",0,MAX(0,('C2'!$B32-PGL_limit)*PGL_rate))","v":4092.06},null,null,null,null,null,null,null,null,null,null,null,null,null,null,null,null,null,null,null,0,270,null,null,null,null,null,null,null,null,null,null,null,null,null,null,null,null,null,null,null,null,null,null,null,null,null,null,null,null,null,null,null,null,null,null,null,null,null,null,null,null,null,null,null,null,null,null,null,0,null,null,null,null,null,null,null,null,null,null,null,null,null,null,null,null,null,null,null,null,null,null,null,null,null,null,null,null,null,null,null,null,null,null,null,null,null,null,null,null,null,null,null,null,null,null,null,null,null,null,null,null,null,null,null,null,null,null,null,null,null,null,null,null,null,null,null,null,null,null,null,null,null,null,null,null,null,null,null,null,null,null,null,null,null,null,null,null,null,null,null,null,null,null,null,null,null,null,null,null,null,null,null,null,null,null,null,null,null,null,null,null,null,null,null,null,null,null,null,null,null,null,null,null,null,null,null,null,null,null,null,null,null,null,null,null,null,null,null,null,null,null,null,null,null,null,null,null,null,null,null,null,null,null,null,null,null,null,null,null,null,null,null,null,null,null,null,null,null,null,null,null,null,"\"yes\""]
[null,null,"High Income Child Benefit Charge"]
["row",{"$f":"\"selected \"&CBC_Ind-1","v":"selected 0"},"CBC",null,1,2,3,4,5,6,7,8,9,10,11,12,13,14,15,16,17,18,19,20,21,22,23,24,25,26,27,28,29,30,31,32,33,34,35,36,37,38,39,40,41,42,43,44,45,46,47,48,49,50,51,52,53,54,55,56,57,58,59,60,61,62,63,64,65,66,67,68,69,70,71,72,73,74,75,76,77,78,79,80,81,82,83,84,85,86,87,88,89,90,91,92,93,94,95,96,97,98,99,100,101,102,103,104,105,106,107,108,109,110,111,112,113,114,115,116,117,118,119,120,121,122,123,124,125,126,127,128,129,130,131,132,133,134,135,136,137,138,139,140,141,142,143,144,145,146,147,148,149,150,151,152,153,154,155,156,157,158,159,160,161,162,163,164,165,166,167,168,169,170,171,172,173,174,175,176,177,178,179,180,181,182,183,184,185,186,187,188,189,190,191,192,193,194,195,196,197,198,199,200,201,202,203,204,205,206,207,208,209,210,211,212,213,214,215,216,217,218,219,220,221,222,223,224,225,226,227,228,229,230,231,232,233,234,235,236,237,238,239,240,241,242,243,244,245,246,247,248,249,250,251,252,253,254,255,256,257,258,259,260,261,262,263,264,265,266,267,268,269,270,271,272,273,null,null,"Type"]
[2,{"$f":"IF(CBC_Ind>1,IF(HLOOKUP(CBC_Ind-1,CBC_RANGE,A67)=\"\",\"\",HLOOKUP(CBC_Ind-1,CBC_RANGE,A67)),\"\")","v":""},"CBC1","total amount of Child Benefit",null,null,null,null,null,null,null,null,null,null,null,null,null,null,null,null,null,null,null,null,null,null,null,null,null,null,null,null,null,null,null,null,null,null,null,null,null,null,null,null,null,null,null,null,null,null,null,null,null,null,null,null,null,null,null,null,null,null,null,null,null,null,null,null,null,null,null,null,null,null,null,null,null,null,null,null,null,null,null,null,null,null,null,null,null,null,null,null,null,null,null,null,null,null,null,null,null,null,null,null,null,null,null,null,null,null,null,null,null,null,null,null,null,null,null,null,null,null,null,null,null,null,null,null,null,null,null,null,null,null,null,null,null,null,null,null,null,null,null,null,null,null,null,null,null,null,null,null,null,null,null,null,null,null,null,null,null,null,null,null,null,null,null,null,null,null,null,null,null,null,null,null,null,null,null,null,null,null,null,null,null,null,null,null,null,null,null,null,null,null,null,5000,5000,1197,4539,4539,null,null,null,null,5000,null,null,null,null,null,null,null,null,null,null,null,5000,null,null,null,null,null,null,null,null,null,null,null,null,null,null,null,null,null,null,null,null,null,1248,null,null,null,null,2976,null,null,null,null,null,null,null,null,2501,null,null,null,null,null,null,null,null,null,null,null,null,null,null,null,null,null,null,null,null,null,1988,null,null,null,null,"Monetary value (2dp) >= 0.00"]
[3,{"$f":"IF(CBC_Ind>1,IF(HLOOKUP(CBC_Ind-1,CBC_RANGE,A68)=\"\",\"\",HLOOKUP(CBC_Ind-1,CBC_RANGE,A68)),\"\")","v":""},"CBC2","number of children",null,null,null,null,null,null,null,null,null,null,null,null,null,null,null,null,null,null,null,null,null,null,null,null,null,null,null,null,null,null,null,null,null,null,null,null,null,null,null,null,null,null,null,null,null,null,null,null,null,null,null,null,null,null,null,null,null,null,null,null,null,null,null,null,null,null,null,null,null,null,null,null,null,null,null,null,null,null,null,null,null,null,null,null,null,null,null,null,null,null,null,null,null,null,null,null,null,null,null,null,null,null,null,null,null,null,null,null,null,null,null,null,null,null,null,null,null,null,null,null,null,null,null,null,null,null,null,null,null,null,null,null,null,null,null,null,null,null,null,null,null,null,null,null,null,null,null,null,null,null,null,null,null,null,null,null,null,null,null,null,null,null,null,null,null,null,null,null,null,null,null,null,null,null,null,null,null,null,null,null,null,null,null,null,null,null,null,null,null,null,null,3,3,1,3,3,null,null,null,null,3,null,null,null,null,null,null,null,null,null,null,null,3,null,null,null,null,null,null,null,null,null,null,null,null,null,null,null,null,null,null,null,null,null,1,null,null,null,null,3,null,null,null,null,null,null,null,null,3,null,null,null,null,null,null,null,null,null,null,null,null,null,null,null,null,null,null,null,null,null,2,null,null,null,"a) CBC2 must not exceed 99\nb) If CBC2 present and greater than zero, then CBC1 must be present.","Integer value >= 0"]
[4,{"$f":"IF(CBC_Ind>1,IF(HLOOKUP(CBC_Ind-1,CBC_RANGE,A69)=\"\",\"\",HLOOKUP(CBC_Ind-1,CBC_RANGE,A69)),\"\")","v":""},"CBC3","date stopped getting Child Benefit payments",null,null,null,null,null,null,null,null,null,null,null,null,null,null,null,null,null,null,null,null,null,null,null,null,null,null,null,null,null,null,null,null,null,null,null,null,null,null,null,null,null,null,null,null,null,null,null,null,null,null,null,null,null,null,null,null,null,null,null,null,null,null,null,null,null,null,null,null,null,null,null,null,null,null,null,null,null,null,null,null,null,null,null,null,null,null,null,null,null,null,null,null,null,null,null,null,null,null,null,null,null,null,null,null,null,null,null,null,null,null,null,null,null,null,null,null,null,null,null,null,null,null,null,null,null,null,null,null,null,null,null,null,null,null,null,null,null,null,null,null,null,null,null,null,null,null,null,null,null,null,null,null,null,null,null,null,null,null,null,null,null,null,null,null,null,null,null,null,null,null,null,null,null,null,null,null,null,null,null,null,null,null,null,null,null,null,null,null,null,null,null,{"$f":"\"15/03/\"&Tax_year_end","v":"15/03/2026"},{"$f":"\"15/03/\"&Tax_year_end","v":"15/03/2026"},null,null,null,null,null,null,null,{"$f":"\"15/03/\"&Tax_year_end","v":"15/03/2026"},null,null,null,null,null,null,null,null,null,null,null,{"$f":"\"15/03/\"&Tax_year_end","v":"15/03/2026"},null,null,null,null,null,null,null,null,null,null,null,null,null,null,null,null,null,null,null,null,null,null,null,null,null,null,null,null,null,null,null,null,null,null,null,null,null,null,null,null,null,null,null,null,null,null,null,null,null,null,null,null,null,null,null,null,null,null,null,null,null,"a) must be a valid date DDMMYYYY\nb) must be within the return year\nc) if present CBC1 & CBC2 must be present","SA MTR date"]
[null,null,"Winter Fuel Payment"]
["row",{"$f":"\"selected \"&WFP_Ind-1","v":"selected 0"},"WFHP",null,1,2,3,4,5,6,7,8,9,10,11,12,13,14,15,16,17,18,19,20,21,22,23,24,25,26,27,28,29,30,31,32,33,34,35,36,37,38,39,40,41,42,43,44,45,46,47,48,49,50,51,52,53,54,55,56,57,58,59,60,61,62,63,64,65,66,67,68,69,70,71,72,73,74,75,76,77,78,79,80,81,82,83,84,85,86,87,88,89,90,91,92,93,94,95,96,97,98,99,100,101,102,103,104,105,106,107,108,109,110,111,112,113,114,115,116,117,118,119,120,121,122,123,124,125,126,127,128,129,130,131,132,133,134,135,136,137,138,139,140,141,142,143,144,145,146,147,148,149,150,151,152,153,154,155,156,157,158,159,160,161,162,163,164,165,166,167,168,169,170,171,172,173,174,175,176,177,178,179,180,181,182,183,184,185,186,187,188,189,190,191,192,193,194,195,196,197,198,199,200,201,202,203,204,205,206,207,208,209,210,211,212,213,214,215,216,217,218,219,220,221,222,223,224,225,226,227,228,229,230,231,232,233,234,235,236,237,238,239,240,241,242,243,244,245,246,247,248,249,250,251,252,253,254,255,256,257,258,259,260,261,262,263,264,265,266,267,268,269,270,271,272,273]
[2,{"$f":"IF(WFP_Ind>1,IF(HLOOKUP(WFP_Ind-1,WFP_RANGE,A72)=\"\",\"\",HLOOKUP(WFP_Ind-1,WFP_RANGE,A72)),\"\")","v":""},"WFHP1","Winter Fuel Payment",300,200,null,null,null,null,null,null,null,null,null,null,null,null,null,null,null,null,null,null,null,null,null,null,null,null,null,null,null,null,null,null,null,null,null,null,null,null,null,null,null,null,null,null,null,null,null,null,null,null,null,null,null,null,null,null,null,null,null,null,null,null,null,null,null,null,null,null,null,309,null,null,null,null,null,null,null,null,null,null,null,null,101]
[null,null,"Transfer of Married Allowance"]
["row",{"$f":"\"selected \"&MAT_Ind-1","v":"selected 0"},"MAT",null,1,2,3,4,5,6,7,8,9,10,11,12,13,14,15,16,17,18,19,20,21,22,23,24,25,26,27,28,29,30,31,32,33,34,35,36,37,38,39,40,41,42,43,44,45,46,47,48,49,50,51,52,53,54,55,56,57,58,59,60,61,62,63,64,65,66,67,68,69,70,71,72,73,74,75,76,77,78,79,80,81,82,83,84,85,86,87,88,89,90,91,92,93,94,95,96,97,98,99,100,101,102,103,104,105,106,107,108,109,110,111,112,113,114,115,116,117,118,119,120,121,122,123,124,125,126,127,128,129,130,131,132,133,134,135,136,137,138,139,140,141,142,143,144,145,146,147,148,149,150,151,152,153,154,155,156,157,158,159,160,161,162,163,164,165,166,167,168,169,170,171,172,173,174,175,176,177,178,179,180,181,182,183,184,185,186,187,188,189,190,191,192,193,194,195,196,197,198,199,200,201,202,203,204,205,206,207,208,209,210,211,212,213,214,215,216,217,218,219,220,221,222,223,224,225,226,227,228,229,230,231,232,233,234,235,236,237,238,239,240,241,242,243,244,245,246,247,248,249,250,251,252,253,254,255,256,257,258,259,260,261,262,263,264,265,266,267,268,269,270,271,272,273,null,null,"Type"]
[2,{"$f":"IF(MAT_Ind>1,IF(HLOOKUP(MAT_Ind-1,MAT_RANGE,A75)=\"\",\"\",HLOOKUP(MAT_Ind-1,MAT_RANGE,A75)),\"\")","v":""},"MAT1-5","MAT1-5 completed (N.B. BOX NOT ON RETURN)",null,null,null,null,null,null,null,null,null,null,null,null,null,null,"Y",null,null,null,null,null,null,null,null,null,null,null,null,null,null,null,null,null,null,null,null,null,null,null,null,null,null,"Y",null,null,null,null,null,null,null,null,null,null,null,null,null,null,null,null,null,null,null,null,null,null,null,null,null,null,null,null,null,null,null,null,null,null,null,null,null,null,null,null,null,null,null,null,null,null,"Y",null,null,null,null,null,null,null,null,null,null,null,null,null,null,null,null,null,null,null,null,null,null,null,null,null,null,null,null,null,null,null,null,null,null,null,null,null,null,null,null,null,null,null,null,null,null,null,null,null,null,null,null,null,null,null,null,null,null,null,null,null,null,null,null,null,null,null,null,null,null,null,null,null,null,null,null,null,null,null,null,null,null,null,null,null,null,null,null,null,null,null,null,null,null,null,null,null,null,null,null,null,null,null,null,null,null,null,null,null,null,null,null,null,null,null,null,null,null,null,null,null,null,null,null,null,null,null,null,null,null,null,"Y"]
[3,{"$f":"IF(MAT_Ind>1,IF(HLOOKUP(MAT_Ind-1,MAT_RANGE,A76)=\"\",\"\",HLOOKUP(MAT_Ind-1,MAT_RANGE,A76)),\"\")","v":""},"MAT1","spouse or civil partner's first name",null,null,null,null,null,null,null,null,null,null,null,null,null,null,"Dave",null,null,null,null,null,null,null,null,null,null,null,null,null,null,null,null,null,null,null,null,null,null,null,null,null,null,"Matt",null,null,null,null,null,null,null,null,null,null,null,null,null,null,null,null,null,null,null,null,null,null,null,null,null,null,null,null,null,null,null,null,null,null,null,null,null,null,null,null,null,null,null,null,null,null,"Matt",null,null,null,null,null,null,null,null,null,null,null,null,null,null,null,null,null,null,null,null,null,null,null,null,null,null,null,null,null,null,null,null,null,null,null,null,null,null,null,null,null,null,null,null,null,null,null,null,null,null,null,null,null,null,null,null,null,null,null,null,null,null,null,null,null,null,null,null,null,null,null,null,null,null,null,null,null,null,null,null,null,null,null,null,null,null,null,null,null,null,null,null,null,null,null,null,null,null,null,null,null,null,null,null,null,null,null,null,null,null,null,null,null,null,null,null,null,null,null,null,null,null,null,null,null,null,null,null,null,null,null,"Matt",null,null,null,null,null,null,null,null,null,null,null,null,null,null,null,null,null,null,null,null,null,null,null,null,null,null,null,null,null,null,null,null,null,null,null,null,null,null,null,null,null,null,null,null,null,null,null,null,null,null,null,null,null,null,"SA non-empty string"]
[4,"","MAT2","spouse or civil partner's last name",null,null,null,null,null,null,null,null,null,null,null,null,null,null,"Munnsarena",null,null,null,null,null,null,null,null,null,null,null,null,null,null,null,null,null,null,null,null,null,null,null,null,null,null,"Barbarena",null,null,null,null,null,null,null,null,null,null,null,null,null,null,null,null,null,null,null,null,null,null,null,null,null,null,null,null,null,null,null,null,null,null,null,null,null,null,null,null,null,null,null,null,null,null,"Barbarena",null,null,null,null,null,null,null,null,null,null,null,null,null,null,null,null,null,null,null,null,null,null,null,null,null,null,null,null,null,null,null,null,null,null,null,null,null,null,null,null,null,null,null,null,null,null,null,null,null,null,null,null,null,null,null,null,null,null,null,null,null,null,null,null,null,null,null,null,null,null,null,null,null,null,null,null,null,null,null,null,null,null,null,null,null,null,null,null,null,null,null,null,null,null,null,null,null,null,null,null,null,null,null,null,null,null,null,null,null,null,null,null,null,null,null,null,null,null,null,null,null,null,null,null,null,null,null,null,null,null,null,"Barbarena",null,null,null,null,null,null,null,null,null,null,null,null,null,null,null,null,null,null,null,null,null,null,null,null,null,null,null,null,null,null,null,null,null,null,null,null,null,null,null,null,null,null,null,null,null,null,null,null,null,null,null,null,null,null,"SA non-empty string"]
[5,"","MAT3","spouse or civil partner's NINo",null,null,null,null,null,null,null,null,null,null,null,null,null,null,"AA999999A",null,null,null,null,null,null,null,null,null,null,null,null,null,null,null,null,null,null,null,null,null,null,null,null,null,null,"AA999999A",null,null,null,null,null,null,null,null,null,null,null,null,null,null,null,null,null,null,null,null,null,null,null,null,null,null,null,null,null,null,null,null,null,null,null,null,null,null,null,null,null,null,null,null,null,null,"AA999999A",null,null,null,null,null,null,null,null,null,null,null,null,null,null,null,null,null,null,null,null,null,null,null,null,null,null,null,null,null,null,null,null,null,null,null,null,null,null,null,null,null,null,null,null,null,null,null,null,null,null,null,null,null,null,null,null,null,null,null,null,null,null,null,null,null,null,null,null,null,null,null,null,null,null,null,null,null,null,null,null,null,null,null,null,null,null,null,null,null,null,null,null,null,null,null,null,null,null,null,null,null,null,null,null,null,null,null,null,null,null,null,null,null,null,null,null,null,null,null,null,null,null,null,null,null,null,null,null,null,null,null,"AA999999A",null,null,null,null,null,null,null,null,null,null,null,null,null,null,null,null,null,null,null,null,null,null,null,null,null,null,null,null,null,null,null,null,null,null,null,null,null,null,null,null,null,null,null,null,null,null,null,null,null,null,null,null,null,"a) Must be in format AA999999A or AA999999 or 99A99999","SA string"]
[6,"","MAT4","spouse or civil partner's DoB",null,null,null,null,null,null,null,null,null,null,null,null,null,null,{"$f":"\"29/03/\"&Tax_year_end-50","v":"29/03/1976"},null,null,null,null,null,null,null,null,null,null,null,null,null,null,null,null,null,null,null,null,null,null,null,null,null,null,{"$f":"\"29/03/\"&Tax_year_end-50","v":"29/03/1976"},null,null,null,null,null,null,null,null,null,null,null,null,null,null,null,null,null,null,null,null,null,null,null,null,null,null,null,null,null,null,null,null,null,null,null,null,null,null,null,null,null,null,null,null,null,null,{"$f":"\"29/03/\"&Tax_year_end-50","v":"29/03/1976"},null,null,null,null,null,null,null,null,null,null,null,null,null,null,null,null,null,null,null,null,null,null,null,null,null,null,null,null,null,null,null,null,null,null,null,null,null,null,null,null,null,null,null,null,null,null,null,null,null,null,null,null,null,null,null,null,null,null,null,null,null,null,null,null,null,null,null,null,null,null,null,null,null,null,null,null,null,null,null,null,null,null,null,null,null,null,null,null,null,null,null,null,null,null,null,null,null,null,null,null,null,null,null,null,null,null,null,null,null,null,null,null,null,null,null,null,null,null,null,null,null,null,null,null,null,null,null,null,null,null,null,{"$f":"\"29/03/\"&Tax_year_end-50","v":"29/03/1976"},null,null,null,null,null,null,null,null,null,null,null,null,null,null,null,null,null,null,null,null,null,null,null,null,null,null,null,null,null,null,null,null,null,null,null,null,null,null,null,null,null,null,null,null,null,null,null,null,null,null,null,null,null,"a) Must be a valid date DDMMYYYY","SA MTR date"]
[7,"","MAT5","Date of marriage or civil partnership",null,null,null,null,null,null,null,null,null,null,null,null,null,null,{"$f":"\"12/03/\"&Tax_year_end-27","v":"12/03/1999"},null,null,null,null,null,null,null,null,null,null,null,null,null,null,null,null,null,null,null,null,null,null,null,null,null,null,{"$f":"\"12/03/\"&Tax_year_end-27","v":"12/03/1999"},null,null,null,null,null,null,null,null,null,null,null,null,null,null,null,null,null,null,null,null,null,null,null,null,null,null,null,null,null,null,null,null,null,null,null,null,null,null,null,null,null,null,null,null,null,null,{"$f":"\"12/03/\"&Tax_year_end-27","v":"12/03/1999"},null,null,null,null,null,null,null,null,null,null,null,null,null,null,null,null,null,null,null,null,null,null,null,null,null,null,null,null,null,null,null,null,null,null,null,null,null,null,null,null,null,null,null,null,null,null,null,null,null,null,null,null,null,null,null,null,null,null,null,null,null,null,null,null,null,null,null,null,null,null,null,null,null,null,null,null,null,null,null,null,null,null,null,null,null,null,null,null,null,null,null,null,null,null,null,null,null,null,null,null,null,null,null,null,null,null,null,null,null,null,null,null,null,null,null,null,null,null,null,null,null,null,null,null,null,null,null,null,null,null,null,{"$f":"\"12/03/\"&Tax_year_end-27","v":"12/03/1999"},null,null,null,null,null,null,null,null,null,null,null,null,null,null,null,null,null,null,null,null,null,null,null,null,null,null,null,null,null,null,null,null,null,null,null,null,null,null,null,null,null,null,null,null,null,null,null,null,null,null,null,null,null,"a) If any of MAT1, MAT2, MAT3, MAT4 or MAT5 are present then all must be present.\nb) Must be a valid date DDMMYYYY\nc) If present must be a date in the return year or before the return year","SA MTR date"]
[8,"","MAT_OUT","[Digital Claim for MAT to spouse/civil partner]","Y",null,"N",null,"N","Y",null,null,null,null,null,null,null,null,"Y",null,null,null,null,null,null,null,"Y",null,"N","N","N",null,null,null,null,null,null,null,null,null,"N",null,null,null,null,"Y","Y","N",null,null,null,"N",null,null,null,null,null,null,null,null,null,null,null,null,null,null,null,null,null,null,null,null,null,null,null,null,null,null,null,null,null,null,null,null,null,null,null,null,null,null,null,null,"Y",null,null,null,null,null,null,null,null,null,null,null,null,null,null,null,null,null,null,null,null,null,null,null,null,null,null,null,null,null,null,null,null,null,null,null,null,null,null,null,null,null,null,null,null,null,null,null,null,null,null,null,null,null,null,null,null,null,null,null,null,null,null,null,null,null,null,null,null,null,null,null,null,null,null,null,null,null,null,null,null,null,null,null,null,null,null,null,null,null,null,null,null,null,null,null,null,null,null,null,null,null,null,null,null,null,null,null,null,null,null,null,null,null,null,null,null,null,null,null,null,null,null,null,null,null,null,null,null,null,null,null,"Y","N",null,null,null,null,null,null,null,null,null,null,null,null,null,null,null,null,null,null,null,null,"N","N",null,null,null,null,null,null,null,null,null,null,null,null,null,null,null,null,null,null,null,null,null,null,null,null,null,null,null,null,null,null,null,"\"yes\""]
[9,"","MAT_IN","[Digital Claim for MAT from spouse/civil partner]",null,"Y","Y",null,"Y",null,null,null,null,null,null,null,null,null,"N",null,null,null,null,"Y",null,null,"N",null,"Y","Y","Y",null,null,null,null,null,null,null,null,null,"Y",null,null,null,null,"N","N","Y",null,null,null,"Y",null,null,null,null,null,null,null,null,null,null,null,null,null,null,null,null,null,null,null,null,null,null,null,null,null,null,null,null,null,null,null,null,null,null,null,null,null,null,null,null,"N",null,null,null,null,null,null,null,null,null,null,null,null,null,null,null,null,null,null,null,null,null,null,null,null,null,null,null,null,null,null,null,null,null,null,null,null,null,null,null,null,null,null,null,null,null,null,null,null,null,null,null,null,null,null,null,null,null,null,null,null,null,null,null,null,null,null,null,null,null,null,null,null,null,null,null,null,null,null,null,null,null,null,null,null,null,null,null,null,null,null,null,null,null,null,null,null,null,null,null,null,null,null,null,null,null,null,null,null,null,null,null,null,null,null,null,null,null,null,null,null,null,null,null,null,null,null,null,null,null,null,null,"N","Y",null,null,null,null,null,null,null,null,null,null,null,null,null,null,null,null,null,null,null,null,"Y","Y",null,null,null,null,null,null,null,null,null,null,null,null,null,null,null,null,null,null,null,null,null,null,null,null,null,null,null,null,null,null,null,"\"yes\""]
[null,null,"Finishing your tax return"]
["row",{"$f":"\"selected \"&FIN_Ind-1","v":"selected 0"},"FIN",null,1,2,3,4,5,6,7,8,9,10,11,12,13,14,15,16,17,18,19,20,21,22,23,24,25,26,27,28,29,30,31,32,33,34,35,36,37,38,39,40,41,42,43,44,45,46,47,48,49,50,51,52,53,54,55,56,57,58,59,60,61,62,63,64,65,66,67,68,69,70,71,72,73,74,75,76,77,78,79,80,81,82,83,84,85,86,87,88,89,90,91,92,93,94,95,96,97,98,99,100,101,102,103,104,105,106,107,108,109,110,111,112,113,114,115,116,117,118,119,120,121,122,123,124,125,126,127,128,129,130,131,132,133,134,135,136,137,138,139,140,141,142,143,144,145,146,147,148,149,150,151,152,153,154,155,156,157,158,159,160,161,162,163,164,165,166,167,168,169,170,171,172,173,174,175,176,177,178,179,180,181,182,183,184,185,186,187,188,189,190,191,192,193,194,195,196,197,198,199,200,201,202,203,204,205,206,207,208,209,210,211,212,213,214,215,216,217,218,219,220,221,222,223,224,225,226,227,228,229,230,231,232,233,234,235,236,237,238,239,240,241,242,243,244,245,246,247,248,249,250,251,252,253,254,255,256,257,258,259,260,261,262,263,264,265,266,267,268,269,270,271,272,273,null,null,"Type"]
[2,{"$f":"IF(FIN_Ind>1,IF(HLOOKUP(FIN_Ind-1,FIN_RANGE,A85)=\"\",\"\",HLOOKUP(FIN_Ind-1,FIN_RANGE,A85)),\"\")","v":""},"FIN1",null,0,0,600,0,0,0,0,0,0,0,0,0,617,0,0,0,0,0,0,0,0,0,0,0,0,0,0,0,0,0,0,0,0,0,0,0,0,236,0,0,0,0,0,0,0,0,0,0,671,0,0,788,0,0,0,0,0,0,0,0,0,0,617,0,0,0,0,0,0,0,0,0,0,0,0,0,0,0,0,0,0,0,0,0,865,0,0,0,0,0,0,0,0,289,0,0,650.29,0,0,0,0,0,0,0,0,0,0,0,0,0,0,0,0,0,0,0,0,0,0,0,0,0,0,0,0,0,0,0,0,0,0,0,0,467.5,0,0,0,0,0,0,0,0,0,0,0,0,0,0,0,0,0,0,0,0,0,0,0,0,0,0,0,0,0,0,0,0,0,0,0,0,0,0,0,0,0,0,0,0,0,0,2500,0,0,0,0,0,0,0,0,0,0,0,0,0,0,0,0,0,0,151,0,0,0,0,0,0,0,0,0,0,0,0,0,0,0,0,0,0,0,0,0,0,0,0,0,0,0,0,0,0,0,0,0,0,0,0,0,0,0,0,0,0,0,0,0,0,0,0,0,0,0,0,0,0,0,0,0,0,0,0,0,0,0,0,0,78,0,0,0,0,0,0]
[3,"N","FIN2"]
[4,"N","FIN3"]
[5,null,"FIN4"]
[6,null,"FIN5"]
[7,null,"FIN6"]
[8,null,"FIN7"]
[9,null,"FIN8"]
[10,"N","FIN9"]
[11,"N","FIN10"]
[12,"N","FIN11"]
[13,null,"FIN12"]
[14,null,"FIN13"]
[15,null,"FIN14"]
[16,null,"FIN15"]
[17,null,"FIN16"]
[18,null,"FIN17"]
[19,null,"FIN18"]
[20,"Andrea Gail","FIN19"]
[21,null,"FIN20"]
[22,null,"FIN21"]
[23,"Y","FIN22"]
[24,null,"FIN23"]
[25,null,"FIN24"]
[26,null,"FIN25"]
[27,null,"FIN26"]

{"sheet":"C1","index":10,"n_rows":105,"n_cols":279,"rows_kept":105,"cut":false,"hidden":true,"merged":[]}
[null,null,null,null,1,2,3,4,5,6,7,8,9,10,11,12,13,14,15,16,17,18,19,20,21,22,23,24,25,26,27,28,29,30,31,32,33,34,35,36,37,38,39,40,41,42,43,44,45,46,47,48,49,50,51,52,53,54,55,56,57,58,59,60,61,62,63,64,65,66,67,68,69,70,71,72,73,74,75,76,77,78,79,80,81,82,83,84,85,86,87,88,89,90,91,92,93,94,95,96,97,98,99,100,101,102,103,104,105,106,107,108,109,110,111,112,113,114,115,116,117,118,119,120,121,122,123,124,125,126,127,128,129,130,131,132,133,134,135,136,137,138,139,140,141,142,143,144,145,146,147,148,149,150,151,152,153,154,155,156,157,158,159,160,161,162,163,164,165,166,167,168,169,170,171,172,173,174,175,176,177,178,179,180,181,182,183,184,185,186,187,188,189,190,191,192,193,194,195,196,197,198,199,200,201,202,203,204,205,206,207,208,209,210,211,212,213,214,215,216,217,218,219,220,221,222,223,224,225,226,227,228,229,230,231,232,233,234,235,236,237,238,239,240,241,242,243,244,245,246,247,248,249,250,251,252,253,254,255,256,257,258,259,260,261,262,263,264,265,266,267,268,269,270,271,272,273,null," Validation"]
[null,null,"Interest Gilt edged, UK Securities"]
["row","selected","AOI-A",null,1,2,3,4,5,6,7,8,9,10,11,12,13,14,15,16,17,18,19,20,21,22,23,24,25,26,27,28,29,30,31,32,33,34,35,36,37,38,39,40,41,42,43,44,45,46,47,48,49,50,51,52,53,54,55,56,57,58,59,60,61,62,63,64,65,66,67,68,69,70,71,72,73,74,75,76,77,78,79,80,81,82,83,84,85,86,87,88,89,90,91,92,93,94,95,96,97,98,99,100,101,102,103,104,105,106,107,108,109,110,111,112,113,114,115,116,117,118,119,120,121,122,123,124,125,126,127,128,129,130,131,132,133,134,135,136,137,138,139,140,141,142,143,144,145,146,147,148,149,150,151,152,153,154,155,156,157,158,159,160,161,162,163,164,165,166,167,168,169,170,171,172,173,174,175,176,177,178,179,180,181,182,183,184,185,186,187,188,189,190,191,192,193,194,195,196,197,198,199,200,201,202,203,204,205,206,207,208,209,210,211,212,213,214,215,216,217,218,219,220,221,222,223,224,225,226,227,228,229,230,231,232,233,234,235,236,237,238,239,240,241,242,243,244,245,246,247,248,249,250,251,252,253,254,255,256,257,258,259,260,261,262,263,264,265,266,267,268,269,270,271,272,273,null," Validation"]
[2,{"$f":"IF(AOI_A_IND>1,IF(HLOOKUP(AOI_A_IND-1,AOI_A_RANGE,A4)=\"\",\"\",HLOOKUP(AOI_A_IND-1,AOI_A_RANGE,A4)),\"\")","v":""},"AOI1","Gilt etc interest after tax taken off",null,null,null,null,null,null,null,{"$f":"L6-L5","v":0},0,0,0,null,null,null,null,null,null,null,null,null,null,null,null,null,null,null,null,null,null,null,null,null,null,null,null,null,null,null,null,null,null,null,null,null,null,null,null,null,null,null,null,{"$f":"BD6-BD5","v":4139.3100000000004},null,null,null,null,null,null,null,null,null,null,null,null,null,null,null,null,{"$f":"BU6-BU5","v":20024},null,null,null,null,null,null,null,null,null,null,null,null,null,{"$f":"CI6-CI5","v":4139.3100000000004},null,null,null,null,null,null,null,null,null,null,null,{"$f":"CU6-CU5","v":768},610,{"$f":"CW6-CW5","v":4139.3100000000004},{"$f":"CX6-CX5","v":421.2},null,null,null,null,null,null,null,null,null,{"$f":"DH6-DH5","v":4139.3100000000004},null,null,null,null,null,null,null,null,null,null,null,null,null,null,1415,null,null,null,null,null,null,null,null,null,null,null,null,null,null,null,null,null,null,null,null,null,null,null,null,null,null,null,null,237,null,null,null,null,null,null,null,null,null,null,null,null,null,null,null,null,null,null,null,null,null,null,null,null,null,null,null,null,null,null,null,null,null,null,null,null,null,{"$f":"GL6-GL5","v":4139.3100000000004},{"$f":"GM6-GM5","v":4139.3100000000004},null,null,null,null,null,null,{"$f":"GT6-GT5","v":768},null,null,null,null,null,null,null,null,null,null,null,null,null,null,null,null,400,null,null,0,null,null,null,null,null,null,null,null,null,null,null,null,null,null,null,null,null,990,null,0,null,null,null,null,null,null,null,null,null,null,null,null,null,null,null,null,null,null,null,null,null,null,null,null,null,null,null,null,600]
[3,{"$f":"IF(AOI_A_IND>1,IF(HLOOKUP(AOI_A_IND-1,AOI_A_RANGE,A5)=\"\",\"\",HLOOKUP(AOI_A_IND-1,AOI_A_RANGE,A5)),\"\")","v":""},"AOI2","Tax taken off",null,null,null,null,null,null,null,{"$f":"L6*BR_rate","v":0},0,0,0,null,null,null,null,null,null,null,null,null,null,null,null,null,null,null,null,null,null,null,null,null,null,null,null,null,null,null,null,null,null,null,null,null,null,null,null,null,null,null,null,{"$f":"TRUNC(BD6*BR_rate+0.009,2)","v":1034.83},null,null,null,null,null,null,null,null,null,null,null,null,null,null,null,null,{"$f":"BU6*BR_rate","v":5006},null,null,null,null,null,null,null,null,null,null,null,null,null,{"$f":"TRUNC(CI6*BR_rate+0.009,2)","v":1034.83},null,null,null,null,null,null,null,null,null,null,null,{"$f":"TRUNC(CU6*BR_rate+0.009,2)","v":192},215,{"$f":"TRUNC(CW6*BR_rate+0.009,2)","v":1034.83},{"$f":"TRUNC(CX6*BR_rate+0.009,2)","v":105.3},null,null,null,null,null,null,null,null,null,{"$f":"TRUNC(DH6*BR_rate+0.009,2)","v":1034.83},null,null,null,null,null,null,null,null,null,null,null,null,null,null,null,null,5.83,null,null,null,null,null,null,null,null,null,null,null,null,null,null,null,null,null,null,null,null,null,null,null,null,null,null,60,null,null,null,null,null,null,null,null,null,null,null,null,null,null,null,null,null,null,null,null,null,null,null,null,null,null,null,null,null,null,null,null,null,null,null,null,null,{"$f":"TRUNC(GL6*BR_rate+0.009,2)","v":1034.83},{"$f":"TRUNC(GM6*BR_rate+0.009,2)","v":1034.83},null,null,null,null,null,null,{"$f":"TRUNC(GT6*BR_rate+0.009,2)","v":192},null,null,null,null,null,null,null,null,null,null,null,null,null,null,null,null,101,null,null,0,null,null,null,null,null,null,null,null,null,null,null,null,null,null,null,null,null,197,null,0,null,null,null,null,null,null,null,null,null,null,null,null,null,null,null,null,null,null,null,null,null,null,null,null,null,null,null,null,150]
[4,{"$f":"IF(AOI_A_IND>1,IF(HLOOKUP(AOI_A_IND-1,AOI_A_RANGE,A6)=\"\",\"\",HLOOKUP(AOI_A_IND-1,AOI_A_RANGE,A6)),\"\")","v":""},"AOI3","Gross amount before tax",0,0,0,0,0,0,0,0,0,0,0,null,null,null,null,null,null,null,null,null,null,null,null,null,null,null,null,null,null,null,null,null,null,null,null,null,null,null,null,null,null,null,null,null,null,null,null,null,null,null,null,5174.1400000000003,null,null,null,null,null,null,null,null,null,null,null,null,null,null,null,null,25030,null,null,null,null,null,null,null,null,null,null,null,null,null,5174.1400000000003,null,null,null,null,null,null,null,null,null,null,null,960,1540,5174.1400000000003,526.5,null,null,null,null,null,null,null,null,null,5174.1400000000003,null,null,null,null,null,null,null,null,null,null,null,null,null,null,1415,null,2451.79,null,null,null,null,43,null,null,null,null,null,null,null,null,30,null,2021.72,null,null,396,null,null,null,null,null,null,null,297,null,null,407,null,null,null,null,null,null,447,null,null,null,null,null,null,null,null,null,null,null,null,null,null,null,null,null,null,null,null,null,null,null,null,null,null,null,5174.1400000000003,5174.1400000000003,null,null,null,null,null,null,960,null,null,null,null,null,null,null,null,null,null,null,null,null,null,null,null,4179,null,null,85023,null,null,null,null,null,null,null,null,null,null,null,null,null,null,null,null,null,1239,null,1364,null,null,null,null,null,null,null,null,null,null,null,null,null,null,1562.5,3068,null,null,null,null,null,null,null,null,null,null,1508,4446,750]
[]
[null,null,"Life Insurance Gains"]
["row","selected","AOI-B",null,1,2,3,4,5,6,7,8,9,10,11,12,13,14,15,16,17,18,19,20,21,22,23,24,25,26,27,28,29,30,31,32,33,34,35,36,37,38,39,40,41,42,43,44,45,46,47,48,49,50,51,52,53,54,55,56,57,58,59,60,61,62,63,64,65,66,67,68,69,70,71,72,73,74,75,76,77,78,79,80,81,82,83,84,85,86,87,88,89,90,91,92,93,94,95,96,97,98,99,100,101,102,103,104,105,106,107,108,109,110,111,112,113,114,115,116,117,118,119,120,121,122,123,124,125,126,127,128,129,130,131,132,133,134,135,136,137,138,139,140,141,142,143,144,145,146,147,148,149,150,151,152,153,154,155,156,157,158,159,160,161,162,163,164,165,166,167,168,169,170,171,172,173,174,175,176,177,178,179,180,181,182,183,184,185,186,187,188,189,190,191,192,193,194,195,196,197,198,199,200,201,202,203,204,205,206,207,208,209,210,211,212,213,214,215,216,217,218,219,220,221,222,223,224,225,226,227,228,229,230,231,232,233,234,235,236,237,238,239,240,241,242,243,244,245,246,247,248,249,250,251,252,253,254,255,256,257,258,259,260,261,262,263,264,265,266,267,268,269,270,271,272,273]
[2,{"$f":"IF(AOI_B_IND>1,IF(HLOOKUP(AOI_B_IND-1,AOI_B_RANGE,A10)=\"\",\"\",HLOOKUP(AOI_B_IND-1,AOI_B_RANGE,A10)),\"\")","v":""},"AOI4","UK life insurance policy etc gains on which tax was treated as paid",null,null,null,null,null,null,null,null,null,null,null,null,null,null,null,null,null,null,null,null,null,null,null,null,null,null,null,null,null,null,null,null,null,null,null,null,null,null,null,null,120000,null,null,null,5800,null,null,null,null,null,null,10000,null,null,null,43250,null,null,null,10000,null,null,null,null,null,null,null,null,null,null,null,null,null,null,null,null,4213,null,null,null,null,null,null,4213,null,null,null,null,null,null,null,null,null,89000,null,null,null,5322,null,null,10000,null,null,5800,4213,10000,null,95000,null,null,null,null,null,null,null,120000,132000,null,null,null,null,null,null,null,null,null,null,null,null,null,null,null,null,null,null,4213,null,null,null,null,null,null,null,null,null,10000,null,null,null,null,null,500,null,null,null,null,null,null,null,null,null,null,null,100000,null,null,null,null,null,120000,10000,null,null,null,135000,null,null,null,null,null,null,null,null,null,10000,null,null,null,null,null,20000,null,null,null,null,null,null,null,5800,null,null,null,null,null,null,null,null,10000,null,null,null,null,null,null,null,null,null,null,null,null,null,null,null,null,null,null,null,null,null,null,{"$f":"BR_band+19867","v":57567},null,null,null,null,null,null,null,null,10000,null,null,2000,null,null,null,null,28777,null,null,null,null,null,null,null,null,null,null,null,null,null,null,110000]
[3,"","AOI5","Number of years the policy has been held or since the last gain",null,null,null,null,null,null,null,null,null,null,null,null,null,null,null,null,null,null,null,null,null,null,null,null,null,null,null,null,null,null,null,null,null,null,null,null,null,null,null,null,2,null,null,null,2,null,null,null,null,null,null,4,null,null,null,20,null,null,null,4,null,null,null,null,null,null,null,null,null,null,null,null,null,null,null,null,4,null,null,null,null,null,null,4,null,null,null,null,null,null,null,null,null,2,null,null,null,7,null,null,4,null,null,2,4,4,null,2,null,null,null,null,null,null,null,3,3,null,null,null,null,null,null,null,null,null,null,null,null,null,null,null,null,null,null,4,null,null,null,null,null,null,null,null,null,4,null,null,null,null,null,1,null,null,null,null,null,null,null,null,null,null,null,5,null,null,null,null,null,2,4,null,null,null,3,null,null,null,null,null,null,null,null,null,4,null,null,null,null,null,1,null,null,null,null,null,null,null,2,null,null,null,null,null,null,null,null,1,null,null,null,null,null,null,null,null,null,null,null,null,null,null,null,null,null,null,null,null,null,null,10,null,null,null,null,null,null,null,null,1,null,null,1,null,null,null,null,7,null,null,null,null,null,null,null,null,null,null,null,null,null,null,4,null,null,null,null,null,null,null,null,null,null,null,"Note: See 'cross-schedules' tab. If Box 1A present, boxes AOI5, AOI7, AOI9 and FOR44 must be absent"]
[4,"","AOI6","UK life insurance policy etc gains where no tax was treated as paid",null,null,null,null,null,null,null,null,null,null,null,null,null,null,null,null,null,null,null,null,null,null,null,null,null,null,null,null,null,null,null,null,null,null,null,null,null,null,null,null,null,null,null,null,5715,null,null,null,null,null,null,null,null,null,null,null,null,null,null,null,10000,null,null,null,null,null,null,null,null,null,null,null,null,null,null,null,null,null,null,null,null,null,null,null,null,null,null,null,null,null,null,null,null,null,null,null,null,null,null,null,null,null,null,5715,null,null,null,null,null,null,null,null,null,null,null,null,null,null,null,null,null,null,null,null,null,null,null,null,null,null,null,null,null,null,null,null,null,null,null,null,null,null,null,null,null,null,null,null,null,null,null,null,null,null,null,null,null,null,null,null,null,null,null,null,null,null,null,null,null,null,null,null,null,null,null,null,null,null,null,null,null,null,10000,null,null,null,null,null,null,null,null,null,null,null,null,null,null,null,5715,null,10000,null,null,null,null,null,null,null,null,null,null,null,null,null,null,null,null,null,null,null,null,null,null,null,null,null,null,null,null,null,null,null,null,null,null,null,null,null,null,10000]
[5,"","AOI7","Number of years the policy has been held or since the last gain",null,null,null,null,null,null,null,null,null,null,null,null,null,null,null,null,null,null,null,null,null,null,null,null,null,null,null,null,null,null,null,null,null,null,null,null,null,null,null,null,null,null,null,null,5,null,null,null,null,null,null,null,null,null,null,null,null,null,null,null,5,null,null,null,null,null,null,null,null,null,null,null,null,null,null,null,null,null,null,null,null,null,null,null,null,null,null,null,null,null,null,null,null,null,null,null,null,null,null,null,null,null,null,5,null,null,null,null,null,null,null,null,null,null,null,null,null,null,null,null,null,null,null,null,null,null,null,null,null,null,null,null,null,null,null,null,null,null,null,null,null,null,null,null,null,null,null,null,null,null,null,null,null,null,null,null,null,null,null,null,null,null,null,null,null,null,null,null,null,null,null,null,null,null,null,null,null,null,null,null,null,null,5,null,null,null,null,null,null,null,null,null,null,null,null,null,null,null,5,null,5,null,null,null,null,null,null,null,null,null,null,null,null,null,null,null,null,null,null,null,null,null,null,null,null,null,null,null,null,null,null,null,null,null,null,null,null,null,null,1,null,null,null,null,null,null,null,null,null,null,null,null,null,null,null,null,null,null,null,null,null,null,null,null,null,null,null,null,null,null,null,null,null,null,"Note: See 'cross-schedules' tab. If Box 1A present, boxes AOI5, AOI7, AOI9 and FOR44 must be absent"]
[6,"","AOI8","UK life insurance policy etc gains from voided ISAs",null,null,null,null,null,null,null,null,null,null,null,null,null,null,null,null,null,null,null,null,null,null,null,null,null,null,null,null,null,null,null,null,null,null,null,null,null,null,null,null,null,null,null,null,null,null,null,null,null,null,null,null,null,null,null,null,null,null,null,null,null,null,null,null,null,null,null,null,null,null,null,null,null,null,null,null,null,null,null,null,null,null,null,null,null,null,null,null,null,null,null,null,null,null,null,null,null,null,null,null,null,null,4500,null,null,null,2000,null,null,null,null,null,null,null,null,null,null,null,null,null,null,null,null,null,null,null,null,null,null,null,null,null,null,null,null,null,null,null,null,null,null,null,null,null,null,null,null,null,null,null,null,null,null,null,null,null,null,null,null,null,null,null,null,null,null,null,null,null,null,null,null,null,null,null,null,null,null,null,null,null,null,null,null,null,null,null,null,3800,null,null,null,null,null,null,null,null,null,null,null,null,null,null,null,null,null,null,null,null,null,null,null,null,null,null,null,null,null,null,null,null,null,null,null,null,null,null,null,null,null,null,null,null,null,null,null,null,null,null,null,null,null,null,null,null,null,null,null,28777]
[7,"","AOI9","Number of years the policy was held",null,null,null,null,null,null,null,null,null,null,null,null,null,null,null,null,null,null,null,null,null,null,null,null,null,null,null,null,null,null,null,null,null,null,null,null,null,null,null,null,null,null,null,null,null,null,null,null,null,null,null,null,null,null,null,null,null,null,null,null,null,null,null,null,null,null,null,null,null,null,null,null,null,null,null,null,null,null,null,null,null,null,null,null,null,null,null,null,null,null,null,null,null,null,null,null,null,null,null,null,null,null,2,null,null,null,2,null,null,null,null,null,null,null,null,null,null,null,null,null,null,null,null,null,null,null,null,null,null,null,null,null,null,null,null,null,null,null,null,null,null,null,null,null,null,null,null,null,null,null,null,null,null,null,null,null,null,null,null,null,null,null,null,null,null,null,null,null,null,null,null,null,null,null,null,null,null,null,null,null,null,null,null,null,null,null,null,2,null,null,null,null,null,null,null,null,null,null,null,null,null,null,null,null,null,null,null,null,null,null,null,null,null,null,null,null,null,null,null,null,null,null,null,null,null,null,null,null,null,null,null,null,null,null,null,null,null,null,null,null,null,null,null,null,null,null,null,7,null,null,null,null,null,null,null,null,null,null,null,null,null,null,null,null,null,null,null,null,null,null,null,null,null,null,"Note: See 'cross-schedules' tab. If Box 1A present, boxes AOI5, AOI7, AOI9 and FOR44 must be absent"]
[8,"","AOI10","Tax taken off box 8",null,null,null,null,null,null,null,null,null,null,null,null,null,null,null,null,null,null,null,null,null,null,null,null,null,null,null,null,null,null,null,null,null,null,null,null,null,null,null,null,null,null,null,null,null,null,null,null,null,null,null,null,null,null,null,null,null,null,null,null,null,null,null,null,null,null,null,null,null,null,null,null,null,null,null,null,null,null,null,null,null,null,null,null,null,null,null,null,null,null,null,null,null,null,null,null,null,null,null,null,null,null,{"$f":"DC14*BR_rate","v":900},null,null,null,{"$f":"DG14*BR_rate","v":400},null,null,null,null,null,null,null,null,null,null,null,null,null,null,null,null,null,null,null,null,null,null,null,null,null,null,null,null,null,null,null,null,null,null,null,null,null,null,null,null,null,null,null,null,null,null,null,null,null,null,null,null,null,null,null,null,null,null,null,null,null,null,null,null,null,null,null,null,null,null,null,null,null,null,null,null,null,null,null,null,{"$f":"GJ14*BR_rate","v":760},null,null,null,null,null,null,null,null,null,null,null,null,null,null,null,null,null,null,null,null,null,null,null,null,null,null,null,null,null,null,null,null,null,null,null,null,null,null,null,null,null,null,null,null,null,null,null,null,null,null,null,null,null,null,null,null,null,null,null,{"$f":"IR14*BR_rate","v":5755.4000000000005}]
[9,"","AOI11","Deficiency relief",null,null,null,null,null,null,null,null,null,null,null,null,null,null,null,null,null,null,null,null,null,null,null,null,null,null,null,null,null,null,null,null,null,null,null,null,null,null,null,null,null,null,null,null,null,null,null,null,null,null,null,null,null,null,null,null,null,null,null,null,null,null,14755,null,null,null,null,null,null,null,null,null,null,null,null,null,null,null,null,null,null,null,null,null,null,null,null,null,null,null,null,33000,33000,null,null,null,null,null,33000,null,null,null,null,null,null,null,null,null,null,null,null,null,null,null,null,null,null,null,null,null,null,null,null,null,null,null,null,null,null,null,null,null,null,null,null,null,null,null,null,null,null,null,null,null,null,null,null,null,null,null,null,null,null,null,null,null,null,null,null,null,null,null,null,null,null,33000,33000,null,null,null,null,null,null,null,null,null,null,null,null,null,null,null,null,null,null,null,null,null,null,null,null,null,null,null,null,null,null,null,null,null,null,null,null,null,null,null,null,null,null,null,null,null,null,null,null,null,null,null,null,null,null,null,null,null,null,null,null,null,null,null,null,null,null,null,null,null,null,null,null,null,null,null,null,null,null,null,null,null,null,null,null,null,null,null,null,null,14755,14755,14755]
[]
[null,null,"Stock divs  and non qualifying distributions"]
["row","selected","AOI-C",null,1,2,3,4,5,6,7,8,9,10,11,12,13,14,15,16,17,18,19,20,21,22,23,24,25,26,27,28,29,30,31,32,33,34,35,36,37,38,39,40,41,42,43,44,45,46,47,48,49,50,51,52,53,54,55,56,57,58,59,60,61,62,63,64,65,66,67,68,69,70,71,72,73,74,75,76,77,78,79,80,81,82,83,84,85,86,87,88,89,90,91,92,93,94,95,96,97,98,99,100,101,102,103,104,105,106,107,108,109,110,111,112,113,114,115,116,117,118,119,120,121,122,123,124,125,126,127,128,129,130,131,132,133,134,135,136,137,138,139,140,141,142,143,144,145,146,147,148,149,150,151,152,153,154,155,156,157,158,159,160,161,162,163,164,165,166,167,168,169,170,171,172,173,174,175,176,177,178,179,180,181,182,183,184,185,186,187,188,189,190,191,192,193,194,195,196,197,198,199,200,201,202,203,204,205,206,207,208,209,210,211,212,213,214,215,216,217,218,219,220,221,222,223,224,225,226,227,228,229,230,231,232,233,234,235,236,237,238,239,240,241,242,243,244,245,246,247,248,249,250,251,252,253,254,255,256,257,258,259,260,261,262,263,264,265,266,267,268,269,270,271,272,273]
[2,{"$f":"IF(AOI_C_IND>1,IF(HLOOKUP(AOI_C_IND-1,AOI_C_RANGE,A21)=\"\",\"\",HLOOKUP(AOI_C_IND-1,AOI_C_RANGE,A21)),\"\")","v":""},"AOI12","Stock dividends",null,null,null,null,null,null,null,null,null,null,null,null,null,null,null,null,null,null,null,null,null,null,null,null,null,null,null,null,null,null,null,null,null,null,null,null,null,null,null,null,null,null,null,null,null,null,null,null,null,null,null,817,null,null,null,null,null,null,null,null,null,null,null,null,null,null,3065.99,null,null,null,null,null,null,null,null,null,null,null,null,null,null,null,null,null,null,null,null,null,null,null,null,null,null,490.5,208,490.5,null,null,null,null,817,null,null,null,null,null,null,490.5,490.5,null,null,null,null,null,null,null,null,null,null,null,null,null,null,null,null,null,null,null,null,null,null,null,null,null,null,null,null,null,null,null,null,null,null,null,null,null,null,null,null,null,null,null,null,null,null,null,null,null,null,null,null,null,null,null,null,null,null,null,null,null,null,3065.99,null,null,null,null,null,null,null,null,null,null,null,null,null,3065.99,null,1004,null,null,null,null,null,null,null,null,null,null,3065.99,null,3910,null,null,null,null,null,null,null,null,null,null,null,null,null,null,null,null,null,null,null,null,null,null,null,null,null,null,null,null,null,353,null,null,null,null,null,null,null,null,null,null,null,null,null,null,null,null,null,null,null,null,null,null,null,null,null,null,null,null,490.5]
[3,{"$f":"IF(AOI_C_IND>1,IF(HLOOKUP(AOI_C_IND-1,AOI_C_RANGE,A22)=\"\",\"\",HLOOKUP(AOI_C_IND-1,AOI_C_RANGE,A22)),\"\")","v":""},"AOI13","Non-qualifying distributions",null,null,null,null,null,null,null,null,null,null,null,null,null,null,null,null,null,null,null,null,null,null,null,null,null,null,null,null,null,null,null,null,null,null,null,null,null,null,null,null,null,null,null,null,null,null,null,null,null,null,null,276,null,null,null,null,null,null,null,null,null,null,null,null,null,null,null,null,null,null,null,null,null,null,null,null,null,null,null,null,null,null,null,null,null,null,null,null,null,null,null,null,null,null,null,null,null,null,null,null,276,null,null,null,null,null,null,null,null,null,null,null,null,null,null,null,null,null,null,null,null,null,null,null,118,null,null,null,null,null,null,null,null,null,null,null,null,null,null,null,null,null,null,null,null,null,null,null,null,null,null,null,null,null,null,null,null,null,null,null,null,null,null,null,null,null,null,null,null,null,null,null,11977,null,null,null,null,null,null,null,null,null,null,null,null,null,null,193,null,null,null,null,null,null,null,null,null,null,null,null,null,null,null,null,null,null,null,null,null,null,null,null,null,null,null,null,null,null,null,null,null,null,null,null,null,null,null,null,null,null,null,null,null,null,null,null,null,null,null,null,null,null,null,null,null,null,null,null,null,131003]
[4,{"$f":"IF(AOI_C_IND>1,IF(HLOOKUP(AOI_C_IND-1,AOI_C_RANGE,A23)=\"\",\"\",HLOOKUP(AOI_C_IND-1,AOI_C_RANGE,A23)),\"\")","v":""},"AOI13.1","Close company loans written off or released",null,null,null,null,null,null,null,null,null,null,null,null,null,null,null,null,null,null,null,null,null,null,null,null,null,null,null,null,null,null,null,null,null,null,null,null,null,null,null,null,null,null,null,null,null,null,null,null,null,null,null,null,null,null,null,null,null,null,null,null,null,null,null,null,null,null,null,null,null,null,null,null,null,null,null,null,null,null,null,null,null,null,null,null,null,null,null,null,null,null,null,null,null,null,null,null,null,null,null,null,null,null,null,null,null,null,null,null,null,null,null,null,null,null,null,null,null,null,null,null,null,null,null,null,null,null,null,null,null,null,null,null,null,null,null,null,null,null,null,null,null,null,null,null,null,null,null,null,null,null,null,null,null,null,null,null,null,null,null,null,null,null,null,null,null,null,null,null,null,null,null,null,2739,null,null,null,null,null,null,null,null,null,null,null,null,null,null,null,null,null,null,null,null,null,null,null,null,null,null,null,null,null,null,null,null,null,null,null,null,null,null,null,null,null,null,null,null,null,null,null,null,null,null,null,null,null,null,null,null,null,null,null,null,null,null,null,null,null,null,null,null,null,null,null,null,null,null,null,null,39700]
[5,{"$f":"IF(AOI_C_IND>1,IF(HLOOKUP(AOI_C_IND-1,AOI_C_RANGE,A24)=\"\",\"\",HLOOKUP(AOI_C_IND-1,AOI_C_RANGE,A24)),\"\")","v":""},"AOI14","The amount of post-cessation or other business receipts",null,null,null,null,null,null,null,null,null,null,null,null,null,null,null,null,null,null,null,null,null,null,null,null,null,null,null,null,null,null,null,null,null,null,null,null,null,null,null,null,null,null,null,null,null,null,null,null,null,null,null,null,null,null,null,null,null,null,null,null,null,null,null,null,null,null,null,null,null,null,null,null,null,null,null,null,null,null,null,null,null,null,null,null,null,null,null,null,null,null,null,null,null,null,null,null,null,null,null,null,null,null,null,null,null,null,null,null,null,null,null,null,null,null,null,null,null,null,null,null,null,null,null,null,null,null,null,null,null,null,null,null,null,null,null,null,null,null,null,null,null,null,null,null,null,null,null,null,null,null,null,null,null,null,null,null,null,null,null,null,null,null,null,null,null,null,null,null,null,null,null,null,null,null,null,null,500,null,null,null,null,null,null,null,null,null,null,null,null,null,null,null,null,null,null,750]
[6,{"$f":"IF(AOI_C_IND>1,IF(HLOOKUP(AOI_C_IND-1,AOI_C_RANGE,A25)=\"\",\"\",HLOOKUP(AOI_C_IND-1,AOI_C_RANGE,A25)),\"\")","v":""},"AOI15","Tax year income to be taxed",null,null,null,null,null,null,null,null,null,null,null,null,null,null,null,null,null,null,null,null,null,null,null,null,null,null,null,null,null,null,null,null,null,null,null,null,null,null,null,null,null,null,null,null,null,null,null,null,null,null,null,null,null,null,null,null,null,null,null,null,null,null,null,null,null,null,null,null,null,null,null,null,null,null,null,null,null,null,null,null,null,null,null,null,null,null,null,null,null,null,null,null,null,null,null,null,null,null,null,null,null,null,null,null,null,null,null,null,null,null,null,null,null,null,null,null,null,null,null,null,null,null,null,null,null,null,null,null,null,null,null,null,null,null,null,null,null,null,null,null,null,null,null,null,null,null,null,null,null,null,null,null,null,null,null,null,null,null,null,null,null,null,null,null,null,null,null,null,null,null,null,null,null,null,null,null,"2020-21",null,null,null,null,null,null,null,null,null,null,null,null,null,null,null,null,null,null,"2020-21",null,null,null,null,null,null,null,null,null,null,null,null,null,null,null,null,null,null,null,null,null,null,null,null,null,null,null,null,null,null,null,null,null,null,null,null,null,null,null,null,null,null,null,null,null,null,null,null,null,null,null,null,null,null,null,null,null,null,null,null,null,null,null,null,null,null,null,null,null,null,null,null,null,null,null,null,null,null,"a) If AOI14 present then AOI15 must also be present.\nB) If AOI15 present then AOI14 must also be present"]
[]
[null,null,"Share schemes"]
["row","selected","ASE-A",null,1,2,3,4,5,6,7,8,9,10,11,12,13,14,15,16,17,18,19,20,21,22,23,24,25,26,27,28,29,30,31,32,33,34,35,36,37,38,39,40,41,42,43,44,45,46,47,48,49,50,51,52,53,54,55,56,57,58,59,60,61,62,63,64,65,66,67,68,69,70,71,72,73,74,75,76,77,78,79,80,81,82,83,84,85,86,87,88,89,90,91,92,93,94,95,96,97,98,99,100,101,102,103,104,105,106,107,108,109,110,111,112,113,114,115,116,117,118,119,120,121,122,123,124,125,126,127,128,129,130,131,132,133,134,135,136,137,138,139,140,141,142,143,144,145,146,147,148,149,150,151,152,153,154,155,156,157,158,159,160,161,162,163,164,165,166,167,168,169,170,171,172,173,174,175,176,177,178,179,180,181,182,183,184,185,186,187,188,189,190,191,192,193,194,195,196,197,198,199,200,201,202,203,204,205,206,207,208,209,210,211,212,213,214,215,216,217,218,219,220,221,222,223,224,225,226,227,228,229,230,231,232,233,234,235,236,237,238,239,240,241,242,243,244,245,246,247,248,249,250,251,252,253,254,255,256,257,258,259,260,261,262,263,264,265,266,267,268,269,270,271,272,273]
[2,{"$f":"IF(ASE_A_IND>1,IF(HLOOKUP(ASE_A_IND-1,ASE_A_RANGE,A29)=\"\",\"\",HLOOKUP(ASE_A_IND-1,ASE_A_RANGE,A29)),\"\")","v":""},"ASE1","Share schemes – the taxable amount",null,null,null,null,null,null,null,null,null,null,null,null,null,null,null,null,null,null,null,null,null,null,null,null,null,null,null,null,null,null,null,null,null,null,null,null,null,null,null,null,null,null,null,null,null,null,null,null,3020,null,null,6250,null,null,null,null,null,null,null,null,null,null,null,null,null,null,null,null,null,null,null,null,null,null,null,null,null,null,null,null,null,null,null,null,null,null,null,null,null,null,null,null,null,null,null,null,null,null,null,null,null,null,null,null,null,null,null,null,null,null,null,null,null,3020,null,null,null,null,null,null,null,2275,null,null,null,null,null,null,null,null,null,null,null,null,null,null,null,null,null,null,null,null,null,null,null,null,null,null,null,null,null,null,null,null,null,null,null,null,null,null,null,null,null,null,null,null,null,null,null,null,null,null,null,null,null,null,null,null,null,null,null,null,null,null,null,null,null,null,null,null,null,null,null,null,null,null,null,null,null,null,null,null,null,null,null,null,null,null,null,null,null,null,null,null,null,null,null,null,null,null,null,22,null,null,null,null,null,null,null,null,null,null,null,null,null,null,null,null,null,null,null,12860,null,null,null,null,null,null,null,null,null,null,null,null,null,6250]
[null,null,"ASE2","Box 2 is not in use"]
[null,null,"Lump Sums"]
["row","selected","ASE-B",null,1,2,3,4,5,6,7,8,9,10,11,12,13,14,15,16,17,18,19,20,21,22,23,24,25,26,27,28,29,30,31,32,33,34,35,36,37,38,39,40,41,42,43,44,45,46,47,48,49,50,51,52,53,54,55,56,57,58,59,60,61,62,63,64,65,66,67,68,69,70,71,72,73,74,75,76,77,78,79,80,81,82,83,84,85,86,87,88,89,90,91,92,93,94,95,96,97,98,99,100,101,102,103,104,105,106,107,108,109,110,111,112,113,114,115,116,117,118,119,120,121,122,123,124,125,126,127,128,129,130,131,132,133,134,135,136,137,138,139,140,141,142,143,144,145,146,147,148,149,150,151,152,153,154,155,156,157,158,159,160,161,162,163,164,165,166,167,168,169,170,171,172,173,174,175,176,177,178,179,180,181,182,183,184,185,186,187,188,189,190,191,192,193,194,195,196,197,198,199,200,201,202,203,204,205,206,207,208,209,210,211,212,213,214,215,216,217,218,219,220,221,222,223,224,225,226,227,228,229,230,231,232,233,234,235,236,237,238,239,240,241,242,243,244,245,246,247,248,249,250,251,252,253,254,255,256,257,258,259,260,261,262,263,264,265,266,267,268,269,270,271,272,273]
[2,{"$f":"IF(ASE_B_IND>1,IF(HLOOKUP(ASE_B_IND-1,ASE_B_RANGE,A33)=\"\",\"\",HLOOKUP(ASE_B_IND-1,ASE_B_RANGE,A33)),\"\")","v":""},"ASE3","Taxable lump sums and certain income after the end of your job",null,null,null,null,null,null,null,null,null,null,null,null,null,null,null,null,null,null,null,null,null,null,null,null,null,null,null,null,null,null,null,null,null,null,null,null,null,null,null,null,null,null,null,null,null,null,null,null,null,null,null,null,null,null,null,null,null,null,null,null,null,null,null,null,null,null,null,null,null,null,null,null,null,null,null,null,null,null,null,null,null,null,null,null,null,null,null,null,null,null,null,null,null,null,null,null,null,null,null,null,null,null,null,null,null,null,null,null,null,null,null,null,null,null,null,null,null,null,null,null,null,null,null,null,null,null,null,null,null,null,null,null,null,null,null,null,null,null,null,null,null,null,null,null,null,null,null,null,null,null,null,null,null,null,null,null,null,null,null,null,null,null,null,null,null,null,null,null,null,null,null,null,null,null,null,null,null,null,null,null,null,null,null,null,null,null,null,null,null,null,null,null,null,null,null,null,null,null,null,null,null,null,null,null,null,null,null,null,null,null,null,null,null,null,null,null,null,null,null,19471,19420,null,null,null,null,null,null,183447,null,null,null,null,null,null,null,null,null,null,27500,null,null,null,null,null,null,null,null,null,null,null,null,null,null,null,null,null,null,null,null,null,24850]
[3,"","ASE4","Lump sums or benefits received from an Employer Financed Retirement Benefits Scheme excluding pensions",null,null,null,null,null,null,null,null,null,null,null,null,null,null,null,null,null,null,null,null,null,null,null,null,null,null,null,null,null,null,null,null,null,null,null,null,null,null,null,null,null,null,null,null,null,null,null,null,null,null,null,null,null,null,null,null,null,null,null,null,null,null,null,null,null,null,null,null,null,null,null,null,null,null,null,null,null,null,null,null,null,null,null,null,null,null,null,null,null,null,null,null,null,null,null,null,null,null,null,null,null,null,null,null,null,null,null,null,null,null,null,2200]
[4,"","ASE5","Redundancy, other lump sums and compensation payments",null,null,null,null,null,null,null,null,null,null,null,null,null,null,null,null,null,null,null,null,null,null,null,null,null,null,null,null,null,null,null,null,null,null,null,null,null,null,null,null,null,null,null,null,null,null,null,null,null,null,null,15000,7000,null,null,null,null,null,null,null,null,null,null,null,null,null,null,null,null,15000,null,null,null,null,null,null,null,null,null,null,null,null,null,null,null,null,null,null,null,null,1000,null,null,null,null,null,null,null,null,null,null,null,null,null,null,388602,null,null,null,null,null,null,null,null,null,null,null,null,null,null,null,null,null,null,null,null,null,null,null,null,null,null,null,null,null,null,null,null,null,null,null,null,null,null,null,null,null,null,null,null,null,null,7925249,null,3982,null,null,null,null,null,null,null,null,null,null,null,null,null,null,20000,null,null,null,null,null,null,35000,null,null,35000,72055,55000,null,null,null,null,55000,null,55000,7000,null,7700,null,null,null,79000,null,null,null,null,null,null,null,null,null,null,null,75000,null,null,69000,null,null,null,null,null,null,null,null,24940,24876,24750,77100,13666,23535,210910,null,23317,null,120000,23226,1000,23215,21992,21953,18659,197700,20000,20851,20918.080000000002,20987.3,21216,12000,null,76018,null,null,null,null,null,null,null,null,null,null,null,null,null,null,null,null,null,null,null,null,null,null,null,null,null,null,null,20100]
[5,"","ASE6","Tax taken off boxes 3 to 5",null,null,null,null,null,null,null,null,null,null,null,null,null,null,null,null,null,null,null,null,null,null,null,null,null,null,null,null,null,null,null,null,null,null,null,null,null,null,null,null,null,null,null,null,null,null,null,null,null,null,null,{"$f":"(BD33+BD34+BD35)*BR_rate","v":3000},null,null,null,null,null,null,null,null,null,null,null,null,null,null,null,null,null,null,null,null,null,null,null,null,null,null,null,null,null,null,null,null,null,null,null,null,null,null,null,null,null,null,null,null,null,null,null,null,null,null,null,null,null,{"$f":"(DF33+DF34+DF35)*BR_rate","v":77720.400000000009},null,null,null,null,null,{"$f":"(DL33+DL34+DL35)*BR_rate","v":440},null,null,null,null,null,null,null,null,null,null,null,null,null,null,null,null,null,null,null,null,null,null,null,null,null,null,null,null,null,null,null,null,null,null,null,null,null,null,null,null,{"$f":"(FA33+FA34+FA35)*BR_rate","v":1585049.8},null,null,null,null,null,null,null,null,null,null,null,null,null,null,null,null,{"$f":"(FR33+FR34+FR35)*BR_rate","v":4000},null,null,null,null,null,null,6886,null,null,6886,14411,8918.4,null,null,null,null,8918.4,null,8918.4,null,null,null,null,null,null,null,null,null,null,null,null,null,null,null,null,null,null,null,null,null,null,null,null,null,null,null,null,null,null,17686,{"$f":"(HQ33+HQ34+HQ35)*BR_rate","v":8859.2000000000007},4950,15420,2733.2000000000003,9441,42182,null,116062,null,{"$f":"(HZ33+HZ34+HZ35)*BR_rate","v":24000},9301,200,11868,null,null,3731.8,39540,null,19459,null,4197.46,4243.2,null,null,0,null,null,null,null,null,null,null,null,null,null,null,null,null,null,null,{"$f":"(JE33+JE34+JE35)*BR_rate","v":4970},null,null,null,null,null,null,null,null,null,null,null,7895.25]
[6,"","ASE7","f you have left box 6 blank because the tax is included in box 2 on the ‘Employment’ page, put ‘X’ in the box",null,null,null,null,null,null,null,null,null,null,null,null,null,null,null,null,null,null,null,null,null,null,null,null,null,null,null,null,null,null,null,null,null,null,null,null,null,null,null,null,null,null,null,null,null,null,null,null,null,null,null,null,null,null,null,null,null,null,null,null,null,null,null,null,null,null,null,null,null,null,null,null,null,null,null,null,null,null,null,null,null,null,null,null,null,null,null,null,null,null,null,null,null,null,null,null,null,null,null,null,null,null,null,null,null,null,null,null,null,null,null,null,null,null,null,null,null,null,null,null,null,null,null,null,null,null,null,null,null,null,null,null,null,null,null,null,null,null,null,null,null,null,null,null,null,null,null,null,null,null,null,null,null,null,null,null,null,null,null,null,null,null,null,null,null,null,null,null,null,null,null,null,null,null,null,null,null,null,null,null,null,null,null,null,null,null,null,null,null,null,null,null,null,null,null,null,null,null,null,null,null,null,null,null,null,null,null,null,null,null,null,null,null,null,null,null,null,null,null,null,null,null,null,null,null,null,null,null,null,null,null,null,null,"Y",null,null,null,null,null,"Y",null,null,null,null,null,null,null,null,null,null,null,null,null,null,null,null,null,null,null,null,null,null,null,null,null,null,null,null,null,null,null,null,null,null,"Must be N if there is an entry greater than zero in box ASE6"]
[7,"","ASE8","Exemptions for amounts entered in box 4",null,null,null,null,null,null,null,null,null,null,null,null,null,null,null,null,null,null,null,null,null,null,null,null,null,null,null,null,null,null,null,null,null,null,null,null,null,null,null,null,null,null,null,null,null,null,null,null,null,null,null,null,null,null,null,null,null,null,null,null,null,null,null,null,null,null,null,null,null,null,null,null,null,null,null,null,null,null,null,null,null,null,null,null,null,null,null,null,null,null,null,null,null,null,null,null,null,null,null,null,null,null,null,null,null,null,null,null,null,null,null,300]
[8,"","ASE9","Compensation and lump sums up to £30,000 exemption",null,null,null,null,null,null,null,null,null,null,null,null,null,null,null,null,null,null,null,null,null,null,null,null,null,null,null,null,null,null,null,null,null,null,null,null,null,null,null,null,null,null,null,null,null,null,null,null,null,null,null,7560,null,null,null,null,null,null,null,null,null,null,null,null,null,null,null,null,null,null,null,null,null,null,null,null,null,null,null,null,null,null,null,null,null,null,null,null,null,null,null,null,null,null,null,null,null,null,null,null,null,null,null,null,null,7560,null,null,null,null,null,null,null,null,null,null,null,null,null,null,null,null,null,null,null,null,null,null,null,null,null,null,null,null,null,null,null,null,null,null,null,null,null,null,null,null,null,null,null,null,null,null,30000,null,null,null,null,null,null,null,null,null,null,null,null,null,null,null,null,30000,null,null,null,null,null,null,null,null,null,null,null,null,null,null,null,null,null,null,null,null,null,null,null,null,null,null,null,null,null,null,null,null,null,null,null,null,null,null,null,null,null,null,null,null,null,null,null,null,null,null,3000,null,null,30000,30000,null,null,30000,null,null,null,null,30000,20000,null,null,null,30000,30000,30000,30000,null,null,null,null,null,null,null,null,null,null,null,null,null,null,null,null,null,null,null,null,null,null,null,null,null,null,null,null,null,null,null,30000,null,"If present, must be less than or equal to £30,000"]
[9,"","ASE10","Disability and foreign service deduction"]
[]
[null,null,"Other deductions"]
["row","selected","ASE-C",null,1,2,3,4,5,6,7,8,9,10,11,12,13,14,15,16,17,18,19,20,21,22,23,24,25,26,27,28,29,30,31,32,33,34,35,36,37,38,39,40,41,42,43,44,45,46,47,48,49,50,51,52,53,54,55,56,57,58,59,60,61,62,63,64,65,66,67,68,69,70,71,72,73,74,75,76,77,78,79,80,81,82,83,84,85,86,87,88,89,90,91,92,93,94,95,96,97,98,99,100,101,102,103,104,105,106,107,108,109,110,111,112,113,114,115,116,117,118,119,120,121,122,123,124,125,126,127,128,129,130,131,132,133,134,135,136,137,138,139,140,141,142,143,144,145,146,147,148,149,150,151,152,153,154,155,156,157,158,159,160,161,162,163,164,165,166,167,168,169,170,171,172,173,174,175,176,177,178,179,180,181,182,183,184,185,186,187,188,189,190,191,192,193,194,195,196,197,198,199,200,201,202,203,204,205,206,207,208,209,210,211,212,213,214,215,216,217,218,219,220,221,222,223,224,225,226,227,228,229,230,231,232,233,234,235,236,237,238,239,240,241,242,243,244,245,246,247,248,249,250,251,252,253,254,255,256,257,258,259,260,261,262,263,264,265,266,267,268,269,270,271,272,273]
[2,{"$f":"IF(ASE_C_IND>1,IF(HLOOKUP(ASE_C_IND-1,ASE_C_RANGE,A44)=\"\",\"\",HLOOKUP(ASE_C_IND-1,ASE_C_RANGE,A44)),\"\")","v":""},"ASE11","Seafarers’ Earnings Deduction",null,null,null,null,null,null,null,null,null,null,null,null,null,null,null,null,null,null,null,null,null,null,null,null,null,null,null,null,null,null,null,null,null,null,null,null,null,null,null,null,null,null,null,null,null,null,null,null,null,null,null,null,null,null,null,null,null,null,null,null,null,null,null,null,null,null,null,null,null,null,null,null,null,null,null,null,null,null,null,null,null,null,null,null,null,null,null,null,null,null,null,null,null,null,null,null,null,null,null,null,null,null,null,null,null,null,null,null,null,null,null,null,null,16993]
[3,{"$f":"IF(ASE_C_IND>1,IF(HLOOKUP(ASE_C_IND-1,ASE_C_RANGE,A45)=\"\",\"\",HLOOKUP(ASE_C_IND-1,ASE_C_RANGE,A45)),\"\")","v":""},"ASE12","Foreign earnings not taxable in the UK",null,null,null,null,null,null,null,null,null,null,null,null,null,null,null,null,null,null,null,null,null,null,null,null,null,null,null,null,null,null,null,null,null,null,null,null,null,null,null,null,null,null,null,null,null,null,null,null,null,null,null,2000,null,null,null,null,null,null,null,null,null,null,null,null,null,null,null,null,null,null,null,null,null,null,null,null,null,null,null,null,null,null,null,null,null,null,null,null,null,null,null,null,null,null,null,null,null,null,null,null,null,null,null,null,null,null,null,null,null,null,null,null,null,null,null,30000,null,null,257277,252876,null,null,null,null,null,null,null,null,null,null,null,null,null,null,null,null,null,null,null,null,null,null,null,null,null,null,null,null,null,null,null,null,null,null,null,null,null,null,null,null,null,null,null,null,null,null,null,null,null,null,null,null,null,null,null,null,null,null,null,null,null,null,null,null,null,null,null,null,null,null,null,null,null,null,null,null,null,null,null,null,null,null,null,null,null,null,null,null,null,452916]
[4,{"$f":"IF(ASE_C_IND>1,IF(HLOOKUP(ASE_C_IND-1,ASE_C_RANGE,A46)=\"\",\"\",HLOOKUP(ASE_C_IND-1,ASE_C_RANGE,A46)),\"\")","v":""},"ASE13","Foreign tax for which tax credit relief not claimed",null,null,null,null,null,null,null,null,null,null,null,null,null,null,null,null,null,null,null,null,null,null,null,null,null,null,null,null,null,null,null,null,null,null,null,null,null,null,null,null,null,null,null,null,null,null,null,null,null,null,null,null,null,null,null,null,null,null,null,null,null,null,null,null,null,null,null,null,null,null,null,null,null,null,null,null,null,null,null,null,null,null,null,null,null,null,null,null,null,null,null,null,null,null,null,null,null,null,null,null,null,null,null,null,null,null,null,null,null,null,null,null,null,null,null,null,null,null,null,null,null,null,null,null,null,null,null,null,null,null,null,null,null,null,null,null,null,null,null,null,null,null,null,null,null,null,null,null,null,null,null,null,null,null,null,null,null,null,null,null,null,1658]
[5,{"$f":"IF(ASE_C_IND>1,IF(HLOOKUP(ASE_C_IND-1,ASE_C_RANGE,A47)=\"\",\"\",HLOOKUP(ASE_C_IND-1,ASE_C_RANGE,A47)),\"\")","v":""},"ASE14","Exempt employers’ contributions to an overseas pension scheme",null,null,null,null,null,null,null,null,null,null,null,null,null,null,null,null,null,null,null,null,null,null,null,null,null,null,null,null,null,null,null,null,null,null,null,null,null,null,null,null,null,null,null,null,null,null,null,null,null,null,null,null,null,null,null,null,null,null,null,null,null,null,null,null,null,null,null,null,null,null,null,null,null,null,null,null,null,null,null,null,null,null,null,null,null,null,null,null,null,null,null,null,null,null,null,null,null,null,null,null,null,null,null,null,null,null,null,null,null,null,null,null,null,null,15803,null,null,null,15803]
[6,{"$f":"IF(ASE_C_IND>1,IF(HLOOKUP(ASE_C_IND-1,ASE_C_RANGE,A48)=\"\",\"\",HLOOKUP(ASE_C_IND-1,ASE_C_RANGE,A48)),\"\")","v":""},"ASE15","UK patent royalty payments made",null,null,null,null,null,null,null,null,null,null,null,null,null,null,null,null,null,null,null,null,null,null,null,null,null,null,null,null,null,null,null,null,null,null,null,null,null,null,null,null,null,null,null,null,null,null,null,null,null,null,null,null,null,null,null,null,null,null,null,null,null,null,null,null,null,null,null,null,null,null,null,null,null,null,null,null,null,null,null,null,null,null,null,null,null,null,null,null,null,null,null,null,null,null,null,null,null,null,null,null,null,null,null,null,null,null,null,null,null,null,null,null,null,null,null,null,null,null,null,null,null,null,null,null,null,null,null,null,null,null,null,null,null,null,null,null,null,null,null,null,null,null,null,null,null,null,null,null,null,null,null,null,null,null,null,null,null,null,null,null,null,null,null,null,null,null,null,null,null,null,null,null,null,null,null,null,null,null,null,null,null,null,null,null,null,null,null,null,null,null,null,null,null,null,null,null,null,null,null,null,null,null,null,600]
[null,null,"Other tax reliefs"]
["row",{"$f":"\"selected \"&AOR_IND-1","v":"selected 0"},"AOR",null,1,2,3,4,5,6,7,8,9,10,11,12,13,14,15,16,17,18,19,20,21,22,23,24,25,26,27,28,29,30,31,32,33,34,35,36,37,38,39,40,41,42,43,44,45,46,47,48,49,50,51,52,53,54,55,56,57,58,59,60,61,62,63,64,65,66,67,68,69,70,71,72,73,74,75,76,77,78,79,80,81,82,83,84,85,86,87,88,89,90,91,92,93,94,95,96,97,98,99,100,101,102,103,104,105,106,107,108,109,110,111,112,113,114,115,116,117,118,119,120,121,122,123,124,125,126,127,128,129,130,131,132,133,134,135,136,137,138,139,140,141,142,143,144,145,146,147,148,149,150,151,152,153,154,155,156,157,158,159,160,161,162,163,164,165,166,167,168,169,170,171,172,173,174,175,176,177,178,179,180,181,182,183,184,185,186,187,188,189,190,191,192,193,194,195,196,197,198,199,200,201,202,203,204,205,206,207,208,209,210,211,212,213,214,215,216,217,218,219,220,221,222,223,224,225,226,227,228,229,230,231,232,233,234,235,236,237,238,239,240,241,242,243,244,245,246,247,248,249,250,251,252,253,254,255,256,257,258,259,260,261,262,263,264,265,266,267,268,269,270,271,272,273]
[2,{"$f":"IF(AOR_IND>1,IF(HLOOKUP(AOR_IND-1,AOR_RANGE,A51)=\"\",\"\",HLOOKUP(AOR_IND-1,AOR_RANGE,A51)),\"\")","v":""},"AOR1","Subscriptions for Venture Capital Trust shares",null,null,null,null,null,null,null,null,null,null,null,null,null,null,null,null,null,null,null,null,null,null,null,null,null,null,null,null,null,null,null,null,null,null,null,null,null,null,null,null,null,null,null,null,null,null,null,null,null,null,null,null,null,null,null,null,null,null,91000,null,null,null,null,null,null,null,null,null,null,null,null,null,null,null,null,null,null,null,null,null,null,null,null,null,null,null,null,null,null,null,null,null,null,null,null,null,null,null,null,null,null,null,20038,null,null,null,null,null,null,23998,null,null,null,null,null,null,null,null,null,null,null,null,null,null,null,10,null,null,null,null,null,null,null,null,null,null,null,null,null,null,null,null,null,null,null,null,null,null,null,null,null,null,null,null,null,null,null,null,null,null,null,null,null,null,null,null,null,null,null,null,null,null,null,null,null,null,null,null,null,null,null,null,null,null,null,null,null,null,null,null,null,null,null,null,null,null,20000,null,null,null,null,null,null,null,null,null,null,null,null,null,null,null,null,null,null,null,51500,null,null,null,null,null,null,null,null,null,null,null,null,null,null,null,null,null,null,null,null,null,null,null,null,null,null,null,null,null,null,null,null,null,null,null,null,null,null,null,null,184082,null,null,null,20000,null,null,null,null,null,null,null,null,null,null,null,null,"If present, must be less than or equal to £200,000"]
[3,{"$f":"IF(AOR_IND>1,IF(HLOOKUP(AOR_IND-1,AOR_RANGE,A52)=\"\",\"\",HLOOKUP(AOR_IND-1,AOR_RANGE,A52)),\"\")","v":""},"AOR2","Subscriptions for shares under the Enterprise Investment Scheme",null,null,null,null,null,null,null,null,null,null,null,null,null,null,null,null,null,null,null,null,null,null,null,null,null,null,null,null,null,null,null,null,null,null,null,null,null,null,null,null,null,null,null,null,null,null,null,null,11000,null,null,null,null,null,null,null,null,null,null,null,null,null,10000,null,null,null,null,null,null,null,null,null,null,null,null,null,null,null,null,null,null,null,null,null,null,null,null,null,null,null,null,null,null,null,null,null,2440,null,null,null,null,null,24000,null,null,null,null,null,null,13000,null,null,null,null,null,null,null,34285,null,null,null,null,null,null,null,10,null,null,null,null,null,null,null,null,null,null,null,null,null,null,2789.24,null,null,null,null,null,null,null,null,null,null,null,null,180000,null,null,null,null,null,null,null,30472,30524,null,null,null,null,null,null,null,null,null,null,null,null,null,null,null,null,null,null,null,null,null,null,null,null,null,null,null,10000,null,null,null,null,null,null,null,null,null,null,null,null,null,null,null,null,null,null,null,null,null,null,null,null,null,65600,63376,null,null,null,null,null,null,null,null,null,null,null,null,null,null,null,null,null,null,null,null,null,32000,null,null,null,null,null,null,null,null,null,null,null,null,750000,null,11000,null,null,null,null,null,null,null,null,null,null,null,null,null,null,null,null,null,null,null,"If present, must be less than or equal to £1,000,000"]
[4,"","AOR3","Community Investment Tax Relief",null,null,null,null,null,null,null,null,null,null,null,null,null,null,null,null,null,null,null,null,null,null,null,null,null,null,null,null,null,null,null,null,null,null,null,null,null,null,null,null,null,null,null,null,null,null,null,null,null,null,null,null,null,null,null,null,null,null,null,null,null,null,null,null,null,null,null,null,null,null,null,null,null,null,null,null,1200,null,null,null,null,null,1200,null,null,null,null,null,null,null,null,null,null,null,null,null,null,null,null,null,null,null,null,null,null,null,null,1200,1200,null,null,null,null,null,null,null,null,null,null,null,null,null,null,null,null,10,null,null,null,null,null,null,null,null,null,null,null,null,null,null,null,null,null,null,null,null,null,null,null,null,null,null,null,null,null,null,null,null,null,null,null,null,null,null,null,null,null,null,null,null,null,null,null,null,null,null,null,null,null,null,null,null,null,null,null,null,null,null,null,null,null,null,null,null,null,null,null,null,null,null,null,980,null,null,null,null,null,null,null,null,null,null,null,null,null,null,null,null,null,null,null,7384]
[5,"","AOR4","Annual payments made",null,null,null,null,null,null,null,null,null,null,null,null,null,null,null,null,null,null,null,null,null,null,null,null,null,null,null,null,null,null,null,null,null,null,null,null,null,null,null,null,null,null,null,null,null,null,null,null,null,null,470,null,null,null,null,null,null,null,null,null,null,null,null,null,null,null,null,null,null,null,null,null,null,null,null,null,null,null,null,null,null,null,null,null,null,null,null,null,null,null,null,470,470,null,null,null,null,null,null,null,null,null,null,null,null,null,null,null,null,null,null,null,null,null,null,null,null,null,null,null,null,null,null,null,null,10,null,null,null,null,null,null,null,null,null,null,null,null,null,null,null,null,null,null,null,null,null,null,null,null,null,null,null,null,null,null,null,null,null,null,null,null,null,null,null,null,null,null,null,null,null,null,null,null,null,null,null,null,null,null,null,null,null,null,null,null,null,null,null,null,null,null,null,null,null,null,null,null,null,null,null,null,null,null,null,null,null,null,null,null,null,null,null,null,null,null,null,null,null,null,null,null,null,null,null,null,null,null,null,null,null,null,null,null,null,null,null,null,null,null,null,null,null,null,null,null,null,null,null,null,null,null,null,null,null,null,null,null,null,null,null,null,null,null,null,null,null,null,9000]
[6,"","AOR5","Qualifying loan interest payable in the year",null,null,null,null,null,null,null,null,null,null,null,null,null,null,null,null,null,null,null,null,null,null,null,null,null,null,null,null,null,null,null,null,null,null,null,null,null,null,null,null,null,null,null,null,null,null,null,null,null,null,null,228,null,null,null,null,{"$f":"P_A+3100","v":15670},null,null,null,null,null,null,null,null,null,null,null,null,null,null,null,null,null,null,53000,2360,null,null,null,null,null,2360,null,null,null,null,null,null,null,null,null,null,null,null,1000,null,null,null,null,228,null,null,null,null,null,null,2360,null,null,null,null,null,null,null,null,null,null,null,null,null,null,null,null,null,10,null,null,null,null,null,null,null,null,null,null,null,null,null,null,null,null,null,null,null,null,null,null,null,null,null,null,null,null,49080,null,null,null,null,null,6055,null,null,null,null,null,null,null,null,null,null,null,null,null,null,null,null,null,null,null,null,null,null,null,null,null,null,null,null,null,null,null,null,null,null,null,null,null,null,null,null,4020,null,null,null,null,60000,null,null,null,null,null,null,null,null,null,null,null,null,null,null,null,null,null,null,null,null,null,null,null,null,null,null,null,null,null,null,null,null,null,null,null,null,null,null,null,355,null,null,null,null,null,null,null,4225,null,null,null,null,null,null,null,null,null,null,null,null,null,null,null,null,null,null,null,"Consider OTRSA validation"]
[7,"","AOR6","Post-cessation trade relief and certain other losses",null,null,null,null,null,null,null,null,null,null,null,null,null,null,null,null,null,null,null,null,null,null,null,null,null,null,null,null,null,null,null,null,null,null,null,null,null,null,null,null,null,null,null,null,null,null,null,null,null,null,null,1295,null,null,null,null,null,null,null,null,null,null,null,null,null,null,null,null,null,null,null,null,null,null,null,null,null,null,null,null,null,null,null,null,null,null,null,null,null,null,null,null,null,null,null,null,null,null,null,null,1295,null,null,null,null,null,null,null,null,null,null,null,null,null,null,null,null,null,null,null,null,null,null,null,null,10]
[8,"","AOR6.1","Pre-incorporation losses",null,null,null,null,null,null,null,null,null,null,null,null,null,null,null,null,null,null,null,null,null,null,null,null,null,null,null,null,null,null,null,null,null,null,null,null,null,null,null,null,null,null,null,null,null,null,null,null,null,null,null,null,null,null,null,null,null,null,null,null,null,null,null,null,null,null,null,null,null,null,null,null,null,null,null,null,null,null,null,null,null,null,null,null,null,null,null,null,null,null,null,null,null,null,null,null,null,null,null,null,null,null,null,null,null,null,null,null,null,null,null,null,null,null,null,null,null,null,null,null,null,null,null,null,null,10,null,null,null,null,null,null,null,null,null,null,null,null,null,null,null,null,null,null,null,null,null,null,null,null,null,null,null,null,null,null,null,null,null,null,null,null,null,null,null,null,null,null,null,null,null,null,null,null,null,null,null,null,null,null,51280,null,null,null,null,null,null,null,null,null,null,null,null,25600]
[9,"","AOR7",{"$f":"\"Maintenance payments (maximum \"&DOLLAR(SMP,0)&\")\"","v":"Maintenance payments (maximum £4,360)"},null,null,null,null,null,null,null,null,null,null,null,null,null,null,null,null,null,null,null,null,null,null,null,null,null,null,null,null,null,null,null,null,null,null,null,null,null,null,null,null,null,null,null,null,null,null,null,null,null,null,null,null,null,null,null,null,null,null,null,null,null,null,null,null,null,null,null,null,null,null,null,null,null,null,null,null,null,null,null,null,null,null,null,null,null,null,null,null,null,null,null,null,null,null,null,null,null,null,null,null,null,null,null,null,null,null,null,null,null,null,null,null,null,null,null,null,null,null,null,null,null,null,null,null,null,10,null,null,null,null,null,null,null,null,null,null,null,null,null,null,null,null,null,null,null,null,null,null,null,null,null,null,null,null,null,null,null,null,null,null,null,null,null,null,null,null,null,null,null,null,null,null,null,null,null,null,null,null,null,null,null,null,null,null,null,null,null,null,null,null,null,null,null,null,null,null,1820,null,null,null,null,null,null,null,null,null,null,null,null,null,null,null,null,null,null,null,null,null,null,null,null,null,null,null,null,null,null,null,null,null,null,null,null,null,null,null,null,null,null,null,null,null,null,null,null,null,null,null,null,null,null,null,null,null,null,null,null,null,null,null,null,1820,null,null,null,null,null,null,null,null,null,null,null,null,"If present, must be less than or equal to £3,360"]
[10,"","AOR8","Payments to a trade union etc. for death benefits",null,null,null,null,null,null,null,null,null,null,null,null,null,null,null,null,null,null,null,null,null,null,null,null,null,null,null,null,null,null,null,null,null,null,null,null,null,null,null,null,null,null,null,null,null,null,null,null,null,null,88,null,null,null,null,null,null,null,null,null,null,null,null,null,null,null,null,null,null,null,null,null,null,null,null,null,null,null,null,null,null,null,null,null,null,null,null,null,null,null,null,88,88,null,null,null,null,null,null,null,null,null,null,null,null,null,null,null,null,null,null,null,null,null,null,null,null,null,null,null,null,null,null,null,null,10,null,null,null,null,null,null,null,null,null,null,null,null,null,null,null,null,null,null,null,null,null,null,null,null,null,null,null,null,null,null,null,null,null,null,null,null,null,null,null,null,null,null,null,null,null,null,null,null,null,null,null,null,null,null,null,null,null,null,null,null,null,null,null,null,null,null,null,null,null,null,null,null,null,null,null,null,null,null,null,null,null,null,null,null,null,null,null,null,null,null,null,null,null,null,null,null,null,null,null,null,null,null,null,null,null,null,null,null,null,null,null,null,null,null,null,null,null,null,null,null,null,null,null,null,null,null,null,null,null,null,null,null,null,null,null,null,null,null,null,null,null,null,null,null,null,null,null,null,"If present, must be less than or equal to £100"]
[11,"","AOR9","Relief claimed on a qualifying distribution on the redemption of bonus shares or securities",null,null,null,null,null,null,null,null,null,null,null,null,null,null,null,null,null,null,null,null,null,null,null,null,null,null,null,null,null,null,null,null,null,null,null,null,null,null,null,null,null,null,null,null,null,null,null,null,null,null,null,null,null,null,null,null,null,null,null,null,null,null,12000,null,null,null,null,null,null,null,null,null,null,null,null,null,null,null,null,null,null,null,null,null,null,null,null,null,null,null,null,null,null,null,null,null,null,null,null,null,null,null,null,null,null,null,null,null,null,null,null,null,null,null,null,null,null,null,null,null,null,null,null,null,null,10,null,null,null,null,null,null,null,null,null,null,null,null,null,null,null,null,null,null,null,null,null,null,null,null,null,null,null,null,null,null,null,null,null,null,null,null,null,null,null,null,null,null,null,null,null,null,null,null,null,null,null,null,null,null,null,null,null,null,null,null,null,null,null,20000,12000]
[12,"","AOR10","Subscriptions for shares under the Seed Enterprise Investment Scheme",null,null,null,null,null,null,null,null,null,null,null,null,null,null,null,null,null,null,null,null,null,null,null,null,null,null,null,null,null,null,null,null,null,null,null,null,null,null,null,null,null,null,null,null,null,null,null,null,null,null,null,null,null,null,null,null,null,null,null,null,null,null,null,null,null,null,null,null,null,null,null,null,null,null,null,null,null,null,null,null,null,null,null,null,null,null,null,null,null,null,null,null,null,null,null,null,null,null,null,null,null,null,900,null,null,null,null,null,null,1200,null,null,null,null,null,null,null,null,null,null,null,null,null,null,null,10,null,null,null,null,null,null,null,null,null,null,null,null,null,null,null,null,null,null,null,null,null,null,null,null,null,null,null,null,null,null,null,null,null,null,null,null,5867,null,null,null,null,null,null,null,null,null,null,null,null,null,null,null,null,null,null,null,null,null,null,null,null,null,null,null,null,null,null,null,null,null,null,null,null,null,null,null,null,null,null,null,null,null,null,null,null,null,null,null,null,null,null,16632,null,null,null,null,null,null,null,null,null,null,null,null,null,null,null,null,null,null,null,null,null,null,null,null,null,null,null,null,null,null,null,null,null,null,null,null,null,null,null,null,null,null,null,null,null,null,null,null,null,null,null,null,null,null,null,null,"If present, must be less than or equal to £100,000"]
[13,{"$f":"IF(AOR_IND>1,IF(HLOOKUP(AOR_IND-1,AOR_RANGE,A62)=\"\",\"\",HLOOKUP(AOR_IND-1,AOR_RANGE,A62)),\"\")","v":""},"AOR12","Loan Interest from investments relief",null,null,null,null,null,null,null,null,null,null,null,null,null,null,null,null,null,null,null,null,null,null,null,null,null,null,null,null,null,null,null,null,null,null,null,null,null,null,null,null,null,null,null,null,null,null,null,null,null,null,null,null,null,null,null,null,null,null,null,null,null,null,null,null,null,null,null,null,null,null,null,null,null,null,null,null,null,null,null,null,null,null,null,null,null,null,null,null,null,null,null,null,null,null,null,1000,null,null,null,null,null,null,null,null,null,null,null,null,null,null,null,null,null,null,null,null,null,null,null,null,null,null,null,null,null,10]
[null,null,null,"MCA Control data"]
["row",{"$f":"\"selected \"&MCA_IND-1","v":"selected 0"},null,null,1,2,3,4,5,6,7,8,9,10,11,12,13,14,15,16,17,18,19,20,21,22,23,24,25,26,27,28,29,30,31,32,33,34,35,36,37,38,39,40,41,42,43,44,45,46,47,48,49,50,51,52,53,54,55,56,57,58,59,60,61,62,63,64,65,66,67,68,69,70,71,72,73,74,75,76,77,78,79,80,81,82,83,84,85,86,87,88,89,90,91,92,93,94,95,96,97,98,99,100,101,102,103,104,105,106,107,108,109,110,111,112,113,114,115,116,117,118,119,120,121,122,123,124,125,126,127,128,129,130,131,132,133,134,135,136,137,138,139,140,141,142,143,144,145,146,147,148,149,150,151,152,153,154,155,156,157,158,159,160,161,162,163,164,165,166,167,168,169,170,171,172,173,174,175,176,177,178,179,180,181,182,183,184,185,186,187,188,189,190,191,192,193,194,195,196,197,198,199,200,201,202,203,204,205,206,207,208,209,210,211,212,213,214,215,216,217,218,219,220,221,222,223,224,225,226,227,228,229,230,231,232,233,234,235,236,237,238,239,240,241,242,243,244,245,246,247,248,249,250,251,252,253,254,255,256,257,258,259,260,261,262,263,264,265,266,267,268,269,270,271,272,273]
[2,{"$f":"IF(MCA_IND>1,IF(HLOOKUP(MCA_IND-1,MCA_CONTROL_RANGE,A75)=\"\",\"\",HLOOKUP(MCA_IND-1,MCA_CONTROL_RANGE,A75)),\"\")","v":""},null,"MCA claim",null,null,null,null,null,null,2,2,null,null,null,null,3,null,null,null,null,null,null,null,null,null,null,null,null,null,null,null,null,null,null,null,null,null,null,2,null,null,null,null,null,null,null,null,3,null,null,null,null,null,null,2,null,null,null,null,null,null,null,null,null,2,null,null,null,null,null,null,null,null,2,2,2,null,2,2,null,null,null,2,null,null,null,null,null,null,null,null,null,null,null,null,null,null,null,null,null,null,null,null,null,null,null,null,null,null,null,null,null,null,null,null,null,null,null,null,null,null,2,null,null,null,null,null,2,null,null,null,null,null,null,null,null,null,null,null,null,null,null,null,null,null,null,null,null,null,null,null,null,null,null,null,null,2]
[3,"",null,{"$f":"data!B198&\" = \"&data!C198","v":"1 = 1) Not Claimed"},{"$f":"data!B199&\" = \"&data!C199","v":"2 = 2) husband / higher income partner (box 1 present)"},null,null,null,{"$f":"data!B200&\" = \"&data!C200","v":"3 = 3) wife / lower income partner (box 8 present)"},null,null,null,null,null,null,null,null,null,null,null,null,null,null,null,null,null,null,null,null,null,null,null,null,null,null,null,null,null,null,null,null,null,null,null,{"$f":"data!B199&\" = \"&data!C199","v":"2 = 2) husband / higher income partner (box 1 present)"},null,null,null,null,{"$f":"data!B200&\" = \"&data!C200","v":"3 = 3) wife / lower income partner (box 8 present)"}]
[4,"",null,"Wife age ind",null,null,null,null,null,null,1,1,null,null,null,null,2,null,null,null,null,null,null,null,null,null,null,null,null,null,null,null,null,null,null,null,null,null,null,2,null,null,null,null,null,null,null,null,2,null,null,null,null,null,null,1,null,null,null,null,null,null,null,null,null,1,null,null,null,null,null,null,null,null,2,2,2,null,1,1,null,null,null,1,null,null,null,null,null,null,null,null,null,null,null,null,null,null,null,null,null,null,null,null,null,null,null,null,null,null,null,null,null,null,null,null,null,null,null,null,null,null,2,null,null,null,null,null,1,null,null,null,null,null,null,null,null,null,null,null,null,null,null,null,null,null,null,null,null,null,null,null,null,null,null,null,null,1]
[5,"",null,{"$f":"data!B198&\" = \"&\"Before 6/4/\"&MCA_year","v":"1 = Before 6/4/1935"},null,null,{"$f":"data!B196&\" = \"&\"After 5/4/\"&MCA_year&\" or not present\"","v":"2 = After 5/4/1935 or not present"},null,null,null,null,null,null,null,null,null,null,null,null,null,null,null,null,null,null,null,null,null,null,null,null,null,null,null,null,null,null,null,null,null,null,null,null,null,null,null,{"$f":"data!B196&\" = \"&\"After 5/4/\"&MCA_year&\" or not present\"","v":"2 = After 5/4/1935 or not present"}]
[6,"",null,"alloc to wife",null,null,null,null,null,null,1,1,null,null,null,null,3,null,null,null,null,null,null,null,null,null,null,null,null,null,null,null,null,null,null,null,null,null,null,3,null,null,null,null,null,null,null,null,2,null,null,null,null,null,null,1,null,null,null,null,null,null,null,null,null,1,null,null,null,null,null,null,null,null,1,1,1,null,1,1,null,null,null,1,null,null,null,null,null,null,null,null,null,null,null,null,null,null,null,null,null,null,null,null,null,null,null,null,null,null,null,null,null,null,null,null,null,null,null,null,null,null,1,null,null,null,null,null,1,null,null,null,null,null,null,null,null,null,null,null,null,null,null,null,null,null,null,null,null,null,null,null,null,null,null,null,null,1]
[7,"",null,"1 = None to spouse/partner",null,null,"2 = 50% to spouse/partner (3 or 6)",null,null,"3 = All to spouse/partner (4 or 7)",null,null,null,null,null,null,null,null,null,null,null,null,null,null,null,null,null,null,null,null,null,null,null,null,null,null,null,null,null,null,null,null,null,null,null,null,"2 = 50% to spouse/partner (3 or 6)",null,null,"3 = All to spouse/partner (4 or 7)"]
[8,"",null,"months married",null,null,null,null,null,null,10,2,null,null,null,null,5,null,null,null,null,null,null,null,null,null,null,null,null,null,null,null,null,null,null,null,null,null,null,1,null,null,null,null,null,null,null,null,1,null,null,null,null,null,null,2,null,null,null,null,null,null,null,null,null,2,null,null,null,null,null,null,null,null,1,1,1,null,2,2,null,null,null,2,null,null,null,null,null,null,null,null,null,null,null,null,null,null,null,null,null,null,null,null,null,null,null,null,null,null,null,null,null,null,null,null,null,null,null,null,null,null,1,null,null,null,null,null,2,null,null,null,null,null,null,null,null,null,null,null,null,null,null,null,null,null,null,null,null,null,null,null,null,null,null,null,null,2]
[null,null,null,{"$f":"\"1 = \"&'allowances (c14c15)'!C105","v":"1 = Before 6 May 2025 (or no date entered)"},null,null,null,{"$f":"\"Whole months since 6/4/\"&Tax_year_start&\" + 1\"","v":"Whole months since 6/4/2025 + 1"},null,null,null,null,null,null,null,null,null,null,null,null,null,null,null,null,null,null,null,null,null,null,null,null,null,null,null,null,null,null,null,null,null,null,null,null,null,null,null,{"$f":"\"Whole months since 6/4/\"&Tax_year_start&\" + 1\"","v":"Whole months since 6/4/2025 + 1"}]
[null,null,"Married Couple’s Allowance"]
["row",{"$f":"\"selected \"&MCA_IND-1","v":"selected 0"},"MCA",null,1,2,3,4,5,6,7,8,9,10,11,12,13,14,15,16,17,18,19,20,21,22,23,24,25,26,27,28,29,30,31,32,33,34,35,36,37,38,39,40,41,42,43,44,45,46,47,48,49,50,51,52,53,54,55,56,57,58,59,60,61,62,63,64,65,66,67,68,69,70,71,72,73,74,75,76,77,78,79,80,81,82,83,84,85,86,87,88,89,90,91,92,93,94,95,96,97,98,99,100,101,102,103,104,105,106,107,108,109,110,111,112,113,114,115,116,117,118,119,120,121,122,123,124,125,126,127,128,129,130,131,132,133,134,135,136,137,138,139,140,141,142,143,144,145,146,147,148,149,150,151,152,153,154,155,156,157,158,159,160,161,162,163,164,165,166,167,168,169,170,171,172,173,174,175,176,177,178,179,180,181,182,183,184,185,186,187,188,189,190,191,192,193,194,195,196,197,198,199,200,201,202,203,204,205,206,207,208,209,210,211,212,213,214,215,216,217,218,219,220,221,222,223,224,225,226,227,228,229,230,231,232,233,234,235,236,237,238,239,240,241,242,243,244,245,246,247,248,249,250,251,252,253,254,255,256,257,258,259,260,261,262,263,264,265,266,267,268,269,270,271,272,273]
[2,{"$f":"IF(MCA_IND>1,IF(HLOOKUP(MCA_IND-1,MCA_RANGE,A75)=\"\",\"\",HLOOKUP(MCA_IND-1,MCA_RANGE,A75)),\"\")","v":""},"MCA1","Your spouse’s or civil partner’s full name",null,null,null,null,null,null,"Brenda","Jean",null,null,null,null,null,null,null,null,null,null,null,null,null,null,null,null,null,null,null,null,null,null,null,null,null,null,null,"Joan",null,null,null,null,null,null,null,null,null,null,null,null,null,null,null,"Jean",null,null,null,null,null,null,null,null,null,"Jean",null,null,null,null,null,null,null,null,"Julie","Julie","Julie",null,"Jean",null,null,null,null,"Jean",null,null,null,null,null,null,null,null,null,null,null,null,null,null,null,null,null,null,null,null,null,null,null,null,null,null,null,null,null,null,null,null,null,null,null,null,null,null,"Julie",null,null,null,null,null,"Jean",null,null,null,null,null,null,null,null,null,null,null,null,null,null,null,null,null,null,null,null,null,null,null,null,null,null,null,null,"Jean",null,null,null,null,null,null,null,null,null,null,null,null,null,null,null,null,null,null,null,null,null,null,null,null,null,null,null,null,null,null,null,null,null,null,null,null,null,null,null,null,null,null,null,null,null,null,null,null,null,null,null,null,null,null,null,null,null,null,null,null,null,null,null,null,null,null,null,null,null,null,null,null,null,null,null,null,null,null,null,null,null,null,null,null,null,null,null,null,null,null,null,null,null,null,null,null,null,null,null,null,null,null,null,null,null,null,null,null,null,null,null,null,null,null,null,null,null,null,null,null,"If MAT1 present MCA1 must be absent "]
[3,{"$f":"IF(MCA_IND>1,IF(HLOOKUP(MCA_IND-1,MCA_RANGE,A76)=\"\",\"\",HLOOKUP(MCA_IND-1,MCA_RANGE,A76)),\"\")","v":""},"MCA2","Their date of birth if older than you",null,null,null,null,null,null,"01/02/1932",{"$f":"\"10/09/\"&MCA_year-1","v":"10/09/1934"},null,null,null,null,null,null,null,null,null,null,null,null,null,null,null,null,null,null,null,null,null,null,null,null,null,null,null,"03/02/1927",null,null,null,null,null,null,null,null,null,null,null,null,null,null,null,{"$f":"\"10/09/\"&MCA_year-1","v":"10/09/1934"},null,null,null,null,null,null,null,null,null,{"$f":"\"10/09/\"&MCA_year-1","v":"10/09/1934"},null,null,null,null,null,null,null,null,null,null,null,null,{"$f":"\"10/09/\"&MCA_year-1","v":"10/09/1934"},null,null,null,null,{"$f":"\"10/09/\"&MCA_year-1","v":"10/09/1934"},null,null,null,null,null,null,null,null,null,null,null,null,null,null,null,null,null,null,null,null,null,null,null,null,null,null,null,null,null,null,null,null,null,null,null,null,null,null,null,null,null,null,null,null,{"$f":"\"10/09/\"&MCA_year-1","v":"10/09/1934"},null,null,null,null,null,null,null,null,null,null,null,null,null,null,null,null,null,null,null,null,null,null,null,null,null,null,null,null,{"$f":"\"10/09/\"&MCA_year-1","v":"10/09/1934"},null,null,null,null,null,null,null,null,null,null,null,null,null,null,null,null,null,null,null,null,null,null,null,null,null,null,null,null,null,null,null,null,null,null,null,null,null,null,null,null,null,null,null,null,null,null,null,null,null,null,null,null,null,null,null,null,null,null,null,null,null,null,null,null,null,null,null,null,null,null,null,null,null,null,null,null,null,null,null,null,null,null,null,null,null,null,null,null,null,null,null,null,null,null,null,null,null,null,null,null,null,null,null,null,null,null,null,null,null,null,null,null,null,null,null,null,null,null,null,null,"If present, must be before 06/04/1935"]
[4,"","MCA3","If you have already agreed that half the minimum allowance is to go to your spouse or civil partner, put ‘X’ in the box",null,null,null,null,null,null,"N","N",null,null,null,null,null,null,null,null,null,null,null,null,null,null,null,null,null,null,null,null,null,null,null,null,null,null,null,"N",null,null,null,null,null,null,null,null,null,null,null,null,null,null,null,"N",null,null,null,null,null,null,null,null,null,"N",null,null,null,null,null,null,null,null,"N","N","N",null,"N",null,null,null,null,"N",null,null,null,null,null,null,null,null,null,null,null,null,null,null,null,null,null,null,null,null,null,null,null,null,null,null,null,null,null,null,null,null,null,null,null,null,null,null,"N",null,null,null,null,null,"N",null,null,null,null,null,null,null,null,null,null,null,null,null,null,null,null,null,null,null,null,null,null,null,null,null,null,null,null,"N",null,null,null,null,null,null,null,null,null,null,null,null,null,null,null,null,null,null,null,null,null,null,null,null,null,null,null,null,null,null,null,null,null,null,null,null,null,null,null,null,null,null,null,null,null,null,null,null,null,null,null,null,null,null,null,null,null,null,null,null,null,null,null,null,null,null,null,null,null,null,null,null,null,null,null,null,null,null,null,null,null,null,null,null,null,null,null,null,null,null,null,null,null,null,null,null,null,null,null,null,null,null,null,null,null,null,null,null,null,null,null,null,null,null,null,null,null,null,null,null,"If 'Y' MCA1 must be present"]
[5,"","MCA4","If you have already agreed that all of the minimum allowance is to go to your spouse or civil partner, put ‘X’ in the box",null,null,null,null,null,null,"N","N",null,null,null,null,null,null,null,null,null,null,null,null,null,null,null,null,null,null,null,null,null,null,null,null,null,null,null,"Y",null,null,null,null,null,null,null,null,null,null,null,null,null,null,null,"N",null,null,null,null,null,null,null,null,null,"N",null,null,null,null,null,null,null,null,"N","N","N",null,"N",null,null,null,null,"N",null,null,null,null,null,null,null,null,null,null,null,null,null,null,null,null,null,null,null,null,null,null,null,null,null,null,null,null,null,null,null,null,null,null,null,null,null,null,"N",null,null,null,null,null,"N",null,null,null,null,null,null,null,null,null,null,null,null,null,null,null,null,null,null,null,null,null,null,null,null,null,null,null,null,"N",null,null,null,null,null,null,null,null,null,null,null,null,null,null,null,null,null,null,null,null,null,null,null,null,null,null,null,null,null,null,null,null,null,null,null,null,null,null,null,null,null,null,null,null,null,null,null,null,null,null,null,null,null,null,null,null,null,null,null,null,null,null,null,null,null,null,null,null,null,null,null,null,null,null,null,null,null,null,null,null,null,null,null,null,null,null,null,null,null,null,null,null,null,null,null,null,null,null,null,null,null,null,null,null,null,null,null,null,null,null,null,null,null,null,null,null,null,null,null,null,"a) If 'Y' MCA3 must be 'N'.\nb) If 'Y' MCA1 must be present"]
[6,"","MCA5",{"$f":"\"If, in the year to 5 April \"&Tax_year_end&\", you lived with any previous spouse or civil partner, enter their date of birth\"","v":"If, in the year to 5 April 2026, you lived with any previous spouse or civil partner, enter their date of birth"}]
[7,"","MCA6","If you have already agreed that half of the minimum allowance is to be given to you, put ‘X’ in the box",null,null,null,null,null,null,"N","N",null,null,null,null,"N",null,null,null,null,null,null,null,null,null,null,null,null,null,null,null,null,null,null,null,null,null,null,"N",null,null,null,null,null,null,null,null,"Y",null,null,null,null,null,null,"N",null,null,null,null,null,null,null,null,null,"N",null,null,null,null,null,null,null,null,"N","N","N",null,"N",null,null,null,null,"N",null,null,null,null,null,null,null,null,null,null,null,null,null,null,null,null,null,null,null,null,null,null,null,null,null,null,null,null,null,null,null,null,null,null,null,null,null,null,"N",null,null,null,null,null,"N",null,null,null,null,null,null,null,null,null,null,null,null,null,null,null,null,null,null,null,null,null,null,null,null,null,null,null,null,"N",null,null,null,null,null,null,null,null,null,null,null,null,null,null,null,null,null,null,null,null,null,null,null,null,null,null,null,null,null,null,null,null,null,null,null,null,null,null,null,null,null,null,null,null,null,null,null,null,null,null,null,null,null,null,null,null,null,null,null,null,null,null,null,null,null,null,null,null,null,null,null,null,null,null,null,null,null,null,null,null,null,null,null,null,null,null,null,null,null,null,null,null,null,null,null,null,null,null,null,null,null,null,null,null,null,null,null,null,null,null,null,null,null,null,null,null,null,null,null,null,"If MCA1 present MCA6 must be 'N'"]
[8,"","MCA7","If you have already agreed that all of the minimum allowance is to be given to you, put ‘X’ in the box",null,null,null,null,null,null,"N","N",null,null,null,null,"Y",null,null,null,null,null,null,null,null,null,null,null,null,null,null,null,null,null,null,null,null,null,null,"N",null,null,null,null,null,null,null,null,"N",null,null,null,null,null,null,"N",null,null,null,null,null,null,null,null,null,"N",null,null,null,null,null,null,null,null,"N","N","N",null,"N",null,null,null,null,"N",null,null,null,null,null,null,null,null,null,null,null,null,null,null,null,null,null,null,null,null,null,null,null,null,null,null,null,null,null,null,null,null,null,null,null,null,null,null,"N",null,null,null,null,null,"N",null,null,null,null,null,null,null,null,null,null,null,null,null,null,null,null,null,null,null,null,null,null,null,null,null,null,null,null,"N",null,null,null,null,null,null,null,null,null,null,null,null,null,null,null,null,null,null,null,null,null,null,null,null,null,null,null,null,null,null,null,null,null,null,null,null,null,null,null,null,null,null,null,null,null,null,null,null,null,null,null,null,null,null,null,null,null,null,null,null,null,null,null,null,null,null,null,null,null,null,null,null,null,null,null,null,null,null,null,null,null,null,null,null,null,null,null,null,null,null,null,null,null,null,null,null,null,null,null,null,null,null,null,null,null,null,null,null,null,null,null,null,null,null,null,null,null,null,null,null,"a) If 'Y' MCA3 must be 'N'.\nb) If MCA1 present MCA7 must be 'N'"]
[9,"","MCA8","Your spouse’s or civil partner’s full name",null,null,null,null,null,null,null,null,null,null,null,null,"Fred",null,null,null,null,null,null,null,null,null,null,null,null,null,null,null,null,null,null,null,null,null,null,null,null,null,null,null,null,null,null,null,"Fred",null,null,null,null,null,null,null,null,null,null,null,null,null,null,null,null,null,null,null,null,null,null,null,null,null,null,null,null,null,null,null,null,null,null,null,null,null,null,null,null,null,null,null,null,null,null,null,null,null,null,null,null,null,null,null,null,null,null,null,null,null,null,null,null,null,null,null,null,null,null,null,null,null,null,null,null,null,null,null,null,null,null,null,null,null,null,null,null,null,null,null,null,null,null,null,null,null,null,null,null,null,null,null,null,null,null,null,null,null,null,null,null,null,null,null,null,null,null,null,null,null,null,null,null,null,null,null,null,null,null,null,null,null,null,null,null,null,null,null,null,null,null,null,null,null,null,null,null,null,null,null,null,null,null,null,null,null,null,null,null,null,null,null,null,null,null,null,null,null,null,null,null,null,null,null,null,null,null,null,null,null,null,null,null,null,null,null,null,null,null,null,null,null,null,null,null,null,null,null,null,null,null,null,null,null,null,null,null,null,null,null,null,null,null,null,null,null,null,null,null,null,null,null,null,null,null,null,null,null,"a) If MCA6 or MCA7 equals Y, MCA8 must be present.\nb) If MCA8 is present, one of MCA6 or MCA7 must be Y\nc) If MAT1 present MCA8 must be absent                        "]
[10,"","MCA9",{"$f":"\"If you were married or formed a civil partnership after 5 April \"&Tax_year_start&\", enter the date of marriage or civil partnership DD MM YYYY\"","v":"If you were married or formed a civil partnership after 5 April 2025, enter the date of marriage or civil partnership DD MM YYYY"},null,null,null,null,null,null,{"$f":"\"22/01/\"&Tax_year_end","v":"22/01/2026"},{"$f":"\"05/06/\"&Tax_year_start","v":"05/06/2025"},null,null,null,null,{"$f":"\"04/09/\"&Tax_year_start","v":"04/09/2025"},null,null,null,null,null,null,null,null,null,null,null,null,null,null,null,null,null,null,null,null,null,null,null,null,null,null,null,null,null,null,null,null,null,null,null,null,null,null,{"$f":"\"05/06/\"&Tax_year_start","v":"05/06/2025"},null,null,null,null,null,null,null,null,null,{"$f":"\"05/06/\"&Tax_year_start","v":"05/06/2025"},null,null,null,null,null,null,null,null,null,null,null,null,{"$f":"\"05/06/\"&Tax_year_start","v":"05/06/2025"},null,null,null,null,{"$f":"\"05/06/\"&Tax_year_start","v":"05/06/2025"},null,null,null,null,null,null,null,null,null,null,null,null,null,null,null,null,null,null,null,null,null,null,null,null,null,null,null,null,null,null,null,null,null,null,null,null,null,null,null,null,null,null,null,null,{"$f":"\"05/06/\"&Tax_year_start","v":"05/06/2025"},null,null,null,null,null,null,null,null,null,null,null,null,null,null,null,null,null,null,null,null,null,null,null,null,null,null,null,null,{"$f":"\"05/06/\"&Tax_year_start","v":"05/06/2025"},null,null,null,null,null,null,null,null,null,null,null,null,null,null,null,null,null,null,null,null,null,null,null,null,null,null,null,null,null,null,null,null,null,null,null,null,null,null,null,null,null,null,null,null,null,null,null,null,null,null,null,null,null,null,null,null,null,null,null,null,null,null,null,null,null,null,null,null,null,null,null,null,null,null,null,null,null,null,null,null,null,null,null,null,null,null,null,null,null,null,null,null,null,null,null,null,null,null,null,null,null,null,null,null,null,null,null,null,null,null,null,null,null,null,null,null,null,null,null,null,"a) Must be a date in the return year.\nb) If present either MCA1 or MCA8 must be present."]
[11,"","MCA10","If you want to have your spouse’s or civil partner’s surplus allowance, put ‘X’ in the box",null,null,null,null,null,null,"N","N",null,null,null,null,"N",null,null,null,null,null,null,null,null,null,null,null,null,null,null,null,null,null,null,null,null,null,null,"N",null,null,null,null,null,null,null,null,"N",null,null,null,null,null,null,"N",null,null,null,null,null,null,null,null,null,"N",null,null,null,null,null,null,null,null,"N","N","N",null,"N",null,null,null,null,"N",null,null,null,null,null,null,null,null,null,null,null,null,null,null,null,null,null,null,null,null,null,null,null,null,null,null,null,null,null,null,null,null,null,null,null,null,null,null,"N",null,null,null,null,null,"N",null,null,null,null,null,null,null,null,null,null,null,null,null,null,null,null,null,null,null,null,null,null,null,null,null,null,null,null,"N"]
[12,"","MCA11","If you want your spouse or civil partner to have your surplus allowance, put ‘X’ in the box",null,null,null,null,null,null,"N","N",null,null,null,null,"N",null,null,null,null,null,null,null,null,null,null,null,null,null,null,null,null,null,null,null,null,null,null,"N",null,null,null,null,null,null,null,null,"N",null,null,null,null,null,null,"N",null,null,null,null,null,null,null,null,null,"N",null,null,null,null,null,null,null,null,"N","N","N",null,"N",null,null,null,null,"N",null,null,null,null,null,null,null,null,null,null,null,null,null,null,null,null,null,null,null,null,null,null,null,null,null,null,null,null,null,null,null,null,null,null,null,null,null,null,"N",null,null,null,null,null,"N",null,null,null,null,null,null,null,null,null,null,null,null,null,null,null,null,null,null,null,null,null,null,null,null,null,null,null,null,"N",null,null,null,null,null,null,null,null,null,null,null,null,null,null,null,null,null,null,null,null,null,null,null,null,null,null,null,null,null,null,null,null,null,null,null,null,null,null,null,null,null,null,null,null,null,null,null,null,null,null,null,null,null,null,null,null,null,null,null,null,null,null,null,null,null,null,null,null,null,null,null,null,null,null,null,null,null,null,null,null,null,null,null,null,null,null,null,null,null,null,null,null,null,null,null,null,null,null,null,null,null,null,null,null,null,null,null,null,null,null,null,null,null,null,null,null,null,null,null,null,"Either Boxes MCA1 to MCA5 and, if appropriate MCA9, MCA10 or MCA11 should be completed \nor boxes MCA6 to MCA8 and, if appropriate MCA9, MCA10 or MCA11 should be completed"]
[null,null,"Other information"]
["row","selected","AIL",null,1,2,3,4,5,6,7,8,9,10,11,12,13,14,15,16,17,18,19,20,21,22,23,24,25,26,27,28,29,30,31,32,33,34,35,36,37,38,39,40,41,42,43,44,45,46,47,48,49,50,51,52,53,54,55,56,57,58,59,60,61,62,63,64,65,66,67,68,69,70,71,72,73,74,75,76,77,78,79,80,81,82,83,84,85,86,87,88,89,90,91,92,93,94,95,96,97,98,99,100,101,102,103,104,105,106,107,108,109,110,111,112,113,114,115,116,117,118,119,120,121,122,123,124,125,126,127,128,129,130,131,132,133,134,135,136,137,138,139,140,141,142,143,144,145,146,147,148,149,150,151,152,153,154,155,156,157,158,159,160,161,162,163,164,165,166,167,168,169,170,171,172,173,174,175,176,177,178,179,180,181,182,183,184,185,186,187,188,189,190,191,192,193,194,195,196,197,198,199,200,201,202,203,204,205,206,207,208,209,210,211,212,213,214,215,216,217,218,219,220,221,222,223,224,225,226,227,228,229,230,231,232,233,234,235,236,237,238,239,240,241,242,243,244,245,246,247,248,249,250,251,252,253,254,255,256,257,258,259,260,261,262,263,264,265,266,267,268,269,270,271,272,273]
[2,{"$f":"IF(AIL_IND>1,IF(HLOOKUP(AIL_IND-1,AIL_RANGE,A88)=\"\",\"\",HLOOKUP(AIL_IND-1,AIL_RANGE,A88)),\"\")","v":""},"AIL1",{"$f":"\"Earlier years’ losses – which can be set against certain other income in \"&tax_year","v":"Earlier years’ losses – which can be set against certain other income in 2025-26"}]
[3,"","AIL2","Total unused losses carried forward"]
[4,"","AIL3",{"$f":"\"Relief now for \"&next_year&\" trade losses or certain capital losses\"","v":"Relief now for 2026-27 trade losses or certain capital losses"}]
[5,"","AIL4","Enter the amount of relief shown in box 3 which is not subject to the limit on Income Tax reliefs",null,null,null,null,null,null,null,null,null,null,null,null,null,null,null,null,null,null,null,null,null,null,null,null,null,null,null,null,null,null,null,null,null,null,null,null,null,null,null,null,null,null,null,null,null,null,null,null,null,null,null,null,null,null,null,null,null,null,null,null,null,null,null,null,null,null,null,null,null,null,null,null,null,null,null,null,null,null,null,null,null,null,null,null,null,null,null,null,null,null,null,null,null,null,null,null,null,null,null,null,null,null,null,null,null,null,null,null,null,null,null,null,null,null,null,null,null,null,null,null,null,null,null,null,null,null,null,null,null,null,null,null,null,null,null,null,null,null,null,null,null,null,null,null,null,null,null,null,null,null,null,null,null,null,null,null,null,null,null,null,null,null,null,null,null,null,null,null,null,null,null,null,null,null,null,null,null,null,null,null,null,null,null,null,null,null,null,null,null,null,null,null,null,null,null,null,null,null,null,null,null,null,null,null,null,null,null,null,null,null,null,null,null,null,null,null,null,null,null,null,null,null,null,null,null,null,null,null,null,null,null,null,null,null,null,null,null,null,null,null,null,null,null,null,null,null,null,null,null,null,null,null,null,null,null,null,null,null,null,null,null,null,null,null,null,null,null,null,null,null,null,null,null,null,"If present AIL4 cannot exceed AIL3"]
[6,"","AIL5",{"$f":"\"Tax year for which you are claiming relief in box 3, for example, \"&last_year&\" YYYY YY\"","v":"Tax year for which you are claiming relief in box 3, for example, 2024-25 YYYY YY"},null,null,null,null,null,null,null,null,null,null,null,null,null,null,null,null,null,null,null,null,null,null,null,null,null,null,null,null,null,null,null,null,null,null,null,null,null,null,null,null,null,null,null,null,null,null,null,null,null,null,null,null,null,null,null,null,null,null,null,null,null,null,null,null,null,null,null,null,null,null,null,null,null,null,null,null,null,null,null,null,null,null,null,null,null,null,null,null,null,null,null,null,null,null,null,null,null,null,null,null,null,null,null,null,null,null,null,null,null,null,null,null,null,null,null,null,null,null,null,null,null,null,null,null,null,null,null,null,null,null,null,null,null,null,null,null,null,null,null,null,null,null,null,null,null,null,null,null,null,null,null,null,null,null,null,null,null,null,null,null,null,null,null,null,null,null,null,null,null,null,null,null,null,null,null,null,null,null,null,null,null,null,null,null,null,null,null,null,null,null,null,null,null,null,null,null,null,null,null,null,null,null,null,null,null,null,null,null,null,null,null,null,null,null,null,null,null,null,null,null,null,null,null,null,null,null,null,null,null,null,null,null,null,null,null,null,null,null,null,null,null,null,null,null,null,null,null,null,null,null,null,null,null,null,null,null,null,null,null,null,null,null,null,null,null,null,null,null,null,null,null,null,null,null,"Must be a valid pair of consecutive years in the format YYYY YY"]
[7,"","AIL6","Amount of payroll giving",null,null,null,null,null,null,null,null,null,null,null,null,null,null,null,null,null,null,null,null,null,null,null,null,null,null,null,null,null,null,null,null,null,null,null,null,null,null,null,null,null,null,null,null,null,null,null,null,null,null,null,null,null,null,null,null,null,null,null,null,null,null,null,null,null,null,null,null,null,null,null,null,null,null,null,null,null,null,null,null,null,null,null,null,null,null,null,null,null,null,null,null,null,null,null,null,null,null,null,null,null,null,null,null,null,null,null,null,null,null,null,null,null,null,null,null,null,null,null,null,null,null,null,null,null,null,null,null,null,null,null,null,null,null,null,null,null,null,null,null,null,null,null,null,null,null,null,null,null,null,null,null,null,null,null,null,null,null,null,null,null,null,null,null,null,null,null,null,null,null,null,null,null,null,null,null,null,null,null,null,null,null,null,null,null,null,null,null,null,null,null,null,null,null,null,null,null,null,null,null,null,12000]
[8,"","AIL10","Amount saved towards your pension, in the period covered by this tax return, in excess of the Annual Allowance",null,null,null,null,null,null,null,null,null,null,null,null,null,null,null,null,null,null,null,null,null,null,null,null,null,null,null,null,null,null,null,null,null,null,null,null,null,null,null,null,null,null,null,null,null,null,null,null,null,null,null,null,null,null,null,null,null,null,null,null,null,null,null,null,null,null,null,null,null,null,null,null,null,null,null,null,null,null,null,null,null,null,null,null,null,null,null,null,null,null,1415,null,null,null,null,null,null,null,null,null,null,null,null,null,null,null,null,null,null,null,null,null,null,null,19857,null,null,null,19857,null,null,null,null,null,null,null,null,null,null,null,null,null,null,null,null,null,null,23000,null,null,null,null,null,null,null,null,null,null,null,null,null,null,null,null,null,null,null,null,null,null,null,null,null,null,null,null,null,null,null,null,null,null,null,null,null,null,null,null,null,null,null,null,null,null,null,null,null,166200,null,null,null,null,null,null,null,null,null,null,null,null,null,null,null,15000,15000,null,null,null,null,91415,91415,null,null,null,null,null,null,null,null,null,null,null,null,null,null,null,null,null,null,null,null,null,null,null,null,null,null,null,null,null,null,null,null,null,null,null,null,null,null,null,null,null,null,null,null,null,null,null,null,null,null,null,null,null,null,null,null,null,null,null,null,null,1880.17]
[9,"","AIL11","Annual Allowance tax paid or payable by your pension scheme",null,null,null,null,null,null,null,null,null,null,null,null,null,null,null,null,null,null,null,null,null,null,null,null,null,null,null,null,null,null,null,null,null,null,null,null,null,null,null,null,null,null,null,null,null,null,null,null,null,null,null,null,null,null,null,null,null,null,null,null,null,null,null,null,null,null,null,null,null,null,null,null,null,null,null,null,null,null,null,null,null,null,null,null,null,null,null,null,null,null,null,null,null,null,null,null,null,null,null,null,null,null,null,null,null,null,null,null,null,null,null,null,null,null,null,null,null,null,null,null,null,null,null,null,null,null,null,null,null,null,null,null,null,null,null,null,null,0,null,null,null,null,null,null,null,null,null,null,null,null,null,null,null,null,null,null,null,null,null,null,null,null,null,null,null,null,null,null,null,null,null,null,null,null,null,null,null,null,null,null,null,null,null,null,null,null,null,null,null,null,null,null,null,null,null,null,null,null,null,null,null,null,null,3000,3000,null,null,null,null,null,null,null,null,null,null,null,null,null,null,null,null,null,null,null,null,null,null,null,null,null,null,null,null,null,null,null,null,null,null,null,null,null,null,null,null,null,null,null,null,null,null,null,null,null,null,null,null,null,null,null,null,null,null,null,null,null,null,null,null,null,null,null,null,null,"If present, must be less than AIL10"]
[10,{"$f":"IF(AIL_IND>1,IF(HLOOKUP(AIL_IND-1,AIL_RANGE,A96)=\"\",\"\",HLOOKUP(AIL_IND-1,AIL_RANGE,A96)),\"\")","v":""},"AIL11.1","Value of pension benefits transferred subject to the overseas transfer charge",null,null,null,null,null,null,null,null,null,null,null,null,null,null,null,null,null,null,null,null,null,null,null,null,null,null,null,null,null,null,null,null,null,null,null,null,null,null,null,null,null,null,null,null,null,null,null,null,null,null,null,null,null,null,null,null,null,null,null,null,null,null,null,null,null,null,null,null,null,null,null,null,null,null,null,null,null,null,null,null,null,null,null,null,null,null,null,null,null,null,null,null,null,null,null,null,null,null,null,null,null,null,null,null,null,null,null,null,null,null,null,null,null,null,null,null,null,null,null,null,null,null,null,null,null,null,null,null,null,null,null,null,null,null,null,null,null,null,null,null,36000,null,null,null,null,null,null,36000]
[11,"","AIL11.2","Tax paid or payable by your pension scheme",null,null,null,null,null,null,null,null,null,null,null,null,null,null,null,null,null,null,null,null,null,null,null,null,null,null,null,null,null,null,null,null,null,null,null,null,null,null,null,null,null,null,null,null,null,null,null,null,null,null,null,null,null,null,null,null,null,null,null,null,null,null,null,null,null,null,null,null,null,null,null,null,null,null,null,null,null,null,null,null,null,null,null,null,null,null,null,null,null,null,null,null,null,null,null,null,null,null,null,null,null,null,null,null,null,null,null,null,null,null,null,null,null,null,null,null,null,null,null,null,null,null,null,null,null,null,null,null,null,null,null,null,null,null,null,null,null,null,null,null,7200,null,null,null,null,null,null,7200]
[12,"","AIL12","Pension scheme tax reference number",null,null,null,null,null,null,null,null,null,null,null,null,null,null,null,null,null,null,null,null,null,null,null,null,null,null,null,null,null,null,null,null,null,null,null,null,null,null,null,null,null,null,null,null,null,null,null,null,null,null,null,null,null,null,null,null,null,null,null,null,null,null,null,null,null,null,null,null,null,null,null,null,null,null,null,null,null,null,null,null,null,null,null,null,null,null,null,null,null,null,null,null,null,null,null,null,null,null,null,null,null,null,null,null,null,null,null,null,null,null,null,null,null,null,null,null,null,null,null,null,null,null,null,null,null,null,null,null,null,null,null,null,null,null,null,null,null,12345678,null,null,null,null,null,null,null,null,null,null,null,null,null,null,null,null,null,null,null,null,null,null,null,null,null,null,null,null,null,null,null,null,null,null,null,null,null,null,null,null,null,null,null,null,null,null,null,null,null,null,null,null,null,null,null,null,null,null,null,null,null,null,null,null,null,12345678,12345678,null,null,null,null,null,null,null,null,null,null,null,null,null,null,null,null,null,null,null,null,null,null,null,null,null,null,null,null,null,null,null,null,null,null,null,null,null,null,null,null,null,null,null,null,null,null,null,null,null,null,null,null,null,null,null,null,null,null,null,null,null,null,null,null,null,null,null,null,null,"Allows a combination of letters and numbers up to a maximum of 10 characters"]
[13,"","AIL13","Amount of unauthorised payment from a pension scheme, not subject to surcharge",null,null,null,null,null,null,null,null,null,null,null,null,null,null,null,null,null,null,null,null,null,null,null,null,null,null,null,null,null,null,null,null,null,null,null,null,null,null,null,null,null,null,null,null,null,null,null,null,null,null,null,null,null,null,null,null,null,null,null,null,null,null,null,null,null,null,null,null,null,null,null,null,null,null,null,null,null,null,null,null,null,null,null,null,null,null,null,null,null,null,null,null,null,null,null,null,null,null,null,null,null,null,null,null,null,null,null,null,null,null,null,null,null,null,null,null,null,null,null,null,null,null,null,null,null,null,null,null,null,null,null,null,null,null,null,null,null,null,null,null,null,null,null,null,null,null,null,null,null,null,null,null,null,null,null,null,null,null,null,null,null,null,null,null,null,null,null,null,null,null,null,null,null,null,null,null,null,null,null,null,null,null,null,null,null,null,null,243514,null,null,null,null,null,null,null,null,43000]
[14,"","AIL14","Amount of unauthorised payment from a pension scheme, subject to surcharge",null,null,null,null,null,null,null,null,null,null,null,null,null,null,null,null,null,null,null,null,null,null,null,null,null,null,null,null,null,null,null,null,null,null,null,null,null,null,null,null,null,null,null,null,null,null,null,null,null,null,null,null,null,null,null,null,null,null,null,null,null,null,null,null,null,null,null,null,null,null,null,null,null,null,null,null,null,null,null,null,null,null,null,null,null,null,null,null,null,null,null,null,null,null,null,null,null,null,null,null,null,null,null,null,null,null,null,null,null,null,null,null,null,null,null,null,null,null,null,null,null,null,null,null,null,null,null,null,null,null,null,null,null,null,null,null,null,null,null,null,null,null,null,null,null,null,null,null,null,null,null,null,null,null,null,null,null,null,null,null,null,null,null,null,null,null,null,null,null,null,null,null,null,null,null,null,null,null,null,null,null,null,null,null,null,null,null,75000]
[15,"","AIL15","Foreign tax paid on an unauthorised payment (in £ sterling)",null,null,null,null,null,null,null,null,null,null,null,null,null,null,null,null,null,null,null,null,null,null,null,null,null,null,null,null,null,null,null,null,null,null,null,null,null,null,null,null,null,null,null,null,null,null,null,null,null,null,null,null,null,null,null,null,null,null,null,null,null,null,null,null,null,null,null,null,null,null,null,null,null,null,null,null,null,null,null,null,null,null,null,null,null,null,null,null,null,null,null,null,null,null,null,null,null,null,null,null,null,null,null,null,null,null,null,null,null,null,null,null,null,null,null,null,null,null,null,null,null,null,null,null,null,null,null,null,null,null,null,null,null,null,null,null,null,null,null,null,null,null,null,null,null,null,null,null,null,null,null,null,null,null,null,null,null,null,null,null,null,null,null,null,null,null,null,null,null,null,null,null,null,null,null,null,null,null,null,null,null,null,null,null,null,null,null,43519,null,null,null,null,null,null,null,null,14512]
[16,"","AIL16","Taxable short service refund of contributions (overseas pension schemes only)",null,null,null,null,null,null,null,null,null,null,null,null,null,null,null,null,null,null,null,null,null,null,null,null,null,null,null,null,null,null,null,null,null,null,null,null,null,null,null,null,null,null,null,null,null,null,null,null,null,null,null,null,null,null,null,null,null,null,null,null,null,null,null,null,null,null,null,null,null,null,null,null,null,null,null,null,null,null,null,null,null,null,null,null,null,null,null,null,null,null,null,null,null,null,null,null,null,null,null,null,null,null,null,null,null,null,null,null,null,null,null,null,null,null,null,null,null,null,null,null,null,null,null,null,null,null,null,null,null,null,null,null,null,null,null,null,null,null,null,null,null,null,null,null,null,null,null,null,null,null,null,null,null,null,null,null,null,null,null,null,null,null,null,null,null,null,null,null,4950,null,null,null,null,null,null,23505,null,null,null,null,null,null,null,null,null,null,null,null,null,null,null,null,null,null,null,null,null,23505,4950]
[17,"","AIL18","Foreign tax paid (in £ sterling) on boxes 16 and 17",null,null,null,null,null,null,null,null,null,null,null,null,null,null,null,null,null,null,null,null,null,null,null,null,null,null,null,null,null,null,null,null,null,null,null,null,null,null,null,null,null,null,null,null,null,null,null,null,null,null,null,null,null,null,null,null,null,null,null,null,null,null,null,null,null,null,null,null,null,null,null,null,null,null,null,null,null,null,null,null,null,null,null,null,null,null,null,null,null,null,null,null,null,null,null,null,null,null,null,null,null,null,null,null,null,null,null,null,null,null,null,null,null,null,null,null,null,null,null,null,null,null,null,null,null,null,null,null,null,null,null,null,null,null,null,null,null,null,null,null,null,null,null,null,null,null,null,null,null,null,null,null,null,null,null,null,null,null,null,null,null,null,null,null,null,null,null,null,892,null,null,null,null,null,null,7800,null,null,null,null,null,null,null,null,null,null,null,null,null,null,null,null,null,null,null,null,null,7800,892]
[18,{"$f":"IF(AIL_IND>1,IF(HLOOKUP(AIL_IND-1,AIL_RANGE,A104)=\"\",\"\",HLOOKUP(AIL_IND-1,AIL_RANGE,A104)),\"\")","v":""},"AIL19","The scheme reference number or promoter reference number",null,null,null,null,null,null,null,null,null,null,null,null,null,null,null,null,null,null,null,null,null,null,null,null,null,null,null,null,null,null,null,null,null,null,null,null,null,null,null,null,null,null,null,null,null,null,null,null,null,null,null,null,null,null,null,null,null,null,null,null,null,null,null,null,null,null,null,null,null,null,null,null,null,null,null,null,null,null,null,null,null,null,null,null,null,null,null,null,null,null,null,null,null,null,null,null,null,null,null,null,null,null,null,null,null,null,null,null,null,null,null,null,null,null,null,null,null,null,null,null,null,null,null,null,null,null,null,null,null,null,null,null,null,null,null,null,null,null,null,null,null,null,null,null,null,null,null,null,null,null,null,null,null,null,null,null,null,null,null,null,null,null,null,null,null,null,null,null,null,null,null,null,null,null,null,null,null,null,null,null,null,null,null,null,null,null,null,null,null,null,null,null,null,null,null,null,null,null,null,null,null,null,null,null,null,null,null,null,null,null,null,null,null,null,null,null,null,null,null,null,null,null,null,null,null,null,null,null,null,null,null,null,null,null,null,null,null,null,null,null,null,null,null,null,null,null,null,null,null,null,null,null,null,null,null,null,null,null,null,null,null,null,null,null,null,null,null,null,null,null,null,null,null,null,"Maximum 8 digits"]
[19,{"$f":"IF(AIL_IND>1,IF(HLOOKUP(AIL_IND-1,AIL_RANGE,A105)=\"\",\"\",HLOOKUP(AIL_IND-1,AIL_RANGE,A105)),\"\")","v":""},"AIL20",{"$f":"\"The tax year in which the expected advantage arises, for example, \"&last_year&\" YYYY YY\"","v":"The tax year in which the expected advantage arises, for example, 2024-25 YYYY YY"},null,null,null,null,null,null,null,null,null,null,null,null,null,null,null,null,null,null,null,null,null,null,null,null,null,null,null,null,null,null,null,null,null,null,null,null,null,null,null,null,null,null,null,null,null,null,null,null,null,null,null,null,null,null,null,null,null,null,null,null,null,null,null,null,null,null,null,null,null,null,null,null,null,null,null,null,null,null,null,null,null,null,null,null,null,null,null,null,null,null,null,null,null,null,null,null,null,null,null,null,null,null,null,null,null,null,null,null,null,null,null,null,null,null,null,null,null,null,null,null,null,null,null,null,null,null,null,null,null,null,null,null,null,null,null,null,null,null,null,null,null,null,null,null,null,null,null,null,null,null,null,null,null,null,null,null,null,null,null,null,null,null,null,null,null,null,null,null,null,null,null,null,null,null,null,null,null,null,null,null,null,null,null,null,null,null,null,null,null,null,null,null,null,null,null,null,null,null,null,null,null,null,null,null,null,null,null,null,null,null,null,null,null,null,null,null,null,null,null,null,null,null,null,null,null,null,null,null,null,null,null,null,null,null,null,null,null,null,null,null,null,null,null,null,null,null,null,null,null,null,null,null,null,null,null,null,null,null,null,null,null,null,null,null,null,null,null,null,null,null,null,null,null,null,"Must be a valid year in the format YYYY YY"]

{"sheet":"C2","index":11,"n_rows":109,"n_cols":280,"rows_kept":109,"cut":false,"hidden":true,"merged":[]}
[null,null,null,null,1,2,3,4,5,6,7,8,9,10,11,12,13,14,15,16,17,18,19,20,21,22,23,24,25,26,27,28,29,30,31,32,33,34,35,36,37,38,39,40,41,42,43,44,45,46,47,48,49,50,51,52,53,54,55,56,57,58,59,60,61,62,63,64,65,66,67,68,69,70,71,72,73,74,75,76,77,78,79,80,81,82,83,84,85,86,87,88,89,90,91,92,93,94,95,96,97,98,99,100,101,102,103,104,105,106,107,108,109,110,111,112,113,114,115,116,117,118,119,120,121,122,123,124,125,126,127,128,129,130,131,132,133,134,135,136,137,138,139,140,141,142,143,144,145,146,147,148,149,150,151,152,153,154,155,156,157,158,159,160,161,162,163,164,165,166,167,168,169,170,171,172,173,174,175,176,177,178,179,180,181,182,183,184,185,186,187,188,189,190,191,192,193,194,195,196,197,198,199,200,201,202,203,204,205,206,207,208,209,210,211,212,213,214,215,216,217,218,219,220,221,222,223,224,225,226,227,228,229,230,231,232,233,234,235,236,237,238,239,240,241,242,243,244,245,246,247,248,249,250,251,252,253,254,255,256,257,258,259,260,261,262,263,264,265,266,267,268,269,270,271,272,273,null," Validation","Type"]
["row",{"$f":"\"selected \"&EMP_A_IND-1","v":"selected 168"},"EMP-A",null,1,2,3,4,5,6,7,8,9,10,11,12,13,14,15,16,17,18,19,20,21,22,23,24,25,26,27,28,29,30,31,32,33,34,35,36,37,38,39,40,41,42,43,44,45,46,47,48,49,50,51,52,53,54,55,56,57,58,59,60,61,62,63,64,65,66,67,68,69,70,71,72,73,74,75,76,77,78,79,80,81,82,83,84,85,86,87,88,89,90,91,92,93,94,95,96,97,98,99,100,101,102,103,104,105,106,107,108,109,110,111,112,113,114,115,116,117,118,119,120,121,122,123,124,125,126,127,128,129,130,131,132,133,134,135,136,137,138,139,140,141,142,143,144,145,146,147,148,149,150,151,152,153,154,155,156,157,158,159,160,161,162,163,164,165,166,167,168,169,170,171,172,173,174,175,176,177,178,179,180,181,182,183,184,185,186,187,188,189,190,191,192,193,194,195,196,197,198,199,200,201,202,203,204,205,206,207,208,209,210,211,212,213,214,215,216,217,218,219,220,221,222,223,224,225,226,227,228,229,230,231,232,233,234,235,236,237,238,239,240,241,242,243,244,245,246,247,248,249,250,251,252,253,254,255,256,257,258,259,260,261,262,263,264,265,266,267,268,269,270,271,272,273,null," Validation","Type"]
[2,{"$f":"IF(EMP_A_IND>1,IF(HLOOKUP(EMP_A_IND-1,EMP_RANGE_A,A3)=\"\",\"\",HLOOKUP(EMP_A_IND-1,EMP_RANGE_A,A3)),\"\")","v":89201},"EMP1","Pay from this employment – the total from your P45 or P6",null,33254,{"$f":"SSR_band+SBR_band+SIR_band+625","v":31717},{"$f":"BR_band+P_A-350","v":49920},null,null,36851,null,null,null,23678,null,48484,46954,null,null,97504,48452,55530,{"$f":"P_A-1000","v":11570},13874,104239,35254,null,9050,57415,36480,null,149777,128050,29750,33750,38629,{"$f":"BR_band+P_A+6195","v":56465},9050,null,null,1470,115500,81300,18500,48750,40271,null,null,null,10260,null,27515,8000,0,18500,1000,25500,50000,{"$f":"P_A-1450","v":11120},{"$f":"BR_band-5100","v":32600},62883,null,null,27515,null,33254,20701,null,null,8000,null,null,null,null,null,null,null,null,null,null,8050,55750,33254,null,33254,null,null,null,null,null,18500,18500,null,9050,null,null,null,null,27515,null,null,null,null,null,15334,null,8000,18500,45000,null,null,45101,null,27515,101000,null,9151,1020433,541573,null,4920,1260714,541573,8000,30490,null,750,8573,30728,{"$f":"P_A-3510","v":9060},null,null,33254,33254,null,12184.61,55750,101000,8000,8000,100998,70000,24999.96,471407,49600,null,242914,187.4,null,null,null,null,null,149999,18500,2034331,14203.2,242914,50580,null,779713,null,73176,73551.63,38665,9999.9599999999991,null,null,55750,78950,89201,33254,1188666,null,null,null,null,18500,null,48150,37600,37200,12000,13000,2162,null,15000,null,null,2162,null,2162,50000,50272,50018,33254,165978,18500,38099,55750,26499,null,68579,35291,76000,null,101000,55750,299000,null,1450,null,471407,48950,null,1156660,null,null,21491,1614246,null,9050,null,35316,113832,null,87938.39,35861.300000000003,null,null,25594,48018,27800,55575,null,152111,121404,24914,{"$f":"P_A+1000","v":13570},{"$f":"P_A-1000","v":11570},30093,99516,18954.55,117418.73,101810,21358,null,9269,null,null,null,175921,null,1065169,null,72320.850000000006,23881921,19789,33254,null,44022,null,509890,33254,35254,null,868213,null,180325,3978,84353.21,null,{"$f":"P_A","v":12570},{"$f":"P_A+BR_band","v":50270},{"$f":"P_A-4300","v":8270},69901.47,null,null,"SA Monetary value (2dp) >= 0.00"]
[3,{"$f":"IF(EMP_A_IND>1,IF(HLOOKUP(EMP_A_IND-1,EMP_RANGE_A,A4)=\"\",\"\",HLOOKUP(EMP_A_IND-1,EMP_RANGE_A,A4)),\"\")","v":""},"EMP1.1","Payrolled benefits",null,null,null,null,null,null,null,null,null,null,null,null,null,null,null,null,null,null,null,null,null,null,null,null,null,null,null,null,null,null,null,null,null,null,null,null,null,null,null,null,null,null,null,null,null,null,null,null,null,null,null,null,null,null,null,null,null,null,null,null,null,null,null,null,null,null,null,null,null,null,null,null,null,null,null,null,null,null,null,null,null,null,null,null,null,null,null,null,null,null,null,null,null,null,null,null,null,null,null,null,null,null,null,null,null,null,null,null,null,null,null,null,null,null,null,null,null,null,null,null,null,2975]
[4,{"$f":"IF(EMP_A_IND>1,IF(HLOOKUP(EMP_A_IND-1,EMP_RANGE_A,A5)=\"\",\"\",HLOOKUP(EMP_A_IND-1,EMP_RANGE_A,A5)),\"\")","v":14056},"EMP2","UK tax taken off pay in box 1",null,2000,{"$f":"MAX((G3+G18+G19+G20+G21+G22+G23+G24+G25-P_A)*BR_rate,0)+MAX((G3+G18+G19+G20+G21+G22+G23+G24+G25-P_A-HR_band)*BR_rate,0)","v":3829.4},{"$f":"MAX((H3+H18+H19+H20+H21+H22+H23+H24+H25-P_A)*BR_rate,0)+MAX((H3+H18+H19+H20+H21+H22+H23+H24+H25-P_A-HR_band)*BR_rate,0)","v":7470},null,null,{"$f":"MAX((K3+K18+K19+K20+K21+K22+K23+K24+K25-P_A)*BR_rate,0)+MAX((K3+K18+K19+K20+K21+K22+K23+K24+K25-P_A-HR_band)*BR_rate,0)","v":4856.2},null,null,null,{"$f":"MAX((O3+O18+O19+O20+O21+O22+O23+O24+O25-P_A)*BR_rate,0)+MAX((O3+O18+O19+O20+O21+O22+O23+O24+O25-P_A-HR_band)*BR_rate,0)","v":2221.6},null,7196.8,{"$f":"MAX((R3+R18+R19+R20+R21+R22+R23+R24+R25-P_A)*BR_rate,0)+MAX((R3+R18+R19+R20+R21+R22+R23+R24+R25-P_A-HR_band)*BR_rate,0)","v":6876.8},null,null,{"$f":"MAX((U3+U18+U19+U20+U21+U22+U23+U24+U25-P_A)*BR_rate,0)+MAX((U3+U18+U19+U20+U21+U22+U23+U24+U25-P_A-HR_band)*BR_rate,0)","v":16986.8},7680.8,{"$f":"MAX((W3+W18+W19+W20+W21+W22+W23+W24+W25-W26-P_A)*BR_rate,0)+MAX((W3+W18+W19+W20+W21+W22+W23+W24+W25-W26-P_A-HR_band)*BR_rate,0)","v":8592},{"$f":"MAX((X3+X18+X19+X20+X21+X22+X23+X24+X25-X26-P_A)*BR_rate,0)+MAX((X3+X18+X19+X20+X21+X22+X23+X24+X25-X26-P_A-HR_band)*BR_rate,0)","v":0},{"$f":"MAX((Y3+Y18+Y19+Y20+Y21+Y22+Y23+Y24+Y25-Y26-P_A)*BR_rate,0)+MAX((Y3+Y18+Y19+Y20+Y21+Y22+Y23+Y24+Y25-Y26-P_A-HR_band)*BR_rate,0)","v":1092.4000000000001},30043.200000000001,6309.6,null,{"$f":"MAX((AC3+AC18+AC19+AC20+AC21+AC22+AC23+AC24+AC25-P_A)*BR_rate,0)+MAX((AC3+AC18+AC19+AC20+AC21+AC22+AC23+AC24+AC25-P_A-HR_band)*BR_rate,0)","v":0},{"$f":"MAX((AD3+AD18+AD19+AD20+AD21+AD22+AD23+AD24+AD25-P_A)*BR_rate,0)+MAX((AD3+AD18+AD19+AD20+AD21+AD22+AD23+AD24+AD25-P_A-HR_band)*BR_rate,0)","v":8969},452,null,55077.64,46192,{"$f":"MAX((AI3+AI18+AI19+AI20+AI21+AI22+AI23+AI24+AI25-P_A)*BR_rate,0)+MAX((AI3+AI18+AI19+AI20+AI21+AI22+AI23+AI24+AI25-P_A-HR_band)*BR_rate,0)","v":3436},{"$f":"MAX((AJ3+AJ18+AJ19+AJ20+AJ21+AJ22+AJ23+AJ24+AJ25-P_A)*BR_rate,0)+MAX((AJ3+AJ18+AJ19+AJ20+AJ21+AJ22+AJ23+AJ24+AJ25-P_A-HR_band)*BR_rate,0)","v":4776},{"$f":"MAX((AK3+AK18+AK19+AK20+AK21+AK22+AK23+AK24+AK25-P_A)*BR_rate,0)+MAX((AK3+AK18+AK19+AK20+AK21+AK22+AK23+AK24+AK25-P_A-HR_band)*BR_rate,0)","v":5211.8},{"$f":"MAX((AL3+AL18+AL19+AL20+AL21+AL22+AL23+AL24+AL25-P_A)*BR_rate,0)+MAX((AL3+AL18+AL19+AL20+AL21+AL22+AL23+AL24+AL25-P_A-HR_band)*BR_rate,0)","v":11969},null,null,null,{"$f":"MAX((AP3+AP18+AP19+AP20+AP21+AP22+AP23+AP24+AP25-P_A)*BR_rate,0)+MAX((AP3+AP18+AP19+AP20+AP21+AP22+AP23+AP24+AP25-P_A-HR_band)*BR_rate,0)","v":0},{"$f":"MAX((AQ3+AQ18+AQ19+AQ20+AQ21+AQ22+AQ23+AQ24+AQ25-P_A)*BR_rate,0)+MAX((AQ3+AQ18+AQ19+AQ20+AQ21+AQ22+AQ23+AQ24+AQ25-P_A-HR_band)*BR_rate,0)","v":23684},14345.8,{"$f":"MAX((AS3+AS18+AS19+AS20+AS21+AS22+AS23+AS24+AS25-P_A)*BR_rate,0)+MAX((AS3+AS18+AS19+AS20+AS21+AS22+AS23+AS24+AS25-P_A-HR_band)*BR_rate,0)","v":1306},{"$f":"MAX((AT3+AT18+AT19+AT20+AT21+AT22+AT23+AT24+AT25-P_A)*BR_rate,0)+MAX((AT3+AT18+AT19+AT20+AT21+AT22+AT23+AT24+AT25-P_A-HR_band)*BR_rate,0)","v":7236},{"$f":"MAX((AU3+AU18+AU19+AU20+AU21+AU22+AU23+AU24+AU25-P_A)*BR_rate,0)+MAX((AU3+AU18+AU19+AU20+AU21+AU22+AU23+AU24+AU25-P_A-HR_band)*BR_rate,0)","v":8140.2000000000007},null,null,null,0,null,{"$f":"MAX((BA3+BA18+BA19+BA20+BA21+BA22+BA23+BA24+BA25-P_A)*BR_rate,0)+MAX((BA3+BA18+BA19+BA20+BA21+BA22+BA23+BA24+BA25-P_A-HR_band)*BR_rate,0)","v":3584},{"$f":"MAX((BB3+BB18+BB19+BB20+BB21+BB22+BB23+BB24+BB25-P_A)*BR_rate,0)+MAX((BB3+BB18+BB19+BB20+BB21+BB22+BB23+BB24+BB25-P_A-HR_band)*BR_rate,0)","v":0},26400,{"$f":"MAX((BD3+BD18+BD19+BD20+BD21+BD22+BD23+BD24+BD25-P_A)*BR_rate,0)+MAX((BD3+BD18+BD19+BD20+BD21+BD22+BD23+BD24+BD25-P_A-HR_band)*BR_rate,0)","v":1306},400,{"$f":"MAX((BF3+BF18+BF19+BF20+BF21+BF22+BF23+BF24+BF25-P_A)*BR_rate,0)+MAX((BF3+BF18+BF19+BF20+BF21+BF22+BF23+BF24+BF25-P_A-HR_band)*BR_rate,0)","v":3181},11619,{"$f":"MAX((BH3+BH18+BH19+BH20+BH21+BH22+BH23+BH24+BH25-P_A)*BR_rate,0)+MAX((BH3+BH18+BH19+BH20+BH21+BH22+BH23+BH24+BH25-P_A-HR_band)*BR_rate,0)","v":0},{"$f":"MAX((BI3+BI18+BI19+BI20+BI21+BI22+BI23+BI24+BI25-P_A)*BR_rate,0)+MAX((BI3+BI18+BI19+BI20+BI21+BI22+BI23+BI24+BI25-P_A-HR_band)*BR_rate,0)","v":4006},14439.17,null,null,{"$f":"MAX((BM3+BM18+BM19+BM20+BM21+BM22+BM23+BM24+BM25-P_A)*BR_rate,0)+MAX((BM3+BM18+BM19+BM20+BM21+BM22+BM23+BM24+BM25-P_A-HR_band)*BR_rate,0)","v":3584},null,{"$f":"MAX((BO3+BO18+BO19+BO20+BO21+BO22+BO23+BO24+BO25-P_A)*BR_rate,0)+MAX((BO3+BO18+BO19+BO20+BO21+BO22+BO23+BO24+BO25-P_A-HR_band)*BR_rate,0)","v":4136.8},3593,null,null,{"$f":"MAX((BS3+BS18+BS19+BS20+BS21+BS22+BS23+BS24+BS25-P_A)*BR_rate,0)+MAX((BS3+BS18+BS19+BS20+BS21+BS22+BS23+BS24+BS25-P_A-HR_band)*BR_rate,0)","v":0},null,null,null,null,null,null,null,null,null,null,{"$f":"MAX((CD3+CD18+CD19+CD20+CD21+CD22+CD23+CD24+CD25-P_A)*BR_rate,0)+MAX((CD3+CD18+CD19+CD20+CD21+CD22+CD23+CD24+CD25-P_A-HR_band)*BR_rate,0)","v":0},{"$f":"MAX((CE3+CE18+CE19+CE20+CE21+CE22+CE23+CE24+CE25-P_A)*BR_rate,0)+MAX((CE3+CE18+CE19+CE20+CE21+CE22+CE23+CE24+CE25-P_A-HR_band)*BR_rate,0)","v":11826},{"$f":"MAX((CF3+CF18+CF19+CF20+CF21+CF22+CF23+CF24+CF25-P_A)*BR_rate,0)+MAX((CF3+CF18+CF19+CF20+CF21+CF22+CF23+CF24+CF25-P_A-HR_band)*BR_rate,0)","v":4136.8},null,{"$f":"MAX((CH3+CH18+CH19+CH20+CH21+CH22+CH23+CH24+CH25-P_A)*BR_rate,0)+MAX((CH3+CH18+CH19+CH20+CH21+CH22+CH23+CH24+CH25-P_A-HR_band)*BR_rate,0)","v":4136.8},null,null,null,null,null,{"$f":"MAX((CN3+CN18+CN19+CN20+CN21+CN22+CN23+CN24+CN25-P_A)*BR_rate,0)+MAX((CN3+CN18+CN19+CN20+CN21+CN22+CN23+CN24+CN25-P_A-HR_band)*BR_rate,0)","v":1306},{"$f":"MAX((CO3+CO18+CO19+CO20+CO21+CO22+CO23+CO24+CO25-P_A)*BR_rate,0)+MAX((CO3+CO18+CO19+CO20+CO21+CO22+CO23+CO24+CO25-P_A-HR_band)*BR_rate,0)","v":1306},null,{"$f":"MAX((CQ3+CQ18+CQ19+CQ20+CQ21+CQ22+CQ23+CQ24+CQ25-P_A)*BR_rate,0)+MAX((CQ3+CQ18+CQ19+CQ20+CQ21+CQ22+CQ23+CQ24+CQ25-P_A-HR_band)*BR_rate,0)","v":0},null,null,null,null,{"$f":"MAX((CV3+CV18+CV19+CV20+CV21+CV22+CV23+CV24+CV25-P_A)*BR_rate,0)+MAX((CV3+CV18+CV19+CV20+CV21+CV22+CV23+CV24+CV25-P_A-HR_band)*BR_rate,0)","v":3584},null,null,null,null,null,6133.6,null,{"$f":"MAX((DD3+DD18+DD19+DD20+DD21+DD22+DD23+DD24+DD25-P_A)*BR_rate,0)+MAX((DD3+DD18+DD19+DD20+DD21+DD22+DD23+DD24+DD25-P_A-HR_band)*BR_rate,0)","v":0},{"$f":"MAX((DE3+DE18+DE19+DE20+DE21+DE22+DE23+DE24+DE25-P_A)*BR_rate,0)+MAX((DE3+DE18+DE19+DE20+DE21+DE22+DE23+DE24+DE25-P_A-HR_band)*BR_rate,0)","v":1306},{"$f":"MAX((DF3+DF18+DF19+DF20+DF21+DF22+DF23+DF24+DF25-P_A)*BR_rate,0)+MAX((DF3+DF18+DF19+DF20+DF21+DF22+DF23+DF24+DF25-P_A-HR_band)*BR_rate,0)","v":6486},null,null,{"$f":"MAX((DI3+DI18+DI19+DI20+DI21+DI22+DI23+DI24+DI25-P_A)*BR_rate,0)+MAX((DI3+DI18+DI19+DI20+DI21+DI22+DI23+DI24+DI25-P_A-HR_band)*BR_rate,0)","v":6506.2000000000007},null,{"$f":"MAX((DK3+DK18+DK19+DK20+DK21+DK22+DK23+DK24+DK25-P_A)*BR_rate,0)+MAX((DK3+DK18+DK19+DK20+DK21+DK22+DK23+DK24+DK25-P_A-HR_band)*BR_rate,0)","v":3584},{"$f":"MAX((DL3+DL18+DL19+DL20+DL21+DL22+DL23+DL24+DL25-P_A)*BR_rate,0)+MAX((DL3+DL18+DL19+DL20+DL21+DL22+DL23+DL24+DL25-P_A-HR_band)*BR_rate,0)","v":23084},null,776,282352.75,60241.05,null,907,550382,230104,{"$f":"MAX((DU3+DU18+DU19+DU20+DU21+DU22+DU23+DU24+DU25-P_A)*BR_rate,0)+MAX((DU3+DU18+DU19+DU20+DU21+DU22+DU23+DU24+DU25-P_A-HR_band)*BR_rate,0)","v":0},{"$f":"MAX((DV3+DV18+DV19+DV20+DV21+DV22+DV23+DV24+DV25-P_A)*BR_rate,0)+MAX((DV3+DV18+DV19+DV20+DV21+DV22+DV23+DV24+DV25-P_A-HR_band)*BR_rate,0)","v":3584},null,375,2279,5051.8,250,null,null,{"$f":"MAX((ED3+ED18+ED19+ED20+ED21+ED22+ED23+ED24+ED25-P_A)*BR_rate,0)+MAX((ED3+ED18+ED19+ED20+ED21+ED22+ED23+ED24+ED25-P_A-HR_band)*BR_rate,0)","v":4136.8},{"$f":"MAX((EE3+EE18+EE19+EE20+EE21+EE22+EE23+EE24+EE25-P_A)*BR_rate,0)+MAX((EE3+EE18+EE19+EE20+EE21+EE22+EE23+EE24+EE25-P_A-HR_band)*BR_rate,0)","v":4136.8},null,4110.8599999999997,{"$f":"MAX((EH3+EH18+EH19+EH20+EH21+EH22+EH23+EH24+EH25-P_A)*BR_rate,0)+MAX((EH3+EH18+EH19+EH20+EH21+EH22+EH23+EH24+EH25-P_A-HR_band)*BR_rate,0)","v":11826},23084,0,0,25481.600000000002,31855,2695.6,0,7406,null,95114,37.4,null,null,null,null,null,53508.06,{"$f":"MAX((EZ3+EZ18+EZ19+EZ20+EZ21+EZ22+EZ23+EZ24+EZ25-P_A)*BR_rate,0)+MAX((EZ3+EZ18+EZ19+EZ20+EZ21+EZ22+EZ23+EZ24+EZ25-P_A-HR_band)*BR_rate,0)","v":1306},446688,2840.6,{"$f":"MAX((FC3+FC18+FC19+FC20+FC21+FC22+FC23+FC24+FC25-P_A)*BR_rate,0)+MAX((FC3+FC18+FC19+FC20+FC21+FC22+FC23+FC24+FC25-P_A-HR_band)*BR_rate,0)","v":74649.600000000006},{"$f":"MAX((FD3+FD18+FD19+FD20+FD21+FD22+FD23+FD24+FD25-P_A)*BR_rate,0)+MAX((FD3+FD18+FD19+FD20+FD21+FD22+FD23+FD24+FD25-P_A-HR_band)*BR_rate,0)","v":9402},null,{"$f":"MAX((FF3+FF18+FF19+FF20+FF21+FF22+FF23+FF24+FF25-P_A)*BR_rate,0)+MAX((FF3+FF18+FF19+FF20+FF21+FF22+FF23+FF24+FF25-P_A-HR_band)*BR_rate,0)","v":289369.2},0,12121.2,12196.326000000001,5219,0,0,0,11826,16466,14056,4136.8,39144.800000000003,null,null,null,null,{"$f":"MAX((FW3+FW18+FW19+FW20+FW21+FW22+FW23+FW24+FW25-P_A)*BR_rate,0)+MAX((FW3+FW18+FW19+FW20+FW21+FW22+FW23+FW24+FW25-P_A-HR_band)*BR_rate,0)","v":1306},null,null,null,null,0,0,0,null,3150,null,null,null,null,{"$f":"MAX((GK3+GK18+GK19+GK20+GK21+GK22+GK23+GK24+GK25-P_A)*BR_rate,0)+MAX((GK3+GK18+GK19+GK20+GK21+GK22+GK23+GK24+GK25-P_A-HR_band)*BR_rate,0)","v":0},null,null,null,{"$f":"MAX((GO3+GO18+GO19+GO20+GO21+GO22+GO23+GO24+GO25-P_A)*BR_rate,0)+MAX((GO3+GO18+GO19+GO20+GO21+GO22+GO23+GO24+GO25-P_A-HR_band)*BR_rate,0)","v":4136.8},{"$f":"MAX((GP3+GP18+GP19+GP20+GP21+GP22+GP23+GP24+GP25-P_A)*BR_rate,0)+MAX((GP3+GP18+GP19+GP20+GP21+GP22+GP23+GP24+GP25-P_A-HR_band)*BR_rate,0)","v":52819.199999999997},{"$f":"MAX((GQ3+GQ18+GQ19+GQ20+GQ21+GQ22+GQ23+GQ24+GQ25-P_A)*BR_rate,0)+MAX((GQ3+GQ18+GQ19+GQ20+GQ21+GQ22+GQ23+GQ24+GQ25-P_A-HR_band)*BR_rate,0)","v":1306},null,{"$f":"MAX((GS3+GS18+GS19+GS20+GS21+GS22+GS23+GS24+GS25-P_A)*BR_rate,0)+MAX((GS3+GS18+GS19+GS20+GS21+GS22+GS23+GS24+GS25-P_A-HR_band)*BR_rate,0)","v":11826},5777.8,null,null,7058.2,{"$f":"MAX((GX3+GX18+GX19+GX20+GX21+GX22+GX23+GX24+GX25-P_A)*BR_rate,0)+MAX((GX3+GX18+GX19+GX20+GX21+GX22+GX23+GX24+GX25-P_A-HR_band)*BR_rate,0)","v":16938},null,{"$f":"MAX((GZ3+GZ18+GZ19+GZ20+GZ21+GZ22+GZ23+GZ24+GZ25-P_A)*BR_rate,0)+MAX((GZ3+GZ18+GZ19+GZ20+GZ21+GZ22+GZ23+GZ24+GZ25-P_A-HR_band)*BR_rate,0)","v":23084},{"$f":"MAX((HA3+HA18+HA19+HA20+HA21+HA22+HA23+HA24+HA25-P_A)*BR_rate,0)+MAX((HA3+HA18+HA19+HA20+HA21+HA22+HA23+HA24+HA25-P_A-HR_band)*BR_rate,0)","v":11826},{"$f":"MAX((HB3+HB18+HB19+HB20+HB21+HB22+HB23+HB24+HB25-P_A)*BR_rate,0)+MAX((HB3+HB18+HB19+HB20+HB21+HB22+HB23+HB24+HB25-P_A-HR_band)*BR_rate,0)","v":100684},null,null,null,null,null,null,505489,null,null,8418,713734,null,{"$f":"MAX((HO3+HO18+HO19+HO20+HO21+HO22+HO23+HO24+HO25-P_A)*BR_rate,0)+MAX((HO3+HO18+HO19+HO20+HO21+HO22+HO23+HO24+HO25-P_A-HR_band)*BR_rate,0)","v":0},null,605,44064,null,2687,5678,null,null,null,{"$f":"MAX((HY3+HY18+HY19+HY20+HY21+HY22+HY23+HY24+HY25-P_A)*SBR_rate,0)+MAX((HY3+HY18+HY19+HY20+HY21+HY22+HY23+HY24+HY25-P_A-SHR_band)*BR_rate,0)","v":7911.6},{"$f":"MAX((HZ3+HZ18+HZ19+HZ20+HZ21+HZ22+HZ23+HZ24+HZ25-P_A)*SBR_rate,0)+MAX((HZ3+HZ18+HZ19+HZ20+HZ21+HZ22+HZ23+HZ24+HZ25-P_A-SHR_band)*BR_rate,0)","v":3095},12245,null,52843.92,46623.15,13976.73,{"$f":"MAX((IF3+IF18+IF19+IF20+IF21+IF22+IF23+IF24+IF25-P_A)*BR_rate,0)+MAX((IF3+IF18+IF19+IF20+IF21+IF22+IF23+IF24+IF25-P_A-HR_band)*BR_rate,0)","v":200},{"$f":"MAX((IG3+IG18+IG19+IG20+IG21+IG22+IG23+IG24+IG25-P_A)*SBR_rate,0)+MAX((IG3+IG18+IG19+IG20+IG21+IG22+IG23+IG24+IG25-P_A-SHR_band)*BR_rate,0)","v":57.2},1012,34435,10733.93,55028.53,45794.65,null,null,1946.49,null,null,null,60739,null,467777,null,32544,10762792,{"$f":"MAX((IY3+IY18+IY19+IY20+IY21+IY22+IY23+IY24+IY25-P_A)*BR_rate,0)+MAX((IY3+IY18+IY19+IY20+IY21+IY22+IY23+IY24+IY25-P_A-HR_band)*BR_rate,0)","v":1443.8000000000002},{"$f":"MAX((IZ3+IZ18+IZ19+IZ20+IZ21+IZ22+IZ23+IZ24+IZ25-P_A)*BR_rate,0)+MAX((IZ3+IZ18+IZ19+IZ20+IZ21+IZ22+IZ23+IZ24+IZ25-P_A-HR_band)*BR_rate,0)","v":4136.8},null,19811,null,215611,{"$f":"MAX((JE3+JE18+JE19+JE20+JE21+JE22+JE23+JE24+JE25-P_A)*BR_rate,0)+MAX((JE3+JE18+JE19+JE20+JE21+JE22+JE23+JE24+JE25-P_A-HR_band)*BR_rate,0)","v":4136.8},{"$f":"MAX((JF3+JF18+JF19+JF20+JF21+JF22+JF23+JF24+JF25-P_A)*BR_rate,0)+MAX((JF3+JF18+JF19+JF20+JF21+JF22+JF23+JF24+JF25-P_A-HR_band)*BR_rate,0)","v":4536.8},null,362337,null,1126,1525,31753.3,null,0,7500,7500,20742.599999999999,null,null,"SA Monetary value (2dp)"]
[5,"","EMP3","Tips and other payments not on your P60",null,null,null,null,null,null,null,null,null,null,null,null,null,null,null,null,null,null,null,null,null,null,null,null,null,null,null,null,null,null,null,null,null,null,null,null,null,null,null,null,null,null,null,null,null,null,null,null,null,50,null,null,null,null,null,null,null,null,null,null,null,null,null,null,null,null,50,null,null,null,null,null,null,null,null,null,null,null,null,null,null,null,null,null,null,null,null,null,null,null,null,null,null,null,null,null,null,null,null,null,null,null,null,50,null,null,null,null,null,null,null,null,null,null,null,null,null,null,null,null,50,null,null,null,null,10,null,null,null,null,null,null,null,null,null,50,50,null,null,null,null,null,null,null,null,null,null,null,null,null,null,null,null,null,null,null,null,null,null,null,null,null,null,null,null,null,null,null,null,null,null,null,null,null,null,null,null,null,null,null,null,null,null,null,null,null,null,null,null,null,null,null,null,null,null,null,null,null,null,null,null,null,null,null,null,null,null,null,null,null,null,null,null,526599,null,null,null,null,null,null,null,null,null,null,null,null,null,null,null,null,null,null,null,null,null,null,null,null,null,null,null,null,null,null,null,null,null,null,null,null,null,null,null,null,null,null,null,null,null,null,null,null,null,null,null,null,null,null,null,null,null,null,null,null,null,"SA Monetary value (2dp) > 0.00"]
[6,"","EMP3.1","Pension contribution - Payment from HMRC"]
[7,"525/444","EMP4","PAYE tax reference of your employer (on your P45/P60)",null,"326/429","326/429","213/A3",null,null,"326/429",null,null,null,"326/429",null,"581/R10","326/429",null,null,"326/429","726/732","354/112","325/78","120/E720","951/U2","326/429",null,"354/112","915/M15","120/J90",null,"326/429","126/126","126/57","007/A123","326/429","326/429","126/126",null,null,"126/126","626/431","526/530","525/236","325/78","750/451",null,null,null,"475/UB40",null,"335/A54","455/225","120/226","525/236","120/P2000","335/A54","120/GE36804","525/236","335/A54","961/0005020",null,null,"335/A54",null,"326/429","106/FA46479",null,null,"455/225",null,null,null,null,null,null,null,null,null,null,"326/429","525/444","326/429",null,"326/429",null,"000/EMP",null,null,null,"525/236","525/236",null,"354/112",null,null,null,null,"335/A54",null,null,null,null,"120/UB28395","455/225",null,"455/225","525/236","581/S1582",null,null,"354/112",null,"335/A54","750/451",null,null,"000/N","000/N",null,"961/3916619","000/N","000/N","455/225","335/A54",null,"581/MR2646","581/mw788","586/a1450","335/A55",null,null,"326/429","326/429",null,"000/N","525/444","750/451","455/225","455/225","335/A54","914/m4226","362/BA13263","951/T2","120/BE19128",null,"581/xz14720","190/VZ38574","326/429",null,"581/MT3300",null,null,"951/LP9472","525/236","846/LL3","267/HG493","303/113","671/RC94810",null,"932/93U",null,"929/0398","383/2937","000/j","102/3948",null,null,"525/444","525/444","525/444","326/429","326/429",null,null,null,null,"525/236",null,"326/429","326/429","326/429","326/429","326/429","525/236",null,"750/451",null,null,"750/451",null,"525/236","750/451","750/451","750/451","326/429","726/732","525/236","726/732","525/444","750/451",null,"914/G5","326/429","750/451",null,"750/451","525/444","303/113",null,"750/451",null,"951/T2","951/T2",null,"326/429","750/451",null,"750/451","750/451",null,"354/112",null,"750/451","007/1881",null,"750/451",null,null,null,"750/451","510/200","510/200","750/451",null,"028/309DN","039/32099J","325/78","120/E720","007/123","477/WA4668","477/WA4669","120/VA111","477/WA4671","750/451","750/451",null,"325/300",null,null,null,"335/A54",null,"750/451",null,"750/451","126/57","007/A123","326/429",null,"750/451",null,"750/451","326/429","326/429",null,"750/451",null,"325/X98","750/451","750/451",null,"007/A125","007/P99","007/P99","910/S1",null,"Must be present","SA non-empty string"]
[8,"","EMP5","Your employer’s name\n",null,null,null,null,null,null,null,null,null,null,null,null,null,null,null,null,null,null,null,null,null,null,null,null,null,null,null,null,null,null,null,null,null,null,null,null,null,null,null,null,null,null,null,null,null,null,"Birmingham Boys",null,"Wrekin Housing ",null,null,null,null,"Wrekin Housing ","Oxford Algorithms Ltd",null,"Where There's a Will","uni of aberdeen",null,null,"Wrekin Housing ",null,null,"MICHAEL SOHOR AND CO",null,null,null,null,null,null,null,null,null,null,null,null,null,null,null,null,null,null,null,"building property",null,null,null,null,null,null,null,null,null,null,null,"Wrekin Housing ",null,null,null,null,"GMK SPORTING SERVICES LTD",null,null,null,null,"solomon associates ltd",null,null,null,null,"Wrekin Housing ",null,null,null,"STARLING BANK","CAR SHOP",null,"hillhouse estates ltd","STARLING BANK","CAR SHOP",null,"Wrekin Housing ",null,"ROTHKO LTD","MARSTON PROPERTIES LTD","amg consultancy services ltd",null,null,null,null,null,null,"SERAPHIM SPACE MANAGER LLP",null,null,null,null,"Wrekin Housing ",null,"IGLASEAS PLC",null,"GTG BYE LTD",null,"rose capital ","MR W","MR PATTISON",null,"CKQ LTD",null,null," PRIVATE EQUINE",null,"ACME INC","LAST","rosetta","STICK",null,null,null,null,"corbs","mr corbs","keith",null,null,null,null,null,null,null,null,null,null,null,null,null,null,null,null,null,null,null,null,null,null,null,null,null,null,null,null,null,null,null,null,null,null,null,null,null,null,null,null,null,null,null,null,null,null,null,null,null,null,null,null,null,null,null,null,null,null,null,null,null,null,null,null,null,null,null,null,null,"CORBY ","MUNNY",null,null,null,null,null,null,null,null,null,null,null,null,null,null,"International Trading",null,null,null,null,null,null,null,null,null,null,null,null,null,null,null,null,"Import Ant Software",null,null,null,"Family Life","Logistical Analysis","Sales","Environmental Adviser",null,null,"SA string"]
[9,"Y","EMP6"," If you were a company director, put ‘X’ in the box",null,"N","N","N",null,null,"N",null,null,null,"N",null,"Y","N",null,null,"N","N","N","N","Y","N","N",null,"N","N","N",null,"N","N","N","N","N","N","N",null,null,"N","N","N","N","N","N",null,null,null,"N",null,"N","N","N","N","N","N","Y","N","N","Y",null,null,"N",null,"N","Y",null,null,"N",null,null,null,null,null,null,null,null,null,null,"N","Y","N",null,"N",null,"Y",null,null,null,"N","N",null,"N",null,null,null,null,"N",null,null,null,null,"Y","N",null,"N","N","N",null,null,"N",null,"N","N",null,null,"N","N",null,"N","N","N","N","N",null,"N","N","N","N",null,null,"N","N",null,"N","Y","N","N","N","N","Y","N","N","N",null,"N","N","Y",null,"Y",null,null,"N","N","N","Y","N","N",null,"Y",null,"Y","N","Y","N",null,null,"Y","Y","Y","N","N",null,null,null,null,"N",null,"N","N","N","N","N","Y",null,"N",null,null,"N",null,"N","N","N","N","N","Y","N","N","Y","N",null,"N","N","N",null,"N","Y","N",null,"N",null,"N","N",null,"N","N",null,"N","N",null,"N",null,"N","N",null,"N","N",null,null,"Y","N","N","N",null,"N","N","N","N","N","N","N","N","N","Y","N",null,"N",null,null,null,"N",null,"N",null,"Y","Y","N","N",null,"N",null,"N","N","N",null,"N",null,"N","N","N",null,"N","N","N","N",null,null,"\"yes\" or \"no\""]
[10,"","EMP6.1",{"$f":"\"If you ceased being a director before 6 April \"&Tax_year_end&\", put the date the directorship ceased in the box DD MM YYYY\"","v":"If you ceased being a director before 6 April 2026, put the date the directorship ceased in the box DD MM YYYY"},null,null,null,null,null,null,null,null,null,null,null,null,null,null,null,null,null,null,null,null,null,null,null,null,null,null,null,null,null,null,null,null,null,null,null,null,null,null,null,null,null,null,null,null,null,null,null,null,null,null,null,null,null,null,"2023-10-31",null,null,null,null,null,null,null,null,null,null,null,null,null,null,null,null,null,null,null,null,null,null,null,{"$f":"\"02/07/\"&Tax_year_start","v":"02/07/2025"},null,null,null,null,null,null,null,null,null,null,null,null,null,null,null,null,null,null,null,null,null,null,null,null,null,null,null,null,null,null,null,null,null,null,null,null,null,null,null,null,null,null,null,null,null,null,null,null,null,null,null,null,null,null,{"$f":"\"02/07/\"&Tax_year_start","v":"02/07/2025"},null,null,null,null,{"$f":"\"03/10/\"&Tax_year_start","v":"03/10/2025"},null,null,null,null,null,null,null,null,null,null,null,null,null,null,null,null,null,null,null,null,null,null,null,null,null,null,{"$f":"\"02/07/\"&Tax_year_start","v":"02/07/2025"},{"$f":"\"02/07/\"&Tax_year_start","v":"02/07/2025"},null,null,null,null,null,null,null,null,null,null,null,null,null,null,null,null,null,null,null,null,null,null,null,null,null,null,null,null,null,{"$f":"\"02/07/\"&Tax_year_start","v":"02/07/2025"},null,null,null,null,null,null,null,{"$f":"\"02/07/\"&Tax_year_start","v":"02/07/2025"},null,null,null,null,null,null,null,null,null,null,null,null,null,null,null,null,null,null,null,null,null,null,{"$f":"\"24/04/\"&Tax_year_start","v":"24/04/2025"},null,null,null,null,null,null,null,null,null,null,null,null,null,null,null,null,null,null,null,null,null,null,null,null,null,null,null,null,null,null,null,null,null,null,null,null,null,null,null,null,null,null,null,null,null,null,"a) must be within the return year\nb) must be valid date DDMMYYYY\nc) if present EMP6 must be Y","SA MTR date"]
[11,"","EMP7","And, if the company was a close company, put ‘X’ in the box ",null,"N","N","N",null,null,"N",null,null,null,"N",null,"Y","N",null,null,"N","N","N","N","Y","N","N",null,"N","N","N",null,"N","N","N","N","N","N","N",null,null,"N","N","N","N","N","N",null,null,null,"N",null,"N","N","N","N","N","N","Y","N","N","N",null,null,"N",null,"N","Y",null,null,"N",null,null,null,null,null,null,null,null,null,null,"N","Y","N",null,"N",null,"Y",null,null,null,"N","N",null,"N",null,null,null,null,"N",null,null,null,null,"Y","N",null,"N","N","N",null,null,"N",null,"N","N",null,null,"N","N",null,"N","N","N","N","N",null,"N","N","N","N",null,null,"N","N",null,"N","Y","N","N","N","N","N","N","N","N",null,"N","N","Y",null,"N",null,null,"N","N",null,null,"N","N",null,"N",null,"N","N",null,"N",null,null,"Y","Y",null,"N","N",null,null,null,null,"N",null,"N","N","N","N","N","N",null,"Y",null,null,"N",null,"N","N","N","N","N","N","N","N","Y","N",null,"N","N","N",null,"N","Y","N",null,"N",null,"N","N",null,"N","N",null,"N","N",null,"N",null,"N","N",null,"N","N",null,null,"N","N","N","N",null,"N","N","N","N","N","N","N","N","N","Y","N",null,"N",null,null,null,"N",null,"N",null,"Y","N","N","N",null,"N",null,"N","N","N",null,"N",null,"N",null,"N",null,"N","N","N","N",null,null,"\"yes\""]
[12,"","EMP7.1","Name of this close company",null,null,null,null,null,null,null,null,null,null,null,null,"CORBS & CO",null,null,null,null,null,null,null,"PEAR & SON",null,null,null,null,null,null,null,null,null,null,null,null,null,null,null,null,null,null,null,null,null,null,null,null,null,null,null,null,null,null,null,null,null,"CORBSY BOY FOOTBALL",null,null,null,null,null,null,null,null,"BEC LTD",null,null,null,null,null,null,null,null,null,null,null,null,null,null,"MUNKEY",null,null,null,null,null,null,null,null,null,null,null,null,null,null,null,null,null,null,null,null,null,"KEITHY CO",null,null,null,null,null,null,null,null,null,null,null,null,null,null,null,null,null,null,null,null,null,null,null,null,null,null,null,null,null,null,null,null,"KEITHY CO",null,null,null,null,null,null,null,null,null,null,null,"PADDYS",null,null,null,null,null,null,null,null,null,null,null,null,null,null,null,null,null,null,null,"JEPJEP","PATRICKO",null,null,null,null,null,null,null,null,null,null,null,null,null,null,null,null,"FARMING CO",null,null,null,null,null,null,null,null,null,null,null,null,"MAISMOO",null,null,null,null,null,null,null,"LUNA CO",null,null,null,null,null,null,null,null,null,null,null,null,null,null,null,null,null,null,null,null,null,null,null,null,null,null,null,null,null,null,null,null,null,null,null,null,"Cakes",null,null,null,null,null,null,null,null,null,null,"D&munny"]
[13,"","EMP7.2","Registration number for this close company",null,null,null,null,null,null,null,null,null,null,null,null,91027391,null,null,null,null,null,null,null,16629911,null,null,null,null,null,null,null,null,null,null,null,null,null,null,null,null,null,null,null,null,null,null,null,null,null,null,null,null,null,null,null,null,null,73820193,null,null,null,null,null,null,null,null,73820193,null,null,null,null,null,null,null,null,null,null,null,null,null,null,94820019,null,null,null,null,null,null,null,null,null,null,null,null,null,null,null,null,null,null,null,null,null,12930092,null,null,null,null,null,null,null,null,null,null,null,null,null,null,null,null,null,null,null,null,null,null,null,null,null,null,null,null,null,null,null,null,82826637,null,null,null,null,null,null,null,null,null,null,null,38199931,null,null,null,null,null,null,null,null,null,null,null,null,null,null,null,null,null,null,null,45930912,71119938,null,null,null,null,null,null,null,null,null,null,null,null,null,null,null,null,39110394,null,null,null,null,null,null,null,null,null,null,null,null,21010399,null,null,null,null,null,null,null,83010999,null,null,null,null,null,null,null,null,null,null,null,null,null,null,null,null,null,null,null,null,null,null,null,null,null,null,null,null,null,null,null,null,null,null,null,null,"VV222222",null,null,null,null,null,null,null,null,null,null,"AA123555"]
[14,"","EMP7.3","Dividends recieved from this close company",null,null,null,null,null,null,null,null,null,null,null,null,1055,null,null,null,null,null,null,null,6801,null,null,null,null,null,null,null,null,null,null,null,null,null,null,null,null,null,null,null,null,null,null,null,null,null,null,null,null,null,null,null,null,null,0,null,null,null,null,null,null,null,null,0,null,null,null,null,null,null,null,null,null,null,null,null,null,null,0,null,null,null,null,null,null,null,null,null,null,null,null,null,null,null,null,null,null,null,null,null,10299,null,null,null,null,null,null,null,null,null,null,null,null,null,null,null,null,null,null,null,null,null,null,null,null,null,null,null,null,null,null,null,null,887,null,null,null,null,null,null,null,null,null,null,null,16993,null,null,null,null,null,null,null,null,null,null,null,null,null,null,null,null,null,null,null,0,0,null,null,null,null,null,null,null,null,null,null,null,null,null,null,null,null,1241,null,null,null,null,null,null,null,null,null,null,null,null,400332,null,null,null,null,null,null,null,0,null,null,null,null,null,null,null,null,null,null,null,null,null,null,null,null,null,null,null,null,null,null,null,null,null,null,null,null,null,null,null,null,null,null,null,null,0,null,null,null,null,null,null,null,null,null,null,606249]
[15,"","EMP7.4","Percentage shareholding in this close company",null,null,null,null,null,null,null,null,null,null,null,null,50,null,null,null,null,null,null,null,92,null,null,null,null,null,null,null,null,null,null,null,null,null,null,null,null,null,null,null,null,null,null,null,null,null,null,null,null,null,null,null,null,null,63,null,null,null,null,null,null,null,null,100,null,null,null,null,null,null,null,null,null,null,null,null,null,null,68,null,null,null,null,null,null,null,null,null,null,null,null,null,null,null,null,null,null,null,null,null,77,null,null,null,null,null,null,null,null,null,null,null,null,null,null,null,null,null,null,null,null,null,null,null,null,null,null,null,null,null,null,null,null,31,null,null,null,null,null,null,null,null,null,null,null,62,null,null,null,null,null,null,null,null,null,null,null,null,null,null,null,null,null,null,null,31,54,null,null,null,null,null,null,null,null,null,null,null,null,null,null,null,null,72,null,null,null,null,null,null,null,null,null,null,null,null,28,null,null,null,null,null,null,null,99,null,null,null,null,null,null,null,null,null,null,null,null,null,null,null,null,null,null,null,null,null,null,null,null,null,null,null,null,null,null,null,null,null,null,null,null,0,null,null,null,null,null,null,null,null,null,null,38]
[16,"","EMP8","If this employment income is from inside off-payroll working engagements, put ‘X’ in the box",null,null,null,null,null,null,null,null,null,null,null,null,null,null,null,null,null,null,null,null,null,null,null,null,null,null,null,null,null,null,null,null,null,null,null,null,null,null,null,null,null,null,null,null,null,null,null,null,null,null,"Y",null,null,null,null,null,null,null,null,null,null,null,null,null,null,null,null,null,null,null,null,null,null,null,null,null,null,null,null,null,null,null,null,null,null,null,null,null,null,null,null,null,null,null,null,null,null,null,null,null,null,null,null,null,null,null,null,null,null,null,null,null,null,null,null,null,null,null,null,null,null,null,null,null,null,null,null,null,null,null,null,null,null,null,null,null,null,null,null,null,null,null,null,null,null,null,null,null,null,null,null,null,null,null,null,null,null,null,null,null,null,null,null,null,null,null,null,null,null,null,null,null,null,null,null,null,null,null,null,null,null,null,null,null,null,null,null,null,null,null,null,null,null,null,null,null,null,null,null,null,null,null,null,null,null,null,null,null,null,null,null,null,null,null,null,null,null,null,null,null,null,null,null,null,null,null,null,null,null,null,null,null,null,null,null,null,null,null,null,null,null,null,null,null,null,null,null,null,null,null,null,null,null,null,null,null,null,null,null,null,null,null,null,null,null,null,null,null,null,null,null,null,null,null,"No longer in use","\"yes\""]
[17,"","EMP9","Company cars and vans",null,null,null,null,null,null,null,null,null,null,null,null,null,null,null,null,null,null,null,1000,6325,null,null,null,null,null,null,null,null,null,null,null,null,7950,null,null,null,null,null,4798,null,null,null,null,null,null,null,null,2250,null,null,null,null,2250,null,null,null,null,null,null,2250,null,null,null,null,null,null,null,null,null,null,null,null,null,null,null,null,null,3600,null,null,null,null,null,null,null,null,null,null,null,null,null,null,null,null,2250,null,null,null,null,1195,null,null,null,null,null,null,null,null,null,2250,null,null,null,null,null,null,null,null,null,null,null,null,null,null,null,null,null,null,null,null,null,null,3600,null,null,null,12689,null,null,null,null,null,null,null,null,null,null,null,null,null,null,null,null,null,9000,null,null,null,null,null,null,null,null,null,3600,3600,null,null,null,null,null,null,null,null,null,null,null,null,null,null,null,null,1487,null,null,null,null,null,null,null,null,null,5360,null,null,3600,null,null,null,null,null,null,null,3600,9000,null,null,null,null,null,null,null,null,null,null,null,null,null,null,null,null,null,null,null,null,null,94,null,null,null,null,null,null,null,null,null,null,null,null,null,null,null,null,null,null,null,null,null,null,null,null,null,null,null,null,null,null,null,null,null,null,null,null,null,null,null,null,null,null,null,null,null,null,null,"SA Monetary value (2dp) > 0.00"]
[18,"","EMP10","Fuel for company cars and vans",null,null,null,null,null,null,null,null,null,null,null,null,null,null,null,null,null,null,null,null,null,null,null,null,null,null,null,null,null,null,null,null,null,3000,null,null,null,null,null,1200,null,null,null,null,null,null,null,null,650,null,null,null,null,650,null,null,null,null,null,null,650,null,null,null,null,null,null,null,null,null,null,null,null,null,null,null,null,null,null,null,null,null,null,null,null,null,null,null,null,null,null,null,null,null,null,650,null,null,null,null,null,null,null,null,null,null,null,null,null,null,650,null,null,null,null,null,null,null,null,null,null,null,null,null,null,null,null,null,null,null,null,null,null,null,null,null,null,5550,null,null,null,null,null,null,null,null,null,null,null,null,null,null,null,null,null,null,null,null,null,null,null,null,null,null,null,null,null,null,null,null,null,null,null,null,null,null,null,null,null,null,null,null,null,null,null,null,null,null,null,null,null,null,null,null,null,null,null,null,null,null,null,null,null,null,null,null,null,null,null,null,null,null,null,null,null,null,null,null,null,null,null,null,null,null,null,null,null,null,null,null,null,null,null,null,null,null,null,null,null,null,null,null,null,null,null,null,null,null,null,null,null,null,null,null,null,null,null,null,null,null,null,null,null,null,null,null,null,null,null,null,null,null,null,null,null,"SA Monetary value (2dp) > 0.00"]
[19,8303,"EMP11","Private medical and dental insurance",null,null,null,null,null,null,null,null,null,null,null,null,null,null,null,null,null,null,null,null,null,null,null,null,null,null,null,null,null,null,null,700,null,1500,null,null,null,null,null,800,null,null,500,null,null,null,null,null,75,null,null,null,null,75,null,null,null,null,null,null,75,null,null,null,null,null,null,null,null,null,null,null,null,null,null,null,null,null,350,null,null,null,null,null,null,null,null,null,null,null,null,null,null,null,null,75,null,null,null,null,null,null,null,null,null,null,null,null,null,null,75,500,null,null,null,500,null,null,null,500,null,null,null,null,null,null,null,null,null,null,null,null,null,350,500,null,null,757,null,null,null,4011,null,null,null,null,null,7095,null,null,null,null,null,null,null,null,null,null,null,null,null,null,null,null,null,350,350,8303,null,null,null,null,null,null,null,null,null,null,null,null,null,null,null,500,null,null,null,null,null,null,null,null,null,200,null,null,350,3126,null,175,null,360,null,500,350,null,null,null,null,null,null,null,null,null,null,null,1403,null,null,null,null,null,null,208,4579,null,null,227,null,245,null,null,null,2719,null,null,1286,null,null,null,507.19,null,null,null,null,null,null,null,null,null,null,null,7150.84,null,null,null,null,6573,null,null,null,null,null,2533,null,1916,null,null,null,null,null,null,950.43,null,null,"SA Monetary value (2dp) > 0.00"]
[20,"","EMP12","Vouchers, credit cards and excess mileage allowance",null,null,null,null,null,null,null,null,null,null,null,null,null,null,null,null,null,null,null,null,null,null,null,null,null,null,null,null,null,null,null,null,null,3500,null,null,null,null,null,null,600,null,null,null,null,null,null,null,null,null,null,600,null,null,null,null,null,null,null,null,null,null,null,null,null,null,null,null,null,null,null,null,null,null,null,null,null,null,null,null,null,null,null,null,null,null,null,600,600,null,null,null,null,null,null,null,null,null,null,null,null,null,null,null,600,null,null,null,null,null,null,null,null,null,null,null,null,null,null,null,null,null,null,null,null,null,null,null,null,null,null,null,null,null,null,null,null,null,null,null,null,null,null,null,null,null,null,null,null,null,null,600,null,null,null,null,null,null,null,null,null,null,null,null,null,null,null,null,null,null,null,null,null,null,600,null,null,null,null,null,null,null,null,null,null,null,null,null,600,null,null,null,null,null,600,null,null,null,null,null,null,null,null,null,null,null,null,null,null,null,null,null,null,null,null,null,null,null,null,null,null,null,null,null,518,null,null,null,null,null,null,null,null,null,null,null,null,null,null,null,null,null,null,null,null,null,null,null,null,null,null,null,null,null,null,null,null,null,null,null,null,null,null,null,null,null,null,null,null,null,null,null,null,null,null,"SA Monetary value (2dp) > 0.00"]
[21,"","EMP13","Goods and other assets provided by your employer ",null,null,null,null,null,null,null,null,null,null,null,null,null,null,null,null,null,null,null,null,null,null,null,null,null,null,null,null,null,null,null,null,null,null,null,null,null,null,null,null,null,null,5000,null,null,null,null,null,null,null,null,null,null,null,null,null,null,null,null,null,null,null,null,null,null,null,null,null,null,null,null,null,null,null,null,null,null,null,null,null,null,null,null,null,null,null,null,null,null,null,null,null,null,null,null,null,null,null,null,null,null,null,null,null,null,null,null,null,null,null,null,5000,null,null,null,5000,null,null,null,5000,null,null,null,null,null,null,null,null,null,null,null,null,null,null,5000,null,null,null,null,null,null,null,null,null,null,null,null,null,null,null,null,null,null,null,null,null,null,null,null,null,null,null,null,null,null,null,null,null,null,null,null,null,null,null,null,null,null,null,null,null,null,null,null,5000,null,null,null,null,null,null,null,null,null,null,null,null,null,null,null,null,null,12000,null,5000,null,null,null,null,null,null,null,null,null,null,null,null,null,null,null,null,null,null,null,null,null,null,null,null,null,null,null,null,null,null,null,null,null,null,null,null,null,null,null,null,null,null,null,null,null,null,null,null,null,null,null,null,null,null,null,null,null,null,null,null,null,null,null,null,null,null,null,null,null,null,null,"SA Monetary value (2dp) > 0.00"]
[22,"","EMP14","Accommodation provided by your employer ",null,null,null,null,null,null,null,null,null,null,null,null,null,null,null,null,null,null,null,null,null,null,null,null,null,null,null,null,null,null,null,2000,null,null,null,null,null,null,null,null,null,null,7500,null,null,null,null,null,null,null,null,null,null,null,null,null,null,null,null,null,null,null,null,null,null,null,null,null,null,null,null,null,null,null,null,null,null,null,null,null,null,null,null,null,null,null,null,null,null,null,null,null,null,null,null,null,null,null,null,null,null,null,null,null,null,null,null,null,null,null,null,7500,null,null,null,7500,null,null,null,7500,null,null,null,null,null,null,null,null,null,null,null,null,null,null,7500,null,null,null,null,null,null,null,null,null,null,null,null,null,null,null,null,null,null,null,null,null,null,null,null,null,null,null,null,null,null,null,null,null,null,null,null,null,null,null,null,null,null,null,null,null,null,null,null,7500,null,null,null,null,null,null,null,null,null,null,null,null,null,null,null,null,null,8900,null,7500,null,null,null,null,null,null,null,null,null,null,null,null,null,null,null,null,null,null,null,null,null,null,null,null,null,null,null,null,null,null,null,null,null,null,null,null,null,null,null,null,null,null,null,null,null,null,null,null,null,null,null,null,null,null,null,null,null,null,null,null,null,null,null,null,null,null,null,null,null,null,null,"SA Monetary value (2dp) > 0.00"]
[23,"","EMP15","Other benefits (including interest-free and low interest loans)",null,null,null,null,null,null,null,null,null,null,null,null,null,null,null,null,null,null,null,null,null,null,null,null,null,null,null,null,null,null,null,null,null,null,null,null,null,null,null,null,null,null,null,null,null,null,null,null,null,null,null,null,null,null,null,null,null,null,null,null,null,null,null,null,null,null,null,null,null,null,null,null,null,null,null,null,null,null,7500,null,null,null,null,null,null,null,null,null,null,null,null,null,null,null,null,null,null,null,null,null,null,null,null,null,null,null,null,null,null,null,null,null,null,null,null,700,null,null,null,700,null,null,null,null,null,null,null,null,null,null,null,null,null,7500,null,null,null,null,3751,null,null,null,null,null,null,null,null,null,null,null,null,null,null,null,null,null,null,null,null,null,null,null,null,null,null,7500,7500,null,null,null,null,null,null,null,null,null,null,null,null,null,null,null,null,null,null,null,null,null,null,null,null,null,null,null,null,null,7500,null,null,null,null,null,null,null,7500,null,null,null,null,null,null,null,null,null,null,null,8309,null,null,null,null,null,null,null,null,null,null,null,null,null,null,null,null,null,null,null,null,null,null,null,491.25,null,null,null,null,null,null,null,null,null,null,null,null,100769,null,null,null,null,null,3098,null,null,null,null,null,null,null,null,null,null,null,null,null,null,null,"SA Monetary value (2dp) > 0.00"]
[24,"","EMP16","Expenses payments received and balancing charges",null,null,null,null,null,null,null,null,null,null,null,null,null,null,null,null,null,null,null,null,null,null,null,null,null,null,null,null,null,null,null,null,null,null,null,null,null,null,null,null,null,null,null,null,null,null,null,null,null,null,null,null,null,null,null,null,null,null,null,null,null,null,null,null,null,null,null,null,null,null,null,null,null,null,null,null,null,null,4500,null,null,null,null,null,null,null,null,null,null,null,null,null,null,null,null,null,null,null,null,null,null,null,null,null,null,null,null,null,null,null,null,null,null,null,null,null,null,null,null,null,null,null,null,null,null,null,null,null,null,null,null,null,null,4500,null,null,null,null,null,null,null,null,null,null,null,null,null,null,null,null,null,null,null,null,null,null,null,null,null,null,null,null,null,null,null,4500,4500,null,null,null,null,null,null,null,null,null,null,null,null,null,null,null,null,null,null,null,null,null,null,null,null,null,null,16800,null,null,4500,null,null,null,null,null,null,null,4500,null,null,null,null,null,null,null,null,null,null,null,null,null,null,null,null,null,null,null,null,null,null,null,null,null,null,null,null,null,null,null,null,null,null,null,null,null,null,null,null,null,null,null,null,null,null,null,null,null,null,null,null,null,null,null,null,null,null,null,null,null,null,null,null,null,null,null,null,null,null,"SA Monetary value (2dp) > 0.00"]
[25,"","EMP17","Business travel and subsistence expenses",null,null,null,null,null,null,1995,null,null,null,null,null,null,null,null,null,null,null,null,null,2167,null,null,null,null,null,null,null,null,null,null,null,null,5000,null,null,null,null,null,null,null,null,null,null,null,null,null,null,null,null,null,null,null,null,null,null,null,850,null,null,null,null,null,null,null,null,null,null,null,null,null,null,null,null,null,null,null,null,5000,null,null,null,null,null,null,null,null,null,null,null,null,null,null,null,null,null,null,null,null,null,null,null,null,null,null,null,null,null,null,null,null,null,null,null,null,null,null,null,null,null,null,null,null,null,null,100,null,null,null,null,null,null,null,5000,null,null,null,null,null,null,null,null,null,null,null,null,null,null,null,null,null,null,null,null,null,null,null,null,null,null,null,null,null,null,null,5000,5000,null,null,null,null,null,null,null,null,null,null,null,null,null,null,null,null,null,null,null,null,null,null,null,null,null,null,null,null,null,5000,null,null,null,null,null,null,null,5000,null,null,null,null,null,null,null,null,null,null,null,null,null,null,null,null,null,null,null,null,null,null,84,null,null,null,null,null,null,null,null,null,null,null,null,null,null,null,null,null,null,null,null,null,null,null,null,null,null,null,null,null,null,null,null,null,9556,null,null,null,null,null,null,null,null,null,null,null,null,null,"SA Monetary value (2dp) > 0.00"]
[26,"","EMP18","Fixed deductions for expenses",null,null,null,null,null,null,null,null,null,null,null,null,null,null,null,null,null,450,null,null,null,null,null,null,null,700,null,null,null,null,null,null,null,null,null,null,null,null,null,null,null,null,null,null,null,null,null,null,75,null,null,null,null,75,null,null,null,null,null,null,75,null,null,312,null,null,null,null,null,null,null,null,null,null,null,null,null,null,null,null,null,null,null,null,null,null,null,null,null,null,null,null,null,null,null,75,null,null,null,null,null,null,null,null,null,null,null,null,null,null,75,null,null,null,null,null,null,null,null,null,null,75,null,null,null,null,null,null,null,null,null,null,null,null,null,null,null,null,null,null,450,null,null,null,null,null,null,null,null,null,null,null,null,null,null,null,null,null,null,null,null,null,null,null,null,null,null,null,null,null,null,null,null,null,null,null,null,null,null,null,null,null,null,null,null,null,null,null,null,null,null,null,null,450,null,450,null,null,null,null,null,null,null,null,null,null,null,null,null,450,450,null,null,null,null,null,null,null,null,null,null,null,null,null,null,null,null,null,null,null,null,null,null,null,null,null,null,null,null,null,null,null,null,null,null,null,null,null,null,null,null,null,null,null,null,null,null,null,null,null,null,150,null,null,null,null,null,null,null,null,null,null,null,null,null,"SA Monetary value (2dp) > 0.00"]
[27,"","EMP19","Professional fees and subscriptions ",null,null,null,null,null,null,660,null,null,null,null,null,4527,null,null,null,null,null,null,null,null,583,null,null,null,300,null,null,null,null,null,null,null,null,null,null,null,null,null,null,150,null,175,null,null,null,null,null,null,null,null,150,null,null,null,null,null,200,null,null,null,null,null,null,null,null,null,null,null,null,null,null,null,null,null,null,null,null,null,null,null,null,null,null,null,null,null,150,150,null,null,null,null,null,null,null,null,null,null,null,null,null,null,null,150,null,null,null,null,null,null,175,null,null,null,175,null,null,null,175,null,null,null,null,null,null,null,null,null,null,null,null,null,null,175,null,null,null,null,null,null,null,null,null,null,null,null,null,null,null,null,150,null,null,null,null,null,null,null,null,null,2656,null,null,null,null,null,null,null,null,null,null,null,null,150,null,null,null,null,null,null,null,null,175,null,null,null,null,150,null,null,null,null,250,150,null,null,null,null,null,null,740,null,175,null,null,null,null,null,null,null,null,null,null,null,null,null,null,null,null,null,null,null,null,null,null,null,null,null,null,null,null,null,null,null,null,null,null,null,null,null,null,null,null,null,null,null,null,null,null,null,null,null,null,null,null,null,null,null,null,null,null,null,null,null,null,null,null,null,null,null,null,null,null,null,"SA Monetary value (2dp) > 0.00"]
[28,"","EMP20"," Other expenses and capital allowances ",null,null,null,null,null,null,null,null,null,null,null,null,null,null,null,null,null,null,null,null,null,null,null,null,null,2000,null,null,null,null,null,null,null,null,null,null,null,null,null,3799,85,null,null,null,null,null,null,null,null,null,null,85,null,null,null,null,null,950,null,null,null,null,null,null,null,null,null,null,null,null,null,null,null,null,null,null,null,null,null,null,null,null,null,null,null,null,null,85,85,null,null,null,null,null,null,null,null,null,null,null,null,null,null,null,85,null,null,null,null,null,null,null,null,null,null,null,null,null,null,null,null,null,null,null,null,300,null,null,null,null,null,null,null,null,null,null,null,null,null,null,null,null,null,null,null,null,null,null,null,null,null,85,null,null,null,null,null,null,null,null,null,null,null,null,null,null,null,null,null,null,null,null,null,null,85,null,null,null,null,null,null,null,null,null,null,null,null,null,85,null,null,null,null,600,85,null,null,null,null,null,null,null,null,null,null,null,null,null,null,null,null,null,null,null,null,null,null,null,null,null,null,null,null,null,null,null,null,null,null,null,252,null,null,null,null,null,null,null,null,null,null,null,null,null,null,null,null,null,null,null,null,null,null,null,null,null,null,null,null,null,null,17899,null,null,null,null,null,null,null,null,null,null,null,null,null,"SA Monetary value (2dp) > 0.00"]
[]
["row",{"$f":"\"selected \"&EMP_B_IND-1","v":"selected 0"},"EMP-B",null,1,2,3,4,5,6,7,8,9,10,11,12,13,14,15,16,17,18,19,20,21,22,23,24,25,26,27,28,29,30,31,32,33,34,35,36,37,38,39,40,41,42,43,44,45,46,47,48,49,50,51,52,53,54,55,56,57,58,59,60,61,62,63,64,65,66,67,68,69,70,71,72,73,74,75,76,77,78,79,80,81,82,83,84,85,86,87,88,89,90,91,92,93,94,95,96,97,98,99,100,101,102,103,104,105,106,107,108,109,110,111,112,113,114,115,116,117,118,119,120,121,122,123,124,125,126,127,128,129,130,131,132,133,134,135,136,137,138,139,140,141,142,143,144,145,146,147,148,149,150,151,152,153,154,155,156,157,158,159,160,161,162,163,164,165,166,167,168,169,170,171,172,173,174,175,176,177,178,179,180,181,182,183,184,185,186,187,188,189,190,191,192,193,194,195,196,197,198,199,200,201,202,203,204,205,206,207,208,209,210,211,212,213,214,215,216,217,218,219,220,221,222,223,224,225,226,227,228,229,230,231,232,233,234,235,236,237,238,239,240,241,242,243,244,245,246,247,248,249,250,251,252,253,254,255,256,257,258,259,260,261,262,263,264,265,266,267,268,269,270,271,272,273,null," Validation","Type"]
[2,{"$f":"IF(EMP_B_IND>1,IF(HLOOKUP(EMP_B_IND-1,EMP_RANGE_B,A32)=\"\",\"\",HLOOKUP(EMP_B_IND-1,EMP_RANGE_B,A32)),\"\")","v":""},"EMP1","Pay from this employment – the total from your P45 or P6",null,null,null,null,null,null,null,null,null,null,null,null,null,null,null,null,null,null,null,null,null,null,null,null,null,null,null,null,null,null,null,null,null,null,null,null,null,null,null,null,55750,null,null,null,null,null,null,null,101000,9050,null,89000,null,18504,null,null,7460,null,null,null,null,null,null,null,null,null,null,null,null,null,null,null,null,null,null,null,null,null,18500,null,null,null,null,null,null,null,null,8000,null,null,null,null,null,null,null,null,null,null,null,null,212064.22,320347,null,null,null,null,null,null,5049,null,null,18500,null,16996,16996,null,null,15000,16996,null,null,null,null,null,null,8000,null,null,null,null,55750,null,null,null,null,null,null,null,null,14230.77,null,null,null,null,null,null,null,null,null,null,null,null,null,null,null,22596,null,null,null,null,null,69999,null,null,null,null,125000,null,null,null,null,null,null,null,null,null,null,null,null,null,27515,2750,null,null,null,null,null,null,null,null,null,null,null,null,null,null,null,null,null,null,5400,94000,null,null,null,47000,null,null,null,null,null,null,null,null,null,null,null,null,null,null,null,9000,null,70032.070000000007,null,null,null,null,null,null,null,null,null,null,7600,null,null,5011,14904,null,null,null,null,null,null,null,null,null,null,null,null,null,15000,null,6666,null,null,235845,null,null,null,null,null,null,null,null,9096,17500,null,null,null,null,null,null,null,"SA Monetary value (2dp) >= 0.00"]
[3,"","EMP1.1","Payrolled benefits",null,null,null,null,null,null,null,null,null,null,null,null,null,null,null,null,null,null,null,null,null,null,null,null,null,null,null,null,null,null,null,null,null,null,null,null,null,null,null,null,null,null,null,null,null,null,null,null,null,null,null,null,null,null,null,null,null,null,null,null,null,null,null,null,null,null,null,null,null,null,null,null,null,null,null,null,null,null,null,null,null,null,null,null,null,null,null,null,null,null,null,null,null,null,null,null,null,null,null,null,84825.600000000006]
[4,"","EMP2","UK tax taken off pay in box 1",null,null,null,null,null,null,null,null,null,null,null,null,null,null,null,null,null,null,null,null,null,null,null,null,null,null,null,null,null,null,null,null,null,null,null,null,null,null,null,null,{"$f":"MAX((AS32+AS47+AS48+AS49+AS50+AS51+AS52+AS53+AS54-P_A)*BR_rate,0)+MAX((AS32+AS47+AS48+AS49+AS50+AS51+AS52+AS53+AS54-P_A-HR_band)*BR_rate,0)","v":11826},null,null,null,null,null,null,null,{"$f":"MAX((BA32+BA47+BA48+BA49+BA50+BA51+BA52+BA53+BA54-P_A)*BR_rate,0)+MAX((BA32+BA47+BA48+BA49+BA50+BA51+BA52+BA53+BA54-P_A-HR_band)*BR_rate,0)","v":23084},{"$f":"MAX((BB32+BB47+BB48+BB49+BB50+BB51+BB52+BB53+BB54-P_A)*BR_rate,0)+MAX((BB32+BB47+BB48+BB49+BB50+BB51+BB52+BB53+BB54-P_A-HR_band)*BR_rate,0)","v":0},null,{"$f":"MAX((BD32+BD47+BD48+BD49+BD50+BD51+BD52+BD53+BD54-P_A)*BR_rate,0)+MAX((BD32+BD47+BD48+BD49+BD50+BD51+BD52+BD53+BD54-P_A-HR_band)*BR_rate,0)","v":17086},null,{"$f":"MAX((BF32+BF47+BF48+BF49+BF50+BF51+BF52+BF53+BF54-P_A)*BR_rate,0)+MAX((BF32+BF47+BF48+BF49+BF50+BF51+BF52+BF53+BF54-P_A-HR_band)*BR_rate,0)","v":1306.8000000000002},null,null,{"$f":"MAX((BI32+BI47+BI48+BI49+BI50+BI51+BI52+BI53+BI54-P_A)*BR_rate,0)+MAX((BI32+BI47+BI48+BI49+BI50+BI51+BI52+BI53+BI54-P_A-HR_band)*BR_rate,0)","v":0},null,null,null,null,null,null,null,null,null,null,null,null,null,null,null,null,null,null,null,null,null,{"$f":"MAX((CE32+CE47+CE48+CE49+CE50+CE51+CE52+CE53+CE54-P_A)*BR_rate,0)+MAX((CE32+CE47+CE48+CE49+CE50+CE51+CE52+CE53+CE54-P_A-HR_band)*BR_rate,0)","v":1306},null,null,null,null,null,null,null,null,{"$f":"MAX((CN32+CN47+CN48+CN49+CN50+CN51+CN52+CN53+CN54-P_A)*BR_rate,0)+MAX((CN32+CN47+CN48+CN49+CN50+CN51+CN52+CN53+CN54-P_A-HR_band)*BR_rate,0)","v":0},null,null,null,null,null,null,null,null,null,null,null,null,null,129156.15,null,null,null,null,null,null,{"$f":"MAX((DI32+DI47+DI48+DI49+DI50+DI51+DI52+DI53+DI54-P_A)*BR_rate,0)+MAX((DI32+DI47+DI48+DI49+DI50+DI51+DI52+DI53+DI54-P_A-HR_band)*BR_rate,0)","v":0},null,null,{"$f":"MAX((DL32+DL47+DL48+DL49+DL50+DL51+DL52+DL53+DL54-P_A)*BR_rate,0)+MAX((DL32+DL47+DL48+DL49+DL50+DL51+DL52+DL53+DL54-P_A-HR_band)*BR_rate,0)","v":1306},null,null,6798.4,null,null,12,6798.4,null,null,null,null,null,null,100,null,null,null,null,{"$f":"MAX((EE32+EE47+EE48+EE49+EE50+EE51+EE52+EE53+EE54-P_A)*BR_rate,0)+MAX((EE32+EE47+EE48+EE49+EE50+EE51+EE52+EE53+EE54-P_A-HR_band)*BR_rate,0)","v":11826},null,null,null,null,null,null,null,null,2313,null,null,null,null,null,null,null,null,null,null,null,null,null,null,null,4519,null,null,null,null,null,14000,null,null,null,null,25000,null,null,null,null,null,null,null,null,null,null,null,null,null,{"$f":"MAX((GC32+GC47+GC48+GC49+GC50+GC51+GC52+GC53+GC54-P_A)*BR_rate,0)+MAX((GC32+GC47+GC48+GC49+GC50+GC51+GC52+GC53+GC54-P_A-HR_band)*BR_rate,0)","v":3584},{"$f":"MAX((GD32+GD47+GD48+GD49+GD50+GD51+GD52+GD53+GD54-P_A)*BR_rate,0)+MAX((GD32+GD47+GD48+GD49+GD50+GD51+GD52+GD53+GD54-P_A-HR_band)*BR_rate,0)","v":0},null,null,null,null,null,null,null,null,null,null,null,null,null,null,null,null,null,null,{"$f":"MAX((GW32+GW47+GW48+GW49+GW50+GW51+GW52+GW53+GW54-P_A)*BR_rate,0)+MAX((GW32+GW47+GW48+GW49+GW50+GW51+GW52+GW53+GW54-P_A-HR_band)*BR_rate,0)","v":0},{"$f":"MAX((GX32+GX47+GX48+GX49+GX50+GX51+GX52+GX53+GX54-P_A)*BR_rate,0)+MAX((GX32+GX47+GX48+GX49+GX50+GX51+GX52+GX53+GX54-P_A-HR_band)*BR_rate,0)","v":17564},null,null,null,null,null,null,null,null,null,null,null,null,null,null,null,null,null,null,null,1800,null,17662,null,null,null,null,null,null,null,null,null,null,-4365.53,null,null,458,null,null,null,null,null,null,null,null,null,null,null,null,null,null,6750,null,{"$f":"MAX((IY32+IY47+IY48+IY49+IY50+IY51+IY52+IY53+IY54-P_A)*BR_rate,0)+MAX((IY32+IY47+IY48+IY49+IY50+IY51+IY52+IY53+IY54-P_A-HR_band)*BR_rate,0)","v":0},null,null,106130,null,null,null,null,null,null,null,null,2693,3615,null,null,null,null,null,null,null,"SA Monetary value (2dp)"]
[5,"","EMP3","Tips and other payments not on your P60",null,null,null,null,null,null,null,null,null,null,null,null,null,null,null,null,null,null,null,null,null,null,null,null,null,null,null,null,null,null,null,null,null,null,null,null,null,null,null,null,null,null,null,null,null,null,null,null,null,null,null,null,null,null,null,null,null,null,null,null,null,null,null,null,null,null,null,null,null,null,null,null,null,null,null,null,null,null,null,null,null,null,null,null,null,null,null,50,null,null,null,null,null,null,null,null,null,null,null,null,null,null,null,null,null,null,null,null,null,null,null,null,null,null,null,null,null,null,null,null,null,null,null,null,null,20,null,null,null,null,null,null,null,null,null,null,null,null,null,null,null,null,null,null,null,null,null,null,null,null,null,null,null,null,null,null,null,null,null,null,null,null,null,null,null,null,null,null,null,null,null,null,null,null,null,null,null,null,null,null,null,null,null,null,null,null,null,null,null,null,null,null,null,null,null,null,null,null,null,null,100,null,null,null,null,null,null,null,null,null,null,null,null,null,null,null,null,null,null,null,null,null,null,null,null,null,null,null,null,null,null,null,null,null,null,null,null,null,null,null,null,null,null,null,null,null,null,null,null,null,null,null,null,null,null,null,null,null,null,null,null,null,null,null,null,null,null,null,null,null,null,null,null,null,null,"SA Monetary value (2dp) > 0.00"]
[6,"","EMP3.1","Pension contribution - Payment from HMRC"]
[7,"","EMP4","PAYE tax reference of your employer (on your P45/P60)",null,null,null,null,null,null,null,null,null,null,null,null,null,null,null,null,null,null,null,null,null,null,null,null,null,null,null,null,null,null,null,null,null,null,null,null,null,null,null,null,"525/444",null,null,null,null,null,null,null,"750/451","354/112",null,"303/113",null,"525/236",null,null,"303/113",null,null,null,null,null,null,null,null,null,null,null,null,null,null,null,null,null,null,null,null,null,"525/236",null,null,null,null,null,null,null,null,"455/225",null,null,null,null,null,null,null,null,null,null,null,null,"245/BA12956","525/236",null,null,null,null,null,null,"354/112",null,null,"525/236",null,null,"245/jz24956","000/N",null,"245/jz24956","245/jz24956","000/N",null,null,null,null,null,"000/N",null,null,null,null,"525/444",null,null,"000/N",null,null,null,null,null,"120/AA98009",null,null,null,null,null,null,null,null,null,null,null,null,null,null,null,"000/J",null,null,null,null,null,"000/J",null,null,null,null,"245/jz24956",null,null,null,null,null,null,null,null,null,null,null,null,null,"335/A54","455/225",null,null,null,null,null,null,null,null,null,null,null,null,null,null,null,null,null,null,"455/225","303/113",null,null,null,"325/T1",null,null,null,null,null,null,null,null,null,null,null,null,null,null,null,"477/200",null,"245/jz24956",null,null,null,null,null,null,null,null,null,null,"393/ABCDE2",null,null,"245/jz24955","245/jz24956",null,null,null,null,null,null,null,null,null,null,null,null,null,"245/jz24956",null,"524/A4",null,null,"245/jz24956",null,null,null,null,null,null,null,null,"245/jz24956","442/jz22336",null,null,null,null,null,null,"Must be present","SA non-empty string"]
[8,"","EMP5","Your employer’s name\n",null,null,null,null,null,null,null,null,null,null,null,null,null,null,null,null,null,null,null,null,null,null,null,null,null,null,null,null,null,null,null,null,null,null,null,null,null,null,null,null,null,null,null,null,null,null,null,null,null,null,null,null,null,null,null,null,null,null,null,null,null,null,null,null,null,null,null,null,null,null,null,null,null,null,null,null,null,null,null,null,null,null,null,null,null,null,null,null,null,null,null,null,null,null,null,null,null,null,null,null,"HELLO CO ",null,null,null,null,null,null,null,null,null,null,null,null,null,"Oh","GABES CARS",null,"ADVENTURE FOREST LTD","Oh","GABES CARS",null,null,null,null,null,"SUPPORT",null,null,null,null,null,null,null,"WILSON LTD",null,null,null,null,null,"ARTIFICIAL LABS LTD",null,null,null,null,null,null,null,null,null,null,null,null,null,null,null,null,null,null,null,null,null,null,null,null,null,null,null,null,null,null,null,null,null,null,null,null,null,null,null,null,"Wrekin Housing ",null,null,null,null,null,null,null,null,null,null,null,null,null,null,null,null,null,null,null,null,null,null,null,null,null,null,null,null,null,null,null,null,null,null,null,null,null,null,null,null,null,null,null,null,null,null,null,null,null,null,null,null,null,null,null,null,null,null,null,null,null,null,null,null,null,null,null,null,null,null,null,null,null,null,null,null,null,null,null,null,null,null,null,null,null,null,null,null,null,null,null,null,null,null,"SA string"]
[9,"","EMP6"," If you were a company director, put ‘X’ in the box",null,null,null,null,null,null,null,null,null,null,null,null,null,null,null,null,null,null,null,null,null,null,null,null,null,null,null,null,null,null,null,null,null,null,null,null,null,null,null,null,"Y",null,null,null,null,null,null,null,"N","N",null,"N",null,"N",null,null,"N",null,null,null,null,null,null,null,null,null,null,null,null,null,null,null,null,null,null,null,null,null,"N",null,null,null,null,null,null,null,null,"N",null,null,null,null,null,null,null,null,null,null,null,null,"N","N",null,null,null,null,null,null,"N",null,null,"N",null,null,"N","Y",null,"N","N","Y",null,null,null,null,null,"N",null,null,null,null,"Y",null,null,"Y",null,null,null,null,null,"N",null,null,null,null,null,null,null,null,null,null,null,null,null,null,null,"N",null,null,null,null,null,"N",null,null,null,null,"N",null,null,null,null,null,null,null,null,null,null,null,null,null,"N","N",null,null,null,null,null,null,null,null,null,null,null,null,null,null,null,null,null,null,"N","N",null,null,null,"N",null,null,null,null,null,null,null,null,null,null,null,null,null,null,null,"N",null,"N",null,null,null,null,null,null,null,null,null,null,"N",null,null,"N","N",null,null,null,null,null,null,null,null,null,null,null,null,null,"N",null,"N",null,null,"N",null,null,null,null,null,null,null,null,"Y","N",null,null,null,null,null,null,null,"\"yes\" or \"no\""]
[10,"","EMP6.1",{"$f":"\"If you ceased being a director before 6 April \"&Tax_year_end&\", put the date the directorship ceased in the box DD MM YYYY\"","v":"If you ceased being a director before 6 April 2026, put the date the directorship ceased in the box DD MM YYYY"},null,null,null,null,null,null,null,null,null,null,null,null,null,null,null,null,null,null,null,null,null,null,null,null,null,null,null,null,null,null,null,null,null,null,null,null,null,null,null,null,{"$f":"\"02/07/\"&Tax_year_start","v":"02/07/2025"},null,null,null,null,null,null,null,null,null,null,null,null,null,null,null,null,null,null,null,null,null,null,null,null,null,null,null,null,null,null,null,null,null,null,null,null,null,null,null,null,null,null,null,null,null,null,null,null,null,null,null,null,null,null,null,null,null,null,null,null,null,null,null,null,null,null,null,null,null,null,null,null,null,null,null,null,null,null,null,null,null,null,null,null,null,null,null,null,null,{"$f":"\"02/07/\"&Tax_year_start","v":"02/07/2025"},null,null,null,null,null,null,null,null,null,null,null,null,null,null,null,null,null,null,null,null,null,null,null,null,null,null,null,null,null,null,null,null,null,null,null,null,null,null,null,null,null,null,null,null,null,null,null,null,null,null,null,null,null,null,null,null,null,null,null,null,null,null,null,null,null,null,null,null,null,null,null,null,null,null,null,null,null,null,null,null,null,null,null,null,null,null,null,null,null,null,null,null,null,null,null,null,null,null,null,null,null,null,null,null,null,null,null,null,null,null,null,null,null,null,null,null,null,null,null,null,null,null,null,null,null,null,null,null,null,null,null,null,null,null,null,null,null,null,null,null,null,null,null,"a) must be within the return year\nb) must be valid date DDMMYYYY\nc) if present EMP6 must be Y","SA MTR date"]
[11,"","EMP7","And, if the company was a close company, put ‘X’ in the box ",null,null,null,null,null,null,null,null,null,null,null,null,null,null,null,null,null,null,null,null,null,null,null,null,null,null,null,null,null,null,null,null,null,null,null,null,null,null,null,null,"Y",null,null,null,null,null,null,null,"N","N",null,"N",null,"N",null,null,"N",null,null,null,null,null,null,null,null,null,null,null,null,null,null,null,null,null,null,null,null,null,"N",null,null,null,null,null,null,null,null,"N",null,null,null,null,null,null,null,null,null,null,null,null,"N","N",null,null,null,null,null,null,"N",null,null,"N",null,null,null,"Y",null,"N","N","Y",null,null,null,null,null,"N",null,null,null,null,"Y",null,null,"Y",null,null,null,null,null,"N",null,null,null,null,null,null,null,null,null,null,null,null,null,null,null,"N",null,null,null,null,null,"N",null,null,null,null,"N",null,null,null,null,null,null,null,null,null,null,null,null,null,"N","N",null,null,null,null,null,null,null,null,null,null,null,null,null,null,null,null,null,null,"N","N",null,null,null,"N",null,null,null,null,null,null,null,null,null,null,null,null,null,null,null,"N",null,"N",null,null,null,null,null,null,null,null,null,null,"N",null,null,"N","N",null,null,null,null,null,null,null,null,null,null,null,null,null,"N",null,"N",null,null,"N",null,null,null,null,null,null,null,null,"N","N",null,null,null,null,null,null,null,"\"yes\""]
[12,"","EMP7.1","Name of this close company",null,null,null,null,null,null,null,null,null,null,null,null,null,null,null,null,null,null,null,null,null,null,null,null,null,null,null,null,null,null,null,null,null,null,null,null,null,null,null,null,"CAULIFLOWERS FLUFFY",null,null,null,null,null,null,null,null,null,null,null,null,null,null,null,null,null,null,null,null,null,null,null,null,null,null,null,null,null,null,null,null,null,null,null,null,null,null,null,null,null,null,null,null,null,null,null,null,null,null,null,null,null,null,null,null,null,null,null,null,null,null,null,null,null,null,null,null,null,null,null,null,null,null,"CAR PARTS",null,null,null,"CAR PARTS",null,null,null,null,null,null,null,null,null,null,"COMPANY1",null,null,"COMPANY2"]
[13,"","EMP7.2","Registration number for this close company",null,null,null,null,null,null,null,null,null,null,null,null,null,null,null,null,null,null,null,null,null,null,null,null,null,null,null,null,null,null,null,null,null,null,null,null,null,null,null,null,73820223,null,null,null,null,null,null,null,null,null,null,null,null,null,null,null,null,null,null,null,null,null,null,null,null,null,null,null,null,null,null,null,null,null,null,null,null,null,null,null,null,null,null,null,null,null,null,null,null,null,null,null,null,null,null,null,null,null,null,null,null,null,null,null,null,null,null,null,null,null,null,null,null,null,null,93820183,null,null,null,93820183,null,null,null,null,null,null,null,null,null,null,39201839,null,null,48499112]
[14,"","EMP7.3","Dividends recieved from this close company",null,null,null,null,null,null,null,null,null,null,null,null,null,null,null,null,null,null,null,null,null,null,null,null,null,null,null,null,null,null,null,null,null,null,null,null,null,null,null,null,0,null,null,null,null,null,null,null,null,null,null,null,null,null,null,null,null,null,null,null,null,null,null,null,null,null,null,null,null,null,null,null,null,null,null,null,null,null,null,null,null,null,null,null,null,null,null,null,null,null,null,null,null,null,null,null,null,null,null,null,null,null,null,null,null,null,null,null,null,null,null,null,null,null,null,12750,null,null,null,12750,null,null,null,null,null,null,null,null,null,null,4288,null,null,1385]
[15,"","EMP7.4","Percentage shareholding in this close company",null,null,null,null,null,null,null,null,null,null,null,null,null,null,null,null,null,null,null,null,null,null,null,null,null,null,null,null,null,null,null,null,null,null,null,null,null,null,null,null,43,null,null,null,null,null,null,null,null,null,null,null,null,null,null,null,null,null,null,null,null,null,null,null,null,null,null,null,null,null,null,null,null,null,null,null,null,null,null,null,null,null,null,null,null,null,null,null,null,null,null,null,null,null,null,null,null,null,null,null,null,null,null,null,null,null,null,null,null,null,null,null,null,null,null,50,null,null,null,50,null,null,null,null,null,null,null,null,null,null,100,null,null,1]
[16,"","EMP8","If this employment income is from inside off-payroll working engagements, put ‘X’ in the box",null,null,null,null,null,null,null,null,null,null,null,null,null,null,null,null,null,null,null,null,null,null,null,null,null,null,null,null,null,null,null,null,null,null,null,null,null,null,null,null,null,null,null,null,null,null,null,null,null,null,null,null,null,null,null,null,null,null,null,null,null,null,null,null,null,null,null,null,null,null,null,null,null,null,null,null,null,null,null,null,null,null,null,null,null,null,null,null,null,null,null,null,null,null,null,null,null,null,null,null,null,null,null,null,null,null,null,null,null,null,null,null,null,null,null,null,null,null,null,null,null,null,null,null,null,null,null,null,null,null,null,null,null,null,null,null,null,null,null,null,null,null,null,null,null,null,null,null,null,null,null,null,null,null,null,null,null,null,null,null,null,null,null,null,null,null,null,null,null,null,null,null,null,null,null,null,null,null,null,null,null,null,null,null,null,null,null,null,null,null,null,null,null,null,null,null,null,null,null,null,null,null,null,null,null,null,null,null,null,null,null,null,null,null,null,null,null,null,null,null,null,null,null,null,null,null,null,null,null,null,null,null,null,null,null,null,null,null,null,null,null,null,null,null,null,null,null,null,null,null,null,null,null,null,null,null,null,null,null,null,null,null,null,null,null,null,null,null,null,null,null,null,null,null,"No longer in use","\"yes\""]
[17,"","EMP9","Company cars and vans",null,null,null,null,null,null,null,null,null,null,null,null,null,null,null,null,null,null,null,null,null,null,null,null,null,null,null,null,null,null,null,null,null,null,null,null,null,null,null,null,3600,null,null,null,null,null,null,null,null,null,null,9000,null,null,null,null,null,null,null,null,null,null,null,null,null,null,null,null,null,null,null,null,null,null,null,null,null,null,null,null,null,null,null,null,null,null,null,null,null,null,null,null,null,null,null,null,null,null,null,null,null,null,null,null,null,null,null,null,null,null,null,null,null,null,null,null,null,null,null,null,null,null,null,null,null,null,null,null,null,null,3600,null,null,null,null,null,null,null,null,null,null,null,null,null,null,null,null,null,null,null,null,null,null,null,null,null,null,null,null,null,null,null,null,null,null,null,null,null,null,null,null,null,null,null,null,null,null,null,null,null,2250,null,null,null,null,null,null,null,null,null,null,null,null,null,null,null,null,null,null,null,null,6200,null,null,null,null,null,null,null,null,null,null,null,null,null,null,null,null,null,null,null,null,null,null,null,null,null,null,null,null,null,null,null,null,null,null,null,null,null,null,null,null,null,null,null,null,null,null,null,null,null,null,null,null,null,null,null,null,null,null,null,null,null,null,null,null,null,null,null,null,null,null,null,null,null,"SA Monetary value (2dp) > 0.00"]
[18,"","EMP10","Fuel for company cars and vans",null,null,null,null,null,null,null,null,null,null,null,null,null,null,null,null,null,null,null,null,null,null,null,null,null,null,null,null,null,null,null,null,null,null,null,null,null,null,null,null,null,null,null,null,null,null,null,null,null,null,null,null,null,null,null,null,null,null,null,null,null,null,null,null,null,null,null,null,null,null,null,null,null,null,null,null,null,null,null,null,null,null,null,null,null,null,null,null,null,null,null,null,null,null,null,null,null,null,null,null,null,null,null,null,null,null,null,null,null,null,null,null,null,null,null,null,null,null,null,null,null,null,null,null,null,null,null,null,null,null,null,null,null,null,null,null,null,null,null,null,null,null,null,null,null,null,null,null,null,null,null,null,null,null,null,null,null,null,null,null,null,null,null,null,null,null,null,null,null,null,null,null,null,null,null,null,null,null,null,null,650,null,null,null,null,null,null,null,null,null,null,null,null,null,null,null,null,null,null,null,null,null,null,null,null,null,null,null,null,null,null,null,null,null,null,null,null,null,null,null,null,null,null,null,null,null,null,null,null,null,null,null,null,null,null,null,null,null,null,null,null,null,null,null,null,null,null,null,null,null,null,null,null,null,null,null,null,null,null,null,null,null,null,null,null,null,null,null,null,null,null,null,null,null,null,"SA Monetary value (2dp) > 0.00"]
[19,"","EMP11","Private medical and dental insurance",null,null,null,null,null,null,null,null,null,null,null,null,null,null,null,null,null,null,null,null,null,null,null,null,null,null,null,null,null,null,null,null,null,null,null,null,null,null,null,null,350,null,null,null,null,null,null,null,500,null,null,null,null,null,null,null,null,null,null,null,null,null,null,null,null,null,null,null,null,null,null,null,null,null,null,null,null,null,null,null,null,null,null,null,null,null,null,null,null,null,null,null,null,null,null,null,null,null,null,null,null,null,null,null,null,null,null,null,null,null,null,null,null,null,null,null,null,null,null,null,null,null,null,null,null,null,null,null,null,null,350,null,null,2711,null,null,null,null,null,null,null,null,null,null,null,null,null,null,null,null,null,null,null,null,null,null,null,null,null,null,null,null,null,null,null,null,null,null,null,null,null,null,null,null,null,null,null,null,null,null,75,null,null,null,null,null,null,null,null,null,null,null,null,null,null,null,null,null,null,null,null,null,null,null,null,null,null,null,null,null,null,null,null,null,null,null,null,null,null,null,null,null,null,null,null,null,null,null,null,null,null,null,null,null,null,null,null,null,null,null,null,null,null,null,null,null,null,null,null,null,null,null,null,null,null,null,null,1317,null,null,null,null,null,null,null,null,null,null,null,null,null,null,null,null,null,"SA Monetary value (2dp) > 0.00"]
[20,"","EMP12","Vouchers, credit cards and excess mileage allowance",null,null,null,null,null,null,null,null,null,null,null,null,null,null,null,null,null,null,null,null,null,null,null,null,null,null,null,null,null,null,null,null,null,null,null,null,null,null,null,null,null,null,null,null,null,null,null,null,null,null,null,null,null,600,null,null,null,null,null,null,null,null,null,null,null,null,null,null,null,null,null,null,null,null,null,null,null,null,600,null,null,null,null,null,null,null,null,null,null,null,null,null,null,null,null,null,null,null,null,null,null,600,null,null,null,null,null,null,null,null,null,600,null,null,null,null,null,null,null,null,null,null,null,null,null,null,null,null,null,null,null,null,null,null,null,null,null,null,null,null,null,null,null,null,null,null,null,null,null,null,null,null,null,null,null,null,null,null,null,null,null,null,null,null,null,null,null,null,null,null,null,null,null,null,null,null,null,null,null,null,null,null,null,null,null,null,null,null,null,null,null,null,null,null,null,null,null,null,null,null,null,null,null,null,null,null,null,null,null,null,null,null,null,null,null,null,null,null,null,null,null,null,null,null,null,null,null,null,null,null,null,null,null,null,null,null,null,null,null,null,null,null,null,null,null,null,null,null,null,null,null,null,null,null,null,null,null,null,null,null,null,null,null,null,null,null,null,null,null,null,null,null,null,null,null,"SA Monetary value (2dp) > 0.00"]
[21,"","EMP13","Goods and other assets provided by your employer ",null,null,null,null,null,null,null,null,null,null,null,null,null,null,null,null,null,null,null,null,null,null,null,null,null,null,null,null,null,null,null,null,null,null,null,null,null,null,null,null,null,null,null,null,null,null,null,null,5000,null,null,null,null,null,null,null,null,null,null,null,null,null,null,null,null,null,null,null,null,null,null,null,null,null,null,null,null,null,null,null,null,null,null,null,null,null,null,null,null,null,null,null,null,null,null,null,null,null,null,null,null,null,null,null,null,null,null,null,null,null,null,null,null,null,null,null,null,null,null,null,null,null,null,null,null,null,null,null,null,null,null,null,null,null,null,null,null,null,null,null,null,null,null,null,null,null,null,null,null,null,null,null,null,null,null,null,null,null,null,null,null,null,null,null,null,null,null,null,null,null,null,null,null,null,null,null,null,null,null,null,null,null,null,null,null,null,null,null,null,null,null,null,null,null,null,null,null,null,null,null,null,null,null,null,null,null,null,null,null,null,null,null,null,null,null,null,null,null,null,null,null,null,null,null,null,null,null,null,null,null,null,null,null,null,null,null,null,null,null,null,null,null,null,null,null,null,null,null,null,null,null,null,null,null,null,null,null,null,null,null,null,null,null,null,null,null,null,null,null,null,null,null,null,null,null,"SA Monetary value (2dp) > 0.00"]
[22,"","EMP14","Accommodation provided by your employer ",null,null,null,null,null,null,null,null,null,null,null,null,null,null,null,null,null,null,null,null,null,null,null,null,null,null,null,null,null,null,null,null,null,null,null,null,null,null,null,null,null,null,null,null,null,null,null,null,7500,null,null,null,null,null,null,null,null,null,null,null,null,null,null,null,null,null,null,null,null,null,null,null,null,null,null,null,null,null,null,null,null,null,null,null,null,null,null,null,null,null,null,null,null,null,null,null,null,null,null,null,null,null,null,null,null,null,null,null,null,null,null,null,null,null,null,null,null,null,null,null,null,null,null,null,null,null,null,null,null,null,null,null,null,null,null,null,null,null,null,null,null,null,null,null,null,null,null,null,null,null,null,null,null,null,null,null,null,null,null,null,null,null,null,null,null,null,null,null,null,null,null,null,null,null,null,null,null,null,null,null,null,null,null,null,null,null,null,null,null,null,null,null,null,null,null,null,null,null,null,null,null,null,null,null,null,null,null,null,null,null,null,null,null,null,null,null,null,null,null,null,null,null,null,null,null,null,null,null,null,null,null,null,null,null,null,null,null,null,null,null,null,null,null,null,null,null,null,null,null,null,null,null,null,null,null,null,null,null,null,null,null,null,null,null,null,null,null,null,null,null,null,null,null,null,null,"SA Monetary value (2dp) > 0.00"]
[23,{"$f":"IF(EMP_B_IND>1,IF(HLOOKUP(EMP_B_IND-1,EMP_RANGE_B,A53)=\"\",\"\",HLOOKUP(EMP_B_IND-1,EMP_RANGE_B,A53)),\"\")","v":""},"EMP15","Other benefits (including interest-free and low interest loans)",null,null,null,null,null,null,null,null,null,null,null,null,null,null,null,null,null,null,null,null,null,null,null,null,null,null,null,null,null,null,null,null,null,null,null,null,null,null,null,null,7500,null,null,null,null,null,null,null,null,null,null,null,null,null,null,null,null,null,null,null,null,null,null,null,null,null,null,null,null,null,null,null,null,null,null,null,null,null,null,null,null,null,null,null,null,null,null,null,null,null,null,null,null,null,null,null,null,null,null,null,null,null,null,null,null,null,null,null,null,null,null,null,null,null,null,null,null,null,null,null,null,null,null,null,null,null,null,null,null,null,7500,null,null,4794,null,null,null,null,null,null,null,null,null,null,null,null,null,null,null,null,null,null,null,null,null,null,null,null,null,null,null,null,null,null,null,null,null,null,null,null,null,null,null,null,null,null,null,null,null,null,null,null,null,null,null,null,null,null,null,null,null,null,null,null,null,null,null,null,null,null,null,null,null,null,null,null,null,null,null,null,null,null,null,null,null,null,null,null,null,null,null,null,null,null,null,null,null,null,null,null,null,null,null,null,null,null,null,null,null,null,null,null,null,null,null,null,null,null,null,null,null,null,null,null,null,null,null,null,null,null,null,null,null,null,null,null,null,null,null,null,null,null,null,null,null,"SA Monetary value (2dp) > 0.00"]
[24,"","EMP16","Expenses payments received and balancing charges",null,null,null,null,null,null,null,null,null,null,null,null,null,null,null,null,null,null,null,null,null,null,null,null,null,null,null,null,null,null,null,null,null,null,null,null,null,null,null,null,4500,null,null,null,null,null,null,null,null,null,null,null,null,null,null,null,null,null,null,null,null,null,null,null,null,null,null,null,null,null,null,null,null,null,null,null,null,null,null,null,null,null,null,null,null,null,null,null,null,null,null,null,null,null,null,null,null,null,null,null,null,null,null,null,null,null,null,null,null,null,null,null,null,null,null,null,null,null,null,null,null,null,null,null,null,null,null,null,null,null,4500,null,null,null,null,null,null,null,null,null,null,null,null,null,null,null,null,null,null,null,null,null,null,null,null,null,null,null,null,null,null,null,null,null,null,null,null,null,null,null,null,null,null,null,null,null,null,null,null,null,null,null,null,null,null,null,null,null,null,null,null,null,null,null,null,null,null,null,null,null,null,null,null,null,null,null,null,null,null,null,null,null,null,null,null,null,null,null,null,null,null,null,null,null,null,null,null,null,null,null,null,null,null,null,null,null,null,null,null,null,null,null,null,null,null,null,null,null,null,null,null,null,null,null,null,null,null,null,null,null,null,null,null,null,null,null,null,null,null,null,null,null,null,null,null,"SA Monetary value (2dp) > 0.00"]
[25,"","EMP17","Business travel and subsistence expenses",null,null,null,null,null,null,null,null,null,null,null,null,null,null,null,null,null,null,null,null,null,null,null,null,null,null,null,null,null,null,null,null,null,null,null,null,null,null,null,null,5000,null,null,null,null,null,null,null,null,null,null,null,null,null,null,null,null,null,null,null,null,null,null,null,null,null,null,null,null,null,null,null,null,null,null,null,null,null,null,null,null,null,null,null,null,null,null,null,null,null,null,null,null,null,null,null,null,null,null,null,null,null,null,null,null,null,null,null,null,null,null,null,null,null,null,null,null,null,null,null,null,null,null,null,null,null,null,null,null,null,5000,null,null,null,null,null,null,null,null,null,null,null,null,null,null,null,null,null,null,null,null,null,null,null,null,null,null,null,null,null,null,null,null,null,null,null,null,null,null,null,null,null,null,null,null,null,null,null,null,null,null,null,null,null,null,null,null,null,null,null,null,null,null,null,null,null,null,null,null,null,null,null,null,null,null,null,null,null,null,null,null,null,null,null,null,null,null,null,null,null,null,null,null,null,null,null,null,null,null,null,null,null,null,null,null,null,null,null,null,null,null,null,null,null,null,null,null,null,null,null,null,null,null,null,null,null,null,null,null,null,null,null,null,null,null,null,null,null,null,null,null,null,null,null,null,"SA Monetary value (2dp) > 0.00"]
[26,"","EMP18","Fixed deductions for expenses",null,null,null,null,null,null,null,null,null,null,null,null,null,null,null,null,null,null,null,null,null,null,null,null,null,null,null,null,null,null,null,null,null,null,null,null,null,null,null,null,null,null,null,null,null,null,null,null,null,null,null,null,null,null,null,null,null,null,null,null,null,null,null,null,null,null,null,null,null,null,null,null,null,null,null,null,null,null,null,null,null,null,null,null,null,null,null,null,null,null,null,null,null,null,null,null,null,null,null,null,null,null,null,null,null,null,null,null,null,null,null,null,null,null,null,null,null,null,null,null,null,null,null,null,null,null,null,null,null,null,null,null,null,null,null,null,null,null,null,null,null,null,null,null,null,null,null,null,null,null,null,null,null,null,null,null,null,null,null,null,null,null,null,null,null,null,null,null,null,null,null,null,null,null,null,null,null,null,null,null,75,null,null,null,null,null,null,null,null,null,null,null,null,null,null,null,null,null,null,null,null,null,null,null,null,null,null,null,null,null,null,null,null,null,null,null,null,null,null,null,null,null,null,null,null,null,null,null,null,null,null,null,null,null,null,null,null,null,null,null,null,null,null,null,null,null,null,null,null,null,null,null,null,null,null,null,null,null,null,null,null,null,null,null,null,null,null,null,null,null,null,null,null,null,null,"SA Monetary value (2dp) > 0.00"]
[27,"","EMP19","Professional fees and subscriptions ",null,null,null,null,null,null,null,null,null,null,null,null,null,null,null,null,null,null,null,null,null,null,null,null,null,null,null,null,null,null,null,null,null,null,null,null,null,null,null,null,null,null,null,null,null,null,null,null,175,null,null,null,null,150,null,null,null,null,null,null,null,null,null,null,null,null,null,null,null,null,null,null,null,null,null,null,null,null,150,null,null,null,null,null,null,null,null,null,null,null,null,null,null,null,null,null,null,null,null,null,null,150,null,null,null,null,null,null,null,null,null,150,null,null,null,null,null,null,null,null,null,null,null,null,null,null,null,null,null,null,null,null,null,null,null,null,null,null,null,null,null,null,null,null,null,null,null,null,null,null,null,null,null,null,null,null,null,null,null,null,null,null,null,null,null,null,null,null,null,null,null,null,null,null,null,null,null,null,null,null,null,null,null,null,null,null,null,null,null,null,null,null,null,null,null,null,null,null,null,null,null,null,null,null,null,null,null,null,null,null,null,null,null,null,null,null,null,null,null,null,null,null,null,null,null,null,null,null,null,null,null,null,null,null,null,null,null,null,null,null,null,null,null,null,null,null,null,null,null,null,null,null,null,null,null,null,null,null,null,null,null,null,null,null,null,null,null,null,null,null,null,null,null,null,null,"SA Monetary value (2dp) > 0.00"]
[28,"","EMP20"," Other expenses and capital allowances ",null,null,null,null,null,null,null,null,null,null,null,null,null,null,null,null,null,null,null,null,null,null,null,null,null,null,null,null,null,null,null,null,null,null,null,null,null,null,null,null,null,null,null,null,null,null,null,null,null,null,null,null,null,85,null,null,null,null,null,null,null,null,null,null,null,null,null,null,null,null,null,null,null,null,null,null,null,null,85,null,null,null,null,null,null,null,null,null,null,null,null,null,null,null,null,null,null,null,null,null,null,85,null,null,null,null,null,null,null,null,null,85,null,null,null,null,null,null,null,null,null,null,null,null,null,300,null,null,null,null,null,null,null,null,null,null,null,null,null,null,null,null,null,null,null,null,null,null,null,null,null,null,null,null,null,null,null,null,null,null,null,null,null,null,null,null,null,null,null,null,null,null,null,null,null,null,null,null,null,null,null,null,null,null,null,null,null,null,null,null,null,null,null,null,null,null,null,null,null,null,null,null,null,null,null,null,null,null,null,null,null,null,null,null,null,null,null,null,null,null,null,null,null,null,null,null,null,null,null,null,null,null,null,null,null,null,null,null,null,null,null,null,null,null,null,null,null,null,null,null,null,null,null,null,null,null,null,null,null,null,null,null,null,null,null,null,null,null,null,null,null,null,null,null,null,"SA Monetary value (2dp) > 0.00"]
[]
["row",{"$f":"\"selected \"&MOR_IND-1","v":"selected 0"},"MOR",null,1,2,3,4,5,6,7,8,9,10,11,12,13,14,15,16,17,18,19,20,21,22,23,24,25,26,27,28,29,30,31,32,33,34,35,36,37,38,39,40,41,42,43,44,45,46,47,48,49,50,51,52,53,54,55,56,57,58,59,60,61,62,63,64,65,66,67,68,69,70,71,72,73,74,75,76,77,78,79,80,81,82,83,84,85,86,87,88,89,90,91,92,93,94,95,96,97,98,99,100,101,102,103,104,105,106,107,108,109,110,111,112,113,114,115,116,117,118,119,120,121,122,123,124,125,126,127,128,129,130,131,132,133,134,135,136,137,138,139,140,141,142,143,144,145,146,147,148,149,150,151,152,153,154,155,156,157,158,159,160,161,162,163,164,165,166,167,168,169,170,171,172,173,174,175,176,177,178,179,180,181,182,183,184,185,186,187,188,189,190,191,192,193,194,195,196,197,198,199,200,201,202,203,204,205,206,207,208,209,210,211,212,213,214,215,216,217,218,219,220,221,222,223,224,225,226,227,228,229,230,231,232,233,234,235,236,237,238,239,240,241,242,243,244,245,246,247,248,249,250,251,252,253,254,255,256,257,258,259,260,261,262,263,264,265,266,267,268,269,270,271,272,273,null,null,"Type"]
[2,{"$f":"IF(MOR_IND>1,IF(HLOOKUP(MOR_IND-1,MOR_RANGE,A61)=\"\",\"\",HLOOKUP(MOR_IND-1,MOR_RANGE,A61)),\"\")","v":""},"MOR1","Nature of your post or appointment",null,null,null,null,null,null,null,null,null,null,null,null,null,null,null,null,null,null,null,null,null,null,null,null,null,null,null,null,null,null,null,null,null,null,null,null,null,null,null,null,null,null,null,null,null,null,null,null,null,null,null,null,null,null,null,null,null,null,null,null,null,null,null,null,null,null,null,null,null,null,null,null,null,null,null,null,null,null,null,null,null,null,null,null,null,null,null,null,null,null,null,null,null,"Rabbi",null,null,null,null,null,null,null,null,null,null,null,null,null,null,null,null,null,null,null,null,null,null,null,null,null,null,null,null,null,null,null,null,"Reverend","Vicar","Rabbi",null,null,null,null,null,null,null,null,null,null,null,null,null,null,null,null,null,null,null,null,null,null,null,null,"Rabbi",null,null,null,null,null,null,null,null,null,null,null,null,null,null,null,null,null,null,null,null,null,null,null,null,null,null,null,null,null,null,null,null,null,null,null,null,null,null,null,null,null,null,null,null,null,null,null,null,null,null,null,null,null,null,null,null,null,null,null,null,null,null,null,null,null,null,null,null,null,null,null,null,null,null,null,null,null,null,null,null,null,null,null,null,null,null,null,null,null,null,null,null,null,null,null,null,null,null,null,"Priest",null,null,null,null,null,null,null,null,null,null,null,null,null,null,null,null,null,null,null,null,null,"SA string"]
[3,"","MOR2","Salary or stipend",null,null,null,null,null,null,null,null,null,null,null,null,null,null,null,null,null,null,null,null,null,null,null,null,null,null,null,null,null,null,null,null,null,null,null,null,null,null,null,null,null,null,null,null,null,null,null,null,null,null,null,null,null,null,null,null,null,null,null,null,null,null,null,null,null,null,null,null,null,null,null,null,null,null,null,null,null,null,null,null,null,null,null,null,null,null,null,null,null,null,null,null,null,14767,null,null,null,null,null,null,null,null,null,null,null,null,null,null,null,null,null,null,null,null,null,null,null,null,null,null,null,null,null,null,null,null,4500,15250,14767,null,null,null,null,null,null,null,null,null,null,null,null,null,null,null,null,null,null,null,null,null,null,null,null,14767,null,null,null,null,null,null,null,null,null,null,null,null,null,null,null,null,null,null,null,null,null,null,null,null,null,null,null,null,null,null,null,null,null,null,null,null,null,null,null,null,null,null,null,null,null,null,null,null,null,null,null,null,null,null,null,null,null,null,null,null,null,null,null,null,null,null,null,null,null,null,null,null,null,null,null,null,null,null,null,null,null,null,null,null,null,null,null,null,null,null,null,null,null,null,null,null,null,null,null,8799,null,null,null,null,null,null,null,null,null,null,null,null,null,null,null,null,null,null,null,null,null,"SA Monetary value (2dp) > 0.00"]
[4,"","MOR2.1","Payrolled benefits included in box 2"]
[5,"","MOR3","Tax taken off box 2",null,null,null,null,null,null,null,null,null,null,null,null,null,null,null,null,null,null,null,null,null,null,null,null,null,null,null,null,null,null,null,null,null,null,null,null,null,null,null,null,null,null,null,null,null,null,null,null,null,null,null,null,null,null,null,null,null,null,null,null,null,null,null,null,null,null,null,null,null,null,null,null,null,null,null,null,null,null,null,null,null,null,null,null,null,null,null,null,null,null,null,null,null,null,null,null,null,null,null,null,null,null,null,null,null,null,null,null,null,null,null,null,null,null,null,null,null,null,null,null,null,null,null,null,null,null,-250,{"$f":"MAX((EB62-P_A)*BR_rate,0)+MAX((EB62-P_A-HR_band)*BR_rate,0)","v":536},{"$f":"MAX((EC62-P_A)*BR_rate,0)+MAX((EC62-P_A-HR_band)*BR_rate,0)","v":439.40000000000003},null,null,null,null,null,null,null,null,null,null,null,null,null,null,null,null,null,null,null,null,null,null,null,null,{"$f":"MAX((FB62-P_A)*BR_rate,0)+MAX((FB62-P_A-HR_band)*BR_rate,0)","v":439.40000000000003},null,null,null,null,null,null,null,null,null,null,null,null,null,null,null,null,null,null,null,null,null,null,null,null,null,null,null,null,null,null,null,null,null,null,null,null,null,null,null,null,null,null,null,null,null,null,null,null,null,null,null,null,null,null,null,null,null,null,null,null,null,null,null,null,null,null,null,null,null,null,null,null,null,null,null,null,null,null,null,null,null,null,null,null,null,null,null,null,null,null,null,null,null,null,null,null,null,null,null,250,null,null,null,null,null,null,null,null,null,null,null,null,null,null,null,null,null,null,null,null,null,"SA Monetary value (2dp) >= 0.00"]
[6,"","MOR4","Fees and offerings",null,null,null,null,null,null,null,null,null,null,null,null,null,null,null,null,null,null,null,null,null,null,null,null,null,null,null,null,null,null,null,null,null,null,null,null,null,null,null,null,null,null,null,null,null,null,null,null,null,null,null,null,null,null,null,null,null,null,null,null,null,null,null,null,null,null,null,null,null,null,null,null,null,null,null,null,null,null,null,null,null,null,null,null,null,null,null,null,null,null,null,null,null,null,null,null,null,null,null,null,null,null,null,null,null,null,null,null,null,null,null,null,null,null,null,null,null,null,null,null,null,null,null,null,null,null,null,1200,null,null,null,null,null,null,null,null,null,null,null,null,null,null,null,null,null,null,null,null,null,null,null,null,null,null,null,null,null,null,null,null,null,null,null,null,null,null,null,null,null,null,null,null,null,null,null,null,null,null,null,null,null,null,null,null,null,null,null,null,null,null,null,null,null,null,null,null,null,null,null,null,null,null,null,null,null,null,null,null,null,null,null,null,null,null,null,null,null,null,null,null,null,null,null,null,null,null,null,null,null,null,null,null,null,null,null,null,null,null,null,null,null,null,null,null,null,null,null,null,null,null,null,null,null,null,null,null,null,null,null,null,null,null,null,null,null,null,null,null,null,null,null,null,null,null,null,"SA Monetary value (2dp) > 0.00"]
[7,"","MOR4.1","Pension contribution - Payment from HMRC"]
[8,"","MOR5","Vicarage expenses paid for you",null,null,null,null,null,null,null,null,null,null,null,null,null,null,null,null,null,null,null,null,null,null,null,null,null,null,null,null,null,null,null,null,null,null,null,null,null,null,null,null,null,null,null,null,null,null,null,null,null,null,null,null,null,null,null,null,null,null,null,null,null,null,null,null,null,null,null,null,null,null,null,null,null,null,null,null,null,null,null,null,null,null,null,null,null,null,null,null,null,null,null,null,null,null,null,null,null,null,null,null,null,null,null,null,null,null,null,null,null,null,null,null,null,null,null,null,null,null,null,null,null,null,null,null,null,null,null,1525,null,null,null,null,null,null,null,null,null,null,null,null,null,null,null,null,null,null,null,null,null,null,null,null,null,null,null,null,null,null,null,null,null,null,null,null,null,null,null,null,null,null,null,null,null,null,null,null,null,null,null,null,null,null,null,null,null,null,null,null,null,null,null,null,null,null,null,null,null,null,null,null,null,null,null,null,null,null,null,null,null,null,null,null,null,null,null,null,null,null,null,null,null,null,null,null,null,null,null,null,null,null,null,null,null,null,null,null,null,null,null,null,null,null,null,null,null,null,null,null,null,null,null,null,null,null,null,null,null,null,null,null,null,null,null,null,null,null,null,null,null,null,null,null,null,null,null,"SA Monetary value (2dp) > 0.00"]
[9,"","MOR6","Personal expenses paid for you,",null,null,null,null,null,null,null,null,null,null,null,null,null,null,null,null,null,null,null,null,null,null,null,null,null,null,null,null,null,null,null,null,null,null,null,null,null,null,null,null,null,null,null,null,null,null,null,null,null,null,null,null,null,null,null,null,null,null,null,null,null,null,null,null,null,null,null,null,null,null,null,null,null,null,null,null,null,null,null,null,null,null,null,null,null,null,null,null,null,null,null,null,null,2500,null,null,null,null,null,null,null,null,null,null,null,null,null,null,null,null,null,null,null,null,null,null,null,null,null,null,null,null,null,null,null,null,null,null,2500,null,null,null,null,null,null,null,null,null,null,null,null,null,null,null,null,null,null,null,null,null,null,null,null,2500,null,null,null,null,null,null,null,null,null,null,null,null,null,null,null,null,null,null,null,null,null,null,null,null,null,null,null,null,null,null,null,null,null,null,null,null,null,null,null,null,null,null,null,null,null,null,null,null,null,null,null,null,null,null,null,null,null,null,null,null,null,null,null,null,null,null,null,null,null,null,null,null,null,null,null,null,null,null,null,null,null,null,null,null,null,null,null,null,null,null,null,null,null,null,null,null,null,null,null,null,null,null,null,null,null,null,null,null,null,null,null,null,null,null,null,null,null,null,null,null,null,"SA Monetary value (2dp) > 0.00"]
[10,"","MOR7","Excess mileage allowance and passenger payments",null,null,null,null,null,null,null,null,null,null,null,null,null,null,null,null,null,null,null,null,null,null,null,null,null,null,null,null,null,null,null,null,null,null,null,null,null,null,null,null,null,null,null,null,null,null,null,null,null,null,null,null,null,null,null,null,null,null,null,null,null,null,null,null,null,null,null,null,null,null,null,null,null,null,null,null,null,null,null,null,null,null,null,null,null,null,null,null,null,null,null,null,null,1600,null,null,null,null,null,null,null,null,null,null,null,null,null,null,null,null,null,null,null,null,null,null,null,null,null,null,null,null,null,null,null,null,null,null,1600,null,null,null,null,null,null,null,null,null,null,null,null,null,null,null,null,null,null,null,null,null,null,null,null,1600,null,null,null,null,null,null,null,null,null,null,null,null,null,null,null,null,null,null,null,null,null,null,null,null,null,null,null,null,null,null,null,null,null,null,null,null,null,null,null,null,null,null,null,null,null,null,null,null,null,null,null,null,null,null,null,null,null,null,null,null,null,null,null,null,null,null,null,null,null,null,null,null,null,null,null,null,null,null,null,null,null,null,null,null,null,null,null,null,null,null,null,null,null,null,null,null,null,null,null,null,null,null,null,null,null,null,null,null,null,null,null,null,null,null,null,null,null,null,null,null,null,"SA Monetary value (2dp) > 0.00"]
[11,"","MOR8","Round-sum expenses and rent allowances",null,null,null,null,null,null,null,null,null,null,null,null,null,null,null,null,null,null,null,null,null,null,null,null,null,null,null,null,null,null,null,null,null,null,null,null,null,null,null,null,null,null,null,null,null,null,null,null,null,null,null,null,null,null,null,null,null,null,null,null,null,null,null,null,null,null,null,null,null,null,null,null,null,null,null,null,null,null,null,null,null,null,null,null,null,null,null,null,null,null,null,null,null,352,null,null,null,null,null,null,null,null,null,null,null,null,null,null,null,null,null,null,null,null,null,null,null,null,null,null,null,null,null,null,null,null,null,null,352,null,null,null,null,null,null,null,null,null,null,null,null,null,null,null,null,null,null,null,null,null,null,null,null,352,null,null,null,null,null,null,null,null,null,null,null,null,null,null,null,null,null,null,null,null,null,null,null,null,null,null,null,null,null,null,null,null,null,null,null,null,null,null,null,null,null,null,null,null,null,null,null,null,null,null,null,null,null,null,null,null,null,null,null,null,null,null,null,null,null,null,null,null,null,null,null,null,null,null,null,null,null,null,null,null,null,null,null,null,null,null,null,null,null,null,null,null,null,null,null,null,null,null,null,null,null,null,null,null,null,null,null,null,null,null,null,null,null,null,null,null,null,null,null,null,null,"SA Monetary value (2dp) > 0.00"]
[12,"","MOR9","Tax taken off box 8",null,null,null,null,null,null,null,null,null,null,null,null,null,null,null,null,null,null,null,null,null,null,null,null,null,null,null,null,null,null,null,null,null,null,null,null,null,null,null,null,null,null,null,null,null,null,null,null,null,null,null,null,null,null,null,null,null,null,null,null,null,null,null,null,null,null,null,null,null,null,null,null,null,null,null,null,null,null,null,null,null,null,null,null,null,null,null,null,null,null,null,null,null,null,null,null,null,null,null,null,null,null,null,null,null,null,null,null,null,null,null,null,null,null,null,null,null,null,null,null,null,null,null,null,null,null,null,null,null,null,null,null,null,null,null,null,null,null,null,null,null,null,null,null,null,null,null,null,null,null,null,null,null,null,null,null,null,null,null,null,null,null,null,null,null,null,null,null,null,null,null,null,null,null,null,null,null,null,null,null,null,null,null,null,null,null,null,null,null,null,null,null,null,null,null,null,null,null,null,null,null,null,null,null,null,null,null,null,null,null,null,null,null,null,null,null,null,null,null,null,null,null,null,null,null,null,null,null,null,null,null,null,null,null,null,null,null,null,null,null,null,null,null,null,null,null,null,null,null,null,null,null,null,null,null,null,null,null,null,null,null,null,null,null,null,null,null,null,null,null,null,null,null,null,null,"SA Monetary value (2dp) >= 0.00"]
[13,"","MOR10","Other income from your post or appointment",null,null,null,null,null,null,null,null,null,null,null,null,null,null,null,null,null,null,null,null,null,null,null,null,null,null,null,null,null,null,null,null,null,null,null,null,null,null,null,null,null,null,null,null,null,null,null,null,null,null,null,null,null,null,null,null,null,null,null,null,null,null,null,null,null,null,null,null,null,null,null,null,null,null,null,null,null,null,null,null,null,null,null,null,null,null,null,null,null,null,null,null,null,1133,null,null,null,null,null,null,null,null,null,null,null,null,null,null,null,null,null,null,null,null,null,null,null,null,null,null,null,null,null,null,null,null,null,755,1133,null,null,null,null,null,null,null,null,null,null,null,null,null,null,null,null,null,null,null,null,null,null,null,null,1133,null,null,null,null,null,null,null,null,null,null,null,null,null,null,null,null,null,null,null,null,null,null,null,null,null,null,null,null,null,null,null,null,null,null,null,null,null,null,null,null,null,null,null,null,null,null,null,null,null,null,null,null,null,null,null,null,null,null,null,null,null,null,null,null,null,null,null,null,null,null,null,null,null,null,null,null,null,null,null,null,null,null,null,null,null,null,null,null,null,null,null,null,null,null,null,null,null,null,null,null,null,null,null,null,null,null,null,null,null,null,null,null,null,null,null,null,null,null,null,null,null,"SA Monetary value (2dp) >= 0.00"]
[14,"","MOR11","Tax taken off box 10",null,null,null,null,null,null,null,null,null,null,null,null,null,null,null,null,null,null,null,null,null,null,null,null,null,null,null,null,null,null,null,null,null,null,null,null,null,null,null,null,null,null,null,null,null,null,null,null,null,null,null,null,null,null,null,null,null,null,null,null,null,null,null,null,null,null,null,null,null,null,null,null,null,null,null,null,null,null,null,null,null,null,null,null,null,null,null,null,null,null,null,null,null,75,null,null,null,null,null,null,null,null,null,null,null,null,null,null,null,null,null,null,null,null,null,null,null,null,null,null,null,null,null,null,null,null,null,null,75,null,null,null,null,null,null,null,null,null,null,null,null,null,null,null,null,null,null,null,null,null,null,null,null,75,null,null,null,null,null,null,null,null,null,null,null,null,null,null,null,null,null,null,null,null,null,null,null,null,null,null,null,null,null,null,null,null,null,null,null,null,null,null,null,null,null,null,null,null,null,null,null,null,null,null,null,null,null,null,null,null,null,null,null,null,null,null,null,null,null,null,null,null,null,null,null,null,null,null,null,null,null,null,null,null,null,null,null,null,null,null,null,null,null,null,null,null,null,null,null,null,null,null,null,null,null,null,null,null,null,null,null,null,null,null,null,null,null,null,null,null,null,null,null,null,"Equal to MOR2 + MOR4 + MOR5 + MOR6 + MOR7 + MOR8 + MOR10","SA Monetary value (2dp) >= 0.00"]
[15,"","MOR12","Total income as a minister of religion (box 2 + boxes 4 to 8 + box 10)",null,null,null,null,null,null,null,null,null,null,null,null,null,null,null,null,null,null,null,null,null,null,null,null,null,null,null,null,null,null,null,null,null,null,null,null,null,null,null,null,null,null,null,null,null,null,null,null,null,null,null,null,null,null,null,null,null,null,null,null,null,null,null,null,null,null,null,null,null,null,null,null,null,null,null,null,null,null,null,null,null,null,null,null,null,null,null,null,null,null,null,null,null,{"$f":"CT62+CT65+CT67+CT68+CT69+CT70+CT72","v":20352},null,null,null,null,null,null,null,null,null,null,null,null,null,null,null,null,null,null,null,null,null,null,null,null,null,null,null,null,null,null,null,null,{"$f":"EA62+EA65+EA67+EA68+EA69+EA70+EA72","v":4500},{"$f":"EB62+EB65+EB67+EB68+EB69+EB70+EB72","v":18730},{"$f":"EC62+EC65+EC67+EC68+EC69+EC70+EC72","v":20352},null,null,null,null,null,null,null,null,null,null,null,null,null,null,null,null,null,null,null,null,null,null,null,null,{"$f":"FB62+FB65+FB67+FB68+FB69+FB70+FB72","v":20352},null,null,null,null,null,null,null,null,null,null,null,null,null,null,null,null,null,null,null,null,null,null,null,null,null,null,null,null,null,null,null,null,null,null,null,null,null,null,null,null,null,null,null,null,null,null,null,null,null,null,null,null,null,null,null,null,null,null,null,null,null,null,null,null,null,null,null,null,null,null,null,null,null,null,null,null,null,null,null,null,null,null,null,null,null,null,null,null,null,null,null,null,null,null,null,null,null,null,null,{"$f":"IX62+IX65+IX67+IX68+IX69+IX70+IX72","v":8799},null,null,null,null,null,null,null,null,null,null,null,null,null,null,null,null,null,null,null,null,null,"SA Monetary value (2dp) > 0.00"]
[16,"","MOR13","Vicarage services benefits received",null,null,null,null,null,null,null,null,null,null,null,null,null,null,null,null,null,null,null,null,null,null,null,null,null,null,null,null,null,null,null,null,null,null,null,null,null,null,null,null,null,null,null,null,null,null,null,null,null,null,null,null,null,null,null,null,null,null,null,null,null,null,null,null,null,null,null,null,null,null,null,null,null,null,null,null,null,null,null,null,null,null,null,null,null,null,null,null,null,null,null,null,null,465,null,null,null,null,null,null,null,null,null,null,null,null,null,null,null,null,null,null,null,null,null,null,null,null,null,null,null,null,null,null,null,null,null,480,465,null,null,null,null,null,null,null,null,null,null,null,null,null,null,null,null,null,null,null,null,null,null,null,null,465,null,null,null,null,null,null,null,null,null,null,null,null,null,null,null,null,null,null,null,null,null,null,null,null,null,null,null,null,null,null,null,null,null,null,null,null,null,null,null,null,null,null,null,null,null,null,null,null,null,null,null,null,null,null,null,null,null,null,null,null,null,null,null,null,null,null,null,null,null,null,null,null,null,null,null,null,null,null,null,null,null,null,null,null,null,null,null,null,null,null,null,null,null,null,null,null,null,null,null,null,null,null,null,null,null,null,null,null,null,null,null,null,null,null,null,null,null,null,null,null,null,"SA Monetary value (2dp) > 0.00"]
[17,"","MOR14","Car provided for you",null,null,null,null,null,null,null,null,null,null,null,null,null,null,null,null,null,null,null,null,null,null,null,null,null,null,null,null,null,null,null,null,null,null,null,null,null,null,null,null,null,null,null,null,null,null,null,null,null,null,null,null,null,null,null,null,null,null,null,null,null,null,null,null,null,null,null,null,null,null,null,null,null,null,null,null,null,null,null,null,null,null,null,null,null,null,null,null,null,null,null,null,null,null,null,null,null,null,null,null,null,null,null,null,null,null,null,null,null,null,null,null,null,null,null,null,null,null,null,null,null,null,null,null,null,null,null,1675,null,null,null,null,null,null,null,null,null,null,null,null,null,null,null,null,null,null,null,null,null,null,null,null,null,null,null,null,null,null,null,null,null,null,null,null,null,null,null,null,null,null,null,null,null,null,null,null,null,null,null,null,null,null,null,null,null,null,null,null,null,null,null,null,null,null,null,null,null,null,null,null,null,null,null,null,null,null,null,null,null,null,null,null,null,null,null,null,null,null,null,null,null,null,null,null,null,null,null,null,null,null,null,null,null,null,null,null,null,null,null,null,null,null,null,null,null,null,null,null,null,null,null,null,null,1800,null,null,null,null,null,null,null,null,null,null,null,null,null,null,null,null,null,null,null,null,null,"SA Monetary value (2dp) > 0.00"]
[18,"","MOR15","Fuel for car provided for you",null,null,null,null,null,null,null,null,null,null,null,null,null,null,null,null,null,null,null,null,null,null,null,null,null,null,null,null,null,null,null,null,null,null,null,null,null,null,null,null,null,null,null,null,null,null,null,null,null,null,null,null,null,null,null,null,null,null,null,null,null,null,null,null,null,null,null,null,null,null,null,null,null,null,null,null,null,null,null,null,null,null,null,null,null,null,null,null,null,null,null,null,null,null,null,null,null,null,null,null,null,null,null,null,null,null,null,null,null,null,null,null,null,null,null,null,null,null,null,null,null,null,null,null,null,null,null,null,null,null,null,null,null,null,null,null,null,null,null,null,null,null,null,null,null,null,null,null,null,null,null,null,null,null,null,null,null,null,null,null,null,null,null,null,null,null,null,null,null,null,null,null,null,null,null,null,null,null,null,null,null,null,null,null,null,null,null,null,null,null,null,null,null,null,null,null,null,null,null,null,null,null,null,null,null,null,null,null,null,null,null,null,null,null,null,null,null,null,null,null,null,null,null,null,null,null,null,null,null,null,null,null,null,null,null,null,null,null,null,null,null,null,null,null,null,null,null,null,null,null,null,null,null,600,null,null,null,null,null,null,null,null,null,null,null,null,null,null,null,null,null,null,null,null,null,"SA Monetary value (2dp) > 0.00"]
[19,"","MOR16","Interest-free and low interest loans",null,null,null,null,null,null,null,null,null,null,null,null,null,null,null,null,null,null,null,null,null,null,null,null,null,null,null,null,null,null,null,null,null,null,null,null,null,null,null,null,null,null,null,null,null,null,null,null,null,null,null,null,null,null,null,null,null,null,null,null,null,null,null,null,null,null,null,null,null,null,null,null,null,null,null,null,null,null,null,null,null,null,null,null,null,null,null,null,null,null,null,null,null,null,null,null,null,null,null,null,null,null,null,null,null,null,null,null,null,null,null,null,null,null,null,null,null,null,null,null,null,null,null,null,null,null,1250,null,null,null,null,null,null,null,null,null,null,null,null,null,null,null,null,null,null,null,null,null,null,null,null,null,null,null,null,null,null,null,null,null,null,null,null,null,null,null,null,null,null,null,null,null,null,null,null,null,null,null,null,null,null,null,null,null,null,null,null,null,null,null,null,null,null,null,null,null,null,null,null,null,null,null,null,null,null,null,null,null,null,null,null,null,null,null,null,null,null,null,null,null,null,null,null,null,null,null,null,null,null,null,null,null,null,null,null,null,null,null,null,null,null,null,null,null,null,null,null,null,null,null,null,null,null,3000,null,null,null,null,null,null,null,null,null,null,null,null,null,null,null,null,null,null,null,null,null,"SA Monetary value (2dp) > 0.00"]
[20,"","MOR17","Expenses payments made to you",null,null,null,null,null,null,null,null,null,null,null,null,null,null,null,null,null,null,null,null,null,null,null,null,null,null,null,null,null,null,null,null,null,null,null,null,null,null,null,null,null,null,null,null,null,null,null,null,null,null,null,null,null,null,null,null,null,null,null,null,null,null,null,null,null,null,null,null,null,null,null,null,null,null,null,null,null,null,null,null,null,null,null,null,null,null,null,null,null,null,null,null,null,null,null,null,null,null,null,null,null,null,null,null,null,null,null,null,null,null,null,null,null,null,null,null,null,null,null,null,null,null,null,null,null,null,750,1000,null,null,null,null,null,null,null,null,null,null,null,null,null,null,null,null,null,null,null,null,null,null,null,null,null,null,null,null,null,null,null,null,null,null,null,null,null,null,null,null,null,null,null,null,null,null,null,null,null,null,null,null,null,null,null,null,null,null,null,null,null,null,null,null,null,null,null,null,null,null,null,null,null,null,null,null,null,null,null,null,null,null,null,null,null,null,null,null,null,null,null,null,null,null,null,null,null,null,null,null,null,null,null,null,null,null,null,null,null,null,null,null,null,null,null,null,null,null,null,null,null,null,null,null,null,850,null,null,null,null,null,null,null,null,null,null,null,null,null,null,null,null,null,null,null,null,null,"SA Monetary value (2dp) > 0.00"]
[21,"","MOR18","Other benefits",null,null,null,null,null,null,null,null,null,null,null,null,null,null,null,null,null,null,null,null,null,null,null,null,null,null,null,null,null,null,null,null,null,null,null,null,null,null,null,null,null,null,null,null,null,null,null,null,null,null,null,null,null,null,null,null,null,null,null,null,null,null,null,null,null,null,null,null,null,null,null,null,null,null,null,null,null,null,null,null,null,null,null,null,null,null,null,null,null,null,null,null,null,1600,null,null,null,null,null,null,null,null,null,null,null,null,null,null,null,null,null,null,null,null,null,null,null,null,null,null,null,null,null,null,null,null,null,null,1600,null,null,null,null,null,null,null,null,null,null,null,null,null,null,null,null,null,null,null,null,null,null,null,null,1600,null,null,null,null,null,null,null,null,null,null,null,null,null,null,null,null,null,null,null,null,null,null,null,null,null,null,null,null,null,null,null,null,null,null,null,null,null,null,null,null,null,null,null,null,null,null,null,null,null,null,null,null,null,null,null,null,null,null,null,null,null,null,null,null,null,null,null,null,null,null,null,null,null,null,null,null,null,null,null,null,null,null,null,null,null,null,null,null,null,null,null,null,null,null,null,null,null,null,null,null,null,null,null,null,null,null,null,null,null,null,null,null,null,null,null,null,null,null,null,null,null,"SA Monetary value (2dp) > 0.00"]
[22,"","MOR19","Total benefits and expenses (total of boxes 13 to 18)",null,null,null,null,null,null,null,null,null,null,null,null,null,null,null,null,null,null,null,null,null,null,null,null,null,null,null,null,null,null,null,null,null,null,null,null,null,null,null,null,null,null,null,null,null,null,null,null,null,null,null,null,null,null,null,null,null,null,null,null,null,null,null,null,null,null,null,null,null,null,null,null,null,null,null,null,null,null,null,null,null,null,null,null,null,null,null,null,null,null,null,null,null,{"$f":"CT75+CT76+CT77+CT78+CT79+CT80","v":2065},null,null,null,null,null,null,null,null,null,null,null,null,null,null,null,null,null,null,null,null,null,null,null,null,null,null,null,null,null,null,null,null,{"$f":"EA75+EA76+EA77+EA78+EA79+EA80","v":2000},{"$f":"EB75+EB76+EB77+EB78+EB79+EB80","v":3155},{"$f":"EC75+EC76+EC77+EC78+EC79+EC80","v":2065},null,null,null,null,null,null,null,null,null,null,null,null,null,null,null,null,null,null,null,null,null,null,null,null,{"$f":"FB75+FB76+FB77+FB78+FB79+FB80","v":2065},null,null,null,null,null,null,null,null,null,null,null,null,null,null,null,null,null,null,null,null,null,null,null,null,null,null,null,null,null,null,null,null,null,null,null,null,null,null,null,null,null,null,null,null,null,null,null,null,null,null,null,null,null,null,null,null,null,null,null,null,null,null,null,null,null,null,null,null,null,null,null,null,null,null,null,null,null,null,null,null,null,null,null,null,null,null,null,null,null,null,null,null,null,null,null,null,null,null,null,{"$f":"IX75+IX76+IX77+IX78+IX79+IX80","v":6250},null,null,null,null,null,null,null,null,null,null,null,null,null,null,null,null,null,null,null,null,"Equal to MOR13 + MOR14 + MOR15 + MOR16 + MOR17 + MOR18","SA Monetary value (2dp) > 0.00"]
[23,"","MOR20","Taxable income, benefits and expenses received",null,null,null,null,null,null,null,null,null,null,null,null,null,null,null,null,null,null,null,null,null,null,null,null,null,null,null,null,null,null,null,null,null,null,null,null,null,null,null,null,null,null,null,null,null,null,null,null,null,null,null,null,null,null,null,null,null,null,null,null,null,null,null,null,null,null,null,null,null,null,null,null,null,null,null,null,null,null,null,null,null,null,null,null,null,null,null,null,null,null,null,null,null,{"$f":"IF(CT74+CT81<8500,CT74-CT67,CT74+CT81)","v":22417},null,null,null,null,null,null,null,null,null,null,null,null,null,null,null,null,null,null,null,null,null,null,null,null,null,null,null,null,null,null,null,null,{"$f":"IF(EA74+EA81<8500,EA74-EA67,EA74+EA81)","v":4500},{"$f":"IF(EB74+EB81<8500,EB74-EB67,EB74+EB81)","v":21885},{"$f":"IF(EC74+EC81<8500,EC74-EC67,EC74+EC81)","v":22417},null,null,null,null,null,null,null,null,null,null,null,null,null,null,null,null,null,null,null,null,null,null,null,null,{"$f":"IF(FB74+FB81<8500,FB74-FB67,FB74+FB81)","v":22417},null,null,null,null,null,null,null,null,null,null,null,null,null,null,null,null,null,null,null,null,null,null,null,null,null,null,null,null,null,null,null,null,null,null,null,null,null,null,null,null,null,null,null,null,null,null,null,null,null,null,null,null,null,null,null,null,null,null,null,null,null,null,null,null,null,null,null,null,null,null,null,null,null,null,null,null,null,null,null,null,null,null,null,null,null,null,null,null,null,null,null,null,null,null,null,null,null,null,null,{"$f":"IF(IX74+IX81<8500,IX74-IX67,IX74+IX81)","v":15049},null,null,null,null,null,null,null,null,null,null,null,null,null,null,null,null,null,null,null,null,null,"SA Monetary value (2dp) >= 0.00"]
[24,"","MOR21","Travelling expenses and capital allowances",null,null,null,null,null,null,null,null,null,null,null,null,null,null,null,null,null,null,null,null,null,null,null,null,null,null,null,null,null,null,null,null,null,null,null,null,null,null,null,null,null,null,null,null,null,null,null,null,null,null,null,null,null,null,null,null,null,null,null,null,null,null,null,null,null,null,null,null,null,null,null,null,null,null,null,null,null,null,null,null,null,null,null,null,null,null,null,null,null,null,null,null,null,null,null,null,null,null,null,null,null,null,null,null,null,null,null,null,null,null,null,null,null,null,null,null,null,null,null,null,null,null,null,null,null,null,null,null,null,null,null,null,null,null,null,null,null,null,null,null,null,null,null,null,null,null,null,null,null,null,null,null,null,null,null,null,null,null,null,null,null,null,null,null,null,null,null,null,null,null,null,null,null,null,null,null,null,null,null,null,null,null,null,null,null,null,null,null,null,null,null,null,null,null,null,null,null,null,null,null,null,null,null,null,null,null,null,null,null,null,null,null,null,null,null,null,null,null,null,null,null,null,null,null,null,null,null,null,null,null,null,null,null,null,null,null,null,null,null,null,null,null,null,null,null,null,null,null,null,null,null,null,null,380,null,null,null,null,null,null,null,null,null,null,null,null,null,null,null,null,null,null,null,null,null,"SA Monetary value (2dp) > 0.00"]
[25,"","MOR22","Maintenance, repairs and insurance of vicarage etc.",null,null,null,null,null,null,null,null,null,null,null,null,null,null,null,null,null,null,null,null,null,null,null,null,null,null,null,null,null,null,null,null,null,null,null,null,null,null,null,null,null,null,null,null,null,null,null,null,null,null,null,null,null,null,null,null,null,null,null,null,null,null,null,null,null,null,null,null,null,null,null,null,null,null,null,null,null,null,null,null,null,null,null,null,null,null,null,null,null,null,null,null,null,null,null,null,null,null,null,null,null,null,null,null,null,null,null,null,null,null,null,null,null,null,null,null,null,null,null,null,null,null,null,null,null,null,null,620,null,null,null,null,null,null,null,null,null,null,null,null,null,null,null,null,null,null,null,null,null,null,null,null,null,null,null,null,null,null,null,null,null,null,null,null,null,null,null,null,null,null,null,null,null,null,null,null,null,null,null,null,null,null,null,null,null,null,null,null,null,null,null,null,null,null,null,null,null,null,null,null,null,null,null,null,null,null,null,null,null,null,null,null,null,null,null,null,null,null,null,null,null,null,null,null,null,null,null,null,null,null,null,null,null,null,null,null,null,null,null,null,null,null,null,null,null,null,null,null,null,null,null,null,null,414,null,null,null,null,null,null,null,null,null,null,null,null,null,null,null,null,null,null,null,null,null,"SA Monetary value (2dp) > 0.00"]
[26,"","MOR23","Rent",null,null,null,null,null,null,null,null,null,null,null,null,null,null,null,null,null,null,null,null,null,null,null,null,null,null,null,null,null,null,null,null,null,null,null,null,null,null,null,null,null,null,null,null,null,null,null,null,null,null,null,null,null,null,null,null,null,null,null,null,null,null,null,null,null,null,null,null,null,null,null,null,null,null,null,null,null,null,null,null,null,null,null,null,null,null,null,null,null,null,null,null,null,null,null,null,null,null,null,null,null,null,null,null,null,null,null,null,null,null,null,null,null,null,null,null,null,null,null,null,null,null,null,null,null,null,null,4800,null,null,null,null,null,null,null,null,null,null,null,null,null,null,null,null,null,null,null,null,null,null,null,null,null,null,null,null,null,null,null,null,null,null,null,null,null,null,null,null,null,null,null,null,null,null,null,null,null,null,null,null,null,null,null,null,null,null,null,null,null,null,null,null,null,null,null,null,null,null,null,null,null,null,null,null,null,null,null,null,null,null,null,null,null,null,null,null,null,null,null,null,null,null,null,null,null,null,null,null,null,null,null,null,null,null,null,null,null,null,null,null,null,null,null,null,null,null,null,null,null,null,null,null,null,3600,null,null,null,null,null,null,null,null,null,null,null,null,null,null,null,null,null,null,null,null,null,"SA Monetary value (2dp) > 0.00"]
[27,"","MOR24","Secretarial assistance",null,null,null,null,null,null,null,null,null,null,null,null,null,null,null,null,null,null,null,null,null,null,null,null,null,null,null,null,null,null,null,null,null,null,null,null,null,null,null,null,null,null,null,null,null,null,null,null,null,null,null,null,null,null,null,null,null,null,null,null,null,null,null,null,null,null,null,null,null,null,null,null,null,null,null,null,null,null,null,null,null,null,null,null,null,null,null,null,null,null,null,null,null,780,null,null,null,null,null,null,null,null,null,null,null,null,null,null,null,null,null,null,null,null,null,null,null,null,null,null,null,null,null,null,null,null,null,480,780,null,null,null,null,null,null,null,null,null,null,null,null,null,null,null,null,null,null,null,null,null,null,null,null,780,null,null,null,null,null,null,null,null,null,null,null,null,null,null,null,null,null,null,null,null,null,null,null,null,null,null,null,null,null,null,null,null,null,null,null,null,null,null,null,null,null,null,null,null,null,null,null,null,null,null,null,null,null,null,null,null,null,null,null,null,null,null,null,null,null,null,null,null,null,null,null,null,null,null,null,null,null,null,null,null,null,null,null,null,null,null,null,null,null,null,null,null,null,null,null,null,null,null,null,null,null,null,null,null,null,null,null,null,null,null,null,null,null,null,null,null,null,null,null,null,null,"SA Monetary value (2dp) > 0.00"]
[28,"","MOR25","Other expenses",null,null,null,null,null,null,null,null,null,null,null,null,null,null,null,null,null,null,null,null,null,null,null,null,null,null,null,null,null,null,null,null,null,null,null,null,null,null,null,null,null,null,null,null,null,null,null,null,null,null,null,null,null,null,null,null,null,null,null,null,null,null,null,null,null,null,null,null,null,null,null,null,null,null,null,null,null,null,null,null,null,null,null,null,null,null,null,null,null,null,null,null,null,null,null,null,null,null,null,null,null,null,null,null,null,null,null,null,null,null,null,null,null,null,null,null,null,null,null,null,null,null,null,null,null,null,null,null,null,null,null,null,null,null,null,null,null,null,null,null,null,null,null,null,null,null,null,null,null,null,null,null,null,null,null,null,null,null,null,null,null,null,null,null,null,null,null,null,null,null,null,null,null,null,null,null,null,null,null,null,null,null,null,null,null,null,null,null,null,null,null,null,null,null,null,null,null,null,null,null,null,null,null,null,null,null,null,null,null,null,null,null,null,null,null,null,null,null,null,null,null,null,null,null,null,null,null,null,null,null,null,null,null,null,null,null,null,null,null,null,null,null,null,null,null,null,null,null,null,null,null,null,null,3255,null,null,null,null,null,null,null,null,null,null,null,null,null,null,null,null,null,null,null,null,null,"SA Monetary value (2dp) > 0.00"]
[29,"","MOR26","Total expenses paid (total of boxes 21 to 25)",null,null,null,null,null,null,null,null,null,null,null,null,null,null,null,null,null,null,null,null,null,null,null,null,null,null,null,null,null,null,null,null,null,null,null,null,null,null,null,null,null,null,null,null,null,null,null,null,null,null,null,null,null,null,null,null,null,null,null,null,null,null,null,null,null,null,null,null,null,null,null,null,null,null,null,null,null,null,null,null,null,null,null,null,null,null,null,null,null,null,null,null,null,{"$f":"CT83+CT84+CT85+CT86+CT87","v":780},null,null,null,null,null,null,null,null,null,null,null,null,null,null,null,null,null,null,null,null,null,null,null,null,null,null,null,null,null,null,null,null,null,{"$f":"EB83+EB84+EB85+EB86+EB87","v":5900},{"$f":"EC83+EC84+EC85+EC86+EC87","v":780},null,null,null,null,null,null,null,null,null,null,null,null,null,null,null,null,null,null,null,null,null,null,null,null,{"$f":"FB83+FB84+FB85+FB86+FB87","v":780},null,null,null,null,null,null,null,null,null,null,null,null,null,null,null,null,null,null,null,null,null,null,null,null,null,null,null,null,null,null,null,null,null,null,null,null,null,null,null,null,null,null,null,null,null,null,null,null,null,null,null,null,null,null,null,null,null,null,null,null,null,null,null,null,null,null,null,null,null,null,null,null,null,null,null,null,null,null,null,null,null,null,null,null,null,null,null,null,null,null,null,null,null,null,null,null,null,null,null,{"$f":"IX83+IX84+IX85+IX86+IX87","v":7649},null,null,null,null,null,null,null,null,null,null,null,null,null,null,null,null,null,null,null,null,"Equal to MOR21 + MOR22 + MOR23 + MOR24 + MOR25","SA Monetary value (2dp) > 0.00"]
[30,"","MOR27","Gross income (box 20 minus (box 5 + box 13))",null,null,null,null,null,null,null,null,null,null,null,null,null,null,null,null,null,null,null,null,null,null,null,null,null,null,null,null,null,null,null,null,null,null,null,null,null,null,null,null,null,null,null,null,null,null,null,null,null,null,null,null,null,null,null,null,null,null,null,null,null,null,null,null,null,null,null,null,null,null,null,null,null,null,null,null,null,null,null,null,null,null,null,null,null,null,null,null,null,null,null,null,null,{"$f":"IF(CT74+CT81>=8500,MAX(0,CT82-(CT67+CT75)),0)","v":21952},null,null,null,null,null,null,null,null,null,null,null,null,null,null,null,null,null,null,null,null,null,null,null,null,null,null,null,null,null,null,null,null,null,{"$f":"IF(EB74+EB81>=8500,MAX(0,EB82-(EB67+EB75)),0)","v":19880},{"$f":"IF(EC74+EC81>=8500,MAX(0,EC82-(EC67+EC75)),0)","v":21952},null,null,null,null,null,null,null,null,null,null,null,null,null,null,null,null,null,null,null,null,null,null,null,null,{"$f":"IF(FB74+FB81>=8500,MAX(0,FB82-(FB67+FB75)),0)","v":21952},null,null,null,null,null,null,null,null,null,null,null,null,null,null,null,null,null,null,null,null,null,null,null,null,null,null,null,null,null,null,null,null,null,null,null,null,null,null,null,null,null,null,null,null,null,null,null,null,null,null,null,null,null,null,null,null,null,null,null,null,null,null,null,null,null,null,null,null,null,null,null,null,null,null,null,null,null,null,null,null,null,null,null,null,null,null,null,null,null,null,null,null,null,null,null,null,null,null,null,{"$f":"IF(IX74+IX81>=8500,MAX(0,IX82-(IX67+IX75)),0)","v":15049},null,null,null,null,null,null,null,null,null,null,null,null,null,null,null,null,null,null,null,null,null,"SA Monetary value (2dp) >= 0.00"]
[31,"","MOR28",{"$f":"tax_year&\" back pay, received after 5 April \"&Tax_year_end","v":"2025-26 back pay, received after 5 April 2026"},null,null,null,null,null,null,null,null,null,null,null,null,null,null,null,null,null,null,null,null,null,null,null,null,null,null,null,null,null,null,null,null,null,null,null,null,null,null,null,null,null,null,null,null,null,null,null,null,null,null,null,null,null,null,null,null,null,null,null,null,null,null,null,null,null,null,null,null,null,null,null,null,null,null,null,null,null,null,null,null,null,null,null,null,null,null,null,null,null,null,null,null,null,null,null,null,null,null,null,null,null,null,null,null,null,null,null,null,null,null,null,null,null,null,null,null,null,null,null,null,null,null,null,null,null,null,null,null,null,null,null,null,null,null,null,null,null,null,null,null,null,null,null,null,null,null,null,null,null,null,null,null,null,null,null,null,null,null,null,null,null,null,null,null,null,null,null,null,null,null,null,null,null,null,null,null,null,null,null,null,null,null,null,null,null,null,null,null,null,null,null,null,null,null,null,null,null,null,null,null,null,null,null,null,null,null,null,null,null,null,null,null,null,null,null,null,null,null,null,null,null,null,null,null,null,null,null,null,null,null,null,null,null,null,null,null,null,null,null,null,null,null,null,null,null,null,null,null,null,null,null,null,null,null,null,null,null,null,null,null,null,null,null,null,null,null,null,null,null,null,null,null,null,null,null,"SA Monetary value (2dp) > 0.00"]
[32,"","MOR29",{"$f":"\"Earlier years’ back pay, received during \"&tax_year","v":"Earlier years’ back pay, received during 2025-26"},null,null,null,null,null,null,null,null,null,null,null,null,null,null,null,null,null,null,null,null,null,null,null,null,null,null,null,null,null,null,null,null,null,null,null,null,null,null,null,null,null,null,null,null,null,null,null,null,null,null,null,null,null,null,null,null,null,null,null,null,null,null,null,null,null,null,null,null,null,null,null,null,null,null,null,null,null,null,null,null,null,null,null,null,null,null,null,null,null,null,null,null,null,null,null,null,null,null,null,null,null,null,null,null,null,null,null,null,null,null,null,null,null,null,null,null,null,null,null,null,null,null,null,null,null,null,null,1800,null,null,null,null,null,null,null,null,null,null,null,null,null,null,null,null,null,null,null,null,null,null,null,null,null,null,null,null,null,null,null,null,null,null,null,null,null,null,null,null,null,null,null,null,null,null,null,null,null,null,null,null,null,null,null,null,null,null,null,null,null,null,null,null,null,null,null,null,null,null,null,null,null,null,null,null,null,null,null,null,null,null,null,null,null,null,null,null,null,null,null,null,null,null,null,null,null,null,null,null,null,null,null,null,null,null,null,null,null,null,null,null,null,null,null,null,null,null,null,null,null,null,null,null,null,null,null,null,null,null,null,null,null,null,null,null,null,null,null,null,null,null,null,null,null,null,null,"SA Monetary value (2dp) > 0.00"]
[33,"","MOR30","Payments",null,null,null,null,null,null,null,null,null,null,null,null,null,null,null,null,null,null,null,null,null,null,null,null,null,null,null,null,null,null,null,null,null,null,null,null,null,null,null,null,null,null,null,null,null,null,null,null,null,null,null,null,null,null,null,null,null,null,null,null,null,null,null,null,null,null,null,null,null,null,null,null,null,null,null,null,null,null,null,null,null,null,null,null,null,null,null,null,null,null,null,null,null,null,null,null,null,null,null,null,null,null,null,null,null,null,null,null,null,null,null,null,null,null,null,null,null,null,null,null,null,null,null,null,null,null,null,600,null,null,null,null,null,null,null,null,null,null,null,null,null,null,null,null,null,null,null,null,null,null,null,null,null,null,null,null,null,null,null,null,null,null,null,null,null,null,null,null,null,null,null,null,null,null,null,null,null,null,null,null,null,null,null,null,null,null,null,null,null,null,null,null,null,null,null,null,null,null,null,null,null,null,null,null,null,null,null,null,null,null,null,null,null,null,null,null,null,null,null,null,null,null,null,null,null,null,null,null,null,null,null,null,null,null,null,null,null,null,null,null,null,null,null,null,null,null,null,null,null,null,null,null,null,null,null,null,null,null,null,null,null,null,null,null,null,null,null,null,null,null,null,null,null,null,null,"SA Monetary value (2dp) > 0.00"]
[34,"","MOR31","Net income (box 27 + box 28 minus (box 26 + box 29 + box 30))",null,null,null,null,null,null,null,null,null,null,null,null,null,null,null,null,null,null,null,null,null,null,null,null,null,null,null,null,null,null,null,null,null,null,null,null,null,null,null,null,null,null,null,null,null,null,null,null,null,null,null,null,null,null,null,null,null,null,null,null,null,null,null,null,null,null,null,null,null,null,null,null,null,null,null,null,null,null,null,null,null,null,null,null,null,null,null,null,null,null,null,null,null,{"$f":"IF(AND(CT74+CT81>=8500,CT67+CT75>0),MAX(CT89+CT90-(CT88+CT91+CT92)),0)","v":21172},null,null,null,null,null,null,null,null,null,null,null,null,null,null,null,null,null,null,null,null,null,null,null,null,null,null,null,null,null,null,null,null,{"$f":"IF(AND(EA74+EA81>=8500,EA67+EA75>0),MAX(EA89+EA90-(EA88+EA91+EA92)),0)","v":0},{"$f":"IF(AND(EB74+EB81>=8500,EB67+EB75>0),MAX(EB89+EB90-(EB88+EB91+EB92)),0)","v":11580},{"$f":"IF(AND(EC74+EC81>=8500,EC67+EC75>0),MAX(EC89+EC90-(EC88+EC91+EC92)),0)","v":21172},null,null,null,null,null,null,null,null,null,null,null,null,null,null,null,null,null,null,null,null,null,null,null,null,{"$f":"IF(AND(FB74+FB81>=8500,FB67+FB75>0),MAX(FB89+FB90-(FB88+FB91+FB92)),0)","v":21172},null,null,null,null,null,null,null,null,null,null,null,null,null,null,null,null,null,null,null,null,null,null,null,null,null,null,null,null,null,null,null,null,null,null,null,null,null,null,null,null,null,null,null,null,null,null,null,null,null,null,null,null,null,null,null,null,null,null,null,null,null,null,null,null,null,null,null,null,null,null,null,null,null,null,null,null,null,null,null,null,null,null,null,null,null,null,null,null,null,null,null,null,null,null,null,null,null,null,null,7400,null,null,null,null,null,null,null,null,null,null,null,null,null,null,null,null,null,null,null,null,"If present, MOR31 equals MOR27 + MOR28 minus (MOR26 + MOR29 + MOR30)","SA Monetary value (2dp) >= 0.00"]
[35,"","MOR32","10% of net income in box 31",null,null,null,null,null,null,null,null,null,null,null,null,null,null,null,null,null,null,null,null,null,null,null,null,null,null,null,null,null,null,null,null,null,null,null,null,null,null,null,null,null,null,null,null,null,null,null,null,null,null,null,null,null,null,null,null,null,null,null,null,null,null,null,null,null,null,null,null,null,null,null,null,null,null,null,null,null,null,null,null,null,null,null,null,null,null,null,null,null,null,null,null,null,{"$f":"CT93*10%","v":2117.2000000000003},null,null,null,null,null,null,null,null,null,null,null,null,null,null,null,null,null,null,null,null,null,null,null,null,null,null,null,null,null,null,null,null,{"$f":"EA93*10%","v":0},{"$f":"EB93*10%","v":1158},{"$f":"EC93*10%","v":2117.2000000000003},null,null,null,null,null,null,null,null,null,null,null,null,null,null,null,null,null,null,null,null,null,null,null,null,{"$f":"FB93*10%","v":2117.2000000000003},null,null,null,null,null,null,null,null,null,null,null,null,null,null,null,null,null,null,null,null,null,null,null,null,null,null,null,null,null,null,null,null,null,null,null,null,null,null,null,null,null,null,null,null,null,null,null,null,null,null,null,null,null,null,null,null,null,null,null,null,null,null,null,null,null,null,null,null,null,null,null,null,null,null,null,null,null,null,null,null,null,null,null,null,null,null,null,null,null,null,null,null,null,null,null,null,null,null,null,null,null,null,null,null,null,null,null,null,null,null,null,null,null,null,null,null,null,null,null,null,"If MOR31 present, MOR32 must be less than or equal to (MOR31 x 10%) + £1","SA Monetary value (2dp) >= 0.00"]
[36,"","MOR33","Amount you paid toward service benefit received",null,null,null,null,null,null,null,null,null,null,null,null,null,null,null,null,null,null,null,null,null,null,null,null,null,null,null,null,null,null,null,null,null,null,null,null,null,null,null,null,null,null,null,null,null,null,null,null,null,null,null,null,null,null,null,null,null,null,null,null,null,null,null,null,null,null,null,null,null,null,null,null,null,null,null,null,null,null,null,null,null,null,null,null,null,null,null,null,null,null,null,null,null,null,null,null,null,null,null,null,null,null,null,null,null,null,null,null,null,null,null,null,null,null,null,null,null,null,null,null,null,null,null,null,null,null,null,null,null,null,null,null,null,null,null,null,null,null,null,null,null,null,null,null,null,null,null,null,null,null,null,null,null,null,null,null,null,null,null,null,null,null,null,null,null,null,null,null,null,null,null,null,null,null,null,null,null,null,null,null,null,null,null,null,null,null,null,null,null,null,null,null,null,null,null,null,null,null,null,null,null,null,null,null,null,null,null,null,null,null,null,null,null,null,null,null,null,null,null,null,null,null,null,null,null,null,null,null,null,null,null,null,null,null,null,null,null,null,null,null,null,null,null,null,null,null,null,null,null,null,null,null,null,null,null,null,null,null,null,null,null,null,null,null,null,null,null,null,null,null,null,null,null,null,null,"SA Monetary value (2dp) > 0.00"]
[37,"","MOR34","Payments made for you and service benefit received for your vicarage (box 5 + box 13)",null,null,null,null,null,null,null,null,null,null,null,null,null,null,null,null,null,null,null,null,null,null,null,null,null,null,null,null,null,null,null,null,null,null,null,null,null,null,null,null,null,null,null,null,null,null,null,null,null,null,null,null,null,null,null,null,null,null,null,null,null,null,null,null,null,null,null,null,null,null,null,null,null,null,null,null,null,null,null,null,null,null,null,null,null,null,null,null,null,null,null,null,null,{"$f":"IF(CT74+CT81>=8500,CT67+CT75,0)","v":465},null,null,null,null,null,null,null,null,null,null,null,null,null,null,null,null,null,null,null,null,null,null,null,null,null,null,null,null,null,null,null,null,null,{"$f":"IF(EB74+EB81>=8500,EB67+EB75,0)","v":2005},{"$f":"IF(EC74+EC81>=8500,EC67+EC75,0)","v":465},null,null,null,null,null,null,null,null,null,null,null,null,null,null,null,null,null,null,null,null,null,null,null,null,{"$f":"IF(FB74+FB81>=8500,FB67+FB75,0)","v":465},null,null,null,null,null,null,null,null,null,null,null,null,null,null,null,null,null,null,null,null,null,null,null,null,null,null,null,null,null,null,null,null,null,null,null,null,null,null,null,null,null,null,null,null,null,null,null,null,null,null,null,null,null,null,null,null,null,null,null,null,null,null,null,null,null,null,null,null,null,null,null,null,null,null,null,null,null,null,null,null,null,null,null,null,null,null,null,null,null,null,null,null,null,null,null,null,null,null,null,null,null,null,null,null,null,null,null,null,null,null,null,null,null,null,null,null,null,null,null,null,"If present, MOR34 equals MOR5 + MOR13","SA Monetary value (2dp) > 0.00"]
[38,"","MOR35","Service benefit cap (box 33 + box 34 minus box 32)",null,null,null,null,null,null,null,null,null,null,null,null,null,null,null,null,null,null,null,null,null,null,null,null,null,null,null,null,null,null,null,null,null,null,null,null,null,null,null,null,null,null,null,null,null,null,null,null,null,null,null,null,null,null,null,null,null,null,null,null,null,null,null,null,null,null,null,null,null,null,null,null,null,null,null,null,null,null,null,null,null,null,null,null,null,null,null,null,null,null,null,null,null,null,null,null,null,null,null,null,null,null,null,null,null,null,null,null,null,null,null,null,null,null,null,null,null,null,null,null,null,null,null,null,null,null,null,{"$f":"MAX(0,EB95+EB96-EB94)","v":847},null,null,null,null,null,null,null,null,null,null,null,null,null,null,null,null,null,null,null,null,null,null,null,null,null,null,null,null,null,null,null,null,null,null,null,null,null,null,null,null,null,null,null,null,null,null,null,null,null,null,null,null,null,null,null,null,null,null,null,null,null,null,null,null,null,null,null,null,null,null,null,null,null,null,null,null,null,null,null,null,null,null,null,null,null,null,null,null,null,null,null,null,null,null,null,null,null,null,null,null,null,null,null,null,null,null,null,null,null,null,null,null,null,null,null,null,null,null,null,null,null,null,null,null,null,null,null,null,null,null,null,null,null,null,null,null,null,null,null,null,null,null,null,null,null,null,"a) If MOR33 + MOR34 minus MOR32 is positive MOR35 is the value of that sum. \nb) If negative MOR35 = zero","SA Monetary value (2dp) >= 0.00"]
[39,"","MOR36","Chaplaincy and other income as a minister",null,null,null,null,null,null,null,null,null,null,null,null,null,null,null,null,null,null,null,null,null,null,null,null,null,null,null,null,null,null,null,null,null,null,null,null,null,null,null,null,null,null,null,null,null,null,null,null,null,null,null,null,null,null,null,null,null,null,null,null,null,null,null,null,null,null,null,null,null,null,null,null,null,null,null,null,null,null,null,null,null,null,null,null,null,null,null,null,null,null,null,null,null,5600,null,null,null,null,null,null,null,null,null,null,null,null,null,null,null,null,null,null,null,null,null,null,null,null,null,null,null,null,null,null,null,null,null,null,5600,null,null,null,null,null,null,null,null,null,null,null,null,null,null,null,null,null,null,null,null,null,null,null,null,5600,null,null,null,null,null,null,null,null,null,null,null,null,null,null,null,null,null,null,null,null,null,null,null,null,null,null,null,null,null,null,null,null,null,null,null,null,null,null,null,null,null,null,null,null,null,null,null,null,null,null,null,null,null,null,null,null,null,null,null,null,null,null,null,null,null,null,null,null,null,null,null,null,null,null,null,null,null,null,null,null,null,null,null,null,null,null,null,null,null,null,null,null,null,null,null,null,null,null,null,1250,null,null,null,null,null,null,null,null,null,null,null,null,null,null,null,null,null,null,null,null,null,"SA Monetary value (2dp) > 0.00"]
[40,"","MOR37","Tax taken off box 36",null,null,null,null,null,null,null,null,null,null,null,null,null,null,null,null,null,null,null,null,null,null,null,null,null,null,null,null,null,null,null,null,null,null,null,null,null,null,null,null,null,null,null,null,null,null,null,null,null,null,null,null,null,null,null,null,null,null,null,null,null,null,null,null,null,null,null,null,null,null,null,null,null,null,null,null,null,null,null,null,null,null,null,null,null,null,null,null,null,null,null,null,null,{"$f":"CT98*BR_rate","v":1120},null,null,null,null,null,null,null,null,null,null,null,null,null,null,null,null,null,null,null,null,null,null,null,null,null,null,null,null,null,null,null,null,null,null,{"$f":"EC98*BR_rate","v":1120},null,null,null,null,null,null,null,null,null,null,null,null,null,null,null,null,null,null,null,null,null,null,null,null,{"$f":"FB98*BR_rate","v":1120},null,null,null,null,null,null,null,null,null,null,null,null,null,null,null,null,null,null,null,null,null,null,null,null,null,null,null,null,null,null,null,null,null,null,null,null,null,null,null,null,null,null,null,null,null,null,null,null,null,null,null,null,null,null,null,null,null,null,null,null,null,null,null,null,null,null,null,null,null,null,null,null,null,null,null,null,null,null,null,null,null,null,null,null,null,null,null,null,null,null,null,null,null,null,null,null,null,null,null,null,null,null,null,null,null,null,null,null,null,null,null,null,null,null,null,null,null,null,null,null,"If present, must be less than or equal to MOR36","SA Monetary value (2dp) >= 0.00"]
[41,"","MOR38","Taxable income minus expenses (box 20 + box 36 minus (box 26 + box 35))",null,null,null,null,null,null,null,null,null,null,null,null,null,null,null,null,null,null,null,null,null,null,null,null,null,null,null,null,null,null,null,null,null,null,null,null,null,null,null,null,null,null,null,null,null,null,null,null,null,null,null,null,null,null,null,null,null,null,null,null,null,null,null,null,null,null,null,null,null,null,null,null,null,null,null,null,null,null,null,null,null,null,null,null,null,null,null,null,null,null,null,null,null,{"$f":"MAX(0,CT82+CT98-(CT88+CT97))","v":27237},null,null,null,null,null,null,null,null,null,null,null,null,null,null,null,null,null,null,null,null,null,null,null,null,null,null,null,null,null,null,null,null,{"$f":"MAX(0,EA82+EA98-(EA88+EA97))","v":4500},{"$f":"MAX(0,EB82+EB98-(EB88+EB97))","v":15138},{"$f":"MAX(0,EC82+EC98-(EC88+EC97))","v":27237},null,null,null,null,null,null,null,null,null,null,null,null,null,null,null,null,null,null,null,null,null,null,null,null,{"$f":"MAX(0,FB82+FB98-(FB88+FB97))","v":27237},null,null,null,null,null,null,null,null,null,null,null,null,null,null,null,null,null,null,null,null,null,null,null,null,null,null,null,null,null,null,null,null,null,null,null,null,null,null,null,null,null,null,null,null,null,null,null,null,null,null,null,null,null,null,null,null,null,null,null,null,null,null,null,null,null,null,null,null,null,null,null,null,null,null,null,null,null,null,null,null,null,null,null,null,null,null,null,null,null,null,null,null,null,null,null,null,null,null,null,{"$f":"MAX(0,IX82+IX98-(IX88+IX97))","v":8650},null,null,null,null,null,null,null,null,null,null,null,null,null,null,null,null,null,null,null,null,"Equal to MOR20 + MOR36 minus (MOR26 + MOR35)","SA Monetary value (2dp) >= 0.00"]
[42,"","MOR39","Total tax taken off (box 3 + box 9 + box 11 + box 37)",null,null,null,null,null,null,null,null,null,null,null,null,null,null,null,null,null,null,null,null,null,null,null,null,null,null,null,null,null,null,null,null,null,null,null,null,null,null,null,null,null,null,null,null,null,null,null,null,null,null,null,null,null,null,null,null,null,null,null,null,null,null,null,null,null,null,null,null,null,null,null,null,null,null,null,null,null,null,null,null,null,null,null,null,null,null,null,null,null,null,null,null,null,{"$f":"CT64+CT71+CT73+CT99","v":1195},null,null,null,null,null,null,null,null,null,null,null,null,null,null,null,null,null,null,null,null,null,null,null,null,null,null,null,null,null,null,null,null,{"$f":"EA64+EA71+EA73+EA99","v":-250},{"$f":"EB64+EB71+EB73+EB99","v":536},{"$f":"EC64+EC71+EC73+EC99","v":1634.4},null,null,null,null,null,null,null,null,null,null,null,null,null,null,null,null,null,null,null,null,null,null,null,null,{"$f":"FB64+FB71+FB73+FB99","v":1634.4},null,null,null,null,null,null,null,null,null,null,null,null,null,null,null,null,null,null,null,null,null,null,null,null,null,null,null,null,null,null,null,null,null,null,null,null,null,null,null,null,null,null,null,null,null,null,null,null,null,null,null,null,null,null,null,null,null,null,null,null,null,null,null,null,null,null,null,null,null,null,null,null,null,null,null,null,null,null,null,null,null,null,null,null,null,null,null,null,null,null,null,null,null,null,null,null,null,null,null,{"$f":"IX64+IX71+IX73+IX99","v":250},null,null,null,null,null,null,null,null,null,null,null,null,null,null,null,null,null,null,null,null,"Equal to MOR3 + MOR9 + MOR11 + MOR37","SA Monetary value (2dp) except 0.00"]
[]
["row",{"$f":"\"selected \"&NI1_IND-1","v":"selected 168"},"NI1",null,1,2,3,4,5,6,7,8,9,10,11,12,13,14,15,16,17,18,19,20,21,22,23,24,25,26,27,28,29,30,31,32,33,34,35,36,37,38,39,40,41,42,43,44,45,46,47,48,49,50,51,52,53,54,55,56,57,58,59,60,61,62,63,64,65,66,67,68,69,70,71,72,73,74,75,76,77,78,79,80,81,82,83,84,85,86,87,88,89,90,91,92,93,94,95,96,97,98,99,100,101,102,103,104,105,106,107,108,109,110,111,112,113,114,115,116,117,118,119,120,121,122,123,124,125,126,127,128,129,130,131,132,133,134,135,136,137,138,139,140,141,142,143,144,145,146,147,148,149,150,151,152,153,154,155,156,157,158,159,160,161,162,163,164,165,166,167,168,169,170,171,172,173,174,175,176,177,178,179,180,181,182,183,184,185,186,187,188,189,190,191,192,193,194,195,196,197,198,199,200,201,202,203,204,205,206,207,208,209,210,211,212,213,214,215,216,217,218,219,220,221,222,223,224,225,226,227,228,229,230,231,232,233,234,235,236,237,238,239,240,241,242,243,244,245,246,247,248,249,250,251,252,253,254,255,256,257,258,259,260,261,262,263,264,265,266,267,268,269,270,271,272,273]
[2,{"$f":"IF(NI1_IND>1,IF(HLOOKUP(NI1_IND-1,NI1_RANGE,A104)=\"\",\"\",HLOOKUP(NI1_IND-1,NI1_RANGE,A104)),\"\")","v":37700},"EMPCL1_A",null,{"$f":"IF('C2'!E3=\"\",0,MAX(0,MIN('C2'!E3,Class1_UEL)-Class1_PT))","v":0},{"$f":"IF('C2'!F3=\"\",0,MAX(0,MIN('C2'!F3,Class1_UEL)-Class1_PT))","v":20684},{"$f":"IF('C2'!G3=\"\",0,MAX(0,MIN('C2'!G3,Class1_UEL)-Class1_PT))","v":19147},{"$f":"IF('C2'!H3=\"\",0,MAX(0,MIN('C2'!H3,Class1_UEL)-Class1_PT))","v":37350},null,null,{"$f":"IF('C2'!K3=\"\",0,MAX(0,MIN('C2'!K3,Class1_UEL)-Class1_PT))","v":24281},null,null,null,{"$f":"IF('C2'!O3=\"\",0,MAX(0,MIN('C2'!O3,Class1_UEL)-Class1_PT))","v":11108},null,{"$f":"IF('C2'!Q3=\"\",0,MAX(0,MIN('C2'!Q3,Class1_UEL)-Class1_PT))","v":35914},{"$f":"IF('C2'!R3=\"\",0,MAX(0,MIN('C2'!R3,Class1_UEL)-Class1_PT))","v":34384},null,null,{"$f":"IF('C2'!U3=\"\",0,MAX(0,MIN('C2'!U3,Class1_UEL)-Class1_PT))","v":37700},{"$f":"IF('C2'!V3=\"\",0,MAX(0,MIN('C2'!V3,Class1_UEL)-Class1_PT))","v":35882},{"$f":"IF('C2'!W3=\"\",0,MAX(0,MIN('C2'!W3,Class1_UEL)-Class1_PT))","v":37700},{"$f":"IF('C2'!X3=\"\",0,MAX(0,MIN('C2'!X3,Class1_UEL)-Class1_PT))","v":0},{"$f":"IF('C2'!Y3=\"\",0,MAX(0,MIN('C2'!Y3,Class1_UEL)-Class1_PT))","v":1304},{"$f":"IF('C2'!Z3=\"\",0,MAX(0,MIN('C2'!Z3,Class1_UEL)-Class1_PT))","v":37700},{"$f":"IF('C2'!AA3=\"\",0,MAX(0,MIN('C2'!AA3,Class1_UEL)-Class1_PT))","v":22684},null,{"$f":"IF('C2'!AC3=\"\",0,MAX(0,MIN('C2'!AC3,Class1_UEL)-Class1_PT))","v":0},{"$f":"IF('C2'!AD3=\"\",0,MAX(0,MIN('C2'!AD3,Class1_UEL)-Class1_PT))","v":37700},{"$f":"IF('C2'!AE3=\"\",0,MAX(0,MIN('C2'!AE3,Class1_UEL)-Class1_PT))","v":23910},null,{"$f":"IF('C2'!AG3=\"\",0,MAX(0,MIN('C2'!AG3,Class1_UEL)-Class1_PT))","v":37700},{"$f":"IF('C2'!AH3=\"\",0,MAX(0,MIN('C2'!AH3,Class1_UEL)-Class1_PT))","v":37700},{"$f":"IF('C2'!AI3=\"\",0,MAX(0,MIN('C2'!AI3,Class1_UEL)-Class1_PT))","v":17180},{"$f":"IF('C2'!AJ3=\"\",0,MAX(0,MIN('C2'!AJ3,Class1_UEL)-Class1_PT))","v":21180},{"$f":"IF('C2'!AK3=\"\",0,MAX(0,MIN('C2'!AK3,Class1_UEL)-Class1_PT))","v":26059},{"$f":"IF('C2'!AL3=\"\",0,MAX(0,MIN('C2'!AL3,Class1_UEL)-Class1_PT))","v":37700},{"$f":"IF('C2'!AM3=\"\",0,MAX(0,MIN('C2'!AM3,Class1_UEL)-Class1_PT))","v":0},null,null,{"$f":"IF('C2'!AP3=\"\",0,MAX(0,MIN('C2'!AP3,Class1_UEL)-Class1_PT))","v":0},{"$f":"IF('C2'!AQ3=\"\",0,MAX(0,MIN('C2'!AQ3,Class1_UEL)-Class1_PT))","v":37700},null,{"$f":"IF('C2'!AS3=\"\",0,MAX(0,MIN('C2'!AS3,Class1_UEL)-Class1_PT))","v":5930},{"$f":"IF('C2'!AT3=\"\",0,MAX(0,MIN('C2'!AT3,Class1_UEL)-Class1_PT))","v":36180},{"$f":"IF('C2'!AU3=\"\",0,MAX(0,MIN('C2'!AU3,Class1_UEL)-Class1_PT))","v":27701},null,null,null,null,null,{"$f":"IF('C2'!BA3=\"\",0,MAX(0,MIN('C2'!BA3,Class1_UEL)-Class1_PT))","v":14945},{"$f":"IF('C2'!BB3=\"\",0,MAX(0,MIN('C2'!BB3,Class1_UEL)-Class1_PT))","v":0},null,{"$f":"IF('C2'!BD3=\"\",0,MAX(0,MIN('C2'!BD3,Class1_UEL)-Class1_PT))","v":5930},{"$f":"IF('C2'!BE3=\"\",0,MAX(0,MIN('C2'!BE3,Class1_UEL)-Class1_PT))","v":0},{"$f":"IF('C2'!BF3=\"\",0,MAX(0,MIN('C2'!BF3,Class1_UEL)-Class1_PT))","v":12930},{"$f":"IF('C2'!BG3=\"\",0,MAX(0,MIN('C2'!BG3,Class1_UEL)-Class1_PT))","v":37430},{"$f":"IF('C2'!BH3=\"\",0,MAX(0,MIN('C2'!BH3,Class1_UEL)-Class1_PT))","v":0},{"$f":"IF('C2'!BI3=\"\",0,MAX(0,MIN('C2'!BI3,Class1_UEL)-Class1_PT))","v":20030},null,null,null,{"$f":"IF('C2'!BM3=\"\",0,MAX(0,MIN('C2'!BM3,Class1_UEL)-Class1_PT))","v":14945},null,{"$f":"IF('C2'!BO3=\"\",0,MAX(0,MIN('C2'!BO3,Class1_UEL)-Class1_PT))","v":20684},null,null,null,{"$f":"IF('C2'!BS3=\"\",0,MAX(0,MIN('C2'!BS3,Class1_UEL)-Class1_PT))","v":0},null,null,null,null,null,null,null,null,null,null,{"$f":"IF('C2'!CD3=\"\",0,MAX(0,MIN('C2'!CD3,Class1_UEL)-Class1_PT))","v":0},{"$f":"IF('C2'!CE3=\"\",0,MAX(0,MIN('C2'!CE3,Class1_UEL)-Class1_PT))","v":37700},{"$f":"IF('C2'!CF3=\"\",0,MAX(0,MIN('C2'!CF3,Class1_UEL)-Class1_PT))","v":20684},null,{"$f":"IF('C2'!CH3=\"\",0,MAX(0,MIN('C2'!CH3,Class1_UEL)-Class1_PT))","v":20684},null,null,null,null,null,{"$f":"IF('C2'!CN3=\"\",0,MAX(0,MIN('C2'!CN3,Class1_UEL)-Class1_PT))","v":5930},{"$f":"IF('C2'!CO3=\"\",0,MAX(0,MIN('C2'!CO3,Class1_UEL)-Class1_PT))","v":5930},null,{"$f":"IF('C2'!CQ3=\"\",0,MAX(0,MIN('C2'!CQ3,Class1_UEL)-Class1_PT))","v":0},null,null,{"$f":"IF('C2'!CT3=\"\",0,MAX(0,MIN('C2'!CT3,Class1_UEL)-Class1_PT))","v":0},null,{"$f":"IF('C2'!CV3=\"\",0,MAX(0,MIN('C2'!CV3,Class1_UEL)-Class1_PT))","v":14945},null,null,null,null,null,{"$f":"IF('C2'!DB3=\"\",0,MAX(0,MIN('C2'!DB3,Class1_UEL)-Class1_PT))","v":2764},null,{"$f":"IF('C2'!DD3=\"\",0,MAX(0,MIN('C2'!DD3,Class1_UEL)-Class1_PT))","v":0},{"$f":"IF('C2'!DE3=\"\",0,MAX(0,MIN('C2'!DE3,Class1_UEL)-Class1_PT))","v":5930},{"$f":"IF('C2'!DF3=\"\",0,MAX(0,MIN('C2'!DF3,Class1_UEL)-Class1_PT))","v":32430},null,null,{"$f":"IF('C2'!DI3=\"\",0,MAX(0,MIN('C2'!DI3,Class1_UEL)-Class1_PT))","v":32531},null,{"$f":"IF('C2'!DK3=\"\",0,MAX(0,MIN('C2'!DK3,Class1_UEL)-Class1_PT))","v":14945},{"$f":"IF('C2'!DL3=\"\",0,MAX(0,MIN('C2'!DL3,Class1_UEL)-Class1_PT))","v":37700},null,null,{"$f":"IF('C2'!DO3=\"\",0,MAX(0,MIN('C2'!DO3,Class1_UEL)-Class1_PT))","v":37700},{"$f":"IF('C2'!DP3=\"\",0,MAX(0,MIN('C2'!DP3,Class1_UEL)-Class1_PT))","v":37700},null,null,{"$f":"IF('C2'!DS3=\"\",0,MAX(0,MIN('C2'!DS3,Class1_UEL)-Class1_PT))","v":37700},{"$f":"IF('C2'!DT3=\"\",0,MAX(0,MIN('C2'!DT3,Class1_UEL)-Class1_PT))","v":37700},{"$f":"IF('C2'!DU3=\"\",0,MAX(0,MIN('C2'!DU3,Class1_UEL)-Class1_PT))","v":0},{"$f":"IF('C2'!DV3=\"\",0,MAX(0,MIN('C2'!DV3,Class1_UEL)-Class1_PT))","v":17920},null,null,null,null,{"$f":"IF('C2'!EA3=\"\",0,MAX(0,MIN('C2'!EA3,Class1_UEL)-Class1_PT))","v":0},null,null,{"$f":"IF('C2'!ED3=\"\",0,MAX(0,MIN('C2'!ED3,Class1_UEL)-Class1_PT))","v":20684},{"$f":"IF('C2'!EE3=\"\",0,MAX(0,MIN('C2'!EE3,Class1_UEL)-Class1_PT))","v":20684},null,{"$f":"IF('C2'!EG3=\"\",0,MAX(0,MIN('C2'!EG3,Class1_UEL)-Class1_PT))","v":0},{"$f":"IF('C2'!EH3=\"\",0,MAX(0,MIN('C2'!EH3,Class1_UEL)-Class1_PT))","v":37700},{"$f":"IF('C2'!EI3=\"\",0,MAX(0,MIN('C2'!EI3,Class1_UEL)-Class1_PT))","v":37700},{"$f":"IF('C2'!EJ3=\"\",0,MAX(0,MIN('C2'!EJ3,Class1_UEL)-Class1_PT))","v":0},{"$f":"IF('C2'!EK3=\"\",0,MAX(0,MIN('C2'!EK3,Class1_UEL)-Class1_PT))","v":0},{"$f":"IF('C2'!EL3=\"\",0,MAX(0,MIN('C2'!EL3,Class1_UEL)-Class1_PT))","v":37700},null,null,{"$f":"IF('C2'!EO3=\"\",0,MAX(0,MIN('C2'!EO3,Class1_UEL)-Class1_PT))","v":37700},{"$f":"IF('C2'!EP3=\"\",0,MAX(0,MIN('C2'!EP3,Class1_UEL)-Class1_PT))","v":37030},null,null,null,null,null,null,null,null,null,{"$f":"IF('C2'!EZ3=\"\",0,MAX(0,MIN('C2'!EZ3,Class1_UEL)-Class1_PT))","v":5930},null,{"$f":"IF('C2'!FB3=\"\",0,MAX(0,MIN('C2'!FB3,Class1_UEL)-Class1_PT))","v":1633.2000000000007},{"$f":"IF('C2'!FC3=\"\",0,MAX(0,MIN('C2'!FC3,Class1_UEL)-Class1_PT))","v":37700},{"$f":"IF('C2'!FD3=\"\",0,MAX(0,MIN('C2'!FD3,Class1_UEL)-Class1_PT))","v":37700},null,null,null,null,null,null,null,null,{"$f":"IF('C2'!FM3=\"\",0,MAX(0,MIN('C2'!FM3,Class1_UEL)-Class1_PT))","v":0},{"$f":"IF('C2'!FN3=\"\",0,MAX(0,MIN('C2'!FN3,Class1_UEL)-Class1_PT))","v":37700},{"$f":"IF('C2'!FO3=\"\",0,MAX(0,MIN('C2'!FO3,Class1_UEL)-Class1_PT))","v":37700},{"$f":"IF('C2'!FP3=\"\",0,MAX(0,MIN('C2'!FP3,Class1_UEL)-Class1_PT))","v":37700},{"$f":"IF('C2'!FQ3=\"\",0,MAX(0,MIN('C2'!FQ3,Class1_UEL)-Class1_PT))","v":20684},null,null,null,null,null,{"$f":"IF('C2'!FW3=\"\",0,MAX(0,MIN('C2'!FW3,Class1_UEL)-Class1_PT))","v":5930},null,null,null,null,null,{"$f":"IF('C2'!GC3=\"\",0,MAX(0,MIN('C2'!GC3,Class1_UEL)-Class1_PT))","v":430},{"$f":"IF('C2'!GD3=\"\",0,MAX(0,MIN('C2'!GD3,Class1_UEL)-Class1_PT))","v":0},null,{"$f":"IF('C2'!GF3=\"\",0,MAX(0,MIN('C2'!GF3,Class1_UEL)-Class1_PT))","v":2430},null,null,null,null,{"$f":"IF('C2'!GK3=\"\",0,MAX(0,MIN('C2'!GK3,Class1_UEL)-Class1_PT))","v":0},null,null,null,{"$f":"IF('C2'!GO3=\"\",0,MAX(0,MIN('C2'!GO3,Class1_UEL)-Class1_PT))","v":20684},{"$f":"IF('C2'!GP3=\"\",0,MAX(0,MIN('C2'!GP3,Class1_UEL)-Class1_PT))","v":37700},{"$f":"IF('C2'!GQ3=\"\",0,MAX(0,MIN('C2'!GQ3,Class1_UEL)-Class1_PT))","v":5930},{"$f":"IF('C2'!GR3=\"\",0,MAX(0,MIN('C2'!GR3,Class1_UEL)-Class1_PT))","v":25529},{"$f":"IF('C2'!GS3=\"\",0,MAX(0,MIN('C2'!GS3,Class1_UEL)-Class1_PT))","v":37700},null,null,{"$f":"IF('C2'!GV3=\"\",0,MAX(0,MIN('C2'!GV3,Class1_UEL)-Class1_PT))","v":37700},{"$f":"IF('C2'!GW3=\"\",0,MAX(0,MIN('C2'!GW3,Class1_UEL)-Class1_PT))","v":22721},{"$f":"IF('C2'!GX3=\"\",0,MAX(0,MIN('C2'!GX3,Class1_UEL)-Class1_PT))","v":37700},null,{"$f":"IF('C2'!GZ3=\"\",0,MAX(0,MIN('C2'!GZ3,Class1_UEL)-Class1_PT))","v":37700},{"$f":"IF('C2'!HA3=\"\",0,MAX(0,MIN('C2'!HA3,Class1_UEL)-Class1_PT))","v":37700},{"$f":"IF('C2'!HB3=\"\",0,MAX(0,MIN('C2'!HB3,Class1_UEL)-Class1_PT))","v":37700},null,null,null,{"$f":"IF('C2'!HF3=\"\",0,MAX(0,MIN('C2'!HF3,Class1_UEL)-Class1_PT))","v":37700},{"$f":"IF('C2'!HG3=\"\",0,MAX(0,MIN('C2'!HG3,Class1_UEL)-Class1_PT))","v":36380},null,{"$f":"IF('C2'!HI3=\"\",0,MAX(0,MIN('C2'!HI3,Class1_UEL)-Class1_PT))","v":37700},null,null,null,null,null,{"$f":"IF('C2'!HO3=\"\",0,MAX(0,MIN('C2'!HO3,Class1_UEL)-Class1_PT))","v":0},null,null,null,null,null,null,null,null,null,{"$f":"IF('C2'!HY3=\"\",0,MAX(0,MIN('C2'!HY3,Class1_UEL)-Class1_PT))","v":35448},null,null,null,null,null,{"$f":"IF('C2'!IE3=\"\",0,MAX(0,MIN('C2'!IE3,Class1_UEL)-Class1_PT))","v":12344},{"$f":"IF('C2'!IF3=\"\",0,MAX(0,MIN('C2'!IF3,Class1_UEL)-Class1_PT))","v":1000},{"$f":"IF('C2'!IG3=\"\",0,MAX(0,MIN('C2'!IG3,Class1_UEL)-Class1_PT))","v":0},{"$f":"IF('C2'!IH3=\"\",0,MAX(0,MIN('C2'!IH3,Class1_UEL)-Class1_PT))","v":17523},{"$f":"IF('C2'!II3=\"\",0,MAX(0,MIN('C2'!II3,Class1_UEL)-Class1_PT))","v":37700},null,{"$f":"IF('C2'!IK3=\"\",0,MAX(0,MIN('C2'!IK3,Class1_UEL)-Class1_PT))","v":37700},null,null,null,{"$f":"IF('C2'!IO3=\"\",0,MAX(0,MIN('C2'!IO3,Class1_UEL)-Class1_PT))","v":0},null,null,null,{"$f":"IF('C2'!IS3=\"\",0,MAX(0,MIN('C2'!IS3,Class1_UEL)-Class1_PT))","v":37700},null,null,null,null,{"$f":"IF('C2'!IX3=\"\",0,MAX(0,MIN('C2'!IX3,Class1_UEL)-Class1_PT))","v":37700},{"$f":"IF('C2'!IY3=\"\",0,MAX(0,MIN('C2'!IY3,Class1_UEL)-Class1_PT))","v":7219},{"$f":"IF('C2'!IZ3=\"\",0,MAX(0,MIN('C2'!IZ3,Class1_UEL)-Class1_PT))","v":20684},null,null,null,null,{"$f":"IF('C2'!JE3=\"\",0,MAX(0,MIN('C2'!JE3,Class1_UEL)-Class1_PT))","v":20684},{"$f":"IF('C2'!JF3=\"\",0,MAX(0,MIN('C2'!JF3,Class1_UEL)-Class1_PT))","v":22684},null,null,null,{"$f":"IF('C2'!JJ3=\"\",0,MAX(0,MIN('C2'!JJ3,Class1_UEL)-Class1_PT))","v":37700}]
[3,{"$f":"IF(NI1_IND>1,IF(HLOOKUP(NI1_IND-1,NI1_RANGE,A105)=\"\",\"\",HLOOKUP(NI1_IND-1,NI1_RANGE,A105)),\"\")","v":0},"EMPCL1_B",null,{"$f":"IF('C2'!E32=\"\",0,MAX(0,MIN('C2'!E32,Class1_UEL)-Class1_PT))","v":0},{"$f":"IF('C2'!F32=\"\",0,MAX(0,MIN('C2'!F32,Class1_UEL)-Class1_PT))","v":0},{"$f":"IF('C2'!G32=\"\",0,MAX(0,MIN('C2'!G32,Class1_UEL)-Class1_PT))","v":0},{"$f":"IF('C2'!H32=\"\",0,MAX(0,MIN('C2'!H32,Class1_UEL)-Class1_PT))","v":0},null,null,{"$f":"IF('C2'!K32=\"\",0,MAX(0,MIN('C2'!K32,Class1_UEL)-Class1_PT))","v":0},null,null,null,{"$f":"IF('C2'!O32=\"\",0,MAX(0,MIN('C2'!O32,Class1_UEL)-Class1_PT))","v":0},null,{"$f":"IF('C2'!Q32=\"\",0,MAX(0,MIN('C2'!Q32,Class1_UEL)-Class1_PT))","v":0},{"$f":"IF('C2'!R32=\"\",0,MAX(0,MIN('C2'!R32,Class1_UEL)-Class1_PT))","v":0},null,null,{"$f":"IF('C2'!U32=\"\",0,MAX(0,MIN('C2'!U32,Class1_UEL)-Class1_PT))","v":0},{"$f":"IF('C2'!V32=\"\",0,MAX(0,MIN('C2'!V32,Class1_UEL)-Class1_PT))","v":0},{"$f":"IF('C2'!W32=\"\",0,MAX(0,MIN('C2'!W32,Class1_UEL)-Class1_PT))","v":0},{"$f":"IF('C2'!X32=\"\",0,MAX(0,MIN('C2'!X32,Class1_UEL)-Class1_PT))","v":0},{"$f":"IF('C2'!Y32=\"\",0,MAX(0,MIN('C2'!Y32,Class1_UEL)-Class1_PT))","v":0},null,{"$f":"IF('C2'!AA32=\"\",0,MAX(0,MIN('C2'!AA32,Class1_UEL)-Class1_PT))","v":0},null,{"$f":"IF('C2'!AC32=\"\",0,MAX(0,MIN('C2'!AC32,Class1_UEL)-Class1_PT))","v":0},{"$f":"IF('C2'!AD32=\"\",0,MAX(0,MIN('C2'!AD32,Class1_UEL)-Class1_PT))","v":0},{"$f":"IF('C2'!AE32=\"\",0,MAX(0,MIN('C2'!AE32,Class1_UEL)-Class1_PT))","v":0},null,{"$f":"IF('C2'!AG32=\"\",0,MAX(0,MIN('C2'!AG32,Class1_UEL)-Class1_PT))","v":0},{"$f":"IF('C2'!AH32=\"\",0,MAX(0,MIN('C2'!AH32,Class1_UEL)-Class1_PT))","v":0},{"$f":"IF('C2'!AI32=\"\",0,MAX(0,MIN('C2'!AI32,Class1_UEL)-Class1_PT))","v":0},{"$f":"IF('C2'!AJ32=\"\",0,MAX(0,MIN('C2'!AJ32,Class1_UEL)-Class1_PT))","v":0},{"$f":"IF('C2'!AK32=\"\",0,MAX(0,MIN('C2'!AK32,Class1_UEL)-Class1_PT))","v":0},null,null,null,null,{"$f":"IF('C2'!AP32=\"\",0,MAX(0,MIN('C2'!AP32,Class1_UEL)-Class1_PT))","v":0},{"$f":"IF('C2'!AQ32=\"\",0,MAX(0,MIN('C2'!AQ32,Class1_UEL)-Class1_PT))","v":0},null,{"$f":"IF('C2'!AS32=\"\",0,MAX(0,MIN('C2'!AS32,Class1_UEL)-Class1_PT))","v":37700},{"$f":"IF('C2'!AT32=\"\",0,MAX(0,MIN('C2'!AT32,Class1_UEL)-Class1_PT))","v":0},{"$f":"IF('C2'!AU32=\"\",0,MAX(0,MIN('C2'!AU32,Class1_UEL)-Class1_PT))","v":0},null,null,null,null,null,{"$f":"IF('C2'!BA32=\"\",0,MAX(0,MIN('C2'!BA32,Class1_UEL)-Class1_PT))","v":37700},{"$f":"IF('C2'!BB32=\"\",0,MAX(0,MIN('C2'!BB32,Class1_UEL)-Class1_PT))","v":0},null,{"$f":"IF('C2'!BD32=\"\",0,MAX(0,MIN('C2'!BD32,Class1_UEL)-Class1_PT))","v":37700},{"$f":"IF('C2'!BE32=\"\",0,MAX(0,MIN('C2'!BE32,Class1_UEL)-Class1_PT))","v":0},{"$f":"IF('C2'!BF32=\"\",0,MAX(0,MIN('C2'!BF32,Class1_UEL)-Class1_PT))","v":5934},{"$f":"IF('C2'!BG32=\"\",0,MAX(0,MIN('C2'!BG32,Class1_UEL)-Class1_PT))","v":0},{"$f":"IF('C2'!BH32=\"\",0,MAX(0,MIN('C2'!BH32,Class1_UEL)-Class1_PT))","v":0},{"$f":"IF('C2'!BI32=\"\",0,MAX(0,MIN('C2'!BI32,Class1_UEL)-Class1_PT))","v":0},null,null,null,{"$f":"IF('C2'!BM32=\"\",0,MAX(0,MIN('C2'!BM32,Class1_UEL)-Class1_PT))","v":0},null,{"$f":"IF('C2'!BO32=\"\",0,MAX(0,MIN('C2'!BO32,Class1_UEL)-Class1_PT))","v":0},null,null,null,{"$f":"IF('C2'!BS32=\"\",0,MAX(0,MIN('C2'!BS32,Class1_UEL)-Class1_PT))","v":0},null,null,null,null,null,null,null,null,null,null,{"$f":"IF('C2'!CD32=\"\",0,MAX(0,MIN('C2'!CD32,Class1_UEL)-Class1_PT))","v":0},{"$f":"IF('C2'!CE32=\"\",0,MAX(0,MIN('C2'!CE32,Class1_UEL)-Class1_PT))","v":5930},{"$f":"IF('C2'!CF32=\"\",0,MAX(0,MIN('C2'!CF32,Class1_UEL)-Class1_PT))","v":0},null,{"$f":"IF('C2'!CH32=\"\",0,MAX(0,MIN('C2'!CH32,Class1_UEL)-Class1_PT))","v":0},null,null,null,null,null,{"$f":"IF('C2'!CN32=\"\",0,MAX(0,MIN('C2'!CN32,Class1_UEL)-Class1_PT))","v":0},{"$f":"IF('C2'!CO32=\"\",0,MAX(0,MIN('C2'!CO32,Class1_UEL)-Class1_PT))","v":0},null,{"$f":"IF('C2'!CQ32=\"\",0,MAX(0,MIN('C2'!CQ32,Class1_UEL)-Class1_PT))","v":0},null,null,{"$f":"IF('C2'!CT32=\"\",0,MAX(0,MIN('C2'!CT32,Class1_UEL)-Class1_PT))","v":0},null,{"$f":"IF('C2'!CV32=\"\",0,MAX(0,MIN('C2'!CV32,Class1_UEL)-Class1_PT))","v":0},null,null,null,null,null,{"$f":"IF('C2'!DB32=\"\",0,MAX(0,MIN('C2'!DB32,Class1_UEL)-Class1_PT))","v":37700},null,{"$f":"IF('C2'!DD32=\"\",0,MAX(0,MIN('C2'!DD32,Class1_UEL)-Class1_PT))","v":0},{"$f":"IF('C2'!DE32=\"\",0,MAX(0,MIN('C2'!DE32,Class1_UEL)-Class1_PT))","v":0},{"$f":"IF('C2'!DF32=\"\",0,MAX(0,MIN('C2'!DF32,Class1_UEL)-Class1_PT))","v":0},null,null,{"$f":"IF('C2'!DI32=\"\",0,MAX(0,MIN('C2'!DI32,Class1_UEL)-Class1_PT))","v":0},null,{"$f":"IF('C2'!DK32=\"\",0,MAX(0,MIN('C2'!DK32,Class1_UEL)-Class1_PT))","v":0},{"$f":"IF('C2'!DL32=\"\",0,MAX(0,MIN('C2'!DL32,Class1_UEL)-Class1_PT))","v":5930},null,null,{"$f":"IF('C2'!DO32=\"\",0,MAX(0,MIN('C2'!DO32,Class1_UEL)-Class1_PT))","v":4426},{"$f":"IF('C2'!DP32=\"\",0,MAX(0,MIN('C2'!DP32,Class1_UEL)-Class1_PT))","v":0},null,null,{"$f":"IF('C2'!DS32=\"\",0,MAX(0,MIN('C2'!DS32,Class1_UEL)-Class1_PT))","v":4426},{"$f":"IF('C2'!DT32=\"\",0,MAX(0,MIN('C2'!DT32,Class1_UEL)-Class1_PT))","v":0},{"$f":"IF('C2'!DU32=\"\",0,MAX(0,MIN('C2'!DU32,Class1_UEL)-Class1_PT))","v":0},{"$f":"IF('C2'!DV32=\"\",0,MAX(0,MIN('C2'!DV32,Class1_UEL)-Class1_PT))","v":0},null,null,null,null,{"$f":"IF('C2'!EA32=\"\",0,MAX(0,MIN('C2'!EA32,Class1_UEL)-Class1_PT))","v":0},null,null,{"$f":"IF('C2'!ED32=\"\",0,MAX(0,MIN('C2'!ED32,Class1_UEL)-Class1_PT))","v":0},{"$f":"IF('C2'!EE32=\"\",0,MAX(0,MIN('C2'!EE32,Class1_UEL)-Class1_PT))","v":37700},null,{"$f":"IF('C2'!EG32=\"\",0,MAX(0,MIN('C2'!EG32,Class1_UEL)-Class1_PT))","v":0},{"$f":"IF('C2'!EH32=\"\",0,MAX(0,MIN('C2'!EH32,Class1_UEL)-Class1_PT))","v":0},{"$f":"IF('C2'!EI32=\"\",0,MAX(0,MIN('C2'!EI32,Class1_UEL)-Class1_PT))","v":0},{"$f":"IF('C2'!EJ32=\"\",0,MAX(0,MIN('C2'!EJ32,Class1_UEL)-Class1_PT))","v":0},{"$f":"IF('C2'!EK32=\"\",0,MAX(0,MIN('C2'!EK32,Class1_UEL)-Class1_PT))","v":0},{"$f":"IF('C2'!EL32=\"\",0,MAX(0,MIN('C2'!EL32,Class1_UEL)-Class1_PT))","v":0},null,null,{"$f":"IF('C2'!EO32=\"\",0,MAX(0,MIN('C2'!EO32,Class1_UEL)-Class1_PT))","v":0},{"$f":"IF('C2'!EP32=\"\",0,MAX(0,MIN('C2'!EP32,Class1_UEL)-Class1_PT))","v":0},null,null,null,null,null,null,null,null,null,{"$f":"IF('C2'!EZ32=\"\",0,MAX(0,MIN('C2'!EZ32,Class1_UEL)-Class1_PT))","v":0},null,{"$f":"IF('C2'!FB32=\"\",0,MAX(0,MIN('C2'!FB32,Class1_UEL)-Class1_PT))","v":0},{"$f":"IF('C2'!FC32=\"\",0,MAX(0,MIN('C2'!FC32,Class1_UEL)-Class1_PT))","v":0},{"$f":"IF('C2'!FD32=\"\",0,MAX(0,MIN('C2'!FD32,Class1_UEL)-Class1_PT))","v":10026},null,null,null,null,null,null,null,null,{"$f":"IF('C2'!FM32=\"\",0,MAX(0,MIN('C2'!FM32,Class1_UEL)-Class1_PT))","v":0},{"$f":"IF('C2'!FN32=\"\",0,MAX(0,MIN('C2'!FN32,Class1_UEL)-Class1_PT))","v":0},{"$f":"IF('C2'!FO32=\"\",0,MAX(0,MIN('C2'!FO32,Class1_UEL)-Class1_PT))","v":37700},{"$f":"IF('C2'!FP32=\"\",0,MAX(0,MIN('C2'!FP32,Class1_UEL)-Class1_PT))","v":0},{"$f":"IF('C2'!FQ32=\"\",0,MAX(0,MIN('C2'!FQ32,Class1_UEL)-Class1_PT))","v":0},null,null,null,null,null,{"$f":"IF('C2'!FW32=\"\",0,MAX(0,MIN('C2'!FW32,Class1_UEL)-Class1_PT))","v":0},null,null,null,null,null,{"$f":"IF('C2'!GC32=\"\",0,MAX(0,MIN('C2'!GC32,Class1_UEL)-Class1_PT))","v":14945},{"$f":"IF('C2'!GD32=\"\",0,MAX(0,MIN('C2'!GD32,Class1_UEL)-Class1_PT))","v":0},null,{"$f":"IF('C2'!GF32=\"\",0,MAX(0,MIN('C2'!GF32,Class1_UEL)-Class1_PT))","v":0},null,null,null,null,{"$f":"IF('C2'!GK32=\"\",0,MAX(0,MIN('C2'!GK32,Class1_UEL)-Class1_PT))","v":0},null,null,null,{"$f":"IF('C2'!GO32=\"\",0,MAX(0,MIN('C2'!GO32,Class1_UEL)-Class1_PT))","v":0},{"$f":"IF('C2'!GP32=\"\",0,MAX(0,MIN('C2'!GP32,Class1_UEL)-Class1_PT))","v":0},{"$f":"IF('C2'!GQ32=\"\",0,MAX(0,MIN('C2'!GQ32,Class1_UEL)-Class1_PT))","v":0},{"$f":"IF('C2'!GR32=\"\",0,MAX(0,MIN('C2'!GR32,Class1_UEL)-Class1_PT))","v":0},{"$f":"IF('C2'!GS32=\"\",0,MAX(0,MIN('C2'!GS32,Class1_UEL)-Class1_PT))","v":0},null,null,{"$f":"IF('C2'!GV32=\"\",0,MAX(0,MIN('C2'!GV32,Class1_UEL)-Class1_PT))","v":0},{"$f":"IF('C2'!GW32=\"\",0,MAX(0,MIN('C2'!GW32,Class1_UEL)-Class1_PT))","v":0},{"$f":"IF('C2'!GX32=\"\",0,MAX(0,MIN('C2'!GX32,Class1_UEL)-Class1_PT))","v":37700},null,{"$f":"IF('C2'!GZ32=\"\",0,MAX(0,MIN('C2'!GZ32,Class1_UEL)-Class1_PT))","v":0},{"$f":"IF('C2'!HA32=\"\",0,MAX(0,MIN('C2'!HA32,Class1_UEL)-Class1_PT))","v":0},{"$f":"IF('C2'!HB32=\"\",0,MAX(0,MIN('C2'!HB32,Class1_UEL)-Class1_PT))","v":34430},null,null,null,{"$f":"IF('C2'!HF32=\"\",0,MAX(0,MIN('C2'!HF32,Class1_UEL)-Class1_PT))","v":0},{"$f":"IF('C2'!HG32=\"\",0,MAX(0,MIN('C2'!HG32,Class1_UEL)-Class1_PT))","v":0},null,{"$f":"IF('C2'!HI32=\"\",0,MAX(0,MIN('C2'!HI32,Class1_UEL)-Class1_PT))","v":0},null,null,null,null,null,{"$f":"IF('C2'!HO32=\"\",0,MAX(0,MIN('C2'!HO32,Class1_UEL)-Class1_PT))","v":0},null,null,null,null,null,null,null,null,null,{"$f":"IF('C2'!HY32=\"\",0,MAX(0,MIN('C2'!HY32,Class1_UEL)-Class1_PT))","v":0},null,null,null,null,null,{"$f":"IF('C2'!IE32=\"\",0,MAX(0,MIN('C2'!IE32,Class1_UEL)-Class1_PT))","v":0},{"$f":"IF('C2'!IF32=\"\",0,MAX(0,MIN('C2'!IF32,Class1_UEL)-Class1_PT))","v":0},{"$f":"IF('C2'!IG32=\"\",0,MAX(0,MIN('C2'!IG32,Class1_UEL)-Class1_PT))","v":0},{"$f":"IF('C2'!IH32=\"\",0,MAX(0,MIN('C2'!IH32,Class1_UEL)-Class1_PT))","v":0},{"$f":"IF('C2'!II32=\"\",0,MAX(0,MIN('C2'!II32,Class1_UEL)-Class1_PT))","v":2334},null,{"$f":"IF('C2'!IK32=\"\",0,MAX(0,MIN('C2'!IK32,Class1_UEL)-Class1_PT))","v":0},null,null,null,{"$f":"IF('C2'!IO32=\"\",0,MAX(0,MIN('C2'!IO32,Class1_UEL)-Class1_PT))","v":0},null,null,null,{"$f":"IF('C2'!IS32=\"\",0,MAX(0,MIN('C2'!IS32,Class1_UEL)-Class1_PT))","v":0},null,null,null,null,{"$f":"IF('C2'!IX32=\"\",0,MAX(0,MIN('C2'!IX32,Class1_UEL)-Class1_PT))","v":0},{"$f":"IF('C2'!IY32=\"\",0,MAX(0,MIN('C2'!IY32,Class1_UEL)-Class1_PT))","v":0},{"$f":"IF('C2'!IZ32=\"\",0,MAX(0,MIN('C2'!IZ32,Class1_UEL)-Class1_PT))","v":0},null,null,null,null,{"$f":"IF('C2'!JE32=\"\",0,MAX(0,MIN('C2'!JE32,Class1_UEL)-Class1_PT))","v":0},{"$f":"IF('C2'!JF32=\"\",0,MAX(0,MIN('C2'!JF32,Class1_UEL)-Class1_PT))","v":0},null,null,null,{"$f":"IF('C2'!JJ32=\"\",0,MAX(0,MIN('C2'!JJ32,Class1_UEL)-Class1_PT))","v":0}]
[4,{"$f":"IF(NI1_IND>1,IF(HLOOKUP(NI1_IND-1,NI1_RANGE,A106)=\"\",\"\",HLOOKUP(NI1_IND-1,NI1_RANGE,A106)),\"\")","v":37700},"TotalCL1",null,{"$f":"E104+E105","v":0},20684,{"$f":"G104+G105","v":19147},37350,null,null,24281,null,null,null,11108,null,35914,34384,null,null,37700,35882,37700,0,1304,37700,22684,null,null,37700,23910,null,37700,{"$f":"AH104+AH105","v":37700},null,{"$f":"AJ104+AJ105","v":21180},{"$f":"AK104+AK105","v":26059},{"$f":"AL104+AL105","v":37700},{"$f":"AM104+AM105","v":0},null,null,{"$f":"AP104+AP105","v":0},{"$f":"AQ104+AQ105","v":37700},null,{"$f":"AS104+AS105","v":43630},{"$f":"AT104+AT105","v":36180},{"$f":"AU104+AU105","v":27701},null,null,null,null,null,{"$f":"BA104+BA105","v":52645},null,null,{"$f":"BD104+BD105","v":43630},0,18864,37430,0,20030,null,null,null,{"$f":"BM104+BM105","v":14945},{"$f":"BN104+BN105","v":0},{"$f":"BO104+BO105","v":20684},null,null,null,null,null,null,null,null,null,null,null,null,null,null,null,{"$f":"CE104+CE105","v":43630},{"$f":"CF104+CF105","v":20684},null,{"$f":"CH104+CH105","v":20684},null,null,null,null,null,{"$f":"CN104+CN105","v":5930},{"$f":"CO104+CO105","v":5930},null,null,null,null,null,null,{"$f":"CV104+CV105","v":14945},null,null,null,null,null,{"$f":"DB104+DB105","v":40464},null,null,{"$f":"DE104+DE105","v":5930},{"$f":"DF104+DF105","v":32430},null,null,null,null,{"$f":"DK104+DK105","v":14945},{"$f":"DL104+DL105","v":43630},null,null,{"$f":"DO104+DO105","v":42126},{"$f":"DP104+DP105","v":37700},null,null,{"$f":"DS104+DS105","v":42126},{"$f":"DT104+DT105","v":37700},null,{"$f":"DV104+DV105","v":17920},null,null,null,null,null,null,null,{"$f":"ED104+ED105","v":20684},{"$f":"EE104+EE105","v":58384},null,{"$f":"EG104+EG105","v":0},{"$f":"EH104+EH105","v":37700},{"$f":"EI104+EI105","v":37700},null,null,{"$f":"EL104+EL105","v":37700},null,null,{"$f":"EO104+EO105","v":37700},{"$f":"EP104+EP105","v":37030},null,null,null,null,null,null,null,null,null,{"$f":"EZ104+EZ105","v":5930},null,null,{"$f":"FC104+FC105","v":37700},{"$f":"FD104+FD105","v":47726},null,null,null,null,null,null,null,null,null,{"$f":"FN104+FN105","v":37700},{"$f":"FO104+FO105","v":75400},{"$f":"FP104+FP105","v":37700},{"$f":"FQ104+FQ105","v":20684},null,null,null,null,null,{"$f":"FW104+FW105","v":5930},null,null,null,null,null,{"$f":"GC104+GC105","v":15375},{"$f":"GD104+GD105","v":0},null,{"$f":"GF104+GF105","v":2430},null,null,null,null,{"$f":"GK104+GK105","v":0},null,null,null,{"$f":"GO104+GO105","v":20684},{"$f":"GP104+GP105","v":37700},{"$f":"GQ104+GQ105","v":5930},{"$f":"GR104+GR105","v":25529},{"$f":"GS104+GS105","v":37700},null,null,null,{"$f":"GW104+GW105","v":22721},{"$f":"GX104+GX105","v":75400},null,{"$f":"GZ104+GZ105","v":37700},{"$f":"HA104+HA105","v":37700},{"$f":"HB104+HB105","v":72130},null,null,null,{"$f":"HF104+HF105","v":37700},{"$f":"HG104+HG105","v":36380},null,{"$f":"HI104+HI105","v":37700},null,null,null,null,null,null,null,null,null,null,null,null,null,null,null,{"$f":"HY104+HY105","v":35448},null,null,null,null,null,{"$f":"IE104+IE105","v":12344},{"$f":"IF104+IF105","v":1000},{"$f":"IG104+IG105","v":0},{"$f":"IH104+IH105","v":17523},{"$f":"II104+II105","v":40034},null,{"$f":"IK104+IK105","v":37700},null,null,null,null,null,null,null,{"$f":"IS104+IS105","v":37700},null,null,null,null,{"$f":"IX104+IX105","v":37700},{"$f":"IY104+IY105","v":7219},{"$f":"IZ104+IZ105","v":20684},null,null,null,null,{"$f":"JE104+JE105","v":20684},{"$f":"JF104+JF105","v":22684},null,null,null,{"$f":"JJ104+JJ105","v":37700}]
[]
["row","selected","NI1_MOR",null,1,2,3,4,5,6,7,8,9,10,11,12,13,14,15,16,17,18,19,20,21,22,23,24,25,26,27,28,29,30,31,32,33,34,35,36,37,38,39,40,41,42,43,44,45,46,47,48,49,50,51,52,53,54,55,56,57,58,59,60,61,62,63,64,65,66,67,68,69,70,71,72,73,74,75,76,77,78,79,80,81,82,83,84,85,86,87,88,89,90,91,92,93,94,95,96,97,98,99,100,101,102,103,104,105,106,107,108,109,110,111,112,113,114,115,116,117,118,119,120,121,122,123,124,125,126,127,128,129,130,131,132,133,134,135,136,137,138,139,140,141,142,143,144,145,146,147,148,149,150,151,152,153,154,155,156,157,158,159,160,161,162,163,164,165,166,167,168,169,170,171,172,173,174,175,176,177,178,179,180,181,182,183,184,185,186,187,188,189,190,191,192,193,194,195,196,197,198,199,200,201,202,203,204,205,206,207,208,209,210,211,212,213,214,215,216,217,218,219,220,221,222,223,224,225,226,227,228,229,230,231,232,233,234,235,236,237,238,239,240,241,242,243,244,245,246,247,248,249,250,251,252,253,254,255,256,257,258,259,260,261,262,263,264,265,266,267,268,269,270,271,272,273]
[2,{"$f":"IF(NI1_IND>1,IF(HLOOKUP(NI1_IND-1,NI1_MOR_RANGE,A109)=\"\",\"\",HLOOKUP(NI1_IND-1,NI1_MOR_RANGE,A109)),\"\")","v":0},"EMPCL1_A",null,{"$f":"IF('C2'!E62=\"\",0,MAX(0,MIN('C2'!E62,Class1_UEL)-Class1_PT))","v":0},{"$f":"IF('C2'!F62=\"\",0,MAX(0,MIN('C2'!F62,Class1_UEL)-Class1_PT))","v":0},{"$f":"IF('C2'!G62=\"\",0,MAX(0,MIN('C2'!G62,Class1_UEL)-Class1_PT))","v":0},{"$f":"IF('C2'!H62=\"\",0,MAX(0,MIN('C2'!H62,Class1_UEL)-Class1_PT))","v":0},null,null,{"$f":"IF('C2'!K62=\"\",0,MAX(0,MIN('C2'!K62,Class1_UEL)-Class1_PT))","v":0},null,null,null,{"$f":"IF('C2'!O62=\"\",0,MAX(0,MIN('C2'!O62,Class1_UEL)-Class1_PT))","v":0},null,{"$f":"IF('C2'!Q62=\"\",0,MAX(0,MIN('C2'!Q62,Class1_UEL)-Class1_PT))","v":0},{"$f":"IF('C2'!R62=\"\",0,MAX(0,MIN('C2'!R62,Class1_UEL)-Class1_PT))","v":0},null,null,{"$f":"IF('C2'!U62=\"\",0,MAX(0,MIN('C2'!U62,Class1_UEL)-Class1_PT))","v":0},{"$f":"IF('C2'!V62=\"\",0,MAX(0,MIN('C2'!V62,Class1_UEL)-Class1_PT))","v":0},{"$f":"IF('C2'!W62=\"\",0,MAX(0,MIN('C2'!W62,Class1_UEL)-Class1_PT))","v":0},{"$f":"IF('C2'!X62=\"\",0,MAX(0,MIN('C2'!X62,Class1_UEL)-Class1_PT))","v":0},{"$f":"IF('C2'!Y62=\"\",0,MAX(0,MIN('C2'!Y62,Class1_UEL)-Class1_PT))","v":0},null,{"$f":"IF('C2'!JQ62=\"\",0,MAX(0,MIN('C2'!JQ62,Class1_UEL)-Class1_PT))","v":0},null,{"$f":"IF('C2'!AC62=\"\",0,MAX(0,MIN('C2'!AC62,Class1_UEL)-Class1_PT))","v":0},{"$f":"IF('C2'!AD62=\"\",0,MAX(0,MIN('C2'!AD62,Class1_UEL)-Class1_PT))","v":0},{"$f":"IF('C2'!AE62=\"\",0,MAX(0,MIN('C2'!AE62,Class1_UEL)-Class1_PT))","v":0},null,{"$f":"IF('C2'!AG62=\"\",0,MAX(0,MIN('C2'!AG62,Class1_UEL)-Class1_PT))","v":0},{"$f":"IF('C2'!AH62=\"\",0,MAX(0,MIN('C2'!AH62,Class1_UEL)-Class1_PT))","v":0},{"$f":"IF('C2'!AI62=\"\",0,MAX(0,MIN('C2'!AI62,Class1_UEL)-Class1_PT))","v":0},{"$f":"IF('C2'!AJ62=\"\",0,MAX(0,MIN('C2'!AJ62,Class1_UEL)-Class1_PT))","v":0},{"$f":"IF('C2'!AK62=\"\",0,MAX(0,MIN('C2'!AK62,Class1_UEL)-Class1_PT))","v":0},null,null,null,null,{"$f":"IF('C2'!AP62=\"\",0,MAX(0,MIN('C2'!AP62,Class1_UEL)-Class1_PT))","v":0},{"$f":"IF('C2'!AQ62=\"\",0,MAX(0,MIN('C2'!AQ62,Class1_UEL)-Class1_PT))","v":0},null,{"$f":"IF('C2'!AS62=\"\",0,MAX(0,MIN('C2'!AS62,Class1_UEL)-Class1_PT))","v":0},{"$f":"IF('C2'!AT62=\"\",0,MAX(0,MIN('C2'!AT62,Class1_UEL)-Class1_PT))","v":0},{"$f":"IF('C2'!AU62=\"\",0,MAX(0,MIN('C2'!AU62,Class1_UEL)-Class1_PT))","v":0},null,null,null,null,null,{"$f":"IF('C2'!BA62=\"\",0,MAX(0,MIN('C2'!BA62,Class1_UEL)-Class1_PT))","v":0},{"$f":"IF('C2'!BB62=\"\",0,MAX(0,MIN('C2'!BB62,Class1_UEL)-Class1_PT))","v":0},null,{"$f":"IF('C2'!BD62=\"\",0,MAX(0,MIN('C2'!BD62,Class1_UEL)-Class1_PT))","v":0},{"$f":"IF('C2'!BE62=\"\",0,MAX(0,MIN('C2'!BE62,Class1_UEL)-Class1_PT))","v":0},{"$f":"IF('C2'!BF62=\"\",0,MAX(0,MIN('C2'!BF62,Class1_UEL)-Class1_PT))","v":0},{"$f":"IF('C2'!BG62=\"\",0,MAX(0,MIN('C2'!BG62,Class1_UEL)-Class1_PT))","v":0},{"$f":"IF('C2'!BH62=\"\",0,MAX(0,MIN('C2'!BH62,Class1_UEL)-Class1_PT))","v":0},{"$f":"IF('C2'!BI62=\"\",0,MAX(0,MIN('C2'!BI62,Class1_UEL)-Class1_PT))","v":0},null,null,null,{"$f":"IF('C2'!BM62=\"\",0,MAX(0,MIN('C2'!BM62,Class1_UEL)-Class1_PT))","v":0},null,{"$f":"IF('C2'!BO62=\"\",0,MAX(0,MIN('C2'!BO62,Class1_UEL)-Class1_PT))","v":0},null,null,null,{"$f":"IF('C2'!BS62=\"\",0,MAX(0,MIN('C2'!BS62,Class1_UEL)-Class1_PT))","v":0},null,null,null,null,null,null,null,null,null,null,{"$f":"IF('C2'!CD62=\"\",0,MAX(0,MIN('C2'!CD62,Class1_UEL)-Class1_PT))","v":0},{"$f":"IF('C2'!CE62=\"\",0,MAX(0,MIN('C2'!CE62,Class1_UEL)-Class1_PT))","v":0},{"$f":"IF('C2'!CF62=\"\",0,MAX(0,MIN('C2'!CF62,Class1_UEL)-Class1_PT))","v":0},null,{"$f":"IF('C2'!CH62=\"\",0,MAX(0,MIN('C2'!CH62,Class1_UEL)-Class1_PT))","v":0},null,null,null,null,null,{"$f":"IF('C2'!CN62=\"\",0,MAX(0,MIN('C2'!CN62,Class1_UEL)-Class1_PT))","v":0},{"$f":"IF('C2'!CO62=\"\",0,MAX(0,MIN('C2'!CO62,Class1_UEL)-Class1_PT))","v":0},null,{"$f":"IF('C2'!CQ62=\"\",0,MAX(0,MIN('C2'!CQ62,Class1_UEL)-Class1_PT))","v":0},null,null,{"$f":"IF('C2'!CT62=\"\",0,MAX(0,MIN('C2'!CT62,Class1_UEL)-Class1_PT))","v":2197},null,{"$f":"IF('C2'!CV62=\"\",0,MAX(0,MIN('C2'!CV62,Class1_UEL)-Class1_PT))","v":0},null,null,null,null,null,{"$f":"IF('C2'!DB62=\"\",0,MAX(0,MIN('C2'!DB62,Class1_UEL)-Class1_PT))","v":0},null,{"$f":"IF('C2'!DD62=\"\",0,MAX(0,MIN('C2'!DD62,Class1_UEL)-Class1_PT))","v":0},{"$f":"IF('C2'!DE62=\"\",0,MAX(0,MIN('C2'!DE62,Class1_UEL)-Class1_PT))","v":0},{"$f":"IF('C2'!DF62=\"\",0,MAX(0,MIN('C2'!DF62,Class1_UEL)-Class1_PT))","v":0},null,null,{"$f":"IF('C2'!DI62=\"\",0,MAX(0,MIN('C2'!DI62,Class1_UEL)-Class1_PT))","v":0},null,{"$f":"IF('C2'!DK62=\"\",0,MAX(0,MIN('C2'!DK62,Class1_UEL)-Class1_PT))","v":0},{"$f":"IF('C2'!DL62=\"\",0,MAX(0,MIN('C2'!DL62,Class1_UEL)-Class1_PT))","v":0},null,null,null,null,null,null,null,{"$f":"IF('C2'!DT62=\"\",0,MAX(0,MIN('C2'!DT62,Class1_UEL)-Class1_PT))","v":0},{"$f":"IF('C2'!DU62=\"\",0,MAX(0,MIN('C2'!DU62,Class1_UEL)-Class1_PT))","v":0},{"$f":"IF('C2'!DV62=\"\",0,MAX(0,MIN('C2'!DV62,Class1_UEL)-Class1_PT))","v":0},null,null,null,null,{"$f":"IF('C2'!EA62=\"\",0,MAX(0,MIN('C2'!EA62,Class1_UEL)-Class1_PT))","v":0},{"$f":"IF('C2'!EB62=\"\",0,MAX(0,MIN('C2'!EB62,Class1_UEL)-Class1_PT))","v":2680},{"$f":"IF('C2'!EC62=\"\",0,MAX(0,MIN('C2'!EC62,Class1_UEL)-Class1_PT))","v":2197},{"$f":"IF('C2'!ED62=\"\",0,MAX(0,MIN('C2'!ED62,Class1_UEL)-Class1_PT))","v":0},{"$f":"IF('C2'!EE62=\"\",0,MAX(0,MIN('C2'!EE62,Class1_UEL)-Class1_PT))","v":0},null,{"$f":"IF('C2'!EG62=\"\",0,MAX(0,MIN('C2'!EG62,Class1_UEL)-Class1_PT))","v":0},{"$f":"IF('C2'!EH62=\"\",0,MAX(0,MIN('C2'!EH62,Class1_UEL)-Class1_PT))","v":0},{"$f":"IF('C2'!EI62=\"\",0,MAX(0,MIN('C2'!EI62,Class1_UEL)-Class1_PT))","v":0},{"$f":"IF('C2'!EJ62=\"\",0,MAX(0,MIN('C2'!EJ62,Class1_UEL)-Class1_PT))","v":0},{"$f":"IF('C2'!EK62=\"\",0,MAX(0,MIN('C2'!EK62,Class1_UEL)-Class1_PT))","v":0},{"$f":"IF('C2'!EL62=\"\",0,MAX(0,MIN('C2'!EL62,Class1_UEL)-Class1_PT))","v":0},null,null,{"$f":"IF('C2'!EO62=\"\",0,MAX(0,MIN('C2'!EO62,Class1_UEL)-Class1_PT))","v":0},{"$f":"IF('C2'!EP62=\"\",0,MAX(0,MIN('C2'!EP62,Class1_UEL)-Class1_PT))","v":0},null,null,null,null,null,null,null,null,null,{"$f":"IF('C2'!EZ62=\"\",0,MAX(0,MIN('C2'!EZ62,Class1_UEL)-Class1_PT))","v":0},null,{"$f":"IF('C2'!FB62=\"\",0,MAX(0,MIN('C2'!FB62,Class1_UEL)-Class1_PT))","v":2197},{"$f":"IF('C2'!FC62=\"\",0,MAX(0,MIN('C2'!FC62,Class1_UEL)-Class1_PT))","v":0},{"$f":"IF('C2'!FD62=\"\",0,MAX(0,MIN('C2'!FD62,Class1_UEL)-Class1_PT))","v":0},null,null,null,null,null,null,null,null,{"$f":"IF('C2'!FM62=\"\",0,MAX(0,MIN('C2'!FM62,Class1_UEL)-Class1_PT))","v":0},{"$f":"IF('C2'!FN62=\"\",0,MAX(0,MIN('C2'!FN62,Class1_UEL)-Class1_PT))","v":0},{"$f":"IF('C2'!FO62=\"\",0,MAX(0,MIN('C2'!FO62,Class1_UEL)-Class1_PT))","v":0},{"$f":"IF('C2'!FP62=\"\",0,MAX(0,MIN('C2'!FP62,Class1_UEL)-Class1_PT))","v":0},{"$f":"IF('C2'!FQ62=\"\",0,MAX(0,MIN('C2'!FQ62,Class1_UEL)-Class1_PT))","v":0},null,null,null,null,null,{"$f":"IF('C2'!FW62=\"\",0,MAX(0,MIN('C2'!FW62,Class1_UEL)-Class1_PT))","v":0},null,null,null,null,null,{"$f":"IF('C2'!GC62=\"\",0,MAX(0,MIN('C2'!GC62,Class1_UEL)-Class1_PT))","v":0},{"$f":"IF('C2'!GD62=\"\",0,MAX(0,MIN('C2'!GD62,Class1_UEL)-Class1_PT))","v":0},null,{"$f":"IF('C2'!GF62=\"\",0,MAX(0,MIN('C2'!GF62,Class1_UEL)-Class1_PT))","v":0},null,null,null,null,{"$f":"IF('C2'!GK62=\"\",0,MAX(0,MIN('C2'!GK62,Class1_UEL)-Class1_PT))","v":0},null,null,null,{"$f":"IF('C2'!GO62=\"\",0,MAX(0,MIN('C2'!GO62,Class1_UEL)-Class1_PT))","v":0},{"$f":"IF('C2'!GP62=\"\",0,MAX(0,MIN('C2'!GP62,Class1_UEL)-Class1_PT))","v":0},{"$f":"IF('C2'!GQ62=\"\",0,MAX(0,MIN('C2'!GQ62,Class1_UEL)-Class1_PT))","v":0},{"$f":"IF('C2'!GR62=\"\",0,MAX(0,MIN('C2'!GR62,Class1_UEL)-Class1_PT))","v":0},{"$f":"IF('C2'!GS62=\"\",0,MAX(0,MIN('C2'!GS62,Class1_UEL)-Class1_PT))","v":0},null,null,{"$f":"IF('C2'!GV62=\"\",0,MAX(0,MIN('C2'!GV62,Class1_UEL)-Class1_PT))","v":0},{"$f":"IF('C2'!GW62=\"\",0,MAX(0,MIN('C2'!GW62,Class1_UEL)-Class1_PT))","v":0},{"$f":"IF('C2'!GX62=\"\",0,MAX(0,MIN('C2'!GX62,Class1_UEL)-Class1_PT))","v":0},null,{"$f":"IF('C2'!GZ62=\"\",0,MAX(0,MIN('C2'!GZ62,Class1_UEL)-Class1_PT))","v":0},{"$f":"IF('C2'!HA62=\"\",0,MAX(0,MIN('C2'!HA62,Class1_UEL)-Class1_PT))","v":0},{"$f":"IF('C2'!HB62=\"\",0,MAX(0,MIN('C2'!HB62,Class1_UEL)-Class1_PT))","v":0},null,null,null,{"$f":"IF('C2'!HF62=\"\",0,MAX(0,MIN('C2'!HF62,Class1_UEL)-Class1_PT))","v":0},{"$f":"IF('C2'!HG62=\"\",0,MAX(0,MIN('C2'!HG62,Class1_UEL)-Class1_PT))","v":0},null,{"$f":"IF('C2'!HI62=\"\",0,MAX(0,MIN('C2'!HI62,Class1_UEL)-Class1_PT))","v":0},null,null,null,null,null,{"$f":"IF('C2'!HO62=\"\",0,MAX(0,MIN('C2'!HO62,Class1_UEL)-Class1_PT))","v":0},null,null,null,null,null,null,null,null,null,{"$f":"IF('C2'!HY62=\"\",0,MAX(0,MIN('C2'!HY62,Class1_UEL)-Class1_PT))","v":0},null,null,null,null,null,{"$f":"IF('C2'!IE62=\"\",0,MAX(0,MIN('C2'!IE62,Class1_UEL)-Class1_PT))","v":0},{"$f":"IF('C2'!IF62=\"\",0,MAX(0,MIN('C2'!IF62,Class1_UEL)-Class1_PT))","v":0},{"$f":"IF('C2'!IG62=\"\",0,MAX(0,MIN('C2'!IG62,Class1_UEL)-Class1_PT))","v":0},{"$f":"IF('C2'!IH62=\"\",0,MAX(0,MIN('C2'!IH62,Class1_UEL)-Class1_PT))","v":0},{"$f":"IF('C2'!II62=\"\",0,MAX(0,MIN('C2'!II62,Class1_UEL)-Class1_PT))","v":0},null,{"$f":"IF('C2'!IK62=\"\",0,MAX(0,MIN('C2'!IK62,Class1_UEL)-Class1_PT))","v":0},null,null,null,{"$f":"IF('C2'!IO62=\"\",0,MAX(0,MIN('C2'!IO62,Class1_UEL)-Class1_PT))","v":0},null,null,null,{"$f":"IF('C2'!IS62=\"\",0,MAX(0,MIN('C2'!IS62,Class1_UEL)-Class1_PT))","v":0},null,null,null,null,null,null,null,null,null,null,null,null,null,null,null,null,{"$f":"IF('C2'!JJ62=\"\",0,MAX(0,MIN('C2'!JJ62,Class1_UEL)-Class1_PT))","v":0}]

{"sheet":"C3","index":12,"n_rows":220,"n_cols":280,"rows_kept":220,"cut":false,"hidden":true,"merged":[]}
[null,null,null,null,1,2,3,4,5,6,7,8,9,10,11,12,13,14,15,16,17,18,19,20,21,22,23,24,25,26,27,28,29,30,31,32,33,34,35,36,37,38,39,40,41,42,43,44,45,46,47,48,49,50,51,52,53,54,55,56,57,58,59,60,61,62,63,64,65,66,67,68,69,70,71,72,73,74,75,76,77,78,79,80,81,82,83,84,85,86,87,88,89,90,91,92,93,94,95,96,97,98,99,100,101,102,103,104,105,106,107,108,109,110,111,112,113,114,115,116,117,118,119,120,121,122,123,124,125,126,127,128,129,130,131,132,133,134,135,136,137,138,139,140,141,142,143,144,145,146,147,148,149,150,151,152,153,154,155,156,157,158,159,160,161,162,163,164,165,166,167,168,169,170,171,172,173,174,175,176,177,178,179,180,181,182,183,184,185,186,187,188,189,190,191,192,193,194,195,196,197,198,199,200,201,202,203,204,205,206,207,208,209,210,211,212,213,214,215,216,217,218,219,220,221,222,223,224,225,226,227,228,229,230,231,232,233,234,235,236,237,238,239,240,241,242,243,244,245,246,247,248,249,250,251,252,253,254,255,256,257,258,259,260,261,262,263,264,265,266,267,268,269,270,271,272,273,null," Validation","Type"]
["row",{"$f":"\"selected \"&SE_A_IND-1","v":"selected 168"},"SSE",null,1,2,3,4,5,6,7,8,9,10,11,12,13,14,15,16,17,18,19,20,21,22,23,24,25,26,27,28,29,30,31,32,33,34,35,36,37,38,39,40,41,42,43,44,45,46,47,48,49,50,51,52,53,54,55,56,57,58,59,60,61,62,63,64,65,66,67,68,69,70,71,72,73,74,75,76,77,78,79,80,81,82,83,84,85,86,87,88,89,90,91,92,93,94,95,96,97,98,99,100,101,102,103,104,105,106,107,108,109,110,111,112,113,114,115,116,117,118,119,120,121,122,123,124,125,126,127,128,129,130,131,132,133,134,135,136,137,138,139,140,141,142,143,144,145,146,147,148,149,150,151,152,153,154,155,156,157,158,159,160,161,162,163,164,165,166,167,168,169,170,171,172,173,174,175,176,177,178,179,180,181,182,183,184,185,186,187,188,189,190,191,192,193,194,195,196,197,198,199,200,201,202,203,204,205,206,207,208,209,210,211,212,213,214,215,216,217,218,219,220,221,222,223,224,225,226,227,228,229,230,231,232,233,234,235,236,237,238,239,240,241,242,243,244,245,246,247,248,249,250,251,252,253,254,255,256,257,258,259,260,261,262,263,264,265,266,267,268,269,270,271,272,273,null," Validation","Type"]
[2,{"$f":"IF(SE_A_IND>1,IF(HLOOKUP(SE_A_IND-1,SSE_RANGE,A3)=\"\",\"\",HLOOKUP(SE_A_IND-1,SSE_RANGE,A3)),\"\")","v":"caterer"},"SSE1","Description of Business",null,null,null,null,null,null,null,null,"Courier",null,null,null,"Consultancy",null,null,null,null,null,null,null,null,"carpenter",null,null,"labourer",null,null,null,null,null,"florist",null,null,null,null,null,null,null,null,null,null,"florist",null,"Plumbing",null,null,null,null,null,null,null,"florist","carpenter",null,null,null,null,null,null,null,null,null,null,null,null,null,null,null,null,"Courier",null,null,null,null,null,"Courier",null,null,null,null,null,null,null,"gifts",null,null,null,null,"florist","Courier",null,null,null,null,null,null,null,null,null,null,null,null,"golf instructor","carpenter",null,null,null,null,null,null,null,null,null,"carpenter","CONSULT",null,null,null,"CONSULT",null,null,"Sewerage",null,null,null,null,"construction",null,null,"window cleaner","hair dresser",null,null,null,null,null,null,"locum optometrist","musical performing",null,null,null,null,null,null,null,null,null,null,null,null,null,null,null,null,"TRAINING","Courier",null,"Courier","Courier",null,null,"cattle",null,null,null,null,"caterer",null,null,null,null,null,null,null,null,null,null,null,null,null,null,null,null,null,null,"Courier",null,null,null,null,null,"Plumbing",null,"Plumbing",null,null,null,null,null,"carpenter",null,null,null,null,"florist",null,null,null,null,null,null,null,null,null,null,null,null,null,null,null,null,null,"Courier","carpenter","Courier",null,null,null,null,null,null,null,null,null,null,null,null,null,null,null,null,null,null,"gifts",null,null,null,null,null,null,null,null,null,null,null,null,null,null,"Courier",null,null,"Courier","Courier",null,null,null,"Courier",null,null,null,"Property Management",null,null,null,"SA non-empty string"]
[3,"","SSE2","Postcode of Business",null,null,null,null,null,null,null,null,null,null,null,null,null,null,null,null,null,null,null,null,null,null,null,null,null,null,null,null,null,null,null,null,null,null,null,null,null,null,null,null,null,null,null,null,null,null,null,null,null,null,null,null,null,null,null,null,null,null,null,null,null,null,null,null,null,null,null,null,null,null,null,null,null,null,null,null,null,null,null,null,null,null,null,null,null,null,null,null,null,null,null,null,null,null,null,null,null,null,null,null,null,null,null,null,null,null,null,null,null,null,null,null,null,null,null,null,null,null,null,null,null,null,null,null,null,null,null,null,null,null,null,null,null,null,null,null,null,null,"sw10 9qu",null,null,null,null,null,null,null,null,null,null,null,null,null,null,null,null,"B90 9UU",null,null,null,null,null,null,"n83 9hb",null,null,null,null,null,null,null,null,null,null,null,null,null,null,null,null,null,null,null,null,null,null,null,null,null,null,null,null,null,null,null,null,null,null,null,null,null,null,null,null,null,null,null,null,null,null,null,null,null,null,null,null,null,null,null,null,null,null,null,null,null,null,null,null,null,null,null,null,null,null,null,null,null,null,null,null,null,null,null,null,null,null,null,null,null,null,null,null,null,null,null,null,null,null,null,null,null,null,null,null,null,null,null,null,null,null,null,null,null,null,null,null,"SA string"]
[4,"","SSE3","Tick if details have changed",null,null,null,null,null,null,null,null,null,null,null,null,null,null,null,null,null,null,null,null,null,null,null,null,null,null,null,null,null,null,null,null,null,null,null,null,null,null,null,null,null,null,null,null,null,null,null,null,null,null,null,null,null,null,null,null,null,null,null,null,null,null,null,null,null,null,null,null,null,null,null,null,null,null,null,null,null,null,null,null,null,null,null,null,null,null,null,null,null,null,null,null,null,null,null,null,null,null,null,null,null,null,null,null,null,null,null,null,null,null,null,null,null,null,null,null,null,null,null,null,null,null,null,null,null,null,null,null,null,null,null,null,null,null,null,null,null,null,null,null,null,null,null,null,null,null,null,null,null,null,null,null,null,null,null,null,null,null,null,null,null,null,null,null,null,null,null,null,null,null,null,null,null,null,null,null,null,null,null,null,null,null,null,null,null,null,null,null,null,null,null,null,null,null,null,null,null,null,null,null,null,null,null,null,null,null,null,null,null,null,null,null,null,null,null,null,null,null,null,null,null,null,null,null,null,null,null,null,null,null,null,null,null,null,null,null,null,null,null,null,null,null,null,null,null,null,null,null,null,null,null,null,null,null,null,null,null,null,null,null,null,null,null,null,null,null,null,null,null,null,null,null,null,null,null,"\"yes\""]
[5,"","SSE4","Foster Carer or adult placement carer",null,null,null,null,null,null,null,null,null,null,null,null,null,null,null,null,null,null,null,null,null,null,null,null,null,null,null,null,null,null,null,null,null,null,null,null,null,null,null,null,null,null,null,null,null,null,null,null,null,null,null,null,null,null,null,null,null,null,null,null,null,null,null,null,null,null,null,null,null,null,null,null,null,null,null,null,null,null,null,null,null,null,null,null,null,null,null,null,null,null,null,null,null,null,null,null,null,null,null,null,null,null,null,null,null,null,null,null,null,null,null,null,null,null,null,null,null,null,null,null,null,null,null,null,null,null,null,null,null,null,null,null,null,null,null,null,null,null,null,null,null,null,null,null,null,null,null,null,null,null,null,null,null,null,null,null,null,null,null,null,null,null,null,null,null,null,null,null,null,null,null,null,null,null,null,null,null,null,null,null,null,null,null,null,null,null,null,null,null,null,null,null,null,null,null,null,null,null,null,null,null,null,null,null,null,null,null,null,null,null,null,null,null,null,null,null,null,null,null,null,null,null,null,null,null,null,null,null,null,null,null,null,null,null,null,null,null,null,null,null,null,null,null,null,null,null,null,null,null,null,null,null,null,null,null,null,null,null,null,null,null,null,null,null,null,null,null,null,null,null,null,null,null,null,null,"\"yes\""]
[6,"Y","SSE5Q","Did your business start in the return year",null,null,null,null,null,null,null,null,"Y",null,null,null,"N",null,null,null,null,null,null,null,null,"Y",null,null,"N",null,null,null,null,null,"N",null,null,null,null,null,null,null,null,null,null,"N",null,"Y",null,null,null,null,null,null,null,"N","N",null,null,null,null,null,null,null,null,null,null,null,null,null,null,null,null,"N",null,null,null,null,null,"Y",null,null,null,null,null,null,null,"N",null,null,null,null,"Y","Y",null,null,null,null,null,null,null,null,null,null,null,null,"Y","N",null,null,null,null,null,null,null,null,null,"N","N",null,null,null,"N",null,null,"Y",null,null,null,null,"Y",null,null,"N","N",null,null,null,null,null,null,"N","N",null,null,null,null,null,null,null,null,null,null,null,null,null,null,null,null,"N","Y",null,"Y","N",null,null,"N",null,null,null,null,"Y",null,null,null,null,null,null,null,null,null,null,null,null,null,null,null,null,null,null,"N",null,null,null,null,null,"Y",null,"Y",null,null,null,null,null,"N",null,null,null,null,"Y",null,null,null,null,null,null,null,null,null,null,null,null,null,null,null,null,null,"N","N","N",null,null,null,null,null,null,null,null,null,null,null,null,null,null,null,null,null,null,"N",null,null,null,null,null,null,null,null,null,null,null,null,null,null,"N",null,null,"N","N",null,null,null,"N",null,null,null,"Y"]
[7,"25/04/2025","SSE5","Date of Commencement",null,null,null,null,null,null,null,null,{"$f":"\"29/05/\"&Tax_year_start","v":"29/05/2025"},null,null,null,null,null,null,null,null,null,null,null,null,{"$f":"\"29/04/\"&Tax_year_start","v":"29/04/2025"},null,null,null,null,null,null,null,null,null,null,null,null,null,null,null,null,null,null,null,null,null,{"$f":"\"06/04/\"&Tax_year_start","v":"06/04/2025"},null,null,null,null,null,null,null,null,null,null,null,null,null,null,null,null,null,null,null,null,null,null,null,null,null,null,null,null,null,null,null,{"$f":"\"07/04/\"&Tax_year_start","v":"07/04/2025"},null,null,null,null,null,null,null,null,null,null,null,null,{"$f":"\"30/04/\"&Tax_year_start","v":"30/04/2025"},{"$f":"\"29/04/\"&Tax_year_start","v":"29/04/2025"},null,null,null,null,null,null,null,null,null,null,null,null,{"$f":"\"26/04/\"&Tax_year_start","v":"26/04/2025"},null,null,null,null,null,null,null,null,null,null,null,null,null,null,null,null,null,null,{"$f":"\"17/04/\"&Tax_year_start","v":"17/04/2025"},null,null,null,null,{"$f":"\"06/04/\"&Tax_year_start","v":"06/04/2025"},null,null,null,null,null,null,null,null,null,null,null,null,null,null,null,null,null,null,null,null,null,null,null,null,null,null,null,null,null,{"$f":"\"06/05/\"&Tax_year_start","v":"06/05/2025"},null,{"$f":"\"21/04/\"&Tax_year_start","v":"21/04/2025"},null,null,null,null,null,null,null,null,{"$f":"\"25/04/\"&Tax_year_start","v":"25/04/2025"},null,null,null,null,null,null,null,null,null,null,null,null,null,null,null,null,null,null,null,null,null,null,null,null,{"$f":"\"13/04/\"&Tax_year_start","v":"13/04/2025"},null,{"$f":"\"11/04/\"&Tax_year_start","v":"11/04/2025"},null,null,null,null,null,null,null,null,null,null,{"$f":"\"08/04/\"&Tax_year_start","v":"08/04/2025"},null,null,null,null,null,null,null,null,null,null,null,null,null,null,null,null,null,null,null,null,null,null,null,null,null,null,null,null,null,null,null,null,null,null,null,null,null,null,null,null,null,null,null,null,null,null,null,null,null,null,null,null,null,null,null,null,null,null,null,null,null,null,null,null,null,{"$f":"\"06/06/\"&Tax_year_start","v":"06/06/2025"},null,null,"must be within the current return year.","SA MTR date"]
[8,"Y","SSE6Q","Did your business cease in the return year",null,null,null,null,null,null,null,null,"N",null,null,null,"Y",null,null,null,null,null,null,null,null,"N",null,null,"Y",null,null,null,null,null,"Y",null,null,null,null,null,null,null,null,null,null,"Y",null,"N",null,null,null,null,null,null,null,"Y","Y",null,null,null,null,null,null,null,null,null,null,null,null,null,null,null,null,"Y",null,null,null,null,null,"N",null,null,null,null,null,null,null,"N",null,null,null,null,"Y","N",null,null,null,null,null,null,null,null,null,null,null,null,"Y","N",null,null,null,null,null,null,null,null,null,"Y","Y",null,null,null,"Y",null,null,"N",null,null,null,null,"N",null,null,"Y","Y",null,null,null,null,null,null,"Y","Y",null,null,null,null,null,null,null,null,null,null,null,null,null,null,null,null,"Y","N",null,"Y","Y",null,null,"Y",null,null,null,null,"Y",null,null,null,null,null,null,null,null,null,null,null,null,null,null,null,null,null,null,"Y",null,null,null,null,null,"Y",null,"Y",null,null,null,null,null,"Y",null,null,null,null,"Y",null,null,null,null,null,null,null,null,null,null,null,null,null,null,null,null,null,"Y","Y","Y",null,null,null,null,null,null,null,null,null,null,null,null,null,null,null,null,null,null,"Y",null,null,null,null,null,null,null,null,null,null,null,null,null,null,"Y",null,null,"Y","Y",null,null,null,"N",null,null,null,"Y"]
[9,"05/04/2026","SSE6","Date of Cessation",null,null,null,null,null,null,null,null,null,null,null,null,{"$f":"\"04/04/\"&Tax_year_start","v":"04/04/2025"},null,null,null,null,null,null,null,null,null,null,null,{"$f":"\"31/03/\"&Tax_year_end","v":"31/03/2026"},null,null,null,null,null,{"$f":"\"30/03/\"&Tax_year_end","v":"30/03/2026"},null,null,null,null,null,null,null,null,null,null,{"$f":"\"02/04/\"&Tax_year_end","v":"02/04/2026"},null,null,null,null,null,null,null,null,null,{"$f":"\"01/04/\"&Tax_year_end","v":"01/04/2026"},{"$f":"\"02/04/\"&Tax_year_end","v":"02/04/2026"},null,null,null,null,null,null,null,null,null,null,null,null,null,null,null,null,{"$f":"\"30/03/\"&Tax_year_end","v":"30/03/2026"},null,null,null,null,null,null,null,null,null,null,null,null,null,null,null,null,null,null,{"$f":"\"31/03/\"&Tax_year_end","v":"31/03/2026"},null,null,null,null,null,null,null,null,null,null,null,null,null,{"$f":"\"02/04/\"&Tax_year_end","v":"02/04/2026"},null,null,null,null,null,null,null,null,null,null,{"$f":"\"26/03/\"&Tax_year_end","v":"26/03/2026"},{"$f":"\"25/03/\"&Tax_year_end","v":"25/03/2026"},null,null,null,{"$f":"\"25/03/\"&Tax_year_end","v":"25/03/2026"},null,null,null,null,null,null,null,null,null,null,{"$f":"\"01/04/\"&Tax_year_end","v":"01/04/2026"},{"$f":"\"02/04/\"&Tax_year_end","v":"02/04/2026"},null,null,null,null,null,null,{"$f":"\"03/04/\"&Tax_year_end","v":"03/04/2026"},{"$f":"\"02/04/\"&Tax_year_end","v":"02/04/2026"},null,null,null,null,null,null,null,null,null,null,null,null,null,null,null,null,{"$f":"\"26/02/\"&Tax_year_end","v":"26/02/2026"},null,null,{"$f":"\"05/04/\"&Tax_year_end","v":"05/04/2026"},{"$f":"\"31/03/\"&Tax_year_end","v":"31/03/2026"},null,null,{"$f":"\"19/03/\"&Tax_year_end","v":"19/03/2026"},null,null,null,null,{"$f":"\"05/04/\"&Tax_year_end","v":"05/04/2026"},null,null,null,null,null,null,null,null,null,null,null,null,null,null,null,null,null,null,{"$f":"\"31/03/\"&Tax_year_end","v":"31/03/2026"},null,null,null,null,null,"05/04/2026",null,"05/04/2026",null,null,null,null,null,{"$f":"\"29/03/\"&Tax_year_end","v":"29/03/2026"},null,null,null,null,{"$f":"\"05/04/\"&Tax_year_end","v":"05/04/2026"},null,null,null,null,null,null,null,null,null,null,null,null,null,null,null,null,null,{"$f":"\"31/03/\"&Tax_year_end","v":"31/03/2026"},{"$f":"\"30/01/\"&Tax_year_end","v":"30/01/2026"},{"$f":"\"31/03/\"&Tax_year_end","v":"31/03/2026"},null,null,null,null,null,null,null,null,null,null,null,null,null,null,null,null,null,null,{"$f":"\"31/01/\"&Tax_year_end","v":"31/01/2026"},null,null,null,null,null,null,null,null,null,null,null,null,null,null,{"$f":"\"31/03/\"&Tax_year_end","v":"31/03/2026"}," ",null,{"$f":"\"31/03/\"&Tax_year_end","v":"31/03/2026"},{"$f":"\"31/03/\"&Tax_year_end","v":"31/03/2026"},null,null,null,null,null,null,null,{"$f":"\"31/03/\"&Tax_year_end","v":"31/03/2026"},null,null,"a) must be within return year.\nb) If SSE5 is present, SSE6 must be the same as or later than SSE5","SA MTR date"]
[10,"05/04/2026","SSE7","Accounting period end",null,null,null,null,null,null,null,null,{"$f":"\"05/04/\"&Tax_year_end","v":"05/04/2026"},null,null,null,{"$f":"\"04/04/\"&Tax_year_end","v":"04/04/2026"},null,null,null,null,null,null,null,null,{"$f":"\"05/04/\"&Tax_year_end","v":"05/04/2026"},null,null,{"$f":"\"31/03/\"&Tax_year_end","v":"31/03/2026"},null,null,null,null,null,{"$f":"\"30/03/\"&Tax_year_end","v":"30/03/2026"},null,null,null,null,null,null,null,null,null,null,{"$f":"\"02/04/\"&Tax_year_end","v":"02/04/2026"},null,{"$f":"\"05/04/\"&Tax_year_end","v":"05/04/2026"},null,null,null,null,null,null,null,{"$f":"\"01/04/\"&Tax_year_end","v":"01/04/2026"},{"$f":"\"02/04/\"&Tax_year_end","v":"02/04/2026"},null,null,null,null,null,null,null,null,null,null,null,null,null,null,null,null,{"$f":"\"30/03/\"&Tax_year_end","v":"30/03/2026"},null,null,null,null,null,{"$f":"\"05/04/\"&Tax_year_end","v":"05/04/2026"},null,null,null,null,null,null,null,{"$f":"\"05/04/\"&Tax_year_end","v":"05/04/2026"},null,null,null,null,{"$f":"\"31/03/\"&Tax_year_end","v":"31/03/2026"},{"$f":"\"05/04/\"&Tax_year_end","v":"05/04/2026"},null,null,null,null,null,null,null,null,null,null,null,null,{"$f":"\"02/04/\"&Tax_year_end","v":"02/04/2026"},{"$f":"\"05/04/\"&Tax_year_end","v":"05/04/2026"},null,null,null,null,null,null,null,null,null,{"$f":"\"26/03/\"&Tax_year_end","v":"26/03/2026"},{"$f":"\"25/03/\"&Tax_year_end","v":"25/03/2026"},null,null,null,{"$f":"\"25/03/\"&Tax_year_end","v":"25/03/2026"},null,null,{"$f":"\"05/04/\"&Tax_year_end","v":"05/04/2026"},null,null,null,null,{"$f":"\"05/04/\"&Tax_year_end","v":"05/04/2026"},null,null,{"$f":"\"01/04/\"&Tax_year_end","v":"01/04/2026"},{"$f":"\"02/04/\"&Tax_year_end","v":"02/04/2026"},null,null,null,null,null,null,{"$f":"\"03/04/\"&Tax_year_end","v":"03/04/2026"},{"$f":"\"02/04/\"&Tax_year_end","v":"02/04/2026"},null,null,null,null,null,null,null,null,null,null,null,null,null,null,null,null,{"$f":"\"26/02/\"&Tax_year_end","v":"26/02/2026"},{"$f":"\"05/04/\"&Tax_year_end","v":"05/04/2026"},null,{"$f":"\"05/04/\"&Tax_year_end","v":"05/04/2026"},{"$f":"\"31/03/\"&Tax_year_end","v":"31/03/2026"},null,null,{"$f":"\"19/03/\"&Tax_year_end","v":"19/03/2026"},null,null,null,null,{"$f":"\"05/04/\"&Tax_year_end","v":"05/04/2026"},null,null,null,null,null,null,null,null,null,null,null,null,null,null,null,null,null,null,{"$f":"\"31/03/\"&Tax_year_end","v":"31/03/2026"},null,null,null,null,null,{"$f":"\"05/04/\"&Tax_year_end","v":"05/04/2026"},null,{"$f":"\"05/04/\"&Tax_year_end","v":"05/04/2026"},null,null,null,null,null,{"$f":"\"29/03/\"&Tax_year_end","v":"29/03/2026"},null,null,null,null,{"$f":"\"05/04/\"&Tax_year_end","v":"05/04/2026"},null,null,null,null,null,null,null,null,null,null,null,null,null,null,null,null,null,{"$f":"\"31/03/\"&Tax_year_end","v":"31/03/2026"},{"$f":"\"30/01/\"&Tax_year_end","v":"30/01/2026"},{"$f":"\"31/03/\"&Tax_year_end","v":"31/03/2026"},null,null,null,null,null,null,null,null,null,null,null,null,null,null,null,null,null,null,{"$f":"\"31/01/\"&Tax_year_end","v":"31/01/2026"},null,null,null,null,null,null,null,null,null,null,null,null,null,null,{"$f":"\"31/03/\"&Tax_year_end","v":"31/03/2026"},null,null,{"$f":"\"31/03/\"&Tax_year_end","v":"31/03/2026"},{"$f":"\"31/03/\"&Tax_year_end","v":"31/03/2026"},null,null,null,{"$f":"\"05/04/\"&Tax_year_end","v":"05/04/2026"},null,null,null,{"$f":"\"31/03/\"&Tax_year_end","v":"31/03/2026"},null,null,null,"SA MTR date"]
[11,"N","SSE8","If you used the traditional accounting, put ‘X’ in the box",null,null,null,null,null,null,null,null,"N",null,null,null,null,null,null,null,null,null,null,null,null,"N",null,null,"N",null,null,null,null,null,"N",null,null,null,null,null,null,null,null,null,null,"N",null,"N",null,null,null,null,null,null,null,"N","N",null,null,null,null,null,null,null,null,null,null,null,null,null,null,null,null,"N",null,null,null,null,null,"N",null,null,null,null,null,null,null,null,null,null,null,null,"N","N",null,null,null,null,null,null,null,null,null,null,null,null,"N","N",null,null,null,null,null,null,null,null,null,"N",null,null,null,null,null,null,null,null,null,null,null,null,null,null,null,"Y","N",null,null,null,null,null,null,null,null,null,null,null,null,null,null,null,null,null,null,null,null,null,null,null,null,"Y","N",null,"N","N",null,null,null,null,null,null,null,"N",null,null,null,null,null,null,null,null,null,null,null,null,null,null,null,null,null,null,"N",null,null,null,null,null,"N",null,"N",null,null,null,null,null,"N",null,null,null,null,"N",null,null,null,null,null,null,null,null,null,null,null,null,null,null,null,null,null,"N","N","N",null,null,null,null,null,null,null,null,null,null,null,null,null,null,null,null,null,null,"N",null,null,null,null,null,null,null,null,null,null,null,null,null,null,"N",null,null,"N",null,null,null,null,null,null,null,null,"N",null,null,null,"\"yes\""]
[12,27643,"SSE9","Sales/business income",null,null,null,null,null,null,null,null,14560,null,null,null,21805,null,null,null,null,null,null,null,null,32495,null,null,17995,null,null,null,null,null,3788,null,null,null,null,null,null,null,null,null,null,27643,null,59465,null,null,null,null,null,null,null,27643,{"$f":"P_A+3620","v":16190},null,null,null,null,null,null,null,null,null,null,null,null,null,null,null,null,14560,null,null,null,null,null,14560,null,null,null,null,null,null,null,28359,null,null,null,null,27643,14560,null,null,null,null,null,null,null,null,null,null,null,null,29011,32495,null,null,null,null,null,null,null,null,null,{"$f":"35147+5968","v":41115},4802,null,null,null,4802,null,null,16789,null,null,null,null,34656,null,null,10000,5000,null,null,null,null,null,null,52510,null,null,null,null,null,null,null,null,null,null,null,null,null,null,null,null,null,39163,14560,null,14560,14560,null,null,null,null,null,null,null,27643,null,null,null,null,null,null,null,null,null,null,null,null,null,null,null,null,null,null,14560,null,null,null,null,null,59465,null,59465,null,null,null,null,null,32495,null,null,null,null,27643,null,null,null,null,null,null,null,null,null,null,null,null,null,null,null,null,null,16218,32495,14560,null,null,null,null,null,null,null,null,null,null,null,null,null,null,null,null,null,null,366,null,null,null,null,null,null,null,null,null,null,null,null,null,null,14560,null,null,11566,10353,null,null,null,18650,null,null,null,1399978,null,null,"1) If no entry in SSE5 or SSE6, amount must be below RRUL-MAX-TURNOVER-AMT (£85,000 0\n2) If SSE5 present but SSE6 is absent, amount must be below (no of days/(365 or 366) x RRUL-MAX-TURNOVER-AMT (£85,000)) where no of days = no of days from SSE5 to 5 April 2018;\n3) If SSE6 present but SSE5 is absent, amount must be below (no of days/(365 or 366) x RRUL-MAX-TURNOVER-AMT (£85,000) where no of days = no of days from 6 April 2015 to SSE6\n4) If SSE5 and SSE6 present, amount must be below (no of days/(365 or 366) x RRUL-MAX-TURNOVER-AMT (£85,000)) where no of days = no of days from SSE5 to SSE6","SA Monetary value (2dp) >= 0.00"]
[13,{"$f":"IF(SE_A_IND>1,IF(HLOOKUP(SE_A_IND-1,SSE_RANGE,A14)=\"\",\"\",HLOOKUP(SE_A_IND-1,SSE_RANGE,A14)),\"\")","v":""},"SSE10","Other income/profits",null,null,null,null,null,null,null,null,null,null,null,null,null,null,null,null,null,null,null,null,null,null,null,null,null,null,null,null,null,null,null,null,null,null,null,null,null,null,null,null,null,null,null,null,null,null,null,null,null,null,null,null,null,null,null,null,null,null,null,null,null,null,null,null,null,null,null,null,null,null,null,null,null,null,null,null,null,null,null,null,null,null,null,null,null,null,null,null,null,null,null,null,null,null,null,null,null,null,null,null,null,null,null,null,null,null,null,null,null,null,null,null,null,null,null,null,null,null,null,null,null,null,null,null,null,null,null,null,null,null,null,null,null,null,null,null,null,null,null,null,null,null,null,null,null,null,null,null,null,null,null,null,null,null,null,null,null,null,null,null,null,null,null,null,null,null,null,null,null,null,null,null,null,null,null,null,null,null,null,null,null,null,null,null,null,null,null,null,null,null,null,null,null,null,null,null,null,null,null,null,null,null,null,null,null,null,null,null,null,null,null,null,null,null,null,null,null,null,null,null,null,null,null,null,null,null,null,null,null,null,null,null,null,null,null,null,null,null,null,null,null,null,null,null,null,null,null,null,null,null,null,null,null,null,null,null,null,null,null,null,null,null,null,null,null,null,null,null,null,null,null,null,null,null,null,"SA Monetary value (2dp) > 0.00"]
[14,"","SSE10.1","Trading income allowance",null,null,null,null,null,null,null,null,null,null,null,null,null,null,null,null,null,null,null,null,null,null,null,null,null,null,null,null,null,null,1000,null,null,null,null,null,null,null,null,null,null,null,null,null,null,null,null,null,null,null,null,null,null,null,null,null,null,null,null,null,null,null,null,null,null,null,null,null,null,null,null,null,null,null,null,null,null,null,null,null,null,null,null,null,null,null,null,null,null,null,null,null,null,null,null,null,null,null,null,null,null,null,null,null,null,null,null,null,null,null,null,null,null,null,null,null,null,null,null,null,null,null,null,null,null,null,null,null,null,null,null,null,null,null,null,null,null,null,null,null,null,null,null,null,null,null,null,null,null,null,null,null,null,null,null,null,null,null,null,null,null,null,null,null,null,null,null,null,null,null,null,null,null,null,null,null,null,null,null,null,null,null,null,null,null,null,null,null,null,null,null,null,null,null,null,null,null,null,null,null,null,null,null,null,null,null,null,null,null,null,null,null,null,null,null,null,null,null,null,null,null,null,null,null,null,null,null,null,null,null,null,null,null,null,null,null,null,null,null,null,null,null,null,null,null,null,null,null,null,null,null,null,null,null,null,null,null,null,null,null,null,null,null,null,null,null,null,null,null,null,null,null,null,null,"a) If present must be less than or equal to TRADING-ALLOWANCE (£1000)","SA Monetary value (2dp) > 0.00"]
[15,1200,"SSE11","Cost of sales",null,null,null,null,null,null,null,null,null,null,null,null,null,null,null,null,null,null,null,null,null,null,null,null,null,null,null,null,null,null,null,null,null,null,null,null,null,null,null,null,null,1200,null,null,null,null,null,null,null,null,null,1200,null,null,null,null,null,null,null,null,null,null,null,null,null,null,null,null,null,null,null,null,null,null,null,null,null,null,null,null,null,null,null,null,null,null,null,null,1200,null,null,null,null,null,null,null,null,null,null,null,null,null,1200,null,null,null,null,null,null,null,null,null,null,null,null,null,null,null,null,null,null,null,null,null,null,null,null,null,null,null,null,null,null,null,null,null,null,null,null,null,null,null,null,null,null,null,null,null,null,null,null,null,null,null,null,null,null,null,null,null,null,null,null,null,null,null,null,1200,null,null,null,null,null,null,null,null,null,null,null,null,null,null,null,null,null,null,null,null,null,null,null,null,null,null,null,null,null,null,null,null,null,null,null,null,null,1200,null,null,null,null,null,null,null,null,null,null,null,null,null,null,null,null,null,null,null,null,null,null,null,null,null,null,null,null,null,null,null,null,null,null,null,null,null,null,null,null,null,null,null,null,null,null,null,null,null,null,null,null,null,null,null,null,null,null,null,null,null,null,null,null,null,21745,null,null,"If present, SSE10.1 must be absent","SA Monetary value (2dp) except 0.00"]
[16,9200,"SSE12","Motor expenses",null,null,null,null,null,null,null,null,null,null,null,null,null,null,null,null,null,null,null,null,null,null,null,null,null,null,null,null,null,null,null,null,null,null,null,null,null,null,null,null,null,5200,null,null,null,null,null,null,null,null,null,5200,null,null,null,null,null,null,null,null,null,null,null,null,null,null,null,null,null,null,null,null,null,null,null,null,null,null,null,null,null,null,null,null,null,null,null,null,5200,null,null,null,null,null,null,null,null,null,null,null,null,null,9200,null,null,null,null,null,null,null,null,null,null,null,null,null,null,null,null,null,null,1795,null,null,null,null,null,null,null,null,null,null,null,null,null,null,null,null,null,null,null,null,null,null,null,null,null,null,null,null,null,null,null,null,null,null,null,null,null,null,null,null,null,null,null,null,null,9200,null,null,null,null,null,null,null,null,null,null,null,null,null,null,null,null,null,null,null,null,null,null,null,null,null,null,null,null,null,null,null,null,null,null,null,null,null,5200,null,null,null,null,null,null,null,null,null,null,null,null,null,null,null,null,null,null,null,null,null,null,null,null,null,null,null,null,null,null,null,null,null,null,null,null,null,null,null,null,null,null,null,null,null,null,null,null,null,null,null,null,null,null,null,null,null,null,null,null,null,null,null,null,null,5200,null,null,"If present, SSE10.1 must be absent","SA Monetary value (2dp) > 0.00"]
[17,12500,"SSE13","Employee costs",null,null,null,null,null,null,null,null,null,null,null,null,null,null,null,null,null,null,null,null,null,null,null,null,null,null,null,null,null,null,null,null,null,null,null,null,null,null,null,null,null,3900,null,null,null,null,null,null,null,null,null,3900,null,null,null,null,null,null,null,null,null,null,null,null,null,null,null,null,null,null,null,null,null,null,null,null,null,null,null,null,null,null,null,null,null,null,null,null,3900,null,null,null,null,null,null,null,null,null,null,null,null,null,12500,null,null,null,null,null,null,null,null,null,null,null,null,null,null,null,null,null,null,null,null,null,null,null,null,null,null,null,null,null,null,null,null,null,null,null,null,null,null,null,null,null,null,null,null,null,null,null,null,null,null,null,null,null,null,null,null,null,null,null,null,null,null,null,null,12500,null,null,null,null,null,null,null,null,null,null,null,null,null,null,null,null,null,null,null,null,null,null,null,null,null,null,null,null,null,null,null,null,null,null,null,null,null,3900,null,null,null,null,null,null,null,null,null,null,null,null,null,null,null,null,null,null,null,null,null,null,null,null,null,null,null,null,null,null,null,null,null,null,null,null,null,null,null,null,null,null,null,null,null,null,null,null,null,null,null,null,null,null,null,null,null,null,null,null,null,null,null,null,null,12500,null,null,"If present, SSE10.1 must be absent","SA Monetary value (2dp) > 0.00"]
[18,17320,"SSE14","Premises costs",null,null,null,null,null,null,null,null,null,null,null,null,null,null,null,null,null,null,null,null,null,null,null,null,null,null,null,null,null,null,null,null,null,null,null,null,null,null,null,null,null,7320,null,null,null,null,null,null,null,null,null,7320,null,null,null,null,null,null,null,null,null,null,null,null,null,null,null,null,null,null,null,null,null,null,null,null,null,null,null,null,null,null,null,null,null,null,null,null,7320,null,null,null,null,null,null,null,null,null,null,null,null,null,null,null,null,null,null,null,null,null,null,null,null,7500,null,null,null,null,null,null,null,3855,null,null,null,null,null,null,null,null,null,null,null,null,null,null,null,null,null,null,null,null,null,null,null,null,null,null,null,null,null,null,null,null,null,null,null,null,null,null,null,null,null,null,null,null,null,17320,null,null,null,null,null,null,null,null,null,null,null,null,null,null,null,null,null,null,null,null,null,null,null,null,null,null,null,null,null,null,null,null,null,null,null,null,null,7320,null,null,null,null,null,null,null,null,null,null,null,null,null,null,null,null,null,null,null,null,null,null,null,null,null,null,null,null,null,null,null,null,null,null,null,null,null,null,null,null,null,null,null,null,null,null,null,null,null,null,null,null,null,null,null,null,null,null,null,null,null,null,null,null,null,7320,null,null,"If present, SSE10.1 must be absent","SA Monetary value (2dp) except 0.00"]
[19,11109,"SSE15","Repairs",null,null,null,null,null,null,null,null,null,null,null,null,null,null,null,null,null,null,null,null,null,null,null,null,null,null,null,null,null,null,null,null,null,null,null,null,null,null,null,null,null,1109,null,null,null,null,null,null,null,null,null,1109,null,null,null,null,null,null,null,null,null,null,null,null,null,null,null,null,null,null,null,null,null,null,null,null,null,null,null,null,null,null,null,null,null,null,null,null,1109,null,null,null,null,null,null,null,null,null,null,null,null,null,14609,null,null,null,null,null,null,null,null,null,null,null,null,null,null,null,null,null,null,2463,null,null,null,null,null,null,null,null,null,null,null,null,null,null,null,null,null,null,null,null,null,null,null,null,null,null,null,null,null,null,null,null,null,null,null,null,null,null,null,null,null,null,null,null,null,11109,null,null,null,null,null,null,null,null,null,null,null,null,null,null,null,null,null,null,null,null,null,null,null,null,null,null,null,null,null,null,null,null,null,null,null,null,null,1109,null,null,null,null,null,null,null,null,null,null,null,null,null,null,null,null,null,null,null,null,null,null,null,null,null,null,null,null,null,null,null,null,null,null,null,null,null,null,null,null,null,null,null,null,null,null,null,null,null,null,null,null,null,null,null,null,null,null,null,null,null,null,null,null,null,22999,null,null,"If present, SSE10.1 must be absent","SA Monetary value (2dp) except 0.00"]
[20,4200,"SSE16","Legal and professional costs",null,null,null,null,null,null,null,null,null,null,null,null,null,null,null,null,null,null,null,null,null,null,null,null,null,null,null,null,null,null,null,null,null,null,null,null,null,null,null,null,null,4200,null,null,null,null,null,null,null,null,null,4200,null,null,null,null,null,null,null,null,null,null,null,null,null,null,null,null,null,null,null,null,null,null,null,null,null,null,null,null,null,null,null,null,null,null,null,null,4200,null,null,null,null,null,null,null,null,null,null,null,null,null,4326,null,null,null,null,null,null,null,null,null,null,null,null,null,null,null,null,null,null,null,null,null,null,null,null,null,null,null,null,null,null,null,null,null,null,null,null,null,null,null,null,null,null,null,null,null,null,null,null,null,null,null,null,null,null,null,null,null,null,null,null,null,null,null,null,4200,null,null,null,null,null,null,null,null,null,null,null,null,null,null,null,null,null,null,null,null,null,null,null,null,null,null,null,null,null,null,null,null,null,null,null,null,null,4200,null,null,null,null,null,null,null,null,null,null,null,null,null,null,null,null,null,null,null,null,null,null,null,null,null,null,null,null,null,null,null,null,null,null,null,null,null,null,null,null,null,null,null,null,null,null,null,null,null,null,null,null,null,null,null,null,null,null,null,null,null,null,null,null,null,4200,null,null,"If present, SSE10.1 must be absent","SA Monetary value (2dp) except 0.00"]
[21,13642,"SSE17","Other finance charges",null,null,null,null,null,null,null,null,null,null,null,null,null,null,null,null,null,null,null,null,null,null,null,null,null,null,null,null,null,null,null,null,null,null,null,null,null,null,null,null,null,13642,null,null,null,null,null,null,null,null,null,13642,null,null,null,null,null,null,null,null,null,null,null,null,null,null,null,null,null,null,null,null,null,null,null,null,null,null,null,null,null,null,null,null,null,null,null,null,13642,null,null,null,null,null,null,null,null,null,null,null,null,null,13642,null,null,null,null,null,null,null,null,null,null,null,null,null,null,null,null,null,null,null,null,null,null,null,null,null,null,null,null,null,null,null,null,null,null,null,null,null,null,null,null,null,null,null,null,null,null,null,null,null,null,null,null,null,null,null,null,null,null,null,null,null,null,null,null,13642,null,null,null,null,null,null,null,null,null,null,null,null,null,null,null,null,null,null,null,null,null,null,null,null,null,null,null,null,null,null,null,null,null,null,null,null,null,13642,null,null,null,null,null,null,null,null,null,null,null,null,null,null,null,null,null,null,null,null,null,null,null,null,null,null,null,null,null,null,null,null,null,null,null,null,null,null,null,null,null,null,null,null,null,null,null,null,null,null,null,null,null,null,null,null,null,null,null,null,null,null,null,null,null,23642,null,null,"If present, SSE10.1 must be absent","SA Monetary value (2dp) except 0.00"]
[22,1602,"SSE18","General administrative expenses",null,null,null,null,null,null,null,null,null,null,null,null,null,null,null,null,null,null,null,null,null,null,null,null,null,null,null,null,null,null,null,null,null,null,null,null,null,null,null,null,null,1602,null,null,null,null,null,null,null,null,null,1602,null,null,null,null,null,null,null,null,null,null,null,null,null,null,null,null,null,null,null,null,null,null,null,null,null,null,null,null,null,null,null,null,null,null,null,null,1602,null,null,null,null,null,null,null,null,null,null,null,null,null,1602,null,null,null,null,null,null,null,null,null,null,1120,null,null,null,null,null,null,null,null,null,null,null,null,null,null,null,null,null,null,null,null,null,null,null,null,null,null,null,null,null,null,null,null,null,null,null,null,null,null,null,null,null,null,null,null,null,null,null,null,null,null,null,null,null,1602,null,null,null,null,null,null,null,null,null,null,null,null,null,null,null,null,null,null,null,null,null,null,null,null,null,null,null,null,null,null,null,null,null,null,null,null,null,1602,null,null,null,null,null,null,null,null,null,null,null,null,null,null,null,null,null,null,null,null,null,null,null,null,null,null,null,null,null,null,null,null,null,null,null,null,null,null,null,null,null,null,null,null,null,null,null,null,null,null,null,null,null,null,null,null,null,null,null,null,null,null,null,null,null,1602,null,null,"If present, SSE10.1 must be absent","SA Monetary value (2dp) > 0.00"]
[23,777,"SSE19","Other expenses",null,null,null,null,null,null,null,null,null,null,null,null,null,null,null,null,null,null,null,null,null,null,null,null,null,null,null,null,null,null,null,null,null,null,null,null,null,null,null,null,null,null,null,null,null,null,null,null,null,null,null,null,null,null,null,null,null,null,null,null,null,null,null,null,null,null,null,null,null,null,null,null,null,null,null,null,null,null,null,null,null,null,null,null,null,null,null,null,null,null,null,null,null,null,null,null,null,null,null,null,null,null,777,null,null,null,null,null,null,null,null,null,null,null,null,null,null,null,null,null,null,null,null,null,null,null,null,null,null,null,null,null,null,null,null,null,null,null,null,null,null,null,null,null,null,null,null,null,null,null,null,null,null,null,null,null,null,null,null,null,null,null,null,null,null,null,null,777,null,null,null,null,null,null,null,null,null,null,null,null,null,null,null,null,null,null,null,null,null,null,null,null,null,null,null,null,null,null,null,null,null,null,null,null,null,null,null,null,null,null,null,null,null,null,null,null,null,null,null,null,null,null,null,null,null,null,null,null,null,null,null,null,null,null,null,null,null,null,null,null,null,null,null,null,null,null,null,null,null,null,null,null,null,null,null,null,null,null,null,null,null,null,null,null,null,null,null,null,null,null,null,750,null,null,"If present, SSE10.1 must be absent","SA Monetary value (2dp) except 0.00"]
[24,71550,"SSE20","Total expenses",null,null,null,null,null,null,null,null,13603,null,null,null,750,null,null,null,null,null,null,null,null,8620,null,null,14262,null,null,null,null,null,null,null,null,null,null,null,null,null,null,null,null,{"$f":"AT16+AT17+AT18+AT19+AT20+AT21+AT22+AT23+AT24","v":38173},null,6365,null,null,null,null,null,null,null,{"$f":"BD16+BD17+BD18+BD19+BD20+BD21+BD22+BD23+BD24","v":38173},8620,null,null,null,null,null,null,null,null,null,null,null,null,null,null,null,null,13603,null,null,null,null,null,13603,null,null,null,null,null,null,null,2817,{"$f":"CK16+CK17+CK18+CK19+CK20+CK21+CK22+CK23+CK24","v":0},0,0,0,{"$f":"CO16+CO17+CO18+CO19+CO20+CO21+CO22+CO23+CO24","v":38173},{"$f":"CP16+CP17+CP18+CP19+CP20+CP21+CP22+CP23+CP24","v":0},null,null,null,null,null,null,null,null,null,null,null,null,{"$f":"DC16+DC17+DC18+DC19+DC20+DC21+DC22+DC23+DC24","v":57856},8620,null,null,null,null,null,null,null,null,null,{"$f":"DN16+DN17+DN18+DN19+DN20+DN21+DN22+DN23+DN24","v":8620},844,null,null,null,844,null,null,8113,null,null,null,null,null,null,null,6000,12000,null,null,null,null,null,null,8064,null,null,null,null,null,null,null,null,null,null,null,null,null,null,null,null,null,4842,13603,null,13603,13603,null,null,16,null,null,null,null,{"$f":"FP16+FP17+FP18+FP19+FP20+FP21+FP22+FP23+FP24","v":71550},null,null,null,null,null,null,null,null,null,null,null,null,null,null,null,null,null,null,13603,null,null,null,null,null,6365,null,6365,null,null,null,null,null,8620,null,null,null,null,{"$f":"HB16+HB17+HB18+HB19+HB20+HB21+HB22+HB23+HB24","v":38173},null,null,null,null,null,null,null,null,null,null,null,null,null,null,null,null,null,13603,28189,13603,null,null,null,null,null,null,null,null,null,null,null,null,null,null,null,null,null,null,1526,null,null,null,null,null,null,null,null,null,null,null,null,null,null,13603,null,null,13603,null,null,null,null,null,null,null,null,{"$f":"JP16+JP17+JP18+JP19+JP20+JP21+JP22+JP23+JP24","v":99958},null,null,"a) If SSE20 is present and greater than zero and SSE9 is equal to or greater than RRUL-SMALL-TURNOVER-LIMIT (£85,000), there must be an entry in at least one of SSE11 to SSE19 and SSE20 must equal the total of those boxes. \nb) If present, SSE10.1 must be absent","Monetary value (2dp)"]
[25,0,"SSE21","Net profit",null,null,null,null,null,null,null,null,{"$f":"MAX(0,M13+M15-M25)","v":957},null,null,null,{"$f":"MAX(0,Q13+Q15-Q25)","v":21055},null,null,null,null,null,null,null,null,{"$f":"MAX(0,Z13+Z15-Z25)","v":23875},null,null,{"$f":"MAX(0,AC13+AC15-AC25)","v":3733},null,null,null,null,null,{"$f":"MAX(0,AI13+AI14-AI25)","v":3788},null,null,null,null,null,null,null,null,null,null,{"$f":"MAX(0,AT13+AT15-AT25)","v":0},null,{"$f":"MAX(0,AV13+AV15-AV25)","v":53100},null,null,null,null,null,null,null,{"$f":"MAX(0,BD13+BD15-BD25)","v":0},{"$f":"MAX(0,BE13+BE15-BE25)","v":7570},null,null,null,null,null,null,null,null,null,null,null,null,null,null,null,null,{"$f":"MAX(0,BV13+BV15-BV25)","v":957},null,null,null,null,null,{"$f":"MAX(0,CB13+CB15-CB25)","v":957},null,null,null,null,null,null,{"$f":"MAX(0,CI13+CI15-CI25)","v":0},25542,null,null,null,null,{"$f":"MAX(0,CO13+CO15-CO25)","v":0},{"$f":"MAX(0,CP13+CP15-CP25)","v":14560},null,null,null,null,null,null,null,null,null,null,null,null,{"$f":"MAX(0,DC13+DC15-DC25)","v":0},{"$f":"MAX(0,DD13+DD15-DD25)","v":23875},null,null,null,null,null,null,null,null,null,{"$f":"MAX(0,DN13+DN15-DN25)","v":32495},{"$f":"MAX(0,DO13+DO15-DO25)","v":3958},null,null,null,{"$f":"MAX(0,DS13+DS15-DS25)","v":3958},null,null,{"$f":"MAX(0,DV13+DV15-DV25)","v":8676},null,{"$f":"MAX(0,DX13+DX15-DX25)","v":0},null,null,{"$f":"MAX(0,EA13+EA15-EA25)","v":34656},0,0,{"$f":"MAX(0,ED13+ED15-ED25)","v":4000},{"$f":"MAX(0,EE13+EE15-EE25)","v":0},null,null,null,null,null,null,44446,null,null,null,null,null,null,null,null,null,null,null,null,null,null,null,null,null,{"$f":"MAX(0,FD13+FD15-FD25)","v":34321},{"$f":"MAX(0,FE13+FE15-FE25)","v":957},null,{"$f":"MAX(0,FG13+FG15-FG25)","v":957},{"$f":"MAX(0,FH13+FH15-FH25)","v":957},null,null,null,null,null,null,null,{"$f":"MAX(0,FP13+FP15-FP25)","v":0},null,null,null,null,null,null,null,null,null,null,null,null,null,null,null,null,null,null,{"$f":"MAX(0,GI13+GI15-GI25)","v":957},null,null,null,null,null,{"$f":"MAX(0,GO13+GO15-GO25)","v":53100},null,{"$f":"MAX(0,GQ13+GQ15-GQ25)","v":53100},null,null,null,null,null,{"$f":"MAX(0,GW13+GW15-GW25)","v":23875},null,null,null,null,{"$f":"MAX(0,HB13+HB15-HB25)","v":0},null,null,null,null,null,null,null,null,null,null,null,null,null,null,null,null,null,{"$f":"MAX(0,HT13+HT15-HT25)","v":2615},{"$f":"MAX(0,HU13+HU15-HU25)","v":4306},{"$f":"MAX(0,HV13+HV15-HV25)","v":957},null,null,null,null,null,null,null,null,null,null,null,null,null,null,null,null,null,null,{"$f":"MAX(0,IO14+IO15-IO25)","v":0},null,null,null,null,null,null,null,null,null,null,null,null,null,null,{"$f":"MAX(0,JD13+JD15-JD25)","v":957},null,null,{"$f":"MAX(0,JG13+JG15-JG25)","v":0},{"$f":"MAX(0,JH13+JH15-JH25)","v":10353},null,null,null,18650,null,null,null,{"$f":"MAX(0,JP13+JP15-JP25)","v":1300020},null,null,"If SSE9 + SSE10 minus SSE20 is positive or zero, SSE21 is mandatory and must equal that sum\nCannot be negative.","SA Monetary value (2dp) >= 0.00"]
[26,43907,"SSE22","Net loss",null,null,null,null,null,null,null,null,{"$f":"MAX(0,M25-(M13+M15))","v":0},null,null,null,null,null,null,null,null,null,null,null,null,{"$f":"MAX(0,Z25-(Z13+Z15))","v":0},null,null,{"$f":"MAX(0,AC25-(AC13+AC15))","v":0},null,null,null,null,null,null,null,null,null,null,null,null,null,null,null,null,{"$f":"MAX(0,AT25-(AT13+AT15))","v":10530},null,{"$f":"MAX(0,AV25-(AV13+AV15))","v":0},null,null,null,null,null,null,null,{"$f":"MAX(0,BD25-(BD13+BD15))","v":10530},{"$f":"MAX(0,BE25-(BE13+BE15))","v":0},null,null,null,null,null,null,null,null,null,null,null,null,null,null,null,null,{"$f":"MAX(0,BV25-(BV13+BV15))","v":0},null,null,null,null,null,{"$f":"MAX(0,CB25-(CB13+CB15))","v":0},null,null,null,null,null,null,{"$f":"MAX(0,CI25-(CI13+CI15))","v":0},null,null,null,null,null,{"$f":"MAX(0,CO25-(CO13+CO15))","v":10530},{"$f":"MAX(0,CP25-(CP13+CP15))","v":0},null,null,null,null,null,null,null,null,null,null,null,null,{"$f":"MAX(0,DC25-(DC13+DC15))","v":28845},{"$f":"MAX(0,DD25-(DD13+DD15))","v":0},null,null,null,null,null,null,null,null,null,{"$f":"MAX(0,DN25-(DN13+DN15))","v":0},null,null,null,null,null,null,null,0,null,{"$f":"MAX(0,DX25-(DX13+DX15))","v":0},null,null,{"$f":"MAX(0,EA25-(EA13+EA15))","v":0},0,0,{"$f":"MAX(0,ED25-(ED13+ED15))","v":0},{"$f":"MAX(0,EE25-(EE13+EE15))","v":7000},null,null,null,null,null,null,null,null,null,null,null,null,null,null,null,null,null,null,null,null,null,null,null,null,null,{"$f":"MAX(0,FE25-(FE13+FE15))","v":0},null,{"$f":"MAX(0,FG25-(FG13+FG15))","v":0},{"$f":"MAX(0,FH25-(FH13+FH15))","v":0},null,null,16,null,null,null,null,{"$f":"MAX(0,FP25-(FP13+FP15))","v":43907},null,null,null,null,null,null,null,null,null,null,null,null,null,null,null,null,null,null,{"$f":"MAX(0,GI25-(GI13+GI15))","v":0},null,null,null,null,null,{"$f":"MAX(0,GO25-(GO13+GO15))","v":0},null,{"$f":"MAX(0,GQ25-(GQ13+GQ15))","v":0},null,null,null,null,null,{"$f":"MAX(0,GW25-(GW13+GW15))","v":0},null,null,null,null,null,null,null,null,null,null,null,null,null,null,null,null,null,null,null,null,null,null,{"$f":"MAX(0,HT25-(HT13+HT15))","v":0},{"$f":"MAX(0,HU25-(HU13+HU15))","v":0},{"$f":"MAX(0,HV25-(HV13+HV15))","v":0},null,null,null,null,null,null,null,null,null,null,null,null,null,null,null,null,null,null,{"$f":"MAX(0,IO25-(IO14+IO15))","v":1526},null,null,null,null,null,null,null,null,null,null,null,null,null,null,{"$f":"MAX(0,JD25-(JD13+JD15))","v":0},null,null,{"$f":"MAX(0,JG25-(JG13+JG15))","v":2037},null,null,null,null,null,null,null,null,{"$f":"MAX(0,JP25-(JP13+JP15))","v":0},null,null,"a) If SSE20 minus (SSE9 + SSE10) is positive or zero, SSE22 is mandatory and must equal that sum\nb) If present, SSE10.1 must be absent\nCannot be negative.","SA Monetary value (2dp) >= 0.00"]
[27,"","SSE23","Annual Investment Allowance",null,null,null,null,null,null,null,null,null,null,null,null,null,null,null,null,null,null,null,null,null,1200,null,null,1500,null,null,null,null,null,null,null,null,null,null,null,null,null,null,null,null,null,null,null,null,null,null,null,null,null,null,null,1200,null,null,null,null,null,null,null,null,null,null,null,null,null,null,null,null,null,null,null,null,null,null,null,null,null,null,null,null,null,null,null,null,null,null,null,null,null,null,null,null,null,null,null,null,null,null,null,null,null,null,1200,null,null,null,null,null,null,null,null,null,1200,null,null,null,null,null,null,null,null,null,null,null,null,null,null,null,null,null,null,null,null,null,null,null,null,null,null,null,null,null,null,null,null,null,null,null,null,null,null,null,null,null,null,null,null,null,null,null,null,null,null,null,null,null,null,null,null,null,null,null,null,null,null,null,null,null,null,null,null,null,null,null,null,null,null,null,null,null,null,null,null,null,null,null,null,null,null,1200,null,null,null,null,null,null,null,null,null,null,null,null,null,null,null,null,null,null,null,null,null,null,null,1200,null,null,null,null,null,null,null,null,null,null,null,null,null,null,null,null,null,null,null,912,null,null,null,null,null,null,null,null,null,null,null,null,null,null,null,null,null,null,null,null,null,null,null,null,null,null,1300000,null,null,"a) If present, must be less than or equal to TRAL-CA-ANNULA-INV-ALLCE (£1307946)\nb) If present, SSE10.1 must be absent","SA Monetary value (2dp) > 0.00"]
[28,"","SSE24","Unrelieved expenditure",null,null,null,null,null,null,null,null,null,null,null,null,null,null,null,null,null,null,null,null,null,800,null,null,1000,null,null,null,null,null,null,null,null,null,null,null,null,null,null,null,null,null,null,null,null,null,null,null,null,null,null,null,800,null,null,null,null,null,null,null,null,null,null,null,null,null,null,null,null,null,null,null,null,null,null,null,null,null,null,null,null,null,null,null,null,null,null,null,null,null,null,null,null,null,null,null,null,null,null,null,null,null,null,800,null,null,null,null,null,null,null,null,null,800,null,null,null,null,null,null,null,null,null,null,null,null,null,null,null,null,null,null,null,null,null,null,null,null,null,null,null,null,null,null,null,null,null,null,null,null,null,null,null,null,null,null,null,null,null,null,null,null,null,null,null,null,null,null,null,null,null,null,null,null,null,null,null,null,null,null,null,null,null,null,null,null,null,null,null,null,null,null,null,null,null,null,null,null,null,null,800,null,null,null,null,null,null,null,null,null,null,null,null,null,null,null,null,null,null,null,null,null,null,null,800,null,null,null,null,null,null,null,null,null,null,null,null,null,null,null,null,null,null,null,null,null,null,null,null,null,null,null,null,null,null,null,null,null,null,null,null,null,null,null,null,null,null,null,null,null,null,null,null,null,"If present, SSE10.1 must be absent","SA Monetary value (2dp) > 0.00"]
[29,"","SSE24.1","Zero-emission car allowance",null,null,null,null,null,null,null,null,null,null,null,null,null,null,null,null,null,null,null,null,null,null,null,null,null,null,null,null,null,null,null,null,null,null,null,null,null,null,null,null,null,null,null,null,null,null,null,null,null,null,null,500]
[30,11260,"SSE25","Other capital allowances",null,null,null,null,null,null,null,null,1700,null,null,null,null,null,null,null,null,null,null,null,null,null,null,null,1650,null,null,null,null,null,null,null,null,null,null,null,null,null,null,null,null,1260,null,null,null,null,null,null,null,null,null,260,null,null,null,null,null,null,null,null,null,null,null,null,null,null,null,null,null,1700,null,null,null,null,null,1700,null,null,null,null,null,null,null,null,null,null,null,null,1260,1700,null,null,null,null,null,null,null,null,null,null,null,null,11260,null,null,null,null,null,null,null,null,null,null,null,null,null,null,null,null,null,null,null,null,null,null,null,null,null,null,null,null,null,null,null,null,null,null,null,null,null,null,null,null,null,null,null,null,null,null,null,null,null,null,null,null,null,1700,null,1700,1700,null,null,null,null,null,null,null,11260,null,null,null,null,null,null,null,null,null,null,null,null,null,null,null,null,null,null,1700,null,null,null,null,null,null,null,null,null,null,null,null,null,null,null,null,null,null,null,null,null,null,null,null,null,null,null,null,null,null,null,null,null,null,null,null,1700,null,1700,null,null,null,null,null,null,null,null,null,null,null,null,null,null,null,null,null,null,null,null,null,null,null,null,null,null,null,null,null,null,null,null,null,1700,null,null,1700,null,null,null,null,null,null,null,null,1260,null,null,"If present, SSE10.1 must be absent","SA Monetary value (2dp) > 0.00"]
[31,{"$f":"IF(SE_A_IND>1,IF(HLOOKUP(SE_A_IND-1,SSE_RANGE,A32)=\"\",\"\",HLOOKUP(SE_A_IND-1,SSE_RANGE,A32)),\"\")","v":""},"SSE25.1","The Structures and Buildings Allowance",null,null,null,null,null,null,null,null,null,null,null,null,null,null,null,null,null,null,null,null,null,null,null,null,null,null,null,null,null,null,null,null,null,null,null,null,null,null,null,null,null,null,null,null,null,null,null,null,null,null,null,null,null,null,null,null,null,null,null,null,null,null,null,null,null,null,null,null,null,null,null,null,null,null,null,null,null,null,null,null,null,null,null,null,null,null,null,null,null,null,null,null,null,null,null,null,null,null,null,null,null,null,null,null,null,null,null,null,null,null,null,null,null,null,null,null,null,null,null,null,null,null,null,null,null,null,null,null,null,null,null,null,null,null,null,null,null,null,null,null,null,null,null,null,null,null,null,null,null,null,null,null,null,null,null,null,null,null,null,null,null,null,null,null,null,null,null,null,null,null,null,null,null,null,null,null,null,null,null,null,null,null,null,null,null,null,null,null,null,null,null,null,null,null,null,null,null,null,null,null,null,null,null,null,null,null,null,null,null,null,null,null,null,null,null,null,null,null,null,null,null,null,null,null,null,null,null,null,null,null,null,null,null,null,null,null,null,null,null,null,null,null,null,null,null,null,null,null,null,null,null,null,null,null,null,null,null,null,null,null,null,null,null,null,null,null,null,null,null,null,null,null,null,null,"If present, SSE10.1 must be absent","SA Monetary value (2dp) > 0.00"]
[32,"","SSE25.2","Freeport Structures and Buildings Allowance",null,null,null,null,null,null,null,null,null,null,null,null,null,null,null,null,null,null,null,null,null,null,null,null,null,null,null,null,null,null,null,null,null,null,null,null,null,null,null,null,null,null,null,null,null,null,null,null,null,null,null,500]
[33,1340,"SSE26","Total balancing charges",null,null,null,null,null,null,null,null,3926,null,null,null,null,null,null,null,null,null,null,null,null,null,null,null,null,null,null,null,null,null,null,null,null,null,null,null,null,null,null,null,null,1340,null,995,null,null,null,null,null,null,null,1340,null,null,null,null,null,null,null,null,null,null,null,null,null,null,null,null,null,3926,null,null,null,null,null,3926,null,null,null,null,null,null,null,null,null,null,null,null,1340,3926,null,null,null,null,null,null,null,null,null,null,null,null,1340,null,null,null,null,null,null,null,null,null,null,null,null,null,null,null,null,null,null,null,null,null,null,null,null,null,null,null,null,null,null,null,null,null,null,null,null,null,null,null,null,null,null,null,null,null,null,null,null,null,null,null,null,null,3926,null,3926,3926,null,null,null,null,null,null,null,1340,null,null,null,null,null,null,null,null,null,null,null,null,null,null,null,null,null,null,3926,null,null,null,null,null,995,null,995,null,null,null,null,null,null,null,null,null,null,null,null,null,null,null,null,null,null,null,null,null,null,null,null,null,null,null,null,3926,null,3926,null,null,null,null,null,null,null,null,null,null,null,null,null,null,null,null,null,null,null,null,null,null,null,null,null,null,null,null,null,null,null,null,null,3926,null,null,3926,null,null,null,null,null,null,null,null,1340,null,null,null,"SA Monetary value (2dp) > 0.00"]
[34,"","SSE27","Personal Use",null,null,null,null,null,null,null,null,720,null,null,null,null,null,null,null,null,null,null,null,null,null,null,null,null,null,null,null,null,null,null,null,null,null,null,null,null,null,null,null,null,null,null,null,null,null,null,null,null,null,null,null,null,null,null,null,null,null,null,null,null,null,null,null,null,null,null,null,null,720,null,null,null,null,null,720,null,null,null,null,null,null,null,null,null,null,null,null,null,720,null,null,null,null,null,null,null,null,null,null,null,null,null,null,null,null,null,null,null,null,null,null,null,null,null,null,null,null,null,null,null,null,null,null,null,null,null,null,null,null,null,null,null,null,null,null,null,null,null,null,null,null,null,null,null,null,null,null,null,null,null,null,null,null,null,null,720,null,720,720,null,null,null,null,null,null,null,null,null,null,null,null,null,null,null,null,null,null,null,null,null,null,null,null,null,null,720,null,null,null,null,null,null,null,null,null,null,null,null,null,null,null,null,null,null,null,null,null,null,null,null,null,null,null,null,null,null,null,null,null,null,null,null,720,null,720,null,null,null,null,null,null,null,null,null,null,null,null,null,null,null,null,null,null,null,null,null,null,null,null,null,null,null,null,null,null,null,null,null,720,null,null,720,null,null,null,null,null,null,null,null,null,null,null,"SSE10.1 must be less than or equal to SSE21 + SSE26 + SSE27","SA Monetary value (2dp) > 0.00"]
[35,0,"SSE28","Net profit for tax purposes",null,null,null,null,null,null,null,null,{"$f":"MAX(0, (M26+M34+M35)-(M27+M28+M29+M31))","v":3903},null,null,null,{"$f":"MAX(0, (Q26+Q34+Q35)-(Q27+Q28+Q29+Q31))","v":21055},null,null,null,null,null,null,null,null,21875,null,null,{"$f":"MAX(0, (AC26+AC34+AC35)-(AC27+AC28+AC29+AC31))","v":0},null,null,null,null,null,{"$f":"MAX(0,(AI26+AI34+AI35)-(AI15+AI27+AI28+AI29+AI31))","v":2788},null,null,null,null,null,null,null,null,null,null,{"$f":"MAX(0, (AT26+AT34+AT35)-(AT27+AT28+AT29+AT31))","v":0},null,{"$f":"MAX(0, (AV26+AV34+AV35)-(AV27+AV28+AV29+AV31))","v":54095},null,null,null,null,null,null,null,{"$f":"MAX(0, (BD26+BD34+BD35)-(BD27+BD28+BD29+BD30+BD32+BD33+BD31))","v":0},{"$f":"MAX(0,(BE26+BE34+BE35)-(BE27+BE28+BE29+BE31))","v":5570},null,null,null,null,null,null,null,null,null,null,null,null,null,null,null,null,{"$f":"MAX(0, (BV26+BV34+BV35)-(BV27+BV28+BV29+BV31))","v":3903},null,null,null,null,null,{"$f":"MAX(0, (CB26+CB34+CB35)-(CB27+CB28+CB29+CB31))","v":3903},null,null,null,null,null,null,{"$f":"MAX(0, (CI26+CI34+CI35)-(CI27+CI28+CI29+CI31))","v":0},25542,null,null,null,null,{"$f":"MAX(0, (CO26+CO34+CO35)-(CO27+CO28+CO29+CO31))","v":0},{"$f":"MAX(0, (CP26+CP34+CP35)-(CP27+CP28+CP29+CP31))","v":17506},null,null,null,null,null,null,null,null,null,null,null,null,{"$f":"MAX(0, (DC26+DC34+DC35)-(DC27+DC28+DC29+DC31))","v":0},21875,null,null,null,null,null,null,null,null,null,{"$f":"MAX(0, (DN26+DN34+DN35)-(DN27+DN28+DN29+DN31))","v":30495},{"$f":"MAX(0, (DO26+DO34+DO35)-(DO27+DO28+DO29+DO31))","v":3958},null,null,null,3958,null,null,{"$f":"MAX(0, (DV26+DV34+DV35)-(DV27+DV28+DV29+DV31))","v":8676},null,null,null,null,{"$f":"MAX(0, (EA26+EA34+EA35)-(EA27+EA28+EA29+EA31))","v":34656},0,0,{"$f":"MAX(0, (ED26+ED34+ED35)-(ED27+ED28+ED29+ED31))","v":4000},{"$f":"MAX(0, (EE26+EE34+EE35)-(EE27+EE28+EE29+EE31))","v":0},null,null,null,null,null,null,44446,null,null,null,null,null,null,null,null,null,null,null,null,null,null,null,null,null,{"$f":"MAX(0, (FD26+FD34+FD35)-(FD27+FD28+FD29+FD31))","v":34321},{"$f":"MAX(0, (FE26+FE34+FE35)-(FE27+FE28+FE29+FE31))","v":3903},null,{"$f":"MAX(0, (FG26+FG34+FG35)-(FG27+FG28+FG29+FG31))","v":3903},{"$f":"MAX(0, (FH26+FH34+FH35)-(FH27+FH28+FH29+FH31))","v":3903},null,null,null,null,null,null,null,{"$f":"MAX(0, (FP26+FP34+FP35)-(FP27+FP28+FP29+FP31))","v":0},null,null,null,null,null,null,null,null,null,null,null,null,null,null,null,null,null,null,{"$f":"MAX(0, (GI26+GI34+GI35)-(GI27+GI28+GI29+GI31))","v":3903},null,null,null,null,null,{"$f":"MAX(0, (GO26+GO34+GO35)-(GO27+GO28+GO29+GO31))","v":54095},null,{"$f":"MAX(0, (GQ26+GQ34+GQ35)-(GQ27+GQ28+GQ29+GQ31))","v":54095},null,null,null,null,null,21875,null,null,null,null,{"$f":"MAX(0, (HB26+HB34+HB35)-(HB27+HB28+HB29+HB31))","v":0},null,null,null,null,null,null,null,null,null,null,null,null,null,null,null,null,null,{"$f":"MAX(0, (HT26+HT34+HT35)-(HT27+HT28+HT29+HT31))","v":5561},{"$f":"MAX(0, (HU26+HU34+HU35)-(HU27+HU28+HU29+HU31))","v":2306},{"$f":"MAX(0, (HV26+HV34+HV35)-(HV27+HV28+HV29+HV31))","v":3903},null,null,null,null,null,null,null,null,null,null,null,null,null,null,null,null,null,null,{"$f":"MAX(0, (IO26+IO34+IO35)-(IO27+IO28+IO29+IO31))","v":0},null,null,null,null,null,null,null,null,null,null,null,null,null,null,{"$f":"MAX(0, (JD26+JD34+JD35)-(JD27+JD28+JD29+JD31))","v":3903},null,null,{"$f":"MAX(0, (JG26+JG34+JG35)-(JG27+JG28+JG29+JG31))","v":909},{"$f":"MAX(0, (JH26+JH34+JH35)-(JH27+JH28+JH29+JH31))","v":10353},null,null,null,18650,null,null,null,{"$f":"MAX(0, (JP26+JP34+JP35)-(JP27+JP28+JP29+JP31))","v":100},null,null,"If SSE21 + SSE26 + SSE27 minus (SSE10.1 + SSE22 + SSE23 + SSE24 + SSE25 + SSE25.1) is positive or zero SSE28 must equal that sum.\nCannot be negative.","SA Monetary value (2dp) >= 0.00"]
[36,"","SSE29","Losses used this year",null,null,null,null,null,null,null,null,null,null,null,null,null,null,null,null,null,null,null,null,null,null,null,null,null,null,null,null,null,null,null,null,null,null,null,null,null,null,null,null,null,null,null,7295,null,null,null,null,null,null,null,null,null,null,null,null,null,null,null,null,null,null,null,null,null,null,null,null,null,null,null,null,null,null,null,null,null,null,null,null,null,null,null,null,null,null,null,null,null,null,null,null,null,null,null,null,null,null,null,null,null,null,null,null,null,null,null,null,null,null,null,null,null,null,null,null,null,null,null,null,null,null,null,null,null,null,null,null,null,null,null,null,null,null,null,null,null,null,null,null,null,null,null,null,null,null,null,null,null,null,null,null,null,null,null,null,null,null,null,null,null,null,null,null,null,null,null,null,null,null,null,null,null,null,null,null,null,null,null,null,null,null,null,null,null,null,null,null,null,null,null,null,7295,null,7295,null,null,null,null,null,null,null,null,null,null,null,null,null,null,null,null,null,null,null,null,null,null,null,null,null,null,null,null,null,null,null,null,null,null,null,null,null,null,null,null,null,null,null,null,null,null,null,null,null,null,null,null,null,null,null,null,null,null,null,null,null,null,null,null,null,null,null,null,null,null,null,null,null,null,null,null,null,null,null,"If present, must be less than or equal to SSE28","SA Monetary value (2dp) > 0.00"]
[37,"","SSE30","Any other business income",null,null,null,null,null,null,null,null,250,null,null,null,null,null,null,null,null,null,null,null,null,null,null,null,null,null,null,null,null,null,null,null,null,null,null,null,null,null,null,null,null,null,null,null,null,null,null,null,null,null,null,null,null,null,null,null,null,null,null,null,null,null,null,null,null,null,null,null,null,250,null,null,null,null,null,250,null,null,null,null,null,null,null,null,null,null,null,null,null,250,null,null,null,null,null,null,null,null,null,null,null,null,null,null,null,null,null,null,null,null,null,null,null,null,null,null,null,null,null,null,null,null,null,null,null,null,null,null,null,null,null,null,null,null,null,null,null,null,null,null,null,null,null,null,null,null,null,null,null,null,null,null,null,null,null,null,250,null,250,250,null,null,null,null,null,null,null,null,null,null,null,null,null,null,null,null,null,null,null,null,null,null,null,null,null,null,250,null,null,null,null,null,null,null,null,null,null,null,null,null,null,null,null,null,null,null,null,null,null,null,null,null,null,null,null,null,null,null,null,null,null,null,null,250,null,250,null,null,null,null,null,null,null,null,null,null,null,null,null,null,null,null,null,null,null,null,null,null,null,null,null,null,null,null,null,null,null,null,null,250,null,null,250,null,null,null,null,null,null,null,null,null,null,null," ","SA Monetary value (2dp) > 0.00"]
[38,0,"SSE31","Total taxable profits from this business",null,null,null,null,null,null,null,null,{"$f":"MAX(0,M36+M38-M37)","v":4153},null,null,null,{"$f":"MAX(0,Q36+Q38-Q37)","v":21055},null,null,null,null,null,null,null,null,21875,null,null,{"$f":"MAX(0,AC36+AC38-AC37)","v":0},null,null,null,null,null,{"$f":"MAX(0,AI36+AI38-AI37)","v":2788},null,null,null,null,null,null,null,null,null,null,{"$f":"MAX(0,AT36+AT38-AT37)","v":0},null,{"$f":"MAX(0,AV36+AV38-AV37)","v":46800},null,null,null,null,null,null,null,{"$f":"MAX(0,BD36+BD38-BD37)","v":0},{"$f":"MAX(0,BE36+BE38-BE37)","v":5570},null,null,null,null,null,null,null,null,null,null,null,null,null,null,null,null,{"$f":"MAX(0,BV36+BV38-BV37)","v":4153},null,null,null,null,null,{"$f":"MAX(0,CB36+CB38-CB37)","v":4153},null,null,null,null,null,null,{"$f":"MAX(0,CI36+CI38-CI37)","v":0},25542,null,null,null,null,{"$f":"MAX(0,CO36+CO38-CO37)","v":0},{"$f":"MAX(0,CP36+CP38-CP37)","v":17756},null,null,null,null,null,null,null,null,null,null,null,null,{"$f":"MAX(0,DC36+DC38-DC37)","v":0},21875,null,null,null,null,null,null,null,null,null,{"$f":"MAX(0,DN36+DN38-DN37)","v":30495},{"$f":"MAX(0,DO36+DO38-DO37)","v":3958},null,null,null,3958,null,null,{"$f":"MAX(0,DV36+DV38-DV37)","v":8676},null,null,null,null,{"$f":"MAX(0,EA36+EA38-EA37)","v":34656},0,0,{"$f":"MAX(0,ED36+ED38-ED37)","v":4000},{"$f":"MAX(0,EE36+EE38-EE37)","v":0},null,null,null,null,null,null,44446,null,null,null,null,null,null,null,null,null,null,null,null,null,null,null,null,null,{"$f":"MAX(0,FD36+FD38-FD37)","v":34321},{"$f":"MAX(0,FE36+FE38-FE37)","v":4153},null,{"$f":"MAX(0,FG36+FG38-FG37)","v":4153},{"$f":"MAX(0,FH36+FH38-FH37)","v":4153},null,null,null,null,null,null,null,{"$f":"MAX(0,FP36+FP38-FP37)","v":0},null,null,null,null,null,null,null,null,null,null,null,null,null,null,null,null,null,null,{"$f":"MAX(0,GI36+GI38-GI37)","v":4153},null,null,null,null,null,{"$f":"MAX(0,GO36+GO38-GO37)","v":46800},null,{"$f":"MAX(0,GQ36+GQ38-GQ37)","v":46800},null,null,null,null,null,26034,null,null,null,null,{"$f":"MAX(0,HB36+HB38-HB37)","v":0},null,null,null,null,null,null,null,null,null,null,null,null,null,null,null,null,null,{"$f":"MAX(0,HT36+HT38-HT37)","v":5811},{"$f":"MAX(0,HU36+HU38-HU37)","v":2306},{"$f":"MAX(0,HV36+HV38-HV37)","v":4153},null,null,null,null,null,null,null,null,null,null,null,null,null,null,null,null,null,null,{"$f":"MAX(0,IO36+IO38-IO37)","v":0},null,null,null,null,null,null,null,null,null,null,null,null,null,null,{"$f":"MAX(0,JD36+JD38-JD37)","v":4153},null,null,{"$f":"MAX(0,JG36+JG38-JG37)","v":1159},{"$f":"MAX(0,JH36+JH38-JH37)","v":10353},null,null,null,18650,null,null,null,{"$f":"MAX(0,JP36+JP38-JP37)","v":100},null,null,"If SSE28 + SSE30 minus SSE29 is positive or zero SSE31 must equal that sum.\nCannot be negative.","SA Monetary value (2dp) >= 0.00"]
[39,53827,"SSE32","Allowable loss for year",null,null,null,null,null,null,null,null,{"$f":"MAX(0,(M27+M28+M29+M31)-(M26+M34+M35))","v":0},null,null,null,null,null,null,null,null,null,null,null,null,{"$f":"MAX(0,(Z27+Z28+Z29+Z31)-(Z26+Z34+Z35))","v":0},null,null,{"$f":"MAX(0,(AC27+AC28+AC29+AC31)-(AC26+AC34+AC35))","v":417},null,null,null,null,null,null,null,null,null,null,null,null,null,null,null,null,{"$f":"MAX(0,(AT27+AT28+AT29+AT31)-(AT26+AT34+AT35))","v":10450},null,{"$f":"MAX(0,(AV27+AV28+AV29+AV31)-(AV26+AV34+AV35))","v":0},null,null,null,null,null,null,null,{"$f":"MAX(0,(BD27+BD28+BD29+BD30+BD31+BD32+BD33)-(BD26+BD34+BD35))","v":10450},{"$f":"MAX(0,(BE27+BE28+BE29+BE31)-(BE26+BE34+BE35))","v":0},null,null,null,null,null,null,null,null,null,null,null,null,null,null,null,null,{"$f":"MAX(0,(BV27+BV28+BV29+BV31)-(BV26+BV34+BV35))","v":0},null,null,null,null,null,{"$f":"MAX(0,(CB27+CB28+CB29+CB31)-(CB26+CB34+CB35))","v":0},null,null,null,null,null,null,null,null,null,null,null,null,{"$f":"MAX(0,(CO27+CO28+CO29+CO31)-(CO26+CO34+CO35))","v":10450},{"$f":"MAX(0,(CP27+CP28+CP29+CP31)-(CP26+CP34+CP35))","v":0},null,null,null,null,null,null,null,null,null,null,null,null,{"$f":"MAX(0,(DC27+DC28+DC29+DC31)-(DC26+DC34+DC35))","v":38765},{"$f":"MAX(0,(DD27+DD28+DD29+DD31)-(DD26+DD34+DD35))","v":0},null,null,null,null,null,null,null,null,null,{"$f":"MAX(0,(DN27+DN28+DN29+DN31)-(DN26+DN34+DN35))","v":0},null,null,null,null,null,null,null,null,null,{"$f":"MAX(0,(DX27+DX28+DX29+DX31)-(DX26+DX34+DX35))","v":0},null,null,{"$f":"MAX(0,(EA27+EA28+EA29+EA31)-(EA26+EA34+EA35))","v":0},0,0,{"$f":"MAX(0,(ED27+ED28+ED29+ED31)-(ED26+ED34+ED35))","v":0},{"$f":"MAX(0,(EE27+EE28+EE29+EE31)-(EE26+EE34+EE35))","v":7000},null,null,null,null,null,null,null,null,null,null,null,null,null,null,null,null,null,null,null,null,null,null,null,null,{"$f":"MAX(0,(FD27+FD28+FD29+FD31)-(FD26+FD34+FD35))","v":0},{"$f":"MAX(0,(FE27+FE28+FE29+FE31)-(FE26+FE34+FE35))","v":0},null,{"$f":"MAX(0,(FG27+FG28+FG29+FG31)-(FG26+FG34+FG35))","v":0},{"$f":"MAX(0,(FH27+FH28+FH29+FH31)-(FH26+FH34+FH35))","v":0},null,null,16,null,null,null,null,{"$f":"MAX(0,(FP27+FP28+FP29+FP31)-(FP26+FP34+FP35))","v":53827},null,null,null,null,null,null,null,null,null,null,null,null,null,null,null,null,null,null,{"$f":"MAX(0,(GI27+GI28+GI29+GI31)-(GI26+GI34+GI35))","v":0},null,null,null,null,null,{"$f":"MAX(0,(GO27+GO28+GO29+GO31)-(GO26+GO34+GO35))","v":0},null,{"$f":"MAX(0,(GQ27+GQ28+GQ29+GQ31)-(GQ26+GQ34+GQ35))","v":0},null,null,null,null,null,{"$f":"MAX(0,(GW27+GW28+GW29+GW31)-(GW26+GW34+GW35))","v":0},null,null,null,null,{"$f":"MAX(0,(HB27+HB28+HB29+HB31)-(HB26+HB34+HB35))","v":0},null,null,null,null,null,null,null,null,null,null,null,null,null,null,null,null,null,{"$f":"MAX(0,(HT27+HT28+HT29+HT31)-(HT26+HT34+HT35))","v":0},{"$f":"MAX(0,(HU27+HU28+HU29+HU31)-(HU26+HU34+HU35))","v":0},{"$f":"MAX(0,(HV27+HV28+HV29+HV31)-(HV26+HV34+HV35))","v":0},null,null,null,null,null,null,null,null,null,null,null,null,null,null,null,null,null,null,{"$f":"MAX(0,(IO27+IO28+IO29+IO31)-(IO26+IO34+IO35))","v":2438},null,null,null,null,null,null,null,null,null,null,null,null,null,null,{"$f":"MAX(0,(JD27+JD28+JD29+JD31)-(JD26+JD34+JD35))","v":0},null,null,{"$f":"MAX(0,(JG27+JG28+JG29+JG31)-(JG26+JG34+JG35))","v":0},null,null,null,null,null,null,null,null,{"$f":"MAX(0,(JP27+JP28+JP29+JP31)-(JP26+JP34+JP35))","v":0},null,null,"a)Where SSE22 + SSE23 + SSE24 + SSE25 + SSE25.1 minus (SSE21 + SSE26 + SSE27) is positive or zero SSE32 is mandatory and must equal that sum. \nb)Cannot be negative.\nc)If present, SSE10.1 must be absent","SA Monetary value (2dp) >= 0.00"]
[40,53827,"SSE33","Loss offset against other income for year",null,null,null,null,null,null,null,null,{"$f":"IF(M12=\"Y\",\"\",IF(M40=0,\"\",M40))","v":""},null,null,null,null,null,null,null,null,null,null,null,null,{"$f":"IF(Z12=\"Y\",\"\",IF(Z40=0,\"\",Z40))","v":""},null,null,null,null,null,null,null,null,null,null,null,null,null,null,{"$f":"IF(AO12=\"Y\",\"\",IF(AO40=0,\"\",AO40))","v":""},null,null,null,null,{"$f":"IF(AT12=\"Y\",\"\",IF(AT40=0,\"\",AT40))","v":10450},null,{"$f":"IF(AV12=\"Y\",\"\",IF(AV40=0,\"\",AV40))","v":""},null,null,null,null,null,null,null,{"$f":"IF(BD12=\"Y\",\"\",IF(BD40=0,\"\",BD40))","v":10450},{"$f":"IF(BE12=\"Y\",\"\",IF(BE40=0,\"\",BE40))","v":""},null,null,null,null,null,null,null,null,null,null,null,null,null,null,null,null,{"$f":"IF(BV12=\"Y\",\"\",IF(BV40=0,\"\",BV40))","v":""},null,null,null,null,null,null,null,null,null,null,null,null,null,null,null,null,null,null,{"$f":"IF(CO12=\"Y\",\"\",IF(CO40=0,\"\",CO40))","v":10450},{"$f":"IF(CP12=\"Y\",\"\",IF(CP40=0,\"\",CP40))","v":""},null,null,null,null,null,null,null,null,null,null,null,null,{"$f":"IF(DC12=\"Y\",\"\",IF(DC40=0,\"\",DC40))","v":38765},{"$f":"IF(DD12=\"Y\",\"\",IF(DD40=0,\"\",DD40))","v":""},null,null,null,null,null,null,null,null,null,{"$f":"IF(DN12=\"Y\",\"\",IF(DN40=0,\"\",DN40))","v":""},null,null,null,null,null,null,null,null,null,{"$f":"IF(DX12=\"Y\",\"\",IF(DX40=0,\"\",DX40))","v":""},null,null,null,null,null,{"$f":"IF(ED12=\"Y\",\"\",IF(ED40=0,\"\",ED40))","v":""},2500,null,null,null,null,null,null,null,null,null,null,null,null,null,null,null,null,null,null,null,null,null,null,null,null,null,{"$f":"IF(FE12=\"Y\",\"\",IF(FE40=0,\"\",FE40))","v":""},null,{"$f":"IF(FG12=\"Y\",\"\",IF(FG40=0,\"\",FG40))","v":""},{"$f":"IF(FH12=\"Y\",\"\",IF(FH40=0,\"\",FH40))","v":""},null,null,null,null,null,null,null,{"$f":"IF(FP12=\"Y\",\"\",IF(FP40=0,\"\",FP40))","v":53827},null,null,null,null,null,null,null,null,null,null,null,null,null,null,null,null,null,null,{"$f":"IF(GI12=\"Y\",\"\",IF(GI40=0,\"\",GI40))","v":""},null,null,null,null,{"$f":"IF(GN12=\"Y\",\"\",IF(GN40=0,\"\",GN40))","v":""},{"$f":"IF(GO12=\"Y\",\"\",IF(GO40=0,\"\",GO40))","v":""},null,{"$f":"IF(GQ12=\"Y\",\"\",IF(GQ40=0,\"\",GQ40))","v":""},null,null,null,null,null,{"$f":"IF(GW12=\"Y\",\"\",IF(GW40=0,\"\",GW40))","v":""},null,null,null,null,15680,null,null,null,null,null,null,null,null,null,null,null,null,null,null,null,null,null,{"$f":"IF(HT12=\"Y\",\"\",IF(HT40=0,\"\",HT40))","v":""},{"$f":"IF(HU12=\"Y\",\"\",IF(HU40=0,\"\",HU40))","v":""},{"$f":"IF(HV12=\"Y\",\"\",IF(HV40=0,\"\",HV40))","v":""},null,null,null,null,null,null,null,null,null,null,null,null,null,null,null,null,null,null,0,null,null,null,null,null,null,null,null,null,null,null,null,null,null,{"$f":"IF(JD12=\"Y\",\"\",IF(JD40=0,\"\",JD40))","v":""},null,null,{"$f":"IF(JG12=\"Y\",\"\",IF(JG40=0,\"\",JG40))","v":""},null,null,null,null,null,null,null,null,{"$f":"IF(JP12=\"Y\",\"\",IF(JP40=0,\"\",JP40))","v":""},null,null,"If present, must be less than or equal to SSE32. \nIf SSE8 = 'Y' then SSE33 must be zero or absent.","SA Monetary value (2dp) >= 0.00"]
[41,"","SSE34","Loss to carry back",null,null,null,null,null,null,null,null,null,null,null,null,null,null,null,null,null,null,null,null,null,null,null,null,null,null,null,null,null,null,null,null,null,null,null,null,null,null,null,null,null,null,null,null,null,null,null,null,null,null,null,null,null,null,null,null,null,null,null,null,null,null,null,null,null,null,null,null,null,null,null,null,null,null,null,null,null,null,null,null,null,null,null,null,null,null,null,null,null,null,null,null,null,null,null,null,null,null,null,null,null,null,null,null,null,null,null,null,null,null,null,null,null,null,null,null,null,null,null,null,null,null,null,null,null,null,null,null,null,null,null,null,null,null,null,null,null,null,null,null,null,null,null,null,null,null,null,null,null,null,null,null,null,null,null,null,null,null,null,null,null,null,null,null,null,null,null,null,null,null,null,null,null,null,null,null,null,null,null,null,null,null,null,null,null,null,null,null,null,null,null,null,null,null,null,null,null,null,null,null,null,null,null,null,null,null,null,null,null,null,null,null,null,null,null,null,null,null,null,null,null,null,null,null,null,null,null,null,null,null,null,null,null,null,null,null,null,null,null,null,null,null,null,null,null,null,null,null,null,null,null,null,null,null,null,null,null,null,null,null,null,null,null,null,null,null,null,null,null,null,null,null,null,null,"If present, must be less than or equal to SSE32 minus SSE33","SA Monetary value (2dp) > 0.00"]
[42,"","SSE35","Losses brought forward from last year",null,null,null,null,null,null,null,null,null,null,null,null,null,null,null,null,null,null,null,null,null,null,null,null,null,null,null,null,null,null,null,null,null,null,null,null,null,null,null,null,null,null,null,null,null,null,null,null,null,null,null,null,null,null,null,null,null,null,null,null,null,null,null,null,null,null,null,null,null,null,null,null,null,null,null,null,null,null,null,null,null,null,null,null,null,null,null,null,null,null,null,null,null,null,null,null,null,null,null,null,null,null,null,null,null,null,null,null,null,null,null,null,null,null,null,null,null,null,null,null,null,null,null,null,null,null,null,null,null,null,null,null,null,null,null,null,null,null,null,null,null,null,null,null,null,null,null,null,null,null,null,null,null,null,null,null,null,null,null,null,null,null,16,null,null,null,null,null,null,null,null,null,null,null,null,null,null,null,null,null,null,null,null,null,null,null,null,null,null,null,null,null,null,null,null,null,null,null,null,null,null,null,null,null,null,null,null,null,null,null,null,null,null,null,null,null,null,null,null,null,null,null,null,null,null,null,null,null,null,null,null,null,null,null,null,null,null,null,null,null,null,null,null,null,2072,null,null,null,null,null,null,null,null,null,null,null,null,null,null,null,null,null,null,null,null,null,null,null,null,null,null,null,null,null,null,"SA Monetary value (2dp) >= 0.00"]
[43,"","SSE36",{"$f":"\"If your total profits for \"&tax_year&\" are less than \"&DOLLAR(NIC2_SPT,0)&\" and you choose to pay Class 2 NICs voluntarily, put 'X' in the box\"","v":"If your total profits for 2025-26 are less than £6,845 and you choose to pay Class 2 NICs voluntarily, put 'X' in the box"},null,null,null,null,null,null,null,null,"Y",null,null,null,"N",null,null,null,null,null,null,null,null,{"$f":"IF(SE_A_IND>1,IF(SE_B_IND>1,\"\",IF(LUN_IND>1,\"\",IF(PS_A_IND>1,\"\",IF(PS_B_IND>1,\"\",IF(AND(Z39<NIC2_SPT,NIC2_Vol,NIC_ex_set=FALSE),\"Y\",\"N\"))))),\"\")","v":""},null,null,{"$f":"IF(SE_A_IND>1,IF(SE_B_IND>1,\"\",IF(LUN_IND>1,\"\",IF(PS_A_IND>1,\"\",IF(PS_B_IND>1,\"\",IF(AND(AC39<NIC2_SPT,NIC2_Vol,NIC_ex_set=FALSE),\"Y\",\"N\"))))),\"\")","v":""},null,null,null,null,null,null,null,null,null,null,null,{"$f":"IF(SE_A_IND>1,IF(SE_B_IND>1,\"\",IF(LUN_IND>1,\"\",IF(PS_A_IND>1,\"\",IF(PS_B_IND>1,\"\",IF(AND(AO39<NIC2_SPT,NIC2_Vol,NIC_ex_set=FALSE),\"Y\",\"N\"))))),\"\")","v":""},null,null,null,null,{"$f":"IF(SE_A_IND>1,IF(SE_B_IND>1,\"\",IF(LUN_IND>1,\"\",IF(PS_A_IND>1,\"\",IF(PS_B_IND>1,\"\",IF(AND(AT39<NIC2_SPT,NIC2_Vol,NIC_ex_set=FALSE),\"Y\",\"N\"))))),\"\")","v":""},null,{"$f":"IF(SE_A_IND>1,IF(SE_B_IND>1,\"\",IF(LUN_IND>1,\"\",IF(PS_A_IND>1,\"\",IF(PS_B_IND>1,\"\",IF(AND(AV39<NIC2_SPT,NIC2_Vol,NIC_ex_set=FALSE),\"Y\",\"N\"))))),\"\")","v":""},null,null,null,null,null,{"$f":"IF(SE_A_IND>1,IF(SE_B_IND>1,\"\",IF(LUN_IND>1,\"\",IF(PS_A_IND>1,\"\",IF(PS_B_IND>1,\"\",IF(AND(BB39<NIC2_SPT,NIC2_Vol,NIC_ex_set=FALSE),\"Y\",\"N\"))))),\"\")","v":""},null,"Y",{"$f":"IF(SE_A_IND>1,IF(SE_B_IND>1,\"\",IF(LUN_IND>1,\"\",IF(PS_A_IND>1,\"\",IF(PS_B_IND>1,\"\",IF(AND(BE39<NIC2_SPT,NIC2_Vol,NIC_ex_set=FALSE),\"Y\",\"N\"))))),\"\")","v":""},null,null,null,null,null,null,null,null,null,null,null,null,null,null,null,null,{"$f":"IF(SE_A_IND>1,IF(SE_B_IND>1,\"\",IF(LUN_IND>1,\"\",IF(PS_A_IND>1,\"\",IF(PS_B_IND>1,\"\",IF(AND(BV39<NIC2_SPT,NIC2_Vol,NIC_ex_set=FALSE),\"Y\",\"N\"))))),\"\")","v":""},null,null,null,null,null,null,null,null,null,null,null,null,{"$f":"IF(SE_A_IND>1,IF(SE_B_IND>1,\"\",IF(LUN_IND>1,\"\",IF(PS_A_IND>1,\"\",IF(PS_B_IND>1,\"\",IF(AND(CI39<NIC2_SPT,NIC2_Vol,NIC_ex_set=FALSE),\"Y\",\"N\"))))),\"\")","v":""},null,null,null,null,null,"Y",null,null,null,null,null,null,null,null,null,null,null,null,null,{"$f":"IF(SE_A_IND>1,IF(SE_B_IND>1,\"\",IF(LUN_IND>1,\"\",IF(PS_A_IND>1,\"\",IF(PS_B_IND>1,\"\",IF(AND(DC39<NIC2_SPT,NIC2_Vol,NIC_ex_set=FALSE),\"Y\",\"N\"))))),\"\")","v":""},{"$f":"IF(SE_A_IND>1,IF(SE_B_IND>1,\"\",IF(LUN_IND>1,\"\",IF(PS_A_IND>1,\"\",IF(PS_B_IND>1,\"\",IF(AND(DD39<NIC2_SPT,NIC2_Vol,NIC_ex_set=FALSE),\"Y\",\"N\"))))),\"\")","v":""},null,null,null,null,null,null,null,null,null,{"$f":"IF(SE_A_IND>1,IF(SE_B_IND>1,\"\",IF(LUN_IND>1,\"\",IF(PS_A_IND>1,\"\",IF(PS_B_IND>1,\"\",IF(AND(DN39<NIC2_SPT,NIC2_Vol,NIC_ex_set=FALSE),\"Y\",\"N\"))))),\"\")","v":""},null,null,null,null,null,null,null,null,null,{"$f":"IF(SE_A_IND>1,IF(SE_B_IND>1,\"\",IF(LUN_IND>1,\"\",IF(PS_A_IND>1,\"\",IF(PS_B_IND>1,\"\",IF(AND(DX39<NIC2_SPT,NIC2_Vol,NIC_ex_set=FALSE),\"Y\",\"N\"))))),\"\")","v":""},null,null,null,null,null,{"$f":"IF(SE_A_IND>1,IF(SE_B_IND>1,\"\",IF(LUN_IND>1,\"\",IF(PS_A_IND>1,\"\",IF(PS_B_IND>1,\"\",IF(AND(ED39<NIC2_SPT,NIC2_Vol,NIC_ex_set=FALSE),\"Y\",\"N\"))))),\"\")","v":""},{"$f":"IF(SE_A_IND>1,IF(SE_B_IND>1,\"\",IF(LUN_IND>1,\"\",IF(PS_A_IND>1,\"\",IF(PS_B_IND>1,\"\",IF(AND(EE39<NIC2_SPT,NIC2_Vol,NIC_ex_set=FALSE),\"Y\",\"N\"))))),\"\")","v":""},null,null,null,null,null,null,null,null,null,null,null,null,null,null,null,null,null,null,null,null,null,null,null,null,null,{"$f":"IF(SE_A_IND>1,IF(SE_B_IND>1,\"\",IF(LUN_IND>1,\"\",IF(PS_A_IND>1,\"\",IF(PS_B_IND>1,\"\",IF(AND(FE39<NIC2_SPT,NIC2_Vol,NIC_ex_set=FALSE),\"Y\",\"N\"))))),\"\")","v":""},null,{"$f":"IF(SE_A_IND>1,IF(SE_B_IND>1,\"\",IF(LUN_IND>1,\"\",IF(PS_A_IND>1,\"\",IF(PS_B_IND>1,\"\",IF(AND(FG39<NIC2_SPT,NIC2_Vol,NIC_ex_set=FALSE),\"Y\",\"N\"))))),\"\")","v":""},{"$f":"IF(SE_A_IND>1,IF(SE_B_IND>1,\"\",IF(LUN_IND>1,\"\",IF(PS_A_IND>1,\"\",IF(PS_B_IND>1,\"\",IF(AND(FH39<NIC2_SPT,NIC2_Vol,NIC_ex_set=FALSE),\"Y\",\"N\"))))),\"\")","v":""},null,null,null,null,null,null,null,{"$f":"IF(SE_A_IND>1,IF(SE_B_IND>1,\"\",IF(LUN_IND>1,\"\",IF(PS_A_IND>1,\"\",IF(PS_B_IND>1,\"\",IF(AND(FP39<NIC2_SPT,NIC2_Vol,NIC_ex_set=FALSE),\"Y\",\"N\"))))),\"\")","v":""},null,null,null,null,null,null,null,null,null,null,null,null,null,null,null,null,null,null,{"$f":"IF(SE_A_IND>1,IF(SE_B_IND>1,\"\",IF(LUN_IND>1,\"\",IF(PS_A_IND>1,\"\",IF(PS_B_IND>1,\"\",IF(AND(GI39<NIC2_SPT,NIC2_Vol,NIC_ex_set=FALSE),\"Y\",\"N\"))))),\"\")","v":""},null,null,null,null,{"$f":"IF(SE_A_IND>1,IF(SE_B_IND>1,\"\",IF(LUN_IND>1,\"\",IF(PS_A_IND>1,\"\",IF(PS_B_IND>1,\"\",IF(AND(GN39<NIC2_SPT,NIC2_Vol,NIC_ex_set=FALSE),\"Y\",\"N\"))))),\"\")","v":""},{"$f":"IF(SE_A_IND>1,IF(SE_B_IND>1,\"\",IF(LUN_IND>1,\"\",IF(PS_A_IND>1,\"\",IF(PS_B_IND>1,\"\",IF(AND(GO39<NIC2_SPT,NIC2_Vol,NIC_ex_set=FALSE),\"Y\",\"N\"))))),\"\")","v":""},null,{"$f":"IF(SE_A_IND>1,IF(SE_B_IND>1,\"\",IF(LUN_IND>1,\"\",IF(PS_A_IND>1,\"\",IF(PS_B_IND>1,\"\",IF(AND(GQ39<NIC2_SPT,NIC2_Vol,NIC_ex_set=FALSE),\"Y\",\"N\"))))),\"\")","v":""},null,null,null,null,null,{"$f":"IF(SE_A_IND>1,IF(SE_B_IND>1,\"\",IF(LUN_IND>1,\"\",IF(PS_A_IND>1,\"\",IF(PS_B_IND>1,\"\",IF(AND(GW39<NIC2_SPT,NIC2_Vol,NIC_ex_set=FALSE),\"Y\",\"N\"))))),\"\")","v":""},null,null,null,null,{"$f":"IF(SE_A_IND>1,IF(SE_B_IND>1,\"\",IF(LUN_IND>1,\"\",IF(PS_A_IND>1,\"\",IF(PS_B_IND>1,\"\",IF(AND(HB39<NIC2_SPT,NIC2_Vol,NIC_ex_set=FALSE),\"Y\",\"N\"))))),\"\")","v":""},null,null,null,null,null,null,null,null,null,null,null,null,null,null,null,null,null,{"$f":"IF(SE_A_IND>1,IF(SE_B_IND>1,\"\",IF(LUN_IND>1,\"\",IF(PS_A_IND>1,\"\",IF(PS_B_IND>1,\"\",IF(AND(HT39<NIC2_SPT,NIC2_Vol,NIC_ex_set=FALSE),\"Y\",\"N\"))))),\"\")","v":""},{"$f":"IF(SE_A_IND>1,IF(SE_B_IND>1,\"\",IF(LUN_IND>1,\"\",IF(PS_A_IND>1,\"\",IF(PS_B_IND>1,\"\",IF(AND(HU39<NIC2_SPT,NIC2_Vol,NIC_ex_set=FALSE),\"Y\",\"N\"))))),\"\")","v":""},{"$f":"IF(SE_A_IND>1,IF(SE_B_IND>1,\"\",IF(LUN_IND>1,\"\",IF(PS_A_IND>1,\"\",IF(PS_B_IND>1,\"\",IF(AND(HV39<NIC2_SPT,NIC2_Vol,NIC_ex_set=FALSE),\"Y\",\"N\"))))),\"\")","v":""},null,null,null,null,null,null,null,null,null,null,null,null,null,null,null,null,null,null,"Y",null,null,null,null,null,null,null,null,null,null,null,null,null,null,{"$f":"IF(SE_A_IND>1,IF(SE_B_IND>1,\"\",IF(LUN_IND>1,\"\",IF(PS_A_IND>1,\"\",IF(PS_B_IND>1,\"\",IF(AND(JD39<NIC2_SPT,NIC2_Vol,NIC_ex_set=FALSE),\"Y\",\"N\"))))),\"\")","v":""},null,null,"Y",null,null,null,null,null,null,null,null,{"$f":"IF(SE_A_IND>1,IF(SE_B_IND>1,\"\",IF(LUN_IND>1,\"\",IF(PS_A_IND>1,\"\",IF(PS_B_IND>1,\"\",IF(AND(JP39<NIC2_SPT,NIC2_Vol,NIC_ex_set=FALSE),\"Y\",\"N\"))))),\"\")","v":""},{"$f":"IF(SE_A_IND>1,IF(SE_B_IND>1,\"\",IF(LUN_IND>1,\"\",IF(PS_A_IND>1,\"\",IF(PS_B_IND>1,\"\",IF(AND(JQ39<NIC2_SPT,NIC2_Vol,NIC_ex_set=FALSE),\"Y\",\"N\"))))),\"\")","v":""},null,null,"\"yes\""]
[44,"N","SSE37","If you are excepted from paying Class 4 NICs, put ‘X’ in the box",null,null,null,null,null,null,null,null,"N",null,null,null,"Y",null,null,null,null,null,null,null,null,{"$f":"IF(SE_A_IND>1,IF(NIC_ex_set,\"Y\",\"N\"),\"\")","v":"N"},null,null,{"$f":"IF(SE_A_IND>1,IF(NIC_ex_set,\"Y\",\"N\"),\"\")","v":"N"},null,null,null,null,null,null,null,null,null,null,null,{"$f":"IF(SE_A_IND>1,IF(NIC_ex_set,\"Y\",\"N\"),\"\")","v":"N"},null,null,null,null,{"$f":"IF(SE_A_IND>1,IF(NIC_ex_set,\"Y\",\"N\"),\"\")","v":"N"},null,{"$f":"IF(SE_A_IND>1,IF(NIC_ex_set,\"Y\",\"N\"),\"\")","v":"N"},null,null,null,null,null,{"$f":"IF(SE_A_IND>1,IF(NIC_ex_set,\"Y\",\"N\"),\"\")","v":"N"},null,{"$f":"IF(SE_A_IND>1,IF(NIC_ex_set,\"Y\",\"N\"),\"\")","v":"N"},{"$f":"IF(SE_A_IND>1,IF(NIC_ex_set,\"Y\",\"N\"),\"\")","v":"N"},null,null,null,null,null,null,null,null,null,null,null,null,null,null,null,null,{"$f":"IF(SE_A_IND>1,IF(NIC_ex_set,\"Y\",\"N\"),\"\")","v":"N"},null,null,null,null,null,null,null,null,null,null,null,null,{"$f":"IF(SE_A_IND>1,IF(NIC_ex_set,\"Y\",\"N\"),\"\")","v":"N"},"Y",null,null,null,null,null,"Y",null,null,null,null,null,null,null,null,null,null,null,null,{"$f":"IF(SE_A_IND>1,IF(NIC_ex_set,\"Y\",\"N\"),\"\")","v":"N"},{"$f":"IF(SE_A_IND>1,IF(NIC_ex_set,\"Y\",\"N\"),\"\")","v":"N"},null,null,null,null,null,null,null,null,null,{"$f":"IF(SE_A_IND>1,IF(NIC_ex_set,\"Y\",\"N\"),\"\")","v":"N"},null,null,null,null,null,null,null,null,null,{"$f":"IF(SE_A_IND>1,IF(NIC_ex_set,\"Y\",\"N\"),\"\")","v":"N"},null,null,null,null,null,{"$f":"IF(SE_A_IND>1,IF(NIC_ex_set,\"Y\",\"N\"),\"\")","v":"N"},{"$f":"IF(SE_A_IND>1,IF(NIC_ex_set,\"Y\",\"N\"),\"\")","v":"N"},null,null,null,null,null,null,null,null,null,null,null,null,null,null,null,null,null,null,null,null,null,null,null,null,null,{"$f":"IF(SE_A_IND>1,IF(NIC_ex_set,\"Y\",\"N\"),\"\")","v":"N"},null,{"$f":"IF(SE_A_IND>1,IF(NIC_ex_set,\"Y\",\"N\"),\"\")","v":"N"},{"$f":"IF(SE_A_IND>1,IF(NIC_ex_set,\"Y\",\"N\"),\"\")","v":"N"},null,null,null,null,null,null,null,{"$f":"IF(SE_A_IND>1,IF(NIC_ex_set,\"Y\",\"N\"),\"\")","v":"N"},null,null,null,null,null,null,null,null,null,null,null,null,null,null,null,null,null,null,{"$f":"IF(SE_A_IND>1,IF(NIC_ex_set,\"Y\",\"N\"),\"\")","v":"N"},null,null,null,null,{"$f":"IF(SE_A_IND>1,IF(NIC_ex_set,\"Y\",\"N\"),\"\")","v":"N"},{"$f":"IF(SE_A_IND>1,IF(NIC_ex_set,\"Y\",\"N\"),\"\")","v":"N"},null,{"$f":"IF(SE_A_IND>1,IF(NIC_ex_set,\"Y\",\"N\"),\"\")","v":"N"},null,null,null,null,null,{"$f":"IF(SE_A_IND>1,IF(NIC_ex_set,\"Y\",\"N\"),\"\")","v":"N"},null,null,null,null,{"$f":"IF(SE_A_IND>1,IF(NIC_ex_set,\"Y\",\"N\"),\"\")","v":"N"},null,null,null,null,null,null,null,null,null,null,null,null,null,null,null,null,null,{"$f":"IF(SE_A_IND>1,IF(NIC_ex_set,\"Y\",\"N\"),\"\")","v":"N"},{"$f":"IF(SE_A_IND>1,IF(NIC_ex_set,\"Y\",\"N\"),\"\")","v":"N"},{"$f":"IF(SE_A_IND>1,IF(NIC_ex_set,\"Y\",\"N\"),\"\")","v":"N"},null,null,null,null,null,null,null,null,null,null,null,null,null,null,null,null,null,null,{"$f":"IF(SE_A_IND>1,IF(NIC_ex_set,\"Y\",\"N\"),\"\")","v":"N"},null,null,null,null,null,null,null,null,null,null,null,null,null,null,{"$f":"IF(SE_A_IND>1,IF(NIC_ex_set,\"Y\",\"N\"),\"\")","v":"N"},null,null,null,null,null,null,null,null,null,null,null,{"$f":"IF(SE_A_IND>1,IF(NIC_ex_set,\"Y\",\"N\"),\"\")","v":"N"},{"$f":"IF(SE_A_IND>1,IF(NIC_ex_set,\"Y\",\"N\"),\"\")","v":"N"},null,null,"\"yes\""]
[45,{"$f":"IF(SE_A_IND>1,IF(HLOOKUP(SE_A_IND-1,SSE_RANGE,A46)=\"\",\"\",HLOOKUP(SE_A_IND-1,SSE_RANGE,A46)),\"\")","v":""},"SSE38","Deductions made by contractors on account of tax",null,null,null,null,null,null,null,null,null,null,null,null,null,null,null,null,null,null,null,null,null,null,null,null,null,null,null,null,null,null,null,null,null,null,null,null,null,null,null,null,null,null,null,10421,null,null,null,null,null,null,null,null,null,null,null,null,null,null,null,null,null,null,null,null,null,null,null,null,null,null,null,null,null,null,null,null,null,null,null,null,null,null,null,null,null,null,null,null,null,null,null,null,null,null,null,null,null,null,null,null,null,null,null,null,null,null,null,null,null,null,null,null,null,null,null,null,null,null,null,null,null,null,null,null,null,null,4267,null,null,null,null,null,null,null,null,null,null,null,null,null,null,null,null,null,null,null,null,null,null,null,null,null,null,null,null,null,null,null,null,null,null,null,null,null,null,null,null,null,null,null,null,null,null,null,null,null,null,null,null,null,null,null,null,null,null,null,null,null,null,null,null,null,10421,null,10421,null,null,null,null,null,null,null,null,null,null,null,null,null,null,null,null,null,null,null,null,null,null,null,null,null,null,null,null,null,null,null,null,null,null,null,null,null,null,null,null,null,null,null,null,null,null,null,null,null,null,null,null,null,null,null,null,null,null,null,null,null,null,null,null,null,null,null,null,null,null,null,null,null,null,null,null,null,null,null,null,"SA Monetary value (2dp) > 0.00"]
[]
["row",{"$f":"\"selected \"&SE_B_IND-1","v":"selected 0"},"FSE",null,1,2,3,4,5,6,7,8,9,10,11,12,13,14,15,16,17,18,19,20,21,22,23,24,25,26,27,28,29,30,31,32,33,34,35,36,37,38,39,40,41,42,43,44,45,46,47,48,49,50,51,52,53,54,55,56,57,58,59,60,61,62,63,64,65,66,67,68,69,70,71,72,73,74,75,76,77,78,79,80,81,82,83,84,85,86,87,88,89,90,91,92,93,94,95,96,97,98,99,100,101,102,103,104,105,106,107,108,109,110,111,112,113,114,115,116,117,118,119,120,121,122,123,124,125,126,127,128,129,130,131,132,133,134,135,136,137,138,139,140,141,142,143,144,145,146,147,148,149,150,151,152,153,154,155,156,157,158,159,160,161,162,163,164,165,166,167,168,169,170,171,172,173,174,175,176,177,178,179,180,181,182,183,184,185,186,187,188,189,190,191,192,193,194,195,196,197,198,199,200,201,202,203,204,205,206,207,208,209,210,211,212,213,214,215,216,217,218,219,220,221,222,223,224,225,226,227,228,229,230,231,232,233,234,235,236,237,238,239,240,241,242,243,244,245,246,247,248,249,250,251,252,253,254,255,256,257,258,259,260,261,262,263,264,265,266,267,268,269,270,271,272,273,null," Validation"]
[2,{"$f":"IF(SE_B_IND>1,IF(HLOOKUP(SE_B_IND-1,FSE_RANGE,A49)=\"\",\"\",HLOOKUP(SE_B_IND-1,FSE_RANGE,A49)),\"\")","v":""},"FSE1","Name of Business",null,null,"Trade5",null,"Trade5",null,null,"Trade5",null,null,null,null,"Trade5",null,"Trade5",null,null,null,null,null,null,null,"Larks",null,"Trade5",null,"Trade5",null,null,"Trade5",null,"Trade1","Shearer",null,"Trade1 ","Gifts",null,"Trade4",null,null,null,null,null,"Trade4",null,null,null,null,null,null,null,null,null,null,null,null,null,null,null,null,null,null,null,null,null,null,null,null,null,null,null,null,"Stamps",null,null,"Trade1",null,"Farming",null,"Trade1",null,"Trade5",null,null,"Chem","Trade2","Infinity","Reds","Roadmap","Spices",null,"Trade2","Trade2",null,"Trade6","Trade6",null,null,null,null,null,null,"Trade6",null,null,null,null,null,null,"Trade6",null,null,null,null,null,null,null,"WILL",null,null,null,null,null,null,null,null,"Vinylz",null,null,null,null,"Trade7","Trade8",null,"Trade3",null,null,null,"Trade2",null,null,null,null,null,"Light Out","Cows and Pigs",null,null,null,null,"Trade2",null,null,null,null,null,null,"Trade1",null,"Trade6","Pad Corbs","Munns",null,null,"Munns",null,"Nam",null,null,null,null,null,null,null,null,null,null,null,null,null,null,"Garage",null,null,null,null,null,"Trade3",null,null,null,"Join",null,null,null,null,null,null,"Garage",null,null,"Trade9",null,null,null,"Trade4","Trade6",null,null,null,null,null,"MUNNY","Keith&Pads Ltd","Munny& Pears","Munny& Pears","CONSULTANCY",null,"Trade5",null,null,null,null,null,null,null,"Mint",null,null,null,null,null,null,null,null,null,null,null,null,null,null,"Bankc",null,null,null,null,null,null,null,null,"Trade1",null,"Shanez","Maismoo","Trade1",null,"Trade2","Gabe Lend",null,null,null,null,null,"Trade1",null,null,"Trade1",null,null,null,null,null,null,null,null,"SA non-empty string"]
[3,{"$f":"IF(SE_B_IND>1,IF(HLOOKUP(SE_B_IND-1,FSE_RANGE,A50)=\"\",\"\",HLOOKUP(SE_B_IND-1,FSE_RANGE,A50)),\"\")","v":""},"FSE2","Description of Business",null,null,"trader",null,"trader",null,null,"trader",null,null,null,null,"trader",null,"trader",null,null,null,null,null,null,null,"mudlark",null,"trader",null,"collector",null,null,"captain",null,"glazier","Shearer",null,"Cleaning","Gift shop",null,"glazier",null,null,null,null,null,"Toy maker",null,null,null,null,null,null,null,null,null,null,null,null,null,null,null,null,null,null,null,null,null,null,null,null,null,null,null,null,"Philatalist",null,null,"farmer",null,"Shooting",null,"farmer",null,"trader",null,null,"Chemist","Dentist","Math","Casino","GPS design","Takeaway",null,"Dentist","Dentist",null,"lawyer","lawyer",null,null,null,null,null,null,"lawyer",null,null,null,null,null,null,"lawyer",null,null,null,null,null,null,null,"FARM",null,null,null,null,null,null,null,null,"Records",null,null,null,null,"Butcher","Baker",null,"Plumber",null,null,null,"Dentist",null,null,null,null,null,"Sale of Electric Components","Farmer",null,null,null,null,"Dentist",null,null,null,null,null,null,"farmer",null,"lawyer","management","Consulting",null,null,"Self employed",null,"Consultancy",null,null,null,null,null,null,null,null,null,null,null,null,null,null,"Mechanic",null,null,null,null,null,"Plumber",null,null,null,"Carpentry",null,null,null,null,null,null,"Mechanic",null,null,"trader",null,null,null,"Toy maker","lawyer",null,null,null,null,null,"Accountants","trader","trader","trader","CONSULTANCY",null,"trader",null,null,null,null,null,null,null,"Finance",null,null,null,null,null,null,null,null,null,null,null,null,null,null,"Art",null,null,null,null,null,null,null,null,"farmer",null,"Hair","farming","farmer",null,"Dentist","Roofing",null,null,null,null,null,"farmer",null,null,"farmer",null,null,null,null,null,null,null,null,"SA non-empty string"]
[4,"","FSE3","Address of Business",null,null,null,null,null,null,null,null,null,null,null,null,null,null,null,null,null,null,null,null,null,null,null,null,null,null,null,null,null,null,null,null,null,null,null,null,null,null,null,null,null,null,null,null,null,null,null,null,null,null,null,null,null,null,null,null,null,null,null,null,null,null,null,null,null,null,null,null,null,null,null,null,null,null,null,null,null,null,null,null,null,null,null,null,"Stone Rd","Bridge St","Beyond St","Black St","Lost Ave","Chilli Lane",null,"Bridge St","Bridge St",null,null,null,null,null,null,null,null,null,null,null,null,null,null,null,null,null,null,null,null,null,null,null,null,null,null,null,null,null,null,null,null,null,"Cabby Rd",null,null,null,null,"King Street",null,null,"Telford St",null,null,null,"Bridge St",null,null,null,null,null,null,null,null,null,null,null,"Bridge St",null,null,null,null,null,null,null,null,null,"29 Hello Avenue",null,null,null,null,null,"House",null,null,null,null,null,null,null,null,null,null,null,null,null,null,null,null,null,null,null,null,"Telford St",null,null,null,"Star Rd",null,null,null,null,null,null,null,null,null,null,null,null,null,null,null,null,null,null,null,null,null,null,null,null,null,null,null,null,null,null,null,null,null,null,"Yate Rd",null,null,null,null,null,null,null,null,null,null,null,null,null,null,null,null,null,null,null,null,null,null,null,null,null,null,null,null,null,"Bridge St",null,null,null,null,null,null,null,null,null,null,null,null,null,null,null,null,null,"2 lines in total, 2 lines of 14","SA string"]
[5,"","FSE4","Address of Business",null,null,null,null,null,null,null,null,null,null,null,null,null,null,null,null,null,null,null,null,null,null,null,null,null,null,null,null,null,null,null,null,null,null,null,null,null,null,null,null,null,null,null,null,null,null,null,null,null,null,null,null,null,null,null,null,null,null,null,null,null,null,null,null,null,null,null,null,null,null,null,null,null,null,null,null,null,null,null,null,null,null,null,null,"DR1 UDD","M1 6FQ","NE1 4AT","CH3 1AT","WH3 1RU","NA1 4NN",null,"M1 6FQ","M1 6FQ",null,null,null,null,null,null,null,null,null,null,null,null,null,null,null,null,null,null,null,null,null,null,null,null,null,null,null,null,null,null,null,null,null,"OA5 1SS",null,null,null,null,"TF3 4ER",null,null,"TF3 0BB",null,null,null,"M1 6FQ",null,null,null,null,null,"CH2 0TT","HA9 8AN",null,null,null,null,"M1 6FQ",null,null,null,null,null,null,null,null,null,"HE1 1LO",null,null,null,null,null,"NE88UK",null,null,null,null,null,null,null,null,null,null,null,null,null,null,null,null,null,null,null,null,"TF3 0BB",null,null,null,"ME5 1AH",null,null,null,null,null,null,null,null,null,null,null,null,null,null,null,null,null,null,null,null,null,null,null,null,null,null,null,null,null,null,null,null,null,null,"GR1 0TS",null,null,null,null,null,null,null,null,null,null,null,null,null,null,null,null,null,null,null,null,null,null,null,null,null,null,null,null,null,"M1 6FQ",null,null,null,null,null,null,null,null,null,null,null,null,null,null,null,null,null,"1 line in total, 8 for postcode","SA string"]
[6,"","FSE5","Tick if details have changed",null,null,null,null,null,null,null,null,null,null,null,null,null,null,null,null,null,null,null,null,null,null,null,null,null,null,null,null,null,null,null,null,null,null,null,null,null,null,null,null,null,null,null,null,null,null,null,null,null,null,null,null,null,null,null,null,null,null,null,null,null,null,null,null,null,null,null,null,null,null,null,null,null,null,null,null,null,null,null,null,null,null,null,null,null,null,null,null,null,null,null,null,null,null,null,null,null,null,null,null,null,null,null,null,null,null,null,null,null,null,null,null,null,null,null,null,null,null,null,null,null,null,null,null,null,null,null,null,null,null,null,null,null,null,null,null,null,null,null,null,null,null,null,null,null,null,null,null,null,null,null,null,null,null,null,null,null,null,null,null,null,null,null,null,null,null,null,null,null,null,null,null,null,null,null,null,null,null,null,null,null,null,null,null,null,null,null,null,null,null,null,null,null,null,null,null,null,null,null,null,null,null,null,null,null,null,null,null,null,null,null,null,null,null,null,null,null,null,null,null,null,null,null,null,null,null,null,null,null,null,null,null,null,null,null,null,null,null,null,null,null,null,null,null,null,null,null,null,null,null,null,null,null,null,null,null,null,null,null,null,null,null,null,null,null,null,null,null,null,null,null,null,null,null,null,"\"yes\""]
[7,"","FSE6Q","Did your business start in the return year",null,null,"Y",null,"Y",null,null,"Y",null,null,null,null,"N",null,"Y",null,null,null,null,null,null,null,"N",null,"Y",null,"Y",null,null,"N",null,"N","N",null,"Y","Y",null,"N",null,null,null,null,null,"Y",null,null,null,null,null,null,null,null,null,null,null,null,null,null,null,null,null,null,null,null,null,null,null,null,null,null,null,null,"N",null,null,"N",null,"N",null,"Y",null,"N",null,null,"Y","N","Y","N","Y","N",null,"N","N",null,"Y","Y",null,null,null,null,null,null,"N",null,null,null,null,null,null,"N",null,null,null,null,null,null,null,"N",null,null,null,null,null,null,null,null,"N",null,null,null,null,"N","Y",null,"N",null,null,null,"N",null,null,null,null,null,"N","N",null,null,null,null,"N",null,null,null,null,null,null,"N",null,"Y","N","Y",null,null,"Y",null,"N",null,null,null,null,null,null,null,null,null,null,null,null,null,null,"N",null,null,null,null,null,"N",null,null,null,"Y",null,null,null,null,null,null,"Y",null,null,"Y",null,null,null,"Y","Y",null,null,null,null,null,"N","Y","Y","N","N",null,"N",null,null,null,null,null,null,null,"Y",null,null,null,null,null,null,null,null,null,null,null,null,null,null,"Y",null,null,null,null,null,null,null,null,"N",null,"Y","N","N",null,"N","Y",null,null,null,null,null,"Y",null,null,"N"]
[8,"","FSE6","Date of commencement",null,null,{"$f":"\"12/04/\"&Tax_year_start","v":"12/04/2025"},null,{"$f":"\"01/05/\"&Tax_year_start","v":"01/05/2025"},null,null,{"$f":"\"06/06/\"&Tax_year_start","v":"06/06/2025"},null,null,null,null,null,null,{"$f":"\"07/08/\"&Tax_year_start","v":"07/08/2025"},null,null,null,null,null,null,null,null,null,{"$f":"\"06/07/\"&Tax_year_start","v":"06/07/2025"},null,{"$f":"\"01/05/\"&Tax_year_start","v":"01/05/2025"},null,null,null,null,null,null,null,{"$f":"\"13/08/\"&Tax_year_start","v":"13/08/2025"},{"$f":"\"12/05/\"&Tax_year_start","v":"12/05/2025"},null,null,null,null,null,null,null,{"$f":"\"17/04/\"&Tax_year_start","v":"17/04/2025"},null,null,null,null,null,null,null,null,null,null,null,null,null,null,null,null,null,null,null,null,null,null,null,null,null,null,null,null,null,null,null,null,null,null,null,{"$f":"\"06/04/\"&Tax_year_start","v":"06/04/2025"},null,null,null,null,{"$f":"\"11/05/\"&Tax_year_start","v":"11/05/2025"},null,{"$f":"\"06/05/\"&Tax_year_start","v":"06/05/2025"},null,{"$f":"\"26/04/\"&Tax_year_start","v":"26/04/2025"},null,null,null,null,null,{"$f":"\"06/04/\"&Tax_year_start","v":"06/04/2025"},{"$f":"\"15/04/\"&Tax_year_start","v":"15/04/2025"},null,null,null,null,null,null,null,null,null,null,null,null,null,null,null,null,null,null,null,null,null,null,null,null,null,null,null,null,null,null,null,null,null,null,null,null,{"$f":"\"19/04/\"&Tax_year_start","v":"19/04/2025"},null,null,null,null,null,null,null,null,null,null,null,null,null,null,null,null,null,null,null,null,null,null,null,null,null,null,{"$f":"\"22/04/\"&Tax_year_start","v":"22/04/2025"},null,{"$f":"\"26/04/\"&Tax_year_start","v":"26/04/2025"},null,null,{"$f":"\"06/05/\"&Tax_year_start","v":"06/05/2025"},null,null,null,null,null,null,null,null,null,null,null,null,null,null,null,null,null,null,null,null,null,null,null,null,null,null,{"$f":"\"06/04/\"&Tax_year_start","v":"06/04/2025"},null,null,null,null,null,null,{"$f":"\"16/04/\"&Tax_year_start","v":"16/04/2025"},null,null,{"$f":"\"25/04/\"&Tax_year_start","v":"25/04/2025"},null,null,null,{"$f":"\"06/04/\"&Tax_year_start","v":"06/04/2025"},{"$f":"\"28/04/\"&Tax_year_start","v":"28/04/2025"},null,null,null,null,null,null,{"$f":"\"06/04/\"&Tax_year_start","v":"06/04/2025"},{"$f":"\"07/04/\"&Tax_year_start","v":"07/04/2025"},null,null,null,null,null,null,null,null,null,null,null,{"$f":"\"06/08/\"&Tax_year_start","v":"06/08/2025"},null,null,null,null,null,null,null,null,null,null,null,null,null,null,{"$f":"\"06/04/\"&Tax_year_start","v":"06/04/2025"},null,null,null,null,null,null,null,null,null,null,{"$f":"\"12/07/\"&Tax_year_start","v":"12/07/2025"},null,null,null,null,{"$f":"\"12/06/\"&Tax_year_start","v":"12/06/2025"},null,null,null,null,null,{"$f":"\"06/06/\"&Tax_year_start","v":"06/06/2025"},null,null,null,null,null,null,null,null,null,null,"must be within the current return year","SA MTR date"]
[9,"","FSE7Q","Did your business cease in the return year",null,null,"N",null,"N",null,null,"N",null,null,null,null,"Y",null,"N",null,null,null,null,null,null,null,"Y",null,"Y",null,"Y",null,null,"Y",null,"Y","Y",null,"Y","N",null,"Y",null,null,null,null,null,"N",null,null,null,null,null,null,null,null,null,null,null,null,null,null,null,null,null,null,null,null,null,null,null,null,null,null,null,null,"Y",null,null,"Y",null,"Y",null,"N",null,"Y",null,null,"N","Y","N","Y","N","Y",null,"Y","Y",null,"N","N",null,null,null,null,null,null,"Y",null,null,null,null,null,null,"Y",null,null,null,null,null,null,null,"Y",null,null,null,null,null,null,null,null,"Y",null,null,null,null,"Y","N",null,"Y",null,null,null,"Y",null,null,null,null,null,"Y","Y",null,null,null,null,"Y",null,null,null,null,null,null,"Y",null,"N","Y","N",null,null,"N",null,"Y",null,null,null,null,null,null,null,null,null,null,null,null,null,null,"Y",null,null,null,null,null,"Y",null,null,null,"Y",null,null,null,null,null,null,"Y",null,null,"Y",null,null,null,"N","N",null,null,null,null,null,"Y","Y","N","N","Y",null,"Y",null,null,null,null,null,null,null,"N",null,null,null,null,null,null,null,null,null,null,null,null,null,null,"N",null,null,null,null,null,null,null,null,"Y",null,"Y","Y","N",null,"Y","N",null,null,null,null,null,"N",null,null,"Y"]
[10,"","FSE7","Date of cessation",null,null,null,null,null,null,null,null,null,null,null,null,{"$f":"\"31/03/\"&Tax_year_end","v":"31/03/2026"},null,null,null,null,null,null,null,null,null,{"$f":"\"31/01/\"&Tax_year_end","v":"31/01/2026"},null,{"$f":"\"31/03/\"&Tax_year_end","v":"31/03/2026"},null,{"$f":"\"31/03/\"&Tax_year_end","v":"31/03/2026"},null,null,{"$f":"\"04/04/\"&Tax_year_end","v":"04/04/2026"},null,{"$f":"\"31/03/\"&Tax_year_end","v":"31/03/2026"},{"$f":"\"31/03/\"&Tax_year_end","v":"31/03/2026"},null,{"$f":"\"30/03/\"&Tax_year_end","v":"30/03/2026"},null,null,{"$f":"\"22/03/\"&Tax_year_end","v":"22/03/2026"},null,null,null,null,null,null,null,null,null,null,null,null,null,null,null,null,null,null,null,null,null,null,null,null,null,null,null,null,null,null,null,null,null,null,{"$f":"\"01/04/\"&Tax_year_end","v":"01/04/2026"},null,null,{"$f":"\"02/04/\"&Tax_year_end","v":"02/04/2026"},null,{"$f":"\"28/02/\"&Tax_year_end","v":"28/02/2026"},null,null,null,{"$f":"\"03/04/\"&Tax_year_end","v":"03/04/2026"},null,null,null,{"$f":"\"03/04/\"&Tax_year_end","v":"03/04/2026"},null,{"$f":"\"04/04/\"&Tax_year_end","v":"04/04/2026"},null,{"$f":"\"03/04/\"&Tax_year_end","v":"03/04/2026"},null,{"$f":"\"31/03/\"&Tax_year_end","v":"31/03/2026"},{"$f":"\"31/03/\"&Tax_year_end","v":"31/03/2026"},null,null,null,null,null,null,null,null,null,{"$f":"\"17/03/\"&Tax_year_end","v":"17/03/2026"},null,null,null,null,null,null,{"$f":"\"19/03/\"&Tax_year_end","v":"19/03/2026"},null,null,null,null,null,null,null,{"$f":"\"20/03/\"&Tax_year_end","v":"20/03/2026"},null,null,null,null,null,null,null,null,{"$f":"\"31/03/\"&Tax_year_end","v":"31/03/2026"},null,null,null,null,{"$f":"\"31/03/\"&Tax_year_end","v":"31/03/2026"},null,null,{"$f":"\"31/08/\"&Tax_year_start","v":"31/08/2025"},null,null,null,{"$f":"\"26/03/\"&Tax_year_end","v":"26/03/2026"},null,null,null,null,null,{"$f":"\"21/03/\"&Tax_year_end","v":"21/03/2026"},{"$f":"\"31/03/\"&Tax_year_end","v":"31/03/2026"},null,null,null,null,{"$f":"\"31/03/\"&Tax_year_end","v":"31/03/2026"},null,null,null,null,null,null,{"$f":"\"11/03/\"&Tax_year_end","v":"11/03/2026"},null,null,{"$f":"\"21/03/\"&Tax_year_end","v":"21/03/2026"},null,null,null,null,null,{"$f":"\"21/03/\"&Tax_year_end","v":"21/03/2026"},null,null,null,null,null,null,null,null,null,null,null,null,null,null,{"$f":"\"31/03/\"&Tax_year_end","v":"31/03/2026"},null,null,null,null,null,{"$f":"\"31/08/\"&Tax_year_start","v":"31/08/2025"},null,null,null,{"$f":"\"26/03/\"&Tax_year_end","v":"26/03/2026"},null,null,null,null,null,null,{"$f":"\"31/03/\"&Tax_year_end","v":"31/03/2026"},null,null,{"$f":"\"31/03/\"&Tax_year_end","v":"31/03/2026"},null,null,null,null,null,null,null,null,null,null,{"$f":"\"29/03/\"&Tax_year_end","v":"29/03/2026"},{"$f":"\"13/03/\"&Tax_year_end","v":"13/03/2026"},null,null,{"$f":"\"12/03/\"&Tax_year_end","v":"12/03/2026"},null,{"$f":"\"31/03/\"&Tax_year_end","v":"31/03/2026"},null,null,null,null,null,null,null,null,null,null,null,null,null,null,null,null,null,null,null,null,null,null,null,null,null,null,null,null,null,null,null,{"$f":"\"04/04/\"&Tax_year_end","v":"04/04/2026"},null,{"$f":"\"02/04/\"&Tax_year_end","v":"02/04/2026"},{"$f":"\"01/04/\"&Tax_year_end","v":"01/04/2026"},null,null,{"$f":"\"31/03/\"&Tax_year_end","v":"31/03/2026"},null,null,null,null,null,null,null,null,null,{"$f":"\"31/03/\"&Tax_year_end","v":"31/03/2026"},null,null,null,null,null,null,null,"a) must be within return year.\nb) If FSE6 is present, FSE7 must be the same as or later than FSE6","SA MTR date"]
[11,"","FSE8","Accounting period start",null,null,{"$f":"\"06/04/\"&Tax_year_start","v":"06/04/2025"},null,{"$f":"\"06/04/\"&Tax_year_start","v":"06/04/2025"},null,null,{"$f":"\"06/04/\"&Tax_year_start","v":"06/04/2025"},null,null,null,null,{"$f":"\"06/04/\"&Tax_year_start","v":"06/04/2025"},null,{"$f":"\"06/04/\"&Tax_year_start","v":"06/04/2025"},null,null,null,null,null,null,null,{"$f":"\"06/04/\"&Tax_year_start","v":"06/04/2025"},null,{"$f":"\"06/04/\"&Tax_year_start","v":"06/04/2025"},null,{"$f":"\"06/04/\"&Tax_year_start","v":"06/04/2025"},null,null,{"$f":"\"06/04/\"&Tax_year_start","v":"06/04/2025"},null,{"$f":"\"06/04/\"&Tax_year_start","v":"06/04/2025"},{"$f":"\"06/04/\"&Tax_year_start","v":"06/04/2025"},null,{"$f":"\"06/04/\"&Tax_year_start","v":"06/04/2025"},{"$f":"\"06/04/\"&Tax_year_start","v":"06/04/2025"},null,{"$f":"\"06/04/\"&Tax_year_start","v":"06/04/2025"},null,null,null,null,null,{"$f":"\"06/04/\"&Tax_year_start","v":"06/04/2025"},null,null,null,null,null,null,null,null,null,null,null,null,null,null,null,null,null,null,null,null,null,null,null,null,null,null,null,null,{"$f":"\"06/04/\"&Tax_year_start","v":"06/04/2025"},null,null,{"$f":"\"06/04/\"&Tax_year_start","v":"06/04/2025"},null,{"$f":"\"06/04/\"&Tax_year_start","v":"06/04/2025"},null,{"$f":"\"06/04/\"&Tax_year_start","v":"06/04/2025"},null,{"$f":"\"06/04/\"&Tax_year_start","v":"06/04/2025"},null,null,{"$f":"\"06/04/\"&Tax_year_start","v":"06/04/2025"},"06/04/2025","06/04/2025","06/04/2025","06/04/2025","06/04/2025",null,{"$f":"\"06/04/\"&Tax_year_start","v":"06/04/2025"},{"$f":"\"06/04/\"&Tax_year_start","v":"06/04/2025"},null,{"$f":"\"06/04/\"&Tax_year_start","v":"06/04/2025"},{"$f":"\"06/04/\"&Tax_year_start","v":"06/04/2025"},null,null,null,null,null,null,{"$f":"\"06/04/\"&Tax_year_start","v":"06/04/2025"},null,null,null,null,null,null,{"$f":"\"06/04/\"&Tax_year_start","v":"06/04/2025"},null,null,null,null,null,null,null,{"$f":"\"06/04/\"&Tax_year_start","v":"06/04/2025"},null,null,null,null,null,null,null,null,{"$f":"\"06/04/\"&Tax_year_start","v":"06/04/2025"},null,null,null,null,{"$f":"\"06/04/\"&Tax_year_start","v":"06/04/2025"},{"$f":"\"06/04/\"&Tax_year_start","v":"06/04/2025"},null,{"$f":"\"06/04/\"&Tax_year_start","v":"06/04/2025"},null,null,null,{"$f":"\"06/04/\"&Tax_year_start","v":"06/04/2025"},null,null,null,null,null,{"$f":"\"06/04/\"&Tax_year_start","v":"06/04/2025"},{"$f":"\"06/04/\"&Tax_year_start","v":"06/04/2025"},null,null,null,null,{"$f":"\"06/04/\"&Tax_year_start","v":"06/04/2025"},null,null,null,null,null,null,{"$f":"\"06/04/\"&Tax_year_start","v":"06/04/2025"},null,{"$f":"\"06/04/\"&Tax_year_start","v":"06/04/2025"},{"$f":"\"06/04/\"&Tax_year_start","v":"06/04/2025"},{"$f":"\"06/04/\"&Tax_year_start","v":"06/04/2025"},null,null,{"$f":"\"06/04/\"&Tax_year_start","v":"06/04/2025"},null,{"$f":"\"06/04/\"&Tax_year_start","v":"06/04/2025"},null,null,null,null,null,null,null,null,null,null,null,null,null,null,{"$f":"\"06/04/\"&Tax_year_start","v":"06/04/2025"},null,null,null,null,null,{"$f":"\"06/04/\"&Tax_year_start","v":"06/04/2025"},null,null,null,{"$f":"\"06/04/\"&Tax_year_start","v":"06/04/2025"},null,null,null,null,null,null,{"$f":"\"06/04/\"&Tax_year_start","v":"06/04/2025"},null,null,{"$f":"\"06/04/\"&Tax_year_start","v":"06/04/2025"},null,null,null,{"$f":"\"06/04/\"&Tax_year_start","v":"06/04/2025"},{"$f":"\"06/04/\"&Tax_year_start","v":"06/04/2025"},null,null,null,null,null,{"$f":"\"06/04/\"&Tax_year_start","v":"06/04/2025"},{"$f":"\"06/04/\"&Tax_year_start","v":"06/04/2025"},{"$f":"\"06/04/\"&Tax_year_start","v":"06/04/2025"},{"$f":"\"06/04/\"&Tax_year_start","v":"06/04/2025"},{"$f":"\"06/04/\"&Tax_year_start","v":"06/04/2025"},null,{"$f":"\"06/04/\"&Tax_year_start","v":"06/04/2025"},null,null,null,null,null,null,null,{"$f":"\"06/04/\"&Tax_year_start","v":"06/04/2025"},null,null,null,null,null,null,null,null,null,null,null,null,null,null,{"$f":"\"06/04/\"&Tax_year_start","v":"06/04/2025"},null,null,null,null,null,null,null,null,{"$f":"\"06/04/\"&Tax_year_start","v":"06/04/2025"},null,{"$f":"\"06/04/\"&Tax_year_start","v":"06/04/2025"},{"$f":"\"06/04/\"&Tax_year_start","v":"06/04/2025"},{"$f":"\"06/04/\"&Tax_year_start","v":"06/04/2025"},null,{"$f":"\"06/04/\"&Tax_year_start","v":"06/04/2025"},{"$f":"\"06/04/\"&Tax_year_start","v":"06/04/2025"},null,null,null,null,null,{"$f":"\"06/04/\"&Tax_year_start","v":"06/04/2025"},null,null,{"$f":"\"06/04/\"&Tax_year_start","v":"06/04/2025"},null,null,null,null,null,null,null,null,"SA MTR date"]
[12,"","FSE9","Accounting period end",null,null,{"$f":"\"05/04/\"&Tax_year_end","v":"05/04/2026"},null,{"$f":"\"05/04/\"&Tax_year_end","v":"05/04/2026"},null,null,{"$f":"\"05/04/\"&Tax_year_end","v":"05/04/2026"},null,null,null,null,{"$f":"\"31/03/\"&Tax_year_end","v":"31/03/2026"},null,{"$f":"\"05/04/\"&Tax_year_end","v":"05/04/2026"},null,null,null,null,null,null,null,{"$f":"\"31/01/\"&Tax_year_end","v":"31/01/2026"},null,{"$f":"\"31/03/\"&Tax_year_end","v":"31/03/2026"},null,{"$f":"\"31/03/\"&Tax_year_end","v":"31/03/2026"},null,null,{"$f":"\"04/04/\"&Tax_year_end","v":"04/04/2026"},null,{"$f":"\"31/03/\"&Tax_year_end","v":"31/03/2026"},{"$f":"\"31/03/\"&Tax_year_end","v":"31/03/2026"},null,{"$f":"\"30/03/\"&Tax_year_end","v":"30/03/2026"},{"$f":"\"05/04/\"&Tax_year_end","v":"05/04/2026"},null,{"$f":"\"22/03/\"&Tax_year_end","v":"22/03/2026"},null,null,null,null,null,{"$f":"\"05/04/\"&Tax_year_end","v":"05/04/2026"},null,null,null,null,null,null,null,null,null,null,null,null,null,null,null,null,null,null,null,null,null,null,null,null,null,null,null,null,{"$f":"\"01/04/\"&Tax_year_end","v":"01/04/2026"},null,null,{"$f":"\"02/04/\"&Tax_year_end","v":"02/04/2026"},null,{"$f":"\"28/02/\"&Tax_year_end","v":"28/02/2026"},null,{"$f":"\"05/04/\"&Tax_year_end","v":"05/04/2026"},null,{"$f":"\"03/04/\"&Tax_year_end","v":"03/04/2026"},null,null,{"$f":"\"05/04/\"&Tax_year_end","v":"05/04/2026"},{"$f":"\"03/04/\"&Tax_year_end","v":"03/04/2026"},{"$f":"\"05/04/\"&Tax_year_end","v":"05/04/2026"},{"$f":"\"04/04/\"&Tax_year_end","v":"04/04/2026"},{"$f":"\"05/04/\"&Tax_year_end","v":"05/04/2026"},{"$f":"\"03/04/\"&Tax_year_end","v":"03/04/2026"},null,{"$f":"\"31/03/\"&Tax_year_end","v":"31/03/2026"},{"$f":"\"31/03/\"&Tax_year_end","v":"31/03/2026"},null,{"$f":"\"05/04/\"&Tax_year_end","v":"05/04/2026"},{"$f":"\"05/04/\"&Tax_year_end","v":"05/04/2026"},null,null,null,null,null,null,{"$f":"\"17/03/\"&Tax_year_end","v":"17/03/2026"},null,null,null,null,null,null,{"$f":"\"19/03/\"&Tax_year_end","v":"19/03/2026"},null,null,null,null,null,null,null,{"$f":"\"20/03/\"&Tax_year_end","v":"20/03/2026"},null,null,null,null,null,null,null,null,{"$f":"\"31/03/\"&Tax_year_end","v":"31/03/2026"},null,null,null,null,{"$f":"\"31/03/\"&Tax_year_end","v":"31/03/2026"},{"$f":"\"05/04/\"&Tax_year_end","v":"05/04/2026"},null,{"$f":"\"31/08/\"&Tax_year_start","v":"31/08/2025"},null,null,null,{"$f":"\"26/03/\"&Tax_year_end","v":"26/03/2026"},null,null,null,null,null,{"$f":"\"21/03/\"&Tax_year_end","v":"21/03/2026"},{"$f":"\"31/03/\"&Tax_year_end","v":"31/03/2026"},null,null,null,null,{"$f":"\"31/03/\"&Tax_year_end","v":"31/03/2026"},null,null,null,null,null,null,{"$f":"\"11/03/\"&Tax_year_end","v":"11/03/2026"},null,{"$f":"\"05/04/\"&Tax_year_end","v":"05/04/2026"},{"$f":"\"21/03/\"&Tax_year_end","v":"21/03/2026"},{"$f":"\"05/04/\"&Tax_year_end","v":"05/04/2026"},null,null,{"$f":"\"05/04/\"&Tax_year_end","v":"05/04/2026"},null,{"$f":"\"21/03/\"&Tax_year_end","v":"21/03/2026"},null,null,null,null,null,null,null,null,null,null,null,null,null,null,{"$f":"\"31/03/\"&Tax_year_end","v":"31/03/2026"},null,null,null,null,null,{"$f":"\"31/08/\"&Tax_year_start","v":"31/08/2025"},null,null,null,{"$f":"\"26/03/\"&Tax_year_end","v":"26/03/2026"},null,null,null,null,null,null,{"$f":"\"31/03/\"&Tax_year_end","v":"31/03/2026"},null,null,{"$f":"\"31/03/\"&Tax_year_end","v":"31/03/2026"},null,null,null,{"$f":"\"05/04/\"&Tax_year_end","v":"05/04/2026"},{"$f":"\"05/04/\"&Tax_year_end","v":"05/04/2026"},null,null,null,null,null,{"$f":"\"29/03/\"&Tax_year_end","v":"29/03/2026"},{"$f":"\"13/03/\"&Tax_year_end","v":"13/03/2026"},{"$f":"\"05/04/\"&Tax_year_end","v":"05/04/2026"},{"$f":"\"05/04/\"&Tax_year_end","v":"05/04/2026"},{"$f":"\"12/03/\"&Tax_year_end","v":"12/03/2026"},null,{"$f":"\"31/03/\"&Tax_year_end","v":"31/03/2026"},null,null,null,null,null,null,null,{"$f":"\"05/04/\"&Tax_year_end","v":"05/04/2026"},null,null,null,null,null,null,null,null,null,null,null,null,null,null,{"$f":"\"04/04/\"&Tax_year_end","v":"04/04/2026"},null,null,null,null,null,null,null,null,{"$f":"\"04/04/\"&Tax_year_end","v":"04/04/2026"},null,{"$f":"\"02/04/\"&Tax_year_end","v":"02/04/2026"},{"$f":"\"01/04/\"&Tax_year_end","v":"01/04/2026"},{"$f":"\"05/04/\"&Tax_year_end","v":"05/04/2026"},null,{"$f":"\"31/03/\"&Tax_year_end","v":"31/03/2026"},{"$f":"\"05/04/\"&Tax_year_end","v":"05/04/2026"},null,null,null,null,null,{"$f":"\"05/04/\"&Tax_year_end","v":"05/04/2026"},null,null,{"$f":"\"31/03/\"&Tax_year_end","v":"31/03/2026"},null,null,null,null,null,null,null,"a) If FSE9 is present FSE8 must be present\nb) If FSE8 is present FSE9 must be present\nc) If FSE8 present, FSE9 must be the same as or later than FSE8","SA MTR date"]
[13,"","FSE10","If you used the traditional accounting, put ‘X’ in the box",null,null,"N",null,"N",null,null,"N",null,null,null,null,"N",null,"N",null,null,null,null,null,null,null,"N",null,"N",null,"N",null,null,"N",null,"N","N",null,"N","N",null,"Y",null,null,null,null,null,"N",null,null,null,null,null,null,null,null,null,null,null,null,null,null,null,null,null,null,null,null,null,null,null,null,null,null,null,null,"N",null,null,"N",null,"N",null,"N",null,"N",null,null,"N","N","N","N","N","N",null,"N","N",null,"N","N",null,null,null,null,null,null,"N",null,null,null,null,null,null,"N",null,null,null,null,null,null,null,null,null,null,null,null,null,null,null,null,"N",null,null,null,null,"N","Y",null,"N",null,null,null,"N",null,null,null,null,null,null,null,null,null,null,null,"N",null,null,null,null,null,null,"N",null,"N",null,null,null,null,"Y",null,"Y",null,null,null,null,null,null,null,null,null,null,null,null,null,null,"N",null,null,null,null,null,"N",null,null,null,"N",null,null,null,null,null,null,"N",null,null,"N",null,null,null,"N","N",null,null,null,null,null,null,null,null,null,null,null,"N",null,null,null,null,null,null,null,"N",null,null,null,null,null,null,null,null,null,null,null,null,null,null,"N",null,null,null,null,null,null,null,null,"N",null,"N","N","N",null,"N","Y",null,null,null,null,null,null,null,null,null,null,null,null,null,null,null,null,null,"\"yes\""]
[14,"","FSE11","Tick Box - Accounting Date has changed",null,null,"N",null,"N",null,null,"N",null,null,null,null,"N",null,"N",null,null,null,null,null,null,null,null,null,"N",null,null,null,null,null,null,"N",null,null,null,null,null,null,null,null,null,null,null,"N",null,null,null,null,null,null,null,null,null,null,null,null,null,null,null,null,null,null,null,null,null,null,null,null,null,null,null,null,"N",null,null,"N",null,"N",null,"N",null,"N",null,null,"N","N","N","N","N","N",null,"N","N",null,"N","N",null,null,null,null,null,null,"N",null,null,null,null,null,null,"N",null,null,null,null,null,null,null,null,null,null,null,null,null,null,null,null,"N",null,null,null,null,"N","N",null,"N",null,null,null,"N",null,null,null,null,null,null,null,null,null,null,null,"N",null,null,null,null,null,null,"N",null,"N",null,null,null,null,null,null,null,null,null,null,null,null,null,null,null,null,null,null,null,null,null,"N",null,null,null,null,null,"N",null,null,null,"N",null,null,null,null,null,null,"N",null,null,"N",null,null,null,"N","N",null,null,null,null,null,null,null,null,null,null,null,"N",null,null,null,null,null,null,null,"N",null,null,null,null,null,null,null,null,null,null,null,null,null,null,"N",null,null,null,null,null,null,null,null,"N",null,"N","N","N",null,"N",null,null,null,null,null,null,null,null,null,null,null,null,null,null,null,null,null,null,"\"yes\""]
[15,"","FSE12","Tick Box - Second or further change",null,null,"N",null,"N",null,null,"N",null,null,null,null,"N",null,"N",null,null,null,null,null,null,null,null,null,"N",null,null,null,null,null,null,"N",null,null,null,null,null,null,null,null,null,null,null,"N",null,null,null,null,null,null,null,null,null,null,null,null,null,null,null,null,null,null,null,null,null,null,null,null,null,null,null,null,"N",null,null,"N",null,"N",null,"N",null,"N",null,null,"N","N","N","N","N","N",null,"N","N",null,"N","N",null,null,null,null,null,null,"N",null,null,null,null,null,null,"N",null,null,null,null,null,null,null,null,null,null,null,null,null,null,null,null,"N",null,null,null,null,"N","N",null,"N",null,null,null,"N",null,null,null,null,null,null,null,null,null,null,null,"N",null,null,null,null,null,null,"N",null,"N",null,null,null,null,null,null,null,null,null,null,null,null,null,null,null,null,null,null,null,null,null,"N",null,null,null,null,null,"N",null,null,null,"N",null,null,null,null,null,null,"N",null,null,"N",null,null,null,"N","N",null,null,null,null,null,null,null,null,null,null,null,"N",null,null,null,null,null,null,null,"N",null,null,null,null,null,null,null,null,null,null,null,null,null,null,"N",null,null,null,null,null,null,null,null,"N",null,"N","N","N",null,"N",null,null,null,null,null,null,null,null,null,null,null,null,null,null,null,null,null,null,"\"yes\""]
[16,"","FSE13","If special arrangements apply, put ‘X’ in the box",null,null,"N",null,"N",null,null,"N",null,null,null,null,"N",null,"N",null,null,null,null,null,null,null,null,null,"N",null,null,null,null,null,null,"N",null,null,null,null,null,null,null,null,null,null,null,"N",null,null,null,null,null,null,null,null,null,null,null,null,null,null,null,null,null,null,null,null,null,null,null,null,null,null,null,null,"N",null,null,"N",null,"N",null,"N",null,"N",null,null,"N","N","N","N","N","N",null,"N","N",null,"Y","Y",null,null,null,null,null,null,"Y",null,null,null,null,null,null,"Y",null,null,null,null,null,null,null,null,null,null,null,null,null,null,null,null,"N",null,null,null,null,"N","N",null,"N",null,null,null,"N",null,null,null,null,null,null,null,null,null,null,null,"N",null,null,null,null,null,null,"N",null,"Y",null,null,null,null,null,null,null,null,null,null,null,null,null,null,null,null,null,null,null,null,null,"N",null,null,null,null,null,"N",null,null,null,"N",null,null,null,null,null,null,"N",null,null,"N",null,null,null,"N","Y",null,null,null,null,null,null,null,null,null,null,null,"N",null,null,null,null,null,null,null,"N",null,null,null,null,null,null,null,null,null,null,null,null,null,null,"N",null,null,null,null,null,null,null,null,"N",null,"N","N","N",null,"N",null,null,null,null,null,null,null,null,null,null,null,null,null,null,null,null,null,"LDC only","Number (2dp)"]
[17,"","FSE14","Entered Details elsewhere",null,null,"N",null,"N",null,null,"N",null,null,null,null,"N",null,"N",null,null,null,null,null,null,null,null,null,"N",null,null,null,null,null,null,"N",null,null,null,null,null,null,null,null,null,null,null,"N",null,null,null,null,null,null,null,null,null,null,null,null,null,null,null,null,null,null,null,null,null,null,null,null,null,null,null,null,"N",null,null,"N",null,"N",null,"N",null,"N",null,null,"N","N","N","N","N","N",null,"N","N",null,"N","N",null,null,null,null,null,null,"N",null,null,null,null,null,null,"N",null,null,null,null,null,null,null,null,null,null,null,null,null,null,null,null,"N",null,null,null,null,"N","N",null,"N",null,null,null,"N",null,null,null,null,null,null,null,null,null,null,null,"N",null,null,null,null,null,null,"N",null,"N",null,null,null,null,null,null,null,null,null,null,null,null,null,null,null,null,null,null,null,null,null,"N",null,null,null,null,null,"N",null,null,null,"N",null,null,null,null,null,null,"N",null,null,"N",null,null,null,"N","N",null,null,null,null,null,null,null,null,null,null,null,"N",null,null,null,null,null,null,null,"N",null,null,null,null,null,null,null,null,null,null,null,null,null,null,"N",null,null,null,null,null,null,null,null,"N",null,"N","N","N",null,"N",null,null,null,null,null,null,null,null,null,null,null,null,null,null,null,null,null,null,"\"yes\""]
[18,"","FSE15","Sales/business income",null,null,17200,null,76834,null,null,17000,null,null,null,null,74900,null,76560,null,null,null,null,null,null,null,10430,null,74900,null,32495,null,null,49900,null,19930,897,null,10194,21694,null,15006,null,null,null,null,null,73250,null,null,null,null,null,null,null,null,null,null,null,null,null,null,null,null,null,null,null,null,null,null,null,null,null,null,null,null,25000,null,null,1424131,null,190432,null,82959,null,74900,null,null,37700,328938,8008,173808,479786,178351,null,328938,328938,null,175264,175264,null,null,null,null,null,null,175264,null,null,null,null,null,null,175264,null,null,null,null,null,null,null,171228,null,null,null,null,null,null,null,null,133319,null,null,null,null,69203,70000,null,67088,null,null,null,328938,null,null,null,null,null,8349,6749,null,null,null,null,328938,null,null,null,null,null,null,82959,null,175264,2274,171876,null,null,201584,null,3193,null,null,null,null,null,null,null,null,null,null,null,null,null,null,86750,null,null,null,null,null,59710,null,null,null,32495,null,null,null,null,null,null,36000,null,null,155000,null,null,null,73250,175264,null,null,null,null,null,24756,126384,173250,201924,42500,null,74900,null,null,null,null,null,null,null,67395,null,null,null,null,null,null,null,null,null,null,null,null,null,null,63299,null,null,null,null,null,null,null,null,335729,null,5020,4508982,82959,null,328938,67942,null,null,null,null,null,6908,null,null,9210,null,null,null,null,null,null,null,null,"SA Monetary value (2dp) >= 0.00"]
[19,"","FSE16","Other income/profits",null,null,null,null,null,null,null,null,null,null,null,null,null,null,null,null,null,null,null,null,null,null,null,null,null,null,null,null,null,null,null,null,null,null,null,null,null,null,null,null,null,null,null,null,null,null,null,null,null,null,null,null,null,null,null,null,null,null,null,null,null,null,null,null,null,null,null,null,null,null,null,null,null,null,null,null,null,null,null,null,null,null,null,null,null,null,null,null,null,null,null,null,null,null,5460,5460,null,null,null,null,null,null,5460,null,null,null,null,null,null,5460,null,null,null,null,null,null,null,60031,null,null,null,null,null,null,null,null,null,null,null,null,null,null,null,null,null,null,null,null,null,null,null,null,null,null,null,4700,null,null,null,null,null,null,null,null,null,null,null,null,null,5460,null,null,null,null,null,null,null,null,null,null,null,null,null,null,null,null,null,null,null,null,null,null,null,null,null,null,null,null,null,null,null,null,null,null,null,null,null,null,null,null,null,null,null,null,null,null,5460,null,null,null,null,null,null,null,null,null,null,null,null,null,null,null,null,null,null,null,null,null,null,null,null,null,null,null,null,null,null,null,null,null,null,null,null,null,null,null,null,null,null,null,null,null,null,null,null,null,null,null,null,null,null,null,null,null,null,null,null,null,null,null,null,null,null,null,"If FSE15 or FSE16 is present then FSE8 must also be present","SA Monetary value (2dp) > 0.00"]
[20,{"$f":"IF(SE_B_IND>1,IF(HLOOKUP(SE_B_IND-1,FSE_RANGE,A67)=\"\",\"\",HLOOKUP(SE_B_IND-1,FSE_RANGE,A67)),\"\")","v":""},"FSE16.1","Trading income allowance",null,null,null,null,null,null,null,null,null,null,null,null,null,null,null,null,null,null,null,null,null,null,null,null,null,null,null,null,null,null,null,null,897,null,null,null,null,null,null,null,null,null,null,null,null,null,null,null,null,null,null,null,null,null,null,null,null,null,null,null,null,null,null,null,null,null,null,null,null,null,null,null,null,null,null,null,null,null,null,null,null,null,null,null,null,null,null,null,null,null,null,null,null,null,null,null,null,null,null,null,null,null,null,null,null,null,null,null,null,null,null,null,null,null,null,null,null,null,null,null,null,null,null,null,null,null,null,null,null,null,null,null,null,null,null,null,null,null,null,null,null,null,null,null,null,null,null,null,null,null,null,null,null,null,null,null,null,null,null,null,null,null,null,null,null,null,1000,null,null,null,null,null,null,null,null,null,null,null,null,null,null,null,null,null,null,null,null,null,null,null,null,null,null,null,null,null,null,null,null,null,null,null,null,null,null,null,null,null,null,null,null,null,null,null,1000,null,1000,null,null,null,null,null,null,null,null,null,null,null,null,null,null,null,null,null,null,null,null,null,null,null,null,null,null,null,null,null,null,null,null,null,null,null,null,null,null,null,null,1000,null,null,null,null,null,null,null,null,1000,null,null,null,null,null,null,null,"a) If present must be less than or equal to TRADING-ALLOWANCE (£1000)","SA Monetary value (2dp) > 0.00"]
[21,"","FSE17","Cost of sales",null,null,null,null,24700,null,null,null,null,null,null,null,25000,null,25000,null,null,null,null,null,null,null,null,null,25000,null,null,null,null,null,null,null,null,null,null,null,null,null,null,null,null,null,null,23569,null,null,null,null,null,null,null,null,null,null,null,null,null,null,null,null,null,null,null,null,null,null,null,null,null,null,null,null,19000,null,null,20920,null,7890,null,19144,null,25000,null,null,null,75512,null,43304,null,27532,null,75512,75512,null,null,null,null,null,null,null,null,null,null,null,null,null,null,null,null,null,null,null,null,null,null,null,null,89417,null,null,null,null,null,null,null,null,56254,null,null,null,null,null,2577,null,null,null,null,null,75512,null,null,null,null,null,null,null,null,null,null,null,75512,null,null,null,null,null,null,19144,null,null,null,null,null,null,null,null,null,null,null,null,null,null,null,null,null,null,null,null,null,null,null,null,null,null,null,null,null,null,null,null,null,null,null,null,null,null,null,null,null,null,null,null,null,null,null,23569,null,null,null,null,null,null,null,null,null,null,null,null,25000,null,null,null,null,null,null,null,null,null,null,null,null,null,null,null,null,null,null,null,null,null,null,3251,null,null,null,null,null,null,null,null,211330,null,2289.11,241459,19144,null,75512,null,null,null,null,null,null,null,null,null,null,null,null,null,null,null,null,null,"If present, FSE16.1 must be absent","SA Monetary value (2dp) except 0.00"]
[22,"","FSE18","Construction industry sub contractor costs",null,null,null,null,null,null,null,null,null,null,null,null,null,null,null,null,null,null,null,null,null,null,null,null,null,null,null,null,null,null,null,null,null,null,null,null,null,null,null,null,null,null,null,null,null,null,null,null,null,null,null,null,null,null,null,null,null,null,null,null,null,null,null,null,null,null,null,null,null,null,null,null,null,null,null,null,null,null,null,null,null,null,null,null,null,null,null,null,null,null,null,null,null,null,null,null,null,null,null,null,null,null,null,null,null,null,null,null,null,null,null,null,null,null,null,null,null,null,null,null,null,null,null,null,null,null,null,null,null,null,null,null,null,null,300,null,null,null,null,null,null,null,null,null,null,null,null,null,null,null,null,null,null,null,null,null,null,null,null,null,null,null,null,null,null,null,null,null,null,null,null,null,null,null,null,null,null,null,null,null,null,null,null,null,null,null,null,300,null,null,null,null,null,null,null,null,null,null,null,null,null,null,null,null,null,null,null,null,null,null,null,null,null,null,null,null,null,null,null,null,null,null,null,null,null,null,null,null,null,null,null,null,null,null,null,null,null,null,null,null,null,null,null,null,null,null,null,null,null,null,null,null,null,null,null,null,null,null,null,null,null,null,null,null,null,null,null,null,null,null,null,null,null,null,"If present, FSE16.1 must be absent","SA Monetary value (2dp) > 0.00"]
[23,"","FSE19","Employee costs",null,null,2000,null,4049,null,null,null,null,null,null,null,2000,null,2000,null,null,null,null,null,null,null,null,null,2000,null,null,null,null,null,null,7850,null,null,2570,4532,null,null,null,null,null,null,null,22000,null,null,null,null,null,null,null,null,null,null,null,null,null,null,null,null,null,null,null,null,null,null,null,null,null,null,null,null,null,null,null,3780,null,42356,null,3780,null,2000,null,null,12570,99532,12570,24140,279853,56500,null,99532,99532,null,10640,10640,null,null,null,null,null,null,10640,null,null,null,null,null,null,10640,null,null,null,null,null,null,null,22459,null,null,null,null,null,null,null,null,27998,null,null,null,null,15430,25337,null,1500,null,null,null,99532,null,null,null,null,null,null,null,null,null,null,null,99532,null,null,null,null,null,null,3780,null,10640,null,null,null,null,null,null,null,null,null,null,null,null,null,null,null,null,null,null,null,null,null,35890,null,null,null,null,null,1500,null,null,null,null,null,null,null,null,null,null,14680,null,null,28750,null,null,null,22000,10640,null,null,null,null,null,null,null,null,null,null,null,2000,null,null,null,null,null,null,null,13265,null,null,null,null,null,null,null,null,null,null,null,null,null,null,29500,null,null,null,null,null,null,null,null,31602,null,2709.32,19799,3780,null,99532,null,null,null,null,null,null,null,null,null,null,null,null,null,null,null,null,null,"If present, FSE16.1 must be absent","SA Monetary value (2dp) > 0.00"]
[24,"","FSE20","Motor expenses",null,null,null,null,11800,null,null,null,null,null,null,null,12000,null,12000,null,null,null,null,null,null,null,750,null,12000,null,null,null,null,null,null,null,null,null,null,null,null,4526,null,null,null,null,null,16200,null,null,null,null,null,null,null,null,null,null,null,null,null,null,null,null,null,null,null,null,null,null,null,null,null,null,null,null,null,null,null,null,null,15735,null,null,null,12000,null,null,null,3747,null,2508,null,6342,null,3747,3747,null,2421,2421,null,null,null,null,null,null,2421,null,null,null,null,null,null,2421,null,null,null,null,null,null,null,null,null,null,null,null,null,null,null,null,4557,null,null,null,null,12688,11799,null,3678,null,null,null,3747,null,null,null,null,null,null,397,null,null,null,null,3747,null,null,null,null,null,null,null,null,2421,null,480,null,null,null,null,null,null,null,null,null,null,null,null,null,null,null,null,null,null,null,null,null,null,null,null,null,3678,null,null,null,null,null,null,null,null,null,null,null,null,null,17900,null,null,null,16200,2421,null,null,null,null,null,null,null,null,null,null,null,12000,null,null,null,null,null,null,null,null,null,null,null,null,null,null,null,null,null,null,null,null,null,null,null,null,null,null,null,null,null,null,null,3850,null,null,47532,null,null,3747,null,null,null,null,null,null,null,null,null,null,null,null,null,null,null,null,null,"If present, FSE16.1 must be absent","SA Monetary value (2dp) > 0.00"]
[25,"","FSE21","Premises costs",null,null,null,null,10600,null,null,null,null,null,null,null,10800,null,10800,null,null,null,null,null,null,null,null,null,10800,null,null,null,null,null,null,null,null,null,null,3267,null,null,null,null,null,null,null,15600,null,null,null,null,null,null,null,null,null,null,null,null,null,null,null,null,null,null,null,null,null,null,null,null,null,null,null,null,null,null,null,null,null,null,null,null,null,10800,null,null,8600,16128,5400,4300,25672,31769,null,16128,16128,null,25623,25623,null,null,null,null,null,null,25623,null,null,null,null,null,null,25623,null,null,null,null,null,null,null,28631,null,null,null,null,null,null,null,null,6253,null,null,null,null,13211,13980,null,1252,null,null,null,16128,null,null,null,null,null,null,3816,null,null,null,null,16128,null,null,null,null,null,null,null,null,25623,null,312,null,null,null,null,null,null,null,null,null,null,null,null,null,null,null,null,null,null,null,28500,null,null,null,null,null,1252,null,null,null,25000,null,null,null,null,null,null,8750,null,null,11876,null,null,null,15600,25623,null,null,null,null,null,null,null,null,null,null,null,10800,null,null,null,null,null,null,null,25400,null,null,null,null,null,null,null,null,null,null,null,null,null,null,19800,null,null,null,null,null,null,null,null,27400,null,null,43443,null,null,16128,null,null,null,null,null,null,null,null,null,null,null,null,null,null,null,null,null,"If present, FSE16.1 must be absent","SA Monetary value (2dp) except 0.00"]
[26,"","FSE22","Repairs",null,null,null,null,null,null,null,null,null,null,null,null,null,null,null,null,null,null,null,null,null,null,816,null,null,null,null,null,null,null,null,4203,null,null,null,null,null,null,null,null,null,null,null,null,null,null,null,null,null,null,null,null,null,null,null,null,null,null,null,null,null,null,null,null,null,null,null,null,null,null,null,null,null,null,null,4203,null,670,null,4203,null,null,null,null,null,null,null,7018,null,7651,null,null,null,null,null,null,null,null,null,null,null,null,null,null,null,null,null,null,null,null,null,null,null,null,null,null,null,71681,null,null,null,null,null,null,null,null,9118,null,null,null,null,3256,5920,null,null,null,null,null,null,null,null,null,null,null,null,null,null,null,null,null,null,null,null,null,null,null,null,4203,null,null,null,null,null,null,null,null,null,null,null,null,null,null,null,null,null,null,null,null,null,null,null,6598,null,null,null,null,null,null,null,null,null,null,null,null,null,null,null,null,1290,null,null,3679,null,null,null,null,null,null,null,null,null,null,null,null,null,null,null,null,null,null,null,null,null,null,null,null,null,null,null,null,null,null,null,null,null,null,null,null,null,null,null,null,null,null,null,null,null,null,null,null,20401,null,null,-339,4203,null,null,null,null,null,null,null,null,null,null,null,null,null,null,null,null,null,null,null,"If present, FSE16.1 must be absent","SA Monetary value (2dp) except 0.00"]
[27,"","FSE23","General administrative expenses",null,null,null,null,null,null,null,null,null,null,null,null,null,null,null,null,null,null,null,null,null,null,null,null,null,null,null,null,null,null,null,600,null,null,null,null,null,950,null,null,null,null,null,null,null,null,null,null,null,null,null,null,null,null,null,null,null,null,null,null,null,null,null,null,null,null,null,null,null,null,null,null,900,null,null,null,null,null,null,null,null,null,null,null,1600,6040,8,2279,null,null,null,6040,6040,null,640,640,null,null,null,null,null,null,640,null,null,null,null,null,null,640,null,null,null,null,null,null,null,28154,null,null,null,null,null,null,null,null,2279,null,null,null,null,158,null,null,961,null,null,null,6040,null,null,null,null,null,null,1111,null,null,null,null,6040,null,null,null,null,null,null,null,null,640,null,null,null,null,null,null,null,null,null,null,null,null,null,null,null,null,null,null,null,null,null,2460,null,null,null,null,null,961,null,null,null,620,null,null,null,null,null,null,860,null,null,1250,null,null,null,null,640,null,null,null,null,null,null,null,null,null,null,null,null,null,null,null,null,null,null,null,null,null,null,null,null,null,null,null,null,null,null,null,null,null,null,5411,null,null,null,null,null,null,null,null,101,null,null,6513,null,null,6040,null,null,null,null,null,null,null,null,null,null,null,null,null,null,null,null,null,"If present, FSE16.1 must be absent","SA Monetary value (2dp) > 0.00"]
[28,"","FSE24","Advertising etc",null,null,null,null,1200,null,null,null,null,null,null,null,1400,null,1400,null,null,null,null,null,null,null,null,null,1400,null,null,null,null,null,null,null,null,null,null,1324,null,700,null,null,null,null,null,null,null,null,null,null,null,null,null,null,null,null,null,null,null,null,null,null,null,null,null,null,null,null,null,null,null,null,null,null,100,null,null,null,null,1234,null,null,null,1400,null,null,null,764,null,null,63452,null,null,764,764,null,null,null,null,null,null,null,null,null,null,null,null,null,null,null,null,null,null,null,null,null,null,null,null,null,null,null,null,null,null,null,null,null,null,null,null,null,null,2219,3256,null,null,null,null,null,764,null,null,null,null,null,null,null,null,null,null,null,764,null,null,null,null,null,null,null,null,null,null,null,null,null,null,null,null,null,null,null,null,null,null,null,null,null,null,null,null,null,null,4350,null,null,null,null,null,null,null,null,null,null,null,null,null,null,null,null,500,null,null,500,null,null,null,null,null,null,null,null,null,null,null,null,null,null,null,null,1400,null,null,null,null,null,null,null,1750,null,null,null,null,null,null,null,null,null,null,null,null,null,null,1100,null,null,null,null,null,null,null,null,null,null,null,null,null,null,764,null,null,null,null,null,null,null,null,null,null,null,null,null,null,null,null,null,"If present, FSE16.1 must be absent","SA Monetary value (2dp) > 0.00"]
[29,"","FSE25","Interest and alternative finance payments",null,null,null,null,5600,null,null,null,null,null,null,null,5800,null,5800,null,null,null,null,null,null,null,null,null,5800,null,null,null,null,null,null,null,null,null,null,null,null,200,null,null,null,null,null,null,null,null,null,null,null,null,null,null,null,null,null,null,null,null,null,null,null,null,null,null,null,null,null,null,null,null,null,null,null,null,null,null,null,null,null,null,null,5800,null,null,null,9523,9,null,null,null,null,9523,9523,null,null,null,null,null,null,null,null,null,null,null,null,null,null,null,null,null,null,null,null,null,null,null,null,null,null,null,null,null,null,null,null,null,null,null,null,null,null,1931,4556,null,null,null,null,null,9523,null,null,null,null,null,null,null,null,null,null,null,9523,null,null,null,null,null,null,null,null,null,null,null,null,null,null,null,null,null,null,null,null,null,null,null,null,null,null,null,null,null,null,null,null,null,null,null,null,null,null,null,null,null,null,null,null,null,null,null,null,null,null,78000,null,null,null,null,null,null,null,null,null,null,null,null,null,null,null,null,5800,null,null,null,null,null,null,null,null,null,null,null,null,null,null,null,null,null,null,null,null,null,null,null,null,null,null,null,null,null,null,null,null,null,null,938,null,null,9523,null,null,null,null,null,null,null,null,null,null,null,null,null,null,null,null,null,"If present, FSE16.1 must be absent","SA Monetary value (2dp) except 0.00"]
[30,"","FSE26","Other finance charges",null,null,null,null,1300,null,null,null,null,null,null,null,1500,null,1500,null,null,null,null,null,null,null,null,null,1500,null,null,null,null,null,null,216,null,null,null,null,null,null,null,null,null,null,null,null,null,null,null,null,null,null,null,null,null,null,null,null,null,null,null,null,null,null,null,null,null,null,null,null,null,null,null,null,null,null,null,216,null,null,null,216,null,1500,null,null,null,2719,21,74,null,null,null,2719,2719,null,null,null,null,null,null,null,null,null,null,null,null,null,null,null,null,null,null,null,null,null,null,null,null,48,null,null,null,null,null,null,null,null,74,null,null,null,null,287,240,null,null,null,null,null,2719,null,null,null,null,null,null,97,null,null,null,null,2719,null,null,null,null,null,null,216,null,null,null,null,null,null,null,null,null,null,null,null,null,null,null,null,null,null,null,null,null,null,null,null,null,null,null,null,null,null,null,null,null,null,null,null,null,null,null,null,null,null,null,null,null,null,null,null,null,null,null,null,null,null,null,null,null,null,null,null,1500,null,null,null,null,null,null,null,null,null,null,null,null,null,null,null,null,null,null,null,null,null,null,null,null,null,null,null,null,null,null,null,null,null,null,900,216,null,2719,null,null,null,null,null,null,null,null,null,null,null,null,null,null,null,null,null,"If present, FSE16.1 must be absent","SA Monetary value (2dp) except 0.00"]
[31,"","FSE27","Bad debts",null,null,null,null,null,null,null,null,null,null,null,null,null,null,null,null,null,null,null,null,null,null,null,null,null,null,null,null,null,null,null,null,null,null,null,null,null,null,null,null,null,null,null,null,null,null,null,null,null,null,null,null,null,null,null,null,null,null,null,null,null,null,null,null,null,null,null,null,null,null,null,null,null,null,null,1317,null,null,null,1317,null,null,null,null,null,798,null,null,null,13248,null,798,798,null,null,null,null,null,null,null,null,null,null,null,null,null,null,null,null,null,null,null,null,null,null,null,null,null,null,null,null,null,null,null,null,null,null,null,null,null,null,null,3326,null,null,null,null,null,798,null,null,null,null,null,null,null,null,null,null,null,798,null,null,null,null,null,null,1317,null,null,null,null,null,null,null,null,null,null,null,null,null,null,null,null,null,null,null,null,null,null,null,null,null,null,null,null,null,null,null,null,null,null,null,null,null,null,null,null,null,null,null,45000,null,null,null,null,null,null,null,null,null,null,null,null,null,null,null,null,null,null,null,null,null,null,null,null,null,null,null,null,null,null,null,null,null,null,null,null,null,null,null,null,null,null,null,null,null,null,null,null,null,null,null,null,1317,null,798,null,null,null,null,null,null,null,null,null,null,null,null,null,null,null,null,null,"If present, FSE16.1 must be absent","SA Monetary value (2dp) except 0.00"]
[32,"","FSE28","Legal and professional costs",null,null,null,null,null,null,null,null,null,null,null,null,null,null,null,null,null,null,null,null,null,null,null,null,null,null,null,null,null,null,null,null,null,null,null,null,null,null,null,null,null,null,null,659,null,null,null,null,null,null,null,null,null,null,null,null,null,null,null,null,null,null,null,null,null,null,null,null,null,null,null,null,null,null,null,null,null,3578,null,null,null,null,null,null,1000,6284,null,2790,121342,null,null,6284,6284,null,1562,1562,null,null,null,null,null,null,1562,null,null,null,null,null,null,1562,null,null,null,null,null,null,null,6021,null,null,null,null,null,null,null,null,2790,null,null,null,null,null,2169,null,2150,null,null,null,6284,null,null,null,null,null,null,2351,null,null,null,null,6284,null,null,null,null,null,null,null,null,1562,null,1450,null,null,null,null,null,null,null,null,null,null,null,null,null,null,null,null,null,null,null,null,null,null,null,null,null,2150,null,null,null,null,null,null,null,null,null,null,null,null,null,17948,null,null,null,659,1562,null,null,null,null,null,null,null,null,null,null,null,null,null,null,null,null,null,null,null,null,null,null,null,null,null,null,null,null,null,null,null,null,null,null,null,null,null,null,null,null,null,null,null,null,null,null,21873,null,null,6284,null,null,null,null,null,null,null,null,null,null,null,null,null,null,null,null,null,"If present, FSE16.1 must be absent","SA Monetary value (2dp) except 0.00"]
[33,"","FSE29","Depreciation etc",null,null,null,null,null,null,null,null,null,null,null,null,null,null,null,null,null,null,null,null,null,null,null,null,null,null,null,null,null,null,null,null,null,null,null,null,null,null,null,null,null,null,null,null,null,null,null,null,null,null,null,null,null,null,null,null,null,null,null,null,null,null,null,null,null,null,null,null,null,null,null,null,null,null,null,null,null,null,null,null,null,null,null,null,null,8592,null,6487,null,null,null,8592,8592,null,null,null,null,null,null,null,null,null,null,null,null,null,null,null,null,null,null,null,null,null,null,null,null,26309,null,null,null,null,null,null,null,null,6487,null,null,null,null,null,null,null,null,null,null,null,8592,null,null,null,null,null,null,1006,null,null,null,null,8592,null,null,null,null,null,null,null,null,null,null,null,null,null,null,null,null,null,null,null,null,null,null,null,null,null,null,null,null,null,null,null,null,null,null,null,null,null,null,null,null,null,null,null,null,null,null,null,null,null,null,2000,null,null,null,null,null,null,null,null,null,null,null,null,null,null,null,null,null,null,null,null,null,null,null,null,null,null,null,null,null,null,null,null,null,null,null,null,null,null,null,null,null,null,null,null,null,null,null,null,null,null,null,3580,null,null,8592,null,null,null,null,null,null,null,null,null,null,null,null,null,null,null,null,null,"If present, FSE16.1 must be absent","SA Monetary value (2dp) except 0.00"]
[34,"","FSE30","Other expenses",null,null,null,null,1300,null,null,2100,null,null,null,null,1500,null,500,null,null,null,null,null,null,null,null,null,1500,null,null,null,null,null,null,3661,null,null,null,null,null,null,null,null,null,null,null,223,null,null,null,null,null,null,null,null,null,null,null,null,null,null,null,null,null,null,null,null,null,null,null,null,null,null,null,null,null,null,null,null,null,null,null,null,null,1500,null,null,2350,627,null,4026,null,309,null,627,627,null,null,null,null,null,null,null,null,null,null,null,null,null,null,null,null,null,null,null,null,null,null,null,null,null,null,null,null,null,null,null,null,null,4026,null,null,null,null,null,1840,null,59,null,null,null,627,null,null,null,null,null,8464,null,null,null,null,null,627,null,null,null,null,null,null,null,null,null,null,null,null,null,null,null,null,null,null,null,null,null,null,null,null,null,null,null,null,null,null,null,null,null,null,null,null,59,null,null,null,null,null,null,null,null,null,null,null,null,null,860,null,null,null,223,null,null,null,null,null,null,null,null,null,null,null,null,1500,null,null,null,null,null,null,null,null,null,null,null,null,null,null,null,null,null,null,null,null,null,null,null,null,null,null,null,null,null,null,null,null,null,null,12217,null,null,627,null,null,null,null,null,null,null,null,null,null,null,null,null,null,null,null,null,"If present, FSE16.1 must be absent","SA Monetary value (2dp) except 0.00"]
[35,"","FSE31","Total expenses",null,null,{"$f":"G68+G69+G70+G71+G72+G73+G74+G75+G76+G77+G78+G79+G80+G81","v":2000},null,{"$f":"I68+I69+I70+I71+I72+I73+I74+I75+I76+I77+I78+I79+I80+I81","v":60549},null,null,{"$f":"L68+L69+L70+L71+L72+L73+L74+L75+L76+L77+L78+L79+L80+L81","v":2100},null,null,null,null,{"$f":"Q68+Q69+Q70+Q71+Q72+Q73+Q74+Q75+Q76+Q77+Q78+Q79+Q80+Q81","v":60000},null,{"$f":"S68+S69+S70+S71+S72+S73+S74+S75+S76+S77+S78+S79+S80+S81","v":59000},null,null,null,null,null,null,null,{"$f":"AA68+AA69+AA70+AA71+AA72+AA73+AA74+AA75+AA76+AA77+AA78+AA79+AA80+AA81","v":1566},null,{"$f":"AC68+AC69+AC70+AC71+AC72+AC73+AC74+AC75+AC76+AC77+AC78+AC79+AC80+AC81","v":60000},null,10620,null,null,1570,null,{"$f":"AJ68+AJ69+AJ70+AJ71+AJ72+AJ73+AJ74+AJ75+AJ76+AJ77+AJ78+AJ79+AJ80+AJ81","v":16530},null,null,{"$f":"AM68+AM69+AM70+AM71+AM72+AM73+AM74+AM75+AM76+AM77+AM78+AM79+AM80+AM81","v":2570},9123,null,{"$f":"AP68+AP69+AP70+AP71+AP72+AP73+AP74+AP75+AP76+AP77+AP78+AP79+AP80+AP81","v":6376},null,null,null,null,null,{"$f":"AV68+AV69+AV70+AV71+AV72+AV73+AV74+AV75+AV76+AV77+AV78+AV79+AV80+AV81","v":78251},null,null,null,null,null,null,null,null,null,null,null,null,null,null,null,null,null,null,null,null,null,null,null,null,null,null,null,null,{"$f":"BY68+BY69+BY70+BY71+BY72+BY73+BY74+BY75+BY76+BY77+BY78+BY79+BY80+BY81","v":20000},null,null,{"$f":"CB68+CB69+CB70+CB71+CB72+CB73+CB74+CB75+CB76+CB77+CB78+CB79+CB80+CB81","v":30436},null,{"$f":"CD68+CD69+CD70+CD71+CD72+CD73+CD74+CD75+CD76+CD77+CD78+CD79+CD80+CD81","v":71463},null,{"$f":"CF68+CF69+CF70+CF71+CF72+CF73+CF74+CF75+CF76+CF77+CF78+CF79+CF80+CF81","v":28660},null,{"$f":"CH68+CH69+CH70+CH71+CH72+CH73+CH74+CH75+CH76+CH77+CH78+CH79+CH80+CH81","v":60000},null,null,{"$f":"CK68+CK69+CK70+CK71+CK72+CK73+CK74+CK75+CK76+CK77+CK78+CK79+CK80+CK81","v":26120},230266,18008,{"$f":"CN68+CN69+CN70+CN71+CN72+CN73+CN74+CN75+CN76+CN77+CN78+CN79+CN80+CN81","v":96926},490319,143351,null,{"$f":"CR68+CR69+CR70+CR71+CR72+CR73+CR74+CR75+CR76+CR77+CR78+CR79+CR80+CR81","v":230266},{"$f":"CS68+CS69+CS70+CS71+CS72+CS73+CS74+CS75+CS76+CS77+CS78+CS79+CS80+CS81","v":230266},null,{"$f":"CU68+CU69+CU70+CU71+CU72+CU73+CU74+CU75+CU76+CU77+CU78+CU79+CU80+CU81","v":40886},{"$f":"CV68+CV69+CV70+CV71+CV72+CV73+CV74+CV75+CV76+CV77+CV78+CV79+CV80+CV81","v":40886},null,null,null,null,null,null,{"$f":"DC68+DC69+DC70+DC71+DC72+DC73+DC74+DC75+DC76+DC77+DC78+DC79+DC80+DC81","v":40886},null,null,null,null,null,null,{"$f":"DJ68+DJ69+DJ70+DJ71+DJ72+DJ73+DJ74+DJ75+DJ76+DJ77+DJ78+DJ79+DJ80+DJ81","v":40886},null,null,null,null,null,null,null,{"$f":"DR68+DR69+DR70+DR71+DR72+DR73+DR74+DR75+DR76+DR77+DR78+DR79+DR80+DR81","v":272720},null,null,null,null,null,null,null,null,{"$f":"EA68+EA69+EA70+EA71+EA72+EA73+EA74+EA75+EA76+EA77+EA78+EA79+EA80+EA81","v":119836},null,null,null,null,{"$f":"EF68+EF69+EF70+EF71+EF72+EF73+EF74+EF75+EF76+EF77+EF78+EF79+EF80+EF81","v":49180},{"$f":"EG68+EG69+EG70+EG71+EG72+EG73+EG74+EG75+EG76+EG77+EG78+EG79+EG80+EG81","v":75000},null,{"$f":"EI68+EI69+EI70+EI71+EI72+EI73+EI74+EI75+EI76+EI77+EI78+EI79+EI80+EI81","v":9900},null,null,null,{"$f":"EM68+EM69+EM70+EM71+EM72+EM73+EM74+EM75+EM76+EM77+EM78+EM79+EM80+EM81","v":230266},null,null,null,null,null,{"$f":"ES68+ES69+ES70+ES71+ES72+ES73+ES74+ES75+ES76+ES77+ES78+ES79+ES80+ES81","v":8464},8778,null,null,null,null,{"$f":"EY68+EY69+EY70+EY71+EY72+EY73+EY74+EY75+EY76+EY77+EY78+EY79+EY80+EY81","v":230266},null,null,null,null,null,null,{"$f":"FF68+FF69+FF70+FF71+FF72+FF73+FF74+FF75+FF76+FF77+FF78+FF79+FF80+FF81","v":28660},null,{"$f":"FH68+FH69+FH70+FH71+FH72+FH73+FH74+FH75+FH76+FH77+FH78+FH79+FH80+FH81","v":40886},{"$f":"FI68+FI69+FI70+FI71+FI72+FI73+FI74+FI75+FI76+FI77+FI78+FI79+FI80+FI81","v":0},2242,0,0,0,0,null,0,0,0,0,0,0,null,null,null,null,null,null,null,null,{"$f":"GD68+GD69+GD70+GD71+GD72+GD73+GD74+GD75+GD76+GD77+GD78+GD79+GD80+GD81","v":77798},null,null,null,null,null,{"$f":"GJ68+GJ69+GJ70+GJ71+GJ72+GJ73+GJ74+GJ75+GJ76+GJ77+GJ78+GJ79+GJ80+GJ81","v":9900},0,0,0,25620,0,0,0,0,0,0,26080,null,null,{"$f":"GX68+GX69+GX70+GX71+GX72+GX73+GX74+GX75+GX76+GX77+GX78+GX79+GX80+GX81","v":207763},null,null,null,{"$f":"HB68+HB69+HB70+HB71+HB72+HB73+HB74+HB75+HB76+HB77+HB78+HB79+HB80+HB81","v":78251},{"$f":"HC68+HC69+HC70+HC71+HC72+HC73+HC74+HC75+HC76+HC77+HC78+HC79+HC80+HC81","v":40886},null,null,null,null,null,null,null,null,null,null,null,{"$f":"HO68+HO69+HO70+HO71+HO72+HO73+HO74+HO75+HO76+HO77+HO78+HO79+HO80+HO81","v":60000},null,null,null,null,null,null,null,{"$f":"HW68+HW69+HW70+HW71+HW72+HW73+HW74+HW75+HW76+HW77+HW78+HW79+HW80+HW81","v":40415},null,null,null,null,null,null,null,null,null,null,null,null,null,null,{"$f":"IL68+IL69+IL70+IL71+IL72+IL73+IL74+IL75+IL76+IL77+IL78+IL79+IL80+IL81","v":59062},null,null,null,null,null,null,null,null,{"$f":"IU68+IU69+IU70+IU71+IU72+IU73+IU74+IU75+IU76+IU77+IU78+IU79+IU80+IU81","v":294684},null,{"$f":"IW68+IW69+IW70+IW71+IW72+IW73+IW74+IW75+IW76+IW77+IW78+IW79+IW80+IW81","v":4998.43},{"$f":"IX68+IX69+IX70+IX71+IX72+IX73+IX74+IX75+IX76+IX77+IX78+IX79+IX80+IX81","v":397915},{"$f":"IY68+IY69+IY70+IY71+IY72+IY73+IY74+IY75+IY76+IY77+IY78+IY79+IY80+IY81","v":28660},null,{"$f":"JA68+JA69+JA70+JA71+JA72+JA73+JA74+JA75+JA76+JA77+JA78+JA79+JA80+JA81","v":230266},null,null,null,null,null,null,null,null,null,null,null,null,null,null,null,null,null,"a) If entry in any of FSE17, FSE18, FSE19, FSE20, FSE21, FSE22, FSE23, FSE24, FSE25, FSE26, FSE27, FSE28, FSE29 or FSE30 total of all boxes must = FSE31 & FSE31 is mandatory\nb) If present, FSE16.1 must be absent","SA Monetary value (2dp)"]
[36,"","FSE32","Disallowable cost of sales",null,null,null,null,null,null,null,null,null,null,null,null,null,null,null,null,null,null,null,null,null,null,null,null,null,null,null,null,null,null,null,null,null,null,null,null,null,null,null,null,null,null,null,null,null,null,null,null,null,null,null,null,null,null,null,null,null,null,null,null,null,null,null,null,null,null,null,null,null,null,null,null,null,null,null,null,null,null,null,null,null,null,null,null,null,null,null,null,null,null,null,null,null,null,null,null,null,null,null,null,null,null,null,null,null,null,null,null,null,null,null,null,null,null,null,null,null,null,null,null,null,null,null,null,null,null,null,null,null,null,null,null,null,null,null,null,null,null,null,null,null,null,null,null,null,null,null,null,null,null,null,null,null,null,null,null,null,null,null,null,null,null,null,null,null,null,null,null,null,null,null,null,null,null,null,null,null,null,null,null,null,null,null,null,null,null,null,null,null,null,null,null,null,null,null,null,null,null,null,null,null,null,null,null,null,null,null,null,null,null,null,null,null,null,null,null,null,null,null,null,null,null,null,null,null,null,null,null,null,null,null,null,null,null,null,null,null,null,null,null,null,null,null,null,null,null,null,null,null,null,null,null,null,null,null,null,null,null,null,null,null,null,null,null,null,null,null,null,null,null,null,null,null,null,"If present, FSE16.1 must be absent","SA Monetary value (2dp) except 0.00"]
[37,"","FSE33","Disallowable construction industry sub contractor costs",null,null,null,null,null,null,null,null,null,null,null,null,null,null,null,null,null,null,null,null,null,null,null,null,null,null,null,null,null,null,null,null,null,null,null,null,null,null,null,null,null,null,null,null,null,null,null,null,null,null,null,null,null,null,null,null,null,null,null,null,null,null,null,null,null,null,null,null,null,null,null,null,null,null,null,null,null,null,null,null,null,null,null,null,null,null,null,null,null,null,null,null,null,null,null,null,null,null,null,null,null,null,null,null,null,null,null,null,null,null,null,null,null,null,null,null,null,null,null,null,null,null,null,null,null,null,null,null,null,null,null,null,null,null,270,null,null,null,null,null,null,null,null,null,null,null,null,null,null,null,null,null,null,null,null,null,null,null,null,null,null,null,null,null,null,null,null,null,null,null,null,null,null,null,null,null,null,null,null,null,null,null,null,null,null,null,null,null,null,null,null,null,null,null,null,null,null,null,null,null,null,null,null,null,null,null,null,null,null,null,null,null,null,null,null,null,null,null,null,null,null,null,null,null,null,null,null,null,null,null,null,null,null,null,null,null,null,null,null,null,null,null,null,null,null,null,null,null,null,null,null,null,null,null,null,null,null,null,null,null,null,null,null,null,null,null,null,null,null,null,null,null,null,null,"If present, FSE16.1 must be absent","SA Monetary value (2dp) > 0.00"]
[38,"","FSE34","Disallowable employee costs",null,null,null,null,null,null,null,null,null,null,null,null,null,null,null,null,null,null,null,null,null,null,null,null,null,null,null,null,null,null,null,null,null,null,null,null,null,null,null,null,null,null,null,null,null,null,null,null,null,null,null,null,null,null,null,null,null,null,null,null,null,null,null,null,null,null,null,null,null,null,null,null,null,null,null,null,null,null,null,null,null,null,null,null,null,null,null,null,null,null,null,null,null,null,null,null,null,null,null,null,null,null,null,null,null,null,null,null,null,null,null,null,null,null,null,null,null,null,null,null,null,null,null,null,null,null,null,null,null,null,null,null,null,null,212,null,null,null,null,null,null,null,null,null,null,null,null,null,null,null,null,null,null,null,null,null,null,null,null,null,null,null,null,null,null,null,null,null,null,null,null,null,null,null,null,null,null,null,null,null,null,null,null,null,null,null,null,null,null,null,null,null,null,null,null,null,null,null,null,null,null,null,null,null,null,null,null,null,null,null,null,null,null,null,null,null,null,null,null,null,null,null,null,null,null,null,null,null,null,null,null,null,null,null,null,null,null,null,null,null,null,null,null,null,null,null,null,null,null,null,null,null,null,null,null,null,null,null,null,null,null,null,null,null,null,null,null,null,null,null,null,null,null,null,"If present, FSE16.1 must be absent","SA Monetary value (2dp) > 0.00"]
[39,"","FSE35","Disallowable motor expenses",null,null,null,null,null,null,null,null,null,null,null,null,null,null,null,null,null,null,null,null,null,null,null,null,null,null,null,null,null,null,null,null,null,null,null,null,null,null,null,null,null,null,null,null,null,null,null,null,null,null,null,null,null,null,null,null,null,null,null,null,null,null,null,null,null,null,null,null,null,null,null,null,null,null,null,null,null,null,null,null,null,null,null,null,null,199,null,null,null,null,null,199,199,null,561,561,null,null,null,null,null,null,561,null,null,null,null,null,null,561,null,null,null,null,null,null,null,null,null,null,null,null,null,null,null,null,null,null,null,null,null,null,null,null,205,null,null,null,199,null,null,null,null,null,null,null,null,null,null,null,199,null,null,null,null,null,null,null,null,561,null,null,null,null,null,null,null,null,null,null,null,null,null,null,null,null,null,null,null,null,null,null,null,null,null,null,null,null,null,null,null,null,null,null,null,null,null,null,null,null,null,null,null,null,null,null,561,null,null,null,null,null,null,null,null,null,null,null,null,null,null,null,null,null,null,null,null,null,null,null,null,null,null,null,null,null,null,null,null,null,null,null,null,null,null,null,null,null,null,null,null,null,null,null,null,null,199,null,null,null,null,null,null,null,null,null,null,null,null,null,null,null,null,null,"If present, FSE16.1 must be absent","SA Monetary value (2dp) > 0.00"]
[40,"","FSE36","Disallowable premises costs",null,null,null,null,null,null,null,null,null,null,null,null,null,null,null,null,null,null,null,null,null,null,null,null,null,null,null,null,null,null,null,null,null,null,null,null,null,null,null,null,null,null,null,null,null,null,null,null,null,null,null,null,null,null,null,null,null,null,null,null,null,null,null,null,null,null,null,null,null,null,null,null,null,null,null,null,null,null,null,null,null,null,null,null,null,null,null,null,null,null,null,null,null,null,2135,2135,null,null,null,null,null,null,2135,null,null,null,null,null,null,2135,null,null,null,null,null,null,null,7338,null,null,null,null,null,null,null,null,null,null,null,null,null,null,null,null,null,null,null,null,null,null,null,null,null,null,null,null,null,null,null,null,null,null,null,null,null,null,null,null,null,2135,null,null,null,null,null,null,null,null,null,null,null,null,null,null,null,null,null,null,null,null,null,null,null,null,null,null,null,null,null,null,null,null,null,null,null,null,null,null,null,null,null,null,null,null,null,null,2135,null,null,null,null,null,null,null,null,null,null,null,null,null,null,null,null,null,null,null,null,null,null,null,null,null,null,null,null,null,null,null,null,null,null,null,null,null,null,null,null,null,null,null,null,null,null,null,null,null,null,null,null,null,null,null,null,null,null,null,null,null,null,null,null,null,null,null,"If present, FSE16.1 must be absent","SA Monetary value (2dp) except 0.00"]
[41,"","FSE37","Disallowable repairs",null,null,null,null,null,null,null,null,null,null,null,null,null,null,null,null,null,null,null,null,null,null,null,null,null,null,null,null,null,null,null,null,null,null,null,null,null,null,null,null,null,null,null,null,null,null,null,null,null,null,null,null,null,null,null,null,null,null,null,null,null,null,null,null,null,null,null,null,null,null,null,null,null,null,null,null,null,null,null,null,null,null,null,null,null,null,null,null,null,null,null,null,null,null,null,null,null,null,null,null,null,null,null,null,null,null,null,null,null,null,null,null,null,null,null,null,null,null,null,null,null,null,null,null,null,null,null,null,null,null,null,null,null,null,null,null,null,null,null,null,null,null,null,null,null,null,null,null,null,null,null,null,null,null,null,null,null,null,null,null,null,null,null,null,null,null,null,null,null,null,null,null,null,null,null,null,null,null,null,null,null,null,null,null,null,null,null,null,null,null,null,null,null,null,null,null,null,null,null,null,null,null,null,null,null,null,null,null,null,null,null,null,null,null,null,null,null,null,null,null,null,null,null,null,null,null,null,null,null,null,null,null,null,null,null,null,null,null,null,null,null,null,null,null,null,null,null,null,null,null,null,null,null,null,null,null,null,null,null,null,null,null,null,null,null,null,null,null,null,null,null,null,null,null,"If present, FSE16.1 must be absent","SA Monetary value (2dp) except 0.00"]
[42,"","FSE38","Disallowable General administrative expenses",null,null,null,null,null,null,null,null,null,null,null,null,null,null,null,null,null,null,null,null,null,null,null,null,null,null,null,null,null,null,null,null,null,null,null,null,null,null,null,null,null,null,null,null,null,null,null,null,null,null,null,null,null,null,null,null,null,null,null,null,null,null,null,null,null,null,null,null,null,null,null,null,null,null,null,null,null,null,null,null,null,null,null,null,null,null,null,null,null,null,null,null,null,null,null,null,null,null,null,null,null,null,null,null,null,null,null,null,null,null,null,null,null,null,null,null,null,18204,null,null,null,null,null,null,null,null,null,null,null,null,null,null,null,null,null,null,null,null,null,null,null,null,null,null,null,null,null,null,null,null,null,null,null,null,null,null,null,null,null,null,null,null,null,null,null,null,null,null,null,null,null,null,null,null,null,null,null,null,null,null,null,null,null,null,null,null,null,null,null,null,null,null,null,null,null,null,null,null,null,null,null,null,null,null,null,null,null,null,null,null,null,null,null,null,null,null,null,null,null,null,null,null,null,null,null,null,null,null,null,null,null,null,null,null,null,null,null,null,null,null,null,null,null,null,null,null,null,null,null,null,null,null,null,null,null,null,null,null,null,null,null,null,null,null,null,null,null,null,null,null,null,null,null,null,"If present, FSE16.1 must be absent","SA Monetary value (2dp) > 0.00"]
[43,"","FSE39","Disallowable advertising etc",null,null,null,null,null,null,null,null,null,null,null,null,null,null,null,null,null,null,null,null,null,null,null,null,null,null,null,null,null,null,null,null,null,null,null,null,null,null,null,null,null,null,null,null,null,null,null,null,null,null,null,null,null,null,null,null,null,null,null,null,null,null,null,null,null,null,null,null,null,null,null,null,null,null,null,null,null,null,null,null,null,null,null,null,null,null,null,null,null,null,null,null,null,null,null,null,null,null,null,null,null,null,null,null,null,null,null,null,null,null,null,null,null,null,null,null,null,null,null,null,null,null,null,null,null,null,null,null,null,null,null,null,null,null,null,null,null,null,null,null,null,null,null,null,null,null,null,null,null,null,null,null,null,null,null,null,null,null,null,null,null,null,null,null,null,null,null,null,null,null,null,null,null,null,null,null,null,null,null,null,null,null,null,null,null,null,null,null,null,null,null,null,null,null,null,null,null,null,null,null,null,null,null,null,null,null,null,null,null,null,null,null,null,null,null,null,null,null,null,null,null,null,null,null,null,null,null,null,null,null,null,null,null,null,null,null,null,null,null,null,null,null,null,null,null,null,null,null,null,null,null,null,null,null,null,null,null,null,null,null,null,null,null,null,null,null,null,null,null,null,null,null,null,null,"If present, FSE16.1 must be absent","SA Monetary value (2dp) > 0.00"]
[44,"","FSE40","Disallowable Interest and alternative finance payments",null,null,null,null,null,null,null,null,null,null,null,null,null,null,null,null,null,null,null,null,null,null,null,null,null,null,null,null,null,null,null,null,null,null,null,null,null,null,null,null,null,null,null,null,null,null,null,null,null,null,null,null,null,null,null,null,null,null,null,null,null,null,null,null,null,null,null,null,null,null,null,null,null,null,null,null,null,null,null,null,null,null,null,null,null,null,null,null,null,null,null,null,null,null,null,null,null,null,null,null,null,null,null,null,null,null,null,null,null,null,null,null,null,null,null,null,null,null,null,null,null,null,null,null,null,null,null,null,null,null,null,null,null,null,null,null,null,null,null,null,null,null,null,null,null,null,null,null,null,null,null,null,null,null,null,null,null,null,null,null,null,null,null,null,null,null,null,null,null,null,null,null,null,null,null,null,null,null,null,null,null,null,null,null,null,null,null,null,null,null,null,null,null,null,null,null,null,null,null,null,null,null,null,null,null,null,null,null,null,null,null,null,null,null,null,null,null,null,null,null,null,null,null,null,null,null,null,null,null,null,null,null,null,null,null,null,null,null,null,null,null,null,null,null,null,null,null,null,null,null,null,null,null,null,null,null,null,null,null,null,null,null,null,null,null,null,null,null,null,null,null,null,null,null,"If present, FSE16.1 must be absent","SA Monetary value (2dp) except 0.00"]
[45,"","FSE41","Disallowable other finance charges",null,null,null,null,null,null,null,null,null,null,null,null,null,null,null,null,null,null,null,null,null,null,null,null,null,null,null,null,null,null,null,null,null,null,null,null,null,null,null,null,null,null,null,null,null,null,null,null,null,null,null,null,null,null,null,null,null,null,null,null,null,null,null,null,null,null,null,null,null,null,null,null,null,null,null,null,null,null,null,null,null,null,null,null,null,null,null,null,null,null,null,null,null,null,null,null,null,null,null,null,null,null,null,null,null,null,null,null,null,null,null,null,null,null,null,null,null,null,null,null,null,null,null,null,null,null,null,null,null,null,null,null,null,null,null,null,null,null,null,null,null,null,null,null,null,null,null,null,null,null,null,null,null,null,null,null,null,null,null,null,null,null,null,null,null,null,null,null,null,null,null,null,null,null,null,null,null,null,null,null,null,null,null,null,null,null,null,null,null,null,null,null,null,null,null,null,null,null,null,null,null,null,null,null,null,null,null,null,null,null,null,null,null,null,null,null,null,null,null,null,null,null,null,null,null,null,null,null,null,null,null,null,null,null,null,null,null,null,null,null,null,null,null,null,null,null,null,null,null,null,null,null,null,null,null,null,null,null,null,null,null,null,null,null,null,null,null,null,null,null,null,null,null,null,"If present, FSE16.1 must be absent","SA Monetary value (2dp) except 0.00"]
[46,"","FSE42","Disallowable bad debts",null,null,null,null,null,null,null,null,null,null,null,null,null,null,null,null,null,null,null,null,null,null,null,null,null,null,null,null,null,null,null,null,null,null,null,null,null,null,null,null,null,null,null,null,null,null,null,null,null,null,null,null,null,null,null,null,null,null,null,null,null,null,null,null,null,null,null,null,null,null,null,null,null,null,null,null,null,null,null,null,null,null,null,null,null,null,null,null,null,null,null,null,null,null,null,null,null,null,null,null,null,null,null,null,null,null,null,null,null,null,null,null,null,null,null,null,null,null,null,null,null,null,null,null,null,null,null,null,null,null,null,null,null,null,null,null,null,null,null,null,null,null,null,null,null,null,null,null,null,null,null,null,null,null,null,null,null,null,null,null,null,null,null,null,null,null,null,null,null,null,null,null,null,null,null,null,null,null,null,null,null,null,null,null,null,null,null,null,null,null,null,null,null,null,null,null,null,null,null,null,null,null,null,null,null,null,null,null,null,null,null,null,null,null,null,null,null,null,null,null,null,null,null,null,null,null,null,null,null,null,null,null,null,null,null,null,null,null,null,null,null,null,null,null,null,null,null,null,null,null,null,null,null,null,null,null,null,null,null,null,null,null,null,null,null,null,null,null,null,null,null,null,null,null,"If present, FSE16.1 must be absent","SA Monetary value (2dp) except 0.00"]
[47,"","FSE43","Disallowable legal and professional costs",null,null,null,null,null,null,null,null,null,null,null,null,null,null,null,null,null,null,null,null,null,null,null,null,null,null,null,null,null,null,null,null,null,null,null,null,null,null,null,null,null,null,null,null,null,null,null,null,null,null,null,null,null,null,null,null,null,null,null,null,null,null,null,null,null,null,null,null,null,null,null,null,null,null,null,null,null,null,null,null,null,null,null,null,null,null,null,null,null,null,null,null,null,null,null,null,null,null,null,null,null,null,null,null,null,null,null,null,null,null,null,null,null,null,null,null,null,705,null,null,null,null,null,null,null,null,null,null,null,null,null,null,null,null,null,null,null,null,null,null,null,null,null,null,null,null,null,null,null,null,null,null,null,null,null,null,null,null,null,null,null,null,null,null,null,null,null,null,null,null,null,null,null,null,null,null,null,null,null,null,null,null,null,null,null,null,null,null,null,null,null,null,null,null,null,null,null,null,null,null,null,null,null,null,null,null,null,null,null,null,null,null,null,null,null,null,null,null,null,null,null,null,null,null,null,null,null,null,null,null,null,null,null,null,null,null,null,null,null,null,null,null,null,null,null,null,null,null,null,null,null,null,null,null,null,null,null,null,null,null,null,null,null,null,null,null,null,null,null,null,null,null,null,null,"If present, FSE16.1 must be absent","SA Monetary value (2dp) > 0.00"]
[48,"","FSE44","Disallowable depreciation etc",null,null,null,null,null,null,null,null,null,null,null,null,null,null,null,null,null,null,null,null,null,null,null,null,null,null,null,null,null,null,null,null,null,null,null,null,null,null,null,null,null,null,null,null,null,null,null,null,null,null,null,null,null,null,null,null,null,null,null,null,null,null,null,null,null,null,null,null,null,null,null,null,null,null,null,null,null,null,null,null,null,null,null,null,null,8592,null,6487,null,null,null,8592,8592,null,null,null,null,null,null,null,null,null,null,null,null,null,null,null,null,null,null,null,null,null,null,null,null,26309,null,null,null,null,null,null,null,null,6487,null,null,null,null,null,null,null,null,null,null,null,8592,null,null,null,null,null,null,1116,null,null,null,null,8592,null,null,null,null,null,null,null,null,null,null,null,null,null,null,null,null,null,null,null,null,null,null,null,null,null,null,null,null,null,null,null,null,null,null,null,null,null,null,null,null,null,null,null,null,null,null,null,null,null,null,null,null,null,null,null,null,null,null,null,null,null,null,null,null,null,null,null,null,null,null,null,null,null,null,null,null,null,null,null,null,null,null,null,null,null,null,null,null,null,null,null,null,null,null,null,null,null,null,null,null,null,null,3580,null,null,8592,null,null,null,null,null,null,null,null,null,null,null,null,null,null,null,null,null,"If present, FSE16.1 must be absent","SA Monetary value (2dp) except 0.00"]
[49,"","FSE45","Disallowable other expenses",null,null,null,null,null,null,null,null,null,null,null,null,null,null,null,null,null,null,null,null,null,null,null,null,null,null,null,null,null,null,null,null,null,null,null,null,null,null,null,null,null,null,null,null,null,null,null,null,null,null,null,null,null,null,null,null,null,null,null,null,null,null,null,null,null,null,null,null,null,null,null,null,null,null,null,null,null,null,null,null,null,null,null,null,null,null,null,null,null,null,null,null,null,null,null,null,null,null,null,null,null,null,null,null,null,null,null,null,null,null,null,null,null,null,null,null,null,null,null,null,null,null,null,null,null,null,null,null,null,null,null,null,null,null,null,null,null,null,null,null,null,null,null,null,null,null,null,null,null,null,null,null,null,null,null,null,null,null,null,null,null,null,null,null,null,null,null,null,null,null,null,null,null,null,null,null,null,null,null,null,null,null,null,null,null,null,null,null,null,null,null,null,null,null,null,null,null,null,null,null,null,null,null,null,null,null,null,null,null,null,null,null,null,null,null,null,null,null,null,null,null,null,null,null,null,null,null,null,null,null,null,null,null,null,null,null,null,null,null,null,null,null,null,null,null,null,null,null,null,null,null,null,null,null,null,null,null,null,null,null,null,null,null,null,null,null,null,null,null,null,null,null,null,null,"If present, FSE16.1 must be absent","SA Monetary value (2dp) except 0.00"]
[50,"","FSE46","Disallowable expenses",null,null,null,null,null,null,null,null,null,null,null,null,null,null,null,null,null,null,null,null,null,null,null,null,null,null,null,null,null,null,null,null,null,null,null,null,null,null,null,null,null,null,null,null,null,null,null,null,null,null,null,null,null,null,null,null,null,{"$f":"BJ83+BJ84+BJ85+BJ86+BJ87+BJ88+BJ89+BJ90+BJ91+BJ92+BJ93+BJ94+BJ95+BJ96","v":0},null,null,null,null,null,null,null,null,null,null,null,null,null,null,null,null,null,null,null,null,null,null,null,null,null,null,null,{"$f":"CL83+CL84+CL85+CL86+CL87+CL88+CL89+CL90+CL91+CL92+CL93+CL94+CL95+CL96","v":8791},null,6487,null,null,null,{"$f":"CR83+CR84+CR85+CR86+CR87+CR88+CR89+CR90+CR91+CR92+CR93+CR94+CR95+CR96","v":8791},{"$f":"CS83+CS84+CS85+CS86+CS87+CS88+CS89+CS90+CS91+CS92+CS93+CS94+CS95+CS96","v":8791},null,{"$f":"CU83+CU84+CU85+CU86+CU87+CU88+CU89+CU90+CU91+CU92+CU93+CU94+CU95+CU96","v":2696},{"$f":"CV83+CV84+CV85+CV86+CV87+CV88+CV89+CV90+CV91+CV92+CV93+CV94+CV95+CV96","v":2696},null,null,null,null,null,null,{"$f":"DC83+DC84+DC85+DC86+DC87+DC88+DC89+DC90+DC91+DC92+DC93+DC94+DC95+DC96","v":2696},null,null,null,null,null,null,{"$f":"DJ83+DJ84+DJ85+DJ86+DJ87+DJ88+DJ89+DJ90+DJ91+DJ92+DJ93+DJ94+DJ95+DJ96","v":2696},null,null,null,null,null,null,null,{"$f":"DR83+DR84+DR85+DR86+DR87+DR88+DR89+DR90+DR91+DR92+DR93+DR94+DR95+DR96","v":52556},null,null,null,null,null,null,null,null,6487,null,null,null,null,null,null,null,{"$f":"EI83+EI84+EI85+EI86+EI87+EI88+EI89+EI90+EI91+EI92+EI93+EI94+EI95+EI96","v":687},null,null,null,{"$f":"EM83+EM84+EM85+EM86+EM87+EM88+EM89+EM90+EM91+EM92+EM93+EM94+EM95+EM96","v":8791},null,null,null,null,null,null,{"$f":"ET83+ET84+ET85+ET86+ET87+ET88+ET89+ET90+ET91+ET92+ET93+ET94+ET95+ET96","v":1116},null,null,null,null,{"$f":"EY83+EY84+EY85+EY86+EY87+EY88+EY89+EY90+EY91+EY92+EY93+EY94+EY95+EY96","v":8791},null,null,null,null,null,null,null,null,{"$f":"FH83+FH84+FH85+FH86+FH87+FH88+FH89+FH90+FH91+FH92+FH93+FH94+FH95+FH96","v":2696},null,null,null,null,null,null,null,null,null,null,null,null,null,null,null,null,null,null,null,null,null,null,null,null,null,null,null,{"$f":"GJ83+GJ84+GJ85+GJ86+GJ87+GJ88+GJ89+GJ90+GJ91+GJ92+GJ93+GJ94+GJ95+GJ96","v":0},null,null,null,null,null,null,null,null,null,null,null,null,null,null,null,null,null,null,{"$f":"HC83+HC84+HC85+HC86+HC87+HC88+HC89+HC90+HC91+HC92+HC93+HC94+HC95+HC96","v":2696},null,null,null,null,null,null,null,null,null,null,null,null,null,null,null,null,null,null,null,null,null,null,null,null,null,null,null,null,null,null,null,null,null,null,null,null,null,null,null,null,null,null,null,null,null,null,{"$f":"IX83+IX84+IX85+IX86+IX87+IX88+IX89+IX90+IX91+IX92+IX93+IX94+IX95+IX96","v":3580},null,null,{"$f":"JA83+JA84+JA85+JA86+JA87+JA88+JA89+JA90+JA91+JA92+JA93+JA94+JA95+JA96","v":8791},null,null,null,null,null,null,null,null,null,null,null,null,null,null,null,null,null,"a)If entry in any of FSE32, FSE33, FSE34, FSE35, FSE36, FSE37, FSE38, FSE39, FSE40, FSE41, FSE42, FSE43, FSE44 or FSE45 total of all boxes must = FSE46 \nb)if present, FSE16.1 must be absent","SA Monetary value (2dp)"]
[51,"","FSE47","Net profit",null,null,{"$f":"MAX(0,G65+G66-G82)","v":15200},null,{"$f":"MAX(0,I65+I66-I82)","v":16285},null,null,{"$f":"MAX(0,L65+L66-L82)","v":14900},null,null,null,null,{"$f":"MAX(0,Q65+Q66-Q82)","v":14900},null,{"$f":"MAX(0,S65+S66-S82)","v":17560},null,null,null,null,null,null,null,{"$f":"MAX(0,AA65+AA66-AA82)","v":8864},null,{"$f":"MAX(0,AC65+AC66-AC82)","v":14900},null,{"$f":"MAX(0,AE65+AE66-AE82)","v":21875},null,null,{"$f":"MAX(0,AH65+AH66-AH82)","v":48330},null,{"$f":"MAX(0,AJ65+AJ66-AJ82)","v":3400},{"$f":"MAX(0,AK65+AK66-AK82)","v":897},null,{"$f":"MAX(0,AM65+AM66-AM82)","v":7624},{"$f":"MAX(0,AN65+AN66-AN82)","v":12571},null,{"$f":"MAX(0,AP65+AP66-AP82)","v":8630},null,null,null,null,null,{"$f":"MAX(0,AV65+AV66-AV82)","v":0},null,null,null,null,null,null,null,null,null,null,null,null,null,{"$f":"MAX(0,BJ65+BJ66-BJ82)","v":0},null,null,null,null,null,null,null,null,null,null,null,null,null,null,{"$f":"MAX(0,BY65+BY66-BY82)","v":5000},null,null,{"$f":"MAX(0,CB65+CB66-CB82)","v":1393695},null,{"$f":"MAX(0,CD65+CD66-CD82)","v":118969},null,{"$f":"MAX(0,CF65+CF66-CF82)","v":54299},null,{"$f":"MAX(0,CH65+CH66-CH82)","v":14900},null,null,{"$f":"MAX(0,CK65+CK66-CK82)","v":11580},{"$f":"MAX(0,CL65+CL66-CL82)","v":98672},{"$f":"MAX(0,CM65+CM66-CM82)","v":0},76882,{"$f":"MAX(0,CO65+CO66-CO82)","v":0},{"$f":"MAX(0,CP65+CP66-CP82)","v":35000},null,{"$f":"MAX(0,CR65+CR66-CR82)","v":98672},{"$f":"MAX(0,CS65+CS66-CS82)","v":98672},null,{"$f":"MAX(0,CU65+CU66-CU82)","v":139838},{"$f":"MAX(0,CV65+CV66-CV82)","v":139838},null,null,null,null,null,null,{"$f":"MAX(0,DC65+DC66-DC82)","v":139838},null,null,null,null,null,null,{"$f":"MAX(0,DJ65+DJ66-DJ82)","v":139838},null,null,null,null,null,null,null,null,null,null,null,null,null,null,null,null,{"$f":"MAX(0,EA65+EA66-EA82)","v":13483},null,null,null,null,{"$f":"MAX(0,EF65+EF66-EF82)","v":20023},{"$f":"MAX(0,EG65+EG66-EG82)","v":0},null,{"$f":"MAX(0,EI65+EI66-EI82)","v":57188},null,null,null,{"$f":"MAX(0,EM65+EM66-EM82)","v":98672},null,null,null,null,null,null,{"$f":"MAX(0,ET65+ET66-ET82)","v":2671},null,null,null,null,{"$f":"MAX(0,EY65+EY66-EY82)","v":98672},null,null,null,null,null,null,{"$f":"MAX(0,FF65+FF66-FF82)","v":54299},null,{"$f":"MAX(0,FH65+FH66-FH82)","v":139838},{"$f":"MAX(0,FI65+FI66-FI82)","v":2274},169634,0,0,201584,0,3193,0,0,0,0,null,null,null,null,null,null,null,null,null,null,{"$f":"MAX(0,GD65+GD66-GD82)","v":8952},null,null,null,null,null,{"$f":"MAX(0,GJ65+GJ66-GJ82)","v":49810},null,null,null,{"$f":"MAX(0,GN65+GN66-GN82)","v":6875},null,null,null,null,null,null,{"$f":"MAX(0,GU65+GU66-GU82)","v":9920},null,null,{"$f":"MAX(0,GX65+GX66-GX82)","v":0},null,null,null,{"$f":"MAX(0,HB65+HB66-HB82)","v":0},{"$f":"MAX(0,HC65+HC66-HC82)","v":139838},null,null,null,null,null,{"$f":"MAX(0,HI65+HI66-HI82)","v":24756},126384,173250,201924,42500,0,{"$f":"MAX(0,HO65+HO66-HO82)","v":14900},null,null,null,null,null,null,null,{"$f":"MAX(0,HW65+HW66-HW82)","v":26980},null,null,null,null,null,null,null,null,null,null,null,null,null,null,{"$f":"MAX(0,IL65+IL66-IL82)","v":4237},null,null,null,null,null,null,null,null,{"$f":"MAX(0,IU65+IU66-IU82)","v":41045},null,{"$f":"MAX(0,IW65+IW66-IW82)","v":21.569999999999709},{"$f":"MAX(0,IX65+IX66-IX82)","v":4111067},{"$f":"MAX(0,IY65+IY66-IY82)","v":54299},null,{"$f":"MAX(0,JA65+JA66-JA82)","v":98672},{"$f":"MAX(0,JB65+JB66-JB82)","v":67942},0,0,0,0,0,{"$f":"MAX(0,JH65+JH66-JH82)","v":6908},null,null,9210,null,null,null,null,null,null,null,"If FSE15 + FSE16 minus FSE31 is positive or zero, FSE47 is mandatory & must equal that sum\nCannot be negative.","SA Monetary value (2dp) >= 0.00"]
[52,"","FSE48","Net loss",null,null,{"$f":"MAX(0,G82-(G65+G66))","v":0},null,{"$f":"MAX(0,I82-(I65+I66))","v":0},null,null,{"$f":"MAX(0,L82-(L65+L66))","v":0},null,null,null,null,{"$f":"MAX(0,Q82-(Q65+Q66))","v":0},null,{"$f":"MAX(0,S82-(S65+S66))","v":0},null,null,null,null,null,null,null,null,null,{"$f":"MAX(0,AC82-(AC65+AC66))","v":0},null,{"$f":"MAX(0,AE82-(AE65+AE66))","v":0},null,null,{"$f":"MAX(0,AH82-(AH65+AH66))","v":0},null,{"$f":"MAX(0,AJ82-(AJ65+AJ66))","v":0},{"$f":"MAX(0,AK82-(AK65+AK66))","v":0},null,null,null,null,{"$f":"MAX(0,AP82-(AP65+AP66))","v":0},null,null,null,null,null,{"$f":"MAX(0,AV82-(AV65+AV66))","v":5001},null,null,null,null,null,null,null,null,null,null,null,null,null,{"$f":"MAX(0,BJ82-(BJ65+BJ66))","v":0},null,null,null,null,null,null,null,null,null,null,null,null,null,null,0,null,null,{"$f":"MAX(0,CB82-(CB65+CB66))","v":0},null,{"$f":"MAX(0,CD82-(CD65+CD66))","v":0},null,{"$f":"MAX(0,CF82-(CF65+CF66))","v":0},null,{"$f":"MAX(0,CH82-(CH65+CH66))","v":0},null,null,null,{"$f":"MAX(0,CL82-(CL65+CL66))","v":0},{"$f":"MAX(0,CM82-(CM65+CM66))","v":10000},0,{"$f":"MAX(0,CO82-(CO65+CO66))","v":10533},{"$f":"MAX(0,CP82-(CP65+CP66))","v":0},null,{"$f":"MAX(0,CR82-(CR65+CR66))","v":0},{"$f":"MAX(0,CS82-(CS65+CS66))","v":0},null,{"$f":"MAX(0,CU82-(CU65+CU66))","v":0},{"$f":"MAX(0,CV82-(CV65+CV66))","v":0},null,null,null,null,null,null,{"$f":"MAX(0,DC82-(DC65+DC66))","v":0},null,null,null,null,null,null,{"$f":"MAX(0,DJ82-(DJ65+DJ66))","v":0},null,null,null,null,null,null,null,{"$f":"MAX(0,DR82-(DR65+DR66))","v":41461},null,null,null,null,null,null,null,null,0,null,null,null,null,{"$f":"MAX(0,EF82-(EF65+EF66))","v":0},{"$f":"MAX(0,EG82-(EG65+EG66))","v":5000},null,{"$f":"MAX(0,EI82-(EI65+EI66))","v":0},null,null,null,{"$f":"MAX(0,EM82-(EM65+EM66))","v":0},null,null,null,null,null,115,null,null,null,null,null,{"$f":"MAX(0,EY82-(EY65+EY66))","v":0},null,null,null,null,null,null,{"$f":"MAX(0,FF82-(FF65+FF66))","v":0},null,{"$f":"MAX(0,FH82-(FH65+FH66))","v":0},{"$f":"MAX(0,FI82-(FI65+FI66))","v":0},0,0,0,0,0,0,0,0,0,0,0,0,0,null,null,null,null,null,null,null,null,null,null,null,null,null,{"$f":"MAX(0,GJ82-(GJ65+GJ66))","v":0},null,null,null,null,null,null,null,null,null,null,null,null,null,{"$f":"MAX(0,GX82-(GX65+GX66))","v":52763},null,null,null,{"$f":"MAX(0,HB82-(HB65+HB66))","v":5001},{"$f":"MAX(0,HC82-(HC65+HC66))","v":0},null,null,null,null,null,null,null,null,null,null,null,{"$f":"MAX(0,HO82-(HO65+HO66))","v":0},null,null,null,null,null,null,null,{"$f":"MAX(0,HW82-(HW65+HW66))","v":0},null,null,null,null,null,null,null,null,null,null,null,null,null,null,null,null,null,null,null,null,null,null,null,null,null,null,null,{"$f":"MAX(0,IY82-(IY65+IY66))","v":0},null,{"$f":"MAX(0,JA82-(JA65+JA66))","v":0},{"$f":"MAX(0,JB82-(JB65+JB66))","v":0},0,0,0,0,0,null,null,null,0,null,null,null,null,0,null,null,"If FSE31 minus (FSE15 + FSE16) is positive or zero, FSE48 is mandatory & must equal that sum\nCannot be negative.","SA Monetary value (2dp) >= 0.00"]
[53,"","FSE49","Annual Investment Allowance",null,null,null,null,null,null,null,null,null,null,null,null,null,null,null,null,null,null,null,null,null,null,null,null,null,null,null,null,null,null,null,null,null,null,null,null,null,null,null,null,null,null,null,5000,null,null,null,null,null,null,null,null,null,null,null,null,null,null,null,null,null,null,null,null,null,null,null,null,null,null,null,null,null,null,null,1307946,null,null,null,6350,null,null,null,null,null,null,null,4033,null,null,null,null,null,null,null,null,null,null,null,null,null,null,null,null,null,null,null,null,null,null,null,null,null,null,null,null,null,111925,null,null,null,null,null,null,null,null,4033,null,null,null,null,1000,null,null,null,null,null,null,null,null,null,null,null,null,null,null,null,null,null,null,null,null,null,null,null,null,null,6350,null,null,null,null,null,null,null,null,null,null,null,null,null,null,null,null,null,null,null,null,null,null,null,null,null,null,null,null,null,null,null,null,null,null,null,null,null,null,null,null,null,null,null,null,null,null,null,5000,null,null,null,null,null,null,null,null,null,null,null,null,null,null,null,null,null,null,null,null,null,null,null,null,null,null,null,null,null,null,null,null,null,null,null,null,null,null,null,null,null,null,null,null,null,null,null,18910,6350,null,null,null,null,null,null,null,null,null,null,null,null,null,null,null,null,null,null,null,"a) If present, must be less than or equal to TRAL-CA-ANNUAL-INV-ALLCE (£1307946)\nb) If present, FSE16.1 must be absent","SA Monetary value (2dp) > 0.00"]
[54,"","FSE50","Annual allowances at higher rate",null,null,null,null,null,null,null,null,null,null,null,null,null,null,null,null,null,null,null,null,null,null,null,null,null,null,null,null,null,null,null,null,null,null,null,null,null,null,null,null,null,null,null,2750,null,null,null,null,null,null,null,null,null,null,null,null,null,null,null,null,null,null,null,null,null,null,null,null,null,null,null,null,null,null,null,null,null,null,null,null,null,null,null,null,null,null,null,180,null,null,null,null,null,null,null,null,null,null,null,null,null,null,null,null,null,null,null,null,null,null,null,null,null,null,null,null,null,null,null,null,null,null,null,null,null,null,180,null,null,null,null,null,null,null,1161,null,null,null,null,null,null,null,null,null,null,null,null,null,null,null,null,null,null,null,null,null,null,null,null,null,null,null,null,null,null,null,null,null,null,null,null,null,null,null,null,null,null,null,null,null,null,null,null,null,null,null,null,null,null,null,null,null,null,null,null,null,null,null,null,null,null,null,null,null,null,2750,null,null,null,null,null,null,null,null,null,null,null,null,null,null,null,null,null,null,null,null,null,null,null,null,null,null,null,null,null,null,null,null,null,null,null,null,null,null,null,null,null,null,null,null,780,null,null,null,null,null,null,null,null,null,null,null,null,null,null,null,null,null,null,null,null,null,null,null,"If present, FSE16.1 must be absent","SA Monetary value (2dp) > 0.00"]
[55,"","FSE51","Annual allowances at lower rate",null,null,null,null,null,null,null,null,null,null,null,null,null,null,null,null,null,null,null,null,null,null,null,null,null,null,null,null,null,null,null,null,null,null,null,null,null,null,null,null,null,null,null,null,null,null,null,null,null,null,null,null,null,null,null,null,null,null,null,null,null,null,null,null,null,null,null,null,null,null,null,null,null,null,null,null,null,null,null,null,null,null,null,null,null,1800,null,1792,null,null,null,1800,1800,null,null,null,null,null,null,null,null,null,null,null,null,null,null,null,null,null,null,null,null,null,null,null,null,null,null,null,null,null,null,null,null,null,1792,null,null,null,null,2000,null,null,null,null,null,null,1800,null,null,null,null,null,null,null,null,null,null,null,1800,null,null,null,null,null,null,null,null,null,null,null,null,null,null,null,null,null,null,null,null,null,null,null,null,null,null,null,null,null,null,null,null,null,null,null,null,null,null,null,null,null,null,null,null,null,null,null,null,null,null,5000,null,null,null,null,null,null,null,null,null,null,null,null,null,null,null,null,null,null,null,null,null,null,null,null,null,null,null,null,null,null,null,null,null,null,null,null,null,null,null,null,null,null,null,null,null,null,null,null,null,null,null,null,null,null,1800,null,null,null,null,null,null,null,null,null,null,null,null,null,null,null,null,null,"If present, FSE16.1 must be absent","SA Monetary value (2dp) > 0.00"]
[56,"","FSE52","Motor cars costing more than £12000",null,null,null,null,null,null,null,null,null,null,null,null,null,null,null,null,null,null,null,null,null,null,null,null,null,null,null,null,null,null,null,null,null,null,null,null,null,null,null,null,null,null,null,null,null,null,null,null,null,null,null,null,null,null,null,null,null,null,null,null,null,null,null,null,null,null,null,null,null,null,null,null,null,null,null,null,null,null,null,null,null,null,null,null,null,null,null,null,11117,null,null,null,null,null,4500,4500,null,null,null,null,null,null,4500,null,null,null,null,null,null,4500,null,null,null,null,null,null,null,null,null,null,null,null,null,null,null,null,null,null,null,null,null,3000,null,null,null,null,null,null,null,null,null,null,null,null,null,null,null,null,null,null,null,null,null,null,null,null,null,null,null,4500,null,null,null,null,null,null,null,null,null,null,null,null,null,null,null,null,null,null,null,null,null,null,null,null,null,null,null,null,null,null,null,null,null,null,null,null,null,null,null,null,null,null,null,null,null,null,4500,null,null,null,null,null,null,null,null,null,null,null,null,null,null,null,null,null,null,null,null,null,null,null,null,null,null,null,null,null,null,null,null,null,null,null,null,null,null,null,null,null,null,null,null,null,null,null,null,null,null,null,null,null,null,null,null,null,null,null,null,null,null,null,null,null,null,null,"If present, FSE16.1 must be absent","SA Monetary value (2dp) > 0.00"]
[57,"","FSE52.1","Zero-emission goods vehicle allowance",null,null,null,null,null,null,null,null,null,null,null,null,null,null,null,null,null,null,null,null,null,null,null,null,null,null,null,null,null,null,null,null,null,null,null,null,null,null,null,null,null,null,null,null,null,null,null,null,null,null,null,null,null,null,null,null,null,null,null,null,null,null,null,null,null,null,null,null,null,null,null,null,null,null,null,null,null,28763]
[58,"","FSE53","The Structures and Buildings Allowance",null,null,null,null,null,null,null,null,null,null,null,null,null,null,null,null,null,null,null,null,null,null,null,null,null,null,null,null,null,null,null,null,null,null,null,null,null,null,null,null,null,null,null,null,null,null,null,null,null,null,null,null,null,null,null,null,null,null,null,null,null,null,null,null,null,null,null,null,null,null,null,null,null,null,null,23000,null,null,null,null,null,null,null,null,null,null,null,null,null,null,null,null,null,null,null,null,null,null,null,null,null,null,null,null,null,null,null,null,null,null,null,null,null,null,null,null,null,null,null,null,null,null,null,null,null,null,null,null,null,null,null,null,null,null,null,null,null,null,null,null,null,null,null,null,null,null,null,null,null,null,null,null,null,null,null,null,null,null,null,null,null,null,null,null,null,null,null,null,null,null,null,null,null,null,null,null,null,null,null,null,null,null,null,null,null,null,null,null,null,null,null,null,null,null,null,null,null,null,null,null,null,null,null,null,null,null,null,null,null,null,null,null,null,null,null,null,null,null,null,null,null,null,null,null,null,null,null,null,null,null,null,null,null,null,null,null,null,null,null,null,null,null,null,null,null,null,null,null,null,null,null,null,null,null,null,null,null,null,null,null,null,null,null,null,null,null,null,null,null,null,null,null,null,null,"If present, FSE16.1 must be absent","SA Monetary value (2dp) > 0.00"]
[59,"","FSE53.1","Freeport Structures and Buildings Allowance"]
[60,"","FSE54","Electric charge-point allowance",null,null,null,null,null,null,null,null,null,null,null,null,null,null,null,null,null,null,null,null,null,null,null,null,null,null,null,null,null,null,null,null,null,null,null,null,null,null,null,null,null,null,null,null,null,null,null,null,null,null,null,null,null,null,null,null,null,null,null,null,null,null,null,null,null,null,null,null,null,null,null,null,null,null,null,3000,null,null,null,null,null,null,null,null,null,null,null,null,28350,null,null,null,null,null,null,null,null,null,null,null,null,null,null,null,null,null,null,null,null,null,null,null,null,null,null,null,null,null,null,null,null,null,null,null,null,null,null,null,null,null,null,null,null,null,null,null,null,null,null,null,null,null,null,null,null,null,null,null,null,null,null,null,null,null,null,null,null,null,null,null,null,null,null,null,null,null,null,null,null,null,null,null,null,null,null,null,null,null,null,null,null,null,null,null,null,null,null,null,null,null,null,null,null,null,null,null,null,null,null,null,null,null,null,null,null,null,null,null,null,null,null,null,null,null,null,null,null,null,null,null,null,null,null,null,null,null,null,null,null,null,null,null,null,null,null,null,null,null,null,null,null,null,null,null,null,null,null,null,null,null,null,null,null,null,null,null,null,null,null,null,null,null,null,null,null,null,null,null,null,null,null,null,null,null,"If present, FSE16.1 must be absent","SA Monetary value (2dp) > 0.00"]
[61,"","FSE55","Other capital allowances claimed this year",null,null,null,null,null,null,null,null,null,null,null,null,null,null,null,null,null,null,null,null,null,null,null,null,null,null,null,null,null,900,null,null,null,null,900,null,null,null,null,null,null,null,null,null,null,null,null,null,null,null,null,null,null,null,null,null,null,null,null,null,null,null,null,null,null,null,null,null,null,null,null,null,null,null,null,null,null,2479,null,null,null,null,null,null,null,1200,null,null,null,null,null,1200,1200,null,null,null,null,null,null,null,null,null,null,null,null,null,null,null,null,null,null,null,null,null,null,null,null,null,null,null,null,null,null,null,null,null,null,null,null,null,null,null,null,null,null,null,null,null,1200,null,null,null,null,null,null,null,null,null,null,null,1200,null,null,null,null,null,null,null,null,null,null,null,null,null,null,null,null,null,null,null,null,null,null,null,null,null,null,null,null,null,null,null,null,null,null,null,null,null,null,null,null,null,null,null,null,null,null,null,null,null,null,null,null,null,null,null,null,null,null,null,null,null,null,null,null,null,null,null,null,null,null,null,null,null,null,null,null,null,null,null,null,null,null,null,null,null,null,null,null,null,null,null,null,null,null,null,null,null,null,null,null,null,null,null,null,null,1200,null,null,null,null,null,null,null,null,null,null,null,null,null,null,null,null,null,"If present, FSE16.1 must be absent","SA Monetary value (2dp) > 0.00"]
[62,"","FSE56","Allowances on sale of cessation of business",null,null,null,null,null,null,null,null,null,null,null,null,null,null,null,null,null,null,null,null,null,null,null,null,null,null,null,null,null,null,null,null,null,null,null,null,null,null,null,null,null,null,null,null,null,null,null,null,null,null,null,null,null,null,null,null,null,null,null,null,null,null,null,null,null,null,null,null,null,null,null,null,null,null,null,null,null,null,null,null,null,null,null,null,null,165,null,null,null,null,null,165,165,null,null,null,null,null,null,null,null,null,null,null,null,null,null,null,null,null,null,null,null,null,null,null,null,null,null,null,null,null,null,null,null,null,null,null,null,null,null,null,null,null,null,null,null,null,165,null,null,null,null,null,null,null,null,null,null,null,165,null,null,null,null,null,null,null,null,null,null,null,null,null,null,null,null,null,null,null,null,null,null,null,null,null,null,null,null,null,null,null,null,null,null,null,null,null,null,null,null,null,null,null,null,null,null,null,null,null,null,null,null,null,null,null,null,null,null,null,null,null,null,null,null,null,null,null,null,null,null,null,null,null,null,null,null,null,null,null,null,null,null,null,null,null,null,null,null,null,null,null,null,null,null,null,null,null,null,null,null,null,null,null,null,null,165,null,null,null,null,null,null,null,null,null,null,null,null,null,null,null,null,null,"If present, FSE16.1 must be absent","SA Monetary value (2dp) > 0.00"]
[63,"","FSE57","Total allowances",null,null,{"$f":"IF(G100+G101+G102+G103+G107+G108+G109>0,G100+G101+G102+G103+G107+G108+G109,\"\")","v":""},null,{"$f":"IF(I100+I101+I102+I103+I107+I108+I109>0,I100+I101+I102+I103+I107+I108+I109,\"\")","v":""},null,null,{"$f":"IF(L100+L101+L102+L103+L107+L108+L109>0,L100+L101+L102+L103+L107+L108+L109,\"\")","v":""},null,null,null,null,{"$f":"IF(Q100+Q101+Q102+Q103+Q107+Q108+Q109>0,Q100+Q101+Q102+Q103+Q107+Q108+Q109,\"\")","v":""},null,{"$f":"IF(S100+S101+S102+S103+S107+S108+S109>0,S100+S101+S102+S103+S107+S108+S109,\"\")","v":""},null,null,null,null,null,null,null,null,null,{"$f":"IF(AC100+AC101+AC102+AC103+AC107+AC108+AC109>0,AC100+AC101+AC102+AC103+AC107+AC108+AC109,\"\")","v":""},null,null,null,null,{"$f":"IF(AH100+AH101+AH102+AH103+AH108+AH109>0,AH100+AH101+AH102+AH103+AH108+AH109,\"\")","v":900},null,null,null,null,{"$f":"IF(AM100+AM101+AM102+AM103+AM108+AM109>0,AM100+AM101+AM102+AM103+AM108+AM109,\"\")","v":900},null,null,null,null,null,null,null,null,{"$f":"IF(AV100+AV101+AV102+AV103+AV108+AV109>0,AV100+AV101+AV102+AV103+AV108+AV109,\"\")","v":7750},null,null,null,null,null,null,null,null,null,null,null,null,null,null,null,null,null,null,null,null,null,null,null,null,null,null,null,null,null,null,null,{"$f":"IF(CB100+CB101+CB102+CB103+CB108+CB109>0,CB100+CB101+CB102+CB103+CB105+CB107+CB108+CB109,\"\")","v":1333946},null,{"$f":"IF(CD100+CD101+CD102+CD103+CD108+CD109>0,CD100+CD101+CD102+CD103+CD104+CD105+CD106+CD107+CD108+CD109,\"\")","v":31242},null,{"$f":"IF(CF100+CF101+CF102+CF103+CF108+CF109>0,CF100+CF101+CF102+CF103+CF108+CF109,\"\")","v":6350},null,{"$f":"IF(CH100+CH101+CH102+CH103+CH107+CH108+CH109>0,CH100+CH101+CH102+CH103+CH107+CH108+CH109,\"\")","v":""},null,null,null,{"$f":"IF(CL100+CL101+CL102+CL103+CL108+CL109>0,CL100+CL101+CL102+CL103+CL108+CL109,\"\")","v":3165},{"$f":"IF(CM100+CM101+CM102+CM103+CM108+CM109>0,CM100+CM101+CM102+CM103+CM108+CM109,\"\")","v":""},{"$f":"IF(CN100+CN101+CN102+CN103+CN108+CN109>0,CN100+CN101+CN102+CN103+CN108+CN109,\"\")","v":6005},{"$f":"IF(CO100+CO101+CO102+CO103+CO108+CO109>0,CO100+CO101+CO102+CO103+CO107+CO108+CO109,\"\")","v":39467},null,null,{"$f":"IF(CR100+CR101+CR102+CR103+CR108+CR109>0,CR100+CR101+CR102+CR103+CR108+CR109,\"\")","v":3165},{"$f":"IF(CS100+CS101+CS102+CS103+CS108+CS109>0,CS100+CS101+CS102+CS103+CS108+CS109,\"\")","v":3165},null,{"$f":"IF(CU100+CU101+CU102+CU103+CU108+CU109>0,CU100+CU101+CU102+CU103+CU108+CU109,\"\")","v":4500},{"$f":"IF(CV100+CV101+CV102+CV103+CV108+CV109>0,CV100+CV101+CV102+CV103+CV108+CV109,\"\")","v":4500},null,null,null,null,null,null,{"$f":"IF(DC100+DC101+DC102+DC103+DC108+DC109>0,DC100+DC101+DC102+DC103+DC108+DC109,\"\")","v":4500},null,null,null,null,null,null,{"$f":"IF(DJ100+DJ101+DJ102+DJ103+DJ108+DJ109>0,DJ100+DJ101+DJ102+DJ103+DJ108+DJ109,\"\")","v":4500},null,null,null,null,null,null,null,111925,null,null,null,null,null,null,null,null,{"$f":"IF(EA100+EA101+EA102+EA103+EA108+EA109>0,EA100+EA101+EA102+EA103+EA108+EA109,\"\")","v":6005},null,null,null,null,{"$f":"IF(EF100+EF101+EF102+EF103+EF108+EF109>0,EF100+EF101+EF102+EF103+EF108+EF109,\"\")","v":6000},{"$f":"IF(EG100+EG101+EG102+EG103+EG107+EG108+EG109>0,EG100+EG101+EG102+EG103+EG107+EG108+EG109,\"\")","v":""},null,{"$f":"IF(EI100+EI101+EI102+EI103+EI108+EI109>0,EI100+EI101+EI102+EI103+EI108+EI109,\"\")","v":1161},null,null,null,{"$f":"IF(EM100+EM101+EM102+EM103+EM108+EM109>0,EM100+EM101+EM102+EM103+EM108+EM109,\"\")","v":3165},null,null,null,null,null,null,null,null,null,null,null,{"$f":"IF(EY100+EY101+EY102+EY103+EY108+EY109>0,EY100+EY101+EY102+EY103+EY108+EY109,\"\")","v":3165},null,null,null,null,null,null,{"$f":"IF(FF100+FF101+FF102+FF103+FF108+FF109>0,FF100+FF101+FF102+FF103+FF108+FF109,\"\")","v":6350},null,{"$f":"IF(FH100+FH101+FH102+FH103+FH108+FH109>0,FH100+FH101+FH102+FH103+FH108+FH109,\"\")","v":4500},null,null,null,null,null,null,null,null,null,null,null,null,null,null,null,null,null,null,null,null,null,null,null,null,null,null,null,{"$f":"IF(GJ100+GJ101+GJ102+GJ103+GJ108+GJ109>0,GJ100+GJ101+GJ102+GJ103+GJ108+GJ109,\"\")","v":""},null,null,null,null,null,null,null,null,null,null,null,null,null,{"$f":"IF(GX100+GX101+GX102+GX103+GX108+GX109>0,GX100+GX101+GX102+GX103+GX108+GX109,\"\")","v":5000},null,null,null,{"$f":"IF(HB100+HB101+HB102+HB103+HB108+HB109>0,HB100+HB101+HB102+HB103+HB108+HB109,\"\")","v":7750},{"$f":"IF(HC100+HC101+HC102+HC103+HC108+HC109>0,HC100+HC101+HC102+HC103+HC108+HC109,\"\")","v":4500},null,null,null,null,null,null,null,null,null,null,null,{"$f":"IF(HO100+HO101+HO102+HO103+HO107+HO108+HO109>0,HO100+HO101+HO102+HO103+HO107+HO108+HO109,\"\")","v":""},null,null,null,null,null,null,null,null,null,null,null,null,null,null,null,null,null,null,null,null,null,null,null,null,null,null,null,null,null,null,null,{"$f":"IF(IU100+IU101+IU102+IU103+IU108+IU109>0,IU100+IU101+IU102+IU103+IU108+IU109,\"\")","v":780},null,null,{"$f":"IF(IX100+IX101+IX102+IX103+IX108+IX109>0,IX100+IX101+IX102+IX103+IX108+IX109,\"\")","v":18910},{"$f":"IF(IY100+IY101+IY102+IY103+IY108+IY109>0,IY100+IY101+IY102+IY103+IY108+IY109,\"\")","v":6350},null,{"$f":"IF(JA100+JA101+JA102+JA103+JA108+JA109>0,JA100+JA101+JA102+JA103+JA108+JA109,\"\")","v":3165},{"$f":"IF(JB100+JB101+JB102+JB103+JB108+JB109>0,JB100+JB101+JB102+JB103+JB108+JB109,\"\")","v":""},"","","","","",{"$f":"IF(JH100+JH101+JH102+JH103+JH108+JH109>0,JH100+JH101+JH102+JH103+JH108+JH109,\"\")","v":""},null,"","","","","","","",null,null,"a)Equal to FSE49 + FSE50 + FSE51 + FSE52 + FSE53 + FSE54 + FSE55 + FSE56 \nb)If present, FSE16.1 must be absent","SA Monetary value (2dp) > 0.00"]
[64,"","FSE59","Total charges on sale or cessation",null,null,null,null,null,null,null,null,null,null,null,null,null,null,null,null,null,null,null,null,null,null,null,null,null,null,null,null,null,null,null,null,null,null,null,null,null,null,null,null,null,null,null,null,null,null,null,null,null,null,null,null,null,null,null,null,null,null,null,null,null,null,null,null,null,null,null,null,null,null,null,null,null,null,null,null,null,null,null,null,null,null,null,null,null,null,null,null,null,null,null,null,null,null,620,620,null,null,null,null,null,null,620,null,null,null,null,null,null,620,null,null,null,null,null,null,null,50975,null,null,null,null,null,null,null,null,null,null,null,null,null,null,null,null,null,null,null,null,null,null,null,null,null,null,null,null,null,null,null,null,null,null,null,null,null,null,null,null,null,620,null,null,null,null,null,null,null,null,null,null,null,null,null,null,null,null,null,null,null,null,null,null,null,null,null,null,null,null,null,null,null,null,null,null,null,null,null,null,null,null,null,null,null,null,null,null,620,null,null,null,null,null,null,null,null,null,null,null,null,null,null,null,null,null,null,null,null,null,null,null,null,null,null,null,null,null,null,null,null,null,null,null,null,null,null,null,null,null,null,null,null,null,null,16350,null,null,null,null,null,null,null,null,null,null,null,null,null,null,null,null,null,null,null,null,null,"SA Monetary value (2dp) > 0.00"]
[65,"","FSE60","Personal Use",null,null,null,null,null,null,null,null,null,null,null,null,null,null,null,null,null,null,null,null,null,null,null,null,null,null,null,null,null,null,null,null,null,null,null,null,null,null,null,null,null,null,null,361,null,null,null,null,null,null,null,null,null,null,null,null,null,null,null,null,null,null,null,null,null,null,null,null,null,null,null,null,null,null,null,null,null,null,null,null,null,null,null,null,null,921,null,null,null,null,null,921,921,null,null,null,null,null,null,null,null,null,null,null,null,null,null,null,null,null,null,null,null,null,null,null,null,null,null,null,null,null,null,null,null,null,null,null,null,null,null,null,null,null,null,null,null,null,921,null,null,null,null,null,null,null,null,null,null,null,921,null,null,null,null,null,null,null,null,null,null,null,null,null,null,null,null,null,null,null,null,null,null,null,null,null,null,null,null,null,null,null,null,null,null,null,null,null,null,null,null,null,null,null,null,null,null,null,null,null,null,null,null,null,null,361,null,null,null,null,null,null,null,null,null,null,null,null,null,null,null,null,null,null,null,null,null,null,null,null,null,null,null,null,null,null,null,null,null,null,null,null,null,null,null,null,null,null,null,null,null,null,null,null,null,null,921,null,null,null,null,null,null,null,null,null,null,null,null,null,null,null,null,null,null,"SA Monetary value (2dp) > 0.00"]
[66,"","FSE61","Total additions to net profit",null,null,null,null,null,null,null,null,null,null,null,null,null,null,null,null,null,null,null,null,null,null,null,null,null,null,{"$f":"AE97+AE111+AE112","v":0},null,null,{"$f":"AH97+AH111+AH112","v":0},null,{"$f":"AJ97+AJ111+AJ112","v":0},null,null,null,null,null,null,null,null,null,null,null,{"$f":"AV97+AV111+AV112","v":361},null,null,null,null,null,null,null,null,null,null,null,null,null,null,null,null,null,null,null,null,null,null,null,null,null,null,null,null,null,null,null,{"$f":"CB97+CB111+CB112","v":0},null,null,null,{"$f":"CF97+CF111+CF112","v":0},null,null,null,null,null,{"$f":"CL97+CL111+CL112","v":9712},null,6487,null,null,null,{"$f":"CR97+CR111+CR112","v":9712},{"$f":"CS97+CS111+CS112","v":9712},null,{"$f":"CU97+CU111+CU112","v":3316},{"$f":"CV97+CV111+CV112","v":3316},null,null,null,null,null,null,{"$f":"DC97+DC111+DC112","v":3316},null,null,null,null,null,null,{"$f":"DJ97+DJ111+DJ112","v":3316},null,null,null,null,null,null,null,150779,null,null,null,null,null,null,null,null,6487,null,null,null,null,{"$f":"EF97+EF111+EF112","v":0},null,null,{"$f":"EI97+EI111+EI112","v":687},null,null,null,{"$f":"EM97+EM111+EM112","v":9712},null,null,null,null,null,null,{"$f":"ET97+ET111+ET112","v":1116},null,null,null,null,{"$f":"EY97+EY111+EY112","v":9712},null,null,null,null,null,null,{"$f":"FF97+FF111+FF112","v":0},null,{"$f":"FH97+FH111+FH112","v":3316},null,null,null,null,null,null,null,null,null,null,null,null,null,null,null,null,null,null,null,null,null,null,null,null,null,null,null,null,null,null,null,null,null,null,null,null,null,null,null,null,null,null,null,null,null,{"$f":"HB97+HB111+HB112","v":361},{"$f":"HC97+HC111+HC112","v":3316},null,null,null,null,null,null,null,null,null,null,null,null,null,null,null,null,null,null,null,null,null,null,null,null,null,null,null,null,null,null,null,null,null,null,null,null,null,null,null,null,null,null,null,null,null,null,{"$f":"IX97+IX111+IX112","v":19930},{"$f":"IY97+IY111+IY112","v":0},null,{"$f":"JA97+JA111+JA112","v":9712},null,null,null,null,null,null,null,null,null,null,null,null,null,null,null,null,null,"Equal to FSE46 + FSE59 + FSE60","Monetary value (2dp)"]
[67,"","FSE62","Other Deductions",null,null,null,null,null,null,null,null,null,null,null,null,null,null,null,null,null,null,null,null,null,null,null,null,null,null,null,null,null,null,null,null,null,null,null,null,null,null,null,null,null,null,null,null,null,null,null,null,null,null,null,null,null,null,null,null,null,null,null,null,null,null,null,null,null,null,null,null,null,null,null,null,null,null,null,null,null,null,null,null,null,null,null,null,null,921,null,null,null,null,null,921,921,null,null,null,null,null,null,null,null,null,null,null,null,null,null,null,null,null,null,null,null,null,null,null,null,null,null,null,null,null,null,null,null,null,null,null,null,null,null,null,null,null,null,null,null,null,921,null,null,null,null,null,null,null,null,null,null,null,921,null,null,null,null,null,null,null,null,null,null,null,null,null,null,null,null,null,null,null,null,null,null,null,null,null,null,null,null,null,null,null,null,null,null,null,null,null,null,null,null,null,null,null,null,null,null,null,null,null,null,null,null,null,null,null,null,null,null,null,null,null,null,null,null,null,null,null,null,null,null,null,null,null,null,null,null,null,null,null,null,null,null,null,null,null,null,null,null,null,null,null,null,null,null,null,null,null,null,null,null,null,null,null,null,null,921,null,null,null,null,null,null,null,null,null,null,null,null,null,null,null,null,null,null,"SA Monetary value (2dp) > 0.00"]
[68,"","FSE63","Deductions from net profit",null,null,null,null,null,null,null,null,null,null,null,null,null,null,null,null,null,null,null,null,null,null,null,null,null,null,{"$f":"AE110+AE114","v":0},null,null,{"$f":"AH110+AH114","v":900},null,0,null,null,900,null,null,null,null,null,null,null,null,{"$f":"AV110+AV114","v":7750},null,null,null,null,null,null,null,null,null,null,null,null,null,null,null,null,null,null,null,null,null,null,null,null,null,null,null,null,null,null,null,{"$f":"CB110+CB114","v":1333946},null,31242,null,{"$f":"CF110+CF114","v":6350},null,null,null,null,null,{"$f":"CL110+CL114","v":4086},null,{"$f":"CN110+CN114","v":6005},{"$f":"CO110+CO114","v":39467},null,null,{"$f":"CR110+CR114","v":4086},{"$f":"CS110+CS114","v":4086},null,{"$f":"CU110+CU114","v":4500},{"$f":"CV110+CV114","v":4500},null,null,null,null,null,null,{"$f":"DC110+DC114","v":4500},null,null,null,null,null,null,{"$f":"DJ110+DJ114","v":4500},null,null,null,null,null,null,null,239776,null,null,null,null,null,null,null,null,{"$f":"EA110+EA114","v":6005},null,null,null,null,{"$f":"EF110+EF114","v":6000},null,null,{"$f":"EI110+EI114","v":1161},null,null,null,{"$f":"EM110+EM114","v":4086},null,null,null,null,null,null,null,null,null,null,null,{"$f":"EY110+EY114","v":4086},null,null,null,null,null,null,{"$f":"FF110+FF114","v":6350},null,{"$f":"FH110+FH114","v":4500},null,null,null,null,null,null,null,null,null,null,null,null,null,null,null,null,null,null,null,null,null,null,null,null,null,null,null,null,null,null,null,null,null,null,null,null,null,null,null,null,null,{"$f":"GX110+GX114","v":5000},null,null,null,{"$f":"HB110+HB114","v":7750},{"$f":"HC110+HC114","v":4500},null,null,null,null,null,null,null,null,null,null,null,null,null,null,null,null,null,null,null,null,null,null,null,null,null,null,null,null,null,null,null,null,null,null,null,null,null,null,null,null,null,null,null,780,null,null,{"$f":"IX110+IX114","v":18910},{"$f":"IY110+IY114","v":6350},null,{"$f":"JA110+JA114","v":4086},null,null,null,null,null,null,null,null,null,null,null,null,null,null,null,null,null,"Equal to FSE57 + FSE62","SA Monetary value (2dp) > 0.00"]
[69,"","FSE64","Net business profit",null,null,{"$f":"MAX(0,(G98+G113)-(G99+G115))","v":15200},null,{"$f":"MAX(0,(I98+I113)-(I99+I115))","v":16285},null,null,{"$f":"MAX(0,(L98+L113)-(L99+L115))","v":14900},null,null,null,null,{"$f":"MAX(0,(Q98+Q113)-(Q99+Q115))","v":14900},null,{"$f":"MAX(0,(S98+S113)-(S99+S115))","v":17560},null,null,null,null,null,null,null,{"$f":"MAX(0,(AA98+AA113)-(AA99+AA115))","v":8864},null,{"$f":"MAX(0,(AC98+AC113)-(AC99+AC115))","v":14900},null,{"$f":"MAX(0,(AE98+AE113)-(AE99+AE115))","v":21875},null,null,{"$f":"MAX(0,(AH98+AH113)-(AH99+AH115))","v":47430},null,{"$f":"MAX(0,(AJ98+AJ113)-(AJ99+AJ115))","v":3400},{"$f":"MAX(0,(AK98+AK113)-(AK99+AK115))","v":897},null,{"$f":"MAX(0,(AM98+AM113)-(AM99+AM115))","v":6724},{"$f":"MAX(0,(AN98+AN113)-(AN99+AN115))","v":12571},null,{"$f":"MAX(0,(AP98+AP113)-(AP99+AP115))","v":8630},null,null,null,null,null,null,null,null,null,null,null,null,null,null,null,null,null,null,null,{"$f":"MAX(0,(BJ98+BJ113)-(BJ99+BJ115))","v":0},null,null,null,null,null,null,null,null,null,null,null,null,null,null,{"$f":"MAX(0,(BY98+BY113)-(BY99+BY115))","v":5000},null,null,{"$f":"MAX(0,(CB98+CB113)-(CB99+CB115))","v":59749},null,{"$f":"MAX(0,(CD98+CD113)-(CD99+CD115))","v":87727},null,{"$f":"MAX(0,(CF98+CF113)-(CF99+CF115))","v":47949},null,{"$f":"MAX(0,(CH98+CH113)-(CH99+CH115))","v":14900},null,null,{"$f":"MAX(0,(CK98+CK113)-(CK99+CK115))","v":11580},{"$f":"MAX(0,(CL98+CL113)-(CL99+CL115))","v":104298},null,{"$f":"MAX(0,(CN98+CN113)-(CN99+CN115))","v":77364},null,{"$f":"MAX(0,(CP98+CP113)-(CP99+CP115))","v":35000},null,{"$f":"MAX(0,(CR98+CR113)-(CR99+CR115))","v":104298},{"$f":"MAX(0,(CS98+CS113)-(CS99+CS115))","v":104298},null,{"$f":"MAX(0,(CU98+CU113)-(CU99+CU115))","v":138654},{"$f":"MAX(0,(CV98+CV113)-(CV99+CV115))","v":138654},null,null,null,null,null,null,{"$f":"MAX(0,(DC98+DC113)-(DC99+DC115))","v":138654},null,null,null,null,null,null,{"$f":"MAX(0,(DJ98+DJ113)-(DJ99+DJ115))","v":138654},null,null,null,null,null,null,null,127851,null,null,null,null,null,null,null,null,{"$f":"MAX(0,(EA98+EA113)-(EA99+EA115))","v":13965},null,null,null,null,{"$f":"MAX(0,(EF98+EF113)-(EF99+EF115))","v":14023},null,null,{"$f":"MAX(0,(EI98+EI113)-(EI99+EI115))","v":56714},null,null,null,{"$f":"MAX(0,(EM98+EM113)-(EM99+EM115))","v":104298},{"$f":"MAX(0,(EN98+EN113)-(EN99+EN115))","v":0},0,0,0,0,0,{"$f":"MAX(0,(ET98+ET113)-(ET99+ET115))","v":3787},null,null,null,null,{"$f":"MAX(0,(EY98+EY113)-(EY99+EY115))","v":104298},null,null,null,null,null,null,{"$f":"MAX(0,(FF98+FF113)-(FF99+FF115))","v":47949},null,{"$f":"MAX(0,(FH98+FH113)-(FH99+FH115))","v":138654},2274,169634,null,null,201584,null,3193,null,null,null,null,null,null,null,null,null,null,null,null,null,null,{"$f":"MAX(0,(GD98+GD113)-(GD99+GD115))","v":8952},null,null,null,null,null,{"$f":"MAX(0,(GJ98+GJ113)-(GJ99+GJ115))","v":49810},null,null,null,{"$f":"MAX(0,(GN98+GN113)-(GN99+GN115))","v":6875},null,null,null,null,null,null,{"$f":"MAX(0,(GU98+GU113)-(GU99+GU115))","v":9920},null,null,null,null,null,null,null,{"$f":"MAX(0,(HC98+HC113)-(HC99+HC115))","v":138654},null,null,null,null,null,{"$f":"MAX(0,(HI98+HI113)-(HI99+HI115))","v":24756},{"$f":"MAX(0,(HJ98+HJ113)-(HJ99+HJ115))","v":126384},{"$f":"MAX(0,(HK98+HK113)-(HK99+HK115))","v":173250},{"$f":"MAX(0,(HL98+HL113)-(HL99+HL115))","v":201924},{"$f":"MAX(0,(HM98+HM113)-(HM99+HM115))","v":42500},null,{"$f":"MAX(0,(HO98+HO113)-(HO99+HO115))","v":14900},null,null,null,null,null,null,null,{"$f":"MAX(0,(HW98+HW113)-(HW99+HW115))","v":26980},null,null,null,null,null,null,null,null,null,null,null,null,null,null,{"$f":"MAX(0,(IL98+IL113)-(IL99+IL115))","v":4237},null,null,null,null,null,null,null,null,{"$f":"MAX(0,(IU98+IU113)-(IU99+IU115))","v":40265},null,{"$f":"MAX(0,(IW98+IW113)-(IW99+IW115))","v":21.569999999999709},{"$f":"MAX(0,(IX98+IX113)-(IX99+IX115))","v":4112087},{"$f":"MAX(0,(IY98+IY113)-(IY99+IY115))","v":47949},null,{"$f":"MAX(0,(JA98+JA113)-(JA99+JA115))","v":104298},{"$f":"MAX(0,(JB98+JB113)-(JB99+JB115))","v":67942},null,null,null,null,null,{"$f":"MAX(0,(JH98+JH113)-(JH99+JH115))","v":6908},null,null,{"$f":"MAX(0,(JK98+JK113)-(JK99+JK115))","v":9210},null,null,null,null,null,null,null,"If FSE47 + FSE61 minus (FSE48 + FSE63) is positive or zero FSE64 is mandatory & must equal that sum.\nCannot be negative.","SA Monetary value (2dp) >= 0.00"]
[70,"","FSE65","Net business loss for tax purposes (if box 48 + box 63 minus (box 47 + box 61) is positive)",null,null,null,null,null,null,null,null,null,null,null,null,null,null,null,null,null,null,null,null,null,null,null,null,null,null,null,null,null,null,null,{"$f":"MAX(0,(AJ99+AJ115)-(AJ98+AJ113))","v":0},null,null,null,null,null,{"$f":"MAX(0,(AP99+AP115)-(AP98+AP113))","v":0},null,null,null,null,null,{"$f":"MAX(0,(AV99+AV115)-(AV98+AV113))","v":12390},null,null,null,null,null,null,null,null,null,null,null,null,null,null,null,null,null,null,null,null,null,null,null,null,null,null,null,null,null,null,null,null,null,null,null,null,null,null,null,null,null,null,10000,null,{"$f":"MAX(0,(CO99+CO115)-(CO98+CO113))","v":50000},null,null,null,null,null,null,null,null,null,null,null,null,null,null,null,null,null,null,null,null,null,null,null,null,null,null,null,null,130458,null,null,null,null,null,null,null,null,null,null,null,null,null,null,{"$f":"MAX(0,(EG99+EG115)-(EG98+EG113))","v":5000},null,null,null,null,null,null,null,null,null,null,null,115,null,null,null,null,null,null,null,null,null,null,null,null,null,null,null,null,null,null,null,null,null,null,null,null,null,null,null,null,null,null,null,null,null,null,null,null,null,null,null,null,null,null,null,null,null,null,null,null,null,null,null,null,null,null,null,null,{"$f":"MAX(0,(GX99+GX115)-(GX98+GX113))","v":57763},null,null,null,9010,null,null,null,null,null,null,null,null,null,null,null,null,null,null,null,null,null,null,null,null,null,null,null,null,null,null,null,null,null,null,null,null,null,null,null,null,null,null,null,null,null,null,null,null,null,null,null,null,null,null,null,null,null,null,null,null,null,null,null,null,null,null,null,null,null,null,null,null,"If FSE48 + FSE63 minus (FSE47 + FSE61) is positive or zero FSE65 is mandatory & must equal that sum.\nCannot be negative.\nAt least one of FSE64 or FSE65 must be present","SA Monetary value (2dp) >= 0.00"]
[71,"","FSE68","Adjustment to arrive at profit or loss. ",null,null,null,null,null,null,null,null,null,null,null,null,null,null,null,null,null,null,null,null,null,null,null,null,null,null,null,null,null,null,null,null,null,null,null,null,null,null,null,null,null,null,null,null,null,null,null,null,null,null,null,null,null,null,null,null,null,null,null,null,null,null,null,null,null,null,null,null,null,null,null,null,null,null,null,null,null,null,null,null,null,-1010,null,null,null,null,null,null,null,null,null,null,null,null,null,null,null,null,null,null,null,null,null,null,null,null,null,null,null,null,null,null,null,null,null,null,null,null,null,null,null,null,null,null,null,null,null,null,null,null,null,null,null,null,null,null,null,null,null,null,null,null,null,null,null,null,null,null,null,null,null,null,null,null,null,null,null,null,null,null,null,null,null,null,null,null,null,null,null,null,null,null,null,null,null,null,null,null,null,null,null,null,null,null,null,null,null,null,null,null,null,-7316,null,null,null,null,null,null,null,null,null,null,null,null,null,null,null,null,null,null,null,null,null,null,null,null,null,null,-1010,null,null,null,null,null,null,null,null,null,null,null,null,null,null,null,null,null,null,null,null,null,null,null,null,null,null,null,null,null,null,null,null,null,null,null,null,null,null,null,null,null,null,null,null,null,null,null,null,null,null,null,null,null,null,null,null,"SA Monetary value (2dp) except 0.00"]
[72,"","FSE71","This years instalment of adjustment on withdrawal of cash basis, or adjustment on other change of basis",null,null,null,null,null,null,null,null,null,null,null,null,null,null,null,null,null,null,null,null,null,null,null,null,null,null,null,null,null,null,null,null,null,null,null,null,null,null,null,null,null,null,null,null,null,null,null,null,null,null,null,null,null,null,null,null,null,null,null,null,null,null,null,null,null,null,null,null,null,null,null,null,null,null,null,null,null,null,null,null,null,null,null,null,null,null,null,null,null,null,null,null,null,null,15200,15200,null,null,null,null,null,null,15200,null,null,null,null,null,null,15200,null,null,null,null,null,null,null,null,null,null,null,null,null,null,null,null,null,null,null,null,null,null,null,null,null,null,null,null,null,null,null,null,null,null,null,null,null,null,null,null,null,null,null,null,null,null,null,null,null,15200,591,null,null,null,null,null,null,null,null,null,null,null,null,null,null,null,null,null,null,null,null,null,null,null,null,null,null,null,null,null,null,null,null,null,null,null,null,null,null,null,null,null,null,null,null,null,15200,null,null,null,null,null,null,null,null,null,null,null,null,null,null,null,null,null,null,null,null,null,null,null,null,null,null,null,null,null,null,null,null,null,null,null,null,null,null,null,null,null,null,null,null,null,null,null,null,null,null,null,null,null,null,null,null,null,null,null,null,null,null,null,null,null,null,null,null,"SA Monetary value (2dp) > 0.00"]
[73,"","FSE72","Adjustment for farmers' and literary/artistic averaging",null,null,null,null,null,null,null,null,null,null,null,null,null,null,null,null,null,null,null,null,null,null,null,null,null,null,null,null,null,null,null,null,null,null,null,null,null,null,null,null,null,null,null,null,null,null,null,null,null,null,null,null,null,null,null,null,null,null,null,null,null,null,null,null,null,null,null,null,null,null,null,null,null,null,null,3000,null,null,null,3000,null,null,null,null,null,null,null,null,null,null,null,null,null,null,null,null,null,null,null,null,null,null,null,null,null,null,null,null,null,null,null,null,null,null,null,null,null,null,null,null,null,null,null,null,null,null,null,null,null,null,null,null,null,null,null,null,null,null,null,null,null,null,null,null,null,-1578,null,null,null,null,null,null,null,null,null,null,null,3000,null,null,null,null,null,null,null,null,null,null,null,null,null,null,null,null,null,null,null,null,null,null,null,null,null,null,null,null,null,null,null,null,null,null,null,null,null,null,null,null,null,null,null,null,null,null,null,null,null,null,null,null,null,null,null,null,null,null,null,null,null,null,null,null,null,null,null,null,null,null,null,null,null,null,null,null,null,null,null,null,null,null,null,null,null,null,null,null,null,null,null,null,null,null,null,null,3000,null,null,null,null,null,null,null,null,null,null,null,null,null,null,null,null,null,null,null,null,"SA Monetary value (2dp) except 0.00"]
[74,"","FSE73","Net Profit for year",null,null,{"$f":"IF(G116+G118+G119-G117>0,G116+G118+G119+G120-G117,G120)","v":15200},null,{"$f":"IF(I116+I118+I119-I117>0,I116+I118+I119+I120-I117,I120)","v":16285},null,null,{"$f":"IF(L116+L118+L119-L117>0,L116+L118+L119+L120-L117,L120)","v":14900},null,null,null,null,{"$f":"IF(Q116+Q118+Q119-Q117>0,Q116+Q118+Q119+Q120-Q117,Q120)","v":14900},null,{"$f":"IF(S116+S118+S119-S117>0,S116+S118+S119+S120-S117,S120)","v":17560},null,null,null,null,null,null,null,{"$f":"IF(AA116+AA118+AA119-AA117>0,AA116+AA118+AA119+AA120-AA117,AA120)","v":8864},null,{"$f":"IF(AC116+AC118+AC119-AC117>0,AC116+AC118+AC119+AC120-AC117,AC120)","v":14900},null,{"$f":"IF(AE116+AE118+AE119-AE117>0,AE116+AE118+AE119+AE120-AE117,AE120)","v":21875},null,null,{"$f":"IF(AH116+AH118+AH119-AH117>0,AH116+AH118+AH119+AH120-AH117,AH120)","v":47430},{"$f":"IF(AI116+AI118+AI119-AI117>0,AI116+AI118+AI119+AI120-AI117,AI120)","v":0},{"$f":"IF(AJ116+AJ118+AJ119-AJ117>0,AJ116+AJ118+AJ119+AJ120-AJ117,AJ120)","v":3400},0,null,{"$f":"IF(AM116+AM118+AM119-AM117>0,AM116+AM118+AM119+AM120-AM117,AM120)","v":6724},{"$f":"IF(AN116+AN118+AN119-AN117>0,AN116+AN118+AN119+AN120-AN117,AN120)","v":12571},null,{"$f":"IF(AP116+AP118+AP119-AP117>0,AP116+AP118+AP119+AP120-AP117,AP120)","v":8630},null,null,null,null,null,{"$f":"IF(AV116+AV118+AV119-AV117>0,AV116+AV118+AV119+AV120-AV117,AV120)","v":0},null,null,null,null,null,null,null,null,null,null,null,null,null,{"$f":"IF(BJ116+BJ118+BJ119-BJ117>0,BJ116+BJ118+BJ119+BJ120-BJ117,BJ120)","v":0},null,null,null,null,null,null,null,null,null,null,null,null,null,null,{"$f":"IF(BY116+BY118+BY119-BY117>0,BY116+BY118+BY119+BY120-BY117,BY120)","v":5000},null,null,{"$f":"IF(CB116+CB118+CB119-CB117>0,CB116+CB118+CB119+CB120-CB117,CB120)","v":62749},null,{"$f":"IF(CD116+CD118+CD119-CD117>0,CD116+CD118+CD119+CD120-CD117,CD120)","v":87727},null,{"$f":"IF(CF116+CF118+CF119-CF117>0,CF116+CF118+CF119+CF120-CF117,CF120)","v":50949},null,{"$f":"IF(CH116+CH118+CH119-CH117>0,CH116+CH118+CH119+CH120-CH117,CH120)","v":13890},null,null,{"$f":"IF(CK116+CK118+CK119-CK117>0,CK116+CK118+CK119+CK120-CK117,CK120)","v":11580},{"$f":"IF(CL116+CL118+CL119-CL117>0,CL116+CL118+CL119+CL120-CL117,CL120)","v":104298},null,{"$f":"IF(CN116+CN118+CN119-CN117>0,CN116+CN118+CN119+CN120-CN117,CN120)","v":77364},null,{"$f":"IF(CP116+CP118+CP119-CP117>0,CP116+CP118+CP119+CP120-CP117,CP120)","v":35000},null,{"$f":"IF(CR116+CR118+CR119-CR117>0,CR116+CR118+CR119+CR120-CR117,CR120)","v":104298},{"$f":"IF(CS116+CS118+CS119-CS117>0,CS116+CS118+CS119+CS120-CS117,CS120)","v":104298},null,{"$f":"IF(CU116+CU118+CU119-CU117>0,CU116+CU118+CU119+CU120-CU117,CU120)","v":153854},{"$f":"IF(CV116+CV118+CV119-CV117>0,CV116+CV118+CV119+CV120-CV117,CV120)","v":153854},null,null,null,null,null,null,{"$f":"IF(DC116+DC118+DC119-DC117>0,DC116+DC118+DC119+DC120-DC117,DC120)","v":153854},null,null,null,null,null,0,{"$f":"IF(DJ116+DJ118+DJ119-DJ117>0,DJ116+DJ118+DJ119+DJ120-DJ117,DJ120)","v":153854},null,null,null,null,null,null,null,null,null,null,null,null,null,null,null,null,{"$f":"IF(EA116+EA118+EA119-EA117>0,EA116+EA118+EA119+EA120-EA117,EA120)","v":13965},null,null,null,null,{"$f":"IF(EF116+EF118+EF119-EF117>0,EF116+EF118+EF119+EF120-EF117,EF120)","v":14023},{"$f":"IF(EG116+EG118+EG119-EG117>0,EG116+EG118+EG119+EG120-EG117,EG120)","v":0},null,{"$f":"IF(EI116+EI118+EI119-EI117>0,EI116+EI118+EI119+EI120-EI117,EI120)","v":56714},null,null,null,{"$f":"IF(EM116+EM118+EM119-EM117>0,EM116+EM118+EM119+EM120-EM117,EM120)","v":104298},null,null,null,null,null,null,{"$f":"IF(ET116+ET118+ET119-ET117>0,ET116+ET118+ET119+ET120-ET117,ET120)","v":2209},null,null,null,null,{"$f":"IF(EY116+EY118+EY119-EY117>0,EY116+EY118+EY119+EY120-EY117,EY120)","v":104298},null,null,null,null,null,null,{"$f":"IF(FF116+FF118+FF119-FF117>0,FF116+FF118+FF119+FF120-FF117,FF120)","v":50949},null,{"$f":"IF(FH116+FH118+FH119-FH117>0,FH116+FH118+FH119+FH120-FH117,FH120)","v":153854},2274,{"$f":"IF(FJ116+FJ118+FJ119-FJ117>0,FJ116+FJ118+FJ119+FJ120-FJ117,FJ120)","v":169634},null,null,{"$f":"IF(FM116+FM118+FM119-FM117>0,FM116+FM118+FM119+FM120-FM117,FM120)","v":201584},null,2193,null,null,null,null,null,null,null,null,null,null,null,null,null,null,{"$f":"IF(GD116+GD118+GD119-GD117>0,GD116+GD118+GD119+GD120-GD117,GD120)","v":8952},null,null,null,null,null,49810,null,null,null,null,null,null,null,null,null,null,{"$f":"IF(GU116+GU118+GU119-GU117>0,GU116+GU118+GU119+GU120-GU117,GU120)","v":9920},null,null,{"$f":"IF(GX116+GX118+GX119-GX117>0,GX116+GX118+GX119+GX120-GX117,GX120)","v":0},null,null,null,{"$f":"IF(HB116+HB118+HB119-HB117>0,HB116+HB118+HB119+HB120-HB117,HB120)","v":0},{"$f":"IF(HC116+HC118+HC119-HC117>0,HC116+HC118+HC119+HC120-HC117,HC120)","v":153854},null,null,null,null,null,{"$f":"IF(HI116+HI118+HI119-HI117>0,HI116+HI118+HI119+HI120-HI117,HI120)","v":24756},{"$f":"IF(HJ116+HJ118+HJ119-HJ117>0,HJ116+HJ118+HJ119+HJ120-HJ117,HJ120)","v":126384},{"$f":"IF(HK116+HK118+HK119-HK117>0,HK116+HK118+HK119+HK120-HK117,HK120)","v":173250},{"$f":"IF(HL116+HL118+HL119-HL117>0,HL116+HL118+HL119+HL120-HL117,HL120)","v":201924},{"$f":"IF(HM116+HM118+HM119-HM117>0,HM116+HM118+HM119+HM120-HM117,HM120)","v":42500},null,{"$f":"IF(HO116+HO118+HO119-HO117>0,HO116+HO118+HO119+HO120-HO117,HO120)","v":13890},null,null,null,null,null,null,null,{"$f":"IF(HW116+HW118+HW119-HW117>0,HW116+HW118+HW119+HW120-HW117,HW120)","v":26980},null,null,null,null,null,null,null,null,null,null,null,null,null,null,{"$f":"IF(IL116+IL118+IL119-IL117>0,IL116+IL118+IL119+IL120-IL117,IL120)","v":4237},null,null,null,null,null,null,null,null,{"$f":"IF(IU116+IU118+IU119-IU117>0,IU116+IU118+IU119+IU120-IU117,IU120)","v":40265},null,{"$f":"IF(IW116+IW118+IW119-IW117>0,IW116+IW118+IW119+IW120-IW117,IW120)","v":21.569999999999709},{"$f":"IF(IX116+IX118+IX119-IX117>0,IX116+IX118+IX119+IX120-IX117,IX120)","v":4112087},{"$f":"IF(IY116+IY118+IY119-IY117>0,IY116+IY118+IY119+IY120-IY117,IY120)","v":50949},null,{"$f":"IF(JA116+JA118+JA119-JA117>0,JA116+JA118+JA119+JA120-JA117,JA120)","v":104298},{"$f":"IF(JB116+JB118+JB119-JB117>0,JB116+JB118+JB119+JB120-JB117,JB120)","v":67942},null,null,null,null,null,{"$f":"IF(JH116+JH118+JH119-JH117>0,JH116+JH118+JH119+JH120-JH117,JH120)","v":6908},null,null,{"$f":"IF(JK116+JK118+JK119-JK117>0,JK116+JK118+JK119+JK120-JK117,JK120)","v":9210},null,null,null,null,null,null,null,"a. If (FSE64 minus FSE65) + (FSE68 minus FSE69) minus FSE16.1  is positive, then FSE73 is mandatory  and equals FSE64 minus (FSE65 + FSE68) minus FSE69 minus FSE16.1 + FSE71 + FSE72) \n\nb. if (FSE64 minus FSE65) + (FSE68 minus FSE69) minus FSE16.1 is negative or zero, then  if FSE71 + FSE72  > 0, FSE73 is mandatory and equals FSE71 + FSE72 else FSE73 must be zero or absent.","SA Monetary value (2dp) >= 0.00"]
[75,"","FSE73.3","Spread of transition profit arising",null,null,null,null,null,null,null,null,null,null,null,null,null,null,null,null,null,null,null,null,null,null,null,null,null,null,null,null,null,null,null,null,null,null,null,null,null,null,null,null,null,null,null,null,null,null,null,null,null,null,null,null,null,null,null,null,null,null,null,null,null,null,null,null,null,null,null,null,null,null,null,null,null,null,null,null,null,null,null,null,null,3275,null,null,null,416,4000,4000,null,null,null,null,null,null,null,null,null,null,null,null,null,null,null,null,null,null,null,null,null,null,null,null,null,null,null,null,null,null,null,null,null,null,null,null,null,null,14356,null,null,null,null,null,null,null,null,null,null,null,null,null,null,null,null,null,null,null,null,null,null,null,null,null,null,null,null,null,null,null,null,null,null,null,null,null,null,null,null,null,null,null,null,null,null,null,null,null,null,null,null,null,null,1143,null,null,null,null,null,null,null,null,null,null,null,null,null,null,null,null,1143,null,null,null,null,null,null,null,null,null,null,null,null,null,null,null,null,null,null,null,null,null,null,null,null,null,null,null,9200,null,null,null,null,null,null,null,null,null,null,null,null,null,null,null,null,null,null,null,null,null,null,null,null,null,null,75745]
[76,"","FSE73.4","Loss brought forward from earlier years"]
[77,"","FSE74","Losses used this year",null,null,null,null,null,null,null,555,null,null,null,null,null,null,null,null,null,null,null,null,null,null,null,null,null,null,20475,null,null,null,null,null,null,null,null,null,null,null,null,null,null,null,null,null,null,null,null,null,null,null,null,null,null,null,null,null,null,null,null,null,null,null,null,null,null,null,null,null,null,null,null,null,null,null,null,null,null,null,null,null,null,null,null,null,null,7295,null,null,null,null,null,7295,7295,null,5692,5692,null,null,null,null,null,null,null,null,null,null,null,null,null,5692,null,null,null,null,null,null,null,null,null,null,null,null,null,null,null,null,null,null,null,null,null,null,null,null,null,null,null,null,7295,null,null,null,null,null,null,null,null,null,null,null,7295,null,null,null,null,null,null,null,null,5692,null,null,null,null,null,null,null,null,null,null,null,null,null,null,null,null,null,null,null,null,null,null,null,null,null,null,null,null,null,null,null,null,null,null,null,null,null,null,null,null,null,null,null,null,null,null,5692,null,null,null,null,null,null,null,null,null,null,null,null,null,null,null,null,null,null,null,null,null,null,null,null,null,null,null,null,null,null,null,null,null,null,null,null,null,null,null,null,null,null,null,40265,null,21.57,null,null,null,7295,null,null,null,null,null,null,null,null,null,null,null,null,null,null,null,null,null,"Less than or equal to (the larger of FSE64 and FSE73)","SA Monetary value (2dp) > 0.00"]
[78,"","FSE75","Any other business income",null,null,null,null,null,null,null,null,null,null,null,null,300,null,null,null,null,null,null,null,null,null,null,null,300,null,null,null,null,null,null,null,null,null,null,null,null,null,null,null,null,null,null,null,null,null,null,null,null,null,null,null,null,null,null,null,null,null,null,null,null,null,null,null,null,null,null,null,null,null,null,null,null,null,null,null,null,null,null,null,null,300,null,null,null,null,null,41947,null,null,null,null,null,null,null,null,null,null,null,null,null,null,null,null,null,null,null,null,null,null,null,null,null,null,null,null,null,null,null,null,null,null,null,null,null,null,null,null,null,null,null,null,null,null,null,null,null,null,null,null,null,null,null,null,null,null,null,null,null,null,null,null,null,null,null,null,null,null,null,null,null,null,null,null,null,null,null,null,null,null,null,null,null,null,null,null,null,null,null,null,null,null,null,null,null,null,null,null,null,null,null,null,null,null,null,null,null,null,null,null,null,null,null,null,null,null,null,null,null,null,null,null,null,null,null,null,null,null,300,null,null,null,null,null,null,null,null,null,null,null,null,null,null,null,null,null,null,null,null,null,null,null,null,null,null,null,null,null,null,null,null,null,null,null,null,null,null,null,null,null,null,null,null,null,null,null,null,null,null,null,null,null,null,null,null," `"]
[79,"","FSE76","Total taxable profits from this business",null,null,{"$f":"MAX(0,G121+G125-G124)","v":15200},null,{"$f":"MAX(0,I121+I125-I124)","v":16285},null,null,{"$f":"MAX(0,L121+L125-L124)","v":14345},null,null,null,null,{"$f":"MAX(0,Q121+Q125-Q124)","v":15200},null,{"$f":"MAX(0,S121+S125-S124)","v":17560},null,null,null,null,null,null,null,{"$f":"MAX(0,AA121+AA125-AA124)","v":8864},null,{"$f":"MAX(0,AC121+AC125-AC124)","v":15200},null,{"$f":"MAX(0,AE121+AE125-AE124)","v":1400},null,null,{"$f":"MAX(0,AH121+AH125-AH124)","v":47430},null,{"$f":"MAX(0,AJ121+AJ125-AJ124)","v":3400},0,null,{"$f":"MAX(0,AM121+AM125-AM124)","v":6724},{"$f":"MAX(0,AN121+AN125-AN124)","v":12571},null,{"$f":"MAX(0,AP121+AP125-AP124)","v":8630},null,null,null,null,null,{"$f":"MAX(0,AV121+AV125-AV124)","v":0},null,null,null,null,null,null,null,null,null,null,null,null,null,{"$f":"MAX(0,BJ121+BJ125-BJ124)","v":0},null,null,null,null,null,null,null,null,null,null,null,null,null,null,5000,null,null,{"$f":"MAX(0,CB121+CB125-CB124)","v":62749},null,{"$f":"MAX(0,CD121+CD125-CD124)","v":87727},null,{"$f":"MAX(0,CF121+CF125-CF124)","v":50949},null,{"$f":"MAX(0,CH121+CH125-CH124)","v":14190},null,null,11580,{"$f":"MAX(0,CL121+CL125-CL124)","v":97003},{"$f":"MAX(0,CM121+CM125-CM124)","v":0},{"$f":"MAX(0,CN121+CN125-CN124)","v":119311},0,35000,null,{"$f":"MAX(0,CR121+CR125-CR124)","v":97003},{"$f":"MAX(0,CS121+CS125-CS124)","v":97003},null,{"$f":"MAX(0,CU121+CU125-CU124)","v":148162},{"$f":"MAX(0,CV121+CV125-CV124)","v":148162},null,null,null,null,null,null,{"$f":"MAX(0,DC121+DC125-DC124)","v":153854},null,null,null,null,null,null,{"$f":"MAX(0,DJ121+DJ125-DJ124)","v":148162},null,null,null,null,null,null,null,null,null,null,null,null,null,null,null,null,{"$f":"MAX(0,EA121+EA125-EA124)","v":13965},null,null,null,null,{"$f":"MAX(0,EF121+EF125-EF124)","v":14023},{"$f":"MAX(0,EG121+EG125-EG124)","v":0},null,{"$f":"MAX(0,EI121+EI125-EI124)","v":56714},null,null,null,{"$f":"MAX(0,EM121+EM125-EM124)","v":97003},null,null,null,null,null,null,{"$f":"MAX(0,ET121+ET125-ET124)","v":2209},null,null,null,null,{"$f":"MAX(0,EY121+EY125-EY124)","v":97003},null,null,null,null,null,null,{"$f":"MAX(0,FF121+FF125-FF124)","v":50949},null,{"$f":"MAX(0,FH121+FH125-FH124)","v":148162},{"$f":"MAX(0,FI121+FI125-FI124)","v":2274},{"$f":"MAX(0,FJ121+FJ125-FJ124)","v":169634},null,null,{"$f":"MAX(0,FM121+FM125-FM124)","v":201584},null,{"$f":"MAX(0,FO121+FO125-FO124)","v":2193},null,null,null,null,null,null,null,null,null,null,null,null,null,null,{"$f":"MAX(0,GD121+GD125-GD124)","v":8952},null,null,null,null,null,{"$f":"MAX(0,GJ121+GJ125-GJ124)","v":49810},null,null,null,null,null,null,null,null,null,null,{"$f":"MAX(0,GU121+GU125-GU124)","v":9920},null,null,{"$f":"MAX(0,GX121+GX125-GX124)","v":0},null,null,null,{"$f":"MAX(0,HB121+HB125-HB124)","v":0},{"$f":"MAX(0,HC121+HC125-HC124)","v":148162},null,null,null,null,null,{"$f":"MAX(0,HI121+HI125-HI124)","v":24756},{"$f":"MAX(0,HJ121+HJ125-HJ124)","v":126384},{"$f":"MAX(0,HK121+HK125-HK124)","v":173250},{"$f":"MAX(0,HL121+HL125-HL124)","v":201924},{"$f":"MAX(0,HM121+HM125-HM124)","v":42500},null,{"$f":"MAX(0,HO121+HO125-HO124)","v":14190},null,null,null,null,null,null,null,{"$f":"MAX(0,HW121+HW125-HW124)","v":26980},null,null,null,null,null,null,null,null,null,null,null,null,null,null,4237,null,null,null,null,null,null,null,null,null,null,null,{"$f":"MAX(0,IX121+IX125-IX124)","v":4112087},{"$f":"MAX(0,IY121+IY125-IY124)","v":50949},null,{"$f":"MAX(0,JA121+JA125-JA124)","v":97003},{"$f":"MAX(0,JB121+JB125-JB124)","v":67942},null,null,null,null,null,{"$f":"MAX(0,JH121+JH125-JH124)","v":6908},null,null,{"$f":"MAX(0,JK121+JK125-JK124)","v":9210},null,null,null,null,null,null,null,"Equal to FSE73 minus FSE74 + FSE75 + FSE75.1"]
[80,"","FSE76.1","Amount claimed under FIG"]
[81,"","FSE77",{"$f":"\"Adjusted loss for \"&tax_year","v":"Adjusted loss for 2025-26"},null,null,null,null,null,null,null,null,null,null,null,null,null,null,null,null,null,null,null,null,null,null,null,null,null,null,null,null,null,null,null,null,null,null,null,null,null,null,null,null,null,null,null,{"$f":"MAX(0,AV117-(AV116+AV118+AV119))","v":12390},null,null,null,null,null,null,null,null,null,null,null,null,null,null,null,null,null,null,null,null,null,null,null,null,null,null,null,null,null,null,null,null,null,null,null,null,null,null,null,null,null,null,10000,null,{"$f":"ABS(CO116-CO117+CO118-CO67)","v":50000},null,null,null,null,null,null,null,null,null,null,null,null,null,null,null,null,null,null,null,null,null,null,null,null,null,null,null,null,130458,null,null,null,null,null,null,null,null,null,null,null,null,null,null,{"$f":"ABS(EG116-EG117+EG118-EG67)","v":5000},null,null,null,null,null,null,null,null,null,null,null,{"$f":"ABS(ES116-ES117+ES118-ES67)","v":115},null,null,null,null,null,null,null,null,null,null,null,null,null,null,null,null,null,null,null,null,null,null,null,null,null,null,null,null,null,null,null,null,null,null,null,null,null,null,null,null,null,null,null,null,null,null,441,null,null,null,null,null,null,null,null,null,{"$f":"MAX(0,GX117-(GX116+GX118+GX119))","v":57763},null,null,null,9010,null,null,null,null,null,null,null,null,null,null,null,null,null,null,null,null,null,null,null,null,null,null,null,null,null,null,null,null,null,null,null,null,null,null,null,null,null,null,null,null,null,null,null,null,null,null,null,null,null,null,null,null,null,null,null,null,null,null,null,null,null,null,null,null,null,null,null,null,"a. If (FSE64 minus FSE65 + FSE68 minus FSE69) is negative, then FSE77 equals the positive equivalent of that sum\nb. if (FSE64 minus FSE65 + FSE68 minus FSE69) is greater than or equal to zero, then FSE77 equals zero or absent","SA Monetary value (2dp) >= 0.00"]
[82,"","FSE77.1","Adjustment to losses as a result of FIG claim"]
[83,"","FSE78",{"$f":"\"Loss from this tax year set off against other income for \"&tax_year","v":"Loss from this tax year set off against other income for 2025-26"},null,null,null,null,null,null,null,null,null,null,null,null,null,null,null,null,null,null,null,null,null,null,null,null,null,null,null,null,null,null,null,null,null,null,null,null,null,null,null,null,null,null,null,12390,null,null,null,null,null,null,null,null,null,null,null,null,null,null,null,null,null,null,null,null,null,null,null,null,null,null,null,null,null,null,null,null,null,null,null,null,null,null,null,null,null,null,10000,null,null,null,null,null,null,null,null,null,null,null,null,null,null,null,null,null,null,null,null,null,null,null,null,null,null,null,null,null,null,null,null,null,null,null,null,null,null,null,null,null,null,null,null,null,null,null,null,null,null,null,null,null,null,null,null,null,115,null,null,null,null,null,null,null,null,null,null,null,null,null,null,null,null,null,null,null,null,null,null,null,null,null,null,null,null,null,null,null,null,null,null,null,null,null,null,null,null,null,null,null,null,null,null,441,null,null,null,null,null,null,null,null,null,57763,null,null,null,9010,null,null,null,null,null,null,null,null,null,null,null,null,null,null,null,null,null,null,null,null,null,null,null,null,null,null,null,null,null,null,null,null,null,null,null,null,null,null,null,null,null,null,null,null,null,null,null,null,null,null,null,null,null,null,null,null,null,null,null,null,null,null,null,null,null,null,null,null,"If present, must be less than or equal to FSE77.\n If FSE10 = 'Y' then FSE78 must be zero or absent.","SA Monetary value (2dp) >= 0.00"]
[84,"","FSE79","Losses carried back to previous year",null,null,null,null,null,null,null,null,null,null,null,null,null,null,null,null,null,null,null,null,null,null,null,null,null,null,null,null,null,null,null,null,null,null,null,null,null,null,null,null,null,null,null,null,null,null,null,null,null,null,null,null,null,null,null,null,null,null,null,null,null,null,null,null,null,null,null,null,null,null,null,null,null,null,null,null,null,null,null,null,null,null,null,null,null,null,null,null,null,null,null,null,null,null,null,null,null,null,null,null,null,null,null,null,null,null,null,null,null,null,null,null,null,null,null,null,null,null,null,null,null,null,null,null,null,null,null,null,null,null,null,null,null,null,null,null,null,null,null,null,null,null,null,null,null,null,null,null,null,null,null,null,null,null,null,null,null,null,null,null,null,null,null,null,null,null,null,null,null,null,null,null,null,null,null,null,null,null,null,null,null,null,null,null,null,null,null,null,null,null,null,null,null,null,null,null,null,null,null,null,null,null,null,null,null,null,null,null,null,null,null,null,null,null,null,null,null,null,null,null,null,null,null,null,null,null,null,null,null,null,null,null,null,null,null,null,null,null,null,null,null,null,null,null,null,null,null,null,null,null,null,null,null,null,null,null,null,null,null,null,null,null,null,null,null,null,null,null,null,null,null,null,null,null,"If present, must be less than or equal to (FSE77 minus FSE78)","SA Monetary value (2dp) > 0.00"]
[85,{"$f":"IF(SE_B_IND>1,IF(HLOOKUP(SE_B_IND-1,FSE_RANGE,A132)=\"\",\"\",HLOOKUP(SE_B_IND-1,FSE_RANGE,A132)),\"\")","v":""},"FSE80","Total loss to carry forward after all other set offs",null,null,null,null,null,null,null,null,null,null,null,null,null,null,null,null,null,null,null,null,null,null,null,null,null,null,null,null,null,null,null,null,null,null,null,null,null,null,null,null,null,null,null,null,null,null,null,null,null,null,null,null,null,null,null,null,null,null,null,null,null,null,null,null,null,null,null,null,null,null,null,null,null,null,null,null,null,null,null,null,null,null,null,null,null,null,null,null,50000,null,null,null,null,null,null,null,null,null,null,null,null,null,null,null,null,null,null,null,null,null,null,null,null,null,null,null,null,179543,null,null,null,null,null,null,null,null,null,null,null,null,null,null,null,null,null,null,null,null,null,null,null,null,null,null,null,null,null,null,null,null,null,null,null,null,null,null,null,null,null,null,null,null,null,null,null,null,null,null,null,null,null,null,null,null,null,null,null,null,null,null,null,null,null,null,null,null,null,null,null,null,null,null,null,null,null,null,null,null,null,null,null,null,null,null,null,null,null,null,null,null,null,null,null,null,null,null,null,null,null,null,null,null,null,null,null,null,null,null,null,null,null,null,null,null,null,null,null,null,null,null,null,null,null,null,null,null,null,null,null,null,1011023,null,39327.129999999997,null,null,null,null,null,null,null,null,null,null,null,null,null,null,null,null,null,null,null,null,null,null,"SA Monetary value (2dp) > 0.00"]
[86,"","FSE81","Deductions made by contractors on account of tax",null,null,null,null,null,null,null,null,null,null,null,null,null,null,null,null,null,null,null,null,null,null,null,null,null,null,null,null,null,null,null,null,null,null,null,null,null,null,null,null,null,null,null,null,null,null,null,null,null,null,null,null,null,null,null,null,null,null,null,null,null,null,null,null,null,null,null,null,null,null,null,null,null,null,null,null,null,null,null,null,null,null,null,null,null,null,null,null,null,null,null,null,null,null,null,null,null,null,null,null,null,null,null,null,null,null,null,null,null,null,null,null,null,null,null,null,null,null,null,null,null,null,null,null,null,null,null,null,null,null,null,null,null,null,12065,null,null,null,null,null,null,null,null,null,null,null,null,null,null,null,null,null,null,null,null,null,null,null,null,null,null,null,null,null,null,null,null,null,null,null,null,null,null,null,null,null,null,null,null,null,null,null,null,null,null,null,null,12065,null,null,null,null,null,null,null,null,null,null,null,null,null,null,null,null,null,null,null,null,null,null,null,null,null,null,null,null,null,null,null,null,null,null,null,null,null,null,null,null,null,null,null,null,null,null,null,null,null,null,null,null,null,null,null,null,null,null,null,null,null,null,null,null,null,null,null,null,null,null,null,null,null,null,null,null,null,null,null,null,null,null,null,null,null,null,null,"SA Monetary value (2dp) > 0.00"]
[87,"","FSE82","Tax deducted from trading income (excluding  CIS25)",null,null,null,null,null,null,null,null,null,null,null,null,null,null,null,null,null,null,null,null,null,null,null,null,null,null,null,null,null,null,null,null,null,null,null,null,null,null,null,null,null,null,null,null,null,null,null,null,null,null,null,null,null,null,null,null,null,null,null,null,null,null,null,null,null,null,null,null,null,null,null,null,null,null,null,null,null,null,null,null,null,null,null,null,null,null,null,null,null,null,null,null,null,null,null,null,null,null,null,null,null,null,null,null,null,null,null,null,null,null,null,null,null,null,null,null,null,null,null,null,null,null,null,null,null,null,null,null,null,null,null,null,null,null,null,null,null,null,null,null,null,null,null,null,null,null,null,null,null,null,null,null,null,null,null,null,null,null,null,null,null,null,null,null,null,null,null,null,null,null,null,null,null,null,null,null,null,null,null,null,null,null,null,null,null,null,null,null,null,null,null,null,null,null,null,null,null,null,null,null,null,null,null,null,null,null,null,null,null,null,null,null,null,null,null,null,null,null,null,null,null,null,null,null,null,null,null,null,null,null,null,null,null,null,null,null,null,null,null,null,null,null,null,null,null,null,null,null,null,null,null,null,null,null,null,null,null,null,null,null,null,null,null,null,null,null,null,null,null,null,null,null,null,null,null,"SA Monetary value (2dp) > 0.00"]
[88,"","FSE83","Plant machinery and motor vehicles",null,null,null,null,null,null,null,null,null,null,null,null,null,null,null,null,null,null,null,null,null,null,null,null,null,null,null,null,null,null,null,null,null,null,null,null,null,null,null,null,null,null,null,null,null,null,null,null,null,null,null,null,null,null,null,null,null,null,null,null,null,null,null,null,null,null,null,null,null,null,null,null,null,null,null,null,null,null,null,null,null,null,null,null,null,23400,null,26321,null,null,null,23400,23400,null,null,null,null,null,null,null,null,null,null,null,null,null,null,null,null,null,null,null,null,null,null,null,null,183112,null,null,null,null,null,null,null,null,null,null,null,null,null,null,null,null,null,null,null,null,23400,null,null,null,null,null,null,6215,null,null,null,null,23400,null,null,null,null,null,null,null,null,null,null,null,null,null,null,null,null,null,null,null,null,null,null,null,null,null,null,null,null,null,null,null,null,null,null,null,null,null,null,null,null,null,null,null,null,null,null,null,null,null,null,null,null,null,null,null,null,null,null,null,null,null,null,null,null,null,null,null,null,null,null,null,null,null,null,null,null,null,null,null,null,null,null,null,null,null,null,null,null,null,null,null,null,null,null,null,null,null,null,null,null,null,null,1698001,null,null,23400,null,null,null,null,null,null,null,null,null,null,null,null,null,null,null,null,null,null,"SA Monetary value (2dp) > 0.00"]
[89,"","FSE84","Other fixed assets",null,null,null,null,null,null,null,null,null,null,null,null,null,null,null,null,null,null,null,null,null,null,null,null,null,null,null,null,null,null,null,null,null,null,null,null,null,null,null,null,null,null,null,null,null,null,null,null,null,null,null,null,null,null,null,null,null,null,null,null,null,null,null,null,null,null,null,null,null,null,null,null,null,null,null,null,null,null,null,null,null,null,null,null,null,269992,null,165164,null,null,null,269992,269992,null,null,null,null,null,null,null,null,null,null,null,null,null,null,null,null,null,null,null,null,null,null,null,null,686094,null,null,null,null,null,null,null,null,null,null,null,null,null,null,null,null,null,null,null,null,269992,null,null,null,null,null,null,362088,null,null,null,null,269992,null,null,null,null,null,null,null,null,null,null,null,null,null,null,null,null,null,null,null,null,null,null,null,null,null,null,null,null,null,null,null,null,null,null,null,null,null,null,null,null,null,null,null,null,null,null,null,null,null,null,null,null,null,null,null,null,null,null,null,null,null,null,null,null,null,null,null,null,null,null,null,null,null,null,null,null,null,null,null,null,null,null,null,null,null,null,null,null,null,null,null,null,null,null,null,null,null,null,null,null,null,null,53010,null,null,269992,null,null,null,null,null,null,null,null,null,null,null,null,null,null,null,null,null,null,"SA Monetary value (2dp) > 0.00"]
[90,"","FSE85","Stock and work in progress",null,null,null,null,null,null,null,null,null,null,null,null,null,null,null,null,null,null,null,null,null,null,null,null,null,null,null,null,null,null,null,null,null,null,null,null,null,null,null,null,null,null,null,null,null,null,null,null,null,null,null,null,null,null,null,null,null,null,null,null,null,null,null,null,null,null,null,null,null,null,null,null,null,null,null,null,null,null,null,null,null,null,null,null,null,6464,null,5212,null,null,null,6464,6464,null,null,null,null,null,null,null,null,null,null,null,null,null,null,null,null,null,null,null,null,null,null,null,null,17505,null,null,null,null,null,null,null,null,5396,null,null,null,null,null,null,null,3250,null,null,null,6464,null,null,null,null,null,null,null,null,null,null,null,6464,null,null,null,null,null,null,null,null,null,null,null,null,null,null,null,null,null,null,null,null,null,null,null,null,null,null,null,null,null,null,null,null,null,null,null,null,3250,null,null,null,null,null,null,null,null,null,null,null,null,null,null,null,null,null,null,null,null,null,null,null,null,null,null,null,null,null,null,null,null,null,null,null,null,null,null,null,null,null,null,null,null,null,null,null,null,null,null,null,null,null,null,null,null,null,null,null,null,null,null,null,null,null,186799,null,null,6464,null,null,null,null,null,null,null,null,null,null,null,null,null,null,null,null,null,null,"SA Monetary value (2dp) > 0.00"]
[91,"","FSE86","Trade debtors",null,null,null,null,null,null,null,null,null,null,null,null,null,null,null,null,null,null,null,null,null,null,null,null,null,null,null,null,null,null,null,null,null,null,null,null,null,null,null,null,null,null,null,null,null,null,null,null,null,null,null,null,null,null,null,null,null,null,null,null,null,null,null,null,null,null,null,null,null,null,null,null,null,null,null,null,null,null,null,null,null,null,null,null,null,2746,null,17853,null,null,null,2746,2746,null,null,null,null,null,null,null,null,null,null,null,null,null,null,null,null,null,null,null,null,null,null,null,null,6851,null,null,null,null,null,null,null,null,12488,null,null,null,null,null,null,null,null,null,null,null,2746,null,null,null,null,null,null,null,null,null,null,null,2746,null,null,null,null,null,null,null,null,null,null,null,null,null,null,null,null,null,null,null,null,null,null,null,null,null,null,null,null,null,null,null,null,null,null,null,null,null,null,null,null,null,null,null,null,null,null,null,null,null,null,null,null,null,null,null,null,null,null,null,null,null,null,null,null,null,null,null,null,null,null,null,null,null,null,null,null,null,null,null,null,null,null,null,null,null,null,null,null,null,null,null,null,null,null,null,null,null,null,null,null,null,null,114014,null,null,2746,null,null,null,null,null,null,null,null,null,null,null,null,null,null,null,null,null,null,"SA Monetary value (2dp) > 0.00"]
[92,"","FSE87","Bank/building society balances",null,null,null,null,null,null,null,null,null,null,null,null,null,null,null,null,null,null,null,null,null,null,null,null,null,null,null,null,null,null,null,null,null,null,null,null,null,null,null,null,null,null,null,null,null,null,null,null,null,null,null,null,null,null,null,null,null,null,null,null,null,null,null,null,null,null,null,null,null,null,null,null,null,null,null,null,null,null,null,null,null,null,null,null,null,72645,null,122595,null,null,null,72645,72645,null,null,null,null,null,null,null,null,null,null,null,null,null,null,null,null,null,null,null,null,null,null,null,null,84713,null,null,null,null,null,null,null,null,131245,null,null,null,null,null,null,null,12591,null,null,null,72645,null,null,null,null,null,null,293906,null,null,null,null,72645,null,null,null,null,null,null,null,null,null,null,null,null,null,null,null,null,null,null,null,null,null,null,null,null,null,null,null,null,null,null,null,null,null,null,null,null,12591,null,null,null,null,null,null,null,null,null,null,null,null,null,null,null,null,null,null,null,null,null,null,null,null,null,null,null,null,null,null,null,null,null,null,null,null,null,null,null,null,null,null,null,null,null,null,null,null,null,null,null,null,null,null,null,null,null,null,null,null,null,null,null,null,null,null,null,null,72645,null,null,null,null,null,null,null,null,null,null,null,null,null,null,null,null,null,null,"SA Monetary value (2dp) > 0.00"]
[93,"","FSE88","Cash in hand",null,null,null,null,null,null,null,null,null,null,null,null,null,null,null,null,null,null,null,null,null,null,null,null,null,null,null,null,null,null,null,null,null,null,null,null,null,null,null,null,null,null,null,null,null,null,null,null,null,null,null,null,null,null,null,null,null,null,null,null,null,null,null,null,null,null,null,null,null,null,null,null,null,null,null,null,null,null,null,null,null,null,null,null,null,2000,null,18,null,null,null,2000,2000,null,null,null,null,null,null,null,null,null,null,null,null,null,null,null,null,null,null,null,null,null,null,null,null,null,null,null,null,null,null,null,null,null,890,null,null,null,null,null,null,null,null,null,null,null,2000,null,null,null,null,null,null,null,null,null,null,null,2000,null,null,null,null,null,null,null,null,null,null,null,null,null,null,null,null,null,null,null,null,null,null,null,null,null,null,null,null,null,null,null,null,null,null,null,null,null,null,null,null,null,null,null,null,null,null,null,null,null,null,null,null,null,null,null,null,null,null,null,null,null,null,null,null,null,null,null,null,null,null,null,null,null,null,null,null,null,null,null,null,null,null,null,null,null,null,null,null,null,null,null,null,null,null,null,null,null,null,null,null,null,null,null,null,null,2000,null,null,null,null,null,null,null,null,null,null,null,null,null,null,null,null,null,null,"SA Monetary value (2dp) > 0.00"]
[94,"","FSE89","Other current assets and prepayments",null,null,null,null,null,null,null,null,null,null,null,null,null,null,null,null,null,null,null,null,null,null,null,null,null,null,null,null,null,null,null,null,null,null,null,null,null,null,null,null,null,null,null,null,null,null,null,null,null,null,null,null,null,null,null,null,null,null,null,null,null,null,null,null,null,null,null,null,null,null,null,null,null,null,null,null,null,null,null,null,null,null,null,null,null,252,null,null,null,null,null,252,252,null,null,null,null,null,null,null,null,null,null,null,null,null,null,null,null,null,null,null,null,null,null,null,null,16149,null,null,null,null,null,null,null,null,null,null,null,null,null,null,null,null,null,null,null,null,252,null,null,null,null,null,null,201,null,null,null,null,252,null,null,null,null,null,null,null,null,null,null,null,null,null,null,null,null,null,null,null,null,null,null,null,null,null,null,null,null,null,null,null,null,null,null,null,null,null,null,null,null,null,null,null,null,null,null,null,null,null,null,null,null,null,null,null,null,null,null,null,null,null,null,null,null,null,null,null,null,null,null,null,null,null,null,null,null,null,null,null,null,null,null,null,null,null,null,null,null,null,null,null,null,null,null,null,null,null,null,null,null,null,null,null,null,null,252,null,null,null,null,null,null,null,null,null,null,null,null,null,null,null,null,null,null,"SA Monetary value (2dp) > 0.00"]
[95,"","FSE90","Total Assets",null,null,null,null,null,null,null,null,null,null,null,null,null,null,null,null,null,null,null,null,null,null,null,null,null,null,null,null,null,null,null,null,null,null,null,null,null,null,null,null,null,null,null,null,null,null,null,null,null,null,null,null,null,null,null,null,null,null,null,null,null,null,null,null,null,null,null,null,null,null,null,null,null,null,null,null,null,null,null,null,null,null,null,null,null,{"$f":"CL135+CL136+CL137+CL138+CL139+CL140+CL141","v":377499},null,{"$f":"CN135+CN136+CN137+CN138+CN139+CN140+CN141","v":337163},null,null,null,{"$f":"CR135+CR136+CR137+CR138+CR139+CR140+CR141","v":377499},{"$f":"CS135+CS136+CS137+CS138+CS139+CS140+CS141","v":377499},null,null,null,null,null,null,null,null,null,null,null,null,null,null,null,null,null,null,null,null,null,null,null,null,994424,null,null,null,null,null,null,null,null,{"$f":"EA135+EA136+EA137+EA138+EA139+EA140+EA141","v":150019},null,null,null,null,null,null,null,{"$f":"EI135+EI136+EI137+EI138+EI139+EI140+EI141","v":15841},null,null,null,{"$f":"EM135+EM136+EM137+EM138+EM139+EM140+EM141","v":377499},null,null,null,null,null,null,{"$f":"ET135+ET136+ET137+ET138+ET139+ET140+ET141","v":662410},null,null,null,null,{"$f":"EY135+EY136+EY137+EY138+EY139+EY140+EY141","v":377499},null,null,null,null,null,null,null,null,null,null,null,null,null,null,null,null,null,null,null,null,null,null,null,null,null,null,null,null,null,null,null,null,null,null,null,null,{"$f":"GJ135+GJ136+GJ137+GJ138+GJ139+GJ140+GJ141","v":15841},null,null,null,null,null,null,null,null,null,null,null,null,null,null,null,null,null,null,null,null,null,null,null,null,null,null,null,null,null,null,null,null,null,null,null,null,null,null,null,null,null,null,null,null,null,null,null,null,null,null,null,null,null,null,null,null,null,null,null,null,null,null,null,null,null,{"$f":"IX135+IX136+IX137+IX138+IX139+IX140+IX141","v":2051824},null,null,{"$f":"JA135+JA136+JA137+JA138+JA139+JA140+JA141","v":377499},null,null,null,null,null,null,null,null,null,null,null,null,null,null,null,null,null,"Equal to FSE83 + FSE84 + FSE85 + FSE86 + FSE87 + FSE88 + FSE89","SA Monetary value (2dp) > 0.00"]
[96,"","FSE91","Trade creditors and accruals",null,null,null,null,null,null,null,null,null,null,null,null,null,null,null,null,null,null,null,null,null,null,null,null,null,null,null,null,null,null,null,null,null,null,null,null,null,null,null,null,null,null,null,null,null,null,null,null,null,null,null,null,null,null,null,null,null,null,null,null,null,null,null,null,null,null,null,null,null,null,null,null,null,null,null,null,null,null,null,null,null,null,null,null,null,14864,null,25754,null,null,null,14864,14864,null,null,null,null,null,null,null,null,null,null,null,null,null,null,null,null,null,null,null,null,null,null,null,null,11146,null,null,null,null,null,null,null,null,25754,null,null,null,null,null,null,null,null,null,null,null,14864,null,null,null,null,null,null,465,null,null,null,null,14864,null,null,null,null,null,null,null,null,null,null,null,null,null,null,null,null,null,null,null,null,null,null,null,null,null,null,null,null,null,null,null,null,null,null,null,null,null,null,null,null,null,null,null,null,null,null,null,null,null,null,null,null,null,null,null,null,null,null,null,null,null,null,null,null,null,null,null,null,null,null,null,null,null,null,null,null,null,null,null,null,null,null,null,null,null,null,null,null,null,null,null,null,null,null,null,null,null,null,null,null,null,null,58257,null,null,14864,null,null,null,null,null,null,null,null,null,null,null,null,null,null,null,null,null,null,"SA Monetary value (2dp) > 0.00"]
[97,"","FSE92","Loans and overdrawn bank accounts",null,null,null,null,null,null,null,null,null,null,null,null,null,null,null,null,null,null,null,null,null,null,null,null,null,null,null,null,null,null,null,null,null,null,null,null,null,null,null,null,null,null,null,null,null,null,null,null,null,null,null,null,null,null,null,null,null,null,null,null,null,null,null,null,null,null,null,null,null,null,null,null,null,null,null,null,null,null,null,null,null,null,null,null,null,93551,null,null,null,null,null,93551,93551,null,null,null,null,null,null,null,null,null,null,null,null,null,null,null,null,null,null,null,null,null,null,null,null,null,null,null,null,null,null,null,null,null,null,null,null,null,null,null,null,null,null,null,null,null,93551,null,null,null,null,null,null,null,null,null,null,null,93551,null,null,null,null,null,null,null,null,null,null,null,null,null,null,null,null,null,null,null,null,null,null,null,null,null,null,null,null,null,null,null,null,null,null,null,null,null,null,null,null,null,null,null,null,null,null,null,null,null,null,null,null,null,null,null,null,null,null,null,null,null,null,null,null,null,null,null,null,null,null,null,null,null,null,null,null,null,null,null,null,null,null,null,null,null,null,null,null,null,null,null,null,null,null,null,null,null,null,null,null,null,null,74484,null,null,93551,null,null,null,null,null,null,null,null,null,null,null,null,null,null,null,null,null," ","SA Monetary value (2dp) > 0.00"]
[98,"","FSE93","Other liabilities",null,null,null,null,null,null,null,null,null,null,null,null,null,null,null,null,null,null,null,null,null,null,null,null,null,null,null,null,null,null,null,null,null,null,null,null,null,null,null,null,null,null,null,null,null,null,null,null,null,null,null,null,null,null,null,null,null,null,null,null,null,null,null,null,null,null,null,null,null,null,null,null,null,null,null,null,null,null,null,null,null,null,null,null,null,108416,null,null,null,null,null,108416,108416,null,null,null,null,null,null,null,null,null,null,null,null,null,null,null,null,null,null,null,null,null,null,null,null,612,null,null,null,null,null,null,null,null,null,null,null,null,null,null,null,null,null,null,null,null,108416,null,null,null,null,null,null,null,null,null,null,null,108416,null,null,null,null,null,null,null,null,null,null,null,null,null,null,null,null,null,null,null,null,null,null,null,null,null,null,null,null,null,null,null,null,null,null,null,null,null,null,null,null,null,null,null,null,null,null,null,null,null,null,null,null,null,null,null,null,null,null,null,null,null,null,null,null,null,null,null,null,null,null,null,null,null,null,null,null,null,null,null,null,null,null,null,null,null,null,null,null,null,null,null,null,null,null,null,null,null,null,null,null,null,null,22856,null,null,108416,null,null,null,null,null,null,null,null,null,null,null,null,null,null,null,null,null,null,"SA Monetary value (2dp) > 0.00"]
[99,"","FSE94","Net Business Assets",null,null,null,null,null,null,null,null,null,null,null,null,null,null,null,null,null,null,null,null,null,null,null,null,null,null,null,null,null,null,null,null,null,null,null,null,null,null,null,null,null,null,null,null,null,null,null,null,null,null,null,null,null,null,null,null,null,null,null,null,null,null,null,null,null,null,null,null,null,null,null,null,null,null,null,null,null,null,null,null,null,null,null,null,null,{"$f":"CL142-(CL143+CL144+CL145)","v":160668},null,{"$f":"CN142-(CN143+CN144+CN145)","v":311409},null,null,null,{"$f":"CR142-(CR143+CR144+CR145)","v":160668},{"$f":"CS142-(CS143+CS144+CS145)","v":160668},null,null,null,null,null,null,null,null,null,null,null,null,null,null,null,null,null,null,null,null,null,null,null,null,982666,null,null,null,null,null,null,null,null,{"$f":"EA142-(EA143+EA144+EA145)","v":124265},null,null,null,null,null,null,null,{"$f":"EI142-(EI143+EI144+EI145)","v":15841},null,null,null,{"$f":"EM142-(EM143+EM144+EM145)","v":160668},null,null,null,null,null,null,{"$f":"ET142-(ET143+ET144+ET145)","v":661945},null,null,null,null,{"$f":"EY142-(EY143+EY144+EY145)","v":160668},null,null,null,null,null,null,null,null,null,null,null,null,null,null,null,null,null,null,null,null,null,null,null,null,null,null,null,null,null,null,null,null,null,null,null,null,{"$f":"GJ142-(GJ143+GJ144+GJ145)","v":15841},null,null,null,null,null,null,null,null,null,null,null,null,null,null,null,null,null,null,null,null,null,null,null,null,null,null,null,null,null,null,null,null,null,null,null,null,null,null,null,null,null,null,null,null,null,null,null,null,null,null,null,null,null,null,null,null,null,null,null,null,null,null,null,null,null,1896227,null,null,{"$f":"JA142-(JA143+JA144+JA145)","v":160668},null,null,null,null,null,null,null,null,null,null,null,null,null,null,null,null,null,"Equal to FSE90 minus (FSE91 + FSE92 + FSE93)","SA Monetary value (2dp)"]
[100,"","FSE95","Balance at start of period",null,null,2600,null,2600,null,null,2600,null,null,null,null,2600,null,2600,null,null,null,null,null,null,null,null,null,2600,null,null,null,null,null,null,null,null,null,null,null,null,null,null,null,null,null,null,null,null,null,null,null,null,null,null,null,null,null,null,null,null,null,null,null,null,null,null,null,null,null,null,null,null,null,null,null,5000,null,null,-76900,null,118969,null,-76900,null,2600,null,null,null,132680,null,278767,null,null,null,132680,132680,null,15000,15000,null,null,null,null,null,null,15000,null,null,null,null,null,null,15000,null,null,null,null,null,null,null,901567,null,null,null,null,null,null,null,null,278767,null,null,null,null,-12908,3782,null,2403,null,null,null,132680,null,null,null,null,null,null,null,null,null,null,null,132680,null,null,null,null,null,null,-76900,null,15000,null,null,null,null,null,null,null,null,null,null,null,null,null,null,null,null,null,null,null,null,null,null,null,null,null,null,null,2403,null,null,null,null,null,null,null,null,null,null,null,null,null,null,null,null,null,null,15000,null,null,null,null,null,null,null,null,null,null,null,2600,null,null,null,null,null,null,null,null,null,null,null,null,null,null,null,null,null,null,null,null,null,null,null,null,null,null,null,null,null,null,null,null,null,null,1955506,-76900,null,132680,null,null,null,null,null,null,null,null,null,null,null,null,null,null,null,null,null,null,"SA Monetary value (2dp) except 0.00"]
[101,"","FSE96","Net profit or loss (box 47 or box 48)",null,null,{"$f":"IF(G98>0,G98,(-1*G99))","v":15200},null,{"$f":"IF(I98>0,I98,(-1*I99))","v":16285},null,null,{"$f":"IF(L98>0,L98,(-1*L99))","v":14900},null,null,null,null,{"$f":"IF(Q98>0,Q98,(-1*Q99))","v":14900},null,{"$f":"IF(S98>0,S98,(-1*S99))","v":17560},null,null,null,null,null,null,null,{"$f":"IF(AA98>0,AA98,(-1*AA99))","v":8864},null,{"$f":"IF(AC98>0,AC98,(-1*AC99))","v":14900},null,null,null,null,null,null,{"$f":"IF(AJ98>0,AJ98,(-1*AJ99))","v":3400},null,null,null,null,null,null,null,null,null,null,null,{"$f":"IF(AV98>0,AV98,(-1*AV99))","v":-5001},null,null,null,null,null,null,null,null,null,null,null,null,null,{"$f":"IF(BJ98>0,BJ98,(-1*BJ99))","v":0},null,null,null,null,null,null,null,null,null,null,null,null,null,null,{"$f":"IF(BY98>0,BY98,(-1*BY99))","v":5000},null,null,{"$f":"IF(CB98>0,CB98,(-1*CB99))","v":1393695},null,{"$f":"IF(CD98>0,CD98,(-1*CD99))","v":118969},null,{"$f":"IF(CF98>0,CF98,(-1*CF99))","v":54299},null,{"$f":"IF(CH98>0,CH98,(-1*CH99))","v":14900},null,null,{"$f":"IF(CK98>0,CK98,(-1*CK99))","v":11580},98672,-10000,76882,-10533,35000,null,{"$f":"IF(CR98>0,CR98,(-1*CR99))","v":98672},{"$f":"IF(CS98>0,CS98,(-1*CS99))","v":98672},null,{"$f":"IF(CU98>0,CU98,(-1*CU99))","v":139838},{"$f":"IF(CV98>0,CV98,(-1*CV99))","v":139838},null,null,null,null,null,null,{"$f":"IF(DC98>0,DC98,(-1*DC99))","v":139838},null,null,null,null,null,null,{"$f":"IF(DJ98>0,DJ98,(-1*DJ99))","v":139838},null,null,null,null,null,null,null,41461,null,null,null,null,null,null,null,null,{"$f":"IF(EA98>0,EA98,(-1*EA99))","v":13483},null,null,null,null,{"$f":"IF(EF98>0,EF98,(-1*EF99))","v":20023},{"$f":"IF(EG98>0,EG98,(-1*EG99))","v":-5000},null,{"$f":"IF(EI98>0,EI98,(-1*EI99))","v":57188},null,null,null,{"$f":"IF(EM98>0,EM98,(-1*EM99))","v":98672},null,null,null,null,null,null,{"$f":"IF(ET98>0,ET98,(-1*ET99))","v":2671},null,null,null,null,{"$f":"IF(EY98>0,EY98,(-1*EY99))","v":98672},null,null,null,null,null,null,{"$f":"IF(FF98>0,FF98,(-1*FF99))","v":54299},null,{"$f":"IF(FH98>0,FH98,(-1*FH99))","v":139838},null,null,null,null,null,null,null,null,null,null,null,null,null,null,null,null,null,null,null,null,null,{"$f":"IF(GD98>0,GD98,(-1*GD99))","v":8952},null,null,null,null,null,{"$f":"IF(GJ98>0,GJ98,(-1*GJ99))","v":49810},null,null,null,{"$f":"IF(GN98>0,GN98,(-1*GN99))","v":6875},null,null,null,null,null,null,{"$f":"IF(GU98>0,GU98,(-1*GU99))","v":9920},null,null,{"$f":"IF(GX98>0,GX98,(-1*GX99))","v":-52763},null,null,null,{"$f":"IF(HB98>0,HB98,(-1*HB99))","v":-5001},{"$f":"IF(HC98>0,HC98,(-1*HC99))","v":139838},null,null,null,null,null,null,null,null,null,null,null,{"$f":"IF(HO98>0,HO98,(-1*HO99))","v":14900},null,null,null,null,null,null,null,{"$f":"IF(HW98>0,HW98,(-1*HW99))","v":26980},null,null,null,null,null,null,null,null,null,null,null,null,null,null,{"$f":"IF(IL98>0,IL98,(-1*IL99))","v":4237},null,null,null,null,null,null,null,null,null,null,null,{"$f":"IF(IX98>0,IX98,(-1*IX99))","v":4111067},{"$f":"IF(IY98>0,IY98,(-1*IY99))","v":54299},null,{"$f":"IF(JA98>0,JA98,(-1*JA99))","v":98672},null,null,null,null,null,null,null,null,null,null,null,null,null,null,null,null,null,"If FSE96 is present, FSE96 = FSE47, if FSE47 is greater than or equal to 0 (and FSE48 is absent or zero), \nelse FSE96 = ‘negative equivalent of’ FSE48 if FSE48 is greater than or equal 0 (and FSE47 is absent or zero). ","SA Monetary value (2dp)"]
[102,"","FSE97","Capital introduced",null,null,null,null,null,null,null,null,null,null,null,null,null,null,null,null,null,null,null,null,null,null,null,null,null,null,null,null,null,null,null,null,null,null,null,null,null,null,null,null,null,null,null,null,null,null,null,null,null,null,null,null,null,null,null,null,null,null,null,null,null,null,null,null,null,null,null,null,null,null,null,null,null,null,null,null,null,null,null,null,null,null,null,null,null,null,null,null,null,null,null,null,null,null,null,null,null,null,null,null,null,null,null,null,null,null,null,null,null,null,null,null,null,null,null,null,null,122560,null,null,null,null,null,null,null,null,null,null,null,null,null,null,1000,null,null,null,null,null,null,null,null,null,null,null,null,null,null,null,null,null,null,null,null,null,null,null,null,null,null,null,null,null,null,null,null,null,null,null,null,null,null,null,null,null,null,null,null,null,null,null,null,null,null,null,null,null,null,null,null,null,null,null,null,null,null,null,null,null,null,null,null,null,null,null,null,null,null,null,null,null,null,null,null,null,null,null,null,null,null,null,null,null,null,null,null,null,null,null,null,null,null,null,null,null,null,null,null,null,null,null,null,null,null,null,null,null,null,null,null,null,null,null,null,46459,null,null,null,null,null,null,null,null,null,null,null,null,null,null,null,null,null,null,null,null,null,"SA Monetary value (2dp) > 0.00"]
[103,"","FSE98","Drawings",null,null,null,null,null,null,null,null,null,null,null,null,null,null,null,null,null,null,null,null,null,null,null,null,null,null,null,null,null,null,null,null,null,null,null,null,null,null,null,null,null,null,null,null,null,null,null,null,null,null,null,null,null,null,null,null,null,null,null,null,null,null,null,null,null,null,null,null,null,null,null,null,null,null,null,null,null,null,null,null,null,null,null,null,null,71605,null,41240,null,null,null,71605,71605,null,null,null,null,null,null,null,null,null,null,null,null,null,null,null,null,null,null,null,null,null,null,null,null,null,null,null,null,null,null,null,null,null,41240,null,null,null,null,null,null,null,56750,null,null,null,71605,null,null,null,null,null,null,null,null,null,null,null,71605,null,null,null,null,null,null,null,null,null,null,null,null,null,null,null,null,null,null,null,null,null,null,null,null,null,null,null,null,null,null,null,null,null,null,null,null,56750,null,null,null,null,null,null,null,null,null,null,null,null,null,null,null,null,null,null,null,null,null,null,null,null,null,null,null,null,null,null,null,null,null,null,null,null,null,null,null,null,null,null,null,null,null,null,null,null,null,null,null,null,null,null,null,null,null,null,null,null,null,null,null,null,null,166805,null,null,71605,null,null,null,null,null,null,null,null,null,null,null,null,null,null,null,null,null,null,"SA Monetary value (2dp) > 0.00"]
[104,"","FSE99","Capital Account - Balance At End of Period",null,null,{"$f":"G147+G148+G149-G150","v":17800},null,{"$f":"I147+I148+I149-I150","v":18885},null,null,{"$f":"L147+L148+L149-L150","v":17500},null,null,null,null,{"$f":"Q147+Q148+Q149-Q150","v":17500},null,{"$f":"S147+S148+S149-S150","v":20160},null,null,null,null,null,null,null,{"$f":"AA147+AA148+AA149-AA150","v":8864},null,{"$f":"AC147+AC148+AC149-AC150","v":17500},null,null,null,null,null,null,{"$f":"AJ147+AJ148+AJ149-AJ150","v":3400},null,null,null,null,null,null,null,null,null,null,null,{"$f":"AV147+AV148+AV149-AV150","v":-5001},null,null,null,null,null,null,null,null,null,null,null,null,null,null,null,null,null,null,null,null,null,null,null,null,null,null,null,null,{"$f":"BY147+BY148+BY149-BY150","v":10000},null,null,{"$f":"CB147+CB148+CB149-CB150","v":1316795},null,{"$f":"CD147+CD148+CD149-CD150","v":237938},null,{"$f":"CF147+CF148+CF149-CF150","v":-22601},null,{"$f":"CH147+CH148+CH149-CH150","v":17500},null,null,{"$f":"CK147+CK148+CK149-CK150","v":11580},{"$f":"CL147+CL148+CL149-CL150","v":159747},{"$f":"CM147+CM148+CM149-CM150","v":-10000},{"$f":"CN147+CN148+CN149-CN150","v":314409},{"$f":"CO147+CO148+CO149-CO150","v":-10533},35000,null,{"$f":"CR147+CR148+CR149-CR150","v":159747},{"$f":"CS147+CS148+CS149-CS150","v":159747},null,{"$f":"CU147+CU148+CU149-CU150","v":154838},{"$f":"CV147+CV148+CV149-CV150","v":154838},null,null,null,null,null,null,{"$f":"DC147+DC148+DC149-DC150","v":154838},null,null,null,null,null,null,{"$f":"DJ147+DJ148+DJ149-DJ150","v":154838},null,null,null,null,null,null,null,982666,null,null,null,null,null,null,null,null,{"$f":"EA147+EA148+EA149-EA150","v":251010},null,null,null,null,{"$f":"EF147+EF148+EF149-EF150","v":7115},{"$f":"EG147+EG148+EG149-EG150","v":-218},null,{"$f":"EI147+EI148+EI149-EI150","v":2841},null,null,null,{"$f":"EM147+EM148+EM149-EM150","v":159747},null,null,null,null,null,null,{"$f":"ET147+ET148+ET149-ET150","v":2671},null,null,null,null,{"$f":"EY147+EY148+EY149-EY150","v":159747},null,null,null,null,null,null,{"$f":"FF147+FF148+FF149-FF150","v":-22601},null,{"$f":"FH147+FH148+FH149-FH150","v":154838},null,null,null,null,null,null,null,null,null,null,null,null,null,null,null,null,null,null,null,null,null,{"$f":"GD147+GD148+GD149-GD150","v":8952},null,null,null,null,null,{"$f":"GJ147+GJ148+GJ149-GJ150","v":-4537},null,null,null,{"$f":"GN147+GN148+GN149-GN150","v":6875},null,null,null,null,null,null,{"$f":"GU147+GU148+GU149-GU150","v":9920},null,null,{"$f":"GX147+GX148+GX149-GX150","v":-52763},null,null,null,{"$f":"HB147+HB148+HB149-HB150","v":-5001},{"$f":"HC147+HC148+HC149-HC150","v":154838},null,null,null,null,null,null,null,null,null,null,null,{"$f":"HO147+HO148+HO149-HO150","v":17500},null,null,null,null,null,null,null,{"$f":"HW147+HW148+HW149-HW150","v":26980},null,null,null,null,null,null,null,null,null,null,null,null,null,null,{"$f":"IL147+IL148+IL149-IL150","v":4237},null,null,null,null,null,null,null,null,null,null,null,{"$f":"IX147+IX148+IX149-IX150","v":5946227},{"$f":"IY147+IY148+IY149-IY150","v":-22601},null,{"$f":"JA147+JA148+JA149-JA150","v":159747},null,null,null,null,null,null,null,null,null,null,null,null,null,null,null,null,null,"Equal to FSE95 + FSE96 + FSE97 minus FSE98","SA Monetary value (2dp)"]
[105,{"$f":"IF(SE_B_IND>1,IF(HLOOKUP(SE_B_IND-1,FSE_RANGE,A152)=\"\",\"\",HLOOKUP(SE_B_IND-1,FSE_RANGE,A152)),\"\")","v":""},"FSE100",{"$f":"\"If your total profits for \"&tax_year&\" are less than \"&DOLLAR(NIC2_SPT,0)&\" and you choose to pay Class 2 NICs voluntarily, put 'X' in the box\"","v":"If your total profits for 2025-26 are less than £6,845 and you choose to pay Class 2 NICs voluntarily, put 'X' in the box"},null,null,{"$f":"IF(SE_B_IND>1,IF(SE_A_IND>1,\"\",IF(LUN_IND>1,\"\",IF(PS_A_IND>1,\"\",IF(PS_B_IND>1,\"\",IF(AND(G126<NIC2_SPT,NIC2_Vol,NIC_ex_set=FALSE),\"Y\",\"N\"))))),\"\")","v":""},null,{"$f":"IF(SE_B_IND>1,IF(SE_A_IND>1,\"\",IF(LUN_IND>1,\"\",IF(PS_A_IND>1,\"\",IF(PS_B_IND>1,\"\",IF(AND(I126<NIC2_SPT,NIC2_Vol,NIC_ex_set=FALSE),\"Y\",\"N\"))))),\"\")","v":""},null,null,{"$f":"IF(SE_B_IND>1,IF(SE_A_IND>1,\"\",IF(LUN_IND>1,\"\",IF(PS_A_IND>1,\"\",IF(PS_B_IND>1,\"\",IF(AND(L126<NIC2_SPT,NIC2_Vol,NIC_ex_set=FALSE),\"Y\",\"N\"))))),\"\")","v":""},null,null,null,null,{"$f":"IF(SE_B_IND>1,IF(SE_A_IND>1,\"\",IF(LUN_IND>1,\"\",IF(PS_A_IND>1,\"\",IF(PS_B_IND>1,\"\",IF(AND(Q126<NIC2_SPT,NIC2_Vol,NIC_ex_set=FALSE),\"Y\",\"N\"))))),\"\")","v":""},null,{"$f":"IF(SE_B_IND>1,IF(SE_A_IND>1,\"\",IF(LUN_IND>1,\"\",IF(PS_A_IND>1,\"\",IF(PS_B_IND>1,\"\",IF(AND(S126<NIC2_SPT,NIC2_Vol,NIC_ex_set=FALSE),\"Y\",\"N\"))))),\"\")","v":""},null,null,null,null,null,null,null,{"$f":"IF(SE_B_IND>1,IF(SE_A_IND>1,\"\",IF(LUN_IND>1,\"\",IF(PS_A_IND>1,\"\",IF(PS_B_IND>1,\"\",IF(AND(AA126<NIC2_SPT,NIC2_Vol,NIC_ex_set=FALSE),\"Y\",\"N\"))))),\"\")","v":""},null,{"$f":"IF(SE_B_IND>1,IF(SE_A_IND>1,\"\",IF(LUN_IND>1,\"\",IF(PS_A_IND>1,\"\",IF(PS_B_IND>1,\"\",IF(AND(AC126<NIC2_SPT,NIC2_Vol,NIC_ex_set=FALSE),\"Y\",\"N\"))))),\"\")","v":""},null,null,null,null,null,null,{"$f":"IF(SE_B_IND>1,IF(SE_A_IND>1,\"\",IF(LUN_IND>1,\"\",IF(PS_A_IND>1,\"\",IF(PS_B_IND>1,\"\",IF(AND(AJ126<NIC2_SPT,NIC2_Vol,NIC_ex_set=FALSE),\"Y\",\"N\"))))),\"\")","v":""},null,{"$f":"IF(SE_B_IND>1,IF(SE_A_IND>1,\"\",IF(LUN_IND>1,\"\",IF(PS_A_IND>1,\"\",IF(PS_B_IND>1,\"\",IF(AND(AL126<NIC2_SPT,NIC2_Vol,NIC_ex_set=FALSE),\"Y\",\"N\"))))),\"\")","v":""},"Y",null,null,null,null,null,null,null,null,{"$f":"IF(SE_B_IND>1,IF(SE_A_IND>1,\"\",IF(LUN_IND>1,\"\",IF(PS_A_IND>1,\"\",IF(PS_B_IND>1,\"\",IF(AND(AV126<NIC2_SPT,NIC2_Vol,NIC_ex_set=FALSE),\"Y\",\"N\"))))),\"\")","v":""},null,null,null,null,null,null,null,null,null,null,null,null,null,{"$f":"IF(SE_B_IND>1,IF(SE_A_IND>1,\"\",IF(LUN_IND>1,\"\",IF(PS_A_IND>1,\"\",IF(PS_B_IND>1,\"\",IF(AND(BJ126<NIC2_SPT,NIC2_Vol,NIC_ex_set=FALSE),\"Y\",\"N\"))))),\"\")","v":""},null,null,null,null,null,null,null,null,null,null,null,null,null,null,null,null,null,{"$f":"IF(SE_B_IND>1,IF(SE_A_IND>1,\"\",IF(LUN_IND>1,\"\",IF(PS_A_IND>1,\"\",IF(PS_B_IND>1,\"\",IF(AND(CB126<NIC2_SPT,NIC2_Vol,NIC_ex_set=FALSE),\"Y\",\"N\"))))),\"\")","v":""},null,null,null,null,null,null,null,null,null,null,null,null,null,null,null,null,null,null,null,null,null,null,null,null,null,null,null,null,null,null,null,null,null,null,null,null,null,null,null,null,null,"Y",null,null,null,null,null,null,null,null,null,null,null,null,null,null,"Y",null,null,null,null,null,null,null,null,null,null,null,null,null,null,null,null,null,null,null,null,null,null,null,null,null,null,null,"Y",null,null,null,null,null,null,null,null,null,null,null,null,null,null,null,null,null,null,null,null,null,null,null,null,null,null,"N",null,null,null,"Y",null,null,null,null,null,null,"N",null,null,"N",null,null,null,null,"N",null,null,null,null,null,null,null,null,null,null,null,"N",null,null,null,null,null,null,null,"N",null,null,null,null,null,null,null,null,null,null,null,null,null,null,null,null,null,null,null,null,null,null,null,null,null,null,null,null,null,"N",null,null,null,null,null,null,null,null,null,null,null,null,null,null,null,null,null,null,"\"yes\""]
[106,"","FSE101","If you are excepted from paying Class 4 NICs, put ‘X’ in the box",null,null,{"$f":"IF(SE_B_IND>1,IF(SE_A_IND>1,\"\",IF(NIC_ex_set,\"Y\",\"N\")),\"\")","v":""},null,{"$f":"IF(SE_B_IND>1,IF(SE_A_IND>1,\"\",IF(NIC_ex_set,\"Y\",\"N\")),\"\")","v":""},null,null,"Y",null,null,null,null,{"$f":"IF(SE_B_IND>1,IF(SE_A_IND>1,\"\",IF(NIC_ex_set,\"Y\",\"N\")),\"\")","v":""},null,{"$f":"IF(SE_B_IND>1,IF(SE_A_IND>1,\"\",IF(NIC_ex_set,\"Y\",\"N\")),\"\")","v":""},null,null,null,null,null,null,null,{"$f":"IF(SE_B_IND>1,IF(SE_A_IND>1,\"\",IF(NIC_ex_set,\"Y\",\"N\")),\"\")","v":""},null,{"$f":"IF(SE_B_IND>1,IF(SE_A_IND>1,\"\",IF(NIC_ex_set,\"Y\",\"N\")),\"\")","v":""},null,null,null,null,null,null,{"$f":"IF(SE_B_IND>1,IF(SE_A_IND>1,\"\",IF(NIC_ex_set,\"Y\",\"N\")),\"\")","v":""},null,{"$f":"IF(SE_B_IND>1,IF(SE_A_IND>1,\"\",IF(NIC_ex_set,\"Y\",\"N\")),\"\")","v":""},"N","Y",null,null,null,null,null,null,null,{"$f":"IF(SE_B_IND>1,IF(SE_A_IND>1,\"\",IF(NIC_ex_set,\"Y\",\"N\")),\"\")","v":""},null,null,null,null,null,null,null,null,null,null,null,null,null,{"$f":"IF(SE_B_IND>1,IF(SE_A_IND>1,\"\",IF(NIC_ex_set,\"Y\",\"N\")),\"\")","v":""},null,null,null,null,null,null,null,null,null,null,null,null,null,null,"Y",null,null,{"$f":"IF(SE_B_IND>1,IF(SE_A_IND>1,\"\",IF(NIC_ex_set,\"Y\",\"N\")),\"\")","v":""},null,"Y",null,"Y",null,"Y",null,null,"Y",null,"Y","Y",null,null,null,null,null,null,null,null,null,null,null,null,null,null,null,null,null,null,null,null,null,null,null,null,null,null,null,null,null,null,null,null,null,null,null,null,null,null,null,null,null,null,null,null,null,null,"Y",null,null,null,null,null,null,null,null,null,"Y","Y",null,null,null,null,null,null,null,null,null,null,null,null,null,null,null,null,null,null,null,null,null,null,null,null,null,null,null,null,null,null,null,null,null,null,null,null,null,null,null,null,null,"Y",null,null,null,null,null,null,null,null,null,null,"Y",null,null,"N",null,null,null,null,"N",null,null,null,null,null,null,null,null,null,"Y",null,"N",null,null,null,null,null,null,null,"N",null,null,null,null,null,null,null,null,null,null,null,null,null,null,null,null,null,null,null,null,null,null,null,null,null,null,null,"N",null,"N",null,null,null,null,null,null,null,null,null,null,null,null,null,null,null,null,null,null,"\"yes\""]
[107,{"$f":"IF(SE_B_IND>1,IF(HLOOKUP(SE_B_IND-1,FSE_RANGE,A154)=\"\",\"\",HLOOKUP(SE_B_IND-1,FSE_RANGE,A154)),\"\")","v":""},"FSE102","Adjustment to profits chargeable to Class 4 NICs",null,null,null,null,null,null,null,null,null,null,null,null,null,null,null,null,null,null,null,null,null,null,null,null,null,null,null,null,null,null,null,null,null,null,null,null,null,null,null,null,null,null,null,null,null,null,null,null,null,null,null,null,null,null,null,null,null,null,null,null,null,null,null,null,null,null,null,null,null,null,null,null,null,null,null,null,null,null,null,null,null,null,null,null,null,null,null,null,null,null,null,null,null,null,{"$f":"CU119","v":15200},{"$f":"CV119","v":15200},null,null,null,null,null,null,{"$f":"DC119","v":15200},null,null,null,null,null,null,{"$f":"DJ119","v":15200},null,null,null,null,null,null,null,null,null,null,null,null,null,null,null,null,null,null,null,null,null,null,null,null,null,null,null,null,null,null,null,null,null,null,null,null,null,null,null,null,null,null,null,null,null,null,null,null,null,{"$f":"FH119","v":15200},null,null,null,null,null,null,null,null,null,null,null,null,null,null,null,null,null,null,null,null,null,null,null,null,null,null,null,null,null,null,null,null,null,null,null,null,null,null,null,null,null,null,null,null,null,null,{"$f":"HC119","v":15200},null,null,null,null,null,null,null,null,null,null,null,null,null,null,null,null,null,null,null,null,null,null,null,null,null,null,null,null,null,null,null,null,null,null,null,null,null,null,null,null,null,null,null,null,null,null,null,null,null,null,null,null,null,null,null,null,null,null,null,null,null,null,null,null,null,null,null,"If FSE101 is 'Y', FSE102 must be zero or absent","SA Monetary value (2dp) > 0.00"]
[108,{"$f":"IF(SE_B_IND>1,IF(HLOOKUP(SE_B_IND-1,FSE_RANGE,A155)=\"\",\"\",HLOOKUP(SE_B_IND-1,FSE_RANGE,A155)),\"\")","v":""},"FSE103","Please give any other information in this space",null,null,null,null,null,null,null,null,null,null,null,null,null,null,null,null,null,null,null,null,null,null,null,null,null,null,null,null,null,null,null,null,null,null,null,null,null,null,null,null,null,null,null,null,null,null,null,null,null,null,null,null,null,null,null,null,null,null,null,null,null,null,null,null,null,null,null,null,null,null,null,null,null,null,null,null,null,null,null,null,null,null,null,null,null,null,null,null,null,null,null,null,null,null,null,null,null,null,null,null,null,null,null,null,null,null,null,null,null,null,null,null,null,null,null,null,null,null,null,null,null,null,null,null,null,null,null,null,null,null,null,null,null,null,null,null,null,null,null,null,null,null,null,null,null,null,null,null,null,null,null,null,null,null,null,null,null,null,null,null,null,null,null,null,null,null,null,null,null,null,null,null,null,null,null,null,null,null,null,null,null,null,null,null,null,null,null,null,null,null,null,null,null,null,null,null,null,null,null,null,null,null,null,null,null,null,null,null,null,null,null,null,null,null,null,null,null,null,null,null,null,null,null,null,null,null,null,null,null,null,null,null,null,null,null,null,null,null,null,null,null,null,null,null,null,null,null,null,null,null,null,null,null,null,null,null,null,null,null,null,null,null,null,null,null,null,null,null,null,null,null,null,null,null,null,"SA non-empty string"]
[]
["row",{"$f":"\"selected \"&LUN_IND-1","v":"selected 0"},"LUN",null,1,2,3,4,5,6,7,8,9,10,11,12,13,14,15,16,17,18,19,20,21,22,23,24,25,26,27,28,29,30,31,32,33,34,35,36,37,38,39,40,41,42,43,44,45,46,47,48,49,50,51,52,53,53,55,56,57,58,59,60,61,62,63,64,65,66,67,68,69,70,71,72,73,74,75,76,77,78,79,80,81,82,83,84,85,86,87,88,89,90,91,92,93,94,95,96,97,98,99,100,101,102,103,104,105,106,107,108,109,110,111,112,113,114,115,116,117,118,119,120,121,122,123,124,125,126,127,128,129,130,131,132,133,134,135,136,137,138,139,140,141,142,143,144,145,146,147,148,149,150,151,152,153,154,155,156,157,158,159,160,161,162,163,164,165,166,167,168,169,170,171,172,173,174,175,176,177,178,179,180,181,182,183,184,185,186,187,188,189,190,191,192,193,194,195,196,197,198,199,200,201,202,203,204,205,206,207,208,209,210,211,212,213,214,215,216,217,218,219,220,221,222,223,224,225,226,227,228,229,230,231,232,233,234,235,236,237,238,239,240,241,242,243,244,245,246,247,248,249,250,251,252,253,254,255,256,257,258,259,260,261,262,263,264,265,266,267,268,269,270,271,272,273,null," Validation","Type"]
[2,{"$f":"IF(LUN_IND>1,IF(HLOOKUP(LUN_IND-1,LUN_RANGE,A158)=\"\",\"\",HLOOKUP(LUN_IND-1,LUN_RANGE,A158)),\"\")","v":""},"LUN1","Interest on gilts and from UK banks or building societies",null,null,null,null,null,null,null,null,null,null,null,null,null,null,null,null,null,null,null,null,null,null,null,null,null,null,null,null,null,null,null,null,null,null,null,null,null,null,null,null,null,null,null,null,null,null,null,null,null,null,null,null,null,null,null,null,null,null,null,null,null,null,null,null,null,null,null,null,null,null,null,null,null,null,null,null,null,null,null,null,null,null,null,null,null,null,null,null,null,null,null,null,null,null,null,null,null,null,null,null,null,null,null,null,null,null,null,null,null,null,null,null,null,null,null,null,null,null,null,null,null,null,null,null,null,null,null,null,null,null,null,null,null,null,null,null,null,null,null,null,null,null,24240,1152,665,1749,780,623,266,6375,195,9516,null,null,null,null,null,null,null,null,null,null,null,null,null,null,null,null,null,null,null,null,null,null,null,null,null,null,null,null,null,null,null,null,null,null,null,null,null,null,null,null,null,null,null,null,null,null,null,null,null,null,null,null,null,null,null,null,null,null,null,null,null,null,null,null,null,null,null,null,null,null,null,null,null,null,null,null,null,null,null,null,null,null,null,null,null,null,null,null,null,null,null,null,null,null,null,null,null,null,null,null,null,null,213,null,null,null,null,null,null,null,null,null,null,null,null,null,null,null,null,null,null,null,null,"SA Monetary value (2dp) >= 0.00"]
[3,"","LUN2","Profits from Accrued Income Scheme and deeply discounted securities",null,null,null,null,null,null,null,null,null,null,null,null,null,null,null,null,null,null,null,null,null,null,null,null,null,null,null,null,null,null,null,null,null,null,null,null,null,null,null,null,null,null,null,null,null,null,null,null,null,null,null,null,null,null,null,null,null,null,null,null,null,null,null,null,null,null,null,null,null,null,null,null,null,null,null,null,null,null,null,null,null,null,null,null,null,null,null,null,null,null,null,null,null,null,null,null,null,null,null,null,null,null,null,null,null,null,null,null,null,null,null,null,null,null,null,null,null,null,null,null,null,null,null,null,null,null,null,null,null,null,null,null,null,null,null,null,null,null,null,null,null,null,null,null,null,null,null,null,null,null,null,null,null,null,null,null,null,null,null,null,null,null,null,null,null,null,null,null,null,null,null,null,null,null,null,null,null,null,null,null,null,null,null,null,null,null,null,null,null,null,null,null,null,null,null,null,null,null,null,null,null,null,null,null,null,null,null,null,null,null,null,null,null,null,null,null,null,null,null,null,null,null,null,null,null,null,null,null,null,null,null,null,null,null,null,null,null,null,null,null,null,null,null,null,null,null,null,null,null,null,null,null,null,null,null,null,null,null,null,null,null,null,null,null,null,null,null,null,null,null,null,null,null,null,null,"SA Monetary value (2dp) >= 0.00"]
[4,"","LUN3","Interest from UK banks, building societies, unit trusts etc. and any other income from UK savings and investments – after tax taken off",null,null,null,null,null,null,null,null,null,null,null,null,null,null,null,null,null,null,null,null,null,null,null,null,null,null,null,null,null,null,null,null,null,null,null,null,null,null,null,null,null,null,null,null,null,null,null,null,null,null,null,null,null,null,null,null,null,null,null,null,null,null,null,null,null,null,null,null,null,null,null,null,null,null,null,null,null,null,null,null,null,null,null,null,null,null,null,null,null,null,null,null,null,null,null,null,null,null,null,null,null,null,null,null,null,null,null,null,null,null,null,null,null,null,null,null,null,null,null,null,null,null,null,null,null,null,null,null,null,null,null,null,null,null,null,null,null,null,null,null,null,null,null,null,null,null,null,null,596,1895,338,null,null,null,null,null,null,null,null,null,null,null,null,null,null,null,null,null,null,null,null,null,null,null,null,null,null,null,null,null,null,null,null,null,null,null,null,null,null,null,null,null,null,null,null,null,null,null,null,null,null,null,null,null,null,null,null,null,null,null,null,null,null,null,null,null,null,null,null,null,null,null,null,null,null,null,null,null,null,null,null,null,null,null,null,null,null,null,null,null,null,null,null,null,null,null,null,null,null,null,null,null,null,null,328,null,null,null,null,null,null,null,null,null,null,null,null,null,null,null,null,null,null,null,null,"SA Monetary value (2dp) >= 0.00"]
[5,"","LUN4","Tax taken off",null,null,null,null,null,null,null,null,null,null,null,null,null,null,null,null,null,null,null,null,null,null,null,null,null,null,null,null,null,null,null,null,null,null,null,null,null,null,null,null,null,null,null,null,null,null,null,null,null,null,null,null,null,null,null,null,null,null,null,null,null,null,null,null,null,null,null,null,null,null,null,null,null,null,null,null,null,null,null,null,null,null,null,null,null,null,null,null,null,null,null,null,null,null,null,null,null,null,null,null,null,null,null,null,null,null,null,null,null,null,null,null,null,null,null,null,null,null,null,null,null,null,null,null,null,null,null,null,null,null,null,null,null,null,null,null,null,null,null,null,null,null,null,null,null,null,null,null,{"$f":"TRUNC((EW160*savings_gross*BR_rate)+0.99,0)","v":149},null,{"$f":"TRUNC((EY160*savings_gross*BR_rate)+0.99,0)","v":85},null,null,null,null,null,null,null,null,null,null,null,null,null,null,null,null,null,null,null,null,null,null,null,null,null,null,null,null,null,null,null,null,null,null,null,null,null,null,null,null,null,null,null,null,null,null,null,null,null,null,null,null,null,null,null,null,null,null,null,null,null,null,null,null,null,null,null,null,null,null,null,null,null,null,null,null,null,null,null,null,null,null,null,null,null,null,null,null,null,null,null,null,null,null,null,null,null,null,null,null,null,null,null,{"$f":"TRUNC((IY160*savings_gross*BR_rate)+0.99,0)","v":82},null,null,null,null,null,null,null,null,null,null,null,null,null,null,null,null,null,null,null,"If present, must be less than LUN3","SA Monetary value (2dp) >= 0.00"]
[6,"","LUN5","Total UK interest and tax taken off (total of boxes 1 to 4)",null,null,null,null,null,null,null,null,null,null,null,null,null,null,null,null,null,null,null,null,null,null,null,null,null,null,null,null,null,null,null,null,null,null,null,null,null,null,null,null,null,null,null,null,null,null,null,null,null,null,null,null,null,null,null,null,null,null,null,null,null,null,null,null,null,null,null,null,null,null,null,null,null,null,null,null,null,null,null,null,null,null,null,null,null,null,null,null,null,null,null,null,null,null,null,null,null,null,null,null,null,null,null,null,null,null,null,null,null,null,null,null,null,null,null,null,null,null,null,null,null,null,null,null,null,null,null,null,null,null,null,null,null,null,null,null,null,null,null,null,null,null,{"$f":"EQ158+EQ159+EQ160+EQ161","v":24240},1152,665,1749,780,623,1011,8270,618,9516,null,null,null,null,null,null,null,null,null,null,null,null,null,null,null,null,null,null,null,null,null,null,null,null,null,null,null,null,null,null,null,null,null,null,null,null,null,null,null,null,null,null,null,null,null,null,null,null,null,null,null,null,null,null,null,null,null,null,null,null,null,null,null,null,null,null,null,null,null,null,null,null,null,null,null,null,null,null,null,null,null,null,null,null,null,null,null,null,null,null,null,null,null,null,null,null,null,null,null,null,null,null,{"$f":"IY158+IY159+IY160+IY161","v":623},null,null,null,null,null,null,null,null,null,null,null,null,null,null,null,null,null,null,null,"Equal to LUN1 + LUN2 + LUN3 + LUN4","SA Monetary value (2dp) >= 0.00"]
[7,"","LUN6","Stock dividends from UK companies – the amount of dividend received",null,null,null,null,null,null,null,null,null,null,null,null,null,null,null,null,null,null,null,null,null,null,null,null,null,null,null,null,null,null,null,null,null,null,null,null,null,null,null,null,null,null,null,null,null,null,null,null,null,null,null,null,null,null,null,null,null,null,null,null,null,null,null,null,null,null,null,null,null,null,null,null,null,null,null,null,null,null,null,null,null,null,null,null,null,null,null,null,null,null,null,null,null,null,null,null,null,null,null,null,null,null,null,null,null,null,null,null,null,null,null,null,null,null,null,null,null,null,null,null,null,null,null,null,null,null,null,null,null,null,null,null,null,null,null,null,null,null,null,null,null,null,17039,4040,null,null,null,null,2986,null,null,null,null,null,null,null,null,null,null,null,null,null,null,null,null,null,null,null,null,null,null,null,null,null,null,null,null,null,null,null,null,null,null,null,null,null,null,null,null,null,null,null,null,null,null,null,null,null,null,null,null,null,null,null,null,null,null,null,null,null,null,null,null,null,null,null,null,null,null,null,null,null,null,null,null,null,null,null,null,null,null,null,null,null,null,null,null,null,null,null,null,null,null,null,null,null,null,null,null,null,null,null,null,null,null,null,null,null,null,null,null,null,null,null,null,null,null,null,null,null,null,null,null,null,null,"SA Monetary value (2dp) > 0.00"]
[8,"","LUN8","Non-qualifying distributions – the amount received",null,null,null,null,null,null,null,null,null,null,null,null,null,null,null,null,null,null,null,null,null,null,null,null,null,null,null,null,null,null,null,null,null,null,null,null,null,null,null,null,null,null,null,null,null,null,null,null,null,null,null,null,null,null,null,null,null,null,null,null,null,null,null,null,null,null,null,null,null,null,null,null,null,null,null,null,null,null,null,null,null,null,null,null,null,null,null,null,null,null,null,null,null,null,null,null,null,null,null,null,null,null,null,null,null,null,null,null,null,null,null,null,null,null,null,null,null,null,null,null,null,null,null,null,null,null,null,null,null,null,null,null,null,null,null,null,null,null,null,null,null,null,null,null,null,null,null,null,670,null,null,null,null,null,null,null,null,null,null,null,null,null,null,null,null,null,null,null,null,null,null,null,null,null,null,null,null,null,null,null,null,null,null,null,null,null,null,null,null,null,null,null,null,null,null,null,null,null,null,null,null,null,null,null,null,null,null,null,null,null,null,null,null,null,null,null,null,null,null,null,null,null,null,null,null,null,null,null,null,null,null,null,null,null,null,null,null,null,null,null,null,null,null,null,null,null,null,null,null,null,null,null,null,null,null,null,null,null,null,null,null,null,null,null,null,null,null,null,null,null,null,null,null,null,null,"SA Monetary value (2dp) > 0.00"]
[9,"","LUN9","Other dividends and qualifying distributions from UK companies – the amount received (Property Income Distributions (PIDs) go in box 3 above)",null,null,null,null,null,null,null,null,null,null,null,null,null,null,null,null,null,null,null,null,null,null,null,null,null,null,null,null,null,null,null,null,null,null,null,null,null,null,null,null,null,null,null,null,null,null,null,null,null,null,null,null,null,null,null,null,null,null,null,null,null,null,null,null,null,null,null,null,null,null,null,null,null,null,null,null,null,null,null,null,null,null,null,null,null,null,null,null,null,null,null,null,null,null,null,null,null,null,null,null,null,null,null,null,null,null,null,null,null,null,null,null,null,null,null,null,null,null,null,null,null,null,null,null,null,null,null,null,null,null,null,null,null,null,null,null,null,null,null,null,null,null,null,2458,null,null,1123,null,null,8022,678,1192,null,null,null,null,null,null,null,null,null,null,null,null,null,null,null,null,null,null,null,null,null,null,null,null,null,null,null,null,null,null,null,null,null,null,null,null,null,null,null,null,null,null,null,null,null,null,null,null,null,null,null,null,null,null,null,null,null,null,null,null,null,null,null,null,null,null,null,null,null,null,null,null,null,null,null,null,null,null,null,null,null,null,null,null,null,null,null,null,null,null,null,null,null,null,null,null,null,null,null,null,null,null,null,null,null,null,null,null,null,null,null,null,null,null,null,null,null,null,null,null,null,null,null,"SA Monetary value (2dp) > 0.00"]
[10,"","LUN11","Total UK company dividends and distributions (total of boxes 6 to 10)",null,null,null,null,null,null,null,null,null,null,null,null,null,null,null,null,null,null,null,null,null,null,null,null,null,null,null,null,null,null,null,null,null,null,null,null,null,null,null,null,null,null,null,null,null,null,null,null,null,null,null,null,null,null,null,null,null,null,null,null,null,null,null,null,null,null,null,null,null,null,null,null,null,null,null,null,null,null,null,null,null,null,null,null,null,null,null,null,null,null,null,null,null,null,null,null,null,null,null,null,null,null,null,null,null,null,null,null,null,null,null,null,null,null,null,null,null,null,null,null,null,null,null,null,null,null,null,null,null,null,null,null,null,null,null,null,null,null,null,null,null,null,{"$f":"EQ163+EQ164+EQ165","v":17039},{"$f":"ER163+ER164+ER165","v":6498},null,null,1123,null,{"$f":"EW163+EW164+EW165","v":3656},8022,678,1192,null,null,null,null,null,null,null,null,null,null,null,null,null,null,null,null,null,null,null,null,null,null,null,null,null,null,null,null,null,null,null,null,null,null,null,null,null,null,null,null,null,null,null,null,null,null,null,null,null,null,null,null,null,null,null,null,null,null,null,null,null,null,null,null,null,null,null,null,null,null,null,null,null,null,null,null,null,null,null,null,null,null,null,null,null,null,null,null,null,null,null,null,null,null,null,null,null,null,null,null,null,null,null,null,null,null,null,null,null,null,null,null,null,null,null,null,null,null,null,null,null,null,"Equal to LUN6 + LUN8 + LUN9","SA Monetary value (2dp) >= 0.00"]
[11,"","LUN12","Net amount received",null,null,null,null,null,null,null,null,null,null,null,null,null,null,null,null,null,null,null,null,null,null,null,null,null,null,null,null,null,null,null,null,null,null,null,null,null,null,null,null,null,null,null,null,null,null,null,null,null,null,null,null,null,null,null,null,null,null,null,null,null,null,null,null,null,null,null,null,null,null,null,null,null,null,null,null,null,null,null,null,null,null,null,null,null,null,null,null,null,null,null,null,null,null,null,null,null,null,null,null,null,null,null,null,null,null,null,null,null,null,null,null,null,null,null,null,null,null,null,null,null,null,null,null,null,null,null,null,null,null,null,null,null,null,null,null,null,null,null,null,null,null,null,null,null,null,null,null,866,null,null,null,null,null,null,null,null,null,null,null,null,null,null,null,null,null,null,null,null,null,null,null,null,null,null,null,null,null,null,null,null,null,null,null,null,null,null,null,null,null,null,null,null,null,null,null,null,null,null,null,null,null,null,null,null,null,null,null,null,null,null,null,null,null,null,null,null,null,null,null,null,null,null,null,null,null,null,null,null,null,null,null,null,null,null,null,null,null,null,null,null,null,null,null,null,null,null,null,null,null,null,null,null,null,171,null,null,null,null,null,null,null,null,null,null,null,null,null,null,null,null,null,null,null,null,"SA Monetary value (2dp) >= 0.00"]
[12,"","LUN13","Amount of foreign tax taken off",null,null,null,null,null,null,null,null,null,null,null,null,null,null,null,null,null,null,null,null,null,null,null,null,null,null,null,null,null,null,null,null,null,null,null,null,null,null,null,null,null,null,null,null,null,null,null,null,null,null,null,null,null,null,null,null,null,null,null,null,null,null,null,null,null,null,null,null,null,null,null,null,null,null,null,null,null,null,null,null,null,null,null,null,null,null,null,null,null,null,null,null,null,null,null,null,null,null,null,null,null,null,null,null,null,null,null,null,null,null,null,null,null,null,null,null,null,null,null,null,null,null,null,null,null,null,null,null,null,null,null,null,null,null,null,null,null,null,null,null,null,null,null,null,null,null,null,null,233,null,null,null,null,null,null,null,null,null,null,null,null,null,null,null,null,null,null,null,null,null,null,null,null,null,null,null,null,null,null,null,null,null,null,null,null,null,null,null,null,null,null,null,null,null,null,null,null,null,null,null,null,null,null,null,null,null,null,null,null,null,null,null,null,null,null,null,null,null,null,null,null,null,null,null,null,null,null,null,null,null,null,null,null,null,null,null,null,null,null,null,null,null,null,null,null,null,null,null,null,null,null,null,null,null,null,null,null,null,null,null,null,null,null,null,null,null,null,null,null,null,null,null,null,null,null,"SA Monetary value (2dp) >= 0.00"]
[13,"","LUN14","Amount of UK tax taken off",null,null,null,null,null,null,null,null,null,null,null,null,null,null,null,null,null,null,null,null,null,null,null,null,null,null,null,null,null,null,null,null,null,null,null,null,null,null,null,null,null,null,null,null,null,null,null,null,null,null,null,null,null,null,null,null,null,null,null,null,null,null,null,null,null,null,null,null,null,null,null,null,null,null,null,null,null,null,null,null,null,null,null,null,null,null,null,null,null,null,null,null,null,null,null,null,null,null,null,null,null,null,null,null,null,null,null,null,null,null,null,null,null,null,null,null,null,null,null,null,null,null,null,null,null,null,null,null,null,null,null,null,null,null,null,null,null,null,null,null,null,null,null,null,null,null,null,null,103,null,null,null,null,null,null,null,null,null,null,null,null,null,null,null,null,null,null,null,null,null,null,null,null,null,null,null,null,null,null,null,null,null,null,null,null,null,null,null,null,null,null,null,null,null,null,null,null,null,null,null,null,null,null,null,null,null,null,null,null,null,null,null,null,null,null,null,null,null,null,null,null,null,null,null,null,null,null,null,null,null,null,null,null,null,null,null,null,null,null,null,null,null,null,null,null,null,null,null,null,null,null,null,null,null,49,null,null,null,null,null,null,null,null,null,null,null,null,null,null,null,null,null,null,null,null,"SA Monetary value (2dp) >= 0.00"]
[14,"","LUN15","Amount received including dividend tax credit",null,null,null,null,null,null,null,null,null,null,null,null,null,null,null,null,null,null,null,null,null,null,null,null,null,null,null,null,null,null,null,null,null,null,null,null,null,null,null,null,null,null,null,null,null,null,null,null,null,null,null,null,null,null,null,null,null,null,null,null,null,null,null,null,null,null,null,null,null,null,null,null,null,null,null,null,null,null,null,null,null,null,null,null,null,null,null,null,null,null,null,null,null,null,null,null,null,null,null,null,null,null,null,null,null,null,null,null,null,null,null,null,null,null,null,null,null,null,null,null,null,null,null,null,null,null,null,null,null,null,null,null,null,null,null,null,null,null,null,null,null,null,null,null,null,null,null,null,405,18501,678,484,null,null,null,null,null,null,null,null,null,null,null,null,null,null,null,null,null,null,null,null,null,null,null,null,null,null,null,null,null,null,null,null,null,null,null,null,null,null,null,null,null,null,null,null,null,null,null,null,null,null,null,null,null,null,null,null,null,null,null,null,null,null,null,null,null,null,null,null,null,null,null,null,null,null,null,null,null,null,null,null,null,null,null,null,null,null,null,null,null,null,null,null,null,null,null,null,null,null,null,null,null,null,293,null,null,null,null,null,null,null,null,null,null,null,null,null,null,null,null,null,null,null,null,"SA Monetary value (2dp) >= 0.00"]
[15,"","LUN16","Amount of foreign tax taken off",null,null,null,null,null,null,null,null,null,null,null,null,null,null,null,null,null,null,null,null,null,null,null,null,null,null,null,null,null,null,null,null,null,null,null,null,null,null,null,null,null,null,null,null,null,null,null,null,null,null,null,null,null,null,null,null,null,null,null,null,null,null,null,null,null,null,null,null,null,null,null,null,null,null,null,null,null,null,null,null,null,null,null,null,null,null,null,null,null,null,null,null,null,null,null,null,null,null,null,null,null,null,null,null,null,null,null,null,null,null,null,null,null,null,null,null,null,null,null,null,null,null,null,null,null,null,null,null,null,null,null,null,null,null,null,null,null,null,null,null,null,null,null,null,null,null,null,null,null,3593,76,null,null,null,null,null,null,null,null,null,null,null,null,null,null,null,null,null,null,null,null,null,null,null,null,null,null,null,null,null,null,null,null,null,null,null,null,null,null,null,null,null,null,null,null,null,null,null,null,null,null,null,null,null,null,null,null,null,null,null,null,null,null,null,null,null,null,null,null,null,null,null,null,null,null,null,null,null,null,null,null,null,null,null,null,null,null,null,null,null,null,null,null,null,null,null,null,null,null,null,null,null,null,null,22,null,null,null,null,null,null,null,null,null,null,null,null,null,null,null,null,null,null,null,null,"SA Monetary value (2dp) >= 0.00"]
[16,"","LUN17","Amount of UK tax taken off",null,null,null,null,null,null,null,null,null,null,null,null,null,null,null,null,null,null,null,null,null,null,null,null,null,null,null,null,null,null,null,null,null,null,null,null,null,null,null,null,null,null,null,null,null,null,null,null,null,null,null,null,null,null,null,null,null,null,null,null,null,null,null,null,null,null,null,null,null,null,null,null,null,null,null,null,null,null,null,null,null,null,null,null,null,null,null,null,null,null,null,null,null,null,null,null,null,null,null,null,null,null,null,null,null,null,null,null,null,null,null,null,null,null,null,null,null,null,null,null,null,null,null,null,null,null,null,null,null,null,null,null,null,null,null,null,null,null,null,null,null,null,null,null,null,null,null,null,101,null,null,null,null,null,null,null,null,null,null,null,null,null,null,null,null,null,null,null,null,null,null,null,null,null,null,null,null,null,null,null,null,null,null,null,null,null,null,null,null,null,null,null,null,null,null,null,null,null,null,null,null,null,null,null,null,null,null,null,null,null,null,null,null,null,null,null,null,null,null,null,null,null,null,null,null,null,null,null,null,null,null,null,null,null,null,null,null,null,null,null,null,null,null,null,null,null,null,null,null,null,null,null,null,null,35,null,null,null,null,null,null,null,null,null,null,null,null,null,null,null,null,null,null,null,null,"SA Monetary value (2dp) >= 0.00"]
[17,"","LUN18","Total non-UK income (total of boxes 12 to 17)",null,null,null,null,null,null,null,null,null,null,null,null,null,null,null,null,null,null,null,null,null,null,null,null,null,null,null,null,null,null,null,null,null,null,null,null,null,null,null,null,null,null,null,null,null,null,null,null,null,null,null,null,null,null,null,null,null,null,null,null,null,null,null,null,null,null,null,null,null,null,null,null,null,null,null,null,null,null,null,null,null,null,null,null,null,null,null,null,null,null,null,null,null,null,null,null,null,null,null,null,null,null,null,null,null,null,null,null,null,null,null,null,null,null,null,null,null,null,null,null,null,null,null,null,null,null,null,null,null,null,null,null,null,null,null,null,null,null,null,null,null,null,null,null,null,null,null,null,{"$f":"EW167+EW168+EW169+EW170+EW171+EW172","v":1708},22094,754,484,null,null,null,null,null,null,null,null,null,null,null,null,null,null,null,null,null,null,null,null,null,null,null,null,null,null,null,null,null,null,null,null,null,null,null,null,null,null,null,null,null,null,null,null,null,null,null,null,null,null,null,null,null,null,null,null,null,null,null,null,null,null,null,null,null,null,null,null,null,null,null,null,null,null,null,null,null,null,null,null,null,null,null,null,null,null,null,null,null,null,null,null,null,null,null,null,null,null,null,null,null,null,{"$f":"IY167+IY168+IY169+IY170+IY171+IY172","v":570},null,null,null,null,null,null,null,null,null,null,null,null,null,null,null,null,null,null,null,"Equal to LUN12 + LUN13 + LUN14 + LUN15 + LUN16 + LUN17","SA Monetary value (2dp) >= 0.00"]
[18,"","LUN20","Aggregate syndicate profits",null,null,null,null,null,null,null,null,null,null,null,null,null,null,null,null,null,null,null,null,null,null,null,null,null,null,null,null,null,null,null,null,null,null,null,null,null,null,null,null,null,null,null,null,null,null,null,null,null,null,null,null,null,null,null,null,null,null,null,null,null,null,null,null,null,null,null,null,null,null,null,null,null,null,null,null,null,null,null,null,null,null,null,null,null,null,null,null,null,null,null,null,null,null,null,null,null,null,null,null,null,null,null,null,null,null,null,null,null,null,null,null,null,null,null,null,null,null,null,null,null,null,null,null,null,null,null,null,null,null,null,null,null,null,null,null,null,null,null,null,null,null,20183,4448,670,4,12733,93118,null,null,19463,61864,null,null,null,null,null,null,null,null,null,null,null,null,null,null,null,null,null,null,null,null,null,null,null,null,null,null,null,null,null,null,null,null,null,null,null,null,null,null,null,null,null,null,null,null,null,null,null,null,null,null,null,null,null,null,null,null,null,null,null,null,null,null,null,null,null,null,null,null,null,null,null,null,null,null,null,null,null,null,null,null,null,null,null,null,null,null,null,null,null,null,null,null,null,null,null,null,null,null,null,null,null,null,null,null,null,null,null,null,null,null,null,null,null,null,null,null,null,null,null,null,null,null,null,"SA Monetary value (2dp) > 0.00"]
[19,"","LUN21","Net withdrawal/release from Special Reserve Fund",null,null,null,null,null,null,null,null,null,null,null,null,null,null,null,null,null,null,null,null,null,null,null,null,null,null,null,null,null,null,null,null,null,null,null,null,null,null,null,null,null,null,null,null,null,null,null,null,null,null,null,null,null,null,null,null,null,null,null,null,null,null,null,null,null,null,null,null,null,null,null,null,null,null,null,null,null,null,null,null,null,null,null,null,null,null,null,null,null,null,null,null,null,null,null,null,null,null,null,null,null,null,null,null,null,null,null,null,null,null,null,null,null,null,null,null,null,null,null,null,null,null,null,null,null,null,null,null,null,null,null,null,null,null,null,null,null,null,null,null,null,null,null,null,null,61,null,null,null,45057.58,null,null,null,null,null,null,null,null,null,null,null,null,null,null,null,null,null,null,null,null,null,null,null,null,null,null,null,null,null,null,null,null,null,null,null,null,null,null,null,null,null,null,null,null,null,null,null,null,null,null,null,null,null,null,null,null,null,null,null,null,null,null,null,null,null,null,null,null,null,null,null,null,null,null,null,null,null,null,null,null,null,null,null,null,null,null,null,null,null,null,null,null,null,null,null,null,null,null,null,null,null,null,null,null,null,null,null,null,null,null,null,null,null,null,null,null,null,null,null,null,null,null,null,null,null,"SA Monetary value (2dp) > 0.00"]
[20,"","LUN22","Stop loss recoveries",null,null,null,null,null,null,null,null,null,null,null,null,null,null,null,null,null,null,null,null,null,null,null,null,null,null,null,null,null,null,null,null,null,null,null,null,null,null,null,null,null,null,null,null,null,null,null,null,null,null,null,null,null,null,null,null,null,null,null,null,null,null,null,null,null,null,null,null,null,null,null,null,null,null,null,null,null,null,null,null,null,null,null,null,null,null,null,null,null,null,null,null,null,null,null,null,null,null,null,null,null,null,null,null,null,null,null,null,null,null,null,null,null,null,null,null,null,null,null,null,null,null,null,null,null,null,null,null,null,null,null,null,null,null,null,null,null,null,null,null,null,null,null,null,null,null,null,null,null,null,945,null,null,null,null,null,null,null,null,null,null,null,null,null,null,null,null,null,null,null,null,null,null,null,null,null,null,null,null,null,null,null,null,null,null,null,null,null,null,null,null,null,null,null,null,null,null,null,null,null,null,null,null,null,null,null,null,null,null,null,null,null,null,null,null,null,null,null,null,null,null,null,null,null,null,null,null,null,null,null,null,null,null,null,null,null,null,null,null,null,null,null,null,null,null,null,null,null,null,null,null,null,null,null,null,null,null,null,null,null,null,null,null,null,null,null,null,null,null,null,null,null,null,null,null,"SA Monetary value (2dp) > 0.00"]
[21,"","LUN23","Compensation receipts",null,null,null,null,null,null,null,null,null,null,null,null,null,null,null,null,null,null,null,null,null,null,null,null,null,null,null,null,null,null,null,null,null,null,null,null,null,null,null,null,null,null,null,null,null,null,null,null,null,null,null,null,null,null,null,null,null,null,null,null,null,null,null,null,null,null,null,null,null,null,null,null,null,null,null,null,null,null,null,null,null,null,null,null,null,null,null,null,null,null,null,null,null,null,null,null,null,null,null,null,null,null,null,null,null,null,null,null,null,null,null,null,null,null,null,null,null,null,null,null,null,null,null,null,null,null,null,null,null,null,null,null,null,null,null,null,null,null,null,null,null,null,null,null,null,null,null,null,null,null,null,null,null,null,null,null,null,null,null,null,null,null,null,null,null,null,null,null,null,null,null,null,null,null,null,null,null,null,null,null,null,null,null,null,null,null,null,null,null,null,null,null,null,null,null,null,null,null,null,null,null,null,null,null,null,null,null,null,null,null,null,null,null,null,null,null,null,null,null,null,null,null,null,null,null,null,null,null,null,null,null,null,null,null,null,null,null,null,null,null,null,null,null,null,null,null,null,null,null,null,null,null,null,null,521,null,null,null,null,null,null,null,null,null,null,null,null,null,null,null,null,null,null,null,null,"SA Monetary value (2dp) > 0.00"]
[22,"","LUN24","Repayments of foreign tax previously allowed by deduction",null,null,null,null,null,null,null,null,null,null,null,null,null,null,null,null,null,null,null,null,null,null,null,null,null,null,null,null,null,null,null,null,null,null,null,null,null,null,null,null,null,null,null,null,null,null,null,null,null,null,null,null,null,null,null,null,null,null,null,null,null,null,null,null,null,null,null,null,null,null,null,null,null,null,null,null,null,null,null,null,null,null,null,null,null,null,null,null,null,null,null,null,null,null,null,null,null,null,null,null,null,null,null,null,null,null,null,null,null,null,null,null,null,null,null,null,null,null,null,null,null,null,null,null,null,null,null,null,null,null,null,null,null,null,null,null,null,null,null,null,null,null,null,null,null,null,null,null,null,null,null,null,null,null,null,null,null,null,null,null,null,null,null,null,null,null,null,null,null,null,null,null,null,null,null,null,null,null,null,null,null,null,null,null,null,null,null,null,null,null,null,null,null,null,null,null,null,null,null,null,null,null,null,null,null,null,null,null,null,null,null,null,null,null,null,null,null,null,null,null,null,null,null,null,null,null,null,null,null,null,null,null,null,null,null,null,null,null,null,null,null,null,null,null,null,null,null,null,null,null,null,null,null,null,null,null,null,null,null,null,null,null,null,null,null,null,null,null,null,null,null,null,null,null,null,"SA Monetary value (2dp) > 0.00"]
[23,"","LUN25","Other Lloyd’s non-syndicate income",null,null,null,null,null,null,null,null,null,null,null,null,null,null,null,null,null,null,null,null,null,null,null,null,null,null,null,null,null,null,null,null,null,null,null,null,null,null,null,null,null,null,null,null,null,null,null,null,null,null,null,null,null,null,null,null,null,null,null,null,null,null,null,null,null,null,null,null,null,null,null,null,null,null,null,null,null,null,null,null,null,null,null,null,null,null,null,null,null,null,null,null,null,null,null,null,null,null,null,null,null,null,null,null,null,null,null,null,null,null,null,null,null,null,null,null,null,null,null,null,null,null,null,null,null,null,null,null,null,null,null,null,null,null,null,null,null,null,null,null,null,null,943,382,null,404,495,1044,null,5424,null,853,null,null,null,null,null,null,null,null,null,null,null,null,null,null,null,null,null,null,null,null,null,null,null,null,null,null,null,null,null,null,null,null,null,null,null,null,null,null,null,null,null,null,null,null,null,null,null,null,null,null,null,null,null,null,null,null,null,null,null,null,null,null,null,null,null,null,null,null,null,null,null,null,null,null,null,null,null,null,null,null,null,null,null,null,null,null,null,null,null,null,null,null,null,null,null,null,null,null,null,null,null,null,null,null,null,null,null,null,null,null,null,null,null,null,null,null,null,null,null,null,null,null,null,"SA Monetary value (2dp) > 0.00"]
[24,"","LUN26","Total of other Lloyd’s receipts (total of boxes 20 to 25)",null,null,null,null,null,null,null,null,null,null,null,null,null,null,null,null,null,null,null,null,null,null,null,null,null,null,null,null,null,null,null,null,null,null,null,null,null,null,null,null,null,null,null,null,null,null,null,null,null,null,null,null,null,null,null,null,null,null,null,null,null,null,null,null,null,null,null,null,null,null,null,null,null,null,null,null,null,null,null,null,null,null,null,null,null,null,null,null,null,null,null,null,null,null,null,null,null,null,null,null,null,null,null,null,null,null,null,null,null,null,null,null,null,null,null,null,null,null,null,null,null,null,null,null,null,null,null,null,null,null,null,null,null,null,null,null,null,null,null,null,null,null,{"$f":"EQ174+EQ175+EQ176+EQ177+EQ178+EQ179","v":21126},4830,670,469,13228,94162,null,{"$f":"EX174+EX175+EX176+EX177+EX178+EX179","v":50481.58},{"$f":"EY174+EY175+EY176+EY177+EY178+EY179","v":20408},{"$f":"EZ174+EZ175+EZ176+EZ177+EZ178+EZ179","v":62717},null,null,null,null,null,null,null,null,null,null,null,null,null,null,null,null,null,null,null,null,null,null,null,null,null,null,null,null,null,null,null,null,null,null,null,null,null,null,null,null,null,null,null,null,null,null,null,null,null,null,null,null,null,null,null,null,null,null,null,null,null,null,null,null,null,null,null,null,null,null,null,null,null,null,null,null,null,null,null,null,null,null,null,null,null,null,null,null,null,null,null,null,null,null,null,null,null,null,null,null,null,null,{"$f":"IY174+IY175+IY176+IY177+IY178+IY179","v":521},null,null,null,null,null,null,null,null,null,null,null,null,null,null,null,null,null,null,null,"Equal to LUN20 + LUN21 + LUN22 + LUN23 + LUN24 + LUN25","SA Monetary value (2dp) > 0.00"]
[25,"","LUN27","Total Lloyd’s income (box 5 + box 11 + box 18 + box 26)",null,null,null,null,null,null,null,null,null,null,null,null,null,null,null,null,null,null,null,null,null,null,null,null,null,null,null,null,null,null,null,null,null,null,null,null,null,null,null,null,null,null,null,null,null,null,null,null,null,null,null,null,null,null,null,null,null,null,null,null,null,null,null,null,null,null,null,null,null,null,null,null,null,null,null,null,null,null,null,null,null,null,null,null,null,null,null,null,null,null,null,null,null,null,null,null,null,null,null,null,null,null,null,null,null,null,null,null,null,null,null,null,null,null,null,null,null,null,null,null,null,null,null,null,null,null,null,null,null,null,null,null,null,null,null,null,null,null,null,null,null,null,{"$f":"EQ162+EQ166+EQ173+EQ180","v":62405},12480,1335,2226,15131,94785,6375,88867.58,22458,73909,null,null,null,null,null,null,null,null,null,null,null,null,null,null,null,null,null,null,null,null,null,null,null,null,null,null,null,null,null,null,null,null,null,null,null,null,null,null,null,null,null,null,null,null,null,null,null,null,null,null,null,null,null,null,null,null,null,null,null,null,null,null,null,null,null,null,null,null,null,null,null,null,null,null,null,null,null,null,null,null,null,null,null,null,null,null,null,null,null,null,null,null,null,null,null,null,null,null,null,null,null,null,{"$f":"IY162+IY166+IY173+IY180","v":1714},null,null,null,null,null,null,null,null,null,null,null,null,null,null,null,null,null,null,null,"Equal to LUN5 + LUN11 + LUN18 + LUN26","SA Monetary value (2dp) > 0.00"]
[26,"","LUN28","If you have received a repayment of foreign tax on which Foreign Tax Credit Relief was given",null,null,null,null,null,null,null,null,null,null,null,null,null,null,null,null,null,null,null,null,null,null,null,null,null,null,null,null,null,null,null,null,null,null,null,null,null,null,null,null,null,null,null,null,null,null,null,null,null,null,null,null,null,null,null,null,null,null,null,null,null,null,null,null,null,null,null,null,null,null,null,null,null,null,null,null,null,null,null,null,null,null,null,null,null,null,null,null,null,null,null,null,null,null,null,null,null,null,null,null,null,null,null,null,null,null,null,null,null,null,null,null,null,null,null,null,null,null,null,null,null,null,null,null,null,null,null,null,null,null,null,null,null,null,null,null,null,null,null,null,null,null,null,null,null,null,null,null,null,null,null,null,null,null,null,null,null,null,null,null,null,null,null,null,null,null,null,null,null,null,null,null,null,null,null,null,null,null,null,null,null,null,null,null,null,null,null,null,null,null,null,null,null,null,null,null,null,null,null,null,null,null,null,null,null,null,null,null,null,null,null,null,null,null,null,null,null,null,null,null,null,null,null,null,null,null,null,null,null,null,null,null,null,null,null,null,null,null,null,null,null,null,null,null,null,null,null,null,null,null,null,null,null,null,null,null,null,null,null,null,null,null,null,null,null,null,null,null,null,null,null,null,null,null,null,"SA Monetary value (2dp) > 0.00"]
[27,"","LUN29","Aggregate syndicate losses",null,null,null,null,null,null,null,null,null,null,null,null,null,null,null,null,null,null,null,null,null,null,null,null,null,null,null,null,null,null,null,null,null,null,null,null,null,null,null,null,null,null,null,null,null,null,null,null,null,null,null,null,null,null,null,null,null,null,null,null,null,null,null,null,null,null,null,null,null,null,null,null,null,null,null,null,null,null,null,null,null,null,null,null,null,null,null,null,null,null,null,null,null,null,null,null,null,null,null,null,null,null,null,null,null,null,null,null,null,null,null,null,null,null,null,null,null,null,null,null,null,null,null,null,null,null,null,null,null,null,null,null,null,null,null,null,null,null,null,null,null,null,null,null,null,null,null,null,null,43213,null,null,null,null,null,null,null,null,null,null,null,null,null,null,null,null,null,null,null,null,null,null,null,null,null,null,null,null,null,null,null,null,null,null,null,null,null,null,null,null,null,null,null,null,null,null,null,null,null,null,null,null,null,null,null,null,null,null,null,null,null,null,null,null,null,null,null,null,null,null,null,null,null,null,null,null,null,null,null,null,null,null,null,null,null,null,null,null,null,null,null,null,null,null,null,null,null,null,null,null,null,null,null,null,13816,null,null,null,null,null,null,null,null,null,null,null,null,null,null,null,null,null,null,null,"If LUN29 is present then LUN20 must be zero or space","SA Monetary value (2dp) > 0.00"]
[28,"","LUN30","Net transfer to Special Reserve Fund",null,null,null,null,null,null,null,null,null,null,null,null,null,null,null,null,null,null,null,null,null,null,null,null,null,null,null,null,null,null,null,null,null,null,null,null,null,null,null,null,null,null,null,null,null,null,null,null,null,null,null,null,null,null,null,null,null,null,null,null,null,null,null,null,null,null,null,null,null,null,null,null,null,null,null,null,null,null,null,null,null,null,null,null,null,null,null,null,null,null,null,null,null,null,null,null,null,null,null,null,null,null,null,null,null,null,null,null,null,null,null,null,null,null,null,null,null,null,null,null,null,null,null,null,null,null,null,null,null,null,null,null,null,null,null,null,null,null,null,null,null,null,5345,1125,null,null,null,null,null,null,null,null,null,null,null,null,null,null,null,null,null,null,null,null,null,null,null,null,null,null,null,null,null,null,null,null,null,null,null,null,null,null,null,null,null,null,null,null,null,null,null,null,null,null,null,null,null,null,null,null,null,null,null,null,null,null,null,null,null,null,null,null,null,null,null,null,null,null,null,null,null,null,null,null,null,null,null,null,null,null,null,null,null,null,null,null,null,null,null,null,null,null,null,null,null,null,null,null,null,null,null,null,null,null,null,null,null,null,null,null,null,null,null,null,null,null,null,null,null,null,null,null,null,null,null,"SA Monetary value (2dp) > 0.00"]
[29,"","LUN31","Stop loss premiums paid",null,null,null,null,null,null,null,null,null,null,null,null,null,null,null,null,null,null,null,null,null,null,null,null,null,null,null,null,null,null,null,null,null,null,null,null,null,null,null,null,null,null,null,null,null,null,null,null,null,null,null,null,null,null,null,null,null,null,null,null,null,null,null,null,null,null,null,null,null,null,null,null,null,null,null,null,null,null,null,null,null,null,null,null,null,null,null,null,null,null,null,null,null,null,null,null,null,null,null,null,null,null,null,null,null,null,null,null,null,null,null,null,null,null,null,null,null,null,null,null,null,null,null,null,null,null,null,null,null,null,null,null,null,null,null,null,null,null,null,null,null,null,null,null,null,null,697,null,null,null,7580,null,null,null,null,null,null,null,null,null,null,null,null,null,null,null,null,null,null,null,null,null,null,null,null,null,null,null,null,null,null,null,null,null,null,null,null,null,null,null,null,null,null,null,null,null,null,null,null,null,null,null,null,null,null,null,null,null,null,null,null,null,null,null,null,null,null,null,null,null,null,null,null,null,null,null,null,null,null,null,null,null,null,null,null,null,null,null,null,null,null,null,null,null,null,null,null,null,null,null,null,null,null,null,null,null,null,null,null,null,null,null,null,null,null,null,null,null,null,null,null,null,null,null,null,"SA Monetary value (2dp) > 0.00"]
[30,"","LUN32","Personal Quota Share and Exeat premiums paid",null,null,null,null,null,null,null,null,null,null,null,null,null,null,null,null,null,null,null,null,null,null,null,null,null,null,null,null,null,null,null,null,null,null,null,null,null,null,null,null,null,null,null,null,null,null,null,null,null,null,null,null,null,null,null,null,null,null,null,null,null,null,null,null,null,null,null,null,null,null,null,null,null,null,null,null,null,null,null,null,null,null,null,null,null,null,null,null,null,null,null,null,null,null,null,null,null,null,null,null,null,null,null,null,null,null,null,null,null,null,null,null,null,null,null,null,null,null,null,null,null,null,null,null,null,null,null,null,null,null,null,null,null,null,null,null,null,null,null,null,null,null,null,null,null,null,null,null,null,null,null,null,null,null,null,null,null,null,null,null,null,null,null,null,null,null,null,null,null,null,null,null,null,null,null,null,null,null,null,null,null,null,null,null,null,null,null,null,null,null,null,null,null,null,null,null,null,null,null,null,null,null,null,null,null,null,null,null,null,null,null,null,null,null,null,null,null,null,null,null,null,null,null,null,null,null,null,null,null,null,null,null,null,null,null,null,null,null,null,null,null,null,null,null,null,null,null,null,null,null,null,null,null,null,null,null,null,null,null,null,null,null,null,null,null,null,null,null,null,null,null,null,null,null,null,"SA Monetary value (2dp) > 0.00"]
[31,{"$f":"IF(LUN_IND>1,IF(HLOOKUP(LUN_IND-1,LUN_RANGE,A187)=\"\",\"\",HLOOKUP(LUN_IND-1,LUN_RANGE,A187)),\"\")","v":""},"LUN33","Estate Protection Plan premiums paid",null,null,null,null,null,null,null,null,null,null,null,null,null,null,null,null,null,null,null,null,null,null,null,null,null,null,null,null,null,null,null,null,null,null,null,null,null,null,null,null,null,null,null,null,null,null,null,null,null,null,null,null,null,null,null,null,null,null,null,null,null,null,null,null,null,null,null,null,null,null,null,null,null,null,null,null,null,null,null,null,null,null,null,null,null,null,null,null,null,null,null,null,null,null,null,null,null,null,null,null,null,null,null,null,null,null,null,null,null,null,null,null,null,null,null,null,null,null,null,null,null,null,null,null,null,null,null,null,null,null,null,null,null,null,null,null,null,null,null,null,null,null,null,null,null,null,null,null,null,null,null,null,null,null,null,null,null,null,null,null,null,null,null,null,null,null,null,null,null,null,null,null,null,null,null,null,null,null,null,null,null,null,null,null,null,null,null,null,null,null,null,null,null,null,null,null,null,null,null,null,null,null,null,null,null,null,null,null,null,null,null,null,null,null,null,null,null,null,null,null,null,null,null,null,null,null,null,null,null,null,null,null,null,null,null,null,null,null,null,null,null,null,null,null,null,null,null,null,null,null,null,null,null,null,null,null,null,null,null,null,null,null,null,null,null,null,null,null,null,null,null,null,null,null,null,"SA Monetary value (2dp) > 0.00"]
[32,"","LUN34","Interest paid on loans to fund underwriting",null,null,null,null,null,null,null,null,null,null,null,null,null,null,null,null,null,null,null,null,null,null,null,null,null,null,null,null,null,null,null,null,null,null,null,null,null,null,null,null,null,null,null,null,null,null,null,null,null,null,null,null,null,null,null,null,null,null,null,null,null,null,null,null,null,null,null,null,null,null,null,null,null,null,null,null,null,null,null,null,null,null,null,null,null,null,null,null,null,null,null,null,null,null,null,null,null,null,null,null,null,null,null,null,null,null,null,null,null,null,null,null,null,null,null,null,null,null,null,null,null,null,null,null,null,null,null,null,null,null,null,null,null,null,null,null,null,null,null,null,null,null,null,null,null,null,null,null,null,null,null,null,null,null,null,null,null,null,null,null,null,null,null,null,null,null,null,null,null,null,null,null,null,null,null,null,null,null,null,null,null,null,null,null,null,null,null,null,null,null,null,null,null,null,null,null,null,null,null,null,null,null,null,null,null,null,null,null,null,null,null,null,null,null,null,null,null,null,null,null,null,null,null,null,null,null,null,null,null,null,null,null,null,null,null,null,null,null,null,null,null,null,null,null,null,null,null,null,null,null,null,null,null,null,null,null,null,null,null,null,null,null,null,null,null,null,null,null,null,null,null,null,null,null,null,"SA Monetary value (2dp) > 0.00"]
[33,"","LUN35","Lloyd’s Members’ associations expenses paid",null,null,null,null,null,null,null,null,null,null,null,null,null,null,null,null,null,null,null,null,null,null,null,null,null,null,null,null,null,null,null,null,null,null,null,null,null,null,null,null,null,null,null,null,null,null,null,null,null,null,null,null,null,null,null,null,null,null,null,null,null,null,null,null,null,null,null,null,null,null,null,null,null,null,null,null,null,null,null,null,null,null,null,null,null,null,null,null,null,null,null,null,null,null,null,null,null,null,null,null,null,null,null,null,null,null,null,null,null,null,null,null,null,null,null,null,null,null,null,null,null,null,null,null,null,null,null,null,null,null,null,null,null,null,null,null,null,null,null,null,null,null,null,645,null,null,null,null,null,null,null,1194,null,null,null,null,null,null,null,null,null,null,null,null,null,null,null,null,null,null,null,null,null,null,null,null,null,null,null,null,null,null,null,null,null,null,null,null,null,null,null,null,null,null,null,null,null,null,null,null,null,null,null,null,null,null,null,null,null,null,null,null,null,null,null,null,null,null,null,null,null,null,null,null,null,null,null,null,null,null,null,null,null,null,null,null,null,null,null,null,null,null,null,null,null,null,null,null,null,null,null,null,null,null,null,null,null,null,null,null,null,null,null,null,null,null,null,null,null,null,null,null,null,null,null,"SA Monetary value (2dp) > 0.00"]
[34,"","LUN36","Members’ Agent profit commission and salaries",null,null,null,null,null,null,null,null,null,null,null,null,null,null,null,null,null,null,null,null,null,null,null,null,null,null,null,null,null,null,null,null,null,null,null,null,null,null,null,null,null,null,null,null,null,null,null,null,null,null,null,null,null,null,null,null,null,null,null,null,null,null,null,null,null,null,null,null,null,null,null,null,null,null,null,null,null,null,null,null,null,null,null,null,null,null,null,null,null,null,null,null,null,null,null,null,null,null,null,null,null,null,null,null,null,null,null,null,null,null,null,null,null,null,null,null,null,null,null,null,null,null,null,null,null,null,null,null,null,null,null,null,null,null,null,null,null,null,null,null,null,null,11188,5000,2495,6300,6658,17666,null,9921,4912,15608,null,null,null,null,null,null,null,null,null,null,null,null,null,null,null,null,null,null,null,null,null,null,null,null,null,null,null,null,null,null,null,null,null,null,null,null,null,null,null,null,null,null,null,null,null,null,null,null,null,null,null,null,null,null,null,null,null,null,null,null,null,null,null,null,null,null,null,null,null,null,null,null,null,null,null,null,null,null,null,null,null,null,null,null,null,null,null,null,null,null,null,null,null,null,null,null,null,null,null,null,null,null,null,null,null,null,null,null,null,null,null,null,null,null,null,null,null,null,null,null,null,null,null,"SA Monetary value (2dp) > 0.00"]
[35,"","LUN37","Fees for bank guarantees/letters of credit",null,null,null,null,null,null,null,null,null,null,null,null,null,null,null,null,null,null,null,null,null,null,null,null,null,null,null,null,null,null,null,null,null,null,null,null,null,null,null,null,null,null,null,null,null,null,null,null,null,null,null,null,null,null,null,null,null,null,null,null,null,null,null,null,null,null,null,null,null,null,null,null,null,null,null,null,null,null,null,null,null,null,null,null,null,null,null,null,null,null,null,null,null,null,null,null,null,null,null,null,null,null,null,null,null,null,null,null,null,null,null,null,null,null,null,null,null,null,null,null,null,null,null,null,null,null,null,null,null,null,null,null,null,null,null,null,null,null,null,null,null,null,null,null,null,3200,1800,4451,null,null,null,null,null,null,null,null,null,null,null,null,null,null,null,null,null,null,null,null,null,null,null,null,null,null,null,null,null,null,null,null,null,null,null,null,null,null,null,null,null,null,null,null,null,null,null,null,null,null,null,null,null,null,null,null,null,null,null,null,null,null,null,null,null,null,null,null,null,null,null,null,null,null,null,null,null,null,null,null,null,null,null,null,null,null,null,null,null,null,null,null,null,null,null,null,null,null,null,null,null,null,null,null,null,null,null,null,null,null,null,null,null,null,null,null,null,null,null,null,null,null,null,null,null,null,null,"SA Monetary value (2dp) > 0.00"]
[36,"","LUN38","Accountancy fees",null,null,null,null,null,null,null,null,null,null,null,null,null,null,null,null,null,null,null,null,null,null,null,null,null,null,null,null,null,null,null,null,null,null,null,null,null,null,null,null,null,null,null,null,null,null,null,null,null,null,null,null,null,null,null,null,null,null,null,null,null,null,null,null,null,null,null,null,null,null,null,null,null,null,null,null,null,null,null,null,null,null,null,null,null,null,null,null,null,null,null,null,null,null,null,null,null,null,null,null,null,null,null,null,null,null,null,null,null,null,null,null,null,null,null,null,null,null,null,null,null,null,null,null,null,null,null,null,null,null,null,null,null,null,null,null,null,null,null,null,null,null,null,1206,null,1505,1000,613,null,800,613,2466,null,null,null,null,null,null,null,null,null,null,null,null,null,null,null,null,null,null,null,null,null,null,null,null,null,null,null,null,null,null,null,null,null,null,null,null,null,null,null,null,null,null,null,null,null,null,null,null,null,null,null,null,null,null,null,null,null,null,null,null,null,null,null,null,null,null,null,null,null,null,null,null,null,null,null,null,null,null,null,null,null,null,null,null,null,null,null,null,null,null,null,null,null,null,null,null,null,null,null,null,null,null,235,null,null,null,null,null,null,null,null,null,null,null,null,null,null,null,null,null,null,null,null,"SA Monetary value (2dp) > 0.00"]
[37,"","LUN39","Other Lloyd’s expenses",null,null,null,null,null,null,null,null,null,null,null,null,null,null,null,null,null,null,null,null,null,null,null,null,null,null,null,null,null,null,null,null,null,null,null,null,null,null,null,null,null,null,null,null,null,null,null,null,null,null,null,null,null,null,null,null,null,null,null,null,null,null,null,null,null,null,null,null,null,null,null,null,null,null,null,null,null,null,null,null,null,null,null,null,null,null,null,null,null,null,null,null,null,null,null,null,null,null,null,null,null,null,null,null,null,null,null,null,null,null,null,null,null,null,null,null,null,null,null,null,null,null,null,null,null,null,null,null,null,null,null,null,null,null,null,null,null,null,null,null,null,null,2563,2472,1768,1179,2435,4144,null,2315,null,3327,null,null,null,null,null,null,null,null,null,null,null,null,null,null,null,null,null,null,null,null,null,null,null,null,null,null,null,null,null,null,null,null,null,null,null,null,null,null,null,null,null,null,null,null,null,null,null,null,null,null,null,null,null,null,null,null,null,null,null,null,null,null,null,null,null,null,null,null,null,null,null,null,null,null,null,null,null,null,null,null,null,null,null,null,null,null,null,null,null,null,null,null,null,null,null,null,null,null,null,null,null,null,128,null,null,null,null,null,null,null,null,null,null,null,null,null,null,null,null,null,null,null,null,"SA Monetary value (2dp) > 0.00"]
[38,"","LUN40","Total losses and expenses (total of boxes 29 to 39)",null,null,null,null,null,null,null,null,null,null,null,null,null,null,null,null,null,null,null,null,null,null,null,null,null,null,null,null,null,null,null,null,null,null,null,null,null,null,null,null,null,null,null,null,null,null,null,null,null,null,null,null,null,null,null,null,null,null,null,null,null,null,null,null,null,null,null,null,null,null,null,null,null,null,null,null,null,null,null,null,null,null,null,null,null,null,null,null,null,null,null,null,null,null,null,null,null,null,null,null,null,null,null,null,null,null,null,null,null,null,null,null,null,null,null,null,null,null,null,null,null,null,null,null,null,null,null,null,null,null,null,null,null,null,null,null,null,null,null,null,null,null,{"$f":"EQ183+EQ184+EQ185+EQ186+EQ187+EQ188+EQ189+EQ190+EQ191+EQ192+EQ193","v":19096},10448,4263,14050,{"$f":"EU183+EU184+EU185+EU186+EU187+EU188+EU189+EU190+EU191+EU192+EU193","v":12590},26874,null,{"$f":"EX183+EX184+EX185+EX186+EX187+EX188+EX189+EX190+EX191+EX192+EX193","v":56249},{"$f":"EY183+EY184+EY185+EY186+EY187+EY188+EY189+EY190+EY191+EY192+EY193","v":13105},{"$f":"EZ183+EZ184+EZ185+EZ186+EZ187+EZ188+EZ189+EZ190+EZ191+EZ192+EZ193","v":22595},null,null,null,null,null,null,null,null,null,null,null,null,null,null,null,null,null,null,null,null,null,null,null,null,null,null,null,null,null,null,null,null,null,null,null,null,null,null,null,null,null,null,null,null,null,null,null,null,null,null,null,null,null,null,null,null,null,null,null,null,null,null,null,null,null,null,null,null,null,null,null,null,null,null,null,null,null,null,null,null,null,null,null,null,null,null,null,null,null,null,null,null,null,null,null,null,null,null,null,null,null,null,{"$f":"IY183+IY184+IY185+IY186+IY187+IY188+IY189+IY190+IY191+IY192+IY193","v":14179},null,null,null,null,null,null,null,null,null,null,null,null,null,null,null,null,null,null,null,"Equal to LUN29 + LUN30 + LUN31 + LUN32 + LUN33 + LUN34 + LUN35 + LUN36 + LUN37 + LUN38 + LUN39","SA Monetary value (2dp) > 0.00"]
[39,"","LUN41","Amount of profit (if box 27 minus box 40 is a positive amount)",null,null,null,null,null,null,null,null,null,null,null,null,null,null,null,null,null,null,null,null,null,null,null,null,null,null,null,null,null,null,null,null,null,null,null,null,null,null,null,null,null,null,null,null,null,null,null,null,null,null,null,null,null,null,null,null,null,null,null,null,null,null,null,null,null,null,null,null,null,null,null,null,null,null,null,null,null,null,null,null,null,null,null,null,null,null,null,null,null,null,null,null,null,null,null,null,null,null,null,null,null,null,null,null,null,null,null,null,null,null,null,null,null,null,null,null,null,null,null,null,null,null,null,null,null,null,null,null,null,null,null,null,null,null,null,null,null,null,null,null,null,null,{"$f":"MAX(0,EQ181-EQ194)","v":43309},2032,{"$f":"MAX(0,ES181-ES194)","v":0},0,2541,67911,6375,32618.58,9353,51314,null,null,null,null,null,null,null,null,null,null,null,null,null,null,null,null,null,null,null,null,null,null,null,null,null,null,null,null,null,null,null,null,null,null,null,null,null,null,null,null,null,null,null,null,null,null,null,null,null,null,null,null,null,null,null,null,null,null,null,null,null,null,null,null,null,null,null,null,null,null,null,null,null,null,null,null,null,null,null,null,null,null,null,null,null,null,null,null,null,null,null,null,null,null,null,null,null,null,null,null,null,null,{"$f":"MAX(0,IY181-IY194)","v":0},null,null,null,null,null,null,null,null,null,null,null,null,null,null,null,null,null,null,null,"If (LUN27 minus LUN40) is positive or zero, then LUN41 equals that sum.\nCannot be negative.","SA Monetary value (2dp) >= 0.00"]
[40,"","LUN42","Amount of loss (if box 27 minus box 40 is a negative amount)",null,null,null,null,null,null,null,null,null,null,null,null,null,null,null,null,null,null,null,null,null,null,null,null,null,null,null,null,null,null,null,null,null,null,null,null,null,null,null,null,null,null,null,null,null,null,null,null,null,null,null,null,null,null,null,null,null,null,null,null,null,null,null,null,null,null,null,null,null,null,null,null,null,null,null,null,null,null,null,null,null,null,null,null,null,null,null,null,null,null,null,null,null,null,null,null,null,null,null,null,null,null,null,null,null,null,null,null,null,null,null,null,null,null,null,null,null,null,null,null,null,null,null,null,null,null,null,null,null,null,null,null,null,null,null,null,null,null,null,null,null,null,null,null,2928,{"$f":"MAX(0,ET194-ET181)","v":11824},{"$f":"MAX(0,EU194-EU181)","v":0},null,null,null,null,null,null,null,null,null,null,null,null,null,null,null,null,null,null,null,null,null,null,null,null,null,null,null,null,null,null,null,null,null,null,null,null,null,null,null,null,null,null,null,null,null,null,null,null,null,null,null,null,null,null,null,null,null,null,null,null,null,null,null,null,null,null,null,null,null,null,null,null,null,null,null,null,null,null,null,null,null,null,null,null,null,null,null,null,null,null,null,null,null,null,null,null,null,null,null,null,null,null,null,null,null,null,null,{"$f":"MAX(0,IY194-IY181)","v":12465},null,null,null,null,null,null,null,null,null,null,null,null,null,null,null,null,null,null,null,"If (LUN40 minus LUN27) is positive or zero, then LUN42 equals that sum.\nCannot be negative.","SA Monetary value (2dp) >= 0.00"]
[41,"","LUN43","Foreign tax on personal fund income (box 13 + box 16)",null,null,null,null,null,null,null,null,null,null,null,null,null,null,null,null,null,null,null,null,null,null,null,null,null,null,null,null,null,null,null,null,null,null,null,null,null,null,null,null,null,null,null,null,null,null,null,null,null,null,null,null,null,null,null,null,null,null,null,null,null,null,null,null,null,null,null,null,null,null,null,null,null,null,null,null,null,null,null,null,null,null,null,null,null,null,null,null,null,null,null,null,null,null,null,null,null,null,null,null,null,null,null,null,null,null,null,null,null,null,null,null,null,null,null,null,null,null,null,null,null,null,null,null,null,null,null,null,null,null,null,null,null,null,null,null,null,null,null,null,null,null,{"$f":"EQ168+EQ171","v":0},0,0,0,0,0,233,3593,76,0,null,null,null,null,null,null,null,null,null,null,null,null,null,null,null,null,null,null,null,null,null,null,null,null,null,null,null,null,null,null,null,null,null,null,null,null,null,null,null,null,null,null,null,null,null,null,null,null,null,null,null,null,null,null,null,null,null,null,null,null,null,null,null,null,null,null,null,null,null,null,null,null,null,null,null,null,null,null,null,null,null,null,null,null,null,null,null,null,null,null,null,null,null,null,null,null,null,null,null,null,null,null,{"$f":"IY168+IY171","v":22},null,null,null,null,null,null,null,null,null,null,null,null,null,null,null,null,null,null,null,"Equal to LUN13 + LUN16","SA Monetary value (2dp) > 0.00"]
[42,"","LUN44","US income tax paid",null,null,null,null,null,null,null,null,null,null,null,null,null,null,null,null,null,null,null,null,null,null,null,null,null,null,null,null,null,null,null,null,null,null,null,null,null,null,null,null,null,null,null,null,null,null,null,null,null,null,null,null,null,null,null,null,null,null,null,null,null,null,null,null,null,null,null,null,null,null,null,null,null,null,null,null,null,null,null,null,null,null,null,null,null,null,null,null,null,null,null,null,null,null,null,null,null,null,null,null,null,null,null,null,null,null,null,null,null,null,null,null,null,null,null,null,null,null,null,null,null,null,null,null,null,null,null,null,null,null,null,null,null,null,null,null,null,null,null,null,null,null,null,null,null,null,null,4106,null,2,17,3418,null,null,null,null,null,null,null,null,null,null,null,null,null,null,null,null,null,null,null,null,null,null,null,null,null,null,null,null,null,null,null,null,null,null,null,null,null,null,null,null,null,null,null,null,null,null,null,null,null,null,null,null,null,null,null,null,null,null,null,null,null,null,null,null,null,null,null,null,null,null,null,null,null,null,null,null,null,null,null,null,null,null,null,null,null,null,null,null,null,null,null,null,null,null,null,null,null,null,null,null,null,null,null,null,null,null,null,null,null,null,null,null,null,null,null,null,null,null,null,null,null,null,null,"SA Monetary value (2dp) > 0.00"]
[43,"","LUN45","Canadian tax paid",null,null,null,null,null,null,null,null,null,null,null,null,null,null,null,null,null,null,null,null,null,null,null,null,null,null,null,null,null,null,null,null,null,null,null,null,null,null,null,null,null,null,null,null,null,null,null,null,null,null,null,null,null,null,null,null,null,null,null,null,null,null,null,null,null,null,null,null,null,null,null,null,null,null,null,null,null,null,null,null,null,null,null,null,null,null,null,null,null,null,null,null,null,null,null,null,null,null,null,null,null,null,null,null,null,null,null,null,null,null,null,null,null,null,null,null,null,null,null,null,null,null,null,null,null,null,null,null,null,null,null,null,null,null,null,null,null,null,null,null,null,null,null,113,null,129,730,2567,null,null,null,870,null,null,null,null,null,null,null,null,null,null,null,null,null,null,null,null,null,null,null,null,null,null,null,null,null,null,null,null,null,null,null,null,null,null,null,null,null,null,null,null,null,null,null,null,null,null,null,null,null,null,null,null,null,null,null,null,null,null,null,null,null,null,null,null,null,null,null,null,null,null,null,null,null,null,null,null,null,null,null,null,null,null,null,null,null,null,null,null,null,null,null,null,null,null,null,null,null,null,null,null,null,null,null,null,null,null,null,null,null,null,null,null,null,null,null,null,null,null,null,null,null,null,null,"SA Monetary value (2dp) > 0.00"]
[44,"","LUN46","Syndicate foreign tax",null,null,null,null,null,null,null,null,null,null,null,null,null,null,null,null,null,null,null,null,null,null,null,null,null,null,null,null,null,null,null,null,null,null,null,null,null,null,null,null,null,null,null,null,null,null,null,null,null,null,null,null,null,null,null,null,null,null,null,null,null,null,null,null,null,null,null,null,null,null,null,null,null,null,null,null,null,null,null,null,null,null,null,null,null,null,null,null,null,null,null,null,null,null,null,null,null,null,null,null,null,null,null,null,null,null,null,null,null,null,null,null,null,null,null,null,null,null,null,null,null,null,null,null,null,null,null,null,null,null,null,null,null,null,null,null,null,null,null,null,null,null,3078,916,341.71,70,816,343,null,2471,294,3659,null,null,null,null,null,null,null,null,null,null,null,null,null,null,null,null,null,null,null,null,null,null,null,null,null,null,null,null,null,null,null,null,null,null,null,null,null,null,null,null,null,null,null,null,null,null,null,null,null,null,null,null,null,null,null,null,null,null,null,null,null,null,null,null,null,null,null,null,null,null,null,null,null,null,null,null,null,null,null,null,null,null,null,null,null,null,null,null,null,null,null,null,null,null,null,null,null,null,null,null,null,null,null,null,null,null,null,null,null,null,null,null,null,null,null,null,null,null,null,null,null,null,null,"SA Monetary value (2dp) > 0.00"]
[45,"","LUN47","Additional payments of foreign tax",null,null,null,null,null,null,null,null,null,null,null,null,null,null,null,null,null,null,null,null,null,null,null,null,null,null,null,null,null,null,null,null,null,null,null,null,null,null,null,null,null,null,null,null,null,null,null,null,null,null,null,null,null,null,null,null,null,null,null,null,null,null,null,null,null,null,null,null,null,null,null,null,null,null,null,null,null,null,null,null,null,null,null,null,null,null,null,null,null,null,null,null,null,null,null,null,null,null,null,null,null,null,null,null,null,null,null,null,null,null,null,null,null,null,null,null,null,null,null,null,null,null,null,null,null,null,null,null,null,null,null,null,null,null,null,null,null,null,null,null,null,null,919,191,65.3,29,248,null,null,141,null,1194,null,null,null,null,null,null,null,null,null,null,null,null,null,null,null,null,null,null,null,null,null,null,null,null,null,null,null,null,null,null,null,null,null,null,null,null,null,null,null,null,null,null,null,null,null,null,null,null,null,null,null,null,null,null,null,null,null,null,null,null,null,null,null,null,null,null,null,null,null,null,null,null,null,null,null,null,null,null,null,null,null,null,null,null,null,null,null,null,null,null,null,null,null,null,null,null,null,null,null,null,null,null,null,null,null,null,null,null,null,null,null,null,null,null,null,null,null,null,null,null,null,null,null,"SA Monetary value (2dp) > 0.00"]
[46,"","LUN48","Total foreign tax (total of boxes 43 to 47)",null,null,null,null,null,null,null,null,null,null,null,null,null,null,null,null,null,null,null,null,null,null,null,null,null,null,null,null,null,null,null,null,null,null,null,null,null,null,null,null,null,null,null,null,null,null,null,null,null,null,null,null,null,null,null,null,null,null,null,null,null,null,null,null,null,null,null,null,null,null,null,null,null,null,null,null,null,null,null,null,null,null,null,null,null,null,null,null,null,null,null,null,null,null,null,null,null,null,null,null,null,null,null,null,null,null,null,null,null,null,null,null,null,null,null,null,null,null,null,null,null,null,null,null,null,null,null,null,null,null,null,null,null,null,null,null,null,null,null,null,null,null,{"$f":"EQ197+EQ198+EQ199+EQ200+EQ201","v":3997},1220,{"$f":"ES197+ES198+ES199+ES200+ES201","v":407.01},239.4,1794,7016,233,6207,387,9141,null,null,null,null,null,null,null,null,null,null,null,null,null,null,null,null,null,null,null,null,null,null,null,null,null,null,null,null,null,null,null,null,null,null,null,null,null,null,null,null,null,null,null,null,null,null,null,null,null,null,null,null,null,null,null,null,null,null,null,null,null,null,null,null,null,null,null,null,null,null,null,null,null,null,null,null,null,null,null,null,null,null,null,null,null,null,null,null,null,null,null,null,null,null,null,null,null,null,null,null,null,null,{"$f":"IY197+IY198+IY199+IY200+IY201","v":22},null,null,null,null,null,null,null,null,null,null,null,null,null,null,null,null,null,null,null,"Equal to LUN43 + LUN44 + LUN45 + LUN46 + LUN47","SA Monetary value (2dp) > 0.00"]
[47,"","LUN49","Profit from box 41",null,null,null,null,null,null,null,null,null,null,null,null,null,null,null,null,null,null,null,null,null,null,null,null,null,null,null,null,null,null,null,null,null,null,null,null,null,null,null,null,null,null,null,null,null,null,null,null,null,null,null,null,null,null,null,null,null,null,null,null,null,null,null,null,null,null,null,null,null,null,null,null,null,null,null,null,null,null,null,null,null,null,null,null,null,null,null,null,null,null,null,null,null,null,null,null,null,null,null,null,null,null,null,null,null,null,null,null,null,null,null,null,null,null,null,null,null,null,null,null,null,null,null,null,null,null,null,null,null,null,null,null,null,null,null,null,null,null,null,null,null,null,{"$f":"EQ195","v":43309},{"$f":"ER195","v":2032},{"$f":"ES195","v":0},{"$f":"ET195","v":0},2650,{"$f":"EV195","v":67911},6375,32618.58,9353,51314,null,null,null,null,null,null,null,null,null,null,null,null,null,null,null,null,null,null,null,null,null,null,null,null,null,null,null,null,null,null,null,null,null,null,null,null,null,null,null,null,null,null,null,null,null,null,null,null,null,null,null,null,null,null,null,null,null,null,null,null,null,null,null,null,null,null,null,null,null,null,null,null,null,null,null,null,null,null,null,null,null,null,null,null,null,null,null,null,null,null,null,null,null,null,null,null,null,null,null,null,null,null,null,null,null,null,null,null,null,null,null,null,null,null,null,null,null,null,null,null,null,null,"Equal to LUN41 \nLDC Only","SA Monetary value (2dp) >= 0.00"]
[48,"","LUN50","Foreign tax claimed as a deduction – only if Foreign Tax Credit Relief has not been claimed on the ‘Foreign’ pages",null,null,null,null,null,null,null,null,null,null,null,null,null,null,null,null,null,null,null,null,null,null,null,null,null,null,null,null,null,null,null,null,null,null,null,null,null,null,null,null,null,null,null,null,null,null,null,null,null,null,null,null,null,null,null,null,null,null,null,null,null,null,null,null,null,null,null,null,null,null,null,null,null,null,null,null,null,null,null,null,null,null,null,null,null,null,null,null,null,null,null,null,null,null,null,null,null,null,null,null,null,null,null,null,null,null,null,null,null,null,null,null,null,null,null,null,null,null,null,null,null,null,null,null,null,null,null,null,null,null,null,null,null,null,null,null,null,null,null,null,null,null,3997,1220,null,null,null,null,233,6207,{"$f":"EY202","v":387},null,null,null,null,null,null,null,null,null,null,null,null,null,null,null,null,null,null,null,null,null,null,null,null,null,null,null,null,null,null,null,null,null,null,null,null,null,null,null,null,null,null,null,null,null,null,null,null,null,null,null,null,null,null,null,null,null,null,null,null,null,null,null,null,null,null,null,null,null,null,null,null,null,null,null,null,null,null,null,null,null,null,null,null,null,null,null,null,null,null,null,null,null,null,null,null,null,null,null,null,null,null,null,null,null,null,null,null,null,null,null,null,null,null,null,null,null,null,null,null,null,null,null,"If LUN50 is present and greater than zero, LUN41 must also be present and greater than zero","SA Monetary value (2dp) > 0.00"]
[49,"","LUN51","Lloyd’s losses brought forward from earlier years used against this year’s profits – copy this amount to box 60 below",null,null,null,null,null,null,null,null,null,null,null,null,null,null,null,null,null,null,null,null,null,null,null,null,null,null,null,null,null,null,null,null,null,null,null,null,null,null,null,null,null,null,null,null,null,null,null,null,null,null,null,null,null,null,null,null,null,null,null,null,null,null,null,null,null,null,null,null,null,null,null,null,null,null,null,null,null,null,null,null,null,null,null,null,null,null,null,null,null,null,null,null,null,null,null,null,null,null,null,null,null,null,null,null,null,null,null,null,null,null,null,null,null,null,null,null,null,null,null,null,null,null,null,null,null,null,null,null,null,null,null,null,null,null,null,null,null,null,null,null,null,null,null,null,null,null,null,null,null,26411.58,2000,null,null,null,null,null,null,null,null,null,null,null,null,null,null,null,null,null,null,null,null,null,null,null,null,null,null,null,null,null,null,null,null,null,null,null,null,null,null,null,null,null,null,null,null,null,null,null,null,null,null,null,null,null,null,null,null,null,null,null,null,null,null,null,null,null,null,null,null,null,null,null,null,null,null,null,null,null,null,null,null,null,null,null,null,null,null,null,null,null,null,null,null,null,null,null,null,null,null,null,null,null,null,null,null,null,null,null,null,null,null,null,null,null,null,null,null,null,null,null,null,null,null,null,"If LUN51 is present and greater than zero, LUN41 must also be present and greater than zero","SA Monetary value (2dp) > 0.00"]
[50,"","LUN52","Total taxable profits from Lloyd’s (box 49 minus (box 50 + box 51))",null,null,null,null,null,null,null,null,null,null,null,null,null,null,null,null,null,null,null,null,null,null,null,null,null,null,null,null,null,null,null,null,null,null,null,null,null,null,null,null,null,null,null,null,null,null,null,null,null,null,null,null,null,null,null,null,null,null,null,null,null,null,null,null,null,null,null,null,null,null,null,null,null,null,null,null,null,null,null,null,null,null,null,null,null,null,null,null,null,null,null,null,null,null,null,null,null,null,null,null,null,null,null,null,null,null,null,null,null,null,null,null,null,null,null,null,null,null,null,null,null,null,null,null,null,null,null,null,null,null,null,null,null,null,null,null,null,null,null,null,null,null,{"$f":"MAX(0,EQ195-(EQ204+EQ205))","v":39312},812,0,0,2541,67911,6142,0,6966,51314,null,null,null,null,null,null,null,null,null,null,null,null,null,null,null,null,null,null,null,null,null,null,null,null,null,null,null,null,null,null,null,null,null,null,null,null,null,null,null,null,null,null,null,null,null,null,null,null,null,null,null,null,null,null,null,null,null,null,null,null,null,null,null,null,null,null,null,null,null,null,null,null,null,null,null,null,null,null,null,null,null,null,null,null,null,null,null,null,null,null,null,null,null,null,null,null,null,null,null,null,null,null,{"$f":"MAX(0,IY195-(IY204+IY205))","v":0},null,null,null,null,null,null,null,null,null,null,null,null,null,null,null,null,null,null,null,"If (LUN41 minus (LUN50 + LUN51)) is positive or zero, then LUN52 equals that sum.\nCannot be negative.","SA Monetary value (2dp) >= 0.00"]
[51,"","LUN53","Loss from box 42",null,null,null,null,null,null,null,null,null,null,null,null,null,null,null,null,null,null,null,null,null,null,null,null,null,null,null,null,null,null,null,null,null,null,null,null,null,null,null,null,null,null,null,null,null,null,null,null,null,null,null,null,null,null,null,null,null,null,null,null,null,null,null,null,null,null,null,null,null,null,null,null,null,null,null,null,null,null,null,null,null,null,null,null,null,null,null,null,null,null,null,null,null,null,null,null,null,null,null,null,null,null,null,null,null,null,null,null,null,null,null,null,null,null,null,null,null,null,null,null,null,null,null,null,null,null,null,null,null,null,null,null,null,null,null,null,null,null,null,null,null,null,null,null,{"$f":"ES196","v":2928},11824,{"$f":"EU196","v":0},null,null,null,null,null,null,null,null,null,null,null,null,null,null,null,null,null,null,null,null,null,null,null,null,null,null,null,null,null,null,null,null,null,null,null,null,null,null,null,null,null,null,null,null,null,null,null,null,null,null,null,null,null,null,null,null,null,null,null,null,null,null,null,null,null,null,null,null,null,null,null,null,null,null,null,null,null,null,null,null,null,null,null,null,null,null,null,null,null,null,null,null,null,null,null,null,null,null,null,null,null,null,null,null,null,null,null,{"$f":"IY196","v":12465},null,null,null,null,null,null,null,null,null,null,null,null,null,null,null,null,null,null,null,"Equal to LUN42","SA Monetary value (2dp) >= 0.00"]
[52,"","LUN54","Foreign tax claimed as a deduction – from box 48",null,null,null,null,null,null,null,null,null,null,null,null,null,null,null,null,null,null,null,null,null,null,null,null,null,null,null,null,null,null,null,null,null,null,null,null,null,null,null,null,null,null,null,null,null,null,null,null,null,null,null,null,null,null,null,null,null,null,null,null,null,null,null,null,null,null,null,null,null,null,null,null,null,null,null,null,null,null,null,null,null,null,null,null,null,null,null,null,null,null,null,null,null,null,null,null,null,null,null,null,null,null,null,null,null,null,null,null,null,null,null,null,null,null,null,null,null,null,null,null,null,null,null,null,null,null,null,null,null,null,null,null,null,null,null,null,null,null,null,null,null,null,null,null,{"$f":"IF(ES207>0,ES202,0)","v":407.01},{"$f":"IF(ET207>0,ET202,0)","v":239.4},{"$f":"IF(EU207>0,EU202,0)","v":0},null,null,null,null,null,null,null,null,null,null,null,null,null,null,null,null,null,null,null,null,null,null,null,null,null,null,null,null,null,null,null,null,null,null,null,null,null,null,null,null,null,null,null,null,null,null,null,null,null,null,null,null,null,null,null,null,null,null,null,null,null,null,null,null,null,null,null,null,null,null,null,null,null,null,null,null,null,null,null,null,null,null,null,null,null,null,null,null,null,null,null,null,null,null,null,null,null,null,null,null,null,null,null,null,null,null,null,{"$f":"IF(IY207>0,IY202,0)","v":22},null,null,null,null,null,null,null,null,null,null,null,null,null,null,null,null,null,null,null,"If LUN42 is present and greater than zero, LUN54 is less than or equal to LUN48 \nIf LUN54 is present and greater than zero, LUN42 must be present and greater than zero.","Monetary value (2dp) >= 0.00"]
[53,"","LUN55","Loss for the year 2015–16 (box 53 + box 54)",null,null,null,null,null,null,null,null,null,null,null,null,null,null,null,null,null,null,null,null,null,null,null,null,null,null,null,null,null,null,null,null,null,null,null,null,null,null,null,null,null,null,null,null,null,null,null,null,null,null,null,null,null,null,null,null,null,null,null,null,null,null,null,null,null,null,null,null,null,null,null,null,null,null,null,null,null,null,null,null,null,null,null,null,null,null,null,null,null,null,null,null,null,null,null,null,null,null,null,null,null,null,null,null,null,null,null,null,null,null,null,null,null,null,null,null,null,null,null,null,null,null,null,null,null,null,null,null,null,null,null,null,null,null,null,null,null,null,null,null,null,null,null,null,{"$f":"ES207+ES208","v":3335.01},12063.4,{"$f":"EU207+EU208","v":0},null,null,null,null,null,null,null,null,null,null,null,null,null,null,null,null,null,null,null,null,null,null,null,null,null,null,null,null,null,null,null,null,null,null,null,null,null,null,null,null,null,null,null,null,null,null,null,null,null,null,null,null,null,null,null,null,null,null,null,null,null,null,null,null,null,null,null,null,null,null,null,null,null,null,null,null,null,null,null,null,null,null,null,null,null,null,null,null,null,null,null,null,null,null,null,null,null,null,null,null,null,null,null,null,null,null,null,{"$f":"IY207+IY208","v":12487},null,null,null,null,null,null,null,null,null,null,null,null,null,null,null,null,null,null,null,"Equal to LUN53 + LUN54","SA Monetary value (2dp) > 0.00"]
[54,"","LUN56","Loss set off against other income for 2015–16",null,null,null,null,null,null,null,null,null,null,null,null,null,null,null,null,null,null,null,null,null,null,null,null,null,null,null,null,null,null,null,null,null,null,null,null,null,null,null,null,null,null,null,null,null,null,null,null,null,null,null,null,null,null,null,null,null,null,null,null,null,null,null,null,null,null,null,null,null,null,null,null,null,null,null,null,null,null,null,null,null,null,null,null,null,null,null,null,null,null,null,null,null,null,null,null,null,null,null,null,null,null,null,null,null,null,null,null,null,null,null,null,null,null,null,null,null,null,null,null,null,null,null,null,null,null,null,null,null,null,null,null,null,null,null,null,null,null,null,null,null,null,null,null,1446,12074.55,11300,null,null,null,null,null,null,null,null,null,null,null,null,null,null,null,null,null,null,null,null,null,null,null,null,null,null,null,null,null,null,null,null,null,null,null,null,null,null,null,null,null,null,null,null,null,null,null,null,null,null,null,null,null,null,null,null,null,null,null,null,null,null,null,null,null,null,null,null,null,null,null,null,null,null,null,null,null,null,null,null,null,null,null,null,null,null,null,null,null,null,null,null,null,null,null,null,null,null,null,null,null,null,null,null,null,null,null,11300,null,null,null,null,null,null,null,null,null,null,null,null,null,null,null,null,null,null,null,"Less than or equal to LUN55","SA Monetary value (2dp) > 0.00"]
[55,"","LUN57","Loss carried back to set against earlier years",null,null,null,null,null,null,null,null,null,null,null,null,null,null,null,null,null,null,null,null,null,null,null,null,null,null,null,null,null,null,null,null,null,null,null,null,null,null,null,null,null,null,null,null,null,null,null,null,null,null,null,null,null,null,null,null,null,null,null,null,null,null,null,null,null,null,null,null,null,null,null,null,null,null,null,null,null,null,null,null,null,null,null,null,null,null,null,null,null,null,null,null,null,null,null,null,null,null,null,null,null,null,null,null,null,null,null,null,null,null,null,null,null,null,null,null,null,null,null,null,null,null,null,null,null,null,null,null,null,null,null,null,null,null,null,null,null,null,null,null,null,null,null,null,1889.01,null,null,null,null,null,null,null,null,null,null,null,null,null,null,null,null,null,null,null,null,null,null,null,null,null,null,null,null,null,null,null,null,null,null,null,null,null,null,null,null,null,null,null,null,null,null,null,null,null,null,null,null,null,null,null,null,null,null,null,null,null,null,null,null,null,null,null,null,null,null,null,null,null,null,null,null,null,null,null,null,null,null,null,null,null,null,null,null,null,null,null,null,null,null,null,null,null,null,null,null,null,null,null,null,null,null,null,null,null,null,null,null,null,null,null,null,null,null,null,null,null,null,null,null,null,null,null,null,null,"Less than or equal to LUN55 minus LUN56","SA Monetary value (2dp) > 0.00"]
[56,"","LUN58","Unused loss available to carry forward after allother set-offs",null,null,null,null,null,null,null,null,null,null,null,null,null,null,null,null,null,null,null,null,null,null,null,null,null,null,null,null,null,null,null,null,null,null,null,null,null,null,null,null,null,null,null,null,null,null,null,null,null,null,null,null,null,null,null,null,null,null,null,null,null,null,null,null,null,null,null,null,null,null,null,null,null,null,null,null,null,null,null,null,null,null,null,null,null,null,null,null,null,null,null,null,null,null,null,null,null,null,null,null,null,null,null,null,null,null,null,null,null,null,null,null,null,null,null,null,null,null,null,null,null,null,null,null,null,null,null,null,null,null,null,null,null,null,null,null,null,null,null,null,null,null,null,null,null,null,1187,null,null,null,null,null,null,null,null,null,null,null,null,null,null,null,null,null,null,null,null,null,null,null,null,null,null,null,null,null,null,null,null,null,null,null,null,null,null,null,null,null,null,null,null,null,null,null,null,null,null,null,null,null,null,null,null,null,null,null,null,null,null,null,null,null,null,null,null,null,null,null,null,null,null,null,null,null,null,null,null,null,null,null,null,null,null,null,null,null,null,null,null,null,null,null,null,null,null,null,null,null,null,null,null,null,null,null,1187,null,null,null,null,null,null,null,null,null,null,null,null,null,null,null,null,null,null,null,null,"SA Monetary value (2dp) >= 0.00"]
[57,"","LUN59","Losses brought forward from earlier years",null,null,null,null,null,null,null,null,null,null,null,null,null,null,null,null,null,null,null,null,null,null,null,null,null,null,null,null,null,null,null,null,null,null,null,null,null,null,null,null,null,null,null,null,null,null,null,null,null,null,null,null,null,null,null,null,null,null,null,null,null,null,null,null,null,null,null,null,null,null,null,null,null,null,null,null,null,null,null,null,null,null,null,null,null,null,null,null,null,null,null,null,null,null,null,null,null,null,null,null,null,null,null,null,null,null,null,null,null,null,null,null,null,null,null,null,null,null,null,null,null,null,null,null,null,null,null,null,null,null,null,null,null,null,null,null,null,null,null,null,null,null,null,null,null,null,null,null,null,41860.730000000003,2000,null,null,null,null,null,null,null,null,null,null,null,null,null,null,null,null,null,null,null,null,null,null,null,null,null,null,null,null,null,null,null,null,null,null,null,null,null,null,null,null,null,null,null,null,null,null,null,null,null,null,null,null,null,null,null,null,null,null,null,null,null,null,null,null,null,null,null,null,null,null,null,null,null,null,null,null,null,null,null,null,null,null,null,null,null,null,null,null,null,null,null,null,null,null,null,null,null,null,null,null,null,null,null,null,null,null,null,null,null,null,null,null,null,null,null,null,null,null,null,null,null,null,null,null,"SA Monetary value (2dp) > 0.00"]
[58,"","LUN60","Losses brought forward used against this year’s profits – the amount from box 51",null,null,null,null,null,null,null,null,null,null,null,null,null,null,null,null,null,null,null,null,null,null,null,null,null,null,null,null,null,null,null,null,null,null,null,null,null,null,null,null,null,null,null,null,null,null,null,null,null,null,null,null,null,null,null,null,null,null,null,null,null,null,null,null,null,null,null,null,null,null,null,null,null,null,null,null,null,null,null,null,null,null,null,null,null,null,null,null,null,null,null,null,null,null,null,null,null,null,null,null,null,null,null,null,null,null,null,null,null,null,null,null,null,null,null,null,null,null,null,null,null,null,null,null,null,null,null,null,null,null,null,null,null,null,null,null,null,null,null,null,null,null,null,{"$f":"ER205","v":0},{"$f":"ES205","v":0},{"$f":"ET205","v":0},null,{"$f":"EV205","v":0},null,{"$f":"EX205","v":26411.58},{"$f":"EY205","v":2000},{"$f":"EZ205","v":0},null,null,null,null,null,null,null,null,null,null,null,null,null,null,null,null,null,null,null,null,null,null,null,null,null,null,null,null,null,null,null,null,null,null,null,null,null,null,null,null,null,null,null,null,null,null,null,null,null,null,null,null,null,null,null,null,null,null,null,null,null,null,null,null,null,null,null,null,null,null,null,null,null,null,null,null,null,null,null,null,null,null,null,null,null,null,null,null,null,null,null,null,null,null,null,null,null,null,null,null,null,null,null,null,null,null,null,null,null,null,null,null,null,null,null,null,null,null,null,null,null,null,"Equal to LUN51","SA Monetary value (2dp) except 0.00"]
[59,"","LUN61","Unused loss from 2015–16 – from box 58",null,null,null,null,null,null,null,null,null,null,null,null,null,null,null,null,null,null,null,null,null,null,null,null,null,null,null,null,null,null,null,null,null,null,null,null,null,null,null,null,null,null,null,null,null,null,null,null,null,null,null,null,null,null,null,null,null,null,null,null,null,null,null,null,null,null,null,null,null,null,null,null,null,null,null,null,null,null,null,null,null,null,null,null,null,null,null,null,null,null,null,null,null,null,null,null,null,null,null,null,null,null,null,null,null,null,null,null,null,null,null,null,null,null,null,null,null,null,null,null,null,null,null,null,null,null,null,null,null,null,null,null,null,null,null,null,null,null,null,null,null,null,null,null,null,null,{"$f":"EU212","v":1187},null,null,null,null,null,null,null,null,null,null,null,null,null,null,null,null,null,null,null,null,null,null,null,null,null,null,null,null,null,null,null,null,null,null,null,null,null,null,null,null,null,null,null,null,null,null,null,null,null,null,null,null,null,null,null,null,null,null,null,null,null,null,null,null,null,null,null,null,null,null,null,null,null,null,null,null,null,null,null,null,null,null,null,null,null,null,null,null,null,null,null,null,null,null,null,null,null,null,null,null,null,null,null,null,null,null,null,{"$f":"IY212","v":1187},null,null,null,null,null,null,null,null,null,null,null,null,null,null,null,null,null,null,null,"Equal to LUN58","SA Monetary value (2dp) >= 0.00"]
[60,"","LUN62","Total loss available to carry forward (box 59 minus box 60) or (box 59 + box 61)",null,null,null,null,null,null,null,null,null,null,null,null,null,null,null,null,null,null,null,null,null,null,null,null,null,null,null,null,null,null,null,null,null,null,null,null,null,null,null,null,null,null,null,null,null,null,null,null,null,null,null,null,null,null,null,null,null,null,null,null,null,null,null,null,null,null,null,null,null,null,null,null,null,null,null,null,null,null,null,null,null,null,null,null,null,null,null,null,null,null,null,null,null,null,null,null,null,null,null,null,null,null,null,null,null,null,null,null,null,null,null,null,null,null,null,null,null,null,null,null,null,null,null,null,null,null,null,null,null,null,null,null,null,null,null,null,null,null,null,null,null,null,null,null,{"$f":"MAX(0,ES213+ES215-ES214)","v":0},null,{"$f":"MAX(0,EU213+EU215-EU214)","v":1187},null,null,{"$f":"MAX(0,EX213+EX215-EX214)","v":15449.150000000001},null,null,null,null,null,null,null,null,null,null,null,null,null,null,null,null,null,null,null,null,null,null,null,null,null,null,null,null,null,null,null,null,null,null,null,null,null,null,null,null,null,null,null,null,null,null,null,null,null,null,null,null,null,null,null,null,null,null,null,null,null,null,null,null,null,null,null,null,null,null,null,null,null,null,null,null,null,null,null,null,null,null,null,null,null,null,null,null,null,null,null,null,null,null,null,null,null,null,null,null,null,null,null,null,{"$f":"MAX(0,IY213+IY215-IY214)","v":1187},null,null,null,null,null,null,null,null,null,null,null,null,null,null,null,null,null,null,null,"If (LUN59 + LUN61 minus LUN60) is positive or zero, then LUN62 equals that sum.\nCannot be negative.","SA Monetary value (2dp) >= 0.00"]
[61,"","LUN63",{"$f":"\"If your total profits for \"&tax_year&\" are less than \"&DOLLAR(NIC2_SPT,0)&\" and you choose to pay Class 2 NICs voluntarily, put 'X' in the box\"","v":"If your total profits for 2025-26 are less than £6,845 and you choose to pay Class 2 NICs voluntarily, put 'X' in the box"},null,null,null,null,null,null,null,null,null,null,null,null,null,null,null,null,null,null,null,null,null,null,null,null,null,null,null,null,null,null,null,null,null,null,null,null,null,null,null,null,null,null,null,null,null,null,null,null,null,null,null,null,null,null,null,null,null,null,null,null,null,null,null,null,null,null,null,null,null,null,null,null,null,null,null,null,null,null,null,null,null,null,null,null,null,null,null,null,null,null,null,null,null,null,null,null,null,null,null,null,null,null,null,null,null,null,null,null,null,null,null,null,null,null,null,null,null,null,null,null,null,null,null,null,null,null,null,null,null,null,null,null,null,null,null,null,null,null,null,null,null,null,"N","N","N","N","N","N",null,"N",null,"N",null,null,null,null,null,null,null,null,null,null,null,null,null,null,null,null,null,null,null,null,null,null,null,null,null,null,null,null,null,null,null,null,null,null,null,null,null,null,null,null,null,null,null,null,null,null,null,null,null,null,null,null,null,null,null,null,null,null,null,null,null,null,null,null,null,null,null,null,null,null,null,null,null,null,null,null,null,null,null,null,null,null,null,null,null,null,null,null,null,null,null,null,null,null,null,null,null,null,null,null,null,null,null,null,null,null,null,null,null,null,null,null,null,null,null,null,null,null,null,null,null,null,null,"\"yes\""]
[62,{"$f":"IF(LUN_IND>1,IF(HLOOKUP(LUN_IND-1,LUN_RANGE,A218)=\"\",\"\",HLOOKUP(LUN_IND-1,LUN_RANGE,A218)),\"\")","v":""},"LUN64","If you are excepted from paying Class 4 NICs, put ‘X’ in the box",null,null,null,null,null,null,null,null,null,null,null,null,null,null,null,null,null,null,null,null,null,null,null,null,null,null,null,null,null,null,null,null,null,null,null,null,null,null,null,null,null,null,null,null,null,null,null,null,null,null,null,null,null,null,null,null,null,null,null,null,null,null,null,null,null,null,null,null,null,null,null,null,null,null,null,null,null,null,null,null,null,null,null,null,null,null,null,null,null,null,null,null,null,null,null,null,null,null,null,null,null,null,null,null,null,null,null,null,null,null,null,null,null,null,null,null,null,null,null,null,null,null,null,null,null,null,null,null,null,null,null,null,null,null,null,null,null,null,null,null,null,null,"N","Y","N","Y","Y","Y",null,"N",null,"Y",null,null,null,null,null,null,null,null,null,null,null,null,null,null,null,null,null,null,null,null,null,null,null,null,null,null,null,null,null,null,null,null,null,null,null,null,null,null,null,null,null,null,null,null,null,null,null,null,null,null,null,null,null,null,null,null,null,null,null,null,null,null,null,null,null,null,null,null,null,null,null,null,null,null,null,null,null,null,null,null,null,null,null,null,null,null,null,null,null,null,null,null,null,null,null,null,null,null,null,null,null,null,null,null,null,null,null,null,null,null,null,null,null,null,null,null,null,null,null,null,null,null,null,"\"yes\""]
[63,{"$f":"IF(LUN_IND>1,IF(HLOOKUP(LUN_IND-1,LUN_RANGE,A219)=\"\",\"\",HLOOKUP(LUN_IND-1,LUN_RANGE,A219)),\"\")","v":""},"LUN65","Adjustment to profits chargeable to Class 4 NICs",null,null,null,null,null,null,null,null,null,null,null,null,null,null,null,null,null,null,null,null,null,null,null,null,null,null,null,null,null,null,null,null,null,null,null,null,null,null,null,null,null,null,null,null,null,null,null,null,null,null,null,null,null,null,null,null,null,null,null,null,null,null,null,null,null,null,null,null,null,null,null,null,null,null,null,null,null,null,null,null,null,null,null,null,null,null,null,null,null,null,null,null,null,null,null,null,null,null,null,null,null,null,null,null,null,null,null,null,null,null,null,null,null,null,null,null,null,null,null,null,null,null,null,null,null,null,null,null,null,null,null,null,null,null,null,null,null,null,null,null,null,null,null,null,null,null,null,null,null,null,null,null,null,null,null,null,null,null,null,null,null,null,null,null,null,null,null,null,null,null,null,null,null,null,null,null,null,null,null,null,null,null,null,null,null,null,null,null,null,null,null,null,null,null,null,null,null,null,null,null,null,null,null,null,null,null,null,null,null,null,null,null,null,null,null,null,null,null,null,null,null,null,null,null,null,null,null,null,null,null,null,null,null,null,null,null,null,null,null,null,null,null,null,null,null,null,null,null,null,null,null,null,null,null,null,null,null,null,null,null,null,null,null,null,null,null,null,null,null,null,null,null,null,null,"If LUN64 is 'Y', LUN65 must be zero or absent","SA Monetary value (2dp) > 0.00"]
[64,{"$f":"IF(LUN_IND>1,IF(HLOOKUP(LUN_IND-1,LUN_RANGE,A220)=\"\",\"\",HLOOKUP(LUN_IND-1,LUN_RANGE,A220)),\"\")","v":""},"LUN66","Please give any other information in this space",null,null,null,null,null,null,null,null,null,null,null,null,null,null,null,null,null,null,null,null,null,null,null,null,null,null,null,null,null,null,null,null,null,null,null,null,null,null,null,null,null,null,null,null,null,null,null,null,null,null,null,null,null,null,null,null,null,null,null,null,null,null,null,null,null,null,null,null,null,null,null,null,null,null,null,null,null,null,null,null,null,null,null,null,null,null,null,null,null,null,null,null,null,null,null,null,null,null,null,null,null,null,null,null,null,null,null,null,null,null,null,null,null,null,null,null,null,null,null,null,null,null,null,null,null,null,null,null,null,null,null,null,null,null,null,null,null,null,null,null,null,null,null,null,null,null,null,null,null,null,null,null,null,null,null,null,null,null,null,null,null,null,null,null,null,null,null,null,null,null,null,null,null,null,null,null,null,null,null,null,null,null,null,null,null,null,null,null,null,null,null,null,null,null,null,null,null,null,null,null,null,null,null,null,null,null,null,null,null,null,null,null,null,null,null,null,null,null,null,null,null,null,null,null,null,null,null,null,null,null,null,null,null,null,null,null,null,null,null,null,null,null,null,null,null,null,null,null,null,null,null,null,null,null,null,null,null,null,null,null,null,null,null,null,null,null,null,null,null,null,null,null,null,null,null,"SA non-empty string"]

{"sheet":"C4","index":13,"n_rows":120,"n_cols":280,"rows_kept":120,"cut":false,"hidden":true,"merged":[]}
[null,null,null,null,1,2,3,4,5,6,7,8,9,10,11,12,13,14,15,16,17,18,19,20,21,22,23,24,25,26,27,28,29,30,31,32,33,34,35,36,37,38,39,40,41,42,43,44,45,46,47,48,49,50,51,52,53,54,55,56,57,58,59,60,61,62,63,64,65,66,67,68,69,70,71,72,73,74,75,76,77,78,79,80,81,82,83,84,85,86,87,88,89,90,91,92,93,94,95,96,97,98,99,100,101,102,103,104,105,106,107,108,109,110,111,112,113,114,115,116,117,118,119,120,121,122,123,124,125,126,127,128,129,130,131,132,133,134,135,136,137,138,139,140,141,142,143,144,145,146,147,148,149,150,151,152,153,154,155,156,157,158,159,160,161,162,163,164,165,166,167,168,169,170,171,172,173,174,175,176,177,178,179,180,181,182,183,184,185,186,187,188,189,190,191,192,193,194,195,196,197,198,199,200,201,202,203,204,205,206,207,208,209,210,211,212,213,214,215,216,217,218,219,220,221,222,223,224,225,226,227,228,229,230,231,232,233,234,235,236,237,238,239,240,241,242,243,244,245,246,247,248,249,250,251,252,253,254,255,256,257,258,259,260,261,262,263,264,265,266,267,268,269,270,271,272,273,null," Validation","Type"]
["row",{"$f":"\"selected \"&PS_A_IND-1","v":"selected 168"},"SPS",null,1,2,3,4,5,6,7,8,9,10,11,12,13,14,15,16,17,18,19,20,21,22,23,24,25,26,27,28,29,30,31,32,33,34,35,36,37,38,39,40,41,42,43,44,45,46,47,48,49,50,51,52,53,54,55,56,57,58,59,60,61,62,63,64,65,66,67,68,69,70,71,72,73,74,75,76,77,78,79,80,81,82,83,84,85,86,87,88,89,90,91,92,93,94,95,96,97,98,99,100,101,102,103,104,105,106,107,108,109,110,111,112,113,114,115,116,117,118,119,120,121,122,123,124,125,126,127,128,129,130,131,132,133,134,135,136,137,138,139,140,141,142,143,144,145,146,147,148,149,150,151,152,153,154,155,156,157,158,159,160,161,162,163,164,165,166,167,168,169,170,171,172,173,174,175,176,177,178,179,180,181,182,183,184,185,186,187,188,189,190,191,192,193,194,195,196,197,198,199,200,201,202,203,204,205,206,207,208,209,210,211,212,213,214,215,216,217,218,219,220,221,222,223,224,225,226,227,228,229,230,231,232,233,234,235,236,237,238,239,240,241,242,243,244,245,246,247,248,249,250,251,252,253,254,255,256,257,258,259,260,261,262,263,264,265,266,267,268,269,270,271,272,273,null," Validation","Type"]
[2,{"$f":"IF(PS_A_IND>1,IF(HLOOKUP(PS_A_IND-1,SPS_RANGE,A3)=\"\",\"\",HLOOKUP(PS_A_IND-1,SPS_RANGE,A3)),\"\")","v":1000050020},"SPS1","Partnership reference number",null,null,null,null,null,null,null,null,null,null,null,null,null,null,null,null,null,null,null,null,null,null,null,null,null,null,null,null,null,null,null,null,null,null,null,null,null,null,null,null,null,null,null,null,null,null,null,null,null,null,1000050020,1000050020,null,null,null,null,null,null,null,null,null,null,null,null,null,null,null,null,null,null,null,null,null,null,null,null,null,null,null,null,null,null,1000050020,null,null,null,null,null,null,null,null,null,null,null,null,null,1000050020,1000050020,null,null,null,null,null,1000050020,null,null,1000050020,null,null,null,null,null,1000050020,null,1000050020,null,null,null,1000050020,null,1000050020,null,1000050031,null,null,null,null,null,null,null,null,null,null,null,null,1000050020,1000050020,null,1000050020,null,1000050020,null,null,1000050020,null,null,1000050020,1000050020,null,1000050020,null,null,null,1000050020,null,null,null,null,null,null,1000050020,1000050020,null,null,null,null,null,1000050020,null,null,null,null,null,null,null,null,null,null,null,null,null,null,null,null,null,null,null,null,null,1000050020,1000050020,null,null,null,null,null,null,null,null,null,null,null,null,1000050020,1000050020,1000050020,null,null,null,null,null,null,null,null,null,null,1000050020,null,null,null,null,null,null,null,null,1000050020,null,null,1000050020,null,null,null,null,null,1000050020,null,null,null,null,null,null,null,null,null,null,null,null,null,null,null,null,null,1000050020,null,1000050020,null,null,null,null,null,null,null,null,null,null,null,null,1000050020,null,null,null,null,null,null,"Must be present. Must enter Unique Taxpayer Reference in standard format. 10 numeric characters: NNNNNNNNNN. Check character (first character) must be correct. Must not be 1111111111, 2222222222, 3333333333, 4444444444, 5555555555, 6666666666, 7777777777, 8888888888, or 9999999999.\nMust be valid against the UTR algorithm provided on the BVR Constraints sheet.","UTR"]
[3,{"$f":"IF(PS_A_IND>1,IF(HLOOKUP(PS_A_IND-1,SPS_RANGE,A4)=\"\",\"\",HLOOKUP(PS_A_IND-1,SPS_RANGE,A4)),\"\")","v":"trader"},"SPS2","Partnership Trade or profession",null,null,null,null,null,null,null,null,null,null,null,null,null,null,null,null,null,null,null,null,null,null,null,null,null,null,null,null,null,null,null,null,null,null,null,null,null,null,null,null,null,null,null,null,null,null,null,null,null,null,"baker","baker",null,null,null,null,null,null,null,null,null,null,null,null,null,null,null,null,null,null,null,null,null,null,null,null,null,null,null,null,null,null,"caterer",null,null,null,null,null,null,null,null,null,null,null,null,null,"trader","builder",null,null,null,null,null,"caterer",null,null,"farmer",null,null,null,null,null,"caterer",null,"finance",null,null,null,"finance",null,"caterer",null,"farmer",null,null,null,null,null,null,null,null,null,null,null,null,"glaziers","bakers",null,"music touring",null,"dormant",null,null,"INVESTMENT PSHIP",null,null,"holiday tours","PARTNERSHIP",null,"THE FORCE",null,null,null,"BAKER",null,null,null,null,null,null,"baker","baker",null,null,null,null,null,"trader",null,null,null,null,null,null,null,null,null,null,null,null,null,null,null,null,null,null,null,null,null,"trader","trader",null,null,null,null,null,null,null,null,null,null,null,null,"trader","trader","consultant",null,null,null,null,null,null,null,null,null,null,"trader",null,null,null,null,null,null,null,null,"trader",null,null,"golf cart manufacture",null,null,null,null,null,"Band T Shirts",null,null,null,null,null,null,null,null,null,null,null,null,null,null,null,null,null,"Nails",null,"film partnership",null,null,null,null,null,null,null,null,null,null,null,null,"Pet Food",null,null,null,null,null,null,"Must be present","SA non-empty string"]
[4,{"$f":"IF(PS_A_IND>1,IF(HLOOKUP(PS_A_IND-1,SPS_RANGE,A5)=\"\",\"\",HLOOKUP(PS_A_IND-1,SPS_RANGE,A5)),\"\")","v":"N"},"SPS3Q","Did you join the partnership during the return year",null,null,null,null,null,null,null,null,null,null,null,null,null,null,null,null,null,null,null,null,null,null,null,null,null,null,null,null,null,null,null,null,null,null,null,null,null,null,null,null,null,null,null,null,null,null,null,null,null,null,"N","N",null,null,null,null,null,null,null,null,null,null,null,null,null,null,null,null,null,null,null,null,null,null,null,null,null,null,null,null,null,null,"Y",null,null,null,null,null,null,null,null,null,null,null,null,null,"Y","Y",null,null,null,null,null,"N",null,null,"Y",null,null,null,null,null,"N",null,"Y",null,null,null,"Y",null,"N",null,"Y",null,null,null,null,null,null,null,null,null,null,null,null,"N","N",null,"Y",null,"N",null,null,"N",null,null,"Y","Y",null,"N",null,null,null,"Y",null,null,null,null,null,null,"N","N",null,null,null,null,null,"N",null,null,null,null,null,null,null,null,null,null,null,null,null,null,null,null,null,null,null,null,null,"N","N",null,null,null,null,null,null,null,null,null,null,null,null,"N","Y","N",null,null,null,null,null,null,null,null,null,null,"N",null,null,null,null,null,null,null,null,"N",null,null,"Y",null,null,null,null,null,"N",null,null,null,null,null,null,null,null,null,null,null,null,null,null,null,null,null,"Y",null,"Y",null,null,null,null,null,null,null,null,null,null,null,null,"N"]
[5,"","SPS3","Date started as a partner (If during year of Return)",null,null,null,null,null,null,null,null,null,null,null,null,null,null,null,null,null,null,null,null,null,null,null,null,null,null,null,null,null,null,null,null,null,null,null,null,null,null,null,null,null,null,null,null,null,null,null,null,null,null,null,null,null,null,null,null,null,null,null,null,null,null,null,null,null,null,null,null,null,null,null,null,null,null,null,null,null,null,null,null,null,null,{"$f":"\"05/04/\"&Tax_year_start","v":"05/04/2025"},null,null,null,null,null,null,null,null,null,null,null,null,null,{"$f":"\"01/05/\"&Tax_year_start","v":"01/05/2025"},{"$f":"\"05/04/\"&Tax_year_start","v":"05/04/2025"},null,null,null,null,null,null,null,null,{"$f":"\"01/05/\"&Tax_year_start","v":"01/05/2025"},null,null,null,null,null,null,null,{"$f":"\"06/04/\"&Tax_year_start","v":"06/04/2025"},null,null,null,{"$f":"\"06/04/\"&Tax_year_start","v":"06/04/2025"},null,null,null,{"$f":"\"12/04/\"&Tax_year_start","v":"12/04/2025"},null,null,null,null,null,null,null,null,null,null,null,null,null,null,null,{"$f":"\"06/04/\"&Tax_year_start","v":"06/04/2025"},null,null,null,null,null,null,null,{"$f":"\"06/04/\"&Tax_year_start","v":"06/04/2025"},{"$f":"\"06/04/\"&Tax_year_start","v":"06/04/2025"},null,null,null,null,null,{"$f":"\"06/04/\"&Tax_year_start","v":"06/04/2025"},null,null,null,null,null,null,null,null,null,null,null,null,null,null,null,null,null,null,null,null,null,null,null,null,null,null,null,null,null,null,null,null,null,null,null,null,null,null,null,null,null,null,null,null,null,null,null,null,null,null,{"$f":"\"06/04/\"&Tax_year_start","v":"06/04/2025"},null,null,null,null,null,null,null,null,null,null,null,null,null,null,null,null,null,null,null,null,null,null,null,{"$f":"\"06/04/\"&Tax_year_start","v":"06/04/2025"},null,null,null,null,null,null,null,null,null,null,null,null,null,null,null,null,null,null,null,null,null,null,null,{"$f":"\"06/04/\"&Tax_year_start","v":"06/04/2025"},null,{"$f":"\"06/04/\"&Tax_year_start","v":"06/04/2025"},null,null,null,null,null,null,null,null,null,null,null,null,null,null,null,null,null,null,null,"must be within the return period","SA MTR date"]
[6,"Y","SPS4Q","Did you leave the partnership during the return year",null,null,null,null,null,null,null,null,null,null,null,null,null,null,null,null,null,null,null,null,null,null,null,null,null,null,null,null,null,null,null,null,null,null,null,null,null,null,null,null,null,null,null,null,null,null,null,null,null,null,"Y","Y",null,null,null,null,null,null,null,null,null,null,null,null,null,null,null,null,null,null,null,null,null,null,null,null,null,null,null,null,null,null,"N",null,null,null,null,null,null,null,null,null,null,null,null,null,"Y","N",null,null,null,null,null,"Y",null,null,"Y",null,null,null,null,null,"Y",null,"Y",null,null,null,"Y",null,"Y",null,"Y",null,null,null,null,null,null,null,null,null,null,null,null,"Y","Y",null,"N",null,"N",null,null,"Y",null,null,"N","N",null,"Y",null,null,null,"N",null,null,null,null,null,null,"Y","Y",null,null,null,null,null,"Y",null,null,null,null,null,null,null,null,null,null,null,null,null,null,null,null,null,null,null,null,null,"Y","Y",null,null,null,null,null,null,null,null,null,null,null,null,"Y","N","Y",null,null,null,null,null,null,null,null,null,null,"Y",null,null,null,null,null,null,null,null,"Y",null,null,"N",null,null,null,null,null,"Y",null,null,null,null,null,null,null,null,null,null,null,null,null,null,null,null,null,"N",null,"N",null,null,null,null,null,null,null,null,null,null,null,null,"Y"]
[7,"30/03/2026","SPS4","Date stopped being a partner  (If during year of Return)",null,null,null,null,null,null,null,null,null,null,null,null,null,null,null,null,null,null,null,null,null,null,null,null,null,null,null,null,null,null,null,null,null,null,null,null,null,null,null,null,null,null,null,null,null,null,null,null,null,null,{"$f":"\"02/04/\"&Tax_year_end","v":"02/04/2026"},{"$f":"\"04/04/\"&Tax_year_end","v":"04/04/2026"},null,null,null,null,null,null,null,null,null,null,null,null,null,null,null,null,null,null,null,null,null,null,null,null,null,null,null,null,null,null,null,null,null,null,null,null,null,null,null,null,null,null,null,null,{"$f":"\"02/04/\"&Tax_year_end","v":"02/04/2026"},null,null,null,null,null,null,{"$f":"\"03/04/\"&Tax_year_end","v":"03/04/2026"},null,null,{"$f":"\"01/04/\"&Tax_year_end","v":"01/04/2026"},null,null,null,null,null,{"$f":"\"02/04/\"&Tax_year_end","v":"02/04/2026"},null,{"$f":"\"01/04/\"&Tax_year_end","v":"01/04/2026"},null,null,null,{"$f":"\"01/04/\"&Tax_year_end","v":"01/04/2026"},null,{"$f":"\"03/04/\"&Tax_year_end","v":"03/04/2026"},null,{"$f":"\"04/04/\"&Tax_year_end","v":"04/04/2026"},null,null,null,null,null,null,null,null,null,null,null,null,{"$f":"\"02/04/\"&Tax_year_end","v":"02/04/2026"},{"$f":"\"04/04/\"&Tax_year_end","v":"04/04/2026"},null,null,null,null,null,null,{"$f":"\"04/04/\"&Tax_year_end","v":"04/04/2026"},null,null,null,null,null,{"$f":"\"04/04/\"&Tax_year_end","v":"04/04/2026"},null,null,null,null,null,null,null,null,null,null,{"$f":"\"04/04/\"&Tax_year_end","v":"04/04/2026"},{"$f":"\"02/04/\"&Tax_year_end","v":"02/04/2026"},null,null,null,null,null,{"$f":"\"30/03/\"&Tax_year_end","v":"30/03/2026"},null,null,null,null,null,null,null,null,null,null,null,null,null,null,null,null,null,null,null,null,null,{"$f":"\"28/03/\"&Tax_year_end","v":"28/03/2026"},{"$f":"\"24/03/\"&Tax_year_end","v":"24/03/2026"},null,null,null,null,null,null,null,null,null,null,null,null,{"$f":"\"02/03/\"&Tax_year_end","v":"02/03/2026"},null,{"$f":"\"27/03/\"&Tax_year_end","v":"27/03/2026"},null,null,null,null,null,null,null,null,null,null,{"$f":"\"27/02/\"&Tax_year_end","v":"27/02/2026"},null,null,null,null,null,null,null,null,{"$f":"\"19/02/\"&Tax_year_end","v":"19/02/2026"},null,null,null,null,null,null,null,null,{"$f":"\"19/01/\"&Tax_year_end","v":"19/01/2026"},null,null,null,null,null,null,null,null,null,null,null,null,null,null,null,null,null,null,null,null,null,null,null,null,null,null,null,null,null,null,null,null,{"$f":"\"19/03/\"&Tax_year_end","v":"19/03/2026"},null,null,null,null,null,null,"a) must be within return year.\nb) If SPS3 is present, SPS4 must be the same as or later than SPS3","SA MTR date"]
[8,-1840,"SPS8","Your share of the profit or loss",null,null,null,null,null,null,null,null,null,null,null,null,null,null,null,null,null,null,null,null,null,null,null,null,null,null,null,null,null,null,null,null,null,null,null,null,null,null,null,null,null,null,null,null,null,null,null,null,null,null,1080,1657,null,null,null,null,null,null,null,null,null,null,null,null,null,null,null,null,null,null,null,null,null,null,null,null,null,null,null,null,null,null,6745,null,null,null,null,null,null,null,null,null,null,null,null,null,64000,-5500,null,null,null,null,null,6745,null,null,39001,null,null,null,null,null,6745,null,18115,null,null,null,18115,null,6745,null,null,null,null,null,null,null,null,null,null,null,null,null,null,20095,16757,null,64204,null,null,null,null,null,null,null,null,null,null,32497,null,null,null,null,null,null,null,null,null,null,2376,13296,null,null,null,null,null,-1840,null,null,null,null,null,null,null,null,null,null,null,null,null,null,null,null,null,null,null,null,null,64000,64000,null,null,null,null,null,null,null,null,null,null,null,null,-62547,-62547,-71159,null,null,null,null,null,null,null,null,null,null,937,null,null,null,null,null,null,null,null,-62547,null,null,-5260,null,null,null,null,null,26599,null,null,null,null,null,null,null,null,null,null,null,null,null,null,null,null,null,164.05,null,46471,null,null,null,null,null,null,null,null,null,null,null,null,-60233,null,null,null,null,null,null,"","SA Monetary value (2dp)"]
[9,"","SPS9","Adjustment to arrive at profit or loss for this basis period",null,null,null,null,null,null,null,null,null,null,null,null,null,null,null,null,null,null,null,null,null,null,null,null,null,null,null,null,null,null,null,null,null,null,null,null,null,null,null,null,null,null,null,null,null,null,null,null,null,null,null,null,null,null,null,null,null,null,null,null,null,null,null,null,null,null,null,null,null,null,null,null,null,null,null,null,null,null,null,null,null,null,null,null,null,null,null,null,null,null,null,null,null,null,null,null,null,null,null,null,null,null,null,null,null,null,null,null,null,null,null,null,null,null,null,null,null,null,null,null,null,null,10792,null,null,null,null,null,null,null,null,null,null,null,null,null,null,null,null,null,null,null,null,null,null,null,null,null,null,null,null,null,null,null,null,null,null,null,null,null,null,null,null,null,null,null,null,null,null,null,null,null,null,null,null,null,null,null,null,null,null,null,null,null,null,null,null,null,null,null,null,null,null,null,null,null,null,null,null,null,null,null,null,null,null,null,null,null,null,null,null,null,null,null,null,null,null,null,null,null,null,null,null,null,null,null,null,null,null,null,null,null,null,null,null,null,null,null,null,null,null,null,null,null,null,null,null,null,null,null,null,null,null,null,null,null,null,null,null,null,null,null,null,null,null,null,null,null,null,null,null,null,null,null,"","SA Monetary value (2dp)"]
[10,"","SPS10","This year's instalment of adjustment on withdrawal of cash basis, or other adjustment for change of basis",null,null,null,null,null,null,null,null,null,null,null,null,null,null,null,null,null,null,null,null,null,null,null,null,null,null,null,null,null,null,null,null,null,null,null,null,null,null,null,null,null,null,null,null,null,null,null,null,null,null,null,null,null,null,null,null,null,null,null,null,null,null,null,null,null,null,null,null,null,null,null,null,null,null,null,null,null,null,null,null,null,null,null,null,null,null,null,null,null,null,null,null,null,null,null,null,16512,null,null,null,null,null,null,null,null,null,null,null,null,null,null,null,null,null,null,null,null,null,null,null,null,null,null,null,null,null,null,null,null,null,null,null,null,null,null,null,null,null,null,null,null,null,null,null,null,null,null,null,null,null,null,null,null,null,null,null,null,null,null,null,null,null,null,null,null,null,null,null,null,null,null,null,null,null,null,null,null,null,null,null,null,null,null,null,null,null,null,null,null,16512,16512,null,null,null,null,null,null,null,null,null,null,null,null,null,null,null,null,null,null,null,null,null,null,null,null,null,null,null,null,null,null,null,null,null,null,null,null,null,null,null,null,null,null,null,null,null,null,null,null,null,null,null,null,null,null,null,null,null,null,null,null,null,null,null,null,null,null,null,null,null,null,null,null,null,null,null,null,null,null,null,null,null,null,null,"","SA Monetary value (2dp) except 0.00"]
[11,"","SPS11","Adjustment for farmers’ averaging",null,null,null,null,null,null,null,null,null,null,null,null,null,null,null,null,null,null,null,null,null,null,null,null,null,null,null,null,null,null,null,null,null,null,null,null,null,null,null,null,null,null,null,null,null,null,null,null,null,null,null,null,null,null,null,null,null,null,null,null,null,null,null,null,null,null,null,null,null,null,null,null,null,null,null,null,null,null,null,null,null,null,null,null,null,null,null,null,null,null,null,null,null,null,null,null,null,null,null,null,null,null,null,null,null,null,null,null,null,null,null,null,null,null,null,null,null,null,null,null,null,null,null,null,null,null,null,null,null,null,null,null,null,null,null,null,null,null,null,null,null,null,null,null,null,null,null,null,null,null,null,null,null,null,null,null,null,null,null,null,null,null,null,null,null,null,null,null,null,null,null,null,null,null,null,null,null,null,null,null,null,null,null,null,null,null,null,null,null,null,null,null,null,null,null,null,null,null,null,null,null,null,null,null,null,null,null,null,null,null,null,null,null,null,null,null,null,null,null,null,null,null,null,null,null,null,null,null,null,null,null,null,null,null,null,null,null,null,null,null,null,null,null,null,null,null,null,null,null,null,null,null,null,null,null,null,null,null,null,null,null,null,null,null,null,null,null,null,null,null,null,null,null,null,"","SA Monetary value (2dp)"]
[12,"","SPS12","Foreign tax claimed as a deduction",null,null,null,null,null,null,null,null,null,null,null,null,null,null,null,null,null,null,null,null,null,null,null,null,null,null,null,null,null,null,null,null,null,null,null,null,null,null,null,null,null,null,null,null,null,null,null,null,null,null,null,null,null,null,null,null,null,null,null,null,null,null,null,null,null,null,null,null,null,null,null,null,null,null,null,null,null,null,null,null,null,null,null,null,null,null,null,null,null,null,null,null,null,null,null,null,null,null,null,null,null,null,null,null,null,null,null,null,null,null,null,null,null,null,null,null,null,null,null,null,null,null,null,null,null,null,null,null,null,null,null,null,null,null,null,null,null,null,null,null,null,null,null,null,null,null,null,null,null,null,null,null,null,null,null,null,null,null,null,null,null,null,null,null,null,null,null,null,null,null,null,null,null,null,null,null,null,null,null,null,null,null,null,null,null,null,null,null,null,null,null,null,null,null,null,null,null,null,null,null,null,null,null,null,null,null,null,null,null,null,null,null,null,null,null,null,null,null,null,null,null,null,null,null,null,null,null,null,null,null,null,null,null,null,null,null,null,null,null,null,null,null,null,null,null,null,null,null,null,null,null,null,null,null,null,null,null,null,null,null,null,null,null,null,null,null,null,null,null,null,null,null,null,null,"","SA Monetary value (2dp) > 0.00"]
[13,"","SPS16","Adjusted profit",null,null,null,null,null,null,null,null,null,null,null,null,null,null,null,null,null,null,null,null,null,null,null,null,null,null,null,null,null,null,null,null,null,null,null,null,null,null,null,null,null,null,null,null,null,null,null,null,null,null,{"$f":"IF(BC9+BC10+BC11+BC12-(BC13)>0,BC9+BC10+BC11+BC12-(BC13),BC12)","v":1080},{"$f":"IF(BD9+BD10+BD11+BD12-(BD13)>0,BD9+BD10+BD11+BD12-(BD13),BD12)","v":1657},null,null,null,null,null,"  ",null,null,null,null,null,null,null,null,null,null,null,null,null,null,null,null,null,null,null,null,null,null,null,null,{"$f":"IF(CI9+CI10+CI11+CI12-(CI13)>0,CI9+CI10+CI11+CI12-(CI13),CI12)","v":6745},null,null,null,null,null,null,null,null,null,null,null,null,null,{"$f":"IF(CW9+CW10+CW11+CW12-(CW13)>0,CW9+CW10+CW11+CW12-(CW13),CW12)","v":80512},{"$f":"IF(CX9+CX10+CX11+CX12-(CX13)>0,CX9+CX10+CX11+CX12-(CX13),CX12)","v":0},null,null,null,null,null,{"$f":"IF(DD9+DD10+DD11+DD12-(DD13)>0,DD9+DD10+DD11+DD12-(DD13),DD12)","v":6745},null,null,{"$f":"IF(DG9+DG10+DG11+DG12-(DG13)>0,DG9+DG10+DG11+DG12-(DG13),DG12)","v":39001},null,null,null,null,null,{"$f":"IF(DM9+DM10+DM11+DM12-(DM13)>0,DM9+DM10+DM11+DM12-(DM13),DM12)","v":6745},null,18115,null,null,null,18115,null,6745,null,{"$f":"IF(DW9+DW10+DW11+DW12-(DW13)>0,DW9+DW10+DW11+DW12-(DW13),DW12)","v":10792},null,null,null,null,null,null,null,null,null,null,null,null,{"$f":"IF(EJ9+EJ10+EJ11+EJ12-(EJ13)>0,EJ9+EJ10+EJ11+EJ12-(EJ13),EJ12)","v":20095},{"$f":"IF(EK9+EK10+EK11+EK12-(EK13)>0,EK9+EK10+EK11+EK12-(EK13),EK12)","v":16757},null,{"$f":"IF(EM9+EM10+EM11+EM12-(EM13)>0,EM9+EM10+EM11+EM12-(EM13),EM12)","v":64204},null,null,null,null,null,null,null,null,null,null,null,null,null,null,null,null,null,null,null,null,null,{"$f":"IF(FI9+FI10+FI11+FI12-(FI13)>0,FI9+FI10+FI11+FI12-(FI13),FI12)","v":2376},{"$f":"IF(FJ9+FJ10+FJ11+FJ12-(FJ13)>0,FJ9+FJ10+FJ11+FJ12-(FJ13),FJ12)","v":13296},null,null,null,null,null,null,null,null,null,null,null,null,null,null,null,null,null,null,null,null,null,null,null,null,null,null,null,{"$f":"IF(GL9+GL10+GL11+GL12-(GL13)>0,GL9+GL10+GL11+GL12-(GL13),GL12)","v":80512},{"$f":"IF(GM9+GM10+GM11+GM12-(GM13)>0,GM9+GM10+GM11+GM12-(GM13),GM12)","v":80512},null,null,null,null,null,null,null,null,null,null,null,null,{"$f":"IF(GZ9+GZ10+GZ11+GZ12-(GZ13)>0,GZ9+GZ10+GZ11+GZ12-(GZ13),GZ12)","v":0},{"$f":"IF(HA9+HA10+HA11+HA12-(HA13)>0,HA9+HA10+HA11+HA12-(HA13),HA12)","v":0},0,null,null,null,null,null,null,null,null,null,null,{"$f":"IF(HM9+HM10+HM11+HM12-(HM13)>0,HM9+HM10+HM11+HM12-(HM13),HM12)","v":937},null,null,null,null,null,null,null,null,{"$f":"IF(HV9+HV10+HV11+HV12-(HV13)>0,HV9+HV10+HV11+HV12-(HV13),HV12)","v":0},null,null,{"$f":"IF(HY9+HY10+HY11+HY12-(HY13)>0,HY9+HY10+HY11+HY12-(HY13),HY12)","v":0},null,null,null,null,null,{"$f":"IF(IE9+IE10+IE11+IE12-(IE13)>0,IE9+IE10+IE11+IE12-(IE13),IE12)","v":26599},null,null,null,null,null,null,null,null,null,null,null,null,null,null,null,null,null,{"$f":"IF(IW9+IW10+IW11+IW12-(IW13)>0,IW9+IW10+IW11+IW12-(IW13),IW12)","v":164.05},null,{"$f":"IF(IY9+IY10+IY11+IY12-(IY13)>0,IY9+IY10+IY11+IY12-(IY13),IY12)","v":46471},null,null,null,null,null,null,null,null,null,null,null,null,null,null,null,null,null,null,null,"a) If (SPS8 + SPS9 minus (SPS12 + SPS13)) is positive, then SPS16 equals (SPS8 + SPS9 minus (SPS12 + SPS13) + SPS10 + SPS11)\nb) if (SPS8 + SPS9 minus (SPS12 + SPS13)) is negative or zero, then if SPS10 + SPS11 > 0, SPS16 = SPS10 + SPS11 else SPS16 must be zero or absent","SA Monetary value (2dp) >= 0.00"]
[14,"","SPS17","Losses brought forward from last year used this year",null,null,null,null,null,null,null,null,null,null,null,null,null,null,null,null,null,null,null,null,null,null,null,null,null,null,null,null,null,null,null,null,null,null,null,null,null,null,null,null,null,null,null,null,null,null,null,null,null,null,null,null,null,null,null,null,null,null,null,null,null,null,null,null,null,null,null,null,null,null,null,null,null,null,null,null,null,null,null,null,null,null,null,null,null,null,null,null,null,null,null,null,null,null,null,null,15625,null,null,null,null,null,null,null,null,null,null,null,null,null,null,null,null,null,null,null,null,null,null,null,null,null,null,null,null,null,null,null,null,null,null,null,null,null,null,null,null,null,null,null,null,null,null,null,null,null,null,null,null,null,null,null,null,null,null,null,null,null,null,null,null,null,null,null,null,null,null,null,null,null,null,null,null,null,null,null,null,null,null,null,null,null,null,null,null,null,null,null,null,15625,15625,null,null,null,null,null,null,null,null,null,null,null,null,null,null,null,null,null,null,null,null,null,null,null,null,null,null,null,null,null,null,null,null,null,null,null,null,null,null,null,null,null,null,null,null,null,null,null,null,null,null,null,null,null,null,null,null,null,null,null,null,null,null,null,null,null,null,null,null,null,null,null,null,null,null,null,null,null,null,null,null,null,null,null,"If present, must be less than or equal to SPS16","SA Monetary value (2dp) > 0.00"]
[15,"","SPS18","Taxable profit after losses brought forward",null,null,null,null,null,null,null,null,null,null,null,null,null,null,null,null,null,null,null,null,null,null,null,null,null,null,null,null,null,null,null,null,null,null,null,null,null,null,null,null,null,null,null,null,null,null,null,null,null,null,{"$f":"MAX(0,BC14-BC15)","v":1080},{"$f":"MAX(0,BD14-BD15)","v":1657},null,null,null,null,null,null,null,null,null,null,null,null,null,null,null,null,null,null,null,null,null,null,null,null,null,null,null,null,null,null,{"$f":"MAX(0,CI14-CI15)","v":6745},null,null,null,null,null,null,null,null,null,null,null,null,null,{"$f":"MAX(0,CW14-CW15)","v":64887},{"$f":"MAX(0,CX14-CX15)","v":0},null,null,null,null,null,{"$f":"MAX(0,DD14-DD15)","v":6745},null,null,{"$f":"MAX(0,DG14-DG15)","v":39001},null,null,null,null,null,6745,null,{"$f":"MAX(0,DO14-DO15)","v":18115},null,null,null,{"$f":"MAX(0,DS14-DS15)","v":18115},null,6745,null,10792,null,null,null,null,null,null,null,null,null,null,null,null,{"$f":"MAX(0,EJ14-EJ15)","v":20095},{"$f":"MAX(0,EK14-EK15)","v":16757},null,{"$f":"MAX(0,EM14-EM15)","v":64204},null,null,null,null,null,null,null,null,null,null,34297,null,null,null,null,null,null,null,null,null,null,{"$f":"MAX(0,FI14-FI15)","v":2376},{"$f":"MAX(0,FJ14-FJ15)","v":13296},null,null,null,null,null,null,null,null,null,null,null,null,null,null,null,null,null,null,null,null,null,null,null,null,null,null,null,{"$f":"MAX(0,GL14-GL15)","v":64887},{"$f":"MAX(0,GM14-GM15)","v":64887},null,null,null,null,null,null,null,null,null,null,null,null,{"$f":"MAX(0,GZ14-GZ15)","v":0},{"$f":"MAX(0,HA14-HA15)","v":0},{"$f":"MAX(0,HB14-HB15)","v":0},null,null,null,null,null,null,null,null,null,null,{"$f":"MAX(0,HM14-HM15)","v":937},null,null,null,null,null,null,null,null,{"$f":"MAX(0,HV14-HV15)","v":0},null,null,{"$f":"MAX(0,HY14-HY15)","v":0},null,null,null,null,null,{"$f":"MAX(0,IE14-IE15)","v":26599},null,null,null,null,null,null,null,null,null,null,null,null,null,null,null,null,null,{"$f":"MAX(0,IW14-IW15)","v":164.05},null,{"$f":"MAX(0,IY14-IY15)","v":46471},null,null,null,null,null,null,null,null,null,null,null,null,null,null,null,null,null,null,null,"Equal to SPS16 minus SPS17","SA Monetary value (2dp) >= 0.00"]
[16,"","SPS19","Add amounts not included in the partnership accounts",null,null,null,null,null,null,null,null,null,null,null,null,null,null,null,null,null,null,null,null,null,null,null,null,null,null,null,null,null,null,null,null,null,null,null,null,null,null,null,null,null,null,null,null,null,null,null,null,null,null,null,null,null,null,null,null,null,null,null,null,null,null,null,null,null,null,null,null,null,null,null,null,null,null,null,null,null,null,null,null,null,null,1200,null,null,null,null,null,null,null,null,null,null,null,null,null,9620,null,null,null,null,null,null,1200,null,null,null,null,null,null,null,null,1200,null,null,null,null,null,null,null,1200,null,null,null,null,null,null,null,null,null,null,null,null,null,null,null,null,null,null,null,null,null,null,null,null,null,null,null,null,null,null,null,null,null,null,null,null,null,null,null,null,null,null,null,null,null,null,null,null,null,null,null,null,null,null,null,null,null,null,null,null,null,null,null,null,null,null,null,null,9620,9620,null,null,null,null,null,null,null,null,null,null,null,null,null,null,null,null,null,null,null,null,null,null,null,null,null,null,null,null,null,null,null,null,null,null,null,null,null,null,null,null,null,null,null,null,null,null,null,null,null,null,null,null,null,null,null,null,null,null,null,null,null,null,null,null,null,null,null,null,null,null,null,null,null,null,null,null,null,null,null,null,null,null,null,null,"SA Monetary value (2dp) > 0.00"]
[17,"","SPS20","Total taxable profits from this business",null,null,null,null,null,null,null,null,null,null,null,null,null,null,null,null,null,null,null,null,null,null,null,null,null,null,null,null,null,null,null,null,null,null,null,null,null,null,null,null,null,null,null,null,null,null,null,null,null,null,{"$f":"BC16+BC17","v":1080},{"$f":"BD16+BD17","v":1657},null,null,null,null,null,null,null,null,null,null,null,null,null,null,null,null,null,null,null,null,null,null,null,null,null,null,null,null,null,null,{"$f":"CI16+CI17","v":7945},null,null,null,null,null,null,null,null,null,null,null,null,null,{"$f":"CW16+CW17","v":74507},{"$f":"CX16+CX17","v":0},null,null,null,null,null,{"$f":"DD16+DD17","v":7945},null,null,{"$f":"DG16+DG17","v":39001},null,null,null,null,null,{"$f":"DM16+DM17","v":7945},null,{"$f":"DO16+DO17","v":18115},null,null,null,{"$f":"DS16+DS17","v":18115},null,{"$f":"DU16+DU17","v":7945},null,10792,null,null,null,null,null,null,null,null,null,null,null,null,{"$f":"EJ16+EJ17","v":20095},{"$f":"EK16+EK17","v":16757},null,{"$f":"EM16+EM17","v":64204},null,null,null,null,null,null,null,null,null,null,{"$f":"EX16+EX17","v":34297},null,null,null,null,null,null,null,null,null,null,{"$f":"FI16+FI17","v":2376},{"$f":"FJ16+FJ17","v":13296},null,null,null,null,null,null,null,null,null,null,null,null,null,null,null,null,null,null,null,null,null,null,null,null,null,null,null,{"$f":"GL16+GL17","v":74507},{"$f":"GM16+GM17","v":74507},null,null,null,null,null,null,null,null,null,null,null,null,{"$f":"GZ16+GZ17","v":0},{"$f":"HA16+HA17","v":0},{"$f":"HB16+HB17","v":0},null,null,null,null,null,null,null,null,null,null,{"$f":"HM16+HM17","v":937},null,null,null,null,null,null,null,null,{"$f":"HV16+HV17","v":0},null,null,{"$f":"HY16+HY17","v":0},null,null,null,null,null,{"$f":"IE16+IE17","v":26599},null,null,null,null,null,null,null,null,null,null,null,null,null,null,null,null,null,{"$f":"IW16+IW17","v":164.05},null,{"$f":"IY16+IY17","v":46471},null,null,null,null,null,null,null,null,null,null,null,null,null,null,null,null,null,null,null,"Equal to SPS18 + SPS19","SA Monetary value (2dp) >= 0.00"]
[18,1844,"SPS21","Allowable loss",null,null,null,null,null,null,null,null,null,null,null,null,null,null,null,null,null,null,null,null,null,null,null,null,null,null,null,null,null,null,null,null,null,null,null,null,null,null,null,null,null,null,null,null,null,null,null,null,null,null,{"$f":"MAX(0,(BC13)-(BC9+BC10+BC11))","v":0},{"$f":"MAX(0,(BD13)-(BD9+BD10+BD11))","v":0},null,null,null,null,null,null,null,null,null,null,null,null,null,null,null,null,null,null,null,null,null,null,null,null,null,null,null,null,null,null,{"$f":"MAX(0,(CI13)-(CI9+CI10+CI11))","v":0},null,null,null,null,null,null,null,null,null,null,null,null,null,{"$f":"MAX(0,(CW13)-(CW9+CW10+CW11))","v":0},{"$f":"MAX(0,(CX13)-(CX9+CX10+CX11))","v":5500},null,null,null,null,null,{"$f":"MAX(0,(DD13)-(DD9+DD10+DD11))","v":0},null,null,{"$f":"MAX(0,(DG13)-(DG9+DG10+DG11))","v":0},null,null,null,null,null,null,null,null,null,null,null,null,null,null,null,null,null,null,null,null,null,null,null,null,null,null,null,null,{"$f":"MAX(0,(EJ13)-(EJ9+EJ10+EJ11))","v":0},{"$f":"MAX(0,(EK13)-(EK9+EK10+EK11))","v":0},null,null,null,null,null,null,null,null,null,null,null,null,null,null,null,null,null,null,{"$f":"MAX(0,(FD13)-(FD9+FD10+FD11))","v":0},null,null,null,null,{"$f":"MAX(0,(FI13)-(FI9+FI10+FI11))","v":0},{"$f":"MAX(0,(FJ13)-(FJ9+FJ10+FJ11))","v":0},null,null,null,null,null,1844,null,null,null,null,null,null,null,null,null,null,null,null,null,null,null,null,null,null,null,null,null,{"$f":"MAX(0,(GL13)-(GL9+GL10+GL11))","v":0},{"$f":"MAX(0,(GM13)-(GM9+GM10+GM11))","v":0},null,null,null,null,null,null,null,null,null,null,null,null,{"$f":"MAX(0,(GZ13)-(GZ9+GZ10+GZ11))","v":62547},{"$f":"MAX(0,(HA13)-(HA9+HA10+HA11))","v":62547},71159,null,null,null,null,null,null,null,null,null,null,null,null,null,null,null,null,null,null,null,{"$f":"MAX(0,(HV13)-(HV9+HV10+HV11))","v":62547},null,null,{"$f":"MAX(0,(HY13)-(HY9+HY10+HY11))","v":5260},null,null,null,null,null,null,null,null,null,null,null,null,null,null,null,null,null,null,null,null,null,null,null,null,null,{"$f":"MAX(0,(IY13)-(IY9+IY10+IY11))","v":0},null,null,null,null,null,null,null,null,null,null,null,null,{"$f":"MAX(0,(JL13)-(JL9+JL10+JL11))","v":60233},null,null,null,null,null,null,"a) If (SPS8 + SPS9 minus (SPS12 + SPS13)) is negative, then SPS21 equals the positive equivalent of that sum.\nb) if (SPS8 + SPS9 minus (SPS12 + SPS13))is greater than or equal to zero, then SPS21 = zero or absent\nc) Cannot be negative","SA Monetary value (2dp) >= 0.00"]
[19,1844,"SPS22","Loss offset against other income",null,null,null,null,null,null,null,null,null,null,null,null,null,null,null,null,null,null,null,null,null,null,null,null,null,null,null,null,null,null,null,null,null,null,null,null,null,null,null,null,null,null,null,null,null,null,null,null,null,null,null,null,null,null,null,null,null,null,null,null,null,null,null,null,null,null,null,null,null,null,null,null,null,null,null,null,null,null,null,null,null,null,null,null,null,null,null,null,null,null,null,null,null,null,null,null,null,5500,null,null,null,null,null,null,null,null,null,null,null,null,null,null,null,null,null,null,null,null,null,null,null,null,null,null,null,null,null,null,null,null,null,null,null,null,null,null,null,null,null,null,null,null,null,null,null,null,null,null,null,null,null,null,null,null,null,null,null,null,null,null,null,null,null,null,null,null,null,1844,null,null,null,null,null,null,null,null,null,null,null,null,null,null,null,null,null,null,null,null,null,null,null,null,null,null,null,null,null,null,null,null,null,null,null,62547,62547,71159,null,null,null,null,null,null,null,null,null,null,null,null,null,null,null,null,null,null,null,62547,null,null,5260,null,null,null,null,null,null,null,null,null,null,null,null,null,null,null,null,null,null,null,null,null,null,null,null,null,null,null,null,null,null,null,null,null,null,null,null,null,null,null,null,null,null,null,null,null,"If present, must be less than or equal to SPS21                                If SPS5 = 'Y' then SPS 22 must be zero or absent","SA Monetary value (2dp) > 0.00"]
[20,"","SPS23","Loss to carry back",null,null,null,null,null,null,null,null,null,null,null,null,null,null,null,null,null,null,null,null,null,null,null,null,null,null,null,null,null,null,null,null,null,null,null,null,null,null,null,null,null,null,null,null,null,null,null,null,null,null,null,null,null,null,null,null,null,null,null,null,null,null,null,null,null,null,null,null,null,null,null,null,null,null,null,null,null,null,null,null,null,null,null,null,null,null,null,null,null,null,null,null,null,null,null,null,null,null,null,null,null,null,null,null,null,null,null,null,null,null,null,null,null,null,null,null,null,null,null,null,null,null,null,null,null,null,null,null,null,null,null,null,null,null,null,null,null,null,null,null,null,null,null,null,null,null,null,null,null,null,null,null,null,null,null,null,null,null,null,null,null,null,null,null,null,null,null,null,null,null,null,null,null,null,null,null,null,null,null,null,null,null,null,null,null,null,null,null,null,null,null,null,null,null,null,null,null,null,null,null,null,null,null,null,null,null,null,null,null,null,null,null,null,null,null,null,null,null,null,null,null,null,null,null,null,null,null,null,null,null,null,null,null,null,null,null,null,null,null,null,null,null,null,null,null,null,null,null,null,null,null,null,null,null,null,null,null,null,null,null,null,null,null,null,null,null,null,null,null,null,null,null,null,null,"If present, must be less than or equal to SPS21 minus SPS22.","SA Monetary value (2dp) >= 0.00"]
[21,"","SPS24","Loss to carry forward",null,null,null,null,null,null,null,null,null,null,null,null,null,null,null,null,null,null,null,null,null,null,null,null,null,null,null,null,null,null,null,null,null,null,null,null,null,null,null,null,null,null,null,null,null,null,null,null,null,null,null,null,null,null,null,null,null,null,null,null,null,null,null,null,null,null,null,null,null,null,null,null,null,null,null,null,null,null,null,null,null,null,null,null,null,null,null,null,null,null,null,null,null,null,null,null,null,null,null,null,null,null,null,null,null,null,null,null,null,null,null,null,null,null,null,null,null,null,null,null,null,null,null,null,null,null,null,null,null,null,null,null,null,null,null,null,null,null,null,null,null,null,null,null,null,null,null,null,null,null,null,null,null,null,null,null,null,null,null,null,null,null,null,null,null,null,null,null,null,null,null,null,null,null,null,null,null,null,null,null,null,null,null,null,null,null,null,null,null,null,null,null,null,null,null,null,null,null,null,null,null,null,null,null,null,null,null,null,null,null,null,null,null,null,null,null,292,null,null,null,null,null,null,null,null,null,null,null,null,null,null,null,null,null,null,null,null,null,null,null,null,null,null,null,null,null,null,null,null,null,null,null,null,null,null,null,null,null,null,null,null,null,null,null,null,null,null,154721,null,null,null,null,null,null,null,"SA Monetary value (2dp) >= 0.00"]
[22,"","SPS25",{"$f":"\"If your total profits for \"&tax_year&\" are less than \"&DOLLAR(NIC2_SPT,0)&\" and you choose to pay Class 2 NICs voluntarily, put 'X' in the box\"","v":"If your total profits for 2025-26 are less than £6,845 and you choose to pay Class 2 NICs voluntarily, put 'X' in the box"},null,null,null,null,null,null,null,null,null,null,null,null,null,null,null,null,null,null,null,null,null,null,null,null,null,null,null,null,null,null,null,null,null,null,null,null,null,null,null,null,null,null,null,null,null,null,null,null,null,null,{"$f":"IF(PS_A_IND>1,IF(SE_A_IND>1,\"\",IF(SE_B_IND>1,\"\",IF(LUN_IND>1,\"\",IF(PS_B_IND>1,\"\",IF(AND(BC18<NIC2_SPT,NIC2_Vol,NIC_ex_set=FALSE),\"Y\",\"N\"))))),\"\")","v":""},{"$f":"IF(PS_A_IND>1,IF(SE_A_IND>1,\"\",IF(SE_B_IND>1,\"\",IF(LUN_IND>1,\"\",IF(PS_B_IND>1,\"\",IF(AND(BD18<NIC2_SPT,NIC2_Vol,NIC_ex_set=FALSE),\"Y\",\"N\"))))),\"\")","v":""},null,null,null,null,null,null,null,null,null,null,null,null,null,null,null,null,null,null,null,null,null,null,null,null,null,null,null,null,null,null,{"$f":"IF(PS_A_IND>1,IF(SE_A_IND>1,\"\",IF(SE_B_IND>1,\"\",IF(LUN_IND>1,\"\",IF(PS_B_IND>1,\"\",IF(AND(CI18<NIC2_SPT,NIC2_Vol,NIC_ex_set=FALSE),\"Y\",\"N\"))))),\"\")","v":""},null,null,null,null,null,null,null,null,null,null,null,null,null,{"$f":"IF(PS_A_IND>1,IF(SE_A_IND>1,\"\",IF(SE_B_IND>1,\"\",IF(LUN_IND>1,\"\",IF(PS_B_IND>1,\"\",IF(AND(CW18<NIC2_SPT,NIC2_Vol,NIC_ex_set=FALSE),\"Y\",\"N\"))))),\"\")","v":""},{"$f":"IF(PS_A_IND>1,IF(SE_A_IND>1,\"\",IF(SE_B_IND>1,\"\",IF(LUN_IND>1,\"\",IF(PS_B_IND>1,\"\",IF(AND(CX18<NIC2_SPT,NIC2_Vol,NIC_ex_set=FALSE),\"Y\",\"N\"))))),\"\")","v":""},null,null,null,null,null,{"$f":"IF(PS_A_IND>1,IF(SE_A_IND>1,\"\",IF(SE_B_IND>1,\"\",IF(LUN_IND>1,\"\",IF(PS_B_IND>1,\"\",IF(AND(DD18<NIC2_SPT,NIC2_Vol,NIC_ex_set=FALSE),\"Y\",\"N\"))))),\"\")","v":""},null,null,{"$f":"IF(PS_A_IND>1,IF(SE_A_IND>1,\"\",IF(SE_B_IND>1,\"\",IF(LUN_IND>1,\"\",IF(PS_B_IND>1,\"\",IF(AND(DG18<NIC2_SPT,NIC2_Vol,NIC_ex_set=FALSE),\"Y\",\"N\"))))),\"\")","v":""},null,null,null,null,null,{"$f":"IF(PS_A_IND>1,IF(SE_A_IND>1,\"\",IF(SE_B_IND>1,\"\",IF(LUN_IND>1,\"\",IF(PS_B_IND>1,\"\",IF(AND(DM18<NIC2_SPT,NIC2_Vol,NIC_ex_set=FALSE),\"Y\",\"N\"))))),\"\")","v":""},null,null,null,null,null,null,null,{"$f":"IF(PS_A_IND>1,IF(SE_A_IND>1,\"\",IF(SE_B_IND>1,\"\",IF(LUN_IND>1,\"\",IF(PS_B_IND>1,\"\",IF(AND(DU18<NIC2_SPT,NIC2_Vol,NIC_ex_set=FALSE),\"Y\",\"N\"))))),\"\")","v":""},null,null,null,null,null,null,null,null,null,null,null,null,null,null,null,null,null,null,null,null,null,null,null,null,null,null,null,null,null,null,null,null,null,null,{"$f":"IF(PS_A_IND>1,IF(SE_A_IND>1,\"\",IF(SE_B_IND>1,\"\",IF(LUN_IND>1,\"\",IF(PS_B_IND>1,\"\",IF(AND(FD18<NIC2_SPT,NIC2_Vol,NIC_ex_set=FALSE),\"Y\",\"N\"))))),\"\")","v":""},null,{"$f":"IF(PS_A_IND>1,IF(SE_A_IND>1,\"\",IF(SE_B_IND>1,\"\",IF(LUN_IND>1,\"\",IF(PS_B_IND>1,\"\",IF(AND(FF18<NIC2_SPT,NIC2_Vol,NIC_ex_set=FALSE),\"Y\",\"N\"))))),\"\")","v":""},null,null,{"$f":"IF(PS_A_IND>1,IF(SE_A_IND>1,\"\",IF(SE_B_IND>1,\"\",IF(LUN_IND>1,\"\",IF(PS_B_IND>1,\"\",IF(AND(FI18<NIC2_SPT,NIC2_Vol,NIC_ex_set=FALSE),\"Y\",\"N\"))))),\"\")","v":""},{"$f":"IF(PS_A_IND>1,IF(SE_A_IND>1,\"\",IF(SE_B_IND>1,\"\",IF(LUN_IND>1,\"\",IF(PS_B_IND>1,\"\",IF(AND(FJ18<NIC2_SPT,NIC2_Vol,NIC_ex_set=FALSE),\"Y\",\"N\"))))),\"\")","v":""},null,null,null,null,null,null,null,null,null,null,null,null,null,null,null,null,null,null,null,null,null,null,null,null,null,null,null,{"$f":"IF(PS_A_IND>1,IF(SE_A_IND>1,\"\",IF(SE_B_IND>1,\"\",IF(LUN_IND>1,\"\",IF(PS_B_IND>1,\"\",IF(AND(GL18<NIC2_SPT,NIC2_Vol,NIC_ex_set=FALSE),\"Y\",\"N\"))))),\"\")","v":""},{"$f":"IF(PS_A_IND>1,IF(SE_A_IND>1,\"\",IF(SE_B_IND>1,\"\",IF(LUN_IND>1,\"\",IF(PS_B_IND>1,\"\",IF(AND(GM18<NIC2_SPT,NIC2_Vol,NIC_ex_set=FALSE),\"Y\",\"N\"))))),\"\")","v":""},null,null,null,null,null,null,null,null,null,null,null,null,{"$f":"IF(PS_A_IND>1,IF(SE_A_IND>1,\"\",IF(SE_B_IND>1,\"\",IF(LUN_IND>1,\"\",IF(PS_B_IND>1,\"\",IF(AND(GZ18<NIC2_SPT,NIC2_Vol,NIC_ex_set=FALSE),\"Y\",\"N\"))))),\"\")","v":""},{"$f":"IF(PS_A_IND>1,IF(SE_A_IND>1,\"\",IF(SE_B_IND>1,\"\",IF(LUN_IND>1,\"\",IF(PS_B_IND>1,\"\",IF(AND(HA18<NIC2_SPT,NIC2_Vol,NIC_ex_set=FALSE),\"Y\",\"N\"))))),\"\")","v":""},{"$f":"IF(PS_A_IND>1,IF(SE_A_IND>1,\"\",IF(SE_B_IND>1,\"\",IF(LUN_IND>1,\"\",IF(PS_B_IND>1,\"\",IF(AND(HB18<NIC2_SPT,NIC2_Vol,NIC_ex_set=FALSE),\"Y\",\"N\"))))),\"\")","v":""},null,null,null,null,null,null,null,null,null,null,null,null,null,null,null,null,null,null,null,{"$f":"IF(PS_A_IND>1,IF(SE_A_IND>1,\"\",IF(SE_B_IND>1,\"\",IF(LUN_IND>1,\"\",IF(PS_B_IND>1,\"\",IF(AND(HV18<NIC2_SPT,NIC2_Vol,NIC_ex_set=FALSE),\"Y\",\"N\"))))),\"\")","v":""},null,null,{"$f":"IF(PS_A_IND>1,IF(SE_A_IND>1,\"\",IF(SE_B_IND>1,\"\",IF(LUN_IND>1,\"\",IF(PS_B_IND>1,\"\",IF(AND(HY18<NIC2_SPT,NIC2_Vol,NIC_ex_set=FALSE),\"Y\",\"N\"))))),\"\")","v":""},null,null,null,null,null,{"$f":"IF(PS_A_IND>1,IF(SE_A_IND>1,\"\",IF(SE_B_IND>1,\"\",IF(LUN_IND>1,\"\",IF(PS_B_IND>1,\"\",IF(AND(IE18<NIC2_SPT,NIC2_Vol,NIC_ex_set=FALSE),\"Y\",\"N\"))))),\"\")","v":""},null,null,null,null,null,null,null,null,null,null,null,null,null,null,null,null,null,null,null,{"$f":"IF(PS_A_IND>1,IF(SE_A_IND>1,\"\",IF(SE_B_IND>1,\"\",IF(LUN_IND>1,\"\",IF(PS_B_IND>1,\"\",IF(AND(IY18<NIC2_SPT,NIC2_Vol,NIC_ex_set=FALSE),\"Y\",\"N\"))))),\"\")","v":""},null,null,null,null,null,null,null,null,null,null,null,null,null,null,null,null,null,null,null,null,"\"yes\""]
[23,"","SPS26","If you are excempt from paying Class 4 NICs, put ‘X’ in the box",null,null,null,null,null,null,null,null,null,null,null,null,null,null,null,null,null,null,null,null,null,null,null,null,null,null,null,null,null,null,null,null,null,null,null,null,null,null,null,null,null,null,null,null,null,null,null,null,null,null,{"$f":"IF(PS_A_IND>1,IF(LUN_IND>1,\"\",IF(SE_B_IND>1,\"\",IF(SE_A_IND>1,\"\",IF(NIC_ex_set,\"Y\",\"N\")))),\"\")","v":""},{"$f":"IF(PS_A_IND>1,IF(LUN_IND>1,\"\",IF(SE_B_IND>1,\"\",IF(SE_A_IND>1,\"\",IF(NIC_ex_set,\"Y\",\"N\")))),\"\")","v":""},null,null,null,null,null,null,null,null,null,null,null,null,null,null,null,null,null,null,null,null,null,null,null,null,null,null,null,null,null,null,{"$f":"IF(PS_A_IND>1,IF(LUN_IND>1,\"\",IF(SE_B_IND>1,\"\",IF(SE_A_IND>1,\"\",IF(NIC_ex_set,\"Y\",\"N\")))),\"\")","v":""},null,null,null,null,null,null,null,null,null,null,null,null,null,{"$f":"IF(PS_A_IND>1,IF(LUN_IND>1,\"\",IF(SE_B_IND>1,\"\",IF(SE_A_IND>1,\"\",IF(NIC_ex_set,\"Y\",\"N\")))),\"\")","v":""},{"$f":"IF(PS_A_IND>1,IF(LUN_IND>1,\"\",IF(SE_B_IND>1,\"\",IF(SE_A_IND>1,\"\",IF(NIC_ex_set,\"Y\",\"N\")))),\"\")","v":""},null,null,null,null,null,{"$f":"IF(PS_A_IND>1,IF(LUN_IND>1,\"\",IF(SE_B_IND>1,\"\",IF(SE_A_IND>1,\"\",IF(NIC_ex_set,\"Y\",\"N\")))),\"\")","v":""},null,null,{"$f":"IF(PS_A_IND>1,IF(LUN_IND>1,\"\",IF(SE_B_IND>1,\"\",IF(SE_A_IND>1,\"\",IF(NIC_ex_set,\"Y\",\"N\")))),\"\")","v":""},null,null,null,null,null,{"$f":"IF(PS_A_IND>1,IF(LUN_IND>1,\"\",IF(SE_B_IND>1,\"\",IF(SE_A_IND>1,\"\",IF(NIC_ex_set,\"Y\",\"N\")))),\"\")","v":""},null,null,null,null,null,null,null,{"$f":"IF(PS_A_IND>1,IF(LUN_IND>1,\"\",IF(SE_B_IND>1,\"\",IF(SE_A_IND>1,\"\",IF(NIC_ex_set,\"Y\",\"N\")))),\"\")","v":""},null,null,null,null,null,null,null,null,null,null,null,null,null,null,null,null,null,null,null,null,null,null,null,null,null,null,null,null,null,null,null,null,null,null,{"$f":"IF(PS_A_IND>1,IF(LUN_IND>1,\"\",IF(SE_B_IND>1,\"\",IF(SE_A_IND>1,\"\",IF(NIC_ex_set,\"Y\",\"N\")))),\"\")","v":""},null,{"$f":"IF(PS_A_IND>1,IF(LUN_IND>1,\"\",IF(SE_B_IND>1,\"\",IF(SE_A_IND>1,\"\",IF(NIC_ex_set,\"Y\",\"N\")))),\"\")","v":""},null,null,{"$f":"IF(PS_A_IND>1,IF(LUN_IND>1,\"\",IF(SE_B_IND>1,\"\",IF(SE_A_IND>1,\"\",IF(NIC_ex_set,\"Y\",\"N\")))),\"\")","v":""},{"$f":"IF(PS_A_IND>1,IF(LUN_IND>1,\"\",IF(SE_B_IND>1,\"\",IF(SE_A_IND>1,\"\",IF(NIC_ex_set,\"Y\",\"N\")))),\"\")","v":""},null,null,null,null,null,null,null,null,null,null,null,null,null,null,null,null,null,null,null,null,null,null,null,null,null,null,null,{"$f":"IF(PS_A_IND>1,IF(LUN_IND>1,\"\",IF(SE_B_IND>1,\"\",IF(SE_A_IND>1,\"\",IF(NIC_ex_set,\"Y\",\"N\")))),\"\")","v":""},{"$f":"IF(PS_A_IND>1,IF(LUN_IND>1,\"\",IF(SE_B_IND>1,\"\",IF(SE_A_IND>1,\"\",IF(NIC_ex_set,\"Y\",\"N\")))),\"\")","v":""},null,null,null,null,null,null,null,null,null,null,null,null,{"$f":"IF(PS_A_IND>1,IF(LUN_IND>1,\"\",IF(SE_B_IND>1,\"\",IF(SE_A_IND>1,\"\",IF(NIC_ex_set,\"Y\",\"N\")))),\"\")","v":""},{"$f":"IF(PS_A_IND>1,IF(LUN_IND>1,\"\",IF(SE_B_IND>1,\"\",IF(SE_A_IND>1,\"\",IF(NIC_ex_set,\"Y\",\"N\")))),\"\")","v":""},{"$f":"IF(PS_A_IND>1,IF(LUN_IND>1,\"\",IF(SE_B_IND>1,\"\",IF(SE_A_IND>1,\"\",IF(NIC_ex_set,\"Y\",\"N\")))),\"\")","v":""},null,null,null,null,null,null,null,null,null,null,null,null,null,null,null,null,null,null,null,{"$f":"IF(PS_A_IND>1,IF(LUN_IND>1,\"\",IF(SE_B_IND>1,\"\",IF(SE_A_IND>1,\"\",IF(NIC_ex_set,\"Y\",\"N\")))),\"\")","v":""},null,null,{"$f":"IF(PS_A_IND>1,IF(LUN_IND>1,\"\",IF(SE_B_IND>1,\"\",IF(SE_A_IND>1,\"\",IF(NIC_ex_set,\"Y\",\"N\")))),\"\")","v":""},null,null,null,null,null,"Y",null,null,null,null,null,null,null,null,null,null,null,null,null,null,null,null,null,null,null,{"$f":"IF(PS_A_IND>1,IF(LUN_IND>1,\"\",IF(SE_B_IND>1,\"\",IF(SE_A_IND>1,\"\",IF(NIC_ex_set,\"Y\",\"N\")))),\"\")","v":""},null,null,null,null,null,null,null,null,null,null,null,null,null,null,null,null,null,null,null,null,"\"yes\""]
[24,"","SPS27","Adjustment to profit chargeable to Class 4 NICs",null,null,null,null,null,null,null,null,null,null,null,null,null,null,null,null,null,null,null,null,null,null,null,null,null,null,null,null,null,null,null,null,null,null,null,null,null,null,null,null,null,null,null,null,null,null,null,null,null,null,null,null,null,null,null,null,null,null,null,null,null,null,null,null,null,null,null,null,null,null,null,null,null,null,null,null,null,null,null,null,null,null,null,null,null,null,null,null,null,null,null,null,null,null,null,null,16512,null,null,null,null,null,null,null,null,null,null,null,null,null,null,null,null,null,null,null,null,null,null,null,null,null,null,null,null,null,null,null,null,null,null,null,null,null,null,null,null,null,null,null,null,null,null,null,null,null,null,null,null,null,null,null,null,null,null,null,null,null,null,null,null,null,null,null,null,null,null,null,null,null,null,null,null,null,null,null,null,null,null,null,null,null,null,null,null,null,null,null,null,16512,16512,null,null,null,null,null,null,null,null,null,null,null,null,null,null,null,null,null,null,null,null,null,null,null,null,null,null,null,null,null,null,null,null,null,null,null,null,null,null,null,null,null,null,null,null,null,null,null,null,null,null,null,null,null,null,null,null,null,null,null,null,null,null,null,46471,null,null,null,null,null,null,null,null,null,null,null,null,null,null,null,null,null,null,null,"If SPS26 is 'Y', SPS27 must be zero or absent","SA Monetary value (2dp) > 0.00"]
[25,"","SPS28","Your share of untaxed interest etc - from box 13 on the Partership Statement",null,null,null,null,null,null,null,null,null,null,null,null,null,null,null,null,null,null,null,null,null,null,null,null,null,null,null,null,null,null,null,null,null,null,null,null,null,null,null,null,null,null,null,null,null,null,null,null,null,null,null,null,null,null,null,null,null,null,null,null,null,null,null,null,null,null,null,null,null,null,null,null,null,null,null,null,null,null,null,null,null,null,322,null,null,null,null,null,null,null,null,null,null,null,null,null,1540,1540,null,null,null,null,null,322,null,null,null,null,null,null,null,null,322,null,null,null,null,null,null,null,322,null,400,null,null,null,null,null,null,null,null,null,null,null,null,null,null,null,null,null,null,null,null,null,null,null,null,68,null,null,null,null,null,null,null,null,null,null,null,null,null,null,null,null,null,null,null,null,null,null,null,null,null,null,null,null,null,null,null,null,null,null,null,null,null,null,null,null,null,1540,1540,null,null,null,null,null,null,null,null,null,null,null,null,null,null,501,null,null,null,null,null,null,null,null,null,null,null,null,null,null,null,null,null,null,null,null,null,null,null,null,null,null,null,null,null,null,null,null,null,null,null,null,null,null,null,null,null,null,null,null,null,null,null,null,null,null,null,null,null,null,null,null,null,null,null,null,null,null,null,null,null,null,null,null,null,"SA Monetary value (2dp) > 0.00"]
[26,"","SPS30","Your share of CIS deductions made by contractors",null,null,null,null,null,null,null,null,null,null,null,null,null,null,null,null,null,null,null,null,null,null,null,null,null,null,null,null,null,null,null,null,null,null,null,null,null,null,null,null,null,null,null,null,null,null,null,null,null,null,null,null,null,null,null,null,null,null,null,null,null,null,null,null,null,null,null,null,null,null,null,null,null,null,null,null,null,null,null,null,null,null,null,null,null,null,null,null,null,null,null,null,null,null,null,null,null,469,null,null,null,null,null,null,null,null,null,null,null,null,null,null,null,null,null,null,null,null,null,null,null,null,null,null,null,null,null,null,null,null,null,null,null,null,null,null,null,null,null,null,null,null,null,null,null,null,null,68,null,null,null,null,null,null,null,null,null,null,null,null,null,null,null,null,null,null,null,null,null,null,null,null,null,null,null,null,null,null,null,null,null,null,null,null,null,null,null,null,null,null,null,null,null,null,null,null,null,null,null,null,null,null,null,null,null,null,null,null,null,null,null,null,null,null,null,null,null,null,null,null,null,null,null,null,null,null,null,null,null,null,null,null,null,null,null,null,null,null,null,null,null,null,null,null,null,null,null,null,null,null,null,null,null,null,null,null,null,null,null,null,null,null,null,null,null,null,null,null,null,null,null,null,null,null,null,"SA Monetary value (2dp) >= 0.00"]
[27,"","SPS31","Share of any tax taken off trading income (not contractor deductions)",null,null,null,null,null,null,null,null,null,null,null,null,null,null,null,null,null,null,null,null,null,null,null,null,null,null,null,null,null,null,null,null,null,null,null,null,null,null,null,null,null,null,null,null,null,null,null,null,null,null,null,null,null,null,null,null,null,null,null,null,null,null,null,null,null,null,null,null,null,null,null,null,null,null,null,null,null,null,null,null,null,null,null,null,null,null,null,null,null,null,null,null,null,null,null,null,5640,null,null,null,null,null,null,null,null,null,null,null,null,null,null,null,null,null,null,null,null,null,null,null,null,null,500,null,null,null,null,null,null,null,null,null,null,null,null,null,null,null,null,null,null,null,null,null,null,null,null,null,null,null,null,null,null,null,null,null,null,null,null,null,null,null,null,null,null,null,null,null,null,null,null,null,null,null,null,null,null,null,null,null,null,null,null,null,null,null,null,null,null,5640,5640,null,null,null,null,null,null,null,null,null,null,null,null,null,null,null,null,null,null,null,null,null,null,null,null,null,null,null,null,null,null,null,null,null,null,null,null,null,null,null,null,null,null,null,null,null,null,null,null,null,null,null,null,null,null,null,null,null,null,null,null,null,null,null,null,null,null,null,null,null,null,null,null,null,null,null,null,null,null,null,null,null,null,null,null,"SA Monetary value (2dp) >= 0.00"]
[28,"","SPS32","Any other information",null,null,null,null,null,null,null,null,null,null,null,null,null,null,null,null,null,null,null,null,null,null,null,null,null,null,null,null,null,null,null,null,null,null,null,null,null,null,null,null,null,null,null,null,null,null,null,null,null,null,null,null,null,null,null,null,null,null,null,null,null,null,null,null,null,null,null,null,null,null,null,null,null,null,null,null,null,null,null,null,null,null,null,null,null,null,null,null,null,null,null,null,null,null,null,null,null,null,null,null,null,null,null,null,null,null,null,null,null,null,null,null,null,null,null,null,null,null,null,null,null,null,null,null,null,null,null,null,null,null,null,null,null,null,null,null,null,null,null,null,null,null,null,null,null,null,null,null,null,null,null,null,null,null,null,null,null,null,null,null,null,null,null,null,null,null,null,null,null,null,null,null,null,null,null,null,null,null,null,null,null,null,null,null,null,null,null,null,null,null,null,null,null,null,null,null,null,null,null,null,null,null,null,null,null,null,null,null,null,null,null,null,null,null,null,null,null,null,null,null,null,null,null,null,null,null,null,null,null,null,null,null,null,null,null,null,null,null,null,null,null,null,null,null,null,null,null,null,null,null,null,null,null,null,null,null,null,null,null,null,null,null,null,null,null,null,null,null,null,null,null,null,null,null,null,"SA non-empty string"]
[]
["row",{"$f":"\"selected \"&PS_B_IND-1","v":"selected 0"},"FPS",null,1,2,3,4,5,6,7,8,9,10,11,12,13,14,15,16,17,18,19,20,21,22,23,24,25,26,27,28,29,30,31,32,33,34,35,36,37,38,39,40,41,42,43,44,45,46,47,48,49,50,51,52,53,54,55,56,57,58,59,60,61,62,63,64,65,66,67,68,69,70,71,72,73,74,75,76,77,78,79,80,81,82,83,84,85,86,87,88,89,90,91,92,93,94,95,96,97,98,99,100,101,102,103,104,105,106,107,108,109,110,111,112,113,114,115,116,117,118,119,120,121,122,123,124,125,126,127,128,129,130,131,132,133,134,135,136,137,138,139,140,141,142,143,144,145,146,147,148,149,150,151,152,153,154,155,156,157,158,159,160,161,162,163,164,165,166,167,168,169,170,171,172,173,174,175,176,177,178,179,180,181,182,183,184,185,186,187,188,189,190,191,192,193,194,195,196,197,198,199,200,201,202,203,204,205,206,207,208,209,210,211,212,213,214,215,216,217,218,219,220,221,222,223,224,225,226,227,228,229,230,231,232,233,234,235,236,237,238,239,240,241,242,243,244,245,246,247,248,249,250,251,252,253,254,255,256,257,258,259,260,261,262,263,264,265,266,267,268,269,270,271,272,273,null," Validation","Type"]
[2,{"$f":"IF(PS_B_IND>1,IF(HLOOKUP(PS_B_IND-1,FPS_RANGE,A32)=\"\",\"\",HLOOKUP(PS_B_IND-1,FPS_RANGE,A32)),\"\")","v":""},"FPS1","Partnership reference number",null,null,null,null,null,null,null,null,null,null,null,null,null,null,null,null,null,null,null,null,null,null,null,null,null,null,null,null,null,null,null,null,null,null,null,null,null,null,null,null,null,null,null,null,null,null,null,null,null,1000050020,1000050020,null,null,null,null,null,null,null,null,null,null,null,null,null,null,null,null,null,null,null,null,null,null,null,null,1000050020,1000050020,1000050020,1000050020,null,1000050020,1000050020,1000050020,1000050020,1000050020,null,null,null,null,1000050020,null,null,null,null,null,null,null,null,1000050020,1000050020,1000050020,null,null,null,null,null,null,1000050020,null,1000050020,null,null,1000050020,null,null,null,null,null,null,null,null,null,null,8766878862,8766878867,null,null,null,null,null,null,null,null,1000050020,1000050020,null,null,null,1000050020,null,null,null,null,1000050020,null,null,1000050020,null,null,null,null,null,1000050020,1000050020,null,1000050020,null,null,null,1000050020,null,null,1000050020,null,null,null,1000050020,null,null,null,null,null,null,1000050020,null,null,null,null,null,null,null,null,null,null,null,null,null,null,null,null,null,null,null,null,null,null,null,null,null,null,1000050020,null,1000050020,null,null,null,null,null,1000050020,null,null,null,null,null,null,1000050020,null,null,null,null,null,null,null,null,null,null,null,null,null,null,null,null,null,null,null,null,null,null,null,null,null,null,null,null,1000050020,null,1000050020,null,1000050020,1000050020,1000050021,null,null,null,null,null,null,1000050020,null,null,null,null,null,null,1000050020,null,null,1000050020,1000050020,null,null,null,null,null,"Must be present. Must enter Unique Taxpayer Reference in standard format. 10 numeric characters: NNNNNNNNNN. Check character (first character) must be correct. Must not be 1111111111, 2222222222, 3333333333, 4444444444, 5555555555, 6666666666, 7777777777, 8888888888, or 9999999999.","UTR"]
[3,"","FPS2","Partnership Trade or profession",null,null,null,null,null,null,null,null,null,null,null,null,null,null,null,null,null,null,null,null,null,null,null,null,null,null,null,null,null,null,null,null,null,null,null,null,null,null,null,null,null,null,null,null,null,null,null,null,null,"Partnership 2","Partnership 1",null,null,null,null,null,null,null,null,null,null,null,null,null,null,null,null,null,null,null,null,null,null,null,null,"Public House","Mining","Farming","Forestry",null,"Bread delivery","Grocers","Livery","Italian classic cars","Brewers",null,null,null,null,"Solicitors",null,null,null,null,null,null,null,null,"Partnership 3","Partnership 4","Partnership 4",null,null,null,null,null,null,"Partnership9",null,"Farm contracting",null,null,"Partnership 3",null,null,null,null,null,null,null,null,null,null,"Musicians and Composers","Exploitation of film",null,null,null,null,null,null,null,null,"Partnership5","Partnership6",null,null,null,"Studio Trade",null,null,null,null,"Investment funds",null,null,"Property development",null,null,null,null,null,"Partnership 3","Apix",null,"NO TRADE",null,null,null,"Paddy",null,null,"Partnership 4",null,null,null,"Investment",null,null,null,null,null,null,"Partnership 1",null,null,null,null,null,null,null,null,null,null,null,null,null,null,null,null,null,null,null,null,null,null,null,null,null,null,"Partnership 1",null,"Partnership7",null,null,null,null,null,"Partnership8",null,null,null,null,null,null,"Partnership8",null,null,null,null,null,null,null,null,null,null,null,null,null,null,null,null,null,null,null,null,null,null,null,null,null,null,null,null,"Partnership11",null,"Partnership12",null,"investment","estate agents","estate agents",null,null,null,null,null,null,"Partnership 1",null,null,null,null,null,null,"land agents",null,null,"Wind Farm","land agents",null,null,null,null,null,"Must be present","SA non-empty string"]
[4,"","FPS3Q","Did you join the partnership during the return year",null,null,null,null,null,null,null,null,null,null,null,null,null,null,null,null,null,null,null,null,null,null,null,null,null,null,null,null,null,null,null,null,null,null,null,null,null,null,null,null,null,null,null,null,null,null,null,null,null,"Y","Y",null,null,null,null,null,null,null,null,null,null,null,null,null,null,null,null,null,null,null,null,null,null,null,null,"Y","Y","Y","Y",null,"Y","Y","N","N","Y",null,null,null,null,"Y",null,null,null,null,null,null,null,null,"Y","N","Y",null,null,null,null,null,null,"Y",null,"Y",null,null,"Y",null,null,null,null,null,null,null,null,null,null,"N","N",null,null,null,null,null,null,null,null,"Y","N",null,null,null,"N",null,null,null,null,"Y",null,null,"Y",null,null,null,null,null,"N","N",null,"N",null,null,null,"Y",null,null,"Y",null,null,null,"N",null,null,null,null,null,null,"Y",null,null,null,null,null,null,null,null,null,null,null,null,null,null,null,null,null,null,null,null,null,null,null,null,null,null,"Y",null,"N",null,null,null,null,null,"Y",null,null,null,null,null,null,"N",null,null,null,null,null,null,null,null,null,null,null,null,null,null,null,null,null,null,null,null,null,null,null,null,null,null,null,null,"Y",null,"Y",null,"Y","Y","N",null,null,null,null,null,null,"Y",null,null,null,null,null,null,"Y",null,null,"Y","N"]
[5,"","FPS3","Date started as a partner (If during year of Return)",null,null,null,null,null,null,null,null,null,null,null,null,null,null,null,null,null,null,null,null,null,null,null,null,null,null,null,null,null,null,null,null,null,null,null,null,null,null,null,null,null,null,null,null,null,null,null,null,null,{"$f":"\"06/04/\"&Tax_year_start","v":"06/04/2025"},{"$f":"\"07/04/\"&Tax_year_start","v":"07/04/2025"},null,null,null,null,null,null,null,null,null,null,null,null,null,null,null,null,null,null,null,null,null,null,null,null,{"$f":"\"09/04/\"&Tax_year_start","v":"09/04/2025"},{"$f":"\"15/04/\"&Tax_year_start","v":"15/04/2025"},{"$f":"\"08/04/\"&Tax_year_start","v":"08/04/2025"},{"$f":"\"09/04/\"&Tax_year_start","v":"09/04/2025"},null,{"$f":"\"11/04/\"&Tax_year_start","v":"11/04/2025"},{"$f":"\"12/04/\"&Tax_year_start","v":"12/04/2025"},null,null,{"$f":"\"06/05/\"&Tax_year_start","v":"06/05/2025"},null,null,null,null,{"$f":"\"06/08/\"&Tax_year_start","v":"06/08/2025"},null,null,null,null,null,null,null,null,{"$f":"\"15/04/\"&Tax_year_start","v":"15/04/2025"},null,{"$f":"\"20/04/\"&Tax_year_start","v":"20/04/2025"},null,null,null,null,null,null,{"$f":"\"06/05/\"&Tax_year_start","v":"06/05/2025"},null,{"$f":"\"07/04/\"&Tax_year_start","v":"07/04/2025"},null,null,{"$f":"\"07/06/\"&Tax_year_start","v":"07/06/2025"},null,null,null,null,null,null,null,null,null,null,null,null,null,null,null,null,null,null,null,null,{"$f":"\"06/04/\"&Tax_year_start","v":"06/04/2025"},null,null,null,null,null,null,null,null,null,{"$f":"\"06/04/\"&Tax_year_start","v":"06/04/2025"},null,null,{"$f":"\"10/04/\"&Tax_year_start","v":"10/04/2025"},null,null,null,null,null,null,null,null,null,null,null,null,{"$f":"\"06/04/\"&Tax_year_start","v":"06/04/2025"},null,null,{"$f":"\"09/04/\"&Tax_year_start","v":"09/04/2025"},null,null,null,null,null,null,null,null,null,null,{"$f":"\"12/04/\"&Tax_year_start","v":"12/04/2025"},null,null,null,null,null,null,null,null,null,null,null,null,null,null,null,null,null,null,null,null,null,null,null,null,null,null,{"$f":"\"13/04/\"&Tax_year_start","v":"13/04/2025"},null,null,null,null,null,null,null,{"$f":"\"25/04/\"&Tax_year_start","v":"25/04/2025"},null,null,null,null,null,null,null,null,null,null,null,null,null,null,null,null,null,null,null,null,null,null,null,null,null,null,null,null,null,null,null,null,null,null,null,{"$f":"\"06/04/\"&Tax_year_start","v":"06/04/2025"},null,{"$f":"\"06/04/\"&Tax_year_start","v":"06/04/2025"},null,{"$f":"\"11/04/\"&Tax_year_start","v":"11/04/2025"},{"$f":"\"16/04/\"&Tax_year_start","v":"16/04/2025"},null,null,null,null,null,null,null,{"$f":"\"06/04/\"&Tax_year_start","v":"06/04/2025"},null,null,null,null,null,null,{"$f":"\"13/04/\"&Tax_year_start","v":"13/04/2025"},null,null,{"$f":"\"12/04/\"&Tax_year_start","v":"12/04/2025"},null,null,null,null,null,null," If present must be within the return period","SA MTR date"]
[6,"","FPS4Q","Did you leave the partnership during the return year",null,null,null,null,null,null,null,null,null,null,null,null,null,null,null,null,null,null,null,null,null,null,null,null,null,null,null,null,null,null,null,null,null,null,null,null,null,null,null,null,null,null,null,null,null,null,null,null,null,"N","N",null,null,null,null,null,null,null,null,null,null,null,null,null,null,null,null,null,null,null,null,null,null,null,null,"N","N","N","N",null,"N","N","Y","N","N",null,null,null,null,"N",null,null,null,null,null,null,null,null,"N","Y","N",null,null,null,null,null,null,"N",null,"N",null,null,"Y",null,null,null,null,null,null,null,null,null,null,"Y","Y",null,null,null,null,null,null,null,null,"N","Y",null,null,null,"Y",null,null,null,null,"N",null,null,"N",null,null,null,null,null,"Y","Y",null,"Y",null,null,null,"N",null,null,"N",null,null,null,"Y",null,null,null,null,null,null,"Y",null,null,null,null,null,null,null,null,null,null,null,null,null,null,null,null,null,null,null,null,null,null,null,null,null,null,"N",null,"Y",null,null,null,null,null,"N",null,null,null,null,null,null,"N",null,null,null,null,null,null,null,null,null,null,null,null,null,null,null,null,null,null,null,null,null,null,null,null,null,null,null,null,"N",null,"N",null,"Y","Y","N",null,null,null,null,null,null,"Y",null,null,null,null,null,null,"N",null,null,"N","Y"]
[7,"","FPS4","Date stopped being a partner  (If during year of Return)",null,null,null,null,null,null,null,null,null,null,null,null,null,null,null,null,null,null,null,null,null,null,null,null,null,null,null,null,null,null,null,null,null,null,null,null,null,null,null,null,null,null,null,null,null,null,null,null,null,null,null,null,null,null,null,null,null,null,null,null,null,null,null,null,null,null,null,null,null,null,null,null,null,null,null,null,null,null,null,null,null,null,{"$f":"\"31/03/\"&Tax_year_end","v":"31/03/2026"},null,null,null,null,null,null,null,null,null,null,null,null,null,null,null,null,{"$f":"\"02/04/\"&Tax_year_end","v":"02/04/2026"},null,null,null,null,null,null,null,null,null,null,null,null,{"$f":"\"30/03/\"&Tax_year_end","v":"30/03/2026"},null,null,null,null,null,null,null,null,null,null,{"$f":"\"03/04/\"&Tax_year_end","v":"03/04/2026"},{"$f":"\"30/03/\"&Tax_year_end","v":"30/03/2026"},null,null,null,null,null,null,null,null,null,{"$f":"\"03/04/\"&Tax_year_end","v":"03/04/2026"},null,null,null,{"$f":"\"31/03/\"&Tax_year_end","v":"31/03/2026"},null,null,null,null,null,null,null,null,null,null,null,null,null,{"$f":"\"31/03/\"&Tax_year_end","v":"31/03/2026"},{"$f":"\"01/04/\"&Tax_year_end","v":"01/04/2026"},null,{"$f":"\"31/01/\"&Tax_year_end","v":"31/01/2026"},null,null,null,null,null,null,null,null,null,null,{"$f":"\"30/03/\"&Tax_year_end","v":"30/03/2026"},null,null,null,null,null,null,{"$f":"\"04/04/\"&Tax_year_end","v":"04/04/2026"},null,null,null,null,null,null,null,null,null,null,null,null,null,null,null,null,null,null,null,null,null,null,null,null,null,null,null,null,{"$f":"\"01/04/\"&Tax_year_end","v":"01/04/2026"},null,null,null,null,null,null,null,null,null,null,null,null,null,null,null,null,null,null,null,null,null,null,null,null,null,null,null,null,null,null,null,null,null,null,null,null,null,null,null,null,null,null,null,null,null,{"$f":"\"31/03/\"&Tax_year_end","v":"31/03/2026"},{"$f":"\"03/04/\"&Tax_year_end","v":"03/04/2026"},null,null,null,null,null,null,null,{"$f":"\"13/03/\"&Tax_year_end","v":"13/03/2026"},null,null,null,null,null,null,null,null,null,null,{"$f":"\"28/02/\"&Tax_year_end","v":"28/02/2026"},null,null,null,null,null,"a) If present must be within return year.\nb) If FPS3 is present, FPS4 must be the same as or later than FPS3","SA MTR date"]
[8,"","FPS8","Your share of the profit or loss",null,null,null,null,null,null,null,null,null,null,null,null,null,null,null,null,null,null,null,null,null,null,null,null,null,null,null,null,null,null,null,null,null,null,null,null,null,null,null,null,null,null,null,null,null,null,null,null,null,-3621,62952,null,null,null,null,null,null,null,null,null,null,null,null,null,null,null,null,null,null,null,null,null,null,null,null,58425,246537,11386,-41049,null,-2355,-138352,120817,241484,30200,null,null,null,null,62583,null,null,null,null,null,null,null,null,105602,222960,222960,null,null,null,null,null,null,-5995,null,10242,null,null,110154,null,null,null,null,null,null,null,null,null,null,53376,3841,null,null,null,null,null,null,null,null,15515,11023,null,null,null,-15546,null,null,null,null,null,null,null,-3630,null,null,null,null,null,105602,null,null,null,null,null,null,null,null,null,222960,null,null,null,109826,null,null,null,null,null,null,73975,null,null,null,null,null,null,null,null,null,null,null,null,null,null,null,null,null,null,null,null,null,null,null,null,null,null,60019,null,-53000,null,null,null,null,null,490000,null,null,null,null,null,null,348723,null,null,null,null,null,null,null,null,null,null,null,null,null,null,null,null,null,null,null,null,null,null,null,null,null,null,null,null,-70250,null,104753,null,null,228329,null,null,null,null,null,null,null,62952,null,null,null,null,null,null,65710,null,null,-1,5622,null,null,null,null,null,null,"SA Monetary value (2dp)"]
[9,"","FPS9","Adjustment to arrive at profit or loss",null,null,null,null,null,null,null,null,null,null,null,null,null,null,null,null,null,null,null,null,null,null,null,null,null,null,null,null,null,null,null,null,null,null,null,null,null,null,null,null,null,null,null,null,null,null,null,null,null,null,null,null,null,null,null,null,null,null,null,null,null,null,null,null,null,null,null,null,null,null,null,null,null,null,null,null,null,null,null,null,null,null,null,null,null,null,null,null,null,null,null,null,null,null,null,null,null,null,null,-44592,-44592,null,null,null,null,null,null,null,null,null,null,null,null,null,null,null,null,null,null,null,null,null,null,null,null,null,null,null,null,null,null,null,null,null,null,null,null,null,null,null,null,null,null,null,null,null,null,null,null,null,null,null,null,null,null,null,null,null,null,null,null,null,-44592,null,null,null,null,null,null,null,null,null,null,null,null,null,null,null,null,null,null,null,null,null,null,null,null,null,null,null,null,null,null,null,null,null,null,null,null,null,null,null,null,null,null,null,null,null,null,null,null,null,null,null,null,null,null,null,null,null,null,null,null,null,null,null,null,null,null,null,null,null,null,null,null,null,null,null,null,null,null,null,null,null,null,null,null,null,null,null,null,null,null,null,null,null,null,null,null,null,null,null,null,null,22000,null,null,null,null,null,null,null,null,null,null,"SA Monetary value (2dp)"]
[10,"","FPS10","This year's instalment of adjustment on withdrawal of cash basis, or other adjustment for change of basis",null,null,null,null,null,null,null,null,null,null,null,null,null,null,null,null,null,null,null,null,null,null,null,null,null,null,null,null,null,null,null,null,null,null,null,null,null,null,null,null,null,null,null,null,null,null,null,null,null,null,null,null,null,null,null,null,null,null,null,null,null,null,null,null,null,null,null,null,null,null,null,null,null,null,null,null,23451,null,null,null,null,null,null,null,null,null,null,null,null,null,null,null,null,null,null,null,null,null,null,11560,11560,null,null,null,null,null,null,null,null,null,null,null,null,null,null,null,null,null,null,null,null,null,null,null,null,null,null,null,null,null,null,null,null,null,null,null,null,null,null,null,null,null,null,null,null,null,null,null,null,null,null,null,null,null,null,null,null,null,null,null,null,null,11560,null,null,null,null,null,null,null,null,null,null,null,null,null,null,null,null,null,null,null,null,null,null,null,null,null,null,null,null,null,null,null,null,null,null,null,null,null,null,null,null,null,null,null,null,null,null,null,null,null,null,null,null,null,null,null,null,null,null,null,null,null,null,null,null,null,null,null,null,null,null,null,null,null,null,null,null,null,null,null,null,null,null,null,null,null,null,null,null,null,null,null,null,null,null,null,null,null,null,null,null,null,null,null,null,null,null,null,null,null,null,null,null,"SA Monetary value (2dp) except 0.00"]
[11,"","FPS11","Adjustment for farmers’ averaging",null,null,null,null,null,null,null,null,null,null,null,null,null,null,null,null,null,null,null,null,null,null,null,null,null,null,null,null,null,null,null,null,null,null,null,null,null,null,null,null,null,null,null,null,null,null,null,null,null,null,null,null,null,null,null,null,null,null,null,null,null,null,null,null,null,null,null,null,null,null,null,null,null,null,null,null,null,-5693,null,null,null,null,null,null,null,null,null,null,null,null,null,null,null,null,null,null,null,null,null,null,null,null,null,null,null,null,null,null,null,null,null,null,null,null,null,null,null,null,null,null,null,null,null,null,null,null,null,null,null,null,null,null,null,null,null,null,null,null,null,null,null,null,null,null,null,null,null,null,null,null,null,null,null,null,null,null,null,null,null,null,null,null,null,null,null,null,null,null,null,null,null,null,null,null,null,null,null,null,null,null,null,null,null,null,null,null,null,null,null,null,null,null,null,null,null,null,null,null,null,null,null,null,null,null,null,null,null,null,null,null,null,null,null,null,null,null,null,null,null,null,null,null,null,null,null,null,null,null,null,null,null,null,null,null,null,null,null,null,null,null,null,null,null,null,null,null,null,null,null,null,null,null,null,null,null,null,null,null,null,null,null,null,null,null,null,null,null,null,null,null,null,null,null,null,null,"SA Monetary value (2dp)"]
[12,"","FPS12","Total tax credit relief on your income",null,null,null,null,null,null,null,null,null,null,null,null,null,null,null,null,null,null,null,null,null,null,null,null,null,null,null,null,null,null,null,null,null,null,null,null,null,null,null,null,null,null,null,null,null,null,null,null,null,null,null,null,null,null,null,null,null,null,null,null,null,null,null,null,null,null,null,null,null,null,null,null,null,null,null,null,null,null,null,null,null,null,null,null,null,null,null,null,null,null,null,null,null,null,null,null,null,null,null,1263,1263,null,null,null,null,null,null,null,null,null,null,null,null,null,null,null,null,null,null,null,null,null,null,null,null,null,null,null,null,null,null,null,null,null,null,null,null,null,null,null,null,null,null,null,null,null,null,null,null,null,null,null,null,null,null,null,null,null,null,null,null,null,1263,null,null,null,null,null,null,null,null,null,null,null,null,null,null,null,null,null,null,null,null,null,null,null,null,null,null,null,null,null,null,null,null,null,null,null,null,null,null,null,null,null,null,null,null,null,null,null,null,null,null,null,null,null,null,null,null,null,null,null,null,null,null,null,null,null,null,null,null,null,null,null,null,null,null,null,null,null,null,null,null,null,null,null,null,null,null,null,null,null,null,null,null,null,null,null,null,null,null,null,null,null,null,null,null,null,null,null,null,null,null,null,null,"SA Monetary value (2dp) > 0.00"]
[13,{"$f":"IF(PS_B_IND>1,IF(HLOOKUP(PS_B_IND-1,FPS_RANGE,A43)=\"\",\"\",HLOOKUP(PS_B_IND-1,FPS_RANGE,A43)),\"\")","v":""},"FPS16","Adjusted Profit",null,null,null,null,null,null,null,null,null,null,null,null,null,null,null,null,null,null,null,null,null,null,null,null,null,null,null,null,null,null,null,null,null,null,null,null,null,null,null,null,null,null,null,null,null,null,null,null,null,null,{"$f":"IF(BC38+BC39+BC40-BC42>0,BC38+BC39+BC40+BC41-BC42,BC41)","v":62952},null,null,null,null,null,null,null,null,null,null,null,null,null,null,null,null,null,null,null,null,null,null,null,null,{"$f":"IF(CB38+CB39+CB40-CB42>0,CB38+CB39+CB40+CB41-CB42,CB41)","v":58425},269988,5693,null,null,null,null,{"$f":"IF(CI38+CI39+CI40-CI42>0,CI38+CI39+CI40+CI41-CI42,CI41)","v":120817},{"$f":"IF(CJ38+CJ39+CJ40-CJ42>0,CJ38+CJ39+CJ40+CJ41-CJ42,CJ41)","v":241484},{"$f":"IF(CK38+CK39+CK40-CK42>0,CK38+CK39+CK40+CK41-CK42,CK41)","v":30200},null,null,null,null,{"$f":"IF(CP38+CP39+CP40-CP42>0,CP38+CP39+CP40+CP41-CP42,CP41)","v":62583},null,null,null,null,null,null,null,null,105602,188665,188665,null,null,null,null,null,null,null,null,10242,null,null,{"$f":"IF(DM38+DM39+DM40-DM42>0,DM38+DM39+DM40+DM41-DM42,DM41)","v":110154},null,null,null,null,null,null,null,null,null,null,{"$f":"IF(DX38+DX39+DX40-DX42>0,DX38+DX39+DX40+DX41-DX42,DX41)","v":53376},3841,null,null,null,null,null,null,null,null,{"$f":"IF(EH38+EH39+EH40-EH42>0,EH38+EH39+EH40+EH41-EH42,EH41)","v":15515},{"$f":"IF(EI38+EI39+EI40-EI42>0,EI38+EI39+EI40+EI41-EI42,EI41)","v":11023},null,null,null,null,null,null,null,null,null,null,null,null,null,null,null,null,null,{"$f":"IF(FA38+FA39+FA40-FA42>0,FA38+FA39+FA40+FA41-FA42,FA41)","v":105602},null,null,null,null,null,null,null,null,null,{"$f":"IF(FK38+FK39+FK40-FK42>0,FK38+FK39+FK40+FK41-FK42,FK41)","v":188665},null,null,null,{"$f":"IF(FO38+FO39+FO40-FO42>0,FO38+FO39+FO40+FO41-FO42,FO41)","v":109826},null,null,null,null,null,null,{"$f":"IF(FV38+FV39+FV40-FV42>0,FV38+FV39+FV40+FV41-FV42,FV41)","v":73975},null,null,null,null,null,null,null,null,null,null,null,null,null,null,null,null,null,null,null,null,null,null,null,null,null,null,{"$f":"IF(GW38+GW39+GW40-GW42>0,GW38+GW39+GW40+GW41-GW42,GW41)","v":60019},null,null,null,null,null,null,null,{"$f":"IF(HE38+HE39+HE40-HE42>0,HE38+HE39+HE40+HE41-HE42,HE41)","v":490000},null,null,null,null,null,null,{"$f":"IF(HL38+HL39+HL40-HL42>0,HL38+HL39+HL40+HL41-HL42,HL41)","v":348723},null,null,null,null,null,null,null,null,null,null,null,null,null,null,null,null,null,null,null,null,null,null,null,null,null,null,null,null,null,null,{"$f":"IF(IQ38+IQ39+IQ40-IQ42>0,IQ38+IQ39+IQ40+IQ41-IQ42,IQ41)","v":104753},null,null,{"$f":"IF(IT38+IT39+IT40-IT42>0,IT38+IT39+IT40+IT41-IT42,IT41)","v":228329},null,null,null,null,null,null,null,{"$f":"IF(JB38+JB39+JB40-JB42>0,JB38+JB39+JB40+JB41-JB42,JB41)","v":62952},null,null,null,null,null,null,{"$f":"IF(JI38+JI39+JI40-JI42>0,JI38+JI39+JI40+JI41-JI42,JI41)","v":87710},null,null,null,{"$f":"IF(JM38+JM39+JM40-JM42>0,JM38+JM39+JM40+JM41-JM42,JM41)","v":5622},null,null,null,null,null,"a) If (FPS8 + FPS9 minus (FPS12 + FPS13)) is positive, then FPS16 equals (FPS8 + FPS9 minus (FPS12 + FPS13) + FPS10 + FPS11)\nb) if (FPS8 + FPS9 minus (FPS12 + FPS13)) is negative or zero, then if FPS10 + FPS11 > 0, FPS16 = FPS10 + FPS11 else FPS16 must be zero or absent","SA Monetary value (2dp) >= 0.00"]
[14,"","FPS16.3","Spread of transition profit treated as arising",null,null,null,null,null,null,null,null,null,null,null,null,null,null,null,null,null,null,null,null,null,null,null,null,null,null,null,null,null,null,null,null,null,null,null,null,null,null,null,null,null,null,null,null,null,null,null,null,null,null,null,null,null,null,null,null,null,null,null,null,null,null,null,null,null,null,null,null,null,null,null,null,null,null,null,1775,null,null,null,null,null,null,2885,45785,15682]
[15,"","FPS16.4","Loss brought forward from earlier years  set off against transition profit"]
[16,"","FPS17","Losses brought forward from last year used this year",null,null,null,null,null,null,null,null,null,null,null,null,null,null,null,null,null,null,null,null,null,null,null,null,null,null,null,null,null,null,null,null,null,null,null,null,null,null,null,null,null,null,null,null,null,null,null,null,null,null,null,null,null,null,null,null,null,null,null,null,null,null,null,null,null,null,null,null,null,null,null,null,null,null,null,null,null,247,null,null,null,null,null,null,null,null,null,null,null,null,null,null,null,null,null,null,null,null,10152,null,null,null,null,null,null,null,null,null,null,null,null,null,4400,null,null,null,null,null,null,null,null,null,null,45252.47,null,null,null,null,null,null,null,null,null,2805,null,null,null,null,null,null,null,null,null,null,null,null,null,null,null,null,null,null,10152,null,null,null,null,null,null,null,null,null,null,null,null,null,null,null,null,null,null,null,null,null,null,null,null,null,null,null,null,null,null,null,null,null,null,null,null,null,null,null,null,null,null,null,null,null,null,null,null,null,null,null,null,null,null,null,null,null,null,null,null,null,null,null,null,null,null,null,null,null,null,null,null,null,null,null,null,null,null,null,null,null,null,null,null,null,null,null,null,null,null,null,null,null,null,null,null,null,null,null,null,null,null,null,null,null,null,null,null,null,null,null,null,null,null,null,null,null,null,null,null,null,"If present, must be less than or equal to FPS16","SA Monetary value (2dp) > 0.00"]
[17,{"$f":"IF(PS_B_IND>1,IF(HLOOKUP(PS_B_IND-1,FPS_RANGE,A47)=\"\",\"\",HLOOKUP(PS_B_IND-1,FPS_RANGE,A47)),\"\")","v":""},"FPS18","Taxable profit after losses brought forward",null,null,null,null,null,null,null,null,null,null,null,null,null,null,null,null,null,null,null,null,null,null,null,null,null,null,null,null,null,null,null,null,null,null,null,null,null,null,null,null,null,null,null,null,null,null,null,null,null,{"$f":"MAX(0,BB43-BB46)","v":0},{"$f":"MAX(0,BC43-BC46)","v":62952},null,null,null,null,null,null,null,null,null,null,null,null,null,null,null,null,null,null,null,null,null,null,null,null,{"$f":"MAX(0,CB43-CB45-CB46)","v":58425},{"$f":"MAX(0,CC43-CC45-CC46)","v":269988},{"$f":"MAX(0,CD43-CD45-CD46)","v":5446},null,null,null,null,{"$f":"MAX(0,CI43-CI45-CI46)","v":120817},{"$f":"MAX(0,CJ43-CJ45-CJ46)","v":241484},{"$f":"MAX(0,CK43-CK46)","v":30200},null,null,null,null,{"$f":"MAX(0,CP43-CP46)","v":62583},null,null,null,null,null,null,null,null,{"$f":"MAX(0,CY43-CY46)","v":95450},{"$f":"MAX(0,CZ43-CZ46)","v":188665},{"$f":"MAX(0,DA43-DA46)","v":188665},null,null,null,null,null,null,0,null,{"$f":"MAX(0,DJ43-DJ46)","v":10242},null,null,{"$f":"MAX(0,DM43-DM46)","v":105754},null,null,null,null,null,null,null,null,null,null,8123.53,{"$f":"MAX(0,DY43-DY46)","v":3841},null,null,null,null,null,null,null,null,{"$f":"MAX(0,EH43-EH46)","v":12710},{"$f":"MAX(0,EI43-EI46)","v":11023},null,null,null,null,null,null,null,null,null,null,null,null,null,null,null,null,null,{"$f":"MAX(0,FA43-FA46)","v":95450},null,null,null,null,null,null,null,null,null,{"$f":"MAX(0,FK43-FK46)","v":188665},null,null,null,{"$f":"MAX(0,FO43-FO46)","v":109826},null,null,null,null,null,null,{"$f":"MAX(0,FV43-FV46)","v":73975},null,null,null,null,null,null,null,null,null,null,null,null,null,null,null,null,null,null,null,null,null,null,null,null,null,null,{"$f":"MAX(0,GW43-GW46)","v":60019},null,{"$f":"MAX(0,GY43-GY46)","v":0},null,null,null,null,null,{"$f":"MAX(0,HE43-HE46)","v":490000},null,null,null,null,null,null,{"$f":"MAX(0,HL43-HL46)","v":348723},null,null,null,null,null,null,null,null,null,null,null,null,null,null,null,null,null,null,null,null,null,null,null,null,null,null,null,null,{"$f":"MAX(0,IO43-IO46)","v":0},null,{"$f":"MAX(0,IQ43-IQ46)","v":104753},null,null,{"$f":"MAX(0,IT43-IT46)","v":228329},null,null,null,null,null,null,null,{"$f":"MAX(0,JB43-JB46)","v":62952},null,null,null,null,null,null,{"$f":"MAX(0,JI43-JI46)","v":87710},null,null,null,{"$f":"MAX(0,JM43-JM46)","v":5622},null,null,null,null,null,"Equal to FPS16 minus FPS17","SA Monetary value (2dp) >= 0.00"]
[18,{"$f":"IF(PS_B_IND>1,IF(HLOOKUP(PS_B_IND-1,FPS_RANGE,A48)=\"\",\"\",HLOOKUP(PS_B_IND-1,FPS_RANGE,A48)),\"\")","v":""},"FPS19","Add amounts not included in the partnership accounts",null,null,null,null,null,null,null,null,null,null,null,null,null,null,null,null,null,null,null,null,null,null,null,null,null,null,null,null,null,null,null,null,null,null,null,null,null,null,null,null,null,null,null,null,null,null,null,null,null,null,null,null,null,null,null,null,null,null,null,null,null,null,null,null,null,null,null,null,null,null,null,null,null,null,null,null,null,null,null,null,null,null,null,null,null,null,null,null,null,null,null,null,null,null,null,null,null,null,1126,null,null,null,null,null,null,null,null,null,null,null,null,null,null,null,null,null,null,null,null,null,null,null,null,null,null,null,null,null,null,null,null,null,null,null,null,null,null,null,null,null,null,null,null,null,null,null,null,null,null,null,null,null,1126,null,null,null,null,null,null,null,null,null,null,null,null,null,null,null,null,null,null,null,null,null,null,null,null,null,null,null,null,null,null,null,null,null,null,null,null,null,null,null,null,null,null,null,null,null,null,null,null,null,null,null,null,null,null,null,null,null,null,null,null,null,null,null,null,null,null,null,null,null,null,null,null,null,null,null,null,null,null,null,null,null,null,null,null,null,null,null,null,null,null,null,null,null,null,null,null,null,null,null,null,null,null,null,null,null,null,null,null,null,null,null,null,null,null,null,null,null,null,null,null,null,null,"SA Monetary value (2dp) > 0.00"]
[19,{"$f":"IF(PS_B_IND>1,IF(HLOOKUP(PS_B_IND-1,FPS_RANGE,A49)=\"\",\"\",HLOOKUP(PS_B_IND-1,FPS_RANGE,A49)),\"\")","v":""},"FPS20","Total taxable profits from this business",null,null,null,null,null,null,null,null,null,null,null,null,null,null,null,null,null,null,null,null,null,null,null,null,null,null,null,null,null,null,null,null,null,null,null,null,null,null,null,null,null,null,null,null,null,null,null,null,null,{"$f":"BB47+BB48","v":0},{"$f":"BC47+BC48","v":62952},null,null,null,null,null,null,null,null,null,null,null,null,null,null,null,null,null,null,null,null,null,null,null,null,{"$f":"CB47+CB48","v":58425},{"$f":"CC47+CC48","v":269988},{"$f":"CD47+CD48","v":5446},null,null,null,null,{"$f":"CI47+CI48","v":120817},241484,{"$f":"CK47+CK48","v":30200},null,null,null,null,{"$f":"CP47+CP48","v":62583},null,null,null,null,null,null,null,null,{"$f":"CY47+CY48","v":96576},{"$f":"CZ47+CZ48","v":188665},{"$f":"DA47+DA48","v":188665},null,null,null,null,null,null,0,null,{"$f":"DJ47+DJ48","v":10242},null,null,{"$f":"DM47+DM48","v":105754},null,null,null,null,null,null,null,null,null,null,{"$f":"DX47+DX48","v":8123.53},{"$f":"DY47+DY48","v":3841},null,null,null,null,null,null,null,null,{"$f":"EH47+EH48","v":12710},{"$f":"EI47+EI48","v":11023},null,null,null,null,null,null,null,null,null,null,null,null,null,null,null,null,null,{"$f":"FA47+FA48","v":96576},null,null,null,null,null,null,null,null,null,{"$f":"FK47+FK48","v":188665},null,null,null,{"$f":"FO47+FO48","v":109826},null,null,null,null,null,null,{"$f":"FV47+FV48","v":73975},null,null,null,null,null,null,null,null,null,null,null,null,null,null,null,null,null,null,null,null,null,null,null,null,null,null,{"$f":"GW47+GW48","v":60019},null,{"$f":"GY47+GY48","v":0},null,null,null,null,null,{"$f":"HE47+HE48","v":490000},null,null,null,null,null,null,{"$f":"HL47+HL48","v":348723},null,null,null,null,null,null,null,null,null,null,null,null,null,null,null,null,null,null,null,null,null,null,null,null,null,null,null,null,{"$f":"IO47+IO48","v":0},null,{"$f":"IQ47+IQ48","v":104753},null,null,{"$f":"IT47+IT48","v":228329},null,null,null,null,null,null,null,{"$f":"JB47+JB48","v":62952},null,null,null,null,null,null,{"$f":"JI47+JI48","v":87710},null,null,0,{"$f":"JM47+JM48","v":5622},null,null,null,null,null,"Equal to FPS18 + FPS19","SA Monetary value (2dp) >= 0.00"]
[20,{"$f":"IF(PS_B_IND>1,IF(HLOOKUP(PS_B_IND-1,FPS_RANGE,A50)=\"\",\"\",HLOOKUP(PS_B_IND-1,FPS_RANGE,A50)),\"\")","v":""},"FPS20.1","Amount claimed under FIG"]
[21,"","FPS21","Allowable loss",null,null,null,null,null,null,null,null,null,null,null,null,null,null,null,null,null,null,null,null,null,null,null,null,null,null,null,null,null,null,null,null,null,null,null,null,null,null,null,null,null,null,null,null,null,null,null,null,null,{"$f":"MAX(0,BB42-(BB38+BB39+BB40))","v":3621},null,null,null,null,null,null,null,null,null,null,null,null,null,null,null,null,null,null,null,null,null,null,null,null,null,null,null,null,{"$f":"MAX(0,CE42-(CE38+CE39+CE40))","v":41049},null,2355,138352,null,null,null,null,null,null,null,null,null,null,null,null,null,null,null,null,null,null,null,null,null,null,null,null,null,{"$f":"MAX(0,DH42-(DH38+DH39+DH40))","v":5995},null,null,null,null,null,null,null,null,null,null,null,null,null,null,null,null,null,null,null,null,null,null,null,null,null,null,null,null,null,null,{"$f":"MAX(0,EM42-(EM38+EM39+EM40))","v":15546},null,null,null,null,null,null,null,{"$f":"MAX(0,EU42-(EU38+EU39+EU40))","v":3630},null,null,null,null,null,null,null,null,null,null,null,null,null,null,null,null,null,null,null,null,null,null,null,null,null,null,null,null,null,null,null,null,null,null,null,null,null,null,null,null,null,null,null,null,null,null,null,null,null,null,null,null,null,null,null,{"$f":"MAX(0,GY42-(GY38+GY39+GY40))","v":53000},null,null,null,null,null,null,null,null,null,null,null,null,null,null,null,null,null,null,null,null,null,null,null,null,null,null,null,null,null,null,null,null,null,null,null,null,null,null,null,null,null,{"$f":"MAX(0,IO42-(IO38+IO39+IO40))","v":70250},null,null,null,null,null,null,null,null,null,null,null,null,null,null,null,null,null,null,null,null,null,null,1,null,null,null,null,null,null,"a) If (FPS8 + FPS9 minus (FPS12 + FPS13)) is negative, then FPS21 equals the positive equivalent of that sum.\nb) if (FPS8 + FPS9 minus (FPS12 + FPS13))is greater than or equal to zero, then FPS21 = zero or absent\nc) Cannot be negative","SA Monetary value (2dp) >= 0.00"]
[22,"","FPS21.1","Adjustment to losses as a result of FIG claim"]
[23,"","FPS22","Loss offset against other income",null,null,null,null,null,null,null,null,null,null,null,null,null,null,null,null,null,null,null,null,null,null,null,null,null,null,null,null,null,null,null,null,null,null,null,null,null,null,null,null,null,null,null,null,null,null,null,null,null,3621,null,null,null,null,null,null,null,null,null,null,null,null,null,null,null,null,null,null,null,null,null,null,null,null,null,null,null,null,41049,null,null,50000,null,null,null,null,null,null,null,null,null,null,null,null,null,null,null,null,null,null,null,null,null,null,null,null,null,null,null,null,null,null,null,null,null,null,null,null,null,null,null,null,null,null,null,null,null,null,null,null,null,null,null,null,null,null,null,null,15546,null,null,null,null,null,null,null,null,null,null,null,null,null,null,null,null,null,null,null,null,null,null,null,null,null,null,null,null,null,null,null,null,null,null,null,null,null,null,null,null,null,null,null,null,null,null,null,null,null,null,null,null,null,null,null,null,null,null,null,null,null,null,null,53000,null,null,null,null,null,null,null,null,null,null,null,null,null,null,null,null,null,null,null,null,null,null,null,null,null,null,null,null,null,null,null,null,null,null,null,null,null,null,null,null,null,50000,null,null,null,null,null,null,null,null,null,null,null,null,null,null,null,null,null,null,null,null,null,null,null,null,null,null,null,null,null,"If present, must be less than or equal to FPS21\nIf FPS5 = 'Y' then FPS22 must be zero or absent\n","SA Monetary value (2dp) > 0.00"]
[24,"","FPS23","Loss to carry back",null,null,null,null,null,null,null,null,null,null,null,null,null,null,null,null,null,null,null,null,null,null,null,null,null,null,null,null,null,null,null,null,null,null,null,null,null,null,null,null,null,null,null,null,null,null,null,null,null,null,null,null,null,null,null,null,null,null,null,null,null,null,null,null,null,null,null,null,null,null,null,null,null,null,null,null,null,null,null,null,null,null,null,null,null,null,null,null,null,null,null,null,null,null,null,null,null,null,null,null,null,null,null,null,null,null,null,null,null,null,null,null,null,null,null,null,null,null,null,null,null,null,null,null,null,null,null,null,null,null,null,null,null,null,null,null,null,null,null,null,null,null,null,null,null,null,3630,null,null,null,null,null,null,null,null,null,null,null,null,null,null,null,null,null,null,null,null,null,null,null,null,null,null,null,null,null,null,null,null,null,null,null,null,null,null,null,null,null,null,null,null,null,null,null,null,null,null,null,null,null,null,null,null,null,null,null,null,null,null,null,null,null,null,null,null,null,null,null,null,null,null,null,null,null,null,null,null,null,null,null,null,null,null,null,null,null,null,null,null,null,null,null,null,null,null,null,null,null,null,null,null,null,null,null,null,null,null,null,null,null,null,null,null,null,null,null,null,null,null,null,null,null,null,null,"If present, must be less than or equal to FPS21 minus FPS22\n","SA Monetary value (2dp) > 0.00"]
[25,"","FPS24","Loss to carry forward",null,null,null,null,null,null,null,null,null,null,null,null,null,null,null,null,null,null,null,null,null,null,null,null,null,null,null,null,null,null,null,null,null,null,null,null,null,null,null,null,null,null,null,null,null,null,null,null,null,null,null,null,null,null,null,null,null,null,null,null,null,null,null,null,null,null,null,null,null,null,null,null,null,null,null,null,null,null,null,null,17626,767060,null,null,null,null,null,null,null,null,null,null,null,null,null,null,null,null,null,null,null,null,null,null,null,null,null,31263,null,null,null,null,null,null,null,null,null,null,null,null,null,null,null,null,null,null,null,null,null,null,null,null,null,null,null,null,null,null,null,null,null,null,null,null,null,null,null,null,null,null,null,null,null,null,null,null,null,null,null,null,null,null,null,null,null,null,null,null,null,null,null,null,null,null,null,null,null,null,null,null,null,null,null,null,null,null,null,null,null,null,null,null,null,null,null,null,null,null,null,null,null,null,null,null,null,null,null,null,null,null,null,null,null,null,null,null,null,null,null,null,null,null,null,null,null,null,null,null,null,null,null,null,null,null,null,null,null,null,null,null,null,null,null,null,20616,null,null,null,null,null,null,null,null,null,null,null,null,null,null,null,null,null,null,null,null,null,null,950,null,null,null,null,null,null,null,"SA Monetary value (2dp) >= 0.00"]
[26,"","FPS25",{"$f":"\"If your total profits for \"&tax_year&\" are less than \"&DOLLAR(NIC2_SPT,0)&\" and you choose to pay Class 2 NICs voluntarily, put 'X' in the box\"","v":"If your total profits for 2025-26 are less than £6,845 and you choose to pay Class 2 NICs voluntarily, put 'X' in the box"},null,null,null,null,null,null,null,null,null,null,null,null,null,null,null,null,null,null,null,null,null,null,null,null,null,null,null,null,null,null,null,null,null,null,null,null,null,null,null,null,null,null,null,null,null,null,null,null,null,"Y",null,null,null,null,null,null,null,null,null,null,null,null,null,null,null,null,null,null,null,null,null,null,null,null,null,null,null,null,null,null,null,null,null,null,null,null,null,null,null,null,null,null,null,null,null,null,null,null,null,null,null,null,null,null,null,null,null,null,null,"Y",null,null,null,null,null,null,null,null,null,null,null,null,null,null,null,null,null,null,null,null,null,null,null,null,null,null,null,null,null,null,null,null,null,null,null,null,null,null,null,null,null,null,null,null,null,null,null,null,null,null,null,null,null,null,null,null,null,null,null,null,null,null,null,null,null,null,null,null,null,null,null,null,null,null,null,null,null,null,null,null,null,null,null,null,null,null,null,null,null,null,null,null,"Y",null,null,null,null,null,null,null,null,null,null,null,null,null,null,null,null,null,null,null,null,null,null,null,null,null,null,null,null,null,null,null,null,null,null,null,null,null,null,null,null,null,"Y",null,"N",null,null,null,null,null,null,null,null,null,null,"N",null,null,null,null,null,null,null,null,null,null,"Y",null,null,null,null,null,null,"\"yes\""]
[27,"","FPS26","If you are excepted from paying Class 4 NICs, put ‘X’ in the box",null,null,null,null,null,null,null,null,null,null,null,null,null,null,null,null,null,null,null,null,null,null,null,null,null,null,null,null,null,null,null,null,null,null,null,null,null,null,null,null,null,null,null,null,null,null,null,null,null,null,null,null,null,null,null,null,null,null,null,null,null,null,null,null,null,null,null,null,null,null,null,null,null,null,null,null,null,null,"Y",null,null,null,null,null,null,null,null,null,null,null,null,null,null,null,null,null,null,null,null,null,null,null,null,null,null,null,null,"Y",null,null,null,null,null,null,null,null,null,null,null,null,null,null,null,"Y","Y",null,null,null,null,null,null,null,null,null,null,null,null,null,null,null,null,null,null,null,null,null,"Y",null,null,null,null,null,null,null,null,null,null,null,null,null,null,null,null,null,null,null,null,null,null,null,null,null,null,"Y",null,null,null,null,null,null,null,null,null,null,null,null,null,null,null,null,null,null,null,null,null,null,null,null,null,null,null,null,"N",null,null,null,null,null,null,null,null,null,null,null,null,null,null,null,null,null,null,null,null,null,null,null,null,null,null,null,null,null,null,null,null,null,null,null,null,null,null,null,null,null,"N",null,"Y",null,null,"Y",null,null,null,null,null,null,null,"N",null,null,null,null,null,null,"Y",null,null,null,null,null,null,null,null,null,null,"\"yes\""]
[28,"","FPS27","adjustment to Class 4 NIC profits",null,null,null,null,null,null,null,null,null,null,null,null,null,null,null,null,null,null,null,null,null,null,null,null,null,null,null,null,null,null,null,null,null,null,null,null,null,null,null,null,null,null,null,null,null,null,null,null,null,null,null,null,null,null,null,null,null,null,null,null,null,null,null,null,null,null,null,null,null,null,null,null,null,null,null,null,18997,null,null,null,null,null,null,null,null,null,null,null,null,null,null,null,null,null,null,null,null,null,null,8269,8269,null,null,null,null,null,null,null,null,10242,null,null,null,null,null,null,null,null,null,null,null,null,null,null,null,null,null,null,null,null,null,null,null,null,null,null,null,null,null,null,null,null,null,null,null,null,null,null,null,null,null,null,null,null,null,null,null,null,null,null,null,null,8269,null,null,null,null,null,null,null,null,null,null,null,null,null,null,null,null,null,null,null,null,null,null,null,null,null,null,null,null,null,null,null,null,null,null,null,null,null,null,null,null,null,null,null,null,null,null,null,null,null,null,null,null,null,null,null,null,null,null,null,null,null,null,null,null,null,null,null,null,null,null,null,null,null,null,null,null,null,null,null,null,null,null,null,null,null,null,null,null,null,null,null,null,null,null,null,null,null,null,null,null,null,null,null,null,null,null,null,null,null,null,null,"If FPS26 is 'Y', FPS27 must be zero or absent","SA Monetary value (2dp) > 0.00"]
[29,"","FPS28","UK untaxed savings income share",null,null,null,null,null,null,null,null,null,null,null,null,null,null,null,null,null,null,null,null,null,null,null,null,null,null,null,null,null,null,null,null,null,null,null,null,null,null,null,null,null,null,null,null,null,null,null,null,null,426,null,null,null,null,null,null,null,null,null,null,null,null,null,null,null,null,null,null,null,null,null,null,null,null,null,2160,2109,5,null,null,null,868,43,2074,null,null,null,null,null,331,null,null,null,null,null,null,null,null,1265,21569,21569,null,null,null,null,null,null,null,null,41,null,null,1265,null,null,null,null,null,null,null,null,null,null,null,null,null,null,null,null,null,null,null,null,null,854,null,null,null,null,null,null,null,null,null,null,null,null,null,null,null,null,null,1265,null,null,3000,null,null,null,3000,null,null,21569,null,null,null,13,null,null,null,null,null,null,null,null,null,null,null,null,null,null,null,null,null,null,null,null,null,null,null,null,null,null,null,null,null,null,null,null,null,null,null,855,null,null,null,null,null,null,null,null,null,null,null,null,null,null,null,null,null,null,null,null,null,null,null,null,null,null,null,null,null,null,null,null,null,null,null,null,null,null,null,null,null,null,null,null,null,12689,5319,137,null,null,null,null,null,null,null,null,null,null,null,null,null,14,null,null,7,14,null,null,null,null,null,null,"SA Monetary value (2dp) > 0.00"]
[30,"","FPS29","UK untaxed savings adjustment",null,null,null,null,null,null,null,null,null,null,null,null,null,null,null,null,null,null,null,null,null,null,null,null,null,null,null,null,null,null,null,null,null,null,null,null,null,null,null,null,null,null,null,null,null,null,null,null,null,null,null,null,null,null,null,null,null,null,null,null,null,null,null,null,null,null,null,null,null,null,null,null,null,null,null,null,null,null,null,null,null,null,null,null,null,null,null,null,null,null,null,null,null,null,null,null,null,null,null,-4314,-4314,null,null,null,null,null,null,null,null,null,null,null,null,null,null,null,null,null,null,null,null,null,null,null,null,null,null,null,null,null,null,null,null,null,null,null,null,null,null,null,null,null,null,null,null,null,null,null,null,null,null,null,null,null,null,null,null,null,null,null,null,null,-4314,null,null,null,null,null,null,null,null,null,null,null,null,null,null,null,null,null,null,null,null,null,null,null,null,null,null,null,null,null,null,null,null,null,null,null,null,null,null,null,null,null,null,null,null,null,null,null,null,null,null,null,null,null,null,null,null,null,null,null,null,null,null,null,null,null,null,null,null,null,null,null,null,null,null,null,null,null,null,null,null,null,null,null,null,null,null,null,null,null,null,null,null,null,null,null,null,null,null,null,null,null,null,null,null,null,null,null,null,null,null,null,null,"SA Monetary value (2dp)"]
[31,"","FPS30","adjusted UK savings income",null,null,null,null,null,null,null,null,null,null,null,null,null,null,null,null,null,null,null,null,null,null,null,null,null,null,null,null,null,null,null,null,null,null,null,null,null,null,null,null,null,null,null,null,null,null,null,null,null,{"$f":"BB59+BB60","v":426},{"$f":"BC59+BC60","v":0},null,null,null,null,null,null,null,null,null,null,null,null,null,null,null,null,null,null,null,null,null,null,null,null,{"$f":"CB59+CB60","v":2160},{"$f":"CC59+CC60","v":2109},{"$f":"CD59+CD60","v":5},null,null,null,{"$f":"CH59+CH60","v":868},{"$f":"CI59+CI60","v":43},{"$f":"CJ59+CJ60","v":2074},null,null,null,null,null,{"$f":"CP59+CP60","v":331},null,null,null,null,null,null,null,null,{"$f":"CY59+CY60","v":1265},{"$f":"CZ59+CZ60","v":17255},{"$f":"DA59+DA60","v":17255},null,null,null,null,null,null,null,null,{"$f":"DJ59+DJ60","v":41},null,null,{"$f":"DM59+DM60","v":1265},null,null,null,null,null,null,null,null,null,null,null,null,null,null,null,null,null,null,null,null,{"$f":"EH59+EH60","v":0},{"$f":"EI59+EI60","v":854},null,null,null,null,null,null,null,null,null,null,null,null,null,null,null,null,null,{"$f":"FA59+FA60","v":1265},null,null,{"$f":"FD59+FD60","v":3000},null,null,null,3000,null,null,{"$f":"FK59+FK60","v":17255},null,null,null,{"$f":"FO59+FO60","v":13},null,null,null,null,null,null,null,null,null,null,null,null,null,null,null,null,null,null,null,null,null,null,null,null,null,null,null,null,null,null,null,null,null,null,null,{"$f":"GY59+GY60","v":855},null,null,null,null,null,null,null,null,null,null,null,null,null,null,null,null,null,null,null,null,null,null,null,null,null,null,null,null,null,null,null,null,null,null,null,null,null,null,null,null,null,null,null,{"$f":"IQ59+IQ60","v":0},null,{"$f":"IS59+IS60","v":12689},{"$f":"IT59+IT60","v":5319},{"$f":"IU59+IU60","v":137},null,null,null,null,null,null,null,null,null,null,null,null,null,{"$f":"JI59+JI60","v":14},null,null,{"$f":"JL59+JL60","v":7},{"$f":"JM59+JM60","v":14},null,null,null,null,null,"Equal to FPS28 + FPS29","SA Monetary value (2dp) >= 0.00"]
[32,"","FPS31","foreign untaxed savings income share",null,null,null,null,null,null,null,null,null,null,null,null,null,null,null,null,null,null,null,null,null,null,null,null,null,null,null,null,null,null,null,null,null,null,null,null,null,null,null,null,null,null,null,null,null,null,null,null,null,null,null,null,null,null,null,null,null,null,null,null,null,null,null,null,null,null,null,null,null,null,null,null,null,null,null,null,3036,null,null,null,null,null,null,null,null,null,null,null,null,null,null,null,null,null,null,null,null,null,245,1620,1620,null,null,null,null,null,null,null,null,null,null,null,245,null,null,null,null,null,null,null,null,null,null,null,null,null,null,null,null,null,null,null,null,null,null,null,null,null,null,null,null,null,null,722,null,null,null,null,null,null,null,null,245,1546,null,null,null,null,null,null,null,null,1620,null,null,null,null,null,null,null,null,null,null,null,null,null,null,null,null,null,null,null,null,null,null,null,null,null,null,null,null,null,null,null,null,null,null,null,null,null,null,null,null,null,null,null,null,null,null,null,null,null,null,null,null,null,null,null,null,null,null,null,null,null,null,null,null,null,null,null,null,null,null,null,null,null,null,null,null,null,null,null,null,null,null,null,null,null,144,null,4020,null,null,null,null,null,null,null,null,null,null,null,null,null,null,null,null,null,null,null,null,null,null,null,null,"SA Monetary value (2dp) > 0.00"]
[33,"","FPS32","foreign untaxed savings adjustment",null,null,null,null,null,null,null,null,null,null,null,null,null,null,null,null,null,null,null,null,null,null,null,null,null,null,null,null,null,null,null,null,null,null,null,null,null,null,null,null,null,null,null,null,null,null,null,null,null,null,null,null,null,null,null,null,null,null,null,null,null,null,null,null,null,null,null,null,null,null,null,null,null,null,null,null,null,null,null,null,null,null,null,null,null,null,null,null,null,null,null,null,null,null,null,null,null,null,null,-324,-324,null,null,null,null,null,null,null,null,null,null,null,null,null,null,null,null,null,null,null,null,null,null,null,null,null,null,null,null,null,null,null,null,null,null,null,null,null,null,null,null,null,null,null,null,null,null,null,null,null,null,null,null,null,null,null,null,null,null,null,null,null,-324,null,null,null,null,null,null,null,null,null,null,null,null,null,null,null,null,null,null,null,null,null,null,null,null,null,null,null,null,null,null,null,null,null,null,null,null,null,null,null,null,null,null,null,null,null,null,null,null,null,null,null,null,null,null,null,null,null,null,null,null,null,null,null,null,null,null,null,null,null,null,null,null,null,null,null,null,null,null,null,null,null,null,null,null,null,null,null,null,null,null,null,null,null,null,null,null,null,null,null,null,null,null,null,null,null,null,null,null,null,null,null,null,"SA Monetary value (2dp)"]
[34,{"$f":"IF(PS_B_IND>1,IF(HLOOKUP(PS_B_IND-1,FPS_RANGE,A64)=\"\",\"\",HLOOKUP(PS_B_IND-1,FPS_RANGE,A64)),\"\")","v":""},"FPS33","total foreign tax taken off",null,null,null,null,null,null,null,null,null,null,null,null,null,null,null,null,null,null,null,null,null,null,null,null,null,null,null,null,null,null,null,null,null,null,null,null,null,null,null,null,null,null,null,null,null,null,null,null,null,null,null,null,null,null,null,null,null,null,null,null,null,null,null,null,null,null,null,null,null,null,null,null,null,null,null,null,null,null,null,null,null,null,null,null,null,null,null,null,null,null,null,null,null,null,null,null,null,null,24,null,null,null,null,null,null,null,null,null,null,null,null,null,24,null,null,null,null,null,null,null,null,null,null,null,null,null,null,null,null,null,null,null,null,null,null,null,null,null,null,null,null,null,null,null,null,null,null,null,null,null,null,null,24,null,null,null,null,null,null,null,null,null,null,null,null,null,null,null,null,null,null,null,null,null,null,null,null,null,null,null,null,null,null,null,null,null,null,null,null,null,null,null,null,null,null,null,null,null,null,null,null,null,null,null,null,null,null,null,null,null,null,null,null,null,null,null,null,null,null,null,null,null,null,null,null,null,null,null,null,null,null,null,null,null,null,null,null,null,null,null,null,null,null,null,null,null,null,null,null,null,null,null,null,null,null,null,null,null,null,null,null,null,null,null,null,null,null,null,null,null,null,null,null,null,null,"SA Monetary value (2dp) > 0.00"]
[35,"","FPS34","adjusted foreign savings income",null,null,null,null,null,null,null,null,null,null,null,null,null,null,null,null,null,null,null,null,null,null,null,null,null,null,null,null,null,null,null,null,null,null,null,null,null,null,null,null,null,null,null,null,null,null,null,null,null,{"$f":"MAX(0,BB62+BB63-BB64)","v":0},{"$f":"MAX(0,BC62+BC63-BC64)","v":0},null,null,null,null,null,null,null,null,null,null,null,null,null,null,null,null,null,null,null,null,null,null,null,null,{"$f":"MAX(0,CB62+CB63-CB64)","v":0},{"$f":"MAX(0,CC62+CC63-CC64)","v":3036},null,null,null,null,null,null,null,null,null,null,null,null,{"$f":"MAX(0,CP62+CP63-CP64)","v":0},null,null,null,null,null,null,null,null,{"$f":"MAX(0,CY62+CY63-CY64)","v":221},{"$f":"MAX(0,CZ62+CZ63-CZ64)","v":1296},{"$f":"MAX(0,DA62+DA63-DA64)","v":1296},null,null,null,null,null,null,null,null,{"$f":"MAX(0,DJ62+DJ63-DJ64)","v":0},null,null,{"$f":"MAX(0,DM62+DM63-DM64)","v":221},null,null,null,null,null,null,null,null,null,null,null,null,null,null,null,null,null,null,null,null,{"$f":"MAX(0,EH62+EH63-EH64)","v":0},{"$f":"MAX(0,EI62+EI63-EI64)","v":0},null,null,null,null,null,null,null,null,722,null,null,null,null,null,null,null,null,{"$f":"MAX(0,FA62+FA63-FA64)","v":221},{"$f":"MAX(0,FB62+FB63-FB64)","v":1546},null,null,null,null,null,null,null,null,{"$f":"MAX(0,FK62+FK63-FK64)","v":1296},null,null,null,null,null,null,null,null,null,null,null,null,null,null,null,null,null,null,null,null,null,null,null,null,null,null,null,null,null,null,null,null,null,null,null,null,null,null,null,{"$f":"MAX(0,GY62+GY63-GY64)","v":0},null,null,null,null,null,null,null,null,null,null,null,null,null,null,null,null,null,null,null,null,null,null,null,null,null,null,null,null,null,null,null,null,null,null,null,null,null,null,null,null,null,null,null,{"$f":"MAX(0,IQ62+IQ63-IQ64)","v":0},null,{"$f":"MAX(0,IS62+IS63-IS64)","v":144},null,{"$f":"MAX(0,IU62+IU63-IU64)","v":4020},null,null,null,null,null,null,null,null,null,null,null,null,null,null,null,null,null,{"$f":"MAX(0,JM62+JM63-JM64)","v":0},null,null,null,null,null,"Equal to FPS31 + FPS32 minus FPS33","SA Monetary value (2dp)"]
[36,"","FPS35","total untaxed savings income ",null,null,null,null,null,null,null,null,null,null,null,null,null,null,null,null,null,null,null,null,null,null,null,null,null,null,null,null,null,null,null,null,null,null,null,null,null,null,null,null,null,null,null,null,null,null,null,null,null,{"$f":"BB61+BB65","v":426},{"$f":"BC61+BC65","v":0},null,null,null,null,null,null,null,null,null,null,null,null,null,null,null,null,null,null,null,null,null,null,null,null,{"$f":"CB61+CB65","v":2160},{"$f":"CC61+CC65","v":5145},{"$f":"CD61+CD65","v":5},2890,null,null,{"$f":"CH61+CH65","v":868},{"$f":"CI61+CI65","v":43},{"$f":"CJ61+CJ65","v":2074},null,null,null,null,null,{"$f":"CP61+CP65","v":331},null,null,null,null,null,null,null,null,{"$f":"CY61+CY65","v":1486},{"$f":"CZ61+CZ65","v":18551},{"$f":"DA61+DA65","v":18551},null,null,null,null,null,null,null,null,{"$f":"DJ61+DJ65","v":41},null,null,{"$f":"DM61+DM65","v":1486},null,null,null,null,null,null,null,null,null,null,null,null,null,null,null,null,null,null,null,null,{"$f":"EH61+EH65","v":0},{"$f":"EI61+EI65","v":854},null,null,null,null,null,null,null,null,{"$f":"ER61+ER65","v":722},null,null,null,68,null,null,null,null,{"$f":"FA61+FA65","v":1486},{"$f":"FB61+FB65","v":1546},null,{"$f":"FD61+FD65","v":3000},null,null,null,3000,null,null,18551,null,null,null,{"$f":"FO61+FO65","v":13},null,null,null,null,null,null,null,null,null,null,null,null,null,null,null,null,null,null,null,null,null,null,null,null,null,null,null,null,null,null,null,null,null,null,null,{"$f":"GY61+GY65","v":855},null,null,null,null,null,null,null,null,null,null,null,null,null,null,null,null,null,null,null,null,null,null,null,null,null,null,null,null,null,null,null,null,null,null,null,null,null,null,null,null,null,null,null,{"$f":"IQ61+IQ65","v":0},null,{"$f":"IS61+IS65","v":12833},{"$f":"IT61+IT65","v":5319},{"$f":"IU61+IU65","v":4157},null,null,null,null,null,null,null,null,null,null,null,null,null,{"$f":"JI61+JI65","v":14},null,null,{"$f":"JL61+JL65","v":7},{"$f":"JM61+JM65","v":14},null,null,null,null,null,"Equal to FPS30 + FPS34","SA Monetary value (2dp) >= 0.00"]
[37,"","FPS35.1","Amount claimed under FIG"]
[38,"","FPS36","Share of profit or loss from UK land & property",null,null,null,null,null,null,null,null,null,null,null,null,null,null,null,null,null,null,null,null,null,null,null,null,null,null,null,null,null,null,null,null,null,null,null,null,null,null,null,null,null,null,null,null,null,null,null,null,null,6421,0,null,null,null,null,null,null,null,null,null,null,null,null,null,null,null,null,null,null,null,null,null,null,null,null,null,989,9551,9498,null,{"$f":"BR_band+BPA+9250","v":50080},18970,2221,11187,null,null,null,null,null,0,null,null,null,null,null,null,null,null,-6400,0,0,null,null,null,null,null,null,null,null,132,null,null,-6400,null,null,null,null,null,null,null,null,null,null,null,null,null,null,null,null,null,null,null,null,5500,-5000,null,null,null,null,null,null,null,null,null,null,null,null,null,null,null,null,null,-6400,null,null,null,null,null,null,null,null,null,0,null,null,null,null,null,null,null,null,null,null,null,null,null,null,null,null,null,null,null,null,null,null,null,null,null,null,null,null,null,null,null,null,null,null,null,null,null,null,null,-3000,null,null,null,null,null,null,null,null,null,null,null,null,null,null,null,null,null,null,null,null,null,null,null,null,null,null,null,null,null,null,null,null,null,null,null,null,null,null,null,null,null,null,null,106,null,null,null,null,null,null,null,null,null,null,null,null,null,null,null,null,null,null,null,null,269,null,null,null,null,null,null,null,"SA Monetary value (2dp)"]
[39,"","FPS37","Adjustment to UK property income",null,null,null,null,null,null,null,null,null,null,null,null,null,null,null,null,null,null,null,null,null,null,null,null,null,null,null,null,null,null,null,null,null,null,null,null,null,null,null,null,null,null,null,null,null,null,null,null,null,0,0,null,null,null,null,null,null,null,null,null,null,null,null,null,null,null,null,null,null,null,null,null,null,null,null,null,null,3600,null,null,null,null,null,null,null,null,null,null,null,0,null,null,null,null,null,null,null,null,0,0,0,null,null,null,null,null,null,null,null,0,null,null,0,null,null,null,null,null,null,null,null,null,null,null,null,null,null,null,null,null,null,null,null,0,0,null,null,null,null,null,null,null,null,null,null,null,null,null,null,null,null,null,0,null,null,null,null,null,null,null,null,null,0,null,null,null,null,null,null,null,null,null,null,null,null,null,null,null,null,null,null,null,null,null,null,null,null,null,null,null,null,null,null,null,null,null,null,null,null,null,null,null,0,null,null,null,null,null,null,null,null,null,null,null,null,null,null,null,null,null,null,null,null,null,null,null,null,null,null,null,null,null,null,null,null,null,null,null,null,null,null,null,null,null,null,null,null,null,null,null,null,null,null,null,null,null,null,null,null,null,null,null,null,null,null,null,null,null,null,null,null,null,null,null,null,"SA Monetary value (2dp)"]
[40,"","FPS38","UK Land & Property - Loss Brought Forward",null,null,null,null,null,null,null,null,null,null,null,null,null,null,null,null,null,null,null,null,null,null,null,null,null,null,null,null,null,null,null,null,null,null,null,null,null,null,null,null,null,null,null,null,null,null,null,null,null,365,null,null,null,null,null,null,null,null,null,null,null,null,null,null,null,null,null,null,null,null,null,null,null,null,null,null,null,7000,9498,null,null,null,null,null,null,null,null,null,null,null,null,null,null,null,null,null,null,null,null,null,null,null,null,null,null,null,null,null,null,null,null,null,null,null,null,null,null,null,null,null,null,null,null,null,null,null,null,null,null,null,null,null,null,5500,null,null,null,null,null,null,null,null,null,null,null,null,null,null,null,null,null,null,null,null,null,null,null,null,null,null,null,null,null,null,null,null,null,null,null,null,null,null,null,null,null,null,null,null,null,null,null,null,null,null,null,null,null,null,null,null,null,null,null,null,null,null,null,null,null,null,null,null,null,null,null,null,null,null,null,null,null,null,null,null,null,null,null,null,null,null,null,null,null,null,null,null,null,null,null,null,null,null,null,null,null,null,null,null,null,null,null,null,null,null,null,null,null,null,null,null,null,null,null,null,null,null,null,null,null,null,null,null,null,null,null,null,null,null,null,null,null,null,null,null,"If present, must be less than or equal to FPS36 + FPS37 where that sum is positive","SA Monetary value (2dp) > 0.00"]
[41,"","FPS39",{"$f":"\"Loss set off against \"&tax_year&\" total income\"","v":"Loss set off against 2025-26 total income"},null,null,null,null,null,null,null,null,null,null,null,null,null,null,null,null,null,null,null,null,null,null,null,null,null,null,null,null,null,null,null,null,null,null,null,null,null,null,null,null,null,null,null,null,null,null,null,null,null,null,null,null,null,null,null,null,null,null,null,null,null,null,null,null,null,null,null,null,null,null,null,null,null,null,null,null,null,null,null,null,null,null,null,null,null,null,null,null,null,null,null,null,null,null,null,null,null,null,6400,null,null,null,null,null,null,null,null,null,null,null,null,null,6400,null,null,null,null,null,null,null,null,null,null,null,null,null,null,null,null,null,null,null,null,null,null,null,null,null,null,null,null,null,null,null,null,null,null,null,null,null,null,null,6400,null,null,null,null,null,null,null,null,null,null,null,null,null,null,null,null,null,null,null,null,null,null,null,null,null,null,null,null,null,null,null,null,null,null,null,null,null,null,null,null,null,null,null,null,null,null,null,null,null,3000,null,null,null,null,null,190000,null,null,null,null,null,null,null,null,null,null,null,null,null,null,null,null,null,null,null,null,null,null,null,null,null,null,null,null,null,null,null,null,null,null,null,null,null,null,null,null,null,null,null,null,null,null,null,null,null,null,null,null,null,null,null,null,null,null,null,null,null,null,null,null,null,"If the sum of FPS36 + FPS37 is negative, FPS39 is less than or equal to the positive equivalent of that sum. \n","SA Monetary value (2dp) > 0.00"]
[42,"","FPS40","UK Land & Property - Loss Carried Forward",null,null,null,null,null,null,null,null,null,null,null,null,null,null,null,null,null,null,null,null,null,null,null,null,null,null,null,null,null,null,null,null,null,null,null,null,null,null,null,null,null,null,null,null,null,null,null,null,null,null,null,null,null,null,null,null,null,null,null,null,null,null,null,null,null,null,null,null,null,null,null,null,null,null,null,null,null,null,59490,null,null,null,null,null,null,null,null,null,null,null,null,null,null,null,null,null,null,null,null,null,null,null,null,null,null,null,null,null,null,null,null,null,null,null,null,null,null,null,null,null,null,null,null,null,null,null,null,null,null,null,null,null,null,null,null,null,null,null,null,null,null,null,null,null,null,null,null,null,null,null,null,null,null,null,null,null,null,null,null,null,null,null,null,null,null,null,null,null,null,null,null,null,null,null,null,null,null,null,null,null,null,null,null,null,null,null,null,null,null,null,null,null,null,null,null,null,null,null,null,null,null,null,0,null,null,null,null,null,null,null,null,null,null,null,null,null,null,null,null,null,null,null,null,null,null,null,null,null,null,null,null,null,null,null,null,null,null,null,null,null,null,null,null,null,null,null,106,null,null,null,null,null,null,null,null,null,null,null,null,null,null,null,null,null,null,null,null,null,null,null,null,null,null,null,null,"SA Monetary value (2dp) >= 0.00"]
[43,{"$f":"IF(PS_B_IND>1,IF(HLOOKUP(PS_B_IND-1,FPS_RANGE,A73)=\"\",\"\",HLOOKUP(PS_B_IND-1,FPS_RANGE,A73)),\"\")","v":""},"FPS41","Taxable profit after losses (UK land and property)",null,null,null,null,null,null,null,null,null,null,null,null,null,null,null,null,null,null,null,null,null,null,null,null,null,null,null,null,null,null,null,null,null,null,null,null,null,null,null,null,null,null,null,null,null,null,null,null,null,{"$f":"MAX(0,BB68+BB69-BB70)","v":6056},{"$f":"MAX(0,BC68+BC69-BC70)","v":0},null,null,null,null,null,null,null,null,null,null,null,null,null,null,null,null,null,null,null,null,null,null,null,null,{"$f":"MAX(0,CB68+CB69-CB70)","v":0},{"$f":"MAX(0,CC68+CC69-CC70)","v":989},{"$f":"MAX(0,CD68+CD69-CD70)","v":6151},{"$f":"MAX(0,CE68+CE69-CE70)","v":0},null,{"$f":"MAX(0,CG68+CG69-CG70)","v":50080},{"$f":"MAX(0,CH68+CH69-CH70)","v":18970},2221,11187,{"$f":"MAX(0,CK68+CK69-CK70)","v":0},null,null,null,null,{"$f":"MAX(0,CP68+CP69-CP70)","v":0},null,null,null,null,null,null,null,null,null,null,null,null,null,null,null,null,null,null,null,{"$f":"MAX(0,DJ68+DJ69-DJ70)","v":132},null,null,{"$f":"MAX(0,DM68+DM69-DM70)","v":0},null,null,null,null,null,null,null,null,null,null,null,null,null,null,null,null,null,null,null,null,null,null,null,null,null,null,null,null,null,null,null,null,null,null,null,null,null,null,null,{"$f":"MAX(0,FA68+FA69-FA70)","v":0},null,null,null,null,null,null,null,null,null,{"$f":"MAX(0,FK68+FK69-FK70)","v":0},null,null,null,null,null,null,null,null,null,null,null,null,null,null,null,null,null,null,null,null,null,null,null,null,null,null,null,null,null,null,null,null,null,null,null,null,null,null,null,{"$f":"MAX(0,GY68+GY69-GY70)","v":0},null,null,null,null,null,null,null,null,null,null,null,null,null,null,null,null,null,null,null,null,null,null,null,null,null,null,null,null,null,null,null,null,null,null,null,null,null,null,null,null,null,null,null,{"$f":"MAX(0,IQ68+IQ69-IQ70)","v":106},null,null,null,null,null,null,null,null,null,null,null,null,null,null,null,null,null,{"$f":"MAX(0,JI68+JI69-JI70)","v":0},null,null,{"$f":"MAX(0,JL68+JL69-JL70)","v":269},{"$f":"MAX(0,JM68+JM69-JM70)","v":0},null,null,null,null,null,"a) If (FPS36 + FPS37 minus FPS38) is positive or zero FPS41 equals that sum.\nb) If (FPS36 + FPS37 minus FPS38) is negative FPS41 equals zero.","SA Monetary value (2dp) >= 0.00"]
[44,{"$f":"IF(PS_B_IND>1,IF(HLOOKUP(PS_B_IND-1,FPS_RANGE,A74)=\"\",\"\",HLOOKUP(PS_B_IND-1,FPS_RANGE,A74)),\"\")","v":""},"FPS41.1","Relief for residential finance costs",null,null,null,null,null,null,null,null,null,null,null,null,null,null,null,null,null,null,null,null,null,null,null,null,null,null,null,null,null,null,null,null,null,null,null,null,null,null,null,null,null,null,null,null,null,null,null,null,null,200,null,null,null,null,null,null,null,null,null,null,null,null,null,null,null,null,null,null,null,null,null,null,null,null,null,null,null,null,null,null,null,4684]
[45,{"$f":"IF(PS_B_IND>1,IF(HLOOKUP(PS_B_IND-1,FPS_RANGE,A75)=\"\",\"\",HLOOKUP(PS_B_IND-1,FPS_RANGE,A75)),\"\")","v":""},"FPS41.2","Unused reflief for finance costs brought forward",null,null,null,null,null,null,null,null,null,null,null,null,null,null,null,null,null,null,null,null,null,null,null,null,null,null,null,null,null,null,null,null,null,null,null,null,null,null,null,null,null,null,null,null,null,null,null,null,null,40,null,null,null,null,null,null,null,null,null,null,null,null,null,null,null,null,null,null,null,null,null,null,null,null,null,null,null,null,null,null,null,null,null,null,null,null,null,null,null,null,null,null,null,null,null,null,null,null,null,null,null,null,null,null,null,null,null,null,null,null,null,null,null,null,null,null,null,null,null,null,null,null,null,null,null,null,null,null,null,null,null,null,null,null,null,null,null,null,null,null,null,null,null,null,null,null,null,null,null,null,null,null,null,null,null,null,null,null,null,null,null,null,null,null,null,null,null,null,null,null,null,null,null,null,null,null,null,null,null,null,null,null,null,null,null,null,null,null,null,null,null,null,null,null,null,null,null,null,null,null,null,null,null,null,null,null,null,null,null,null,null,null,null,null,null,null,null,null,null,null,null,null,null,null,null,null,null,null,null,null,null,null,null,null,null,null,null,null,null,null,null,null,null,null,null,null,null,null,null,null,null,null,null,null,null,null,null,null,null,null,null,null,null,null,null,null,null,null,null,null,null,null,null,null,null,"SA Monetary value (2dp) >= 0.00"]
[46,{"$f":"IF(PS_B_IND>1,IF(HLOOKUP(PS_B_IND-1,FPS_RANGE,A76)=\"\",\"\",HLOOKUP(PS_B_IND-1,FPS_RANGE,A76)),\"\")","v":""},"FPSAF1","Allowable finance costs"]
[47,{"$f":"IF(PS_B_IND>1,IF(HLOOKUP(PS_B_IND-1,FPS_RANGE,A77)=\"\",\"\",HLOOKUP(PS_B_IND-1,FPS_RANGE,A77)),\"\")","v":""},"FPS42","Share of FHL profit",null,null,null,null,null,null,null,null,null,null,null,null,null,null,null,null,null,null,null,null,null,null,null,null,null,null,null,null,null,null,null,null,null,null,null,null,null,null,null,null,null,null,null,null,null,null,null,null,null,null,null,null,null,null,null,null,null,null,null,null,null,null,null,null,null,null,null,null,null,null,null,null,null,null,null,null,null,null,null,null,null,null,null,null,null,null,null,null,null,null,null,null,null,null,null,null,null,null,null,null,null,null,null,null,null,null,null,null,null,null,null,null,null,null,null,null,null,null,null,null,null,null,null,null,null,null,null,null,null,null,null,null,null,null,null,null,null,null,null,null,null,null,null,null,null,null,null,null,null,null,null,null,2126,null,null,null,null,null,null,null,null,null,null,null,null,null,null,null,null,null,null,null,null,null,null,null,null,null,null,null,null,null,null,null,null,null,null,null,null,null,null,null,null,null,null,null,null,null,null,null,null,null,null,null,null,null,null,null,null,null,null,null,null,null,null,null,null,null,null,null,null,null,null,null,null,null,null,null,null,null,null,null,null,null,null,null,null,null,null,null,null,null,null,null,null,null,null,null,null,null,null,null,null,null,null,null,null,null,null,null,null,null,null,null,null,null,null,null,null,null,null,null,null,null,null,"SA Monetary value (2dp) >= 0.00"]
[48,"","FPS43","Adjustments to FHL profit",null,null,null,null,null,null,null,null,null,null,null,null,null,null,null,null,null,null,null,null,null,null,null,null,null,null,null,null,null,null,null,null,null,null,null,null,null,null,null,null,null,null,null,null,null,null,null,null,null,null,null,null,null,null,null,null,null,null,null,null,null,null,null,null,null,null,null,null,null,null,null,null,null,null,null,null,null,null,null,null,null,null,null,null,null,null,null,null,null,null,null,null,null,null,null,null,null,null,null,null,null,null,null,null,null,null,null,null,null,null,null,null,null,null,null,null,null,null,null,null,null,null,null,null,null,null,null,null,null,null,null,null,null,null,null,null,null,null,null,null,null,null,null,null,null,null,null,null,null,null,null,null,null,null,null,null,null,null,null,null,null,null,null,null,null,null,null,null,null,null,null,null,null,null,null,null,null,null,null,null,null,null,null,null,null,null,null,null,null,null,null,null,null,null,null,null,null,null,null,null,null,null,null,null,null,null,null,null,null,null,null,null,null,null,null,null,null,null,null,null,null,null,null,null,null,null,null,null,null,null,null,null,null,null,null,null,null,null,null,null,null,null,null,null,null,null,null,null,null,null,null,null,null,null,null,null,null,null,null,null,null,null,null,null,null,null,null,null,null,null,null,null,null,null,"Can be negative","SA Monetary value (2dp)"]
[49,"","FPS44","Taxable FHL profit",null,null,null,null,null,null,null,null,null,null,null,null,null,null,null,null,null,null,null,null,null,null,null,null,null,null,null,null,null,null,null,null,null,null,null,null,null,null,null,null,null,null,null,null,null,null,null,null,null,null,null,null,null,null,null,null,null,null,null,null,null,null,null,null,null,null,null,null,null,null,null,null,null,null,null,null,null,null,null,null,null,null,null,null,null,null,null,null,null,null,null,null,null,null,null,null,null,null,null,null,null,null,null,null,null,null,null,null,null,null,null,null,null,null,null,null,null,null,null,null,null,null,null,null,null,null,null,null,null,null,null,null,null,null,null,null,null,null,null,null,null,null,null,null,null,null,null,null,null,null,null,null,null,null,null,null,null,null,null,null,null,null,null,null,null,null,null,null,null,null,null,null,null,null,null,null,null,null,null,null,null,null,null,null,null,null,null,null,null,null,null,null,null,null,null,null,null,null,null,null,null,null,null,null,null,null,null,null,null,null,null,null,null,null,null,null,null,null,null,null,null,null,null,null,null,null,null,null,null,null,null,null,null,null,null,null,null,null,null,null,null,null,null,null,null,null,null,null,null,null,null,null,null,null,null,null,null,null,null,null,null,null,null,null,null,null,null,null,null,null,null,null,null,null,"If FPS42 or FPS43 present, \nif FPS42 + FPS43 is greater than zero FPS44 must equal FPS42 + FPS43 \nelse FPS44 must equal zero.\nCannot be negative.","SA Monetary value (2dp) >= 0.00"]
[50,"","FPS45","Other Untaxed UK Income - Allocated income",null,null,null,null,null,null,null,null,null,null,null,null,null,null,null,null,null,null,null,null,null,null,null,null,null,null,null,null,null,null,null,null,null,null,null,null,null,null,null,null,null,null,null,null,null,null,null,null,null,null,null,null,null,null,null,null,null,null,null,null,null,null,null,null,null,null,null,null,null,null,null,null,null,null,null,null,null,null,2035,null,null,58166,null,null,null,null,null,null,null,null,null,null,null,null,null,null,null,null,16570,13625,13625,null,null,null,null,null,null,null,null,null,null,null,16570,null,null,null,null,null,null,null,null,null,null,null,null,null,null,null,null,null,null,null,null,null,1589,null,null,null,null,null,null,null,null,null,null,null,null,null,null,null,null,null,16570,null,null,1190,null,null,null,1190,null,null,13625,null,null,null,null,null,null,null,null,null,null,null,null,null,null,null,null,null,null,null,null,null,null,null,null,null,null,null,null,null,null,null,null,null,null,null,null,null,null,null,1589,null,null,null,null,null,null,null,null,null,null,null,null,null,null,null,null,null,null,null,null,null,null,null,null,null,null,null,null,null,null,null,null,null,null,null,null,null,null,null,null,null,null,null,null,null,null,null,null,null,null,null,null,null,null,null,null,null,null,null,null,null,null,null,null,null,null,null,null,null,null,null,null,"SA Monetary value (2dp) > 0.00"]
[51,"","FPS46","Other Untaxed UK Income - Adjustment to income",null,null,null,null,null,null,null,null,null,null,null,null,null,null,null,null,null,null,null,null,null,null,null,null,null,null,null,null,null,null,null,null,null,null,null,null,null,null,null,null,null,null,null,null,null,null,null,null,null,null,null,null,null,null,null,null,null,null,null,null,null,null,null,null,null,null,null,null,null,null,null,null,null,null,null,null,null,null,null,null,null,null,null,null,null,null,null,null,null,null,null,null,null,null,null,null,null,null,null,-2725,-2725,null,null,null,null,null,null,null,null,null,null,null,null,null,null,null,null,null,null,null,null,null,null,null,null,null,null,null,null,null,null,null,null,null,null,null,null,null,null,null,null,null,null,null,null,null,null,null,null,null,null,null,null,null,null,null,null,null,null,null,null,null,-2725,null,null,null,null,null,null,null,null,null,null,null,null,null,null,null,null,null,null,null,null,null,null,null,null,null,null,null,null,null,null,null,null,null,null,null,null,null,null,null,null,null,null,null,null,null,null,null,null,null,null,null,null,null,null,null,null,null,null,null,null,null,null,null,null,null,null,null,null,null,null,null,null,null,null,null,null,null,null,null,null,null,null,null,null,null,null,null,null,null,null,null,null,null,null,null,null,null,null,null,null,null,null,null,null,null,null,null,null,null,null,null,null,"SA Monetary value (2dp)"]
[52,"","FPS47","Other Untaxed UK Income - Loss Brought Forward",null,null,null,null,null,null,null,null,null,null,null,null,null,null,null,null,null,null,null,null,null,null,null,null,null,null,null,null,null,null,null,null,null,null,null,null,null,null,null,null,null,null,null,null,null,null,null,null,null,null,null,null,null,null,null,null,null,null,null,null,null,null,null,null,null,null,null,null,null,null,null,null,null,null,null,null,null,null,null,null,null,null,null,null,null,null,null,null,null,null,null,null,null,null,null,null,null,null,9225,1122,1122,null,null,null,null,null,null,null,null,null,null,null,9225,null,null,null,null,null,null,null,null,null,null,null,null,null,null,null,null,null,null,null,null,null,20,null,null,null,null,null,null,null,null,null,null,null,null,null,null,null,null,null,9225,null,null,null,null,null,null,null,null,null,1122,null,null,null,null,null,null,null,null,null,null,null,null,null,null,null,null,null,null,null,null,null,null,null,null,null,null,null,null,null,null,null,null,null,null,null,null,null,null,null,20,null,null,null,null,null,null,null,null,null,null,null,null,null,null,null,null,null,null,null,null,null,null,null,null,null,null,null,null,null,null,null,null,null,null,null,null,null,null,null,null,null,null,null,null,null,null,null,null,null,null,null,null,null,null,null,null,null,null,null,null,null,null,null,null,null,null,null,null,null,null,null,"If present, must be less than or equal to FPS45 + FPS46","Monetary value (2dp) >= 0.00"]
[53,"","FPS48","Taxable profit after adjustment and losses (other untaxed UK income)",null,null,null,null,null,null,null,null,null,null,null,null,null,null,null,null,null,null,null,null,null,null,null,null,null,null,null,null,null,null,null,null,null,null,null,null,null,null,null,null,null,null,null,null,null,null,null,null,null,null,null,null,null,null,null,null,null,null,null,null,null,null,null,null,null,null,null,null,null,null,null,null,null,null,null,null,null,null,2035,null,null,58166,null,null,null,null,null,null,null,null,null,null,null,null,null,null,null,null,{"$f":"MAX(0,CY80+CY81-CY82)","v":7345},{"$f":"MAX(0,CZ80+CZ81-CZ82)","v":9778},{"$f":"MAX(0,DA80+DA81-DA82)","v":9778},null,null,null,null,null,null,null,null,null,null,null,{"$f":"MAX(0,DM80+DM81-DM82)","v":7345},null,null,null,null,null,null,null,null,null,null,null,null,null,null,null,null,null,null,null,null,null,{"$f":"MAX(0,EI80+EI81-EI82)","v":1569},null,null,null,null,null,null,null,null,null,null,null,null,null,null,null,null,null,{"$f":"MAX(0,FA80+FA81-FA82)","v":7345},null,null,{"$f":"MAX(0,FD80+FD81-FD82)","v":1190},0,0,0,1190,0,0,{"$f":"MAX(0,FK80+FK81-FK82)","v":9778},null,null,null,null,null,null,null,null,null,null,null,null,null,null,null,null,null,null,null,null,null,null,null,null,null,null,null,null,null,null,null,null,null,null,null,null,null,null,null,{"$f":"MAX(0,GY80+GY81-GY82)","v":1569},null,null,null,null,null,null,null,null,null,null,null,null,null,null,null,null,null,null,null,null,null,null,null,null,null,null,null,null,null,null,null,null,null,null,null,null,null,null,null,null,null,null,null,null,null,null,null,null,null,null,null,null,null,null,null,null,null,null,null,null,null,null,null,null,null,null,null,null,null,null,null,"If present, must be less than or equal to FPS45 + FPS46 minus FPS47","SA Monetary value (2dp) >= 0.00"]
[54,"","FPS49","Other  Untaxed UK Income - Allocated Loss",null,null,null,null,null,null,null,null,null,null,null,null,null,null,null,null,null,null,null,null,null,null,null,null,null,null,null,null,null,null,null,null,null,null,null,null,null,null,null,null,null,null,null,null,null,null,null,null,null,null,null,null,null,null,null,null,null,null,null,null,null,null,null,null,null,null,null,null,null,null,null,null,null,null,null,null,null,null,null,null,null,null,null,null,null,null,null,null,null,null,null,null,null,null,null,null,null,null,null,null,null,null,null,null,null,null,null,null,null,null,null,null,null,null,null,null,null,null,null,null,null,null,null,null,null,null,null,null,null,null,null,null,null,null,null,null,null,null,null,null,null,null,null,null,null,null,null,null,null,null,null,null,null,null,null,null,null,null,null,null,null,null,null,null,null,null,null,null,null,null,null,null,null,null,null,null,null,null,null,null,null,null,null,null,null,null,null,null,null,null,null,null,null,null,null,null,null,null,null,null,null,null,null,null,null,null,null,null,null,null,null,null,null,null,null,null,null,null,null,null,null,null,null,null,null,null,null,null,null,null,null,null,null,null,null,null,null,null,null,null,null,null,null,null,null,null,null,null,null,null,null,null,null,null,null,null,null,null,null,null,null,null,null,null,null,null,null,null,null,null,null,null,null,null,null,"SA Monetary value (2dp) > 0.00"]
[55,"","FPS50","Adjustment to Loss For Other Untaxed UK Income",null,null,null,null,null,null,null,null,null,null,null,null,null,null,null,null,null,null,null,null,null,null,null,null,null,null,null,null,null,null,null,null,null,null,null,null,null,null,null,null,null,null,null,null,null,null,null,null,null,null,null,null,null,null,null,null,null,null,null,null,null,null,null,null,null,null,null,null,null,null,null,null,null,null,null,null,null,null,null,null,null,null,null,null,null,null,null,null,null,null,null,null,null,null,null,null,null,null,null,null,null,null,null,null,null,null,null,null,null,null,null,null,null,null,null,null,null,null,null,null,null,null,null,null,null,null,null,null,null,null,null,null,null,null,null,null,null,null,null,null,null,null,null,null,null,null,null,null,null,null,null,null,null,null,null,null,null,null,null,null,null,null,null,null,null,null,null,null,null,null,null,null,null,null,null,null,null,null,null,null,null,null,null,null,null,null,null,null,null,null,null,null,null,null,null,null,null,null,null,null,null,null,null,null,null,null,null,null,null,null,null,null,null,null,null,null,null,null,null,null,null,null,null,null,null,null,null,null,null,null,null,null,null,null,null,null,null,null,null,null,null,null,null,null,null,null,null,null,null,null,null,null,null,null,null,null,null,null,null,null,null,null,null,null,null,null,null,null,null,null,null,null,null,null,null,"SA Monetary value (2dp)"]
[56,"","FPS51","Other Untaxed UK Income - Loss Carried Forward",null,null,null,null,null,null,null,null,null,null,null,null,null,null,null,null,null,null,null,null,null,null,null,null,null,null,null,null,null,null,null,null,null,null,null,null,null,null,null,null,null,null,null,null,null,null,null,null,null,null,null,null,null,null,null,null,null,null,null,null,null,null,null,null,null,null,null,null,null,null,null,null,null,null,null,null,null,null,null,null,null,null,null,null,null,null,null,null,null,null,null,null,null,null,null,null,null,null,null,null,null,null,null,null,null,null,null,null,null,null,null,null,null,null,null,null,null,null,null,null,null,null,null,null,null,null,null,null,null,null,null,null,null,null,null,null,null,null,null,null,null,null,null,null,null,null,null,null,null,null,null,null,null,null,null,null,null,null,null,null,null,null,null,null,null,null,null,null,null,null,null,null,null,null,null,null,null,null,null,null,null,null,null,null,null,null,null,null,null,null,null,null,null,null,null,null,null,null,null,null,null,null,null,null,null,null,null,null,null,null,null,null,null,null,null,null,null,null,null,null,null,null,null,null,null,null,null,null,null,null,null,null,null,null,null,null,null,null,null,null,null,null,null,null,null,null,null,null,null,null,null,null,null,null,null,null,null,null,null,null,null,null,null,null,null,null,null,null,null,null,null,null,null,null,null,"SA Monetary value (2dp) > 0.00"]
[57,"","FPS52","Allocated income",null,null,null,null,null,null,null,null,null,null,null,null,null,null,null,null,null,null,null,null,null,null,null,null,null,null,null,null,null,null,null,null,null,null,null,null,null,null,null,null,null,null,null,null,null,null,null,null,null,null,null,null,null,null,null,null,null,null,null,null,null,null,null,null,null,null,null,null,null,null,null,null,null,null,null,null,null,null,null,null,null,null,null,null,null,null,null,null,null,null,null,null,null,null,null,null,null,null,null,6791,6791,null,null,null,null,null,null,null,null,null,null,null,null,null,null,null,null,null,null,null,null,null,null,null,null,null,null,null,null,null,null,null,null,null,9861,null,null,null,null,null,null,null,null,null,null,null,null,null,null,null,null,null,null,null,null,null,null,null,null,null,null,null,6791,null,null,null,null,null,null,null,null,null,null,null,null,null,null,null,null,null,null,null,null,null,null,null,null,null,null,null,null,null,null,null,null,null,null,null,null,null,null,null,9862,null,null,null,null,null,null,null,null,null,null,null,null,null,null,null,null,null,null,null,null,null,null,null,null,null,null,null,null,null,null,null,null,null,null,null,null,null,null,null,null,null,null,null,null,null,null,null,null,null,null,null,null,null,null,null,null,null,null,null,null,null,null,null,null,null,null,null,null,null,null,null,null,"SA Monetary value (2dp) > 0.00"]
[58,"","FPS53","Offshore Funds Income Adjustment",null,null,null,null,null,null,null,null,null,null,null,null,null,null,null,null,null,null,null,null,null,null,null,null,null,null,null,null,null,null,null,null,null,null,null,null,null,null,null,null,null,null,null,null,null,null,null,null,null,null,null,null,null,null,null,null,null,null,null,null,null,null,null,null,null,null,null,null,null,null,null,null,null,null,null,null,null,null,null,null,null,null,null,null,null,null,null,null,null,null,null,null,null,null,null,null,null,null,null,-1359,-1359,null,null,null,null,null,null,null,null,null,null,null,null,null,null,null,null,null,null,null,null,null,null,null,null,null,null,null,null,null,null,null,null,null,null,null,null,null,null,null,null,null,null,null,null,null,null,null,null,null,null,null,null,null,null,null,null,null,null,null,null,null,-1359,null,null,null,null,null,null,null,null,null,null,null,null,null,null,null,null,null,null,null,null,null,null,null,null,null,null,null,null,null,null,null,null,null,null,null,null,null,null,null,null,null,null,null,null,null,null,null,null,null,null,null,null,null,null,null,null,null,null,null,null,null,null,null,null,null,null,null,null,null,null,null,null,null,null,null,null,null,null,null,null,null,null,null,null,null,null,null,null,null,null,null,null,null,null,null,null,null,null,null,null,null,null,null,null,null,null,null,null,null,null,null,null,"SA Monetary value (2dp)"]
[59,"","FPS54","Total Foreign Tax Deducted If Tax Credit Relief Not Claimed",null,null,null,null,null,null,null,null,null,null,null,null,null,null,null,null,null,null,null,null,null,null,null,null,null,null,null,null,null,null,null,null,null,null,null,null,null,null,null,null,null,null,null,null,null,null,null,null,null,null,null,null,null,null,null,null,null,null,null,null,null,null,null,null,null,null,null,null,null,null,null,null,null,null,null,null,null,null,null,null,null,null,null,null,null,null,null,null,null,null,null,null,null,null,null,null,null,null,null,671,671,null,null,null,null,null,null,null,null,null,null,null,null,null,null,null,null,null,null,null,null,null,null,null,null,null,null,null,null,null,null,null,null,null,null,null,null,null,null,null,null,null,null,null,null,null,null,null,null,null,null,null,null,null,null,null,null,null,null,null,null,null,671,null,null,null,null,null,null,null,null,null,null,null,null,null,null,null,null,null,null,null,null,null,null,null,null,null,null,null,null,null,null,null,null,null,null,null,null,null,null,null,null,null,null,null,null,null,null,null,null,null,null,null,null,null,null,null,null,null,null,null,null,null,null,null,null,null,null,null,null,null,null,null,null,null,null,null,null,null,null,null,null,null,null,null,null,null,null,null,null,null,null,null,null,null,null,null,null,null,null,null,null,null,null,null,null,null,null,null,null,null,null,null,null,"SA Monetary value (2dp) >= 0.00"]
[60,"","FPS55","Taxable profit after adjustments (offshore funds)",null,null,null,null,null,null,null,null,null,null,null,null,null,null,null,null,null,null,null,null,null,null,null,null,null,null,null,null,null,null,null,null,null,null,null,null,null,null,null,null,null,null,null,null,null,null,null,null,null,{"$f":"MAX(0,BB87+BB88-BB89)","v":0},{"$f":"MAX(0,BC87+BC88-BC89)","v":0},null,null,null,null,null,null,null,null,null,null,null,null,null,null,null,null,null,null,null,null,null,null,null,null,{"$f":"MAX(0,CB87+CB88-CB89)","v":0},{"$f":"MAX(0,CC87+CC88-CC89)","v":0},null,null,null,null,null,null,null,{"$f":"MAX(0,CK87+CK88-CK89)","v":0},null,null,null,null,{"$f":"MAX(0,CP87+CP88-CP89)","v":0},null,null,null,null,null,null,null,null,{"$f":"MAX(0,CY87+CY88-CY89)","v":0},{"$f":"MAX(0,CZ87+CZ88-CZ89)","v":4761},{"$f":"MAX(0,DA87+DA88-DA89)","v":4761},null,null,null,null,null,null,{"$f":"MAX(0,DH87+DH88-DH89)","v":0},null,null,null,null,{"$f":"MAX(0,DM87+DM88-DM89)","v":0},null,null,null,null,null,null,null,null,null,null,null,null,null,null,null,null,null,null,null,null,{"$f":"MAX(0,EH87+EH88-EH89)","v":0},{"$f":"MAX(0,EI87+EI88-EI89)","v":9861},null,null,null,null,null,null,null,null,null,null,null,null,null,null,null,null,null,{"$f":"MAX(0,FA87+FA88-FA89)","v":0},null,null,null,null,null,null,null,null,null,{"$f":"MAX(0,FK87+FK88-FK89)","v":4761},null,null,null,null,null,null,null,null,null,null,{"$f":"MAX(0,FV87+FV88-FV89)","v":0},null,null,null,null,null,null,null,null,null,null,null,null,null,null,null,null,null,null,null,null,null,null,null,null,null,null,{"$f":"MAX(0,GW87+GW88-GW89)","v":0},null,{"$f":"MAX(0,GY87+GY88-GY89)","v":9862},null,null,null,null,null,{"$f":"MAX(0,HE87+HE88-HE89)","v":0},null,null,null,null,null,null,null,null,null,null,null,null,null,null,null,null,null,null,null,null,null,null,null,null,null,null,null,null,null,null,null,null,null,null,null,{"$f":"MAX(0,IO87+IO88-IO89)","v":0},null,{"$f":"MAX(0,IQ87+IQ88-IQ89)","v":0},null,null,{"$f":"MAX(0,IT87+IT88-IT89)","v":0},null,null,null,null,null,null,null,{"$f":"MAX(0,JB87+JB88-JB89)","v":0},null,null,null,null,null,null,{"$f":"MAX(0,JI87+JI88-JI89)","v":0},null,null,null,{"$f":"MAX(0,JM87+JM88-JM89)","v":0},null,null,null,null,null,"Equal to FPS52 + FPS53 minus FPS54","SA Monetary value (2dp) >= 0.00"]
[61,"","FPS55.1","Amount claimed under FIG"]
[62,"","FPS56","Other Untaxed Foreign Income - Allocated Profit",null,null,null,null,null,null,null,null,null,null,null,null,null,null,null,null,null,null,null,null,null,null,null,null,null,null,null,null,null,null,null,null,null,null,null,null,null,null,null,null,null,null,null,null,null,null,null,null,null,1421,null,null,null,null,null,null,null,null,null,null,null,null,null,null,null,null,null,null,null,null,null,null,null,null,null,null,null,null,null,null,null,null,null,null,null,null,null,null,null,null,null,null,null,null,null,null,null,null,null,10640,10640,null,null,null,null,null,null,null,null,null,null,null,null,null,null,null,null,null,null,null,null,null,null,null,null,null,null,null,null,null,null,null,null,null,null,null,null,null,null,null,null,null,null,106,null,null,null,null,null,null,null,null,null,null,null,null,null,null,null,null,null,null,10640,null,null,null,null,null,null,null,null,null,null,null,null,null,null,null,null,null,null,null,null,null,null,null,null,null,null,null,null,null,null,null,null,null,null,null,null,null,null,null,null,null,null,null,null,null,null,null,null,null,null,null,null,null,null,null,null,null,null,null,null,null,null,null,null,null,null,null,null,null,null,null,null,null,null,null,null,null,null,null,null,null,null,null,null,null,null,null,276,null,null,null,null,null,null,null,null,null,null,null,null,null,null,null,null,null,null,null,null,null,null,null,null,"SA Monetary value (2dp) > 0.00"]
[63,"","FPS57","Adjustment to Income For Other Untaxed Foreign Income",null,null,null,null,null,null,null,null,null,null,null,null,null,null,null,null,null,null,null,null,null,null,null,null,null,null,null,null,null,null,null,null,null,null,null,null,null,null,null,null,null,null,null,null,null,null,null,null,null,null,null,null,null,null,null,null,null,null,null,null,null,null,null,null,null,null,null,null,null,null,null,null,null,null,null,null,null,null,null,null,null,null,null,null,null,null,null,null,null,null,null,null,null,null,null,null,null,null,null,-2128,-2128,null,null,null,null,null,null,null,null,null,null,null,null,null,null,null,null,null,null,null,null,null,null,null,null,null,null,null,null,null,null,null,null,null,null,null,null,null,null,null,null,null,null,null,null,null,null,null,null,null,null,null,null,null,null,null,null,null,null,null,null,null,-2128,null,null,null,null,null,null,null,null,null,null,null,null,null,null,null,null,null,null,null,null,null,null,null,null,null,null,null,null,null,null,null,null,null,null,null,null,null,null,null,null,null,null,null,null,null,null,null,null,null,null,null,null,null,null,null,null,null,null,null,null,null,null,null,null,null,null,null,null,null,null,null,null,null,null,null,null,null,null,null,null,null,null,null,null,null,null,null,null,null,null,null,null,null,null,null,null,null,null,null,null,null,null,null,null,null,null,null,null,null,null,null,null,"SA Monetary value (2dp)"]
[64,"","FPS58","Loss brought forward from earlier years  set off against income",null,null,null,null,null,null,null,null,null,null,null,null,null,null,null,null,null,null,null,null,null,null,null,null,null,null,null,null,null,null,null,null,null,null,null,null,null,null,null,null,null,null,null,null,null,null,null,null,null,null,null,null,null,null,null,null,null,null,null,null,null,null,null,null,null,null,null,null,null,null,null,null,null,null,null,null,null,null,null,null,null,null,null,null,null,null,null,null,null,null,null,null,null,null,null,null,null,null,null,null,null,null,null,null,null,null,null,null,null,null,null,null,null,null,null,null,null,null,null,null,null,null,null,null,null,null,null,null,null,null,null,null,null,null,null,null,null,null,null,null,null,null,null,106,null,null,null,null,null,null,null,null,null,null,null,null,null,null,null,null,null,null,null,null,null,null,null,null,null,null,null,null,null,null,null,null,null,null,null,null,null,null,null,null,null,null,null,null,null,null,null,null,null,null,null,null,null,null,null,null,null,null,null,null,null,null,null,null,null,null,null,null,null,null,null,null,null,null,null,null,null,null,null,null,null,null,null,null,null,null,null,null,null,null,null,null,null,null,null,null,null,null,null,null,null,null,null,null,null,null,null,null,null,null,null,null,null,null,null,null,null,null,null,null,null,null,null,null,null,null,null,null,null,null,"If present, must be less than or equal to FPS56 + FPS57","SA Monetary value (2dp) > 0.00"]
[65,"","FPS59","Total Foreign Tax Deducted If Tax Credit Relief Not Claimed",null,null,null,null,null,null,null,null,null,null,null,null,null,null,null,null,null,null,null,null,null,null,null,null,null,null,null,null,null,null,null,null,null,null,null,null,null,null,null,null,null,null,null,null,null,null,null,null,null,142,null,null,null,null,null,null,null,null,null,null,null,null,null,null,null,null,null,null,null,null,null,null,null,null,null,null,null,null,null,null,null,null,null,null,null,null,null,null,null,null,null,null,null,null,null,null,null,null,null,1064,1064,null,null,null,null,null,null,null,null,null,null,null,null,null,null,null,null,null,null,null,null,null,null,null,null,null,null,null,null,null,null,null,null,null,null,null,null,null,null,null,null,null,null,null,null,null,null,null,null,null,null,null,null,null,null,null,null,null,null,null,null,null,1064,null,null,null,null,null,null,null,null,null,null,null,null,null,null,null,null,null,null,null,null,null,null,null,null,null,null,null,null,null,null,null,null,null,null,null,null,null,null,null,null,null,null,null,null,null,null,null,null,null,null,null,null,null,null,null,null,null,null,null,null,null,null,null,null,null,null,null,null,null,null,null,null,null,null,null,null,null,null,null,null,null,null,null,null,null,null,null,null,null,null,null,null,null,null,null,null,null,null,null,null,null,null,null,null,null,null,null,null,null,null,null,null,"SA Monetary value (2dp) > 0.00"]
[66,"","FPS60","Taxable profit after adjustments and losses (other untaxed foreign income)",null,null,null,null,null,null,null,null,null,null,null,null,null,null,null,null,null,null,null,null,null,null,null,null,null,null,null,null,null,null,null,null,null,null,null,null,null,null,null,null,null,null,null,null,null,null,null,null,null,{"$f":"MAX(0,BB92+BB93-(BB94+BB95))","v":1279},null,null,null,null,null,null,null,null,null,null,null,null,null,null,null,null,null,null,null,null,null,null,null,null,null,null,null,null,null,null,null,null,null,null,null,null,null,null,null,null,null,null,null,null,null,null,null,null,null,{"$f":"MAX(0,CZ92+CZ93-(CZ94+CZ95))","v":7448},{"$f":"MAX(0,DA92+DA93-(DA94+DA95))","v":7448},null,null,null,null,null,null,null,null,null,null,null,null,null,null,null,null,null,null,null,null,null,null,null,null,null,null,null,null,null,null,null,null,null,null,null,null,null,null,null,null,null,null,null,null,null,null,null,null,null,null,null,null,null,null,null,null,null,null,null,null,null,{"$f":"MAX(0,FK92+FK93-(FK94+FK95))","v":7448},null,null,null,null,null,null,null,null,null,null,null,null,null,null,null,null,null,null,null,null,null,null,null,null,null,null,null,null,null,null,null,null,null,null,null,null,null,null,null,null,null,null,null,null,null,null,null,null,null,null,null,null,null,null,null,null,null,null,null,null,null,null,null,null,null,null,null,null,null,null,null,null,null,null,null,null,null,null,null,null,null,{"$f":"MAX(0,IO92+IO93-(IO94+IO95))","v":0},null,null,null,null,null,{"$f":"MAX(0,IU92+IU93-(IU94+IU95))","v":276},null,null,null,null,null,null,null,null,null,null,null,null,null,null,null,null,null,null,null,null,null,null,null,"a) If (FPS56 + FPS57) minus (FPS58 + FPS59) is greater than or equal to zero then FPS60 equals that sum.\nb) If (FPS56 + FPS57) minus (FPS58 + FPS59) is negative then FPS60 equals zero.","SA Monetary value (2dp) >= 0.00"]
[67,"","FPS60.1","Amount claimed under FIG"]
[68,"","FPS61","Other Untaxed Foreign Income - Allocated Loss",null,null,null,null,null,null,null,null,null,null,null,null,null,null,null,null,null,null,null,null,null,null,null,null,null,null,null,null,null,null,null,null,null,null,null,null,null,null,null,null,null,null,null,null,null,null,null,null,null,null,null,null,null,null,null,null,null,null,null,null,null,null,null,null,null,null,null,null,null,null,null,null,null,null,null,null,null,null,null,null,null,null,null,null,null,null,null,null,null,null,null,null,null,null,null,null,null,null,null,null,null,null,null,null,null,null,null,null,null,null,null,null,null,null,null,null,null,null,null,null,null,null,null,null,null,null,null,null,null,null,null,null,null,null,null,null,null,null,null,null,null,null,null,null,null,null,null,null,null,null,null,null,null,null,null,null,null,null,null,null,null,null,null,null,null,null,null,null,null,null,null,null,null,null,null,null,null,null,null,null,null,null,null,null,null,null,null,null,null,null,null,null,null,null,null,null,null,null,null,null,null,null,null,null,null,null,null,null,null,null,null,null,null,null,null,null,null,null,null,null,null,null,null,null,null,null,null,null,null,null,null,null,null,null,null,null,null,null,null,null,null,null,null,null,null,null,null,null,null,null,null,null,null,null,null,null,null,null,null,null,null,null,null,null,null,null,null,null,null,null,null,null,null,null,null,"SA Monetary value (2dp) > 0.00"]
[69,"","FPS62","Adjustment to Loss For Other Untaxed Foreign Income",null,null,null,null,null,null,null,null,null,null,null,null,null,null,null,null,null,null,null,null,null,null,null,null,null,null,null,null,null,null,null,null,null,null,null,null,null,null,null,null,null,null,null,null,null,null,null,null,null,null,null,null,null,null,null,null,null,null,null,null,null,null,null,null,null,null,null,null,null,null,null,null,null,null,null,null,null,null,null,null,null,null,null,null,null,null,null,null,null,null,null,null,null,null,null,null,null,null,null,null,null,null,null,null,null,null,null,null,null,null,null,null,null,null,null,null,null,null,null,null,null,null,null,null,null,null,null,null,null,null,null,null,null,null,null,null,null,null,null,null,null,null,null,null,null,null,null,null,null,null,null,null,null,null,null,null,null,null,null,null,null,null,null,null,null,null,null,null,null,null,null,null,null,null,null,null,null,null,null,null,null,null,null,null,null,null,null,null,null,null,null,null,null,null,null,null,null,null,null,null,null,null,null,null,null,null,null,null,null,null,null,null,null,null,null,null,null,null,null,null,null,null,null,null,null,null,null,null,null,null,null,null,null,null,null,null,null,null,null,null,null,null,null,null,null,null,null,null,null,null,null,null,null,null,null,null,null,null,null,null,null,null,null,null,null,null,null,null,null,null,null,null,null,null,null,"SA Monetary value (2dp)"]
[70,"","FPS63","Other Untaxed Foreign Income - Loss Carried Forward",null,null,null,null,null,null,null,null,null,null,null,null,null,null,null,null,null,null,null,null,null,null,null,null,null,null,null,null,null,null,null,null,null,null,null,null,null,null,null,null,null,null,null,null,null,null,null,null,null,null,null,null,null,null,null,null,null,null,null,null,null,null,null,null,null,null,null,null,null,null,null,null,null,null,null,null,null,null,null,null,null,null,null,null,null,null,null,null,null,null,null,null,null,null,null,null,null,null,null,null,null,null,null,null,null,null,null,null,null,null,null,null,null,null,null,null,null,null,null,null,null,null,null,null,null,null,null,null,null,null,null,null,null,null,null,null,null,null,null,null,null,null,null,127,null,null,null,null,null,null,null,null,null,null,null,null,null,null,null,null,null,null,null,null,null,null,null,null,null,null,null,null,null,null,null,null,null,null,null,null,null,null,null,null,null,null,null,null,null,null,null,null,null,null,null,null,null,null,null,null,null,null,null,null,null,null,null,null,null,null,null,null,null,null,null,null,null,null,null,null,null,null,null,null,null,null,null,null,null,null,null,null,null,null,null,null,null,null,null,null,null,null,null,null,null,null,null,null,null,null,null,null,null,null,null,null,null,null,null,null,null,null,null,null,null,null,null,null,null,null,null,null,null,null,null,"SA Monetary value (2dp) >= 0.00"]
[71,"","FPS63.1","Relief for residential finance costs",null,null,null,null,null,null,null,null,null,null,null,null,null,null,null,null,null,null,null,null,null,null,null,null,null,null,null,null,null,null,null,null,null,null,null,null,null,null,null,null,null,null,null,null,null,null,null,null,null,null,null,null,null,null,null,null,null,null,null,null,null,null,null,null,null,null,null,null,null,null,null,null,null,null,null,null,null,null,null,null,null,null,null,null,null,null,null,null,null,null,null,null,null,null,null,null,null,null,null,400,450,null,null,null,null,null,null,null,null,null,null,null,null,null,null,null,null,null,null,null,null,null,null,null,null,null,null,null,null,null,null,null,null,null,null,null,null,null,null,null,null,null,null,null,null,null,null,null,null,null,null,null,null,null,null,null,null,null,null,null,null,null,450]
[72,"","FPS63.2","Unused reflief for finance costs brought forward",null,null,null,null,null,null,null,null,null,null,null,null,null,null,null,null,null,null,null,null,null,null,null,null,null,null,null,null,null,null,null,null,null,null,null,null,null,null,null,null,null,null,null,null,null,null,null,null,null,null,null,null,null,null,null,null,null,null,null,null,null,null,null,null,null,null,null,null,null,null,null,null,null,null,null,null,null,null,null,null,null,null,null,null,null,null,null,null,null,null,null,null,null,null,null,null,null,null,null,50]
[73,"","FPSAF2","Allowable finance costs",null,null,null,null,null,null,null,null,null,null,null,null,null,null,null,null,null,null,null,null,null,null,null,null,null,null,null,null,null,null,null,null,null,null,null,null,null,null,null,null,null,null,null,null,null,null,null,null,null,null,null,null,null,null,null,null,null,null,null,null,null,null,null,null,null,null,null,null,null,null,null,null,null,null,null,null,null,null,null,null,null,null,null,null,null,null,null,null,null,null,null,null,null,null,null,null,null,null,null,null,null,null,null,null,null,null,null,null,null,null,null,null,null,null,null,null,null,null,null,null,null,null,null,null,null,null,null,null,null,null,null,null,null,null,null,null,null,null,null,null,null,null,null,null,null,null,null,null,null,null,null,null,null,null,null,null,null,null,null,null,null,null,null,null,null,null,null,null,null,null,null,null,null,null,null,null,null,null,null,null,null,null,null,null,null,null,null,null,null,null,null,null,null,null,null,null,null,null,null,null,null,null,null,null,null,null,null,null,null,null,null,null,null,null,null,null,null,null,null,null,null,null,null,null,null,null,null,null,null,null,null,null,null,null,null,null,null,null,null,null,null,null,null,null,{"$f":"MAX(0,IO99-IO100)","v":0}]
[74,"","FPS67","Untaxed income from this business (other than that liable at 20%)",null,null,null,null,null,null,null,null,null,null,null,null,null,null,null,null,null,null,null,null,null,null,null,null,null,null,null,null,null,null,null,null,null,null,null,null,null,null,null,null,null,null,null,null,null,null,null,null,null,{"$f":"BB73+BB79+BB83+BB90+BB96","v":7335},null,null,null,null,null,null,null,null,null,null,null,null,null,null,null,null,null,null,null,null,null,null,null,null,null,null,{"$f":"CC73+CC79+CC83+CC90+CC96","v":989},6151,2035,null,50080,77136,2221,11187,null,null,null,null,null,null,null,null,null,null,null,null,null,null,7345,21987,21987,null,null,null,null,null,null,null,null,132,null,null,7345,null,null,null,null,null,null,null,null,null,null,null,null,null,null,null,null,null,null,null,null,null,{"$f":"EI73+EI79+EI83+EI90+EI96","v":11430},null,null,null,null,null,null,null,null,null,null,null,null,null,null,null,null,null,{"$f":"FA73+FA83+FA90+FA96","v":7345},null,null,{"$f":"FD73+FD79+FD83+FD90+FD96","v":1190},null,null,null,{"$f":"FH73+FH79+FH83+FH90+FH96","v":1190},null,null,{"$f":"FK73+FK79+FK83+FK90+FK96","v":21987},null,null,null,null,null,null,null,null,null,null,null,null,null,null,null,null,null,null,null,null,null,null,null,null,null,null,null,null,null,null,null,null,null,null,null,null,null,null,null,{"$f":"GY73+GY79+GY83+GY90+GY96","v":11431},null,null,null,null,null,null,null,null,null,null,null,null,null,null,null,null,null,null,null,null,null,null,null,null,null,null,null,null,null,null,null,null,null,null,null,null,null,null,null,null,null,null,null,{"$f":"IQ73+IQ79+IQ83+IQ90+IQ96","v":106},null,null,null,276,null,null,null,null,null,null,null,null,null,null,null,null,null,null,null,null,269,null,null,null,null,null,null,"Equal to FPS41 + FPS44 + FPS48 + FPS55 + FPS60","SA Monetary value (2dp) >= 0.00"]
[75,"","FPS68","Dividend income - from boxes 14A and 22A on the Partnership Statement",null,null,null,null,null,null,null,null,null,null,null,null,null,null,null,null,null,null,null,null,null,null,null,null,null,null,null,null,null,null,null,null,null,null,null,null,null,null,null,null,null,null,null,null,null,null,null,null,null,748,390,null,null,null,null,null,null,null,null,null,null,null,null,null,null,null,null,null,null,null,null,null,null,null,null,562,165489,null,3010,null,1069,null,null,null,null,null,null,null,null,null,null,null,null,null,null,null,null,null,null,1365,1365,null,null,null,null,null,null,null,null,null,null,null,null,null,null,null,null,null,null,null,null,null,null,null,null,null,null,null,null,null,null,null,null,null,null,null,null,null,null,null,null,null,null,null,null,null,null,null,null,null,null,null,null,null,null,7138,null,null,null,7138,null,null,1365,null,null,null,null,null,null,null,null,null,null,390,null,null,null,null,null,null,null,null,null,null,null,null,null,null,null,null,null,null,null,null,null,null,null,null,null,null,390,null,null,null,null,null,null,null,null,null,null,null,null,null,null,null,null,null,null,null,null,null,null,null,null,null,null,null,null,null,null,null,null,null,null,null,null,null,null,null,null,null,null,null,null,null,11608,null,47,null,4,null,null,null,null,null,null,390,null,null,null,null,null,null,null,null,null,null,null,null,null,null,null,null,null,"SA Monetary value (2dp) > 0.00"]
[76,"","FPS69","Foreign tax deducted ",null,null,null,null,null,null,null,null,null,null,null,null,null,null,null,null,null,null,null,null,null,null,null,null,null,null,null,null,null,null,null,null,null,null,null,null,null,null,null,null,null,null,null,null,null,null,null,null,null,null,null,null,null,null,null,null,null,null,null,null,null,null,null,null,null,null,null,null,null,null,null,null,null,null,null,null,null,null,10,null,null,null,null,null,null,null,null,null,null,null,null,null,null,null,null,null,null,null,null,null,null,null,null,null,null,null,null,null,null,null,null,null,null,null,null,null,null,null,null,null,null,null,null,null,null,null,null,null,null,null,null,null,null,null,null,null,null,null,null,null,null,null,null,null,null,null,null,null,null,null,null,null,null,null,null,null,null,null,null,null,null,null,null,null,null,null,null,null,null,null,null,null,null,null,null,null,null,null,null,null,null,null,null,null,null,null,null,null,null,null,null,null,null,null,null,null,null,null,null,null,null,null,null,null,null,null,null,null,null,null,null,null,null,null,null,null,null,null,null,null,null,null,null,null,null,null,null,null,null,null,null,null,null,null,null,null,null,null,null,null,null,null,null,null,null,null,null,null,null,null,null,null,null,null,null,null,null,null,null,null,null,null,null,null,null,null,null,null,null,null,null,null,null,null,null,"SA Monetary value (2dp) > 0.00"]
[77,"","FPS70","Total dividend income (box 68 minus box 69)",null,null,null,null,null,null,null,null,null,null,null,null,null,null,null,null,null,null,null,null,null,null,null,null,null,null,null,null,null,null,null,null,null,null,null,null,null,null,null,null,null,null,null,null,null,null,null,null,null,{"$f":"MAX(0,BB105-BB106)","v":748},{"$f":"MAX(0,BC105-BC106)","v":390},null,null,null,null,null,null,null,null,null,null,null,null,null,null,null,null,null,null,null,null,null,null,null,null,{"$f":"MAX(0,CB105-CB106)","v":562},{"$f":"MAX(0,CC105-CC106)","v":165489},null,{"$f":"MAX(0,CE105-CE106)","v":3000},null,{"$f":"MAX(0,CG105-CG106)","v":1069},null,null,null,{"$f":"MAX(0,CK105-CK106)","v":0},null,null,null,null,{"$f":"MAX(0,CP105-CP106)","v":0},null,null,null,null,null,null,null,null,null,{"$f":"MAX(0,CZ105-CZ106)","v":1365},{"$f":"MAX(0,DA105-DA106)","v":1365},null,null,null,null,null,null,null,null,null,null,null,null,null,null,null,null,null,null,null,null,null,null,null,null,null,null,null,null,null,null,null,null,null,null,null,null,null,null,null,null,null,null,null,null,null,null,null,null,null,null,null,null,null,null,{"$f":"MAX(0,FD105-FD106)","v":7138},null,null,null,7138,null,null,{"$f":"MAX(0,FK105-FK106)","v":1365},null,null,null,null,null,null,null,null,null,null,{"$f":"MAX(0,FV105-FV106)","v":390},null,null,null,null,null,null,null,null,null,null,null,null,null,null,null,null,null,null,null,null,null,null,null,null,null,null,{"$f":"MAX(0,GW105-GW106)","v":390},null,null,null,null,null,null,null,null,null,null,null,null,null,null,null,null,null,null,null,null,null,null,null,null,null,null,null,null,null,null,null,null,null,null,null,null,null,null,null,null,null,null,null,null,null,{"$f":"MAX(0,IQ105-IQ106)","v":11608},null,{"$f":"MAX(0,IS105-IS106)","v":47},null,{"$f":"MAX(0,IU105-IU106)","v":4},null,null,null,null,null,null,{"$f":"MAX(0,JB105-JB106)","v":390},null,null,null,null,null,null,null,null,null,null,null,null,null,null,null,null,"Equal to FPS68 minus FPS69","SA Monetary value (2dp) >= 0.00"]
[78,"","FPS70.1","Amount claimed under FIG"]
[79,"","FPS71","Share of Taxed income (income taxed at 20%)",null,null,null,null,null,null,null,null,null,null,null,null,null,null,null,null,null,null,null,null,null,null,null,null,null,null,null,null,null,null,null,null,null,null,null,null,null,null,null,null,null,null,null,null,null,null,null,null,null,1256,null,null,null,null,null,null,null,null,null,null,null,null,null,null,null,null,null,null,null,null,null,null,null,null,null,null,null,5,null,null,null,13957,141,null,null,null,null,null,null,null,null,null,null,null,null,null,null,null,null,5462,5462,null,null,null,null,null,null,null,null,null,null,null,null,null,null,null,null,null,null,null,null,null,null,null,null,null,null,null,null,null,null,null,null,null,null,null,null,null,null,null,null,null,null,null,null,null,null,null,null,null,null,null,null,null,null,4554,null,null,null,4554,null,null,5462,null,null,null,null,null,null,null,null,null,null,null,null,null,null,null,null,null,null,null,null,null,null,null,null,null,null,null,null,null,null,null,null,null,null,null,null,null,null,null,null,null,null,null,null,null,null,null,null,null,null,null,null,null,null,null,null,null,null,null,null,null,null,null,null,null,null,null,null,null,null,null,null,null,null,null,null,null,null,null,null,null,null,null,null,null,null,null,null,null,null,null,null,null,null,null,null,null,null,null,null,null,null,null,null,null,null,null,null,null,null,null,null,"SA Monetary value (2dp) > 0.00"]
[80,{"$f":"IF(PS_B_IND>1,IF(HLOOKUP(PS_B_IND-1,FPS_RANGE,A110)=\"\",\"\",HLOOKUP(PS_B_IND-1,FPS_RANGE,A110)),\"\")","v":""},"FPS72","Foreign Tax Deducted ",null,null,null,null,null,null,null,null,null,null,null,null,null,null,null,null,null,null,null,null,null,null,null,null,null,null,null,null,null,null,null,null,null,null,null,null,null,null,null,null,null,null,null,null,null,null,null,null,null,null,null,null,null,null,null,null,null,null,null,null,null,null,null,null,null,null,null,null,null,null,null,null,null,null,null,null,null,null,null,null,null,null,null,null,null,null,null,null,null,null,null,null,null,null,null,null,null,null,null,547,547,null,null,null,null,null,null,null,null,null,null,null,null,null,null,null,null,null,null,null,null,null,null,null,null,null,null,null,null,null,null,null,null,null,null,null,null,null,null,null,null,null,null,null,null,null,null,null,null,null,null,null,null,null,null,null,null,null,null,null,null,null,547,null,null,null,null,null,null,null,null,null,null,null,null,null,null,null,null,null,null,null,null,null,null,null,null,null,null,null,null,null,null,null,null,null,null,null,null,null,null,null,null,null,null,null,null,null,null,null,null,null,null,null,null,null,null,null,null,null,null,null,null,null,null,null,null,null,null,null,null,null,null,null,null,null,null,null,null,null,null,null,null,null,null,null,null,null,null,null,null,null,null,null,null,null,null,null,null,null,null,null,null,null,null,null,null,null,null,null,null,null,null,null,null,"SA Monetary value (2dp) > 0.00"]
[81,"","FPS73","Taxed income (taxed at 20%)",null,null,null,null,null,null,null,null,null,null,null,null,null,null,null,null,null,null,null,null,null,null,null,null,null,null,null,null,null,null,null,null,null,null,null,null,null,null,null,null,null,null,null,null,null,null,null,null,null,{"$f":"MAX(0,BB109-BB110)","v":1256},null,null,null,null,null,null,null,null,null,null,null,null,null,null,null,null,null,null,null,null,null,null,null,null,null,null,null,{"$f":"MAX(0,CD109-CD110)","v":5},null,null,null,{"$f":"MAX(0,CH109-CH110)","v":13957},{"$f":"MAX(0,CI109-CI110)","v":141},null,null,null,null,null,null,null,null,null,null,null,null,null,null,null,null,{"$f":"MAX(0,CZ109-CZ110)","v":4915},{"$f":"MAX(0,DA109-DA110)","v":4915},null,null,null,null,null,null,null,null,null,null,null,null,null,null,null,null,null,null,null,null,null,null,null,null,null,null,null,null,null,null,null,null,null,null,null,null,null,null,null,null,null,null,null,null,null,null,null,null,null,null,null,null,null,null,{"$f":"MAX(0,FD109-FD110)","v":4554},null,null,null,4554,null,null,{"$f":"MAX(0,FK109-FK110)","v":4915},null,null,null,null,null,null,null,null,null,null,null,null,null,null,null,null,null,null,null,null,null,null,null,null,null,null,null,null,null,null,null,null,null,null,null,null,null,null,null,null,null,null,null,null,null,null,null,null,null,null,null,null,null,null,null,null,null,null,null,null,null,null,null,null,null,null,null,null,null,null,null,null,null,null,null,null,null,null,null,null,null,null,null,null,null,null,null,null,null,null,null,null,null,null,null,null,null,null,null,null,null,null,null,null,null,null,null,null,null,null,null,"Equal to FPS71 minus FPS72","SA Monetary value (2dp) >= 0.00"]
[82,"","FPS74","Share of other taxed income",null,null,null,null,null,null,null,null,null,null,null,null,null,null,null,null,null,null,null,null,null,null,null,null,null,null,null,null,null,null,null,null,null,null,null,null,null,null,null,null,null,null,null,null,null,null,null,null,null,250,null,null,null,null,null,null,null,null,null,null,null,null,null,null,null,null,null,null,null,null,null,null,null,null,null,null,null,null,null,null,null,null,null,null,null,null,null,null,null,null,null,null,null,null,null,null,null,null,null,216,216,null,null,null,null,null,null,null,null,null,null,null,null,null,null,null,null,null,null,null,null,null,null,null,null,null,null,null,null,null,null,null,null,null,null,null,null,null,null,null,null,null,null,null,null,null,null,null,null,null,null,null,null,null,null,null,null,null,null,null,null,null,216,null,null,null,null,null,null,null,null,null,null,null,null,null,null,null,null,null,null,null,null,null,null,null,null,null,null,null,null,null,null,null,null,null,null,null,null,null,null,null,null,null,null,null,null,null,null,null,null,null,null,null,null,null,null,null,null,null,null,null,null,null,null,null,null,null,null,null,null,null,null,null,null,null,null,null,null,null,null,null,null,null,null,null,null,null,null,null,null,null,null,null,null,null,null,null,null,null,null,null,null,null,null,null,null,null,null,null,null,null,null,null,null,"SA Monetary value (2dp) > 0.00"]
[83,"","FPS75","Share of income tax",null,null,null,null,null,null,null,null,null,null,null,null,null,null,null,null,null,null,null,null,null,null,null,null,null,null,null,null,null,null,null,null,null,null,null,null,null,null,null,null,null,null,null,null,null,null,null,null,null,38,null,null,null,null,null,null,null,null,null,null,null,null,null,null,null,null,null,null,null,null,null,null,null,null,null,null,null,null,null,null,null,null,null,null,null,null,null,null,null,null,null,null,null,null,null,null,null,null,null,182,182,null,null,null,null,null,null,null,null,null,null,null,null,null,null,null,null,null,null,null,null,null,null,null,null,null,null,null,null,null,null,null,null,null,null,null,null,null,null,null,null,null,null,null,null,null,null,null,null,null,null,null,null,null,null,null,null,null,null,null,null,null,182,null,null,null,null,null,null,null,null,null,null,null,null,null,null,null,null,null,null,null,null,null,null,null,null,null,null,null,null,null,null,null,null,null,null,null,null,null,null,null,null,null,null,null,null,null,null,null,null,null,null,null,null,null,null,null,null,null,null,null,null,null,null,null,null,null,null,null,null,null,null,null,null,null,null,null,null,null,null,null,null,null,null,null,null,null,null,null,null,null,null,null,null,null,null,null,null,null,null,null,null,null,null,null,null,null,null,null,null,null,null,null,null,"SA Monetary value (2dp) > 0.00"]
[84,"","FPS75.1","Amount claimed under FIG"]
[85,{"$f":"IF(PS_B_IND>1,IF(HLOOKUP(PS_B_IND-1,FPS_RANGE,A115)=\"\",\"\",HLOOKUP(PS_B_IND-1,FPS_RANGE,A115)),\"\")","v":""},"FPS76","Share of taxed and untaxed income (other than liable at 10% and 20%)",null,null,null,null,null,null,null,null,null,null,null,null,null,null,null,null,null,null,null,null,null,null,null,null,null,null,null,null,null,null,null,null,null,null,null,null,null,null,null,null,null,null,null,null,null,null,null,null,null,{"$f":"MAX(0,BB49+BB104+BB112-BB113)","v":7547},{"$f":"MAX(0,BC49+BC104+BC112-BC113)","v":62952},null,null,null,null,null,null,null,null,null,null,null,null,null,null,null,null,null,null,null,null,null,null,null,null,{"$f":"MAX(0,CB49+CB104+CB112-CB113)","v":58425},{"$f":"MAX(0,CC49+CC104+CC112-CC113)","v":270977},{"$f":"MAX(0,CD49+CD104+CD112-CD113)","v":11597},{"$f":"MAX(0,CE49+CE104+CE112-CE113)","v":2035},null,{"$f":"MAX(0,CG49+CG104+CG112-CG113)","v":50080},{"$f":"MAX(0,CH49+CH104+CH112-CH113)","v":77136},{"$f":"MAX(0,CI49+CI104+CI112-CI113)","v":123038},{"$f":"MAX(0,CJ49+CJ104+CJ112-CJ113)","v":252671},{"$f":"MAX(0,CK49+CK104+CK112-CK113)","v":30200},null,null,null,null,{"$f":"MAX(0,CP49+CP104+CP112-CP113)","v":62583},null,null,null,null,null,null,null,null,{"$f":"MAX(0,CY49+CY104+CY112-CY113)","v":103921},{"$f":"MAX(0,CZ49+CZ104+CZ112-CZ113)","v":210686},{"$f":"MAX(0,DA49+DA104+DA112-DA113)","v":210686},null,null,null,null,null,null,{"$f":"MAX(0,DH49+DH104+DH112-DH113)","v":0},null,{"$f":"MAX(0,DJ49+DJ104+DJ112-DJ113)","v":10374},null,null,{"$f":"MAX(0,DM49+DM104+DM112-DM113)","v":113099},null,null,null,null,null,null,null,null,null,null,{"$f":"MAX(0,DX49+DX104+DX112-DX113)","v":8123.53},{"$f":"MAX(0,DY49+DY104+DY112-DY113)","v":3841},null,null,null,null,null,null,null,null,12710,22453,null,null,null,null,null,null,null,null,null,null,null,null,null,null,null,null,null,{"$f":"MAX(0,FA49+FA104+FA112-FA113)","v":103921},null,null,{"$f":"MAX(0,FD49+FD104+FD112-FD113)","v":1190},null,null,null,1190,null,null,210686,null,null,null,{"$f":"MAX(0,FO49+FO104+FO112-FO113)","v":109826},null,null,null,null,null,null,{"$f":"MAX(0,FV49+FV104+FV112-FV113)","v":73975},null,null,null,null,null,null,null,null,null,null,null,null,null,null,null,null,null,null,null,null,null,null,null,null,null,null,{"$f":"MAX(0,GW49+GW104+GW112-GW113)","v":60019},null,{"$f":"MAX(0,GY49+GY104+GY112-GY113)","v":11431},null,null,null,null,null,{"$f":"MAX(0,HE49+HE104+HE112-HE113)","v":490000},null,null,null,null,null,null,{"$f":"MAX(0,HL49+HL104+HL112-HL113)","v":348723},null,null,null,null,null,null,null,null,null,null,null,null,null,null,null,null,null,null,null,null,null,null,null,null,null,null,null,null,null,null,{"$f":"MAX(0,IQ49+IQ104+IQ112-IQ113)","v":104859},null,null,{"$f":"MAX(0,IT49+IT104+IT112-IT113)","v":228329},{"$f":"MAX(0,IU49+IU104+IU112-IU113)","v":276},null,null,null,null,null,null,{"$f":"MAX(0,JB49+JB104+JB112-JB113)","v":62952},null,null,null,null,null,null,{"$f":"MAX(0,JI49+JI104+JI112-JI113)","v":87710},null,null,{"$f":"MAX(0,JL49+JL104+JL112-JL113)","v":269},{"$f":"MAX(0,JM49+JM104+JM112-JM113)","v":5622},null,null,null,null,null,"Equal to FPS20 + FPS67 + FPS74 minus FPS75","SA Monetary value (2dp) >= 0.00"]
[86,{"$f":"IF(PS_B_IND>1,IF(HLOOKUP(PS_B_IND-1,FPS_RANGE,A116)=\"\",\"\",HLOOKUP(PS_B_IND-1,FPS_RANGE,A116)),\"\")","v":""},"FPS76.1","Amount claimed under FIG"]
[87,"","FPS77","Share of income tax",null,null,null,null,null,null,null,null,null,null,null,null,null,null,null,null,null,null,null,null,null,null,null,null,null,null,null,null,null,null,null,null,null,null,null,null,null,null,null,null,null,null,null,null,null,null,null,null,null,252,219,null,null,null,null,null,null,null,null,null,null,null,null,null,null,null,null,null,null,null,null,null,null,null,null,null,null,null,null,null,null,2792,29,null,null,null,null,null,null,null,null,null,null,null,null,null,null,null,null,11245,11245,null,null,null,null,null,null,null,null,null,null,null,null,null,null,null,null,null,null,null,null,null,null,null,null,null,null,null,null,null,null,null,null,null,null,null,null,null,null,null,null,null,null,null,null,null,null,null,null,null,null,null,null,null,null,911,null,null,null,911,null,null,11245,null,null,null,null,null,null,null,null,null,null,219,null,null,null,null,null,null,null,null,null,null,null,null,null,null,null,null,null,null,null,null,null,null,null,null,null,null,219,null,null,null,null,null,null,null,null,null,null,null,null,null,null,null,null,null,null,null,null,null,null,null,null,null,null,null,null,null,null,null,null,null,null,null,null,null,null,null,null,null,null,null,null,null,null,null,null,null,null,null,null,null,null,null,null,219,null,null,null,null,null,null,null,null,null,null,null,null,null,null,null,null,null,"SA Monetary value (2dp) > 0.00"]
[88,"","FPS78","Share of /CIS25 deductions",null,null,null,null,null,null,null,null,null,null,null,null,null,null,null,null,null,null,null,null,null,null,null,null,null,null,null,null,null,null,null,null,null,null,null,null,null,null,null,null,null,null,null,null,null,null,null,null,null,null,null,null,null,null,null,null,null,null,null,null,null,null,null,null,null,null,null,null,null,null,null,null,null,null,null,null,null,null,null,null,null,null,null,null,null,null,null,null,null,null,null,null,null,null,null,null,null,null,null,8670,8670,null,null,null,null,null,null,null,null,null,null,null,null,null,null,null,null,null,null,null,null,null,null,null,null,null,null,null,null,null,null,null,null,null,null,null,null,null,null,null,null,null,null,null,null,null,null,null,null,null,null,null,null,null,null,null,null,null,null,null,null,null,8670,null,null,null,null,null,null,null,null,null,null,null,null,null,null,null,null,null,null,null,null,null,null,null,null,null,null,null,null,null,null,null,null,null,null,null,null,null,null,null,null,null,null,null,null,null,null,null,null,null,null,null,null,null,null,null,null,null,null,null,null,null,null,null,null,null,null,null,null,null,null,null,null,null,null,null,null,null,null,null,null,null,null,null,null,null,null,null,null,null,null,null,null,null,null,null,null,null,null,null,null,null,null,null,null,null,null,null,null,null,null,null,null,"SA Monetary value (2dp) > 0.00"]
[89,"","FPS79","Share of tax deducted from trading income (not /CIS25)",null,null,null,null,null,null,null,null,null,null,null,null,null,null,null,null,null,null,null,null,null,null,null,null,null,null,null,null,null,null,null,null,null,null,null,null,null,null,null,null,null,null,null,null,null,null,null,null,null,null,null,null,null,null,null,null,null,null,null,null,null,null,null,null,null,null,null,null,null,null,null,null,null,null,null,null,null,null,null,null,null,null,null,null,null,null,null,null,null,null,null,null,null,null,null,null,null,null,1267,null,null,null,null,null,null,null,null,null,null,null,null,null,1267,null,null,null,null,null,null,null,null,null,null,null,null,null,null,null,null,null,null,null,null,null,null,null,null,null,null,null,null,null,null,null,null,null,null,null,null,null,null,null,1267,null,null,null,null,null,null,null,null,null,null,null,null,null,null,null,null,null,null,null,null,null,null,null,null,null,null,null,null,null,null,null,null,null,null,null,null,null,null,null,null,null,null,null,null,null,null,null,null,null,null,null,null,null,null,null,null,null,null,null,null,null,null,null,null,null,null,null,null,null,null,null,null,null,null,null,null,null,null,null,null,null,null,null,null,null,null,null,null,null,null,null,null,null,null,null,null,null,null,null,null,null,null,null,null,null,null,null,null,null,null,null,null,null,null,null,null,null,null,null,null,null,null,"SA Monetary value (2dp) > 0.00"]
[90,{"$f":"IF(PS_B_IND>1,IF(HLOOKUP(PS_B_IND-1,FPS_RANGE,A120)=\"\",\"\",HLOOKUP(PS_B_IND-1,FPS_RANGE,A120)),\"\")","v":""},"FPS80","Share of total tax taken off (boxes 77 to 79)",null,null,null,null,null,null,null,null,null,null,null,null,null,null,null,null,null,null,null,null,null,null,null,null,null,null,null,null,null,null,null,null,null,null,null,null,null,null,null,null,null,null,null,null,null,null,null,null,null,{"$f":"BB117+BB118+BB119","v":252},{"$f":"BC117+BC118+BC119","v":219},null,null,null,null,null,null,null,null,null,null,null,null,null,null,null,null,null,null,null,null,null,null,null,null,null,null,null,null,null,null,2792,29,null,null,null,null,null,null,{"$f":"CP117+CP118+CP119","v":0},null,null,null,null,null,null,null,null,{"$f":"CY117+CY118+CY119","v":1267},{"$f":"CZ117+CZ118+CZ119","v":19915},{"$f":"DA117+DA118+DA119","v":19915},null,null,null,null,null,null,null,null,{"$f":"DJ117+DJ118+DJ119","v":0},null,null,{"$f":"DM117+DM118+DM119","v":1267},null,null,null,null,null,null,null,null,null,null,null,null,null,null,null,null,null,null,null,null,null,null,null,null,null,null,null,null,null,null,null,null,null,null,null,null,null,null,null,{"$f":"FA117+FA118+FA119","v":1267},null,null,{"$f":"FD117+FD118+FD119","v":911},null,null,null,911,null,null,{"$f":"FK117+FK118+FK119","v":19915},null,null,null,null,null,null,null,null,null,null,{"$f":"FV117+FV118+FV119","v":219},null,null,null,null,null,null,null,null,null,null,null,null,null,null,null,null,null,null,null,null,null,null,null,null,null,null,{"$f":"GW117+GW118+GW119","v":219},null,null,null,null,null,null,null,null,null,null,null,null,null,null,null,null,null,null,null,null,null,null,null,null,null,null,null,null,null,null,null,null,null,null,null,null,null,null,null,null,null,null,null,null,null,null,null,null,null,null,null,null,null,null,null,null,{"$f":"JB117+JB118+JB119","v":219},null,null,null,null,null,null,null,null,null,null,null,null,null,null,null,null,"Equal to FPS77 + FPS78 + FPS79","SA Monetary value (2dp) > 0.00"]

{"sheet":"C5","index":14,"n_rows":75,"n_cols":280,"rows_kept":75,"cut":false,"hidden":true,"merged":[]}
["row",{"$f":"\"selected \"&PRO_IND-1","v":"selected 0"},"PRO",null,1,2,3,4,5,6,7,8,9,10,11,12,13,14,15,16,17,18,19,20,21,22,23,24,25,26,27,28,29,30,31,32,33,34,35,36,37,38,39,40,41,42,43,44,45,46,47,48,49,50,51,52,53,54,55,56,57,58,59,60,61,62,63,64,65,66,67,68,69,70,71,72,73,74,75,76,77,78,79,80,81,82,83,84,85,86,87,88,89,90,91,92,93,94,95,96,97,98,99,100,101,102,103,104,105,106,107,108,109,110,111,112,113,114,115,116,117,118,119,120,121,122,123,124,125,126,127,128,129,130,131,132,133,134,135,136,137,138,139,140,141,142,143,144,145,146,147,148,149,150,151,152,153,154,155,156,157,158,159,160,161,162,163,164,165,166,167,168,169,170,171,172,173,174,175,176,177,178,179,180,181,182,183,184,185,186,187,188,189,190,191,192,193,194,195,196,197,198,199,200,201,202,203,204,205,206,207,208,209,210,211,212,213,214,215,216,217,218,219,220,221,222,223,224,225,226,227,228,229,230,231,232,233,234,235,236,237,238,239,240,241,242,243,244,245,246,247,248,249,250,251,252,253,254,255,256,257,258,259,260,261,262,263,264,265,266,267,268,269,270,271,272,273,null," Validation","Type"]
[2,{"$f":"IF(PRO_IND>1,IF(HLOOKUP(PRO_IND-1,PRO_RANGE,A2)=\"\",\"\",HLOOKUP(PRO_IND-1,PRO_RANGE,A2)),\"\")","v":""},"PRO1","How many properties do you rent out",5,1,null,null,null,null,null,null,1,null,1,null,1,null,null,null,1,null,null,null,null,1,1,null,1,null,null,null,null,null,null,null,null,null,null,null,1,null,1,null,8,null,null,null,4,null,2,4,null,2,null,1,null,null,null,null,null,null,1,null,null,null,null,4,null,null,null,1,null,1,null,4,null,null,null,4,4,2,null,null,null,1,5,5,null,null,null,10,null,null,8,6,6,1,null,5,null,null,null,4,4,1,4,null,null,null,null,null,5,null,null,5,4,null,null,null,null,2,null,null,null,null,1,1,1,null,null,1,null,null,1,null,null,null,null,3,null,null,null,2,2,1,2,null,null,5,6,null,null,null,null,1,null,null,null,null,null,1,null,null,null,null,null,null,null,null,1,null,null,null,null,4,4,1,null,6,null,null,null,null,null,null,3,3,6,null,null,6,null,null,null,null,null,null,null,null,null,null,null,null,6,4,null,null,null,5,null,2,null,1,1,null,null,null,null,null,null,null,null,null,null,null,3,1,null,null,null,null,null,7,null,null,null,null,null,1,null,null,1,1,null,null,null,null,1,1,null,null,2,87,26,2,1,null,3,null,null,null,null,null,1,null,2,2,2,null,5,1,null,null,null,null,2,null,null,"Integer value greater > 0"]
[3,{"$f":"IF(PRO_IND>1,IF(HLOOKUP(PRO_IND-1,PRO_RANGE,A3)=\"\",\"\",HLOOKUP(PRO_IND-1,PRO_RANGE,A3)),\"\")","v":""},"PRO2","Property income ceased in year",null,null,null,null,null,null,null,null,null,null,null,null,null,null,null,null,null,null,null,null,null,null,null,null,null,null,null,null,null,null,null,null,null,null,null,null,null,null,null,null,null,null,null,null,null,null,null,null,null,null,null,null,null,null,null,null,null,null,null,null,null,null,null,null,null,null,null,null,null,null,null,null,null,null,null,null,null,null,null,null,null,null,null,null,null,null,null,null,null,null,null,null,null,null,null,null,null,null,null,null,null,null,null,null,null,null,null,null,null,null,null,null,null,null,null,null,null,null,null,null,null,null,null,"Y",null,null,null,null,null,null,null,null,null,null,null,null,null,null,null,null,null,null,null,null,null,null,null,null,null,null,null,null,null,null,null,null,null,null,null,null,null,null,null,null,null,null,null,null,null,null,null,null,null,null,null,null,null,null,null,null,null,null,null,null,null,null,null,null,null,null,null,null,null,null,null,null,null,null,null,null,null,null,null,null,null,null,null,null,null,null,null,null,null,null,null,null,null,null,null,null,null,null,null,"Y",null,null,null,null,null,null,null,null,null,null,null,null,null,null,null,null,null,null,null,null,null,null,null,null,null,null,null,null,null,null,null,null,null,null,null,null,null,null,null,null,null,null,null,null,null,null,null,null,null,null,null,"\"yes\""]
[4,{"$f":"IF(PRO_IND>1,IF(HLOOKUP(PRO_IND-1,PRO_RANGE,A4)=\"\",\"\",HLOOKUP(PRO_IND-1,PRO_RANGE,A4)),\"\")","v":""},"PRO3","Property let jointly",null,null,null,null,null,null,null,null,null,null,null,null,null,null,null,null,null,null,null,null,null,null,null,null,null,null,null,null,null,null,null,null,null,null,null,null,null,null,null,null,null,null,null,null,null,null,null,null,null,null,null,null,null,null,null,null,null,null,null,null,null,null,null,"Y",null,null,null,null,null,null,null,null,null,null,null,null,null,null,null,null,null,null,null,"Y",null,null,null,null,null,null,"Y",null,null,"Y",null,null,null,null,null,null,null,null,null,null,null,null,null,null,null,null,null,null,null,null,null,null,null,null,null,null,null,null,null,"Y",null,null,null,"Y",null,null,null,null,null,null,null,null,null,null,null,"Y",null,"Y",null,null,null,"Y",null,null,null,null,null,null,null,null,null,null,null,null,null,null,null,null,null,null,null,null,"Y",null,null,null,null,null,null,"Y",null,null,null,null,null,null,null,null,null,null,null,null,null,null,null,null,null,null,null,null,null,null,null,null,null,null,null,null,null,null,null,null,null,null,null,null,null,null,null,null,null,null,null,null,null,null,null,null,"Y","Y",null,null,null,null,null,"Y",null,null,null,null,null,"Y",null,null,"Y",null,null,null,null,null,null,"Y",null,null,null,"Y",null,null,"Y",null,"Y",null,null,null,null,null,null,null,null,"Y","Y",null,"Y","Y",null,null,null,null,null,null,null,"\"yes\""]
[5,{"$f":"IF(PRO_IND>1,IF(HLOOKUP(PRO_IND-1,PRO_RANGE,A5)=\"\",\"\",HLOOKUP(PRO_IND-1,PRO_RANGE,A5)),\"\")","v":""},"PRO4","Claiming Rent a Room relief",null,null,null,null,null,null,null,null,null,null,null,null,null,null,null,null,null,null,null,null,null,null,null,null,null,null,null,null,null,null,null,null,null,null,null,null,null,null,null,null,null,null,null,null,null,null,null,null,null,null,null,null,null,null,null,null,null,null,null,null,null,null,null,null,null,null,null,"Y",null,null,null,null,null,null,null,null,null,null,null,null,null,null,null,null,null,null,null,null,null,null,null,null,null,null,null,null,null,null,null,null,null,null,null,null,null,null,null,null,null,null,null,null,null,null,null,null,null,null,null,null,null,null,null,null,null,null,null,null,null,null,null,null,null,null,null,null,null,null,null,null,null,null,null,null,null,null,null,null,null,null,null,null,null,null,null,null,null,null,null,null,null,null,null,null,null,null,null,null,null,null,null,null,null,null,null,null,null,null,null,null,null,null,null,null,null,null,null,null,null,null,null,null,null,null,null,null,null,null,null,null,null,null,null,null,null,null,null,null,null,null,null,null,null,null,null,null,null,null,null,null,null,null,null,null,null,null,null,null,null,null,null,null,null,null,null,null,null,null,null,null,null,null,null,null,null,null,null,null,null,null,null,null,null,null,null,null,null,null,null,null,null,null,null,null,null,null,null,null,null,null,null,null,null,null,null,"\"yes\""]
[6,{"$f":"IF(PRO_IND>1,IF(HLOOKUP(PRO_IND-1,PRO_RANGE,A6)=\"\",\"\",HLOOKUP(PRO_IND-1,PRO_RANGE,A6)),\"\")","v":""},"PRO5","Income from furnished holiday lettings",null,null,null,null,null,null,null,null,null,null,null,null,null,null,null,null,null,null,null,null,null,null,null,null,null,null,null,null,null,null,null,null,null,null,null,null,null,null,null,null,null,null,null,null,null,null,null,null,null,null,null,null,null,null,null,null,null,null,null,null,null,null,null,null,null,null,null,null,null,null,null,null,null,null,null,null,null,null,null,null,null,null,null,null,null,null,null,null,null,null,null,null,null,null,null,null,null,null,null,null,null,null,null,null,null,null,null,null,null,null,null,null,null,null,null,null,null,null,null,null,null,null,null,null,null,null,null,null,null,null,null,null,null,null,null,null,null,null,null,null,null,null,null,null,null,null,null,null,null,null,null,null,null,null,null,null,null,null,null,null,null,null,null,null,null,null,null,null,null,null,null,null,null,null,null,null,null,null,null,null,null,null,null,null,null,null,null,null,null,null,null,null,null,null,null,null,null,null,null,null,null,null,null,null,null,null,null,null,null,null,null,null,null,null,null,null,null,null,null,null,null,null,null,null,null,null,null,null,null,null,null,null,null,null,null,null,null,null,null,null,null,null,null,null,null,null,null,null,null,null,null,null,null,null,null,null,null,null,null,null,null,null,null,null,null,null,null,null,null,null,null,null,null,null,null,"SA Monetary value (2dp) >= 0.00"]
[7,{"$f":"IF(PRO_IND>1,IF(HLOOKUP(PRO_IND-1,PRO_RANGE,A7)=\"\",\"\",HLOOKUP(PRO_IND-1,PRO_RANGE,A7)),\"\")","v":""},"PRO5.1","Property income allowance ",null,null,null,null,null,null,null,null,null,null,null,null,null,null,null,null,null,null,null,null,null,null,null,null,null,null,null,null,null,null,null,null,null,null,null,null,null,null,null,null,null,null,null,null,null,null,null,null,null,null,null,null,null,null,null,null,null,null,null,null,null,null,null,null,null,null,null,null,null,null,null,null,null,null,null,null,null,null,null,null,null,null,null,null,null,null,null,null,null,null,null,null,null,null,null,null,null,null,null,null,null,null,null,null,null,null,null,null,null,null,null,null,null,null,null,null,null,null,null,null,null,null,null,null,null,null,null,null,null,null,null,null,null,null,null,null,null,null,null,null,null,null,null,null,null,null,null,null,null,null,null,null,null,null,null,null,null,null,null,null,null,null,null,null,null,null,null,null,null,null,null,null,null,null,null,null,null,null,null,null,null,null,null,null,null,null,null,null,null,null,null,null,null,null,null,null,null,null,null,null,null,null,null,null,null,null,null,null,null,null,null,null,null,null,null,null,null,null,null,null,null,null,null,null,null,null,null,null,null,null,null,null,null,null,null,null,null,null,null,null,null,null,null,null,null,null,null,null,null,null,null,null,null,null,null,null,null,null,null,null,null,null,null,null,null,null,null,null,null,null,null,null,null,null,"a)If present, must be less than or equal to £1000 (Property allowance)\nb)If present, PRO6,PRO7,PRO8,PRO9,PRO10, PRO12 & PRO16 must be absent","SA Monetary value (2dp) > 0.00"]
[8,"","PRO5.2","If you've used traditional accounting rather than cash basis",null,null,null,null,null,null,null,null,null,null,null,null,null,null,null,null,null,null,null,null,null,null,null,null,null,null,null,null,null,null,null,null,null,null,null,null,null,null,null,null,null,null,null,null,null,null,null,null,null,null,null,null,null,null,null,null,null,null,null,null,null,null,null,null,null,null,null,null,null,null,null,null,null,null,null,null,null,null,null,null,null,null,null,null,null,null,null,null,null,null,null,null,null,null,null,null,null,null,null,null,null,null,null,null,null,null,null,null,null,null,null,null,null,null,null,null,null,null,null,null,null,null,null,null,null,null,null,null,null,null,null,null,null,null,null,null,null,null,null,null,null,null,null,null,null,null,null,null,null,null,null,null,null,null,null,null,null,null,null,null,null,null,null,null,null,null,null,null,null,null,null,null,null,null,null,null,null,null,null,null,null,null,null,null,null,null,null,null,null,null,null,null,null,null,null,null,null,null,null,null,null,null,null,null,null,null,null,null,null,null,null,null,null,null,null,null,null,null,null,null,null,null,null,null,null,null,null,null,null,null,null,null,null,null,null,null,null,null,null,null,null,null,null,null,null,null,null,null,null,null,null,null,null,null,null,null,null,null,null,null,null,null,null,null,null,null,null,null,null,null,null,null,null,null,null,"\"yes\""]
[9,"","PRO6","Rent rates insurances and ground rents etc.",null,null,null,null,null,null,null,null,null,null,null,null,null,null,null,null,null,null,null,null,null,null,null,null,null,null,null,null,null,null,null,null,null,null,null,null,null,null,null,null,null,null,null,null,null,null,null,null,null,null,null,null,null,null,null,null,null,null,null,null,null,null,null,null,null,null,null,null,null,null,null,null,null,null,null,null,null,null,null,null,null,null,null,null,null,null,null,null,null,null,null,null,null,null,null,null,null,null,null,null,null,null,null,null,null,null,null,null,null,null,null,null,null,null,null,null,null,null,null,null,null,null,null,null,null,null,null,null,null,null,null,null,null,null,null,null,null,null,null,null,null,null,null,null,null,null,null,null,null,null,null,null,null,null,null,null,null,null,null,null,null,null,null,null,null,null,null,null,null,null,null,null,null,null,null,null,null,null,null,null,null,null,null,null,null,null,null,null,null,null,null,null,null,null,null,null,null,null,null,null,null,null,null,null,null,null,null,null,null,null,null,null,null,null,null,null,null,null,null,null,null,null,null,null,null,null,null,null,null,null,null,null,null,null,null,null,null,null,null,null,null,null,null,null,null,null,null,null,null,null,null,null,null,null,null,null,null,null,null,null,null,null,null,null,null,null,null,null,null,null,null,null,null,null,null,"SA Monetary value (2dp) > 0.00"]
[10,"","PRO7","Finance charges including interest",null,null,null,null,null,null,null,null,null,null,null,null,null,null,null,null,null,null,null,null,null,null,null,null,null,null,null,null,null,null,null,null,null,null,null,null,null,null,null,null,null,null,null,null,null,null,null,null,null,null,null,null,null,null,null,null,null,null,null,null,null,null,null,null,null,null,null,null,null,null,null,null,null,null,null,null,null,null,null,null,null,null,null,null,null,null,null,null,null,null,null,null,null,null,null,null,null,null,null,null,null,null,null,null,null,null,null,null,null,null,null,null,null,null,null,null,null,null,null,null,null,null,null,null,null,null,null,null,null,null,null,null,null,null,null,null,null,null,null,null,null,null,null,null,null,null,null,null,null,null,null,null,null,null,null,null,null,null,null,null,null,null,null,null,null,null,null,null,null,null,null,null,null,null,null,null,null,null,null,null,null,null,null,null,null,null,null,null,null,null,null,null,null,null,null,null,null,null,null,null,null,null,null,null,null,null,null,null,null,null,null,null,null,null,null,null,null,null,null,null,null,null,null,null,null,null,null,null,null,null,null,null,null,null,null,null,null,null,null,null,null,null,null,null,null,null,null,null,null,null,null,null,null,null,null,null,null,null,null,null,null,null,null,null,null,null,null,null,null,null,null,null,null,null,null,"SA Monetary value (2dp) > 0.00"]
[11,"","PRO8","Legal and professional costs",null,null,null,null,null,null,null,null,null,null,null,null,null,null,null,null,null,null,null,null,null,null,null,null,null,null,null,null,null,null,null,null,null,null,null,null,null,null,null,null,null,null,null,null,null,null,null,null,null,null,null,null,null,null,null,null,null,null,null,null,null,null,null,null,null,null,null,null,null,null,null,null,null,null,null,null,null,null,null,null,null,null,null,null,null,null,null,null,null,null,null,null,null,null,null,null,null,null,null,null,null,null,null,null,null,null,null,null,null,null,null,null,null,null,null,null,null,null,null,null,null,null,null,null,null,null,null,null,null,null,null,null,null,null,null,null,null,null,null,null,null,null,null,null,null,null,null,null,null,null,null,null,null,null,null,null,null,null,null,null,null,null,null,null,null,null,null,null,null,null,null,null,null,null,null,null,null,null,null,null,null,null,null,null,null,null,null,null,null,null,null,null,null,null,null,null,null,null,null,null,null,null,null,null,null,null,null,null,null,null,null,null,null,null,null,null,null,null,null,null,null,null,null,null,null,null,null,null,null,null,null,null,null,null,null,null,null,null,null,null,null,null,null,null,null,null,null,null,null,null,null,null,null,null,null,null,null,null,null,null,null,null,null,null,null,null,null,null,null,null,null,null,null,null,null,"SA Monetary value (2dp) > 0.00"]
[12,"","PRO9","Other expenses",null,null,null,null,null,null,null,null,null,null,null,null,null,null,null,null,null,null,null,null,null,null,null,null,null,null,null,null,null,null,null,null,null,null,null,null,null,null,null,null,null,null,null,null,null,null,null,null,null,null,null,null,null,null,null,null,null,null,null,null,null,null,null,null,null,null,null,null,null,null,null,null,null,null,null,null,null,null,null,null,null,null,null,null,null,null,null,null,null,null,null,null,null,null,null,null,null,null,null,null,null,null,null,null,null,null,null,null,null,null,null,null,null,null,null,null,null,null,null,null,null,null,null,null,null,null,null,null,null,null,null,null,null,null,null,null,null,null,null,null,null,null,null,null,null,null,null,null,null,null,null,null,null,null,null,null,null,null,null,null,null,null,null,null,null,null,null,null,null,null,null,null,null,null,null,null,null,null,null,null,null,null,null,null,null,null,null,null,null,null,null,null,null,null,null,null,null,null,null,null,null,null,null,null,null,null,null,null,null,null,null,null,null,null,null,null,null,null,null,null,null,null,null,null,null,null,null,null,null,null,null,null,null,null,null,null,null,null,null,null,null,null,null,null,null,null,null,null,null,null,null,null,null,null,null,null,null,null,null,null,null,null,null,null,null,null,null,null,null,null,null,null,null,null,null,"SA Monetary value (2dp) > 0.00"]
[13,"","PRO10","Private use proportions",null,null,null,null,null,null,null,null,null,null,null,null,null,null,null,null,null,null,null,null,null,null,null,null,null,null,null,null,null,null,null,null,null,null,null,null,null,null,null,null,null,null,null,null,null,null,null,null,null,null,null,null,null,null,null,null,null,null,null,null,null,null,null,null,null,null,null,null,null,null,null,null,null,null,null,null,null,null,null,null,null,null,null,null,null,null,null,null,null,null,null,null,null,null,null,null,null,null,null,null,null,null,null,null,null,null,null,null,null,null,null,null,null,null,null,null,null,null,null,null,null,null,null,null,null,null,null,null,null,null,null,null,null,null,null,null,null,null,null,null,null,null,null,null,null,null,null,null,null,null,null,null,null,null,null,null,null,null,null,null,null,null,null,null,null,null,null,null,null,null,null,null,null,null,null,null,null,null,null,null,null,null,null,null,null,null,null,null,null,null,null,null,null,null,null,null,null,null,null,null,null,null,null,null,null,null,null,null,null,null,null,null,null,null,null,null,null,null,null,null,null,null,null,null,null,null,null,null,null,null,null,null,null,null,null,null,null,null,null,null,null,null,null,null,null,null,null,null,null,null,null,null,null,null,null,null,null,null,null,null,null,null,null,null,null,null,null,null,null,null,null,null,null,null,"If present, must be less than or equal to PRO6 + PRO7 + PRO8 + PRO9","SA Monetary value (2dp) > 0.00"]
[14,"","PRO11","Balancing charges",null,null,null,null,null,null,null,null,null,null,null,null,null,null,null,null,null,null,null,null,null,null,null,null,null,null,null,null,null,null,null,null,null,null,null,null,null,null,null,null,null,null,null,null,null,null,null,null,null,null,null,null,null,null,null,null,null,null,null,null,null,null,null,null,null,null,null,null,null,null,null,null,null,null,null,null,null,null,null,null,null,null,null,null,null,null,null,null,null,null,null,null,null,null,null,null,null,null,null,null,null,null,null,null,null,null,null,null,null,null,null,null,null,null,null,null,null,null,null,null,null,null,null,null,null,null,null,null,null,null,null,null,null,null,null,null,null,null,null,null,null,null,null,null,null,null,null,null,null,null,null,null,null,null,null,null,null,null,null,null,null,null,null,null,null,null,null,null,null,null,null,null,null,null,null,null,null,null,null,null,null,null,null,null,null,null,null,null,null,null,null,null,null,null,null,null,null,null,null,null,null,null,null,null,null,null,null,null,null,null,null,null,null,null,null,null,null,null,null,null,null,null,null,null,null,null,null,null,null,null,null,null,null,null,null,null,null,null,null,null,null,null,null,null,null,null,null,null,null,null,null,null,null,null,null,null,null,null,null,null,null,null,null,null,null,null,null,null,null,null,null,null,null,null,"PRO5.1 must be less than or equal to the sum of PRO5 & PRO11","SA Monetary value (2dp) > 0.00"]
[15,{"$f":"IF(PRO_IND>1,IF(HLOOKUP(PRO_IND-1,PRO_RANGE,A15)=\"\",\"\",HLOOKUP(PRO_IND-1,PRO_RANGE,A15)),\"\")","v":""},"PRO11.1","Electric charge-point allowance"]
[16,"","PRO11.2","Zero-emission car allowance"]
[17,"","PRO12","Capital allowances",null,null,null,null,null,null,null,null,null,null,null,null,null,null,null,null,null,null,null,null,null,null,null,null,null,null,null,null,null,null,null,null,null,null,null,null,null,null,null,null,null,null,null,null,null,null,null,null,null,null,null,null,null,null,null,null,null,null,null,null,null,null,null,null,null,null,null,null,null,null,null,null,null,null,null,null,null,null,null,null,null,null,null,null,null,null,null,null,null,null,null,null,null,null,null,null,null,null,null,null,null,null,null,null,null,null,null,null,null,null,null,null,null,null,null,null,null,null,null,null,null,null,null,null,null,null,null,null,null,null,null,null,null,null,null,null,null,null,null,null,null,null,null,null,null,null,null,null,null,null,null,null,null,null,null,null,null,null,null,null,null,null,null,null,null,null,null,null,null,null,null,null,null,null,null,null,null,null,null,null,null,null,null,null,null,null,null,null,null,null,null,null,null,null,null,null,null,null,null,null,null,null,null,null,null,null,null,null,null,null,null,null,null,null,null,null,null,null,null,null,null,null,null,null,null,null,null,null,null,null,null,null,null,null,null,null,null,null,null,null,null,null,null,null,null,null,null,null,null,null,null,null,null,null,null,null,null,null,null,null,null,null,null,null,null,null,null,null,null,null,null,null,null,null,null,"SA Monetary value (2dp) > 0.00"]
[18,"","PRO13","Adjusted profit for the period",null,null,null,null,null,null,null,null,null,null,null,null,null,null,null,null,null,null,null,null,null,null,null,null,null,null,null,null,null,null,null,null,null,null,null,null,null,null,null,null,null,null,null,null,null,null,null,null,null,null,null,null,null,null,null,null,null,null,null,null,null,null,null,null,null,null,null,null,null,null,null,null,null,null,null,null,null,null,null,null,null,null,null,null,null,null,null,null,null,null,null,null,null,null,null,null,null,null,null,null,null,null,null,null,null,null,null,null,null,null,null,null,null,null,null,null,null,null,null,null,null,null,null,null,null,null,null,null,null,null,null,null,null,null,null,null,null,null,null,null,null,null,null,null,null,null,null,null,null,null,null,null,null,null,null,null,null,null,null,null,null,null,null,null,null,null,null,null,null,null,null,null,null,null,null,null,null,null,null,null,null,null,null,null,null,null,null,null,null,null,null,null,null,null,null,null,null,null,null,null,null,null,null,null,null,null,null,null,null,null,null,null,null,null,null,null,null,null,null,null,null,null,null,null,null,null,null,null,null,null,null,null,null,null,null,null,null,null,null,null,null,null,null,null,null,null,null,null,null,null,null,null,null,null,null,null,null,null,null,null,null,null,null,null,null,null,null,null,null,null,null,null,null,null,"a) If PRO5 + PRO10 + PRO11 minus (PRO6 + PRO7 + PRO8 + PRO9 + PRO12) is positive or zero PRO13 equals that sum.\nb) Cannot be negative.","SA Monetary value (2dp) >= 0.00"]
[19,"","PRO14","furnished holiday lettings losses brought forward",null,null,null,null,null,null,null,null,null,null,null,null,null,null,null,null,null,null,null,null,null,null,null,null,null,null,null,null,null,null,null,null,null,null,null,null,null,null,null,null,null,null,null,null,null,null,null,null,null,null,null,null,null,null,null,null,null,null,null,null,null,null,null,null,null,null,null,null,null,null,null,null,null,null,null,null,null,null,null,null,null,null,null,null,null,null,null,null,null,null,null,null,null,null,null,null,null,null,null,null,null,null,null,null,null,null,null,null,null,null,null,null,null,null,null,null,null,null,null,null,null,null,null,null,null,null,null,null,null,null,null,null,null,null,null,null,null,null,null,null,null,null,null,null,null,null,null,null,null,null,null,null,null,null,null,null,null,null,null,null,null,null,null,null,null,null,null,null,null,null,null,null,null,null,null,null,null,null,null,null,null,null,null,null,null,null,null,null,null,null,null,null,null,null,null,null,null,null,null,null,null,null,null,null,null,null,null,null,null,null,null,null,null,null,null,null,null,null,null,null,null,null,null,null,null,null,null,null,null,null,null,null,null,null,null,null,null,null,null,null,null,null,null,null,null,null,null,null,null,null,null,null,null,null,null,null,null,null,null,null,null,null,null,null,null,null,null,null,null,null,null,null,null,null,null,"SA Monetary value (2dp) >= 0.00"]
[20,"","PRO15","furnished holiday lettings taxable profit for year",null,null,null,null,null,null,null,null,null,null,null,null,null,null,null,null,null,null,null,null,null,null,null,null,null,null,null,null,null,null,null,null,null,null,null,null,null,null,null,null,null,null,null,null,null,null,null,null,null,null,null,null,null,null,null,null,null,null,null,null,null,null,null,null,null,null,null,null,null,null,null,null,null,null,null,null,null,null,null,null,null,null,null,null,null,null,null,null,null,null,null,null,null,null,null,null,null,null,null,null,null,null,null,null,null,null,null,null,null,null,null,null,null,null,null,null,null,null,null,null,null,null,null,null,null,null,null,null,null,null,null,null,null,null,null,null,null,null,null,null,null,null,null,null,null,null,null,null,null,null,null,null,null,null,null,null,null,null,null,null,null,null,null,null,null,null,null,null,null,null,null,null,null,null,null,null,null,null,null,null,null,null,null,null,null,null,null,null,null,null,null,null,null,null,null,null,null,null,null,null,null,null,null,null,null,null,null,null,null,null,null,null,null,null,null,null,null,null,null,null,null,null,null,null,null,null,null,null,null,null,null,null,null,null,null,null,null,null,null,null,null,null,null,null,null,null,null,null,null,null,null,null,null,null,null,null,null,null,null,null,null,null,null,null,null,null,null,null,null,null,null,null,null,null,"a) If PRO13 minus PRO14 is positive or zero PRO15 equals that sum.\nb) Cannot be negative.","SA Monetary value (2dp) >= 0.00"]
[21,"","PRO16","furnished holiday lettings loss for year",null,null,null,null,null,null,null,null,null,null,null,null,null,null,null,null,null,null,null,null,null,null,null,null,null,null,null,null,null,null,null,null,null,null,null,null,null,null,null,null,null,null,null,null,null,null,null,null,null,null,null,null,null,null,null,null,null,null,null,null,null,null,null,null,null,null,null,null,null,null,null,null,null,null,null,null,null,null,null,null,null,null,null,null,null,null,null,null,null,null,null,null,null,null,null,null,null,null,null,null,null,null,null,null,null,null,null,null,null,null,null,null,null,null,null,null,null,null,null,null,null,null,null,null,null,null,null,null,null,null,null,null,null,null,null,null,null,null,null,null,null,null,null,null,null,null,null,null,null,null,null,null,null,null,null,null,null,null,null,null,null,null,null,null,null,null,null,null,null,null,null,null,null,null,null,null,null,null,null,null,null,null,null,null,null,null,null,null,null,null,null,null,null,null,null,null,null,null,null,null,null,null,null,null,null,null,null,null,null,null,null,null,null,null,null,null,null,null,null,null,null,null,null,null,null,null,null,null,null,null,null,null,null,null,null,null,null,null,null,null,null,null,null,null,null,null,null,null,null,null,null,null,null,null,null,null,null,null,null,null,null,null,null,null,null,null,null,null,null,null,null,null,null,null,"a) If PRO6 + PRO7 + PRO8 + PRO9 + PRO12 minus (PRO5 + PRO10 + PRO11) is positive or zero  equals that sum.\nb) Cannot be negative.\nc) If entries in any of PRO6,PRO7,PRO8,PRO9,PRO10, PRO12 & PRO16 then PRO5.1 must be absent","SA Monetary value (2dp) >= 0.00"]
[22,"","PRO17","furnished holiday lettings loss to carry forward",null,null,null,null,null,null,null,null,null,null,null,null,null,null,null,null,null,null,null,null,null,null,null,null,null,null,null,null,null,null,null,null,null,null,null,null,null,null,null,null,null,null,null,null,null,null,null,null,null,null,null,null,null,null,null,null,null,null,null,null,null,null,null,null,null,null,null,null,null,null,null,null,null,null,null,null,null,null,null,null,null,null,null,null,null,null,null,null,null,null,null,null,null,null,null,null,null,null,null,null,null,null,null,null,null,null,null,null,null,null,null,null,null,null,null,null,null,null,null,null,null,null,null,null,null,null,null,null,null,null,null,null,null,null,null,null,null,null,null,null,null,null,null,null,null,null,null,null,null,null,null,null,null,null,null,null,null,null,null,null,null,null,null,null,null,null,null,null,null,null,null,null,null,null,null,null,null,null,null,null,null,null,null,null,null,null,null,null,null,null,null,null,null,null,null,null,null,null,null,null,null,null,null,null,null,null,null,null,null,null,null,null,null,null,null,null,null,null,null,null,null,null,null,null,null,null,null,null,null,null,null,null,null,null,null,null,null,null,null,null,null,null,null,null,null,null,null,null,null,null,null,null,null,null,null,null,null,null,null,null,null,null,null,null,null,null,null,null,null,null,null,null,null,null,null,"SA Monetary value (2dp) >= 0.00"]
[23,"","PRO18","FHL in EEA",null,null,null,null,null,null,null,null,null,null,null,null,null,null,null,null,null,null,null,null,null,null,null,null,null,null,null,null,null,null,null,null,null,null,null,null,null,null,null,null,null,null,null,null,null,null,null,null,null,null,null,null,null,null,null,null,null,null,null,null,null,null,null,null,null,null,null,null,null,null,null,null,null,null,null,null,null,null,null,null,null,null,null,null,null,null,null,null,null,null,null,null,null,null,null,null,null,null,null,null,null,null,null,null,null,null,null,null,null,null,null,null,null,null,null,null,null,null,null,null,null,null,null,null,null,null,null,null,null,null,null,null,null,null,null,null,null,null,null,null,null,null,null,null,null,null,null,null,null,null,null,null,null,null,null,null,null,null,null,null,null,null,null,null,null,null,null,null,null,null,null,null,null,null,null,null,null,null,null,null,null,null,null,null,null,null,null,null,null,null,null,null,null,null,null,null,null,null,null,null,null,null,null,null,null,null,null,null,null,null,null,null,null,null,null,null,null,null,null,null,null,null,null,null,null,null,null,null,null,null,null,null,null,null,null,null,null,null,null,null,null,null,null,null,null,null,null,null,null,null,null,null,null,null,null,null,null,null,null,null,null,null,null,null,null,null,null,null,null,null,null,null,null,null,"a) Only one instance of PRO18 can be Y\nb) If absent, PRO5.2 & PRO20.2 must be the same value\n","\"yes\""]
[24,"","PRO19","Furnished lets period of grace election",null,null,null,null,null,null,null,null,null,null,null,null,null,null,null,null,null,null,null,null,null,null,null,null,null,null,null,null,null,null,null,null,null,null,null,null,null,null,null,null,null,null,null,null,null,null,null,null,null,null,null,null,null,null,null,null,null,null,null,null,null,null,null,null,null,null,null,null,null,null,null,null,null,null,null,null,null,null,null,null,null,null,null,null,null,null,null,null,null,null,null,null,null,null,null,null,null,null,null,null,null,null,null,null,null,null,null,null,null,null,null,null,null,null,null,null,null,null,null,null,null,null,null,null,null,null,null,null,null,null,null,null,null,null,null,null,null,null,null,null,null,null,null,null,null,null,null,null,null,null,null,null,null,null,null,null,null,null,null,null,null,null,null,null,null,null,null,null,null,null,null,null,null,null,null,null,null,null,null,null,null,null,null,null,null,null,null,null,null,null,null,null,null,null,null,null,null,null,null,null,null,null,null,null,null,null,null,null,null,null,null,null,null,null,null,null,null,null,null,null,null,null,null,null,null,null,null,null,null,null,null,null,null,null,null,null,null,null,null,null,null,null,null,null,null,null,null,null,null,null,null,null,null,null,null,null,null,null,null,null,null,null,null,null,null,null,null,null,null,null,null,null,null,null,null,"\"yes\""]
[25,"","PRO5","Income from furnished holiday lettings",null,null,null,null,null,null,null,null,null,null,null,null,null,null,null,null,null,null,null,null,null,null,null,null,null,null,null,null,null,null,null,null,null,null,null,null,null,null,null,null,null,null,null,null,null,null,null,null,null,null,null,null,null,null,null,null,null,null,null,null,null,null,null,null,null,null,null,null,null,null,null,null,null,null,null,null,null,null,null,null,null,null,null,null,null,null,null,null,null,null,null,null,null,null,null,null,null,null,null,null,null,null,null,null,null,null,null,null,null,null,null,null,null,null,null,null,null,null,null,null,null,null,null,null,null,null,null,null,null,null,null,null,null,null,null,null,null,null,null,null,null,null,null,null,null,null,null,null,null,null,null,null,null,null,null,null,null,null,null,null,null,null,null,null,null,null,null,null,null,null,null,null,null,null,null,null,null,null,null,null,null,null,null,null,null,null,null,null,null,null,null,null,null,null,null,null,null,null,null,null,null,null,null,null,null,null,null,null,null,null,null,null,null,null,null,null,null,null,null,null,null,null,null,null,null,null,null,null,null,null,null,null,null,null,null,null,null,null,null,null,null,null,null,null,null,null,null,null,null,null,null,null,null,null,null,null,null,null,null,null,null,null,null,null,null,null,null,null,null,null,null,null,null,null,null,"SA Monetary value (2dp) >= 0.00"]
[26,"","PRO5.1","Property income allowance ",null,null,null,null,null,null,null,null,null,null,null,null,null,null,null,null,null,null,null,null,null,null,null,null,null,null,null,null,null,null,null,null,null,null,null,null,null,null,null,null,null,null,null,null,null,null,null,null,null,null,null,null,null,null,null,null,null,null,null,null,null,null,null,null,null,null,null,null,null,null,null,null,null,null,null,null,null,null,null,null,null,null,null,null,null,null,null,null,null,null,null,null,null,null,null,null,null,null,null,null,null,null,null,null,null,null,null,null,null,null,null,null,null,null,null,null,null,null,null,null,null,null,null,null,null,null,null,null,null,null,null,null,null,null,null,null,null,null,null,null,null,null,null,null,null,null,null,null,null,null,null,null,null,null,null,null,null,null,null,null,null,null,null,null,null,null,null,null,null,null,null,null,null,null,null,null,null,null,null,null,null,null,null,null,null,null,null,null,null,null,null,null,null,null,null,null,null,null,null,null,null,null,null,null,null,null,null,null,null,null,null,null,null,null,null,null,null,null,null,null,null,null,null,null,null,null,null,null,null,null,null,null,null,null,null,null,null,null,null,null,null,null,null,null,null,null,null,null,null,null,null,null,null,null,null,null,null,null,null,null,null,null,null,null,null,null,null,null,null,null,null,null,null,null,"a)If present, must be less than or equal to £1000 (Property allowance)\nb)If present, PRO6,PRO7,PRO8,PRO9,PRO10, PRO12 & PRO16 must be absent","SA Monetary value (2dp) > 0.00"]
[27,"","PRO5.2","If you've used traditional accounting rather than cash basis",null,null,null,null,null,null,null,null,null,null,null,null,null,null,null,null,null,null,null,null,null,null,null,null,null,null,null,null,null,null,null,null,null,null,null,null,null,null,null,null,null,null,null,null,null,null,null,null,null,null,null,null,null,null,null,null,null,null,null,null,null,null,null,null,null,null,null,null,null,null,null,null,null,null,null,null,null,null,null,null,null,null,null,null,null,null,null,null,null,null,null,null,null,null,null,null,null,null,null,null,null,null,null,null,null,null,null,null,null,null,null,null,null,null,null,null,null,null,null,null,null,null,null,null,null,null,null,null,null,null,null,null,null,null,null,null,null,null,null,null,null,null,null,null,null,null,null,null,null,null,null,null,null,null,null,null,null,null,null,null,null,null,null,null,null,null,null,null,null,null,null,null,null,null,null,null,null,null,null,null,null,null,null,null,null,null,null,null,null,null,null,null,null,null,null,null,null,null,null,null,null,null,null,null,null,null,null,null,null,null,null,null,null,null,null,null,null,null,null,null,null,null,null,null,null,null,null,null,null,null,null,null,null,null,null,null,null,null,null,null,null,null,null,null,null,null,null,null,null,null,null,null,null,null,null,null,null,null,null,null,null,null,null,null,null,null,null,null,null,null,null,null,null,null,null,"\"yes\""]
[28,"","PRO6","Rent rates insurances and ground rents etc.",null,null,null,null,null,null,null,null,null,null,null,null,null,null,null,null,null,null,null,null,null,null,null,null,null,null,null,null,null,null,null,null,null,null,null,null,null,null,null,null,null,null,null,null,null,null,null,null,null,null,null,null,null,null,null,null,null,null,null,null,null,null,null,null,null,null,null,null,null,null,null,null,null,null,null,null,null,null,null,null,null,null,null,null,null,null,null,null,null,null,null,null,null,null,null,null,null,null,null,null,null,null,null,null,null,null,null,null,null,null,null,null,null,null,null,null,null,null,null,null,null,null,null,null,null,null,null,null,null,null,null,null,null,null,null,null,null,null,null,null,null,null,null,null,null,null,null,null,null,null,null,null,null,null,null,null,null,null,null,null,null,null,null,null,null,null,null,null,null,null,null,null,null,null,null,null,null,null,null,null,null,null,null,null,null,null,null,null,null,null,null,null,null,null,null,null,null,null,null,null,null,null,null,null,null,null,null,null,null,null,null,null,null,null,null,null,null,null,null,null,null,null,null,null,null,null,null,null,null,null,null,null,null,null,null,null,null,null,null,null,null,null,null,null,null,null,null,null,null,null,null,null,null,null,null,null,null,null,null,null,null,null,null,null,null,null,null,null,null,null,null,null,null,null,null,"SA Monetary value (2dp) > 0.00"]
[29,"","PRO7","Finance charges including interest",null,null,null,null,null,null,null,null,null,null,null,null,null,null,null,null,null,null,null,null,null,null,null,null,null,null,null,null,null,null,null,null,null,null,null,null,null,null,null,null,null,null,null,null,null,null,null,null,null,null,null,null,null,null,null,null,null,null,null,null,null,null,null,null,null,null,null,null,null,null,null,null,null,null,null,null,null,null,null,null,null,null,null,null,null,null,null,null,null,null,null,null,null,null,null,null,null,null,null,null,null,null,null,null,null,null,null,null,null,null,null,null,null,null,null,null,null,null,null,null,null,null,null,null,null,null,null,null,null,null,null,null,null,null,null,null,null,null,null,null,null,null,null,null,null,null,null,null,null,null,null,null,null,null,null,null,null,null,null,null,null,null,null,null,null,null,null,null,null,null,null,null,null,null,null,null,null,null,null,null,null,null,null,null,null,null,null,null,null,null,null,null,null,null,null,null,null,null,null,null,null,null,null,null,null,null,null,null,null,null,null,null,null,null,null,null,null,null,null,null,null,null,null,null,null,null,null,null,null,null,null,null,null,null,null,null,null,null,null,null,null,null,null,null,null,null,null,null,null,null,null,null,null,null,null,null,null,null,null,null,null,null,null,null,null,null,null,null,null,null,null,null,null,null,null,"SA Monetary value (2dp) > 0.00"]
[30,"","PRO8","Legal and professional costs",null,null,null,null,null,null,null,null,null,null,null,null,null,null,null,null,null,null,null,null,null,null,null,null,null,null,null,null,null,null,null,null,null,null,null,null,null,null,null,null,null,null,null,null,null,null,null,null,null,null,null,null,null,null,null,null,null,null,null,null,null,null,null,null,null,null,null,null,null,null,null,null,null,null,null,null,null,null,null,null,null,null,null,null,null,null,null,null,null,null,null,null,null,null,null,null,null,null,null,null,null,null,null,null,null,null,null,null,null,null,null,null,null,null,null,null,null,null,null,null,null,null,null,null,null,null,null,null,null,null,null,null,null,null,null,null,null,null,null,null,null,null,null,null,null,null,null,null,null,null,null,null,null,null,null,null,null,null,null,null,null,null,null,null,null,null,null,null,null,null,null,null,null,null,null,null,null,null,null,null,null,null,null,null,null,null,null,null,null,null,null,null,null,null,null,null,null,null,null,null,null,null,null,null,null,null,null,null,null,null,null,null,null,null,null,null,null,null,null,null,null,null,null,null,null,null,null,null,null,null,null,null,null,null,null,null,null,null,null,null,null,null,null,null,null,null,null,null,null,null,null,null,null,null,null,null,null,null,null,null,null,null,null,null,null,null,null,null,null,null,null,null,null,null,null,"SA Monetary value (2dp) > 0.00"]
[31,"","PRO9","Other expenses",null,null,null,null,null,null,null,null,null,null,null,null,null,null,null,null,null,null,null,null,null,null,null,null,null,null,null,null,null,null,null,null,null,null,null,null,null,null,null,null,null,null,null,null,null,null,null,null,null,null,null,null,null,null,null,null,null,null,null,null,null,null,null,null,null,null,null,null,null,null,null,null,null,null,null,null,null,null,null,null,null,null,null,null,null,null,null,null,null,null,null,null,null,null,null,null,null,null,null,null,null,null,null,null,null,null,null,null,null,null,null,null,null,null,null,null,null,null,null,null,null,null,null,null,null,null,null,null,null,null,null,null,null,null,null,null,null,null,null,null,null,null,null,null,null,null,null,null,null,null,null,null,null,null,null,null,null,null,null,null,null,null,null,null,null,null,null,null,null,null,null,null,null,null,null,null,null,null,null,null,null,null,null,null,null,null,null,null,null,null,null,null,null,null,null,null,null,null,null,null,null,null,null,null,null,null,null,null,null,null,null,null,null,null,null,null,null,null,null,null,null,null,null,null,null,null,null,null,null,null,null,null,null,null,null,null,null,null,null,null,null,null,null,null,null,null,null,null,null,null,null,null,null,null,null,null,null,null,null,null,null,null,null,null,null,null,null,null,null,null,null,null,null,null,null,"SA Monetary value (2dp) > 0.00"]
[32,"","PRO10","Private use proportions",null,null,null,null,null,null,null,null,null,null,null,null,null,null,null,null,null,null,null,null,null,null,null,null,null,null,null,null,null,null,null,null,null,null,null,null,null,null,null,null,null,null,null,null,null,null,null,null,null,null,null,null,null,null,null,null,null,null,null,null,null,null,null,null,null,null,null,null,null,null,null,null,null,null,null,null,null,null,null,null,null,null,null,null,null,null,null,null,null,null,null,null,null,null,null,null,null,null,null,null,null,null,null,null,null,null,null,null,null,null,null,null,null,null,null,null,null,null,null,null,null,null,null,null,null,null,null,null,null,null,null,null,null,null,null,null,null,null,null,null,null,null,null,null,null,null,null,null,null,null,null,null,null,null,null,null,null,null,null,null,null,null,null,null,null,null,null,null,null,null,null,null,null,null,null,null,null,null,null,null,null,null,null,null,null,null,null,null,null,null,null,null,null,null,null,null,null,null,null,null,null,null,null,null,null,null,null,null,null,null,null,null,null,null,null,null,null,null,null,null,null,null,null,null,null,null,null,null,null,null,null,null,null,null,null,null,null,null,null,null,null,null,null,null,null,null,null,null,null,null,null,null,null,null,null,null,null,null,null,null,null,null,null,null,null,null,null,null,null,null,null,null,null,null,"If present, must be less than or equal to PRO6 + PRO7 + PRO8 + PRO9","SA Monetary value (2dp) > 0.00"]
[33,"","PRO11","Balancing charges",null,null,null,null,null,null,null,null,null,null,null,null,null,null,null,null,null,null,null,null,null,null,null,null,null,null,null,null,null,null,null,null,null,null,null,null,null,null,null,null,null,null,null,null,null,null,null,null,null,null,null,null,null,null,null,null,null,null,null,null,null,null,null,null,null,null,null,null,null,null,null,null,null,null,null,null,null,null,null,null,null,null,null,null,null,null,null,null,null,null,null,null,null,null,null,null,null,null,null,null,null,null,null,null,null,null,null,null,null,null,null,null,null,null,null,null,null,null,null,null,null,null,null,null,null,null,null,null,null,null,null,null,null,null,null,null,null,null,null,null,null,null,null,null,null,null,null,null,null,null,null,null,null,null,null,null,null,null,null,null,null,null,null,null,null,null,null,null,null,null,null,null,null,null,null,null,null,null,null,null,null,null,null,null,null,null,null,null,null,null,null,null,null,null,null,null,null,null,null,null,null,null,null,null,null,null,null,null,null,null,null,null,null,null,null,null,null,null,null,null,null,null,null,null,null,null,null,null,null,null,null,null,null,null,null,null,null,null,null,null,null,null,null,null,null,null,null,null,null,null,null,null,null,null,null,null,null,null,null,null,null,null,null,null,null,null,null,null,null,null,null,null,null,null,"PRO5.1 must be less than or equal to the sum of PRO5 & PRO11","SA Monetary value (2dp) > 0.00"]
[34,"","PRO11.1","Electric charge-point allowance"]
[35,"","PRO11.2","Zero-emission car allowance"]
[36,"","PRO12","Capital allowances",null,null,null,null,null,null,null,null,null,null,null,null,null,null,null,null,null,null,null,null,null,null,null,null,null,null,null,null,null,null,null,null,null,null,null,null,null,null,null,null,null,null,null,null,null,null,null,null,null,null,null,null,null,null,null,null,null,null,null,null,null,null,null,null,null,null,null,null,null,null,null,null,null,null,null,null,null,null,null,null,null,null,null,null,null,null,null,null,null,null,null,null,null,null,null,null,null,null,null,null,null,null,null,null,null,null,null,null,null,null,null,null,null,null,null,null,null,null,null,null,null,null,null,null,null,null,null,null,null,null,null,null,null,null,null,null,null,null,null,null,null,null,null,null,null,null,null,null,null,null,null,null,null,null,null,null,null,null,null,null,null,null,null,null,null,null,null,null,null,null,null,null,null,null,null,null,null,null,null,null,null,null,null,null,null,null,null,null,null,null,null,null,null,null,null,null,null,null,null,null,null,null,null,null,null,null,null,null,null,null,null,null,null,null,null,null,null,null,null,null,null,null,null,null,null,null,null,null,null,null,null,null,null,null,null,null,null,null,null,null,null,null,null,null,null,null,null,null,null,null,null,null,null,null,null,null,null,null,null,null,null,null,null,null,null,null,null,null,null,null,null,null,null,null,null,"SA Monetary value (2dp) > 0.00"]
[37,"","PRO13","Adjusted profit for the period",null,null,null,null,null,null,null,null,null,null,null,null,null,null,null,null,null,null,null,null,null,null,null,null,null,null,null,null,null,null,null,null,null,null,null,null,null,null,null,null,null,null,null,null,null,null,null,null,null,null,null,null,null,null,null,null,null,null,null,null,null,null,null,null,null,null,null,null,null,null,null,null,null,null,null,null,null,null,null,null,null,null,null,null,null,null,null,null,null,null,null,null,null,null,null,null,null,null,null,null,null,null,null,null,null,null,null,null,null,null,null,null,null,null,null,null,null,null,null,null,null,null,null,null,null,null,null,null,null,null,null,null,null,null,null,null,null,null,null,null,null,null,null,null,null,null,null,null,null,null,null,null,null,null,null,null,null,null,null,null,null,null,null,null,null,null,null,null,null,null,null,null,null,null,null,null,null,null,null,null,null,null,null,null,null,null,null,null,null,null,null,null,null,null,null,null,null,null,null,null,null,null,null,null,null,null,null,null,null,null,null,null,null,null,null,null,null,null,null,null,null,null,null,null,null,null,null,null,null,null,null,null,null,null,null,null,null,null,null,null,null,null,null,null,null,null,null,null,null,null,null,null,null,null,null,null,null,null,null,null,null,null,null,null,null,null,null,null,null,null,null,null,null,null,"a) If PRO5 + PRO10 + PRO11 minus (PRO6 + PRO7 + PRO8 + PRO9 + PRO12) is positive or zero PRO13 equals that sum.\nb) Cannot be negative.","SA Monetary value (2dp) >= 0.00"]
[38,"","PRO14","furnished holiday lettings losses brought forward",null,null,null,null,null,null,null,null,null,null,null,null,null,null,null,null,null,null,null,null,null,null,null,null,null,null,null,null,null,null,null,null,null,null,null,null,null,null,null,null,null,null,null,null,null,null,null,null,null,null,null,null,null,null,null,null,null,null,null,null,null,null,null,null,null,null,null,null,null,null,null,null,null,null,null,null,null,null,null,null,null,null,null,null,null,null,null,null,null,null,null,null,null,null,null,null,null,null,null,null,null,null,null,null,null,null,null,null,null,null,null,null,null,null,null,null,null,null,null,null,null,null,null,null,null,null,null,null,null,null,null,null,null,null,null,null,null,null,null,null,null,null,null,null,null,null,null,null,null,null,null,null,null,null,null,null,null,null,null,null,null,null,null,null,null,null,null,null,null,null,null,null,null,null,null,null,null,null,null,null,null,null,null,null,null,null,null,null,null,null,null,null,null,null,null,null,null,null,null,null,null,null,null,null,null,null,null,null,null,null,null,null,null,null,null,null,null,null,null,null,null,null,null,null,null,null,null,null,null,null,null,null,null,null,null,null,null,null,null,null,null,null,null,null,null,null,null,null,null,null,null,null,null,null,null,null,null,null,null,null,null,null,null,null,null,null,null,null,null,null,null,null,null,null,null,"SA Monetary value (2dp) >= 0.00"]
[39,"","PRO15","furnished holiday lettings taxable profit for year",null,null,null,null,null,null,null,null,null,null,null,null,null,null,null,null,null,null,null,null,null,null,null,null,null,null,null,null,null,null,null,null,null,null,null,null,null,null,null,null,null,null,null,null,null,null,null,null,null,null,null,null,null,null,null,null,null,null,null,null,null,null,null,null,null,null,null,null,null,null,null,null,null,null,null,null,null,null,null,null,null,null,null,null,null,null,null,null,null,null,null,null,null,null,null,null,null,null,null,null,null,null,null,null,null,null,null,null,null,null,null,null,null,null,null,null,null,null,null,null,null,null,null,null,null,null,null,null,null,null,null,null,null,null,null,null,null,null,null,null,null,null,null,null,null,null,null,null,null,null,null,null,null,null,null,null,null,null,null,null,null,null,null,null,null,null,null,null,null,null,null,null,null,null,null,null,null,null,null,null,null,null,null,null,null,null,null,null,null,null,null,null,null,null,null,null,null,null,null,null,null,null,null,null,null,null,null,null,null,null,null,null,null,null,null,null,null,null,null,null,null,null,null,null,null,null,null,null,null,null,null,null,null,null,null,null,null,null,null,null,null,null,null,null,null,null,null,null,null,null,null,null,null,null,null,null,null,null,null,null,null,null,null,null,null,null,null,null,null,null,null,null,null,null,"a) If PRO13 minus PRO14 is positive or zero PRO15 equals that sum.\nb) Cannot be negative.","SA Monetary value (2dp) >= 0.00"]
[40,"","PRO16","furnished holiday lettings loss for year",null,null,null,null,null,null,null,null,null,null,null,null,null,null,null,null,null,null,null,null,null,null,null,null,null,null,null,null,null,null,null,null,null,null,null,null,null,null,null,null,null,null,null,null,null,null,null,null,null,null,null,null,null,null,null,null,null,null,null,null,null,null,null,null,null,null,null,null,null,null,null,null,null,null,null,null,null,null,null,null,null,null,null,null,null,null,null,null,null,null,null,null,null,null,null,null,null,null,null,null,null,null,null,null,null,null,null,null,null,null,null,null,null,null,null,null,null,null,null,null,null,null,null,null,null,null,null,null,null,null,null,null,null,null,null,null,null,null,null,null,null,null,null,null,null,null,null,null,null,null,null,null,null,null,null,null,null,null,null,null,null,null,null,null,null,null,null,null,null,null,null,null,null,null,null,null,null,null,null,null,null,null,null,null,null,null,null,null,null,null,null,null,null,null,null,null,null,null,null,null,null,null,null,null,null,null,null,null,null,null,null,null,null,null,null,null,null,null,null,null,null,null,null,null,null,null,null,null,null,null,null,null,null,null,null,null,null,null,null,null,null,null,null,null,null,null,null,null,null,null,null,null,null,null,null,null,null,null,null,null,null,null,null,null,null,null,null,null,null,null,null,null,null,null,"a) If PRO6 + PRO7 + PRO8 + PRO9 + PRO12 minus (PRO5 + PRO10 + PRO11) is positive or zero  equals that sum.\nb) Cannot be negative.\nc) If entries in any of PRO6,PRO7,PRO8,PRO9,PRO10, PRO12 & PRO16 then PRO5.1 must be absent","SA Monetary value (2dp) >= 0.00"]
[41,"","PRO17","furnished holiday lettings loss to carry forward",null,null,null,null,null,null,null,null,null,null,null,null,null,null,null,null,null,null,null,null,null,null,null,null,null,null,null,null,null,null,null,null,null,null,null,null,null,null,null,null,null,null,null,null,null,null,null,null,null,null,null,null,null,null,null,null,null,null,null,null,null,null,null,null,null,null,null,null,null,null,null,null,null,null,null,null,null,null,null,null,null,null,null,null,null,null,null,null,null,null,null,null,null,null,null,null,null,null,null,null,null,null,null,null,null,null,null,null,null,null,null,null,null,null,null,null,null,null,null,null,null,null,null,null,null,null,null,null,null,null,null,null,null,null,null,null,null,null,null,null,null,null,null,null,null,null,null,null,null,null,null,null,null,null,null,null,null,null,null,null,null,null,null,null,null,null,null,null,null,null,null,null,null,null,null,null,null,null,null,null,null,null,null,null,null,null,null,null,null,null,null,null,null,null,null,null,null,null,null,null,null,null,null,null,null,null,null,null,null,null,null,null,null,null,null,null,null,null,null,null,null,null,null,null,null,null,null,null,null,null,null,null,null,null,null,null,null,null,null,null,null,null,null,null,null,null,null,null,null,null,null,null,null,null,null,null,null,null,null,null,null,null,null,null,null,null,null,null,null,null,null,null,null,null,null,"SA Monetary value (2dp) >= 0.00"]
[42,"","PRO18","FHL in EEA",null,null,null,null,null,null,null,null,null,null,null,null,null,null,null,null,null,null,null,null,null,null,null,null,null,null,null,null,null,null,null,null,null,null,null,null,null,null,null,null,null,null,null,null,null,null,null,null,null,null,null,null,null,null,null,null,null,null,null,null,null,null,null,null,null,null,null,null,null,null,null,null,null,null,null,null,null,null,null,null,null,null,null,null,null,null,null,null,null,null,null,null,null,null,null,null,null,null,null,null,null,null,null,null,null,null,null,null,null,null,null,null,null,null,null,null,null,null,null,null,null,null,null,null,null,null,null,null,null,null,null,null,null,null,null,null,null,null,null,null,null,null,null,null,null,null,null,null,null,null,null,null,null,null,null,null,null,null,null,null,null,null,null,null,null,null,null,null,null,null,null,null,null,null,null,null,null,null,null,null,null,null,null,null,null,null,null,null,null,null,null,null,null,null,null,null,null,null,null,null,null,null,null,null,null,null,null,null,null,null,null,null,null,null,null,null,null,null,null,null,null,null,null,null,null,null,null,null,null,null,null,null,null,null,null,null,null,null,null,null,null,null,null,null,null,null,null,null,null,null,null,null,null,null,null,null,null,null,null,null,null,null,null,null,null,null,null,null,null,null,null,null,null,null,"a) Only one instance of PRO18 can be Y\nb) If absent, PRO5.2 & PRO20.2 must be the same value\n","\"yes\""]
[43,"","PRO19","Furnished lets period of grace election",null,null,null,null,null,null,null,null,null,null,null,null,null,null,null,null,null,null,null,null,null,null,null,null,null,null,null,null,null,null,null,null,null,null,null,null,null,null,null,null,null,null,null,null,null,null,null,null,null,null,null,null,null,null,null,null,null,null,null,null,null,null,null,null,null,null,null,null,null,null,null,null,null,null,null,null,null,null,null,null,null,null,null,null,null,null,null,null,null,null,null,null,null,null,null,null,null,null,null,null,null,null,null,null,null,null,null,null,null,null,null,null,null,null,null,null,null,null,null,null,null,null,null,null,null,null,null,null,null,null,null,null,null,null,null,null,null,null,null,null,null,null,null,null,null,null,null,null,null,null,null,null,null,null,null,null,null,null,null,null,null,null,null,null,null,null,null,null,null,null,null,null,null,null,null,null,null,null,null,null,null,null,null,null,null,null,null,null,null,null,null,null,null,null,null,null,null,null,null,null,null,null,null,null,null,null,null,null,null,null,null,null,null,null,null,null,null,null,null,null,null,null,null,null,null,null,null,null,null,null,null,null,null,null,null,null,null,null,null,null,null,null,null,null,null,null,null,null,null,null,null,null,null,null,null,null,null,null,null,null,null,null,null,null,null,null,null,null,null,null,null,null,null,null,null,"\"yes\""]
[44,"","PRO20","Total rents and other income from property",25790,19600,null,null,null,null,null,null,9300,null,9675,null,3000,null,null,84999,17800,null,null,null,null,77332,7252,null,17800,null,10000,null,null,null,null,null,47652,null,null,11476,500,null,8650,null,175800,null,null,null,45000,null,14340,45000,null,29750,null,7800,null,null,null,null,null,null,61411,null,null,null,null,12937,null,null,null,null,null,23546,null,15611,null,null,null,1061254,45000,16027,null,null,null,7800,31865,160489,null,null,null,184983,null,null,47389,45005,45005,15823,null,null,null,null,null,45000,45000,50672,31865,null,null,null,null,null,38400,48999,null,38400,31865,null,null,null,null,127045,null,null,null,null,5940,4000,4800,null,null,16065,null,null,26045,null,null,3500,null,8000,null,null,null,91776,23802,1944,22592,null,null,1124836,45005,45006,null,null,null,108163,null,null,null,null,null,7800,null,null,null,null,null,null,null,null,null,null,null,null,null,45000,45000,15823,null,45005,null,null,null,null,null,null,8000,8000,45005,null,null,45005,null,null,null,null,null,null,null,null,null,null,null,null,45005,31865,null,null,null,115478,null,53780,null,7800,7800,null,null,null,null,null,null,null,null,null,null,101301,10800,9394,null,null,null,null,null,221159,null,null,null,null,null,13477.5,null,null,17826,9600,null,null,null,null,3300,113819,null,null,2980,335196,40714,8730,22099,null,17874,null,null,null,null,null,7623,null,10352,21784,21784,null,34006,198022,null,null,null,null,77900,null,null,"SA Monetary value (2dp) >= 0.00"]
[45,"","PRO20.1","Property income allowance ",null,null,null,null,null,null,null,null,null,null,null,null,null,null,null,null,null,null,null,null,null,null,null,null,null,null,1000,null,null,null,null,null,null,null,null,null,null,null,null,null,null,null,null,null,null,null,null,null,null,null,null,null,null,null,null,null,null,null,null,null,null,null,null,null,null,null,null,null,null,null,null,null,null,null,null,null,null,1000,null,null,null,null,null,null,null,null,null,null,null,null,null,null,null,null,null,null,null,null,null,null,null,null,null,null,null,null,null,null,null,null,null,null,null,null,null,null,null,null,null,null,null,null,null,null,1000,null,null,null,null,null,null,null,null,null,null,null,null,null,null,null,null,null,null,null,null,null,null,null,null,null,null,null,null,null,null,null,null,null,null,null,null,null,null,null,null,null,null,null,null,null,null,null,null,null,null,null,null,null,null,null,null,null,null,null,null,null,null,null,null,null,null,null,null,null,null,null,null,null,null,null,null,null,null,null,null,null,null,null,null,null,null,null,null,null,null,null,null,null,null,null,null,null,null,null,null,null,null,null,null,null,null,null,null,null,null,null,null,null,null,null,null,null,null,null,null,null,null,null,null,null,null,null,null,null,null,null,null,null,null,null,null,null,null,null,null,null,null,null,null,null,null,null,null,null,"a) If present, must be less than or equal to £1000 (Property Allowance)\nb) If both PRO5.2 & PRO20.1 are present the total of both must be less than or equal to £1000 (Property Allowance)\nc) If present, PRO24, PRO25, PRO26, PRO27,PRO28, PRO29, PRO30, PRO32, PRO33,PRO34, PRO35,PRO36,PRO37, BPR41, PRO42 & PRO44 must be absent.","SA Monetary value (2dp) > 0.00"]
[46,"","PRO20.2","If you've used traditional accounting rather than cash basis",null,null,null,null,null,null,null,null,null,null,null,null,null,null,null,null,null,null,null,null,null,null,null,null,null,null,null,null,null,null,null,null,null,null,null,null,null,null,null,null,"Y",null,null,null,null,null,null,null,null,null,null,null,null,null,null,null,null,null,null,null,null,null,null,null,null,null,null,null,null,null,null,"Y",null,null,null,"Y",null,null,null,null,null,null,"Y","Y",null,null,null,"Y",null,null,null,null,null,null,null,null,null,null,null,null,null,null,"Y",null,null,null,null,null,"Y",null,null,"Y","Y",null,null,null,null,"Y",null,null,null,null,"Y",null,null,null,null,null,null,null,null,null,null,null,null,null,null,null,null,null,null,null,null,null,null,"Y",null,null,null,null,null,null,null,null,null,null,null,null,null,null,null,null,null,null,null,null,null,null,null,null,null,null,null,null,null,null,null,null,null,null,null,null,null,null,null,null,null,null,null,null,null,null,null,null,null,null,null,null,null,null,null,"Y",null,null,null,"Y",null,null,null,null,null,null,null,null,null,null,null,null,null,null,null,"Y",null,"Y",null,null,null,null,null,"Y",null,null,null,null,null,"Y",null,null,null,null,null,null,null,null,null,null,null,null,"Y","Y",null,null,null,null,"Y",null,null,null,null,null,null,null,"Y",null,null,null,"Y","Y",null,null,null,null,null,null,null,"\"yes\""]
[47,"","PRO21","Tax taken off",null,null,null,null,null,null,null,null,null,null,null,null,null,null,null,null,null,null,null,null,null,null,null,null,null,null,null,null,null,null,null,null,null,null,null,null,null,null,null,null,null,null,null,null,null,null,null,null,null,null,null,null,null,null,null,null,null,null,null,null,null,null,null,null,null,null,null,null,null,null,null,1696,null,null,null,null,null,null,null,null,null,null,1696,null,null,null,null,null,null,null,null,null,null,75,null,null,null,null,null,null,null,null,1696,null,null,null,null,null,null,null,null,null,1696,null,null,null,null,null,null,null,null,null,null,null,null,null,null,null,null,null,null,null,null,null,null,null,null,null,null,null,null,null,null,null,null,3026,null,null,null,null,null,null,null,null,null,null,null,null,null,null,null,null,null,null,null,null,null,null,null,null,null,null,null,75,null,null,null,null,null,null,null,null,null,null,null,null,null,null,null,null,null,null,null,null,null,null,null,null,null,null,null,1696,null,null,null,null,null,null,null,null,null,null,null,null,null,null,null,null,null,null,null,null,null,null,null,null,null,null,null,null,null,null,null,null,null,null,null,null,null,null,null,null,null,null,null,null,null,null,null,null,null,null,null,null,null,null,null,null,null,null,null,null,null,null,null,null,null,null,null,null,null,null,null,null,null,"SA Monetary value (2dp) > 0.00"]
[48,"","PRO22","Chargeable premium",null,null,null,null,null,null,null,null,null,null,null,null,null,null,null,null,null,null,null,null,null,null,null,null,null,null,null,null,null,null,null,null,null,null,null,null,null,null,null,null,null,null,null,null,null,null,null,null,null,null,null,null,null,null,null,null,null,null,null,null,null,null,null,null,null,null,null,null,null,null,null,null,null,null,null,null,null,null,null,null,null,null,null,null,null,null,null,null,null,null,null,null,null,null,null,null,null,null,null,null,null,null,null,null,null,null,null,null,null,null,null,null,null,null,null,null,null,null,null,null,null,null,null,null,null,null,null,null,null,null,null,null,null,null,null,null,null,null,null,null,null,null,null,null,null,null,null,null,null,null,null,null,null,null,null,null,null,null,null,null,null,null,null,null,null,null,null,null,null,null,null,null,null,null,null,null,null,null,null,null,null,null,null,null,null,null,null,null,null,null,null,null,null,null,null,null,null,null,null,null,null,null,null,null,null,null,null,null,null,null,null,null,null,null,null,null,null,null,null,null,null,null,null,null,null,null,null,null,null,null,null,null,null,null,null,null,null,null,null,null,null,null,null,null,null,null,null,null,null,null,null,null,null,null,null,null,null,null,null,null,null,null,50,null,null,null,null,null,null,null,null,null,null,null,null,"SA Monetary value (2dp) > 0.00"]
[49,"","PRO23","Reverse Premiums",null,null,null,null,null,null,null,null,null,null,null,null,null,null,null,null,null,null,null,null,null,null,null,null,null,null,null,null,null,null,null,null,null,null,null,null,null,null,null,null,null,null,null,null,null,null,null,null,null,null,null,null,null,null,null,null,null,null,null,null,null,null,null,null,null,null,null,null,null,null,null,302,null,null,null,null,null,null,null,null,null,null,302,null,null,null,null,null,null,null,null,null,null,null,null,null,null,null,null,null,null,null,302,null,null,null,null,null,null,null,null,null,302,null,null,null,null,null,null,null,null,null,null,null,null,null,null,null,null,null,null,null,null,null,null,null,null,null,null,null,null,null,null,null,null,null,null,null,null,null,null,null,null,null,null,null,null,null,null,null,null,null,null,null,null,null,null,null,null,null,null,null,null,null,null,null,null,null,null,null,null,null,null,null,null,null,null,null,null,null,null,null,null,null,null,null,null,null,null,null,null,302,null,null,null,null,null,null,null,null,null,null,null,null,null,null,null,null,null,null,null,null,null,null,null,null,null,null,null,null,null,null,null,null,null,null,null,null,null,null,null,null,null,null,null,null,null,null,null,null,null,null,null,null,null,null,null,null,null,null,null,null,null,null,null,null,null,null,null,null,null,null,null,null,null,"SA Monetary value (2dp) > 0.00"]
[50,"","PRO24","Rent rates insurance ground rents etc.",null,null,null,null,null,null,null,null,null,null,null,null,null,null,null,218,null,null,null,null,null,null,null,null,null,null,null,null,null,null,null,null,null,null,null,null,null,null,3450,null,null,null,null,null,1654,null,1611,1654,null,788,null,null,null,null,null,null,null,null,null,null,null,null,null,null,null,null,null,null,null,null,null,1460,null,null,null,4714,1654,null,null,null,null,null,null,2369,null,null,null,2028,null,null,2070,4880,4880,950,null,null,null,null,null,1654,1654,4880,2960,null,null,null,null,null,5900,324,null,5900,2960,null,null,null,null,49881,null,null,null,null,211,142.93,null,null,null,584,null,null,250,null,null,null,null,null,null,null,null,188,null,865,2128,null,null,19587.03,4880,4882,null,null,null,8990,null,null,null,null,null,null,null,null,null,null,null,null,null,null,null,null,null,null,null,1654,1654,950,null,4880,null,null,null,null,null,null,null,null,4000,null,null,4880,null,null,null,null,null,null,null,null,null,null,null,null,4880,2960,null,null,null,4216,null,null,null,null,null,null,null,null,null,null,null,null,null,null,null,5899,2275,282,null,null,null,null,null,23282,null,null,null,null,null,3965,null,null,328,738.08,null,null,null,null,128,2644,null,null,151,22048,1516,null,4518,null,14482,null,null,null,null,null,null,null,3500,161,161,null,2790,6676,null,null,null,null,914,null,null,"SA Monetary value (2dp) > 0.00"]
[51,"","PRO25","Repairs and maintenance",16200,null,null,null,null,null,null,null,null,null,null,null,null,null,null,1817,null,null,null,null,null,null,null,null,null,null,null,null,null,null,null,null,23479,null,null,700,null,null,1785,null,6849,null,null,null,4000,null,412,4000,null,10931,null,null,null,null,null,null,null,null,null,null,null,null,null,null,null,null,null,null,null,null,null,472,null,null,null,14000,4000,null,null,null,null,null,472,4911,null,null,null,8909,null,null,5986,3775,3775,null,null,null,null,null,null,4000,4000,3775,472,null,null,null,null,null,4216,4750,null,4216,472,null,null,null,null,12210,null,null,null,null,208,564.79999999999995,null,null,null,1944,null,null,null,null,null,null,null,null,null,null,null,11801,null,null,2905,null,null,1566269.43,3775,3775,null,null,null,null,null,null,null,null,null,null,null,null,null,null,null,null,null,null,null,null,null,null,null,4000,4000,null,null,3775,null,null,null,null,null,null,null,null,3005,null,null,3775,null,null,null,null,null,null,null,null,null,null,null,null,3775,472,null,null,null,32442,null,null,null,null,18360,null,null,null,null,null,null,null,null,null,null,75301,null,767,null,null,null,null,null,null,null,null,null,null,null,null,null,null,636,1682.67,null,null,null,null,340,6604,null,null,753,80176,12468,1513,null,null,null,null,null,null,null,null,4947,null,130,2586,2586,null,23798,3160,null,null,null,null,6800,null,null,"SA Monetary value (2dp) > 0.00"]
[52,"","PRO26","Finance charges including interest",null,3000,null,null,null,null,null,null,2000,null,3000,null,null,null,null,null,2000,null,null,null,null,null,null,null,13000,null,null,null,null,null,null,null,null,null,null,null,null,null,null,null,null,null,null,null,1500,null,null,1500,null,null,null,null,null,null,null,null,null,null,null,null,null,null,null,null,null,null,null,null,null,null,null,null,null,null,null,7021,1500,null,null,null,null,null,5981,39170,null,null,null,null,null,null,null,null,null,3000,null,null,null,null,null,1500,1500,null,5981,null,null,null,null,null,29168,140,null,29168,5981,null,null,null,null,null,null,null,null,null,1583,null,null,null,null,null,null,null,null,null,null,null,null,null,null,null,null,null,null,55,null,null,null,488488.83,null,4555,null,null,null,null,null,null,null,null,null,null,null,null,null,null,null,null,null,null,null,null,null,null,null,1500,1500,3000,null,null,null,null,null,null,null,null,null,null,null,null,null,4555,null,null,null,null,null,null,null,null,null,null,null,null,null,5981,null,null,null,29168,null,null,null,null,null,null,null,null,null,null,null,null,null,null,null,19802,3511,null,null,null,null,null,null,24698,null,null,null,null,null,null,null,null,null,null,null,null,null,null,104,41,null,null,491,83561,12418,null,null,null,800,null,null,null,null,null,null,null,1400,null,null,null,1642,104136,null,null,null,null,172,null,null,"SA Monetary value (2dp) > 0.00"]
[53,"","PRO27","Legal and professional costs",null,null,null,null,null,null,null,null,null,null,null,null,null,null,null,5527,null,null,null,null,null,null,null,null,null,null,null,null,null,null,null,null,null,null,null,null,null,null,1632,null,null,null,null,null,1200,null,null,1200,null,3534,null,null,null,null,null,null,null,null,null,null,null,null,null,null,null,null,null,null,null,null,null,null,null,null,null,2464,1200,null,null,null,null,null,364,9533,null,null,null,12791,null,null,220,null,null,250,null,null,null,null,null,1200,1200,null,364,null,null,null,null,null,900,100,null,900,364,null,null,null,null,null,null,null,null,null,917,713.63,null,null,null,3117,null,null,200,null,null,null,null,null,null,null,null,6893,null,60,2518,null,null,151573.10999999999,null,2322,null,null,null,11299,null,null,null,null,null,null,null,null,null,null,null,null,null,null,null,null,null,null,null,1200,1200,250,null,null,null,null,null,null,null,null,null,null,null,null,null,2320,null,null,null,null,null,null,null,null,null,null,null,null,null,364,null,null,null,9923,null,null,null,null,null,null,null,null,null,null,null,null,null,null,null,11909,275,1461,null,null,null,null,null,24275,null,null,null,null,null,null,null,null,1422,1993.2,null,null,null,null,177,11142,null,null,312,48709,4718,null,3467,null,175,null,null,null,null,null,915,null,400,540,540,null,1620,10703,null,null,null,null,700,null,null,"SA Monetary value (2dp) > 0.00"]
[54,"","PRO28","Cost of services provided including wages",null,null,null,null,null,null,null,null,null,null,null,null,null,null,null,null,null,null,null,null,null,null,null,null,null,null,null,null,null,null,null,null,null,null,null,null,null,null,null,null,null,null,null,null,480,null,null,480,null,null,null,null,null,null,null,null,null,null,null,null,null,null,null,null,null,null,null,null,null,null,null,1900,null,null,null,480,480,null,null,null,null,null,1900,15,null,null,null,null,null,null,2926,null,null,null,null,null,null,null,null,480,480,null,1900,null,null,null,null,null,null,3379,null,null,1900,null,null,null,null,35296,null,null,null,null,372,null,null,null,null,60,null,null,null,null,null,null,null,null,null,null,null,null,null,null,null,null,null,26693.3,null,null,null,null,null,null,null,null,null,null,null,null,null,null,null,null,null,null,null,null,null,null,null,null,null,480,480,325,null,null,null,null,null,null,null,null,null,null,null,null,null,null,null,null,null,null,null,null,null,null,null,null,null,null,null,1900,null,null,null,null,null,null,null,null,null,null,null,null,null,null,null,null,null,null,null,12570,null,null,null,null,null,null,null,27000,null,null,null,null,null,null,null,null,6858,null,null,null,null,null,null,364,null,null,null,36001,null,150,null,null,null,null,null,null,null,null,null,null,null,48,48,null,2789,null,null,null,null,null,2000,null,null,"SA Monetary value (2dp) > 0.00"]
[55,"","PRO29","Other expenses",1092,1200,null,null,null,null,null,null,700,null,1200,null,2303,null,null,59,1200,null,null,null,null,31835,1337,null,1200,null,null,null,null,null,null,null,3278,null,null,621,null,null,2603,null,null,null,null,null,6890,null,1434,6890,null,null,null,4200,null,null,null,null,null,null,4200,null,null,null,null,1876,null,null,null,null,null,4200,null,null,null,null,null,16917,6890,null,null,null,null,4200,27,149,null,null,null,null,null,null,199,null,null,325,null,null,null,null,null,6890,6890,null,27,null,null,null,null,null,null,null,null,null,27,null,null,null,null,null,null,null,null,null,null,487,null,null,null,null,null,null,null,null,null,null,null,3000,null,null,null,null,2248.81,35,352,null,null,3656.18,null,null,null,null,null,null,null,null,null,null,null,4200,null,null,null,null,null,null,null,null,null,null,null,null,null,6890,6890,null,null,null,null,null,null,null,null,null,3000,3000,null,null,null,null,null,null,null,null,null,null,null,null,null,null,null,null,null,27,null,null,null,null,null,47197,null,4200,7350,null,null,null,null,null,null,null,null,null,null,null,325,null,null,null,null,null,null,1115,null,null,null,null,null,null,null,null,293,null,null,null,null,null,null,1134,null,null,260,5971,2147,null,61,null,4247,null,null,null,null,null,446,null,1230,null,null,null,285,299,null,null,null,null,129,null,null,"SA Monetary value (2dp) > 0.00"]
[56,"","PRO30","Private use proportions",null,null,null,null,null,null,null,null,null,null,null,null,null,null,null,null,null,null,null,null,null,null,null,null,null,null,null,null,null,null,null,null,null,null,null,null,null,null,null,null,null,null,null,null,null,null,null,null,null,null,null,null,null,null,null,null,null,null,null,null,null,null,null,null,null,null,null,null,null,null,null,null,null,null,null,370,null,null,null,null,null,null,370,null,null,null,null,null,null,null,null,null,null,null,null,null,null,null,null,null,null,null,370,null,null,null,null,null,null,null,null,null,370,null,null,null,null,null,null,null,null,null,null,null,null,null,null,null,null,null,null,null,null,null,null,null,null,null,null,null,null,null,null,null,null,null,null,1142,null,null,null,null,null,null,null,null,null,null,null,null,null,null,null,null,null,null,null,null,null,null,null,null,null,null,null,null,null,null,null,null,null,null,null,null,null,null,null,1150,null,null,null,null,null,null,null,null,null,null,null,null,null,370,null,null,null,null,null,null,null,null,null,null,null,null,null,null,null,null,null,null,null,null,null,null,null,null,null,null,null,null,null,null,null,null,null,null,null,null,null,null,null,null,null,null,null,null,null,null,null,null,null,null,null,null,null,null,null,null,null,null,null,null,790,null,null,null,null,null,null,null,null,null,null,null,null,"SA Monetary value (2dp) > 0.00"]
[57,"","PRO31","Balancing charges",null,null,null,null,null,null,null,null,null,null,null,null,null,null,null,null,null,null,null,null,null,null,null,null,null,null,null,null,null,null,null,null,null,null,null,null,null,null,null,null,null,null,null,null,null,null,null,null,null,null,null,null,null,null,null,null,null,null,null,null,null,null,null,null,null,null,null,null,null,null,null,622,null,null,null,367,null,null,null,null,null,null,1189,null,null,null,null,null,null,null,null,null,null,null,null,null,null,null,null,null,null,null,1189,null,null,null,null,null,1521,null,null,1521,1189,null,null,null,null,null,null,null,null,null,null,null,null,null,null,null,null,null,null,null,null,null,null,null,null,null,null,null,null,null,null,null,null,null,null,null,null,null,null,null,null,null,null,null,null,null,null,null,null,null,null,null,null,null,null,null,null,null,null,null,null,null,null,null,null,null,null,null,null,null,null,null,null,null,null,null,null,null,null,null,null,null,null,null,null,null,null,null,null,1189,null,null,null,1521,null,null,null,null,null,null,null,null,null,null,null,null,null,null,null,null,null,null,null,null,null,null,null,null,null,null,null,null,null,null,null,null,null,null,null,null,null,null,null,null,null,null,null,null,null,null,null,null,null,null,null,null,null,null,null,null,null,null,null,null,null,null,null,null,null,null,null,null,"a) Total of PRO20, PRO22, PRO23, PRO31 must not exceed £150,000 (Cash basis threshold) if PRO20.2 absent\nb) Total of PRO20, PRO22, PRO23, PRO31 must not exceed £150,000 (Cash basis threshold) if PRO5.2 is absent but PRO18 is present\nc) PRO20.1 must be less than or equal to the sum of PRO20, PRO22, PRO23 & PRO31","SA Monetary value (2dp) > 0.00"]
[58,"","PRO32","Investment allowance",null,null,null,null,null,null,null,null,null,null,null,null,null,null,null,null,null,null,null,null,null,null,null,null,null,null,null,null,null,null,null,null,null,null,null,null,null,null,null,null,null,null,null,null,null,null,null,null,null,null,null,null,null,null,null,null,null,null,null,null,null,null,null,null,null,null,null,null,null,null,null,1540,null,null,null,750000,null,null,null,null,null,null,1540,null,null,null,null,null,null,null,null,null,null,null,null,null,null,null,null,null,null,null,1540,null,null,null,null,null,3621,null,null,3621,1540,null,null,null,null,null,null,null,null,null,null,null,null,null,null,null,null,null,null,null,null,null,null,null,null,null,null,null,null,null,null,null,null,2877.55,null,null,null,null,null,null,null,null,null,null,null,null,null,null,null,null,null,null,null,null,null,null,null,null,null,null,null,null,null,null,null,null,null,null,null,null,null,null,null,null,null,null,null,null,null,null,null,null,null,null,null,null,null,null,null,1540,null,null,null,3621,null,null,null,null,null,null,null,null,null,null,null,null,null,null,null,3621,null,null,null,null,null,null,null,null,null,null,null,null,null,null,null,null,null,null,null,null,null,null,null,null,null,null,null,481,null,null,null,null,null,null,null,null,null,null,null,null,650,null,null,null,null,null,null,null,null,null,null,null,"a) If present, must be less than or equal to £400,000*b) If present, PRO5.2, PRO20.2 & PRO18 must be absent\nc)  If present, PRO20.1 must be absent","SA Monetary value (2dp) > 0.00"]
[59,"","PRO33","The Structures and Buildings Allowance",null,null,null,null,null,null,null,null,null,null,null,null,null,null,null,null,null,null,null,null,null,null,null,null,null,null,null,null,null,null,null,null,null,null,null,null,null,null,null,null,null,null,null,null,null,null,null,null,null,null,null,null,null,null,null,null,null,null,null,null,null,null,null,null,null,null,null,null,null,null,null,null,null,null,null,3000,null,null,null,null,null,null,null,null,null,null,null,null,null,null,null,null,null,null,null,null,null,null,null,null,null,null,null,null,null,null,null,null,null,null,null,null,null,null,null,null,null,null,null,null,null,null,null,null,null,null,null,null,null,null,null,null,null,null,null,null,null,null,null,null,null,null,null,null,null,null,null,null,null,null,null,null,null,null,null,null,null,null,null,null,null,null,null,null,null,null,null,null,null,null,null,null,null,null,null,null,null,null,null,null,null,null,null,null,null,null,null,null,null,null,null,null,null,null,null,null,null,null,null,null,null,null,null,null,null,null,null,null,null,null,null,null,null,null,null,null,null,null,null,null,null,null,null,null,null,null,null,null,null,null,null,null,null,null,null,null,null,null,null,null,null,null,null,null,null,null,null,null,null,null,null,null,null,null,null,null,null,null,null,null,null,null,null,null,null,null,null,null,null,null,null,null,null,null,null,"SA Monetary value (2dp) >= 0.00"]
[60,{"$f":"IF(PRO_IND>1,IF(HLOOKUP(PRO_IND-1,PRO_RANGE,A60)=\"\",\"\",HLOOKUP(PRO_IND-1,PRO_RANGE,A60)),\"\")","v":""},"PRO33.1","Electric charge-point allowance",null,null,null,null,null,null,null,null,null,null,null,null,null,null,null,null,null,null,null,null,null,null,null,null,null,null,null,null,null,null,null,null,null,null,null,null,null,null,null,null,250,null,null,null,null,null,null,null,null,null,null,null,null,null,null,null,null,null,null,null,null,null,null,null,null,null,null,null,null,null,null,null,null,null,null,10299]
[61,"","PRO33.2"," Freeport Structures and Buildings Allowance",null,null,null,null,null,null,null,null,null,null,null,null,null,null,null,null,null,null,null,null,null,null,null,null,null,null,null,null,null,null,null,null,null,null,null,null,null,null,null,null,1551,null,null,null,null,null,null,null,null,null,null,null,null,null,null,null,null,null,null,null,null,null,null,null,null,null,null,null,null,null,null,null,null,null,null,null,null,null,null,null,null,null,null,null,null,null,null,null,null,null,null,null,null,null,null,null,null,null,null,null,null,null,null,null,null,null,null,null,null,null,null,null,null,null,null,null,null,null,null,null,null,null,null,null,null,null,null,null,null,null,null,null,null,null,null,null,null,null,null,null,null,null,null,null,null,null,null,null,null,null,null,null,null,null,null,null,null,null,null,null,null,null,null,null,null,null,null,null,null,null,null,null,null,null,null,null,null,null,null,null,null,null,null,null,770]
[62,"","PRO34","Zero-emission goods vehicle allowance",null,null,null,null,null,null,null,null,null,null,null,null,null,null,null,null,null,null,null,null,null,null,null,null,null,null,null,null,null,null,null,null,null,null,null,null,null,null,null,null,null,null,null,null,null,null,null,null,null,null,null,null,null,null,null,null,null,null,null,null,null,null,null,null,null,null,null,null,null,null,null,null,null,null,null,null,null,null,null,null,null,null,null,null,null,null,null,null,null,null,null,null,null,null,null,null,null,null,null,null,null,null,null,null,null,null,null,null,null,null,null,null,null,null,null,null,null,null,null,null,null,null,null,null,null,null,null,null,null,null,null,null,null,null,null,null,null,null,null,null,null,null,null,null,null,null,null,null,null,null,null,null,null,null,null,null,null,null,null,null,null,null,null,null,null,null,null,null,null,null,null,null,null,null,null,null,null,null,null,null,null,null,null,null,null,null,null,null,null,null,null,null,null,null,null,null,null,null,null,null,null,null,null,null,null,null,null,null,null,null,null,null,null,null,null,null,null,null,null,null,null,null,null,null,null,null,null,null,null,null,null,null,null,null,null,null,null,null,null,null,null,null,null,null,null,null,null,null,null,null,null,null,null,null,null,null,null,null,null,null,null,null,null,null,null,null,null,null,null,null,null,null,null,null,null,"SA Monetary value (2dp) > 0.00"]
[63,"","PRO34.1","Zero-emission car allowance",null,null,null,null,null,null,null,null,null,null,null,null,null,null,null,null,null,null,null,null,null,null,null,null,null,null,null,null,null,null,null,null,null,null,null,null,null,null,null,null,741,null,null,null,null,null,null,null,null,null,null,null,null,null,null,null,null,null,null,null,null,null,null,null,null,null,null,null,null,null,null,null,null,null,null,null,null,null,null,null,null,null,null,null,null,null,null,null,null,null,null,null,null,null,null,null,null,null,null,null,null,null,null,null,null,null,null,null,null,null,null,null,null,null,null,null,null,null,null,null,null,null,null,null,null,null,null,null,null,null,null,null,null,null,null,null,null,null,null,null,null,null,null,null,null,null,null,null,null,null,null,null,null,null,null,null,null,null,null,null,null,null,null,null,null,null,null,null,null,null,null,null,null,null,null,null,null,null,null,null,null,null,null,null,880]
[64,"","PRO35","All other capital allowances",null,null,null,null,null,null,null,null,null,null,null,null,null,null,null,null,null,null,null,null,null,null,null,null,null,null,null,null,null,null,null,null,null,null,null,null,null,null,null,null,null,null,null,null,null,null,null,null,null,null,null,null,null,null,null,null,null,null,null,null,null,null,null,null,null,null,null,null,null,null,null,null,null,null,null,1420,null,null,null,null,null,null,1420,4419,null,null,null,null,null,null,null,null,null,1252,null,null,null,null,null,null,null,null,1420,null,null,null,null,null,null,null,null,null,1420,null,null,null,null,null,null,null,null,null,null,null,null,null,null,null,null,null,null,null,null,null,null,500,null,null,null,184,null,null,null,null,null,5106.33,null,null,null,null,null,null,null,null,null,null,null,null,null,null,null,null,null,null,null,null,null,null,null,null,null,null,null,1252,null,null,null,null,null,null,null,null,500,500,null,null,null,null,null,null,null,null,null,null,null,null,null,null,null,null,null,1420,null,null,null,48014,null,null,null,null,null,null,null,null,null,null,null,null,null,null,null,null,2252,null,null,null,null,null,null,null,null,null,null,null,null,null,null,null,null,null,null,null,null,null,null,null,null,null,null,null,null,null,null,null,null,null,null,null,null,null,null,null,null,null,null,null,null,null,null,null,null,null,null,null,null,"SA Monetary value (2dp) > 0.00"]
[65,"","PRO36","Costs of replacing domestic items – for residential lettings only",null,null,null,null,null,null,null,null,null,null,null,null,null,null,null,13171,null,null,null,null,null,null,null,null,null,null,null,null,null,null,null,null,null,null,null,null,null,null,null,null,null,null,null,null,null,null,null,null,null,null,null,null,null,null,null,null,null,null,null,null,null,null,null,null,null,null,null,null,null,null,null,770,null,null,null,null,null,null,null,null,null,null,770,1444,null,null,null,null,null,null,null,null,null,null,null,null,null,null,null,null,null,null,770,null,null,null,null,null,null,439,null,null,770,null,null,null,null,null,null,null,null,null,null,null,null,null,null,null,null,null,null,null,null,null,null,null,null,null,null,null,null,null,1155,null,null,null,null,null,null,null,null,null,null,null,null,null,null,null,null,null,null,null,null,null,null,null,null,null,null,null,null,null,null,null,null,null,null,null,null,null,null,null,null,null,null,null,null,null,null,null,null,null,null,null,null,null,null,null,null,null,null,770,null,null,null,null,null,5379,null,null,null,null,null,null,null,null,null,null,null,null,null,null,null,null,null,null,null,null,null,null,null,null,null,null,null,null,null,null,null,null,null,null,null,null,null,59,null,null,null,null,null,null,null,null,null,null,null,null,null,null,null,null,null,null,null,null,null,null,null,null,null,null,null,null,"If present, must be less than or equal to (PRO20 x 10%) + £1","SA Monetary value (2dp) > 0.00"]
[66,"","PRO37","Rent a room exempt amount",null,null,null,null,null,null,null,null,null,null,null,null,null,null,null,null,null,null,null,null,null,null,null,null,null,null,null,null,null,null,null,null,null,null,null,null,null,null,null,null,null,null,null,null,null,null,null,null,null,null,null,null,null,null,null,null,null,null,null,null,null,null,null,null,null,null,null,null,null,null,null,null,null,null,null,null,null,7500,null,null,null,null,null,null,null,null,null,null,null,null,3750,null,null,null,null,null,null,null,null,null,null,null,null,null,null,null,null,null,null,null,null,null,null,null,null,null,null,null,null,null,null,null,null,null,null,null,null,null,null,null,null,null,null,null,null,null,null,null,null,null,null,null,null,null,null,null,null,null,null,null,null,null,null,null,null,null,null,null,null,null,null,null,null,null,null,null,null,null,null,null,null,null,null,null,null,null,null,null,null,null,null,null,null,null,null,null,null,null,null,null,null,null,null,null,null,null,null,null,null,null,null,null,null,null,null,null,null,null,null,null,null,null,null,null,null,null,null,null,null,null,null,null,null,null,null,null,null,null,null,null,null,null,null,null,null,null,null,null,null,null,null,null,null,null,null,null,null,null,null,null,null,null,null,null,null,null,null,null,null,null,null,null,null,null,null,null,null,null,null,null,null,null,null,null,"a) If present PRO4 must be 'N'.\nb) If present, must be less than or equal to £7,500","SA Monetary value (2dp) > 0.00"]
[67,"","PRO38","Adjusted Profit for year",{"$f":"MAX(0,(E44+E48+E49+E56+E57)-(E50+E51+E52+E53+E54+E55+E58+E62+E64+E65+E66))","v":8498},{"$f":"MAX(0,(F44+F48+F49+F56+F57)-(F50+F51+F52+F53+F54+F55+F58+F62+F64+F65+F66))","v":15400},null,null,null,null,null,null,{"$f":"MAX(0,(M44+M48+M49+M56+M57)-(M50+M51+M52+M53+M54+M55+M58+M62+M64+M65+M66))","v":6600},null,{"$f":"MAX(0,(O44+O48+O49+O56+O57)-(O50+O51+O52+O53+O54+O55+O58+O62+O64+O65+O66))","v":5475},null,{"$f":"MAX(0,(Q44+Q48+Q49+Q56+Q57)-(Q50+Q51+Q52+Q53+Q54+Q55+Q58+Q62+Q64+Q65+Q66))","v":697},null,null,{"$f":"MAX(0,(T44+T48+T49+T56+T57)-(T50+T51+T52+T53+T54+T55+T58+T62+T64+T65+T66))","v":64207},{"$f":"MAX(0,(U44+U48+U49+U56+U57)-(U50+U51+U52+U53+U54+U55+U58+U62+U64+U65+U66))","v":14600},null,null,null,null,{"$f":"MAX(0,(Z44+Z48+Z49+Z56+Z57)-(Z50+Z51+Z52+Z53+Z54+Z55+Z58+Z62+Z64+Z65+Z66))","v":45497},{"$f":"MAX(0,(AA44+AA48+AA49+AA56+AA57)-(AA50+AA51+AA52+AA53+AA54+AA55+AA58+AA62+AA64+AA65+AA66))","v":5915},null,{"$f":"MAX(0,(AC44+AC48+AC49+AC56+AC57)-(AC50+AC51+AC52+AC53+AC54+AC55+AC58+AC62+AC64+AC65+AC66))","v":3600},null,{"$f":"MAX(0,(AE44+AE48+AE49+AE56+AE57)-(AE45+AE50+AE51+AE52+AE53+AE54+AE55+AE58+AE62+AE64+AE65+AE66))","v":9000},null,null,null,null,null,{"$f":"MAX(0,(AK44+AK48+AK49+AK56+AK57)-(AK45+AK50+AK51+AK52+AK53+AK54+AK55+AK58+AK62+AK64+AK65+AK66))","v":20895},null,null,{"$f":"MAX(0,(AN44+AN48+AN49+AN56+AN57)-(AN45+AN50+AN51+AN52+AN53+AN54+AN55+AN58+AN62+AN64+AN65+AN66))","v":10155},{"$f":"MAX(0,(AO44+AO48+AO49+AO56+AO57)-(AO45+AO50+AO51+AO52+AO53+AO54+AO55+AO58+AO62+AO64+AO65+AO66))","v":500},null,{"$f":"MAX(0,(AQ44+AQ48+AQ49+AQ56+AQ57)-(AQ45+AQ50+AQ51+AQ52+AQ53+AQ54+AQ55+AQ58+AQ62+AQ64+AQ65+AQ66))","v":0},null,{"$f":"MAX(0,(AS44+AS48+AS49+AS56+AS57)-(AS45+AS50+AS51+AS52+AS53+AS54+AS55+AS58+AS62+AS64+AS65+AS66+AS60+AS61+AS63))","v":166409},null,null,null,{"$f":"MAX(0,(AW44+AW48+AW49+AW56+AW57)-(AW50+AW51+AW52+AW53+AW54+AW55+AW58+AW62+AW64+AW65+AW66))","v":29276},null,{"$f":"MAX(0,(AY44+AY48+AY49+AY56+AY57)-(AY50+AY51+AY52+AY53+AY54+AY55+AY58+AY62+AY64+AY65+AY66))","v":10883},{"$f":"MAX(0,(AZ44+AZ48+AZ49+AZ56+AZ57)-(AZ50+AZ51+AZ52+AZ53+AZ54+AZ55+AZ58+AZ62+AZ64+AZ65+AZ66))","v":29276},null,{"$f":"MAX(0,(BB44+BB48+BB49+BB56+BB57)-(BB50+BB51+BB52+BB53+BB54+BB55+BB58+BB62+BB64+BB65+BB66))","v":14497},null,{"$f":"MAX(0,(BD44+BD48+BD49+BD56+BD57)-(BD50+BD51+BD52+BD53+BD54+BD55+BD58+BD62+BD64+BD65+BD66))","v":3600},null,null,{"$f":"MAX(0,(BG44+BG48+BG49+BG56+BG57)-(BG50+BG51+BG52+BG53+BG54+BG55+BG58+BG62+BG64+BG65+BG66))","v":0},null,null,null,{"$f":"MAX(0,(BK44+BK48+BK49+BK56+BK57)-(BK50+BK51+BK52+BK53+BK54+BK55+BK58+BK62+BK64+BK65+BK66))","v":57211},null,null,null,null,{"$f":"MAX(0,(BP44+BP48+BP49+BP56+BP57)-(BP50+BP51+BP52+BP53+BP54+BP55+BP58+BP62+BP64+BP65+BP66))","v":11061},null,null,null,null,null,{"$f":"MAX(0,(BV44+BV48+BV49+BV56+BV57)-(BV50+BV51+BV52+BV53+BV54+BV55+BV58+BV62+BV64+BV65+BV66))","v":19346},null,{"$f":"MAX(0,(BX44+BX48+BX49+BX56+BX57)-(BX50+BX51+BX52+BX53+BX54+BX55+BX58+BX62+BX64+BX65+BX66))","v":10393},null,null,null,{"$f":"MAX(0,(CB44+CB48+CB49+CB56+CB57)-(CB50+CB51+CB52+CB53+CB54+CB55+CB58+CB59+CB60+CB62+CB64+CB65+CB66))","v":251676},{"$f":"MAX(0,(CC44+CC48+CC49+CC56+CC57)-(CC50+CC51+CC52+CC53+CC54+CC55+CC58+CC62+CC64+CC65+CC66))","v":29276},7527,null,null,null,{"$f":"MAX(0,(CH44+CH48+CH49+CH56+CH57)-(CH50+CH51+CH52+CH53+CH54+CH55+CH58+CH62+CH64+CH65+CH66))","v":3600},{"$f":"MAX(0,(CI44+CI48+CI49+CI56+CI57)-(CI50+CI51+CI52+CI53+CI54+CI55+CI58+CI62+CI64+CI65+CI66))","v":21252},{"$f":"MAX(0,(CJ44+CJ48+CJ49+CJ56+CJ57)-(CJ50+CJ51+CJ52+CJ53+CJ54+CJ55+CJ58+CJ62+CJ64+CJ65+CJ66))","v":98479},null,null,null,{"$f":"MAX(0,(CN44+CN48+CN49+CN56+CN57)-(CN50+CN51+CN52+CN53+CN54+CN55+CN58+CN61+CN62+CN63+CN64+CN65+CN66))","v":161255},null,null,{"$f":"MAX(0,(CQ44+CQ48+CQ49+CQ56+CQ57)-(CQ50+CQ51+CQ52+CQ53+CQ54+CQ55+CQ58+CQ62+CQ64+CQ65+CQ66))","v":32238},{"$f":"MAX(0,(CR44+CR48+CR49+CR56+CR57)-(CR50+CR51+CR52+CR53+CR54+CR55+CR58+CR62+CR64+CR65+CR66))","v":36350},{"$f":"MAX(0,(CS44+CS48+CS49+CS56+CS57)-(CS50+CS51+CS52+CS53+CS54+CS55+CS58+CS62+CS64+CS65+CS66))","v":36350},{"$f":"MAX(0,(CT44+CT48+CT49+CT56+CT57)-(CT50+CT51+CT52+CT53+CT54+CT55+CT58+CT62+CT64+CT65+CT66))","v":10046},null,null,null,null,null,{"$f":"MAX(0,(CZ44+CZ48+CZ49+CZ56+CZ57)-(CZ50+CZ51+CZ52+CZ53+CZ54+CZ55+CZ58+CZ62+CZ64+CZ65+CZ66))","v":29276},{"$f":"MAX(0,(DA44+DA48+DA49+DA56+DA57)-(DA50+DA51+DA52+DA53+DA54+DA55+DA58+DA62+DA64+DA65+DA66))","v":29276},{"$f":"MAX(0,(DB44+DB48+DB49+DB56+DB57)-(DB50+DB51+DB52+DB53+DB54+DB55+DB58+DB62+DB64+DB65+DB66))","v":42017},{"$f":"MAX(0,(DC44+DC48+DC49+DC56+DC57)-(DC50+DC51+DC52+DC53+DC54+DC55+DC58+DC62+DC64+DC65+DC66))","v":18292},null,null,null,null,null,{"$f":"MAX(0,(DI44+DI48+DI49+DI56+DI57)-(DI50+DI51+DI52+DI53+DI54+DI55+DI58+DI62+DI64+DI65+DI66))","v":0},{"$f":"MAX(0,(DJ44+DJ48+DJ49+DJ56+DJ57)-(DJ50+DJ51+DJ52+DJ53+DJ54+DJ55+DJ58+DJ62+DJ64+DJ65+DJ66))","v":39867},null,{"$f":"MAX(0,(DL44+DL48+DL49+DL56+DL57)-(DL50+DL51+DL52+DL53+DL54+DL55+DL58+DL62+DL64+DL65+DL66))","v":0},{"$f":"MAX(0,(DM44+DM48+DM49+DM56+DM57)-(DM50+DM51+DM52+DM53+DM54+DM55+DM58+DM62+DM64+DM65+DM66))","v":18292},null,null,null,null,{"$f":"MAX(0,(DR44+DR48+DR49+DR56+DR57)-(DR50+DR51+DR52+DR53+DR54+DR55+DR58+DR62+DR64+DR65+DR66))","v":29658},null,null,null,null,{"$f":"MAX(0,(DW44+DW48+DW49+DW56+DW57)-(DW50+DW51+DW52+DW53+DW54+DW55+DW58+DW62+DW64+DW65+DW66))","v":2649},{"$f":"MAX(0,(DX44+DX48+DX49+DX56+DX57)-(DX50+DX51+DX52+DX53+DX54+DX55+DX58+DX62+DX64+DX65+DX66))","v":2091.64},3800,null,null,{"$f":"MAX(0,(EB44+EB48+EB49+EB56+EB57)-(EB50+EB51+EB52+EB53+EB54+EB55+EB58+EB62+EB64+EB65+EB66))","v":10360},null,null,25595,null,null,3500,null,{"$f":"MAX(0,(EJ44+EJ48+EJ49+EJ56+EJ57)-(EJ50+EJ51+EJ52+EJ53+EJ54+EJ55+EJ58+EJ62+EJ64+EJ65+EJ66))","v":4500},null,null,null,{"$f":"MAX(0,(EN44+EN48+EN49+EN56+EN57)-(EN50+EN51+EN52+EN53+EN54+EN55+EN58+EN62+EN64+EN65+EN66))","v":72710},{"$f":"MAX(0,(EO44+EO48+EO49+EO56+EO57)-(EO50+EO51+EO52+EO53+EO54+EO55+EO58+EO62+EO64+EO65+EO66))","v":21553.19},929,13534,null,null,{"$f":"MAX(0,(ET44+ET48+ET49+ET56+ET57)-(ET50+ET51+ET52+ET53+ET54+ET55+ET58+ET62+ET64+ET65+ET66))","v":0},{"$f":"MAX(0,(EU44+EU48+EU49+EU56+EU57)-(EU50+EU51+EU52+EU53+EU54+EU55+EU58+EU62+EU64+EU65+EU66))","v":36350},{"$f":"MAX(0,(EV44+EV48+EV49+EV56+EV57)-(EV50+EV51+EV52+EV53+EV54+EV55+EV58+EV62+EV64+EV65+EV66))","v":30614},0,0,0,87874,0,0,0,0,0,3600,0,0,0,null,null,null,null,null,null,null,null,null,null,{"$f":"MAX(0,(FT44+FT48+FT49+FT56+FT57)-(FT50+FT51+FT52+FT53+FT54+FT55+FT58+FT62+FT64+FT65+FT66))","v":29276},{"$f":"MAX(0,(FU44+FU48+FU49+FU56+FU57)-(FU50+FU51+FU52+FU53+FU54+FU55+FU58+FU62+FU64+FU65+FU66))","v":29276},{"$f":"MAX(0,(FV44+FV48+FV49+FV56+FV57)-(FV50+FV51+FV52+FV53+FV54+FV55+FV58+FV62+FV64+FV65+FV66))","v":10046},null,{"$f":"MAX(0,(FX44+FX48+FX49+FX56+FX57)-(FX50+FX51+FX52+FX53+FX54+FX55+FX58+FX62+FX64+FX65+FX66))","v":36350},null,null,null,null,null,null,{"$f":"MAX(0,(GE44+GE48+GE49+GE56+GE57)-(GE50+GE51+GE52+GE53+GE54+GE55+GE58+GE62+GE64+GE65+GE66))","v":4500},{"$f":"MAX(0,(GF44+GF48+GF49+GF56+GF57)-(GF50+GF51+GF52+GF53+GF54+GF55+GF58+GF62+GF64+GF65+GF66))","v":4500},{"$f":"MAX(0,(GG44+GG48+GG49+GG56+GG57)-(GG50+GG51+GG52+GG53+GG54+GG55+GG58+GG61+GG62+GG63+GG64+GG65+GG66))","v":36350},null,null,{"$f":"MAX(0,(GJ44+GJ48+GJ49+GJ56+GJ57)-(GJ50+GJ51+GJ52+GJ53+GJ54+GJ55+GJ58+GJ62+GJ64+GJ65+GJ66))","v":30625},null,null,null,null,null,null,null,null,null,null,null,null,{"$f":"MAX(0,(GW44+GW48+GW49+GW56+GW57)-(GW50+GW51+GW52+GW53+GW54+GW55+GW58+GW62+GW64+GW65+GW66))","v":36350},{"$f":"MAX(0,(GX44+GX48+GX49+GX56+GX57)-(GX50+GX51+GX52+GX53+GX54+GX55+GX58+GX62+GX64+GX65+GX66))","v":18292},null,null,null,34947,null,{"$f":"MAX(0,(HD44+HD48+HD49+HD56+HD57)-(HD50+HD51+HD52+HD53+HD54+HD55+HD58+HD62+HD64+HD65+HD66))","v":1204},null,{"$f":"MAX(0,(HF44+HF48+HF49+HF56+HF57)-(HF50+HF51+HF52+HF53+HF54+HF55+HF58+HF62+HF64+HF65+HF66))","v":3600},{"$f":"MAX(0,(HG44+HG48+HG49+HG56+HG57)-(HG50+HG51+HG52+HG53+HG54+HG55+HG58+HG62+HG64+HG65+HG66))","v":0},null,null,null,null,null,null,null,null,null,null,{"$f":"MAX(0,(HR44+HR48+HR49+HR56+HR57)-(HR50+HR51+HR52+HR53+HR54+HR55+HR58+HR62+HR64+HR65+HR66))","v":0},{"$f":"MAX(0,(HS44+HS48+HS49+HS56+HS57)-(HS50+HS51+HS52+HS53+HS54+HS55+HS58+HS62+HS64+HS65+HS66))","v":2162},{"$f":"MAX(0,(HT44+HT48+HT49+HT56+HT57)-(HT50+HT51+HT52+HT53+HT54+HT55+HT58+HT62+HT64+HT65+HT66))","v":6884},null,null,null,null,null,{"$f":"MAX(0,(HZ44+HZ48+HZ49+HZ56+HZ57)-(HZ50+HZ51+HZ52+HZ53+HZ54+HZ55+HZ58+HZ62+HZ64+HZ65+HZ66))","v":120789},null,null,null,{"$f":"MAX(0,(ID44+ID48+ID49+ID56+ID57)-(ID50+ID51+ID52+ID53+ID54+ID55+ID58+ID62+ID64+ID65+ID66))","v":0},0,9512.5,null,null,{"$f":"MAX(0,(II44+II48+II49+II56+II57)-(II50+II51+II52+II53+II54+II55+II58+II62+II64+II65+II66))","v":8289},{"$f":"MAX(0,(IJ44+IJ48+IJ49+IJ56+IJ57)-(IJ50+IJ51+IJ52+IJ53+IJ54+IJ55+IJ58+IJ62+IJ64+IJ65+IJ66))","v":5186.05},null,null,null,null,{"$f":"MAX(0,(IO44+IO48+IO49+IO56+IO57)-(IO50+IO51+IO52+IO53+IO54+IO55+IO58+IO62+IO64+IO65+IO66))","v":2551},{"$f":"MAX(0,(IP44+IP48+IP49+IP56+IP57)-(IP50+IP51+IP52+IP53+IP54+IP55+IP58+IP62+IP64+IP65+IP66))","v":91831},null,null,{"$f":"MAX(0,(IS44+IS48+IS49+IS56+IS57)-(IS50+IS51+IS52+IS53+IS54+IS55+IS58+IS62+IS64+IS65+IS66))","v":1013},{"$f":"MAX(0,(IT44+IT48+IT49+IT56+IT57)-(IT50+IT51+IT52+IT53+IT54+IT55+IT58+IT62+IT64+IT65+IT66))","v":58249},{"$f":"MAX(0,(IU44+IU48+IU49+IU56+IU57)-(IU50+IU51+IU52+IU53+IU54+IU55+IU58+IU62+IU64+IU65+IU66))","v":7447},{"$f":"MAX(0,(IV44+IV48+IV49+IV56+IV57)-(IV50+IV51+IV52+IV53+IV54+IV55+IV58+IV62+IV64+IV65+IV66))","v":7067},{"$f":"MAX(0,(IW44+IW48+IW49+IW56+IW57)-(IW50+IW51+IW52+IW53+IW54+IW55+IW58+IW62+IW64+IW65+IW66))","v":14053},null,{"$f":"MAX(0,(IY44+IY48+IY49+IY56+IY57)-(IY50+IY51+IY52+IY53+IY54+IY55+IY58+IY62+IY64+IY65+IY66))","v":0},null,null,null,null,null,{"$f":"MAX(0,(JE44+JE48+JE49+JE56+JE57)-(JE50+JE51+JE52+JE53+JE54+JE55+JE58+JE62+JE64+JE65+JE66))","v":1315},null,{"$f":"MAX(0,(JG44+JG48+JG49+JG56+JG57)-(JG50+JG51+JG52+JG53+JG54+JG55+JG58+JG62+JG64+JG65+JG66))","v":3882},{"$f":"MAX(0,(JH44+JH48+JH49+JH56+JH57)-(JH50+JH51+JH52+JH53+JH54+JH55+JH58+JH62+JH64+JH65+JH66))","v":18449},{"$f":"MAX(0,(JI44+JI48+JI49+JI56+JI57)-(JI50+JI51+JI52+JI53+JI54+JI55+JI58+JI62+JI64+JI65+JI66))","v":18449},null,{"$f":"MAX(0,(JK44+JK48+JK49+JK56+JK57)-(JK50+JK51+JK52+JK53+JK54+JK55+JK58+JK62+JK64+JK65+JK66))","v":1082},{"$f":"MAX(0,(JL44+JL48+JL49+JL56+JL57)-(JL50+JL51+JL52+JL53+JL54+JL55+JL58+JL62+JL64+JL65+JL66))","v":73048},null,null,null,null,{"$f":"MAX(0,(JQ44+JQ48+JQ49+JQ56+JQ57)-(JQ50+JQ51+JQ52+JQ53+JQ54+JQ55+JQ58+JQ62+JQ64+JQ65+JQ66))","v":67185},null,"a) If (PRO20 + PRO22 + PRO23 + PRO30 + PRO31 minus (PRO15 + PRO24 + PRO25 + PRO26 + PRO27 + PRO28 + PRO29 + PRO32 + PRO33 + PRO34 + PRO36 + PRO37)) is positive, then PRO38 equals that sum.\nb) cannot be negative","SA Monetary value (2dp) >= 0.00"]
[68,"","PRO39","Loss B/F from P/Y",1022,2700,null,null,null,null,null,null,null,null,null,null,697,null,null,1197,null,null,null,null,null,null,null,null,null,null,null,null,null,null,null,null,null,null,null,null,null,null,null,null,165400,null,null,null,2691,null,null,2691,null,null,null,null,null,null,null,null,null,null,null,null,null,null,null,null,null,null,null,null,null,null,null,7462,null,null,null,null,2691,null,null,null,null,null,null,null,null,null,null,null,null,null,null,null,null,null,null,null,null,null,null,2691,2691,null,7462,null,null,null,null,null,null,null,null,null,7462,null,null,null,null,null,null,null,null,null,null,null,null,null,null,null,null,null,null,null,null,null,null,null,null,null,null,null,null,null,null,null,null,null,null,null,null,null,null,null,null,null,null,null,null,null,null,null,null,null,null,null,null,null,null,null,null,null,null,2691,2691,null,null,null,null,null,null,null,null,null,null,null,null,null,null,null,null,null,null,null,null,null,null,null,null,null,null,null,null,7462,null,null,null,null,null,1204,null,null,null,null,null,null,null,null,null,null,null,null,null,null,null,null,null,null,null,null,null,30000,null,null,null,null,null,null,null,null,null,null,null,null,null,null,null,null,null,null,null,58249,7447,null,null,null,null,null,null,null,null,null,null,null,null,null,null,null,null,null,null,null,null,null,1798,null,"If present, must be less than or equal to PRO38","SA Monetary value (2dp) > 0.00"]
[69,"","PRO40","Taxable Profit",{"$f":"MAX(0,E67-E68)","v":7476},{"$f":"MAX(0,F67-F68)","v":12700},null,null,null,null,null,null,{"$f":"MAX(0,M67-M68)","v":6600},null,{"$f":"MAX(0,O67-O68)","v":5475},null,{"$f":"MAX(0,Q67-Q68)","v":0},null,null,{"$f":"MAX(0,T67-T68)","v":63010},{"$f":"MAX(0,U67-U68)","v":14600},null,null,null,null,{"$f":"MAX(0,Z67-Z68)","v":45497},{"$f":"MAX(0,AA67-AA68)","v":5915},null,{"$f":"MAX(0,AC67-AC68)","v":3600},null,{"$f":"MAX(0,AE67-AE68)","v":9000},null,null,null,null,null,{"$f":"MAX(0,AK67-AK68)","v":20895},null,null,{"$f":"MAX(0,AN67-AN68)","v":10155},{"$f":"MAX(0,AO67-AO68)","v":500},null,{"$f":"MAX(0,AQ67-AQ68)","v":0},null,{"$f":"MAX(0,AS67-AS68)","v":1009},null,null,null,{"$f":"MAX(0,AW67-AW68)","v":26585},null,{"$f":"MAX(0,AY67-AY68)","v":10883},{"$f":"MAX(0,AZ67-AZ68)","v":26585},null,{"$f":"MAX(0,BB67-BB68)","v":14497},null,{"$f":"MAX(0,BD67-BD68)","v":3600},null,null,{"$f":"MAX(0,BG67-BG68)","v":0},null,null,null,{"$f":"MAX(0,BK67-BK68)","v":57211},null,null,null,null,{"$f":"MAX(0,BP67-BP68)","v":11061},null,null,null,null,null,{"$f":"MAX(0,BV67-BV68)","v":19346},null,{"$f":"MAX(0,BX67-BX68)","v":2931},null,null,null,{"$f":"MAX(0,CB67-CB68)","v":251676},{"$f":"MAX(0,CC67-CC68)","v":26585},{"$f":"MAX(0,CD67-CD68)","v":7527},null,null,null,{"$f":"MAX(0,CH67-CH68)","v":3600},{"$f":"MAX(0,CI67-CI68)","v":21252},{"$f":"MAX(0,CJ67-CJ68)","v":98479},null,null,null,{"$f":"MAX(0,CN67-CN68)","v":161255},null,null,{"$f":"MAX(0,CQ67-CQ68)","v":32238},{"$f":"MAX(0,CR67-CR68)","v":36350},{"$f":"MAX(0,CS67-CS68)","v":36350},{"$f":"MAX(0,CT67-CT68)","v":10046},null,null,null,null,null,{"$f":"MAX(0,CZ67-CZ68)","v":26585},{"$f":"MAX(0,DA67-DA68)","v":26585},{"$f":"MAX(0,DB67-DB68)","v":42017},{"$f":"MAX(0,DC67-DC68)","v":10830},null,null,null,null,null,{"$f":"MAX(0,DI67-DI68)","v":0},{"$f":"MAX(0,DJ67-DJ68)","v":39867},null,{"$f":"MAX(0,DL67-DL68)","v":0},{"$f":"MAX(0,DM67-DM68)","v":10830},null,null,null,null,{"$f":"MAX(0,DR67-DR68)","v":29658},null,null,null,null,{"$f":"MAX(0,DW67-DW68)","v":2649},{"$f":"MAX(0,DX67-DX68)","v":2091.64},3800,0,0,10360,null,null,25595,null,null,3500,0,{"$f":"MAX(0,EJ67-EJ68)","v":4500},null,null,null,{"$f":"MAX(0,EN67-EN68)","v":72710},{"$f":"MAX(0,EO67-EO68)","v":21553.19},929,13534,null,null,0,{"$f":"MAX(0,EU67-EU68)","v":36350},{"$f":"MAX(0,EV67-EV68)","v":30614},{"$f":"MAX(0,EW67-EW68)","v":0},{"$f":"MAX(0,EX67-EX68)","v":0},{"$f":"MAX(0,EY67-EY68)","v":0},{"$f":"MAX(0,EZ67-EZ68)","v":87874},{"$f":"MAX(0,FA67-FA68)","v":0},{"$f":"MAX(0,FB67-FB68)","v":0},{"$f":"MAX(0,FC67-FC68)","v":0},{"$f":"MAX(0,FD67-FD68)","v":0},{"$f":"MAX(0,FE67-FE68)","v":0},{"$f":"MAX(0,FF67-FF68)","v":3600},{"$f":"MAX(0,FG67-FG68)","v":0},{"$f":"MAX(0,FH67-FH68)","v":0},{"$f":"MAX(0,FI67-FI68)","v":0},{"$f":"MAX(0,FJ67-FJ68)","v":0},null,null,null,null,null,null,null,null,null,{"$f":"MAX(0,FT67-FT68)","v":26585},{"$f":"MAX(0,FU67-FU68)","v":26585},{"$f":"MAX(0,FV67-FV68)","v":10046},null,{"$f":"MAX(0,FX67-FX68)","v":36350},null,null,null,null,null,null,{"$f":"MAX(0,GE67-GE68)","v":4500},{"$f":"MAX(0,GF67-GF68)","v":4500},{"$f":"MAX(0,GG67-GG68)","v":36350},null,null,{"$f":"MAX(0,GJ67-GJ68)","v":30625},null,null,null,null,null,null,null,null,null,null,null,null,{"$f":"MAX(0,GW67-GW68)","v":36350},{"$f":"MAX(0,GX67-GX68)","v":10830},null,null,null,{"$f":"MAX(0,HB67-HB68)","v":34947},null,{"$f":"MAX(0,HD67-HD68)","v":0},null,{"$f":"MAX(0,HF67-HF68)","v":3600},{"$f":"MAX(0,HG67-HG68)","v":0},null,null,null,null,null,null,null,null,null,null,{"$f":"MAX(0,HR67-HR68)","v":0},{"$f":"MAX(0,HS67-HS68)","v":2162},{"$f":"MAX(0,HT67-HT68)","v":6884},null,null,null,null,null,{"$f":"MAX(0,HZ67-HZ68)","v":90789},null,null,null,null,null,{"$f":"MAX(0,IF67-IF68)","v":9512.5},null,null,{"$f":"MAX(0,II67-II68)","v":8289},{"$f":"MAX(0,IJ67-IJ68)","v":5186.05},null,null,null,null,{"$f":"MAX(0,IO67-IO68)","v":2551},{"$f":"MAX(0,IP67-IP68)","v":91831},null,null,{"$f":"MAX(0,IS67-IS68)","v":1013},{"$f":"MAX(0,IT67-IT68)","v":0},{"$f":"MAX(0,IU67-IU68)","v":0},{"$f":"MAX(0,IV67-IV68)","v":7067},{"$f":"MAX(0,IW67-IW68)","v":14053},null,{"$f":"MAX(0,IY67-IY68)","v":0},null,null,null,null,null,{"$f":"MAX(0,JE67-JE68)","v":1315},null,{"$f":"MAX(0,JG67-JG68)","v":3882},{"$f":"MAX(0,JH67-JH68)","v":18449},{"$f":"MAX(0,JI67-JI68)","v":18449},null,{"$f":"MAX(0,JK67-JK68)","v":1082},{"$f":"MAX(0,JL67-JL68)","v":73048},null,null,null,null,{"$f":"MAX(0,JQ67-JQ68)","v":65387},null,"a) Equal to PRO38 minus PRO39\nb) cannot be negative","SA Monetary value (2dp) >= 0.00"]
[70,"","PRO41","Adjusted loss",{"$f":"MAX(0,(E50+E51+E52+E53+E54+E55+E58+E59+E62+E64+E65+E66)-(E44+E48+E49+E56+E57))","v":0},{"$f":"MAX(0,(F50+F51+F52+F53+F54+F55+F58+F59+F62+F64+F65+F66)-(F44+F48+F49+F56+F57))","v":0},null,null,null,null,null,null,{"$f":"MAX(0,(M50+M51+M52+M53+M54+M55+M58+M59+M62+M64+M65+M66)-(M44+M48+M49+M56+M57))","v":0},null,{"$f":"MAX(0,(O50+O51+O52+O53+O54+O55+O58+O59+O62+O64+O65+O66)-(O44+O48+O49+O56+O57))","v":0},null,0,null,null,0,0,null,null,null,null,0,0,null,0,null,0,null,null,null,null,null,0,null,null,0,0,null,820,null,0,null,null,null,0,null,0,0,null,0,null,0,null,null,0,null,null,null,0,null,null,null,null,0,null,null,null,{"$f":"MAX(0,(BT50+BT51+BT52+BT53+BT54+BT55+BT58+BT59+BT62+BT64+BT65+BT66)-(BT44+BT48+BT49+BT56+BT57))","v":0},null,0,null,0,null,null,null,0,0,0,null,null,null,0,0,null,null,null,null,0,null,null,0,0,0,0,null,null,null,null,null,0,0,0,0,null,null,null,null,null,3884,0,null,3884,0,null,null,null,null,0,null,null,null,null,0,0,0,0,0,0,null,null,{"$f":"MAX(0,(EE50+EE51+EE52+EE53+EE54+EE55+EE58+EE59+EE62+EE64+EE65+EE66)-(EE44+EE48+EE49+EE56+EE57))","v":0},null,null,0,0,0,null,null,null,0,0,0,0,null,null,1139415.7599999998,0,0,0,0,0,0,0,0,0,0,0,0,0,0,0,0,null,null,null,null,null,null,null,null,null,null,null,0,null,null,null,null,null,null,null,null,null,null,null,null,null,0,null,null,null,null,null,null,null,null,null,null,null,null,null,null,null,null,null,{"$f":"MAX(0,(HB50+HB51+HB52+HB53+HB54+HB55+HB58+HB59+HB62+HB64+HB65+HB66)-(HB44+HB48+HB49+HB56+HB57))","v":10385},null,null,null,null,17910,null,null,null,null,null,null,null,null,null,null,27801,null,null,null,null,null,null,null,0,null,null,null,0,0,0,null,null,0,0,null,null,null,null,0,0,null,null,0,0,0,0,0,null,1830,null,null,null,null,null,{"$f":"MAX(0,(JE50+JE51+JE52+JE53+JE54+JE55+JE58+JE59+JE62+JE64+JE65+JE66)-(JE44+JE48+JE49+JE56+JE57))","v":0},null,0,0,0,null,0,0,null,null,null,null,0,null,"a) If (PRO24 + PRO25 + PRO26 + PRO27 + PRO28 + PRO29 + PRO32 + PRO33 + PRO34 + PRO36 + PRO37 minus (PRO20 + PRO22 + PRO23 + PRO30 + PRO31)) is positive, then PRO41 equals that sum.\nb) cannot be negative","SA Monetary value (2dp) >= 0.00"]
[71,"","PRO42","Loss set off against total income of the year",null,null,null,null,null,null,null,null,null,null,null,null,null,null,null,null,null,null,null,null,null,null,null,null,null,null,null,null,null,null,null,null,null,null,null,null,null,null,null,null,null,null,null,null,null,null,null,null,null,null,null,null,null,null,null,null,null,null,null,null,null,null,null,null,null,null,null,null,null,null,null,null,null,null,null,null,null,null,null,null,null,null,null,null,null,null,null,null,null,null,null,null,null,null,null,null,null,null,null,null,null,null,null,null,null,null,null,null,2100,null,null,2100,null,null,null,null,null,null,null,null,null,null,null,null,null,null,null,null,null,null,null,null,null,null,null,null,null,null,null,null,null,null,null,null,null,null,null,null,null,null,null,null,null,null,null,null,null,null,null,null,null,null,null,null,null,null,null,null,null,null,null,null,null,null,null,null,null,null,null,null,null,null,null,null,null,null,null,null,null,null,null,null,null,null,null,null,null,null,null,null,null,null,null,null,null,null,null,null,null,null,17910,null,null,null,null,null,null,null,null,null,null,27801,null,null,null,null,null,null,null,null,null,null,null,null,null,null,null,null,null,null,null,null,null,null,null,null,null,null,null,null,null,null,null,null,null,null,null,null,null,null,null,null,null,null,null,null,null,null,null,null,null,null,null,null,"a) If present, PRO20.2 must be absent","SA Monetary value (2dp) > 0.00"]
[72,"","PRO43","Loss to carry forward to following year",{"$f":"MAX(0,(E68-E67)+(E70-E71))","v":0},0,null,null,null,null,null,null,{"$f":"MAX(0,(M68-M67)+(M70-M71))","v":0},null,{"$f":"MAX(0,(O68-O67)+(O70-O71))","v":0},null,0,null,null,0,{"$f":"MAX(0,(U68-U67)+(U70-U71))","v":0},null,null,null,null,{"$f":"MAX(0,(Z68-Z67)+(Z70-Z71))","v":0},{"$f":"MAX(0,(AA68-AA67)+(AA70-AA71))","v":0},null,{"$f":"MAX(0,(AC68-AC67)+(AC70-AC71))","v":0},null,0,null,null,null,null,null,{"$f":"MAX(0,(AK68-AK67)+(AK70-AK71))","v":0},null,null,{"$f":"MAX(0,(AN68-AN67)+(AN70-AN71))","v":0},{"$f":"MAX(0,(AO68-AO67)+(AO70-AO71))","v":0},null,{"$f":"MAX(0,(AQ68-AQ67)+(AQ70-AQ71))","v":820},null,{"$f":"MAX(0,(AS68-AS67)+(AS70-AS71))","v":0},null,null,null,{"$f":"MAX(0,(AW68-AW67)+(AW70-AW71))","v":0},null,{"$f":"MAX(0,(AY68-AY67)+(AY70-AY71))","v":0},{"$f":"MAX(0,(AZ68-AZ67)+(AZ70-AZ71))","v":0},null,{"$f":"MAX(0,(BB68-BB67)+(BB70-BB71))","v":0},{"$f":"MAX(0,(BC68-BC67)+(BC70-BC71))","v":0},{"$f":"MAX(0,(BD68-BD67)+(BD70-BD71))","v":0},null,null,{"$f":"MAX(0,(BG68-BG67)+(BG70-BG71))","v":0},null,null,null,{"$f":"MAX(0,(BK68-BK67)+(BK70-BK71))","v":0},null,null,null,null,{"$f":"MAX(0,(BP68-BP67)+(BP70-BP71))","v":0},null,null,null,0,null,{"$f":"MAX(0,(BV68-BV67)+(BV70-BV71))","v":0},null,{"$f":"MAX(0,(BX68-BX67)+(BX70-BX71))","v":0},null,null,null,{"$f":"MAX(0,(CB68-CB67)+(CB70-CB71))","v":0},{"$f":"MAX(0,(CC68-CC67)+(CC70-CC71))","v":0},{"$f":"MAX(0,(CD68-CD67)+(CD70-CD71))","v":0},null,null,null,{"$f":"MAX(0,(CH68-CH67)+(CH70-CH71))","v":0},{"$f":"MAX(0,(CI68-CI67)+(CI70-CI71))","v":0},0,null,null,null,{"$f":"MAX(0,(CN68-CN67)+(CN70-CN71))","v":0},null,null,{"$f":"MAX(0,(CQ68-CQ67)+(CQ70-CQ71))","v":0},{"$f":"MAX(0,(CR68-CR67)+(CR70-CR71))","v":0},{"$f":"MAX(0,(CS68-CS67)+(CS70-CS71))","v":0},{"$f":"MAX(0,(CT68-CT67)+(CT70-CT71))","v":0},null,null,null,null,null,{"$f":"MAX(0,(CZ68-CZ67)+(CZ70-CZ71))","v":0},{"$f":"MAX(0,(DA68-DA67)+(DA70-DA71))","v":0},{"$f":"MAX(0,(DB68-DB67)+(DB70-DB71))","v":0},{"$f":"MAX(0,(DC68-DC67)+(DC70-DC71))","v":0},null,null,null,null,null,{"$f":"MAX(0,(DI68-DI67)+(DI70-DI71))","v":1784},{"$f":"MAX(0,(DJ68-DJ67)+(DJ70-DJ71))","v":0},null,{"$f":"MAX(0,(DL68-DL67)+(DL70-DL71))","v":1784},{"$f":"MAX(0,(DM68-DM67)+(DM70-DM71))","v":0},null,null,null,null,{"$f":"MAX(0,(DR68-DR67)+(DR70-DR71))","v":0},null,null,null,null,{"$f":"MAX(0,(DW68-DW67)+(DW70-DW71))","v":0},{"$f":"MAX(0,(DX68-DX67)+(DX70-DX71))","v":0},0,{"$f":"MAX(0,(DZ68-DZ67)+(DZ70-DZ71))","v":0},{"$f":"MAX(0,(EA68-EA67)+(EA70-EA71))","v":0},{"$f":"MAX(0,(EB68-EB67)+(EB70-EB71))","v":0},null,null,{"$f":"MAX(0,(EE68-EE67)+(EE70-EE71))","v":0},null,null,{"$f":"MAX(0,(EH68-EH67)+(EH70-EH71))","v":0},{"$f":"MAX(0,(EI68-EI67)+(EI70-EI71))","v":0},{"$f":"MAX(0,(EJ68-EJ67)+(EJ70-EJ71))","v":0},null,null,null,{"$f":"MAX(0,(EN68-EN67)+(EN70-EN71))","v":0},{"$f":"MAX(0,(EO68-EO67)+(EO70-EO71))","v":0},0,0,null,null,1139415.7599999998,0,{"$f":"MAX(0,(EV68-EV67)+(EV70-EV71))","v":0},{"$f":"MAX(0,(EW68-EW67)+(EW70-EW71))","v":0},{"$f":"MAX(0,(EX68-EX67)+(EX70-EX71))","v":0},{"$f":"MAX(0,(EY68-EY67)+(EY70-EY71))","v":0},{"$f":"MAX(0,(EZ68-EZ67)+(EZ70-EZ71))","v":0},0,{"$f":"MAX(0,(FB68-FB67)+(FB70-FB71))","v":0},{"$f":"MAX(0,(FC68-FC67)+(FC70-FC71))","v":0},{"$f":"MAX(0,(FD68-FD67)+(FD70-FD71))","v":0},{"$f":"MAX(0,(FE68-FE67)+(FE70-FE71))","v":0},{"$f":"MAX(0,(FF68-FF67)+(FF70-FF71))","v":0},{"$f":"MAX(0,(FG68-FG67)+(FG70-FG71))","v":0},0,0,0,null,null,null,null,null,null,null,null,null,null,null,{"$f":"MAX(0,(FV68-FV67)+(FV70-FV71))","v":0},null,null,null,null,null,null,null,null,null,null,null,null,null,5725,null,null,null,null,null,null,null,null,null,null,null,null,null,null,null,null,null,null,null,null,null,null,{"$f":"MAX(0,(HG68-HG67)+(HG70-HG71))","v":0},null,null,null,null,null,null,null,null,null,null,null,null,null,null,null,null,null,null,{"$f":"MAX(0,(HZ68-HZ67)+(HZ70-HZ71))","v":0},null,null,null,{"$f":"MAX(0,(ID68-ID67)+(ID70-ID71))","v":0},{"$f":"MAX(0,(IE68-IE67)+(IE70-IE71))","v":0},{"$f":"MAX(0,(IF68-IF67)+(IF70-IF71))","v":0},null,null,{"$f":"MAX(0,(II68-II67)+(II70-II71))","v":0},{"$f":"MAX(0,(IJ68-IJ67)+(IJ70-IJ71))","v":0},null,null,null,null,{"$f":"MAX(0,(IO68-IO67)+(IO70-IO71))","v":0},{"$f":"MAX(0,(IP68-IP67)+(IP70-IP71))","v":0},null,null,{"$f":"MAX(0,(IS68-IS67)+(IS70-IS71))","v":0},{"$f":"MAX(0,(IT68-IT67)+(IT70-IT71))","v":0},0,0,0,null,9626,null,null,null,null,null,{"$f":"MAX(0,(JE68-JE67)+(JE70-JE71))","v":0},null,{"$f":"MAX(0,(JG68-JG67)+(JG70-JG71))","v":0},{"$f":"MAX(0,(JH68-JH67)+(JH70-JH71))","v":0},0,null,0,0,null,null,null,null,{"$f":"MAX(0,(JQ68-JQ67)+(JQ70-JQ71))","v":0},null,null,"SA Monetary value (2dp) >= 0.00"]
[73,"","PRO44","Residential property finance costs",6080,2800,null,null,null,null,null,null,2000,null,2500,null,1778,null,null,88700,15000,null,null,null,null,15920,null,null,5000,null,null,null,null,null,null,null,null,null,null,625,null,null,null,null,null,null,null,null,500,null,null,500,null,3600,null,null,null,null,null,null,null,null,null,null,null,null,null,null,null,null,null,null,null,null,null,1965,null,null,null,null,500,null,null,null,null,null,486.66666666666669,null,null,null,null,null,null,null,54675.4,null,null,null,null,null,null,null,null,500,500,null,486.66666666666669,null,null,null,null,null,9722.6666666666661,5486,null,9722.6666666666661,486.66666666666669,null,null,null,null,44137,null,null,null,null,450,2343.7399999999998,null,null,null,4978,null,null,null,null,null,null,null,null,null,null,null,33777.5,null,null,null,null,null,null,null,null,null,null,null,null,null,null,null,null,null,null,null,null,null,null,null,null,null,null,null,null,null,null,null,500,500,null,null,null,null,null,null,null,null,null,null,null,null,null,null,null,null,null,null,null,null,null,null,null,null,null,null,null,null,486.66666666666669,null,null,null,9722.6666666666661,null,null,null,null,null,null,null,null,null,null,null,null,null,null,null,null,null,1304,null,null,null,null,null,700,null,null,null,null,null,4019.89,null,null,11016,null,null,null,null,null,null,null,null,null,null,25068,4739,null,null,null,null,null,null,null,null,null,null,null,266.66666666666669,null,null,null,514,null,null,null,null,null,19100,null,"a) Prohibited if PRO20.1 is present \nb) If present PRO26 or PRO29 or both must be present\nc) If present must be less than or equal to PRO26 + PRO29","SA Monetary value (2dp) > 0.00"]
[74,{"$f":"IF(PRO_IND>1,IF(HLOOKUP(PRO_IND-1,PRO_RANGE,A74)=\"\",\"\",HLOOKUP(PRO_IND-1,PRO_RANGE,A74)),\"\")","v":""},"PRO45","Unused residential property finance costs brought forward",2400,50,null,null,null,null,null,null,null,null,null,null,null,null,null,800,null,null,null,null,null,7443,null,null,null,null,null,null,null,null,null,null,null,null,null,null,null,null,null,null,null,null,null,null,null,null,null,null,null,null,null,null,null,null,null,null,null,null,null,null,null,null,null,null,null,null,null,null,null,null,null,null,null,null,null,null,null,null,null,null,null,null,null,null,null,null,null,null,null,null,null,null,null,null,null,null,null,null,null,null,null,null,null,null,null,null,null,null,null,null,null,null,null,null,null,null,null,null,null,null,null,null,null,1706,null,null,null,7181,null,null,null,null,null,null,null,null,null,null,null,null,null,null,null,null,null,null,null,null,null,null,null,null,null,null,null,null,null,null,null,null,null,null,null,null,null,null,null,null,null,null,null,null,null,null,null,null,null,null,null,null,null,null,null,null,null,null,null,null,null,null,null,null,null,null,null,null,null,null,null,null,null,null,null,null,null,null,null,null,null,null,null,null,null,null,null,null,null,null,null,null,null,null,null,null,null,null,null,null,null,1100,null,null,null,null,null,null,null,null,14761,null,null,null,null,null,null,null,null,null,null,null,null,null,null,null,null,null,null,null,null,null,null,null,null,null,null,null,null,null,null,null,null,null,1780,null,null,"SA Monetary value (2dp) > = 0.00"]
[null,null,null,null,null,null,null,null,null,null,null,null,null,null,null,null,null,null,null,null,null,null,null,null,null,null,null,null,null,null,null,null,null,null,null,null,null,null,null,null,null,null,null,null,null,null,null,null,null,null,null,null,null,null,null,null,null,null,null,null,null,null,null,null,null,null,null,null,null,null,null,null,null,null,null,null,null,null,null,null,null,null,null,null,null,null,null,null,null,null,null,null,null,null,null,null,null,null,null,null,null,null,null,null,null,null,null,null,null,null,null,null,null,null,null,null,null,null,null,null,null,null,null,null,null,null,null,null,null,null,null,null,null,null,null,null,null,null,null,null,null,null,null,null,null,null,null,null,null,null,null,null,null,null,null,null,null,null,null,null,null,null,null,null,null,null,null,null,null,null,null,null,null,null,null,null,null,null,null,null,null,null,null,null,null,null,null,null,null,null,null,null,null,null,null,null,null,null,null,null,null,null,null,null,null,null,null,null,null,null,null,null,null,null,null,null,null,null,null,null,null,null,null,null,null,null,null,null,null,null,null,null,null,null,null,null,null,null,null,null,null,null,null,null,null,null,null,null,null,null,null,null,null,null,null,null,null,null,null,null,null,null,null,null,null,null,null,null,null,null,null,null,null,null,null,null,null,null,"Where both an occurrence of [FOR14] and a [PRO5-19] with [PRO5] and [PRO18] present, the value of [FOR14.2] and the value of [PRO5.2] from that occurrence of [PRO5-19] must be the same.' (validation constraint {{1029}})","Pre-calculation rule"]

{"sheet":"C6","index":15,"n_rows":267,"n_cols":280,"rows_kept":267,"cut":false,"hidden":true,"merged":[]}
["row",{"$f":"\"selected \"&FOR_IND-1","v":"selected 168"},"FOR",null,1,2,3,4,5,6,7,8,9,10,11,12,13,14,15,16,17,18,19,20,21,22,23,24,25,26,27,28,29,30,31,32,33,34,35,36,37,38,39,40,41,42,43,44,45,46,47,48,49,50,51,52,53,54,55,56,57,58,59,60,61,62,63,64,65,66,67,68,69,70,71,72,73,74,75,76,77,78,79,80,81,82,83,84,85,86,87,88,89,90,91,92,93,94,95,96,97,98,99,100,101,102,103,104,105,106,107,108,109,110,111,112,113,114,115,116,117,118,119,120,121,122,123,124,125,126,127,128,129,130,131,132,133,134,135,136,137,138,139,140,141,142,143,144,145,146,147,148,149,150,151,152,153,154,155,156,157,158,159,160,161,162,163,164,165,166,167,168,169,170,171,172,173,174,175,176,177,178,179,180,181,182,183,184,185,186,187,188,189,190,191,192,193,194,195,196,197,198,199,200,201,202,203,204,205,206,207,208,209,210,211,212,213,214,215,216,217,218,219,220,221,222,223,224,225,226,227,228,229,230,231,232,233,234,235,236,237,238,239,240,241,242,243,244,245,246,247,248,249,250,251,252,253,254,255,256,257,258,259,260,261,262,263,264,265,266,267,268,269,270,271,272,273,null," Validation","Type"]
[2,{"$f":"IF(FOR_IND>1,IF(HLOOKUP(FOR_IND-1,FOR_RANGE,A2)=\"\",\"\",HLOOKUP(FOR_IND-1,FOR_RANGE,A2)),\"\")","v":""},"FOR1","If you were unable to transfer any of your overseas income to the UK, put ‘X’ in the box",null,null,null,null,null,null,null,null,null,null,null,null,null,null,null,null,null,null,null,null,null,null,null,null,null,null,null,null,null,null,null,null,null,null,null,null,null,null,null,null,null,null,null,null,"N",null,null,null,null,null,"N","N",null,null,null,null,null,null,null,null,null,null,null,null,null,null,null,null,null,null,null,null,null,null,null,null,null,null,null,null,null,null,null,null,null,null,null,null,null,null,null,null,null,"N",null,null,null,null,null,null,null,null,null,null,null,null,null,null,null,null,null,null,"N",null,null,"N",null,null,null,"N",null,null,null,null,null,null,null,null,null,null,null,null,null,null,null,null,null,null,null,null,"N",null,null,null,null,null,null,null,null,"N",null,"N",null,null,null,null,null,null,null,null,null,null,null,null,null,null,null,null,null,null,null,null,null,null,null,null,null,null,null,null,null,null,null,"N",null,null,null,null,null,null,null,null,null,null,null,null,null,null,null,null,null,null,null,null,null,null,null,null,null,null,null,"N",null,null,null,null,null,null,null,"N",null,null,null,null,null,null,null,null,null,null,null,null,null,null,null,"N",null,null,null,null,null,null,null,null,null,null,null,null,null,null,null,null,null,null,null,null,null,null,null,null,"N","N"]
[3,"","FOR2","If you are calculating your tax, enter the total Foreign Tax Credit Relief on your income",null,null,null,null,null,null,null,null,null,null,null,null,null,null,null,null,null,null,null,null,null,null,null,null,null,null,null,null,null,null,null,null,null,null,null,null,null,null,null,null,null,null,null,null,null,null,null,null,null,1805,2442,2442,null,null,null,null,null,2525,null,null,null,null,null,null,null,null,null,null,null,null,null,null,null,null,null,3582.25,null,null,null,null,null,null,null,77.25,null,null,null,null,null,null,null,null,null,42,null,null,null,null,null,null,null,null,null,null,null,null,null,null,null,null,null,null,null,null,null,200,null,26,null,200,null,null,1307.69,null,null,null,null,null,null,null,null,null,null,null,null,null,null,null,907.8,18.3,null,null,2141,308,null,null,537.6,12966.8,null,377.5,null,1824.29,null,null,305,null,null,6822,null,null,null,7678.85,null,null,null,null,null,null,null,null,null,null,null,null,null,null,null,null,null,null,null,null,null,2442,null,null,null,null,null,null,null,null,null,null,null,null,null,null,null,null,null,null,null,null,null,null,null,null,null,null,null,0,null,23158,35299,18015,35299,null,null,883,null,null,null,17663,null,null,null,null,null,null,246.25,null,null,null,null,10568.2,null,null,2235.6,null,null,2832.2,null,null,null,null,null,null,null,null,null,null,null,null,null,null,null,null,null,null,2442,42,null,null,null,171,null,null,null,null,null,1334.77]
[4,"GGY","FOR_INT_A_1","Country or territory code",null,null,null,null,null,null,null,null,null,null,null,null,null,null,null,null,null,null,null,null,null,null,null,null,null,null,null,null,null,null,null,null,null,null,null,null,null,null,null,null,null,null,null,null,"USA",null,null,null,null,null,"CAN","CAN",null,null,null,null,null,null,null,null,null,null,null,null,null,null,null,null,null,null,null,null,null,null,null,null,null,null,null,null,null,null,null,"FRA",null,null,null,null,null,null,null,null,null,"DNK",null,null,null,null,null,null,null,null,null,null,null,null,null,null,null,null,null,null,"ARG",null,null,null,null,null,null,null,null,null,"GGY",null,null,null,null,null,null,null,null,null,null,null,null,null,null,null,"GGY","GBR","ARG",null,"AUS",null,null,null,null,"USA",null,"BEL",null,"ITA",null,null,"IRL",null,null,"USA",null,null,null,"IRL","IRL",null,null,null,"MUS","GGY",null,null,null,null,null,null,null,null,null,null,null,null,null,null,null,"CAN",null,null,null,null,null,null,null,null,null,null,null,null,null,null,null,null,null,null,null,null,null,null,null,null,null,null,"CAN","CAN",null,null,null,"USA",null,null,null,null,null,null,null,null,null,null,null,null,null,null,"IRL",null,"DNK",null,null,"DNK",null,"GBR","FRA",null,"FRA","BEL",null,null,null,null,null,null,null,null,null,null,null,null,null,null,null,null,null,null,null,"DNK",null,"SRB",null,"LUX"]
[5,698,"FOR_INT_B_1","Amount of income arising or received before any tax taken off",null,null,null,null,null,null,null,null,null,null,null,null,null,null,null,null,null,null,null,null,null,null,null,null,null,null,null,null,null,null,null,null,null,null,null,null,null,null,null,null,null,null,null,null,500,null,null,null,null,null,3562,3562,null,null,null,null,null,null,null,null,null,null,null,null,null,null,null,null,null,null,null,null,null,null,null,null,null,null,null,null,null,null,null,411,null,null,null,null,null,null,null,null,null,1263,null,null,null,null,null,null,null,null,null,null,null,null,null,null,null,null,null,null,4227,null,null,null,null,null,null,null,null,null,116.29,null,null,null,null,null,null,null,null,null,null,null,null,null,null,null,2124,15,8367,null,268,null,null,null,null,2951,null,500,null,1523.09,null,null,19352,null,null,22184,null,null,null,9185,5244,null,null,null,1231,698,null,null,null,null,null,null,null,null,null,null,null,null,null,null,null,3562,null,null,null,null,null,null,null,null,null,null,null,null,null,null,null,null,null,null,null,null,null,null,null,null,null,null,20000,1697,null,null,null,18015,null,null,null,null,null,null,null,null,null,null,null,null,null,null,161,null,451,null,null,19048,null,2703,14904,null,18500,1250,null,null,null,null,null,null,null,null,null,null,null,null,null,null,null,null,null,null,null,1263,null,130,null,1660]
[6,"","FOR_INT_C_1","Foreign tax taken off or paid",null,null,null,null,null,null,null,null,null,null,null,null,null,null,null,null,null,null,null,null,null,null,null,null,null,null,null,null,null,null,null,null,null,null,null,null,null,null,null,null,null,null,null,null,100,null,null,null,null,null,356,356,null,null,null,null,null,null,null,null,null,null,null,null,null,null,null,null,null,null,null,null,null,null,null,null,null,null,null,null,null,null,null," ",null,null,null,null,null,null,null,null,null,null,null,null,null,null,null,null,null,null,null,null,null,null,null,null,null,null,null,null,507,null,null,null,null,null,null,null,null,null,null,null,null,null,null,null,null,null,null,null,null,null,null,null,null,null,null,null,507,null,null,null,null,null,null,null,null,100,null,null,null,null,null,null,null,null,null,null,null,null,null,null,null,null,null,null,null,null,null,null,null,null,null,null,null,null,null,null,null,null,null,356,null,null,null,null,null,null,null,null,null,null,null,null,null,null,null,null,null,null,null,null,null,null,null,null,null,null,2000,170,null,null,null,null,null,null,null,null,null,null,null,null,null,null,null,null,null,null,4,null,null,null,null,null,null,null,2605,null,1850,250]
[7,"","FOR3_INT_D_1","Special Withholding Tax and any UK tax taken off",null,null,null,null,null,null,null,null,null,null,null,null,null,null,null,null,null,null,null,null,null,null,null,null,null,null,null,null,null,null,null,null,null,null,null,null,null,null,null,null,null,null,null,null,null,null,null,null,null,null,null,null,null,null,null,null,null,null,null,null,null,null,null,null,null,null,null,null,null,null,null,null,null,null,null,null,null,null,null,null,null,null,null,null,null,null,null,null,null,null,null,null,null,252,null,null,null,null,null,null,null,null,null,null,null,null,null,null,null,null,null,null,null,null,null,null,null,null,null,null,null,null,null,null,null,null,null,null,null,null,null,null,null,null,null,null,null,null,null,null,null,null,null,null,null,null,null,null,null,75,null,null,null,null,null,null,null,null,null,null,null,null,null,null,null,null,null,null,null,null,null,null,null,null,null,null,null,null,null,null,null,null,null,null,null,null,null,null,null,null,null,null,null,null,null,null,null,null,null,null,null,null,null,null,null,null,null,null,null,null,null,null,null,null,null,null,null,null,null,null,null,null,null,null,null,null,null,null,null,null,null,null,null,null,null,null,null,null,null,null,null,null,null,null,null,null,null,null,null,null,null,null,null,null,null,null,null,null,null,null,null,252]
[8,"","FOR_INT_E_1","To claim Foreign Tax Credit Relief, put ‘X’ in the box",null,null,null,null,null,null,null,null,null,null,null,null,null,null,null,null,null,null,null,null,null,null,null,null,null,null,null,null,null,null,null,null,null,null,null,null,null,null,null,null,null,null,null,null,null,null,null,null,null,null,"Y","Y",null,null,null,null,null,null,null,null,null,null,null,null,null,null,null,null,null,null,null,null,null,null,null,null,null,null,null,null,null,null,null,"Y",null,null,null,null,null,null,null,null,null,null,null,null,null,null,null,null,null,null,null,null,null,null,null,null,null,null,null,null,null,null,null,null,null,null,null,null,null,null,null,null,null,null,null,null,null,null,null,null,null,null,null,null,null,null,null,null,null,null,null,null,null,null,null,"Y",null,"Y",null,null,null,null,null,null,null,null,null,null,null,null,null,null,null,null,null,null,null,null,null,null,null,null,null,null,null,null,null,null,null,null,null,"Y",null,null,null,null,null,null,null,null,null,null,null,null,null,null,null,null,null,null,null,null,null,null,null,null,null,null,null,"Y",null,null,null,"Y",null,null,null,null,null,null,null,null,null,null,null,null,null,null,"Y",null,null,null,null,null,null,null,"Y",null,null,"Y"]
[9,698,"FOR4_INT_F_1","Taxable amount",null,null,null,null,null,null,null,null,null,null,null,null,null,null,null,null,null,null,null,null,null,null,null,null,null,null,null,null,null,null,null,null,null,null,null,null,null,null,null,null,null,null,null,null,{"$f":"IF(AW8=\"Y\",AW5,MAX(0,AW5-AW6))","v":400},null,null,null,null,{"$f":"IF(BB8=\"Y\",BB5,MAX(0,BB5-BB6))","v":0},{"$f":"IF(BC8=\"Y\",BC5,MAX(0,BC5-BC6))","v":3562},{"$f":"IF(BD8=\"Y\",BD5,MAX(0,BD5-BD6))","v":3562},null,null,null,null,null,{"$f":"IF(BJ8=\"Y\",BJ5,MAX(0,BJ5-BJ6))","v":0},null,null,null,null,null,null,null,null,null,null,null,null,null,null,null,null,null,null,null,null,null,null,null,null,null,{"$f":"IF(CJ8=\"Y\",CJ5,MAX(0,CJ5-CJ6))","v":411},null,null,null,null,null,null,null,null,null,{"$f":"IF(CT8=\"Y\",CT5,MAX(0,CT5-CT6))","v":1263},null,null,null,null,null,null,null,null,null,null,null,null,null,null,null,null,null,null,{"$f":"IF(DM8=\"Y\",DM5,MAX(0,DM5-DM6))","v":3720},null,null,null,null,null,null,null,null,null,116.29,null,null,null,null,null,null,null,null,null,null,null,null,null,null,null,2124,15,7860,null,268,null,null,null,null,2951,null,{"$f":"IF(EX8=\"Y\",EX5,MAX(0,EX5-EX6))","v":500},null,1523.09,null,null,19352,null,null,22184,null,null,null,9185,5244,null,null,null,1231,698,null,null,null,null,null,null,null,null,null,null,null,null,null,null,null,{"$f":"IF(GF8=\"Y\",GF5,MAX(0,GF5-GF6))","v":3562},null,null,null,null,null,null,null,null,null,null,null,null,null,null,null,null,null,null,null,null,null,null,null,null,null,null,{"$f":"IF(HG8=\"Y\",HG5,MAX(0,HG5-HG6))","v":18000},{"$f":"IF(HH8=\"Y\",HH5,MAX(0,HH5-HH6))","v":1697},null,null,null,201924,null,null,null,null,null,null,null,null,null,null,null,null,null,null,161,null,{"$f":"IF(IC8=\"Y\",IC5,MAX(0,IC5-IC6))","v":451},null,null,{"$f":"IF(IF8=\"Y\",IF5,MAX(0,IF5-IF6))","v":19048},null,{"$f":"IF(IH8=\"Y\",IH5,MAX(0,IH5-IH6))","v":2703},{"$f":"IF(II8=\"Y\",II5,MAX(0,II5-II6))","v":14904},null,{"$f":"IF(IK8=\"Y\",IK5,MAX(0,IK5-IK6))","v":16650},{"$f":"IF(IL8=\"Y\",IL5,MAX(0,IL5-IL6))","v":1250},null,null,null,null,null,null,null,null,null,null,null,null,null,null,null,null,null,null,{"$f":"IF(JE8=\"Y\",JE5,MAX(0,JE5-JE6))","v":0},{"$f":"IF(JF8=\"Y\",JF5,MAX(0,JF5-JF6))","v":1263},null,130,null,1660]
[10,"IRL","FOR_INT_A_2","Country or territory code",null,null,null,null,null,null,null,null,null,null,null,null,null,null,null,null,null,null,null,null,null,null,null,null,null,null,null,null,null,null,null,null,null,null,null,null,null,null,null,null,null,null,null,null,null,null,null,null,null,null,null,null,null,null,null,null,null,null,null,null,null,null,null,null,null,null,null,null,null,null,null,null,null,null,null,null,null,null,null,null,null,null,null,null,null,null,null,null,null,null,null,null,null,null,null,null,null,null,null,null,null,null,null,null,null,null,null,null,null,null,null,null,null,null,null,null,null,null,null,null,null,null,"LUX",null,null,null,null,null,null,null,null,null,null,null,null,null,null,null,"IRL","ZAF",null,null,"HKG",null,null,null,null,null,null,null,null,"ITA",null,null,null,null,null,null,null,null,null,"JEY",null,null,null,null,"USA","IRL",null,null,null,null,null,null,null,null,null,null,null,null,null,null,null,null,null,null,null,null,null,null,null,null,null,null,null,null,null,null,null,null,null,null,null,null,null,null,null,null,null,null,"BRN","JPN",null,null,null,null,null,null,null,null,null,null,null,null,null,null,null,null,null,null,null,null,null,null,null,null,null,null,null,null,null,"ITA",null,null,null,null,null,null,null,null,null,null,null,null,null,null,null,null,null,null,null,null,null,"IRL",null,"IRL"]
[11,14265,"FOR_INT_B_2","Amount of income arising or received before any tax taken off",null,null,null,null,null,null,null,null,null,null,null,null,null,null,null,null,null,null,null,null,null,null,null,null,null,null,null,null,null,null,null,null,null,null,null,null,null,null,null,null,null,null,null,null,null,null,null,null,null,null,null,null,null,null,null,null,null,null,null,null,null,null,null,null,null,null,null,null,null,null,null,null,null,null,null,null,null,null,null,null,null,null,null,null,null,null,null,null,null,null,null,null,null,null,null,null,null,null,null,null,null,null,null,null,null,null,null,null,null,null,null,null,null,null,null,null,null,null,null,null,null,null,6761.25,null,null,null,null,null,null,null,null,null,null,null,null,null,null,null,3310,1000,null,null,8887,null,null,null,null,null,null,null,null,18242.79,null,null,null,null,null,null,null,null,null,40536.769999999997,null,null,null,null,2905,14265,null,null,null,null,null,null,null,null,null,null,null,null,null,null,null,null,null,null,null,null,null,null,null,null,null,null,null,null,null,null,null,null,null,null,null,null,null,null,null,null,null,null,1500,5759,null,null,null,null,null,null,null,null,null,null,null,null,null,null,null,null,null,null,null,null,null,null,null,null,null,null,null,null,null,19732,null,null,null,null,null,null,null,null,null,null,null,null,null,null,null,null,null,null,null,null,null,475,null,755]
[12,"","FOR_INT_C_2","Foreign tax taken off or paid",null,null,null,null,null,null,null,null,null,null,null,null,null,null,null,null,null,null,null,null,null,null,null,null,null,null,null,null,null,null,null,null,null,null,null,null,null,null,null,null,null,null,null,null,null,null,null,null,null,null,null,null,null,null,null,null,null,null,null,null,null,null,null,null,null,null,null,null,null,null,null,null,null,null,null,null,null,null,null,null,null,null,null,null,null,null,null,null,null,null,null,null,null,null,null,null,null,null,null,null,null,null,null,null,null,null,null,null,null,null,null,null,null,null,null,null,null,null,null,null,null,null,null,null,null,null,null,null,null,null,null,null,null,null,null,null,null,null,null,null,null,null,null,null,null,null,null,null,null,null,null,2672.14,null,null,null,null,null,null,null,null,null,null,null,null,null,null,null,null,null,null,null,null,null,null,null,null,null,null,null,null,null,null,null,null,null,null,null,null,null,null,null,null,null,null,null,null,null,null,null,null,null,null,null,null,null,null,null,null,null,null,null,575.9,null,null,null,null,null,null,null,null,null,null,null,null,null,null,null,null,null,null,null,null,null,null,null,null,null,null,null,null,null,2821.76]
[13,"","FOR3_INT_D_2","Special Withholding Tax and any UK tax taken off"]
[14,"","FOR_INT_E_2","To claim Foreign Tax Credit Relief, put ‘X’ in the box",null,null,null,null,null,null,null,null,null,null,null,null,null,null,null,null,null,null,null,null,null,null,null,null,null,null,null,null,null,null,null,null,null,null,null,null,null,null,null,null,null,null,null,null,null,null,null,null,null,null,null,null,null,null,null,null,null,null,null,null,null,null,null,null,null,null,null,null,null,null,null,null,null,null,null,null,null,null,null,null,null,null,null,null,null,null,null,null,null,null,null,null,null,null,null,null,null,null,null,null,null,null,null,null,null,null,null,null,null,null,null,null,null,null,null,null,null,null,null,null,null,null,null,null,null,null,null,null,null,null,null,null,null,null,null,null,null,null,null,null,null,null,null,null,null,null,null,null,null,null,null,"Y",null,null,null,null,null,null,null,null,null,null,null,null,null,null,null,null,null,null,null,null,null,null,null,null,null,null,null,null,null,null,null,null,null,null,null,null,null,null,null,null,null,null,null,null,null,null,null,null,null,null,null,null,null,null,null,null,null,null,null,"Y",null,null,null,null,null,null,null,null,null,null,null,null,null,null,null,null,null,null,null,null,null,null,null,null,null,null,null,null,null,"Y"]
[15,14265,"FOR4_INT_F_2","Taxable amount",null,null,null,null,null,null,null,null,null,null,null,null,null,null,null,null,null,null,null,null,null,null,null,null,null,null,null,null,null,null,null,null,null,null,null,null,null,null,null,null,null,null,null,null,null,null,null,null,null,null,null,null,null,null,null,null,null,null,null,null,null,null,null,null,null,null,null,null,null,null,null,null,null,null,null,null,null,null,null,null,null,null,null,null,null,null,null,null,null,null,null,null,null,null,null,null,null,null,null,null,null,null,null,null,null,null,null,null,null,null,null,null,null,null,null,null,null,null,null,null,null,null,6761.25,null,null,null,null,null,null,null,null,null,null,null,null,null,null,null,3310,1000,null,null,8887,null,null,null,null,null,null,null,null,18242.79,null,null,null,null,null,null,null,null,null,40536.769999999997,null,null,null,null,2905,14265,null,null,null,null,null,null,null,null,null,null,null,null,null,null,null,null,null,null,null,null,null,null,null,null,null,null,null,null,null,null,null,null,null,null,null,null,null,null,null,null,null,null,1500,{"$f":"IF(HH14=\"Y\",HH11,MAX(0,HH11-HH12))","v":5759},null,null,null,null,null,null,null,null,null,null,null,null,null,null,null,null,null,null,null,null,null,null,null,null,null,null,null,null,null,19732,null,null,null,null,null,null,null,null,null,null,null,null,null,null,null,null,null,null,null,null,null,475,null,755]
[16,"","FOR3_TOT","Total of column above",null,null,null,null,null,null,null,null,null,null,null,null,null,null,null,null,null,null,null,null,null,null,null,null,null,null,null,null,null,null,null,null,null,null,null,null,null,null,null,null,null,null,null,null,null,null,null,null,null,{"$f":"BB7+BB13","v":0},null,null,null,null,null,null,null,null,null,null,null,null,null,null,null,null,null,null,null,null,null,null,null,null,null,null,null,null,null,null,null,null,null,null,null,null,null,null,null,null,null,null,null,{"$f":"CT7+CT13","v":252},null,null,null,null,null,null,null,null,null,null,null,null,null,null,null,null,null,null,null,null,null,null,null,null,null,null,null,null,null,null,null,null,null,null,null,null,null,null,null,null,null,null,null,null,null,null,null,null,{"$f":"EQ8+EQ14","v":0},null,null,null,null,null,null,{"$f":"EX7+EX13","v":75},null,null,null,null,null,null,null,null,null,null,null,null,null,null,null,null,null,null,null,null,null,null,null,null,null,null,null,null,null,null,null,null,null,null,null,null,null,null,null,null,null,null,null,null,null,null,null,null,null,null,null,null,null,null,null,null,null,null,null,null,null,null,null,null,null,null,null,null,null,null,null,null,null,null,null,null,null,null,null,null,null,null,null,null,null,null,null,null,null,null,null,null,null,null,null,null,null,null,null,null,null,null,null,null,null,null,null,null,null,null,null,{"$f":"JF7+JF13","v":252}]
[17,14963,"FOR4_TOT","Total of column above",null,null,null,null,null,null,null,null,null,null,null,null,null,null,null,null,null,null,null,null,null,null,null,null,null,null,null,null,null,null,null,null,null,null,null,null,null,null,null,null,null,null,null,null,{"$f":"AW9+AW15","v":400},null,null,null,null,{"$f":"BB9+BB15","v":0},{"$f":"BC9+BC15","v":3562},{"$f":"BD9+BD15","v":3562},null,null,null,null,null,{"$f":"BJ9+BJ15","v":0},null,null,null,null,null,null,null,null,null,null,null,null,null,null,null,null,null,null,null,null,null,null,null,null,null,{"$f":"CJ9+CJ15","v":411},null,null,null,null,null,null,null,null,null,{"$f":"CT9+CT15","v":1263},null,null,null,null,null,null,null,null,null,null,null,null,null,null,null,null,{"$f":"DK9+DK15","v":0},{"$f":"DL9+DL15","v":0},{"$f":"DM9+DM15","v":3720},null,null,null,null,null,null,null,null,null,{"$f":"DW9+DW15","v":6877.54},null,null,null,null,null,null,null,null,null,null,null,null,null,null,null,{"$f":"EM9+EM15","v":5434},{"$f":"EN9+EN15","v":1015},7860,null,{"$f":"EQ9+EQ15","v":9155},null,null,null,null,{"$f":"EV9+EV15","v":2951},null,{"$f":"EX9+EX15","v":500},null,{"$f":"EZ9+EZ15","v":19765.88},null,null,{"$f":"FC9+FC15","v":19352},null,null,{"$f":"FF9+FF15","v":22184},null,null,null,{"$f":"FJ9+FJ15","v":49721.77},{"$f":"FK9+FK15","v":5244},null,null,null,{"$f":"FO5+FO9+FO15","v":5367},{"$f":"FP9+FP15","v":14963},null,null,null,null,null,null,null,null,null,null,null,null,null,null,null,{"$f":"GF9+GF15","v":3562},null,null,null,null,null,null,null,null,null,null,null,null,null,null,null,null,null,null,null,null,null,null,null,null,null,null,{"$f":"HG9+HG15","v":19500},{"$f":"HH9+HH15","v":7456},null,null,null,{"$f":"HL9+HL15","v":201924},null,null,null,null,null,null,null,null,null,null,null,null,null,null,{"$f":"IA9+IA15","v":161},{"$f":"IB9+IB15","v":0},{"$f":"IC9+IC15","v":451},null,null,{"$f":"IF9+IF15","v":19048},null,{"$f":"IH9+IH15","v":2703},{"$f":"II9+II15","v":14904},null,{"$f":"IK9+IK15","v":16650},{"$f":"IL9+IL15","v":20982},null,null,null,null,null,null,null,null,null,null,null,null,null,null,null,null,null,null,{"$f":"JE9+JE15","v":0},{"$f":"JF9+JF15","v":1263},null,{"$f":"JH9+JH15","v":605},null,{"$f":"JJ9+JJ15","v":2415},null,null,null,null,null,null,{"$f":"JQ9+JQ15","v":0}]
[18,{"$f":"IF(FOR_IND>1,IF(HLOOKUP(FOR_IND-1,FOR_RANGE,A18)=\"\",\"\",HLOOKUP(FOR_IND-1,FOR_RANGE,A18)),\"\")","v":""},"FOR4.1","Total claimed under FIG regime",null,null,null,null,null,null,null,null,null,null,null,null,null,null,null,null,null,null,null,null,null,null,null,null,null,null,null,null,null,null,null,null,null,null,null,null,null,null,null,null,null,null,null,null,null,null,null,null,null,null,null,null,null,null,null,null,null,null,null,null,null,null,null,null,null,null,null,null,null,null,null,null,null,null,null,null,null,null,null,null,null,null,null,null,null,null,null,null,null,null,null,null,null,null,null,null,null,null,null,null,null,null,null,null,null,null,null,null,null,null,null,null,null,null,null,null,null,null,null,null,null,null,null,null,null,null,null,null,null,null,null,null,null,null,null,null,null,null,null,null,null,null,null,null,null,null,null,null,null,null,null,null,null,null,null,null,null,null,null,null,null,null,null,null,null,null,null,null,null,null,null,null,null,null,null,null,null,null,null,null,null,null,null,null,null,null,null,null,null,null,null,null,null,null,null,null,null,null,null,null,null,null,null,null,null,null,null,null,null,null,18000,null,null,null,null,null,null,null,null,null,null,null,null,null,null,null,null,null,null,null,null,null,null,null,null,null,null,null,null,null,16650]
[19,{"$f":"IF(FOR_IND>1,IF(HLOOKUP(FOR_IND-1,FOR_RANGE,A19)=\"\",\"\",HLOOKUP(FOR_IND-1,FOR_RANGE,A19)),\"\")","v":""},"FOR_DIV_A_1","Country or territory code",null,null,null,null,null,null,null,null,null,null,null,null,null,null,null,null,null,null,null,null,null,null,null,null,null,null,null,null,null,null,null,null,null,null,null,null,null,null,null,null,null,null,null,null,"USA",null,null,null,null,null,"TCA","TCA",null,null,null,null,null,null,null,null,null,null,null,null,null,null,null,null,null,null,null,null,null,null,null,null,null,null,null,null,null,null,null,"DEU",null,null,null,null,null,null,null,null,null,"NAM",null,null,null,null,null,null,null,null,null,null,null,null,null,null,null,null,null,null,"BEL",null,null,"USA",null,"JPN",null,"USA",null,null,"BMU",null,null,null,null,null,null,null,null,null,null,null,null,null,null,null,"USA","USA","USA",null,"ZAF",null,"IRL",null,null,"USA",null,"BRN",null,null,null,"GGY","USA",null,null,"USA",null,null,null,"IRL","SGP",null,null,null,"CYM",null,null,null,null,null,null,null,null,null,null,null,null,null,null,null,null,"TCA",null,null,null,null,null,null,null,null,null,null,null,null,null,null,null,null,null,null,null,null,null,null,null,null,null,null,"IRL","IRL",null,null,null,null,null,null,null,"BRN",null,null,null,null,null,null,null,null,null,null,"USA",null,null,null,null,"GGY",null,"GGY",null,null,"DNK",null,null,null,null,null,null,null,null,null,null,null,null,null,null,null,null,null,null,null,null,"NAM",null,"GGY",null,null,null,null,null,null,null,"BRN"]
[20,"","FOR_DIV_B_1","Amount of income arising or received before any tax taken off",null,null,null,null,null,null,null,null,null,null,null,null,null,null,null,null,null,null,null,null,null,null,null,null,null,null,null,null,null,null,null,null,null,null,null,null,null,null,null,null,null,null,null,null,1500,null,null,null,null,null,2679,2679,null,null,null,null,null,null,null,null,null,null,null,null,null,null,null,null,null,null,null,null,null,null,null,null,null,null,null,null,null,null,null,479,null,null,null,null,null,null,null,null,null,422,null,null,null,null,null,null,null,null,null,null,null,null,null,null,null,null,null,null,16200,null,null,500,null,76,null,500,null,null,552.16,null,null,null,null,null,null,null,null,null,null,null,null,null,null,null,3805,47,4352.1899999999996,null,1833,null,44.32,null,null,4359,null,659,null,null,null,129793,2500,null,null,30886,null,null,null,5414,108,null,null,null,606,null,null,null,null,null,null,null,null,null,null,null,null,null,null,null,null,2679,null,null,null,null,null,null,null,null,null,null,null,null,null,null,null,null,null,null,null,null,null,null,null,null,null,null,500,500,null,null,null,null,null,null,null,659,null,null,null,null,null,null,null,null,null,null,713,null,null,null,null,22462,null,6332,null,null,26115,null,null,null,null,null,null,null,null,null,null,null,null,null,null,null,null,null,null,null,null,422,null,244,null,null,null,null,null,null,null,17997]
[21,"","FOR_DIV_C_1","Foreign tax taken off or paid",null,null,null,null,null,null,null,null,null,null,null,null,null,null,null,null,null,null,null,null,null,null,null,null,null,null,null,null,null,null,null,null,null,null,null,null,null,null,null,null,null,null,null,null,225,null,null,null,null,null,401,401,null,null,null,null,null,null,null,null,null,null,null,null,null,null,null,null,null,null,null,null,null,null,null,null,null,null,null,null,null,null,null,72,null,null,null,null,null,null,null,null,null,42,null,null,null,null,null,null,null,null,null,null,null,null,null,null,null,null,null,null,2430,null,null,75,null,12,null,75,null,null,null,null,null,null,null,null,null,null,null,null,null,null,null,null,null,null,571,8,null,null,183,null,null,null,null,960,null,98.85,null,null,null,null,305,null,null,4121,null,null,null,null,null,null,null,null,null,null,null,null,null,null,null,null,null,null,null,null,null,null,null,null,null,401,null,null,null,null,null,null,null,null,null,null,null,null,null,null,null,null,null,null,null,null,null,null,null,null,null,null,75,75,null,null,null,null,null,null,null,98.85,null,null,null,null,null,null,null,null,null,null,null,null,null,null,null,null,null,null,null,null,7051,null,null,null,null,null,null,null,null,null,null,null,null,null,null,null,null,null,null,null,null,42,null,null,null,null,null,null,null,null,null,4499.25]
[22,"","FOR5_DIV_D_1","Special Withholding Tax and any UK tax taken off"]
[23,"","FOR_DIV_E_1","To claim Foreign Tax Credit Relief, put ‘X’ in the box",null,null,null,null,null,null,null,null,null,null,null,null,null,null,null,null,null,null,null,null,null,null,null,null,null,null,null,null,null,null,null,null,null,null,null,null,null,null,null,null,null,null,null,null,null,null,null,null,null,null,"Y","Y",null,null,null,null,null,null,null,null,null,null,null,null,null,null,null,null,null,null,null,null,null,null,null,null,null,null,null,null,null,null,null,"Y",null,null,null,null,null,null,null,null,null,"Y",null,null,null,null,null,null,null,null,null,null,null,null,null,null,null,null,null,null,null,null,null,"Y",null,"Y",null,"Y",null,null,null,null,null,null,null,null,null,null,null,null,null,null,null,null,null,null,"Y","Y",null,null,"Y",null,null,null,null,"Y",null,"Y",null,null,null,null,"Y",null,null,"Y",null,null,null,null,null,null,null,null,null,null,null,null,null,null,null,null,null,null,null,null,null,null,null,null,null,"Y",null,null,null,null,null,null,null,null,null,null,null,null,null,null,null,null,null,null,null,null,null,null,null,null,null,null,null,"Y",null,null,null,null,null,null,null,"Y",null,null,null,null,null,null,null,null,null,null,"Y",null,null,null,null,null,null,null,null,null,null,null,null,null,null,null,null,null,null,null,null,null,null,null,null,null,null,null,null,null,null,"Y",null,null,null,null,null,null,null,null,null,"Y"]
[24,"","FOR6_DIV_F_1","Taxable amount",null,null,null,null,null,null,null,null,null,null,null,null,null,null,null,null,null,null,null,null,null,null,null,null,null,null,null,null,null,null,null,null,null,null,null,null,null,null,null,null,null,null,null,null,{"$f":"IF(AW23=\"Y\",AW20,MAX(0,AW20-AW21))","v":1275},null,null,null,null,{"$f":"IF(BB23=\"Y\",BB20,MAX(0,BB20-BB21))","v":0},{"$f":"IF(BC23=\"Y\",BC20,MAX(0,BC20-BC21))","v":2679},{"$f":"IF(BD23=\"Y\",BD20,MAX(0,BD20-BD21))","v":2679},null,null,null,null,null,null,null,null,null,null,null,null,null,null,null,null,null,null,null,null,null,null,null,null,null,null,null,null,null,null,null,{"$f":"IF(CJ23=\"Y\",CJ20,MAX(0,CJ20-CJ21))","v":479},null,null,null,null,null,null,null,null,null,{"$f":"IF(CT23=\"Y\",CT20,MAX(0,CT20-CT21))","v":422},null,null,null,null,null,null,null,null,null,null,null,null,null,null,null,null,null,null,{"$f":"IF(DM23=\"Y\",DM20,MAX(0,DM20-DM21))","v":13770},null,null,{"$f":"IF(DP23=\"Y\",DP20,MAX(0,DP20-DP21))","v":500},null,76,null,{"$f":"IF(DT23=\"Y\",DT20,MAX(0,DT20-DT21))","v":500},null,null,552.16,null,null,null,null,null,null,null,null,null,null,null,null,null,null,null,3805,47,4352.1899999999996,null,1833,null,44.32,null,null,4359,null,{"$f":"IF(EX23=\"Y\",EX20,MAX(0,EX20-EX21))","v":659},null,null,null,129793,2500,null,null,30886,null,null,null,5414,108,null,null,null,606,null,null,null,null,null,null,null,null,null,null,null,null,null,null,null,null,{"$f":"IF(GF23=\"Y\",GF20,MAX(0,GF20-GF21))","v":2679},null,null,null,null,null,null,null,null,null,null,null,null,null,null,null,null,null,null,null,null,null,null,null,null,null,null,{"$f":"IF(HG23=\"Y\",HG20,MAX(0,HG20-HG21))","v":425},{"$f":"IF(HH23=\"Y\",HH20,MAX(0,HH20-HH21))","v":500},null,null,null,null,null,null,null,{"$f":"IF(HP23=\"Y\",HP20,MAX(0,HP20-HP21))","v":659},null,null,null,null,null,null,null,null,null,null,713,null,null,null,null,{"$f":"IF(IF23=\"Y\",IF20,MAX(0,IF20-IF21))","v":22462},null,{"$f":"IF(IH23=\"Y\",IH20,MAX(0,IH20-IH21))","v":6332},null,null,{"$f":"IF(IK23=\"Y\",IK20,MAX(0,IK20-IK21))","v":19064},null,null,null,null,null,null,null,null,null,null,null,null,null,null,null,null,null,null,null,{"$f":"IF(JE23=\"Y\",JE20,MAX(0,JE20-JE21))","v":0},{"$f":"IF(JF23=\"Y\",JF20,MAX(0,JF20-JF21))","v":422},null,244,null,null,null,null,null,null,null,17997]
[25,"","FOR_DIV_A_2","Country or territory code",null,null,null,null,null,null,null,null,null,null,null,null,null,null,null,null,null,null,null,null,null,null,null,null,null,null,null,null,null,null,null,null,null,null,null,null,null,null,null,null,null,null,null,null,null,null,null,null,null,null,null,null,null,null,null,null,null,null,null,null,null,null,null,null,null,null,null,null,null,null,null,null,null,null,null,null,null,null,null,null,null,null,null,"IRL",null,null,null,null,null,null,null,null,null,null,null,null,null,null,null,null,null,null,null,null,null,null,null,null,null,null,null,null,null,null,null,"USA",null,"CAN",null,"USA",null,null,"CAN",null,null,null,null,null,null,null,null,null,null,null,null,null,null,null,"CHE","CAN",null,null,"CAN",null,"GGY",null,null,"USA",null,null,null,null,null,null,"LUX",null,null,null,null,null,null,"LUX",null,null,null,null,null,null,null,null,null,null,null,null,null,null,null,null,null,null,null,null,null,null,null,null,null,null,null,null,null,null,null,null,null,null,null,null,null,null,null,null,null,null,null,null,null,null,null,null,null,"JPN",null,null,null,null,null,null,null,null,null,null,null,null,null,null,null,null,null,null,"USA",null,null,null,null,"DNK",null,null,null,null,null,null,null,null,null,null,null,null,null,null,null,null,null,null,null,null,null,null,null,null,null,null,null,"JEY"]
[26,"","FOR_DIV_B_2","Amount of income arising or received before any tax taken off",null,null,null,null,null,null,null,null,null,null,null,null,null,null,null,null,null,null,null,null,null,null,null,null,null,null,null,null,null,null,null,null,null,null,null,null,null,null,null,null,null,null,null,null,null,null,null,null,null,null,null,null,null,null,null,null,null,null,null,null,null,null,null,null,null,null,null,null,null,null,null,null,null,null,null,null,null,null,null,null,null,null,null,36,null,null,null,null,null,null,null,null,null,null,null,null,null,null,null,null,null,null,null,null,null,null,null,null,null,null,null,null,null,null,null,500,null,100,null,500,null,null,901.92,null,null,null,null,null,null,null,null,null,null,null,null,null,null,null,999,75,null,null,8679,null,32.32,null,null,60,null,null,null,null,null,null,3804,null,null,null,null,null,null,17735,null,null,null,null,null,null,null,null,null,null,null,null,null,null,null,null,null,null,null,null,null,null,null,null,null,null,null,null,null,null,null,null,null,null,null,null,null,null,null,null,null,null,null,null,null,null,null,null,null,1000,null,null,null,null,null,null,null,null,null,null,null,null,null,null,null,null,null,null,1615,null,null,null,null,61765.16,null,null,null,null,null,null,null,null,null,null,null,null,null,null,null,null,null,null,null,null,null,null,null,null,null,null,null,1700]
[27,"","FOR_DIV_C_2","Foreign tax taken off or paid",null,null,null,null,null,null,null,null,null,null,null,null,null,null,null,null,null,null,null,null,null,null,null,null,null,null,null,null,null,null,null,null,null,null,null,null,null,null,null,null,null,null,null,null,null,null,null,null,null,null,null,null,null,null,null,null,null,null,null,null,null,null,null,null,null,null,null,null,null,null,null,null,null,null,null,null,null,null,null,null,null,null,null,6,null,null,null,null,null,null,null,null,null,null,null,null,null,null,null,null,null,null,null,null,null,null,null,null,null,null,null,null,null,null,null,75,null,26,null,75,null,null,224.98,null,null,null,null,null,null,null,null,null,null,null,null,null,null,null,150,12,null,null,1302,null,null,null,null,null,null,null,null,null,null,null,null,null,null,null,null,null,null,null,null,null,null,null,null,null,null,null,null,null,null,null,null,null,null,null,null,null,null,null,null,null,null,null,null,null,null,null,null,null,null,null,null,null,null,null,null,null,null,null,null,null,null,null,null,null,null,null,null,100,null,null,null,null,null,null,null,null,null,null,null,null,null,null,null,null,null,null,243,null,null,null,null,16584]
[28,"","FOR5_DIV_D_2","Special Withholding Tax and any UK tax taken off"]
[29,"","FOR_DIV_E_2","To claim Foreign Tax Credit Relief, put ‘X’ in the box",null,null,null,null,null,null,null,null,null,null,null,null,null,null,null,null,null,null,null,null,null,null,null,null,null,null,null,null,null,null,null,null,null,null,null,null,null,null,null,null,null,null,null,null,null,null,null,null,null,null,null,null,null,null,null,null,null,null,null,null,null,null,null,null,null,null,null,null,null,null,null,null,null,null,null,null,null,null,null,null,null,null,null,"Y",null,null,null,null,null,null,null,null,null,null,null,null,null,null,null,null,null,null,null,null,null,null,null,null,null,null,null,null,null,null,null,"Y",null,"Y",null,"Y",null,null,"Y",null,null,null,null,null,null,null,null,null,null,null,null,null,null,null,"Y","Y",null,null,"Y",null,null,null,null,null,null,null,null,null,null,null,null,null,null,null,null,null,null,null,null,null,null,null,null,null,null,null,null,null,null,null,null,null,null,null,null,null,null,null,null,null,null,null,null,null,null,null,null,null,null,null,null,null,null,null,null,null,null,null,null,null,null,null,null,null,null,null,null,"Y",null,null,null,null,null,null,null,null,null,null,null,null,null,null,null,null,null,null,"Y",null,null,null,null,"Y"]
[30,"","FOR6_DIV_F_2","Taxable amount",null,null,null,null,null,null,null,null,null,null,null,null,null,null,null,null,null,null,null,null,null,null,null,null,null,null,null,null,null,null,null,null,null,null,null,null,null,null,null,null,null,null,null,null,null,null,null,null,null,null,null,null,null,null,null,null,null,null,null,null,null,null,null,null,null,null,null,null,null,null,null,null,null,null,null,null,null,null,null,null,null,null,null,36,null,null,null,null,null,null,null,null,null,null,null,null,null,null,null,null,null,null,null,null,null,null,null,null,null,null,null,null,null,null,null,{"$f":"IF(DP29=\"Y\",DP26,MAX(0,DP26-DP27))","v":500},null,100,null,{"$f":"IF(DT29=\"Y\",DT26,MAX(0,DT26-DT27))","v":500},null,null,{"$f":"IF(DW29=\"Y\",DW26,MAX(0,DW26-DW27))","v":901.92},null,null,null,null,null,null,null,null,null,null,null,null,null,null,null,999,75,null,null,8679,null,32.32,null,null,60,null,null,null,null,null,null,3804,null,null,null,null,null,null,17735,null,null,null,null,null,null,null,null,null,null,null,null,null,null,null,null,null,null,null,null,null,null,null,null,null,null,null,null,null,null,null,null,null,null,null,null,null,null,null,null,null,null,null,null,null,null,null,null,null,{"$f":"IF(HH29=\"Y\",HH26,MAX(0,HH26-HH27))","v":1000},null,null,null,null,null,null,null,null,null,null,null,null,null,null,null,null,null,null,1615,null,null,null,null,{"$f":"IF(IF29=\"Y\",IF26,MAX(0,IF26-IF27))","v":61765.16},null,null,null,null,null,null,null,null,null,null,null,null,null,null,null,null,null,null,null,null,null,null,null,null,null,null,null,1700]
[31,"","FOR_DIV_A_3","Country or territory code",null,null,null,null,null,null,null,null,null,null,null,null,null,null,null,null,null,null,null,null,null,null,null,null,null,null,null,null,null,null,null,null,null,null,null,null,null,null,null,null,null,null,null,null,null,null,null,null,null,null,null,null,null,null,null,null,null,null,null,null,null,null,null,null,null,null,null,null,null,null,null,null,null,null,null,null,null,null,null,null,null,null,null,null,null,null,null,null,null,null,null,null,null,null,null,null,null,null,null,null,null,null,null,null,null,null,null,null,null,null,null,null,null,null,null,"BRN",null,null,null,"BRN",null,null,"CYM",null,null,null,null,null,null,null,null,null,null,null,null,null,null,null,"DNK","IRL",null,null,"USA",null,"JEY",null,null,null,null,null,null,null,null,null,null,null,null,null,null,null,null,"DEU",null,null,null,null,null,null,null,null,null,null,null,null,null,null,null,null,null,null,null,null,null,null,null,null,null,null,null,null,null,null,null,null,null,null,null,null,null,null,null,null,null,null,null,null,null,null,null,null,null,"JPN",null,null,null,null,null,null,null,null,null,null,null,null,null,null,null,null,null,null,null,null,null,null,null,null,null,null,null,null,null,null,null,null,null,null,null,null,null,null,null,null,null,null,null,null,null,null,null,null,null,null,null,"IRL"]
[32,"","FOR_DIV_B_3","Amount of income arising or received before any tax taken off",null,null,null,null,null,null,null,null,null,null,null,null,null,null,null,null,null,null,null,null,null,null,null,null,null,null,null,null,null,null,null,null,null,null,null,null,null,null,null,null,null,null,null,null,null,null,null,null,null,null,null,null,null,null,null,null,null,null,null,null,null,null,null,null,null,null,null,null,null,null,null,null,null,null,null,null,null,null,null,null,null,null,null,null,null,null,null,null,null,null,null,null,null,null,null,null,null,null,null,null,null,null,null,null,null,null,null,null,null,null,null,null,null,null,null,659,null,null,null,659,null,null,3776.96,null,null,null,null,null,null,null,null,null,null,null,null,null,null,null,469,15,null,null,4375,null,39.369999999999997,null,null,null,null,null,null,null,null,null,null,null,null,null,null,null,null,17234,null,null,null,null,null,null,null,null,null,null,null,null,null,null,null,null,null,null,null,null,null,null,null,null,null,null,null,null,null,null,null,null,null,null,null,null,null,null,null,null,null,null,null,null,null,null,null,null,null,500,null,null,null,null,null,null,null,null,null,null,null,null,null,null,null,null,null,null,null,null,null,null,null,null,null,null,null,null,null,null,null,null,null,null,null,null,null,null,null,null,null,null,null,null,null,null,null,null,null,null,null,468]
[33,"","FOR_DIV_C_3","Foreign tax taken off or paid",null,null,null,null,null,null,null,null,null,null,null,null,null,null,null,null,null,null,null,null,null,null,null,null,null,null,null,null,null,null,null,null,null,null,null,null,null,null,null,null,null,null,null,null,null,null,null,null,null,null,null,null,null,null,null,null,null,null,null,null,null,null,null,null,null,null,null,null,null,null,null,null,null,null,null,null,null,null,null,null,null,null,null,null,null,null,null,null,null,null,null,null,null,null,null,null,null,null,null,null,null,null,null,null,null,null,null,null,null,null,null,null,null,null,null,98.85,null,null,null,98.85,null,null,null,null,null,null,null,null,null,null,null,null,null,null,null,null,null,null,71,null,null,null,3656,null,null,null,null,null,null,null,null,null,null,null,null,null,null,null,null,null,null,4507,null,null,null,null,null,null,null,null,null,null,null,null,null,null,null,null,null,null,null,null,null,null,null,null,null,null,null,null,null,null,null,null,null,null,null,null,null,null,null,null,null,null,null,null,null,null,null,null,null,50]
[34,"","FOR5_DIV_D_3","Special Withholding Tax and any UK tax taken off"]
[35,"","FOR_DIV_E_3","To claim Foreign Tax Credit Relief, put ‘X’ in the box",null,null,null,null,null,null,null,null,null,null,null,null,null,null,null,null,null,null,null,null,null,null,null,null,null,null,null,null,null,null,null,null,null,null,null,null,null,null,null,null,null,null,null,null,null,null,null,null,null,null,null,null,null,null,null,null,null,null,null,null,null,null,null,null,null,null,null,null,null,null,null,null,null,null,null,null,null,null,null,null,null,null,null,null,null,null,null,null,null,null,null,null,null,null,null,null,null,null,null,null,null,null,null,null,null,null,null,null,null,null,null,null,null,null,null,"Y",null,null,null,"Y",null,null,null,null,null,null,null,null,null,null,null,null,null,null,null,null,null,null,"Y",null,null,null,"Y",null,null,null,null,null,null,null,null,null,null,null,null,null,null,null,null,null,null,"Y",null,null,null,null,null,null,null,null,null,null,null,null,null,null,null,null,null,null,null,null,null,null,null,null,null,null,null,null,null,null,null,null,null,null,null,null,null,null,null,null,null,null,null,null,null,null,null,null,null,"Y"]
[36,"","FOR6_DIV_F_3","Taxable amount",null,null,null,null,null,null,null,null,null,null,null,null,null,null,null,null,null,null,null,null,null,null,null,null,null,null,null,null,null,null,null,null,null,null,null,null,null,null,null,null,null,null,null,null,null,null,null,null,null,null,null,null,null,null,null,null,null,null,null,null,null,null,null,null,null,null,null,null,null,null,null,null,null,null,null,null,null,null,null,null,null,null,null,null,null,null,null,null,null,null,null,null,null,null,null,null,null,null,null,null,null,null,null,null,null,null,null,null,null,null,null,null,null,null,null,{"$f":"IF(DP35=\"Y\",DP32,MAX(0,DP32-DP33))","v":659},null,null,null,{"$f":"IF(DT35=\"Y\",DT32,MAX(0,DT32-DT33))","v":659},null,null,3776.96,null,null,null,null,null,null,null,null,null,null,null,null,null,null,null,469,15,null,null,4375,null,39.369999999999997,null,null,null,null,null,null,null,null,null,null,null,null,null,null,null,null,17234,null,null,null,null,null,null,null,null,null,null,null,null,null,null,null,null,null,null,null,null,null,null,null,null,null,null,null,null,null,null,null,null,null,null,null,null,null,null,null,null,null,null,null,null,null,null,null,null,null,{"$f":"IF(HH35=\"Y\",HH32,MAX(0,HH32-HH33))","v":500},null,null,null,null,null,null,null,null,null,null,null,null,null,null,null,null,null,null,null,null,null,null,null,null,null,null,null,null,null,null,null,null,null,null,null,null,null,null,null,null,null,null,null,null,null,null,null,null,null,null,null,468]
[37,"","FOR_DIV_A_4","Country or territory code",null,null,null,null,null,null,null,null,null,null,null,null,null,null,null,null,null,null,null,null,null,null,null,null,null,null,null,null,null,null,null,null,null,null,null,null,null,null,null,null,null,null,null,null,null,null,null,null,null,null,null,null,null,null,null,null,null,null,null,null,null,null,null,null,null,null,null,null,null,null,null,null,null,null,null,null,null,null,null,null,null,null,null,null,null,null,null,null,null,null,null,null,null,null,null,null,null,null,null,null,null,null,null,null,null,null,null,null,null,null,null,null,null,null,null,"JPN",null,null,null,"JPN",null,null,"IRL",null,null,null,null,null,null,null,null,null,null,null,null,null,null,null,"NOR","GGY",null,null,null,null,null,null,null,null,null,null,null,null,null,null,null,null,null,null,null,null,null,"USA",null,null,null,null,null,null,null,null,null,null,null,null,null,null,null,null,null,null,null,null,null,null,null,null,null,null,null,null,null,null,null,null,null,null,null,null,null,null,null,null,null,null,null,null,null,null,null,null,null,null,null,null,null,null,null,null,null,null,null,null,null,null,null,null,null,null,null,null,null,null,"DNK",null,null,null,null,null,null,null,null,null,null,null,null,null,null,null,null,null,null,null,null,null,null,null,null,null,null,null,null,null,null,"IRL"]
[38,"","FOR_DIV_B_4","Amount of income arising or received before any tax taken off",null,null,null,null,null,null,null,null,null,null,null,null,null,null,null,null,null,null,null,null,null,null,null,null,null,null,null,null,null,null,null,null,null,null,null,null,null,null,null,null,null,null,null,null,null,null,null,null,null,null,null,null,null,null,null,null,null,null,null,null,null,null,null,null,null,null,null,null,null,null,null,null,null,null,null,null,null,null,null,null,null,null,null,null,null,null,null,null,null,null,null,null,null,null,null,null,null,null,null,null,null,null,null,null,null,null,null,null,null,null,null,null,null,null,null,500,null,null,null,500,null,null,4938.22,null,null,null,null,null,null,null,null,null,null,null,null,null,null,null,170,122,null,null,null,null,null,null,null,null,null,null,null,null,null,null,null,null,null,null,null,null,null,26295,null,null,null,null,null,null,null,null,null,null,null,null,null,null,null,null,null,null,null,null,null,null,null,null,null,null,null,null,null,null,null,null,null,null,null,null,null,null,null,null,null,null,null,null,null,null,null,null,null,null,null,null,null,null,null,null,null,null,null,null,null,null,null,null,null,null,null,null,null,null,14669,null,null,null,null,null,null,null,null,null,null,null,null,null,null,null,null,null,null,null,null,null,null,null,null,null,null,null,null,null,null,1]
[39,"","FOR_DIV_C_4","Foreign tax taken off or paid",null,null,null,null,null,null,null,null,null,null,null,null,null,null,null,null,null,null,null,null,null,null,null,null,null,null,null,null,null,null,null,null,null,null,null,null,null,null,null,null,null,null,null,null,null,null,null,null,null,null,null,null,null,null,null,null,null,null,null,null,null,null,null,null,null,null,null,null,null,null,null,null,null,null,null,null,null,null,null,null,null,null,null,null,null,null,null,null,null,null,null,null,null,null,null,null,null,null,null,null,null,null,null,null,null,null,null,null,null,null,null,null,null,null,null,50,null,null,null,50,null,null,301.07,null,null,null,null,null,null,null,null,null,null,null,null,null,null,null,26,null,null,null,null,null,null,null,null,null,null,null,null,null,null,null,null,null,null,null,null,null,null,7866]
[40,"","FOR5_DIV_D_4","Special Withholding Tax and any UK tax taken off"]
[41,"","FOR_DIV_E_4","To claim Foreign Tax Credit Relief, put ‘X’ in the box",null,null,null,null,null,null,null,null,null,null,null,null,null,null,null,null,null,null,null,null,null,null,null,null,null,null,null,null,null,null,null,null,null,null,null,null,null,null,null,null,null,null,null,null,null,null,null,null,null,null,null,null,null,null,null,null,null,null,null,null,null,null,null,null,null,null,null,null,null,null,null,null,null,null,null,null,null,null,null,null,null,null,null,null,null,null,null,null,null,null,null,null,null,null,null,null,null,null,null,null,null,null,null,null,null,null,null,null,null,null,null,null,null,null,null,"Y",null,null,null,"Y",null,null,"Y",null,null,null,null,null,null,null,null,null,null,null,null,null,null,null,"Y",null,null,null,null,null,null,null,null,null,null,null,null,null,null,null,null,null,null,null,null,null,null,"Y"]
[42,"","FOR6_DIV_F_4","Taxable amount",null,null,null,null,null,null,null,null,null,null,null,null,null,null,null,null,null,null,null,null,null,null,null,null,null,null,null,null,null,null,null,null,null,null,null,null,null,null,null,null,null,null,null,null,null,null,null,null,null,null,null,null,null,null,null,null,null,null,null,null,null,null,null,null,null,null,null,null,null,null,null,null,null,null,null,null,null,null,null,null,null,null,null,null,null,null,null,null,null,null,null,null,null,null,null,null,null,null,null,null,null,null,null,null,null,null,null,null,null,null,null,null,null,null,null,{"$f":"IF(DP41=\"Y\",DP38,MAX(0,DP38-DP39))","v":500},null,null,null,{"$f":"IF(DT41=\"Y\",DT38,MAX(0,DT38-DT39))","v":500},null,null,{"$f":"IF(DW41=\"Y\",DW38,MAX(0,DW38-DW39))","v":4938.22},null,null,null,null,null,null,null,null,null,null,null,null,null,null,null,170,122,null,null,null,null,null,null,null,null,null,null,null,null,null,null,null,null,null,null,null,null,null,26295,null,null,null,null,null,null,null,null,null,null,null,null,null,null,null,null,null,null,null,null,null,null,null,null,null,null,null,null,null,null,null,null,null,null,null,null,null,null,null,null,null,null,null,null,null,null,null,null,null,null,null,null,null,null,null,null,null,null,null,null,null,null,null,null,null,null,null,null,null,null,{"$f":"IF(IC41=\"Y\",IC38,MAX(0,IC38-IC39))","v":14669},null,null,null,null,null,null,null,null,null,null,null,null,null,null,null,null,null,null,null,null,null,null,null,null,null,null,null,null,null,null,1]
[43,"","FOR_DIV_A_5","Country or territory code",null,null,null,null,null,null,null,null,null,null,null,null,null,null,null,null,null,null,null,null,null,null,null,null,null,null,null,null,null,null,null,null,null,null,null,null,null,null,null,null,null,null,null,null,null,null,null,null,null,null,null,null,null,null,null,null,null,null,null,null,null,null,null,null,null,null,null,null,null,null,null,null,null,null,null,null,null,null,null,null,null,null,null,null,null,null,null,null,null,null,null,null,null,null,null,null,null,null,null,null,null,null,null,null,null,null,null,null,null,null,null,null,null,null,null,null,null,null,null,null,null,null,"USA",null,null,null,null,null,null,null,null,null,null,null,null,null,null,null,"FRA","FIN ",null,null,null,null,null,null,null,null,null,null,null,null,null,null,null,null,null,null,null,null,null,"JPN"]
[44,"","FOR_DIV_B_5","Amount of income arising or received before any tax taken off",null,null,null,null,null,null,null,null,null,null,null,null,null,null,null,null,null,null,null,null,null,null,null,null,null,null,null,null,null,null,null,null,null,null,null,null,null,null,null,null,null,null,null,null,null,null,null,null,null,null,null,null,null,null,null,null,null,null,null,null,null,null,null,null,null,null,null,null,null,null,null,null,null,null,null,null,null,null,null,null,null,null,null,null,null,null,null,null,null,null,null,null,null,null,null,null,null,null,null,null,null,null,null,null,null,null,null,null,null,null,null,null,null,null,null,null,null,null,null,null,null,null,9958.17,null,null,null,null,null,null,null,null,null,null,null,null,null,null,null,609,667,null,null,null,null,null,null,null,null,null,null,null,null,null,null,null,null,null,null,null,null,null,11495]
[45,"","FOR_DIV_C_5","Foreign tax taken off or paid",null,null,null,null,null,null,null,null,null,null,null,null,null,null,null,null,null,null,null,null,null,null,null,null,null,null,null,null,null,null,null,null,null,null,null,null,null,null,null,null,null,null,null,null,null,null,null,null,null,null,null,null,null,null,null,null,null,null,null,null,null,null,null,null,null,null,null,null,null,null,null,null,null,null,null,null,null,null,null,null,null,null,null,null,null,null,null,null,null,null,null,null,null,null,null,null,null,null,null,null,null,null,null,null,null,null,null,null,null,null,null,null,null,null,null,null,null,null,null,null,null,null,null,null,null,null,null,null,null,null,null,null,null,null,null,null,null,null,92,null,null,null,null,null,null,null,null,null,null,null,null,null,null,null,null,null,null,null,null,null,null,2612]
[46,"","FOR5_DIV_D_5","Special Withholding Tax and any UK tax taken off",null,null,null,null,null,null,null,null,null,null,null,null,null,null,null,null,null,null,null,null,null,null,null,null,null,null,null,null,null,null,null,null,null,null,null,null,null,null,null,null,null,null,null,null,null,null,null,null,null,null,null,null,null,null,null,null,null,null,null,null,null,null,null,null,null,null,null,null,null,null,null,null,null,null,null,null,null,null,null,null,null,null,null,null,null,null,null,null,null,null,null,null,null,null,null,null,null,null,null,null,null,null,null,null,null,null,null,null,null,null,null,null,null,null,null,null,null,null,null,null,null,null,1470.68]
[47,"","FOR_DIV_E_5","To claim Foreign Tax Credit Relief, put ‘X’ in the box",null,null,null,null,null,null,null,null,null,null,null,null,null,null,null,null,null,null,null,null,null,null,null,null,null,null,null,null,null,null,null,null,null,null,null,null,null,null,null,null,null,null,null,null,null,null,null,null,null,null,null,null,null,null,null,null,null,null,null,null,null,null,null,null,null,null,null,null,null,null,null,null,null,null,null,null,null,null,null,null,null,null,null,null,null,null,null,null,null,null,null,null,null,null,null,null,null,null,null,null,null,null,null,null,null,null,null,null,null,null,null,null,null,null,null,null,null,null,null,null,null,null,"Y",null,null,null,null,null,null,null,null,null,null,null,null,null,null,null,"Y",null,null,null,null,null,null,null,null,null,null,null,null,null,null,null,null,null,null,null,null,null,null,"Y"]
[48,"","FOR6_DIV_F_5","Taxable amount",null,null,null,null,null,null,null,null,null,null,null,null,null,null,null,null,null,null,null,null,null,null,null,null,null,null,null,null,null,null,null,null,null,null,null,null,null,null,null,null,null,null,null,null,null,null,null,null,null,null,null,null,null,null,null,null,null,null,null,null,null,null,null,null,null,null,null,null,null,null,null,null,null,null,null,null,null,null,null,null,null,null,null,null,null,null,null,null,null,null,null,null,null,null,null,null,null,null,null,null,null,null,null,null,null,null,null,null,null,null,null,null,null,null,null,null,null,null,null,null,null,null,9958.17,null,null,null,null,null,null,null,null,null,null,null,null,null,null,null,609,667,null,null,null,null,null,null,null,null,null,null,null,null,null,null,null,null,null,null,null,null,null,11495]
[49,"","FOR5_TOT","Total of column above",null,null,null,null,null,null,null,null,null,null,null,null,null,null,null,null,null,null,null,null,null,null,null,null,null,null,null,null,null,null,null,null,null,null,null,null,null,null,null,null,null,null,null,null,null,null,null,null,null,null,null,null,null,null,null,null,null,null,null,null,null,null,null,null,null,null,null,null,null,null,null,null,null,null,null,null,null,null,null,null,null,null,null,null,null,null,null,null,null,null,null,null,null,null,null,null,null,null,null,null,null,null,null,null,null,null,null,null,null,null,null,null,null,null,null,null,null,null,null,null,null,null,1470.68]
[50,"","FOR6_TOT","Total of column above",null,null,null,null,null,null,null,null,null,null,null,null,null,null,null,null,null,null,null,null,null,null,null,null,null,null,null,null,null,null,null,null,null,null,null,null,null,null,null,null,null,null,null,null,{"$f":"AW24+AW30+AW36+AW42+AW48","v":1275},null,null,null,null,{"$f":"BB24+BB30+BB36+BB42+BB48","v":0},{"$f":"BC24+BC30+BC36+BC42+BC48","v":2679},{"$f":"BD24+BD30+BD36+BD42+BD48","v":2679},null,null,null,null,null,{"$f":"BJ24+BJ30+BJ36+BJ42+BJ48","v":0},null,null,null,null,null,null,null,null,null,null,null,null,null,null,null,null,null,null,null,null,null,null,null,null,null,{"$f":"CJ24+CJ30+CJ36+CJ42+CJ48","v":515},null,null,null,null,null,null,null,null,null,{"$f":"CT24+CT30+CT36+CT42+CT48","v":422},null,null,null,null,null,null,null,null,null,null,null,null,null,null,null,null,null,null,{"$f":"DM24+DM30+DM36+DM42+DM48","v":13770},null,null,{"$f":"DP24+DP30+DP36+DP42+DP48","v":2159},null,{"$f":"DR24+DR30+DR36+DR42+DR48","v":176},null,{"$f":"DT24+DT30+DT36+DT42+DT48","v":2159},null,null,{"$f":"DW24+DW30+DW36+DW42+DW48","v":20127.43},null,null,null,null,null,null,null,null,null,null,null,null,null,null,null,{"$f":"EM24+EM30+EM36+EM42+EM48","v":6052},926,{"$f":"EO24+EO30+EO36+EO42+EO48","v":4352.1899999999996},null,{"$f":"EQ24+EQ30+EQ36+EQ42+EQ48","v":14887},null,{"$f":"ES24+ES30+ES36+ES42+ES48","v":116.00999999999999},null,null,{"$f":"EV24+EV30+EV36+EV42+EV48","v":4419},{"$f":"EW24+EW30+EW36+EW42+EW48","v":0},{"$f":"EX24+EX30+EX36+EX42+EX48","v":659},null,null,null,{"$f":"FB24+FB30+FB36+FB42+FB48","v":129793},{"$f":"FC24+FC30+FC36+FC42+FC48","v":6304},null,null,{"$f":"FF24+FF30+FF36+FF42+FF48","v":30886},null,null,null,{"$f":"FJ24+FJ30+FJ36+FJ42+FJ48","v":78173},{"$f":"FK24+FK30+FK36+FK42+FK48","v":108},null,null,null,{"$f":"FO24+FO30+FO36+FO42+FO48","v":606},null,null,null,null,null,null,null,null,null,null,null,null,null,null,null,null,{"$f":"GF24+GF30+GF36+GF42+GF48","v":2679},null,null,null,null,null,null,null,null,null,null,null,null,null,null,null,null,null,null,null,null,null,null,null,null,null,null,{"$f":"HG24+HG30+HG36+HG42+HG48","v":425},{"$f":"HH24+HH30+HH36+HH42+HH48","v":2000},null,null,null,null,null,null,null,{"$f":"HP24+HP30+HP36+HP42+HP48","v":659},null,null,null,null,null,null,null,null,null,null,{"$f":"IA24+IA30+IA36+IA42+IA48","v":2328},null,{"$f":"IC24+IC30+IC36+IC42+IC48","v":14669},{"$f":"ID24+ID30+ID36+ID42+ID48","v":0},0,{"$f":"IF24+IF30+IF36+IF42+IF48","v":84227.16},{"$f":"IG24+IG30+IG36+IG42+IG48","v":0},{"$f":"IH24+IH30+IH36+IH42+IH48","v":6332},null,null,{"$f":"IK24+IK30+IK36+IK42+IK48","v":19064},null,null,null,null,null,null,null,null,null,null,null,null,null,null,null,null,null,null,null,{"$f":"JE24+JE30+JE36+JE42+JE48","v":0},{"$f":"JF24+JF30+JF36+JF42+JF48","v":422},null,2413,null,null,null,null,null,null,null,17997]
[51,{"$f":"IF(FOR_IND>1,IF(HLOOKUP(FOR_IND-1,FOR_RANGE,A51)=\"\",\"\",HLOOKUP(FOR_IND-1,FOR_RANGE,A51)),\"\")","v":""},"FOR6.1","Total claimed under FIG regime",null,null,null,null,null,null,null,null,null,null,null,null,null,null,null,null,null,null,null,null,null,null,null,null,null,null,null,null,null,null,null,null,null,null,null,null,null,null,null,null,null,null,null,null,null,null,null,null,null,null,null,null,null,null,null,null,null,null,null,null,null,null,null,null,null,null,null,null,null,null,null,null,null,null,null,null,null,null,null,null,null,null,null,null,null,null,null,null,null,null,null,null,null,null,null,null,null,null,null,null,null,null,null,null,null,null,null,null,null,null,null,null,null,null,null,null,null,null,null,null,null,null,null,null,null,null,null,null,null,null,null,null,null,null,null,null,null,null,null,null,null,null,null,null,null,null,null,null,null,null,null,null,null,null,null,null,null,null,null,null,null,null,null,null,null,null,null,null,null,null,null,null,null,null,null,null,null,null,null,null,null,null,null,null,null,null,null,null,null,null,null,null,null,null,null,null,null,null,null,null,null,null,null,null,null,null,null,null,null,null,425,null,null,null,null,null,null,null,null,null,null,null,null,null,null,null,null,null,null,null,null,null,null,null,null,null,null,null,null,null,19064]
[52,"","FOR_R_INT_A_1","Country or territory code",null,null,null,null,null,null,null,null,null,null,null,null,null,null,null,null,null,null,null,null,null,null,null,null,null,null,null,null,null,null,null,null,null,null,null,null,null,null,null,null,null,null,null,null,null,null,null,null,null,null,null,null,null,null,null,null,null,null,null,null,null,null,null,null,null,null,null,null,null,null,null,null,null,null,null,null,null,null,null,null,null,null,null,null,null,null,null,null,null,null,null,null,null,null,null,null,null,null,null,null,null,null,null,null,null,null,null,null,null,null,null,null,null,null,null,null,null,null,null,null,null,null,null,null,null,null,null,null,null,null,null,null,"CAN",null,null,null,null,null,null,null,null,null,null,null,null,null,null,null,null,null,null,null,null,null,null,null,null,null,null,null,null,null,null,null,null,null,null,null,null,null,null,null,null,null,null,null,null,null,null,null,null,null,null,null,null,null,null,null,null,null,null,null,null,null,null,null,null,null,null,null,null,null,null,null,null,null,null,null,null,null,null,null,null,null,null,null,null,null,null,null,null,null,null,null,null,null,null,null,null,null,null,null,null,null,null,null,null,null,null,null,null,null,null,null,null,null,null,null,null,null,null,null,null,null,null,null,null,null,null,null,"CAN"]
[53,"","FOR_R_INT_B_1","Amount of income arising or received before any tax taken off",null,null,null,null,null,null,null,null,null,null,null,null,null,null,null,null,null,null,null,null,null,null,null,null,null,null,null,null,null,null,null,null,null,null,null,null,null,null,null,null,null,null,null,null,null,null,null,null,null,null,null,null,null,null,null,null,null,null,null,null,null,null,null,null,null,null,null,null,null,null,null,null,null,null,null,null,null,null,null,null,null,null,null,null,null,null,null,null,null,null,null,null,null,null,null,null,null,null,null,null,null,null,null,null,null,null,null,null,null,null,null,null,null,null,null,null,null,null,null,null,null,null,null,null,null,null,null,null,null,null,null,null,3562,null,null,null,null,null,null,null,null,null,null,null,null,null,null,null,null,null,null,null,null,null,null,null,null,null,null,null,null,null,null,null,null,null,null,null,null,null,null,null,null,null,null,null,null,null,null,null,null,null,null,null,null,null,null,null,null,null,null,null,null,null,null,null,null,null,null,null,null,null,null,null,null,null,null,null,null,null,null,null,null,null,null,null,null,null,null,null,null,null,null,null,null,null,null,null,null,null,null,null,null,null,null,null,null,null,null,null,null,null,null,null,null,null,null,null,null,null,null,null,null,null,null,null,null,null,null,null,3562]
[54,"","FOR_R_INT_C_1","Foreign tax taken off or paid",null,null,null,null,null,null,null,null,null,null,null,null,null,null,null,null,null,null,null,null,null,null,null,null,null,null,null,null,null,null,null,null,null,null,null,null,null,null,null,null,null,null,null,null,null,null,null,null,null,null,null,null,null,null,null,null,null,null,null,null,null,null,null,null,null,null,null,null,null,null,null,null,null,null,null,null,null,null,null,null,null,null,null,null,null,null,null,null,null,null,null,null,null,null,null,null,null,null,null,null,null,null,null,null,null,null,null,null,null,null,null,null,null,null,null,null,null,null,null,null,null,null,null,null,null,null,null,null,null,null,null,null,356,null,null,null,null,null,null,null,null,null,null,null,null,null,null,null,null,null,null,null,null,null,null,null,null,null,null,null,null,null,null,null,null,null,null,null,null,null,null,null,null,null,null,null,null,null,null,null,null,null,null,null,null,null,null,null,null,null,null,null,null,null,null,null,null,null,null,null,null,null,null,null,null,null,null,null,null,null,null,null,null,null,null,null,null,null,null,null,null,null,null,null,null,null,null,null,null,null,null,null,null,null,null,null,null,null,null,null,null,null,null,null,null,null,null,null,null,null,null,null,null,null,null,null,null,null,null,null,356]
[55,"","FOR7.1_R_INT_D_1","Special Withholding Tax and any UK tax taken off"]
[56,"","FOR_R_INT_E_1","To claim Foreign Tax Credit Relief, put ‘X’ in the box",null,null,null,null,null,null,null,null,null,null,null,null,null,null,null,null,null,null,null,null,null,null,null,null,null,null,null,null,null,null,null,null,null,null,null,null,null,null,null,null,null,null,null,null,null,null,null,null,null,null,null,null,null,null,null,null,null,null,null,null,null,null,null,null,null,null,null,null,null,null,null,null,null,null,null,null,null,null,null,null,null,null,null,null,null,null,null,null,null,null,null,null,null,null,null,null,null,null,null,null,null,null,null,null,null,null,null,null,null,null,null,null,null,null,null,null,null,null,null,null,null,null,null,null,null,null,null,null,null,null,null,null,"Y",null,null,null,null,null,null,null,null,null,null,null,null,null,null,null,null,null,null,null,null,null,null,null,null,null,null,null,null,null,null,null,null,null,null,null,null,null,null,null,null,null,null,null,null,null,null,null,null,null,null,null,null,null,null,null,null,null,null,null,null,null,null,null,null,null,null,null,null,null,null,null,null,null,null,null,null,null,null,null,null,null,null,null,null,null,null,null,null,null,null,null,null,null,null,null,null,null,null,null,null,null,null,null,null,null,null,null,null,null,null,null,null,null,null,null,null,null,null,null,null,null,null,null,null,null,null,null,"Y"]
[57,"","FOR7.2_R_INT_F_1","Taxable amount",null,null,null,null,null,null,null,null,null,null,null,null,null,null,null,null,null,null,null,null,null,null,null,null,null,null,null,null,null,null,null,null,null,null,null,null,null,null,null,null,null,null,null,null,null,null,null,null,null,null,null,null,null,null,null,null,null,null,null,null,null,null,null,null,null,null,null,null,null,null,null,null,null,null,null,null,null,null,null,null,null,null,null,null,null,null,null,null,null,null,null,null,null,null,null,null,null,null,null,null,null,null,null,null,null,null,null,null,null,null,null,null,null,null,null,null,null,null,null,null,null,null,null,null,null,null,null,null,null,null,null,null,{"$f":"IF(EG56=\"Y\",EG53,MAX(0,EG53-EG54))","v":3562},null,null,null,null,null,null,null,null,null,null,null,null,null,null,null,null,null,null,null,null,null,null,null,null,null,null,null,null,null,null,null,null,null,null,null,null,null,null,null,null,null,null,null,null,null,null,null,null,null,null,null,null,null,null,null,null,null,null,null,null,null,null,null,null,null,null,null,null,null,null,null,null,null,null,null,null,null,null,null,null,null,null,null,null,null,null,null,null,null,null,null,null,null,null,null,null,null,null,null,null,null,null,null,null,null,null,null,null,null,null,null,null,null,null,null,null,null,null,null,null,null,null,null,null,null,null,null,{"$f":"IF(JE56=\"Y\",JE53,MAX(0,JE53-JE54))","v":3562}]
[58,"","FOR7.1_TOT","Total of column above"]
[59,"","FOR7.2_TOT","Total of column above",null,null,null,null,null,null,null,null,null,null,null,null,null,null,null,null,null,null,null,null,null,null,null,null,null,null,null,null,null,null,null,null,null,null,null,null,null,null,null,null,null,null,null,null,null,null,null,null,null,null,null,null,null,null,null,null,null,null,null,null,null,null,null,null,null,null,null,null,null,null,null,null,null,null,null,null,null,null,null,null,null,null,null,null,null,null,null,null,null,null,null,null,null,null,null,null,null,null,null,null,null,null,null,null,null,null,null,null,null,null,null,null,null,null,null,null,null,null,null,null,null,null,null,null,null,null,null,null,null,null,null,null,3562,null,null,null,null,null,null,null,null,null,null,null,null,null,null,null,null,null,null,null,null,null,null,null,null,null,null,null,null,null,null,null,null,null,null,null,null,null,null,null,null,null,null,null,null,null,null,null,null,null,null,null,null,null,null,null,null,null,null,null,null,null,null,null,null,null,null,null,null,null,null,null,null,null,null,null,null,null,null,null,null,null,null,null,null,null,null,null,null,null,null,null,null,null,null,null,null,null,null,null,null,null,null,null,null,null,null,null,null,null,null,null,null,null,null,null,null,null,null,null,null,null,null,null,null,null,null,null,3562]
[60,"","FOR_R_DIV_A_1","Country or territory code",null,null,null,null,null,null,null,null,null,null,null,null,null,null,null,null,null,null,null,null,null,null,null,null,null,null,null,null,null,null,null,null,null,null,null,null,null,null,null,null,null,null,null,null,null,null,null,null,null,null,null,null,null,null,null,null,null,null,null,null,null,null,null,null,null,null,null,null,null,null,null,null,null,null,null,null,null,null,null,null,null,null,null,null,null,null,null,null,null,null,null,null,null,null,null,null,null,null,null,null,null,null,null,null,null,null,null,null,null,null,null,null,null,null,null,null,null,null,null,null,null,null,null,null,null,null,null,null,null,null,null,null,"TCA",null,null,null,null,null,null,null,null,null,null,null,null,null,null,null,null,null,null,null,null,null,null,null,null,null,null,null,null,null,null,null,null,null,null,null,null,null,null,null,null,null,null,null,null,null,null,null,null,null,null,null,null,null,null,null,null,null,null,null,null,null,null,null,null,null,null,null,null,null,null,null,null,null,null,null,null,null,null,null,null,null,null,null,null,null,null,null,null,null,null,null,null,null,null,null,null,null,null,null,null,null,null,null,null,null,null,null,null,null,null,null,null,null,null,null,null,null,null,null,null,null,null,null,null,null,null,null,"TCA"]
[61,"","FOR_R_DIV_B_1","Amount of income arising or received before any tax taken off",null,null,null,null,null,null,null,null,null,null,null,null,null,null,null,null,null,null,null,null,null,null,null,null,null,null,null,null,null,null,null,null,null,null,null,null,null,null,null,null,null,null,null,null,null,null,null,null,null,null,null,null,null,null,null,null,null,null,null,null,null,null,null,null,null,null,null,null,null,null,null,null,null,null,null,null,null,null,null,null,null,null,null,null,null,null,null,null,null,null,null,null,null,null,null,null,null,null,null,null,null,null,null,null,null,null,null,null,null,null,null,null,null,null,null,null,null,null,null,null,null,null,null,null,null,null,null,null,null,null,null,null,2679,null,null,null,null,null,null,null,null,null,null,null,null,null,null,null,null,null,null,null,null,null,null,null,null,null,null,null,null,null,null,null,null,null,null,null,null,null,null,null,null,null,null,null,null,null,null,null,null,null,null,null,null,null,null,null,null,null,null,null,null,null,null,null,null,null,null,null,null,null,null,null,null,null,null,null,null,null,null,null,null,null,null,null,null,null,null,null,null,null,null,null,null,null,null,null,null,null,null,null,null,null,null,null,null,null,null,null,null,null,null,null,null,null,null,null,null,null,null,null,null,null,null,null,null,null,null,null,2679]
[62,"","FOR_R_DIV_C_1","Foreign tax taken off or paid",null,null,null,null,null,null,null,null,null,null,null,null,null,null,null,null,null,null,null,null,null,null,null,null,null,null,null,null,null,null,null,null,null,null,null,null,null,null,null,null,null,null,null,null,null,null,null,null,null,null,null,null,null,null,null,null,null,null,null,null,null,null,null,null,null,null,null,null,null,null,null,null,null,null,null,null,null,null,null,null,null,null,null,null,null,null,null,null,null,null,null,null,null,null,null,null,null,null,null,null,null,null,null,null,null,null,null,null,null,null,null,null,null,null,null,null,null,null,null,null,null,null,null,null,null,null,null,null,null,null,null,null,401,null,null,null,null,null,null,null,null,null,null,null,null,null,null,null,null,null,null,null,null,null,null,null,null,null,null,null,null,null,null,null,null,null,null,null,null,null,null,null,null,null,null,null,null,null,null,null,null,null,null,null,null,null,null,null,null,null,null,null,null,null,null,null,null,null,null,null,null,null,null,null,null,null,null,null,null,null,null,null,null,null,null,null,null,null,null,null,null,null,null,null,null,null,null,null,null,null,null,null,null,null,null,null,null,null,null,null,null,null,null,null,null,null,null,null,null,null,null,null,null,null,null,null,null,null,null,null,401]
[63,"","FOR7.3_R_DIV_D_1","Special Withholding Tax and any UK tax taken off"]
[64,"","FOR_R_DIV_E_1","To claim Foreign Tax Credit Relief, put ‘X’ in the box",null,null,null,null,null,null,null,null,null,null,null,null,null,null,null,null,null,null,null,null,null,null,null,null,null,null,null,null,null,null,null,null,null,null,null,null,null,null,null,null,null,null,null,null,null,null,null,null,null,null,null,null,null,null,null,null,null,null,null,null,null,null,null,null,null,null,null,null,null,null,null,null,null,null,null,null,null,null,null,null,null,null,null,null,null,null,null,null,null,null,null,null,null,null,null,null,null,null,null,null,null,null,null,null,null,null,null,null,null,null,null,null,null,null,null,null,null,null,null,null,null,null,null,null,null,null,null,null,null,null,null,null,"Y",null,null,null,null,null,null,null,null,null,null,null,null,null,null,null,null,null,null,null,null,null,null,null,null,null,null,null,null,null,null,null,null,null,null,null,null,null,null,null,null,null,null,null,null,null,null,null,null,null,null,null,null,null,null,null,null,null,null,null,null,null,null,null,null,null,null,null,null,null,null,null,null,null,null,null,null,null,null,null,null,null,null,null,null,null,null,null,null,null,null,null,null,null,null,null,null,null,null,null,null,null,null,null,null,null,null,null,null,null,null,null,null,null,null,null,null,null,null,null,null,null,null,null,null,null,null,null,"Y"]
[65,"","FOR7.4_R_DIV_F_1","Taxable amount",null,null,null,null,null,null,null,null,null,null,null,null,null,null,null,null,null,null,null,null,null,null,null,null,null,null,null,null,null,null,null,null,null,null,null,null,null,null,null,null,null,null,null,null,null,null,null,null,null,null,null,null,null,null,null,null,null,null,null,null,null,null,null,null,null,null,null,null,null,null,null,null,null,null,null,null,null,null,null,null,null,null,null,null,null,null,null,null,null,null,null,null,null,null,null,null,null,null,null,null,null,null,null,null,null,null,null,null,null,null,null,null,null,null,null,null,null,null,null,null,null,null,null,null,null,null,null,null,null,null,null,null,2679,null,null,null,null,null,null,null,null,null,null,null,null,null,null,null,null,null,null,null,null,null,null,null,null,null,null,null,null,null,null,null,null,null,null,null,null,null,null,null,null,null,null,null,null,null,null,null,null,null,null,null,null,null,null,null,null,null,null,null,null,null,null,null,null,null,null,null,null,null,null,null,null,null,null,null,null,null,null,null,null,null,null,null,null,null,null,null,null,null,null,null,null,null,null,null,null,null,null,null,null,null,null,null,null,null,null,null,null,null,null,null,null,null,null,null,null,null,null,null,null,null,null,null,null,null,null,null,2679]
[66,"","FOR7.3_TOT","Total of column above"]
[67,"","FOR7.4_TOT","Total of column above",null,null,null,null,null,null,null,null,null,null,null,null,null,null,null,null,null,null,null,null,null,null,null,null,null,null,null,null,null,null,null,null,null,null,null,null,null,null,null,null,null,null,null,null,null,null,null,null,null,null,null,null,null,null,null,null,null,null,null,null,null,null,null,null,null,null,null,null,null,null,null,null,null,null,null,null,null,null,null,null,null,null,null,null,null,null,null,null,null,null,null,null,null,null,null,null,null,null,null,null,null,null,null,null,null,null,null,null,null,null,null,null,null,null,null,null,null,null,null,null,null,null,null,null,null,null,null,null,null,null,null,null,2679,null,null,null,null,null,null,null,null,null,null,null,null,null,null,null,null,null,null,null,null,null,null,null,null,null,null,null,null,null,null,null,null,null,null,null,null,null,null,null,null,null,null,null,null,null,null,null,null,null,null,null,null,null,null,null,null,null,null,null,null,null,null,null,null,null,null,null,null,null,null,null,null,null,null,null,null,null,null,null,null,null,null,null,null,null,null,null,null,null,null,null,null,null,null,null,null,null,null,null,null,null,null,null,null,null,null,null,null,null,null,null,null,null,null,null,null,null,null,null,null,null,null,null,null,null,null,null,2679]
[68,"","FOR7.5_TOT","Amount in box 7.4 subject to dividend tax credit",null,null,null,null,null,null,null,null,null,null,null,null,null,null,null,null,null,null,null,null,null,null,null,null,null,null,null,null,null,null,null,null,null,null,null,null,null,null,null,null,null,null,null,null,null,null,null,null,null,null,null,null,null,null,null,null,null,null,null,null,null,null,null,null,null,null,null,null,null,null,null,null,null,null,null,null,null,null,null,null,null,null,null,null,null,null,null,null,null,null,null,null,null,null,null,null,null,null,null,null,null,null,null,null,null,null,null,null,null,null,null,null,null,null,null,null,null,null,null,null,null,null,null,null,null,null,null,null,null,null,null,null,2600,null,null,null,null,null,null,null,null,null,null,null,null,null,null,null,null,null,null,null,null,null,null,null,null,null,null,null,null,null,null,null,null,null,null,null,null,null,null,null,null,null,null,null,null,null,null,null,null,null,null,null,null,null,null,null,null,null,null,null,null,null,null,null,null,null,null,null,null,null,null,null,null,null,null,null,null,null,null,null,null,null,null,null,null,null,null,null,null,null,null,null,null,null,null,null,null,null,null,null,null,null,null,null,null,null,null,null,null,null,null,null,null,null,null,null,null,null,null,null,null,null,null,null,null,null,null,null,679]
[69,"","FOR_OVE_A_1","Country or territory code",null,null,null,null,null,null,null,null,null,null,null,null,null,null,null,null,null,null,null,null,null,null,null,null,null,null,null,null,null,null,null,null,null,null,null,null,null,null,null,null,null,null,null,null,null,null,null,null,null,null,"CAN","CAN",null,null,null,null,null,null,null,null,null,null,null,null,null,null,null,null,null,null,null,null,null,null,null,null,null,null,null,null,null,null,null,null,null,null,null,null,null,null,null,null,null,null,null,null,null,null,null,null,null,null,null,null,null,null,null,null,null,null,null,null,"FRA",null,null,null,null,null,null,null,null,null,null,null,null,null,null,null,null,null,null,null,null,null,null,null,null,null,null,null,"FRA",null,null,null,null,null,null,null,null,"BEL",null,null,null,null,null,null,null,null,null,null,null,null,null,null,null,null,null,null,null,null,null,null,null,null,null,null,null,null,null,null,null,null,null,"CAN",null,null,null,null,null,null,null,null,null,null,null,null,null,null,null,null,null,null,null,null,null,null,null,null,null,null,"SLV",null,null,"SLV","USA","USA","USA",null,null,"BEL",null,null,null,null,null,null,null,null,null,null,null,null,null,null,null,null,null,null,null,null,null,null,null,null,null,null,null,null,null,null,null,null,null,null,null,null,null,null,null,null,"CAN"]
[70,"","FOR_OVE_B_1","Amount of income arising or received before any tax taken off",null,null,null,null,null,null,null,null,null,null,null,null,null,null,null,null,null,null,null,null,null,null,null,null,null,null,null,null,null,null,null,null,null,null,null,null,null,null,null,null,null,null,null,null,null,null,null,null,null,null,6741,6741,null,null,null,null,null,null,null,null,null,null,null,null,null,null,null,null,null,null,null,null,null,null,null,null,null,null,null,null,null,null,null,null,null,null,null,null,null,null,null,null,null,null,null,null,null,null,null,null,null,null,null,null,null,null,null,null,null,null,null,null,4620,null,null,null,null,null,null,null,null,null,null,null,null,null,null,null,null,null,null,null,null,null,null,null,null,null,null,null,4620,null,null,null,null,null,null,null,null,1360,null,null,null,null,null,null,null,null,null,null,null,null,null,null,null,null,null,null,null,null,null,null,null,null,null,null,null,null,null,null,null,null,null,6741,null,null,null,null,null,null,null,null,null,null,null,null,null,null,null,null,null,null,null,null,null,null,null,null,null,null,68700,null,null,106754,131762,131762,131762,null,null,1360,null,null,null,null,null,null,null,null,null,null,null,null,null,null,null,null,null,null,null,null,null,null,null,null,null,null,null,null,null,null,null,null,null,null,null,null,null,null,null,null,6741]
[71,"","FOR_OVE_C_1","Foreign tax taken off or paid",null,null,null,null,null,null,null,null,null,null,null,null,null,null,null,null,null,null,null,null,null,null,null,null,null,null,null,null,null,null,null,null,null,null,null,null,null,null,null,null,null,null,null,null,null,null,null,null,null,null,1685,1685,null,null,null,null,null,null,null,null,null,null,null,null,null,null,null,null,null,null,null,null,null,null,null,null,null,null,null,null,null,null,null,null,null,null,null,null,null,null,null,null,null,null,null,null,null,null,null,null,null,null,null,null,null,null,null,null,null,null,null,null,null,null,null,null,null,null,null,null,null,null,null,null,null,null,null,null,null,null,null,null,null,null,null,null,null,null,null,null,null,null,null,null,null,null,null,null,null,340,null,null,null,null,null,null,null,null,null,null,null,null,null,null,null,null,null,null,null,null,null,null,null,null,null,null,null,null,null,null,null,null,null,1685,null,null,null,null,null,null,null,null,null,null,null,null,null,null,null,null,null,null,null,null,null,null,null,null,null,null,14427,null,null,23158,35299,35299,35299,null,null,340,null,null,null,null,null,null,null,null,null,null,null,null,null,null,null,null,null,null,null,null,null,null,null,null,null,null,null,null,null,null,null,null,null,null,null,null,null,null,null,null,1685]
[72,"","FOR8_OVE_D_1","Special Withholding Tax and any UK tax taken off"]
[73,"","FOR_OVE_E_1","To claim Foreign Tax Credit Relief, put ‘X’ in the box",null,null,null,null,null,null,null,null,null,null,null,null,null,null,null,null,null,null,null,null,null,null,null,null,null,null,null,null,null,null,null,null,null,null,null,null,null,null,null,null,null,null,null,null,null,null,null,null,null,null,"Y","Y",null,null,null,null,null,null,null,null,null,null,null,null,null,null,null,null,null,null,null,null,null,null,null,null,null,null,null,null,null,null,null,null,null,null,null,null,null,null,null,null,null,null,null,null,null,null,null,null,null,null,null,null,null,null,null,null,null,null,null,null,null,null,null,null,null,null,null,null,null,null,null,null,null,null,null,null,null,null,null,null,null,null,null,null,null,null,null,null,null,null,null,null,null,null,null,null,null,"Y",null,null,null,null,null,null,null,null,null,null,null,null,null,null,null,null,null,null,null,null,null,null,null,null,null,null,null,null,null,null,null,null,null,"Y",null,null,null,null,null,null,null,null,null,null,null,null,null,null,null,null,null,null,null,null,null,null,null,null,null,null,null,null,null,"Y","Y","Y","Y",null,null,"Y",null,null,null,null,null,null,null,null,null,null,null,null,null,null,null,null,null,null,null,null,null,null,null,null,null,null,null,null,null,null,null,null,null,null,null,null,null,null,null,null,"Y"]
[74,"","FOR9_OVE_F_1","Taxable amount",null,null,null,null,null,null,null,null,null,null,null,null,null,null,null,null,null,null,null,null,null,null,null,null,null,null,null,null,null,null,null,null,null,null,null,null,null,null,null,null,null,null,null,null,null,null,null,null,null,null,{"$f":"IF(BC73=\"Y\",BC70,MAX(0,BC70-BC71))","v":6741},{"$f":"IF(BD73=\"Y\",BD70,MAX(0,BD70-BD71))","v":6741},null,null,null,null,null,null,null,null,null,null,null,null,null,null,null,null,null,null,null,null,null,null,null,null,null,null,null,null,null,null,null,null,null,null,null,null,null,null,null,null,null,null,null,null,null,null,null,null,null,null,null,null,null,null,null,null,null,null,null,null,{"$f":"IF(DM73=\"Y\",DM70,MAX(0,DM70-DM71))","v":4620},null,null,null,null,null,null,null,null,null,null,null,null,null,null,null,null,null,null,null,null,null,null,null,null,null,null,null,{"$f":"IF(EO73=\"Y\",EO70,MAX(0,EO70-EO71))","v":4620},null,null,null,null,null,null,null,null,{"$f":"IF(EX73=\"Y\",EX70,MAX(0,EX70-EX71))","v":1360},null,null,null,null,null,null,null,null,null,null,null,null,null,null,null,null,null,null,null,null,null,null,null,null,null,null,null,null,null,null,null,null,null,{"$f":"IF(GF73=\"Y\",GF70,MAX(0,GF70-GF71))","v":6741},null,null,null,null,null,null,null,null,null,null,null,null,null,null,null,null,null,null,null,null,null,null,null,null,null,null,{"$f":"IF(HG73=\"Y\",HG70,MAX(0,HG70-HG71))","v":54273},null,null,{"$f":"IF(HJ73=\"Y\",HJ70,MAX(0,HJ70-HJ71))","v":106754},{"$f":"IF(HK73=\"Y\",HK70,MAX(0,HK70-HK71))","v":131762},{"$f":"IF(HL73=\"Y\",HL70,MAX(0,HL70-HL71))","v":131762},{"$f":"IF(HM73=\"Y\",HM70,MAX(0,HM70-HM71))","v":131762},null,null,{"$f":"IF(HP73=\"Y\",HP70,MAX(0,HP70-HP71))","v":1360},null,null,null,null,null,null,null,null,null,null,null,null,null,null,null,null,null,null,null,null,null,null,null,null,null,null,null,null,null,null,null,null,null,null,null,null,null,null,null,null,{"$f":"IF(JE73=\"Y\",JE70,MAX(0,JE70-JE71))","v":6741}]
[75,"","FOR8_TOT","Total of column above"]
[76,{"$f":"IF(FOR_IND>1,IF(HLOOKUP(FOR_IND-1,FOR_RANGE,A76)=\"\",\"\",HLOOKUP(FOR_IND-1,FOR_RANGE,A76)),\"\")","v":""},"FOR9_TOT","Total of column above",null,null,null,null,null,null,null,null,null,null,null,null,null,null,null,null,null,null,null,null,null,null,null,null,null,null,null,null,null,null,null,null,null,null,null,null,null,null,null,null,null,null,null,null,null,null,null,null,null,null,{"$f":"BC74","v":6741},{"$f":"BD74","v":6741},null,null,null,null,null,null,null,null,null,null,null,null,null,null,null,null,null,null,null,null,null,null,null,null,null,null,null,null,null,null,null,null,null,null,null,null,null,null,null,null,null,null,null,null,null,null,null,null,null,null,null,null,null,null,null,null,null,null,null,null,{"$f":"DM74","v":4620},null,null,null,null,null,null,null,null,null,null,null,null,null,null,null,null,null,null,null,null,null,null,null,null,null,null,null,{"$f":"EO74","v":4620},null,null,null,null,null,null,null,null,{"$f":"EX74","v":1360},null,null,null,null,null,null,null,null,null,null,null,null,null,null,null,null,null,null,null,null,null,null,null,null,null,null,null,null,null,null,null,null,null,{"$f":"GF74","v":6741},null,null,null,null,null,null,null,null,null,null,null,null,null,null,null,null,null,null,null,null,null,null,null,null,null,null,{"$f":"HG74","v":54273},null,null,{"$f":"HJ74","v":106754},{"$f":"HK74","v":131762},{"$f":"HL74","v":131762},{"$f":"HM74","v":131762},null,null,{"$f":"HP74","v":1360},null,null,null,null,null,null,null,null,null,null,null,null,null,null,null,null,null,null,null,null,null,null,null,null,null,null,null,null,null,null,null,null,null,null,null,null,null,null,null,null,{"$f":"JE74","v":6741}]
[77,"","FOR9.1","Total claimed under FIG regime",null,null,null,null,null,null,null,null,null,null,null,null,null,null,null,null,null,null,null,null,null,null,null,null,null,null,null,null,null,null,null,null,null,null,null,null,null,null,null,null,null,null,null,null,null,null,null,null,null,null,null,null,null,null,null,null,null,null,null,null,null,null,null,null,null,null,null,null,null,null,null,null,null,null,null,null,null,null,null,null,null,null,null,null,null,null,null,null,null,null,null,null,null,null,null,null,null,null,null,null,null,null,null,null,null,null,null,null,null,null,null,null,null,null,null,null,null,null,null,null,null,null,null,null,null,null,null,null,null,null,null,null,null,null,null,null,null,null,null,null,null,null,null,null,null,null,null,null,null,null,null,null,null,null,null,null,null,null,null,null,null,null,null,null,null,null,null,null,null,null,null,null,null,null,null,null,null,null,null,null,null,null,null,null,null,null,null,null,null,null,null,null,null,null,null,null,null,null,null,null,null,null,null,null,null,null,null,null,null,null,54273]
[78,"","FOR_DIV_A","Country or territory code",null,null,null,null,null,null,null,null,null,null,null,null,null,null,null,null,null,null,null,null,null,null,null,null,null,null,null,null,null,null,null,null,null,null,null,null,null,null,null,null,null,null,null,null,null,null,null,null,null,null,null,null,null,null,null,null,null,null,null,null,null,null,null,null,null,null,null,null,null,null,null,null,null,null,null,null,null,null,null,null,null,null,null,null,null,null,null,null,null,null,null,null,null,null,null,null,null,null,null,null,null,null,null,null,null,null,null,null,null,null,null,null,"FRA",null,null,null,null,null,null,null,null,null,null,null,null,null,null,null,null,null,null,null,null,null,null,null,null,null,null,null,"FRA",null,null,null,null,null,null,null,null,"IND",null,null,null,null,null,null,null,null,null,null,null,null,null,null,null,null,null,null,null,null,null,null,null,null,null,null,null,null,null,null,null,null,null,null,null,null,null,null,null,null,null,null,null,null,null,null,null,null,null,null,null,null,null,null,null,null,null,null,null,null,null,null,null,null,null,null,null,null,null,"IND"]
[79,"","FOR_DIV_B","Amount of income arising or received before any tax taken off",null,null,null,null,null,null,null,null,null,null,null,null,null,null,null,null,null,null,null,null,null,null,null,null,null,null,null,null,null,null,null,null,null,null,null,null,null,null,null,null,null,null,null,null,null,null,null,null,null,null,null,null,null,null,null,null,null,null,null,null,null,null,null,null,null,null,null,null,null,null,null,null,null,null,null,null,null,null,null,null,null,null,null,null,null,null,null,null,null,null,null,null,null,null,null,null,null,null,null,null,null,null,null,null,null,null,null,null,null,null,null,null,1263,null,null,null,null,null,null,null,null,null,null,null,null,null,null,null,null,null,null,null,null,null,null,null,null,null,null,null,1263,null,null,null,null,null,null,null,null,3620,null,null,null,null,null,null,null,null,null,null,null,null,null,null,null,null,null,null,null,null,null,null,null,null,null,null,null,null,null,null,null,null,null,null,null,null,null,null,null,null,null,null,null,null,null,null,null,null,null,null,null,null,null,null,null,null,null,null,null,null,null,null,null,null,null,null,null,null,null,3620]
[80,"","FOR_DIV_C","Foreign tax taken off or paid",null,null,null,null,null,null,null,null,null,null,null,null,null,null,null,null,null,null,null,null,null,null,null,null,null,null,null,null,null,null,null,null,null,null,null,null,null,null,null,null,null,null,null,null,null,null,null,null,null,null,null,null,null,null,null,null,null,null,null,null,null,null,null,null,null,null,null,null,null,null,null,null,null,null,null,null,null,null,null,null,null,null,null,null,null,null,null,null,null,null,null,null,null,null,null,null,null,null,null,null,null,null,null,null,null,null,null,null,null,null,null,null,189,null,null,null,null,null,null,null,null,null,null,null,null,null,null,null,null,null,null,null,null,null,null,null,null,null,null,null,189,null,null,null,null,null,null,null,null,724,null,null,null,null,null,null,null,null,null,null,null,null,null,null,null,null,null,null,null,null,null,null,null,null,null,null,null,null,null,null,null,null,null,null,null,null,null,null,null,null,null,null,null,null,null,null,null,null,null,null,null,null,null,null,null,null,null,null,null,null,null,null,null,null,null,null,null,null,null,724]
[81,"","FOR10_DIV_D","Special Withholding Tax and any UK tax taken off"]
[82,"","FOR_DIV_E","To claim Foreign Tax Credit Relief, put ‘X’ in the box",null,null,null,null,null,null,null,null,null,null,null,null,null,null,null,null,null,null,null,null,null,null,null,null,null,null,null,null,null,null,null,null,null,null,null,null,null,null,null,null,null,null,null,null,null,null,null,null,null,null,null,null,null,null,null,null,null,null,null,null,null,null,null,null,null,null,null,null,null,null,null,null,null,null,null,null,null,null,null,null,null,null,null,null,null,null,null,null,null,null,null,null,null,null,null,null,null,null,null,null,null,null,null,null,null,null,null,null,null,null,null,null,null,null,null,null,null,null,null,null,null,null,null,null,null,null,null,null,null,null,null,null,null,null,null,null,null,null,null,null,null,null,null,null,null,null,null,null,null,"Y",null,null,null,null,null,null,null,null,null,null,null,null,null,null,null,null,null,null,null,null,null,null,null,null,null,null,null,null,null,null,null,null,null,null,null,null,null,null,null,null,null,null,null,null,null,null,null,null,null,null,null,null,null,null,null,null,null,null,null,null,null,null,null,null,null,null,null,null,null,"Y"]
[83,"","FOR11_DIV_F","Taxable amount",null,null,null,null,null,null,null,null,null,null,null,null,null,null,null,null,null,null,null,null,null,null,null,null,null,null,null,null,null,null,null,null,null,null,null,null,null,null,null,null,null,null,null,null,null,null,null,null,null,null,null,null,null,null,null,null,null,null,null,null,null,null,null,null,null,null,null,null,null,null,null,null,null,null,null,null,null,null,null,null,null,null,null,null,null,null,null,null,null,null,null,null,null,null,null,null,null,null,null,null,null,null,null,null,null,null,null,null,null,null,null,null,{"$f":"IF(DM82=\"Y\",DM79,MAX(0,DM79-DM80))","v":1074},null,null,null,null,null,null,null,null,null,null,null,null,null,null,null,null,null,null,null,null,null,null,null,null,null,null,null,{"$f":"IF(EO82=\"Y\",EO79,MAX(0,EO79-EO80))","v":1074},null,null,null,null,null,null,null,null,{"$f":"IF(EX82=\"Y\",EX79,MAX(0,EX79-EX80))","v":3620},null,null,null,null,null,null,null,null,null,null,null,null,null,null,null,null,null,null,null,null,null,null,null,null,null,null,null,null,null,null,null,null,null,null,null,null,null,null,null,null,null,null,null,null,null,null,null,null,null,null,null,null,null,null,null,null,null,null,null,null,null,null,null,null,null,null,null,null,null,{"$f":"IF(HP82=\"Y\",HP79,MAX(0,HP79-HP80))","v":3620}]
[84,"","FOR10_TOT","Total"]
[85,"","FOR11_TOT","Total",null,null,null,null,null,null,null,null,null,null,null,null,null,null,null,null,null,null,null,null,null,null,null,null,null,null,null,null,null,null,null,null,null,null,null,null,null,null,null,null,null,null,null,null,null,null,null,null,null,null,null,null,null,null,null,null,null,null,null,null,null,null,null,null,null,null,null,null,null,null,null,null,null,null,null,null,null,null,null,null,null,null,null,null,null,null,null,null,null,null,null,null,null,null,null,null,null,null,null,null,null,null,null,null,null,null,null,null,null,null,null,null,{"$f":"DM83","v":1074},null,null,null,null,null,null,null,null,null,null,null,null,null,null,null,null,null,null,null,null,null,null,null,null,null,null,null,{"$f":"EO83","v":1074},null,null,null,null,null,null,null,null,{"$f":"EX83","v":3620},null,null,null,null,null,null,null,null,null,null,null,null,null,null,null,null,null,null,null,null,null,null,null,null,null,null,null,null,null,null,null,null,null,null,null,null,null,null,null,null,null,null,null,null,null,null,null,null,null,null,null,null,null,null,null,null,null,null,null,null,null,null,null,null,null,null,null,null,null,{"$f":"HP83","v":3620}]
[86,"","FOR11.1","Total claimed under FIG regime"]
[87,"","FOR_ALO_A","Country or territory code",null,null,null,null,null,null,null,null,null,null,null,null,null,null,null,null,null,null,null,null,null,null,null,null,null,null,null,null,null,null,null,null,null,null,null,null,null,null,null,null,null,null,null,null,null,null,null,null,null,null,null,null,null,null,null,null,null,null,null,null,null,null,null,null,null,null,null,null,null,null,null,null,null,null,null,null,null,null,null,null,null,null,null,null,null,null,null,null,null,null,null,null,null,null,null,null,null,null,null,null,null,null,null,null,null,null,null,null,null,null,null,null,"FRA",null,null,null,null,null,null,null,null,null,null,null,null,null,null,null,null,null,null,null,null,null,null,null,null,null,null,null,"FRA"]
[88,"","FOR_ALO_B","Amount of income arising or received before any tax taken off",null,null,null,null,null,null,null,null,null,null,null,null,null,null,null,null,null,null,null,null,null,null,null,null,null,null,null,null,null,null,null,null,null,null,null,null,null,null,null,null,null,null,null,null,null,null,null,null,null,null,null,null,null,null,null,null,null,null,null,null,null,null,null,null,null,null,null,null,null,null,null,null,null,null,null,null,null,null,null,null,null,null,null,null,null,null,null,null,null,null,null,null,null,null,null,null,null,null,null,null,null,null,null,null,null,null,null,null,null,null,null,null,6921,null,null,null,null,null,null,null,null,null,null,null,null,null,null,null,null,null,null,null,null,null,null,null,null,null,null,null,6921]
[89,"","FOR_ALO_C","Foreign tax taken off or paid",null,null,null,null,null,null,null,null,null,null,null,null,null,null,null,null,null,null,null,null,null,null,null,null,null,null,null,null,null,null,null,null,null,null,null,null,null,null,null,null,null,null,null,null,null,null,null,null,null,null,null,null,null,null,null,null,null,null,null,null,null,null,null,null,null,null,null,null,null,null,null,null,null,null,null,null,null,null,null,null,null,null,null,null,null,null,null,null,null,null,null,null,null,null,null,null,null,null,null,null,null,null,null,null,null,null,null,null,null,null,null,null,2076,null,null,null,null,null,null,null,null,null,null,null,null,null,null,null,null,null,null,null,null,null,null,null,null,null,null,null,2076]
[90,"","FOR12_ALO_D","Special Withholding Tax and any UK tax taken off"]
[91,"","FOR_ALO_E","To claim Foreign Tax Credit Relief, put ‘X’ in the box"]
[92,"","FOR13_ALO_F","Taxable amount",null,null,null,null,null,null,null,null,null,null,null,null,null,null,null,null,null,null,null,null,null,null,null,null,null,null,null,null,null,null,null,null,null,null,null,null,null,null,null,null,null,null,null,null,null,null,null,null,null,null,null,null,null,null,null,null,null,null,null,null,null,null,null,null,null,null,null,null,null,null,null,null,null,null,null,null,null,null,null,null,null,null,null,null,null,null,null,null,null,null,null,null,null,null,null,null,null,null,null,null,null,null,null,null,null,null,null,null,null,null,null,null,{"$f":"IF(DM91=\"Y\",DM88,MAX(0,DM88-DM89))","v":4845},null,null,null,null,null,null,null,null,null,null,null,null,null,null,null,null,null,null,null,null,null,null,null,null,null,null,null,{"$f":"IF(EO91=\"Y\",EO88,MAX(0,EO88-EO89))","v":4845}]
[93,"","FOR12_TOT","Total"]
[94,"","FOR13_TOT","Total",null,null,null,null,null,null,null,null,null,null,null,null,null,null,null,null,null,null,null,null,null,null,null,null,null,null,null,null,null,null,null,null,null,null,null,null,null,null,null,null,null,null,null,null,null,null,null,null,null,null,null,null,null,null,null,null,null,null,null,null,null,null,null,null,null,null,null,null,null,null,null,null,null,null,null,null,null,null,null,null,null,null,null,null,null,null,null,null,null,null,null,null,null,null,null,null,null,null,null,null,null,null,null,null,null,null,null,null,null,null,null,null,{"$f":"DM92","v":4845},null,null,null,null,null,null,null,null,null,null,null,null,null,null,null,null,null,null,null,null,null,null,null,null,null,null,null,{"$f":"EO92","v":4845}]
[95,"","FOR13.0","Total claimed under FIG regime"]
[96,{"$f":"IF(FOR_IND>1,IF(HLOOKUP(FOR_IND-1,FOR_RANGE,A96)=\"\",\"\",HLOOKUP(FOR_IND-1,FOR_RANGE,A96)),\"\")","v":""},"FOR13.1","Property inc or finance costs",null,null,null,null,null,null,null,null,null,null,null,null,null,null,null,null,null,null,null,null,null,null,null,null,null,null,null,null,null,null,null,null,null,null,null,null,null,null,null,null,null,null,null,null,null,null,null,null,null,null,null,null,null,null,null,null,null,null,null,null,null,null,null,null,null,null,null,null,null,null,null,null,null,null,null,null,null,null,null,null,null,null,null,null,null,null,null,null,null,null,null,null,null,null,null,null,null,null,null,null,null,null,null,null,null,null,null,null,null,null,null,null,800,null,null,null,null,null,null,null,null,null,null,null,null,null,null,null,null,null,null,null,null,null,null,null,null,null,null,null,800]
[97,"","FOR13.2","Unused residential finance costs",null,null,null,null,null,null,null,null,null,null,null,null,null,null,null,null,null,null,null,null,null,null,null,null,null,null,null,null,null,null,null,null,null,null,null,null,null,null,null,null,null,null,null,null,null,null,null,null,null,null,null,null,null,null,null,null,null,null,null,null,null,null,null,null,null,null,null,null,null,null,null,null,null,null,null,null,null,null,null,null,null,null,null,null,null,null,null,null,null,null,null,null,null,null,null,null,null,null,null,null,null,null,null,null,null,null,null,null,null,null,null,null,100,null,null,null,null,null,null,null,null,null,null,null,null,null,null,null,null,null,null,null,null,null,null,null,null,null,null,null,100]
[98,"","FOR14","Total rents and other receipts (excluding taxable premiums for the grant of a lease)",null,null,null,null,null,null,null,null,null,null,null,null,null,null,null,null,null,null,null,null,null,null,null,null,null,null,null,null,null,null,null,null,null,null,null,null,null,null,null,null,null,null,null,null,null,null,null,null,null,9250,12789,9050,null,null,null,null,null,13310,null,null,null,null,null,null,null,null,null,null,null,null,null,null,null,null,null,12475,null,null,null,null,null,null,null,147890,null,null,null,null,null,null,null,null,null,null,null,null,null,null,null,null,null,null,null,null,null,null,null,null,null,null,null,null,null,null,null,null,null,null,null,null,null,null,null,null,null,null,null,null,null,null,null,null,null,null,null,null,null,null,null,null,null,null,null,null,null,null,null,null,null,null,null,1191.3900000000001,null,null,null,null,null,null,null,null,null,null,null,null,null,null,null,null,null,null,null,null,null,null,null,null,null,null,null,null,null,null,null,3702,null,null,null,null,null,null,null,null,null,null,null,null,null,null,null,null,null,null,null,null,null,null,null,null,null,null,null,2110,null,null,null,null,null,null,null,null,null,null,null,null,null,null,null,null,null,null,null,null,null,null,null,null,null,null,null,null,null,null,null,null,null,null,null,null,null,null,null,null,null,null,null,null,null,null,null,null,3602]
[99,{"$f":"IF(FOR_IND>1,IF(HLOOKUP(FOR_IND-1,FOR_RANGE,A99)=\"\",\"\",HLOOKUP(FOR_IND-1,FOR_RANGE,A99)),\"\")","v":""},"FOR14.1","Property income allowance",null,null,null,null,null,null,null,null,null,null,null,null,null,null,null,null,null,null,null,null,null,null,null,null,null,null,null,null,null,null,null,null,null,null,null,null,null,null,null,null,null,null,null,null,null,null,null,null,null,null,null,null,null,null,null,null,null,1000]
[100,"","FOR14.2","If you've used traditional accounting rather than cash basis",null,null,null,null,null,null,null,null,null,null,null,null,null,null,null,null,null,null,null,null,null,null,null,null,null,null,null,null,null,null,null,null,null,null,null,null,null,null,null,null,null,null,null,null,null,null,null,null,null,"Y",null,null,null,null,null,null,null,"Y",null,null,null,null,null,null,null,null,null,null,null,null,null,null,null,null,null,"Y",null,null,null,null,null,null,null,null,null,null,null,null,null,null,null,null,null,null,null,null,null,null,null,null,null,null,null,null,null,null,null,null,null,null,null,null,null,null,null,null,null,null,null,null,null,null,null,null,null,null,null,null,null,null,null,null,null,null,null,null,null,null,null,null,null,null,null,null,null,null,null,null,null,null,null,null,null,null,null,null,null,null,null,null,null,null,null,null,null,null,null,null,null,null,null,null,null,null,null,null,null,null,null,null,null,null,null,null,null,null,null,null,null,null,null,null,null,null,null,null,null,null,null,null,null,null,null,null,null,null,null,null,null,null,null,null,null,"Y","Y","Y","Y"]
[101,"","FOR15","Number of overseas let properties",null,null,null,null,null,null,null,null,null,null,null,null,null,null,null,null,null,null,null,null,null,null,null,null,null,null,null,null,null,null,null,null,null,null,null,null,null,null,null,null,null,null,null,null,null,null,null,null,null,1,1,3,null,null,1,null,null,null,null,null,null,null,null,null,null,null,null,null,null,null,null,null,null,null,null,null,null,null,null,null,null,null,null,null,null,null,null,null,null,null,null,null,null,null,null,null,null,null,null,null,null,null,null,null,null,null,null,null,null,null,null,null,null,null,null,null,null,null,null,null,null,null,null,null,null,null,null,null,null,null,null,null,null,null,null,null,null,null,null,null,null,null,null,null,null,null,null,null,null,null,null,5,null,null,null,null,null,null,null,null,null,null,null,null,null,null,null,null,null,null,null,null,null,null,null,null,null,null,null,null,null,null,null,1,null,null,null,null,null,null,null,null,null,null,null,null,null,null,null,null,null,null,null,null,null,null,null,null,null,null,null,1,null,null,null,null,null,null,null,null,null,null,null,null,null,null,null,null,null,null,null,null,null,null,null,null,null,null,null,null,null,null,null,null,null,null,null,null,null,null,null,null,null,null,null,null,null,null,null,null,1]
[102,"","FOR16","Premiums paid for the grant of a lease",null,null,null,null,null,null,null,null,null,null,null,null,null,null,null,null,null,null,null,null,null,null,null,null,null,null,null,null,null,null,null,null,null,null,null,null,null,null,null,null,null,null,null,null,null,null,null,null,null,null,null,null,null,null,null,null,null,null,null,null,null,null,null,null,null,null,null,null,null,null,null,null,null,null,null,null,null,null,null,null,null,null,null,null,null,null,null,null,null,null,null,null,null,null,null,null,null,null,null,null,null,null,null,null,null,null,null,null,null,null,null,null,null,null,null,null,null,null,null,null,null,null,null,null,null,null,null,null,null,null,null,null,null,null,null,null,null,null,null,null,null,null,null,null,null,null,null,null,null,null,null,null,null,null,null,null,null,null,null,null,null,null,null,null,null,null,null,null,null,null,null,null,null,null,null,null,null,null,null,null,null,null,null,2510]
[103,"","FOR17","Property expenses (rent, repairs, legal fees, cost of services provided) – enter the total amount",null,null,null,null,null,null,null,null,null,null,null,null,null,null,null,null,null,null,null,null,null,null,null,null,null,null,null,null,null,null,null,null,null,null,null,null,null,null,null,null,null,null,null,null,null,null,null,null,null,null,3729,4283,null,null,null,null,null,null,null,null,null,null,null,null,null,null,null,null,null,null,null,null,null,null,null,null,null,null,null,null,null,null,null,7378,null,null,null,null,null,null,null,null,null,null,null,null,null,null,null,null,null,null,null,null,null,null,null,null,null,null,null,null,null,null,null,null,null,null,null,null,null,null,null,null,null,null,null,null,null,null,null,null,null,null,null,null,null,null,null,null,null,null,null,null,null,null,null,null,null,null,null,2326.25,null,null,null,null,null,null,null,null,null,null,null,null,null,null,null,null,null,null,null,null,null,null,null,null,null,null,null,null,null,null,null,100,null,null,null,null,null,null,null,null,null,null,null,null,null,null,null,null,null,null,null,null,null,null,null,null,null,null,null,null,null,4695,2278,2278,2278,null,null,null,null,null,null,null,null,null,null,null,null,null,null,null,null,null,null,null,null,null,null,null,null,null,null,null,null,null,null,null,null,null,null,null,null,null,null,null,null,null,null,null,2510]
[104,"","FOR18","Net profit or loss (box 14 + box 16 minus box 17)  – if this is a negative figure (a loss) put a minus sign in the box",null,null,null,null,null,null,null,null,null,null,null,null,null,null,null,null,null,null,null,null,null,null,null,null,null,null,null,null,null,null,null,null,null,null,null,null,null,null,null,null,null,null,null,null,null,null,null,null,null,{"$f":"BB98+BB102-BB103","v":9250},{"$f":"BC98+BC102-BC103","v":9060},{"$f":"BD98+BD102-BD103","v":4767},null,null,null,null,null,{"$f":"BJ98+BJ102-BJ103","v":13310},null,null,null,null,null,null,null,null,null,null,null,null,null,null,null,null,null,{"$f":"CB98+CB102-CB103","v":12475},null,null,null,null,null,null,null,140512,null,null,null,null,null,null,null,null,null,null,null,null,null,null,null,null,null,null,null,null,null,null,null,null,null,null,null,null,null,null,null,null,null,null,null,null,null,null,null,null,null,null,null,null,null,null,null,null,null,null,null,null,null,null,null,null,null,null,null,null,null,null,null,null,null,null,null,-1134.8599999999999,null,null,null,null,null,null,null,null,null,null,null,null,null,null,null,null,null,null,null,null,null,null,null,null,null,null,null,null,null,null,null,{"$f":"GF98+GF102-GF103","v":6112},null,null,null,null,null,null,null,null,null,null,null,null,null,null,null,null,null,null,null,null,null,null,null,null,null,null,null,2110,null,{"$f":"HJ98+HJ102-HJ103","v":-4695},{"$f":"HK98+HK102-HK103","v":-2278},{"$f":"HL98+HL102-HL103","v":-2278},{"$f":"HM98+HM102-HM103","v":-2278},null,null,null,null,null,null,null,null,null,null,null,null,null,null,null,null,null,null,null,null,null,null,null,null,null,null,null,null,null,null,null,null,null,null,null,null,null,null,null,null,null,null,null,{"$f":"JE98+JE102-JE103","v":1092}]
[105,"","FOR19","Private use adjustment",null,null,null,null,null,null,null,null,null,null,null,null,null,null,null,null,null,null,null,null,null,null,null,null,null,null,null,null,null,null,null,null,null,null,null,null,null,null,null,null,null,null,null,null,null,null,null,null,null,null,179,null,null,null,null,null,null,null,null,null,null,null,null,null,null,null,null,null,null,null,null,null,null,null,null,null,null,null,null,null,null,null,null,null,null,null,null,null,null,null,null,null,null,null,null,null,null,null,null,null,null,null,null,null,null,null,null,null,null,null,null,null,null,null,null,null,null,null,null,null,null,null,null,null,null,null,null,null,null,null,null,null,null,null,null,null,null,null,null,null,null,null,null,null,null,null,null,null,null,null,null,null,null,null,null,null,null,null,null,null,null,null,null,null,null,null,null,null,null,null,null,null,null,null,null,null,null,null,null,null,null,null,null,90,null,null,null,null,null,null,null,null,null,null,null,null,null,null,null,null,null,null,null,null,null,null,null,null,null,null,null,null,null,null,null,null,null,null,null,null,null,null,null,null,null,null,null,null,null,null,null,null,null,null,null,null,null,null,null,null,null,null,null,null,null,null,null,null,null,null,null,null,null,null,null,null,null,null,null,null,90]
[106,"","FOR20","Balancing charges"]
[107,"","FOR21","Capital allowances for equipment and vehicles (but not for furnished residential lettings)"]
[108,"","FOR21.1","Zero-emission car allowance",null,null,null,null,null,null,null,null,null,null,null,null,null,null,null,null,null,null,null,null,null,null,null,null,null,null,null,null,null,null,null,null,null,null,null,null,null,null,null,null,null,null,null,null,null,null,null,null,null,null,null,199]
[109,"","FOR22","Zero-emission goods vehicle allowance"]
[110,{"$f":"IF(FOR_IND>1,IF(HLOOKUP(FOR_IND-1,FOR_RANGE,A110)=\"\",\"\",HLOOKUP(FOR_IND-1,FOR_RANGE,A110)),\"\")","v":""},"FOR22.1","The Structures and Buildings Allowance",null,null,null,null,null,null,null,null,null,null,null,null,null,null,null,null,null,null,null,null,null,null,null,null,null,null,null,null,null,null,null,null,null,null,null,null,null,null,null,null,null,null,null,null,null,null,null,null,null,null,269,null,null,null,null,null,null,null,null,null,null,null,null,null,null,null,null,null,null,null,null,null,null,null,null,null,null,null,null,null,null,null,null,null,null,null,null,null,null,null,null,null,null,null,null,null,null,null,null,null,null,null,null,null,null,null,null,null,null,null,null,null,null,null,null,null,null,null,null,null,null,null,null,null,null,null,null,null,null,null,null,null,null,null,null,null,null,null,null,null,null,null,null,null,null,null,null,null,null,null,null,null,null,null,null,null,null,null,null,null,null,null,null,null,null,null,null,null,null,null,null,null,null,null,null,null,null,null,null,null,null,null,null,250,null,null,null,null,null,null,null,null,null,null,null,null,null,null,null,null,null,null,null,null,null,null,null,null,null,null,null,null,null,null,null,null,null,null,null,null,null,null,null,null,null,null,null,null,null,null,null,null,null,null,null,null,null,null,null,null,null,null,null,null,null,null,null,null,null,null,null,null,null,null,null,null,null,null,null,null,200]
[111,"","FOR22.2","Electric charge-point allowance",null,null,null,null,null,null,null,null,null,null,null,null,null,null,null,null,null,null,null,null,null,null,null,null,null,null,null,null,null,null,null,null,null,null,null,null,null,null,null,null,null,null,null,null,null,null,null,null,null,null,148,278,null,null,null,null,null,null,null,null,null,null,null,null,null,null,null,null,null,null,null,null,null,null,null,null,null,null,null,null,null,null,null,null,null,null,null,null,null,null,null,null,null,null,null,null,null,null,null,null,null,null,null,null,null,null,null,null,null,null,null,null,null,null,null,null,null,null,null,null,null,null,null,null,null,null,null,null,null,null,null,null,null,null,null,null,null,null,null,null,null,null,null,null,null,null,null,null,null,null,null,null,null,null,null,null,null,null,null,null,null,null,null,null,null,null,null,null,null,null,null,null,null,null,null,null,null,null,null,null,null,null,null,110,null,null,null,null,null,null,null,null,null,null,null,null,null,null,null,null,null,null,null,null,null,null,null,null,null,null,null,null,null,null,null,null,null,null,null,null,null,null,null,null,null,null,null,null,null,null,null,null,null,null,null,null,null,null,null,null,null,null,null,null,null,null,null,null,null,null,null,null,null,null,null,null,null,null,null,null,160]
[112,"","FOR23","Costs of replacing domestic items (for furnished residential lettings only)",null,null,null,null,null,null,null,null,null,null,null,null,null,null,null,null,null,null,null,null,null,null,null,null,null,null,null,null,null,null,null,null,null,null,null,null,null,null,null,null,null,null,null,null,null,null,null,null,null,null,null,1296]
[113,"","FOR24","Adjusted profit or loss for the year (box 18 + box 19 + box 20 minus (boxes 21 to 23))",null,null,null,null,null,null,null,null,null,null,null,null,null,null,null,null,null,null,null,null,null,null,null,null,null,null,null,null,null,null,null,null,null,null,null,null,null,null,null,null,null,null,null,null,null,null,null,null,null,{"$f":"(BB104+BB105+BB106)-(BB107+BB109+BB110+BB111+BB112+BB108)","v":9250},{"$f":"(BC104+BC105+BC106)-(BC107+BC109+BC110+BC111+BC112+BC108)","v":8822},{"$f":"(BD104+BD105+BD106)-(BD107+BD109+BD110+BD111+BD112+BD108)","v":2994},null,null,null,null,null,12310,null,null,null,null,null,null,null,null,null,null,null,null,null,null,null,null,null,{"$f":"(CB104+CB105+CB106)-(CB107+CB109+CB110+CB111+CB112)","v":12475},null,null,null,null,null,null,null,140512,null,null,null,null,null,null,null,null,null,null,null,null,null,null,null,null,null,null,null,null,null,null,null,null,null,null,null,null,null,null,null,null,null,null,null,null,null,null,null,null,null,null,null,null,null,null,null,null,null,null,null,null,null,null,null,null,null,null,null,null,null,null,null,null,null,null,null,-1134.8599999999999,null,null,null,null,null,null,null,null,null,null,null,null,null,null,null,null,null,null,null,null,null,null,null,null,null,null,null,null,null,null,null,{"$f":"(GF104+GF105+GF106)-(GF107+GF109+GF110+GF111+GF112)","v":5842},null,null,null,null,null,null,null,null,null,null,null,null,null,null,null,null,null,null,null,null,null,null,null,null,null,null,null,2110,null,{"$f":"HJ104+HJ105+HJ106-(HJ107+HJ109+HJ112)","v":-4695},{"$f":"HK104+HK105+HK106-(HK107+HK109+HK112)","v":-2278},{"$f":"HL104+HL105+HL106-(HL107+HL109+HL112)","v":-2278},{"$f":"HM104+HM105+HM106-(HM107+HM109+HM112)","v":-2278},null,null,null,null,null,null,null,null,null,null,null,null,null,null,null,null,null,null,null,null,null,null,null,null,null,null,null,null,null,null,null,null,null,null,null,null,null,null,null,null,null,null,null,{"$f":"(JE104+JE105+JE106)-(JE107+JE109+JE110+JE111+JE112)","v":822}]
[114,"","FOR24.1","Relief for residential finance costs not included in box 17",null,null,null,null,null,null,null,null,null,null,null,null,null,null,null,null,null,null,null,null,null,null,null,null,null,null,null,null,null,null,null,null,null,null,null,null,null,null,null,null,null,null,null,null,null,null,null,null,null,null,750,233,null,null,null,null,null,null,null,null,null,null,null,null,null,null,null,null,null,null,null,null,null,null,null,null,null,null,null,null,null,null,null,13878,null,null,null,null,null,null,null,null,null,null,null,null,null,null,null,null,null,null,null,null,null,null,null,null,null,null,null,null,null,null,null,null,null,null,null,null,null,null,null,null,null,null,null,null,null,null,null,null,null,null,null,null,null,null,null,null,null,null,null,null,null,null,null,null,null,null,null,null,null,null,null,null,null,null,null,null,null,null,null,null,null,null,null,null,null,null,null,null,null,null,null,null,null,null,null,null,null,null,null,2600,null,null,null,null,null,null,null,null,null,null,null,null,null,null,null,null,null,null,null,null,null,null,null,null,null,null,null,null,null,null,null,null,null,null,null,null,null,null,null,null,null,null,null,null,null,null,null,null,null,null,null,null,null,null,null,null,null,null,null,null,null,null,null,null,null,null,null,null,null,null,null,null,null,null,null,null,120]
[115,"","FOR24.2","Unused residential finance costs",null,null,null,null,null,null,null,null,null,null,null,null,null,null,null,null,null,null,null,null,null,null,null,null,null,null,null,null,null,null,null,null,null,null,null,null,null,null,null,null,null,null,null,null,null,null,null,null,null,null,120]
[116,"","FOR_L&P_A_1","Country or territory code",null,null,null,null,null,null,null,null,null,null,null,null,null,null,null,null,null,null,null,null,null,null,null,null,null,null,null,null,null,null,null,null,null,null,null,null,null,null,null,null,null,null,null,null,null,null,null,null,null,"CAN","CAN","SGP",null,null,null,null,null,null,null,null,null,null,null,null,null,null,null,null,null,null,null,null,null,null,null,"HUN",null,null,null,null,null,null,null,"PRT",null,null,null,null,null,null,null,null,null,null,null,null,null,null,null,null,null,null,null,null,null,null,null,null,null,null,null,null,null,null,null,null,null,null,null,null,null,null,null,null,null,null,null,null,null,null,null,null,null,null,null,null,null,null,null,null,null,null,null,null,null,null,null,null,null,null,null,"ITA",null,null,null,null,null,null,null,null,null,null,null,null,null,null,null,null,null,null,null,null,null,null,null,null,null,null,null,null,null,null,null,"CAN",null,null,null,null,null,null,null,null,null,null,null,null,null,null,null,null,null,null,null,null,null,null,null,null,null,null,null,"IRL",null,"BEL","FRA","FRA","FRA",null,null,null,null,null,null,null,null,null,null,null,null,null,null,null,null,null,null,null,null,null,null,null,null,null,null,null,null,null,null,null,null,null,null,null,null,null,null,null,null,null,null,null,"CAN"]
[117,"","FOR25_L&P_B_1","Amount of income arising or received before any tax taken off",null,null,null,null,null,null,null,null,null,null,null,null,null,null,null,null,null,null,null,null,null,null,null,null,null,null,null,null,null,null,null,null,null,null,null,null,null,null,null,null,null,null,null,null,null,null,null,null,null,{"$f":"BB113","v":9250},{"$f":"BC113","v":8822},{"$f":"BD113","v":2994},null,null,null,null,null,{"$f":"BJ113","v":12310},null,null,null,null,null,null,null,null,null,null,null,null,null,null,null,null,null,12745,null,null,null,null,null,null,null,126634,null,null,null,null,null,null,null,null,null,null,null,null,null,null,null,null,null,null,null,null,null,null,null,null,null,null,null,null,null,null,null,null,null,null,null,null,null,null,null,null,null,null,null,null,null,null,null,null,null,null,null,null,null,null,null,null,null,null,null,null,null,null,null,null,null,null,null,-1134.8599999999999,null,null,null,null,null,null,null,null,null,null,null,null,null,null,null,null,null,null,null,null,null,null,null,null,null,null,null,null,null,null,null,822,null,null,null,null,null,null,null,null,null,null,null,null,null,null,null,null,null,null,null,null,null,null,null,null,null,null,null,2110,null,-4695,-2278,-2278,-2278,null,null,null,null,null,null,null,null,null,null,null,null,null,null,null,null,null,null,null,null,null,null,null,null,null,null,null,null,null,null,null,null,null,null,null,null,null,null,null,null,null,null,null,{"$f":"JE113","v":822}]
[118,"","FOR28_L&P_C_1","Foreign tax taken off or paid",null,null,null,null,null,null,null,null,null,null,null,null,null,null,null,null,null,null,null,null,null,null,null,null,null,null,null,null,null,null,null,null,null,null,null,null,null,null,null,null,null,null,null,null,null,null,null,null,null,null,null,48,null,null,null,null,null,null,null,null,null,null,null,null,null,null,null,null,null,null,null,null,null,null,null,null,null,null,null,null,null,null,null,49246,null,null,null,null,null,null,null,null,null,null,null,null,null,null,null,null,null,null,null,null,null,null,null,null,null,null,null,null,null,null,null,null,null,null,null,null,null,null,null,null,null,null,null,null,null,null,null,null,null,null,null,null,null,null,null,null,null,null,null,null,null,null,null,null,null,null,null,615.82000000000005,null,null,null,null,null,null,null,null,null,null,null,null,null,null,null,null,null,null,null,null,null,null,null,null,null,null,null,null,null,null,null,null,null,null,null,null,null,null,null,null,null,null,null,null,null,null,null,null,null,null,null,null,null,null,null,null,null,null,null,686]
[119,"","FOR29_L&P_D_1","Special Withholding Tax and any UK tax taken off"]
[120,"","FOR_L&P_E_1","To claim Foreign Tax Credit Relief, put ‘X’ in the box",null,null,null,null,null,null,null,null,null,null,null,null,null,null,null,null,null,null,null,null,null,null,null,null,null,null,null,null,null,null,null,null,null,null,null,null,null,null,null,null,null,null,null,null,null,null,null,null,null,null,null,null,null,null,null,null,null,null,null,null,null,null,null,null,null,null,null,null,null,null,null,null,null,null,null,"Y",null,null,null,null,null,null,null,"Y",null,null,null,null,null,null,null,null,null,null,null,null,null,null,null,null,null,null,null,null,null,null,null,null,null,null,null,null,null,null,null,null,null,null,null,null,null,null,null,null,null,null,null,null,null,null,null,null,null,null,null,null,null,null,null,null,null,null,null,null,null,null,null,null,null,null,null,"Y",null,null,null,null,null,null,null,null,null,null,null,null,null,null,null,null,null,null,null,null,null,null,null,null,null,null,null,null,null,null,null,null,null,null,null,null,null,null,null,null,null,null,null,null,null,null,null,null,null,null,null,null,null,null,null,null,null,null,null,"Y"]
[121,"","FOR30_L&P_F_1","Taxable amount",null,null,null,null,null,null,null,null,null,null,null,null,null,null,null,null,null,null,null,null,null,null,null,null,null,null,null,null,null,null,null,null,null,null,null,null,null,null,null,null,null,null,null,null,null,null,null,null,null,null,8822,2946,null,null,null,null,null,null,null,null,null,null,null,null,null,null,null,null,null,null,null,null,null,null,null,12475,null,null,null,null,null,null,null,126634,null,null,null,null,null,null,null,null,null,null,null,null,null,null,null,null,null,null,null,null,null,null,null,null,null,null,null,null,null,null,null,null,null,null,null,null,null,null,null,null,null,null,null,null,null,null,null,null,null,null,null,null,null,null,null,null,null,null,null,null,null,null,null,null,null,null,null,null,null,null,null,null,null,null,null,null,null,null,null,null,null,null,null,null,null,null,null,null,null,null,null,null,null,null,null,null,null,null,null,822,null,null,null,null,null,null,null,null,null,null,null,null,null,null,null,null,null,null,null,null,null,null,null,null,null,null,null,{"$f":"IF(HH120=\"Y\",HH117,MAX(0,HH117-HH118))","v":2110},null,{"$f":"IF(HJ120=\"Y\",HJ117,MAX(0,HJ117-HJ118))","v":0},{"$f":"IF(HK120=\"Y\",HK117,MAX(0,HK117-HK118))","v":0},{"$f":"IF(HL120=\"Y\",HL117,MAX(0,HL117-HL118))","v":0},{"$f":"IF(HM120=\"Y\",HM117,MAX(0,HM117-HM118))","v":0},null,null,null,null,null,null,null,null,null,null,null,null,null,null,null,null,null,null,null,null,null,null,null,null,null,null,null,null,null,null,null,null,null,null,null,null,null,null,null,null,null,null,null,822]
[122,"","FOR25_TOT","Total of column above",null,null,null,null,null,null,null,null,null,null,null,null,null,null,null,null,null,null,null,null,null,null,null,null,null,null,null,null,null,null,null,null,null,null,null,null,null,null,null,null,null,null,null,null,null,null,null,null,null,9250,8822,2994,null,null,null,null,null,null,null,null,null,null,null,null,null,null,null,null,null,null,null,null,null,null,null,12475,null,null,null,null,null,null,null,126634,null,null,null,null,null,null,null,null,null,null,null,null,null,null,null,null,null,null,null,null,null,null,null,null,null,null,null,null,null,null,null,null,null,null,null,null,null,null,null,null,null,null,null,null,null,null,null,null,null,null,null,null,null,null,null,null,null,null,null,null,null,null,null,null,null,null,null,-1134.8599999999999,null,null,null,null,null,null,null,null,null,null,null,null,null,null,null,null,null,null,null,null,null,null,null,null,null,null,null,null,null,null,null,822,null,null,null,null,null,null,null,null,null,null,null,null,null,null,null,null,null,null,null,null,null,null,null,null,null,null,null,{"$f":"HH117","v":2110},null,{"$f":"HJ117","v":-4695},{"$f":"HK117","v":-2278},{"$f":"HL117","v":-2278},{"$f":"HM117","v":-2278},null,null,null,null,null,null,null,null,null,null,null,null,null,null,null,null,null,null,null,null,null,null,null,null,null,null,null,null,null,null,null,null,null,null,null,null,null,null,null,null,null,null,null,822]
[123,"","FOR26","Total loss brought forward from earlier years",null,null,null,null,null,null,null,null,null,null,null,null,null,null,null,null,null,null,null,null,null,null,null,null,null,null,null,null,null,null,null,null,null,null,null,null,null,null,null,null,null,null,null,null,null,null,null,null,null,null,2500,562,null,null,2148,null,null,null,null,null,null,null,null,null,null,null,null,null,null,null,null,null,null,null,null,null,null,null,null,null,null,null,null,null,null,null,null,null,null,null,null,null,null,null,null,null,null,null,null,null,null,null,null,null,null,null,null,null,null,null,null,null,null,null,null,null,null,null,null,null,null,null,null,null,null,null,null,null,null,null,null,null,null,null,null,null,null,null,null,null,null,null,null,null,null,null,null,null,null,null,null,null,null,null,null,null,null,null,null,null,null,null,null,null,null,null,null,null,null,null,null,null,null,null,null,null,null,null,null,null,null,null,null,320,null,null,null,null,null,null,null,null,null,null,null,null,null,null,null,null,null,null,null,null,null,null,null,null,null,null,null,null,null,1306,null,null,null,null,null,null,null,null,null,null,null,null,null,null,null,null,null,null,null,null,null,null,null,null,null,null,null,null,null,null,null,null,null,null,null,null,null,null,null,null,null,null,null,null,null,null,320]
[124,"","FOR27","Total taxable profits (if box 25 minus box 26 is a positive amount)",null,null,null,null,null,null,null,null,null,null,null,null,null,null,null,null,null,null,null,null,null,null,null,null,null,null,null,null,null,null,null,null,null,null,null,null,null,null,null,null,null,null,null,null,null,null,null,null,null,9250,{"$f":"MAX(0,BC122-BC123)","v":6322},{"$f":"MAX(0,BD122-BD123)","v":2432},null,null,null,null,null,12310,null,null,null,null,null,null,null,null,null,null,null,null,null,null,null,null,null,{"$f":"MAX(0,CB122-CB123)","v":12475},null,null,null,null,null,null,null,{"$f":"MAX(0,CJ122-CJ123)","v":126634},null,null,null,null,null,null,null,null,null,null,null,null,null,null,null,null,null,null,null,null,null,null,null,null,null,null,null,null,null,null,null,null,null,null,null,null,null,null,null,null,null,null,null,null,null,null,null,null,null,null,null,null,null,null,null,null,null,null,null,null,null,null,null,null,null,null,null,0,null,null,null,null,null,null,null,null,null,null,null,null,null,null,null,null,null,null,null,null,null,null,null,null,null,null,null,null,null,null,null,{"$f":"MAX(0,GF122-GF123)","v":502},null,null,null,null,null,null,null,null,null,null,null,null,null,null,null,null,null,null,null,null,null,null,null,null,null,null,null,{"$f":"MAX(0,HH122-HH123)","v":2110},null,null,null,null,null,null,null,null,null,null,null,null,null,null,null,null,null,null,null,null,null,null,null,null,null,null,null,null,null,null,null,null,null,null,null,null,null,null,null,null,null,null,null,null,null,null,null,null,{"$f":"MAX(0,JE122-JE123)","v":502}]
[125,"","FOR28_TOT","Total foreign tax",null,null,null,null,null,null,null,null,null,null,null,null,null,null,null,null,null,null,null,null,null,null,null,null,null,null,null,null,null,null,null,null,null,null,null,null,null,null,null,null,null,null,null,null,null,null,null,null,null,50,null,48,null,null,null,null,null,2525,null,null,null,null,null,null,null,null,null,null,null,null,null,null,null,null,null,null,null,null,null,null,null,null,null,44321.9,null,null,null,null,null,null,null,null,null,null,null,null,null,null,null,null,null,null,null,null,null,null,null,null,null,null,null,null,null,null,null,null,null,null,null,null,null,null,null,null,null,null,null,null,null,null,null,null,null,null,null,null,null,null,null,null,null,null,null,null,null,null,null,null,null,null,null,615.82000000000005,null,null,null,null,null,null,null,null,null,null,null,null,null,null,null,null,null,null,null,null,null,null,null,null,null,null,null,null,null,null,null,null,null,null,null,null,null,null,null,null,null,null,null,null,null,null,null,null,null,null,null,null,null,null,null,null,null,null,null,{"$f":"HH118","v":686}]
[126,{"$f":"IF(FOR_IND>1,IF(HLOOKUP(FOR_IND-1,FOR_RANGE,A126)=\"\",\"\",HLOOKUP(FOR_IND-1,FOR_RANGE,A126)),\"\")","v":""},"FOR29_TOT","Total of column above"]
[127,"","FOR30_TOT","Total taxable amount",null,null,null,null,null,null,null,null,null,null,null,null,null,null,null,null,null,null,null,null,null,null,null,null,null,null,null,null,null,null,null,null,null,null,null,null,null,null,null,null,null,null,null,null,null,null,null,null,null,9200,{"$f":"MAX(0,BC122-BC123)","v":6322},2384,null,null,null,null,null,12310,null,null,null,null,null,null,null,null,null,null,null,null,null,null,null,null,null,12475,null,null,null,null,null,null,null,82312,null,null,null,null,null,null,null,null,null,null,null,null,null,null,null,null,null,null,null,null,null,null,null,null,null,null,null,null,null,null,null,null,null,null,null,null,null,null,null,null,null,null,null,null,null,null,null,null,null,null,null,null,null,null,null,null,null,null,null,null,null,null,null,null,null,null,null,0,null,null,null,null,null,null,null,null,null,null,null,null,null,null,null,null,null,null,null,null,null,null,null,null,null,null,null,null,null,null,null,502,null,null,null,null,null,null,null,null,null,null,null,null,null,null,null,null,null,null,null,null,null,null,null,null,null,null,null,{"$f":"HH121","v":2110},null,null,null,null,null,null,null,null,null,null,null,null,null,null,null,null,null,null,null,null,null,null,null,null,null,null,null,null,null,null,null,null,null,null,null,null,null,null,null,null,null,null,null,null,null,null,null,null,502]
[128,"","FOR30.1","Total claimed under FIG regime"]
[129,"","FOR31","Loss set off against total income",null,null,null,null,null,null,null,null,null,null,null,null,null,null,null,null,null,null,null,null,null,null,null,null,null,null,null,null,null,null,null,null,null,null,null,null,null,null,null,null,null,null,null,null,null,null,null,null,null,null,null,null,null,null,null,null,null,null,null,null,null,null,null,null,null,null,null,null,null,null,null,null,null,null,null,null,null,null,null,null,null,null,null,null,null,null,null,null,null,null,null,null,null,null,null,null,null,null,null,null,null,null,null,null,null,null,null,null,null,null,null,null,null,null,null,null,null,null,null,null,null,null,null,null,null,null,null,null,null,null,null,null,null,null,null,null,null,null,null,null,null,null,null,null,null,null,null,null,null,null,null,null,null,null,null,null,null,null,null,null,null,null,null,null,null,null,null,null,null,null,null,null,null,null,null,null,null,null,null,null,null,null,null,null,null,null,null,null,null,null,null,null,null,null,null,null,null,null,null,null,null,null,null,null,null,null,null,null,null,null,null,null,null,6001,2278,2278,2278]
[130,"","FOR32","Total loss to carry forward to the following year",null,null,null,null,null,null,null,null,null,null,null,null,null,null,null,null,null,null,null,null,null,null,null,null,null,null,null,null,null,null,null,null,null,null,null,null,null,null,null,null,null,null,null,null,null,null,null,null,null,null,null,null,null,null,2148,null,null,null,null,null,null,null,null,null,null,null,null,null,null,null,null,null,null,null,null,null,null,null,null,null,null,null,null,null,null,null,null,null,null,null,null,null,null,null,null,null,null,null,null,null,null,null,null,null,null,null,null,null,null,null,null,null,null,null,null,null,null,null,null,null,null,null,null,null,null,null,null,null,null,null,null,null,null,null,null,null,null,null,null,null,null,null,null,null,null,null,null,null,null,null,null,1134.8599999999999]
[131,"","FOR A_1","Country or territory code",null,null,null,null,null,null,null,null,null,null,null,null,null,null,null,null,null,null,null,null,null,null,null,null,null,null,null,null,null,null,null,null,null,null,null,null,null,null,null,null,null,null,null,null,null,null,null,null,null,null,null,null,null,null,null,null,null,null,null,null,null,null,null,null,null,null,null,null,null,null,null,null,null,null,null,"HUN",null,null,null,null,null,null,null,null,null,null,null,null,null,null,null,null,null,null,null,null,null,null,null,null,null,null,null,null,null,null,null,null,null,null,null,null,null,null,null,null,null,null,null,null,null,null,null,null,null,null,null,null,null,null,null,null,null,null,null,null,null,null,null,null,null,null,null,null,null,null,"LBY ","LBY",null,null,null,null,null,null,null,null,null,"USA",null,null,null,null,null,null,null,null,null,null,null,null,null,null,null,null,null,null,null,null,null,null,null,null,null,null,null,null,null,null,null,null,null,null,null,null,null,null,null,null,null,null,null,null,null,null,null,null,null,null,null,null,null,"IRL",null,null,null,null,null,null,null,null,null,null,null,"HKG"]
[132,"","FORC_1","Foreign tax paid",null,null,null,null,null,null,null,null,null,null,null,null,null,null,null,null,null,null,null,null,null,null,null,null,null,null,null,null,null,null,null,null,null,null,null,null,null,null,null,null,null,null,null,null,null,null,null,null,null,null,null,null,null,null,null,null,null,null,null,null,null,null,null,null,null,null,null,null,null,null,null,null,null,null,null,1711,null,null,null,null,null,null,null,null,null,null,null,null,null,null,null,null,null,null,null,null,null,null,null,null,null,null,null,null,null,null,null,null,null,null,null,null,null,null,null,null,null,null,null,null,null,null,null,null,null,null,null,null,null,null,null,null,null,null,null,null,null,null,null,null,null,null,null,null,null,null,1784,10976,null,null,null,null,null,null,null,null,null,2701,null,null,null,null,null,null,null,null,null,null,null,null,null,null,null,null,null,null,null,null,null,null,null,null,null,null,null,null,null,null,null,null,null,null,null,null,null,null,null,null,null,null,null,null,null,null,null,null,null,null,null,null,null,8836,null,null,null,null,null,null,null,null,null,null,null,11505]
[133,"","FORE_1","To claim Foreign Tax Credit Relief put ‘X’ in the box",null,null,null,null,null,null,null,null,null,null,null,null,null,null,null,null,null,null,null,null,null,null,null,null,null,null,null,null,null,null,null,null,null,null,null,null,null,null,null,null,null,null,null,null,null,null,null,null,null,null,null,null,null,null,null,null,null,null,null,null,null,null,null,null,null,null,null,null,null,null,null,null,null,null,null,"Y",null,null,null,null,null,null,null,null,null,null,null,null,null,null,null,null,null,null,null,null,null,null,null,null,null,null,null,null,null,null,null,null,null,null,null,null,null,null,null,null,null,null,null,null,null,null,null,null,null,null,null,null,null,null,null,null,null,null,null,null,null,null,null,null,null,null,null,null,null,null,"Y","Y",null,null,null,null,null,null,null,null,null,"Y",null,null,null,null,null,null,null,null,null,null,null,null,null,null,null,null,null,null,null,null,null,null,null,null,null,null,null,null,null,null,null,null,null,null,null,null,null,null,null,null,null,null,null,null,null,null,null,null,null,null,null,null,null,"Y",null,null,null,null,null,null,null,null,null,null,null,"Y"]
[134,"","FORF_1","Taxable amount",null,null,null,null,null,null,null,null,null,null,null,null,null,null,null,null,null,null,null,null,null,null,null,null,null,null,null,null,null,null,null,null,null,null,null,null,null,null,null,null,null,null,null,null,null,null,null,null,null,null,null,null,null,null,null,null,null,null,null,null,null,null,null,null,null,null,null,null,null,null,null,null,null,null,null,12475,null,null,null,null,null,null,null,null,null,null,null,null,null,null,null,null,null,null,null,null,null,null,null,null,null,null,null,null,null,null,null,null,null,null,null,null,null,null,null,null,null,null,null,null,null,null,null,null,null,null,null,null,null,null,null,null,null,null,null,null,null,null,null,null,null,null,null,null,null,null,2570,68379,null,null,null,null,null,null,null,null,null,6565,null,null,null,null,null,null,null,null,null,null,null,null,null,null,null,null,null,null,null,null,null,null,null,null,null,null,null,null,null,null,null,null,null,null,null,null,null,null,null,null,null,null,null,null,null,null,null,null,null,null,null,null,null,23904,null,null,null,null,null,null,null,null,null,null,null,79650]
[135,"","FOR A_2","Country or territory code",null,null,null,null,null,null,null,null,null,null,null,null,null,null,null,null,null,null,null,null,null,null,null,null,null,null,null,null,null,null,null,null,null,null,null,null,null,null,null,null,null,null,null,null,null,null,null,null,null,null,null,null,null,null,null,null,null,null,null,null,null,null,null,null,null,null,null,null,null,null,null,null,null,null,null,null,null,null,null,null,null,null,null,null,null,null,null,null,null,null,null,null,null,null,null,null,null,null,null,null,null,null,null,null,null,null,null,null,null,null,null,null,null,null,null,null,null,null,null,null,null,null,null,null,null,null,null,null,null,null,null,null,null,null,null,null,null,null,null,null,null,null,null,null,null,null,null,null,null,null,null,null,null,null,null,null,null,null,null,null,null,null,null,null,null,null,null,null,null,null,null,null,null,null,null,null,null,null,null,null,null,null,null,null,null,null,null,null,null,null,null,null,null,null,null,null,null,null,null,null,null,null,null,null,null,null,null,null,null,null,null,"NOR",null,null,null,null,null,null,null,null,null,null,null,"HKG"]
[136,"","FORC_2","Foreign tax paid",null,null,null,null,null,null,null,null,null,null,null,null,null,null,null,null,null,null,null,null,null,null,null,null,null,null,null,null,null,null,null,null,null,null,null,null,null,null,null,null,null,null,null,null,null,null,null,null,null,null,null,null,null,null,null,null,null,null,null,null,null,null,null,null,null,null,null,null,null,null,null,null,null,null,null,null,null,null,null,null,null,null,null,null,null,null,null,null,null,null,null,null,null,null,null,null,null,null,null,null,null,null,null,null,null,null,null,null,null,null,null,null,null,null,null,null,null,null,null,null,null,null,null,null,null,null,null,null,null,null,null,null,null,null,null,null,null,null,null,null,null,null,null,null,null,null,null,null,null,null,null,null,null,null,null,null,null,null,null,null,null,null,null,null,null,null,null,null,null,null,null,null,null,null,null,null,null,null,null,null,null,null,null,null,null,null,null,null,null,null,null,null,null,null,null,null,null,null,null,null,null,null,null,null,null,null,null,null,null,null,null,3394,null,null,null,null,null,null,null,null,null,null,null,6158]
[137,"","FORE_2","To claim Foreign Tax Credit Relief put ‘X’ in the box",null,null,null,null,null,null,null,null,null,null,null,null,null,null,null,null,null,null,null,null,null,null,null,null,null,null,null,null,null,null,null,null,null,null,null,null,null,null,null,null,null,null,null,null,null,null,null,null,null,null,null,null,null,null,null,null,null,null,null,null,null,null,null,null,null,null,null,null,null,null,null,null,null,null,null,null,null,null,null,null,null,null,null,null,null,null,null,null,null,null,null,null,null,null,null,null,null,null,null,null,null,null,null,null,null,null,null,null,null,null,null,null,null,null,null,null,null,null,null,null,null,null,null,null,null,null,null,null,null,null,null,null,null,null,null,null,null,null,null,null,null,null,null,null,null,null,null,null,null,null,null,null,null,null,null,null,null,null,null,null,null,null,null,null,null,null,null,null,null,null,null,null,null,null,null,null,null,null,null,null,null,null,null,null,null,null,null,null,null,null,null,null,null,null,null,null,null,null,null,null,null,null,null,null,null,null,null,null,null,null,null,"Y",null,null,null,null,null,null,null,null,null,null,null,"Y"]
[138,"","FORF_2","Taxable amount",null,null,null,null,null,null,null,null,null,null,null,null,null,null,null,null,null,null,null,null,null,null,null,null,null,null,null,null,null,null,null,null,null,null,null,null,null,null,null,null,null,null,null,null,null,null,null,null,null,null,null,null,null,null,null,null,null,null,null,null,null,null,null,null,null,null,null,null,null,null,null,null,null,null,null,null,null,null,null,null,null,null,null,null,null,null,null,null,null,null,null,null,null,null,null,null,null,null,null,null,null,null,null,null,null,null,null,null,null,null,null,null,null,null,null,null,null,null,null,null,null,null,null,null,null,null,null,null,null,null,null,null,null,null,null,null,null,null,null,null,null,null,null,null,null,null,null,null,null,null,null,null,null,null,null,null,null,null,null,null,null,null,null,null,null,null,null,null,null,null,null,null,null,null,null,null,null,null,null,null,null,null,null,null,null,null,null,null,null,null,null,null,null,null,null,null,null,null,null,null,null,null,null,null,null,null,null,null,null,null,null,14655,null,null,null,null,null,null,null,null,null,null,null,23550]
[139,"","FOR A_3","Country or territory code",null,null,null,null,null,null,null,null,null,null,null,null,null,null,null,null,null,null,null,null,null,null,null,null,null,null,null,null,null,null,null,null,null,null,null,null,null,null,null,null,null,null,null,null,null,null,null,null,null,null,null,null,null,null,null,null,null,null,null,null,null,null,null,null,null,null,null,null,null,null,null,null,null,null,null,null,null,null,null,null,null,null,null,null,null,null,null,null,null,null,null,null,null,null,null,null,null,null,null,null,null,null,null,null,null,null,null,null,null,null,null,null,null,null,null,null,null,null,null,null,null,null,null,null,null,null,null,null,null,null,null,null,null,null,null,null,null,null,null,null,null,null,null,null,null,null,null,null,null,null,null,null,null,null,null,null,null,null,null,null,null,null,null,null,null,null,null,null,null,null,null,null,null,null,null,null,null,null,null,null,null,null,null,null,null,null,null,null,null,null,null,null,null,null,null,null,null,null,null,null,null,null,null,null,null,null,null,null,null,null,null,"CAN"]
[140,"","FORC_3","Foreign tax paid",null,null,null,null,null,null,null,null,null,null,null,null,null,null,null,null,null,null,null,null,null,null,null,null,null,null,null,null,null,null,null,null,null,null,null,null,null,null,null,null,null,null,null,null,null,null,null,null,null,null,null,null,null,null,null,null,null,null,null,null,null,null,null,null,null,null,null,null,null,null,null,null,null,null,null,null,null,null,null,null,null,null,null,null,null,null,null,null,null,null,null,null,null,null,null,null,null,null,null,null,null,null,null,null,null,null,null,null,null,null,null,null,null,null,null,null,null,null,null,null,null,null,null,null,null,null,null,null,null,null,null,null,null,null,null,null,null,null,null,null,null,null,null,null,null,null,null,null,null,null,null,null,null,null,null,null,null,null,null,null,null,null,null,null,null,null,null,null,null,null,null,null,null,null,null,null,null,null,null,null,null,null,null,null,null,null,null,null,null,null,null,null,null,null,null,null,null,null,null,null,null,null,null,null,null,null,null,null,null,null,null,1651]
[141,"","FORE_3","To claim Foreign Tax Credit Relief put ‘X’ in the box",null,null,null,null,null,null,null,null,null,null,null,null,null,null,null,null,null,null,null,null,null,null,null,null,null,null,null,null,null,null,null,null,null,null,null,null,null,null,null,null,null,null,null,null,null,null,null,null,null,null,null,null,null,null,null,null,null,null,null,null,null,null,null,null,null,null,null,null,null,null,null,null,null,null,null,null,null,null,null,null,null,null,null,null,null,null,null,null,null,null,null,null,null,null,null,null,null,null,null,null,null,null,null,null,null,null,null,null,null,null,null,null,null,null,null,null,null,null,null,null,null,null,null,null,null,null,null,null,null,null,null,null,null,null,null,null,null,null,null,null,null,null,null,null,null,null,null,null,null,null,null,null,null,null,null,null,null,null,null,null,null,null,null,null,null,null,null,null,null,null,null,null,null,null,null,null,null,null,null,null,null,null,null,null,null,null,null,null,null,null,null,null,null,null,null,null,null,null,null,null,null,null,null,null,null,null,null,null,null,null,null,"Y"]
[142,"","FORF_3","Taxable amount",null,null,null,null,null,null,null,null,null,null,null,null,null,null,null,null,null,null,null,null,null,null,null,null,null,null,null,null,null,null,null,null,null,null,null,null,null,null,null,null,null,null,null,null,null,null,null,null,null,null,null,null,null,null,null,null,null,null,null,null,null,null,null,null,null,null,null,null,null,null,null,null,null,null,null,null,null,null,null,null,null,null,null,null,null,null,null,null,null,null,null,null,null,null,null,null,null,null,null,null,null,null,null,null,null,null,null,null,null,null,null,null,null,null,null,null,null,null,null,null,null,null,null,null,null,null,null,null,null,null,null,null,null,null,null,null,null,null,null,null,null,null,null,null,null,null,null,null,null,null,null,null,null,null,null,null,null,null,null,null,null,null,null,null,null,null,null,null,null,null,null,null,null,null,null,null,null,null,null,null,null,null,null,null,null,null,null,null,null,null,null,null,null,null,null,null,null,null,null,null,null,null,null,null,null,null,null,null,null,null,null,7434]
[143,"","FOR A_4","Country or territory code",null,null,null,null,null,null,null,null,null,null,null,null,null,null,null,null,null,null,null,null,null,null,null,null,null,null,null,null,null,null,null,null,null,null,null,null,null,null,null,null,null,null,null,null,null,null,null,null,null,null,null,null,null,null,null,null,null,null,null,null,null,null,null,null,null,null,null,null,null,null,null,null,null,null,null,null,null,null,null,null,null,null,null,null,null,null,null,null,null,null,null,null,null,null,null,null,null,null,null,null,null,null,null,null,null,null,null,null,null,null,null,null,null,null,null,null,null,null,null,null,null,null,null,null,null,null,null,null,null,null,null,null,null,null,null,null,null,null,null,null,null,null,null,null,null,null,null,null,null,null,null,null,null,null,null,null,null,null,null,null,null,null,null,null,null,null,null,null,null,null,null,null,null,null,null,null,null,null,null,null,null,null,null,null,null,null,null,null,null,null,null,null,null,null,null,null,null,null,null,null,null,null,null,null,null,null,null,null,null,null,null,"JPN"]
[144,"","FORC_4","Foreign tax paid",null,null,null,null,null,null,null,null,null,null,null,null,null,null,null,null,null,null,null,null,null,null,null,null,null,null,null,null,null,null,null,null,null,null,null,null,null,null,null,null,null,null,null,null,null,null,null,null,null,null,null,null,null,null,null,null,null,null,null,null,null,null,null,null,null,null,null,null,null,null,null,null,null,null,null,null,null,null,null,null,null,null,null,null,null,null,null,null,null,null,null,null,null,null,null,null,null,null,null,null,null,null,null,null,null,null,null,null,null,null,null,null,null,null,null,null,null,null,null,null,null,null,null,null,null,null,null,null,null,null,null,null,null,null,null,null,null,null,null,null,null,null,null,null,null,null,null,null,null,null,null,null,null,null,null,null,null,null,null,null,null,null,null,null,null,null,null,null,null,null,null,null,null,null,null,null,null,null,null,null,null,null,null,null,null,null,null,null,null,null,null,null,null,null,null,null,null,null,null,null,null,null,null,null,null,null,null,null,null,null,null,121168]
[145,"","FORE_4","To claim Foreign Tax Credit Relief put ‘X’ in the box",null,null,null,null,null,null,null,null,null,null,null,null,null,null,null,null,null,null,null,null,null,null,null,null,null,null,null,null,null,null,null,null,null,null,null,null,null,null,null,null,null,null,null,null,null,null,null,null,null,null,null,null,null,null,null,null,null,null,null,null,null,null,null,null,null,null,null,null,null,null,null,null,null,null,null,null,null,null,null,null,null,null,null,null,null,null,null,null,null,null,null,null,null,null,null,null,null,null,null,null,null,null,null,null,null,null,null,null,null,null,null,null,null,null,null,null,null,null,null,null,null,null,null,null,null,null,null,null,null,null,null,null,null,null,null,null,null,null,null,null,null,null,null,null,null,null,null,null,null,null,null,null,null,null,null,null,null,null,null,null,null,null,null,null,null,null,null,null,null,null,null,null,null,null,null,null,null,null,null,null,null,null,null,null,null,null,null,null,null,null,null,null,null,null,null,null,null,null,null,null,null,null,null,null,null,null,null,null,null,null,null,"Y"]
[146,"","FORF_4","Taxable amount",null,null,null,null,null,null,null,null,null,null,null,null,null,null,null,null,null,null,null,null,null,null,null,null,null,null,null,null,null,null,null,null,null,null,null,null,null,null,null,null,null,null,null,null,null,null,null,null,null,null,null,null,null,null,null,null,null,null,null,null,null,null,null,null,null,null,null,null,null,null,null,null,null,null,null,null,null,null,null,null,null,null,null,null,null,null,null,null,null,null,null,null,null,null,null,null,null,null,null,null,null,null,null,null,null,null,null,null,null,null,null,null,null,null,null,null,null,null,null,null,null,null,null,null,null,null,null,null,null,null,null,null,null,null,null,null,null,null,null,null,null,null,null,null,null,null,null,null,null,null,null,null,null,null,null,null,null,null,null,null,null,null,null,null,null,null,null,null,null,null,null,null,null,null,null,null,null,null,null,null,null,null,null,null,null,null,null,null,null,null,null,null,null,null,null,null,null,null,null,null,null,null,null,null,null,null,null,null,null,null,null,291486]
[147,"","FOR33","Amount of chargeable gain under UK rules",null,null,null,null,null,null,null,null,null,null,null,null,null,null,null,null,null,null,null,null,null,null,null,null,null,null,null,null,null,null,null,null,null,null,null,null,null,null,null,null,null,null,null,null,null,null,null,null,null,null,null,null,null,null,13183,null,null,null,null,null,null,null,null,null,null,null,null,null,null,null,null,null,null,null,null,null,null,null,null,null,null,null,null,null,null,null,null,null,null,null,null,null,null,null,null,null,null,null,null,null,null,null,null,null,null,null,null,null,null,null,null,null,null,null,null,null,null,null,null,null,null,null,null,null,null,null,null,null,null,null,null,null,null,null,null,null,null,null,null,null,null,null,null,null,null,null,null,null,null,null,null,null,null,null,null,null,null,null,null,null,7902,null,null,null,null,null,null,null,null,null,null,null,null,null,null,null,null,null,null,null,null,null,null,null,null,null,null,null,null,null,null,null,null,null,null,null,null,null,null,null,null,null,null,null,null,null,null,null,null,null,null,null,null,149140,49140,49140,49140]
[148,"","FOR34","Number of days over which UK gain accrued"]
[149,"","FOR35","Amount of chargeable gain under foreign tax rules"]
[150,"","FOR36","Number of days over which foreign gain accrued"]
[151,"","FOR37","Foreign tax paid",null,null,null,null,null,null,null,null,null,null,null,null,null,null,null,null,null,null,null,null,null,null,null,null,null,null,null,null,null,null,null,null,null,null,null,null,null,null,null,null,null,null,null,null,null,null,null,null,null,null,null,null,null,null,138166,null,null,null,null,null,null,null,null,null,null,null,null,null,null,null,null,null,null,null,null,null,null,null,null,null,null,null,null,null,null,null,null,null,null,null,null,null,null,null,null,null,null,null,null,null,null,null,null,null,null,null,null,null,null,null,null,null,null,null,null,null,null,null,null,null,null,null,null,null,null,null,null,null,null,null,null,null,null,null,null,null,null,null,null,null,null,null,null,null,null,null,null,null,null,null,null,null,null,null,null,null,null,null,null,null,343,null,null,null,null,null,null,null,null,null,null,null,null,null,null,null,null,null,null,null,null,null,null,null,null,null,null,null,null,null,null,null,null,null,null,null,null,null,null,null,null,null,null,null,null,null,null,null,null,null,null,null,null,149140,49140,49140,49140]
[152,"","FOR38","To claim Foreign Tax Credit Relief put ‘X’ in the box",null,null,null,null,null,null,null,null,null,null,null,null,null,null,null,null,null,null,null,null,null,null,null,null,null,null,null,null,null,null,null,null,null,null,null,null,null,null,null,null,null,null,null,null,null,null,null,null,null,null,null,null,null,null,"Y",null,null,null,null,null,null,null,null,null,null,null,null,null,null,null,null,null,null,null,null,null,null,null,null,null,null,null,null,null,null,null,null,null,null,null,null,null,null,null,null,null,null,null,null,null,null,null,null,null,null,null,null,null,null,null,null,null,null,null,null,null,null,null,null,null,null,null,null,null,null,null,null,null,null,null,null,null,null,null,null,null,null,null,null,null,null,null,null,null,null,null,null,null,null,null,null,null,null,null,null,null,null,null,null,null,null,null,null,null,null,null,null,null,null,null,null,null,null,null,null,null,null,null,null,null,null,null,null,null,null,null,null,null,null,null,null,null,null,null,null,null,null,null,null,null,null,null,null,null,null,null,null,null,null,null,null,null,null,"Y","Y","Y","Y"]
[153,"","FOR39","Total Foreign Tax Credit Relief on gains",null,null,null,null,null,null,null,null,null,null,null,null,null,null,null,null,null,null,null,null,null,null,null,null,null,null,null,null,null,null,null,null,null,null,null,null,null,null,null,null,null,null,null,null,null,null,null,null,null,56708,null,null,null,null,138165.75,null,null,null,null,null,null,null,null,null,null,null,null,null,null,null,null,null,null,null,null,null,null,null,null,null,null,null,null,null,null,null,null,null,null,null,null,null,null,null,null,null,null,null,null,null,null,null,null,null,null,null,null,null,null,null,null,null,null,null,null,null,null,null,null,null,null,null,null,null,null,null,null,null,null,null,null,null,null,null,null,null,null,null,null,null,null,null,null,null,null,null,null,null,null,null,null,null,null,null,null,null,null,15416,null,null,343,null,null,null,null,null,null,null,null,null,null,null,null,null,null,null,null,null,null,null,null,null,null,null,null,null,null,null,null,null,null,null,null,null,null,null,null,null,null,null,null,null,null,null,null,null,null,null,null,null,null,null,null,63400,11793,11793,11073]
[154,"","FOR40","Special Withholding Tax"]
[155,"","FOR41","Gains on disposals of holdings in offshore funds (excluding the amounts entered in box 13) and discretionary income from non-resident trusts – enter the amount of the gain or payment",null,null,null,null,null,null,null,null,null,null,null,null,null,null,null,null,null,null,null,null,null,null,null,null,null,null,null,null,null,null,null,null,null,null,null,null,null,null,null,null,null,null,null,null,null,null,null,null,null,null,null,null,null,null,72838]
[156,"","FOR42","If you have received a benefit from a person abroad, enter the value or payment received – if you are omitting income from this section because you are claiming an exemption, see box 46",null,null,null,null,null,null,null,null,null,null,null,null,null,null,null,null,null,null,null,null,null,null,null,null,null,null,null,null,null,null,null,null,null,null,null,null,null,null,null,null,null,null,null,null,null,null,null,null,null,null,null,null,null,null,null,null,null,null,null,null,null,null,null,null,null,null,null,null,null,null,null,null,null,null,null,null,null,null,null,null,null,null,null,null,null,null,null,null,null,null,null,null,null,null,null,null,null,null,null,null,null,null,null,null,null,null,null,null,null,null,null,null,null,null,null,null,null,null,null,null,null,null,null,null,null,null,null,null,null,null,null,null,null,null,null,null,null,null,null,null,null,null,null,null,null,null,null,null,null,null,null,null,null,657285]
[157,"","FOR43","Gains on foreign life insurance policies, etc (excluding the amounts entered in box 13) – enter the amount of the gain",null,null,null,null,null,null,null,null,null,null,null,null,null,null,null,null,null,null,null,null,null,null,null,null,null,null,null,null,null,null,null,null,null,null,null,null,null,null,null,null,null,null,null,null,60345]
[158,"","FOR44","Number of years",null,null,null,null,null,null,null,null,null,null,null,null,null,null,null,null,null,null,null,null,null,null,null,null,null,null,null,null,null,null,null,null,null,null,null,null,null,null,null,null,null,null,null,null,17]
[159,"","FOR45","Tax treated as paid",null,null,null,null,null,null,null,null,null,null,null,null,null,null,null,null,null,null,null,null,null,null,null,null,null,null,null,null,null,null,null,null,null,null,null,null,null,null,null,null,null,null,null,null,12069]
[160,{"$f":"IF(FOR_IND>1,IF(HLOOKUP(FOR_IND-1,FOR_RANGE,A160)=\"\",\"\",HLOOKUP(FOR_IND-1,FOR_RANGE,A160)),\"\")","v":""},"FOR46","If you have omitted income from boxes 11, 13 or 58 to 61 and because you are claiming an exemption in relation to a transfer of assets, enter the total amount omitted (and give full details in the ‘Any other information’ box on your tax return)"]
[161,"","FOR_NSIT_A","Country or territory code",null,null,null,null,null,null,null,null,null,null,null,null,null,null,null,null,null,null,null,null,null,null,null,null,null,null,null,null,null,null,null,null,null,null,null,null,null,null,null,null,null,null,null,null,null,null,null,null,null,null,null,null,null,null,null,null,null,null,null,null,null,null,null,null,null,null,null,null,null,null,null,null,null,null,null,null,null,null,null,null,null,null,null,null,null,null,null,null,null,null,null,null,null,null,null,null,null,null,null,null,null,null,null,null,null,null,null,null,null,null,null,null,null,null,null,null,null,null,null,null,null,null,null,null,null,null,null,null,null,null,null,null,null,null,null,null,null,null,null,null,null,null,null,null,null,null,null,null,null,null,null,null,null,null,null,null,null,null,null,null,null,null,null,null,null,null,null,null,null,null,null,null,null,null,null,null,null,null,null,null,null,null,null,null,null,null,null,null,null,null,null,null,null,null,null,null,null,null,null,null,null,null,null,null,null,null,null,null,null,null,null,null,null,null,null,null,null,null,null,null,null,null,null,null,null,null,null,null,null,null,null,null,null,null,null,null,null,null,null,null,"IRL","BEL"]
[162,"","FOR_NSIT_B","Amount of income arising or received before any tax taken off",null,null,null,null,null,null,null,null,null,null,null,null,null,null,null,null,null,null,null,null,null,null,null,null,null,null,null,null,null,null,null,null,null,null,null,null,null,null,null,null,null,null,null,null,null,null,null,null,null,null,null,null,null,null,null,null,null,null,null,null,null,null,null,null,null,null,null,null,null,null,null,null,null,null,null,null,null,null,null,null,null,null,null,null,null,null,null,null,null,null,null,null,null,null,null,null,null,null,null,null,null,null,null,null,null,null,null,null,null,null,null,null,null,null,null,null,null,null,null,null,null,null,null,null,null,null,null,null,null,null,null,null,null,null,null,null,null,null,null,null,null,null,null,null,null,null,null,null,null,null,null,null,null,null,null,null,null,null,null,null,null,null,null,null,null,null,null,null,null,null,null,null,null,null,null,null,null,null,null,null,null,null,null,null,null,null,null,null,null,null,null,null,null,null,null,null,null,null,null,null,null,null,null,null,null,null,null,null,null,null,null,null,null,null,null,null,null,null,null,null,null,null,null,null,null,null,null,null,null,null,null,null,null,null,null,null,null,null,null,null,1000,1428]
[163,"","FOR_NSIT_C","Foreign tax taken off or paid",null,null,null,null,null,null,null,null,null,null,null,null,null,null,null,null,null,null,null,null,null,null,null,null,null,null,null,null,null,null,null,null,null,null,null,null,null,null,null,null,null,null,null,null,null,null,null,null,null,null,null,null,null,null,null,null,null,null,null,null,null,null,null,null,null,null,null,null,null,null,null,null,null,null,null,null,null,null,null,null,null,null,null,null,null,null,null,null,null,null,null,null,null,null,null,null,null,null,null,null,null,null,null,null,null,null,null,null,null,null,null,null,null,null,null,null,null,null,null,null,null,null,null,null,null,null,null,null,null,null,null,null,null,null,null,null,null,null,null,null,null,null,null,null,null,null,null,null,null,null,null,null,null,null,null,null,null,null,null,null,null,null,null,null,null,null,null,null,null,null,null,null,null,null,null,null,null,null,null,null,null,null,null,null,null,null,null,null,null,null,null,null,null,null,null,null,null,null,null,null,null,null,null,null,null,null,null,null,null,null,null,null,null,null,null,null,null,null,null,null,null,null,null,null,null,null,null,null,null,null,null,null,null,null,null,null,null,null,null,null,100,357]
[164,"","FOR47_NSIT_D","Special Withholding Tax and any UK tax taken off"]
[165,"","FOR_NSIT_E","To claim Foreign Tax Credit Relief, put ‘X’ in the box",null,null,null,null,null,null,null,null,null,null,null,null,null,null,null,null,null,null,null,null,null,null,null,null,null,null,null,null,null,null,null,null,null,null,null,null,null,null,null,null,null,null,null,null,null,null,null,null,null,null,null,null,null,null,null,null,null,null,null,null,null,null,null,null,null,null,null,null,null,null,null,null,null,null,null,null,null,null,null,null,null,null,null,null,null,null,null,null,null,null,null,null,null,null,null,null,null,null,null,null,null,null,null,null,null,null,null,null,null,null,null,null,null,null,null,null,null,null,null,null,null,null,null,null,null,null,null,null,null,null,null,null,null,null,null,null,null,null,null,null,null,null,null,null,null,null,null,null,null,null,null,null,null,null,null,null,null,null,null,null,null,null,null,null,null,null,null,null,null,null,null,null,null,null,null,null,null,null,null,null,null,null,null,null,null,null,null,null,null,null,null,null,null,null,null,null,null,null,null,null,null,null,null,null,null,null,null,null,null,null,null,null,null,null,null,null,null,null,null,null,null,null,null,null,null,null,null,null,null,null,null,null,null,null,null,null,null,null,null,null,null,"Y"]
[166,"","FOR48_NSIT_F","Taxable amount",null,null,null,null,null,null,null,null,null,null,null,null,null,null,null,null,null,null,null,null,null,null,null,null,null,null,null,null,null,null,null,null,null,null,null,null,null,null,null,null,null,null,null,null,null,null,null,null,null,null,null,null,null,null,null,null,null,null,null,null,null,null,null,null,null,null,null,null,null,null,null,null,null,null,null,null,null,null,null,null,null,null,null,null,null,null,null,null,null,null,null,null,null,null,null,null,null,null,null,null,null,null,null,null,null,null,null,null,null,null,null,null,null,null,null,null,null,null,null,null,null,null,null,null,null,null,null,null,null,null,null,null,null,null,null,null,null,null,null,null,null,null,null,null,null,null,null,null,null,null,null,null,null,null,null,null,null,null,null,null,null,null,null,null,null,null,null,null,null,null,null,null,null,null,null,null,null,null,null,null,null,null,null,null,null,null,null,null,null,null,null,null,null,null,null,null,null,null,null,null,null,null,null,null,null,null,null,null,null,null,null,null,null,null,null,null,null,null,null,null,null,null,null,null,null,null,null,null,null,null,null,null,null,null,null,null,null,null,null,null,900,1428]
[167,"","FOR47","Total of column above"]
[168,"","FOR48","Total of column above",null,null,null,null,null,null,null,null,null,null,null,null,null,null,null,null,null,null,null,null,null,null,null,null,null,null,null,null,null,null,null,null,null,null,null,null,null,null,null,null,null,null,null,null,null,null,null,null,null,null,null,null,null,null,null,null,null,null,null,null,null,null,null,null,null,null,null,null,null,null,null,null,null,null,null,null,null,null,null,null,null,null,null,null,null,null,null,null,null,null,null,null,null,null,null,null,null,null,null,null,null,null,null,null,null,null,null,null,null,null,null,null,null,null,null,null,null,null,null,null,null,null,null,null,null,null,null,null,null,null,null,null,null,null,null,null,null,null,null,null,null,null,null,null,null,null,null,null,null,null,null,null,null,null,null,null,null,null,null,null,null,null,null,null,null,null,null,null,null,null,null,null,null,null,null,null,null,null,null,null,null,null,null,null,null,null,null,null,null,null,null,null,null,null,null,null,null,null,null,null,null,null,null,null,null,null,null,null,null,null,null,null,null,null,null,null,null,null,null,null,null,null,null,null,null,null,null,null,null,null,null,null,null,null,null,null,null,null,null,null,900,1428]
[169,"","FOR48.1","Total claimed under FIG regime",null,null,null,null,null,null,null,null,null,null,null,null,null,null,null,null,null,null,null,null,null,null,null,null,null,null,null,null,null,null,null,null,null,null,null,null,null,null,null,null,null,null,null,null,null,null,null,null,null,null,null,null,null,null,null,null,null,null,null,null,null,null,null,null,null,null,null,null,null,null,null,null,null,null,null,null,null,null,null,null,null,null,null,null,null,null,null,null,null,null,null,null,null,null,null,null,null,null,null,null,null,null,null,null,null,null,null,null,null,null,null,null,null,null,null,null,null,null,null,null,null,null,null,null,null,null,null,null,null,null,null,null,null,null,null,null,null,null,null,null,null,null,null,null,null,null,null,null,null,null,null,null,null,null,null,null,null,null,null,null,null,null,null,null,null,null,null,null,null,null,null,null,null,null,null,null,null,null,null,null,null,null,null,null,null,null,null,null,null,null,null,null,null,null,null,null,null,null,null,null,null,null,null,null,null,null,null,null,null,null,null,null,null,null,null,null,null,null,null,null,null,null,null,null,null,null,null,null,null,null,null,null,null,null,null,null,null,null,null,null,900]
[170,"","FOR49","Property inc or finance costs"]
[171,"","FOR49.1","Unused residential finance costs"]
[172,"","FOR_SSIT_A","Country or territory code",null,null,null,null,null,null,null,null,null,null,null,null,null,null,null,null,null,null,null,null,null,null,null,null,null,null,null,null,null,null,null,null,null,null,null,null,null,null,null,null,null,null,null,null,null,null,null,null,null,null,null,null,null,null,null,null,null,null,null,null,null,null,null,null,null,null,null,null,null,null,null,null,null,null,null,null,null,null,null,null,null,null,null,null,null,null,null,null,null,null,null,null,null,null,null,null,null,null,null,null,null,null,null,null,null,null,null,null,null,null,null,null,null,null,null,null,null,null,null,null,null,null,null,null,null,null,null,null,null,null,null,null,null,null,null,null,null,null,null,null,null,null,null,null,null,null,null,null,null,null,null,null,null,null,null,null,null,null,null,null,null,null,null,null,null,null,null,null,null,null,null,null,null,null,null,null,null,null,null,null,null,null,null,null,null,null,null,null,null,null,null,null,null,null,null,null,null,null,null,null,null,null,null,null,null,null,null,null,null,null,null,null,null,null,null,null,null,null,null,null,null,null,null,null,null,null,null,null,null,null,null,null,null,null,null,null,null,null,null,null,"FRA","ITA"]
[173,"","FOR_SSIT_B","Amount of income arising or received before any tax taken off",null,null,null,null,null,null,null,null,null,null,null,null,null,null,null,null,null,null,null,null,null,null,null,null,null,null,null,null,null,null,null,null,null,null,null,null,null,null,null,null,null,null,null,null,null,null,null,null,null,null,null,null,null,null,null,null,null,null,null,null,null,null,null,null,null,null,null,null,null,null,null,null,null,null,null,null,null,null,null,null,null,null,null,null,null,null,null,null,null,null,null,null,null,null,null,null,null,null,null,null,null,null,null,null,null,null,null,null,null,null,null,null,null,null,null,null,null,null,null,null,null,null,null,null,null,null,null,null,null,null,null,null,null,null,null,null,null,null,null,null,null,null,null,null,null,null,null,null,null,null,null,null,null,null,null,null,null,null,null,null,null,null,null,null,null,null,null,null,null,null,null,null,null,null,null,null,null,null,null,null,null,null,null,null,null,null,null,null,null,null,null,null,null,null,null,null,null,null,null,null,null,null,null,null,null,null,null,null,null,null,null,null,null,null,null,null,null,null,null,null,null,null,null,null,null,null,null,null,null,null,null,null,null,null,null,null,null,null,null,null,2798,3770]
[174,"","FOR_SSIT_C","Foreign tax taken off or paid",null,null,null,null,null,null,null,null,null,null,null,null,null,null,null,null,null,null,null,null,null,null,null,null,null,null,null,null,null,null,null,null,null,null,null,null,null,null,null,null,null,null,null,null,null,null,null,null,null,null,null,null,null,null,null,null,null,null,null,null,null,null,null,null,null,null,null,null,null,null,null,null,null,null,null,null,null,null,null,null,null,null,null,null,null,null,null,null,null,null,null,null,null,null,null,null,null,null,null,null,null,null,null,null,null,null,null,null,null,null,null,null,null,null,null,null,null,null,null,null,null,null,null,null,null,null,null,null,null,null,null,null,null,null,null,null,null,null,null,null,null,null,null,null,null,null,null,null,null,null,null,null,null,null,null,null,null,null,null,null,null,null,null,null,null,null,null,null,null,null,null,null,null,null,null,null,null,null,null,null,null,null,null,null,null,null,null,null,null,null,null,null,null,null,null,null,null,null,null,null,null,null,null,null,null,null,null,null,null,null,null,null,null,null,null,null,null,null,null,null,null,null,null,null,null,null,null,null,null,null,null,null,null,null,null,null,null,null,null,null,null,867]
[175,"","FOR50_SSIT_D","Special Withholding Tax and any UK tax taken off"]
[176,"","FOR_SSIT_E","To claim Foreign Tax Credit Relief, put ‘X’ in the box",null,null,null,null,null,null,null,null,null,null,null,null,null,null,null,null,null,null,null,null,null,null,null,null,null,null,null,null,null,null,null,null,null,null,null,null,null,null,null,null,null,null,null,null,null,null,null,null,null,null,null,null,null,null,null,null,null,null,null,null,null,null,null,null,null,null,null,null,null,null,null,null,null,null,null,null,null,null,null,null,null,null,null,null,null,null,null,null,null,null,null,null,null,null,null,null,null,null,null,null,null,null,null,null,null,null,null,null,null,null,null,null,null,null,null,null,null,null,null,null,null,null,null,null,null,null,null,null,null,null,null,null,null,null,null,null,null,null,null,null,null,null,null,null,null,null,null,null,null,null,null,null,null,null,null,null,null,null,null,null,null,null,null,null,null,null,null,null,null,null,null,null,null,null,null,null,null,null,null,null,null,null,null,null,null,null,null,null,null,null,null,null,null,null,null,null,null,null,null,null,null,null,null,null,null,null,null,null,null,null,null,null,null,null,null,null,null,null,null,null,null,null,null,null,null,null,null,null,null,null,null,null,null,null,null,null,null,null,null,null,null,"Y"]
[177,"","FOR51_SSIT_F","Taxable amount",null,null,null,null,null,null,null,null,null,null,null,null,null,null,null,null,null,null,null,null,null,null,null,null,null,null,null,null,null,null,null,null,null,null,null,null,null,null,null,null,null,null,null,null,null,null,null,null,null,null,null,null,null,null,null,null,null,null,null,null,null,null,null,null,null,null,null,null,null,null,null,null,null,null,null,null,null,null,null,null,null,null,null,null,null,null,null,null,null,null,null,null,null,null,null,null,null,null,null,null,null,null,null,null,null,null,null,null,null,null,null,null,null,null,null,null,null,null,null,null,null,null,null,null,null,null,null,null,null,null,null,null,null,null,null,null,null,null,null,null,null,null,null,null,null,null,null,null,null,null,null,null,null,null,null,null,null,null,null,null,null,null,null,null,null,null,null,null,null,null,null,null,null,null,null,null,null,null,null,null,null,null,null,null,null,null,null,null,null,null,null,null,null,null,null,null,null,null,null,null,null,null,null,null,null,null,null,null,null,null,null,null,null,null,null,null,null,null,null,null,null,null,null,null,null,null,null,null,null,null,null,null,null,null,null,null,null,null,null,null,2798,3770]
[178,"","FOR50","Total of column above"]
[179,"","FOR51","Total of column above",null,null,null,null,null,null,null,null,null,null,null,null,null,null,null,null,null,null,null,null,null,null,null,null,null,null,null,null,null,null,null,null,null,null,null,null,null,null,null,null,null,null,null,null,null,null,null,null,null,null,null,null,null,null,null,null,null,null,null,null,null,null,null,null,null,null,null,null,null,null,null,null,null,null,null,null,null,null,null,null,null,null,null,null,null,null,null,null,null,null,null,null,null,null,null,null,null,null,null,null,null,null,null,null,null,null,null,null,null,null,null,null,null,null,null,null,null,null,null,null,null,null,null,null,null,null,null,null,null,null,null,null,null,null,null,null,null,null,null,null,null,null,null,null,null,null,null,null,null,null,null,null,null,null,null,null,null,null,null,null,null,null,null,null,null,null,null,null,null,null,null,null,null,null,null,null,null,null,null,null,null,null,null,null,null,null,null,null,null,null,null,null,null,null,null,null,null,null,null,null,null,null,null,null,null,null,null,null,null,null,null,null,null,null,null,null,null,null,null,null,null,null,null,null,null,null,null,null,null,null,null,null,null,null,null,null,null,null,null,null,2798,3770]
[180,"","FOR51.1","Total claimed under FIG regime",null,null,null,null,null,null,null,null,null,null,null,null,null,null,null,null,null,null,null,null,null,null,null,null,null,null,null,null,null,null,null,null,null,null,null,null,null,null,null,null,null,null,null,null,null,null,null,null,null,null,null,null,null,null,null,null,null,null,null,null,null,null,null,null,null,null,null,null,null,null,null,null,null,null,null,null,null,null,null,null,null,null,null,null,null,null,null,null,null,null,null,null,null,null,null,null,null,null,null,null,null,null,null,null,null,null,null,null,null,null,null,null,null,null,null,null,null,null,null,null,null,null,null,null,null,null,null,null,null,null,null,null,null,null,null,null,null,null,null,null,null,null,null,null,null,null,null,null,null,null,null,null,null,null,null,null,null,null,null,null,null,null,null,null,null,null,null,null,null,null,null,null,null,null,null,null,null,null,null,null,null,null,null,null,null,null,null,null,null,null,null,null,null,null,null,null,null,null,null,null,null,null,null,null,null,null,null,null,null,null,null,null,null,null,null,null,null,null,null,null,null,null,null,null,null,null,null,null,null,null,null,null,null,null,null,null,null,null,null,null,2798]
[181,"","FOR_DSIT_A","Country or territory code",null,null,null,null,null,null,null,null,null,null,null,null,null,null,null,null,null,null,null,null,null,null,null,null,null,null,null,null,null,null,null,null,null,null,null,null,null,null,null,null,null,null,null,null,null,null,null,null,null,null,null,null,null,null,null,null,null,null,null,null,null,null,null,null,null,null,null,null,null,null,null,null,null,null,null,null,null,null,null,null,null,null,null,null,null,null,null,null,null,null,null,null,null,null,null,null,null,null,null,null,null,null,null,null,null,null,null,null,null,null,null,null,null,null,null,null,null,null,null,null,null,null,null,null,null,null,null,null,null,null,null,null,null,null,null,null,null,null,null,null,null,null,null,null,null,null,null,null,null,null,null,null,null,null,null,null,null,null,null,null,null,null,null,null,null,null,null,null,null,null,null,null,null,null,null,null,null,null,null,null,null,null,null,null,null,null,null,null,null,null,null,null,null,null,null,null,null,null,null,null,null,null,null,null,null,null,null,null,null,null,null,null,null,null,null,null,null,null,null,null,null,null,null,null,null,null,null,null,null,null,null,null,null,null,null,null,null,null,null,null,"DNK","USA"]
[182,"","FOR_DSIT_B","Amount of income arising or received before any tax taken off",null,null,null,null,null,null,null,null,null,null,null,null,null,null,null,null,null,null,null,null,null,null,null,null,null,null,null,null,null,null,null,null,null,null,null,null,null,null,null,null,null,null,null,null,null,null,null,null,null,null,null,null,null,null,null,null,null,null,null,null,null,null,null,null,null,null,null,null,null,null,null,null,null,null,null,null,null,null,null,null,null,null,null,null,null,null,null,null,null,null,null,null,null,null,null,null,null,null,null,null,null,null,null,null,null,null,null,null,null,null,null,null,null,null,null,null,null,null,null,null,null,null,null,null,null,null,null,null,null,null,null,null,null,null,null,null,null,null,null,null,null,null,null,null,null,null,null,null,null,null,null,null,null,null,null,null,null,null,null,null,null,null,null,null,null,null,null,null,null,null,null,null,null,null,null,null,null,null,null,null,null,null,null,null,null,null,null,null,null,null,null,null,null,null,null,null,null,null,null,null,null,null,null,null,null,null,null,null,null,null,null,null,null,null,null,null,null,null,null,null,null,null,null,null,null,null,null,null,null,null,null,null,null,null,null,null,null,null,null,null,3600,1490]
[183,"","FOR_DSIT_C","Foreign tax taken off or paid",null,null,null,null,null,null,null,null,null,null,null,null,null,null,null,null,null,null,null,null,null,null,null,null,null,null,null,null,null,null,null,null,null,null,null,null,null,null,null,null,null,null,null,null,null,null,null,null,null,null,null,null,null,null,null,null,null,null,null,null,null,null,null,null,null,null,null,null,null,null,null,null,null,null,null,null,null,null,null,null,null,null,null,null,null,null,null,null,null,null,null,null,null,null,null,null,null,null,null,null,null,null,null,null,null,null,null,null,null,null,null,null,null,null,null,null,null,null,null,null,null,null,null,null,null,null,null,null,null,null,null,null,null,null,null,null,null,null,null,null,null,null,null,null,null,null,null,null,null,null,null,null,null,null,null,null,null,null,null,null,null,null,null,null,null,null,null,null,null,null,null,null,null,null,null,null,null,null,null,null,null,null,null,null,null,null,null,null,null,null,null,null,null,null,null,null,null,null,null,null,null,null,null,null,null,null,null,null,null,null,null,null,null,null,null,null,null,null,null,null,null,null,null,null,null,null,null,null,null,null,null,null,null,null,null,null,null,null,null,null,null,223]
[184,"","FOR52_DSIT_D","Special Withholding Tax and any UK tax taken off"]
[185,"","FOR_DSIT_E","To claim Foreign Tax Credit Relief, put ‘X’ in the box",null,null,null,null,null,null,null,null,null,null,null,null,null,null,null,null,null,null,null,null,null,null,null,null,null,null,null,null,null,null,null,null,null,null,null,null,null,null,null,null,null,null,null,null,null,null,null,null,null,null,null,null,null,null,null,null,null,null,null,null,null,null,null,null,null,null,null,null,null,null,null,null,null,null,null,null,null,null,null,null,null,null,null,null,null,null,null,null,null,null,null,null,null,null,null,null,null,null,null,null,null,null,null,null,null,null,null,null,null,null,null,null,null,null,null,null,null,null,null,null,null,null,null,null,null,null,null,null,null,null,null,null,null,null,null,null,null,null,null,null,null,null,null,null,null,null,null,null,null,null,null,null,null,null,null,null,null,null,null,null,null,null,null,null,null,null,null,null,null,null,null,null,null,null,null,null,null,null,null,null,null,null,null,null,null,null,null,null,null,null,null,null,null,null,null,null,null,null,null,null,null,null,null,null,null,null,null,null,null,null,null,null,null,null,null,null,null,null,null,null,null,null,null,null,null,null,null,null,null,null,null,null,null,null,null,null,null,null,null,null,null,"Y"]
[186,"","FOR53_DSIT_F","Taxable amount",null,null,null,null,null,null,null,null,null,null,null,null,null,null,null,null,null,null,null,null,null,null,null,null,null,null,null,null,null,null,null,null,null,null,null,null,null,null,null,null,null,null,null,null,null,null,null,null,null,null,null,null,null,null,null,null,null,null,null,null,null,null,null,null,null,null,null,null,null,null,null,null,null,null,null,null,null,null,null,null,null,null,null,null,null,null,null,null,null,null,null,null,null,null,null,null,null,null,null,null,null,null,null,null,null,null,null,null,null,null,null,null,null,null,null,null,null,null,null,null,null,null,null,null,null,null,null,null,null,null,null,null,null,null,null,null,null,null,null,null,null,null,null,null,null,null,null,null,null,null,null,null,null,null,null,null,null,null,null,null,null,null,null,null,null,null,null,null,null,null,null,null,null,null,null,null,null,null,null,null,null,null,null,null,null,null,null,null,null,null,null,null,null,null,null,null,null,null,null,null,null,null,null,null,null,null,null,null,null,null,null,null,null,null,null,null,null,null,null,null,null,null,null,null,null,null,null,null,null,null,null,null,null,null,null,null,null,null,null,null,3600,1490]
[187,"","FOR52","Total of column above"]
[188,"","FOR53","Total of column above",null,null,null,null,null,null,null,null,null,null,null,null,null,null,null,null,null,null,null,null,null,null,null,null,null,null,null,null,null,null,null,null,null,null,null,null,null,null,null,null,null,null,null,null,null,null,null,null,null,null,null,null,null,null,null,null,null,null,null,null,null,null,null,null,null,null,null,null,null,null,null,null,null,null,null,null,null,null,null,null,null,null,null,null,null,null,null,null,null,null,null,null,null,null,null,null,null,null,null,null,null,null,null,null,null,null,null,null,null,null,null,null,null,null,null,null,null,null,null,null,null,null,null,null,null,null,null,null,null,null,null,null,null,null,null,null,null,null,null,null,null,null,null,null,null,null,null,null,null,null,null,null,null,null,null,null,null,null,null,null,null,null,null,null,null,null,null,null,null,null,null,null,null,null,null,null,null,null,null,null,null,null,null,null,null,null,null,null,null,null,null,null,null,null,null,null,null,null,null,null,null,null,null,null,null,null,null,null,null,null,null,null,null,null,null,null,null,null,null,null,null,null,null,null,null,null,null,null,null,null,null,null,null,null,null,null,null,null,null,null,3600,1490]
[189,"","FOR53.1","Total claimed under FIG regime",null,null,null,null,null,null,null,null,null,null,null,null,null,null,null,null,null,null,null,null,null,null,null,null,null,null,null,null,null,null,null,null,null,null,null,null,null,null,null,null,null,null,null,null,null,null,null,null,null,null,null,null,null,null,null,null,null,null,null,null,null,null,null,null,null,null,null,null,null,null,null,null,null,null,null,null,null,null,null,null,null,null,null,null,null,null,null,null,null,null,null,null,null,null,null,null,null,null,null,null,null,null,null,null,null,null,null,null,null,null,null,null,null,null,null,null,null,null,null,null,null,null,null,null,null,null,null,null,null,null,null,null,null,null,null,null,null,null,null,null,null,null,null,null,null,null,null,null,null,null,null,null,null,null,null,null,null,null,null,null,null,null,null,null,null,null,null,null,null,null,null,null,null,null,null,null,null,null,null,null,null,null,null,null,null,null,null,null,null,null,null,null,null,null,null,null,null,null,null,null,null,null,null,null,null,null,null,null,null,null,null,null,null,null,null,null,null,null,null,null,null,null,null,null,null,null,null,null,null,null,null,null,null,null,null,null,null,null,null,null,3600]
[190,"","FOR54","Discretionary income arising from non-settlor-interested non UK resident trusts",null,null,null,null,null,null,null,null,null,null,null,null,null,null,null,null,null,null,null,null,null,null,null,null,null,null,null,null,null,null,null,null,null,null,null,null,null,null,null,null,null,null,null,null,null,null,null,null,null,null,null,null,null,null,null,null,null,null,null,null,null,null,null,null,null,null,null,null,null,null,null,null,null,null,null,null,null,null,null,null,null,null,null,null,null,null,null,null,null,null,null,null,null,null,null,null,null,null,null,null,null,null,null,null,null,null,null,null,null,null,null,null,null,null,null,null,null,null,null,null,null,null,null,null,null,null,null,null,null,null,null,null,null,null,null,null,null,null,null,null,null,null,null,null,null,null,null,null,null,null,null,null,null,null,null,null,null,null,null,null,null,null,null,null,null,null,null,null,null,null,null,null,null,null,null,null,null,null,null,null,null,null,null,null,null,null,null,null,null,null,null,null,null,null,null,null,null,null,null,null,null,null,null,null,null,null,null,null,null,null,null,null,null,null,null,null,null,null,null,null,null,null,null,null,null,null,null,null,null,null,null,null,null,null,null,null,null,null,null,null,2500,265]
[191,"","FOR54.1","Total claimed under FIG regime",null,null,null,null,null,null,null,null,null,null,null,null,null,null,null,null,null,null,null,null,null,null,null,null,null,null,null,null,null,null,null,null,null,null,null,null,null,null,null,null,null,null,null,null,null,null,null,null,null,null,null,null,null,null,null,null,null,null,null,null,null,null,null,null,null,null,null,null,null,null,null,null,null,null,null,null,null,null,null,null,null,null,null,null,null,null,null,null,null,null,null,null,null,null,null,null,null,null,null,null,null,null,null,null,null,null,null,null,null,null,null,null,null,null,null,null,null,null,null,null,null,null,null,null,null,null,null,null,null,null,null,null,null,null,null,null,null,null,null,null,null,null,null,null,null,null,null,null,null,null,null,null,null,null,null,null,null,null,null,null,null,null,null,null,null,null,null,null,null,null,null,null,null,null,null,null,null,null,null,null,null,null,null,null,null,null,null,null,null,null,null,null,null,null,null,null,null,null,null,null,null,null,null,null,null,null,null,null,null,null,null,null,null,null,null,null,null,null,null,null,null,null,null,null,null,null,null,null,null,null,null,null,null,null,null,null,null,null,null,null,2500]
[192,{"$f":"IF(FOR_IND>1,IF(HLOOKUP(FOR_IND-1,FOR_RANGE,A192)=\"\",\"\",HLOOKUP(FOR_IND-1,FOR_RANGE,A192)),\"\")","v":""},"FOR55","Capital sums paid to settlor by trustees of non resident settlements ",null,null,null,null,null,null,null,null,null,null,null,null,null,null,null,null,null,null,null,null,null,null,null,null,null,null,null,null,null,null,null,null,null,null,null,null,null,null,null,null,null,null,null,null,null,null,null,null,null,null,null,null,null,null,null,null,null,null,null,null,null,null,null,null,null,null,null,null,null,null,null,null,null,null,null,null,null,null,null,null,null,null,null,null,null,null,null,null,null,null,null,null,null,null,null,null,null,null,null,null,null,null,null,null,null,null,null,null,null,null,null,null,null,null,null,null,null,null,null,null,null,null,null,null,null,null,null,null,null,null,null,null,null,null,null,null,null,null,null,null,null,null,null,null,null,null,null,null,null,null,null,null,null,null,null,null,null,null,null,null,null,null,null,null,null,null,null,null,null,null,null,null,null,null,null,null,null,null,null,null,null,null,null,null,null,null,null,null,null,null,null,null,null,null,null,null,null,null,null,null,null,null,null,null,null,null,null,null,null,null,null,null,null,null,null,null,null,null,null,null,null,null,null,null,null,null,null,null,null,null,null,null,null,null,null,null,null,null,null,null,2000,102]
[193,"","FOR55.1","Total claimed under FIG regime",null,null,null,null,null,null,null,null,null,null,null,null,null,null,null,null,null,null,null,null,null,null,null,null,null,null,null,null,null,null,null,null,null,null,null,null,null,null,null,null,null,null,null,null,null,null,null,null,null,null,null,null,null,null,null,null,null,null,null,null,null,null,null,null,null,null,null,null,null,null,null,null,null,null,null,null,null,null,null,null,null,null,null,null,null,null,null,null,null,null,null,null,null,null,null,null,null,null,null,null,null,null,null,null,null,null,null,null,null,null,null,null,null,null,null,null,null,null,null,null,null,null,null,null,null,null,null,null,null,null,null,null,null,null,null,null,null,null,null,null,null,null,null,null,null,null,null,null,null,null,null,null,null,null,null,null,null,null,null,null,null,null,null,null,null,null,null,null,null,null,null,null,null,null,null,null,null,null,null,null,null,null,null,null,null,null,null,null,null,null,null,null,null,null,null,null,null,null,null,null,null,null,null,null,null,null,null,null,null,null,null,null,null,null,null,null,null,null,null,null,null,null,null,null,null,null,null,null,null,null,null,null,null,null,null,null,null,null,null,null,2000]
[194,"","FOR56","Gains on disposal of holdings in offshore fund (excluding amounts in box 13) ",null,null,null,null,null,null,null,null,null,null,null,null,null,null,null,null,null,null,null,null,null,null,null,null,null,null,null,null,null,null,null,null,null,null,null,null,null,null,null,null,null,null,null,null,null,null,null,null,null,null,null,null,null,null,null,null,null,null,null,null,null,null,null,null,null,null,null,null,null,null,null,null,null,null,null,null,null,null,null,null,null,null,null,null,null,null,null,null,null,null,null,null,null,null,null,null,null,null,null,null,null,null,null,null,null,null,null,null,null,null,null,null,null,null,null,null,null,null,null,null,null,null,null,null,null,null,null,null,null,null,null,null,null,null,null,null,null,null,null,null,null,null,null,null,null,null,null,null,null,null,null,null,null,null,null,null,null,null,null,null,null,null,null,null,null,null,null,null,null,null,null,null,null,null,null,null,null,null,null,null,null,null,null,null,null,null,null,null,null,null,null,null,null,null,null,null,null,null,null,null,null,null,null,null,null,null,null,null,null,null,null,null,null,null,null,null,null,null,null,null,null,null,null,null,null,null,null,null,null,null,null,null,null,null,null,null,null,null,null,null,1500,103]
[195,"","FOR56.1","Total claimed under FIG regime",null,null,null,null,null,null,null,null,null,null,null,null,null,null,null,null,null,null,null,null,null,null,null,null,null,null,null,null,null,null,null,null,null,null,null,null,null,null,null,null,null,null,null,null,null,null,null,null,null,null,null,null,null,null,null,null,null,null,null,null,null,null,null,null,null,null,null,null,null,null,null,null,null,null,null,null,null,null,null,null,null,null,null,null,null,null,null,null,null,null,null,null,null,null,null,null,null,null,null,null,null,null,null,null,null,null,null,null,null,null,null,null,null,null,null,null,null,null,null,null,null,null,null,null,null,null,null,null,null,null,null,null,null,null,null,null,null,null,null,null,null,null,null,null,null,null,null,null,null,null,null,null,null,null,null,null,null,null,null,null,null,null,null,null,null,null,null,null,null,null,null,null,null,null,null,null,null,null,null,null,null,null,null,null,null,null,null,null,null,null,null,null,null,null,null,null,null,null,null,null,null,null,null,null,null,null,null,null,null,null,null,null,null,null,null,null,null,null,null,null,null,null,null,null,null,null,null,null,null,null,null,null,null,null,null,null,null,null,null,null,1500]
[196,"","FOR57","Non trade income (excluding the amounts in box 13)",null,null,null,null,null,null,null,null,null,null,null,null,null,null,null,null,null,null,null,null,null,null,null,null,null,null,null,null,null,null,null,null,null,null,null,null,null,null,null,null,null,null,null,null,null,null,null,null,null,null,null,null,null,null,null,null,null,null,null,null,null,null,null,null,null,null,null,null,null,null,null,null,null,null,null,null,null,null,null,null,null,null,null,null,null,null,null,null,null,null,null,null,null,null,null,null,null,null,null,null,null,null,null,null,null,null,null,null,null,null,null,null,null,null,null,null,null,null,null,null,null,null,null,null,null,null,null,null,null,null,null,null,null,null,null,null,null,null,null,null,null,null,null,null,null,null,null,null,null,null,null,null,null,null,null,null,null,null,null,null,null,null,null,null,null,null,null,null,null,null,null,null,null,null,null,null,null,null,null,null,null,null,null,null,null,null,null,null,null,null,null,null,null,null,null,null,null,null,null,null,null,null,null,null,null,null,null,null,null,null,null,null,null,null,null,null,null,null,null,null,null,null,null,null,null,null,null,null,null,null,null,null,null,null,null,null,null,null,null,null,3750,200]
[197,"","FOR57.1","Total claimed under FIG regime",null,null,null,null,null,null,null,null,null,null,null,null,null,null,null,null,null,null,null,null,null,null,null,null,null,null,null,null,null,null,null,null,null,null,null,null,null,null,null,null,null,null,null,null,null,null,null,null,null,null,null,null,null,null,null,null,null,null,null,null,null,null,null,null,null,null,null,null,null,null,null,null,null,null,null,null,null,null,null,null,null,null,null,null,null,null,null,null,null,null,null,null,null,null,null,null,null,null,null,null,null,null,null,null,null,null,null,null,null,null,null,null,null,null,null,null,null,null,null,null,null,null,null,null,null,null,null,null,null,null,null,null,null,null,null,null,null,null,null,null,null,null,null,null,null,null,null,null,null,null,null,null,null,null,null,null,null,null,null,null,null,null,null,null,null,null,null,null,null,null,null,null,null,null,null,null,null,null,null,null,null,null,null,null,null,null,null,null,null,null,null,null,null,null,null,null,null,null,null,null,null,null,null,null,null,null,null,null,null,null,null,null,null,null,null,null,null,null,null,null,null,null,null,null,null,null,null,null,null,null,null,null,null,null,null,null,null,null,null,null,3750]
[198,"","FOR58"," Benefits received by non-tranferors",null,null,null,null,null,null,null,null,null,null,null,null,null,null,null,null,null,null,null,null,null,null,null,null,null,null,null,null,null,null,null,null,null,null,null,null,null,null,null,null,null,null,null,null,null,null,null,null,null,null,null,null,null,null,null,null,null,null,null,null,null,null,null,null,null,null,null,null,null,null,null,null,null,null,null,null,null,null,null,null,null,null,null,null,null,null,null,null,null,null,null,null,null,null,null,null,null,null,null,null,null,null,null,null,null,null,null,null,null,null,null,null,null,null,null,null,null,null,null,null,null,null,null,null,null,null,null,null,null,null,null,null,null,null,null,null,null,null,null,null,null,null,null,null,null,null,null,null,null,null,null,null,null,null,null,null,null,null,null,null,null,null,null,null,null,null,null,null,null,null,null,null,null,null,null,null,null,null,null,null,null,null,null,null,null,null,null,null,null,null,null,null,null,null,null,null,null,null,null,null,null,null,null,null,null,null,null,null,null,null,null,null,null,null,null,null,null,null,null,null,null,null,null,null,null,null,null,null,null,null,null,null,null,null,null,null,null,null,null,null,2150,600]
[199,"","FOR58.1","Total claimed under FIG regime",null,null,null,null,null,null,null,null,null,null,null,null,null,null,null,null,null,null,null,null,null,null,null,null,null,null,null,null,null,null,null,null,null,null,null,null,null,null,null,null,null,null,null,null,null,null,null,null,null,null,null,null,null,null,null,null,null,null,null,null,null,null,null,null,null,null,null,null,null,null,null,null,null,null,null,null,null,null,null,null,null,null,null,null,null,null,null,null,null,null,null,null,null,null,null,null,null,null,null,null,null,null,null,null,null,null,null,null,null,null,null,null,null,null,null,null,null,null,null,null,null,null,null,null,null,null,null,null,null,null,null,null,null,null,null,null,null,null,null,null,null,null,null,null,null,null,null,null,null,null,null,null,null,null,null,null,null,null,null,null,null,null,null,null,null,null,null,null,null,null,null,null,null,null,null,null,null,null,null,null,null,null,null,null,null,null,null,null,null,null,null,null,null,null,null,null,null,null,null,null,null,null,null,null,null,null,null,null,null,null,null,null,null,null,null,null,null,null,null,null,null,null,null,null,null,null,null,null,null,null,null,null,null,null,null,null,null,null,null,null,2150]
[200,"","FOR59","Benefits received by transferor",null,null,null,null,null,null,null,null,null,null,null,null,null,null,null,null,null,null,null,null,null,null,null,null,null,null,null,null,null,null,null,null,null,null,null,null,null,null,null,null,null,null,null,null,null,null,null,null,null,null,null,null,null,null,null,null,null,null,null,null,null,null,null,null,null,null,null,null,null,null,null,null,null,null,null,null,null,null,null,null,null,null,null,null,null,null,null,null,null,null,null,null,null,null,null,null,null,null,null,null,null,null,null,null,null,null,null,null,null,null,null,null,null,null,null,null,null,null,null,null,null,null,null,null,null,null,null,null,null,null,null,null,null,null,null,null,null,null,null,null,null,null,null,null,null,null,null,null,null,null,null,null,null,null,null,null,null,null,null,null,null,null,null,null,null,null,null,null,null,null,null,null,null,null,null,null,null,null,null,null,null,null,null,null,null,null,null,null,null,null,null,null,null,null,null,null,null,null,null,null,null,null,null,null,null,null,null,null,null,null,null,null,null,null,null,null,null,null,null,null,null,null,null,null,null,null,null,null,null,null,null,null,null,null,null,null,null,null,null,null,300,700]
[201,"","FOR59.1","Total claimed under FIG regime",null,null,null,null,null,null,null,null,null,null,null,null,null,null,null,null,null,null,null,null,null,null,null,null,null,null,null,null,null,null,null,null,null,null,null,null,null,null,null,null,null,null,null,null,null,null,null,null,null,null,null,null,null,null,null,null,null,null,null,null,null,null,null,null,null,null,null,null,null,null,null,null,null,null,null,null,null,null,null,null,null,null,null,null,null,null,null,null,null,null,null,null,null,null,null,null,null,null,null,null,null,null,null,null,null,null,null,null,null,null,null,null,null,null,null,null,null,null,null,null,null,null,null,null,null,null,null,null,null,null,null,null,null,null,null,null,null,null,null,null,null,null,null,null,null,null,null,null,null,null,null,null,null,null,null,null,null,null,null,null,null,null,null,null,null,null,null,null,null,null,null,null,null,null,null,null,null,null,null,null,null,null,null,null,null,null,null,null,null,null,null,null,null,null,null,null,null,null,null,null,null,null,null,null,null,null,null,null,null,null,null,null,null,null,null,null,null,null,null,null,null,null,null,null,null,null,null,null,null,null,null,null,null,null,null,null,null,null,null,null,300]
[202,"","FOR60","Benefits chargeable on you under the Close family",null,null,null,null,null,null,null,null,null,null,null,null,null,null,null,null,null,null,null,null,null,null,null,null,null,null,null,null,null,null,null,null,null,null,null,null,null,null,null,null,null,null,null,null,null,null,null,null,null,null,null,null,null,null,null,null,null,null,null,null,null,null,null,null,null,null,null,null,null,null,null,null,null,null,null,null,null,null,null,null,null,null,null,null,null,null,null,null,null,null,null,null,null,null,null,null,null,null,null,null,null,null,null,null,null,null,null,null,null,null,null,null,null,null,null,null,null,null,null,null,null,null,null,null,null,null,null,null,null,null,null,null,null,null,null,null,null,null,null,null,null,null,null,null,null,null,null,null,null,null,null,null,null,null,null,null,null,null,null,null,null,null,null,null,null,null,null,null,null,null,null,null,null,null,null,null,null,null,null,null,null,null,null,null,null,null,null,null,null,null,null,null,null,null,null,null,null,null,null,null,null,null,null,null,null,null,null,null,null,null,null,null,null,null,null,null,null,null,null,null,null,null,null,null,null,null,null,null,null,null,null,null,null,null,null,null,null,null,null,null,500,52]
[203,"","FOR60.1","Total claimed under FIG regime",null,null,null,null,null,null,null,null,null,null,null,null,null,null,null,null,null,null,null,null,null,null,null,null,null,null,null,null,null,null,null,null,null,null,null,null,null,null,null,null,null,null,null,null,null,null,null,null,null,null,null,null,null,null,null,null,null,null,null,null,null,null,null,null,null,null,null,null,null,null,null,null,null,null,null,null,null,null,null,null,null,null,null,null,null,null,null,null,null,null,null,null,null,null,null,null,null,null,null,null,null,null,null,null,null,null,null,null,null,null,null,null,null,null,null,null,null,null,null,null,null,null,null,null,null,null,null,null,null,null,null,null,null,null,null,null,null,null,null,null,null,null,null,null,null,null,null,null,null,null,null,null,null,null,null,null,null,null,null,null,null,null,null,null,null,null,null,null,null,null,null,null,null,null,null,null,null,null,null,null,null,null,null,null,null,null,null,null,null,null,null,null,null,null,null,null,null,null,null,null,null,null,null,null,null,null,null,null,null,null,null,null,null,null,null,null,null,null,null,null,null,null,null,null,null,null,null,null,null,null,null,null,null,null,null,null,null,null,null,null,500]
[204,"","FOR61","Benefits chargeable on you under the Onward Gifts Rules",null,null,null,null,null,null,null,null,null,null,null,null,null,null,null,null,null,null,null,null,null,null,null,null,null,null,null,null,null,null,null,null,null,null,null,null,null,null,null,null,null,null,null,null,null,null,null,null,null,null,null,null,null,null,null,null,null,null,null,null,null,null,null,null,null,null,null,null,null,null,null,null,null,null,null,null,null,null,null,null,null,null,null,null,null,null,null,null,null,null,null,null,null,null,null,null,null,null,null,null,null,null,null,null,null,null,null,null,null,null,null,null,null,null,null,null,null,null,null,null,null,null,null,null,null,null,null,null,null,null,null,null,null,null,null,null,null,null,null,null,null,null,null,null,null,null,null,null,null,null,null,null,null,null,null,null,null,null,null,null,null,null,null,null,null,null,null,null,null,null,null,null,null,null,null,null,null,null,null,null,null,null,null,null,null,null,null,null,null,null,null,null,null,null,null,null,null,null,null,null,null,null,null,null,null,null,null,null,null,null,null,null,null,null,null,null,null,null,null,null,null,null,null,null,null,null,null,null,null,null,null,null,null,null,null,null,null,null,null,null,null,125]
[205,"","FOR61.1","Total claimed under FIG regime"]
[206,"","FOR62","Benefits received by settlor in the year",null,null,null,null,null,null,null,null,null,null,null,null,null,null,null,null,null,null,null,null,null,null,null,null,null,null,null,null,null,null,null,null,null,null,null,null,null,null,null,null,null,null,null,null,null,null,null,null,null,null,null,null,null,null,null,null,null,null,null,null,null,null,null,null,null,null,null,null,null,null,null,null,null,null,null,null,null,null,null,null,null,null,null,null,null,null,null,null,null,null,null,null,null,null,null,null,null,null,null,null,null,null,null,null,null,null,null,null,null,null,null,null,null,null,null,null,null,null,null,null,null,null,null,null,null,null,null,null,null,null,null,null,null,null,null,null,null,null,null,null,null,null,null,null,null,null,null,null,null,null,null,null,null,null,null,null,null,null,null,null,null,null,null,null,null,null,null,null,null,null,null,null,null,null,null,null,null,null,null,null,null,null,null,null,null,null,null,null,null,null,null,null,null,null,null,null,null,null,null,null,null,null,null,null,null,null,null,null,null,null,null,null,null,null,null,null,null,null,null,null,null,null,null,null,null,null,null,null,null,null,null,null,null,null,null,null,null,null,null,null,null,166]
[207,"","FOR62.1","Total claimed under FIG regime"]
[208,"","FOR63","Benefits received by close family member",null,null,null,null,null,null,null,null,null,null,null,null,null,null,null,null,null,null,null,null,null,null,null,null,null,null,null,null,null,null,null,null,null,null,null,null,null,null,null,null,null,null,null,null,null,null,null,null,null,null,null,null,null,null,null,null,null,null,null,null,null,null,null,null,null,null,null,null,null,null,null,null,null,null,null,null,null,null,null,null,null,null,null,null,null,null,null,null,null,null,null,null,null,null,null,null,null,null,null,null,null,null,null,null,null,null,null,null,null,null,null,null,null,null,null,null,null,null,null,null,null,null,null,null,null,null,null,null,null,null,null,null,null,null,null,null,null,null,null,null,null,null,null,null,null,null,null,null,null,null,null,null,null,null,null,null,null,null,null,null,null,null,null,null,null,null,null,null,null,null,null,null,null,null,null,null,null,null,null,null,null,null,null,null,null,null,null,null,null,null,null,null,null,null,null,null,null,null,null,null,null,null,null,null,null,null,null,null,null,null,null,null,null,null,null,null,null,null,null,null,null,null,null,null,null,null,null,null,null,null,null,null,null,null,null,null,null,null,null,null,null,759]
[209,"","FOR63.1","Total claimed under FIG regime"]
[210,"","FOR64","Benefits chargeable on you under the Onward Gifts Rules",null,null,null,null,null,null,null,null,null,null,null,null,null,null,null,null,null,null,null,null,null,null,null,null,null,null,null,null,null,null,null,null,null,null,null,null,null,null,null,null,null,null,null,null,null,null,null,null,null,null,null,null,null,null,null,null,null,null,null,null,null,null,null,null,null,null,null,null,null,null,null,null,null,null,null,null,null,null,null,null,null,null,null,null,null,null,null,null,null,null,null,null,null,null,null,null,null,null,null,null,null,null,null,null,null,null,null,null,null,null,null,null,null,null,null,null,null,null,null,null,null,null,null,null,null,null,null,null,null,null,null,null,null,null,null,null,null,null,null,null,null,null,null,null,null,null,null,null,null,null,null,null,null,null,null,null,null,null,null,null,null,null,null,null,null,null,null,null,null,null,null,null,null,null,null,null,null,null,null,null,null,null,null,null,null,null,null,null,null,null,null,null,null,null,null,null,null,null,null,null,null,null,null,null,null,null,null,null,null,null,null,null,null,null,null,null,null,null,null,null,null,null,null,null,null,null,null,null,null,null,null,null,null,null,null,null,null,null,null,null,null,170]
[211,{"$f":"IF(FOR_IND>1,IF(HLOOKUP(FOR_IND-1,FOR_RANGE,A211)=\"\",\"\",HLOOKUP(FOR_IND-1,FOR_RANGE,A211)),\"\")","v":""},"FOR64.1","Total claimed under FIG regime"]
[]
[]
[]
[]
["row","selected","FTCR","TCR",1,2,3,4,5,6,7,8,9,10,11,12,13,14,15,16,17,18,19,20,21,22,23,24,25,26,27,28,29,30,31,32,33,34,35,36,37,38,39,40,41,42,43,44,45,46,47,48,49,50,51,52,53,54,55,56,57,58,59,60,61,62,63,64,65,66,67,68,69,70,71,72,73,74,75,76,77,78,79,80,81,82,83,84,85,86,87,88,89,90,91,92,93,94,95,96,97,98,99,100,101,102,103,104,105,106,107,108,109,110,111,112,113,114,115,116,117,118,119,120,121,122,123,124,125,126,127,128,129,130,131,132,133,134,135,136,137,138,139,140,141,142,143,144,145,146,147,148,149,150,151,152,153,154,155,156,157,158,159,160,161,162,163,164,165,166,167,168,169,170,171,172,173,174,175,176,177,178,179,180,181,182,183,184,185,186,187,188,189,190,191,192,193,194,195,196,197,198,199,200,201,202,203,204,205,206,207,208,209,210,211,212,213,214,215,216,217,218,219,220,221,222,223,224,225,226,227,228,229,230,231,232,233,234,235,236,237,238,239,240,241,242,243,244,245,246,247,248,249,250,251,252,253,254,255,256,257,258,259,260,261,262,263,264,265,266,267,268,269,270,271,272,273]
[2,{"$f":"IF(FOR_IND>1,IF(HLOOKUP(FOR_IND-1,TCR_RANGE,A217)=\"\",\"\",HLOOKUP(FOR_IND-1,TCR_RANGE,A217)),\"\")","v":true},null,"FTCR claim",null,null,null,null,null,null,null,null,null,null,null,null,null,null,null,null,null,null,null,null,null,null,null,null,null,null,null,null,null,null,null,null,null,null,null,null,null,null,null,null,null,null,null,null,null,null,null,null,null,true,true,true,null,null,null,null,null,true,null,null,null,null,null,null,null,null,null,null,null,null,null,null,null,null,null,true,null,null,null,null,null,null,null,true,null,null,null,null,null,null,null,null,null,true,null,null,null,null,null,null,null,null,null,null,null,null,null,null,null,null,null,null,null,null,null,true,null,true,null,true,null,null,true,null,null,null,null,null,null,null,null,null,null,null,null,null,null,null,true,true,null,null,true,null,true,null,true,true,null,true,null,true,null,true,true,null,null,true,null,null,null,true,null,null,null,null,true,true,null,null,null,null,null,null,null,null,null,null,null,null,null,null,null,true,null,null,null,null,null,null,null,null,null,null,null,null,null,null,null,null,null,null,null,null,null,null,null,null,null,null,null,true,null,true,true,true,true,null,null,true,null,true,null,true,null,null,null,null,null,null,true,null,null,null,null,true,null,null,true,null,null,true,null,null,null,null,null,null,null,null,null,null,null,null,null,null,null,null,null,null,true,true,null,null,null,true]
[3,{"$f":"IF(FOR_IND>1,IF(HLOOKUP(FOR_IND-1,TCR_RANGE,A218)=\"\",\"\",HLOOKUP(FOR_IND-1,TCR_RANGE,A218)),\"\")","v":1},null,"Item 1 type",null,null,null,null,null,null,null,null,null,null,null,null,null,null,null,null,null,null,null,null,null,null,null,null,null,null,null,null,null,null,null,null,null,null,null,null,null,null,null,null,null,null,null,null,null,null,null,null,null,4,1,1,null,null,null,null,null,1,null,null,null,null,null,null,null,null,null,null,null,null,null,null,null,null,null,1,null,null,null,null,null,null,null,4,null,null,null,null,null,null,null,null,null,4,null,null,null,null,null,null,null,null,null,null,null,null,null,null,null,null,null,null,null,null,null,4,null,4,null,4,null,null,4,null,null,null,null,null,null,null,null,null,null,null,null,null,null,null,4,4,null,null,3,null,4,null,1,3,null,1,null,3,null,4,4,null,null,4,null,null,null,4,null,null,null,null,1,1,null,null,null,null,null,null,null,null,null,null,null,null,null,null,null,1,null,null,null,null,null,null,null,null,null,null,null,null,null,null,null,null,null,null,null,null,null,null,null,null,null,null,null,1,null,1,1,1,1,null,null,1,null,1,null,1,null,null,null,null,null,null,4,null,null,null,null,4,null,null,3,null,null,3,null,null,null,null,null,null,null,null,null,null,null,null,null,null,null,null,null,null,1,4,null,null,null,1]
[4,{"$f":"IF(FOR_IND>1,IF(HLOOKUP(FOR_IND-1,TCR_RANGE,A219)=\"\",\"\",HLOOKUP(FOR_IND-1,TCR_RANGE,A219)),\"\")","v":1},null,"Item 1 % max",null,null,null,null,null,null,null,null,null,null,null,null,null,null,null,null,null,null,null,null,null,null,null,null,null,null,null,null,null,null,null,null,null,null,null,null,null,null,null,null,null,null,null,null,null,null,null,null,null,8,1,1,null,null,null,null,null,1,null,null,null,null,null,null,null,null,null,null,null,null,null,null,null,null,null,9,null,null,null,null,null,null,null,9,null,null,null,null,null,null,null,null,null,8,null,null,null,null,null,null,null,null,null,null,null,null,null,null,null,null,null,null,null,null,null,9,null,6,null,9,null,null,9,null,null,null,null,null,null,null,null,null,null,null,null,null,null,null,9,9,null,null,6,null,9,null,1,1,null,1,null,null,null,2,9,null,null,9,null,null,null,9,null,null,null,null,1,1,null,null,null,null,null,null,null,null,null,null,null,null,null,null,null,1,null,null,null,null,null,null,null,null,null,null,null,null,null,null,null,null,null,null,null,null,null,null,null,null,null,null,null,1,null,1,1,1,1,null,null,1,null,1,null,1,null,null,null,null,null,null,9,null,null,null,null,1,null,null,9,null,null,6,null,null,null,null,null,null,null,null,null,null,null,null,null,null,null,null,null,null,1,8,null,null,null,1]
[5,"",null,"Item 1 Country",null,null,null,null,null,null,null,null,null,null,null,null,null,null,null,null,null,null,null,null,null,null,null,null,null,null,null,null,null,null,null,null,null,null,null,null,null,null,null,null,null,null,null,null,null,null,null,null,null,"NAM","CAN","CAN",null,null,null,null,null,"CAN",null,null,null,null,null,null,null,null,null,null,null,null,null,null,null,null,null,"HUN",null,null,null,null,null,null,null,"DEU",null,null,null,null,null,null,null,null,null,"NAM",null,null,null,null,null,null,null,null,null,null,null,null,null,null,null,null,null,null,null,null,null,"USA",null,"JPN",null,"USA",null,null,"CAN",null,null,null,null,null,null,null,null,null,null,null,null,null,null,null,"USA","CAN",null,null,"AUS",null,"IRL",null,"LBY","USA",null,"BEL",null,null,null,"GGY","USA",null,null,"USA",null,null,null,"DEU",null,null,null,null,null,null,null,null,null,null,null,null,null,null,null,null,null,null,null,null,null,"CAN",null,null,null,null,null,null,null,null,null,null,null,null,null,null,null,null,null,null,null,null,null,null,null,null,null,null,null,"JPN",null,"SLV","USA","USA","USA",null,null,"BEL",null,"BEL",null,"HKG",null,null,null,null,null,null,"IRL",null,null,null,null,"DNK",null,null,"FRA",null,null,"BEL",null,null,null,null,null,null,null,null,null,null,null,null,null,null,null,null,null,null,"CAN","NAM"]
[6,0,null,"Item 1 Income",null,null,null,null,null,null,null,null,null,null,null,null,null,null,null,null,null,null,null,null,null,null,null,null,null,null,null,null,null,null,null,null,null,null,null,null,null,null,null,null,null,null,null,null,null,null,null,null,null,422,6741,6741,null,null,null,null,null,6741,null,null,null,null,null,null,null,null,null,null,null,null,null,null,null,null,null,12475,null,null,null,null,null,null,null,479,null,null,null,null,null,null,null,null,null,422,null,null,null,null,null,null,null,null,null,null,null,null,null,null,null,null,null,null,null,null,null,500,null,76,null,500,null,null,901.92,null,null,null,null,null,null,null,null,null,null,null,null,null,null,null,3805,75,null,null,268,null,44.32,null,2560,2951,null,1360,null,null,null,129793,2500,null,null,30886,null,null,null,17234,null,null,null,null,0,0,null,null,null,null,null,null,null,null,null,null,null,null,null,null,null,6741,null,null,null,null,null,null,null,null,null,null,null,null,null,null,null,null,null,null,null,null,null,null,null,null,null,null,null,291486,null,106754,131762,131762,131762,null,null,1360,null,1360,null,79650,null,null,null,null,null,null,161,null,null,null,null,61765.16,null,null,14904,null,null,1250,null,null,null,null,null,null,null,null,null,null,null,null,null,null,null,null,null,null,6741,422,null,null,null,0]
[7,0,null,"Item 1 tax",null,null,null,null,null,null,null,null,null,null,null,null,null,null,null,null,null,null,null,null,null,null,null,null,null,null,null,null,null,null,null,null,null,null,null,null,null,null,null,null,null,null,null,null,null,null,null,null,null,42,1685,1685,null,null,null,null,null,1685,null,null,null,null,null,null,null,null,null,null,null,null,null,null,null,null,null,0,null,null,null,null,null,null,null,72,null,null,null,null,null,null,null,null,null,42,null,null,null,null,null,null,null,null,null,null,null,null,null,null,null,null,null,null,null,null,null,75,null,12,null,75,null,null,224.98,null,null,null,null,null,null,null,null,null,null,null,null,null,null,null,571,12,null,null,0,null,0,null,1766.4,0,null,340,null,null,null,0,305,null,null,4121,null,null,null,4507,null,null,null,null,0,0,null,null,null,null,null,null,null,null,null,null,null,null,null,null,null,1685,null,null,null,null,null,null,null,null,null,null,null,null,null,null,null,null,null,null,null,null,null,null,null,null,null,null,null,121168,null,23158,35299,35299,35299,null,null,340,null,340,null,11505,null,null,null,null,null,null,4,null,null,null,null,16584,null,null,2605,null,null,250,null,null,null,null,null,null,null,null,null,null,null,null,null,null,null,null,null,null,1685,42,null,null,null,0]
[8,1,null,"Item 2 type",null,null,null,null,null,null,null,null,null,null,null,null,null,null,null,null,null,null,null,null,null,null,null,null,null,null,null,null,null,null,null,null,null,null,null,null,null,null,null,null,null,null,null,null,null,null,null,null,null,1,4,4,null,null,null,null,null,4,null,null,null,null,null,null,null,null,null,null,null,null,null,null,null,null,null,1,null,null,null,null,null,null,null,4,null,null,null,null,null,null,null,null,null,1,null,null,null,null,null,null,null,null,null,null,null,null,null,null,null,null,null,null,null,null,null,4,null,4,null,4,null,null,4,null,null,null,null,null,null,null,null,null,null,null,null,null,null,null,4,4,null,null,3,null,4,null,1,4,null,3,null,null,null,1,1,null,null,1,null,null,null,4,null,null,null,null,1,1,null,null,null,null,null,null,null,null,null,null,null,null,null,null,null,4,null,null,null,null,null,null,null,null,null,null,null,null,null,null,null,null,null,null,null,null,null,null,null,null,null,null,null,1,null,1,1,1,1,null,null,4,null,3,null,1,null,null,null,null,null,null,4,null,null,null,null,1,null,null,1,null,null,3,null,null,null,null,null,null,null,null,null,null,null,null,null,null,null,null,null,null,1,1,null,null,null,1]
[9,1,null,"Item 2 % max",null,null,null,null,null,null,null,null,null,null,null,null,null,null,null,null,null,null,null,null,null,null,null,null,null,null,null,null,null,null,null,null,null,null,null,null,null,null,null,null,null,null,null,null,null,null,null,null,null,1,10,10,null,null,null,null,null,10,null,null,null,null,null,null,null,null,null,null,null,null,null,null,null,null,null,9,null,null,null,null,null,null,null,9,null,null,null,null,null,null,null,null,null,1,null,null,null,null,null,null,null,null,null,null,null,null,null,null,null,null,null,null,null,null,null,9,null,9,null,9,null,null,9,null,null,null,null,null,null,null,null,null,null,null,null,null,null,null,9,9,null,null,1,null,2,null,1,9,null,8,null,null,null,1,1,null,null,1,null,null,null,9,null,null,null,null,1,1,null,null,null,null,null,null,null,null,null,null,null,null,null,null,null,10,null,null,null,null,null,null,null,null,null,null,null,null,null,null,null,null,null,null,null,null,null,null,null,null,null,null,null,1,null,1,1,1,1,null,null,2,null,8,null,1,null,null,null,null,null,null,9,null,null,null,null,1,null,null,1,null,null,6,null,null,null,null,null,null,null,null,null,null,null,null,null,null,null,null,null,null,1,1,null,null,null,1]
[10,"",null,"Item 2 Country",null,null,null,null,null,null,null,null,null,null,null,null,null,null,null,null,null,null,null,null,null,null,null,null,null,null,null,null,null,null,null,null,null,null,null,null,null,null,null,null,null,null,null,null,null,null,null,null,null,null,"TCA","TCA",null,null,null,null,null,"TCA",null,null,null,null,null,null,null,null,null,null,null,null,null,null,null,null,null,"HUN",null,null,null,null,null,null,null,"IRL",null,null,null,null,null,null,null,null,null,null,null,null,null,null,null,null,null,null,null,null,null,null,null,null,null,null,null,null,null,null,null,"USA",null,"CAN",null,"USA",null,null,"IRL",null,null,null,null,null,null,null,null,null,null,null,null,null,null,null,"CHE","USA",null,null,"HKG",null,"GGY",null,null,"USA",null,"BEL",null,null,null,null,null,null,null,null,null,null,null,"USA",null,null,null,null,null,null,null,null,null,null,null,null,null,null,null,null,null,null,null,null,null,"TCA",null,null,null,null,null,null,null,null,null,null,null,null,null,null,null,null,null,null,null,null,null,null,null,null,null,null,null,"IRL",null,null,null,null,null,null,null,"BRN",null,"BEL",null,"HKG",null,null,null,null,null,null,"USA",null,null,null,null,null,null,null,null,null,null,"ITA",null,null,null,null,null,null,null,null,null,null,null,null,null,null,null,null,null,null,"TCA"]
[11,0,null,"Item 2 Income",null,null,null,null,null,null,null,null,null,null,null,null,null,null,null,null,null,null,null,null,null,null,null,null,null,null,null,null,null,null,null,null,null,null,null,null,null,null,null,null,null,null,null,null,null,null,null,null,null,0,2679,2679,null,null,null,null,null,2679,null,null,null,null,null,null,null,null,null,null,null,null,null,null,null,null,null,12475,null,null,null,null,null,null,null,36,null,null,null,null,null,null,null,null,null,0,null,null,null,null,null,null,null,null,null,null,null,null,null,null,null,null,null,null,null,null,null,500,null,100,null,500,null,null,4938.22,null,null,null,null,null,null,null,null,null,null,null,null,null,null,null,999,47,null,null,8887,null,32.32,null,0,4359,null,500,null,null,null,0,0,null,null,0,null,null,null,26295,null,null,null,null,0,0,null,null,null,null,null,null,null,null,null,null,null,null,null,null,null,2679,null,null,null,null,null,null,null,null,null,null,null,null,null,null,null,null,null,null,null,null,null,null,null,null,null,null,null,23904,null,0,0,0,0,null,null,659,null,500,null,23550,null,null,null,null,null,null,1615,null,null,null,null,0,null,null,0,null,null,19732,null,null,null,null,null,null,null,null,null,null,null,null,null,null,null,null,null,null,2679,0,null,null,null,0]
[12,0,null,"Item 2 tax",null,null,null,null,null,null,null,null,null,null,null,null,null,null,null,null,null,null,null,null,null,null,null,null,null,null,null,null,null,null,null,null,null,null,null,null,null,null,null,null,null,null,null,null,null,null,null,null,null,0,401,401,null,null,null,null,null,401,null,null,null,null,null,null,null,null,null,null,null,null,null,null,null,null,null,1711,null,null,null,null,null,null,null,6,null,null,null,null,null,null,null,null,null,0,null,null,null,null,null,null,null,null,null,null,null,null,null,null,null,null,null,null,null,null,null,75,null,26,null,75,null,null,301.07,null,null,null,null,null,null,null,null,null,null,null,null,null,null,null,150,8,null,null,0,null,0,null,0,960,null,100,null,null,null,0,0,null,null,0,null,null,null,7866,null,null,null,null,0,0,null,null,null,null,null,null,null,null,null,null,null,null,null,null,null,401,null,null,null,null,null,null,null,null,null,null,null,null,null,null,null,null,null,null,null,null,null,null,null,null,null,null,null,8836,null,0,0,0,0,null,null,98.85,null,100,null,6158,null,null,null,null,null,null,243,null,null,null,null,0,null,null,0,null,null,2821.76,null,null,null,null,null,null,null,null,null,null,null,null,null,null,null,null,null,null,401,0,null,null,null,0]
[13,1,null,"Item 3 type",null,null,null,null,null,null,null,null,null,null,null,null,null,null,null,null,null,null,null,null,null,null,null,null,null,null,null,null,null,null,null,null,null,null,null,null,null,null,null,null,null,null,null,null,null,null,null,null,null,1,3,3,null,null,null,null,null,3,null,null,null,null,null,null,null,null,null,null,null,null,null,null,null,null,null,1,null,null,null,null,null,null,null,1,null,null,null,null,null,null,null,null,null,1,null,null,null,null,null,null,null,null,null,null,null,null,null,null,null,null,null,null,null,null,null,4,null,1,null,4,null,null,4,null,null,null,null,null,null,null,null,null,null,null,null,null,null,null,4,1,null,null,4,null,4,null,1,4,null,4,null,null,null,1,1,null,null,1,null,null,null,4,null,null,null,null,1,1,null,null,null,null,null,null,null,null,null,null,null,null,null,null,null,3,null,null,null,null,null,null,null,null,null,null,null,null,null,null,null,null,null,null,null,null,null,null,null,null,null,null,null,1,null,1,1,1,1,null,null,4,null,4,null,1,null,null,null,null,null,null,1,null,null,null,null,1,null,null,1,null,null,1,null,null,null,null,null,null,null,null,null,null,null,null,null,null,null,null,null,null,1,1,null,null,null,1]
[14,1,null,"Item 3 % max",null,null,null,null,null,null,null,null,null,null,null,null,null,null,null,null,null,null,null,null,null,null,null,null,null,null,null,null,null,null,null,null,null,null,null,null,null,null,null,null,null,null,null,null,null,null,null,null,null,1,6,6,null,null,null,null,null,6,null,null,null,null,null,null,null,null,null,null,null,null,null,null,null,null,null,1,null,null,null,null,null,null,null,1,null,null,null,null,null,null,null,null,null,1,null,null,null,null,null,null,null,null,null,null,null,null,null,null,null,null,null,null,null,null,null,2,null,1,null,2,null,null,9,null,null,null,null,null,null,null,null,null,null,null,null,null,null,null,9,1,null,null,9,null,2,null,1,9,null,2,null,null,null,1,1,null,null,1,null,null,null,6,null,null,null,null,1,1,null,null,null,null,null,null,null,null,null,null,null,null,null,null,null,6,null,null,null,null,null,null,null,null,null,null,null,null,null,null,null,null,null,null,null,null,null,null,null,null,null,null,null,1,null,1,1,1,1,null,null,9,null,2,null,1,null,null,null,null,null,null,1,null,null,null,null,1,null,null,1,null,null,1,null,null,null,null,null,null,null,null,null,null,null,null,null,null,null,null,null,null,1,1,null,null,null,1]
[15,"",null,"Item 3 Country",null,null,null,null,null,null,null,null,null,null,null,null,null,null,null,null,null,null,null,null,null,null,null,null,null,null,null,null,null,null,null,null,null,null,null,null,null,null,null,null,null,null,null,null,null,null,null,null,null,null,"CAN","CAN",null,null,null,null,null,"CAN",null,null,null,null,null,null,null,null,null,null,null,null,null,null,null,null,null,null,null,null,null,null,null,null,null,"PRT",null,null,null,null,null,null,null,null,null,null,null,null,null,null,null,null,null,null,null,null,null,null,null,null,null,null,null,null,null,null,null,"BRN",null,null,null,"BRN",null,null,"USA",null,null,null,null,null,null,null,null,null,null,null,null,null,null,null,"DNK",null,null,null,"CAN",null,"JEY",null,null,"USA",null,"BRN",null,null,null,null,null,null,null,null,null,null,null,"JPN",null,null,null,null,null,null,null,null,null,null,null,null,null,null,null,null,null,null,null,null,null,"CAN",null,null,null,null,null,null,null,null,null,null,null,null,null,null,null,null,null,null,null,null,null,null,null,null,null,null,null,"IRL",null,null,null,null,null,null,null,"IND",null,"BRN",null,null,null,null,null,null,null,null,null,null,null,null,null,null,null,null,null,null,null,"BEL",null,null,null,null,null,null,null,null,null,null,null,null,null,null,null,null,null,null,"CAN"]
[16,0,null,"Item 3 Income",null,null,null,null,null,null,null,null,null,null,null,null,null,null,null,null,null,null,null,null,null,null,null,null,null,null,null,null,null,null,null,null,null,null,null,null,null,null,null,null,null,null,null,null,null,null,null,null,null,0,3562,3562,null,null,null,null,null,3562,null,null,null,null,null,null,null,null,null,null,null,null,null,null,null,null,null,0,null,null,null,null,null,null,null,126634,null,null,null,null,null,null,null,null,null,0,null,null,null,null,null,null,null,null,null,null,null,null,null,null,null,null,null,null,null,null,null,659,null,0,null,659,null,null,9958.17,null,null,null,null,null,null,null,null,null,null,null,null,null,null,null,469,0,null,null,8679,null,39.369999999999997,null,0,60,null,659,null,null,null,0,0,null,null,0,null,null,null,11495,null,null,null,null,0,0,null,null,null,null,null,null,null,null,null,null,null,null,null,null,null,3562,null,null,null,null,null,null,null,null,null,null,null,null,null,null,null,null,null,null,null,null,null,null,null,null,null,null,null,2110,null,0,0,0,0,null,null,3620,null,659,null,0,null,null,null,null,null,null,0,null,null,null,null,0,null,null,0,null,null,1428,null,null,null,null,null,null,null,null,null,null,null,null,null,null,null,null,null,null,3562,0,null,null,null,0]
[17,0,null,"Item 3 tax",null,null,null,null,null,null,null,null,null,null,null,null,null,null,null,null,null,null,null,null,null,null,null,null,null,null,null,null,null,null,null,null,null,null,null,null,null,null,null,null,null,null,null,null,null,null,null,null,null,0,356,356,null,null,null,null,null,356,null,null,null,null,null,null,null,null,null,null,null,null,null,null,null,null,null,0,null,null,null,null,null,null,null,49246,null,null,null,null,null,null,null,null,null,0,null,null,null,null,null,null,null,null,null,null,null,null,null,null,null,null,null,null,null,null,null,98.85,null,0,null,98.85,null,null,1470.68,null,null,null,null,null,null,null,null,null,null,null,null,null,null,null,71,0,null,null,1302,null,0,null,0,0,null,98.85,null,null,null,0,0,null,null,0,null,null,null,2612,null,null,null,null,0,0,null,null,null,null,null,null,null,null,null,null,null,null,null,null,null,356,null,null,null,null,null,null,null,null,null,null,null,null,null,null,null,null,null,null,null,null,null,null,null,null,null,null,null,686,null,0,0,0,0,null,null,724,null,98.85,null,0,null,null,null,null,null,null,0,null,null,null,null,0,null,null,0,null,null,357,null,null,null,null,null,null,null,null,null,null,null,null,null,null,null,null,null,null,356,0,null,null,null,0]
[18,1,null,"Item 4 type",null,null,null,null,null,null,null,null,null,null,null,null,null,null,null,null,null,null,null,null,null,null,null,null,null,null,null,null,null,null,null,null,null,null,null,null,null,null,null,null,null,null,null,null,null,null,null,null,null,1,1,1,null,null,null,null,null,1,null,null,null,null,null,null,null,null,null,null,null,null,null,null,null,null,null,1,null,null,null,null,null,null,null,1,null,null,null,null,null,null,null,null,null,1,null,null,null,null,null,null,null,null,null,null,null,null,null,null,null,null,null,null,null,null,null,4,null,1,null,4,null,null,1,null,null,null,null,null,null,null,null,null,null,null,null,null,null,null,4,1,null,null,4,null,1,null,1,1,null,4,null,null,null,1,1,null,null,1,null,null,null,1,null,null,null,null,1,1,null,null,null,null,null,null,null,null,null,null,null,null,null,null,null,1,null,null,null,null,null,null,null,null,null,null,null,null,null,null,null,null,null,null,null,null,null,null,null,null,null,null,null,1,null,1,1,1,1,null,null,1,null,4,null,1,null,null,null,null,null,null,1,null,null,null,null,1,null,null,1,null,null,4,null,null,null,null,null,null,null,null,null,null,null,null,null,null,null,null,null,null,1,1,null,null,null,1]
[19,1,null,"Item 4 % max",null,null,null,null,null,null,null,null,null,null,null,null,null,null,null,null,null,null,null,null,null,null,null,null,null,null,null,null,null,null,null,null,null,null,null,null,null,null,null,null,null,null,null,null,null,null,null,null,null,1,1,1,null,null,null,null,null,1,null,null,null,null,null,null,null,null,null,null,null,null,null,null,null,null,null,1,null,null,null,null,null,null,null,1,null,null,null,null,null,null,null,null,null,1,null,null,null,null,null,null,null,null,null,null,null,null,null,null,null,null,null,null,null,null,null,6,null,1,null,6,null,null,1,null,null,null,null,null,null,null,null,null,null,null,null,null,null,null,9,1,null,null,9,null,1,null,1,1,null,9,null,null,null,1,1,null,null,1,null,null,null,1,null,null,null,null,1,1,null,null,null,null,null,null,null,null,null,null,null,null,null,null,null,1,null,null,null,null,null,null,null,null,null,null,null,null,null,null,null,null,null,null,null,null,null,null,null,null,null,null,null,1,null,1,1,1,1,null,null,1,null,9,null,1,null,null,null,null,null,null,1,null,null,null,null,1,null,null,1,null,null,6,null,null,null,null,null,null,null,null,null,null,null,null,null,null,null,null,null,null,1,1,null,null,null,1]
[20,"",null,"Item 4 Country",null,null,null,null,null,null,null,null,null,null,null,null,null,null,null,null,null,null,null,null,null,null,null,null,null,null,null,null,null,null,null,null,null,null,null,null,null,null,null,null,null,null,null,null,null,null,null,null,null,null,null,null,null,null,null,null,null,null,null,null,null,null,null,null,null,null,null,null,null,null,null,null,null,null,null,null,null,null,null,null,null,null,null,null,null,null,null,null,null,null,null,null,null,null,null,null,null,null,null,null,null,null,null,null,null,null,null,null,null,null,null,null,null,null,null,"JPN",null,null,null,"JPN",null,null,null,null,null,null,null,null,null,null,null,null,null,null,null,null,null,null,"NOR",null,null,null,"ZAF",null,null,null,null,"LBY",null,"IND",null,null,null,null,null,null,null,null,null,null,null,null,null,null,null,null,null,null,null,null,null,null,null,null,null,null,null,null,null,null,null,null,null,null,null,null,null,null,null,null,null,null,null,null,null,null,null,null,null,null,null,null,null,null,null,null,null,null,null,null,null,"NOR",null,null,null,null,null,null,null,null,null,"IND",null,null,null,null,null,null,null,null,null,null,null,null,null,null,null,null,null,null,null,"ITA"]
[21,0,null,"Item 4 Income",null,null,null,null,null,null,null,null,null,null,null,null,null,null,null,null,null,null,null,null,null,null,null,null,null,null,null,null,null,null,null,null,null,null,null,null,null,null,null,null,null,null,null,null,null,null,null,null,null,0,0,0,null,null,null,null,null,0,null,null,null,null,null,null,null,null,null,null,null,null,null,null,null,null,null,0,null,null,null,null,null,null,null,0,null,null,null,null,null,null,null,null,null,0,null,null,null,null,null,null,null,null,null,null,null,null,null,null,null,null,null,null,null,null,null,500,null,0,null,500,null,null,0,null,null,null,null,null,null,null,null,null,null,null,null,null,null,null,170,0,null,null,1833,null,0,null,0,68379,null,3620,null,null,null,0,0,null,null,0,null,null,null,0,null,null,null,null,0,0,null,null,null,null,null,null,null,null,null,null,null,null,null,null,null,0,null,null,null,null,null,null,null,null,null,null,null,null,null,null,null,null,null,null,null,null,null,null,null,null,null,null,null,14655,null,0,0,0,0,null,null,0,null,3620,null,0,null,null,null,null,null,null,0,null,null,null,null,0,null,null,0,null,null,3770,null,null,null,null,null,null,null,null,null,null,null,null,null,null,null,null,null,null,0,0,null,null,null,0]
[22,0,null,"Item 4 tax",null,null,null,null,null,null,null,null,null,null,null,null,null,null,null,null,null,null,null,null,null,null,null,null,null,null,null,null,null,null,null,null,null,null,null,null,null,null,null,null,null,null,null,null,null,null,null,null,null,0,0,0,null,null,null,null,null,0,null,null,null,null,null,null,null,null,null,null,null,null,null,null,null,null,null,0,null,null,null,null,null,null,null,0,null,null,null,null,null,null,null,null,null,0,null,null,null,null,null,null,null,null,null,null,null,null,null,null,null,null,null,null,null,null,null,50,null,0,null,50,null,null,0,null,null,null,null,null,null,null,null,null,null,null,null,null,null,null,26,0,null,null,183,null,0,null,0,10976,null,724,null,null,null,0,0,null,null,0,null,null,null,0,null,null,null,null,0,0,null,null,null,null,null,null,null,null,null,null,null,null,null,null,null,0,null,null,null,null,null,null,null,null,null,null,null,null,null,null,null,null,null,null,null,null,null,null,null,null,null,null,null,3394,null,0,0,0,0,null,null,0,null,724,null,0,null,null,null,null,null,null,0,null,null,null,null,0,null,null,0,null,null,867,null,null,null,null,null,null,null,null,null,null,null,null,null,null,null,null,null,null,0,0,null,null,null,0]
[23,1,null,"Item 5 type",null,null,null,null,null,null,null,null,null,null,null,null,null,null,null,null,null,null,null,null,null,null,null,null,null,null,null,null,null,null,null,null,null,null,null,null,null,null,null,null,null,null,null,null,null,null,null,null,null,1,1,1,null,null,null,null,null,1,null,null,null,null,null,null,null,null,null,null,null,null,null,null,null,null,null,1,null,null,null,null,null,null,null,1,null,null,null,null,null,null,null,null,null,1,null,null,null,null,null,null,null,null,null,null,null,null,null,null,null,null,null,null,null,null,null,1,null,1,null,1,null,null,1,null,null,null,null,null,null,null,null,null,null,null,null,null,null,null,4,1,null,null,4,null,1,null,1,1,null,1,null,null,null,1,1,null,null,1,null,null,null,1,null,null,null,null,1,1,null,null,null,null,null,null,null,null,null,null,null,null,null,null,null,1,null,null,null,null,null,null,null,null,null,null,null,null,null,null,null,null,null,null,null,null,null,null,null,null,null,null,null,1,null,1,1,1,1,null,null,1,null,1,null,1,null,null,null,null,null,null,1,null,null,null,null,1,null,null,1,null,null,4,null,null,null,null,null,null,null,null,null,null,null,null,null,null,null,null,null,null,1,1,null,null,null,1]
[24,1,null,"Item 5 % max",null,null,null,null,null,null,null,null,null,null,null,null,null,null,null,null,null,null,null,null,null,null,null,null,null,null,null,null,null,null,null,null,null,null,null,null,null,null,null,null,null,null,null,null,null,null,null,null,null,1,1,1,null,null,null,null,null,1,null,null,null,null,null,null,null,null,null,null,null,null,null,null,null,null,null,1,null,null,null,null,null,null,null,1,null,null,null,null,null,null,null,null,null,1,null,null,null,null,null,null,null,null,null,null,null,null,null,null,null,null,null,null,null,null,null,1,null,1,null,1,null,null,1,null,null,null,null,null,null,null,null,null,null,null,null,null,null,null,9,1,null,null,9,null,1,null,1,1,null,1,null,null,null,1,1,null,null,1,null,null,null,1,null,null,null,null,1,1,null,null,null,null,null,null,null,null,null,null,null,null,null,null,null,1,null,null,null,null,null,null,null,null,null,null,null,null,null,null,null,null,null,null,null,null,null,null,null,null,null,null,null,1,null,1,1,1,1,null,null,1,null,1,null,1,null,null,null,null,null,null,1,null,null,null,null,1,null,null,1,null,null,9,null,null,null,null,null,null,null,null,null,null,null,null,null,null,null,null,null,null,1,1,null,null,null,1]
[25,"",null,"Item 5 Country",null,null,null,null,null,null,null,null,null,null,null,null,null,null,null,null,null,null,null,null,null,null,null,null,null,null,null,null,null,null,null,null,null,null,null,null,null,null,null,null,null,null,null,null,null,null,null,null,null,null,null,null,null,null,null,null,null,null,null,null,null,null,null,null,null,null,null,null,null,null,null,null,null,null,null,null,null,null,null,null,null,null,null,null,null,null,null,null,null,null,null,null,null,null,null,null,null,null,null,null,null,null,null,null,null,null,null,null,null,null,null,null,null,null,null,null,null,null,null,null,null,null,null,null,null,null,null,null,null,null,null,null,null,null,null,null,null,null,"FRA",null,null,null,"USA",null,null,null,null,null,null,null,null,null,null,null,null,null,null,null,null,null,null,null,null,null,null,null,null,null,null,null,null,null,null,null,null,null,null,null,null,null,null,null,null,null,null,null,null,null,null,null,null,null,null,null,null,null,null,null,null,null,null,null,null,null,null,null,null,null,null,null,null,"CAN",null,null,null,null,null,null,null,null,null,null,null,null,null,null,null,null,null,null,null,null,null,null,null,null,null,null,null,null,null,"USA"]
[26,0,null,"Item 5 Income",null,null,null,null,null,null,null,null,null,null,null,null,null,null,null,null,null,null,null,null,null,null,null,null,null,null,null,null,null,null,null,null,null,null,null,null,null,null,null,null,null,null,null,null,null,null,null,null,null,0,0,0,null,null,null,null,null,0,null,null,null,null,null,null,null,null,null,null,null,null,null,null,null,null,null,0,null,null,null,null,null,null,null,0,null,null,null,null,null,null,null,null,null,0,null,null,null,null,null,null,null,null,null,null,null,null,null,null,null,null,null,null,null,null,null,0,null,0,null,0,null,null,0,null,null,null,null,null,null,null,null,null,null,null,null,null,null,null,609,0,null,null,4375,null,0,null,0,0,null,0,null,null,null,0,0,null,null,0,null,null,null,0,null,null,null,null,0,0,null,null,null,null,null,null,null,null,null,null,null,null,null,null,null,0,null,null,null,null,null,null,null,null,null,null,null,null,null,null,null,null,null,null,null,null,null,null,null,null,null,null,null,7434,null,0,0,0,0,null,null,0,null,0,null,0,null,null,null,null,null,null,0,null,null,null,null,0,null,null,0,null,null,1490,null,null,null,null,null,null,null,null,null,null,null,null,null,null,null,null,null,null,0,0,null,null,null,0]
[27,0,null,"Item 5 tax",null,null,null,null,null,null,null,null,null,null,null,null,null,null,null,null,null,null,null,null,null,null,null,null,null,null,null,null,null,null,null,null,null,null,null,null,null,null,null,null,null,null,null,null,null,null,null,null,null,0,0,0,null,null,null,null,null,0,null,null,null,null,null,null,null,null,null,null,null,null,null,null,null,null,null,0,null,null,null,null,null,null,null,0,null,null,null,null,null,null,null,null,null,0,null,null,null,null,null,null,null,null,null,null,null,null,null,null,null,null,null,null,null,null,null,0,null,0,null,0,null,null,0,null,null,null,null,null,null,null,null,null,null,null,null,null,null,null,92,0,null,null,3656,null,0,null,0,0,null,0,null,null,null,0,0,null,null,0,null,null,null,0,null,null,null,null,0,0,null,null,null,null,null,null,null,null,null,null,null,null,null,null,null,0,null,null,null,null,null,null,null,null,null,null,null,null,null,null,null,null,null,null,null,null,null,null,null,null,null,null,null,1651,null,0,0,0,0,null,null,0,null,0,null,0,null,null,null,null,null,null,0,null,null,null,null,0,null,null,0,null,null,223,null,null,null,null,null,null,null,null,null,null,null,null,null,null,null,null,null,null,0,0,null,null,null,0]
[28,1,null,"Item 6 type",null,null,null,null,null,null,null,null,null,null,null,null,null,null,null,null,null,null,null,null,null,null,null,null,null,null,null,null,null,null,null,null,null,null,null,null,null,null,null,null,null,null,null,null,null,null,null,null,null,1,1,1,null,null,null,null,null,1,null,null,null,null,null,null,null,null,null,null,null,null,null,null,null,null,null,1,null,null,null,null,null,null,null,1,null,null,null,null,null,null,null,null,null,1,null,null,null,null,null,null,null,null,null,null,null,null,null,null,null,null,null,null,null,null,null,1,null,1,null,1,null,null,1,null,null,null,null,null,null,null,null,null,null,null,null,null,null,null,4,1,null,null,1,null,1,null,1,1,null,1,null,null,null,1,1,null,null,1,null,null,null,1,null,null,null,null,1,1,null,null,null,null,null,null,null,null,null,null,null,null,null,null,null,1,null,null,null,null,null,null,null,null,null,null,null,null,null,null,null,null,null,null,null,null,null,null,null,null,null,null,null,4,null,1,1,1,1,null,null,1,null,1,null,1,null,null,null,null,null,null,1,null,null,null,null,1,null,null,1,null,null,1,null,null,null,null,null,null,null,null,null,null,null,null,null,null,null,null,null,null,1,1,null,null,null,1]
[29,1,null,"Item 6 % max",null,null,null,null,null,null,null,null,null,null,null,null,null,null,null,null,null,null,null,null,null,null,null,null,null,null,null,null,null,null,null,null,null,null,null,null,null,null,null,null,null,null,null,null,null,null,null,null,null,1,1,1,null,null,null,null,null,1,null,null,null,null,null,null,null,null,null,null,null,null,null,null,null,null,null,1,null,null,null,null,null,null,null,1,null,null,null,null,null,null,null,null,null,1,null,null,null,null,null,null,null,null,null,null,null,null,null,null,null,null,null,null,null,null,null,1,null,1,null,1,null,null,1,null,null,null,null,null,null,null,null,null,null,null,null,null,null,null,6,1,null,null,1,null,1,null,1,1,null,1,null,null,null,1,1,null,null,1,null,null,null,1,null,null,null,null,1,1,null,null,null,null,null,null,null,null,null,null,null,null,null,null,null,1,null,null,null,null,null,null,null,null,null,null,null,null,null,null,null,null,null,null,null,null,null,null,null,null,null,null,null,9,null,1,1,1,1,null,null,1,null,1,null,1,null,null,null,null,null,null,1,null,null,null,null,1,null,null,1,null,null,1,null,null,null,null,null,null,null,null,null,null,null,null,null,null,null,null,null,null,1,1,null,null,null,1]
[30,"",null,"Item 6 Country",null,null,null,null,null,null,null,null,null,null,null,null,null,null,null,null,null,null,null,null,null,null,null,null,null,null,null,null,null,null,null,null,null,null,null,null,null,null,null,null,null,null,null,null,null,null,null,null,null,null,null,null,null,null,null,null,null,null,null,null,null,null,null,null,null,null,null,null,null,null,null,null,null,null,null,null,null,null,null,null,null,null,null,null,null,null,null,null,null,null,null,null,null,null,null,null,null,null,null,null,null,null,null,null,null,null,null,null,null,null,null,null,null,null,null,null,null,null,null,null,null,null,null,null,null,null,null,null,null,null,null,null,null,null,null,null,null,null,"NLD",null,null,null,null,null,null,null,null,null,null,null,null,null,null,null,null,null,null,null,null,null,null,null,null,null,null,null,null,null,null,null,null,null,null,null,null,null,null,null,null,null,null,null,null,null,null,null,null,null,null,null,null,null,null,null,null,null,null,null,null,null,null,null,null,null,null,null,null,null,null,null,null,"JPN"]
[31,0,null,"Item 6 Income",null,null,null,null,null,null,null,null,null,null,null,null,null,null,null,null,null,null,null,null,null,null,null,null,null,null,null,null,null,null,null,null,null,null,null,null,null,null,null,null,null,null,null,null,null,null,null,null,null,0,0,0,null,null,null,null,null,0,null,null,null,null,null,null,null,null,null,null,null,null,null,null,null,null,null,0,null,null,null,null,null,null,null,0,null,null,null,null,null,null,null,null,null,0,null,null,null,null,null,null,null,null,null,null,null,null,null,null,null,null,null,null,null,null,null,0,null,0,null,0,null,null,0,null,null,null,null,null,null,null,null,null,null,null,null,null,null,null,23,0,null,null,0,null,0,null,0,0," ",0,null,null,null,0,0,null,null,0,null,null,null,0,null,null,null,null,0,0,null,null,null,null,null,null,null,null,null,null,null,null,null,null,null,0,null,null,null,null,null,null,null,null,null,null,null,null,null,null,null,null,null,null,null,null,null,null,null,null,null,null,null,500,null,0,0,0,0,null,null,0,null,0,null,0,null,null,null,null,null,null,0,null,null,null,null,0,null,null,0,null,null,0,null,null,null,null,null,null,null,null,null,null,null,null,null,null,null,null,null,null,0,0,null,null,null,0]
[32,0,null,"Item 6 tax",null,null,null,null,null,null,null,null,null,null,null,null,null,null,null,null,null,null,null,null,null,null,null,null,null,null,null,null,null,null,null,null,null,null,null,null,null,null,null,null,null,null,null,null,null,null,null,null,null,0,0,0,null,null,null,null,null,0,null,null,null,null,null,null,null,null,null,null,null,null,null,null,null,null,null,0,null,null,null,null,null,null,null,0,null,null,null,null,null,null,null,null,null,0,null,null,null,null,null,null,null,null,null,null,null,null,null,null,null,null,null,null,null,null,null,0,null,0,null,0,null,null,0,null,null,null,null,null,null,null,null,null,null,null,null,null,null,null,3,0,null,null,0,null,0,null,0,0,null,0,null,null,null,0,0,null,null,0,null,null,null,0,null,null,null,null,0,0,null,null,null,null,null,null,null,null,null,null,null,null,null,null,null,0,null,null,null,null,null,null,null,null,null,null,null,null,null,null,null,null,null,null,null,null,null,null,null,null,null,null,null,75,null,0,0,0,0,null,null,0,null,0,null,0,null,null,null,null,null,null,0,null,null,null,null,0,null,null,0,null,null,0,null,null,null,null,null,null,null,null,null,null,null,null,null,null,null,null,null,null,0,0,null,null,null,0]
[33,1,null,"Item 7 type",null,null,null,null,null,null,null,null,null,null,null,null,null,null,null,null,null,null,null,null,null,null,null,null,null,null,null,null,null,null,null,null,null,null,null,null,null,null,null,null,null,null,null,null,null,null,null,null,null,1,1,1,null,null,null,null,null,1,null,null,null,null,null,null,null,null,null,null,null,null,null,null,null,null,null,1,null,null,null,null,null,null,null,1,null,null,null,null,null,null,null,null,null,1,null,null,null,null,null,null,null,null,null,null,null,null,null,null,null,null,null,null,null,null,null,1,null,1,null,1,null,null,1,null,null,null,null,null,null,null,null,null,null,null,null,null,null,null,1,1,null,null,1,null,1,null,1,1,null,1,null,null,null,1,1,null,null,1,null,null,null,1,null,null,null,null,1,1,null,null,null,null,null,null,null,null,null,null,null,null,null,null,null,1,null,null,null,null,null,null,null,null,null,null,null,null,null,null,null,null,null,null,null,null,null,null,null,null,null,null,null,3,null,1,1,1,1,null,null,1,null,1,null,1,null,null,null,null,null,null,1,null,null,null,null,1,null,null,1,null,null,1,null,null,null,null,null,null,null,null,null,null,null,null,null,null,null,null,null,null,1,1,null,null,null,1]
[34,1,null,"Item 7 % max",null,null,null,null,null,null,null,null,null,null,null,null,null,null,null,null,null,null,null,null,null,null,null,null,null,null,null,null,null,null,null,null,null,null,null,null,null,null,null,null,null,null,null,null,null,null,null,null,null,1,1,1,null,null,null,null,null,1,null,null,null,null,null,null,null,null,null,null,null,null,null,null,null,null,null,1,null,null,null,null,null,null,null,1,null,null,null,null,null,null,null,null,null,1,null,null,null,null,null,null,null,null,null,null,null,null,null,null,null,null,null,null,null,null,null,1,null,1,null,1,null,null,1,null,null,null,null,null,null,null,null,null,null,null,null,null,null,null,1,1,null,null,1,null,1,null,1,1,null,1,null,null,null,1,1,null,null,1,null,null,null,1,null,null,null,null,1,1,null,null,null,null,null,null,null,null,null,null,null,null,null,null,null,1,null,null,null,null,null,null,null,null,null,null,null,null,null,null,null,null,null,null,null,null,null,null,null,null,null,null,null,6,null,1,1,1,1,null,null,1,null,1,null,1,null,null,null,null,null,null,1,null,null,null,null,1,null,null,1,null,null,1,null,null,null,null,null,null,null,null,null,null,null,null,null,null,null,null,null,null,1,1,null,null,null,1]
[35,"",null,"Item 7 Country",null,null,null,null,null,null,null,null,null,null,null,null,null,null,null,null,null,null,null,null,null,null,null,null,null,null,null,null,null,null,null,null,null,null,null,null,null,null,null,null,null,null,null,null,null,null,null,null,null,null,null,null,null,null,null,null,null,null,null,null,null,null,null,null,null,null,null,null,null,null,null,null,null,null,null,null,null,null,null,null,null,null,null,null,null,null,null,null,null,null,null,null,null,null,null,null,null,null,null,null,null,null,null,null,null,null,null,null,null,null,null,null,null,null,null,null,null,null,null,null,null,null,null,null,null,null,null,null,null,null,null,null,null,null,null,null,null,null,null,null,null,null,null,null,null,null,null,null,null,null,null,null,null,null,null,null,null,null,null,null,null,null,null,null,null,null,null,null,null,null,null,null,null,null,null,null,null,null,null,null,null,null,null,null,null,null,null,null,null,null,null,null,null,null,null,null,null,null,null,null,null,null,null,null,null,null,null,null,null,null,null,"JPN"]
[36,0,null,"Item 7 Income",null,null,null,null,null,null,null,null,null,null,null,null,null,null,null,null,null,null,null,null,null,null,null,null,null,null,null,null,null,null,null,null,null,null,null,null,null,null,null,null,null,null,null,null,null,null,null,null,null,0,0,0,null,null,null,null,null,0,null,null,null,null,null,null,null,null,null,null,null,null,null,null,null,null,null,0,null,null,null,null,null,null,null,0,null,null,null,null,null,null,null,null,null,0,null,null,null,null,null,null,null,null,null,null,null,null,null,null,null,null,null,null,null,null,null,0,null,0,null,0,null,null,0,null,null,null,null,null,null,null,null,null,null,null,null,null,null,null,0,0,null,null,0,null,0,null,0,0,null,0,null,null,null,0,0,null,null,0,null,null,null,0,null,null,null,null,0,0,null,null,null,null,null,null,null,null,null,null,null,null,null,null,null,0,null,null,null,null,null,null,null,null,null,null,null,null,null,null,null,null,null,null,null,null,null,null,null,null,null,null,null,5759,null,0,0,0,0,null,null,0,null,0,null,0,null,null,null,null,null,null,0,null,null,null,null,0,null,null,0,null,null,0,null,null,null,null,null,null,null,null,null,null,null,null,null,null,null,null,null,null,0,0,null,null,null,0]
[37,0,null,"Item 7 tax",null,null,null,null,null,null,null,null,null,null,null,null,null,null,null,null,null,null,null,null,null,null,null,null,null,null,null,null,null,null,null,null,null,null,null,null,null,null,null,null,null,null,null,null,null,null,null,null,null,0,0,0,null,null,null,null,null,0,null,null,null,null,null,null,null,null,null,null,null,null,null,null,null,null,null,0,null,null,null,null,null,null,null,0,null,null,null,null,null,null,null,null,null,0,null,null,null,null,null,null,null,null,null,null,null,null,null,null,null,null,null,null,null,null,null,0,null,0,null,0,null,null,0,null,null,null,null,null,null,null,null,null,null,null,null,null,null,null,0,0,null,null,0,null,0,null,0,0,null,0,null,null,null,0,0,null,null,0,null,null,null,0,null,null,null,null,0,0,null,null,null,null,null,null,null,null,null,null,null,null,null,null,null,0,null,null,null,null,null,null,null,null,null,null,null,null,null,null,null,null,null,null,null,null,null,null,null,null,null,null,null,575.9,null,0,0,0,0,null,null,0,null,0,null,0,null,null,null,null,null,null,0,null,null,null,null,0,null,null,0,null,null,0,null,null,null,null,null,null,null,null,null,null,null,null,null,null,null,null,null,null,0,0,null,null,null,0]
[38,1,null,"Item 8 type",null,null,null,null,null,null,null,null,null,null,null,null,null,null,null,null,null,null,null,null,null,null,null,null,null,null,null,null,null,null,null,null,null,null,null,null,null,null,null,null,null,null,null,null,null,null,null,null,null,1,1,1,null,null,null,null,null,1,null,null,null,null,null,null,null,null,null,null,null,null,null,null,null,null,null,1,null,null,null,null,null,null,null,1,null,null,null,null,null,null,null,null,null,1,null,null,null,null,null,null,null,null,null,null,null,null,null,null,null,null,null,null,null,null,null,1,null,1,null,1,null,null,1,null,null,null,null,null,null,null,null,null,null,null,null,null,null,null,1,1,null,null,1,null,1,null,1,1,null,1,null,null,null,1,1,null,null,1,null,null,null,1,null,null,null,null,1,1,null,null,null,null,null,null,null,null,null,null,null,null,null,null,null,1,null,null,null,null,null,null,null,null,null,null,null,null,null,null,null,null,null,null,null,null,null,null,null,null,null,null,null,3,null,1,1,1,1,null,null,1,null,1,null,1,null,null,null,null,null,null,1,null,null,null,null,1,null,null,1,null,null,1,null,null,null,null,null,null,null,null,null,null,null,null,null,null,null,null,null,null,1,1,null,null,null,1]
[39,1,null,"Item 8 % max",null,null,null,null,null,null,null,null,null,null,null,null,null,null,null,null,null,null,null,null,null,null,null,null,null,null,null,null,null,null,null,null,null,null,null,null,null,null,null,null,null,null,null,null,null,null,null,null,null,1,1,1,null,null,null,null,null,1,null,null,null,null,null,null,null,null,null,null,null,null,null,null,null,null,null,1,null,null,null,null,null,null,null,1,null,null,null,null,null,null,null,null,null,1,null,null,null,null,null,null,null,null,null,null,null,null,null,null,null,null,null,null,null,null,null,1,null,1,null,1,null,null,1,null,null,null,null,null,null,null,null,null,null,null,null,null,null,null,1,1,null,null,1,null,1,null,1,1,null,1,null,null,null,1,1,null,null,1,null,null,null,1,null,null,null,null,1,1,null,null,null,null,null,null,null,null,null,null,null,null,null,null,null,1,null,null,null,null,null,null,null,null,null,null,null,null,null,null,null,null,null,null,null,null,null,null,null,null,null,null,null,6,null,1,1,1,1,null,null,1,null,1,null,1,null,null,null,null,null,null,1,null,null,null,null,1,null,null,1,null,null,1,null,null,null,null,null,null,null,null,null,null,null,null,null,null,null,null,null,null,1,1,null,null,null,1]
[40,"",null,"Item 8 Country",null,null,null,null,null,null,null,null,null,null,null,null,null,null,null,null,null,null,null,null,null,null,null,null,null,null,null,null,null,null,null,null,null,null,null,null,null,null,null,null,null,null,null,null,null,null,null,null,null,null,null,null,null,null,null,null,null,null,null,null,null,null,null,null,null,null,null,null,null,null,null,null,null,null,null,null,null,null,null,null,null,null,null,null,null,null,null,null,null,null,null,null,null,null,null,null,null,null,null,null,null,null,null,null,null,null,null,null,null,null,null,null,null,null,null,null,null,null,null,null,null,null,null,null,null,null,null,null,null,null,null,null,null,null,null,null,null,null,null,null,null,null,null,null,null,null,null,null,null,null,null,null,null,null,null,null,null,null,null,null,null,null,null,null,null,null,null,null,null,null,null,null,null,null,null,null,null,null,null,null,null,null,null,null,null,null,null,null,null,null,null,null,null,null,null,null,null,null,null,null,null,null,null,null,null,null,null,null,null,null,null,"CAN"]
[41,0,null,"Item 8 Income",null,null,null,null,null,null,null,null,null,null,null,null,null,null,null,null,null,null,null,null,null,null,null,null,null,null,null,null,null,null,null,null,null,null,null,null,null,null,null,null,null,null,null,null,null,null,null,null,null,0,0,0,null,null,null,null,null,0,null,null,null,null,null,null,null,null,null,null,null,null,null,null,null,null,null,0,null,null,null,null,null,null,null,0,null,null,null,null,null,null,null,null,null,0,null,null,null,null,null,null,null,null,null,null,null,null,null,null,null,null,null,null,null,null,null,0,null,0,null,0,null,null,0,null,null,null,null,null,null,null,null,null,null,null,null,null,null,null,0,0,null,null,0,null,0,null,0,0,null,0,null,null,null,0,0,null,null,0,null,null,null,0,null,null,null,null,0,0,null,null,null,null,null,null,null,null,null,null,null,null,null,null,null,0,null,null,null,null,null,null,null,null,null,null,null,null,null,null,null,null,null,null,null,null,null,null,null,null,null,null,null,1697,null,0,0,0,0,null,null,0,null,0,null,0,null,null,null,null,null,null,0,null,null,null,null,0,null,null,0,null,null,0,null,null,null,null,null,null,null,null,null,null,null,null,null,null,null,null,null,null,0,0,null,null,null,0]
[42,0,null,"Item 8 tax",null,null,null,null,null,null,null,null,null,null,null,null,null,null,null,null,null,null,null,null,null,null,null,null,null,null,null,null,null,null,null,null,null,null,null,null,null,null,null,null,null,null,null,null,null,null,null,null,null,0,0,0,null,null,null,null,null,0,null,null,null,null,null,null,null,null,null,null,null,null,null,null,null,null,null,0,null,null,null,null,null,null,null,0,null,null,null,null,null,null,null,null,null,0,null,null,null,null,null,null,null,null,null,null,null,null,null,null,null,null,null,null,null,null,null,0,null,0,null,0,null,null,0,null,null,null,null,null,null,null,null,null,null,null,null,null,null,null,0,0,null,null,0,null,0,null,0,0,null,0,null,null,null,0,0,null,null,0,null,null,null,0,null,null,null,null,0,0,null,null,null,null,null,null,null,null,null,null,null,null,null,null,null,0,null,null,null,null,null,null,null,null,null,null,null,null,null,null,null,null,null,null,null,null,null,null,null,null,null,null,null,170,null,0,0,0,0,null,null,0,null,0,null,0,null,null,null,null,null,null,0,null,null,null,null,0,null,null,0,null,null,0,null,null,null,null,null,null,null,null,null,null,null,null,null,null,null,null,null,null,0,0,null,null,null,0]
[43,1,null,"Item 9 type",null,null,null,null,null,null,null,null,null,null,null,null,null,null,null,null,null,null,null,null,null,null,null,null,null,null,null,null,null,null,null,null,null,null,null,null,null,null,null,null,null,null,null,null,null,null,null,null,null,1,1,1,null,null,null,null,null,1,null,null,null,null,null,null,null,null,null,null,null,null,null,null,null,null,null,1,null,null,null,null,null,null,null,1,null,null,null,null,null,null,null,null,null,1,null,null,null,null,null,null,null,null,null,null,null,null,null,null,null,null,null,null,null,null,null,1,null,1,null,1,null,null,1,null,null,null,null,null,null,null,null,null,null,null,null,null,null,null,1,1,null,null,1,null,1,null,1,1,null,1,null,null,null,1,1,null,null,1,null,null,null,1,null,null,null,null,1,1,null,null,null,null,null,null,null,null,null,null,null,null,null,null,null,1,null,null,null,null,null,null,null,null,null,null,null,null,null,null,null,null,null,null,null,null,null,null,null,null,null,null,null,4,null,1,1,1,1,null,null,1,null,1,null,1,null,null,null,null,null,null,1,null,null,null,null,1,null,null,1,null,null,1,null,null,null,null,null,null,null,null,null,null,null,null,null,null,null,null,null,null,1,1,null,null,null,1]
[44,1,null,"Item 9 % max",null,null,null,null,null,null,null,null,null,null,null,null,null,null,null,null,null,null,null,null,null,null,null,null,null,null,null,null,null,null,null,null,null,null,null,null,null,null,null,null,null,null,null,null,null,null,null,null,null,1,1,1,null,null,null,null,null,1,null,null,null,null,null,null,null,null,null,null,null,null,null,null,null,null,null,1,null,null,null,null,null,null,null,1,null,null,null,null,null,null,null,null,null,1,null,null,null,null,null,null,null,null,null,null,null,null,null,null,null,null,null,null,null,null,null,1,null,1,null,1,null,null,1,null,null,null,null,null,null,null,null,null,null,null,null,null,null,null,1,1,null,null,1,null,1,null,1,1,null,1,null,null,null,1,1,null,null,1,null,null,null,1,null,null,null,null,1,1,null,null,null,null,null,null,null,null,null,null,null,null,null,null,null,1,null,null,null,null,null,null,null,null,null,null,null,null,null,null,null,null,null,null,null,null,null,null,null,null,null,null,null,6,null,1,1,1,1,null,null,1,null,1,null,1,null,null,null,null,null,null,1,null,null,null,null,1,null,null,1,null,null,1,null,null,null,null,null,null,null,null,null,null,null,null,null,null,null,null,null,null,1,1,null,null,null,1]
[45,"",null,"Item 9 Country",null,null,null,null,null,null,null,null,null,null,null,null,null,null,null,null,null,null,null,null,null,null,null,null,null,null,null,null,null,null,null,null,null,null,null,null,null,null,null,null,null,null,null,null,null,null,null,null,null,null,null,null,null,null,null,null,null,null,null,null,null,null,null,null,null,null,null,null,null,null,null,null,null,null,null,null,null,null,null,null,null,null,null,null,null,null,null,null,null,null,null,null,null,null,null,null,null,null,null,null,null,null,null,null,null,null,null,null,null,null,null,null,null,null,null,null,null,null,null,null,null,null,null,null,null,null,null,null,null,null,null,null,null,null,null,null,null,null,null,null,null,null,null,null,null,null,null,null,null,null,null,null,null,null,null,null,null,null,null,null,null,null,null,null,null,null,null,null,null,null,null,null,null,null,null,null,null,null,null,null,null,null,null,null,null,null,null,null,null,null,null,null,null,null,null,null,null,null,null,null,null,null,null,null,null,null,null,null,null,null,null,"JPN"]
[46,0,null,"Item 9 Income",null,null,null,null,null,null,null,null,null,null,null,null,null,null,null,null,null,null,null,null,null,null,null,null,null,null,null,null,null,null,null,null,null,null,null,null,null,null,null,null,null,null,null,null,null,null,null,null,null,0,0,0,null,null,null,null,null,0,null,null,null,null,null,null,null,null,null,null,null,null,null,null,null,null,null,0,null,null,null,null,null,null,null,0,null,null,null,null,null,null,null,null,null,0,null,null,null,null,null,null,null,null,null,null,null,null,null,null,null,null,null,null,null,null,null,0,null,0,null,0,null,null,0,null,null,null,null,null,null,null,null,null,null,null,null,null,null,null,0,0,null,null,0,null,0,null,0,0,null,0,null,null,null,0,0,null,null,0,null,null,null,0,null,null,null,null,0,0,null,null,null,null,null,null,null,null,null,null,null,null,null,null,null,0,null,null,null,null,null,null,null,null,null,null,null,null,null,null,null,null,null,null,null,null,null,null,null,null,null,null,null,1000,null,0,0,0,0,null,null,0,null,0,null,0,null,null,null,null,null,null,0,null,null,null,null,0,null,null,0,null,null,0,null,null,null,null,null,null,null,null,null,null,null,null,null,null,null,null,null,null,0,0,null,null,null,0]
[47,0,null,"Item 9 tax",null,null,null,null,null,null,null,null,null,null,null,null,null,null,null,null,null,null,null,null,null,null,null,null,null,null,null,null,null,null,null,null,null,null,null,null,null,null,null,null,null,null,null,null,null,null,null,null,null,0,0,0,null,null,null,null,null,0,null,null,null,null,null,null,null,null,null,null,null,null,null,null,null,null,null,0,null,null,null,null,null,null,null,0,null,null,null,null,null,null,null,null,null,0,null,null,null,null,null,null,null,null,null,null,null,null,null,null,null,null,null,null,null,null,null,0,null,0,null,0,null,null,0,null,null,null,null,null,null,null,null,null,null,null,null,null,null,null,0,0,null,null,0,null,0,null,0,0,null,0,null,null,null,0,0,null,null,0,null,null,null,0,null,null,null,null,0,0,null,null,null,null,null,null,null,null,null,null,null,null,null,null,null,0,null,null,null,null,null,null,null,null,null,null,null,null,null,null,null,null,null,null,null,null,null,null,null,null,null,null,null,100,null,0,0,0,0,null,null,0,null,0,null,0,null,null,null,null,null,null,0,null,null,null,null,0,null,null,0,null,null,0,null,null,null,null,null,null,null,null,null,null,null,null,null,null,null,null,null,null,0,0,null,null,null,0]
[48,1,null,"Item 10 type",null,null,null,null,null,null,null,null,null,null,null,null,null,null,null,null,null,null,null,null,null,null,null,null,null,null,null,null,null,null,null,null,null,null,null,null,null,null,null,null,null,null,null,null,null,null,null,null,null,1,1,1,null,null,null,null,null,1,null,null,null,null,null,null,null,null,null,null,null,null,null,null,null,null,null,1,null,null,null,null,null,null,null,1,null,null,null,null,null,null,null,null,null,1,null,null,null,null,null,null,null,null,null,null,null,null,null,null,null,null,null,null,null,null,null,1,null,1,null,1,null,null,1,null,null,null,null,null,null,null,null,null,null,null,null,null,null,null,1,1,null,null,1,null,1,null,1,1,null,1,null,null,null,1,1,null,null,1,null,null,null,1,null,null,null,null,1,1,null,null,null,null,null,null,null,null,null,null,null,null,null,null,null,1,null,null,null,null,null,null,null,null,null,null,null,null,null,null,null,null,null,null,null,null,null,null,null,null,null,null,null,4,null,1,1,1,1,null,null,1,null,1,null,1,null,null,null,null,null,null,1,null,null,null,null,1,null,null,1,null,null,1,null,null,null,null,null,null,null,null,null,null,null,null,null,null,null,null,null,null,1,1,null,null,null,1]
[49,1,null,"Item 10 % max",null,null,null,null,null,null,null,null,null,null,null,null,null,null,null,null,null,null,null,null,null,null,null,null,null,null,null,null,null,null,null,null,null,null,null,null,null,null,null,null,null,null,null,null,null,null,null,null,null,1,1,1,null,null,null,null,null,1,null,null,null,null,null,null,null,null,null,null,null,null,null,null,null,null,null,1,null,null,null,null,null,null,null,1,null,null,null,null,null,null,null,null,null,1,null,null,null,null,null,null,null,null,null,null,null,null,null,null,null,null,null,null,null,null,null,1,null,1,null,1,null,null,1,null,null,null,null,null,null,null,null,null,null,null,null,null,null,null,1,1,null,null,1,null,1,null,1,1,null,1,null,null,null,1,1,null,null,1,null,null,null,1,null,null,null,null,1,1,null,null,null,null,null,null,null,null,null,null,null,null,null,null,null,1,null,null,null,null,null,null,null,null,null,null,null,null,null,null,null,null,null,null,null,null,null,null,null,null,null,null,null,6,null,1,1,1,1,null,null,1,null,1,null,1,null,null,null,null,null,null,1,null,null,null,null,1,null,null,1,null,null,1,null,null,null,null,null,null,null,null,null,null,null,null,null,null,null,null,null,null,1,1,null,null,null,1]
[50,"",null,"Item 10 Country",null,null,null,null,null,null,null,null,null,null,null,null,null,null,null,null,null,null,null,null,null,null,null,null,null,null,null,null,null,null,null,null,null,null,null,null,null,null,null,null,null,null,null,null,null,null,null,null,null,null,null,null,null,null,null,null,null,null,null,null,null,null,null,null,null,null,null,null,null,null,null,null,null,null,null,null,null,null,null,null,null,null,null,null,null,null,null,null,null,null,null,null,null,null,null,null,null,null,null,null,null,null,null,null,null,null,null,null,null,null,null,null,null,null,null,null,null,null,null,null,null,null,null,null,null,null,null,null,null,null,null,null,null,null,null,null,null,null,null,null,null,null,null,null,null,null,null,null,null,null,null,null,null,null,null,null,null,null,null,null,null,null,null,null,null,null,null,null,null,null,null,null,null,null,null,null,null,null,null,null,null,null,null,null,null,null,null,null,null,null,null,null,null,null,null,null,null,null,null,null,null,null,null,null,null,null,null,null,null,null,null,"IRL"]
[51,0,null,"Item 10 Income",null,null,null,null,null,null,null,null,null,null,null,null,null,null,null,null,null,null,null,null,null,null,null,null,null,null,null,null,null,null,null,null,null,null,null,null,null,null,null,null,null,null,null,null,null,null,null,null,null,0,0,0,null,null,null,null,null,0,null,null,null,null,null,null,null,null,null,null,null,null,null,null,null,null,null,0,null,null,null,null,null,null,null,0,null,null,null,null,null,null,null,null,null,0,null,null,null,null,null,null,null,null,null,null,null,null,null,null,null,null,null,null,null,null,null,0,null,0,null,0,null,null,0,null,null,null,null,null,null,null,null,null,null,null,null,null,null,null,0,0,null,null,0,null,0,null,0,0,null,0,null,null,null,0,0,null,null,0,null,null,null,0,null,null,null,null,0,0,null,null,null,null,null,null,null,null,null,null,null,null,null,null,null,0,null,null,null,null,null,null,null,null,null,null,null,null,null,null,null,null,null,null,null,null,null,null,null,null,null,null,null,500,null,0,0,0,0,null,null,0,null,0,null,0,null,null,null,null,null,null,0,null,null,null,null,0,null,null,0,null,null,0,null,null,null,null,null,null,null,null,null,null,null,null,null,null,null,null,null,null,0,0,null,null,null,0]
[52,0,null,"Item 10 tax",null,null,null,null,null,null,null,null,null,null,null,null,null,null,null,null,null,null,null,null,null,null,null,null,null,null,null,null,null,null,null,null,null,null,null,null,null,null,null,null,null,null,null,null,null,null,null,null,null,0,0,0,null,null,null,null,null,0,null,null,null,null,null,null,null,null,null,null,null,null,null,null,null,null,null,0,null,null,null,null,null,null,null,0,null,null,null,null,null,null,null,null,null,0,null,null,null,null,null,null,null,null,null,null,null,null,null,null,null,null,null,null,null,null,null,0,null,0,null,0,null,null,0,null,null,null,null,null,null,null,null,null,null,null,null,null,null,null,0,0,null,null,0,null,0,null,0,0,null,0,null,null,null,0,0,null,null,0,null,null,null,0,null,null,null,null,0,0,null,null,null,null,null,null,null,null,null,null,null,null,null,null,null,0,null,null,null,null,null,null,null,null,null,null,null,null,null,null,null,null,null,null,null,null,null,null,null,null,null,null,null,50,null,0,0,0,0,null,null,0,null,0,null,0,null,null,null,null,null,null,0,null,null,null,null,0,null,null,0,null,null,0,null,null,null,null,null,null,null,null,null,null,null,null,null,null,null,null,null,null,0,0,null,null,null,0]

{"sheet":"C7","index":16,"n_rows":28,"n_cols":280,"rows_kept":28,"cut":false,"hidden":true,"merged":[]}
["row","selected","TRU",null,1,2,3,4,5,6,7,8,9,10,11,12,13,14,15,16,17,18,19,20,21,22,23,24,25,26,27,28,29,30,31,32,33,34,35,36,37,38,39,40,41,42,43,44,45,46,47,48,49,50,51,52,53,54,55,56,57,58,59,60,61,62,63,64,65,66,67,68,69,70,71,72,73,74,75,76,77,78,79,80,81,82,83,84,85,86,87,88,89,90,91,92,93,94,95,96,97,98,99,100,101,102,103,104,105,106,107,108,109,110,111,112,113,114,115,116,117,118,119,120,121,122,123,124,125,126,127,128,129,130,131,132,133,134,135,136,137,138,139,140,141,142,143,144,145,146,147,148,149,150,151,152,153,154,155,156,157,158,159,160,161,162,163,164,165,166,167,168,169,170,171,172,173,174,175,176,177,178,179,180,181,182,183,184,185,186,187,188,189,190,191,192,193,194,195,196,197,198,199,200,201,202,203,204,205,206,207,208,209,210,211,212,213,214,215,216,217,218,219,220,221,222,223,224,225,226,227,228,229,230,231,232,233,234,235,236,237,238,239,240,241,242,243,244,245,246,247,248,249,250,251,252,253,254,255,256,257,258,259,260,261,262,263,264,265,266,267,268,269,270,271,272,273,null," Validation","Type"]
[2,{"$f":"IF(TRU_IND>1,IF(HLOOKUP(TRU_IND-1,TRU_RANGE,A2)=\"\",\"\",HLOOKUP(TRU_IND-1,TRU_RANGE,A2)),\"\")","v":""},"TRU1","Discretionary income payment from a trust. Net amount",null,null,null,null,null,null,null,null,null,null,null,null,null,null,null,null,null,null,null,null,null,null,null,null,null,null,null,null,null,null,null,null,null,null,null,null,null,null,null,null,null,null,null,10200,null,null,null,null,null,null,null,null,null,null,null,null,null,null,null,10200,null,null,null,null,null,null,null,null,null,null,null,null,null,null,null,null,null,null,null,null,null,null,null,null,null,null,null,null,null,null,null,null,null,null,null,null,null,null,null,null,null,null,null,null,null,null,null,null,null,null,10200,null,null,null,null,null,null,44507,null,null,null,null,null,null,null,null,null,null,null,null,null,null,null,null,null,null,null,null,null,null,null,null,null,null,null,null,null,null,10200,null,null,null,null,null,null,null,null,null,null,null,null,null,null,null,null,null,null,null,null,null,null,null,null,null,null,null,null,null,null,null,null,null,null,null,10200,null,null,null,null,null,null,null,null,null,null,null,null,null,null,null,9500,null,null,null,null,null,null,null,null,null,null,null,null,null,null,null,null,null,null,null,null,null,null,null,null,null,null,null,null,null,null,null,null,null,null,null,null,null,null,null,7500,null,null,null,null,null,null,null,null,null,null,null,null,null,null,null,null,null,null,null,null,null,null,null,null,null,null,null,null,null,null,null,null,null,null,"SA Monetary value (2dp) > 0.00"]
[3,"","TRU2","Total payments in tax year from settlor interested trusts",null,null,null,null,null,null,null,null,null,null,null,null,null,null,null,null,null,null,null,null,null,null,null,null,null,null,null,null,null,null,null,null,null,null,null,null,null,null,null,null,null,null,null,null,null,null,null,null,null,null,null,null,null,null,null,null,null,null,null,null,null,null,null,null,null,null,null,null,null,null,null,null,null,null,null,null,null,null,null,null,null,null,null,null,null,null,null,null,null,null,null,null,null,null,null,null,null,null,null,null,null,null,null,null,null,null,null,2530,null,null,null,null,null,null,null,null,null,4500,null,null,null,null,null,null,null,null,null,null,null,null,null,null,null,null,null,null,null,null,null,null,null,null,null,null,null,null,null,null,null,null,null,null,null,null,null,null,null,null,null,null,null,null,null,null,null,null,null,null,null,null,null,null,null,null,2150,null,null,null,null,null,null,null,null,null,null,null,null,null,null,null,null,null,null,null,null,null,null,null,null,null,null,null,null,null,null,null,null,null,null,null,null,null,null,null,null,null,null,null,null,null,null,null,null,null,null,null,null,null,null,null,null,null,null,null,null,null,null,null,null,null,null,null,null,null,null,null,null,null,null,null,null,null,null,null,null,null,null,null,null,null,null,null,null,null,null,null,null,null,null,null,null,null,null,null,null,"SA Monetary value (2dp) except 0.00"]
[4,"","TRU3","Non-discretionary income taxed at basic rate. Net Amount",null,null,null,null,null,null,null,null,null,null,null,null,null,null,null,null,null,null,null,null,null,null,null,null,null,null,null,null,null,null,null,null,null,null,null,null,null,null,null,null,null,null,null,10568,null,null,null,null,null,null,null,137238,null,null,null,null,null,null,null,10568,null,null,null,null,null,null,null,null,null,null,null,null,null,null,null,null,null,null,null,null,null,null,null,null,null,null,null,null,null,null,null,null,null,null,null,null,null,null,null,null,null,null,null,null,null,null,null,null,null,null,10568,null,null,null,null,null,null,null,null,null,null,null,null,null,null,null,null,null,null,null,null,null,null,null,null,null,null,null,null,null,null,null,null,null,null,null,null,null,10568,null,null,null,null,null,null,null,null,null,null,null,null,null,null,589.6,null,null,null,null,null,null,null,null,null,null,null,null,null,null,null,null,null,null,null,null,10568,null,null,null,null,null,null,null,null,null,null,null,null,null,null,null,6039,null,null,null,null,null,null,null,null,null,null,null,null,null,null,null,null,null,null,null,null,null,null,null,null,null,null,null,null,null,null,null,null,null,null,null,null,null,null,null,4279,null,null,null,null,null,null,null,null,null,null,null,null,null,null,null,null,null,null,null,null,null,null,null,null,null,null,null,null,null,null,null,null,null,null,"SA Monetary value (2dp) > 0.00"]
[5,"","TRU4","Non-discretionary income taxed at lower rate. Net amount",null,null,null,null,null,null,null,null,null,null,null,null,null,null,null,null,null,null,null,null,null,null,null,null,null,null,null,null,null,null,null,null,null,null,null,null,null,null,null,null,null,null,null,800,null,null,null,null,null,null,null,15726,null,null,null,null,null,null,null,800,null,null,null,null,null,null,null,null,null,null,null,null,null,null,null,null,null,null,null,null,null,null,null,null,null,null,null,null,null,null,null,null,null,null,null,null,null,null,null,null,null,null,null,null,null,null,null,null,null,null,800,null,null,null,null,null,null,null,null,null,null,null,null,null,null,null,null,null,null,null,null,null,null,null,null,null,null,null,null,null,null,null,null,null,null,null,null,null,800,null,null,null,null,null,null,null,null,null,null,null,null,null,null,3680.7,null,null,null,null,null,null,null,null,null,null,null,null,null,null,null,null,null,null,null,null,800,null,null,null,null,null,null,null,null,null,null,null,null,null,null,null,550,null,null,null,null,null,null,null,null,null,null,null,null,null,null,null,null,null,null,null,null,null,null,null,null,null,null,null,null,null,null,null,null,null,null,null,null,null,null,null,350,null,null,null,null,148,null,null,null,null,null,null,null,null,null,null,null,null,null,null,null,null,null,null,null,null,null,null,null,null,null,null,null,null,null,"SA Monetary value (2dp) > 0.00"]
[6,"","TRU5","Non-discretionary income taxed at non-payable dividend rate. Net amount",null,null,null,null,null,null,null,null,null,null,null,null,null,null,null,null,null,null,null,null,null,null,null,null,null,null,null,null,null,null,null,null,null,null,null,null,null,null,null,null,null,null,null,2278,null,null,null,null,null,null,null,26811,null,null,null,null,null,null,null,2278,null,null,null,null,null,null,null,null,null,null,null,null,null,null,null,null,null,null,null,null,null,null,null,null,null,null,null,null,null,null,null,null,null,null,null,null,null,null,null,null,null,null,null,null,null,null,null,null,null,null,2278,null,null,null,null,null,null,null,null,null,null,null,null,null,null,null,null,null,null,null,null,null,null,null,null,null,null,null,null,null,null,null,null,null,null,null,null,null,2278,null,null,null,null,null,null,null,null,null,null,null,null,null,null,6351.92,null,null,null,null,null,null,null,null,null,null,null,null,null,null,null,null,null,null,null,null,2278,null,null,null,null,null,null,null,null,null,null,null,null,null,null,null,4621,null,null,null,null,null,null,null,null,null,null,null,null,null,null,null,null,null,null,null,null,null,null,null,null,null,null,null,null,null,null,null,null,null,null,null,null,null,null,null,3779,null,null,null,null,8861,null,null,null,null,null,null,null,null,null,null,null,null,null,null,null,null,null,null,null,null,null,null,null,null,null,null,null,null,null,"SA Monetary value (2dp) > 0.00"]
[7,"","TRU6","Tick box - trust or settlement income with non-resident trustees included elsewhere on the return",null,null,null,null,null,null,null,null,null,null,null,null,null,null,null,null,null,null,null,null,null,null,null,null,null,null,null,null,null,null,null,null,null,null,null,null,null,null,null,null,null,null,null,"N",null,null,null,null,null,null,"N","Y",null,null,null,null,null,null,null,"N",null,null,null,null,null,null,null,null,null,null,null,null,null,null,null,null,"N",null,null,null,null,null,null,null,null,null,null,null,null,null,null,null,null,null,null,null,null,null,null,null,null,null,null,null,null,null,null,"N",null,"N","N",null,"N",null,null,null,null,"N",null,null,null,null,null,null,null,null,null,null,null,null,null,null,null,null,null,null,null,null,null,null,null,null,null,null,null,null,null,null,"N",null,null,null,null,null,null,null,null,null,null,null,null,null,null,null,null,null,null,null,null,null,null,null,null,null,"N",null,null,null,null,null,null,null,null,null,"N",null,null,null,null,null,null,null,null,null,null,null,null,null,null,null,"N",null,null,null,null,null,null,null,null,null,null,null,null,null,null,null,null,null,null,null,null,null,null,null,null,null,null,null,null,null,null,null,null,null,null,null,null,null,null,null,"N",null,null,null,null,null,null,null,null,null,null,null,null,null,null,null,null,null,null,null,null,"N",null,null,null,null,null,null,null,null,null,null,null,null,null,"\"yes\""]
[8,"","TRU7","Income on settlors taxed at basic rate. Net amount ",null,null,null,null,null,null,null,null,null,null,null,null,null,null,null,null,null,null,null,null,null,null,null,null,null,null,null,null,null,null,null,null,null,null,null,null,null,null,null,null,null,null,null,null,null,null,null,null,null,null,null,1476,null,null,null,null,null,null,null,null,null,null,null,null,null,null,null,null,null,null,null,null,null,null,null,null,451,null,null,null,null,null,null,null,null,null,null,null,null,null,null,null,null,null,null,null,null,null,null,null,null,null,null,null,null,null,null,null,null,451,null,null,239,null,null,null,null,null,null,null,null,null,null,null,null,null,null,null,null,null,null,null,null,null,null,null,null,null,null,null,null,null,null,null,null,null,null,null,null,null,null,null,null,null,null,null,null,null,null,null,null,null,null,null,null,null,null,null,null,null,null,null,null,null,null,null,null,null,null,null,null,null,null,null,null,null,null,null,null,null,null,null,null,null,null,null,null,null,null,null,null,null,null,null,null,null,null,null,null,null,null,null,null,null,null,null,null,null,null,null,null,null,null,null,null,null,null,null,null,null,null,null,null,null,null,null,null,null,null,null,null,null,null,null,null,null,null,null,null,null,null,null,null,null,null,null,null,null,null,null,null,451,null,null,null,null,null,null,null,null,null,null,null,null,null,"SA Monetary value (2dp) > 0.00"]
[9,"","TRU8","Income on settlors taxed at lower rate. Net amount",null,null,null,null,null,null,null,null,null,null,null,null,null,null,null,null,null,null,null,null,null,null,null,null,null,null,null,null,null,null,null,null,null,null,null,null,null,null,null,null,null,null,null,null,null,null,null,null,null,null,800,200,null,null,null,null,null,null,null,null,null,null,null,null,null,null,null,null,null,null,null,null,null,null,null,null,116,null,null,null,null,null,null,null,null,null,null,null,null,null,null,null,null,null,null,null,null,null,null,null,null,null,null,null,null,null,null,null,null,116,null,null,523,null,null,null,null,null,null,null,null,null,null,null,null,null,null,null,null,null,null,null,null,null,null,null,null,null,null,null,null,null,null,null,null,null,null,null,null,null,null,null,null,null,null,null,null,null,null,null,null,null,null,null,null,null,null,null,null,null,null,null,null,null,null,null,null,null,null,null,null,null,null,null,null,null,null,null,null,null,null,null,null,null,null,null,null,null,null,null,null,null,null,null,null,null,null,null,null,null,null,null,null,null,null,null,null,null,null,null,null,null,null,null,null,null,null,null,null,null,null,null,null,null,null,null,null,null,null,null,null,null,null,null,null,778,null,null,null,null,null,null,null,null,null,null,null,null,null,null,null,116,null,null,null,null,null,null,null,null,null,null,null,null,null,"SA Monetary value (2dp) > 0.00"]
[10,"","TRU9","Income on settlors taxed at dividend rate. Net amount",null,null,null,null,null,null,null,null,null,null,null,null,null,null,null,null,null,null,null,null,null,null,null,null,null,null,null,null,null,null,null,null,null,null,null,null,null,null,null,null,null,null,null,null,null,null,null,null,null,null,null,23696,null,null,null,null,null,null,null,null,null,null,null,null,null,null,null,null,null,null,null,null,null,null,null,null,59,null,null,null,null,null,null,null,null,null,null,null,null,null,null,null,null,null,null,null,null,null,null,null,null,null,null,null,null,null,null,null,null,59,null,null,null,null,null,null,null,null,null,null,null,null,null,null,null,null,null,null,null,null,null,null,null,null,null,null,null,null,null,null,null,null,null,null,null,null,null,null,null,null,null,null,null,null,null,null,null,null,null,null,null,null,null,null,null,null,null,null,null,null,null,null,null,null,null,null,null,null,null,null,null,null,null,null,null,null,null,null,null,null,null,null,null,null,null,null,null,null,null,null,null,null,null,null,null,null,null,null,null,null,null,null,null,null,null,null,null,null,null,null,null,null,null,null,null,null,null,null,null,null,null,null,null,null,null,null,null,null,null,null,null,null,null,null,null,155,null,null,null,null,null,null,null,null,null,null,null,null,null,null,null,59,null,null,null,null,null,null,null,null,null,null,null,null,null,"SA Monetary value (2dp) > 0.00"]
[11,"","TRU10","Income on settlors taxed at special trust rate. Net amount",null,null,null,null,null,null,null,null,null,null,null,null,null,null,null,null,null,null,null,null,null,null,null,null,null,null,null,null,null,null,null,null,null,null,null,null,null,null,null,null,null,null,null,null,null,null,null,null,null,null,null,null,null,null,null,null,null,null,null,null,null,null,null,null,null,null,null,null,null,null,null,null,null,null,null,null,3200,null,null,null,null,null,null,null,null,null,null,null,null,null,null,null,null,null,null,null,null,null,null,null,null,null,null,null,null,null,null,null,null,3200,null,null,null,null,null,null,null,null,null,null,null,null,null,null,null,null,null,null,null,null,null,null,null,null,null,null,null,null,null,null,null,null,null,null,null,null,null,null,null,null,null,null,null,null,null,null,null,null,null,null,null,null,null,null,null,null,null,null,null,null,null,null,null,null,null,null,null,null,null,null,null,null,null,null,null,null,null,null,null,null,null,null,null,null,null,null,null,null,null,null,null,null,null,null,null,null,null,null,null,null,null,null,null,null,null,null,null,null,null,null,null,null,null,null,null,null,null,null,null,null,null,null,null,null,null,null,null,null,null,null,null,null,null,null,null,null,null,null,null,null,null,null,null,null,null,null,null,null,null,null,null,3200,null,null,null,null,null,null,null,null,null,null,null,null,null,"SA Monetary value (2dp) > 0.00"]
[12,"","TRU11","savings income on settlor at trust rate",null,null,null,null,null,null,null,null,null,null,null,null,null,null,null,null,null,null,null,null,null,null,null,null,null,null,null,null,null,null,null,null,null,null,null,null,null,null,null,null,null,null,null,null,null,null,null,null,null,null,1762,null,null,null,null,null,null,null,null,null,null,null,null,null,null,null,null,null,null,null,null,null,null,null,null,null,null,null,null,null,null,null,null,null,null,null,null,null,null,null,null,null,null,null,null,null,null,null,null,null,null,null,null,null,null,null,null,null,null,null,null,null,40,null,null,null,null,null,null,null,null,null,null,null,null,null,null,null,null,null,null,null,null,null,null,null,null,null,null,null,null,null,null,null,null,null,null,null,null,null,null,null,null,null,null,null,null,null,null,null,null,null,null,null,null,null,null,null,null,null,null,null,null,null,null,null,null,null,null,null,null,null,null,null,null,null,null,null,null,null,null,null,null,null,null,null,null,null,null,null,null,null,null,null,null,null,null,null,null,null,null,null,null,null,null,null,null,null,null,null,null,null,null,null,null,null,null,null,null,null,null,null,null,null,null,null,null,null,null,null,null,null,null,null,null,null,null,null,null,null,null,null,null,null,null,null,null,null,null,null,null,null,null,null,null,null,null,null,null,null,null,null,null,null,null,"SA Monetary value (2dp) > 0.00"]
[13,"","TRU12","Income on settlors taxed at dividend trust rate. Net amount",null,null,null,null,null,null,null,null,null,null,null,null,null,null,null,null,null,null,null,null,null,null,null,null,null,null,null,null,null,null,null,null,null,null,null,null,null,null,null,null,null,null,null,null,null,null,null,null,null,null,4468,null,null,null,null,null,null,null,null,null,null,null,null,null,null,null,null,null,null,null,null,null,null,null,null,null,null,null,null,null,null,null,null,null,null,null,null,null,null,null,null,null,null,null,null,null,null,null,null,null,null,null,null,null,null,null,null,null,null,null,null,null,6034,null,null,null,null,null,null,null,null,null,null,null,null,null,null,null,null,null,null,null,null,null,null,null,null,null,null,null,null,null,null,null,null,null,null,null,null,null,null,null,null,null,null,null,null,null,null,null,null,null,null,null,null,null,null,null,null,null,null,null,null,null,null,null,null,null,null,null,null,null,null,null,null,null,null,null,null,null,null,null,null,null,null,null,null,null,null,null,null,null,null,null,null,null,null,null,null,null,null,null,null,null,null,null,null,null,null,null,null,null,null,null,null,null,null,null,null,null,null,null,null,null,null,null,null,null,null,null,null,null,null,null,null,10998,null,null,null,null,null,null,null,null,null,null,null,null,null,null,null,null,null,null,null,null,null,null,null,null,null,null,null,null,null,"SA Monetary value (2dp) > 0.00"]
[14,"","TRU13","Nonsavings income at basic rate",null,null,null,null,null,null,null,null,null,null,null,null,null,null,null,null,null,null,null,null,null,null,null,null,null,null,null,null,null,null,null,null,null,null,null,null,null,null,null,null,null,null,null,null,null,null,null,null,null,null,null,null,null,null,null,null,null,null,null,null,null,null,null,null,null,null,null,null,null,null,null,null,null,null,null,null,246,null,null,null,null,null,null,null,null,null,null,null,null,null,null,null,null,null,null,null,null,null,null,null,null,null,null,null,null,null,null,null,null,246,null,null,null,null,null,null,null,null,null,null,null,null,null,null,null,null,null,null,null,null,null,null,null,null,null,null,null,null,null,null,null,null,null,null,null,null,null,null,null,null,null,null,null,null,null,null,null,null,null,null,null,null,null,null,null,null,null,null,null,null,null,null,null,null,null,null,null,null,null,null,null,null,null,null,null,null,null,null,null,null,null,null,null,null,null,null,null,null,null,null,null,null,null,null,null,null,null,null,null,null,null,null,null,null,null,null,null,null,null,null,null,null,null,null,null,null,null,null,null,null,null,null,null,null,null,null,null,null,null,null,null,null,null,null,null,null,null,null,null,null,null,null,null,null,null,null,null,null,null,null,null,246,null,null,null,null,null,null,null,null,null,null,null,null,null,"SA Monetary value (2dp) > 0.00"]
[15,"","TRU14","Non savings income paid gross",null,null,null,null,null,null,null,null,null,null,null,null,null,null,null,null,null,null,null,null,null,null,null,null,null,null,null,null,null,null,null,null,null,null,null,null,null,null,null,null,null,null,null,null,null,null,null,null,null,null,null,null,null,null,null,null,null,null,null,null,null,null,null,null,null,null,null,null,null,null,null,null,null,null,null,null,null,null,null,null,null,null,null,null,null,null,null,null,null,null,null,null,null,null,null,null,null,null,null,null,null,null,null,null,null,null,null,null,null,null,null,null,48,null,null,null,null,null,null,null,null,null,null,null,null,null,null,null,null,null,null,null,null,null,null,null,null,null,null,null,null,null,null,null,null,null,null,null,null,null,null,null,null,null,null,null,null,null,null,null,null,null,null,null,null,null,null,null,null,null,null,null,null,null,null,null,null,null,null,null,null,null,null,null,null,null,null,null,null,null,null,null,null,null,null,null,null,null,null,null,null,null,null,null,null,null,null,null,null,null,null,null,null,null,null,null,null,null,null,null,null,null,null,null,null,null,null,null,null,null,null,null,null,null,null,null,null,null,null,null,null,null,null,null,null,null,null,null,null,null,null,null,null,null,null,null,null,null,null,null,null,null,null,null,null,null,null,null,null,null,null,null,null,null,null,"SA Monetary value (2dp) > 0.00"]
[16,"","TRU15","amount of UK life insurance policy",null,null,null,null,null,null,null,null,null,null,null,null,null,null,null,null,null,null,null,null,null,null,null,null,null,null,null,null,null,null,null,null,null,null,null,null,null,null,null,null,null,null,null,null,null,null,null,null,null,null,null,null,null,null,null,null,null,null,null,null,null,null,null,null,null,null,null,null,null,null,null,null,null,null,null,null,null,null,null,null,null,null,null,null,null,null,null,null,null,null,null,null,null,null,null,null,null,null,null,null,null,null,null,null,null,null,null,1808,null,null,null,null,null,null,null,null,null,null,null,null,null,null,null,null,null,null,null,null,null,null,null,null,null,null,null,null,null,null,null,null,null,null,null,null,null,null,null,null,null,null,null,null,null,null,null,null,null,null,null,null,null,null,null,null,null,null,null,null,null,null,null,null,null,null,1808,null,null,null,null,null,null,null,null,null,null,null,null,null,null,null,null,null,null,null,null,null,null,null,null,null,null,null,null,null,null,null,null,null,null,null,null,null,null,null,null,null,null,null,null,null,null,null,null,null,null,null,null,null,null,null,null,null,null,null,null,null,null,null,null,null,null,null,null,null,null,null,null,null,null,null,null,null,null,null,null,null,null,null,null,null,null,null,null,null,null,null,null,null,null,null,null,null,null,null,null,"SA Monetary value (2dp) > 0.00"]
[17,"","TRU16","Income from estates taxed at Basic Rate Tax. Net amount",null,null,null,null,null,null,null,null,null,null,null,null,null,null,null,null,null,null,null,null,null,null,null,null,null,null,null,null,null,null,null,null,null,null,null,null,null,null,null,null,null,null,null,null,null,null,null,null,null,null,null,null,null,null,null,null,null,null,null,null,null,null,null,null,null,null,null,null,null,null,null,null,null,null,null,null,null,null,null,null,null,null,null,null,null,null,null,null,null,null,null,null,null,null,null,null,null,null,null,null,null,null,null,null,null,null,null,1379,null,null,null,null,null,null,null,null,null,null,null,null,null,null,null,null,null,null,null,null,null,null,null,null,null,null,null,null,null,null,null,null,null,null,null,null,null,null,null,null,null,null,null,null,null,null,null,null,null,null,null,null,null,null,null,null,null,null,null,null,null,null,null,null,null,null,1379,null,null,null,null,null,null,null,null,null,null,null,null,null,null,null,null,null,null,null,null,null,null,null,null,null,null,null,null,null,null,null,null,null,null,null,null,null,null,null,null,null,null,null,null,null,null,null,null,null,null,null,null,null,null,null,null,null,null,null,null,null,null,null,null,null,null,null,null,null,null,null,null,null,null,null,null,null,null,null,null,null,null,null,null,null,null,null,null,null,null,null,null,null,null,null,null,null,null,null,null,"SA Monetary value (2dp) > 0.00"]
[18,"","TRU17","Income from estates taxed at lower rate. Net amount",null,null,null,null,null,null,null,null,null,null,null,null,null,null,null,null,null,null,null,null,null,null,null,null,null,null,null,null,null,null,null,null,null,null,null,null,null,null,null,null,null,null,null,null,null,null,null,null,null,null,null,null,null,null,null,null,null,null,null,null,null,null,null,null,null,null,null,null,null,null,null,null,null,null,null,null,null,null,null,null,null,null,null,null,null,null,null,null,null,null,null,null,null,null,null,null,null,null,null,null,null,null,null,null,null,null,null,122,null,null,null,null,null,null,null,null,null,null,null,null,null,null,null,null,null,null,null,null,null,null,null,null,null,null,null,null,null,null,null,null,null,null,null,null,null,null,null,null,null,null,null,null,null,null,null,null,null,null,null,null,null,null,null,null,null,null,null,null,null,null,null,null,null,null,122,null,null,null,null,null,null,null,null,null,null,null,null,null,null,null,null,null,null,null,null,null,null,null,null,null,null,null,null,null,null,null,null,null,null,null,null,null,null,null,null,null,null,null,null,null,null,null,null,null,null,null,null,null,null,null,null,null,null,null,null,null,null,null,null,null,null,null,null,null,null,null,null,null,null,null,null,null,null,null,null,null,null,null,null,null,null,null,null,null,null,null,null,null,null,null,null,null,null,null,null,"SA Monetary value (2dp) > 0.00"]
[19,"","TRU18","Income from estates taxed at dividend rate. Net amount",null,null,null,null,null,null,null,null,null,null,null,null,null,null,null,null,null,null,null,null,null,null,null,null,null,null,null,null,null,null,null,null,null,null,null,null,null,null,null,null,null,null,null,null,null,null,null,null,null,null,11984,null,null,null,null,null,null,null,null,null,null,null,null,null,null,null,null,null,null,null,null,null,null,null,null,null,null,null,null,null,null,null,null,null,null,null,null,null,null,null,null,null,null,null,null,null,null,null,null,null,null,null,null,null,null,null,null,159,null,null,null,null,null,null,null,null,null,null,null,null,null,null,null,null,null,null,null,null,null,null,null,null,null,null,null,null,null,null,null,null,null,null,null,null,null,null,null,null,null,null,null,null,null,null,null,null,null,null,null,null,null,null,null,null,null,null,null,null,null,null,null,null,null,null,259,null,null,null,null,null,null,null,null,null,null,null,null,null,null,null,null,null,null,null,null,null,null,null,null,null,null,null,null,null,null,null,null,null,null,null,null,null,null,null,null,null,null,null,null,null,null,null,null,null,null,null,null,null,null,null,null,null,null,null,null,null,null,null,null,null,null,null,null,null,null,null,null,null,null,null,null,null,null,null,null,null,null,null,null,null,null,null,null,null,null,null,null,null,null,null,null,null,null,null,null,"SA Monetary value (2dp) > 0.00"]
[20,{"$f":"IF(TRU_IND>1,IF(HLOOKUP(TRU_IND-1,TRU_RANGE,A20)=\"\",\"\",HLOOKUP(TRU_IND-1,TRU_RANGE,A20)),\"\")","v":""},"TRU18.1","Dividend income taxed at 7.5%",null,null,null,null,null,null,null,null,null,null,null,null,null,null,null,null,null,null,null,null,null,null,null,null,null,null,null,null,null,null,null,null,null,null,null,null,null,null,null,null,null,null,null,null,null,null,null,null,null,null,null,null,null,null,null,null,null,null,null,null,null,null,null,null,null,null,null,null,null,null,null,null,null,null,null,null,null,null,null,null,null,null,null,null,null,null,null,null,null,null,null,null,null,null,null,null,null,null,null,null,null,null,null,null,null,null,null,100]
[21,{"$f":"IF(TRU_IND>1,IF(HLOOKUP(TRU_IND-1,TRU_RANGE,A21)=\"\",\"\",HLOOKUP(TRU_IND-1,TRU_RANGE,A21)),\"\")","v":""},"TRU19","Income from estates taxed at  non repayable Basic Rate ",null,null,null,null,null,null,null,null,null,null,null,null,null,null,null,null,null,null,null,null,null,null,null,null,null,null,null,null,null,null,null,null,null,null,null,null,null,null,null,null,null,null,null,null,null,null,null,null,null,null,null,null,null,null,null,null,null,null,null,null,null,null,null,null,null,null,null,null,null,null,null,null,null,null,null,null,null,null,null,null,null,null,null,null,null,null,null,null,null,null,null,null,null,null,null,null,null,null,null,null,null,null,null,null,null,null,null,400,null,null,null,null,null,null,null,null,null,null,null,null,null,null,null,null,null,null,null,null,null,null,null,null,null,null,null,null,null,null,null,null,null,null,null,null,null,null,null,null,null,null,null,null,null,null,null,null,null,null,null,null,null,null,null,null,null,null,null,null,null,null,null,null,null,null,700,null,null,null,null,null,null,null,null,null,null,null,null,null,null,null,null,null,null,null,null,null,null,null,null,null,null,null,null,null,null,null,null,null,null,null,null,null,null,null,null,null,null,null,null,null,null,null,null,null,null,null,null,null,null,null,null,null,null,null,null,null,null,null,null,null,null,null,null,null,null,null,null,null,null,null,null,null,null,null,null,null,null,null,null,null,null,null,null,null,null,null,null,null,null,null,null,null,null,null,null,"SA Monetary value (2dp) > 0.00"]
[22,"","TRU22","Income from estates taxed at non repayable lower rate. Net amount ",null,null,null,null,null,null,null,null,null,null,null,null,null,null,null,null,null,null,null,null,null,null,null,null,null,null,null,null,null,null,null,null,null,null,null,null,null,null,null,null,null,null,null,230,null,null,null,null,null,null,33799,null,null,null,null,null,null,null,null,230,null,null,null,null,null,null,null,null,null,null,null,null,null,null,null,null,null,null,null,null,null,null,null,null,null,null,null,null,null,null,null,null,null,null,null,null,null,null,null,null,null,null,null,null,null,null,null,null,null,null,230,null,null,null,null,null,null,55640,null,null,null,null,null,null,null,null,null,null,null,null,null,null,null,null,null,null,null,null,null,null,null,null,null,null,null,null,null,null,230,null,null,null,null,null,null,null,null,null,null,null,null,null,null,null,null,null,null,null,null,null,null,null,null,null,null,null,null,null,null,null,null,null,null,null,230,null,null,null,null,null,null,null,null,null,null,null,null,null,null,null,200,null,null,null,null,null,null,null,null,null,null,null,null,null,null,null,null,null,null,null,null,null,null,null,null,null,null,null,null,null,null,null,null,null,null,null,null,null,null,null,1785,null,null,null,null,null,null,null,null,null,null,null,null,null,null,null,null,null,null,null,null,null,null,null,null,null,null,null,null,null,null,null,null,null,null,"SA Monetary value (2dp) > 0.00"]
[23,"","TRU22.1","Amount claimed under FIG",null,null,null,null,null,null,null,null,null,null,null,null,null,null,null,null,null,null,null,null,null,null,null,null,null,null,null,null,null,null,null,null,null,null,null,null,null,null,null,null,null,null,null,null,null,null,null,null,null,null,null,null,null,null,null,null,null,null,null,null,null,null,null,null,null,null,null,null,null,null,null,null,null,null,null,null,null,null,null,null,null,null,null,null,null,null,null,null,null,null,null,null,null,null,null,null,null,null,null,null,null,null,null,null,null,null,null,null,null,null,null,null,null,null,null,null,null,null,null,null,null,null,null,null,null,null,null,null,null,null,null,null,null,null,null,null,null,null,null,null,null,null,null,null,null,null,null,null,null,null,null,null,null,null,null,null,null,null,null,null,null,null,null,null,null,null,null,null,null,null,null,null,null,null,null,null,null,null,null,null,null,null,null,null,null,null,null,null,null,null,null,null,null,null,null,null,null,null,null,null,null,null,null,null,null,null,null,null,null,null,null,null,null,null,null,null,null,null,null,null,null,null,null,null,null,null,null,null,null,null,null,null,null,null,null,null,null,null,null,null,1785]
[24,"","TRU23","Income from estates taxed at non-payable dividend rate. Net amount",null,null,null,null,null,null,null,null,null,null,null,null,null,null,null,null,null,null,null,null,null,null,null,null,null,null,null,null,null,null,null,null,null,null,null,null,null,null,null,null,null,null,null,null,null,null,null,null,null,null,2716,null,null,null,null,null,null,null,null,null,null,null,null,null,null,null,null,null,null,null,null,null,null,null,null,null,null,null,null,null,null,null,null,null,null,null,null,null,null,null,null,null,null,null,null,null,null,null,null,null,null,null,null,null,null,null,null,null,null,null,null,null,null,null,null,null,null,null,null,null,null,null,null,null,null,null,null,null,null,null,null,null,null,null,null,null,null,null,null,null,null,null,null,null,null,null,null,null,null,null,null,null,null,null,null,null,null,null,null,null,null,null,null,null,null,null,null,null,null,null,null,null,null,null,null,null,null,null,null,null,null,null,null,null,null,null,null,null,null,null,null,null,null,null,null,null,null,null,null,null,null,null,null,null,null,null,null,null,null,null,null,null,null,null,null,null,null,null,null,null,null,null,null,null,null,null,null,null,null,null,null,null,null,null,null,null,null,null,null,null,null,null,null,null,null,null,null,null,null,null,null,null,null,null,null,null,null,null,null,null,null,null,null,null,null,null,null,null,null,null,null,null,null,null,null,"SA Monetary value (2dp) > 0.00"]
[25,"","TRU24","Total foreign tax for which tax credit relief not claimed",null,null,null,null,null,null,null,null,null,null,null,null,null,null,null,null,null,null,null,null,null,null,null,null,null,null,null,null,null,null,null,null,null,null,null,null,null,null,null,null,null,null,null,null,null,null,null,null,null,null,null,null,null,null,null,null,null,null,null,null,null,null,null,null,null,null,null,null,null,null,null,null,null,null,null,null,null,null,null,null,null,null,null,null,null,null,null,null,null,null,null,null,null,null,null,null,null,null,null,null,null,null,null,null,null,null,null,null,null,null,null,null,null,null,null,null,null,1850,null,null,null,null,null,null,null,null,null,null,null,null,null,null,null,null,null,null,null,null,null,null,null,null,null,null,null,null,null,null,null,null,null,null,null,null,null,null,null,null,null,null,null,null,null,null,null,null,null,null,null,null,null,null,null,null,null,null,null,null,null,null,null,null,null,null,null,null,null,null,null,null,null,null,null,null,null,null,null,null,null,null,null,null,null,null,null,null,null,null,null,null,null,null,null,null,null,null,null,null,null,null,null,null,null,null,null,null,null,null,null,null,null,null,null,null,null,null,null,null,null,null,null,null,null,null,null,null,null,null,null,null,null,null,null,null,null,null,null,null,null,null,null,null,null,null,null,null,null,null,null,null,null,null,null,null,null,"SA Monetary value (2dp) > 0.00"]
[26,{"$f":"IF(TRU_IND>1,IF(HLOOKUP(TRU_IND-1,TRU_RANGE,A26)=\"\",\"\",HLOOKUP(TRU_IND-1,TRU_RANGE,A26)),\"\")","v":""},"TRU25","Residential propery income or restricted finance costs",null,null,null,null,null,null,null,null,null,null,null,null,null,null,null,null,null,null,null,null,null,null,null,null,null,null,null,null,null,null,null,null,null,null,null,null,null,null,null,null,null,null,null,null,null,null,null,null,null,null,null,1200,null,null,null,null,null,null,null,null,null,null,null,null,null,null,null,null,null,null,null,null,null,null,null,null,null,null,null,null,null,null,null,null,null,null,null,null,null,null,null,null,null,null,null,null,null,null,null,null,null,null,null,null,null,null,null,null,null,null,null,null,null,null,null,null,null,null,null,null,null,null,null,null,null,null,null,null,null,null,null,null,null,null,null,null,null,null,null,null,null,null,null,null,null,null,null,null,null,null,null,null,null,null,null,null,null,null,null,null,null,null,null,null,null,null,null,null,null,null,null,null,null,null,null,null,null,null,null,null,null,null,null,null,null,null,null,null,null,null,null,null,null,null,null,null,null,null,null,null,null,null,null,null,null,null,null,null,null,null,null,null,null,null,null,null,null,null,null,null,null,null,null,null,null,null,null,null,null,null,null,null,null,null,null,null,null,null,null,null,null,null,null,null,null,null,null,null,null,null,null,null,null,null,null,null,null,null,null,null,null,null,null,null,null,null,null,null,null,null,null,null,null,null,null,"SA Monetary value (2dp) > 0.00"]
[27,{"$f":"IF(TRU_IND>1,IF(HLOOKUP(TRU_IND-1,TRU_RANGE,A27)=\"\",\"\",HLOOKUP(TRU_IND-1,TRU_RANGE,A27)),\"\")","v":""},"TRU25.1","Unused residential finance costs",null,null,null,null,null,null,null,null,null,null,null,null,null,null,null,null,null,null,null,null,null,null,null,null,null,null,null,null,null,null,null,null,null,null,null,null,null,null,null,null,null,null,null,null,null,null,null,null,null,null,null,500,null,null,null,null,null,null,null,null,null,null,null,null,null,null,null,null,null,null,null,null,null,null,null,null,null,null,null,null,null,null,null,null,null,null,null,null,null,null,null,null,null,null,null,null,null,null,null,null,null,null,null,null,null,null,null,null,null,null,null,null,null,null,null,null,null,null,null,null,null,null,null,null,null,null,null,null,null,null,null,null,null,null,null,null,null,null,null,null,null,null,null,null,null,null,null,null,null,null,null,null,null,null,null,null,null,null,null,null,null,null,null,null,null,null,null,null,null,null,null,null,null,null,null,null,null,null,null,null,null,null,null,null,null,null,null,null,null,null,null,null,null,null,null,null,null,null,null,null,null,null,null,null,null,null,null,null,null,null,null,null,null,null,null,null,null,null,null,null,null,null,null,null,null,null,null,null,null,null,null,null,null,null,null,null,null,null,null,null,null,null,null,null,null,null,null,null,null,null,null,null,null,null,null,null,null,null,null,null,null,null,null,null,null,null,null,null,null,null,null,null,null,null,null,"SA Monetary value (2dp) >= 0.00"]
[28,{"$f":"IF(TRU_IND>1,IF(HLOOKUP(TRU_IND-1,TRU_RANGE,A28)=\"\",\"\",HLOOKUP(TRU_IND-1,TRU_RANGE,A28)),\"\")","v":""},"TRU26","Additional Information",null,null,null,null,null,null,null,null,null,null,null,null,null,null,null,null,null,null,null,null,null,null,null,null,null,null,null,null,null,null,null,null,null,null,null,null,null,null,null,null,null,null,null,null,null,null,null,null,null,null,null,null,null,null,null,null,null,null,null,null,null,null,null,null,null,null,null,null,null,null,null,null,null,null,null,null,null,null,null,null,null,null,null,null,null,null,null,null,null,null,null,null,null,null,null,null,null,null,null,null,null,null,null,null,null,null,null,null,null,null,null,null,null,null,null,null,null,null,null,null,null,null,null,null,null,null,null,null,null,null,null,null,null,null,null,null,null,null,null,null,null,null,null,null,null,null,null,null,null,null,null,null,null,null,null,null,null,null,null,null,null,null,null,null,null,null,null,null,null,null,null,null,null,null,null,null,null,null,null,null,null,null,null,null,null,null,null,null,null,null,null,null,null,null,null,null,null,null,null,null,null,null,null,null,null,null,null,null,null,null,null,null,null,null,null,null,null,null,null,null,null,null,null,null,null,null,null,null,null,null,null,null,null,null,null,null,null,null,null,null,null,null,null,null,null,null,null,null,null,null,null,null,null,null,null,null,null,null,null,null,null,null,null,null,null,null,null,null,null,null,null,null,null,null,null,"SA non-empty string"]

{"sheet":"C8C9C10","index":17,"n_rows":177,"n_cols":282,"rows_kept":177,"cut":false,"hidden":true,"merged":[]}
[null,null,null,null,1,2,3,4,5,6,7,8,9,10,11,12,13,14,15,16,17,18,19,20,21,22,23,24,25,26,27,28,29,30,31,32,33,34,35,36,37,38,39,40,41,42,43,44,45,46,47,48,49,50,51,52,53,54,55,56,57,58,59,60,61,62,63,64,65,66,67,68,69,70,71,72,73,74,75,76,77,78,79,80,81,82,83,84,85,86,87,88,89,90,91,92,93,94,95,96,97,98,99,100,101,102,103,104,105,106,107,108,109,110,111,112,113,114,115,116,117,118,119,120,121,122,123,124,125,126,127,128,129,130,131,132,133,134,135,136,137,138,139,140,141,142,143,144,145,146,147,148,149,150,151,152,153,154,155,156,157,158,159,160,161,162,163,164,165,166,167,168,169,170,171,172,173,174,175,176,177,178,179,180,181,182,183,184,185,186,187,188,189,190,191,192,193,194,195,196,197,198,199,200,201,202,203,204,205,206,207,208,209,210,211,212,213,214,215,216,217,218,219,220,221,222,223,224,225,226,227,228,229,230,231,232,233,234,235,236,237,238,239,240,241,242,243,244,245,246,247,248,249,250,251,252,253,254,255,256,257,258,259,260,261,262,263,264,265,266,267,268,269,270,271,272,273,null," Validation","Type","If Present","Value validation"]
["row","selected","CGT",null,1,2,3,4,5,6,7,8,9,10,11,12,13,14,15,16,17,18,19,20,21,22,23,24,25,26,27,28,29,30,31,32,33,34,35,36,37,38,39,40,41,42,43,44,45,46,47,48,49,50,51,52,53,54,55,56,57,58,59,60,61,62,63,64,65,66,67,68,69,70,71,72,73,74,75,76,77,78,79,80,81,82,83,84,85,86,87,88,89,90,91,92,93,94,95,96,97,98,99,100,101,102,103,104,105,106,107,108,109,110,111,112,113,114,115,116,117,118,119,120,121,122,123,124,125,126,127,128,129,130,131,132,133,134,135,136,137,138,139,140,141,142,143,144,145,146,147,148,149,150,151,152,153,154,155,156,157,158,159,160,161,162,163,164,165,166,167,168,169,170,171,172,173,174,175,176,177,178,179,180,181,182,183,184,185,186,187,188,189,190,191,192,193,194,195,196,197,198,199,200,201,202,203,204,205,206,207,208,209,210,211,212,213,214,215,216,217,218,219,220,221,222,223,224,225,226,227,228,229,230,231,232,233,234,235,236,237,238,239,240,241,242,243,244,245,246,247,248,249,250,251,252,253,254,255,256,257,258,259,260,261,262,263,264,265,266,267,268,269,270,271,272,273,null," Validation",null,"If Present","Value validation"]
[2,{"$f":"IF(CGT_IND>1,IF(HLOOKUP(CGT_IND-1,CGT_RANGE,A3)=\"\",\"\",HLOOKUP(CGT_IND-1,CGT_RANGE,A3)),\"\")","v":""},"CGT1","Your name",null,null,null,null,null,null,null,null,null,null,null,null,null,null,null,null,null,null,null,null,null,null,null,null,null,null,null,null,null,null,null,null,null,null,null,null,null,null,null,null,null,null,null,null,null,null,null,null,null,null,null,null,null,null,null,null,null,null,null,null,null,null,null,null,null,null,null,null,null,null,null,null,null,null,null,null,null,null,null,null,null,null,null,null,null,null,null,null,null,null,null,null,null,null,null,null,null,null,null,null,null,null,null,null,null,null,null,null,null,null,null,null,null,null,null,null,null,null,null,null,null,null,null,null,null,null,null,null,null,null,null,null,null,null,null,null,null,null,null,null,null,null,null,null,null,null,null,null,null,null,null,null,null,null,null,null,null,null,null,null,null,null,null,null,null,null,null,null,null,null,null,null,null,null,null,null,null,null,null,null,null,null,null,null,null,null,null,null,null,null,null,null,null,null,null,null,null,null,null,null,null,null,null,null,null,null,null,null,null,null,null,null,null,null,null,null,null,null,null,null,null,null,null,null,null,null,null,null,null,null,null,null,null,null,null,null,null,null,null,null,null,null,null,null,null,null,null,null,null,null,null,null,null,null,null,null,null,null,null,null,null,null,null,null,null,null,null,null,null,null,null,null,null,null,"LDC only","SA string"]
[3,"","CGT2","Your Unique Taxpayer Reference (UTR)",null,null,null,null,null,null,null,null,null,null,null,null,null,null,null,null,null,null,null,null,null,null,null,null,null,null,null,null,null,null,null,null,null,null,null,null,null,null,null,null,null,null,null,null,null,null,null,null,null,null,null,null,null,null,null,null,null,null,null,null,null,null,null,null,null,null,null,null,null,null,null,null,null,null,null,null,null,null,null,null,null,null,null,null,null,null,null,null,null,null,null,null,null,null,null,null,null,null,null,null,null,null,null,null,null,null,null,null,null,null,null,null,null,null,null,null,null,null,null,null,null,null,null,null,null,null,null,null,null,null,null,null,null,null,null,null,null,null,null,null,null,null,null,null,null,null,null,null,null,null,null,null,null,null,null,null,null,null,null,null,null,null,null,null,null,null,null,null,null,null,null,null,null,null,null,null,null,null,null,null,null,null,null,null,null,null,null,null,null,null,null,null,null,null,null,null,null,null,null,null,null,null,null,null,null,null,null,null,null,null,null,null,null,null,null,null,null,null,null,null,null,null,null,null,null,null,null,null,null,null,null,null,null,null,null,null,null,null,null,null,null,null,null,null,null,null,null,null,null,null,null,null,null,null,null,null,null,null,null,null,null,null,null,null,null,null,null,null,null,null,null,null,null,null,"Max 10 characters","UTR"]
[4,1,"CGT3","Number of disposals",null,null,null,null,null,null,null,null,null,null,null,null,null,null,null,null,null,null,null,null,null,null,null,null,null,null,null,null,null,null,null,null,null,null,null,null,null,null,null,null,null,null,null,null,null,null,1,null,null,1,1,1,null,null,1,null,null,null,null,null,null,null,null,2,null,null,null,null,null,null,null,null,null,null,null,null,null,null,null,null,null,null,null,null,null,null,null,null,null,null,1,null,null,null,null,null,null,null,null,null,null,null,null,null,null,null,null,null,null,null,null,null,null,null,null,null,null,null,null,null,null,null,null,null,null,null,null,null,null,null,null,null,1,null,null,null,null,null,1,null,null,null,null,1,null,null,null,null,null,null,null,null,1,4,1,2,7,19,null,2,8,1,8,null,1,null,3,1,null,null,null,null,null,null,null,null,null,null,null,null,null,null,null,null,null,null,null,null,2,null,null,null,null,null,null,null,null,null,null,null,null,null,null,null,null,4,null,null,null,null,1,null,8,1,1,1,1,null,null,1,null,null,null,null,null,null,null,null,null,null,null,null,null,null,null,1,null,null,null,null,null,null,null,null,null,null,null,null,1,4,3,1,1,1,1,null,null,3,null,7,null,null,1,1,1,1,2,2,2,null,null,null,null,null,null,"Integer value greater > 0"]
[5,"","CGT4","Disposal proceeds",null,null,null,null,null,null,null,null,null,null,null,null,null,null,null,null,null,null,null,null,null,null,null,null,null,null,null,null,null,null,null,null,null,null,null,null,null,null,null,null,null,null,null,null,null,null,290000,null,null,785134,198469,null,null,null,1842210,null,null,null,null,null,null,null,null,145000,null,null,null,null,null,null,null,null,null,null,null,null,null,null,null,null,null,null,null,null,null,null,null,null,null,null,null,null,null,null,null,null,null,null,null,null,null,null,null,null,null,null,null,null,null,null,null,null,null,null,null,null,null,null,null,null,null,null,null,null,null,null,null,null,null,null,null,null,87516,null,null,null,null,null,450000,null,null,null,null,null,null,null,null,null,null,null,null,null,null,null,null,null,280769.52,4475188,null,null,null,null,133655,null,null,null,null,null,null,null,null,null,null,null,null,null,null,null,null,null,null,null,null,null,null,null,null,null,null,null,null,null,null,null,null,null,null,null,null,null,null,null,null,null,null,625000,null,null,null,null,776959,null,null,226000,200000,null,null,null,null,null,null,null,null,null,null,null,null,null,null,null,null,null,null,null,null,null,null,null,null,null,null,null,null,null,null,null,null,null,null,385723,172570,440000,93723,null,1445.07,null,null,179700,null,null,null,null,58950,475000,55000,540013,343840,1090000,1090000,null,null,null,null,null,null,"SA Monetary value (2dp) > 0.00","CGT3"]
[6,"","CGT5","Allowable costs (including purchase price)",null,null,null,null,null,null,null,null,null,null,null,null,null,null,null,null,null,null,null,null,null,null,null,null,null,null,null,null,null,null,null,null,null,null,null,null,null,null,null,null,null,null,null,null,null,null,250669.35,null,null,null,91037,null,null,null,1829028,null,null,null,null,null,null,null,null,127758,null,null,null,null,null,null,null,null,null,null,null,null,null,null,null,null,null,null,null,null,null,null,null,null,null,null,null,null,null,null,null,null,null,null,null,null,null,null,null,null,null,null,null,null,null,null,null,null,null,null,null,null,null,null,null,null,null,null,null,null,null,null,null,null,null,null,null,null,null,null,null,null,null,null,255057,null,null,null,null,null,null,null,null,null,null,null,null,null,null,null,null,null,null,null,null,null,null,null,null,null,null,null,null,null,null,null,null,null,null,null,null,null,null,null,null,null,null,null,null,null,null,null,null,null,null,null,null,null,null,null,null,null,null,null,null,null,null,null,null,null,null,600900,null,null,null,null,235473,null,null,150860,150860,null,null,null,null,null,null,null,null,null,null,null,null,null,null,null,null,null,null,null,null,null,null,null,null,null,null,null,null,null,null,null,null,null,null,316588,116677,81000,82641,null,null,null,null,119650,null,null,null,null,null,114421,49037,503006,320261,987500,987500,null,null,null,null,null,null,"SA Monetary value (2dp) > 0.00",""]
[7,29077,"CGT6","Gains in the year, before losses - do not include any gains subject to non-resident Capital Gains Tax",null,null,null,null,null,null,null,null,null,null,null,null,null,null,null,null,null,null,null,null,null,null,null,null,null,null,null,null,null,null,null,null,null,null,null,null,null,null,null,null,null,null,null,null,null,null,39330.65,null,null,226835,107432,11000,null,null,13182,null,null,null,null,null,null,null,null,17243,null,null,null,null,null,null,null,null,null,null,null,null,null,null,null,null,null,null,null,null,null,null,null,null,null,null,14600,null,null,null,null,null,null,null,null,null,null,null,null,null,null,null,null,null,null,null,null,null,null,null,null,null,null,null,null,null,null,null,null,null,null,null,null,null,null,null,null,null,87516,null,null,null,null,null,194943,null,null,null,null,7149,null,null,null,null,null,null,null,null,98278,7758939,7149,112761,280769,4475188,null,112761,7902,225088,134266,null,585300,null,null,29077,null,null,null,null,null,null,null,null,null,null,null,null,null,null,null,null,null,null,null,null,8000,null,null,null,null,null,null,null,null,null,null,null,null,null,null,null,null,5000,null,null,null,null,753416,null,932832,{"$f":"MAX(0,HJ6-HJ7)","v":75140},{"$f":"MAX(0,HK6-HK7)","v":49140},304305,5756386,null,null,56681,null,null,null,null,null,null,null,null,null,null,null,null,null,null,null,357554,null,null,null,null,null,null,null,null,null,null,null,null,1911950,{"$f":"MAX(0,IT6-IT7)","v":69135},{"$f":"MAX(0,IU6-IU7)","v":55893},{"$f":"MAX(0,IV6-IV7)","v":359000},{"$f":"MAX(0,IW6-IW7)","v":11082},5656628,1445,null,null,{"$f":"MAX(0,JB6-JB7)","v":60050},null,273567,null,null,58950,{"$f":"MAX(0,JH6-JH7)","v":360579},5963,37007,23579,102500,102500,null,null,null,null,null,null,"SA Monetary value (2dp) > 0.00","CGT3"]
[8,"","CGT6.1","Amount claimed under FIG",null,null,null,null,null,null,null,null,null,null,null,null,null,null,null,null,null,null,null,null,null,null,null,null,null,null,null,null,null,null,null,null,null,null,null,null,null,null,null,null,null,null,null,null,null,null,null,null,null,null,null,null,null,null,null,null,null,null,null,null,null,null,null,null,null,null,null,null,null,null,null,null,null,null,null,null,null,null,null,null,null,null,null,null,null,null,null,null,null,null,null,null,null,null,null,null,null,null,null,null,null,null,null,null,null,null,null,null,null,null,null,null,null,null,null,null,null,null,null,null,null,null,null,null,null,null,null,null,null,null,null,null,null,null,null,null,null,null,null,null,null,null,null,null,null,null,null,null,null,null,null,null,null,null,null,null,null,null,null,null,null,null,null,null,null,null,null,null,null,null,null,null,null,null,null,null,null,null,null,null,null,null,null,null,null,null,null,null,null,null,null,null,null,null,null,null,null,null,null,null,null,null,null,null,null,null,null,null,null,null,753416]
[9,"","CGT7","Losses in the year - do not include any losses incurred on the disposal of a property subject to non-resident Capital Gains tax",null,null,null,null,null,null,null,null,null,null,null,null,null,null,null,null,null,null,null,null,null,null,null,null,null,null,null,null,null,null,null,null,null,null,null,null,null,null,null,null,null,null,null,null,null,null,null,null,null,null,null,null,null,null,null,null,null,null,null,null,null,null,null,null,null,null,null,null,null,null,null,null,null,null,null,null,null,null,null,null,null,null,null,null,null,null,null,null,null,null,null,null,null,null,null,null,null,null,null,null,null,null,null,null,null,null,null,null,null,null,null,null,null,null,null,null,null,null,null,null,null,null,null,null,null,null,null,null,null,null,null,null,null,null,null,null,null,null,null,null,null,null,null,null,null,null,null,null,null,null,null,null,null,null,null,null,null,null,null,null,null,null,null,null,null,null,null,null,null,null,null,null,null,null,null,null,null,null,null,null,null,null,null,null,null,null,null,null,null,null,null,null,null,null,null,null,null,null,null,null,null,null,null,null,null,2000,null,null,null,null,null,null,null,null,null,null,null,null,null,null,null,null,null,null,null,null,null,null,null,null,null,null,null,null,null,null,null,null,null,null,null,null,null,null,null,null,null,null,null,null,null,null,null,null,null,null,null,null,null,null,null,null,28950,null,null,null,null,null,null,null,null,null,null,null,null,"SA Monetary value (2dp) > 0.00","CGT3"]
[10,"","CGT8","If you are making any claim or election, put the relevant code in the box",null,null,null,null,null,null,null,null,null,null,null,null,null,null,null,null,null,null,null,null,null,null,null,null,null,null,null,null,null,null,null,null,null,null,null,null,null,null,null,null,null,null,null,null,null,null,null,null,null,null,null,null,null,null,null,null,null,null,null,null,null,null,null,null,null,null,null,null,null,null,null,null,null,null,null,null,null,null,null,null,null,null,null,null,null,null,null,null,null,null,null,null,null,null,null,null,null,null,null,null,null,null,null,null,null,null,null,null,null,null,null,null,null,null,null,null,null,null,null,null,null,null,null,null,null,null,null,null,null,null,null,null,null,null,null,null,null,null,null,null,null,null,null,null,null,null,null,null,null,null,null,null,null,null,"OTH",null,null,null,null,null,null,null,null,null,null,null,null,null,null,null,null,null,null,null,null,null,null,null,null,null,null,null,null,null,null,null,null,null,null,null,null,null,null,null,null,null,null,null,null,null,null,null,null,null,null,"PRR",null,null,null,null,null,null,null,null,null,null,"OTH",null,null,null,null,null,null,null,null,null,null,null,null,null,null,null,null,null,null,"OTH",null,null,null,null,null,null,null,null,null,null,null,null,null,null,null,null,null,null,null,null,null,null,null,null,null,null,null,null,null,null,null,"LET","LET",null,null,null,null,null,"Must be in the format AAA","SA CGT Relief Code (3 upper case letters)"]
[11,"","CGT9","Gain or loss reported via PDD",null,null,null,null,null,null,null,null,null,null,null,null,null,null,null,null,null,null,null,null,null,null,null,null,null,null,null,null,null,null,null,null,null,null,null,null,null,null,null,null,null,null,null,null,null,null,null,null,null,null,null,11000,null,null,null,null,null,null,null,null,null,null,null,10440,null,null,null,null,null,null,null,null,null,null,null,null,null,null,null,null,null,null,null,null,null,null,null,null,null,null,14600,null,null,null,null,null,null,null,null,null,null,null,null,null,null,null,null,null,null,null,null,null,null,null,null,null,null,null,null,null,null,null,null,null,null,null,null,null,null,null,null,null,null,null,null,null,null,null,null,null,null,null,null,null,null,null,null,null,null,null,null,null,null,null,null,null,null,null,null,null,null,null,null,null,null,null,null,null,null,null,null,null,null,null,null,null,null,null,null,null,null,null,null,null,null,null,null,null,null,null,null,null,null,null,null,null,null,null,null,null,null,null,null,null,null,null,null,null,null,null,null,null,null,26000,null,null,null,null,null,null,null,null,null,null,null,null,null,null,null,null,null,null,null,null,null,null,null,null,null,null,null,null,null,null,null,null,null,null,null,null,null,null,null,null,null,null,null,60050,null,null,null,null,34000,null,null,47007,23579,102500,102500,null,null,null,null,null,"If CGT3 present then at least one of CGT6, CGT7, or CGT9 must be present","SA Monetary value (2dp)","CGT3"]
[12,"","CGT10","Tax on gains in box 9 already charged",null,null,null,null,null,null,null,null,null,null,null,null,null,null,null,null,null,null,null,null,null,null,null,null,null,null,null,null,null,null,null,null,null,null,null,null,null,null,null,null,null,null,null,null,null,null,null,null,null,null,null,4551,null,null,null,null,null,null,null,null,null,null,null,2827,null,null,null,null,null,null,null,null,null,null,null,null,null,null,null,null,null,null,null,null,null,null,null,null,null,null,615,null,null,null,null,null,null,null,null,null,null,null,null,null,null,null,null,null,null,null,null,null,null,null,null,null,null,null,null,null,null,null,null,null,null,null,null,null,null,null,null,null,null,null,null,null,null,null,null,null,null,null,null,null,null,null,null,null,null,null,null,null,null,null,null,null,null,null,null,null,null,null,null,null,null,null,null,null,null,null,null,null,null,null,null,null,null,null,null,null,null,null,null,null,null,null,null,null,null,null,null,null,null,null,null,null,null,null,null,null,null,null,null,null,null,null,null,null,null,null,null,null,null,7280,null,null,null,null,null,null,null,null,null,null,null,null,null,null,null,null,null,null,null,null,null,null,null,null,null,null,null,null,null,null,null,null,null,null,null,null,null,null,null,null,null,null,null,18000,null,null,null,null,12960,null,null,10477,2118,50000,24600,null,null,null,null,null,null,"SA Monetary value (2dp) > 0.00","CGT9"]
[13,"","CGT11",{"$f":"\"If, during \"&tax_year&\", you  submitted a Real Time Transaction Tax return for the disposal of a residential property or properties, put the overall gain or loss in the box -  include the  individual amounts of gains in  box 6 and losses in box 7\"","v":"If, during 2025-26, you  submitted a Real Time Transaction Tax return for the disposal of a residential property or properties, put the overall gain or loss in the box -  include the  individual amounts of gains in  box 6 and losses in box 7"},null,null,null,null,null,null,null,null,null,null,null,null,null,null,null,null,null,null,null,null,null,null,null,null,null,null,null,null,null,null,null,null,null,null,null,null,null,null,null,null,null,null,null,null,null,null,null,null,null,null,null,null,null,null,null,null,null,null,null,null,null,null,null,null,null,null,null,null,null,null,null,null,null,null,null,null,null,null,null,null,null,null,null,null,null,null,null,null,null,null,null,null,null,null,null,null,null,null,null,null,null,null,null,null,null,null,null,null,null,null,null,null,null,null,null,null,null,null,null,null,null,null,null,null,null,null,null,null,null,null,null,null,null,null,null,null,null,null,194943,null,null,null,null,null,null,null,null,null,null,null,null,null,null,null,null,null,null,null,null,null,null,null,null,null,null,null,null,null,null,null,null,null,null,null,null,null,null,null,null,null,null,null,null,null,null,null,null,null,null,null,null,null,null,null,null,null,null,null,null,null,null,null,null,null,null,3000,null,null,null,null,null,null,null,null,null,null,null,null,null,null,null,null,null,null,null,null,null,null,null,null,null,null,null,null,null,null,null,null,null,null,null,null,null,null,null,null,null,null,null,null,null,null,null,null,null,null,null,null,null,null,null,null,null,null,null,null,null,null,null,null,null,null,null,null,"If CGT11 is positive then CGT6 must be present\nIf CGT11 is positive it must be less than or equal to CGT6\nIfCGT11 is negative then VGT7 must be present\nIf CGT11 is negative then its absolute value must be less than or equal to CGT7","SA Monetary value (2dp)"]
[14,"","CGT12","Tax on gains in box 11 already charged",null,null,null,null,null,null,null,null,null,null,null,null,null,null,null,null,null,null,null,null,null,null,null,null,null,null,null,null,null,null,null,null,null,null,null,null,null,null,null,null,null,null,null,null,null,null,null,null,null,null,null,null,null,null,null,null,null,null,null,null,null,null,null,null,null,null,null,null,null,null,null,null,null,null,null,null,null,null,null,null,null,null,null,null,null,null,null,null,null,null,null,null,null,null,null,null,null,null,null,null,null,null,null,null,null,null,null,null,null,null,null,null,null,null,null,null,null,null,null,null,null,null,null,null,null,null,null,null,null,null,null,null,null,null,null,null,null,null,null,null,null,null,null,null,null,null,null,null,null,null,null,null,null,null,null,null,null,null,null,null,null,null,null,null,null,null,null,null,null,null,null,null,null,null,null,null,null,null,null,null,null,null,null,null,null,null,null,null,null,null,null,null,null,null,null,null,null,null,null,null,null,null,null,null,null,900,null,null,null,null,null,null,null,null,null,null,null,null,null,null,null,null,null,null,null,null,null,null,null,null,null,null,null,null,null,null,null,null,null,null,null,null,null,null,null,null,null,null,null,null,null,null,null,null,null,null,null,null,null,null,null,null,null,null,null,null,null,null,null,null,null,null,null,null,null,"SA Monetary value (2dp) > 0.00","CGT11"]
[15,"","CGT13","Carried interest (arising basis)",null,null,null,null,null,null,null,null,null,null,null,null,null,null,null,null,null,null,null,null,null,null,null,null,null,null,null,null,null,null,null,null,null,null,null,null,null,null,null,null,null,null,null,null,null,null,null,null,null,null,null,null,null,null,null,null,null,null,null,null,null,null,null,null,null,null,null,null,null,null,null,null,null,null,null,null,null,null,null,null,null,null,null,null,null,null,null,null,null,null,null,null,null,null,null,null,null,null,null,null,null,null,null,null,null,null,null,null,null,null,null,null,null,null,null,null,null,null,null,null,null,null,null,null,null,null,null,null,null,null,null,null,null,null,null,null,null,null,null,null,null,null,null,null,null,null,null,null,null,null,null,null,null,null,null,null,null,null,null,null,null,null,null,null,null,null,null,null,null,null,null,null,null,null,null,null,null,null,null,null,null,null,null,null,null,null,null,null,16500,null,null,null,null,null,null,null,null,null,null,null,null,null,null,null,null,null,null,null,null,null,null,null,null,null,null,null,null,null,null,null,null,null,null,null,null,null,null,null,null,null,null,null,null,null,null,null,null,null,null,null,null,null,null,null,null,null,null,null,null,null,null,null,null,null,null,null,null,null,null,null,null,null,null,null,null,null,null,1896981,null,null,null,null,null,null,null,"SA Monetary value (2dp) > 0.00"]
[16,"","CGT13A","Carried interest (accruals basis)",null,null,null,null,null,null,null,null,null,null,null,null,null,null,null,null,null,null,null,null,null,null,null,null,null,null,null,null,null,null,null,null,null,null,null,null,null,null,null,null,null,null,null,null,null,null,null,null,null,null,null,null,null,null,null,null,null,null,null,null,null,null,null,null,null,null,null,null,null,null,null,null,null,null,null,null,null,null,null,null,null,null,null,null,null,null,null,null,null,null,null,null,null,null,null,null,null,null,null,null,null,null,null,null,null,null,null,null,null,null,null,null,null,null,null,null,null,null,null,null,null,null,null,null,null,null,null,null,null,null,null,null,null,null,null,null,null,null,null,null,null,178486,null,null,null,null,null,null,null,null,null,null,null,null,null,null,null,null,null,null,null,null,null,null,null,null,null,null,null,null,null,null,null,null,null,null,null,null,null,null,null,null,null,null,null,null,null,null,29800]
[17,"","CGT13B","Gains on carried interest ",null,null,null,null,null,null,null,null,null,null,null,null,null,null,null,null,null,null,null,null,null,null,null,null,null,null,null,null,null,null,null,null,null,null,null,null,null,null,null,null,null,null,null,null,null,null,null,null,null,null,null,null,null,null,null,null,null,null,null,null,null,null,null,null,null,null,null,null,null,null,null,null,null,null,null,null,null,null,null,null,null,null,null,null,null,null,null,null,null,null,null,null,null,null,null,null,null,null,null,null,null,null,null,null,null,null,null,null,null,null,null,null,null,null,null,null,null,null,null,null,null,null,null,null,null,null,null,null,null,null,null,null,null,null,null,null,null,null,null,null,null,178486,null,7149,null,null,null,null,null,null,null,null,null,null,null,null,null,null,null,null,null,null,null,null,null,null,null,null,null,null,null,null,null,null,null,null,null,null,null,null,null,null,null,null,null,null,null,null,30000,null,null,null,null,null,null,null,null,null,null,null,null,null,null,null,null,null,null,null,null,null,null,null,null,null,null,null,null,null,null,null,null,null,null,null,null,null,null,null,null,null,null,null,null,null,null,null,null,null,null,null,null,null,null,null,null,null,null,null,null,null,null,null,null,null,null,null,null,null,null,null,null,null,null,null,null,null,null,1896981]
[18,"","CGT13C","Amount claimed under FIG"]
[19,"","CGT13.1","Number of disposals",null,null,null,null,null,null,null,null,null,null,null,null,null,null,null,null,null,null,null,null,null,null,null,null,null,null,null,null,null,null,null,null,null,null,null,null,null,null,null,null,null,null,null,null,null,null,null,null,null,null,null,null,null,null,null,null,null,null,null,null,null,null,null,null,null,null,null,null,null,null,null,null,null,null,null,null,null,null,null,null,null,null,null,null,null,null,null,null,null,null,null,null,null,null,null,null,null,null,null,null,null,null,null,null,null,null,null,null,null,null,null,null,null,null,null,null,null,null,null,null,null,null,null,null,null,null,null,null,null,null,null,null,null,null,null,null,null,null,null,null,null,null,null,null,null,null,null,null,null,null,null,null,null,null,null,null,null,null,null,null,null,null,null,null,null,null,null,null,null,null,null,null,null,null,null,null,null,null,null,null,1]
[20,"","CGT13.2","Disposal proceeds",null,null,null,null,null,null,null,null,null,null,null,null,null,null,null,null,null,null,null,null,null,null,null,null,null,null,null,null,null,null,null,null,null,null,null,null,null,null,null,null,null,null,null,null,null,null,null,null,null,null,null,null,null,null,null,null,null,null,null,null,null,null,null,null,null,null,null,null,null,null,null,null,null,null,null,null,null,null,null,null,null,null,null,null,null,null,null,null,null,null,null,null,null,null,null,null,null,null,null,null,null,null,null,null,null,null,null,null,null,null,null,null,null,null,null,null,null,null,null,null,null,null,null,null,null,null,null,null,null,null,null,null,null,null,null,null,null,null,null,null,null,null,null,null,null,null,null,null,null,null,null,null,null,null,null,null,null,null,null,null,null,null,null,null,null,null,null,null,null,null,null,null,null,null,null,null,null,null,null,null,168950]
[21,"","CGT13.3","Allowable costs (including purchase price)",null,null,null,null,null,null,null,null,null,null,null,null,null,null,null,null,null,null,null,null,null,null,null,null,null,null,null,null,null,null,null,null,null,null,null,null,null,null,null,null,null,null,null,null,null,null,null,null,null,null,null,null,null,null,null,null,null,null,null,null,null,null,null,null,null,null,null,null,null,null,null,null,null,null,null,null,null,null,null,null,null,null,null,null,null,null,null,null,null,null,null,null,null,null,null,null,null,null,null,null,null,null,null,null,null,null,null,null,null,null,null,null,null,null,null,null,null,null,null,null,null,null,null,null,null,null,null,null,null,null,null,null,null,null,null,null,null,null,null,null,null,null,null,null,null,null,null,null,null,null,null,null,null,null,null,null,null,null,null,null,null,null,null,null,null,null,null,null,null,null,null,null,null,null,null,null,null,null,null,null,73780]
[22,"","CGT13.4","Gains in the year, before losses",null,null,null,null,null,null,null,null,null,null,null,null,null,null,null,null,null,null,null,null,null,null,null,null,null,null,null,null,null,null,null,null,null,null,null,null,null,null,null,null,null,null,null,null,null,null,null,null,null,null,null,null,null,null,null,null,null,null,null,null,null,null,null,null,null,null,null,null,null,null,null,null,null,null,null,null,null,null,null,null,null,null,null,null,null,null,null,null,null,null,null,null,null,null,null,null,null,null,null,null,null,null,null,null,null,null,null,null,null,null,null,null,null,null,null,null,null,null,null,null,null,null,null,null,null,null,null,null,null,null,null,null,null,null,null,null,null,null,null,null,null,null,null,null,null,null,null,null,null,null,null,null,null,null,null,null,null,null,null,null,null,null,null,null,null,null,null,null,null,null,null,null,null,null,null,null,null,null,null,null,{"$f":"GC21-GC22","v":95170}]
[23,"","CGT13.5","Losses in the year"]
[24,"","CGT13.6","If you're making a claim or election"]
[25,"","CGT13.7","Total gains or losses reported on RTT returns",null,null,null,null,null,null,null,null,null,null,null,null,null,null,null,null,null,null,null,null,null,null,null,null,null,null,null,null,null,null,null,null,null,null,null,null,null,null,null,null,null,null,null,null,null,null,null,null,null,null,null,null,null,null,null,null,null,null,null,null,null,null,null,null,null,null,null,null,null,null,null,null,null,null,null,null,null,null,null,null,null,null,null,null,null,null,null,null,null,null,null,null,null,null,null,null,null,null,null,null,null,null,null,null,null,null,null,null,null,null,null,null,null,null,null,null,null,null,null,null,null,null,null,null,null,null,null,null,null,null,null,null,null,null,null,null,null,null,null,null,null,null,null,null,null,null,null,null,null,null,null,null,null,null,null,null,null,null,null,null,null,null,null,null,null,null,null,null,null,null,null,null,null,null,null,null,null,null,null,null,95170]
[26,"","CGT13.8","Tax on gains already paid",null,null,null,null,null,null,null,null,null,null,null,null,null,null,null,null,null,null,null,null,null,null,null,null,null,null,null,null,null,null,null,null,null,null,null,null,null,null,null,null,null,null,null,null,null,null,null,null,null,null,null,null,null,null,null,null,null,null,null,null,null,null,null,null,null,null,null,null,null,null,null,null,null,null,null,null,null,null,null,null,null,null,null,null,null,null,null,null,null,null,null,null,null,null,null,null,null,null,null,null,null,null,null,null,null,null,null,null,null,null,null,null,null,null,null,null,null,null,null,null,null,null,null,null,null,null,null,null,null,null,null,null,null,null,null,null,null,null,null,null,null,null,null,null,null,null,null,null,null,null,null,null,null,null,null,null,null,null,null,null,null,null,null,null,null,null,null,null,null,null,null,null,null,null,null,null,null,null,null,null,40548]
[27,"","CGT14","Number of disposals",null,null,null,null,null,null,null,null,null,null,null,null,null,null,null,null,null,null,null,null,null,null,null,null,null,null,null,null,null,null,null,null,null,null,null,null,null,null,null,null,null,null,2,null,null,null,null,null,null,null,null,1,null,null,25,null,null,null,null,null,null,null,null,1,null,null,null,null,null,null,1,null,null,null,null,null,null,null,null,null,null,null,null,null,null,null,null,null,null,null,null,null,null,null,null,null,null,null,null,null,1,null,2,null,null,null,2,null,null,1,null,null,1,null,null,null,null,null,null,null,null,null,13,null,null,null,null,null,null,null,null,null,null,null,null,null,null,null,2,null,null,null,null,4,null,7,48611,null,null,null,1,2,null,5,null,null,null,1,1,null,null,2,null,1,null,null,null,null,null,null,null,null,null,null,null,null,null,null,null,null,null,null,null,null,null,null,null,null,null,null,null,null,null,null,null,null,null,null,null,null,null,null,null,null,null,1,null,null,null,null,null,null,null,null,null,2,null,null,null,null,null,null,null,null,null,null,null,null,null,null,null,null,null,null,null,null,null,1,null,null,4,null,null,null,null,null,null,null,5,null,1,null,null,32,2,1,null,null,null,1,null,null,null,1,1,null,null,null,null,null,null,null,null,null,null,"Integer value greater > 0"]
[28,"","CGT15","Disposal proceeds",null,null,null,null,null,null,null,null,null,null,null,null,null,null,null,null,null,null,null,null,null,null,null,null,null,null,null,null,null,null,null,null,null,null,null,null,null,null,null,null,null,null,37000,null,null,null,null,null,null,null,null,12000,null,null,4177691.32,null,null,null,null,null,null,null,null,175000,null,null,null,null,null,null,12000,null,null,null,null,null,null,null,null,null,null,null,null,null,null,null,null,null,null,null,null,null,null,null,null,null,null,null,null,null,300000,null,37000,null,null,null,37000,null,null,191507,null,null,212000,null,null,null,null,null,null,null,null,null,2764967,null,null,null,null,null,null,null,null,null,null,289452,null,null,null,null,34274962,null,null,null,null,194,null,106421,24577,null,null,null,212000,29167,null,15397431,194,null,null,550000,12000,null,null,714,47,212000,null,null,null,null,null,null,null,null,null,null,null,null,null,null,null,null,null,null,null,null,null,null,null,null,null,null,null,null,null,null,null,null,null,null,null,null,null,null,null,null,null,129000,null,null,null,null,null,null,null,null,null,20176,null,null,null,null,null,null,null,null,null,null,null,null,null,null,null,null,null,null,null,null,null,295729,null,null,372884,null,null,null,null,null,null,null,1455968,null,76671,null,null,22523,5480,212000,null,null,null,30000,null,null,null,13000,125000,null,null,null,null,null,null,null,null,null,null,"SA Monetary value (2dp) > 0.00","CGT14"]
[29,"","CGT16","Allowable costs (including purchase price)",null,null,null,null,null,null,null,null,null,null,null,null,null,null,null,null,null,null,null,null,null,null,null,null,null,null,null,null,null,null,null,null,null,null,null,null,null,null,null,null,null,null,12000,null,null,null,null,null,null,null,null,null,null,null,4274491,null,null,null,null,null,null,null,null,48046,null,null,null,null,null,null,null,null,null,null,null,null,null,null,null,null,null,null,null,null,null,null,null,null,null,null,null,null,null,null,null,null,null,null,null,null,null,null,12000,null,null,null,12000,null,null,197000,null,null,197000,null,null,null,null,null,null,null,null,null,2768928,null,null,null,null,null,null,null,null,null,null,283675,null,null,null,null,101,null,null,null,null,null,null,80884,28,null,null,null,197000,16754,null,730,null,null,null,520915,null,null,null,9630,null,197000,null,null,null,null,null,null,null,null,null,null,null,null,null,null,null,null,null,null,null,null,null,null,null,null,null,null,null,null,null,null,null,null,null,null,null,null,null,null,null,null,null,56000,null,null,null,null,null,null,null,null,null,30444,null,null,null,null,null,null,null,null,null,null,null,null,null,null,null,null,null,null,null,null,null,251014,null,null,152441,null,null,null,null,null,null,null,1492970,null,18646,null,null,26788,null,197000,null,null,null,17000,null,null,null,null,32500,null,null,null,null,null,null,null,null,null,"Positive only","SA Monetary value (2dp) > 0.00"]
[30,"","CGT17","Gains in the year, before losses - do not include attributed gains included in box 18",null,null,null,null,null,null,null,null,null,null,null,null,null,null,null,null,null,null,null,null,null,null,null,null,null,null,null,null,null,null,null,null,null,null,null,null,null,null,null,null,null,null,{"$f":"MAX(0,AU29-AU30)","v":25000},null,null,null,null,null,null,null,null,{"$f":"MAX(0,BD29-BD30)","v":12000},null,null,1598,null,null,null,null,null,null,null,null,{"$f":"MAX(0,BP29-BP30)","v":126954},null,null,null,null,null,null,{"$f":"MAX(0,BW29-BW30)","v":12000},null,null,null,null,null,null,null,null,null,null,null,null,null,null,null,null,null,null,null,null,null,null,null,null,null,null,null,null,null,{"$f":"MAX(0,DA29-DA30)","v":300000},null,{"$f":"MAX(0,DC29-DC30)","v":25000},null,null,null,{"$f":"MAX(0,DG29-DG30)","v":25000},null,null,163507,null,null,{"$f":"MAX(0,DM29-DM30)","v":15000},null,null,null,null,null,null,null,null,null,33548,null,null,null,null,null,null,null,null,null,null,{"$f":"MAX(0,EH29-EH30)","v":5777},null,null,null,null,{"$f":"MAX(0,EM29-EM30)","v":34274861},null,null,null,null,{"$f":"MAX(0,ER29-ER30)","v":194},null,24458,24599,null,null,null,{"$f":"MAX(0,EY29-EY30)","v":15000},16649,null,15397431,{"$f":"MAX(0,FC29-FC30)","v":194},null,null,29085,{"$f":"MAX(0,FG29-FG30)","v":12000},null,null,null,47,15000,null,null,null,null,null,null,null,null,null,null,null,null,null,null,null,null,null,null,null,null,null,null,null,null,null,null,null,null,null,null,null,null,null,null,null,null,null,null,null,null,null,{"$f":"MAX(0,HB29-HB30)","v":73000},null,null,null,null,null,null,null,null,null,null,null,null,null,null,null,null,null,null,null,null,null,null,null,null,null,null,null,null,null,null,null,{"$f":"MAX(0,IH29-IH30)","v":44715},null,null,{"$f":"MAX(0,IK29-IK30)","v":220443},null,null,null,null,null,null,null,2086,null,{"$f":"MAX(0,IU29-IU30)","v":58025},null,null,{"$f":"MAX(0,IX29-IX30)","v":0},{"$f":"MAX(0,IY29-IY30)","v":5480},{"$f":"MAX(0,IZ29-IZ30)","v":15000},null,null,null,{"$f":"MAX(0,JD29-JD30)","v":13000},null,null,null,{"$f":"MAX(0,JH29-JH30)","v":13000},{"$f":"MAX(0,JI29-JI30)","v":92500},null,null,null,null,null,null,null,null,null,null,"SA Monetary value (2dp) > 0.00","CGT14"]
[31,"","CGT17.0","Amount claimed under FIG",null,null,null,null,null,null,null,null,null,null,null,null,null,null,null,null,null,null,null,null,null,null,null,null,null,null,null,null,null,null,null,null,null,null,null,null,null,null,null,null,null,null,null,null,null,null,null,null,null,null,null,null,null,null,null,null,null,null,null,null,null,null,null,null,null,null,null,null,null,null,null,null,null,null,null,null,null,null,null,null,null,null,null,null,null,null,null,null,null,null,null,null,null,null,null,null,null,null,null,null,null,null,null,null,null,null,null,null,null,null,null,null,null,null,null,null,null,null,null,null,null,null,null,null,null,null,null,null,null,null,null,null,null,null,null,null,null,null,null,null,null,null,null,null,null,null,null,null,null,null,null,null,null,null,null,null,null,null,null,null,null,null,null,null,null,null,null,null,null,null,null,null,null,null,null,null,null,null,null,null,null,null,null,null,null,null,null,null,null,null,null,null,null,null,null,null,null,null,null,null,null,null,null,null,null,null,null,null,null,null,null,null,null,null,null,null,null,null,null,null,null,null,null,null,null,null,null,null,null,null,null,null,null,null,null,null,null,null,null,null,220443]
[32,"","CGT17.1","Amount relating to disposals of non-residential land and buildings",null,null,null,null,null,null,null,null,null,null,null,null,null,null,null,null,null,null,null,null,null,null,null,null,null,null,null,null,null,null,null,null,null,null,null,null,null,null,null,null,null,null,null,null,null,null,null,null,null,null,null,null,null,null,null,null,null,null,null,null,null,null,null,null,null,null,null,null,null,null,null,null,null,null,null,null,null,null,null,null,null,null,null,null,null,null,null,null,null,null,null,null,null,null,null,null,null,null,null,null,null,null,null,null,null,null,null,null,null,null,null,null,null,null,null,null,null,null,null,null,null,null,null,null,null,null,null,null,null,null,null,null,null,null,null,null,null,null,null,null,null,null,null,null,null,null,null,null,null,null,null,null,null,null,null,null,null,null,12000]
[33,"","CGT17.2","Amount of box 17 where BADR is claimed (residential property and non-residential land and buildings)",null,null,null,null,null,null,null,null,null,null,null,null,null,null,null,null,null,null,null,null,null,null,null,null,null,null,null,null,null,null,null,null,null,null,null,null,null,null,null,null,null,null,null,null,null,null,null,null,null,null,null,null,null,null,null,null,null,null,null,null,null,null,null,null,null,null,null,null,null,null,null,null,null,null,null,null,null,null,null,null,null,null,null,null,null,null,null,null,null,null,null,null,null,null,null,null,null,null,null,null,null,null,null,null,null,null,null,null,null,null,null,null,null,null,null,null,null,null,null,null,null,null,null,null,null,null,null,null,null,null,null,null,null,null,null,null,null,null,null,null,null,null,null,null,null,null,null,null,null,null,null,null,null,null,null,null,null,null,12000]
[34,{"$f":"IF(CGT_IND>1,IF(HLOOKUP(CGT_IND-1,CGT_RANGE,A35)=\"\",\"\",HLOOKUP(CGT_IND-1,CGT_RANGE,A35)),\"\")","v":""},"CGT17.3","Amount of box 17 where BADR is claimed (listed and unlisted shares and securities)"]
[35,"","CGT17.4","Amount of box 17 where BADR is claimed (other assets)"]
[36,"","CGT18","Attributed gains where personal losses cannot be set off",null,null,null,null,null,null,null,null,null,null,null,null,null,null,null,null,null,null,null,null,null,null,null,null,null,null,null,null,null,null,null,null,null,null,null,null,null,null,null,null,null,null,null,null,null,null,null,null,null,null,null,null,null,null,null,null,null,null,null,null,null,null,null,null,null,null,null,null,null,null,null,null,null,null,null,null,null,null,null,null,null,null,null,null,null,null,null,null,null,null,null,null,null,null,null,null,null,null,null,null,null,null,null,null,null,null,null,null,null,null,null,null,8000,null,null,null,null,null,null,null,null,null,null,null,null,null,null,null,null,null,null,null,null,null,null,null,null,null,null,null,null,null,null,null,null,null,null,null,null,496629,8000,null,null,null,null,null,null,null,null,null,null,null,null,98125.23,null,null,null,null,null,null,null,null,null,null,null,null,null,null,null,null,null,null,null,null,null,null,null,null,null,null,null,null,null,null,null,null,null,null,null,null,null,null,null,null,null,null,null,null,null,null,null,null,null,null,null,null,null,null,null,null,null,null,17654,null,null,null,null,null,null,null,null,null,null,null,null,null,null,null,null,null,null,null,null,null,null,null,null,null,null,null,null,null,null,null,null,8000,null,null,null,null,null,null,null,null,null,null,null,null,null,null,null,null,null,null,null,"SA Monetary value (2dp) > 0.00"]
[37,"","CGT19","Losses in the year",null,null,null,null,null,null,null,null,null,null,null,null,null,null,null,null,null,null,null,null,null,null,null,null,null,null,null,null,null,null,null,null,null,null,null,null,null,null,null,null,null,null,null,null,null,null,null,null,null,null,null,null,null,null,98400,null,null,null,null,null,null,null,null,null,null,null,null,null,null,null,null,null,null,null,null,null,null,null,null,null,null,null,null,null,null,null,null,null,null,null,null,null,null,null,null,null,null,null,null,null,null,null,null,null,null,null,null,null,null,null,null,null,null,null,null,null,null,null,null,null,null,null,37509,null,null,null,null,null,null,null,null,null,null,null,null,null,null,null,null,null,null,null,null,null,null,285,null,null,null,null,null,5136,null,null,null,null,null,null,null,null,null,8916,null,null,null,null,null,null,null,null,null,null,null,null,null,null,null,null,null,null,null,null,null,null,null,null,null,null,null,null,null,null,null,null,null,null,null,null,null,null,null,null,null,null,null,null,null,null,null,null,null,null,null,null,null,10268,null,null,null,null,null,null,null,null,null,null,null,null,null,null,null,null,null,null,null,null,null,null,null,null,null,null,null,null,null,null,null,null,39088,null,null,null,null,26788,null,null,null,null,null,null,null,null,null,null,null,null,null,null,null,null,null,null,null,null,"If CGT14 is present then at least one of CGT17 and CGT19 must be present","SA Monetary value (2dp) > 0.00","CGT14"]
[38,"","CGT20","If you are making any claim or election, put the relevant code in the box",null,null,null,null,null,null,null,null,null,null,null,null,null,null,null,null,null,null,null,null,null,null,null,null,null,null,null,null,null,null,null,null,null,null,null,null,null,null,null,null,null,null,"ERL",null,null,null,null,null,null,null,null,"ERL",null,null,null,null,null,null,null,null,null,null,null,"BAD",null,null,null,null,"SIR",null,"ERL",null,null,null,null,null,null,null,null,null,null,null,null,null,null,null,null,null,null,null,null,null,null,"SIR",null,null,null,null,null,null,"ERL",null,"ERL",null,null,null,"ERL",null,null,null,null,null,null,null,null,null,null,null,null,null,null,null,null,null,null,null,null,null,null,null,null,null,null,null,null,null,null,null,null,null,null,null,null,null,null,null,null,"SIR",null,null,null,null,null,null,null,null,null,null,"ERL",null,null,"ERL","ERL",null,null,null,null,null,null,null,null,null,null,null,null,null,null,null,null,null,null,null,null,null,null,null,null,null,null,null,null,null,null,null,null,null,null,null,"INV",null,null,null,null,null,null,null,null,null,null,null,null,null,null,null,null,null,null,null,null,null,null,null,"ERL",null,null,null,null,null,null,null,null,null,null,null,null,null,null,null,null,null,null,null,null,null,null,null,null,null,null,null,null,null,null,null,null,null,null,null,null,"ERL",null,null,null,null,"ERL",null,null,null,null,null,null,null,null,null,"Must be in the format AAA","SA CGT Relief Code (3 upper case letters)"]
[39,"","CGT21",{"$f":"\"If, during \"&tax_year&\",  you  submitted a Real Time Transaction Tax return for the disposal of an asset of this type, put the overall gain or loss  in the box -  include the  individual amounts of gains or losses in the box 17 total for gains and box 19 total for losses\"","v":"If, during 2025-26,  you  submitted a Real Time Transaction Tax return for the disposal of an asset of this type, put the overall gain or loss  in the box -  include the  individual amounts of gains or losses in the box 17 total for gains and box 19 total for losses"},null,null,null,null,null,null,null,null,null,null,null,null,null,null,null,null,null,null,null,null,null,null,null,null,null,null,null,null,null,null,null,null,null,null,null,null,null,null,null,null,null,null,null,null,null,null,null,null,null,null,null,null,null,null,null,null,null,null,null,null,null,null,null,null,null,null,null,null,null,null,null,null,null,null,null,null,null,null,null,null,null,null,null,null,null,null,null,null,null,null,null,null,null,null,null,null,null,null,null,null,null,null,null,null,null,null,null,null,null,null,null,null,null,null,null,null,null,null,null,null,null,null,null,null,null,null,null,null,null,null,null,null,null,null,null,null,null,null,null,null,null,null,null,null,null,null,null,null,null,null,null,null,null,null,null,null,null,null,12000,null,null,null,null,null,null,null,null,null,null,null,null,null,null,null,null,null,null,null,null,null,null,null,null,null,null,null,null,null,null,null,null,null,null,null,null,null,null,null,null,null,null,null,null,null,null,null,null,null,null,null,null,null,null,null,null,null,null,null,null,null,null,null,null,null,null,null,null,null,null,null,null,null,null,null,null,null,null,null,null,null,null,null,null,null,null,null,null,null,null,null,null,null,null,null,null,null,null,null,null,13000,null,null,null,null,null,null,null,null,null,null,null,null,null,null,"If CGT21 is positive then CGT17 must be present\nIf CGT21 is positive it must be less than or equal to CGT17\nIf CGT21 is negative then CGT19 must be present\nIf CGT21 is negative then its absolute value must be less than or equal to CGT19","SA Monetary value (2dp)"]
[40,"","CGT22","Tax on gains in box 21 already charged",null,null,null,null,null,null,null,null,null,null,null,null,null,null,null,null,null,null,null,null,null,null,null,null,null,null,null,null,null,null,null,null,null,null,null,null,null,null,null,null,null,null,null,null,null,null,null,null,null,null,null,null,null,null,null,null,null,null,null,null,null,null,null,null,null,null,null,null,null,null,null,null,null,null,null,null,null,null,null,null,null,null,null,null,null,null,null,null,null,null,null,null,null,null,null,null,null,null,null,null,null,null,null,null,null,null,null,null,null,null,null,null,null,null,null,null,null,null,null,null,null,null,null,null,null,null,null,null,null,null,null,null,null,null,null,null,null,null,null,null,null,null,null,null,null,null,null,null,null,null,null,null,null,null,null,null,null,null,5000,null,null,null,null,null,null,null,null,null,null,null,null,null,null,null,null,null,null,null,null,null,null,null,null,null,null,null,null,null,null,null,null,null,null,null,null,null,null,null,null,null,null,null,null,null,null,null,null,null,null,null,null,null,null,null,null,null,null,null,null,null,null,null,null,null,null,null,null,null,null,null,null,null,null,null,null,null,null,null,null,null,null,null,null,null,null,null,null,null,null,null,null,null,null,null,null,null,null,null,null,170,null,null,null,null,null,null,null,null,null,null,null,null,null,null,null,"SA Monetary value (2dp) > 0.00","CGT21"]
[41,"","CGT23","Number of disposals",null,null,null,null,null,null,null,null,null,null,null,null,null,null,null,null,null,null,null,null,null,null,null,null,null,null,null,null,null,null,null,null,null,null,null,null,null,null,null,null,null,null,null,null,null,null,null,null,null,1,null,null,null,null,null,null,null,null,null,null,null,null,null,null,null,null,null,79,2,null,null,null,null,null,null,null,null,null,null,null,null,null,null,19,null,null,null,null,null,null,null,null,null,2,null,null,null,null,null,null,null,null,null,null,null,null,null,null,null,null,null,null,null,null,3,null,null,null,null,null,null,null,19,null,72,null,null,null,null,3,5,null,null,null,null,null,null,58,4,4,2,null,7,20,null,10,1,2,11,null,null,2,5,3,20,1,null,1,null,1,null,89,9,null,null,3,null,null,null,null,null,null,null,null,null,null,null,null,null,null,null,null,null,null,null,null,null,null,null,null,null,null,null,null,null,null,null,null,3,null,null,null,null,null,null,18,null,null,null,null,3,null,null,null,null,null,265,null,null,null,null,null,null,null,null,null,null,null,null,null,1,null,null,null,null,15,null,null,6,null,5,null,null,null,null,null,null,null,2,null,2,null,null,182,null,null,null,null,null,7,null,null,null,null,null,44,1,null,null,null,null,null,1,null,null,"Integer value greater > 0"]
[42,34228,"CGT24","Disposal proceeds",null,null,null,null,null,null,null,null,null,null,null,null,null,null,null,null,null,null,null,null,null,null,null,null,null,null,null,null,null,null,null,null,null,null,null,null,null,null,null,null,null,null,null,null,null,null,null,null,null,36593,null,null,null,null,null,null,null,null,null,null,null,null,null,null,null,null,null,495505,65000,null,null,null,null,null,null,null,null,114067,null,null,null,null,null,125188.08,null,null,null,null,null,null,null,null,null,65000,null,null,null,null,null,null,null,null,null,null,null,null,null,null,null,null,null,null,null,null,99000,null,null,95696,null,null,null,null,1208862,null,15428,null,null,null,null,351686,1858493,null,null,null,null,null,null,204621,213643,15373.75,null,null,55391,111839,null,639603,3573,65000,11,null,null,107003,22796,7923,111839,2189,null,130764,null,2189,null,5016682,27657.98,null,null,99000,null,34228,null,null,null,null,null,null,null,null,null,null,null,null,null,null,null,null,null,null,null,null,null,null,null,null,null,null,null,null,null,null,42000,null,null,null,null,null,null,30000,null,null,null,null,99000,null,null,null,null,null,595126,null,null,null,null,null,null,null,null,null,null,null,null,null,563282,null,null,null,null,7755,null,null,1199883,null,223355,null,null,null,null,null,null,null,94213,null,null,null,null,1676135,null,null,null,null,null,430813,null,null,null,null,null,157998,1700,null,null,null,null,null,1019285,null,null,"SA Monetary value (2dp) > 0.00","CGT23"]
[43,26819,"CGT25","Allowable costs (including purchase price)",null,null,null,null,null,null,null,null,null,null,null,null,null,null,null,null,null,null,null,null,null,null,null,null,null,null,null,null,null,null,null,null,null,null,null,null,null,null,null,null,null,null,null,null,null,null,null,null,null,null,null,null,null,null,null,null,null,null,null,null,null,null,null,null,null,null,null,473514,25000,null,null,null,null,null,null,null,null,28081,null,null,null,null,null,119689,null,null,null,null,null,null,null,null,null,25000,null,null,null,null,null,null,null,null,null,null,null,null,null,null,null,null,null,null,null,null,9000,null,null,90000,null,null,null,null,200238,null,17174,null,null,null,null,322272,1517186,null,null,null,null,null,null,196941,217404,40418,null,null,43251,96816,null,648287,4212,25000,null,null,null,66947,34346,8183,96816,14000,null,91395,null,14000,null,4795696,11310,null,null,9000,null,26819,null,null,null,null,null,null,null,null,null,null,null,null,null,null,null,null,null,null,null,null,null,null,null,null,null,null,null,null,null,null,7000,null,null,null,null,null,null,40000,null,null,null,null,9000,null,null,null,null,null,584869,null,null,null,null,null,null,null,null,null,null,null,null,null,538211,null,null,null,null,7899,null,null,824670,null,200000,null,null,null,null,null,null,null,107108,null,22000,null,null,1149663,null,null,null,null,null,450818,null,null,null,null,null,146820,821,null,null,null,null,null,24340,null,null,"SA Monetary value (2dp) > 0.00"]
[44,7409,"CGT26","Gains in the year, before losses",null,null,null,null,null,null,null,null,null,null,null,null,null,null,null,null,null,null,null,null,null,null,null,null,null,null,null,null,null,null,null,null,null,null,null,null,null,null,null,null,null,null,null,null,null,null,null,null,null,null,null,null,null,null,null,null,null,null,null,null,null,null,null,null,null,null,null,32056,{"$f":"MAX(0,BU43-BU44)","v":40000},null,null,null,null,null,null,null,null,{"$f":"MAX(0,CD43-CD44)","v":85986},null,null,null,null,null,5499,null,null,null,null,null,null,null,null,null,{"$f":"MAX(0,CT43-CT44)","v":40000},null,null,null,null,null,null,null,null,null,null,null,null,null,null,null,null,null,null,null,null,{"$f":"MAX(0,DO43-DO44)","v":90000},null,null,{"$f":"MAX(0,DR43-DR44)","v":5696},null,null,null,null,54019,null,null,null,null,null,null,{"$f":"MAX(0,ED43-ED44)","v":29414},{"$f":"MAX(0,EE43-EE44)","v":341307},null,null,null,null,null,null,8588,1087,null,52483,null,{"$f":"MAX(0,EQ43-EQ44)","v":12140},{"$f":"MAX(0,ER43-ER44)","v":15023},null,35981,null,{"$f":"MAX(0,EV43-EV44)","v":40000},38289,null,null,{"$f":"MAX(0,EZ43-EZ44)","v":40056},9997,null,17046,{"$f":"MAX(0,FD43-FD44)","v":0},null,{"$f":"MAX(0,FF43-FF44)","v":39369},null,0,null,220986,16347.98,0,0,{"$f":"MAX(0,FN43-FN44)","v":90000},{"$f":"MAX(0,FO43-FO44)","v":0},{"$f":"MAX(0,FP43-FP44)","v":7409},null,null,null,null,null,null,null,null,null,null,null,null,null,null,null,null,null,null,null,null,null,null,null,null,null,null,null,null,null,null,{"$f":"MAX(0,GU43-GU44)","v":35000},null,null,null,null,null,null,null,null,null,null,null,{"$f":"MAX(0,HG43-HG44)","v":90000},null,null,null,null,null,76221,null,null,null,null,null,null,null,null,null,null,null,null,null,25072,null,null,null,null,387,null,null,375213,null,23355,null,null,null,null,null,null,null,null,null,0,null,null,579723,null,null,null,null,null,null,null,null,null,0,0,19575,{"$f":"MAX(0,JK43-JK44)","v":879},null,null,null,null,null,{"$f":"MAX(0,JQ43-JQ44)","v":994945},null,null,"SA Monetary value (2dp) > 0.00","{{419}}CGT23"]
[45,"","CGT26.1","Amount claimed under FIG",null,null,null,null,null,null,null,null,null,null,null,null,null,null,null,null,null,null,null,null,null,null,null,null,null,null,null,null,null,null,null,null,null,null,null,null,null,null,null,null,null,null,null,null,null,null,null,null,null,null,null,null,null,null,null,null,null,null,null,null,null,null,null,null,null,null,null,null,null,null,null,null,null,null,null,null,null,null,null,null,null,null,null,null,null,null,null,null,null,null,null,null,null,null,null,null,null,null,null,null,null,null,null,null,null,null,null,null,null,null,null,null,null,null,null,null,null,null,null,null,null,null,null,null,null,null,null,null,null,null,null,null,null,null,null,null,null,null,null,null,null,null,null,null,null,null,null,null,null,null,null,null,null,null,null,null,null,null,null,null,null,null,null,null,null,null,null,null,null,null,null,null,null,null,null,null,null,null,null,null,null,null,null,null,null,null,null,null,null,null,null,null,null,null,null,null,null,null,null,null,null,null,null,null,null,null,null,null,null,null,null,null,null,null,null,null,null,null,null,null,null,null,null,null,null,null,null,null,null,null,null,null,null,null,null,null,null,null,null,null,23355]
[46,"","CGT27","Losses in the year",null,null,null,null,null,null,null,null,null,null,null,null,null,null,null,null,null,null,null,null,null,null,null,null,null,null,null,null,null,null,null,null,null,null,null,null,null,null,null,null,null,null,null,null,null,null,null,null,null,14161,null,null,null,null,null,null,null,null,null,null,null,null,null,null,null,null,null,17618,null,null,null,null,null,null,null,null,null,1003,null,null,null,null,null,null,null,null,null,null,null,null,null,null,null,null,null,null,null,null,null,null,null,null,null,null,null,null,null,null,null,null,null,null,null,null,null,null,null,null,null,null,null,null,10379,null,1746,null,null,null,null,10643,27991,null,null,null,null,null,null,5691,4848,25046,null,null,null,2023,null,44598,642,null,9866,null,null,null,21547,260,2023,11811,null,null,null,11811,null,309374,null,null,null,null,null,null,null,null,null,null,null,null,null,null,null,null,null,null,null,null,null,null,null,null,null,null,null,null,null,null,null,null,null,null,null,null,null,null,null,null,null,null,null,{"$f":"MAX(0,HB44-HB43)","v":10000},null,null,null,null,null,null,null,null,null,null,65964,null,null,null,null,null,null,null,null,null,null,null,null,null,null,null,null,null,null,531,null,null,null,null,null,null,null,null,null,null,null,null,12895,null,22000,null,null,53251,null,null,null,null,null,20005,null,null,null,null,null,8397,null,null,null,null,null,null,null,null,"If CGT23 is present then at least one of CGT26 and CGT27 must be present","SA Monetary value (2dp) > 0.00","CGT23"]
[47,"","CGT28","If you are making any claim or election, put the relevant code in the box",null,null,null,null,null,null,null,null,null,null,null,null,null,null,null,null,null,null,null,null,null,null,null,null,null,null,null,null,null,null,null,null,null,null,null,null,null,null,null,null,null,null,null,null,null,null,null,null,null,null,null,null,null,null,null,null,null,null,null,null,null,null,null,null,null,null,null,null,"SIR",null,null,null,null,null,null,null,null,null,null,null,null,null,null,null,null,null,null,null,null,null,null,null,null,"SIR",null,null,null,null,null,null,null,null,null,null,null,null,null,null,null,null,null,null,null,null,null,null,null,null,null,null,null,null,"OTH",null,null,null,null,null,null,null,null,null,null,null,null,null,null,null,null,null,null,null,null,null,null,null,null,"SIR",null,null,null,null,null,null,null,null,null,null,null,null,null,null,null,null,null,null,null,null,null,null,null,null,null,null,null,null,null,null,null,null,null,null,null,null,null,null,null,null,null,null,null,null,null,null,null,null,null,null,null,null,null,null,null,null,null,null,null,null,null,null,null,null,null,null,null,null,null,null,null,null,null,null,null,null,null,null,null,null,null,null,null,null,null,null,null,null,null,null,null,null,null,null,null,null,null,null,null,null,null,null,"NVC",null,null,null,null,null,null,null,null,null,null,null,null,null,null,null,null,null,null,null,null,null,null,null,"Must be in the format AAA","SA CGT Relief Code (3 upper case letters)"]
[48,"","CGT29",{"$f":"\"If, during \"&tax_year&\", you  submitted a Real Time Transaction Tax return for the disposal of listed shares or securities, put the overall gain or loss in the box -  include the  individual amounts of gains or losses in  box 26 and losses in box 27\"","v":"If, during 2025-26, you  submitted a Real Time Transaction Tax return for the disposal of listed shares or securities, put the overall gain or loss in the box -  include the  individual amounts of gains or losses in  box 26 and losses in box 27"},null,null,null,null,null,null,null,null,null,null,null,null,null,null,null,null,null,null,null,null,null,null,null,null,null,null,null,null,null,null,null,null,null,null,null,null,null,null,null,null,null,null,null,null,null,null,null,null,null,null,null,null,null,null,null,null,null,null,null,null,null,null,null,null,null,null,null,null,null,null,null,null,null,null,null,null,null,null,null,null,null,null,null,null,null,null,null,null,null,null,null,null,null,null,null,null,null,null,null,null,null,null,null,null,null,null,null,null,null,null,null,null,null,null,null,null,null,null,null,null,null,null,null,null,null,null,null,null,null,29414,341307,null,null,null,null,null,null,2896,null,null,null,null,null,null,null,null,null,null,28423,null,null,null,null,null,null,null,null,null,null,null,null,null,null,null,null,null,null,null,null,null,null,null,null,null,null,null,null,null,null,null,null,null,null,null,null,null,null,null,null,null,null,null,null,null,null,null,null,null,null,null,null,null,null,null,null,null,null,null,null,null,null,null,null,null,null,null,null,null,null,null,null,null,null,null,null,null,null,null,null,null,null,null,null,null,null,null,null,null,null,null,null,null,null,null,null,null,null,null,null,null,null,null,null,null,null,null,null,null,null,null,null,null,null,null,null,null,null,null,null,null,null,null,null,null,"a) Can be negative\nb) If CGT29 positive, then must be less than or equal to CGT26\nc) If CGT29 negative, then absolute value CGT29 must be less than or equal to CGT27\nd) if entry in CGT23 present then CGT26 OR CGT27 OR CGT29 must also be present\ne) If CGT29 is positive then CGT26 must be present\nf) If CGT29 is negative then CGT27 must be present","SA Monetary value (2dp)"]
[49,"","CGT30","Tax on gains in box 29 already charged",null,null,null,null,null,null,null,null,null,null,null,null,null,null,null,null,null,null,null,null,null,null,null,null,null,null,null,null,null,null,null,null,null,null,null,null,null,null,null,null,null,null,null,null,null,null,null,null,null,null,null,null,null,null,null,null,null,null,null,null,null,null,null,null,null,null,null,null,null,null,null,null,null,null,null,null,null,null,null,null,null,null,null,null,null,null,null,null,null,null,null,null,null,null,null,null,null,null,null,null,null,null,null,null,null,null,null,null,null,null,null,null,null,null,null,null,null,null,null,null,null,null,null,null,null,null,null,null,null,6491,37854,null,null,null,null,null,null,null,null,null,null,null,null,null,null,null,null,null,null,null,null,13450,null,null,null,null,null,null,null,null,null,null,null,null,null,null,null,null,null,null,null,null,null,null,null,null,null,null,null,null,null,null,null,null,null,null,null,null,null,null,null,null,null,null,null,null,null,null,null,null,null,null,null,null,null,null,null,null,null,null,null,null,null,null,null,null,null,null,null,null,null,null,null,null,null,null,null,null,null,null,null,null,null,null,null,null,null,null,null,null,null,null,null,null,null,null,null,null,null,null,null,null,null,null,null,null,null,null,null,null,null,null,null,null,null,null,null,null,null,null,null,null,null,null,null,"SA Monetary value (2dp) > 0.00"]
[50,"","CGT31","Number of disposals",null,null,null,null,null,null,null,null,null,null,null,null,null,null,null,null,null,null,null,null,null,null,null,null,null,null,null,null,null,null,null,null,null,null,null,null,null,null,null,null,null,null,1,null,null,null,null,null,null,1,null,1,null,null,1,null,null,null,null,null,null,null,null,1,null,null,null,null,null,null,1,null,null,null,null,null,null,null,null,null,null,null,null,null,null,null,null,null,null,null,null,null,null,null,null,null,null,null,null,null,1,null,1,null,null,null,1,null,null,null,null,null,null,null,null,null,null,null,null,null,null,null,3,null,null,null,null,null,null,null,null,null,null,null,null,null,null,null,null,2,3,null,null,1,null,null,null,null,null,null,null,null,4,6,1,null,2,10,1,null,null,15,6,null,null,null,6,null,null,null,null,null,null,null,null,null,null,null,null,null,null,null,null,null,null,null,null,null,null,null,null,null,null,null,null,null,null,null,1,null,null,null,null,null,null,1,null,null,null,null,null,null,1,null,null,null,8,null,null,1,null,null,null,null,null,null,null,null,null,null,null,null,null,null,null,6,null,null,null,null,null,null,null,null,null,null,null,null,66,null,null,null,null,39,null,null,null,null,null,216,null,null,null,null,null,null,null,null,null,null,null,null,null,null,null,"Integer value greater > 0"]
[51,"","CGT32","Disposal proceeds",null,null,null,null,null,null,null,null,null,null,null,null,null,null,null,null,null,null,null,null,null,null,null,null,null,null,null,null,null,null,null,null,null,null,null,null,null,null,null,null,null,null,25000,null,null,null,null,null,null,null,null,27000,null,null,108000,null,null,null,null,null,null,null,null,102000,null,null,null,null,null,null,27000,null,null,null,null,null,null,null,null,null,null,null,null,null,null,null,null,null,null,null,null,null,null,null,null,null,null,null,null,null,19442,null,25000,null,null,null,25000,null,null,286,null,null,null,null,null,null,null,null,null,null,null,null,38529,null,null,null,null,null,null,null,null,null,null,1856000,null,null,null,null,null,606667,null,null,null,37288,null,null,null,null,null,null,null,null,14741,3573,37288,null,69219.14,4379521,27000,null,null,568324,95841,null,null,null,203123,null,null,null,null,null,null,null,null,null,null,null,null,null,null,null,null,null,null,null,null,null,null,null,null,null,null,null,null,null,null,null,20000,null,null,null,null,null,null,10000,null,null,null,null,null,null,20000,null,null,null,683814,null,null,13788,null,null,null,null,null,null,null,null,null,null,null,null,null,null,null,9792,null,null,null,null,null,null,null,null,null,null,null,null,1825164,null,null,null,null,2404797,null,null,null,null,null,43153,null,null,null,null,null,null,null,106014,null,null,null,null,null,null,null,"SA Monetary value (2dp) > 0.00"]
[52,"","CGT33","Allowable costs (including purchase price)",null,null,null,null,null,null,null,null,null,null,null,null,null,null,null,null,null,null,null,null,null,null,null,null,null,null,null,null,null,null,null,null,null,null,null,null,null,null,null,null,null,null,null,null,null,null,null,null,null,null,null,null,null,null,3000,null,null,null,null,null,null,null,null,200,null,null,null,null,null,null,null,null,null,null,null,null,null,null,null,null,null,null,null,null,null,null,null,null,null,null,null,null,null,null,null,null,null,null,null,null,833,null,null,null,null,null,null,null,null,null,null,null,null,null,null,null,null,null,null,null,null,null,48125,null,null,null,null,null,null,null,null,null,null,16,null,null,null,null,null,432895,null,null,null,17826,null,null,null,null,null,null,null,null,16666,109,17826,null,71787,null,null,null,null,544028,82227,null,null,null,38133,null,null,null,null,null,null,null,null,null,null,null,null,null,null,null,null,null,null,null,null,null,null,null,null,null,null,null,null,null,null,null,1000,null,null,null,null,null,null,15000,null,null,null,null,null,null,1000,null,null,null,342782,null,null,14432,null,null,null,null,null,null,null,null,null,null,null,null,null,null,null,15084,null,null,null,null,null,null,null,null,null,null,null,null,1297116,null,null,null,null,1623881,3836,null,null,null,null,23699,null,null,null,null,null,null,null,151670,null,null,null,null,null,null,"Positive only","SA Monetary value (2dp) > 0.00"]
[53,"","CGT34","Gains in the year, before losses",null,null,null,null,null,null,null,null,null,null,null,null,null,null,null,null,null,null,null,null,null,null,null,null,null,null,null,null,null,null,null,null,null,null,null,null,null,null,null,null,null,null,{"$f":"MAX(0,AU52-AU53)","v":25000},null,null,null,null,null,null,null,null,{"$f":"MAX(0,BD52-BD53)","v":27000},null,null,{"$f":"MAX(0,BG52-BG53)","v":105000},null,null,null,null,null,null,null,null,{"$f":"MAX(0,BP52-BP53)","v":101800},null,null,null,null,null,null,{"$f":"MAX(0,BW52-BW53)","v":27000},null,null,null,null,null,null,null,null,null,null,null,null,null,null,null,null,null,null,null,null,null,null,null,null,null,null,null,null,null,{"$f":"MAX(0,DA52-DA53)","v":18609},null,{"$f":"MAX(0,DC52-DC53)","v":25000},null,null,null,{"$f":"MAX(0,DG52-DG53)","v":25000},null,null,{"$f":"MAX(0,DJ52-DJ53)","v":286},null,null,null,null,null,null,null,null,null,null,null,null,9,null,null,null,null,null,null,null,null,null,null,{"$f":"MAX(0,EH52-EH53)","v":1855984},null,null,null,null,null,184167,null,null,null,{"$f":"MAX(0,ER52-ER53)","v":19462},null,null,null,null,null,null,null,null,394,{"$f":"MAX(0,FB52-FB53)","v":3464},{"$f":"MAX(0,FC52-FC53)","v":19462},null,0,4379521,{"$f":"MAX(0,FG52-FG53)","v":27000},null,null,{"$f":"MAX(0,FJ52-FJ53)","v":24296},{"$f":"MAX(0,FK52-FK53)","v":13614},null,null,null,{"$f":"MAX(0,FO52-FO53)","v":164990},null,null,null,null,null,null,null,null,null,null,null,null,null,null,null,null,null,null,null,null,null,null,null,null,null,null,null,null,null,null,null,{"$f":"MAX(0,GU52-GU53)","v":19000},null,null,null,null,null,null,null,null,null,null,null,null,null,{"$f":"MAX(0,HI52-HI53)","v":19000},null,null,null,675290,null,null,{"$f":"MAX(0,HP52-HP53)","v":0},null,null,null,null,null,null,null,null,null,null,null,null,null,null,null,1984,null,null,null,null,null,null,null,null,null,null,null,null,530490,null,null,null,null,1952821,null,null,null,null,null,21338,null,null,null,0,0,0,0,7739,null,null,null,null,null,null,"If CGT34 is present, CGT31 and CGT32 must be present","SA Monetary value (2dp) > 0.00"]
[54,"","CGT34.1","Amount claimed under FIG"]
[55,"","CGT35","Losses in the year",null,null,null,null,null,null,null,null,null,null,null,null,null,null,null,null,null,null,null,null,null,null,null,null,null,null,null,null,null,null,null,null,null,null,null,null,null,null,null,null,null,null,null,null,null,null,null,null,null,13094,null,null,null,null,105207,null,null,null,null,null,null,null,null,null,null,null,null,null,null,null,null,null,null,null,null,null,null,null,null,null,null,null,null,null,null,null,null,null,null,null,null,null,null,null,null,null,null,null,null,null,null,null,null,null,null,null,null,null,null,null,null,null,null,null,null,null,null,null,null,null,null,null,9605,null,null,null,null,null,null,null,null,null,null,{"$f":"MAX(0,EH53-EH52)","v":0},null,null,null,null,null,10395,1225,null,null,null,null,null,null,null,null,null,null,null,2319,null,null,null,3415,null,null,null,null,12165,37040,null,null,null,null,null,null,null,null,null,null,null,null,null,null,null,null,null,null,null,null,null,null,null,null,null,null,null,null,null,null,null,null,null,null,null,null,null,null,null,null,null,null,{"$f":"MAX(0,HB53-HB52)","v":5000},null,null,null,null,null,null,null,null,null,null,334258,null,null,644,null,null,null,null,null,null,null,null,null,null,null,null,null,null,null,7276,null,null,null,null,null,null,null,null,null,null,null,null,2442,null,null,null,null,1171905,3836,null,null,null,null,1885,null,null,null,null,null,null,null,53395,null,null,null,null,null,null,"If CGT31 is present then at least one of CGT34 and CGT35 must be present","SA Monetary value (2dp) > 0.00"]
[56,"","CGT36","If you are making any claim or election, put the relevant code in the box",null,null,null,null,null,null,null,null,null,null,null,null,null,null,null,null,null,null,null,null,null,null,null,null,null,null,null,null,null,null,null,null,null,null,null,null,null,null,null,null,null,null,null,null,null,null,null,null,null,null,null,null,null,null,"BAD",null,null,null,null,null,null,null,null,"BAD",null,null,null,null,null,null,null,null,null,null,null,null,null,null,null,null,null,null,null,null,null,null,null,null,null,null,null,null,null,null,null,null,null,null,null,null,null,null,null,null,null,null,null,null,null,null,null,null,null,null,null,null,null,null,null,null,null,null,null,null,null,null,null,null,null,null,null,null,null,null,null,null,null,null,null,null,null,null,null,null,null,null,null,null,null,null,null,null,null,null,null,null,null,null,null,null,null,null,null,null,null,null,null,null,null,null,null,null,null,null,null,null,null,null,null,null,null,null,null,null,null,null,null,null,null,null,null,null,null,null,null,null,null,null,null,null,null,null,null,null,null,null,null,null,null,null,null,null,null,null,null,null,"MUL",null,null,null,null,null,null,null,null,null,null,null,null,null,null,null,null,null,null,null,null,null,null,null,null,null,null,null,null,null,null,null,null,null,null,null,null,null,null,null,null,null,null,null,null,null,null,null,null,null,null,null,null,null,null,null,null,null,"Must be in the format AAA","SA CGT Relief Code (3 upper case letters)"]
[57,"","CGT37",{"$f":"\"If, during \"&tax_year&\", you  submitted a Real Time Transaction Tax return for the disposal of listed shares or securities, put the overall gain or loss in the box -  include the  individual amounts of gains or losses in  box 34 and losses in box 35\"","v":"If, during 2025-26, you  submitted a Real Time Transaction Tax return for the disposal of listed shares or securities, put the overall gain or loss in the box -  include the  individual amounts of gains or losses in  box 34 and losses in box 35"},null,null,null,null,null,null,null,null,null,null,null,null,null,null,null,null,null,null,null,null,null,null,null,null,null,null,null,null,null,null,null,null,null,null,null,null,null,null,null,null,null,null,null,null,null,null,null,null,null,null,null,null,null,null,null,null,null,null,null,null,null,null,null,null,null,null,null,null,null,null,null,null,null,null,null,null,null,null,null,null,null,null,null,null,null,null,null,null,null,null,null,null,null,null,null,null,null,null,null,null,null,null,null,null,null,null,null,null,null,null,null,null,null,null,null,null,null,null,null,null,null,null,null,null,null,null,null,null,null,null,null,null,null,null,null,null,null,null,null,null,null,null,null,null,null,null,null,null,null,null,null,null,null,null,null,null,null,null,null,null,null,null,null,null,null,null,null,null,null,null,null,null,null,null,null,null,null,null,null,null,null,null,null,null,null,null,null,null,null,null,null,null,null,null,null,null,null,null,null,null,null,null,null,null,null,null,null,null,null,null,null,null,12000,null,null,null,null,null,null,null,null,null,null,null,null,null,null,null,null,null,null,null,null,null,null,null,null,null,null,null,null,null,null,null,null,null,null,null,null,null,null,null,null,null,null,null,null,null,null,null,null,null,null,null,null,null,null,null,null,null,null,null,null,null,"a) Can be negative\nb) If CGT37 positive, then must be less than or equal to CGT34\nc) If CGT37 negative, then absolute value CGT37 must be less than or equal to CGT35\nd) if entry in CGT31 present then CGT34 OR CGT35 OR CGT37 must also be present\ne) If CGT37 positive, then CGT34 must be present\nf) If CGT37 negative, then CGT35 must be present","SA Monetary value (2dp)"]
[58,"","CGT38","Tax on gains in box 37 already charged",null,null,null,null,null,null,null,null,null,null,null,null,null,null,null,null,null,null,null,null,null,null,null,null,null,null,null,null,null,null,null,null,null,null,null,null,null,null,null,null,null,null,null,null,null,null,null,null,null,null,null,null,null,null,null,null,null,null,null,null,null,null,null,null,null,null,null,null,null,null,null,null,null,null,null,null,null,null,null,null,null,null,null,null,null,null,null,null,null,null,null,null,null,null,null,null,null,null,null,null,null,null,null,null,null,null,null,null,null,null,null,null,null,null,null,null,null,null,null,null,null,null,null,null,null,null,null,null,null,null,null,null,null,null,null,null,null,null,null,null,null,null,null,null,null,null,null,null,null,null,null,null,null,null,null,null,null,null,null,null,null,null,null,null,null,null,null,null,null,null,null,null,null,null,null,null,null,null,null,null,null,null,null,null,null,null,null,null,null,null,null,null,null,null,null,null,null,null,null,null,null,null,null,null,null,null,null,null,null,null,null,null,1795,null,null,null,null,null,null,null,null,null,null,null,null,null,null,null,null,null,null,null,null,null,null,null,null,null,null,null,null,null,null,null,null,null,null,null,null,null,null,null,null,null,null,null,null,null,null,null,null,null,null,null,null,null,null,null,null,null,null,null,null,null,"If CGT38 present, CGT37 must be present","SA Monetary value (2dp) > 0.00","CGT37"]
[59,"","CGT39","Gains exceeding the lifetime limit for Employee Shareholder Status shares",null,null,null,null,null,null,null,null,null,null,null,null,null,null,null,null,null,null,null,null,null,null,null,null,null,null,null,null,null,null,null,null,null,null,null,null,null,null,null,null,null,null,null,null,null,null,null,null,null,null,null,null,null,null,null,null,null,null,null,null,null,null,null,null,null,null,null,null,null,null,null,null,null,null,null,null,null,null,null,null,null,null,null,null,null,null,null,null,null,null,null,null,null,null,null,null,null,null,null,null,null,null,null,null,null,null,null,null,null,null,null,null,null,null,null,null,null,null,null,null,null,null,null,null,null,null,null,null,null,null,null,null,null,null,null,null,null,null,null,null,null,null,null,null,null,null,null,null,null,null,null,null,null,null,null,null,null,null,null,null,null,null,null,null,null,null,null,null,null,null,null,null,null,null,null,null,null,null,null,null,null,null,null,null,null,null,null,null,null,null,null,null,null,null,null,null,null,null,null,null,null,null,null,null,null,null,null,null,null,null,null,null,null,null,null,null,null,null,null,null,null,null,null,null,null,null,null,null,null,null,null,null,null,null,null,null,null,null,null,null,null,null,null,null,null,null,null,null,null,null,null,null,null,null,null,null,null,null,null,null,null,null,null,null,null,null,null,null,null,null,null,null,null,null,null,"SA Monetary value (2dp) > 0.00"]
[60,"","CGT40","Gains invested under Seed Enterprise Investment Scheme and qualifying for relief",null,null,null,null,null,null,null,null,null,null,null,null,null,null,null,null,null,null,null,null,null,null,null,null,null,null,null,null,null,null,null,null,null,null,null,null,null,null,null,null,null,null,null,null,null,null,null,null,null,null,null,null,null,null,null,null,null,null,null,null,null,null,null,null,null,null,null,null,null,null,null,null,null,null,null,null,null,null,null,null,null,null,null,null,null,null,null,null,null,null,null,null,null,null,null,null,null,null,null,null,null,null,null,null,null,null,null,null,null,null,null,null,null,null,null,null,null,null,null,null,null,null,null,null,null,null,null,null,null,null,null,null,null,null,null,null,null,null,null,null,null,null,null,null,null,null,null,null,null,null,null,null,null,null,null,null,null,null,null,null,null,null,null,null,null,50000,null,null,null,null,null,null,null,null,null,null,null,null,null,null,null,null,null,null,null,null,null,null,null,null,null,null,null,null,null,null,null,null,null,null,null,null,null,null,null,null,null,null,null,null,null,null,null,null,null,null,null,null,null,null,null,null,null,null,null,null,null,null,null,null,null,null,null,null,null,null,null,null,null,null,null,null,null,null,null,null,null,null,null,null,null,null,null,null,null,null,null,null,null,null,null,null,null,null,null,null,null,null,null,null,null,null,null,null,"If CGT40 present, must be less than or equal to £50,000 ","SA Monetary value (2dp) > 0.00",null,"{{674}} <= [TRAB-SEED-EIS-RELIEF-LIMIT]"]
[61,"","CGT41",{"$f":"\"Losses used against income – amount claimed against \"&tax_year&\" income\"","v":"Losses used against income – amount claimed against 2025-26 income"},null,null,null,null,null,null,null,null,null,null,null,null,null,null,null,null,null,null,null,null,null,null,null,null,null,null,null,null,null,null,null,null,null,null,null,null,null,null,null,null,null,null,null,null,null,null,null,null,null,13094,null,null,null,null,null,null,null,null,null,null,null,null,null,null,null,null,null,null,null,null,null,null,null,null,null,null,null,null,null,null,null,null,null,null,null,null,null,null,null,null,null,null,null,null,null,null,null,null,null,null,null,null,null,null,null,null,null,null,null,null,null,null,null,null,null,null,null,null,null,null,null,null,null,null,null,null,null,null,null,null,null,null,null,null,null,null,null,null,null,10395,null,null,null,null,null,null,null,null,null,null,null,null,null,null,null,null,null,null,null,null,null,null,37040,null,null,null,null,null,null,null,null,null,null,null,null,null,null,null,null,null,null,null,null,null,null,null,null,null,null,null,null,null,null,null,null,null,null,null,null,null,null,null,null,null,null,5000,null,null,null,null,null,null,null,null,null,null,18089,null,null,null,null,null,null,null,null,null,null,null,null,null,null,null,null,null,null,null,null,null,null,null,null,null,null,null,null,null,null,null,null,null,null,null,null,80784,null,null,null,null,null,null,null,null,null,null,null,null,null,null,null,null,null,null,null,null,"If CGT41 presnt, CGT35 must be present","SA Monetary value (2dp) > 0.00","CGT35"]
[62,"","CGT42","Amount in box 41 relating to share loss relief to which Enterprise Investment Scheme/Seed Enterprise Investment Scheme relief is attributable",null,null,null,null,null,null,null,null,null,null,null,null,null,null,null,null,null,null,null,null,null,null,null,null,null,null,null,null,null,null,null,null,null,null,null,null,null,null,null,null,null,null,null,null,null,null,null,null,null,null,null,null,null,null,null,null,null,null,null,null,null,null,null,null,null,null,null,null,null,null,null,null,null,null,null,null,null,null,null,null,null,null,null,null,null,null,null,null,null,null,null,null,null,null,null,null,null,null,null,null,null,null,null,null,null,null,null,null,null,null,null,null,null,null,null,null,null,null,null,null,null,null,null,null,null,null,null,null,null,null,null,null,null,null,null,null,null,null,null,10395,null,null,null,null,null,null,null,null,null,null,null,null,null,null,null,null,null,null,null,null,null,null,37040,null,null,null,null,null,null,null,null,null,null,null,null,null,null,null,null,null,null,null,null,null,null,null,null,null,null,null,null,null,null,null,null,null,null,null,null,null,null,null,null,null,null,null,null,null,null,null,null,null,null,null,null,null,18089,null,null,null,null,null,null,null,null,null,null,null,null,null,null,null,null,null,null,null,null,null,null,null,null,null,null,null,null,null,null,null,null,null,null,null,null,80784,null,null,null,null,null,null,null,null,null,null,null,null,null,null,null,null,null,null,null,null,"If CGT42 present, then must be equal to or less than CGT41","SA Monetary value (2dp) > 0.00",null,"{{697}} <= CGT41"]
[63,"","CGT43",{"$f":"\"Losses used against income – amount claimed against \"&last_year&\" income\"","v":"Losses used against income – amount claimed against 2024-25 income"},null,null,null,null,null,null,null,null,null,null,null,null,null,null,null,null,null,null,null,null,null,null,null,null,null,null,null,null,null,null,null,null,null,null,null,null,null,null,null,null,null,null,null,null,null,null,null,null,null,null,null,null,null,null,null,null,null,null,null,null,null,null,null,null,null,null,null,null,null,null,null,null,null,null,null,null,null,null,null,null,null,null,null,null,null,null,null,null,null,null,null,null,null,null,null,null,null,null,null,null,null,null,null,null,null,null,null,null,null,null,null,null,null,null,null,null,null,null,null,null,null,null,null,null,null,null,null,null,null,null,null,null,null,null,null,null,null,null,null,null,null,null,null,null,null,null,null,null,null,null,null,null,null,null,null,null,null,null,null,null,null,null,null,null,null,null,null,null,null,null,null,null,null,null,null,null,null,null,null,null,null,null,null,null,null,null,null,null,null,null,null,null,null,null,null,null,null,null,null,null,null,null,null,null,null,null,null,null,null,null,null,null,null,null,null,null,null,null,null,null,null,null,null,null,null,null,null,null,null,null,null,null,null,null,null,null,null,null,null,null,null,null,null,null,null,null,null,null,null,null,null,null,null,null,null,null,null,null,null,null,null,null,null,null,null,null,null,null,null,null,null,null,null,null,"If CGT43 present, then CGT41 + CGT43 must be equal to or less than CGT35   \n","SA Monetary value (2dp) > 0.00","CGT35"]
[64,"","CGT44","Amount in box 45 relating to shares to which Enterprise Investment Scheme/Seed Enterprise Investment Scheme relief is attributable",null,null,null,null,null,null,null,null,null,null,null,null,null,null,null,null,null,null,null,null,null,null,null,null,null,null,null,null,null,null,null,null,null,null,null,null,null,null,null,null,null,null,null,null,null,null,null,null,null,null,null,null,null,null,null,null,null,null,null,null,null,null,null,null,null,null,null,null,null,null,null,null,null,null,null,null,null,null,null,null,null,null,null,null,null,null,null,null,null,null,null,null,null,null,null,null,null,null,null,null,null,null,null,null,null,null,null,null,null,null,null,null,null,null,null,null,null,null,null,null,null,null,null,null,null,null,null,null,null,null,null,null,null,null,null,null,null,null,null,null,null,null,null,null,null,null,null,null,null,null,null,null,null,null,null,null,null,null,null,null,null,null,null,null,null,null,null,null,null,null,null,null,null,null,null,null,null,null,null,null,null,null,null,null,null,null,null,null,null,null,null,null,null,null,null,null,null,null,null,null,null,null,null,null,null,null,null,null,null,null,null,null,null,null,null,null,null,null,null,null,null,null,null,null,null,null,null,null,null,null,null,null,null,null,null,null,null,null,null,null,null,null,null,null,null,null,null,null,null,null,null,null,null,null,null,null,null,null,null,null,null,null,null,null,null,null,null,null,null,null,null,null,null,null,"If CGT44 present, then must be equal to or less than CGT43","SA Monetary value (2dp) > 0.00",null,"{{698}} <= CGT43"]
[65,"","CGT45","Losses brought forward and used in the year",null,null,null,null,null,null,null,null,null,null,null,null,null,null,null,null,null,null,null,null,null,null,null,null,null,null,null,null,null,null,null,null,null,null,null,null,null,null,null,null,null,null,null,null,null,null,null,null,null,null,null,9000,null,null,15587,null,null,null,null,null,null,null,null,1649,null,null,null,15991,null,null,9000,null,null,null,null,null,null,null,null,null,null,null,null,null,null,null,null,null,null,null,null,null,null,null,null,null,null,null,null,null,318609,null,null,null,null,null,null,null,null,157793,null,null,null,null,null,null,null,null,null,null,null,null,12727,null,null,null,null,null,null,null,null,null,null,12400,null,null,null,null,313481,146821,null,null,null,35828,null,null,null,null,35406,null,null,null,null,null,35828,null,null,null,9000,null,null,null,null,null,null,null,null,null,null,null,null,null,null,null,null,null,null,null,null,null,null,null,null,null,null,null,null,null,null,null,null,null,null,null,null,null,null,null,null,null,null,null,null,null,null,null,null,null,null,null,null,null,null,null,null,null,null,null,null,null,null,null,null,null,null,null,null,null,null,null,null,null,null,null,null,null,null,null,348451,null,null,null,null,null,null,null,null,null,null,57135,null,null,null,null,null,null,null,null,null,null,null,null,null,null,null,null,null,null,null,null,null,null,null,null,null,"SA Monetary value (2dp) > 0.00"]
[66,{"$f":"IF(CGT_IND>1,IF(HLOOKUP(CGT_IND-1,CGT_RANGE,A67)=\"\",\"\",HLOOKUP(CGT_IND-1,CGT_RANGE,A67)),\"\")","v":""},"CGT46",{"$f":"\"Income losses of \"&tax_year&\" set against gains\"","v":"Income losses of 2025-26 set against gains"},null,null,null,null,null,null,null,null,null,null,null,null,null,null,null,null,null,null,null,null,null,null,null,null,null,null,null,null,null,null,null,null,null,null,null,null,null,null,null,null,null,null,null,null,null,null,null,null,null,null,null,null,null,null,null,null,null,null,null,null,null,null,null,null,null,null,null,null,null,null,null,null,null,null,null,null,null,null,null,null,null,null,null,null,null,null,null,null,null,null,null,null,null,null,null,null,null,null,null,null,null,null,null,null,null,null,null,null,null,null,null,null,null,null,null,null,null,null,null,null,null,null,null,null,null,null,null,null,null,null,4000,null,null,null,null,null,null,null,null,null,null,null,null,null,null,null,null,null,9866,null,null,null,null,null,null,null,null,null,null,null,null,null,null,null,null,null,null,null,null,null,null,null,null,null,null,null,null,null,null,null,null,null,null,null,null,null,null,null,null,null,null,null,null,null,null,null,null,null,null,null,null,null,null,null,null,null,null,null,null,null,null,null,null,null,null,null,null,null,null,null,null,null,null,null,null,null,null,null,null,null,null,null,null,null,null,null,null,null,null,null,null,null,null,null,null,null,null,null,null,null,null,null,null,null,null,null,null,null,null,null,null,null,null,null,null,null,null,null,null,null,null,null,null,null,null,"SA Monetary value (2dp) > 0.00"]
[67,"","CGT47","Losses available to be carried forward",null,null,null,null,null,null,null,null,null,null,null,null,null,null,null,null,null,null,null,null,null,null,null,null,null,null,null,null,null,null,null,null,null,null,null,null,null,null,null,null,null,null,null,null,null,null,null,null,null,14161,null,null,null,null,63626,null,null,null,null,null,null,null,null,null,null,null,null,12820,null,null,null,null,null,null,null,null,null,null,null,null,null,null,null,479654,null,null,null,null,null,null,null,null,null,null,null,null,null,null,null,null,172678,null,null,null,null,null,null,null,null,48466,null,null,null,null,null,null,null,null,null,null,null,null,null,null,1746,null,null,null,null,null,null,null,null,null,null,null,null,null,null,426891,40930,null,null,194777,null,null,null,null,6983,null,null,null,null,11560,194777,null,null,null,null,null,null,368692,null,291.69,null,null,null,null,null,null,null,null,null,null,null,null,null,null,null,null,null,null,null,null,null,null,null,null,null,null,null,null,null,null,null,null,null,null,null,null,null,null,null,null,null,null,null,null,null,null,null,null,null,null,null,null,null,null,null,null,null,null,null,null,null,null,null,null,null,null,null,null,null,null,null,null,null,null,null,null,null,null,null,null,null,null,null,null,null,14437,null,null,null,null,null,null,null,null,null,null,null,null,null,null,null,null,null,27109,null,null,null,null,null,null,"If CGT47 present,  must be greater than CGT7, CGT19, CGT27 + (CGT35 - CGT41 + CGT43)\n","SA Monetary value (2dp) > 0.00"]
[68,"","CGT48","Losses used against an earlier year’s gain",null,null,null,null,null,null,null,null,null,null,null,null,null,null,null,null,null,null,null,null,null,null,null,null,null,null,null,null,null,null,null,null,null,null,null,null,null,null,null,null,null,null,null,null,null,null,null,null,null,null,null,null,null,null,null,null,null,null,null,null,null,null,null,null,null,null,null,null,null,null,null,null,null,null,null,null,null,null,null,null,null,null,null,null,null,null,null,null,null,null,null,null,null,null,null,null,null,null,null,null,null,null,null,null,null,null,null,null,null,null,null,null,null,null,null,null,null,null,null,null,null,null,null,null,null,null,null,null,null,null,null,null,null,null,null,null,null,null,null,null,null,null,null,null,null,null,null,null,null,null,null,null,null,null,null,null,null,null,null,null,null,null,null,null,null,null,null,null,null,null,null,null,null,null,null,null,null,null,null,null,null,null,null,null,null,null,null,null,null,null,null,null,null,null,null,null,null,null,null,null,null,null,null,null,null,5000,null,null,null,null,null,null,null,null,null,null,null,null,null,null,null,null,null,null,null,null,null,null,null,null,null,null,null,null,null,null,null,null,null,null,null,null,null,null,null,null,null,null,null,null,null,null,null,null,null,null,null,null,null,null,null,null,null,null,null,null,null,null,null,null,null,null,null,null,"If CGT48 present, must be less than or equal to (CGT7 + absolute value CGT9 (if negative) + CGT19 + CGT27 + (CGT35 - (CGT41 + CGT43) + CGT46)","SA Monetary value (2dp) > 0.00"]
[69,"","CGT49","Gains qualifying for Investors’ Relief ",null,null,null,null,null,null,null,null,null,null,null,null,null,null,null,null,null,null,null,null,null,null,null,null,null,null,null,null,null,null,null,null,null,null,null,null,null,null,null,null,null,null,null,null,null,null,null,null,null,null,null,null,null,null,null,null,null,null,null,null,null,null,null,null,null,null,null,null,null,null,null,null,null,null,null,null,null,null,null,null,null,null,null,null,null,null,null,null,null,null,null,null,null,null,null,null,null,null,null,null,null,null,null,null,null,null,null,null,null,null,null,null,null,null,null,null,null,null,null,null,null,null,null,null,null,null,null,null,null,null,null,null,null,null,null,null,null,null,null,null,null,null,null,null,null,null,null,null,null,null,null,null,null,null,null,null,null,null,null,null,null,null,null,null,null,null,null,null,null,null,null,null,null,null,null,null,null,null,null,null,null,null,null,null,null,null,null,null,null,null,null,null,null,null,null,null,null,null,19000,null,null,null,null,null,null,null,null,null,null,null,null,null,null,null,null,null,null,null,null,null,null,null,null,null,null,null,null,null,null,null,null,null,null,null,null,null,null,null,null,null,null,null,null,null,null,null,null,null,null,null,null,null,null,null,null,null,null,null,null,null,null,null,null,null,null,null,null,null,null,null,null,null,null,null,"If CGT49 present, must be less than or equal to £1,000,000","SA Monetary value (2dp) > 0.00",null,"{{418}} <= [TRAL-CG-INVESTORS-RELIEF]"]
[70,"","CGT50","Gains qualifying for Entrepreneurs’ Relief - Gains on or after 23 June 2010",null,null,null,null,null,null,null,null,null,null,null,null,null,null,null,null,null,null,null,null,null,null,null,null,null,null,null,null,null,null,null,null,null,null,null,null,null,null,null,null,null,null,20000,null,null,null,null,null,null,20000,null,12000,null,null,105207,null,null,null,null,null,null,null,null,224187,null,null,null,null,null,null,12000,null,null,null,null,null,null,null,null,null,null,null,null,null,null,null,null,null,null,null,null,null,null,null,null,null,null,null,null,null,12000,null,20000,null,null,null,20000,null,null,null,null,null,null,null,null,null,null,null,null,null,null,null,null,null,null,null,null,null,null,null,null,null,null,1000000,null,null,null,null,1000000,null,null,null,null,null,null,null,null,null,null,null,null,null,null,null,null,null,null,null,12000,null,null,null,null,null,null,null,null,null,null,null,null,null,null,null,null,null,null,null,null,null,null,null,null,null,null,null,null,null,null,null,null,null,null,null,null,null,null,null,null,null,null,null,null,null,null,null,null,null,null,null,null,null,null,null,null,null,null,null,null,null,null,null,null,null,null,null,null,null,null,null,null,null,null,null,null,null,null,null,null,null,null,null,null,null,null,null,null,null,null,null,null,null,null,null,null,null,null,null,null,null,null,null,null,null,92500,null,null,null,null,null,null,null,null,null,"If CGT50 present, must be less than or equal to £1,000,000","SA Monetary value (2dp) > 0.00",null,"{{416}} <= [TRAL-CG-BUS-ASSET-DISP-REL]"]
[71,"","CGT50.1","Lifetime allowance of Business Asset Disposal Relief and Entrepreneurs' Relief claimed",null,null,null,null,null,null,null,null,null,null,null,null,null,null,null,null,null,null,null,null,null,null,null,null,null,null,null,null,null,null,null,null,null,null,null,null,null,null,null,null,null,null,20000,null,null,null,null,null,null,20000,null,24000,null,null,105207,null,null,null,null,null,null,null,null,224187,null,null,null,null,null,null,12000,null,null,null,null,null,null,null,null,null,null,null,null,null,null,null,null,null,null,null,null,null,null,null,null,null,null,null,null,null,50000,null,20000,null,null,null,40000,null,null,null,null,null,null,null,null,null,null,null,null,null,null,null,null,null,null,null,null,null,null,null,null,null,null,1000000,null,null,null,null,1000000,null,null,null,null,null,null,null,null,null,null,null,null,null,null,null,null,null,null,null,12000,null,null,null,null,null,null,null,null,null,null,null,null,null,null,null,null,null,null,null,null,null,null,null,null,null,null,null,null,null,null,null,null,null,null,null,null,null,null,null,null,null,null,null,null,null,null,null,null,null,null,null,null,null,null,null,null,null,null,null,null,null,null,null,null,null,null,null,null,null,null,null,null,null,null,null,null,null,null,null,null,null,null,null,null,null,null,null,null,null,null,null,null,null,null,null,null,null,null,null,null,null,null,null,null,null,92500]
[72,"","CGT51","Adjustment to Capital Gains tax",null,null,null,null,null,null,null,null,null,null,null,null,null,null,null,null,null,null,null,null,null,null,null,null,null,null,null,null,null,null,null,null,null,null,null,null,null,null,null,null,null,null,null,null,null,null,null,null,null,null,null,null,null,null,null,null,null,null,null,null,null,null,null,null,null,null,null,null,null,null,null,null,null,null,null,null,null,null,null,null,null,null,null,null,null,null,null,null,null,null,null,null,null,null,null,null,null,null,null,null,null,null,null,null,null,null,null,null,null,null,null,null,null,null,null,null,null,null,null,null,null,null,null,null,null,null,null,null,null,null,null,null,null,null,null,null,null,null,null,null,null,null,null,null,null,null,null,null,null,null,null,null,null,-1029335,null,-4447,null,-1825,null,-4447,null,-33539,-1874,null,null,null,-170,null,null,null,null,null,null,null,null,null,null,null,null,null,null,null,null,null,null,null,null,null,null,null,null,null,null,null,null,null,null,null,null,null,null,null,null,null,null,null,null,null,null,null,null,null,900,null,null,null,-992829,null,null,900,null,null,null,null,null,null,null,null,null,null,null,null,null,null,null,-10607,null,null,null,null,null,null,null,null,null,null,null,null,null,null,null,null,null,null,null,null,null,null,null,null,null,null,null,null,null,null,null,null,null,null,null,null,null,null,"Can be negative","SA Monetary value (2dp)"]
[73,"","CGT52","Additional liability for non-resident or dual resident trusts",null,null,null,null,null,null,null,null,null,null,null,null,null,null,null,null,null,null,null,null,null,null,null,null,null,null,null,null,null,null,null,null,null,null,null,null,null,null,null,null,null,null,null,null,null,null,null,null,null,null,null,null,null,null,null,null,null,null,null,null,null,null,null,null,null,null,null,null,null,null,null,null,null,null,null,null,null,null,null,null,null,null,null,null,null,null,null,null,null,null,null,null,null,null,null,null,null,null,null,null,null,null,null,null,null,null,null,null,null,null,null,null,null,null,null,null,null,null,null,null,null,null,null,null,null,null,null,null,null,null,null,null,null,null,null,null,null,null,null,null,null,null,null,null,null,null,null,null,null,20377,null,null,null,null,null,null,null,null,null,null,null,null,null,10807.96,null,null,null,null,null,null,null,null,null,null,null,null,null,null,null,null,null,null,null,null,null,null,null,null,null,null,null,null,null,null,null,null,null,null,null,null,null,null,null,null,null,null,null,null,null,null,null,null,2000,null,null,null,null,null,null,2000,null,null,null,null,null,null,null,null,null,null,null,null,null,null,null,null,null,null,null,null,null,null,null,null,null,null,null,null,null,null,null,null,null,null,null,null,null,null,null,null,null,null,null,null,null,null,null,null,null,null,null,null,null,null,null,"SA Monetary value (2dp) > 0.00"]
[74,"","CGT52.1","Direct disposals residential - total gain NRCGT chargeable",null,null,null,null,null,null,null,null,null,null,null,null,null,null,null,null,null,null,null,null,null,null,null,null,null,null,null,null,null,null,null,null,null,null,null,null,null,null,null,null,null,null,null,null,null,null,39000,null,null,null,null,null,null,null,null,null,null,null,null,null,null,null,null,null,null,null,null,null,null,null,null,null,null,null,null,null,null,null,null,null,null,null,null,null,null,null,null,null,null,null,null,null,null,null,null,null,null,null,null,null,null,null,null,null,null,null,null,null,null,null,null,null,null,null,null,null,null,null,null,null,null,null,null,null,null,null,null,null,null,null,null,null,null,null,null,null,null,null,null,null,null,null,null,null,null,null,null,null,null,null,null,null,null,null,null,null,null,null,null,null,null,null,null,null,null,null,null,null,null,null,null,null,null,null,null,null,null,null,null,null,null,null,null,null,null,null,null,null,null,null,null,null,null,null,null,null,null,null,null,null,null,null,null,null,null,null,null,null,null,null,null,null,null,null,null,null,null,null,null,null,null,null,null,null,null,null,null,null,null,null,null,null,null,null,null,null,null,null,null,null,null,null,null,null,null,null,null,null,7860,47029,34413,123000,4249,null,null,null,null,null,null,null,null,null,null,360579,5963,16032,23579]
[75,"","CGT52.2","Direct disposals non-residential - total gain NRCGT chargeable",null,null,null,null,null,null,null,null,null,null,null,null,null,null,null,null,null,null,null,null,null,null,null,null,null,null,null,null,null,null,null,null,null,null,null,null,null,null,null,null,null,null,null,null,null,null,null,null,null,null,null,null,null,null,null,null,null,null,null,null,null,null,null,null,null,null,null,null,null,null,null,null,null,null,null,null,null,null,null,null,null,null,null,null,null,null,null,null,null,null,null,null,null,null,null,null,null,null,null,null,null,null,null,null,null,null,null,null,null,null,null,null,null,null,null,null,null,null,null,null,null,null,null,null,null,null,null,null,null,null,null,null,null,null,null,null,null,null,null,null,null,null,null,null,null,null,null,null,null,null,null,null,null,null,null,null,null,null,null,null,null,null,null,null,null,null,null,null,null,null,null,null,null,null,null,null,null,null,null,null,null,null,null,null,null,null,null,null,null,null,null,null,null,null,null,null,null,null,null,null,null,null,null,null,null,null,null,null,null,null,null,null,null,null,null,null,null,null,null,null,null,null,null,null,null,null,null,null,null,null,null,null,null,null,null,null,null,null,null,null,null,null,null,null,null,null,null,null,10316,22106,35767,236000,6833,null,null,null,null,null,null,null,null,null,null,5000,null,20975,null,27500]
[76,"","CGT52.3","Any gains in CGT52.2 indirect disposals?",null,null,null,null,null,null,null,null,null,null,null,null,null,null,null,null,null,null,null,null,null,null,null,null,null,null,null,null,null,null,null,null,null,null,null,null,null,null,null,null,null,null,null,null,null,null,null,null,null,null,null,null,null,null,null,null,null,null,null,null,null,null,null,null,null,null,null,null,null,null,null,null,null,null,null,null,null,null,null,null,null,null,null,null,null,null,null,null,null,null,null,null,null,null,null,null,null,null,null,null,null,null,null,null,null,null,null,null,null,null,null,null,null,null,null,null,null,null,null,null,null,null,null,null,null,null,null,null,null,null,null,null,null,null,null,null,null,null,null,null,null,null,null,null,null,null,null,null,null,null,null,null,null,null,null,null,null,null,null,null,null,null,null,null,null,null,null,null,null,null,null,null,null,null,null,null,null,null,null,null,null,null,null,null,null,null,null,null,null,null,null,null,null,null,null,null,null,null,null,null,null,null,null,null,null,null,null,null,null,null,null,null,null,null,null,null,null,null,null,null,null,null,null,null,null,null,null,null,null,null,null,null,null,null,null,null,null,null,null,null,null,null,null,null,null,null,null,null,null,null,null,"Y"]
[77,"","CGT52.4","Tax on gains already paid",null,null,null,null,null,null,null,null,null,null,null,null,null,null,null,null,null,null,null,null,null,null,null,null,null,null,null,null,null,null,null,null,null,null,null,null,null,null,null,null,null,null,null,null,null,null,8000,null,null,null,null,null,null,null,null,null,null,null,null,null,null,null,null,null,null,null,null,null,null,null,null,null,null,null,null,null,null,null,null,null,null,null,null,null,null,null,null,null,null,null,null,null,null,null,null,null,null,null,null,null,null,null,null,null,null,null,null,null,null,null,null,null,null,null,null,null,null,null,null,null,null,null,null,null,null,null,null,null,null,null,null,null,null,null,null,null,null,null,null,null,null,null,null,null,null,null,null,null,null,null,null,null,null,null,null,null,null,null,null,null,null,null,null,null,null,null,null,null,null,null,null,null,null,null,null,null,null,null,null,null,null,null,null,null,null,null,null,null,null,null,null,null,null,null,null,null,null,null,null,null,null,null,null,null,null,null,null,null,null,null,null,null,null,null,null,null,null,null,null,null,null,null,null,null,null,null,null,null,null,null,null,null,null,null,null,null,null,null,null,null,null,null,null,null,null,null,null,null,438,null,3057,null,120,null,null,null,null,null,null,null,null,null,null,null,null,4973,1328]
[78,"","CGT52.5","Allowable losses",null,null,null,null,null,null,null,null,null,null,null,null,null,null,null,null,null,null,null,null,null,null,null,null,null,null,null,null,null,null,null,null,null,null,null,null,null,null,null,null,null,null,null,null,null,null,null,null,null,null,null,null,null,null,null,null,null,null,null,null,null,null,null,null,null,null,null,null,null,null,null,null,null,null,null,null,null,null,null,null,null,null,null,null,null,null,null,null,null,null,null,null,null,null,null,null,null,null,null,null,null,null,null,null,null,null,null,null,null,null,null,null,null,null,null,null,null,null,null,null,null,null,null,null,null,null,null,null,null,null,null,null,null,null,null,null,null,null,null,null,null,null,null,null,null,null,null,null,null,null,null,null,null,null,null,null,null,null,null,null,null,null,null,null,null,null,null,null,null,null,null,null,null,null,null,null,null,null,null,null,null,null,null,null,null,null,null,null,null,null,null,null,null,null,null,null,null,null,null,null,null,null,null,null,null,null,null,null,null,null,null,null,null,null,null,null,null,null,null,null,null,null,null,null,null,null,null,null,null,null,null,null,null,null,null,null,null,null,null,null,null,null,null,null,null,null,null,null,null,null,5432,null,null,null,null,null,null,null,null,null,null,null,null,60000,null,8321]
[79,"","CGT52EG","Total gains from the disposal of excluded indexed securities",null,null,null,null,null,null,null,null,null,null,null,null,null,null,null,null,null,null,null,null,null,null,null,null,null,null,null,null,null,null,null,null,null,null,null,null,null,null,null,null,null,null,null,null,null,null,null,null,null,null,null,null,null,null,null,null,null,null,null,null,null,null,null,null,null,null,null,null,null,null,null,null,null,null,null,null,null,null,null,null,null,null,null,null,null,null,null,null,null,null,null,null,null,null,null,null,null,null,null,null,null,null,null,null,null,null,null,null,null,null,null,null,null,null,null,null,null,null,null,null,null,null,964984]
[80,"","CGT52EG.1","Amount claimed under FIG"]
[81,"","CGT52QG","Total gains from QAHC share repurchases and security redemptions ",null,null,null,null,null,null,null,null,null,null,null,null,null,null,null,null,null,null,null,null,null,null,null,null,null,null,null,null,null,null,null,null,null,null,null,null,null,null,null,null,null,null,null,null,null,null,null,null,null,null,null,null,null,null,null,null,null,null,null,null,null,null,null,null,null,null,null,null,null,null,null,null,null,null,null,null,null,null,null,null,null,null,null,null,null,null,null,null,null,null,null,null,null,null,null,null,null,null,null,null,null,null,null,null,null,null,null,null,null,null,null,null,null,null,null,null,null,null,null,null,null,null,null,null,null,null,null,null,null,null,null,null,null,null,null,null,null,null,null,null,null,null,null,null,null,null,null,null,null,null,null,null,null,null,null,null,null,null,null,null,null,12000]
[82,"","CGT52QG.1"]
[83,"","CGT52QL","Total gains from QAHC share repurchases and security redemptions "]
[84,"","CGT53","If your computations include any estimates or valuations, put ‘X’ in the box",null,null,null,null,null,null,null,null,null,null,null,null,null,null,null,null,null,null,null,null,null,null,null,null,null,null,null,null,null,null,null,null,null,null,null,null,null,null,null,null,null,null,null,null,null,null,null,null,null,null,null,null,null,null,null,null,null,null,null,null,null,null,null,null,null,null,null,null,null,null,null,null,null,null,null,null,null,null,null,null,null,null,null,null,null,null,null,null,null,null,null,null,null,null,null,null,null,null,null,null,null,null,null,null,null,null,null,null,null,null,null,null,null,null,null,null,null,null,null,null,null,null,null,null,null,null,null,null,null,null,null,null,null,null,null,null,null,null,null,null,null,null,null,null,null,null,null,null,null,null,null,null,null,null,null,null,null,null,null,null,null,null,null,null,null,null,null,null,null,null,null,null,null,null,null,null,null,null,null,null,null,null,null,null,null,null,null,null,null,null,null,null,null,null,null,null,null,null,null,null,null,null,null,null,null,null,null,null,null,null,null,null,null,null,null,null,null,null,null,null,null,null,null,null,null,null,null,null,null,null,null,null,null,null,null,null,null,null,null,null,null,null,null,null,null,null,null,null,null,null,null,null,null,null,null,null,null,null,null,null,null,null,null,null,null,null,null,null,null,null,null,null,null,null,null,"\"yes\""]
[85,"computation","CGT54","Please give any other information in this space",null,null,null,null,null,null,null,null,null,null,null,null,null,null,null,null,null,null,null,null,null,null,null,null,null,null,null,null,null,null,null,null,null,null,null,null,null,null,null,null,null,null,"computation",null,null,null,null,null,null,"computation",null,"computation",null,null,"CGT losses to carry forward of -GBP9,685.83",null,null,null,null,null,null,null,null,"computation",null,null,null,"computation","computation",null,"computation",null,null,null,null,null,null,"computation",null,null,null,null,null,null,null,null,null,null,null,null,"computation",null,null,"computation",null,null,null,null,null,null,"computation",null,"computation",null,null,null,"computation",null,null,"computation",null,null,"computation",null,"computation",null,null,null,null,null,null,null,null,null,null,null,null,null,null,"computation","computation",null,"computation","computation",null,null,null,null,null,null,null,null,null,"computation",null,null,null,"computation",null,null,"computation",null,"computation",null,null,null,"computation","computation","computation","computation","computation","computation","computation","computation","computation","computation","computation","computation",null,null,null,null,null,null,null,null,null,null,null,null,null,null,null,null,null,null,null,null,"computation",null,null,null,null,null,null,null,null,null,null,null,null,null,null,null,null,"computation",null,null,null,null,"computation",null,"CGT losses to carry forward of -GBP9,685.83","computation","computation","computation","computation",null,null,"CGT losses to carry forward of -GBP9,685.83",null,null,"computation",null,null,null,null,null,null,null,null,null,null,null,null,"computation",null,"computation",null,null,null,null,null,null,null,null,null,null,"computation","computation","computation","computation","computation",null,null,"computation",null,null,null,"computation",null,null,null,"computation","computation","computation","computation","computation",null,null,null,null,null,null,null,"SA non-empty string"]
[]
["row","selected","NRD",null,1,2,3,4,5,6,7,8,9,10,11,12,13,14,15,16,17,18,19,20,21,22,23,24,25,26,27,28,29,30,31,32,33,34,35,36,37,38,39,40,41,42,43,44,45,46,47,48,49,50,51,52,53,54,55,56,57,58,59,60,61,62,63,64,65,66,67,68,69,70,71,72,73,74,75,76,77,78,79,80,81,82,83,84,85,86,87,88,89,90,91,92,93,94,95,96,97,98,99,100,101,102,103,104,105,106,107,108,109,110,111,112,113,114,115,116,117,118,119,120,121,122,123,124,125,126,127,128,129,130,131,132,133,134,135,136,137,138,139,140,141,142,143,144,145,146,147,148,149,150,151,152,153,154,155,156,157,158,159,160,161,162,163,164,165,166,167,168,169,170,171,172,173,174,175,176,177,178,179,180,181,182,183,184,185,186,187,188,189,190,191,192,193,194,195,196,197,198,199,200,201,202,203,204,205,206,207,208,209,210,211,212,213,214,215,216,217,218,219,220,221,222,223,224,225,226,227,228,229,230,231,232,233,234,235,236,237,238,239,240,241,242,243,244,245,246,247,248,249,250,251,252,253,254,255,256,257,258,259,260,261,262,263,264,265,266,267,268,269,270,271,272,273,null," Validation"]
[2,{"$f":"IF(NRD_IND>1,IF(HLOOKUP(NRD_IND-1,NRD_RANGE,A89)=\"\",\"\",HLOOKUP(NRD_IND-1,NRD_RANGE,A89)),\"\")","v":""},"NRD1",{"$f":"\"If you were not resident in the UK for \"&tax_year&\", put ‘X’ in the box\"","v":"If you were not resident in the UK for 2025-26, put ‘X’ in the box"},null,null,null,null,null,null,null,null,null,null,null,null,null,null,null,null,null,null,null,null,null,null,null,null,null,null,null,null,null,null,null,null,null,null,null,null,null,null,null,null,null,null,null,null,null,"Y","Y","Y",null,null,null,null,null,null,null,null,null,null,"Y",null,null,null,null,null,null,null,null,null,null,null,null,null,null,null,null,null,null,null,null,null,null,null,null,null,null,null,null,null,null,null,null,null,null,null,null,null,null,null,null,null,null,null,null,null,null,null,null,null,null,null,null,null,null,null,null,null,null,null,"N","N",null,null,null,null,null,null,null,null,null,null,null,null,"Y",null,null,null,null,null,null,null,null,null,null,null,null,null,null,null,null,null,null,null,null,null,null,null,null,null,null,null,null,null,null,null,null,null,null,null,null,null,null,"Y","Y","Y",null,null,null,"Y",null,null,null,null,null,null,null,null,null,null,null,null,null,null,null,null,null,null,null,null,null,null,null,null,null,null,"N",null,null,"Y",null,"Y",null,null,"N","N","N","N","Y","N",null,null,null,null,null,null,null,null,null,null,null,null,null,null,null,null,null,null,null,null,null,null,null,null,null,null,null,"Y","Y","Y",null,"Y",null,null,"Y",null,null,null,null,null,null,null,null,null,null," ",null,"Y","Y",null,null,"Y",null,null,"Y",null,null,"\"yes\""]
[3,"","NRD2",{"$f":"\"If you are eligible for overseas workday relief for \"&tax_year&\", put ‘X’ in the box\"","v":"If you are eligible for overseas workday relief for 2025-26, put ‘X’ in the box"},null,null,null,null,null,null,null,null,null,null,null,null,null,null,null,null,null,null,null,null,null,null,null,null,null,null,null,null,null,null,null,null,null,null,null,null,null,null,null,null,null,null,null,null,null,null,null,null,null,null,null,null,null,null,null,null,null,null,null,null,null,null,null,null,null,null,null,null,null,null,null,null,null,null,null,null,null,null,null,null,null,null,null,null,null,null,null,null,null,null,null,null,null,null,null,null,null,null,null,null,null,null,null,null,null,null,null,null,null,null,null,null,null,null,null,null,null,null,null,null,null,null,null,null,null,null,null,null,null,null,null,null,null,null,null,null,null,null,null,null,null,null,null,null,null,null,null,null,null,null,null,null,null,null,null,null,null,null,null,null,null,null,null,null,null,null,null,null,null,null,null,null,null,null,null,null,null,null,null,null,null,null,null,null,null,null,null,null,null,null,null,null,null,null,null,null,null,null,null,null,null,null,null,null,null,null,null,null,null,null,null,null,null,null,null,null,null,null,null,null,null,null,null,null,null,null,null,null,null,null,null,null,null,null,null,null,null,null,null,null,null,null,null,null,null,null,null,null,null,null,null,null,null,null,null,null,null,null,null,null,null,null,null,null,null,null,null,null,null,null,null,null,null,null,null,"\"yes\""]
[4,"","NRD3",{"$f":"\"If your circumstances meet the criteria for split year treatment for \"&tax_year&\", put ‘X’ in the box\"","v":"If your circumstances meet the criteria for split year treatment for 2025-26, put ‘X’ in the box"},null,null,null,null,null,null,null,null,null,null,null,null,null,null,null,null,null,null,null,null,null,null,null,null,null,null,null,null,null,null,null,null,null,null,null,null,null,null,null,null,null,null,null,null,null,"N","N","N",null,null,null,null,null,null,null,null,null,null,null,null,null,null,null,null,null,null,null,null,null,null,null,null,null,null,null,null,null,null,null,null,null,null,null,null,null,null,null,null,null,null,null,null,null,null,null,null,null,null,null,null,null,null,null,null,null,null,null,null,null,null,null,null,null,null,null,null,null,null,"N","N",null,null,null,null,null,null,null,null,null,null,null,null,null,null,null,null,null,null,null,null,null,null,null,null,null,null,null,null,null,null,null,null,null,null,null,null,null,null,null,null,null,null,null,null,null,null,null,null,null,null,null,"N","N","N",null,null,null,null,null,null,null,null,null,null,null,null,null,null,null,null,null,null,null,null,null,null,null,null,null,null,null,null,null,null,"N",null,null,"N",null,"N",null,null,"N","N","N","N","N","N",null,null,null,null,null,null,null,null,null,null,null,null,null,null,null,null,null,null,null,null,null,null,null,null,null,null,null,null,null,null,null,null,null,null,null,null,null,null,null,null,null,null,null,null,null,null,null,null,null,null,null,null,null,null,null,null,"Prohibited if NRD1 = Y","\"yes\""]
[5,"","NRD3.1","If more than 1 case of split year treatment applies, put ‘X’ in the box",null,null,null,null,null,null,null,null,null,null,null,null,null,null,null,null,null,null,null,null,null,null,null,null,null,null,null,null,null,null,null,null,null,null,null,null,null,null,null,null,null,null,null,null,null,"N","N","N",null,null,null,null,null,null,null,null,null,null,null,null,null,null,null,null,null,null,null,null,null,null,null,null,null,null,null,null,null,null,null,null,null,null,null,null,null,null,null,null,null,null,null,null,null,null,null,null,null,null,null,null,null,null,null,null,null,null,null,null,null,null,null,null,null,null,null,null,null,null,"N","N",null,null,null,null,null,null,null,null,null,null,null,null,null,null,null,null,null,null,null,null,null,null,null,null,null,null,null,null,null,null,null,null,null,null,null,null,null,null,null,null,null,null,null,null,null,null,null,null,null,null,null,"N","N","N",null,null,null,null,null,null,null,null,null,null,null,null,null,null,null,null,null,null,null,null,null,null,null,null,null,null,null,null,null,null,"N",null,null,"N",null,"N",null,null,"N","N","N","N","N","N",null,null,null,null,null,null,null,null,null,null,null,null,null,null,null,null,null,null,null,null,null,null,null,null,null,null,null,null,null,null,null,null,null,null,null,null,null,null,null,null,null,null,null,null,null,null,null,null,null,null,null,null,null,null,null,null,"If present NRD3 must be present","\"yes\""]
[6,"","NRD4",{"$f":"\"If you were resident in the UK for \"&tax_year&\", put ‘X’ in the box\"","v":"If you were resident in the UK for 2025-26, put ‘X’ in the box"},null,null,null,null,null,null,null,null,null,null,null,null,null,null,null,null,null,null,null,null,null,null,null,null,null,null,null,null,null,null,null,null,null,null,null,null,null,null,null,null,null,null,null,null,null,"N","N","N",null,null,null,null,null,null,null,null,null,null,null,null,null,null,null,null,null,null,null,null,null,null,null,null,null,null,null,null,null,null,null,null,null,null,null,null,null,null,null,null,null,null,null,null,null,null,null,null,null,null,null,null,null,null,null,null,null,null,null,null,null,null,null,null,null,null,null,null,null,null,"Y","Y",null,null,null,null,null,null,null,null,null,null,null,null,null,null,null,null,null,null,null,null,null,null,null,null,null,null,null,null,null,null,null,null,null,null,null,null,null,null,null,null,"y",null,null,null,null,null,null,null,null,null,null,"N","N","N",null,null,null,null,null,null,null,null,null,null,null,null,null,null,null,null,null,null,null,null,null,null,null,null,null,null,null,null,null,null,"Y",null,null,"Y",null,"Y",null,null,"Y","N","N","N","N","N",null,null,null,null,null,null,null,null,null,null,null,null,null,null,null,null,null,null,null,null,null,null,null,null,null,null,null,null,null,null,null,null,null,null,null,null,null,null,null,null,null,null,null,null,null,null,null,null,null,null,null,null,null,null,null,null,null,"\"yes\""]
[7,"","NRD5","If you have made an entry in box 2 and any of your foreign earnings are for an earlier year, put ‘X’ in the box",null,null,null,null,null,null,null,null,null,null,null,null,null,null,null,null,null,null,null,null,null,null,null,null,null,null,null,null,null,null,null,null,null,null,null,null,null,null,null,null,null,null,null,null,null,"N","N","N",null,null,null,null,null,null,null,null,null,null,null,null,null,null,null,null,null,null,null,null,null,null,null,null,null,null,null,null,null,null,null,null,null,null,null,null,null,null,null,null,null,null,null,null,null,null,null,null,null,null,null,null,null,null,null,null,null,null,null,null,null,null,null,null,null,null,null,null,null,null,null,null,null,null,null,null,null,null,null,null,null,null,null,null,null,null,null,null,null,null,null,null,null,null,null,null,null,null,null,null,null,null,null,null,null,null,null,null,null,null,null,null,null,null,null,null,null,null,null,null,null,null,null,null,null,null,null,null,null,null,null,null,null,null,null,null,null,null,null,null,null,null,null,null,null,null,null,null,null,null,null,null,null,null,null,null,null,null,null,null,null,null,null,null,null,null,null,null,null,null,null,null,null,null,null,null,null,null,null,null,null,null,null,null,null,null,null,null,null,null,null,null,null,null,null,null,null,null,null,null,null,null,null,null,null,null,null,null,null,null,null,null,null,null,null,null,null,null,null,null,null,null,null,null,null,null,null,"\"yes\""]
[8,"","NRD6","If you have an entry in box 3 enter the date from which the UK part of the year begins or ends DD MM YYYY",null,null,null,null,null,null,null,null,null,null,null,null,null,null,null,null,null,null,null,null,null,null,null,null,null,null,null,null,null,null,null,null,null,null,null,null,null,null,null,null,null,null,null,null,null,null,null,null,null,null,null,null,null,null,null,null,null,null,null,null,null,null,null,null,null,null,null,null,null,null,null,null,null,null,null,null,null,null,null,null,null,null,null,null,null,null,null,null,null,null,null,null,null,null,null,null,null,null,null,null,null,null,null,null,null,null,null,null,null,null,null,null,null,null,null,null,null,null,null,null,null,null,null,null,null,null,null,null,null,null,null,null,null,null,null,null,null,null,null,null,null,null,null,null,null,null,null,null,null,null,null,null,null,null,null,null,null,null,null,null,null,null,null,null,null,null,null,null,null,null,null,null,null,null,null,null,null,null,null,null,null,null,null,null,null,null,null,null,null,null,null,null,null,null,null,null,null,null,null,null,null,null,null,null,null,null,null,null,null,null,null,null,null,null,null,null,null,null,null,null,null,null,null,null,null,null,null,null,null,null,null,null,null,null,null,null,null,null,null,null,null,null,null,null,null,null,null,null,null,null,null,null,null,null,null,null,null,null,null,null,null,null,null,null,null,null,null,null,null,null,null,null,null,null,"a) must be within the return year\nb) must be a valid date DDMMYYYY\nc) If either NRD3 or NRD6 present then both must be present","SA MTR date"]
[9,"","NRD7","If you meet the third automatic overseas test, put ‘X’ in the box",null,null,null,null,null,null,null,null,null,null,null,null,null,null,null,null,null,null,null,null,null,null,null,null,null,null,null,null,null,null,null,null,null,null,null,null,null,null,null,null,null,null,null,null,null,"Y",null,"Y",null,null,null,null,null,null,null,null,null,null,null,null,null,null,null,null,null,null,null,null,null,null,null,null,null,null,null,null,null,null,null,null,null,null,null,null,null,null,null,null,null,null,null,null,null,null,null,null,null,null,null,null,null,null,null,null,null,null,null,null,null,null,null,null,null,null,null,null,null,null,"N","N",null,null,null,null,null,null,null,null,null,null,null,null,"Y",null,null,null,null,null,null,null,null,null,null,null,null,null,null,null,null,null,null,null,null,null,null,null,null,null,null,null,null,null,null,null,null,null,null,null,null,null,null,"Y","Y","Y",null,null,null,null,null,null,null,null,null,null,null,null,null,null,null,null,null,null,null,null,null,null,null,null,null,null,null,null,null,null,"N",null,null,"N",null,"N",null,null,"N","N","N","N","N",null,null,null,null,null,null,null,null,null,null,null,null,null,null,null,null,null,null,null,null,null,null,null,null,null,null,null,null,null,"Y",null,null,null,null,null,"Y",null,null,null,null,null,null,null,null,null,null,null,null,null,null,null,null,null,null,null,null,null,"If present NRD1 must be present","\"yes\""]
[10,"","NRD8",{"$f":"\"If you have had a gap between employments in \"&tax_year&\" put 'X' in box\"","v":"If you have had a gap between employments in 2025-26 put 'X' in box"},null,null,null,null,null,null,null,null,null,null,null,null,null,null,null,null,null,null,null,null,null,null,null,null,null,null,null,null,null,null,null,null,null,null,null,null,null,null,null,null,null,null,null,null,null,"Y",null,"Y",null,null,null,null,null,null,null,null,null,null,null,null,null,null,null,null,null,null,null,null,null,null,null,null,null,null,null,null,null,null,null,null,null,null,null,null,null,null,null,null,null,null,null,null,null,null,null,null,null,null,null,null,null,null,null,null,null,null,null,null,null,null,null,null,null,null,null,null,null,null,"N","N",null,null,null,null,null,null,null,null,null,null,null,null,null,null,null,null,null,null,null,null,null,null,null,null,null,null,null,null,null,null,null,null,null,null,null,null,null,null,null,null,null,null,null,null,null,null,null,null,null,null,null,"Y","Y","Y",null,null,null,null,null,null,null,null,null,null,null,null,null,null,null,null,null,null,null,null,null,null,null,null,null,null,null,null,null,null,"N",null,null,"N",null,"N",null,null,"N","N","N","N","N",null,null,null,null,null,null,null,null,null,null,null,null,null,null,null,null,null,null,null,null,null,null,null,null,null,null,null,null,null,null,null,null,null,null,null,null,null,null,null,null,null,null,null,null,null,null,null,null,null,null,null,null,null,null,null,null,null,"If present NRD7 must be present","\"yes\""]
[11,"","NRD9",{"$f":"\"If you had a home overseas in \"&tax_year&\" put 'X' in box\"","v":"If you had a home overseas in 2025-26 put 'X' in box"},null,null,null,null,null,null,null,null,null,null,null,null,null,null,null,null,null,null,null,null,null,null,null,null,null,null,null,null,null,null,null,null,null,null,null,null,null,null,null,null,null,null,null,null,null,"Y","Y","Y",null,null,null,null,null,null,null,null,null,null,"Y",null,null,null,null,null,null,null,null,null,null,null,null,null,null,null,null,null,null,null,null,null,null,null,null,null,null,null,null,null,null,null,null,null,null,null,null,null,null,null,null,null,null,null,null,null,null,null,null,null,null,null,null,null,null,null,null,null,null,null,"Y","Y",null,null,null,null,null,null,null,null,null,null,null,null,null,null,null,null,null,null,null,null,null,null,null,null,null,null,null,null,null,null,null,null,null,null,null,null,null,null,null,null,null,null,null,null,null,null,null,null,null,null,null,"Y","Y","Y",null,null,null,null,null,null,null,null,null,null,null,null,null,null,null,null,null,null,null,null,null,null,null,null,null,null,null,null,null,null,"Y",null,null,"N",null,"N",null,null,"Y","Y","Y","Y","Y",null,null,null,null,null,null,null,null,null,null,null,null,null,null,null,null,null,null,null,null,null,null,null,null,null,null,null,null,"Y","Y","Y",null,"Y",null,null,"Y",null,null,null,null,null,null,null,null,null,null,null,null,null,"Y",null,null,null,null,null,null,null,null,"\"yes\""]
[12,"","NRD10",{"$f":"\"Number of days spent in the UK during \"&tax_year","v":"Number of days spent in the UK during 2025-26"},null,null,null,null,null,null,null,null,null,null,null,null,null,null,null,null,null,null,null,null,null,null,null,null,null,null,null,null,null,null,null,null,null,null,null,null,null,null,null,null,null,null,null,null,null,99,5,99,null,null,null,null,null,null,null,null,null,null,10,null,null,null,null,null,null,null,null,null,null,null,null,null,null,null,null,null,null,null,null,null,null,null,null,null,null,null,null,null,null,null,null,null,null,null,null,null,null,null,null,null,null,null,null,null,null,null,null,null,null,null,null,null,null,null,null,null,null,null,0,0,null,null,null,null,null,null,null,null,null,null,null,null,49,null,null,null,null,null,null,null,null,null,null,null,null,null,null,null,null,null,null,null,null,null,null,null,null,null,null,null,null,null,null,null,null,null,null,null,null,null,null,99,99,99,null,null,null,53,null,null,null,null,null,null,null,null,null,null,null,null,null,null,null,null,null,null,null,null,null,null,null,null,null,null,331,null,null,84,null,84,null,null,331,316,316,316,316,null,null,null,null,null,null,null,null,null,null,null,null,null,null,null,null,null,null,null,null,null,null,null,null,null,null,null,null,0,4,10,null,87,null,null,14,null,null,null,null,null,null,null,null,null,null,null,null,25,31,null,null,21,null,null,13,null,"Must be present if NRD1= 'Y'","Integer value >= 0"]
[13,"","NRD11","Number of days in box 10 attributed to exceptional circumstances",null,null,null,null,null,null,null,null,null,null,null,null,null,null,null,null,null,null,null,null,null,null,null,null,null,null,null,null,null,null,null,null,null,null,null,null,null,null,null,null,null,null,null,null,null,0,0,0,null,null,null,null,null,null,null,null,null,null,null,null,null,null,null,null,null,null,null,null,null,null,null,null,null,null,null,null,null,null,null,null,null,null,null,null,null,null,null,null,null,null,null,null,null,null,null,null,null,null,null,null,null,null,null,null,null,null,null,null,null,null,null,null,null,null,null,null,null,null,0,0,null,null,null,null,null,null,null,null,null,null,null,null,null,null,null,null,null,null,null,null,null,null,null,null,null,null,null,null,null,null,null,null,null,null,null,null,null,null,null,null,null,null,null,null,null,null,null,null,null,null,null,0,0,0,null,null,null,3,null,null,null,null,null,null,null,null,null,null,null,null,null,null,null,null,null,null,null,null,null,null,null,null,null,null,0,null,null,0,null,0,null,null,0,0,0,0,0,null,null,null,null,null,null,null,null,null,null,null,null,null,null,null,null,null,null,null,null,null,null,null,null,null,null,null,null,null,null,null,null,0,null,null,0,null,null,null,null,null,null,null,null,null,null,null,null,null,null,null,null,null,null,null,null,null,"a) If present, must be less than or equal to NRD10\nb) If present NRD10 must be present","Integer value >= 0"]
[14,"","NRD11.1","Number of days when you were in the UK at midnight during the return year, but you were in transit.",null,null,null,null,null,null,null,null,null,null,null,null,null,null,null,null,null,null,null,null,null,null,null,null,null,null,null,null,null,null,null,null,null,null,null,null,null,null,null,null,null,null,null,null,null,null,null,null,null,null,null,null,null,null,null,null,null,null,null,null,null,null,null,null,null,null,null,null,null,null,null,null,null,null,null,null,null,null,null,null,null,null,null,null,null,null,null,null,null,null,null,null,null,null,null,null,null,null,null,null,null,null,null,null,null,null,null,null,null,null,null,null,null,null,null,null,null,null,null,null,null,null,null,null,null,null,null,null,null,null,null,null,null,null,null,null,null,null,null,null,null,null,null,null,null,null,null,null,null,null,null,null,null,null,null,null,null,null,null,null,null,null,null,null,null,null,null,null,null,null,null,null,null,null,null,null,null,60]
[15,"","NRD12",{"$f":"\"How many ties to the UK did you have in \"&tax_year&\"?\"","v":"How many ties to the UK did you have in 2025-26?"},null,null,null,null,null,null,null,null,null,null,null,null,null,null,null,null,null,null,null,null,null,null,null,null,null,null,null,null,null,null,null,null,null,null,null,null,null,null,null,null,null,null,null,null,null,1,0,1,null,null,null,null,null,null,null,null,null,null,null,null,null,null,null,null,null,null,null,null,null,null,null,null,null,null,null,null,null,null,null,null,null,null,null,null,null,null,null,null,null,null,null,null,null,null,null,null,null,null,null,null,null,null,null,null,null,null,null,null,null,null,null,null,null,null,null,null,null,null,0,0,null,null,null,null,null,null,null,null,null,null,null,null,null,null,null,null,null,null,null,null,null,null,null,null,null,null,null,null,null,null,null,null,null,null,null,null,null,null,null,null,null,null,null,null,null,null,null,null,null,null,null,1,1,1,null,null,null,null,null,null,null,null,null,null,null,null,null,null,null,null,null,null,null,null,null,null,null,null,null,null,null,null,null,null,4,null,null,0,null,0,null,null,4,3,3,3,3,null,null,null,null,null,null,null,null,null,null,null,null,null,null,null,null,null,null,null,null,null,null,null,null,null,null,null,null,null,null,null,null,3,null,null,null,null,null,null,null,null,null,null,null,null,null,null,null,null,null,null,null,null,null,null,null,null,null,"Integer value >= 0"]
[16,"","NRD13",{"$f":"\"Number of days you worked for more than 3 hours in the UK in \"&tax_year","v":"Number of days you worked for more than 3 hours in the UK in 2025-26"},null,null,null,null,null,null,null,null,null,null,null,null,null,null,null,null,null,null,null,null,null,null,null,null,null,null,null,null,null,null,null,null,null,null,null,null,null,null,null,null,null,null,null,null,null,80,0,80,null,null,null,null,null,null,null,null,null,null,null,null,null,null,null,null,null,null,null,null,null,null,null,null,null,null,null,null,null,null,null,null,null,null,null,null,null,null,null,null,null,null,null,null,null,null,null,null,null,null,null,null,null,null,null,null,null,null,null,null,null,null,null,null,null,null,null,null,null,null,0,0,null,null,null,null,null,null,null,null,null,null,null,null,17,null,null,null,null,null,null,null,null,null,null,null,null,null,null,null,null,null,null,null,null,null,null,null,null,null,null,null,null,null,null,null,null,null,null,null,null,null,null,80,80,80,null,null,null,null,null,null,null,null,null,null,null,null,null,null,null,null,null,null,null,null,null,null,null,null,null,null,null,null,null,null,286,null,null,0,null,0,null,null,286,294,294,294,294,null,null,null,null,null,null,null,null,null,null,null,null,null,null,null,null,null,null,null,null,null,null,null,null,null,null,null,null,null,2,null,null,51,null,null,11,null,null,null,null,null,null,null,null,null,null,null,null,null,null,null,null,null,null,null,null,null,null,"Integer value >= 0"]
[17,"","NRD14",{"$f":"\"Number of days you worked for more than 3 hours overseas in \"&tax_year","v":"Number of days you worked for more than 3 hours overseas in 2025-26"},null,null,null,null,null,null,null,null,null,null,null,null,null,null,null,null,null,null,null,null,null,null,null,null,null,null,null,null,null,null,null,null,null,null,null,null,null,null,null,null,null,null,null,null,null,160,0,160,null,null,null,null,null,null,null,null,null,null,null,null,null,null,null,null,null,null,null,null,null,null,null,null,null,null,null,null,null,null,null,null,null,null,null,null,null,null,null,null,null,null,null,null,null,null,null,null,null,null,null,null,null,null,null,null,null,null,null,null,null,null,null,null,null,null,null,null,null,null,71,129,null,null,null,null,null,null,null,null,null,null,null,null,null,null,null,null,null,null,null,null,null,null,null,null,null,null,null,null,null,null,null,null,null,null,null,null,null,null,null,null,null,null,null,null,null,null,null,null,null,null,null,160,160,160,null,null,null,null,null,null,null,null,null,null,null,null,null,null,null,null,null,null,null,null,null,null,null,null,null,null,null,null,null,null,null,null,null,null,null,null,null,null,null,null,null,null,null,null,null,null,null,null,null,null,null,null,null,null,null,null,null,null,null,null,null,null,null,null,null,null,null,null,null,null,null,null,null,null,null,117,null,null,214,null,null,null,null,null,null,null,null,null,null,null,null,null,null,null,null,null,null,null,null,null,null,"Integer value > 0"]
[18,"","NRD15","If you are entitled to claim personal allowances as a non-resident because of the terms of a Double Taxation Agreement, put ‘X’ in the box",null,null,null,null,null,null,null,null,null,null,null,null,null,null,null,null,null,null,null,null,null,null,null,null,null,null,null,null,null,null,null,null,null,null,null,null,null,null,null,null,null,null,null,null,null,"N","Y","N",null,null,null,null,null,null,null,null,null,null,null,null,null,null,null,null,null,null,null,null,null,null,null,null,null,null,null,null,null,null,null,null,null,null,null,null,null,null,null,null,null,null,null,null,null,null,null,null,null,null,null,null,null,null,null,null,null,null,null,null,null,null,null,null,null,null,null,null,null,null,"N","N",null,null,null,null,null,null,null,null,null,null,null,null,null,null,null,null,null,null,null,null,null,null,null,null,null,null,null,null,null,null,null,null,null,null,null,null,null,null,null,null,null,null,null,null,null,null,null,null,null,null,null,"N","N","N",null,null,null,"Y",null,null,null,null,null,null,null,null,null,null,null,null,null,null,null,null,null,null,null,null,null,null,null,null,null,null,"N",null,null,"N",null,"N",null,null,"N","N","N","N","N",null,null,null,null,null,null,null,null,null,null,null,null,null,null,null,null,null,null,null,null,null,null,null,null,null,null,null,null,"Y","Y",null,null,null,null,null,"Y",null,null,null,null,null,null,null,null,null,null,null,null,null,null,null,null,null,null,null,"Y",null,null,"\"yes\""]
[19,{"$f":"IF(NRD_IND>1,IF(HLOOKUP(NRD_IND-1,NRD_RANGE,A106)=\"\",\"\",HLOOKUP(NRD_IND-1,NRD_RANGE,A106)),\"\")","v":""},"NRD16","If you are entitled to claim personal allowances as a non-resident on some other basis, or as a dual resident remittance basis user under the terms of certain Double Taxation Agreements (read the notes), put ‘X’ in the box",null,null,null,null,null,null,null,null,null,null,null,null,null,null,null,null,null,null,null,null,null,null,null,null,null,null,null,null,null,null,null,null,null,null,null,null,null,null,null,null,null,null,null,null,null,"Y","N","Y",null,null,null,null,null,null,null,null,null,null,"Y",null,null,null,null,null,null,null,null,null,null,null,null,null,null,null,null,null,null,null,null,null,null,null,null,null,null,null,null,null,null,null,null,null,null,null,null,null,null,null,null,null,null,null,null,null,null,null,null,null,null,null,null,null,null,null,null,null,null,null,"N","N",null,null,null,null,null,null,null,null,null,null,null,null,null,null,null,null,null,null,null,null,null,null,null,null,null,null,null,null,null,null,null,null,null,null,null,null,null,null,null,null,null,null,null,null,null,null,null,null,null,null,null,"Y","Y","Y",null,null,null,null,null,null,null,null,null,null,null,null,null,null,null,null,null,null,null,null,null,null,null,null,null,null,null,null,null,null,"N",null,null,"N",null,"N",null,null,"N","N","N","N","N",null,null,null,null,null,null,null,null,null,null,null,null,null,null,null,null,null,null,null,null,null,null,null,null,null,null,null,null,null,null,"Y",null,null,null,null,"Y",null,null,null,null,null,null,null,null,null,null,null,null,"Y","Y",null,null,"Y",null,null,null,null,null,"\"yes\""]
[20,"","NRD17","Enter the code(s) for the country or countries of which you are a national and/or resident – read the notes",null,null,null,null,null,null,null,null,null,null,null,null,null,null,null,null,null,null,null,null,null,null,null,null,null,null,null,null,null,null,null,null,null,null,null,null,null,null,null,null,null,null,null,null,null,"SWE","IRL","SWE",null,null,null,null,null,null,null,null,null,null,"FRA",null,null,null,null,null,null,null,null,null,null,null,null,null,null,null,null,null,null,null,null,null,null,null,null,null,null,null,null,null,null,null,null,null,null,null,null,null,null,null,null,null,null,null,null,null,null,null,null,null,null,null,null,null,null,null,null,null,null,null,"SAU","USA",null,null,null,null,null,null,null,null,null,null,null,null,null,null,null,null,null,null,null,null,null,null,null,null,null,null,null,null,null,null,null,null,null,null,null,null,null,null,null,null,null,null,null,null,null,null,null,null,null,null,null,"SWE","SWE","SWE",null,null,null,"FRA",null,null,null,null,null,null,null,null,null,null,null,null,null,null,null,null,null,null,null,null,null,null,null,null,null,null,"SAU",null,null,"IND",null,"IND",null,null,"SAU",null,"USA","USA","USA",null,null,null,null,null,null,null,null,null,null,null,null,null,null,null,null,null,null,null,null,null,null,null,null,null,null,null,null,"HKG","AUS","FRA",null,null,null,null,"USA",null,null,null,null,null,null,null,null,null,null,null,null,"BEL","USA",null,null,"PHL",null,null,"CAN",null,"3 Iterations","SA Country Code (3 upper case letters)"]
[21,"","NRD18",{"$f":"\"Enter the code(s) for the country or countries, other than the UK, in which you were resident for tax purposes for \"&tax_year","v":"Enter the code(s) for the country or countries, other than the UK, in which you were resident for tax purposes for 2025-26"},null,null,null,null,null,null,null,null,null,null,null,null,null,null,null,null,null,null,null,null,null,null,null,null,null,null,null,null,null,null,null,null,null,null,null,null,null,null,null,null,null,null,null,null,null,null,"IRL",null,null,null,null,null,null,null,null,null,null,null,"FRA",null,null,null,null,null,null,null,null,null,null,null,null,null,null,null,null,null,null,null,null,null,null,null,null,null,null,null,null,null,null,null,null,null,null,null,null,null,null,null,null,null,null,null,null,null,null,null,null,null,null,null,null,null,null,null,null,null,null,null,"SAU","USA",null,null,null,null,null,null,null,null,null,null,null,null,null,null,null,null,null,null,null,null,null,null,null,null,null,null,null,null,null,null,null,null,null,null,null,null,null,null,null,null,null,null,null,null,null,null,null,null,null,null,null,null,null,null,null,null,null,"FRA",null,null,null,null,null,null,null,null,null,null,null,null,null,null,null,null,null,null,null,null,null,null,null,null,null,null,"SAU",null,null,"IND",null,"IND",null,null,"SAU","USA","USA","USA","USA",null,null,null,null,null,null,null,null,null,null,null,null,null,null,null,null,null,null,null,null,null,null,null,null,null,null,null,null,"HKG","AUS","FRA",null,null,null,null,null,null,null,null,null,null,null,null,null,null,null,null,null,null,null,null,null,null,null,null,null,null,"2 Iterations","SA Country Code (3 upper case letters)"]
[22,"","NRD19",{"$f":"\"If you were also resident in either or both of the countries above for \"&tax_year&\", enter the appropriate code(s)\"","v":"If you were also resident in either or both of the countries above for 2025-26, enter the appropriate code(s)"},null,null,null,null,null,null,null,null,null,null,null,null,null,null,null,null,null,null,null,null,null,null,null,null,null,null,null,null,null,null,null,null,null,null,null,null,null,null,null,null,null,null,null,null,null,null,"IRL",null,null,null,null,null,null,null,null,null,null,null,"FRA",null,null,null,null,null,null,null,null,null,null,null,null,null,null,null,null,null,null,null,null,null,null,null,null,null,null,null,null,null,null,null,null,null,null,null,null,null,null,null,null,null,null,null,null,null,null,null,null,null,null,null,null,null,null,null,null,null,null,null,null,"USA",null,null,null,null,null,null,null,null,null,null,null,null,null,null,null,null,null,null,null,null,null,null,null,null,null,null,null,null,null,null,null,null,null,null,null,null,null,null,null,null,null,null,null,null,null,null,null,null,null,null,null,null,null,null,null,null,null,"FRA",null,null,null,null,null,null,null,null,null,null,null,null,null,null,null,null,null,null,null,null,null,null,null,null,null,null,null,null,null,"IND",null,"IND",null,null,null,"USA","USA","USA","USA",null,null,null,null,null,null,null,null,null,null,null,null,null,null,null,null,null,null,null,null,null,null,null,null,null,null,null,null,"HKG","AUS","FRA",null,null,null,null,null,null,null,null,null,null,null,null,null,null,null,null,null,null,null,null,null,null,null,null,null,null,"2 Iterations. ","SA Country Code (3 upper case letters)"]
[23,"","NRD20","Amount of Double Taxation Agreement income for which partial relief is being claimed",null,null,null,null,null,null,null,null,null,null,null,null,null,null,null,null,null,null,null,null,null,null,null,null,null,null,null,null,null,null,null,null,null,null,null,null,null,null,null,null,null,null,null,null,null,null,10882,null,null,null,null,null,null,null,null,null,null,null,null,null,null,null,null,null,null,null,null,null,null,null,null,null,null,null,null,null,null,null,null,null,null,null,null,null,null,null,null,null,null,null,null,null,null,null,null,null,null,null,null,null,null,null,null,null,null,null,null,null,null,null,null,null,null,null,null,null,null,null,null,2400,null,null,null,null,null,null,null,null,null,null,null,null,null,null,null,null,null,null,null,null,null,null,null,null,null,null,null,null,null,null,null,null,null,null,null,null,null,null,null,null,null,null,null,null,null,null,null,null,null,null,null,null,null,null,null,null,null,null,null,null,null,null,null,null,null,null,null,null,null,null,null,null,null,null,null,null,null,null,null,null,null,null,null,null,null,null,null,null,null,null,null,null,null,null,131762,131762,131762,null,null,null,null,null,null,null,null,null,null,null,null,null,null,null,null,null,null,null,null,null,null,null,null,null,null,null,null,null,null,null,null,null,null,null,null,null,null,null,null,null,null,null,null,null,null,null,null,null,null,null,null,null,null,null,null,null,null,"SA Monetary value (2dp) > 0.00"]
[24,"","NRD21","Relief under Double Taxation Agreements between the UK and other countries",null,null,null,null,null,null,null,null,null,null,null,null,null,null,null,null,null,null,null,null,null,null,null,null,null,null,null,null,null,null,null,null,null,null,null,null,null,null,null,null,null,null,null,null,null,null,null,null,null,null,null,null,null,null,null,null,null,null,null,null,null,null,null,null,null,null,null,null,null,null,null,null,null,null,null,null,null,null,null,null,null,null,null,null,null,null,null,null,null,null,null,null,null,null,null,null,null,null,null,null,null,null,null,null,null,null,null,null,null,null,null,null,null,null,null,null,null,null,null,0,null,null,null,null,null,null,null,null,null,null,null,null,null,null,null,null,null,null,null,null,null,null,null,null,null,null,null,null,null,null,null,null,null,null,null,null,null,null,null,null,null,null,null,null,null,null,null,null,null,null,null,null,null,null,null,null,null,null,null,null,null,null,null,null,null,null,null,null,null,null,null,null,null,null,null,null,null,null,null,null,null,null,null,null,null,null,null,null,null,null,null,null,null,null,null,null,null,null,null,null,null,null,null,null,null,null,null,null,null,null,null,null,null,null,null,null,null,null,null,null,null,null,null,null,null,null,null,null,null,null,null,null,null,null,null,null,null,null,null,null,null,null,null,null,null,null,null,null,null,null,null,null,null,null,null,"SA Monetary value (2dp) > 0.00"]
[25,"","NRD22","Relief claimed because of other provisions of the relevant Double Taxation Agreements",null,null,null,null,null,null,null,null,null,null,null,null,null,null,null,null,null,null,null,null,null,null,null,null,null,null,null,null,null,null,null,null,null,null,null,null,null,null,null,null,null,null,null,null,null,null,1632,null,null,null,null,null,null,null,null,null,null,null,null,null,null,null,null,null,null,null,null,null,null,null,null,null,null,null,null,null,null,null,null,null,null,null,null,null,null,null,null,null,null,null,null,null,null,null,null,null,null,null,null,null,null,null,null,null,null,null,null,null,null,null,null,null,null,null,null,null,null,null,null,120,null,null,null,null,null,null,null,null,null,null,null,null,null,null,null,null,null,null,null,null,null,null,null,null,null,null,null,null,null,null,null,null,null,null,null,null,null,null,null,null,null,null,null,null,null,null,null,null,null,null,null,null,null,null,null,null,null,null,null,null,null,null,null,null,null,null,null,null,null,null,null,null,null,null,null,null,null,null,null,null,null,null,null,null,null,null,null,null,null,null,null,null,null,null,null,null,null,null,null,null,null,null,null,null,null,null,null,null,null,null,null,null,null,null,null,null,null,null,null,null,null,null,null,null,null,null,null,null,null,null,null,null,null,null,null,null,null,null,null,null,null,null,null,null,null,null,null,null,null,null,null,null,null,null,null,"SA Monetary value (2dp) > 0.00"]
[26,"","NRD23","What was your date of arrival",null,null,null,null,null,null,null,null,null,null,null,null,null,null,null,null,null,null,null,null,null,null,null,null,null,null,null,null,null,null,null,null,null,null,null,null,null,null,null,null,null,null,null,null,null,null,null,null,null,null,null,null,null,null,null,null,null,null,null,null,null,null,null,null,null,null,null,null,null,null,null,null,null,null,null,null,null,null,null,null,null,null,null,null,null,null,null,null,null,null,null,null,null,null,null,null,null,null,null,null,null,null,null,null,null,null,null,null,null,null,null,null,null,null,null,null,null,null,null,null,null,null,null,null,null,null,null,null,null,null,null,null,null,null,null,null,null,null,null,null,null,null,null,null,null,null,null,null,null,null,null,null,null,null,null,null,null,null,null,null,null,null,null,null,null,null,null,null,null,null,null,null,null,null,null,null,null,null,null,null,null,null,null,null,null,null,null,null,null,null,null,null,null,null,null,null,null,null,null,null,null,null,null,null,null,null,null,null,null,null,"2025-03-03",null,null,null,null,null,null,null,null,null,null,null,null,null,null,null,null,null,null,null,null,null,null,null,null,null,null,null,null,null,null,null,null,null,null,null,null,null,null,null,null,null,null,null,null,null,null,null,null,null,null,null,null,null,null,null,null,null,null,null,null,null,null,null,null,"\"yes\""]
[27,{"$f":"IF(NRD_IND>1,IF(HLOOKUP(NRD_IND-1,NRD_RANGE,A114)=\"\",\"\",HLOOKUP(NRD_IND-1,NRD_RANGE,A114)),\"\")","v":""},"NRD23.1","If you were deemed UK domicle under Condition A, put 'X' in the box"]
[28,"","NRD23.2","If you were deemed UK domicle under Condition B, put 'X' in the box"]
[29,"","NRD23.3","Enter the number of years you’ve been resident in the UK in the previous 20 years"]
[30,"","NRD24","If you were UK resident in a tax year prior to your \nmost recent arrival enter the year",null,null,null,null,null,null,null,null,null,null,null,null,null,null,null,null,null,null,null,null,null,null,null,null,null,null,null,null,null,null,null,null,null,null,null,null,null,null,null,null,null,null,null,null,null,null,null,null,null,null,null,null,null,null,null,null,null,null,null,null,null,null,null,null,null,null,null,null,null,null,null,null,null,null,null,null,null,null,null,null,null,null,null,null,null,null,null,null,null,null,null,null,null,null,null,null,null,null,null,null,null,null,null,null,null,null,null,null,null,null,null,null,null,null,null,null,null,null,null,null,null,null,null,null,null,null,null,null,null,null,null,null,null,null,null,null,null,null,null,null,null,null,null,null,null,null,null,null,null,null,null,null,null,null,null,null,null,null,null,null,null,null,null,null,null,null,null,null,null,null,null,null,null,null,null,null,null,null,null,null,null,null,null,null,null,null,null,null,null,null,null,null,null,null,null,null,null,null,null,null,null,null,null,null,null,null,null,null,null,null,null,null,null,null,null,null,null,null,null,null,null,null,null,null,null,null,null,null,null,null,null,null,null,null,null,null,null,null,null,null,null,null,null,null,null,null,null,null,null,null,null,null,null,null,null,null,null,null,null,null,null,null,null,null,null,null,null,null,null,null,null,null,null,null,"If 'Y' NRD23 must be 'Y'","\"yes\""]
[31,"","NRD25","If you have put ‘X’ in box 23 and have a domicile of origin within the UK, enter the date on which your domicile changed DD MM YYYY",null,null,null,null,null,null,null,null,null,null,null,null,null,null,null,null,null,null,null,null,null,null,null,null,null,null,null,null,null,null,null,null,null,null,null,null,null,null,null,null,null,null,null,null,null,null,null,null,null,null,null,null,null,null,null,null,null,null,null,null,null,null,null,null,null,null,null,null,null,null,null,null,null,null,null,null,null,null,null,null,null,null,null,null,null,null,null,null,null,null,null,null,null,null,null,null,null,null,null,null,null,null,null,null,null,null,null,null,null,null,null,null,null,null,null,null,null,null,null,null,null,null,null,null,null,null,null,null,null,null,null,null,null,null,null,null,null,null,null,null,null,null,null,null,null,null,null,null,null,null,null,null,null,null,null,null,null,null,null,null,null,null,null,null,null,null,null,null,null,null,null,null,null,null,null,null,null,null,null,null,null,null,null,null,null,null,null,null,null,null,null,null,null,null,null,null,null,null,null,null,null,null,null,null,null,null,null,null,null,null,null,null,null,null,null,null,null,null,null,null,null,null,null,null,null,null,null,null,null,null,null,null,null,null,null,null,null,null,null,null,null,null,null,null,null,null,null,null,null,null,null,null,null,null,null,null,null,null,null,null,null,null,null,null,null,null,null,null,null,null,null,null,null,null,"If present NRD23 must be 'Y'","SA MTR date"]
[32,"","NRD26","If you were born in the UK but have never been domiciled here, put ‘X’ in the box",null,null,null,null,null,null,null,null,null,null,null,null,null,null,null,null,null,null,null,null,null,null,null,null,null,null,null,null,null,null,null,null,null,null,null,null,null,null,null,null,null,null,null,null,null,null,null,null,null,null,null,null,null,null,null,null,null,null,null,null,null,null,null,null,null,null,null,null,null,null,null,null,null,null,null,null,null,null,null,null,null,null,null,null,null,null,null,null,null,null,null,null,null,null,null,null,null,null,null,null,null,null,null,null,null,null,null,null,null,null,null,null,null,null,null,null,null,null,null,null,null,null,null,null,null,null,null,null,null,null,null,null,null,null,null,null,null,null,null,null,null,null,null,null,null,null,null,null,null,null,null,null,null,null,null,null,null,null,null,null,null,null,null,null,null,null,null,null,null,null,null,null,null,null,null,null,null,null,null,null,null,null,null,null,null,null,null,null,null,null,null,null,null,null,null,null,null,null,null,null,null,null,null,null,null,null,null,null,null,null,null,null,null,null,null,null,null,null,null,null,null,null,null,null,null,null,null,null,null,null,null,null,null,null,null,null,null,null,null,null,null,null,null,null,null,null,null,null,null,null,null,null,null,null,null,null,null,null,null,null,null,null,null,null,null,null,null,null,null,null,null,null,null,null,"a) If present NRD23 must be present \nb) If present NRD25 must be absent","\"yes\""]
[33,"","NRD27","If you have put ‘X’ in box 23 and you were born outside the UK, enter the date that you first came to live in the UK",null,null,null,null,null,null,null,null,null,null,null,null,null,null,null,null,null,null,null,null,null,null,null,null,null,null,null,null,null,null,null,null,null,null,null,null,null,null,null,null,null,null,null,null,null,null,null,null,null,null,null,null,null,null,null,null,null,null,null,null,null,null,null,null,null,null,null,null,null,null,null,null,null,null,null,null,null,null,null,null,null,null,null,null,null,null,null,null,null,null,null,null,null,null,null,null,null,null,null,null,null,null,null,null,null,null,null,null,null,null,null,null,null,null,null,null,null,null,null,null,null,null,null,null,null,null,null,null,null,null,null,null,null,null,null,null,null,null,null,null,null,null,null,null,null,null,null,null,null,null,null,null,null,null,null,null,null,null,null,null,null,null,null,null,null,null,null,null,null,null,null,null,null,null,null,null,null,null,null,null,null,null,null,null,null,null,null,null,null,null,null,null,null,null,null,null,null,null,null,null,null,null,null,null,null,null,null,null,null,null,null,null,null,null,null,null,null,null,null,null,null,null,null,null,null,null,null,null,null,null,null,null,null,null,null,null,null,null,null,null,null,null,null,null,null,null,null,null,null,null,null,null,null,null,null,null,null,null,null,null,null,null,null,null,null,null,null,null,null,null,null,null,null,null,"a) If present NRD23 must be present \nb) If present NRD26 must be absent","SA MTR date"]
[34,"","NRD28","If you are making a claim for relief in foreign income \nunder the FIG regime, put 'X' in the box ",null,null,null,null,null,null,null,null,null,null,null,null,null,null,null,null,null,null,null,null,null,null,null,null,null,null,null,null,null,null,null,null,null,null,null,null,null,null,null,null,null,null,null,null,null,null,null,null,null,null,null,null,null,null,null,null,null,null,null,null,null,null,null,null,null,null,null,null,null,null,null,null,null,null,null,null,null,null,null,null,null,null,null,null,null,null,null,null,null,null,null,null,null,null,null,null,null,null,null,null,null,null,null,null,null,null,null,null,null,null,null,null,null,null,null,null,null,null,null,null,null,null,null,null,null,null,null,null,null,null,null,null,null,null,null,null,null,null,null,null,null,null,null,null,null,null,null,null,null,null,null,null,null,null,null,null,null,null,null,null,null,null,null,null,null,null,null,null,null,null,null,null,null,null,null,null,null,null,null,null,null,null,null,null,null,null,null,null,null,null,null,null,null,null,null,null,null,null,null,null,null,null,null,null,null,null,null,null,null,null,"Y",null,null,null,null,null,null,null,null,null,null,null,null,null,null,null,null,null,null,null,null,null,null,null,null,null,null,null,null,null,"Y",null,null,null,null,null,null,null,null,null,null,null,null,null,null,null,null,null,null,null,null,null,null,null,null,null,null,null,null,null,null,null,null,null,"If NRD28 present then NRD23.1 and NRD23.2 must NOT be present\nIf present, NRD23 must be present","\"yes\""]
[35,"","NRD29","If you are making a claim for relief on foreign gains \nunder the FIG regime, put 'X' in the box",null,null,null,null,null,null,null,null,null,null,null,null,null,null,null,null,null,null,null,null,null,null,null,null,null,null,null,null,null,null,null,null,null,null,null,null,null,null,null,null,null,null,null,null,null,null,null,null,null,null,null,null,null,null,null,null,null,null,null,null,null,null,null,null,null,null,null,null,null,null,null,null,null,null,null,null,null,null,null,null,null,null,null,null,null,null,null,null,null,null,null,null,null,null,null,null,null,null,null,null,null,null,null,null,null,null,null,null,null,null,null,null,null,null,null,null,null,null,null,null,null,null,null,null,null,null,null,null,null,null,null,null,null,null,null,null,null,null,null,null,null,null,null,null,null,null,null,null,null,null,null,null,null,null,null,null,null,null,null,null,null,null,null,null,null,null,null,null,null,null,null,null,null,null,null,null,null,null,null,null,null,null,null,null,null,null,null,null,null,null,null,null,null,null,null,null,null,null,null,null,null,null,null,null,null,null,null,null,null,null,"Y",null,null,null,null,null,null,null,null,null,null,null,null,null,null,null,null,null,null,null,null,null,null,null,null,null,null,null,null,null,"Y",null,null,null,null,null,null,null,null,null,null,null,null,null,null,null,null,null,null,null,null,null,null,null,null,null,null,null,null,null,null,null,null,null,"If NRD28 present then NRD23.1 and NRD23.2 must NOT be present unless NRD29 is also present\nIf present, NRD23 must be present","\"yes\""]
[36,"","NRD30","f you have UK income or gains deemed to be foreign \nunder qualifying asset holding company rules, \nput ‘X’ in the box",null,null,null,null,null,null,null,null,null,null,null,null,null,null,null,null,null,null,null,null,null,null,null,null,null,null,null,null,null,null,null,null,null,null,null,null,null,null,null,null,null,null,null,null,null,null,null,null,null,null,null,null,null,null,null,null,null,null,null,null,null,null,null,null,null,null,null,null,null,null,null,null,null,null,null,null,null,null,null,null,null,null,null,null,null,null,null,null,null,null,null,null,null,null,null,null,null,null,null,null,null,null,null,null,null,null,null,null,null,null,null,null,null,null,null,null,null,null,null,null,null,null,null,null,null,null,null,null,null,null,null,null,null,null,null,null,null,null,null,null,null,null,null,null,null,null,null,null,null,null,null,null,null,null,null,null,null,null,null,null,null,null,null,null,null,null,null,null,null,null,null,null,null,null,null,null,null,null,null,null,null,null,null,null,null,null,null,null,null,null,null,null,null,null,null,null,null,null,null,null,null,null,null,null,null,null,null,null,null,null,"N",null,null,null,null,null,null,null,null,null,null,null,null,null,null,null,null,null,null,null,null,null,null,null,null,null,null,null,null,null,null,null,null,null,null,null,null,null,null,null,null,null,null,null,null,null,null,null,null,null,null,null,null,null,null,null,null,null,null,null,null,null,null,null,"If NRD30 present then NRD28 and NRD29 must NOT be present\nIf NRD30 present then NRD23.1 or NRD23.2 must be present","\"yes\""]
[37,"","NRD31",{"$f":"\"If you were UK resident for \"&tax_year&\" and for 12 or more of the preceding 14 tax years, put ‘X’ in the box\"","v":"If you were UK resident for 2025-26 and for 12 or more of the preceding 14 tax years, put ‘X’ in the box"},null,null,null,null,null,null,null,null,null,null,null,null,null,null,null,null,null,null,null,null,null,null,null,null,null,null,null,null,null,null,null,null,null,null,null,null,null,null,null,null,null,null,null,null,null,null,null,null,null,null,null,null,null,null,null,null,null,null,null,null,null,null,null,null,null,null,null,null,null,null,null,null,null,null,null,null,null,null,null,null,null,null,null,null,null,null,null,null,null,null,null,null,null,null,null,null,null,null,null,null,null,null,null,null,null,null,null,null,null,null,null,null,null,null,null,null,null,null,null,null,null,null,null,null,null,null,null,null,null,null,null,null,null,null,null,null,null,null,null,null,null,null,null,null,null,null,null,null,null,null,null,null,null,null,null,null,null,null,null,null,null,null,null,null,null,null,null,null,null,null,null,null,null,null,null,null,null,null,null,null,null,null,null,null,null,null,null,null,null,null,null,null,null,null,null,null,null,null,null,null,null,null,null,null,null,null,null,null,null,null,null,null,null,null,null,null,null,null,null,null,null,null,null,null,null,null,null,null,null,null,null,null,null,null,null,null,null,null,null,null,null,null,null,null,null,null,null,null,null,null,null,null,null,null,null,null,null,null,null,null,null,null,null,null,null,null,null,null,null,null,null,null,null,null,"If NRD31 = 'Y' then NRD28 = 'Y' and/or NRD29 = 'Y' \nIf NRD31 present then NRD32 must NOT be present","\"yes\""]
[38,"","NRD32",{"$f":"\"If you were UK resident for \"&tax_year&\" and for 7 or more of the preceding 9 tax years, put ‘X’ in the box\"","v":"If you were UK resident for 2025-26 and for 7 or more of the preceding 9 tax years, put ‘X’ in the box"},null,null,null,null,null,null,null,null,null,null,null,null,null,null,null,null,null,null,null,null,null,null,null,null,null,null,null,null,null,null,null,null,null,null,null,null,null,null,null,null,null,null,null,null,null,null,null,null,null,null,null,null,null,null,null,null,null,null,null,null,null,null,null,null,null,null,null,null,null,null,null,null,null,null,null,null,null,null,null,null,null,null,null,null,null,null,null,null,null,null,null,null,null,null,null,null,null,null,null,null,null,null,null,null,null,null,null,null,null,null,null,null,null,null,null,null,null,null,null,null,null,null,null,null,null,null,null,null,null,null,null,null,null,null,null,null,null,null,null,null,null,null,null,null,null,null,null,null,null,null,null,null,null,null,null,null,null,null,null,null,null,null,null,null,null,null,null,null,null,null,null,null,null,null,null,null,null,null,null,null,null,null,null,null,null,null,null,null,null,null,null,null,null,null,null,null,null,null,null,null,null,null,null,null,null,null,null,null,null,null,null,null,null,null,null,null,null,null,null,null,null,null,null,null,null,null,null,null,null,null,null,null,null,null,null,null,null,null,null,null,null,null,null,null,null,null,null,null,null,null,null,null,null,null,null,null,null,null,null,null,null,null,null,null,null,null,null,null,null,null,null,null,null,null,"If NRD32 = 'Y' then NRD28 = 'Y' and/or NRD29 = 'Y' \nIf NRD32 present then NRD31 must NOT be present","\"yes\""]
[39,"","NRD33",{"$f":"\"If you were under 18 on 5 April \"&Tax_year_end&\", put ‘X’ in the box\"","v":"If you were under 18 on 5 April 2026, put ‘X’ in the box"},null,null,null,null,null,null,null,null,null,null,null,null,null,null,null,null,null,null,null,null,null,null,null,null,null,null,null,null,null,null,null,null,null,null,null,null,null,null,null,null,null,null,null,null,null,null,null,null,null,null,null,null,null,null,null,null,null,null,null,null,null,null,null,null,null,null,null,null,null,null,null,null,null,null,null,null,null,null,null,null,null,null,null,null,null,null,null,null,null,null,null,null,null,null,null,null,null,null,null,null,null,null,null,null,null,null,null,null,null,null,null,null,null,null,null,null,null,null,null,null,null,null,null,null,null,null,null,null,null,null,null,null,null,null,null,null,null,null,null,null,null,null,null,null,null,null,null,null,null,null,null,null,null,null,null,null,null,null,null,null,null,null,null,null,null,null,null,null,null,null,null,null,null,null,null,null,null,null,null,null,null,null,null,null,null,null,null,null,null,null,null,null,null,null,null,null,null,null,null,null,null,null,null,null,null,null,null,null,null,null,null,null,null,null,null,null,null,null,null,null,null,null,null,null,null,null,null,null,null,null,null,null,null,null,null,null,null,null,null,null,null,null,null,null,null,null,null,null,null,null,null,null,null,null,null,null,null,null,null,null,null,null,null,null,null,null,null,null,null,null,null,null,null,null,null,"\"yes\""]
[40,"","NRD34","Amount of income you are nominating",null,null,null,null,null,null,null,null,null,null,null,null,null,null,null,null,null,null,null,null,null,null,null,null,null,null,null,null,null,null,null,null,null,null,null,null,null,null,null,null,null,null,null,null,null,null,null,null,null,null,null,null,null,null,null,null,null,null,null,null,null,null,null,null,null,null,null,null,null,null,null,null,null,null,null,null,null,null,null,null,null,null,null,null,null,null,null,null,null,null,null,null,null,null,null,null,null,null,null,null,null,null,null,null,null,null,null,null,null,null,null,null,null,null,null,null,null,null,null,null,null,null,null,null,null,null,null,null,null,null,null,null,null,null,null,null,null,null,null,null,null,null,null,null,null,null,null,null,null,null,null,null,null,null,null,null,null,null,null,null,null,null,null,null,null,null,null,null,null,null,null,null,null,null,null,null,null,null,null,null,null,null,null,null,null,null,null,null,null,null,null,null,null,null,null,null,null,null,null,null,null,null,null,null,null,null,null,null,null,null,null,null,null,null,null,null,null,null,null,null,null,null,null,null,null,null,null,null,null,null,null,null,null,null,null,null,null,null,null,null,null,null,null,null,null,null,null,null,null,null,null,null,null,null,null,null,null,null,null,null,null,null,null,null,null,null,null,null,null,null,null,null,null,null,null,"SA Monetary value (2dp) > 0.00"]
[41,"","NRD35","Amount of capital gains you are nominating",null,null,null,null,null,null,null,null,null,null,null,null,null,null,null,null,null,null,null,null,null,null,null,null,null,null,null,null,null,null,null,null,null,null,null,null,null,null,null,null,null,null,null,null,null,null,null,null,null,null,null,null,null,null,null,null,null,null,null,null,null,null,null,null,null,null,null,null,null,null,null,null,null,null,null,null,null,null,null,null,null,null,null,null,null,null,null,null,null,null,null,null,null,null,null,null,null,null,null,null,null,null,null,null,null,null,null,null,null,null,null,null,null,null,null,null,null,null,null,null,null,null,null,null,null,null,null,null,null,null,null,null,null,null,null,null,null,null,null,null,null,null,null,null,null,null,null,null,null,null,null,null,null,null,null,null,null,null,null,null,null,null,null,null,null,null,null,null,null,null,null,null,null,null,null,null,null,null,null,null,null,null,null,null,null,null,null,null,null,null,null,null,null,null,null,null,null,null,null,null,null,null,null,null,null,null,null,null,null,null,null,null,null,null,null,null,null,null,null,null,null,null,null,null,null,null,null,null,null,null,null,null,null,null,null,null,null,null,null,null,null,null,null,null,null,null,null,null,null,null,null,null,null,null,null,null,null,null,null,null,null,null,null,null,null,null,null,null,null,null,null,null,null,null,"If NRD28 = 'Y' and (NRD30 = 'Y' or NRD31 = 'Y' or NRD32 = 'Y') and NRD29 = 'N' and NRD33 = 'N' then\nNRD34 + NRD35 must be greater than zero.","SA Monetary value (2dp) > 0.00"]
[42,"","NRD36","Adjustment to payments on account for capital gains",null,null,null,null,null,null,null,null,null,null,null,null,null,null,null,null,null,null,null,null,null,null,null,null,null,null,null,null,null,null,null,null,null,null,null,null,null,null,null,null,null,null,null,null,null,null,null,null,null,null,null,null,null,null,null,null,null,null,null,null,null,null,null,null,null,null,null,null,null,null,null,null,null,null,null,null,null,null,null,null,null,null,null,null,null,null,null,null,null,null,null,null,null,null,null,null,null,null,null,null,null,null,null,null,null,null,null,null,null,null,null,null,null,null,null,null,null,null,null,null,null,null,null,null,null,null,null,null,null,null,null,null,null,null,null,null,null,null,null,null,null,null,null,null,null,null,null,null,null,null,null,null,null,null,null,null,null,null,null,null,null,null,null,null,null,null,null,null,null,null,null,null,null,null,null,null,null,null,null,null,null,null,null,null,null,null,null,null,null,null,null,null,null,null,null,null,null,null,null,null,null,null,null,null,null,null,null,null,null,null,null,null,null,null,null,null,null,null,null,null,null,null,null,null,null,null,null,null,null,null,null,null,null,null,null,null,null,null,null,null,null,null,null,null,null,null,null,null,null,null,null,null,null,null,null,null,null,null,null,null,null,null,null,null,null,null,null,null,null,null,null,null,null,null,"a) If present NRD35 must be present \nb) If NRD36 present, must be less than or equal to £30,000 if NRD32 = Y\nc) If NRD36 present, must be less than or equal to £60,000 if NRD31 = Y","SA Monetary value (2dp) >= 0.00"]
[43,"","NRD37",{"$f":"\"If you have remitted nominated income or gains during \"&tax_year&\", put ‘X’ in the box unless what you have remitted is within the £10 aggregate limit\"","v":"If you have remitted nominated income or gains during 2025-26, put ‘X’ in the box unless what you have remitted is within the £10 aggregate limit"},null,null,null,null,null,null,null,null,null,null,null,null,null,null,null,null,null,null,null,null,null,null,null,null,null,null,null,null,null,null,null,null,null,null,null,null,null,null,null,null,null,null,null,null,null,null,null,null,null,null,null,null,null,null,null,null,null,null,null,null,null,null,null,null,null,null,null,null,null,null,null,null,null,null,null,null,null,null,null,null,null,null,null,null,null,null,null,null,null,null,null,null,null,null,null,null,null,null,null,null,null,null,null,null,null,null,null,null,null,null,null,null,null,null,null,null,null,null,null,null,null,null,null,null,null,null,null,null,null,null,null,null,null,null,null,null,null,null,null,null,null,null,null,null,null,null,null,null,null,null,null,null,null,null,null,null,null,null,null,null,null,null,null,null,null,null,null,null,null,null,null,null,null,null,null,null,null,null,null,null,null,null,null,null,null,null,null,null,null,null,null,null,null,null,null,null,null,null,null,null,null,null,null,null,null,null,null,null,null,null,null,null,null,null,null,null,null,null,null,null,null,null,null,null,null,null,null,null,null,null,null,null,null,null,null,null,null,null,null,null,null,null,null,null,null,null,null,null,null,null,null,null,null,null,null,null,null,null,null,null,null,null,null,null,null,null,null,null,null,null,null,null,null,null,null,"\"yes\""]
[44,"","NRD38","If you are claiming relief from UK tax for foreign income or gains invested in a qualifying business, enter the total amount invested and the Company Registration Number(s) below",null,null,null,null,null,null,null,null,null,null,null,null,null,null,null,null,null,null,null,null,null,null,null,null,null,null,null,null,null,null,null,null,null,null,null,null,null,null,null,null,null,null,null,null,null,null,null,null,null,null,null,null,null,null,null,null,null,null,null,null,null,null,null,null,null,null,null,null,null,null,null,null,null,null,null,null,null,null,null,null,null,null,null,null,null,null,null,null,null,null,null,null,null,null,null,null,null,null,null,null,null,null,null,null,null,null,null,null,null,null,null,null,null,null,null,null,null,null,null,null,null,null,null,null,null,null,null,null,null,null,null,null,null,null,null,null,null,null,null,null,null,null,null,null,null,null,null,null,null,null,null,null,null,null,null,null,null,null,null,null,null,null,null,null,null,null,null,null,null,null,null,null,null,null,null,null,null,null,null,null,null,null,null,null,null,null,null,null,null,null,null,null,null,null,null,null,null,null,null,null,null,null,null,null,null,null,null,null,null,null,null,null,null,null,null,null,null,null,null,null,null,null,null,null,null,null,null,null,null,null,null,null,null,null,null,null,null,null,null,null,null,null,null,null,null,null,null,null,null,null,null,null,null,null,null,null,null,null,null,null,null,null,null,null,null,null,null,null,null,null,null,null,null,null,null,"SA Monetary value (2dp) > 0.00"]
[45,"","NRD39","If you have previously claimed relief for a qualifying investment and the investment no longer qualifies for relief, put ‘X’ in the box",null,null,null,null,null,null,null,null,null,null,null,null,null,null,null,null,null,null,null,null,null,null,null,null,null,null,null,null,null,null,null,null,null,null,null,null,null,null,null,null,null,null,null,null,null,null,null,null,null,null,null,null,null,null,null,null,null,null,null,null,null,null,null,null,null,null,null,null,null,null,null,null,null,null,null,null,null,null,null,null,null,null,null,null,null,null,null,null,null,null,null,null,null,null,null,null,null,null,null,null,null,null,null,null,null,null,null,null,null,null,null,null,null,null,null,null,null,null,null,null,null,null,null,null,null,null,null,null,null,null,null,null,null,null,null,null,null,null,null,null,null,null,null,null,null,null,null,null,null,null,null,null,null,null,null,null,null,null,null,null,null,null,null,null,null,null,null,null,null,null,null,null,null,null,null,null,null,null,null,null,null,null,null,null,null,null,null,null,null,null,null,null,null,null,null,null,null,null,null,null,null,null,null,null,null,null,null,null,null,null,null,null,null,null,null,null,null,null,null,null,null,null,null,null,null,null,null,null,null,null,null,null,null,null,null,null,null,null,null,null,null,null,null,null,null,null,null,null,null,null,null,null,null,null,null,null,null,null,null,null,null,null,null,null,null,null,null,null,null,null,null,null,null,null,null,"\"yes\""]
[46,"","NRD40"," If you are making an election for Overseas Workday \nRelief, put 'X' in the box",null,null,null,null,null,null,null,null,null,null,null,null,null,null,null,null,null,null,null,null,null,null,null,null,null,null,null,null,null,null,null,null,null,null,null,null,null,null,null,null,null,null,null,null,null,null,null,null,null,null,null,null,null,null,null,null,null,null,null,null,null,null,null,null,null,null,null,null,null,null,null,null,null,null,null,null,null,null,null,null,null,null,null,null,null,null,null,null,null,null,null,null,null,null,null,null,null,null,null,null,null,null,null,null,null,null,null,null,null,null,null,null,null,null,null,null,null,null,null,null,null,null,null,null,null,null,null,null,null,null,null,null,null,null,null,null,null,null,null,null,null,null,null,null,null,null,null,null,null,null,null,null,null,null,null,null,null,null,null,null,null,null,null,null,null,null,null,null,null,null,null,null,null,null,null,null,null,null,null,null,null,null,null,null,null,null,null,null,null,null,null,null,null,null,null,null,null,null,null,null,null,null,null,null,null,null,null,null,null,null,"Y",null,null,null,null,null,null,null,null,null,null,null,null,null,null,null,null,null,null,null,null,null,null,null,null,null,null,null,null,null,null,null,null,null,null,null,null,null,null,null,null,null,null,null,null,null,null,null,null,null,null,"Y"]
[47,"","NRD41","If you are making a claim for Overseas Workday\nRelief, put 'X' in the box",null,null,null,null,null,null,null,null,null,null,null,null,null,null,null,null,null,null,null,null,null,null,null,null,null,null,null,null,null,null,null,null,null,null,null,null,null,null,null,null,null,null,null,null,null,null,null,null,null,null,null,null,null,null,null,null,null,null,null,null,null,null,null,null,null,null,null,null,null,null,null,null,null,null,null,null,null,null,null,null,null,null,null,null,null,null,null,null,null,null,null,null,null,null,null,null,null,null,null,null,null,null,null,null,null,null,null,null,null,null,null,null,null,null,"Y",null,null,null,null,null,null,null,null,null,null,null,null,null,null,null,null,null,null,null,null,null,null,null,null,null,null,null,null,null,null,null,null,null,null,null,null,null,null,null,null,null,null,null,null,null,null,null,null,null,null,null,null,null,null,null,null,null,null,null,null,null,null,null,null,null,null,null,null,null,null,null,null,null,null,null,null,null,null,null,null,null,null,null,null,null,null,null,null,null,null,null,null,null,null,null,"Y",null,null,null,null,null,null,null,null,null,null,null,null,null,null,null,null,null,null,null,null,null,null,null,null,null,null,null,null,null,null,null,null,null,null,null,null,null,null,null,null,null,null,null,null,null,null,null,null,null,null,"Y"]
[48,"","NRD43","If you qualify for the OWR transitional provisions in \nany year for which you are making a claim, put 'X' in\nthe box ",null,null,null,null,null,null,null,null,null,null,null,null,null,null,null,null,null,null,null,null,null,null,null,null,null,null,null,null,null,null,null,null,null,null,null,null,null,null,null,null,null,null,null,null,null,null,null,null,null,null,null,null,null,null,null,null,null,null,null,null,null,null,null,null,null,null,null,null,null,null,null,null,null,null,null,null,null,null,null,null,null,null,null,null,null,null,null,null,null,null,null,null,null,null,null,null,null,null,null,null,null,null,null,null,null,null,null,null,null,null,null,null,null,null,"Y","Y",null,null,null,null,null,null,null,null,null,null,null,null,null,null,null,null,null,null,null,null,null,null,null,null,null,null,null,null,null,null,null,null,null,null,null,null,null,null,null,null,null,null,null,null,null,null,null,null,null,null,null,null,null,null,null,null,null,null,null,null,null,null,null,null,null,null,null,null,null,null,null,null,null,null,null,null,null,null,null,null,null,null,null,null,null,null,null,null,null,null,null,null,null,null,"N",null,null,null,null,null,null,null,null,null,null,null,null,null,null,null,null,null,null,null,null,null,null,null,null,null,null,null,null,null,null,null,null,null,null,null,null,null,null,null,null,null,null,null,null,null,null,null,null,null,null,"N"]
[49,"","NRD44","Qualifying employment income after \ndeductions",null,null,null,null,null,null,null,null,null,null,null,null,null,null,null,null,null,null,null,null,null,null,null,null,null,null,null,null,null,null,null,null,null,null,null,null,null,null,null,null,null,null,null,null,null,null,null,null,null,null,null,null,null,null,null,null,null,null,null,null,null,null,null,null,null,null,null,null,null,null,null,null,null,null,null,null,null,null,null,null,null,null,null,null,null,null,null,null,null,null,null,null,null,null,null,null,null,null,null,null,null,null,null,null,null,null,null,null,null,null,null,null,null,null,1020433,515098,null,null,null,null,null,null,null,null,null,null,null,null,null,null,null,null,null,null,null,null,null,null,null,null,null,null,null,null,null,null,null,null,null,null,null,null,null,null,null,null,null,null,null,null,null,null,null,null,null,null,null,null,null,null,null,null,null,null,null,null,null,null,null,null,null,null,null,null,null,null,null,null,null,null,null,null,null,null,null,null,null,null,null,null,null,null,null,null,null,null,null,null,null,null,82000,null,null,null,null,null,null,null,null,null,null,null,null,null,null,null,null,null,null,null,null,null,null,null,null,null,null,null,null,null,null,null,null,null,null,null,null,null,null,null,null,null,null,null,null,null,null,null,null,null,null,32500]
[50,"","NRD46","Qualifying foreign employment income after deductions",null,null,null,null,null,null,null,null,null,null,null,null,null,null,null,null,null,null,null,null,null,null,null,null,null,null,null,null,null,null,null,null,null,null,null,null,null,null,null,null,null,null,null,null,null,null,null,null,null,null,null,null,null,null,null,null,null,null,null,null,null,null,null,null,null,null,null,null,null,null,null,null,null,null,null,null,null,null,null,null,null,null,null,null,null,null,null,null,null,null,null,null,null,null,null,null,null,null,null,null,null,null,null,null,null,null,null,null,null,null,null,null,null,null,357152,360569,null,null,null,null,null,null,null,null,null,null,null,null,null,null,null,null,null,null,null,null,null,null,null,null,null,null,null,null,null,null,null,null,null,null,null,null,null,null,null,null,null,null,null,null,null,null,null,null,null,null,null,null,null,null,null,null,null,null,null,null,null,null,null,null,null,null,null,null,null,null,null,null,null,null,null,null,null,null,null,null,null,null,null,null,null,null,null,null,null,null,null,null,null,null,72000,null,null,null,null,null,null,null,null,null,null,null,null,null,null,null,null,null,null,null,null,null,null,null,null,null,null,null,null,null,null,null,null,null,null,null,null,null,null,null,null,null,null,null,null,null,null,null,null,null,null,31500]
[51,"","NRD47","Maximum relief available under the financial limit",null,null,null,null,null,null,null,null,null,null,null,null,null,null,null,null,null,null,null,null,null,null,null,null,null,null,null,null,null,null,null,null,null,null,null,null,null,null,null,null,null,null,null,null,null,null,null,null,null,null,null,null,null,null,null,null,null,null,null,null,null,null,null,null,null,null,null,null,null,null,null,null,null,null,null,null,null,null,null,null,null,null,null,null,null,null,null,null,null,null,null,null,null,null,null,null,null,null,null,null,null,null,null,null,null,null,null,null,null,null,null,null,null,null,null,360569,null,null,null,null,null,null,null,null,null,null,null,null,null,null,null,null,null,null,null,null,null,null,null,null,null,null,null,null,null,null,null,null,null,null,null,null,null,null,null,null,null,null,null,null,null,null,null,null,null,null,null,null,null,null,null,null,null,null,null,null,null,null,null,null,null,null,null,null,null,null,null,null,null,null,null,null,null,null,null,null,null,null,null,null,null,null,null,null,null,null,null,null,null,null,24600,null,null,null,null,null,null,null,null,null,null,null,null,null,null,null,null,null,null,null,null,null,null,null,null,null,null,null,null,null,null,null,null,null,null,null,null,null,null,null,null,null,null,null,null,null,null,null,null,null,null,9450]
[52,"","NRD48","OWR claimed on the qualifying employment income ",null,null,null,null,null,null,null,null,null,null,null,null,null,null,null,null,null,null,null,null,null,null,null,null,null,null,null,null,null,null,null,null,null,null,null,null,null,null,null,null,null,null,null,null,null,null,null,null,null,null,null,null,null,null,null,null,null,null,null,null,null,null,null,null,null,null,null,null,null,null,null,null,null,null,null,null,null,null,null,null,null,null,null,null,null,null,null,null,null,null,null,null,null,null,null,null,null,null,null,null,null,null,null,null,null,null,null,null,null,null,null,null,null,null,357152,360569,null,null,null,null,null,null,null,null,null,null,null,null,null,null,null,null,null,null,null,null,null,null,null,null,null,null,null,null,null,null,null,null,null,null,null,null,null,null,null,null,null,null,null,null,null,null,null,null,null,null,null,null,null,null,null,null,null,null,null,null,null,null,null,null,null,null,null,null,null,null,null,null,null,null,null,null,null,null,null,null,null,null,null,null,null,null,null,null,null,null,null,null,null,null,24600,null,null,null,null,null,null,null,null,null,null,null,null,null,null,null,null,null,null,null,null,null,null,null,null,null,null,null,null,null,null,null,null,null,null,null,null,null,null,null,null,null,null,null,null,null,null,null,null,null,null,9450]
[53,"","NRD49","If you are making one or more claims for OWR, put \nthe total amount of relief claimed for this tax year",null,null,null,null,null,null,null,null,null,null,null,null,null,null,null,null,null,null,null,null,null,null,null,null,null,null,null,null,null,null,null,null,null,null,null,null,null,null,null,null,null,null,null,null,null,null,null,null,null,null,null,null,null,null,null,null,null,null,null,null,null,null,null,null,null,null,null,null,null,null,null,null,null,null,null,null,null,null,null,null,null,null,null,null,null,null,null,null,null,null,null,null,null,null,null,null,null,null,null,null,null,null,null,null,null,null,null,null,null,null,null,null,null,null,357152,360569,null,null,null,null,null,null,null,null,null,null,null,null,null,null,null,null,null,null,null,null,null,null,null,null,null,null,null,null,null,null,null,null,null,null,null,null,null,null,null,null,null,null,null,null,null,null,null,null,null,null,null,null,null,null,null,null,null,null,null,null,null,null,null,null,null,null,null,null,null,null,null,null,null,null,null,null,null,null,null,null,null,null,null,null,null,null,null,null,null,null,null,null,null,null,24600,null,null,null,null,null,null,null,null,null,null,null,null,null,null,null,null,null,null,null,null,null,null,null,null,null,null,null,null,null,null,null,null,null,null,null,null,null,null,null,null,null,null,null,null,null,null,null,null,null,null,9450]
[54,"","NRD50","If you are making an election under the Temporary\nRepatriation Facility (TRF), put 'X' in the box",null,null,null,null,null,null,null,null,null,null,null,null,null,null,null,null,null,null,null,null,null,null,null,null,null,null,null,null,null,null,null,null,null,null,null,null,null,null,null,null,null,null,null,null,null,null,null,null,null,null,null,null,null,null,null,null,null,null,null,null,null,null,null,null,null,null,null,null,null,null,null,null,null,null,null,null,null,null,null,null,null,null,null,null,null,null,null,null,null,null,null,null,null,null,null,null,null,null,null,null,null,null,null,null,null,null,null,null,null,null,null,null,null,null,"Y","Y",null,null,null,null,null,null,null,null,null,null,null,null,null,null,null,null,null,null,null,null,null,null,null,null,null,null,null,null,null,null,null,null,null,null,null,"Y",null,null,null,null,null,null,null,null,null,null,null,"Y",null,null,null,null,null,null,null,null,null,null,null,null,null,null,null,null,null,null,null,null,null,null,null,null,null,null,null,null,null,null,null,null,null,null,null,null,null,null,null,null,null,null,null,null,null,null,"Y",null,null,null,null,null,null,null,null,null,null,null,null,null,null,null,null,null,null,null,null,null,null,null,null,null,null,null,null,null,null,null,null,null,null,null,null,null,null,null,null,null,null,null,null,null,"Y",null,null,"Y","Y",null,null,null,null,null,null,"Y","Y"]
[55,"","NRD51","Amount that relates to Personal TRF Designations",null,null,null,null,null,null,null,null,null,null,null,null,null,null,null,null,null,null,null,null,null,null,null,null,null,null,null,null,null,null,null,null,null,null,null,null,null,null,null,null,null,null,null,null,null,null,null,null,null,null,null,null,null,null,null,null,null,null,null,null,null,null,null,null,null,null,null,null,null,null,null,null,null,null,null,null,null,null,null,null,null,null,null,null,null,null,null,null,null,null,null,null,null,null,null,null,null,null,null,null,null,null,null,null,null,null,null,null,null,null,null,null,null,null,25000,33000,null,null,null,null,null,null,null,null,null,null,null,null,null,null,null,null,null,null,null,null,null,null,null,null,null,null,null,null,null,null,null,null,null,null,null,5000,null,null,null,null,null,null,null,null,null,null,null,6500,null,null,null,null,null,null,null,null,null,null,null,null,null,null,null,null,null,null,null,null,null,null,null,null,null,null,null,null,null,null,null,null,null,null,null,null,null,null,null,null,null,null,null,null,null,null,21000,null,null,null,null,null,null,null,null,null,null,null,null,null,null,null,null,null,null,null,null,null,null,null,null,null,null,null,null,null,null,null,null,null,null,null,null,null,null,null,null,null,null,null,null,null,2300,null,null,3500,5000,null,null,null,null,null,null,30000,49000]
[56,"","NRD52","Amount that relates to capital payments and benefits received from Trusts",null,null,null,null,null,null,null,null,null,null,null,null,null,null,null,null,null,null,null,null,null,null,null,null,null,null,null,null,null,null,null,null,null,null,null,null,null,null,null,null,null,null,null,null,null,null,null,null,null,null,null,null,null,null,null,null,null,null,null,null,null,null,null,null,null,null,null,null,null,null,null,null,null,null,null,null,null,null,null,null,null,null,null,null,null,null,null,null,null,null,null,null,null,null,null,null,null,null,null,null,null,null,null,null,null,null,null,null,null,null,null,null,null,null,16000,null,null,null,null,null,null,null,null,null,null,null,null,null,null,null,null,null,null,null,null,null,null,null,null,null,null,null,null,null,null,null,null,null,null,null,null,null,null,null,null,null,null,null,null,null,null,null,null,null,null,null,null,null,null,null,null,null,null,null,null,null,null,null,null,null,null,null,null,null,null,null,null,null,null,null,null,null,null,null,null,null,null,null,null,null,null,null,null,null,null,null,null,null,null,null,3550]
[57,"","NRD53","Amount that relates to Personal TRF designations remitted in this tax year",null,null,null,null,null,null,null,null,null,null,null,null,null,null,null,null,null,null,null,null,null,null,null,null,null,null,null,null,null,null,null,null,null,null,null,null,null,null,null,null,null,null,null,null,null,null,null,null,null,null,null,null,null,null,null,null,null,null,null,null,null,null,null,null,null,null,null,null,null,null,null,null,null,null,null,null,null,null,null,null,null,null,null,null,null,null,null,null,null,null,null,null,null,null,null,null,null,null,null,null,null,null,null,null,null,null,null,null,null,null,null,null,null,null,10000]
[58,{"$f":"IF(NRD_IND>1,IF(HLOOKUP(NRD_IND-1,NRD_RANGE,A145)=\"\",\"\",HLOOKUP(NRD_IND-1,NRD_RANGE,A145)),\"\")","v":""},"NRD54","Please give any other information in this space",null,null,null,null,null,null,null,null,null,null,null,null,null,null,null,null,null,null,null,null,null,null,null,null,null,null,null,null,null,null,null,null,null,null,null,null,null,null,null,null,null,null,null,null,null,null,null,null,null,null,null,null,null,null,null,null,null,null,null,null,null,null,null,null,null,null,null,null,null,null,null,null,null,null,null,null,null,null,null,null,null,null,null,null,null,null,null,null,null,null,null,null,null,null,null,null,null,null,null,null,null,null,null,null,null,null,null,null,null,null,null,null,null,null,null,null,null,null,null,null,null,null,null,null,null,null,null,null,null,null,null,null,null,null,null,null,null,null,null,null,null,null,null,null,null,null,null,null,null,null,null,null,null,null,null,null,null,null,null,null,null,null,null,null,null,null,null,null,null,null,null,null,null,null,null,null,null,null,null,null,null,null,null,null,null,null,null,null,null,null,null,null,null,null,null,null,null,null,null,null,null,null,null,null,null,null,null,null,null,null,null,null,null,null,null,null,null,null,null,null,null,null,null,null,null,null,null,null,null,null,null,null,null,null,null,null,null,null,null,null,null,null,null,null,null,null,null,null,null,null,null,null,null,null,null,null,null,null,null,null,null,null,null,null,null,null,null,null,null,null,null,null,null,null,null,"SA non-empty string"]
[]
["row","selected","CAL",null,1,2,3,4,5,6,7,8,9,10,11,12,13,14,15,16,17,18,19,20,21,22,23,24,25,26,27,28,29,30,31,32,33,34,35,36,37,38,39,40,41,42,43,44,45,46,47,48,49,50,51,52,53,54,55,56,57,58,59,60,61,62,63,64,65,66,67,68,69,70,71,72,73,74,75,76,77,78,79,80,81,82,83,84,85,86,87,88,89,90,91,92,93,94,95,96,97,98,99,100,101,102,103,104,105,106,107,108,109,110,111,112,113,114,115,116,117,118,119,120,121,122,123,124,125,126,127,128,129,130,131,132,133,134,135,136,137,138,139,140,141,142,143,144,145,146,147,148,149,150,151,152,153,154,155,156,157,158,159,160,161,162,163,164,165,166,167,168,169,170,171,172,173,174,175,176,177,178,179,180,181,182,183,184,185,186,187,188,189,190,191,192,193,194,195,196,197,198,199,200,201,202,203,204,205,206,207,208,209,210,211,212,213,214,215,216,217,218,219,220,221,222,223,224,225,226,227,228,229,230,231,232,233,234,235,236,237,238,239,240,241,242,243,244,245,246,247,248,249,250,251,252,253,254,255,256,257,258,259,260,261,262,263,264,265,266,267,268,269,270,271,272,273,null," Validation"]
[2,{"$f":"IF(CAL_IND>1,IF(HLOOKUP(CAL_IND-1,CAL_range,A148)=\"\",\"\",HLOOKUP(CAL_IND-1,CAL_range,A148)),\"\")","v":""},"CAL1","Total tax due for Return year"]
[3,"","CAL2","Total tax overpaid for Return year",null,null,null,null,null,null,null,null,null,null,null,null,null,null,null,null,null,null,null,null,null,null,null,null,null,null,null,null,null,null,null,null,null,null,null,null,null,null,null,null,null,null,null,null,null,null,null,null,null,null,null,null,null,null,null,null,null,null,null,null,null,null,null,null,null,null,null,null,null,null,null,null,null,null,null,null,null,null,null,null,null,null,null,null,null,null,null,null,null,null,null,null,null,null,null,null,null,null,null,null,null,null,null,null,null,null,null,null,null,null,null,null,null,null,null,null,null,null,null,null,null,null,null,null,null,null,null,null,null,null,null,null,null,null,null,null,null,null,null,null,null,null,null,null,null,null,null,null,null,null,null,null,null,null,null,null,null,null,null,null,null,null,null,null,null,null,null,null,null,null,null,null,null,null,null,null,null,null,null,null,null,null,null,null,null,null,null,null,null,null,null,null,null,null,null,null,null,null,null,null,null,null,null,null,null,null,null,null,null,null,null,null,null,null,null,null,null,null,null,null,null,null,null,null,null,null,null,null,null,null,null,null,null,null,null,null,null,null,null,null,null,null,null,null,null,null,null,null,null,null,null,null,null,null,null,null,null,null,null,null,null,null,null,null,null,null,null,null,null,null,null,null,null,null,"a)If CAL1 greater than zero then CAL2 must be zero or absent\nb) If CAL2 greater than zero then CAL1 must be zero or absent.\nCAL1 and CAL2 can be zero."]
[4,"","CAL3","Student loan repayment due (U)"]
[5,"","CAL3.1","Student loan repayment due (P)"]
[6,"","CAL4","Class 4 NIC Due"]
[7,"","CAL4.1","Class 2 NICs due",null,null,null,null,null,null,null,null,null,null,null,null,null,null,null,null,null,null,null,null,null,null,null,null,null,null,null,null,null,null,null,null,null,null,null,null,null,null,null,null,null,null,null,null,null,null,null,null,null,null,null,null,null,null,null,null,null,null,null,null,null,null,null,null,null,null,null,null,null,null,null,null,null,null,null,null,null,null,null,null,null,null,null,null,null,null,null,null,null,null,null,null,null,null,null,null,null,null,null,null,null,null,null,null,null,null,null,null,null,null,null,null,null,null,null,null,null,null,null,null,null,null,null,null,null,null,null,null,null,null,null,null,null,null,null,null,null,null,null,null,null,null,null,null,null,null,null,null,null,null,null,null,null,null,null,null,null,null,null,null,null,null,null,null,null,null,null,null,null,null,null,null,null,null,null,null,null,null,null,null,null,null,null,null,null,null,null,null,null,null,null,null,null,null,null,null,null,null,null,null,null,null,null,null,null,null,null,null,null,null,null,null,null,null,null,null,null,null,null,null,null,null,null,null,null,null,null,null,null,null,null,null,null,null,null,null,null,null,null,null,null,null,null,null,null,null,null,null,null,null,null,null,null,null,null,null,null,null,null,null,null,null,null,null,null,null,null,null,null,null,null,null,null,null,"If present, must be less than or equal to £182.85 (see note)"]
[8,"","CAL5","Capital Gains tax due"]
[9,"","CAL6","Pension charges due(enter amount from SA125 Working Sheet"]
[10,"","CAL7","Unpaid tax for earlier years included in PAYE code for the Return year",null,null,2999,null,null,null,null,null,null,null,null,null,null,null,null,null,null,245,null,null,null,null,null,null,null,null,null,null,null,null,null,null,null,null,null,null,null,null,null,null,null,null,null,null,null,null,null,null,221,null,null,null,null,null,null,null,null,null,null,null,null,null,null,null,null,null,null,null,null,null,null,null,null,null,null,null,null,null,null,null,null,null,null,null,null,null,null,null,null,null,null,null,null,215,null,null,null,null,null,null,null,221,null,null,null,1527.89,null,null,null,null,2999.99,2999.99,null,null,null,null,null,null,null,null,null,null,null,null,null,null,null,null,null,null,null,null,null,null,null,null,null,null,null,null,null,null,null,null,null,null,null,null,null,null,null,null,null,null,null,null,null,null,null,null,null,null,null,null,null,null,null,null,null,null,null,null,null,null,null,null,null,null,null,null,2999.99]
[11,"","CAL8","Tax due for the Return year included in PAYE code for later year",null,null,null,null,null,null,null,null,null,null,null,null,null,null,null,null,null,400,null,null,null,null,null,null,null,null,null,null,null,null,null,null,null,null,null,null,null,null,null,null,null,null,null,null,null,null,null,null,378,null,null,null,null,null,null,null,null,null,null,null,null,null,null,null,null,null,null,null,null,null,null,null,null,null,null,null,null,null,null,null,null,null,null,null,null,null,null,null,null,null,null,null,null,null,null,null,null,null,null,null,null,378,null,null,null,null,null,null,null,null,2999.99,2999.99,null,null,null,null,null,null,null,null,null,null,null,null,null,null,null,null,null,null,null,null,null,null,null,null,null,null,null,null,null,null,null,null,null,null,null,null,null,null,null,null,null,null,null,null,null,null,null,null,null,null,null,null,null,null,null,null,null,null,null,null,null,null,null,null,null,null,null,null,2999.99,null,null,null,null,null,null,null,null,null,null,null,null,null,null,null,null,null,null,null,null,null,null,null,null,null,null,null,null,null,null,null,null,null,null,null,null,null,null,null,null,null,null,null,null,null,null,null,null,null,null,null,null,null,null,null,null,null,null,null,null,null,null,null,null,null,null,null,null,null,null,null,null,null,null,null,null,null,null,null,null,null,null,null,null,null,null,null,null,null,null,null,null,null,"If present, must be less than or equal to 9999"]
[12,"","CAL9","Outstanding debt included in your tax code for the year",null,2300,null,null,null,null,null,null,null,null,null,null,2800,null,null,null,2800,null,null,null,null,null,2000,null,null,null,null,null,null,500,null,null,null,1750,null,null,null,null,null,null,null,null,null,null,null,null,null,null,null,null,null,null,null,null,null,null,null,null,null,null,null,null,null,null,null,null,null,null,null,null,null,null,null,null,null,null,null,null,null,null,null,null,null,null,null,null,null,null,null,null,null,null,null,null,null,null,null,null,null,null,null,null,null,null,null,null,null,null,null,null,null,null,null,null,null,null,null,null,null,null,null,null,null,null,null,null,null,null,null,null,null,null,null,null,null,null,null,null,null,null,null,null,null,null,null,null,null,null,null,null,null,null,null,null,null,null,null,null,null,null,null,null,null,null,null,null,null,null,null,100,null,null,null,null,null,null,null,null,null,null,null,null,null,null,null,null,null,null,2800]
[13,"","CAL10","Claim to reduce your payments on account"]
[14,"","CAL11","Your first payment on account",null,null,null,null,null,null,null,null,null,null,null,null,null,null,null,null,null,null,null,null,null,null,null,null,null,null,null,null,null,null,null,null,null,null,null,null,null,null,null,null,null,null,null,null,null,null,null,null,null,null,null,null,null,null,null,null,null,null,null,null,null,null,null,null,null,null,null,null,null,null,null,null,null,null,null,null,null,null,null,null,null,null,null,null,null,null,null,null,null,null,null,null,null,null,null,null,null,null,null,null,null,null,null,null,null,null,null,null,null,null,null,null,null,null,null,null,null,null,null,null,null,null,null,null,null,null,null,null,null,null,null,null,null,null,null,null,null,null,null,null,null,null,null,null,null,null,null,null,null,null,null,null,null,null,null,null,null,null,null,null,null,null,null,null,null,null,null,null,null,null,null,null,null,null,null,null,null,null,null,null,null,null,null,null,null,null,null,null,null,null,null,null,null,null,null,null,null,null,null,null,null,null,null,null,null,null,null,null,null,null,null,null,null,null,null,null,null,null,null,null,null,null,null,null,null,null,null,null,null,null,null,null,null,null,null,null,null,null,null,null,null,null,null,null,null,null,null,null,null,null,null,null,null,null,null,null,null,null,null,null,null,null,null,null,null,null,null,null,null,null,null,null,null,null,"If CAL10 is present CAL11 must be present \nEntry may be zero."]
[15,"","CAL12","Blind person’s surplus allowance",null,null,null,null,null,null,null,null,null,null,null,null,null,null,null,null,null,null,null,null,null,null,null,null,null,null,null,null,null,null,null,null,null,null,null,null,null,null,null,null,null,null,null,null,null,null,null,null,null,null,null,null,null,null,null,null,null,null,null,null,null,null,null,null,null,null,null,null,null,null,null,null,null,null,null,null,null,null,null,null,null,null,null,null,null,null,null,null,null,null,null,null,null,null,null,null,null,null,null,null,null,null,null,null,null,null,null,null,null,null,null,null,null,null,null,null,null,null,null,null,null,null,null,null,null,null,null,null,null,null,null,null,null,null,null,null,null,null,null,null,null,null,null,null,null,null,null,null,null,null,null,null,null,null,null,null,null,null,null,null,null,null,null,null,null,null,null,null,null,null,null,null,null,null,null,null,null,null,null,null,null,null,null,null,null,null,null,null,null,null,null,null,null,null,null,null,null,null,null,null,null,null,null,null,null,null,{"$f":"BPA","v":3130},null,null,null,null,null,null,null,null,null,null,null,null,null,null,null,null,null,null,null,null,null,null,null,null,null,null,null,null,null,null,null,null,null,null,null,null,null,null,null,null,null,null,null,null,null,null,null,null,null,null,null,null,null,null,null,null,null,null,null,null,null,null,null,null,null,null,null,"If present, must be less than or equal to £2,290 for the year."]
[16,"","CAL13","Married couple’s surplus allowance",null,null,null,null,null,null,null,null,null,null,null,null,null,null,null,null,null,null,null,null,null,null,null,null,null,null,null,null,null,null,null,null,null,null,null,null,null,null,null,null,null,null,null,null,null,null,null,null,null,null,null,null,null,null,null,null,null,null,null,null,null,null,null,null,null,null,null,null,null,null,null,null,null,null,null,null,null,null,null,null,null,null,null,null,null,null,null,null,null,null,null,null,null,null,null,null,null,null,null,null,null,null,null,null,null,null,null,null,null,null,null,null,null,null,null,null,null,null,null,null,890,null,null,null,null,null,null,null,null,null,null,null,null,null,null,null,null,null,null,null,null,null,null,null,null,null,null,null,null,null,null,null,null,null,null,null,null,null,null,null,null,null,null,null,null,null,null,null,null,null,null,null,null,null,null,null,null,null,null,null,null,null,null,null,null,null,null,null,null,null,null,null,null,null,null,null,null,null,null,null,null,null,null,null,null,null,null,null,null,null,null,null,null,null,null,null,null,null,null,null,null,null,null,null,null,null,null,null,null,null,null,null,null,null,null,null,null,null,null,null,null,null,null,null,null,null,null,null,null,null,null,null,null,null,null,null,null,null,null,null,null,null,null,null,null,null,null,null,null,null,null,null,null,null,"If present, must be less than or equal to £8,355 for the year."]
[17,"","CAL14","Tax due calculated by reference to earlier years",null,null,null,null,null,null,null,null,null,null,null,null,null,null,null,null,null,null,null,null,null,null,null,null,null,null,null,null,null,null,null,null,null,null,null,null,null,null,null,null,null,null,null,null,null,null,null,null,null,null,null,null,null,null,null,null,null,null,null,null,null,null,null,null,null,null,null,null,null,null,null,null,null,null,null,null,null,null,null,null,null,null,null,null,null,null,null,null,null,null,null,null,null,null,null,null,null,null,null,null,null,null,null,null,null,null,null,null,null,null,null,null,null,null,null,null,null,null,null,null,null,null,null,null,null,null,null,null,null,null,null,null,null,null,null,null,null,null,null,null,null,null,null,null,20,746.55,null,null,null,null,null,null,null,null,null,null,null,null,null,null,null,null,null,null,null,null,null,null,null,null,null,null,null,null,null,null,500,null,null,null,null,null,null,null,null,null,null,null,null,null,null,null,null,null,null,750,null,null,null,null,null,null,null,null,null,null,null,null,null,null,300,null,null,null,null,null,null,null,null,null,null,null,null,null,null,null,null,null,null,null,null,null,null,null,null,null,null,null,null,null,null,null,null,null,null,null,null,null,null,null,null,null,null,null,null,null,750]
[18,"","CAL15","Reduction in tax due calculated by reference to earlier years.",null,null,null,null,null,null,null,null,null,null,null,null,null,null,null,null,null,null,null,null,null,null,null,null,null,null,null,null,null,null,null,null,null,null,null,null,null,null,null,null,null,null,null,null,null,null,null,null,null,null,null,null,null,null,null,null,null,null,null,null,null,null,null,null,null,null,null,null,null,null,null,null,null,null,null,null,null,null,null,null,null,null,null,null,null,null,null,null,null,null,null,null,null,null,null,null,null,null,null,null,null,null,null,null,null,null,null,null,null,null,null,null,null,null,null,null,null,null,null,null,null,null,null,null,null,null,null,null,null,null,null,null,null,null,null,null,null,null,null,null,null,null,null,null,null,null,1127.8599999999999]
[19,"","CAL16","Overpaid tax for following year"]
[20,null,"CAL17","Additional information"]
[]
["row",{"$f":"\"selected \"&NI2_IND-1","v":"selected 0"},"NI2",null,1,2,3,4,5,6,7,8,9,10,11,12,13,14,15,16,17,18,19,20,21,22,23,24,25,26,27,28,29,30,31,32,33,34,35,36,37,38,39,40,41,42,43,44,45,46,47,48,49,50,51,52,53,54,55,56,57,58,59,60,61,62,63,64,65,66,67,68,69,70,71,72,73,74,75,76,77,78,79,80,81,82,83,84,85,86,87,88,89,90,91,92,93,94,95,96,97,98,99,100,101,102,103,104,105,106,107,108,109,110,111,112,113,114,115,116,117,118,119,120,121,122,123,124,125,126,127,128,129,130,131,132,133,134,135,136,137,138,139,140,141,142,143,144,145,146,147,148,149,150,151,152,153,154,155,156,157,158,159,160,161,162,163,164,165,166,167,168,169,170,171,172,173,174,175,176,177,178,179,180,181,182,183,184,185,186,187,188,189,190,191,192,193,194,195,196,197,198,199,200,201,202,203,204,205,206,207,208,209,210,211,212,213,214,215,216,217,218,219,220,221,222,223,224,225,226,227,228,229,230,231,232,233,234,235,236,237,238,239,240,241,242,243,244,245,246,247,248,249,250,251,252,253,254,255,256,257,258,259,260,261,262,263,264,265,266,267,268,269,270,271,272,273,null,null,"Type"]
[2,null,"CL2","Class 4 Excepted",null,null,{"$f":"IF(OR('C3'!G45=\"Y\",'C3'!G153=\"Y\",'C3'!G218=\"Y\",'C4'!G24=\"Y\",'C4'!G57=\"Y\"),\"Y\",\"N\")","v":"N"},null,{"$f":"IF(OR('C3'!I45=\"Y\",'C3'!I153=\"Y\",'C3'!I218=\"Y\",'C4'!I24=\"Y\",'C4'!I57=\"Y\"),\"Y\",\"N\")","v":"N"},null,null,{"$f":"IF(OR('C3'!L45=\"Y\",'C3'!L153=\"Y\",'C3'!L218=\"Y\",'C4'!L24=\"Y\",'C4'!L57=\"Y\"),\"Y\",\"N\")","v":"Y"},{"$f":"IF(OR('C3'!M45=\"Y\",'C3'!M153=\"Y\",'C3'!M218=\"Y\",'C4'!M24=\"Y\",'C4'!M57=\"Y\"),\"Y\",\"N\")","v":"N"},null,null,null,{"$f":"IF(OR('C3'!Q45=\"Y\",'C3'!Q153=\"Y\",'C3'!Q218=\"Y\",'C4'!Q24=\"Y\",'C4'!Q57=\"Y\"),\"Y\",\"N\")","v":"Y"},null,{"$f":"IF(OR('C3'!S45=\"Y\",'C3'!S153=\"Y\",'C3'!S218=\"Y\",'C4'!S24=\"Y\",'C4'!S57=\"Y\"),\"Y\",\"N\")","v":"N"},null,null,null,null,null,null,{"$f":"IF(OR('C3'!Z45=\"Y\",'C3'!Z153=\"Y\",'C3'!Z218=\"Y\",'C4'!Z24=\"Y\",'C4'!Z57=\"Y\"),\"Y\",\"N\")","v":"N"},{"$f":"IF(OR('C3'!AA45=\"Y\",'C3'!AA153=\"Y\",'C3'!AA218=\"Y\",'C4'!AA24=\"Y\",'C4'!AA57=\"Y\"),\"Y\",\"N\")","v":"N"},null,{"$f":"IF(OR('C3'!AC45=\"Y\",'C3'!AC153=\"Y\",'C3'!AC218=\"Y\",'C4'!AC24=\"Y\",'C4'!AC57=\"Y\"),\"Y\",\"N\")","v":"N"},null,{"$f":"IF(OR('C3'!AE45=\"Y\",'C3'!AE153=\"Y\",'C3'!AE218=\"Y\",'C4'!AE24=\"Y\",'C4'!AE57=\"Y\"),\"Y\",\"N\")","v":"N"},null,null,{"$f":"IF(OR('C3'!AH45=\"Y\",'C3'!AH153=\"Y\",'C3'!AH218=\"Y\",'C4'!AH24=\"Y\",'C4'!AH57=\"Y\"),\"Y\",\"N\")","v":"N"},{"$f":"IF(OR('C3'!AI45=\"Y\",'C3'!AI153=\"Y\",'C3'!AI218=\"Y\",'C4'!AI24=\"Y\",'C4'!AI57=\"Y\"),\"Y\",\"N\")","v":"N"},null,{"$f":"IF(OR('C3'!AK45=\"Y\",'C3'!AK153=\"Y\",'C3'!AK218=\"Y\",'C4'!AK24=\"Y\",'C4'!AK57=\"Y\"),\"Y\",\"N\")","v":"N"},null,{"$f":"IF(OR('C3'!AM45=\"Y\",'C3'!AM153=\"Y\",'C3'!AM218=\"Y\",'C4'!AM24=\"Y\",'C4'!AM57=\"Y\"),\"Y\",\"N\")","v":"N"},{"$f":"IF(OR('C3'!AN45=\"Y\",'C3'!AN153=\"Y\",'C3'!AN218=\"Y\",'C4'!AN24=\"Y\",'C4'!AN57=\"Y\"),\"Y\",\"N\")","v":"Y"},null,{"$f":"IF(OR('C3'!AP45=\"Y\",'C3'!AP153=\"Y\",'C3'!AP218=\"Y\",'C4'!AP24=\"Y\",'C4'!AP57=\"Y\"),\"Y\",\"N\")","v":"N"},null,null,null,{"$f":"IF(OR('C3'!AT45=\"Y\",'C3'!AT153=\"Y\",'C3'!AT218=\"Y\",'C4'!AT24=\"Y\",'C4'!AT57=\"Y\"),\"Y\",\"N\")","v":"N"},null,{"$f":"IF(OR('C3'!AV45=\"Y\",'C3'!AV153=\"Y\",'C3'!AV218=\"Y\",'C4'!AV24=\"Y\",'C4'!AV57=\"Y\"),\"Y\",\"N\")","v":"N"},null,null,null,null,null,{"$f":"IF(OR('C3'!BB45=\"Y\",'C3'!BB153=\"Y\",'C3'!BB218=\"Y\",'C4'!BB24=\"Y\",'C4'!BB57=\"Y\"),\"Y\",\"N\")","v":"N"},{"$f":"IF(OR('C3'!BC45=\"Y\",'C3'!BC153=\"Y\",'C3'!BC218=\"Y\",'C4'!BC24=\"Y\",'C4'!BC57=\"Y\"),\"Y\",\"N\")","v":"N"},{"$f":"IF(OR('C3'!BD45=\"Y\",'C3'!BD153=\"Y\",'C3'!BD218=\"Y\",'C4'!BD24=\"Y\",'C4'!BD57=\"Y\"),\"Y\",\"N\")","v":"N"},{"$f":"IF(OR('C3'!BE45=\"Y\",'C3'!BE153=\"Y\",'C3'!BE218=\"Y\",'C4'!BE24=\"Y\",'C4'!BE57=\"Y\"),\"Y\",\"N\")","v":"N"},null,null,null,{"$f":"IF(OR('C3'!BI45=\"Y\",'C3'!BI153=\"Y\",'C3'!BI218=\"Y\",'C4'!BI24=\"Y\",'C4'!BI57=\"Y\"),\"Y\",\"N\")","v":"N"},{"$f":"IF(OR('C3'!BJ45=\"Y\",'C3'!BJ153=\"Y\",'C3'!BJ218=\"Y\",'C4'!BJ24=\"Y\",'C4'!BJ57=\"Y\"),\"Y\",\"N\")","v":"N"},null,null,null,null,null,null,null,null,null,null,null,null,null,null,null,null,null,{"$f":"IF(OR('C3'!CB45=\"Y\",'C3'!CB153=\"Y\",'C3'!CB218=\"Y\",'C4'!CB24=\"Y\",'C4'!CB57=\"Y\"),\"Y\",\"N\")","v":"N"},null,null,null,null,null,null,null,null,{"$f":"IF(OR('C3'!CK45=\"Y\",'C3'!CK153=\"Y\",'C3'!CK218=\"Y\",'C4'!CK24=\"Y\",'C4'!CK57=\"Y\"),\"Y\",\"N\")","v":"Y"},{"$f":"IF(OR('C3'!CL45=\"Y\",'C3'!CL153=\"Y\",'C3'!CL218=\"Y\",'C4'!CL24=\"Y\",'C4'!CL57=\"Y\"),\"Y\",\"N\")","v":"N"},null,null,{"$f":"IF(OR('C3'!CO45=\"Y\",'C3'!CO153=\"Y\",'C3'!CO218=\"Y\",'C4'!CO24=\"Y\",'C4'!CO57=\"Y\"),\"Y\",\"N\")","v":"N"},null,{"$f":"IF(OR('C3'!CQ45=\"Y\",'C3'!CQ153=\"Y\",'C3'!CQ218=\"Y\",'C4'!CQ24=\"Y\",'C4'!CQ57=\"Y\"),\"Y\",\"N\")","v":"N"},{"$f":"IF(OR('C3'!CR45=\"Y\",'C3'!CR153=\"Y\",'C3'!CR218=\"Y\",'C4'!CR24=\"Y\",'C4'!CR57=\"Y\"),\"Y\",\"N\")","v":"N"},{"$f":"IF(OR('C3'!CS45=\"Y\",'C3'!CS153=\"Y\",'C3'!CS218=\"Y\",'C4'!CS24=\"Y\",'C4'!CS57=\"Y\"),\"Y\",\"N\")","v":"N"},null,{"$f":"IF(OR('C3'!CU45=\"Y\",'C3'!CU153=\"Y\",'C3'!CU218=\"Y\",'C4'!CU24=\"Y\",'C4'!CU57=\"Y\"),\"Y\",\"N\")","v":"N"},{"$f":"IF(OR('C3'!CV45=\"Y\",'C3'!CV153=\"Y\",'C3'!CV218=\"Y\",'C4'!CV24=\"Y\",'C4'!CV57=\"Y\"),\"Y\",\"N\")","v":"N"},{"$f":"IF(OR('C3'!CW45=\"Y\",'C3'!CW153=\"Y\",'C3'!CW218=\"Y\",'C4'!CW24=\"Y\",'C4'!CW57=\"Y\"),\"Y\",\"N\")","v":"N"},{"$f":"IF(OR('C3'!CX45=\"Y\",'C3'!CX153=\"Y\",'C3'!CX218=\"Y\",'C4'!CX24=\"Y\",'C4'!CX57=\"Y\"),\"Y\",\"N\")","v":"N"},{"$f":"IF(OR('C3'!CY45=\"Y\",'C3'!CY153=\"Y\",'C3'!CY218=\"Y\",'C4'!CY24=\"Y\",'C4'!CY57=\"Y\"),\"Y\",\"N\")","v":"N"},{"$f":"IF(OR('C3'!CZ45=\"Y\",'C3'!CZ153=\"Y\",'C3'!CZ218=\"Y\",'C4'!CZ24=\"Y\",'C4'!CZ57=\"Y\"),\"Y\",\"N\")","v":"N"},{"$f":"IF(OR('C3'!DA45=\"Y\",'C3'!DA153=\"Y\",'C3'!DA218=\"Y\",'C4'!DA24=\"Y\",'C4'!DA57=\"Y\"),\"Y\",\"N\")","v":"N"},null,{"$f":"IF(OR('C3'!DC45=\"Y\",'C3'!DC153=\"Y\",'C3'!DC218=\"Y\",'C4'!DC24=\"Y\",'C4'!DC57=\"Y\"),\"Y\",\"N\")","v":"N"},{"$f":"IF(OR('C3'!DD45=\"Y\",'C3'!DD153=\"Y\",'C3'!DD218=\"Y\",'C4'!DD24=\"Y\",'C4'!DD57=\"Y\"),\"Y\",\"N\")","v":"N"},null,null,{"$f":"IF(OR('C3'!DG45=\"Y\",'C3'!DG153=\"Y\",'C3'!DG218=\"Y\",'C4'!DG24=\"Y\",'C4'!DG57=\"Y\"),\"Y\",\"N\")","v":"N"},null,null,{"$f":"IF(OR('C3'!DJ45=\"Y\",'C3'!DJ153=\"Y\",'C3'!DJ218=\"Y\",'C4'!DJ24=\"Y\",'C4'!DJ57=\"Y\"),\"Y\",\"N\")","v":"N"},null,null,{"$f":"IF(OR('C3'!DM45=\"Y\",'C3'!DM153=\"Y\",'C3'!DM218=\"Y\",'C4'!DM24=\"Y\",'C4'!DM57=\"Y\"),\"Y\",\"N\")","v":"N"},{"$f":"IF(OR('C3'!DN45=\"Y\",'C3'!DN153=\"Y\",'C3'!DN218=\"Y\",'C4'!DN24=\"Y\",'C4'!DN57=\"Y\"),\"Y\",\"N\")","v":"N"},{"$f":"IF(OR('C3'!DO45=\"Y\",'C3'!DO153=\"Y\",'C3'!DO218=\"Y\",'C4'!DO24=\"Y\",'C4'!DO57=\"Y\"),\"Y\",\"N\")","v":"N"},null,null,null,"N",null,{"$f":"IF(OR('C3'!DU45=\"Y\",'C3'!DU153=\"Y\",'C3'!DU218=\"Y\",'C4'!DU24=\"Y\",'C4'!DU57=\"Y\"),\"Y\",\"N\")","v":"N"},null,null,null,null,"N",null,null,null,null,{"$f":"IF(OR('C3'!EE45=\"Y\",'C3'!EE153=\"Y\",'C3'!EE218=\"Y\",'C4'!EE24=\"Y\",'C4'!EE57=\"Y\"),\"Y\",\"N\")","v":"N"},{"$f":"IF(OR('C3'!EF45=\"Y\",'C3'!EF153=\"Y\",'C3'!EF218=\"Y\",'C4'!EF24=\"Y\",'C4'!EF57=\"Y\"),\"Y\",\"N\")","v":"N"},{"$f":"IF(OR('C3'!EG45=\"Y\",'C3'!EG153=\"Y\",'C3'!EG218=\"Y\",'C4'!EG24=\"Y\",'C4'!EG57=\"Y\"),\"Y\",\"N\")","v":"N"},{"$f":"IF(OR('C3'!EH45=\"Y\",'C3'!EH153=\"Y\",'C3'!EH218=\"Y\",'C4'!EH24=\"Y\",'C4'!EH57=\"Y\"),\"Y\",\"N\")","v":"N"},null,null,null,null,{"$f":"IF(OR('C3'!EM45=\"Y\",'C3'!EM153=\"Y\",'C3'!EM218=\"Y\",'C4'!EM24=\"Y\",'C4'!EM57=\"Y\"),\"Y\",\"N\")","v":"N"},{"$f":"IF(OR('C3'!EN45=\"Y\",'C3'!EN153=\"Y\",'C3'!EN218=\"Y\",'C4'!EN24=\"Y\",'C4'!EN57=\"Y\"),\"Y\",\"N\")","v":"N"},null,null,{"$f":"IF(OR('C3'!EQ45=\"Y\",'C3'!EQ153=\"Y\",'C3'!EQ218=\"Y\",'C4'!EQ24=\"Y\",'C4'!EQ57=\"Y\"),\"Y\",\"N\")","v":"N"},{"$f":"IF(OR('C3'!ER45=\"Y\",'C3'!ER153=\"Y\",'C3'!ER218=\"Y\",'C4'!ER24=\"Y\",'C4'!ER57=\"Y\"),\"Y\",\"N\")","v":"Y"},null,null,{"$f":"IF(OR('C3'!EU45=\"Y\",'C3'!EU153=\"Y\",'C3'!EU218=\"Y\",'C4'!EU24=\"Y\",'C4'!EU57=\"Y\"),\"Y\",\"N\")","v":"Y"},null,{"$f":"IF(OR('C3'!EW45=\"Y\",'C3'!EW153=\"Y\",'C3'!EW218=\"Y\",'C4'!EW24=\"Y\",'C4'!EW57=\"Y\"),\"Y\",\"N\")","v":"N"},{"$f":"IF(OR('C3'!EX45=\"Y\",'C3'!EX153=\"Y\",'C3'!EX218=\"Y\",'C4'!EX24=\"Y\",'C4'!EX57=\"Y\"),\"Y\",\"N\")","v":"N"},{"$f":"IF(OR('C3'!EY45=\"Y\",'C3'!EY153=\"Y\",'C3'!EY218=\"Y\",'C4'!EY24=\"Y\",'C4'!EY57=\"Y\"),\"Y\",\"N\")","v":"N"},{"$f":"IF(OR('C3'!EZ45=\"Y\",'C3'!EZ153=\"Y\",'C3'!EZ218=\"Y\",'C4'!EZ24=\"Y\",'C4'!EZ57=\"Y\"),\"Y\",\"N\")","v":"Y"},{"$f":"IF(OR('C3'!FA45=\"Y\",'C3'!FA153=\"Y\",'C3'!FA218=\"Y\",'C4'!FA24=\"Y\",'C4'!FA57=\"Y\"),\"Y\",\"N\")","v":"N"},null,null,{"$f":"IF(OR('C3'!FD45=\"Y\",'C3'!FD153=\"Y\",'C3'!FD218=\"Y\",'C4'!FD24=\"Y\",'C4'!FD57=\"Y\"),\"Y\",\"N\")","v":"N"},{"$f":"IF(OR('C3'!FE45=\"Y\",'C3'!FE153=\"Y\",'C3'!FE218=\"Y\",'C4'!FE24=\"Y\",'C4'!FE57=\"Y\"),\"Y\",\"N\")","v":"N"},{"$f":"IF(OR('C3'!FF45=\"Y\",'C3'!FF153=\"Y\",'C3'!FF218=\"Y\",'C4'!FF24=\"Y\",'C4'!FF57=\"Y\"),\"Y\",\"N\")","v":"N"},{"$f":"IF(OR('C3'!FG45=\"Y\",'C3'!FG153=\"Y\",'C3'!FG218=\"Y\",'C4'!FG24=\"Y\",'C4'!FG57=\"Y\"),\"Y\",\"N\")","v":"N"},{"$f":"IF(OR('C3'!FH45=\"Y\",'C3'!FH153=\"Y\",'C3'!FH218=\"Y\",'C4'!FH24=\"Y\",'C4'!FH57=\"Y\"),\"Y\",\"N\")","v":"N"},{"$f":"IF(OR('C3'!FI45=\"Y\",'C3'!FI153=\"Y\",'C3'!FI218=\"Y\",'C4'!FI24=\"Y\",'C4'!FI57=\"Y\"),\"Y\",\"N\")","v":"N"},null,{"$f":"IF(OR('C3'!FK45=\"Y\",'C3'!FK153=\"Y\",'C3'!FK218=\"Y\",'C4'!FK24=\"Y\",'C4'!FK57=\"Y\"),\"Y\",\"N\")","v":"N"},null,null,null,null,null,null,null,null,null,null,null,null,null,null,null,null,null,null,null,null,null,null,null,null,null,null,{"$f":"IF(OR('C3'!GL45=\"Y\",'C3'!GL153=\"Y\",'C3'!GL218=\"Y\",'C4'!GL24=\"Y\",'C4'!GL57=\"Y\"),\"Y\",\"N\")","v":"N"},{"$f":"IF(OR('C3'!GM45=\"Y\",'C3'!GM153=\"Y\",'C3'!GM218=\"Y\",'C4'!GM24=\"Y\",'C4'!GM57=\"Y\"),\"Y\",\"N\")","v":"N"},{"$f":"IF(OR('C3'!GN45=\"Y\",'C3'!GN153=\"Y\",'C3'!GN218=\"Y\",'C4'!GN24=\"Y\",'C4'!GN57=\"Y\"),\"Y\",\"N\")","v":"N"},{"$f":"IF(OR('C3'!GO45=\"Y\",'C3'!GO153=\"Y\",'C3'!GO218=\"Y\",'C4'!GO24=\"Y\",'C4'!GO57=\"Y\"),\"Y\",\"N\")","v":"N"},null,{"$f":"IF(OR('C3'!GQ45=\"Y\",'C3'!GQ153=\"Y\",'C3'!GQ218=\"Y\",'C4'!GQ24=\"Y\",'C4'!GQ57=\"Y\"),\"Y\",\"N\")","v":"N"},null,null,null,null,null,{"$f":"IF(OR('C3'!GW45=\"Y\",'C3'!GW153=\"Y\",'C3'!GW218=\"Y\",'C4'!GW24=\"Y\",'C4'!GW57=\"Y\"),\"Y\",\"N\")","v":"N"},null,{"$f":"IF(OR('C3'!GY45=\"Y\",'C3'!GY153=\"Y\",'C3'!GY218=\"Y\",'C4'!GY24=\"Y\",'C4'!GY57=\"Y\"),\"Y\",\"N\")","v":"N"},{"$f":"IF(OR('C3'!GZ45=\"Y\",'C3'!GZ153=\"Y\",'C3'!GZ218=\"Y\",'C4'!GZ24=\"Y\",'C4'!GZ57=\"Y\"),\"Y\",\"N\")","v":"N"},{"$f":"IF(OR('C3'!HA45=\"Y\",'C3'!HA153=\"Y\",'C3'!HA218=\"Y\",'C4'!HA24=\"Y\",'C4'!HA57=\"Y\"),\"Y\",\"N\")","v":"N"},{"$f":"IF(OR('C3'!HB45=\"Y\",'C3'!HB153=\"Y\",'C3'!HB218=\"Y\",'C4'!HB24=\"Y\",'C4'!HB57=\"Y\"),\"Y\",\"N\")","v":"N"},{"$f":"IF(OR('C3'!HC45=\"Y\",'C3'!HC153=\"Y\",'C3'!HC218=\"Y\",'C4'!HC24=\"Y\",'C4'!HC57=\"Y\"),\"Y\",\"N\")","v":"N"},null,{"$f":"IF(OR('C3'!HE45=\"Y\",'C3'!HE153=\"Y\",'C3'!HE218=\"Y\",'C4'!HE24=\"Y\",'C4'!HE57=\"Y\"),\"Y\",\"N\")","v":"N"},null,null,null,null,null,null,null,null,null,{"$f":"IF(OR('C3'!HO45=\"Y\",'C3'!HO153=\"Y\",'C3'!HO218=\"Y\",'C4'!HO24=\"Y\",'C4'!HO57=\"Y\"),\"Y\",\"N\")","v":"N"},null,null,null,null,null,null,null,{"$f":"IF(OR('C3'!HW45=\"Y\",'C3'!HW153=\"Y\",'C3'!HW218=\"Y\",'C4'!HW24=\"Y\",'C4'!HW57=\"Y\"),\"Y\",\"N\")","v":"N"},null,null,null,null,null,null,null,null,null,null,null,null,null,null,null,null,null,{"$f":"IF(OR('C3'!IO45=\"Y\",'C3'!IO153=\"Y\",'C3'!IO218=\"Y\",'C4'!IO24=\"Y\",'C4'!IO57=\"Y\"),\"Y\",\"N\")","v":"N"},null,{"$f":"IF(OR('C3'!IQ45=\"Y\",'C3'!IQ153=\"Y\",'C3'!IQ218=\"Y\",'C4'!IQ24=\"Y\",'C4'!IQ57=\"Y\"),\"Y\",\"N\")","v":"Y"},null,null,{"$f":"IF(OR('C3'!IT45=\"Y\",'C3'!IT153=\"Y\",'C3'!IT218=\"Y\",'C4'!IT24=\"Y\",'C4'!IT57=\"Y\"),\"Y\",\"N\")","v":"Y"},null,null,null,null,{"$f":"IF(OR('C3'!IY45=\"Y\",'C3'!IY153=\"Y\",'C3'!IY218=\"Y\",'C4'!IY24=\"Y\",'C4'!IY57=\"Y\"),\"Y\",\"N\")","v":"N"},null,{"$f":"IF(OR('C3'!JA45=\"Y\",'C3'!JA153=\"Y\",'C3'!JA218=\"Y\",'C4'!JA24=\"Y\",'C4'!JA57=\"Y\"),\"Y\",\"N\")","v":"N"},"N",null,null,null,null,null,null,{"$f":"IF(OR('C3'!JH45=\"Y\",'C3'!JH153=\"Y\",'C3'!JI218=\"Y\",'C4'!JI24=\"Y\",'C4'!JI57=\"Y\"),\"Y\",\"N\")","v":"Y"},null,null,{"$f":"IF(OR('C3'!JL45=\"Y\",'C3'!JL153=\"Y\",'C3'!JL218=\"Y\",'C4'!JL24=\"Y\",'C4'!JL57=\"Y\"),\"Y\",\"N\")","v":"N"},{"$f":"IF(OR('C3'!JM45=\"Y\",'C3'!JM153=\"Y\",'C3'!JM218=\"Y\",'C4'!JM24=\"Y\",'C4'!JM57=\"Y\"),\"Y\",\"N\")","v":"N"}]
[3,{"$f":"IF(NI2_IND>1,IF(HLOOKUP(NI2_IND-1,NI2_RANGE,A170)=\"\",\"\",HLOOKUP(NI2_IND-1,NI2_RANGE,A170)),\"\")","v":""},"CL2","Class 2 Amount",null,null,185.5,null,185.5,null,null,null,185.5,null,null,null,null,null,136.5,null,null,null,null,null,null,185.5,185.5,null,185.5,null,185.5,null,null,70,185.5,185.5,89.75,null,129.5,null,null,185.5,null,null,null,185.5,null,185.5,null,null,null,null,null,185.5,80.5,185.5,185.5,null,null,null,185.5,185.5,null,null,null,null,null,null,null,null,null,null,null,null,null,null,null,null,null,185.5,null,null,null,null,null,null,null,null,null,185.5,null,null,161,null,185.5,185.5,185.5,null,185.5,185.5,185.5,185.5,91,161,161,null,185.5,185.5,null,null,185.5,null,null,91,null,null,91,185.5,185.5,null,null,null,185.5,null,161,null,null,null,null,80.5,null,null,null,null,185.5,185.5,185.5,185.5,null,null,null,null,185.5,null," ",null,164.5,185.5,null,null,185.5,null,164.5,185.5,185.5,185.5,81,null,null,80.5,164.5,80.5,164.5,164.5,80.5,null,161,null,null,null,null,null,null,null,null,null,null,null,null,null,null,null,null,null,null,null,null,null,null,null,null,null,null,185.5,185.5,185.5,185.5,null,185.5,null,null,null,null,null,185.5,null,185.5,185.5,185.5,98,185.5,null,185.5,null,null,null,null,null,null,null,null,null,126,null,null,null,null,null,null,null,185.5,null,null,null,null,null,null,null,null,null,null,null,null,null,null,null,null,null,185.5,null,185.5,null,null,null,null,null,null,null,185.5,null,185.5,185.5,null,185.5,null,null,185.5,null,185.5,null,null,185.5,185.5,null,null,null,null,null,null,"SA Monetary value (2dp) > 0.00"]
[4,{"$f":"IF(NI2_IND>1,IF(HLOOKUP(NI2_IND-1,NI2_RANGE,A171)=\"\",\"\",HLOOKUP(NI2_IND-1,NI2_RANGE,A171)),\"\")","v":""},"CL2wkamt",null,null,null,2,null,2,null,null,null,2,null,null,null,null,null,2,null,null,null,null,null,null,2,2,null,2,null,2,null,null,2,2,2,2,null,2,null,null,2,null,null,null,2,null,2,null,null,null,null,null,2,2,2,2,null,null,null,2,2,null,null,null,null,null,null,null,null,null,null,null,null,null,null,null,null,null,2,null,null,null,null,null,null,null,null,null,2,null,null,2,null,2,2,2,null,2,2,2,2,2,2,2,null,2,2,null,null,2,null,null,2,null,null,2,2,2,null,null,null,2,null,2,null,null,null,null,2,null,null,null,null,2,2,2,2,null,null,null,null,2,null,null,null,2,2,null,null,2,null,2,2,2,2,2,null,null,2,2,2,2,2,2,null,2,null,null,null,null,null,null,null,null,null,null,null,null,null,null,null,null,null,null,null,null,null,null,null,null,null,null,2,2,2,2,null,2,null,null,null,null,null,2,null,2,2,2,2,2,null,2,null,null,null,null,null,null,null,null,null,2,null,null,null,null,null,null,null,2,null,null,null,null,null,null,null,null,null,null,null,null,null,null,null,null,null,2,null,2,null,null,null,null,null,null,null,2,null,2,2,null,2,null,null,2,null,2,null,null,2,2]
[]
["row",{"$f":"\"selected \"&NI2Vol_IND-1","v":"selected 0"},"NIC2_Vol",null,1,2,3,4,5,6,7,8,9,10,11,12,13,14,15,16,17,18,19,20,21,22,23,24,25,26,27,28,29,30,31,32,33,34,35,36,37,38,39,40,41,42,43,44,45,46,47,48,49,50,51,52,53,54,55,56,57,58,59,60,61,62,63,64,65,66,67,68,69,70,71,72,73,74,75,76,77,78,79,80,81,82,83,84,85,86,87,88,89,90,91,92,93,94,95,96,97,98,99,100,101,102,103,104,105,106,107,108,109,110,111,112,113,114,115,116,117,118,119,120,121,122,123,124,125,126,127,128,129,130,131,132,133,134,135,136,137,138,139,140,141,142,143,144,145,146,147,148,149,150,151,152,153,154,155,156,157,158,159,160,161,162,163,164,165,166,167,168,169,170,171,172,173,174,175,176,177,178,179,180,181,182,183,184,185,186,187,188,189,190,191,192,193,194,195,196,197,198,199,200,201,202,203,204,205,206,207,208,209,210,211,212,213,214,215,216,217,218,219,220,221,222,223,224,225,226,227,228,229,230,231,232,233,234,235,236,237,238,239,240,241,242,243,244,245,246,247,248,249,250,251,252,253,254,255,256,257,258,259,260,261,262,263,264,265,266,267,268,269,270,271,272,273,null,null,"Type"]
[2,{"$f":"IF(NI2Vol_IND>1,IF(HLOOKUP(NI2Vol_IND-1,NI2Vol_RANGE,A174)=\"\",\"\",HLOOKUP(NI2Vol_IND-1,NI2Vol_RANGE,A174)),\"\")","v":""},"NIC2_Vol","NIC2 Voluntary","N","N","N","N","N","N","N","N","Y","N","N","N","N","N","N","N","N","N","N","N","N","N","N","N","N","N","N","N","N","N","N","N","N","N","N","N","N","N","N","N","N","Y","N","N","N","N","N","N","N","Y","N","Y","N","N","N","N","N","N","N","N","N","N","N","N","N","N","N","N","N","N","N","N","N","N","N","N","N","N","N","N","N","N","N","N","N","N","N","N","Y","N","N","N","N","N","N","N","N","Y","N","N","N","N","N","N","N","N","N","N","N","N","N","N","N","N","N","N","N","N","N","N","N","N","N","N","N","N","N","N","N","N","Y","N","Y","N","N","N","N","N","N","N","N","N","N","N","N","N","Y","N","N","N","N","N","N","N","N","N","Y","N","Y","N","Y","N","N","N","N","N","N","N","N","N","N","N","N","N","N","N","N","N","N","N","N","N","N","N","N","N","N","N","N","N","N","N","N","N","N","N","N","N","N","N","N","N","Y","Y","Y","N","N","N","N","N","N","N","N","N","N","N","N","N","N","N","N","N","N","N","N","N","N","N","N","N","N","N","N","N","N","N","N","N","N","N","N","N","N","N","Y","N","N","N","N","N","N","N","N",null,null,null,null,null,null,"Y",null,null,"Y","N","N","N","N","N","Y","N","N","N",null,null,null,"SA Monetary value (2dp) > 0.00"]
[]
["row",{"$f":"\"selected \"&NI4Ex_IND-1","v":"selected 0"},"NIC4Ex",null,1,2,3,4,5,6,7,8,9,10,11,12,13,14,15,16,17,18,19,20,21,22,23,24,25,26,27,28,29,30,31,32,33,34,35,36,37,38,39,40,41,42,43,44,45,46,47,48,49,50,51,52,53,54,55,56,57,58,59,60,61,62,63,64,65,66,67,68,69,70,71,72,73,74,75,76,77,78,79,80,81,82,83,84,85,86,87,88,89,90,91,92,93,94,95,96,97,98,99,100,101,102,103,104,105,106,107,108,109,110,111,112,113,114,115,116,117,118,119,120,121,122,123,124,125,126,127,128,129,130,131,132,133,134,135,136,137,138,139,140,141,142,143,144,145,146,147,148,149,150,151,152,153,154,155,156,157,158,159,160,161,162,163,164,165,166,167,168,169,170,171,172,173,174,175,176,177,178,179,180,181,182,183,184,185,186,187,188,189,190,191,192,193,194,195,196,197,198,199,200,201,202,203,204,205,206,207,208,209,210,211,212,213,214,215,216,217,218,219,220,221,222,223,224,225,226,227,228,229,230,231,232,233,234,235,236,237,238,239,240,241,242,243,244,245,246,247,248,249,250,251,252,253,254,255,256,257,258,259,260,261,262,263,254,255,256,257,258,259,260,261,262,263,null,null,"Type"]
[2,{"$f":"IF(NI4Ex_IND>1,IF(HLOOKUP(NI4Ex_IND-1,NI4Ex_RANGE,A177)=\"\",\"\",HLOOKUP(NI4Ex_IND-1,NI4Ex_RANGE,A177)),\"\")","v":""},"NIC4Ex","NIC4 Exempt","N","N","N","N","N","Y","Y","Y","N","N","Y","N","Y","N","N","N","N","N","N","N","N","N","N","N","N","N","N","N","N","N","N","N","N","N","N","N","N","N","N","N","N","N","N","N","Y","Y","Y","Y","N","N","N","N","N","N","N","Y","N","N","Y","N","Y","Y","N","Y","Y","Y","Y","Y","Y","Y","Y","Y","Y","Y","Y","N","N","Y","N","Y","N","Y","Y","N","Y","N","Y","N","N","Y","N","N","N","N","N","N","N","N","N","N","N","N","N","N","N","N","N","Y","Y","N","N","N","N","N","N","N","N","N","N","N","N","N","N","Y","Y","N","N","N","N","Y","N","N","N","N","Y","N","N","N","N","N","N","N","N","N","Y","Y","N","Y","N","N","N","N","N","N","N","N","N","N","N","N","N","Y","N","N","N","N","N","N","N","N","N","Y","Y","Y","N","N","N","N","N","N","N","N","N","N","N","N","Y","Y","N","N","N","N","N","N","N","N","N","N","N","Y","N","N","N","N","N","N","N","Y","N","Y","Y","N","N","N","N","N","N","N","N","Y","N","N","N","N","N","N","N","N","N","N","N","N","N","N","N","N","N","N","N","N","N","N","N","N","N","N","Y","N","N","N","N","N","N",null,null,null,null,null,null,null,null,null,null,"N","N","N","N","N","N","Y","N","N",null,null,null,"SA Monetary value (2dp) > 0.00"]

{"sheet":"Test case","index":18,"n_rows":119,"n_cols":62,"rows_kept":119,"cut":false,"hidden":false,"merged":[]}
[null,"Test case 168"]
[null,null,"SA100",null,null,null,null,null,"SA101",null,null,null,null,"SA102",null,null,"SA102M",null,null,"SA103S",null,null,null,"SA103F",null,null,null,null,null,"SA103L",null,null,null,null,"SA104S",null,null,null,"SA104F",null,null,null,null,"SA105",null,null,null,"SA106",null,null,null,null,"SA107",null,null,"SA108",null,null,"SA109",null,null,"SA110"]
["YPD",null,null,"REL","Selected  = 0/0/0",null,"AOI","Selected  = 0/0/0",null,"MCA","Selected  = 0",null,"EMP-A","Selected  = 168",null,"MOR","Selected  = 0",null,"SSE","Selected  = 168",null,"FSE","Selected  = 0",null,"FSE","Selected  = 0",null,"LUN","Selected  = 0",null,"LUN","Selected  = 0",null,"SPS","Selected  = 168",null,"FPS","Selected  = 0",null,"FPS","Selected  = 0",null,"PRO","Selected  = 0",null,"FOR","Selected  = 168",null,"FOR","Selected  = 168",null,"TRU","Selected  = 0",null,"CGT","Selected  = 168",null,"NRD","Selected  = 0",null,"CAL","Selected  = 0"]
["1","23/04/1987",null,"1","",null,"1","",null,"1","",null,"1",89201,null,"1","",null,"1","caterer",null,"1","",null,"53","",null,"1","",null,"51","",null,"1",1000050020,null,"1","",null,"52","",null,"1","",null,1,"",null,13.1,"",null,"1","",null,"1","",null,"1","",null,"1",21373.83]
["2",null,null,"1.1","",null,"2","",null,"2","",null,"1.1","",null,"2","",null,"2","",null,"2","",null,"53.1","",null,"2","",null,"52","",null,"2","trader",null,"2","",null,"53","",null,"2","",null,2,"",null,13.2,"",null,"2","",null,"2","",null,"2","Box not in use",null,"2",""]
["3",null,null,"2","",null,"3","",null,"3","",null,"2",14056,null,"2.1","",null,"3","",null,"3","",null,"54","",null,"2.1","Box not in use",null,"53","",null,"3Q","N",null,"3Q","",null,"54","",null,"3","",null,"A_1","GGY",null,14,"",null,"3","",null,"3",1,null,"3","",null,"3",""]
["4",null,null,"3","",null,"4","",null,"4","",null,"3","",null,"3","",null,"4","",null,"4","",null,"55","",null,"3","",null,"54","",null,"3","",null,"3","",null,"55","",null,"4","",null,"B_1",698,null,14.1,"",null,"4","",null,"4","",null,"3.1","",null,"3.1",""]
["TR",2,null,"4","",null,"5","",null,"5","",null,"3.1","Box not in use",null,"4","",null,"5Q","Y",null,"5","",null,"56","",null,"3.1","Box not in use",null,"55","",null,"4Q","Y",null,"4Q","",null,"55.1","",null,"5","Box not in use",null,"C_1","",null,14.2,"",null,"5","",null,"5","",null,"4","",null,"4",0]
[null,null,null,"5","",null,"6","",null,"6","",null,"4","525/444",null,"4.1","Box not in use",null,"5","25/04/2025",null,"6Q","",null,"57","",null,"4","",null,"56","",null,"4","30/03/2026",null,"4","",null,"56","",null,"5.1","Box not in use",null,"3D_1","",null,15,"",null,"6","",null,"6",29077,null,"5","Box not in use",null,"4.1",0]
["INC","Selected  = 168/0/0",null,"6","",null,"7","",null,"7","",null,"5","",null,"5","",null,"6Q","Y",null,"6","",null,"58","Box not in use",null,"5","",null,"57","",null,"5","Box not in use",null,"5","Box not in use",null,"57","",null,"5.2","Box not in use",null,"E_1","",null,16,"",null,"7","",null,"6.1","",null,"6","",null,"5",8036.6399999999994]
["1","",null,"7","",null,"8","",null,"8","",null,"6","Y",null,"6","",null,"6","05/04/2026",null,"7Q","",null,"59","",null,"6","",null,"58","",null,"6","Box not in use",null,"6","Box not in use",null,"58","",null,"6","Box not in use",null,"4F_1",698,null,17,"",null,"8","",null,"7","",null,"7","",null,"6",""]
["2","",null,"8","",null,"9","",null,"9","",null,"6.1","",null,"7","",null,"7","05/04/2026",null,"7","",null,"60","",null,"7",null,null,"59","",null,"7","Box not in use",null,"7","Box not in use",null,"59","",null,"7","Box not in use",null,"A_2","IRL",null,18,"",null,"9","",null,"8","",null,"8","",null,"7",""]
["3","",null,"9","",null,"10","",null,"10","",null,"7","",null,"8","",null,"8","N",null,"8","",null,"61","",null,"8","",null,"60","",null,"8",-1840,null,"8","",null,"60","",null,"8","Box not in use",null,"B_2",14265,null,19,"",null,"10","",null,"9","",null,"9","",null,"8",""]
["4",40000,null,"10","",null,"11","",null,"11","",null,"7.1","",null,"9","",null,"9",27643,null,"9","",null,"62","",null,"9","",null,"61","",null,"9","",null,"9","",null,"60.1","",null,"9","Box not in use",null,"C_2","",null,20,"",null,"11","",null,"10","",null,"10","",null,"9",""]
["5","",null,"11","Box not in use",null,"12","",null,null,null,null,"7.2","",null,"10","",null,"10","",null,"10","",null,"63","",null,"10","Box not in use",null,"62","",null,"9.1","Box not in use",null,"9.1","Box not in use",null,"61","",null,"10","Box not in use",null,"3D_2","",null,21,"",null,"12","",null,"11","",null,"11","",null,"10",""]
["6","",null,"12","Box not in use",null,"13","",null,"AIL","Selected  = 0",null,"7.3","",null,"11","",null,"10.1","",null,"11","",null,"64","",null,"11","",null,"63","",null,"10","",null,"10","",null,"62","",null,"11","Box not in use",null,"E_2","",null,21.1,"",null,"13","",null,"12","",null,"11.1","",null,"11",""]
["7","",null,"13","",null,"13.1","",null,"1","",null,"7.4","",null,"12","",null,"11",1200,null,"12","",null,"65","",null,"12","",null,"64","",null,"11","",null,"11","",null,"63","",null,"11.1","Box not in use",null,"4F_2",14265,null,22,"Box not in use",null,"14","",null,"13","",null,"12","",null,"12",""]
["8","",null,"14","",null,"14","",null,"2","",null,"8","",null,"13","",null,"12",9200,null,"13","",null,"66","Box not in use",null,"13","",null,"65","",null,"12","",null,"12","",null,"63.1","",null,"11.2","Box not in use",null,3,"",null,22.1,"",null,"15","",null,"13A","",null,"13","",null,"13",""]
["9","",null,"15","",null,"15","",null,"3","",null,"8.1","Box not in use",null,"14","",null,"13",12500,null,"14","",null,"67","Box not in use",null,"14","",null,"66","",null,"13","Box not in use",null,"13","Box not in use",null,"63.2","",null,"12","Box not in use",null,4,14963,null,22.2,"",null,"16","",null,"13B","",null,"14","",null,"14",""]
["10","",null,"16","",null,null,null,null,"4","",null,"9","",null,"15","",null,"14",17320,null,"15","",null,"68","",null,"15","",null,null,null,null,"14","Box not in use",null,"14","Box not in use",null,"AF2","",null,"13","Box not in use",null,4.0999999999999996,"",null,23,"",null,"17","",null,"13C","",null,"15","",null,"15",""]
["11","",null,null,null,null,"ASE","Selected  = 0/0/0",null,"5","",null,"10","",null,"16","",null,"15",11109,null,"16","",null,"69","Box not in use",null,"16","",null,null,null,null,"15","Box not in use",null,"15","Box not in use",null,"64","Box not in use",null,"14","Box not in use",null,"A_1","",null,24,"",null,"18","",null,"13.1","",null,"16","",null,"16",""]
["12","",null,"FIN",null,null,"1","",null,"6","",null,"11",8303,null,"17","",null,"16",4200,null,"16.1","",null,"70","Box not in use",null,"17","",null,null,null,null,"16","",null,"16","",null,"65","Box not in use",null,"15","Box not in use",null,"B_1","",null,24.1,"",null,"18.1","",null,"13.2","",null,"17","",null,"17"]
["13","",null,"1","",null,"2",null,null,"7","Box not in use",null,"12","",null,"18","",null,"17",13642,null,"17","",null,"70.1","Box not in use",null,"18","",null,null,null,null,"17","",null,"16.1","Box not in use",null,"66","Box not in use",null,"16","Box not in use",null,"C_1","",null,24.2,"",null,"19","",null,"13.3","",null,"18",""]
["14","",null,"2","N",null,"3","",null,"8","Box not in use",null,"13","",null,"19","",null,"18",1602,null,"18","",null,"71","",null,"19",null,null,null,null,null,"18","",null,"16.2","Box not in use",null,"67","",null,"17","Box not in use",null,"5D_1","",null,"A_1","",null,"22","",null,"13.4","",null,"19","",null,null,"NI"]
["15","",null,"3","N",null,"4","",null,"9","Box not in use",null,"14","",null,"20","",null,"19",777,null,"19","",null,"72","",null,"20","",null,null,null,null,"19","",null,"16.3","",null,"68","",null,"18","Box not in use",null,"E_1","",null,"25B_1","",null,"22.1","",null,"13.5","",null,"20","",null,"Class 2","Selected  = 0"]
["16","",null,"4",null,null,"5","",null,"10","",null,"15","",null,"21","",null,"20",71550,null,"20","",null,"73","",null,"21","",null,null,null,null,"20","",null,"16.4","",null,"69","",null,"19","Box not in use",null,"6F_1","",null,"28C_1","",null,"23","",null,"13.6","",null,"21","",null,"CL2",""]
["17","",null,"5",null,null,"6","",null,"11","",null,"16","",null,"22","",null,"21","",null,"21","",null,"73.1","Box not in use",null,"22","",null,null,null,null,"21",1844,null,"17","",null,"70","",null,"5","Box not in use",null,"A_2","",null,"29D_1","",null,"24","",null,"13.7","",null,"22","",null,"CL2wkamt_Type",""]
["18","",null,"6",null,null,"7","",null,"11.1","",null,"17","",null,"23","",null,"22",43907,null,"22","",null,"73.2","Box not in use",null,"23","",null,null,null,null,"22",1844,null,"18","",null,"70.1","",null,"5.1","Box not in use",null,"B_2","",null,"E_1","",null,"25","",null,"13.8","",null,"23",""]
["19","",null,"7",null,null,"8","",null,"11.2","",null,"18","",null,"24","",null,"23","",null,"23","",null,"73.3","",null,"24","",null,null,null,null,"23","",null,"19","",null,"71","",null,"5.2","Box not in use",null,"C_2","",null,"30F_1","",null,"25.1","",null,"14","",null,"23.1","Box not in use",null,null,"NI"]
["20","",null,"8",null,null,"9","",null,"12","",null,"19","",null,"25","",null,"24","",null,"24","",null,"73.4","",null,"25","",null,null,null,null,"24","",null,"20","",null,"72","",null,"6","Box not in use",null,"5D_2","",null,25,"",null,null,null,null,"15","",null,"23.2","Box not in use",null,"Class 1","Selected  = 168"]
["21","",null,"9","N",null,"10","",null,"13","",null,"20","",null,"26","",null,"24.1","",null,"25","",null,"74","",null,"26","",null,null,null,null,"25","",null,"20.1","",null,"73","",null,"7","Box not in use",null,"E_2","",null,26,"",null,null,null,null,"16","",null,"23.3","Box not in use",null,"Total Cl1",37700]
[null,null,null,"10","N",null,"11","",null,"14","",null,null,null,null,"27","",null,"25",11260,null,"26","",null,"75","",null,"27","",null,null,null,null,"26","",null,"21","",null,"74","",null,"8","Box not in use",null,"6F_2","",null,27,"",null,null,null,null,"17","",null,"24",""]
["SLR","Selected  = 0",null,"11","N",null,"12","",null,"15","",null,null,"SA102",null,"28","",null,"25.1","",null,"27","",null,"75.1","Box not in use",null,"28","",null,null,null,null,"27","",null,"21.1","",null,"75","",null,"9","Box not in use",null,"A_3","",null,28,"",null,null,null,null,"17.0","",null,"25","Box not in use"]
["1","",null,"12",null,null,"13","",null,"16","",null,"EMP-B","Selected  = 0",null,"29","",null,"25.2","",null,"28","",null,"76","",null,"29","",null,null,null,null,"28","",null,"22","",null,"75.1","",null,"10","Box not in use",null,"B_3","",null,29,"",null,null,null,null,"17.1","",null,"26","Box not in use"]
["PT","",null,"13",null,null,"14","",null,"17","Box not in use",null,"1","",null,"30","",null,"26",1340,null,"29","",null,"76.1","",null,"30","",null,null,null,null,"29","Box not in use",null,"23","",null,"76","",null,"11","Box not in use",null,"C_3","",null,30,"",null,null,null,null,"17.2","",null,"27","Box not in use"]
["PT","",null,"14",null,null,"15","",null,"18","",null,"1.1","",null,"31","",null,"27","",null,"30","",null,"77","",null,"31","",null,null,null,null,"30","",null,"24","",null,"76.1","",null,"11.1","Box not in use",null,"5D_3","",null,30.1,"",null,null,null,null,"17.3","",null,"28",""]
["2","",null,"15",null,null,null,null,null,"19","",null,"2","",null,"32","",null,"27.1","Box not in use",null,"31","",null,"77.1","",null,"32","",null,null,null,null,"31","",null,"25","",null,"77","",null,"11.2","Box not in use",null,"E_3","",null,31,"",null,null,null,null,"17.4","",null,"29",""]
["3","",null,"16",null,null,"AOR","Selected  = 0",null,"20","",null,"3","",null,"33","",null,"28","",null,"32","",null,"78","",null,"33","",null,null,null,null,"32","",null,"26","",null,"78","",null,"12","Box not in use",null,"6F_3","",null,32,"",null,null,null,null,"18","Box not in use",null,"30",""]
[null,null,null,"17",null,null,"1","",null,"21","Box not in use",null,"3.1","Box not in use",null,"34","",null,"29","",null,"33","",null,"79","",null,"34","",null,null,null,null,null,null,null,"27","",null,"79","",null,"13","Box not in use",null,"A_4","",null,"A_1","",null,null,null,null,"19","",null,"31","Box not in use"]
["CBC","Selected  = 0",null,"18",null,null,"2","",null,"22","Box not in use",null,"4","",null,"35","",null,"30","",null,"34","",null,"80","",null,"35","",null,null,null,null,null,null,null,"28","",null,"80","",null,"14","Box not in use",null,"B_4","",null,"C_1","",null,null,null,null,"20","",null,"32","Box not in use"]
["1","",null,"19","Andrea Gail",null,"3","",null,"23","Box not in use",null,"5","",null,"36","",null,"31","",null,"35","",null,"81","",null,"36","",null,null,null,null,null,null,null,"29","",null,null,null,null,"15","Box not in use",null,"C_4","",null,"E_1","",null,null,null,null,"21","",null,"33","Box not in use"]
["2","",null,"20",null,null,"4","",null,"24","Box not in use",null,"6","",null,"37","",null,"32",53827,null,"36","",null,"82","",null,"37","",null,null,null,null,null,null,null,"30","",null,null,null,null,"16","Box not in use",null,"5D_4","",null,"F_1","",null,null,null,null,"22","",null,"34","Box not in use"]
["3","",null,"20.1","Box not in use",null,"5","",null,null,null,null,"6.1","",null,"38","",null,"33",53827,null,"37","",null,"83","",null,"38","",null,null,null,null,null,null,null,"31","",null,null,null,null,"17","Box not in use",null,"E_4","",null,"A_2","",null,null,null,null,"23","",null,"35","Box not in use"]
[null,null,null,"21",null,null,"6","",null,null,null,null,"7","",null,"39","",null,"34","",null,"38","",null,"84","",null,"39","",null,null,null,null,null,null,null,"32","",null,null,null,null,"18","Box not in use",null,"6F_4","",null,"C_2","",null,null,null,null,"24",34228,null,"36","Box not in use"]
["WFHP","Selected  = 0",null,"22","Y",null,6.1,"",null,null,null,null,"7.1","",null,"CL1",0,null,"35","",null,"39","",null,"85","",null,"40","",null,null,null,null,null,null,null,"33","",null,null,null,null,"19","Box not in use",null,"A_5","",null,"E_2","",null,null,null,null,"25",26819,null,"37",""]
["1","",null,"23",null,null,"7","",null,null,null,null,"7.2","",null,null,null,null,"36","",null,"40","",null,"86","",null,"41","",null,null,null,null,null,null,null,"34","",null,null,null,null,"20","",null,"B_5","",null,"F_2","",null,null,null,null,"26",7409,null,"38",""]
[null,null,null,"24",null,null,"8","",null,null,null,null,"7.3","",null,null,null,null,"37","N",null,"41","",null,"87","",null,"42","",null,null,null,null,null,null,null,"34.1","Box not in use",null,null,null,null,"20.1","",null,"C_5","",null,"A_3","",null,null,null,null,"26.1","",null,"39",""]
["MAT",null,null,"25",null,null,"9","",null,null,null,null,"7.4","",null,null,null,null,"38","",null,"42","",null,"88","",null,"43","",null,null,null,null,null,null,null,"35","",null,null,null,null,"20.2","",null,"5D_5","",null,"C_3","",null,null,null,null,"27","",null,"40",""]
["0","",null,"26",null,null,"10","",null,null,null,null,"8","",null,null,null,null,null,null,null,"43","",null,"89","",null,"44","",null,null,null,null,null,null,null,"35.1","",null,null,null,null,"21","",null,"E_5","",null,"E_3","",null,null,null,null,"28","",null,"41",""]
["1","",null,null,null,null,"11","Box not in use",null,null,null,null,"8.1","Box not in use",null,null,null,null,null,null,null,"44","",null,"90","",null,"45","",null,null,null,null,null,null,null,"36","",null,null,null,null,"22","",null,"6F_5","",null,"F_3","",null,null,null,null,"29","",null,"43",""]
["2","",null,null,null,null,"12","",null,null,null,null,"9","",null,null,null,null,null,null,null,"45","",null,"91","",null,"46","",null,null,null,null,null,null,null,"37","",null,null,null,null,"23","",null,5,"",null,"A_4","",null,null,null,null,"30","",null,"44",""]
["3","",null,null,null,null,null,null,null,null,null,null,"10","",null,null,null,null,null,null,null,"46","",null,"92","",null,"47","",null,null,null,null,null,null,null,"38","",null,null,null,null,"24","",null,6,"",null,"C_4","",null,null,null,null,"31","",null,"46",""]
["4","",null,null,null,null,null,null,null,null,null,null,"11","",null,null,null,null,null,null,null,"47","",null,"93","",null,"48","",null,null,null,null,null,null,null,"39","",null,null,null,null,"25","",null,6.1,"",null,"E_4","",null,null,null,null,"32","",null,"47",""]
["5","",null,null,null,null,null,null,null,null,null,null,"12","",null,null,null,null,null,null,null,"48","",null,"94","",null,"49","",null,null,null,null,null,null,null,"40","",null,null,null,null,"26","",null,"A_1","",null,"F_4","",null,null,null,null,"33","",null,"48",""]
["-OUT","",null,null,null,null,null,null,null,null,null,null,"13","",null,null,null,null,null,null,null,"49","",null,"95","",null,"50","",null,null,null,null,null,null,null,"41","",null,null,null,null,"27","",null,"B_1","",null,33,"",null,null,null,null,"34","",null,"49",""]
["-IN","",null,null,null,null,null,null,null,null,null,null,"14","",null,null,null,null,null,null,null,"50","",null,"96","",null,null,null,null,null,null,null,null,null,null,"41.1","",null,null,null,null,"28","",null,"C_1","",null,34,"",null,null,null,null,"34.1","",null,"50",""]
[null,null,null,null,null,null,null,null,null,null,null,null,"15","",null,null,null,null,null,null,null,"51","",null,"97","",null,null,null,null,null,null,null,null,null,null,"41.2","",null,null,null,null,"29","",null,"D_1","",null,35,"",null,null,null,null,"35","",null,"51",""]
[null,null,null,null,null,null,null,null,null,null,null,null,"16","",null,null,null,null,null,null,null,"52","",null,"98","",null,null,null,null,null,null,null,null,null,null,"AF1","",null,null,null,null,"30","",null,"E_1","",null,36,"",null,null,null,null,"36","",null,"52",""]
[null,null,null,null,null,null,null,null,null,null,null,null,"17","",null,null,null,null,null,null,null,"52.1","",null,"99","",null,null,null,null,null,null,null,null,null,null,"42","Box not in use",null,null,null,null,"31","",null,"F_1","",null,37,"",null,null,null,null,"37","",null,"53",""]
[null,null,null,null,null,null,null,null,null,null,null,null,"18","",null,null,null,null,null,null,null,null,null,null,"100","",null,null,null,null,null,null,null,null,null,null,"43","Box not in use",null,null,null,null,"32","",null,7.1,"",null,38,"",null,null,null,null,"38","",null,"54",""]
[null,null,null,null,null,null,null,null,null,null,null,null,"19","",null,null,null,null,null,null,null,null,null,null,"101","",null,null,null,null,null,null,null,null,null,null,"44","Box not in use",null,null,null,null,"33","",null,7.2,"",null,39,"",null,null,null,null,"39",""]
[null,null,null,null,null,null,null,null,null,null,null,null,"20","",null,null,null,null,null,null,null,null,null,null,"102","",null,null,null,null,null,null,null,null,null,null,"45","",null,null,null,null,"33.1","",null,"A_1","",null,40,"",null,null,null,null,"40",""]
[null,null,null,null,null,null,null,null,null,null,null,null,"CL1",37700,null,null,null,null,null,null,null,null,null,null,"103","",null,null,null,null,null,null,null,null,null,null,"46","",null,null,null,null,"33.2","",null,"B_1","",null,41,"Box not in use",null,null,null,null,"41",""]
[null,null,null,null,null,null,null,null,null,null,null,null,null,null,null,null,null,null,null,null,null,null,null,null,null,null,null,null,null,null,null,null,null,null,null,null,"47","",null,null,null,null,"34","Box not in use",null,"C_1","",null,42,"Box not in use",null,null,null,null,"42",""]
[null,null,null,null,null,null,null,null,null,null,null,null,null,null,null,null,null,null,null,null,null,null,null,null,null,null,null,null,null,null,null,null,null,null,null,null,"48","",null,null,null,null,"34.1","",null,"D_1","",null,43,"",null,null,null,null,"43",""]
[null,null,null,null,null,null,null,null,null,null,null,null,null,null,null,null,null,null,null,null,null,null,null,null,null,null,null,null,null,null,null,null,null,null,null,null,"49","",null,null,null,null,"35","",null,"E_1","",null,44,"",null,null,null,null,"44",""]
[null,null,null,null,null,null,null,null,null,null,null,null,null,null,null,null,null,null,null,null,null,null,null,null,null,null,null,null,null,null,null,null,null,null,null,null,"50","",null,null,null,null,"36","",null,"F_1","",null,45,"",null,null,null,null,"45",""]
[null,null,null,null,null,null,null,null,null,null,null,null,null,null,null,null,null,null,null,null,null,null,null,null,null,null,null,null,null,null,null,null,null,null,null,null,"51","",null,null,null,null,"37","",null,7.3,"",null,46,"",null,null,null,null,"46",""]
[null,null,null,null,null,null,null,null,null,null,null,null,null,null,null,null,null,null,null,null,null,null,null,null,null,null,null,null,null,null,null,null,null,null,null,null,null,null,null,null,null,null,"38","",null,7.4,"",null,"A_1","",null,null,null,null,"47",""]
[null,null,null,null,null,null,null,null,null,null,null,null,null,null,null,null,null,null,null,null,null,null,null,null,null,null,null,null,null,null,null,null,null,null,null,null,null,null,null,null,null,null,"39","",null,7.5,"",null,"B_1","",null,null,null,null,"48",""]
[null,null,null,null,null,null,null,null,null,null,null,null,null,null,null,null,null,null,null,null,null,null,null,null,null,null,null,null,null,null,null,null,null,null,null,null,null,null,null,null,null,null,"40","",null,"A_1","",null,"C_1","",null,null,null,null,"49",""]
[null,null,null,null,null,null,null,null,null,null,null,null,null,null,null,null,null,null,null,null,null,null,null,null,null,null,null,null,null,null,null,null,null,null,null,null,null,null,null,null,null,null,"41","",null,"B_1","",null,"D_1","",null,null,null,null,"50",""]
[null,null,null,null,null,null,null,null,null,null,null,null,null,null,null,null,null,null,null,null,null,null,null,null,null,null,null,null,null,null,null,null,null,null,null,null,null,null,null,null,null,null,"42","",null,"C_1","",null,"E_1","",null,null,null,null,"50.1",""]
[null,null,null,null,null,null,null,null,null,null,null,null,null,null,null,null,null,null,null,null,null,null,null,null,null,null,null,null,null,null,null,null,null,null,null,null,null,null,null,null,null,null,"43","",null,"8D_1","",null,"F_1","",null,null,null,null,"51",""]
[null,null,null,null,null,null,null,null,null,null,null,null,null,null,null,null,null,null,null,null,null,null,null,null,null,null,null,null,null,null,null,null,null,null,null,null,null,null,null,null,null,null,"44","",null,"E_1","",null,47,"",null,null,null,null,"52",""]
[null,null,null,null,null,null,null,null,null,null,null,null,null,null,null,null,null,null,null,null,null,null,null,null,null,null,null,null,null,null,null,null,null,null,null,null,null,null,null,null,null,null,"45","",null,"9F_1","",null,48,"",null,null,null,null,"52.1",""]
[null,null,null,null,null,null,null,null,null,null,null,null,null,null,null,null,null,null,null,null,null,null,null,null,null,null,null,null,null,null,null,null,null,null,null,null,null,null,null,null,null,null,null,null,null,8,"",null,48.1,"",null,null,null,null,"52.2",""]
[null,null,null,null,null,null,null,null,null,null,null,null,null,null,null,null,null,null,null,null,null,null,null,null,null,null,null,null,null,null,null,null,null,null,null,null,null,null,null,null,null,null,null,null,null,9,"",null,49,"",null,null,null,null,"52.3",""]
[null,null,null,null,null,null,null,null,null,null,null,null,null,null,null,null,null,null,null,null,null,null,null,null,null,null,null,null,null,null,null,null,null,null,null,null,null,null,null,null,null,null,null,null,null,9.1,"",null,49.1,"",null,null,null,null,"52.4",""]
[null,null,null,null,null,null,null,null,null,null,null,null,null,null,null,null,null,null,null,null,null,null,null,null,null,null,null,null,null,null,null,null,null,null,null,null,null,null,null,null,null,null,null,null,null,"A_1","",null,"A_1","",null,null,null,null,"52.5",""]
[null,null,null,null,null,null,null,null,null,null,null,null,null,null,null,null,null,null,null,null,null,null,null,null,null,null,null,null,null,null,null,null,null,null,null,null,null,null,null,null,null,null,null,null,null,"B_1","",null,"B_1","",null,null,null,null,"52EG",""]
[null,null,null,null,null,null,null,null,null,null,null,null,null,null,null,null,null,null,null,null,null,null,null,null,null,null,null,null,null,null,null,null,null,null,null,null,null,null,null,null,null,null,null,null,null,"C_1","",null,"C_1","",null,null,null,null,"52EG.1",""]
[null,null,null,null,null,null,null,null,null,null,null,null,null,null,null,null,null,null,null,null,null,null,null,null,null,null,null,null,null,null,null,null,null,null,null,null,null,null,null,null,null,null,null,null,null,"10D_1","",null,"D_1","",null,null,null,null,"52QG",""]
[null,null,null,null,null,null,null,null,null,null,null,null,null,null,null,null,null,null,null,null,null,null,null,null,null,null,null,null,null,null,null,null,null,null,null,null,null,null,null,null,null,null,null,null,null,"E_1","",null,"E_1","",null,null,null,null,"52QG.1",""]
[null,null,null,null,null,null,null,null,null,null,null,null,null,null,null,null,null,null,null,null,null,null,null,null,null,null,null,null,null,null,null,null,null,null,null,null,null,null,null,null,null,null,null,null,null,"11F_1","",null,"F_1","",null,null,null,null,"52QL",""]
[null,null,null,null,null,null,null,null,null,null,null,null,null,null,null,null,null,null,null,null,null,null,null,null,null,null,null,null,null,null,null,null,null,null,null,null,null,null,null,null,null,null,null,null,null,10,"",null,50,"",null,null,null,null,"53",""]
[null,null,null,null,null,null,null,null,null,null,null,null,null,null,null,null,null,null,null,null,null,null,null,null,null,null,null,null,null,null,null,null,null,null,null,null,null,null,null,null,null,null,null,null,null,11,"",null,51,"",null,null,null,null,"54","computation"]
[null,null,null,null,null,null,null,null,null,null,null,null,null,null,null,null,null,null,null,null,null,null,null,null,null,null,null,null,null,null,null,null,null,null,null,null,null,null,null,null,null,null,null,null,null,11.1,"",null,51.1,""]
[null,null,null,null,null,null,null,null,null,null,null,null,null,null,null,null,null,null,null,null,null,null,null,null,null,null,null,null,null,null,null,null,null,null,null,null,null,null,null,null,null,null,null,null,null,"13A","",null,"A_1",""]
[null,null,null,null,null,null,null,null,null,null,null,null,null,null,null,null,null,null,null,null,null,null,null,null,null,null,null,null,null,null,null,null,null,null,null,null,null,null,null,null,null,null,null,null,null,"13B","",null,"B_1",""]
[null,null,null,null,null,null,null,null,null,null,null,null,null,null,null,null,null,null,null,null,null,null,null,null,null,null,null,null,null,null,null,null,null,null,null,null,null,null,null,null,null,null,null,null,null,"13C","",null,"C_1",""]
[null,null,null,null,null,null,null,null,null,null,null,null,null,null,null,null,null,null,null,null,null,null,null,null,null,null,null,null,null,null,null,null,null,null,null,null,null,null,null,null,null,null,null,null,null,"13D","",null,"D_1",""]
[null,null,null,null,null,null,null,null,null,null,null,null,null,null,null,null,null,null,null,null,null,null,null,null,null,null,null,null,null,null,null,null,null,null,null,null,null,null,null,null,null,null,null,null,null,"13E","",null,"E_1",""]
[null,null,null,null,null,null,null,null,null,null,null,null,null,null,null,null,null,null,null,null,null,null,null,null,null,null,null,null,null,null,null,null,null,null,null,null,null,null,null,null,null,null,null,null,null,"13F","",null,"F_1",""]
[null,null,null,null,null,null,null,null,null,null,null,null,null,null,null,null,null,null,null,null,null,null,null,null,null,null,null,null,null,null,null,null,null,null,null,null,null,null,null,null,null,null,null,null,null,12,"",null,52,""]
[null,null,null,null,null,null,null,null,null,null,null,null,null,null,null,null,null,null,null,null,null,null,null,null,null,null,null,null,null,null,null,null,null,null,null,null,null,null,null,null,null,null,null,null,null,13,"",null,53,""]
[null,null,null,null,null,null,null,null,null,null,null,null,null,null,null,null,null,null,null,null,null,null,null,null,null,null,null,null,null,null,null,null,null,null,null,null,null,null,null,null,null,null,null,null,null,13,"",null,53.1,""]
[null,null,null,null,null,null,null,null,null,null,null,null,null,null,null,null,null,null,null,null,null,null,null,null,null,null,null,null,null,null,null,null,null,null,null,null,null,null,null,null,null,null,null,null,null,null,null,null,54,""]
[null,null,null,null,null,null,null,null,null,null,null,null,null,null,null,null,null,null,null,null,null,null,null,null,null,null,null,null,null,null,null,null,null,null,null,null,null,null,null,null,null,null,null,null,null,null,null,null,54.1,""]
[null,null,null,null,null,null,null,null,null,null,null,null,null,null,null,null,null,null,null,null,null,null,null,null,null,null,null,null,null,null,null,null,null,null,null,null,null,null,null,null,null,null,null,null,null,null,null,null,55,""]
[null,null,null,null,null,null,null,null,null,null,null,null,null,null,null,null,null,null,null,null,null,null,null,null,null,null,null,null,null,null,null,null,null,null,null,null,null,null,null,null,null,null,null,null,null,null,null,null,55.1,""]
[null,null,null,null,null,null,null,null,null,null,null,null,null,null,null,null,null,null,null,null,null,null,null,null,null,null,null,null,null,null,null,null,null,null,null,null,null,null,null,null,null,null,null,null,null,null,null,null,56,""]
[null,null,null,null,null,null,null,null,null,null,null,null,null,null,null,null,null,null,null,null,null,null,null,null,null,null,null,null,null,null,null,null,null,null,null,null,null,null,null,null,null,null,null,null,null,null,null,null,56.1,""]
[null,null,null,null,null,null,null,null,null,null,null,null,null,null,null,null,null,null,null,null,null,null,null,null,null,null,null,null,null,null,null,null,null,null,null,null,null,null,null,null,null,null,null,null,null,null,null,null,57,""]
[null,null,null,null,null,null,null,null,null,null,null,null,null,null,null,null,null,null,null,null,null,null,null,null,null,null,null,null,null,null,null,null,null,null,null,null,null,null,null,null,null,null,null,null,null,null,null,null,57.1,""]
[null,null,null,null,null,null,null,null,null,null,null,null,null,null,null,null,null,null,null,null,null,null,null,null,null,null,null,null,null,null,null,null,null,null,null,null,null,null,null,null,null,null,null,null,null,null,null,null,58,""]
[null,null,null,null,null,null,null,null,null,null,null,null,null,null,null,null,null,null,null,null,null,null,null,null,null,null,null,null,null,null,null,null,null,null,null,null,null,null,null,null,null,null,null,null,null,null,null,null,58.1,""]
[null,null,null,null,null,null,null,null,null,null,null,null,null,null,null,null,null,null,null,null,null,null,null,null,null,null,null,null,null,null,null,null,null,null,null,null,null,null,null,null,null,null,null,null,null,null,null,null,59,""]
[null,null,null,null,null,null,null,null,null,null,null,null,null,null,null,null,null,null,null,null,null,null,null,null,null,null,null,null,null,null,null,null,null,null,null,null,null,null,null,null,null,null,null,null,null,null,null,null,59.1,""]
[null,null,null,null,null,null,null,null,null,null,null,null,null,null,null,null,null,null,null,null,null,null,null,null,null,null,null,null,null,null,null,null,null,null,null,null,null,null,null,null,null,null,null,null,null,null,null,null,60,""]
[null,null,null,null,null,null,null,null,null,null,null,null,null,null,null,null,null,null,null,null,null,null,null,null,null,null,null,null,null,null,null,null,null,null,null,null,null,null,null,null,null,null,null,null,null,null,null,null,60.1,""]
[null,null,null,null,null,null,null,null,null,null,null,null,null,null,null,null,null,null,null,null,null,null,null,null,null,null,null,null,null,null,null,null,null,null,null,null,null,null,null,null,null,null,null,null,null,null,null,null,61,""]
[null,null,null,null,null,null,null,null,null,null,null,null,null,null,null,null,null,null,null,null,null,null,null,null,null,null,null,null,null,null,null,null,null,null,null,null,null,null,null,null,null,null,null,null,null,null,null,null,61.1,""]
[null,null,null,null,null,null,null,null,null,null,null,null,null,null,null,null,null,null,null,null,null,null,null,null,null,null,null,null,null,null,null,null,null,null,null,null,null,null,null,null,null,null,null,null,null,null,null,null,62,""]
[null,null,null,null,null,null,null,null,null,null,null,null,null,null,null,null,null,null,null,null,null,null,null,null,null,null,null,null,null,null,null,null,null,null,null,null,null,null,null,null,null,null,null,null,null,null,null,null,62.1,""]
[null,null,null,null,null,null,null,null,null,null,null,null,null,null,null,null,null,null,null,null,null,null,null,null,null,null,null,null,null,null,null,null,null,null,null,null,null,null,null,null,null,null,null,null,null,null,null,null,63,""]
[null,null,null,null,null,null,null,null,null,null,null,null,null,null,null,null,null,null,null,null,null,null,null,null,null,null,null,null,null,null,null,null,null,null,null,null,null,null,null,null,null,null,null,null,null,null,null,null,63.1,""]
[null,null,null,null,null,null,null,null,null,null,null,null,null,null,null,null,null,null,null,null,null,null,null,null,null,null,null,null,null,null,null,null,null,null,null,null,null,null,null,null,null,null,null,null,null,null,null,null,64,""]
[null,null,null,null,null,null,null,null,null,null,null,null,null,null,null,null,null,null,null,null,null,null,null,null,null,null,null,null,null,null,null,null,null,null,null,null,null,null,null,null,null,null,null,null,null,null,null,null,64.099999999999994,""]

{"sheet":"Add pages","index":19,"n_rows":35,"n_cols":18,"rows_kept":35,"cut":false,"hidden":false,"merged":[]}
[]
[null,null,{"$f":"\"Tax Calculation for \"&tax_year","v":"Tax Calculation for 2025-26"},null,null,null,"Version E1.5.4",null,"Best displayed in 1024 x 768 mode"]
[null,null,"Taxpayer name and address",null,null,null,"last revised 25/02/2026"," "]
[null,null,null,null,null,null,"Unique Taxpayer Reference (UTR)",null,"Date of issue: dd/mm/yy format"]
[]
[]
[null,null,null,null,null,null,null,null,null,null,null,null,"EMP",false,"PRO",false,"AOI",false]
[null,"Additional Information:",null,"tick",null,null,"Additional Pages:","tick",null,"tick",null,null,"MOR",false,"FOR",false,"ASE",false]
[null,null,null,null,null,null,null,null,null,null,null,null,"SE",false,"TRU",false,"AOR",false]
[null,null,"(Gilt Edge Securities, Life Insurance Gains)",null,null,null,null,null,null,null,null,null,"LUN",false,"CGT",false,"MCA",false]
[null,null,null,null,null,null,null,null,null,null,null,null,"PS",false,"NRD",false,"AIL",false]
[null,null,null,null,null,null,null,null,null,null,null,null,"NI",false,"CAL",false]
[]
[]
[]
[]
[]
[]
[]
[]
[]
[]
[]
[null,null,null,null,null,null,null,null,null,null,null,null,false,"Show/Hide calculations worksheets"]
[null,null,null,null,null,null,null,null,"The Tax Calculation Guide style "]
[null,null,null,null,null,null,null,null,{"$f":"\"working sheets \"&IF(M24,\"are currently visible\",\"are currently hidden\")","v":"working sheets are currently hidden"}]
[]
[]
[]
[]
[null,null,null,null,null,null,null,null,{"$f":"IF(M35,\"in-year repayment\",\"\")","v":""}]
[]
[]
[]
[null,null,null,null,null,null,null,null,null,null,null,false,false,"In-Year calculation"]

{"sheet":"SA302","index":20,"n_rows":0,"n_cols":0,"rows_kept":0,"cut":false,"hidden":true,"merged":[[62,2,62,4],[55,2,55,4],[56,2,56,4],[58,2,58,4],[14,1,14,4],[22,1,22,4],[21,1,21,4],[59,1,59,4],[61,2,61,4],[64,1,64,5],[29,1,29,5],[30,4,30,5],[31,4,31,5],[32,4,32,5],[33,4,33,5],[35,1,35,5],[36,4,36,5],[57,2,57,4],[53,1,53,4],[38,4,38,5],[39,4,39,5],[41,4,41,5],[42,4,42,5],[44,4,44,5],[45,1,45,4],[10,1,10,4],[47,1,47,5],[49,2,49,4],[50,2,50,5],[51,2,51,4],[37,4,37,5],[43,4,43,5],[15,1,15,4],[17,1,17,4],[25,1,25,5],[27,1,27,8],[12,1,12,3],[13,2,13,3],[16,1,16,4],[19,1,19,4],[23,1,23,4]]}

{"sheet":"Liability","index":21,"n_rows":0,"n_cols":0,"rows_kept":0,"cut":false,"hidden":true,"merged":[]}

{"sheet":"CRC","index":22,"n_rows":54,"n_cols":4,"rows_kept":54,"cut":false,"hidden":true,"merged":[]}
[null,null,"Create Return Charge field entries","2025-26"]
[]
[]
["c96.1","Income Tax due after reliefs","c12.1f + c12.9 + c12.11"]
["c96.2","Recoverable tax on charges","Not Used "]
["c96.3","Capital Gains Tax","c12.17"]
["c96.4","Class 4 National Insurance","c12.2"]
["c96.5","Class 2 National Insurance","c12.3"]
["c96.6","Student Loan Repayment","c12.7"]
["c96.6a","Postgraduate Loan Repayment","c12.7b"]
["c96.7","Unpaid tax for earlier years in PAYE","CAL7"]
["c96.8","Tax deducted at source","c12.13"]
["c96.9","Tax due included in later PAYE code","CAL8"]
["c96.10","Capital Gains Tax reducing tax and NICs","c12.17b"]
["c96.11","Underpayments for earlier years","CAL14"]
["c96.12","Notional tax","c10.3.2 + c10.7 + c10.20"]
["c96.13","Tax already refunded","FIN1"]
["c96.14","Later year tax reclaimed now","Not Used"]
["c96.15","CODA Partnership Tax Due","Not Used"]
["c96.16","CODA Partnership NIC Due","Not Used"]
["c96.17","Amount collected against small debt","c11.7"]
["c96.18","TRF charge","c9.39h"]
[null,"Voluntary Class 2 NICs via SA"]
[null,"No Collection of Class 2 NICs via SA"]
[null,"Between SPT/LPT"]
[null,"Current Class 2 NICs Charge held on NPS"]
[]
[null,"Pension savings charge"]
[]
[]
[null,"Interface to S/L Diary"]
["c97.1","Student loan PAYE income ","c27.5 + c27.9"]
[]
["c97.2","Student loan Total income ","c27.40"]
[]
["c97.3","Student loan gross repayment ","c27.42"]
[]
["c97.4","Student loan PAYE repayment ","c27.43",0]
[]
["c97.5","Student loan SA income ","c27.29 minus (c27.5 + c27.9)",54963]
[]
["c97.6","Student Loan Repayment ","c27.44",0]
[]
["c97.6a","Postgraduate loan PAYE income","Not used"]
[]
["c97.6b","Postgraduate loan Total income ","Not used"]
[]
["c97.6c","Postgraduate loan gross repayment ","c27.43b",0]
[]
["c97.6d","Postgraduate loan PAYE repayment ","c27.43c",0]
[]
["c97.6e","Postgraduate loan SA income ","Not used"]
[]
["c97.6f","Postgraduate Loan Repayment ","c27.45",0]

{"sheet":"Swiss Tax Credit","index":23,"n_rows":36,"n_cols":7,"rows_kept":36,"cut":false,"hidden":true,"merged":[]}
[null,null,"How the Swiss tax credit is calculated"]
[]
[null,null,{"$f":"\"Swiss Interest: \"&DOLLAR('Swiss (SW)'!G37,0)","v":"Swiss Interest: £0"}]
[null,null,null,"Taxed",{"$f":"'Swiss (SW)'!J67","v":0},"@ 10% =",{"$f":"'Swiss (SW)'!M67","v":0}]
[null,null,null,null,{"$f":"'Swiss (SW)'!J61","v":0},"@ 20% =",{"$f":"'Swiss (SW)'!M61","v":0}]
[null,null,null,null,{"$f":"'Swiss (SW)'!J55","v":0},"@ 40% =",{"$f":"'Swiss (SW)'!M55","v":0}]
[null,null,null,null,{"$f":"'Swiss (SW)'!J40","v":0},"@ 50% =",{"$f":"'Swiss (SW)'!M40","v":0}]
[null,null,null,"Total",{"$f":"E4+E5+E6+E7","v":0},null,{"$f":"G4+G5+G6+G7","v":0}]
[]
[{"$f":"'Swiss (SW)'!G3","v":0},null,{"$f":"\"Swiss dividends that qualify for 10% UK tax credits: (net) \"&DOLLAR('Swiss Tax'!J16,0)&\", (gross) \"&DOLLAR('Swiss (SW)'!G3,0)","v":"Swiss dividends that qualify for 10% UK tax credits: (net) £0, (gross) £0"}]
[null,null,null,"Taxed"]
[null,null,null,null,{"$f":"MAX(0,A10-E13-E14-'Taxable (c5)'!AX242)","v":0},"@ 7.5% =",{"$f":"TRUNC(E12*DivBR_rate,2)","v":0}]
[null,null,null,null,{"$f":"'Swiss (SW)'!J12","v":0},"@ 32.5% =",{"$f":"TRUNC(E13*DivHR_rate,2)","v":0}]
[null,null,null,null,{"$f":"'Swiss (SW)'!J6","v":0},"@ 38.1% =",{"$f":"TRUNC(E14*DivHR_rate,2)","v":0}]
[null,null,null,null,{"$f":"E11+E12+E13+E14","v":0},null,{"$f":"G11+G12+G13+G14","v":0}]
[null,null,null,null,"minus 10% UK tax credit",null,{"$f":"TRUNC(E15*SR_rate,2)","v":0}]
[null,null,null,"Total",null,null,{"$f":"MAX(0,G15-G16)","v":0}]
[]
[null,null,{"$f":"\"Swiss dividends that do not qualify for 10% UK tax credits: \"&DOLLAR('Swiss (SW)'!G17,0)","v":"Swiss dividends that do not qualify for 10% UK tax credits: £0"}]
[null,null,null,"Taxed",{"$f":"'Swiss (SW)'!J32","v":0},"@ 7.5% =",{"$f":"'Swiss (SW)'!M32","v":0}]
[null,null,null,null,{"$f":"'Swiss (SW)'!J26","v":0},"@ 32.5% =",{"$f":"'Swiss (SW)'!M26","v":0}]
[null,null,null,null,{"$f":"'Swiss (SW)'!J20","v":0},"@ 38.1% =",{"$f":"'Swiss (SW)'!M20","v":0}]
[null,null,null,"Total",{"$f":"E19+E20+E21+E22","v":0},null,{"$f":"G19+G20+G21+G22","v":0}]
[]
[null,null,{"$f":"\"Total Swiss dividends: \"&DOLLAR('Swiss (SW)'!G3+'Swiss (SW)'!G17,0)","v":"Total Swiss dividends: £0"}]
[null,null,null,"Taxed",{"$f":"E12+E20","v":0},"@ 7.5% =",{"$f":"G12+G20","v":0}]
[null,null,null,null,{"$f":"E13+E21","v":0},"@ 32.5% =",0]
[null,null,null,null,0,"@ 38.5% =",0]
[null,null,null,null,0,null,0]
[null,null,null,null,"minus 10% UK tax credit",null,{"$f":"G16","v":0}]
[null,null,null,"Total tax credit on dividends",null,null,{"$f":"G29-G30","v":0}]
[]
[null,null,null,"Total tax credit on interest",null,null,{"$f":"G8","v":0}]
[]
[null,null,null,"Total Swiss Tax credit",null,null,{"$f":"G8+G17+G23","v":0}]
[null,null,null,"(Shows as foreign tax credit relief)"]

{"sheet":"SA302_interface","index":24,"n_rows":125,"n_cols":9,"rows_kept":125,"cut":false,"hidden":true,"merged":[]}
["Line","Data name","MTR Calculation ","Value",null,"Line","Data name","MTR Calculation ","Value"]
["L3","Pay-E","c1.4",null,null,"L64","MCA-amount","c9.16"]
["L4","Benefits-E","c1.5",null,null,"L64","MCA-relief","c9.16 x 10%"]
["L5","Exps-E","c1.8",null,null,"L65","spare-MCA-amount","c9.17"]
["L6","income-E","c1.9",null,null,"L65","spare-MCA-relief","c9.17 x 10%"]
["L7","income-Shares","c1.10",null,null,"L66","AllceIn-TPA","c9.20"]
["L8","income-D","c1.17 + c1.20",null,null,"L66","AllceIn-TPA-relief","c9.21"]
["L9","income-D-(PTR)","c1.27",null,null,"L67","Llir-amount","c24.15a"]
["L9a","income-S-(PTR)","c2.3",null,null,"L67","Llir-amount-restricted","c9.22"]
["L9b","income-DV-(PTR)","c3.1",null,null,"L67","Llir-relief","c9.23"]
["L10","income-IFP","c1.33",null,null,"L67a","LFI-amount","c9.23a"]
["L11","income-Foreign","c1.35 + c1.40 + c1.44",null,null,"L67a","LFI-relief","c9.23b"]
["L11A","Foreign-dividends","c3.5",null,null,"L68","rel-tax-acct-for","c9.28"]
["L11B","Foreign-savings","c2.9",null,null,"L69","BRD-reduction","c9.30c"]
["L11c","Foreign-CEG-dedn","c3.16",null,null,"L70","Tax-credits-on-FOR-divs","set to zero"]
["L12","income-Trust","c1.51 + c2.13 + c3.9 + c3.19 + c3.20",null,null,"L72","FTCR","c9.41"]
["L13","income-Case3","c2.17",null,null,"L72","FTCR-restricted","c9.41c"]
["L14","income-F","c3.14",null,null,"L73","pens-tax-rel-due","c25.57"]
["L15","income-Pensions","c1.52",null,null,"L74","relief-on-qual-distn","c9.29"]
["L16","income-CEG","c2.18",null,null,"L76","IT-after-allces","c9.42"]
["L16a","income-CEG-dedn","c3.17",null,null,"L78","Gift-aid-amount","c9.33"]
["L17","income-Other","c1.56",null,null,"L78","Gift-aid-tax-due","c9.34"]
["L17a","income-Termination","c1.58",null,null,"L79","CGTax","c9.35"]
["L18","income-Total","c3.21",null,null,"L79","total-CG-due","set to zero"]
["L22","dedn-RAR","c4.48",null,null,"L79A","non-dom-charge-amount","not used"]
["L23","dedn-Trust","c4.54",null,null,"L79B","income-tax-gift-aid","c9.38"]
["L25","ded-Loss","c4.39",null,null,"L80","Gift-aid-tax-reduced","c9.39"]
["L25","ded-loss-restricted","c4.47",null,null,"L80a","BRD-charge","c9.39f"]
["L26","dedn-Annuity","c4.51",null,null,"L80b","WFP-amount","c9.39i"]
["L27","dedn-Gift","c4.49",null,null,"L80b","WFP-charge","c9.39j"]
["L27.1","Fi-Rel","c4.47.19 + c4.47.23 + c4.47.27",null,null,"L83","Pension-charges-gross","c25.51"]
["L27.2","Fe-Rel-restricted","c4.47.30",null,null,"L83","Pension-charges-tax-paid","c25.52"]
["L27.2","Fe-Rel-claimed","c4.47.29",null,null,"L83","Pension-charges","c9.39a"]
["L29","Allce-PA","c4.64",null,null,"L83a","Pension-lump-sum-amount","c26.1"]
["L30","AllceOut-TPA","c4.68",null,null,"L83a","Pension-lump-sum-rate","c26.2"]
["L31","Allce-BPA","c4.65",null,null,"L83a","Pension-lump-sum-tax","c9.39b"]
["L32","Allce-BPA-Spare","c4.66",null,null,"L83b","Child-Benefit-tax-charge","c9.39c"]
["L34","Allce-dedn-total","c4.72",null,null,"L83c","pens-tax-due","c25.56"]
["L36","taxable-income","c5.86",null,null,"L83d","TRF_amount","c9.39g + c9.39g1"]
["L39","ppr-extender","c4.58",null,null,"L83d","TRF_charge","c9.39h"]
["L39","gift-extender","c4.57",null,null,"L83e","SEISS-incorrectly-claimed-amount","set to zero"]
["L39","extended-BR","c5.2a",null,null,"L83e","SEISS-charge","set to zero"]
["L39s","ppr-gift-extender-STp","set to zero",null,null,"L84a","total-tax-NIC-nonresS23","c12.1a"]
["L39s","gift-extender","c4.57",null,null,"L84aa","Income-Excluded","c91.27"]
["L39s","extended-BR-STp","set to zero",null,null,"L84ab","tax-on-excluded-inc","c12.1c"]
["L39","ppr-extender","c4.60",null,null,"L84ac","tax-on-non-excluded-inc","c12.1d"]
["L40","ppr-claim","c4.57.1",null,null,"L84b","total-tax-NIC-nonresS811","c12.1b"]
["L42a","taxable-pay-SSR","c8.1",null,null,"L84c","total-tax-NIC-nonres","c12.1e"]
["L42a","tax-on-pay-SSR","c8.1a",null,null,"L84e","div-tax-credits","c10.4"]
["L43","taxable-pay-BR","c8.1b",null,null,"L84f","div-tax-credits-s399","c10.5"]
["L43","tax-on-pay-BR","c8.2",null,null,"L84g","notional-CEG","c10.9"]
["L43a","taxable-pay-SIR","c8.2a",null,null,"L84h","notional-other","c10.13 + c10.17"]
["L43a","tax-on-pay-SIR","c8.2b",null,null,"L85","IT-after-div-tax-credits","c12.1f"]
["L44","taxable-pay-HR","c8.3",null,null,"L88","NIC-amount","c16.15"]
["L44","tax-on-pay-HR","c8.4",null,null,"L88","NIC-charge","c16.16"]
["L44aa","taxable-pay-SAR","c8.4a",null,null,"L89","NIC-sup-amount","c16.17"]
["L44aa","tax-on-pay-SAR","c8.4b",null,null,"L89","NIC-sup-charge","c16.18"]
["L44A","taxable-pay-AHR","c8.5",null,null,"L89A","NIC4-amount","c12.2"]
["L44A","tax-on-pay-AHR","c8.6",null,null,"L89B","NIC1-amount","c16.21"]
["L46a","taxable-int-SR","c8.7",null,null,"L89C","NIC2-amount","c12.3"]
["L46a","tax-on-int-SR","c8.8",null,null,"L90","NIC-total","c12.4"]
["L46b","income-Savings-taxfree","set to zero",null,null,"L90","NIC2-thrshld","c16.33"]
["L46b","income-Savings-taxfree-BR","c6.17c",null,null,"L92","unpaid-tax-in-code","c12.6"]
["L47","taxable-int-BR","c8.11",null,null,"L93","Student-loan","c12.7"]
["L47","tax-on-int-BR","c8.12",null,null,"L93a1","Post-grad-loan","c12.7b"]
["L47A","income-Savings-taxfree-HR","c6.20b",null,null,"L93a","annuity-amount","c12.8"]
["L48","taxable-int-HR","c8.13",null,null,"L93a","annuity-tax","c12.9"]
["L48","tax-on-int-HR","c8.14",null,null,"L93d","non-dom-charge-amount","not used"]
["L48A","taxable-int-AHR","c8.15",null,null,"L94","IT-plus-class4","c12.12"]
["L48A","tax-on-int-AHR","c8.16",null,null,"L97","tax-paid-E","c11.5"]
["L50a","divs-taxfree-BR","c6.27",null,null,"L97a","debt-coded","c11.6"]
["L50b","taxable-divs-BR","c8.19",null,null,"L97a","debt-collected","c11.7"]
["L50b","tax-on-divs-BR","c8.20",null,null,"L97b","SA-E-tax","c11.8"]
["L50c","divs-taxfree-HR","c6.32",null,null,"L98","tax-paid-D","c11.9 + c11.10 + c11.11"]
["L51","taxable-divs-HR","c8.21",null,null,"L99","tax-paid-D(PTR)","c11.12 + c11.13"]
["L51","tax-on-divs-HR","c8.22",13331.25,null,"L100","tax-paid-IFP","c11.14",0]
["L51a",null,"c6.25 minus (c6.27 + c6.32)",0,null,"L101","tax-paid-Foreign","c11.15",0]
["L51b","taxable-divs-AHR","c8.23",0,null,"L102","tax-paid-Trust","c11.25",0]
["L51b","tax-on-divs-AHR","c8.24",0,null,"L103","tax-paid-Overseas","c11.26",0]
["L52a","taxable-redundancy-SSR","c8.24b",0,null,"L104","tax-paid-Case3","c11.27 + c11.28",0]
["L52a","tax-on-redundancy-SSR","c8.24c",0,null,"L106","tax-paid-CEG","c11.29",0]
["L52b","taxable-redundancy-BR","c8.24d",0,null,"L107","tax-paid-Other","c11.30",0]
["L52b","tax-on-redundancy-BR","c8.24e",0,null,"L108","coded-in-later-year","c12.14",0]
["L52c","taxable-redundancy-SIR","c8.24f",0,null,"L109","total-tax-paid","c12.15",14056]
["L52c","tax-on-redundancy-SIR","c8.24g",0,null,"L111","Total-IT-class4-due","c12.16 (Absolute value)",13337.190000000002]
["L52d","taxable-redundancy-HR","c8.24h",0,null,"L114","CG-at-ER-rate","c18.29",0]
["L52d","tax-on-redundancy-HR","c8.24i",0,null,"L114","ER-rate-CGT","c18.30",0]
["L52dd","taxable-redundancy-SAR","c8.24ia",0,null,"L115","CG-at-lower-rate-RP-CI","set to zero",0]
["L52dd","tax-on-redundancy-SAR","c8.24ib",0,null,"L115","Lower-rate-CGT-RP-CI","set to zero",0]
["L52e","taxable-redundancy-AHR","c8.24j",0,null,"L115a","CG-at-higher-rate-RP-CI","set to zero",0]
["L52e","tax-on-redundancy-AHR","c8.24k",0,null,"L115a","Higher-rate-CGT-RP-CI","set to zero",0]
["L53b","taxable-CEG-SR","c8.24m",0,null,"L115","CG-at-lower-rate-CI","c18.41",0]
["L53b","tax-on-CEG-SR","c8.24n",0,null,"L115","Lower-rate-CGT-CI","c18.42",0]
["L53c","income-CEG-taxfree-BR","c8.24o",0,null,"L115a","CG-at-higher-rate-CI","c18.43",0]
["L53d","taxable-CEG-BR","c8.24q",0,null,"L115a","Higher-rate-CGT-CI","c18.44",0]
["L53d","tax-on-CEG-BR","c8.24r",0,null,"L115b","CG-at-lower-rate-RP","c18.45.1",0]
["L53e","income-CEG-taxfree-HR","c8.24s",0,null,"L115b","Lower-rate-CGT-RP","c18.45.2",0]
["L53f","taxable-CEG-HR","c8.24u",0,null,"L115c","CG-at-higher-rate-RP","c18.45.3",26077]
["L53f","tax-on-CEG-HR","c8.24v",0,null,"L115c","Higher-rate-CGT-RP","c18.45.4",6258.48]
["L53g","taxable-CEG-AHR","c8.24w",0,null,"L116","CG-at-lower-rate","c18.46",0]
["L53g","tax-on-CEG-AHR","c8.24x",0,null,"L116","Lower-rate-CGT","c18.47",0]
["L54","taxable-income","c5.86",91130,null,"L116a","CG-at-higher-rate","c18.48",7409]
["L55a","pre-TP-tax-charged","c8.25b",27393.190000000002,null,"L116a","Higher-rate-CGT","c18.49",1778.16]
["L55c","transition-profit","c4.40.1 + c4.40.2",0,null,"L117a","Taxable-CG","c18.27 + c18.27.1 + c18.28 + c18.29",33486]
["L55c","tax-on-transition-prft","c8.25c",0,null,"L117c","Total-CGT-tax","c18.50",8036.6399999999994]
["L56","tax-charged","c8.26",27393.190000000002,null,"L117d","CGT-adjustment","c18.51",0]
["L57A","deficiency-relief","c9.2",0,null,"L117e","CG-trust-tax","c18.51a",0]
["L58","TSR","c9.3",0,null,"L117f","Total-CG-tax-due","c18.52",8036.6399999999994]
["L59","VCT","c9.5",0,null,"L118","CG-FTCR","c18.53",0]
["L60","EIS","c9.7",0,null,"L118","CG-FTCR-restricted","c18.54",0]
["L60A","SEIS-relief","c9.9",0,null,"L119","CG-tax-due-pre-tax","c18.52 minus c18.54",8036.6399999999994]
["L61","CITR","c9.11",0,null,"L120a","tax-on-gains-already-charged","c18.56 + c18.57",0]
["L62","SITR","set to zero",0,null,"L120b","total-CG-due","c12.17",8036.6399999999994]
["L63","Alimony","c9.15 x 10%",0,null,"L120c","total-CG-overpaid","c18.59",0]
[null,null,null,null,null,"L120e","Total-IT-CG-class4-due-pre","c12.17a (Absolute value)",21373.83]
[null,null,null,null,null,"L120h","CG-repayable","c18.61",0]
[null,null,null,null,null,"L121","Total-IT-CG-class4-due","c12.18 (Absolute value)",21373.83]
[null,null,null,null,null,"L122a","CG-not-repayable","c18.62",0]
[null,null,null,null,null,"L123","tax-already-refunded","c12.19",0]
[null,null,null,null,null,"L124","unpaid-tax-bf","c12.20",0]
[null,null,null,null,null,"L126","Total-tax-NIC-due","c12.21 (Absolute value)",21373.83]
[]
[]
[null,"Components: YPD INC-A INC-C REL-B SLR SSE NI2 NIC2Vol PRO "]
[null,"Components: YPD INC-A Emp-A SSE SPS NI1 FOR TCR CGT "]

{"sheet":"liability_template","index":25,"n_rows":20,"n_cols":8,"rows_kept":20,"cut":false,"hidden":true,"merged":[]}
[null,null,null,null,null,null,null,{"$f":"'Add pages'!I5","v":"00:00:00"}]
[]
[]
[null,1,"Total tax, Student Loan repayment & class 4 NIC due",null,null,4,"Class 4 NICs due"]
[null,null,{"$f":"MAX(0,box_18_3)","v":0},null,null,null,{"$f":"'Tax due (c12)'!J39","v":0}]
[]
[null,2,"Total tax, Student Loan repayment & class 4 NIC overpaid",null,null,4.0999999999999996,"Class 2 NICs due"]
[null,null,{"$f":"MAX(0,-1*box_18_3)","v":0},null,null,null,{"$f":"'Tax due (c12)'!J47","v":0}]
[]
[null,3,"Student Loan repayment due",null,null,5,"Capital Gains Tax due"]
[null,null,{"$f":"'S loans(c27)'!K258","v":0},null,null,null,{"$f":"'Tax due (c12)'!J95","v":0}]
[]
[null,3.1,"Postgraduate loan repayment due"]
[null,null,{"$f":"'S loans(c27)'!K277","v":0}]
[]
[null,7,{"$f":"\"Underpaid tax for earlier years included in \"&tax_year&\" tax code\"","v":"Underpaid tax for earlier years included in 2025-26 tax code"},null,null,6,"Pension charges due"]
[null,null,{"$f":"Box_CAL7","v":0},null,null,null,{"$f":"'Tax due (c12)'!J70","v":0}]
[]
[null,8,{"$f":"tax_year&\" underpaid tax included in \"&next_year&\" tax code\"","v":"2025-26 underpaid tax included in 2026-27 tax code"},null,null,9,{"$f":"\"Outstanding debt included in your tax code for \"&tax_year","v":"Outstanding debt included in your tax code for 2025-26"}]
[null,null,{"$f":"Box_CAL8","v":0},null,null,null,{"$f":"Box_CAL9","v":0}]

{"sheet":"INC(1)","index":26,"n_rows":24,"n_cols":13,"rows_kept":24,"cut":false,"hidden":false,"merged":[]}
["YPD"]
[1,null,"Your personal details",null,null,null,null,null,"Select from drop-down",null,null,null,"YPD"]
[2,null,null,null,null,null,null,null,"or box below"]
[3,null,{"$f":"A2","v":1},"Taxpayer's date of birth",null,null,null,null,null,"Used where MCA claim"]
[4,null,null,null,null,null,null,null,2,{"$f":"\"1) \"&data!C191","v":"1) Before 6/4/1935 (age over 90)"}]
["STp",null,null,null,null,null,null,null,null,{"$f":"\"2) \"&data!C192","v":"2) After 6/4/1935 (age 90 or under)"}]
[null,null,"TR","Taxpayer status"]
[null,null,null,null,null,null,null,null,1,"1) U = rUK rest of UK status"]
[null,null,null,null,null,null,null,null,null,"2) S = STp Scottish taxpayer status"]
["RS Dropdown",null,null,null,null,null,null,null,null,"3) C = WTp Welsh taxpayer status"]
["U"]
["S"]
["C",null,"UK interest & dividends",null,null,null,null,null,null,null,null,null,"INC"]
[]
[null,null,{"$f":"A19","v":1},"Taxed UK Interest etc.",null,null,null,null,{"$f":"A22","v":4},"Dividends from UK companies - the amount received"]
[null,null,null,null,".","00",null,null,null,null,".","00"]
[]
["INC",null,{"$f":"A20","v":2},"Untaxed UK interest etc.",null,null,null,null,{"$f":"A23","v":5},"Other Dividends - the amount received"]
[1,null,null,null,".","00",null,null,null,null,".","00"]
[2]
[3,null,{"$f":"A21","v":3},"Untaxed foreign interest (up to £2,000)",null,null,null,null,{"$f":"A24","v":6},"Foreign dividends (up to £300)"]
[4,null,null,null,".","00",null,null,null,null,".","00"]
[5]
[6]

{"sheet":"INC(2)","index":27,"n_rows":28,"n_cols":10,"rows_kept":28,"cut":false,"hidden":false,"merged":[]}
[]
[null,null,"UK pensions received",null,null,null,null,null,null,"INC"]
[7]
[8,null,{"$f":"A4","v":8},"State pension",null,null,{"$f":"A8","v":12},{"$f":"\"Tax taken off box \"&C13","v":"Tax taken off box 11"}]
[9]
[10]
[11,null,{"$f":"A5","v":9},"State pension lump sum",null,null,{"$f":"A9","v":13},"Taxable Incapacity Benefit"]
[12]
[13]
[14,null,{"$f":"A6","v":10},{"$f":"\"Tax taken off box \"&C7","v":"Tax taken off box 9"},null,null,{"$f":"A10","v":14},{"$f":"\"Tax taken off box \"&G7","v":"Tax taken off box 13"}]
[15]
[16]
[17,null,{"$f":"A7","v":11},"Other pensions, retirement annuities and lump sums treated as pensions",null,null,{"$f":"A11","v":15},"Jobseekers Allowance"]
[18]
[19]
[20,null,null,null,null,null,{"$f":"A12","v":16},"Other State pensions & benefits"]
[21]
[]
[]
[null,null,"Other UK income",null,null,null,null,null,null,"INC"]
[]
[null,null,{"$f":"A13","v":17},"Other income before tax & expenses",null,null,{"$f":"A16","v":20},"Benefit from pre-owned assets"]
[]
[]
[null,null,{"$f":"A14","v":18},"Allowable expenses"]
[]
[]
[null,null,{"$f":"A15","v":19},{"$f":"\"Tax taken off box \"&C22","v":"Tax taken off box 17"}]

{"sheet":"REL(1)","index":28,"n_rows":22,"n_cols":11,"rows_kept":22,"cut":false,"hidden":false,"merged":[]}
[]
["REL",null,"Tax Reliefs"]
[1]
[2,null,"Paying personal pensions",null,null,null,null,null,null,null,"REL"]
[3]
[4,null,{"$f":"'REL(1)'!A3","v":1},"Pension Payments with basic rate tax relief at source",null,null,null,{"$f":"'REL(1)'!A5","v":3},"Payments to an employer's scheme"]
[5]
[6]
[7,null,{"$f":"'REL(1)'!A4","v":2},"Retirement Annuity payments",null,null,null,{"$f":"'REL(1)'!A6","v":4},"Payments to an overseas scheme"]
[8]
[9]
[10]
[11]
[12,null,"Charitable giving",null,null,null,null,null,null,null,"REL"]
[]
[null,null,{"$f":"'REL(1)'!A7","v":5},{"$f":"\"Gift Aid payments made in \"&tax_year","v":"Gift Aid payments made in 2025-26"},null,null,null,{"$f":"'REL(1)'!A10","v":8},{"$f":"\"Gift Aid payments carried back to \"&tax_year","v":"Gift Aid payments carried back to 2025-26"}]
[]
[]
[null,null,null,null,null,null,null,{"$f":"'REL(1)'!A11","v":9},"Shares or securities gifted to charity"]
[]
[]
[null,null,{"$f":"'REL(1)'!A9","v":7},{"$f":"\"Gift Aid payments carried back to \"&last_year","v":"Gift Aid payments carried back to 2024-25"},null,null,null,{"$f":"'REL(1)'!A12","v":10},"Land or property gifted to charity"]

{"sheet":"REL(2)","index":29,"n_rows":56,"n_cols":14,"rows_kept":56,"cut":false,"hidden":false,"merged":[]}
["Rel",null,"Tax Reliefs"]
[13,null,"Blind Person's Allowance",null,null,null,null,null,null,null,"REL"]
[14]
[15,null,{"$f":"'REL(2)'!A2","v":13}]
[16,null,null,null,null,{"$f":"IF(BPA_claimed, \"BPA claimed\", \"BPA not claimed\")","v":"BPA not claimed"},null,null,null,null,null,null,"BPA_claimed",false]
[]
[]
["SLR"]
[1,null,"Student Loan Repayments",null,null,null,null,null,null,null,"SLR"]
[2]
[3,null,{"$f":"'REL(2)'!A9","v":1},null,null,null,{"$f":"'REL(2)'!A10","v":2},"Student Loan repayments deducted by employer"]
["PT",null,null,null,null,null,null,null,null,null,null,null,"SL_case",false]
[null,null,{"$f":"A12","v":"PT"},"Student Loan Plan type",null,null,null,null,null,null,null,null,"SL_type",3]
["SL",null,null,null,null,null,null,"Post graduate loan repayments"]
["dropdown",null,null,null,null,null,{"$f":"A11","v":3},"deducted by employer"]
["01"]
["02",null,{"$f":"A22","v":"PT"},"Post graduate Loan Plan type"]
[]
["04"]
[]
["PGLR"]
["PT"]
["PGL",null,"Child benefit",null,null,null,null,null,null,null,"CBC"]
["dropdown"]
[null,null,{"$f":"'REL(2)'!A40","v":1},"The total amount of Child Benefit received",null,null,null,null,null,null,null,null,"PGL_type",2]
[]
["03"]
[]
[]
[null,null,null,null,null,null,null,null,null,null,"WFHP"]
[]
[null,null,{"$f":"A40","v":1},"Winter Fuel Payment (WFP) and Pension Age Winter Heating Payment (PAWHP)"]
[]
[]
[]
[]
[null,null,"Marriage Allowance Transfer",null,null,null,null,null,null,null,"MAT"]
[]
["CBC",null,{"$f":"A47","v":"1-5"},"Election to transfer personal allowance (box MAT_1 to MAT_5 all completed)"]
[1,null,null,null,null,{"$f":"IF(MA_transfer, \"MA transferred\", \"MA not transferred\")","v":"MA not transferred"}]
[null,null,null,null,null,null,null,{"$f":"IF(HR_case_MAT=1,\"Election is invalid\",\"\")","v":""}]
["WFP"]
[1,null,"Marriage Allowance Transfer - Digital Claim in place",null,null,null,null,null,null,null,"MAT"]
[null,null,null,null,null,null,null,null,null,null,null,null,null,false]
[null,null,{"$f":"A48","v":"M_O"},"MAT_OUT",null,null,{"$f":"A49","v":"M_I"},"MAT_IN"]
["MAT",null,null,null,{"$f":"IF(MAT_OUT, \"MA transferred out\", \"MA not transferred out\")","v":"MA not transferred out"},null,null,null,{"$f":"IF(MAT_IN, \"MA transferred in\", \"MA not transferred in\")","v":"MA not transferred in"}]
["1-5",null,null,null,null,null,null,{"$f":"IF(HR_case_MAT=\"Y\",\"Election is invalid\",\"\")","v":""}]
["M_O",null,null,null,null,null,null,null,null,null,null,null,null,false]
["M_I",null,null,null,null,null,null,null,null,null,null,null,null,false]
[null,null,"Tax refunded",null,null,null,null,null,null,null,"FIN"]
[null,null,null,null,null,null,null,null,null,null,null,null,"MA_transfer",false]
[null,null,{"$f":"A54","v":1},{"$f":"\"If you have had any \"&tax_year&\" Income Tax refunded or set off by us or Jobcentre Plus\"","v":"If you have had any 2025-26 Income Tax refunded or set off by us or Jobcentre Plus"}]
["FIN"]
[1,null,null,null,null,null,null,null,null,null,null,null,"Digital Claim"]
[2,null,null,null,null,null,null,null,null,null,null,null,"MAT_OUT",false]
[3,null,null,null,null,null,null,null,null,null,null,null,"MAT_IN",false]

{"sheet":"AOI","index":30,"n_rows":31,"n_cols":15,"rows_kept":31,"cut":false,"hidden":true,"merged":[]}
["AOI"]
[1]
[2,null,"Gilt edged securities",null,null,null,null,null,null,"AOI"]
[3]
[4,null,{"$f":"A3","v":2},{"$f":"\"Tax taken off box \"&G7","v":"Tax taken off box 3"}]
[5]
[6,null,null,null,null,null,{"$f":"A4","v":3},"Gross amount before tax"]
[7]
[8]
[9]
[10,null,"Life insurance gains",null,null,null,null,null,null,"AOI"]
[11]
[12,null,{"$f":"A5","v":4},"Life insurance gains with tax treated as paid",null,null,{"$f":"A9","v":8},"Gains from void ISAs"]
[13]
[13.1]
[14,null,{"$f":"A6","v":5},{"$f":"\"Number of years for box \"&C13","v":"Number of years for box 4"},null,null,{"$f":"A10","v":9},{"$f":"\"Number of years for box \"&G13","v":"Number of years for box 8"}]
[15]
[]
[null,null,{"$f":"A7","v":6},"Life insurance gains with no tax ",null,null,{"$f":"A11","v":10},{"$f":"\"Tax taken off gain shown in box \"&G13","v":"Tax taken off gain shown in box 8"}]
[]
[]
[null,null,{"$f":"A8","v":7},{"$f":"\"Number of years for box \"&C19","v":"Number of years for box 6"},null,null,{"$f":"A12","v":11},"Deficiency relief"]
[]
[]
[]
[null,null,"Stock dividends",null,null,null,null,null,null,"AOI"]
[null,null,null,null,null,null,null,null,null,null,null,null,null,false,"flag to temporarily switch to calculating value that is an alternative to c17.6"]
[null,null,{"$f":"A13","v":12},"Stock dividends - the amount received",null,null,{"$f":"A14","v":13},"Bonus issues of securities and redeemable shares",null,null,null,null,null,61337,"value that was thereby calculated then stashed here for future use"]
[null,null,null,null,null,null,null,null,null,null,null,null,null,true,"flag to use preceding value in c17.38.1 (instead of c17.6)"]
[]
[null,null,null,null,null,null,{"$f":"A15","v":13.1},"Close company loans written off or released"]

{"sheet":"Multi-UK-gains","index":31,"n_rows":26,"n_cols":23,"rows_kept":26,"cut":false,"hidden":true,"merged":[]}
[null,"Multiple UK life insurance gains"]
[]
[null,"UK life insurance gains without tax treated as paid",null,null,null,null,null,null,"Gains on UK life policies with tax treated as paid"]
[]
[null,null,"Years",null,null,"Amount of Gain",null,null,null,"Years",null,null,"Amount of Gain",null,null,null,null,"Without",null,null,null,"With"]
[null,null,null,null,null,null,null,null,null,null,null,null,null,null,null,null,"No of Gains","No of years","sliced gain",null,"No of Gains","No of years","sliced gain"]
[null,null,null,null,null,null,null,null,null,null,null,null,null,null,null,null,{"$f":"IF(C6>0,1,0)","v":0},{"$f":"MAX(C6,1)","v":1},{"$f":"TRUNC(F6/R7,0)","v":0},null,{"$f":"IF(J6>0,1,0)","v":0},{"$f":"MAX(J6,1)","v":1},{"$f":"TRUNC(M6/V7,0)","v":0}]
[null,null,null,null,null,null,null,null,null,null,null,null,null,null,null,null,0,1,0,null,0,1,0]
[null,null,null,null,null,null,null,null,null,null,null,null,null,null,null,null,0,1,0,null,0,1,0]
[null,null,null,null,null,null,null,null,null,null,null,null,null,null,null,null,0,1,0,null,0,1,0]
[null,null,null,null,null,null,null,null,null,null,null,null,null,null,null,null,{"$f":"IF(C10>0,1,0)","v":0},{"$f":"MAX(C10,1)","v":1},{"$f":"TRUNC(F10/R11,0)","v":0},null,0,1,0]
[null,null,null,null,null,null,null,null,null,null,null,null,null,null,null,null,{"$f":"IF(C11>0,1,0)","v":0},{"$f":"MAX(C11,1)","v":1},{"$f":"TRUNC(F11/R12,0)","v":0},null,0,1,0]
[null,null,null,null,null,null,null,null,null,null,null,null,null,null,null,null,{"$f":"IF(C12>0,1,0)","v":0},{"$f":"MAX(C12,1)","v":1},{"$f":"TRUNC(F12/R13,0)","v":0},null,0,1,0]
[null,null,null,null,null,null,null,null,null,null,null,null,null,null,null,null,0,1,0,null,0,1,0]
[null,null,null,null,null,null,null,null,null,null,null,null,null,null,null,null,0,1,0,null,0,1,0]
[null,null,null,null,{"$f":"AOI!C19","v":6},{"$f":"SUM(F6:F15)","v":0},null,null,null,null,null,null,null,null,null,null,0,1,0,null,0,1,0]
[null,null,null,null,null,null,null,null,null,null,null,null,null,null,null,null,{"$f":"SUM(Q7:Q16)","v":0},{"$f":"SUM(C6:C15)","v":0},{"$f":"SUM(S7:S16)","v":0},null,0,1,0]
[null,null,null,null,null,null,null,null,null,null,null,null,null,null,null,null,null,null,null,null,0,1,0]
[null,null,null,null,null,null,null,null,null,null,null,null,null,null,null,null,null,null,null,null,0,1,0]
[null,null,null,"LDC 'CEG Amount'","1A",{"$f":"IF(total_all_gains,'TSR (c17)'!M101,\"\")","v":""},null,null,null,null,null,null,null,null,null,null,{"$f":"OR(Q17>1,U22>1,No_of_for_gains>1)","v":false},null,null,null,0,1,0]
[null,null,null,null,null,null,null,null,null,null,null,{"$f":"AOI!C13","v":4},{"$f":"SUM(M6:M20)","v":0},null,null,null,null,null,null,null,0,1,0]
[null,null,null,null,null,null,null,null,null,null,null,null,null,null,null,null,null,null,null,null,{"$f":"SUM(U7:U21)","v":0},{"$f":"SUM(J6:J20)","v":0},{"$f":"SUM(W7:W21)","v":0}]
[" You must update 'life"]
[" insurance gains' boxes for"]
[" the Calculation to give "]
[" the correct result."]

{"sheet":"ASE","index":32,"n_rows":20,"n_cols":10,"rows_kept":20,"cut":false,"hidden":true,"merged":[]}
["ASE",null,"Additional information"]
[]
[1,null,"Share schemes and lump sums",null,null,null,null,null,null,"ASE"]
[2]
[3,null,{"$f":"A3","v":1},"Shares schemes - taxable amount"]
[4]
[5]
[6,null,{"$f":"A5","v":3},"Lump sums - contract payments"]
[7]
[8]
[9,null,{"$f":"A6","v":4},"Lump sums - EFURBS",null,null,{"$f":"A13","v":11},"Seafarers’ Earnings Deduction"]
[10]
[11]
[12,null,{"$f":"A7","v":5},"Lump sums - redundancy/compensation",null,null,{"$f":"A14","v":12},"Foreign earnings not taxable in the UK"]
[13]
[14]
[15,null,{"$f":"A8","v":6},{"$f":"\"Tax taken off boxes \"&C8&\" to \"&C14","v":"Tax taken off boxes 3 to 5"},null,null,{"$f":"A15","v":13},"Foreign tax for which tax credit relief not claimed"]
[]
[]
[null,null,null,null,null,null,{"$f":"A17","v":15},"Royalty payments made"]

{"sheet":"AOR","index":33,"n_rows":23,"n_cols":22,"rows_kept":23,"cut":false,"hidden":true,"merged":[]}
["AOR",null,"Additional information "]
[1]
[2,null,"Other tax reliefs",null,null,null,null,null,null,"AOR",null,null,null,null,null,null,null,null,null,"Married - all year",2,{"$f":"U3=1","v":false}]
[3,null,null,null,null,null,null,null,null,null,null,null,null,null,null,null,null,null,null,"Single"]
[4,null,{"$f":"A2","v":1},"Venture Capital Trust subcriptions",null,null,{"$f":"A9","v":7},"Maintenance/alimony payments"]
[5,null,null,null,null,null,null,null,null,null,null,null,null,null,null,null,null,null,null,"APA Claimed",2,{"$f":"U6=1","v":false}]
[6,null,null,null,null,null,null,null,null,null,null,null,null,null,null,null,null,null,null,"APA Not Claimed"]
[6.1,null,{"$f":"A3","v":2},"Enterprise Investment Scheme subscriptions",null,null,{"$f":"A10","v":8},"Trade Union death benefit payments"]
[7,null,null,null,null,null,null,null,null,null,null,null,null,null,null,null,null,null,null,"WBA Claimed",2,{"$f":"U9=1","v":false}]
[8,null,null,null,null,null,null,null,null,null,null,null,null,null,null,null,null,null,null,"WBA Not Claimed"]
[9,null,{"$f":"A4","v":3},"Community Investment Tax relief",null,null,{"$f":"A11","v":9},"Relief on redemption of bonus shares etc."]
[10]
[11]
[12,null,{"$f":"A5","v":4},"Annuities and annual payments",null,null,{"$f":"A12","v":10},"SEED Enterprise Investment Scheme subscriptions"]
[]
[]
[null,null,{"$f":"A6","v":5},"Qualifying loan interest payments",null,null,{"$f":"A14","v":12},"Investment into property partnerships loan Interest "]
[]
[]
[null,null,{"$f":"A7","v":6},"Post-cessation trade relief and certain other losses"]
[]
[]
[null,null,{"$f":"A8","v":6.1},"Pre-incorporation losses"]

{"sheet":"MCA","index":34,"n_rows":28,"n_cols":7,"rows_kept":28,"cut":false,"hidden":true,"merged":[]}
["MCA"]
[1,null,"Married couple's allowance",null,null,"Select from drop-down","MCA"]
[2,null,null,null,null,"or boxes below"]
[3,null,{"$f":"A2","v":1},"Claimed by ",null,null,"1) Not Claimed"]
[4,null,{"$f":"A9","v":8},null,null,1,"2) claimed by husband / higher income partner"]
[5,null,null,null,null,null,"3) claimed by wife / lower income partner "]
[6]
[7,null,{"$f":"A3","v":2},"Date of birth of spouse / civil partner, if older"]
[8,null,{"$f":"A6","v":5},null,null,2,"1) Before 6/4/1935"]
[9,null,null,null,null,null,"2) After 5/4/1935 or not present"]
[10]
[11,null,{"$f":"IF(MCA_claim=3,A7,A4)","v":3},"Amount allocated to lower earning spouse/partner",null,null,"1) None to spouse/partner"]
[null,null,{"$f":"IF(MCA_claim=3,A8,A5)","v":4},null,null,1,"2) 50% to spouse/partner "]
[null,null,null,null,null,null,"3) All to spouse/partner "]
[]
[null,null,{"$f":"A10","v":9},{"$f":"\"Date of marriage / civil partnership (if after 5 April \"&Tax_year_start&\")\"","v":"Date of marriage / civil partnership (if after 5 April 2025)"},null,null,{"$f":"data!C209","v":""}]
[null,null,null,null,null,1,{"$f":"data!C210","v":""}]
[null,null,null,null,null,null,{"$f":"data!C211","v":""}]
[null,null,null,null,null,null,{"$f":"data!C212","v":""}]
[null,null,null,null,null,null,{"$f":"data!C213","v":""}]
[null,null,null,null,null,null,{"$f":"data!C214","v":""}]
[null,null,null,null,null,null,{"$f":"data!C215","v":""}]
[null,null,null,null,null,null,{"$f":"data!C216","v":""}]
[null,null,null,null,null,null,{"$f":"data!C217","v":""}]
[null,null,null,null,null,null,{"$f":"data!C218","v":""}]
[null,null,null,null,null,null,{"$f":"data!C219","v":""}]
[null,null,null,null,null,null,{"$f":"data!C220","v":""}]
[null,null,null,null,null,null,{"$f":"data!C221","v":""}]

{"sheet":"AIL","index":35,"n_rows":23,"n_cols":10,"rows_kept":23,"cut":false,"hidden":true,"merged":[]}
["AIL"]
[]
[1,null,"Other Income Tax losses",null,null,null,null,null,null,{"$f":"AIL","v":"AIL"}]
[2]
[3,null,{"$f":"AIL!A3","v":1},{"$f":"\"Earlier years losses - set against certain \"&tax_year&\" income\"","v":"Earlier years losses - set against certain 2025-26 income"},null,null,{"$f":"A8","v":6},"Payroll giving"]
[4]
[5]
[6]
[7,null,"Pension tax charges ",null,null,null,null,null,null,{"$f":"AIL","v":"AIL"}]
[8]
[9,null,{"$f":"A12","v":10},"Amount in excess of Annual Allowance",null,null,{"$f":"A17","v":13},"Unauthorised payments - not subject to Surcharge"]
[10]
[11]
[11.1,null,{"$f":"A13","v":11},{"$f":"\"Tax paid by the pension scheme\"","v":"Tax paid by the pension scheme"},null,null,{"$f":"A18","v":14},"Unauthorised payments - subject to Surcharge"]
[11.2]
[12]
[13,null,{"$f":"A14","v":11.1},"Value of pension benefits transferred subject to OTC",null,null,{"$f":"A19","v":15},{"$f":"\"Foreign tax taken off boxes \"&G11&\" and \"&G14","v":"Foreign tax taken off boxes 13 and 14"}]
[14,null,null,null,"Overseas Transfer Charge"]
[15]
[16,null,{"$f":"A15","v":11.2},{"$f":"\"Tax paid by the pension scheme\"","v":"Tax paid by the pension scheme"},null,null,{"$f":"A20","v":16},"Taxable short service refund (overseas schemes)"]
[17]
[18]
[19,null,null,null,null,null,{"$f":"A22","v":18},{"$f":"\"Foreign tax taken off box \"&G20","v":"Foreign tax taken off box 16"}]

{"sheet":"EMP","index":36,"n_rows":33,"n_cols":20,"rows_kept":33,"cut":false,"hidden":true,"merged":[]}
["EMP"]
[null,null,"Employment (1)",null,null,null,null,null,"EMP",null,"Employment (2)",null,null,null,null,null,"EMP"]
[1,null,null,null,null,null,null,null,null,null,null,null,null,null,null,null,null,null,"PAY"]
[1.1000000000000001,null,{"$f":"A3","v":1},"Pay from this employment",null,null,{"$f":"A4","v":1.1000000000000001},"Payrolled benefits",null,null,{"$f":"A3","v":1},"Pay from this employment",null,null,{"$f":"A4","v":1.1000000000000001},"Payrolled benefits",null,null,"c1.1.n"]
[2,null,null,null,null,null,null,null,null,null,null,null,null,null,null,null,null,null,{"$f":"TRUNC(D5+D11,0)","v":0},{"$f":"TRUNC(L5+L11,0)","v":0}]
[3]
[4,null,{"$f":"A5","v":2},{"$f":"\"Tax taken off box \"&C4","v":"Tax taken off box 1"},null,null,null,null,null,null,{"$f":"A5","v":2},{"$f":"\"Tax taken off box \"&K4","v":"Tax taken off box 1"}]
[5]
[6]
[7,null,{"$f":"A6","v":3},"Tips and other payments",null,null,null,null,null,null,{"$f":"A6","v":3},"Tips and other payments",null,null,null,null,null,null,"PT Teacher"]
[8]
[9]
[10]
[11,null,"Benefits (1)",null,null,null,null,null,"EMP",null,"Benefits (2)",null,null,null,null,null,"EMP"]
[12,null,null,null,null,null,null,null,null,null,null,null,null,null,null,null,null,null,"Benefits"]
[13,null,{"$f":"A12","v":9},"Cars and vans",null,null,{"$f":"A16","v":13},"Goods and assets",null,null,{"$f":"A12","v":9},"Cars and vans",null,null,{"$f":"A16","v":13},"Goods and assets",null,null,"c1.5.n"]
[14,null,null,null,null,null,null,null,null,null,null,null,null,null,null,null,null,null,{"$f":"TRUNC(D17+D20+D23+D26+H17+H20+H23+H26,0)","v":0},{"$f":"TRUNC(L17+L20+L23+L26+P17+P20+P23+P26,0)","v":0}]
[15]
[16,null,{"$f":"A13","v":10},"Fuel for cars etc.",null,null,{"$f":"A17","v":14},"Accommodation",null,null,{"$f":"A13","v":10},"Fuel for cars etc.",null,null,{"$f":"A17","v":14},"Accommodation"]
[17]
[18,null,null,null,null,null,null,null,null,null,null,null,null,null,null,null,null,null,"Top up"]
[19,null,{"$f":"A14","v":11},"Medical insurance",null,null,{"$f":"A18","v":15},"Other benefits",null,null,{"$f":"A14","v":11},"Medical insurance",null,null,{"$f":"A18","v":15},"Other benefits",null,null,{"$f":"H11+P11","v":0}]
[20]
[]
[null,null,{"$f":"A15","v":12},"Vouchers etc.",null,null,{"$f":"A19","v":16},"Expenses received",null,null,{"$f":"A15","v":12},"Vouchers etc.",null,null,{"$f":"A19","v":16},"Expenses received"]
[]
[]
[null,null,"Deductions (1)",null,null,null,null,null,"EMP",null,"Deductions (2)",null,null,null,null,null,"EMP"]
[]
[null,null,{"$f":"A20","v":17},"Travel and substistence",null,null,{"$f":"A22","v":19},"Fees and subscriptions",null,null,{"$f":"A20","v":17},"Travel and substistence",null,null,{"$f":"A22","v":19},"Fees and subscriptions",null,null,"c1.6.n"]
[null,null,null,null,null,null,null,null,null,null,null,null,null,null,null,null,null,null,{"$f":"TRUNC((D31+D34+H31+H34)+0.99,0)","v":0},{"$f":"TRUNC((L31+L34+P31+P34)+0.99,0)","v":0}]
[]
[null,null,{"$f":"A21","v":18},"Fixed deductions",null,null,{"$f":"A23","v":20},"Other expenses",null,null,{"$f":"A21","v":18},"Fixed deductions",null,null,{"$f":"A23","v":20},"Other expenses"]

{"sheet":"MOR","index":37,"n_rows":19,"n_cols":9,"rows_kept":19,"cut":false,"hidden":true,"merged":[]}
["MOR"]
[]
[2.1]
[4.0999999999999996]
[6,null," Ministers of Religion",null,null,null,null,null,{"$f":"MOR","v":"MOR"}]
[17]
[19]
[38,null,{"$f":"A3","v":2.1},"Payrolled benefits included in box 2"]
[39]
[]
[null,null,null,null,null,null,{"$f":"A6","v":17},"Expenses payments received"]
[]
[]
[]
[null,null,{"$f":"A5","v":6},"Living accomodation",null,null,{"$f":"A7","v":19},"Total benefits and expenses"]
[]
[]
[]
[null,null,{"$f":"A8","v":38},"Total taxable income",null,null,{"$f":"A9","v":39},"Total tax taken off"]

{"sheet":"SE","index":38,"n_rows":35,"n_cols":13,"rows_kept":35,"cut":false,"hidden":true,"merged":[]}
["SSE"]
[29,null,"Short Self Employment",null,{"$f":"SSE","v":"SSE"},null,"Full Self Employment",null,{"$f":"FSE","v":"FSE"}]
[31]
[33,null,"Calculating your taxable profits"]
[36,null,{"$f":"A2","v":29},"Loss brought forward from earlier years",null,null,{"$f":"A10","v":73.3},"Total taxable transition profits"]
[37]
[38,null,"Total taxable profits or net business loss"]
[null,null,{"$f":"A3","v":31},"Total taxable profits",null,null,{"$f":"A11","v":73.400000000000006},"Loss brought forward from earlier years against transition profits"]
["FSE"]
[73.3,null,"Losses"]
[73.400000000000006,null,{"$f":"A4","v":33},{"$f":"\"Loss set against \"&tax_year&\" income\"","v":"Loss set against 2025-26 income"},null,null,{"$f":"A12","v":74},"Loss brought forward from earlier years"]
[74]
[76,null,"Class 2 and Class 4 National Insurance contributions (NICs)"]
[76.099999999999994,null,{"$f":"A5","v":36},"You choose to pay Class 2 NICs voluntarily",null,null,{"$f":"A13","v":76},"Total taxable profits"]
[78]
[81]
[82,null,{"$f":"A6","v":37},null,null,null,{"$f":"A14","v":76.099999999999994},"Amount claimed under FIG"]
[100,null,null,null,null,null,null,null,null,null,null,"SSE","FSE"]
[101,null,"CIS deductions",null,null,null,"Losses"]
[102,null,{"$f":"A7","v":38},"Subcontractor tax paid",null,null,{"$f":"A15","v":78},{"$f":"\"Loss set against \"&tax_year&\" income\"","v":"Loss set against 2025-26 income"},null,null,"Class 2 Vol",false,false]
[null,null,null,null,null,null,null,null,null,null,"Class 4 Exempt",false,false]
[null,null,null,null,null,null,"CIS deductions and tax taken off"]
[null,null,null,null,null,null,{"$f":"A16","v":81},"Subcontractor tax paid"]
[]
[]
[null,null,null,null,null,null,{"$f":"A17","v":82},"Other tax taken off trading income"]
[]
[null,null,null,null,null,null,"Class 2 and Class 4 National Insurance contributions (NICs)"]
[null,null,null,null,null,null,{"$f":"A18","v":100},"You choose to pay Class 2 NICs voluntarily"]
[]
[]
[null,null,null,null,null,null,{"$f":"A19","v":101}]
[]
[]
[null,null,null,null,null,null,{"$f":"A20","v":102},"Class 4 NIC profit adjustment"]

{"sheet":"LUN","index":39,"n_rows":27,"n_cols":16,"rows_kept":27,"cut":false,"hidden":true,"merged":[]}
["LUN"]
[null,null,"Lloyd's Underwriters",null,"LUN",null,null,null,"LUN",null,null,null,"LUN"]
[null,"D5","UK interest",null,null,null,"Non-UK interest and other foreign sources",null,null,null,"Calculating Lloyd’s taxable profits or allowable losses"]
[4,"D8",{"$f":"A4","v":4},"Tax taken off - UK interest",null,null,{"$f":"A14","v":14},"Tax taken off - Foreign interest",null,null,{"$f":"A21","v":51},"Losses brought forward from earlier years"]
[null,"D11"]
[6,"D14","UK dividends"]
[7,"D17",{"$f":"A6","v":6},"Stock Dividends",null,null,{"$f":"A15","v":15},"Net non-UK dividends",null,null,{"$f":"A22","v":52},"Total taxable profits"]
[8]
[9,"H5"]
[10,"H8",null,null,null,null,{"$f":"A16","v":16},"Foreign tax taken off - Foreign dividends",null,null,{"$f":"A23","v":56},{"$f":"\"Loss set against \"&tax_year&\" income\"","v":"Loss set against 2025-26 income"}]
[null,"H11"]
[null,"H14",null,null,null,null,null,null,null,null,"Class 2 and Class 4 National Insurance contributions"]
[null,"H18",{"$f":"A8","v":8},"Bonus issues of securities and redeemable shares",null,null,{"$f":"A17","v":17},"UK tax taken off - Foreign dividends",null,null,{"$f":"A24","v":63},"You choose to pay Class 2 NICs voluntarily"]
[14]
[15,"L5"]
[16,"L8",{"$f":"A9","v":9},"Other dividends and distributions from UK companies",null,null,null,null,null,null,{"$f":"A26","v":64}]
[17,"L11"]
[null,"P19"]
[19,"L17",null,null,null,null,null,null,null,null,{"$f":"A27","v":65},"Class 4 NIC profit adjustment",null,null,"Class2 Voluntarily",false]
[null,"P20",null,null,null,null,null,null,null,null,null,null,null,null,"Class4 NIC Exempt",false]
[51,"L23"]
[52]
[56]
[63]
["Cl2"]
[64]
[65]

{"sheet":"PS","index":40,"n_rows":55,"n_cols":19,"rows_kept":55,"cut":false,"hidden":true,"merged":[]}
["SPS","Cell"]
[17,"D5","Short Partnership",null,"SPS",null,"Full Partnership",null,null,null,null,null,null,null,"FPS"]
[20,"D8","Your share of the partnership's trading or professional profits",null,null,null,"Your share of the partnership's trading or professional profits"]
[22,"D11",{"$f":"A2","v":17},"Losses brought forward from earlier years",null,null,{"$f":"A14","v":16.3},"Transition profit arising ",null,{"$f":"A16","v":17},"Losses brought forward from earlier years"]
[25,"D14"]
["Cl2","D17"]
[26,"O19",{"$f":"A3","v":20},"Share of total taxable profits",null,null,{"$f":"A15","v":16.399999999999999},"Loss brought forward against transition profit",null,{"$f":"A17","v":20},"Share of total taxable profits"]
[27,"D23"]
[28,"O29","Your share of the partnership’s trading or professional losses"]
[30,"D29",{"$f":"A4","v":22},{"$f":"\"Loss set against \"&tax_year&\" income\"","v":"Loss set against 2025-26 income"},null,null,"Your share of the partnership’s trading or professional losses"]
[31,"D32",null,null,null,null,{"$f":"A18","v":22},{"$f":"\"Loss set against \"&tax_year&\" income\"","v":"Loss set against 2025-26 income"}]
[null,"D35","Class 2 and Class 4 National Insurance contributions (NICs)"]
["FPS","D38",{"$f":"A5","v":25},"You choose to pay Class 2 NICs voluntarily",null,null,"Class 2 and Class 4 National Insurance contributions (NICs)"]
[16.3,"D41",null,null,null,null,{"$f":"A5","v":25},"You choose to pay Class 2 NICs voluntarily",null,{"$f":"A7","v":26},null,null,{"$f":"A22","v":27},"Class 4 NIC profit adjustment"]
[16.399999999999999]
[17,null,{"$f":"A7","v":26},null,null,null,"Your share of the partnership’s untaxed income"]
[20,"H5",null,null,null,null,{"$f":"A23","v":35},"Share of untaxed interest",null,{"$f":"A24","v":35.1},"Amount claimed under the Foreign Income and \nGains (FIG) Regime",null,null,null,null,null,null,"SPS","FPS"]
[22,"H8"]
[25,"K5",{"$f":"A8","v":27},"Class 4 NIC profit adjustment",null,null,"Income from UK property",null,null,null,null,null,null,null,null,null,"Class2 Voluntary",false,false]
["Cl2","K8",null,null,null,null,{"$f":"A25","v":38},"Losses brought forward from earlier years",null,{"$f":"A26","v":39},{"$f":"\"Loss set against \"&tax_year&\" total income\"","v":"Loss set against 2025-26 total income"},null,null,null,null,null,"Class 4 Exempt",false,false]
[26,"H11","Your share of the partnership’s untaxed income"]
[27,"P19",{"$f":"A9","v":28},"Your share of untaxed interest etc."]
[35,"H17",null,null,null,null,{"$f":"A27","v":41},"Taxable profit after adjustment and losses",null,{"$f":"A28","v":41.1},"Relief for residential finance costs",null,{"$f":"A29","v":41.2},"Unsused finance costs brought forward",null,null,0]
[35.1,"P20","Your share of the partnership’s tax paid and deductions"]
[38,"K17",{"$f":"A10","v":30},"Share of Income Tax deducted",null,null,null,"Complete boxes FPS41, FPS41.1 & FPS41.2 OR FPSAF1",null,null,null,null,null,"For multiple pages calculate for each page the lower of Box 41"]
[39,"H20",null,null,null,null,null,null,null,null,null,null,"AF1"," and Box 41.1 + Box 41.2"]
[41,"H23"]
[41.1,"K23",{"$f":"A11","v":31},"Share of Income Tax deducted",null,null,"Other untaxed UK income"]
[41.2,"H26",null,null,null,null,{"$f":"A30","v":47},"Losses brought forward from earlier years"]
[47]
[48,"H29",null,null,null,null,"Other untaxed foreign income"]
[58,null,null,null,null,null,{"$f":"A32","v":58},"Losses brought forward from earlier years"]
[60,"H32"]
[63.1,"K32"]
[63.2,"H35",null,null,null,null,{"$f":"A33","v":60},"Taxable profit",null,{"$f":"A34","v":63.1},"Relief for residential finance costs",null,{"$f":"A35","v":63.2},"Unsused finance costs brought forward"]
[70,"H38"]
[70.099999999999994,"H41",null,null,null,null,null,"Complete boxes FPS60, FPS63.1 & FPS63.2 OR FPSAF2",null,null,null,null,null,"For multiple pages calculate for each page the lower of Box 60"]
[73,"H44",null,null,null,null,null,null,null,null,null,null,"AF2"," and Box 63.1 + Box 63.2"]
[76,"K38"]
[77]
[78,null,null,null,null,null,"Your share of the partnership’s taxed income"]
[79,null,null,null,null,null,{"$f":"A36","v":70},"Total dividend income (box 68 minus box 69)",null,{"$f":"A37","v":70.099999999999994},"Amount claimed under the Foreign Income and \nGains (FIG) Regime"]
[]
[null,null,null,null,null,null,"Your share of the partnership’s total taxed and untaxed income"]
[null,null,null,null,null,null,{"$f":"A39","v":76},"Share of total taxed and untaxed income"]
[]
[]
[null,null,null,null,null,null,76.099999999999994,"Amount claimed under the Foreign Income and \nGains (FIG) Regime"]
[]
[]
[null,null,null,null,null,null,"Your share of the partnership’s tax paid and deductions"]
[null,null,null,null,null,null,{"$f":"A40","v":77},"Share of Income Tax deducted",null,{"$f":"A38","v":73},{"$f":"\"Taxed income taxable @ \"&BR_rate*100&\"%\"","v":"Taxed income taxable @ 20%"}]
[]
[]
[null,null,null,null,null,null,{"$f":"A41","v":78},"Share of Income Tax deducted",null,{"$f":"A42","v":79},"Share of Income Tax deducted"]

{"sheet":"NI","index":41,"n_rows":42,"n_cols":16,"rows_kept":42,"cut":false,"hidden":true,"merged":[]}
[]
[null,null,"National Insurance",null,null,null,null,"NI",null,"This is the reduced Class 2 calculation"]
[null,null,null,null,null,null,null,null,null,"Do not complete these boxes - complete the page opposite to calculate the adjusted Class 2 amount"]
[null,null,"Class 2 and Class 4 National Insurance contributions (NICs)",null,null,null,null,null,null,null,"Step 1",{"$f":"\"(UEL (\"&DOLLAR(NIC_UEL_Wk,0)&\") minus PT (\"&DOLLAR(NIC_PT_Wk,0)&\")) x 53\"","v":"(UEL (£967) minus PT (£242)) x 53"}]
[null,null,null,null,null,null,null,null,null,null,null,{"$f":"(NIC_UEL_Wk-NIC_PT_Wk)*53","v":38425}]
[null,null,null,"Enter the full amount of Class 2",null,null,"This is the adjusted Class 2 from"]
[null,null,"CL2A","that would have been payable",null,"CL2B",{"$f":"\"calculation box \"&K40&\" opposite\"","v":"calculation box Adj CL2 opposite"},null,null,null,"Step 2",{"$f":"\"Multiply the result of Step 1 by \"&NIC1_rate*100&\"%\"","v":"Multiply the result of Step 1 by 8%"}]
[null,null,null,null,null,null,{"$f":"L41","v":0},null,null,null,null,{"$f":"L5*8%","v":3074}]
[]
[null,null,null,"Complete the boxes below to update the reduced Class 2 calculation and CL2B above,",null,null,null,null,null,null,"Step 3","Class 1 Earnings from P60 (earnings from PT to UEL)"]
[null,null,"CL2","and then enter lower of CL2A and CL2B",null,null,null,null,null,null,null,{"$f":"D20+D27","v":0}]
[]
[null,null,null,null,null,null,null,null,null,null,"Step 4","Step 3 minus Step 1"]
[null,null,"if you pay the maximum amount of annual NIC by way of Class 1 and Class 2,",null,null,null,null,null,null,null,null,{"$f":"MAX(0,L11-L5)","v":0}]
[null,null,"you may not need to pay the full amount of Class 4 NIC. Complete the following boxes."]
[null,null,"This will enable the reduced Class 2 and Class 4 calculations.",null,null,null,null,null,null,null,"Step 5","Step 4 x 2%"]
[null,null,null,null,null,null,null,null,null,null,null,{"$f":"L14*2%","v":0}]
[null,null,"Employment"]
[null,null,"EMPCL1","Earnings above the PT, up to and including the UEL. From col.1c on P60/NPS.\n",null,null,null,null,null,null,"Step 6",{"$f":"\"(\"&C19&\" + \"&C26&\") minus (Step 3 x \"&NIC1_rate*100&\"%) / 2%\"","v":"(EMPCL1 + MORCL1) minus (Step 3 x 8%) / 2%"}]
[null,null,null,null,null,null,null,null,null,null,null,{"$f":"MAX(0,((D20+D27)-(L11*NIC1_rate))/2%)","v":0},null,null,null,"No NIC2"]
[null,null,null,null,null,null,null,null,null,null,null,null,null,null,{"$f":"NIC2_weekamt","v":3.5},"NIC2_annual_limit"]
[null,null,null,null,null,null,null,null,null,null,"Step 7","Step 6 x 2%",null,null,{"$f":"NIC2SF_weekamt","v":4.1500000000000004},"NIC2SF_annual_limit"]
[null,null,null,null,null,null,null,null,null,null,null,{"$f":"L20*2%","v":0},null,null,2,"Selected"]
[null,null,null,null,null,null,null,null,null,null,null,null,null,null,false,"Class 2 Voluntary"]
[null,null,"Ministers of religion",null,null,null,null,null,null,null,"Step 8","Individual annual maximum Step 2 + Step 5 + Step 7",null,null,false,"Class 4 NIC exempt"]
[null,null,"MORCL1","Earnings above the PT, up to and including the UEL. From col.1c on P60/NPS.\n",null,null,null,null,null,null,null,{"$f":"L8+L17+L23","v":3074}]
[]
[null,null,null,null,null,null,null,null,null,null,null,{"$f":"\"Balance Step 8 minus \"&C19&\" + \"&C26","v":"Balance Step 8 minus EMPCL1 + MORCL1"}]
[null,null,null,null,null,null,null,null,null,null,null,{"$f":"MAX(0,L26-(D20+D27))","v":3074}]
[]
[null,null,null,null,null,null,null,null,null,null,null,{"$f":"\"Class 2 due from \"&C7","v":"Class 2 due from CL2A"}]
[null,null,"CL2","Class 2 weekly amount",null,null,null,null,null,null,null,{"$f":"D8","v":0}]
[null,null,null,null,"This is required for the Reg 100 Class 4 calculation"]
[null,null,null,null,null,null,null,null,null,null,null,{"$f":"\"Class 2 due equals lower of \"&K25&\" and \"&C7","v":"Class 2 due equals lower of Step 8 and CL2A"}]
[null,null,null,{"$f":"IF(O23=1,\"\",IF(O23=2,\"'standard' Class 2 NICs rate selected\",IF(O23=3,\"Share fishermen Class 2 NICs rate selected\",\"\")))","v":"'standard' Class 2 NICs rate selected"},null,null,null,null,null,null,null,{"$f":"IF(D8=\"\",0,MIN(L29,D8))","v":0}]
[]
[null,null,null,null,null,null,null,null,null,null,null,{"$f":"\"No of weeks (Class 2 due divided by weekly Class 2 rate (\"&DOLLAR(NIC2_weekamt,2)&\"))\"","v":"No of weeks (Class 2 due divided by weekly Class 2 rate (£3.50))"}]
[null,null,null,null,null,null,null,null,null,null,null,{"$f":"ROUNDDOWN(L35/NIC2_weekamt,0)","v":0}]
[]
[null,null,null,null,null,null,null,null,null,null,"Adj CL2",{"$f":"\"No of weeks Class 2 due x weekly Class 2 rate (\"&DOLLAR(NIC2_weekamt,2)&\")\"","v":"No of weeks Class 2 due x weekly Class 2 rate (£3.50)"}]
[null,null,null,null,null,null,null,null,null,null,null,{"$f":"L38*NIC2_weekamt","v":0}]
[null,null,null,null,null,null,null,null,null,null,null,null,"This populates box CL2B"]

{"sheet":"PRO","index":42,"n_rows":28,"n_cols":10,"rows_kept":28,"cut":false,"hidden":true,"merged":[]}
["PRO"]
[21,"D8"]
[22,"D11"]
[33,"H8","UK Property",null,null,null,null,null,null,"PRO"]
[38,"H11"]
[39,"D15","Property Income"]
[40,null,{"$f":"A2","v":21},"Tax taken off",null,null,{"$f":"A3","v":22},"Premiums for the grant of a lease"]
[42]
[44,null,"Calculating your taxable profit or loss"]
[45,"H15",null,null,null,null,{"$f":"A4","v":33},"The Structures and Buildings Allowance"]
[null,"H18"]
[]
[null,"H22",null,null,null,null,{"$f":"A5","v":38},"Adjusted profit for the year"]
[]
[]
[null,null,null,null,null,null,{"$f":"A6","v":39},"Loss brought forward used against this year’s profits"]
[null,"H25"]
[null,"H28"]
[null,null,null,null,null,null,{"$f":"A7","v":40},"Taxable profit for the year"]
[]
[]
[null,null,null,null,null,null,{"$f":"A8","v":42},{"$f":"\"Loss set against \"&tax_year&\" income\"","v":"Loss set against 2025-26 income"}]
[]
[]
[null,null,null,null,null,null,{"$f":"A9","v":44},"Relief for residential finance costs"]
[]
[]
[null,null,null,null,null,null,{"$f":"A10","v":45},"Unused finance costs brought forward"]

{"sheet":"CGT","index":43,"n_rows":60,"n_cols":23,"rows_kept":60,"cut":false,"hidden":true,"merged":[]}
["CGT"]
[3,null,"Capital Gains Summary",null,null,null,null,null,null,"CGT",null,"Losses and adjustments",null,null,null,null,null,null,"CGT"]
[4,null,"Residential property and carried interest",null,null,null,null,null,null,null,null,{"$f":"\"Losses set against \"&tax_year&\" capital gains\"","v":"Losses set against 2025-26 capital gains"}]
[5,null,{"$f":"A5","v":6},"Gains in the year, before losses - excluding NRCGT gains",null,null,{"$f":"A10","v":10},"Tax on gains in box 6 already charged (PPD)",null,null,null,{"$f":"A48","v":45},"Losses brought forward and used in-year",null,null,{"$f":"A49","v":46},{"$f":"\"Income losses of \"&tax_year&\" set against gains\"","v":"Income losses of 2025-26 set against gains"}]
[6]
[6.1]
[7,null,{"$f":"A6","v":6.1},"Amount claimed under the Foreign Income and Gains (FIG) Regime",null,null,null,null,null,null,null,{"$f":"tax_year&\" capital losses - other information\"","v":"2025-26 capital losses - other information"}]
[8,null,null,null,null,null,null,null,null,null,null,null,null,null,null,{"$f":"A51","v":48},"Losses used against an earlier year's gains"]
[9]
[10,null,{"$f":"A7","v":7},"Losses in the year excluding NRCGT losses",null,null,{"$f":"A12","v":12},"Tax on gains in box 11 already paid (RTT)"]
[11,null,null,null,null,null,null,null,null,null,null,"Investors' Relief",null,null,null,49,"Gains that qualify for Investors' Relief"]
[12]
["13B",null,{"$f":"A13","v":"13B"},"Gains on carried interest in the year",null,null,{"$f":"A14","v":"13C"},"Amount claimed under the Foreign Income and Gains (FIG) Regime"]
["13C",null,null,null,null,null,null,null,null,null,null,"Entrepreneurs' Relief"]
[13.4,null,null,null,null,null,null,null,null,null,null,null,null,null,null,{"$f":"A53","v":50},"Gains qualifying for Business Asset Disposal Relief "]
[13.5,null,null,null,null,null,null,null,null,null,null,null,null,null,null,null,null,"`"]
[13.8,null,"Cryptoassets",null,null,null,null,null,null,null,null,"Tax adjustments to 2016-17 capital gains"]
[14,null,{"$f":"A15","v":13.4},"Gains in the year, before losses",null,null,{"$f":"A17","v":13.8},"Tax on gains in box 13.7 already paid",null,null,null,{"$f":"A54","v":51},"Adjustments to Capital Gains tax",null,null,{"$f":"A55","v":52},"Additional liability for non-resident or dual resident trusts"]
[15]
[16]
[17,null,{"$f":"A16","v":13.5},"Losses in the year "]
[17]
[18,null,null,null,null,null,null,null,null,null,null,"Non-resident Capital Gains Tax (NRCGT) on UK land & property and indirect disposals",null,null,null,null,null,null,"CGT"]
[19,null,null,null,null,null,null,null,null,null,null,null,null,null,null,null,null,null,null,null,null,"Ind_disp",false]
[20,null,"Other property, assets and gains",null,null,null,null,null,null,null,null,null,"UK residential properties"]
[21,null,{"$f":"A21","v":17},"Gains in the year, before losses excluding attributed gains",null,null,{"$f":"A24","v":19},"Losses in the year",null,null,null,{"$f":"A56","v":52.1},"Total gain chargeable to NRCGT",null,null,{"$f":"A58","v":52.3},"Any gains in box 52.2 from indirect disposals?"]
[22]
[23]
[24,null,{"$f":"A22","v":17},"Amount claimed under the Foreign Income and Gains (FIG) Regime"]
[25,null,null,null,null,null,null,null,null,null,null,null,null,null,null,{"$f":"A59","v":52.4},{"$f":"\"Tax on gains in boxes \"&L26&\" and \"&L34&\" already charged\"","v":"Tax on gains in boxes 52.1 and 52.2 already charged"}]
[26]
[26.1,null,null,null,null,null,{"$f":"A27","v":22},"Tax on gains in box 21 already paid (RTT)"]
[27,null,null,null,null,null,null,null,null,null,null,null,"Non-residential UK properties"]
[null,null,null,null,null,null,null,null,null,null,null,{"$f":"A57","v":52.2},"Total gain chargeable to NRCGT",null,null,{"$f":"A60","v":52.5},"Total available NRCGT losses in the year"]
[30,null,"Listed shares and securities"]
[null,null,{"$f":"A31","v":26},"Gains in the year, before losses",null,null,{"$f":"A33","v":27},"Losses in the year"]
[34]
[34.1,null,null,"Amount claimed under the "]
[35,null,{"$f":"A32","v":26.1},"Foreign Income and Gains (FIG) Regime",null,null,{"$f":"A35","v":30},"Tax on gains in box 29 already paid (RTT)"]
[]
[38]
[39,null,"Unlisted shares and securities"]
[40,null,{"$f":"A37","v":34},"Gains in the year, before losses",null,null,{"$f":"A38","v":34.1},"Amount claimed under the Foreign Income and Gains (FIG) Regime"]
[41]
[42]
[43,null,{"$f":"A39","v":35},"Losses in the year",null,null,{"$f":"A41","v":38},"Tax on gains in box 37 already paid (RTT)"]
[44]
[45]
[46,null,{"$f":"A44","v":41},{"$f":"\"Losses used against income - amount claimed against \"&tax_year","v":"Losses used against income - amount claimed against 2025-26"}]
[47]
[48]
[49,null,{"$f":"A45","v":42},{"$f":"\"Amount in box \"&C49&\" to which EIS/SEIS relief\"","v":"Amount in box 41 to which EIS/SEIS relief"},null,null,{"$f":"A46","v":43},{"$f":"\"Losses used against income - amount claimed against \"&last_year","v":"Losses used against income - amount claimed against 2024-25"}]
[50]
[51]
[52]
[52.1]
[52.2]
[52.3]
[52.4]
[52.5]

{"sheet":"FOR","index":44,"n_rows":76,"n_cols":26,"rows_kept":76,"cut":false,"hidden":true,"merged":[]}
["FOR"]
[2,null,"Foreign ",null,null,null,null,null,null,"FOR",null,null,null,null,null,null,"FOR",null,null,null,null,null,null,"FOR"]
[3,null,null,null,null,null,null,null,null,null,"Income from land and property abroad",null,null,null,null,null,null,"Other income cont'"]
[4]
[4.0999999999999996,null,null,null,null,null,null,null,null,null,{"$f":"A26","v":24},"Adjusted profit",null,null,{"$f":"A27","v":24.1},"Relief for residential finance costs",null,"D. Special Withholding Tax",null,null,null,"F. Taxable amount"]
[5,null,null,null,null,null,null,null,null,null,null,null,null,null,null,null,null,null,"Div inc in non-res",null,null,null,"Div inc in non-res"]
[6,null,null,null,null,null,null,null,null,null,null,null,null,null,null,null,null,{"$f":"A52","v":52},"settlor interested trusts",null,null,{"$f":"A53","v":53},"settlor interested trusts"]
[6.1,null,null,null,null,null,null,null,null,null,null,null,null,null,{"$f":"A28","v":24.2},"Unsused residential finance costs"]
[7]
[7.1,null,{"$f":"A2","v":2},"Tax Credit Relief on income",null,null,null,null,null,null,{"$f":"A29","v":26},"Total loss brought forward from earlier years",null,null,null,null,null,null,null,null,null,{"$f":"A54","v":53.1},"Total claimed under FIG regime"]
[7.2,null,null,null,null,null,null,null,null,null,null,null,"`",null,{"$f":"A30","v":27},"Total taxable profits"]
[7.3,null,null,null,null,null,null,null,null,null,null,null,null,null,null,null,null,null,"Discretionary income arising from"]
[7.4,null,null,null,null,null,null,null,null,{"$f":"FOR","v":"FOR"},null,null,null,null,null,null,null,{"$f":"A55","v":54}," non-settlor-interested non UK resident trusts",null,null,{"$f":"A56","v":54.1},"Total claimed under FIG regime"]
[7.5,null,"Income from overseas sources",null,null,null,null,null,null,null,"D. Special Withholding Tax",null,null,null,"F. Taxable amount"]
[8,null,null,null,null,null,null,null,null,null,{"$f":"A31","v":29},"Overseas property",null,null,{"$f":"A32","v":30},"Overseas property",null,null,"Capital sums paid to settlor by "]
[9,null,null,"D. Special Withholding Tax",null,null,null,"F. Taxable amount",null,null,null,null,null,null,null,null,null,{"$f":"A57","v":55}," trustees of non resident settlements",null,null,{"$f":"A58","v":55.1},"Total claimed under FIG regime"]
[9.1]
[10,null,{"$f":"A3","v":3},"Savings and interest",null,null,{"$f":"A4","v":4},"Savings and interest",null,null,null,null,null,null,{"$f":"A33","v":30.1},"Total claimed under FIG regime"]
[11,null,null,null,null,null,null,null,null,null,null,null,null,null,null,null,null,{"$f":"A59","v":56},"Gains on disposal of holdings in offshore fund",null,null,{"$f":"A60","v":56.1},"Total claimed under FIG regime"]
[11.1,null,null,null,null,null,null,null,null,null,"Losses",null,null,null,null,null,null,null,null,null,null,null,null,null,null,false]
[12,null,null,null,null,null,{"$f":"A5","v":4.0999999999999996},"Total claimed under FIG regime",null,null,{"$f":"A34","v":31},"Loss offset against income",null,null,{"$f":"A35","v":32},"Total loss to carry forward"]
[13,null,null,null,null,null,null,null,null,null,null,null,null,null,null,null,null,{"$f":"A61","v":57},"Non trade income",null,null,{"$f":"A62","v":57.1},"Total claimed under FIG regime"]
[13]
[13.1,null,{"$f":"A6","v":5},"Dividends",null,null,{"$f":"A7","v":6},"Dividends",null,null,null,null,null,null,null,null,{"$f":"FOR","v":"FOR"}]
[13.2,null,null,null,null,null,null,null,null,null,"Capital Gains",null,null,null,null,null,null,{"$f":"A63","v":58}," Benefits received by non-tranferors",null,null,{"$f":"A64","v":58.1},"Total claimed under FIG regime"]
[24]
[24.1,null,null,null,null,null,{"$f":"A8","v":6.1},"Total claimed under FIG regime",null,null,{"$f":"A36","v":39},"Tax Credit Relief on gains",null,null,{"$f":"A37","v":40},"Special withholding tax"]
[24.2,null,null,null,null,null,null,null,null,null,null,null,null,null,null,null,null,{"$f":"A65","v":59},"Benefits received by transferor",null,null,{"$f":"A66","v":59.1},"Total claimed under FIG regime"]
[26]
[27,null,{"$f":"A10","v":7.1},"Remitted foreign savings income",null,null,{"$f":"A11","v":7.2},"Remitted foreign savings income",null,null,"Other income",null,null,null,null,null,{"$f":"FOR","v":"FOR"},null,"Benefits chargeable on you "]
[29,null,null,null,null,null,null,null,null,null,null,null,null,null,null,null,null,{"$f":"A67","v":60},"the Close family member rules under ToAA\n",null,null,{"$f":"A68","v":60.1},"Total claimed under FIG regime"]
[30]
[30.1,null,{"$f":"A12","v":7.3},"Remitted foreign dividends income",null,null,{"$f":"A13","v":7.4},"Remitted foreign dividends income",null,null,null,null,null,null,null,null,null,null," Benefits chargeable on you under"]
[31,null,null,null,null,null,null,null,null,null,null,null,null,null,null,null,null,{"$f":"A69","v":61}," the Onward Gifts Rules under ToAA",null,null,{"$f":"A70","v":61.1},"Total claimed under FIG regime"]
[32,null,null,null,null,null,null,null,null,null,{"$f":"A38","v":41},"box not in use",null,null,{"$f":"A42","v":44},"Number of years"]
[39,null,null,null,null,null,null,"Amount in box 7.4 "]
[40,null,null,null,null,null,{"$f":"A14","v":7.5},"subject to dividend tax credit",null,null,null,null,null,null,null,null,null,{"$f":"A71","v":62},"Benefits received by settlor in the year",null,null,{"$f":"A72","v":62.1},"Total claimed under FIG regime"]
[41]
[42,null,null,null,null,null,null,null,null,null,{"$f":"A39","v":42},"box not in use",null,null,{"$f":"A43","v":45},"UK Tax treated as paid"]
[43,null,{"$f":"A15","v":8},"Pensions & social benefits",null,null,{"$f":"A16","v":9},"Pensions & social benefits",null,null,null,null,null,null,null,null,null,{"$f":"A73","v":63},"Benefits received by close family member",null,null,{"$f":"A74","v":63.1},"Total claimed under FIG regime"]
[]
[44,null,null,null,null,null,null,null,null,null,{"$f":"A40","v":43},"Gains on life policies",null,null,null,null,null,null,"Benefits chargeable on you under "]
[45,null,null,null,null,null,{"$f":"A17","v":9.1},"Total claimed under FIG regime",null,null,null,null,null,null,null,null,null,{"$f":"A75","v":64},"the Onward Gifts Rules",null,null,{"$f":"A76","v":64.099999999999994},"Total claimed under FIG regime"]
[47]
[48,null,null,null,null,null,null,null,null,null,"D. Special Withholding Tax",null,null,null,"F. Taxable amount"]
[48.1,null,{"$f":"A18","v":10},"Dividends from trusts etc.",null,null,{"$f":"A19","v":11},"Dividends from trusts etc.",null,null,null,"Non-sav inc in non-res",null,null,null,"Non-sav inc in non-res"]
[49,null,null,null,null,null,null,null,null,null,{"$f":"A44","v":47},"settlor interested trusts",null,null,{"$f":"A45","v":48},"settlor interested trusts"]
[49.1]
[50,null,null,null,null,null,{"$f":"A20","v":11.1},"Total claimed under FIG regime"]
[51,null,null,null,null,null,null,null,null,null,null,null,null,null,{"$f":"A46","v":48.1},"Total claimed under FIG regime"]
[51.1]
[52,null,{"$f":"A21","v":12},"Other income from trusts etc.",null,null,{"$f":"A22","v":13},"Other income from trusts etc.",null,null,null,"Residential property income"]
[53,null,null,null,null,null,null,null,null,null,{"$f":"A47","v":49},"or restricted finance costs",null,null,{"$f":"A48","v":49.1},"Unsused residential finance costs"]
[53.1]
[54,null,null,null,null,null,{"$f":"A23","v":13},"Total claimed under FIG regime"]
[54.1,null,null,null,null,null,null,null,null,null,"D. Special Withholding Tax",null,null,null,"F. Taxable amount"]
[55,null,null,"Residential property income",null,null,null,null,null,null,null,"Sav inc in non-res",null,null,null,"Sav inc in non-res"]
[55.1,null,{"$f":"A24","v":13.1},"or restricted finance costs",null,null,{"$f":"A25","v":13.2},"Unsused residential finance costs",null,null,{"$f":"A49","v":50},"settlor interested trusts",null,null,{"$f":"A50","v":51},"settlor interested trusts"]
[56]
[56.1]
[57,null,null,null,null,null,null,null,null,null,null,null,null,null,{"$f":"A51","v":51.1},"Total claimed under FIG regime"]
[57.1]
[58]
[58.1]
[59]
[59.1]
[60]
[60.1]
[61]
[61.1]
[62]
[62.1]
[63]
[63.1]
[64]
[64.099999999999994]

{"sheet":"Swiss Tax","index":45,"n_rows":25,"n_cols":14,"rows_kept":25,"cut":false,"hidden":true,"merged":[]}
[]
[null,null,"Income received under the Swiss Tax Agreement where the taxpayer has elected to have the tax deducted"]
[null,null,{"$f":"\"meet his total UK tax liability.\"","v":"meet his total UK tax liability."}]
[null,null,{"$f":"\"Swiss income included in boxes \"&FOR!G18&\" and \"&FOR!G24&\" of the foreign pages.\"","v":"Swiss income included in boxes 4 and 6 of the foreign pages."},null,null,null,null,null,null,null,null,null,null,"From the "]
[null,null,null,null,null,null,null,null,null,null,null,null,null,"foreign pages"]
[null,null,"Interest and other income from overseas savings"]
[null,null,"A. Country or territory code",null,null,null,"D. Special Withholding Tax",null,null,"F. Taxable amount"]
[]
[null,null,null,"CHE",null,null,null,null,null,null,null,null,{"$f":"FOR!G18","v":4}]
[]
[]
[null,null,"Dividends from foreign companies"]
[null,null,"Dividends that qualify for UK tax credits"]
[null,null,"A. Country or territory code",null,null,null,"D. Special Withholding Tax",null,null,"F. Taxable amount"]
[]
[null,null,null,"CHE",null,null,null,null,null,null,null,null,{"$f":"FOR!G24&\" minus \"&FOR!G26","v":"6 minus "}]
[]
[null,null,"The Taxable amount is included in box 6, but not box 7 of the foreign pages"]
[]
[null,null,"Dividends that do not qualify for UK tax credits"]
[null,null,"A. Country or territory code",null,null,null,"D. Special Withholding Tax",null,null,"F. Taxable amount"]
[]
[null,null,null,"CHE",null,null,null,null,null,null,null,null,{"$f":"FOR!G26","v":0}]
[]
[null,null,"The Taxable amount is included in both boxes 6 & 7 on the foreign pages"]

{"sheet":"FTCR","index":46,"n_rows":245,"n_cols":34,"rows_kept":245,"cut":false,"hidden":true,"merged":[[0,26,3,26],[0,21,3,21],[0,22,3,22],[0,23,3,23],[0,24,3,24],[0,25,3,25],[0,33,3,33],[0,27,3,27],[0,28,3,28],[0,29,3,29],[0,30,3,30],[0,31,3,31],[0,32,3,32]]}
[null,null,null,null,null,null,null,null,null,null,null,null,null,null,null,null,null,"type",null,null,null,"3-letter code","3-letter code + DTA 'asterix'","DTA","Country or Territory","Non-savings income","Lump sums ","Savings and gains","Dividends that qualify for UK tax credits","Dividends that do not qualify ","Gains on life policies etc. with notional tax","Non-savings income with notional tax","3 letter code *DTA","Notes"]
[null,"Tax Credit Relief for Income Tax",null,null,null,null,null,"In the 'max tax % rate' box enter the maximum % allowed under the double taxation",null,null,null,null,null,null,null,null,null,1,"Non-savings income"]
[null,"The order can vary with individual circumstances but usually working out the FTCR on the item",null,null,null,null,null,"agreement for that type of income. ",null,null,null,null,null,null,null,null,null,2,"Lump sums "]
[null,"with the highest allowable rate of foreign tax first, and the lowest last, produces the best results.",null,null,null,null,null,"See: ","Digest_of_Double_Taxation_Treaties",null,null,"From April 2018",null,null,null,null,null,3,"Savings and gains"]
[null,"Where you get an unexpected amount of  FTCR for a later item untick the Foreign (SA106 FOR)",null,null,null,null,null,"Or:","Tax Treaties",null,null,null,null,null,null,null,null,4,"Dividends",null,null,"Select or Enter","Select or Enter"]
[null,"in the Add pages to clear entries and recomplete the FOR and FTCR page again, calculate FTCR",null,null,null,null,null,null,null,null,null,null,null,null,null,null,null,5,"Gains on life policies etc. with notional tax",null,null,"ABW","ABW","N","Aruba",null,null,null,null,null,null,null,"ABW"]
[null,"and compare results. Enter the most beneficial result in box 2 on the FOR page.",null,null,null,null,null,null,null,null,null,null,null,null,null,null,null,6,"Non-savings income with notional tax",null,null,"AFG","AFG","N","Afghanistan",null,null,null,null,null,null,null,"AFG"]
[null,null,"Income type",null,"Country or",null,"Amount of income",null,"Foreign tax paid",null,"Max tax",null,"Deduction specifically",null,null,null,null,null,null,null,null,"AGO","AGO","N","Angola",null,null,null,null,null,null,null,"AGO"]
[null,null,null,null,"territory Code",null,"from column B",null,"from column C",null,"% rate",null,"attributable to the item",null,null,null,null,null,null,null,null,"AIA","AIA","N","Anguilla",null,null,null,null,null,null,null,"AIA"]
[null,"Item 1",null,null,null,null,null,null,null,null,null,null,null,null,null,null,"country","type","% rate",null,"max tax","ALB","ALB","N","Albania",null,null,null,null,null,null,null,"ALB"]
[null,null,null,null,null,null,null,null,null,null,"MaxTaxRate LookUp",null,null,null,null,"item 1",1,1,{"$f":"VLOOKUP(T11,Q$22:R$33,2,FALSE)","v":1},1,{"$f":"MIN(TRUNC(G10*S11,2),I10)","v":0},"AND","AND","N","Andorra",null,null,null,null,null,null,null,"AND"]
[null,null,null,null,null,null,null,"FTCR on item 1",null,null,{"$f":"IF(ISNA(VLOOKUP(E10,V$5:AF$245,R11+4,FALSE)),\"\",IF(VLOOKUP(E10,V$5:AF$245,R11+4,FALSE)=\"\",\"\",VLOOKUP(E10,V$5:AF$245,R11+4,FALSE)))","v":""},null,null,null,null,"item 2",1,1,{"$f":"VLOOKUP(T12,Q$22:R$33,2,FALSE)","v":1},1,{"$f":"MIN(TRUNC(G14*S12,2),I14)","v":0},"ARE","ARE","N","United Arab Emirates",null,null,null,null,null,null,null,"ARE"]
[null,null,null,null,null,null,null,null,null,null,null,null,null,null,null,"item 3",1,1,1,1,{"$f":"MIN(TRUNC(G18*S13,2),I18)","v":0},"ARG","ARG •","Y","Argentina",null,null,0.12,0.15,null,null,null,"ARG *"]
[null,"Item 2",null,null,null,null,null,null,null,null,null,null,null,null,null,"item 4",1,1,1,1,{"$f":"MIN(TRUNC(G22*S14,2),I22)","v":0},"ARM","ARM •","Y","Armenia",null,null,0.05,0.1,null,null,null,"ARM *","1. DT treaty is effective in both Armenia and UK from 1 January 2013 for taxes withheld at source."]
[null,null,null,null,null,null,null,null,null,null,"MaxTaxRate LookUp",null,null,null,null,"item 5",1,1,1,1,{"$f":"MIN(TRUNC(G26*S15,2),I26)","v":0},"ASM","ASM","N","American Samoa",null,null,null,null,null,null,null,"ASM"]
[null,null,null,null,null,null,null,"FTCR on item 2",null,null,{"$f":"IF(ISNA(VLOOKUP(E14,V$5:AF$245,R12+4,FALSE)),\"\",IF(VLOOKUP(E14,V$5:AF$245,R12+4,FALSE)=\"\",\"\",VLOOKUP(E14,V$5:AF$245,R12+4,FALSE)))","v":""},null,null,null,null,"item 6",1,1,{"$f":"VLOOKUP(T16,Q$22:R$33,2,FALSE)","v":1},1,{"$f":"MIN(TRUNC(G30*S16,2),I30)","v":0},"ATG","ATG •","Y","Antigua and Barbuda",null,null,"no article","not eligible","not eligible",null,null,"ATG *"]
[null,null,null,null,null,null,null,null,null,null,null,null,null,null,null,"item 7",1,1,1,1,{"$f":"MIN(TRUNC(G34*S17,2),I34)","v":0},"AUS","AUS •","Y","Australia",null,null,0.1,"15% (note 1)",null,null,null,"AUS *","1. Only unfranked dividends carry withholding tax."]
[null,"Item 3",null,null,null,null,null,null,null,null,null,null,null,null,null,"item 8",1,1,1,1,{"$f":"MIN(TRUNC(G38*S18,2),I38)","v":0},"AUT","AUT •","Y","Austria",null,null,0,0.15,null,null,null,"AUT *"]
[null,null,null,null,null,null,null,null,null,null,"MaxTaxRate LookUp",null,null,null,null,"item 9",1,1,1,1,{"$f":"MIN(TRUNC(G42*S19,2),I42)","v":0},"AZE","AZE •","Y","Azerbaijan",null,null,0.1,0.15,null,null,null,"AZE *","1. 5% on copyright royalties."]
[null,null,null,null,null,null,null,"FTCR on item 3",null,null,{"$f":"IF(ISNA(VLOOKUP(E18,V$5:AF$245,R13+4,FALSE)),\"\",IF(VLOOKUP(E18,V$5:AF$245,R13+4,FALSE)=\"\",\"\",VLOOKUP(E18,V$5:AF$245,R13+4,FALSE)))","v":""},null,null,null,null,"item 10",1,1,1,1,{"$f":"MIN(TRUNC(G46*S20,2),I46)","v":0},"BDI","BDI","N","Burundi",null,null,null,null,null,null,null,"BDI"]
[null,null,null,null,null,null,null,null,null,null,null,null,null,null,null,null,null,null,null,null,null,"BEL","BEL •","Y","Belgium",null,null,0.15,0.1,null,null,null,"BEL *"]
[null,"Item 4",null,null,null,null,null,null,null,null,null,null,null,null,null,null,1,1,null,null,null,"BEN","BEN","N","Benin",null,null,null,null,null,null,null,"BEN"]
[null,null,null,null,null,null,null,null,null,null,"MaxTaxRate LookUp",null,null,null,null,null,2,0,null,null,null,"BES","BES •","Y","Bonaire",null,null,null,null,null,null,null,"BES *"]
[null,null,null,null,null,null,null,"FTCR on item 4",null,null,{"$f":"IF(ISNA(VLOOKUP(E22,V$5:AF$245,R14+4,FALSE)),\"\",IF(VLOOKUP(E22,V$5:AF$245,R14+4,FALSE)=\"\",\"\",VLOOKUP(E22,V$5:AF$245,R14+4,FALSE)))","v":""},null,null,null,null,null,3,0.05,null,null,null,"BES","BES •","Y","Saba",null,null,null,null,null,null,null,"BES *"]
[null,null,null,null,null,null,null,null,null,null,null,null,null,null,null,null,4,7.0000000000000007E-2,null,null,null,"BES","BES •","Y","Sint Eustatius ",null,null,null,null,null,null,null,"BES *"]
[null,"Item 5",null,null,null,null,null,null,null,null,null,null,null,null,null,null,5,0.08,null,null,null,"BFA","BFA","N","Burkino Faso ",null,null,null,null,null,null,null,"BFA"]
[null,null,null,null,null,null,null,null,null,null,"MaxTaxRate LookUp",null,null,null,null,null,6,0.1,null,null,null,"BGD","BGD •","Y","Bangladesh",null,null,0.1,0.15,null,null,null,"BGD *"]
[null,null,null,null,null,null,null,"FTCR on item 5",null,null,{"$f":"IF(ISNA(VLOOKUP(E26,V$5:AF$245,R15+4,FALSE)),\"\",IF(VLOOKUP(E26,V$5:AF$245,R15+4,FALSE)=\"\",\"\",VLOOKUP(E26,V$5:AF$245,R15+4,FALSE)))","v":""},null,null,null,null,null,7,0.12,null,null,null,"BGR","BGR •","Y","Bulgaria",null,null,0,0.1,null,null,null,"BGR *"]
[null,null,null,null,null,null,null,null,null,null,null,null,null,null,null,null,8,0.125,null,null,null,"BHR","BHR •","Y","Bahrain",null,null,0,0,null,null,null,"BHR *","1. DT treaty is effective in both Bahrain and UK from 1 January 2013 for taxes withheld at source."]
[null,"Item 6",null,null,null,null,null,null,null,null,null,null,null,null,null,null,9,0.15,null,null,null,"BHS","BHS","N","Bahamas",null,null,null,null,null,null,null,"BHS"]
[null,null,null,null,null,null,null,null,null,null,"MaxTaxRate LookUp",null,null,null,null,null,10,0.17,null,null,null,"BIH","BIH •","Y","Bosnia and Herzegovina",null,null,0.1,0.15,null,null,null,"BIH *"]
[null,null,null,null,null,null,null,"FTCR on item 6",null,null,{"$f":"IF(ISNA(VLOOKUP(E30,V$5:AF$245,R16+4,FALSE)),\"\",IF(VLOOKUP(E30,V$5:AF$245,R16+4,FALSE)=\"\",\"\",VLOOKUP(E30,V$5:AF$245,R16+4,FALSE)))","v":""},null,null,null,null,null,11,0.2,null,null,null,"BLR","BLR •","Y","Belarus",null,null,0,0,null,null,null,"BLR *"]
[null,null,null,null,null,null,null,null,null,null,null,null,null,null,null,null,12,0.25,null,null,null,"BLZ","BLZ •","Y","Belize",null,null,"no article","not eligible","not eligible",null,null,"BLZ *"]
[null,"Item 7",null,null,null,null,null,null,null,null,null,null,null,null,null,null,null,null,null,null,null,"BMU","BMU","N","Bermuda",null,null,null,null,null,null,null,"BMU"]
[null,null,null,null,null,null,null,null,null,null,"MaxTaxRate LookUp",null,null,null,null,null,null,null,null,null,null,"BOL","BOL •","Y","Bolivia",null,null,0.15,0.15,null,null,null,"BOL *"]
[null,null,null,null,null,null,null,"FTCR on item 7",null,null,{"$f":"IF(ISNA(VLOOKUP(E34,V$5:AF$245,R17+4,FALSE)),\"\",IF(VLOOKUP(E34,V$5:AF$245,R17+4,FALSE)=\"\",\"\",VLOOKUP(E34,V$5:AF$245,R17+4,FALSE)))","v":""},null,null,null,null,null,null,null,null,null,null,"BRA","BRA","N","Brazil",null,null,null,null,null,null,null,"BRA"]
[null,null,null,null,null,null,null,null,null,null,null,null,null,null,null,null,null,null,null,null,null,"BRB","BRB •","Y","Barbados",null,null,"15% (S)","0% (S)",null,null,null,"BRB *","1. 15% on cinematograph and television royalties."]
[null,"Item 8",null,null,null,null,null,null,null,null,null,null,null,null,null,null,null,null,null,null,null,"BRN","BRN •","Y","Brunei Darussalam",null,null,"no article","0% (S)","0% (S)",null,null,"BRN *"]
[null,null,null,null,null,null,null,null,null,null,"MaxTaxRate LookUp",null,null,null,null,null,null,null,null,null,null,"BTN","BTN","N","Bhutan",null,null,null,null,null,null,null,"BTN"]
[null,null,null,null,null,null,null,"FTCR on item 8",null,null,{"$f":"IF(ISNA(VLOOKUP(E38,V$5:AF$245,R18+4,FALSE)),\"\",IF(VLOOKUP(E38,V$5:AF$245,R18+4,FALSE)=\"\",\"\",VLOOKUP(E38,V$5:AF$245,R18+4,FALSE)))","v":""},null,null,null,null,null,null,null,null,null,null,"BWA","BWA •","Y","Botswana",null,null,0.1,0.12,null,null,null,"BWA *"]
[null,null,null,null,null,null,null,null,null,null,null,null,null,null,null,null,null,null,null,null,null,"CAF","CAF","N","Central African Republic",null,null,null,null,null,null,null,"CAF"]
[null,"Item 9",null,null,null,null,null,null,null,null,null,null,null,null,null,null,null,null,null,null,null,"CAN","CAN •","Y","Canada",null,null,"10% (note 1)",0.15,null,null,null,"CAN *","1. Zero if loan guaranteed by UK ECGD or Canadian EDC or if Canadian government or local authority bond.\n2. Zero if copyright royalties (excluding films and television)."]
[null,null,null,null,null,null,null,null,null,null,"MaxTaxRate LookUp",null,null,null,null,null,null,null,null,null,null,"CCK","CCK •","Y","Cocos (Keeling) Islands",null,null,null,null,null,null,null,"CCK *"]
[null,null,null,null,null,null,null,"FTCR on item 9",null,null,{"$f":"IF(ISNA(VLOOKUP(E42,V$5:AF$245,R19+4,FALSE)),\"\",IF(VLOOKUP(E42,V$5:AF$245,R19+4,FALSE)=\"\",\"\",VLOOKUP(E42,V$5:AF$245,R19+4,FALSE)))","v":""},null,null,null,null,null,null,null,null,null,null,"CHE","CHE •","Y","Switzerland",null,null,0,0.15,null,null,null,"CHE *"]
[null,null,null,null,null,null,null,null,null,null,null,null,null,null,null,null,null,null,null,null,null,"CHL","CHL •","Y","Chile",null,null,0.15,0.15,null,null,null,"CHL *"]
[null,"Item 10",null,null,null,null,null,null,null,null,null,null,null,null,null,null,null,null,null,null,null,"CHN","CHN •","Y","China",null,null,"10% (note 1)",0.1,null,null,null,"CHN *","1. Exempt in certain circumstances(see Art 11 [3])."]
[null,null,null,null,null,null,null,null,null,null,"MaxTaxRate LookUp",null,null,null,null,null,null,null,null,null,null,"CIV","CIV •","Y","Côte d’Ivoire",null,null,0.15,"15% (note 1)",null,null,null,"CIV *","1. 18% where paid by an Ivory Cost company exempt from tax or paying at less than normal rates on profits."]
[null,null,null,null,null,null,null,"FTCR on item 10",null,null,{"$f":"IF(ISNA(VLOOKUP(E46,V$5:AF$245,R20+4,FALSE)),\"\",IF(VLOOKUP(E46,V$5:AF$245,R20+4,FALSE)=\"\",\"\",VLOOKUP(E46,V$5:AF$245,R20+4,FALSE)))","v":""},null,null,null,null,null,null,null,null,null,null,"CMR","CMR","N","Cameroon",null,null,null,null,null,null,null,"CMR"]
[null,null,null,null,null,null,null,null,null,null,null,null,null,null,null,null,null,null,null,null,null,"COD","COD","N","Democratic Republic of the Congo (formerly Zaire)",null,null,null,null,null,null,null,"COD"]
[null,null,null,null,null,null,null,null,null,null,null,null,null,null,null,null,null,null,null,null,null,"COG","COG","N","Congo",null,null,null,null,null,null,null,"COG"]
[null,null,null,null,null,null,null,null,null,null,null,null,null,null,null,null,null,null,null,null,null,"COK","COK","N","Cook Islands",null,null,null,null,null,null,null,"COK"]
[null,null,null,null,null,null,null,null,null,null,null,null,null,null,null,null,null,null,null,null,null,"COL","COL","N","Columbia",null,null,null,null,null,null,null,"COL"]
[null,null,null,null,null,null,null,null,null,null,null,null,null,null,null,null,null,null,null,null,null,"COM","COM","N","Comoros",null,null,null,null,null,null,null,"COM"]
[null,null,null,null,null,null,null,null,null,null,null,null,null,null,null,null,null,null,null,null,null,"CPV","CPV","N","Cape Verde",null,null,null,null,null,null,null,"CPV"]
[null,null,null,null,null,null,null,null,null,null,null,null,null,null,null,null,null,null,null,null,null,"CRI","CRI","N","Costa Rica",null,null,null,null,null,null,null,"CRI"]
[null,null,null,null,null,null,null,null,null,null,null,null,null,null,null,null,null,null,null,null,null,"CUB","CUB","N","Cuba",null,null,null,null,null,null,null,"CUB"]
[null,null,null,null,null,null,null,null,null,null,null,null,null,null,null,null,null,null,null,null,null,"CUW","CUW •","Y","Curaçao",null,null,null,null,null,null,null,"CUW *"]
[null,null,null,null,null,null,null,null,null,null,null,null,null,null,null,null,null,null,null,null,null,"CXR","CXR •","Y","Christmas Island",null,null,null,null,null,null,null,"CXR *"]
[null,null,null,null,null,null,null,null,null,null,null,null,null,null,null,null,null,null,null,null,null,"CYN","CYM •","Y","Cayman Islands",null,null,"0% (note 2)","0% (note 2)","not eligible",null,null,"CYN *","1. DTA effective in UK from 6 April 2011.\n2. DTA does not include provisions relieving dividends, interest or royalties."]
[null,null,null,null,null,null,null,null,null,null,null,null,null,null,null,null,null,null,null,null,null,"CYP","CYP •","Y","Cyprus",null,null,0.1,"not eligible","not eligible",null,null,"CYP *","1. 5% on film and television royalties."]
[null,null,null,null,null,null,null,null,null,null,null,null,null,null,null,null,null,null,null,null,null,"CZE","CZE •","Y","Czech Republic",null,null,0,0.15,null,null,null,"CZE *","1. Zero on copyright royalties."]
[null,null,null,null,null,null,null,null,null,null,null,null,null,null,null,null,null,null,null,null,null,"DEU","DEU •","Y","Germany",null,null,"0 (S) (note 2)","15% (S) (note 2)",null,null,null,"DEU *","1.New DT treaty effective in Germany from 1 January 2011. Effective in UK from 1 January 2011 for taxes withheld at source.\n2. ‘Subject to tax’ condition applies only to income paid before 1 January 2011."]
[null,null,null,null,null,null,null,null,null,null,null,null,null,null,null,null,null,null,null,null,null,"DJI","DJI","N","Djibouti",null,null,null,null,null,null,null,"DJI"]
[null,null,null,null,null,null,null,null,null,null,null,null,null,null,null,null,null,null,null,null,null,"DMA","DMA","N","Dominica",null,null,null,null,null,null,null,"DMA"]
[null,null,null,null,null,null,null,null,null,null,null,null,null,null,null,null,null,null,null,null,null,"DNK","DNK •","Y","Denmark",null,null,0,0.15,null,null,null,"DNK *"]
[null,null,null,null,null,null,null,null,null,null,null,null,null,null,null,null,null,null,null,null,null,"DOM","DOM","N","Dominican Republic",null,null,null,null,null,null,null,"DOM"]
[null,null,null,null,null,null,null,null,null,null,null,null,null,null,null,null,null,null,null,null,null,"DZA","DZA","N","Algeria",null,null,null,null,null,null,null,"DZA"]
[null,null,null,null,null,null,null,null,null,null,null,null,null,null,null,null,null,null,null,null,null,"ECU","ECU","N","Ecuador",null,null,null,null,null,null,null,"ECU"]
[null,null,null,null,null,null,null,null,null,null,null,null,null,null,null,null,null,null,null,null,null,"EGY","EGY •","Y","Egypt",null,null,"15% (note 1)",0.2,null,null,null,"EGY *","1. Exempt if loan guaranteed by UK ECGD."]
[null,null,null,null,null,null,null,null,null,null,null,null,null,null,null,null,null,null,null,null,null,"ERI","ERI","N","Eritrea",null,null,null,null,null,null,null,"ERI"]
[null,null,null,null,null,null,null,null,null,null,null,null,null,null,null,null,null,null,null,null,null,"ESP","ESP •","Y","Spain",null,null,0.12,0.15,null,null,null,"ESP *"]
[null,null,null,null,null,null,null,null,null,null,null,null,null,null,null,null,null,null,null,null,null,"EST","EST •","Y","Estonia",null,null,"10% (note 1)",0.15,null,null,null,"EST *","1.Exempt in certain circumstances (see Art 11 [3]).\n2. 5% on royalties for the use of industrial, commercial or scientific equipment (see Art 12 [2][6])."]
[null,null,null,null,null,null,null,null,null,null,null,null,null,null,null,null,null,null,null,null,null,"ETH","ETH •","Y","Ethiopia",null,null,0.05,0.1,null,null,null,"ETH *","1.DT treaty is effective in both Ethiopia and UK from 1 March 2013 for taxes withheld at source."]
[null,null,null,null,null,null,null,null,null,null,null,null,null,null,null,null,null,null,null,null,null,"FIN","FIN •","Y","Finland",null,null,0,0,null,null,null,"FIN *"]
[null,null,null,null,null,null,null,null,null,null,null,null,null,null,null,null,null,null,null,null,null,"FJI","FJI •","Y","Fiji",null,null,0.1,0.15,null,null,null,"FJI *","1. Zero if copyright royalties (excluding films and television)."]
[null,null,null,null,null,null,null,null,null,null,null,null,null,null,null,null,null,null,null,null,null,"FLK","FLK •","Y","Falkland Islands",null,null,"Nil (note 2)","(note 1)",null,null,null,"FLK *","1.See the Double Taxation Manual at www.hmrc.gov.uk/manuals/index.htm\n2.Exempt if loan guaranteed by UK ECGD."]
[null,null,null,null,null,null,null,null,null,null,null,null,null,null,null,null,null,null,null,null,null,"FRA","FRA •","Y","France",null,null,0,0.15,null,null,null,"FRA *"]
[null,null,null,null,null,null,null,null,null,null,null,null,null,null,null,null,null,null,null,null,null,"FRO","FRO •","Y","Faroe Islands",null,null,0,0.15,null,null,null,"FRO *","1. DT treaty effective in Faroes from 1 January 2009 and in UK from 6 April 2009."]
[null,null,null,null,null,null,null,null,null,null,null,null,null,null,null,null,null,null,null,null,null,"FSM","FSM","N","Micronesia",null,null,null,null,null,null,null,"FSM"]
[null,null,null,null,null,null,null,null,null,null,null,null,null,null,null,null,null,null,null,null,null,"GAB","GAB","N","Gabon",null,null,null,null,null,null,null,"GAB"]
[null,null,null,null,null,null,null,null,null,null,null,null,null,null,null,null,null,null,null,null,null,"GBR","GBR","N","United Kingdom",null,null,null,null,null,null,null,"GBR"]
[null,null,null,null,null,null,null,null,null,null,null,null,null,null,null,null,null,null,null,null,null,"GEO","GEO •","Y","Georgia",null,null,0,0.1,null,null,null,"GEO *"]
[null,null,null,null,null,null,null,null,null,null,null,null,null,null,null,null,null,null,null,null,null,"GGY","GGY •","Y","Guernsey",null,null,"no article","not eligible","not eligible",null,null,"GGY *"]
[null,null,null,null,null,null,null,null,null,null,null,null,null,null,null,null,null,null,null,null,null,"GHA","GHA •","Y","Ghana",null,null,"12.5% (S)",0.15,null,null,null,"GHA *"]
[null,null,null,null,null,null,null,null,null,null,null,null,null,null,null,null,null,null,null,null,null,"GIB","GIB","N","Gibraltar",null,null,null,null,null,null,null,"GIB"]
[null,null,null,null,null,null,null,null,null,null,null,null,null,null,null,null,null,null,null,null,null,"GIN","GIN","N","Guinea",null,null,null,null,null,null,null,"GIN"]
[null,null,null,null,null,null,null,null,null,null,null,null,null,null,null,null,null,null,null,null,null,"GLP","GLP •","Y","Guadeloupe",null,null,null,null,null,null,null,"GLP *"]
[null,null,null,null,null,null,null,null,null,null,null,null,null,null,null,null,null,null,null,null,null,"GMB","GMB •","Y","Gambia",null,null,"15% (S)","not eligible",null,null,null,"GMB *"]
[null,null,null,null,null,null,null,null,null,null,null,null,null,null,null,null,null,null,null,null,null,"GNB","GNB","N","Guinea-Bissau",null,null,null,null,null,null,null,"GNB"]
[null,null,null,null,null,null,null,null,null,null,null,null,null,null,null,null,null,null,null,null,null,"GNQ","GNQ","N","Equatorial Guinea",null,null,null,null,null,null,null,"GNQ"]
[null,null,null,null,null,null,null,null,null,null,null,null,null,null,null,null,null,null,null,null,null,"GRC","GRC •","Y","Greece",null,null,"0% (S)","no article",null,null,null,"GRC *"]
[null,null,null,null,null,null,null,null,null,null,null,null,null,null,null,null,null,null,null,null,null,"GRD","GRD •","Y","Grenada",null,null,"no article","0% (S)","0% (S)",null,null,"GRD *"]
[null,null,null,null,null,null,null,null,null,null,null,null,null,null,null,null,null,null,null,null,null,"GRL","GRL","N","Greenland",null,null,null,null,null,null,null,"GRL"]
[null,null,null,null,null,null,null,null,null,null,null,null,null,null,null,null,null,null,null,null,null,"GTM","GTM","N","Guatemala",null,null,null,null,null,null,null,"GTM"]
[null,null,null,null,null,null,null,null,null,null,null,null,null,null,null,null,null,null,null,null,null,"GUF","GUF •","Y","French Guiana",null,null,null,null,null,null,null,"GUF *"]
[null,null,null,null,null,null,null,null,null,null,null,null,null,null,null,null,null,null,null,null,null,"GUM","GUM","N","Guam",null,null,null,null,null,null,null,"GUM"]
[null,null,null,null,null,null,null,null,null,null,null,null,null,null,null,null,null,null,null,null,null,"GUY","GUY •","Y","Guyana",null,null,"15% (S) (note 1)",0.15,null,null,null,"GUY *","1. Exempt if loan guaranteed by UK ECGD.\n2. A smaller percentage where Guyana Minister of Finance applies Section 39(10) of the Income Tax Act, Chapter 81:01."]
[null,null,null,null,null,null,null,null,null,null,null,null,null,null,null,null,null,null,null,null,null,"HKG","HKG •","Y","Hong Kong (SAR) ",null,null,0,0,null,null,null,"HKG *"]
[null,null,null,null,null,null,null,null,null,null,null,null,null,null,null,null,null,null,null,null,null,"HND","HND","N","Honduras",null,null,null,null,null,null,null,"HND"]
[null,null,null,null,null,null,null,null,null,null,null,null,null,null,null,null,null,null,null,null,null,"HRV","HRV •","Y","Croatia",null,null,0.1,0.15,null,null,null,"HRV *"]
[null,null,null,null,null,null,null,null,null,null,null,null,null,null,null,null,null,null,null,null,null,"HTI","HTI","N","Haiti",null,null,null,null,null,null,null,"HTI"]
[null,null,null,null,null,null,null,null,null,null,null,null,null,null,null,null,null,null,null,null,null,"HUN","HUN •","Y","Hungary",null,null,0,"10% (note 2)",null,null,null,"HUN *","1. New DT treaty effective in Hungary from January 2012. Effective in UK from 1 January 2012 for taxes withheld at source.\n2.The prior treaty rate of 15% applies to the dividends paid before 1 January 2012."]
[null,null,null,null,null,null,null,null,null,null,null,null,null,null,null,null,null,null,null,null,null,"IDN","IDN •","Y","Indonesia",null,null,"10% (S)",0.15,null,null,null,"IDN *","1. 10% on payments for the use of industrial, commercial or scientific equipment (see Art 12 [2][6])."]
[null,null,null,null,null,null,null,null,null,null,null,null,null,null,null,null,null,null,null,null,null,"IMN","IMN •","Y","Isle of Man",null,null,"no article","not eligible","not eligible",null,null,"IMN *"]
[null,null,null,null,null,null,null,null,null,null,null,null,null,null,null,null,null,null,null,null,null,"IND","IND •","Y","India",null,null,0.15,0.15,null,null,null,"IND *","1. Article includes fees for technical services. For first 5 years of Convention, 15% where payer is Government. 15% for all royalties etc. after the 5 years. Some forms of royalty 10% throughout."]
[null,null,null,null,null,null,null,null,null,null,null,null,null,null,null,null,null,null,null,null,null,"IRL","IRL •","Y","Ireland (Republic of)",null,null,0,"15% (note 1)",null,null,null,"IRL *","1. Exempt where paid to a charity, superannuation fund or insurance companies in respect of pension fund business."]
[null,null,null,null,null,null,null,null,null,null,null,null,null,null,null,null,null,null,null,null,null,"IRN","IRN","N","Iran",null,null,null,null,null,null,null,"IRN"]
[null,null,null,null,null,null,null,null,null,null,null,null,null,null,null,null,null,null,null,null,null,"IRQ","IRQ","N","Iraq",null,null,null,null,null,null,null,"IRQ"]
[null,null,null,null,null,null,null,null,null,null,null,null,null,null,null,null,null,null,null,null,null,"ISL","ISL •","Y","Iceland",null,null,0,0.15,null,null,null,"ISL *"]
[null,null,null,null,null,null,null,null,null,null,null,null,null,null,null,null,null,null,null,null,null,"ISR","ISR •","Y","Israel",null,null,"15% (S)","15% (S)",null,null,null,"ISR *","1. See treaty for cinematograph or television royalties."]
[null,null,null,null,null,null,null,null,null,null,null,null,null,null,null,null,null,null,null,null,null,"ITA","ITA •","Y","Italy",null,null,0.1,"15% (S)",null,null,null,"ITA *"]
[null,null,null,null,null,null,null,null,null,null,null,null,null,null,null,null,null,null,null,null,null,"JAM","JAM •","Y","Jamaica",null,null,"12.5% (note 1)",0.15,null,null,null,"JAM *","1. Exempt if loan guaranteed by UK ECGD."]
[null,null,null,null,null,null,null,null,null,null,null,null,null,null,null,null,null,null,null,null,null,"JEY","JEY •","Y","Jersey",null,null,"no article","not eligible","not eligible",null,null,"JEY *"]
[null,null,null,null,null,null,null,null,null,null,null,null,null,null,null,null,null,null,null,null,null,"JOR","JOR •","Y","Jordan",null,null,0.1,0.1,null,null,null,"JOR *"]
[null,null,null,null,null,null,null,null,null,null,null,null,null,null,null,null,null,null,null,null,null,"JPN","JPN •","Y","Japan",null,null,0.1,0.1,null,null,null,"JPN *"]
[null,null,null,null,null,null,null,null,null,null,null,null,null,null,null,null,null,null,null,null,null,"KAZ","KAZ •","Y","Kazakhstan",null,null,"10% (note 1)",0.15,null,null,null,"KAZ *","1. Exempt if loan Guaranteed by UK ECGD.\n2. Unless election is made for net profit basis."]
[null,null,null,null,null,null,null,null,null,null,null,null,null,null,null,null,null,null,null,null,null,"KEN","KEN •","Y","Kenya",null,null,"15% (S)","15% (S)",null,null,null,"KEN *"]
[null,null,null,null,null,null,null,null,null,null,null,null,null,null,null,null,null,null,null,null,null,"KGZ","KGZ","N","Kyrgyzstan ",null,null,null,null,null,null,null,"KGZ"]
[null,null,null,null,null,null,null,null,null,null,null,null,null,null,null,null,null,null,null,null,null,"KHM","KHM","N","Cambodia",null,null,null,null,null,null,null,"KHM"]
[null,null,null,null,null,null,null,null,null,null,null,null,null,null,null,null,null,null,null,null,null,"KIR","KIR •","Y","Kiribati",null,null,"no article","not eligible","not eligible",null,null,"KIR *"]
[null,null,null,null,null,null,null,null,null,null,null,null,null,null,null,null,null,null,null,null,null,"KNA","KNA •","Y","St. Kitts and Nevis",null,null,"no article","0% (S)","0% (S)",null,null,"KNA *"]
[null,null,null,null,null,null,null,null,null,null,null,null,null,null,null,null,null,null,null,null,null,"KOR","KOR •","Y","South Korea",null,null,"10% (note 1)",0.15,null,null,null,"KOR *","1. Exempt if loan Guaranteed by UK ECGD."]
[null,null,null,null,null,null,null,null,null,null,null,null,null,null,null,null,null,null,null,null,null,"KWT","KWT •","Y","Kuwait",null,null,0,0.15,null,null,null,"KWT *"]
[null,null,null,null,null,null,null,null,null,null,null,null,null,null,null,null,null,null,null,null,null,"LAO","LAO","N","Laos",null,null,null,null,null,null,null,"LAO"]
[null,null,null,null,null,null,null,null,null,null,null,null,null,null,null,null,null,null,null,null,null,"LBN","LBN","N","Lebanon",null,null,null,null,null,null,null,"LBN"]
[null,null,null,null,null,null,null,null,null,null,null,null,null,null,null,null,null,null,null,null,null,"LBR","LBR","N","Liberia",null,null,null,null,null,null,null,"LBR"]
[null,null,null,null,null,null,null,null,null,null,null,null,null,null,null,null,null,null,null,null,null,"LBY","LBY •","Y","Libya",null,null,0,0,null,null,null,"LBY *","1. New DT treaty effective in Libya from 1 January 2011. effective in UK from 6 April 2010."]
[null,null,null,null,null,null,null,null,null,null,null,null,null,null,null,null,null,null,null,null,null,"LCA","LCA","N","St. Lucia",null,null,null,null,null,null,null,"LCA"]
[null,null,null,null,null,null,null,null,null,null,null,null,null,null,null,null,null,null,null,null,null,"LIE","LIE •","Y","Liechtenstein",null,null,0,0,null,null,null,"LIE *","1. DT treaty is effective in both Liechtenstein and UK from 1 February 2013 for taxes withheld at source."]
[null,null,null,null,null,null,null,null,null,null,null,null,null,null,null,null,null,null,null,null,null,"LKA","LKA •","Y","Sri Lanka",null,null,"10% (note 1)","no limitation",null,null,null,"LKA *","1. Only reduced to this rate where paid on loan, etc. made after 21 June 1989.\n2. Only reduced to this rate where rights are granted after 21 June 1989."]
[null,null,null,null,null,null,null,null,null,null,null,null,null,null,null,null,null,null,null,null,null,"LSO","LSO •","Y","Lesotho",null,null,"no article","0% (S)",null,null,null,"LSO *"]
[null,null,null,null,null,null,null,null,null,null,null,null,null,null,null,null,null,null,null,null,null,"LTU","LTU •","Y","Lithuania",null,null,"10% (note 1)",0.15,null,null,null,"LTU *","1. Exempt in certain circumstances(see Art 12[2][6]).\n2. 5% on royalties for the use of industrial, commercial or scientific equipment (see Art 12[2][6])."]
[null,null,null,null,null,null,null,null,null,null,null,null,null,null,null,null,null,null,null,null,null,"LUX","LUX •","Y","Luxembourg",null,null,0,0.15,null,null,null,"LUX *"]
[null,null,null,null,null,null,null,null,null,null,null,null,null,null,null,null,null,null,null,null,null,"LVA","LVA •","Y","Latvia",null,null,"10% (note 1)",0.15,null,null,null,"LVA *","Exempt if loan guaranteed by UK ECGD or Bank of England."]
[null,null,null,null,null,null,null,null,null,null,null,null,null,null,null,null,null,null,null,null,null,"MAC","MAC","N","Macao (SAR)",null,null,null,null,null,null,null,"MAC"]
[null,null,null,null,null,null,null,null,null,null,null,null,null,null,null,null,null,null,null,null,null,"MAR","MAR •","Y","Morocco",null,null,0.1,0.25,null,null,null,"MAR *"]
[null,null,null,null,null,null,null,null,null,null,null,null,null,null,null,null,null,null,null,null,null,"MCO","MCO","N","Monaco",null,null,null,null,null,null,null,"MCO"]
[null,null,null,null,null,null,null,null,null,null,null,null,null,null,null,null,null,null,null,null,null,"MDA","MDA •","Y","Moldova",null,null,"5% (note 1)",0.1,null,null,null,"MDA *","1. Exempt in certain circumstances (see Art 11[2])."]
[null,null,null,null,null,null,null,null,null,null,null,null,null,null,null,null,null,null,null,null,null,"MDG","MDG","N","Madagascar",null,null,null,null,null,null,null,"MDG"]
[null,null,null,null,null,null,null,null,null,null,null,null,null,null,null,null,null,null,null,null,null,"MDV","MDV","N","Maldives",null,null,null,null,null,null,null,"MDV"]
[null,null,null,null,null,null,null,null,null,null,null,null,null,null,null,null,null,null,null,null,null,"MEX","MEX •","Y","Mexico",null,null,"15% (note 1)",0,null,null,null,"MEX *","1. A lower rate or exemption will apply in certain circumstances (see Art 11[2])."]
[null,null,null,null,null,null,null,null,null,null,null,null,null,null,null,null,null,null,null,null,null,"MHL","MHL","N","Marshall Islands",null,null,null,null,null,null,null,"MHL"]
[null,null,null,null,null,null,null,null,null,null,null,null,null,null,null,null,null,null,null,null,null,"MKD","MKD •","Y","Macedonia (FYR)",null,null,0.1,0.15,null,null,null,"MKD *"]
[null,null,null,null,null,null,null,null,null,null,null,null,null,null,null,null,null,null,null,null,null,"MLI","MLI","N","Mali",null,null,null,null,null,null,null,"MLI"]
[null,null,null,null,null,null,null,null,null,null,null,null,null,null,null,null,null,null,null,null,null,"MLT","MLT •","Y","Malta",null,null,"10% (S)","not eligible",null,null,null,"MLT *"]
[null,null,null,null,null,null,null,null,null,null,null,null,null,null,null,null,null,null,null,null,null,"MMR","MMR •","Y","Burma (also known as Myanmar)",null,null,"no article","0% (S)",null,null,null,"MMR *"]
[null,null,null,null,null,null,null,null,null,null,null,null,null,null,null,null,null,null,null,null,null,"MNE","MNE •","Y","Montenegro",null,null,0.1,0.15,null,null,null,"MNE *"]
[null,null,null,null,null,null,null,null,null,null,null,null,null,null,null,null,null,null,null,null,null,"MNG","MNG •","Y","Mongolia",null,null,0.1,0.15,null,null,null,"MNG *"]
[null,null,null,null,null,null,null,null,null,null,null,null,null,null,null,null,null,null,null,null,null,"MNP","MNP","N","Northern Mariana Islands",null,null,null,null,null,null,null,"MNP"]
[null,null,null,null,null,null,null,null,null,null,null,null,null,null,null,null,null,null,null,null,null,"MOZ","MOZ","N","Mozambique",null,null,null,null,null,null,null,"MOZ"]
[null,null,null,null,null,null,null,null,null,null,null,null,null,null,null,null,null,null,null,null,null,"MRT","MRT","N","Mauritania",null,null,null,null,null,null,null,"MRT"]
[null,null,null,null,null,null,null,null,null,null,null,null,null,null,null,null,null,null,null,null,null,"MSR","MSR •","Y","Montserrat",null,null,"no article","not eligible",null,null,null,"MSR *"]
[null,null,null,null,null,null,null,null,null,null,null,null,null,null,null,null,null,null,null,null,null,"MTQ","MTQ •","Y","Martinique",null,null,null,null,null,null,null,"MTQ *"]
[null,null,null,null,null,null,null,null,null,null,null,null,null,null,null,null,null,null,null,null,null,"MUS","MUS •","Y","Mauritius",null,null,"No limit'n note1",0.15,null,null,null,"MUS *","1. Exempt when paid to UK banks."]
[null,null,null,null,null,null,null,null,null,null,null,null,null,null,null,null,null,null,null,null,null,"MWI","MWI •","Y","Malawi",null,null,"0% (S)","0% (S)","0% (S)",null,null,"MWI *"]
[null,null,null,null,null,null,null,null,null,null,null,null,null,null,null,null,null,null,null,null,null,"MYS","MYS •","Y","Malaysia",null,null,"10% (S) (note 1)","not eligible",null,null,null,"MYS *","1. Exempt if an approved loan (see Art 11)."]
[null,null,null,null,null,null,null,null,null,null,null,null,null,null,null,null,null,null,null,null,null,"MYT","MYT","N","Mayotte",null,null,null,null,null,null,null,"MYT"]
[null,null,null,null,null,null,null,null,null,null,null,null,null,null,null,null,null,null,null,null,null,"NAM","NAM •","Y","Namibia",null,null,0.2,0.15,null,null,null,"NAM *","1. Copyright royalties only. Other royalties: the lesser of 5% and one half of tax that would otherwise be charged."]
[null,null,null,null,null,null,null,null,null,null,null,null,null,null,null,null,null,null,null,null,null,"NCL","NCL","N","New Caledonia",null,null,null,null,null,null,null,"NCL"]
[null,null,null,null,null,null,null,null,null,null,null,null,null,null,null,null,null,null,null,null,null,"NER","NER","N","Niger",null,null,null,null,null,null,null,"NER"]
[null,null,null,null,null,null,null,null,null,null,null,null,null,null,null,null,null,null,null,null,null,"NFK","NFK •","Y","Norfolk Island",null,null,null,null,null,null,null,"NFK *"]
[null,null,null,null,null,null,null,null,null,null,null,null,null,null,null,null,null,null,null,null,null,"NGA","NGA •","Y","Nigeria",null,null,"12.5% (S)","15% (S)",null,null,null,"NGA *"]
[null,null,null,null,null,null,null,null,null,null,null,null,null,null,null,null,null,null,null,null,null,"NIC","NIC","N","Nicaragua",null,null,null,null,null,null,null,"NIC"]
[null,null,null,null,null,null,null,null,null,null,null,null,null,null,null,null,null,null,null,null,null,"NIU","NIU","N","Niue",null,null,null,null,null,null,null,"NIU"]
[null,null,null,null,null,null,null,null,null,null,null,null,null,null,null,null,null,null,null,null,null,"NLD","NLD •","Y","Netherlands",null,null,0,"10% (note 1)",null,null,null,"NLD *","1. 15% if dividends paid by a Property Authorised Investment Fund."]
[null,null,null,null,null,null,null,null,null,null,null,null,null,null,null,null,null,null,null,null,null,"NOR","NOR •","Y","Norway",null,null,0,0.15,null,null,null,"NOR *"]
[null,null,null,null,null,null,null,null,null,null,null,null,null,null,null,null,null,null,null,null,null,"NPL","NPL","N","Nepal",null,null,null,null,null,null,null,"NPL"]
[null,null,null,null,null,null,null,null,null,null,null,null,null,null,null,null,null,null,null,null,null,"NRU","NRU","N","Nauru",null,null,null,null,null,null,null,"NRU"]
[null,null,null,null,null,null,null,null,null,null,null,null,null,null,null,null,null,null,null,null,null,"NZL","NZL •","Y","New Zealand",null,null,0.1,0.15,null,null,null,"NZL *"]
[null,null,null,null,null,null,null,null,null,null,null,null,null,null,null,null,null,null,null,null,null,"OMN","OMN •","Y","Oman",null,null,0,0.1,null,null,null,"OMN *","1. DT treaty amended by Protocol, effective in both Oman and UK for taxes withheld at source from January 2012.\n2. The prior treaty rate of Zero (S) applies to royalties paid before 1 January 2012."]
[null,null,null,null,null,null,null,null,null,null,null,null,null,null,null,null,null,null,null,null,null,"PAK","PAK •","Y","Pakistan",null,null,0.15,"20% (note 1)",null,null,null,"PAK *","1. See the Double Taxation Manual, DT14956 and Art 10 at www.hmrc.gov.uk/manuals/index.htm"]
[null,null,null,null,null,null,null,null,null,null,null,null,null,null,null,null,null,null,null,null,null,"PAN","PAN","N","Panama",null,null,null,null,null,null,null,"PAN"]
[null,null,null,null,null,null,null,null,null,null,null,null,null,null,null,null,null,null,null,null,null,"PCN","PCN","N","Pitcairn Island",null,null,null,null,null,null,null,"PCN"]
[null,null,null,null,null,null,null,null,null,null,null,null,null,null,null,null,null,null,null,null,null,"PER","PER","N","Peru",null,null,null,null,null,null,null,"PER"]
[null,null,null,null,null,null,null,null,null,null,null,null,null,null,null,null,null,null,null,null,null,"PHL","PHL •","Y","Philippines",null,null,"15% (note 1)",0.25,null,null,null,"PHL *","1. 10% where paid by public issue bond etc. Exempt where loan is guaranteed by a UK government agency.\n2. 15% on royalties for films, television or radio."]
[null,null,null,null,null,null,null,null,null,null,null,null,null,null,null,null,null,null,null,null,null,"PLW","PLW","N","Palau",null,null,null,null,null,null,null,"PLW"]
[null,null,null,null,null,null,null,null,null,null,null,null,null,null,null,null,null,null,null,null,null,"PNG","PNG •","Y","Papua New Guinea",null,null,0.1,0.17,null,null,null,"PNG *"]
[null,null,null,null,null,null,null,null,null,null,null,null,null,null,null,null,null,null,null,null,null,"POL","POL •","Y","Poland",null,null,0.05,0.1,null,null,null,"POL *"]
[null,null,null,null,null,null,null,null,null,null,null,null,null,null,null,null,null,null,null,null,null,"PRI","PRI","N","Puerto Rico",null,null,null,null,null,null,null,"PRI"]
[null,null,null,null,null,null,null,null,null,null,null,null,null,null,null,null,null,null,null,null,null,"PRK","PRK","N","North Korea",null,null,null,null,null,null,null,"PRK"]
[null,null,null,null,null,null,null,null,null,null,null,null,null,null,null,null,null,null,null,null,null,"PRT","PRT •","Y","Portugal",null,null,"10% (S)",0.15,null,null,null,"PRT *"]
[null,null,null,null,null,null,null,null,null,null,null,null,null,null,null,null,null,null,null,null,null,"PRY","PRY","N","Paraguay",null,null,null,null,null,null,null,"PRY"]
[null,null,null,null,null,null,null,null,null,null,null,null,null,null,null,null,null,null,null,null,null,"PYF","PYF","N","French Polynesia",null,null,null,null,null,null,null,"PYF"]
[null,null,null,null,null,null,null,null,null,null,null,null,null,null,null,null,null,null,null,null,null,"QAT","QAT •","Y","Qatar",null,null,0,0,null,null,null,"QAT *","1. New DT treaty effective in Qatar from 1 January 2011. Effective in UK from 1 January 2011 for taxes withheld at source."]
[null,null,null,null,null,null,null,null,null,null,null,null,null,null,null,null,null,null,null,null,null,"REU","REU •","Y","Reunion",null,null,null,null,null,null,null,"REU *"]
[null,null,null,null,null,null,null,null,null,null,null,null,null,null,null,null,null,null,null,null,null,"ROU","ROU •","Y","Romania",null,null,0.1,0.15,null,null,null,"ROU *","1. 10% on copyright royalties\n2. Rate applies to commissions. See the Double Taxation Manual, DT16054 at www.hmrc.gov.uk/manuals/index.htm"]
[null,null,null,null,null,null,null,null,null,null,null,null,null,null,null,null,null,null,null,null,null,"RUS","RUS •","Y","Russian Federation",null,null,0,"10% (S)",null,null,null,"RUS *"]
[null,null,null,null,null,null,null,null,null,null,null,null,null,null,null,null,null,null,null,null,null,"RWA","RWA","N","Rwanda",null,null,null,null,null,null,null,"RWA"]
[null,null,null,null,null,null,null,null,null,null,null,null,null,null,null,null,null,null,null,null,null,"SAU","SAU •","Y","Saudi Arabia",null,null,"0% (note 2)",0.05,null,null,null,"SAU *","1. DT treaty effective in Saudi Arabia from 1 January 2010 and in UK from 6 April 2010.\n2. Income from debt claims.\n3. 5% for royalties paid for the use of or the right to use, industrial, commercial, or scientific equipment, 8% in all other cases."]
[null,null,null,null,null,null,null,null,null,null,null,null,null,null,null,null,null,null,null,null,null,"SDN","SDN •","Y","Sudan",null,null,"15% (S)","15% (note 1)",null,null,null,"SDN *","1. Exempt if the dividends are exempt under Sudan law when paid to non-residents."]
[null,null,null,null,null,null,null,null,null,null,null,null,null,null,null,null,null,null,null,null,null,"SEN","SEN","N","Senegal",null,null,null,null,null,null,null,"SEN"]
[null,null,null,null,null,null,null,null,null,null,null,null,null,null,null,null,null,null,null,null,null,"SGP","SGP •","Y","Singapore",null,null,0.1,"not eligible (note 1)",null,null,null,"SGP *","1. Treaty allows for 15% but there are currently no withholding taxes on dividends."]
[null,null,null,null,null,null,null,null,null,null,null,null,null,null,null,null,null,null,null,null,null,"SHN","SHN","N","St. Helena and Dependencies",null,null,null,null,null,null,null,"SHN"]
[null,null,null,null,null,null,null,null,null,null,null,null,null,null,null,null,null,null,null,null,null,"SJM","SJM","N","Svalbard and Jan Mayen Islands",null,null,null,null,null,null,null,"SJM"]
[null,null,null,null,null,null,null,null,null,null,null,null,null,null,null,null,null,null,null,null,null,"SLB","SLB •","Y","Solomon Islands",null,null,"no article","0% (S)","0% (S)",null,null,"SLB *"]
[null,null,null,null,null,null,null,null,null,null,null,null,null,null,null,null,null,null,null,null,null,"SLE","SLE •","Y","Sierra Leone",null,null,"no article","0% (S)","0% (S)",null,null,"SLE *"]
[null,null,null,null,null,null,null,null,null,null,null,null,null,null,null,null,null,null,null,null,null,"SLV","SLV","N","El Salvador",null,null,null,null,null,null,null,"SLV"]
[null,null,null,null,null,null,null,null,null,null,null,null,null,null,null,null,null,null,null,null,null,"SMR","SMR","N","San Marino",null,null,null,null,null,null,null,"SMR"]
[null,null,null,null,null,null,null,null,null,null,null,null,null,null,null,null,null,null,null,null,null,"SOM","SOM","N","Somalia",null,null,null,null,null,null,null,"SOM"]
[null,null,null,null,null,null,null,null,null,null,null,null,null,null,null,null,null,null,null,null,null,"SPM","SPM","N","St. Pierre and Miquelon",null,null,null,null,null,null,null,"SPM"]
[null,null,null,null,null,null,null,null,null,null,null,null,null,null,null,null,null,null,null,null,null,"SRB","SRB •","Y","Serbia",null,null,0.1,0.15,null,null,null,"SRB *"]
[null,null,null,null,null,null,null,null,null,null,null,null,null,null,null,null,null,null,null,null,null,"SSD","SSD","N","South Sudan",null,null,null,null,null,null,null,"SSD"]
[null,null,null,null,null,null,null,null,null,null,null,null,null,null,null,null,null,null,null,null,null,"STP","STP","N","Sao Tome and Principe",null,null,null,null,null,null,null,"STP"]
[null,null,null,null,null,null,null,null,null,null,null,null,null,null,null,null,null,null,null,null,null,"SUR","SUR","N","Suriname",null,null,null,null,null,null,null,"SUR"]
[null,null,null,null,null,null,null,null,null,null,null,null,null,null,null,null,null,null,null,null,null,"SVK","SVK •","Y","Slovak Republic",null,null,0,0.15,null,null,null,"SVK *","1. Zero on copyright royalties (see Art (12[3][6])."]
[null,null,null,null,null,null,null,null,null,null,null,null,null,null,null,null,null,null,null,null,null,"SVN","SVN •","Y","Slovenia",null,null,0.05,0.15,null,null,null,"SVN *"]
[null,null,null,null,null,null,null,null,null,null,null,null,null,null,null,null,null,null,null,null,null,"SWE","SWE •","Y","Sweden",null,null,0,0.05,null,null,null,"SWE *"]
[null,null,null,null,null,null,null,null,null,null,null,null,null,null,null,null,null,null,null,null,null,"SWZ","SWZ •","Y","Swaziland",null,null,"no article",0.15,null,null,null,"SWZ *"]
[null,null,null,null,null,null,null,null,null,null,null,null,null,null,null,null,null,null,null,null,null,"SXM","SXM •","Y","Sint Maarten (Dutch part)",null,null,null,null,null,null,null,"SXM *"]
[null,null,null,null,null,null,null,null,null,null,null,null,null,null,null,null,null,null,null,null,null,"SYC","SYC","N","Seychelles",null,null,null,null,null,null,null,"SYC"]
[null,null,null,null,null,null,null,null,null,null,null,null,null,null,null,null,null,null,null,null,null,"SYR","SYR","N","Syria",null,null,null,null,null,null,null,"SYR"]
[null,null,null,null,null,null,null,null,null,null,null,null,null,null,null,null,null,null,null,null,null,"TCA","TCA","N","Turks and Caicos Islands",null,null,null,null,null,null,null,"TCA"]
[null,null,null,null,null,null,null,null,null,null,null,null,null,null,null,null,null,null,null,null,null,"TCD","TCD","N","Chad",null,null,null,null,null,null,null,"TCD"]
[null,null,null,null,null,null,null,null,null,null,null,null,null,null,null,null,null,null,null,null,null,"TGO","TGO","N","Togo",null,null,null,null,null,null,null,"TGO"]
[null,null,null,null,null,null,null,null,null,null,null,null,null,null,null,null,null,null,null,null,null,"THA","THA •","Y","Thailand",null,null,"25% (note 2)","20% (note 1)",null,null,null,"THA *","1. Rate only applies to a dividend from a company carrying on an industrial undertaking.\n2. 10% if paid to a financial institution.\n3. 15% on patent royalties."]
[null,null,null,null,null,null,null,null,null,null,null,null,null,null,null,null,null,null,null,null,null,"TJK","TJK •","Y","Tajikistan",null,null,0,0,null,null,null,"TJK *"]
[null,null,null,null,null,null,null,null,null,null,null,null,null,null,null,null,null,null,null,null,null,"TKL","TKL","N","Tokelau",null,null,null,null,null,null,null,"TKL"]
[null,null,null,null,null,null,null,null,null,null,null,null,null,null,null,null,null,null,null,null,null,"TKM","TKM •","Y","Turkmenistan",null,null,0,0,null,null,null,"TKM *"]
[null,null,null,null,null,null,null,null,null,null,null,null,null,null,null,null,null,null,null,null,null,"TLS","TLS","N","Timor-Leste",null,null,null,null,null,null,null,"TLS"]
[null,null,null,null,null,null,null,null,null,null,null,null,null,null,null,null,null,null,null,null,null,"TON","TON","N","Tonga",null,null,null,null,null,null,null,"TON"]
[null,null,null,null,null,null,null,null,null,null,null,null,null,null,null,null,null,null,null,null,null,"TTO","TTO •","Y","Trinidad and Tobago",null,null,0.1,0.2,null,null,null,"TTO *","1. Copyright royalties are exempt."]
[null,null,null,null,null,null,null,null,null,null,null,null,null,null,null,null,null,null,null,null,null,"TUN","TUN •","Y","Tunisia",null,null,0.12,0.2,null,null,null,"TUN *"]
[null,null,null,null,null,null,null,null,null,null,null,null,null,null,null,null,null,null,null,null,null,"TUR","TUR •","Y","Turkey",null,null,0.15,0.2,null,null,null,"TUR *"]
[null,null,null,null,null,null,null,null,null,null,null,null,null,null,null,null,null,null,null,null,null,"TUV","TUV •","Y","Tuvalu",null,null,"no article","0% (S)","0% (S)",null,null,"TUV *"]
[null,null,null,null,null,null,null,null,null,null,null,null,null,null,null,null,null,null,null,null,null,"TWN","TWN •","Y","Taiwan",null,null,"10% (S)","10% (S)",null,null,null,"TWN *"]
[null,null,null,null,null,null,null,null,null,null,null,null,null,null,null,null,null,null,null,null,null,"TZA","TZA","N","Tanzania",null,null,null,null,null,null,null,"TZA"]
[null,null,null,null,null,null,null,null,null,null,null,null,null,null,null,null,null,null,null,null,null,"UGA","UGA •","Y","Uganda",null,null,0.15,0.15,null,null,null,"UGA *"]
[null,null,null,null,null,null,null,null,null,null,null,null,null,null,null,null,null,null,null,null,null,"UKR","UKR •","Y","Ukraine",null,null,"0% (S)","10% (S)",null,null,null,"UKR *"]
[null,null,null,null,null,null,null,null,null,null,null,null,null,null,null,null,null,null,null,null,null,"URY","URY","N","Uruguay",null,null,null,null,null,null,null,"URY"]
[null,null,null,null,null,null,null,null,null,null,null,null,null,null,null,null,null,null,null,null,null,"USA","USA •","Y","United States of America",null,null,0,0.15,null,null,null,"USA *"]
[null,null,null,null,null,null,null,null,null,null,null,null,null,null,null,null,null,null,null,null,null,"UZB","UZB •","Y","Uzbekistan",null,null,0.05,0.1,null,null,null,"UZB *"]
[null,null,null,null,null,null,null,null,null,null,null,null,null,null,null,null,null,null,null,null,null,"VAT","VAT","N","Vatican",null,null,null,null,null,null,null,"VAT"]
[null,null,null,null,null,null,null,null,null,null,null,null,null,null,null,null,null,null,null,null,null,"VCT","VCT","N","St. Vincent and the Grenadines",null,null,null,null,null,null,null,"VCT"]
[null,null,null,null,null,null,null,null,null,null,null,null,null,null,null,null,null,null,null,null,null,"VEN","VEN •","Y","Venezuela",null,null,"5% (note 1)",0.1,null,null,null,"VEN *","1. Exempt if paid on a loan guaranteed by UK ECGD."]
[null,null,null,null,null,null,null,null,null,null,null,null,null,null,null,null,null,null,null,null,null,"VGB","VGB •","Y","British Virgin Islands",null,null,"0% (note 2)","0% (note 2)","not eligible",null,null,"VGB *","1. DTA effective in UK from 6 April 2011.\n2. DTA does not include provisions relieving dividends,\ninterest or royalties."]
[null,null,null,null,null,null,null,null,null,null,null,null,null,null,null,null,null,null,null,null,null,"VIR","VIR","N","United States Virgin Islands",null,null,null,null,null,null,null,"VIR"]
[null,null,null,null,null,null,null,null,null,null,null,null,null,null,null,null,null,null,null,null,null,"VNM","VNM •","Y","Vietnam",null,null,"10% (S)",0.15,null,null,null,"VNM *"]
[null,null,null,null,null,null,null,null,null,null,null,null,null,null,null,null,null,null,null,null,null,"VUT","VUT","N","Vanuatu",null,null,null,null,null,null,null,"VUT"]
[null,null,null,null,null,null,null,null,null,null,null,null,null,null,null,null,null,null,null,null,null,"WLF","WLF","N","Wallis and Futuna Islands",null,null,null,null,null,null,null,"WLF"]
[null,null,null,null,null,null,null,null,null,null,null,null,null,null,null,null,null,null,null,null,null,"WSM","WSM","N","Samoa",null,null,null,null,null,null,null,"WSM"]
[null,null,null,null,null,null,null,null,null,null,null,null,null,null,null,null,null,null,null,null,null,"YEM","YEM","N","Yemen",null,null,null,null,null,null,null,"YEM"]
[null,null,null,null,null,null,null,null,null,null,null,null,null,null,null,null,null,null,null,null,null,"ZAF","ZAF •","Y","South Africa",null,null,"0% (S)",0.15,null,null,null,"ZAF *"]
[null,null,null,null,null,null,null,null,null,null,null,null,null,null,null,null,null,null,null,null,null,"ZMB","ZMB •","Y","Zambia",null,null,"10% (S)","15% (S)",null,null,null,"ZMB *"]
[null,null,null,null,null,null,null,null,null,null,null,null,null,null,null,null,null,null,null,null,null,"ZWE","ZWE •","Y","Zimbabwe",null,null,"10% (S) (note 1)",0.2,null,null,null,"ZWE *","1. Exempt if paid on a loan guaranteed by UK ECGD."]
[null,null,null,null,null,null,null,null,null,null,null,null,null,null,null,null,null,null,null,null,null,"ZZZ","ZZZ","N","None of the above ",null,null,null,null,null,null,null,"ZZZ"]

{"sheet":"Multi-foreign-gains","index":47,"n_rows":22,"n_cols":17,"rows_kept":22,"cut":false,"hidden":true,"merged":[]}
[]
[]
[null,"Multiple gains on foreign life policies "]
[]
[null,null,{"$f":"FOR!K42","v":43},"Gains on life policies",null,{"$f":"FOR!$O$35","v":44},"Number of years",null,{"$f":"FOR!O39","v":45},"UK tax treated as paid",null,null,null,null,"No of Gains","No of years","sliced gain"]
[null,null,null,null,null,null,null,null,null,null,null,null,null,null,{"$f":"IF(D6>0,1,0)","v":0},{"$f":"MAX(G6,1)","v":1},{"$f":"TRUNC(D6/P6,0)","v":0}]
[null,null,null,null,null,null,null,null,null,null,null,null,null,null,0,1,0]
[null,null,null,null,null,null,null,null,null,null,null,null,null,null,0,1,0]
[null,null,null,null,null,null,null,null,null,null,null,null,null,null,0,1,0]
[null,null,null,null,null,null,null,null,null,null,null,null,null,null,0,1,0]
[null,null,null,null,null,null,null,null,null,null,null,null,null,null,0,1,0]
[null,null,null,null,null,null,null,null,null,null,null,null,null,null,0,1,0]
[null,null,null,null,null,null,null,null,null,null,null,null,null,null,0,1,0]
[null,null,null,null,null,null,null,null,null,null,null,null,null,null,0,1,0]
[null,null,null,null,null,null,null,null,null,null,null,null,null,null,0,1,0]
[null,null,null,{"$f":"SUM(D6:D15)","v":0},null,null,null,null,null,{"$f":"SUM(J6:J15)","v":0},null,null,null,null,{"$f":"SUM(O6:O15)","v":0},{"$f":"SUM(G6:G15)","v":0},{"$f":"SUM(Q6:Q15)","v":0}]
[]
[]
[]
[]
[null,null,null,null,null,null,null,null,"1A","LDC 'CEG Amount'"]
[null,null,null,null,null,null,null,null,null,{"$f":"IF(total_all_gains,'TSR (c17)'!M101,\"\")","v":""}]

{"sheet":"TRU","index":48,"n_rows":43,"n_cols":17,"rows_kept":43,"cut":false,"hidden":true,"merged":[]}
["TRU"]
[null,null,"Trusts etc.",null,null,null,null,null,null,"TRU",null,null,null,null,null,null,"TRU"]
[null,null,"Income from trusts and settlements",null,null,null,null,null,null,null,"Income from the estates of deceased persons"]
[1,null,"Discretionary income payment from a trust",null,null,null,null,null,null,null,"Income from United Kingdom (UK) estates"]
[2,null,null,null,null,null,null,"Total payments from",null,null,null,"Non-savings income ",null,null,null,"Non-savings income taxed at non-repayable"]
[3,null,{"$f":"A4","v":1},"Net amount - after tax taken off",null,null,{"$f":"A5","v":2},"settlor-interested trusts",null,null,{"$f":"A18","v":16},"- after tax taken off",null,null,{"$f":"A22","v":19},"basic rate - after tax taken off"]
[4]
[5]
[7,null,"Non-discretionary income from a trust "]
[8,null,null,"Net amount of non-savings income",null,null,null,"Net amount of dividend",null,null,null,"Savings income "]
[9,null,{"$f":"A6","v":3},"- after tax taken off",null,null,{"$f":"A8","v":5},"income - after tax taken off",null,null,{"$f":"A19","v":17},"- after tax taken off"]
[10]
[11]
[12,null,null,"Net amount of savings income",null,null,null,null,null,null,null,"Dividend income"]
[13,null,{"$f":"A7","v":4},"- after tax taken off",null,null,null,null,null,null,{"$f":"A20","v":18},"- after tax taken off"]
[14]
[15]
[16,null,"Income chargeable on settlors"]
[17,null,null,"Net amount of non-savings income",null,null,null,"Net amount of savings income",null,null,null,"Dividend income taxed at 7.5%"]
[18,null,{"$f":"A9","v":7},"taxed at basic rate - after tax taken off",null,null,{"$f":"A13","v":11},"taxed at trust rate - after tax taken off",null,null,{"$f":"A21","v":18.100000000000001},"- after tax taken off"]
[18.100000000000001]
[19]
[20,null,null,"Net amount of savings income",null,null,null,"Net amount of dividend income",null,null,"Income from foreign estates",null,null,null,null,"Relief for UK tax "]
[21,null,{"$f":"A10","v":8},"taxed at basic rate - after tax taken off",null,null,{"$f":"A14","v":12},"taxed at dividend trust rate - after tax taken off",null,null,{"$f":"A25","v":22},"Foreign estate income",null,null,{"$f":"A27","v":23},"already accounted for"]
[22]
[22.1]
[23,null,null,"Net amount of dividend income"]
[24,null,{"$f":"A11","v":9},"taxed at dividend rate - after tax taken off",null,null,{"$f":"A15","v":13},"Non-savings income paid gross",null,null,{"$f":"A26","v":22.1},"Amount claimed under the Foreign Income and Gains (FIG) Regime"]
[25]
[25.1]
[26,null,null,"Net amount of non-savings income"]
[null,null,{"$f":"A12","v":10},"taxed at trust rate - after tax taken off",null,null,{"$f":"A16","v":14},"Savings income paid gross"]
[null,null,null,null,null,null,null,null,null,null,"Foreign tax paid on estate income"]
[null,null,null,null,null,null,null,null,null,null,null,"Foreign tax for which Foreign Tax Credit Relief"]
[null,null,null,null,null,null,null,"Additional tax paid by the trustees on",null,null,{"$f":"A28","v":24},"has not been claimed"]
[null,null,null,null,null,null,{"$f":"A17","v":15},"certain UK life insurance policy etc gains"]
[]
[]
[null,null,null,null,null,null,null,null,null,null,"residential property income"]
[null,null,null,null,null,null,null,null,null,null,{"$f":"A29","v":25},"Residential propery income or restricted finance costs"]
[]
[]
[null,null,null,null,null,null,null,null,null,null,null,null,null,null,{"$f":"A30","v":25.1},"Unused Relief for residential finance costs"]

{"sheet":"NRD","index":49,"n_rows":22,"n_cols":18,"rows_kept":22,"cut":false,"hidden":true,"merged":[]}
["NRD",null,null,null,null,null,null,null,null,null,null,null,null,null,200]
[1,null,"Residence, Remittance Basis etc.",null,null,null,{"$f":"NRD","v":"NRD"},null,null,null,null,null,"NRD"]
[15]
[16,null,"Residence Status",null,null,null,null,"Foreign Income and Gains Regime",null,null,null,null,null,null,null,{"$f":"\"box_\"&NRD&C5","v":"box_NRD1"},false]
[20,null,{"$f":"A2","v":1},"Not resident in UK for return year",null,null,null,{"$f":"NRD!A8","v":28},"Claim for foreign income relief",null,null,null,null,null,null,"Resident",{"$f":"NOT(box_NRD1)","v":true}]
[21,null,null,null,null,null,null,null,null,null,null,null,null,null,null,"Non-Resident",false]
[22,null,null,null,null,null,null,null,null,null,null,null,null,null,null,"UK_allowance_claim",{"$f":"AND(OR(box_NRD15,box_NRD16,Resident),NON_DOM_Allowances)","v":true}]
[28,null,"Personal allowances",null,null,null,null,{"$f":"A9","v":29},"Claim for foreign gains relief",null,null,null,null,null,null,{"$f":"\"box_\"&NRD&A3","v":"box_NRD15"},false,"UK allces"]
[29,null,{"$f":"A3","v":15},"Allowances claimed (by DTA)",null,null,null,null,null,null,null,null,null,null,null,{"$f":"\"box_\"&NRD&A4","v":"box_NRD16"},false,"UK allces"]
[40,null,null,null,null,null,null,null,null,null,null,null,null,null,null,{"$f":"\"box_\"&NRD&H5","v":"box_NRD28"},false,"Remit_basis"]
[41,null,null,null,null,null,null,"Overseas Workday Relief",null,null,null,null,null,null,null,{"$f":"\"box_\"&NRD&H8","v":"box_NRD29"},false,"Unremit < 2000"]
[49,null,{"$f":"A4","v":16},"Allowances claimed (other basis)",null,null,null,{"$f":"A10","v":40},"Election for overseas workday relief",null,null,null,null,null,null,"box_NRD30",false,"Res_17_years"]
[50,null,null,null,null,null,null,null,null,null,null,null,null,null,null,"box_NRD31",false,"Res_12_years"]
[51,null,null,null,null,null,null,null,null,null,null,null,null,null,null,"box_NRD32",false,"Res_7_years"]
[52,null,"Residence in other countries and Double Taxation Relief",null,null,null,null,{"$f":"A12","v":49},"Total OWR claimed",null,null,null,null,null,null,"box_NRD33",false,"Under_18"]
[null,null,null,{"$f":"A5","v":20},"Double Taxation Agreement income",null,null,null,null,null,null,null,null,null,null,"NON_DOM_Allowances",{"$f":"NOT(AND(FIG_claim_election,box_NRD29=FALSE,box_NRD16=FALSE))","v":true}]
[null,null,null,null,null,null,null,null,null,null,null,null,null,null,null,"NON_DOM_Charge",false]
[null,null,null,null,null,null,null,"Temporary Repatriation Facility (TRF)",null,null,null,null,null,null,null,"box_NRD40",false]
[null,null,null,{"$f":"A6","v":21},"Relief under Double Taxation Agreement",null,null,{"$f":"A14","v":51},"Personal TRF",null,{"$f":"A15","v":52},"Trust TRF",null,null,null,"FIG_claim_election",{"$f":"OR(box_NRD28,box_NRD29,box_NRD40)","v":false}]
[]
[]
[null,null,null,{"$f":"A7","v":22},"Relief under other provisions"]

{"sheet":"CAL","index":50,"n_rows":25,"n_cols":11,"rows_kept":25,"cut":false,"hidden":true,"merged":[]}
["CAL"]
[null,null,"Tax Calculation",null,null,null,null,null,"CAL"]
[1]
[2,null,"Underpaid tax"]
[3]
[4,null,{"$f":"A9","v":7},{"$f":"\"Underpaid tax for earlier years included in \"&tax_year&\" tax code\"","v":"Underpaid tax for earlier years included in 2025-26 tax code"}]
[5]
[6]
[7,null,{"$f":"A10","v":8},{"$f":"tax_year&\" underpaid tax included in \"&next_year&\" tax code\"","v":"2025-26 underpaid tax included in 2026-27 tax code"},null,null,{"$f":"A11","v":9},{"$f":"\"Outstanding debt included in \"&tax_year&\" tax code\"","v":"Outstanding debt included in 2025-26 tax code"}]
[8]
[9]
[10,null,"Payments on account"]
[11]
[12,null,{"$f":"A12","v":10},"Claim to reduce payments on account",null,null,{"$f":"A13","v":11},{"$f":"\"First Payment on account for \"&next_year","v":"First Payment on account for 2026-27"}]
[13,null,null,null,null,null,null,null,{"$f":"\" (only required if box \"&C14&\" ticked)\"","v":" (only required if box 10 ticked)"},null,false]
[14]
[15,null,"Surplus married couple's allowance and blind person's allowance"]
[16]
[null,null,{"$f":"A14","v":12},"Blind person's surplus allowance",null,null,{"$f":"A15","v":13},"Married couple's surplus allowance"]
[]
[]
[null,null,{"$f":"A16","v":14},"Increase in tax due calculated because of earlier years",null,null,{"$f":"A17","v":15},"Decrease in tax due because of earlier years"]
[]
[]
[null,null,null,null,null,null,{"$f":"A18","v":16},{"$f":"\"Any \"&next_year&\" repayment claimed now\"","v":"Any 2026-27 repayment claimed now"}]

{"sheet":"IRCX_template","index":51,"n_rows":130,"n_cols":9,"rows_kept":130,"cut":false,"hidden":true,"merged":[]}
["Line","Data name","MTR Calculation ","Value",null,"Line","Data name","MTR Calculation ","Value"]
["L3","Pay-E",{"$f":"'NS income (c1)'!I11","v":"c1.4"},{"$f":"'NS income (c1)'!J11","v":0},null,"L64","MCA-amount",{"$f":"'Tax adj (c9)'!I51","v":"c9.16"},{"$f":"'Tax adj (c9)'!J51","v":0}]
["L4","Benefits-E",{"$f":"'NS income (c1)'!I14","v":"c1.5"},{"$f":"'NS income (c1)'!J14","v":0},null,"L64","MCA-relief",{"$f":"'Tax adj (c9)'!I51&\" x \"&A_rate*100&\"%\"","v":"c9.16 x 10%"},{"$f":"'Tax adj (c9)'!J51*A_rate","v":0}]
["L5","Exps-E",{"$f":"'NS income (c1)'!I21","v":"c1.8"},{"$f":"'NS income (c1)'!J21","v":0},null,"L65","spare-MCA-amount",{"$f":"'Tax adj (c9)'!I54","v":"c9.17"},{"$f":"'Tax adj (c9)'!J54","v":0}]
["L6","income-E",{"$f":"'NS income (c1)'!I31","v":"c1.9"},{"$f":"'NS income (c1)'!J31","v":0},null,"L65","spare-MCA-relief",{"$f":"'Tax adj (c9)'!I54&\" x \"&A_rate*100&\"%\"","v":"c9.17 x 10%"},{"$f":"'Tax adj (c9)'!J54*A_rate","v":0}]
["L7","income-Shares",{"$f":"'NS income (c1)'!I35","v":"c1.10"},{"$f":"'NS income (c1)'!J35","v":0},null,"L66","AllceIn-TPA",{"$f":"'Tax adj (c9)'!I75","v":"c9.20"},{"$f":"'Tax adj (c9)'!J75","v":0}]
["L8","income-D",{"$f":"'NS income (c1)'!I55&\" + \"&'NS income (c1)'!I64","v":"c1.17 + c1.20"},{"$f":"'NS income (c1)'!J55+'NS income (c1)'!J64","v":0},null,"L66","AllceIn-TPA-relief",{"$f":"'Tax adj (c9)'!L75","v":"c9.21"},{"$f":"'Tax adj (c9)'!M75","v":0}]
["L9","income-D-(PTR)",{"$f":"'NS income (c1)'!I82","v":"c1.27"},{"$f":"'NS income (c1)'!J82","v":0},null,"L67","Llir-amount",{"$f":"'LLIR (c24)'!E78","v":"c24.15a"},{"$f":"'LLIR (c24)'!F78","v":0}]
["L9a","income-S-(PTR)",{"$f":"'Savings (c2)'!H11","v":"c2.3"},{"$f":"'Savings (c2)'!I11","v":0},null,"L67","Llir-amount-restricted",{"$f":"'Tax adj (c9)'!I78","v":"c9.22"},{"$f":"'Tax adj (c9)'!J78","v":0}]
["L9b","income-DV-(PTR)",{"$f":"'Divs (c3)'!G5","v":"c3.1"},{"$f":"'Divs (c3)'!H5","v":0},null,"L67","Llir-relief",{"$f":"'Tax adj (c9)'!L78","v":"c9.23"},{"$f":"'Tax adj (c9)'!M78","v":0}]
["L10","income-IFP",{"$f":"'NS income (c1)'!I100","v":"c1.33"},{"$f":"'NS income (c1)'!J100","v":0},null,"L67a","LFI-amount",{"$f":"'Tax adj (c9)'!I81","v":"c9.23a"},{"$f":"'Tax adj (c9)'!J81","v":0}]
["L11","income-Foreign",{"$f":"'NS income (c1)'!I120&\" + \"&'NS income (c1)'!I135&\" + \"&'NS income (c1)'!I155","v":"c1.35 + c1.40 + c1.44"},{"$f":"'NS income (c1)'!J120+'NS income (c1)'!J135+'NS income (c1)'!J155","v":0},null,"L67a","LFI-relief",{"$f":"'Tax adj (c9)'!L81","v":"c9.23b"},{"$f":"'Tax adj (c9)'!M81","v":0}]
["L11A","Foreign-dividends",{"$f":"'Divs (c3)'!G21","v":"c3.5"},{"$f":"'Divs (c3)'!H21","v":0},null,"L68","rel-tax-acct-for",{"$f":"'Tax adj (c9)'!L95","v":"c9.28"},{"$f":"'Tax adj (c9)'!M95","v":0}]
["L11B","Foreign-savings",{"$f":"'Savings (c2)'!H40","v":"c2.9"},{"$f":"'Savings (c2)'!I40","v":0},null,"L69","BRD-reduction",{"$f":"'Tax adj (c9)'!L114","v":"c9.30c"},{"$f":"'Tax adj (c9)'!M114","v":0}]
["L11c","Foreign-CEG-dedn",{"$f":"'Divs (c3)'!G63","v":"c3.16"},{"$f":"'Divs (c3)'!H63","v":0},null,"L70","Tax-credits-on-FOR-divs","set to zero"]
["L12","income-Trust",{"$f":"'NS income (c1)'!I164&\" + \"&'Savings (c2)'!H54&\" + \"&'Divs (c3)'!G44&\" + \"&'Divs (c3)'!G75&\" + \"&'Divs (c3)'!G80","v":"c1.51 + c2.13 + c3.9 + c3.19 + c3.20"},{"$f":"'NS income (c1)'!J164+'Savings (c2)'!I54+'Divs (c3)'!H44+'Divs (c3)'!H75+'Divs (c3)'!H80","v":0},null,"L72","FTCR",{"$f":"'Tax adj (c9)'!F199","v":"c9.41"},{"$f":"'Tax adj (c9)'!G199","v":0}]
["L13","income-Case3",{"$f":"'Savings (c2)'!H69","v":"c2.17"},{"$f":"'Savings (c2)'!I69","v":0},null,"L72","FTCR-restricted",{"$f":"'Tax adj (c9)'!I208","v":"c9.41c"},{"$f":"'Tax adj (c9)'!J208","v":0}]
["L14","income-F",{"$f":"'Divs (c3)'!G54","v":"c3.14"},{"$f":"'Divs (c3)'!H54","v":0},null,"L73","pens-tax-rel-due",{"$f":"'Pensions (c25c26)'!J162","v":"c25.57"},{"$f":"'Pensions (c25c26)'!K162","v":0}]
["L15","income-Pensions",{"$f":"'NS income (c1)'!I168","v":"c1.52"},{"$f":"'NS income (c1)'!J168","v":0},null,"L74","relief-on-qual-distn",{"$f":"'Tax adj (c9)'!L98","v":"c9.29"},{"$f":"'Tax adj (c9)'!M98","v":0}]
["L16","income-CEG",{"$f":"'Savings (c2)'!H75","v":"c2.18"},{"$f":"'Savings (c2)'!I75","v":0},null,"L76","IT-after-allces",{"$f":"'Tax adj (c9)'!I211","v":"c9.42"},{"$f":"'Tax adj (c9)'!J211","v":0}]
["L16a","income-CEG-dedn",{"$f":"'Divs (c3)'!G66","v":"c3.17"},{"$f":"'Divs (c3)'!H66","v":0},null,"L78","Gift-aid-amount",{"$f":"'Tax adj (c9)'!C139","v":"c9.33"},{"$f":"'Tax adj (c9)'!D139","v":0}]
["L17","income-Other",{"$f":"'NS income (c1)'!I176","v":"c1.56"},{"$f":"'NS income (c1)'!J176","v":0},null,"L78","Gift-aid-tax-due",{"$f":"'Tax adj (c9)'!F139","v":"c9.34"},{"$f":"'Tax adj (c9)'!G139","v":0}]
["L17a","income-Termination",{"$f":"'NS income (c1)'!I188","v":"c1.58"},{"$f":"'NS income (c1)'!J188","v":0},null,"L79","CGTax","c9.35",{"$f":"'Tax adj (c9)'!G142","v":0}]
["L18","income-Total",{"$f":"'Divs (c3)'!G87","v":"c3.21"},{"$f":"'Divs (c3)'!H87","v":0},null,"L79",{"$f":"G113","v":"total-CG-due"},"set to zero"]
["L22","dedn-RAR",{"$f":"'Deductions (c4)'!H326","v":"c4.48"},{"$f":"'Deductions (c4)'!I326","v":0},null,"L79A",{"$f":"G68","v":"non-dom-charge-amount"},{"$f":"H68","v":"not used"},{"$f":"I68","v":0}]
["L23","dedn-Trust",{"$f":"'Deductions (c4)'!H339","v":"c4.54"},{"$f":"'Deductions (c4)'!I339","v":0},null,"L79B","income-tax-gift-aid",{"$f":"'Tax adj (c9)'!F151","v":"c9.38"},{"$f":"'Tax adj (c9)'!G151","v":0}]
["L25","ded-Loss",{"$f":"'Deductions (c4)'!D188","v":"c4.39"},{"$f":"'Deductions (c4)'!E188","v":0},null,"L80","Gift-aid-tax-reduced",{"$f":"'Tax adj (c9)'!I158","v":"c9.39"},{"$f":"'Tax adj (c9)'!J158","v":0}]
["L25","ded-loss-restricted",{"$f":"'Deductions (c4)'!D216","v":"c4.47"},{"$f":"'Deductions (c4)'!E216","v":0},null,"L80a","BRD-charge",{"$f":"'Tax adj (c9)'!I177","v":"c9.39f"},{"$f":"'Tax adj (c9)'!J177","v":0}]
["L26","dedn-Annuity",{"$f":"'Deductions (c4)'!H333","v":"c4.51"},{"$f":"'Deductions (c4)'!I333","v":0},null,"L80b","WFP-amount",{"$f":"'Tax adj (c9)'!F190","v":"c9.39i"},{"$f":"'Tax adj (c9)'!G190","v":0}]
["L27","dedn-Gift",{"$f":"'Deductions (c4)'!H329","v":"c4.49"},{"$f":"'Deductions (c4)'!I329","v":0},null,"L80b","WFP-charge",{"$f":"'Tax adj (c9)'!I190","v":"c9.39j"},{"$f":"'Tax adj (c9)'!J190","v":0}]
["L27.1","Fi-Rel",{"$f":"'Deductions (c4)'!H281&\" + \"&'Deductions (c4)'!H294&\" + \"&'Deductions (c4)'!H310","v":"c4.47.19 + c4.47.23 + c4.47.27"},{"$f":"'Deductions (c4)'!I281+'Deductions (c4)'!I294+'Deductions (c4)'!I310","v":0},null,"L83","Pension-charges-gross",{"$f":"'Pensions (c25c26)'!D141","v":"c25.51"},{"$f":"'Pensions (c25c26)'!E141","v":0}]
["L27.2","Fe-Rel-restricted",{"$f":"'Deductions (c4)'!H321","v":"c4.47.30"},{"$f":"'Deductions (c4)'!I321","v":0},null,"L83","Pension-charges-tax-paid",{"$f":"'Pensions (c25c26)'!D144","v":"c25.52"},{"$f":"'Pensions (c25c26)'!E144","v":0}]
["L27.2","Fe-Rel-claimed",{"$f":"'Deductions (c4)'!D318","v":"c4.47.29"},{"$f":"'Deductions (c4)'!E318","v":0},null,"L83","Pension-charges",{"$f":"'Tax adj (c9)'!I161","v":"c9.39a"},{"$f":"'Tax adj (c9)'!J161","v":0}]
["L29","Allce-PA",{"$f":"'Deductions (c4)'!H435","v":"c4.64"},{"$f":"'Deductions (c4)'!I435","v":12570},null,"L83a","Pension-lump-sum-amount",{"$f":"'Pensions (c25c26)'!G169","v":"c26.1"},{"$f":"'Pensions (c25c26)'!H169","v":0}]
["L30","AllceOut-TPA",{"$f":"'Deductions (c4)'!H473","v":"c4.68"},{"$f":"'Deductions (c4)'!I473","v":0},null,"L83a","Pension-lump-sum-rate",{"$f":"'Pensions (c25c26)'!G198","v":"c26.2"},{"$f":"'Pensions (c25c26)'!H198","v":0}]
["L31","Allce-BPA",{"$f":"'Deductions (c4)'!H442","v":"c4.65"},{"$f":"'Deductions (c4)'!I442","v":0},null,"L83a","Pension-lump-sum-tax",{"$f":"'Tax adj (c9)'!I164","v":"c9.39b"},{"$f":"'Tax adj (c9)'!J164","v":0}]
["L32","Allce-BPA-Spare",{"$f":"'Deductions (c4)'!H445","v":"c4.66"},{"$f":"'Deductions (c4)'!I445","v":0},null,"L83b","Child-Benefit-tax-charge",{"$f":"'Tax adj (c9)'!I167","v":"c9.39c"},{"$f":"'Tax adj (c9)'!J167","v":0}]
["L34","Allce-dedn-total",{"$f":"'Deductions (c4)'!L502","v":"c4.72"},{"$f":"'Deductions (c4)'!M502","v":12570},null,"L83c","pens-tax-due",{"$f":"'Pensions (c25c26)'!J158","v":"c25.56"},{"$f":"'Pensions (c25c26)'!K158","v":0}]
["L36","taxable-income",{"$f":"'Taxable (c5)'!BA338","v":"c5.86"},{"$f":"'Taxable (c5)'!BB338","v":0},null,"L83d","TRF_amount",{"$f":"'Tax adj (c9)'!F180&\" + \"&'Tax adj (c9)'!F183","v":"c9.39g + c9.39g1"},{"$f":"'Tax adj (c9)'!G180+'Tax adj (c9)'!G183","v":0}]
["L39","ppr-extender",{"$f":"'Deductions (c4)'!H379","v":"c4.58"},{"$f":"'Deductions (c4)'!I379","v":0},null,"L83d","TRF_charge",{"$f":"'Tax adj (c9)'!I183","v":"c9.39h"},{"$f":"'Tax adj (c9)'!J183","v":0}]
["L39","gift-extender",{"$f":"'Deductions (c4)'!H360","v":"c4.57"},{"$f":"'Deductions (c4)'!I360","v":0},null,"L83e","SEISS-incorrectly-claimed-amount","set to zero",0]
["L39","extended-BR",{"$f":"'Taxable (c5)'!AK8","v":"c5.2a"},{"$f":"'Taxable (c5)'!AL8","v":37700},null,"L83e","SEISS-charge","set to zero",0]
["L39s","ppr-gift-extender-STp","set to zero",0,null,"L84a","total-tax-NIC-nonresS23",{"$f":"'Tax due (c12)'!I14","v":"c12.1a"},{"$f":"box_c12_1_s23","v":0}]
["L39s","gift-extender",{"$f":"'Deductions (c4)'!H360","v":"c4.57"},{"$f":"'Deductions (c4)'!I360","v":0},null,"L84aa","Income-Excluded",{"$f":"'non-res (c91)'!H119","v":"c91.27"},{"$f":"'non-res (c91)'!I119","v":0}]
["L39s","extended-BR-STp","set to zero",null,null,"L84ab","tax-on-excluded-inc",{"$f":"'Tax due (c12)'!I22","v":"c12.1c"},{"$f":"'Tax due (c12)'!J22","v":0}]
["L39","ppr-extender",{"$f":"'Deductions (c4)'!H389","v":"c4.60"},{"$f":"'Deductions (c4)'!I379","v":0},null,"L84ac","tax-on-non-excluded-inc",{"$f":"'Tax due (c12)'!I25","v":"c12.1d"},{"$f":"'Tax due (c12)'!J25","v":0}]
["L40","ppr-claim",{"$f":"'Deductions (c4)'!H364","v":"c4.57.1"},{"$f":"'Deductions (c4)'!I364","v":0},null,"L84b","total-tax-NIC-nonresS811",{"$f":"'Tax due (c12)'!I18","v":"c12.1b"},{"$f":"box_c12_1_s811","v":0}]
["L42a","taxable-pay-SSR",{"$f":"'tax it (c8)'!C8","v":"c8.1"},{"$f":"'tax it (c8)'!D8","v":0},null,"L84c","total-tax-NIC-nonres",{"$f":"'Tax due (c12)'!L32","v":"c12.1e"},{"$f":"'Tax due (c12)'!M32","v":0}]
["L42a","tax-on-pay-SSR",{"$f":"'tax it (c8)'!G8","v":"c8.1a"},{"$f":"'tax it (c8)'!H8","v":0},null,"L84e","div-tax-credits",{"$f":"'Div Cr (c10)'!I27","v":"c10.4"},{"$f":"'Div Cr (c10)'!J27","v":0}]
["L43","taxable-pay-BR",{"$f":"'tax it (c8)'!C11","v":"c8.1b"},{"$f":"'tax it (c8)'!D11","v":0},null,"L84f","div-tax-credits-s399",{"$f":"'Div Cr (c10)'!I44","v":"c10.5"},{"$f":"'Div Cr (c10)'!J44","v":0}]
["L43","tax-on-pay-BR",{"$f":"'tax it (c8)'!G11","v":"c8.2"},{"$f":"'tax it (c8)'!H11","v":0},null,"L84g","notional-CEG",{"$f":"'Div Cr (c10)'!I57","v":"c10.9"},{"$f":"'Div Cr (c10)'!J57","v":0}]
["L43a","taxable-pay-SIR",{"$f":"'tax it (c8)'!C14","v":"c8.2a"},{"$f":"'tax it (c8)'!D14","v":0},null,"L84h","notional-other",{"$f":"'Div Cr (c10)'!I69&\" + \"&'Div Cr (c10)'!I82","v":"c10.13 + c10.17"},{"$f":"'Div Cr (c10)'!J69+'Div Cr (c10)'!J82","v":0}]
["L43a","tax-on-pay-SIR",{"$f":"'tax it (c8)'!G14","v":"c8.2b"},{"$f":"'tax it (c8)'!H14","v":0},null,"L85","IT-after-div-tax-credits",{"$f":"'Tax due (c12)'!L36","v":"c12.1f"},{"$f":"'Tax due (c12)'!M36","v":0}]
["L44","taxable-pay-HR",{"$f":"'tax it (c8)'!C17","v":"c8.3"},{"$f":"'tax it (c8)'!D17","v":0},null,"L88","NIC-amount",{"$f":"'Class 4 NIC (c16)'!G97","v":"c16.15"},{"$f":"'Class 4 NIC (c16)'!H97","v":0}]
["L44","tax-on-pay-HR",{"$f":"'tax it (c8)'!G17","v":"c8.4"},{"$f":"'tax it (c8)'!H17","v":0},null,"L88","NIC-charge",{"$f":"'Class 4 NIC (c16)'!J97","v":"c16.16"},{"$f":"'Class 4 NIC (c16)'!K97","v":0}]
["L44aa","taxable-pay-SAR",{"$f":"'tax it (c8)'!C20","v":"c8.4a"},{"$f":"'tax it (c8)'!D20","v":0},null,"L89","NIC-sup-amount",{"$f":"'Class 4 NIC (c16)'!G100","v":"c16.17"},{"$f":"'Class 4 NIC (c16)'!H100","v":0}]
["L44aa","tax-on-pay-SAR",{"$f":"'tax it (c8)'!G20","v":"c8.4b"},{"$f":"'tax it (c8)'!H20","v":0},null,"L89","NIC-sup-charge",{"$f":"'Class 4 NIC (c16)'!J100","v":"c16.18"},{"$f":"'Class 4 NIC (c16)'!K100","v":0}]
["L44A","taxable-pay-AHR",{"$f":"'tax it (c8)'!C23","v":"c8.5"},{"$f":"'tax it (c8)'!D23","v":0},null,"L89A","NIC4-amount",{"$f":"'Tax due (c12)'!I39","v":"c12.2"},{"$f":"'Tax due (c12)'!J39","v":0}]
["L44A","tax-on-pay-AHR",{"$f":"'tax it (c8)'!G23","v":"c8.6"},{"$f":"'tax it (c8)'!H23","v":0},null,"L89B","NIC1-amount",{"$f":"'Class 4 NIC (c16)'!J113","v":"c16.21"},{"$f":"'Class 4 NIC (c16)'!K113","v":0}]
["L46a","taxable-int-SR",{"$f":"'tax it (c8)'!C32","v":"c8.7"},{"$f":"'tax it (c8)'!D32","v":0},null,"L89C","NIC2-amount",{"$f":"'Tax due (c12)'!I47","v":"c12.3"},{"$f":"'Tax due (c12)'!J47","v":0}]
["L46a","tax-on-int-SR",{"$f":"'tax it (c8)'!G32","v":"c8.8"},{"$f":"'tax it (c8)'!H32","v":0},null,"L90","NIC-total",{"$f":"'Tax due (c12)'!L52","v":"c12.4"},{"$f":"'Tax due (c12)'!M52","v":0}]
["L46b","income-Savings-taxfree","set to zero",null,null,"L90","NIC2-thrshld",{"$f":"'Class 4 NIC (c16)'!J202","v":"c16.33"},{"$f":"'Class 4 NIC (c16)'!K202","v":0}]
["L46b","income-Savings-taxfree-BR",{"$f":"'tax it (c6)'!L62","v":"c6.17c"},{"$f":"'tax it (c6)'!M62","v":0},null,"L92","unpaid-tax-in-code",{"$f":"'Tax due (c12)'!I58","v":"c12.6"},{"$f":"'Tax due (c12)'!J58","v":0}]
["L47","taxable-int-BR",{"$f":"'tax it (c8)'!C38","v":"c8.11"},{"$f":"'tax it (c8)'!D38","v":0},null,"L93","Student-loan",{"$f":"'Tax due (c12)'!I61","v":"c12.7"},{"$f":"'Tax due (c12)'!J61","v":0}]
["L47","tax-on-int-BR",{"$f":"'tax it (c8)'!G38","v":"c8.12"},{"$f":"'tax it (c8)'!H38","v":0},null,"L93a1","Post-grad-loan",{"$f":"'Tax due (c12)'!I64","v":"c12.7b"},{"$f":"'Tax due (c12)'!J64","v":0}]
["L47A","income-Savings-taxfree-HR",{"$f":"'tax it (c6)'!L91","v":"c6.20b"},{"$f":"'tax it (c6)'!M91","v":0},null,"L93a","annuity-amount",{"$f":"'Tax due (c12)'!F67","v":"c12.8"},{"$f":"'Tax due (c12)'!G67","v":0}]
["L48","taxable-int-HR",{"$f":"'tax it (c8)'!C41","v":"c8.13"},{"$f":"'tax it (c8)'!D41","v":0},null,"L93a","annuity-tax",{"$f":"'Tax due (c12)'!I70","v":"c12.9"},{"$f":"'Tax due (c12)'!J70","v":0}]
["L48","tax-on-int-HR",{"$f":"'tax it (c8)'!G41","v":"c8.14"},{"$f":"'tax it (c8)'!H41","v":0},null,"L93d","non-dom-charge-amount","not used",0]
["L48A","taxable-int-AHR",{"$f":"'tax it (c8)'!C44","v":"c8.15"},{"$f":"'tax it (c8)'!D44","v":0},null,"L94","IT-plus-class4",{"$f":"'Tax due (c12)'!L79","v":"c12.12"},{"$f":"ROUND('Tax due (c12)'!M79,2)","v":0}]
["L48A","tax-on-int-AHR",{"$f":"'tax it (c8)'!G44","v":"c8.16"},{"$f":"'tax it (c8)'!H44","v":0},null,"L97","tax-paid-E",{"$f":"'Tax paid (c11)'!I18","v":"c11.5"},{"$f":"'Tax paid (c11)'!J18","v":0}]
["L50a","divs-taxfree-BR",{"$f":"'tax it (c6)'!Q62","v":"c6.27"},{"$f":"'tax it (c6)'!R62","v":0},null,"L97a","debt-coded",{"$f":"'Tax paid (c11)'!I21","v":"c11.6"},{"$f":"'Tax paid (c11)'!J21","v":0}]
["L50b","taxable-divs-BR",{"$f":"'tax it (c8)'!C56","v":"c8.19"},{"$f":"'tax it (c8)'!D56","v":0},null,"L97a","debt-collected",{"$f":"'Tax paid (c11)'!I32","v":"c11.7"},{"$f":"'Tax paid (c11)'!J32","v":0}]
["L50b","tax-on-divs-BR",{"$f":"'tax it (c8)'!G56","v":"c8.20"},{"$f":"'tax it (c8)'!H56","v":0},null,"L97b","SA-E-tax",{"$f":"'Tax paid (c11)'!I35","v":"c11.8"},{"$f":"'Tax paid (c11)'!J35","v":0}]
["L50c","divs-taxfree-HR",{"$f":"'tax it (c6)'!Q91","v":"c6.32"},{"$f":"'tax it (c6)'!R91","v":0},null,"L98","tax-paid-D",{"$f":"'Tax paid (c11)'!I38&\" + \"&'Tax paid (c11)'!I41&\" + \"&'Tax paid (c11)'!I44","v":"c11.9 + c11.10 + c11.11"},{"$f":"'Tax paid (c11)'!J38+'Tax paid (c11)'!J41+'Tax paid (c11)'!J44","v":0}]
["L51","taxable-divs-HR",{"$f":"'tax it (c8)'!C59","v":"c8.21"},{"$f":"'tax it (c8)'!D59","v":0},null,"L99","tax-paid-D(PTR)",{"$f":"'Tax paid (c11)'!I47&\" + \"&'Tax paid (c11)'!I50","v":"c11.12 + c11.13"},{"$f":"'Tax paid (c11)'!J47+'Tax paid (c11)'!J50","v":0}]
["L51","tax-on-divs-HR",{"$f":"'tax it (c8)'!G59","v":"c8.22"},{"$f":"'tax it (c8)'!H59","v":0},null,"L100","tax-paid-IFP",{"$f":"'Tax paid (c11)'!I53","v":"c11.14"},{"$f":"'Tax paid (c11)'!J53","v":0}]
["L51a","divs-taxfree-AHR",{"$f":"'tax it (c6)'!Q47&\" minus (\"&'tax it (c6)'!Q62&\" + \"&'tax it (c6)'!Q91&\")\"","v":"c6.25 minus (c6.27 + c6.32)"},{"$f":"'tax it (c6)'!R47-('tax it (c6)'!R62+'tax it (c6)'!R91)","v":0},null,"L101","tax-paid-Foreign",{"$f":"'Tax paid (c11)'!I56","v":"c11.15"},{"$f":"'Tax paid (c11)'!J56","v":0}]
["L51b","taxable-divs-AHR",{"$f":"'tax it (c8)'!C62","v":"c8.23"},{"$f":"'tax it (c8)'!D62","v":0},null,"L102","tax-paid-Trust",{"$f":"'Tax paid (c11)'!I70","v":"c11.25"},{"$f":"'Tax paid (c11)'!J70","v":0}]
["L51b","tax-on-divs-AHR",{"$f":"'tax it (c8)'!G62","v":"c8.24"},{"$f":"'tax it (c8)'!H62","v":0},null,"L103","tax-paid-Overseas",{"$f":"'Tax paid (c11)'!I73","v":"c11.26"},{"$f":"'Tax paid (c11)'!J73","v":0}]
["L52a","taxable-redundancy-SSR",{"$f":"'tax it (c8)'!C71","v":"c8.24b"},{"$f":"'tax it (c8)'!D71","v":0},null,"L104","tax-paid-Case3",{"$f":"'Tax paid (c11)'!I76&\" + \"&'Tax paid (c11)'!I80","v":"c11.27 + c11.28"},{"$f":"'Tax paid (c11)'!J76+'Tax paid (c11)'!J80","v":0}]
["L52a","tax-on-redundancy-SSR",{"$f":"'tax it (c8)'!G71","v":"c8.24c"},{"$f":"'tax it (c8)'!H71","v":0},null,"L106","tax-paid-CEG",{"$f":"'Tax paid (c11)'!I83","v":"c11.29"},{"$f":"'Tax paid (c11)'!J83","v":0}]
["L52b","taxable-redundancy-BR",{"$f":"'tax it (c8)'!C74","v":"c8.24d"},{"$f":"'tax it (c8)'!D74","v":0},null,"L107","tax-paid-Other",{"$f":"'Tax paid (c11)'!I86","v":"c11.30"},{"$f":"'Tax paid (c11)'!J86","v":0}]
["L52b","tax-on-redundancy-BR",{"$f":"'tax it (c8)'!G74","v":"c8.24e"},{"$f":"'tax it (c8)'!H74","v":0},null,"L108","coded-in-later-year",{"$f":"'Tax due (c12)'!I85","v":"c12.14"},{"$f":"'Tax due (c12)'!J85","v":0}]
["L52c","taxable-redundancy-SIR",{"$f":"'tax it (c8)'!C77","v":"c8.24f"},{"$f":"'tax it (c8)'!D77","v":0},null,"L109","total-tax-paid",{"$f":"'Tax due (c12)'!L88","v":"c12.15"},{"$f":"ROUND('Tax due (c12)'!M88,2)","v":0}]
["L52c","tax-on-redundancy-SIR",{"$f":"'tax it (c8)'!G77","v":"c8.24g"},{"$f":"'tax it (c8)'!H77","v":0},null,"L111","Total-IT-class4-due",{"$f":"'Tax due (c12)'!L91&\" (Absolute value)\"","v":"c12.16 (Absolute value)"},{"$f":"ABS('Tax due (c12)'!M91)","v":0}]
["L52d","taxable-redundancy-HR",{"$f":"'tax it (c8)'!C80","v":"c8.24h"},{"$f":"'tax it (c8)'!D80","v":0},null,"L114","CG-at-ER-rate",{"$f":"'CG (c18)'!W83","v":"c18.29"},{"$f":"'CG (c18)'!X83","v":0}]
["L52d","tax-on-redundancy-HR",{"$f":"'tax it (c8)'!G80","v":"c8.24i"},{"$f":"'tax it (c8)'!H80","v":0},null,"L114","ER-rate-CGT",{"$f":"'CG (c18)'!AA88","v":"c18.30"},{"$f":"'CG (c18)'!AB88","v":0}]
["L52dd","taxable-redundancy-SAR",{"$f":"'tax it (c8)'!C83","v":"c8.24ia"},{"$f":"'tax it (c8)'!D83","v":0},null,"L115","CG-at-lower-rate-RP-CI","set to zero",0]
["L52dd","tax-on-redundancy-SAR",{"$f":"'tax it (c8)'!G83","v":"c8.24ib"},{"$f":"'tax it (c8)'!H83","v":0},null,"L115","Lower-rate-CGT-RP-CI","set to zero",0]
["L52e","taxable-redundancy-AHR",{"$f":"'tax it (c8)'!C86","v":"c8.24j"},{"$f":"'tax it (c8)'!D86","v":0},null,"L115a","CG-at-higher-rate-RP-CI","set to zero",0]
["L52e","tax-on-redundancy-AHR",{"$f":"'tax it (c8)'!G86","v":"c8.24k"},{"$f":"'tax it (c8)'!H86","v":0},null,"L115a","Higher-rate-CGT-RP-CI","set to zero",0]
["L53b","taxable-CEG-SR",{"$f":"'tax it (c8)'!C95","v":"c8.24m"},{"$f":"'tax it (c8)'!D95","v":0},null,"L115","CG-at-lower-rate-CI",{"$f":"'CG (c18)'!S122","v":"c18.41"},{"$f":"'CG (c18)'!T122","v":0}]
["L53b","tax-on-CEG-SR",{"$f":"'tax it (c8)'!G95","v":"c8.24n"},{"$f":"'tax it (c8)'!H95","v":0},null,"L115","Lower-rate-CGT-CI",{"$f":"'CG (c18)'!AA122","v":"c18.42"},{"$f":"'CG (c18)'!AB122","v":0}]
["L53c","income-CEG-taxfree-BR",{"$f":"'tax it (c8)'!C98","v":"c8.24o"},{"$f":"'tax it (c8)'!D98","v":0},null,"L115a","CG-at-higher-rate-CI",{"$f":"'CG (c18)'!S125","v":"c18.43"},{"$f":"'CG (c18)'!T125","v":0}]
["L53d","taxable-CEG-BR",{"$f":"'tax it (c8)'!C101","v":"c8.24q"},{"$f":"'tax it (c8)'!D101","v":0},null,"L115a","Higher-rate-CGT-CI",{"$f":"'CG (c18)'!AA125","v":"c18.44"},{"$f":"'CG (c18)'!AB125","v":0}]
["L53d","tax-on-CEG-BR",{"$f":"'tax it (c8)'!G101","v":"c8.24r"},{"$f":"'tax it (c8)'!H101","v":0},null,"L115b","CG-at-lower-rate-RP",{"$f":"'CG (c18)'!S131","v":"c18.45.1"},{"$f":"'CG (c18)'!T131","v":0}]
["L53e","income-CEG-taxfree-HR",{"$f":"'tax it (c8)'!C104","v":"c8.24s"},{"$f":"'tax it (c8)'!D104","v":0},null,"L115b","Lower-rate-CGT-RP",{"$f":"'CG (c18)'!AA131","v":"c18.45.2"},{"$f":"'CG (c18)'!AB131","v":0}]
["L53f","taxable-CEG-HR",{"$f":"'tax it (c8)'!C107","v":"c8.24u"},{"$f":"'tax it (c8)'!D107","v":0},null,"L115c","CG-at-higher-rate-RP",{"$f":"'CG (c18)'!S134","v":"c18.45.3"},{"$f":"'CG (c18)'!T134","v":0}]
["L53f","tax-on-CEG-HR",{"$f":"'tax it (c8)'!G107","v":"c8.24v"},{"$f":"'tax it (c8)'!H107","v":0},null,"L115c","Higher-rate-CGT-RP",{"$f":"'CG (c18)'!AA134","v":"c18.45.4"},{"$f":"'CG (c18)'!AB134","v":0}]
["L53g","taxable-CEG-AHR",{"$f":"'tax it (c8)'!C110","v":"c8.24w"},{"$f":"'tax it (c8)'!D110","v":0},null,"L116","CG-at-lower-rate",{"$f":"'CG (c18)'!S140","v":"c18.46"},{"$f":"'CG (c18)'!T140","v":0}]
["L53g","tax-on-CEG-AHR",{"$f":"'tax it (c8)'!G110","v":"c8.24x"},{"$f":"'tax it (c8)'!H110","v":0},null,"L116","Lower-rate-CGT",{"$f":"'CG (c18)'!AA140","v":"c18.47"},{"$f":"'CG (c18)'!AB140","v":0}]
["L54",{"$f":"B39","v":"taxable-income"},{"$f":"C39","v":"c5.86"},{"$f":"D39","v":0},null,"L116a","CG-at-higher-rate",{"$f":"'CG (c18)'!S143","v":"c18.48"},{"$f":"'CG (c18)'!T143","v":0}]
["L55a","pre-TP-tax-charged",{"$f":"'tax it (c8)'!G146","v":"c8.25b"},{"$f":"'tax it (c8)'!H146","v":0},null,"L116a","Higher-rate-CGT",{"$f":"'CG (c18)'!AA143","v":"c18.49"},{"$f":"'CG (c18)'!AB143","v":0}]
["L55c","transition-profit",{"$f":"'Deductions (c4)'!D195&\" + \"&'Deductions (c4)'!D198","v":"c4.40.1 + c4.40.2"},{"$f":"'Deductions (c4)'!E195+'Deductions (c4)'!E198","v":0},null,"L117a","Taxable-CG",{"$f":"'CG (c18)'!C83&\" + \"&'CG (c18)'!G83&\" + \"&'CG (c18)'!S83&\" + \"&'CG (c18)'!W83","v":"c18.27 + c18.27.1 + c18.28 + c18.29"},{"$f":"'CG (c18)'!D83+'CG (c18)'!H83+'CG (c18)'!T83+'CG (c18)'!X83","v":0}]
["L55c","tax-on-transition-prft",{"$f":"'tax it (c8)'!G150","v":"c8.25c"},{"$f":"'tax it (c8)'!H150","v":0},null,"L117c","Total-CGT-tax",{"$f":"'CG (c18)'!AA146","v":"c18.50"},{"$f":"'CG (c18)'!AB146","v":0}]
["L56","tax-charged",{"$f":"'tax it (c8)'!G153","v":"c8.26"},{"$f":"'tax it (c8)'!H153","v":0},null,"L117d","CGT-adjustment",{"$f":"'CG (c18)'!AA149","v":"c18.51"},{"$f":"'CG (c18)'!AB149","v":0}]
["L57A","deficiency-relief",{"$f":"'Tax adj (c9)'!I8","v":"c9.2"},{"$f":"'Tax adj (c9)'!J8","v":0},null,"L117e","CG-trust-tax",{"$f":"'CG (c18)'!AA152","v":"c18.51a"},{"$f":"'CG (c18)'!AB152","v":0}]
["L58","TSR",{"$f":"'Tax adj (c9)'!I11","v":"c9.3"},{"$f":"'Tax adj (c9)'!J11","v":0},null,"L117f","Total-CG-tax-due",{"$f":"'CG (c18)'!AA155","v":"c18.52"},{"$f":"'CG (c18)'!AB155","v":0}]
["L59","VCT",{"$f":"'Tax adj (c9)'!I14","v":"c9.5"},{"$f":"'Tax adj (c9)'!J14","v":0},null,"L118","CG-FTCR",{"$f":"'CG (c18)'!AA159","v":"c18.53"},{"$f":"'CG (c18)'!AB159","v":0}]
["L60","EIS",{"$f":"'Tax adj (c9)'!I17","v":"c9.7"},{"$f":"'Tax adj (c9)'!J17","v":0},null,"L118","CG-FTCR-restricted",{"$f":"'CG (c18)'!AA165","v":"c18.54"},{"$f":"'CG (c18)'!AB165","v":0}]
["L60A","SEIS-relief",{"$f":"'Tax adj (c9)'!I20","v":"c9.9"},{"$f":"'Tax adj (c9)'!J20","v":0},null,"L119","CG-tax-due-pre-tax",{"$f":"'CG (c18)'!AA155&\" minus \"&'CG (c18)'!AA165","v":"c18.52 minus c18.54"},{"$f":"MAX(0,'CG (c18)'!AB155-'CG (c18)'!AB165)","v":0}]
["L61","CITR",{"$f":"'Tax adj (c9)'!I23","v":"c9.11"},{"$f":"'Tax adj (c9)'!J23","v":0},null,"L120a","tax-on-gains-already-charged",{"$f":"'CG (c18)'!AA171&\" + \"&'CG (c18)'!AA174","v":"c18.56 + c18.57"},{"$f":"'CG (c18)'!AB171+'CG (c18)'!AB174","v":0}]
["L62","SITR","set to zero",0,null,"L120b","total-CG-due",{"$f":"'Tax due (c12)'!I95","v":"c12.17"},{"$f":"'Tax due (c12)'!J95","v":0}]
["L63","Alimony",{"$f":"'Tax adj (c9)'!I33&\" x \"&A_rate*100&\"%\"","v":"c9.15 x 10%"},{"$f":"'Tax adj (c9)'!J33*A_rate","v":0},null,"L120c","total-CG-overpaid",{"$f":"'CG (c18)'!AA181","v":"c18.59"},{"$f":"'CG (c18)'!AB181","v":0}]
[null,null,null,null,null,"L120e","Total-IT-CG-class4-due-pre",{"$f":"'Tax due (c12)'!I98&\" (Absolute value)\"","v":"c12.17a (Absolute value)"},{"$f":"ABS('Tax due (c12)'!J98)","v":0}]
[null,null,null,null,null,"L120h","CG-repayable",{"$f":"'CG (c18)'!AA187","v":"c18.61"},{"$f":"'CG (c18)'!AB187","v":0}]
[null,null,null,null,null,"L121","Total-IT-CG-class4-due",{"$f":"'Tax due (c12)'!L107&\" (Absolute value)\"","v":"c12.18 (Absolute value)"},{"$f":"ABS(box_18_3)","v":0}]
[null,null,null,null,null,"L122a","CG-not-repayable",{"$f":"'CG (c18)'!AA191","v":"c18.62"},{"$f":"'CG (c18)'!AB191","v":0}]
[null,null,null,null,null,"L123","tax-already-refunded",{"$f":"'Tax due (c12)'!I113","v":"c12.19"},{"$f":"'Tax due (c12)'!J113","v":0}]
[null,null,null,null,null,"L124","unpaid-tax-bf",{"$f":"'Tax due (c12)'!I116","v":"c12.20"},{"$f":"'Tax due (c12)'!J116","v":0}]
[null,null,null,null,null,"L126","Total-tax-NIC-due",{"$f":"'Tax due (c12)'!I119&\" (Absolute value)\"","v":"c12.21 (Absolute value)"},{"$f":"ABS('Tax due (c12)'!J119)","v":0}]
[]
[]
[]
[null,"Components Box"]
[]
[]
["VBA macro Sub Draw_IRCX() uses 'Range (\"A1:I123\") .Copy\". Will need to change VBA macro if rows exceed row 123."]
[]
["VBA macro Sub Replay_test_case() uses Cell (\"B125\"). Will need to change VBA macro if Components Box is shited from B125."]

{"sheet":"SA302_template","index":52,"n_rows":329,"n_cols":12,"rows_kept":329,"cut":false,"hidden":true,"merged":[[178,3,178,6],[148,3,148,6],[157,3,157,6],[163,2,163,6],[164,2,164,6],[167,3,167,5],[321,2,321,6],[323,2,323,6],[303,2,303,8],[305,2,305,8],[306,2,306,8],[309,2,309,8],[322,2,322,6],[320,2,320,6],[315,3,315,5],[317,3,317,5],[319,2,319,5],[316,3,316,5],[318,3,318,5],[313,2,313,5],[311,2,311,8],[310,2,310,6],[177,3,177,8],[153,3,153,6],[45,2,45,5],[46,2,46,5],[47,2,47,5],[120,5,120,6],[121,5,121,6],[123,5,123,6],[124,5,124,6],[134,2,134,5],[141,2,141,6],[125,5,125,6],[127,2,127,6],[128,5,128,6],[129,5,129,6],[130,5,130,6],[131,5,131,6],[84,5,84,6],[87,5,87,6],[88,5,88,6],[105,5,105,6],[104,5,104,6],[110,2,110,6],[111,2,111,6],[108,5,108,6],[107,5,107,6],[147,3,147,7],[119,5,119,6],[106,5,106,6],[98,5,98,6],[102,5,102,6],[100,5,100,6],[103,5,103,6],[175,3,175,7],[176,3,176,6],[160,3,160,7],[116,5,116,6],[117,5,117,6],[118,5,118,6],[162,3,162,6],[156,3,156,6],[168,4,168,7],[142,2,142,6],[115,5,115,6],[172,3,172,6],[173,3,173,4],[174,3,174,5],[171,3,171,4],[169,4,169,7],[170,4,170,7],[112,3,112,6],[113,2,113,6],[114,5,114,6],[56,2,56,5],[58,2,58,6],[59,2,59,6],[79,3,79,6],[92,5,92,6],[94,2,94,6],[99,5,99,6],[96,5,96,6],[95,5,95,6],[80,2,80,6],[81,5,81,6],[82,5,82,6],[85,5,85,6],[86,5,86,6],[90,5,90,6],[91,5,91,6],[74,2,74,6],[75,2,75,6],[54,2,54,5],[55,2,55,5],[64,2,64,9],[63,2,63,9],[67,2,67,9],[70,2,70,9],[77,2,77,6],[83,5,83,6],[10,2,10,5],[12,2,12,4],[13,3,13,4],[14,3,14,4],[15,2,15,5],[16,2,16,5],[27,2,27,5],[28,2,28,5],[29,2,29,5],[20,2,20,5],[21,2,21,5],[25,2,25,5],[26,2,26,5],[22,2,22,5],[23,2,23,5],[24,2,24,5],[17,2,17,5],[18,2,18,5],[19,2,19,5],[243,2,243,7],[250,2,250,8],[257,3,257,5],[263,3,263,5],[269,3,269,5],[265,3,265,6],[266,3,266,4],[51,3,51,5],[43,2,43,5],[48,2,48,5],[66,2,66,9],[68,2,68,9],[191,2,191,5],[196,3,196,5],[197,3,197,5],[97,5,97,6],[181,2,181,5],[182,3,182,8],[185,6,185,7],[194,2,194,8],[192,2,192,6],[190,3,190,7],[193,2,193,8],[184,2,184,5],[189,3,189,7],[133,5,133,6],[132,5,132,6],[166,3,166,6],[149,3,149,5],[150,3,150,6],[151,3,151,6],[152,3,152,6],[161,3,161,5],[136,2,136,6],[137,2,137,6],[139,3,139,6],[158,3,158,6],[180,2,180,5],[144,3,144,6],[145,3,145,7],[146,3,146,7],[179,3,179,5],[154,3,154,6],[155,3,155,6],[159,3,159,6],[30,2,30,5],[31,2,31,5],[33,2,33,5],[71,2,71,9],[72,2,72,9],[78,2,78,6],[73,2,73,9],[32,2,32,5],[37,2,37,5],[39,2,39,5],[44,2,44,5],[40,2,40,5],[41,2,41,5],[42,2,42,5],[34,2,34,5],[50,3,50,5],[52,3,52,5],[49,2,49,5],[65,2,65,9],[69,2,69,9],[61,2,61,9],[62,2,62,9],[35,2,35,5],[53,3,53,5],[267,3,267,6],[272,3,272,5],[248,2,248,8],[245,2,245,6],[271,3,271,5],[268,3,268,6],[247,2,247,7],[246,2,246,8],[261,2,261,5],[256,3,256,5],[259,3,259,5],[260,3,260,5],[255,3,255,5],[249,2,249,5],[258,3,258,5],[254,3,254,5],[253,3,253,5],[238,3,238,6],[239,3,239,7],[240,3,240,5],[202,3,202,5],[203,3,203,7],[204,3,204,7],[205,3,205,7],[213,3,213,6],[228,4,228,6],[229,3,229,5],[230,3,230,6],[214,3,214,5],[212,3,212,7],[206,3,206,8],[218,2,218,7],[220,2,220,8],[225,3,225,5],[200,3,200,5],[201,3,201,8],[209,3,209,7],[210,3,210,7],[302,2,302,8],[308,2,308,8],[307,2,307,8],[301,2,301,8],[300,2,300,4],[298,3,298,8],[289,3,289,8],[304,2,304,8],[252,3,252,5],[288,3,288,8],[291,3,291,8],[264,3,264,5],[285,2,285,8],[297,3,297,8],[290,3,290,8],[292,3,292,8],[283,2,283,8],[282,2,282,8],[280,2,280,8],[293,3,293,8],[295,3,295,8],[296,3,296,8],[287,3,287,8],[284,2,284,6],[273,3,273,5],[275,2,275,8],[278,2,278,8],[281,2,281,8],[279,2,279,8],[277,2,277,8],[276,2,276,8],[294,3,294,8],[244,2,244,8],[217,2,217,8],[219,2,219,8],[221,2,221,8],[223,2,223,8],[242,2,242,5],[183,3,183,8],[187,3,187,7],[188,3,188,7],[185,2,185,5],[227,3,227,6],[236,3,236,7],[237,3,237,6],[215,3,215,6],[231,3,231,6],[232,3,232,6],[233,3,233,6],[226,3,226,6],[207,3,207,8],[235,3,235,6],[222,2,222,5],[211,3,211,7],[216,2,216,8],[234,3,234,6]]}
[null,null,null,null,null,null,null,"Self Assessment: Tax Calculation ",null,null,null,1]
[null,null,null,null,null,null,null,null,null,null,null,1]
[null,null,null,{"$f":"IF('Add pages'!C4=\"\",\"\",'Add pages'!C4)","v":""},null,null,null,null,null,null,null,1]
[null,null,null,{"$f":"IF('Add pages'!C5=\"\",\"\",'Add pages'!C5)","v":""},null,null,null,null,{"$f":"\"Unique Taxpayer Reference (UTR) \"&IF(Taxpayer_Reference=\"\",\"\",Taxpayer_Reference)","v":"Unique Taxpayer Reference (UTR) "},null,null,1]
[null,{"$f":"IF('Add pages'!C6=\"\",\"\",'Add pages'!C6)","v":""},null,null,null,null,null,null,null,null,null,1]
[null,null,null,{"$f":"IF('Add pages'!C7=\"\",\"\",'Add pages'!C7)","v":""},null,null,null,null,null,null,null,1]
[null,null,null,null,null,null,null,"Date ",{"$f":"date_formatted","v":"26 February 2026"},null,null,1]
[null,null,null,null,null,null,null,null,null,null,null,1]
[null,null,{"$f":"\"Tax Calculation for \"&tax_year","v":"Tax Calculation for 2025-26"},null,null,{"$f":"\" (year ended 5 April \"&Tax_year_end&\")\"","v":" (year ended 5 April 2026)"},null,null,null,null,null,1]
[null,null,null,null,null,null,null,null,null,null,null,1]
["L1",null,"Income received (before tax taken off)",null,null,null,null,null,null,null,null,1]
["L2",null,null,null,null,null,null,null,null,null,null,1]
["L3",null,"Pay from all employments",null,null,{"$f":"Pay_Emp","v":0},null,null,null,null,null,{"$f":"IF(AND(Pay_Emp>0,(Benefits_Emp+Exps_Emp)>0),1,0)","v":0}]
["L4",null,"plus","Benefits and expenses received",null,{"$f":"Benefits_Emp","v":0},null,null,null,null,null,{"$f":"IF(Benefits_Emp>0,1,0)","v":0}]
["L5",null,"minus","Allowable expenses",null,{"$f":"Exps_Emp","v":0},null,null,null,null,null,{"$f":"IF(Exps_Emp>0,1,0)","v":0}]
["L6",null,"Pay from all employments",null,null,null,{"$f":"income_E","v":0},null,null,null,null,{"$f":"IF(AND(Benefits_Emp+Exps_Emp=0,income_E>0),1,0)","v":0}]
["or",null,"Total from all employments",null,null,null,{"$f":"income_E","v":0},null,null,null,null,{"$f":"IF(AND(Benefits_Emp+Exps_Emp>0,income_E>0),1,0)","v":0}]
["L7",null,"Share schemes",null,null,null,{"$f":"income_Shares","v":0},null,null,null,null,{"$f":"IF(income_Shares>0,1,0)","v":0}]
["L8",null,"Profit from self-employment",null,null,null,{"$f":"income_D","v":0},null,null,null,null,{"$f":"IF(income_D>0,1,0)","v":0}]
["L9",null,"Profit from partnerships",null,null,null,{"$f":"income_D_PTR","v":0},null,null,null,null,{"$f":"IF(income_D_PTR>0,1,0)","v":0}]
["L9a",null,"Interest from partnerships",null,null,null,{"$f":"income_S_PTR","v":0},null,null,null,null,{"$f":"IF(income_S_PTR>0,1,0)","v":0}]
["L9b",null,"Dividends from partnerships",null,null,null,{"$f":"income_DV_PTR","v":0},null,null,null,null,{"$f":"IF(income_DV_PTR>0,1,0)","v":0}]
["L10",null,"Profit from UK land and property",null,null,null,{"$f":"income_IFP","v":0},null,null,null,null,{"$f":"IF(income_IFP>0,1,0)","v":0}]
["L11",null,"Foreign income",null,null,null,{"$f":"income_Foreign","v":0},null,null,null,null,{"$f":"IF(income_Foreign>0,1,0)","v":0}]
["L11A",null,"Dividends from foreign companies",null,null,null,{"$f":"foreign_dividends","v":0},null,null,null,null,{"$f":"IF(foreign_dividends>0,1,0)","v":0}]
["L11B",null,"Foreign savings",null,null,null,{"$f":"foreign_savings","v":0},null,null,null,null,{"$f":"IF(foreign_savings>0,1,0)","v":0}]
["L11C",null,"Foreign Gains on life insurance policies with tax treated as paid",null,null,null,{"$f":"Foreign_CEG_dedn","v":0},null,null,null,null,{"$f":"IF(Foreign_CEG_dedn>0,1,0)","v":0}]
["L12",null,"Trusts and estates",null,null,null,{"$f":"income_Trust","v":0},null,null,null,null,{"$f":"IF(income_Trust>0,1,0)","v":0}]
["L13",null,"Interest from UK banks, building societies and securities etc.",null,null,null,{"$f":"income_Case3","v":0},null,null,null,null,{"$f":"IF(income_Case3>0,1,0)","v":0}]
["L14",null,"Dividends from UK companies",null,null,null,{"$f":"income_F","v":0},null,null,null,null,{"$f":"IF(income_F>0,1,0)","v":0}]
["L15",null,"UK pensions and state benefits",null,null,null,{"$f":"income_Pensions","v":0},null,null,null,null,{"$f":"IF(income_Pensions>0,1,0)","v":0}]
["L16",null,"Gains on life insurance policies etc.",null,null,null,{"$f":"income_CEG","v":0},null,null,null,null,{"$f":"IF(income_CEG>0,1,0)","v":0}]
["L16a",null,"Gains on life insurance policies etc. with tax treated as paid",null,null,null,{"$f":"income_CEG_dedn","v":0},null,null,null,null,{"$f":"IF(income_CEG_dedn>0,1,0)","v":0}]
["L17",null,"Other income",null,null,null,{"$f":"income_Other","v":0},null,null,null,null,{"$f":"IF(income_Other>0,1,0)","v":0}]
["L17a",null,"Redundancy, lump sums, compensation etc.",null,null,null,{"$f":"income_termination","v":0},null,null,null,null,{"$f":"IF(income_termination>0,1,0)","v":0}]
["L18",null,"Total income received",null,null,null,null,{"$f":"income_Total","v":0},null,null,null,1]
["L19",null,null,null,null,null,null,null,null,null,null,1]
["L20",null,"minus ",null,null,null,null,null,null,null,null,{"$f":"IF(Allce_PA=Allce_dedn_total,0,1)","v":0}]
["L21",null,null,null,null,null,null,null,null,null,null,{"$f":"IF(Allce_PA=Allce_dedn_total,0,1)","v":0}]
["L22",null,"Payments into a retirement annuity contract etc.",null,null,null,{"$f":"dedn_RAR","v":0},null,null,null,null,{"$f":"IF(dedn_RAR>0,1,0)","v":0}]
["L23",null,"Foreign tax on estates (tax credit relief not claimed)",null,null,null,{"$f":"dedn_Trust","v":0},null,null,null,null,{"$f":"IF(dedn_Trust>0,1,0)","v":0}]
["L25",null,"Income tax relief",null,null,null,{"$f":"ded_Loss","v":0},null,null,null,null,{"$f":"IF(AND(ded_Loss>0,ded_Loss=ded_loss_restricted),1,0)","v":0}]
["or",null,{"$f":"\"Income tax relief \"&DOLLAR(ded_Loss,0)&\" reduced to maximum allowable \"","v":"Income tax relief £0 reduced to maximum allowable "},null,null,null,{"$f":"ded_loss_restricted","v":0},null,null,null,null,{"$f":"IF(AND(ded_Loss>0,ded_Loss>ded_loss_restricted),1,0)","v":0}]
["L26",null,"Annuities",null,null,null,{"$f":"dedn_Annuity","v":0},null,null,null,null,{"$f":"IF(dedn_Annuity>0,1,0)","v":0}]
["L27",null,"Gift of investments and property to charity",null,null,null,{"$f":"dedn_Gift","v":0},null,null,null,null,{"$f":"IF(dedn_Gift>0,1,0)","v":0}]
["L27.1",null,"Foreign income relief",null,null,null,{"$f":"Fi_Rel","v":0},null,null,null,null,{"$f":"IF(Fi_Rel>0,1,0)","v":0}]
["L27.2",null,"Foreign employment relief",null,null,null,{"$f":"Fe_Rel_restricted","v":0},null,null,null,null,{"$f":"IF(AND(Fe_Rel_claimed>0,Fe_Rel_claimed=Fe_Rel_restricted),1,0)","v":0}]
["or",null,{"$f":"\"Foreign employment relief \"&DOLLAR(Fe_Rel_claimed,0)&\" reduced to maximum allowable \"","v":"Foreign employment relief £0 reduced to maximum allowable "},null,null,null,{"$f":"Fe_Rel_restricted","v":0},null,null,null,null,{"$f":"IF(AND(Fe_Rel_claimed>0,Fe_Rel_claimed>Fe_Rel_restricted),1,0)","v":0}]
["L29",null,"Personal Allowance",null,null,null,{"$f":"Allce_PA","v":12570},null,null,null,null,{"$f":"IF(AND(Allce_PA<>Allce_dedn_total,Allce_PA>0,Allce_PA=P_A),1,0)","v":0}]
["or",null,"Reduced Personal Allowance",null,null,null,{"$f":"Allce_PA","v":12570},null,null,null,null,{"$f":"IF(AND(Allce_PA<>Allce_dedn_total,Allce_PA>0,Allce_PA<>P_A),1,0)","v":0}]
["or",null,"minus",{"$f":"C49","v":"Personal Allowance"},null,null,null,{"$f":"Allce_PA","v":12570},null,null,null,{"$f":"IF(AND(Allce_PA=Allce_dedn_total,Allce_PA>0,Allce_PA=P_A),1,0)","v":1}]
["or",null,"minus",{"$f":"C50","v":"Reduced Personal Allowance"},null,null,null,{"$f":"Allce_PA","v":12570},null,null,null,{"$f":"IF(AND(Allce_PA=Allce_dedn_total,Allce_PA>0,Allce_PA<P_A),1,0)","v":0}]
["L30",null,"less","Marriage Allowance transfer",null,null,{"$f":"AllceOut_TPA","v":0},null,null,null,null,{"$f":"IF(AllceOut_TPA>0,IF(AND(Allce_PA<>Allce_dedn_total,Allce_PA>0),1,0),0)","v":0}]
["or",null,"less","Marriage Allowance transfer",null,null,null,{"$f":"AllceOut_TPA","v":0},null,null,null,{"$f":"IF(AllceOut_TPA>0,IF(AND(Allce_PA=Allce_dedn_total,Allce_PA>0),1,0),0)","v":0}]
["L31",null,"Blind Person's Allowance",null,null,null,{"$f":"Allce_BPA","v":0},null,null,null,null,{"$f":"IF(Allce_BPA>0,1,0)","v":0}]
["L32",null,"Blind Person's surplus allowance from spouse",null,null,null,{"$f":"Allce_BPA_Spare","v":0},null,null,null,null,{"$f":"IF(Allce_BPA_Spare>0,1,0)","v":0}]
["L34",null,"Total ",null,null,null,null,{"$f":"Allce_dedn_total","v":12570},null,null,null,{"$f":"IF(Allce_PA=Allce_dedn_total,0,1)","v":0}]
["L35",null,null,null,null,null,null,null,null,null,null,1]
["L36",null,"Total income on which tax is due",null,null,null,null,{"$f":"taxable_income","v":0},null,null,null,{"$f":"IF(taxable_income>0,1,0)","v":0}]
["or",null,"Total income",null,null,null,null,{"$f":"taxable_income","v":0},null,null,null,{"$f":"IF(taxable_income<=0,1,0)","v":1}]
["L37",null,null,null,null,null,null,null,null,null,null,1]
["L38",null,"How I have worked out your Income Tax",null,null,null,null,null,null,null,null,1]
["L39",null,{"$f":"\"Your basic rate limit has been increased by \"&DOLLAR(ppr_extender,0)&\" and \"&DOLLAR(gift_extender,0)&\" to \"&DOLLAR(extended_BR,0)","v":"Your basic rate limit has been increased by £0 and £0 to £37,700"},null,null,null,null,null,null,null,null,{"$f":"IF(AND('Status (c3a)'!E21=1,ppr_extender>0,gift_extender>0),1,IF(AND('Status (c3a)'!E21=3,ppr_extender>0,gift_extender>0),1,0))","v":0}]
[null,null,"for pension payments and Gift Aid payments. This reduces the amount of income charged to higher rates of tax.",null,null,null,null,null,null,null,null,{"$f":"IF(AND('Status (c3a)'!E21=1,ppr_extender>0,gift_extender>0),1,IF(AND('Status (c3a)'!E21=3,ppr_extender>0,gift_extender>0),1,0))","v":0}]
["or",null,{"$f":"\"Your basic rate limit has been increased by \"&DOLLAR(ppr_extender,0)&\" to \"&DOLLAR(extended_BR,0)&\" for pension payments.\"","v":"Your basic rate limit has been increased by £0 to £37,700 for pension payments."},null,null,null,null,null,null,null,null,{"$f":"IF(AND('Status (c3a)'!E21=1,ppr_extender>0,gift_extender=0),1,IF(AND('Status (c3a)'!E21=3,ppr_extender>0,gift_extender=0),1,0))","v":0}]
[null,null,"This reduces the amount of income charged to higher rates of tax.",null,null,null,null,null,null,null,null,{"$f":"IF(AND('Status (c3a)'!E21=1,ppr_extender>0,gift_extender=0),1,IF(AND('Status (c3a)'!E21=3,ppr_extender>0,gift_extender=0),1,0))","v":0}]
["or",null,{"$f":"\"Your basic rate limit has been increased by \"&DOLLAR(gift_extender,0)&\" to \"&DOLLAR(extended_BR,0)&\" for Gift Aid payments.\"","v":"Your basic rate limit has been increased by £0 to £37,700 for Gift Aid payments."},null,null,null,null,null,null,null,null,{"$f":"IF(AND('Status (c3a)'!E21=1,ppr_extender=0,gift_extender>0),1,IF(AND('Status (c3a)'!E21=3,ppr_extender=0,gift_extender>0),1,0))","v":0}]
[null,null," This reduces the amount of income charged to higher rates of tax.",null,null,null,null,null,null,null,null,{"$f":"IF(AND('Status (c3a)'!E21=1,ppr_extender=0,gift_extender>0),1,IF(AND('Status (c3a)'!E21=3,ppr_extender=0,gift_extender>0),1,0))","v":0}]
["L39s",null,{"$f":"\"Your pension payments of \"&DOLLAR(ppr_extender,0)&\" and Gift Aid contributions of \"&DOLLAR(gift_extender,0)&\" have increased your basic rate limits.\"","v":"Your pension payments of £0 and Gift Aid contributions of £0 have increased your basic rate limits."},null,null,null,null,null,null,null,null,{"$f":"IF(AND('Status (c3a)'!E21=2,ppr_extender>0,gift_extender>0),1,0)","v":0}]
[null,null,"This ensures you receive additional relief on your contributions at your highest marginal rate of tax.",null,null,null,null,null,null,null,null,{"$f":"IF(AND('Status (c3a)'!E21=2,ppr_extender>0,gift_extender>0),1,0)","v":0}]
["or",null,{"$f":"\"Your pension payments of \"&DOLLAR(ppr_extender,0)&\" have increased your basic rate limits.\"","v":"Your pension payments of £0 have increased your basic rate limits."},null,null,null,null,null,null,null,null,{"$f":"IF(AND('Status (c3a)'!E21=2,ppr_extender>0,gift_extender=0),1,0)","v":0}]
[null,null,"This ensures you receive additional relief on your contributions at your highest marginal rate of tax.",null,null,null,null,null,null,null,null,{"$f":"IF(AND('Status (c3a)'!E21=2,ppr_extender>0,gift_extender=0),1,0)","v":0}]
["or",null,{"$f":"\"Your gift aid contributions of \"&DOLLAR(gift_extender,0)&\" have increased your basic rate limits.\"","v":"Your gift aid contributions of £0 have increased your basic rate limits."},null,null,null,null,null,null,null,null,{"$f":"IF(AND('Status (c3a)'!E21=2,ppr_extender=0,gift_extender>0),1,0)","v":0}]
[null,null,"This ensures you receive additional relief on your contributions at your highest marginal rate of tax.",null,null,null,null,null,null,null,null,{"$f":"IF(AND('Status (c3a)'!E21=2,ppr_extender=0,gift_extender>0),1,0)","v":0}]
["L40",null,{"$f":"\"Your pension payments of \"&DOLLAR(ppr_claim,0)&\" have been restricted to\"","v":"Your pension payments of £0 have been restricted to"},null,null,null,null,null,null,null,null,{"$f":"IF(ppr_claim>ppr_extender,1,0)","v":0}]
[null,null,{"$f":"\"the greater of the basic amount (\"&DOLLAR(min_relevant_earns,0)&\") and your relevant earnings.\"","v":"the greater of the basic amount (£3,600) and your relevant earnings."},null,null,null,null,null,null,null,null,{"$f":"IF(ppr_claim>ppr_extender,1,0)","v":0}]
["L41",null,null,null,null,null,null,null,null,null,null,1]
["L42",null,"Pay, pensions, profit etc. (UK rate for England and Northern Ireland)",null,null,null,null,null,null,null,null,{"$f":"IF(AND(box_NRD1= FALSE,Residency_Status_in_UK=1,(taxable_pay_SSR+taxable_pay_BR+taxable_pay_SIR+taxable_pay_HR+taxable_pay_SAR+taxable_pay_AHR)>0),1,0)","v":0}]
["or",null,"Pay, pensions, profit etc. (Scottish income tax rate)",null,null,null,null,null,null,null,null,{"$f":"IF(AND('Status (c3a)'!E21=2,(taxable_pay_SSR+taxable_pay_BR+taxable_pay_SIR+taxable_pay_HR+taxable_pay_SAR+taxable_pay_AHR)>0),1,0)","v":0}]
["or",null,null,"Pay, pensions, profit etc. (Welsh income tax rate)",null,null,null,null,null,null,null,{"$f":"IF(AND('Status (c3a)'!E21=3,(taxable_pay_SSR+taxable_pay_BR+taxable_pay_SIR+taxable_pay_HR+taxable_pay_SAR+taxable_pay_AHR)>0),1,0)","v":0}]
["or",null,"Pay, pensions, profit etc.",null,null,null,null,null,null,null,null,{"$f":"IF(AND(box_NRD1,(taxable_pay_SSR+taxable_pay_BR+taxable_pay_SIR+taxable_pay_HR+taxable_pay_SAR+taxable_pay_AHR)>0),1,0)","v":0}]
["L42a",null,null,null,null,"Starter rate",null,{"$f":"taxable_pay_SSR","v":0},{"$f":"\"x \"&SSR_rate*100&\"% =\"","v":"x 19% ="},{"$f":"tax_on_pay_SSR","v":0},null,{"$f":"IF(AND('Status (c3a)'!E21=2,(taxable_pay_SSR+taxable_pay_BR+taxable_pay_SIR+taxable_pay_HR+taxable_pay_SAR+taxable_pay_AHR)>0),1,0)","v":0}]
["L43",null,null,null,null,"Basic rate",null,{"$f":"taxable_pay_BR","v":0},{"$f":"\"x \"&BR_rate*100&\"% =\"","v":"x 20% ="},{"$f":"tax_on_pay_BR","v":0},null,{"$f":"IF(AND('Status (c3a)'!E21=1,(taxable_pay_BR+taxable_pay_HR+taxable_pay_AHR)>0),1,0)","v":0}]
["or",null,null,null,null,"Basic rate",null,{"$f":"taxable_pay_BR","v":0},{"$f":"\"x \"&SBR_rate*100&\"% =\"","v":"x 20% ="},{"$f":"tax_on_pay_BR","v":0},null,{"$f":"IF(AND('Status (c3a)'!E21=2,(taxable_pay_BR+taxable_pay_HR+taxable_pay_SAR+taxable_pay_AHR)>0),1,0)","v":0}]
["or",null,null,null,null,"Basic rate",null,{"$f":"taxable_pay_BR","v":0},{"$f":"\"x \"&WBR_rate*100&\"% =\"","v":"x 20% ="},{"$f":"tax_on_pay_BR","v":0},null,{"$f":"IF(AND('Status (c3a)'!E21=3,(taxable_pay_BR+taxable_pay_HR+taxable_pay_AHR)>0),1,0)","v":0}]
["L43a",null,null,null,null,"Intermediate rate",null,{"$f":"taxable_pay_SIR","v":0},"x 21% =",{"$f":"tax_on_pay_SIR","v":0},null,{"$f":"IF(AND('Status (c3a)'!E21=2,(taxable_pay_SIR+taxable_pay_HR+taxable_pay_SAR+taxable_pay_AHR)>0),1,0)","v":0}]
["L44",null,null,null,null,"Higher rate",null,{"$f":"taxable_pay_HR","v":0},{"$f":"\"x \"&HR_rate*100&\"% =\"","v":"x 40% ="},{"$f":"tax_on_pay_HR","v":0},null,{"$f":"IF(AND('Status (c3a)'!E21=1,taxable_pay_HR+taxable_pay_AHR>0),1,0)","v":0}]
["or",null,null,null,null,"Higher rate",null,{"$f":"taxable_pay_HR","v":0},{"$f":"\"x \"&SHR_rate*100&\"% =\"","v":"x 42% ="},{"$f":"tax_on_pay_HR","v":0},null,{"$f":"IF(AND('Status (c3a)'!E21=2,taxable_pay_HR+taxable_pay_SAR+taxable_pay_AHR>0),1,0)","v":0}]
["or",null,null,null,null,"Higher rate",null,{"$f":"taxable_pay_HR","v":0},{"$f":"\"x \"&WHR_rate*100&\"% =\"","v":"x 40% ="},{"$f":"tax_on_pay_HR","v":0},null,{"$f":"IF(AND('Status (c3a)'!E21=3,taxable_pay_HR+taxable_pay_AHR>0),1,0)","v":0}]
["L44aa",null,null,null,null,null,"Advanced rate",{"$f":"taxable_pay_SAR","v":0},{"$f":"\"x \"&SAR_rate*100&\"% =\"","v":"x 45% ="},{"$f":"tax_on_pay_SAR","v":0},null,{"$f":"IF(AND('Status (c3a)'!E21=2,taxable_pay_SAR+taxable_pay_AHR>0),1,0)","v":0}]
["L44A",null,null,null,null,"Additional rate",null,{"$f":"taxable_pay_AHR","v":0},{"$f":"\"x \"&AHR_rate*100&\"% =\"","v":"x 45% ="},{"$f":"tax_on_pay_AHR","v":0},null,{"$f":"IF(AND('Status (c3a)'!E21=1,taxable_pay_AHR>0),1,0)","v":0}]
["or",null,null,null,null,"Top rate",null,{"$f":"taxable_pay_AHR","v":0},{"$f":"\"x \"&SAHR_rate*100&\"% =\"","v":"x 48% ="},{"$f":"tax_on_pay_AHR","v":0},null,{"$f":"IF(AND('Status (c3a)'!E21=2,taxable_pay_AHR>0),1,0)","v":0}]
["or",null,null,null,null,"Additional rate",null,{"$f":"taxable_pay_AHR","v":0},{"$f":"\"x \"&WAHR_rate*100&\"% =\"","v":"x 45% ="},{"$f":"tax_on_pay_AHR","v":0},null,{"$f":"IF(AND('Status (c3a)'!E21=3,taxable_pay_AHR>0),1,0)","v":0}]
["L45",null,null,null,null,null,null,null,null,null,null,{"$f":"IF(AND((taxable_pay_BR+taxable_pay_HR+taxable_pay_AHR)>0,OR(income_Savings_taxfree_BR+Income_Savings_taxfree_HR+taxable_int_SR+taxable_int_BR+taxable_int_HR+taxable_int_AHR>0,divs_taxfree_BR+taxable_divs_BR+divs_taxfree_HR+taxable_divs_HR+taxable_divs_AHR+divs_taxfree_AHR>0,taxable_redundancy_SSR+taxable_redundancy_BR+taxable_redundancy_SIR+taxable_redundancy_HR+taxable_redundancy_SAR+taxable_redundancy_AHR>0,income_CEG_taxfree_BR+taxable_CEG_SR+taxable_CEG_BR+income_CEG_taxfree_BR+taxable_CEG_HR+income_CEG_taxfree_HR+taxable_CEG_AHR>0)),1,0)","v":0}]
["L46",null,"Savings interest from banks or building societies, securities etc.",null,null,null,null,null,null,null,null,{"$f":"IF(income_Savings_taxfree_BR+Income_Savings_taxfree_HR+taxable_int_SR+taxable_int_BR+taxable_int_HR+taxable_int_AHR>0,1,0)","v":0}]
["L46a",null,null,null,null,"Starting rate",null,{"$f":"taxable_int_SR","v":0},"x 0% =",{"$f":"tax_on_int_SR","v":0},null,{"$f":"IF(OR(income_Savings_taxfree_BR>0,taxable_int_SR+taxable_int_BR+taxable_int_HR+taxable_int_AHR>0),1,0)","v":0}]
["L46b",null,null,null,null,"Basic rate band at nil rate",null,{"$f":"income_Savings_taxfree_BR","v":0},"x 0% =",0,null,{"$f":"IF(income_Savings_taxfree_BR>0,1,0)","v":0}]
["L47",null,null,null,null,"Basic rate",null,{"$f":"taxable_int_BR","v":0},"x 20% =",{"$f":"tax_on_int_BR","v":0},null,{"$f":"IF(taxable_int_BR+taxable_int_HR+taxable_int_AHR>0,1,0)","v":0}]
["L47a",null,null,null,null,"Higher rate band at nil rate",null,{"$f":"Income_Savings_taxfree_HR","v":0},"x 0% =",0,null,{"$f":"IF(Income_Savings_taxfree_HR>0,1,0)","v":0}]
["L48",null,null,null,null,"Higher rate",null,{"$f":"taxable_int_HR","v":0},"x 40% =",{"$f":"tax_on_int_HR","v":0},null,{"$f":"IF(taxable_int_HR+taxable_int_AHR>0,1,0)","v":0}]
["L48A",null,null,null,null,"Additional rate",null,{"$f":"taxable_int_AHR","v":0},"x 45% =",{"$f":"tax_on_int_AHR","v":0},null,{"$f":"IF(taxable_int_AHR>0,1,0)","v":0}]
["L49",null,null,null,null,null,null,null,null,null,null,{"$f":"IF(AND(income_Savings_taxfree_BR+taxable_int_SR+taxable_int_BR+income_Savings_taxfree_BR+taxable_int_HR+Income_Savings_taxfree_HR+taxable_int_AHR>0,divs_taxfree_BR+taxable_divs_BR+taxable_divs_HR+divs_taxfree_HR+taxable_divs_AHR+divs_taxfree_AHR>0),1,0)","v":0}]
["L50",null,null,null,null," Dividends from companies etc.",null,null,null,null,null,{"$f":"IF(OR(taxable_divs_BR+taxable_divs_HR+taxable_divs_AHR>0,divs_taxfree_BR+divs_taxfree_HR+divs_taxfree_AHR>0),1,0)","v":0}]
["L50a",null,null,null,null,"Basic rate band at nil rate",null,{"$f":"divs_taxfree_BR","v":0},"x 0% =",0,null,{"$f":"IF(divs_taxfree_BR>0,1,0)","v":0}]
["L50b",null,null,null,null,"Basic rate",null,{"$f":"taxable_divs_BR","v":0},{"$f":"\"x \"&DivBR_rate*100&\"% =\"","v":"x 8.75% ="},{"$f":"tax_on_divs_BR","v":0},null,{"$f":"IF((taxable_divs_BR+taxable_divs_HR+taxable_divs_AHR)>0,1,0)","v":0}]
["L50c",null,null,null,null,"Higher rate band at nil rate",null,{"$f":"divs_taxfree_HR","v":0},"x 0% =",0,null,{"$f":"IF(divs_taxfree_HR>0,1,0)","v":0}]
["L51",null,null,null,null,"Higher rate",null,{"$f":"taxable_divs_HR","v":0},{"$f":"\"x \"&DivHR_rate*100&\"% =\"","v":"x 33.75% ="},{"$f":"tax_on_divs_HR","v":0},null,{"$f":"IF((taxable_divs_HR+taxable_divs_AHR)>0,1,0)","v":0}]
["L51a",null,null,null,null,"Additional rate band at nil rate",null,{"$f":"divs_taxfree_AHR","v":0},"x 0% =",0,null,{"$f":"IF(divs_taxfree_AHR>0,1,0)","v":0}]
["L51b",null,null,null,null,"Additional rate",null,{"$f":"taxable_divs_AHR","v":0},{"$f":"\"x \"&DivAR_rate*100&\"% =\"","v":"x 39.35% ="},{"$f":"tax_on_divs_AHR","v":0},null,{"$f":"IF(taxable_divs_AHR>0,1,0)","v":0}]
["L51c",null,null,null,null,null,null,null,null,null,null,{"$f":"IF(AND(divs_taxfree_BR+taxable_divs_BR+taxable_divs_HR+divs_taxfree_HR+taxable_divs_AHR+divs_taxfree_AHR>0,taxable_redundancy_SSR+taxable_redundancy_BR+taxable_redundancy_SIR+taxable_redundancy_HR+taxable_redundancy_SAR+taxable_redundancy_AHR>0),1,0)","v":0}]
["L52",null,"Redundancy, lump sums, compensation etc. (UK rate for England and Northern Ireland)",null,null,null,null,null,null,null,null,{"$f":"IF(AND(box_NRD1= FALSE,Residency_Status_in_UK=1,(taxable_redundancy_SSR+taxable_redundancy_BR+taxable_redundancy_SIR+taxable_redundancy_HR+taxable_redundancy_SAR+taxable_redundancy_AHR)>0),1,0)","v":0}]
["or",null,"Redundancy, lump sums, compensation etc. (Scottish income tax rate)",null,null,null,null,null,null,null,null,{"$f":"IF(AND('Status (c3a)'!E21=2,(taxable_redundancy_SSR+taxable_redundancy_BR+taxable_redundancy_SIR+taxable_redundancy_HR+taxable_redundancy_SAR+taxable_redundancy_AHR)>0),1,0)","v":0}]
["or",null,null,"Redundancy, lump sums, compensation etc. (Welsh income tax rate)",null,null,null,null,null,null,null,{"$f":"IF(AND('Status (c3a)'!E21=3,(taxable_redundancy_SSR+taxable_redundancy_BR+taxable_redundancy_SIR+taxable_redundancy_HR+taxable_redundancy_SAR+taxable_redundancy_AHR)>0),1,0)","v":0}]
["or",null,"Redundancy, lump sums, compensation etc.",null,null,null,null,null,null,null,null,{"$f":"IF(AND(box_NRD1,(taxable_redundancy_SSR+taxable_redundancy_BR+taxable_redundancy_SIR+taxable_redundancy_HR+taxable_redundancy_SAR+taxable_redundancy_AHR)>0),1,0)","v":0}]
["L52a",null,null,null,null,"Starter rate",null,{"$f":"taxable_redundancy_SSR","v":0},{"$f":"\"x \"&SSR_rate*100&\"% =\"","v":"x 19% ="},{"$f":"tax_on_redundancy_SSR","v":0},null,{"$f":"IF(AND('Status (c3a)'!E21=2,(taxable_redundancy_SSR+taxable_redundancy_BR+taxable_redundancy_SIR+taxable_redundancy_HR+taxable_redundancy_SAR+taxable_redundancy_AHR)>0),1,0)","v":0}]
["L52b",null,null,null,null,"Basic rate",null,{"$f":"taxable_redundancy_BR","v":0},{"$f":"\"x \"&BR_rate*100&\"% =\"","v":"x 20% ="},{"$f":"tax_on_redundancy_BR","v":0},null,{"$f":"IF(AND('Status (c3a)'!E21=1,(taxable_redundancy_BR+taxable_redundancy_HR+taxable_redundancy_AHR)>0),1,0)","v":0}]
["or",null,null,null,null,"Basic rate",null,{"$f":"taxable_redundancy_BR","v":0},{"$f":"\"x \"&SBR_rate*100&\"% =\"","v":"x 20% ="},{"$f":"tax_on_redundancy_BR","v":0},null,{"$f":"IF(AND('Status (c3a)'!E21=2,(taxable_redundancy_BR+taxable_redundancy_HR+taxable_redundancy_SAR+taxable_redundancy_AHR)>0),1,0)","v":0}]
["or",null,null,null,null,"Basic rate",null,{"$f":"taxable_redundancy_BR","v":0},{"$f":"\"x \"&WBR_rate*100&\"% =\"","v":"x 20% ="},{"$f":"tax_on_redundancy_BR","v":0},null,{"$f":"IF(AND('Status (c3a)'!E21=3,(taxable_redundancy_BR+taxable_redundancy_HR+taxable_redundancy_AHR)>0),1,0)","v":0}]
["L52c",null,null,null,null,"Intermediate rate",null,{"$f":"taxable_redundancy_SIR","v":0},"x 21% =",{"$f":"tax_on_redundancy_SIR","v":0},null,{"$f":"IF(AND('Status (c3a)'!E21=2,(taxable_redundancy_SIR+taxable_redundancy_HR+taxable_redundancy_SAR+taxable_redundancy_AHR)>0),1,0)","v":0}]
["L52d",null,null,null,null,"Higher rate",null,{"$f":"taxable_redundancy_HR","v":0},{"$f":"\"x \"&HR_rate*100&\"% =\"","v":"x 40% ="},{"$f":"tax_on_redundancy_HR","v":0},null,{"$f":"IF(AND('Status (c3a)'!E21=1,taxable_redundancy_HR+taxable_redundancy_AHR>0),1,0)","v":0}]
["or",null,null,null,null,"Higher rate",null,{"$f":"taxable_redundancy_HR","v":0},{"$f":"\"x \"&SHR_rate*100&\"% =\"","v":"x 42% ="},{"$f":"tax_on_redundancy_HR","v":0},null,{"$f":"IF(AND('Status (c3a)'!E21=2,taxable_redundancy_HR+taxable_redundancy_SAR+taxable_redundancy_AHR>0),1,0)","v":0}]
["or",null,null,null,null,"Higher rate",null,{"$f":"taxable_redundancy_HR","v":0},{"$f":"\"x \"&WHR_rate*100&\"% =\"","v":"x 40% ="},{"$f":"tax_on_redundancy_HR","v":0},null,{"$f":"IF(AND('Status (c3a)'!E21=3,taxable_redundancy_HR+taxable_redundancy_AHR>0),1,0)","v":0}]
["L52dd",null,null,null,null,null,"Advanced rate",{"$f":"taxable_redundancy_SAR","v":0},{"$f":"\"x \"&SAR_rate*100&\"% =\"","v":"x 45% ="},{"$f":"tax_on_redundancy_SAR","v":0},null,{"$f":"IF(AND('Status (c3a)'!E21=2,taxable_redundancy_SAR+taxable_redundancy_AHR>0),1,0)","v":0}]
["L52e",null,null,null,null,"Additional rate",null,{"$f":"taxable_redundancy_AHR","v":0},{"$f":"\"x \"&AHR_rate*100&\"% =\"","v":"x 45% ="},{"$f":"tax_on_redundancy_AHR","v":0},null,{"$f":"IF(AND('Status (c3a)'!E21=1,taxable_redundancy_AHR>0),1,0)","v":0}]
["or",null,null,null,null,"Top rate",null,{"$f":"taxable_redundancy_AHR","v":0},{"$f":"\"x \"&SAHR_rate*100&\"% =\"","v":"x 48% ="},{"$f":"tax_on_redundancy_AHR","v":0},null,{"$f":"IF(AND('Status (c3a)'!E21=2,taxable_redundancy_AHR>0),1,0)","v":0}]
["or",null,null,null,null,"Additional rate",null,{"$f":"taxable_redundancy_AHR","v":0},{"$f":"\"x \"&WAHR_rate*100&\"% =\"","v":"x 45% ="},{"$f":"tax_on_redundancy_AHR","v":0},null,{"$f":"IF(AND('Status (c3a)'!E21=3,taxable_redundancy_AHR>0),1,0)","v":0}]
["L53",null,null,null,null,null,null,null,null,null,null,{"$f":"IF(AND(taxable_redundancy_SSR+taxable_redundancy_BR+taxable_redundancy_SIR+taxable_redundancy_HR+taxable_redundancy_SAR+taxable_redundancy_AHR+taxable_redundancy_AHR>0,income_CEG_taxfree_BR+taxable_CEG_SR+taxable_CEG_BR+income_CEG_taxfree_BR+taxable_CEG_HR+income_CEG_taxfree_HR+taxable_CEG_AHR>0),1,0)","v":0}]
["L53a",null,"Gains on life insurance policies etc. with tax treated as paid",null,null,null,null,null,null,null,null,{"$f":"IF(income_CEG_taxfree_BR+income_CEG_taxfree_HR+taxable_CEG_SR+taxable_CEG_BR+taxable_CEG_HR+taxable_CEG_AHR>0,1,0)","v":0}]
["L53b",null,null,null,null,"Starting rate",null,{"$f":"taxable_CEG_SR","v":0},"x 0% =",{"$f":"tax_on_CEG_SR","v":0},null,{"$f":"IF(OR(income_CEG_taxfree_BR>0,taxable_CEG_SR+taxable_CEG_BR+taxable_CEG_HR+taxable_CEG_AHR>0),1,0)","v":0}]
["L53c",null,null,null,null,"Basic rate band at nil rate",null,{"$f":"income_CEG_taxfree_BR","v":0},"x 0% =",0,null,{"$f":"IF(income_CEG_taxfree_BR>0,1,0)","v":0}]
["L53d",null,null,null,null,"Basic rate",null,{"$f":"taxable_CEG_BR","v":0},"x 20% =",{"$f":"tax_on_CEG_BR","v":0},null,{"$f":"IF(taxable_CEG_BR+taxable_CEG_HR+taxable_CEG_AHR>0,1,0)","v":0}]
["L53e",null,null,null,null,"Higher rate band at nil rate",null,{"$f":"income_CEG_taxfree_HR","v":0},"x 0% =",0,null,{"$f":"IF(income_CEG_taxfree_HR>0,1,0)","v":0}]
["L53f",null,null,null,null,"Higher rate",null,{"$f":"taxable_CEG_HR","v":0},"x 40% =",{"$f":"tax_on_CEG_HR","v":0},null,{"$f":"IF(taxable_CEG_HR+taxable_CEG_AHR>0,1,0)","v":0}]
["L53g",null,null,null,null,"Additional rate",null,{"$f":"taxable_CEG_AHR","v":0},"x 45% =",{"$f":"tax_on_CEG_AHR","v":0},null,{"$f":"IF(taxable_CEG_AHR>0,1,0)","v":0}]
["L54",null,"Total income on which tax has been charged",null,null,null,null,{"$f":"taxable_income","v":0},null,null,null,1]
["L55",null,null,null,null,null,null,null,null,null,null,1]
["L55a",null,"Income Tax due after allowances and reliefs",null,null,null,null,null,null,{"$f":"pre_TP_tax_charged","v":0},null,{"$f":"IF(AND(transition_profit>0,tax_charged=Total_tax_NIC_due),1,0)","v":0}]
["or",null,"Income Tax charged after allowances and reliefs",null,null,null,null,null,null,{"$f":"pre_TP_tax_charged","v":0},null,{"$f":"IF(AND(transition_profit>0,tax_charged<>Total_tax_NIC_due),1,0)","v":0}]
["L55b",null,null,null,null,null,null,null,null,null,null,{"$f":"IF(transition_profit>0,1,0)","v":0}]
["L55c",null,"plus",{"$f":"\"Tax due on transition profit of \"&DOLLAR(transition_profit,0)&\"\"","v":"Tax due on transition profit of £0"},null,null,null,null,null,{"$f":"tax_on_transition_profit","v":0},null,{"$f":"IF(transition_profit>0,1,0)","v":0}]
["L55d",null,null,null,null,null,null,null,null,null,null,{"$f":"IF(transition_profit>0,1,0)","v":0}]
["L56",null,"Income Tax due after allowances and reliefs",null,null,null,null,null,null,{"$f":"tax_charged","v":0},null,{"$f":"IF(tax_charged=Total_tax_NIC_due,1,0)","v":1}]
["or",null,"Income Tax charged after allowances and reliefs",null,null,null,null,null,null,{"$f":"tax_charged","v":0},null,{"$f":"IF(tax_charged<>Total_tax_NIC_due,1,0)","v":0}]
["L57",null,null,null,null,null,null,null,null,null,null,1]
["L57A",null,"minus","Deficiency Relief",null,null,null,null,null,{"$f":"deficiency_relief","v":0},null,{"$f":"IF(deficiency_relief>0,1,0)","v":0}]
["L58",null,"minus","Top Slicing Relief",null,null,null,null,null,{"$f":"TSR","v":0},null,{"$f":"IF(TSR>0,1,0)","v":0}]
["L59",null,"minus","Venture Capital Trust relief",null,null,null,null,null,{"$f":"VCT","v":0},null,{"$f":"IF(VCT>0,1,0)","v":0}]
["L60",null,"minus","Enterprise Investment Scheme relief",null,null,null,null,null,{"$f":"EIS","v":0},null,{"$f":"IF(EIS>0,1,0)","v":0}]
["L60A",null,"minus","Seed Enterprise Investment Scheme relief",null,null,null,null,null,{"$f":"SEIS_Relief","v":0},null,{"$f":"IF(SEIS_Relief>0,1,0)","v":0}]
["L61",null,"minus","Community Investment Tax Relief",null,null,null,null,null,{"$f":"CITR","v":0},null,{"$f":"IF(CITR>0,1,0)","v":0}]
["L63",null,"minus","Maintenance and alimony paid",null,null,null,null,null,{"$f":"Alimony","v":0},null,{"$f":"IF(Alimony>0,1,0)","v":0}]
["L64",null,"minus","Married Couple's Allowance",null,null,null,{"$f":"MCA_amount","v":0},"x 10% =",{"$f":"MCA_relief","v":0},null,{"$f":"IF(MCA_amount>0,1,0)","v":0}]
["L65",null,"minus","Surplus Married Couple's Allowance from spouse",null,null,null,{"$f":"spare_MCA_amount","v":0},"x 10% =",{"$f":"spare_MCA_relief","v":0},null,{"$f":"IF(spare_MCA_amount>0,1,0)","v":0}]
["L66",null,"minus","Marriage Allowance Transfer",null,null,null,{"$f":"AllceIn_TPA","v":0},"x 20% =",{"$f":"AllceIn_TPA_relief","v":0},null,{"$f":"IF(AllceIn_TPA>0,1,0)","v":0}]
["L67",null,"minus","Relief for finance costs",null,null,null,{"$f":"Llir_amount","v":0},"x 20% =",{"$f":"Llir_relief","v":0},null,{"$f":"IF(AND(Llir_amount>0,Llir_amount=Llir_amount_restricted),1,0)","v":0}]
["or",null,"minus",{"$f":"\"Relief for finance costs \"&DOLLAR(Llir_amount,0)&\" reduced to maximum allowable \"","v":"Relief for finance costs £0 reduced to maximum allowable "},null,null,null,{"$f":"Llir_amount_restricted","v":0},"x 20% =",{"$f":"Llir_relief","v":0},null,{"$f":"IF(AND(Llir_amount>0,Llir_amount>Llir_amount_restricted),1,0)","v":0}]
["L67a",null,"minus","Relief for loan interest from investments",null,null,null,{"$f":"LFI_amount","v":0},"x 20% =",{"$f":"LFI_relief","v":0},null,{"$f":"IF(LFI_relief>0,1,0)","v":0}]
["L68",null,"minus","Relief for UK tax already accounted for",null,null,null,null,null,{"$f":"rel_tax_acct_for","v":0},null,{"$f":"IF(rel_tax_acct_for>0,1,0)","v":0}]
["L69",null,"minus","BR difference Tax Reduction",null,null,null,null,null,{"$f":"BRD_reduction","v":0},null,{"$f":"IF(BRD_reduction>0,1,0)","v":0}]
["L72",null,"minus","Foreign Tax Credit Relief",null,null,null,null,null,{"$f":"FTCR","v":0},null,{"$f":"IF(AND(FTCR>0,FTCR=FTCR_restricted),1,0)","v":0}]
["or",null,"minus",{"$f":"\"Foreign Tax Credit Relief \"&DOLLAR(FTCR,0)&\" reduced to maximum allowable \"","v":"Foreign Tax Credit Relief £0 reduced to maximum allowable "},null,null,null,null,null,{"$f":"FTCR_restricted","v":0},null,{"$f":"IF(AND(FTCR>0,FTCR>FTCR_restricted),1,0)","v":0}]
["L73",null,"minus","Additional pension relief",null,null,null,null,null,{"$f":"pens_tax_rel_due","v":0},null,{"$f":"IF(pens_tax_rel_due>0,1,0)","v":0}]
["L74",null,"minus","Relief claimed on a qualifying distribution",null,null,null,null,null,{"$f":"relief_on_qual_distn","v":0},null,{"$f":"IF(relief_on_qual_distn>0,1,0)","v":0}]
["L76",null,"Income Tax due after tax reductions",null,null,null,null,null,null,{"$f":"IT_after_allces","v":0},null,{"$f":"IF(tax_charged>IT_after_allces,1,0)","v":0}]
["or",null,"Income Tax due after tax reductions",null,null,null,null,null,null,{"$f":"IT_after_allces","v":0},null,{"$f":"IF(AND(tax_charged=IT_after_allces,deficiency_relief+TSR+VCT+EIS+SEIS_Relief+CITR+SITR+Alimony+MCA_relief+spare_MCA_relief+AllceIn_TPA_relief+Llir_amount+LFI_relief+rel_tax_acct_for+pens_tax_rel_due+FTCR+relief_on_qual_distn+BRD_reduction>0),1,0)","v":0}]
["L77",null,null,null,null,null,null,null,null,null,null,{"$f":"IF(OR(tax_charged>IT_after_allces,deficiency_relief+TSR+VCT+EIS+SEIS_Relief+CITR+SITR+Alimony+MCA_relief+spare_MCA_relief+AllceIn_TPA_relief+notional_CEG+notional_other+FTCR+pens_tax_rel_due+relief_on_qual_distn+BRD_reduction>tax_charged),1,0)","v":0}]
["L78",null,"plus","Tax due on Gift Aid payments",null,null,null,{"$f":"Gift_aid_amount","v":0},"x 20% =",{"$f":"Gift_aid_tax_due","v":0},null,{"$f":"IF(AND(Gift_aid_tax_reduced>0,(CGTax+income_tax_gift_aid)=0),1,0)","v":0}]
["or",null,"plus","Tax due on Gift Aid payments",null,null,{"$f":"Gift_aid_amount","v":0},"x 20% =",{"$f":"Gift_aid_tax_due","v":0},null,null,{"$f":"IF(AND(Gift_aid_tax_reduced>0,(CGTax+income_tax_gift_aid)<>0),1,0)","v":0}]
["L79",null,null,"minus","Capital Gains Tax",null,null,null,{"$f":"CGTax","v":0},null,null,{"$f":"IF(AND(Gift_aid_tax_reduced>0,CGTax>0),1,0)","v":0}]
["L79A",null,null,"minus","Remittance basis charge for non-domiciles",null,null,null,0,null,null,0]
["L79B",null,null,"minus","Income tax",null,null,null,{"$f":"income_tax_gift_aid","v":0},null,null,{"$f":"IF(AND(Gift_aid_tax_reduced>0,income_tax_gift_aid<>0),1,0)","v":0}]
["L80",null,null,"Gift Aid tax charge",null,null,null,null,null,{"$f":"Gift_aid_tax_reduced","v":0},null,{"$f":"IF(AND(Gift_aid_tax_reduced>0,(CGTax+income_tax_gift_aid)<>0),1,0)","v":0}]
["L80a",null,"plus","BR difference Tax Charge",null,null,null,null,null,{"$f":"BRD_charge","v":0},null,{"$f":"IF(BRD_charge>0,1,0)","v":0}]
["L80b",null,"plus","Winter Fuel Payment charge",null,null,{"$f":"WFP_amount","v":0},{"$f":"\"x \"&WFP_rate*100&\"%\"","v":"x 100%"},null,{"$f":"WFP_charge","v":0},null,{"$f":"IF(AND('Status (c3a)'!E21<>2,WFP_charge>0),1,0)","v":0}]
["or",null,"plus","Pension Age Winter Heating Payment charge",null,null,{"$f":"WFP_amount","v":0},{"$f":"\"x \"&WFP_rate*100&\"%\"","v":"x 100%"},null,{"$f":"WFP_charge","v":0},null,{"$f":"IF(AND('Status (c3a)'!E21=2,WFP_charge>0),1,0)","v":0}]
["L83",null,"plus",{"$f":"\"Total pension savings charges (\"&DOLLAR(Pension_charges_gross,2)&\" minus tax treated as paid \"&DOLLAR(Pension_charges_tax_paid,2)&\")\"","v":"Total pension savings charges (£0.00 minus tax treated as paid £0.00)"},null,null,null,null,null,{"$f":"Pension_charges","v":0},null,{"$f":"IF(Pension_charges_gross>0,1,0)","v":0}]
["L83a",null,"plus","State Pension lump sum payment",null,null,null,{"$f":"Pension_lump_sum_amount","v":0},{"$f":"\"x \"&Pension_lump_sum_rate*100&\"% =\"","v":"x 0% ="},{"$f":"Pension_lump_sum_tax","v":0},null,{"$f":"IF(Pension_lump_sum_amount>0,1,0)","v":0}]
["L83b",null,"plus","High Income Child Benefit Charge",null,null,null,null,null,{"$f":"Child_Benefit_tax_charge","v":0},null,{"$f":"IF(Child_Benefit_tax_charge>0,1,0)","v":0}]
["L83c",null,"plus","pension relief at source charge",null,null,null,null,null,{"$f":"pens_tax_due","v":0},null,{"$f":"IF(pens_tax_due>0,1,0)","v":0}]
["L83d",null,"plus","Temporary repatriation facility (TRF) charge",null,null,{"$f":"TRF_amount","v":0},{"$f":"\"x \"&TRF_rate*100&\"%\"","v":"x 12%"},null,{"$f":"TRF_charge","v":0},null,{"$f":"IF(TRF_charge>0,1,0)","v":0}]
["L84a",null,"Income tax liability",null,null,null,null,"(1)",null,{"$f":"total_tax_NIC_nonresS23","v":0},null,{"$f":"IF(box_NRD1,1,0)","v":0}]
["L84aa",null,"Non-UK resident's disregarded income",null,null,null,{"$f":"Income_Excluded","v":0},null,null,null,null,0]
["L84ab",null,null,"Tax deducted from disregarded income",null,null,null,null,null,{"$f":"tax_on_excluded_inc","v":0},null,0]
["L84ac",null,null,"Tax which would otherwise be chargeable on non-disregarded income",null,null,null,null,null,{"$f":"tax_on_non_excluded_income","v":0},null,0]
["L84b",null,"Limit on liability to income tax",null,null,null,null,"(2)",null,{"$f":"total_tax_NIC_nonresS811","v":0},null,0]
["L84c",null,"Income tax liability limited to",null,null,null,"Lower of (1) or (2)",null,null,{"$f":"total_tax_NIC_nonres","v":0},null,0]
["L84d",null,null,null,null,null,null,null,null,null,null,{"$f":"IF(OR(box_NRD1,Gift_aid_tax_reduced+Pension_charges+Pension_lump_sum_tax+Child_Benefit_tax_charge+pens_tax_due+BRD_charge+TRF_charge+WFP_charge>0),1,0)","v":0}]
["L84e",null,"minus","10% tax credits on dividends (not repayable) ",null,null,null,null,null,{"$f":"div_tax_credits","v":0},null,{"$f":"IF(div_tax_credits>0,1,0)","v":0}]
["L84f",null,"minus","8.75% tax treated as paid on dividends from UK companies (not repayable) ",null,null,null,null,null,{"$f":"div_tax_credits_s399","v":0},null,{"$f":"IF(div_tax_credits_s399>0,1,0)","v":0}]
["L84g",null,"minus","Notional tax from gains on life policies etc.",null,null,null,null,null,{"$f":"notional_CEG","v":0},null,{"$f":"IF(notional_CEG>0,1,0)","v":0}]
["L84h",null,"minus","Notional tax from stock dividends and other income",null,null,null,null,null,{"$f":"notional_other","v":0},null,{"$f":"IF(notional_other>1,1,0)","v":0}]
["L85",null,"Income Tax due",null,null,null,null,null,null,{"$f":"IT_after_div_tax_credits","v":0},null,{"$f":"IF(AND(Gift_aid_tax_reduced+Pension_charges_gross+Pension_lump_sum_amount+Child_Benefit_tax_charge+pens_tax_due+BRD_charge+pens_tax_rel_due+notional_CEG+notional_other+WFP_charge>0,div_tax_credits+div_tax_credits_s399+TRF_charge=0),1,0)","v":0}]
["or",null,"Income Tax due after dividend tax credits",null,null,null,null,null,null,{"$f":"IT_after_div_tax_credits","v":0},null,{"$f":"IF(AND(div_tax_credits+div_tax_credits_s399>0,TRF_charge=0),1,0)","v":0}]
["or",null,"Income Tax and TRF charge due",null,null,null,null,null,null,{"$f":"IT_after_div_tax_credits","v":0},null,{"$f":"IF(AND(Gift_aid_tax_reduced+Pension_charges_gross+Pension_lump_sum_amount+Child_Benefit_tax_charge+pens_tax_due+BRD_charge+pens_tax_rel_due+notional_CEG+notional_other+WFP_charge>0,div_tax_credits+div_tax_credits_s399=0,TRF_charge>0),1,0)","v":0}]
["or",null,"Income Tax after dividend tax credits and TRF charge due",null,null,null,null,null,null,{"$f":"IT_after_div_tax_credits","v":0},null,{"$f":"IF(AND(TRF_charge>0,div_tax_credits+div_tax_credits_s399>0),1,0)","v":0}]
["L86",null,null,null,null,null,null,null,null,null,null,{"$f":"IF((Pension_charges_gross+Pension_lump_sum_amount+Child_Benefit_tax_charge+pens_tax_due+BRD_charge+pens_tax_rel_due+div_tax_credits+div_tax_credits_s399)>0,1,0)","v":0}]
["L87",null,"plus","Class 4 National Insurance contributions",null,null,{"$f":"NIC_amount","v":0},{"$f":"\"x \"&NIC_rate*100&\"% =\"","v":"x 6% ="},{"$f":"NIC_charge","v":0},null,null,{"$f":"IF(NIC_total>0,IF(NIC1_amount<=0,IF(AND(NIC_charge>0,NIC_sup_charge=0),1,0),0),0)","v":0}]
["or",null,"plus","Class 4 National Insurance contributions",null,null,null,null,null,null,null,{"$f":"IF(NIC_total>0,IF(NIC1_amount<=0,IF(AND(NIC_charge>0,NIC_sup_charge>0),1,0),0),0)","v":0}]
["L88",null,null,null,null,null,{"$f":"NIC_amount","v":0},{"$f":"\"x \"&NIC_rate*100&\"% =\"","v":"x 6% ="},{"$f":"NIC_charge","v":0},null,null,{"$f":"IF(NIC_total>0,IF(NIC1_amount<=0,IF(AND(NIC_charge>0,NIC_sup_charge>0),1,0),0),0)","v":0}]
["L89",null,null,null,"",null,{"$f":"NIC_sup_amount","v":0},{"$f":"\"x \"&NIC_supp_rate*100&\"% =\"","v":"x 2% ="},{"$f":"NIC_sup_charge","v":0},null,null,{"$f":"IF(NIC_total>0,IF(NIC1_amount<=0,IF(AND(NIC_charge>0,NIC_sup_charge>0),1,0),0),0)","v":0}]
["L89A",null,"plus","Class 4 National Insurance contributions",null,null,null,null,{"$f":"NIC4_amount","v":0},null,null,{"$f":"IF(NIC_total>0,IF(NIC1_amount>0,1,0),0)","v":0}]
["L89B",null,null,{"$f":"\"Your Class 4 has been adjusted for Class 2 due and \"&DOLLAR(NIC1_amount,2)&\" primary Class 1 contributions\"","v":"Your Class 4 has been adjusted for Class 2 due and £0.00 primary Class 1 contributions"},null,null,null,null,null,null,null,{"$f":"IF(NIC_total>0,IF(NIC1_amount>0,1,0),0)","v":0}]
["L89C",null,"plus","Class 2 National Insurance contributions",null,null,null,null,{"$f":"NIC2_amount","v":0},null,null,{"$f":"IF(NIC_total>0,IF(NIC2_amount>0,1,0),0)","v":0}]
["L90",null,null,"Total Class 4 National Insurance contributions due",null,null,null,null,null,{"$f":"NIC_total","v":0},null,{"$f":"IF(AND(NIC_total>0,NIC2_amount=0),1,0)","v":0}]
["or",null,null,"Total Class 2 and Class 4 National Insurance contributions due",null,null,null,null,null,{"$f":"NIC_total","v":0},null,{"$f":"IF(AND(NIC_total>0,NIC2_amount>0,NIC2_amount<NIC_total),1,0)","v":0}]
["or",null,null,"Total Class 2 National Insurance contributions due",null,null,null,null,null,{"$f":"NIC_total","v":0},null,{"$f":"IF(AND(NIC_total>0,NIC2_amount>0,NIC2_amount=NIC_total),1,0)","v":0}]
["or",null,null,"If you’ve registered for Class 2 NICs, your contributions have been treated as paid. ",null,null,null,null,null,null,null,{"$f":"IF(NIC2_thrshld=1,1,0)","v":0}]
[null,null,null,"Your Class 2 National Insurance contributions due are",null,null,null,null,null,0,null,{"$f":"IF(NIC2_thrshld=1,1,0)","v":0}]
["L91",null,null,null,null,null,null,null,null,null,null,{"$f":"IF(OR(NIC_total>0,NIC2_thrshld=1),1,0)","v":0}]
["L92",null,"plus",{"$f":"\"Underpaid tax for earlier years in your tax code for \"&tax_year","v":"Underpaid tax for earlier years in your tax code for 2025-26"},null,null,null,null,null,{"$f":"unpaid_tax_in_code","v":0},null,{"$f":"IF(unpaid_tax_in_code>0,1,0)","v":0}]
["L93",null,"plus","Student Loan repayments (plan 01)",null,null,null,null,null,{"$f":"Student_loan","v":0},null,{"$f":"IF(AND(Student_loan>0,SL_type=1),1,0)","v":0}]
["or",null,"plus","Student Loan repayments (plan 02)",null,null,null,null,null,{"$f":"Student_loan","v":0},null,{"$f":"IF(AND(Student_loan>0,SL_type=2),1,0)","v":0}]
["or",null,"plus","Student Loan repayments (plan 04)",null,null,null,null,null,{"$f":"Student_loan","v":0},null,{"$f":"IF(AND(Student_loan>0,SL_type=4),1,0)","v":0}]
["L93a1",null,"plus","Postgraduate Loan repayments",null,null,null,null,null,{"$f":"Post_grad_loan","v":0},null,{"$f":"IF(AND(Post_grad_loan>0,PGL_type=3),1,0)","v":0}]
["L93a",null,"plus","Tax due on annuity and royalty payments",null,null,null,{"$f":"annuity_amount","v":0},"x 20% =",{"$f":"annuity_tax","v":0},null,{"$f":"IF(annuity_amount>0,1,0)","v":0}]
["L93d",null,"plus","Remittance basis charge for non-domiciles",null,null,null,null,null,0,null,0]
["L94",null,"Income Tax and Class 2 National Insurance contributions due",null,null,null,null,null,null,{"$f":"IT_plus_class4","v":0},null,{"$f":"IF(TRF_charge>0,0,IF(AND(NIC_total>0,NIC2_amount>0,NIC2_amount=NIC_total),1,0))","v":0}]
["or",null,"Income Tax, Class 2 National Insurance contributions and TRF charge due",null,null,null,null,null,null,0,null,{"$f":"IF(TRF_charge=0,0,IF(AND(NIC_total>0,NIC2_amount>0,NIC2_amount=NIC_total),1,0))","v":0}]
["or",null,"Income Tax and Class 4 National Insurance contributions due",null,null,null,null,null,null,0,null,{"$f":"IF(TRF_charge>0,0,IF(AND(NIC_total>0,NIC2_amount=0),1,0))","v":0}]
["or",null,"Income Tax, Class 4 National Insurance contributions and TRF charge due",null,null,null,null,null,null,0,null,{"$f":"IF(TRF_charge=0,0,IF(AND(NIC_total>0,NIC2_amount=0),1,0))","v":0}]
["or",null,"Income Tax, Class 2 and Class 4 National Insurance contributions due",null,null,null,null,null,null,0,null,{"$f":"IF(TRF_charge>0,0,IF(AND(NIC_total>0,NIC2_amount>0,NIC2_amount<NIC_total),1,0))","v":0}]
["or",null,"Income Tax, Class 2 and Class 4 National Insurance contributions and TRF charge due",null,null,null,null,null,null,0,null,{"$f":"IF(TRF_charge=0,0,IF(AND(NIC_total>0,NIC2_amount>0,NIC2_amount<NIC_total),1,0))","v":0}]
["or",null,"Income Tax due",null,null,null,null,null,null,0,null,{"$f":"IF(TRF_charge>0,0,IF(OR(AND(unpaid_tax_in_code+Student_loan+Post_grad_loan+annuity_amount>0,NIC_total=0),AND(NIC2_thrshld=1,NIC_total=0)),1,0))","v":0}]
["or",null,"Income Tax and TRF charge due",null,null,null,null,null,null,0,null,{"$f":"IF(TRF_charge=0,0,IF(OR(AND(unpaid_tax_in_code+Student_loan+Post_grad_loan+annuity_amount>0,NIC_total=0),AND(NIC2_thrshld=1,NIC_total=0)),1,0))","v":0}]
["L95",null,null,null,null,null,null,null,null,null,null,{"$f":"IF(NIC_total+unpaid_tax_in_code+Student_loan+Post_grad_loan+TRF_charge>0,1,0)","v":0}]
["L96",null,"minus","Tax deducted",null,null,null,null,null,null,null,{"$f":"IF((total_tax_paid+debt_coded)>0,1,0)","v":0}]
["L97",null,null,"From all employments, UK pensions and state benefits",null,null,null,null,{"$f":"tax_paid_E","v":0},null,null,{"$f":"IF(AND(tax_paid_E>0,debt_coded=0),1,0)","v":0}]
["or",null,null,"From all employments, UK pensions and state benefits",null,null,null,{"$f":"tax_paid_E","v":0},null,null,null,{"$f":"IF(debt_coded>0,1,0)","v":0}]
["L97A",null,null,"minus ","Outstanding debt collected through PAYE",null,null,{"$f":"debt_collected","v":0},null,null,null,{"$f":"IF(debt_coded>0,1,0)","v":0}]
["L97B",null,null,"Balance of PAYE tax ",null,null,null,null,{"$f":"SA_E_tax","v":0},null,null,{"$f":"IF(debt_coded>0,1,0)","v":0}]
["L98",null,null,"CIS and trading income",null,null,null,null,{"$f":"tax_paid_D","v":0},null,null,{"$f":"IF(tax_paid_D>0,1,0)","v":0}]
["L99",null,null,"Partnerships",null,null,null,null,{"$f":"tax_paid_D_PTR","v":0},null,null,{"$f":"IF(tax_paid_D_PTR>0,1,0)","v":0}]
["L100",null,null,"UK land and property",null,null,null,null,{"$f":"tax_paid_IFP","v":0},null,null,{"$f":"IF(tax_paid_IFP>0,1,0)","v":0}]
["L101",null,null,"Foreign income",null,null,null,null,{"$f":"tax_paid_Foreign","v":0},null,null,{"$f":"IF(tax_paid_Foreign>0,1,0)","v":0}]
["L102",null,null,"Trusts and estates",null,null,null,null,{"$f":"tax_paid_Trust","v":0},null,null,{"$f":"IF(tax_paid_Trust>0,1,0)","v":0}]
["L103",null,null,"Overseas income",null,null,null,null,{"$f":"tax_paid_Overseas","v":0},null,null,{"$f":"IF(tax_paid_Overseas>0,1,0)","v":0}]
["L104",null,null,"Interest received from UK banks and building societies",null,null,null,null,{"$f":"tax_paid_Case3","v":0},null,null,{"$f":"IF(tax_paid_Case3>0,1,0)","v":0}]
["L106",null,null,"Void ISAs",null,null,null,null,{"$f":"tax_paid_CEG","v":0},null,null,{"$f":"IF(tax_paid_CEG>0,1,0)","v":0}]
["L107",null,null,"Other income",null,null,null,null,{"$f":"tax_paid_Other","v":0},null,null,{"$f":"IF(tax_paid_Other>0,1,0)","v":0}]
["L108",null,null,{"$f":"\"Underpaid tax for \"&tax_year&\" included in your tax code for \"&next_year","v":"Underpaid tax for 2025-26 included in your tax code for 2026-27"},null,null,null,null,{"$f":"coded_in_later_year","v":0},null,null,{"$f":"IF(coded_in_later_year>0,1,0)","v":0}]
["L109",null,null,"Total tax deducted",null,null,null,null,null,{"$f":"total_tax_paid","v":0},null,{"$f":"IF((total_tax_paid+debt_coded)>0,1,0)","v":0}]
["L110",null,null,null,null,null,null,null,null,null,null,{"$f":"IF((total_tax_paid+debt_collected)>0,1,0)","v":0}]
["L111",null,"Income Tax overpaid",null,null,null,null,null,null,{"$f":"Total_IT_class4_due","v":0},null,{"$f":"IF(AND(total_tax_paid+debt_coded>0,total_tax_paid>IT_plus_class4),1,0)","v":0}]
["or",null,"Income Tax and Class 2 National Insurance contributions due",null,null,null,null,null,null,0,null,{"$f":"IF(TRF_charge>0,0,IF(AND(total_tax_paid+debt_coded>0,IT_plus_class4>=total_tax_paid,NIC_total>0,NIC2_amount>0,NIC2_amount=NIC_total),1,0))","v":0}]
["or",null,"Income Tax, Class 2 National Insurance contributions and TRF charge due",null,null,null,null,null,null,0,null,{"$f":"IF(TRF_charge=0,0,IF(AND(total_tax_paid+debt_coded>0,IT_plus_class4>=total_tax_paid,NIC_total>0,NIC2_amount>0,NIC2_amount=NIC_total),1,0))","v":0}]
["or",null,"Income Tax and Class 4 National Insurance contributions due",null,null,null,null,null,null,0,null,{"$f":"IF(TRF_charge>0,0,IF(AND(total_tax_paid+debt_coded>0,IT_plus_class4>=total_tax_paid,NIC_total>0,NIC2_amount=0),1,0))","v":0}]
["or",null,"Income Tax, Class 4 National Insurance contributions and TRF charge due",null,null,null,null,null,null,0,null,{"$f":"IF(TRF_charge=0,0,IF(AND(total_tax_paid+debt_coded>0,IT_plus_class4>=total_tax_paid,NIC_total>0,NIC2_amount=0),1,0))","v":0}]
["or",null,"Income Tax, Class 2 and Class 4 National Insurance contributions due",null,null,null,null,null,null,0,null,{"$f":"IF(TRF_charge>0,0,IF(AND(total_tax_paid+debt_coded>0,IT_plus_class4>=total_tax_paid,NIC_total>0,NIC2_amount>0,NIC2_amount<NIC_total),1,0))","v":0}]
["or",null,"Income Tax, Class 2 and Class 4 National Insurance contributions and TRF charge due",null,null,null,null,null,null,0,null,{"$f":"IF(TRF_charge=0,0,IF(AND(total_tax_paid+debt_coded>0,IT_plus_class4>=total_tax_paid,NIC_total>0,NIC2_amount>0,NIC2_amount<NIC_total),1,0))","v":0}]
["or",null,"Total Income Tax due",null,null,null,null,null,null,0,null,{"$f":"IF(TRF_charge>0,0,IF(AND(total_tax_paid+debt_coded>0,IT_plus_class4>=total_tax_paid,NIC_total=0),1,0))","v":0}]
["or",null,"Income Tax and TRF charge due",null,null,null,null,null,null,0,null,{"$f":"IF(TRF_charge=0,0,IF(AND(total_tax_paid+debt_coded>0,IT_plus_class4>=total_tax_paid,NIC_total=0),1,0))","v":0}]
["L112",null,null,null,null,null,null,null,null,null,null,{"$f":"IF(OR(Taxable_CG>0,tax_on_gains_already_charged+CG_trust_tax>0),1,0)","v":0}]
["L113",null,"plus ","Capital Gains Tax",null,null,null,null,null,null,null,{"$f":"IF(OR(Taxable_CG>0,tax_on_gains_already_charged+CG_trust_tax>0),1,0)","v":0}]
["L113a",null,null,null,null,null,null,null,null,null,null,{"$f":"IF(OR(Taxable_CG>0,tax_on_gains_already_charged+CG_trust_tax>0),1,0)","v":0}]
["L114",null,null,"Business Asset Disposal Relief and or Investors' Relief gains",null,null,{"$f":"CG_at_ER_rate","v":0},{"$f":"\"x \"&ER_CGT_rate*100&\"%\"","v":"x 14%"},{"$f":"ER_rate_CGT","v":0},null,null,{"$f":"IF(CG_at_ER_rate>0,1,0)","v":0}]
["L115",null,null,"Carried interest basic rate",null,null,{"$f":"CG_at_lower_rate_CI","v":0},{"$f":"\"x \"&CI_CGT_rate*100&\"%\"","v":"x 32%"},{"$f":"Lower_rate_CGT_CI","v":0},null,null,{"$f":"IF(CG_at_lower_rate_CI>0,1,0)","v":0}]
["L115a",null,null,"Carried interest",null,null,{"$f":"CG_at_higher_rate_CI","v":0},{"$f":"\"x \"&CI_CGT_rate*100&\"%\"","v":"x 32%"},{"$f":"Higher_rate_CGT_CI","v":0},null,null,{"$f":"IF(CG_at_higher_rate_CI>0,1,0)","v":0}]
["L115b",null,null,"Residential property basic rate",null,null,{"$f":"CG_at_lower_rate_RP","v":0},{"$f":"\"x \"&Lower_CGT_rate_RP*100&\"%\"","v":"x 18%"},{"$f":"Lower_rate_CGT_RP","v":0},null,null,{"$f":"IF(CG_at_lower_rate_RP>0,1,0)","v":0}]
["L115c",null,null,"Residential property",null,null,{"$f":"CG_at_higher_rate_RP","v":0},{"$f":"\"x \"&Upper_CGT_rate_RP*100&\"%\"","v":"x 24%"},{"$f":"Higher_rate_CGT_RP","v":0},null,null,{"$f":"IF(CG_at_higher_rate_RP>0,1,0)","v":0}]
["L116",null,null,"Other gains basic rate",null,null,{"$f":"CG_at_lower_rate","v":0},{"$f":"\"x \"&Lower_CGT_rate*100&\"%\"","v":"x 18%"},{"$f":"Lower_rate_CGT","v":0},null,null,{"$f":"IF(CG_at_lower_rate>0,1,0)","v":0}]
["L116a",null,null,"Other gains ",null,null,{"$f":"CG_at_higher_rate","v":0},{"$f":"\"x \"&Upper_CGT_rate*100&\"%\"","v":"x 24%"},{"$f":"Higher_rate_CGT","v":0},null,null,{"$f":"IF(CG_at_higher_rate>0,1,0)","v":0}]
["L117a",null,"Taxable Capital Gains",null,null,null,{"$f":"Taxable_CG","v":0},null,null,null,null,{"$f":"IF(Taxable_CG>0,1,0)","v":0}]
["L117b",null,null,null,null,null,null,null,null,null,null,{"$f":"IF(Taxable_CG>0,1,0)","v":0}]
["L117c",null,null,"Capital Gains Tax",null,null,null,null,{"$f":"Total_CGT_tax","v":0},null,null,{"$f":"IF(Taxable_CG>0,1,0)","v":0}]
["L117d",null,"plus","Capital Gains Tax adjustment",null,null,null,null,{"$f":"CGT_adjustment","v":0},null,null,{"$f":"IF(CGT_adjustment<>0,1,0)","v":0}]
["L117e",null,"plus","Additional liability for offshore trusts",null,null,null,null,{"$f":"CG_trust_tax","v":0},null,null,{"$f":"IF(CG_trust_tax>0,1,0)","v":0}]
["L117f",null,null,"Capital Gains tax due",null,null,null,null,{"$f":"Total_CG_tax_due","v":0},null,null,{"$f":"IF(CGT_adjustment+CG_trust_tax>0,1,0)","v":0}]
["L118",null,"minus","Foreign Tax Credit Relief on Capital Gains",null,null,null,null,{"$f":"CG_FTCR","v":0},null,null,{"$f":"IF(AND(CG_FTCR>0,CG_FTCR=CG_FTCR_restricted),1,0)","v":0}]
["or",null,"minus",{"$f":"\"Foreign Tax Credit Relief \"&DOLLAR(CG_FTCR,0)&\" reduced to maximum allowable\"","v":"Foreign Tax Credit Relief £0 reduced to maximum allowable"},null,null,null,null,{"$f":"CG_FTCR_restricted","v":0},null,null,{"$f":"IF(AND(CG_FTCR>0,CG_FTCR>CG_FTCR_restricted),1,0)","v":0}]
["L119",null,null,"Capital Gains Tax liability ",null,null,null,null,{"$f":"CG_tax_due_pre_tax","v":0},null,null,{"$f":"IF(CG_FTCR>0,1,0)","v":0}]
["L120",null,null,null,null,null,null,null,null,null,null,{"$f":"IF(tax_on_gains_already_charged>0,1,0)","v":0}]
["L120a",null,"minus","Tax on Capital Gains already paid",null,null,null,null,{"$f":"tax_on_gains_already_charged","v":0},null,null,{"$f":"IF(tax_on_gains_already_charged>0,1,0)","v":0}]
["L120b",null,null,"Total Capital Gains Tax due ",null,null,null,null,null,{"$f":"total_CG_due","v":0},null,{"$f":"IF(OR(Taxable_CG>0,tax_on_gains_already_charged+CG_trust_tax>0,CG_tax_due_pre_tax>tax_on_gains_already_charged),1,0)","v":0}]
["L120c",null,null,"Capital Gains Tax overpaid",null,null,null,null,{"$f":"total_CG_overpaid","v":0},null,null,{"$f":"IF(total_CG_overpaid>0,1,0)","v":0}]
["L120d",null,null,null,null,null,null,null,null,null,null,{"$f":"IF(OR(Taxable_CG>0,tax_on_gains_already_charged>0),1,0)","v":0}]
["L120e",null,"Income Tax, Capital Gains Tax, and Class 2 National Insurance contributions due",null,null,null,null,null,null,{"$f":"Total_IT_CG_class4_due_pre","v":0},null,{"$f":"IF(TRF_charge>0,0,IF(AND(OR(Taxable_CG>0,tax_on_gains_already_charged+CG_trust_tax>0),IT_plus_class4+total_CG_due>=total_tax_paid,NIC_total>0,NIC2_amount>0,NIC2_amount=NIC_total,CG_repayable>0),1,0))","v":0}]
["or",null,"Income Tax, Capital Gains Tax, Class 2 National Insurance contributions",null,null,null,null,null,null,null,null,{"$f":"IF(TRF_charge=0,0,IF(AND(OR(Taxable_CG>0,tax_on_gains_already_charged+CG_trust_tax>0),IT_plus_class4+total_CG_due>=total_tax_paid,NIC_total>0,NIC2_amount>0,NIC2_amount=NIC_total,CG_repayable>0),1,0))","v":0}]
[null,null,"and TRF charge due",null,null,null,null,null,null,{"$f":"Total_IT_CG_class4_due_pre","v":0},null,{"$f":"IF(TRF_charge=0,0,IF(AND(OR(Taxable_CG>0,tax_on_gains_already_charged+CG_trust_tax>0),IT_plus_class4+total_CG_due>=total_tax_paid,NIC_total>0,NIC2_amount>0,NIC2_amount=NIC_total,CG_repayable>0),1,0))","v":0}]
["or",null,"Income Tax, Capital Gains Tax, and Class 4 National Insurance contributions due",null,null,null,null,null,null,{"$f":"Total_IT_CG_class4_due_pre","v":0},null,{"$f":"IF(TRF_charge>0,0,IF(AND(OR(Taxable_CG>0,tax_on_gains_already_charged+CG_trust_tax>0),IT_plus_class4+total_CG_due>=total_tax_paid,NIC_total>0,NIC2_amount=0,CG_repayable>0),1,0))","v":0}]
["or",null,"Income Tax, Capital Gains Tax, Class 4 National Insurance contributions",null,null,null,null,null,null,null,null,{"$f":"IF(TRF_charge=0,0,IF(AND(OR(Taxable_CG>0,tax_on_gains_already_charged+CG_trust_tax>0),IT_plus_class4+total_CG_due>=total_tax_paid,NIC_total>0,NIC2_amount=0,CG_repayable>0),1,0))","v":0}]
[null,null,"and TRF charge due",null,null,null,null,null,null,{"$f":"Total_IT_CG_class4_due_pre","v":0},null,{"$f":"IF(TRF_charge=0,0,IF(AND(OR(Taxable_CG>0,tax_on_gains_already_charged+CG_trust_tax>0),IT_plus_class4+total_CG_due>=total_tax_paid,NIC_total>0,NIC2_amount=0,CG_repayable>0),1,0))","v":0}]
["or",null,"Income Tax, Capital Gains Tax, Class 2 and Class 4 National Insurance contributions due",null,null,null,null,null,null,{"$f":"Total_IT_CG_class4_due_pre","v":0},null,{"$f":"IF(TRF_charge>0,0,IF(AND(OR(Taxable_CG>0,tax_on_gains_already_charged+CG_trust_tax>0),IT_plus_class4+total_CG_due>=total_tax_paid,NIC_total>0,NIC2_amount>0,NIC2_amount<NIC_total,CG_repayable>0),1,0))","v":0}]
["or",null,"Income Tax, Capital Gains Tax, Class 2 and Class 4 National Insurance contributions",null,null,null,null,null,null,null,null,{"$f":"IF(TRF_charge=0,0,IF(AND(OR(Taxable_CG>0,tax_on_gains_already_charged+CG_trust_tax>0),IT_plus_class4+total_CG_due>=total_tax_paid,NIC_total>0,NIC2_amount>0,NIC2_amount<NIC_total,CG_repayable>0),1,0))","v":0}]
[null,null,"and TRF charge due",null,null,null,null,null,null,{"$f":"Total_IT_CG_class4_due_pre","v":0},null,{"$f":"IF(TRF_charge=0,0,IF(AND(OR(Taxable_CG>0,tax_on_gains_already_charged+CG_trust_tax>0),IT_plus_class4+total_CG_due>=total_tax_paid,NIC_total>0,NIC2_amount>0,NIC2_amount<NIC_total,CG_repayable>0),1,0))","v":0}]
["or",null,"Income Tax and Capital Gains Tax due",null,null,null,null,null,null,{"$f":"Total_IT_CG_class4_due_pre","v":0},null,{"$f":"IF(TRF_charge>0,0,IF(AND(OR(Taxable_CG>0,tax_on_gains_already_charged+CG_trust_tax>0),IT_plus_class4+total_CG_due>=total_tax_paid,NIC_total=0,CG_repayable>0),1,0))","v":0}]
["or",null,"Income Tax, Capital Gains Tax and TRF charge due",null,null,null,null,null,null,{"$f":"Total_IT_CG_class4_due_pre","v":0},null,{"$f":"IF(TRF_charge=0,0,IF(AND(OR(Taxable_CG>0,tax_on_gains_already_charged+CG_trust_tax>0),IT_plus_class4+total_CG_due>=total_tax_paid,NIC_total=0,CG_repayable>0),1,0))","v":0}]
["L120f",null,null,null,null,null,null,null,null,null,null,{"$f":"IF(CG_repayable>0,1,0)","v":0}]
["L120g",null,"minus","Capital Gains Tax overpaid",null,null,null,null,null,null,null,{"$f":"IF(CG_repayable>0,1,0)","v":0}]
["L120h",null,null,"reducing Income Tax and Class 2 National Insurance contributions due",null,null,null,null,null,{"$f":"CG_repayable","v":0},null,{"$f":"IF(TRF_charge>0,0,IF(AND(IT_plus_class4>=total_tax_paid,NIC_total>0,NIC2_amount>0,NIC2_amount=NIC_total,CG_repayable>0),1,0))","v":0}]
["or",null,null,"reducing Income Tax, Class 2 National Insurance contributions",null,null,null,null,null,null,null,{"$f":"IF(TRF_charge=0,0,IF(AND(IT_plus_class4>=total_tax_paid,NIC_total>0,NIC2_amount>0,NIC2_amount=NIC_total,CG_repayable>0),1,0))","v":0}]
[null,null,null,"and TRF charge due",null,null,null,null,null,{"$f":"CG_repayable","v":0},null,{"$f":"IF(TRF_charge=0,0,IF(AND(IT_plus_class4>=total_tax_paid,NIC_total>0,NIC2_amount>0,NIC2_amount=NIC_total,CG_repayable>0),1,0))","v":0}]
["or",null,null,"reducing Income Tax and Class 4 National Insurance contributions due",null,null,null,null,null,{"$f":"CG_repayable","v":0},null,{"$f":"IF(TRF_charge>0,0,IF(AND(IT_plus_class4>=total_tax_paid,NIC_total>0,NIC2_amount=0,CG_repayable>0),1,0))","v":0}]
["or",null,null,"reducing Income Tax, Class 4 National Insurance contributions",null,null,null,null,null,null,null,{"$f":"IF(TRF_charge=0,0,IF(AND(IT_plus_class4>=total_tax_paid,NIC_total>0,NIC2_amount=0,CG_repayable>0),1,0))","v":0}]
[null,null,null,"and TRF charge due",null,null,null,null,null,{"$f":"CG_repayable","v":0},null,{"$f":"IF(TRF_charge=0,0,IF(AND(IT_plus_class4>=total_tax_paid,NIC_total>0,NIC2_amount=0,CG_repayable>0),1,0))","v":0}]
["or",null,null,"reducing Income Tax, Class 2 and Class 4 National Insurance contributions due",null,null,null,null,null,{"$f":"CG_repayable","v":0},null,{"$f":"IF(TRF_charge>0,0,IF(AND(NIC_total>0,NIC2_amount>0,NIC2_amount<NIC_total,CG_repayable>0),1,0))","v":0}]
["or",null,null,"reducing Income Tax, Class 2 and Class 4 National Insurance contributions",null,null,null,null,null,null,null,{"$f":"IF(TRF_charge=0,0,IF(AND(NIC_total>0,NIC2_amount>0,NIC2_amount<NIC_total,CG_repayable>0),1,0))","v":0}]
[null,null,null,"and TRF charge due",null,null,null,null,null,{"$f":"CG_repayable","v":0},null,{"$f":"IF(TRF_charge=0,0,IF(AND(NIC_total>0,NIC2_amount>0,NIC2_amount<NIC_total,CG_repayable>0),1,0))","v":0}]
["or",null,null,"reducing Income Tax due",null,null,null,null,null,{"$f":"CG_repayable","v":0},null,{"$f":"IF(TRF_charge>0,0,IF(AND(IT_plus_class4>=total_tax_paid,NIC_total=0,CG_repayable>0),1,0))","v":0}]
["or",null,null,"reducing Income Tax and TRF charge due",null,null,null,null,null,{"$f":"CG_repayable","v":0},null,{"$f":"IF(TRF_charge=0,0,IF(AND(IT_plus_class4>=total_tax_paid,NIC_total=0,CG_repayable>0),1,0))","v":0}]
["L120i",null,null,null,null,null,null,null,null,null,null,{"$f":"IF(CG_repayable>0,1,0)","v":0}]
["L121",null,"Income Tax overpaid",null,null,null,null,null,null,{"$f":"Total_IT_CG_class4_due","v":0},null,{"$f":"IF(AND(OR(Taxable_CG>0,tax_on_gains_already_charged+CG_trust_tax>0),total_tax_paid>IT_plus_class4+total_CG_due),1,0)","v":0}]
["or",null,"Income Tax, Capital Gains Tax, and Class 2 National Insurance contributions due",null,null,null,null,null,null,{"$f":"Total_IT_CG_class4_due","v":0},null,{"$f":"IF(TRF_charge>0,0,IF(AND(OR(Taxable_CG>0,tax_on_gains_already_charged+CG_trust_tax>0),IT_plus_class4+total_CG_due>=total_tax_paid,NIC_total>0,NIC2_amount>0,NIC2_amount=NIC_total),1,0))","v":0}]
["or",null,"Income Tax, Capital Gains Tax, Class 2 National Insurance contributions",null,null,null,null,null,null,null,null,{"$f":"IF(TRF_charge=0,0,IF(AND(OR(Taxable_CG>0,tax_on_gains_already_charged+CG_trust_tax>0,TRF_charge>0),IT_plus_class4+total_CG_due>=total_tax_paid,NIC_total>0,NIC2_amount>0,NIC2_amount=NIC_total),1,0))","v":0}]
[null,null,"and TRF charge due",null,null,null,null,null,null,{"$f":"Total_IT_CG_class4_due","v":0},null,{"$f":"IF(TRF_charge=0,0,IF(AND(OR(Taxable_CG>0,tax_on_gains_already_charged+CG_trust_tax>0,TRF_charge>0),IT_plus_class4+total_CG_due>=total_tax_paid,NIC_total>0,NIC2_amount>0,NIC2_amount=NIC_total),1,0))","v":0}]
["or",null,"Income Tax, Capital Gains Tax, and Class 4 National Insurance contributions due",null,null,null,null,null,null,{"$f":"Total_IT_CG_class4_due","v":0},null,{"$f":"IF(TRF_charge>0,0,IF(AND(OR(Taxable_CG>0,tax_on_gains_already_charged+CG_trust_tax>0),IT_plus_class4+total_CG_due>=total_tax_paid,NIC_total>0,NIC2_amount=0),1,0))","v":0}]
["or",null,"Income Tax, Capital Gains Tax, Class 4 National Insurance contributions",null,null,null,null,null,null,null,null,{"$f":"IF(TRF_charge=0,0,IF(AND(OR(Taxable_CG>0,tax_on_gains_already_charged+CG_trust_tax>0),IT_plus_class4+total_CG_due>=total_tax_paid,NIC_total>0,NIC2_amount=0),1,0))","v":0}]
[null,null,"and TRF charge due",null,null,null,null,null,null,{"$f":"Total_IT_CG_class4_due","v":0},null,{"$f":"IF(TRF_charge=0,0,IF(AND(OR(Taxable_CG>0,tax_on_gains_already_charged+CG_trust_tax>0),IT_plus_class4+total_CG_due>=total_tax_paid,NIC_total>0,NIC2_amount=0),1,0))","v":0}]
["or",null,"Income Tax, Capital Gains Tax, Class 2 and Class 4 National Insurance contributions due",null,null,null,null,null,null,{"$f":"Total_IT_CG_class4_due","v":0},null,{"$f":"IF(TRF_charge>0,0,IF(AND(OR(Taxable_CG>0,tax_on_gains_already_charged+CG_trust_tax>0),IT_plus_class4+total_CG_due>=total_tax_paid,NIC_total>0,NIC2_amount>0,NIC2_amount<NIC_total),1,0))","v":0}]
["or",null,"Income Tax, Capital Gains Tax, Class 2 and Class 4 National Insurance contributions",null,null,null,null,null,null,null,null,{"$f":"IF(TRF_charge=0,0,IF(AND(OR(Taxable_CG>0,tax_on_gains_already_charged+CG_trust_tax>0),IT_plus_class4+total_CG_due>=total_tax_paid,NIC_total>0,NIC2_amount>0,NIC2_amount<NIC_total),1,0))","v":0}]
[null,null,"and TRF charge due",null,null,null,null,null,null,{"$f":"Total_IT_CG_class4_due","v":0},null,{"$f":"IF(TRF_charge=0,0,IF(AND(OR(Taxable_CG>0,tax_on_gains_already_charged+CG_trust_tax>0),IT_plus_class4+total_CG_due>=total_tax_paid,NIC_total>0,NIC2_amount>0,NIC2_amount<NIC_total),1,0))","v":0}]
["or",null,"Income and Capital Gains Tax due",null,null,null,null,null,null,{"$f":"Total_IT_CG_class4_due","v":0},null,{"$f":"IF(TRF_charge>0,0,IF(AND(OR(Taxable_CG>0,tax_on_gains_already_charged+CG_trust_tax>0),IT_plus_class4+total_CG_due>=total_tax_paid,NIC_total=0),1,0))","v":0}]
["or",null,"Income Tax, Capital Gains Tax and TRF charge due",null,null,null,null,null,null,{"$f":"Total_IT_CG_class4_due","v":0},null,{"$f":"IF(TRF_charge=0,0,IF(AND(OR(Taxable_CG>0,tax_on_gains_already_charged+CG_trust_tax>0),IT_plus_class4+total_CG_due>=total_tax_paid,NIC_total=0),1,0))","v":0}]
["L122",null,null,null,null,null,null,null,null,null,null,{"$f":"IF(OR(total_CG_due>0,CG_not_repayable>0),1,0)","v":0}]
["L122a",null,"Capital Gains Tax overpaid amount remaining",null,null,null,null,null,null,{"$f":"CG_not_repayable","v":0},null,{"$f":"IF(CG_not_repayable>0,1,0)","v":0}]
["L122b",null,null,null,null,null,null,null,null,null,null,{"$f":"IF(AND(CG_not_repayable>0,tax_already_refunded+unpaid_tax_bf>0),1,0)","v":0}]
["L123",null,"minus","Tax already refunded in the year",null,null,null,null,null,{"$f":"tax_already_refunded","v":0},null,{"$f":"IF(AND(tax_already_refunded>0,total_tax_paid>(IT_plus_class4+total_CG_due)),1,0)","v":0}]
["or",null,"plus","Tax already refunded in the year",null,null,null,null,null,{"$f":"tax_already_refunded","v":0},null,{"$f":"IF(AND(tax_already_refunded>0,total_tax_paid<=(IT_plus_class4+total_CG_due)),1,0)","v":0}]
["L124",null,"minus","Unpaid tax calculated by reference to earlier years",null,null,null,null,null,{"$f":"unpaid_tax_bf","v":0},null,{"$f":"IF(AND(unpaid_tax_bf>0,total_tax_paid>(IT_plus_class4+total_CG_due)),1,0)","v":0}]
["or",null,"plus","Unpaid tax calculated by reference to earlier years",null,null,null,null,null,{"$f":"unpaid_tax_bf","v":0},null,{"$f":"IF(AND(unpaid_tax_bf>0,total_tax_paid<=(IT_plus_class4+total_CG_due)),1,0)","v":0}]
["L126",null,"Income Tax overpaid",null,null,null,null,null,null,{"$f":"Total_tax_NIC_due","v":0},null,{"$f":"IF(AND(OR((tax_already_refunded+unpaid_tax_bf)>0),total_tax_paid>(IT_plus_class4+total_CG_due+tax_already_refunded+unpaid_tax_bf)),1,0)","v":0}]
["or",null,"Total tax and National Insurance contributions due",null,null,null,null,null,null,{"$f":"Total_tax_NIC_due","v":0},null,{"$f":"IF(TRF_charge>0,0,IF(AND((tax_already_refunded+unpaid_tax_bf)>0,NIC_total>0,(IT_plus_class4+total_CG_due+tax_already_refunded+unpaid_tax_bf)>=total_tax_paid),1,0))","v":0}]
["or",null,"Total tax, National Insurance contributions and TRF charge due",null,null,null,null,null,null,{"$f":"Total_tax_NIC_due","v":0},null,{"$f":"IF(TRF_charge=0,0,IF(AND((tax_already_refunded+unpaid_tax_bf)>0,NIC_total>0,(IT_plus_class4+total_CG_due+tax_already_refunded+unpaid_tax_bf)>=total_tax_paid),1,0))","v":0}]
["or",null,"Total tax due",null,null,null,null,null,null,{"$f":"Total_tax_NIC_due","v":0},null,{"$f":"IF(TRF_charge>0,0,IF(AND((tax_already_refunded+unpaid_tax_bf)>0,NIC_total=0,(IT_plus_class4+total_CG_due+tax_already_refunded+unpaid_tax_bf)>=total_tax_paid),1,0))","v":0}]
["or",null,"Total tax and TRF charge due",null,null,null,null,null,null,{"$f":"Total_tax_NIC_due","v":0},null,{"$f":"IF(TRF_charge=0,0,IF(AND((tax_already_refunded+unpaid_tax_bf)>0,NIC_total=0,(IT_plus_class4+total_CG_due+tax_already_refunded+unpaid_tax_bf)>=total_tax_paid),1,0))","v":0}]
[]
["VBA macro Sub Draw_SA302_from() uses 'Range (\"B1:K324\") .Copy, and \"For intSA302_Line = 324 To 1 Step -1\".' Will need to change VBA macro if rows exceed row 324."]
["ANY template rows added will need to be merged from left as far as possible without messing up alignment so the SA302 calc will get the formatting correct on sees letter"]
[]
["VBA macro Sub clear_SA302() uses range A1:K324 - ensure the maximum number of lines (excluding \"or\") cannot exceed that"]

{"sheet":"SA302_template (W)","index":53,"n_rows":329,"n_cols":12,"rows_kept":329,"cut":false,"hidden":true,"merged":[[321,2,321,6],[323,2,323,6],[292,3,292,8],[293,3,293,8],[295,3,295,8],[296,3,296,8],[298,3,298,8],[302,2,302,8],[303,2,303,8],[305,2,305,8],[306,2,306,8],[297,3,297,8],[322,2,322,5],[315,3,315,5],[316,3,316,6],[317,3,317,6],[318,3,318,6],[319,2,319,5],[300,2,300,5],[310,2,310,8],[307,2,307,8],[313,2,313,5],[311,2,311,8],[276,2,276,8],[277,2,277,8],[279,2,279,8],[280,2,280,8],[282,2,282,8],[255,3,255,5],[264,3,264,5],[265,3,265,6],[245,2,245,8],[247,2,247,8],[249,2,249,8],[252,3,252,5],[253,3,253,5],[254,3,254,5],[275,2,275,8],[278,2,278,8],[281,2,281,8],[266,3,266,4],[256,3,256,5],[257,3,257,5],[267,4,267,6],[271,3,271,5],[268,4,268,7],[259,3,259,5],[193,2,193,8],[194,2,194,8],[217,2,217,8],[219,2,219,8],[221,2,221,8],[223,2,223,8],[210,3,210,6],[183,3,183,8],[187,3,187,8],[212,3,212,7],[216,2,216,8],[213,3,213,5],[215,3,215,6],[218,2,218,7],[214,3,214,5],[169,4,169,7],[171,3,171,6],[144,3,144,4],[145,3,145,5],[146,3,146,5],[147,3,147,5],[209,3,209,7],[197,3,197,5],[185,2,185,6],[189,3,189,7],[190,3,190,7],[196,3,196,5],[203,3,203,7],[175,3,175,8],[160,3,160,6],[159,3,159,6],[148,3,148,6],[149,3,149,6],[150,3,150,5],[206,3,206,9],[191,2,191,6],[182,3,182,5],[174,3,174,5],[179,3,179,5],[134,2,134,4],[141,2,141,6],[168,4,168,5],[178,3,178,7],[184,2,184,5],[204,3,204,7],[205,3,205,7],[136,2,136,6],[137,2,137,6],[139,3,139,6],[181,2,181,5],[166,2,166,5],[167,2,167,5],[162,3,162,6],[163,2,163,6],[200,3,200,5],[201,3,201,8],[164,2,164,6],[202,3,202,6],[151,3,151,5],[156,3,156,6],[157,3,157,6],[142,2,142,6],[173,3,173,4],[52,3,52,4],[53,3,53,4],[54,2,54,4],[55,2,55,5],[56,2,56,3],[64,2,64,9],[62,2,62,9],[35,2,35,4],[37,2,37,5],[39,2,39,5],[40,2,40,5],[41,2,41,4],[45,2,45,5],[46,2,46,5],[47,2,47,5],[49,2,49,5],[43,2,43,4],[44,2,44,4],[48,2,48,4],[50,3,50,4],[51,3,51,5],[79,4,79,6],[81,5,81,6],[85,5,85,6],[87,5,87,6],[82,5,82,6],[86,5,86,6],[106,5,106,6],[108,5,108,6],[80,2,80,6],[83,5,83,6],[121,5,121,6],[123,5,123,6],[90,5,90,6],[92,5,92,6],[94,3,94,6],[91,5,91,6],[84,5,84,6],[104,5,104,6],[110,2,110,6],[111,2,111,6],[113,2,113,6],[88,5,88,6],[96,5,96,6],[98,5,98,6],[103,5,103,6],[105,5,105,6],[107,5,107,6],[100,5,100,6],[102,4,102,6],[114,5,114,6],[115,5,115,6],[95,5,95,6],[97,5,97,6],[99,5,99,6],[33,2,33,4],[32,2,32,5],[42,2,42,5],[10,2,10,5],[12,2,12,4],[13,3,13,4],[14,3,14,4],[15,2,15,4],[16,2,16,5],[28,2,28,5],[29,2,29,5],[30,2,30,5],[22,2,22,5],[23,2,23,4],[24,2,24,4],[25,2,25,4],[27,2,27,4],[17,2,17,5],[18,2,18,4],[19,2,19,4],[20,2,20,5],[21,2,21,5],[26,2,26,5],[31,2,31,5],[78,2,78,6],[63,2,63,9],[66,2,66,9],[58,2,58,5],[59,2,59,5],[61,2,61,5],[65,2,65,7],[67,2,67,7],[68,2,68,9],[70,2,70,7],[71,2,71,9],[72,2,72,8],[73,2,73,9],[77,1,77,6],[69,2,69,9],[74,2,74,6],[75,2,75,6],[260,3,260,5],[261,3,261,5],[226,3,226,6],[242,2,242,7],[227,3,227,6],[229,3,229,4],[230,3,230,5],[231,3,231,4],[232,3,232,5],[238,3,238,5],[239,3,239,7],[240,3,240,5],[244,2,244,8],[246,2,246,8],[248,2,248,8],[250,2,250,8],[291,3,291,8],[294,3,294,8],[283,2,283,8],[285,2,285,8],[289,3,289,8],[290,3,290,8],[288,3,288,8],[308,2,308,8],[309,2,309,8],[284,2,284,6],[287,3,287,8],[112,3,112,6],[263,3,263,5],[133,5,133,6],[180,2,180,5],[176,3,176,6],[177,3,177,8],[116,5,116,6],[124,5,124,6],[127,2,127,6],[128,5,128,6],[129,5,129,6],[130,5,130,6],[131,5,131,6],[132,5,132,6],[117,5,117,6],[118,5,118,6],[119,5,119,6],[120,5,120,6],[188,3,188,8],[192,2,192,6],[225,3,225,5],[207,3,207,8],[211,3,211,6],[258,3,258,5],[34,2,34,5],[89,5,89,6],[122,5,122,6],[158,3,158,6],[172,3,172,6],[125,5,125,6],[152,3,152,5],[153,3,153,5],[320,2,320,6],[304,2,304,8],[301,2,301,8],[272,3,272,5],[269,3,269,6],[154,3,154,5],[155,3,155,6],[161,3,161,7],[222,2,222,4],[220,2,220,8],[243,2,243,8],[233,3,233,5],[234,3,234,5],[235,3,235,5],[236,3,236,6],[237,3,237,5]]}
[null,null,null,null,null,null,null,"Hunanasesiad: Cyfrifiad Treth",null,null,null,1]
[null,null,null,null,null,null,null,null,null,null,null,1]
[null,null,null,{"$f":"IF('Add pages'!C4=\"\",\"\",'Add pages'!C4)","v":""},null,null,null,{"$f":"\"Cyfeirnod Treth \"&IF(Taxpayer_Reference=\"\",\"\",Taxpayer_Reference)","v":"Cyfeirnod Treth "},null,null,null,1]
[null,null,{"$f":"IF('Add pages'!C5=\"\",\"\",'Add pages'!C5)","v":""},null,null,null,null,null,null,null,null,1]
[null,null,{"$f":"IF('Add pages'!C6=\"\",\"\",'Add pages'!C6)","v":""},null,null,null,null,null,null,null,null,1]
[null,null,null,{"$f":"IF('Add pages'!C7=\"\",\"\",'Add pages'!C7)","v":""},null,null,null,null,null,null,null,1]
[null,null,null,null,null,null,null,"Dyddiad ",{"$f":"date_formatted_W","v":"26 Chwefror 2026"},null,null,1]
[null,null,null,null,null,null,null,null,null,null,null,1]
[null,null,{"$f":"\"Cyfrifiad Treth ar gyfer \"&tax_year","v":"Cyfrifiad Treth ar gyfer 2025-26"},null,null,{"$f":"\" (y flwyddyn a ddaeth i ben 5 Ebrill \"&Tax_year_end&\")\"","v":" (y flwyddyn a ddaeth i ben 5 Ebrill 2026)"},null,null,null,null,null,1]
[null,null,null,null,null,null,null,null,null,null,null,1]
["L1",null,"Incwm a dderbyniwyd (cyn didynnu treth)",null,null,null,null,null,null,null,null,1]
["L2",null,null,null,null,null,null,null,null,null,null,1]
["L3",null,"Tâl ar gyfer pob cyflogaeth",null,null,{"$f":"Pay_Emp","v":0},null,null,null,null,null,{"$f":"IF(AND(Pay_Emp>0,(Benefits_Emp+Exps_Emp)>0),1,0)","v":0}]
["L4",null,"plws","Buddiannau a threuliau a gafwyd",null,{"$f":"Benefits_Emp","v":0},null,null,null,null,null,{"$f":"IF(Benefits_Emp>0,1,0)","v":0}]
["L5",null,"llai","Treuliau a ganiateir",null,{"$f":"Exps_Emp","v":0},null,null,null,null,null,{"$f":"IF(Exps_Emp>0,1,0)","v":0}]
["L6",null,{"$f":"IF(Benefits_Emp+Exps_Emp=0,\"Cyfanswm ar gyfer pob cyflogaeth\", \"Cyflog o bob cyflogaeth\")","v":"Cyfanswm ar gyfer pob cyflogaeth"},null,null,null,{"$f":"income_E","v":0},null,null,null,null,{"$f":"IF(AND(Benefits_Emp+Exps_Emp=0,income_E>0),1,0)","v":0}]
["or",null,"Cyfanswm o bob cyflogaeth",null,null,null,{"$f":"income_E","v":0},null,null,null,null,{"$f":"IF(AND(Benefits_Emp+Exps_Emp>0,income_E>0),1,0)","v":0}]
["L7",null,"Cynlluniau Cyfranddaliadau",null,null,null,{"$f":"income_Shares","v":0},null,null,null,null,{"$f":"IF(income_Shares>0,1,0)","v":0}]
["L8",null,"Elw o hunangyflogaeth",null,null,null,{"$f":"income_D","v":0},null,null,null,null,{"$f":"IF(income_D>0,1,0)","v":0}]
["L9",null,"Elw o bartneriaethau",null,null,null,{"$f":"income_D_PTR","v":0},null,null,null,null,{"$f":"IF(income_D_PTR>0,1,0)","v":0}]
["L9a",null,"Llog o bartneriaethau",null,null,null,{"$f":"income_S_PTR","v":0},null,null,null,null,{"$f":"IF(income_S_PTR>0,1,0)","v":0}]
["L9b",null,"Difidendau o bartneriaethau",null,null,null,{"$f":"income_DV_PTR","v":0},null,null,null,null,{"$f":"IF(income_DV_PTR>0,1,0)","v":0}]
["L10",null,"Elw o dir ac eiddo yn y DU",null,null,null,{"$f":"income_IFP","v":0},null,null,null,null,{"$f":"IF(income_IFP>0,1,0)","v":0}]
["L11",null,"Incwm o dramor",null,null,null,{"$f":"income_Foreign","v":0},null,null,null,null,{"$f":"IF(income_Foreign>0,1,0)","v":0}]
["L11A",null,"Difidendau gan gwmnïau dramor",null,null,null,{"$f":"foreign_dividends","v":0},null,null,null,null,{"$f":"IF(foreign_dividends>0,1,0)","v":0}]
["L11B",null,"Cynilion tramor",null,null,null,{"$f":"foreign_savings","v":0},null,null,null,null,{"$f":"IF(foreign_savings>0,1,0)","v":0}]
["L11C",null,"Enillion tramor ar bolisïau yswiriant bywyd gyda’r dreth yn cael ei thrin fel petai wedi ei thalu",null,null,null,{"$f":"Foreign_CEG_dedn","v":0},null,null,null,null,{"$f":"IF(Foreign_CEG_dedn>0,1,0)","v":0}]
["L12",null,"Ymddiriedolaethau ac Ystadau",null,null,null,{"$f":"income_Trust","v":0},null,null,null,null,{"$f":"IF(income_Trust>0,1,0)","v":0}]
["L13",null,"Llog o fanciau, cymdeithasau adeiladu a gwarantau etc yn y DU",null,null,null,{"$f":"income_Case3","v":0},null,null,null,null,{"$f":"IF(income_Case3>0,1,0)","v":0}]
["L14",null,"Difidendau o gwmnïau yn y DU",null,null,null,{"$f":"income_F","v":0},null,null,null,null,{"$f":"IF(income_F>0,1,0)","v":0}]
["L15",null,"Pensiynau'r DU a budd-daliadau'r Wladwriaeth",null,null,null,{"$f":"income_Pensions","v":0},null,null,null,null,{"$f":"IF(income_Pensions>0,1,0)","v":0}]
["L16",null,"Enillion ar bolisïau yswiriant bywyd etc",null,null,null,{"$f":"income_CEG","v":0},null,null,null,null,{"$f":"IF(income_CEG>0,1,0)","v":0}]
["L16a",null,"Enillion ar bolisïau yswiriant bywyd ac ati,  gyda’r dreth yn cael ei thrin fel petai wedi ei thalu",null,null,null,{"$f":"income_CEG_dedn","v":0},null,null,null,null,{"$f":"IF(income_CEG_dedn>0,1,0)","v":0}]
["L17",null,"Incwm arall",null,null,null,{"$f":"income_Other","v":0},null,null,null,null,{"$f":"IF(income_Other>0,1,0)","v":0}]
["L17a",null,"Taliadau diswyddo, cyfandaliadau, iawndaliadau, ayb",null,null,null,{"$f":"income_termination","v":0},null,null,null,null,{"$f":"IF(income_termination>0,1,0)","v":0}]
["L18",null,"'Cyfanswm yr incwm a gafwyd''",null,null,null,null,{"$f":"income_Total","v":0},null,null,null,1]
["L19",null,null,null,null,null,null,null,null,null,null,1]
["L20",null,"llai",null,null,null,null,null,null,null,null,{"$f":"IF(Allce_PA=Allce_dedn_total,0,1)","v":0}]
["L21",null,null,null,null,null,null,null,null,null,null,{"$f":"IF(Allce_PA=Allce_dedn_total,0,1)","v":0}]
["L22",null,"Taliadau i gytundeb Blwydd-dal Ymddeol ac ati",null,null,null,{"$f":"dedn_RAR","v":0},null,null,null,null,{"$f":"IF(dedn_RAR>0,1,0)","v":0}]
["L23",null,"Treth dramor ar Ystadau (Rhyddhad Credyd Treth heb ei hawlio)",null,null,null,{"$f":"dedn_Trust","v":0},null,null,null,null,{"$f":"IF(dedn_Trust>0,1,0)","v":0}]
["L25",null,"Rhyddhad treth incwm",null,null,null,{"$f":"ded_Loss","v":0},null,null,null,null,{"$f":"IF(AND(ded_Loss>0,ded_Loss=ded_loss_restricted),1,0)","v":0}]
["or",null,{"$f":"\"Rhyddhad treth incwm \"&DOLLAR(ded_Loss,0)&\" wedi ei leihau i'r uchaf a ganiateir \"","v":"Rhyddhad treth incwm £0 wedi ei leihau i'r uchaf a ganiateir "},null,null,null,{"$f":"ded_loss_restricted","v":0},null,null,null,null,{"$f":"IF(AND(ded_Loss>0,ded_Loss>ded_loss_restricted),1,0)","v":0}]
["L26",null,"Blwydd-daliadau",null,null,null,{"$f":"dedn_Annuity","v":0},null,null,null,null,{"$f":"IF(dedn_Annuity>0,1,0)","v":0}]
["L27",null,"Rhodd o fuddsoddiadau ac eiddo i elusen",null,null,null,{"$f":"dedn_Gift","v":0},null,null,null,null,{"$f":"IF(dedn_Gift>0,1,0)","v":0}]
["L27.1",null,"Rhyddhad incwm tramor",null,null,null,{"$f":"Fi_Rel","v":0},null,null,null,null,{"$f":"IF(Fi_Rel>0,1,0)","v":0}]
["L27.2",null,"Rhyddhad cyflogaeth dramor",null,null,null,{"$f":"Fe_Rel_restricted","v":0},null,null,null,null,{"$f":"IF(AND(Fe_Rel_claimed>0,Fe_Rel_claimed=Fe_Rel_restricted),1,0)","v":0}]
["or",null,{"$f":"\"Rhyddhad cyflogaeth dramor o \"&DOLLAR(Fe_Rel_claimed,0)&\" wedi’i leihau i’r uchafswm a ganiateir  \"","v":"Rhyddhad cyflogaeth dramor o £0 wedi’i leihau i’r uchafswm a ganiateir  "},null,null,null,{"$f":"Fe_Rel_restricted","v":0},null,null,null,null,{"$f":"IF(AND(Fe_Rel_claimed>0,Fe_Rel_claimed>Fe_Rel_restricted),1,0)","v":0}]
["L29",null,"Lwfans Personol",null,null,null,{"$f":"Allce_PA","v":12570},null,null,null,null,{"$f":"IF(AND(Allce_PA<>Allce_dedn_total,Allce_PA>0,Allce_PA=P_A),1,0)","v":0}]
["or",null,"wfans Personol wedi ei ostwng",null,null,null,{"$f":"Allce_PA","v":12570},null,null,null,null,{"$f":"IF(AND(Allce_PA<>Allce_dedn_total,Allce_PA>0,Allce_PA<>P_A),1,0)","v":0}]
["or",null,"llai",{"$f":"C49","v":"Lwfans Personol"},null,null,null,{"$f":"Allce_PA","v":12570},null,null,null,{"$f":"IF(AND(Allce_PA=Allce_dedn_total,Allce_PA>0,Allce_PA=P_A),1,0)","v":1}]
["or",null,"llai",{"$f":"C50","v":"wfans Personol wedi ei ostwng"},null,null,null,{"$f":"Allce_PA","v":12570},null,null,null,{"$f":"IF(AND(Allce_PA=Allce_dedn_total,Allce_PA>0,Allce_PA<P_A),1,0)","v":0}]
["L30",null,"llai","trosglwyddiad Lwfans Priodasol",null,null,{"$f":"AllceOut_TPA","v":0},null,null,null,null,{"$f":"IF(AllceOut_TPA>0,IF(AND(Allce_PA<>Allce_dedn_total,Allce_PA>0),1,0),0)","v":0}]
["or",null,"llai","trosglwyddiad Lwfans Priodasol",null,null,null,{"$f":"AllceOut_TPA","v":0},null,null,null,{"$f":"IF(AllceOut_TPA>0,IF(AND(Allce_PA=Allce_dedn_total,Allce_PA>0),1,0),0)","v":0}]
["L31",null,"Lwfans Person Dall",null,null,null,{"$f":"Allce_BPA","v":0},null,null,null,null,{"$f":"IF(Allce_BPA>0,1,0)","v":0}]
["L32",null,"Lwfans Person Dall sydd dros ben oddi wrth briod",null,null,null,{"$f":"Allce_BPA_Spare","v":0},null,null,null,null,{"$f":"IF(Allce_BPA_Spare>0,1,0)","v":0}]
["L34",null,"Cyfanswm",null,null,null,null,{"$f":"Allce_dedn_total","v":12570},null,null,null,{"$f":"IF(Allce_PA=Allce_dedn_total,0,1)","v":0}]
["L35",null,null,null,null,null,null,null,null,null,null,1]
["L36",null,"Cyfanswm yr incwm sy'n drethadwy",null,null,null,null,{"$f":"taxable_income","v":0},null,null,null,{"$f":"IF(taxable_income>0,1,0)","v":0}]
["or",null,"Cyfanswm yr incwm",null,null,null,null,{"$f":"taxable_income","v":0},null,null,null,{"$f":"IF(taxable_income<=0,1,0)","v":1}]
["L37",null,null,null,null,null,null,null,null,null,null,1]
["L38",null,"Sut rydw' i wedi cyfrifo eich treth incwm",null,null,null,null,null,null,null,null,1]
["L39",null,{"$f":"\"Mae'ch terfyn cyfradd sylfaenol wedi ei gynyddu gan \"&DOLLAR(ppr_extender,0)&\" a \"&DOLLAR(gift_extender,0)&\" i \"&DOLLAR(extended_BR,0)","v":"Mae'ch terfyn cyfradd sylfaenol wedi ei gynyddu gan £0 a £0 i £37,700"},null,null,null,null,null,null,null,null,{"$f":"IF(AND('Status (c3a)'!E21=1,ppr_extender>0,gift_extender>0),1,IF(AND('Status (c3a)'!E21=3,ppr_extender>0,gift_extender>0),1,0))","v":0}]
[null,null,"ar gyfer taliadau pensiwn a thaliadau Rhodd Cymorth. Mae hyn yn gostwng swm yr incwm y codir treth arno ar y cyfraddau treth uwch.",null,null,null,null,null,null,null,null,{"$f":"IF(AND('Status (c3a)'!E21=1,ppr_extender>0,gift_extender>0),1,IF(AND('Status (c3a)'!E21=3,ppr_extender>0,gift_extender>0),1,0))","v":0}]
["or",null,{"$f":"\"Mae'ch terfyn cyfradd sylfaenol wedi ei gynyddu gan \"&DOLLAR(ppr_extender,0)&\" i \"&DOLLAR(extended_BR,0)&\" ar gyfer taliadau pensiwn ayb.\"","v":"Mae'ch terfyn cyfradd sylfaenol wedi ei gynyddu gan £0 i £37,700 ar gyfer taliadau pensiwn ayb."},null,null,null,null,null,null,null,null,{"$f":"IF(AND('Status (c3a)'!E21=1,ppr_extender>0,gift_extender=0),1,IF(AND('Status (c3a)'!E21=3,ppr_extender>0,gift_extender=0),1,0))","v":0}]
[null,null,"Mae hyn yn lleihau'r incwm sy'n daladwy ar y graddfeydd uwch o dreth.",null,null,null,null,null,null,null,null,{"$f":"IF(AND('Status (c3a)'!E21=1,ppr_extender>0,gift_extender=0),1,IF(AND('Status (c3a)'!E21=3,ppr_extender>0,gift_extender=0),1,0))","v":0}]
["or",null,{"$f":"\"Mae'ch terfyn cyfradd sylfaenol wedi ei gynyddu gan \"&DOLLAR(gift_extender,0)&\" i \"&DOLLAR(extended_BR,0)&\" ar gyfer taliadau rhodd cymorth ayb.\"","v":"Mae'ch terfyn cyfradd sylfaenol wedi ei gynyddu gan £0 i £37,700 ar gyfer taliadau rhodd cymorth ayb."},null,null,null,null,null,null,null,null,{"$f":"IF(AND('Status (c3a)'!E21=1,ppr_extender=0,gift_extender>0),1,IF(AND('Status (c3a)'!E21=3,ppr_extender=0,gift_extender>0),1,0))","v":0}]
[null,null,"Mae hyn yn lleihau'r incwm sy'n daladwy ar y graddfeydd uwch o dreth.",null,null,null,null,null,null,null,null,{"$f":"IF(AND('Status (c3a)'!E21=1,ppr_extender=0,gift_extender>0),1,IF(AND('Status (c3a)'!E21=3,ppr_extender=0,gift_extender>0),1,0))","v":0}]
["L39s",null,{"$f":"\"Mae’ch taliadau pensiwn o \"&DOLLAR(ppr_extender,0)&\" a’ch cyfraniadau Rhodd Cymorth o \"&DOLLAR(gift_extender,0)&\" wedi cynyddu’ch terfynau cyfradd sylfaenol.\"","v":"Mae’ch taliadau pensiwn o £0 a’ch cyfraniadau Rhodd Cymorth o £0 wedi cynyddu’ch terfynau cyfradd sylfaenol."},null,null,null,null,null,null,null,null,{"$f":"IF(AND('Status (c3a)'!E21=2,ppr_extender>0,gift_extender>0),1,0)","v":0}]
[null,null,"ar gyfer taliadau pensiwn a thaliadau Rhodd Cymorth. Mae hyn yn gostwng swm yr incwm y codir treth arno ar y cyfraddau treth uwch.",null,null,null,null,null,null,null,null,{"$f":"IF(AND('Status (c3a)'!E21=2,ppr_extender>0,gift_extender>0),1,0)","v":0}]
["or",null,{"$f":"\"Mae’ch taliadau pensiwn o \"&DOLLAR(ppr_extender,0)&\" wedi cynyddu’ch terfynau cyfradd sylfaenol.\"","v":"Mae’ch taliadau pensiwn o £0 wedi cynyddu’ch terfynau cyfradd sylfaenol."},null,null,null,null,null,null,null,null,{"$f":"IF(AND('Status (c3a)'!E21=2,ppr_extender>0,gift_extender=0),1,0)","v":0}]
[null,null,"Mae hyn yn sicrhau eich bod yn cael rhyddhad ychwanegol ar eich cyfraniadau ar eich cyfradd dreth ffiniol uchaf.",null,null,null,null,null,null,null,null,{"$f":"IF(AND('Status (c3a)'!E21=2,ppr_extender>0,gift_extender=0),1,0)","v":0}]
["or",null,{"$f":"\"Mae'ch terfyn cyfradd sylfaenol wedi ei gynyddu gan \"&DOLLAR(gift_extender,0)&\" i \"&DOLLAR(extended_BR,0)&\" ar gyfer taliadau rhodd cymorth ayb.\"","v":"Mae'ch terfyn cyfradd sylfaenol wedi ei gynyddu gan £0 i £37,700 ar gyfer taliadau rhodd cymorth ayb."},null,null,null,null,null,null,null,null,{"$f":"IF(AND('Status (c3a)'!E21=2,ppr_extender=0,gift_extender>0),1,0)","v":0}]
[null,null,"Mae hyn yn sicrhau eich bod yn cael rhyddhad ychwanegol ar eich cyfraniadau ar eich cyfradd dreth ffiniol uchaf.",null,null,null,null,null,null,null,null,{"$f":"IF(AND('Status (c3a)'!E21=2,ppr_extender=0,gift_extender>0),1,0)","v":0}]
["L40",null,{"$f":"\"Mae eich taliadau pensiwn o \"&DOLLAR(ppr_claim,0)&\" wedi’u cyfyngu i’r mwyaf o’r\"","v":"Mae eich taliadau pensiwn o £0 wedi’u cyfyngu i’r mwyaf o’r"},null,null,null,null,null,null,null,null,{"$f":"IF(ppr_claim>ppr_extender,1,0)","v":0}]
[null,null,{"$f":"\"the greater of the basic amount (\"&DOLLAR(min_relevant_earns,0)&\") swm sylfaenol (£3,600) a’ch enillion perthnasol.\"","v":"the greater of the basic amount (£3,600) swm sylfaenol (£3,600) a’ch enillion perthnasol."},null,null,null,null,null,null,null,null,{"$f":"IF(ppr_claim>ppr_extender,1,0)","v":0}]
["L41",null,null,null,null,null,null,null,null,null,null,1]
["L42","Cyflog, pensiynau, elw etc. (cyfradd y DU ar gyfer Cymru, Lloegr a Gogledd Iwerddon)",null,null,null,null,null,null,null,null,null,{"$f":"IF(AND(box_NRD1= FALSE,Residency_Status_in_UK=1,(taxable_pay_SSR+taxable_pay_BR+taxable_pay_SIR+taxable_pay_HR+taxable_pay_SAR+taxable_pay_AHR)>0),1,0)","v":0}]
["or",null,"Cyflog, pensiynau, elw etc. (cyfradd yr Alban o dreth incwm)",null,null,null,null,null,null,null,null,{"$f":"IF(AND('Status (c3a)'!E21=2,(taxable_pay_SSR+taxable_pay_BR+taxable_pay_SIR+taxable_pay_HR+taxable_pay_SAR+taxable_pay_AHR)>0),1,0)","v":0}]
["or",null,null,null,"Cyflog, pensiynau, elw ac ati (cyfradd treth incwm Cymru)",null,null,null,null,null,null,{"$f":"IF(AND('Status (c3a)'!E21=3,(taxable_pay_SSR+taxable_pay_BR+taxable_pay_SIR+taxable_pay_HR+taxable_pay_SAR+taxable_pay_AHR)>0),1,0)","v":0}]
["or",null,"Cyflog, pensiynau, elw etc.",null,null,null,null,null,null,null,null,{"$f":"IF(AND(box_NRD1,(taxable_pay_SSR+taxable_pay_BR+taxable_pay_SIR+taxable_pay_HR+taxable_pay_SAR+taxable_pay_AHR)>0),1,0)","v":0}]
["L42a",null,null,null,null,"Cyfradd cychwyn",null,{"$f":"taxable_pay_SSR","v":0},{"$f":"\"x \"&SSR_rate*100&\"% =\"","v":"x 19% ="},{"$f":"tax_on_pay_SSR","v":0},null,{"$f":"IF(AND('Status (c3a)'!E21=2,(taxable_pay_SSR+taxable_pay_BR+taxable_pay_SIR+taxable_pay_HR+taxable_pay_SAR+taxable_pay_AHR)>0),1,0)","v":0}]
["L43",null,null,null,null,"Cyfradd sylfaenol",null,{"$f":"taxable_pay_BR","v":0},{"$f":"\"x \"&BR_rate*100&\"% =\"","v":"x 20% ="},{"$f":"tax_on_pay_BR","v":0},null,{"$f":"IF(AND('Status (c3a)'!E21=1,(taxable_pay_BR+taxable_pay_HR+taxable_pay_AHR)>0),1,0)","v":0}]
["or",null,null,null,null,"Cyfradd sylfaenol",null,{"$f":"taxable_pay_BR","v":0},{"$f":"\"x \"&SBR_rate*100&\"% =\"","v":"x 20% ="},{"$f":"tax_on_pay_BR","v":0},null,{"$f":"IF(AND('Status (c3a)'!E21=2,(taxable_pay_BR+taxable_pay_HR+taxable_pay_SAR+taxable_pay_AHR)>0),1,0)","v":0}]
["or",null,null,null,null,"Cyfradd sylfaenol",null,{"$f":"taxable_pay_BR","v":0},{"$f":"\"x \"&WBR_rate*100&\"% =\"","v":"x 20% ="},{"$f":"tax_on_pay_BR","v":0},null,{"$f":"IF(AND('Status (c3a)'!E21=3,(taxable_pay_BR+taxable_pay_HR+taxable_pay_AHR)>0),1,0)","v":0}]
["L43a",null,null,null,null,"Cyfradd ganolradd",null,{"$f":"taxable_pay_SIR","v":0},"x 21% =",{"$f":"tax_on_pay_SIR","v":0},null,{"$f":"IF(AND('Status (c3a)'!E21=2,(taxable_pay_SIR+taxable_pay_HR+taxable_pay_SAR+taxable_pay_AHR)>0),1,0)","v":0}]
["L44",null,null,null,null,"Cyfradd uwch",null,{"$f":"taxable_pay_HR","v":0},{"$f":"\"x \"&HR_rate*100&\"% =\"","v":"x 40% ="},{"$f":"tax_on_pay_HR","v":0},null,{"$f":"IF(AND('Status (c3a)'!E21=1,taxable_pay_HR+taxable_pay_AHR>0),1,0)","v":0}]
["or",null,null,null,null,"Cyfradd uwch",null,{"$f":"taxable_pay_HR","v":0},{"$f":"\"x \"&SHR_rate*100&\"% =\"","v":"x 42% ="},{"$f":"tax_on_pay_HR","v":0},null,{"$f":"IF(AND('Status (c3a)'!E21=2,taxable_pay_HR+taxable_pay_SAR+taxable_pay_AHR>0),1,0)","v":0}]
["or",null,null,null,null,"Cyfradd uwch",null,{"$f":"taxable_pay_HR","v":0},{"$f":"\"x \"&WHR_rate*100&\"% =\"","v":"x 40% ="},{"$f":"tax_on_pay_HR","v":0},null,{"$f":"IF(AND('Status (c3a)'!E21=3,taxable_pay_HR+taxable_pay_AHR>0),1,0)","v":0}]
["L44aa",null,null,null,null,null,null,{"$f":"taxable_pay_SAR","v":0},{"$f":"\"x \"&SAR_rate*100&\"% =\"","v":"x 45% ="},{"$f":"tax_on_pay_SAR","v":0},null,{"$f":"IF(AND('Status (c3a)'!E21=2,taxable_pay_SAR+taxable_pay_AHR>0),1,0)","v":0}]
["L44A",null,null,null,null,"Cyfradd Ychwanegol",null,{"$f":"taxable_pay_AHR","v":0},{"$f":"\"x \"&AHR_rate*100&\"% =\"","v":"x 45% ="},{"$f":"tax_on_pay_AHR","v":0},null,{"$f":"IF(AND('Status (c3a)'!E21=1,taxable_pay_AHR>0),1,0)","v":0}]
["or",null,null,null,null,"Cyfradd uchaf",null,{"$f":"taxable_pay_AHR","v":0},{"$f":"\"x \"&SAHR_rate*100&\"% =\"","v":"x 48% ="},{"$f":"tax_on_pay_AHR","v":0},null,{"$f":"IF(AND('Status (c3a)'!E21=2,taxable_pay_AHR>0),1,0)","v":0}]
["or",null,null,null,null,"Cyfradd Ychwanegol",null,{"$f":"taxable_pay_AHR","v":0},{"$f":"\"x \"&WAHR_rate*100&\"% =\"","v":"x 45% ="},{"$f":"tax_on_pay_AHR","v":0},null,{"$f":"IF(AND('Status (c3a)'!E21=3,taxable_pay_AHR>0),1,0)","v":0}]
["L45",null,null,null,null,null,null,null,null,null,null,{"$f":"IF(AND((taxable_pay_BR+taxable_pay_HR+taxable_pay_AHR)>0,OR(income_Savings_taxfree_BR+Income_Savings_taxfree_HR+taxable_int_SR+taxable_int_BR+taxable_int_HR+taxable_int_AHR>0,divs_taxfree_BR+taxable_divs_BR+divs_taxfree_HR+taxable_divs_HR+taxable_divs_AHR+divs_taxfree_AHR>0,taxable_redundancy_SSR+taxable_redundancy_BR+taxable_redundancy_SIR+taxable_redundancy_HR+taxable_redundancy_SAR+taxable_redundancy_AHR>0,income_CEG_taxfree_BR+taxable_CEG_SR+taxable_CEG_BR+income_CEG_taxfree_BR+taxable_CEG_HR+income_CEG_taxfree_HR+taxable_CEG_AHR>0)),1,0)","v":0}]
["L46",null,null,"Llog o gynilion o fanciau neu gymdeithasau adeiladu, gwarantau etc.",null,null,null,null,null,null,null,{"$f":"IF(income_Savings_taxfree_BR+Income_Savings_taxfree_HR+taxable_int_SR+taxable_int_BR+taxable_int_HR+taxable_int_AHR>0,1,0)","v":0}]
["L46a",null,null,null,null,"Cyfradd gychwynnol",null,{"$f":"taxable_int_SR","v":0},"x 0% =",{"$f":"tax_on_int_SR","v":0},null,{"$f":"IF(OR(income_Savings_taxfree_BR>0,taxable_int_SR+taxable_int_BR+taxable_int_HR+taxable_int_AHR>0),1,0)","v":0}]
["L46b",null,null,null,null,"Cyfradd sylfaenol ar y gyfradd sero ",null,{"$f":"income_Savings_taxfree_BR","v":0},"x 0% =",0,null,{"$f":"IF(income_Savings_taxfree_BR>0,1,0)","v":0}]
["L47",null,null,null,null,"Cyfradd sylfaenol",null,{"$f":"taxable_int_BR","v":0},"x 20% =",{"$f":"tax_on_int_BR","v":0},null,{"$f":"IF(taxable_int_BR+taxable_int_HR+taxable_int_AHR>0,1,0)","v":0}]
["L47a",null,null,null,null,"Cyfradd uwch ar y gyfradd sero ",null,{"$f":"Income_Savings_taxfree_HR","v":0},"x 0% =",0,null,{"$f":"IF(Income_Savings_taxfree_HR>0,1,0)","v":0}]
["L48",null,null,null,null,"Cyfradd uwch",null,{"$f":"taxable_int_HR","v":0},"x 40% =",{"$f":"tax_on_int_HR","v":0},null,{"$f":"IF(taxable_int_HR+taxable_int_AHR>0,1,0)","v":0}]
["L48A",null,null,null,null,"Cyfradd Ychwanegol",null,{"$f":"taxable_int_AHR","v":0},"x 45% =",{"$f":"tax_on_int_AHR","v":0},null,{"$f":"IF(taxable_int_AHR>0,1,0)","v":0}]
["L49",null,null,null,null,null,null,null,null,null,null,{"$f":"IF(AND(income_Savings_taxfree_BR+taxable_int_SR+taxable_int_BR+income_Savings_taxfree_BR+taxable_int_HR+Income_Savings_taxfree_HR+taxable_int_AHR>0,divs_taxfree_BR+taxable_divs_BR+taxable_divs_HR+divs_taxfree_HR+taxable_divs_AHR+divs_taxfree_AHR>0),1,0)","v":0}]
["L50",null,null,null,"Difidendau o gwmnïau ac ati",null,null,null,null,null,null,{"$f":"IF(OR(taxable_divs_BR+taxable_divs_HR+taxable_divs_AHR>0,divs_taxfree_BR+divs_taxfree_HR+divs_taxfree_AHR>0),1,0)","v":0}]
["L50a",null,null,null,null,"Cyfradd sylfaenol ar y gyfradd sero ",null,{"$f":"divs_taxfree_BR","v":0},"x 0% =",0,null,{"$f":"IF(divs_taxfree_BR>0,1,0)","v":0}]
["L50b",null,null,null,null,"Cyfradd sylfaenol",null,{"$f":"taxable_divs_BR","v":0},{"$f":"\"x \"&DivBR_rate*100&\"% =\"","v":"x 8.75% ="},{"$f":"tax_on_divs_BR","v":0},null,{"$f":"IF((taxable_divs_BR+taxable_divs_HR+taxable_divs_AHR)>0,1,0)","v":0}]
["L50c",null,null,null,null,"Cyfradd uwch ar y gyfradd sero ",null,{"$f":"divs_taxfree_HR","v":0},"x 0% =",0,null,{"$f":"IF(divs_taxfree_HR>0,1,0)","v":0}]
["L51",null,null,null,null,"Cyfradd uwch",null,{"$f":"taxable_divs_HR","v":0},{"$f":"\"x \"&DivHR_rate*100&\"% =\"","v":"x 33.75% ="},{"$f":"tax_on_divs_HR","v":0},null,{"$f":"IF((taxable_divs_HR+taxable_divs_AHR)>0,1,0)","v":0}]
["L51a",null,null,null,null,"Cyfradd Ychwanegol ar y gyfradd sero",null,{"$f":"divs_taxfree_AHR","v":0},"x 0% =",0,null,{"$f":"IF(divs_taxfree_AHR>0,1,0)","v":0}]
["L52",null,null,null,null,"Cyfradd Ychwanegol",null,{"$f":"taxable_divs_AHR","v":0},{"$f":"\"x \"&DivAR_rate*100&\"% =\"","v":"x 39.35% ="},{"$f":"tax_on_divs_AHR","v":0},null,{"$f":"IF(taxable_divs_AHR>0,1,0)","v":0}]
["L51c",null,null,null,null,null,null,null,null,null,null,{"$f":"IF(AND(divs_taxfree_BR+taxable_divs_BR+taxable_divs_HR+divs_taxfree_HR+taxable_divs_AHR+divs_taxfree_AHR>0,taxable_redundancy_SSR+taxable_redundancy_BR+taxable_redundancy_SIR+taxable_redundancy_HR+taxable_redundancy_SAR+taxable_redundancy_AHR>0),1,0)","v":0}]
["L52",null,"Diswyddo, cyfandaliadau, iawndal ac ati (cyfradd y DU ar gyfer Lloegr a Gogledd Iwerddon)",null,null,null,null,null,null,null,null,{"$f":"IF(AND(box_NRD1= FALSE,Residency_Status_in_UK=1,(taxable_redundancy_SSR+taxable_redundancy_BR+taxable_redundancy_SIR+taxable_redundancy_HR+taxable_redundancy_SAR+taxable_redundancy_AHR)>0),1,0)","v":0}]
["or",null,"Diswyddo, cyfandaliadau, iawndal ac ati  (cyfradd yr Alban o Dreth Incwm)",null,null,null,null,null,null,null,null,{"$f":"IF(AND('Status (c3a)'!E21=2,(taxable_redundancy_SSR+taxable_redundancy_BR+taxable_redundancy_SIR+taxable_redundancy_HR+taxable_redundancy_SAR+taxable_redundancy_AHR)>0),1,0)","v":0}]
["or",null,null,"Diswyddo, cyfandaliadau, iawndal ac ati  (cyfradd Treth Incwm Cymru)",null,null,null,null,null,null,null,{"$f":"IF(AND('Status (c3a)'!E21=3,(taxable_redundancy_SSR+taxable_redundancy_BR+taxable_redundancy_SIR+taxable_redundancy_HR+taxable_redundancy_SAR+taxable_redundancy_AHR)>0),1,0)","v":0}]
["or",null,"Diswyddo, cyfandaliadau, iawndal ac ati",null,null,null,null,null,null,null,null,{"$f":"IF(AND(box_NRD1,(taxable_redundancy_SSR+taxable_redundancy_BR+taxable_redundancy_SIR+taxable_redundancy_HR+taxable_redundancy_SAR+taxable_redundancy_AHR)>0),1,0)","v":0}]
["L52a",null,null,null,null,"Cyfradd cychwyn",null,{"$f":"taxable_redundancy_SSR","v":0},{"$f":"\"x \"&SSR_rate*100&\"% =\"","v":"x 19% ="},{"$f":"tax_on_redundancy_SSR","v":0},null,{"$f":"IF(AND('Status (c3a)'!E21=2,(taxable_redundancy_SSR+taxable_redundancy_BR+taxable_redundancy_SIR+taxable_redundancy_HR+taxable_redundancy_SAR+taxable_redundancy_AHR)>0),1,0)","v":0}]
["L52b",null,null,null,null,"Cyfradd sylfaenol",null,{"$f":"taxable_redundancy_BR","v":0},{"$f":"\"x \"&BR_rate*100&\"% =\"","v":"x 20% ="},{"$f":"tax_on_redundancy_BR","v":0},null,{"$f":"IF(AND('Status (c3a)'!E21=1,(taxable_redundancy_BR+taxable_redundancy_HR+taxable_redundancy_AHR)>0),1,0)","v":0}]
["or",null,null,null,null,"Cyfradd sylfaenol",null,{"$f":"taxable_redundancy_BR","v":0},{"$f":"\"x \"&SBR_rate*100&\"% =\"","v":"x 20% ="},{"$f":"tax_on_redundancy_BR","v":0},null,{"$f":"IF(AND('Status (c3a)'!E21=2,(taxable_redundancy_BR+taxable_redundancy_HR+taxable_redundancy_SAR+taxable_redundancy_AHR)>0),1,0)","v":0}]
["or",null,null,null,null,"Cyfradd sylfaenol",null,{"$f":"taxable_redundancy_BR","v":0},{"$f":"\"x \"&WBR_rate*100&\"% =\"","v":"x 20% ="},{"$f":"tax_on_redundancy_BR","v":0},null,{"$f":"IF(AND('Status (c3a)'!E21=3,(taxable_redundancy_BR+taxable_redundancy_HR+taxable_redundancy_AHR)>0),1,0)","v":0}]
["L52c",null,null,null,null,"Cyfradd ganolradd",null,{"$f":"taxable_redundancy_SIR","v":0},"x 21% =",{"$f":"tax_on_redundancy_SIR","v":0},null,{"$f":"IF(AND('Status (c3a)'!E21=2,(taxable_redundancy_SIR+taxable_redundancy_HR+taxable_redundancy_SAR+taxable_redundancy_AHR)>0),1,0)","v":0}]
["L52d",null,null,null,null,"Cyfradd uwch",null,{"$f":"taxable_redundancy_HR","v":0},{"$f":"\"x \"&HR_rate*100&\"% =\"","v":"x 40% ="},{"$f":"tax_on_redundancy_HR","v":0},null,{"$f":"IF(AND('Status (c3a)'!E21=1,taxable_redundancy_HR+taxable_redundancy_AHR>0),1,0)","v":0}]
["or",null,null,null,null,"Cyfradd uwch",null,{"$f":"taxable_redundancy_HR","v":0},{"$f":"\"x \"&SHR_rate*100&\"% =\"","v":"x 42% ="},{"$f":"tax_on_redundancy_HR","v":0},null,{"$f":"IF(AND('Status (c3a)'!E21=2,taxable_redundancy_HR+taxable_redundancy_SAR+taxable_redundancy_AHR>0),1,0)","v":0}]
["or",null,null,null,null,"Cyfradd uwch",null,{"$f":"taxable_redundancy_HR","v":0},{"$f":"\"x \"&WHR_rate*100&\"% =\"","v":"x 40% ="},{"$f":"tax_on_redundancy_HR","v":0},null,{"$f":"IF(AND('Status (c3a)'!E21=3,taxable_redundancy_HR+taxable_redundancy_AHR>0),1,0)","v":0}]
["L52dd",null,null,null,null,"Cyfradd Uwch Bellach",null,{"$f":"taxable_redundancy_SAR","v":0},{"$f":"\"x \"&SAR_rate*100&\"% =\"","v":"x 45% ="},{"$f":"tax_on_redundancy_SAR","v":0},null,{"$f":"IF(AND('Status (c3a)'!E21=2,taxable_redundancy_SAR+taxable_redundancy_AHR>0),1,0)","v":0}]
["L52e",null,null,null,null,"Cyfradd Ychwanegol",null,{"$f":"taxable_redundancy_AHR","v":0},{"$f":"\"x \"&AHR_rate*100&\"% =\"","v":"x 45% ="},{"$f":"tax_on_redundancy_AHR","v":0},null,{"$f":"IF(AND('Status (c3a)'!E21=1,taxable_redundancy_AHR>0),1,0)","v":0}]
["or",null,null,null,null,"Cyfradd uchaf",null,{"$f":"taxable_redundancy_AHR","v":0},{"$f":"\"x \"&SAHR_rate*100&\"% =\"","v":"x 48% ="},{"$f":"tax_on_redundancy_AHR","v":0},null,{"$f":"IF(AND('Status (c3a)'!E21=2,taxable_redundancy_AHR>0),1,0)","v":0}]
["or",null,null,null,null,"Cyfradd Ychwanegol",null,{"$f":"taxable_redundancy_AHR","v":0},{"$f":"\"x \"&WAHR_rate*100&\"% =\"","v":"x 45% ="},{"$f":"tax_on_redundancy_AHR","v":0},null,{"$f":"IF(AND('Status (c3a)'!E21=3,taxable_redundancy_AHR>0),1,0)","v":0}]
["L53",null,null,null,null,null,null,null,null,null,null,{"$f":"IF(AND(taxable_redundancy_SSR+taxable_redundancy_BR+taxable_redundancy_SIR+taxable_redundancy_HR+taxable_redundancy_SAR+taxable_redundancy_AHR+taxable_redundancy_AHR>0,income_CEG_taxfree_BR+taxable_CEG_SR+taxable_CEG_BR+income_CEG_taxfree_BR+taxable_CEG_HR+income_CEG_taxfree_HR+taxable_CEG_AHR>0),1,0)","v":0}]
["L53a",null,"Enillion ar bolisïau yswiriant bywyd ac ati,  gyda’r dreth yn cael ei thrin fel petai wedi ei thalu",null,null,null,null,null,null,null,null,{"$f":"IF(income_CEG_taxfree_BR+income_CEG_taxfree_HR+taxable_CEG_SR+taxable_CEG_BR+taxable_CEG_HR+taxable_CEG_AHR>0,1,0)","v":0}]
["L53b",null,null,null,null,"Cyfradd gychwynnol",null,{"$f":"taxable_CEG_SR","v":0},"x 0% =",{"$f":"tax_on_CEG_SR","v":0},null,{"$f":"IF(OR(income_CEG_taxfree_BR>0,taxable_CEG_SR+taxable_CEG_BR+taxable_CEG_HR+taxable_CEG_AHR>0),1,0)","v":0}]
["L53c",null,null,null,null,"Cyfradd sylfaenol ar y gyfradd sero ",null,{"$f":"income_CEG_taxfree_BR","v":0},"x 0% =",0,null,{"$f":"IF(income_CEG_taxfree_BR>0,1,0)","v":0}]
["L53d",null,null,null,null,"Cyfradd sylfaenol",null,{"$f":"taxable_CEG_BR","v":0},"x 20% =",{"$f":"tax_on_CEG_BR","v":0},null,{"$f":"IF(taxable_CEG_BR+taxable_CEG_HR+taxable_CEG_AHR>0,1,0)","v":0}]
["L53e",null,null,null,null,"Cyfradd uwch ar y gyfradd sero ",null,{"$f":"income_CEG_taxfree_HR","v":0},"x 0% =",0,null,{"$f":"IF(income_CEG_taxfree_HR>0,1,0)","v":0}]
["L53f",null,null,null,null,"Cyfradd uwch",null,{"$f":"taxable_CEG_HR","v":0},"x 40% =",{"$f":"tax_on_CEG_HR","v":0},null,{"$f":"IF(taxable_CEG_HR+taxable_CEG_AHR>0,1,0)","v":0}]
["L53g",null,null,null,null,"Cyfradd Ychwanegol",null,{"$f":"taxable_CEG_AHR","v":0},"x 45% =",{"$f":"tax_on_CEG_AHR","v":0},null,{"$f":"IF(taxable_CEG_AHR>0,1,0)","v":0}]
["L54",null,"Cyfanswm yr incwm y codwyd treth arno ",null,null,null,null,{"$f":"taxable_income","v":0},null,null,null,1]
["L55",null,null,null,null,null,null,null,null,null,null,1]
["L55a",null,"Treth Incwm sy’n ddyledus ar ôl lwfansau a rhyddhad",null,null,null,null,null,null,{"$f":"pre_TP_tax_charged","v":0},null,{"$f":"IF(AND(transition_profit>0,tax_charged=Total_tax_NIC_due),1,0)","v":0}]
["or",null,"Treth Incwm sydd wedi ei chodi ar ôl lwfansau a rhyddhad",null,null,null,null,null,null,{"$f":"pre_TP_tax_charged","v":0},null,{"$f":"IF(AND(transition_profit>0,tax_charged<>Total_tax_NIC_due),1,0)","v":0}]
["L55b",null,null,null,null,null,null,null,null,null,null,{"$f":"IF(transition_profit>0,1,0)","v":0}]
["L55c",null,"plws",{"$f":"\"Treth sy’n ddyledus ar elw trosiannol o \"&DOLLAR(transition_profit,0)&\"\"","v":"Treth sy’n ddyledus ar elw trosiannol o £0"},null,null,null,null,null,{"$f":"tax_on_transition_profit","v":0},null,{"$f":"IF(transition_profit>0,1,0)","v":0}]
["L55d",null,null,null,null,null,null,null,null,null,null,{"$f":"IF(transition_profit>0,1,0)","v":0}]
["L56",null,"Treth Incwm sy’n ddyledus ar ôl lwfansau a rhyddhad",null,null,null,null,null,null,{"$f":"tax_charged","v":0},null,{"$f":"IF(tax_charged=Total_tax_NIC_due,1,0)","v":1}]
["or",null,"Treth Incwm sydd wedi ei chodi ar ôl lwfansau a rhyddhad",null,null,null,null,null,null,{"$f":"tax_charged","v":0},null,{"$f":"IF(tax_charged<>Total_tax_NIC_due,1,0)","v":0}]
["L57",null,null,null,null,null,null,null,null,null,null,1]
["L57A",null,"llai","Rhyddhad Diffyg",null,null,null,null,null,{"$f":"deficiency_relief","v":0},null,{"$f":"IF(deficiency_relief>0,1,0)","v":0}]
["L58",null,"llai","Rhyddhad Haenen Uchaf",null,null,null,null,null,{"$f":"TSR","v":0},null,{"$f":"IF(TSR>0,1,0)","v":0}]
["L59",null,"llai","Rhyddhad Ymddiriedolaeth Cyfalaf Mentro",null,null,null,null,null,{"$f":"VCT","v":0},null,{"$f":"IF(VCT>0,1,0)","v":0}]
["L60",null,"llai","Rhyddhad Cynllun Buddsoddiad Menter",null,null,null,null,null,{"$f":"EIS","v":0},null,{"$f":"IF(EIS>0,1,0)","v":0}]
["L60A",null,"llai","Rhyddhad Cynllun Buddsoddiad Menter Seed ",null,null,null,null,null,{"$f":"SEIS_Relief","v":0},null,{"$f":"IF(SEIS_Relief>0,1,0)","v":0}]
["L61",null,"llai","Rhyddhad Treth am Fuddsoddiad Cymunedol",null,null,null,null,null,{"$f":"CITR","v":0},null,{"$f":"IF(CITR>0,1,0)","v":0}]
["L63",null,"llai","Cynhaliaeth ac alimoni a dalwyd ",null,null,null,null,null,{"$f":"Alimony","v":0},null,{"$f":"IF(Alimony>0,1,0)","v":0}]
["L64",null,"llai","Lwfans Pâr Priod",null,null,null,{"$f":"MCA_amount","v":0},"x 10% =",{"$f":"MCA_relief","v":0},null,{"$f":"IF(MCA_amount>0,1,0)","v":0}]
["L65",null,"llai","Lwfans Pâr Priod sydd dros ben oddi wrth briod",null,null,null,{"$f":"spare_MCA_amount","v":0},"x 10% =",{"$f":"spare_MCA_relief","v":0},null,{"$f":"IF(spare_MCA_amount>0,1,0)","v":0}]
["L66",null,"llai"," trosglwyddiad Lwfans Priodasol",null,null,null,{"$f":"AllceIn_TPA","v":0},"x 20% =",{"$f":"AllceIn_TPA_relief","v":0},null,{"$f":"IF(AllceIn_TPA>0,1,0)","v":0}]
["L67",null,"llai","Rhyddhad am gostau ariannol preswyl",null,null,null,{"$f":"Llir_amount","v":0},"x 20% =",{"$f":"Llir_relief","v":0},null,{"$f":"IF(AND(Llir_amount>0,Llir_amount=Llir_amount_restricted),1,0)","v":0}]
["or",null,"llai",{"$f":"\"Rhyddhad am gostau ariannol \"&DOLLAR(Llir_amount,0)&\" wedi’i ostwng i’r uchafswm a ganiateir \"","v":"Rhyddhad am gostau ariannol £0 wedi’i ostwng i’r uchafswm a ganiateir "},null,null,null,{"$f":"Llir_amount_restricted","v":0},"x 20% =",{"$f":"Llir_relief","v":0},null,{"$f":"IF(AND(Llir_amount>0,Llir_amount>Llir_amount_restricted),1,0)","v":0}]
["L67a",null,"llai","Rhyddhad ar gyfer llog ar fenthyciadau o fuddsoddiadau",null,null,null,{"$f":"LFI_amount","v":0},"x 20% =",{"$f":"LFI_relief","v":0},null,{"$f":"IF(LFI_relief>0,1,0)","v":0}]
["L68",null,"llai","Rhyddhad am dreth y DU a gyfrifwyd eisoes",null,null,null,null,null,{"$f":"rel_tax_acct_for","v":0},null,{"$f":"IF(rel_tax_acct_for>0,1,0)","v":0}]
["L69",null,"llai","Gostyngiad Treth ar y Gwahaniaeth ar y gyfradd sylfaenol",null,null,null,null,null,{"$f":"BRD_reduction","v":0},null,{"$f":"IF(BRD_reduction>0,1,0)","v":0}]
["L72",null,"llai","Rhyddhad Credyd Treth Dramor",null,null,null,null,null,{"$f":"FTCR","v":0},null,{"$f":"IF(AND(FTCR>0,FTCR=FTCR_restricted),1,0)","v":0}]
["or",null,"llai",{"$f":"\"Rhyddhad Credyd Tramor wedi'i ostwng \"&DOLLAR(FTCR,0)&\" i’r uchafswm a ganiateir\"","v":"Rhyddhad Credyd Tramor wedi'i ostwng £0 i’r uchafswm a ganiateir"},null,null,null,null,null,{"$f":"FTCR_restricted","v":0},null,{"$f":"IF(AND(FTCR>0,FTCR>FTCR_restricted),1,0)","v":0}]
["L73A",null,"llai","yn llai rhyddhad treth ychwanegol sy'n ddyledus ar daliadau pensiwn",null,null,null,null,null,{"$f":"pens_tax_rel_due","v":0},null,{"$f":"IF(pens_tax_rel_due>0,1,0)","v":0}]
["L74",null,"llai","Rhyddhad a hawliwyd ar ddosbarthiad cymwys",null,null,null,null,null,{"$f":"relief_on_qual_distn","v":0},null,{"$f":"IF(relief_on_qual_distn>0,1,0)","v":0}]
["L76",null,"Treth Incwm sy’n ddyledus ar ôl lwfansau a rhyddhad",null,null,null,null,null,null,{"$f":"IT_after_allces","v":0},null,{"$f":"IF(tax_charged>IT_after_allces,1,0)","v":0}]
["or",null,"Treth Incwm sy’n ddyledus ar ôl lwfansau a rhyddhad",null,null,null,null,null,null,{"$f":"IT_after_allces","v":0},null,{"$f":"IF(AND(tax_charged=IT_after_allces,deficiency_relief+TSR+VCT+EIS+SEIS_Relief+CITR+SITR+Alimony+MCA_relief+spare_MCA_relief+AllceIn_TPA_relief+Llir_amount+LFI_relief+rel_tax_acct_for+pens_tax_rel_due+FTCR+relief_on_qual_distn+BRD_reduction>0),1,0)","v":0}]
["L77",null,null,null,null,null,null,null,null,null,null,{"$f":"IF(OR(tax_charged>IT_after_allces,deficiency_relief+TSR+VCT+EIS+SEIS_Relief+CITR+SITR+Alimony+MCA_relief+spare_MCA_relief+AllceIn_TPA_relief+notional_CEG+notional_other+FTCR+pens_tax_rel_due+relief_on_qual_distn+BRD_reduction>tax_charged),1,0)","v":0}]
["L78",null,"Treth sy'n ddyledus ar Daliadau Rhodd Cymorth",null,null,null,null,{"$f":"Gift_aid_amount","v":0},"x 20% =",{"$f":"Gift_aid_tax_due","v":0},null,{"$f":"IF(AND(Gift_aid_tax_reduced>0,(CGTax+income_tax_gift_aid)=0),1,0)","v":0}]
["or",null,"Treth sy'n ddyledus ar Daliadau Rhodd Cymorth",null,null,null,{"$f":"Gift_aid_amount","v":0},"x 20% =",{"$f":"Gift_aid_tax_due","v":0},null,null,{"$f":"IF(AND(Gift_aid_tax_reduced>0,(CGTax+income_tax_gift_aid)<>0),1,0)","v":0}]
["L79",null,null,"llai","Treth Enillion Cyfalaf sy'n ddyledus",null,null,null,{"$f":"CGTax","v":0},null,null,{"$f":"IF(AND(Gift_aid_tax_reduced>0,CGTax>0),1,0)","v":0}]
["L79A",null,null,"llai","Tâl sail trosglwyddo ar gyfer y rhai nad yw eu domisil yn y DU",null,null,null,0,null,null,0]
["L79B",null,null,"llai","Treth incwm",null,null,null,{"$f":"income_tax_gift_aid","v":0},null,null,{"$f":"IF(AND(Gift_aid_tax_reduced>0,income_tax_gift_aid<>0),1,0)","v":0}]
["L80",null,null,"Tâl treth Rhodd Cymorth",null,null,null,null,null,{"$f":"Gift_aid_tax_reduced","v":0},null,{"$f":"IF(AND(Gift_aid_tax_reduced>0,(CGTax+income_tax_gift_aid)<>0),1,0)","v":0}]
["L80a",null,"plws","Tâl Treth ar y Gwahaniaeth ar y gyfradd sylfaenol",null,null,null,null,null,{"$f":"BRD_charge","v":0},null,{"$f":"IF(BRD_charge>0,1,0)","v":0}]
["L80b",null,"plws","Taliad Tanwydd Gaeaf i’w dalu yn ôl",null,null,{"$f":"WFP_amount","v":0},{"$f":"\"x \"&WFP_rate*100&\"%\"","v":"x 100%"},null,{"$f":"WFP_charge","v":0},null,{"$f":"IF(AND('Status (c3a)'!E21<>2,WFP_charge>0),1,0)","v":0}]
["or",null,"plws","Taliad Gwresogi Gaeaf i Bobl o Oedran Pensiwn i’w dalu yn ôl",null,null,{"$f":"WFP_amount","v":0},{"$f":"\"x \"&WFP_rate*100&\"%\"","v":"x 100%"},null,{"$f":"WFP_charge","v":0},null,{"$f":"IF(AND('Status (c3a)'!E21=2,WFP_charge>0),1,0)","v":0}]
["L83",null,"plws",{"$f":"\"Cyfanswm y taliadau a godir ar gynilion pensiwn (\"&DOLLAR(Pension_charges_gross,2)&\" llai treth a chaiff ei thrin fel petai wedi'i thalu \"&DOLLAR(Pension_charges_tax_paid,2)&\")\"","v":"Cyfanswm y taliadau a godir ar gynilion pensiwn (£0.00 llai treth a chaiff ei thrin fel petai wedi'i thalu £0.00)"},null,null,null,null,null,{"$f":"Pension_charges","v":0},null,{"$f":"IF(Pension_charges_gross>0,1,0)","v":0}]
["L83a",null,"plws","Cyfandaliad pensiwn y Wladwriaeth",null,null,null,{"$f":"Pension_lump_sum_amount","v":0},{"$f":"\"x \"&Pension_lump_sum_rate*100&\"% =\"","v":"x 0% ="},{"$f":"Pension_lump_sum_tax","v":0},null,{"$f":"IF(Pension_lump_sum_amount>0,1,0)","v":0}]
["L83b",null,"plws","Tal incwm uchel budd-dal plant",null,null,null,null,null,{"$f":"Child_Benefit_tax_charge","v":0},null,{"$f":"IF(Child_Benefit_tax_charge>0,1,0)","v":0}]
["L83c",null,"plws","plws treth ychwanegol sy'n ddyledus ar daliadau pensiwn",null,null,null,null,null,{"$f":"pens_tax_due","v":0},null,{"$f":"IF(pens_tax_due>0,1,0)","v":0}]
["L83d",null,"plws","Tâl cyfleuster ailwladoli dros dro (TRF)",null,null,{"$f":"TRF_amount","v":0},{"$f":"\"x \"&TRF_rate*100&\"%\"","v":"x 12%"},null,{"$f":"TRF_charge","v":0},null,{"$f":"IF(TRF_charge>0,1,0)","v":0}]
["L84a",null,"Rhwymedigaeth Treth Incwm",null,null,null,null,"(1)",null,{"$f":"total_tax_NIC_nonresS23","v":0},null,{"$f":"IF(box_NRD1,1,0)","v":0}]
["L84aa",null,"lncwm heb ei gynnwys yn y cyfrifiad hwn",null,null,null,{"$f":"Income_Excluded","v":0},null,null,null,null,0]
["L84ab",null,null,"Treth ar incwm a eithriwyd o'r cyfrifiad hwn",null,null,null,null,null,{"$f":"tax_on_excluded_inc","v":0},null,0]
["L84ac",null,null,"Treth y byddai modd codi tâl arni fel arall ar incwm heb ei ddiystyru",null,null,null,null,null,{"$f":"tax_on_non_excluded_income","v":0},null,0]
["L84b",null,"Terfyn ar rwymedigaeth i dreth incwm",null,null,null,null,"(2)",null,{"$f":"total_tax_NIC_nonresS811","v":0},null,0]
["L84c",null,"Rhwymedigaeth treth incwm wedi’i chyfyngu i",null,null,null,null,"Yr isaf o (1) neu (2)",null,{"$f":"total_tax_NIC_nonres","v":0},null,0]
["L84d",null,null,null,null,null,null,null,null,null,null,{"$f":"IF(OR(box_NRD1,Gift_aid_tax_reduced+Pension_charges+Pension_lump_sum_tax+Child_Benefit_tax_charge+pens_tax_due+BRD_charge+TRF_charge+WFP_charge>0),1,0)","v":0}]
["L84e",null,"llai","10% credydau treth ar ddifidendau Cwmnïau yn y DU (na ellir ad-dalu)",null,null,null,null,null,{"$f":"div_tax_credits","v":0},null,{"$f":"IF(div_tax_credits>0,1,0)","v":0}]
["L84f",null,"llai","Treth o 8.75% yn cael ei thrin fel wedi'i thalu ar ddifidendau o gwmnïau yn y DU (na ellir ei had-dalu) ",null,null,null,null,null,{"$f":"div_tax_credits_s399","v":0},null,{"$f":"IF(div_tax_credits_s399>0,1,0)","v":0}]
["L84g",null,"llai","Treth Dybiannol o enillion ar bolisïau bywyd ac ati",null,null,null,null,null,{"$f":"notional_CEG","v":0},null,{"$f":"IF(notional_CEG>0,1,0)","v":0}]
["L84h",null,"llai","Treth Dybiannol o ddifidendau stoc ac incwm arall",null,null,null,null,null,{"$f":"notional_other","v":0},null,{"$f":"IF(notional_other>1,1,0)","v":0}]
["L85",null,"Treth Incwm sy'n Ddyledus",null,null,null,null,null,null,{"$f":"IT_after_div_tax_credits","v":0},null,{"$f":"IF(AND(Gift_aid_tax_reduced+Pension_charges_gross+Pension_lump_sum_amount+Child_Benefit_tax_charge+pens_tax_due+BRD_charge+pens_tax_rel_due+notional_CEG+notional_other+WFP_charge>0,div_tax_credits+div_tax_credits_s399+TRF_charge=0),1,0)","v":0}]
["or",null,"Treth Incwm sy'n Ddyledus ar ôl difidendau credydau treth",null,null,null,null,null,null,{"$f":"IT_after_div_tax_credits","v":0},null,{"$f":"IF(AND(div_tax_credits+div_tax_credits_s399>0,TRF_charge=0),1,0)","v":0}]
["or",null,"Tâl TRF a threth incwm sy’n ddyledus",null,null,null,null,null,null,{"$f":"IT_after_div_tax_credits","v":0},null,{"$f":"IF(AND(Gift_aid_tax_reduced+Pension_charges_gross+Pension_lump_sum_amount+Child_Benefit_tax_charge+pens_tax_due+BRD_charge+pens_tax_rel_due+notional_CEG+notional_other+WFP_charge>0,div_tax_credits+div_tax_credits_s399=0,TRF_charge>0),1,0)","v":0}]
["or",null,"Treth Incwm ar ôl credydau treth difidend a thâl TRF sy’n ddyledus",null,null,null,null,null,null,{"$f":"IT_after_div_tax_credits","v":0},null,{"$f":"IF(AND(TRF_charge>0,div_tax_credits+div_tax_credits_s399>0),1,0)","v":0}]
["L86",null,null,null,null,null,null,null,null,null,null,{"$f":"IF((Pension_charges_gross+Pension_lump_sum_amount+Child_Benefit_tax_charge+pens_tax_due+BRD_charge+pens_tax_rel_due+div_tax_credits+div_tax_credits_s399)>0,1,0)","v":0}]
["L87",null,"plws","Cyfraniadau Yswiriant Gwladol Dosbarth 4",null,null,{"$f":"NIC_amount","v":0},{"$f":"\"x \"&NIC_rate*100&\"% =\"","v":"x 6% ="},{"$f":"NIC_charge","v":0},null,null,{"$f":"IF(NIC_total>0,IF(NIC1_amount<=0,IF(AND(NIC_charge>0,NIC_sup_charge=0),1,0),0),0)","v":0}]
["or",null,"plws","Cyfraniadau Yswiriant Gwladol Dosbarth 4",null,null,null,null,null,null,null,{"$f":"IF(NIC_total>0,IF(NIC1_amount<=0,IF(AND(NIC_charge>0,NIC_sup_charge>0),1,0),0),0)","v":0}]
["L88",null,null,null,null,null,{"$f":"NIC_amount","v":0},{"$f":"\"x \"&NIC_rate*100&\"% =\"","v":"x 6% ="},{"$f":"NIC_charge","v":0},null,null,{"$f":"IF(NIC_total>0,IF(NIC1_amount<=0,IF(AND(NIC_charge>0,NIC_sup_charge>0),1,0),0),0)","v":0}]
["L89",null,null,null,"",null,{"$f":"NIC_sup_amount","v":0},{"$f":"\"x \"&NIC_supp_rate*100&\"% =\"","v":"x 2% ="},{"$f":"NIC_sup_charge","v":0},null,null,{"$f":"IF(NIC_total>0,IF(NIC1_amount<=0,IF(AND(NIC_charge>0,NIC_sup_charge>0),1,0),0),0)","v":0}]
["L89A",null,"plws","cyfraniadau Yswiriant Gwladol Dosbarth 4",null,null,null,null,{"$f":"NIC4_amount","v":0},null,null,{"$f":"IF(NIC_total>0,IF(NIC1_amount>0,1,0),0)","v":0}]
["L89B",null,null,{"$f":"\"Addaswyd eich Dosbarth 4 ar gyfer Dosbarth 2 sy'n ddyledus a phrif gyfraniadau Dosbarth 1 \" &DOLLAR(NIC1_amount,2)","v":"Addaswyd eich Dosbarth 4 ar gyfer Dosbarth 2 sy'n ddyledus a phrif gyfraniadau Dosbarth 1 £0.00"},null,null,null,null,null,null,null,{"$f":"IF(NIC_total>0,IF(NIC1_amount>0,1,0),0)","v":0}]
["L89C",null,"plws ","cyfraniadau Yswiriant Gwladol Dosbarth 2",null,null,null,null,{"$f":"NIC2_amount","v":0},null,null,{"$f":"IF(NIC_total>0,IF(NIC2_amount>0,1,0),0)","v":0}]
["L90",null,null,"Cyfanswm y Cyfraniadau Yswiriant Gwladol Dosbarth 4 sy'n ddyledus",null,null,null,null,null,{"$f":"NIC_total","v":0},null,{"$f":"IF(AND(NIC_total>0,NIC2_amount=0),1,0)","v":0}]
["or",null,null,"Cyfanswm y Cyfraniadau Yswiriant Gwladol Dosbarth 2 a Dosbarth 4 sy'n ddyledus",null,null,null,null,null,{"$f":"NIC_total","v":0},null,{"$f":"IF(AND(NIC_total>0,NIC2_amount>0,NIC2_amount<NIC_total),1,0)","v":0}]
["or",null,null,"Cyfanswm y Cyfraniadau Yswiriant Gwladol Dosbarth 2 sy'n ddyledus",null,null,null,null,null,{"$f":"NIC_total","v":0},null,{"$f":"IF(AND(NIC_total>0,NIC2_amount>0,NIC2_amount=NIC_total),1,0)","v":0}]
["or",null,null,"Os ydych wedi cofrestru ar gyfer CYG Dosbarth 2, mae’ch cyfraniadau wedi cael eu trin fel pe baent wedi’u talu.",null,null,null,null,null,null,null,{"$f":"IF(NIC2_thrshld=1,1,0)","v":0}]
[null,null,null,"Y cyfraniadau Yswiriant Gwladol Dosbarth 2 sydd arnoch yw",null,null,null,null,null,0,null,{"$f":"IF(NIC2_thrshld=1,1,0)","v":0}]
["L91",null,null,null,null,null,null,null,null,null,null,{"$f":"IF(OR(NIC_total>0,NIC2_thrshld=1),1,0)","v":0}]
["L92",null,"plws",{"$f":"\"Treth heb ei thalu am flynyddoedd cynharach yn eich cod ar gyfer \"&tax_year","v":"Treth heb ei thalu am flynyddoedd cynharach yn eich cod ar gyfer 2025-26"},null,null,null,null,null,{"$f":"unpaid_tax_in_code","v":0},null,{"$f":"IF(unpaid_tax_in_code>0,1,0)","v":0}]
["L93",null,"plws","plws ad-daliadau Benthyciadau Myfyrwyr (cynllun 01)",null,null,null,null,null,{"$f":"Student_loan","v":0},null,{"$f":"IF(AND(Student_loan>0,SL_type=1),1,0)","v":0}]
["or",null,"plws","plws ad-daliadau Benthyciadau Myfyrwyr (cynllun 02)",null,null,null,null,null,{"$f":"Student_loan","v":0},null,{"$f":"IF(AND(Student_loan>0,SL_type=2),1,0)","v":0}]
["or",null,"plws","plws ad-daliadau Benthyciadau Myfyrwyr (cynllun 04)",null,null,null,null,null,{"$f":"Student_loan","v":0},null,{"$f":"IF(AND(Student_loan>0,SL_type=4),1,0)","v":0}]
["L93a1",null,"plws","Ad-daliadau Benthyciad Ôl-raddedig",null,null,null,null,null,{"$f":"Post_grad_loan","v":0},null,{"$f":"IF(AND(Post_grad_loan>0,PGL_type=3),1,0)","v":0}]
["L93a",null,"plws","Treth ar flwydd-daliadau a breindaliadau",null,null,null,{"$f":"annuity_amount","v":0},"x 20% =",{"$f":"annuity_tax","v":0},null,{"$f":"IF(annuity_amount>0,1,0)","v":0}]
["L93d",null,"plws","Tâl sail trosglwyddo ar gyfer y rhai nad yw eu domisil yn y DU",null,null,null,null,null,0,null,0]
["L94",null,"Treth Incwm a Chyfraniadau Yswiriant Gwladol Dosbarth 2 sy'n Ddyledus",null,null,null,null,null,null,{"$f":"IT_plus_class4","v":0},null,{"$f":"IF(TRF_charge>0,0,IF(AND(NIC_total>0,NIC2_amount>0,NIC2_amount=NIC_total),1,0))","v":0}]
["or",null,"Treth Incwm, Tâl TRF a chyfraniadau Yswiriant Gwladol Dosbarth 2 sy’n ddyledus",null,null,null,null,null,null,{"$f":"IT_plus_class4","v":0},null,{"$f":"IF(TRF_charge=0,0,IF(AND(NIC_total>0,NIC2_amount>0,NIC2_amount=NIC_total),1,0))","v":0}]
["or",null,"Treth Incwm a Chyfraniadau Yswiriant Gwladol Dosbarth 4 sy'n Ddyledus",null,null,null,null,null,null,{"$f":"IT_plus_class4","v":0},null,{"$f":"IF(TRF_charge>0,0,IF(AND(NIC_total>0,NIC2_amount=0),1,0))","v":0}]
["or",null,"Treth Incwm, Tâl TRF a chyfraniadau Yswiriant Gwladol Dosbarth 4 sy’n ddyledus",null,null,null,null,null,null,{"$f":"IT_plus_class4","v":0},null,{"$f":"IF(TRF_charge=0,0,IF(AND(NIC_total>0,NIC2_amount=0),1,0))","v":0}]
["or",null,"Treth Incwm a Chyfraniadau Yswiriant Gwladol Dosbarth 2 a Dosbarth 4 sy'n ddyledus ",null,null,null,null,null,null,{"$f":"IT_plus_class4","v":0},null,{"$f":"IF(TRF_charge>0,0,IF(AND(NIC_total>0,NIC2_amount>0,NIC2_amount<NIC_total),1,0))","v":0}]
["or",null,"Treth Incwm, Tâl TRF a chyfraniadau Yswiriant Gwladol Dosbarth 2 a Dosbarth 4 sy’n ddyledus",null,null,null,null,null,null,{"$f":"IT_plus_class4","v":0},null,{"$f":"IF(TRF_charge=0,0,IF(AND(NIC_total>0,NIC2_amount>0,NIC2_amount<NIC_total),1,0))","v":0}]
["or",null,"Treth Incwm sy'n ddyledus",null,null,null,null,null,null,{"$f":"IT_plus_class4","v":0},null,{"$f":"IF(TRF_charge>0,0,IF(OR(AND(unpaid_tax_in_code+Student_loan+Post_grad_loan+annuity_amount>0,NIC_total=0),AND(NIC2_thrshld=1,NIC_total=0)),1,0))","v":0}]
["or",null,"Tâl TRF a Threth Incwm sy’n ddyledus",null,null,null,null,null,null,{"$f":"IT_plus_class4","v":0},null,{"$f":"IF(TRF_charge=0,0,IF(OR(AND(unpaid_tax_in_code+Student_loan+Post_grad_loan+annuity_amount>0,NIC_total=0),AND(NIC2_thrshld=1,NIC_total=0)),1,0))","v":0}]
["L95",null,null,null,null,null,null,null,null,null,null,{"$f":"IF(NIC_total+unpaid_tax_in_code+Student_loan+Post_grad_loan+TRF_charge>0,1,0)","v":0}]
["L96",null,"llai","Treth a ddidynnwyd",null,null,null,null,null,null,null,{"$f":"IF((total_tax_paid+debt_coded)>0,1,0)","v":0}]
["L97",null,null,"O bob cyflogaeth, pensiynau'r DU a budd-daliadau'r Wladwriaeth",null,null,null,null,{"$f":"tax_paid_E","v":0},null,null,{"$f":"IF(AND(tax_paid_E>0,debt_coded=0),1,0)","v":0}]
["or",null,null,"O bob cyflogaeth, pensiynau'r DU a budd-daliadau'r wladwriaeth",null,null,null,{"$f":"tax_paid_E","v":0},null,null,null,{"$f":"IF(debt_coded>0,1,0)","v":0}]
["L97A",null,null,"llai","Dyled a gesglir drwy TWE",null,null,{"$f":"debt_collected","v":0},null,null,null,{"$f":"IF(debt_coded>0,1,0)","v":0}]
["L97B",null,null,"Balans treth TWE",null,null,null,null,{"$f":"SA_E_tax","v":0},null,null,{"$f":"IF(debt_coded>0,1,0)","v":0}]
["L98",null,null,"CIS ac incwm masnachu",null,null,null,null,{"$f":"tax_paid_D","v":0},null,null,{"$f":"IF(tax_paid_D>0,1,0)","v":0}]
["L99",null,null,"Partneriaethau",null,null,null,null,{"$f":"tax_paid_D_PTR","v":0},null,null,{"$f":"IF(tax_paid_D_PTR>0,1,0)","v":0}]
["L100",null,null,"Tir ac eiddo yn y DU",null,null,null,null,{"$f":"tax_paid_IFP","v":0},null,null,{"$f":"IF(tax_paid_IFP>0,1,0)","v":0}]
["L101",null,null,"Incwm o Dramor ",null,null,null,null,{"$f":"tax_paid_Foreign","v":0},null,null,{"$f":"IF(tax_paid_Foreign>0,1,0)","v":0}]
["L102",null,null,"Ymddiriedolaethau ac Ystadau ",null,null,null,null,{"$f":"tax_paid_Trust","v":0},null,null,{"$f":"IF(tax_paid_Trust>0,1,0)","v":0}]
["L103",null,null,"Incwm o Dros y Môr",null,null,null,null,{"$f":"tax_paid_Overseas","v":0},null,null,{"$f":"IF(tax_paid_Overseas>0,1,0)","v":0}]
["L104",null,null,"Llog a gawsoch o fanciau a chymdeithasau adeiladu yn y DU",null,null,null,null,{"$f":"tax_paid_Case3","v":0},null,null,{"$f":"IF(tax_paid_Case3>0,1,0)","v":0}]
["L106",null,null,"Cyfrifon ISA sy'n Ddi-rym",null,null,null,null,{"$f":"tax_paid_CEG","v":0},null,null,{"$f":"IF(tax_paid_CEG>0,1,0)","v":0}]
["L107",null,null,"Incwm Arall ",null,null,null,null,{"$f":"tax_paid_Other","v":0},null,null,{"$f":"IF(tax_paid_Other>0,1,0)","v":0}]
["L108",null,null,{"$f":"\"Treth a dandalwyd ar gyfer \"&tax_year&\" y ya gynhwyswyd yn eich cod am \"&next_year","v":"Treth a dandalwyd ar gyfer 2025-26 y ya gynhwyswyd yn eich cod am 2026-27"},null,null,null,null,{"$f":"coded_in_later_year","v":0},null,null,{"$f":"IF(coded_in_later_year>0,1,0)","v":0}]
["L109",null,null,"Cyfanswm y dreth a ddidynnwyd",null,null,null,null,null,{"$f":"total_tax_paid","v":0},null,{"$f":"IF((total_tax_paid+debt_coded)>0,1,0)","v":0}]
["L110",null,null,null,null,null,null,null,null,null,null,{"$f":"IF((total_tax_paid+debt_collected)>0,1,0)","v":0}]
["L111",null,"Treth Incwm a ordalwyd",null,null,null,null,null,null,{"$f":"Total_IT_class4_due","v":0},null,{"$f":"IF(AND(total_tax_paid+debt_coded>0,total_tax_paid>IT_plus_class4),1,0)","v":0}]
["or",null,"Treth Incwm a Chyfraniadau Yswiriant Gwladol Dosbarth 2 sy'n Ddyledus",null,null,null,null,null,null,{"$f":"Total_IT_class4_due","v":0},null,{"$f":"IF(TRF_charge>0,0,IF(AND(total_tax_paid+debt_coded>0,IT_plus_class4>=total_tax_paid,NIC_total>0,NIC2_amount>0,NIC2_amount=NIC_total),1,0))","v":0}]
["or",null,"Treth Incwm, cyfraniadau Yswiriant Gwladol Dosbarth 2 a thâl TRF sy’n ddyledus",null,null,null,null,null,null,{"$f":"Total_IT_class4_due","v":0},null,{"$f":"IF(TRF_charge=0,0,IF(AND(total_tax_paid+debt_coded>0,IT_plus_class4>=total_tax_paid,NIC_total>0,NIC2_amount>0,NIC2_amount=NIC_total),1,0))","v":0}]
["or",null,"Treth Incwm a Chyfraniadau Yswiriant Gwladol Dosbarth 4 sy'n Ddyledus",null,null,null,null,null,null,{"$f":"Total_IT_class4_due","v":0},null,{"$f":"IF(TRF_charge>0,0,IF(AND(total_tax_paid+debt_coded>0,IT_plus_class4>=total_tax_paid,NIC_total>0,NIC2_amount=0),1,0))","v":0}]
["or",null,"Treth Incwm, cyfraniadau Yswiriant Gwladol Dosbarth 4 a thâl TRF sy’n ddyledus",null,null,null,null,null,null,{"$f":"Total_IT_class4_due","v":0},null,{"$f":"IF(TRF_charge=0,0,IF(AND(total_tax_paid+debt_coded>0,IT_plus_class4>=total_tax_paid,NIC_total>0,NIC2_amount=0),1,0))","v":0}]
["or",null,"Treth Incwm a Chyfraniadau Yswiriant Gwladol Dosbarth 2 a Dosbarth 4 sy'n ddyledus ",null,null,null,null,null,null,{"$f":"Total_IT_class4_due","v":0},null,{"$f":"IF(TRF_charge>0,0,IF(AND(total_tax_paid+debt_coded>0,IT_plus_class4>=total_tax_paid,NIC_total>0,NIC2_amount>0,NIC2_amount<NIC_total),1,0))","v":0}]
["or",null,"Treth Incwm, cyfraniadau Yswiriant Gwladol Dosbarth 2 a Dosbarth 4 a thâl TRF sy’n ddyledus",null,null,null,null,null,null,{"$f":"Total_IT_class4_due","v":0},null,{"$f":"IF(TRF_charge=0,0,IF(AND(total_tax_paid+debt_coded>0,IT_plus_class4>=total_tax_paid,NIC_total>0,NIC2_amount>0,NIC2_amount<NIC_total),1,0))","v":0}]
["or",null,{"$f":"IF(NIC_total>0,\"Treth Incwm a Chyfraniadau Yswiriant Gwladol Dosbarth 4 sy'n Ddyledus\",\"Cyfanswm Treth Incwm sy'n ddyledus\")","v":"Cyfanswm Treth Incwm sy'n ddyledus"},null,null,null,null,null,null,{"$f":"Total_IT_class4_due","v":0},null,{"$f":"IF(TRF_charge>0,0,IF(AND(total_tax_paid+debt_coded>0,IT_plus_class4>=total_tax_paid,NIC_total=0),1,0))","v":0}]
["or",null,"Tâl TRF a Threth Incwm sy’n ddyledus",null,null,null,null,null,null,{"$f":"Total_IT_class4_due","v":0},null,{"$f":"IF(TRF_charge=0,0,IF(AND(total_tax_paid+debt_coded>0,IT_plus_class4>=total_tax_paid,NIC_total=0),1,0))","v":0}]
["L112",null,null,null,null,null,null,null,null,null,null,{"$f":"IF(OR(Taxable_CG>0,tax_on_gains_already_charged+CG_trust_tax>0),1,0)","v":0}]
["L113",null,"plws","Treth Enillion Cyfalaf ",null,null,null,null,null,null,null,{"$f":"IF(OR(Taxable_CG>0,tax_on_gains_already_charged+CG_trust_tax>0),1,0)","v":0}]
["L113a",null,null,null,null,null,null,null,null,null,null,{"$f":"IF(OR(Taxable_CG>0,tax_on_gains_already_charged+CG_trust_tax>0),1,0)","v":0}]
["L114",null,null,"Enillion Rhyddhad Gwaredu Ased Busnes a neu Ryddhad Buddsoddwyr",null,null,{"$f":"CG_at_ER_rate","v":0},{"$f":"\"x \"&ER_CGT_rate*100&\"%\"","v":"x 14%"},{"$f":"ER_rate_CGT","v":0},null,null,{"$f":"IF(CG_at_ER_rate>0,1,0)","v":0}]
["L115",null,null,"Cyfradd sylfaenol ar gyfer buddiant a drosglwyddir",null,null,{"$f":"CG_at_lower_rate_CI","v":0},{"$f":"\"x \"&CI_CGT_rate*100&\"%\"","v":"x 32%"},{"$f":"Lower_rate_CGT_CI","v":0},null,null,{"$f":"IF(CG_at_lower_rate_CI>0,1,0)","v":0}]
["L115a",null,null,"Buddiant a drosglwyddir",null,null,{"$f":"CG_at_higher_rate_CI","v":0},{"$f":"\"x \"&CI_CGT_rate*100&\"%\"","v":"x 32%"},{"$f":"Higher_rate_CGT_CI","v":0},null,null,{"$f":"IF(CG_at_higher_rate_CI>0,1,0)","v":0}]
["L115b",null,null,"Cyfradd sylfaenol ar gyfer eiddo preswyl ",null,null,{"$f":"CG_at_lower_rate_RP","v":0},{"$f":"\"x \"&Lower_CGT_rate_RP*100&\"%\"","v":"x 18%"},{"$f":"Lower_rate_CGT_RP","v":0},null,null,{"$f":"IF(CG_at_lower_rate_RP>0,1,0)","v":0}]
["L115c",null,null,"Eiddo preswyl",null,null,{"$f":"CG_at_higher_rate_RP","v":0},{"$f":"\"x \"&Upper_CGT_rate_RP*100&\"%\"","v":"x 24%"},{"$f":"Higher_rate_CGT_RP","v":0},null,null,{"$f":"IF(CG_at_higher_rate_RP>0,1,0)","v":0}]
["L116",null,null,"Enillion eraill cyfradd sylfaenol",null,null,{"$f":"CG_at_lower_rate","v":0},{"$f":"\"x \"&Lower_CGT_rate*100&\"%\"","v":"x 18%"},{"$f":"Lower_rate_CGT","v":0},null,null,{"$f":"IF(CG_at_lower_rate>0,1,0)","v":0}]
["L116a",null,null,"Enillion eraill ",null,null,{"$f":"CG_at_higher_rate","v":0},{"$f":"\"x \"&Upper_CGT_rate*100&\"%\"","v":"x 24%"},{"$f":"Higher_rate_CGT","v":0},null,null,{"$f":"IF(CG_at_higher_rate>0,1,0)","v":0}]
["L117a",null,null,"Enillion cyfalaf trethadwy",null,null,{"$f":"Taxable_CG","v":0},null,null,null,null,{"$f":"IF(Taxable_CG>0,1,0)","v":0}]
["L117b",null,null,null,null,null,null,null,null,null,null,{"$f":"IF(Taxable_CG>0,1,0)","v":0}]
["L117c",null,null,"Treth Enillion Cyfalaf ",null,null,null,null,{"$f":"Total_CGT_tax","v":0},null,null,{"$f":"IF(Taxable_CG>0,1,0)","v":0}]
["L117d",null,"plws","Addasiad ar gyfer Treth Enillion Cyfalaf",null,null,null,null,{"$f":"CGT_adjustment","v":0},null,null,{"$f":"IF(CGT_adjustment<>0,1,0)","v":0}]
["L117e",null,"plws","Rhwymedigaeth ychwanegol ar gyfer ymddiriedolaethau alltraeth ",null,null,null,null,{"$f":"CG_trust_tax","v":0},null,null,{"$f":"IF(CG_trust_tax>0,1,0)","v":0}]
["L117f",null,null,"Treth Enillion Cyfalaf sy'n Ddyledus",null,null,null,null,{"$f":"Total_CG_tax_due","v":0},null,null,{"$f":"IF(CGT_adjustment+CG_trust_tax>0,1,0)","v":0}]
["L118",null,null,"llai","Rhyddhad Credyd Treth Dramor ar enillion cyfalaf",null,null,null,{"$f":"CG_FTCR","v":0},null,null,{"$f":"IF(AND(CG_FTCR>0,CG_FTCR=CG_FTCR_restricted),1,0)","v":0}]
["or",null,null,"llai",{"$f":"\"Rhyddhad Credyd Tramor wedi'i ostwng \"&DOLLAR(CG_FTCR,0)&\" i’r uchafswm a ganiateir\"","v":"Rhyddhad Credyd Tramor wedi'i ostwng £0 i’r uchafswm a ganiateir"},null,null,null,{"$f":"CG_FTCR_restricted","v":0},null,null,{"$f":"IF(AND(CG_FTCR>0,CG_FTCR>CG_FTCR_restricted),1,0)","v":0}]
["L119",null,null,"Rhwymedigaeth Treth Enillion Cyfalaf",null,null,null,null,{"$f":"CG_tax_due_pre_tax","v":0},null,null,{"$f":"IF(CG_FTCR>0,1,0)","v":0}]
["L120",null,null,null,null,null,null,null,null,null,null,{"$f":"IF(tax_on_gains_already_charged>0,1,0)","v":0}]
["L120a",null,null,"Treth Enillion Cyfalaf sy'n Ddyledus",null,null,null,null,null,{"$f":"total_CG_due","v":0},null,{"$f":"IF(tax_on_gains_already_charged>0,1,0)","v":0}]
["L120b",null,null,"Treth Enillion Cyfalaf yn cael ei gordalu",null,null,{"$f":"total_CG_overpaid","v":0},null,null,null,null,{"$f":"IF(OR(Taxable_CG>0,tax_on_gains_already_charged+CG_trust_tax>0,CG_tax_due_pre_tax>tax_on_gains_already_charged),1,0)","v":0}]
["L120c",null,null,null,null,null,null,null,null,null,null,{"$f":"IF(total_CG_overpaid>0,1,0)","v":0}]
["L120d",null,null,null,null,null,null,null,null,null,null,{"$f":"IF(OR(Taxable_CG>0,tax_on_gains_already_charged>0),1,0)","v":0}]
["L120e",null,"Treth Incwm, Enillion Cyfalaf a Chyfraniadau Yswiriant Gwladol Dosbarth 2 sy'n ddyledus ",null,null,null,null,null,null,{"$f":"Total_IT_CG_class4_due_pre","v":0},null,{"$f":"IF(TRF_charge>0,0,IF(AND(OR(Taxable_CG>0,tax_on_gains_already_charged+CG_trust_tax>0),IT_plus_class4+total_CG_due>=total_tax_paid,NIC_total>0,NIC2_amount>0,NIC2_amount=NIC_total,CG_repayable>0),1,0))","v":0}]
["or",null,"Treth Incwm, Treth Enillion Cyfalaf, cyfraniadau Yswiriant Gwladol Dosbarth 2",null,null,null,null,null,null,null,null,{"$f":"IF(TRF_charge=0,0,IF(AND(OR(Taxable_CG>0,tax_on_gains_already_charged+CG_trust_tax>0),IT_plus_class4+total_CG_due>=total_tax_paid,NIC_total>0,NIC2_amount>0,NIC2_amount=NIC_total,CG_repayable>0),1,0))","v":0}]
[null,null,"a thâl TRF sy’n ddyledus",null,null,null,null,null,null,{"$f":"Total_IT_CG_class4_due_pre","v":0},null,{"$f":"IF(TRF_charge=0,0,IF(AND(OR(Taxable_CG>0,tax_on_gains_already_charged+CG_trust_tax>0),IT_plus_class4+total_CG_due>=total_tax_paid,NIC_total>0,NIC2_amount>0,NIC2_amount=NIC_total,CG_repayable>0),1,0))","v":0}]
["or",null,"Treth Incwm, Enillion Cyfalaf a Chyfraniadau Yswiriant Gwladol Dosbarth 4 sy'n ddyledus ",null,null,null,null,null,null,{"$f":"Total_IT_CG_class4_due_pre","v":0},null,{"$f":"IF(TRF_charge>0,0,IF(AND(OR(Taxable_CG>0,tax_on_gains_already_charged+CG_trust_tax>0),IT_plus_class4+total_CG_due>=total_tax_paid,NIC_total>0,NIC2_amount=0,CG_repayable>0),1,0))","v":0}]
["or",null,"Treth Incwm, Treth Enillion Cyfalaf, cyfraniadau Yswiriant Gwladol Dosbarth 4 ",null,null,null,null,null,null,null,null,{"$f":"IF(TRF_charge=0,0,IF(AND(OR(Taxable_CG>0,tax_on_gains_already_charged+CG_trust_tax>0),IT_plus_class4+total_CG_due>=total_tax_paid,NIC_total>0,NIC2_amount=0,CG_repayable>0),1,0))","v":0}]
[null,null,"a thâl TRF sy’n ddyledus",null,null,null,null,null,null,{"$f":"Total_IT_CG_class4_due_pre","v":0},null,{"$f":"IF(TRF_charge=0,0,IF(AND(OR(Taxable_CG>0,tax_on_gains_already_charged+CG_trust_tax>0),IT_plus_class4+total_CG_due>=total_tax_paid,NIC_total>0,NIC2_amount=0,CG_repayable>0),1,0))","v":0}]
["or",null,"Treth Incwm, Enillion Cyfalaf a Chyfraniadau Yswiriant Gwladol Dosbarth 2 a Dosbarth 4 sy'n ddyledus ",null,null,null,null,null,null,{"$f":"Total_IT_CG_class4_due_pre","v":0},null,{"$f":"IF(TRF_charge>0,0,IF(AND(OR(Taxable_CG>0,tax_on_gains_already_charged+CG_trust_tax>0),IT_plus_class4+total_CG_due>=total_tax_paid,NIC_total>0,NIC2_amount>0,NIC2_amount<NIC_total,CG_repayable>0),1,0))","v":0}]
["or",null,"Treth Incwm, Treth Enillion Cyfalaf, cyfraniadau Yswiriant Gwladol Dosbarth 2 ",null,null,null,null,null,null,null,null,{"$f":"IF(TRF_charge=0,0,IF(AND(OR(Taxable_CG>0,tax_on_gains_already_charged+CG_trust_tax>0),IT_plus_class4+total_CG_due>=total_tax_paid,NIC_total>0,NIC2_amount>0,NIC2_amount<NIC_total,CG_repayable>0),1,0))","v":0}]
[null,null,"a Dosbarth 4 a thâl TRF sy’n ddyledus",null,null,null,null,null,null,{"$f":"Total_IT_CG_class4_due_pre","v":0},null,{"$f":"IF(TRF_charge=0,0,IF(AND(OR(Taxable_CG>0,tax_on_gains_already_charged+CG_trust_tax>0),IT_plus_class4+total_CG_due>=total_tax_paid,NIC_total>0,NIC2_amount>0,NIC2_amount<NIC_total,CG_repayable>0),1,0))","v":0}]
["or",null,"Treth Incwm a Threth Enillion Cyfalaf sy'n ddyledus",null,null,null,null,null,null,{"$f":"Total_IT_CG_class4_due_pre","v":0},null,{"$f":"IF(TRF_charge>0,0,IF(AND(OR(Taxable_CG>0,tax_on_gains_already_charged+CG_trust_tax>0),IT_plus_class4+total_CG_due>=total_tax_paid,NIC_total=0,CG_repayable>0),1,0))","v":0}]
["or",null,"Treth Incwm, Treth Enillion Cyfalaf a thâl TRF sy’n ddyledus",null,null,null,null,null,null,{"$f":"Total_IT_CG_class4_due_pre","v":0},null,{"$f":"IF(TRF_charge=0,0,IF(AND(OR(Taxable_CG>0,tax_on_gains_already_charged+CG_trust_tax>0),IT_plus_class4+total_CG_due>=total_tax_paid,NIC_total=0,CG_repayable>0),1,0))","v":0}]
["L120f",null,null,null,null,null,null,null,null,null,null,{"$f":"IF(CG_repayable>0,1,0)","v":0}]
["L120g",null,"llai","Treth Enillion Cyfalaf yn cael ei gordalu",null,null,null,null,null,null,null,{"$f":"IF(CG_repayable>0,1,0)","v":0}]
["L120h",null,null,"gostwng y Dreth Incwm a'r cyfraniadau Yswiriant Gwladol Dosbarth 2 sy’n ddyledus",null,null,null,null,null,{"$f":"CG_repayable","v":0},null,{"$f":"IF(TRF_charge>0,0,IF(AND(IT_plus_class4>=total_tax_paid,NIC_total>0,NIC2_amount>0,NIC2_amount=NIC_total,CG_repayable>0),1,0))","v":0}]
["or",null,null,"lleihau Treth Incwm, cyfraniadau Yswiriant Gwladol Dosbarth 2 ",null,null,null,null,null,null,null,{"$f":"IF(TRF_charge=0,0,IF(AND(IT_plus_class4>=total_tax_paid,NIC_total>0,NIC2_amount>0,NIC2_amount=NIC_total,CG_repayable>0),1,0))","v":0}]
[null,null,null,"a thâl TRF sy’n ddyledus",null,null,null,null,null,{"$f":"CG_repayable","v":0},null,{"$f":"IF(TRF_charge=0,0,IF(AND(IT_plus_class4>=total_tax_paid,NIC_total>0,NIC2_amount>0,NIC2_amount=NIC_total,CG_repayable>0),1,0))","v":0}]
["or",null,null,"gostwng y Dreth Incwm a'r cyfraniadau Yswiriant Gwladol Dosbarth 4 sy’n ddyledus",null,null,null,null,null,{"$f":"CG_repayable","v":0},null,{"$f":"IF(TRF_charge>0,0,IF(AND(IT_plus_class4>=total_tax_paid,NIC_total>0,NIC2_amount=0,CG_repayable>0),1,0))","v":0}]
["or",null,null,"lleihau Treth Incwm, cyfraniadau Yswiriant Gwladol Dosbarth 4 ",null,null,null,null,null,null,null,{"$f":"IF(TRF_charge=0,0,IF(AND(IT_plus_class4>=total_tax_paid,NIC_total>0,NIC2_amount=0,CG_repayable>0),1,0))","v":0}]
[null,null,null,"a thâl TRF sy’n ddyledus",null,null,null,null,null,{"$f":"CG_repayable","v":0},null,{"$f":"IF(TRF_charge=0,0,IF(AND(IT_plus_class4>=total_tax_paid,NIC_total>0,NIC2_amount=0,CG_repayable>0),1,0))","v":0}]
["or",null,null,"gostwng y Dreth Incwm a'r cyfraniadau Yswiriant Gwladol Dosbarth 2 a Dosbarth 4 sy’n ddyledus",null,null,null,null,null,{"$f":"CG_repayable","v":0},null,{"$f":"IF(TRF_charge>0,0,IF(AND(NIC_total>0,NIC2_amount>0,NIC2_amount<NIC_total,CG_repayable>0),1,0))","v":0}]
["or",null,null,"lleihau Treth Incwm, cyfraniadau Yswiriant Gwladol Dosbarth 2 ",null,null,null,null,null,null,null,{"$f":"IF(TRF_charge=0,0,IF(AND(NIC_total>0,NIC2_amount>0,NIC2_amount<NIC_total,CG_repayable>0),1,0))","v":0}]
[null,null,null,"a Dosbarth 4 a thâl TRF sy’n ddyledus",null,null,null,null,null,{"$f":"CG_repayable","v":0},null,{"$f":"IF(TRF_charge=0,0,IF(AND(NIC_total>0,NIC2_amount>0,NIC2_amount<NIC_total,CG_repayable>0),1,0))","v":0}]
["or",null,null,"gostwn y Dreth Incwm sy’n ddyledus",null,null,null,null,null,{"$f":"CG_repayable","v":0},null,{"$f":"IF(TRF_charge>0,0,IF(AND(IT_plus_class4>=total_tax_paid,NIC_total=0,CG_repayable>0),1,0))","v":0}]
["or",null,null,"lleihau Tâl TRF a Threth Incwm sy’n ddyledus",null,null,null,null,null,{"$f":"CG_repayable","v":0},null,{"$f":"IF(TRF_charge=0,0,IF(AND(IT_plus_class4>=total_tax_paid,NIC_total=0,CG_repayable>0),1,0))","v":0}]
["L120i",null,null,null,null,null,null,null,null,null,null,{"$f":"IF(CG_repayable>0,1,0)","v":0}]
["L121",null,"Treth Incwm a ordalwyd",null,null,null,null,null,null,{"$f":"Total_IT_CG_class4_due","v":0},null,{"$f":"IF(AND(OR(Taxable_CG>0,tax_on_gains_already_charged+CG_trust_tax>0),total_tax_paid>IT_plus_class4+total_CG_due),1,0)","v":0}]
["or",null,"Treth Incwm, Enillion Cyfalaf a Chyfraniadau Yswiriant Gwladol Dosbarth 2 sy'n ddyledus ",null,null,null,null,null,null,{"$f":"Total_IT_CG_class4_due","v":0},null,{"$f":"IF(TRF_charge>0,0,IF(AND(OR(Taxable_CG>0,tax_on_gains_already_charged+CG_trust_tax>0),IT_plus_class4+total_CG_due>=total_tax_paid,NIC_total>0,NIC2_amount>0,NIC2_amount=NIC_total),1,0))","v":0}]
["or",null,"Treth Incwm, Treth Enillion Cyfalaf, cyfraniadau Yswiriant Gwladol Dosbarth 2 ",null,null,null,null,null,null,null,null,{"$f":"IF(TRF_charge=0,0,IF(AND(OR(Taxable_CG>0,tax_on_gains_already_charged+CG_trust_tax>0,TRF_charge>0),IT_plus_class4+total_CG_due>=total_tax_paid,NIC_total>0,NIC2_amount>0,NIC2_amount=NIC_total),1,0))","v":0}]
[null,null,"a thâl TRF sy’n ddyledus",null,null,null,null,null,null,{"$f":"Total_IT_CG_class4_due","v":0},null,{"$f":"IF(TRF_charge=0,0,IF(AND(OR(Taxable_CG>0,tax_on_gains_already_charged+CG_trust_tax>0,TRF_charge>0),IT_plus_class4+total_CG_due>=total_tax_paid,NIC_total>0,NIC2_amount>0,NIC2_amount=NIC_total),1,0))","v":0}]
["or",null,"Treth Incwm, Enillion Cyfalaf a Chyfraniadau Yswiriant Gwladol Dosbarth 4 sy'n ddyledus ",null,null,null,null,null,null,{"$f":"Total_IT_CG_class4_due","v":0},null,{"$f":"IF(TRF_charge>0,0,IF(AND(OR(Taxable_CG>0,tax_on_gains_already_charged+CG_trust_tax>0),IT_plus_class4+total_CG_due>=total_tax_paid,NIC_total>0,NIC2_amount=0),1,0))","v":0}]
["or",null,"Treth Incwm, Treth Enillion Cyfalaf, cyfraniadau Yswiriant Gwladol Dosbarth 4 ",null,null,null,null,null,null,null,null,{"$f":"IF(TRF_charge=0,0,IF(AND(OR(Taxable_CG>0,tax_on_gains_already_charged+CG_trust_tax>0),IT_plus_class4+total_CG_due>=total_tax_paid,NIC_total>0,NIC2_amount=0),1,0))","v":0}]
[null,null,"a thâl TRF sy’n ddyledus",null,null,null,null,null,null,{"$f":"Total_IT_CG_class4_due","v":0},null,{"$f":"IF(TRF_charge=0,0,IF(AND(OR(Taxable_CG>0,tax_on_gains_already_charged+CG_trust_tax>0),IT_plus_class4+total_CG_due>=total_tax_paid,NIC_total>0,NIC2_amount=0),1,0))","v":0}]
["or",null,"Treth Incwm, Enillion Cyfalaf a Chyfraniadau Yswiriant Gwladol Dosbarth 2 a Dosbarth 4 sy'n ddyledus ",null,null,null,null,null,null,{"$f":"Total_IT_CG_class4_due","v":0},null,{"$f":"IF(TRF_charge>0,0,IF(AND(OR(Taxable_CG>0,tax_on_gains_already_charged+CG_trust_tax>0),IT_plus_class4+total_CG_due>=total_tax_paid,NIC_total>0,NIC2_amount>0,NIC2_amount<NIC_total),1,0))","v":0}]
["or",null,"Treth Incwm, Treth Enillion Cyfalaf, cyfraniadau Yswiriant Gwladol Dosbarth 2 ",null,null,null,null,null,null,null,null,{"$f":"IF(TRF_charge=0,0,IF(AND(OR(Taxable_CG>0,tax_on_gains_already_charged+CG_trust_tax>0),IT_plus_class4+total_CG_due>=total_tax_paid,NIC_total>0,NIC2_amount>0,NIC2_amount<NIC_total),1,0))","v":0}]
[null,null,"a Dosbarth 4 a thâl TRF sy’n ddyledus",null,null,null,null,null,null,{"$f":"Total_IT_CG_class4_due","v":0},null,{"$f":"IF(TRF_charge=0,0,IF(AND(OR(Taxable_CG>0,tax_on_gains_already_charged+CG_trust_tax>0),IT_plus_class4+total_CG_due>=total_tax_paid,NIC_total>0,NIC2_amount>0,NIC2_amount<NIC_total),1,0))","v":0}]
["or",null,{"$f":"IF(NIC_total>0,\"Treth Incwm, Treth Enillion Cyfalaf a Chyfraniadau Yswiriant Gwladol Dosbarth\",\"Treth Incwm a Threth Enillion Cyfalaf sy'n ddyledus\")","v":"Treth Incwm a Threth Enillion Cyfalaf sy'n ddyledus"},null,null,null,null,null,null,{"$f":"Total_IT_CG_class4_due","v":0},null,{"$f":"IF(TRF_charge>0,0,IF(AND(OR(Taxable_CG>0,tax_on_gains_already_charged+CG_trust_tax>0),IT_plus_class4+total_CG_due>=total_tax_paid,NIC_total=0),1,0))","v":0}]
["or",null,"Treth Incwm, Treth Enillion Cyfalaf a thâl TRF sy’n ddyledus",null,null,null,null,null,null,{"$f":"Total_IT_CG_class4_due","v":0},null,{"$f":"IF(TRF_charge=0,0,IF(AND(OR(Taxable_CG>0,tax_on_gains_already_charged+CG_trust_tax>0),IT_plus_class4+total_CG_due>=total_tax_paid,NIC_total=0),1,0))","v":0}]
["L122",null,null,null,null,null,null,null,null,null,null,{"$f":"IF(OR(total_CG_due>0,CG_not_repayable>0),1,0)","v":0}]
["L122a",null,"Y swm sy’n weddill o Dreth Enillion Cyfalaf sydd wedi’i gordalu",null,null,null,null,null,{"$f":"CG_not_repayable","v":0},null,null,{"$f":"IF(CG_not_repayable>0,1,0)","v":0}]
["L122b",null,null,null,null,null,null,null,null,null,null,{"$f":"IF(AND(CG_not_repayable>0,tax_already_refunded+unpaid_tax_bf>0),1,0)","v":0}]
["L123",null,"llai","Treth a ad-dalwyd eisoes yn ystod y flwyddyn ",null,null,null,null,null,{"$f":"tax_already_refunded","v":0},null,{"$f":"IF(AND(tax_already_refunded>0,total_tax_paid>(IT_plus_class4+total_CG_due)),1,0)","v":0}]
["or",null,"plws","Treth a ad-dalwyd eisoes yn ystod y flwyddyn ",null,null,null,null,null,{"$f":"tax_already_refunded","v":0},null,{"$f":"IF(AND(tax_already_refunded>0,total_tax_paid<=(IT_plus_class4+total_CG_due)),1,0)","v":0}]
["L124",null,"llai","Treth heb ei thalu a gyfrifwyd ar gyfer blynyddoedd blaenorol",null,null,null,null,null,{"$f":"unpaid_tax_bf","v":0},null,{"$f":"IF(AND(unpaid_tax_bf>0,total_tax_paid>(IT_plus_class4+total_CG_due)),1,0)","v":0}]
["or",null,"plws","Treth heb ei thalu a gyfrifwyd ar gyfer blynyddoedd blaenorol",null,null,null,null,null,{"$f":"unpaid_tax_bf","v":0},null,{"$f":"IF(AND(unpaid_tax_bf>0,total_tax_paid<=(IT_plus_class4+total_CG_due)),1,0)","v":0}]
["L126",null,"Treth Incwm a ordalwyd",null,null,null,null,null,null,{"$f":"Total_tax_NIC_due","v":0},null,{"$f":"IF(AND(OR((tax_already_refunded+unpaid_tax_bf)>0),total_tax_paid>(IT_plus_class4+total_CG_due+tax_already_refunded+unpaid_tax_bf)),1,0)","v":0}]
["or",null,"Cyfanswm y dreth a chyfraniadau Yswiriant Gwladol sy'n ddyledus",null,null,null,null,null,null,{"$f":"Total_tax_NIC_due","v":0},null,{"$f":"IF(TRF_charge>0,0,IF(AND((tax_already_refunded+unpaid_tax_bf)>0,NIC_total>0,(IT_plus_class4+total_CG_due+tax_already_refunded+unpaid_tax_bf)>=total_tax_paid),1,0))","v":0}]
["or",null,"Cyfanswm y dreth, tâl TRF a chyfraniadau Yswiriant Gwladol sy’n ddyledus",null,null,null,null,null,null,{"$f":"Total_tax_NIC_due","v":0},null,{"$f":"IF(TRF_charge=0,0,IF(AND((tax_already_refunded+unpaid_tax_bf)>0,NIC_total>0,(IT_plus_class4+total_CG_due+tax_already_refunded+unpaid_tax_bf)>=total_tax_paid),1,0))","v":0}]
["or",null,"Cyfanswm y dreth sy'n ddyledus",null,null,null,null,null,null,{"$f":"Total_tax_NIC_due","v":0},null,{"$f":"IF(TRF_charge>0,0,IF(AND((tax_already_refunded+unpaid_tax_bf)>0,NIC_total=0,(IT_plus_class4+total_CG_due+tax_already_refunded+unpaid_tax_bf)>=total_tax_paid),1,0))","v":0}]
["or",null,"Cyfanswm treth a thâl TRF",null,null,null,null,null,null,{"$f":"Total_tax_NIC_due","v":0},null,{"$f":"IF(TRF_charge=0,0,IF(AND((tax_already_refunded+unpaid_tax_bf)>0,NIC_total=0,(IT_plus_class4+total_CG_due+tax_already_refunded+unpaid_tax_bf)>=total_tax_paid),1,0))","v":0}]
[]
["VBA macro Sub Draw_SA302_from() uses 'Range (\"B1:K324\") .Copy, and \"For intSA302_Line = 324 To 1 Step -1\".' Will need to change VBA macro if rows exceed row 324."]
["ANY template rows added will need to be merged from left as far as possible without messing up alignment so the SA302 calc will get the formatting correct on sees letter"]
[]
["VBA macro Sub clear_SA302() uses range A1:K324 - ensure the maximum number of lines (excluding \"or\") cannot exceed that"]

{"sheet":"TCRWS","index":54,"n_rows":42,"n_cols":16,"rows_kept":42,"cut":false,"hidden":true,"merged":[]}
[]
["Foreign","1 Non-savings",null,"2 Lump sum",null,"3 Savings ",null,"4 Dividends",null,"4 Dividends",null,"5 gains",null,"6 Non-savings ",null,"Foreign"]
["Income","income etc.",null,"payments",null,"income etc.",null,"UK tax credit qual",null,null,null,"on life policies etc.",null,"with notional tax",null,"income"]
["item 1",{"$f":"IF(FTCR_run_1,IF(item_1_ind=1,FTCR!G10,IF(FIR_Claim,IF(item_1_ind=3,FTCR!G10,IF(item_1_ind=4,FTCR!G10*100/90,0)),0)),0)","v":0},null,{"$f":"IF(FTCR_run_1,IF(item_1_ind=2,FTCR!G10,0),0)","v":0},null,{"$f":"IF(FTCR_run_1,IF(item_1_ind=3,IF(FIR_Claim,0,FTCR!G10),0),0)","v":0},null,0,null,{"$f":"IF(FTCR_run_1,IF(item_1_ind=4,IF(FIR_Claim,0,FTCR!G10),0),0)","v":0},null,{"$f":"IF(FTCR_run_1,IF(item_1_ind=5,FTCR!G10,0),0)","v":0},null,{"$f":"IF(FTCR_run_1,IF(item_1_ind=6,FTCR!G10,0),0)","v":0},null,{"$f":"IF(FTCR_run_1,FTCR!G10,0)","v":0}]
["item 2",{"$f":"IF(FTCR_run_2,IF(item_2_ind=1,FTCR!G14,IF(FIR_Claim,IF(item_1_ind=3,FTCR!G14,IF(item_1_ind=4,FTCR!G14*100/90,0)),0)),0)","v":0},null,{"$f":"IF(FTCR_run_2,IF(item_2_ind=2,FTCR!G14,0),0)","v":0},null,{"$f":"IF(FTCR_run_2,IF(item_2_ind=3,IF(FIR_Claim,0,FTCR!G14),0),0)","v":0},null,0,null,{"$f":"IF(FTCR_run_2,IF(item_2_ind=4,IF(FIR_Claim,0,FTCR!G14),0),0)","v":0},null,{"$f":"IF(FTCR_run_2,IF(item_2_ind=5,FTCR!G14,0),0)","v":0},null,{"$f":"IF(FTCR_run_2,IF(item_2_ind=6,FTCR!G14,0),0)","v":0},null,{"$f":"IF(FTCR_run_2,FTCR!G14,0)","v":0}]
["item 3",{"$f":"IF(FTCR_run_3,IF(item_3_ind=1,FTCR!G18,IF(FIR_Claim,IF(item_1_ind=3,FTCR!G18,IF(item_1_ind=4,FTCR!G18*100/90,0)),0)),0)","v":0},null,{"$f":"IF(FTCR_run_3,IF(item_3_ind=2,FTCR!G18,0),0)","v":0},null,{"$f":"IF(FTCR_run_3,IF(item_3_ind=3,IF(FIR_Claim,0,FTCR!G18),0),0)","v":0},null,0,null,{"$f":"IF(FTCR_run_3,IF(item_3_ind=4,IF(FIR_Claim,0,FTCR!G18),0),0)","v":0},null,{"$f":"IF(FTCR_run_3,IF(item_3_ind=5,FTCR!G18,0),0)","v":0},null,{"$f":"IF(FTCR_run_3,IF(item_3_ind=6,FTCR!G18,0),0)","v":0},null,{"$f":"IF(FTCR_run_3,FTCR!G18,0)","v":0}]
["item 4",{"$f":"IF(FTCR_run_4,IF(item_4_ind=1,FTCR!G22,IF(FIR_Claim,IF(item_1_ind=3,FTCR!G22,IF(item_1_ind=4,FTCR!G22*100/90,0)),0)),0)","v":0},null,{"$f":"IF(FTCR_run_4,IF(item_4_ind=2,FTCR!G22,0),0)","v":0},null,{"$f":"IF(FTCR_run_4,IF(item_4_ind=3,IF(FIR_Claim,0,FTCR!G22),0),0)","v":0},null,0,null,{"$f":"IF(FTCR_run_4,IF(item_4_ind=4,IF(FIR_Claim,0,FTCR!G22),0),0)","v":0},null,{"$f":"IF(FTCR_run_4,IF(item_4_ind=5,FTCR!G22,0),0)","v":0},null,{"$f":"IF(FTCR_run_4,IF(item_4_ind=6,FTCR!G22,0),0)","v":0},null,{"$f":"IF(FTCR_run_4,FTCR!G22,0)","v":0}]
["item 5",{"$f":"IF(FTCR_run_5,IF(item_5_ind=1,FTCR!G26,IF(FIR_Claim,IF(item_1_ind=3,FTCR!G26,IF(item_1_ind=4,FTCR!G26*100/90,0)),0)),0)","v":0},null,{"$f":"IF(FTCR_run_5,IF(item_5_ind=2,FTCR!G26,0),0)","v":0},null,{"$f":"IF(FTCR_run_5,IF(item_5_ind=3,IF(FIR_Claim,0,FTCR!G26),0),0)","v":0},null,0,null,{"$f":"IF(FTCR_run_5,IF(item_5_ind=4,IF(FIR_Claim,0,FTCR!G26),0),0)","v":0},null,{"$f":"IF(FTCR_run_5,IF(item_5_ind=5,FTCR!G26,0),0)","v":0},null,{"$f":"IF(FTCR_run_5,IF(item_5_ind=6,FTCR!G26,0),0)","v":0},null,{"$f":"IF(FTCR_run_5,FTCR!G26,0)","v":0}]
["item 6",{"$f":"IF(FTCR_run_6,IF(item_6_ind=1,FTCR!G30,IF(FIR_Claim,IF(item_1_ind=3,FTCR!G30,IF(item_1_ind=4,FTCR!G30*100/90,0)),0)),0)","v":0},null,{"$f":"IF(FTCR_run_6,IF(item_6_ind=2,FTCR!G30,0),0)","v":0},null,{"$f":"IF(FTCR_run_6,IF(item_6_ind=3,IF(FIR_Claim,0,FTCR!G30),0),0)","v":0},null,0,null,{"$f":"IF(FTCR_run_6,IF(item_6_ind=4,IF(FIR_Claim,0,FTCR!G30),0),0)","v":0},null,{"$f":"IF(FTCR_run_6,IF(item_6_ind=5,FTCR!G30,0),0)","v":0},null,{"$f":"IF(FTCR_run_6,IF(item_6_ind=6,FTCR!G30,0),0)","v":0},null,{"$f":"IF(FTCR_run_6,FTCR!G30,0)","v":0}]
["item 7",{"$f":"IF(FTCR_run_7,IF(item_7_ind=1,FTCR!G34,IF(FIR_Claim,IF(item_1_ind=3,FTCR!G34,IF(item_1_ind=4,FTCR!G34*100/90,0)),0)),0)","v":0},null,{"$f":"IF(FTCR_run_7,IF(item_7_ind=2,FTCR!G34,0),0)","v":0},null,{"$f":"IF(FTCR_run_7,IF(item_7_ind=3,IF(FIR_Claim,0,FTCR!G34),0),0)","v":0},null,0,null,{"$f":"IF(FTCR_run_7,IF(item_7_ind=4,IF(FIR_Claim,0,FTCR!G34),0),0)","v":0},null,{"$f":"IF(FTCR_run_7,IF(item_7_ind=5,FTCR!G34,0),0)","v":0},null,{"$f":"IF(FTCR_run_7,IF(item_7_ind=6,FTCR!G34,0),0)","v":0},null,{"$f":"IF(FTCR_run_7,FTCR!G34,0)","v":0}]
["item 8",{"$f":"IF(FTCR_run_8,IF(item_8_ind=1,FTCR!G38,IF(FIR_Claim,IF(item_1_ind=3,FTCR!G38,IF(item_1_ind=4,FTCR!G38*100/90,0)),0)),0)","v":0},null,{"$f":"IF(FTCR_run_8,IF(item_8_ind=2,FTCR!G38,0),0)","v":0},null,{"$f":"IF(FTCR_run_8,IF(item_8_ind=3,IF(FIR_Claim,0,FTCR!G38),0),0)","v":0},null,0,null,{"$f":"IF(FTCR_run_8,IF(item_8_ind=4,IF(FIR_Claim,0,FTCR!G38),0),0)","v":0},null,{"$f":"IF(FTCR_run_8,IF(item_8_ind=5,FTCR!G38,0),0)","v":0},null,{"$f":"IF(FTCR_run_8,IF(item_8_ind=6,FTCR!G38,0),0)","v":0},null,{"$f":"IF(FTCR_run_8,FTCR!G38,0)","v":0}]
["item 9",{"$f":"IF(FTCR_run_9,IF(item_9_ind=1,FTCR!G42,IF(FIR_Claim,IF(item_1_ind=3,FTCR!G42,IF(item_1_ind=4,FTCR!G42*100/90,0)),0)),0)","v":0},null,{"$f":"IF(FTCR_run_9,IF(item_9_ind=2,FTCR!G42,0),0)","v":0},null,{"$f":"IF(FTCR_run_9,IF(item_9_ind=3,IF(FIR_Claim,0,FTCR!G42),0),0)","v":0},null,0,null,{"$f":"IF(FTCR_run_9,IF(item_9_ind=4,IF(FIR_Claim,0,FTCR!G42),0),0)","v":0},null,{"$f":"IF(FTCR_run_9,IF(item_9_ind=5,FTCR!G42,0),0)","v":0},null,{"$f":"IF(FTCR_run_9,IF(item_9_ind=6,FTCR!G42,0),0)","v":0},null,{"$f":"IF(FTCR_run_9,FTCR!G42,0)","v":0}]
["item 10",{"$f":"IF(FTCR_run_10,IF(item_10_ind=1,FTCR!G46,IF(FIR_Claim,IF(item_1_ind=3,FTCR!G46,IF(item_1_ind=4,FTCR!G46*100/90,0)),0)),0)","v":0},null,{"$f":"IF(FTCR_run_10,IF(item_10_ind=2,FTCR!G46,0),0)","v":0},null,{"$f":"IF(FTCR_run_10,IF(item_10_ind=3,IF(FIR_Claim,0,FTCR!G46),0),0)","v":0},null,0,null,{"$f":"IF(FTCR_run_10,IF(item_10_ind=4,IF(FIR_Claim,0,FTCR!G46),0),0)","v":0},null,{"$f":"IF(FTCR_run_10,IF(item_10_ind=5,FTCR!G46,0),0)","v":0},null,{"$f":"IF(FTCR_run_10,IF(item_10_ind=6,FTCR!G46,0),0)","v":0},null,{"$f":"IF(FTCR_run_10,FTCR!G46,0)","v":0}]
["total",{"$f":"SUM(B4:B13)","v":0},null,{"$f":"SUM(D4:D13)","v":0},null,{"$f":"SUM(F4:F13)","v":0},null,0,null,{"$f":"SUM(J4:J13)","v":0},null,{"$f":"SUM(L4:L13)","v":0},null,{"$f":"SUM(N4:N13)","v":0},null,{"$f":"SUM(P4:P13)","v":0}]
[]
["Deductions"]
["item 1",{"$f":"IF(FTCR_run_1,FTCR!M10,0)","v":0},null,null,null,null,null,null,null,"IND"]
["item 2",{"$f":"IF(FTCR_run_2,FTCR!M14,0)","v":0},null,null,null,null,null,null,null,1,"Non-savings income"]
["item 3",{"$f":"IF(FTCR_run_3,FTCR!M18,0)","v":0},null,null,null,null,null,null,null,2,"Lump sums "]
["item 4",{"$f":"IF(FTCR_run_4,FTCR!M22,0)","v":0},null,null,null,null,null,null,null,3,"Savings and gains"]
["item 5",{"$f":"IF(FTCR_run_5,FTCR!M26,0)","v":0},null,null,null,null,null,null,null,4,"Dividends"]
["item 6",{"$f":"IF(FTCR_run_6,FTCR!M30,0)","v":0},null,null,null,null,null,null,null,5,"Gains on life policies etc. with notional tax"]
["item 7",{"$f":"IF(FTCR_run_7,FTCR!M34,0)","v":0},null,null,null,null,null,null,null,6,"Non-savings income with notional tax"]
["item 8",{"$f":"IF(FTCR_run_8,FTCR!M38,0)","v":0}]
["item 9",{"$f":"IF(FTCR_run_9,FTCR!M42,0)","v":0}]
["item 10",{"$f":"IF(FTCR_run_10,FTCR!M46,0)","v":0}]
["total",{"$f":"SUM(B17:B26)","v":0}]
[]
[]
[null,"FTCR calculation",null,null,null,"UK liability",null,"Tax Reduction",null,"Foreign tax",null,"FTCR"]
[null,null,null,"Start",null,0]
["FTCR_run_1",false,null,"run 1",null,0,null,{"$f":"IF(F31=F32,0,MAX(0,F31-F32))","v":0},null,{"$f":"IF(FTCR_run_1,FTCR!U11,0)","v":0},null,{"$f":"MIN(H32,J32)","v":0}]
["FTCR_run_2",false,null,"run 2",null,0,null,{"$f":"IF(F32=F33,0,MAX(0,F32-F33))","v":0},null,{"$f":"IF(FTCR_run_2,FTCR!U12,0)","v":0},null,0]
["FTCR_run_3",false,null,"run 3",null,0,null,0,null,{"$f":"IF(FTCR_run_3,FTCR!U13,0)","v":0},null,0]
["FTCR_run_4",false,null,"run 4",null,0,null,0,null,{"$f":"IF(FTCR_run_4,FTCR!U14,0)","v":0},null,0]
["FTCR_run_5",false,null,"run 5",null,0,null,0,null,{"$f":"IF(FTCR_run_5,FTCR!U15,0)","v":0},null,0]
["FTCR_run_6",false,null,"run 6",null,0,null,0,null,{"$f":"IF(FTCR_run_6,FTCR!U16,0)","v":0},null,0]
["FTCR_run_7",false,null,"run 7",null,0,null,0,null,{"$f":"IF(FTCR_run_7,FTCR!U17,0)","v":0},null,0]
["FTCR_run_8",false,null,"run 8",null,0,null,0,null,{"$f":"IF(FTCR_run_8,FTCR!U18,0)","v":0},null,0]
["FTCR_run_9",false,null,"run 9",null,0,null,0,null,{"$f":"IF(FTCR_run_9,FTCR!U19,0)","v":0},null,{"$f":"MIN(H40,J40)","v":0}]
["FTCR_run_10",false,null,"run 10",null,0,null,0,null,{"$f":"IF(FTCR_run_10,FTCR!U20,0)","v":0},null,{"$f":"MIN(H41,J41)","v":0}]
[null,null,null,"total",null,null,null,{"$f":"SUM(H32:H41)","v":0},null,{"$f":"SUM(J32:J41)","v":0},null,{"$f":"SUM(L32:L41)","v":0}]

{"sheet":"FTCR_Calc","index":55,"n_rows":42,"n_cols":16,"rows_kept":42,"cut":false,"hidden":true,"merged":[]}
[]
["Foreign","1 Non-savings",null,"2 Lump sum",null,"3 Savings ",null,"4 Dividends",null,"4 Dividends",null,"5 gains",null,"6 Non-savings ",null,"Foreign"]
["Income","income etc.",null,"payments",null,"income etc.",null,"UK tax credit qual",null,null,null,"on life policies etc.",null,"with notional tax",null,"income"]
["item 1"]
["item 2"]
["item 3"]
["item 4"]
["item 5"]
["item 6"]
["item 7"]
["item 8"]
["item 9"]
["item 10"]
["total"]
[]
["Deductions"]
["item 1",null,null,null,null,null,null,null,null,"IND"]
["item 2",null,null,null,null,null,null,null,null,1,"Non-savings income"]
["item 3",null,null,null,null,null,null,null,null,2,"Lump sums "]
["item 4",null,null,null,null,null,null,null,null,3,"Savings and gains"]
["item 5",null,null,null,null,null,null,null,null,4,"Dividends"]
["item 6",null,null,null,null,null,null,null,null,5,"Gains on life policies etc. with notional tax"]
["item 7",null,null,null,null,null,null,null,null,6,"Non-savings income with notional tax"]
["item 8"]
["item 9"]
["item 10"]
["total"]
[]
[]
[null,null,null,null,null,"UK liability",null,"Tax Reduction",null,"Foreign tax",null,"FTCR"]
[null,null,null,"Start"]
["FTCR_run_1",null,null,"run 1"]
["FTCR_run_2",null,null,"run 2"]
["FTCR_run_3",null,null,"run 3"]
["FTCR_run_4",null,null,"run 4"]
["FTCR_run_5",null,null,"run 5"]
["FTCR_run_6",null,null,"run 6"]
["FTCR_run_7",null,null,"run 7"]
["FTCR_run_8",null,null,"run 8"]
["FTCR_run_9",null,null,"run 9"]
["FTCR_run_10",null,null,"run 10"]
[null,null,null,"total"]

{"sheet":"NS income (c1)","index":56,"n_rows":189,"n_cols":11,"rows_kept":189,"cut":false,"hidden":true,"merged":[]}
["c1.1","Add together non-savings income etc. and lump sum payments"]
["c1.2",null,null,null,null,null,"If any box in this stage is negative substitute zero"]
["c1.3","Employment"]
["c1.4",null,null,null,null,{"$f":"\"Total all instances (\"&EMP&EMP!C4&\" + \"&EMP&EMP!C10&\")\"","v":"Total all instances (EMP1 + EMP3)"}]
["c1.5","Pay",null,null,{"$f":"A1","v":"c1.1"},{"$f":"EMP!S5+EMP!T5","v":0},"£down (for each EMP)"]
["c1.5a"]
["c1.5b",null,null,null,null,{"$f":"\"Total all instances (\"&MOR&MOR!C19&\")\"","v":"Total all instances (MOR38)"}]
["c1.5c",null,null,null,{"$f":"A2","v":"c1.2"},{"$f":"TRUNC(MOR!D20,0)","v":0},"£down (for each MOR)"]
["c1.6"]
["c1.7",null,null,null,null,{"$f":"ASE&ASE!C8&\" + \"&ASE&ASE!C11","v":"ASE3 + ASE4"},null,null,null,{"$f":"E5&\" + \"&E8&\" + \"&E11","v":"c1.1 + c1.2 + c1.3"}]
["c1.8","Share schemes and lump sums",null,null,{"$f":"A3","v":"c1.3"},{"$f":"TRUNC(ASE!D9+ASE!D12,0)","v":0},"£down",null,{"$f":"A4","v":"c1.4"},{"$f":"F5+F8+F11","v":0}]
["c1.8.1"]
["c1.9","Employment benefits",null,null,null,null,null,null,null,{"$f":"\"Total all instances (\"&EMP&EMP!C16&\" to \"&EMP&EMP!G25&\")\"","v":"Total all instances (EMP9 to EMP16)"}]
["c1.10",null,null,null,null,null,null,null,{"$f":"A5","v":"c1.5"},{"$f":"EMP!S17+EMP!T17","v":0},"£down (for each EMP)"]
["c1.11",null,null,{"$f":"\"Complete \"&E16&\" to \"&E18&\" for each instance of employment\"","v":"Complete c1.5a to c1.5c for each instance of employment"}]
["c1.12",null,null,{"$f":"\"(\"&EMP&EMP!C4&\" + \"&EMP&EMP!C10&\") + (\"&EMP&EMP!C16&\" to \"&EMP&EMP!G25&\")\"","v":"(EMP1 + EMP3) + (EMP9 to EMP16)"},{"$f":"A6","v":"c1.5a"},{"$f":"EMP!S5+EMP!S17","v":0},{"$f":"EMP!T5+EMP!T17","v":0},"£down"]
["c1.13",null,null,{"$f":"\"Total \"&EMP&EMP!C30&\" to \"&EMP&EMP!G33","v":"Total EMP17 to EMP20"},{"$f":"A7","v":"c1.5b"},{"$f":"EMP!S31","v":0},{"$f":"EMP!T31","v":0},"£up"]
["c1.14",null,null,{"$f":"\"lower of \"&E16&\" and \"&E17","v":"lower of c1.5a and c1.5b"},{"$f":"A8","v":"c1.5c"},{"$f":"MIN(F16,F17)","v":0},{"$f":"MIN(G16,G17)","v":0}]
["c1.15"]
["c1.16","Employment expenses",null,{"$f":"\"Sum of all boxes \"&E18","v":"Sum of all boxes c1.5c"},{"$f":"A9","v":"c1.6"},{"$f":"F18+G18","v":0},null,null,null,{"$f":"E20&\" + \"&E21","v":"c1.6 + c1.7"}]
["c1.17",null,null,{"$f":"\"Total all boxes \"&ASE&ASE!G11&\" to \"&ASE&ASE!G17","v":"Total all boxes ASE11 to ASE13"},{"$f":"A10","v":"c1.7"},{"$f":"TRUNC((ASE!H12+ASE!H15+ASE!H18)+0.99,0)","v":0},"£up",null,{"$f":"A11","v":"c1.8"},{"$f":"F20+F21","v":0}]
["c1.18"]
["c1.19",null,null,null,null,null,null,null,null,"Set to zero"]
[null,null,null,null,null,null,null,null,{"$f":"A12","v":"c1.8.1"},0,"£down (for each EMP)"]
[]
[]
[]
[]
[]
["c1.20",null,null,null,null,null,null,null,null,{"$f":"\"(\"&I11&\" + \"&I14&\") minus \"&I21","v":"(c1.4 + c1.5) minus c1.8"}]
["c1.21",null,null,null,null,null,null,null,{"$f":"A13","v":"c1.9"},{"$f":"MAX(0,((J11+J14)-J21))","v":0}]
["c1.22"]
["c1.23"]
["c1.24",null,null,null,null,null,null,null,null,{"$f":"\"from \"&ASE&ASE!C5","v":"from ASE1"}]
["c1.25","Share Schemes",null,null,null,null,null,null,{"$f":"A14","v":"c1.10"},{"$f":"TRUNC(ASE!D6,0)","v":0},"£down"]
["c1.26"]
["c1.27"]
["c1.28","Profit from self-employment"]
["c1.29",null,null,null,null,{"$f":"\"Total all instances (\"&SSE&SE!C5&\")\"","v":"Total all instances (SSE29)"}]
["c1.30","Losses brought forward",null,null,{"$f":"A15","v":"c1.11"},{"$f":"TRUNC(SE!D6+0.99,0)","v":0},"£up (for each SSE)"]
["c1.31",null,null,null,null,{"$f":"\"Copy to \"&'Deductions (c4)'!Q30","v":"Copy to c4.5"}]
["c1.32"]
["c1.33",null,null,null,null,{"$f":"\"Total all instances (\"&SSE&SE!C8&\")\"","v":"Total all instances (SSE31)"},null,null,null,{"$f":"E44&\" + \"&E40","v":"c1.12 + c1.11"}]
["c1.34","Total taxable profits without losses",null,null,{"$f":"A16","v":"c1.12"},{"$f":"TRUNC(SE!D9,0)","v":0},"£down (for each SSE)",null,{"$f":"A17","v":"c1.13"},{"$f":"MAX(F44+F40,0)","v":0}]
["c1.35"]
["c1.35a",null,null,null,null,{"$f":"\"Total all instances (\"&FSE&SE!G11&\")\"","v":"Total all instances (FSE74)"}]
["c1.35b","Losses brought forward",null,null,{"$f":"A18","v":"c1.14"},{"$f":"TRUNC(SE!H12+0.99,0)","v":0},"£up (for each FSE)"]
["c1.35c",null,null,null,null,{"$f":"\"Copy to \"&'Deductions (c4)'!Q41","v":"Copy to c4.7"}]
["c1.35d"]
["c1.36",null,null,null,null,{"$f":"\"Total all instances (\"&FSE&SE!G14&\")\"","v":"Total all instances (FSE76)"},null,null,null,{"$f":"E51&\" + \"&E47","v":"c1.15 + c1.14"}]
["c1.37","Total taxable profits without losses",null,null,{"$f":"A19","v":"c1.15"},{"$f":"TRUNC(SE!H15,0)","v":0},"£down (for each FSE)",null,{"$f":"A20","v":"c1.16"},{"$f":"MAX(F51+F47,0)","v":0}]
["c1.38"]
["c1.39"]
["c1.40",null,null,null,null,null,null,null,null,{"$f":"I44&\" + \"&I51","v":"c1.13 + c1.16"}]
["c1.41","Total from self-employment",null,null,null,null,null,null,{"$f":"A21","v":"c1.17"},{"$f":"J44+J51","v":0}]
["c1.42"]
["c1.43"]
["c1.43a"]
["c1.43b","Lloyds Underwriter",null,null,null,{"$f":"\"from \"&LUN&LUN!K4","v":"from LUN51"}]
["c1.43c","Losses brought forward",null,null,{"$f":"A22","v":"c1.18"},{"$f":"TRUNC(LUN!L5+0.99,0)","v":0},"£up"]
["c1.43d",null,null,null,null,{"$f":"\"Copy to \"&'Deductions (c4)'!Q163","v":"Copy to c4.35"}]
["c1.43e"]
["c1.43f",null,null,null,null,{"$f":"\"from \"&LUN&LUN!K7","v":"from LUN52"},null,null,null,{"$f":"E64&\" + \"&E60","v":"c1.19 + c1.18"}]
["c1.43g","Total taxable profits without losses",null,null,{"$f":"A23","v":"c1.19"},{"$f":"TRUNC(LUN!L8,0)","v":0},"£down",null,{"$f":"A30","v":"c1.20"},{"$f":"MAX(F64+F60,0)","v":0}]
["c1.43h"]
["c1.43i"]
[null,"Profit from partnerships",null,null,null,{"$f":"\"Total all instances (\"&SPS&PS!C4&\")\"","v":"Total all instances (SPS17)"}]
[null,"Losses brought forward",null,null,{"$f":"A31","v":"c1.21"},{"$f":"TRUNC(PS!D5+0.99,0)","v":0},"£up (for each SPS)"]
[null,null,null,null,null,{"$f":"\"Copy to \"&'Deductions (c4)'!Q74","v":"Copy to c4.13"}]
[]
[null,null,null,null,null,{"$f":"\"Total all instances (\"&SPS&PS!C7&\")\"","v":"Total all instances (SPS20)"},null,null,null,{"$f":"E72&\" + \"&E68","v":"c1.22 + c1.21"}]
[null,"Share of total taxable profits without losses",null,null,{"$f":"A32","v":"c1.22"},{"$f":"TRUNC(PS!D8,0)","v":0},"£down (for each SPS)",null,{"$f":"A33","v":"c1.23"},{"$f":"MAX(F72+F68,0)","v":0}]
[]
[null,null,null,null,null,{"$f":"\"Total all instances (\"&FPS&PS!J4&\" + \"&FPS&PS!G20&\" + \"&FPS&PS!G29&\" + \"&FPS&PS!G32&\")\"","v":"Total all instances (FPS17 + FPS38 + FPS47 + FPS58)"}]
[null,"Losses brought forward",null,null,{"$f":"A34","v":"c1.24"},{"$f":"TRUNC(PS!K5+0.99,0)+TRUNC(PS!H21+0.99,0)+TRUNC(PS!H30+0.99,0)+TRUNC(PS!H33+0.99,0)","v":0},"£up (for each FPS)"]
[null,null,null,null,null,{"$f":"\"Copy to \"&'Deductions (c4)'!Q100","v":"Copy to c4.19"}]
[]
[null,null,null,null,null,{"$f":"\"Total all instances (\"&FPS&PS!G45&\")\"","v":"Total all instances (FPS76)"},null,null,null,{"$f":"E79&\" + \"&E75","v":"c1.25 + c1.24"}]
[null,"Share of total taxable profits without losses",null,null,{"$f":"A35","v":"c1.25"},{"$f":"TRUNC(PS!H46,0)","v":0},"£down (for each FPS)",null,{"$f":"A36","v":"c1.26"},{"$f":"MAX(F79+F75,0)","v":0}]
[]
[null,null,null,null,null,null,null,null,null,{"$f":"I72&\" + \"&I79","v":"c1.23 + c1.26"}]
[null,"Profit from partnerships minus losses brought forward",null,null,null,null,null,null,{"$f":"A37","v":"c1.27"},{"$f":"J72+J79","v":0}]
["c1.44"]
["c1.45"]
["c1.46"]
["c1.47","Profit from UK land and property"]
["c1.48","Furnished holiday lettings",null,null,null,"Set to zero"]
["c1.49","Losses brought forward used against this year's profits",null,null,{"$f":"A38","v":"c1.28"},0,"£up (for each PRO)"]
["c1.50",null,null,null,null,{"$f":"\"Copy to \"&'Deductions (c4)'!Q142","v":"Copy to c4.27"}]
["c1.51"]
["c1.52",null,null,null,null,"Set to zero",null,null,null,"Set to zero"]
["c1.53","Taxable profit for the year without losses",null,null,{"$f":"A39","v":"c1.29"},0,"£down (for each PRO)",null,{"$f":"A40","v":"c1.30"},0]
["c1.54"]
["c1.55","Property income"]
["c1.55a",null,null,null,null,{"$f":"\"lower of \"&PRO&PRO!G13&\" and \"&PRO&PRO!G16","v":"lower of PRO38 and PRO39"}]
["c1.56","Losses brought forward used against this year's profits",null,null,{"$f":"A41","v":"c1.31"},{"$f":"MAX(0,MIN(TRUNC(PRO!H14,0),TRUNC(PRO!H17+0.99,0)))","v":0},"£up"]
["c1.56a",null,null,null,null,{"$f":"\"Copy to \"&'Deductions (c4)'!Q145","v":"Copy to c4.28"}]
["c1.57"]
["c1.58",null,null,null,null,{"$f":"\"from \"&PRO&PRO!G19","v":"from PRO40"},null,null,null,{"$f":"E100&\" + \"&E96","v":"c1.32 + c1.31"}]
[null,"Taxable profit for the year without losses",null,null,{"$f":"A42","v":"c1.32"},{"$f":"TRUNC(PRO!H20,0)","v":0},"£down",null,{"$f":"A43","v":"c1.33"},{"$f":"MAX(F100+F96,0)","v":0}]
[null,null,null,null,null,{"$f":"\"copy to \"&'LLIR (c24)'!A2","v":"copy to c24.2"}]
[null,null,null,null,null,null,null,null,null,"Set to zero"]
[null,"Profit from UK land and property",null,null,null,null,null,null,{"$f":"A44","v":"c1.34"},0]
[]
[]
[null,"Foreign income"]
[null,null,null,null,null,null,null,null,null,{"$f":"\"from \"&FOR&FOR!G30","v":"from FOR7.2"}]
[null,"Dividends + other income + Gains + benefit",null,null,null,null,null,null,{"$f":"A46","v":"c1.35a"},{"$f":"TRUNC(FOR!H31,0)","v":0},"£down"]
[]
[null,null,null,null,null,null,null,null,null,{"$f":"\"from \"&FOR&FOR!G33","v":"from FOR7.4"}]
[null,"Remitted foreign dividends income",null,null,null,null,null,null,{"$f":"A47","v":"c1.35b"},{"$f":"TRUNC(FOR!H34,0)","v":0},"£down"]
[]
[null,null,null,null,null,null,null,null,null,{"$f":"\"from \"&FOR&FOR!G40","v":"from FOR9"}]
[null,"Pensions & social benefits",null,null,null,null,null,null,{"$f":"A48","v":"c1.35c"},{"$f":"TRUNC(FOR!H41,0)","v":0},"£down"]
[]
[null,null,null,null,null,null,null,null,null,{"$f":"\"from \"&FOR&FOR!G52","v":"from FOR13"}]
[null,"Other income from trusts etc.",null,null,null,null,null,null,{"$f":"A49","v":"c1.35d"},{"$f":"TRUNC(FOR!H53,0)","v":0},"£down"]
[]
[null,null,null,null,null,null,null,null,null,{"$f":"I108&\" + \"&I111&\" + \"&I114&\" + \"&I117&\" + \"&'Div Cr (c10)'!I19","v":"c1.35a + c1.35b + c1.35c + c1.35d + c10.3.2"}]
[null,null,null,null,null,null,null,null,{"$f":"A45","v":"c1.35"},{"$f":"J108+J111+J114+J117+'Div Cr (c10)'!J19","v":0}]
[]
[null,"Income from land and property abroad",null,null,null,{"$f":"\"from \"&FOR&FOR!K10","v":"from FOR26"}]
[null,"Losses brought forward",null,null,{"$f":"A50","v":"c1.36"},{"$f":"TRUNC(FOR!L11+0.99,0)","v":0},"£up"]
[]
[null,null,null,null,null,{"$f":"\"from \"&FOR&FOR!O15","v":"from FOR30"}]
[null,"Foreign Income without losses",null,null,{"$f":"A51","v":"c1.37"},{"$f":"TRUNC(FOR!P16,0)","v":0},"£down"]
[]
[null,null,null,null,null,{"$f":"\"from \"&FOR&FOR!K21","v":"from FOR31"}]
[null,"Loss set off against total income",null,null,{"$f":"A52","v":"c1.38"},{"$f":"TRUNC(FOR!L22+0.99,0)","v":0},"£up"]
[]
[null,null,null,null,null,{"$f":"\"from \"&FOR&FOR!O21","v":"from FOR32"}]
[null,"Total loss to carry forward to the following year",null,null,{"$f":"A53","v":"c1.39"},{"$f":"TRUNC(FOR!P22+0.99,0)","v":0},"£up"]
[]
[null,null,null,null,null,null,null,null,null,{"$f":"E126&\" + \"&E123&\" minus (\"&E129&\" + \"&E132&\")\"","v":"c1.37 + c1.36 minus (c1.38 + c1.39)"}]
[null,"Income net of losses",null,null,null,null,null,null,{"$f":"A54","v":"c1.40"},{"$f":"MAX(F126+F123-(F129+F132),0)","v":0}]
[]
[null,"If Remittance Basis Claim"]
[null,"Savings & Dividends",null,{"$f":"\"If \"&NRD&NRD!H5&\" = Y\"","v":"If NRD28 = Y"}]
[null,"Non-sav inc in non-res settlor interested trusts",null,{"$f":"\"from \"&FOR&FOR!$O$47","v":"from FOR48"},{"$f":"A55","v":"c1.41"},{"$f":"TRUNC(FOR!$P$48,0)","v":0},"£down"]
[null,"Discretionary income arising from non-settlor-interested non UK resident trusts",null,{"$f":"\"from \"&FOR&FOR!$R$13","v":"from FOR54"},{"$f":"A56","v":"c1.42"},{"$f":"TRUNC(FOR!$S$14,0)","v":0},"£down"]
[null,"Capital sums paid to settlor by  trustees of non resident settlements",null,{"$f":"\"from \"&FOR&FOR!$R$16","v":"from FOR55"},{"$f":"A57","v":"c1.43"},{"$f":"TRUNC(FOR!$S$17,0)","v":0},"£down"]
[null,"Gains on disposal of holdings in offshore fund",null,{"$f":"\"from \"&FOR&FOR!$R$19","v":"from FOR56"},{"$f":"A58","v":"c1.43a"},{"$f":"TRUNC(FOR!$S$20,0)","v":0},"£down"]
[null,null,null,{"$f":"\"else \"&E139&\" to \"&E142&\" = 0 zero\"","v":"else c1.41 to c1.43a = 0 zero"}]
[null,null,null,"end if"]
[null,"Non trade income",null,{"$f":"\"from \"&FOR&FOR!$R$22","v":"from FOR57"},{"$f":"A59","v":"c1.43b"},{"$f":"TRUNC(FOR!$S$23,0)","v":0},"£down"]
[null,"Benefits received by non-tranferors",null,{"$f":"\"from \"&FOR&FOR!$R$25","v":"from FOR58"},"c1.43c",{"$f":"TRUNC(FOR!$S$26,0)","v":0},"£down"]
[null,"Benefits received by transferor",null,{"$f":"\"from \"&FOR&FOR!$R$28","v":"from FOR59"},"c1.43d",{"$f":"TRUNC(FOR!$S$29,0)","v":0},"£down"]
[null,"Benefits chargeable on you under the Close family member rules under ToAA",null,{"$f":"\"from \"&FOR&FOR!$R$31","v":"from FOR60"},"c1.43e",{"$f":"TRUNC(FOR!$S$32,0)","v":0},"£down"]
[null,"Benefits chargeable on you under  the Onward Gifts Rules under ToAA",null,{"$f":"\"from \"&FOR&FOR!$R$34","v":"from FOR61"},"c1.43f",{"$f":"TRUNC(FOR!$S$35,0)","v":0},"£down"]
[null,"Benefits received by settlor in the year",null,{"$f":"\"from \"&FOR&FOR!$R$37","v":"from FOR62"},"c1.43g",{"$f":"TRUNC(FOR!$S$38,0)","v":0},"£down"]
[null,"Benefits received by close family member",null,{"$f":"\"from \"&FOR&FOR!$R$40","v":"from FOR63"},"c1.43h",{"$f":"TRUNC(FOR!$S$41,0)","v":0},"£down"]
[null,"Benefits chargeable on you under the Onward Gifts Rules",null,{"$f":"\"from \"&FOR&FOR!$R$43","v":"from FOR64"},"c1.43i",{"$f":"TRUNC(FOR!$S$44,0)","v":0},"£down"]
[]
[null,null,null,null,null,null,null,null,null,{"$f":"E139&\" + \"&E140&\" + \"&E141&\" + \"&E142&\" + \"&E145&\" + \"&E146&\" + \"&E147&\" + \"&E148&\" + \"&E149&\" + \"&E150&\" + \"&E151&\" + \"&E152","v":"c1.41 + c1.42 + c1.43 + c1.43a + c1.43b + c1.43c + c1.43d + c1.43e + c1.43f + c1.43g + c1.43h + c1.43i"}]
[null,null,null,null,null,null,null,null,{"$f":"A83","v":"c1.44"},{"$f":"F139+F140+F141+F142+F145+F146+F147+F148+F149+F150+F151+F152","v":0}]
[]
[]
[null,"Trusts and estates"]
[null,null,null,{"$f":"\"(\"&TRU&TRU!C11&\" + \"&TRU&TRU!C20&\" + \"&TRU&TRU!K6&\") × NS_gross (\"&NS_gross_F&\")\"","v":"(TRU3 + TRU7 + TRU16) × NS_gross (100/80)"},{"$f":"A84","v":"c1.45"},{"$f":"TRUNC((TRU!D12+TRU!D21+TRU!L7)*NS_gross,0)","v":0},"£down"]
[null,null,null,{"$f":"TRU&TRU!C6&\" × trust_gross (\"&trust_gross_F&\")\"","v":"TRU1 × trust_gross (100/55)"},"c1.46",{"$f":"TRUNC(TRU!D7*trust_gross,0)","v":0},"£down"]
[null,null,null,{"$f":"TRU&TRU!C32&\" × trust_gross (\"&trust_gross_F&\")\"","v":"TRU10 × trust_gross (100/55)"},"c1.47",{"$f":"TRUNC(TRU!D33*trust_gross,0)","v":0},"£down"]
[null,null,null,{"$f":"\"from \"&TRU&TRU!K24","v":"from TRU22"},"c1.48",{"$f":"TRUNC(TRU!L25,0)","v":0},"£down",null,null,{"$f":"E159&\" + \"&E160&\" + \"&E161&\" +\"","v":"c1.45 + c1.46 + c1.47 +"}]
[null,null,null,"Set to zero","c1.49",0,null,null,null,{"$f":"E162&\" + \"&E164","v":"c1.48 + c1.50"}]
[null,"Non-savings income paid gross",null,{"$f":"\"from \"&TRU&TRU!G28","v":"from TRU13"},"c1.50",{"$f":"TRUNC(TRU!H29,0)","v":0},"£down",null,{"$f":"A90","v":"c1.51"},{"$f":"F159+F160+F161+F162+F164","v":0}]
[]
[]
[]
[null,"UK pensions and state benefits",null,null,null,null,null,{"$f":"INC&'INC(2)'!C4&\" + \"&INC&'INC(2)'!C13&\" + \"&INC&'INC(2)'!G7&\" + \"&INC&'INC(2)'!G13&\" + \"&INC&'INC(2)'!G16","v":"INC8 + INC11 + INC13 + INC15 + INC16"},{"$f":"A91","v":"c1.52"},{"$f":"TRUNC('INC(2)'!D5+'INC(2)'!D14+'INC(2)'!H8+'INC(2)'!H14+'INC(2)'!H17,0)","v":0},"£down"]
[]
[]
[null,"Other income",null,{"$f":"INC&'INC(2)'!C22&\" minus \"&INC&'INC(2)'!C25","v":"INC17 minus INC18"},{"$f":"A92","v":"c1.53"},{"$f":"TRUNC(MAX(0,'INC(2)'!D23-'INC(2)'!D26),0)","v":0},"£down"]
[null,"Benefit from pre-owned assets",null,{"$f":"\"from \"&INC&'INC(2)'!G22","v":"from INC20"},{"$f":"A93","v":"c1.54"},{"$f":"TRUNC('INC(2)'!H23,0)","v":0},"£down",null,null,{"$f":"E171&\" minus \"&E173","v":"c1.53 minus c1.55"}]
[null,"Earlier years losses - set against certain 2025-26 income",null,{"$f":"\"from \"&AIL&AIL!C5","v":"from AIL1"},{"$f":"A94","v":"c1.55"},{"$f":"TRUNC(AIL!D6+0.99,0)","v":0},"£up",null,{"$f":"A95","v":"c1.55a"},{"$f":"MAX(0,F171-F173)","v":0}]
[]
[null,null,null,null,null,null,null,null,null,{"$f":"E172&\" + \"&I173","v":"c1.54 + c1.55a"}]
[null,null,null,null,null,null,null,null,{"$f":"A96","v":"c1.56"},{"$f":"F172+J173","v":0}]
[null,null,null,null,null,null,null,null,null,{"$f":"\"copy to \"&'S loans(c27)'!A38","v":"copy to c27.25"}]
[]
[null,null,null,null,null,null,null,null,null,"set to zero"]
[null,"Disguised Remuneration",null,null,null,null,null,null,{"$f":"A97","v":"c1.56a"},0]
[]
[]
[null,null,null,null,null,null,null,null,null,{"$f":"I31&\" + \"&I35&\" + \"&I55&\" + \"&I64&\" + \"&I82&\" + \"&I100&\" + \"&I120&\" + \"&I135&\" + \"&I155&\" + \"&I164&\" + \"&I168&\" + \"&I176","v":"c1.9 + c1.10 + c1.17 + c1.20 + c1.27 + c1.33 + c1.35 + c1.40 + c1.44 + c1.51 + c1.52 + c1.56"}]
[null,"Total non-savings Income",null,null,null,null,null,null,{"$f":"A98","v":"c1.57"},{"$f":"MAX(0,J31+J35+J55+J64+J82+J100+J120+J135+J155+J164+J168+J176-TCRWS!B14)","v":0}]
[]
[]
[null,"Lump sum payments",null,null,null,null,null,null,null,{"$f":"\"from \"&ASE&ASE!C14","v":"from ASE5"}]
[null,null,null,null,null,null,null,null,{"$f":"A99","v":"c1.58"},{"$f":"MAX(0,TRUNC(ASE!D15,0)-TCRWS!D14)","v":0},"£down"]
[null,null,null,null,null,null,null,null,null,{"$f":"\"copy to \"&'Taxable (c5)'!A43&\" and \"&'TSR (c17)'!E41&\" and \"&'non-res (c91)'!A8","v":"copy to c5.34a and c17.2 and c91.7"}]

{"sheet":"Savings (c2)","index":57,"n_rows":80,"n_cols":10,"rows_kept":80,"cut":false,"hidden":true,"merged":[]}
["c2.1","Add together savings income (not dividends)"]
["c2.2",null,null,null,"If any box in this stage is negative substitute zero"]
["c2.3","Partnerships"]
["c2.4",null,null,null,null,{"$f":"\"Total all instances (\"&SPS&PS!C22&\")\"","v":"Total all instances (SPS28)"}]
["c2.5","Your share of untaxed interest etc",null,null,{"$f":"A1","v":"c2.1"},{"$f":"TRUNC(PS!D23,0)","v":0},"£down (for each SPS)"]
["c2.6"]
["c2.7",null,null,null,null,"Total all instances"]
["c2.7.1","Total untaxed savings income taxable at 20% (box 30 + box 34)",null,null,null,{"$f":"\"(\"&FPS&PS!G17&\" + \"&FPS&PS!J52&\")\"","v":"(FPS35 + FPS73)"}]
["c2.8","+ Taxed income taxable at 20% (box 71 minus box 72)",null,null,{"$f":"A2","v":"c2.2"},{"$f":"TRUNC(PS!H18,0)+TRUNC(PS!K53,0)","v":0},"£down (for each FPS)"]
["c2.9",null,null,null,null,null,null,null,{"$f":"E5&\" + \"&E9","v":"c2.1 + c2.2"}]
["c2.10",null,null,null,null,null,null,{"$f":"A3","v":"c2.3"},{"$f":"F5+F9","v":0}]
["c2.11"]
["c2.12"]
["c2.13","Foreign income"]
["c2.14",null,null,null,null,{"$f":"FOR&FOR!O39&\" divided by BR_rate (\"&BR_rate * 100&\"%)\"","v":"FOR45 divided by BR_rate (20%)"}]
["c2.15","Tax treated as paid (grossed up)",null,null,{"$f":"A4","v":"c2.4"},{"$f":"TRUNC((FOR!P40/BR_rate),0)","v":0},"£down"]
["c2.16"]
["c2.17","Lower of Gains on foreign life insurance policies and",null,null,null,{"$f":"\"Lower of \"&FOR&FOR!K42&\" and \"&E16","v":"Lower of FOR43 and c2.4"}]
["c2.18","Tax treated as paid (grossed up)",null,null,{"$f":"A5","v":"c2.5"},{"$f":"MIN(TRUNC(FOR!L43,0),F16)","v":0},"£down"]
["c2.19",null,null,null,null,{"$f":"\"copy to \"&'Divs (c3)'!G63","v":"copy to c3.16"}]
[]
[]
[null,null,null,null,null,{"$f":"\"if \"&FOR&FOR!K42&\" minus \"&E19&\" > 0 (zero) then\"","v":"if FOR43 minus c2.5 > 0 (zero) then"}]
[null,null,null,null,null,{"$f":"E28&\" = \"&FOR&FOR!K42&\" minus \"&E19","v":"c2.6 = FOR43 minus c2.5"}]
[null,null,null,null,null,"else"]
[null,null,null,null,null,{"$f":"E28&\" = 0 (zero)\"","v":"c2.6 = 0 (zero)"}]
[null,"Amount of Gains on foreign life insurance policies",null,null,null,"end if"]
[null,"where no tax treated as paid",null,null,{"$f":"A6","v":"c2.6"},{"$f":"TRUNC(MAX(0,FOR!L43-F19),0)","v":0},"£down"]
[]
[null,"If No Remittance Basis Claim",null,null,null,{"$f":"\"from \"&FOR&FOR!G18","v":"from FOR4"}]
[null,"Interest and other income from overseas savings",null,null,{"$f":"A7","v":"c2.7"},{"$f":"TRUNC(FOR!H19,0)","v":0},"£down"]
[]
[null,"Sav inc in non-res settlor interested trusts",null,null,null,{"$f":"\"from \"&FOR&FOR!O58","v":"from FOR51"}]
[null,null,null,null,{"$f":"A8","v":"c2.7.1"},{"$f":"TRUNC(FOR!P59,0)","v":0},"£down"]
[]
[null,null,null,null,null,{"$f":"\"from \"&INC&'INC(1)'!C21","v":"from INC3"}]
[null,"Untaxed foreign interest",null,null,{"$f":"A9","v":"c2.8"},{"$f":"TRUNC('INC(1)'!D22,0)","v":0},"£down"]
[]
[null,null,null,null,null,null,null,null,{"$f":"E28&\" + \"&E31&\" + \"&E34&\" + \"&E37","v":"c2.6 + c2.7 + c2.7.1 + c2.8"}]
[null,null,null,null,null,null,null,{"$f":"A10","v":"c2.9"},{"$f":"F28+F31+F34+F37","v":0}]
[]
[]
[null,"Trusts and estates"]
[]
[null,"Net amount of savings income – after tax taken off",null,null,null,{"$f":"\"(\"&TRU&TRU!C15&\" + \"&TRU&TRU!C24&\" + \"&TRU&TRU!K11&\") ×\"","v":"(TRU4 + TRU8 + TRU17) ×"}]
[null,"+ Net amount of savings income taxed at basic rate",null,null,null,{"$f":"\"savings_gross (\"&savings_gross_F&\")\"","v":"savings_gross (100/80)"}]
[null,"+ Savings income – after tax taken off",null,null,{"$f":"A11","v":"c2.10"},{"$f":"TRUNC((TRUNC(TRU!D16,0)+TRUNC(TRU!D25,0)+TRUNC(TRU!L12,0))*savings_gross,0)","v":0},"£down"]
[null,null,null,null,null,{"$f":"\"copy to \"&'non-res (c91)'!A13","v":"copy to c91.12"}]
[]
[null,null,null,null,null,{"$f":"TRU&TRU!G20&\" × trust_gross (\"&trust_gross_F&\")\"","v":"TRU11 × trust_gross (100/55)"}]
[null,"Net amount of savings income taxed at trust rate",null,null,{"$f":"A12","v":"c2.11"},{"$f":"TRUNC((TRU!H21)*trust_gross,0)","v":0},"£down"]
[]
[null,null,null,null,null,{"$f":"\"from \"&TRU&TRU!G32","v":"from TRU14"},null,null,{"$f":"E47&\" + \"&E51&\" + \"&E54","v":"c2.10 + c2.11 + c2.12"}]
[null,"Savings income paid gross",null,null,{"$f":"A13","v":"c2.12"},{"$f":"TRUNC(TRU!H33,0)","v":0},"£down",{"$f":"A14","v":"c2.13"},{"$f":"F47+F51+F54","v":0}]
[]
[]
[null,"Savings Interest received"]
[null,null,null,null,null,{"$f":"INC&'INC(1)'!C15&\" × savings_gross (\"&savings_gross_F&\")\"","v":"INC1 × savings_gross (100/80)"}]
[null,"Taxed UK interest etc",null,null,{"$f":"A15","v":"c2.14"},{"$f":"TRUNC('INC(1)'!D16*savings_gross,0)","v":0},"£down"]
[null,null,null,null,null,{"$f":"\"copy to \"&'non-res (c91)'!A10","v":"copy to c91.9"}]
[]
[null,null,null,null,null,{"$f":"\"from \"&INC&'INC(1)'!C18","v":"from INC2"}]
[null,"Untaxed UK interest etc",null,null,{"$f":"A16","v":"c2.15"},{"$f":"TRUNC('INC(1)'!D19)","v":0},"£down"]
[]
[null,null,null,null,null,{"$f":"\"from \"&AOI&AOI!G7","v":"from AOI3"}]
[null,"Interest from gilt-edged and other UK securities",null,null,{"$f":"A17","v":"c2.16"},{"$f":"TRUNC(AOI!H8,0)","v":0},"£down"]
[]
[null,null,null,null,null,null,null,null,{"$f":"E59&\" + \"&E63&\" + \"&E66","v":"c2.14 + c2.15 + c2.16"}]
[null,"Total interest from UK banks and building societies",null,null,null,null,null,{"$f":"A18","v":"c2.17"},{"$f":"F59+F63+F66","v":0}]
[]
[]
[null,"Gains on life insurance policies etc."]
[]
[null,"UK life insurance policy etc gains where no tax was treated as paid",null,null,null,null,null,null,{"$f":"AOI&AOI!C19&\" + \"&AOI&AOI!G13","v":"AOI6 + AOI8"}]
[null,"+ UK life insurance policy etc gains from voided ISAs",null,null,null,null,null,{"$f":"A19","v":"c2.18"},{"$f":"TRUNC(AOI!D20+AOI!H14,0)","v":0},"£down"]
[]
[]
[null,null,null,null,null,null,null,null,{"$f":"H11&\" + \"&H40&\" + \"&H54&\" + \"&H69&\" + \"&H75","v":"c2.3 + c2.9 + c2.13 + c2.17 + c2.18"}]
[null,"Total Savings income and gains from life policies etc. (not dividends)",null,null,null,null,null,{"$f":"A20","v":"c2.19"},{"$f":"MAX(0,I11+I40+I54+I69+I75-TCRWS!F14)","v":0}]
[null,null,null,null,null,null,null,null,{"$f":"\"copy to \"&'non-res (c91)'!A9","v":"copy to c91.8"}]

{"sheet":"Divs (c3)","index":58,"n_rows":112,"n_cols":9,"rows_kept":112,"cut":false,"hidden":true,"merged":[]}
["c3.1","Add together dividends"]
["c3.2",null,null,null,"If any box in this stage is negative substitute zero"]
["c3.3"]
["c3.4","Partnerships",null,null,null,null,null,{"$f":"\"Total all instances (\"&FPS&PS!G42&\")\"","v":"Total all instances (FPS70)"}]
["c3.4.1","Total Dividend income",null,null,null,null,{"$f":"'Divs (c3)'!A1","v":"c3.1"},{"$f":"TRUNC(PS!H43,0)","v":0},"£down"]
["c3.5"]
["c3.6"]
["c3.7","Foreign dividends"]
["c3.7.1"]
["c3.8","If No Remittance Basis Claim",null,{"$f":"\"If \"&NRD&NRD!H5&\" = N\"","v":"If NRD28 = N"}]
["c3.9","Dividends from trusts etc.",{"$f":"\"from \"&FOR&FOR!G46","v":"from FOR11"},{"$f":"'Divs (c3)'!A2","v":"c3.2"},{"$f":"TRUNC(FOR!H47,0)","v":0},"£down"]
["c3.10"]
["c3.11","Foreign dividends (up to £300)",{"$f":"\"from \"&INC&'INC(1)'!I21","v":"from INC6"},{"$f":"'Divs (c3)'!A3","v":"c3.3"},{"$f":"TRUNC('INC(1)'!J22,0)","v":0},"£down"]
[]
["c3.12","Dividends",{"$f":"\"from \"&FOR&FOR!G24","v":"from FOR6"},{"$f":"'Divs (c3)'!A4","v":"c3.4"},{"$f":"TRUNC(FOR!H25,0)","v":0},"£down"]
[]
[null,"Div inc in non-res settlor interested trusts",{"$f":"\"from \"&FOR&FOR!V7","v":"from FOR53"},{"$f":"A5","v":"c3.4.1"},{"$f":"TRUNC(FOR!W8,0)","v":0},"£down"]
["c3.13",null,null,"else"]
["c3.13a",null,null,{"$f":"D11&\" to \"&D15&\" = 0 (zero)\"","v":"c3.2 to c3.4 = 0 (zero)"}]
["c3.14",null,null,"end if",null,null,null,{"$f":"D11&\" + \"&D13&\" + \"&D15&\" + \"&D17","v":"c3.2 + c3.3 + c3.4 + c3.4.1"}]
["c3.15",null,null,null,null,null,{"$f":"'Divs (c3)'!A6","v":"c3.5"},{"$f":"MAX(0,E11+E13+E15+E17-(TCRWS!H14+TCRWS!J14))","v":0}]
["c3.16",null,null,null,null,null,null,{"$f":"\"copy to \"&'non-res (c91)'!A17","v":"copy to c91.16"}]
["c3.17"]
["c3.18","Trusts and estates"]
["c3.19","Trust dividend income"]
["c3.20"]
["c3.21",null,null,null,{"$f":"\"(\"&TRU&TRU!G11&\" + \"&TRU&TRU!C28&\") × divs_gross (\"&divs_gross_F&\")\"","v":"(TRU5 + TRU9) × divs_gross (100/91.25)"}]
["c3.21.1","Non-discretionary income entitlement from a trust",null,{"$f":"'Divs (c3)'!A7","v":"c3.6"},{"$f":"TRUNC((TRU!H12+TRU!D29)*divs_gross,0)","v":0},"£down"]
[null,null,null,null,{"$f":"\"copy to \"&'non-res (c91)'!A19","v":"copy to c91.18"}]
["c3.22"]
["c3.23",null,null,null,{"$f":"TRU&TRU!K15&\" × divs_gross (\"&divs_gross_F&\")\"","v":"TRU18 × divs_gross (100/91.25)"}]
["c3.24","Income from United Kingdom (UK) estates",null,{"$f":"'Divs (c3)'!A8","v":"c3.7"},{"$f":"TRUNC(TRU!L16*divs_gross,0)","v":0},"£down"]
["c3.25",null,null,null,{"$f":"\"copy to \"&'non-res (c91)'!A20","v":"copy to c91.19"}]
[]
["c3.26",null,null,null,{"$f":"TRU&TRU!K20&\" × divs_gross_old (\"&divs_gross_old_F&\")\"","v":"TRU18.1 × divs_gross_old (100/92.5)"}]
[null,null,null,{"$f":"A9","v":"c3.7.1"},{"$f":"TRUNC(TRU!L21*divs_gross_old,0)","v":0},"£down"]
[null,null,null,null,{"$f":"\"copy to \"&'non-res (c91)'!A21","v":"copy to c91.19a"}]
[]
[null,null,null,null,{"$f":"TRU&TRU!G24&\" × trust_div_gross (\"&trust_div_gross_F&\")\"","v":"TRU12 × trust_div_gross (100/60.65)"}]
[null,"Non-discretionary income entitlement from a trust at trust rate",null,{"$f":"'Divs (c3)'!A10","v":"c3.8"},{"$f":"TRUNC(TRU!H25*trust_div_gross,0)","v":0},"£down"]
[null,null,null,null,{"$f":"\"copy to \"&'non-res (c91)'!A22","v":"copy to c91.20"}]
[]
[null,null,null,null,null,null,null,{"$f":"D28&\" + \"&D32&\" + \"&D36&\" + \"&D40","v":"c3.6 + c3.7 + c3.7.1 + c3.8"}]
[null,"Total Trust and estates dividends",null,null,null,null,{"$f":"'Divs (c3)'!A11","v":"c3.9"},{"$f":"E28+E32+E36+E40","v":0}]
[]
[]
[null,"Dividends from UK companies"]
[null,"Dividends from UK companies - the amount received",{"$f":"\"from \"&INC&'INC(1)'!I15","v":"from INC4"},{"$f":"'Divs (c3)'!A12","v":"c3.10"},{"$f":"TRUNC('INC(1)'!J16,0)","v":0},"£down"]
[null,"Other Dividends - the amount received",{"$f":"\"from \"&INC&'INC(1)'!I18","v":"from INC5"},{"$f":"A13","v":"c3.11"},{"$f":"TRUNC('INC(1)'!J19,0)","v":0},"£down"]
[null,"Stock dividends - the amount received",{"$f":"\"from \"&AOI&AOI!C28","v":"from AOI12"},{"$f":"'Divs (c3)'!A15","v":"c3.12"},{"$f":"TRUNC(AOI!D29,0)","v":0},"£down"]
[null,"Bonus issues of securities and redeemable shares",{"$f":"\"from \"&AOI&AOI!G28","v":"from AOI13"},{"$f":"'Divs (c3)'!A18","v":"c3.13"},{"$f":"TRUNC(AOI!H29)","v":0},"£down"]
[null,"Close company loans written off or released",{"$f":"\"from \"&AOI&AOI!G31","v":"from AOI13.1"},{"$f":"'Divs (c3)'!A19","v":"c3.13a"},{"$f":"TRUNC(AOI!H32)","v":0},"£down"]
[null,null,null,null,null,null,null,{"$f":"D48&\" + \"&D49&\" + \"&D50&\" + \"&D51&\" + \"&D52","v":"c3.10 + c3.11 + c3.12 + c3.13 + c3.13a"}]
[null,"Total dividends from UK companies",null,null,null,null,{"$f":"'Divs (c3)'!A20","v":"c3.14"},{"$f":"E48+E49+E50+E51+E52","v":0}]
[null,null,null,null,null,null,null,{"$f":"\"add \"&'Savings (c2)'!A18&\" + \"&'Divs (c3)'!A20&\" and copy to \"&'S loans(c27)'!A35","v":"add c2.17 + c3.14 and copy to c27.22"}]
[]
[null,null,null,null,null,null,null,{"$f":"G5&\" + \"&G21&\" + \"&G44&\" + \"&G54","v":"c3.1 + c3.5 + c3.9 + c3.14"}]
[null,"Total dividend income",null,null,null,null,{"$f":"'Divs (c3)'!A21","v":"c3.15"},{"$f":"H5+H21+H44+H54","v":0}]
[null,null,null,null,null,null,null,{"$f":"\"copy to \"&'TSR (c17)'!A31&\" and \"&'LLIR (c24)'!A16&\" and \"&'non-res (c91)'!A16","v":"copy to c17.22f and c24.13 and c91.15"}]
[]
[null,"Add together gains on life insurance policies etc. with tax treated as paid"]
[null,null,null,null,null,null,null,{"$f":"\"from \"&'Savings (c2)'!E19","v":"from c2.5"}]
[null,"Foreign income",null,null,null,null,{"$f":"'Divs (c3)'!A22","v":"c3.16"},{"$f":"'Savings (c2)'!F19","v":0}]
[]
[null,null,null,null,null,null,null,{"$f":"\"from \"&AOI&AOI!C13","v":"from AOI4"}]
[null,"Gains on life insurance policies etc.",null,null,null,null,{"$f":"'Divs (c3)'!A23","v":"c3.17"},{"$f":"TRUNC(AOI!D14,0)","v":0},"£down"]
[]
[null,null,null,null,null,null,null,{"$f":"G63&\" + \"&G66","v":"c3.16 + c3.17"}]
[null,null,null,null,null,null,{"$f":"'Divs (c3)'!A24","v":"c3.18"},{"$f":"MAX(0,H63+H66-TCRWS!L14)","v":0}]
[null,null,null,null,null,null,null,{"$f":"\"copy to \"&'Taxable (c5)'!E302&\" and \"&'non-res (c91)'!A27","v":"copy to c5.41 and c91.24"}]
[null,null,null,null,null,null,null,{"$f":"\"and add \"&'Savings (c2)'!A20&\" + \"&'Divs (c3)'!A24&\" and copy to \"&'LLIR (c24)'!A15","v":"and add c2.19 + c3.18 and copy to c24.12"}]
[]
[null,"Add together non-savings income etc. with notional tax"]
[null,null,null,null,null,null,null,{"$f":"TRU&TRU!O6&\" × NS_gross (\"&NS_gross_F&\")\"","v":"TRU19 × NS_gross (100/80)"}]
[null,"Trusts and estates",null,null,null,null,{"$f":"'Divs (c3)'!A25","v":"c3.19"},{"$f":"TRUNC(TRU!P7*NS_gross,0)","v":0},"£down"]
[null,null,null,null,null,null,null,{"$f":"\"copy to \"&'Taxable (c5)'!E307&\" and \"&'non-res (c91)'!A28","v":"copy to c5.42 and c91.25"}]
[null,null,null,null,null,null,null,{"$f":"\"and add \"&'NS income (c1)'!A90&\" + \"&'Savings (c2)'!A14&\" + \"&'Divs (c3)'!A11&\" + \"&'Divs (c3)'!A25&\" and copy to \"&'S loans(c27)'!A34","v":"and add c1.51 + c2.13 + c3.9 + c3.19 and copy to c27.21"}]
[]
[null,null,null,null,null,null,null,{"$f":"\"from \"&TRU&TRU!G6","v":"from TRU2"}]
[null,"Total payments from settlor-interested trusts",null,null,null,null,{"$f":"'Divs (c3)'!A26","v":"c3.20"},{"$f":"TRUNC(TRU!H7,0)","v":0},"£down"]
[null,null,null,null,null,null,null,{"$f":"\"copy to \"&'Taxable (c5)'!E312&\" and \"&'non-res (c91)'!A29","v":"copy to c5.43 and c91.26"}]
[null,null,null,null,null,null,null,{"$f":"\"and add \"&'NS income (c1)'!A90&\" + \"&'Savings (c2)'!A14&\" + \"&'Divs (c3)'!A11&\" + \"&'Divs (c3)'!A25&\" + \"&'Divs (c3)'!A26&\" and copy to \"&'Deductions (c4)'!A91","v":"and add c1.51 + c2.13 + c3.9 + c3.19 + c3.20 and copy to c4.53"}]
[]
[]
[]
[null,null,null,null,null,null,null,{"$f":"'NS income (c1)'!I184&\" + \"&'NS income (c1)'!I188&\" + \"&'Savings (c2)'!H79&\" + \"&G58&\" + \"&G69&\" + \"&G75&\" + \"&G80","v":"c1.57 + c1.58 + c2.19 + c3.15 + c3.18 + c3.19 + c3.20"}]
[null,"Total Income",null,null,null,null,{"$f":"'Divs (c3)'!A27","v":"c3.21"},{"$f":"'NS income (c1)'!J184+'NS income (c1)'!J188+'Savings (c2)'!I79+H58+H69+H75+H80","v":0}]
[]
[]
[]
[]
[]
[null,"Calculate miscellaneous values"]
[]
[null,"Double Taxation Agreement income"]
[]
[null,"Amount of Double Taxation Agreement income ",null,null,null,null,null,{"$f":"\"from NRD\"&NRD!D16","v":"from NRD20"}]
[null,"for which partial relief is being claimed",null,null,null,null,{"$f":"'Divs (c3)'!A30","v":"c3.22"},{"$f":"TRUNC(NRD!E17,0)","v":0},"£down"]
[]
[null,null,null,null,null,null,null,{"$f":"G87&\" + \"&G98","v":"c3.21 + c3.22"}]
[null,"Total Income + DTA Income",null,null,null,null,{"$f":"'Divs (c3)'!A31","v":"c3.23"},{"$f":"H87+H98","v":0}]
[]
[]
[null,null,null,null,null,null,null,{"$f":"\"from \"&AIL&AIL!G5","v":"from AIL6"}]
[null,"plus Payroll Giving",null,null,null,null,{"$f":"A32","v":"c3.24"},{"$f":"TRUNC(AIL!H6,0)","v":0},"£down"]
[]
[null,null,null,null,null,null,null,{"$f":"\"from \"&REL&'REL(1)'!C6&\" + \"&REL&'REL(1)'!C9&\" + \"&REL&'REL(1)'!H6&\" + \"&REL&'REL(1)'!H9","v":"from REL1 + REL2 + REL3 + REL4"}]
[null,"minus Pension payments",null,null,null,null,{"$f":"A33","v":"c3.25"},{"$f":"TRUNC('REL(1)'!D7+0.99,0)+TRUNC('REL(1)'!D10+0.99,0)+TRUNC('REL(1)'!I7+0.99,0)+TRUNC('REL(1)'!I10+0.99,0)","v":0},"£up"]
[]
[null,null,null,null,null,null,null,{"$f":"\"(\"&G101&\" + \"&G105&\") minus \"&G108","v":"(c3.23 + c3.24) minus c3.25"}]
[null,"Adjusted Total Income used for calculating the limit on Relief",null,null,null,null,{"$f":"A35","v":"c3.26"},{"$f":"MAX(0,(H101+H105)-H108)","v":0}]
[null,null,null,null,null,null,null,{"$f":"\"Copy to \"&'Deductions (c4)'!D201","v":"Copy to c4.41"}]

{"sheet":"Status (c3a)","index":59,"n_rows":45,"n_cols":31,"rows_kept":45,"cut":false,"hidden":true,"merged":[]}
["c3a.1","Status"]
["c3a.1a",null,null,null,"If any box in this stage is negative substitute zero"]
["c3a.2"]
["c3a.2a","Non-UK resident"]
["c3a.2b","To be a Scottish or Welsh taxpayer a person must first be a UK resident for tax purposes."]
["c3a.3"]
["c3a.3.1"]
["c3a.3a"]
["c3a.3b",{"$f":"\"if \"&NRD!P4&\" = Y\"","v":"if box_NRD1 = Y"}]
["c3a.4",{"$f":"D21&\" = 1\"","v":"c3a.1 = 1"}]
["c3a.4a","else",null,null,"If Tax Status used in calculation = S "]
["c3a.5",{"$f":"\"Calculate \"&D21","v":"Calculate c3a.1"},null,null,{"$f":"D21&\" = 2\"","v":"c3a.1 = 2"}]
["c3a.5a",null,null,null,"else"]
["c3a.6",null,null,null,"If Tax Status used in calculation = C "]
[null,null,null,null,{"$f":"D21&\" = 3\"","v":"c3a.1 = 3"}]
[null,null,null,null,"else"]
[null,null,null,null,{"$f":"D21&\" = 1\"","v":"c3a.1 = 1"}]
[null,null,null,null,"end if"]
[null,null,null,null,"end if"]
[null,null,null,null,"end if"]
[null,null,null,{"$f":"A1","v":"c3a.1"},{"$f":"IF(box_NRD1,1,IF(Residency_Status_in_UK=2,2,IF(Residency_Status_in_UK=3,3,1)))","v":1}]
[]
[null,null,null,null,"end if"]
[]
[]
[]
[]
[null,null,null,null,null,null,null,null,{"$f":"\"if \"&D21&\" = 2\"","v":"if c3a.1 = 2"},null,null,null,{"$f":"\"if \"&D21&\" = 2\"","v":"if c3a.1 = 2"},null,null,null,{"$f":"\"if \"&D21&\" = 2\"","v":"if c3a.1 = 2"},null,null,null,null,null,null,null,{"$f":"\"if \"&D21&\" = 2\"","v":"if c3a.1 = 2"},null,null,{"$f":"\"if \"&D21&\" = 2\"","v":"if c3a.1 = 2"},null,null,{"$f":"\"if \"&D21&\" = 2\"","v":"if c3a.1 = 2"}]
[null,null,null,null,null,null,null,null,{"$f":"H33&\" = SSR_band (\"&DOLLAR(SSR_band,0)&\")\"","v":"c3a.1a = SSR_band (£2,827)"},null,null,null,{"$f":"L33&\" = SBR_band (\"&DOLLAR(SBR_band,0)&\")\"","v":"c3a.2 = SBR_band (£12,094)"},null,null,null,{"$f":"P33&\" = SIR_band (\"&DOLLAR(SIR_band,0)&\")\"","v":"c3a.2a = SIR_band (£16,171)"},null,null,null,null,null,null,null,{"$f":"X33&\" = SHR_band (\"&DOLLAR(SHR_band,0)&\")\"","v":"c3a.3 = SHR_band (£31,338)"},null,null,{"$f":"AA33&\" = SAR_band (\"&DOLLAR(SAR_band,0)&\")\"","v":"c3a.3.1 = SAR_band (£62,710)"},null,null,{"$f":"AD33&\" = SAHR_band (\"&DOLLAR(SAHR_band,0)&\")\"","v":"c3a.3a = SAHR_band (£125,140)"}]
[null,null,null,null,null,null,null,null,"else",null,null,null,"else",null,null,null,"else",null,null,null,null,null,null,null,"else",null,null,"else",null,null,"else"]
[null,null,null,null,null,null,null,null,{"$f":"H33&\" = 0 (zero)\"","v":"c3a.1a = 0 (zero)"},null,null,null,{"$f":"L33&\" = BR_band (\"&DOLLAR(BR_band,0)&\")\"","v":"c3a.2 = BR_band (£37,700)"},null,null,null,{"$f":"P33&\" = 0 (zero)\"","v":"c3a.2a = 0 (zero)"},null,null,null,null,null,null,null,{"$f":"X33&\" = HR_band (\"&DOLLAR(HR_band,0)&\")\"","v":"c3a.3 = HR_band (£87,440)"},null,null,{"$f":"AA33&\" = 0 (zero)\"","v":"c3a.3.1 = 0 (zero)"},null,null,{"$f":"AD33&\" = AHR_band (\"&DOLLAR(AHR_band,0)&\")\"","v":"c3a.3a = AHR_band (£125,140)"}]
[null,null,null,null,null,null,null,null,"end if",null,null,null,"end if",null,null,null,"end if",null,null,{"$f":"\"BR_band (\"&DOLLAR(BR_band,0)&\") minus (\"&H33&\" + \"&L33&\" + \"&P33&\")\"","v":"BR_band (£37,700) minus (c3a.1a + c3a.2 + c3a.2a)"},null,null,null,null,"end if",null,null,"end if",null,null,"end if"]
[null,"Rate bands",null,null,null,null,null,{"$f":"A2","v":"c3a.1a"},{"$f":"IF(AND(Resident,E21=2),SSR_band,0)","v":0},null,null,{"$f":"A3","v":"c3a.2"},{"$f":"IF(AND(Resident,E21=2),SBR_band,BR_band)","v":37700},null,null,{"$f":"A4","v":"c3a.2a"},{"$f":"IF(AND(Resident,E21=2),SIR_band,0)","v":0},null,{"$f":"A5","v":"c3a.2b"},{"$f":"BR_band-(I33+M33+Q33)","v":0},"This box can be negative",null,null,{"$f":"A6","v":"c3a.3"},{"$f":"IF(AND(Resident,E21=2),SHR_band,HR_band)","v":87440},null,{"$f":"A7","v":"c3a.3.1"},{"$f":"IF(AND(Resident,E21=2),SAR_band,0)","v":0},null,{"$f":"A8","v":"c3a.3a"},{"$f":"IF(AND(Resident,E21=2),SAHR_band,AHR_band)","v":125140}]
[null,null,null,null,null,null,null,null,null,null,null,null,null,null,null,null,null,null,null,null,null,null,null,null,{"$f":"\"copy to \"&'tax it (c6)'!A11","v":"copy to c6.8"}]
[]
[null,null,null,null,null,null,null,null,null,null,null,null,{"$f":"\"if \"&D21&\" = 3\"","v":"if c3a.1 = 3"},null,null,null,null,null,null,null,null,null,null,null,{"$f":"\"if \"&D21&\" = 3\"","v":"if c3a.1 = 3"},null,null,null,null,null,{"$f":"\"if \"&D21&\" = 3\"","v":"if c3a.1 = 3"}]
[null,null,null,null,null,null,null,null,null,null,null,null,{"$f":"L45&\" = WBR_rate (\"&WBR_rate*100&\"%)\"","v":"c3a.4 = WBR_rate (20%)"},null,null,null,null,null,null,null,null,null,null,null,{"$f":"X45&\" = WHR_rate (\"&WHR_rate*100&\"%)\"","v":"c3a.5 = WHR_rate (40%)"},null,null,null,null,null,{"$f":"AD45&\" = WAHR_rate (\"&WAHR_rate*100&\"%)\"","v":"c3a.6 = WAHR_rate (45%)"}]
[null,null,null,null,null,null,null,null,null,null,null,null,"else",null,null,null,null,null,null,null,null,null,null,null,"else",null,null,null,null,null,"else"]
[null,null,null,null,null,null,null,null,null,null,null,null,{"$f":"\"if \"&D21&\" = 2\"","v":"if c3a.1 = 2"},null,null,null,null,null,null,null,null,null,null,null,{"$f":"\"if \"&D21&\" = 2\"","v":"if c3a.1 = 2"},null,null,null,null,null,{"$f":"\"if \"&D21&\" = 2\"","v":"if c3a.1 = 2"}]
[null,null,null,null,null,null,null,null,null,null,null,null,{"$f":"L45&\" = SBR_rate (\"&SBR_rate*100&\"%)\"","v":"c3a.4 = SBR_rate (20%)"},null,null,null,null,null,null,null,null,null,null,null,{"$f":"X45&\" = SHR_rate (\"&SHR_rate*100&\"%)\"","v":"c3a.5 = SHR_rate (42%)"},null,null,null,null,null,{"$f":"AD45&\" = SAHR_rate (\"&SAHR_rate*100&\"%)\"","v":"c3a.6 = SAHR_rate (48%)"}]
[null,null,null,null,null,null,null,null,null,null,null,null,"else",null,null,null,null,null,null,null,null,null,null,null,"else",null,null,null,null,null,"else"]
[null,null,null,null,null,null,null,null,null,null,null,null,{"$f":"L45&\" = BR_rate (\"&BR_rate*100&\"%)\"","v":"c3a.4 = BR_rate (20%)"},null,null,null,null,null,null,null,null,null,null,null,{"$f":"X45&\" = HR_rate (\"&HR_rate*100&\"%)\"","v":"c3a.5 = HR_rate (40%)"},null,null,null,null,null,{"$f":"AD45&\" = AHR_rate (\"&AHR_rate*100&\"%)\"","v":"c3a.6 = AHR_rate (45%)"}]
[null,null,null,null,null,null,null,null,null,null,null,null,"end if",null,null,null,null,null,null,null,null,null,null,null,"end if",null,null,null,null,null,"end if"]
[null,null,null,null,null,null,null,null,{"$f":"\"SSR_rate (\"&SSR_rate*100&\"%)\"","v":"SSR_rate (19%)"},null,null,null,"end if",null,null,null,{"$f":"\"SIR_rate (\"&SIR_rate*100&\"%)\"","v":"SIR_rate (21%)"},null,null,null,null,null,null,null,"end if",null,null,{"$f":"\"SAR_rate (\"&SAR_rate*100&\"%)\"","v":"SAR_rate (45%)"},null,null,"end if"]
[null,"Tax rates",null,null,null,null,null,{"$f":"A9","v":"c3a.3b"},{"$f":"SSR_rate","v":0.19},null,null,{"$f":"A10","v":"c3a.4"},{"$f":"IF(AND(Resident,E21=3),WBR_rate,IF(AND(Resident,E21=2),SBR_rate,BR_rate))","v":0.2},null,null,{"$f":"A11","v":"c3a.4a"},{"$f":"SIR_rate","v":0.21},null,null,null,null,null,null,{"$f":"A12","v":"c3a.5"},{"$f":"IF(AND(Resident,E21=3),WHR_rate,IF(AND(Resident,E21=2),SHR_rate,HR_rate))","v":0.4},null,{"$f":"A13","v":"c3a.5a"},{"$f":"SAR_rate","v":0.45},null,{"$f":"A14","v":"c3a.6"},{"$f":"IF(AND(Resident,E21=3),WAHR_rate,IF(AND(Resident,E21=2),SAHR_rate,AHR_rate))","v":0.45}]

{"sheet":"Deductions (c4)","index":60,"n_rows":647,"n_cols":21,"rows_kept":647,"cut":false,"hidden":true,"merged":[]}
["c4.1","Calculate income tax reliefs and allowances"]
["c4.2",null,null,"If any box in this stage is negative substitute zero, unless otherwise stated"]
["c4.3","Income Tax Reliefs"]
["c4.4",null,null,"Relief subject to Limit",null,null,null,"Less exclusions",null,null,null,"Relief Limited to £50,000, or if more,",null,null,null,"Relief not subject to Limit"]
["c4.5","Share Loss Relief",null,null,null,null,null,null,null,null,null,"25% of adjusted total income"]
["c4.6","Capital Gains"]
["c4.7","Share loss relief used against income",null,null,{"$f":"\"from \"&CGT&CGT!C49","v":"from CGT41"}]
["c4.7.1","Relief subject to Limit",null,{"$f":"A1","v":"c4.1"},{"$f":"TRUNC(CGT!D50+0.99,0)","v":0},"£up"]
["c4.8"]
["c4.9","Share loss relief to which Enterprise Investment Scheme/",null,null,null,null,null,null,null,null,null,null,null,null,null,null,null,{"$f":"\"from \"&CGT&CGT!C52","v":"from CGT42"}]
["c4.10","Seed Enterprise Investment Scheme relief is attributable",null,null,null,null,null,null,null,null,null,null,null,null,null,null,{"$f":"A2","v":"c4.2"},{"$f":"TRUNC(CGT!D53+0.99,0)","v":0},"£up"]
["c4.11","Relief not subject to Limit"]
["c4.12"]
["c4.13"]
["c4.14"]
["c4.15",null,null,null,null,null,null,null,null,null,null,null,{"$f":"D8&\" minus \"&Q11","v":"c4.1 minus c4.2"}]
["c4.16","Relief Limited to £50,000, or if more, 25% of adjusted total income",null,null,null,null,null,null,null,null,null,{"$f":"A3","v":"c4.3"},{"$f":"MAX(0,E8-R11)","v":0},null,null,null,null,"If calculation type = non-resident"]
["c4.17",null,null,null,null,null,null,null,null,null,null,null,null,null,null,null,null,{"$f":"\"or (\"&NRD!P10&\" = Y or \"&NRD!P11&\" = Y or \"&NRD!P18&\" = Y)\"","v":"or (box_NRD28 = Y or box_NRD29 = Y or box_NRD40 = Y)"}]
["c4.18",null,null,null,null,null,null,null,null,null,null,null,null,null,null,null,null,{"$f":"Q23&\" = 0 (zero)\"","v":"c4.4 = 0 (zero)"}]
["c4.19",null,null,null,null,null,null,null,null,null,null,null,null,null,null,null,null,"else"]
["c4.19.1","Payments to trade unions or police organisations",null,null,null,null,null,null,null,null,null,null,null,null,null,null,null,{"$f":"Q23&\" = \"&AOR&AOR!G8","v":"c4.4 = AOR8"}]
["c4.20","Trade Union or friendly society death benefit payments",null,null,null,null,null,null,null,null,null,null,null,null,null,null,null,"end if"]
["c4.21","Relief not subject to Limit",null,null,null,null,null,null,null,null,null,null,null,null,null,null,{"$f":"A4","v":"c4.4"},{"$f":"IF(OR(non_resident,FIG_claim_election),0,TRUNC(AOR!H9+0.99,0))","v":0},"£up"]
["c4.22"]
["c4.23"]
["c4.24"]
["c4.24.1","Trading loss relief for sole traders and partnerships"]
["c4.25","Sole Traders"]
["c4.26","Loss brought forward from earlier years set off against this year’s profits",null,null,null,null,null,null,null,null,null,null,null,null,null,null,null,{"$f":"\"from \"&'NS income (c1)'!E40","v":"from c1.11"}]
["c4.27","Relief not subject to Limit",null,null,null,null,null,null,null,null,null,null,null,null,null,{"$f":"\"Total all instances (\"&SSE&SE!C5&\")\"","v":"Total all instances (SSE29)"},{"$f":"A5","v":"c4.5"},{"$f":"'NS income (c1)'!F40","v":0}]
["c4.28"]
["c4.29"]
["c4.30"]
["c4.31"]
["c4.32"]
["c4.33","Loss from this tax year set off against other income",null,null,null,null,null,null,null,null,null,null,{"$f":"\"Total all instances (\"&SSE&SE!C11&\")\"","v":"Total all instances (SSE33)"}]
["c4.34","Relief Limited to £50,000, or if more, 25% of adjusted total income",null,null,null,null,null,null,null,null,null,{"$f":"A6","v":"c4.6"},{"$f":"TRUNC(SE!D12+0.99,0)","v":0},"£up (for each SSE)"]
["c4.35"]
["c4.36","Loss brought forward from earlier years"]
["c4.37","set off against this year’s profits",null,null,null,null,null,null,null,null,null,null,null,null,null,null,null,{"$f":"\"from \"&'NS income (c1)'!E47","v":"from c1.14"}]
["c4.37.1","Relief not subject to Limit",null,null,null,null,null,null,null,null,null,null,null,null,null,{"$f":"\"Total all instances (\"&FSE&SE!G11&\")\"","v":"Total all instances (FSE74)"},{"$f":"A7","v":"c4.7"},{"$f":"'NS income (c1)'!F47","v":0}]
["c4.38"]
["c4.39","Loss brought forward from earlier years"]
["c4.40","set off against this year’s transition profits",null,null,null,null,null,null,null,null,null,null,null,null,null,null,null,{"$f":"\"Total all instances (\"&FSE&SE!G8&\")\"","v":"Total all instances (FSE73.4)"}]
["c4.40.1","Relief not subject to Limit",null,null,null,null,null,null,null,null,null,null,null,null,null,null,{"$f":"A8","v":"c4.7.1"},{"$f":"TRUNC(SE!H9+0.99,0)","v":0},"£up (for each FSE)"]
["c4.40.2"]
["c4.41"]
["c4.42"]
["c4.43","Loss from this tax year set off against other income",null,null,{"$f":"\"Total all instances (\"&FSE&SE!G20&\")\"","v":"Total all instances (FSE78)"},null,null,null,"Set to zero"]
["c4.44","Relief Limited to £50,000, or if more, 25% of adjusted total income",null,{"$f":"A9","v":"c4.8"},{"$f":"TRUNC(SE!H21+0.99,0)","v":0},"£up (for each FSE)",null,{"$f":"A10","v":"c4.9"}]
["c4.45"]
["c4.46"]
["c4.47"]
["c4.47.1"]
["c4.47.2"]
["c4.47.3"]
["c4.47.4"]
["c4.47.4a"]
["c4.47.5"]
["c4.47.6"]
["c4.47.7"]
["c4.47.8",null,null,null,null,null,null,null,"Set to zero"]
["c4.47.9",null,null,null,null,null,null,{"$f":"A11","v":"c4.10"}]
["c4.47.10"]
["c4.47.11",null,null,null,null,null,null,null,null,null,null,null,"Set to zero"]
["c4.47.12",null,null,null,null,null,null,null,null,null,null,{"$f":"A12","v":"c4.11"}]
["c4.47.13"]
["c4.47.14",null,null,null,null,null,null,null,null,null,null,null,null,null,null,null,null,"Set to zero"]
["c4.47.15",null,null,null,null,null,null,null,null,null,null,null,null,null,null,null,{"$f":"A13","v":"c4.12"}]
["c4.47.16"]
["c4.47.17","Partnerships"]
["c4.47.18","Loss brought forward from earlier years"]
["c4.47.19","set off against this year’s profits",null,null,null,null,null,null,null,null,null,null,null,null,null,null,null,{"$f":"\"from \"&'NS income (c1)'!E68","v":"from c1.21"}]
["c4.47.20","Relief not subject to Limit",null,null,null,null,null,null,null,null,null,null,null,null,null,{"$f":"\"Total all instances (\"&SPS&PS!C4&\")\"","v":"Total all instances (SPS17)"},{"$f":"A14","v":"c4.13"},{"$f":"'NS income (c1)'!F68","v":0}]
["c4.47.21"]
["c4.47.22"]
["c4.47.23"]
["c4.47.24","Loss from this tax year set off against other income",null,null,{"$f":"\"Total all instances (\"&SPS&PS!C10&\")\"","v":"Total all instances (SPS22)"},null,null,null,"Set to zero"]
["c4.47.25","Relief Limited to £50,000, or if more, 25% of adjusted total income",null,{"$f":"A15","v":"c4.14"},{"$f":"TRUNC(PS!D11+0.99,0)","v":0},"£up (for each SPS)",null,{"$f":"A16","v":"c4.15"}]
["c4.47.25a"]
["c4.47.26"]
["c4.47.27"]
["c4.47.28"]
["c4.47.29"]
["c4.47.30"]
["c4.48"]
["c4.49",null,null,null,null,null,null,null,"Set to zero"]
["c4.50",null,null,null,null,null,null,{"$f":"A17","v":"c4.16"},0]
["c4.51"]
["c4.52",null,null,null,null,null,null,null,null,null,null,null,"Set to zero"]
["c4.53",null,null,null,null,null,null,null,null,null,null,{"$f":"A18","v":"c4.17"}]
["c4.54"]
["c4.54.1",null,null,null,null,null,null,null,null,null,null,null,null,null,null,null,null,"Set to zero"]
["c4.54.2",null,null,null,null,null,null,null,null,null,null,null,null,null,null,null,{"$f":"A19","v":"c4.18"}]
["c4.54.3"]
["c4.55"]
["c4.56"]
["c4.57","Loss brought forward from earlier years"]
["c4.57.1","set off against this year’s profits",null,null,null,null,null,null,null,null,null,null,null,null,null,null,null,{"$f":"\"from \"&'NS income (c1)'!E75","v":"from c1.24"}]
["c4.57.2","Relief not subject to Limit",null,null,null,null,null,null,null,null,null,null,null,null,null,{"$f":"\"Total all instances (\"&FPS&PS!J4&\" + \"&FPS&PS!G20&\" + \"&FPS&PS!G29&\" + \"&FPS&PS!G32&\")\"","v":"Total all instances (FPS17 + FPS38 + FPS47 + FPS58)"},{"$f":"A20","v":"c4.19"},{"$f":"'NS income (c1)'!F75","v":0}]
["c4.57.3"]
["c4.57.4"]
[]
[null,"Loss brought forward from earlier years"]
[null,"set off against this year’s transition profits",null,null,null,null,null,null,null,null,null,null,null,null,null,null,null,{"$f":"\"Total all instances (\"&FPS&PS!G7&\")\"","v":"Total all instances (FPS16.4)"}]
[null,"Relief not subject to Limit",null,null,null,null,null,null,null,null,null,null,null,null,null,null,{"$f":"A21","v":"c4.19.1"},{"$f":"TRUNC(PS!H8+0.99,0)","v":0},"£up (for each FPS)"]
[]
["c4.58"]
["c4.59"]
["c4.60","Loss from this tax year set off against other income",null,null,{"$f":"\"Total all instances (\"&FPS&PS!G11&\" + \"&FPS&PS!J20&\")\"","v":"Total all instances (FPS22 + FPS39)"},null,null,null,"Set to zero"]
["c4.61","Relief Limited to £50,000, or if more, 25% of adjusted total income",null,{"$f":"A22","v":"c4.20"},{"$f":"TRUNC(PS!H12+0.99,0)+TRUNC(PS!K21+0.99,0)","v":0},"£up (for each FPS)",null,{"$f":"A23","v":"c4.21"}]
["c4.62"]
["c4.63"]
[]
[]
[]
[]
[null,null,null,null,null,null,null,null,"Set to zero"]
[null,null,null,null,null,null,null,{"$f":"A24","v":"c4.22"}]
[]
[null,null,null,null,null,null,null,null,null,null,null,null,"Set to zero"]
[null,null,null,null,null,null,null,null,null,null,null,{"$f":"A25","v":"c4.23"}]
[]
[null,null,null,null,null,null,null,null,null,null,null,null,null,null,null,null,null,"Set to zero"]
[null,null,null,null,null,null,null,null,null,null,null,null,null,null,null,null,{"$f":"A26","v":"c4.24"}]
[]
[]
[null,null,null,null,null,null,null,null,null,null,null,null,null,null,null,null,null,"Set to zero"]
[null,null,null,null,null,null,null,null,null,null,null,null,null,null,null,null,{"$f":"A27","v":"c4.24.1"}]
[]
[]
[null,"Totals for trading loss relief for sole traders and partnerships",null,null,null,null,null,null,null,null,null,null,{"$f":"L37&\" + \"&D50&\" + \"&D79&\" + \"&D111","v":"c4.6 + c4.8 + c4.14 + c4.20"}]
[null,"Relief Limited to £50,000, or if more, 25% of adjusted total income",null,null,null,null,null,null,null,null,null,{"$f":"A28","v":"c4.25"},{"$f":"M37+E50+E79+E111","v":0}]
[]
[null,null,null,null,null,null,null,null,null,null,null,null,null,null,null,null,null,{"$f":"Q30&\" + \"&Q41&\" + \"&Q74&\" + \"&Q100","v":"c4.5 + c4.7 + c4.13 + c4.19"}]
[null,"Relief not subject to Limit",null,null,null,null,null,null,null,null,null,null,null,null,null,null,{"$f":"A29","v":"c4.26"},{"$f":"R30+R41+R74+R100","v":0}]
[]
[null,"Land & Property"]
[]
[]
[null,"Loss brought forward used against this year’s profits",null,null,null,null,null,null,null,null,null,null,null,null,null,null,null,"Set to zero"]
[null,"Relief not subject to Limit",null,null,null,null,null,null,null,null,null,null,null,null,null,"Total all instances (lower of PRO13 and PRO14)",{"$f":"A30","v":"c4.27"},0]
[]
[null,"Loss brought forward used against this year’s profits",null,null,null,null,null,null,null,null,null,null,null,null,null,null,null,{"$f":"\"from \"&'NS income (c1)'!E96","v":"from c1.31"}]
[null,"Relief not subject to Limit",null,null,null,null,null,null,null,null,null,null,null,null,null,{"$f":"\"lower of \"&PRO&PRO!G13&\" and \"&PRO&PRO!G16","v":"lower of PRO38 and PRO39"},{"$f":"A31","v":"c4.28"},{"$f":"'NS income (c1)'!F96","v":0}]
[]
[null,null,null,null,"Set to zero",null,null,null,"Set to zero"]
[null,null,null,{"$f":"A32","v":"c4.29"},null,null,null,{"$f":"A33","v":"c4.30"}]
[]
["c4.63a","Loss set off against total income",null,null,null,null,null,null,null,null,null,null,{"$f":"\"from \"&PRO&PRO!G22","v":"from PRO42"},null,null,null,null,"Set to zero"]
["c4.63b","Relief Limited to £50,000, or if more, 25% of adjusted total income",null,null,null,null,null,null,null,null,null,{"$f":"A34","v":"c4.31"},{"$f":"TRUNC(PRO!H23+0.99,0)","v":0},"£up",null,null,{"$f":"A35","v":"c4.32"}]
["c4.63c"]
[null,"Foreign Property"]
[null,"Total loss brought forward from earlier years",null,null,null,null,null,null,null,null,null,null,null,null,null,null,null,{"$f":"'NS income (c1)'!E123&\" minus (\"&'NS income (c1)'!E129&\" + \"&'NS income (c1)'!E132&\")\"","v":"c1.36 minus (c1.38 + c1.39)"}]
[null,"Relief not subject to Limit",null,null,null,null,null,null,null,null,null,null,null,null,null,{"$f":"FOR&FOR!K10&\" minus (\"&FOR&FOR!K21&\" + \"&FOR&FOR!O21&\")\"","v":"FOR26 minus (FOR31 + FOR32)"},{"$f":"A36","v":"c4.33"},{"$f":"MAX(0,TRUNC('NS income (c1)'!F123-('NS income (c1)'!F129+'NS income (c1)'!F132)+0.99,0))","v":0},"£up"]
[]
[]
[null,"Loss set against total income",null,null,null,null,null,null,null,null,null,null,{"$f":"\"from \"&FOR&FOR!K21","v":"from FOR31"}]
[null,"Relief Limited to £50,000, or if more, 25% of adjusted total income",null,null,null,null,null,null,null,null,null,{"$f":"A37","v":"c4.34"},{"$f":"TRUNC(FOR!L22+0.99,0)","v":0},"£up"]
[]
[null,"Lloyd's Underwriters"]
[null,"Lloyd’s losses brought forward from earlier years used against this year’s profits",null,null,null,null,null,null,null,null,null,null,null,null,null,null,null,{"$f":"\"from \"&'NS income (c1)'!E60","v":"from c1.18"}]
[null,"Relief not subject to Limit",null,null,null,null,null,null,null,null,null,null,null,null,null,{"$f":"\"from \"&LUN&LUN!K4","v":"from LUN51"},{"$f":"A38","v":"c4.35"},{"$f":"'NS income (c1)'!F60","v":0}]
[]
[]
[]
[]
[]
["c4.64","Loss set off against other income",null,null,null,null,null,null,null,null,null,null,{"$f":"\"from \"&LUN&LUN!K10","v":"from LUN56"}]
["c4.65","Relief Limited to £50,000, or if more, 25% of adjusted total income",null,null,null,null,null,null,null,null,null,{"$f":"A39","v":"c4.36"},{"$f":"TRUNC(LUN!L11+0.99,0)","v":0},"£up"]
["c4.66"]
["c4.67","Other tax reliefs"]
["c4.68","Post-cessation trade relief and certain other losses",null,null,null,null,null,null,null,null,null,null,{"$f":"\"from \"&AOR&AOR!C20","v":"from AOR6"}]
["c4.69","Relief Limited to £50,000, or if more, 25% of adjusted total income",null,null,null,null,null,null,null,null,null,{"$f":"A40","v":"c4.37"},{"$f":"TRUNC(AOR!D21+0.99,0)","v":0},"£up"]
["c4.70"]
["c4.70a","Other tax reliefs"]
["c4.71","Pre-incorporation losses",null,null,null,null,null,null,null,null,null,null,null,null,null,null,null,{"$f":"\"from \"&AOR&AOR!C23","v":"from AOR6.1"}]
["c4.72","Relief not subject to Limit",null,null,null,null,null,null,null,null,null,null,null,null,null,null,{"$f":"A41","v":"c4.37.1"},{"$f":"TRUNC(AOR!D24+0.99,0)","v":0},"£up"]
["c4.73"]
["c4.74","Loan Interest"]
["c4.75","Qualifying loan interest payable in the year",null,null,null,null,null,null,null,null,null,null,{"$f":"\"from \"&AOR&AOR!C17","v":"from AOR5"}]
["c4.75a","Relief Limited to £50,000, or if more, 25% of adjusted total income",null,null,null,null,null,null,null,null,null,{"$f":"A42","v":"c4.38"},{"$f":"TRUNC(AOR!D18+0.99,0)","v":0},"£up"]
["c4.75b"]
["c4.75b1"]
["c4.75b2"]
["c4.75c",null,null,null,{"$f":"D8&\" + \"&Q23&\" + \"&Q30&\" + \"&L37&\" + \"&Q41&\" + \"&D50&\" + \"&Q74&\" + \"&D79&\" + \"&Q100&\" + \"&D111&\" + \"&Q129&\" +\"","v":"c4.1 + c4.4 + c4.5 + c4.6 + c4.7 + c4.8 + c4.13 + c4.14 + c4.19 + c4.20 + c4.24.1 +"}]
["c4.75c1",null,null,null,{"$f":"Q145&\" + \"&L151&\" + \"&Q155&\" + \"&L159&\" + \"&Q163&\" + \"&L170&\" + \"&L174&\" + \"&L182&\" + \"&Q178","v":"c4.28 + c4.31 + c4.33 + c4.34 + c4.35 + c4.36 + c4.37 + c4.38 + c4.37.1"}]
["c4.75d","Total Relief",null,{"$f":"A43","v":"c4.39"},{"$f":"E8+R23+R30+M37+R41+E50+R74+E79+R100+E111+R129+R145+M151+R155+M159+R163+M170+M174+M182+R178","v":0}]
["c4.75e",null,null,null,null,null,null,null,null,null,null,null,{"$f":"L17&\" + \"&L133&\" + \"&L151&\" + \"&L159&\" + \"","v":"c4.3 + c4.25 + c4.31 + c4.34 + "}]
["c4.75f",null,null,null,null,null,null,null,null,null,null,null,{"$f":"L170&\" + \"&L174&\" + \"&L182","v":"c4.36 + c4.37 + c4.38"}]
["c4.75g","Relief amount subject to limit",null,null,null,null,null,null,null,null,null,{"$f":"A44","v":"c4.40"},{"$f":"M17+M133+M151+M159+M170+M174+M182","v":0}]
["c4.75h"]
["c4.75i"]
["c4.75j","Adjusted Total Income",null,null,{"$f":"\"Total all instances (\"&FSE&SE!G5&\")\"","v":"Total all instances (FSE73.3)"}]
["c4.75k","used for calculating the limit on Relief",null,{"$f":"A45","v":"c4.40.1"},{"$f":"TRUNC(SE!H6,0)","v":0},"£down (for each FSE)"]
["c4.75l"]
[null,null,null,null,{"$f":"\"Total all instances (\"&FPS&PS!G4&\")\"","v":"Total all instances (FPS16.3)"}]
[null,null,null,{"$f":"A46","v":"c4.40.2"},{"$f":"TRUNC(PS!H5,0)","v":0},"£down (for each FSE)"]
[]
["c4.75m",null,null,null,{"$f":"'Divs (c3)'!G111&\" + \"&D195&\" + \"&D198","v":"c3.26 + c4.40.1 + c4.40.2"}]
[null,null,null,{"$f":"A47","v":"c4.41"},{"$f":"'Divs (c3)'!H111 + E195+E198+IF(calc_TSR_alt_c17_6, 'TSR (c17)'!M101 - 'TSR (c17)'!F101, 0)","v":0}]
[]
[null,null,null,null,{"$f":"D201&\" × Dedn_taper (\"&Dedn_taper*100&\"%)\"","v":"c4.41 × Dedn_taper (25%)"}]
["c4.75n",null,null,{"$f":"A48","v":"c4.42"},{"$f":"TRUNC((E201*Dedn_taper)+0.99,0)","v":0},"£up"]
["c4.75o"]
["c4.75p","Limit on Relief",null,null,null,null,null,null,{"$f":"\"Dedn_cap (\"&DOLLAR(Dedn_cap,0)&\")\"","v":"Dedn_cap (£50,000)"},null,null,null,{"$f":"\"larger of \"&D204&\" and \"&H207","v":"larger of c4.42 and c4.43"}]
["c4.75q","Deduction Cap",null,null,null,null,null,{"$f":"A49","v":"c4.43"},{"$f":"Dedn_cap","v":50000},null,null,{"$f":"A50","v":"c4.44"},{"$f":"MAX(E204,I207)","v":50000}]
["c4.75r"]
["c4.75s",null,null,null,null,null,null,null,null,null,null,null,{"$f":"\"lower of \"&L191&\" and \"&L207","v":"lower of c4.40 and c4.44"}]
["c4.75t","Capped Relief Limit",null,null,null,null,null,null,null,null,null,{"$f":"A51","v":"c4.45"},{"$f":"MIN(M191,M207)","v":0}]
[null,null,null,null,null,null,null,null,null,null,null,null,null,null,null,null,null,{"$f":"Q11&\" + \"&Q23&\" + \"&Q136&\" + \"","v":"c4.2 + c4.4 + c4.26 + "}]
[null,null,null,null,null,null,null,null,null,null,null,null,null,null,null,null,null,{"$f":"Q145&\" + \"&Q155&\" + \"&Q163&\" + \"&Q178","v":"c4.28 + c4.33 + c4.35 + c4.37.1"}]
[null,"Uncapped Relief",null,null,null,null,null,null,null,null,null,null,null,null,null,null,{"$f":"A52","v":"c4.46"},{"$f":"R11+R23+R136+R145+R155+R163+R178","v":0}]
[]
[null,null,null,null,{"$f":"L210&\" + \"&Q213","v":"c4.45 + c4.46"}]
["c4.75u","Total allowable relief",null,{"$f":"A53","v":"c4.47"},{"$f":"M210+R213","v":0}]
["c4.76"]
["c4.76a"]
["c4.76b","Foreign Income relief"]
["c4.76b1"]
["c4.76c","non-savings non-dividend"]
[null,null,null,null,{"$f":"\"Total all instances (\"&FSE&SE!G17&\")\"","v":"Total all instances (FSE76.1)"}]
["c4.77","Total claimed under FIG regime",null,{"$f":"A54","v":"c4.47.1"},{"$f":"TRUNC(SE!H18+0.99,0)","v":0},"£up (for each FSE)"]
["c4.78"]
[null,null,null,null,{"$f":"\"Total all instances (\"&FPS&PS!G48&\")\"","v":"Total all instances (FPS76.1)"}]
[null,"Total claimed under FIG regime",null,{"$f":"A55","v":"c4.47.2"},{"$f":"TRUNC(PS!H49+0.99,0)","v":0},"£up (for each FPS)"]
[]
[null,null,null,null,{"$f":"\"from \"&TRU&TRU!K28","v":"from TRU22.1"}]
["c4.79","Total claimed under FIG regime",null,{"$f":"A56","v":"c4.47.3"},{"$f":"TRUNC(TRU!L29+0.99,0)","v":0},"£up "]
["c4.80"]
[null,null,null,null,{"$f":"\"from \"&FOR&FOR!G43","v":"from FOR9.1"}]
[null,"Total claimed under FIG regime",null,{"$f":"A57","v":"c4.47.4"},{"$f":"TRUNC(FOR!H44+0.99,0)","v":0},"£up "]
[]
[null,null,null,null,"Set to zero"]
[null,"Total claimed under FIG regime",null,{"$f":"A58","v":"c4.47.4a"},0,"£up "]
[]
[null,null,null,null,{"$f":"\"from \"&FOR&FOR!G55&\".0\"","v":"from FOR13.0"}]
[null,"Total claimed under FIG regime",null,{"$f":"A59","v":"c4.47.5"},{"$f":"TRUNC(FOR!H56+0.99,0)","v":0},"£up "]
[]
[null,null,null,null,{"$f":"\"from \"&FOR&FOR!O18","v":"from FOR30.1"}]
[null,"Total claimed under FIG regime",null,{"$f":"A60","v":"c4.47.6"},{"$f":"TRUNC(FOR!P19+0.99,0)","v":0},"£up "]
[]
[null,null,null,null,{"$f":"\"from \"&FOR&FOR!O50","v":"from FOR48.1"}]
[null,"Total claimed under FIG regime",null,{"$f":"A61","v":"c4.47.7"},{"$f":"TRUNC(FOR!P51+0.99,0)","v":0},"£up "]
[]
[null,null,null,null,{"$f":"\"from \"&FOR&FOR!V13","v":"from FOR54.1"}]
[null,"Total claimed under FIG regime",null,{"$f":"A62","v":"c4.47.8"},{"$f":"TRUNC(FOR!W14+0.99,0)","v":0},"£up "]
[]
[null,null,null,null,{"$f":"\"from \"&FOR&FOR!V16","v":"from FOR55.1"}]
[null,"Total claimed under FIG regime",null,{"$f":"A63","v":"c4.47.9"},{"$f":"TRUNC(FOR!W17+0.99,0)","v":0},"£up "]
[]
[null,null,null,null,{"$f":"\"from \"&FOR&FOR!V19","v":"from FOR56.1"}]
[null,"Total claimed under FIG regime",null,{"$f":"A64","v":"c4.47.10"},{"$f":"TRUNC(FOR!W20+0.99,0)","v":0},"£up "]
[]
[null,null,null,null,{"$f":"\"from \"&FOR&FOR!V22","v":"from FOR57.1"}]
[null,"Total claimed under FIG regime",null,{"$f":"A65","v":"c4.47.11"},{"$f":"TRUNC(FOR!W23+0.99,0)","v":0},"£up "]
[]
[null,null,null,null,{"$f":"\"from \"&FOR&FOR!V25","v":"from FOR58.1"}]
[null,"Total claimed under FIG regime",null,{"$f":"A66","v":"c4.47.12"},{"$f":"TRUNC(FOR!W26+0.99,0)","v":0},"£up "]
[]
[null,null,null,null,{"$f":"\"from \"&FOR&FOR!V28","v":"from FOR59.1"}]
[null,"Total claimed under FIG regime",null,{"$f":"A67","v":"c4.47.13"},{"$f":"TRUNC(FOR!W29+0.99,0)","v":0},"£up "]
[]
[null,null,null,null,{"$f":"\"from \"&FOR&FOR!V31","v":"from FOR60.1"}]
[null,"Total claimed under FIG regime",null,{"$f":"A68","v":"c4.47.14"},{"$f":"TRUNC(FOR!W32+0.99,0)","v":0},"£up "]
[]
[null,null,null,null,{"$f":"\"from \"&FOR&FOR!V34","v":"from FOR61.1"}]
[null,"Total claimed under FIG regime",null,{"$f":"A69","v":"c4.47.15"},{"$f":"TRUNC(FOR!W35+0.99,0)","v":0},"£up "]
[]
[null,null,null,null,{"$f":"\"from \"&FOR&FOR!V37","v":"from FOR62.1"}]
[null,"Total claimed under FIG regime",null,{"$f":"A70","v":"c4.47.16"},{"$f":"TRUNC(FOR!W38+0.99,0)","v":0},"£up "]
[]
[null,null,null,null,{"$f":"\"from \"&FOR&FOR!V40","v":"from FOR63.1"}]
[null,"Total claimed under FIG regime",null,{"$f":"A71","v":"c4.47.17"},{"$f":"TRUNC(FOR!W41+0.99,0)","v":0},"£up "]
[]
[null,null,null,null,{"$f":"\"from \"&FOR&FOR!V43","v":"from FOR64.1"}]
[null,"Total claimed under FIG regime",null,{"$f":"A72","v":"c4.47.18"},{"$f":"TRUNC(FOR!W44+0.99,0)","v":0},"£up "]
[]
[null,null,null,null,null,null,null,null,{"$f":"D223&\" + \"&D226&\" + \"&D229&\" + \"&D232&\" + \"&D238&\" + \"&D241&\" + \"&D244&\" + \"&D247&\" + \"&D250&\" + \"&D253&\" +\"","v":"c4.47.1 + c4.47.2 + c4.47.3 + c4.47.4 + c4.47.5 + c4.47.6 + c4.47.7 + c4.47.8 + c4.47.9 + c4.47.10 +"}]
[null,null,null,null,null,null,null,null,{"$f":"D256&\" + \"&D259&\" + \"&D262&\" + \"&D265&\" + \"&D268&\" + \"&D271&\" + \"&D274&\" + \"&D277","v":"c4.47.11 + c4.47.12 + c4.47.13 + c4.47.14 + c4.47.15 + c4.47.16 + c4.47.17 + c4.47.18"}]
[null,"Total non-savings non-dividend FIG claimed",null,null,null,null,null,{"$f":"A73","v":"c4.47.19"},{"$f":"IF(FIR_Claim,E223+E226+E229+E232+E238+E241+E244+E247+E250+E253+E256+E259+E262+E265+E268+E271+E274+E277,0)","v":0}]
[]
[]
[null,null,null,null,{"$f":"\"Total all instances (\"&FPS&PS!J17&\")\"","v":"Total all instances (FPS35.1)"}]
[null,"Savings FIG claimed",null,{"$f":"A74","v":"c4.47.20"},{"$f":"TRUNC(PS!K18+0.99,0)","v":0},"£up (for each FPS)"]
[]
[null,null,null,null,{"$f":"\"from \"&FOR&FOR!G21","v":"from FOR4.1"}]
[null,"Total claimed under FIG regime",null,{"$f":"A75","v":"c4.47.21"},{"$f":"TRUNC(FOR!H22+0.99,0)","v":0},"£up"]
[]
[null,null,null,null,{"$f":"\"from \"&FOR&FOR!O61","v":"from FOR51.1"}]
[null,"Total claimed under FIG regime",null,{"$f":"A76","v":"c4.47.22"},{"$f":"TRUNC(FOR!P62+0.99,0)","v":0},"£up "]
[]
[null,null,null,null,null,null,null,null,{"$f":"D285&\" + \"&D288&\" + \"&D291","v":"c4.47.20 + c4.47.21 + c4.47.22"}]
[null,"Total savings FIG claimed",null,null,null,null,null,{"$f":"A77","v":"c4.47.23"},{"$f":"IF(FIR_Claim,E285+E288+E291,0)","v":0}]
[]
[]
[null,null,null,null,{"$f":"\"Total all instances (\"&FPS&PS!J42&\")\"","v":"Total all instances (FPS70.1)"}]
[null,"Dividend FIG claimed",null,{"$f":"A78","v":"c4.47.24"},{"$f":"TRUNC(PS!K43+0.99,0)","v":0},"£up (for each FPS)"]
[]
[null,null,null,null,{"$f":"\"from \"&FOR&FOR!G27","v":"from FOR6.1"}]
[null,"Total claimed under FIG regime",null,{"$f":"A79","v":"c4.47.25"},{"$f":"TRUNC(FOR!H28+0.99,0)","v":0},"£up "]
[]
[null,null,null,null,{"$f":"\"from \"&FOR&FOR!G49","v":"from FOR11.1"}]
[null,"Total claimed under FIG regime",null,{"$f":"A80","v":"c4.47.25a"},{"$f":"TRUNC(FOR!H50+0.99,0)","v":0},"£up"]
[]
[null,null,null,null,{"$f":"\"from \"&FOR&FOR!V10","v":"from FOR53.1"}]
[null,"Total claimed under FIG regime",null,{"$f":"A81","v":"c4.47.26"},{"$f":"TRUNC(FOR!W11+0.99,0)","v":0},"£up "]
[]
[null,null,null,null,null,null,null,null,{"$f":"D298&\" + \"&D301&\" + \"&D304&\" + \"&D307","v":"c4.47.24 + c4.47.25 + c4.47.25a + c4.47.26"}]
[null,"Total dividends FIG claimed",null,null,null,null,null,{"$f":"A82","v":"c4.47.27"},{"$f":"IF(FIR_Claim,E298+E301+E304+E307,0)","v":0}]
[]
[]
[null,"Foreign employment relief (OWR)"]
[null,null,null,null,{"$f":"'NS income (c1)'!I31&\" + \"&'NS income (c1)'!I35","v":"c1.9 + c1.10"}]
[null,"Relevant net employment income",null,{"$f":"A83","v":"c4.47.28"},{"$f":"'NS income (c1)'!J31+'NS income (c1)'!J35","v":0}]
[]
[null,null,null,null,{"$f":"\"from \"&NRD&NRD!H15","v":"from NRD49"}]
[null,"OWR claimed",null,{"$f":"A84","v":"c4.47.29"},{"$f":"TRUNC(NRD!I16+0.99,0)","v":0},"£up "]
[]
[null,null,null,null,null,null,null,null,{"$f":"\"lower of \"&D315&\" and \"&D318","v":"lower of c4.47.28 and c4.47.29"}]
[null,"OWR",null,null,null,null,null,{"$f":"A85","v":"c4.47.30"},{"$f":"MIN(E315,E318)","v":0}]
[]
[]
[]
[]
[null,"Pension Payments paid gross without tax relief",null,null,null,null,{"$f":"REL&'REL(1)'!C9&\" + \"&REL&'REL(1)'!H6&\" + \"&REL&'REL(1)'!H9","v":"REL2 + REL3 + REL4"},{"$f":"A86","v":"c4.48"},{"$f":"TRUNC('REL(1)'!D10+0.99,0)+TRUNC('REL(1)'!I7+0.99,0)+TRUNC('REL(1)'!I10+0.99,0)","v":0},"£up"]
[]
[null,null,null,null,null,null,null,null,{"$f":"REL&'REL(1)'!H19&\" + \"&REL&'REL(1)'!H22","v":"REL9 + REL10"}]
[null,"Gift of qualifying investments & real property to charities",null,null,null,null,null,{"$f":"A87","v":"c4.49"},{"$f":"TRUNC('REL(1)'!I20+'REL(1)'!I23+0.99,0)","v":0},"£up"]
[null,null,null,null,null,null,null,null,"Copy to c17.7"]
[]
[null,null,null,null,{"$f":"\"from \"&AOR&AOR!C14","v":"from AOR4"},null,null,null,{"$f":"D333&\" × NS_gross (\"&NS_gross_F&\")\"","v":"c4.50 × NS_gross (100/80)"}]
[null,"Annual payments",null,{"$f":"A88","v":"c4.50"},{"$f":"TRUNC(AOR!D15+0.99,0)","v":0},"£up",null,{"$f":"A89","v":"c4.51"},{"$f":"TRUNC((E333*NS_gross)+0.99,0)","v":0},"£up"]
[]
[null,null,null,null,{"$f":"\"from \"&TRU&TRU!K35","v":"from TRU24"}]
[null,"Lower of Foreign tax for which FTCR not claimed",null,{"$f":"A90","v":"c4.52"},{"$f":"TRUNC(TRU!L36+0.99,0)","v":0},"£up"]
[]
[null,null,null,null,{"$f":"'NS income (c1)'!I164&\" + \"&'Savings (c2)'!H54&\" + \"&'Divs (c3)'!G44&\" + \"&'Divs (c3)'!G75&\" + \"&'Divs (c3)'!G80","v":"c1.51 + c2.13 + c3.9 + c3.19 + c3.20"},null,null,null,{"$f":"\"lower of \"&D336&\" and \"&D339","v":"lower of c4.52 and c4.53"}]
[null,"& Trusts and estates Income",null,{"$f":"A91","v":"c4.53"},{"$f":"'NS income (c1)'!J164+'Savings (c2)'!I54+'Divs (c3)'!H44+'Divs (c3)'!H75+'Divs (c3)'!H80","v":0},null,null,{"$f":"A92","v":"c4.54"},{"$f":"TRUNC(MIN(E336,E339)+0.99,0)","v":0},"£up"]
[]
[]
[null,null,null,null,null,null,null,null,{"$f":"\"(\"&D195&\" + \"&D198&\") minus (\"&Q45&\" + \"&Q106&\")\"","v":"(c4.40.1 + c4.40.2) minus (c4.7.1 + c4.19.1)"}]
[null,null,null,null,null,null,null,{"$f":"A93","v":"c4.54.1"},{"$f":"MAX(0,((E195+E198)-(R45+R106)))","v":0}]
[null,null,null,null,null,null,null,null,{"$f":"\"copy to \"&'Class 4 NIC (c16)'!A6&\" and \"&'S loans(c27)'!A29","v":"copy to c16.5.1 and c27.16a"}]
[]
[null,"Net income including transition profit",null,null,null,null,null,null,{"$f":"\"(\"&'Divs (c3)'!G101&\" + \"&H343&\") minus (\"&D216&\" + \"&H326&\" + \"&H329&\" + \"&H333&\" + \"&H339&\")\"","v":"(c3.23 + c4.54.1) minus (c4.47 + c4.48 + c4.49 + c4.51 + c4.54)"}]
[null,null,null,null,null,null,null,{"$f":"A94","v":"c4.54.2"},{"$f":"MAX(0,('Divs (c3)'!H101+I343)-(E216+I326+I329+I333+I339))","v":0}]
[]
[null,null,null,null,null,null,null,null,{"$f":"\"lower of \"&H343&\" and \"&H347","v":"lower of c4.54.1 and c4.54.2"}]
[null,null,null,null,null,null,null,{"$f":"A95","v":"c4.54.3"},{"$f":"MIN(I343,I347)","v":0}]
[]
[]
[null,"Net Income",null,null,null,null,null,null,{"$f":"H347&\" minus \"&H350","v":"c4.54.2 minus c4.54.3"}]
[null,"used for calculating the election to transfer personal allowance",null,null,null,null,null,{"$f":"A96","v":"c4.55"},{"$f":"MAX(0,I347-I350+ IF(calc_TSR_alt_c17_6, 'TSR (c17)'!M101 - 'TSR (c17)'!F101, 0)+IF(calc_TP_alt_c8_26,I350,0))","v":0}]
[null,null,null,null,null,null,null,null,{"$f":"\"copy to \"&'LLIR (c24)'!A14","v":"copy to c24.11"}]
[]
[]
[null,"Deduct"]
[null,"Gift Aid",null,null,{"$f":"\"(\"&REL&'REL(1)'!C16&\" minus \"&REL&'REL(1)'!C22&\") + \"&REL&'REL(1)'!H16","v":"(REL5 minus REL7) + REL8"},null,null,null,{"$f":"D360&\" × gift_aid (\"&gift_aid_F&\")\"","v":"c4.56 × gift_aid (100/80)"}]
[null,null,null,{"$f":"A97","v":"c4.56"},{"$f":"TRUNC((MAX(0,'REL(1)'!D17-'REL(1)'!D23)+'REL(1)'!I17)+0.99,0)","v":0},"£up",null,{"$f":"A98","v":"c4.57"},{"$f":"TRUNC((E360*gift_aid)+0.99,0)","v":0},"£up"]
[null,null,null,null,null,null,null,null,{"$f":"\"copy to \"&'Tax adj (c9)'!C139","v":"copy to c9.33"}]
[]
[null,null,null,null,null,null,null,null,{"$f":"\"from \"&REL&'REL(1)'!C6","v":"from REL1"}]
[null,"Pension payments made net (grossed up)",null,null,null,null,null,{"$f":"A99","v":"c4.57.1"},{"$f":"TRUNC('REL(1)'!D7+0.99,0)","v":0},"£up"]
[]
[null,null,null,null,null,null,null,null,{"$f":"'NS income (c1)'!I31&\" + \"&'NS income (c1)'!I35&\" + \"&'NS income (c1)'!I55&\" + \"&'NS income (c1)'!I64&\" + \"&'NS income (c1)'!I82&\" + \"&'NS income (c1)'!E171&\" + \"&'NS income (c1)'!I188&\" + \"&'Deductions (c4)'!D195&\" + \"&'Deductions (c4)'!D198","v":"c1.9 + c1.10 + c1.17 + c1.20 + c1.27 + c1.53 + c1.58 + c4.40.1 + c4.40.2"}]
[null,"Relevant earnings",null,null,null,null,null,{"$f":"A100","v":"c4.57.2"},{"$f":"'NS income (c1)'!J31+'NS income (c1)'!J35+'NS income (c1)'!J55+'NS income (c1)'!J64+'NS income (c1)'!J82+'NS income (c1)'!F171+'NS income (c1)'!J188+'Deductions (c4)'!E195+'Deductions (c4)'!E198","v":0}]
[]
[null,null,null,null,null,null,null,null,{"$f":"H367&\" minus (\"&D223&\" + \"&D226&\" + \"&H321&\")\"","v":"c4.57.2 minus (c4.47.1 + c4.47.2 + c4.47.30)"}]
[null,null,null,null,null,null,null,{"$f":"A101","v":"c4.57.3"},{"$f":"MAX(0,I367-(E223+E226+I321))","v":0}]
[null,null,null,null,null,null,null,null,{"$f":"\"If \"&NRD!P10&\" = Y\"","v":"If box_NRD28 = Y"}]
[null,null,null,null,null,null,null,null,{"$f":"H376&\" = higher of min_relevant_earns (£3,600) and \"&H370","v":"c4.57.4 = higher of min_relevant_earns (£3,600) and c4.57.3"}]
[null,null,null,null,null,null,null,null,"else"]
[null,null,null,null,null,null,null,null,{"$f":"H376&\" = higher of min_relevant_earns (£3,600) and \"&H367","v":"c4.57.4 = higher of min_relevant_earns (£3,600) and c4.57.2"}]
[null,null,null,null,null,null,null,null,"end if"]
[null,"Annual limit for relief",null,null,null,null,null,{"$f":"A102","v":"c4.57.4"},{"$f":"IF(FIR_Claim,MAX(min_relevant_earns,I370),MAX(min_relevant_earns,I367))","v":3600}]
[]
[null,null,null,null,null,null,null,null,{"$f":"\"lower of \"&H364&\" and \"&H376","v":"lower of c4.57.1 and c4.57.4"}]
[null,"Pension payments made net (grossed up)",null,null,null,null,null,{"$f":"A108","v":"c4.58"},{"$f":"MIN(I364,I376)","v":0},"£up"]
[null,null,null,null,null,null,null,null,{"$f":"\"copy to \"&'TSR (c17)'!A11","v":"copy to c17.11"}]
[]
[null,null,null,null,null,null,null,null,{"$f":"H360&\" + \"&H379","v":"c4.57 + c4.58"}]
[null,"Amount for Extending Basic Rate Band",null,null,null,null,null,{"$f":"A109","v":"c4.59"},{"$f":"I360+I379-(IF(calc_GA_alt_c8_26,I360,0))","v":0}]
[null,null,null,null,null,null,null,null,{"$f":"\"add \"&'Status (c3a)'!A3&\" + \"&'Deductions (c4)'!A109&\" and copy to \"&'Taxable (c5)'!A2","v":"add c3a.2 + c4.59 and copy to c5.2"}]
[null,null,null,null,null,null,null,null,{"$f":"\"add BR_band (£37,700) + \"&'Deductions (c4)'!A109&\" and copy to \"&'Taxable (c5)'!A3","v":"add BR_band (£37,700) + c4.59 and copy to c5.2a"}]
[null,null,null,null,null,null,null,null,{"$f":"\"add \"&'Status (c3a)'!A2&\" + \"&'Status (c3a)'!A3&\" + \"&'Deductions (c4)'!A109&\" and copy to \"&'Pensions (c25c26)'!A10","v":"add c3a.1a + c3a.2 + c4.59 and copy to c25.10"}]
[]
[null,null,null,null,null,null,null,null,"Set to zero"]
[null,null,null,null,null,null,null,"c4.60"]
[]
[null,"Add back",null,null,null,null,null,null,{"$f":"\"from \"&AOR&AOR!G8","v":"from AOR8"}]
[null,"Trade Union or friendly society death benefit payments",null,null,null,null,null,{"$f":"A111","v":"c4.61"},{"$f":"TRUNC(AOR!H9+0.99,0)","v":0},"£up"]
[]
[null,"Total deductions and additions",null,null,null,null,null,null,{"$f":"H383&\" minus \"&H392","v":"c4.59 minus c4.61"}]
[null,null,null,null,null,null,null,{"$f":"A112","v":"c4.62"},{"$f":"I383-I392+IF(calc_GA_alt_c8_26,I360,0)","v":0},"This box can be negative"]
[]
[]
[]
[null,"Adjusted Net Income"]
[null,null,null,null,null,null,null,null,{"$f":"H354&\" minus \"&H395","v":"c4.55 minus c4.62"}]
[null,"Adjusted Total Income minus Reliefs",null,null,null,null,null,{"$f":"A113","v":"c4.63"},{"$f":"MAX(0,I354-I395)","v":0}]
[null,null,null,null,null,null,null,null,{"$f":"\"Copy to \"&'allowances (c14c15)'!K5&\", \"&'allowances (c14c15)'!H46&\" and \"&'CBC(c28)'!I23","v":"Copy to c14.1, c15.2 and c28.7"}]
[]
[]
[]
[]
[null,null,null,null,{"$f":"\"from \"&'NS income (c1)'!I184","v":"from c1.57"}]
[null,"Total non-savings non-dividend income",null,{"$f":"A150","v":"c4.63a"},{"$f":"'NS income (c1)'!J184+IF(calc_TP_alt_c8_26,I343,0)","v":0}]
[]
[]
[null,null,null,null,null,null,null,null,{"$f":"Q30&\" + \"&Q41&\" + \"&Q74&\" + \"&Q100&\" + \"","v":"c4.5 + c4.7 + c4.13 + c4.19 + "}]
[null,null,null,null,null,null,null,null,{"$f":"Q145&\" + \"&Q155&\" + \"&Q163","v":"c4.28 + c4.33 + c4.35"}]
[null,"Losses brought forward",null,null,null,null,null,{"$f":"A151","v":"c4.63b"},{"$f":"R30+R41+R74+R100+R145+R155+R163","v":0}]
[]
[]
[]
[null,null,null,null,null,null,null,null,null,null,null,null,{"$f":"D408&\" minus (\"&H281&\" + \"&H321&\" + \"&H413&\")\"","v":"c4.63a minus (c4.47.19 + c4.47.30 + c4.63b)"}]
[null,"non-savings non-dividend income after losses brought forward and FIG",null,null,null,null,null,null,null,null,null,{"$f":"A152","v":"c4.63c"},{"$f":"MAX(0,E408-(I281+I321+I413))","v":0}]
[null,null,null,null,null,null,null,null,null,null,null,null,{"$f":"\"copy to box \"&'Taxable (c5)'!E17","v":"copy to box c5.3"}]
[]
[]
[]
[]
[]
[]
[]
[]
[null,"Personal allowances"]
[null,{"$f":"\"If (\"&NRD!P10&\" = Y or \"&NRD!P11&\" = Y or \"&NRD!P18&\" = Y)\"","v":"If (box_NRD28 = Y or box_NRD29 = Y or box_NRD40 = Y)"}]
[null,{"$f":"\"or (\"&NRD!P4&\" = Y and \"&NRD!P8&\" = N and \"&NRD!P9&\" = N)\"","v":"or (box_NRD1 = Y and box_NRD15 = N and box_NRD16 = N)"}]
[null,{"$f":"\"or (Calculation type = non-resident)\"","v":"or (Calculation type = non-resident)"}]
[null,{"$f":"\"set boxes \"&H435&\" to \"&L477&\" to 0 (zero)\"","v":"set boxes c4.64 to c4.69 to 0 (zero)"}]
[null,"else"]
[null,null,null,null,null,null,null,null,{"$f":"\"from \"&'allowances (c14c15)'!K26","v":"from c14.6"}]
[null,"Personal allowance",null,null,null,null,null,{"$f":"A169","v":"c4.64"},{"$f":"IF(OR(non_resident,FIG_claim_election),0,IF(UK_allowance_claim,'allowances (c14c15)'!L26,0))","v":12570}]
[]
[null,null,null,null,null,null,null,{"$f":"\"if \"&REL&'REL(2)'!C4&\" = Y\"","v":"if REL13 = Y"}]
[null,null,null,null,null,null,null,{"$f":"H442&\" = BPA (\"&DOLLAR(BPA,0)&\")\"","v":"c4.65 = BPA (£3,130)"}]
[null,null,null,null,null,null,null,"else"]
[null,null,null,null,null,null,null,{"$f":"H442&\" = 0 (zero)\"","v":"c4.65 = 0 (zero)"}]
[null,null,null,null,null,null,null,"end if"]
[null,"Blind Person's Allowance",null,null,null,null,null,{"$f":"A170","v":"c4.65"},{"$f":"IF(non_resident,0,IF(BPA_claimed,IF(UK_allowance_claim,BPA,0),0))","v":0}]
[]
[null,null,null,null,null,null,null,null,{"$f":"\"from \"&CAL&CAL!C19","v":"from CAL12"}]
[null,"Blind person's surplus allowance from spouse",null,null,null,null,null,{"$f":"A171","v":"c4.66"},{"$f":"IF(non_resident,0,IF(UK_allowance_claim,TRUNC(CAL!D20+0.99,0),0))","v":0},"£up"]
[]
[null,null,null,null,null,null,null,null,null,null,null,null,{"$f":"H435&\" + \"&H442&\" + \"&H445","v":"c4.64 + c4.65 + c4.66"}]
[null,"Total Allowances",null,null,null,null,null,null,null,null,null,{"$f":"A172","v":"c4.67"},{"$f":"IF(OR(non_resident,FIG_claim_election),0,IF(UK_allowance_claim,I435+I442+I445,0))","v":12570}]
[]
[]
[]
[]
[null,"Election to reduce personal allowance (Marriage Allowance transfer)"]
[]
[]
[]
[]
[]
[]
[null,{"$f":"\"if (\"&NRD!P4&\" = Y and \"&NRD!P8&\" = Y and \"&NRD!P9&\" = N)\"","v":"if (box_NRD1 = Y and box_NRD15 = Y and box_NRD16 = N)"}]
[null,{"$f":"\"or (\"&NRD!P10&\" = Y or \"&NRD!P11&\" = Y or \"&NRD!P18&\" = Y)\"","v":"or (box_NRD28 = Y or box_NRD29 = Y or box_NRD40 = Y)"}]
[null,{"$f":"H473&\" = 0 (zero)\"","v":"c4.68 = 0 (zero)"}]
[null,"else"]
[null,null,null,null,null,null,null,"If MAT_OUT = FALSE (No Digital Claim AND MAT1 to MAT5 = null)"]
[null,null,null,null,null,null,null,{"$f":"\"OR ((\"&'Tax adj (c9)'!I51&\" + \"&'Tax adj (c9)'!I54&\") > 0 (zero))\"","v":"OR ((c9.16 + c9.17) > 0 (zero))"}]
[null,null,null,null,null,null,null,{"$f":"\"     OR (\"&NRD!P9&\" = Y and \"&H435&\" <= \"&H354&\")\"","v":"     OR (box_NRD16 = Y and c4.64 <= c4.55)"}]
[null,null,null,null,null,null,null,{"$f":"\"       then \"&H473&\" = 0 (zero)\"","v":"       then c4.68 = 0 (zero)"}]
[null,null,null,null,null,null,null,"else"]
[null,null,null,null,null,null,null,"if MAT_OUT = TRUE (Digital Claim OR MAT1 to MAT5 <> null)"]
[null,null,null,null,null,null,null,{"$f":"H473&\" = T_P_A (\"&DOLLAR(T_P_A,0)&\")\"","v":"c4.68 = T_P_A (£1,260)"}]
[null,null,null,null,null,null,null,"end if"]
[null,null,null,null,null,null,null,"end if"]
[null,"Marriage Allowance transferred out",null,null,null,null,null,{"$f":"A173","v":"c4.68"},{"$f":"IF(OR(non_resident,AND(box_NRD1=TRUE,box_NRD15=TRUE,box_NRD16=FALSE),('Tax adj (c9)'!J51+'Tax adj (c9)'!J54>0),AND(box_NRD16=TRUE,I435<=I354),FIG_claim_election),0,IF(OR(MAT_OUT,MA_transfer),T_P_A,0))","v":0}]
[]
[null,"end if"]
[null,null,null,null,null,null,null,null,null,null,null,null,{"$f":"L448&\" minus \"&H473","v":"c4.67 minus c4.68"}]
[null,"Reduced Personal Allowance",null,null,null,null,null,null,null,null,null,{"$f":"A174","v":"c4.69"},{"$f":"IF(non_resident,0,MAX(0,M448-I473))","v":12570}]
[]
[]
[null,"end if"]
[]
[]
[null,null,null,null,null,null,null,null,null,null,null,null,{"$f":"D216&\" + \"&H281&\" + \"&H294&\" + \"&H310&\" + \"&H321&\" + \"&H326&\" + \"&H329&\" + \"&H333&\" + \"&H339&\" + \"&L477","v":"c4.47 + c4.47.19 + c4.47.23 + c4.47.27 + c4.47.30 + c4.48 + c4.49 + c4.51 + c4.54 + c4.69"}]
[null,"Total Deductions and Allowances",null,null,null,null,null,null,null,null,null,{"$f":"A175","v":"c4.70"},{"$f":"E216+I281+I294+I310+I321+I326+I329+I333+I339+M477","v":12570}]
[null,null,null,null,null,null,null,null,null,null,null,null,{"$f":"\"Copy to \"&'Taxable (c5)'!E8","v":"Copy to c5.1"}]
[]
[null,null,null,null,null,null,null,null,null,null,null,null,{"$f":"'Deductions (c4)'!L484&\" minus (\"&'Deductions (c4)'!H281&\" + \"&'Deductions (c4)'!H294&\" + \"&'Deductions (c4)'!H310&\" + \"&'Deductions (c4)'!H321&\" + \"&'Deductions (c4)'!H413&\")\"","v":"c4.70 minus (c4.47.19 + c4.47.23 + c4.47.27 + c4.47.30 + c4.63b)"}]
[null,null,null,null,null,null,null,null,null,null,null,{"$f":"A176","v":"c4.70a"},{"$f":"M484-(I281+I294+I310+I321+I413)","v":12570}]
[]
[null,null,null,null,null,null,null,null,null,null,null,null,"If calculation type = non-resident"]
[null,null,null,null,null,null,null,null,null,null,null,null,{"$f":"L495&\" = \"&'non-res (c91)'!H119","v":"c4.71 = c91.27"}]
[null,null,null,null,null,null,null,null,null,null,null,null,"else"]
[null,null,null,null,null,null,null,null,null,null,null,null,{"$f":"L495&\" = 0 (zero)\"","v":"c4.71 = 0 (zero)"}]
[null,"Total disregarded income",null,null,null,null,null,null,null,null,null,null,"end if"]
[null,null,null,null,null,null,null,null,null,null,null,{"$f":"A177","v":"c4.71"},{"$f":"IF(non_resident,'non-res (c91)'!I119,0)","v":0}]
[]
[null,null,null,null,null,null,null,null,null,null,null,null,"If calculation type = non-resident"]
[null,null,null,null,null,null,null,null,null,null,null,null,{"$f":"L502&\" = \"&L484&\" + \"&L495","v":"c4.72 = c4.70 + c4.71"}]
[null,null,null,null,null,null,null,null,null,null,null,null,"else"]
[null,null,null,null,null,null,null,null,null,null,null,null,{"$f":"L502&\" = \"&L484","v":"c4.72 = c4.70"}]
[null,null,null,null,null,null,null,null,null,null,null,null,"end if"]
[null,null,null,null,null,null,null,null,null,null,null,{"$f":"A178","v":"c4.72"},{"$f":"IF(non_resident,M484+M495,M484)","v":12570}]
[null,null,null,null,"If calculation type = non-resident"]
[null,null,null,null,{"$f":"D508&\" = \"&'non-res (c91)'!M119","v":"c4.73 = c91.28"}]
[null,null,null,null,"else"]
[null,null,null,null,{"$f":"D508&\" = \"&'Divs (c3)'!G87","v":"c4.73 = c3.21"}]
[null,null,null,null,"end if",null,null,null,null,null,null,null,{"$f":"D508&\" minus \"&L484","v":"c4.73 minus c4.70"}]
[null,"Total income",null,{"$f":"A179","v":"c4.73"},{"$f":"IF(non_resident,'non-res (c91)'!N119,'Divs (c3)'!H87+IF(calc_TP_alt_c8_26,I343,0))","v":0},null,null,null,null,null,"Total taxable income",{"$f":"A180","v":"c4.74"},{"$f":"MAX(0,E508-M484)","v":0}]
[]
[null,null,null,null,null,null,null,null,null,null,null,null,{"$f":"\"from \"&H383","v":"from c4.59"}]
[null,"Amount for Extending Basic Rate Band",null,null,null,null,null,null,null,null,null,{"$f":"A181","v":"c4.75"},{"$f":"I383","v":0}]
[]
[]
[]
[]
[null,"Election to reduce the personal allowance or entitlement to receive a tax reduction (Marriage Allowance transfer)"]
[null,"Calculate if, after the personal allowance is reduced or tax reduction received, you are liable to tax at a rate other than the",null,null,null,null,null,null,null,null,null,null,{"$f":"\"(\"&'NS income (c1)'!I184&\" + \"&'NS income (c1)'!I188&\") minus \"&L484","v":"(c1.57 + c1.58) minus c4.70"}]
[null,"basic rate, the Scottish basic rate, the dividend nil rate, the savings nil rate, the dividend ordinary rate or the starting rate for savings",null,null,null,null,null,null,null,null,"non-savings after allowances",{"$f":"A182","v":"c4.75a"},{"$f":"MAX(0,('NS income (c1)'!J184+'NS income (c1)'!J188)-M484)","v":0}]
[null,"Where you are liable to tax at the dividend nil rate, and if the dividend nil rate were omitted would you be liable to tax at"]
[null,"the dividend upper rate or additional rate? If yes, the transfer is invalid.",null,null,null,null,null,null,null,null,null,null,{"$f":"L484&\" minus (\"&'NS income (c1)'!I184&\" + \"&'NS income (c1)'!I188&\")\"","v":"c4.70 minus (c1.57 + c1.58)"}]
[null,"Where you are liable to tax at the savings nil rate the savings nil rate applies.",null,null,null,null,null,null,null,null,"remaining allowances",{"$f":"A183","v":"c4.75b"},{"$f":"MAX(0,M484-('NS income (c1)'!J184+'NS income (c1)'!J188))","v":12570}]
[]
[null,null,null,null,null,null,null,null,null,null,null,null,{"$f":"\"SR_band (\"&DOLLAR(SR_band,0)&\") minus \"&L518","v":"SR_band (£5,000) minus c4.75a"}]
[null,null,null,null,null,null,null,null,null,null,null,{"$f":"A184","v":"c4.75b1"},{"$f":"MAX(0,SR_band-M518)","v":5000}]
[]
[null,null,null,null,null,null,null,null,null,null,null,null,{"$f":"\"lower of \"&'Savings (c2)'!H79&\" and \"&L524","v":"lower of c2.19 and c4.75b1"}]
[null,null,null,null,null,null,null,null,null,null,"savings in sr band",{"$f":"A185","v":"c4.75b2"},{"$f":"MIN('Savings (c2)'!I79,'Deductions (c4)'!M524)","v":0}]
[]
[null,null,null,null,null,null,null,null,null,null,null,null,{"$f":"\"lower of (\"&'Savings (c2)'!H79&\" minus \"&L527&\") and PSA_HR (\"&DOLLAR(PSA_HR,0)&\")\"","v":"lower of (c2.19 minus c4.75b2) and PSA_HR (£500)"}]
[null,null,null,null,null,null,null,null,null,null,"savings in PSA",{"$f":"A186","v":"c4.75c"},{"$f":"MAX(0,MIN(('Savings (c2)'!I79-'Deductions (c4)'!M527),PSA_HR))","v":0}]
[]
[null,null,null,null,null,null,null,null,null,null,null,null,{"$f":"L527&\" + \"&L530","v":"c4.75b2 + c4.75c"}]
[null,null,null,null,null,null,null,null,null,null,null,{"$f":"A187","v":"c4.75c1"},{"$f":"M527+M530","v":0}]
[]
[null,null,null,null,null,null,null,null,null,null,null,null,{"$f":"'Savings (c2)'!H79&\" minus \"&'Deductions (c4)'!L533","v":"c2.19 minus c4.75c1"}]
[null,null,null,null,null,null,null,null,null,null,"savings in addition to PSA",{"$f":"A188","v":"c4.75d"},{"$f":"MAX(0,('Savings (c2)'!I79-'Deductions (c4)'!M533))","v":0}]
[]
[null,null,null,null,null,null,null,null,null,null,null,null,{"$f":"L536&\" minus \"&L521","v":"c4.75d minus c4.75b"}]
[null,null,null,null,null,null,null,null,null,null,"savings after allowances",{"$f":"A189","v":"c4.75e"},{"$f":"MAX(0,M536-M521)","v":0}]
[]
[null,null,null,null,null,null,null,null,null,null,null,null,{"$f":"L521&\" minus (\"&L530&\" + \"&L536&\")\"","v":"c4.75b minus (c4.75c + c4.75d)"}]
[null,null,null,null,null,null,null,null,null,null,"remaining allowances",{"$f":"A190","v":"c4.75f"},{"$f":"MAX(0,M521-(M530+M536))","v":12570}]
[]
[null,null,null,null,null,null,null,null,null,null,null,null,{"$f":"'Divs (c3)'!G58&\" minus \"&L542","v":"c3.15 minus c4.75f"}]
[null,null,null,null,null,null,null,null,null,null,"dividends after allowances",{"$f":"A191","v":"c4.75g"},{"$f":"MAX(0,'Divs (c3)'!H58-M542)","v":0}]
[]
[null,null,null,null,null,null,null,null,null,null,null,null,{"$f":"\" (BR_band (\"&DOLLAR(BR_band,0)&\") + \"&L511&\") minus (\"&L518&\" + \"&L545&\")\"","v":" (BR_band (£37,700) + c4.75) minus (c4.75a + c4.75g)"}]
[null,null,null,null,null,null,null,null,null,null,"remaining BR after non-savings and dividends",{"$f":"A192","v":"c4.75h"},{"$f":"MAX(0,((BR_band+M511)-(M518+M545)))","v":37700}]
[]
[null,null,null,null,null,null,null,null,null,null,null,null,{"$f":"\"lower of \"&L530&\" and (\"&L548&\" minus \"&L539&\")\"","v":"lower of c4.75c and (c4.75h minus c4.75e)"}]
[null,null,null,null,null,null,null,null,null,null,"SavNil in BR",{"$f":"A193","v":"c4.75i"},{"$f":"MIN(M530,MAX(0,M548-M539))","v":0}]
[]
[null,null,null,null,null,null,null,null,null,null,null,null,{"$f":"L530&\" minus \"&L551","v":"c4.75c minus c4.75i"}]
[null,null,null,null,null,null,null,null,null,null,"SavNil in HR",{"$f":"A194","v":"c4.75j"},{"$f":"MAX(0,M530-M551)","v":0}]
[]
[null,null,null,null,null,null,null,null,null,null,null,null,{"$f":"\"lower of (\"&L548&\" minus PSA_HR (\"&DOLLAR(PSA_HR,0)&\")) and \"&L554","v":"lower of (c4.75h minus PSA_HR (£500)) and c4.75j"}]
[null,null,null,null,null,null,null,null,null,null,"Sav in HR",{"$f":"A195","v":"c4.75k"},{"$f":"MIN(MAX(0,(M548-PSA_HR)),M554)","v":0}]
[]
[null,null,null,null,null,null,null,null,null,null,null,null,{"$f":"\"(BR_band (\"&DOLLAR(BR_band,0)&\") + \"&L511&\") minus (\"&L518&\" + \"&L530&\" + \"&L539&\")\"","v":"(BR_band (£37,700) + c4.75) minus (c4.75a + c4.75c + c4.75e)"}]
[null,null,null,null,null,null,null,null,null,null,"remaining BR after non-savings and savings",{"$f":"A196","v":"c4.75l"},{"$f":"MAX(0,((BR_band+M511)-(M518+M530+M539)))","v":37700}]
[]
[null,null,null,null,null,null,null,null,null,null,null,null,{"$f":"\"lower of \"&L545&\" and \"&L560","v":"lower of c4.75g and c4.75l"}]
[null,null,null,null,null,null,null,null,null,null,"DivNil in BR",{"$f":"A200","v":"c4.75m"},{"$f":"MIN(M545,M560)","v":0}]
[]
[null,null,null,null,null,null,null,null,null,null,null,null,{"$f":"L545&\" minus \"&L563","v":"c4.75g minus c4.75m"}]
[null,null,null,null,null,null,null,null,null,null,"DivNil in HR",{"$f":"A204","v":"c4.75n"},{"$f":"MAX(0,M545-M563)","v":0}]
[null,null,null,null,null,null,null,null,null,null,null,null,null,null,null,null,null,{"$f":"L484&\" minus (\"&L536&\" + \"&L545&\")\"","v":"c4.70 minus (c4.75d + c4.75g)"}]
[null,null,null,null,null,null,null,null,null,null,null,null,{"$f":"L542&\" minus \"&L545","v":"c4.75f minus c4.75g"},null,null,null,{"$f":"A207","v":"c4.75q"},{"$f":"MAX(0,M484-(M536+M545))","v":12570}]
[null,null,null,null,null,null,null,null,null,null,"remaining allowances",{"$f":"A205","v":"c4.75o"},{"$f":"MAX(0,M542-M545)","v":12570}]
[null,null,null,null,null,null,null,null,null,null,null,null,null,null,null,null,null,{"$f":"'NS income (c1)'!I184&\" minus \"&Q568","v":"c1.57 minus c4.75q"}]
[null,null,null,null,null,null,null,null,null,null,null,null,{"$f":"\"(\"&'Divs (c3)'!G69&\" + \"&'Divs (c3)'!G75&\" + \"&'Divs (c3)'!G80&\") minus \"&L569","v":"(c3.18 + c3.19 + c3.20) minus c4.75o"},null,null,null,{"$f":"A208","v":"c4.75r"},{"$f":"MAX(0,'NS income (c1)'!J184-R568)","v":0}]
[null,null,null,null,null,null,null,null,null,null,"Gains etc after allowances",{"$f":"A206","v":"c4.75p"},{"$f":"MAX(0,('Divs (c3)'!H69+'Divs (c3)'!H75+'Divs (c3)'!H80)-M569)","v":0},null,null,null,null,{"$f":"\"lower of \"&L530&\" and\"","v":"lower of c4.75c and"}]
[null,null,null,null,null,null,null,null,null,null,null,null,null,null,null,null,null,{"$f":"\"((BR_band (\"&DOLLAR(BR_band,0)&\") + \"&L511&\") minus \"&Q571&\")\"","v":"((BR_band (£37,700) + c4.75) minus c4.75r)"}]
[null,null,null,null,null,null,null,null,null,null,null,null,{"$f":"L530&\" minus \"&Q574","v":"c4.75c minus c4.75s"},null,null,"Max SavNilBR",{"$f":"A209","v":"c4.75s"},{"$f":"MAX(0,MIN(M530,((BR_band+M511)-R571)))","v":0},null,null,{"$f":"MIN(M530,MAX(0,((BR_band+M511)-R571)))","v":0}]
[null,null,null,null,null,null,null,null,null,null,"Max SavNilHR",{"$f":"A210","v":"c4.75t"},{"$f":"MAX(0,M530-R574)","v":0}]
[]
[null,null,null,null,null,null,null,null,null,null,null,null,{"$f":"L508&\" minus \"&L575","v":"c4.74 minus c4.75t"}]
[null,null,null,null,null,null,null,null,null,null,"Income in BR + HR",{"$f":"A216","v":"c4.75u"},{"$f":"MAX(0,M508-M575)","v":0},"*"]
[]
[null,null,null,null,null,null,null,null,null,null,null,null,null,null,null,null,null,"Set to zero"]
[null,null,null,null,"Above BR for non-savings",null,null,null,"Above BR for all income",null,null,null,"Above BR for savings and dividends #2",null,null,null,{"$f":"A217","v":"c4.76"}]
[]
[null,null,null,null,null,null,null,null,null,null,null,null,{"$f":"\"if \"&L566&\" > 0 (zero)\"","v":"if c4.75n > 0 (zero)"}]
[null,null,null,null,null,null,null,null,null,null,null,null,{"$f":"\"and ((\"&L566&\" > \"&L554&\")\"","v":"and ((c4.75n > c4.75j)"}]
[null,null,null,null,{"$f":"\"if \"&L518&\" > (\"&'Status (c3a)'!H33&\" + \"&'Status (c3a)'!L33&\" + \"&'Status (c3a)'!P33&\" + \"&L511&\")\"","v":"if c4.75a > (c3a.1a + c3a.2 + c3a.2a + c4.75)"},null,null,null,{"$f":"\"if \"&L578&\" > (BR_band (\"&DOLLAR(BR_band,0)&\") + \"&L511&\")\"","v":"if c4.75u > (BR_band (£37,700) + c4.75)"},null,null,null,{"$f":"\"or (\"&L563&\" + \"&L566&\" > T_P_A (\"&DOLLAR(T_P_A,0)&\")))\"","v":"or (c4.75m + c4.75n > T_P_A (£1,260)))"},null,null,null,null,{"$f":"\"if \"&D590&\" + \"&H590&\" + \"&L590&\" > 0 (zero)\"","v":"if c4.76a + c4.76b + c4.76b1 > 0 (zero)"}]
[null,null,null,null,{"$f":"D590&\" = 1 (HR_case? 'Y')\"","v":"c4.76a = 1 (HR_case? 'Y')"},null,null,null,{"$f":"H590&\" = 1 (HR_case? 'Y')\"","v":"c4.76b = 1 (HR_case? 'Y')"},null,null,null,{"$f":"L590&\" = 1 (HR_case? 'Y')\"","v":"c4.76b1 = 1 (HR_case? 'Y')"},null,null,null,null,{"$f":"Q590&\" = 1 (HR_case? 'Y')\"","v":"c4.76c = 1 (HR_case? 'Y')"}]
[null,null,null,null,"else",null,null,null,"else",null,null,null,"else",null,null,null,null,"else"]
[null,null,null,null,{"$f":"D590&\" = 0 (HR_case? 'N')\"","v":"c4.76a = 0 (HR_case? 'N')"},null,null,null,{"$f":"H590&\" = 0 (HR_case? 'N')\"","v":"c4.76b = 0 (HR_case? 'N')"},null,null,null,{"$f":"L590&\" = 0 (HR_case? 'N')\"","v":"c4.76b1 = 0 (HR_case? 'N')"},null,null,null,null,{"$f":"Q590&\" = 0 (HR_case? 'N')\"","v":"c4.76c = 0 (HR_case? 'N')"}]
[null,null,null,null,"end if",null,null,null,"end if",null,null,null,"end if",null,null,null,null,"end if"]
[null,null,null,{"$f":"A218","v":"c4.76a"},{"$f":"IF(M518>('Status (c3a)'!I33+'Status (c3a)'!M33+'Status (c3a)'!Q33+M511),1,0)","v":0},null,"PSA in BR",{"$f":"A219","v":"c4.76b"},{"$f":"IF(M578>BR_band+M511,1,0)","v":0},null,"PSA in HR",{"$f":"A220","v":"c4.76b1"},{"$f":"IF(AND(M566>0,OR((M566>M554),(M563+M566>T_P_A))),1,0)","v":0},null,null,"HR_case for MAT",{"$f":"A221","v":"c4.76c"},{"$f":"IF(E590+I590+M590>0,1,0)","v":0}]
[null,{"$f":"\"if \"&'Deductions (c4)'!H473&\" = T_P_A \"&DOLLAR(T_P_A,0)&\" and \"&'Deductions (c4)'!Q590&\" = 1 (HR_case? YES)\"","v":"if c4.68 = T_P_A £1,260 and c4.76c = 1 (HR_case? YES)"}]
[null,{"$f":"'Deductions (c4)'!H473&\" = 0 (zero)\"","v":"c4.68 = 0 (zero)"}]
[null,{"$f":"\"Calculate boxes \"&'Deductions (c4)'!L477&\" through \"&'Deductions (c4)'!Q590","v":"Calculate boxes c4.69 through c4.76c"}]
[null,"else"]
[null,{"$f":"\"Retain calculation from \"&'Deductions (c4)'!H473&\" to \"&'Deductions (c4)'!Q590","v":"Retain calculation from c4.68 to c4.76c"}]
[null,"end if"]
[]
[null,"Personal savings allowance"]
[null,{"$f":"\"Boxes \"&L613&\" and \"&L628&\" are used to calculate the amount of personal savings allowance\"","v":"Boxes c4.77 and c4.78 are used to calculate the amount of personal savings allowance"}]
[]
[null,"HR Case for PSA"]
[null,"s12B (8) (b) ITA 2007 - each of the following is “higher-rate income”—"]
[null,"(i)     income on which income tax is charged at the higher rate[, default higher rate]2 or dividend upper rate,"]
[null,"(ii)     income on which income tax would be charged at the higher rate[, or default higher rate,]2 but for section 12A (income charged at savings nil rate),"]
[null,"(iii)     income on which income tax would be charged at the dividend upper rate but for section 13A (income charged at dividend nil rate), and"]
[null,"(iv)     income of an individual who is a Scottish taxpayer or Welsh taxpayer which would, if the individual were not a Scottish taxpayer or Welsh taxpayer (as the case may be), be income on which income tax is charged at the higher rate [or default higher rate]2.]1"]
[]
[null,null,null,null,null,null,null,null,null,null,null,null,{"$f":"\"If \"&L508&\" > (BR_band (\"&DOLLAR(BR_band,0)&\") + \"&L511&\")\"","v":"If c4.74 > (BR_band (£37,700) + c4.75)"}]
[null,null,null,null,null,null,null,null,null,null,null,null,{"$f":"L613&\" = 1 (HR_case? 'Y')\"","v":"c4.77 = 1 (HR_case? 'Y')"}]
[null,null,null,null,null,null,null,null,null,null,null,null,"else"]
[null,null,null,null,null,null,null,null,null,null,null,null,{"$f":"L613&\" = 0 (HR_case? 'N')\"","v":"c4.77 = 0 (HR_case? 'N')"}]
[null,null,null,null,null,null,null,null,null,null,null,null,"end if"]
[null,null,null,null,null,null,null,null,null,null,null,{"$f":"A223","v":"c4.77"},{"$f":"IF(M508>BR_band+M511,1,0)","v":0}]
[]
[null,"AHR Case for PSA"]
[null,"s12B (8) (a) ITA 2007 - each of the following is “additional-rate income”—"]
[null,"(i)     income on which income tax is charged at the additional rate[, default additional rate]2 or dividend additional rate,"]
[null,"(ii)     income on which income tax would be charged at the additional rate[, or default additional rate,]2 but for section 12A (income charged at savings nil rate),"]
[null,"(iii)     income on which income tax would be charged at the dividend additional rate but for section 13A (income charged at dividend nil rate), and"]
[null,"(iv)     income of an individual who is a Scottish taxpayer or Welsh taxpayer which would, if the individual were not a Scottish taxpayer or Welsh taxpayer (as the case may be), be income on which income tax is charged at the additional rate [or default additional rate]2]1"]
[null,"s6C ITA 2007 The default rates of income tax for the tax year 2018–19 are: default basic rate 20%; default higher rate 40%; default additional rate 45% (FA 2018 s 4(1)) (unchanged from tax year 2017–18)."]
[]
[null,null,null,null,null,null,null,null,null,null,null,null,{"$f":"\"If \"&L508&\" > (AHR_band (\"&DOLLAR(AHR_band,0)&\") + \"&L511&\")\"","v":"If c4.74 > (AHR_band (£125,140) + c4.75)"}]
[null,null,null,null,null,null,null,null,null,null,null,null,{"$f":"L628&\" = 1 (AHR_case? 'Y')\"","v":"c4.78 = 1 (AHR_case? 'Y')"}]
[null,null,null,null,null,null,null,null,null,null,null,null,"else"]
[null,null,null,null,null,null,null,null,null,null,null,null,{"$f":"L628&\" = 0 (AHR_case? 'N')\"","v":"c4.78 = 0 (AHR_case? 'N')"}]
[null,null,null,null,null,null,null,null,null,null,null,null,"end if"]
[null,null,null,null,null,null,null,null,null,null,null,{"$f":"A224","v":"c4.78"},{"$f":"IF(M508>AHR_band+M511,1,0)","v":0}]
[]
[null,null,null,null,null,null,null,null,null,null,null,null,{"$f":"\"if \"&L628&\" = 1 (Y)\"","v":"if c4.78 = 1 (Y)"}]
[null,null,null,null,null,null,null,null,null,null,null,null,{"$f":"L639&\" = PSA_AHR (\"&DOLLAR(PSA_AHR,0)&\")\"","v":"c4.79 = PSA_AHR (£0)"}]
[null,null,null,null,null,null,null,null,null,null,null,null,"else"]
[null,null,null,null,null,null,null,null,null,null,null,null,{"$f":"\"if \"&L613&\" = 1 (Y)\"","v":"if c4.77 = 1 (Y)"}]
[null,null,null,null,null,null,null,null,null,null,null,null,{"$f":"L639&\" = PSA_HR (\"&DOLLAR(PSA_HR,0)&\")\"","v":"c4.79 = PSA_HR (£500)"}]
[null,null,null,null,null,null,null,null,null,null,null,null,"else"]
[null,null,null,null,null,null,null,null,null,null,null,null,{"$f":"L639&\" = PSA_BR (\"&DOLLAR(PSA_BR,0)&\")\"","v":"c4.79 = PSA_BR (£1,000)"}]
[null,null,null,null,null,null,null,null,null,null,null,null,"end if"]
[null,null,null,null,null,null,null,null,null,null,null,null,"end if"]
[null,"Personal Savings Allowance",null,null,null,null,null,null,null,null,null,{"$f":"A229","v":"c4.79"},{"$f":"IF(AHR_case_PSA=1,PSA_AHR,IF(HR_case_PSA=1,PSA_HR,PSA_BR))","v":1000}]
[]
[]
[]
[]
[]
[null,null,null,null,null,null,null,null,null,null,null,null,{"$f":"L646&\" = DA (\"&DOLLAR(DTA,0)&\")\"","v":"c4.80 = DA (£500)"}]
[null,"Dividend Allowance",null,null,null,null,null,null,null,null,null,{"$f":"A230","v":"c4.80"},{"$f":"DTA","v":500}]
[null,null,null,null,null,null,null,null,null,null,null,null,{"$f":"\"copy to \"&'tax it (c6)'!A34","v":"copy to c6.24"}]

{"sheet":"Taxable (c5)","index":61,"n_rows":419,"n_cols":56,"rows_kept":419,"cut":false,"hidden":true,"merged":[]}
["c5.1","Calculate taxable income",null,null,null,null,"If any box in this stage is negative substitute zero"]
["c5.2",null,"Step 1"]
["c5.2a"]
["c5.3"]
["c5.3a"]
["c5.4"]
["c5.4a",null,null,null,null,{"$f":"'Deductions (c4)'!L484&\" minus (\"&'Deductions (c4)'!H281&\" + \"&'Deductions (c4)'!H294&\" + \"&'Deductions (c4)'!H310&\" + \"&'Deductions (c4)'!H321&\" + \"&'Deductions (c4)'!H413&\")\"","v":"c4.70 minus (c4.47.19 + c4.47.23 + c4.47.27 + c4.47.30 + c4.63b)"},null,null,null,null,null,null,null,null,null,null,null,null,null,null,null,{"$f":"'Status (c3a)'!L33&\" + \"&'Deductions (c4)'!H383","v":"c3a.2 + c4.59"},null,null,null,null,null,null,null,null,null,null,null,null,null,null,null,{"$f":"\"BR_band (\"&DOLLAR(BR_band,0)&\") + \"&'Deductions (c4)'!H383","v":"BR_band (£37,700) + c4.59"}]
["c5.4b",null,null,"Total allowances and deductions",{"$f":"A1","v":"c5.1"},{"$f":"MAX(0,'Deductions (c4)'!M484-('Deductions (c4)'!I281+'Deductions (c4)'!I294+'Deductions (c4)'!I310+'Deductions (c4)'!I321+'Deductions (c4)'!I413))","v":12570},null,null,null,null,null,null,null,null,null,null,null,null,null,"Extended basic rate band for non-saving-non-dividend income",{"$f":"A2","v":"c5.2"},{"$f":"'Status (c3a)'!M33+'Deductions (c4)'!I383","v":37700},null,null,null,null,null,null,null,null,null,null,null,null,null,"Basic rate band for saving and dividend income",{"$f":"A3","v":"c5.2a"},{"$f":"BR_band+'Deductions (c4)'!I383","v":37700}]
["c5.5"]
["c5.6"]
["c5.7"]
["c5.8",null,null,null,null,"If calculation type = non-resident"]
["c5.9",null,null,null,null,{"$f":"E17&\" = \"&'non-res (c91)'!M33&\" minus (\"&'Deductions (c4)'!H281&\" + \"&'Deductions (c4)'!H321&\" + \"&'Deductions (c4)'!H413&\")\"","v":"c5.3 = c91.6 minus (c4.47.19 + c4.47.30 + c4.63b)"}]
["c5.10",null,null,null,null,"else"]
["c5.11",null,null,null,null,{"$f":"E17&\" = \"&'Deductions (c4)'!L418","v":"c5.3 = c4.63c"}]
["c5.11a",null,null,null,null,"end if",null,null,null,null,null,null,null,null,null,null,null,"set to zero",null,null,null,"set to zero",null,null,null,null,null,null,null,"set to zero",null,null,null,"Set to zero",null,null,null,"set to zero",null,null,null,null,null,null,null,"set to zero"]
["c5.12",null,"Non-savings income",null,"c5.3",{"$f":"IF(non_resident,MAX(0,'non-res (c91)'!N33-('Deductions (c4)'!I281+'Deductions (c4)'!I321+'Deductions (c4)'!I413)),'Deductions (c4)'!M418)","v":0},null,null,null,null,null,null,null,null,null,null,{"$f":"A5","v":"c5.3a"},null,null,null,{"$f":"A6","v":"c5.4"},null,null,null,null,null,null,null,{"$f":"A7","v":"c5.4a"},0,null,null,{"$f":"A8","v":"c5.4b"},0,null,null,{"$f":"A9","v":"c5.5"},0,null,null,null,null,null,null,{"$f":"A10","v":"c5.6"},0,null,"Non-savings income"]
["c5.13"]
["c5.14"]
["c5.15",null,null,null,null,null,null,null,null,null,null,null,null,null,null,null,null,null,null,null,null,"BR_rate (20%)",null,null,null,null,null,null,null,null,null,null,null,null,null,null,null,"HR_rate (40%)",null,null,null,null,null,null,null,"AHR_rate (45%)"]
["c5.16"]
["c5.17"]
["c5.18",null,null,null,null,"Set to zero",null,null,null,null,null,null,null,null,null,null,null,null,null,null,null,"Set to zero",null,null,null,null,null,null,null,null,null,null,null,null,null,null,null,"Set to zero",null,null,null,null,null,null,null,"Set to zero"]
["c5.19",null,"Lump sum payments",null,{"$f":"A11","v":"c5.7"},0,null,null,null,null,null,null,null,null,null,null,null,null,null,null,{"$f":"A12","v":"c5.8"},0,null,null,null,null,null,null,null,null,null,null,null,null,null,null,{"$f":"A13","v":"c5.9"},0,null,null,null,null,null,null,{"$f":"A14","v":"c5.10"},0,null,"Lump sum payments"]
["c5.20"]
["c5.20a"]
["c5.20b",null,null,null,null,null,null,null,null,"SR_rate 0%",null,null,null,"SNil_rate 0%",null,null,null,null,null,null,null,"BR_rate (20%)",null,null,null,null,null,null,null,null,null,null,null,"HR 0%",null,null,null,"HR_rate (40%)",null,null,null,"AR 0%",null,null,null,"AHR_rate (45%)"]
["c5.20c"]
["c5.21",null,null,null,null,null,null,null,null,null,null,null,null,{"$f":"\"lower of (\"&E36&\" minus \"&I36&\") and \"&'Deductions (c4)'!L639","v":"lower of (c5.11 minus c5.12) and c4.79"},null,null,null,null,null,null,null,null,null,null,null,null,null,null,null,null,null,null,null,{"$f":"\"(\"&'Status (c3a)'!AD33&\" + \"&'Deductions (c4)'!H383&\") minus (\"&E17&\" + \"&M36&\" + \"&U36&\")\"","v":"(c3a.3a + c4.59) minus (c5.3 + c5.15 + c5.16)"},null,null,null,null,null,null,null,{"$f":"\"from \"&'Deductions (c4)'!L639","v":"from c4.79"}]
["c5.22",null,null,null,null,null,null,null,null,null,null,null,{"$f":"A18","v":"c5.13"},{"$f":"MIN(MAX(0,F36-J36),'Deductions (c4)'!M639)","v":0},null,null,null,null,null,null,null,null,null,null,null,null,null,null,null,null,null,null,{"$f":"A22","v":"c5.17"},{"$f":"MAX(0,('Status (c3a)'!AE33+'Deductions (c4)'!I383)-(F17+N36+V36))","v":125140},null,null,null,null,null,null,{"$f":"A26","v":"c5.20a"},{"$f":"PSA","v":1000}]
["c5.23",null,null,null,null,"If calculation type = non-resident",null,null,null,null,null,null,null,null,null,null,null,null,null,null,null,null,null,null,null,null,null,null,null,null,null,null,null,"lower of",null,null,null,null,null,null,null,{"$f":"\"lower of \"&E36&\" minus\"","v":"lower of c5.11 minus"}]
["c5.24",null,null,null,null,{"$f":"E36&\" = \"&'non-res (c91)'!M59","v":"c5.11 = c91.14"},null,null,null,{"$f":"\"lower of \"&E36&\" and SR_band (\"&DOLLAR(SR_band,0)&\")\"","v":"lower of c5.11 and SR_band (£5,000)"},null,null,null,{"$f":"\"lower of \"&M30&\" and (\"&AK8&\" minus \"&E17&\")\"","v":"lower of c5.13 and (c5.2a minus c5.3)"},null,null,null,null,null,null,null,null,null,null,null,null,null,null,null,null,null,null,null,{"$f":"\"(\"&AG30&\" and (\"&'Deductions (c4)'!L639&\" minus \"&M33&\"))\"","v":"(c5.17 and (c4.79 minus c5.14))"},null,null,null,null,null,null,null,{"$f":"\"(\"&M36&\" + \"&U36&\" + \"&AG36&\" + \"&AK36&\") and\"","v":"(c5.15 + c5.16 + c5.19 + c5.20) and"}]
["c5.25",null,null,null,null,"else",null,null,{"$f":"A16","v":"c5.11a"},{"$f":"MIN(F36,SR_band)","v":0},null,null,{"$f":"A19","v":"c5.14"},{"$f":"MAX(0,MIN(N30,(AL8-F17)))","v":0},null,null,null,null,null,null,null,null,null,null,null,null,null,null,null,null,null,null,{"$f":"A23","v":"c5.18"},{"$f":"MAX(0,MIN(AH30,PSA-N33))","v":1000},null,null,null,"lower of",null,null,null,{"$f":"\"(\"&'Deductions (c4)'!L639&\" minus (\"&M33&\" + \"&AG36&\"))\"","v":"(c4.79 minus (c5.14 + c5.19))"}]
["c5.26",null,null,null,null,{"$f":"E36&\" = \"&'Savings (c2)'!H79&\" minus \"&'Deductions (c4)'!H294","v":"c5.11 = c2.19 minus c4.47.23"},null,null,null,{"$f":"\"lower of \"&I33&\" and\"","v":"lower of c5.11a and"},null,null,null,null,null,null,null,null,null,null,null,{"$f":"\"lower of (\"&E36&\" minus \"&M36&\") and\"","v":"lower of (c5.11 minus c5.15) and"},null,null,null,null,null,null,null,null,null,null,null,{"$f":"\"lower of \"&AG33&\" and\"","v":"lower of c5.18 and"},null,null,null,{"$f":"\"(\"&E36&\" minus (\"&M36&\" + \"&U36&\" + \"&AG36&\")) and\"","v":"(c5.11 minus (c5.15 + c5.16 + c5.19)) and"},null,null,{"$f":"A27","v":"c5.20b"},{"$f":"MAX(0,MIN(F36-(N36+V36+AH36+AL36),MAX(0,PSA-(N33+AH36))))","v":0},null,null,null,{"$f":"E36&\" minus\"","v":"c5.11 minus"}]
["c5.27",null,null,null,null,"end if",null,null,null,{"$f":"\"((\"&E8&\" + SR_band (\"&DOLLAR(SR_band,0)&\")) minus \"&E17&\")\"","v":"((c5.1 + SR_band (£5,000)) minus c5.3)"},null,null,null,{"$f":"I36&\" + \"&M33","v":"c5.12 + c5.14"},null,null,null,null,null,null,null,{"$f":"\"(\"&AK8&\" minus (\"&E17&\" + \"&M36&\"))\"","v":"(c5.2a minus (c5.3 + c5.15))"},null,null,null,null,null,null,null,null,null,null,null,{"$f":"\"(\"&E36&\" minus (\"&M36&\" + \"&U36&\"))\"","v":"(c5.11 minus (c5.15 + c5.16))"},null,null,null,{"$f":"\"(\"&AG30&\" minus \"&AG36&\")\"","v":"(c5.17 minus c5.19)"},null,null,null,{"$f":"\"lower of \"&AO30&\" and \"&AO34","v":"lower of c5.20a and c5.20b"},null,null,null,{"$f":"\"(\"&M36&\" + \"&U36&\" + \"&AG36&\" + \"&AK36&\" + \"&AO36&\")\"","v":"(c5.15 + c5.16 + c5.19 + c5.20 + c5.20c)"}]
["c5.28",null,"Savings income",null,{"$f":"A15","v":"c5.11"},{"$f":"IF(non_resident,'non-res (c91)'!N59,'Savings (c2)'!I79-'Deductions (c4)'!I294)","v":0},null,null,{"$f":"A17","v":"c5.12"},{"$f":"MIN(J33,MAX(0,(F8+SR_band)-F17))","v":0},null,null,{"$f":"A20","v":"c5.15"},{"$f":"J36+N33","v":0},null,null,null,null,null,null,{"$f":"A21","v":"c5.16"},{"$f":"MAX(0,MIN(F36-N36,AL8-(F17+N36)))","v":0},null,null,null,null,null,null,null,null,null,null,{"$f":"A24","v":"c5.19"},{"$f":"MAX(0,MIN(AH33,F36-(N36+V36)))","v":0},null,null,{"$f":"A25","v":"c5.20"},{"$f":"MAX(0,MIN((F36-(N36+V36+AH36)),(AH30-AH36)))","v":0},null,null,{"$f":"A28","v":"c5.20c"},{"$f":"MAX(0,MIN(AP30,AP34))","v":0},null,null,{"$f":"A29","v":"c5.21"},{"$f":"MAX(0,F36-(N36+V36+AH36+AL36+AP36))","v":0},null,"Savings income"]
["c5.29"]
["c5.30"]
["c5.31",null,null,null,null,null,null,null,null,null,null,null,null,"DivNil_rate 0%",null,null,null,null,null,null,null,"DivBR_rate (8.75%)",null,null,null,null,null,null,null,null,null,null,null,"HR 0%",null,null,null,"DivHR_rate (33.75%)",null,null,null,"AR 0%",null,null,null,"DivAR_rate (39.35%)"]
["c5.32"]
["c5.33",null,null,null,null,null,null,null,null,null,null,null,null,null,null,null,null,null,null,null,null,null,null,null,null,null,null,null,null,null,null,null,null,{"$f":"\"(\"&'Status (c3a)'!AD33&\" + \"&'Deductions (c4)'!H383&\") minus (\"&E17&\" + \"&E36&\" + \"&M49&\" + \"&U49&\")\"","v":"(c3a.3a + c4.59) minus (c5.3 + c5.11 + c5.24 + c5.25)"}]
["c5.34",null,null,null,null,null,null,null,null,null,null,null,null,null,null,null,null,null,null,null,null,null,null,null,null,null,null,null,null,null,null,null,{"$f":"A34","v":"c5.26"},{"$f":"MAX(0,('Status (c3a)'!AE33+'Deductions (c4)'!I383)-(F17+F36+N49+V49))","v":125140},null,null,null,null,null,null,null,{"$f":"\"AHR_band (\"&DOLLAR(AHR_band,0)&\") minus (\"&E17&\" + \"&E36&\")\"","v":"AHR_band (£125,140) minus (c5.3 + c5.11)"}]
["c5.34a",null,null,null,null,null,null,null,null,null,null,null,null,null,null,null,null,null,null,null,null,null,null,null,null,null,null,null,null,null,null,null,null,{"$f":"\"lower of (\"&'Deductions (c4)'!L646&\" and \"&AG42&\")\"","v":"lower of (c4.80 and c5.26)"},null,null,null,null,null,null,{"$f":"A39","v":"c5.31"},{"$f":"MAX(0,AHR_band-(F17+F36))","v":125140}]
["c5.34a1",null,null,null,null,"If calculation type = non-resident",null,null,null,null,null,null,null,{"$f":"\"lower of (\"&E49&\" and \"&'Deductions (c4)'!L646&\")\"","v":"lower of (c5.22 and c4.80)"},null,null,null,null,null,null,null,null,null,null,null,null,null,null,null,null,null,null,{"$f":"A35","v":"c5.27"},{"$f":"MAX(0,MIN('Deductions (c4)'!M646,AH42))","v":500},null,null,null,null,null,null,null,{"$f":"\"lower of \"&E49&\" minus\"","v":"lower of c5.22 minus"}]
["c5.34b",null,null,null,null,{"$f":"E49&\" = \"&'non-res (c91)'!M96","v":"c5.22 = c91.23"},null,null,null,null,null,null,{"$f":"A31","v":"c5.23"},{"$f":"MIN(F49,'Deductions (c4)'!M646)","v":0},null,null,null,null,null,null,null,null,null,null,null,null,null,null,null,null,null,null,null,{"$f":"\"lower of (\"&AG44&\" and (\"&'Deductions (c4)'!L646&\" minus \"&M49&\"))\"","v":"lower of (c5.27 and (c4.80 minus c5.24))"},null,null,null,null,null,null,null,{"$f":"\"(\"&M49&\" + \"&U49&\" + \"&AG49&\" + \"&AK49&\") and\"","v":"(c5.24 + c5.25 + c5.29 + c5.30) and"}]
["c5.34b1",null,null,null,null,"else",null,null,null,null,null,null,null,null,null,null,null,null,null,null,null,{"$f":"\"lower of (\"&E49&\" minus \"&M49&\") and\"","v":"lower of (c5.22 minus c5.24) and"},null,null,null,null,null,null,null,null,null,null,{"$f":"A36","v":"c5.28"},{"$f":"MAX(0,MIN(AH44,'Deductions (c4)'!M646-N49))","v":500},null,null,null,"lower of",null,null,null,{"$f":"\"(\"&'Deductions (c4)'!L646&\" minus (\"&M49&\" + \"&AG49&\"))\"","v":"(c4.80 minus (c5.24 + c5.29))"}]
["c5.34c",null,null,null,null,{"$f":"E49&\" = \"&'Divs (c3)'!G58&\" minus \"&'Deductions (c4)'!H310","v":"c5.22 = c3.15 minus c4.47.27"},null,null,null,null,null,null,null,{"$f":"\"lower of (\"&M45&\" and\"","v":"lower of (c5.23 and"},null,null,null,null,null,null,null,{"$f":"\"(\"&AK8&\" minus\"","v":"(c5.2a minus"},null,null,null,null,null,null,null,null,null,null,null,{"$f":"\"lower of \"&AG46&\" and\"","v":"lower of c5.28 and"},null,null,null,{"$f":"E49&\" minus (\"&M49&\" + \"&U49&\" + \"&AG49&\") and\"","v":"c5.22 minus (c5.24 + c5.25 + c5.29) and"},null,null,{"$f":"A40","v":"c5.32"},{"$f":"MAX(0,MIN(F49-(N49+V49+AH49+AL49),('Deductions (c4)'!M646-(N49+AH49))))","v":0},null,null,null,{"$f":"E49&\" minus \"","v":"c5.22 minus "}]
["c5.34d",null,null,null,null,"end if",null,null,null,null,null,null,null,{"$f":"\"(\"&AK8&\" minus (\"&E17&\" + \"&E36&\")))\"","v":"(c5.2a minus (c5.3 + c5.11)))"},null,null,null,null,null,null,null,{"$f":"\"(\"&E17&\" + \"&E36&\" + \"&M49&\"))\"","v":"(c5.3 + c5.11 + c5.24))"},null,null,null,null,null,null,null,null,null,null,null,{"$f":"\"(\"&E49&\" minus (\"&M49&\" + \"&U49&\"))\"","v":"(c5.22 minus (c5.24 + c5.25))"},null,null,null,{"$f":"\"(\"&AG42&\" minus \"&AG49&\")\"","v":"(c5.26 minus c5.29)"},null,null,null,{"$f":"\"lower of \"&AO43&\" and \"&AO47","v":"lower of c5.31 and c5.32"},null,null,null,{"$f":"\"(\"&M49&\" + \"&U49&\" + \"&AG49&\" + \"&AK49&\" + \"&AO49&\")\"","v":"(c5.24 + c5.25 + c5.29 + c5.30 + c5.33)"}]
["c5.35",null,"Dividends income",null,{"$f":"A30","v":"c5.22"},{"$f":"IF(non_resident,'non-res (c91)'!N96,'Divs (c3)'!H58-'Deductions (c4)'!I310)","v":0},null,null,null,null,null,null,{"$f":"A32","v":"c5.24"},{"$f":"MAX(0,MIN(N45,AL8-(F17+F36)))","v":0},null,null,null,null,null,null,{"$f":"A33","v":"c5.25"},{"$f":"MAX(0,MIN(MAX(0,F49-N49),AL8-(F17+F36+N49)))","v":0},null,null,null,null,null,null,null,null,null,null,{"$f":"A37","v":"c5.29"},{"$f":"MAX(0,MIN(AH46,F49-(N49+V49)))","v":0},null,null,{"$f":"A38","v":"c5.30"},{"$f":"MAX(0,MIN((F49-(N49+V49+AH49)),(AH42-AH49)))","v":0},null,null,{"$f":"A41","v":"c5.33"},{"$f":"MAX(0,MIN(AP43,AP47))","v":0},null,null,{"$f":"A42","v":"c5.34"},{"$f":"MAX(0,F49-(N49+V49+AH49+AL49+AP49))","v":0},null,"Dividends income"]
["c5.36"]
["c5.37"]
["c5.38"]
["c5.39"]
["c5.40"]
["c5.41"]
["c5.42",null,null,null,null,{"$f":"\"from \"&'NS income (c1)'!I188","v":"from c1.58"},null,null,null,null,null,null,null,null,null,null,null,"set to zero",null,null,null,"set to zero",null,null,null,null,null,null,null,"set to zero",null,null,null,null,null,null,null,"set to zero",null,null,null,null,null,null,null,"set to zero"]
["c5.43",null,"Lump sum payments",null,{"$f":"A43","v":"c5.34a"},{"$f":"'NS income (c1)'!J188","v":0},null,null,null,null,null,null,null,null,null,null,{"$f":"A44","v":"c5.34a1"},0,null,null,{"$f":"A45","v":"c5.34b"},0,null,null,null,null,null,null,{"$f":"A46","v":"c5.34b1"},0,null,null,null,null,null,null,{"$f":"A47","v":"c5.34c"},0,null,null,null,null,null,null,{"$f":"A48","v":"c5.34d"},0,null,"Lump sum payments"]
["c5.43a"]
["c5.43b"]
["c5.43c","Calculate taxable income",null,null,null,null,null,null,null,"Additional rate",null,null,null,null,null,null,null,"Beneficial Ordering",null,null,null,null,null,null,null,null,null,null,null,"Beneficial Ordering",null,null,null,"Intermediate rate",null,null,null,"Basic rate",null,null,null,"Starter rate",null,null,null,null,null,null,null,"Allowances and deductions",null,null,null,"Taxable income"]
["c5.43d",null,"Step 2",null,null,null,null,null,null,"More beneficial for c5.1 to free up savings starting rate",null,null,null,"Income in Higher rate before c5.1",null,null,null,"Higher rate"]
["c5.43e"]
["c5.43f",null,null,null,null,null,null,null,null,null,null,null,null,null,null,null,null,null,null,null,null,null,null,null,null,null,null,null,null,null,null,null,null,null,null,null,null,null,null,null,null,null,null,null,null,null,null,null,null,{"$f":"\"lower of \"&AS75&\" and \"&AS100","v":"lower of c5.66b and c5.66i4"}]
["c5.44",null,null,null,null,null,null,null,null,null,null,null,null,null,null,null,null,null,null,null,null,null,null,null,null,null,null,null,null,null,null,null,null,null,null,null,null,null,null,null,null,null,null,null,null,null,null,"Allowances to NS available",{"$f":"A367","v":"c5.66o"},{"$f":"MIN(AT75,AT100)","v":0}]
["c5.45",null,null,null,null,null,null,null,null,null,null,null,null,null,null,null,null,null,null,null,null,null,null,null,null,{"$f":"\"lower of \"&M176&\" and ((\"&E149&\" + \"&I140&\") minus (\"&Q149&\" + \"&Q330&\" + \"&U271&\"))\"","v":"lower of c5.50 and ((c5.35 + c5.43e) minus (c5.52h + c5.56 + c5.56p))"},null,null,null,null,null,null,null,null,null,null,null,null,null,null,null,null,null,null,null,null,null,null,null,{"$f":"\"lower of (\"&E199&\" minus (\"&I199&\" + \"&Q199&\" + \"&AK199&\" + \"&AS199&\" + \"&AS108&\")) and \"&AW64","v":"lower of (c5.37 minus (c5.46 + c5.52l + c5.64 + c5.68a + c5.66j3)) and c5.66o"}]
["c5.45a",null,null,null,null,null,null,null,null,null,null,null,null,null,null,null,null,"PA more beneficial against non-savings or savings?",null,null,null,null,null,null,{"$f":"A200","v":"c5.58a.1a"},{"$f":"MIN(N176,((F149+J140)-(R149+R330+V271)))","v":0},null,null,null,null,null,null,null,null,null,null,null,null,null,null,null,null,null,null,null,null,null,"Sav to reduce",{"$f":"A368","v":"c5.66p"},{"$f":"MAX(0,MIN(F199-(J199+R199+AL199+AT199+AT108),AX64))","v":0}]
["c5.45b",null,null,null,null,null,null,null,null,null,null,null,null,null,null,null,null,null,null,null,null,null,null,null,null,{"$f":"M176&\" minus \"&Y66","v":"c5.50 minus c5.58a.1a"},null,null,null,null,null,null,null,null,null,null,null,null,null,null,null,null,null,null,null,null,null,null,null,{"$f":"\"lower of \"&AW64&\" and \"&AW66","v":"lower of c5.66o and c5.66p"}]
["c5.45c",null,null,null,null,null,null,null,null,null,null,null,null,null,null,null,null,null,null,null,null,null,null,null,{"$f":"A201","v":"c5.58a.1b"},{"$f":"MAX(0,N176-Z66)","v":0},null,null,null,null,null,null,null,null,null,null,null,null,null,null,null,null,null,null,null,null,null,"Max allowances NS to Sav",{"$f":"A369","v":"c5.66p1"},{"$f":"MIN(AX64,AX66)","v":0}]
["c5.46",null,null,null,null,null,null,null,null,null,null,null,null,null,null,null,null,null,null,null,null,null,null,null,null,{"$f":"\"lower of \"&Y66&\" and \"&U219","v":"lower of c5.58a.1a and c5.56.1"},null,null,null,null,null,null,null,null,null,null,null,null,null,null,null,null,null,null,null,null,null,null,null,{"$f":"\"lower of (\"&AS91&\" minus \"&AS112&\") and \"&AW68","v":"lower of (c5.66i minus c5.66j5) and c5.66p1"}]
["c5.47",null,null,null,null,null,null,null,null,null,null,null,null,null,null,null,null,{"$f":"\"if \"&M123&\" <= BR_band (\"&DOLLAR(BR_band,0)&\") + \"&'Deductions (c4)'!H383","v":"if c5.48b <= BR_band (£37,700) + c4.59"},null,null,null,null,null,"Ringfenced Allce for Lump Sum offered to Lump Sum vs Non-Sav",{"$f":"A202","v":"c5.58a.1"},{"$f":"MIN(Z66,V219)","v":0},null,null,null,null,null,null,null,null,null,null,null,null,null,null,null,null,null,null,null,null,null,"Max Sav",{"$f":"A370","v":"c5.66p1a"},{"$f":"MAX(0,MIN(AT91-AT112,AX68))","v":0}]
["c5.47a",null,null,null,null,null,null,null,null,null,null,null,null,null,null,null,null,{"$f":"Q75&\" = 0 (zero)\"","v":"c5.52a = 0 (zero)"},null,null,null,null,null,null,null,{"$f":"\"from \"&U219","v":"from c5.56.1"},null,null,null,null,null,null,null,null,null,null,null,null,null,null,null,null,null,null,null,null,null,null,null,{"$f":"\"lower of \"&AW70&\" and (\"&AS87&\" minus \"&AS89&\")\"","v":"lower of c5.66p1a and (c5.66g minus c5.66h)"}]
["c5.48",null,null,null,null,null,null,null,null,null,null,null,null,null,null,null,null,"else",null,null,null,null,null,"NS Income after Allcs",{"$f":"A203","v":"c5.58a.2"},{"$f":"V219","v":0},null,null,null,null,null,null,null,null,null,null,null,null,null,null,null,null,null,null,null,{"$f":"\"(\"&E149&\" + \"&E307&\") minus (\"&I149&\" + \"&Q149&\" + \"&AG149&\" + \"&AK149&\" + \"&AO149&\")\"","v":"(c5.35 + c5.42) minus (c5.44 + c5.52h + c5.58.7 + c5.62 + c5.66.7)"},null,"Sav BR 20%",{"$f":"A371","v":"c5.66p1b"},{"$f":"MAX(0,MIN(AX70,AT87-AT89))","v":0}]
["c5.48a",null,null,null,null,null,null,null,null,null,null,null,null,null,null,null,null,{"$f":"Q75&\" = \"&E8&\" minus (\"&I205&\" + \"&I280&\" + \"&M205&\")\"","v":"c5.52a = c5.1 minus (c5.47 + c5.48 + c5.52)"},null,null,null,null,null,null,null,{"$f":"U221&\" minus (\"&Q248&\" minus \"&U271&\")\"","v":"c5.56.2 minus (c5.55.7 minus c5.56p)"},null,null,null,null,null,null,null,null,null,null,null,null,null,null,null,null,null,"Taxable NS",{"$f":"A341","v":"c5.66a"},{"$f":"MAX(0,(F149+F307)-(J149+R149+AH149+AL149+AP149))","v":0},null,null,null,{"$f":"\"lower of (\"&AW70&\" minus \"&AW72&\") and (\"&AS75&\" minus \"&AS122&\")\"","v":"lower of (c5.66p1a minus c5.66p1b) and (c5.66b minus c5.66n)"}]
["c5.48a1",null,null,null,null,null,null,null,null,null,null,null,null,null,null,null,null,"end if",null,null,null,null,null,"Sav Income after Allcs",{"$f":"A204","v":"c5.58a.3"},{"$f":"MAX(0,V221-(R248-V271))","v":0},null,null,null,null,null,null,null,null,null,null,null,null,null,null,null,null,null,null,null,{"$f":"E199&\" minus (\"&I199&\" + \"&Q199&\" + \"&AK199&\" + \"&AS199&\")\"","v":"c5.37 minus (c5.46 + c5.52l + c5.64 + c5.68a)"},null,"Sav HR 40%",{"$f":"A372","v":"c5.66p1c"},{"$f":"MAX(0,MIN(AX70-AX72,AT75-AT122))","v":0}]
["c5.48a2",null,null,null,null,null,null,null,null,null,null,null,null,null,null,"PA available to DivHR_rate",{"$f":"A94","v":"c5.52a"},{"$f":"IF(N123<=BR_band+'Deductions (c4)'!I383,0,MAX(0,F8-(J205+J280+N205)))","v":0},null,null,null,null,null,null,null,{"$f":"E49&\" minus (\"&I280&\" + \"&U280&\")\"","v":"c5.22 minus (c5.48 + c5.58)"},null,null,null,null,null,null,null,null,null,null,null,null,null,null,null,null,null,"Taxable Sav",{"$f":"A342","v":"c5.66b"},{"$f":"MAX(0,F199-(J199+R199+AL199+AT199))","v":0},null,null,null,{"$f":"\"lower of \"&AW68&\" and \"&AW72","v":"lower of c5.66p1 and c5.66p1b"}]
["c5.48b",null,null,null,null,null,null,null,null,null,null,null,null,null,null,null,null,{"$f":"Q75&\" minus \"&AK49","v":"c5.52a minus c5.30"},null,null,null,null,null,"Div Income after Allcs",{"$f":"A205","v":"c5.58a.4"},{"$f":"MAX(0,F49-(J280+V280))","v":0},null,null,null,null,null,null,null,null,null,null,null,null,null,null,null,null,null,null,null,{"$f":"\"SR_band (\"&DOLLAR(SR_band,0)&\") minus \"&AS73","v":"SR_band (£5,000) minus c5.66a"},null,"Reduction of Sav at BR",{"$f":"A373","v":"c5.66p2"},{"$f":"MIN(AX68,AX72)","v":0}]
["c5.48c",null,null,null,null,null,null,null,null,null,null,null,null,null,null,"PA available minus Dividends in HR",{"$f":"A95","v":"c5.52b"},{"$f":"MAX(0,R75-AL49)","v":0},null,null,null,null,null,null,null,{"$f":"\"lower of \"&Y76&\" and \"&'Deductions (c4)'!L646","v":"lower of c5.58a.4 and c4.80"},null,null,null,null,null,null,null,null,null,null,null,null,null,null,null,null,null,"SR_available",{"$f":"A343","v":"c5.66c"},{"$f":"MAX(0,SR_band-AT73)","v":5000},null,null,null,{"$f":"\"(lower of \"&AW68&\" and \"&AW74&\") minus \"&AW76","v":"(lower of c5.66p1 and c5.66p1c) minus c5.66p2"}]
["c5.48d",null,null,null,null,null,null,null,null,null,null,null,null,null,null,null,null,{"$f":"\"lower of (((\"&E17&\" + (\"&E36&\" minus \"&M36&\")) minus \"&Q77&\") and (\"&Q75&\" minus \"&Q77&\"))\"","v":"lower of (((c5.3 + (c5.11 minus c5.15)) minus c5.52b) and (c5.52a minus c5.52b))"},null,null,null,null,null,"Max DivBR 0%",{"$f":"A206","v":"c5.58a.5"},{"$f":"MIN(Z76,DA)","v":0},null,null,null,null,null,null,null,null,null,null,null,null,null,null,null,null,null,null,null,{"$f":"\"lower of \"&AS75&\" and \"&AS77","v":"lower of c5.66b and c5.66c"},null,"Reduction of Sav at HR",{"$f":"A374","v":"c5.66p3"},{"$f":"MAX(0,(MIN(AX68,AX74)-AX76))","v":0}]
["c5.49",null,null,null,null,null,null,null,null,null,null,null,null,null,null,"PA offered to Dividends in HR",{"$f":"A96","v":"c5.52c"},{"$f":"MAX(0,MIN(((F17+(F36-N36))-R77),R75-R77))","v":0},null,null,null,null,null,null,null,{"$f":"\"lower of \"&Y78&\" and (\"&AK8&\" minus (\"&Y72&\" + \"&Y74&\"))\"","v":"lower of c5.58a.5 and (c5.2a minus (c5.58a.2 + c5.58a.3))"},null,null,null,null,null,null,null,null,null,null,null,null,null,null,null,null,null,"MaxSR_band",{"$f":"A344","v":"c5.66d"},{"$f":"MIN(AT75,AT77)","v":0},null,null,null,{"$f":"\"lower of (\"&'Status (c3a)'!H33&\" minus \"&'Taxable (c5)'!AS73&\") and \"&AW68","v":"lower of (c3a.1a minus c5.66a) and c5.66p1"}]
["c5.49a",null,null,null,null,null,null,null,null,null,null,null,null,null,null,null,null,{"$f":"\"If MAT_IN and \"&'Deductions (c4)'!Q590&\" = 0 (zero)\"","v":"If MAT_IN and c4.76c = 0 (zero)"},null,null,null,null,null,"DivBR 0%",{"$f":"A207","v":"c5.58a.6"},{"$f":"MAX(0,MIN(Z78,(AL8-(Z72+Z74))))","v":0},null,null,null,null,null,null,null,null,null,null,null,null,null,null,null,null,null,null,null,{"$f":"M33&\" + \"&AG36&\" + \"&AO36","v":"c5.14 + c5.19 + c5.20c"},null,"Reduction of NS at SSR",{"$f":"A375","v":"c5.66p4"},{"$f":"MAX(0,MIN('Status (c3a)'!I33-AT73,AX68))","v":0}]
["c5.49b",null,null,null,null,null,null,null,null,null,null,null,null,null,null,null,null,{"$f":"\"and \"&'Deductions (c4)'!L508&\" > (BR_band (\"&DOLLAR(BR_band,0)&\") + \"&'Deductions (c4)'!L511&\")\"","v":"and c4.74 > (BR_band (£37,700) + c4.75)"},null,null,null,null,null,null,null,{"$f":"\"lower of \"&Y76&\" minus \"&Y80&\" and (\"&AK8&\" minus (\"&Y72&\" + \"&Y74&\" + \"&Y80&\"))\"","v":"lower of c5.58a.4 minus c5.58a.6 and (c5.2a minus (c5.58a.2 + c5.58a.3 + c5.58a.6))"},null,null,null,null,null,null,null,null,null,null,null,null,null,null,null,null,null,"SavNil",{"$f":"A345","v":"c5.66e"},{"$f":"N33+AH36+AP36","v":0},null,null,null,{"$f":"\"lower of ((\"&'Status (c3a)'!H33&\" + \"&'Status (c3a)'!L33&\" + \"&'Deductions (c4)'!H383&\") minus \"&AS73&\") and (\"&AW68&\" minus \"&AW80&\")\"","v":"lower of ((c3a.1a + c3a.2 + c4.59) minus c5.66a) and (c5.66p1 minus c5.66p4)"}]
["c5.49c",null,null,null,null,null,null,null,null,null,null,null,null,null,null,null,null,{"$f":"Q86&\" = \"&'Deductions (c4)'!L563&\" + \"&'Deductions (c4)'!L566","v":"c5.52d = c4.75m + c4.75n"},null,null,null,null,null,"DivBR 8.75%",{"$f":"A208","v":"c5.58a.7"},{"$f":"MAX(0,MIN((Z76-Z80),(AL8-(Z72+Z74+Z80))))","v":0},null,null,null,null,null,null,null,null,null,null,null,null,null,null,null,null,null,null,null,{"$f":"'Deductions (c4)'!L639&\" minus \"&'Taxable (c5)'!AS81","v":"c4.79 minus c5.66e"},null,"Reduction of NS at SBR/WBR/BR",{"$f":"A376","v":"c5.66p5"},{"$f":"MAX(0,MIN(('Status (c3a)'!I33+'Status (c3a)'!M33+'Deductions (c4)'!I383)-AT73,AX68-AX80))","v":0}]
["c5.49d",null,null,null,null,null,null,null,null,null,null,null,null,null,null,null,null,"else",null,null,null,null,null,null,null,{"$f":"\"lower of (\"&'Deductions (c4)'!L646&\" minus \"&Y80&\") and (\"&Y76&\" minus (\"&Y80&\" + \"&Y82&\"))\"","v":"lower of (c4.80 minus c5.58a.6) and (c5.58a.4 minus (c5.58a.6 + c5.58a.7))"},null,null,null,null,null,null,null,null,null,null,null,null,null,null,null,null,null,"CEGNil",{"$f":"A346","v":"c5.66e1"},{"$f":"MAX(0,PSA-'Taxable (c5)'!AT81)","v":1000},null,null,null,{"$f":"\"lower of ((\"&'Status (c3a)'!H33&\" + \"&'Status (c3a)'!L33&\" + \"&'Status (c3a)'!P33&\" + \"&'Deductions (c4)'!H383&\") minus \"&AS73&\") and (\"&AW68&\" minus (\"&AW80&\" + \"&AW82&\"))\"","v":"lower of ((c3a.1a + c3a.2 + c3a.2a + c4.59) minus c5.66a) and (c5.66p1 minus (c5.66p4 + c5.66p5))"}]
["c5.49e",null,null,null,null,null,null,null,null,null,null,null,null,null,null,null,null,{"$f":"Q86&\" = 0 (zero)\"","v":"c5.52d = 0 (zero)"},null,null,null,null,null,"DivHR 0%",{"$f":"A209","v":"c5.58a.8"},{"$f":"MAX(0,MIN(DA-Z80,Z76-(Z80+Z82)))","v":0},null,null,null,null,null,null,null,null,null,null,null,null,null,null,null,null,null,null,null,{"$f":"\"lower of (\"&E302&\" minus \"&AS83&\") and \"&AS81","v":"lower of (c5.41 minus c5.66e1) and c5.66e"},null,"Reduction of NS at SIR",{"$f":"A377","v":"c5.66p6"},{"$f":"MAX(0,MIN(('Status (c3a)'!I33+'Status (c3a)'!M33+'Status (c3a)'!Q33+'Deductions (c4)'!I383)-AT73,AX68-(AX80+AX82)))","v":0}]
["c5.50",null,null,null,null,null,null,null,null,null,null,null,null,null,null,null,null,"end if",null,null,null,null,null,null,null,{"$f":"Y76&\" minus (\"&Y80&\" + \"&Y82&\" + \"&Y84&\")\"","v":"c5.58a.4 minus (c5.58a.6 + c5.58a.7 + c5.58a.8)"},null,null,null,null,null,null,null,null,null,null,null,null,null,null,null,null,null,"SNil required by CEG",{"$f":"A347","v":"c5.66f"},{"$f":"MAX(0,MIN((F302-AT83),AT81))","v":0},null,null,null,{"$f":"AW68&\" minus (\"&AW80&\" + \"&AW82&\" + \"&AW84&\")\"","v":"c5.66p1 minus (c5.66p4 + c5.66p5 + c5.66p6)"}]
["c5.50.1",null,null,null,null,null,null,null,null,null,null,null,null,null,null,{"$f":"\"Allowances for Dividends to retain more beneficial MAT_IN (\"&DOLLAR(T_P_A,0)&\")\"","v":"Allowances for Dividends to retain more beneficial MAT_IN (£1,260)"},{"$f":"A97","v":"c5.52d"},{"$f":"IF(AND(MAT_IN,HR_case_MAT=0,'Deductions (c4)'!M508>BR_band+'Deductions (c4)'!M511),'Deductions (c4)'!M563+'Deductions (c4)'!M566,0)","v":0},null,null,null,null,null,"DivHR 33.75%",{"$f":"A210","v":"c5.58a.9"},{"$f":"MAX(0,Z76-(Z80+Z82+Z84))","v":0},null,null,null,null,null,null,null,null,null,null,null,null,null,null,null,null,null,null,null,{"$f":"AK8&\" minus \"&AS73","v":"c5.2a minus c5.66a"},null,"Reduction of NS at SHR/WHR/HR",{"$f":"A378","v":"c5.66p7"},{"$f":"MAX(0,AX68-(AX80+AX82+AX84))","v":0}]
["c5.50.2",null,null,null,null,null,null,null,null,null,null,null,null,null,null,null,null,{"$f":"E8&\" minus (\"&Q79&\" + \"&Q86&\")\"","v":"c5.1 minus (c5.52c + c5.52d)"},null,null,null,null,null,null,null,{"$f":"\"lower of (\"&E176&\" minus \"&Y68&\") and (\"&'Status (c3a)'!H33&\" minus (\"&Y72&\" + \"&Y74&\" + \"&Y76&\"))\"","v":"lower of (c5.36 minus c5.58a.1b) and (c3a.1a minus (c5.58a.2 + c5.58a.3 + c5.58a.4))"},null,null,null,null,null,null,null,null,null,null,null,null,null,null,null,null,null,"BR_band available to Sav",{"$f":"A348","v":"c5.66g"},{"$f":"MAX(0,AL8-AT73)","v":37700},null,null,null,"Set to zero"]
["c5.50a",null,null,null,null,null,null,null,null,null,null,null,null,null,null,null,{"$f":"A98","v":"c5.52e"},{"$f":"MAX(0,F8-(R79+R86))","v":12570},null,null,null,null,null,"LS income in SSR_rate",{"$f":"A211","v":"c5.58a.10"},{"$f":"MAX(0,MIN(F176-Z68,'Status (c3a)'!I33-(Z72+Z74+Z76)))","v":0},null,null,null,null,null,null,null,null,null,null,null,null,null,null,null,null,null,null,null,{"$f":"AS81&\" minus \"&AS85","v":"c5.66e minus c5.66f"},null,null,{"$f":"A379","v":"c5.66p7a"},0]
["c5.50b",null,null,null,null,null,null,null,null,null,null,null,null,null,null,null,null,null,null,null,null,null,null,null,null,{"$f":"\"lower of (\"&E176&\" minus (\"&Y68&\" + \"&Y88&\")) and ((\"&'Status (c3a)'!H33&\" + \"&U8&\") minus (\"&Y72&\" + \"&Y74&\" + \"&Y76&\" + \"&Y88&\"))\"","v":"lower of (c5.36 minus (c5.58a.1b + c5.58a.10)) and ((c3a.1a + c5.2) minus (c5.58a.2 + c5.58a.3 + c5.58a.4 + c5.58a.10))"},null,null,null,null,null,null,null,null,null,null,null,null,null,null,null,null,null,"SNil available to Sav",{"$f":"A349","v":"c5.66h"},{"$f":"MAX(0,AT81-AT85)","v":0},null,null,null,{"$f":"\"((\"&AW76&\" × BR_rate (\"&BR_rate*100&\"%)) + (\"&AW78&\" × HR_rate (\"&HR_rate*100&\"%)) + (\"&AS118&\" × BR_rate (\"&BR_rate*100&\"%)) + (\"&AS120&\" × HR_rate (\"&HR_rate*100&\"%))) minus\"","v":"((c5.66p2 × BR_rate (20%)) + (c5.66p3 × HR_rate (40%)) + (c5.66l × BR_rate (20%)) + (c5.66m × HR_rate (40%))) minus"}]
["c5.50c",null,null,null,null,null,null,null,null,null,null,null,null,null,null,null,null,null,null,null,null,null,null,"LS income in BR_rate/SBR_rate",{"$f":"A212","v":"c5.58a.11"},{"$f":"MAX(0,MIN(F176-(Z68+Z88),('Status (c3a)'!I33+V8)-(Z72+Z74+Z76+Z88)))","v":0},null,null,null,null,null,null,null,null,null,null,null,null,null,null,null,null,null,null,null,{"$f":"AS75&\" minus (\"&AS79&\" + \"&AS81&\")\"","v":"c5.66b minus (c5.66d + c5.66e)"},null,null,null,{"$f":"\"((\"&AW80&\" × \"&'Status (c3a)'!H45&\") + (\"&'Taxable (c5)'!AW82&\" × \"&'Status (c3a)'!L45&\") + (\"&'Taxable (c5)'!AW84&\" × \"&'Status (c3a)'!P45&\") + (\"&'Taxable (c5)'!AW86&\" × \"&'Status (c3a)'!X45&\"))\"","v":"((c5.66p4 × c3a.3b) + (c5.66p5 × c3a.4) + (c5.66p6 × c3a.4a) + (c5.66p7 × c3a.5))"}]
["c5.50d",null,null,null,null,null,null,null,null,null,null,null,null,null,null,null,null,null,null,null,null,null,null,null,null,{"$f":"\"lower of (\"&E176&\" minus (\"&Y68&\" + \"&Y88&\" + \"&Y90&\")) and ((\"&'Status (c3a)'!H33&\" + \"&U8&\" + \"&'Status (c3a)'!P33&\") minus (\"&Y72&\" + \"&Y74&\" + \"&Y76&\" + \"&Y88&\" + \"&Y90&\"))\"","v":"lower of (c5.36 minus (c5.58a.1b + c5.58a.10 + c5.58a.11)) and ((c3a.1a + c5.2 + c3a.2a) minus (c5.58a.2 + c5.58a.3 + c5.58a.4 + c5.58a.10 + c5.58a.11))"},null,null,null,null,null,null,null,null,null,null,null,null,null,null,null,null,null,"Sav not in SR or Snil",{"$f":"A350","v":"c5.66i"},{"$f":"MAX(0,AT75-(AT79+AT81))","v":0},null,null,{"$f":"A380","v":"c5.66p8"},{"$f":"MAX(0,((AX76*BR_rate)+(AX78*HR_rate)+(AT118*BR_rate)+(AT120*HR_rate))-((AX80*'Status (c3a)'!I45)+(AX82*'Status (c3a)'!M45)+(AX84*'Status (c3a)'!Q45)+(AX86*'Status (c3a)'!Y45)))","v":0}]
["c5.51",null,null,null,null,null,null,null,null,null,null,null,null,null,null,null,null,null,null,null,null,null,null,"LS income in SIR_rate",{"$f":"A213","v":"c5.58a.12"},{"$f":"MAX(0,MIN(F176-(Z68+Z88+Z90),('Status (c3a)'!I33+V8+'Status (c3a)'!Q33)-(Z72+Z74+Z76+Z88+Z90)))","v":0},null,null,null,null,null,null,null,null,null,null,null,null,null,null,null,null,null,null,null,{"$f":"I280&\" + \"&U280&\" + \"&AC280&\" + \"&AK280","v":"c5.48 + c5.58 + c5.58k + c5.66"},null,null,null,{"$f":"\"if (\"&AS75&\" minus \"&AS79&\") > 0 (zero) and\"","v":"if (c5.66b minus c5.66d) > 0 (zero) and"}]
["c5.52",null,null,null,null,null,null,null,null,null,null,null,null,null,null,null,null,"set to zero",null,null,null,null,null,null,null,{"$f":"\"lower of (\"&E176&\" minus (\"&Y68&\" + \"&Y88&\" + \"&Y90&\" + \"&Y92&\")) and ((\"&'Status (c3a)'!H33&\" + \"&U8&\" + \"&'Status (c3a)'!P33&\" + \"&'Status (c3a)'!X33&\") minus (\"&Y72&\" + \"&Y74&\" + \"&Y76&\" + \"&Y88&\" + \"&Y90&\" + \"&Y92&\"))\"","v":"lower of (c5.36 minus (c5.58a.1b + c5.58a.10 + c5.58a.11 + c5.58a.12)) and ((c3a.1a + c5.2 + c3a.2a + c3a.3) minus (c5.58a.2 + c5.58a.3 + c5.58a.4 + c5.58a.10 + c5.58a.11 + c5.58a.12))"},null,null,null,null,null,null,null,null,null,null,null,null,null,null,null,null,null,"Allcs to Div",{"$f":"A351","v":"c5.66i1"},{"$f":"J280+V280+AD280+AL280","v":0},null,null,null,{"$f":"\"(\"&AS75&\" + \"&E302&\") > (\"&AS79&\" + \"&'Deductions (c4)'!L639&\") and\"","v":"(c5.66b + c5.41) > (c5.66d + c4.79) and"}]
["c5.52a",null,null,null,null,null,null,null,null,null,null,null,null,null,null,"NS in HR_band/SIR_band+SHR_band",{"$f":"A99","v":"c5.52e1"},0,null,null,null,null,null,"LS income in HR_rate/SHR_rate",{"$f":"A214","v":"c5.58a.13"},{"$f":"MAX(0,MIN(F176-(Z68+Z88+Z90+Z92),('Status (c3a)'!I33+V8+'Status (c3a)'!Q33+'Status (c3a)'!Y33)-(Z72+Z74+Z76+Z88+Z90+Z92)))","v":0},null,null,null,null,null,null,null,null,null,null,null,null,null,null,null,null,null,null,null,{"$f":"\"lower of (((\"&AS75&\" minus \"&AS79&\") + \"&E302&\") minus \"&'Deductions (c4)'!L639&\") and \"&AS93","v":"lower of (((c5.66b minus c5.66d) + c5.41) minus c4.79) and c5.66i1"},null,null,null,{"$f":"AW91&\" > 0 (zero) and\"","v":"c5.66p8 > 0 (zero) and"}]
["c5.52b",null,null,null,null,null,null,null,null,null,null,null,null,null,null,null,null,"Set to zero",null,null,null,null,null,null,null,{"$f":"\"lower of (\"&E176&\" minus (\"&Y68&\" + \"&Y88&\" + \"&Y90&\" + \"&Y92&\" + \"&Y94&\")) and\"","v":"lower of (c5.36 minus (c5.58a.1b + c5.58a.10 + c5.58a.11 + c5.58a.12 + c5.58a.13)) and"},null,null,null,null,null,null,null,null,null,null,null,null,null,null,null,null,null,"Max allcs reqd by CEG from Div",{"$f":"A352","v":"c5.66i2"},{"$f":"MAX(0,MIN(((AT75-AT79)+F302)-PSA,AT93))","v":0},null,null,null,{"$f":"E302&\" > 0 (zero)\"","v":"c5.41 > 0 (zero)"}]
["c5.52c",null,null,null,null,null,null,null,null,null,null,null,null,null,null,null,{"$f":"A100","v":"c5.52e2"},0,null,null,null,null,null,null,null,{"$f":"\"((\"&'Status (c3a)'!H33&\" + \"&U8&\" + \"&'Status (c3a)'!P33&\" + \"&'Status (c3a)'!X33&\" + \"&'Status (c3a)'!AA33&\") minus (\"&Y72&\" + \"&Y74&\" + \"&Y76&\" + \"&Y88&\" + \"&Y90&\" + \"&Y92&\" + \"&Y94&\"))\"","v":"((c3a.1a + c5.2 + c3a.2a + c3a.3 + c3a.3.1) minus (c5.58a.2 + c5.58a.3 + c5.58a.4 + c5.58a.10 + c5.58a.11 + c5.58a.12 + c5.58a.13))"},null,null,null,null,null,null,null,null,null,null,null,null,null,null,null,null,null,null,null,null,null,null,null,{"$f":"AW100&\" = \"&AW68","v":"c5.66q = c5.66p1"}]
["c5.52d",null,null,null,null,null,null,null,null,null,null,null,null,null,null,null,null,"Set to zero",null,null,null,null,null,null,{"$f":"A215","v":"c5.58a.13a"},{"$f":"MAX(0,MIN(F176-(Z68+Z88+Z90+Z92+Z94),('Status (c3a)'!I33+V8+'Status (c3a)'!Q33+'Status (c3a)'!Y33+'Status (c3a)'!AB33)-(Z72+Z74+Z76+Z88+Z90+Z92+Z94)))","v":0},null,null,null,null,null,null,null,null,null,null,null,null,null,null,null,null,null,null,null,{"$f":"I149&\" + \"&Q149&\" + \"&AG149&\" + \"&AK149&\" + \"&AO149","v":"c5.44 + c5.52h + c5.58.7 + c5.62 + c5.66.7"},null,null,null,"else"]
["c5.52e",null,null,null,null,null,null,null,null,null,null,null,null,null,null,null,{"$f":"A101","v":"c5.52e3"},0,null,null,null,null,null,null,null,{"$f":"\"(\"&Y88&\" × \"&'Status (c3a)'!H45&\") + (\"&Y90&\" × \"&'Status (c3a)'!L45&\") + (\"&Y92&\" × \"&'Status (c3a)'!P45&\") + (\"&Y94&\" × \"&'Status (c3a)'!X45&\") + (\"&Y97&\" × \"&'Status (c3a)'!AA45&\")\"","v":"(c5.58a.10 × c3a.3b) + (c5.58a.11 × c3a.4) + (c5.58a.12 × c3a.4a) + (c5.58a.13 × c3a.5) + (c5.58a.13a × c3a.5a)"},null,null,null,null,null,null,null,null,null,null,null,null,null,null,null,null,null,"Allcs to NS",{"$f":"A353","v":"c5.66i3"},{"$f":"J149+R149+AH149+AL149+AP149","v":0},null,null,null,{"$f":"AW100&\" = 0 (zero)\"","v":"c5.66q = 0 (zero)"}]
["c5.52e1",null,null,null,null,null,null,null,null,null,null,null,null,null,null,null,null,"Set to zero",null,null,null,null,null,"Total tax on Lump Sum income",{"$f":"A216","v":"c5.58a.14"},{"$f":"TRUNC((Z88*'Status (c3a)'!I45)+(Z90*'Status (c3a)'!M45)+(Z92*'Status (c3a)'!Q45)+(Z94*'Status (c3a)'!Y45)+(Z97*'Status (c3a)'!AB45),2)","v":0},"pdown",null,null,null,null,null,null,null,null,null,null,null,null,null,null,null,null,null,null,{"$f":"\"lower of (\"&AS79&\" + \"&AS85&\" + \"&AS91&\") and \"&AS98","v":"lower of (c5.66d + c5.66f + c5.66i) and c5.66i3"},null,null,null,"end if"]
["c5.52e2",null,null,null,null,null,null,null,null,null,null,null,null,null,null,null,{"$f":"A102","v":"c5.52e4"},0,null,null,null,null,null,null,null,{"$f":"\"lower of (\"&E176&\" minus (\"&Y68&\" + \"&Y70&\")) and (\"&'Status (c3a)'!H33&\" minus (\"&Y72&\" + \"&Y74&\" + \"&Y76&\"))\"","v":"lower of (c5.36 minus (c5.58a.1b + c5.58a.1)) and (c3a.1a minus (c5.58a.2 + c5.58a.3 + c5.58a.4))"},null,null,null,null,null,null,null,null,null,null,null,null,null,null,null,null,null,"Max allcs reqd by CEG from NS",{"$f":"A354","v":"c5.66i4"},{"$f":"MIN((AT79+AT85+AT91),AT98)","v":0},null,"Allowances from NS",{"$f":"A381","v":"c5.66q"},{"$f":"IF(AND((AT75-AT79>0),(AT75+F302)>AT79+PSA,AX91>0,F302>0),AX68,0)","v":0}]
["c5.52e3",null,null,null,null,null,null,null,null,null,null,null,null,null,null,null,null,"Set to zero",null,null,null,null,null,"LS income in SSR_rate",{"$f":"A217","v":"c5.58a.15"},{"$f":"MAX(0,MIN(F176-(Z68+Z70),'Status (c3a)'!I33-(Z72+Z74+Z76)))","v":0},null,null,null,null,null,null,null,null,null,null,null,null,null,null,null,null,null,null,null,{"$f":"AK8&\" minus (\"&'Deductions (c4)'!L508&\" minus \"&'Divs (c3)'!G69&\")\"","v":"c5.2a minus (c4.74 minus c3.18)"}]
["c5.52e4",null,null,null,null,null,null,null,null,null,null,null,null,null,null,null,{"$f":"A103","v":"c5.52e5"},0,null,null,null,null,null,null,null,{"$f":"\"lower of (\"&E176&\" minus (\"&Y68&\" + \"&Y70&\" + \"&Y101&\")) and ((\"&'Status (c3a)'!H33&\" + \"&U8&\") minus (\"&Y72&\" + \"&Y74&\" + \"&Y76&\" + \"&Y101&\"))\"","v":"lower of (c5.36 minus (c5.58a.1b + c5.58a.1 + c5.58a.15)) and ((c3a.1a + c5.2) minus (c5.58a.2 + c5.58a.3 + c5.58a.4 + c5.58a.15))"},null,null,null,null,null,null,null,null,null,null,null,null,null,null,null,null,null,"BR_band available to CEG",{"$f":"A355","v":"c5.66j"},{"$f":"MAX(0,AL8-('Deductions (c4)'!M508-'Divs (c3)'!H69))","v":37700},null,null,null,{"$f":"\"lower of (\"&AS75&\" minus \"&AW100&\") and \"&AS95","v":"lower of (c5.66b minus c5.66q) and c5.66i2"}]
["c5.52e5",null,null,null,null,null,null,null,null,null,null,null,null,null,null,null,null,"Set to zero",null,null,null,null,null,"LS income in BR_rate/SBR_rate",{"$f":"A218","v":"c5.58a.16"},{"$f":"MAX(0,MIN(F176-(Z68+Z70+Z101),('Status (c3a)'!I33+V8)-(Z72+Z74+Z76+Z101)))","v":0},null,null,null,null,null,null,null,null,null,null,null,null,null,null,null,null,null,null,null,{"$f":"\"SR_band (\"&DOLLAR(SR_band,0)&\") minus (\"&AS73&\" + \"&AS100&\")\"","v":"SR_band (£5,000) minus (c5.66a + c5.66i4)"},null,"Allowances to Div available",{"$f":"A382","v":"c5.66r"},{"$f":"MAX(0,MIN(AT75-AX100,AT95))","v":0}]
["c5.52e6",null,null,null,null,null,null,null,null,null,null,null,null,null,null,null,{"$f":"A104","v":"c5.52e6"},0,null,null,null,null,null,null,null,{"$f":"\"lower of (\"&E176&\" minus (\"&Y68&\" + \"&Y70&\" + \"&Y101&\" + \"&Y103&\")) and ((\"&'Status (c3a)'!H33&\" + \"&U8&\" + \"&'Status (c3a)'!P33&\") minus (\"&Y72&\" + \"&Y74&\" + \"&Y76&\" + \"&Y101&\" + \"&Y103&\"))\"","v":"lower of (c5.36 minus (c5.58a.1b + c5.58a.1 + c5.58a.15 + c5.58a.16)) and ((c3a.1a + c5.2 + c3a.2a) minus (c5.58a.2 + c5.58a.3 + c5.58a.4 + c5.58a.15 + c5.58a.16))"},null,null,null,null,null,null,null,null,null,null,null,null,null,null,null,null,null,"SR_available",{"$f":"A356","v":"c5.66j1"},{"$f":"MAX(0,SR_band-(AT73+AT100))","v":5000},null,null,null,{"$f":"AS75&\" minus (\"&AS79&\" + \"&AS89&\" + \"&AW100&\")\"","v":"c5.66b minus (c5.66d + c5.66h + c5.66q)"}]
["c5.52e7",null,null,null,null,null,null,null,null,null,null,null,null,null,null,null,null,"Set to zero",null,null,null,null,null,"LS income in SIR_rate",{"$f":"A219","v":"c5.58a.17"},{"$f":"MAX(0,MIN(F176-(Z68+Z70+Z101+Z103),('Status (c3a)'!I33+V8+'Status (c3a)'!Q33)-(Z72+Z74+Z76+Z101+Z103)))","v":0},null,null,null,null,null,null,null,null,null,null,null,null,null,null,null,null,null,null,null,{"$f":"\"lower of (\"&AS75&\" minus \"&AS100&\") and \"&AS104","v":"lower of (c5.66b minus c5.66i4) and c5.66j1"},null,"Sav to reduce",{"$f":"A383","v":"c5.66s"},{"$f":"MAX(0,AT75-(AT79+AT89+AX100))","v":0}]
["c5.52e8",null,null,null,null,null,null,null,null,null,null,null,null,null,null,null,{"$f":"A105","v":"c5.52e7"},0,null,null,null,null,null,null,null,{"$f":"\"lower of (\"&E176&\" minus (\"&Y68&\" + \"&Y70&\" + \"&Y101&\" + \"&Y103&\" + \"&Y105&\")) and ((\"&'Status (c3a)'!H33&\" + \"&U8&\" + \"&'Status (c3a)'!P33&\" + \"&'Status (c3a)'!X33&\") minus (\"&Y72&\" + \"&Y74&\" + \"&Y76&\" + \"&Y101&\" + \"&Y103&\" + \"&Y105&\"))\"","v":"lower of (c5.36 minus (c5.58a.1b + c5.58a.1 + c5.58a.15 + c5.58a.16 + c5.58a.17)) and ((c3a.1a + c5.2 + c3a.2a + c3a.3) minus (c5.58a.2 + c5.58a.3 + c5.58a.4 + c5.58a.15 + c5.58a.16 + c5.58a.17))"},null,null,null,null,null,null,null,null,null,null,null,null,null,null,null,null,null,"MaxSR_band if allcs from NS",{"$f":"A357","v":"c5.66j2"},{"$f":"MAX(0,MIN((AT75-AT100),AT104))","v":0},null,null,null,{"$f":"\"lower of \"&AW103&\" and \"&AW105","v":"lower of c5.66r and c5.66s"}]
["c5.52e9",null,null,null,null,null,null,null,null,null,null,null,null,null,null,null,null,"Set to zero",null,null,null,null,null,"LS income in HR_rate/SHR_rate",{"$f":"A220","v":"c5.58a.18"},{"$f":"MAX(0,MIN(F176-(Z68+Z70+Z101+Z103+Z105),('Status (c3a)'!I33+V8+'Status (c3a)'!Q33+'Status (c3a)'!Y33)-(Z72+Z74+Z76+Z101+Z103+Z105)))","v":0},null,null,null,null,null,null,null,null,null,null,null,null,null,null,null,null,null,null,null,{"$f":"\"lower of \"&AS81&\" and (\"&AS75&\" minus (\"&AS100&\" + \"&AS106&\"))\"","v":"lower of c5.66e and (c5.66b minus (c5.66i4 + c5.66j2))"},null,"Max allowances",{"$f":"A384","v":"c5.66s1"},{"$f":"MIN(AX103,AX105)","v":0}]
["c5.52e10",null,null,null,null,null,null,null,null,null,null,null,null,null,null,null,{"$f":"A106","v":"c5.52e8"},0,null,null,null,null,null,null,null,{"$f":"\"lower of (\"&E176&\" minus (\"&Y68&\" + \"&Y70&\" + \"&Y101&\" + \"&Y103&\" + \"&Y105&\" + \"&Y107&\")) and\"","v":"lower of (c5.36 minus (c5.58a.1b + c5.58a.1 + c5.58a.15 + c5.58a.16 + c5.58a.17 + c5.58a.18)) and"},null,null,null,null,null,null,null,null,null,null,null,null,null,null,null,null,null,"Sav in SNil_band",{"$f":"A358","v":"c5.66j3"},{"$f":"MAX(0,MIN(AT81,AT75-(AT100+AT106)))","v":0},null,null,null,{"$f":"\"lower of \"&AS91&\" and \"&AW107","v":"lower of c5.66i and c5.66s1"}]
["c5.52f",null,null,null,null,null,null,null,null,null,null,null,null,"Income in Higher rate before c5.1",null,null,null,"Set to zero",null,null,null,null,null,null,null,{"$f":"\"((\"&'Status (c3a)'!H33&\" + \"&U8&\" + \"&'Status (c3a)'!P33&\" + \"&'Status (c3a)'!X33&\" + \"&'Status (c3a)'!AA33&\") minus (\"&Y72&\" + \"&Y74&\" + \"&Y76&\" + \"&Y101&\" + \"&Y103&\" + \"&Y105&\" + \"&Y107&\"))\"","v":"((c3a.1a + c5.2 + c3a.2a + c3a.3 + c3a.3.1) minus (c5.58a.2 + c5.58a.3 + c5.58a.4 + c5.58a.15 + c5.58a.16 + c5.58a.17 + c5.58a.18))"},null,null,null,null,null,null,null,null,null,null,null,null,null,null,null,null,null,null,null,{"$f":"AS75&\" minus \"&AS100","v":"c5.66b minus c5.66i4"},null,"Max allowances Div to Sav",{"$f":"A385","v":"c5.66s1a"},{"$f":"MIN(AT91,AX107)","v":0}]
["c5.52g",null,null,null,null,null,null,null,null,null,null,null,null,null,null,null,{"$f":"A107","v":"c5.52e9"},0,null,null,null,null,null,null,{"$f":"A221","v":"c5.58a.18a"},{"$f":"MAX(0,MIN(F176-(Z68+Z70+Z101+Z103+Z105+Z107),('Status (c3a)'!I33+V8+'Status (c3a)'!Q33+'Status (c3a)'!Y33+'Status (c3a)'!AB33)-(Z72+Z74+Z76+Z101+Z103+Z105+Z107)))","v":0},null,null,null,null,null,null,null,null,null,null,null,null,null,null,null,null,null,"Sav if allcs from NS",{"$f":"A359","v":"c5.66j4"},{"$f":"MAX(0,AT75-AT100)","v":0},null,null,null,{"$f":"\"lower of \"&AW109&\" and (\"&AS87&\" minus (\"&AS79&\" + \"&AS81&\"))\"","v":"lower of c5.66s1a and (c5.66g minus (c5.66d + c5.66e))"}]
["c5.52h",null,null,null,null,null,null,null,null,null,null,null,null,"c5.49 = non-savings",null,null,null,"Set to zero",null,null,null,null,null,null,null,{"$f":"\"(\"&Y101&\" × \"&'Status (c3a)'!H45&\") + (\"&Y103&\" × \"&'Status (c3a)'!L45&\") + (\"&Y105&\" × \"&'Status (c3a)'!P45&\") + (\"&Y107&\" × \"&'Status (c3a)'!X45&\") + (\"&Y110&\" × \"&'Status (c3a)'!AA45&\")\"","v":"(c5.58a.15 × c3a.3b) + (c5.58a.16 × c3a.4) + (c5.58a.17 × c3a.4a) + (c5.58a.18 × c3a.5) + (c5.58a.18a × c3a.5a)"},null,null,null,null,null,null,null,null,null,null,null,null,null,null,null,null,null,null,null,{"$f":"AS110&\" minus (\"&AS106&\" + \"&AS108&\")\"","v":"c5.66j4 minus (c5.66j2 + c5.66j3)"},null,"Sav BR 20%",{"$f":"A386","v":"c5.66s1b"},{"$f":"MAX(0,MIN(AX109,AT87-(AT79+AT81)))","v":0}]
["c5.52i",null,null,null,null,null,null,null,null,null,null,null,null,"c5.50 = lump sum",null,null,{"$f":"A108","v":"c5.52e10"},0,null,null,null,null,null,"Total tax on Lump Sum income",{"$f":"A222","v":"c5.58a.19"},{"$f":"TRUNC((Z101*'Status (c3a)'!I45)+('Taxable (c5)'!Z103*'Status (c3a)'!M45)+('Taxable (c5)'!Z105*'Status (c3a)'!Q45)+('Taxable (c5)'!Z107*'Status (c3a)'!Y45)+('Taxable (c5)'!Z110*'Status (c3a)'!AB45),2)","v":0},"pdown",null,null,null,null,null,null,null,null,null,null,null,null,null,null,null,null,"Sav not in SR or Snil",{"$f":"A360","v":"c5.66j5"},{"$f":"MAX(0,AT110-(AT106+AT108))","v":0},null,null,null,{"$f":"\"lower of (\"&AW107&\" minus \"&AW111&\") and (\"&AS75&\" minus \"&AS87&\")\"","v":"lower of (c5.66s1 minus c5.66s1b) and (c5.66b minus c5.66g)"}]
["c5.52j",null,null,null,null,null,null,null,null,null,null,null,null,"c5.51 = savings",null,null,null,null,null,null,null,null,null,null,null,{"$f":"Y99&\" minus \"&Y112","v":"c5.58a.14 minus c5.58a.19"},null,null,null,null,null,null,null,null,null,null,null,null,null,null,null,null,null,null,null,{"$f":"AS81&\" minus \"&AS108","v":"c5.66e minus c5.66j3"},null,"Sav HR 40%",{"$f":"A387","v":"c5.66s1c"},{"$f":"MAX(0,MIN(AX107-AX111,AT75-AT87))","v":0}]
["c5.52k",null,null,null,null,null,null,null,"More beneficial c5.1 to non-savings ",null,null,null,null,null,null,null,null,null,null,null,null,null,null,"Reduction of Lump Sum tax",{"$f":"A223","v":"c5.58a.20"},{"$f":"MAX(0,Z99-Z112)","v":0},null,null,null,null,null,null,null,null,null,null,null,null,null,null,null,null,null,"SavNil_band reduced by if allcs to NS",{"$f":"A361","v":"c5.66j6"},{"$f":"MAX(0,AT81-AT108)","v":0},null,null,null,{"$f":"M49&\" + \"&AG49&\" + \"&AO49","v":"c5.24 + c5.29 + c5.33"}]
["c5.52l",null,null,null,null,null,null,null,"where Scottish and SAHR_rate > AHR_rate",null,null,null,null,{"$f":"'Status (c3a)'!H33&\" + \"&'Status (c3a)'!P33&\" + \"&U8","v":"c3a.1a + c3a.2a + c5.2"},null,null,null,null,null,null,null,null,null,null,null,null,null,null,null,null,null,null,null,null,null,null,null,null,null,null,null,null,null,null,null,{"$f":"\"lower of \"&E302&\" and \"&AS114","v":"lower of c5.41 and c5.66j6"},null,"Dividends in DivNil_band",{"$f":"A388","v":"c5.66s2"},{"$f":"N49+AH49+AP49","v":0}]
["c5.52m",null,null,null,null,null,null,null,null,null,null,"Maximum income below higher/Scottish higher rate limit",{"$f":"A73","v":"c5.48a"},{"$f":"'Status (c3a)'!I33+'Status (c3a)'!Q33+V8","v":37700},null,null,null,null,null,null,null,null,null,null,null,{"$f":"U219&\" minus \"&Y70","v":"c5.56.1 minus c5.58a.1"},null,null,null,null,null,null,null,null,null,null,null,null,null,null,null,null,null,"Allcs from NS SNil for CEG",{"$f":"A362","v":"c5.66k"},{"$f":"MIN(F302,AT114)","v":0},null,null,null,{"$f":"\"lower of \"&AW107&\" and \"&AW111","v":"lower of c5.66s1 and c5.66s1b"}]
["c5.52n",null,null,null,null,null,null,null,null,null,null,null,null,{"$f":"E149&\" minus \"&M116","v":"c5.35 minus c5.48a"},null,null,null,null,null,null,null,null,null,"NS Income after Allcs, inc Allcs offered to Lump Sum vs Sav",{"$f":"A224","v":"c5.58a.21"},{"$f":"MAX(0,V219-Z70)","v":0},null,null,null,null,null,null,null,null,null,null,null,null,null,null,null,null,null,null,null,{"$f":"\"lower of \"&AS102&\" and \"&AS116","v":"lower of c5.66j and c5.66k"},null,"Reduction of Sav at BR",{"$f":"A389","v":"c5.66s3"},{"$f":"MIN(AX107,AX111)","v":0}]
["c5.52o",null,null,null,null,null,null,null,null,null,null,"NS above",{"$f":"A74","v":"c5.48a1"},{"$f":"MAX(0,F149-N116)","v":0},null,null,null,"set to zero",null,null,null,null,null,null,null,{"$f":"\"lower of \"&Y117&\" and \"&'Status (c3a)'!H33","v":"lower of c5.58a.21 and c3a.1a"},null,null,null,null,null,null,null,null,null,null,null,null,null,null,null,null,null,"Max CEGNilBR_band",{"$f":"A363","v":"c5.66l"},{"$f":"MIN(AT102,AT116)","v":0},null,null,null,{"$f":"\"(lower of \"&AW107&\" and \"&AW113&\") minus \"&AW117","v":"(lower of c5.66s1 and c5.66s1c) minus c5.66s3"}]
["c5.52p",null,null,null,null,null,null,null,null,null,null,null,null,{"$f":"\"(\"&E49&\" + \"&E149&\" + \"&E199&\") minus (\"&AK8&\" + \"&M118&\")\"","v":"(c5.22 + c5.35 + c5.37) minus (c5.2a + c5.48a1)"},null,"SR_band available",{"$f":"A109","v":"c5.52f"},0,null,null,null,null,null,"NS income in SSR_rate",{"$f":"A225","v":"c5.58a.22"},{"$f":"MIN(Z117,'Status (c3a)'!I33)","v":0},null,null,null,null,null,null,null,null,null,null,null,null,null,null,null,null,null,null,null,{"$f":"AS116&\" minus \"&AS118","v":"c5.66k minus c5.66l"},null,"Reduction of Sav at HR",{"$f":"A390","v":"c5.66s4"},{"$f":"MAX(0,(MIN(AX107,AX113)-AX117))","v":0}]
["c5.52q",null,null,null,null,null,null,null,null,null,null,"Sav Div above",{"$f":"A75","v":"c5.48a2"},{"$f":"MAX(0,(F49+F149+F199)-(AL8+N118))","v":0},null,null,null,null,null,null,null,null,null,null,null,{"$f":"\"lower of (\"&Y117&\" minus \"&Y119&\") and \"&U8","v":"lower of (c5.58a.21 minus c5.58a.22) and c5.2"},null,null,null,null,null,null,null,null,null,null,null,null,null,null,null,null,null,"Max CEGNilHR_band",{"$f":"A364","v":"c5.66m"},{"$f":"MAX(0,AT116-AT118)","v":0},null,null,null,{"$f":"\"lower of (\"&AS81&\" minus \"&AS124&\") and \"&AW107","v":"lower of (c5.66e minus c5.66n1) and c5.66s1"}]
["c5.53",null,null,null,null,null,null,null,null,null,null,null,null,null,null,null,null,null,null,null,null,null,null,"NS income in BR_rate/SBR_rate",{"$f":"A226","v":"c5.58a.23"},{"$f":"MIN(MAX(0,Z117-Z119),V8)","v":0},null,null,null,null,null,null,null,null,null,null,null,null,null,null,null,null,null,null,null,{"$f":"AK8&\" minus (\"&AS73&\" + \"&AS100&\")\"","v":"c5.2a minus (c5.66a + c5.66i4)"},null,"CEGNil where allcs from Div",{"$f":"A391","v":"c5.66s5"},{"$f":"MAX(0,MIN(AT81-AT124,AX107))","v":0}]
["c5.54",null,null,null,null,null,null,null,null,null,null,null,null,{"$f":"\"(\"&E49&\" + \"&E149&\" + \"&E199&\") minus \"&E8","v":"(c5.22 + c5.35 + c5.37) minus c5.1"},null,null,null,{"$f":"\"if \"&'Status (c3a)'!D21&\" = 2 and\"","v":"if c3a.1 = 2 and"},null,null,null,null,null,null,null,{"$f":"\"lower of (\"&Y117&\" minus (\"&Y119&\" + \"&Y121&\")) and \"&'Status (c3a)'!P33","v":"lower of (c5.58a.21 minus (c5.58a.22 + c5.58a.23)) and c3a.2a"},null,null,null,null,null,null,null,null,null,null,null,null,null,null,null,null,null,"BR_band available to Sav if allcs from NS",{"$f":"A365","v":"c5.66n"},{"$f":"MAX(0,AL8-(AT73+AT100))","v":37700},null,null,null,{"$f":"\"lower of \"&AS102&\" and \"&AW121","v":"lower of c5.66j and c5.66s5"}]
["c5.54a",null,null,null,null,null,null,null,null,null,null,null,{"$f":"A76","v":"c5.48b"},{"$f":"MAX(0,(F49+F149+F199)-F8)","v":0},null,null,null,{"$f":"E149&\" minus \"&E8&\" < SSR_band (\"&DOLLAR(SSR_band,0)&\") and\"","v":"c5.35 minus c5.1 < SSR_band (£2,827) and"},null,null,null,null,null,"NS income in SIR_rate",{"$f":"A227","v":"c5.58a.24"},{"$f":"MAX(0,MIN((Z117-(Z119+Z121)),'Status (c3a)'!Q33))","v":0},null,null,null,null,null,null,null,null,null,null,null,null,null,null,null,null,null,null,null,{"$f":"\"lower of (\"&AS75&\" minus (\"&AS79&\" + \"&AS95&\")) and \"&AS81","v":"lower of (c5.66b minus (c5.66d + c5.66i2)) and c5.66e"},null,"Max CEGNilBR_band",{"$f":"A392","v":"c5.66s6"},{"$f":"MIN(AT102,AX121)","v":0}]
["c5.54a1",null,null,null,null,null,null,null,null,null,null,null,null,null,null,null,null,{"$f":"E49&\" + \"&E149&\" + \"&E199&\" < \"&M116&\" and\"","v":"c5.22 + c5.35 + c5.37 < c5.48a and"},null,null,null,null,null,null,null,{"$f":"\"lower of (\"&Y117&\" minus (\"&Y119&\" + \"&Y121&\" + \"&Y123&\")) and \"&'Status (c3a)'!X33","v":"lower of (c5.58a.21 minus (c5.58a.22 + c5.58a.23 + c5.58a.24)) and c3a.3"},null,null,null,null,null,null,null,null,null,null,null,null,null,null,null,null,null,null,{"$f":"A366","v":"c5.66n1"},{"$f":"(MAX(0,MIN(AT75-(AT79+AT95),AT81)))","v":0},null,null,null,{"$f":"AW121&\" minus \"&AW123","v":"c5.66s5 minus c5.66s6"}]
["c5.54b",null,null,null,null,null,null,null,null,null,null,null,null,null,null,null,null,{"$f":"E176&\" > 0 and\"","v":"c5.36 > 0 and"},null,null,null,null,null,"NS income in HR_rate/SHR_rate",{"$f":"A228","v":"c5.58a.25"},{"$f":"MAX(0,MIN((Z117-(Z119+Z121+Z123)),'Status (c3a)'!Y33))","v":0},null,null,null,null,null,null,null,null,null,null,null,null,null,null,null,null,null,null,null,null,null,"Max CEGNilHR_band",{"$f":"A393","v":"c5.66s7"},{"$f":"MAX(0,AX121-AX123)","v":0}]
["c5.54c",null,null,null,null,null,null,null,null,null,null,null,null,null,null,null,null,{"$f":"E199&\" > 0 and\"","v":"c5.37 > 0 and"},null,null,null,null,null,null,null,{"$f":"\"lower of (\"&Y117&\" minus (\"&Y119&\" + \"&Y121&\" + \"&Y123&\" + \"&Y125&\")) and \"&'Status (c3a)'!AA33","v":"lower of (c5.58a.21 minus (c5.58a.22 + c5.58a.23 + c5.58a.24 + c5.58a.25)) and c3a.3.1"},null,null,null,null,null,null,null,null,null,null,null,null,null,null,null,null,null,null,null,null,null,null,null,{"$f":"\"lower of (\"&AK8&\" minus (\"&AS73&\" + \"&AS75&\" + \"&AW115&\")) and \"&AW107","v":"lower of (c5.2a minus (c5.66a + c5.66b + c5.66s2)) and c5.66s1"}]
["c5.55",null,null,null,null,null,null,null,null,null,null,null,null,null,null,null,null,{"$f":"I138&\" > 0\"","v":"c5.43d > 0"},null,null,null,null,null,null,{"$f":"A229","v":"c5.58a.25a"},{"$f":"MAX(0,MIN((Z117-(Z119+Z121+Z123+Z125)),'Status (c3a)'!AB33))","v":0},null,null,null,null,null,null,null,null,null,null,null,null,null,null,null,null,null,null,null,null,null,"Reduction of Div at BR",{"$f":"A394","v":"c5.66s8"},{"$f":"MAX(0,MIN((AL8-(AT73+AT75+AX115)),AX107))","v":0}]
["c5.55.1",null,null,null,null,null,null,null,null,null,null,null,null,null,null,null,null,{"$f":"Q133&\" = \"&E149&\" minus (lower of SSR_band (\"&DOLLAR(SSR_band,0)&\") and \"&I138&\")\"","v":"c5.52g = c5.35 minus (lower of SSR_band (£2,827) and c5.43d)"},null,null,null,null,null,null,null,{"$f":"\"lower of \"&Y74&\" and SR_band (\"&DOLLAR(SR_band,0)&\")\"","v":"lower of c5.58a.3 and SR_band (£5,000)"},null,null,null,null,null,null,null,null,null,null,null,null,null,null,null,null,null,null,null,null,null,null,null,{"$f":"AW107&\" minus \"&AW127","v":"c5.66s1 minus c5.66s8"}]
["c5.55.2",null,null,null,null,null,null,null,null,null,null,null,null,null,null,null,null,"else",null,null,null,null,null,null,{"$f":"A230","v":"c5.58a.26"},{"$f":"MIN(Z74,SR_band)","v":0},null,null,null,null,null,null,null,null,null,null,null,null,null,null,null,null,null,null,null,null,null,null,{"$f":"A395","v":"c5.66s9"},{"$f":"MAX(0,AX107-AX127)","v":0}]
["c5.55.3",null,null,null,null,null,null,null,null,null,null,null,null,null,null,null,null,{"$f":"Q133&\" = lower of (\"&E149&\" minus \"&Q86&\") and\"","v":"c5.52g = lower of (c5.35 minus c5.52d) and"},null,null,null,null,null,null,null,{"$f":"\"lower of \"&Y129&\" and (SR_band (\"&DOLLAR(SR_band,0)&\") minus \"&Y117&\")\"","v":"lower of c5.58a.26 and (SR_band (£5,000) minus c5.58a.21)"},null,null,null,null,null,null,null,null,null,null,null,null,null,null,null,null,null,null,null,null,null,null,null,{"$f":"\"((\"&AW117&\" × BR_rate (\"&BR_rate*100&\"%)) + (\"&AW119&\" × HR_rate (\"&HR_rate*100&\"%)) + (\"&AW123&\" × BR_rate (\"&BR_rate*100&\"%)) + (\"&AW125&\" × HR_rate (\"&HR_rate*100&\"%))) minus\"","v":"((c5.66s3 × BR_rate (20%)) + (c5.66s4 × HR_rate (40%)) + (c5.66s6 × BR_rate (20%)) + (c5.66s7 × HR_rate (40%))) minus"}]
["c5.55.4",null,null,null,null,null,null,null,null,{"$f":"E199&\" minus \"&'Deductions (c4)'!L639","v":"c5.37 minus c4.79"},null,null,null,null,null,null,null,{"$f":"\"(\"&E8&\" minus (\"&M176&\" + \"&Q79&\" + \"&Q86&\"))\"","v":"(c5.1 minus (c5.50 + c5.52c + c5.52d))"},null,null,null,null,null,"Sav Income in Savings Starter rate",{"$f":"A231","v":"c5.58a.27"},{"$f":"MAX(0,MIN(Z129,SR_band-Z117))","v":0},null,null,null,null,null,null,null,null,null,null,null,null,null,null,null,null,null,null,null,null,null,null,null,{"$f":"\"(\"&AW127&\" × DivBR_rate (\"&DivBR_rate*100&\"%) + \"&AW129&\" × DivHR_rate (\"&DivHR_rate*100&\"%))\"","v":"(c5.66s8 × DivBR_rate (8.75%) + c5.66s9 × DivHR_rate (33.75%))"}]
["c5.55.5",null,null,null,null,null,null,"Savings minus PSA",{"$f":"A58","v":"c5.43a"},{"$f":"MAX(0,F199-PSA)","v":0},null,null,null,{"$f":"\"lower of \"&E8&\" and \"&E149","v":"lower of c5.1 and c5.35"},null,null,null,"end if",null,null,null,null,null,null,null,{"$f":"\"lower of (\"&Y74&\" minus \"&Y131&\") and \"&'Deductions (c4)'!L639","v":"lower of (c5.58a.3 minus c5.58a.27) and c4.79"},null,null,null,null,null,null,null,{"$f":"E149&\" minus \"&Q149","v":"c5.35 minus c5.52h"},null,null,null,{"$f":"E149&\" minus (\"&Q149&\" + \"&AG149&\")\"","v":"c5.35 minus (c5.52h + c5.58.7)"},null,null,null,{"$f":"E149&\" minus (\"&Q149&\" + \"&AG149&\" + \"&AK149&\")\"","v":"c5.35 minus (c5.52h + c5.58.7 + c5.62)"},null,null,null,null,null,null,{"$f":"A396","v":"c5.66s10"},{"$f":"MAX(0,((AX117*BR_rate)+(AX119*HR_rate)+(AX123*BR_rate)+(AX125*HR_rate))-((AX127*DivBR_rate)+(AX129*DivHR_rate)))","v":0}]
["c5.55.6",null,null,null,null,null,null,null,null,{"$f":"\"lower of SR_band (\"&DOLLAR(SR_band,0)&\") and (\"&E149&\" minus \"&E8&\")\"","v":"lower of SR_band (£5,000) and (c5.35 minus c5.1)"},null,null,{"$f":"A77","v":"c5.48c"},{"$f":"MIN(F8,F149)","v":0},null,"Non-Savings in unused SR_band in preference to LS",{"$f":"A110","v":"c5.52g"},{"$f":"MAX(0,IF(AND('Status (c3a)'!E21=2,F149-F8<SSR_band,F49+F149+F199<N116,F176>0,F199>0,J138>0),MAX(F149-MIN(SSR_band,J138)),MIN(F149-R86,(F8-(N176+R79+R86)))))","v":0},null,null,null,null,null,null,{"$f":"A232","v":"c5.58a.28"},{"$f":"MIN(MAX(0,Z74-Z131),'Deductions (c4)'!M639)","v":0},null,null,null,null,null,null,{"$f":"A311","v":"c5.58.1"},{"$f":"MAX(0,F149-R149)","v":0},null,null,{"$f":"A320","v":"c5.58.10"},{"$f":"MAX(0,F149-(R149+AH149))","v":0},null,null,{"$f":"A332","v":"c5.66.1"},{"$f":"MAX(0,F149-(R149+AH149+AL149))","v":0},null,null,null,null,null,null,null,{"$f":"\"if \"&E302&\" > 0 (zero) and\"","v":"if c5.41 > 0 (zero) and"}]
["c5.55.6a",null,null,null,null,null,null,"SR_band not available for Savings",{"$f":"A59","v":"c5.43b"},{"$f":"MAX(0,MIN(SR_band,(F149-F8)))","v":0},null,null,null,null,null,null,null,null,null,null,null,null,null,null,null,{"$f":"\"lower of \"&Y133&\" and (\"&AK8&\" minus \"&Y117&\")\"","v":"lower of c5.58a.28 and (c5.2a minus c5.58a.21)"},null,null,null,null,null,null,null,null,null,null,null,{"$f":"\"lower of \"&E8&\" minus\"","v":"lower of c5.1 minus"},null,null,null,{"$f":"\"lower of (\"&E8&\" + \"&AK193&\") minus\"","v":"lower of (c5.1 + c5.63a) minus"},null,null,null,null,null,null,null,{"$f":"AW132&\" > 0 (zero)\"","v":"c5.66s10 > 0 (zero)"}]
["c5.55.6b",null,null,null,null,null,null,null,null,{"$f":"\"lower of \"&I132&\" and (SR_band (\"&DOLLAR(SR_band,0)&\") minus \"&I134&\")\"","v":"lower of c5.43a and (SR_band (£5,000) minus c5.43b)"},null,null,null,null,null,null,null,null,null,null,null,null,null,"Sav income in PSA BR_rate",{"$f":"A233","v":"c5.58a.29"},{"$f":"MAX(0,MIN(Z133,AL8-Z117))","v":0},null,null,null,null,null,null,null,{"$f":"\"lower of \"&E8&\" minus (\"&AC269&\" + \"&AC280&\") and\"","v":"lower of c5.1 minus (c5.58i + c5.58k) and"},null,null,null,{"$f":"\"(\"&AC269&\" + \"&AC280&\" + \"&AG149&\" + \"&AG176&\") and\"","v":"(c5.58i + c5.58k + c5.58.7 + c5.58.9) and"},null,null,null,{"$f":"\"(\"&AC269&\" + \"&AC280&\" + \"&AK269&\" + \"&AK280&\") and\"","v":"(c5.58i + c5.58k + c5.65 + c5.66) and"},null,null,null,null,null,null,null,{"$f":"AW139&\" = \"&AW107","v":"c5.66t = c5.66s1"}]
["c5.55.7",null,null,null,null,null,null,"SR_band required for Savings",{"$f":"A60","v":"c5.43c"},{"$f":"MAX(0,MIN(J132,(SR_band-J134)))","v":0},null,null,null,null,null,null,null,null,null,null,null,null,null,null,null,{"$f":"\"lower of (\"&Y74&\" minus (\"&Y131&\" + \"&Y135&\")) and (\"&AK8&\" minus (\"&Y117&\" + \"&Y131&\" + \"&Y135&\"))\"","v":"lower of (c5.58a.3 minus (c5.58a.27 + c5.58a.29)) and (c5.2a minus (c5.58a.21 + c5.58a.27 + c5.58a.29))"},null,null,null,null,null,null,null,{"$f":"AG133","v":"c5.58.1"},null,null,null,{"$f":"AK133","v":"c5.58.10"},null,null,null,{"$f":"AO133","v":"c5.66.1"},null,null,null,null,null,null,null,"else"]
["c5.55.8",null,null,null,null,null,null,null,null,{"$f":"\"(SR_band (\"&DOLLAR(SR_band,0)&\") minus \"&I134&\") minus \"&I136","v":"(SR_band (£5,000) minus c5.43b) minus c5.43c"},null,null,null,null,null,null,null,null,null,null,null,null,null,"Sav income in BR_rate",{"$f":"A234","v":"c5.58a.30"},{"$f":"MAX(0,MIN(Z74-(Z131+Z135),(AL8-(Z117+Z131+Z135))))","v":0},null,null,null,null,null,null,{"$f":"A312","v":"c5.58.2"},{"$f":"MIN(MAX(0,F8-(AD269+AD280)),AH133)","v":0},null,null,{"$f":"A321","v":"c5.59"},{"$f":"MIN(MAX(0,F8-(AD269+AD280+AH149+AH176)),AL133)","v":0},null,null,{"$f":"A333","v":"c5.66.2"},{"$f":"MIN(MAX(0,F8+AL193-(AD269+AD280+AL269+AL280)),AP133)","v":0},null,null,null,null,null,null,null,{"$f":"AW139&\" = 0 (zero)\"","v":"c5.66t = 0 (zero)"}]
["c5.55.9",null,null,null,null,null,null,"SR_band not required for Savings",{"$f":"A61","v":"c5.43d"},{"$f":"MAX(0,(SR_band-J134)-J136)","v":5000},null,null,null,{"$f":"E149&\" minus \"&M116","v":"c5.35 minus c5.48a"},null,null,null,{"$f":"\"if \"&'Status (c3a)'!D21&\" = 1 or  \"&'Status (c3a)'!D21&\" = 3\"","v":"if c3a.1 = 1 or  c3a.1 = 3"},null,null,null,null,null,null,null,{"$f":"\"(\"&'Status (c3a)'!AD33&\" + \"&'Deductions (c4)'!H383&\") minus (\"&Y117&\" + \"&Y131&\" + \"&Y135&\" + \"&Y137&\")\"","v":"(c3a.3a + c4.59) minus (c5.58a.21 + c5.58a.27 + c5.58a.29 + c5.58a.30)"},null,null,null,null,null,null,null,null,null,null,null,null,null,null,null,null,null,null,null,null,null,null,null,"end if"]
["c5.55.10",null,null,null,null,null,null,null,null,{"$f":"I132&\" minus \"&I136","v":"c5.43a minus c5.43c"},null,null,{"$f":"A78","v":"c5.48d"},{"$f":"MAX(0,F149-N116)","v":0},null,null,null,"and",null,null,null,null,null,null,{"$f":"A235","v":"c5.58a.31"},{"$f":"MAX(0,('Status (c3a)'!AE33+'Deductions (c4)'!I383)-(Z117+Z131+Z135+Z137))","v":125140},null,null,null,null,null,null,null,{"$f":"\"lower of \"&AG137&\" and \"&'Status (c3a)'!P33","v":"lower of c5.58.2 and c3a.2a"},null,null,null,"set to zero",null,null,null,"set to zero",null,null,null,null,null,"Allowances from Div",{"$f":"A397","v":"c5.66t"},{"$f":"IF(AND(F302>0,AX132>0),AX107,0)","v":0}]
["c5.55.11",null,null,null,null,null,null,"Savings not in a nil band",{"$f":"A62","v":"c5.43e"},{"$f":"MAX(0,J132-J136)","v":0},null,null,null,null,null,null,null,{"$f":"E8&\" > 0 and\"","v":"c5.1 > 0 and"},null,null,null,null,null,null,null,{"$f":"\"lower of (\"&Y139&\" and (\"&'Deductions (c4)'!L639&\" minus \"&Y135&\"))\"","v":"lower of (c5.58a.31 and (c4.79 minus c5.58a.29))"},null,null,null,null,null,null,{"$f":"A313","v":"c5.58.3"},{"$f":"MIN(AH137,'Status (c3a)'!Q33)","v":0},null,null,{"$f":"A322","v":"c5.60"},0,null,null,{"$f":"A334","v":"c5.66.3"},0,null,null,null,null,null,null,null,{"$f":"\"if (\"&E149&\" minus ((\"&I149&\" + \"&Q149&\" + \"&AG149&\" + \"&AK149&\" + \"&AO149&\") minus \"&AW100&\")) + ((\"&E199&\" + \"&E302&\") minus\"","v":"if (c5.35 minus ((c5.44 + c5.52h + c5.58.7 + c5.62 + c5.66.7) minus c5.66q)) + ((c5.37 + c5.41) minus"}]
["c5.55.12",null,null,null,null,null,null,null,null,"set to zero",null,null,null,null,null,null,null,{"$f":"'Deductions (c4)'!L639&\" > 0 and\"","v":"c4.79 > 0 and"},null,null,null,null,null,null,{"$f":"A236","v":"c5.58a.32"},{"$f":"MAX(0,MIN(Z139,PSA-Z135))","v":1000},null,null,null,null,null,null,null,"set to zero",null,null,null,"set to zero",null,null,null,"set to zero",null,null,null,null,null,null,null,{"$f":"\"(\"&I199&\" + \"&Q199&\" + \"&AK199&\" + \"&AS199&\" + \"&AW100&\" + \"&AW139&\")) > \"&AK8","v":"(c5.46 + c5.52l + c5.64 + c5.68a + c5.66q + c5.66t)) > c5.2a"}]
["c5.55.13",null,null,null,null,null,null,null,{"$f":"A63","v":"c5.43f"},0,null,null,null,null,null,null,null,{"$f":"E149&\" > (\"&U8&\" minus \"&'Deductions (c4)'!L639&\") and\"","v":"c5.35 > (c5.2 minus c4.79) and"},null,null,null,null,null,null,null,{"$f":"\"lower of \"&Y141&\" and (\"&Y74&\" minus (\"&Y131&\" + \"&Y135&\" + \"&Y137&\"))\"","v":"lower of c5.58a.32 and (c5.58a.3 minus (c5.58a.27 + c5.58a.29 + c5.58a.30))"},null,null,null,null,null,null,{"$f":"A314","v":"c5.58.4"},0,null,null,{"$f":"A323","v":"c5.61"},0,null,null,{"$f":"A335","v":"c5.66.4"},0,null,null,null,null,null,null,null,{"$f":"AW146&\" = 0 (zero)\"","v":"c5.66u = 0 (zero)"}]
["c5.55.14",null,null,null,null,null,null,null,null,null,null,null,null,{"$f":"\"if \"&I134&\" = 0 (zero) and\"","v":"if c5.43b = 0 (zero) and"},null,null,null,{"$f":"\"(\"&E149&\" + \"&E199&\") minus \"&Q88&\" > \"&U8&\" and\"","v":"(c5.35 + c5.37) minus c5.52e > c5.2 and"},null,null,null,null,null,"Sav income in PSA HR_rate",{"$f":"A237","v":"c5.58a.33"},{"$f":"MAX(0,MIN(Z141,Z74-(Z131+Z135+Z137)))","v":0},null,null,null,null,null,null,null,null,null,null,null,null,null,null,null,null,null,null,null,null,null,null,null,"else"]
["c5.55.14a",null,null,null,null,null,null,null,null,null,null,null,null,{"$f":"I136&\" > 0 (zero)\"","v":"c5.43c > 0 (zero)"},null,null,null,{"$f":"I132&\" > 0\"","v":"c5.43a > 0"},null,null,null,null,null,null,null,{"$f":"\"lower of (\"&Y74&\" minus (\"&Y131&\" + \"&Y135&\" + \"&Y137&\" + \"&Y143&\")) and \"&Y139","v":"lower of (c5.58a.3 minus (c5.58a.27 + c5.58a.29 + c5.58a.30 + c5.58a.33)) and c5.58a.31"},null,null,null,null,null,null,null,"set to zero",null,null,null,"set to zero",null,null,null,"set to zero",null,null,null,null,null,null,null,{"$f":"AW146&\" = lower of (\"&E149&\" minus (\"&I149&\" + \"&Q149&\" + \"&AG149&\" + \"&AK149&\" + \"&AO149&\")) and \"&Q199","v":"c5.66u = lower of (c5.35 minus (c5.44 + c5.52h + c5.58.7 + c5.62 + c5.66.7)) and c5.52l"}]
["c5.55.15",null,null,null,null,null,null,null,null,null,null,null,null,{"$f":"M149&\" = \"&M133","v":"c5.49 = c5.48c"},null,null,null,{"$f":"Q149&\" = \"&M149","v":"c5.52h = c5.49"},null,null,null,null,null,"Sav income in HR_rate",{"$f":"A238","v":"c5.58a.34"},{"$f":"MAX(0,MIN(Z74-(Z131+Z135+Z137+Z143),Z139))","v":0},null,null,null,null,null,null,{"$f":"A315","v":"c5.58.5"},0,null,null,{"$f":"A324","v":"c5.61a"},0,null,null,{"$f":"A336","v":"c5.66.5"},0,null,null,null,null,null,null,null,"end if"]
["c5.55.16",null,null,null,null,null,null,null,null,null,null,null,null,"else",null,null,null,"else",null,null,null,null,null,null,null,{"$f":"\"lower of \"&Y76&\" and \"&'Deductions (c4)'!L646","v":"lower of c5.58a.4 and c4.80"},null,null,null,null,null,null,null,"set to zero",null,null,null,null,null,null,null,"set to zero",null,null,null,null,null,null,{"$f":"A398","v":"c5.66u"},{"$f":"IF((F149-((J149+R149+AH149+AL149+AP149)-AX100)+((F199+F302)-(J199+R199+AL199+AT199+AX100+AX139)))>AL8,0,MAX(0,MIN(F149-(J149+R149+AH149+AL149+AP149),R199)))","v":0}]
["c5.55.17",null,null,null,null,null,null,null,null,null,null,null,null,{"$f":"M149&\" = lower of \"&M133&\" and \"&M139","v":"c5.49 = lower of c5.48c and c5.48d"},null,null,null,{"$f":"Q149&\" = \"&Q133","v":"c5.52h = c5.52g"},null,null,null,null,null,"Max DivBR 0%",{"$f":"A239","v":"c5.58a.35"},{"$f":"MIN(Z76,DA)","v":0},null,null,null,null,null,null,{"$f":"A316","v":"c5.58.6"},null,null,null,null,null,null,null,{"$f":"A337","v":"c5.66.6"},0]
["c5.55.18",null,null,null,null,{"$f":"\"from \"&E17","v":"from c5.3"},null,null,null,"set to zero",null,null,null,"end if",null,null,null,"end if",null,null,null,null,null,null,null,{"$f":"\"lower of \"&Y147&\" and (\"&AK8&\" minus (\"&Y74&\" + \"&Y117&\"))\"","v":"lower of c5.58a.35 and (c5.2a minus (c5.58a.3 + c5.58a.21))"},null,null,null,null,null,null,null,{"$f":"\"larger of \"&Y206&\" and \"&AG140","v":"larger of c5.58a.53 and c5.58.3"},null,null,null,{"$f":"\"lower of \"&U8&\" and \"&AK137","v":"lower of c5.2 and c5.59"},null,null,null,{"$f":"\"lower of \"&AO137&\" and \"&'Status (c3a)'!H33","v":"lower of c5.66.2 and c3a.1a"},null,null,null,null,null,null,null,{"$f":"\"(\"&I149&\" + \"&Q149&\" + \"&AG149&\" + \"&AK149&\" + \"&AO149&\" + \"&AW146&\") minus \"&AW100","v":"(c5.44 + c5.52h + c5.58.7 + c5.62 + c5.66.7 + c5.66u) minus c5.66q"},null,null,null,{"$f":"E149&\" minus \"&AW149","v":"c5.35 minus c5.67"},null,"Non-savings"]
["c5.55.19",null,"Non-savings income",null,{"$f":"A49","v":"c5.35"},{"$f":"F17","v":0},null,null,{"$f":"A64","v":"c5.44"},0,null,null,{"$f":"A79","v":"c5.49"},{"$f":"IF(AND(J134=0,J136>0),N133,MIN(N133,N139))","v":0},null,"More beneficial to keep PSA Nil in HR_band?",{"$f":"A111","v":"c5.52h"},{"$f":"IF(AND(OR('Status (c3a)'!E21=1,'Status (c3a)'!E21=3),F8>0,PSA>0,F149>(V8-PSA),(F149+F199)-R88>V8,J132>0),N149,R133)","v":0},null,null,null,null,null,"DivBR 0%",{"$f":"A240","v":"c5.58a.36"},{"$f":"MAX(0,MIN(Z147,(AL8-(Z74+Z117))))","v":0},null,null,null,null,null,null,{"$f":"A317","v":"c5.58.7"},{"$f":"MAX(Z206,AH140)","v":0},null,null,{"$f":"A325","v":"c5.62"},{"$f":"MIN(V8,AL137)","v":0},null,null,{"$f":"A338","v":"c5.66.7"},{"$f":"MIN(AP137,'Status (c3a)'!I33)","v":0},null,null,null,null,null,null,{"$f":"A399","v":"c5.67"},{"$f":"MAX(0,(J149+R149+AH149+AL149+AP149+AX146)-AX100)","v":0},null,null,{"$f":"A409","v":"c5.76"},{"$f":"MAX(0,F149-AX149)","v":0},null,"income etc."]
["c5.55.20",null,null,null,null,null,null,null,null,null,null,null,null,null,null,null,null,null,null,null,null,null,null,null,null,{"$f":"\"lower of \"&Y76&\" minus \"&Y149&\" and (\"&AK8&\" minus (\"&Y74&\" + \"&Y117&\" + \"&Y149&\"))\"","v":"lower of c5.58a.4 minus c5.58a.36 and (c5.2a minus (c5.58a.3 + c5.58a.21 + c5.58a.36))"},null,null,null,null,null,null,null,null,null,null,null,null,null,null,null,null,null,null,null,null,null,null,null,null,null,null,null,{"$f":"\"copy to \"&'Notional (c21c23)'!A8","v":"copy to c21.8"}]
["c5.55.21",null,null,null,null,null,null,null,null,null,null,null,null,null,null,null,null,null,null,null,null,null,null,"DivBR 8.75%",{"$f":"A241","v":"c5.58a.37"},{"$f":"MAX(0,MIN(Z76-Z149,(AL8-(Z74+Z117+Z149))))","v":0},null,null,null,null,null,null,null,null,null,null,null,null,null,null,null,null,null,null,null,null,null,null,null,null,null,null,null,{"$f":"\"and add \"&BA149&\" + \"&BA307&\" and copy to \"&'tax it (c6)'!G14","v":"and add c5.76 + c5.83 and copy to c6.1"}]
["c5.55.22",null,null,null,null,null,null,null,null,null,null,null,null,null,null,null,null,null,null,null,null,null,null,null,null,{"$f":"\"lower of (\"&'Deductions (c4)'!L646&\" minus \"&Y149&\") and (\"&Y76&\" minus (\"&Y149&\" + \"&Y151&\"))\"","v":"lower of (c4.80 minus c5.58a.36) and (c5.58a.4 minus (c5.58a.36 + c5.58a.37))"}]
["c5.55.23",null,null,null,null,null,null,null,null,null,null,null,null,null,null,null,null,null,null,null,null,null,null,"DivHR 0%",{"$f":"A242","v":"c5.58a.38"},{"$f":"MAX(0,MIN(DA-Z149,Z76-(Z149+Z151)))","v":0}]
["c5.55.24",null,null,null,null,null,null,null,null,null,null,null,null,null,null,null,null,null,null,null,null,null,null,null,null,{"$f":"Y76&\" minus (\"&Y149&\" + \"&Y151&\" + \"&Y153&\")\"","v":"c5.58a.4 minus (c5.58a.36 + c5.58a.37 + c5.58a.38)"}]
["c5.55.25",null,null,null,null,null,null,null,null,null,null,null,null,null,null,null,null,null,null,null,null,null,null,"DivHR 33.75%",{"$f":"A243","v":"c5.58a.39"},{"$f":"MAX(0,Z76-(Z149+Z151+Z153))","v":0}]
["c5.55.26",null,null,null,null,null,null,null,null,null,null,null,null,null,null,null,null,null,null,null,null,null,null,null,null,{"$f":"\"lower of (\"&E176&\" minus \"&Y68&\") and (\"&'Status (c3a)'!H33&\" minus (\"&Y74&\" + \"&Y76&\" + \"&Y117&\"))\"","v":"lower of (c5.36 minus c5.58a.1b) and (c3a.1a minus (c5.58a.3 + c5.58a.4 + c5.58a.21))"}]
["c5.55.26a",null,null,null,null,null,null,null,null,null,null,null,null,null,null,null,null,null,null,null,null,null,null,"LS income in SSR_rate",{"$f":"A244","v":"c5.58a.40"},{"$f":"MAX(0,MIN(F176-Z68,'Status (c3a)'!I33-(Z74+Z76+Z117)))","v":0}]
["c5.55.27",null,null,null,null,null,null,null,null,null,null,null,null,null,null,null,null,null,null,null,null,null,null,null,null,{"$f":"\"lower of (\"&E176&\" minus (\"&Y68&\" + \"&Y157&\")) and ((\"&'Status (c3a)'!H33&\" + \"&U8&\") minus (\"&Y74&\" + \"&Y76&\" + \"&Y117&\" + \"&Y157&\"))\"","v":"lower of (c5.36 minus (c5.58a.1b + c5.58a.40)) and ((c3a.1a + c5.2) minus (c5.58a.3 + c5.58a.4 + c5.58a.21 + c5.58a.40))"}]
["c5.55.28",null,null,null,null,null,null,null,null,null,null,null,null,null,null,null,null,null,null,null,null,null,null,"LS income in BR_rate/SBR_rate",{"$f":"A245","v":"c5.58a.41"},{"$f":"MAX(0,MIN(F176-(Z68+Z157),('Status (c3a)'!I33+V8)-(Z74+Z76+Z117+Z157)))","v":0}]
["c5.55.29",null,null,null,null,null,null,null,null,null,null,null,null,null,null,null,null,null,null,null,null,null,null,null,null,{"$f":"\"lower of (\"&E176&\" minus (\"&Y68&\" + \"&Y157&\" + \"&Y159&\")) and ((\"&'Status (c3a)'!H33&\" + \"&U8&\" + \"&'Status (c3a)'!P33&\") minus (\"&Y74&\" + \"&Y76&\" + \"&Y117&\" + \"&Y157&\" + \"&Y159&\"))\"","v":"lower of (c5.36 minus (c5.58a.1b + c5.58a.40 + c5.58a.41)) and ((c3a.1a + c5.2 + c3a.2a) minus (c5.58a.3 + c5.58a.4 + c5.58a.21 + c5.58a.40 + c5.58a.41))"}]
["c5.55.30",null,null,null,null,null,null,null,null,null,null,null,null,null,null,null,null,null,null,null,null,null,null,"LS income in SIR_rate",{"$f":"A246","v":"c5.58a.42"},{"$f":"MAX(0,MIN(F176-(Z68+Z157+Z159),('Status (c3a)'!I33+V8+'Status (c3a)'!Q33)-(Z74+Z76+Z117+Z157+Z159)))","v":0},null,null,null,{"$f":"\"if \"&'Status (c3a)'!D21&\" = 2 and\"","v":"if c3a.1 = 2 and"}]
["c5.55.31",null,null,null,null,null,null,null,null,null,null,null,null,null,null,null,null,null,null,null,null,null,null,null,null,{"$f":"\"lower of (\"&E176&\" minus (\"&Y68&\" + \"&Y157&\" + \"&Y159&\" + \"&Y161&\")) and ((\"&'Status (c3a)'!H33&\" + \"&U8&\" + \"&'Status (c3a)'!P33&\" + \"&'Status (c3a)'!X33&\") minus (\"&Y74&\" + \"&Y76&\" + \"&Y117&\" + \"&Y157&\" + \"&Y159&\" + \"&Y161&\"))\"","v":"lower of (c5.36 minus (c5.58a.1b + c5.58a.40 + c5.58a.41 + c5.58a.42)) and ((c3a.1a + c5.2 + c3a.2a + c3a.3) minus (c5.58a.3 + c5.58a.4 + c5.58a.21 + c5.58a.40 + c5.58a.41 + c5.58a.42))"},null,null,null,{"$f":"E149&\" minus \"&E8&\" < SSR_band (\"&DOLLAR(SSR_band,0)&\") and\"","v":"c5.35 minus c5.1 < SSR_band (£2,827) and"}]
["c5.55.32",null,null,null,null,null,null,null,null,null,null,null,null,{"$f":"\"lower of (\"&E8&\" minus \"&M149&\") and \"&E176","v":"lower of (c5.1 minus c5.49) and c5.36"},null,null,null,null,null,null,null,null,null,"LS income in HR_rate/SHR_rate",{"$f":"A247","v":"c5.58a.43"},{"$f":"MAX(0,MIN(F176-(Z68+Z157+Z159+Z161),('Status (c3a)'!I33+V8+'Status (c3a)'!Q33+'Status (c3a)'!Y33)-(Z74+Z76+Z117+Z157+Z159+Z161)))","v":0},null,null,null,{"$f":"E49&\" + \"&E149&\" + \"&E199&\" < \"&M116&\" and\"","v":"c5.22 + c5.35 + c5.37 < c5.48a and"}]
["c5.55.33",null,null,null,null,null,null,null,null,null,null,null,{"$f":"A80","v":"c5.49a"},{"$f":"MAX(0,MIN((F8-N149),F176))","v":0},null,null,null,null,null,null,null,null,null,null,null,null,null,null,null,{"$f":"E176&\" > 0 and\"","v":"c5.36 > 0 and"}]
["c5.55.34",null,null,null,null,null,null,null,null,null,null,null,null,{"$f":"\"lower of \"&M164&\" and ((\"&E49&\" + \"&E149&\" + \"&E176&\" + \"&E199&\") minus (\"&M116&\" + \"&M149&\"))\"","v":"lower of c5.49a and ((c5.22 + c5.35 + c5.36 + c5.37) minus (c5.48a + c5.49))"},null,null,null,null,null,null,null,null,null,null,null,{"$f":"\"lower of (\"&E176&\" minus (\"&Y68&\" + \"&Y157&\" + \"&Y159&\" + \"&Y161&\" + \"&Y163&\")) and\"","v":"lower of (c5.36 minus (c5.58a.1b + c5.58a.40 + c5.58a.41 + c5.58a.42 + c5.58a.43)) and"},null,null,null,{"$f":"E199&\" > 0 and\"","v":"c5.37 > 0 and"}]
["c5.55.35",null,null,null,null,null,null,null,null,null,null,"Allcs for Lump Sum (LS)",{"$f":"A81","v":"c5.49b"},{"$f":"MAX(0,MIN(N164,((F49+F149+F176+F199)-(N116+N149))))","v":0},null,null,null,null,null,null,null,null,null,null,null,{"$f":"\"((\"&'Status (c3a)'!H33&\" + \"&U8&\" + \"&'Status (c3a)'!P33&\" + \"&'Status (c3a)'!X33&\" + \"&'Status (c3a)'!AA33&\") minus (\"&Y74&\" + \"&Y76&\" + \"&Y117&\" + \"&Y157&\" + \"&Y159&\" + \"&Y161&\" + \"&Y163&\"))\"","v":"((c3a.1a + c5.2 + c3a.2a + c3a.3 + c3a.3.1) minus (c5.58a.3 + c5.58a.4 + c5.58a.21 + c5.58a.40 + c5.58a.41 + c5.58a.42 + c5.58a.43))"},null,null,null,{"$f":"I138&\" > 0 \"","v":"c5.43d > 0 "}]
["c5.55.36",null,null,null,null,null,null,null,null,null,null,null,null,{"$f":"\"lower of (\"&M118&\" + \"&M120&\") and (\"&M166&\" minus (\"&M118&\" + \"&M120&\"))\"","v":"lower of (c5.48a1 + c5.48a2) and (c5.49b minus (c5.48a1 + c5.48a2))"},null,null,null,null,null,null,null,null,null,null,{"$f":"A248","v":"c5.58a.43a"},{"$f":"MAX(0,MIN(F176-(Z68+Z157+Z159+Z161+Z163),('Status (c3a)'!I33+V8+'Status (c3a)'!Q33+'Status (c3a)'!Y33+'Status (c3a)'!AB33)-(Z74+Z76+Z117+Z157+Z159+Z161+Z163)))","v":0},null,null,null,{"$f":"AC170&\" = lower of (\"&E8&\" minus \"&Q149&\") and \"&E176","v":"c5.58f = lower of (c5.1 minus c5.52h) and c5.36"}]
["c5.55.37",null,null,null,null,null,null,null,null,null,null,null,{"$f":"A82","v":"c5.49c"},{"$f":"MAX(0,MIN(N118+N120,N166-(N118+N120)))","v":0},null,null,null,null,null,null,null,null,null,null,null,"Set to zero",null,null,null,"else",null,null,null,null,null,null,null,"Set to zero"]
["c5.55.38",null,null,null,null,null,null,null,null,null,null,null,null,{"$f":"E8&\" minus (\"&M149&\" + \"&M166&\")\"","v":"c5.1 minus (c5.49 + c5.49b)"},null,null,null,null,null,null,null,null,null,null,{"$f":"A249","v":"c5.58.43a"},0,null,null,null,{"$f":"AC170&\" = 0 (zero)\"","v":"c5.58f = 0 (zero)"},null,null,null,null,null,null,{"$f":"A326","v":"c5.62a"},0]
["c5.55.39",null,null,null,null,null,null,null,null,null,null,"Available Allcs",{"$f":"A83","v":"c5.49d"},{"$f":"MAX(0,F8-(N149+N166))","v":12570},null,null,null,null,null,null,null,null,null,null,null,{"$f":"\"((\"&Y119&\" + \"&Y157&\") × \"&'Status (c3a)'!H45&\") + ((\"&Y121&\" + \"&Y159&\") × \"&'Status (c3a)'!L45&\") + ((\"&Y123&\" + \"&Y161&\") × \"&'Status (c3a)'!P45&\") + ((\"&Y125&\" + \"&Y163&\") × \"&'Status (c3a)'!X45&\") + ((\"&Y127&\" + \"&Y167&\") × \"&'Status (c3a)'!AA45&\")\"","v":"((c5.58a.22 + c5.58a.40) × c3a.3b) + ((c5.58a.23 + c5.58a.41) × c3a.4) + ((c5.58a.24 + c5.58a.42) × c3a.4a) + ((c5.58a.25 + c5.58a.43) × c3a.5) + ((c5.58a.25a + c5.58a.43a) × c3a.5a)"},null,null,{"$f":"A305","v":"c5.58f"},{"$f":"MAX(0,IF(AND('Status (c3a)'!E21=2,F149-F8<SSR_band,F49+F149+F199<N116,F176>0,F199>0,J138>0),MIN(F8-R149,F176),0))","v":0}]
["c5.55.39a",null,null,null,null,null,null,null,null,null,null,null,null,{"$f":"M168&\" minus (\"&M149&\" + \"&M170&\")\"","v":"c5.49c minus (c5.49 + c5.49d)"},null,null,null,null,null,null,null,null,null,"Total tax on non-savings & Lump Sum income",{"$f":"A250","v":"c5.58a.44"},{"$f":"TRUNC(((Z119+Z157)*'Status (c3a)'!I45)+((Z121+Z159)*'Status (c3a)'!M45)+((Z123+Z161)*'Status (c3a)'!Q45)+((Z125+Z163)*'Status (c3a)'!Y45)+((Z127+Z167)*'Status (c3a)'!AB45),2)","v":0},"pdown",null,null,{"$f":"\"lower of \"&E176&\" and \"&AC170","v":"lower of c5.36 and c5.58f"},null,null,null,"lower of",null,null,null,null,null,null,null,{"$f":"\"lower of (\"&E8&\" minus (\"&AC269&\" +\"","v":"lower of (c5.1 minus (c5.58i +"}]
["c5.55.40",null,null,null,null,null,null,null,null,null,null,"Allcs to NS/Sav/Div in preference to LS",{"$f":"A84","v":"c5.49e"},{"$f":"MAX(0,N168-(N149+N170))","v":0},null,null,null,null,null,null,null,null,null,null,null,{"$f":"\"(\"&Y137&\" × BR_rate (\"&BR_rate*100&\"%)) + (\"&Y145&\" × HR_rate (\"&HR_rate*100&\"%)) + (\"&Y151&\" × DivBR_rate (\"&DivBR_rate*100&\"%)) + (\"&Y155&\" × DivHR_rate (\"&DivHR_rate*100&\"%))\"","v":"(c5.58a.30 × BR_rate (20%)) + (c5.58a.34 × HR_rate (40%)) + (c5.58a.37 × DivBR_rate (8.75%)) + (c5.58a.39 × DivHR_rate (33.75%))"},null,null,{"$f":"A306","v":"c5.58g"},{"$f":"MIN(F176,AD170)","v":0},null,null,null,{"$f":"\"(\"&E8&\" minus (\"&U271&\" + \"&Y312&\" + \"&AC269&\" + \"&AC280&\" + \"&AG149&\")) and\"","v":"(c5.1 minus (c5.56p + c5.58e + c5.58i + c5.58k + c5.58.7)) and"},null,null,null,null,null,null,null,{"$f":"AC280&\" + \"&AK269&\" + \"&AK280&\" + \"&AO149&\")) and\"","v":"c5.58k + c5.65 + c5.66 + c5.66.7)) and"}]
["c5.55.41",null,null,null,null,null,null,null,null,null,null,null,null,null,null,null,null,null,null,null,null,null,null,"Total tax on savings & dividend income",{"$f":"A251","v":"c5.58a.45"},{"$f":"TRUNC((Z137*BR_rate)+(Z145*HR_rate)+(Z151*DivBR_rate)+(Z155*DivHR_rate),2)","v":0},"pdown",null,null,{"$f":"\"lower of (\"&E8&\" minus\"","v":"lower of (c5.1 minus"},null,null,null,{"$f":"\"(\"&E176&\" minus \"&AC176&\")\"","v":"(c5.36 minus c5.58h)"},null,null,null,{"$f":"\"lower of (\"&E8&\" minus (\"&U271&\" + \"&Y312&\" + \"&AC269&\" +\"","v":"lower of (c5.1 minus (c5.56p + c5.58e + c5.58i +"},null,null,null,{"$f":"\"(\"&E176&\" minus (\"&AC176&\" + \"&AG176&\" + \"&AK176&\"))\"","v":"(c5.36 minus (c5.58h + c5.58.9 + c5.63))"}]
["c5.55.42",null,null,null,null,null,null,null,null,null,null,null,null,null,null,null,null,null,null,null,null,null,null,null,null,{"$f":"Y171&\" + \"&Y173","v":"c5.58a.44 + c5.58a.45"},null,null,null,{"$f":"\"(\"&Q79&\" + \"&Q86&\" + \"&Q149&\" + \"&Q199&\" + \"&Y206&\" + \"&Y312&\"))\"","v":"(c5.52c + c5.52d + c5.52h + c5.52l + c5.58a.53 + c5.58e))"},null,null,{"$f":"A318","v":"c5.58.8"},{"$f":"MAX(0,MIN(F8-(V271+Z312+AD269+AD280+AH149),F176-AD176))","v":0},null,null,null,{"$f":"AC280&\" + \"&AG149&\" + \"&AG176&\" + \"&AK149&\")) and\"","v":"c5.58k + c5.58.7 + c5.58.9 + c5.62)) and"},null,null,{"$f":"A339","v":"c5.66.8"},{"$f":"MAX(0,MIN(F8-(AD269+AD280+AL269+AL280+AP149),F176-(AD176+AH176+AL176)))","v":0}]
["c5.56",null,null,null,null,{"$f":"\"from \"&E57","v":"from c5.34a"},null,null,null,"set to zero",null,null,null,{"$f":"M166&\" minus \"&M172","v":"c5.49b minus c5.49e"},null,null,null,null,null,null,null,null,null,"NS Sav Div LS tax after Allce to NS",{"$f":"A252","v":"c5.58a.46"},{"$f":"Z171+Z173","v":0},null,null,null,{"$f":"\"and ((\"&M176&\" + \"&AC172&\") minus (\"&Y206&\" + \"&Y312&\"))\"","v":"and ((c5.50 + c5.58g) minus (c5.58a.53 + c5.58e))"},null,null,null,{"$f":"\"lower of \"&AG174&\" and \"&'Status (c3a)'!P33","v":"lower of c5.58.8 and c3a.2a"},null,null,null,{"$f":"\"(\"&E176&\" minus (\"&AC176&\" + \"&AG176&\"))\"","v":"(c5.36 minus (c5.58h + c5.58.9))"},null,null,null,{"$f":"\"lower of \"&AO174&\" and \"&'Status (c3a)'!H33","v":"lower of c5.66.8 and c3a.1a"},null,null,null,null,null,null,null,{"$f":"I176&\" + \"&AC176&\" + \"&AG176&\" + \"&AK176&\" + \"&AO176","v":"c5.45 + c5.58h + c5.58.9 + c5.63 + c5.66.9"},null,null,null,{"$f":"E176&\" minus \"&AW176","v":"c5.36 minus c5.68"},null,"Lump sum"]
["c5.56.1",null,"Lump sum payments",null,"c5.36",{"$f":"F57","v":0},null,null,{"$f":"A65","v":"c5.45"},0,null,null,{"$f":"A85","v":"c5.50"},{"$f":"MAX(0,N166-N172)","v":0},null,null,null,null,null,null,null,null,null,null,null,{"$f":"\"if \"&Q330&\" larger than 0 (zero)\"","v":"if c5.56 larger than 0 (zero)"},null,null,{"$f":"A307","v":"c5.58h"},{"$f":"MAX(0,MIN(F8-(R79+R86+R149+R199+Z206+Z312),(N176+AD172)-(Z206+Z312)))","v":0},null,null,{"$f":"A319","v":"c5.58.9"},{"$f":"MIN(AH174,'Status (c3a)'!Q33)","v":0},null,null,{"$f":"A327","v":"c5.63"},{"$f":"MAX(0,MIN(F8-(V271+Z312+AD269+AD280+AH149+AH176+AL149),F176-(AD176+AH176)))","v":0},null,null,{"$f":"A340","v":"c5.66.9"},{"$f":"MIN(AP174,'Status (c3a)'!I33)","v":0},null,null,null,null,null,null,{"$f":"A400","v":"c5.68"},{"$f":"J176+AD176+AH176+AL176+AP176","v":0},null,null,{"$f":"A410","v":"c5.77"},{"$f":"MAX(0,F176-AX176)","v":0},null,"payments"]
["c5.56.2",null,null,null,null,null,null,null,null,null,null,null,null,null,null,null,null,null,null,null,null,null,null,null,null,{"$f":"Y181& \" = (\"&Q282&\" × \"&'Status (c3a)'!H45&\") + (\"&Q284&\" × \"&'Status (c3a)'!L45&\") + (\"&Q286&\" × \"&'Status (c3a)'!P45&\") + (\"&Q288&\" × \"&'Status (c3a)'!X45&\") + (\"&Q290&\" × \"&'Status (c3a)'!AA45&\")\"","v":"c5.58a.47 = (c5.55.23 × c3a.3b) + (c5.55.24 × c3a.4) + (c5.55.25 × c3a.4a) + (c5.55.26 × c3a.5) + (c5.55.26a × c3a.5a)"}]
["c5.56a",null,null,null,null,null,null,null,null,null,null,null,null,null,null,null,null,null,null,null,null,null,null,null,null,"else"]
["c5.56b",null,null,null,null,null,null,null,null,null,null,null,null,null,null,null,null,null,null,null,null,null,null,null,null,{"$f":"Y181& \" = (\"&Q256&\" × \"&'Status (c3a)'!H45&\") + (\"&Q258&\" × \"&'Status (c3a)'!L45&\") + (\"&Q260&\" × \"&'Status (c3a)'!P45&\") + (\"&Q262&\" × \"&'Status (c3a)'!X45&\") + (\"&Q264&\" × \"&'Status (c3a)'!AA45&\")\"","v":"c5.58a.47 = (c5.55.11 × c3a.3b) + (c5.55.12 × c3a.4) + (c5.55.13 × c3a.4a) + (c5.55.14 × c3a.5) + (c5.55.14a × c3a.5a)"}]
["c5.56c",null,null,null,null,null,null,null,null,null,null,null,null,null,null,null,null,null,null,null,null,null,null,null,null,"end if"]
["c5.56c1",null,null,null,null,null,null,null,null,"set to zero",null,null,null,"set to zero",null,null,null,null,null,null,null,null,null,"non-savings",{"$f":"A253","v":"c5.58a.47"},{"$f":"IF(R330>0,TRUNC((R282*'Status (c3a)'!I45)+(R284*'Status (c3a)'!M45)+(R286*'Status (c3a)'!Q45)+(R288*'Status (c3a)'!Y45)+(R290*'Status (c3a)'!AB45),2),TRUNC((R256*'Status (c3a)'!I45)+(R258*'Status (c3a)'!M45)+(R260*'Status (c3a)'!Q45)+(R262*'Status (c3a)'!Y45)+(R264*'Status (c3a)'!AB45),2))","v":0},"pdown"]
["c5.56c2",null,null,null,null,null,null,null,{"$f":"A66","v":"c5.45a"},0,null,null,{"$f":"A86","v":"c5.50.1"},0,null,null,null,null,null,null,null,null,null,null,null,{"$f":"\"if \"&Q330&\" larger than 0 (zero)\"","v":"if c5.56 larger than 0 (zero)"}]
["c5.56d",null,null,null,null,null,null,null,null,null,null,null,null,"set to zero",null,null,null,null,null,null,null,null,null,null,null,{"$f":"Y187&\" = (\"&Q300&\" × BR_rate (\"&BR_rate*100&\"%)) + (\"&Q308&\" × HR_rate (\"&HR_rate*100&\"%))\"","v":"c5.58a.48 = (c5.55.31 × BR_rate (20%)) + (c5.55.35 × HR_rate (40%))"}]
["c5.56e",null,null,null,null,null,null,null,null,"set to zero",null,null,{"$f":"A87","v":"c5.50.2"},0,null,null,null,null,null,null,null,null,null,null,null,"else"]
["c5.56e1",null,null,null,null,null,null,null,{"$f":"A67","v":"c5.45b"},0,null,null,null,null,null,null,null,null,null,null,null,null,null,null,null,{"$f":"Y187&\" = (\"&Q270&\" × BR_rate (\"&BR_rate*100&\"%)) + (\"&Q278&\" × HR_rate (\"&HR_rate*100&\"%))\"","v":"c5.58a.48 = (c5.55.17 × BR_rate (20%)) + (c5.55.21 × HR_rate (40%))"}]
["c5.56f",null,null,null,null,null,null,null,null,null,null,null,null,{"$f":"\"lower of (\"&E8&\" minus (\"&M149&\" + \"&M176&\")) and \"&E199","v":"lower of (c5.1 minus (c5.49 + c5.50)) and c5.37"},null,null,null,null,null,null,null,null,null,null,null,"end if"]
["c5.56g",null,null,null,null,null,null,null,null,null,null,null,{"$f":"A88","v":"c5.50a"},{"$f":"MAX(0,MIN((F8-(N149+N176)),F199))","v":0},null,null,null,null,null,null,null,null,null,"savings",{"$f":"A254","v":"c5.58a.48"},{"$f":"IF(R330>0,TRUNC((R300*BR_rate)+(R308*HR_rate),2),TRUNC((R270*BR_rate)+(R278*HR_rate),2))","v":0},"pdown",null,null,null,null,null,null,null,null,null,null,null,null,null,null,null,null,null,null,"Savings Rate"]
["c5.56h",null,null,null,null,null,null,null,null,"set to zero",null,null,null,null,null,null,null,null,null,null,null,null,null,null,null,{"$f":"\"if \"&U271&\" larger than 0 (zero)\"","v":"if c5.56p larger than 0 (zero)"}]
["c5.56i",null,null,null,null,null,null,null,{"$f":"A68","v":"c5.45c"},0,null,null,null,{"$f":"\"(\"&E149&\" + \"&E199&\") minus (BR_band (\"&DOLLAR(BR_band,0)&\") + \"&'Deductions (c4)'!H383&\" + \"&M149&\")\"","v":"(c5.35 + c5.37) minus (BR_band (£37,700) + c4.59 + c5.49)"},null,null,null,null,null,null,null,null,null,null,null,{"$f":"Y193&\" = (\"&U243&\" × BR_rate (\"&BR_rate*100&\"%)) + (\"&U251&\" × HR_rate (\"&HR_rate*100&\"%))\"","v":"c5.58a.49 = (c5.56h × BR_rate (20%)) + (c5.56l × HR_rate (40%))"}]
["c5.56j",null,null,null,null,null,null,null,null,null,null,null,{"$f":"A89","v":"c5.50b"},{"$f":"MAX(0,((F149+F199)-(BR_band+'Deductions (c4)'!I383+N149)))","v":0},null,null,null,null,null,null,null,null,null,null,null,"else"]
["c5.56k",null,null,null,null,null,null,null,null,null,null,null,null,null,null,null,null,null,null,null,null,null,null,null,null,{"$f":"Y193&\" = \"&Y187","v":"c5.58a.49 = c5.58a.48"}]
["c5.56l",null,null,null,null,null,null,null,null,null,null,null,null,{"$f":"\"lower of \"&M187&\" and \"&M190","v":"lower of c5.50a and c5.50b"},null,null,null,"set to zero",null,null,null,null,null,null,null,"end if",null,null,null,null,null,null,null,null,null,null,null,{"$f":"Q330&\" minus (\"&AG149&\" + \"&AK149&\")\"","v":"c5.56 minus (c5.58.7 + c5.62)"}]
["c5.56m",null,null,null,null,null,null,null,null,null,null,null,{"$f":"A90","v":"c5.50c"},{"$f":"MIN(N187,N190)","v":0},null,null,{"$f":"A112","v":"c5.52i"},0,null,null,null,null,null,"savings",{"$f":"A255","v":"c5.58a.49"},{"$f":"IF(V271>0,TRUNC((V243*BR_rate)+(V251*HR_rate),2),Z187)","v":0},"pdown",null,null,null,null,null,null,null,null,"PA to reduce NS (vs Div) minus Allcs allocated",{"$f":"A328","v":"c5.63a"},{"$f":"MAX(0,R330-(AH149+AL149))","v":0}]
["c5.56n",null,null,null,null,null,null,null,null,null,null,null,null,null,null,null,null,"set to zero",null,null,null,null,null,null,null,{"$f":"\"(\"&Y82&\" × DivBR_rate (\"&DivBR_rate*100&\"%)) + (\"&Y86&\" × DivHR_rate (\"&DivHR_rate*100&\"%))\"","v":"(c5.58a.7 × DivBR_rate (8.75%)) + (c5.58a.9 × DivHR_rate (33.75%))"}]
["c5.56o",null,null,null,null,null,null,null,null,null,null,null,null,"set to zero",null,null,{"$f":"A113","v":"c5.52j"},0,null,null,null,null,null,"dividends",{"$f":"A256","v":"c5.58a.50"},{"$f":"TRUNC((Z82*DivBR_rate)+(Z86*DivHR_rate),2)","v":0},"pdown"]
["c5.56p",null,null,null,null,null,null,null,null,null,null,null,{"$f":"A91","v":"c5.50d"},0,null,null,null,{"$f":"\"lower of \"&M199&\" and (\"&E8&\" minus (\"&M176&\" + \"&Q79&\" + \"&Q86&\" + \"&Q149&\"))\"","v":"lower of c5.51 and (c5.1 minus (c5.50 + c5.52c + c5.52d + c5.52h))"},null,null,null,null,null,null,null,{"$f":"Y99&\" + \"&Y181&\" + \"&Y193&\" + \"&Y195","v":"c5.58a.14 + c5.58a.47 + c5.58a.49 + c5.58a.50"},null,null,null,null,null,null,null,null,null,null,null,{"$f":"\"lower of (\"&E8&\" minus (\"&I205&\" + \"&I280&\" +\"","v":"lower of (c5.1 minus (c5.47 + c5.48 +"},null,null,null,null,null,null,null,{"$f":" \"lower of (\"&E8&\" minus\"","v":"lower of (c5.1 minus"}]
["c5.57a",null,null,null,null,null,null,null,null,null,null,null,null,null,null,null,{"$f":"A114","v":"c5.52k"},{"$f":"MAX(0,MIN(N199,(F8-(N176+R79+R86+R149))))","v":0},null,null,null,null,null,"NS Sav Div LS tax before Allce to NS",{"$f":"A257","v":"c5.58a.51"},{"$f":"Z99+Z181+Z193+Z195","v":0},null,null,null,null,null,null,null,null,null,null,null,{"$f":"AC269&\" + \"&AC280&\" + \"&AG149&\" + \"&AG176&\" + \"&AK149&\" + \"&AK176&\" + \"&AK193&\")) and\"","v":"c5.58i + c5.58k + c5.58.7 + c5.58.9 + c5.62 + c5.63 + c5.63a)) and"},null,null,null,null,null,null,null,{"$f":"\"(\"&I205&\" + \"&I280&\" + \"&U280&\" + \"&AC269&\" + \"&AC280&\" + \"&AK269&\" + \"&AK280&\" + \"&AO149&\" + \"&AO176&\"))\"","v":"(c5.47 + c5.48 + c5.58 + c5.58i + c5.58k + c5.65 + c5.66 + c5.66.7 + c5.66.9))"}]
["c5.57",null,null,null,null,"from c5.11",null,null,null,"set to zero",null,null,null,{"$f":"\"lower of \"&I140&\" and \"&M193","v":"lower of c5.43e and c5.50c"},null,null,null,{"$f":"\"lower of \"&Q197&\" and (\"&E199&\" minus \"&I199&\")\"","v":"lower of c5.52k and (c5.37 minus c5.46)"},null,null,null,null,null,null,null,{"$f":"Y197&\" minus \"&Y175","v":"c5.58a.51 minus c5.58a.46"},null,null,null,null,null,null,null,null,null,null,null,{"$f":"\"(\"&U36&\" + (\"&AK36&\" minus \"&Q199&\") + (\"&AS36&\" minus \"&I199&\"))\"","v":"(c5.16 + (c5.20 minus c5.52l) + (c5.21 minus c5.46))"},null,null,null,null,null,null,null,{"$f":"\"and (\"&E36&\" minus (\"&I199&\" + \"&Q199&\" + \"&AK199&\"))\"","v":"and (c5.11 minus (c5.46 + c5.52l + c5.64))"},null,null,null,{"$f":"\"(\"&I199&\" + \"&Q199&\" + \"&AK199&\" + \"&AS199&\" + \"&AW139&\" + \"&AW100&\") minus \"&AW146","v":"(c5.46 + c5.52l + c5.64 + c5.68a + c5.66t + c5.66q) minus c5.66u"},null,null,null,{"$f":"E199&\" minus \"&AW199","v":"c5.37 minus c5.69"},null,"Savings "]
["c5.58",null,"Savings income",null,"c5.37",{"$f":"F36","v":0},null,null,{"$f":"A69","v":"c5.46"},0,null,null,{"$f":"A92","v":"c5.51"},{"$f":"MIN(J140,N193)","v":0},null,null,{"$f":"A115","v":"c5.52l"},{"$f":"MAX(0,MIN(R197,F199-J199))","v":0},null,null,null,null,null," Reduction of NS/Sav/Div/LS tax",{"$f":"A258","v":"c5.58a.52"},{"$f":"MAX(0,Z197-Z175)","v":0},null,null,null,null,null,null,null,null,null,null,{"$f":"A329","v":"c5.64"},{"$f":"MAX(0,MIN(F8-(J205+J280+AD269+AD280+AH149+AH176+AL149+AL176+AL193),(V36+(AL36-R199)+(AT36-J199))))","v":0},null,null,null,null,null,null,{"$f":"A401","v":"c5.68a"},{"$f":"MIN(MAX(0,F8-(J205+J280+V280+AD269+AD280+AL269+AL280+AP149+AP176)),MAX(0,F36-(J199+R199+AL199)))","v":0},null,null,{"$f":"A402","v":"c5.69"},{"$f":"MAX(0,((J199+R199+AL199+AT199+AX139+AX100)-AX146))","v":0},null,null,{"$f":"A411","v":"c5.78"},{"$f":"MAX(0,F199-AX199)","v":0},null,"income etc."]
["c5.58a.1a",null,null,null,null,null,null,null,null,null,null,null,null,null,null,null,null,"Set to zero",null,null,null,null,null,null,null,null,null,null,null,null,null,null,null,null,null,null,null,null,null,null,null,null,null,null,null,null,null,null,null,null,null,null,null,{"$f":"\"copy to \"&'tax it (c6)'!L14","v":"copy to c6.11"}]
["c5.58a.1b",null,null,null,null,null,null,null,null,null,null,null,null,null,null,null,{"$f":"A116","v":"c5.52m"},0,null,null,null,null,null,null,null,{"$f":"\"If \"&Y199&\" larger than or equal to \"&Y114","v":"If c5.58a.52 larger than or equal to c5.58a.20"}]
["c5.58a.1",null,null,null,null,null,null,null,null,null,null,null,null,null,null,null,null,{"$f":"E149&\" minus (\"&I149&\" + \"&Q149&\")\"","v":"c5.35 minus (c5.44 + c5.52h)"},null,null,null,null,null,null,null,{"$f":"Y206&\" = \"&Y70","v":"c5.58a.53 = c5.58a.1"}]
["c5.58a.2",null,null,null,null,null,null,null,null,null,null,null,null,null,null,null,{"$f":"A117","v":"c5.52n"},{"$f":"MAX(0,F149-(J149+R149))","v":0},null,null,null,null,null,null,null,"else"]
["c5.58a.3",null,null,null,null,null,null,null,null,"set to zero",null,null,null,{"$f":"M149&\" + \"&M176&\" + \"&M199","v":"c5.49 + c5.50 + c5.51"},null,null,null,{"$f":"Q203&\" minus SR_band (\"&DOLLAR(SR_band,0)&\")\"","v":"c5.52n minus SR_band (£5,000)"},null,null,null,null,null,null,null,{"$f":"Y206&\" = 0 (zero)\"","v":"c5.58a.53 = 0 (zero)"}]
["c5.58a.4",null,null,null,null,null,null,null,"c5.47",0,null,null,{"$f":"A93","v":"c5.52"},{"$f":"N149+N176+N199","v":0},null,null,{"$f":"A118","v":"c5.52o"},{"$f":"MAX(0,R203-SR_band)","v":0},null,null,null,null,null,null,null,"end if"]
["c5.58a.5",null,null,null,null,null,null,null,null,null,null,null,null,null,null,null,null,"set to zero",null,null,null,null,null,"PA to reduce NS",{"$f":"A259","v":"c5.58a.53"},{"$f":"IF(Z199>=Z114,Z70,0)","v":0}]
["c5.58a.6",null,null,null,null,null,null,null,null,null,null,null,null,null,null,null,{"$f":"A119","v":"c5.52p"},0]
["c5.58a.7",null,null,null,null,null,null,null,null,null,null,null,null,null,null,null,null,{"$f":"Q77&\" minus \"&Q207","v":"c5.52b minus c5.52p"},null,null,null,null,null,null,null,{"$f":"\"(\"&E49&\" + \"&E149&\" + \"&E199&\") minus (\"&AK8&\" + \"&Q149&\" + \"&Q199&\" + \"&Q330&\" + \"&U271&\" + \"&U280&\")\"","v":"(c5.22 + c5.35 + c5.37) minus (c5.2a + c5.52h + c5.52l + c5.56 + c5.56p + c5.58)"}]
["c5.58a.8",null,null,null,null,null,null,null,null,null,null,null,null,null,null,null,{"$f":"A120","v":"c5.52q"},{"$f":"MAX(0,R77-R207)","v":0},null,null,null,null,null,null,{"$f":"A260","v":"c5.58a.53a"},{"$f":"MAX(0,(F49+F149+F199)-(AL8+R149+R199+R330+V271+V280))","v":0}]
["c5.58a.9",null,null,null,null,null,null,null,null,null,null,null,null,null,null,null,null,{"$f":"Q203&\" minus \"&Q205","v":"c5.52n minus c5.52o"},null,null,null,null,null,null,null,{"$f":"\"if \"&Y206&\" greater than 0 (zero)\"","v":"if c5.58a.53 greater than 0 (zero)"}]
["c5.58a.10",null,null,null,null,null,null,null,null,null,null,null,null,null,null,null,{"$f":"A121","v":"c5.53"},{"$f":"MAX(0,R203-R205)","v":0},null,null,null,null,null,null,null,{"$f":"Y215&\" = lower of (\"&Y66&\" minus \"&Y70&\") and (\"&Y74&\" minus (\"&Y131&\" + \"&Y135&\" + \"&Y143&\"))\"","v":"c5.58a.53b = lower of (c5.58a.1a minus c5.58a.1) and (c5.58a.3 minus (c5.58a.27 + c5.58a.29 + c5.58a.33))"}]
["c5.58a.11",null,null,null,null,null,null,null,null,null,null,null,null,null,null,null,null,null,null,null,null,"Calculation boxes c5.56.1 to c5.56p determine if it is more beneficial",null,null,null,"else"]
["c5.58a.12",null,null,null,null,null,null,null,null,null,null,null,null,null,null,null,null,"Calculation boxes c5.54a to c5.56 determine if it is more beneficial",null,null,null," for the reliefs and allowances identified in c5.52c to be allocated to Dividends",null,null,null,{"$f":"Y215&\" = lower of (\"&Y66&\" minus \"&Y70&\") and (\"&U221&\" minus (\"&U237&\" + \"&U241&\" + \"&U249&\"))\"","v":"c5.58a.53b = lower of (c5.58a.1a minus c5.58a.1) and (c5.56.2 minus (c5.56e1 + c5.56g + c5.56k))"}]
["c5.58a.13",null,null,null,null,null,null,null,null,null,null,null,null,null,null,null,null," for the reliefs and allowances identified in c5.52c to be allocated to Dividends",null,null,null,"Allowances are allocated to Dividends - the result is c5.56d,  then to savings - the result is c5.56o",null,null,null,"end if"]
["c5.58a.13a",null,null,null,null,null,null,null,null,null,null,null,null,null,null,null,null,"Allowances are allocated to Dividends - the result is c5.55.10, then to non-savings - the result is c5.55.42",null,null,null,"If the reduction of non-savings and savings tax at c5.56o is larger than or equal to the",null,null,{"$f":"A261","v":"c5.58a.53b"},{"$f":"MAX(0,IF(Z206>0,MIN(Z66-Z70,Z74-(Z131+Z135+Z143)),MIN(Z66-Z70,V221-(V237+V241+V249))))","v":0}]
["c5.58a.14",null,null,null,null,null,null,null,null,null,null,null,null,null,null,null,null,"If the reduction of non-savings and savings tax at c5.55.42 is larger than or equal to the",null,null,null,"reduction of dividend tax at c5.56d the reliefs and allowances are allocated to non-savings/savings",null,null,null,{"$f":"\"lower of \"&Y209&\" and \"&Y215","v":"lower of c5.58a.53a and c5.58a.53b"}]
["c5.58a.15",null,null,null,null,null,null,null,null,null,null,null,null,null,null,null,null,"reduction of dividend tax at c5.55.10 the reliefs and allowances are allocated to non-savings/savings",null,null,null,null,null,"Ringfenced Allce for Lump Sum offered to Sav",{"$f":"A262","v":"c5.58a.54"},{"$f":"MIN(Z209,Z215)","v":0}]
["c5.58a.16",null,null,null,null,null,null,null,null,null,null,null,null,null,null,null,null,null,null,null,null,{"$f":"Q222&\" minus \"&Q330","v":"c5.54a minus c5.56"},null,null,null,{"$f":"Y72&\" minus \"&Y206","v":"c5.58a.2 minus c5.58a.53"}]
["c5.58a.17",null,null,null,null,null,null,null,null,null,null,null,null,null,null,null,null,{"$f":"Q77&\" minus (\"&Q207&\" + \"&Q209&\")\"","v":"c5.52b minus (c5.52p + c5.52q)"},null,"NS Income after Allcs",{"$f":"A176","v":"c5.56.1"},{"$f":"MAX(0,R222-R330)","v":0},null,"NS Income after Allcs",{"$f":"A263","v":"c5.58a.55"},{"$f":"MAX(0,Z72-Z206)","v":0}]
["c5.58a.18",null,null,null,null,null,null,null,null,null,null,null,null,null,null,null,{"$f":"A122","v":"c5.54"},{"$f":"MAX(0,R77-(R207+R209))","v":0},null,null,null,{"$f":"Q224&\" minus \"&Q248","v":"c5.54a1 minus c5.55.7"},null,null,null,{"$f":"U221&\" minus \"&Y217","v":"c5.56.2 minus c5.58a.54"}]
["c5.58a.18a",null,null,null,null,null,null,null,null,null,null,null,null,null,null,null,null,{"$f":"E149&\" minus (\"&I149&\" + \"&Q149&\" + \"&Q207&\" + \"&Q220&\")\"","v":"c5.35 minus (c5.44 + c5.52h + c5.52p + c5.54)"},null,"Sav Income after Allcs",{"$f":"A177","v":"c5.56.2"},{"$f":"MAX(0,R224-R248)","v":0},null,"Sav Income after Allcs, inc Allcs offered to Lump Sum",{"$f":"A264","v":"c5.58a.56"},{"$f":"MAX(0,V221-Z217)","v":0}]
["c5.58a.19",null,null,null,null,null,null,null,null,null,null,null,null,null,null,"NS Income after Allcs",{"$f":"A123","v":"c5.54a"},{"$f":"MAX(0,F149-(J149+R149+R207+R220))","v":0},null,null,null,{"$f":"\"lower of (\"&E49&\" minus \"&I280&\") and ((BR_band (\"&DOLLAR(BR_band,0)&\") + \"&'Deductions (c4)'!L511&\") minus (\"&U219&\" + \"&U221&\"))\"","v":"lower of (c5.22 minus c5.48) and ((BR_band (£37,700) + c4.75) minus (c5.56.1 + c5.56.2))"},null,null,null,{"$f":"E176&\" minus (\"&Y68&\" + (\"&Y70&\" minus \"&Y206&\"))\"","v":"c5.36 minus (c5.58a.1b + (c5.58a.1 minus c5.58a.53))"}]
["c5.58a.20",null,null,null,null,null,null,null,null,null,null,null,null,null,null,null,null,{"$f":"E199&\" minus (\"&I199&\" + \"&Q199&\" + \"&Q209&\")\"","v":"c5.37 minus (c5.46 + c5.52l + c5.52q)"},null,"Div Income in basic rate band",{"$f":"A178","v":"c5.56a"},{"$f":"MAX(0,MIN(F49-J280,(BR_band+'Deductions (c4)'!M511)-(V219+V221)))","v":0},null,"Lump Sum Income after Allcs",{"$f":"A265","v":"c5.58a.57"},{"$f":"MAX(0,F176-(Z68+(Z70-Z206)))","v":0}]
["c5.58a.21",null,null,null,null,null,null,null,null,null,null,null,null,null,null,"Sav Income after Allcs",{"$f":"A124","v":"c5.54a1"},{"$f":"MAX(0,F199-(J199+R199+R209))","v":0},null,null,null,{"$f":"\"lower of \"&M45&\" and \"&U223","v":"lower of c5.23 and c5.56a"},null,null,null,{"$f":"\"lower of (\"&E176&\" minus \"&Y68&\") and (\"&'Status (c3a)'!H33&\" minus (\"&Y74&\" + \"&Y76&\" + \"&Y219&\"))\"","v":"lower of (c5.36 minus c5.58a.1b) and (c3a.1a minus (c5.58a.3 + c5.58a.4 + c5.58a.55))"}]
["c5.58a.22",null,null,null,null,null,null,null,null,null,null,null,null,null,null,null,null,{"$f":"\"lower of \"&Q224&\" and SR_band (\"&DOLLAR(SR_band,0)&\")\"","v":"lower of c5.54a1 and SR_band (£5,000)"},null,"DivBR 0%",{"$f":"A179","v":"c5.56b"},{"$f":"MIN(N45,V223)","v":0},null,"LS income in SSR_rate",{"$f":"A266","v":"c5.58a.58"},{"$f":"MAX(0,MIN(F176-Z68,'Status (c3a)'!I33-(Z74+Z76+Z219)))","v":0}]
["c5.58a.23",null,null,null,null,null,null,null,null,null,null,null,null,null,null,null,{"$f":"A125","v":"c5.54b"},{"$f":"MIN(R224,SR_band)","v":0},null,null,null,{"$f":"U223&\" minus \"&U225","v":"c5.56a minus c5.56b"},null,null,null,{"$f":"\"lower of (\"&E176&\" minus (\"&Y68&\" + \"&Y225&\")) and ((\"&'Status (c3a)'!H33&\" + \"&U8&\") minus (\"&Y74&\" + \"&Y76&\" + \"&Y88&\" + \"&Y219&\"))\"","v":"lower of (c5.36 minus (c5.58a.1b + c5.58a.58)) and ((c3a.1a + c5.2) minus (c5.58a.3 + c5.58a.4 + c5.58a.10 + c5.58a.55))"}]
["c5.58a.24",null,null,null,null,null,null,null,null,null,null,null,null,null,null,null,null,{"$f":"\"lower of \"&Q226&\" and (SR_band (\"&DOLLAR(SR_band,0)&\") minus \"&Q222&\")\"","v":"lower of c5.54b and (SR_band (£5,000) minus c5.54a)"},null,"DivBR 8.75%",{"$f":"A180","v":"c5.56c"},{"$f":"MAX(0,V223-V225)","v":0},null,"LS income in BR_rate/SBR_rate",{"$f":"A267","v":"c5.58a.59"},{"$f":"MAX(0,MIN(F176-(Z68+Z225),('Status (c3a)'!I33+V8)-(Z74+Z76+Z88+Z219)))","v":0}]
["c5.58a.25",null,null,null,null,null,null,null,null,null,null,null,null,null,null,"Savings Starter rate",{"$f":"A126","v":"c5.54c"},{"$f":"MIN(R226,MAX(0,(SR_band-R222)))","v":0},null,null,null,{"$f":"\"lower of (\"&Q248&\" and \"&U227&\") × DivBR_rate (\"&DivBR_rate*100&\"%)\"","v":"lower of (c5.55.7 and c5.56c) × DivBR_rate (8.75%)"},null,null,null,{"$f":"\"lower of (\"&E176&\" minus (\"&Y68&\" + \"&Y225&\" + \"&Y227&\")) and ((\"&'Status (c3a)'!H33&\" + \"&U8&\" + \"&'Status (c3a)'!P33&\") minus (\"&Y74&\" + \"&Y76&\" + \"&Y219&\" + \"&Y225&\" + \"&Y227&\"))\"","v":"lower of (c5.36 minus (c5.58a.1b + c5.58a.58 + c5.58a.59)) and ((c3a.1a + c5.2 + c3a.2a) minus (c5.58a.3 + c5.58a.4 + c5.58a.55 + c5.58a.58 + c5.58a.59))"}]
["c5.58a.25a",null,null,null,null,null,null,null,null,null,null,null,null,null,null,null,null,"Set to zero",null,null,{"$f":"A181","v":"c5.56c1"},{"$f":"TRUNC(MIN(R248,V227)*DivBR_rate,2)","v":0},"pdown","LS income in SIR_rate",{"$f":"A268","v":"c5.58a.60"},{"$f":"MAX(0,MIN(F176-(Z68+Z225+Z227),('Status (c3a)'!I33+V8+'Status (c3a)'!Q33)-(Z74+Z76+Z219+Z225+Z227)))","v":0}]
["c5.58a.26",null,null,null,null,null,null,null,null,null,null,null,null,null,null,null,{"$f":"A127","v":"c5.55"},0,null,null,null,{"$f":"\"(\"&Q248&\" minus (lower of \"&Q248&\" and \"&U227&\")) × DivHR_rate (\"&DivHR_rate*100&\"%)\"","v":"(c5.55.7 minus (lower of c5.55.7 and c5.56c)) × DivHR_rate (33.75%)"},null,null,null,{"$f":"\"lower of (\"&E176&\" minus (\"&Y68&\" + \"&Y225&\" + \"&Y227&\" + \"&Y229&\")) and ((\"&'Status (c3a)'!H33&\" + \"&U8&\" + \"&'Status (c3a)'!P33&\" + \"&'Status (c3a)'!X33&\") minus (\"&Y74&\" + \"&Y76&\" + \"&Y219&\" + \"&Y225&\" + \"&Y227&\" + \"&Y229&\"))\"","v":"lower of (c5.36 minus (c5.58a.1b + c5.58a.58 + c5.58a.59 + c5.58a.60)) and ((c3a.1a + c5.2 + c3a.2a + c3a.3) minus (c5.58a.3 + c5.58a.4 + c5.58a.55 + c5.58a.58 + c5.58a.59 + c5.58a.60))"}]
["c5.58a.27",null,null,null,null,null,null,null,null,null,null,null,null,null,null,null,null,{"$f":"E17&\" + \"&E36&\" + \"&M49&\" + \"&U49&\" + \"&AG49&\" + \"&AK49","v":"c5.3 + c5.11 + c5.24 + c5.25 + c5.29 + c5.30"},null,null,{"$f":"A182","v":"c5.56c2"},{"$f":"MAX(0,TRUNC((R248-(MIN(R248,V227)))*DivHR_rate,2))","v":0},"pdown","LS income in HR_rate/SHR_rate",{"$f":"A269","v":"c5.58a.61"},{"$f":"MAX(0,MIN(F176-(Z68+Z225+Z227+Z229),('Status (c3a)'!I33+V8+'Status (c3a)'!Q33+'Status (c3a)'!Y33)-(Z74+Z76+Z219+Z225+Z227+Z229)))","v":0}]
["c5.58a.28",null,null,null,null,null,null,null,null,null,null,null,null,null,null,null,{"$f":"A128","v":"c5.55.1"},{"$f":"F17+F36+N49+V49+AH49+AL49","v":0},null,null,null,{"$f":"U229&\" + \"&U231","v":"c5.56c1 + c5.56c2"},null,null,null,{"$f":"\"lower of (\"&E176&\" minus (\"&Y68&\" + \"&Y225&\" + \"&Y227&\" + \"&Y229&\" + \"&Y231&\")) and\"","v":"lower of (c5.36 minus (c5.58a.1b + c5.58a.58 + c5.58a.59 + c5.58a.60 + c5.58a.61)) and"}]
["c5.58a.29",null,null,null,null,null,null,null,null,null,null,null,null,null,null,null,null,{"$f":"\"(\"&Q232&\" minus (\"&E8&\" minus (\"&I205&\" + \"&I280&\" + \"&M205&\"))) minus (BR_band (\"&DOLLAR(BR_band,0)&\") + \"&'Deductions (c4)'!L511&\")\"","v":"(c5.55.1 minus (c5.1 minus (c5.47 + c5.48 + c5.52))) minus (BR_band (£37,700) + c4.75)"},null,"Reduction of dividend tax",{"$f":"A183","v":"c5.56d"},{"$f":"V229+V231","v":0},null,null,null,{"$f":"\"((\"&'Status (c3a)'!H33&\" + \"&U8&\" + \"&'Status (c3a)'!P33&\" + \"&'Status (c3a)'!X33&\" + \"&'Status (c3a)'!AA33&\") minus (\"&Y74&\" + \"&Y76&\" + \"&Y219&\" + \"&Y225&\" + \"&Y227&\" + \"&Y229&\" + \"&Y231&\"))\"","v":"((c3a.1a + c5.2 + c3a.2a + c3a.3 + c3a.3.1) minus (c5.58a.3 + c5.58a.4 + c5.58a.55 + c5.58a.58 + c5.58a.59 + c5.58a.60 + c5.58a.61))"}]
["c5.58a.30",null,null,null,null,null,null,null,null,null,null,null,null,null,null,"Income above basic rate band",{"$f":"A129","v":"c5.55.2"},{"$f":"MAX(0,(R232-(F8-(J205+J280+N205)))-(BR_band+'Deductions (c4)'!M511))","v":0},null,null,null,{"$f":"\"lower of \"&U221&\" and SR_band (\"&DOLLAR(SR_band,0)&\")\"","v":"lower of c5.56.2 and SR_band (£5,000)"},null,null,{"$f":"A270","v":"c5.58a.61a"},{"$f":"MAX(0,MIN(F176-(Z68+Z225+Z227+Z229+Z231),('Status (c3a)'!I33+V8+'Status (c3a)'!Q33+'Status (c3a)'!Y33+'Status (c3a)'!AB33)-(Z74+Z76+Z219+Z225+Z227+Z229+Z231)))","v":0}]
["c5.58a.31",null,null,null,null,null,null,null,null,null,null,null,null,null,null,null,null,{"$f":"\"(\"&M49&\" + \"&U49&\" + \"&AG49&\" + \"&AK49&\") minus (\"&Q234&\" minus (\"&M149&\" + \"&M199&\"))\"","v":"(c5.24 + c5.25 + c5.29 + c5.30) minus (c5.55.2 minus (c5.49 + c5.51))"},null,null,{"$f":"A184","v":"c5.56e"},{"$f":"MIN(V221,SR_band)","v":0},null,null,null,{"$f":"\"(\"&Y225&\" × \"&'Status (c3a)'!H45&\") + (\"&Y227&\" × \"&'Status (c3a)'!L45&\") + (\"&Y229&\" × \"&'Status (c3a)'!P45&\") + (\"&Y231&\" × \"&'Status (c3a)'!X45&\") + (\"&Y234&\" × \"&'Status (c3a)'!AA45&\")\"","v":"(c5.58a.58 × c3a.3b) + (c5.58a.59 × c3a.4) + (c5.58a.60 × c3a.4a) + (c5.58a.61 × c3a.5) + (c5.58a.61a × c3a.5a)"}]
["c5.58a.32",null,null,null,null,null,null,null,null,null,null,null,null,null,null,"Income in basic rate band",{"$f":"A130","v":"c5.55.3"},{"$f":"MAX(0,(N49+V49+AH49+AL49)-(R234-(N149+N199)))","v":0},null,null,null,{"$f":"\"lower of \"&U235&\" and (SR_band (\"&DOLLAR(SR_band,0)&\") minus \"&U219&\")\"","v":"lower of c5.56e and (SR_band (£5,000) minus c5.56.1)"},null,"Total tax on Lump Sum income",{"$f":"A271","v":"c5.58a.62"},{"$f":"TRUNC((Z225*'Status (c3a)'!I45)+(Z227*'Status (c3a)'!M45)+(Z229*'Status (c3a)'!Q45)+(Z231*'Status (c3a)'!Y45)+(Z234*'Status (c3a)'!AB45),2)","v":0},"pdown"]
["c5.58a.33",null,null,null,null,null,null,null,null,null,null,null,null,null,null,null,null,{"$f":"\"lower of \"&M45&\" and \"&Q236","v":"lower of c5.23 and c5.55.3"},null,"Savings Starter rate",{"$f":"A185","v":"c5.56e1"},{"$f":"MIN(V235,MAX(0,(SR_band-V219)))","v":0},null,null,null,{"$f":"\"lower of (\"&E176&\" minus (\"&Y68&\" + \"&Y217&\")) and (\"&'Status (c3a)'!H33&\" minus (\"&Y74&\" + \"&Y76&\" + \"&Y219&\"))\"","v":"lower of (c5.36 minus (c5.58a.1b + c5.58a.54)) and (c3a.1a minus (c5.58a.3 + c5.58a.4 + c5.58a.55))"}]
["c5.58a.34",null,null,null,null,null,null,null,null,null,null,null,null,null,null,"DivBR 0%",{"$f":"A131","v":"c5.55.4"},{"$f":"MIN(N45,R236)","v":0},null,null,null,{"$f":"\"lower of (\"&U221&\" minus \"&U237&\") and \"&'Deductions (c4)'!L639","v":"lower of (c5.56.2 minus c5.56e1) and c4.79"},null,"LS income in SSR_rate",{"$f":"A272","v":"c5.58a.63"},{"$f":"MAX(0,MIN(F176-(Z68+Z217),'Status (c3a)'!I33-(Z74+Z76+Z219)))","v":0}]
["c5.58a.35",null,null,null,null,null,null,null,null,null,null,null,null,null,null,null,null,{"$f":"Q236&\" minus \"&Q238","v":"c5.55.3 minus c5.55.4"},null,null,{"$f":"A186","v":"c5.56f"},{"$f":"MIN(MAX(0,V221-V237),'Deductions (c4)'!M639)","v":0},null,null,null,{"$f":"\"lower of (\"&E176&\" minus (\"&Y68&\" + \"&Y217&\" + \"&Y238&\")) and ((\"&'Status (c3a)'!H33&\" + \"&U8&\") minus (\"&Y74&\" + \"&Y76&\" + \"&Y219&\" + \"&Y238&\"))\"","v":"lower of (c5.36 minus (c5.58a.1b + c5.58a.54 + c5.58a.63)) and ((c3a.1a + c5.2) minus (c5.58a.3 + c5.58a.4 + c5.58a.55 + c5.58a.63))"}]
["c5.58a.36",null,null,null,null,null,null,null,null,null,null,null,null,null,null,"DivBR 8.75%",{"$f":"A132","v":"c5.55.5"},{"$f":"MAX(0,R236-R238)","v":0},null,null,null,{"$f":"\"lower of \"&U239&\" and (\"&AK8&\" minus \"&U219&\")\"","v":"lower of c5.56f and (c5.2a minus c5.56.1)"},null,"LS income in BR_rate/SBR_rate",{"$f":"A273","v":"c5.58a.64"},{"$f":"MAX(0,MIN(F176-(Z68+Z217+Z238),('Status (c3a)'!I33+V8)-(Z74+Z76+Z219+Z238)))","v":0}]
["c5.58a.37",null,null,null,null,null,null,null,null,null,null,null,null,null,null,null,null,{"$f":"\"lower of \"&Q79&\" and (\"&E149&\" minus (\"&I149&\" + \"&Q149&\"))\"","v":"lower of c5.52c and (c5.35 minus (c5.44 + c5.52h))"},null,"Sav income in PSA BR_rate",{"$f":"A187","v":"c5.56g"},{"$f":"MAX(0,MIN(V239,AL8-V219))","v":0},null,null,null,{"$f":"\"lower of (\"&E176&\" minus (\"&Y68&\" + \"&Y217&\" + \"&Y238&\" + \"&Y240&\")) and ((\"&'Status (c3a)'!H33&\" + \"&U8&\" + \"&'Status (c3a)'!P33&\") minus (\"&Y74&\" + \"&Y76&\" + \"&Y219&\" + \"&Y238&\" + \"&Y240&\"))\"","v":"lower of (c5.36 minus (c5.58a.1b + c5.58a.54 + c5.58a.63 + c5.58a.64)) and ((c3a.1a + c5.2 + c3a.2a) minus (c5.58a.3 + c5.58a.4 + c5.58a.55 + c5.58a.63 + c5.58a.64))"}]
["c5.58a.38",null,null,null,null,null,null,null,null,null,null,null,null,null,null,"Allcs offered to NS",{"$f":"A133","v":"c5.55.6"},{"$f":"MIN(R79,MAX(0,F149-(J149+R149)))","v":0},null,null,null,{"$f":"\"lower of (\"&U221&\" minus (\"&U237&\" + \"&U241&\")) and (\"&AK8&\" minus (\"&U219&\" + \"&U237&\" + \"&U241&\"))\"","v":"lower of (c5.56.2 minus (c5.56e1 + c5.56g)) and (c5.2a minus (c5.56.1 + c5.56e1 + c5.56g))"},null,"LS income in SIR_rate",{"$f":"A274","v":"c5.58a.65"},{"$f":"MAX(0,MIN(F176-(Z68+Z217+Z238+Z240),('Status (c3a)'!I33+V8+'Status (c3a)'!Q33)-(Z74+Z76+Z219+Z238+Z240)))","v":0}]
["c5.58a.39",null,null,null,null,null,null,null,null,null,null,null,null,null,null,null,null,{"$f":"Q222&\" minus \"&Q242","v":"c5.54a minus c5.55.6"},null,"Sav income in BR_rate",{"$f":"A188","v":"c5.56h"},{"$f":"MAX(0,MIN(V221-(V237+V241),(AL8-(V219+V237+V241))))","v":0},null,null,null,{"$f":"\"lower of (\"&E176&\" minus (\"&Y68&\" + \"&Y217&\" + \"&Y238&\" + \"&Y240&\" + \"&Y242&\")) and ((\"&'Status (c3a)'!H33&\" + \"&U8&\" + \"&'Status (c3a)'!P33&\" + \"&'Status (c3a)'!X33&\") minus (\"&Y74&\" + \"&Y76&\" + \"&Y219&\" + \"&Y238&\" + \"&Y240&\" + \"&Y242&\"))\"","v":"lower of (c5.36 minus (c5.58a.1b + c5.58a.54 + c5.58a.63 + c5.58a.64 + c5.58a.65)) and ((c3a.1a + c5.2 + c3a.2a + c3a.3) minus (c5.58a.3 + c5.58a.4 + c5.58a.55 + c5.58a.63 + c5.58a.64 + c5.58a.65))"}]
["c5.58a.40",null,null,null,null,null,null,null,null,null,null,null,null,null,null,null,{"$f":"A134","v":"c5.55.6a"},{"$f":"MAX(0,R222-R242)","v":0},null,null,null,{"$f":"\"(\"&'Status (c3a)'!AD33&\" + \"&'Deductions (c4)'!H383&\") minus (\"&U219&\" + \"&U237&\" + \"&U241&\" + \"&U243&\")\"","v":"(c3a.3a + c4.59) minus (c5.56.1 + c5.56e1 + c5.56g + c5.56h)"},null,"LS income in HR_rate/SHR_rate",{"$f":"A275","v":"c5.58a.66"},{"$f":"MAX(0,MIN(F176-(Z68+Z217+Z238+Z240+Z242),('Status (c3a)'!I33+V8+'Status (c3a)'!Q33+'Status (c3a)'!Y33)-(Z74+Z76+Z219+Z238+Z240+Z242)))","v":0}]
["c5.58a.41",null,null,null,null,null,null,null,null,null,null,null,null,null,null,null,null,{"$f":"\"SR_band (\"&DOLLAR(SR_band,0)&\") minus \"&Q244","v":"SR_band (£5,000) minus c5.55.6a"},null,null,{"$f":"A189","v":"c5.56i"},{"$f":"MAX(0,('Status (c3a)'!AE33+'Deductions (c4)'!I383)-(V219+V237+V241+V243))","v":125140},null,null,null,{"$f":"\"lower of (\"&E176&\" minus (\"&Y68&\" + \"&Y217&\" + \"&Y238&\" + \"&Y240&\" + \"&Y242&\" + \"&Y244&\")) and\"","v":"lower of (c5.36 minus (c5.58a.1b + c5.58a.54 + c5.58a.63 + c5.58a.64 + c5.58a.65 + c5.58a.66)) and"}]
["c5.58a.42",null,null,null,null,null,null,null,null,null,null,null,null,null,null,null,{"$f":"A135","v":"c5.55.6b"},{"$f":"MAX(0,SR_band-R244)","v":5000},null,null,null,{"$f":"\"lower of (\"&U245&\" and (\"&'Deductions (c4)'!L639&\" minus \"&U241&\"))\"","v":"lower of (c5.56i and (c4.79 minus c5.56g))"},null,null,null,{"$f":"\"((\"&'Status (c3a)'!H33&\" + \"&U8&\" + \"&'Status (c3a)'!P33&\" + \"&'Status (c3a)'!X33&\" + \"&'Status (c3a)'!AA33&\") minus (\"&Y74&\" + \"&Y76&\" + \"&Y219&\" + \"&Y238&\" + \"&Y240&\" + \"&Y242&\" + \"&Y244&\"))\"","v":"((c3a.1a + c5.2 + c3a.2a + c3a.3 + c3a.3.1) minus (c5.58a.3 + c5.58a.4 + c5.58a.55 + c5.58a.63 + c5.58a.64 + c5.58a.65 + c5.58a.66))"}]
["c5.58a.43",null,null,null,null,null,null,null,null,null,null,null,null,null,null,null,null,{"$f":"\"lower of (\"&Q79&\" minus \"&Q242&\") and (\"&E199&\" minus (\"&M33&\" + \"&AG36&\" + \"&AO36&\" + \"&I199&\" + \"&Q199&\" + \"&Q246&\"))\"","v":"lower of (c5.52c minus c5.55.6) and (c5.37 minus (c5.14 + c5.19 + c5.20c + c5.46 + c5.52l + c5.55.6b))"},null,null,{"$f":"A190","v":"c5.56j"},{"$f":"MAX(0,MIN(V245,PSA-V241))","v":1000},null,null,{"$f":"A276","v":"c5.58a.66a"},{"$f":"MAX(0,MIN(F176-(Z68+Z217+Z238+Z240+Z242+Z244),('Status (c3a)'!I33+V8+'Status (c3a)'!Q33+'Status (c3a)'!Y33+'Status (c3a)'!AB33)-(Z74+Z76+Z219+Z238+Z240+Z242+Z244)))","v":0}]
["c5.58a.43a",null,null,null,null,null,null,null,null,null,null,null,null,null,null,"Allcs offered to Sav",{"$f":"A136","v":"c5.55.7"},{"$f":"MAX(0,MIN(R79-R242,F199-(N33+AH36+AP36+J199+R199+R246)))","v":0},null,null,null,{"$f":"\"lower of \"&U247&\" and (\"&U221&\" minus (\"&U237&\" + \"&U241&\" + \"&U243&\"))\"","v":"lower of c5.56j and (c5.56.2 minus (c5.56e1 + c5.56g + c5.56h))"},null,null,null,{"$f":"\"(\"&Y238&\" × \"&'Status (c3a)'!H45&\") + (\"&Y240&\" × \"&'Status (c3a)'!L45&\") + (\"&Y242&\" × \"&'Status (c3a)'!P45&\") + (\"&Y244&\" × \"&'Status (c3a)'!X45&\") + (\"&Y247&\" × \"&'Status (c3a)'!AA45&\")\"","v":"(c5.58a.63 × c3a.3b) + (c5.58a.64 × c3a.4) + (c5.58a.65 × c3a.4a) + (c5.58a.66 × c3a.5) + (c5.58a.66a × c3a.5a)"}]
["c5.58.43a",null,null,null,null,null,null,null,null,null,null,null,null,null,null,null,null,{"$f":"\"lower of (\"&Q242&\" and \"&Q240&\") × DivBR_rate (\"&DivBR_rate*100&\"%)\"","v":"lower of (c5.55.6 and c5.55.5) × DivBR_rate (8.75%)"},null,"Sav income in PSA HR_rate",{"$f":"A191","v":"c5.56k"},{"$f":"MAX(0,MIN(V247,V221-(V237+V241+V243)))","v":0},null,"Total tax on Lump Sum income",{"$f":"A277","v":"c5.58a.67"},{"$f":"TRUNC((Z238*'Status (c3a)'!I45)+(Z240*'Status (c3a)'!M45)+(Z242*'Status (c3a)'!Q45)+(Z244*'Status (c3a)'!Y45)+(Z247*'Status (c3a)'!AB45),2)","v":0},"pdown"]
["c5.58a.44",null,null,null,null,null,null,null,null,null,null,null,null,null,null,null,{"$f":"A137","v":"c5.55.8"},{"$f":"TRUNC(MIN(R242,R240)*DivBR_rate,2)","v":0},"pdown",null,null,{"$f":"\"lower of (\"&U221&\" minus (\"&U237&\" + \"&U241&\" + \"&U243&\" + \"&U249&\")) and \"&U245","v":"lower of (c5.56.2 minus (c5.56e1 + c5.56g + c5.56h + c5.56k)) and c5.56i"},null,null,null,{"$f":"Y236&\" minus \"&Y249","v":"c5.58a.62 minus c5.58a.67"}]
["c5.58a.45",null,null,null,null,null,null,null,null,null,null,null,null,null,null,null,null,{"$f":"\"(\"&Q242&\" minus (lower of \"&Q242&\" and \"&Q240&\")) × DivHR_rate (\"&DivHR_rate*100&\"%)\"","v":"(c5.55.6 minus (lower of c5.55.6 and c5.55.5)) × DivHR_rate (33.75%)"},null,"Sav income in HR_rate",{"$f":"A192","v":"c5.56l"},{"$f":"MAX(0,MIN(V221-(V237+V241+V243+V249),V245))","v":0},null,"Reduction of Lump Sum tax",{"$f":"A278","v":"c5.58a.68"},{"$f":"MAX(0,Z236-Z249)","v":0}]
["c5.58a.46",null,null,null,null,null,null,null,null,null,null,null,null,null,null,null,{"$f":"A138","v":"c5.55.9"},{"$f":"MAX(0,TRUNC((R242-(MIN(R242,R240)))*DivHR_rate,2))","v":0},"pdown",null,null,{"$f":"\"if \"&Q330&\" = 0 (zero)\"","v":"if c5.56 = 0 (zero)"},null,null,null,{"$f":"\"lower of \"&Y221&\" and SR_band (\"&DOLLAR(SR_band,0)&\")\"","v":"lower of c5.58a.56 and SR_band (£5,000)"}]
["c5.58a.47",null,null,null,null,null,null,null,null,null,null,null,null,null,null,null,null,{"$f":"Q250&\" + \"&Q252","v":"c5.55.8 + c5.55.9"},null,null,null,{"$f":"U257&\" = (lower of \"&Q248&\" and (\"&Q270&\" minus \"&U243&\")) × BR_rate (\"&BR_rate*100&\"%)\"","v":"c5.56m = (lower of c5.55.7 and (c5.55.17 minus c5.56h)) × BR_rate (20%)"},null,null,{"$f":"A279","v":"c5.58a.69"},{"$f":"MIN(Z221,SR_band)","v":0}]
["c5.58a.48",null,null,null,null,null,null,null,null,null,null,null,null,null,null,"Reduction of dividend tax",{"$f":"A139","v":"c5.55.10"},{"$f":"R250+R252","v":0},null,null,null,"else",null,null,null,{"$f":"\"lower of \"&Y253&\" and (SR_band (\"&DOLLAR(SR_band,0)&\") minus \"&Y219&\")\"","v":"lower of c5.58a.69 and (SR_band (£5,000) minus c5.58a.55)"}]
["c5.58a.49",null,null,null,null,null,null,null,null,null,null,null,null,null,null,null,null,{"$f":"\"lower of \"&Q222&\" and \"&'Status (c3a)'!H33","v":"lower of c5.54a and c3a.1a"},null,null,null,{"$f":"U257&\" = (lower of \"&Q248&\" and (\"&Q300&\" minus \"&U243&\")) × BR_rate (\"&BR_rate*100&\"%)\"","v":"c5.56m = (lower of c5.55.7 and (c5.55.31 minus c5.56h)) × BR_rate (20%)"},null,"Savings Starter rate",{"$f":"A280","v":"c5.58a.70"},{"$f":"MIN(Z253,MAX(0,(SR_band-Z219)))","v":0}]
["c5.58a.50",null,null,null,null,null,null,null,null,null,null,null,null,null,null,"NS income in SSR_rate",{"$f":"A140","v":"c5.55.11"},{"$f":"MIN(R222,'Status (c3a)'!I33)","v":0},null,null,null,"end if",null,null,null,{"$f":"\"lower of (\"&Y221&\" minus \"&Y255&\") and \"&'Deductions (c4)'!L639","v":"lower of (c5.58a.56 minus c5.58a.70) and c4.79"}]
["c5.58a.51",null,null,null,null,null,null,null,null,null,null,null,null,null,null,null,null,{"$f":"\"lower of (\"&Q222&\" minus \"&Q256&\") and \"&U8","v":"lower of (c5.54a minus c5.55.11) and c5.2"},null,"Sav Basic rate",{"$f":"A193","v":"c5.56m"},{"$f":"MAX(0,IF(R330=0,TRUNC((MIN(R248,R270-V243))*BR_rate,2),TRUNC((MIN(R248,R300-V243))*BR_rate,2)))","v":0},"pdown",null,{"$f":"A281","v":"c5.58a.71"},{"$f":"MAX(0,MIN(Z221-Z255,'Deductions (c4)'!M639))","v":0}]
["c5.58a.52",null,null,null,null,null,null,null,null,null,null,null,null,null,null,"NS income in BR_rate/SBR_rate",{"$f":"A141","v":"c5.55.12"},{"$f":"MIN(MAX(0,R222-R256),V8)","v":0},null,null,null,{"$f":"\"if \"&Q330&\" = 0 (zero)\"","v":"if c5.56 = 0 (zero)"},null,null,null,{"$f":"\"lower of \"&Y257&\" and (\"&AK8&\" minus \"&Y219&\")\"","v":"lower of c5.58a.71 and (c5.2a minus c5.58a.55)"}]
["c5.58a.53",null,null,null,null,null,null,null,null,null,null,null,null,null,null,null,null,{"$f":"\"lower of (\"&Q222&\" minus (\"&Q256&\" + \"&Q258&\")) and \"&'Status (c3a)'!P33","v":"lower of (c5.54a minus (c5.55.11 + c5.55.12)) and c3a.2a"},null,null,null,{"$f":"U263&\" = (lower of \"&Q248&\" and (\"&Q278&\" minus \"&U251&\")) × HR_rate (\"&HR_rate*100&\"%)\"","v":"c5.56n = (lower of c5.55.7 and (c5.55.21 minus c5.56l)) × HR_rate (40%)"},null,"Sav income in PSA BR_rate",{"$f":"A282","v":"c5.58a.72"},{"$f":"MAX(0,MIN(Z257,AL8-Z219))","v":0}]
["c5.58a.53a",null,null,null,null,null,null,null,null,null,null,null,null,null,null,"NS income in SIR_rate",{"$f":"A142","v":"c5.55.13"},{"$f":"MAX(0,MIN((R222-(R256+R258)),'Status (c3a)'!Q33))","v":0},null,null,null,"else",null,null,null,{"$f":"\"lower of (\"&Y221&\" minus (\"&Y255&\" + \"&Y259&\")) and (\"&AK8&\" minus (\"&Y219&\" + \"&Y255&\" + \"&Y259&\"))\"","v":"lower of (c5.58a.56 minus (c5.58a.70 + c5.58a.72)) and (c5.2a minus (c5.58a.55 + c5.58a.70 + c5.58a.72))"}]
["c5.58a.53b",null,null,null,null,null,null,null,null,null,null,null,null,null,null,null,null,{"$f":"\"lower of (\"&Q222&\" minus (\"&Q256&\" + \"&Q258&\" + \"&Q260&\")) and \"&'Status (c3a)'!X33","v":"lower of (c5.54a minus (c5.55.11 + c5.55.12 + c5.55.13)) and c3a.3"},null,null,null,{"$f":"U263&\" = (lower of \"&Q248&\" and (\"&Q308&\" minus \"&U251&\")) × HR_rate (\"&HR_rate*100&\"%)\"","v":"c5.56n = (lower of c5.55.7 and (c5.55.35 minus c5.56l)) × HR_rate (40%)"},null,"Sav income in BR_rate",{"$f":"A283","v":"c5.58a.73"},{"$f":"MAX(0,MIN(Z221-(Z255+Z259),(AL8-(Z219+Z255+Z259))))","v":0}]
["c5.58a.54",null,null,null,null,null,null,null,null,null,null,null,null,null,null,"NS income in HR_rate/SHR_rate",{"$f":"A143","v":"c5.55.14"},{"$f":"MAX(0,MIN((R222-(R256+R258+R260)),'Status (c3a)'!Y33))","v":0},null,null,null,"end if",null,null,null,{"$f":"\"(\"&'Status (c3a)'!AD33&\" + \"&'Deductions (c4)'!H383&\") minus (\"&Y219&\" + \"&Y255&\" + \"&Y259&\" + \"&Y261&\")\"","v":"(c3a.3a + c4.59) minus (c5.58a.55 + c5.58a.70 + c5.58a.72 + c5.58a.73)"}]
["c5.58a.55",null,null,null,null,null,null,null,null,null,null,null,null,null,null,null,null,{"$f":"\"lower of (\"&Q222&\" minus (\"&Q256&\" + \"&Q258&\" + \"&Q260&\" + \"&Q262&\")) and \"&'Status (c3a)'!AA33","v":"lower of (c5.54a minus (c5.55.11 + c5.55.12 + c5.55.13 + c5.55.14)) and c3a.3.1"},null,"Sav Higher rate",{"$f":"A194","v":"c5.56n"},{"$f":"MAX(0,IF(R330=0,TRUNC((MIN(R248,R278-V251))*HR_rate,2),TRUNC((MIN(R248,R308-V251))*HR_rate,2)))","v":0},"pdown",null,{"$f":"A284","v":"c5.58a.74"},{"$f":"MAX(0,('Status (c3a)'!AE33+'Deductions (c4)'!I383)-(Z219+Z255+Z259+Z261))","v":125140}]
["c5.58a.56",null,null,null,null,null,null,null,null,null,null,null,null,null,null,"NS income in SAR_rate",{"$f":"A144","v":"c5.55.14a"},{"$f":"MAX(0,MIN((R222-(R256+R258+R260+R262)),'Status (c3a)'!AB33))","v":0},null,null,null,{"$f":"U257&\" + \"&U263","v":"c5.56m + c5.56n"},null,null,null,{"$f":"\"lower of (\"&Y263&\" and (\"&'Deductions (c4)'!L639&\" minus \"&Y259&\"))\"","v":"lower of (c5.58a.74 and (c4.79 minus c5.58a.72))"}]
["c5.58a.57",null,null,null,null,null,null,null,null,null,null,null,null,null,null,null,null,{"$f":"\"lower of (\"&Q224&\" minus \"&Q228&\") and \"&'Deductions (c4)'!L639","v":"lower of (c5.54a1 minus c5.54c) and c4.79"},null,"Reduction of savings tax",{"$f":"A195","v":"c5.56o"},{"$f":"V257+V263","v":0},null,null,{"$f":"A285","v":"c5.58a.75"},{"$f":"MAX(0,MIN(Z263,PSA-Z259))","v":1000}]
["c5.58a.58",null,null,null,null,null,null,null,null,null,null,null,null,null,null,"SR_band savings",{"$f":"A145","v":"c5.55.15"},{"$f":"MIN(MAX(0,R224-R228),'Deductions (c4)'!M639)","v":0},null,null,null,{"$f":"\"If \"&U265&\" larger than or equal to \"&U233","v":"If c5.56o larger than or equal to c5.56d"},null,null,null,{"$f":"\"lower of \"&Y265&\" and (\"&Y221&\" minus (\"&Y255&\" + \"&Y259&\" + \"&Y261&\"))\"","v":"lower of c5.58a.75 and (c5.58a.56 minus (c5.58a.70 + c5.58a.72 + c5.58a.73))"}]
["c5.58a.59",null,null,null,null,null,null,null,null,null,null,null,null,null,null,null,null,{"$f":"\"lower of \"&Q266&\" and (\"&AK8&\" minus \"&Q222&\")\"","v":"lower of c5.55.15 and (c5.2a minus c5.54a)"},null,null,null,{"$f":"U271&\" = \"&Q248","v":"c5.56p = c5.55.7"},null,"Sav income in PSA HR_rate",{"$f":"A286","v":"c5.58a.76"},{"$f":"MAX(0,MIN(Z265,Z221-(Z255+Z259+Z261)))","v":0}]
["c5.58a.60",null,null,null,null,null,null,null,null,null,null,null,null,null,null,"Sav income in PSA BR_rate",{"$f":"A146","v":"c5.55.16"},{"$f":"MAX(0,MIN(R266,AL8-R222))","v":0},null,null,null,"else",null,null,null,{"$f":"\"lower of (\"&Y221&\" minus (\"&Y255&\" + \"&Y259&\" + \"&Y261&\" + \"&Y267&\")) and \"&Y263","v":"lower of (c5.58a.56 minus (c5.58a.70 + c5.58a.72 + c5.58a.73 + c5.58a.76)) and c5.58a.74"},null,null,null,{"$f":"Q149&\" + \"&Q199&\" + \"&U280&\" + \"&AC176","v":"c5.52h + c5.52l + c5.58 + c5.58h"},null,null,null,null,null,null,null,{"$f":"AG149&\" + \"&AG176&\" + \"&AK149&\" + \"&AK176&\" + \"&AK193&\" + \"&AK199","v":"c5.58.7 + c5.58.9 + c5.62 + c5.63 + c5.63a + c5.64"}]
["c5.58a.61",null,null,null,null,null,null,null,null,null,null,null,null,null,null,null,null,{"$f":"\"lower of (\"&Q224&\" minus (\"&Q228&\" + \"&Q268&\")) and (\"&AK8&\" minus (\"&Q222&\" + \"&Q228&\" + \"&Q268&\"))\"","v":"lower of (c5.54a1 minus (c5.54c + c5.55.16)) and (c5.2a minus (c5.54a + c5.54c + c5.55.16))"},null,null,null,{"$f":"U271&\" = 0 (zero)\"","v":"c5.56p = 0 (zero)"},null,"Sav income in HR_rate",{"$f":"A287","v":"c5.58a.77"},{"$f":"MAX(0,MIN(Z221-(Z255+Z259+Z261+Z267),Z263))","v":0},null,null,{"$f":"A308","v":"c5.58i"},{"$f":"R149+R199+V280+AD176","v":0},null,null,null,null,null,null,{"$f":"A330","v":"c5.65"},{"$f":"AH149+AH176+AL149+AL176+AL193+AL199","v":0}]
["c5.58a.61a",null,null,null,null,null,null,null,null,null,null,null,null,null,null,"Sav income in BR_rate",{"$f":"A147","v":"c5.55.17"},{"$f":"MAX(0,MIN(R224-(R228+R268),(AL8-(R222+R228+R268))))","v":0},null,null,null,"end if",null,null,null,{"$f":"\"lower of \"&Y76&\" and ((BR_band (\"&DOLLAR(BR_band,0)&\") + \"&'Deductions (c4)'!L511&\") minus (\"&Y221&\" + \"&Y219&\"))\"","v":"lower of c5.58a.4 and ((BR_band (£37,700) + c4.75) minus (c5.58a.56 + c5.58a.55))"}]
["c5.58a.62",null,null,null,null,null,null,null,null,null,null,null,null,null,null,null,null,{"$f":"\"(\"&'Status (c3a)'!AD33&\" + \"&'Deductions (c4)'!H383&\") minus (\"&Q222&\" + \"&Q228&\" + \"&Q268&\" + \"&Q270&\")\"","v":"(c3a.3a + c4.59) minus (c5.54a + c5.54c + c5.55.16 + c5.55.17)"},null,null,{"$f":"A196","v":"c5.56p"},{"$f":"IF(V265>=V233,R248,0)","v":0},null,"Div Income in basic rate band",{"$f":"A288","v":"c5.58a.78"},{"$f":"MAX(0,MIN(Z76,(BR_band+'Deductions (c4)'!M511)-(Z221+Z219)))","v":0}]
["c5.58a.63",null,null,null,null,null,null,null,null,"set to zero",null,null,null,null,null,null,{"$f":"A148","v":"c5.55.18"},{"$f":"MAX(0,('Status (c3a)'!AE33+'Deductions (c4)'!I383)-(R222+R228+R268+R270))","v":125140},null,null,null,null,null,null,null,{"$f":"\"lower of \"&U225&\" and \"&Y147","v":"lower of c5.56b and c5.58a.35"}]
["c5.58a.64",null,null,null,null,null,null,null,{"$f":"A71","v":"c5.47a"},0,null,null,null,null,null,null,null,{"$f":"\"lower of (\"&Q272&\" and (\"&'Deductions (c4)'!L639&\" minus \"&Q268&\"))\"","v":"lower of (c5.55.18 and (c4.79 minus c5.55.16))"},null,null,null,{"$f":"\"lower of \"&Q330&\" and (\"&E149&\" minus \"&Q149&\")\"","v":"lower of c5.56 and (c5.35 minus c5.52h)"},null,"DivBR 0%",{"$f":"A289","v":"c5.58a.79"},{"$f":"MIN(V225,Z147)","v":0}]
["c5.58a.65",null,null,null,null,null,null,null,null,null,null,null,null,null,null,null,{"$f":"A149","v":"c5.55.19"},{"$f":"MAX(0,MIN(R272,PSA-R268))","v":1000},null,null,{"$f":"A198","v":"c5.57"},{"$f":"MAX(0,MIN(R330,F149-R149))","v":0},null,null,null,{"$f":"Y271&\" minus \"&Y273","v":"c5.58a.78 minus c5.58a.79"}]
["c5.58a.66",null,null,null,null,"If calculation type = non-resident",null,null,null,null,null,null,null,null,null,null,null,{"$f":"\"lower of \"&Q274&\" and (\"&Q224&\" minus (\"&Q228&\" + \"&Q268&\" + \"&Q270&\"))\"","v":"lower of c5.55.19 and (c5.54a1 minus (c5.54c + c5.55.16 + c5.55.17))"},null,null,null,{"$f":"\"lower of \"&U271&\" and ((\"&E149&\" minus \"&Q330&\") + \"&I136&\")\"","v":"lower of c5.56p and ((c5.35 minus c5.56) + c5.43c)"},null,"DivBR 8.75%",{"$f":"A290","v":"c5.58a.80"},{"$f":"MAX(0,Z271-Z273)","v":0}]
["c5.58a.66a",null,null,null,null,"c5.38 = 0 (zero)",null,null,null,null,null,null,null,null,null,"Sav income in PSA HR_rate",{"$f":"A150","v":"c5.55.20"},{"$f":"MAX(0,MIN(R274,R224-(R228+R268+R270)))","v":0},null,null,{"$f":"A197","v":"c5.57a"},{"$f":"MAX(0,MIN(V271,(F149-R330)+J136))","v":0},null,null,null,{"$f":"\"lower of (\"&'Deductions (c4)'!L646&\" minus \"&Y273&\") and (\"&Y76&\" minus (\"&Y273&\" + \"&Y275&\"))\"","v":"lower of (c4.80 minus c5.58a.79) and (c5.58a.4 minus (c5.58a.79 + c5.58a.80))"}]
["c5.58a.67",null,null,null,null,"else",null,null,null,null,null,null,null,null,null,null,null,{"$f":"\"lower of (\"&Q224&\" minus (\"&Q228&\" + \"&Q268&\" + \"&Q270&\" + \"&Q276&\")) and \"&Q272","v":"lower of (c5.54a1 minus (c5.54c + c5.55.16 + c5.55.17 + c5.55.20)) and c5.55.18"},null,null,null,{"$f":"\"lower of (\"&E8&\" minus\"","v":"lower of (c5.1 minus"},null,"DivHR 0%",{"$f":"A291","v":"c5.58a.81"},{"$f":"MAX(0,MIN(DA-Z273,Z76-(Z273+Z275)))","v":0},null,null,null,"Set to zero",null,null,null,null,null,null,null,{"$f":"\"lower of (\"&E8&\" minus\"","v":"lower of (c5.1 minus"}]
["c5.58a.68",null,null,null,null,{"$f":"E280&\" = (\"&'Divs (c3)'!G5&\" + \"&'Divs (c3)'!G21&\") minus \"&'Deductions (c4)'!H310","v":"c5.38 = (c3.1 + c3.5) minus c4.47.27"},null,null,null,null,null,null,null,null,null,"Sav income in HR_rate",{"$f":"A151","v":"c5.55.21"},{"$f":"MAX(0,MIN(R224-(R228+R268+R270+R276),R272))","v":0},null,null,null,{"$f":"\"(\"&I205&\" + \"&I280&\" + \"&Q149&\" + \"&Q199&\" + \"&U274&\" + \"&U276&\"))\"","v":"(c5.47 + c5.48 + c5.52h + c5.52l + c5.57 + c5.57a))"},null,null,null,{"$f":"Y76&\" minus (\"&Y273&\" + \"&Y275&\" + \"&Y277&\")\"","v":"c5.58a.4 minus (c5.58a.79 + c5.58a.80 + c5.58a.81)"},null,null,{"$f":"A309","v":"c5.58j"},0,null,null,null,null,null,null,null,{"$f":"\"(\"&I205&\" + \"&I280&\" + \"&AC269&\" + \"&AC280&\" + \"&AK269&\")) and\"","v":"(c5.47 + c5.48 + c5.58i + c5.58k + c5.65)) and"},null,null,null,null,null,null,null,null,null,null,null,{"$f":"\" larger of (\"&E8&\" minus (\"&AW149&\" + \"&AW176&\" + \"&AW199&\")) and\"","v":" larger of (c5.1 minus (c5.67 + c5.68 + c5.69)) and"}]
["c5.58a.69",null,null,null,null,"end if",null,null,null,"set to zero",null,null,null,null,null,null,null,{"$f":"Q222&\" minus \"&Q242","v":"c5.54a minus c5.55.6"},null,null,null,{"$f":"\"and (\"&Q242&\" + \"&Q248&\") minus (\"&Q330&\" + \"&U271&\")\"","v":"and (c5.55.6 + c5.55.7) minus (c5.56 + c5.56p)"},null,"DivHR 33.75%",{"$f":"A292","v":"c5.58a.82"},{"$f":"MAX(0,Z76-(Z273+Z275+Z277))","v":0},null,null,null,{"$f":"\"lower of (\"&E8&\" minus (\"&I205&\" + \"&I280&\" + \"&AC269&\")) and \"&Q86","v":"lower of (c5.1 minus (c5.47 + c5.48 + c5.58i)) and c5.52d"},null,null,null,null,null,null,null,{"$f":"\"(\"&U49&\" + (\"&AK49&\" minus (\"&U280&\" + \"&AC280&\")) + (\"&AS49&\" minus \"&I280&\"))\"","v":"(c5.25 + (c5.30 minus (c5.58 + c5.58k)) + (c5.34 minus c5.48))"},null,null,null,null,null,null,null,null,null,null,null,{"$f":"\"((\"&I280&\" + \"&U280&\" + \"&AC280&\" + \"&AK280&\") minus \"&AW139&\")\"","v":"((c5.48 + c5.58 + c5.58k + c5.66) minus c5.66t)"},null,null,null,{"$f":"E280&\" minus \"&AW280","v":"c5.38 minus c5.70"}]
["c5.58a.70",null,"Foreign dividends",null,"c5.38",{"$f":"IF(non_resident,0,'Divs (c3)'!H5+'Divs (c3)'!H21-'Deductions (c4)'!I310)","v":0},null,null,{"$f":"A72","v":"c5.48"},0,null,null,null,null,null,"NS Income after Allcs, inc Allcs offered to Div",{"$f":"A152","v":"c5.55.22"},{"$f":"MAX(0,R222-R242)","v":0},null,null,{"$f":"A199","v":"c5.58"},{"$f":"MAX(0,MIN(F8-(J205+J280+R149+R199+V274+V276),(R242+R248)-(R330+V271)))","v":0},null,null,null,{"$f":"\"lower of \"&Y223&\" and (\"&'Status (c3a)'!H33&\" minus (\"&Y76&\" + \"&Y221&\" + \"&Y219&\"))\"","v":"lower of c5.58a.57 and (c3a.1a minus (c5.58a.4 + c5.58a.56 + c5.58a.55))"},null,null,{"$f":"A310","v":"c5.58k"},{"$f":"MAX(0,MIN(F8-(J205+J280+AD269),R86))","v":0},null,null,null,null,null,null,{"$f":"A331","v":"c5.66"},{"$f":"MAX(0,MIN(F8-(J205+J280+AD269+AD280+AL269),V49+(AL49-(V280+AD280))+(AT49-J280)))","v":0},null,null,null,null,null,null,null,null,null,null,{"$f":"A403","v":"c5.70"},{"$f":"MAX(0,F8-(AX149+AX176+AX199),(J280+V280+AD280+AL280)-AX139)","v":12570},null,null,{"$f":"A412","v":"c5.79"},{"$f":"MAX(0,F280-AX280)","v":0},null,"Foreign dividends"]
["c5.58a.71",null,null,null,null,null,null,null,null,null,null,null,null,null,null,null,null,{"$f":"\"lower of \"&Q280&\" and \"&'Status (c3a)'!H33","v":"lower of c5.55.22 and c3a.1a"},null,null,null,null,null,"LS income in SSR_rate",{"$f":"A293","v":"c5.58a.83"},{"$f":"MAX(0,MIN(Z223,'Status (c3a)'!I33-(Z76+Z221+Z219)))","v":0}]
["c5.58a.72",null,null,null,null,null,null,null,null,null,null,null,null,null,null,"NS income in SSR_rate",{"$f":"A153","v":"c5.55.23"},{"$f":"MIN(R280,'Status (c3a)'!I33)","v":0},null,null,null,null,null,null,null,{"$f":"\"lower of (\"&Y223&\" minus \"&Y281&\") and ((\"&'Status (c3a)'!H33&\" + \"&U8&\") minus (\"&Y76&\" + \"&Y219&\" + \"&Y221&\" + \"&Y281&\"))\"","v":"lower of (c5.58a.57 minus c5.58a.83) and ((c3a.1a + c5.2) minus (c5.58a.4 + c5.58a.55 + c5.58a.56 + c5.58a.83))"}]
["c5.58a.73",null,null,null,null,"If calculation type = non-resident",null,null,null,null,null,null,null,null,null,null,null,{"$f":"\"lower of (\"&Q280&\" minus \"&Q282&\") and \"&U8","v":"lower of (c5.55.22 minus c5.55.23) and c5.2"},null,null,null,null,null,"LS income in BR_rate/SBR_rate",{"$f":"A294","v":"c5.58a.84"},{"$f":"MAX(0,MIN((Z223-Z281),(('Status (c3a)'!I33+V8)-(Z76+Z219+Z221+Z281))))","v":0}]
["c5.58a.74",null,null,null,null,"c5.39 = 0 (zero)",null,null,null,null,null,null,null,null,null,"NS income in BR_rate/SBR_rate",{"$f":"A154","v":"c5.55.24"},{"$f":"MIN(MAX(0,R280-R282),V8)","v":0},null,null,null,null,null,null,null,{"$f":"\"lower of (\"&Y223&\" minus (\"&Y281&\" + \"&Y283&\")) and ((\"&'Status (c3a)'!H33&\" + \"&U8&\" + \"&'Status (c3a)'!P33&\") minus (\"&Y76&\" + \"&Y219&\" + \"&Y221&\" + \"&Y281&\" + \"&Y283&\"))\"","v":"lower of (c5.58a.57 minus (c5.58a.83 + c5.58a.84)) and ((c3a.1a + c5.2 + c3a.2a) minus (c5.58a.4 + c5.58a.55 + c5.58a.56 + c5.58a.83 + c5.58a.84))"}]
["c5.58a.75",null,null,null,null,"else",null,null,null,null,null,null,null,null,null,null,null,{"$f":"\"lower of (\"&Q280&\" minus (\"&Q282&\" + \"&Q284&\")) and \"&'Status (c3a)'!P33","v":"lower of (c5.55.22 minus (c5.55.23 + c5.55.24)) and c3a.2a"},null,null,null,null,null,"LS income in SIR_rate",{"$f":"A295","v":"c5.58a.85"},{"$f":"MAX(0,MIN(Z223-(Z281+Z283),('Status (c3a)'!I33+V8+'Status (c3a)'!Q33)-(Z76+Z219+Z221+Z281+Z283)))","v":0}]
["c5.58a.76",null,null,null,null,"c5.39 = c3.12 + c3.13",null,null,null,null,null,null,null,null,null,"NS income in SIR_rate",{"$f":"A155","v":"c5.55.25"},{"$f":"MAX(0,MIN((R280-(R282+R284)),'Status (c3a)'!Q33))","v":0},null,null,null,null,null,null,null,{"$f":"\"lower of (\"&Y223&\" minus (\"&Y281&\" + \"&Y283&\" + \"&Y285&\")) and ((\"&'Status (c3a)'!H33&\" + \"&U8&\" + \"&'Status (c3a)'!P33&\" + \"&'Status (c3a)'!X33&\") minus (\"&Y76&\" + \"&Y219&\" + \"&Y221&\" + \"&Y281&\" + \"&Y283&\" + \"&Y285&\"))\"","v":"lower of (c5.58a.57 minus (c5.58a.83 + c5.58a.84 + c5.58a.85)) and ((c3a.1a + c5.2 + c3a.2a + c3a.3) minus (c5.58a.4 + c5.58a.55 + c5.58a.56 + c5.58a.83 + c5.58a.84 + c5.58a.85))"}]
["c5.58a.77",null,null,null,null,"end if",null,null,null,null,null,null,null,null,null,null,null,{"$f":"\"lower of (\"&Q280&\" minus (\"&Q282&\" + \"&Q284&\" + \"&Q286&\")) and \"&'Status (c3a)'!X33","v":"lower of (c5.55.22 minus (c5.55.23 + c5.55.24 + c5.55.25)) and c3a.3"},null,null,null,null,null,"LS income in HR_rate/SHR_rate",{"$f":"A296","v":"c5.58a.86"},{"$f":"MAX(0,MIN(Z223-(Z281+Z283+Z285),('Status (c3a)'!I33+V8+'Status (c3a)'!Q33+'Status (c3a)'!Y33)-(Z76+Z219+Z221+Z281+Z283+Z285)))","v":0},null,null,null,null,null,null,null,null,null,null,null,null,null,null,null,null,null,null,null,null,null,null,null,{"$f":"AW280&\" minus \"&E280","v":"c5.70 minus c5.38"},null,null,null,{"$f":"E288&\" minus \"&AW288","v":"c5.39 minus c5.71"}]
["c5.58a.78",null,"Stock dividends",null,"c5.39",{"$f":"IF(non_resident,0,'Divs (c3)'!E50+'Divs (c3)'!E51)","v":0},null,null,null,null,null,null,null,null,null,"NS income in HR_rate/SHR_rate",{"$f":"A156","v":"c5.55.26"},{"$f":"MAX(0,MIN((R280-(R282+R284+R286)),'Status (c3a)'!Y33))","v":0},null,null,null,null,null,null,null,{"$f":"\"lower of (\"&Y223&\" minus (\"&Y281&\" + \"&Y283&\" + \"&Y285&\" + \"&Y287&\")) and\"","v":"lower of (c5.58a.57 minus (c5.58a.83 + c5.58a.84 + c5.58a.85 + c5.58a.86)) and"},null,null,null,null,null,null,null,null,null,null,null,null,null,null,null,null,null,null,null,null,null,null,{"$f":"A404","v":"c5.71"},{"$f":"MAX(0,AX280-F280)","v":12570},null,null,{"$f":"A413","v":"c5.80"},{"$f":"MAX(0,F288-AX288)","v":0},null,"Stock dividends"]
["c5.58a.79",null,null,null,null,null,null,null,null,null,null,null,null,null,null,null,null,{"$f":"\"lower of (\"&Q280&\" minus (\"&Q282&\" + \"&Q284&\" + \"&Q286&\" + \"&Q288&\")) and \"&'Status (c3a)'!AA33","v":"lower of (c5.55.22 minus (c5.55.23 + c5.55.24 + c5.55.25 + c5.55.26)) and c3a.3.1"},null,null,null,null,null,null,null,{"$f":"\"((\"&'Status (c3a)'!H33&\" + \"&U8&\" + \"&'Status (c3a)'!P33&\" + \"&'Status (c3a)'!X33&\" + \"&'Status (c3a)'!AA33&\") minus (\"&Y76&\" + \"&Y219&\" + \"&Y221&\" + \"&Y281&\" + \"&Y283&\" + \"&Y285&\" + \"&Y287&\"))\"","v":"((c3a.1a + c5.2 + c3a.2a + c3a.3 + c3a.3.1) minus (c5.58a.4 + c5.58a.55 + c5.58a.56 + c5.58a.83 + c5.58a.84 + c5.58a.85 + c5.58a.86))"}]
["c5.58a.80",null,null,null,null,null,null,null,null,null,null,null,null,null,null,"NS income in SAR_rate",{"$f":"A157","v":"c5.55.26a"},{"$f":"MAX(0,MIN((R280-(R282+R284+R286+R288)),'Status (c3a)'!AB33))","v":0},null,null,null,null,null,null,{"$f":"A297","v":"c5.58a.86a"},{"$f":"MAX(0,MIN(Z223-(Z281+Z283+Z285+Z287),('Status (c3a)'!I33+V8+'Status (c3a)'!Q33+'Status (c3a)'!Y33+'Status (c3a)'!AB33)-(Z76+Z219+Z221+Z281+Z283+Z285+Z287)))","v":0}]
["c5.58a.81",null,null,null,null,"If calculation type = non-resident",null,null,null,null,null,null,null,null,null,null,null,{"$f":"\"lower of \"&Q224&\" and SR_band (\"&DOLLAR(SR_band,0)&\")\"","v":"lower of c5.54a1 and SR_band (£5,000)"},null,null,null,null,null,null,null,{"$f":"\"(\"&Y281&\" × \"&'Status (c3a)'!H45&\") + (\"&Y283&\" × \"&'Status (c3a)'!L45&\") + (\"&Y285&\" × \"&'Status (c3a)'!P45&\") + (\"&Y287&\" × \"&'Status (c3a)'!X45&\") + (\"&Y290&\" × \"&'Status (c3a)'!AA45&\")\"","v":"(c5.58a.83 × c3a.3b) + (c5.58a.84 × c3a.4) + (c5.58a.85 × c3a.4a) + (c5.58a.86 × c3a.5) + (c5.58a.86a × c3a.5a)"},null,null,null,null,null,null,null,null,null,null,null,null,null,null,null,null,null,null,null,null,null,null,null,{"$f":"AW288&\" minus \"&E288","v":"c5.71 minus c5.39"},null,null,null,{"$f":"E296&\" minus \"&AW292","v":"c5.40 minus c5.72"}]
["c5.58a.82",null,null,null,null,"c5.40 = c91.23",null,null,null,null,null,null,null,null,null,null,{"$f":"A158","v":"c5.55.27"},{"$f":"MIN(R224,SR_band)","v":0},null,null,null,null,null,"Total tax on non-savings & Lump Sum income",{"$f":"A298","v":"c5.58a.87"},{"$f":"TRUNC((Z281*'Status (c3a)'!I45)+(Z283*'Status (c3a)'!M45)+(Z285*'Status (c3a)'!Q45)+(Z287*'Status (c3a)'!Y45)+(Z290*'Status (c3a)'!AB45),2)","v":0},"pdown",null,null,null,null,null,null,null,null,null,null,null,null,null,null,null,null,null,null,null,null,null,{"$f":"A405","v":"c5.72"},{"$f":"MAX(0,AX288-F288)","v":12570},null,null,{"$f":"A414","v":"c5.81"},{"$f":"MAX(0,F296-AX292)","v":0},null,"UK dividends"]
["c5.58a.83",null,null,null,null,"else",null,null,null,null,null,null,null,null,null,null,null,{"$f":"\"lower of \"&Q292&\" and (SR_band (\"&DOLLAR(SR_band,0)&\") minus \"&Q280&\")\"","v":"lower of c5.55.27 and (SR_band (£5,000) minus c5.55.22)"},null,null,null,null,null,null,null,{"$f":"\"(\"&Y261&\" × BR_rate (\"&BR_rate*100&\"%)) + (\"&Y269&\" × HR_rate (\"&HR_rate*100&\"%)) + (\"&Y275&\" × DivBR_rate (\"&DivBR_rate*100&\"%)) + (\"&Y279&\" × DivHR_rate (\"&DivHR_rate*100&\"%))\"","v":"(c5.58a.73 × BR_rate (20%)) + (c5.58a.77 × HR_rate (40%)) + (c5.58a.80 × DivBR_rate (8.75%)) + (c5.58a.82 × DivHR_rate (33.75%))"},null,null,null,null,null,null,null,null,null,null,null,null,null,null,null,null,null,null,null,null,null,null,null,null,null,null,null,{"$f":"\"add \"&BA280&\" + \"&BA288&\" + \"&BA292&\" and copy to \"&'tax it (c6)'!Q14&\"\"","v":"add c5.79 + c5.80 + c5.81 and copy to c6.23"}]
["c5.58a.84",null,null,null,null,{"$f":"E296&\" = \"&E49&\" minus (\"&'Taxable (c5)'!E280&\" + \"&'Taxable (c5)'!E288&\")\"","v":"c5.40 = c5.22 minus (c5.38 + c5.39)"},null,null,null,null,null,null,null,null,null,"Savings Starter rate",{"$f":"A159","v":"c5.55.28"},{"$f":"MIN(R292,MAX(0,(SR_band-R280)))","v":0},null,null,null,null,null,"Total tax on savings & dividend income",{"$f":"A299","v":"c5.58a.88"},{"$f":"TRUNC((Z261*BR_rate)+(Z269*HR_rate)+(Z275*DivBR_rate)+(Z279*DivHR_rate),2)","v":0},"pdown"]
["c5.58a.85",null,null,null,null,"end if",null,null,null,null,null,null,null,null,null,null,null,{"$f":"\"lower of (\"&Q224&\" minus \"&Q294&\") and \"&'Deductions (c4)'!L639","v":"lower of (c5.54a1 minus c5.55.28) and c4.79"},null,null,null,null,null,null,null,{"$f":"Y292&\" + \"&Y294","v":"c5.58a.87 + c5.58a.88"}]
["c5.58a.86",null,"UK dividends",null,"c5.40",{"$f":"IF(non_resident,'non-res (c91)'!N96,MAX(0,F49-('Taxable (c5)'!F280+'Taxable (c5)'!F288)))","v":0},null,null,null,null,null,null,null,null,null,null,{"$f":"A160","v":"c5.55.29"},{"$f":"MIN(MAX(0,R224-R294),'Deductions (c4)'!M639)","v":0},null,null,null,null,null,"NS Sav Div LS tax after Allce to Sav",{"$f":"A300","v":"c5.58a"},{"$f":"Z292+Z294","v":0}]
["c5.58a.86a",null,null,null,null,null,null,null,null,null,null,null,null,null,null,null,null,{"$f":"\"lower of \"&Q296&\" and (\"&AK8&\" minus \"&Q284&\")\"","v":"lower of c5.55.29 and (c5.2a minus c5.55.24)"},null,null,null,null,null,null,null,{"$f":"\"if \"&Y206&\" larger than 0 (zero)\"","v":"if c5.58a.53 larger than 0 (zero)"}]
["c5.58a.87",null,null,null,null,null,null,null,null,null,null,null,null,null,null,"Sav income in PSA BR_rate",{"$f":"A161","v":"c5.55.30"},{"$f":"MAX(0,MIN(R296,AL8-R284))","v":0},null,null,null,null,null,null,null,{"$f":"Y302&\" = \"&Y173","v":"c5.58b = c5.58a.45"},{"$f":"Z173","v":0}]
["c5.58a.88",null,null,null,null,null,null,null,null,null,null,null,null,null,null,null,null,{"$f":"\"lower of (\"&Q224&\" minus (\"&Q294&\" + \"&Q298&\")) and (\"&AK8&\" minus (\"&Q280&\" + \"&Q294&\" + \"&Q298&\"))\"","v":"lower of (c5.54a1 minus (c5.55.28 + c5.55.30)) and (c5.2a minus (c5.55.22 + c5.55.28 + c5.55.30))"},null,null,null,null,null,null,null,"else",null,null,null,null,null,null,null,null,null,null,null,null,null,null,null,null,null,null,null,null,null,null,null,"larger of"]
["c5.58a",null,null,null,null,null,null,null,null,null,null,null,null,null,null,"Sav income in BR_rate",{"$f":"A162","v":"c5.55.31"},{"$f":"MAX(0,MIN(R224-(R294+R298),(AL8-(R280+R294+R298))))","v":0},null,null,null,null,null,null,null,{"$f":"Y302&\" = (\"&Y193&\" + \"&Y195&\")\"","v":"c5.58b = (c5.58a.49 + c5.58a.50)"},{"$f":"Z193+Z195","v":0},null,null,null,null,null,null,null,null,null,null,null,null,null,null,null,null,null,null,null,null,null,null,{"$f":"\"(\"&E8&\" minus (\"&AW149&\" + \"&AW176&\" + \"&AW199&\" + \"&AW280&\"))\"","v":"(c5.1 minus (c5.67 + c5.68 + c5.69 + c5.70))"}]
["c5.58b",null,null,null,null,"from c3.18",null,null,null,null,null,null,null,null,null,null,null,{"$f":"\"(\"&'Status (c3a)'!AD33&\" + \"&'Deductions (c4)'!H383&\") minus (\"&Q280&\" + \"&Q294&\" + \"&Q298&\" + \"&Q300&\")\"","v":"(c3a.3a + c4.59) minus (c5.55.22 + c5.55.28 + c5.55.30 + c5.55.31)"},null,null,null,null,null,null,null,"end if",null,null,null,null,null,null,null,null,null,null,null,null,null,null,null,null,null,null,null,null,null,null,null,{"$f":"\"and (\"&AW292&\" minus \"&E296&\")\"","v":"and (c5.72 minus c5.40)"},null,null,null,{"$f":"E302&\" minus \"&AW302","v":"c5.41 minus c5.73"},null,"Gains"]
["c5.58c",null,"Gains on life policies etc.",null,"c5.41",{"$f":"'Divs (c3)'!H69","v":0},null,null,null,null,null,null,null,null,null,null,{"$f":"A163","v":"c5.55.32"},{"$f":"MAX(0,('Status (c3a)'!AE33+'Deductions (c4)'!I383)-(R280+R294+R298+R300))","v":125140},null,null,null,null,null,"savings dividends",{"$f":"A301","v":"c5.58b"},{"$f":"IF(Z206>0,Z173,Z193+Z195)","v":0},null,null,null,null,null,null,null,null,null,null,null,null,null,null,null,null,null,null,null,null,null,null,{"$f":"A406","v":"c5.73"},{"$f":"MAX(0,F8-(AX149+AX176+AX199+AX280),MAX(0,AX292-F296))","v":12570},null,null,{"$f":"A415","v":"c5.82"},{"$f":"MAX(0,F302-AX302)","v":0},null,"on life policies etc."]
["c5.58d",null,null,null,null,null,null,null,null,null,null,null,null,null,null,null,null,{"$f":"\"lower of (\"&Q302&\" and (\"&'Deductions (c4)'!L639&\" minus \"&Q298&\"))\"","v":"lower of (c5.55.32 and (c4.79 minus c5.55.30))"},null,null,null,null,null,null,null,{"$f":"Y99&\" + \"&Y302","v":"c5.58a.14 + c5.58b"},null,null,null,null,null,null,null,null,null,null,null,null,null,null,null,null,null,null,null,null,null,null,null,null,null,null,null,{"$f":"\"copy to \"&'tax it (c6)'!AA14&\" and \"&'Div Cr (c10)'!F57","v":"copy to c6.45 and c10.8"}]
["c5.58e",null,null,null,null,null,null,null,null,null,null,null,null,null,null,null,{"$f":"A164","v":"c5.55.33"},{"$f":"MAX(0,MIN(R302,PSA-R298))","v":1000},null,null,null,null,null,"NS Sav Div LS tax before Allce to NS",{"$f":"A302","v":"c5.58c"},{"$f":"Z99+Z302","v":0}]
["c5.58f",null,null,null,null,null,null,null,null,null,null,null,null,null,null,null,null,{"$f":"\"lower of \"&Q304&\" and (\"&Q224&\" minus (\"&Q294&\" + \"&Q298&\" + \"&Q300&\"))\"","v":"lower of c5.55.33 and (c5.54a1 minus (c5.55.28 + c5.55.30 + c5.55.31))"},null,null,null,null,null,null,null,{"$f":"Y304&\" minus \"&Y296","v":"c5.58c minus c5.58a"}]
["c5.58g",null,null,null,null," from c3.19",null,null,null,null,null,null,null,null,null,"Sav income in PSA HR_rate",{"$f":"A165","v":"c5.55.34"},{"$f":"MAX(0,MIN(R304,R224-(R294+R298+R300)))","v":0},null,null,null,null,null," Reduction of NS/Sav/Div/LS tax",{"$f":"A303","v":"c5.58d"},{"$f":"MAX(0,Z304-Z296)","v":0},null,null,null,null,null,null,null,null,null,null,null,null,null,null,null,null,null,null,null,null,null,null,null,{"$f":"AW302&\" minus \"&E302","v":"c5.73 minus c5.41"},null,null,null,{"$f":"E307&\" minus \"&AW307","v":"c5.42 minus c5.74"},null,"Non-savings income"]
["c5.58h",null,"Non-savings income with notional tax",null,"c5.42",{"$f":"'Divs (c3)'!H75","v":0},null,null,null,null,null,null,null,null,null,null,null,{"$f":"\"lower of (\"&Q224&\" minus (\"&Q294&\" + \"&Q298&\" + \"&Q300&\" + \"&Q306&\")) and \"&Q302","v":"lower of (c5.54a1 minus (c5.55.28 + c5.55.30 + c5.55.31 + c5.55.34)) and c5.55.32"},null,null,null,null,null,null,null,{"$f":"\"if \"&Y306&\" larger than or equal to \"&Y251","v":"if c5.58d larger than or equal to c5.58a.68"},null,null,null,null,null,null,null,null,null,null,null,null,null,null,null,null,null,null,null,null,null,null,{"$f":"A407","v":"c5.74"},{"$f":"MAX(0,AX302-F302)","v":12570},null,null,{"$f":"A416","v":"c5.83"},{"$f":"MAX(0,F307-AX307)","v":0},null,"with notional tax"]
["c5.58i",null,null,null,null,null,null,null,null,null,null,null,null,null,null,"Sav income in HR_rate",{"$f":"A166","v":"c5.55.35"},{"$f":"MAX(0,MIN(R224-(R294+R298+R300+R306),R302))","v":0},null,null,null,null,null,null,null,{"$f":"Y312&\" = \"&Y217","v":"c5.58e = c5.58a.54"},null,null,null,null,null,null,null,null,null,null,null,null,null,null,null,null,null,null,null,null,null,null,null,null,null,null,null,{"$f":"\"copy to \"&'Notional (c21c23)'!A52","v":"copy to c22.16"}]
["c5.58j",null,null,null,null,null,null,null,null,null,null,null,null,null,null,null,null,{"$f":"\"(\"&Q256&\" minus \"&Q282&\") × \"&'Status (c3a)'!H45","v":"(c5.55.11 minus c5.55.23) × c3a.3b"},null,null,null,null,null,null,null,"else",null,null,null,null,null,null,null,null,null,null,null,null,null,null,null,null,null,null,null,null,null,null,null,null,null,null,null,{"$f":"\"add \"&BA149&\" + \"&BA307&\" and copy to \"&'tax it (c6)'!G14","v":"add c5.76 + c5.83 and copy to c6.1"}]
["c5.58k",null,null,null,null,null,null,null,null,null,null,null,null,null,null,"NS Scottish Starter rate",{"$f":"A167","v":"c5.55.36"},{"$f":"TRUNC(MAX(0,(R256-R282)*'Status (c3a)'!I45),2)","v":0},"pdown",null,null,null,null,null,null,{"$f":"Y312&\" = 0 (zero)\"","v":"c5.58e = 0 (zero)"}]
["c5.58.1",null,null,null,null," from c3.20",null,null,null,null,null,null,null,null,null,null,null,{"$f":"\"(\"&Q258&\" minus \"&Q284&\") × \"&'Status (c3a)'!L45","v":"(c5.55.12 minus c5.55.24) × c3a.4"},null,null,null,null,null,null,null,"end if",null,null,null,null,null,null,null,null,null,null,null,null,null,null,null,null,null,null,null,null,null,null,null,{"$f":"AW307&\" minus \"&E307","v":"c5.74 minus c5.42"},null,null,null,{"$f":"E312&\" minus \"&AW312","v":"c5.43 minus c5.75"},null,"Settlor Interested"]
["c5.58.2",null,"Settlor Interested Trust income",null,"c5.43",{"$f":"'Divs (c3)'!H80","v":0},null,null,null,null,null,null,null,null,null,"NS Basic/Scottish Basic rate",{"$f":"A168","v":"c5.55.37"},{"$f":"TRUNC(MAX(0,(R258-R284)*'Status (c3a)'!M45),2)","v":0},"pdown",null,null,null,null,"PA to reduce Sav",{"$f":"A304","v":"c5.58e"},{"$f":"IF(Z306>=Z251,Z217,0)","v":0},null,null,null,null,null,null,null,null,null,null,null,null,null,null,null,null,null,null,null,null,null,null,{"$f":"A408","v":"c5.75"},{"$f":"MAX(0,AX307-F307)","v":12570},null,null,{"$f":"A417","v":"c5.84"},{"$f":"MAX(0,F312-AX312)","v":0},null,"Trust income"]
["c5.58.3",null,null,null,null,null,null,null,null,null,null,null,null,null,null,null,null,{"$f":"\"(\"&Q260&\" minus \"&Q286&\") × \"&'Status (c3a)'!P45","v":"(c5.55.13 minus c5.55.25) × c3a.4a"},null,null,null,null,null,null,null,null,null,null,null,null,null,null,null,null,null,null,null,null,null,null,null,null,null,null,null,null,null,null,null,null,null,null,null,{"$f":"\"copy to \"&'Notional (c21c23)'!A34","v":"copy to c22.1"}]
["c5.58.4",null,null,null,null,null,null,null,null,null,null,null,null,null,null,"NS Scottish Intermediate rate",{"$f":"A169","v":"c5.55.38"},{"$f":"TRUNC(MAX(0,(R260-R286)*'Status (c3a)'!Q45),2)","v":0},"pdown",null,null,null,null,null,null,null,null,null,null,null,null,null,null,null,null,null,null,null,null,null,null,null,null,null,null,null,null,null,null,null,null,null,null,{"$f":"\"and add \"&BA176&\" + \"&BA312&\" and copy to \"&'tax it (c6)'!V14","v":"and add c5.77 + c5.84 and copy to c6.35"}]
["c5.58.5",null,null,null,null,null,null,null,null,null,null,null,null,null,null,null,null,{"$f":"\"(\"&Q262&\" minus \"&Q288&\") × \"&'Status (c3a)'!X45","v":"(c5.55.14 minus c5.55.26) × c3a.5"}]
["c5.58.6",null,null,null,null,null,null,null,null,null,null,null,null,null,null,"NS Higher/Scottish Higher rate",{"$f":"A170","v":"c5.55.39"},{"$f":"TRUNC(MAX(0,(R262-R288)*'Status (c3a)'!Y45),2)","v":0},"pdown"]
["c5.58.7",null,null,null,null,null,null,null,null,null,null,null,null,null,null,null,null,{"$f":"\"(\"&Q264&\" minus \"&Q290&\") × \"&'Status (c3a)'!AA45","v":"(c5.55.14a minus c5.55.26a) × c3a.5a"}]
["c5.58.8",null,null,null,null,null,null,null,null,null,null,null,null,null,null,"NS Scottish Advanced rate",{"$f":"A171","v":"c5.55.39a"},{"$f":"TRUNC(MAX(0,(R264-R290)*'Status (c3a)'!AB45),2)","v":0},"pdown"]
["c5.58.9",null,null,null,null,null,null,null,null,null,null,null,null,null,null,null,null,{"$f":"\"(\"&Q270&\" minus \"&Q300&\") × BR_rate (\"&BR_rate*100&\"%)\"","v":"(c5.55.17 minus c5.55.31) × BR_rate (20%)"}]
["c5.58.10",null,null,null,null,null,null,null,null,null,null,null,null,null,null,"Sav Basic rate",{"$f":"A172","v":"c5.55.40"},{"$f":"TRUNC((R270-R300)*BR_rate,2)","v":0},"pdown","This box can be negative"]
["c5.59",null,null,null,null,null,null,null,null,null,null,null,null,null,null,null,null,{"$f":"\"(\"&Q278&\" minus \"&Q308&\") × HR_rate (\"&HR_rate*100&\"%)\"","v":"(c5.55.21 minus c5.55.35) × HR_rate (40%)"}]
["c5.60",null,null,null,null,null,null,null,null,null,null,null,null,null,null,"Sav Higher rate",{"$f":"A173","v":"c5.55.41"},{"$f":"TRUNC((R278-R308)*HR_rate,2)","v":0},"pdown","This box can be negative"]
["c5.61",null,null,null,null,null,null,null,null,null,null,null,null,null,null,null,null,{"$f":"Q310&\" + \"&Q312&\" + \"&Q314&\" + \"&Q316&\" + \"&Q318&\" + \"&Q320&\" + \"&Q322","v":"c5.55.36 + c5.55.37 + c5.55.38 + c5.55.39 + c5.55.39a + c5.55.40 + c5.55.41"}]
["c5.61a",null,null,null,null,null,null,null,null,null,null,null,null,null,null,"Reduction of non-savings/savings tax",{"$f":"A174","v":"c5.55.42"},{"$f":"MAX(0,R310+R312+R314+R316+R318+R320+R322)","v":0}]
["c5.62",null,null,null,null,null,null,null,null,null,null,null,null,null,null,null,null,{"$f":"\"If \"&Q324&\" larger than or equal to \"&Q254","v":"If c5.55.42 larger than or equal to c5.55.10"}]
["c5.62a",null,null,null,null,null,null,null,null,null,null,null,null,null,null,null,null,{"$f":"Q330&\" = \"&Q242","v":"c5.56 = c5.55.6"}]
["c5.63",null,null,null,null,null,null,null,null,null,null,null,null,null,null,null,null,"else"]
["c5.63a",null,null,null,null,null,null,null,null,null,null,null,null,null,null,null,null,{"$f":"Q330&\" = 0 (zero)\"","v":"c5.56 = 0 (zero)"}]
["c5.64",null,null,null,null,null,null,null,null,null,null,null,null,null,null,null,null,"end if"]
["c5.65",null,null,null,null,null,null,null,null,null,null,null,null,null,null,null,{"$f":"A175","v":"c5.56"},{"$f":"IF(R324>=R254,R242,0)","v":0}]
["c5.66"]
["c5.66.1"]
["c5.66.2",null,null,null,null,"If calculation type = non-resident"]
["c5.66.3",null,null,null,null,{"$f":"E338&\" = \"&'non-res (c91)'!M119&\" minus (\"&'Deductions (c4)'!H281&\" + \"&'Deductions (c4)'!H294&\" + \"&'Deductions (c4)'!H310&\" + \"&'Deductions (c4)'!H321&\" + \"&'Deductions (c4)'!H413&\")\"","v":"c5.85 = c91.28 minus (c4.47.19 + c4.47.23 + c4.47.27 + c4.47.30 + c4.63b)"}]
["c5.66.4",null,null,null,null,"else"]
["c5.66.5",null,null,null,null,{"$f":"E338&\" = \"&'Divs (c3)'!G87&\" minus (\"&'Deductions (c4)'!H281&\" + \"&'Deductions (c4)'!H294&\" + \"&'Deductions (c4)'!H310&\" + \"&'Deductions (c4)'!H321&\" + \"&'Deductions (c4)'!H413&\")\"","v":"c5.85 = c3.21 minus (c4.47.19 + c4.47.23 + c4.47.27 + c4.47.30 + c4.63b)"}]
["c5.66.6",null,null,null,null,"end if",null,null,null,null,null,null,null,null,null,null,null,null,null,null,null,null,null,null,null,null,null,null,null,null,null,null,null,null,null,null,null,null,null,null,null,null,null,null,null,null,null,null,null,null,null,null,null,{"$f":"E338&\" minus \"&E8","v":"c5.85 minus c5.1"}]
["c5.66.7",null,"Total Income",null,{"$f":"A418","v":"c5.85"},{"$f":"IF(non_resident,MAX(0,'non-res (c91)'!N119-('Deductions (c4)'!I281+'Deductions (c4)'!I294+'Deductions (c4)'!I310+'Deductions (c4)'!I321+'Deductions (c4)'!I413)),MAX(0,'Divs (c3)'!H87-('Deductions (c4)'!I281+'Deductions (c4)'!I294+'Deductions (c4)'!I310+'Deductions (c4)'!I321+'Deductions (c4)'!I413)))","v":0},null,null,null,null,null,null,null,null,null,null,null,null,null,null,null,null,null,null,null,null,null,null,null,null,null,null,null,null,null,null,null,null,null,null,null,null,null,null,null,null,null,"Total taxable income",null,null,null,null,{"$f":"A419","v":"c5.86"},{"$f":"MAX(0,F338-F8)","v":0}]
["c5.66.8",null,null,null,null,{"$f":"\"copy to \"&'TSR (c17)'!A1","v":"copy to c17.1"},null,null,null,null,null,null,null,null,null,null,null,null,null,null,null,null,null,null,null,null,null,null,null,null,null,null,null,null,null,null,null,null,null,null,null,null,null,null,null,null,null,null,null,null,null,null,null,{"$f":"\"copy to \"&'CG (c18)'!A59","v":"copy to c18.31"}]
["c5.66.9"]
["c5.66a"]
["c5.66b"]
["c5.66c"]
["c5.66d"]
["c5.66e"]
["c5.66e1"]
["c5.66f"]
["c5.66g"]
["c5.66h"]
["c5.66i"]
["c5.66i1"]
["c5.66i2"]
["c5.66i3"]
["c5.66i4"]
["c5.66j"]
["c5.66j1"]
["c5.66j2"]
["c5.66j3"]
["c5.66j4"]
["c5.66j5"]
["c5.66j6"]
["c5.66k"]
["c5.66l"]
["c5.66m"]
["c5.66n"]
["c5.66n1"]
["c5.66o"]
["c5.66p"]
["c5.66p1"]
["c5.66p1a"]
["c5.66p1b"]
["c5.66p1c"]
["c5.66p2"]
["c5.66p3"]
["c5.66p4"]
["c5.66p5"]
["c5.66p6"]
["c5.66p7"]
["c5.66p7a"]
["c5.66p8"]
["c5.66q"]
["c5.66r"]
["c5.66s"]
["c5.66s1"]
["c5.66s1a"]
["c5.66s1b"]
["c5.66s1c"]
["c5.66s2"]
["c5.66s3"]
["c5.66s4"]
["c5.66s5"]
["c5.66s6"]
["c5.66s7"]
["c5.66s8"]
["c5.66s9"]
["c5.66s10"]
["c5.66t"]
["c5.66u"]
["c5.67"]
["c5.68"]
["c5.68a"]
["c5.69"]
["c5.70"]
["c5.71"]
["c5.72"]
["c5.73"]
["c5.74"]
["c5.75"]
["c5.76"]
["c5.77"]
["c5.78"]
["c5.79"]
["c5.80"]
["c5.81"]
["c5.82"]
["c5.83"]
["c5.84"]
["c5.85"]
["c5.86"]

{"sheet":"tax it (c6)","index":62,"n_rows":112,"n_cols":28,"rows_kept":112,"cut":false,"hidden":true,"merged":[]}
["c6.1","Allocate income to tax bands"]
["c6.2",null,null,null,null,null,"If any box in this stage is negative substitute zero"]
["c6.3"]
["c6.4",{"$f":"\"The first \"&DOLLAR(SR_band,0)&\" of savings income is taxed at \"&SR_rate*100&\"%; but only if non-savings and savings income is less than \"&DOLLAR(P_A+SR_band,0)&\"(the personal allowance – \"&DOLLAR(P_A,0)&\" plus the savings starting rate band of \"&DOLLAR(SR_band,0)&\").\"","v":"The first £5,000 of savings income is taxed at 0%; but only if non-savings and savings income is less than £17,570(the personal allowance – £12,570 plus the savings starting rate band of £5,000)."}]
["c6.5"]
["c6.6","Savings income in excess of the savings starting rate band, up to the lower of the amount of the excess or the individual's savings allowance, is charged at the savings nil rate."]
["c6.7"]
["c6.7a","Since the Scottish rates and thresholds apply to non-savings and non-dividend income only, a Scottish taxpayer who has both earned income, such as employment salary, pension, profits from self-employment or rental profits, and taxable savings income, such as bank interest may have to consider both the UK rates and thresholds and the Scottish rates and thresholds in order to work out their income tax liability."]
["c6.7b"]
["c6.7c",null,null,null,null,null,"Allocate Non-savings Income etc.",null,null,null,null,"Allocate Savings etc. (except Dividends) ",null,null,null,null,null,"Allocate Dividends etc.",null,null,null,"Allocate Lump sum payments etc.",null,null,null,null,"Allocate gains on life policies (with notional tax) etc."]
["c6.8",null,null,null,null,null,null,null,null,null,null,"and gains on life policies without notional tax",null,null,null,null,null,null,null,null,null,null,null,null,null,null," "]
["c6.9"]
["c6.9.1",null,null,null,null,null,null,{"$f":"'Taxable (c5)'!BA149&\" + \"&'Taxable (c5)'!BA307","v":"c5.76 + c5.83"},null,null,null,null,{"$f":"\"from \"&'Taxable (c5)'!BA199","v":"from c5.78"},null,null,null,null,{"$f":"'Taxable (c5)'!BA280&\" + \"&'Taxable (c5)'!BA288&\" + \"&'Taxable (c5)'!BA292","v":"c5.79 + c5.80 + c5.81"},null,null,null,null,{"$f":"'Taxable (c5)'!BA176&\" + \"&'Taxable (c5)'!BA312","v":"c5.77 + c5.84"},null,null,null,null,{"$f":"\"from \"&'Taxable (c5)'!BA302","v":"from c5.82"}]
["c6.9.2",null,null,null,null,"Income",{"$f":"A1","v":"c6.1"},{"$f":"'Taxable (c5)'!BB149+'Taxable (c5)'!BB307","v":0},null,null,null,{"$f":"A16","v":"c6.11"},{"$f":"'Taxable (c5)'!BB199","v":0},null,null,null,{"$f":"A33","v":"c6.23"},{"$f":"'Taxable (c5)'!BB280+'Taxable (c5)'!BB288+'Taxable (c5)'!BB292","v":0},null,null,null,{"$f":"A45","v":"c6.35"},{"$f":"'Taxable (c5)'!BB176+'Taxable (c5)'!BB312","v":0},null,null,null,{"$f":"A60","v":"c6.45"},{"$f":"'Taxable (c5)'!BB302","v":0}]
["c6.10",null,null,null,null,null,null,null,null,null,null,null,null,null,null,null,null,null,null,null,null,null,{"$f":"\"lower of \"&V14&\" and\"","v":"lower of c6.35 and"}]
["c6.11",null,null,null,null,null,null,{"$f":"\"lower of \"&G14&\" and \"&'Status (c3a)'!H33","v":"lower of c6.1 and c3a.1a"},null,null,null,null,null,null,null,null,null,null,null,null,null,null,{"$f":"\"(\"&'Status (c3a)'!H33&\" minus (\"&'tax it (c6)'!G14&\" + \"&'tax it (c6)'!L14&\" + \"&'tax it (c6)'!Q14&\"))\"","v":"(c3a.1a minus (c6.1 + c6.11 + c6.23))"}]
["c6.12",null,null,null,null,"Income in Scottish starter rate band",{"$f":"A2","v":"c6.2"},{"$f":"MIN(H14,'Status (c3a)'!I33)","v":0},null,null,null,null,null,null,null,null,null,null,null,null,"Income in Scottish starter rate band","c6.36",{"$f":"MIN(W14,MAX(0,'Status (c3a)'!I33-(H14+M14+R14)))","v":0}]
["c6.13",null,null,null,null,null,null,{"$f":"\"copy to \"&'tax it (c8)'!A1","v":"copy to c8.1"},null,null,null,null,null,null,null,null,null,null,null,null,null,null,{"$f":"\"copy to \"&'tax it (c8)'!A34","v":"copy to c8.24b"}]
["c6.14"]
["c6.15",null,null,null,null,null,null,"Set to zero",null,null,null,null,null,null,null,null,null,null,null,null,null,null,{"$f":"\"(\"&G14&\" + \"&L14&\" + \"&Q14&\") minus \"&'Status (c3a)'!H33","v":"(c6.1 + c6.11 + c6.23) minus c3a.1a"}]
["c6.16",null,null,null,null,null,{"$f":"A3","v":"c6.3"},null,null,null,null,null,null,null,null,null,null,null,null,null,"Income above Scottish starter rate band","c6.37",{"$f":"MAX(0,(H14+M14+R14)-'Status (c3a)'!I33)","v":0}]
["c6.17"]
["c6.17a",null,null,null,null,null,null,"Set to zero",null,null,null,null,null,null,null,null,null,null,null,null,null,null,{"$f":"\"(\"&G17&\" + \"&G66&\" + \"&G70&\" + \"&L14&\" + \"&Q14&\") minus (\"&'Status (c3a)'!H33&\" + \"&'Status (c3a)'!L33&\" + \"&'Deductions (c4)'!H383&\")\"","v":"(c6.2 + c6.6 + c6.7 + c6.11 + c6.23) minus (c3a.1a + c3a.2 + c4.59)"}]
["c6.17b",null,null,null,null,null,{"$f":"A4","v":"c6.4"},null,null,null,null,null,null,null,null,null,null,null,null,null,"Income above Scottish basic rate band","c6.38",{"$f":"MAX(0,(H17+H66+H70+M14+R14-('Status (c3a)'!I33+'Status (c3a)'!M33+'Deductions (c4)'!I383)))","v":0}]
["c6.17c"]
["c6.18",null,null,null,null,null,null,"Set to zero"]
["c6.19",null,null,null,null,null,{"$f":"A5","v":"c6.5"},0]
["c6.20"]
["c6.20a",null,null,null,null,null,null,null,null,null,null,null,{"$f":"\"SR_band (\"&DOLLAR(SR_band,0)&\") minus \"&G14","v":"SR_band (£5,000) minus c6.1"},null,null,null,null,null,null,null,null,null,null,null,null,null,null,{"$f":"\"SR_band (\"&DOLLAR(SR_band,0)&\") minus (\"&G14&\" + \"&L14&\" + \"&Q14&\" + \"&V14&\")\"","v":"SR_band (£5,000) minus (c6.1 + c6.11 + c6.23 + c6.35)"}]
["c6.20b",null,null,null,null,null,null,null,null,null,null,{"$f":"A17","v":"c6.12"},{"$f":"MAX(0,SR_band-H14)","v":5000},null,null,null,null,null,null,null,null,null,null,null,null,null,{"$f":"A61","v":"c6.46"},{"$f":"MAX(0,SR_band-(H14+M14+R14+W14))","v":5000}]
["c6.21"]
["c6.22",null,null,null,null,null,null,null,null,null,null,null,{"$f":"\"lower of \"&L14&\" and \"&L30","v":"lower of c6.11 and c6.12"},null,null,null,null,null,null,null,null,null,null,null,null,null,null,{"$f":"\"lower of \"&AA14&\" and \"&AA30","v":"lower of c6.45 and c6.46"}]
["c6.23",null,null,null,null,null,null,null,null,null,null,{"$f":"A18","v":"c6.13"},{"$f":"MIN(M14,M30)","v":0},null,null,null,null,null,null,null,null,null,null,null,null,null,{"$f":"A62","v":"c6.47"},{"$f":"MIN(AB14,AB30)","v":0}]
["c6.24"]
["c6.25",null,null,null,null,null,null,null,null,null,null,null,{"$f":"\"lower of SR_band (\"&DOLLAR(SR_band,0)&\") and \"&L33","v":"lower of SR_band (£5,000) and c6.13"},null,null,null,null,null,null,null,null,null,null,null,null,null,null,{"$f":"\"lower of (SR_band (\"&DOLLAR(SR_band,0)&\") minus \"&L36&\") and \"&AA33","v":"lower of (SR_band (£5,000) minus c6.14) and c6.47"}]
["c6.26",null,null,null,null,null,null,null,null,null,null,{"$f":"A19","v":"c6.14"},{"$f":"MIN(SR_band,M33)","v":0},null,null,null,null,null,null,null,null,null,null,null,null,null,{"$f":"A63","v":"c6.48"},{"$f":"MAX(0,MIN(SR_band-M36,AB33))","v":0}]
["c6.27",null,null,null,null,null,null,null,null,null,null,null,{"$f":"\"copy to \"&'tax it (c8)'!A14","v":"copy to c8.7"},null,null,null,null,null,null,null,null,null,null,null,null,null,null,{"$f":"\"copy to \"&'tax it (c8)'!A47","v":"copy to c8.24m"}]
["c6.28"]
["c6.29",null,null,null,null,null,null,null,null,null,null,null,"Set to zero",null,null,null,null,null,null,null,null,null,null,null,null,null,null,"Set to zero"]
["c6.30",null,null,null,null,null,null,null,null,null,null,"c6.15",0,null,null,null,null,null,null,null,null,null,null,null,null,null,"c6.49",0]
["c6.31"]
["c6.32",null,null,null,null,null,null,null,null,null,null,null,{"$f":"\"PSA from \"&'Deductions (c4)'!L639","v":"PSA from c4.79"},null,null,null,null,{"$f":"\"DA from \"&'Deductions (c4)'!L646","v":"DA from c4.80"},null,null,null,null,null,null,null,null,null,{"$f":"L43&\" minus \"&L47","v":"c6.16 minus c6.17"}]
["c6.33",null,null,null,null,"Personal Savings/Dividend Allowance",null,null,null,null,"Personal Savings Allowance",{"$f":"A21","v":"c6.16"},{"$f":"PSA","v":1000},null,null,"Dividend Allowance",{"$f":"A34","v":"c6.24"},{"$f":"'Deductions (c4)'!M646","v":500},null,null,null,null,null,null,null,"Personal Savings Allowance",{"$f":"A65","v":"c6.50"},{"$f":"MAX(0,M43-M47)","v":1000}]
["c6.34"]
["c6.35"]
["c6.36",null,null,null,null,null,null,null,null,null,null,null,{"$f":"\"lower of (\"&L14&\" minus \"&L36&\") and \"&L43","v":"lower of (c6.11 minus c6.14) and c6.16"},null,null,null,null,{"$f":"\"lower of \"&Q14&\" and \"&Q43","v":"lower of c6.23 and c6.24"},null,null,null,null,"Set to zero",null,null,null,null,{"$f":"\"lower of (\"&AA14&\" minus \"&AA36&\") and \"&AA43","v":"lower of (c6.45 minus c6.48) and c6.50"}]
["c6.37",null,null,null,null,"Personal Savings/Dividend Allowance used",null,null,null,null,"Personal Savings Allowance used",{"$f":"A22","v":"c6.17"},{"$f":"MIN(MAX(0,M14-M36),M43)","v":0},null,null,"Dividend Allowance used",{"$f":"A35","v":"c6.25"},{"$f":"MIN(R14,R43)","v":0},null,null,null,"c6.39",0,null,null,"Personal Savings Allowance used",{"$f":"A66","v":"c6.51"},{"$f":"MIN(MAX(0,AB14-AB36),AB43)","v":0}]
["c6.38",null,null,null,null,null,null,null,null,null,null,null,{"$f":"\"copy to \"&'tax it (c8)'!A16","v":"copy to c8.9"},null,null,null,null,{"$f":"\"copy to \"&'tax it (c8)'!A25","v":"copy to c8.17"}]
["c6.39"]
["c6.40"]
["c6.41"]
["c6.41a"]
["c6.41b",null,null,null,null,null,null,null,null,null,null,null,"Set to zero",null,null,null,null,null,null,null,null,null,null,null,null,null,null,"Set to zero"]
["c6.41c",null,null,null,null,null,null,null,null,null,null,{"$f":"A23","v":"c6.17a"},0,null,null,null,null,null,null,null,null,null,null,null,null,null,{"$f":"A67","v":"c6.51a"},0]
["c6.42"]
["c6.43",null,null,null,null,null,null,null,null,null,null,null,{"$f":"\"lower of (\"&L14&\" minus \"&L36&\") and\"","v":"lower of (c6.11 minus c6.14) and"},null,null,null,null,{"$f":"\"lower of \"&Q14&\" and\"","v":"lower of c6.23 and"},null,null,null,null,null,null,null,null,null,{"$f":"\"lower of (\"&AA14&\" minus \"&AA36&\") and\"","v":"lower of (c6.45 minus c6.48) and"}]
["c6.43.1",null,null,null,null,null,null,null,null,null,null,null,{"$f":"\"((BR_band (\"&DOLLAR(BR_band,0)&\") + \"&'Deductions (c4)'!H383&\")\"","v":"((BR_band (£37,700) + c4.59)"},null,null,null,null,{"$f":"\" ((BR_band (\"&DOLLAR(BR_band,0)&\") + \"&'Deductions (c4)'!H383&\") minus\"","v":" ((BR_band (£37,700) + c4.59) minus"},null,null,null,null,null,null,null,null,null,{"$f":"\"((BR_band (\"&DOLLAR(BR_band,0)&\") + \"&'Deductions (c4)'!H383&\") minus\"","v":"((BR_band (£37,700) + c4.59) minus"}]
["c6.43.2",null,null,null,null,null,null,null,null,null,null,null,{"$f":"\"minus (\"&G14&\" + \"&L36&\"))\"","v":"minus (c6.1 + c6.14))"},null,null,null,null,{"$f":"\"(\"&G14&\" + \"&L14&\"))\"","v":"(c6.1 + c6.11))"},null,null,null,null,null,null,null,null,null,{"$f":"\"(\"&G14&\" + \"&L14&\" + \"&Q14&\" + \"&V14&\" + \"&AA36&\"))\"","v":"(c6.1 + c6.11 + c6.23 + c6.35 + c6.48))"}]
["c6.44",null,null,null,null,"Income in basic rate band before Personal Savings/Dividend Allowance",null,null,null,null,"Income in basic rate band before Personal Savings Allowance",{"$f":"A24","v":"c6.17b"},{"$f":"MIN(MAX(0,M14-M36),MAX(0,(BR_band+'Deductions (c4)'!I383)-(H14+M36)))","v":0},null,null,"Income in basic rate band before Dividend Allowance",{"$f":"A36","v":"c6.26"},{"$f":"MIN(R14,MAX(0,(BR_band+'Deductions (c4)'!I383)-(H14+M14)))","v":0},null,null,null,null,null,null,null,"Income in basic rate band before Personal Savings Allowance",{"$f":"A68","v":"c6.51b"},{"$f":"MIN(MAX(0,AB14-AB36),MAX(0,(BR_band+'Deductions (c4)'!I383)-(H14+M14+R14+W14+AB36)))","v":0}]
["c6.45"]
["c6.46",null,null,null,null,null,null,null,null,null,null,null,{"$f":"\"lower of \"&L47&\" and \"&L59","v":"lower of c6.17 and c6.17b"},null,null,null,null,{"$f":"\"lower of \"&Q47&\" and \"&Q59","v":"lower of c6.25 and c6.26"},null,null,null,null,null,null,null,null,null,{"$f":"\"lower of \"&AA47&\" and \"&AA59","v":"lower of c6.51 and c6.51b"}]
["c6.47",null,null,null,null,"Personal Savings/Dividend Allowance set against Savings/Dividend income in basic rate",null,null,null,null,"Personal Savings Allowance set against Savings income in basic rate",{"$f":"A25","v":"c6.17c"},{"$f":"MIN(M47,M59)","v":0},null,null,"Personal Dividend Allowance set against Dividend income in basic rate",{"$f":"A37","v":"c6.27"},{"$f":"MIN(R47,R59)","v":0},null,null,null,null,null,null,null,"Personal Savings Allowance set against Savings income in basic rate",{"$f":"A69","v":"c6.51c"},{"$f":"MIN(AB47,AB59)","v":0}]
["c6.48",null,null,null,null,null,null,null,null,null,null,null,null,null,null,null,null,null,null,null,null,null,null,null,null,null,null,{"$f":"\"copy to \"&'tax it (c8)'!A49","v":"copy to c8.24o"}]
["c6.49",null,null,null,null,null,null,null,null,null,null,null,null,null,null,null,null,null,null,null,null,null,{"$f":"\"lower of (\"&V14&\" minus \"&V17&\") and\"","v":"lower of (c6.35 minus c6.36) and"}]
["c6.50",null,null,null,null,null,null,{"$f":"\"lower of (\"&G14&\" minus \"&G17&\") and (\"&'Status (c3a)'!L33&\" + \"&'Deductions (c4)'!H383&\")\"","v":"lower of (c6.1 minus c6.2) and (c3a.2 + c4.59)"},null,null,null,null,{"$f":"L59&\" minus \"&L62","v":"c6.17b minus c6.17c"},null,null,null,null,{"$f":"Q59&\" minus \"&Q62","v":"c6.26 minus c6.27"},null,null,null,null,{"$f":"\"((\"&'Status (c3a)'!L33&\" + \"&'Deductions (c4)'!H383&\") minus \"&V21&\")\"","v":"((c3a.2 + c4.59) minus c6.37)"},null,null,null,null,{"$f":"AA59&\" minus \"&AA62","v":"c6.51b minus c6.51c"}]
["c6.51",null,null,null,null,"Income in basic rate band",{"$f":"A6","v":"c6.6"},{"$f":"MAX(0,MIN((H14-H17),(('Status (c3a)'!M33+'Deductions (c4)'!I383))))","v":0},null,null,"Income in basic rate band",{"$f":"A26","v":"c6.18"},{"$f":"MAX(0,M59-M62)","v":0},null,null,"Income in basic rate band",{"$f":"A38","v":"c6.28"},{"$f":"MAX(0,R59-R62)","v":0},null,null,"Income in basic rate band",{"$f":"A50","v":"c6.40"},{"$f":"MAX(0,MIN((W14-W17),('Status (c3a)'!M33+'Deductions (c4)'!I383)-W21))","v":0},null,null,"Income in basic rate band",{"$f":"A70","v":"c6.52"},{"$f":"MAX(0,AB59-AB62)","v":0}]
["c6.51a",null,null,null,null,null,null,{"$f":"\"copy to \"&'tax it (c8)'!A3","v":"copy to c8.1b"},null,null,null,null,{"$f":"\"copy to \"&'tax it (c8)'!A18","v":"copy to c8.11"},null,null,null,null,{"$f":"\"copy to \"&'tax it (c8)'!A27","v":"copy to c8.19"},null,null,null,null,{"$f":"\"copy to \"&'tax it (c8)'!A36","v":"copy to c8.24d"},null,null,null,null,{"$f":"\"copy to \"&'tax it (c8)'!A51","v":"copy to c8.24q"}]
["c6.51b"]
["c6.51c",null,null,null,null,null,null,{"$f":"G14&\" minus (\"&G17&\" + \"&G66&\")\"","v":"c6.1 minus (c6.2 + c6.6)"},null,null,null,null,{"$f":"L14&\" minus (\"&L36&\" + \"&L59&\")\"","v":"c6.11 minus (c6.14 + c6.17b)"},null,null,null,null,{"$f":"Q14&\" minus \"&Q59","v":"c6.23 minus c6.26"},null,null,null,null,{"$f":"\"(\"&V14&\" minus \"&V17&\") minus \"&V66","v":"(c6.35 minus c6.36) minus c6.40"},null,null,null,null,{"$f":"AA14&\" minus (\"&AA36&\" + \"&AA59&\")\"","v":"c6.45 minus (c6.48 + c6.51b)"}]
["c6.52",null,null,null,null,"Income above basic rate band",{"$f":"A7","v":"c6.7"},{"$f":"MAX(0,(H14-(H17+H66)))","v":0},null,null,"Income above basic rate band",{"$f":"A27","v":"c6.19"},{"$f":"MAX(0,M14-(M36+M59))","v":0},null,null,"Income above basic rate band`",{"$f":"A39","v":"c6.29"},{"$f":"MAX(0,(R14-R59))","v":0},null,null,"Income above basic rate band",{"$f":"A51","v":"c6.41"},{"$f":"MAX(0,(W14-W17)-W66)","v":0},null,null,"Income above basic rate band",{"$f":"A71","v":"c6.53"},{"$f":"MAX(0,AB14-(AB36+AB59))","v":0}]
["c6.53"]
["c6.54"]
["c6.54a",null,null,null,null,null,null,{"$f":"\"larger of \"&'Status (c3a)'!P33&\" and \"&'Deductions (c4)'!H383","v":"larger of c3a.2a and c4.59"},null,null,null,null,null,null,null,null,null,null,null,null,null,null,{"$f":"'Status (c3a)'!P33&\" minus \"&V24","v":"c3a.2a minus c6.38"}]
["c6.54b",null,null,null,null," intermediate rate band available",{"$f":"A8","v":"c6.7a"},{"$f":"MAX('Status (c3a)'!Q33,'Deductions (c4)'!I383)","v":0},null,null,null,null,null,null,null,null,null,null,null,null," intermediate rate band available",{"$f":"A52","v":"c6.41a"},{"$f":"MAX(0,'Status (c3a)'!Q33-W24)","v":0}]
["c6.55"]
["c6.56",null,null,null,null,null,null,{"$f":"\"lower of \"&G70&\" and \"&'Status (c3a)'!P33","v":"lower of c6.7 and c3a.2a"},null,null,null,null,null,null,null,null,null,null,null,null,null,null,{"$f":"\"lower of \"&V70&\" and \"&V74","v":"lower of c6.41 and c6.41a"}]
[null,null,null,null,null,"Income in intermediate rate band",{"$f":"A9","v":"c6.7b"},{"$f":"MIN(H70,'Status (c3a)'!Q33)","v":0},null,null,null,null,null,null,null,null,null,null,null,null,"Income in intermediate rate band",{"$f":"A53","v":"c6.41b"},{"$f":"MIN(W70,W74)","v":0}]
[null,null,null,null,null,null,null,{"$f":"\"copy to \"&'tax it (c8)'!A5","v":"copy to c8.2a"},null,null,null,null,null,null,null,null,null,null,null,null,null,null,{"$f":"\"copy to \"&'tax it (c8)'!A38","v":"copy to c8.24f"}]
[]
[]
[]
[]
[null,null,null,null,null,null,null,"Set to zero",null,null,null,null,null,null,null,null,null,null,null,null,null,null,"Set to zero"]
[null,null,null,null,null,null,{"$f":"A10","v":"c6.7c"},0,null,null,null,null,null,null,null,null,null,null,null,null,null,{"$f":"A54","v":"c6.41c"},null,null,null,null,null,{"$f":"\" (AHR_band (\"&DOLLAR(AHR_band,0)&\") + \"&'Deductions (c4)'!H383&\") minus\"","v":" (AHR_band (£125,140) + c4.59) minus"}]
[null,null,null,null,null,null,null,null,null,null,null,null,{"$f":"\" (AHR_band (\"&DOLLAR(AHR_band,0)&\") + \"&'Deductions (c4)'!H383&\")\"","v":" (AHR_band (£125,140) + c4.59)"},null,null,null,null,{"$f":"\" (AHR_band (\"&DOLLAR(AHR_band,0)&\") + \"&'Deductions (c4)'!H383&\")\"","v":" (AHR_band (£125,140) + c4.59)"},null,null,null,null,{"$f":"\"lower of \"&G87&\" and\"","v":"lower of c6.8 and"},null,null,null,null,{"$f":"\"(\"&G14&\" + \"&L14&\" + \"&Q14&\" + \"&V14&\" + \"&AA36&\" +\"","v":"(c6.1 + c6.11 + c6.23 + c6.35 + c6.48 +"}]
[null,null,null,null,null,null,null,{"$f":"\" from \"&'Status (c3a)'!X33","v":" from c3a.3"},null,null,null,null,{"$f":"\"minus (\"&G14&\" + \"&L36&\" + \"&L62&\" + \"&L66&\")\"","v":"minus (c6.1 + c6.14 + c6.17c + c6.18)"},null,null,null,null,{"$f":"\"minus (\"&G14&\" + \"&L14&\" + \"&Q62&\" + \"&Q66&\")\"","v":"minus (c6.1 + c6.11 + c6.27 + c6.28)"},null,null,null,null,{"$f":"\"((\"&'Status (c3a)'!H33&\" + \"&'Status (c3a)'!P33&\" + \"&'Status (c3a)'!X33&\" + \"&'Taxable (c5)'!U8&\") minus\"","v":"((c3a.1a + c3a.2a + c3a.3 + c5.2) minus"},null,null,null,null,{"$f":"AA62&\" + \"&AA66&\")\"","v":"c6.51c + c6.52)"}]
[null,null,null,null,null,"Higher rate band available",{"$f":"A11","v":"c6.8"},{"$f":"'Status (c3a)'!Y33","v":87440},null,null,"Higher rate band available",{"$f":"A28","v":"c6.20"},{"$f":"MAX(0,AHR_band+'Deductions (c4)'!I383-(H14+M36+M62+M66))","v":125140},null,null,"Higher rate band available",{"$f":"A40","v":"c6.30"},{"$f":"MAX(0,AHR_band+'Deductions (c4)'!I383-(H14+M14+R62+R66))","v":125140},null,null,null,null,{"$f":"\"(\"&G14&\" + \"&L14&\" + \"&Q14&\" + \"&V17&\" + \"&V66&\" + \"&V77&\"))\"","v":"(c6.1 + c6.11 + c6.23 + c6.36 + c6.40 + c6.41b))"},null,null,"Higher rate band available",{"$f":"A72","v":"c6.54"},{"$f":"MAX(0,AHR_band+'Deductions (c4)'!I383-(H14+M14+R14+W14+AB36+AB62+AB66))","v":125140}]
[null,null,null,null,null,null,null,null,null,null,null,null,{"$f":"\"lower of \"&L70&\" and \"&L87","v":"lower of c6.19 and c6.20"},null,null,null,null,{"$f":"\"lower of \"&Q70&\" and \"&Q87","v":"lower of c6.29 and c6.30"},null,null,"Higher rate band available",{"$f":"A55","v":"c6.42"},{"$f":"MAX(0,MIN(H87,(('Status (c3a)'!I33+'Status (c3a)'!Q33+'Status (c3a)'!Y33+'Taxable (c5)'!V8)-(H14+M14+R14+W17+W66+W77))))","v":87440},null,null,null,null,{"$f":"\"lower of \"&AA70&\" and \"&AA87","v":"lower of c6.53 and c6.54"}]
[null,null,null,null,null,null,null,null,null,null,"Income in higher rate band before Personal Savings Allowance",{"$f":"A29","v":"c6.20a"},{"$f":"MIN(M70,M87)","v":0},null,null,"Income in higher rate band before Dividend Allowance",{"$f":"A41","v":"c6.31"},{"$f":"MIN(R70,R87)","v":0},null,null,null,null,null,null,null,"Income in higher rate band before Personal Savings Allowance",{"$f":"A73","v":"c6.54a"},{"$f":"MIN(AB70,AB87)","v":0}]
[null,null,null,null,null,null,null,null,null,null,null,null,{"$f":"\"lower of (\"&L47&\" minus \"&L59&\") and \"&L87","v":"lower of (c6.17 minus c6.17b) and c6.20"},null,null,null,null,{"$f":"\"lower of (\"&Q47&\" minus \"&Q59&\") and \"&Q87","v":"lower of (c6.25 minus c6.26) and c6.30"},null,null,null,null,null,null,null,null,null,{"$f":"\"lower of (\"&AA47&\" minus \"&AA59&\") and \"&AA87","v":"lower of (c6.51 minus c6.51b) and c6.54"}]
[null,null,null,null,null,null,null,null,null,null,"Personal Savings Allowance set against Savings income in higher rate",{"$f":"A30","v":"c6.20b"},{"$f":"MIN(MAX(0,M47-M59),M87)","v":0},null,null,"Dividend Allowance set against Dividend income in higher rate",{"$f":"A42","v":"c6.32"},{"$f":"MIN(MAX(0,R47-R59),R87)","v":0},null,null,null,null,null,null,null,"Personal Savings Allowance set against Savings income in higher rate",{"$f":"A74","v":"c6.54b"},{"$f":"MIN(MAX(0,AB47-AB59),AB87)","v":0}]
[null,null,null,null,null,null,null,null,null,null,null,null,null,null,null,null,null,null,null,null,null,null,null,null,null,null,null,{"$f":"\"copy to \"&'tax it (c8)'!A53","v":"copy to c8.24s"}]
[]
[null,null,null,null,null,null,null,{"$f":"\"lower of (\"&G70&\" minus \"&G77&\") and \"&G87","v":"lower of (c6.7 minus c6.7b) and c6.8"},null,null,null,null,{"$f":"L89&\" minus \"&L91","v":"c6.20a minus c6.20b"},null,null,null,null,{"$f":"Q89&\" minus \"&Q91","v":"c6.31 minus c6.32"},null,null,null,null,{"$f":"\"lower of \"&V88&\" and (\"&V70&\" minus \"&V77&\")\"","v":"lower of c6.42 and (c6.41 minus c6.41b)"},null,null,null,null,{"$f":"AA89&\" minus \"&AA91","v":"c6.54a minus c6.54b"}]
[null,null,null,null,null,"Income in higher rate band",{"$f":"A12","v":"c6.9"},{"$f":"MIN(MAX(0,H70-H77),H87)","v":0},null,null,"Income in higher rate band",{"$f":"A31","v":"c6.21"},{"$f":"MAX(0,M89-M91)","v":0},null,null,"Income in higher rate band",{"$f":"A43","v":"c6.33"},{"$f":"MAX(0,R89-R91)","v":0},null,null,"Income in higher rate band",{"$f":"A56","v":"c6.43"},{"$f":"MIN(MAX(0,W70-W77),W88)","v":0},null,null,"Income in higher rate band",{"$f":"A75","v":"c6.55"},{"$f":"MAX(0,AB89-AB91)","v":0}]
[null,null,null,null,null,null,null,{"$f":"\"copy to \"&'tax it (c8)'!A7","v":"copy to c8.3"},null,null,null,null,{"$f":"\"copy to \"&'tax it (c8)'!A20","v":"copy to c8.13"},null,null,null,null,{"$f":"\"copy to \"&'tax it (c8)'!A29&\" and \"&'Notional (c21c23)'!A74","v":"copy to c8.21 and c23.5"},null,null,null,null,{"$f":"\"copy to \"&'tax it (c8)'!A40","v":"copy to c8.24h"},null,null,null,null,{"$f":"\"copy to \"&'tax it (c8)'!A55","v":"copy to c8.24u"}]
[]
[null,null,null,null,null,null,null,null,null,null,null,null,null,null,null,null,null,null,null,null,null,null,{"$f":"\"lower of \"&'Status (c3a)'!AA33&\" and\"","v":"lower of c3a.3.1 and"}]
[null,null,null,null,null,null,null,{"$f":"G14&\" minus (\"&G17&\" + \"&G66&\" + \"&G77&\" + \"&G95&\")\"","v":"c6.1 minus (c6.2 + c6.6 + c6.7b + c6.9)"},null,null,null,null,null,null,null,null,null,null,null,null,null,null,{"$f":"\"((\"&'Status (c3a)'!H33&\" + \"&'Status (c3a)'!P33&\" + \"&'Status (c3a)'!X33&\" + \"&'Status (c3a)'!AA33&\" + \"&'Taxable (c5)'!U8&\") minus\"","v":"((c3a.1a + c3a.2a + c3a.3 + c3a.3.1 + c5.2) minus"}]
[null,null,null,null,null,"Income above higher rate band",{"$f":"A13","v":"c6.9.1"},{"$f":"MAX(0,H14-(H17+H66+H77+H95))","v":0},null,null,null,null,null,null,null,null,null,null,null,null,null,null,{"$f":"\"(\"&G14&\" + \"&L14&\" + \"&Q14&\" + \"&V17&\" + \"&V66&\" + \"&V77&\" + \"&V95&\"))\"","v":"(c6.1 + c6.11 + c6.23 + c6.36 + c6.40 + c6.41b + c6.43))"}]
[null,null,null,null,null,null,null,null,null,null,null,null,null,null,null,null,null,null,null,null,"Scottish advanced rate band available",{"$f":"A57","v":"c6.43.1"},{"$f":"MAX(0,MIN('Status (c3a)'!AB33,(('Status (c3a)'!I33+'Status (c3a)'!Q33+'Status (c3a)'!Y33+'Status (c3a)'!AB33+'Taxable (c5)'!V8)-(H14+M14+R14+W17+W66+W77+W95))))","v":0}]
[]
[null,null,null,null,null,null,null,{"$f":"\"lower of \"&'Status (c3a)'!AA33&\" and \"&G100","v":"lower of c3a.3.1 and c6.9.1"},null,null,null,null,null,null,null,null,null,null,null,null,null,null,{"$f":"\"lower of \"&V101&\" and (\"&V70&\" minus (\"&V77&\" + \"&V95&\"))\"","v":"lower of c6.43.1 and (c6.41 minus (c6.41b + c6.43))"}]
[null,null,null,null,null,"Income in Advance rate Scottish",{"$f":"A14","v":"c6.9.2"},{"$f":"MIN('Status (c3a)'!AB33,'tax it (c6)'!H100)","v":0},null,null,null,null,null,null,null,null,null,null,null,null,"Income in Scottish advanced rate band",{"$f":"A58","v":"c6.43.2"},{"$f":"MAX(0,MIN(W101,(W70-(W77+W95))))","v":0}]
[null,null,null,null,null,null,null,{"$f":"\"copy to \"&'tax it (c8)'!A9","v":"copy to c8.4a"},null,null,null,null,null,null,null,null,null,null,null,null,null,null,{"$f":"\"copy to \"&'tax it (c8)'!A42","v":"copy to c8.24ia"}]
[null,null,null,null,null,null,null,null,null,null,null,null,{"$f":"L14&\" minus\"","v":"c6.11 minus"}]
[null,null,null,null,null,null,null,{"$f":"G14&\" minus (\"&'Status (c3a)'!AD33&\" + \"&'Deductions (c4)'!H383&\")\"","v":"c6.1 minus (c3a.3a + c4.59)"},null,null,null,null,{"$f":"\"(\"&L36&\" + \"&L47&\" + \"&L66&\" + \"&L95&\")\"","v":"(c6.14 + c6.17 + c6.18 + c6.21)"},null,null,null,null,{"$f":"Q14&\" minus (\"&Q47&\" + \"&Q66&\" + \"&Q95&\")\"","v":"c6.23 minus (c6.25 + c6.28 + c6.33)"},null,null,null,null,{"$f":"V14&\" minus (\"&V17&\" + \"&V66&\" + \"&V77&\" + \"&V95&\" + \"&V104&\")\"","v":"c6.35 minus (c6.36 + c6.40 + c6.41b + c6.43 + c6.43.2)"},null,null,null,null,{"$f":"AA14&\" minus (\"&AA36&\" + \"&AA47&\" + \"&AA66&\" + \"&AA95&\")\"","v":"c6.45 minus (c6.48 + c6.51 + c6.52 + c6.55)"}]
[null,null,null,null,null,"Income in additional rate band",{"$f":"A15","v":"c6.10"},{"$f":"MAX(0,H14-('Status (c3a)'!AE33+'Deductions (c4)'!I383))","v":0},null,null,"Income in additional rate band",{"$f":"A32","v":"c6.22"},{"$f":"MAX(0,M14-(M36+M47+M66+M95))","v":0},null,null,"Income in additional rate band",{"$f":"A44","v":"c6.34"},{"$f":"MAX(0,R14-(R47+R66+R95))","v":0},null,null,"Income in additional rate band",{"$f":"A59","v":"c6.44"},{"$f":"MAX(0,W14-(W17+W66+W77+W95+W104))","v":0},null,null,"Income in additional rate band",{"$f":"A76","v":"c6.56"},{"$f":"MAX(0,AB14-(AB36+AB47+AB66+AB95))","v":0}]
[null,null,null,null,null,null,null,{"$f":"\"copy to \"&'tax it (c8)'!A11","v":"copy to c8.5"},null,null,null,null,{"$f":"\"copy to \"&'tax it (c8)'!A22","v":"copy to c8.15"},null,null,null,null,{"$f":"\"copy to \"&'tax it (c8)'!A31&\" and \"&'Notional (c21c23)'!A70","v":"copy to c8.23 and c23.1"},null,null,null,null,{"$f":"\"copy to \"&'tax it (c8)'!A44","v":"copy to c8.24j"},null,null,null,null,{"$f":"\"copy to \"&'tax it (c8)'!A57","v":"copy to c8.24w"}]
[]
[null,"Not used in requirements",null,null,null,null,null,{"$f":"G17&\" + \"&G66&\" + \"&G77&\" + \"&G95&\" + \"&G104&\" + \"&G108","v":"c6.2 + c6.6 + c6.7b + c6.9 + c6.9.2 + c6.10"},null,null,null,null,{"$f":"L36&\" + \"&L47&\" + \"&L66&\" + \"&L95&\" + \"&L108","v":"c6.14 + c6.17 + c6.18 + c6.21 + c6.22"},null,null,null,null,{"$f":"Q47&\" + \"&Q66&\" + \"&Q95&\" + \"&Q108","v":"c6.25 + c6.28 + c6.33 + c6.34"},null,null,null,null,{"$f":"V17&\" + \"&V66&\" + \"&V77&\" + \"&V95&\" + \"&V104&\" + \"&V108","v":"c6.36 + c6.40 + c6.41b + c6.43 + c6.43.2 + c6.44"},null,null,null,null,{"$f":"AA36&\" + \"&AA47&\" + \"&AA66&\" + \"&AA95&\" + \"&AA108","v":"c6.48 + c6.51 + c6.52 + c6.55 + c6.56"}]
[null,null,null,"Total",null,null,null,{"$f":"H17+H66+H77+H95+H104+H108","v":0},null,null,null,null,{"$f":"M36+M47+M66+M95+M108","v":0},null,null,null,null,{"$f":"R47+R66+R95+R108","v":0},null,null,null,null,{"$f":"(W17+W66+W77+W95+W104+W108)","v":0},null,null,null,null,{"$f":"AB36+AB47+AB66+AB95+AB108","v":0}]

{"sheet":"CDR (c7)","index":63,"n_rows":95,"n_cols":12,"rows_kept":95,"cut":false,"hidden":true,"merged":[]}
["c7.1","Allocate Deficiency Relief to dividends in the higher rate band"]
["c7.2",null,null,null,null,null,"If any box in this stage is negative substitute zero"]
["c7.3"]
["c7.4",null,null,null,null,{"$f":"\"from \"&AOI&AOI!G22","v":"from AOI11"}]
["c7.5","Deficiency Relief",null,null,{"$f":"A1","v":"c7.1"},{"$f":"TRUNC(AOI!H23+0.99,0)","v":0},"£up"]
["c7.6"]
["c7.7"]
["c7.8",null,null,null,null,{"$f":"\"if \"&'Status (c3a)'!D21&\" = 3\"","v":"if c3a.1 = 3"}]
["c7.9",null,null,null,null,{"$f":"E17&\" = \"&'tax it (c6)'!Q95","v":"c7.2 = c6.33"}]
["c7.10",null,null,null,null,"else"]
["c7.11",null,null,null,null,{"$f":"\"if \"&'Status (c3a)'!D21&\" = 2\"","v":"if c3a.1 = 2"}]
["c7.12",null,null,null,null,{"$f":"E17&\" = \"&'tax it (c6)'!Q95","v":"c7.2 = c6.33"},null,null,null,null,{"$f":"\"if \"&'Status (c3a)'!D21&\" = 3\"","v":"if c3a.1 = 3"}]
["c7.13",null,null,null,null,"else",null,null,null,null,{"$f":"J21&\" = \"&E21&\" × (DivHR_rate (\"&DivHR_rate*100&\"%) minus DivBR_rate (\"&DivBR_rate*100&\"%)) (\"&(DivHR_rate-DivBR_rate)*100&\"%)\"","v":"c7.4 = c7.3 × (DivHR_rate (33.75%) minus DivBR_rate (8.75%)) (25%)"}]
["c7.14",null,null,null,null,{"$f":"E17&\" = \"&'tax it (c6)'!Q95","v":"c7.2 = c6.33"},null,null,null,null,"else"]
["c7.15",null,null,null,null,"end if",null,null,null,null,{"$f":"\"if \"&'Status (c3a)'!D21&\" = 2\"","v":"if c3a.1 = 2"}]
["c7.15.1",null,null,null,null,"end if",null,null,null,null,{"$f":"J21&\" = \"&E21&\" × (DivHR_rate (\"&DivHR_rate*100&\"%) minus DivBR_rate (\"&DivBR_rate*100&\"%)) (\"&(DivHR_rate-DivBR_rate)*100&\"%)\"","v":"c7.4 = c7.3 × (DivHR_rate (33.75%) minus DivBR_rate (8.75%)) (25%)"}]
["c7.16",null,null,"Amount in higher rate band",{"$f":"A2","v":"c7.2"},{"$f":"IF('Status (c3a)'!E21=3,'tax it (c6)'!R95,IF('Status (c3a)'!E21=2,'tax it (c6)'!R95,'tax it (c6)'!R95))","v":0},null,null,null,null,"else"]
[null,null,null,null,null,null,null,null,null,null,{"$f":"J21&\" = \"&E21&\" × (DivHR_rate (\"&DivHR_rate*100&\"%) minus DivBR_rate (\"&DivBR_rate*100&\"%)) (\"&(DivHR_rate-DivBR_rate)*100&\"%)\"","v":"c7.4 = c7.3 × (DivHR_rate (33.75%) minus DivBR_rate (8.75%)) (25%)"}]
[null,null,null,null,null,null,null,null,null,null,"end if"]
[null,null,null,null,null,{"$f":"\"lower of \"&E5&\" and \"&E17","v":"lower of c7.1 and c7.2"},null,null,null,null,"end if"]
[null,null,null,"Amount moved to lower rate band",{"$f":"A3","v":"c7.3"},{"$f":"MIN(F5,F17)","v":0},null,null,"Tax Adjustment",{"$f":"A4","v":"c7.4"},{"$f":"IF('Status (c3a)'!E21=3,TRUNC((F21*(DivHR_rate-DivBR_rate))+0.0099,2),IF('Status (c3a)'!E21=2,TRUNC((F21*(DivHR_rate-DivBR_rate))+0.0099,2),TRUNC((F21*(DivHR_rate-DivBR_rate))+0.0099,2)))","v":0},"pup"]
[]
[]
[]
[null,null,null,null,null,{"$f":"E5&\" minus \"&E21","v":"c7.1 minus c7.3"}]
[null,null,null,"Remaining Deficiency Relief",{"$f":"A5","v":"c7.5"},{"$f":"MAX(F5-F21,0)","v":0}]
[]
[]
[]
[]
[]
[null,null,null,null,null,{"$f":"\"if \"&'Status (c3a)'!D21&\" = 3\"","v":"if c3a.1 = 3"}]
[null,null,null,null,null,{"$f":"E41&\" = \"&'tax it (c6)'!G95&\" + \"&'tax it (c6)'!V95","v":"c7.6 = c6.9 + c6.43"}]
[null,null,null,null,null,"else"]
[null,null,null,null,null,{"$f":"\"if \"&'Status (c3a)'!D21&\" = 2\"","v":"if c3a.1 = 2"},null,null,null,null,{"$f":"\"if \"&'Status (c3a)'!D21&\" = 3\"","v":"if c3a.1 = 3"}]
[null,null,null,null,null,{"$f":"E41&\" = \"&'tax it (c6)'!G104&\" + \"&'tax it (c6)'!V104","v":"c7.6 = c6.9.2 + c6.43.2"},null,null,null,null,{"$f":"J44&\" = \"&E44&\" × (WHR_rate (\"&WHR_rate*100&\"%) minus WBR_rate (\"&WBR_rate*100&\"%)) (\"&(WHR_rate-WBR_rate)*100&\"%)\"","v":"c7.8 = c7.7 × (WHR_rate (40%) minus WBR_rate (20%)) (20%)"}]
[null,null,null,null,null,"else",null,null,null,null,"else"]
[null,null,null,null,null,{"$f":"E41&\" = \"&'tax it (c6)'!G95&\" + \"&'tax it (c6)'!V95","v":"c7.6 = c6.9 + c6.43"},null,null,null,null,{"$f":"\"if \"&'Status (c3a)'!D21&\" = 2\"","v":"if c3a.1 = 2"}]
[null,null,null,null,null,"end if",null,null,null,null,{"$f":"J44&\" = \"&E44&\" × (SAR_rate (\"&SAR_rate*100&\"%) minus SBR_rate (\"&SBR_rate*100&\"%)) (\"&(SAR_rate-BR_rate)*100&\"%)\"","v":"c7.8 = c7.7 × (SAR_rate (45%) minus SBR_rate (20%)) (25%)"}]
[null,null,null,null,null,"end if",null,null,null,null,"else"]
[null,null,null,"Income in higher rate band",{"$f":"A6","v":"c7.6"},{"$f":"IF('Status (c3a)'!E21=3,'tax it (c6)'!H95+'tax it (c6)'!W95,IF('Status (c3a)'!E21=2,'tax it (c6)'!H104+'tax it (c6)'!W104,'tax it (c6)'!H95+'tax it (c6)'!W95))","v":0},null,null,null,null,{"$f":"J44&\" = \"&E44&\" × (HR_rate (\"&HR_rate*100&\"%) minus BR_rate (\"&BR_rate*100&\"%)) (\"&(HR_rate-BR_rate)*100&\"%)\"","v":"c7.8 = c7.7 × (HR_rate (40%) minus BR_rate (20%)) (20%)"}]
[null,null,null,null,null,null,null,null,null,null,"end if"]
[null,null,null,null,null,{"$f":"\"lower of \"&E26&\" and \"&E41","v":"lower of c7.5 and c7.6"},null,null,null,null,"end if"]
[null,null,null,"Amount moved to lower rate band",{"$f":"A7","v":"c7.7"},{"$f":"MIN(F26,F41)","v":0},null,null,"Tax Adjustment",{"$f":"A8","v":"c7.8"},{"$f":"IF('Status (c3a)'!E21=3,TRUNC((F44*(WHR_rate-WBR_rate))+0.0099,2),IF('Status (c3a)'!E21=2,TRUNC((F44*(SAR_rate-SBR_rate))+0.0099,2),TRUNC((F44*(HR_rate-BR_rate))+0.0099,2)))","v":0},"pup"]
[]
[]
[]
[]
[]
[]
[]
[]
[]
[null,null,null,null,null,{"$f":"E26&\" minus \"&E44","v":"c7.5 minus c7.7"}]
[null,null,null,"Remaining Deficiency Relief",{"$f":"A9","v":"c7.9"},{"$f":"MAX(0,F26-F44)","v":0}]
[]
[null,null,null,null,null,{"$f":"\"if \"&'Status (c3a)'!D21&\" = 3\"","v":"if c3a.1 = 3"}]
[null,null,null,null,null,{"$f":"E66&\" = \"&'tax it (c6)'!L95&\" + \"&'tax it (c6)'!AA95","v":"c7.10 = c6.21 + c6.55"}]
[null,null,null,null,null,"else"]
[null,null,null,null,null,{"$f":"\"if \"&'Status (c3a)'!D21&\" = 2\"","v":"if c3a.1 = 2"}]
[null,null,null,null,null,{"$f":"E66&\" = \"&'tax it (c6)'!G95&\" + \"&'tax it (c6)'!V95","v":"c7.10 = c6.9 + c6.43"},null,null,null,null,{"$f":"\"if \"&'Status (c3a)'!D21&\" = 3\"","v":"if c3a.1 = 3"}]
[null,null,null,null,null,"else",null,null,null,null,{"$f":"J70&\" = \"&E70&\" × (SAVHR_rate (\"&SAVHR_rate*100&\"%) minus SAVBR_rate (\"&SAVBR_rate*100&\"%)) (\"&(SAVHR_rate-SAVBR_rate)*100&\"%)\"","v":"c7.12 = c7.11 × (SAVHR_rate (40%) minus SAVBR_rate (20%)) (20%)"}]
[null,null,null,null,null,{"$f":"E66&\" = \"&'tax it (c6)'!L95&\" + \"&'tax it (c6)'!AA95","v":"c7.10 = c6.21 + c6.55"},null,null,null,null,"else"]
[null,null,null,null,null,"end if",null,null,null,null,{"$f":"\"if \"&'Status (c3a)'!D21&\" = 2\"","v":"if c3a.1 = 2"}]
[null,null,null,null,null,"end if",null,null,null,null,{"$f":"J70&\" = \"&E70&\" × (SHR_rate (\"&SHR_rate*100&\"%) minus SBR_rate (\"&SBR_rate*100&\"%)) (\"&(SHR_rate-BR_rate)*100&\"%)\"","v":"c7.12 = c7.11 × (SHR_rate (42%) minus SBR_rate (20%)) (22%)"}]
[null,null,null,null,{"$f":"A10","v":"c7.10"},{"$f":"IF('Status (c3a)'!E21=3,'tax it (c6)'!M95+'tax it (c6)'!AB95,IF('Status (c3a)'!E21=2,'tax it (c6)'!H95+'tax it (c6)'!W95,'tax it (c6)'!M95+'tax it (c6)'!AB95))","v":0},null,null,null,null,"else"]
[null,null,null,null,null,null,null,null,null,null,{"$f":"J70&\" = \"&E70&\" × (SAVHR_rate (\"&SAVHR_rate*100&\"%) minus SAVBR_rate (\"&SAVBR_rate*100&\"%)) (\"&(SAVHR_rate-SAVBR_rate)*100&\"%)\"","v":"c7.12 = c7.11 × (SAVHR_rate (40%) minus SAVBR_rate (20%)) (20%)"}]
[null,null,null,null,null,null,null,null,null,null,"end if"]
[null,null,null,null,null,{"$f":"\"lower of \"&E55&\" and \"&E66","v":"lower of c7.9 and c7.10"},null,null,null,null,"end if"]
[null,null,null,"Amount moved to lower rate band",{"$f":"A11","v":"c7.11"},{"$f":"MIN(F55,F66)","v":0},null,null,"Tax Adjustment",{"$f":"A12","v":"c7.12"},{"$f":"IF('Status (c3a)'!E21=3,TRUNC((F70*(SAVHR_rate-SAVBR_rate))+0.0099,2),IF('Status (c3a)'!E21=2,TRUNC((F70*(SHR_rate-SBR_rate))+0.0099,2),TRUNC((F70*(SAVHR_rate-SAVBR_rate))+0.0099,2)))","v":0},"pup"]
[]
[]
[null,null,null,null,null,{"$f":"E55&\" minus \"&E70","v":"c7.9 minus c7.11"}]
[null,null,null,"Remaining Deficiency Relief",{"$f":"A13","v":"c7.13"},{"$f":"MAX(0,F55-F70)","v":0}]
[]
[null,null,null,null,null,{"$f":"\"if \"&'Status (c3a)'!D21&\" = 3\"","v":"if c3a.1 = 3"}]
[null,null,null,null,null,{"$f":"E85&\" = 0 (zero)\"","v":"c7.14 = 0 (zero)"}]
[null,null,null,null,null,"else"]
[null,null,null,null,null,{"$f":"\"if \"&'Status (c3a)'!D21&\" = 2\"","v":"if c3a.1 = 2"}]
[null,null,null,null,null,{"$f":"E85&\" = \"&'tax it (c6)'!L95&\" + \"&'tax it (c6)'!AA95","v":"c7.14 = c6.21 + c6.55"},null,null,null,null,{"$f":"\"if \"&'Status (c3a)'!D21&\" = 3\"","v":"if c3a.1 = 3"}]
[null,null,null,null,null,"else",null,null,null,null,{"$f":"J89&\" = 0 (zero)\"","v":"c7.15.1 = 0 (zero)"}]
[null,null,null,null,null,{"$f":"E85&\" = 0 (zero)\"","v":"c7.14 = 0 (zero)"},null,null,null,null,"else"]
[null,null,null,null,null,"end if",null,null,null,null,{"$f":"\"if \"&'Status (c3a)'!D21&\" = 2\"","v":"if c3a.1 = 2"}]
[null,null,null,null,null,"end if",null,null,null,null,{"$f":"J89&\" = \"&E89&\" × (SAVHR_rate (\"&SAVHR_rate*100&\"%) minus SAVBR_rate (\"&SAVBR_rate*100&\"%)) (\"&(SAVHR_rate-SAVBR_rate)*100&\"%)\"","v":"c7.15.1 = c7.15 × (SAVHR_rate (40%) minus SAVBR_rate (20%)) (20%)"}]
[null,null,null,null,{"$f":"A14","v":"c7.14"},{"$f":"IF('Status (c3a)'!E21=3,0,IF('Status (c3a)'!E21=2,'tax it (c6)'!M95+'tax it (c6)'!AB95,0))","v":0},null,null,null,null,"else"]
[null,null,null,null,null,null,null,null,null,null,{"$f":"J89&\" = 0 (zero)\"","v":"c7.15.1 = 0 (zero)"}]
[null,null,null,null,null,null,null,null,null,null,"end if"]
[null,null,null,null,null,{"$f":"\"lower of \"&E74&\" and \"&E85","v":"lower of c7.13 and c7.14"},null,null,null,null,"end if"]
[null,null,null,"Amount moved to lower rate band",{"$f":"A15","v":"c7.15"},{"$f":"MIN(F74,F85)","v":0},null,null,"Tax Adjustment",{"$f":"A16","v":"c7.15.1"},{"$f":"IF('Status (c3a)'!E21=3,0,IF('Status (c3a)'!E21=2,TRUNC((F89*(SAVHR_rate-SAVBR_rate))+0.0099,2),0))","v":0},"pup"]
[]
[]
[]
[null,null,null,null,null,null,null,null,null,null,{"$f":"J21&\" + \"&J44&\" + \"&J70&\" + \"&J89","v":"c7.4 + c7.8 + c7.12 + c7.15.1"}]
[null,null,null,null,null,null,null,null,"Total Tax Adjustment",{"$f":"A17","v":"c7.16"},{"$f":"K21+K44+K70+K89","v":0}]
[null,null,null,null,null,null,null,null,null,null,{"$f":"\"copy to box \"&'Tax adj (c9)'!I8","v":"copy to box c9.2"}]

{"sheet":"tax it (c8)","index":64,"n_rows":193,"n_cols":16,"rows_kept":193,"cut":false,"hidden":true,"merged":[]}
["c8.1","Stage 8: Calculate Income Tax due"]
["c8.1a"]
["c8.1b",null,null,null,"If any box in this stage is negative substitute zero"]
["c8.2"]
["c8.2a","Non-savings income"]
["c8.2b"]
["c8.3",null,null,{"$f":"\"from \"&'tax it (c6)'!G17","v":"from c6.2"},null,null,null,{"$f":"C8&\" × \"&'Status (c3a)'!H45","v":"c8.1 × c3a.3b"}]
["c8.4","Starter rate",{"$f":"A1","v":"c8.1"},{"$f":"'tax it (c6)'!H17","v":0},null,null,{"$f":"A2","v":"c8.1a"},{"$f":"TRUNC(D8*'Status (c3a)'!I45,2)","v":0},"pdown"]
["c8.4a"]
["c8.4b",null,null,{"$f":"\"from \"&'tax it (c6)'!G66","v":"from c6.6"},null,null,null,{"$f":"C11&\" × \"&'Status (c3a)'!L45","v":"c8.1b × c3a.4"}]
["c8.5","Basic rate",{"$f":"A3","v":"c8.1b"},{"$f":"'tax it (c6)'!H66","v":0},null,null,{"$f":"A4","v":"c8.2"},{"$f":"TRUNC(D11*'Status (c3a)'!M45,2)","v":0},"pdown"]
["c8.6"]
["c8.6a",null,null,{"$f":"\"from \"&'tax it (c6)'!G77","v":"from c6.7b"},null,null,null,{"$f":"C14&\" × \"&'Status (c3a)'!P45","v":"c8.2a × c3a.4a"}]
["c8.7","Intermediate rate",{"$f":"A5","v":"c8.2a"},{"$f":"'tax it (c6)'!H77","v":0},null,null,{"$f":"A6","v":"c8.2b"},{"$f":"TRUNC(D14*'Status (c3a)'!Q45,2)","v":0},"pdown"]
["c8.8"]
["c8.9",null,null,{"$f":"\"from \"&'tax it (c6)'!G95","v":"from c6.9"},null,null,null,{"$f":"C17&\" × \"&'Status (c3a)'!X45","v":"c8.3 × c3a.5"}]
["c8.10","Higher rate",{"$f":"A7","v":"c8.3"},{"$f":"'tax it (c6)'!H95","v":0},null,null,{"$f":"A8","v":"c8.4"},{"$f":"TRUNC(D17*'Status (c3a)'!Y45,2)","v":0},"pdown"]
["c8.11"]
["c8.12",null,null,{"$f":"\"from \"&'tax it (c6)'!G104","v":"from c6.9.2"},null,null,null,{"$f":"C20&\" × \"&'Status (c3a)'!AA45","v":"c8.4a × c3a.5a"}]
["c8.13","Advanced rate",{"$f":"A9","v":"c8.4a"},{"$f":"'tax it (c6)'!H104","v":0},null,null,{"$f":"A10","v":"c8.4b"},{"$f":"TRUNC(D20*'Status (c3a)'!AB45,2)","v":0},"pdown"]
["c8.14"]
["c8.15",null,null,{"$f":"\"from \"&'tax it (c6)'!G108","v":"from c6.10"},null,null,null,{"$f":"C23&\" × \"&'Status (c3a)'!AD45","v":"c8.5 × c3a.6"}]
["c8.16","Additional/Top rate",{"$f":"A11","v":"c8.5"},{"$f":"'tax it (c6)'!H108","v":0},null,null,{"$f":"A12","v":"c8.6"},{"$f":"TRUNC(D23*'Status (c3a)'!AE45,2)","v":0},"pdown"]
["c8.16a"]
["c8.17",null,null,null,null,null,null,{"$f":"G8&\" + \"&G11&\" + \"&G14&\" + \"&G17&\" + \"&G20&\" + \"&G23","v":"c8.1a + c8.2 + c8.2b + c8.4 + c8.4b + c8.6"}]
["c8.18",null,null,null,null,null,{"$f":"A13","v":"c8.6a"},{"$f":"H8+H11+H14+H17+H20+H23","v":0}]
["c8.19"]
["c8.20"]
["c8.21","Savings income"]
["c8.22"]
["c8.23",null,null,{"$f":"\"from \"&'tax it (c6)'!L36","v":"from c6.14"},null,null,null,{"$f":"C32&\" × SR_rate (\"&SR_rate*100&\"%)\"","v":"c8.7 × SR_rate (0%)"}]
["c8.24","Starting rate",{"$f":"A14","v":"c8.7"},{"$f":"'tax it (c6)'!M36","v":0},null,null,{"$f":"A15","v":"c8.8"},{"$f":"TRUNC(D32*SR_rate,2)","v":0},"pdown"]
["c8.24a"]
["c8.24b",null,null,{"$f":"\"from \"&'tax it (c6)'!L47","v":"from c6.17"},null,null,null,{"$f":"C35&\" × SNil_rate (\"&SNil_rate*100&\"%)\"","v":"c8.9 × SNil_rate (0%)"}]
["c8.24c","Nil rate",{"$f":"A16","v":"c8.9"},{"$f":"'tax it (c6)'!M47","v":0},null,null,{"$f":"A17","v":"c8.10"},{"$f":"D35*SNil_rate","v":0},"pdown"]
["c8.24d"]
["c8.24e",null,null,{"$f":"\"from \"&'tax it (c6)'!L66","v":"from c6.18"},null,null,null,{"$f":"C38&\" × BR_rate (\"&BR_rate*100&\"%)\"","v":"c8.11 × BR_rate (20%)"}]
["c8.24f","Basic rate",{"$f":"A18","v":"c8.11"},{"$f":"'tax it (c6)'!M66","v":0},null,null,{"$f":"A19","v":"c8.12"},{"$f":"TRUNC(D38*BR_rate,2)","v":0},"pdown"]
["c8.24g"]
["c8.24h",null,null,{"$f":"\"from \"&'tax it (c6)'!L95","v":"from c6.21"},null,null,null,{"$f":"C41&\" × HR_rate (\"&HR_rate*100&\"%)\"","v":"c8.13 × HR_rate (40%)"}]
["c8.24i","Higher rate",{"$f":"A20","v":"c8.13"},{"$f":"'tax it (c6)'!M95","v":0},null,null,{"$f":"A21","v":"c8.14"},{"$f":"TRUNC(D41*HR_rate,2)","v":0},"pdown"]
["c8.24ia"]
["c8.24ib",null,null,{"$f":"\"from \"&'tax it (c6)'!L108","v":"from c6.22"},null,null,null,{"$f":"C44&\" × AHR_rate (\"&AHR_rate*100&\"%)\"","v":"c8.15 × AHR_rate (45%)"}]
["c8.24j","Additional rate",{"$f":"A22","v":"c8.15"},{"$f":"'tax it (c6)'!M108","v":0},null,null,{"$f":"A23","v":"c8.16"},{"$f":"TRUNC(D44*AHR_rate,2)","v":0},"pdown"]
["c8.24k"]
["c8.24l",null,null,null,null,null,null,{"$f":"G32&\" + \"&G35&\" + \"&G38&\" + \"&G41&\" + \"&G44","v":"c8.8 + c8.10 + c8.12 + c8.14 + c8.16"}]
["c8.24m",null,null,null,null,null,{"$f":"A24","v":"c8.16a"},{"$f":"H32+H35+H38+H41+H44","v":0}]
["c8.24n"]
["c8.24o"]
["c8.24p","Dividend income"]
["c8.24q"]
["c8.24r",null,null,{"$f":"\"from \"&'tax it (c6)'!Q47","v":"from c6.25"},null,null,null,{"$f":"C53&\" × DivNil_rate (\"&DivNil_rate*100&\"%)\"","v":"c8.17 × DivNil_rate (0%)"}]
["c8.24s","Nil rate",{"$f":"A25","v":"c8.17"},{"$f":"'tax it (c6)'!R47","v":0},null,null,{"$f":"A26","v":"c8.18"},{"$f":"D53*DivNil_rate","v":0},"pdown"]
["c8.24t"]
["c8.24u",null,null,{"$f":"\"from \"&'tax it (c6)'!Q66","v":"from c6.28"},null,null,null,{"$f":"C56&\" × DivBR_rate (\"&DivBR_rate*100&\"%)\"","v":"c8.19 × DivBR_rate (8.75%)"}]
["c8.24v","Basic rate",{"$f":" A27","v":"c8.19"},{"$f":"'tax it (c6)'!R66","v":0},null,null,{"$f":"A28","v":"c8.20"},{"$f":"TRUNC(D56*DivBR_rate,2)","v":0},"pdown"]
["c8.24w"]
["c8.24x",null,null,{"$f":"\"from \"&'tax it (c6)'!Q95","v":"from c6.33"},null,null,null,{"$f":"C59&\" × DivHR_rate (\"&DivHR_rate*100&\"%)\"","v":"c8.21 × DivHR_rate (33.75%)"}]
["c8.25","Higher rate",{"$f":"A29","v":"c8.21"},{"$f":"'tax it (c6)'!R95","v":0},null,null,{"$f":"A30","v":"c8.22"},{"$f":"TRUNC(D59*DivHR_rate,2)","v":0},"pdown"]
["c8.25a"]
["c8.25b",null,null,{"$f":"\"from \"&'tax it (c6)'!Q108","v":"from c6.34"},null,null,null,{"$f":"C62&\" × DivAR_rate (\"&DivAR_rate*100&\"%)\"","v":"c8.23 × DivAR_rate (39.35%)"}]
["c8.25c","Additional rate",{"$f":"A31","v":"c8.23"},{"$f":"'tax it (c6)'!R108","v":0},null,null,{"$f":"A32","v":"c8.24"},{"$f":"TRUNC(D62*DivAR_rate,2)","v":0},"pdown"]
["c8.26"]
["c8.27",null,null,null,null,null,null,{"$f":"G53&\" + \"&G56&\" + \"&G59&\" + \"&G62","v":"c8.18 + c8.20 + c8.22 + c8.24"}]
["c8.28",null,null,null,null,null,{"$f":"A33","v":"c8.24a"},{"$f":"H53+H56+H59+H62","v":0}]
[]
[]
[null,"Redundancy, other lump sums and compensation payments"]
[]
[null,null,null,{"$f":"\"from \"&'tax it (c6)'!V17","v":"from c6.36"},null,null,null,{"$f":"C71&\" × \"&'Status (c3a)'!H45","v":"c8.24b × c3a.3b"}]
[null,"Starter rate",{"$f":"A34","v":"c8.24b"},{"$f":"'tax it (c6)'!W17","v":0},null,null,{"$f":"A35","v":"c8.24c"},{"$f":"TRUNC(D71*'Status (c3a)'!I45,2)","v":0},"pdown"]
[]
[null,null,null,{"$f":"\"from \"&'tax it (c6)'!V66","v":"from c6.40"},null,null,null,{"$f":"C74&\" × \"&'Status (c3a)'!L45","v":"c8.24d × c3a.4"}]
[null,"Basic rate",{"$f":"A36","v":"c8.24d"},{"$f":"'tax it (c6)'!W66","v":0},null,null,{"$f":"A37","v":"c8.24e"},{"$f":"TRUNC(D74*'Status (c3a)'!M45,2)","v":0},"pdown"]
[]
[null,null,null,{"$f":"\"from \"&'tax it (c6)'!V77","v":"from c6.41b"},null,null,null,{"$f":"C77&\" × \"&'Status (c3a)'!P45","v":"c8.24f × c3a.4a"}]
[null,"Intermediate rate",{"$f":"A38","v":"c8.24f"},{"$f":"'tax it (c6)'!W77","v":0},null,null,{"$f":"A39","v":"c8.24g"},{"$f":"TRUNC(D77*'Status (c3a)'!Q45,2)","v":0},"pdown"]
[]
[null,null,null,{"$f":"\"from \"&'tax it (c6)'!V95","v":"from c6.43"},null,null,null,{"$f":"C80&\" × \"&'Status (c3a)'!X45","v":"c8.24h × c3a.5"}]
[null,"Higher rate",{"$f":"A40","v":"c8.24h"},{"$f":"'tax it (c6)'!W95","v":0},null,null,{"$f":"A41","v":"c8.24i"},{"$f":"TRUNC(D80*'Status (c3a)'!Y45,2)","v":0},"pdown"]
[]
[null,null,null,{"$f":"\"from \"&'tax it (c6)'!V104","v":"from c6.43.2"},null,null,null,{"$f":"C83&\" × \"&'Status (c3a)'!AA45","v":"c8.24ia × c3a.5a"}]
[null,"Advanced rate",{"$f":"A42","v":"c8.24ia"},{"$f":"'tax it (c6)'!W104","v":0},null,null,{"$f":"A43","v":"c8.24ib"},{"$f":"TRUNC(D83*'Status (c3a)'!AB45,2)","v":0},"pdown"]
[]
[null,null,null,{"$f":"\"from \"&'tax it (c6)'!V108","v":"from c6.44"},null,null,null,{"$f":"C86&\" × \"&'Status (c3a)'!AD45","v":"c8.24j × c3a.6"}]
[null,"Additional/Top rate",{"$f":"A44","v":"c8.24j"},{"$f":"'tax it (c6)'!W108","v":0},null,null,{"$f":"A45","v":"c8.24k"},{"$f":"TRUNC(D86*'Status (c3a)'!AE45,2)","v":0},"pdown"]
[]
[null,null,null,null,null,null,null,{"$f":"G71&\" + \"&G74&\" + \"&G77&\" + \"&G80&\" + \"&G83&\" + \"&G86","v":"c8.24c + c8.24e + c8.24g + c8.24i + c8.24ib + c8.24k"}]
[null,null,null,null,null,null,{"$f":"A46","v":"c8.24l"},{"$f":"H71+H74+H77+H80+H83+H86","v":0}]
[]
[]
[null,"Gains on life insurance policies etc. with tax treated as paid"]
[]
[null,null,null,{"$f":"\"from \"&'tax it (c6)'!AA36","v":"from c6.48"},null,null,null,{"$f":"C95&\" × SR_rate (\"&SR_rate*100&\"%)\"","v":"c8.24m × SR_rate (0%)"}]
[null,"Starting rate",{"$f":"A47","v":"c8.24m"},{"$f":"'tax it (c6)'!AB36","v":0},null,null,{"$f":"A48","v":"c8.24n"},{"$f":"TRUNC(D95*SR_rate,2)","v":0},"pdown"]
[]
[null,null,null,{"$f":"\"from \"&'tax it (c6)'!AA62","v":"from c6.51c"},null,null,null,{"$f":"C98&\" × SNil_rate (\"&SNil_rate*100&\"%)\"","v":"c8.24o × SNil_rate (0%)"}]
[null,"Nil rate BR",{"$f":"A49","v":"c8.24o"},{"$f":"'tax it (c6)'!AB62","v":0},null,null,{"$f":"A50","v":"c8.24p"},{"$f":"D98*SNil_rate","v":0},"pdown"]
[]
[null,null,null,{"$f":"\"from \"&'tax it (c6)'!AA66","v":"from c6.52"},null,null,null,{"$f":"C101&\" × BR_rate (\"&BR_rate*100&\"%)\"","v":"c8.24q × BR_rate (20%)"}]
[null,"Basic rate",{"$f":"A51","v":"c8.24q"},{"$f":"'tax it (c6)'!AB66","v":0},null,null,{"$f":"A52","v":"c8.24r"},{"$f":"TRUNC(D101*BR_rate,2)","v":0},"pdown"]
[]
[null,null,null,{"$f":"\"from \"&'tax it (c6)'!AA91","v":"from c6.54b"},null,null,null,{"$f":"C104&\" × SNil_rate (\"&SNil_rate*100&\"%)\"","v":"c8.24s × SNil_rate (0%)"}]
[null,"Nil rate HR",{"$f":"A53","v":"c8.24s"},{"$f":"'tax it (c6)'!AB91","v":0},null,null,{"$f":"A54","v":"c8.24t"},{"$f":"D104*SNil_rate","v":0},"pdown"]
[]
[null,null,null,{"$f":"\"from \"&'tax it (c6)'!AA95","v":"from c6.55"},null,null,null,{"$f":"C107&\" × HR_rate (\"&HR_rate*100&\"%)\"","v":"c8.24u × HR_rate (40%)"}]
[null,"Higher rate",{"$f":"A55","v":"c8.24u"},{"$f":"'tax it (c6)'!AB95","v":0},null,null,{"$f":"A56","v":"c8.24v"},{"$f":"TRUNC(D107*HR_rate,2)","v":0},"pdown"]
[]
[null,null,null,{"$f":"\"from \"&'tax it (c6)'!AA108","v":"from c6.56"},null,null,null,{"$f":"C110&\" × AHR_rate (\"&AHR_rate*100&\"%)\"","v":"c8.24w × AHR_rate (45%)"}]
[null,"Additional rate",{"$f":"A57","v":"c8.24w"},{"$f":"'tax it (c6)'!AB108","v":0},null,null,{"$f":"A58","v":"c8.24x"},{"$f":"TRUNC(D110*AHR_rate,2)","v":0},"pdown"]
[]
[null,null,null,null,null,null,null,{"$f":"G95&\" + \"&G98&\" + \"&G101&\" + \"&G104&\" + \"&G107&\" + \"&G110","v":"c8.24n + c8.24p + c8.24r + c8.24t + c8.24v + c8.24x"}]
[null,null,null,null,null,null,{"$f":"A59","v":"c8.25"},{"$f":"H95+H98+H101+H104+H107+H110","v":0}]
[]
[]
[]
[]
[]
[null,null,null,null,null,null,{"$f":"\"if \"&'Deductions (c4)'!H343&\" greater than 0 (zero)\"","v":"if c4.54.1 greater than 0 (zero)"}]
[null,null,null,null,null,null,{"$f":"\"set \"&'Deductions (c4)'!H354&\" to \"&'Deductions (c4)'!H347","v":"set c4.55 to c4.54.2"}]
[null,null,null,null,null,null,{"$f":"\"set \"&'Deductions (c4)'!D408&\" to \"&'NS income (c1)'!I184&\" + \"&'Deductions (c4)'!H343","v":"set c4.63a to c1.57 + c4.54.1"}]
[null,null,null,null,null,null,{"$f":"\"set \"&'non-res (c91)'!C15&\" to \"&'NS income (c1)'!I184&\" + \"&'Deductions (c4)'!H343","v":"set c91.1 to c1.57 + c4.54.1"}]
[null,null,null,null,null,null,{"$f":"\"set \"&'Deductions (c4)'!D508&\" to If calculation type = non-resident\"","v":"set c4.73 to If calculation type = non-resident"}]
[null,null,null,null,null,null,{"$f":"'Deductions (c4)'!D508&\" = \"&'non-res (c91)'!M119","v":"c4.73 = c91.28"}]
[null,null,null,null,null,null,"else"]
[null,null,null,null,null,null,{"$f":"'Deductions (c4)'!D508&\" = \"&'Divs (c3)'!G87&\" + \"&'Deductions (c4)'!H343","v":"c4.73 = c3.21 + c4.54.1"}]
[null,null,null,null,null,null,"end if"]
[null,null,null,null,null,null,{"$f":"\"calculate boxes \"&'allowances (c14c15)'!K5&\" to \"&'allowances (c14c15)'!K26","v":"calculate boxes c14.1 to c14.6"}]
[null,null,null,null,null,null,{"$f":"\"calculate boxes \"&'Deductions (c4)'!H354&\" to \"&'tax it (c8)'!G113&\", but ignore stage 7\"","v":"calculate boxes c4.55 to c8.25, but ignore stage 7"},null,null,null,null,null,null,null,"if transiftion profit"]
[null,null,null,null,null,null,{"$f":"G142&\" =\"&G26&\" + \"&G47&\" + \"&G65&\" + \"&G89&\" + \"&G113","v":"c8.25a =c8.6a + c8.16a + c8.24a + c8.24l + c8.25"},null,null,null,null,null,null,"need_TP_alt_c8_26",{"$f":"'Deductions (c4)'!E195+'Deductions (c4)'!E198>0","v":false}]
[null,null,null,null,null,null,{"$f":"\"set \"&'Deductions (c4)'!H354&\" to \"&'Deductions (c4)'!H347&\" minus \"&'Deductions (c4)'!H350","v":"set c4.55 to c4.54.2 minus c4.54.3"}]
[null,null,null,null,null,null,{"$f":"\"set \"&'Deductions (c4)'!D408&\" to from \"&'NS income (c1)'!I184","v":"set c4.63a to from c1.57"}]
[null,null,null,null,null,null,{"$f":"\"set \"&'non-res (c91)'!C15&\" to from \"&'NS income (c1)'!I184","v":"set c91.1 to from c1.57"}]
[null,null,null,null,null,null,{"$f":"\"set \"&'Deductions (c4)'!D508&\" to If calculation type = non-resident\"","v":"set c4.73 to If calculation type = non-resident"}]
[null,null,null,null,null,null,{"$f":"'Deductions (c4)'!D508&\" = \"&'non-res (c91)'!M119","v":"c4.73 = c91.28"}]
[null,null,null,null,null,null,"else"]
[null,null,null,null,null,null,{"$f":"'Deductions (c4)'!D508&\" = \"&'Divs (c3)'!G87","v":"c4.73 = c3.21"}]
[null,null,null,null,null,null,"end if",null,null,null,null,null,null,"calc_TP_alt_c8_26",false,"flag to temporarily switch to calculating value that is an alternative to c8.26"]
[null,null,null,null,null,null,{"$f":"\"calculate boxes \"&'Deductions (c4)'!H354&\" to \"&'tax it (c8)'!G113","v":"calculate boxes c4.55 to c8.25"},null,null,null,null,null,null,"TP_alt_c8_26",null,"value that was thereby calculated then stashed here for future use"]
[null,null,null,null,null,null,{"$f":"\"else \"&G142&\" = 0 (zero)\"","v":"else c8.25a = 0 (zero)"},null,null,null,null,null,null,"use_TP_alt_c8_26",false,"flag to use preceding value in c8.25a (instead of c8.26)"]
[null,null,null,null,null,null,"end if"]
[null,"Income tax due calculated including transition profit",null,null,null,null,{"$f":"A60","v":"c8.25a"},{"$f":"IF(use_TP_alt_c8_26, TP_alt_c8_26,0)","v":0}]
[]
[]
[null,null,null,null,null,null,null,{"$f":"G26&\" + \"&G47&\" + \"&G65&\" + \"&G89&\" + \"&G113","v":"c8.6a + c8.16a + c8.24a + c8.24l + c8.25"}]
[null,"Income tax due calculated excluding transition profit",null,null,null,null,{"$f":"A61","v":"c8.25b"},{"$f":"H26+H47+H65+H89+H113","v":0},null,null,null,null,"T_Profit_from_c4","c8.25b",{"$f":"H26+H47+H65+H89+H113","v":0}]
[]
[]
[null,null,null,null,null,null,null,{"$f":"G142&\" minus \"&G146","v":"c8.25a minus c8.25b"}]
[null,"Tax due on transition profit",null,null,null,null,{"$f":"A62","v":"c8.25c"},{"$f":"MAX(H142-H146,0)","v":0}]
[]
[null,null,null,null,null,null,null,{"$f":"G26&\" + \"&G47&\" + \"&G65&\" + \"&G89&\" + \"&G113&\" + \"&G150","v":"c8.6a + c8.16a + c8.24a + c8.24l + c8.25 + c8.25c"}]
[null,"Income Tax Due",null,null,null,null,{"$f":"A63","v":"c8.26"},{"$f":"H26+H47+H65+H89+H113+H150","v":0}]
[null,null,null,null,null,null,null,{"$f":"\"copy to \"&'Tax adj (c9)'!L5","v":"copy to c9.1"}]
[]
[null,null,null,null,null,null,null,{"$f":"\"If \"&'Status (c3a)'!L45&\" <  BR_rate (\"&BR_rate * 100&\"%)\"","v":"If c3a.4 <  BR_rate (20%)"}]
[null,null,null,null,null,null,null,{"$f":"\"set \"&'Deductions (c4)'!H383&\" to \"&'Deductions (c4)'!H379","v":"set c4.59 to c4.58"},null,null,null,null,null,"if divergence"]
[null,null,null,null,null,null,null,{"$f":"\"set \"&'Deductions (c4)'!H395&\" to \"&'Deductions (c4)'!H360&\" + \"&'Deductions (c4)'!H379&\" minus \"&'Deductions (c4)'!H392","v":"set c4.62 to c4.57 + c4.58 minus c4.61"},null,null,null,null,"need_GA_alt_c8_26",{"$f":"'Status (c3a)'!M45<BR_rate","v":false}]
[null,null,null,null,null,null,null,{"$f":"\"calculate boxes \"&'Deductions (c4)'!H383&\" to \"&G150&\", but ignore stage 7\"","v":"calculate boxes c4.59 to c8.25c, but ignore stage 7"}]
[null,null,null,null,null,null,null,{"$f":"G167&\" = \"&G26&\" + \"&G47&\" + \"&G65&\" + \"&G89&\" + \"&G113&\" + \"&G150","v":"c8.27 = c8.6a + c8.16a + c8.24a + c8.24l + c8.25 + c8.25c"}]
[null,null,null,null,null,null,null,{"$f":"\"set \"&'Deductions (c4)'!H383&\" to \"&'Deductions (c4)'!H360&\" + \"&'Deductions (c4)'!H379","v":"set c4.59 to c4.57 + c4.58"},null,null,null,null,"calc_GA_alt_c8_26",false,"flag to temporarily switch to calculating value that is an alternative to c8.26"]
[null,null,null,null,null,null,null,{"$f":"\"set \"&'Deductions (c4)'!H395&\" to \"&'Deductions (c4)'!H383&\" minus \"&'Deductions (c4)'!H392","v":"set c4.62 to c4.59 minus c4.61"},null,null,null,null,"GA_alt_c8_26",null,"value that was thereby calculated then stashed here for future use"]
[null,null,null,null,null,null,null,{"$f":"\"calculate boxes \"&'Deductions (c4)'!H383&\" to \"&G150","v":"calculate boxes c4.59 to c8.25c"},null,null,null,null,"use_GA_alt_c8_26",false,"flag to use preceding value in c8.25d (instead of c8.26)"]
[null,null,null,null,null,null,null,"else"]
[null,null,null,null,null,null,null,{"$f":"G167&\" = 0 (zero)\"","v":"c8.27 = 0 (zero)"}]
[null,null,null,null,null,null,null,"end if"]
[null,"Income tax due calculated excluding Gift aid from extended basic rate band",null,null,null,null,{"$f":"A64","v":"c8.27"},{"$f":"IF(use_GA_alt_c8_26, GA_alt_c8_26,0)","v":0}]
[]
[null,null,null,null,null,null,null,null,null,null,null,null,"GA_calc","c8.26",{"$f":"H26+H47+H65+H89+H113+H150","v":0}]
[]
[]
[]
[]
[]
[null,"Tax saved by",null,null,null,null,null,{"$f":"G167&\" minus \"&G153","v":"c8.27 minus c8.26"}]
[null,"Gift aid extending the basic rate band",null,null,null,null,{"$f":"A65","v":"c8.28"},{"$f":"MAX(0,H167-H153)","v":0}]
[]
[]
[]
[]
[null,null,null,{"$f":"\"If \"&C17&\" + \"&C41&\" + \"&C59&\" > 0 (zero)\"","v":"If c8.3 + c8.13 + c8.21 > 0 (zero)"}]
[null,null,null,{"$f":"C186&\" = 'Y'\"","v":" = 'Y'"}]
[null,null,null,"else"]
[null,null,null,{"$f":"C186&\" = 'N'\"","v":" = 'N'"}]
[null,null,null,"end if"]
[null,"HR_case",null,{"$f":"IF(D17+D41+D59>0,\"Y\",\"N\")","v":"N"}]
[]
[null,null,null,{"$f":"\"If \"&C23&\" + \"&C44&\" + \"&C62&\" > 0 (zero)\"","v":"If c8.5 + c8.15 + c8.23 > 0 (zero)"}]
[null,null,null,{"$f":"C193&\" = 'Y'\"","v":" = 'Y'"}]
[null,null,null,"else"]
[null,null,null,{"$f":"C193&\" = 'N'\"","v":" = 'N'"}]
[null,null,null,"end if"]
[null,"AHR_case",null,{"$f":"IF(D23+D44+D62>0,\"Y\",\"N\")","v":"N"}]

{"sheet":"Tax adj (c9)","index":65,"n_rows":215,"n_cols":14,"rows_kept":215,"cut":false,"hidden":true,"merged":[]}
["c9.1","Stage 9: Calculate Income Tax due after tax adjustments"]
["c9.2",null,null,null,null,null,"If any box in this stage is negative substitute zero"]
["c9.3"]
["c9.4",null,null,null,null,null,null,null,null,null,null,null,{"$f":"\"from \"&'tax it (c8)'!G153","v":"from c8.26"}]
["c9.5","Income Tax due",null,null,null,null,null,null,null,null,null,{"$f":"A1","v":"c9.1"},{"$f":"'tax it (c8)'!H153","v":0}]
["c9.6"]
["c9.7","Tax reductions - Reliefs",null,null,null,null,null,null,null,{"$f":"\"from \"&'CDR (c7)'!J94","v":"from c7.16"}]
["c9.8","Deficiency Relief",null,null,null,null,null,null,{"$f":"A2","v":"c9.2"},{"$f":"'CDR (c7)'!K94","v":0}]
["c9.9"]
["c9.10",null,null,null,null,null,null,null,null,{"$f":"\"from \"&'TSR (c17)'!L308","v":"from c17.48"}]
["c9.11","Top Slicing Relief",null,null,null,null,null,null,{"$f":"A3","v":"c9.3"},{"$f":"'TSR (c17)'!M308","v":0}]
["c9.12"]
["c9.13",null,null,null,null,null,{"$f":"\"from \"&AOR&AOR!C5","v":"from AOR1"},null,null,{"$f":"F14&\" × VCT_rate (\"&VCT_rate * 100&\"%)\"","v":"c9.4 × VCT_rate (30%)"}]
["c9.14","Venture Capital Trust shares",null,null,null,{"$f":"A4","v":"c9.4"},{"$f":"TRUNC(AOR!D6+0.99,0)","v":0},"£up",{"$f":"A5","v":"c9.5"},{"$f":"TRUNC((G14*VCT_rate)+0.0099,2)","v":0},"pup"]
["c9.15"]
["c9.15a",null,null,null,null,null,{"$f":"\"from \"&AOR&AOR!C8","v":"from AOR2"},null,null,{"$f":"F17&\" × EIS_rate (\"&EIS_rate * 100&\"%)\"","v":"c9.6 × EIS_rate (30%)"}]
["c9.16","Enterprise Investment Scheme",null,null,null,{"$f":"A6","v":"c9.6"},{"$f":"TRUNC(AOR!D9+0.99,0)","v":0},"£up",{"$f":"A7","v":"c9.7"},{"$f":"TRUNC((G17*EIS_rate)+0.0099,2)","v":0},"pup"]
["c9.17"]
["c9.18",null,null,null,null,null,{"$f":"\"from \"&AOR&AOR!G14","v":"from AOR10"},null,null,{"$f":"F20&\" × SEIS_rate (\"&SEIS_rate * 100&\"%)\"","v":"c9.8 × SEIS_rate (50%)"}]
["c9.19","SEED Enterprise Investment Scheme",null,null,null,{"$f":"A8","v":"c9.8"},{"$f":"TRUNC(AOR!H15+0.99,0)","v":0},"£up",{"$f":"A9","v":"c9.9"},{"$f":"TRUNC((G20*SEIS_rate)+0.0099,2)","v":0},"pup"]
["c9.20"]
["c9.21",null,null,null,null,null,{"$f":"\"from \"&AOR&AOR!C11","v":"from AOR3"},null,null,{"$f":"F23&\" × CITR_rate (\"&CITR_rate * 100&\"%)\"","v":"c9.10 × CITR_rate (5%)"}]
["c9.22",{"$f":"AOR!D11","v":"Community Investment Tax relief"},null,null,null,{"$f":"A10","v":"c9.10"},{"$f":"TRUNC(AOR!D12+0.99,0)","v":0},"£up",{"$f":"A11","v":"c9.11"},{"$f":"TRUNC((G23*CITR_rate)+0.0099,2)","v":0},"pup"]
["c9.23"]
["c9.23a",null,null,null,null,null,"set to zero",null,null,"set to zero"]
["c9.23b",null,null,null,null,{"$f":"A12","v":"c9.12"},0,null,{"$f":"A13","v":"c9.13"},0]
["c9.24"]
["c9.25"]
["c9.26",null,null,null,null,null,null,null,null,null,null,null,{"$f":"I8&\" + \"&I11&\" + \"&I14&\" + \"&I17&\" + \"&I20&\" + \"&I23&\" + \"&I26","v":"c9.2 + c9.3 + c9.5 + c9.7 + c9.9 + c9.11 + c9.13"}]
["c9.27",null,null,null,null,null,null,null,null,null,null,{"$f":"A14","v":"c9.14"},{"$f":"J8+J11+J14+J17+J20+J23+J26","v":0}]
["c9.28"]
["c9.29","Allowances",null,null,null,null,null,null,null,{"$f":"\"lower of \"&AOR&AOR!G5&\" and SMP (\"&DOLLAR(SMP,0)&\")\"","v":"lower of AOR7 and SMP (£4,360)"},null,null,{"$f":"I33&\" × A_rate (\"&A_rate * 100&\"%)\"","v":"c9.15 × A_rate (10%)"}]
["c9.30","Maintenance and Alimony",null,null,null,null,null,null,{"$f":"A15","v":"c9.15"},{"$f":"IF(AOR!H6>SMP,SMP,TRUNC(AOR!H6+0.99,0))","v":0},"£up",{"$f":"A16","v":"c9.15a"},{"$f":"TRUNC((J33*A_rate)+0.0099,2)","v":0},"pup"]
["c9.30a"]
["c9.30b","Married Couples Allowance & Married couples surplus allowance"]
["c9.30c",{"$f":"\"If (\"&NRD!P10&\" = Y or \"&NRD!P11&\" = Y or \"&NRD!P18&\" = Y)\"","v":"If (box_NRD28 = Y or box_NRD29 = Y or box_NRD40 = Y)"}]
["c9.31",{"$f":"\"or (\"&NRD!P4&\" = Y and \"&NRD!P8&\" and \"&NRD!P9&\" = N)\"","v":"or (box_NRD1 = Y and box_NRD15 and box_NRD16 = N)"}]
["c9.31a","or Calculation type = non-resident"]
["c9.31b",{"$f":"\"set boxes \"&I51&\" to \"&I54&\" to 0 (zero)\"","v":"set boxes c9.16 to c9.17 to 0 (zero)"}]
["c9.32","else"]
["c9.33","Married Couples Allowance"]
["c9.34",null,null,null,null,null,null,null,null,"If box MCA1 present"]
["c9.35",null,null,null,null,null,null,null,null,{"$f":"I51&\" = \"&'allowances (c14c15)'!K164","v":"c9.16 = c15.21"}]
["c9.36",null,null,null,null,null,null,null,null,"else"]
["c9.37",null,null,null,null,null,null,null,null,"If box MCA8 present"]
["c9.38",null,null,null,null,null,null,null,null,{"$f":"I51&\" = \"&'allowances (c14c15)'!K148","v":"c9.16 = c15.20"}]
["c9.39",null,null,null,null,null,null,null,null,"else"]
["c9.39a",null,null,null,null,null,null,null,null,{"$f":"I51&\" = 0 (zero)\"","v":"c9.16 = 0 (zero)"}]
["c9.39b",null,null,null,null,null,null,null,null,"end if"]
["c9.39c",null,null,null,null,null,null,null,null,"end if"]
["c9.39d",null,null,null,null,null,null,null,{"$f":"A17","v":"c9.16"},{"$f":"IF(OR(non_resident,FIG_claim_election),0,IF(UK_allowance_claim,'allowances (c14c15)'!L164,0))","v":0}]
["c9.39e"]
["c9.39f",null,null,null,null,null,null,null,null,{"$f":"\"from \"&CAL&CAL!G19","v":"from CAL13"}]
["c9.39g","Married Couples Surplus Allowance",null,null,null,null,null,null,{"$f":"A18","v":"c9.17"},{"$f":"IF(OR(non_resident,FIG_claim_election),0,IF(UK_allowance_claim,TRUNC(CAL!H20+0.99,0),0))","v":0},"£up"]
["c9.39g1","end if"]
["c9.39h",null,null,null,null,null,null,null,null,{"$f":"I51&\" + \"&I54","v":"c9.16 + c9.17"},null,null,{"$f":"I57&\" × A_rate (\"&A_rate * 100&\"%)\"","v":"c9.18 × A_rate (10%)"}]
["c9.39i","Total Allowances",null,null,null,null,null,null,{"$f":"A19","v":"c9.18"},{"$f":"J51+J54","v":0},null,{"$f":"A20","v":"c9.19"},{"$f":"TRUNC((J57*A_rate)+0.0099,2)","v":0},"pup"]
["c9.39j"]
["c9.39k","Marriage Allowance transferred in"]
["c9.40","The Marriage Allowance Transfer for the recipient is not claimed on the SA Return but it is included in the SA302 tax calculation."]
["c9.41","OTRSA and 3rd party submissions will get this data from the Data cache during the return completion process."]
["c9.41a"]
["c9.41b",{"$f":"\"If (\"&NRD!P10&\" = Y or \"&NRD!P11&\" = Y or \"&NRD!P18&\" = Y)\"","v":"If (box_NRD28 = Y or box_NRD29 = Y or box_NRD40 = Y)"}]
["c9.41c",{"$f":"\"OR (\"&NRD!P4&\" = Y and \"&NRD!P8&\" and \"&NRD!P9&\" = N)\"","v":"OR (box_NRD1 = Y and box_NRD15 and box_NRD16 = N)"}]
["c9.42","OR (Calculation type = non-resident)"]
["c9.43",{"$f":"\"Set boxes \"&I75&\" to \"&L75&\" to 0 (zero)\"","v":"Set boxes c9.20 to c9.21 to 0 (zero)"}]
[null,"else"]
[null,null,null,null,null,null,null,null,null,"If MAT_IN"]
[null,null,null,null,null,null,null,null,null,{"$f":"\"AND \"&'Deductions (c4)'!Q590&\" = 0 (zero)\"","v":"AND c4.76c = 0 (zero)"}]
[null,null,null,null,null,null,null,null,null,{"$f":"\"AND (\"&'Tax adj (c9)'!I51&\" + \"&'Tax adj (c9)'!I54&\") = 0 (zero)\"","v":"AND (c9.16 + c9.17) = 0 (zero)"}]
[null,null,null,null,null,null,null,null,null,{"$f":"I75&\" = T_P_A (\"&DOLLAR(T_P_A,0)&\")\"","v":"c9.20 = T_P_A (£1,260)"}]
[null,null,null,null,null,null,null,null,null,"else"]
[null,null,null,null,null,null,null,null,null,{"$f":"I75&\" = 0 (zero)\"","v":"c9.20 = 0 (zero)"}]
[null,null,null,null,null,null,null,null,null,"end if",null,null,{"$f":"I75&\" × \"&'Status (c3a)'!L45","v":"c9.20 × c3a.4"}]
[null,null,null,null,null,null,null,null,{"$f":"A21","v":"c9.20"},{"$f":"IF(OR(non_resident,AND(box_NRD1=TRUE,box_NRD15=FALSE,box_NRD16=FALSE),FIG_claim_election),0,IF(AND(MAT_IN,HR_case_MAT=0,MCA_claim=1),T_P_A,0))","v":0},null,{"$f":"A22","v":"c9.21"},{"$f":"IF(OR(non_resident,AND(box_NRD1=TRUE,box_NRD15=FALSE,box_NRD16=FALSE)),0,J75*'Status (c3a)'!M45)","v":0}]
[null,"end if"]
[null,null,null,null,null,null,null,null,null,{"$f":"\"from \"&'LLIR (c24)'!K84","v":"from c24.17"},null,null,{"$f":"I78&\" × BR_rate (\"&BR_rate*100&\"%)\"","v":"c9.22 × BR_rate (20%)"}]
[null,"Relief for finance costs",null,null,null,null,null,null,{"$f":"A23","v":"c9.22"},{"$f":"'LLIR (c24)'!L84","v":0},null,{"$f":"A24","v":"c9.23"},{"$f":"TRUNC((J78*BR_rate)+0.0099,2)","v":0},"pup"]
[]
[null,null,null,null,null,null,null,null,null,{"$f":"\"from \"&AOR&AOR!G17","v":"from AOR12"},null,null,{"$f":"I81&\" × BR_rate (\"&BR_rate*100&\"%)\"","v":"c9.23a × BR_rate (20%)"}]
[null,null,null,null,null,null,null,null,{"$f":"A25","v":"c9.23a"},{"$f":"TRUNC(AOR!H18+0.99,0)","v":0},"£up",{"$f":"A26","v":"c9.23b"},{"$f":"TRUNC((J81*BR_rate)+0.0099,2)","v":0},"pup"]
[]
[]
[]
[null,null,null,null,null,null,null,null,null,"set to zero",null,null,"set to zero"]
[null,null,null,null,null,null,null,null,{"$f":"A27","v":"c9.24"},null,null,{"$f":"A28","v":"c9.25"}]
[]
[null,null,null,null,null,null,null,null,null,"set to zero"]
[null,null,null,null,null,null,null,null,{"$f":"A29","v":"c9.26"}]
[]
[null,null,null,null,null,null,null,null,null,"set to zero"]
[null,null,null,null,null,null,null,null,{"$f":"A30","v":"c9.27"}]
[]
[null,null,null,null,null,null,null,null,null,null,null,null,{"$f":"\"from TRU\"&TRU!O24","v":"from TRU23"}]
[null,"Relief for UK tax already accounted for",null,null,null,null,null,null,null,null,null,{"$f":"A31","v":"c9.28"},{"$f":"TRU!P25","v":0}]
[]
[null,null,null,null,null,null,null,null,null,null,null,null,{"$f":"\"from \"&'Notional (c21c23)'!J92","v":"from c23.11"}]
[null,"Relief claimed on a qualifying distribution",null,null,null,null,null,null,null,null,null,{"$f":"A32","v":"c9.29"},{"$f":"'Notional (c21c23)'!K92","v":0}]
[]
[null,null,null,null,null,null,null,null,null,null,null,null,{"$f":"\"from \"&'Pensions (c25c26)'!J162","v":"from c25.57"}]
[null,"Basic rate additional tax relief due for pension payments",null,null,null,null,null,null,null,null,null,{"$f":"A33","v":"c9.30"},{"$f":"'Pensions (c25c26)'!K162","v":0}]
[]
[null,null,null,null,null,null,null,null,null,null,null,null,{"$f":"\"Absolute value (\"&'Status (c3a)'!L45&\" minus BR_rate (\"&BR_rate * 100&\"%))\"","v":"Absolute value (c3a.4 minus BR_rate (20%))"}]
[null,null,null,null,null,null,null,null,null,null,null,{"$f":"A34","v":"c9.30a"},{"$f":"ABS('Status (c3a)'!M45-BR_rate)","v":0}]
[]
[null,null,null,null,null,null,null,null,null,null,null,null,{"$f":"\"lower of \"&'Deductions (c4)'!H360&\" and (\"&'tax it (c6)'!G66&\" + \"&'tax it (c6)'!V66&\")\"","v":"lower of c4.57 and (c6.6 + c6.40)"}]
[null,null,null,null,null,null,null,null,null,null,null,{"$f":"A35","v":"c9.30b"},{"$f":"MIN('Deductions (c4)'!I360,('tax it (c6)'!H66+'tax it (c6)'!W66))","v":0}]
[]
[null,null,null,null,null,null,null,null,null,null,null,null,{"$f":"\"If \"&'Status (c3a)'!L45&\" > BR_rate (\"&BR_rate * 100&\"%)\"","v":"If c3a.4 > BR_rate (20%)"}]
[null,null,null,null,null,null,null,null,null,null,null,null,{"$f":"L114&\" = \"&L107&\" × \"&L104","v":"c9.30c = c9.30b × c9.30a"}]
[null,null,null,null,null,null,null,null,null,null,null,null,"else"]
[null,null,null,null,null,null,null,null,null,null,null,null,{"$f":"L114&\" = 0 (zero)\"","v":"c9.30c = 0 (zero)"}]
[null,null,null,null,null,null,null,null,null,null,null,null,"end if"]
[null,"BR difference Tax Reduction",null,null,null,null,null,null,null,null,null,{"$f":"A36","v":"c9.30c"},{"$f":"IF('Status (c3a)'!M45>BR_rate,'Tax adj (c9)'!M107*'Tax adj (c9)'!M104,0)","v":0}]
[]
[]
[null,null,null,null,null,null,null,null,null,null,null,null,{"$f":"L5&\" minus (\"&L30&\" + \"&L33&\" + \"&L57&\" + \"&L75&\" + \"&L78&\" + \"&L81&\" + \"&L95&\" + \"&L98&\" + \"&L101&\" + \"&L114&\")\"","v":"c9.1 minus (c9.14 + c9.15a + c9.19 + c9.21 + c9.23 + c9.23b + c9.28 + c9.29 + c9.30 + c9.30c)"}]
[null,"Income tax due after tax reductions",null,null,null,null,null,null,null,null,null,{"$f":"A37","v":"c9.31"},{"$f":"MAX(0,M5-(M30+M33+M57+M75+M78+M81+M95+M98+M101+M114))","v":0}]
[]
[null,null,null,null,null,null,null,null,null,null,null,null,"If calculation type = non-resident"]
[null,null,null,null,null,null,null,null,null,null,null,null,{"$f":"L125&\" = \"&'non-res (c91)'!R119","v":"c9.31a = c91.35"}]
[null,null,null,null,null,null,null,null,null,null,null,null,"else"]
[null,null,null,null,null,null,null,null,null,null,null,null,{"$f":"L125&\" = 0 (zero)\"","v":"c9.31a = 0 (zero)"}]
[null,null,null,null,null,null,null,null,null,null,null,null,"end if"]
[null,"Non-UK resident tax on Excluded income (s811(4) ITA 2007 Amount A)",null,null,null,null,null,null,null,null,null,{"$f":"A38","v":"c9.31a"},{"$f":"IF(non_resident,'non-res (c91)'!S119,0)","v":0}]
[]
[null,null,null,null,null,null,null,null,null,null,null,null,{"$f":"\"from \"&'Div Cr (c10)'!I44","v":"from c10.5"}]
[null,"s399 ITTOIA 2005 tax treated as paid on dividends from UK companies",null,null,null,null,null,null,null,null,null,{"$f":"A39","v":"c9.31b"},{"$f":"'Div Cr (c10)'!J44","v":0}]
[]
[null,null,null,null,null,null,null,null,null,null,null,null,{"$f":"\"from \"&'Div Cr (c10)'!I57&\" + \"&'Div Cr (c10)'!I69&\" + \"&'Div Cr (c10)'!I82","v":"from c10.9 + c10.13 + c10.17"}]
[null,"Notional tax",null,null,null,null,null,null,null,null,null,{"$f":"A40","v":"c9.32"},{"$f":"'Div Cr (c10)'!J57+'Div Cr (c10)'!J69+'Div Cr (c10)'!J82","v":0}]
[]
[null,"Gift Aid Payments"]
[null,"If you have made Gift Aid payments you must pay Income Tax, at whatever rate, or Capital Gains Tax, at least equal to the basic"]
[null,"rate Income Tax treated as having been deducted. The charity receiving payments from you can reclaim that Income Tax from"]
[null,"us. We must make sure you pay sufficient tax to ‘cover’ the tax repaid to the charity. If you have not paid enough it may be"]
[null,"necessary to restrict your personal allowances so more income is charged to tax or we may ask you to pay more."]
[null,null,null,{"$f":"\"from \"&'Deductions (c4)'!H360","v":"from c4.57"},null,null,{"$f":"C139&\" × BR_rate (\"&BR_rate * 100&\"%)\"","v":"c9.33 × BR_rate (20%)"}]
[null,"Gift Aid",{"$f":"A41","v":"c9.33"},{"$f":"'Deductions (c4)'!I360","v":0},null,{"$f":"A42","v":"c9.34"},{"$f":"TRUNC(D139*BR_rate,0)","v":0},"£down"]
[]
[null,null,null,null,null,null,{"$f":"\"from \"&'CG (c18)'!AA155","v":"from c18.52"}]
[null,"Capital gains tax",null,null,null,{"$f":"A43","v":"c9.35"},{"$f":"'CG (c18)'!AB155","v":0}]
[]
[null,null,null,null,null,null,"Set to zero"]
[null,"Remittance basis charge for non-domiciles",null,null,null,{"$f":"A44","v":"c9.36"},0]
[]
[null,null,null,null,null,null,{"$f":"\"(\"&L5&\" + \"&L125&\") minus (\"&L30&\" + \"&L57&\" + \"&L75&\" + \"&L78&\" + \"&L81&\" + \"&L95&\" + \"&L98&\")\"","v":"(c9.1 + c9.31a) minus (c9.14 + c9.19 + c9.21 + c9.23 + c9.23b + c9.28 + c9.29)"}]
[null,"Income tax",null,null,null,{"$f":"A45","v":"c9.37"},{"$f":"MAX(0,(M5+M125)-(M30+M57+M75+M78+M81+M95+M98))","v":0}]
[]
[null,null,null,null,null,null,{"$f":"F148&\" minus (\"&L128&\" + \"&L131&\")\"","v":"c9.37 minus (c9.31b + c9.32)"}]
[null,"Income tax after tax treated as paid deducted",null,null,null,{"$f":"A46","v":"c9.38"},{"$f":"G148-(M128+M131)","v":0},"This box can be negative"]
[]
[null,null,null,null,null,null,null,null,null,{"$f":"\"if \"&F139&\" > 0 (zero)\"","v":"if c9.34 > 0 (zero)"}]
[null,null,null,null,null,null,null,null,null,{"$f":"I158&\" = \"&F139&\" minus (\"&F142&\" + \"&F151&\")\"","v":"c9.39 = c9.34 minus (c9.35 + c9.38)"}]
[null,null,null,null,null,null,null,null,null,"else"]
[null,null,null,null,null,null,null,null,null,{"$f":"I158&\" = 0 (zero)\"","v":"c9.39 = 0 (zero)"}]
[null,null,null,null,null,null,null,null,null,"end if"]
[null,"Gift Aid tax charge",null,null,null,null,null,null,{"$f":"A47","v":"c9.39"},{"$f":"IF(G139>0,MAX(0,G139-(G142+G151)),0)","v":0}]
[]
[null,null,null,null,null,null,null,null,null,{"$f":"\"from \"&'Pensions (c25c26)'!J138","v":"from c25.50"}]
[null,"Pension savings charges",null,null,null,null,null,null,{"$f":"A48","v":"c9.39a"},{"$f":"'Pensions (c25c26)'!K138","v":0}]
[]
[null,null,null,null,null,null,null,null,null,{"$f":"\"from \"&'Pensions (c25c26)'!J198","v":"from c26.3"}]
[null,"State Pension Lump Sum",null,null,null,null,null,null,{"$f":"A49","v":"c9.39b"},{"$f":"'Pensions (c25c26)'!K198","v":0}]
[]
[null,null,null,null,null,null,null,null,null,{"$f":"\"from \"&'CBC(c28)'!I41","v":"from c28.14"}]
[null,"Tax charge on Child Benefit",null,null,null,null,null,null,{"$f":"A50","v":"c9.39c"},{"$f":"'CBC(c28)'!J41","v":0}]
[]
[null,null,null,null,null,null,null,null,null,{"$f":"\"from \"&'Pensions (c25c26)'!J158","v":"from c25.56"}]
[null,"Pension Excessive relief",null,null,null,null,null,null,{"$f":"A51","v":"c9.39d"},{"$f":"'Pensions (c25c26)'!K158","v":0}]
[]
[null,null,null,null,null,null,{"$f":"\"If \"&'Status (c3a)'!L45&\" <  BR_rate (\"&BR_rate * 100&\"%)\"","v":"If c3a.4 <  BR_rate (20%)"}]
[null,null,null,null,null,null,{"$f":"F177&\" = \"&L107&\" × \"&L104","v":"c9.39e = c9.30b × c9.30a"}]
[null,null,null,null,null,null,"else"]
[null,null,null,null,null,null,{"$f":"F177&\" = 0 (zero)\"","v":"c9.39e = 0 (zero)"}]
[null,null,null,null,null,null,"end if",null,null,{"$f":"\"lower of \"&'tax it (c8)'!G176&\" and \"&'Tax adj (c9)'!F177","v":"lower of c8.28 and c9.39e"}]
[null,"BR difference Tax Charge",null,null,null,{"$f":"A52","v":"c9.39e"},{"$f":"IF('Status (c3a)'!M45<BR_rate,'Tax adj (c9)'!M107*'Tax adj (c9)'!M104,0)","v":0},null,{"$f":"A53","v":"c9.39f"},{"$f":"MIN('tax it (c8)'!H176,'Tax adj (c9)'!G177)","v":0}]
[]
[null,null,null,null,null,null,{"$f":"\"from \"&NRD&NRD!H19","v":"from NRD51"}]
[null,"Personal TRF",null,null,null,{"$f":"A54","v":"c9.39g"},{"$f":"TRUNC(NRD!I20,0)","v":0},"£down"]
[null,null,null,null,null,null,null,null,null,{"$f":"\"(\"&F180&\" + \"&F183&\")\"","v":"(c9.39g + c9.39g1)"}]
[null,null,null,null,null,null,{"$f":"\"from \"&NRD&NRD!K19","v":"from NRD52"},null,null,{"$f":"\" × TRF_rate (\"&TRF_rate * 100&\"%)\"","v":" × TRF_rate (12%)"}]
[null,"Trust TRF",null,null,null,{"$f":"A55","v":"c9.39g1"},{"$f":"TRUNC(NRD!L20,0)","v":0},"£down",{"$f":"A56","v":"c9.39h"},{"$f":"TRUNC((G180+G183)*TRF_rate,2)","v":0},"pdown"]
[]
[null,null,null,null,null,null,null,null,null,{"$f":"\"if \"&'Divs (c3)'!G87&\" is greater than WFP_threshold (\"&DOLLAR(WFP_threshold,0)&\")\"","v":"if c3.21 is greater than WFP_threshold (£35,000)"}]
[null,null,null,null,null,null,null,null,null,{"$f":"I190&\" = \"&F190&\" × WFP_rate (\"&WFP_rate * 100&\"%)\"","v":"c9.39j = c9.39i × WFP_rate (100%)"}]
[null,null,null,null,null,null,null,null,null,"else"]
[null,null,null,null,null,null,null,null,null,{"$f":"I190&\" = 0 (zero)\"","v":"c9.39j = 0 (zero)"}]
[null,null,null,null,null,null,{"$f":"\"from box \"&'REL(2)'!K30&'REL(2)'!C32","v":"from box WFHP1"},null,null,"end if"]
[null,null,null,null,null,{"$f":"A57","v":"c9.39i"},{"$f":"TRUNC('REL(2)'!D33,0)","v":0},"£down",{"$f":"A58","v":"c9.39j"},{"$f":"IF('Divs (c3)'!H87>WFP_threshold,TRUNC('Tax adj (c9)'!G190*WFP_rate,2),0)","v":0},"pdown"]
[]
[null,null,null,null,null,null,null,null,null,{"$f":"I158&\" + \"&I161&\" + \"&I164&\" + \"&I167&\" + \"&I170&\" + \"&I177&\" + \"&I183&\" + \"&I190","v":"c9.39 + c9.39a + c9.39b + c9.39c + c9.39d + c9.39f + c9.39h + c9.39j"}]
[null,"Total Additional tax Step 7 s23 ITA",null,null,null,null,null,null,{"$f":"A59","v":"c9.39k"},{"$f":"J158+J161+J164+J167+J170+J177+J183+J190","v":0}]
[]
[null,null,null,null,null,null,null,null,null,{"$f":"L118&\" + \"&I193","v":"c9.31 + c9.39k"}]
[null,"Income tax due Step 7 s23 ITA for FTCR purposes",null,null,null,null,null,"Income tax due ",{"$f":"A60","v":"c9.40"},{"$f":"M118+J193","v":0}]
[]
[null,null,null,null,null,null,{"$f":"\"from \"&FOR&FOR!C10","v":"from FOR2"}]
[null,"Tax Credit Relief on income",null,null,null,{"$f":"A61","v":"c9.41"},{"$f":"FOR!D11","v":0}]
[]
[null,null,null,null,null,null,null,null,null,{"$f":"F199&\" + \"&'CG (c18)'!AA155","v":"c9.41 + c18.52"}]
[null,null,null,null,null,null,null,null,{"$f":"A62","v":"c9.41a"},{"$f":"G199+'CG (c18)'!AB155","v":0}]
[]
[null,null,null,null,null,null,null,null,null,{"$f":"\"(\"&I196&\" + \"&'CG (c18)'!AA155&\") minus \"&'Tax adj (c9)'!F139","v":"(c9.40 + c18.52) minus c9.34"}]
[null,null,null,null,null,null,null,null,{"$f":"A63","v":"c9.41b"},{"$f":"MAX(0,(UK_FTCR+'CG (c18)'!AB155)-('Tax adj (c9)'!G139))","v":0}]
[]
[null,null,null,null,null,null,null,null,null,{"$f":"\"lower of \"&F199&\" and \"&I205","v":"lower of c9.41 and c9.41b"}]
[null,null,null,null,null,null,null,null,{"$f":"A64","v":"c9.41c"},{"$f":"MIN(G199,J205)","v":0}]
[]
[null,null,null,null,null,null,null,null,null,{"$f":"L118&\" minus \"&I208","v":"c9.31 minus c9.41c"}]
[null,"Income tax due after Step 6 tax reductions",null,null,null,null,null,null,{"$f":"A65","v":"c9.42"},{"$f":"MAX(0,M118-J208)","v":0}]
[]
[null,null,null,null,null,null,null,null,null,{"$f":"L125&\" + \"&I193&\" + \"&I211","v":"c9.31a + c9.39k + c9.42"}]
[null,"Income tax due after Step 7 tax reductions",null,null,null,null,null,null,{"$f":"A66","v":"c9.43"},{"$f":"M125+J193+J211","v":0}]
[null,null,null,null,null,null,null,null,null,{"$f":"\"copy to \"&'Tax due (c12)'!A1","v":"copy to c12.1"}]

{"sheet":"CRC_template","index":66,"n_rows":62,"n_cols":7,"rows_kept":62,"cut":false,"hidden":true,"merged":[]}
[null,null,"Create Return Charge field entries",{"$f":"tax_year","v":"2025-26"}]
[]
[]
["c96.1","Income Tax due after reliefs",{"$f":"'Tax due (c12)'!L36&\" + \"&'Tax due (c12)'!I70&\" + \"&'Tax due (c12)'!I76","v":"c12.1f + c12.9 + c12.11"},{"$f":"MAX(0,'Tax due (c12)'!M36+'Tax due (c12)'!J70+'Tax due (c12)'!J76)","v":0}]
["c96.2","Recoverable tax on charges","Not Used ","Not Used "]
["c96.3","Capital Gains Tax",{"$f":"'Tax due (c12)'!I95","v":"c12.17"},{"$f":"'Tax due (c12)'!J95+NRD!L24","v":0}]
["c96.4","Class 4 National Insurance",{"$f":"'Tax due (c12)'!I39","v":"c12.2"},{"$f":"'Tax due (c12)'!J39","v":0}]
["c96.5","Class 2 National Insurance",{"$f":"'Tax due (c12)'!I47","v":"c12.3"},{"$f":"'Tax due (c12)'!J47","v":0}]
["c96.6","Student Loan Repayment",{"$f":"'Tax due (c12)'!I61","v":"c12.7"},{"$f":"'Tax due (c12)'!J61","v":0}]
["c96.6a","Postgraduate Loan Repayment",{"$f":"'Tax due (c12)'!I64","v":"c12.7b"},{"$f":"'Tax due (c12)'!J64","v":0}]
["c96.7","Unpaid tax for earlier years in PAYE",{"$f":"\"CAL\"&CAL!C6","v":"CAL7"},{"$f":"CAL!D7","v":0}]
["c96.8","Tax deducted at source",{"$f":"'Tax due (c12)'!I82","v":"c12.13"},{"$f":"'Tax due (c12)'!J82","v":0}]
["c96.9","Tax due included in later PAYE code",{"$f":"\"CAL\"&CAL!C9","v":"CAL8"},{"$f":"CAL!D10","v":0}]
["c96.10","Capital Gains Tax reducing tax and NICs",{"$f":"'Tax due (c12)'!L101","v":"c12.17b"},{"$f":"'Tax due (c12)'!M101","v":0}]
["c96.11","Underpayments for earlier years",{"$f":"\"CAL\"&CAL!C22","v":"CAL14"},{"$f":"CAL!D23","v":0}]
["c96.12","Notional tax",{"$f":"'Div Cr (c10)'!I19&\" + \"&'Div Cr (c10)'!I54&\" + \"&'Div Cr (c10)'!I94","v":"c10.3.2 + c10.7 + c10.20"},{"$f":"'Div Cr (c10)'!J19+'Div Cr (c10)'!J54+'Div Cr (c10)'!J94","v":0}]
["c96.13","Tax already refunded",{"$f":"\"FIN\"&'REL(2)'!C52","v":"FIN1"},{"$f":"'REL(2)'!D53","v":0}]
["c96.14","Later year tax reclaimed now","Not Used","Not Used"]
["c96.15","CODA Partnership Tax Due","Not Used","Not Used"]
["c96.16","CODA Partnership NIC Due","Not Used","Not Used"]
["c96.17","Amount collected against small debt",{"$f":"'Tax paid (c11)'!I32","v":"c11.7"},{"$f":"'Tax paid (c11)'!J32","v":0}]
["c96.18","TRF charge",{"$f":"'Tax adj (c9)'!I183","v":"c9.39h"},{"$f":"'Tax adj (c9)'!J183","v":0}]
[null,"Voluntary Class 2 NICs via SA",null,{"$f":"IF(NIC2_v,\"Y\",\"N\")","v":"N"}]
[null,"No Collection of Class 2 NICs via SA",null,{"$f":"IF(NIC2_amount>0,\"N\",\"Y\")","v":"Y"}]
[null,"Between SPT/LPT",null,{"$f":"IF(NIC2_thrshld>0,\"Y\",\"N\")","v":"N"}]
[null,"Current Class 2 NICs Charge held on NPS"]
[]
[null,"Pension savings charge",null,{"$f":"'Tax due (c12)'!J70","v":0}]
[]
[]
[null,"Interface to S/L Diary"]
["c97.1","Student loan PAYE income ",{"$f":"'S loans(c27)'!F28&\" + \"&'S loans(c27)'!F90","v":"c27.5 + c27.9"},{"$f":"'S loans(c27)'!G28+'S loans(c27)'!G90","v":0},null,"(CSL-PAYE-INCOME)"]
[]
["c97.2","Student loan Total income ",{"$f":"'S loans(c27)'!J204","v":"c27.40"},{"$f":"IF(SL_type,'S loans(c27)'!K204,0)","v":0},null,"(CSL-INCOME-TOTAL)"]
[]
["c97.3","Student loan gross repayment ",{"$f":"'S loans(c27)'!J226","v":"c27.42"},{"$f":"IF(SL_type,'S loans(c27)'!K226,0)","v":0},null,"(CSL-GROSS-AMOUNT)"]
[]
["c97.4","Student loan PAYE repayment ",{"$f":"'S loans(c27)'!J229","v":"c27.43"},{"$f":"'S loans(c27)'!K229","v":0},null,"(CSL-PAYE-REPAYMENT)"]
[null,null,null,null,null,null,"c97.5"]
["c97.5","Student loan SA income ",{"$f":"'S loans(c27)'!J164&\" minus (\"&C32&\")\"","v":"c27.29 minus (c27.5 + c27.9)"},{"$f":"IF(SL_type,MAX('S loans(c27)'!K164-D32,0),0)","v":0},null,"(CSL-SA-INCOME)",{"$f":"\"If \"&'S loans(c27)'!J164&\" minus (\"&C32&\") > 0\"","v":"If c27.29 minus (c27.5 + c27.9) > 0"}]
[null,null,null,null,null,null,{"$f":"A40&\" =\"&'S loans(c27)'!J164&\" minus (\"&C32&\")\"","v":"c97.5 =c27.29 minus (c27.5 + c27.9)"}]
["c97.6","Student Loan Repayment ",{"$f":"'S loans(c27)'!J258","v":"c27.44"},{"$f":"IF(SL_type,'S loans(c27)'!K258,0)","v":0},null,"(CSL-SA-REPAYMENT)","else"]
[null,null,null,null,null,null,{"$f":"A40&\" = 0\"","v":"c97.5 = 0"}]
["c97.6a","Postgraduate loan PAYE income","Not used",null,null,null,"end if"]
[]
["c97.6b","Postgraduate loan Total income ","Not used"]
[]
["c97.6c","Postgraduate loan gross repayment ",{"$f":"'S loans(c27)'!J239","v":"c27.43b"},{"$f":"'S loans(c27)'!K242","v":0},null,"(CPGL-GROSS-AMOUNT)"]
[]
["c97.6d","Postgraduate loan PAYE repayment ",{"$f":"'S loans(c27)'!J242","v":"c27.43c"},{"$f":"'S loans(c27)'!K242","v":0},null,"(CPGL-PAYE-REPAYMENT)"]
[]
["c97.6e","Postgraduate loan SA income ","Not used"]
[]
["c97.6f","Postgraduate Loan Repayment ",{"$f":"'S loans(c27)'!J277","v":"c27.45"},{"$f":"IF(SL_type,'S loans(c27)'!K277,0)","v":0},null,"(CPGL-SA-REPAYMENT)"]
[]
[]
[]
[]
[]
[null,"3) Coded out underpayments."]
[null,"A mainframe only process that sets up data required by TUTC."]
["c97.7","Underpayment coding limit","from c98.17"]

{"sheet":"Div Cr (c10)","index":67,"n_rows":94,"n_cols":11,"rows_kept":94,"cut":false,"hidden":true,"merged":[]}
["c10.1","Non-payable notional tax and tax credits on dividends"]
["c10.2",null,null,null,null,null,"If any box in this stage is negative substitute zero"]
["c10.3"]
["c10.3.1","Lloyd's dividends"]
["c10.3.2",null,null,null,null,null,{"$f":"\"from \"&LUN&LUN!C16","v":"from LUN9"}]
["c10.3.3","Other dividends and qualifying distributions from UK companies",null,null,null,{"$f":"A1","v":"c10.1"},{"$f":"TRUNC(LUN!D17,0)","v":0},"£down"]
["c10.4"]
["c10.5",null,null,null,null,null,{"$f":"\"from \"&'Notional (c21c23)'!G26","v":"from c21.12"}]
["c10.6","Notional tax and tax credits",null,null,null,{"$f":"A2","v":"c10.2"},{"$f":"'Notional (c21c23)'!H26","v":0}]
["c10.7"]
["c10.8",null,null,null,null,null,{"$f":"\"lower of \"&F6&\" and \"&F9","v":"lower of c10.1 and c10.2"}]
["c10.9",null,null,null,null,{"$f":"A3","v":"c10.3"},{"$f":"MIN(G6,G9)","v":0}]
["c10.10"]
["c10.11",null,null,null,null,null,{"$f":"FOR&FOR!G37&\" × old_gross (\"&old_gross_F&\")\"","v":"FOR7.5 × old_gross (100/90)"}]
["c10.12","Remitted dividends from box 7.4 paid before April 2016",null,null,null,{"$f":"A4","v":"c10.3.1"},{"$f":"TRUNC(FOR!H38*old_gross,0)","v":0},"£down"]
["c10.13"]
["c10.14"]
["c10.15",null,null,null,null,null,null,null,null,{"$f":"F15&\" × Ldiv_rate \"&Ldiv_rate * 100&\"%\"","v":"c10.3.1 × Ldiv_rate 10%"}]
["c10.16",null,null,null,null,null,null,null,{"$f":"A5","v":"c10.3.2"},{"$f":"TRUNC((G15*Ldiv_rate)+0.0099,2)","v":0},"pup"]
["c10.17"]
["c10.18"]
["c10.19",null,null,null,null,null,null,null,null,{"$f":"'Taxable (c5)'!BA149&\" × Ldiv_rate \"&Ldiv_rate * 100&\"%\"","v":"c5.76 × Ldiv_rate 10%"}]
["c10.20",null,null,null,null,null,null,null,{"$f":"A6","v":"c10.3.3"},{"$f":"TRUNC(('Taxable (c5)'!BB149*Ldiv_rate)+0.0099,2)","v":0},"pup"]
[]
[]
[null,null,null,null,null,null,null,null,null,{"$f":"\"lower of \"&I19&\" and \"&I23","v":"lower of c10.3.2 and c10.3.3"}]
[null,"Non-payable tax credits on dividends",null,null,null,null,null,null,{"$f":"A7","v":"c10.4"},{"$f":"MIN(J19,J23)","v":0}]
[]
[]
[]
[]
[]
[]
[]
[]
[null,"s399 ITTOIA 2005 tax treated as paid on dividends from UK companies"]
[null,{"$f":"\"if non-UK resident (\"&INC&'INC(1)'!I15&\" + \"&INC&'INC(1)'!I18&\" + \"&FPS&PS!G42&\" + \"&TRU&TRU!G11&\" + \"&TRU&TRU!C28&\" + \"&TRU&TRU!G24&\" + \"&AOI&AOI!G28&\") x DivBR_rate (\"&DivBR_rate*100&\"%)\"","v":"if non-UK resident (INC4 + INC5 + FPS70 + TRU5 + TRU9 + TRU12 + AOI13) x DivBR_rate (8.75%)"}]
[]
[null,null,null,null,null,null,null,null,null,{"$f":"\"If \"&NRD&NRD!C5&\" = N\"","v":"If NRD1 = N"}]
[null,null,null,null,null,null,null,null,null,{"$f":"I44&\" = 0 (zero)\"","v":"c10.5 = 0 (zero)"}]
[null,null,null,null,null,null,null,null,null,"else"]
[null,null,null,null,null,null,null,null,null,{"$f":"I44&\" = \"&\"(\"&'Divs (c3)'!G5&\" + \"&'Divs (c3)'!D28&\" + \"&'Divs (c3)'!D40&\" + \"&'Divs (c3)'!D48&\" + \"&'Divs (c3)'!D49&\" + \"&'Divs (c3)'!D51&\") × DivBR_rate (\"&DivBR_rate*100&\"%)\"","v":"c10.5 = (c3.1 + c3.6 + c3.8 + c3.10 + c3.11 + c3.13) × DivBR_rate (8.75%)"}]
[null,null,null,null,null,null,null,null,null,"end if"]
[null,null,null,null,null,null,null,null,{"$f":"A8","v":"c10.5"},{"$f":"IF(Resident,0,TRUNC((('Divs (c3)'!H5+'Divs (c3)'!E28+'Divs (c3)'!E40+'Divs (c3)'!E48+'Divs (c3)'!E49+'Divs (c3)'!E51)*DivBR_rate),2))","v":0},"pdown"]
[null,null,null,null,null,null,null,null,null,{"$f":"\"copy to \"&'Tax adj (c9)'!A39","v":"copy to c9.31b"}]
[]
[null,null,null,null,null,null,null,null,null,"set to zero"]
[null,null,null,null,null,null,null,null,{"$f":"A9","v":"c10.6"},0]
[]
[]
[]
[]
[null,null,null,null,null,null,null,null,null,"set to zero"]
[null,null,null,null,null,null,null,null,{"$f":"A10","v":"c10.7"},0]
[]
[null,null,null,null,null,null,{"$f":"\"from \"&'Taxable (c5)'!BA302","v":"from c5.82"},null,null,{"$f":"F57&\" × BR_rate (\"&BR_rate * 100&\"%)\"","v":"c10.8 × BR_rate (20%)"}]
[null,"on Gains on life policies",null,null,null,{"$f":"A11","v":"c10.8"},{"$f":"'Taxable (c5)'!BB302","v":0},null,{"$f":"A12","v":"c10.9"},{"$f":"TRUNC((G57*BR_rate)+0.0099,2)","v":0},"pup"]
[]
[null,null,null,null,null,null,null,null,null,"set to zero"]
[null,null,null,null,null,null,null,null,{"$f":"A13","v":"c10.10"},0]
[]
[]
[]
[]
[null,null,null,null,null,null,null,null,null,"set to zero"]
[null,null,null,null,null,null,null,null,{"$f":"A14","v":"c10.11"},0]
[]
[null,null,null,null,null,null,"set to zero",null,null,{"$f":"'Notional (c21c23)'!J55&\" + \"&'Notional (c21c23)'!J59","v":"c22.18 + c22.21"}]
[null,"on estates (TRU19)",null,null,null,{"$f":"A15","v":"c10.12"},0,null,{"$f":"A16","v":"c10.13"},{"$f":"'Notional (c21c23)'!K55+'Notional (c21c23)'!K59","v":0}]
[]
[null,null,null,null,null,null,null,null,null,"set to zero"]
[null,null,null,null,null,null,null,null,{"$f":"A17","v":"c10.14"},0]
[]
[]
[]
[]
[null,null,null,null,null,null,null,null,null,"set to zero"]
[null,null,null,null,null,null,null,null,{"$f":"A18","v":"c10.15"},0]
[]
[null,null,null,null,null,null,null,null,null,{"$f":"'Notional (c21c23)'!J35&\" + \"&'Notional (c21c23)'!J38&\" + \"&'Notional (c21c23)'!J41&\" + \"&'Notional (c21c23)'!J44&\" +\"","v":"c22.3 + c22.3c + c22.6 + c22.9 +"}]
[null,null,null,null,null,null,"set to zero",null,null,{"$f":"'Notional (c21c23)'!J47&\" + \"&'Notional (c21c23)'!J51","v":"c22.12 + c22.15"}]
[null,"on Trusts (TRU2)",null,null,null,{"$f":"A19","v":"c10.16"},0,null,{"$f":"A20","v":"c10.17"},{"$f":"'Notional (c21c23)'!K35+'Notional (c21c23)'!K38+'Notional (c21c23)'!K41+'Notional (c21c23)'!K44+'Notional (c21c23)'!K47+'Notional (c21c23)'!K51","v":0}]
[]
[null,null,null,null,null,null,null,null,null,"set to zero"]
[null,null,null,null,null,null,null,null,{"$f":"A21","v":"c10.18"},0]
[]
[]
[]
[]
[null,null,null,null,null,null,null,null,null,"set to zero"]
[null,null,null,null,null,null,null,null,{"$f":"A22","v":"c10.19"},0]
[]
[null,null,null,null,null,null,null,null,null,{"$f":"I57&\" + \"&I69&\" + \"&I82","v":"c10.9 + c10.13 + c10.17"}]
[null,null,null,null,null,null,null,null,{"$f":"A23","v":"c10.20"},{"$f":"J57+J69+J82","v":0}]

{"sheet":"Tax paid (c11)","index":68,"n_rows":91,"n_cols":11,"rows_kept":91,"cut":false,"hidden":true,"merged":[]}
["c11.1","Accumulate tax paid from Tax Return"]
["c11.2",null,null,"If any box in this stage is negative substitute zero, unless otherwise stated"]
["c11.3",null,"Calculate tax paid"]
["c11.4",null,null,null,null,null,null,null,null,{"$f":"\"Total all instances (\"&EMP&EMP!C7&\")\"","v":"Total all instances (EMP2)"}]
["c11.5",null,"Employment ",null,null,null,null,null,{"$f":"A1","v":"c11.1"},{"$f":"EMP!D8+EMP!L8","v":0},"This box can be negative"]
["c11.6"]
["c11.7",null,null,null,null,null,null,null,null,{"$f":"\"from \"&ASE&ASE!C17","v":"from ASE6"}]
["c11.8",null,"Lump Sums",null,null,null,null,null,{"$f":"A2","v":"c11.2"},{"$f":"MAX(0,ASE!D18)","v":0}]
["c11.9"]
["c11.10",null,null,null,null,null,null,null,null,{"$f":"\"Total all instances (\"&MOR&MOR!G19&\")\"","v":"Total all instances (MOR39)"}]
["c11.11",null,"Ministers of Religion",null,null,null,null,null,{"$f":"A3","v":"c11.3"},{"$f":"MOR!H20","v":0},"This box can be negative"]
["c11.12"]
["c11.13",null,null,null,null,null,null,null,null,{"$f":"INC&'INC(2)'!C10&\" + \"&INC&'INC(2)'!G4&\" + \"&INC&'INC(2)'!G10","v":"INC10 + INC12 + INC14"}]
["c11.14",null,"UK Pensions",null,null,null,null,null,{"$f":"A4","v":"c11.4"},{"$f":"'INC(2)'!D11+'INC(2)'!H5+'INC(2)'!H11","v":0},"This box can be negative"]
["c11.15"]
["c11.16"]
["c11.17",null,null,null,null,null,null,null,null,{"$f":"I5&\" + \"&I8&\" + \"&I11&\" + \"&I14","v":"c11.1 + c11.2 + c11.3 + c11.4"}]
["c11.18",null,"Total tax deducted under PAYE",null,null,null,null,null,{"$f":"A5","v":"c11.5"},{"$f":"MAX(0,J5+J8+J11+J14)","v":0}]
["c11.19"]
["c11.20",null,null,null,null,null,null,null,null,{"$f":"\"from CAL\"&CAL!G9","v":"from CAL9"}]
["c11.21",null,"Outstanding debt in tax code",null,null,null,null,null,{"$f":"A6","v":"c11.6"},{"$f":"CAL!H10","v":0}]
["c11.22"]
["c11.23"]
["c11.24"]
["c11.25"]
["c11.26"]
["c11.27"]
["c11.28"]
["c11.29"]
["c11.30"]
["c11.31",null,null,null,null,null,null,null,null,{"$f":"\"lower of \"&I18&\" and \"&I21","v":"lower of c11.5 and c11.6"}]
[null,null,"Amount of coded outstanding debt collected",null,null,null,null,null,{"$f":"A7","v":"c11.7"},{"$f":"MIN(J18,J21)","v":0}]
[]
[null,null,null,null,null,null,null,null,null,{"$f":"I18&\" minus \"&I32","v":"c11.5 minus c11.7"}]
[null,null,"PAYE tax available to SA",null,null,null,null,null,{"$f":"A8","v":"c11.8"},{"$f":"MAX(0,J18-J32)","v":0}]
[]
[null,null,null,null,null,null,null,null,null,{"$f":"\"total all instances (\"&SSE&SE!C20&\")\"","v":"total all instances (SSE38)"}]
[null,null,"Self Employment",null,null,null,null,null,{"$f":"A9","v":"c11.9"},{"$f":"MAX(0,SE!D21)","v":0}]
[]
[null,null,null,null,null,null,null,null,null,{"$f":"\"total all instances (\"&FSE&SE!G23&\" + \"&FSE&SE!G26&\")\"","v":"total all instances (FSE81 + FSE82)"}]
[null,null,null,null,null,null,null,null,{"$f":"A10","v":"c11.10"},{"$f":"SE!H24+SE!H27","v":0}]
[]
[null,null,null,null,null,null,null,null,null,{"$f":"LUN&LUN!C4&\" + \"&LUN&LUN!G4&\" + \"&LUN&LUN!G13","v":"LUN4 + LUN14 + LUN17"}]
[null,null,"Lloyds",null,null,null,null,null,{"$f":"A11","v":"c11.11"},{"$f":"MAX(0,LUN!D5+LUN!H5+LUN!H14)","v":0}]
[]
[null,null,null,null,null,null,null,null,null,{"$f":"\"Total all instances (\"&SPS&PS!C25&\" + \"&SPS&PS!C28&\")\"","v":"Total all instances (SPS30 + SPS31)"}]
[null,null,"Partnership ",null,null,null,null,null,{"$f":"A12","v":"c11.12"},{"$f":"MAX(0,PS!D26+PS!D29)","v":0}]
[]
[null,null,null,null,null,null,null,null,null,{"$f":"\"Total all instances (\"&FPS&PS!G52&\" + \"&FPS&PS!G55&\" + \"&FPS&PS!J55&\")\"","v":"Total all instances (FPS77 + FPS78 + FPS79)"}]
[null,null,null,null,null,null,null,null,{"$f":"A13","v":"c11.13"},{"$f":"PS!H53+PS!H56+PS!K56","v":0}]
[]
[null,null,null,null,null,null,null,null,null,{"$f":"\"from \"&PRO&PRO!C7","v":"from PRO21"}]
[null,null,"UK Land & Property",null,null,null,null,null,{"$f":"A14","v":"c11.14"},{"$f":"MAX(0,PRO!D8)","v":0}]
[]
[null,null,null,null,null,null,null,null,null,{"$f":"FOR&FOR!C18&\" + \"&FOR&FOR!C24&\" + \"&FOR&FOR!C30&\" + \"&FOR&FOR!C33&\" + \"&FOR&FOR!C40&\" + \"&FOR&FOR!C46&\" + \"&FOR&FOR!C52&\" + \"&FOR&FOR!K15&\" + \"&FOR&FOR!O27&\" + \"&FOR&FOR!K47&\" + \"&FOR&FOR!K58&\" + \"&FOR&FOR!R7","v":"FOR3 + FOR5 + FOR7.1 + FOR7.3 + FOR8 + FOR10 + FOR12 + FOR29 + FOR40 + FOR47 + FOR50 + FOR52"}]
[null,null,"Foreign income",null,null,null,null,null,{"$f":"A15","v":"c11.15"},{"$f":"FOR!D19+FOR!D25+FOR!D31+FOR!D34+FOR!D41+FOR!D47+FOR!D53+FOR!L16+FOR!P28+FOR!L48+FOR!L59+FOR!S8","v":0}]
[]
[null,null,"Trusts and Estates"]
[null,null,null,null,{"$f":"'NS income (c1)'!D159&\" × BR_rate (\"&BR_rate*100&\"%)\"","v":"(TRU3 + TRU7 + TRU16) × NS_gross (100/80) × BR_rate (20%)"},{"$f":"A16","v":"c11.16"},{"$f":"TRUNC(((TRU!D12+TRU!D21+TRU!L7)*NS_gross*BR_rate)+0.0099,2)","v":0},"pup"]
[null,null,null,null,{"$f":"TRU&TRU!C6&\" × trust_gross (\"&trust_gross_F&\")\"&\" × AHR_rate (\"&AHR_rate*100&\"%)\"","v":"TRU1 × trust_gross (100/55) × AHR_rate (45%)"},"c11.17",{"$f":"TRUNC((TRU!D7*trust_gross*AHR_rate)+0.0099,2)","v":0},"pup"]
[null,null,null,null,{"$f":"TRU&TRU!C32&\" × trust_gross (\"&trust_gross_F&\") × AHR_rate (\"&AHR_rate*100&\"%)\"","v":"TRU10 × trust_gross (100/55) × AHR_rate (45%)"},"c11.18",{"$f":"TRUNC((TRU!D33*trust_gross*AHR_rate)+0.0099,2)","v":0},"pup"]
[null,null,null,null,{"$f":"TRU&TRU!K20&\" × divs_gross_old (\"&divs_gross_old_F&\") × Old_DIV_rate (\"&Old_DIV_rate*100&\"%)\"","v":"TRU18.1 × divs_gross_old (100/92.5) × Old_DIV_rate (7.5%)"},{"$f":"A19","v":"c11.19"},{"$f":"TRUNC((TRU!L21*divs_gross_old*Old_DIV_rate)+0.0099,2)","v":0},"pup"]
[null,null,null,null,{"$f":"'Savings (c2)'!F45&\" \"&'Savings (c2)'!F46&\" × BR_rate (\"&BR_rate*100&\"%)\"","v":"(TRU4 + TRU8 + TRU17) × savings_gross (100/80) × BR_rate (20%)"},"c11.20",{"$f":"TRUNC(((TRU!D16+TRU!D25+TRU!L12)*savings_gross*BR_rate)+0.0099,2)","v":0},"pup"]
[null,null,null,null,{"$f":"'Savings (c2)'!F50&\" × AHR_rate (\"&AHR_rate*100&\"%)\"","v":"TRU11 × trust_gross (100/55) × AHR_rate (45%)"},"c11.21",{"$f":"TRUNC(((TRU!H21)*trust_gross*AHR_rate)+0.0099,2)","v":0},"pup"]
[null,null,null,null,{"$f":"'Divs (c3)'!E39&\" × DivAR_rate (\"&(trust_div_gross_P*100)&\"%)\"","v":"TRU12 × trust_div_gross (100/60.65) × DivAR_rate (39.35%)"},"c11.22",{"$f":"TRUNC(((TRU!H25)*trust_div_gross*DivAR_rate)+0.0099,2)","v":0},"pup"]
[null,null,null,null,{"$f":"\"(TRU\"&TRU!G11&\" + TRU\"&TRU!C28&\" + TRU\"&TRU!K15&\") × divs_gross (\"&divs_gross_F&\") × DivBR_rate (\"&divs_gross_P*100&\"%)\"","v":"(TRU5 + TRU9 + TRU18) × divs_gross (100/91.25) × DivBR_rate (8.75%)"},"c11.23",{"$f":"TRUNC(((TRU!H12+TRU!D29+TRU!L16)*divs_gross*DivBR_rate)+0.0099,2)","v":0},"pup"]
[null,null,null,null,{"$f":"\"from \"&TRU&TRU!G36","v":"from TRU15"},{"$f":"A24","v":"c11.24"},{"$f":"TRU!H37","v":0}]
[]
[null,null,null,null,null,null,null,null,null,{"$f":"F59&\" + \"&F60&\" + \"&F61&\" + \"&F62&\" + \"&F63&\" + \"&F64&\" + \"&F65&\" + \"&F66&\" + \"&F67","v":"c11.16 + c11.17 + c11.18 + c11.19 + c11.20 + c11.21 + c11.22 + c11.23 + c11.24"}]
[null,null,"Total from Trusts and Estates",null,null,null,null,null,{"$f":"A25","v":"c11.25"},{"$f":"G59+G60+G61+G62+G63+G64+G65+G66+G67","v":0}]
[]
[null,null,null,null,null,null,null,null,null,{"$f":"NRD&NRD!D19&\" + \"&NRD&NRD!D22","v":"NRD21 + NRD22"}]
[null,null,"Non-residence etc.",null,null,null,null,null,{"$f":"A26","v":"c11.26"},{"$f":"MAX(0,NRD!E20+NRD!E23)","v":0}]
[]
[null,null,null,null,null,null,null,null,null,{"$f":"INC&'INC(1)'!C15&\" × savings_gross (\"&savings_gross_F&\") × BR_rate (\"&BR_rate*100&\"%)\"","v":"INC1 × savings_gross (100/80) × BR_rate (20%)"}]
[null,null,"Investments",null,null,null,null,null,{"$f":"A27","v":"c11.27"},{"$f":"TRUNC(('INC(1)'!D16*savings_gross*BR_rate)+0.0099,2)","v":0},"pup"]
[null,null,null,null,null,null,null,null,null,{"$f":"\"copy to \"&'non-res (c91)'!A37","v":"copy to c91.32"}]
[]
[null,null,null,null,null,null,null,null,null,{"$f":"\"from \"&AOI&AOI!C5","v":"from AOI2"}]
[null,null,"Gilt Edge Securities",null,null,null,null,null,{"$f":"A28","v":"c11.28"},{"$f":"MAX(0,AOI!D6)","v":0}]
[]
[null,null,null,null,null,null,null,null,null,{"$f":"\"from \"&AOI&AOI!G19","v":"from AOI10"}]
[null,null,"Chargeable Event Gains etc.",null,null,null,null,null,{"$f":"A29","v":"c11.29"},{"$f":"MAX(0,AOI!H20)","v":0}]
[]
[null,null,null,null,null,null,null,null,null,{"$f":"\"from \"&INC&'INC(2)'!C28","v":"from INC19"}]
[null,null,"Other income ",null,null,null,null,null,{"$f":"A30","v":"c11.30"},{"$f":"MAX(0,'INC(2)'!D29)","v":0}]
[]
[null,null,null,null,null,null,null,null,null,{"$f":"I35&\" + \"&I38&\" + \"&I41&\" + \"&I44&\" + \"&I47&\" + \"&I50&\" + \"&I53&\" + \"&I56","v":"c11.8 + c11.9 + c11.10 + c11.11 + c11.12 + c11.13 + c11.14 + c11.15"}]
[null,null,null,null,null,null,null,null,null,{"$f":"\" + \"&I70&\" + \"&I73&\" + \"&I76&\" + \"&I80&\" + \"&I83&\" + \"&I86","v":" + c11.25 + c11.26 + c11.27 + c11.28 + c11.29 + c11.30"}]
[null,null,"Total Tax paid at source",null,null,null,null,null,{"$f":"A31","v":"c11.31"},{"$f":"J35+J38+J41+J44+J47+J50+J53+J56+J70+J73+J76+J80+J83+J86","v":0}]
[null,null,null,null,null,null,null,null,null,{"$f":"\"copy to box \"&'Tax due (c12)'!I82","v":"copy to box c12.13"}]

{"sheet":"Tax due (c12)","index":69,"n_rows":119,"n_cols":14,"rows_kept":119,"cut":false,"hidden":true,"merged":[]}
["c12.1","Calculate tax due "]
["c12.1a",null,null,"If any box in this stage is negative substitute zero, unless otherwise stated"]
["c12.1b"]
["c12.1c",null,null,null,null,null,null,null,null,{"$f":"\"from \"&'Tax adj (c9)'!I214","v":"from c9.43"}]
["c12.1d",null,null,null,null,null,null,"Income tax due",{"$f":"A1","v":"c12.1"},{"$f":"'Tax adj (c9)'!J214","v":0}]
["c12.1e"]
["c12.1f",null,null,null,"The following 5 boxes are calculated at stage 29 (Income tax for non residents (c91 boxes))"]
["c12.2",null,null,null,"If NRD 1 = Y calculate c12.1a to c12.1e"]
["c12.3",null,null,null,"c12.1e = lower of c12.1a and c12.1b"]
["c12.4",null,null,null,"else"]
["c12.5",null,null,null,"c12.1a to c12.1d equal zero"]
["c12.6",null,null,null,"calculate c12.1e"]
["c12.7",null,null,null,null,null,null,null,null,{"$f":"I5&\" from resident calculation\"","v":"c12.1 from resident calculation"}]
["c12.7b",null,null,null,null,null,null,"total_tax_NIC_nonresS23",{"$f":"A2","v":"c12.1a"},null,"This box can be negative"]
["c12.8"]
["c12.9"]
["c12.10",null,null,null,null,null,null,null,null,{"$f":"I5&\" from non-resident calculation\"","v":"c12.1 from non-resident calculation"}]
["c12.11",null,null,null,null,null,null,"total_tax_NIC_nonresS811",{"$f":"A3","v":"c12.1b"},null,"This box can be negative"]
["c12.12"]
["c12.13"]
["c12.14",null,null,null,null,null,null,null,null,{"$f":"\"from \"&'non-res (c91)'!R119","v":"from c91.35"}]
["c12.15",null,null,null,null,null,null,"s811 calc disregarded income tax (Amount A)",{"$f":"A4","v":"c12.1c"},{"$f":"'non-res (c91)'!S119","v":0}]
["c12.16"]
["c12.17",null,null,null,null,null,null,null,null,{"$f":"I18&\" minus \"&I22","v":"c12.1b minus c12.1c"}]
["c12.17a",null,null,null,null,null,null,"s811 calc non-disregarded income tax (Amount B)",{"$f":"A5","v":"c12.1d"},{"$f":"box_c12_1_s811-J22","v":0},"This box can be negative"]
["c12.17b"]
["c12.17c"]
["c12.18"]
["c12.19"]
["c12.20"]
["c12.21",null,null,null,null,null,null,null,null,null,null,null,{"$f":"\"from \"&I5","v":"from c12.1"}]
[null,null,null,null,null,null,null,null,null,null,"total_tax_NIC_nonres",{"$f":"A6","v":"c12.1e"},{"$f":"IF(box_NRD1,MIN(box_c12_1_s23,box_c12_1_s811),box_c12_1_tax)","v":0},"This box can be negative"]
[null,null,null,null,"end if"]
[]
[null,null,null,null,null,null,null,null,null,null,null,null,{"$f":"L32&\" minus (\"&'Div Cr (c10)'!I27&\" + \"&'Div Cr (c10)'!I44&\" + \"&'Div Cr (c10)'!I94&\")\"","v":"c12.1e minus (c10.4 + c10.5 + c10.20)"}]
[null,null,null,null,null,null,null,null,null,null,null,{"$f":"A7","v":"c12.1f"},{"$f":"MAX(0,M32-('Div Cr (c10)'!J27+'Div Cr (c10)'!J44+'Div Cr (c10)'!J94))","v":0}]
[]
[null,null,null,null,null,null,null,null,null,{"$f":"\"from \"&'Class 4 NIC (c16)'!J166","v":"from c16.31"}]
[null,"Class 4 National Insurance contributions",null,null,null,null,null,null,{"$f":"A8","v":"c12.2"},{"$f":"'Class 4 NIC (c16)'!K166","v":0}]
[]
[]
[]
[]
[]
[]
[null,null,null,null,null,null,null,null,null,{"$f":"\"from \"&'Class 4 NIC (c16)'!J192","v":"from c16.32"}]
[null,"Class 2 National Insurance contributions",null,null,null,null,null,null,{"$f":"A9","v":"c12.3"},{"$f":"'Class 4 NIC (c16)'!K192","v":0}]
[]
[]
[]
[null,null,null,null,null,null,null,null,null,null,null,null,{"$f":"I39&\" + \"&I47","v":"c12.2 + c12.3"}]
[null,"Class 2 & Class 4 National Insurance contributions",null,null,null,null,null,null,null,null,null,{"$f":"A10","v":"c12.4"},{"$f":"J39+J47","v":0}]
[]
[null,null,null,null,null,null,null,null,null,null,null,null,{"$f":"L36&\" + \"&L52","v":"c12.1f + c12.4"}]
[null,"Income Tax, Class 2 and Class 4 National Insurance contributions ",null,null,null,null,null,null,null,null,null,{"$f":"A11","v":"c12.5"},{"$f":"M36+M52","v":0}]
[]
[null,null,null,null,null,null,null,null,null,{"$f":"\"from \"&CAL&CAL!C6","v":"from CAL7"}]
[null,{"$f":"CAL!D6","v":"Underpaid tax for earlier years included in 2025-26 tax code"},null,null,null,null,null,null,{"$f":"A12","v":"c12.6"},{"$f":"CAL!D7","v":0}]
[]
[null,null,null,null,null,null,null,null,null,{"$f":"\"from \"&'S loans(c27)'!J258","v":"from c27.44"}]
[null,"Repayment of student loans",null,null,null,null,null,null,{"$f":"A13","v":"c12.7"},{"$f":"'S loans(c27)'!K258","v":0}]
[]
[null,null,null,null,null,null,null,null,null,{"$f":"\"from \"&'S loans(c27)'!J277","v":"from c27.45"}]
[null,"Repayment of postgraduate loans",null,null,null,null,null,null,{"$f":"A14","v":"c12.7b"},{"$f":"'S loans(c27)'!K277","v":0}]
[]
[null,null,null,null,null,null,{"$f":"\"(\"&AOR&AOR!C14&\" + \"&ASE&ASE!G20&\") × NS_gross (\"&NS_gross_F&\")\"","v":"(AOR4 + ASE15) × NS_gross (100/80)"}]
[null,"Tax due on annuity payments and royalty payments",null,null,null,{"$f":"A15","v":"c12.8"},{"$f":"TRUNC((AOR!D15+ASE!H21)*NS_gross,0)","v":0},"£down"]
[]
[null,null,null,null,null,null,null,null,null,{"$f":"F67&\" × BR_rate (\"&BR_rate*100&\"%)\"","v":"c12.8 × BR_rate (20%)"}]
[null,null,null,null,null,null,null,null,{"$f":"A16","v":"c12.9"},{"$f":"TRUNC(G67*BR_rate,2)","v":0},"pdown"]
[]
[null,null,null,null,null,null,null,null,null,"Set to zero"]
[null,null,null,null,null,null,null,null,{"$f":"A17","v":"c12.10"},0]
[]
[null,null,null,null,null,null,null,null,null,"Set to zero"]
[null,"Remittance basis charge for non-domiciles",null,null,null,null,null,null,{"$f":"A18","v":"c12.11"},0]
[]
[null,null,null,null,null,null,null,null,null,null,null,null,{"$f":"L55&\" + \"&I58&\" + \"&I61&\" + \"&I64&\" + \"&I70&\" + \"&I76","v":"c12.5 + c12.6 + c12.7 + c12.7b + c12.9 + c12.11"}]
[null,null,null,null,null,null,null,null,null,null,null,{"$f":"A19","v":"c12.12"},{"$f":"M55+J58+J61+J64+J70+J76","v":0},"This box can be negative"]
[]
[null,null,null,null,null,null,null,null,null,{"$f":"\"from \"&'Tax paid (c11)'!I90","v":"from c11.31"}]
[null,"Total tax paid at source",null,null,null,null,null,null,{"$f":"A20","v":"c12.13"},{"$f":"'Tax paid (c11)'!J90","v":0}]
[]
[null,null,null,null,null,null,null,null,null,{"$f":"\"from \"&CAL&CAL!C9","v":"from CAL8"}]
[null,{"$f":"CAL!D9","v":"2025-26 underpaid tax included in 2026-27 tax code"},null,null,null,null,null,null,{"$f":"A21","v":"c12.14"},{"$f":"CAL!D10","v":0}]
[]
[null,null,null,null,null,null,null,null,null,null,null,null,{"$f":"I82&\" + \"&I85","v":"c12.13 + c12.14"}]
[null,null,null,null,null,null,null,null,null,null,null,{"$f":"A22","v":"c12.15"},{"$f":"J82+J85","v":0}]
[]
[null,null,null,null,null,null,null,null,null,null,null,null,{"$f":"L79&\" minus \"&L88","v":"c12.12 minus c12.15"}]
[null,"Total Income Tax, Class 2 and Class 4 NIC due",null,null,null,null,null,null,null,null,null,{"$f":"A23","v":"c12.16"},{"$f":"M79-M88","v":0},"This box can be negative"]
[]
[]
[null,null,null,null,null,null,null,null,null,{"$f":"\"from \"&'CG (c18)'!AA177","v":"from c18.58"}]
[null,"Capital gains tax",null,null,null,null,null,null,{"$f":"A24","v":"c12.17"},{"$f":"'CG (c18)'!AB177","v":0}]
[]
[null,null,null,null,null,null,null,null,null,{"$f":"L91&\" + \"&I95","v":"c12.16 + c12.17"}]
[null,"Total Income Tax, Class 2 and Class 4 NIC due, before Capital Gains tax overpaid",null,null,null,null,null,null,{"$f":"A25","v":"c12.17a"},{"$f":"M91+J95","v":0},"This box can be negative"]
[]
[null,null,null,null,null,null,null,null,null,null,null,null,{"$f":"\"from \"&'CG (c18)'!AA187","v":"from c18.61"}]
[null,"Capital Gains Tax overpaid reducing tax and NICs",null,null,null,null,null,null,null,null,null,{"$f":"A26","v":"c12.17b"},{"$f":"'CG (c18)'!AB187","v":0}]
[]
[null,null,null,null,null,null,null,null,null,null,null,null,{"$f":"L91&\" minus \"&L101","v":"c12.16 minus c12.17b"}]
[null,"Total Income Tax, Class 2 and Class 4 NIC due, after Capital Gains tax overpaid",null,null,null,null,null,null,null,null,null,{"$f":"A27","v":"c12.17c"},{"$f":"M91-M101","v":0},"This box can be negative"]
[]
[null,null,null,null,null,null,null,null,null,null,null,null,{"$f":"I95&\" + \"&L104","v":"c12.17 + c12.17c"}]
[null,"Total Tax and NIC due",null,null,null,null,null,null,null,null,"total_tax_NIC_nonres",{"$f":"A28","v":"c12.18"},{"$f":"J95+M104","v":0},"This box can be negative"]
[]
[]
[]
[null,{"$f":"\"The following 3 boxes are only used on the SA302 (\"&I119&\" is used in the calculation at Payments on Account \"&'POAs (c13)'!H39&\")\"","v":"The following 3 boxes are only used on the SA302 (c12.21 is used in the calculation at Payments on Account c13.10)"}]
[null,null,null,null,null,null,null,null,null,{"$f":"\"from \"&FIN&'REL(2)'!C52","v":"from FIN1"}]
[null,"Tax already refunded in the year",null,null,null,null,null,null,{"$f":"A29","v":"c12.19"},{"$f":"'REL(2)'!D53","v":0},"Only used for display"]
[]
[null,null,null,null,null,null,null,null,null,{"$f":"\"from \"&CAL&CAL!C22","v":"from CAL14"}]
[null,"Tax due for earlier years",null,null,null,null,null,null,{"$f":"A30","v":"c12.20"},{"$f":"CAL!D23","v":0},"Only used for display"]
[]
[null,null,null,null,null,null,null,null,null,{"$f":"L107&\" + \"&I113&\" + \"&I116","v":"c12.18 + c12.19 + c12.20"}]
[null,null,null,null,null,null,null,"Total Due",{"$f":"A31","v":"c12.21"},{"$f":"box_18_3+J113+J116","v":0},"This box can be negative",null,"Only used for display"]

{"sheet":"POAs (c13)","index":70,"n_rows":75,"n_cols":10,"rows_kept":75,"cut":false,"hidden":true,"merged":[]}
["c13.1"]
["c13.2",null,null,null,null,null,null,null,{"$f":"\"from \"&CAL&CAL!G22","v":"from CAL15"}]
["c13.3","Decrease in tax due because",null,null,null,null,null,{"$f":"A1","v":"c13.1"},{"$f":"CAL!H23","v":0}]
["c13.4","of adjustments to an earlier year"]
["c13.5",null,null,null,null,null,null,null,{"$f":"\"from \"&CAL&CAL!G25","v":"from CAL16"}]
["c13.6",{"$f":"\"Any \"&next_year&\" repayment you are\"","v":"Any 2026-27 repayment you are"},null,null,null,null,null,{"$f":"A2","v":"c13.2"},{"$f":"CAL!H26","v":0}]
["c13.7","claiming now"]
["c13.8"]
["c13.9",null,null,null,null,null,"‘Payments you have made towards ",{"$f":"A3","v":"c13.3"}]
["c13.10",null,null,null,null,null,"your payments on account’"]
["c13.11"]
["c13.12",null,null,null,null,null,"‘Payments you have made towards ",{"$f":"A4","v":"c13.4"}]
["c13.13",null,null,null,null,null,"your balancing payment’ "]
["c13.14","Total due"]
["c13.15","Before Last Date for Coding?"]
["c13.16",null,{"$f":"\"If (Today’s date equal to or before 30 December \"&Tax_year_end&\") and (Employment = ‘Y’ or box \"&INC&'INC(2)'!C13&\" > 0) and (box FIN2 not ticked)\"","v":"If (Today’s date equal to or before 30 December 2026) and (Employment = ‘Y’ or box INC11 > 0) and (box FIN2 not ticked)"}]
["c13.17"]
[null,null,null,null,null,null,null,null,{"$f":"'Tax due (c12)'!I119&\" minus \"&H9","v":"c12.21 minus c13.3"}]
["PAYE_case","minus payments made towards POA",null,null,null,null,null,{"$f":"A5","v":"c13.5"},{"$f":"'Tax due (c12)'!J119-I9","v":0},"This box can be negative"]
[{"$f":"('INC(2)'!D14+EMP!D5+EMP!L5+EMP!D8+EMP!L8+MOR!D20)>0","v":false},null,{"$f":"\"else \"&H19&\" = 0 (zero)\"","v":"else c13.5 = 0 (zero)"}]
["before_30_Sep",null,"end if"]
[false]
[null,"Class 2 cannot be coded out",null,null,null,null,null,null,{"$f":"\"from \"&'Tax due (c12)'!I47","v":"from c12.3"}]
[null,"Class 2",null,null,null,null,null,{"$f":"A6","v":"c13.6"},{"$f":"'Tax due (c12)'!J47","v":0}]
[]
[null,null,null,null,null,null,null,null,{"$f":"H19&\" minus \"&H24","v":"c13.5 minus c13.6"}]
[null,"Amount that can be coded out",null,null,null,null,null,{"$f":"A7","v":"c13.7"},{"$f":"I19-I24","v":0},"This box can be negative"]
[]
[null,"Tax due is less than coded out limit"]
[null,"FIN2 not ticked",null,{"$f":"\"If box \"&H27&\" is positive and is less than \"&DOLLAR(coded_out_limit,0)&\" and you want this included in your \"&next_year&\" tax code, copy the\"","v":"If box c13.7 is positive and is less than £3,000 and you want this included in your 2026-27 tax code, copy the"}]
[null,null,null,{"$f":"\"figure in box \"&H27&\" to box \"&H32","v":"figure in box c13.7 to box c13.8"}]
[null,null,null,"else",null,null,null,{"$f":"A8","v":"c13.8"},{"$f":"IF(AND(PAYE_case,to_be_coded,before_30_sep,'POAs (c13)'!I19<coded_out_limit),'POAs (c13)'!I27,0)","v":0}]
[null,null,null,{"$f":"\" leave box \"&H32&\" blank\"","v":" leave box c13.8 blank"}]
[null,null,null,"end if"]
[null,null,null,null,null,null,null,null,{"$f":"H3&\" + \"&H6&\" + \"&H9&\" + \"&H12&\" + \"&H32","v":"c13.1 + c13.2 + c13.3 + c13.4 + c13.8"}]
[null,"Adjustments, payments and coded-out",null,null,null,null,null,{"$f":"A9","v":"c13.9"},{"$f":"I3+I6+I9+I12+I32","v":0}]
[]
[null,"Total due",null,null,null,null,null,null,{"$f":"'Tax due (c12)'!I119&\" minus \"&H36","v":"c12.21 minus c13.9"}]
[null,"minus adjustments, payments and coded-out",null,null,null,null,null,{"$f":"A10","v":"c13.10"},{"$f":"'Tax due (c12)'!J119-I36","v":0},"This box can be negative"]
[]
[null,"Total Income Tax and NIC due minus",null,null,null,null,null,null,{"$f":"'Tax due (c12)'!L91&\" minus (\"&'Tax due (c12)'!I47&\" + \"&'Tax due (c12)'!I61&\" + \"&'Tax due (c12)'!I64&\" + \"&'POAs (c13)'!H32&\" + \"&'Tax adj (c9)'!I183&\")\"","v":"c12.16 minus (c12.3 + c12.7 + c12.7b + c13.8 + c9.39h)"}]
[null,"(Class 2, Repayment of student loans +  Repayment of postgraduate loans + amount coded",null,null,null,null,null,{"$f":"A11","v":"c13.11"},{"$f":"'Tax due (c12)'!M91-('Tax due (c12)'!J47+'Tax due (c12)'!J61+'Tax due (c12)'!J64+I32+'Tax adj (c9)'!J183)","v":0},"This box can be negative"]
[]
[null,null,null,null,{"$f":"\"if box \"&H42&\" is < POA_limit (\"&DOLLAR(POA_limit,0)&\")\"","v":"if box c13.11 is < POA_limit (£1,000)"}]
[null,null,null,null,{"$f":"\"set boxes \"&H48&\" to \"&H71&\" to 0 (zero)\"","v":"set boxes c13.12 to c13.16 to 0 (zero)"}]
[null,null,null,null,"else"]
[null,"Notional tax on Gains, charges, state pension,",null,null,null,null,null,null,{"$f":"\"(\"&'Tax due (c12)'!L32&\" + \"&'Tax due (c12)'!I39&\" + \"&'Tax due (c12)'!I70&\") minus \"&'Tax adj (c9)'!I183","v":"(c12.1e + c12.2 + c12.9) minus c9.39h"}]
[null,"remittance basis charge minus POA adjustment",null,null,null,null,null,{"$f":"A12","v":"c13.12"},{"$f":"IF(I42<POA_limit,0,('Tax due (c12)'!M32+'Tax due (c12)'!J39+'Tax due (c12)'!J70)-'Tax adj (c9)'!J183)","v":0}]
[]
[null,null,null,null,null,null,null,null,{"$f":"H48&\" × 20%\"","v":"c13.12 × 20%"}]
[null,null,null,null,null,null,null,{"$f":"A13","v":"c13.13"},{"$f":"IF(I42<POA_limit,0,I48*20%)","v":0}]
[]
[null,null,null,null,null,null,null,null,{"$f":"\"if box \"&CAL&CAL!C14&\" ticked \"","v":"if box CAL10 ticked "}]
[null,"Claim to reduce payments on account",null,null,null,null,null,null,{"$f":"H58&\" = box \"&CAL&CAL!G14","v":"c13.14 = box CAL11"}]
[null,null,null,null,null,null,null,null,"else"]
[null,null,null,null,null,null,null,null,{"$f":"H58&\" = 0 (zero)\"","v":"c13.14 = 0 (zero)"}]
[null,null,null,null,null,null,null,null,"end if"]
[null,null,null,null,null,null,null,{"$f":"A14","v":"c13.14"},{"$f":"IF(I42<POA_limit,0,IF(claim_to_reduce,CAL!H15,0))","v":0}]
[]
[null,null,null,null,null,null,null,null,{"$f":"H42&\" x 50%\"","v":"c13.11 x 50%"}]
[null,null,null,null,null,null,null,{"$f":"A15","v":"c13.15"},{"$f":"IF(I42<POA_limit,0,TRUNC(I42*50%,2))","v":0}]
[]
[null,null,null,null,{"$f":"\"if box \"&H51&\" minus \"&H42&\" = 0\"","v":"if box c13.13 minus c13.11 = 0"}]
[null,null,null,null,{"$f":"H71&\" = 0\"","v":"c13.16 = 0"}]
[null,null,null,null,"else"]
[null,null,null,null,null,null,null,null,{"$f":"\"if box \"&CAL&CAL!C14&\" ticked \"","v":"if box CAL10 ticked "}]
[null,null,null,null,null,null,null,null,{"$f":"H71&\" = lower of \"&H58&\" and \"&H61","v":"c13.16 = lower of c13.14 and c13.15"}]
[null,null,null,null,null,null,null,null,"else"]
[null,null,null,null,null,null,null,null,{"$f":"H71&\" = \"&H61","v":"c13.16 = c13.15"}]
[null,null,null,null,null,null,null,null,"end if"]
[null,{"$f":"\"Each POA for \"&next_year","v":"Each POA for 2026-27"},null,null,null,null,null,{"$f":"A16","v":"c13.16"},{"$f":"IF(I42<POA_limit,0,IF(I51>I42,0,IF(claim_to_reduce,MIN(I58,I61),I61)))","v":0}]
[null,null,null,null,"end if"]
[null,null,null,null,"end if"]
[null,{"$f":"\"Total Amount Payable on 31 January \"&BCD_year","v":"Total Amount Payable on 31 January 2027"},null,null,null,null,null,null,{"$f":"H39&\" + \"&H71","v":"c13.10 + c13.16"}]
[null,null,null,null,null,null,null,{"$f":"A17","v":"c13.17"},{"$f":"I39+I71","v":0},"This box can be negative"]

{"sheet":"allowances (c14c15)","index":71,"n_rows":165,"n_cols":16,"rows_kept":165,"cut":false,"hidden":true,"merged":[]}
["c14.1",{"$f":"\"Calculate personal allowance due if your income is \"&DOLLAR(PA_taper_limit,0)&\" or more\"","v":"Calculate personal allowance due if your income is £100,000 or more"}]
["c14.2",null,null,null,null,null,"If any box in this stage is negative substitute zero"]
["c14.3"]
["c14.4",null,null,null,null,null,null,null,null,null,null,{"$f":"\"from \"&'Deductions (c4)'!H401","v":"from c4.63"}]
["c14.5",null,"Adjusted Net Income for Allowances",null,null,null,null,null,null,null,{"$f":"A1","v":"c14.1"},{"$f":"TRUNC(MAX(0,'Deductions (c4)'!I401),0)","v":0}]
["c14.6"]
[null,null,null,null,null,null,null,null,null,null,null,{"$f":"\"PA_taper_limit (\"&DOLLAR(PA_taper_limit,0)&\")\"","v":"PA_taper_limit (£100,000)"}]
[null,null,"Income Limit for Personal Allowance",null,null,null,null,null,null,null,{"$f":"A2","v":"c14.2"},{"$f":"PA_taper_limit","v":100000}]
[]
[null,null,null,null,null,null,null,null,null,null,null,{"$f":"K5&\" minus \"&K8","v":"c14.1 minus c14.2"}]
[null,null,null,null,null,null,null,null,null,null,{"$f":"A3","v":"c14.3"},{"$f":"MAX(0,L5-L8)","v":0}]
[]
[null,null,"Personal Allowance",null,null,null,null,null,null,null,null,{"$f":"\"P_A (\"&DOLLAR(P_A,0)&\")\"","v":"P_A (£12,570)"}]
[null,null,null,null,null,null,null,null,null,null,{"$f":"A4","v":"c14.4"},{"$f":"P_A","v":12570}]
[null,null,null,null,null,null,null,null,null,null,null,{"$f":"\"copy to \"&E58","v":"copy to c15.6"}]
[]
[null,null,null,null,null,null,null,null,null,null,null,{"$f":"K11&\" × AA_excess (\"&AA_excess * 100&\"%)\"","v":"c14.3 × AA_excess (50%)"}]
[null,null,null,null,null,null,null,null,null,null,{"$f":"A5","v":"c14.5"},{"$f":"TRUNC(L11*AA_excess,0)","v":0},"£down"]
[]
[null,null,"Not part of SA tax calculation requirements - for in year repayments only"]
[null,null,null,null,null,null,null,null,null,null,null,"in year repayment PA amount"]
[null,null,null,null,null,null,null,null,null,null,null,{"$f":"IF(in_year_rept,'Add pages'!I36,0)","v":0}]
[]
[]
[null,null,null,null,null,null,null,null,null,null,null,{"$f":"K14&\" minus \"&K18","v":"c14.4 minus c14.5"}]
[null,null,"Personal Allowance/Reduced Personal Allowance",null,null,null,null,null,null,null,{"$f":"A6","v":"c14.6"},{"$f":"IF(in_year_rept,MIN(L22,MAX(0,L14-L18)),MAX(0,L14-L18))","v":12570}]
[null,null,null,null,null,null,null,null,null,null,null,{"$f":"\"copy to box \"&'Deductions (c4)'!H435&\" and \"&E61","v":"copy to box c4.64 and c15.7"}]
[]
[]
[null,null,null,null,null,null,null,"If any box in this stage is negative substitute zero"]
[]
["c15.1",null,{"$f":"\"Calculate age related Married Couple’s Allowance due claimed by husband, spouse or civil partner with higher income (box MCA\"&MCA!C4&\" present)\"","v":"Calculate age related Married Couple’s Allowance due claimed by husband, spouse or civil partner with higher income (box MCA1 present)"},null,null,null,null,null,null,null,null,null,null,{"$f":"\"Only complete these boxes if either you or your wife (or a former wife you were married to in \"&tax_year&\" were born before 6 April \"&MCA_year","v":"Only complete these boxes if either you or your wife (or a former wife you were married to in 2025-26 were born before 6 April 1935"}]
["c15.2",null,null,null,null,null,null,null,null,null,null,null,null,"Calculate Age related Married Couple's Allowance Due (claimed by husband (marriages up to 5 December 2005), "]
["c15.3",null,{"$f":"\"If MCA\"&MCA!C4&\" present then\"","v":"If MCA1 present then"},null,null,null,null,null,null,null,null,null,null,"or spouse or civil partner with higher income (marriages on or after 5 December 2005))"]
["c15.4",null,{"$f":"\"DOB for Married Couple’s Allowance = earliest date from box \"&YPD&'INC(1)'!C4&\" or box MCA\"&MCA!C8&\" or box MCA\"&MCA!C9","v":"DOB for Married Couple’s Allowance = earliest date from box YPD1 or box MCA2 or box MCA5"}]
["c15.5",null,null,null,null,null,null,null,null,null,null,null,null,{"$f":"\"Enter the maximum Married Couples Allowance from \"&N37","v":"Enter the maximum Married Couples Allowance from Table 1"}]
["c15.6",null,null,null,null,null,null,null,null,null,null,{"$f":"\"If DOB for Married Couple's Allowance is Null or after 5 April \"&MCA_year","v":"If DOB for Married Couple's Allowance is Null or after 5 April 1935"},null,"Table 1"]
["c15.7",null,null,null,null,null,null,null,null,null,null,{"$f":"K43&\" = 0 (zero)\"","v":"c15.1 = 0 (zero)"},null,"Date of Birth","Maximum"]
["c15.8",null,null,null,null,null,null,null,null,null,null,"else",null,"of the elder","Married"]
["c15.9",null,null,null,null,null,null,null,null,null,null,{"$f":"\"(DOB for Married Couple's Allowance is before 6 April \"&MCA_year&\")\"","v":"(DOB for Married Couple's Allowance is before 6 April 1935)"},null,"of you, your wife","Couple's"]
["c15.10",null,null,null,null,null,null,null,null,null,null,{"$f":"K43&\" = H_MCA (\"&DOLLAR(H_MCA,0)&\")\"","v":"c15.1 = H_MCA (£11,270)"},null,"or former wife","Allowance"]
["c15.11",null,null,null,null,null,null,null,null,null,null,"end if"]
["c15.12",null,"Married Couple's Allowance",null,null,null,null,null,null,null,{"$f":"A32","v":"c15.1"},{"$f":"IF(Older_spouse=1,H_MCA,0)","v":0},null,{"$f":"\"After 5 April \"&MCA_year","v":"After 5 April 1935"},0]
["c15.13"]
["c15.14",null,null,null,null,null,null,null,{"$f":"\"from \"&'Deductions (c4)'!H401","v":"from c4.63"},null,null,null,null,{"$f":"\"Before 6 April \"&MCA_year","v":"Before 6 April 1935"},{"$f":"H_MCA","v":11270}]
["c15.15",null,"Adjusted Net Income",null,null,null,null,{"$f":"A33","v":"c15.2"},{"$f":"'Deductions (c4)'!I401","v":0},null,null,null,null,null,null,"Used in SA110 Notes"]
["c15.16"]
["c15.17",null,null,null,null,null,null,null,{"$f":"\"AA_limit (\"&DOLLAR(AA_limit,0)&\")\"","v":"AA_limit (£37,700)"}]
["c15.18",null,"Income limit for age related allowances",null,null,null,null,{"$f":"A34","v":"c15.3"},{"$f":"AA_limit","v":37700}]
["c15.19"]
["c15.20",null,null,null,null,null,null,null,{"$f":"H46&\" minus \"&H49","v":"c15.2 minus c15.3"}]
["c15.21",null,null,null,null,null,null,{"$f":"A35","v":"c15.4"},{"$f":"MAX(0,I46-I49)","v":0}]
[]
[null,null,null,null,null,null,null,null,{"$f":"H52&\" × AA_excess (\"&AA_excess * 100&\"%)\"","v":"c15.4 × AA_excess (50%)"}]
[null,null,null,null,null,null,null,{"$f":"A36","v":"c15.5"},{"$f":"TRUNC(I52*AA_excess,0)","v":0},"£down"]
[]
[null,null,null,null,null,{"$f":"\"from \"&K14","v":"from c14.4"}]
[null,null,null,null,{"$f":"A37","v":"c15.6"},{"$f":"L14","v":12570}]
[]
[null,null,null,null,null,{"$f":"\"from \"&K26","v":"from c14.6"},null,null,{"$f":"E58&\" minus \"&E61","v":"c15.6 minus c15.7"}]
[null,null,null,null,{"$f":"A38","v":"c15.7"},{"$f":"L26","v":12570},null,{"$f":"A39","v":"c15.8"},{"$f":"MAX(0,F58-F61)","v":0}]
[]
[null,null,null,null,null,null,null,null,null,null,null,{"$f":"H55&\" minus \"&H61","v":"c15.5 minus c15.8"}]
[null,null,null,null,null,null,null,null,null,null,{"$f":"A40","v":"c15.9"},{"$f":"MAX(0,I55-I61)","v":0}]
[]
[null,null,null,null,null,null,null,null,null,null,null,{"$f":"K43&\" minus \"&K64","v":"c15.1 minus c15.9"}]
[null,null,null,null,null,null,null,null,null,null,{"$f":"A41","v":"c15.10"},{"$f":"MAX(0,L43-L64)","v":0}]
[]
[null,null,null,null,null,null,null,null,null,null,null,{"$f":"\"If \"&K43&\" is greater than 0 (zero)\"","v":"If c15.1 is greater than 0 (zero)"}]
[null,null,null,null,null,null,null,null,null,null,null,{"$f":"K74&\" = Higher of \"&K67&\" and MCA (\"&DOLLAR(MCA,0)&\")\"","v":"c15.11 = Higher of c15.10 and MCA (£4,360)"}]
[null,null,null,null,null,null,null,null,null,null,null,"else"]
[null,null,null,null,null,null,null,null,null,null,null,{"$f":"K74&\" = 0 (zero)\"","v":"c15.11 = 0 (zero)"}]
[null,null,null,null,null,null,null,null,null,null,null,"end if"]
[null,null,null,null,null,null,null,null,null,null,{"$f":"A42","v":"c15.11"},{"$f":"IF(L43>0,MAX(MCA,L67),0)","v":0},null,{"$f":"\"copy to box \"&'Tax adj (c9)'!I51&\" unless you were married this year (see note)\"","v":"copy to box c9.16 unless you were married this year (see note)"}]
[null,null,null,null,null,null,null,null,null,null,null,null,null," or unless your spouse is getting half or all of the allowance, see notes"]
[null,null,null,null,null,null,null,null,null,null,null,null,null,null,null,"Used in SA110 Notes"]
[]
[]
[null,null,"Calculate Age related Married Couple's Allowance Due (claimed by wife (marriages up to 5 December 2005),"]
[null,null,"or the spouse or civil partner with the lower income)"]
[]
[null,null,"Calculate reduction for marriage in year",null,null,null,null,null,{"$f":"\"If MCA\"&MCA!C16&\" present\"","v":"If MCA9 present"}]
[null,null,null,null,null,null,null,null,{"$f":"H87&\" = Select month from \"&C103","v":"c15.12 = Select month from Table A"}]
[null,null,null,null,null,null,null,null,"else"]
[null,null,null,null,null,null,null,null,{"$f":"H87&\" = 0 (zero)\"","v":"c15.12 = 0 (zero)"}]
[null,null,null,null,null,null,null,null,"end if"]
[null,null,null,null,null,null,{"$f":"\"Select month from \"&C103","v":"Select month from Table A"},{"$f":"A43","v":"c15.12"},{"$f":"months_not_married","v":0}]
[]
[null,null,null,null,null,null,null,null,{"$f":"K74&\" × \"&H87","v":"c15.11 × c15.12"}]
[null,null,null,null,null,null,null,{"$f":"A44","v":"c15.13"},{"$f":"L74*I87","v":0}]
[]
[null,null,null,null,null,null,null,null,null,null,null,{"$f":"H90&\" divided by 12\"","v":"c15.13 divided by 12"}]
[null,null,null,null,null,null,null,null,null,null,{"$f":"A45","v":"c15.14"},{"$f":"TRUNC(I90/12,0)","v":0},"£down"]
[]
[null,null,null,null,null,null,null,null,null,null,null,{"$f":"K74&\" minus \"&K93","v":"c15.11 minus c15.14"}]
[null,null,null,null,null,null,null,null,null,null,{"$f":"A46","v":"c15.15"},{"$f":"MAX(0,L74-L93)","v":0},null,{"$f":"\"copy to box \"&'Tax adj (c9)'!I51&\" unless your spouse is getting half or all of the allowance\"","v":"copy to box c9.16 unless your spouse is getting half or all of the allowance"}]
[]
[null,null,null,null,null,null,null,null,null,null,null,null,null,null,null,"Used in SA110 Notes"]
[null,null,"else"]
[null,null,{"$f":"K43&\" to \"&K96&\" = 0 (zero)\"","v":"c15.1 to c15.15 = 0 (zero)"}]
[null,null,"end if"]
[]
[null,null,"Table A"]
[null,null,"Date of Marriage between:","Month"]
[null,null,{"$f":"\"Before 6 May \"&Tax_year_start&\" (or no date entered)\"","v":"Before 6 May 2025 (or no date entered)"},0]
[null,null,{"$f":"\"6 May \"&Tax_year_start&\" to 5 June \"&Tax_year_start","v":"6 May 2025 to 5 June 2025"},1]
[null,null,{"$f":"\"6 June \"&Tax_year_start&\" to 5 July \"&Tax_year_start","v":"6 June 2025 to 5 July 2025"},2]
[null,null,{"$f":"\"6 July \"&Tax_year_start&\" to 5 August \"&Tax_year_start","v":"6 July 2025 to 5 August 2025"},3]
[null,null,{"$f":"\"6 August \"&Tax_year_start&\" to 5 September \"&Tax_year_start","v":"6 August 2025 to 5 September 2025"},4]
[null,null,{"$f":"\"6 September \"&Tax_year_start&\" to 5 October \"&Tax_year_start","v":"6 September 2025 to 5 October 2025"},5]
[null,null,{"$f":"\"6 October \"&Tax_year_start&\" to 5 November \"&Tax_year_start","v":"6 October 2025 to 5 November 2025"},6]
[null,null,{"$f":"\"6 November \"&Tax_year_start&\" to 5 December \"&Tax_year_start","v":"6 November 2025 to 5 December 2025"},7]
[null,null,{"$f":"\"6 December \"&Tax_year_start&\" to 5 January \"&Tax_year_end","v":"6 December 2025 to 5 January 2026"},8]
[null,null,{"$f":"\"6 January \"&Tax_year_end&\" to 5 February \"&Tax_year_end","v":"6 January 2026 to 5 February 2026"},9]
[null,null,{"$f":"\"6 February \"&Tax_year_end&\" to 5 March \"&Tax_year_end","v":"6 February 2026 to 5 March 2026"},10]
[null,null,{"$f":"\"6 March \"&Tax_year_end&\" to 5 April \"&Tax_year_end","v":"6 March 2026 to 5 April 2026"},11]
[null,null,{"$f":"\"6 April \"&Tax_year_end&\" and later\"","v":"6 April 2026 and later"},12]
[]
[]
[null,null,"Calculate Age related Married Couple's Allowance Due (claimed by wife or the spouse or civil partner with the lower income)"]
[null,null,{"$f":"\"This can be either claimed by wife or lower income spouse / civil partner (boxes \"&N128&\", or \"&N130&\") or allocated to wife or lower income spouse / civil partner by husband or higher income spouse / civil partner \"","v":"This can be either claimed by wife or lower income spouse / civil partner (boxes box MCA6 = Y, or box MCA7 = Y) or allocated to wife or lower income spouse / civil partner by husband or higher income spouse / civil partner "}]
[null,null,{"$f":"\"(box \"&N127&\", or box \"&N129&\").\"","v":"(box box MCA3 = Y, or box box MCA4 = Y)."}]
[]
[null,null,"If (MCA3 or MCA4 or MCA6 or MCA7) = Y, then"]
[]
[null,null,null,null,null,null,null,null,{"$f":"\"if \"&N127&\" or \"&N128","v":"if box MCA3 = Y or box MCA6 = Y"},null,null,null,null,"Table B"]
[null,null,null,null,null,null,null,null,{"$f":"H131&\" = MCA_2 (\"&DOLLAR(MCA_2,0)&\")\"","v":"c15.16 = MCA_2 (£2,180)"},null,null,null,null,"box MCA3 = Y",{"$f":"MCA_2","v":2180}]
[null,null,null,null,null,null,null,null,"else",null,null,null,null,"box MCA6 = Y",{"$f":"MCA_2","v":2180}]
[null,null,null,null,null,null,null,null,{"$f":"H131&\" = MCA (\"&DOLLAR(MCA,0)&\")\"","v":"c15.16 = MCA (£4,360)"},null,null,null,null,"box MCA4 = Y",{"$f":"MCA","v":4360}]
[null,null,null,null,null,null,null,null,"end if",null,null,null,null,"box MCA7 = Y",{"$f":"MCA","v":4360}]
[null,null,null,null,null,null,{"$f":"\"Select amount from \"&N126","v":"Select amount from Table B"},{"$f":"A47","v":"c15.16"},{"$f":"IF(MCA_to_wife,MCA,IF(MCA_split,MCA_2,0))","v":0},null,null,null,null,"None of above","zero"]
[]
[null,null,"Calculate reduction for marriage in year"]
[null,null,null,null,null,null,null,null,{"$f":"\"if MCA\"&MCA!C16&\" present\"","v":"if MCA9 present"}]
[null,null,null,null,null,null,null,null,{"$f":"H139&\" = Select month from table A\"","v":"c15.17 = Select month from table A"}]
[null,null,null,null,null,null,null,null,"else"]
[null,null,null,null,null,null,null,null,{"$f":"H139&\" = 0 (zero)\"","v":"c15.17 = 0 (zero)"}]
[null,null,null,null,null,null,null,null,"end if"]
[null,null,null,null,null,null,{"$f":"\"Select month from \"&C103","v":"Select month from Table A"},{"$f":"A48","v":"c15.17"},{"$f":"months_not_married","v":0}]
[]
[null,null,null,null,null,null,null,null,{"$f":"H131&\" × \"&H139","v":"c15.16 × c15.17"}]
[null,null,null,null,null,null,null,{"$f":"A49","v":"c15.18"},{"$f":"I131*I139","v":0}]
[]
[null,null,null,null,null,null,null,null,null,null,null,{"$f":"H142&\" divided by 12\"","v":"c15.18 divided by 12"}]
[null,null,null,null,null,null,null,null,null,null,{"$f":"A50","v":"c15.19"},{"$f":"TRUNC((I142/12)+0.99,0)","v":0},"£up"]
[]
[null,null,null,null,null,null,null,null,null,null,null,{"$f":"H131&\" minus \"&K145","v":"c15.16 minus c15.19"}]
[null,null,null,null,null,null,null,null,null,null,{"$f":"A51","v":"c15.20"},{"$f":"MAX(0,I131-L145)","v":0}]
[null,null,null,null,null,null,null,null,null,null,null,{"$f":"\"If MCA\"&MCA!C5&\" is present then copy \"&K148&\" to box \"&'Tax adj (c9)'!I51","v":"If MCA8 is present then copy c15.20 to box c9.16"}]
[null,null,"else"]
[null,null,{"$f":"H131&\" to \"&K148&\" = 0 (zero)\"","v":"c15.16 to c15.20 = 0 (zero)"}]
[null,null,"end if"]
[]
[]
[null,null,null,null,null,null,null,null,null,null,null,{"$f":"\"If box MCA\"&MCA!C4&\" is present\"","v":"If box MCA1 is present"}]
[null,null,null,null,null,null,null,null,null,null,null,{"$f":"K164&\" = \"&K96&\" minus \"&K148","v":"c15.21 = c15.15 minus c15.20"}]
[null,null,null,null,null,null,null,null,null,null,null,"else"]
[null,null,null,null,null,null,null,null,null,null,null,{"$f":"\"If box MCA\"&MCA!C5&\" is present\"","v":"If box MCA8 is present"}]
[null,null,null,null,null,null,null,null,null,null,null,{"$f":"K164&\" = \"&K148","v":"c15.21 = c15.20"}]
[null,null,null,null,null,null,null,null,null,null,null,"else"]
[null,null,null,null,null,null,null,null,null,null,null,{"$f":"K164&\" = 0 (zero)\"","v":"c15.21 = 0 (zero)"}]
[null,null,null,null,null,null,null,null,null,null,null,"end if"]
[null,null,null,null,null,null,null,null,null,null,null,"end if"]
[null,null,"Married Couples Allowance",null,null,null,null,null,null,null,{"$f":"A52","v":"c15.21"},{"$f":"IF(man_mca_claim,MAX(0,L96-L148),IF(wife_mca_claim,L148,0))","v":0}]
[null,null,null,null,null,null,null,null,null,null,null,{"$f":"\"If MCA\"&MCA!C4&\" is present then copy \"&K164&\" to box \"&'Tax adj (c9)'!I51","v":"If MCA1 is present then copy c15.21 to box c9.16"}]

{"sheet":"Class 4 NIC (c16)","index":72,"n_rows":202,"n_cols":14,"rows_kept":202,"cut":false,"hidden":true,"merged":[]}
["c16.1","Calculate Class 4 NIC due"]
["c16.2"]
["c16.3",null,"If any box in this stage is negative substitute zero, unless otherwise stated"]
["c16.4"]
["c16.5",null,"Commercial Software Developers only:"]
["c16.5.1",null,"For Class 2 you may find it more efficient to centralise and have one box rather than"]
["c16.6",null,"have multiple pseudo boxes for each self-employed, partnership and Lloyds page."]
["c16.7"]
["c16.8",null,"The Class 1 can also be centralised rather than have, for example, the pseudo boxes"]
["c16.9",null,"on the employment and minister of religion pages etc."]
["c16.10"]
["c16.11",null,"Where the Class 1 figure is supplied for pre-population it is one figure of “Total class 1"]
["c16.12",null,"NICable earnings between the PT and UEL”. The xml can feed into one or both of the"]
["c16.13",null,"pseudo boxes on the Employment page. "]
["c16.14"]
["c16.15"]
["c16.16"]
["c16.17"]
["c16.18"]
["c16.19"]
["c16.20"]
["c16.21",null,"Class 4 NIC exempt",null,"IF NIC Exception",null,{"$f":"\"[Class 4 NIC exempt] (\"&LUN&LUN!K16&\" = Y) or any instances of boxes (\"&SSE&SE!C17&\" = Y) or (\"&FSE&SE!G32&\" = Y) or (\"&SPS&PS!C16&\" = Y) or (\"&FPS&PS!J14&\" = Y)\"","v":"[Class 4 NIC exempt] (LUN64 = Y) or any instances of boxes (SSE37 = Y) or (FSE101 = Y) or (SPS26 = Y) or (FPS26 = Y)"}]
["c16.22"]
["c16.23",null,null,null,null,{"$f":"\"Calculate \"&J50&\" to \"&G88","v":"Calculate c16.1 to c16.12"}]
["c16.24",null,null,null,null,{"$f":"\"Set \"&G91&\" to \"&J166&\" to 0 (zero)\"","v":"Set c16.13 to c16.31 to 0 (zero)"}]
["c16.25",null,null,null,"Else"]
["c16.26",null,null,null,null,{"$f":"\"Calculate \"&J50&\" to \"&A20","v":"Calculate c16.1 to c16.19"}]
["c16.27"]
["c16.28"]
["c16.29"]
["c16.30"]
["c16.31"]
["c16.32"]
["c16.33"]
[]
[]
[null,null,null,null,null,{"$f":"\"If \"&G91&\" = 0 (zero)\"","v":"If c16.13 = 0 (zero)"}]
[null,null,null,null,null,{"$f":"\"Set \"&J110&\" to \"&J158&\" to 0 (zero)\"","v":"Set c16.20 to c16.30 to 0 (zero)"}]
[null,null,null,null,null,{"$f":"\"Set \"&J166&\" = \"&J103","v":"Set c16.31 = c16.19"}]
[null,null,null,null,null,"Else"]
[null,null,null,null,null,{"$f":"\"Calculate \"&J110","v":"Calculate c16.20"}]
[null,null,null,null,null,{"$f":"\"If \"&J110&\" = 0 (zero)\"","v":"If c16.20 = 0 (zero)"}]
[null,null,null,null,null,{"$f":"\"Set \"&J113&\" to \"&J158&\" to 0 (zero)\"","v":"Set c16.21 to c16.30 to 0 (zero)"}]
[null,null,null,null,null,{"$f":"\"Set \"&J166&\" = \"&J103","v":"Set c16.31 = c16.19"}]
[null,null,null,null,null,"Else"]
[null,null,null,null,null,{"$f":"\"Calculate \"&J113&\" to \"&J158","v":"Calculate c16.21 to c16.30"}]
[null,null,null,null,null,{"$f":"\"Set \"&J166&\" to lower of \"&J103&\" and \"&J158","v":"Set c16.31 to lower of c16.19 and c16.30"}]
[]
[null,null,null,null,null,null,null,null,null,null,{"$f":"\"Total all instances (\"&SSE&SE!C8&\")\"","v":"Total all instances (SSE31)"}]
[null,null,null,null,null,null,null,"Self Employment Profits",null,{"$f":"A1","v":"c16.1"},{"$f":"TRUNC(SE!D9,0)","v":0},"£down (for each SSE)"]
[]
[null,null,null,null,null,null,null,null,null,null,{"$f":"\"Total all instances (\"&FSE&SE!G14&\")\"","v":"Total all instances (FSE76)"}]
[null,null,null,null,null,null,null,null,null,{"$f":"A2","v":"c16.2"},{"$f":"TRUNC(SE!H15,0)","v":0},"£down (for each FSE)"]
[]
[null,null,null,null,null,null,null,null,null,null,{"$f":"\"from \"&LUN&LUN!K7","v":"from LUN52"}]
[null,null,null,null,null,null,null,"Lloyd's Underwriter Profits",null,{"$f":"A3","v":"c16.3"},{"$f":"TRUNC(LUN!L8,0)","v":0},"£down"]
[]
[null,null,null,null,null,null,null,null,null,null,{"$f":"\"Total all instances (\"&SPS&PS!C7&\")\"","v":"Total all instances (SPS20)"}]
[null,null,null,null,null,null,null,"Partnership Profits",null,{"$f":"A4","v":"c16.4"},{"$f":"TRUNC(PS!D8,0)","v":0},"£down (for each SPS)"]
[]
[null,null,null,null,null,null,null,null,null,null,{"$f":"\"Total all instances (\"&FPS&PS!J7&\")\"","v":"Total all instances (FPS20)"}]
[null,null,null,null,null,null,null,null,null,{"$f":"A5","v":"c16.5"},{"$f":"TRUNC(PS!K8,0)","v":0},"£down (for each FPS)"]
[]
[null,null,null,null,null,null,null,null,null,null,{"$f":"'Deductions (c4)'!H343","v":"c4.54.1"}]
[null,null,null,null,null,null,null,"Total transition profit",null,{"$f":"A6","v":"c16.5.1"},{"$f":"'Deductions (c4)'!I343","v":0}]
[]
[null,null,null,null,null,null,null,null,null,null,null,null,null,{"$f":"J50&\" + \"&J53&\" + \"&J56&\" + \"&J59&\" + \"&J62&\" + \"&J65","v":"c16.1 + c16.2 + c16.3 + c16.4 + c16.5 + c16.5.1"}]
[null,null,null,null,null,null,null,"Total profits for Class 4 NIC",null,null,null,null,{"$f":"A7","v":"c16.6"},{"$f":"K50+K53+K56+K59+K62+K65","v":0}]
[]
[null,null,null,null,null,null,null,{"$f":"\"NIC Adjustments (use absolute value of Return boxes in boxes \"&J73&\" to \"&J82&\")\"","v":"NIC Adjustments (use absolute value of Return boxes in boxes c16.7 to c16.10)"}]
[]
[null,null,null,null,null,null,null,null,null,null,{"$f":"\"Total all instances absolute value (\"&FSE&SE!G35&\")\"","v":"Total all instances absolute value (FSE102)"}]
[null,null,null,null,null,null,null,null,null,{"$f":"A8","v":"c16.7"},{"$f":"TRUNC(ABS(SE!H36)+0.99,0)","v":0},"£up (for each FSE)"]
[]
[null,null,null,null,null,null,null,null,null,null,{"$f":"\" absolute value from \"&LUN&LUN!K19","v":" absolute value from LUN65"}]
[null,null,null,null,null,null,null,null,null,{"$f":"A9","v":"c16.8"},{"$f":"TRUNC(ABS(LUN!L20)+0.99,0)","v":0},"£up"]
[]
[null,null,null,null,null,null,null,null,null,null,{"$f":"\"Total all instances absolute value  (\"&SPS&PS!C19&\")\"","v":"Total all instances absolute value  (SPS27)"}]
[null,null,null,null,null,null,null,null,null,{"$f":"A10","v":"c16.9"},{"$f":"TRUNC(ABS(PS!D20)+0.99,0)","v":0},"£up (for each SPS)"]
[]
[null,null,null,null,null,null,null,null,null,null,{"$f":"\"Total all instances absolute value (\"&FPS&PS!M14&\")\"","v":"Total all instances absolute value (FPS27)"}]
[null,null,null,null,null,null,null,null,null,{"$f":"A11","v":"c16.10"},{"$f":"TRUNC(ABS(PS!N15)+0.99,0)","v":0},"£up (for each FPS)"]
[]
[null,null,null,null,null,null,null,{"$f":"J73&\" + \"&J76&\" + \"&J79&\" + \"&J82","v":"c16.7 + c16.8 + c16.9 + c16.10"}]
[null,"Class 4 NIC adjustments",null,null,null,null,{"$f":"A12","v":"c16.11"},{"$f":"K73+K76+K79+K82","v":0}]
[]
[null,"Total profit less adjustments",null,null,null,null,null,{"$f":"M68&\" minus \"&G85","v":"c16.6 minus c16.11"}]
[null,"Used for Class 4 and Class 2",null,null,null,null,{"$f":"A13","v":"c16.12"},{"$f":"MAX(N68-H85,0)","v":0}]
[]
[null,null,null,null,null,null,null,{"$f":"G88&\" minus NIC_LEL (\"&DOLLAR(NIC_LEL,0)&\")\"","v":"c16.12 minus NIC_LEL (£12,570)"}]
[null,"Profit on which Class 4 NIC is due",null,null,null,null,{"$f":"A14","v":"c16.13"},{"$f":"IF(NIC_exempt,0,MAX(H88-NIC_LEL,0))","v":0}]
[null,null,null,null,null,null,null,null,null,null,{"$f":"\"max_NIC (\"&DOLLAR(max_NIC,2)&\")\"","v":"max_NIC (£2,262.00)"}]
[null,{"$f":"\"Maximum Class 4 NIC chargeable × NIC_rate (\"&(NIC_rate*100)&\"%)\"","v":"Maximum Class 4 NIC chargeable × NIC_rate (6%)"},null,null,null,null,null,null,null,{"$f":"A15","v":"c16.14"},{"$f":"IF(NIC_exempt,0,max_NIC)","v":2262}]
[]
[null,null,null,null,null,null,null,null,null,null,{"$f":"\"lower of (\"&G97&\" × NIC_rate (\"&(NIC_rate*100)&\"%))\"","v":"lower of (c16.15 × NIC_rate (6%))"}]
[null,null,null,null,null,null,null,{"$f":"\"lower of \"&G91&\" and NIC_Band (\"&DOLLAR(NIC_Band,0)&\")\"","v":"lower of c16.13 and NIC_Band (£37,700)"},null,null,{"$f":"\"and max_NIC (\"&DOLLAR(max_NIC,2)&\")\"","v":"and max_NIC (£2,262.00)"}]
[null,null,null,null,null,null,{"$f":"A16","v":"c16.15"},{"$f":"IF(NIC_exempt,0,MIN(H91,NIC_Band))","v":0},null,{"$f":"A17","v":"c16.16"},{"$f":"IF(NIC_exempt,0,MIN(TRUNC(H97*NIC_rate,2),max_NIC))","v":0},"pdown"]
[]
[null,null,null,null,null,null,null,{"$f":"G91&\" minus \"&G97","v":"c16.13 minus c16.15"},null,null,{"$f":"G100&\" × NIC_supp_rate (\"&(NIC_supp_rate*100)&\"%)\"","v":"c16.17 × NIC_supp_rate (2%)"}]
[null,null,null,null,null,null,{"$f":"A18","v":"c16.17"},{"$f":"IF(NIC_exempt,0,MAX(0,H91-H97))","v":0},null,{"$f":"A19","v":"c16.18"},{"$f":"IF(NIC_exempt,0,TRUNC(H100*NIC_supp_rate,2))","v":0},"pdown"]
[]
[null,null,null,null,null,null,null,null,null,null,{"$f":"J97&\" + \"&J100","v":"c16.16 + c16.18"}]
[null,"Calculation of Class 4 without reference to Class 1",null,null,null,null,null,null,"Class 4 NIC due",{"$f":"A20","v":"c16.19"},{"$f":"IF(NIC_exempt,0,K97+K100)","v":0}]
[]
[null,"Reg 100 Calculation"]
[]
[]
[]
[null,null,null,null,null,null,null,null,null,null,{"$f":"\"Total all instances (\"&NI!C19&\") + (\"&NI!C26&\")\"","v":"Total all instances (EMPCL1) + (MORCL1)"}]
[null,"Total class 1 NICable earnings between the PT and UEL",null,null,null,null,null,null,null,{"$f":"A21","v":"c16.20"},{"$f":"IF(OR(H91=0,NIC_exempt),0,TRUNC(NI!D20+0.99,0)+TRUNC(NI!D27+0.99,0))","v":0},"£up (for each EMP + MOR)"]
[]
[null,null,null,null,null,null,null,null,null,null,{"$f":"J110&\" × NIC1_rate (\"&NIC1_rate*100&\"%)\"","v":"c16.20 × NIC1_rate (8%)"}]
[null,null,null,null,null,null,null,null,"Class 1 NICs due at standard rate",{"$f":"A22","v":"c16.21"},{"$f":"IF(OR(H91=0,K110=0,NIC_exempt),0,TRUNC((K110*NIC1_rate)+0.0099,2))","v":0},"pup"]
[]
[null,null,null,null,null,null,null,null,null,null,"Set to zero"]
[null,null,null,null,null,null,null,null,null,{"$f":"A23","v":"c16.22"},0]
[]
[null,null,null,null,null,null,null,null,null,null,{"$f":"J93","v":"c16.14"}]
[null,{"$f":"\"Total Max Class 4 NIC Charge x UPL rate \"","v":"Total Max Class 4 NIC Charge x UPL rate "},null,null,null,null,null,null,null,{"$f":"A24","v":"c16.23"},{"$f":"IF(OR(H91=0,K110=0,NIC_exempt),0,IF(K113=0,0,K93))","v":0}]
[]
[]
[]
[]
[]
[]
[]
[null,null,null,null,null,null,null,null,null,null,{"$f":"J119&\" minus \"&J113","v":"c16.23 minus c16.21"}]
[null,"Subtract Class 1",null,null,null,null,null,null,null,{"$f":"A25","v":"c16.24"},{"$f":"IF(OR(H91=0,K110=0,NIC_exempt),0,IF(K113=0,0,MAX(0,K119-K113)))","v":0}]
[]
[null,null,null,null,null,null,null,null,null,null,{"$f":"J128&\" divided by NIC_rate (\"&NIC_rate*100&\"%)\"","v":"c16.24 divided by NIC_rate (6%)"}]
[null,{"$f":"\"Divide the result of \"&J128&\" by UPL rate\"","v":"Divide the result of c16.24 by UPL rate"},null,null,null,null,null,null,null,{"$f":"A26","v":"c16.25"},{"$f":"IF(OR(H91=0,K110=0,NIC_exempt),0,TRUNC(K128/NIC_rate,2))","v":0},"pdown"]
[]
[null,null,null,null,null,null,null,null,null,null,{"$f":"\"lower of (\"&G88&\" and NIC_UEL (\"&DOLLAR(NIC_UEL,0)&\")) minus NIC_LEL (\"&DOLLAR(NIC_LEL,0)&\")\"","v":"lower of (c16.12 and NIC_UEL (£50,270)) minus NIC_LEL (£12,570)"}]
[null,"Subtract the LPL from the UPL, or the Actual profit figure, (whichever is lowest)",null,null,null,null,null,null,null,{"$f":"A27","v":"c16.26"},{"$f":"IF(OR(H91=0,K110=0,NIC_exempt),0,IF(K113=0,0,MIN(H88,NIC_UEL)-NIC_LEL))","v":0},"This box can be negative"]
[]
[null,null,null,null,null,null,null,null,null,null,{"$f":"J134&\" minus \"&J131","v":"c16.26 minus c16.25"}]
[null,{"$f":"\"Subtract the result of \"&J131&\" from the result of \"&J134","v":"Subtract the result of c16.25 from the result of c16.26"},null,null,null,null,null,null,null,{"$f":"A28","v":"c16.27"},{"$f":"IF(OR(H91=0,K110=0,NIC_exempt),0,MAX(0,K134-K131))","v":0}]
[]
[null,null,null,null,null,null,null,null,null,null,{"$f":"J137&\" × NIC_supp_rate (\"&NIC_supp_rate*100&\"%)\"","v":"c16.27 × NIC_supp_rate (2%)"}]
[null,{"$f":"\"Multiply the result of \"&J137&\" by LPL rate\"","v":"Multiply the result of c16.27 by LPL rate"},null,null,null,null,null,null,null,{"$f":"A29","v":"c16.28"},{"$f":"IF(OR(H91=0,K110=0,NIC_exempt),0,TRUNC(K137*NIC_supp_rate,2))","v":0},"pdown"]
[]
[null,null,null,null,null,null,null,null,null,null,{"$f":"\"(\"&G88&\" minus NIC_UEL (\"&DOLLAR(NIC_UEL,0)&\")) × NIC_supp_rate (\"&NIC_supp_rate*100&\"%)\"","v":"(c16.12 minus NIC_UEL (£50,270)) × NIC_supp_rate (2%)"}]
[null,"Actual profit figure minus UPL × UPL rate",null,null,null,null,null,null,null,{"$f":"A30","v":"c16.29"},{"$f":"MAX(0,IF(OR(H91=0,K110=0,NIC_exempt),0,IF(H88-NIC_UEL<0,0,TRUNC((H88-NIC_UEL)*NIC_supp_rate,2))))","v":0},"pdown"]
[]
[]
[]
[]
[]
[null,null,null,null,null,null,null,null,null,{"$f":"\"If \"&J119&\" minus \"&J113&\" >= 0 and \"&J128&\" > (\"&J113&\" + (\"&G91&\" × NIC_rate (\"&NIC_rate*100&\"%)))\"","v":"If c16.23 minus c16.21 >= 0 and c16.24 > (c16.21 + (c16.13 × NIC_rate (6%)))"}]
[null,null,null,null,null,null,null,null,null,{"$f":"J158&\" = \"&J128","v":"c16.30 = c16.24"}]
[null,null,null,null,null,null,null,null,null,"else"]
[null,null,null,null,null,null,null,null,null,{"$f":"\"If \"&J119&\" minus \"&J113&\" >= 0 and \"&J128&\" <= (\"&J113&\" + (\"&G91&\" × NIC_rate (\"&NIC_rate*100&\"%)))\"","v":"If c16.23 minus c16.21 >= 0 and c16.24 <= (c16.21 + (c16.13 × NIC_rate (6%)))"}]
[null,null,null,null,null,null,null,null,null,{"$f":"J158&\" = \"&J128&\" + \"&J140&\" + \"&J143","v":"c16.30 = c16.24 + c16.28 + c16.29"}]
[null,null,null,null,null,null,null,null,null,"else"]
[null,null,null,null,null,null,null,null,null,{"$f":"J158&\" = \"&J140&\" + \"&J143","v":"c16.30 = c16.28 + c16.29"}]
[null,null,null,null,null,null,null,null,null,"end if"]
[null,null,null,null,null,null,null,null,null,"end if"]
[null,null,null,null,null,null,null,null,"Reg 100 Class 4 NIC due",{"$f":"A31","v":"c16.30"},{"$f":"IF(OR(H91=0,K110=0,NIC_exempt),0,IF(AND(K119-K113>=0,K128>(K113+(H91*NIC_rate))),K128,IF(AND(K119-K113>=0,K128<=(K113+(H91*NIC_rate))),(K128+K140+K143),K140+K143)))","v":0}]
[]
[]
[null,null,null,null,null,null,null,null,null,{"$f":"\"If \"&J110&\" > 0 (zero)\"","v":"If c16.20 > 0 (zero)"}]
[null,null,null,null,null,null,null,null,null,{"$f":"J166&\" = Lower of \"&J103&\" and \"&J158","v":"c16.31 = Lower of c16.19 and c16.30"}]
[null,null,null,null,null,null,null,null,null,"else"]
[null,null,null,null,null,null,null,null,null,{"$f":"J166&\" = \"&J103","v":"c16.31 = c16.19"}]
[null,null,null,null,null,null,null,null,null,"end if"]
[null,null,null,null,null,null,null,null,"Total Class 4 NIC due",{"$f":"A32","v":"c16.31"},{"$f":"IF(NIC_exempt,0,IF(K110>0,MIN(K103,K158),K103))","v":0}]
[null,null,null,null,null,null,null,null,null,null,{"$f":"\"copy to box \"&'Tax due (c12)'!I39","v":"copy to box c12.2"}]
[]
[null,null,null,null,null,null,"Endif"]
[null,null,null,null,null,"Endif"]
[]
[]
[null,null,"Endif"]
[]
[]
[]
[null,"Class 2"]
[null,"Where customer has multiple sources of income subject to Class 2 the Class 2 amount due should not be duplicated across the sources"]
[null,"The reference to box NICL2 in the calculation does not appear in the schema. This is for the calculation"]
[null,"only and this figure is expected to be taken from the data sent in 1 (or more if you choose) of SSECL2, "]
[null,"FSECL2, FPSCL2, SPSCL2 and LUNCL2 which are in the schema and would be sent in the xml. To "]
[null,"support the rendering of NIC Class 2 Contributions you may want to render on one Self Employment, "]
[null,"Partnership or Lloyds schedule and have the ability to choose the schedule that should be used."]
[]
[]
[]
[null,null,null,null,null,null,null,null,null,null,{"$f":"\"if \"&G88&\" < NIC2_SPT (\"&DOLLAR(NIC2_SPT,0)&\") and if (\"&SSE&SE!C14&\" = Y or \"&FSE&SE!G29&\" = Y or \"&LUN&LUN!K13&\" = Y or \"&SPS&PS!C13&\" = Y or \"&FPS&PS!G14&\" = Y)\"","v":"if c16.12 < NIC2_SPT (£6,845) and if (SSE36 = Y or FSE100 = Y or LUN63 = Y or SPS25 = Y or FPS25 = Y)"}]
[null,null,null,null,null,null,null,null,null,null,{"$f":"J192&\" = box NI\"&NI!C11","v":"c16.32 = box NICL2"}]
[null,null,null,null,null,null,null,null,null,null,"else"]
[null,null,null,null,null,null,null,null,null,null,{"$f":"J192&\" = 0 (zero)\"","v":"c16.32 = 0 (zero)"}]
[null,null,null,null,null,null,null,null,null,null,"end if"]
[null,"Class 2 NIC due",null,null,null,null,null,null,null,{"$f":"A33","v":"c16.32"},{"$f":"IF(NI!D12=\"\",0,IF(AND(H88<NIC2_SPT,NIC2_voluntary=\"TRUE\"),MIN(NIC2SF_annual_limit,NI!D12),0))","v":0}]
[null,null,null,null,null,null,null,null,null,null,{"$f":"\"copy to box \"&'Tax due (c12)'!I47","v":"copy to box c12.3"}]
[]
[]
[null,null,null,null,null,null,null,null,null,null,{"$f":"\"if \"&G88&\" >= NIC2_SPT (\"&DOLLAR(NIC2_SPT,0)&\")\"","v":"if c16.12 >= NIC2_SPT (£6,845)"}]
[null,null,null,null,null,null,null,null,null,null,"and box NICL2 > 0 (zero)"]
[null,null,null,null,null,null,null,null,null,null,{"$f":"J202&\" = 1 \"","v":"c16.33 = 1 "}]
[null,null,null,null,null,null,null,null,null,null,"else"]
[null,null,null,null,null,null,null,null,null,null,{"$f":"J202&\" = 0 (zero)\"","v":"c16.33 = 0 (zero)"}]
[null,null,null,null,null,null,null,null,null,null,"end if"]
[null,null,null,null,null,null,null,null,null,{"$f":"A34","v":"c16.33"},{"$f":"IF(AND(H88>=NIC2_SPT,NI!D12>0),1,0)","v":0}]

{"sheet":"TSR (c17)","index":73,"n_rows":315,"n_cols":18,"rows_kept":315,"cut":false,"hidden":true,"merged":[[14,1,14,18],[16,1,16,18]]}
["c17.1","CalculateTop Slicing Relief and appropriate fraction relief"]
["c17.2",null,null,null,null,null,null,"If any box in this stage is negative substitute zero"]
["c17.3"]
["c17.4"]
["c17.5","Chargeable event gains (without top slicing) are included in an individual's income."]
["c17.6","Scottish Parliament can only set the rates and the limits for non-savings and non-dividend income, then"]
["c17.7","for savings, dividends and capital gains, it is necessary to ignore the Scottish threshold and refer to the UK limit instead."]
["c17.8"]
["c17.9","Section 530 ITTOIA 2005 requires a reduction in the amount of tax treated as paid on a UK life insurance policy if:"]
["c17.10","“the individual's total income is reduced by any deductions which fall to be made [at Step 2 or 3 of the calculation in section 23 of ITA 2007 "]
["c17.11","(calculation of income tax liability)] from the part of the income charged to tax under this Chapter.”"]
["c17.12"]
["c17.13"]
["c17.14"]
["c17.15","(When called from On-Line Functions Capture Return Details and Amend Return for a taxpayer with Chargeable Events the process will need to know if Top Slicing Relief is due before the calculation of liability is complete. The calling process may therefore need to call this common process twice, initially to determine if any relief is possible and secondly to undertake the complete calculation. "]
["c17.16"]
["c17.17","When the process is called for the first time by either of these functions the signal RTN TOP SLICING CHECK REQD SIGNAL will be set to “Y”. If processing decides that Top Slicing Relief is due this signal is cleared and a second signal RTN TOP SLICING RELIEF DUE SIG set to “Y” to indicate to the calling process that the additional field ITF CEG INPUT AMOUNT should be displayed.)"]
["c17.18"]
["c17.19","The ITF CEG INPUT AMOUNT is required where FOR43 + AOI4 + AOI6 + AOI8 > 0, and either "]
["c17.20",{"$f":"P77&\" > 0 or\"","v":"c17.20 > 0 or"}]
["c17.21",{"$f":"\"If boxes ((\"&CGT&CGT!C4&\" + \"&CGT&CGT!C13&\" + \"&CGT&CGT!C18&\" + \"&CGT&CGT!C26&\" + \"&CGT&CGT!C36&\" + \"&CGT&CGT!C43&\") minus ((\"&CGT&CGT!C10&\" + \"&CGT&CGT!C21&\" + \"&CGT&CGT!G26&\" + \"&CGT&CGT!G36&\" + \"&CGT&CGT!C46&\") minus (\"&CGT&CGT!C49&\" + \"&CGT&CGT!G52&\"))\"&\" + \"&CGT&CGT!P18&\" + ((\"&CGT&CGT!L26&\" + \"&CGT&CGT!L34&\") minus \"&CGT&CGT!P34&\") is greater than zero) or\"","v":"If boxes ((CGT6 + CGT13B + CGT13.4 + CGT17 + CGT26 + CGT34) minus ((CGT7 + CGT13.5 + CGT19 + CGT27 + CGT35) minus (CGT41 + CGT43)) + CGT52 + ((CGT52.1 + CGT52.2) minus CGT52.5) is greater than zero) or"}]
["c17.22",{"$f":"CGT&CGT!L18&\" is not zero or Null \"","v":"CGT51 is not zero or Null "}]
["c17.22a","And"]
["c17.22b",{"$f":"\"(\"&FOR&FOR!K42&\" > 0 with \"&FOR&FOR!O35&\" absent, or\"","v":"(FOR43 > 0 with FOR44 absent, or"}]
["c17.22c",{"$f":"AOI&AOI!C13&\" > 0 with \"&AOI&AOI!C16&\" absent, or\"","v":"AOI4 > 0 with AOI5 absent, or"}]
["c17.22d",{"$f":"AOI&AOI!C19&\" > 0 with \"&AOI&AOI!C22&\" absent, or\"","v":"AOI6 > 0 with AOI7 absent, or"}]
["c17.22e",{"$f":"AOI&AOI!G13&\" > 0 with \"&AOI&AOI!G16&\" absent)\"","v":"AOI8 > 0 with AOI9 absent)"}]
["c17.22e1"]
["c17.22e2",{"$f":"\"If (\"&FOR&FOR!K42&\" + \"&AOI&AOI!C13&\" + \"&AOI&AOI!C19&\" + \"&AOI&AOI!G13&\") is greater than 0 (zero)\"","v":"If (FOR43 + AOI4 + AOI6 + AOI8) is greater than 0 (zero)"}]
["c17.22e3","and NRD1 = N"]
["c17.22f","Rework UK tax liability to exclude those items that do not figure in TSR calculation."]
["c17.22g"]
["c17.22h"]
["c17.22i"]
["c17.22j"]
["c17.22k",null,null,null,null,null,null,null,null,null,null,null,{"$f":"\"from \"&'Taxable (c5)'!E338","v":"from c5.85"}]
["c17.23",null,null,null,null,null,null,null,null,null,"Total income",{"$f":"A1","v":"c17.1"},{"$f":"'Taxable (c5)'!F338","v":0}]
["c17.23a"]
["c17.23b","Remove lump sums and reverse premiums"]
["c17.23c",null,null,null,null,{"$f":"\"from \"&'NS income (c1)'!I188","v":"from c1.58"}]
["c17.23d",null,"Lump sum payments",null,{"$f":"A2","v":"c17.2"},{"$f":"'NS income (c1)'!J188","v":0}]
["c17.24"]
["c17.24a",null,"Premiums for the",null,null,{"$f":"\"from \"&PRO&PRO!G7","v":"from PRO22"},null,null,null,null,null,null,{"$f":"E41&\" + \"&E44","v":"c17.2 + c17.3"}]
["c17.25",null,"grant of a lease",null,{"$f":"A3","v":"c17.3"},{"$f":"TRUNC(PRO!H8,0)","v":0},"£down",null,null,null,null,{"$f":"A4","v":"c17.4"},{"$f":"F41+F44","v":0}]
["c17.25a"]
["c17.25b",null,null,null,null,null,null,null,null,null,null,null,{"$f":"L37&\" minus \"&L44","v":"c17.1 minus c17.4"}]
["c17.26",null,null,null,null,{"$f":"'Deductions (c4)'!L484&\" minus (\"&'Deductions (c4)'!H281&\" + \"&'Deductions (c4)'!H294","v":"c4.70 minus (c4.47.19 + c4.47.23"},null,null,null,null,null,{"$f":"A5","v":"c17.5"},{"$f":"MAX(0,M37-M44)","v":0}]
["c17.27",null,"Total Deductions ",null,null,{"$f":"\" + \"&'Deductions (c4)'!H310&\" + \"&'Deductions (c4)'!H321&\" + \"&'Deductions (c4)'!H413&\")\"","v":" + c4.47.27 + c4.47.30 + c4.63b)"}]
["c17.27a",null,"and Allowances",null,{"$f":"A6","v":"c17.6"},{"$f":"MAX(0,'Deductions (c4)'!M484-('Deductions (c4)'!I281+'Deductions (c4)'!I294+'Deductions (c4)'!I310+'Deductions (c4)'!I321+'Deductions (c4)'!I413))","v":12570}]
["c17.28"]
["c17.28a",null,null,null,null,{"$f":"\"from \"&'Deductions (c4)'!H329","v":"from c4.49"},null,null,null,null,null,null,{"$f":"E49&\" minus \"&E52","v":"c17.6 minus c17.7"}]
["c17.29",null,"Gift of investments etc.",null,{"$f":"A7","v":"c17.7"},{"$f":"'Deductions (c4)'!I329","v":0},null,null,null,null,null,{"$f":"A8","v":"c17.8"},{"$f":"MAX(0,F49-F52)","v":12570}]
["c17.30"]
["c17.31",null,null,null,null,null,null,null,null,null,null,null,{"$f":"L47&\" minus \"&L52","v":"c17.5 minus c17.8"}]
["c17.32",null,null,null,null,null,null,null,null,null,"taxable income for TSR",{"$f":"A9","v":"c17.9"},{"$f":"MAX(0,M47-M52)","v":0}]
["c17.33"]
["c17.34",null,"remove Gift Aid etc."]
["c17.35",null,"Calculate HR threshold for TSR"]
["c17.36",null,null,null,null,{"$f":"\"BR_band (\"&DOLLAR(BR_band,0)&\")\"","v":"BR_band (£37,700)"}]
["c17.37",null,"Basic rate limit",null,{"$f":"A10","v":"c17.10"},{"$f":"BR_band","v":37700}]
["c17.38"]
["c17.38.0",null,null,null,null,{"$f":"\"from \"&'Deductions (c4)'!H379","v":"from c4.58"},null,null,null,null,null,null,{"$f":"E60&\" + \"&E63","v":"c17.10 + c17.11"}]
["c17.38.1",null,"Pension payments",null,{"$f":"A11","v":"c17.11"},{"$f":"'Deductions (c4)'!I379","v":0},null,null,null,null,"Extended BR band",{"$f":"A12","v":"c17.12"},{"$f":"F60+F63","v":37700}]
["c17.38.2"]
["c17.38.2a",null,"Calculate HR charge for TSR",null,null,null,null,null,null,null,null,null,{"$f":"L55&\" minus \"&L63","v":"c17.9 minus c17.12"}]
["c17.38.2b",null,null,null,null,null,null,null,null,null,null,{"$f":"A13","v":"c17.13"},{"$f":"MAX(0,M55-M63)","v":0}]
["c17.38.2c",null,"Tax due for TSR purposes"]
["c17.38.2d",null,null,"Band between Higher rate band",null,{"$f":"\"HR_band (\"&DOLLAR(HR_band,0)&\")\"","v":"HR_band (£87,440)"}]
["c17.38.2e",null,null,"& Basic rate band",{"$f":"A14","v":"c17.14"},{"$f":"HR_band","v":87440}]
["c17.38.2f",null,null,null,null,"Set to zero",null,null,null,null,null,null,{"$f":"\"lower of \"&L66&\" and \"&E69","v":"lower of c17.13 and c17.14"},null,null,null,{"$f":"L71&\" × HR_rate (\"&HR_rate*100&\"%)\"","v":"c17.16 × HR_rate (40%)"}]
["c17.38.2g",null,null,null,{"$f":"A15","v":"c17.15"},null,null,null,null,null,"amount due at higher rate",{"$f":"A16","v":"c17.16"},{"$f":"MIN(M66,F69)","v":0},null,null,{"$f":"A17","v":"c17.17"},{"$f":"TRUNC((M71*HR_rate)+0.0099,2)","v":0},"pup"]
["c17.38.2ga"]
["c17.38.2gb",null,null,null,null,null,null,null,null,null,null,null,{"$f":"L66&\" minus \"&L71","v":"c17.13 minus c17.16"},null,null,null,{"$f":"L74&\" × AHR_rate (\"&AHR_rate*100&\"%)\"","v":"c17.18 × AHR_rate (45%)"}]
["c17.38.2h",null,null,null,null,null,null,null,null,null,"amount due at additional rate",{"$f":"A18","v":"c17.18"},{"$f":"MAX(0,M66-M71)","v":0},null,null,{"$f":"A19","v":"c17.19"},{"$f":"TRUNC((M74*AHR_rate)+0.0099,2)","v":0},"pup"]
["c17.38.2i"]
["c17.38.2j",null,null,null,null,null,null,null,null,null,null,null,null,null,null,null,{"$f":"P71&\" + \"&P74","v":"c17.17 + c17.19"}]
["c17.38.3",null,null,null,null,null,null,null,null,null,null,null,null,null,null,{"$f":"A20","v":"c17.20"},{"$f":"Q71+Q74","v":0}]
["c17.38.4",{"$f":"\"If box \"&P77&\" = 0 (zero) and\"","v":"If box c17.20 = 0 (zero) and"}]
["c17.38a",{"$f":"\"boxes ((\"&CGT&CGT!C4&\" + \"&CGT&CGT!C13&\" + \"&CGT&CGT!C18&\" + \"&CGT&CGT!C26&\" + \"&CGT&CGT!C36&\" + \"&CGT&CGT!C43&\") minus ((\"&CGT&CGT!C10&\" + \"&CGT&CGT!C21&\" + \"&CGT&CGT!G26&\" + \"&CGT&CGT!G36&\" + \"&CGT&CGT!C46&\") minus (\"&CGT&CGT!C49&\" + \"&CGT&CGT!G52&\"))\"&\" + \"&CGT&CGT!P18&\" + ((\"&CGT!L26&\" + \"&CGT!L34&\") minus \"&CGT!P34&\") <= 0 (zero)) and\"","v":"boxes ((CGT6 + CGT13B + CGT13.4 + CGT17 + CGT26 + CGT34) minus ((CGT7 + CGT13.5 + CGT19 + CGT27 + CGT35) minus (CGT41 + CGT43)) + CGT52 + ((52.1 + 52.2) minus 52.5) <= 0 (zero)) and"}]
["c17.38a1",{"$f":"\"(\"&CGT&CGT!L18&\" = 0 (zero) or null)) no Top Slicing relief is due\"","v":"(CGT51 = 0 (zero) or null)) no Top Slicing relief is due"}]
["c17.38b",{"$f":"\"set \"&E101&\" to \"&L101&\" to 1\"","v":"set c17.21 to c17.22 to 1"}]
["c17.38c","else"]
["c17.38d"]
["c17.38d1"]
["c17.38e"]
["c17.38f",null,null,null,null,"Chargeable Event Gains",null,null,"Number of Years"]
["c17.38g",null,null,null,null,"Column A: Copy from boxes",null,null,null,"Column B: Copy from boxes",null,null,null,null,null,"Calculate appropriate fraction"]
["c17.38h",null,null,null,null,{"$f":"AOI&AOI!C13&\", \"&AOI&AOI!C19&\",  \"&AOI&AOI!G13&\" and \"&FOR&FOR!K42","v":"AOI4, AOI6,  AOI8 and FOR43"},null,null,null,{"$f":"AOI&AOI!C16&\", \"&AOI&AOI!C22&\",  \"&AOI&AOI!G16&\" and \"&FOR&FOR!O35","v":"AOI5, AOI7,  AOI9 and FOR44"}]
["c17.38i",null,null,null,null," or from additional information ",null,null,null," or from additional information ",null,null,null,null,null,null,{"$f":"\"If \"&AOI&AOI!C13&\" is present AND \"&AOI&AOI!C16&\" not present, or\"","v":"If AOI4 is present AND AOI5 not present, or"}]
["c17.38j",null,null,null,null,"A",null,null,null,"B",null,null,"A divided by B",null,null,null,{"$f":"AOI&AOI!C19&\" is present AND \"&AOI&AOI!C22&\" not present, or\"","v":"AOI6 is present AND AOI7 not present, or"}]
["c17.39",null,null,null,"Single foreign gain",{"$f":"TRUNC(MAX(FOR!L43,'Multi-foreign-gains'!D16),0)","v":0},null,null,null,{"$f":"IF(OR(FOR!P36=\"multiple\",FOR!P36=\"\"),\"M\",MAX(FOR!P36,'Multi-foreign-gains'!P16,1))","v":"M"},null,null,{"$f":"IF(J91=\"M\",0,IF(F91>0,MAX(1,F91/J91),0))","v":0},null,null,null,{"$f":"AOI&AOI!G13&\" is present AND \"&AOI&AOI!G16&\" is not present, or\"","v":"AOI8 is present AND AOI9 is not present, or"}]
["c17.40",null,null,null,"Single UK gain without",{"$f":"TRUNC(MAX(AOI!D20,'Multi-UK-gains'!F16),0)","v":0},null,null,null,{"$f":"IF(OR(AOI!D23=\"multiple\",AOI!D23=\"\"),\"M\",MAX(AOI!D23,'Multi-UK-gains'!R17,1))","v":"M"},null,null,{"$f":"IF(J92=\"M\",0,IF(F92>0,MAX(1,F92/J92),0))","v":0},null,null,null,{"$f":"FOR&FOR!K42&\" is present AND \"&FOR&FOR!O35&\" not present\"","v":"FOR43 is present AND FOR44 not present"}]
["c17.41",null,null,null,"Single UK gain with",{"$f":"TRUNC(MAX(AOI!D14,'Multi-UK-gains'!M21),0)","v":0},null,null,null,{"$f":"IF(OR(AOI!D17=\"multiple\",AOI!D17=\"\"),\"M\",MAX(AOI!D17,'Multi-UK-gains'!V22,1))","v":"M"},null,null,{"$f":"IF(J93=\"M\",0,IF(F93>0,MAX(1,F93/J93),0))","v":0},null,null,null,{"$f":"L101&\" = ITF CEG INPUT AMOUNT\"","v":"c17.22 = ITF CEG INPUT AMOUNT"}]
["c17.42",null,null,null,"void ISA",{"$f":"TRUNC(AOI!H14,0)","v":0},null,null,null,{"$f":"MAX(AOI!H17,1)","v":1},null,null,{"$f":"IF(J94=\"M\",0,IF(F94>0,MAX(1,F94/J94),0))","v":0},null,null,null,"else"]
["c17.43",null,null,null,"Multi foreign gains",null,null,null,null,null,null,null,{"$f":"IF(No_of_for_gains>1,'Multi-foreign-gains'!Q16,0)","v":0},null,null,null,{"$f":"\"a) If \"&AOI&AOI!C13&\" is present, a = the higher of 1 or (\"&AOI&AOI!C13&\"/\"&AOI&AOI!C16&\"), else a = zero\"","v":"a) If AOI4 is present, a = the higher of 1 or (AOI4/AOI5), else a = zero"}]
["c17.44",null,null,null,"Multi UK gains without",null,null,null,null,null,null,null,{"$f":"IF('Multi-UK-gains'!Q17>1,'Multi-UK-gains'!S17,0)","v":0},null,null,null,{"$f":"\"b) If \"&AOI&AOI!C19&\" is present, b = the higher of 1 or (\"&AOI&AOI!C19&\"/\"&AOI&AOI!C22&\"), else b = zero\"","v":"b) If AOI6 is present, b = the higher of 1 or (AOI6/AOI7), else b = zero"}]
["c17.45",null,null,null,"Multi UK gains with",null,null,null,null,null,null,null,{"$f":"IF('Multi-UK-gains'!U22>1,'Multi-UK-gains'!W22,0)","v":0},null,null,null,{"$f":"\"c) If \"&AOI&AOI!G13&\" is present, c = the higher of 1 or (\"&AOI&AOI!G13&\"/\"&AOI&AOI!G16&\"), else c = zero\"","v":"c) If AOI8 is present, c = the higher of 1 or (AOI8/AOI9), else c = zero"}]
["c17.46",null,null,null,null,null,null,null,null,null,null,null,null,null,null,null,{"$f":"\"d) If \"&FOR&FOR!K42&\" is present, d = the higher of 1 or (\"&FOR&FOR!K42&\"/\"&FOR&FOR!O35&\"), else d = zero\"","v":"d) If FOR43 is present, d = the higher of 1 or (FOR43/FOR44), else d = zero"}]
["c17.47",null,null,null,null,"Total of column above",null,null,null,null,null,null,"Total of column above",null,null,null,{"$f":"L101&\" = higher of 1 or (a + b + c + d)\"","v":"c17.22 = higher of 1 or (a + b + c + d)"}]
["c17.48",null,null,null,null,{"$f":"AOI&AOI!C13&\" + \"&AOI&AOI!C19&\" + \"&AOI&AOI!G13&\" + \"&FOR&FOR!K42","v":"AOI4 + AOI6 + AOI8 + FOR43"},null,null,null,null,null,null,{"$f":"AOI&AOI!C16&\" + \"&AOI&AOI!C22&\" +  \"&AOI&AOI!G16&\" + \"&FOR&FOR!O35","v":"AOI5 + AOI7 +  AOI9 + FOR44"},null,null,null,"end if"]
[null,null,null,"full gain(s)",{"$f":"A21","v":"c17.21"},{"$f":"IF(box_NRD1,0,SUM(F91:F97))","v":0},"£down",null,null,null,"sliced gain(s)",{"$f":"A22","v":"c17.22"},{"$f":"TRUNC(SUM(M91:M97),0)","v":0},"£down",null,{"$f":"A22","v":"c17.22"},null,"£down"]
[null,null,null,null,null,{"$f":"\"copy to \"&'CG (c18)'!A62","v":"copy to c18.34"}]
[]
[null,"end if"]
[]
[null,{"$f":"\"If box \"&P77&\" = 0 (zero)\"","v":"If box c17.20 = 0 (zero)"}]
[null,{"$f":"\"set \"&E114&\" to \"&L308&\" to 0 (zero)\"","v":"set c17.22a to c17.48 to 0 (zero)"}]
[null,"else"]
[null,{"$f":"\"calculate \"&E114&\" to \"&L308","v":"calculate c17.22a to c17.48"}]
[]
[null,null,"Higher rates liability on full gain(s)"]
[]
[null,null,null,null,null,{"$f":"\"(\"&'Divs (c3)'!G75&\" + \"&'Divs (c3)'!G80&\" + \"&'Deductions (c4)'!L418&\") minus \"&E44","v":"(c3.19 + c3.20 + c4.63c) minus c17.3"},null,null,null,null,null,null,null,null,null,null,{"$f":"E114&\" minus \"&L52","v":"c17.22a minus c17.8"}]
[null,null,"Non-savings income",null,{"$f":"A23","v":"c17.22a"},{"$f":"MAX(0,(('Divs (c3)'!H75+'Divs (c3)'!H80+'Deductions (c4)'!M418)-F44))","v":0},null,null,null,null,null,null,null,null,null,{"$f":"A24","v":"c17.22b"},{"$f":"MAX(0,F114-M52)","v":0}]
[null,null,null,null,null,{"$f":"'Savings (c2)'!H79&\" minus\"","v":"c2.19 minus"}]
[null,null,"Savings (except gains on",null,null,{"$f":"\"(\"&'Savings (c2)'!E28&\" + \"&'Savings (c2)'!H75&\" + \"&'Deductions (c4)'!H294&\")\"","v":"(c2.6 + c2.18 + c4.47.23)"},null,null,null,null,null,null,{"$f":"L52&\" minus \"&E114","v":"c17.8 minus c17.22a"},null,null,null,{"$f":"E117&\" minus \"&L117","v":"c17.22c minus c17.22d"}]
[null,null,"life policies without notional tax",null,{"$f":"A25","v":"c17.22c"},{"$f":"MAX(0,'Savings (c2)'!I79-('Savings (c2)'!F28+'Savings (c2)'!I75+'Deductions (c4)'!I294))","v":0},null,null,null,null,null,{"$f":"A26","v":"c17.22d"},{"$f":"MAX(0,M52-F114)","v":12570},null,null,{"$f":"A27","v":"c17.22e"},{"$f":"MAX(0,F117-M117)","v":0}]
[]
[null,null,null,null,null,{"$f":"\"lower of \"&P117&\" and SR_band (\"&DOLLAR(SR_band,0)&\")\"","v":"lower of c17.22e and SR_band (£5,000)"},null,null,null,null,null,null,null,null,null,null,{"$f":"\"lower of \"&E120&\" and (SR_band (\"&DOLLAR(SR_band,0)&\") minus \"&P114&\")\"","v":"lower of c17.22e1 and (SR_band (£5,000) minus c17.22b)"}]
[null,null,"Savings Max SR_band",null,{"$f":"A28","v":"c17.22e1"},{"$f":"MIN(Q117,SR_band)","v":0},null,null,null,null,null,null,null,null,"Savings in SR_band",{"$f":"A29","v":"c17.22e2"},{"$f":"MAX(0,MIN(F120,(SR_band)-Q114))","v":0}]
[]
[null,null,null,null,null,null,null,null,null,null,null,null,null,null,null,null,{"$f":"\"lower of (\"&P117&\" minus \"&P120&\") and \"&'Deductions (c4)'!L639","v":"lower of (c17.22e minus c17.22e2) and c4.79"}]
[null,null,null,null,null,null,null,null,null,null,null,null,null,null,"Savings Max SNil_band",{"$f":"A30","v":"c17.22e3"},{"$f":"MAX(0,MIN(Q117-Q120,'Deductions (c4)'!M639))","v":0}]
[]
[null,null,null,null,null,{"$f":"'Divs (c3)'!G58&\" minus \"&'Deductions (c4)'!H310","v":"c3.15 minus c4.47.27"},null,null,null,null,null,null,{"$f":"L117&\" minus \"&E117","v":"c17.22d minus c17.22c"},null,null,null,{"$f":"E126&\" minus \"&L126","v":"c17.22f minus c17.22g"}]
[null,null,"Dividends",null,{"$f":"A31","v":"c17.22f"},{"$f":"MAX(0,'Divs (c3)'!H58-'Deductions (c4)'!I310)","v":0},null,null,null,null,null,{"$f":"A32","v":"c17.22g"},{"$f":"MAX(0,M117-F117)","v":12570},null,null,{"$f":"A33","v":"c17.22h"},{"$f":"MAX(0,F126-M126)","v":0}]
[]
[null,null,null,null,null,null,null,null,null,null,null,null,null,null,null,null,{"$f":"P114&\" + \"&P117&\" + \"&P126","v":"c17.22b + c17.22e + c17.22h"}]
[null,null,"Taxable",null,null,null,null,null,null,null,null,null,null,null,null,{"$f":"A34","v":"c17.22i"},{"$f":"Q114+Q117+Q126","v":0}]
[]
[null,null,null,null,null,null,null,null,null,null,null,null,{"$f":"L126&\" minus \"&E126","v":"c17.22g minus c17.22f"},null,null,null,{"$f":"E101&\" minus \"&L132","v":"c17.21 minus c17.22j"}]
[null,null,"Chargeable Event Gains ",null,null,null,null,null,null,null,null,{"$f":"A35","v":"c17.22j"},{"$f":"MAX(0,M126-F126)","v":12570},null,null,{"$f":"A36","v":"c17.22k"},{"$f":"MAX(0,F101-M132)","v":0}]
[]
[null,null,null,null,null,{"$f":"\"lower of \"&P132&\" and SR_band (\"&DOLLAR(SR_band,0)&\")\"","v":"lower of c17.22k and SR_band (£5,000)"}]
[null,null,"SR_band",null,{"$f":"A37","v":"c17.23"},{"$f":"MIN(Q132,SR_band)","v":0}]
[null,null,null,null,null,{"$f":"\"lower of \"&E135&\" and\"","v":"lower of c17.23 and"}]
[null,null,null,null,null,{"$f":"\"(SR_band (\"&DOLLAR(SR_band,0)&\") minus (\"&P129&\"))\"","v":"(SR_band (£5,000) minus (c17.22i))"},null,null,null,null,null,null,null,null,null,null,{"$f":"E138&\" × SR_rate (\"&SR_rate*100&\"%)\"","v":"c17.23a × SR_rate (0%)"}]
[null,null,"Gains in SR_band",null,{"$f":"A38","v":"c17.23a"},{"$f":"MIN(F135,MAX(0,SR_band-Q129))","v":0},null,null,null,null,null,null,null,null,null,{"$f":"A39","v":"c17.23b"},{"$f":"TRUNC(F138*SR_rate,2)","v":0},"pdown"]
[]
[null,null,null,null,null,{"$f":"\"SR_band (\"&DOLLAR(SR_band,0)&\") minus \"&P114","v":"SR_band (£5,000) minus c17.22b"}]
[null,null,null,null,{"$f":"A40","v":"c17.23c"},{"$f":"MAX(0,SR_band-Q114)","v":5000}]
[]
[null,null,null,null,null,{"$f":"P117&\" minus \"&E141","v":"c17.22e minus c17.23c"}]
[null,null,null,null,{"$f":"A41","v":"c17.23d"},{"$f":"MAX(0,Q117-F141)","v":0}]
[null,null,null,null,null,{"$f":"\"lower of (\"&P132&\" minus \"&E138&\") and\"","v":"lower of (c17.22k minus c17.23a) and"}]
[null,null,null,null,null,{"$f":"\"(\"&'Deductions (c4)'!L639&\" minus \"&E144&\")\"","v":"(c4.79 minus c17.23d)"},null,null,null,null,null,null,null,null,null,null,{"$f":"E147&\" × SNil_rate (\"&SNil_rate*100&\"%)\"","v":"c17.24 × SNil_rate (0%)"}]
[null,null,"Gains in Nil_band",null,{"$f":"A42","v":"c17.24"},{"$f":"MIN(MAX(0,Q132-F138),MAX(0,PSA-F144))","v":0},null,null,null,null,null,null,null,null,null,{"$f":"A43","v":"c17.24a"},{"$f":"TRUNC(F147*SNil_rate,2)","v":0},"pdown"]
[]
[null,null,null,null,null,{"$f":"\"lower of \"&P129&\" and \"&L63","v":"lower of c17.22i and c17.12"}]
[null,null,"BR_band used by other income",null,{"$f":"A44","v":"c17.25"},{"$f":"MIN(Q129,M63)","v":0}]
[null,null,null,null,null,{"$f":"\"lower of (\"&P132&\" minus (\"&E138&\" + \"&E147&\")) and\"","v":"lower of (c17.22k minus (c17.23a + c17.24)) and"}]
[null,null,null,null,null,{"$f":"\"(\"&L63&\" minus (\"&E138&\" + \"&E147&\" + \"&E150&\"))\"","v":"(c17.12 minus (c17.23a + c17.24 + c17.25))"},null,null,null,null,null,null,null,null,null,null,{"$f":"E153&\" × BR_rate (\"&BR_rate*100&\"%)\"","v":"c17.25a × BR_rate (20%)"}]
[null,null,"Gains in BR_band",null,{"$f":"A45","v":"c17.25a"},{"$f":"MAX(0,MIN(Q132-(F138+F147),M63-(F138+F147+F150)))","v":0},null,null,null,null,null,null,null,null,null,{"$f":"A46","v":"c17.25b"},{"$f":"TRUNC(F153*BR_rate,2)","v":0},"pdown"]
[]
[null,null,null,null,null,{"$f":"P129&\" minus \"&E150","v":"c17.22i minus c17.25"}]
[null,null,"HR_band used by other income",null,{"$f":"A47","v":"c17.26"},{"$f":"MAX(0,(Q129-F150))","v":0}]
[null,null,null,null,null,{"$f":"\"lower of \"&P132&\" minus (\"&E138&\" + \"&E147&\" + \"&E153&\") and\"","v":"lower of c17.22k minus (c17.23a + c17.24 + c17.25a) and"}]
[null,null,null,null,null,{"$f":"\"(HR_band (\"&DOLLAR(HR_band,0)&\") minus \"&E156&\")\"","v":"(HR_band (£87,440) minus c17.26)"},null,null,null,null,null,null,null,null,null,null,{"$f":"E159&\" × HR_rate (\"&HR_rate*100&\"%)\"","v":"c17.27 × HR_rate (40%)"}]
[null,null,"Gains in HR_band",null,{"$f":"A48","v":"c17.27"},{"$f":"MAX(0,MIN((Q132-(F138+F147+F153)),HR_band-F156))","v":0},null,null,null,null,null,null,null,null,null,{"$f":"A49","v":"c17.27a"},{"$f":"TRUNC(F159*HR_rate,2)","v":0},"pdown"]
[null,null,null,null,null,{"$f":"P132&\" minus\"","v":"c17.22k minus"}]
[null,null,null,null,null,{"$f":"\"(\"&E138&\" + \"&E147&\" + \"&E153&\" + \"&E159&\")\"","v":"(c17.23a + c17.24 + c17.25a + c17.27)"},null,null,null,null,null,null,null,null,null,null,{"$f":"E162&\" × AHR_rate (\"&AHR_rate*100&\"%)\"","v":"c17.28 × AHR_rate (45%)"}]
[null,null,"Gains in additional rate band",null,{"$f":"A50","v":"c17.28"},{"$f":"MAX(0,Q132-(F138+F147+F153+F159))","v":0},null,null,null,null,null,null,null,null,null,{"$f":"A51","v":"c17.28a"},{"$f":"TRUNC(F162*AHR_rate,2)","v":0},"pdown"]
[]
[null,null,null,null,null,null,null,null,null,null,null,null,null,null,null,null,{"$f":"P138&\" + \"&P147&\" + \"&P153&\" + \"&P159&\" + \"&P162","v":"c17.23b + c17.24a + c17.25b + c17.27a + c17.28a"}]
[null,null,null,null,null,null,null,null,null,null,null,null,null,null,null,{"$f":"A52","v":"c17.29"},{"$f":"Q138+Q147+Q153+Q159+Q162","v":0}]
[]
[null,null,"minus",null,null,null,null,null,null,null,null,null,null,null,null,null,{"$f":"P132&\" × BR_rate (\"&BR_rate*100&\"%)\"","v":"c17.22k × BR_rate (20%)"}]
[null,null,"Basic rate liability",null,null,null,null,null,null,null,null,null,null,null,null,{"$f":"A53","v":"c17.30"},{"$f":"TRUNC(Q132*BR_rate,2)","v":0},"pdown"]
[]
[null,null,null,null,null,null,null,null,null,null,null,null,null,null,null,null,{"$f":"P165&\" minus \"&P168","v":"c17.29 minus c17.30"}]
[null,null,null,null,null,null,null,null,null,null,null,null,null,null,null,{"$f":"A54","v":"c17.31"},{"$f":"MAX(0,Q165-Q168)","v":0}]
[null,null,"Higher rates due on sliced gain(s)"]
[null,null,null,null,null,{"$f":"L47&\" + \"&L101","v":"c17.5 + c17.22"}]
[null,null,null,null,{"$f":"A55","v":"c17.32"},{"$f":"M47+M101","v":0}]
[]
[null,null,null,null,null,{"$f":"E174&\" minus \"&E101","v":"c17.32 minus c17.21"}]
[null,null,null,null,{"$f":"A56","v":"c17.33"},{"$f":"MAX(0,F174-F101)","v":0}]
[]
[null,null,null,null,null,{"$f":"E177&\" minus \"&L52","v":"c17.33 minus c17.8"}]
[null,null,null,null,{"$f":"A57","v":"c17.34"},{"$f":"MAX(0,F177-M52)","v":0}]
[]
[null,null,null,null,null,{"$f":"E180&\" minus \"&L63","v":"c17.34 minus c17.12"}]
[null,null,"Income in HR bands",null,{"$f":"A58","v":"c17.35"},{"$f":"MAX(0,F180-M63)","v":0}]
[]
[null,null,null,null,null,{"$f":"\"lower of \"&L101&\" and \"&E183","v":"lower of c17.22 and c17.35"}]
[null,null,"Sliced gain in HR bands",null,{"$f":"A59","v":"c17.36"},{"$f":"MIN(M101,F183)","v":0}]
[]
[null,null,null,null,null,{"$f":"E183&\" minus \"&E186","v":"c17.35 minus c17.36"}]
[null,null,"Other income in HR ",null,{"$f":"A60","v":"c17.37"},{"$f":"MAX(0,F183-F186)","v":0}]
[null,null,"bands"]
[null,null,null,null,null,{"$f":"L71&\" minus \"&E189","v":"c17.16 minus c17.37"}]
[null,null,"Unused HR band",null,{"$f":"A61","v":"c17.38"},{"$f":"MAX(0,M71-F189)","v":0}]
[]
[null,null,null,null,null,{"$f":"'Deductions (c4)'!H435&\" <  P_A (\"&DOLLAR(P_A,0)&\") 0r \"&'Deductions (c4)'!D216&\" > 0\"","v":"c4.64 <  P_A (£12,570) 0r c4.47 > 0"}]
[null,null,"Condition for below",null,{"$f":"A62","v":"c17.38.0"},{"$f":"OR(P_A_in_Calc < P_A, 'Deductions (c4)'!E216 > 0)","v":false}]
[]
[null,{"$f":"\"If \"&E192&\" is zero no Top Slicing Relief is due set \"&E214&\" to \"&L308&\" to 0 (zero)\"","v":"If c17.38 is zero no Top Slicing Relief is due set c17.38.1 to c17.48 to 0 (zero)"}]
[null,"else"]
[null,{"$f":"\"calculate TSR (boxes \"&E214&\" to \"&L308&\")\"","v":"calculate TSR (boxes c17.38.1 to c17.48)"}]
[]
[null,{"$f":"\"if \"&'Deductions (c4)'!H435&\" < P_A (\"&DOLLAR(P_A,0)&\")\"","v":"if c4.64 < P_A (£12,570)"}]
[null,{"$f":"\"set \"&'Deductions (c4)'!D201&\" to (\"&'Divs (c3)'!G111&\" + \"&'Deductions (c4)'!D195&\" + \"&'Deductions (c4)'!D198&\" + \"&'TSR (c17)'!L101&\") - \"&'TSR (c17)'!E101","v":"set c4.41 to (c3.26 + c4.40.1 + c4.40.2 + c17.22) - c17.21"}]
[null,{"$f":"\"set \"&'Deductions (c4)'!H354&\" to ((\"&'Deductions (c4)'!H347&\" minus \"&'Deductions (c4)'!H350&\") + (\"&'TSR (c17)'!L101&\" minus \"&'TSR (c17)'!E101&\"))\"","v":"set c4.55 to ((c4.54.2 minus c4.54.3) + (c17.22 minus c17.21))"}]
[null,{"$f":"\"Calculate boxes \"&'Deductions (c4)'!D201&\" to \"&'Deductions (c4)'!L418","v":"Calculate boxes c4.41 to c4.63c"}]
[null,{"$f":"\"Calculate boxes \"&'allowances (c14c15)'!K5&\" to \"&'allowances (c14c15)'!K26","v":"Calculate boxes c14.1 to c14.6"}]
[null,{"$f":"\"Calculate boxes \"&'Deductions (c4)'!H435&\" to \"&'Deductions (c4)'!L484","v":"Calculate boxes c4.64 to c4.70"}]
[null,{"$f":"E214&\" = \"&'Deductions (c4)'!L484&\" minus (\"&'Deductions (c4)'!H281&\" + \"&'Deductions (c4)'!H294&\" + \"&'Deductions (c4)'!H310&\" + \"&'Deductions (c4)'!H321&\" + \"&'Deductions (c4)'!H413&\")\"","v":"c17.38.1 = c4.70 minus (c4.47.19 + c4.47.23 + c4.47.27 + c4.47.30 + c4.63b)"}]
[null,{"$f":"\"set \"&'Deductions (c4)'!D201&\" to \"&'Deductions (c4)'!E200","v":"set c4.41 to c3.26 + c4.40.1 + c4.40.2"}]
[null,{"$f":"\"set \"&'Deductions (c4)'!H354&\" to \"&'Deductions (c4)'!I353","v":"set c4.55 to c4.54.2 minus c4.54.3"}]
[null,"else"]
[null,{"$f":"\"Calculate \"&E214","v":"Calculate c17.38.1"}]
[]
[null,null,null,null,null,{"$f":"\"from \"&E49","v":"from c17.6"}]
[null,null,null,null,{"$f":"A63","v":"c17.38.1"},{"$f":"IF(use_TSR_alt_c17_6, TSR_alt_c17_6, 'TSR (c17)'!F49)","v":61337}]
[null,"end if"]
[]
[null,null,"Total Deductions & Allowances",null,null,{"$f":"E214&\" minus \"&E52","v":"c17.38.1 minus c17.7"},null,null,null,null,null,null,null,null,null,null,{"$f":"E218&\" minus \"&L52","v":"c17.38.2 minus c17.8"}]
[null,null,"minus Gift of investments etc.",null,{"$f":"A64","v":"c17.38.2"},{"$f":"MAX(0,F214-F52)","v":61337},null,null,null,null,null,null,null,null,"Additional P_A",{"$f":"A65","v":"c17.38.2a"},{"$f":"MAX(0,F218-M52)","v":48767}]
[]
[null,null,null,null,null,null,null,null,null,null,null,null,null,null,null,null,{"$f":"P114&\" minus \"&P218","v":"c17.22b minus c17.38.2a"}]
[null,null,"Non-savings income",null,null,null,null,null,null,null,null,null,null,null,null,{"$f":"A66","v":"c17.38.2b"},{"$f":"MAX(0,Q114-Q218)","v":0}]
[]
[null,null,"Savings (except gains on",null,null,null,null,null,null,null,null,null,{"$f":"P218&\" minus \"&P114","v":"c17.38.2a minus c17.22b"},null,null,null,{"$f":"P117&\" minus \"&L224","v":"c17.22e minus c17.38.2c"}]
[null,null,"life policies without notional tax)",null,null,null,null,null,null,null,null,{"$f":"A67","v":"c17.38.2c"},{"$f":"MAX(0,Q218-Q114)","v":48767},null,null,{"$f":"A68","v":"c17.38.2d"},{"$f":"MAX(0,Q117-M224)","v":0}]
[]
[null,null,null,null,null,{"$f":"\"lower of \"&P224&\" and SR_band (\"&DOLLAR(SR_band,0)&\")\"","v":"lower of c17.38.2d and SR_band (£5,000)"},null,null,null,null,null,null,null,null,null,null,{"$f":"\"lower of \"&E227&\" and (SR_band (\"&DOLLAR(SR_band,0)&\") minus \"&P221&\")\"","v":"lower of c17.38.2e and (SR_band (£5,000) minus c17.38.2b)"}]
[null,null,"Savings Max SR_band",null,{"$f":"A69","v":"c17.38.2e"},{"$f":"MIN(Q224,SR_band)","v":0},null,null,null,null,null,null,null,null,null,{"$f":"A70","v":"c17.38.2f"},{"$f":"MAX(0,MIN(F227,(SR_band)-Q221))","v":0}]
[]
[null,null,null,null,null,null,null,null,null,null,null,null,null,null,null,null,{"$f":"\"lower of \"&P120&\" and \"&P227","v":"lower of c17.22e2 and c17.38.2f"}]
[null,null,null,null,null,null,null,null,null,null,null,null,null,null,"Savings in SR_band",{"$f":"A71","v":"c17.38.2g"},{"$f":"MIN(Q120,Q227)","v":0}]
[]
[null,null,null,null,null,null,null,null,null,null,null,null,null,null,null,null,{"$f":"\"(\"&'Divs (c3)'!G87&\" + \"&L101&\") minus \"&E101","v":"(c3.21 + c17.22) minus c17.21"}]
[null,null,null,null,null,null,null,null,null,null,null,null,null,null,null,{"$f":"A72","v":"c17.38.2ga"},{"$f":"MAX(0,(('Divs (c3)'!H87+'TSR (c17)'!M101)-'TSR (c17)'!F101))","v":0}]
[]
[null,null,null,null,null,null,null,null,null,null,null,null,null,null,null,null,{"$f":"\"if \"&P233&\" minus \"&E214&\" > AHR_band (\"&DOLLAR(AHR_band,0)&\") + \"&E63","v":"if c17.38.2ga minus c17.38.1 > AHR_band (£125,140) + c17.11"}]
[null,null,null,null,null,null,null,null,null,null,null,null,null,null,null,null,{"$f":"P244&\" = PSA_AHR (\"&DOLLAR(PSA_AHR,0)&\")\"","v":"c17.38.2gb = PSA_AHR (£0)"}]
[null,null,null,null,null,null,null,null,null,null,null,null,null,null,null,null,"else"]
[null,null,null,null,null,null,null,null,null,null,null,null,null,null,null,null,{"$f":"\"if \"&P233&\" minus \"&E214&\" > BR_band (\"&DOLLAR(BR_band,0)&\") + \"&E63","v":"if c17.38.2ga minus c17.38.1 > BR_band (£37,700) + c17.11"}]
[null,null,null,null,null,null,null,null,null,null,null,null,null,null,null,null,{"$f":"P244&\" = PSA_HR (\"&DOLLAR(PSA_HR,0)&\")\"","v":"c17.38.2gb = PSA_HR (£500)"}]
[null,null,null,null,null,null,null,null,null,null,null,null,null,null,null,null,"else"]
[null,null,null,null,null,null,null,null,null,null,null,null,null,null,null,null,{"$f":"P244&\" = PSA_BR (\"&DOLLAR(PSA_BR,0)&\")\"","v":"c17.38.2gb = PSA_BR (£1,000)"}]
[null,null,null,null,null,null,null,null,null,null,null,null,null,null,null,null,"end if"]
[null,null,null,null,null,null,null,null,null,null,null,null,null,null,null,null,"end if"]
[null,null,null,null,null,null,null,null,null,null,null,null,null,null,null,{"$f":"A73","v":"c17.38.2gb"},{"$f":"IF(Q233-F214>AHR_band+F63,PSA_AHR,IF(Q233-F214>BR_band+F63,PSA_HR,PSA_BR))","v":1000}]
[]
[null,null,null,null,null,null,null,null,null,null,null,null,null,null,null,null,{"$f":"\"lower of (\"&P224&\" minus \"&P227&\") and \"&P244","v":"lower of (c17.38.2d minus c17.38.2f) and c17.38.2gb"}]
[null,null,null,null,null,null,null,null,null,null,null,null,null,null,"Savings Max SNil_band",{"$f":"A74","v":"c17.38.2h"},{"$f":"MAX(0,MIN(Q224-Q227,Q244))","v":0}]
[]
[null,null,null,null,null,null,null,null,null,null,null,null,{"$f":"L224&\" minus \"&P117","v":"c17.38.2c minus c17.22e"},null,null,null,{"$f":"P126&\" minus \"&L250","v":"c17.22h minus c17.38.2i"}]
[null,null,"Dividends",null,null,null,null,null,null,null,null,{"$f":"A75","v":"c17.38.2i"},{"$f":"MAX(0,M224-Q117)","v":48767},null,null,{"$f":"A76","v":"c17.38.2j"},{"$f":"MAX(0,Q126-M250)","v":0}]
[]
[null,null,null,null,null,null,null,null,null,null,null,null,null,null,null,null,{"$f":"P221&\" + \"&P224&\" + \"&P250","v":"c17.38.2b + c17.38.2d + c17.38.2j"}]
[null,null,"Taxable",null,null,null,null,null,null,null,null,null,null,null,null,{"$f":"A77","v":"c17.38.3"},{"$f":"Q221+Q224+Q250","v":0}]
[]
[null,null,null,null,null,null,null,null,null,null,null,null,{"$f":"E218&\" minus (\"&E114&\" + \"&E117&\" + \"&E126&\")\"","v":"c17.38.2 minus (c17.22a + c17.22c + c17.22f)"}]
[null,null,"Allowances Available",null,null,null,null,null,null,null,null,{"$f":"A78","v":"c17.38.4"},{"$f":"MAX(0,F218-(F114+F117+F126))","v":61337}]
[]
[null,null,null,null,null,null,null,null,null,null,null,null,null,null,null,null,{"$f":"L101&\" minus \"&L256","v":"c17.22 minus c17.38.4"}]
[null,null,"Chargeable Event Gains ",null,null,null,null,null,null,null,null,null,null,null,null,{"$f":"A79","v":"c17.38a"},{"$f":"MAX(0,M101-M256)","v":0}]
[]
[null,null,null,null,null,{"$f":"\"lower of \"&P259&\" and SR_band (\"&DOLLAR(SR_band,0)&\")\"","v":"lower of c17.38a and SR_band (£5,000)"}]
[null,null,null,null,{"$f":"A80","v":"c17.38a1"},{"$f":"MIN(Q259,SR_band)","v":0}]
[]
[null,null,null,null,null,"Set to zero"]
[null,null,"SR_band",null,{"$f":"A81","v":"c17.38b"},0]
[]
[null,null,null,null,null,{"$f":"\"lower of \"&E262&\" and (SR_band (\"&DOLLAR(SR_band,0)&\") minus \"&P253&\")\"","v":"lower of c17.38a1 and (SR_band (£5,000) minus c17.38.3)"},null,null,null,null,null,null,{"$f":"E268&\" × SR_rate (\"&SR_rate*100&\"%)\"","v":"c17.38c × SR_rate (0%)"}]
[null,null,"Gains in SR_band",null,{"$f":"A82","v":"c17.38c"},{"$f":"MAX(0,MIN(F262,(SR_band-Q253)))","v":0},null,null,null,null,null,{"$f":"A83","v":"c17.38d"},{"$f":"TRUNC(F268*SR_rate,2)","v":0},"pdown"]
[]
[null,null,null,null,null,"Set to zero"]
[null,null,null,null,{"$f":"A84","v":"c17.38d1"},0]
[null,null,null,null,null,{"$f":"\"lower of (\"&P259&\" minus \"&E268&\") and\"","v":"lower of (c17.38a minus c17.38c) and"}]
[null,null,null,null,null,{"$f":"\"(\"&P244&\" minus \"&P247&\")\"","v":"(c17.38.2gb minus c17.38.2h)"},null,null,null,null,null,null,{"$f":"E274&\" × SNil_rate (\"&SNil_rate*100&\"%)\"","v":"c17.38e × SNil_rate (0%)"}]
[null,null,"Gains in Nil_band",null,{"$f":"A85","v":"c17.38e"},{"$f":"MIN(MAX(0,Q259-F268),MAX(0,Q244-Q247))","v":0},null,null,null,null,null,{"$f":"A86","v":"c17.38f"},{"$f":"TRUNC(F274*SNil_rate,2)","v":0},"pdown"]
[]
[null,null,null,null,null,{"$f":"\"lower of \"&P253&\" and \"&L63","v":"lower of c17.38.3 and c17.12"}]
[null,null,"BR_band used by other income",null,{"$f":"A87","v":"c17.38g"},{"$f":"MIN(Q253,M63)","v":0}]
[null,null,null,null,null,{"$f":"\"lower of (\"&P259&\" minus (\"&E268&\" + \"&E274&\")) and\"","v":"lower of (c17.38a minus (c17.38c + c17.38e)) and"}]
[null,null,null,null,null,{"$f":"\"(\"&L63&\" minus (\"&E268&\" + \"&E274&\" + \"&E277&\"))\"","v":"(c17.12 minus (c17.38c + c17.38e + c17.38g))"},null,null,null,null,null,null,{"$f":"E280&\" × BR_rate (\"&BR_rate*100&\"%)\"","v":"c17.38h × BR_rate (20%)"}]
[null,null,"Gains in BR_band",null,{"$f":"A88","v":"c17.38h"},{"$f":"MIN(MAX(0,Q259-(F268+F274)),MAX(0,M63-(F268+F274+F277)))","v":0},null,null,null,null,null,{"$f":"A89","v":"c17.38i"},{"$f":"TRUNC(F280*BR_rate,2)","v":0},"pdown"]
[]
[null,null,null,null,null,{"$f":"P253&\" minus \"&E277","v":"c17.38.3 minus c17.38g"}]
[null,null,"HR_band used by other income",null,{"$f":"A90","v":"c17.38j"},{"$f":"MAX(0,Q253-F277)","v":0}]
[null,null,null,null,null,{"$f":"\"lower of (\"&P259&\" minus (\"&E268&\" + \"&E274&\" + \"&E280&\")) and\"","v":"lower of (c17.38a minus (c17.38c + c17.38e + c17.38h)) and"}]
[null,null,null,null,null,{"$f":"\"(HR_band (\"&DOLLAR(HR_band,0)&\") minus \"&E283&\")\"","v":"(HR_band (£87,440) minus c17.38j)"},null,null,null,null,null,null,{"$f":"E286&\" × HR_rate (\"&HR_rate*100&\"%)\"","v":"c17.39 × HR_rate (40%)"}]
[null,null,"Gains in HR_band",null,{"$f":"A91","v":"c17.39"},{"$f":"MAX(0,MIN(Q259-(F268+F274+F280),HR_band-F283))","v":0},null,null,null,null,null,{"$f":"A92","v":"c17.40"},{"$f":"TRUNC(F286*HR_rate,2)","v":0},"pdown"]
[null,null,null,null,null,{"$f":"P259&\" minus\"","v":"c17.38a minus"}]
[null,null,null,null,null,{"$f":"\"(\"&E268&\" + \"&E274&\" + \"&E280&\" + \"&E286&\")\"","v":"(c17.38c + c17.38e + c17.38h + c17.39)"},null,null,null,null,null,null,{"$f":"E289&\" × AHR_rate (\"&AHR_rate*100&\"%)\"","v":"c17.41 × AHR_rate (45%)"}]
[null,null,"Gains in additional rate band",null,{"$f":"A93","v":"c17.41"},{"$f":"MAX(0,Q259-(F268+F274+F280+F286))","v":0},null,null,null,null,null,{"$f":"A94","v":"c17.42"},{"$f":"TRUNC(F289*AHR_rate,2)","v":0},"pdown"]
[]
[null,{"$f":"\"If \"&E289&\" is equal to \"&L101&\" no Top Slicing Relief is due\"","v":"If c17.41 is equal to c17.22 no Top Slicing Relief is due"}]
[null,{"$f":"\"set \"&L296&\" to \"&L308&\" to 0 (zero)\"","v":"set c17.43 to c17.48 to 0 (zero)"}]
[null,"else"]
[null,{"$f":"\"calculate \"&L296&\" to \"&L308","v":"calculate c17.43 to c17.48"}]
[null,null,null,null,null,null,null,null,null,null,null,null,{"$f":"L268&\" + \"&L274&\" + \"&L280&\" + \"&L286&\" + \"&L289","v":"c17.38d + c17.38f + c17.38i + c17.40 + c17.42"}]
[null,null,null,null,null,null,null,null,null,null,null,{"$f":"A95","v":"c17.43"},{"$f":"IF(F289=M101,0,IF(F192=0,0,M268+M274+M280+M286+M289))","v":0}]
[]
[null,null,"minus",null,null,null,null,null,null,null,null,null,{"$f":"P259&\" × BR_rate (\"&BR_rate*100&\"%)\"","v":"c17.38a × BR_rate (20%)"}]
[null,null,"Basic rate liability",null,null,null,null,null,null,null,null,{"$f":"A96","v":"c17.44"},{"$f":"IF(F289=M101,0,IF(F192=0,0,TRUNC(Q259*BR_rate,2)))","v":0},"pdown"]
[null,null,null,null,{"$f":"\"If \"&E101&\" divided by \"&L101&\" >1\"","v":"If c17.21 divided by c17.22 >1"}]
[null,null,null,null,{"$f":"E305&\" = \"&E101&\" divided by \"&L101","v":"c17.46 = c17.21 divided by c17.22"},null,null,null,null,null,null,null,{"$f":"L296&\" minus \"&L299","v":"c17.43 minus c17.44"}]
[null,null,null,null,"else",null,null,null,null,null,"for 1 year",{"$f":"A97","v":"c17.45"},{"$f":"IF(F289=M101,0,IF(F192=0,0,MAX(0,M296-M299)))","v":0}]
[null,null,null,null,{"$f":"E305&\" = 1\"","v":"c17.46 = 1"}]
[null,null,null,null,"End If",null,null,null,null,null,null,null,{"$f":"L302&\" × \"&E305","v":"c17.45 × c17.46"}]
[null,null,null,null,{"$f":"A98","v":"c17.46"},{"$f":"IF(F289=M101,0,IF(F192=0,0,IF(M101>0,TRUNC(F101/M101,4),1)))","v":0},"4dp down",null,null,null,"for all years",{"$f":"A99","v":"c17.47"},{"$f":"IF(F289=M101,0,IF(F192=0,0,TRUNC(M302*F305,2)))","v":0},"pdown"]
[]
[null,null,null,null,null,null,null,null,null,null,null,null,{"$f":"P171&\" minus \"&L305","v":"c17.31 minus c17.47"}]
[null,null,null,"Top Slicing Relief Due",null,null,null,null,null,null,null,{"$f":"A100","v":"c17.48"},{"$f":"IF(OR(F289=M101,F192=0,box_NRD1),0,MAX(0,Q171-M305))","v":0}]
[null,null,null,null,null,null,null,null,null,null,null,null,{"$f":"\"copy to box \"&'Tax adj (c9)'!I11","v":"copy to box c9.3"}]
[null,"end if"]
[null,"end if"]
[null,"end if"]
[null,"else"]
[null,{"$f":"L37&\" to \"&L308&\" = 0 (zero)\"","v":"c17.1 to c17.48 = 0 (zero)"}]
[null,"end if"]

{"sheet":"CG (c18)","index":74,"n_rows":195,"n_cols":29,"rows_kept":195,"cut":false,"hidden":true,"merged":[]}
["c18.1","Calculate Capital Gains Tax Due"]
["c18.1a",null,null,"If any box in this stage is negative substitute zero, unless otherwise stated"]
["c18.2"]
["c18.2a"]
["c18.3"]
["c18.4"]
["c18.4.1"]
["c18.4.2"]
["c18.4.3",{"$f":"\"If boxes ((\"&CGT&CGT!C4&\" + \"&CGT&CGT!C13&\" + \"&CGT&CGT!C18&\" + \"&CGT&CGT!C26&\" + \"&CGT&CGT!C36&\" + \"&CGT&CGT!C43&\") minus ((\"&CGT&CGT!C10&\" + \"&CGT&CGT!C21&\" + \"&CGT&CGT!G26&\" + \"&CGT&CGT!G36&\" + \"&CGT&CGT!C46&\") minus (\"&CGT&CGT!C49&\" + \"&CGT&CGT!G52&\"))\"&\" + \"&CGT&CGT!P18&\" + ((\"&CGT&CGT!L26&\" + \"&CGT&CGT!L34&\") minus \"&CGT&CGT!P34&\") is greater than zero) or (box \"&CGT&CGT!L18&\" is not zero or null) or boxes \"&CGT&CGT!G4&\" + \"&CGT&CGT!G10&\" + \"&CGT&CGT!G18&\" + \"&CGT&CGT!G32&\" + \"&CGT&CGT!G39&\" + \"&CGT&CGT!G46&\" + \"&CGT&CGT!P30&\" is greater than zero\"","v":"If boxes ((CGT6 + CGT13B + CGT13.4 + CGT17 + CGT26 + CGT34) minus ((CGT7 + CGT13.5 + CGT19 + CGT27 + CGT35) minus (CGT41 + CGT43)) + CGT52 + ((CGT52.1 + CGT52.2) minus CGT52.5) is greater than zero) or (box CGT51 is not zero or null) or boxes CGT10 + CGT12 + CGT13.8 + CGT22 + CGT30 + CGT38 + CGT52.4 is greater than zero"}]
["c18.4.4",{"$f":"\"Calculate \"&C17&\" to \"&AA191","v":"Calculate c18.1 to c18.62"}]
["c18.4.5"]
["c18.4.6",null,null,null,null,null,null,null,null,null,null,"NRCGT",null,null,null,"NRCGT"]
["c18.4.7",null,null,"Carried Interest",null,null,null,"Residential Property",null,null,null,"UK residential properties",null,null,null,"UK non-residential properties",null,null,null,"Other gains and Cryptoassets",null,null,null,"ER gains "]
["c18.4.8"]
["c18.4.9",null,null,null,null,null,null,null,null,null,null,null,null,null,null,null,null,null,null,{"$f":"CGT&CGT!C18&\" + (\"&CGT&CGT!C26&\" minus \"&CGT&CGT!P15&\") +\"","v":"CGT13.4 + (CGT17 minus CGT50) +"}]
["c18.4.10",null,null,{"$f":"\"From \"&CGT&CGT!C13","v":"From CGT13B"},null,null,null,{"$f":"\"from \"&CGT&CGT!C4","v":"from CGT6"},null,null,null,{"$f":"\"From \"&CGT&CGT!L26","v":"From CGT52.1"},null,null,null,{"$f":"\"From \"&CGT&CGT!L34","v":"From CGT52.2"},null,null,null,{"$f":"CGT&CGT!C36&\" + (\"&CGT&CGT!C43&\" minus \"&CGT&CGT!P11&\")\"","v":"CGT26 + (CGT34 minus CGT49)"},null,null,null,{"$f":"CGT&CGT!P11&\" + \"&CGT&CGT!P15","v":"CGT49 + CGT50"}]
[null,"Total Gains",{"$f":"A1","v":"c18.1"},{"$f":"TRUNC(CGT!D14,0)","v":0},"£down",null,{"$f":"A2","v":"c18.1a"},{"$f":"TRUNC(CGT!D5,0)","v":0},"£down","Total Gains",{"$f":"A3","v":"c18.2"},{"$f":"TRUNC(CGT!M27,0)","v":0},"£down",null,{"$f":"A4","v":"c18.2a"},{"$f":"TRUNC(CGT!M35,0)","v":0},"£down","Total Gains",{"$f":"A5","v":"c18.3"},{"$f":"MAX(0,(TRUNC(CGT!D19,0)+(TRUNC(CGT!D27,0)-TRUNC(CGT!Q16,0))+TRUNC(CGT!D37,0)+(TRUNC(CGT!D44,0)-TRUNC(CGT!Q12,0))))","v":0},"£down","Total Gains",{"$f":"A6","v":"c18.4"},{"$f":"TRUNC(CGT!Q12+CGT!Q16,0)","v":0},"£down"]
[]
[null,null,null,null,null,null,null,null,null,null,null,null,null,null,null,null,null,null,null,{"$f":"\"from \"&CGT&CGT!C29&\".0\"","v":"from CGT17.0"}]
[null,null,null,{"$f":"\"from \"&CGT&CGT!G13","v":"from CGT13C"},null,null,null,{"$f":"\"from \"&CGT&CGT!C7","v":"from CGT6.1"},null,null,null,null,null,null,null,null,null,null,{"$f":"A9","v":"c18.4.3"},{"$f":"TRUNC(CGT!D30+0.99,0)","v":0},"£up"]
[null,"Foreign gain claim",{"$f":"A7","v":"c18.4.1"},{"$f":"TRUNC(CGT!H14+0.99,0)","v":0},"£up",null,{"$f":"A8","v":"c18.4.2"},{"$f":"TRUNC(CGT!D8+0.99,0)","v":0},"£up"]
[null,null,null,null,null,null,null,null,null,null,null,null,null,null,null,null,null,null,null,{"$f":"\"from \"&CGT&CGT!C39","v":"from CGT26.1"}]
["c18.5",null,null,null,null,null,null,null,null,null,null,null,null,null,null,null,null,null,{"$f":"A10","v":"c18.4.4"},{"$f":"TRUNC(CGT!D40+0.99,0)","v":0},"£up"]
["c18.5a"]
["c18.6",null,null,null,null,null,null,null,null,null,null,null,null,null,null,null,null,null,null,{"$f":"\"from \"&CGT&CGT!G43","v":"from CGT34.1"}]
["c18.7",null,null,null,null,null,null,null,null,null,null,null,null,null,null,null,null,null,{"$f":"A11","v":"c18.4.5"},{"$f":"TRUNC(CGT!H44+0.99,0)","v":0},"£up"]
["c18.8"]
["c18.9"]
["c18.9a",null,null,null,null,null,null,null,null,null,null,null,null,null,null,null,null,null,null,null,null,null,null,{"$f":"\"(\"&S20&\" + \"&S23&\" + \"&S26&\") minus \"&S17","v":"(c18.4.3 + c18.4.4 + c18.4.5) minus c18.3"}]
["c18.10",null,null,null,null,null,null,null,null,null,null,null,null,null,null,null,null,null,null,null,null,null,{"$f":"A15","v":"c18.4.9"},{"$f":"MAX(0,(T20+T23+T26)-T17)","v":0}]
["c18.11"]
["c18.12",null,null,{"$f":"C17&\" minus \"&C21","v":"c18.1 minus c18.4.1"},null,null,null,{"$f":"G17&\" minus \"&G21","v":"c18.1a minus c18.4.2"},null,null,null,null,null,null,null,null,null,null,null,{"$f":"S17&\" minus (\"&S20&\" + \"&S23&\" + \"&S26&\")\"","v":"c18.3 minus (c18.4.3 + c18.4.4 + c18.4.5)"},null,null,null,{"$f":"W17&\" minus \"&W30","v":"c18.4 minus c18.4.9"}]
["c18.13","Total gains",{"$f":"A12","v":"c18.4.6"},{"$f":"MAX(0,D17-D21)","v":0},null,null,{"$f":"A13","v":"c18.4.7"},{"$f":"MAX(0,H17-H21)","v":0},null,null,null,null,null,null,null,null,null,null,{"$f":"A14","v":"c18.4.8"},{"$f":"MAX(0,T17-(T20+T23+T26))","v":0},null,null,{"$f":"A16","v":"c18.4.10"},{"$f":"MAX(0,X17-X30)","v":0}]
["c18.14"]
["c18.15",null,null,"Carried Interest",null,null,null,"Residential Property ",null,null,null,null,null,null,null,null,null,null,null,"Other gains ",null,null,null,"ER gains "]
["c18.16"]
["c18.16.1",null,null,{"$f":"\"from \"&CGT&CGT!L4","v":"from CGT45"},null,null,null,{"$f":"C38&\" minus \"&C33","v":"c18.5 minus c18.4.6"},null,null,null,"set to zero",null,null,null,null,null,null,null,{"$f":"C38&\" minus (\"&C33&\" + \"&G33&\")\"","v":"c18.5 minus (c18.4.6 + c18.4.7)"},null,null,null,{"$f":"C38&\" minus (\"&C33&\" + \"&G33&\" + \"&S33&\")\"","v":"c18.5 minus (c18.4.6 + c18.4.7 + c18.4.8)"}]
["c18.16a","Losses brought forward and used in-year",{"$f":"A23","v":"c18.5"},{"$f":"MAX(0,TRUNC(CGT!M5+0.99,0))","v":0},"£up",null,{"$f":"A24","v":"c18.5a"},{"$f":"MAX(0,D38-D33)","v":0},null,null,{"$f":"A25","v":"c18.6"},0,null,null,null,null,null,"Losses brought forward and used in-year",{"$f":"A26","v":"c18.7"},{"$f":"MAX(0,D38-(D33+H33))","v":0},null,"Losses brought forward and used in-year",{"$f":"A27","v":"c18.8"},{"$f":"MAX(0,D38-(D33+H33+T33))","v":0}]
["c18.16b"]
["c18.17",null,null,"Carried Interest",null,null,null,"Residential Property ",null,null,null,null,null,null,null,null,null,null,null,"Other gains ",null,null,null,"ER gains "]
["c18.18"]
["c18.19"]
["c18.19.1"]
["c18.19a"]
["c18.19b"]
["c18.20",null,null,{"$f":"C33&\" minus \"&C38","v":"c18.4.6 minus c18.5"},null,null,null,{"$f":"G33&\" minus \"&G38","v":"c18.4.7 minus c18.5a"},null,null,null,"set to zero",null,null,null,null,null,null,null,{"$f":"S33&\" minus \"&S38","v":"c18.4.8 minus c18.7"},null,null,null,{"$f":"W33&\" minus \"&W38","v":"c18.4.10 minus c18.8"}]
["c18.21","Gains after losses brought forward",{"$f":"A28","v":"c18.9"},{"$f":"MAX(0,D33-D38)","v":0},null,null,{"$f":"A29","v":"c18.9a"},{"$f":"MAX(0,H33-H38)","v":0},null,null,{"$f":"A30","v":"c18.10"},0,null,null,null,null,null,"Gains after losses brought forward",{"$f":"A31","v":"c18.11"},{"$f":"MAX(0,T33-T38)","v":0},null,"Gains after losses brought forward",{"$f":"A32","v":"c18.12"},{"$f":"MAX(0,X33-X38)","v":0}]
["c18.22"]
["c18.23"]
["c18.24"]
["c18.24.1"]
["c18.25",null,null,null,null,null,null,null,null,null,null,null,null," "]
["c18.26",null,null,{"$f":"\"CGT\"&CGT!C10&\" + \"&CGT&CGT!C21","v":"CGT7 + CGT13.5"}]
["c18.27","Losses in the year",{"$f":"A33","v":"c18.13"},{"$f":"TRUNC(CGT!D11+CGT!D22+0.99,0)","v":0},"£up"]
["c18.27.1"]
["c18.28",null,null,{"$f":"CGT&CGT!G26&\" + \"&CGT&CGT!G36&\" + \"","v":"CGT19 + CGT27 + "}]
["c18.29",null,null,{"$f":"\"(\"&CGT&CGT!C46&\" minus (\"&CGT&CGT!C49&\" + \"&CGT&CGT!G52&\"))\"","v":"(CGT35 minus (CGT41 + CGT43))"}]
["c18.30","Losses in the year",{"$f":"A34","v":"c18.14"},{"$f":"MAX(0,TRUNC(CGT!H27+0.99,0)+TRUNC(CGT!H37+0.99,0)+TRUNC(CGT!D47-(CGT!D50+CGT!H53)+0.99,0))","v":0},"£up"]
["c18.31"]
["c18.32",null,null,{"$f":"\"from \"&CGT&CGT!P4","v":"from CGT46"}]
["c18.33",{"$f":"\"Income losses of \"&tax_year&\" set against gains\"","v":"Income losses of 2025-26 set against gains"},{"$f":"A35","v":"c18.15"},{"$f":"MAX(0,TRUNC(CGT!Q5+0.99,0))","v":0},"£up"]
["c18.34"]
["c18.35",null,null,{"$f":"C54&\" + \"&C58&\" + \"&C61","v":"c18.13 + c18.14 + c18.15"},null,null,null,{"$f":"C64&\" minus \"&C47","v":"c18.16 minus c18.9"},null,null,null,{"$f":"\"From \"&CGT&CGT!P34","v":"From CGT52.5"},null,null,null,{"$f":"K64&\" minus \"&K17","v":"c18.16a minus c18.2"},null,null,null,{"$f":"C64&\" minus (\"&C47&\" + \"&G47&\")\"","v":"c18.16 minus (c18.9 + c18.9a)"},null,null,null,{"$f":"C64&\" minus (\"&C47&\" + \"&G47&\" + \"&S47&\")\"","v":"c18.16 minus (c18.9 + c18.9a + c18.11)"}]
["c18.36","Total Losses",{"$f":"A36","v":"c18.16"},{"$f":"MAX(0,D54+D58+D61)","v":0},null,null,{"$f":"A37","v":"c18.16.1"},{"$f":"MAX(0,D64-D47)","v":0},null,"Losses in the year",{"$f":"A38","v":"c18.16a"},{"$f":"MAX(0,TRUNC(CGT!Q35+0.99,0))","v":0},"£up","Losses in the year",{"$f":"A39","v":"c18.16b"},{"$f":"MAX(0,L64-L17)","v":0},null,"Total Losses",{"$f":"A40","v":"c18.17"},{"$f":"MAX(0,D64-(D47+H47))","v":0},null,"Total Losses",{"$f":"A41","v":"c18.18"},{"$f":"MAX(0,D64-(D47+H47+T47))","v":0}]
["c18.37"]
["c18.38",null,null,{"$f":"C47&\" minus \"&C64","v":"c18.9 minus c18.16"},null,null,null,{"$f":"G47&\" minus \"&G64","v":"c18.9a minus c18.16.1"},null,null,null,{"$f":"K17&\" minus \"&K64","v":"c18.2 minus c18.16a"},null,null,null,{"$f":"O17&\" minus \"&O64","v":"c18.2a minus c18.16b"},null,null,null,{"$f":"S47&\" minus \"&S64","v":"c18.11 minus c18.17"},null,null,null,{"$f":"W47&\" minus \"&W64","v":"c18.12 minus c18.18"}]
["c18.39","Gains after losses",{"$f":"A42","v":"c18.19"},{"$f":"MAX(0,D47-D64)","v":0},null,null,{"$f":"A43","v":"c18.19.1"},{"$f":"MAX(0,H47-H64)","v":0},null,"Gains after losses",{"$f":"A44","v":"c18.19a"},{"$f":"MAX(0,L17-L64)","v":0},null,"Gains after losses",{"$f":"A45","v":"c18.19b"},{"$f":"MAX(0,P17-P64)","v":0},null,"Gains after losses",{"$f":"A46","v":"c18.20"},{"$f":"MAX(0,T47-T64)","v":0},null,"Gains after losses",{"$f":"A47","v":"c18.21"},{"$f":"MAX(0,X47-X64)","v":0}]
["c18.40"]
["c18.41",null,null,null,null,null,null,null,null,null,null,null,null,null,null,null,null,null,null,"set to zero"]
["c18.42","Attributed gains",null,null,null,null,null,null,null,null,null,null,null,null,null,null,null,null,{"$f":"A48","v":"c18.22"},0,"£down"]
["c18.43"]
["c18.44",null,null,null,null,null,null,null,null,null,null,null,null,null,null,null,null,null,null,{"$f":"O67&\" + \"&S67","v":"c18.19b + c18.20"}]
["c18.45","Total gains after losses",null,null,null,null,null,null,null,null,null,null,null,null,null,null,null,null,{"$f":"A49","v":"c18.23"},{"$f":"P67+T67","v":0}]
["c18.45.1"]
["c18.45.2",null,{"$f":"\"If (\"&NRD!P10&\" = Y or \"&NRD!P11&\" = Y or \"&NRD!P18&\" = Y)\"","v":"If (box_NRD28 = Y or box_NRD29 = Y or box_NRD40 = Y)"}]
["c18.45.3",null,{"$f":"C80&\" = 0 (zero)\"","v":"c18.24 = 0 (zero)"}]
["c18.45.4",null,"Else"]
["c18.45.5",null,{"$f":"C80&\" = CG_exempt (\"&DOLLAR(CG_exempt,0)&\")\"","v":"c18.24 = CG_exempt (£3,000)"}]
["c18.46",null,"end if",null,null,null,null,{"$f":"C80&\" minus \"&C67","v":"c18.24 minus c18.19"},null,null,null,null,null,null,null,null,null,null,null,{"$f":"C80&\" minus (\"&C67&\" + \"&G67&\" + \"&K67&\")\"","v":"c18.24 minus (c18.19 + c18.19.1 + c18.19a)"},null,null,null,{"$f":"S80&\" minus \"&S73","v":"c18.25 minus c18.23"}]
["c18.47","Annual Exempt Amount",{"$f":"A50","v":"c18.24"},{"$f":"IF(FIG_claim_election,0,CG_exempt)","v":3000},null,null,{"$f":"A51","v":"c18.24.1"},{"$f":"MAX(0,D80-D67)","v":3000},null,null,null,null,null,null,null,null,null,null,{"$f":"A52","v":"c18.25"},{"$f":"MAX(0,D80-(D67+H67+L67))","v":3000},null,null,{"$f":"A53","v":"c18.26"},{"$f":"MAX(0,T80-T73)","v":3000}]
["c18.48"]
["c18.49",null,null,{"$f":"C67&\" minus \"&C80","v":"c18.19 minus c18.24"},null,null,null,{"$f":"\"(\"&G67&\" + \"&K67&\") minus \"&G80","v":"(c18.19.1 + c18.19a) minus c18.24.1"},null,null,null,null,null,null,null,null,null,null,null,{"$f":"S73&\" minus \"&S80","v":"c18.23 minus c18.25"},null,null,null,{"$f":"W67&\" minus \"&W80","v":"c18.21 minus c18.26"}]
["c18.50","Total gains after AEA and losses",{"$f":"A54","v":"c18.27"},{"$f":"MAX(0,D67-D80)","v":0},null,null,{"$f":"A55","v":"c18.27.1"},{"$f":"MAX(0,(H67+L67)-H80)","v":0},null,null,null,null,null,null,null,null,null,null,{"$f":"A56","v":"c18.28"},{"$f":"MAX(0,T73-T80)","v":0},null,null,{"$f":"A57","v":"c18.29"},{"$f":"MAX(0,X67-X80)","v":0}]
["c18.51"]
["c18.51a"]
["c18.52",{"$f":"\"Gains chargeable at \"&ER_CGT_rate*100&\"%\"","v":"Gains chargeable at 14%"}]
["c18.53",null,null,null,null,null,null,null,null,null,null,null,null,null,null,null,null,null,null,null,null,null,null,null,null,null,null,{"$f":"W83&\" × ER_CGT_rate (\"&(ER_CGT_rate)*100&\"%)\"","v":"c18.29 × ER_CGT_rate (14%)"}]
["c18.53a",null,null,null,null,null,null,null,null,null,null,null,null,null,null,null,null,null,null,null,null,null,null,null,null,null,{"$f":"A58","v":"c18.30"},{"$f":"TRUNC(X83*ER_CGT_rate,2)","v":0},"pdown"]
["c18.54"]
["c18.55"]
["c18.56"]
["c18.57",null,null,{"$f":"\"from \"&'Taxable (c5)'!BA338","v":"from c5.86"}]
["c18.58","Taxable income",{"$f":"A59","v":"c18.31"},{"$f":"'Taxable (c5)'!BB338","v":0}]
["c18.59"]
["c18.60",null,{"$f":"\"If (\"&FOR&FOR!K42&\" + \"&AOI&AOI!C13&\" + \"&AOI&AOI!C19&\" + \"&AOI&AOI!G13&\") > 0\"","v":"If (FOR43 + AOI4 + AOI6 + AOI8) > 0"}]
["c18.61",null,{"$f":"C100&\" = \"&'TSR (c17)'!L101","v":"c18.32 = c17.22"}]
["c18.62",null,"Else"]
[null,null,{"$f":"C100&\" = 0 (zero)\"","v":"c18.32 = 0 (zero)"}]
[null,null,"end if",null,null,null,null,null,null,null,null,null,null,null,null,null,null,null,null,{"$f":"C93&\" + \"&C100","v":"c18.31 + c18.32"}]
[null,"Annualised Gain",{"$f":"A60","v":"c18.32"},{"$f":"'TSR (c17)'!M101","v":0},null,null,null,null,null,null,null,null,null,null,null,null,null,null,{"$f":"A61","v":"c18.33"},{"$f":"D93+D100","v":0}]
[]
[null,null,{"$f":"\"If (\"&FOR&FOR!K42&\" + \"&AOI&AOI!C13&\" + \"&AOI&AOI!C19&\" + \"&AOI&AOI!G13&\") > 0\"","v":"If (FOR43 + AOI4 + AOI6 + AOI8) > 0"}]
[null,null,{"$f":"C107&\" = \"&'TSR (c17)'!E101","v":"c18.34 = c17.21"}]
[null,null,"Else"]
[null,null,{"$f":"C107&\" = 0 (zero)\"","v":"c18.34 = 0 (zero)"}]
[null,null,"end if",null,null,null,null,null,null,null,null,null,null,null,null,null,null,null,null,{"$f":"S100&\" minus \"&C107","v":"c18.33 minus c18.34"}]
[null,"Chargeable Event Gains",{"$f":"A62","v":"c18.34"},{"$f":"'TSR (c17)'!F101","v":0},null,null,null,null,null,null,null,null,null,null,null,null,null,null,{"$f":"A63","v":"c18.35"},{"$f":"MAX(0,T100-D107)","v":0}]
[]
[null,null,null,{"$f":"\"From \"&'CDR (c7)'!E5","v":"From c7.1"},null,null,null,null,null,null,null,null,null,null,null,null,null,null,null,{"$f":"S107&\" minus \"&C110","v":"c18.35 minus c18.36"}]
[null,"Deficiency Relief",{"$f":"A64","v":"c18.36"},{"$f":"'CDR (c7)'!F5","v":0},null,null,null,null,null,null,null,null,null,null,null,null,null,"Annualised Gain",{"$f":"A65","v":"c18.37"},{"$f":"MAX(0,T107-D110)","v":0}]
[]
[null,null,null,null,null,null,null,null,null,null,null,null,null,null,null,null,null,null,null,{"$f":"\"BR_band (\"&DOLLAR(BR_band,0)&\") + \"&'Deductions (c4)'!H383","v":"BR_band (£37,700) + c4.59"}]
[null,"Basic Rate Band",null,null,null,null,null,null,null,null,null,null,null,null,null,null,null,null,{"$f":"A66","v":"c18.38"},{"$f":"BR_band+'Deductions (c4)'!I383","v":37700}]
[]
[null,null,null,null,null,null,null,null,null,null,null,null,null,null,null,null,null,null,null,{"$f":"S113&\" minus \"&S110","v":"c18.38 minus c18.37"}]
[null,"Basic Rate Band available to CG",null,null,null,null,null,null,null,null,null,null,null,null,null,null,null,null,{"$f":"A67","v":"c18.39"},{"$f":"MAX(0,T113-T110)","v":37700}]
[]
[null,null,null,null,null,null,null,null,null,null,null,null,null,null,null,null,null,null,null,{"$f":"S116&\" minus \"&W83","v":"c18.39 minus c18.29"}]
[null,"Available unused Basic Rate Band",null,null,null,null,null,null,null,null,null,null,null,null,null,null,null,null,{"$f":"A68","v":"c18.40"},{"$f":"MAX(0,T116-X83)","v":37700}]
[]
[null,null,null,null,null,null,null,null,null,null,null,null,null,null,null,null,null,null,null,"Set to zero",null,null,null,null,null,null,null,"Set to zero"]
[null,{"$f":"\"Carried interest chargeable at \"&Lower_CGT_rate_CI*100&\"%\"","v":"Carried interest chargeable at 18%"},null,null,null,null,null,null,null,null,null,null,null,null,null,null,null,null,{"$f":"A69","v":"c18.41"},0,null,null,null,null,null,null,{"$f":"A70","v":"c18.42"},0,"pdown"]
[]
[null,null,null,null,null,null,null,null,null,null,null,null,null,null,null,null,null,null,null,{"$f":"C83","v":"c18.27"},null,null,null,null,null,null,null,{"$f":"S125&\" × CI_CGT_rate (\"&(CI_CGT_rate)*100&\"%)\"","v":"c18.43 × CI_CGT_rate (32%)"}]
[null,{"$f":"\"Carried interest chargeable at \"&CI_CGT_rate*100&\"%\"","v":"Carried interest chargeable at 32%"},null,null,null,null,null,null,null,null,null,null,null,null,null,null,null,null,{"$f":"A71","v":"c18.43"},{"$f":"D83","v":0},null,null,null,null,null,null,{"$f":"A72","v":"c18.44"},{"$f":"TRUNC(T125*CI_CGT_rate,2)","v":0},"pdown"]
[]
[null,null,null,null,null,null,null,null,null,null,null,null,null,null,null,null,null,null,null,"Set to zero"]
[null,"Available Basic Rate Band after Carried interest",null,null,null,null,null,null,null,null,null,null,null,null,null,null,null,null,{"$f":"A73","v":"c18.45"},0]
[]
[null,null,null,null,null,null,null,null,null,null,null,null,null,null,null,null,null,null,null,{"$f":"\"Lower of \"&G83&\" and \"&S119","v":"Lower of c18.27.1 and c18.40"},null,null,null,null,null,null,null,{"$f":"S131&\" × Lower_CGT_rate_RP (\"&(Lower_CGT_rate_RP)*100&\"%)\"","v":"c18.45.1 × Lower_CGT_rate_RP (18%)"}]
[null,{"$f":"\"Residential property gains chargeable at \"&Lower_CGT_rate_RP*100&\"%\"","v":"Residential property gains chargeable at 18%"},null,null,null,null,null,null,null,null,null,null,null,null,null,null,null,null,{"$f":"A74","v":"c18.45.1"},{"$f":"MIN(H83,T119)","v":0},null,null,null,null,null,null,{"$f":"A75","v":"c18.45.2"},{"$f":"TRUNC(T131*Lower_CGT_rate_RP,2)","v":0},"pdown"]
[]
[null,null,null,null,null,null,null,null,null,null,null,null,null,null,null,null,null,null,null,{"$f":"G83&\" minus \"&S131","v":"c18.27.1 minus c18.45.1"},null,null,null,null,null,null,null,{"$f":"S134&\" × Upper_CGT_rate_RP (\"&(Upper_CGT_rate_RP)*100&\"%)\"","v":"c18.45.3 × Upper_CGT_rate_RP (24%)"}]
[null,{"$f":"\"Residential property gains chargeable at \"&Upper_CGT_rate_RP*100&\"%\"","v":"Residential property gains chargeable at 24%"},null,null,null,null,null,null,null,null,null,null,null,null,null,null,null,null,{"$f":"A76","v":"c18.45.3"},{"$f":"MAX(0,H83-T131)","v":0},null,null,null,null,null,null,{"$f":"A77","v":"c18.45.4"},{"$f":"TRUNC(T134*Upper_CGT_rate_RP,2)","v":0},"pdown"]
[]
[null,null,null,null,null,null,null,null,null,null,null,null,null,null,null,null,null,null,null,{"$f":"S119&\" minus \"&G83","v":"c18.40 minus c18.27.1"}]
[null,"Available Basic Rate Band after residential property",null,null,null,null,null,null,null,null,null,null,null,null,null,null,null,null,{"$f":"A78","v":"c18.45.5"},{"$f":"MAX(0,T119-H83)","v":37700}]
[]
[null,null,null,null,null,null,null,null,null,null,null,null,null,null,null,null,null,null,null,{"$f":"\"Lower of \"&S83&\" and \"&S137","v":"Lower of c18.28 and c18.45.5"},null,null,null,null,null,null,null,{"$f":"S140&\" × Lower_CGT_rate (\"&(Lower_CGT_rate)*100&\"%)\"","v":"c18.46 × Lower_CGT_rate (18%)"}]
[null,{"$f":"\"Gains chargeable at \"&Lower_CGT_rate*100&\"%\"","v":"Gains chargeable at 18%"},null,null,null,null,null,null,null,null,null,null,null,null,null,null,null,null,{"$f":"A79","v":"c18.46"},{"$f":"MIN(T83,T137)","v":0},null,null,null,null,null,null,{"$f":"A80","v":"c18.47"},{"$f":"TRUNC(T140*Lower_CGT_rate,2)","v":0},"pdown"]
[]
[null,null,null,null,null,null,null,null,null,null,null,null,null,null,null,null,null,null,null,{"$f":"S83&\" minus \"&S140","v":"c18.28 minus c18.46"},null,null,null,null,null,null,null,{"$f":"S143&\" × Upper_CGT_rate (\"&(Upper_CGT_rate)*100&\"%)\"","v":"c18.48 × Upper_CGT_rate (24%)"}]
[null,{"$f":"\"Gains chargeable at \"&Upper_CGT_rate*100&\"%\"","v":"Gains chargeable at 24%"},null,null,null,null,null,null,null,null,null,null,null,null,null,null,null,null,{"$f":"A81","v":"c18.48"},{"$f":"MAX(0,T83-T140)","v":0},null,null,null,null,null,null,{"$f":"A82","v":"c18.49"},{"$f":"TRUNC(T143*Upper_CGT_rate,2)","v":0},"pdown"]
[]
[null,null,null,null,null,null,null,null,null,null,null,null,null,null,null,null,null,null,null,null,null,null,null,null,null,null,null,{"$f":"AA88&\" + \"&AA125&\" + \"&AA131&\" + \"&AA134&\" + \"&AA140&\" + \"&AA143","v":"c18.30 + c18.44 + c18.45.2 + c18.45.4 + c18.47 + c18.49"}]
[null,"Total CGT charged",null,null,null,null,null,null,null,null,null,null,null,null,null,null,null,null,null,null,null,null,null,null,null,null,{"$f":"A83","v":"c18.50"},{"$f":"AB88+AB125+AB131+AB134+AB140+AB143","v":0}]
[]
[null,null,null,null,null,null,null,null,null,null,null,null,null,null,null,null,null,null,null,null,null,null,null,null,null,null,null,{"$f":"\"from \"&CGT&CGT!L18","v":"from CGT51"}]
[null,"CGT adjustments",null,null,null,null,null,null,null,null,null,null,null,null,null,null,null,null,null,null,null,null,null,null,null,null,{"$f":"A84","v":"c18.51"},{"$f":"CGT!M19","v":0},"This box can be negative"]
[]
[null,null,null,null,null,null,null,null,null,null,null,null,null,null,null,null,null,null,null,null,null,null,null,null,null,null,null,{"$f":"\"from \"&CGT&CGT!P18","v":"from CGT52"}]
[null,"Additional liability from Trusts",null,null,null,null,null,null,null,null,null,null,null,null,null,null,null,null,null,null,null,null,null,null,null,null,{"$f":"A85","v":"c18.51a"},{"$f":"TRUNC(CGT!Q19,0)","v":0},"£down"]
[]
[null,null,null,null,null,null,null,null,null,null,null,null,null,null,null,null,null,null,null,null,null,null,null,null,null,null,null,{"$f":"AA146&\" + \"&AA149&\" + \"&AA152","v":"c18.50 + c18.51 + c18.51a"}]
[null,"Revised CGT charged",null,null,null,null,null,null,null,null,null,null,null,null,null,null,null,null,null,null,null,null,null,null,null,null,{"$f":"A86","v":"c18.52"},{"$f":"MAX(0,AB146+AB149+AB152)","v":0}]
[null,null,null,null,null,null,null,null,null,null,null,null,null,null,null,null,null,null,null,null,null,null,null,null,null,null,null,{"$f":"\"copy to \"&'Tax adj (c9)'!A43","v":"copy to c9.35"}]
[]
[null,null,null,null,null,null,null,null,null,null,null,null,null,null,null,null,null,null,null,null,null,null,null,null,null,null,null,{"$f":"\"from \"&FOR&FOR!K27","v":"from FOR39"}]
[null,"Foreign Tax Credit Relief",null,null,null,null,null,null,null,null,null,null,null,null,null,null,null,null,null,null,null,null,null,null,null,null,{"$f":"A87","v":"c18.53"},{"$f":"TRUNC(FOR!L28+0.99,0)","v":0},"£up"]
[]
[null,null,null,null,null,null,null,null,null,null,null,null,null,null,null,null,null,null,null,null,null,null,null,null,null,null,null,{"$f":"'Tax adj (c9)'!I205&\" minus \"&'Tax adj (c9)'!I208","v":"c9.41b minus c9.41c"}]
[null,"Total Credit is not be more than",null,null,null,null,null,null,null,null,null,null,null,null,null,null,null,null,null,null,null,null,null,null,null,null,{"$f":"A88","v":"c18.53a"},{"$f":"MAX(0,'Tax adj (c9)'!J205-'Tax adj (c9)'!J208)","v":0}]
[null,"s41 TIOPA 2010"]
[null,null,null,null,null,null,null,null,null,null,null,null,null,null,null,null,null,null,null,null,null,null,null,null,null,null,null,{"$f":"\"lower of \"&AA159&\" and \"&AA162","v":"lower of c18.53 and c18.53a"}]
[null,"Total Foreign Tax Credit Relief",null,null,null,null,null,null,null,null,null,null,null,null,null,null,null,null,null,null,null,null,null,null,null,null,{"$f":"A89","v":"c18.54"},{"$f":"MIN(AB159,AB162)","v":0}]
[]
[null,null,null,null,null,null,null,null,null,null,null,null,null,null,null,null,null,null,null,null,null,null,null,null,null,null,null,{"$f":"AA155&\" minus \"&AA165","v":"c18.52 minus c18.54"}]
[null,"CGT minus FTCR",null,null,null,null,null,null,null,null,null,null,null,null,null,null,null,null,null,null,null,null,null,null,null,null,{"$f":"A90","v":"c18.55"},{"$f":"MAX(0,AB155-AB165)","v":0}]
[]
[null,null,null,null,null,null,null,null,null,null,null,null,null,null,null,null,null,null,null,null,null,null,null,null,null,null,null,{"$f":"\"From \"&CGT&CGT!P30","v":"From CGT52.4"}]
[null,"Tax on NRCGT Gains already charged",null,null,null,null,null,null,null,null,null,null,null,null,null,null,null,null,null,null,null,null,null,null,null,null,{"$f":"A91","v":"c18.56"},{"$f":"TRUNC(CGT!Q31+0.99,0)","v":0},"£up"]
[]
[null,null,null,null,null,null,null,null,null,null,null,null,null,null,null,null,null,null,null,null,null,null,null,null,null,null,null,{"$f":"CGT&CGT!G4&\" + \"&CGT&CGT!G10&\" + \"&CGT&CGT!G18&\" + \"&CGT&CGT!G32&\" + \"&CGT&CGT!G39&\" + \"&CGT&CGT!G46","v":"CGT10 + CGT12 + CGT13.8 + CGT22 + CGT30 + CGT38"}]
[null,"Tax on RTT Gains already charged",null,null,null,null,null,null,null,null,null,null,null,null,null,null,null,null,null,null,null,null,null,null,null,null,{"$f":"A92","v":"c18.57"},{"$f":"TRUNC(CGT!H5+0.99,0)+TRUNC(CGT!H11+0.99,0)+TRUNC(CGT!H19+0.99,0)+TRUNC(CGT!H33+0.99,0)+TRUNC(CGT!H40+0.99,0)+TRUNC(CGT!H47+0.99,0)","v":0},"£up"]
[]
[null,null,null,null,null,null,null,null,null,null,null,null,null,null,null,null,null,null,null,null,null,null,null,null,null,null,null,{"$f":"AA168&\" minus (\"&AA171&\" + \"&AA174&\")\"","v":"c18.55 minus (c18.56 + c18.57)"}]
[null,"Capital Gains Tax Due",null,null,null,null,null,null,null,null,null,null,null,null,null,null,null,null,null,null,null,null,null,null,null,null,{"$f":"A93","v":"c18.58"},{"$f":"MAX(0,AB168-(AB171+AB174))","v":0}]
[null,null,null,null,null,null,null,null,null,null,null,null,null,null,null,null,null,null,null,null,null,null,null,null,null,null,null,{"$f":"\"copy to \"&'Tax due (c12)'!A24","v":"copy to c12.17"}]
[]
[null,null,null,null,null,null,null,null,null,null,null,null,null,null,null,null,null,null,null,null,null,null,null,null,null,null,null,{"$f":"\"(\"&AA171&\" + \"&AA174&\") minus \"&AA168","v":"(c18.56 + c18.57) minus c18.55"}]
[null,"Capital Gains Tax Overpaid",null,null,null,null,null,null,null,null,null,null,null,null,null,null,null,null,null,null,null,null,null,null,null,null,{"$f":"A94","v":"c18.59"},{"$f":"MAX(0,(AB171+AB174)-AB168)","v":0}]
[]
[null,null,null,null,null,null,null,null,null,null,null,null,null,null,null,null,null,null,null,null,null,null,null,null,null,null,null,{"$f":"'Tax due (c12)'!L79&\" minus \"&'Tax due (c12)'!L88","v":"c12.12 minus c12.15"}]
[null,"Total Income Tax, Class 2 and Class 4 NIC due",null,null,null,null,null,null,null,null,null,null,null,null,null,null,null,null,null,null,null,null,null,null,null,null,{"$f":"A95","v":"c18.60"},{"$f":"MAX(0,'Tax due (c12)'!M79-'Tax due (c12)'!M88)","v":0}]
[]
[null,null,null,null,null,null,null,null,null,null,null,null,null,null,null,null,null,null,null,null,null,null,null,null,null,null,null,{"$f":"\"lower of \"&AA181&\" and \"&AA184","v":"lower of c18.59 and c18.60"}]
[null,"Capital Gains Tax (repayable)",null,null,null,null,null,null,null,null,null,null,null,null,null,null,null,null,null,null,null,null,null,null,null,null,{"$f":"A96","v":"c18.61"},{"$f":"MIN(AB181,AB184)","v":0}]
[null,null,null,null,null,null,null,null,null,null,null,null,null,null,null,null,null,null,null,null,null,null,null,null,null,null,null,{"$f":"\"copy to \"&'Tax due (c12)'!A26","v":"copy to c12.17b"}]
[]
[null,null,null,null,null,null,null,null,null,null,null,null,null,null,null,null,null,null,null,null,null,null,null,null,null,null,null,{"$f":"AA181&\" minus \"&AA184","v":"c18.59 minus c18.60"}]
[null,"Capital Gains Tax (not repayable)",null,null,null,null,null,null,null,null,null,null,null,null,null,null,null,null,null,null,null,null,null,null,null,null,{"$f":"A97","v":"c18.62"},{"$f":"MAX(0,AB181-AB184)","v":0}]
[]
[null,"end if"]
[null,"   else"]
[null,{"$f":"C17&\" to \"&AA191&\" = 0 (zero)\"","v":"c18.1 to c18.62 = 0 (zero)"}]

{"sheet":"RBC (c19)","index":75,"n_rows":18,"n_cols":4,"rows_kept":18,"cut":false,"hidden":true,"merged":[]}
["c19.1","Calculate remittance basis charge"]
[]
[null,null,"If any box in this stage is negative substitute zero, unless otherwise stated"]
[]
[null,"Remittance basis charge for non-domiciles"]
[]
[]
[]
[]
[]
[]
[]
[]
[]
[]
[null,null,null,"Set to zero"]
[null,null,{"$f":"A1","v":"c19.1"},0]
[null,null,null,{"$f":"\"Copy to \"&'Tax adj (c9)'!F145&\" and to \"&'Tax due (c12)'!I76","v":"Copy to c9.36 and to c12.11"}]

{"sheet":"RBC & Cap (C20a)","index":76,"n_rows":100,"n_cols":10,"rows_kept":100,"cut":false,"hidden":true,"merged":[]}
["c20a.1",null,null,"Calculate nominated income for remittance basis charge and restrict allowable losses and loan interest"]
["c20a.2",null,null,null,null,null,null,null,null,"If any box on this stage is negative substitute zero"]
["c20a.3",null,"Boxes c20a.1 to c20a.50 not used"]
["c20a.4"]
["c20a.5"]
["c20a.6"]
["c20a.7"]
["c20a.8"]
["c20a.9"]
["c20a.10"]
["c20a.11"]
["c20a.12"]
["c20a.13"]
["c20a.14"]
["c20a.15"]
["c20a.16"]
["c20a.17"]
["c20a.18"]
["c20a.19"]
["c20a.20"]
["c20a.21"]
["c20a.22"]
["c20a.23"]
["c20a.24"]
["c20a.25"]
["c20a.26"]
["c20a.27"]
["c20a.28"]
["c20a.29"]
["c20a.30"]
["c20a.31"]
["c20a.32"]
["c20a.33"]
["c20a.34"]
["c20a.35"]
["c20a.36"]
["c20a.37"]
["c20a.38"]
["c20a.39"]
["c20a.40"]
["c20a.41"]
["c20a.42"]
["c20a.43"]
["c20a.44"]
["c20a.45"]
["c20a.46"]
["c20a.47"]
["c20a.48"]
["c20a.49"]
["c20a.50"]
["c20a.51"]
["c20a.52"]
["c20a.53"]
["c20a.54"]
["c20a.55"]
["c20a.56"]
["c20a.57"]
["c20a.58"]
["c20a.59"]
["c20a.60"]
["c20a.61"]
["c20a.62"]
["c20a.63"]
["c20a.64"]
["c20a.65"]
["c20a.66"]
["c20a.67"]
["c20a.68"]
["c20a.69"]
["c20a.70"]
["c20a.71"]
["c20a.72"]
["c20a.73"]
["c20a.74"]
["c20a.75"]
["c20a.76"]
["c20a.77"]
["c20a.78"]
["c20a.79"]
["c20a.80"]
["c20a.81"]
["c20a.82"]
["c20a.83"]
["c20a.84"]
["c20a.85"]
["c20a.86"]
["c20a.87"]
["c20a.88"]
["c20a.89"]
["c20a.90"]
["c20a.91"]
["c20a.92"]
["c20a.93"]
["c20a.94"]
["c20a.95"]
["c20a.96"]
["c20a.97"]
["c20a.98"]
["c20a.99"]
["c20a.100"]

{"sheet":"Notional (c21c23)","index":77,"n_rows":94,"n_cols":12,"rows_kept":94,"cut":false,"hidden":true,"merged":[]}
["c21.1","Calculate notional tax and tax credits on Lloyds and Trusts dividends"]
["c21.2"]
["c21.3","On Lloyd's dividends",null,null,null,null,"If any box in this stage is negative substitute zero"]
["c21.4",null,null,null,{"$f":"\"from \"&LUN&LUN!C13","v":"from LUN8"}]
["c21.5","Income from personal funds at Lloyd’s UK dividends",null,{"$f":"A1","v":"c21.1"},{"$f":"TRUNC(LUN!D14,0)","v":0},"£down"]
["c21.6"]
["c21.7",null,null,null,{"$f":"LUN&LUN!G7&\" + \"&LUN&LUN!G10&\" + \"&LUN&LUN!G13","v":"LUN15 + LUN16 + LUN17"}]
["c21.8","Foreign sources income from assets in personal funds at Lloyds",null,{"$f":"A2","v":"c21.2"},{"$f":"TRUNC(LUN!H8,0)+TRUNC(LUN!H11,0)+TRUNC(LUN!H14,0)","v":0},"£down"]
["c21.9"]
["c21.10",null,null,null,"Set to zero"]
["c21.11",null,null,{"$f":"A3","v":"c21.3"},0]
["c21.12"]
[null,null,null,null,"Set to zero"]
[null,null,null,{"$f":"A4","v":"c21.4"},0]
[]
[null,null,null,null,{"$f":"D5&\" + \"&D8","v":"c21.1 + c21.2"}]
[null,"Amount that qualifies for dividend tax credit",null,{"$f":"A5","v":"c21.5"},{"$f":"E5+E8","v":0}]
[]
[null,null,null,null,{"$f":"\"from \"&LUN&LUN!K7","v":"from LUN52"},null,null,{"$f":"\"lower of \"&D17&\" and \"&D20","v":"lower of c21.5 and c21.6"}]
[null,"Total taxable profits from Lloyd’s",null,{"$f":"A6","v":"c21.6"},{"$f":"TRUNC(LUN!L8,0)","v":0},"£down",{"$f":"A7","v":"c21.7"},{"$f":"MIN(E17,E20)","v":0}]
[]
[null,null,null,null,{"$f":"\"from \"&'Taxable (c5)'!BA149","v":"from c5.76"},null,null,{"$f":"\"lower of \"&G20&\" and \"&D23","v":"lower of c21.7 and c21.8"},null,null,"Set to zero"]
[null,"Notional Tax on Lloyds dividends",null,{"$f":"A8","v":"c21.8"},{"$f":"'Taxable (c5)'!BB149","v":0},null,{"$f":"A9","v":"c21.9"},{"$f":"MIN(H20,E23)","v":0},null,{"$f":"A10","v":"c21.10"},0]
[]
[null,null,null,null,{"$f":"\"lower of \"&D20&\" and \"&D23","v":"lower of c21.6 and c21.8"},null,null,{"$f":"D26&\" minus \"&G23","v":"c21.11 minus c21.9"}]
[null,"Notional tax and tax credits",null,{"$f":"A11","v":"c21.11"},{"$f":"MIN(E20,E23)","v":0},null,{"$f":"A12","v":"c21.12"},{"$f":"MAX(0,E26-H23)","v":0}]
[null,null,null,null,null,null,null,{"$f":"\"Copy to box \"&'Div Cr (c10)'!F9","v":"Copy to box c10.2"}]
[]
[]
[null,null,null,null,null,null,"If any box in this stage is negative substitute zero"]
[null,"On Trust's dividends"]
[]
[null,"Discretionary income payment from a UK resident trust"]
["c22.1",null,null,null,{"$f":"\"from \"&'Taxable (c5)'!BA312","v":"from c5.84"},null,null,{"$f":"\"lower of \"&'tax it (c6)'!V108&\" and \"&D35","v":"lower of c6.44 and c22.1"},null,null,{"$f":"G35&\" × \"&'Status (c3a)'!AD45","v":"c22.2 × c3a.6"}]
["c22.2","Payments from settlor-interested trusts",null,{"$f":"A34","v":"c22.1"},{"$f":"'Taxable (c5)'!BB312","v":0},null,{"$f":"A35","v":"c22.2"},{"$f":"MIN('tax it (c6)'!W108,E35)","v":0},null,{"$f":"A36","v":"c22.3"},{"$f":"TRUNC((H35*'Status (c3a)'!AE45)+0.0099,2)","v":0},"pup"]
["c22.3"]
["c22.3a","The recipient shall be treated as having paid income tax at ",null,null,{"$f":"D35&\" minus \"&G35","v":"c22.1 minus c22.2"},null,null,{"$f":"\"lower of \"&'tax it (c6)'!V104&\" and \"&D38","v":"lower of c6.43.2 and c22.3a"},null,null,{"$f":"G38&\" × \"&'Status (c3a)'!AA45","v":"c22.3b × c3a.5a"}]
["c22.3b","the highest Scottish rate, Welsh additional rate or",null,{"$f":"A37","v":"c22.3a"},{"$f":"MAX(0,E35-H35)","v":0},null,{"$f":"A38","v":"c22.3b"},{"$f":"MIN('tax it (c6)'!W104,E38)","v":0},null,{"$f":"A39","v":"c22.3c"},{"$f":"TRUNC((H38*'Status (c3a)'!AB45)+0.0099,2)","v":0},"pup"]
["c22.3c","the additional rate."]
["c22.4","This tax is not repayable or taken into account for tax liability.",null,null,{"$f":"D38&\" minus \"&G38","v":"c22.3a minus c22.3b"},null,null,{"$f":"\"lower of \"&'tax it (c6)'!V95&\" and \"&D41","v":"lower of c6.43 and c22.4"},null,null,{"$f":"G41&\" × \"&'Status (c3a)'!X45","v":"c22.5 × c3a.5"}]
["c22.5","The amount is restricted in calculation boxes c22.1 to c22.15.",null,{"$f":"A40","v":"c22.4"},{"$f":"MAX(0,E38-H38)","v":0},null,{"$f":"A41","v":"c22.5"},{"$f":"MIN('tax it (c6)'!W95,E41)","v":0},null,{"$f":"A42","v":"c22.6"},{"$f":"TRUNC((H41*'Status (c3a)'!Y45)+0.0099,2)","v":0},"pup"]
["c22.6"]
["c22.7",null,null,null,{"$f":"D41&\" minus \"&G41","v":"c22.4 minus c22.5"},null,null,{"$f":"\"lower of \"&'tax it (c6)'!V77&\" and \"&D44","v":"lower of c6.41b and c22.7"},null,null,{"$f":"G44&\" × SIR_rate (\"&SIR_rate*100&\"%)\"","v":"c22.8 × SIR_rate (21%)"}]
["c22.8",null,null,{"$f":"A43","v":"c22.7"},{"$f":"MAX(0,E41-H41)","v":0},null,{"$f":"A44","v":"c22.8"},{"$f":"MIN('tax it (c6)'!W77,'Notional (c21c23)'!E44)","v":0},null,{"$f":"A45","v":"c22.9"},{"$f":"TRUNC((H44*SIR_rate)+0.0099,2)","v":0},"pup"]
["c22.9"]
["c22.10",null,null,null,{"$f":"D44&\" minus \"&G44","v":"c22.7 minus c22.8"},null,null,{"$f":"\"lower of \"&'tax it (c6)'!V66&\" and \"&D47","v":"lower of c6.40 and c22.10"},null,null,{"$f":"G47&\" × \"&'Status (c3a)'!L45","v":"c22.11 × c3a.4"}]
["c22.11",null,null,{"$f":"A46","v":"c22.10"},{"$f":"MAX(0,E44-H44)","v":0},null,{"$f":"A47","v":"c22.11"},{"$f":"MIN('tax it (c6)'!W66,'Notional (c21c23)'!E47)","v":0},null,{"$f":"A48","v":"c22.12"},{"$f":"TRUNC((H47*'Status (c3a)'!M45)+0.0099,2)","v":0},"pup"]
["c22.12"]
["c22.13"]
["c22.14",null,null,null,{"$f":"D47&\" minus \"&G47","v":"c22.10 minus c22.11"},null,null,{"$f":"\"lower of \"&'tax it (c6)'!V17&\" and \"&D51","v":"lower of c6.36 and c22.13"},null,null,{"$f":"G51&\" × SSR_rate (\"&SSR_rate*100&\"%)\"","v":"c22.14 × SSR_rate (19%)"}]
["c22.15",null,null,{"$f":"A49","v":"c22.13"},{"$f":"MAX(0,E47-H47)","v":0},null,{"$f":"A50","v":"c22.14"},{"$f":"MIN('tax it (c6)'!W17,'Notional (c21c23)'!E51)","v":0},null,{"$f":"A51","v":"c22.15"},{"$f":"TRUNC((H51*SSR_rate)+0.0099,2)","v":0},"pup"]
["c22.16",null,null,null,null,null,null,null,null,null,{"$f":"\"add \"&'Notional (c21c23)'!A36&\" + \"&'Notional (c21c23)'!A39&\" + \"&'Notional (c21c23)'!A42&\" + \"&'Notional (c21c23)'!A45&\" + \"&'Notional (c21c23)'!A48&\" + \"&'Notional (c21c23)'!A51&\" and copy to \"&'Div Cr (c10)'!A20","v":"add c22.3 + c22.3c + c22.6 + c22.9 + c22.12 + c22.15 and copy to c10.17"}]
["c22.17"]
["c22.18",null,null,null,{"$f":"\"from \"&'Taxable (c5)'!BA307","v":"from c5.83"},null,null,{"$f":"\"lower of \"&'tax it (c6)'!G66&\" and \"&D55","v":"lower of c6.6 and c22.16"},null,null,{"$f":"G55&\" × BR_rate (\"&BR_rate*100&\"%)\"","v":"c22.17 × BR_rate (20%)"}]
["c22.19","Income from United Kingdom (UK) estates",null,{"$f":"A52","v":"c22.16"},{"$f":"'Taxable (c5)'!BB307","v":0},null,{"$f":"A53","v":"c22.17"},{"$f":"MIN('tax it (c6)'!H66,'Notional (c21c23)'!E55)","v":0},null,{"$f":"A54","v":"c22.18"},{"$f":"TRUNC((H55*BR_rate)+0.0099,2)","v":0},"pup"]
["c22.20"]
["c22.21","Non-savings income taxed at non-repayable basic rate"]
["c22.22",null,null,null,{"$f":"D55&\" minus \"&G55","v":"c22.16 minus c22.17"},null,null,{"$f":"\"lower of \"&'tax it (c6)'!G17&\" and \"&D59","v":"lower of c6.2 and c22.19"},null,null,{"$f":"G59&\" × SSR_rate (\"&SSR_rate*100&\"%)\"","v":"c22.20 × SSR_rate (19%)"}]
[null,null,null,{"$f":"A55","v":"c22.19"},{"$f":"MAX(0,E55-H55)","v":0},null,{"$f":"A56","v":"c22.20"},{"$f":"MIN('tax it (c6)'!H17,'Notional (c21c23)'!E59)","v":0},null,{"$f":"A57","v":"c22.21"},{"$f":"TRUNC((H59*SSR_rate)+0.0099,2)","v":0},"pup"]
[null,null,null,null,null,null,null,null,null,null,{"$f":"\"add \"&'Notional (c21c23)'!A54&\" + \"&'Notional (c21c23)'!A57&\" and copy to \"&'Div Cr (c10)'!A16","v":"add c22.18 + c22.21 and copy to c10.13"}]
[]
[]
[null,null,null,null,null,null,null,null,null,null,{"$f":"J35&\" + \"&J38&\" + \"&J41&\" + \"&J44&\" + \"&J47&\" + \"&J51&\" + \"&J55&\" + \"&J59","v":"c22.3 + c22.3c + c22.6 + c22.9 + c22.12 + c22.15 + c22.18 + c22.21"}]
[null,null,null,null,null,null,null,null,null,{"$f":"A58","v":"c22.22"},{"$f":"K35+K38+K41+K44+K47+K51+K55+K59","v":0}]
[]
[]
[]
[]
[]
["c23.1"]
["c23.2",null,null,null,null,null,"If any box in this stage is negative substitute zero"]
["c23.3","On a qualifying distribution"]
["c23.4",{"$f":"\"You only need to complete section c23 if you made an entry in box \"&AOR&AOR!G11","v":"You only need to complete section c23 if you made an entry in box AOR9"}]
["c23.5"]
["c23.6",{"$f":"\"If box \"&AOR&AOR!G11&\" = 0 (zero)\"","v":"If box AOR9 = 0 (zero)"}]
["c23.7",{"$f":"D80&\" to \"&J92&\" = 0 (zero)\"","v":"c23.1 to c23.11 = 0 (zero)"}]
["c23.8"," else"]
["c23.9"]
["c23.10",null,null,null,{"$f":"\"from \"&'tax it (c6)'!Q108","v":"from c6.34"}]
["c23.11",null,"Income in additional rate band",{"$f":"A70","v":"c23.1"},{"$f":"'tax it (c6)'!R108","v":0}]
[]
[null,null,null,null,{"$f":"INC&'INC(1)'!I15&\" + \"&AOI&AOI!G28","v":"INC4 + AOI13"},null,null,{"$f":"\"lower of \"&D80&\" and \"&D83","v":"lower of c23.1 and c23.2"},null,null,{"$f":"G83&\" × DivAR_rate (\"&DivAR_rate*100&\"%)\"","v":"c23.3 × DivAR_rate (39.35%)"}]
[null,null,null,{"$f":"A71","v":"c23.2"},{"$f":"TRUNC('INC(1)'!J16+AOI!H29+0.99,0)","v":0},"£up",{"$f":"A72","v":"c23.3"},{"$f":"MIN(E80,E83)","v":0},null,{"$f":"A73","v":"c23.4"},{"$f":"TRUNC(H83*(DivAR_rate)+0.0099,2)","v":0},"pup"]
[]
[null,null,null,null,{"$f":"\"from \"&'tax it (c6)'!Q95","v":"from c6.33"}]
[null,null,"Income in higher rate band",{"$f":"A74","v":"c23.5"},{"$f":"'tax it (c6)'!R95","v":0}]
[]
[null,null,null,null,{"$f":"D83&\" minus \"&G83","v":"c23.2 minus c23.3"},null,null,{"$f":"\"lower of \"&D86&\" and \"&D89","v":"lower of c23.5 and c23.6"},null,null,{"$f":"G89&\" × DivHR_rate (\"&DivHR_rate*100&\"%)\"","v":"c23.7 × DivHR_rate (33.75%)"}]
[null,null,null,{"$f":"A75","v":"c23.6"},{"$f":"MAX(0,E83-H83)","v":0},null,{"$f":"A76","v":"c23.7"},{"$f":"MIN(E86,E89)","v":0},null,{"$f":"A77","v":"c23.8"},{"$f":"TRUNC(H89*DivHR_rate,2)","v":0},"pdown"]
[]
[null,null,null,null,{"$f":"\"from \"&AOR&AOR!G11","v":"from AOR9"},null,null,{"$f":"J83&\" + \"&J89","v":"c23.4 + c23.8"},null,null,{"$f":"\"lower of \"&D92&\" and \"&G92","v":"lower of c23.9 and c23.10"}]
[null,null,null,{"$f":"A78","v":"c23.9"},{"$f":"AOR!H12","v":0},null,{"$f":"A79","v":"c23.10"},{"$f":"K83+K89","v":0},null,{"$f":"A80","v":"c23.11"},{"$f":"MIN(E92,H92)","v":0}]
[null,null,null,null,null,null,null,null,null,null,{"$f":"\"Copy to box \"&'Tax adj (c9)'!L98","v":"Copy to box c9.29"}]
[null,"end if"]

{"sheet":"LLIR (c24)","index":78,"n_rows":86,"n_cols":13,"rows_kept":86,"cut":false,"hidden":true,"merged":[]}
["c24.1","Calculate relief for finance costs"]
["c24.2",null,null,null,"If any box in this stage is negative substitute zero, unless otherwise stated"]
["c24.3"]
["c24.3a",{"$f":"\"If \"&PRO&PRO!G25&\" + \"&PRO&PRO!G28&\" + \"&TRU&TRU!K40&\" + \"&TRU&TRU!O43&\" + \"&FOR&FOR!C58&\" + \"&FOR&FOR!G58&\" + total all instances (\"&FPS&PS!J23&\" + \"&FPS&PS!M23&\" + \"&FPS&PS!J35&\" + \"&FPS&PS!M35&\" + \"&FOR&FOR!O5&\" + \"&FOR&FOR!O8&\") = 0 (zero)\"","v":"If PRO44 + PRO45 + TRU25 + TRU25.1 + FOR13.1 + FOR13.2 + total all instances (FPS41.1 + FPS41.2 + FPS63.1 + FPS63.2 + FOR24.1 + FOR24.2) = 0 (zero)"}]
["c24.4",{"$f":"\"set \"&E11&\" to \"&K84&\" to zero\"","v":"set c24.1 to c24.17 to zero"}]
["c24.4a","else"]
["c24.5"]
["c24.6"]
["c24.7","Property income"]
["c24.8",null,null,null,null,{"$f":"PRO&PRO!G25&\" + \"&PRO&PRO!G28","v":"PRO44 + PRO45"}]
["c24.9",null,"Finance costs",null,{"$f":"A1","v":"c24.1"},{"$f":"TRUNC((PRO!H26+PRO!H29)+0.99,0)","v":0},"£up"]
["c24.9.1"]
["c24.10",null,null,null,null,null,null,null,{"$f":"\"from \"&'NS income (c1)'!E100","v":"from c1.32"}]
["c24.11",null,{"$f":"\"Adjusted profit (\"&PRO&PRO!G19&\")\"","v":"Adjusted profit (PRO40)"},null,null,null,null,{"$f":"A2","v":"c24.2"},{"$f":"'NS income (c1)'!F100","v":0}]
["c24.12"]
["c24.13",null,null,null,null,null,null,null,null,null,null,{"$f":"\"lower of \"&E11&\" and \"&H14","v":"lower of c24.1 and c24.2"}]
["c24.14",null,"Allowable finance costs",null,null,null,null,null,null,null,{"$f":"A3","v":"c24.3"},{"$f":"MIN(F11,I14)","v":0}]
["c24.15"]
["c24.15a","Partnership property income"]
["c24.16",null,null,null,null,{"$f":"\"sum of (\"&FPS&PS!J23&\" + \"&FPS&PS!M23&\" for all instances)\"","v":"sum of (FPS41.1 + FPS41.2 for all instances)"}]
["c24.17",null,"Finance costs",null,{"$f":"A4","v":"c24.3a"},{"$f":"TRUNC((PS!K24+PS!N24)+0.99,0)","v":0},"£up (for each FPS)"]
[]
[null,null,{"$f":"\"Calculate for each page the lower of \"&FPS&PS!G23&\" and (\"&FPS&PS!J23&\" + \"&FPS&PS!M23&\"), store the result and add together\"","v":"Calculate for each page the lower of FPS41 and (FPS41.1 + FPS41.2), store the result and add together"}]
[null,null,null,null,null,null,null,null,null,null,null,{"$f":"\"sum of the (lower of \"&FPS&PS!G23&\" and (\"&FPS&PS!J23&\" + \"&FPS&PS!M23&\")\"","v":"sum of the (lower of FPS41 and (FPS41.1 + FPS41.2)"}]
[null,null,null,null,null,null,null,null,null,null,null,{"$f":"\"for each instance)\"","v":"for each instance)"}]
["FPS41",null,"Allowable finance costs",null,null,null,null,null,null,null,{"$f":"A5","v":"c24.4"},{"$f":"IF(PS!N27>0,TRUNC(PS!N27+0.99,0),IF(AND(PS!K24=\"\",PS!N24=\"\"),0,TRUNC(MIN(A27,(PS!K24+PS!N24))+0.99,0)))","v":0},"£up (for each FPS)"]
[{"$f":"PS!H24","v":0}]
["FPS60","Partnership foreign property income"]
[{"$f":"PS!H36","v":0},null,null,null,null,{"$f":"\"sum of (\"&FPS&PS!J35&\" + \"&FPS&PS!M35&\" for all instances)\"","v":"sum of (FPS63.1 + FPS63.2 for all instances)"}]
[null,null,"Finance costs",null,{"$f":"A6","v":"c24.4a"},{"$f":"TRUNC((PS!K36+PS!N36)+0.99,0)","v":0},"£up (for each FPS)"]
[]
[null,null,{"$f":"\"Calculate for each page the lower of \"&FPS&PS!G35&\" and (\"&FPS&PS!J35&\" + \"&FPS&PS!M35&\"), store the result and add together\"","v":"Calculate for each page the lower of FPS60 and (FPS63.1 + FPS63.2), store the result and add together"},null,null,null,null,null,null,null,null,{"$f":"\"sum of the (lower of \"&FPS&PS!G35&\" and (\"&FPS&PS!J35&\" + \"&FPS&PS!M35&\")\"","v":"sum of the (lower of FPS60 and (FPS63.1 + FPS63.2)"}]
[null,null,null,null,null,null,null,null,null,null,null,{"$f":"\"for each instance)\"","v":"for each instance)"}]
[null,null,"Allowable finance costs",null,null,null,null,null,null,null,{"$f":"A7","v":"c24.5"},{"$f":"IF(PS!N39>0,TRUNC(PS!N39+0.99,0),IF(AND(PS!K36=\"\",PS!N36=\"\"),0,TRUNC(MIN(A29,(PS!K36+PS!N36))+0.99,0)))","v":0},"£up (for each FPS)"]
[]
[]
[null,"Income from land and property abroad"]
[null,null,null,null,null,{"$f":"\"sum of (\"&FOR&FOR!O5&\" + \"&FOR&FOR!O8&\" for all instances)\"","v":"sum of (FOR24.1 + FOR24.2 for all instances)"}]
[null,null,"Finance costs",null,{"$f":"A8","v":"c24.6"},{"$f":"TRUNC((FOR!P6+FOR!P9)+0.99,0)","v":0},"£up (for each FOR)"]
[]
[null,null,null,null,null,null,null,null,{"$f":"\"from \"&FOR&FOR!O11","v":"from FOR27"}]
[null,null,"Adjusted profit",null,null,null,null,{"$f":"A9","v":"c24.7"},{"$f":"MAX(0,TRUNC(FOR!P12+0.99,0))","v":0},"£up "]
[]
[null,null,null,null,null,null,null,null,null,null,null,{"$f":"\"lower of \"&E39&\" and \"&H42","v":"lower of c24.6 and c24.7"}]
[null,null,"Allowable finance costs",null,null,null,null,null,null,null,{"$f":"A10","v":"c24.8"},{"$f":"MIN(F39,I42)","v":0}]
[]
[]
[null,"Income from land and property abroad chargeable as transfer of assets"]
[null,null,null,null,null,null,null,null,null,null,null,{"$f":"FOR&FOR!C58&\" + \"&FOR&FOR!G58","v":"FOR13.1 + FOR13.2"}]
[null,null,"Allowable finance costs",null,null,null,null,null,null,null,{"$f":"A11","v":"c24.9"},{"$f":"TRUNC((FOR!D59+FOR!H59)+0.99,0)","v":0},"£up"]
[]
[null,null,null,null,null,null,null,null,null,null,null,{"$f":"FOR&FOR!K53&\" + \"&FOR&FOR!O53","v":"FOR49 + FOR49.1"}]
[null,null,null,null,null,null,null,null,null,null,{"$f":"A12","v":"c24.9.1"},{"$f":"TRUNC((FOR!L54+FOR!P54)+0.99,0)","v":0},"£up"]
[]
[]
[null,"Trust and Estate UK property and income from land and property abroad"]
[null,null,null,null,null,null,null,null,null,null,null,{"$f":"TRU&TRU!K40&\" + \"&TRU&TRU!O43","v":"TRU25 + TRU25.1"}]
[null,null,"Allowable finance costs",null,null,null,null,null,null,null,{"$f":"A13","v":"c24.10"},{"$f":"TRUNC((TRU!L41+TRU!P44)+0.99,0)","v":0},"£up"]
[]
[]
[]
[null,null,null,null,null,null,null,null,{"$f":"\"from \"&'Deductions (c4)'!H354","v":"from c4.55"}]
[null,null,"Net income",null,null,null,null,{"$f":"A14","v":"c24.11"},{"$f":"'Deductions (c4)'!I354","v":0}]
[]
[null,null,null,null,null,null,null,null,{"$f":"'Savings (c2)'!H79&\" + \"&'Divs (c3)'!G69","v":"c2.19 + c3.18"}]
[null,null,"Savings income",null,null,null,null,{"$f":"A15","v":"c24.12"},{"$f":"'Savings (c2)'!I79+'Divs (c3)'!H69","v":0}]
[]
[null,null,null,null,null,null,null,null,{"$f":"\"from \"&'Divs (c3)'!G58","v":"from c3.15"}]
[null,null,"Dividend income",null,null,null,null,{"$f":"A16","v":"c24.13"},{"$f":"'Divs (c3)'!H58","v":0}]
[]
[null,null,null,null,null,null,null,null,{"$f":"'Deductions (c4)'!L448&\" minus \"&'Deductions (c4)'!H473","v":"c4.67 minus c4.68"}]
[null,null,"Allowances",null,null,null,null,{"$f":"A17","v":"c24.14"},{"$f":"MAX(0,'Deductions (c4)'!M448-'Deductions (c4)'!I473)","v":12570}]
[]
[null,null,null,null,null,null,null,null,{"$f":"H63&\" minus (\"&H66&\" + \"&H69&\" + \"&H72&\")\"","v":"c24.11 minus (c24.12 + c24.13 + c24.14)"}]
[null,null,"Adjusted total income",null,null,null,null,{"$f":"A18","v":"c24.15"},{"$f":"MAX(0,I63-(I66+I69+I72))","v":0}]
[]
[null,null,null,null,null,{"$f":"E11&\" + \"&E21&\" + \"&E30&\" + \"&E39&\" + \" &K50&\" + \"&K53&\" + \"&K58","v":"c24.1 + c24.3a + c24.4a + c24.6 + c24.9 + c24.9.1 + c24.10"}]
[null,null,"Total finance costs",null,{"$f":"A19","v":"c24.15a"},{"$f":"F11+F21+F30+F39+L50+L53+L58","v":0}]
[]
[null,null,null,null,null,null,null,null,null,null,null,{"$f":"K17&\" + \"&K26&\" + \"&K34&\" + \"&K45&\" + \" &K50&\" + \"&K53&\" + \"&K58","v":"c24.3 + c24.4 + c24.5 + c24.8 + c24.9 + c24.9.1 + c24.10"}]
[null,null,"Allowable amount",null,null,null,null,null,null,null,{"$f":"A20","v":"c24.16"},{"$f":"L17+L26+L34+L45+L50+L53+L58","v":0}]
[]
[null,null,null,null,null,null,null,null,null,null,null,{"$f":"\"lower of \"&H75&\" and \"&K81","v":"lower of c24.15 and c24.16"}]
[null,null,"Relievable amount",null,null,null,null,null,null,null,{"$f":"A21","v":"c24.17"},{"$f":"MIN(I75,L81)","v":0}]
[null,null,null,null,null,null,null,null,null,null,null,{"$f":"\"copy to \"&'Tax adj (c9)'!I78","v":"copy to c9.22"}]
[null,"end if"]

{"sheet":"Pensions (c25c26)","index":79,"n_rows":200,"n_cols":12,"rows_kept":200,"cut":false,"hidden":true,"merged":[]}
["c25.1","Calculate pension savings tax charges",null,null,null,null,"If any box in this stage is negative substitute zero"]
["c25.2"]
["c25.3",null,null,null,null,null,null,"set to zero",null,null,"set to zero"]
["c25.4",null,null,null,null,null,{"$f":"A1","v":"c25.1"},0,null,{"$f":"A2","v":"c25.2"},0]
["c25.5"]
["c25.6",null,null,null,null,null,null,"set to zero",null,null,"set to zero"]
["c25.7",null,null,null,null,null,{"$f":"A3","v":"c25.3"},0,null,{"$f":"A4","v":"c25.4"},0]
["c25.8"]
["c25.9",null,null,null,null,null,null,null,null,null,"set to zero"]
["c25.10",null,null,null,null,null,null,null,null,{"$f":"A5","v":"c25.5"},0]
["c25.11"]
["c25.12",null,null,null,null,null,null,"set to zero",null,null,"set to zero"]
["c25.13",null,null,null,null,null,{"$f":"A6","v":"c25.6"},0,null,{"$f":"A7","v":"c25.7"},0]
["c25.14"]
["c25.15",null,null,null,null,null,null,null,null,null,"set to zero"]
["c25.16",null,null,null,null,null,null,null,null,{"$f":"A8","v":"c25.8"},0]
["c25.16a"]
["c25.16b"]
["c25.16c","Annual Allowance charge"]
["c25.16d"]
["c25.16e",null,{"$f":"\"Amount in excess of Pen_AA_limit (\"&DOLLAR(Pen_AA_limit,0)&\")\"","v":"Amount in excess of Pen_AA_limit (£60,000)"},null,null,null,null,{"$f":"\"from \"&AIL&AIL!C11","v":"from AIL10"}]
["c25.16f",null,{"$f":"\"or Pen_MPAA_limit (\"&DOLLAR(Pen_MPAA_limit,0)&\") (lower allowance)\"","v":"or Pen_MPAA_limit (£10,000) (lower allowance)"},null,null,null,{"$f":"A9","v":"c25.9"},{"$f":"TRUNC(AIL!D12,0)","v":0},"£down"]
["c25.17"]
["c25.18",null,"Basic rate band or Scottish Starter + Basic rate band",null,{"$f":"'Status (c3a)'!H33&\" + \"&'Status (c3a)'!L33&\" + \"&'Deductions (c4)'!H383","v":"c3a.1a + c3a.2 + c4.59"}]
["c25.19",null,"+ relevant earnings adjustment",{"$f":"A10","v":"c25.10"},{"$f":"'Status (c3a)'!I33+'Status (c3a)'!M33+'Deductions (c4)'!I383","v":37700}]
["c25.20"]
["c25.21",null,null,null,"If calculation type = non-resident"]
["c25.22",null,null,null,{"$f":"D32&\" = \"&'non-res (c91)'!M119","v":"c25.11 = c91.28"}]
["c25.22a",null,null,null,"Else"]
["c25.22b",null,null,null,{"$f":"D32&\" = \"&'Taxable (c5)'!BA338","v":"c25.11 = c5.86"}]
["c25.22c",null,null,null,"end if"]
["c25.22d",null,"Taxable income",{"$f":"A11","v":"c25.11"},{"$f":"MAX(0,IF(non_resident,'non-res (c91)'!N119,'Taxable (c5)'!BB338))","v":0}]
["c25.22e"]
["c25.22f",null,null,null,{"$f":"D25&\" minus \"&D32","v":"c25.10 minus c25.11"},null,null,{"$f":"\"lower of \"&G22&\" and \"&D35","v":"lower of c25.9 and c25.12"},null,null,{"$f":"G35&\" × \"&'Status (c3a)'!L45","v":"c25.13 × c3a.4"}]
["c25.23",null,"Unused Basic Rate Band",{"$f":"A12","v":"c25.12"},{"$f":"MAX(0,E25-E32)","v":37700},null,{"$f":"A13","v":"c25.13"},{"$f":"MIN(H22,E35)","v":0},null,{"$f":"A14","v":"c25.14"},{"$f":"TRUNC(H35*'Status (c3a)'!M45,2)","v":0},"pdown"]
["c25.24"]
["c25.25",null,null,null,{"$f":"D32&\" minus \"&D25","v":"c25.11 minus c25.10"},null,null,{"$f":"G22&\" minus \"&G35","v":"c25.9 minus c25.13"}]
["c25.26",null,"Income above Basic Rate Band",{"$f":"A15","v":"c25.15"},{"$f":"MAX(0,E32-E25)","v":0},null,{"$f":"A16","v":"c25.16"},{"$f":"MAX(0,H22-H35)","v":0}]
["c25.27"]
["c25.28",null,null,null,{"$f":"\"from \"&'Status (c3a)'!P33","v":"from c3a.2a"}]
["c25.29",null,"Intermediate rate band",{"$f":"A17","v":"c25.16a"},{"$f":"'Status (c3a)'!Q33","v":0}]
["c25.30"]
["c25.31",null,null,null,{"$f":"D41&\" minus \"&D38","v":"c25.16a minus c25.15"},null,null,{"$f":"\"lower of \"&G38&\" and \"&D44","v":"lower of c25.16 and c25.16b"},null,null,{"$f":"G44&\" × \"&'Status (c3a)'!P45","v":"c25.16c × c3a.4a"}]
["c25.32",null,"Unused Intermediate Rate Band",{"$f":"A18","v":"c25.16b"},{"$f":"MAX(0,E41-E38)","v":0},null,{"$f":"A19","v":"c25.16c"},{"$f":"MIN(H38,E44)","v":0},null,{"$f":"A20","v":"c25.16d"},{"$f":"TRUNC(H44*'Status (c3a)'!Q45,2)","v":0},"pdown"]
["c25.33"]
["c25.34",null,null,null,{"$f":"D32&\" minus (\"&D25&\" + \"&D41&\")\"","v":"c25.11 minus (c25.10 + c25.16a)"},null,null,{"$f":"G38&\" minus \"&G44","v":"c25.16 minus c25.16c"}]
["c25.35",null,"Income above Intermediate Rate Band",{"$f":"A21","v":"c25.16e"},{"$f":"MAX(0,E32-(E25+E41))","v":0},null,{"$f":"A22","v":"c25.16f"},{"$f":"MAX(0,H38-H44)","v":0}]
["c25.36"]
["c25.37",null,null,null,{"$f":"\"from \"&'Status (c3a)'!X33","v":"from c3a.3"}]
["c25.38",null,"Higher rate band",{"$f":"A23","v":"c25.17"},{"$f":"'Status (c3a)'!Y33","v":87440}]
["c25.39"]
["c25.40",null,null,null,{"$f":"D50&\" minus \"&D47","v":"c25.17 minus c25.16e"},null,null,{"$f":"\"lower of \"&G47&\" and \"&D53","v":"lower of c25.16f and c25.18"},null,null,{"$f":"G53&\" × \"&'Status (c3a)'!X45","v":"c25.19 × c3a.5"}]
["c25.41",null,"Unused Higher Rate Band",{"$f":"A24","v":"c25.18"},{"$f":"MAX(0,E50-E47)","v":87440},null,{"$f":"A25","v":"c25.19"},{"$f":"MIN(H47,E53)","v":0},null,{"$f":"A26","v":"c25.20"},{"$f":"TRUNC(H53*'Status (c3a)'!Y45,2)","v":0},"pdown"]
["c25.42"]
["c25.43",null,null,null,{"$f":"D32&\" minus (\"&D25&\" + \"&D41&\" + \"&D50&\")\"","v":"c25.11 minus (c25.10 + c25.16a + c25.17)"},null,null,{"$f":"G47&\" minus \"&G53","v":"c25.16f minus c25.19"}]
["c25.44",null,"Income above Higher Rate Band",{"$f":"A27","v":"c25.21"},{"$f":"MAX(0,E32-(E25+E41+E50))","v":0},null,{"$f":"A28","v":"c25.22"},{"$f":"MAX(0,H47-H53)","v":0},"pdown"]
["c25.45"]
["c25.46",null,null,null,{"$f":"\"from \"&'Status (c3a)'!AA33","v":"from c3a.3.1"}]
["c25.47",null,"Advanced rate band",{"$f":"A29","v":"c25.22a"},{"$f":"'Status (c3a)'!AB33","v":0}]
["c25.48"]
["c25.49",null,null,null,{"$f":"D59&\" minus \"&D56","v":"c25.22a minus c25.21"},null,null,{"$f":"\"lower of \"&G56&\" and \"&D62","v":"lower of c25.22 and c25.22b"},null,null,{"$f":"G62&\" × \"&'Status (c3a)'!AA45","v":"c25.22c × c3a.5a"}]
["c25.50",null,"Unused Advanced Rate Band",{"$f":"A30","v":"c25.22b"},{"$f":"MAX(0,E59-E56)","v":0},null,{"$f":"A31","v":"c25.22c"},{"$f":"MIN(H56,E62)","v":0},null,{"$f":"A32","v":"c25.22d"},{"$f":"TRUNC(H62*'Status (c3a)'!AB45,2)","v":0},"pdown"]
["c25.51"]
["c25.52",null,null,null,null,null,null,{"$f":"G56&\" minus \"&G62","v":"c25.22 minus c25.22c"},null,null,{"$f":"G65&\" × \"&'Status (c3a)'!AD45","v":"c25.22e × c3a.6"}]
["c25.53",null,"Income above Advanced Rate Band",null,null,null,{"$f":"A33","v":"c25.22e"},{"$f":"MAX(0,H56-H62)","v":0},null,{"$f":"A34","v":"c25.22f"},{"$f":"TRUNC(H65*'Status (c3a)'!AE45,2)","v":0},"pdown"]
["c25.54"]
["c25.55",null,null,null,null,null,null,null,null,null,{"$f":"J35&\" + \"&J44&\" + \"&J53&\" + \"&J62&\" + \"&J65","v":"c25.14 + c25.16d + c25.20 + c25.22d + c25.22f"}]
["c25.56",null,null,null,null,null,null,null,null,{"$f":"A35","v":"c25.23"},{"$f":"K35+K44+K53+K62+K65","v":0}]
["c25.57"]
[null,null,null,null,null,null,null,{"$f":"\"from \"&AIL&AIL!C14","v":"from AIL11"},null,null,{"$f":"\"lower of \"&J68&\" and \"&G71","v":"lower of c25.23 and c25.24"}]
[null,null,"Tax paid by the pension scheme",null,null,null,{"$f":"A36","v":"c25.24"},{"$f":"TRUNC(AIL!D15,0)","v":0},null,{"$f":"A37","v":"c25.25"},{"$f":"MIN(K68,H71)","v":0}]
[]
[null,null,null,null,null,null,null,null,null,null,{"$f":"J68&\" minus \"&J71","v":"c25.23 minus c25.25"}]
[null,null,null,null,null,null,null,null,null,{"$f":"A38","v":"c25.26"},{"$f":"MAX(0,K68-K71)","v":0}]
[]
[]
[]
[null,null,null,null,null,null,null,{"$f":"\"from \"&AIL&AIL!C17","v":"from AIL11.1"},null,null,{"$f":"G79&\" × OTC_rate (\"&OTC_rate*100&\"%)\"","v":"c25.27 × OTC_rate (25%)"}]
[null,null,"Value of pension benefits transferred subject to the overseas transfer charge",null,null,null,{"$f":"A39","v":"c25.27"},{"$f":"TRUNC(AIL!D18,0)","v":0},"£down",{"$f":"A40","v":"c25.28"},{"$f":"TRUNC(H79*OTC_rate,2)","v":0},"pdown"]
[]
[null,null,null,null,null,null,null,{"$f":"\"from \"&AIL&AIL!C20","v":"from AIL11.2"},null,null,{"$f":"\"lower of \"&J79&\" and \"&G82","v":"lower of c25.28 and c25.29"}]
[null,null,"Tax paid by the pension scheme",null,null,null,{"$f":"A41","v":"c25.29"},{"$f":"AIL!D21","v":0},null,{"$f":"A42","v":"c25.30"},{"$f":"MIN(K79,H82)","v":0}]
[]
[null,null,null,null,null,null,null,null,null,null,{"$f":"J79&\" minus \"&J82","v":"c25.28 minus c25.30"}]
[null,null,null,null,null,null,null,null,null,{"$f":"A43","v":"c25.31"},{"$f":"MAX(0,K79-K82)","v":0}]
[]
[]
[null,"Unauthorised payments"]
[null,null,null,null,null,null,null,{"$f":"\"from \"&AIL&AIL!G11","v":"from AIL13"},null,null,{"$f":"G90&\" × Pen_Upayts (\"&Pen_Upayts*100&\"%)\"","v":"c25.32 × Pen_Upayts (40%)"}]
[null,null,"'Not subject to Surcharge' amount",null,null,null,{"$f":"A44","v":"c25.32"},{"$f":"TRUNC(AIL!H12,0)","v":0},"£down",{"$f":"A45","v":"c25.33"},{"$f":"TRUNC(H90*Pen_Upayts,2)","v":0},"pdown"]
[]
[null,null,null,null,null,null,null,{"$f":"\"from \"&AIL&AIL!G14","v":"from AIL14"},null,null,{"$f":"G93&\" × Upayts_surcharge (\"&Upayts_surcharge*100&\"%)\"","v":"c25.34 × Upayts_surcharge (55%)"}]
[null,null,"'Subject to Surcharge' amount ",null,null,null,{"$f":"A46","v":"c25.34"},{"$f":"TRUNC(AIL!H15,0)","v":0},"£down",{"$f":"A47","v":"c25.35"},{"$f":"TRUNC(H93*Upayts_surcharge,2)","v":0},"pdown"]
[]
[null,null,null,null,null,null,null,null,null,null,{"$f":"J90&\" + \"&J93","v":"c25.33 + c25.35"}]
[null,null,"Unauthorised payment charge and surcharge ",null,null,null,null,null,null,{"$f":"A48","v":"c25.36"},{"$f":"K90+K93","v":0}]
[]
[null,null,null,null,null,null,null,{"$f":"\"from \"&AIL&AIL!G17","v":"from AIL15"},null,null,{"$f":"\"lower of \"&J96&\" and \"&G99","v":"lower of c25.36 and c25.37"}]
[null,null,"Foreign tax deducted",null,null,null,{"$f":"A49","v":"c25.37"},{"$f":"AIL!H18","v":0},null,{"$f":"A50","v":"c25.38"},{"$f":"MIN(K96,H99)","v":0}]
[]
[null,null,null,null,null,null,null,null,null,null,{"$f":"J96&\" minus \"&J99","v":"c25.36 minus c25.38"}]
[null,null,"Unauthorised payment charge and surcharge due ",null,null,null,null,null,null,{"$f":"A51","v":"c25.39"},{"$f":"MAX(0,K96-K99)","v":0}]
[]
[]
[null,"(Overseas) short service refund charge"]
[null,null,null,null,null,null,null,{"$f":"\"from \"&AIL&AIL!G20","v":"from AIL16"}]
[null,null,"Taxable short service refund of contributions ",null,null,null,{"$f":"A52","v":"c25.40"},{"$f":"TRUNC(AIL!H21,0)","v":0},"£down"]
[]
[null,null,null,null,null,null,null,{"$f":"\"SSR_lower_band (\"&DOLLAR(SSR_lower_band,0)&\")\"","v":"SSR_lower_band (£20,000)"}]
[null,null,"Short Service Refund lower band",null,null,null,{"$f":"A53","v":"c25.41"},{"$f":"SSR_lower_band","v":20000}]
[]
[null,null,null,null,null,null,null,{"$f":"\"lower of \"&G107&\" and \"&G110","v":"lower of c25.40 and c25.41"},null,null,{"$f":"G113&\" × SSR_lower_rate (\"&SSR_lower_rate*100&\"%)\"","v":"c25.42 × SSR_lower_rate (20%)"}]
[null,null,null,null,null,null,{"$f":"A54","v":"c25.42"},{"$f":"MIN(H107,H110)","v":0},null,{"$f":"A55","v":"c25.43"},{"$f":"TRUNC(H113*SSR_lower_rate,2)","v":0},"pdown"]
[]
[null,null,null,null,null,null,null,{"$f":"G107&\" minus \"&G113","v":"c25.40 minus c25.42"},null,null,{"$f":"G116&\" × SSR_higher_rate (\"&SSR_higher_rate*100&\"%)\"","v":"c25.44 × SSR_higher_rate (50%)"}]
[null,null,null,null,null,null,{"$f":"A56","v":"c25.44"},{"$f":"MAX(0,H107-H113)","v":0},null,{"$f":"A57","v":"c25.45"},{"$f":"TRUNC(H116*SSR_higher_rate,2)","v":0},"pdown"]
[]
[null,"Overseas special charges",null,null,null,null,null,null,null,null,{"$f":"J113&\" + \"&J116","v":"c25.43 + c25.45"}]
[null,null,"Short service refund charge",null,null,null,null,null,null,{"$f":"A58","v":"c25.46"},{"$f":"K113+K116","v":0}]
[]
[null,null,null,null,null,null,null,{"$f":"\"from \"&AIL&AIL!G23","v":"from AIL18"},null,null,{"$f":"\"lower of \"&J119&\" and \"&G122","v":"lower of c25.46 and c25.47"}]
[null,null,"Foreign tax deducted",null,null,null,{"$f":"A59","v":"c25.47"},{"$f":"AIL!H24","v":0},null,{"$f":"A60","v":"c25.48"},{"$f":"MIN(K119,H122)","v":0}]
[]
[null,null,null,null,null,null,null,null,null,null,{"$f":"J119&\" minus \"&J122","v":"c25.46 minus c25.48"}]
[null,null,"Special lump sum death benefit charge due ",null,null,null,null,null,null,{"$f":"A61","v":"c25.49"},{"$f":"MAX(0,K119-K122)","v":0}]
[]
[]
[null,"Total pension charges"]
[]
[]
[]
[]
[]
[]
[]
[]
[null,null,null,null,null,null,null,null,null,null,{"$f":"J16&\" + \"&J74&\" + \"&J85&\" + \"&J102&\" + \"&J125","v":"c25.8 + c25.26 + c25.31 + c25.39 + c25.49"}]
[null,null,"Total pensions savings charges",null,null,null,null,null,null,{"$f":"A62","v":"c25.50"},{"$f":"K16+K74+K85+K102+K125","v":0}]
[null,null,"The following 2 boxes are used on SA302 only",null,null,null,null,null,null,null,{"$f":"\"Copy to \"&'Tax adj (c9)'!I161","v":"Copy to c9.39a"}]
[null,null,null,null,{"$f":"J10&\" + \"&J68&\" + \"&J79&\" + \"&J96&\" + \"&J119","v":"c25.5 + c25.23 + c25.28 + c25.36 + c25.46"}]
[null,null,"Charges before tax ",{"$f":"A63","v":"c25.51"},{"$f":"K10+K68+K79+K96+K119","v":0}]
[]
[null,null,null,null,{"$f":"J13&\" + \"&J71&\" + \"&J82&\" + \"&J99&\" + \"&J122","v":"c25.7 + c25.25 + c25.30 + c25.38 + c25.48"}]
[null,null,"Tax treated as paid",{"$f":"A64","v":"c25.52"},{"$f":"K13+K71+K82+K99+K122","v":0}]
[]
[]
[null,"Calculate if correct Pension Tax Relief at source received"]
[null,null,null,null,null,null,null,{"$f":"\"from \"&'Deductions (c4)'!H379","v":"from c4.58"}]
[null,null,"Gross pension payments",null,null,null,{"$f":"A65","v":"c25.53"},{"$f":"'Deductions (c4)'!I379","v":0}]
[]
[null,null,null,null,null,null,null,null,null,null,{"$f":"G149&\" × BR_rate (\"&BR_rate*100&\"%)\"","v":"c25.53 × BR_rate (20%)"}]
[null,null,"Basic rate tax relief at source",null,null,null,null,null,null,{"$f":"A66","v":"c25.54"},{"$f":"TRUNC(H149*BR_rate,2)","v":0},"pdown"]
[]
[null,null,null,null,null,null,null,null,null,null,{"$f":"G149&\" × \"&'Status (c3a)'!L45","v":"c25.53 × c3a.4"}]
[null,null,"Basic rate tax relief at source due",null,null,null,null,null,null,{"$f":"A67","v":"c25.55"},{"$f":"TRUNC(H149*'Status (c3a)'!M45,2)","v":0},"pdown"]
[]
["c26.1",null,null,null,null,null,null,null,null,null,{"$f":"J152&\" minus \"&J155","v":"c25.54 minus c25.55"}]
["c26.2",null,"Basic rate additional tax due for pension payments",null,null,null,null,null,null,{"$f":"A68","v":"c25.56"},{"$f":"MAX(0,K152-K155)","v":0}]
["c26.3",null,null,null,null,null,null,null,null,null,{"$f":"\"copy to \"&'Tax adj (c9)'!A51","v":"copy to c9.39d"}]
[]
[null,null,null,null,null,null,null,null,null,null,{"$f":"J155&\" minus \"&J152","v":"c25.55 minus c25.54"}]
[null,null,"Basic rate additional tax relief due for pension payments",null,null,null,null,null,null,{"$f":"A69","v":"c25.57"},{"$f":"MAX(0,K155-K152)","v":0}]
[null,null,null,null,null,null,null,null,null,null,{"$f":"\"copy to \"&'Tax adj (c9)'!A33","v":"copy to c9.30"}]
[]
[]
[null,null,null,null,null,null,"If any box in this stage is negative substitute zero"]
[null,"National Insurance Retirement Pension paid as a lump sum"]
[null,null,null,null,null,null,null,{"$f":"\"from \"&INC&'INC(2)'!C7","v":"from INC9"}]
[null,null,null,null,null,null,{"$f":"A157","v":"c26.1"},{"$f":"TRUNC('INC(2)'!D8,0)","v":0},"£down"]
[null,null,{"$f":"\"If \"&G169&\" = 0 (zero) or\"","v":"If c26.1 = 0 (zero) or"}]
[null,null,{"$f":"'Taxable (c5)'!BA338&\" = 0 (zero)\"","v":"c5.86 = 0 (zero)"}]
[null,null,{"$f":"\"Set \"&G198&\" to \"&J198&\" to 0 (zero)\"","v":"Set c26.2 to c26.3 to 0 (zero)"}]
[null,null,"else",null,null,null,null,{"$f":"\"If \"&'Taxable (c5)'!BA338&\" is greater than (\"&'Status (c3a)'!AD33&\" + \"&'Deductions (c4)'!H383&\")\"","v":"If c5.86 is greater than (c3a.3a + c4.59)"}]
[null,null,null,null,null,null,null,{"$f":"G198&\" = \"&'Status (c3a)'!AD45","v":"c26.2 = c3a.6"}]
[null,null,null,null,null,null,null,"else"]
[null,null,null,null,null,null,null,{"$f":"\"if \"&'Status (c3a)'!D21&\" = 2 and \"&'Taxable (c5)'!BA338&\" is greater than (\"&'Status (c3a)'!H33&\" + \"&'Status (c3a)'!L33&\" + \"&'Status (c3a)'!P33&\" + \"&'Status (c3a)'!X33&\" + \"&'Deductions (c4)'!H383&\")\"","v":"if c3a.1 = 2 and c5.86 is greater than (c3a.1a + c3a.2 + c3a.2a + c3a.3 + c4.59)"}]
[null,null,null,null,null,null,null,{"$f":"G198&\" = \"&'Status (c3a)'!AA45","v":"c26.2 = c3a.5a"}]
[null,null,null,null,null,null,null,"else"]
[null,null,null,null,null,null,null,{"$f":"\"if \"&'Taxable (c5)'!BA338&\" is greater than (\"&'Status (c3a)'!H33&\" + \"&'Status (c3a)'!L33&\" + \"&'Status (c3a)'!P33&\" + \"&'Deductions (c4)'!H383&\")\"","v":"if c5.86 is greater than (c3a.1a + c3a.2 + c3a.2a + c4.59)"}]
[null,null,null,null,null,null,null,{"$f":"G198&\" = \"&'Status (c3a)'!X45","v":"c26.2 = c3a.5"}]
[null,null,null,null,null,null,null,"else"]
[null,null,null,null,null,null,null,{"$f":"\"if \"&'Status (c3a)'!D21&\" = 2 and \"&'Taxable (c5)'!BA338&\" is greater than (\"&'Status (c3a)'!H33&\" + \"&'Status (c3a)'!L33&\" + \"&'Deductions (c4)'!H383&\")\"","v":"if c3a.1 = 2 and c5.86 is greater than (c3a.1a + c3a.2 + c4.59)"}]
[null,null,null,null,null,null,null,{"$f":"G198&\" = \"&'Status (c3a)'!P45","v":"c26.2 = c3a.4a"}]
[null,null,null,null,null,null,null,"else"]
[null,null,null,null,null,null,null,{"$f":"\"if \"&'Taxable (c5)'!BA338&\" is greater than \"&'Status (c3a)'!H33","v":"if c5.86 is greater than c3a.1a"}]
[null,null,null,null,null,null,null,{"$f":"G198&\" = \"&'Status (c3a)'!L45","v":"c26.2 = c3a.4"}]
[null,null,null,null,null,null,null,"else"]
[null,null,null,null,null,null,null,{"$f":"\"if \"&'Status (c3a)'!D21&\" = 2 and \"&'Taxable (c5)'!BA338&\" is greater than 0 (zero)\"","v":"if c3a.1 = 2 and c5.86 is greater than 0 (zero)"}]
[null,null,null,null,null,null,null,{"$f":"G198&\" = \"&'Status (c3a)'!H45","v":"c26.2 = c3a.3b"}]
[null,null,null,null,null,null,null,"else"]
[null,null,null,null,null,null,null,{"$f":"G198&\" = 0 (zero)\"","v":"c26.2 = 0 (zero)"}]
[null,null,null,null,null,null,null,"end if"]
[null,null,null,null,null,null,null,"end if"]
[null,null,null,null,null,null,null,"end if"]
[null,null,null,null,null,null,null,"end if"]
[null,null,null,null,null,null,null,"end if"]
[null,null,null,null,null,null,null,"end if",null,null,{"$f":"G169&\" × \"&G198","v":"c26.1 × c26.2"}]
[null,null,null,null,null,null,{"$f":"A158","v":"c26.2"},{"$f":"IF(H169=0,0,IF('Taxable (c5)'!BB338=0,0,IF('Taxable (c5)'!BB338>('Status (c3a)'!AE33+'Deductions (c4)'!I383),'Status (c3a)'!AE45,IF(AND('Status (c3a)'!E21=2,'Taxable (c5)'!BB338>('Status (c3a)'!I33+'Status (c3a)'!M33+'Status (c3a)'!Q33+'Status (c3a)'!Y33+'Deductions (c4)'!I383)),'Status (c3a)'!AB45,IF('Taxable (c5)'!BB338>('Status (c3a)'!I33+'Status (c3a)'!M33+'Status (c3a)'!Q33+'Deductions (c4)'!I383),'Status (c3a)'!Y45,IF(AND('Status (c3a)'!E21=2,'Taxable (c5)'!BB338>('Status (c3a)'!I33+'Status (c3a)'!M33+'Deductions (c4)'!I383)),'Status (c3a)'!Q45,IF('Taxable (c5)'!BB338>'Status (c3a)'!I33,'Status (c3a)'!M45,IF(AND('Status (c3a)'!E21=2,'Taxable (c5)'!BB338>0),'Status (c3a)'!I45,0))))))))","v":0},null,{"$f":"A159","v":"c26.3"},{"$f":"IF(H169=0,0,IF('Taxable (c5)'!BB338=0,0,TRUNC(H169*H198,2)))","v":0},"pdown"]
[null,null,null,null,null,null,null,null,null,null,{"$f":"\"Copy to \"&'Tax adj (c9)'!I164","v":"Copy to c9.39b"}]
[null,null,"end if"]

{"sheet":"S loans(c27)","index":80,"n_rows":279,"n_cols":12,"rows_kept":279,"cut":false,"hidden":true,"merged":[]}
["c27.1","Calculate Student Loans Repayments",null,null,null,null,"If any box in this stage is negative substitute zero"]
["c27.1a"]
["c27.1b"]
["c27.1c"]
["c27.2",null,null,null,null,"Employment 1",{"$f":"TRUNC(MAX(0,EMP!S5+TRUNC(EMP!D26+EMP!H26+EMP!H11,0)-(EMP!S31+EMP!H5)),0)","v":0}]
["c27.3",null,null,null,null,"Employment 2",{"$f":"TRUNC(MAX(0,EMP!T5+TRUNC(EMP!L26+EMP!P26+EMP!P11,0)-(EMP!T31+EMP!P5)),0)","v":0}]
["c27.4","Employment "]
["c27.5",{"$f":"\"Complete box \"&F16&\" for each instance of the employment schedule\"","v":"Complete box c27.1c for each instance of the employment schedule"}]
["c27.6",null,null,null,null,null,{"$f":"\"(\"&EMP&EMP!C4&\" + \"&EMP&EMP!C10&\" + \"&EMP&EMP!C25&\" + \"&EMP&EMP!G25&\") minus \"&EMP&EMP!G4","v":"(EMP1 + EMP3 + EMP12 + EMP16) minus EMP1.1"}]
[null,null,null,null,"no formula needed in this box ",{"$f":"A2","v":"c27.1a"},null,"£down (for each EMP)"]
["c27.6a"]
["c27.6b",null,null,null,null,null,{"$f":"EMP&EMP!C30&\" + \"&EMP&EMP!C33&\" + \"&EMP&EMP!G30&\" + \"&EMP&EMP!G33","v":"EMP17 + EMP18 + EMP19 + EMP20"}]
["c27.6c",null,null,null,"no formula needed in this box ",{"$f":"A3","v":"c27.1b"},null,"£up (for each EMP)"]
["c27.7",null,null,null,null,null,null,null,null,null,{"$f":"\"Total all instances \"&EMP&EMP!C4&\", \"&EMP&EMP!C10&\", \"&EMP&EMP!C25&\", and \"&EMP&EMP!G25","v":"Total all instances EMP1, EMP3, EMP12, and EMP16"}]
["c27.8",null,null,null,null,null,{"$f":"F10&\" minus \"&F13","v":"c27.1a minus c27.1b"},null,null,null,{"$f":"\"minus total all instances \"&EMP&EMP!C30&\" to \"&EMP&EMP!G33","v":"minus total all instances EMP17 to EMP20"}]
["c27.8a",null,null,null,"no formula needed in this box ",{"$f":"A4","v":"c27.1c"},null,null,null,{"$f":"A1","v":"c27.1"},{"$f":"G5+G6","v":0},"£down"]
["c27.8b"]
["c27.9a","Share schemes and lump sums",null,null,null,null,{"$f":"ASE&ASE!C5&\" + \"&ASE&ASE!C8&\" + \"&ASE&ASE!C11&\" + \"&ASE&ASE!C14","v":"ASE1 + ASE3 + ASE4 + ASE5"}]
["c27.9b",null,null,null,null,{"$f":"A5","v":"c27.2"},{"$f":"TRUNC(ASE!D6+ASE!D9+ASE!D12+ASE!D15,0)","v":0},"£down"]
["c27.9c"]
["c27.9",null,null,null,null,null,{"$f":"\"Total all instances \"&F16&\" + \"&F19","v":"Total all instances c27.1c + c27.2"},null,null,null,{"$f":"F16&\" + \"&F19","v":"c27.1c + c27.2"}]
["c27.10",null,null,null,null,{"$f":"A6","v":"c27.3"},{"$f":"K16+G19","v":0},null,null,{"$f":"A6","v":"c27.3"}]
["c27.11"]
["c27.12",null,null,null,null,null,{"$f":"ASE&ASE!G11&\" + \"&ASE&ASE!G14&\" + \"&ASE&ASE!G17","v":"ASE11 + ASE12 + ASE13"}]
["c27.13",null,null,null,null,{"$f":"A7","v":"c27.4"},{"$f":"TRUNC(ASE!H12+ASE!H15+ASE!H18+0.99,0)","v":0},"£up"]
["c27.14"]
["c27.15",null,null,null,null,null,{"$f":"F22&\" minus \"&F25","v":"c27.3 minus c27.4"}]
["c27.16","Earned Income for Student Loan Purposes",null,null,null,{"$f":"A8","v":"c27.5"},{"$f":"MAX(G22-G25,0)","v":0}]
["c27.16a"]
["c27.17"]
["c27.18",null,null,null,null,null,"Set to zero"]
["c27.19",null,null,null,null,{"$f":"A11","v":"c27.6a"}]
["c27.20"]
["c27.21",null,null,null,null,null,"Set to zero"]
["c27.22",null,null,null,null,{"$f":"A12","v":"c27.6b"}]
["c27.23"]
["c27.24",null,null,null,null,null,"Set to zero"]
["c27.25",null,null,null,null,{"$f":"A13","v":"c27.6c"}]
["c27.26"]
["c27.27"]
["c27.28"]
["c27.29"]
["c27.29a"]
["c27.30"]
["c27.31"]
["c27.32"]
["c27.33"]
["c27.34"]
["c27.35"]
["c27.36"]
["c27.37"]
["c27.38",null,null,null,null,null,"Set to zero"]
["c27.39",null,null,null,null,{"$f":"A14","v":"c27.7"}]
["c27.40"]
["c27.40a"]
["c27.41",null,null,null,null,null,"Set to zero"]
["c27.42","Employment ",null,null,null,{"$f":"A15","v":"c27.8"}]
["c27.43"]
["c27.43a"]
["c27.43b"]
["c27.43c"]
["c27.44"]
["c27.45"]
[]
[]
[]
[]
[]
[]
[]
[]
[null,null,null,null,null,null,"Set to zero"]
[null,null,null,null,null,{"$f":"A16","v":"c27.8a"}]
[]
[]
[null,null,null,null,null,null,"Set to zero"]
[null,null,null,null,null,{"$f":"A17","v":"c27.8b"}]
[]
[null,{"$f":"\"Complete box \"&F87&\" for each instance of MOR schedule\"","v":"Complete box c27.9c for each instance of MOR schedule"}]
[null,null,null,null,null,null,{"$f":"\"(\"&MOR&MOR!C19&\" + \"&MOR&MOR!G11&\")\"","v":"(MOR38 + MOR17)"}]
[null,null,null,null,null,{"$f":"A18","v":"c27.9a"},{"$f":"TRUNC(MOR!H12+MOR!D20,0)","v":0},"£down (for each MOR)"]
[]
[null,null,null,null,null,null,{"$f":"\"(\"&MOR&MOR!C8&\" + \"&MOR&MOR!C15&\" + \"&MOR&MOR!G15&\")\"","v":"(MOR2.1 + MOR6 + MOR19)"}]
[null,null,null,null,null,{"$f":"A19","v":"c27.9b"},{"$f":"TRUNC(MOR!D9+MOR!D16+MOR!H16+0.99,0)","v":0},"£up (for each MOR)"]
[]
[null,null,null,null,null,null,{"$f":"F81&\" minus \"&F84","v":"c27.9a minus c27.9b"}]
[null,null,null,null,null,{"$f":"A20","v":"c27.9c"},{"$f":"MAX(0,G81-G84)","v":0}]
[]
[null,null,null,null,null,null,{"$f":"\"Total all instances \"&F87","v":"Total all instances c27.9c"}]
[null,"Ministers of Religion",null,null,null,{"$f":"A21","v":"c27.9"},{"$f":"G87","v":0}]
[]
[null,null,null,null,null,null,{"$f":"\"Total all instances (\"&SSE&SE!C8&\")\"","v":"Total all instances (SSE31)"}]
[null,"Self Employment",null,null,null,{"$f":"A22","v":"c27.10"},{"$f":"TRUNC(SE!D9,0)","v":0},"£down (for each SSE)"]
[]
[null,null,null,null,null,null,{"$f":"\"Total all instances \"&FSE&SE!G14","v":"Total all instances FSE76"}]
[null,null,null,null,null,{"$f":"A23","v":"c27.11"},{"$f":"TRUNC(SE!H15,0)","v":0},"£down (for each FSE)"]
[]
[null,null,null,null,null,null,{"$f":"\"from \"&LUN&LUN!K7","v":"from LUN52"}]
[null,"Lloyd's Underwriters ",null,null,null,{"$f":"A24","v":"c27.12"},{"$f":"TRUNC(LUN!L8,0)","v":0},"£down"]
[null,null,null,null,null,null,null,null,null,null,null,"     "]
[null,null,null,null,null,null,{"$f":"\"Total all instances \"&SPS&PS!C7","v":"Total all instances SPS20"}]
[null,"Partnership Income ",null,null,null,{"$f":"A25","v":"c27.13"},{"$f":"TRUNC(PS!D8,0)","v":0},"£down (for each SPS)"]
[]
[null,null,null,null,null,null,{"$f":"\"Total all instances \"&FPS&PS!G45","v":"Total all instances FPS76"}]
[null,null,null,null,null,{"$f":"A26","v":"c27.14"},{"$f":"TRUNC(PS!H46,0)","v":0},"£down (for each FPS)"]
[]
[null,null,null,null,null,null,"Set to zero"]
[null,"UK Land & Property",null,null,null,{"$f":"A27","v":"c27.15"},0,"£down (for each PRO)"]
[]
[null,null,null,null,null,null,{"$f":"INC&'INC(2)'!C4&\" + \"&INC&'INC(2)'!C13&\" + \"&INC&'INC(2)'!G16","v":"INC8 + INC11 + INC16"}]
[null,"Pensions and benefit payments",null,null,null,{"$f":"A28","v":"c27.16"},{"$f":"TRUNC('INC(2)'!D5+'INC(2)'!D14+'INC(2)'!H17,0)","v":0},"£down"]
[]
[null,null,null,null,null,null,{"$f":"\"from \"&'Deductions (c4)'!H343","v":"from c4.54.1"}]
[null,"Total transition profit",null,null,null,{"$f":"A29","v":"c27.16a"},{"$f":"'Deductions (c4)'!I343","v":0}]
[]
[null,null,null,null,null,null,null,null,null,null,{"$f":"F28&\" + \"&F90&\" + \"&F93&\" + \"&F96&\" +\"","v":"c27.5 + c27.9 + c27.10 + c27.11 +"}]
[null,null,null,null,null,null,null,null,null,null,{"$f":"F99&\" + \"&F102&\" + \"&F105&\" + \"&F111&\" + \"&F114","v":"c27.12 + c27.13 + c27.14 + c27.16 + c27.16a"}]
[null,"total earned income ",null,null,null,null,null,null,null,{"$f":"A30","v":"c27.17"},{"$f":"G28+G90+G93+G96+G99+G102+G105+G111+G114","v":0}]
[]
[]
[]
[]
[]
[null,"Unearned Income for Student Loan Purposes"]
[null,null,null,null,null,null,{"$f":"\"Total all instances (\"&SPS&PS!C22&\" + \"&FPS&PS!G17&\" + \"&FPS&PS!G42&\" + \"&FPS&PS!J52&\")\"","v":"Total all instances (SPS28 + FPS35 + FPS70 + FPS73)"}]
[null,"Partnership Income ",null,null,null,{"$f":"A31","v":"c27.18"},{"$f":"TRUNC(PS!D23+PS!H18+PS!H43+PS!K53,0)","v":0},"£down (for each SPS and FPS)"]
[]
[null,null,null,null,null,null,{"$f":"\"From \"&PRO&PRO!G19","v":"From PRO40"}]
[null,"UK Land & Property",null,null,null,{"$f":"A32","v":"c27.19"},{"$f":"TRUNC(PRO!H20,0)","v":0},"£down"]
[]
[null,null,null,null,null,null,{"$f":"'NS income (c1)'!I120&\" + \"&'NS income (c1)'!E126&\" + \"&'NS income (c1)'!I155&\" + \"&'Savings (c2)'!H40&\" + \"&'Divs (c3)'!G21&\" + \"&'Divs (c3)'!G63","v":"c1.35 + c1.37 + c1.44 + c2.9 + c3.5 + c3.16"}]
[null,"Foreign Income",null,null,null,{"$f":"A33","v":"c27.20"},{"$f":"TRUNC('NS income (c1)'!J120+'NS income (c1)'!F126+'NS income (c1)'!J155+'Savings (c2)'!I40+'Divs (c3)'!H21+'Divs (c3)'!H63,0)","v":0}]
[]
[null,null,null,null,null,null,{"$f":"'NS income (c1)'!I164&\" + \"&'Savings (c2)'!H54&\" + \"&'Divs (c3)'!G44&\" + \"&'Divs (c3)'!G75","v":"c1.51 + c2.13 + c3.9 + c3.19"}]
[null,"Trusts and Estates ",null,null,null,{"$f":"A34","v":"c27.21"},{"$f":"'NS income (c1)'!J164+'Savings (c2)'!I54+'Divs (c3)'!H44+'Divs (c3)'!H75","v":0}]
[]
[null,null,null,null,null,null,{"$f":"'Savings (c2)'!H69&\" + \"&'Divs (c3)'!G54","v":"c2.17 + c3.14"}]
[null,"Savings & dividends",null,null,null,{"$f":"A35","v":"c27.22"},{"$f":"'Savings (c2)'!I69+'Divs (c3)'!H54","v":0}]
[]
[null,null,null,null,null,null,{"$f":"\"From \"&INC&'INC(2)'!G13","v":"From INC15"}]
[null,"Pensions and benefit payments",null,null,null,{"$f":"A36","v":"c27.23"},{"$f":"TRUNC('INC(2)'!H14,0)","v":0},"£down"]
[]
[null,null,null,null,null,null,{"$f":"AOI&AOI!C13&\" + \"&AOI&AOI!C19&\" + \"&AOI&AOI!G13","v":"AOI4 + AOI6 + AOI8"}]
[null,"Gains on life policies",null,null,null,{"$f":"A37","v":"c27.24"},{"$f":"TRUNC(AOI!D14+AOI!D20+AOI!H14,0)","v":0},"£down"]
[]
[null,null,null,null,null,null,{"$f":"\"from \"&'NS income (c1)'!I176","v":"from c1.56"}]
[null,"Other Income ",null,null,null,{"$f":"A38","v":"c27.25"},{"$f":"'NS income (c1)'!J176","v":0}]
[]
[null,null,null,null,null,null,{"$f":"F126&\" + \"&F129&\" + \"&F132&\" + \"&F135&\" + \"","v":"c27.18 + c27.19 + c27.20 + c27.21 + "}]
[null,null,null,null,null,null,{"$f":"F138&\" + \"&F141&\" + \"&F144&\" + \"&F147","v":"c27.22 + c27.23 + c27.24 + c27.25"}]
[null,"Total unearned income",null,null,null,{"$f":"A39","v":"c27.26"},{"$f":"G126+G129+G132+G135+G138+G141+G144+G147","v":0}]
[]
[null,null,null,null,null,null,{"$f":"\"SL_UIT (\"&DOLLAR(SL_UIT,0)&\")\"","v":"SL_UIT (£2,000)"}]
[null,"Unearned Income Threshold",null,null,null,{"$f":"A40","v":"c27.27"},{"$f":"SL_UIT","v":2000}]
[]
[null,null,null,null,null,null,null,null,null,{"$f":"\"If \"&F151&\" is greater than \"&F154","v":"If c27.26 is greater than c27.27"}]
[null,null,null,null,null,null,null,null,null,{"$f":"J161&\" = \"&F151","v":"c27.28 = c27.26"}]
[null,null,null,null,null,null,null,null,null,"else"]
[null,null,null,null,null,null,null,null,null,{"$f":"J161&\" = 0 (zero)\"","v":"c27.28 = 0 (zero)"}]
[null,null,null,null,null,null,null,null,null,"end if"]
[null,null,null,null,null,null,null,null,null,{"$f":"A41","v":"c27.28"},{"$f":"IF(G151>G154,G151,0)","v":0}]
[]
[null,null,null,null,null,null,null,null,null,null,{"$f":"J118&\" + \"&J161","v":"c27.17 + c27.28"}]
[null,"Total income for Student Loan purposes",null,null,null,null,null,null,null,{"$f":"A42","v":"c27.29"},{"$f":"K118+K161","v":0}]
[]
[null,null,null,null,null,null,null,null,null,null,"Set to zero"]
[null,null,null,null,null,null,null,null,null,{"$f":"A43","v":"c27.29a"}]
[]
[]
[null,"Total Student Loan Deductions"]
[null,"Losses"]
[null,null,null,null,null,null,{"$f":"\"Total all instances \"&SSE&SE!C11","v":"Total all instances SSE33"}]
[null,null,null,null,null,{"$f":"A44","v":"c27.30"},{"$f":"TRUNC(SE!D12+0.99,0)","v":0},"£up (for each SSE)"]
[]
[null,null,null,null,null,null,{"$f":"\"Total all instances \"&FSE&SE!G20","v":"Total all instances FSE78"}]
[null,null,null,null,null,{"$f":"A45","v":"c27.31"},{"$f":"TRUNC(SE!H21+0.99,0)","v":0},"£up (for each FSE)"]
[]
[null,null,null,null,null,null,{"$f":"\"from \"&LUN&LUN!K10","v":"from LUN56"}]
[null,null,null,null,null,{"$f":"A46","v":"c27.32"},{"$f":"TRUNC(LUN!L11+0.99,0)","v":0},"£up"]
[]
[null,null,null,null,null,null,{"$f":"\"Total all instances \"&SPS&PS!C10","v":"Total all instances SPS22"}]
[null,null,null,null,null,{"$f":"A47","v":"c27.33"},{"$f":"TRUNC(PS!D11+0.99,0)","v":0},"£up (for each SPS)"]
[]
[null,null,null,null,null,null,{"$f":"\"Total all instances (\"&FPS&PS!G11&\" + \"&FPS&PS!J20&\")\"","v":"Total all instances (FPS22 + FPS39)"}]
[null,null,null,null,null,{"$f":"A48","v":"c27.34"},{"$f":"TRUNC(PS!H12+0.99,0)+TRUNC(PS!K21+0.99,0)","v":0},"£up (for each FPS)"]
[]
[null,null,null,null,null,null,{"$f":"\"from \"&PRO&PRO!G22","v":"from PRO42"}]
[null,null,null,null,null,{"$f":"A49","v":"c27.35"},{"$f":"TRUNC(PRO!H23+0.99,0)","v":0},"£up"]
[]
[null,null,null,null,null,null,{"$f":"\"from \"&FOR&FOR!K21","v":"from FOR31"}]
[null,null,null,null,null,{"$f":"A50","v":"c27.36"},{"$f":"TRUNC(FOR!L22+0.99,0)","v":0},"£up"]
[]
[null,null,null,null,null,null,{"$f":"AOR&AOR!C20&\" + \"&AOR&AOR!C23","v":"AOR6 + AOR6.1"}]
[null,"Post-cessation trade relief and certain other losses",null,null,null,{"$f":"A51","v":"c27.37"},{"$f":"TRUNC(AOR!D21+AOR!D24+0.99,0)","v":0},"£up"]
[]
[null,null,null,null,null,null,{"$f":"REL&'REL(1)'!C6&\" + \"&REL&'REL(1)'!C9&\" + \"&REL&'REL(1)'!H6&\" + \"&REL&'REL(1)'!H9","v":"REL1 + REL2 + REL3 + REL4"}]
[null,"Relief for Pension Contributions",null,null,null,{"$f":"A52","v":"c27.38"},{"$f":"TRUNC('REL(1)'!D7+0.99,0)+TRUNC('REL(1)'!D10+0.99,0)+TRUNC('REL(1)'!I7+0.99,0)+TRUNC('REL(1)'!I10+0.99,0)","v":0},"£up"]
[]
[null,null,null,null,null,null,null,null,null,null,{"$f":"F173&\" + \"&F176&\" + \"&F179&\" + \"&F182&\" + \"&F185&\" + \"","v":"c27.30 + c27.31 + c27.32 + c27.33 + c27.34 + "}]
[null,null,null,null,null,null,null,null,null,null,{"$f":"F188&\" + \"&F191&\" + \"&F194&\" + \"&F197","v":"c27.35 + c27.36 + c27.37 + c27.38"}]
[null,"Total deductions",null,null,null,null,null,null,null,{"$f":"A53","v":"c27.39"},{"$f":"G173+G176+G179+G182+G185+G188+G191+G194+G197","v":0}]
[]
[null,null,null,null,null,null,null,null,null,null,{"$f":"J164&\" minus \"&J201","v":"c27.29 minus c27.39"}]
[null,"Total Income on which Student Loan Repayments Due",null,null,null,null,null,null,null,{"$f":"A54","v":"c27.40"},{"$f":"MAX(0,K164-K201)","v":0}]
[]
[]
[null,null,null,null,null,null,null,null,null,null,"Set to zero"]
[null,null,null,null,null,null,null,null,null,{"$f":"A55","v":"c27.40a"}]
[]
[null,null,null,null,null,null,null,null,null,null,{"$f":"\"If pseudo box \"&SLR&'REL(2)'!C13&\" = 01\"","v":"If pseudo box SLRPT = 01"}]
[null,null,null,null,null,null,null,null,null,null,{"$f":"J223&\" = \"&J204&\" minus SL_limit1 (\"&DOLLAR(SL_limit1,0)&\")\"","v":"c27.41 = c27.40 minus SL_limit1 (£26,065)"}]
[null,null,null,null,null,null,null,null,null,null,"else"]
[null,null,null,null,null,null,null,null,null,null,{"$f":"\"If pseudo box \"&SLR&'REL(2)'!C13&\" = 02\"","v":"If pseudo box SLRPT = 02"}]
[null,null,null,null,null,null,null,null,null,null,{"$f":"J223&\" = \"&J204&\" minus SL_limit2 (\"&DOLLAR(SL_limit2,0)&\")\"","v":"c27.41 = c27.40 minus SL_limit2 (£28,470)"}]
[null,null,null,null,null,null,null,null,null,null,"else"]
[null,null,null,null,null,null,null,null,null,null,{"$f":"\"If pseudo box \"&SLR&'REL(2)'!C13&\" = 04\"","v":"If pseudo box SLRPT = 04"}]
[null,null,null,null,null,null,null,null,null,null,{"$f":"J223&\" = \"&J204&\" minus SL_limit4 (\"&DOLLAR(SL_limit4,0)&\")\"","v":"c27.41 = c27.40 minus SL_limit4 (£32,745)"}]
[null,null,null,null,null,null,null,null,null,null,"else"]
[null,null,null,null,null,null,null,null,null,null,{"$f":"J223&\" = 0 (zero)\"","v":"c27.41 = 0 (zero)"}]
[null,null,null,null,null,null,null,null,null,null,"end if"]
[null,null,null,null,null,null,null,null,null,null,"end if"]
[null,null,null,null,null,null,null,null,null,null,"end if"]
[null,null,null,null,null,null,null,null,null,{"$f":"A56","v":"c27.41"},{"$f":"IF(SL_type=1,MAX(0,K204-SL_limit1),IF(SL_type=2,MAX(0,K204-SL_limit2),IF(SL_type=4,MAX(0,K204-SL_limit4),0)))","v":0}]
[]
[null,null,null,null,null,null,null,null,null,null,{"$f":"J223&\" × Sloan_rate (\"&Sloan_rate*100&\"%)\"","v":"c27.41 × Sloan_rate (9%)"}]
[null,"Student Loan Repayment Due",null,null,null,null,null,null,null,{"$f":"A57","v":"c27.42"},{"$f":"TRUNC(K223*Sloan_rate,0)","v":0},"£down"]
[]
[null,null,null,null,null,null,null,null,null,null,{"$f":"\"from \"&SLR&'REL(2)'!G11","v":"from SLR2"}]
[null,"PAYE Student Loan repayments made",null,null,null,null,null,null,null,{"$f":"A58","v":"c27.43"},{"$f":"TRUNC('REL(2)'!H12+0.99,0)","v":0},"£up"]
[]
[null,null,null,null,null,null,null,null,null,null,{"$f":"\"If pseudo box \"&PGLR&'REL(2)'!C13&\" = 03\"","v":"If pseudo box PGLRPT = 03"}]
[null,null,null,null,null,null,null,null,null,null,{"$f":"J236&\" = \"&J204&\" minus PGL_limit (\"&DOLLAR(PGL_limit,0)&\")\"","v":"c27.43a = c27.40 minus PGL_limit (£21,000)"}]
[null,null,null,null,null,null,null,null,null,null,"else"]
[null,null,null,null,null,null,null,null,null,null,{"$f":"J236&\" = 0 (zero)\"","v":"c27.43a = 0 (zero)"}]
[null,null,null,null,null,null,null,null,null,null,"end if"]
[null,null,null,null,null,null,null,null,null,{"$f":"A59","v":"c27.43a"},{"$f":"IF(PGL_type=3,MAX(0,K204-PGL_limit),0)","v":0}]
[]
[null,null,null,null,null,null,null,null,null,null,{"$f":"J236&\" × PGL_rate (\"&PGL_rate*100&\"%)\"","v":"c27.43a × PGL_rate (6%)"}]
[null,"Postgraduate Loan Repayment Due",null,null,null,null,null,null,null,{"$f":"A60","v":"c27.43b"},{"$f":"TRUNC(K236*PGL_rate,0)","v":0},"£down"]
[]
[null,"PAYE Postgraduate Loan repayments made",null,null,null,null,null,null,null,null,{"$f":"\"from \"&SLR&'REL(2)'!G15","v":"from SLR3"}]
[null,null,null,null,null,null,null,null,null,{"$f":"A61","v":"c27.43c"},{"$f":"TRUNC('REL(2)'!H16+0.99,0)","v":0},"£up"]
[]
[null,{"$f":"\"if \"&SLR&'REL(2)'!C11&\" = Y\"","v":"if SLR1 = Y"}]
[null,"and"]
[null,{"$f":"\"If pseudo box \"&SLR&'REL(2)'!C13&\" = 01 or 02 or 04\"","v":"If pseudo box SLRPT = 01 or 02 or 04"}]
[null,{"$f":"\"Calculate \"&J258","v":"Calculate c27.44"}]
[null,"else"]
[null,{"$f":"J258&\" = 0 (zero)\"","v":"c27.44 = 0 (zero)"}]
[]
[]
[]
[]
[]
[]
[]
[null,null,null,null,null,null,null,null,null,null,{"$f":"J226&\" minus \"&J229","v":"c27.42 minus c27.43"}]
[null,"Net Student Loan Repayment Due Through Self Assessment ",null,null,null,null,null,null,null,{"$f":"A62","v":"c27.44"},{"$f":"IF(AND(SL_case,SL_type=1),MAX(0,TRUNC(K226-K229+0.0099,2)),IF(AND(SL_case,SL_type=2),MAX(0,TRUNC(K226-K229+0.0099,2)),IF(AND(SL_case,SL_type=4),MAX(0,TRUNC(K226-K229+0.0099,2)),0)))","v":0},"pup"]
[null,null,null,null,null,null,null,null,null,null,{"$f":"\"Copy to box \"&'Tax due (c12)'!I61","v":"Copy to box c12.7"}]
[]
[null,"end if"]
[]
[]
[null,{"$f":"\"if \"&SLR&'REL(2)'!C11&\" = Y\"","v":"if SLR1 = Y"}]
[null,"and"]
[null,{"$f":"\"If pseudo box \"&PGLR&'REL(2)'!C13&\" = 03\"","v":"If pseudo box PGLRPT = 03"}]
[null,{"$f":"\"Calculate \"&J277","v":"Calculate c27.45"}]
[null,"else"]
[null,{"$f":"J277&\" = 0 (zero)\"","v":"c27.45 = 0 (zero)"}]
[]
[]
[]
[]
[]
[]
[null,null,null,null,null,null,null,null,null,null,{"$f":"J239&\" minus \"&J242","v":"c27.43b minus c27.43c"}]
[null,"Net Postgraduate Loan Repayment Due Through Self Assessment ",null,null,null,null,null,null,null,{"$f":"A63","v":"c27.45"},{"$f":"IF(AND(SL_case,PGL_type=3),MAX(0,TRUNC(K239-K242+0.0099,2)),0)","v":0},"pup"]
[null,null,null,null,null,null,null,null,null,null,{"$f":"\"copy to \"&'Tax due (c12)'!A14","v":"copy to c12.7b"}]
[null,"end if"]

{"sheet":"CBC(c28)","index":81,"n_rows":42,"n_cols":11,"rows_kept":42,"cut":false,"hidden":true,"merged":[]}
["c28.1","Calculate Adjusted Net Income for Child Benefit tax charge"]
["c28.2"]
["c28.3",null,null,"If any box in this stage is negative substitute zero"]
["c28.4"]
["c28.5",{"$f":"\" Boxes \"&A1&\" to \"&A6&\" not used\"","v":" Boxes c28.1 to c28.6 not used"},null,null,null,null,null,null,null,"Set to zero"]
["c28.6",null,null,null,null,null,null,null,{"$f":"A1","v":"c28.1"},0]
["c28.7",null,null,null,null,null,null,null,null,"Set to zero"]
["c28.8",null,null,null,null,null,null,null,{"$f":"A2","v":"c28.2"},0]
["c28.9",null,null,null,null,null,null,null,null,"Set to zero"]
["c28.10",null,null,null,null,null,null,null,{"$f":"A3","v":"c28.3"},0]
["c28.11",null,null,null,null,null,null,null,null,"Set to zero"]
["c28.12",null,null,null,null,null,null,null,{"$f":"A4","v":"c28.4"},0]
["c28.13",null,null,null,null,null,null,null,null,"Set to zero"]
["c28.14",null,null,null,null,null,null,null,{"$f":"A5","v":"c28.5"},0]
[null,null,null,null,null,null,null,null,null,"Set to zero"]
[null,null,null,null,null,null,null,null,{"$f":"A6","v":"c28.6"},0]
[]
[null,null,null,null,null,null,null,null,null,"If calculation type = non-resident"]
[null,null,null,null,null,null,null,null,null,{"$f":"I23&\" = \"&'Deductions (c4)'!H401&\" minus \"&'non-res (c91)'!H119","v":"c28.7 = c4.63 minus c91.27"}]
[null,null,null,null,null,null,null,null,null,"else"]
[null,null,null,null,null,null,null,null,null,{"$f":"I23&\" = from \"&'Deductions (c4)'!H401","v":"c28.7 = from c4.63"}]
[null,null,null,null,null,null,null,null,null,"end if"]
[null,"Adjusted Net Income for Child Benefit tax charge",null,null,null,null,null,null,{"$f":"A7","v":"c28.7"},{"$f":"IF(non_resident,adjusted_net_income-'non-res (c91)'!I119,adjusted_net_income)","v":0}]
[]
[null,null,null,null,null,null,null,null,null,{"$f":"\"CBC_HR_threshold (\"&DOLLAR(CBC_HR_threshold,0)&\")\"","v":"CBC_HR_threshold (£60,000)"}]
[null,"Child Benefit income limit",null,null,null,null,null,null,{"$f":"A8","v":"c28.8"},{"$f":"CBC_HR_threshold","v":60000}]
[]
[null,null,null,null,null,null,null,null,null,{"$f":"I23&\" minus \"&I26","v":"c28.7 minus c28.8"}]
[null,"Adjusted Net Income in excess of Child Benefit income limit",null,null,null,null,null,null,{"$f":"A9","v":"c28.9"},{"$f":"MAX(0,J23-J26)","v":0}]
[]
[null,null,null,null,null,null,null,null,null,{"$f":"I29&\" × CBC_taper (\"&CBC_taper*100&\"%)\"","v":"c28.9 × CBC_taper (0.5%)"}]
[null,null,null,null,null,null,null,null,{"$f":"A10","v":"c28.10"},{"$f":"TRUNC(J29*CBC_taper,0)","v":0},"£down"]
[]
[null,null,null,{"$f":"\"from box \"&'REL(2)'!K23&'REL(2)'!C25","v":"from box CBC1"},null,null,null,null,null,{"$f":"C35&\" × CBC_rate (\"&CBC_rate*100&\"%)\"","v":"c28.11 × CBC_rate (1%)"}]
[null,null,{"$f":"A11","v":"c28.11"},{"$f":"TRUNC('REL(2)'!D26,0)","v":0},"£down",null,null,null,{"$f":"A12","v":"c28.12"},{"$f":"TRUNC(D35*CBC_rate,2)","v":0},"pdown"]
[]
[null,null,null,null,null,null,null,null,null,{"$f":"I32&\" × \"&I35","v":"c28.10 × c28.12"}]
[null,null,null,null,null,null,null,null,{"$f":"A13","v":"c28.13"},{"$f":"J32*J35","v":0}]
[]
[null,null,null,null,null,null,null,null,null,{"$f":"\"lower of \"&C35&\" and \"&I38","v":"lower of c28.11 and c28.13"}]
[null,null,null,null,null,null,null,null,{"$f":"A14","v":"c28.14"},{"$f":"TRUNC(MIN(D35,J38),0)","v":0},"£down"]
[null,null,null,null,null,null,null,null,null,{"$f":"\"copy to \"&'Tax adj (c9)'!A50","v":"copy to c9.39c"}]

{"sheet":"non-res (c91)","index":82,"n_rows":122,"n_cols":20,"rows_kept":122,"cut":false,"hidden":true,"merged":[]}
["c91.1","Income tax for non-residents",null,"If any box in this stage is negative substitute zero"]
["c91.2"]
["c91.3"]
["c91.3a"]
["c91.4"]
["c91.5",{"$f":"\"If \"&NRD&NRD!C5&\" = N\"","v":"If NRD1 = N"}]
["c91.6",{"$f":"\"set boxes \"&C15&\" to \"&R119&\" to 0 (zero)\"","v":"set boxes c91.1 to c91.35 to 0 (zero)"}]
["c91.7","else"]
["c91.8"]
["c91.9","Calculate Adjustments needed to main calculation"]
["c91.10"]
["c91.11","Total Income",null,null,null,null,null,"Disregarded income from UK sources",null,null,null,null,"Chargeable income",null,null,null,null,"Tax deducted from disregarded income"]
["c91.12"]
["c91.13",null,null,{"$f":"\"from \"&'NS income (c1)'!I184","v":"from c1.57"},null,null,null,null,null,null,null,null,null,null,null,null,null,"Non-savings income etc."]
["c91.14","Non-savings income etc.",{"$f":"A1","v":"c91.1"},{"$f":"'NS income (c1)'!J184+IF(calc_TP_alt_c8_26,'Deductions (c4)'!I343,0)","v":0}]
["c91.15",null,null,null,null,null,null,"Disregarded non-savings income "]
["c91.16"]
["c91.17",null,null,null,null,null,null,null,{"$f":"INC&'INC(2)'!C4&\" + \"&INC&'INC(2)'!G7&\" + \"&INC&'INC(2)'!G13&\" + \"&INC&'INC(2)'!G16","v":"INC8 + INC13 + INC15 + INC16"},null,null,null,null,null,null,null,null,null,{"$f":"\"from \"&INC&'INC(2)'!G10","v":"from INC14"}]
["c91.18","Pension and Benefits",null,null,null,null,null,{"$f":"A2","v":"c91.2"},{"$f":"TRUNC('INC(2)'!D5,0)+TRUNC('INC(2)'!H8,0)+TRUNC('INC(2)'!H14,0)+TRUNC('INC(2)'!H17,0)","v":0},"£down",null,null,null,null,null,null,"Tax on Taxable Incapacity Benefit",{"$f":"A32","v":"c91.29"},{"$f":"TRUNC('INC(2)'!H11+0.99)","v":0},"£up"]
["c91.19"]
["c91.19a","Discretionary trust income + trust rate non-savings",null,null,null,null,null,null,{"$f":"\"from \"&'NS income (c1)'!E160","v":"from c1.46"},null,null,null,null,null,null,null,null,null,{"$f":"\"from \"&'Tax paid (c11)'!F60","v":"from c11.17"}]
["c91.20",null,null,null,null,null,{"$f":"TRU&TRU!C6&\" × Trust_gross (\"&trust_gross_F&\")\"","v":"TRU1 × Trust_gross (100/55)"},{"$f":"A3","v":"c91.3"},{"$f":"'NS income (c1)'!F160","v":0},null,null,null,null,null,null,null,"Tax on Discretionary trust income",{"$f":"A33","v":"c91.30"},{"$f":"'Tax paid (c11)'!G60","v":0}]
["c91.21"]
["c91.22",null,null,null,null,null,null,null,{"$f":"\"from \"&'NS income (c1)'!E161","v":"from c1.47"},null,null,null,null,null,null,null,null,null,{"$f":"\"from \"&'Tax paid (c11)'!F61","v":"from c11.18"}]
["c91.22a",null,null,null,null,null,{"$f":"TRU&TRU!C32&\" × Trust_gross (\"&trust_gross_F&\")\"","v":"TRU10 × Trust_gross (100/55)"},{"$f":"A4","v":"c91.3a"},{"$f":"'NS income (c1)'!F161","v":0},null,null,null,null,null,null,null,"Tax on trust rate non-savings",{"$f":"A34","v":"c91.30a"},{"$f":"'Tax paid (c11)'!G61","v":0}]
["c91.23"]
["c91.24",null,null,null,null,null,null,null,"set to zero",null,null,null,null,null,null,null,null,null,{"$f":"H28&\" × OLD_BR (\"&OLD_BR*100&\"%)\"","v":"c91.4 × OLD_BR (22%)"}]
["c91.25",null,null,null,null,null,"set to zero",{"$f":"A5","v":"c91.4"},0,null,null,null,null,null,null,null,"Income from UK estates tax at old BR rate 22%",{"$f":"A35","v":"c91.31"},{"$f":"TRUNC((I28*OLD_BR)+0.0099,2)","v":0},"pup"]
["c91.26"]
["c91.27"]
["c91.28"]
["c91.29",null,null,null,null,null,null,null,{"$f":"H19&\" + \"&H22&\" + \"&H25&\" + \"&H28","v":"c91.2 + c91.3 + c91.3a + c91.4"},null,null,null,null,{"$f":"C15&\" minus \"&H33","v":"c91.1 minus c91.5"},null,null,null,null,{"$f":"R19&\" + \"&R22&\" + \"&R25&\" + \"&R28","v":"c91.29 + c91.30 + c91.30a + c91.31"}]
["c91.30","Total Non-savings income",null,null,null,null,null,{"$f":"A6","v":"c91.5"},{"$f":"I19+I22+I25+I28","v":0},null,null,null,{"$f":"A7","v":"c91.6"},{"$f":"MAX(0,D15-I33)","v":0},null,null,null,{"$f":"A36","v":"c91.31a"},{"$f":"S19+S22+S25+S28","v":0}]
["c91.30a",null,null,null,null,null,null,null,null,null,null,null,null,{"$f":"\"copy to \"&'Taxable (c5)'!E17","v":"copy to c5.3"}]
["c91.31"]
["c91.31a"]
["c91.32","Total Income"]
["c91.33",null,null,{"$f":"\"from \"&'NS income (c1)'!I188","v":"from c1.58"}]
["c91.34","Lump sum income etc.",{"$f":"A8","v":"c91.7"},{"$f":"'NS income (c1)'!J188","v":0}]
["c91.34a"]
["c91.34b"]
["c91.34b1","Total Income",null,null,null,null,null,"Disregarded income from UK sources",null,null,null,null,"Chargeable income",null,null,null,null,"Tax deducted from disregarded income"]
["c91.34c",null,null,{"$f":"\"from \"&'Savings (c2)'!H79","v":"from c2.19"}]
["c91.34d","Savings income etc.",{"$f":"A9","v":"c91.8"},{"$f":"'Savings (c2)'!I79","v":0},null,null,null,null,null,null,null,null,null,null,null,null,null,"Savings income etc."]
["c91.35"]
[null,null,null,null,null,null,null,null,{"$f":"\"from \"&'Savings (c2)'!E59","v":"from c2.14"},null,null,null,null,null,null,"Tax taken off UK Interest etc.",null,null,{"$f":"\"from \"&'Tax paid (c11)'!I76","v":"from c11.27"}]
[null,"Taxed UK Interest etc.",null,null,null,null,{"$f":"'Savings (c2)'!F58","v":"INC1 × savings_gross (100/80)"},{"$f":"A10","v":"c91.9"},{"$f":"'Savings (c2)'!F59","v":0},null,null,null,null,null,null,null,{"$f":"'Tax paid (c11)'!J75","v":"INC1 × savings_gross (100/80) × BR_rate (20%)"},{"$f":"A37","v":"c91.32"},{"$f":"'Tax paid (c11)'!J76","v":0}]
[]
[null,null,null,null,null,null,null,null,{"$f":"\"from \"&INC&'INC(1)'!C18","v":"from INC2"}]
[null,"Untaxed UK interest etc",null,null,null,null,null,{"$f":"A11","v":"c91.10"},{"$f":"TRUNC('INC(1)'!D19,0)","v":0},"£down"]
["TRU12"]
[{"$f":"TRU!H25","v":0},null,null,null,null,null,null,null,{"$f":"\"from \"&AOI&AOI!G7","v":"from AOI3"},null,null,null,null,null,null,"Tax taken off gilt-edged & other UK securities",null,null,{"$f":"\"from \"&'Tax paid (c11)'!I80","v":"from c11.28"}]
[null,"Gilt-edged & other UK securities Gross amount before tax",null,null,null,null,null,{"$f":"A12","v":"c91.11"},{"$f":"TRUNC(AOI!H8,0)","v":0},"£down",null,null,null,null,null,null,null,{"$f":"A38","v":"c91.33"},{"$f":"TRUNC('Tax paid (c11)'!J80+0.99)","v":0},"£up"]
[]
[null,null,null,null,null,null,null,null,{"$f":"\"from \"&'Savings (c2)'!E47","v":"from c2.10"},null,null,null,null,null,null,"Tax taken off Trust Savings income",null,null,{"$f":"H56&\" × BR_rate (\"&BR_rate*100&\"%)\"","v":"c91.12 × BR_rate (20%)"}]
[null,"Trust Savings income",null,null,null,null,{"$f":"'Savings (c2)'!F46","v":"savings_gross (100/80)"},{"$f":"A13","v":"c91.12"},{"$f":"'Savings (c2)'!F47","v":0},null,null,null,null,null,null,null,null,{"$f":"A39","v":"c91.34"},{"$f":"TRUNC((I56)*BR_rate,2)","v":0},"pdown"]
[]
[null,null,null,null,null,null,null,null,{"$f":"H47&\" + \"&H50&\" + \"&H53&\" + \"&H56","v":"c91.9 + c91.10 + c91.11 + c91.12"},null,null,null,null,{"$f":"C44&\" minus \"&H59","v":"c91.8 minus c91.13"},null,null,null,null,{"$f":"R47&\" + \"&R53&\" + \"&R56","v":"c91.32 + c91.33 + c91.34"}]
[null,"Total savings income",null,null,null,null,null,{"$f":"A14","v":"c91.13"},{"$f":"I47+I50+I53+I56","v":0},null,null,"Savings income etc.",{"$f":"A15","v":"c91.14"},{"$f":"MAX(0,D44-I59)","v":0},null,null,null,{"$f":"A40","v":"c91.34a"},{"$f":"S47+S53+S56","v":0}]
[null,null,null,null,null,null,null,null,null,null,null,null,null,{"$f":"\"copy to \"&'Taxable (c5)'!E199","v":"copy to c5.37"}]
[]
[]
[null,"Total Income",null,null,null,null,null,"Disregarded income from UK sources",null,null,null,null,"Chargeable income",null,null,null,null,"Tax deducted from disregarded income"]
[null,null,null,{"$f":"\"from \"&'Divs (c3)'!G58","v":"from c3.15"}]
[null,"Dividend income etc.",{"$f":"A16","v":"c91.15"},{"$f":"'Divs (c3)'!H58","v":0},null,null,null,null,null,null,null,null,null,null,null,null,null,"Dividend income etc."]
[]
[null,"Foreign",null,null,null,null,null,null,{"$f":"\"from \"&'Divs (c3)'!G21","v":"from c3.5"}]
[null,null,null,null,null,null,null,{"$f":"A17","v":"c91.16"},{"$f":"'Divs (c3)'!H21","v":0}]
[]
[]
[null,"Stock dividends + Non-qualifying distributions",null,null,null,null,null,null,{"$f":"'Divs (c3)'!D50&\" + \"&'Divs (c3)'!D51&\" + \"&'Divs (c3)'!D52","v":"c3.12 + c3.13 + c3.13a"}]
[null,null,null,null,null,null,{"$f":"AOI&AOI!C28&\" + \"&AOI&AOI!G28&\" + \"&AOI&AOI!G31","v":"AOI12 + AOI13 + AOI13.1"},{"$f":"A18","v":"c91.17"},{"$f":"'Divs (c3)'!E50+'Divs (c3)'!E51+'Divs (c3)'!E52","v":0}]
[]
[]
[null,"Trusts and estates",null,null,null,null,null,null,{"$f":"\"from \"&'Divs (c3)'!D28","v":"from c3.6"}]
[null,null,null,null,null,null,{"$f":"\"(\"&TRU&TRU!G11&\" + \"&TRU&TRU!C28&\") × divs_gross (\"&divs_gross_F&\")\"","v":"(TRU5 + TRU9) × divs_gross (100/91.25)"},{"$f":"A19","v":"c91.18"},{"$f":"'Divs (c3)'!E28","v":0}]
[]
[null,null,null,null,null,null,null,null,{"$f":"\"from \"&'Divs (c3)'!D32","v":"from c3.7"},null,null,null,null,null,null,null,null,null,{"$f":"\"from \"&'Tax paid (c11)'!F66","v":"from c11.23"}]
[null,null,null,null,null,null,{"$f":"TRU&TRU!K15&\" × divs_gross (\"&divs_gross_F&\")\"","v":"TRU18 × divs_gross (100/91.25)"},{"$f":"A20","v":"c91.19"},{"$f":"'Divs (c3)'!E32","v":0},null,null,null,null,null,null,null,{"$f":"\"(TRU\"&TRU!G11&\" + TRU\"&TRU!C28&\" + TRU\"&TRU!K15&\") × divs_gross (\"&divs_gross_F&\") × DivBR_rate (\"&divs_gross_P*100&\"%)\"","v":"(TRU5 + TRU9 + TRU18) × divs_gross (100/91.25) × DivBR_rate (8.75%)"},{"$f":"A41","v":"c91.34b"},{"$f":"'Tax paid (c11)'!G66","v":0}]
[]
[null,null,null,null,null,null,null,null,{"$f":"\"from \"&'Divs (c3)'!D36","v":"from c3.7.1"},null,null,null,null,null,null,null,null,null,{"$f":"\"from \"&'Tax paid (c11)'!F62","v":"from c11.19"}]
[null,null,null,null,null,null,{"$f":"TRU&TRU!K20&\" × divs_gross_old (\"&divs_gross_old_F&\")\"","v":"TRU18.1 × divs_gross_old (100/92.5)"},{"$f":"A21","v":"c91.19a"},{"$f":"'Divs (c3)'!E36","v":0},null,null,null,null,null,null,null,{"$f":"TRU&TRU!K20&\" × divs_gross_old (\"&divs_gross_old_F&\") × Old_Div_rate (\"&Old_DIV_rate*100&\"%)\"","v":"TRU18.1 × divs_gross_old (100/92.5) × Old_Div_rate (7.5%)"},{"$f":"A42","v":"c91.34b1"},{"$f":"'Tax paid (c11)'!G62","v":0}]
[]
[null,null,null,null,null,null,null,null,{"$f":"\"from \"&'Divs (c3)'!D40","v":"from c3.8"},null,null,null,null,null,null,null,null,null,{"$f":"\"from \"&'Tax paid (c11)'!F65","v":"from c11.22"}]
[null,null,null,null,null,null,{"$f":"TRU&TRU!G24&\" × trust_div_gross (\"&trust_div_gross_F&\")\"","v":"TRU12 × trust_div_gross (100/60.65)"},{"$f":"A22","v":"c91.20"},{"$f":"'Divs (c3)'!E40","v":0},null,null,null,null,null,null,null,{"$f":"'Divs (c3)'!E39&\" × DivAR_rate (\"&(trust_div_gross_P*100)&\"%)\"","v":"TRU12 × trust_div_gross (100/60.65) × DivAR_rate (39.35%)"},{"$f":"A43","v":"c91.34c"},{"$f":"'Tax paid (c11)'!G65","v":0}]
[]
[]
[null,"UK",null,null,null,null,null,null,{"$f":"\"from \"&'Divs (c3)'!D48","v":"from c3.10"}]
[null,null,null,null,null,null,{"$f":"\"from \"&INC&'INC(1)'!I15","v":"from INC4"},{"$f":"A23","v":"c91.21"},{"$f":"'Divs (c3)'!E48","v":0}]
[]
[null,null,null,null,null,null,null,null,{"$f":"\"from \"&'Divs (c3)'!D49","v":"from c3.11"}]
[null,null,null,null,null,null,{"$f":"\"from \"&INC&'INC(1)'!I18","v":"from INC5"},{"$f":"A24","v":"c91.22"},{"$f":"'Divs (c3)'!E49","v":0},null,null,null,null,null,null,null,null,null,{"$f":"\"s399 ITA 2007 if non-UK resident (\"&INC&'INC(1)'!I15&\" + \"&INC&'INC(1)'!I18&\" + \"&TRU&TRU!G11&\" + \"&TRU&TRU!C28&\" + \"&TRU&TRU!G24&\" + \"&AOI&AOI!G28&\") x DivBR_rate (\"&DivBR_rate*100&\"%)\"","v":"s399 ITA 2007 if non-UK resident (INC4 + INC5 + TRU5 + TRU9 + TRU12 + AOI13) x DivBR_rate (8.75%)"}]
[]
[]
[null,null,null,null,null,null,null,null,{"$f":"H68&\" + \"&H72&\" + \"&H76&\" + \"&H79&\" + \"&H82&\" + \"&H85&\" + \"&H89&\" + \"&H92","v":"c91.16 + c91.17 + c91.18 + c91.19 + c91.19a + c91.20 + c91.21 + c91.22"},null,null,null,null,{"$f":"C65&\" minus \"&H96","v":"c91.15 minus c91.22a"},null,null,null,null,{"$f":"\"(\"&'Divs (c3)'!D28&\" + \"&'Divs (c3)'!D40&\" + \"&'Divs (c3)'!D48&\" + \"&'Divs (c3)'!D49&\" + \"&'Divs (c3)'!D51&\") × DivBR_rate (\"&DivBR_rate*100&\"%)\"","v":"(c3.6 + c3.8 + c3.10 + c3.11 + c3.13) × DivBR_rate (8.75%)"}]
[null,"Total dividend income",null,null,null,null,null,{"$f":"A25","v":"c91.22a"},{"$f":"I68+I72+I76+I79+I82+I85+I89+I92","v":0},null,null,"Dividend income etc.",{"$f":"A26","v":"c91.23"},{"$f":"MAX(0,D65-I96)","v":0},null,null,"s399 ITA 2007",{"$f":"A44","v":"c91.34d"},{"$f":"IF(Resident,0,TRUNC(('Divs (c3)'!E28+'Divs (c3)'!E40+'Divs (c3)'!E48+'Divs (c3)'!E49+'Divs (c3)'!E51)*DivBR_rate,2))","v":0},"pdown"]
[]
[]
[]
[null,"Total Income"]
[null,null,null,{"$f":"\"from \"&'Divs (c3)'!G69","v":"from c3.18"}]
[null,"Gains on life policies with notional tax",{"$f":"A27","v":"c91.24"},{"$f":"'Divs (c3)'!H69","v":0}]
[]
[]
[]
[null,"Total Income"]
[null,null,null,{"$f":"\"from \"&'Divs (c3)'!G75","v":"from c3.19"}]
[null,"Non-savings income etc. with notional tax",{"$f":"A28","v":"c91.25"},{"$f":"'Divs (c3)'!H75","v":0}]
[]
[]
[null,null,null,{"$f":"\"from \"&'Divs (c3)'!G80","v":"from c3.20"}]
[null,null,{"$f":"A29","v":"c91.26"},{"$f":"'Divs (c3)'!H80","v":0}]
[]
[]
[null,null,null,null,null,null,null,"Total Disregarded income from UK sources",null,null,null,null,"Total Chargeable income",null,null,null,null,"Total Tax deducted from disregarded income"]
[]
[null,null,null,null,null,null,null,null,null,null,null,null,null,{"$f":"M33&\" + \"&C39&\" + \"&M59&\" + \"","v":"c91.6 + c91.7 + c91.14 + "}]
[null,null,null,null,null,null,null,null,{"$f":"H33&\" + \"&H59&\" + \"&H96","v":"c91.5 + c91.13 + c91.22a"},null,null,null,null,{"$f":"M96&\" + \"&C102&\" + \"&C108&\" + \"&C112","v":"c91.23 + c91.24 + c91.25 + c91.26"},null,null,null,null,{"$f":"R33&\" + \"&R59&\" + \"&R79&\" + \"&R82&\" + \"&R85&\" + \"&R96","v":"c91.31a + c91.34a + c91.34b + c91.34b1 + c91.34c + c91.34d"}]
[null,null,null,null,null,null,null,{"$f":"A30","v":"c91.27"},{"$f":"I33+I59+I96","v":0},null,null,null,{"$f":"A31","v":"c91.28"},{"$f":"N33+D39+N59+N96+D102+D108+D112","v":0},null,null,null,{"$f":"A45","v":"c91.35"},{"$f":"S33+S59+S79+S82+S85+S96","v":0}]
[null,null,null,null,null,null,null,null,null,null,null,null,null,null,null,null,null,null,{"$f":"\"copy to \"&'Tax due (c12)'!A4","v":"copy to c12.1c"}]
[]
[null,null,null,null,null,null,null,null,null,null,null,null,null,null,null,null,null,null,"end if"]

{"sheet":"c99","index":83,"n_rows":100,"n_cols":4,"rows_kept":100,"cut":false,"hidden":true,"merged":[[82,3,86,3],[51,1,55,1]]}
["c99.1","Annex G: Adjust figures when taxpayer’s self-calculation is used (c99 boxes)"]
["c99.2"]
["c99.3","If the operator opts to accept the taxpayer’s supplied figure in preference to the Revenue calculated "]
["c99.3a","figure (or the taxpayer’s supplied figure is within the box CAL1 or CAL2 tolerance) then it is necessary to "]
["c99.4","either increase or decrease the Revenue calculated figures for Income Tax, and tax paid in proportion to "]
["c99.5","the taxpayer’s supplied figure."]
["c99.6"]
["c99.7","Where the calculation process is invoked during the LDC capture and the taxpayer is a Self-Calculation "]
["c99.8","case and the calculated figure of TOTAL TAX AND NIC DUE is outside the tolerance the Revenue figure "]
["c99.9","is output to the operator  can then choose either to accept the taxpayer’s figure or repair it to the "]
["c99.9a","Revenue calculated figure."]
["c99.10"]
["c99.11","Where the calculation process is invoked during the Internet load then a tolerance is allowed to enable "]
["c99.12","acceptance of Internet returns where there is a small difference between taxpayers’ and Revenue "]
["c99.13","calculations. "]
["c99.14"]
["c99.15","If self-calculation (CAL1 or CAL2 present)"]
["c99.16",{"$f":"\"If CAL1 + (CAL2 x -1) not equal to (\"&'Tax due (c12)'!L107&\")\"","v":"If CAL1 + (CAL2 x -1) not equal to (c12.18)"}]
["c99.17",{"$f":"\"If CAL1 + (CAL2 x -1) in range (\"&'Tax due (c12)'!L107&\") minus £25 to(\"&'Tax due (c12)'!L107&\") + £5\"","v":"If CAL1 + (CAL2 x -1) in range (c12.18) minus £25 to(c12.18) + £5"}]
["c99.18","Adjust calculation figures"]
["c99.19","Set Reason Code To Taxpayer Specified"]
["c99.20","else"]
["c99.21","If LDC capture and the operator has accepted CAL1 or CAL2 figure"]
["c99.22","Adjust calculation figures"]
["c99.23","Set Reason Code To Taxpayer Specified"]
["c99.24","else"]
["c99.25","(This will be an error that will be caught by CPR Validate Return. If mainframe function"]
["c99.26","difference is outside tolerance otherwise this is being called by an LDC function when the 2 "]
["c99.27","amounts must either be the same or subject to acceptance by the operator)"]
["c99.28","end if"]
["c99.29","end if"]
["c99.30","else"]
[null,"no adjustment required"]
[null,"end if"]
[null,"else"]
[null,"no adjustment required"]
[null,"Set Reason code to Revenue Computed"]
[null,"end if"]
[]
[null,"adjust calculation figures"]
[null,"Box values in this process can be negative"]
[null,"Preserve Revenue calculated values of Income tax, CGT, student loan repayment amount and class 4 NIC figures."]
[null,{"$f":"A1","v":"c99.1"},{"$f":"\"from \"&'Tax due (c12)'!L107","v":"from c12.18"},"Revenue value for box CAL1 or CAL2 "]
[null,"c99.2",{"$f":"\"from \"&'Tax due (c12)'!I5","v":"from c12.1"},"Income tax"]
[null,"c99.3",{"$f":"\"from \"&'Tax due (c12)'!I61","v":"from c12.7"},"student loan repayment"]
[null,"c99.3a",{"$f":"\"from \"&'Tax due (c12)'!I64","v":"from c12.7b"},"Repayment of postgraduate loan repayment"]
[null,"c99.4",{"$f":"\"from \"&'Tax due (c12)'!I39","v":"from c12.2"},"class 4 NIC"]
[null,"c99.5",{"$f":"\"from \"&'Tax due (c12)'!I47","v":"from c12.3"},"class 2 NIC"]
[null,"c99.6",{"$f":"\"from \"&'Tax due (c12)'!I95","v":"from c12.17"},"CGT "]
[null,"c99.7",{"$f":"\"from \"&'Tax due (c12)'!I70","v":"from c12.9"},"Pension charges"]
[null,"Set total tax & NIC, student loan repayment amount, CGT and pension charges to customer calculated values"]
[null,{"$f":"A9","v":"c99.8"},"IF CAL1 > 0 ",{"$f":"\"copy to \"&'Tax due (c12)'!L107","v":"copy to c12.18"}]
[null,null,{"$f":"B52&\"= CAL1\"","v":"c99.8= CAL1"}]
[null,null,"else (customer overpaid)"]
[null,null,{"$f":"B52&\" = -1 x CAL2\"","v":"c99.8 = -1 x CAL2"}]
[null,null,"end if "]
[null,{"$f":"A10","v":"c99.9"},"from CAL3",{"$f":"\"copy to \"&'Tax due (c12)'!I61","v":"copy to c12.7"}]
[null,"c99.9a","from CAL3.1",{"$f":"\"copy to \"&'Tax due (c12)'!I64","v":"copy to c12.7b"}]
[null,"c99.10","from CAL4",{"$f":"\"copy to \"&'Tax due (c12)'!I39","v":"copy to c12.2"}]
[null,"c99.11","from CAL4.1","copy to c12.3"]
[null,"c99.12","from CAL5",{"$f":"\"copy to \"&'Tax due (c12)'!I95","v":"copy to c12.17"}]
[null,"c99.13","from CAL6",{"$f":"\"copy to \"&'Tax due (c12)'!I70","v":"copy to c12.9"}]
[]
[null,"Compare customer calculated values with comparative revenue values"]
[null,"Customer calculated boxes"]
[null,{"$f":"A16","v":"c99.14"},{"$f":"B57&\" + \"&B58&\" + \"&B59&\" + \"&B60&\" + \"&B61&\" + \"&B62","v":"c99.9 + c99.9a + c99.10 + c99.11 + c99.12 + c99.13"}]
[null,"Comparable revenue values"]
[null,{"$f":"A17","v":"c99.15"},{"$f":"B45&\" + \"&B46&\" + \"&B47&\" + \"&B48&\" + \"&B49&\" + \"&B50","v":"c99.3 + c99.3a + c99.4 + c99.5 + c99.6 + c99.7"}]
[null,"Calculate absolute difference"]
[null,{"$f":"A18","v":"c99.16"},{"$f":"\"Absolute value (\"&B66&\" minus \"&B68&\")\"","v":"Absolute value (c99.14 minus c99.15)"}]
[]
[null,"Compare customer calculated values for IT due minus tax paid with comparative revenue values"]
[null,"Calculate absolute difference - always use positive amount"]
[null,{"$f":"A19","v":"c99.17"},{"$f":"\"Absolute value (\"&B52&\" minus \"&B43&\")\"","v":"Absolute value (c99.8 minus c99.1)"}]
[null,{"$f":"A20","v":"c99.18"},{"$f":"\"Absolute value (\"&B70&\" minus \"&B74&\")\"","v":"Absolute value (c99.16 minus c99.17)"}]
[]
[null,{"$f":"\"if \"&B52&\" is less than \"&B43&\" (Revenue figure higher than customers figure)\"","v":"if c99.8 is less than c99.1 (Revenue figure higher than customers figure)"}]
[null,{"$f":"A21","v":"c99.19"},{"$f":"\"If \"&B44&\" is greater than \"&B75","v":"If c99.2 is greater than c99.18"},"Reduce Income tax  first"]
[null,null,{"$f":"B78&\" = \"&B44&\" minus \"&B75","v":"c99.19 = c99.2 minus c99.18"},{"$f":"\"copy to \"&'Tax due (c12)'!I5","v":"copy to c12.1"}]
[null,null,"else"]
[null,null,{"$f":"B78&\" = 0\"","v":"c99.19 = 0"}]
[null,null,"end if  "]
[null,{"$f":"A22","v":"c99.20"},{"$f":"\"If \"&B75&\" is greater than \"&B44","v":"If c99.18 is greater than c99.2"},"work out amount of any further adjustment"]
[null,null,{"$f":"B83&\" = \"&B75&\" minus \"&B44","v":"c99.20 = c99.18 minus c99.2"}]
[null,null,"else"]
[null,null,{"$f":"B83&\" = 0\"","v":"c99.20 = 0"}]
[null,null,"end if  "]
[null,{"$f":"A23","v":"c99.21"},{"$f":"'Tax due (c12)'!I82&\" + \"&B83","v":"c12.13 + c99.20"},"increase tax deducted"]
[null,null,null,{"$f":"\"copy to \"&'Tax due (c12)'!I82","v":"copy to c12.13"}]
[null,"else (customers figure is higher than Revenue figure)"]
[null,{"$f":"A24","v":"c99.22"},{"$f":"B44&\" + \"&B75","v":"c99.2 + c99.18"},"Add difference to income tax"]
[null,null,null,{"$f":"\"copy to \"&'Tax due (c12)'!I5","v":"copy to c12.1"}]
[null,"end if"]
[]
[null,"Update boxes required on SA302"]
[null,{"$f":"\"Use the c12 boxes after they have been updated by \"&B52&\" through \"&B91","v":"Use the c12 boxes after they have been updated by c99.8 through c99.22"}]
[null,{"$f":"A25","v":"c99.23"},{"$f":"'Tax due (c12)'!L55&\" + \"&'Tax due (c12)'!I58&\" + \"&'Tax due (c12)'!I61&\" + \"&'Tax due (c12)'!I64&\" + \"&'Tax due (c12)'!F67&\" + \"&'Tax due (c12)'!I70&\" + \"&'Tax due (c12)'!I73&\" + \"&'Tax due (c12)'!I76&\" + (\"&'Pensions (c25c26)'!J158&\" minus \"&'Pensions (c25c26)'!J162&\")\"","v":"c12.5 + c12.6 + c12.7 + c12.7b + c12.8 + c12.9 + c12.10 + c12.11 + (c25.56 minus c25.57)"},{"$f":"\"copy to \"&'Tax due (c12)'!L79","v":"copy to c12.12"}]
[null,{"$f":"A26","v":"c99.24"},{"$f":"'Tax due (c12)'!I82&\" + \"&'Tax due (c12)'!I85","v":"c12.13 + c12.14"},{"$f":"\"copy to \"&'Tax due (c12)'!L88","v":"copy to c12.15"}]
[null,{"$f":"A27","v":"c99.25"},{"$f":"B97&\" minus \"&B98","v":"c99.23 minus c99.24"},{"$f":"\"copy to \"&'Tax due (c12)'!L91","v":"copy to c12.16"}]
[null,{"$f":"A28","v":"c99.26"},{"$f":"'Tax due (c12)'!L107&\" + \"&'Tax due (c12)'!I113&\" + \"&'Tax due (c12)'!I116","v":"c12.18 + c12.19 + c12.20"},{"$f":"\"copy to \"&'Tax due (c12)'!I119","v":"copy to c12.21"}]

{"sheet":"Swiss (SW)","index":84,"n_rows":74,"n_cols":13,"rows_kept":74,"cut":false,"hidden":true,"merged":[]}
[null,null,"Calculate Swiss tax credit (to match tax liability on income)"]
[]
[null,null,null,null,"Swiss dividends with UK credit",{"$f":"A12","v":"sw1"},{"$f":"TRUNC('Swiss Tax'!J16*divs_gross,0)","v":0}]
[]
[null,null,null,null,null,null,{"$f":"\"from \"&'tax it (c6)'!Q108","v":"from c6.34"},null,null,{"$f":"\"lower of \"&F3&\" and \"&F6","v":"lower of sw1 and sw2"},null,null,{"$f":"I6&\" @ \"&DivHR_rate*100&\"%\"","v":"sw3 @ 33.75%"}]
[null,null,null,null,"Dividends in additional rate band",{"$f":"A13","v":"sw2"},{"$f":"'tax it (c6)'!R108","v":0},null,{"$f":"A14","v":"sw3"},{"$f":"MIN(G3,G6)","v":0},null,{"$f":"A15","v":"sw4"},{"$f":"TRUNC(J6*DivHR_rate,2)","v":0}]
[]
[null,null,null,null,null,null,{"$f":"F3&\" minus \"&I6","v":"sw1 minus sw3"}]
[null,null,null,null,"remaining Swiss dividends",{"$f":"A16","v":"sw5"},{"$f":"MAX(G3-J6,0)","v":0}]
[]
[null,null,null,null,null,null,{"$f":"'CDR (c7)'!E18&\" minus \"&'CDR (c7)'!E22","v":" minus "},null,null,{"$f":"\"lower of \"&F9&\" and \"&F12","v":"lower of sw5 and sw6"},null,null,{"$f":"I12&\" @ \"&(DivHR_rate-SR_rate)*100&\"%\"","v":"sw7 @ 33.75%"}]
["sw1",null,null,null,"Dividends in higher rate band",{"$f":"A17","v":"sw6"},{"$f":"MAX('CDR (c7)'!F18-'CDR (c7)'!F22,0)","v":0},null,{"$f":"A18","v":"sw7"},{"$f":"MIN(G9,G12)","v":0},null,{"$f":"A19","v":"sw8"},{"$f":"TRUNC(J12*(DivHR_rate-SR_rate),2)","v":0}]
["sw2"]
["sw3",null,null,null,null,null,null,null,null,null,null,null,{"$f":"L6&\" + \"&L12","v":"sw4 + sw8"}]
["sw4",null,null,null,null,null,null,null,null,"Tax credit on Swiss dividends that qualify for 10% UK tax credits",null,{"$f":"A20","v":"sw9"},{"$f":"M6+M12","v":0}]
["sw5"]
["sw6",null,null,null,"Swiss dividends without UK credit",{"$f":"A21","v":"sw10"},{"$f":"TRUNC('Swiss Tax'!J23,0)","v":0}]
["sw7"]
["sw8",null,null,null,null,null,{"$f":"F6&\" minus \"&I6","v":"sw2 minus sw3"},null,null,{"$f":"\"lower of \"&F17&\" and \"&F20","v":"lower of sw10 and sw11"},null,null,{"$f":"I20&\" @ \"&DivAR_rate*100&\"%\"","v":"sw12 @ 39.35%"}]
["sw9",null,null,null,"Dividends in additional rate band",{"$f":"A22","v":"sw11"},{"$f":"MAX(G6-J6,0)","v":0},null,{"$f":"A23","v":"sw12"},{"$f":"MIN(G3,G20)","v":0},null,{"$f":"A24","v":"sw13"},{"$f":"TRUNC(J20*DivAR_rate,2)","v":0}]
["sw10"]
["sw11",null,null,null,null,null,{"$f":"F17&\" minus \"&I20","v":"sw10 minus sw12"}]
["sw12",null,null,null,"remaining Swiss dividends",{"$f":"A25","v":"sw14"},{"$f":"MAX(G17-J20,0)","v":0}]
["sw13"]
["sw14",null,null,null,null,null,{"$f":"F12&\" minus \"&I12","v":"sw6 minus sw7"},null,null,{"$f":"\"lower of \"&F23&\" and \"&F26","v":"lower of sw14 and sw15"},null,null,{"$f":"I26&\" @ \"&DivHR_rate*100&\"%\"","v":"sw16 @ 33.75%"}]
["sw15",null,null,null,null,{"$f":"A26","v":"sw15"},{"$f":"MAX(G12-J12,0)","v":0},null,{"$f":"A27","v":"sw16"},{"$f":"MIN(G23,G26)","v":0},null,{"$f":"A28","v":"sw17"},{"$f":"TRUNC(J26*DivHR_rate,2)","v":0}]
["sw16"]
["sw17",null,null,null,null,null,{"$f":"F23&\" minus \"&I26","v":"sw14 minus sw16"}]
["sw18",null,null,null,"remaining Swiss dividends",{"$f":"A29","v":"sw18"},{"$f":"MAX(G23-J26,0)","v":0}]
["sw19"]
["sw20",null,null,null,null,null,{"$f":"\"from \"&'tax it (c6)'!Q66","v":"from c6.28"},null,null,{"$f":"\"lower of \"&F29&\" and \"&F32","v":"lower of sw18 and sw19"},null,null,{"$f":"I32&\" @ \"&SR_rate*100&\"%\"","v":"sw20 @ 0%"}]
["sw21",null,null,null,"Dividends in lower rate band",{"$f":"A30","v":"sw19"},{"$f":"'tax it (c6)'!R66","v":0},null,{"$f":"A31","v":"sw20"},{"$f":"MIN(G29,G32)","v":0},null,{"$f":"A32","v":"sw21"},{"$f":"TRUNC(J32*SR_rate,2)","v":0}]
["sw22"]
["sw23",null,null,null,null,null,null,null,null,null,null,null,{"$f":"L20&\" + \"&L26&\" + \"&L32","v":"sw13 + sw17 + sw21"}]
["sw24",null,null,null,null,null,null,null,null,"Tax credit on Swiss dividends that do not qualify for 10% UK tax credits",null,{"$f":"A33","v":"sw22"},{"$f":"M20+M26+M32","v":0}]
["sw25"]
["sw26",null,null,null,"Swiss Interest",{"$f":"A34","v":"sw23"},{"$f":"TRUNC('Swiss Tax'!J9,0)","v":0}]
["sw27"]
["sw28",null,null,null,null,null,{"$f":"\"from \"&'tax it (c6)'!L108","v":"from c6.22"},null,null,{"$f":"\"lower of \"&F37&\" and \"&F40","v":"lower of sw23 and sw24"},null,null,{"$f":"I40&\" @ \"&AHR_rate*100&\"%\"","v":"sw25 @ 45%"}]
["sw29",null,null,null,"Interest in additional rate band",{"$f":"A35","v":"sw24"},{"$f":"'tax it (c6)'!M108","v":0},null,{"$f":"A36","v":"sw25"},{"$f":"MIN(G37,G40)","v":0},null,{"$f":"A37","v":"sw26"},{"$f":"TRUNC(J40*AHR_rate,2)","v":0}]
["sw30"]
["sw31",null,null,null,null,null,{"$f":"F37&\" minus \"&I40","v":"sw23 minus sw25"}]
["sw32",null,null,null,"remaining Swiss interest",{"$f":"A38","v":"sw27"},{"$f":"MAX(G37-J40,0)","v":0}]
["sw33"]
["sw34",null,null,null,null,null,{"$f":"\"from \"&'tax it (c6)'!L95","v":"from c6.21"}]
["sw35",null,null,null,null,{"$f":"A39","v":"sw28"},{"$f":"'tax it (c6)'!M95","v":0}]
["sw36"]
["sw37",null,null,null,null,null,{"$f":"'CDR (c7)'!E45&\" minus (\"&'tax it (c6)'!AA95&\" + \"&'tax it (c6)'!V95&\" + \"&'tax it (c6)'!G95&\")\"","v":" minus (c6.55 + c6.43 + c6.9)"}]
["sw38",null,null,null,null,{"$f":"A40","v":"sw29"},{"$f":"MAX('CDR (c7)'!F45-('tax it (c6)'!AB95+'tax it (c6)'!W95+'tax it (c6)'!H95),0)","v":0}]
["sw39"]
["sw40",null,null,null,null,null,{"$f":"F46&\" minus \"&F49","v":"sw28 minus sw29"}]
["sw41",null,null,null,"Interest in higher rate band",{"$f":"A41","v":"sw30"},{"$f":"MAX(0,G46-G49)","v":0}]
["sw42"]
["sw43",null,null,null,null,null,{"$f":"F43&\" minus \"&F49","v":"sw27 minus sw29"},null,null,{"$f":"\"lower of \"&F52&\" and \"&F55","v":"lower of sw30 and sw31"},null,null,{"$f":"I55&\" @ \"&HR_rate*100&\"%\"","v":"sw32 @ 40%"}]
[null,null,null,null,null,{"$f":"A42","v":"sw31"},{"$f":"MAX(G43-G49,0)","v":0},null,{"$f":"A43","v":"sw32"},{"$f":"MIN(G52,G55)","v":0},null,{"$f":"A44","v":"sw33"},{"$f":"TRUNC(J55*HR_rate,2)","v":0}]
[]
[null,null,null,null,null,null,{"$f":"F43&\" minus \"&I55","v":"sw27 minus sw32"}]
[null,null,null,null,"remaining Swiss interest",{"$f":"A45","v":"sw34"},{"$f":"MAX(G43-J55,0)","v":0}]
[]
[null,null,null,null,null,null,{"$f":"'tax it (c6)'!L66&\" + \"&F49","v":"c6.18 + sw29"},null,null,{"$f":"\"lower of \"&F58&\" and \"&F61","v":"lower of sw34 and sw35"},null,null,{"$f":"I61&\" @ \"&BR_rate*100&\"%\"","v":"sw36 @ 20%"}]
[null,null,null,null,"Interest in lower rate band",{"$f":"A46","v":"sw35"},{"$f":"'tax it (c6)'!M66+G49","v":0},null,{"$f":"A47","v":"sw36"},{"$f":"MIN(G58,G61)","v":0},null,{"$f":"A48","v":"sw37"},{"$f":"TRUNC(J61*BR_rate,2)","v":0}]
[]
[null,null,null,null,null,null,{"$f":"F58&\" minus \"&I61","v":"sw34 minus sw36"}]
[null,null,null,null,"remaining Swiss interest",{"$f":"A49","v":"sw38"},{"$f":"MAX(G58-J61,0)","v":0}]
[]
[null,null,null,null,null,null,{"$f":"\"from \"&'tax it (c6)'!L36","v":"from c6.14"},null,null,{"$f":"\"lower of \"&F64&\" and \"&F67","v":"lower of sw38 and sw39"},null,null,{"$f":"I67&\" @ \"&SR_rate*100&\"%\"","v":"sw40 @ 0%"}]
[null,null,null,null,"Interest in starting rate band",{"$f":"A50","v":"sw39"},{"$f":"'tax it (c6)'!M36","v":0},null,{"$f":"A51","v":"sw40"},{"$f":"MIN(G64,G67)","v":0},null,{"$f":"A52","v":"sw41"},{"$f":"TRUNC(J67*SR_rate,2)","v":0}]
[]
[null,null,null,null,null,null,null,null,null,null,null,null,{"$f":"L40&\" + \"&L55&\" + \"&L61&\" + \"&L67","v":"sw26 + sw33 + sw37 + sw41"}]
[null,null,null,null,null,null,null,null,null,"Tax credit on Swiss interest",null,{"$f":"A53","v":"sw42"},{"$f":"M40+M55+M61+M67","v":0}]
[]
[null,null,null,null,null,null,null,null,null,null,null,null,{"$f":"L15&\" + \"&L35&\" + \"&L70","v":"sw9 + sw22 + sw42"}]
[null,null,null,null,null,null,null,null,null,"Total tax credit on Swiss income",null,{"$f":"A54","v":"sw43"},{"$f":"M15+M35+M70","v":0}]
[null,null,null,null,null,null,null,null,null,null,null,null,{"$f":"\"Add to \"&'Tax adj (c9)'!L94","v":"Add to "}]